{"text_format":"1","workbook":"xlsx","n_sheets":26,"sheets":["Premisas","Periodos","Lists","Contenido","Resumen de Validaciones","110000 - Carátula","110010 - Administradores","110010 GeneraXBRL","210000 - Est. Situa. Financiera","310000 - Est. Resultados","410000 - Est. Resultados ORI","520000 - Est. Flujos de Efec.","610000 - Est. Camb. Patrimonio","800101 - Nota. Efect. y Equiv.","800111 - Nota. Cuentas x cobrar","800111a - Nota. Detalle de CxC.","800111A GeneraXBRL","800500 - Lista de Notas","800600 - Lista de Politicas","811000 - Cambios en Polític...","811000 GeneraXBRL","822100 - Nota. Prop, plan y eq.","823180 - Nota. Activos Intang.","828000 - Nota. Cuentas x pagar","Anotaciones","Data"],"not_rendered":{"charts":0,"images":19,"macros":1,"external_links":2,"defined_names":98,"comments":8,"pivot_tables":0},"unopened":[],"bounds":{"document_bytes":16777216,"sheet_cells":100000,"rows_first":2000,"rows_last":500,"rows_between":2000,"halvings":0,"cell_chars":16384,"cell_head_chars":4096},"cells_cut":0,"cells_raw":0,"read":"whole","date_system":"1900"}

{"sheet":"Premisas","index":0,"n_rows":48,"n_cols":21,"rows_kept":48,"cut":false,"hidden":true,"merged":[]}
[null,null,null,null,null,null,null,null,null,null,null,null,null,null,null,null,null,null,"Codename","Visible","Pwd"]
["Formulas",null,"Trama SD","Trama Omitir","Trama Ignorar",null,null,null,null,null,null,null,"aHojas:",null,null,"Exclusiones:"]
[{"$f":"IF(G3=\"\",\"/*\",\"\")","v":"/*"},null,null,null,null,null,null,null,null,null,null,null,null,null,null,"Premisas;Contenido;Resumen de Validaciones;Data"]
[]
["OutPutRange"]
["Encabezado del documento:",{"$f":"Data!$B$5:$B$12","v":"xmlns:link = 'http://www.xbrl.org/2003/linkbase'"}]
["Referencia al esquema:",{"$f":"Data!$B$13","v":"link:schemaRef xlink:type='simple' xlink:href='http://www.supervigilancia.gov.co/tools/Taxonomias/2021-12-31/Grupo1_2021-12-31.xsd'"}]
["Centro del documento:",{"$f":"Data!B14:B19","v":{"$error":"#VALUE!"}}]
["Cierre de instancia:",{"$f":"Data!B21","v":"</xbrli:xbrl>"}]
["Idioma del pie:",{"$f":"Data!B20","v":"\"en\""}]
[]
["Versión InExX:","Ver 2.0"]
["Versión Plantilla:",{"$f":"Contenido!D8","v":"Versión 1.0"}]
["Valida:","Si"]
["Conteo:",{"$f":"'Resumen de Validaciones'!G30","v":231}]
["Ruta web del punto de entrada","http://www.supervigilancia.gov.co/tools/Taxonomias/2021-12-31/Grupo1_2021-12-31.xsd"]
["Nit",{"$f":"IF('110000 - Carátula'!F16=\"\",\"000000000\",'110000 - Carátula'!F16)","v":"000000000"}]
["Fecha de Corte",{"$f":"'110000 - Carátula'!F18","v":"2023-12-31"}]
["Grupo o Punto de entrada","Grupo 1"]
["Nombre del archivo",{"$f":"\"N\"&cHNIT&\"A\"&MID(YEAR(cHFechaCorte),3,2)&\"G\"&MID(cHTx,7,1)&\".xbrl\"","v":"N000000000A23G1.xbrl"}]
[]
["Texto 1","Esta herramienta es una opción que facilita a los vigilados pertenecientes al "]
["Texto 2"," de aplicación de normatividad financiera de la Superintendencia de Vigilancia y Seguridad Privada, la generación de los archivos (instancias) XBRL que la entidad requiere como parte de la presentación de la información financiera para el corte a diciembre 31 de 2023."]
[]
[]
["Local address"]
[{"$f":"'110000 - Carátula'!$E$13","v":0}]
[{"$f":"'110010 GeneraXBRL'!$D$10","v":"co-svsp-core:AdministradoresEje"}]
[{"$f":"'800101 - Nota. Efect. y Equiv.'!$E$13","v":0}]
[{"$f":"'800111 - Nota. Cuentas x cobrar'!$E$14","v":"co-svsp-core:CuentasPorCobrar_Eje"}]
[{"$f":"'800111 - Nota. Cuentas x cobrar'!$E$35","v":"co-svsp-core:CuentasPorCobrar_Eje"}]
[{"$f":"'800111A GeneraXBRL'!$D$10","v":"co-svsp-core:DetalleCuentasXCobrar_Eje"}]
[{"$f":"'800111A GeneraXBRL'!$D$181","v":"co-svsp-core:DetalleCuentasXCobrar_Eje"}]
[{"$f":"'800500 - Lista de Notas'!$E$13","v":0}]
[{"$f":"'800600 - Lista de Politicas'!$E$13","v":0}]
[{"$f":"'811000 GeneraXBRL'!D10","v":"co-svsp-core:InformacionarevelarSobreCambiosEnPoliticasContablesEstimacionesOErroresEje"}]
[{"$f":"'822100 - Nota. Prop, plan y eq.'!$E$14","v":"co-svsp-core:PropiedadesPlantaYEquipoEje_G1"}]
[{"$f":"'822100 - Nota. Prop, plan y eq.'!$E$52","v":"co-svsp-core:PropiedadesPlantaYEquipoEje_G1"}]
[{"$f":"'823180 - Nota. Activos Intang.'!$E$15","v":"co-svsp-core:ActivosIntangibles_Eje_G1"}]
[{"$f":"'823180 - Nota. Activos Intang.'!$E$44","v":"co-svsp-core:ActivosIntangibles_Eje_G1"}]
[{"$f":"'828000 - Nota. Cuentas x pagar'!$E$14","v":"co-svsp-core:CuentasXPagar_Eje"}]
[{"$f":"'828000 - Nota. Cuentas x pagar'!$E$27","v":"co-svsp-core:CuentasXPagar_Eje"}]
[{"$f":"'210000 - Est. Situa. Financiera'!$E$13","v":0}]
[{"$f":"'310000 - Est. Resultados'!$E$13","v":0}]
[{"$f":"'410000 - Est. Resultados ORI'!$E$13","v":0}]
[{"$f":"'520000 - Est. Flujos de Efec.'!$E$13","v":0}]
[{"$f":"'610000 - Est. Camb. Patrimonio'!$E$15","v":"ifrs-full:ComponentsOfEquityAxis"}]
[{"$f":"'610000 - Est. Camb. Patrimonio'!$E$42","v":"ifrs-full:ComponentsOfEquityAxis"}]

{"sheet":"Periodos","index":1,"n_rows":11,"n_cols":5,"rows_kept":11,"cut":false,"hidden":true,"merged":[]}
[]
[null,"Time map","Periodo 1","Periodo 2","Periodo 3"]
[null,"Fecha inicio periodo:","2023-01-01","2022-01-01","2021-01-01"]
[null,"Fecha final periodo:","2023-12-31","2022-12-31","2021-12-31"]
[]
[]
[null,"Validaciones"]
[null,"CARÁTULA",{"$f":"'110000 - Carátula'!L13","v":25}]
[null,"ADMINISTRADORES",{"$f":"'110010 - Administradores'!Q13","v":2}]
[null,"ESTADO DE SITUACIÓN FINANCIERA",{"$f":"#REF!","v":{"$error":"#REF!"}}]
[null,"ESTADO DE RESULTADOS",{"$f":"#REF!","v":{"$error":"#REF!"}}]

{"sheet":"Lists","index":2,"n_rows":233,"n_cols":101,"rows_kept":233,"cut":false,"hidden":true,"merged":[]}
[]
[null,null,null,null,null,null,null,null,null,null,null,null,null,null,null,null,{"$f":"MID('110000 - Carátula'!F32,1,2)","v":""},{"$f":"VLOOKUP(Q2,Q3:R35,2,FALSE)","v":{"$error":"#N/A"}},null,null,null,null,null,null,null,null,null,null,null,null,"AMAZONAS",null,"ANTIOQUIA",null,"ARAUCA",null,"ATLANTICO",null,"BOGOTA",null,"BOLIVAR",null,"BOYACA",null,"CALDAS",null,"CAQUETA",null,"CASANARE",null,"CAUCA",null,"CESAR",null,"CHOCO",null,"CORDOBA",null,"CUNDINAMARCA",null,"GUAINIA",null,"GUAVIARE",null,"HUILA",null,"LA_GUAJIRA",null,"MAGDALENA",null,"META",null,"NARINO",null,"NORTE_DE_SANTANDER",null,"PUTUMAYO",null,"QUINDIO",null,"RISARALDA",null,"SAN_ANDRES_Y_PROVIDENCIA",null,"SANTANDER",null,"SUCRE",null,"TOLIMA",null,"VALLE",null,"VAUPES",null,"VICHADA"]
[null,"01. SI","1","01. SI",null,"G4520 - Mantenimiento y reparación de vehículos automotores",null,"01. GRUPO 1",null,"01. PERSONA JURIDICA",null,"01. SOCIEDAD ANONIMA - SA",null,"01. ACTIVA",null,"05 - ANTIOQUIA",{"$f":"MID(P3,1,2)","v":"05"},"ANTIOQUIA",null,"05001 - MEDELLIN-ANTIOQUIA",null,"01. VIGENTE",null,"01. EMPRESA DE VIGILANCIA Y SEGURIDAD PRIVADAS CON ARMAS",null,null,null,"01. CEDULA DE CIUDADANIA",null,null,"91001 - LETICIA-AMAZONAS",null,"05001 - MEDELLIN-ANTIOQUIA",null,"81001 - ARAUCA-ARAUCA",null,"08001 - BARRANQUILLA-ATLANTICO",null,"11001 - BOGOTA-BOGOTA, D.C.",null,"13001 - CARTAGENA-BOLIVAR",null,"15001 - TUNJA-BOYACA",null,"17001 - MANIZALES-CALDAS",null,"18001 - FLORENCIA-CAQUETA",null,"85001 - YOPAL-CASANARE",null,"19001 - POPAYAN-CAUCA",null,"20001 - VALLEDUPAR-CESAR",null,"27001 - QUIBDO-CHOCO",null,"23001 - MONTERIA-CORDOBA",null,"25001 - AGUA DE DIOS-CUNDINAMARCA",null,"94001 - INIRIDA-GUAINIA",null,"95001 - SAN JOSE DEL GUAVIARE-GUAVIARE",null,"41001 - NEIVA-HUILA",null,"44001 - RIOHACHA-LA GUAJIRA",null,"47001 - SANTA MARTA-MAGDALENA",null,"50001 - VILLAVICENCIO-META",null,"52001 - PASTO-NARIÑO",null,"54001 - CUCUTA-NORTE DE SANTANDER",null,"86001 - MOCOA-PUTUMAYO",null,"63001 - ARMENIA-QUINDIO",null,"66001 - PEREIRA-RISARALDA",null,"88001 - SAN ANDRES-SAN ANDRES Y PROVIDENCIA",null,"68001 - BUCARAMANGA-SANTANDER",null,"70001 - SINCELEJO-SUCRE",null,"73001 - IBAGUE-TOLIMA",null,"76001 - CALI-VALLE DEL CAUCA",null,"97001 - MITU-VAUPES",null,"99001 - PUERTO CARREÑO-VICHADA",null,"CÉDULA DE CIUDADANÍA",null,"013 - AFGANISTAN",null,"01. Cambio voluntario en política contable"]
[null,"02. NO","2","02. NO",null,"N7710 - Alquiler y arrendamiento de vehículos automotores",null,"02. GRUPO 2",null,"02. PERSONA NATURAL",null,"02. SOCIEDAD DE RESPONSABILIDAD LIMITADA - LTDA",null,"02. CONCORDATO EN TRÁMITE",null,"08 - ATLANTICO",{"$f":"MID(P4,1,2)","v":"08"},"ATLANTICO",null,"05002 - ABEJORRAL-ANTIOQUIA",null,"02. EN TRÁMITE",null,"02. EMPRESA DE VIGILANCIA Y SEGURIDAD PRIVADAS SIN ARMAS",null,null,null,"02. CEDULA DE EXTRANJERIA",null,null,"91263 - EL ENCANTO-AMAZONAS",null,"05002 - ABEJORRAL-ANTIOQUIA",null,"81065 - ARAUQUITA-ARAUCA",null,"08078 - BARANOA-ATLANTICO",null,null,null,"13006 - ACHI-BOLIVAR",null,"15022 - ALMEIDA-BOYACA",null,"17013 - AGUADAS-CALDAS",null,"18029 - ALBANIA-CAQUETA",null,"85010 - AGUAZUL-CASANARE",null,"19022 - ALMAGUER-CAUCA",null,"20011 - AGUACHICA-CESAR",null,"27006 - ACANDI-CHOCO",null,"23068 - AYAPEL-CORDOBA",null,"25019 - ALBAN-CUNDINAMARCA",null,"94343 - BARRANCO MINAS-GUAINIA",null,"95015 - CALAMAR-GUAVIARE",null,"41006 - ACEVEDO-HUILA",null,"44035 - ALBANIA-LA GUAJIRA",null,"47030 - ALGARROBO-MAGDALENA",null,"50006 - ACACIAS-META",null,"52019 - SAN JOSÉ ALBÁN-NARIÑO",null,"54003 - ABREGO-NORTE DE SANTANDER",null,"86219 - COLON-PUTUMAYO",null,"63111 - BUENAVISTA-QUINDIO",null,"66045 - APIA-RISARALDA",null,"88564 - PROVIDENCIA-SAN ANDRES Y PROVIDENCIA",null,"68013 - AGUADA-SANTANDER",null,"70110 - BUENAVISTA-SUCRE",null,"73024 - ALPUJARRA-TOLIMA",null,"76020 - ALCALA-VALLE DEL CAUCA",null,"97161 - CARURU-VAUPES",null,"99524 - LA PRIMAVERA-VICHADA",null,"NIT",null,"017 - ALBANIA",null,"02. Cambio obligatorio en política contable"]
[null,null,"3","03. N/A",null,"N8010 - Actividades de seguridad privada",null,"03. GRUPO 3",null,null,null,"03. SOCIEDAD POR ACCIONES SIMPLIFICADA - SAS","CEDULA DE CIUDADANIA","03. CONCORDATO EN EJECUCIÓN",null,"11 - BOGOTA D.C.","11","BOGOTA",null,"05004 - ABRIAQUI-ANTIOQUIA",null,"03. EN RECURSO",null,"03. COOPERATIVA DE VIGILANCIA Y SEGURIDAD PRIVADA",null,null,null,"03. PASAPORTE",null,null,"91405 - LA CHORRERA-AMAZONAS",null,"05004 - ABRIAQUI-ANTIOQUIA",null,"81220 - CRAVO NORTE-ARAUCA",null,"08137 - CAMPO DE LA CRUZ-ATLANTICO",null,null,null,"13030 - ALTOS DEL ROSARIO-BOLIVAR",null,"15047 - AQUITANIA-BOYACA",null,"17042 - ANSERMA-CALDAS",null,"18094 - BELEN DE LOS ANDAQUIES-CAQUETA",null,"85015 - CHAMEZA-CASANARE",null,"19050 - ARGELIA-CAUCA",null,"20013 - AGUSTIN CODAZZI-CESAR",null,"27025 - ALTO BAUDO-CHOCO",null,"23079 - BUENAVISTA-CORDOBA",null,"25035 - ANAPOIMA-CUNDINAMARCA",null,"94663 - MAPIRIPANA-GUAINIA",null,"95025 - EL RETORNO-GUAVIARE",null,"41013 - AGRADO-HUILA",null,"44078 - BARRANCAS-LA GUAJIRA",null,"47053 - ARACATACA-MAGDALENA",null,"50110 - BARRANCA DE UPIA-META",null,"52022 - ALDANA-NARIÑO",null,"54051 - ARBOLEDAS-NORTE DE SANTANDER",null,"86320 - ORITO-PUTUMAYO",null,"63130 - CALARCA-QUINDIO",null,"66075 - BALBOA-RISARALDA",null,null,null,"68020 - ALBANIA-SANTANDER",null,"70124 - CAIMITO-SUCRE",null,"73026 - ALVARADO-TOLIMA",null,"76036 - ANDALUCIA-VALLE DEL CAUCA",null,"97511 - PACOA-VAUPES",null,"99624 - SANTA ROSALIA-VICHADA",null,"CEDULA EXTRANJERÍA",null,"023 - ALEMANIA",null,"03. Cambio en estimación contable"]
[null,null,"4",null,null,"N8020 - Actividades de servicios de sistemas de seguridad",null,null,null,null,null,"04. COOPERATIVA DE TRABAJO ASOCIADO - CTA",null,"04. EN ETAPA PREOPERATIVA",null,"13 - BOLIVAR","13","BOLIVAR",null,"05021 - ALEJANDRIA-ANTIOQUIA",null,null,null,"04. EMPRESA DE TRANSPORTE DE VALORES",null,null,null,null,null,null,"91407 - LA PEDRERA-AMAZONAS",null,"05021 - ALEJANDRIA-ANTIOQUIA",null,"81300 - FORTUL-ARAUCA",null,"08141 - CANDELARIA-ATLANTICO",null,null,null,"13042 - ARENAL-BOLIVAR",null,"15051 - ARCABUCO-BOYACA",null,"17050 - ARANZAZU-CALDAS",null,"18150 - CARTAGENA DEL CHAIRA-CAQUETA",null,"85125 - HATO COROZAL-CASANARE",null,"19075 - BALBOA-CAUCA",null,"20032 - ASTREA-CESAR",null,"27050 - ATRATO-CHOCO",null,"23090 - CANALETE-CORDOBA",null,"25040 - ANOLAIMA-CUNDINAMARCA",null,"94883 - SAN FELIPE-GUAINIA",null,"95200 - MIRAFLORES-GUAVIARE",null,"41016 - AIPE-HUILA",null,"44090 - DIBULLA-LA GUAJIRA",null,"47058 - ARIGUANI-MAGDALENA",null,"50124 - CABUYARO-META",null,"52036 - ANCUYA-NARIÑO",null,"54099 - BOCHALEMA-NORTE DE SANTANDER",null,"86568 - PUERTO ASIS-PUTUMAYO",null,"63190 - CIRCASIA-QUINDIO",null,"66088 - BELEN DE UMBRIA-RISARALDA",null,null,null,"68051 - ARATOCA-SANTANDER",null,"70204 - COLOSO-SUCRE",null,"73030 - AMBALEMA-TOLIMA",null,"76041 - ANSERMANUEVO-VALLE DEL CAUCA",null,"97666 - TARAIRA-VAUPES",null,"99773 - CUMARIBO-VICHADA",null,"PASAPORTE",null,"026 - ARMENIA",null,"04. Cambio por error"]
[null,null,"5",null,null,"N8030 - Actividades de detectives e investigadores privados",null,null,null,null,null,"05. SOCIEDAD EN COMANDITA",null,"05. ACUERDO DE REESTRUCTURACIÓN",null,"15 - BOYACA","15","BOYACA",null,"05030 - AMAGA-ANTIOQUIA",null,null,null,"05. EMPRESA BLINDADORA",null,null,null,null,null,null,"91430 - LA VICTORIA-AMAZONAS",null,"05030 - AMAGA-ANTIOQUIA",null,"81591 - PUERTO RONDON-ARAUCA",null,"08296 - GALAPA-ATLANTICO",null,null,null,"13052 - ARJONA-BOLIVAR",null,"15087 - BELEN-BOYACA",null,"17088 - BELALCAZAR-CALDAS",null,"18205 - CURILLO-CAQUETA",null,"85136 - LA SALINA-CASANARE",null,"19100 - BOLIVAR-CAUCA",null,"20045 - BECERRIL-CESAR",null,"27073 - BAGADO-CHOCO",null,"23162 - CERETE-CORDOBA",null,"25053 - ARBELAEZ-CUNDINAMARCA",null,"94884 - PUERTO COLOMBIA-GUAINIA",null,null,null,"41020 - ALGECIRAS-HUILA",null,"44098 - DISTRACCION-LA GUAJIRA",null,"47161 - CERRO SAN ANTONIO-MAGDALENA",null,"50150 - CASTILLA LA NUEVA-META",null,"52051 - ARBOLEDA - BERRUECOS-NARIÑO",null,"54109 - BUCARASICA-NORTE DE SANTANDER",null,"86569 - PUERTO CAICEDO-PUTUMAYO",null,"63212 - CORDOBA-QUINDIO",null,"66170 - DOSQUEBRADAS-RISARALDA",null,null,null,"68077 - BARBOSA-SANTANDER",null,"70215 - COROZAL-SUCRE",null,"73043 - ANZOATEGUI-TOLIMA",null,"76054 - ARGELIA-VALLE DEL CAUCA",null,"97777 - PAPUNAUA-VAUPES",null,null,null,"TARJETA DE IDENTIDAD",null,"027 - ARUBA"]
[null,null,"6",null,null,"P8551 - Formación académica no formal",null,null,null,null,null,"06. EMPRESA UNIPERSONAL",null,"06. ACUERDO DE REORGANIZACION",null,"17 - CALDAS","17","CALDAS",null,"05031 - AMALFI-ANTIOQUIA",null,null,null,"06. EMPRESA ARRENDADORA DE VEHÍCULOS BLINDADOS",null,null,null,null,null,null,"91460 - MIRITI – PARANA-AMAZONAS",null,"05031 - AMALFI-ANTIOQUIA",null,"81736 - SARAVENA-ARAUCA",null,"08372 - JUAN DE ACOSTA-ATLANTICO",null,null,null,"13062 - ARROYOHONDO-BOLIVAR",null,"15090 - BERBEO-BOYACA",null,"17174 - CHINCHINA-CALDAS",null,"18247 - EL DONCELLO-CAQUETA",null,"85139 - MANI-CASANARE",null,"19110 - BUENOS AIRES-CAUCA",null,"20060 - BOSCONIA-CESAR",null,"27075 - BAHIA SOLANO-CHOCO",null,"23168 - CHIMA-CORDOBA",null,"25086 - BELTRAN-CUNDINAMARCA",null,"94885 - GUADALUPE-GUAINIA",null,null,null,"41026 - ALTAMIRA-HUILA",null,"44110 - EL MOLINO-LA GUAJIRA",null,"47170 - CHIBOLO-MAGDALENA",null,"50223 - CUBARRAL-META",null,"52079 - BARBACOAS-NARIÑO",null,"54125 - CACOTA-NORTE DE SANTANDER",null,"86571 - PUERTO GUZMAN-PUTUMAYO",null,"63272 - FILANDIA-QUINDIO",null,"66318 - GUATICA-RISARALDA",null,null,null,"68079 - BARICHARA-SANTANDER",null,"70221 - COVEÑAS-SUCRE",null,"73055 - ARMERO-TOLIMA",null,"76100 - BOLIVAR-VALLE DEL CAUCA",null,"97889 - YAVARATE-VAUPES",null,null,null,"SOCIEDAD EXTRANJERA SIN NIT EN COLOMBIA",null,"029 - BOSNIA"]
[null,null,"7",null,null,"P8559 - Otros tipos de educación n.c.p.",null,null,null,null,null,"07. COOPERATIVA",null,"07. EN LIQUIDACIÓN",null,"18 - CAQUETA","18","CAQUETA",null,"05034 - ANDES-ANTIOQUIA",null,null,null,"07. EMPRESA ASESORA, CONSULTORA E INVESTIGADORA EN VIGILANCIA Y SEGURIDAD PRIVADA",null,null,null,null,null,null,"91530 - PUERTO ALEGRIA-AMAZONAS",null,"05034 - ANDES-ANTIOQUIA",null,"81794 - TAME-ARAUCA",null,"08421 - LURUACO-ATLANTICO",null,null,null,"13074 - BARRANCO DE LOBA-BOLIVAR",null,"15092 - BETEITIVA-BOYACA",null,"17272 - FILADELFIA-CALDAS",null,"18256 - EL PAUJIL-CAQUETA",null,"85162 - MONTERREY-CASANARE",null,"19130 - CAJIBIO-CAUCA",null,"20175 - CHIMICHAGUA-CESAR",null,"27077 - BAJO BAUDO-CHOCO",null,"23182 - CHINU-CORDOBA",null,"25095 - BITUIMA-CUNDINAMARCA",null,"94886 - CACAHUAL-GUAINIA",null,null,null,"41078 - BARAYA-HUILA",null,"44279 - FONSECA-LA GUAJIRA",null,"47189 - CIENAGA-MAGDALENA",null,"50226 - CUMARAL-META",null,"52083 - BELEN-NARIÑO",null,"54128 - CACHIRA-NORTE DE SANTANDER",null,"86573 - LEGUIZAMO-PUTUMAYO",null,"63302 - GENOVA-QUINDIO",null,"66383 - LA CELIA-RISARALDA",null,null,null,"68081 - BARRANCABERMEJA-SANTANDER",null,"70230 - CHALAN-SUCRE",null,"73067 - ATACO-TOLIMA",null,"76109 - BUENAVENTURA-VALLE DEL CAUCA",null,null,null,null,null,"PERSONA NATURAL EXTRANJERA SIN IDENTIFICACIÓN",null,"031 -BURKINA FASSO"]
[null,null,"8",null,null,null,null,null,null,null,null,"08. JUNTA DE ACCIÓN COMUNAL",null,null,null,"19 - CAUCA","19","CAUCA",null,"05036 - ANGELOPOLIS-ANTIOQUIA",null,null,null,"08. ESCUELA DE CAPACITACIÓN Y ENTRENAMIENTO EN VIGILANCIA Y SEGURIDAD PRIVADA",null,null,null,null,null,null,"91536 - PUERTO ARICA-AMAZONAS",null,"05036 - ANGELOPOLIS-ANTIOQUIA",null,null,null,"08433 - MALAMBO-ATLANTICO",null,null,null,"13140 - CALAMAR-BOLIVAR",null,"15097 - BOAVITA-BOYACA",null,"17380 - LA DORADA-CALDAS",null,"18410 - LA MONTAÑITA-CAQUETA",null,"85225 - NUNCHIA-CASANARE",null,"19137 - CALDONO-CAUCA",null,"20178 - CHIRIGUANA-CESAR",null,"27086 - BELEN DE BAJIRA-CHOCO",null,"23189 - CIENAGA DE ORO-CORDOBA",null,"25099 - BOJACA-CUNDINAMARCA",null,"94887 - PANA PANA-GUAINIA",null,null,null,"41132 - CAMPOALEGRE-HUILA",null,"44378 - HATONUEVO-LA GUAJIRA",null,"47205 - CONCORDIA-MAGDALENA",null,"50245 - EL CALVARIO-META",null,"52110 - BUESACO-NARIÑO",null,"54172 - CHINACOTA-NORTE DE SANTANDER",null,"86749 - SIBUNDOY-PUTUMAYO",null,"63401 - LA TEBAIDA-QUINDIO",null,"66400 - LA VIRGINIA-RISARALDA",null,null,null,"68092 - BETULIA-SANTANDER",null,"70233 - EL ROBLE-SUCRE",null,"73124 - CAJAMARCA-TOLIMA",null,"76111 - GUADALAJARA DE BUGA-VALLE DEL CAUCA",null,null,null,null,null,"REGISTRO CIVIL DE NACIMIENTO",null,"037 - ANDORRA"]
[null,null,"9",null,null,null,null,null,null,null,null,"09. EMPRESA COMUNITARIA",null,null,null,"20 - CESAR","20","CESAR",null,"05038 - ANGOSTURA-ANTIOQUIA",null,null,null,null,null,null,null,null,null,null,"91540 - PUERTO NARIÑO-AMAZONAS",null,"05038 - ANGOSTURA-ANTIOQUIA",null,null,null,"08436 - MANATI-ATLANTICO",null,null,null,"13160 - CANTAGALLO-BOLIVAR",null,"15104 - BOYACA-BOYACA",null,"17388 - LA MERCED-CALDAS",null,"18460 - MILAN-CAQUETA",null,"85230 - OROCUE-CASANARE",null,"19142 - CALOTO-CAUCA",null,"20228 - CURUMANI-CESAR",null,"27099 - BOJAYA-CHOCO",null,"23300 - COTORRA-CORDOBA",null,"25120 - CABRERA-CUNDINAMARCA",null,"94888 - MORICHAL-GUAINIA",null,null,null,"41206 - COLOMBIA-HUILA",null,"44420 - LA JAGUA DEL PILAR-LA GUAJIRA",null,"47245 - EL BANCO-MAGDALENA",null,"50251 - EL CASTILLO-META",null,"52203 - COLON-NARIÑO",null,"54174 - CHITAGA-NORTE DE SANTANDER",null,"86755 - SAN FRANCISCO-PUTUMAYO",null,"63470 - MONTENEGRO-QUINDIO",null,"66440 - MARSELLA-RISARALDA",null,null,null,"68101 - BOLIVAR-SANTANDER",null,"70235 - GALERAS-SUCRE",null,"73148 - CARMEN DE APICALA-TOLIMA",null,"76113 - BUGALAGRANDE-VALLE DEL CAUCA",null,null,null,null,null,"SIN IDENTIFICACIÓN - PARA USO DEFINIDO POR SUPERVIGILANCIA",null,"040 - ANGOLA"]
[null,null,"0",null,null,null,null,null,null,null,null,"10. ENTIDAD SIN ANIMO DE LUCRO",null,null,null,"23 - CORDOBA","23","CORDOBA",null,"05040 - ANORI-ANTIOQUIA",null,null,null,null,null,null,null,null,null,null,"91669 - PUERTO SANTANDER-AMAZONAS",null,"05040 - ANORI-ANTIOQUIA",null,null,null,"08520 - PALMAR DE VARELA-ATLANTICO",null,null,null,"13188 - CICUCO-BOLIVAR",null,"15106 - BRICEÑO-BOYACA",null,"17433 - MANZANARES-CALDAS",null,"18479 - MORELIA-CAQUETA",null,"85250 - PAZ DE ARIPORO-CASANARE",null,"19212 - CORINTO-CAUCA",null,"20238 - EL COPEY-CESAR",null,"27135 - EL CANTON DEL SAN PABLO-CHOCO",null,"23350 - LA APARTADA-CORDOBA",null,"25123 - CACHIPAY-CUNDINAMARCA",null,null,null,null,null,"41244 - ELIAS-HUILA",null,"44430 - MAICAO-LA GUAJIRA",null,"47258 - EL PIÑON-MAGDALENA",null,"50270 - EL DORADO-META",null,"52207 - CONSACA-NARIÑO",null,"54206 - CONVENCION-NORTE DE SANTANDER",null,"86757 - SAN MIGUEL-PUTUMAYO",null,"63548 - PIJAO-QUINDIO",null,"66456 - MISTRATO-RISARALDA",null,null,null,"68121 - CABRERA-SANTANDER",null,"70265 - GUARANDA-SUCRE",null,"73152 - CASABIANCA-TOLIMA",null,"76122 - CAICEDONIA-VALLE DEL CAUCA",null,null,null,null,null,null,null,"041 - ANGUILLA"]
[null,null,null,null,null,null,null,null,null,null,null,"11. ENTIDAD GUBERNAMENTAL",null,null,null,"25 - CUNDINAMARCA","25","CUNDINAMARCA",null,"05042 - SANTAFE DE ANTIOQUIA-ANTIOQUIA",null,null,null,null,null,null,null,null,null,null,"91798 - TARAPACA-AMAZONAS",null,"05042 - SANTAFE DE ANTIOQUIA-ANTIOQUIA",null,null,null,"08549 - PIOJO-ATLANTICO",null,null,null,"13212 - CORDOBA-BOLIVAR",null,"15109 - BUENAVISTA-BOYACA",null,"17442 - MARMATO-CALDAS",null,"18592 - PUERTO RICO-CAQUETA",null,"85263 - PORE-CASANARE",null,"19256 - EL TAMBO-CAUCA",null,"20250 - EL PASO-CESAR",null,"27150 - CARMEN DEL DARIEN-CHOCO",null,"23417 - LORICA-CORDOBA",null,"25126 - CAJICA-CUNDINAMARCA",null,null,null,null,null,"41298 - GARZON-HUILA",null,"44560 - MANAURE-LA GUAJIRA",null,"47268 - EL RETEN-MAGDALENA",null,"50287 - FUENTE DE ORO-META",null,"52210 - CONTADERO-NARIÑO",null,"54223 - CUCUTILLA-NORTE DE SANTANDER",null,"86760 - SANTIAGO-PUTUMAYO",null,"63594 - QUIMBAYA-QUINDIO",null,"66572 - PUEBLO RICO-RISARALDA",null,null,null,"68132 - CALIFORNIA-SANTANDER",null,"70400 - LA UNION-SUCRE",null,"73168 - CHAPARRAL-TOLIMA",null,"76126 - CALIMA-VALLE DEL CAUCA",null,null,null,null,null,null,null,"043 - ANTIGUA Y BARBUDA"]
[null,null,null,null,null,null,null,null,null,null,null,null,null,null,null,"27 - CHOCO","27","CHOCO",null,"05044 - ANZA-ANTIOQUIA",null,null,null,null,null,null,null,null,null,null,null,null,"05044 - ANZA-ANTIOQUIA",null,null,null,"08558 - POLONUEVO-ATLANTICO",null,null,null,"13222 - CLEMENCIA-BOLIVAR",null,"15114 - BUSBANZA-BOYACA",null,"17444 - MARQUETALIA-CALDAS",null,"18610 - SAN JOSE DEL FRAGUA-CAQUETA",null,"85279 - RECETOR-CASANARE",null,"19290 - FLORENCIA-CAUCA",null,"20295 - GAMARRA-CESAR",null,"27160 - CERTEGUI-CHOCO",null,"23419 - LOS CORDOBAS-CORDOBA",null,"25148 - CAPARRAPI-CUNDINAMARCA",null,null,null,null,null,"41306 - GIGANTE-HUILA",null,"44650 - SAN JUAN DEL CESAR-LA GUAJIRA",null,"47288 - FUNDACION-MAGDALENA",null,"50313 - GRANADA-META",null,"52215 - CORDOBA-NARIÑO",null,"54239 - DURANIA-NORTE DE SANTANDER",null,"86865 - VALLE DEL GUAMUEZ-PUTUMAYO",null,"63690 - SALENTO-QUINDIO",null,"66594 - QUINCHIA-RISARALDA",null,null,null,"68147 - CAPITANEJO-SANTANDER",null,"70418 - LOS PALMITOS-SUCRE",null,"73200 - COELLO-TOLIMA",null,"76130 - CANDELARIA-VALLE DEL CAUCA",null,null,null,null,null,null,null,"047 - ANTILLAS HOLANDESAS"]
[null,null,null,null,null,null,null,null,null,null,null,null,null,null,null,"41 - HUILA","41","HUILA",null,"05045 - APARTADO-ANTIOQUIA",null,null,null,null,null,null,null,null,null,null,null,null,"05045 - APARTADO-ANTIOQUIA",null,null,null,"08560 - PONEDERA-ATLANTICO",null,null,null,"13244 - EL CARMEN DE BOLIVAR-BOLIVAR",null,"15131 - CALDAS-BOYACA",null,"17446 - MARULANDA-CALDAS",null,"18753 - SAN VICENTE DEL CAGUAN-CAQUETA",null,"85300 - SABANALARGA-CASANARE",null,"19318 - GUAPI-CAUCA",null,"20310 - GONZALEZ-CESAR",null,"27205 - CONDOTO-CHOCO",null,"23464 - MOMIL-CORDOBA",null,"25151 - CAQUEZA-CUNDINAMARCA",null,null,null,null,null,"41319 - GUADALUPE-HUILA",null,"44847 - URIBIA-LA GUAJIRA",null,"47318 - GUAMAL-MAGDALENA",null,"50318 - GUAMAL-META",null,"52224 - CUASPUD-NARIÑO",null,"54245 - EL CARMEN-NORTE DE SANTANDER",null,"86885 - VILLAGARZON-PUTUMAYO",null,null,null,"66682 - SANTA ROSA DE CABAL-RISARALDA",null,null,null,"68152 - CARCASI-SANTANDER",null,"70429 - MAJAGUAL-SUCRE",null,"73217 - COYAIMA-TOLIMA",null,"76147 - CARTAGO-VALLE DEL CAUCA",null,null,null,null,null,null,null,"053 - ARABIA SAUDITA"]
[null,null,null,null,null,null,null,null,null,null,null,null,null,null,null,"44 - LA GUAJIRA","44","LA_GUAJIRA",null,"05051 - ARBOLETES-ANTIOQUIA",null,null,null,null,null,null,null,null,null,null,null,null,"05051 - ARBOLETES-ANTIOQUIA",null,null,null,"08573 - PUERTO COLOMBIA-ATLANTICO",null,null,null,"13248 - EL GUAMO-BOLIVAR",null,"15135 - CAMPOHERMOSO-BOYACA",null,"17486 - NEIRA-CALDAS",null,"18756 - SOLANO-CAQUETA",null,"85315 - SACAMA-CASANARE",null,"19355 - INZA-CAUCA",null,"20383 - LA GLORIA-CESAR",null,"27245 - EL CARMEN DE ATRATO-CHOCO",null,"23466 - MONTELIBANO-CORDOBA",null,"25154 - CARMEN DE CARUPA-CUNDINAMARCA",null,null,null,null,null,"41349 - HOBO-HUILA",null,"44855 - URUMITA-LA GUAJIRA",null,"47460 - NUEVA GRANADA-MAGDALENA",null,"50325 - MAPIRIPAN-META",null,"52227 - CUMBAL-NARIÑO",null,"54250 - EL TARRA-NORTE DE SANTANDER",null,null,null,null,null,"66687 - SANTUARIO-RISARALDA",null,null,null,"68160 - CEPITA-SANTANDER",null,"70473 - MORROA-SUCRE",null,"73226 - CUNDAY-TOLIMA",null,"76233 - DAGUA-VALLE DEL CAUCA",null,null,null,null,null,null,null,"059 - ARGELIA"]
[null,null,null,null,null,null,null,null,null,null,null,null,null,null,null,"47 - MAGDALENA","47","MAGDALENA",null,"05055 - ARGELIA-ANTIOQUIA",null,null,null,null,null,null,null,null,null,null,null,null,"05055 - ARGELIA-ANTIOQUIA",null,null,null,"08606 - REPELON-ATLANTICO",null,null,null,"13268 - EL PEÑON-BOLIVAR",null,"15162 - CERINZA-BOYACA",null,"17495 - NORCASIA-CALDAS",null,"18785 - SOLITA-CAQUETA",null,"85325 - SAN LUIS DE PALENQUE-CASANARE",null,"19364 - JAMBALO-CAUCA",null,"20400 - LA JAGUA DE IBIRICO-CESAR",null,"27250 - EL LITORAL DEL SAN JUAN-CHOCO",null,"23500 - MOÑITOS-CORDOBA",null,"25168 - CHAGUANI-CUNDINAMARCA",null,null,null,null,null,"41357 - IQUIRA-HUILA",null,"44874 - VILLANUEVA-LA GUAJIRA",null,"47541 - PEDRAZA-MAGDALENA",null,"50330 - MESETAS-META",null,"52233 - CUMBITARA-NARIÑO",null,"54261 - EL ZULIA-NORTE DE SANTANDER",null,null,null,null,null,null,null,null,null,"68162 - CERRITO-SANTANDER",null,"70508 - OVEJAS-SUCRE",null,"73236 - DOLORES-TOLIMA",null,"76243 - EL AGUILA-VALLE DEL CAUCA",null,null,null,null,null,null,null,"063 - ARGENTINA"]
[null,null,null,null,null,null,null,null,null,null,null,null,null,null,null,"50 - META","50","META",null,"05059 - ARMENIA-ANTIOQUIA",null,null,null,null,null,null,null,null,null,null,null,null,"05059 - ARMENIA-ANTIOQUIA",null,null,null,"08634 - SABANAGRANDE-ATLANTICO",null,null,null,"13300 - HATILLO DE LOBA-BOLIVAR",null,"15172 - CHINAVITA-BOYACA",null,"17513 - PACORA-CALDAS",null,"18860 - VALPARAISO-CAQUETA",null,"85400 - TAMARA-CASANARE",null,"19392 - LA SIERRA-CAUCA",null,"20443 - MANAURE-CESAR",null,"27361 - ISTMINA-CHOCO",null,"23555 - PLANETA RICA-CORDOBA",null,"25175 - CHIA-CUNDINAMARCA",null,null,null,null,null,"41359 - ISNOS-HUILA",null,null,null,"47545 - PIJIÑO DEL CARMEN-MAGDALENA",null,"50350 - LA MACARENA-META",null,"52240 - CHACHAGÜI-NARIÑO",null,"54313 - GRAMALOTE-NORTE DE SANTANDER",null,null,null,null,null,null,null,null,null,"68167 - CHARALA-SANTANDER",null,"70523 - PALMITO-SUCRE",null,"73268 - ESPINAL-TOLIMA",null,"76246 - EL CAIRO-VALLE DEL CAUCA",null,null,null,null,null,null,null,"069 - AUSTRALIA"]
[null,null,null,null,null,null,null,null,null,null,null,null,null,null,null,"52 - NARIÑO","52","NARINO",null,"05079 - BARBOSA-ANTIOQUIA",null,null,null,null,null,null,null,null,null,null,null,null,"05079 - BARBOSA-ANTIOQUIA",null,null,null,"08638 - SABANALARGA-ATLANTICO",null,null,null,"13430 - MAGANGUE-BOLIVAR",null,"15176 - CHIQUINQUIRA-BOYACA",null,"17524 - PALESTINA-CALDAS",null,null,null,"85410 - TAURAMENA-CASANARE",null,"19397 - LA VEGA-CAUCA",null,"20517 - PAILITAS-CESAR",null,"27372 - JURADO-CHOCO",null,"23570 - PUEBLO NUEVO-CORDOBA",null,"25178 - CHIPAQUE-CUNDINAMARCA",null,null,null,null,null,"41378 - LA ARGENTINA-HUILA",null,null,null,"47551 - PIVIJAY-MAGDALENA",null,"50370 - URIBE-META",null,"52250 - EL CHARCO-NARIÑO",null,"54344 - HACARI-NORTE DE SANTANDER",null,null,null,null,null,null,null,null,null,"68169 - CHARTA-SANTANDER",null,"70670 - SAMPUES-SUCRE",null,"73270 - FALAN-TOLIMA",null,"76248 - EL CERRITO-VALLE DEL CAUCA",null,null,null,null,null,null,null,"072 - AUSTRIA"]
[null,null,null,null,null,null,null,null,null,null,null,null,null,null,null,"54 - NORTE DE SANTANDER","54","NORTE_DE_SANTANDER",null,"05086 - BELMIRA-ANTIOQUIA",null,null,null,null,null,null,null,null,null,null,null,null,"05086 - BELMIRA-ANTIOQUIA",null,null,null,"08675 - SANTA LUCIA-ATLANTICO",null,null,null,"13433 - MAHATES-BOLIVAR",null,"15180 - CHISCAS-BOYACA",null,"17541 - PENSILVANIA-CALDAS",null,null,null,"85430 - TRINIDAD-CASANARE",null,"19418 - LOPEZ-CAUCA",null,"20550 - PELAYA-CESAR",null,"27413 - LLORO-CHOCO",null,"23574 - PUERTO ESCONDIDO-CORDOBA",null,"25181 - CHOACHI-CUNDINAMARCA",null,null,null,null,null,"41396 - LA PLATA-HUILA",null,null,null,"47555 - PLATO-MAGDALENA",null,"50400 - LEJANIAS-META",null,"52254 - EL PEÑOL-NARIÑO",null,"54347 - HERRAN-NORTE DE SANTANDER",null,null,null,null,null,null,null,null,null,"68176 - CHIMA-SANTANDER",null,"70678 - SAN BENITO ABAD-SUCRE",null,"73275 - FLANDES-TOLIMA",null,"76250 - EL DOVIO-VALLE DEL CAUCA",null,null,null,null,null,null,null,"074 - AZERBAIJAN"]
[null,null,null,null,null,null,null,null,null,null,null,null,null,null,null,"63 - QUINDIO","63","QUINDIO",null,"05088 - BELLO-ANTIOQUIA",null,null,null,null,null,null,null,null,null,null,null,null,"05088 - BELLO-ANTIOQUIA",null,null,null,"08685 - SANTO TOMAS-ATLANTICO",null,null,null,"13440 - MARGARITA-BOLIVAR",null,"15183 - CHITA-BOYACA",null,"17614 - RIOSUCIO-CALDAS",null,null,null,"85440 - VILLANUEVA-CASANARE",null,"19450 - MERCADERES-CAUCA",null,"20570 - PUEBLO BELLO-CESAR",null,"27425 - MEDIO ATRATO-CHOCO",null,"23580 - PUERTO LIBERTADOR-CORDOBA",null,"25183 - CHOCONTA-CUNDINAMARCA",null,null,null,null,null,"41483 - NATAGA-HUILA",null,null,null,"47570 - PUEBLOVIEJO-MAGDALENA",null,"50450 - PUERTO CONCORDIA-META",null,"52256 - EL ROSARIO-NARIÑO",null,"54377 - LABATECA-NORTE DE SANTANDER",null,null,null,null,null,null,null,null,null,"68179 - CHIPATA-SANTANDER",null,"70702 - SAN JUAN DE BETULIA-SUCRE",null,"73283 - FRESNO-TOLIMA",null,"76275 - FLORIDA-VALLE DEL CAUCA",null,null,null,null,null,null,null,"077 - BAHAMAS"]
[null,null,null,null,null,null,null,null,null,null,null,null,null,null,null,"66 - RISARALDA","66","RISARALDA",null,"05091 - BETANIA-ANTIOQUIA",null,null,null,null,null,null,null,null,null,null,null,null,"05091 - BETANIA-ANTIOQUIA",null,null,null,"08758 - SOLEDAD-ATLANTICO",null,null,null,"13442 - MARIA LA BAJA-BOLIVAR",null,"15185 - CHITARAQUE-BOYACA",null,"17616 - RISARALDA-CALDAS",null,null,null,null,null,"19455 - MIRANDA-CAUCA",null,"20614 - RIO DE ORO-CESAR",null,"27430 - MEDIO BAUDO-CHOCO",null,"23586 - PURISIMA-CORDOBA",null,"25200 - COGUA-CUNDINAMARCA",null,null,null,null,null,"41503 - OPORAPA-HUILA",null,null,null,"47605 - REMOLINO-MAGDALENA",null,"50568 - PUERTO GAITAN-META",null,"52258 - EL TABLON DE GOMEZ-NARIÑO",null,"54385 - LA ESPERANZA-NORTE DE SANTANDER",null,null,null,null,null,null,null,null,null,"68190 - CIMITARRA-SANTANDER",null,"70708 - SAN MARCOS-SUCRE",null,"73319 - GUAMO-TOLIMA",null,"76306 - GINEBRA-VALLE DEL CAUCA",null,null,null,null,null,null,null,"080 - BAHREIN"]
[null,null,null,null,null,null,null,null,null,null,null,null,null,null,null,"68 - SANTANDER","68","SANTANDER",null,"05093 - BETULIA-ANTIOQUIA",null,null,null,null,null,null,null,null,null,null,null,null,"05093 - BETULIA-ANTIOQUIA",null,null,null,"08770 - SUAN-ATLANTICO",null,null,null,"13458 - MONTECRISTO-BOLIVAR",null,"15187 - CHIVATA-BOYACA",null,"17653 - SALAMINA-CALDAS",null,null,null,null,null,"19473 - MORALES-CAUCA",null,"20621 - LA PAZ-CESAR",null,"27450 - MEDIO SAN JUAN-CHOCO",null,"23660 - SAHAGUN-CORDOBA",null,"25214 - COTA-CUNDINAMARCA",null,null,null,null,null,"41518 - PAICOL-HUILA",null,null,null,"47660 - SABANAS DE SAN ANGEL-MAGDALENA",null,"50573 - PUERTO LOPEZ-META",null,"52260 - EL TAMBO-NARIÑO",null,"54398 - LA PLAYA-NORTE DE SANTANDER",null,null,null,null,null,null,null,null,null,"68207 - CONCEPCION-SANTANDER",null,"70713 - SAN ONOFRE-SUCRE",null,"73347 - HERVEO-TOLIMA",null,"76318 - GUACARI-VALLE DEL CAUCA",null,null,null,null,null,null,null,"081 - BANGLADESH"]
[null,null,null,null,null,null,null,null,null,null,null,null,null,null,null,"70 - SUCRE","70","SUCRE",null,"05101 - CIUDAD BOLIVAR-ANTIOQUIA",null,null,null,null,null,null,null,null,null,null,null,null,"05101 - CIUDAD BOLIVAR-ANTIOQUIA",null,null,null,"08832 - TUBARA-ATLANTICO",null,null,null,"13468 - MOMPOS-BOLIVAR",null,"15189 - CIENEGA-BOYACA",null,"17662 - SAMANA-CALDAS",null,null,null,null,null,"19513 - PADILLA-CAUCA",null,"20710 - SAN ALBERTO-CESAR",null,"27491 - NOVITA-CHOCO",null,"23670 - SAN ANDRES SOTAVENTO-CORDOBA",null,"25224 - CUCUNUBA-CUNDINAMARCA",null,null,null,null,null,"41524 - PALERMO-HUILA",null,null,null,"47675 - SALAMINA-MAGDALENA",null,"50577 - PUERTO LLERAS-META",null,"52287 - FUNES-NARIÑO",null,"54405 - LOS PATIOS-NORTE DE SANTANDER",null,null,null,null,null,null,null,null,null,"68209 - CONFINES-SANTANDER",null,"70717 - SAN PEDRO-SUCRE",null,"73349 - HONDA-TOLIMA",null,"76364 - JAMUNDI-VALLE DEL CAUCA",null,null,null,null,null,null,null,"083 - BARBADOS"]
[null,null,null,null,null,null,null,null,null,null,null,null,null,null,null,"73 - TOLIMA","73","TOLIMA",null,"05107 - BRICEÑO-ANTIOQUIA",null,null,null,null,null,null,null,null,null,null,null,null,"05107 - BRICEÑO-ANTIOQUIA",null,null,null,"08849 - USIACURI-ATLANTICO",null,null,null,"13473 - MORALES-BOLIVAR",null,"15204 - COMBITA-BOYACA",null,"17665 - SAN JOSE-CALDAS",null,null,null,null,null,"19517 - PAEZ-CAUCA",null,"20750 - SAN DIEGO-CESAR",null,"27495 - NUQUI-CHOCO",null,"23672 - SAN ANTERO-CORDOBA",null,"25245 - EL COLEGIO-CUNDINAMARCA",null,null,null,null,null,"41530 - PALESTINA-HUILA",null,null,null,"47692 - SAN SEBASTIAN DE BUENAVISTA-MAGDALENA",null,"50590 - PUERTO RICO-META",null,"52317 - GUACHUCAL-NARIÑO",null,"54418 - LOURDES-NORTE DE SANTANDER",null,null,null,null,null,null,null,null,null,"68211 - CONTRATACION-SANTANDER",null,"70742 - SAN LUIS DE SINCE-SUCRE",null,"73352 - ICONONZO-TOLIMA",null,"76377 - LA CUMBRE-VALLE DEL CAUCA",null,null,null,null,null,null,null,"087 - BELGICA"]
[null,null,null,null,null,null,null,null,null,null,null,null,null,null,null,"76 - VALLE DEL CAUCA","76","VALLE",null,"05113 - BURITICA-ANTIOQUIA",null,null,null,null,null,null,null,null,null,null,null,null,"05113 - BURITICA-ANTIOQUIA",null,null,null,null,null,null,null,"13549 - PINILLOS-BOLIVAR",null,"15212 - COPER-BOYACA",null,"17777 - SUPIA-CALDAS",null,null,null,null,null,"19532 - PATIA-CAUCA",null,"20770 - SAN MARTIN-CESAR",null,"27580 - RIO IRO-CHOCO",null,"23675 - SAN BERNARDO DEL VIENTO-CORDOBA",null,"25258 - EL PEÑON-CUNDINAMARCA",null,null,null,null,null,"41548 - PITAL-HUILA",null,null,null,"47703 - SAN ZENON-MAGDALENA",null,"50606 - RESTREPO-META",null,"52320 - GUAITARILLA-NARIÑO",null,"54480 - MUTISCUA-NORTE DE SANTANDER",null,null,null,null,null,null,null,null,null,"68217 - COROMORO-SANTANDER",null,"70771 - SUCRE-SUCRE",null,"73408 - LERIDA-TOLIMA",null,"76400 - LA UNION-VALLE DEL CAUCA",null,null,null,null,null,null,null,"088 - BELICE"]
[null,null,null,null,null,null,null,null,null,null,null,null,null,null,null,"81 - ARAUCA","81","ARAUCA",null,"05120 - CACERES-ANTIOQUIA",null,null,null,null,null,null,null,null,null,null,null,null,"05120 - CACERES-ANTIOQUIA",null,null,null,null,null,null,null,"13580 - REGIDOR-BOLIVAR",null,"15215 - CORRALES-BOYACA",null,"17867 - VICTORIA-CALDAS",null,null,null,null,null,"19533 - PIAMONTE-CAUCA",null,"20787 - TAMALAMEQUE-CESAR",null,"27600 - RIO QUITO-CHOCO",null,"23678 - SAN CARLOS-CORDOBA",null,"25260 - EL ROSAL-CUNDINAMARCA",null,null,null,null,null,"41551 - PITALITO-HUILA",null,null,null,"47707 - SANTA ANA-MAGDALENA",null,"50680 - SAN CARLOS DE GUAROA-META",null,"52323 - GUALMATAN-NARIÑO",null,"54498 - OCAÑA-NORTE DE SANTANDER",null,null,null,null,null,null,null,null,null,"68229 - CURITI-SANTANDER",null,"70820 - SANTIAGO DE TOLU-SUCRE",null,"73411 - LIBANO-TOLIMA",null,"76403 - LA VICTORIA-VALLE DEL CAUCA",null,null,null,null,null,null,null,"090 - BERMUDAS"]
[null,null,null,null,null,null,null,null,null,null,null,null,null,null,null,"85 - CASANARE","85","CASANARE",null,"05125 - CAICEDO-ANTIOQUIA",null,null,null,null,null,null,null,null,null,null,null,null,"05125 - CAICEDO-ANTIOQUIA",null,null,null,null,null,null,null,"13600 - RIO VIEJO-BOLIVAR",null,"15218 - COVARACHIA-BOYACA",null,"17873 - VILLAMARIA-CALDAS",null,null,null,null,null,"19548 - PIENDAMO-CAUCA",null,null,null,"27615 - BELEN DE BAJIRA (CASERIO DE RIOSUCIO)-CHOCO",null,"23686 - SAN PELAYO-CORDOBA",null,"25269 - FACATATIVA-CUNDINAMARCA",null,null,null,null,null,"41615 - RIVERA-HUILA",null,null,null,"47720 - SANTA BARBARA DE PINTO-MAGDALENA",null,"50683 - SAN JUAN DE ARAMA-META",null,"52352 - ILES-NARIÑO",null,"54518 - PAMPLONA-NORTE DE SANTANDER",null,null,null,null,null,null,null,null,null,"68235 - EL CARMEN DE CHUCURI-SANTANDER",null,"70823 - TOLU VIEJO-SUCRE",null,"73443 - MARIQUITA-TOLIMA",null,"76497 - OBANDO-VALLE DEL CAUCA",null,null,null,null,null,null,null,"091 - BELARUS"]
[null,null,null,null,null,null,null,null,null,null,null,null,null,null,null,"86 - PUTUMAYO","86","PUTUMAYO",null,"05129 - CALDAS-ANTIOQUIA",null,null,null,null,null,null,null,null,null,null,null,null,"05129 - CALDAS-ANTIOQUIA",null,null,null,null,null,null,null,"13620 - SAN CRISTOBAL-BOLIVAR",null,"15223 - CUBARA-BOYACA",null,"17877 - VITERBO-CALDAS",null,null,null,null,null,"19573 - PUERTO TEJADA-CAUCA",null,null,null,"27660 - SAN JOSE DEL PALMAR-CHOCO",null,"23807 - TIERRALTA-CORDOBA",null,"25279 - FOMEQUE-CUNDINAMARCA",null,null,null,null,null,"41660 - SALADOBLANCO-HUILA",null,null,null,"47745 - SITIONUEVO-MAGDALENA",null,"50686 - SAN JUANITO-META",null,"52354 - IMUES-NARIÑO",null,"54520 - PAMPLONITA-NORTE DE SANTANDER",null,null,null,null,null,null,null,null,null,"68245 - EL GUACAMAYO-SANTANDER",null,null,null,"73449 - MELGAR-TOLIMA",null,"76520 - PALMIRA-VALLE DEL CAUCA",null,null,null,null,null,null,null,"093 - BIRMANIA (MYANMAR)"]
[null,null,null,null,null,null,null,null,null,null,null,null,null,null,null,"88 - SAN ANDRES Y PROVIDENCIA","88","SAN_ANDRES_Y_PROVIDENCIA",null,"05134 - CAMPAMENTO-ANTIOQUIA",null,null,null,null,null,null,null,null,null,null,null,null,"05134 - CAMPAMENTO-ANTIOQUIA",null,null,null,null,null,null,null,"13647 - SAN ESTANISLAO-BOLIVAR",null,"15224 - CUCAITA-BOYACA",null,null,null,null,null,null,null,"19585 - PURACE-CAUCA",null,null,null,"27745 - SIPI-CHOCO",null,"23855 - VALENCIA-CORDOBA",null,"25281 - FOSCA-CUNDINAMARCA",null,null,null,null,null,"41668 - SAN AGUSTIN-HUILA",null,null,null,"47798 - TENERIFE-MAGDALENA",null,"50689 - SAN MARTIN-META",null,"52356 - IPIALES-NARIÑO",null,"54553 - PUERTO SANTANDER-NORTE DE SANTANDER",null,null,null,null,null,null,null,null,null,"68250 - EL PEÑON-SANTANDER",null,null,null,"73461 - MURILLO-TOLIMA",null,"76563 - PRADERA-VALLE DEL CAUCA",null,null,null,null,null,null,null,"097 - BOLIVIA"]
[null,null,null,null,null,null,null,null,null,null,null,null,null,null,null,"91 - AMAZONAS","91","AMAZONAS",null,"05138 - CAÑASGORDAS-ANTIOQUIA",null,null,null,null,null,null,null,null,null,null,null,null,"05138 - CAÑASGORDAS-ANTIOQUIA",null,null,null,null,null,null,null,"13650 - SAN FERNANDO-BOLIVAR",null,"15226 - CUITIVA-BOYACA",null,null,null,null,null,null,null,"19622 - ROSAS-CAUCA",null,null,null,"27787 - TADO-CHOCO",null,null,null,"25286 - FUNZA-CUNDINAMARCA",null,null,null,null,null,"41676 - SANTA MARIA-HUILA",null,null,null,"47960 - ZAPAYAN-MAGDALENA",null,"50711 - VISTAHERMOSA-META",null,"52378 - LA CRUZ-NARIÑO",null,"54599 - RAGONVALIA-NORTE DE SANTANDER",null,null,null,null,null,null,null,null,null,"68255 - EL PLAYON-SANTANDER",null,null,null,"73483 - NATAGAIMA-TOLIMA",null,"76606 - RESTREPO-VALLE DEL CAUCA",null,null,null,null,null,null,null,"101 - BOTSWANA"]
[null,null,null,null,null,null,null,null,null,null,null,null,null,null,null,"94 - GUAINIA","94","GUAINIA",null,"05142 - CARACOLI-ANTIOQUIA",null,null,null,null,null,null,null,null,null,null,null,null,"05142 - CARACOLI-ANTIOQUIA",null,null,null,null,null,null,null,"13654 - SAN JACINTO-BOLIVAR",null,"15232 - CHIQUIZA-BOYACA",null,null,null,null,null,null,null,"19693 - SAN SEBASTIAN-CAUCA",null,null,null,"27800 - UNGUIA-CHOCO",null,null,null,"25288 - FUQUENE-CUNDINAMARCA",null,null,null,null,null,"41770 - SUAZA-HUILA",null,null,null,"47980 - ZONA BANANERA-MAGDALENA",null,null,null,"52381 - LA FLORIDA-NARIÑO",null,"54660 - SALAZAR-NORTE DE SANTANDER",null,null,null,null,null,null,null,null,null,"68264 - ENCINO-SANTANDER",null,null,null,"73504 - ORTEGA-TOLIMA",null,"76616 - RIOFRIO-VALLE DEL CAUCA",null,null,null,null,null,null,null,"105 - BRASIL"]
[null,null,null,null,null,null,null,null,null,null,null,null,null,null,null,"95 - GUAVIARE","95","GUAVIARE",null,"05145 - CARAMANTA-ANTIOQUIA",null,null,null,null,null,null,null,null,null,null,null,null,"05145 - CARAMANTA-ANTIOQUIA",null,null,null,null,null,null,null,"13655 - SAN JACINTO DEL CAUCA-BOLIVAR",null,"15236 - CHIVOR-BOYACA",null,null,null,null,null,null,null,"19698 - SANTANDER DE QUILICHAO-CAUCA",null,null,null,"27810 - UNION PANAMERICANA-CHOCO",null,null,null,"25290 - FUSAGASUGA-CUNDINAMARCA",null,null,null,null,null,"41791 - TARQUI-HUILA",null,null,null,null,null,null,null,"52385 - LA LLANADA-NARIÑO",null,"54670 - SAN CALIXTO-NORTE DE SANTANDER",null,null,null,null,null,null,null,null,null,"68266 - ENCISO-SANTANDER",null,null,null,"73520 - PALOCABILDO-TOLIMA",null,"76622 - ROLDANILLO-VALLE DEL CAUCA",null,null,null,null,null,null,null,"108 - BRUNEI DARUSSALAM"]
[null,null,null,null,null,null,null,null,null,null,null,null,null,null,null,"97 - VAUPES","97","VAUPES",null,"05147 - CAREPA-ANTIOQUIA",null,null,null,null,null,null,null,null,null,null,null,null,"05147 - CAREPA-ANTIOQUIA",null,null,null,null,null,null,null,"13657 - SAN JUAN NEPOMUCENO-BOLIVAR",null,"15238 - DUITAMA-BOYACA",null,null,null,null,null,null,null,"19701 - SANTA ROSA-CAUCA",null,null,null,null,null,null,null,"25293 - GACHALA-CUNDINAMARCA",null,null,null,null,null,"41797 - TESALIA-HUILA",null,null,null,null,null,null,null,"52390 - LA TOLA-NARIÑO",null,"54673 - SAN CAYETANO-NORTE DE SANTANDER",null,null,null,null,null,null,null,null,null,"68271 - FLORIAN-SANTANDER",null,null,null,"73547 - PIEDRAS-TOLIMA",null,"76670 - SAN PEDRO-VALLE DEL CAUCA",null,null,null,null,null,null,null,"111 - BULGARIA"]
[null,null,null,null,null,null,null,null,null,null,null,null,null,null,null,"99 - VICHADA","99","VICHADA",null,"05148 - EL CARMEN DE VIBORAL-ANTIOQUIA",null,null,null,null,null,null,null,null,null,null,null,null,"05148 - EL CARMEN DE VIBORAL-ANTIOQUIA",null,null,null,null,null,null,null,"13667 - SAN MARTIN DE LOBA-BOLIVAR",null,"15244 - EL COCUY-BOYACA",null,null,null,null,null,null,null,"19743 - SILVIA-CAUCA",null,null,null,null,null,null,null,"25295 - GACHANCIPA-CUNDINAMARCA",null,null,null,null,null,"41799 - TELLO-HUILA",null,null,null,null,null,null,null,"52399 - LA UNION-NARIÑO",null,"54680 - SANTIAGO-NORTE DE SANTANDER",null,null,null,null,null,null,null,null,null,"68276 - FLORIDABLANCA-SANTANDER",null,null,null,"73555 - PLANADAS-TOLIMA",null,"76736 - SEVILLA-VALLE DEL CAUCA",null,null,null,null,null,null,null,"115 - BURUNDI"]
[null,null,null,null,null,null,null,null,null,null,null,null,null,null,null,null,null,null,null,"05150 - CAROLINA-ANTIOQUIA",null,null,null,null,null,null,null,null,null,null,null,null,"05150 - CAROLINA-ANTIOQUIA",null,null,null,null,null,null,null,"13670 - SAN PABLO-BOLIVAR",null,"15248 - EL ESPINO-BOYACA",null,null,null,null,null,null,null,"19760 - SOTARA-CAUCA",null,null,null,null,null,null,null,"25297 - GACHETA-CUNDINAMARCA",null,null,null,null,null,"41801 - TERUEL-HUILA",null,null,null,null,null,null,null,"52405 - LEIVA-NARIÑO",null,"54720 - SARDINATA-NORTE DE SANTANDER",null,null,null,null,null,null,null,null,null,"68296 - GALAN-SANTANDER",null,null,null,"73563 - PRADO-TOLIMA",null,"76823 - TORO-VALLE DEL CAUCA",null,null,null,null,null,null,null,"119 - BUTAN"]
[null,null,null,null,null,null,null,null,null,null,null,null,null,null,null,null,null,null,null,"05154 - CAUCASIA-ANTIOQUIA",null,null,null,null,null,null,null,null,null,null,null,null,"05154 - CAUCASIA-ANTIOQUIA",null,null,null,null,null,null,null,"13673 - SANTA CATALINA-BOLIVAR",null,"15272 - FIRAVITOBA-BOYACA",null,null,null,null,null,null,null,"19780 - SUAREZ-CAUCA",null,null,null,null,null,null,null,"25299 - GAMA-CUNDINAMARCA",null,null,null,null,null,"41807 - TIMANA-HUILA",null,null,null,null,null,null,null,"52411 - LINARES-NARIÑO",null,"54743 - SILOS-NORTE DE SANTANDER",null,null,null,null,null,null,null,null,null,"68298 - GAMBITA-SANTANDER",null,null,null,"73585 - PURIFICACION-TOLIMA",null,"76828 - TRUJILLO-VALLE DEL CAUCA",null,null,null,null,null,null,null,"127 - CABO VERDE"]
[null,null,null,null,null,null,null,null,null,null,null,null,null,null,null,null,null,null,null,"05172 - CHIGORODO-ANTIOQUIA",null,null,null,null,null,null,null,null,null,null,null,null,"05172 - CHIGORODO-ANTIOQUIA",null,null,null,null,null,null,null,"13683 - SANTA ROSA-BOLIVAR",null,"15276 - FLORESTA-BOYACA",null,null,null,null,null,null,null,"19785 - SUCRE-CAUCA",null,null,null,null,null,null,null,"25307 - GIRARDOT-CUNDINAMARCA",null,null,null,null,null,"41872 - VILLAVIEJA-HUILA",null,null,null,null,null,null,null,"52418 - LOS ANDES-NARIÑO",null,"54800 - TEORAMA-NORTE DE SANTANDER",null,null,null,null,null,null,null,null,null,"68307 - GIRON-SANTANDER",null,null,null,"73616 - RIOBLANCO-TOLIMA",null,"76834 - TULUA-VALLE DEL CAUCA",null,null,null,null,null,null,null,"137 - CAIMAN - ISLAS"]
[null,null,null,null,null,null,null,null,null,null,null,null,null,null,null,null,null,null,null,"05190 - CISNEROS-ANTIOQUIA",null,null,null,null,null,null,null,null,null,null,null,null,"05190 - CISNEROS-ANTIOQUIA",null,null,null,null,null,null,null,"13688 - SANTA ROSA DEL SUR-BOLIVAR",null,"15293 - GACHANTIVA-BOYACA",null,null,null,null,null,null,null,"19807 - TIMBIO-CAUCA",null,null,null,null,null,null,null,"25312 - GRANADA-CUNDINAMARCA",null,null,null,null,null,"41885 - YAGUARA-HUILA",null,null,null,null,null,null,null,"52427 - MAGÜI-NARIÑO",null,"54810 - TIBU-NORTE DE SANTANDER",null,null,null,null,null,null,null,null,null,"68318 - GUACA-SANTANDER",null,null,null,"73622 - RONCESVALLES-TOLIMA",null,"76845 - ULLOA-VALLE DEL CAUCA",null,null,null,null,null,null,null,"141 - CAMBOYA (KAMPUCHEA)"]
[null,null,null,null,null,null,null,null,null,null,null,null,null,null,null,null,null,null,null,"05197 - COCORNA-ANTIOQUIA",null,null,null,null,null,null,null,null,null,null,null,null,"05197 - COCORNA-ANTIOQUIA",null,null,null,null,null,null,null,"13744 - SIMITI-BOLIVAR",null,"15296 - GAMEZA-BOYACA",null,null,null,null,null,null,null,"19809 - TIMBIQUI-CAUCA",null,null,null,null,null,null,null,"25317 - GUACHETA-CUNDINAMARCA",null,null,null,null,null,null,null,null,null,null,null,null,null,"52435 - MALLAMA-NARIÑO",null,"54820 - TOLEDO-NORTE DE SANTANDER",null,null,null,null,null,null,null,null,null,"68320 - GUADALUPE-SANTANDER",null,null,null,"73624 - ROVIRA-TOLIMA",null,"76863 - VERSALLES-VALLE DEL CAUCA",null,null,null,null,null,null,null,"145 - CAMERUN - REPUBLICA UNIDA DEL"]
[null,null,null,null,null,null,null,null,null,null,null,null,null,null,null,null,null,null,null,"05206 - CONCEPCION-ANTIOQUIA",null,null,null,null,null,null,null,null,null,null,null,null,"05206 - CONCEPCION-ANTIOQUIA",null,null,null,null,null,null,null,"13760 - SOPLAVIENTO-BOLIVAR",null,"15299 - GARAGOA-BOYACA",null,null,null,null,null,null,null,"19821 - TORIBIO-CAUCA",null,null,null,null,null,null,null,"25320 - GUADUAS-CUNDINAMARCA",null,null,null,null,null,null,null,null,null,null,null,null,null,"52473 - MOSQUERA-NARIÑO",null,"54871 - VILLA CARO-NORTE DE SANTANDER",null,null,null,null,null,null,null,null,null,"68322 - GUAPOTA-SANTANDER",null,null,null,"73671 - SALDAÑA-TOLIMA",null,"76869 - VIJES-VALLE DEL CAUCA",null,null,null,null,null,null,null,"149 - CANADA"]
[null,null,null,null,null,null,null,null,null,null,null,null,null,null,null,null,null,null,null,"05209 - CONCORDIA-ANTIOQUIA",null,null,null,null,null,null,null,null,null,null,null,null,"05209 - CONCORDIA-ANTIOQUIA",null,null,null,null,null,null,null,"13780 - TALAIGUA NUEVO-BOLIVAR",null,"15317 - GUACAMAYAS-BOYACA",null,null,null,null,null,null,null,"19824 - TOTORO-CAUCA",null,null,null,null,null,null,null,"25322 - GUASCA-CUNDINAMARCA",null,null,null,null,null,null,null,null,null,null,null,null,null,"52480 - NARIÑO-NARIÑO",null,"54874 - VILLA DEL ROSARIO-NORTE DE SANTANDER",null,null,null,null,null,null,null,null,null,"68324 - GUAVATA-SANTANDER",null,null,null,"73675 - SAN ANTONIO-TOLIMA",null,"76890 - YOTOCO-VALLE DEL CAUCA",null,null,null,null,null,null,null,"159 - SANTA SEDE"]
[null,null,null,null,null,null,null,null,null,null,null,null,null,null,null,null,null,null,null,"05212 - COPACABANA-ANTIOQUIA",null,null,null,null,null,null,null,null,null,null,null,null,"05212 - COPACABANA-ANTIOQUIA",null,null,null,null,null,null,null,"13810 - TIQUISIO-BOLIVAR",null,"15322 - GUATEQUE-BOYACA",null,null,null,null,null,null,null,"19835 - TUMACO-CAUCA",null,null,null,null,null,null,null,"25324 - GUATAQUI-CUNDINAMARCA",null,null,null,null,null,null,null,null,null,null,null,null,null,"52490 - OLAYA HERRERA-NARIÑO",null,null,null,null,null,null,null,null,null,null,null,"68327 - GÜEPSA-SANTANDER",null,null,null,"73678 - SAN LUIS-TOLIMA",null,"76892 - YUMBO-VALLE DEL CAUCA",null,null,null,null,null,null,null,"165 - COCOS (KEELING) - ISLAS"]
[null,null,null,null,null,null,null,null,null,null,null,null,null,null,null,null,null,null,null,"05234 - DABEIBA-ANTIOQUIA",null,null,null,null,null,null,null,null,null,null,null,null,"05234 - DABEIBA-ANTIOQUIA",null,null,null,null,null,null,null,"13836 - TURBACO-BOLIVAR",null,"15325 - GUAYATA-BOYACA",null,null,null,null,null,null,null,"19845 - VILLA RICA-CAUCA",null,null,null,null,null,null,null,"25326 - GUATAVITA-CUNDINAMARCA",null,null,null,null,null,null,null,null,null,null,null,null,null,"52506 - OSPINA-NARIÑO",null,null,null,null,null,null,null,null,null,null,null,"68344 - HATO-SANTANDER",null,null,null,"73686 - SANTA ISABEL-TOLIMA",null,"76895 - ZARZAL-VALLE DEL CAUCA",null,null,null,null,null,null,null,"169 - COLOMBIA"]
[null,null,null,null,null,null,null,null,null,null,null,null,null,null,null,null,null,null,null,"05237 - DON MATIAS-ANTIOQUIA",null,null,null,null,null,null,null,null,null,null,null,null,"05237 - DON MATIAS-ANTIOQUIA",null,null,null,null,null,null,null,"13838 - TURBANA-BOLIVAR",null,"15332 - GÜICAN-BOYACA",null,null,null,null,null,null,null,null,null,null,null,null,null,null,null,"25328 - GUAYABAL DE SIQUIMA-CUNDINAMARCA",null,null,null,null,null,null,null,null,null,null,null,null,null,"52520 - FRANCISCO PIZARRO-NARIÑO",null,null,null,null,null,null,null,null,null,null,null,"68368 - JESUS MARIA-SANTANDER",null,null,null,"73770 - SUAREZ-TOLIMA",null,null,null,null,null,null,null,null,null,"173 - COMORAS"]
[null,null,null,null,null,null,null,null,null,null,null,null,null,null,null,null,null,null,null,"05240 - EBEJICO-ANTIOQUIA",null,null,null,null,null,null,null,null,null,null,null,null,"05240 - EBEJICO-ANTIOQUIA",null,null,null,null,null,null,null,"13873 - VILLANUEVA-BOLIVAR",null,"15362 - IZA-BOYACA",null,null,null,null,null,null,null,null,null,null,null,null,null,null,null,"25335 - GUAYABETAL-CUNDINAMARCA",null,null,null,null,null,null,null,null,null,null,null,null,null,"52540 - POLICARPA-NARIÑO",null,null,null,null,null,null,null,null,null,null,null,"68370 - JORDAN-SANTANDER",null,null,null,"73854 - VALLE DE SAN JUAN-TOLIMA",null,null,null,null,null,null,null,null,null,"177 - CONGO"]
[null,null,null,null,null,null,null,null,null,null,null,null,null,null,null,null,null,null,null,"05250 - EL BAGRE-ANTIOQUIA",null,null,null,null,null,null,null,null,null,null,null,null,"05250 - EL BAGRE-ANTIOQUIA",null,null,null,null,null,null,null,"13894 - ZAMBRANO-BOLIVAR",null,"15367 - JENESANO-BOYACA",null,null,null,null,null,null,null,null,null,null,null,null,null,null,null,"25339 - GUTIERREZ-CUNDINAMARCA",null,null,null,null,null,null,null,null,null,null,null,null,null,"52560 - POTOSI-NARIÑO",null,null,null,null,null,null,null,null,null,null,null,"68377 - LA BELLEZA-SANTANDER",null,null,null,"73861 - VENADILLO-TOLIMA",null,null,null,null,null,null,null,null,null,"183 - COOK - ISLAS"]
[null,null,null,null,null,null,null,null,null,null,null,null,null,null,null,null,null,null,null,"05264 - ENTRERRIOS-ANTIOQUIA",null,null,null,null,null,null,null,null,null,null,null,null,"05264 - ENTRERRIOS-ANTIOQUIA",null,null,null,null,null,null,null,null,null,"15368 - JERICO-BOYACA",null,null,null,null,null,null,null,null,null,null,null,null,null,null,null,"25368 - JERUSALEN-CUNDINAMARCA",null,null,null,null,null,null,null,null,null,null,null,null,null,"52565 - PROVIDENCIA-NARIÑO",null,null,null,null,null,null,null,null,null,null,null,"68385 - LANDAZURI-SANTANDER",null,null,null,"73870 - VILLAHERMOSA-TOLIMA",null,null,null,null,null,null,null,null,null,"187 - COREA (NORTE) - REPUBLICA POPULAR DEMOCRATICA DE"]
[null,null,null,null,null,null,null,null,null,null,null,null,null,null,null,null,null,null,null,"05266 - ENVIGADO-ANTIOQUIA",null,null,null,null,null,null,null,null,null,null,null,null,"05266 - ENVIGADO-ANTIOQUIA",null,null,null,null,null,null,null,null,null,"15377 - LABRANZAGRANDE-BOYACA",null,null,null,null,null,null,null,null,null,null,null,null,null,null,null,"25372 - JUNIN-CUNDINAMARCA",null,null,null,null,null,null,null,null,null,null,null,null,null,"52573 - PUERRES-NARIÑO",null,null,null,null,null,null,null,null,null,null,null,"68397 - LA PAZ-SANTANDER",null,null,null,"73873 - VILLARRICA-TOLIMA",null,null,null,null,null,null,null,null,null,"190 - COREA (SUR) - REPUBLICA DE"]
[null,null,null,null,null,null,null,null,null,null,null,null,null,null,null,null,null,null,null,"05282 - FREDONIA-ANTIOQUIA",null,null,null,null,null,null,null,null,null,null,null,null,"05282 - FREDONIA-ANTIOQUIA",null,null,null,null,null,null,null,null,null,"15380 - LA CAPILLA-BOYACA",null,null,null,null,null,null,null,null,null,null,null,null,null,null,null,"25377 - LA CALERA-CUNDINAMARCA",null,null,null,null,null,null,null,null,null,null,null,null,null,"52585 - PUPIALES-NARIÑO",null,null,null,null,null,null,null,null,null,null,null,"68406 - LEBRIJA-SANTANDER",null,null,null,null,null,null,null,null,null,null,null,null,null,"193 - COSTA DE MARFIL"]
[null,null,null,null,null,null,null,null,null,null,null,null,null,null,null,null,null,null,null,"05284 - FRONTINO-ANTIOQUIA",null,null,null,null,null,null,null,null,null,null,null,null,"05284 - FRONTINO-ANTIOQUIA",null,null,null,null,null,null,null,null,null,"15401 - LA VICTORIA-BOYACA",null,null,null,null,null,null,null,null,null,null,null,null,null,null,null,"25386 - LA MESA-CUNDINAMARCA",null,null,null,null,null,null,null,null,null,null,null,null,null,"52612 - RICAURTE-NARIÑO",null,null,null,null,null,null,null,null,null,null,null,"68418 - LOS SANTOS-SANTANDER",null,null,null,null,null,null,null,null,null,null,null,null,null,"196 - COSTA RICA"]
[null,null,null,null,null,null,null,null,null,null,null,null,null,null,null,null,null,null,null,"05306 - GIRALDO-ANTIOQUIA",null,null,null,null,null,null,null,null,null,null,null,null,"05306 - GIRALDO-ANTIOQUIA",null,null,null,null,null,null,null,null,null,"15403 - LA UVITA-BOYACA",null,null,null,null,null,null,null,null,null,null,null,null,null,null,null,"25394 - LA PALMA-CUNDINAMARCA",null,null,null,null,null,null,null,null,null,null,null,null,null,"52621 - ROBERTO PAYAN-NARIÑO",null,null,null,null,null,null,null,null,null,null,null,"68425 - MACARAVITA-SANTANDER",null,null,null,null,null,null,null,null,null,null,null,null,null,"198 - CROACIA"]
[null,null,null,null,null,null,null,null,null,null,null,null,null,null,null,null,null,null,null,"05308 - GIRARDOTA-ANTIOQUIA",null,null,null,null,null,null,null,null,null,null,null,null,"05308 - GIRARDOTA-ANTIOQUIA",null,null,null,null,null,null,null,null,null,"15407 - VILLA DE LEYVA-BOYACA",null,null,null,null,null,null,null,null,null,null,null,null,null,null,null,"25398 - LA PEÑA-CUNDINAMARCA",null,null,null,null,null,null,null,null,null,null,null,null,null,"52678 - SAMANIEGO-NARIÑO",null,null,null,null,null,null,null,null,null,null,null,"68432 - MALAGA-SANTANDER",null,null,null,null,null,null,null,null,null,null,null,null,null,"199 - CUBA"]
[null,null,null,null,null,null,null,null,null,null,null,null,null,null,null,null,null,null,null,"05310 - GOMEZ PLATA-ANTIOQUIA",null,null,null,null,null,null,null,null,null,null,null,null,"05310 - GOMEZ PLATA-ANTIOQUIA",null,null,null,null,null,null,null,null,null,"15425 - MACANAL-BOYACA",null,null,null,null,null,null,null,null,null,null,null,null,null,null,null,"25402 - LA VEGA-CUNDINAMARCA",null,null,null,null,null,null,null,null,null,null,null,null,null,"52683 - SANDONA-NARIÑO",null,null,null,null,null,null,null,null,null,null,null,"68444 - MATANZA-SANTANDER",null,null,null,null,null,null,null,null,null,null,null,null,null,"203 - CHAD"]
[null,null,null,null,null,null,null,null,null,null,null,null,null,null,null,null,null,null,null,"05313 - GRANADA-ANTIOQUIA",null,null,null,null,null,null,null,null,null,null,null,null,"05313 - GRANADA-ANTIOQUIA",null,null,null,null,null,null,null,null,null,"15442 - MARIPI-BOYACA",null,null,null,null,null,null,null,null,null,null,null,null,null,null,null,"25407 - LENGUAZAQUE-CUNDINAMARCA",null,null,null,null,null,null,null,null,null,null,null,null,null,"52685 - SAN BERNARDO-NARIÑO",null,null,null,null,null,null,null,null,null,null,null,"68464 - MOGOTES-SANTANDER",null,null,null,null,null,null,null,null,null,null,null,null,null,"211 - CHILE"]
[null,null,null,null,null,null,null,null,null,null,null,null,null,null,null,null,null,null,null,"05315 - GUADALUPE-ANTIOQUIA",null,null,null,null,null,null,null,null,null,null,null,null,"05315 - GUADALUPE-ANTIOQUIA",null,null,null,null,null,null,null,null,null,"15455 - MIRAFLORES-BOYACA",null,null,null,null,null,null,null,null,null,null,null,null,null,null,null,"25426 - MACHETA-CUNDINAMARCA",null,null,null,null,null,null,null,null,null,null,null,null,null,"52687 - SAN LORENZO-NARIÑO",null,null,null,null,null,null,null,null,null,null,null,"68468 - MOLAGAVITA-SANTANDER",null,null,null,null,null,null,null,null,null,null,null,null,null,"215 - CHINA"]
[null,null,null,null,null,null,null,null,null,null,null,null,null,null,null,null,null,null,null,"05318 - GUARNE-ANTIOQUIA",null,null,null,null,null,null,null,null,null,null,null,null,"05318 - GUARNE-ANTIOQUIA",null,null,null,null,null,null,null,null,null,"15464 - MONGUA-BOYACA",null,null,null,null,null,null,null,null,null,null,null,null,null,null,null,"25430 - MADRID-CUNDINAMARCA",null,null,null,null,null,null,null,null,null,null,null,null,null,"52693 - SAN PABLO-NARIÑO",null,null,null,null,null,null,null,null,null,null,null,"68498 - OCAMONTE-SANTANDER",null,null,null,null,null,null,null,null,null,null,null,null,null,"218 - TAIWAN (FORMOSA)"]
[null,null,null,null,null,null,null,null,null,null,null,null,null,null,null,null,null,null,null,"05321 - GUATAPE-ANTIOQUIA",null,null,null,null,null,null,null,null,null,null,null,null,"05321 - GUATAPE-ANTIOQUIA",null,null,null,null,null,null,null,null,null,"15466 - MONGUI-BOYACA",null,null,null,null,null,null,null,null,null,null,null,null,null,null,null,"25436 - MANTA-CUNDINAMARCA",null,null,null,null,null,null,null,null,null,null,null,null,null,"52694 - SAN PEDRO DE CARTAGO-NARIÑO",null,null,null,null,null,null,null,null,null,null,null,"68500 - OIBA-SANTANDER",null,null,null,null,null,null,null,null,null,null,null,null,null,"221 - CHIPRE"]
[null,null,null,null,null,null,null,null,null,null,null,null,null,null,null,null,null,null,null,"05347 - HELICONIA-ANTIOQUIA",null,null,null,null,null,null,null,null,null,null,null,null,"05347 - HELICONIA-ANTIOQUIA",null,null,null,null,null,null,null,null,null,"15469 - MONIQUIRA-BOYACA",null,null,null,null,null,null,null,null,null,null,null,null,null,null,null,"25438 - MEDINA-CUNDINAMARCA",null,null,null,null,null,null,null,null,null,null,null,null,null,"52696 - SANTA BARBARA-NARIÑO",null,null,null,null,null,null,null,null,null,null,null,"68502 - ONZAGA-SANTANDER",null,null,null,null,null,null,null,null,null,null,null,null,null,"229 - BENIN"]
[null,null,null,null,null,null,null,null,null,null,null,null,null,null,null,null,null,null,null,"05353 - HISPANIA-ANTIOQUIA",null,null,null,null,null,null,null,null,null,null,null,null,"05353 - HISPANIA-ANTIOQUIA",null,null,null,null,null,null,null,null,null,"15476 - MOTAVITA-BOYACA",null,null,null,null,null,null,null,null,null,null,null,null,null,null,null,"25473 - MOSQUERA-CUNDINAMARCA",null,null,null,null,null,null,null,null,null,null,null,null,null,"52699 - SANTACRUZ-NARIÑO",null,null,null,null,null,null,null,null,null,null,null,"68522 - PALMAR-SANTANDER",null,null,null,null,null,null,null,null,null,null,null,null,null,"232 - DINAMARCA"]
[null,null,null,null,null,null,null,null,null,null,null,null,null,null,null,null,null,null,null,"05360 - ITAGÜI-ANTIOQUIA",null,null,null,null,null,null,null,null,null,null,null,null,"05360 - ITAGÜI-ANTIOQUIA",null,null,null,null,null,null,null,null,null,"15480 - MUZO-BOYACA",null,null,null,null,null,null,null,null,null,null,null,null,null,null,null,"25483 - NARIÑO-CUNDINAMARCA",null,null,null,null,null,null,null,null,null,null,null,null,null,"52720 - SAPUYES-NARIÑO",null,null,null,null,null,null,null,null,null,null,null,"68524 - PALMAS DEL SOCORRO-SANTANDER",null,null,null,null,null,null,null,null,null,null,null,null,null,"235 - DOMINICA"]
[null,null,null,null,null,null,null,null,null,null,null,null,null,null,null,null,null,null,null,"05361 - ITUANGO-ANTIOQUIA",null,null,null,null,null,null,null,null,null,null,null,null,"05361 - ITUANGO-ANTIOQUIA",null,null,null,null,null,null,null,null,null,"15491 - NOBSA-BOYACA",null,null,null,null,null,null,null,null,null,null,null,null,null,null,null,"25486 - NEMOCON-CUNDINAMARCA",null,null,null,null,null,null,null,null,null,null,null,null,null,"52786 - TAMINANGO-NARIÑO",null,null,null,null,null,null,null,null,null,null,null,"68533 - PARAMO-SANTANDER",null,null,null,null,null,null,null,null,null,null,null,null,null,"239 - ECUADOR"]
[null,null,null,null,null,null,null,null,null,null,null,null,null,null,null,null,null,null,null,"05364 - JARDIN-ANTIOQUIA",null,null,null,null,null,null,null,null,null,null,null,null,"05364 - JARDIN-ANTIOQUIA",null,null,null,null,null,null,null,null,null,"15494 - NUEVO COLON-BOYACA",null,null,null,null,null,null,null,null,null,null,null,null,null,null,null,"25488 - NILO-CUNDINAMARCA",null,null,null,null,null,null,null,null,null,null,null,null,null,"52788 - TANGUA-NARIÑO",null,null,null,null,null,null,null,null,null,null,null,"68547 - PIEDECUESTA-SANTANDER",null,null,null,null,null,null,null,null,null,null,null,null,null,"240 - EGIPTO"]
[null,null,null,null,null,null,null,null,null,null,null,null,null,null,null,null,null,null,null,"05368 - JERICO-ANTIOQUIA",null,null,null,null,null,null,null,null,null,null,null,null,"05368 - JERICO-ANTIOQUIA",null,null,null,null,null,null,null,null,null,"15500 - OICATA-BOYACA",null,null,null,null,null,null,null,null,null,null,null,null,null,null,null,"25489 - NIMAIMA-CUNDINAMARCA",null,null,null,null,null,null,null,null,null,null,null,null,null,"52835 - SAN ANDRES DE TUMACO-NARIÑO",null,null,null,null,null,null,null,null,null,null,null,"68549 - PINCHOTE-SANTANDER",null,null,null,null,null,null,null,null,null,null,null,null,null,"242 - EL SALVADOR"]
[null,null,null,null,null,null,null,null,null,null,null,null,null,null,null,null,null,null,null,"05376 - LA CEJA-ANTIOQUIA",null,null,null,null,null,null,null,null,null,null,null,null,"05376 - LA CEJA-ANTIOQUIA",null,null,null,null,null,null,null,null,null,"15507 - OTANCHE-BOYACA",null,null,null,null,null,null,null,null,null,null,null,null,null,null,null,"25491 - NOCAIMA-CUNDINAMARCA",null,null,null,null,null,null,null,null,null,null,null,null,null,"52838 - TUQUERRES-NARIÑO",null,null,null,null,null,null,null,null,null,null,null,"68572 - PUENTE NACIONAL-SANTANDER",null,null,null,null,null,null,null,null,null,null,null,null,null,"243 - ERITREA"]
[null,null,null,null,null,null,null,null,null,null,null,null,null,null,null,null,null,null,null,"05380 - LA ESTRELLA-ANTIOQUIA",null,null,null,null,null,null,null,null,null,null,null,null,"05380 - LA ESTRELLA-ANTIOQUIA",null,null,null,null,null,null,null,null,null,"15511 - PACHAVITA-BOYACA",null,null,null,null,null,null,null,null,null,null,null,null,null,null,null,"25506 - VENECIA-CUNDINAMARCA",null,null,null,null,null,null,null,null,null,null,null,null,null,"52885 - YACUANQUER-NARIÑO",null,null,null,null,null,null,null,null,null,null,null,"68573 - PUERTO PARRA-SANTANDER",null,null,null,null,null,null,null,null,null,null,null,null,null,"244 - EMIRATOS ARABES UNIDOS"]
[null,null,null,null,null,null,null,null,null,null,null,null,null,null,null,null,null,null,null,"05390 - LA PINTADA-ANTIOQUIA",null,null,null,null,null,null,null,null,null,null,null,null,"05390 - LA PINTADA-ANTIOQUIA",null,null,null,null,null,null,null,null,null,"15514 - PAEZ-BOYACA",null,null,null,null,null,null,null,null,null,null,null,null,null,null,null,"25513 - PACHO-CUNDINAMARCA",null,null,null,null,null,null,null,null,null,null,null,null,null,null,null,null,null,null,null,null,null,null,null,null,null,"68575 - PUERTO WILCHES-SANTANDER",null,null,null,null,null,null,null,null,null,null,null,null,null,"245 - ESPAÑA"]
[null,null,null,null,null,null,null,null,null,null,null,null,null,null,null,null,null,null,null,"05400 - LA UNION-ANTIOQUIA",null,null,null,null,null,null,null,null,null,null,null,null,"05400 - LA UNION-ANTIOQUIA",null,null,null,null,null,null,null,null,null,"15516 - PAIPA-BOYACA",null,null,null,null,null,null,null,null,null,null,null,null,null,null,null,"25518 - PAIME-CUNDINAMARCA",null,null,null,null,null,null,null,null,null,null,null,null,null,null,null,null,null,null,null,null,null,null,null,null,null,"68615 - RIONEGRO-SANTANDER",null,null,null,null,null,null,null,null,null,null,null,null,null,"246 - ESLOVAQUIA"]
[null,null,null,null,null,null,null,null,null,null,null,null,null,null,null,null,null,null,null,"05411 - LIBORINA-ANTIOQUIA",null,null,null,null,null,null,null,null,null,null,null,null,"05411 - LIBORINA-ANTIOQUIA",null,null,null,null,null,null,null,null,null,"15518 - PAJARITO-BOYACA",null,null,null,null,null,null,null,null,null,null,null,null,null,null,null,"25524 - PANDI-CUNDINAMARCA",null,null,null,null,null,null,null,null,null,null,null,null,null,null,null,null,null,null,null,null,null,null,null,null,null,"68655 - SABANA DE TORRES-SANTANDER",null,null,null,null,null,null,null,null,null,null,null,null,null,"247 - ESLOVENIA"]
[null,null,null,null,null,null,null,null,null,null,null,null,null,null,null,null,null,null,null,"05425 - MACEO-ANTIOQUIA",null,null,null,null,null,null,null,null,null,null,null,null,"05425 - MACEO-ANTIOQUIA",null,null,null,null,null,null,null,null,null,"15522 - PANQUEBA-BOYACA",null,null,null,null,null,null,null,null,null,null,null,null,null,null,null,"25530 - PARATEBUENO-CUNDINAMARCA",null,null,null,null,null,null,null,null,null,null,null,null,null,null,null,null,null,null,null,null,null,null,null,null,null,"68669 - SAN ANDRES-SANTANDER",null,null,null,null,null,null,null,null,null,null,null,null,null,"249 - ESTADOS UNIDOS"]
[null,null,null,null,null,null,null,null,null,null,null,null,null,null,null,null,null,null,null,"05440 - MARINILLA-ANTIOQUIA",null,null,null,null,null,null,null,null,null,null,null,null,"05440 - MARINILLA-ANTIOQUIA",null,null,null,null,null,null,null,null,null,"15531 - PAUNA-BOYACA",null,null,null,null,null,null,null,null,null,null,null,null,null,null,null,"25535 - PASCA-CUNDINAMARCA",null,null,null,null,null,null,null,null,null,null,null,null,null,null,null,null,null,null,null,null,null,null,null,null,null,"68673 - SAN BENITO-SANTANDER",null,null,null,null,null,null,null,null,null,null,null,null,null,"251- ESTONIA"]
[null,null,null,null,null,null,null,null,null,null,null,null,null,null,null,null,null,null,null,"05467 - MONTEBELLO-ANTIOQUIA",null,null,null,null,null,null,null,null,null,null,null,null,"05467 - MONTEBELLO-ANTIOQUIA",null,null,null,null,null,null,null,null,null,"15533 - PAYA-BOYACA",null,null,null,null,null,null,null,null,null,null,null,null,null,null,null,"25572 - PUERTO SALGAR-CUNDINAMARCA",null,null,null,null,null,null,null,null,null,null,null,null,null,null,null,null,null,null,null,null,null,null,null,null,null,"68679 - SAN GIL-SANTANDER",null,null,null,null,null,null,null,null,null,null,null,null,null,"253 - ETIOPIA"]
[null,null,null,null,null,null,null,null,null,null,null,null,null,null,null,null,null,null,null,"05475 - MURINDO-ANTIOQUIA",null,null,null,null,null,null,null,null,null,null,null,null,"05475 - MURINDO-ANTIOQUIA",null,null,null,null,null,null,null,null,null,"15537 - PAZ DE RIO-BOYACA",null,null,null,null,null,null,null,null,null,null,null,null,null,null,null,"25580 - PULI-CUNDINAMARCA",null,null,null,null,null,null,null,null,null,null,null,null,null,null,null,null,null,null,null,null,null,null,null,null,null,"68682 - SAN JOAQUIN-SANTANDER",null,null,null,null,null,null,null,null,null,null,null,null,null,"259 - FEROE - ISLAS"]
[null,null,null,null,null,null,null,null,null,null,null,null,null,null,null,null,null,null,null,"05480 - MUTATA-ANTIOQUIA",null,null,null,null,null,null,null,null,null,null,null,null,"05480 - MUTATA-ANTIOQUIA",null,null,null,null,null,null,null,null,null,"15542 - PESCA-BOYACA",null,null,null,null,null,null,null,null,null,null,null,null,null,null,null,"25592 - QUEBRADANEGRA-CUNDINAMARCA",null,null,null,null,null,null,null,null,null,null,null,null,null,null,null,null,null,null,null,null,null,null,null,null,null,"68684 - SAN JOSE DE MIRANDA-SANTANDER",null,null,null,null,null,null,null,null,null,null,null,null,null,"267 - FILIPINAS"]
[null,null,null,null,null,null,null,null,null,null,null,null,null,null,null,null,null,null,null,"05483 - NARIÑO-ANTIOQUIA",null,null,null,null,null,null,null,null,null,null,null,null,"05483 - NARIÑO-ANTIOQUIA",null,null,null,null,null,null,null,null,null,"15550 - PISBA-BOYACA",null,null,null,null,null,null,null,null,null,null,null,null,null,null,null,"25594 - QUETAME-CUNDINAMARCA",null,null,null,null,null,null,null,null,null,null,null,null,null,null,null,null,null,null,null,null,null,null,null,null,null,"68686 - SAN MIGUEL-SANTANDER",null,null,null,null,null,null,null,null,null,null,null,null,null,"271 - FINLANDIA"]
[null,null,null,null,null,null,null,null,null,null,null,null,null,null,null,null,null,null,null,"05490 - NECOCLI-ANTIOQUIA",null,null,null,null,null,null,null,null,null,null,null,null,"05490 - NECOCLI-ANTIOQUIA",null,null,null,null,null,null,null,null,null,"15572 - PUERTO BOYACA-BOYACA",null,null,null,null,null,null,null,null,null,null,null,null,null,null,null,"25596 - QUIPILE-CUNDINAMARCA",null,null,null,null,null,null,null,null,null,null,null,null,null,null,null,null,null,null,null,null,null,null,null,null,null,"68689 - SAN VICENTE DE CHUCURI-SANTANDER",null,null,null,null,null,null,null,null,null,null,null,null,null,"275 - FRANCIA"]
[null,null,null,null,null,null,null,null,null,null,null,null,null,null,null,null,null,null,null,"05495 - NECHI-ANTIOQUIA",null,null,null,null,null,null,null,null,null,null,null,null,"05495 - NECHI-ANTIOQUIA",null,null,null,null,null,null,null,null,null,"15580 - QUIPAMA-BOYACA",null,null,null,null,null,null,null,null,null,null,null,null,null,null,null,"25599 - APULO-CUNDINAMARCA",null,null,null,null,null,null,null,null,null,null,null,null,null,null,null,null,null,null,null,null,null,null,null,null,null,"68705 - SANTA BARBARA-SANTANDER",null,null,null,null,null,null,null,null,null,null,null,null,null,"281 - GABON"]
[null,null,null,null,null,null,null,null,null,null,null,null,null,null,null,null,null,null,null,"05501 - OLAYA-ANTIOQUIA",null,null,null,null,null,null,null,null,null,null,null,null,"05501 - OLAYA-ANTIOQUIA",null,null,null,null,null,null,null,null,null,"15599 - RAMIRIQUI-BOYACA",null,null,null,null,null,null,null,null,null,null,null,null,null,null,null,"25612 - RICAURTE-CUNDINAMARCA",null,null,null,null,null,null,null,null,null,null,null,null,null,null,null,null,null,null,null,null,null,null,null,null,null,"68720 - SANTA HELENA DEL OPON-SANTANDER",null,null,null,null,null,null,null,null,null,null,null,null,null,"285 - GAMBIA"]
[null,null,null,null,null,null,null,null,null,null,null,null,null,null,null,null,null,null,null,"05541 - PEÑOL-ANTIOQUIA",null,null,null,null,null,null,null,null,null,null,null,null,"05541 - PEÑOL-ANTIOQUIA",null,null,null,null,null,null,null,null,null,"15600 - RAQUIRA-BOYACA",null,null,null,null,null,null,null,null,null,null,null,null,null,null,null,"25645 - SAN ANTONIO DEL TEQUENDAMA-CUNDINAMARCA",null,null,null,null,null,null,null,null,null,null,null,null,null,null,null,null,null,null,null,null,null,null,null,null,null,"68745 - SIMACOTA-SANTANDER",null,null,null,null,null,null,null,null,null,null,null,null,null,"287 - GEORGIA"]
[null,null,null,null,null,null,null,null,null,null,null,null,null,null,null,null,null,null,null,"05543 - PEQUE-ANTIOQUIA",null,null,null,null,null,null,null,null,null,null,null,null,"05543 - PEQUE-ANTIOQUIA",null,null,null,null,null,null,null,null,null,"15621 - RONDON-BOYACA",null,null,null,null,null,null,null,null,null,null,null,null,null,null,null,"25649 - SAN BERNARDO-CUNDINAMARCA",null,null,null,null,null,null,null,null,null,null,null,null,null,null,null,null,null,null,null,null,null,null,null,null,null,"68755 - SOCORRO-SANTANDER",null,null,null,null,null,null,null,null,null,null,null,null,null,"289 - GHANA"]
[null,null,null,null,null,null,null,null,null,null,null,null,null,null,null,null,null,null,null,"05576 - PUEBLORRICO-ANTIOQUIA",null,null,null,null,null,null,null,null,null,null,null,null,"05576 - PUEBLORRICO-ANTIOQUIA",null,null,null,null,null,null,null,null,null,"15632 - SABOYA-BOYACA",null,null,null,null,null,null,null,null,null,null,null,null,null,null,null,"25653 - SAN CAYETANO-CUNDINAMARCA",null,null,null,null,null,null,null,null,null,null,null,null,null,null,null,null,null,null,null,null,null,null,null,null,null,"68770 - SUAITA-SANTANDER",null,null,null,null,null,null,null,null,null,null,null,null,null,"293 - GIBRALTAR"]
[null,null,null,null,null,null,null,null,null,null,null,null,null,null,null,null,null,null,null,"05579 - PUERTO BERRIO-ANTIOQUIA",null,null,null,null,null,null,null,null,null,null,null,null,"05579 - PUERTO BERRIO-ANTIOQUIA",null,null,null,null,null,null,null,null,null,"15638 - SACHICA-BOYACA",null,null,null,null,null,null,null,null,null,null,null,null,null,null,null,"25658 - SAN FRANCISCO-CUNDINAMARCA",null,null,null,null,null,null,null,null,null,null,null,null,null,null,null,null,null,null,null,null,null,null,null,null,null,"68773 - SUCRE-SANTANDER",null,null,null,null,null,null,null,null,null,null,null,null,null,"297 - GRANADA"]
[null,null,null,null,null,null,null,null,null,null,null,null,null,null,null,null,null,null,null,"05585 - PUERTO NARE-ANTIOQUIA",null,null,null,null,null,null,null,null,null,null,null,null,"05585 - PUERTO NARE-ANTIOQUIA",null,null,null,null,null,null,null,null,null,"15646 - SAMACA-BOYACA",null,null,null,null,null,null,null,null,null,null,null,null,null,null,null,"25662 - SAN JUAN DE RIO SECO-CUNDINAMARCA",null,null,null,null,null,null,null,null,null,null,null,null,null,null,null,null,null,null,null,null,null,null,null,null,null,"68780 - SURATA-SANTANDER",null,null,null,null,null,null,null,null,null,null,null,null,null,"301 - GRECIA"]
[null,null,null,null,null,null,null,null,null,null,null,null,null,null,null,null,null,null,null,"05591 - PUERTO TRIUNFO-ANTIOQUIA",null,null,null,null,null,null,null,null,null,null,null,null,"05591 - PUERTO TRIUNFO-ANTIOQUIA",null,null,null,null,null,null,null,null,null,"15660 - SAN EDUARDO-BOYACA",null,null,null,null,null,null,null,null,null,null,null,null,null,null,null,"25718 - SASAIMA-CUNDINAMARCA",null,null,null,null,null,null,null,null,null,null,null,null,null,null,null,null,null,null,null,null,null,null,null,null,null,"68820 - TONA-SANTANDER",null,null,null,null,null,null,null,null,null,null,null,null,null,"305 - GROENLANDIA"]
[null,null,null,null,null,null,null,null,null,null,null,null,null,null,null,null,null,null,null,"05604 - REMEDIOS-ANTIOQUIA",null,null,null,null,null,null,null,null,null,null,null,null,"05604 - REMEDIOS-ANTIOQUIA",null,null,null,null,null,null,null,null,null,"15664 - SAN JOSE DE PARE-BOYACA",null,null,null,null,null,null,null,null,null,null,null,null,null,null,null,"25736 - SESQUILE-CUNDINAMARCA",null,null,null,null,null,null,null,null,null,null,null,null,null,null,null,null,null,null,null,null,null,null,null,null,null,"68855 - VALLE DE SAN JOSE-SANTANDER",null,null,null,null,null,null,null,null,null,null,null,null,null,"309 - GUADALUPE"]
[null,null,null,null,null,null,null,null,null,null,null,null,null,null,null,null,null,null,null,"05607 - RETIRO-ANTIOQUIA",null,null,null,null,null,null,null,null,null,null,null,null,"05607 - RETIRO-ANTIOQUIA",null,null,null,null,null,null,null,null,null,"15667 - SAN LUIS DE GACENO-BOYACA",null,null,null,null,null,null,null,null,null,null,null,null,null,null,null,"25740 - SIBATE-CUNDINAMARCA",null,null,null,null,null,null,null,null,null,null,null,null,null,null,null,null,null,null,null,null,null,null,null,null,null,"68861 - VELEZ-SANTANDER",null,null,null,null,null,null,null,null,null,null,null,null,null,"313 - GUAM"]
[null,null,null,null,null,null,null,null,null,null,null,null,null,null,null,null,null,null,null,"05615 - RIONEGRO-ANTIOQUIA",null,null,null,null,null,null,null,null,null,null,null,null,"05615 - RIONEGRO-ANTIOQUIA",null,null,null,null,null,null,null,null,null,"15673 - SAN MATEO-BOYACA",null,null,null,null,null,null,null,null,null,null,null,null,null,null,null,"25743 - SILVANIA-CUNDINAMARCA",null,null,null,null,null,null,null,null,null,null,null,null,null,null,null,null,null,null,null,null,null,null,null,null,null,"68867 - VETAS-SANTANDER",null,null,null,null,null,null,null,null,null,null,null,null,null,"317 - GUATEMALA"]
[null,null,null,null,null,null,null,null,null,null,null,null,null,null,null,null,null,null,null,"05628 - SABANALARGA-ANTIOQUIA",null,null,null,null,null,null,null,null,null,null,null,null,"05628 - SABANALARGA-ANTIOQUIA",null,null,null,null,null,null,null,null,null,"15676 - SAN MIGUEL DE SEMA-BOYACA",null,null,null,null,null,null,null,null,null,null,null,null,null,null,null,"25745 - SIMIJACA-CUNDINAMARCA",null,null,null,null,null,null,null,null,null,null,null,null,null,null,null,null,null,null,null,null,null,null,null,null,null,"68872 - VILLANUEVA-SANTANDER",null,null,null,null,null,null,null,null,null,null,null,null,null,"325 - GUAYANA FRANCESA"]
[null,null,null,null,null,null,null,null,null,null,null,null,null,null,null,null,null,null,null,"05631 - SABANETA-ANTIOQUIA",null,null,null,null,null,null,null,null,null,null,null,null,"05631 - SABANETA-ANTIOQUIA",null,null,null,null,null,null,null,null,null,"15681 - SAN PABLO DE BORBUR-BOYACA",null,null,null,null,null,null,null,null,null,null,null,null,null,null,null,"25754 - SOACHA-CUNDINAMARCA",null,null,null,null,null,null,null,null,null,null,null,null,null,null,null,null,null,null,null,null,null,null,null,null,null,"68895 - ZAPATOCA-SANTANDER",null,null,null,null,null,null,null,null,null,null,null,null,null,"329 - GUINEA"]
[null,null,null,null,null,null,null,null,null,null,null,null,null,null,null,null,null,null,null,"05642 - SALGAR-ANTIOQUIA",null,null,null,null,null,null,null,null,null,null,null,null,"05642 - SALGAR-ANTIOQUIA",null,null,null,null,null,null,null,null,null,"15686 - SANTANA-BOYACA",null,null,null,null,null,null,null,null,null,null,null,null,null,null,null,"25758 - SOPO-CUNDINAMARCA",null,null,null,null,null,null,null,null,null,null,null,null,null,null,null,null,null,null,null,null,null,null,null,null,null,null,null,null,null,null,null,null,null,null,null,null,null,null,null,"331- GUINEA ECUATORIAL"]
[null,null,null,null,null,null,null,null,null,null,null,null,null,null,null,null,null,null,null,"05647 - SAN ANDRES  DE CUERQUIA-ANTIOQUIA",null,null,null,null,null,null,null,null,null,null,null,null,"05647 - SAN ANDRES  DE CUERQUIA-ANTIOQUIA",null,null,null,null,null,null,null,null,null,"15690 - SANTA MARIA-BOYACA",null,null,null,null,null,null,null,null,null,null,null,null,null,null,null,"25769 - SUBACHOQUE-CUNDINAMARCA",null,null,null,null,null,null,null,null,null,null,null,null,null,null,null,null,null,null,null,null,null,null,null,null,null,null,null,null,null,null,null,null,null,null,null,null,null,null,null,"334 - GUINEA"]
[null,null,null,null,null,null,null,null,null,null,null,null,null,null,null,null,null,null,null,"05649 - SAN CARLOS-ANTIOQUIA",null,null,null,null,null,null,null,null,null,null,null,null,"05649 - SAN CARLOS-ANTIOQUIA",null,null,null,null,null,null,null,null,null,"15693 - SANTA ROSA DE VITERBO-BOYACA",null,null,null,null,null,null,null,null,null,null,null,null,null,null,null,"25772 - SUESCA-CUNDINAMARCA",null,null,null,null,null,null,null,null,null,null,null,null,null,null,null,null,null,null,null,null,null,null,null,null,null,null,null,null,null,null,null,null,null,null,null,null,null,null,null,"337 - GUYANA"]
[null,null,null,null,null,null,null,null,null,null,null,null,null,null,null,null,null,null,null,"05652 - SAN FRANCISCO-ANTIOQUIA",null,null,null,null,null,null,null,null,null,null,null,null,"05652 - SAN FRANCISCO-ANTIOQUIA",null,null,null,null,null,null,null,null,null,"15696 - SANTA SOFIA-BOYACA",null,null,null,null,null,null,null,null,null,null,null,null,null,null,null,"25777 - SUPATA-CUNDINAMARCA",null,null,null,null,null,null,null,null,null,null,null,null,null,null,null,null,null,null,null,null,null,null,null,null,null,null,null,null,null,null,null,null,null,null,null,null,null,null,null,"341 - HAITI"]
[null,null,null,null,null,null,null,null,null,null,null,null,null,null,null,null,null,null,null,"05656 - SAN JERONIMO-ANTIOQUIA",null,null,null,null,null,null,null,null,null,null,null,null,"05656 - SAN JERONIMO-ANTIOQUIA",null,null,null,null,null,null,null,null,null,"15720 - SATIVANORTE-BOYACA",null,null,null,null,null,null,null,null,null,null,null,null,null,null,null,"25779 - SUSA-CUNDINAMARCA",null,null,null,null,null,null,null,null,null,null,null,null,null,null,null,null,null,null,null,null,null,null,null,null,null,null,null,null,null,null,null,null,null,null,null,null,null,null,null,"345 - HONDURAS"]
[null,null,null,null,null,null,null,null,null,null,null,null,null,null,null,null,null,null,null,"05658 - SAN JOSE DE LA MONTAÑA-ANTIOQUIA",null,null,null,null,null,null,null,null,null,null,null,null,"05658 - SAN JOSE DE LA MONTAÑA-ANTIOQUIA",null,null,null,null,null,null,null,null,null,"15723 - SATIVASUR-BOYACA",null,null,null,null,null,null,null,null,null,null,null,null,null,null,null,"25781 - SUTATAUSA-CUNDINAMARCA",null,null,null,null,null,null,null,null,null,null,null,null,null,null,null,null,null,null,null,null,null,null,null,null,null,null,null,null,null,null,null,null,null,null,null,null,null,null,null,"351 - HONG KONG"]
[null,null,null,null,null,null,null,null,null,null,null,null,null,null,null,null,null,null,null,"05659 - SAN JUAN DE URABA-ANTIOQUIA",null,null,null,null,null,null,null,null,null,null,null,null,"05659 - SAN JUAN DE URABA-ANTIOQUIA",null,null,null,null,null,null,null,null,null,"15740 - SIACHOQUE-BOYACA",null,null,null,null,null,null,null,null,null,null,null,null,null,null,null,"25785 - TABIO-CUNDINAMARCA",null,null,null,null,null,null,null,null,null,null,null,null,null,null,null,null,null,null,null,null,null,null,null,null,null,null,null,null,null,null,null,null,null,null,null,null,null,null,null,"355 - HUNGRIA"]
[null,null,null,null,null,null,null,null,null,null,null,null,null,null,null,null,null,null,null,"05660 - SAN LUIS-ANTIOQUIA",null,null,null,null,null,null,null,null,null,null,null,null,"05660 - SAN LUIS-ANTIOQUIA",null,null,null,null,null,null,null,null,null,"15753 - SOATA-BOYACA",null,null,null,null,null,null,null,null,null,null,null,null,null,null,null,"25793 - TAUSA-CUNDINAMARCA",null,null,null,null,null,null,null,null,null,null,null,null,null,null,null,null,null,null,null,null,null,null,null,null,null,null,null,null,null,null,null,null,null,null,null,null,null,null,null,"361 - INDIA"]
[null,null,null,null,null,null,null,null,null,null,null,null,null,null,null,null,null,null,null,"05664 - SAN PEDRO DE LOS MILAGROS-ANTIOQUIA",null,null,null,null,null,null,null,null,null,null,null,null,"05664 - SAN PEDRO DE LOS MILAGROS-ANTIOQUIA",null,null,null,null,null,null,null,null,null,"15755 - SOCOTA-BOYACA",null,null,null,null,null,null,null,null,null,null,null,null,null,null,null,"25797 - TENA-CUNDINAMARCA",null,null,null,null,null,null,null,null,null,null,null,null,null,null,null,null,null,null,null,null,null,null,null,null,null,null,null,null,null,null,null,null,null,null,null,null,null,null,null,"365 - INDONESIA"]
[null,null,null,null,null,null,null,null,null,null,null,null,null,null,null,null,null,null,null,"05665 - SAN PEDRO DE URABA-ANTIOQUIA",null,null,null,null,null,null,null,null,null,null,null,null,"05665 - SAN PEDRO DE URABA-ANTIOQUIA",null,null,null,null,null,null,null,null,null,"15757 - SOCHA-BOYACA",null,null,null,null,null,null,null,null,null,null,null,null,null,null,null,"25799 - TENJO-CUNDINAMARCA",null,null,null,null,null,null,null,null,null,null,null,null,null,null,null,null,null,null,null,null,null,null,null,null,null,null,null,null,null,null,null,null,null,null,null,null,null,null,null,"369 - IRAK"]
[null,null,null,null,null,null,null,null,null,null,null,null,null,null,null,null,null,null,null,"05667 - SAN RAFAEL-ANTIOQUIA",null,null,null,null,null,null,null,null,null,null,null,null,"05667 - SAN RAFAEL-ANTIOQUIA",null,null,null,null,null,null,null,null,null,"15759 - SOGAMOSO-BOYACA",null,null,null,null,null,null,null,null,null,null,null,null,null,null,null,"25805 - TIBACUY-CUNDINAMARCA",null,null,null,null,null,null,null,null,null,null,null,null,null,null,null,null,null,null,null,null,null,null,null,null,null,null,null,null,null,null,null,null,null,null,null,null,null,null,null,"372 - IRAN - REPUBLICA ISLAMICA DEL"]
[null,null,null,null,null,null,null,null,null,null,null,null,null,null,null,null,null,null,null,"05670 - SAN ROQUE-ANTIOQUIA",null,null,null,null,null,null,null,null,null,null,null,null,"05670 - SAN ROQUE-ANTIOQUIA",null,null,null,null,null,null,null,null,null,"15761 - SOMONDOCO-BOYACA",null,null,null,null,null,null,null,null,null,null,null,null,null,null,null,"25807 - TIBIRITA-CUNDINAMARCA",null,null,null,null,null,null,null,null,null,null,null,null,null,null,null,null,null,null,null,null,null,null,null,null,null,null,null,null,null,null,null,null,null,null,null,null,null,null,null,"375 - IRLANDA (EIRE)"]
[null,null,null,null,null,null,null,null,null,null,null,null,null,null,null,null,null,null,null,"05674 - SAN VICENTE-ANTIOQUIA",null,null,null,null,null,null,null,null,null,null,null,null,"05674 - SAN VICENTE-ANTIOQUIA",null,null,null,null,null,null,null,null,null,"15762 - SORA-BOYACA",null,null,null,null,null,null,null,null,null,null,null,null,null,null,null,"25815 - TOCAIMA-CUNDINAMARCA",null,null,null,null,null,null,null,null,null,null,null,null,null,null,null,null,null,null,null,null,null,null,null,null,null,null,null,null,null,null,null,null,null,null,null,null,null,null,null,"379 - ISLANDIA"]
[null,null,null,null,null,null,null,null,null,null,null,null,null,null,null,null,null,null,null,"05679 - SANTA BARBARA-ANTIOQUIA",null,null,null,null,null,null,null,null,null,null,null,null,"05679 - SANTA BARBARA-ANTIOQUIA",null,null,null,null,null,null,null,null,null,"15763 - SOTAQUIRA-BOYACA",null,null,null,null,null,null,null,null,null,null,null,null,null,null,null,"25817 - TOCANCIPA-CUNDINAMARCA",null,null,null,null,null,null,null,null,null,null,null,null,null,null,null,null,null,null,null,null,null,null,null,null,null,null,null,null,null,null,null,null,null,null,null,null,null,null,null,"383 - ISRAEL"]
[null,null,null,null,null,null,null,null,null,null,null,null,null,null,null,null,null,null,null,"05686 - SANTA ROSA DE OSOS-ANTIOQUIA",null,null,null,null,null,null,null,null,null,null,null,null,"05686 - SANTA ROSA DE OSOS-ANTIOQUIA",null,null,null,null,null,null,null,null,null,"15764 - SORACA-BOYACA",null,null,null,null,null,null,null,null,null,null,null,null,null,null,null,"25823 - TOPAIPI-CUNDINAMARCA",null,null,null,null,null,null,null,null,null,null,null,null,null,null,null,null,null,null,null,null,null,null,null,null,null,null,null,null,null,null,null,null,null,null,null,null,null,null,null,"386 - ITALIA"]
[null,null,null,null,null,null,null,null,null,null,null,null,null,null,null,null,null,null,null,"05690 - SANTO DOMINGO-ANTIOQUIA",null,null,null,null,null,null,null,null,null,null,null,null,"05690 - SANTO DOMINGO-ANTIOQUIA",null,null,null,null,null,null,null,null,null,"15774 - SUSACON-BOYACA",null,null,null,null,null,null,null,null,null,null,null,null,null,null,null,"25839 - UBALA-CUNDINAMARCA",null,null,null,null,null,null,null,null,null,null,null,null,null,null,null,null,null,null,null,null,null,null,null,null,null,null,null,null,null,null,null,null,null,null,null,null,null,null,null,"391 - JAMAICA"]
[null,null,null,null,null,null,null,null,null,null,null,null,null,null,null,null,null,null,null,"05697 - EL SANTUARIO-ANTIOQUIA",null,null,null,null,null,null,null,null,null,null,null,null,"05697 - EL SANTUARIO-ANTIOQUIA",null,null,null,null,null,null,null,null,null,"15776 - SUTAMARCHAN-BOYACA",null,null,null,null,null,null,null,null,null,null,null,null,null,null,null,"25841 - UBAQUE-CUNDINAMARCA",null,null,null,null,null,null,null,null,null,null,null,null,null,null,null,null,null,null,null,null,null,null,null,null,null,null,null,null,null,null,null,null,null,null,null,null,null,null,null,"399 - JAPON"]
[null,null,null,null,null,null,null,null,null,null,null,null,null,null,null,null,null,null,null,"05736 - SEGOVIA-ANTIOQUIA",null,null,null,null,null,null,null,null,null,null,null,null,"05736 - SEGOVIA-ANTIOQUIA",null,null,null,null,null,null,null,null,null,"15778 - SUTATENZA-BOYACA",null,null,null,null,null,null,null,null,null,null,null,null,null,null,null,"25843 - VILLA DE SAN DIEGO DE UBATE-CUNDINAMARCA",null,null,null,null,null,null,null,null,null,null,null,null,null,null,null,null,null,null,null,null,null,null,null,null,null,null,null,null,null,null,null,null,null,null,null,null,null,null,null,"403 - JORDANIA"]
[null,null,null,null,null,null,null,null,null,null,null,null,null,null,null,null,null,null,null,"05756 - SONSON-ANTIOQUIA",null,null,null,null,null,null,null,null,null,null,null,null,"05756 - SONSON-ANTIOQUIA",null,null,null,null,null,null,null,null,null,"15790 - TASCO-BOYACA",null,null,null,null,null,null,null,null,null,null,null,null,null,null,null,"25845 - UNE-CUNDINAMARCA",null,null,null,null,null,null,null,null,null,null,null,null,null,null,null,null,null,null,null,null,null,null,null,null,null,null,null,null,null,null,null,null,null,null,null,null,null,null,null,"406 - KAZAJSTAN"]
[null,null,null,null,null,null,null,null,null,null,null,null,null,null,null,null,null,null,null,"05761 - SOPETRAN-ANTIOQUIA",null,null,null,null,null,null,null,null,null,null,null,null,"05761 - SOPETRAN-ANTIOQUIA",null,null,null,null,null,null,null,null,null,"15798 - TENZA-BOYACA",null,null,null,null,null,null,null,null,null,null,null,null,null,null,null,"25851 - UTICA-CUNDINAMARCA",null,null,null,null,null,null,null,null,null,null,null,null,null,null,null,null,null,null,null,null,null,null,null,null,null,null,null,null,null,null,null,null,null,null,null,null,null,null,null,"410 - KENIA"]
[null,null,null,null,null,null,null,null,null,null,null,null,null,null,null,null,null,null,null,"05789 - TAMESIS-ANTIOQUIA",null,null,null,null,null,null,null,null,null,null,null,null,"05789 - TAMESIS-ANTIOQUIA",null,null,null,null,null,null,null,null,null,"15804 - TIBANA-BOYACA",null,null,null,null,null,null,null,null,null,null,null,null,null,null,null,"25862 - VERGARA-CUNDINAMARCA",null,null,null,null,null,null,null,null,null,null,null,null,null,null,null,null,null,null,null,null,null,null,null,null,null,null,null,null,null,null,null,null,null,null,null,null,null,null,null,"411 - KIRIBATI"]
[null,null,null,null,null,null,null,null,null,null,null,null,null,null,null,null,null,null,null,"05790 - TARAZA-ANTIOQUIA",null,null,null,null,null,null,null,null,null,null,null,null,"05790 - TARAZA-ANTIOQUIA",null,null,null,null,null,null,null,null,null,"15806 - TIBASOSA-BOYACA",null,null,null,null,null,null,null,null,null,null,null,null,null,null,null,"25867 - VIANI-CUNDINAMARCA",null,null,null,null,null,null,null,null,null,null,null,null,null,null,null,null,null,null,null,null,null,null,null,null,null,null,null,null,null,null,null,null,null,null,null,null,null,null,null,"412 - KIRGUIZISTAN"]
[null,null,null,null,null,null,null,null,null,null,null,null,null,null,null,null,null,null,null,"05792 - TARSO-ANTIOQUIA",null,null,null,null,null,null,null,null,null,null,null,null,"05792 - TARSO-ANTIOQUIA",null,null,null,null,null,null,null,null,null,"15808 - TINJACA-BOYACA",null,null,null,null,null,null,null,null,null,null,null,null,null,null,null,"25871 - VILLAGOMEZ-CUNDINAMARCA",null,null,null,null,null,null,null,null,null,null,null,null,null,null,null,null,null,null,null,null,null,null,null,null,null,null,null,null,null,null,null,null,null,null,null,null,null,null,null,"413 - KUWAIT"]
[null,null,null,null,null,null,null,null,null,null,null,null,null,null,null,null,null,null,null,"05809 - TITIRIBI-ANTIOQUIA",null,null,null,null,null,null,null,null,null,null,null,null,"05809 - TITIRIBI-ANTIOQUIA",null,null,null,null,null,null,null,null,null,"15810 - TIPACOQUE-BOYACA",null,null,null,null,null,null,null,null,null,null,null,null,null,null,null,"25873 - VILLAPINZON-CUNDINAMARCA",null,null,null,null,null,null,null,null,null,null,null,null,null,null,null,null,null,null,null,null,null,null,null,null,null,null,null,null,null,null,null,null,null,null,null,null,null,null,null,"420 - LAOS - REPUBLICA POPULAR DEMOCRATICA DE"]
[null,null,null,null,null,null,null,null,null,null,null,null,null,null,null,null,null,null,null,"05819 - TOLEDO-ANTIOQUIA",null,null,null,null,null,null,null,null,null,null,null,null,"05819 - TOLEDO-ANTIOQUIA",null,null,null,null,null,null,null,null,null,"15814 - TOCA-BOYACA",null,null,null,null,null,null,null,null,null,null,null,null,null,null,null,"25875 - VILLETA-CUNDINAMARCA",null,null,null,null,null,null,null,null,null,null,null,null,null,null,null,null,null,null,null,null,null,null,null,null,null,null,null,null,null,null,null,null,null,null,null,null,null,null,null,"426 - LESOTHO"]
[null,null,null,null,null,null,null,null,null,null,null,null,null,null,null,null,null,null,null,"05837 - TURBO-ANTIOQUIA",null,null,null,null,null,null,null,null,null,null,null,null,"05837 - TURBO-ANTIOQUIA",null,null,null,null,null,null,null,null,null,"15816 - TOGÜI-BOYACA",null,null,null,null,null,null,null,null,null,null,null,null,null,null,null,"25878 - VIOTA-CUNDINAMARCA",null,null,null,null,null,null,null,null,null,null,null,null,null,null,null,null,null,null,null,null,null,null,null,null,null,null,null,null,null,null,null,null,null,null,null,null,null,null,null,"429 - LETONIA"]
[null,null,null,null,null,null,null,null,null,null,null,null,null,null,null,null,null,null,null,"05842 - URAMITA-ANTIOQUIA",null,null,null,null,null,null,null,null,null,null,null,null,"05842 - URAMITA-ANTIOQUIA",null,null,null,null,null,null,null,null,null,"15820 - TOPAGA-BOYACA",null,null,null,null,null,null,null,null,null,null,null,null,null,null,null,"25885 - YACOPI-CUNDINAMARCA",null,null,null,null,null,null,null,null,null,null,null,null,null,null,null,null,null,null,null,null,null,null,null,null,null,null,null,null,null,null,null,null,null,null,null,null,null,null,null,"431 - LIBANO"]
[null,null,null,null,null,null,null,null,null,null,null,null,null,null,null,null,null,null,null,"05847 - URRAO-ANTIOQUIA",null,null,null,null,null,null,null,null,null,null,null,null,"05847 - URRAO-ANTIOQUIA",null,null,null,null,null,null,null,null,null,"15822 - TOTA-BOYACA",null,null,null,null,null,null,null,null,null,null,null,null,null,null,null,"25898 - ZIPACON-CUNDINAMARCA",null,null,null,null,null,null,null,null,null,null,null,null,null,null,null,null,null,null,null,null,null,null,null,null,null,null,null,null,null,null,null,null,null,null,null,null,null,null,null,"434 - LIBERIA"]
[null,null,null,null,null,null,null,null,null,null,null,null,null,null,null,null,null,null,null,"05854 - VALDIVIA-ANTIOQUIA",null,null,null,null,null,null,null,null,null,null,null,null,"05854 - VALDIVIA-ANTIOQUIA",null,null,null,null,null,null,null,null,null,"15832 - TUNUNGUA-BOYACA",null,null,null,null,null,null,null,null,null,null,null,null,null,null,null,"25899 - ZIPAQUIRA-CUNDINAMARCA",null,null,null,null,null,null,null,null,null,null,null,null,null,null,null,null,null,null,null,null,null,null,null,null,null,null,null,null,null,null,null,null,null,null,null,null,null,null,null,"438 - LIBIA (INCLUYE FEZZAN)"]
[null,null,null,null,null,null,null,null,null,null,null,null,null,null,null,null,null,null,null,"05856 - VALPARAISO-ANTIOQUIA",null,null,null,null,null,null,null,null,null,null,null,null,"05856 - VALPARAISO-ANTIOQUIA",null,null,null,null,null,null,null,null,null,"15835 - TURMEQUE-BOYACA",null,null,null,null,null,null,null,null,null,null,null,null,null,null,null,null,null,null,null,null,null,null,null,null,null,null,null,null,null,null,null,null,null,null,null,null,null,null,null,null,null,null,null,null,null,null,null,null,null,null,null,null,null,null,null,"440 - LIECHTENSTEIN"]
[null,null,null,null,null,null,null,null,null,null,null,null,null,null,null,null,null,null,null,"05858 - VEGACHI-ANTIOQUIA",null,null,null,null,null,null,null,null,null,null,null,null,"05858 - VEGACHI-ANTIOQUIA",null,null,null,null,null,null,null,null,null,"15837 - TUTA-BOYACA",null,null,null,null,null,null,null,null,null,null,null,null,null,null,null,null,null,null,null,null,null,null,null,null,null,null,null,null,null,null,null,null,null,null,null,null,null,null,null,null,null,null,null,null,null,null,null,null,null,null,null,null,null,null,null,"443 - LITUANIA"]
[null,null,null,null,null,null,null,null,null,null,null,null,null,null,null,null,null,null,null,"05861 - VENECIA-ANTIOQUIA",null,null,null,null,null,null,null,null,null,null,null,null,"05861 - VENECIA-ANTIOQUIA",null,null,null,null,null,null,null,null,null,"15839 - TUTAZA-BOYACA",null,null,null,null,null,null,null,null,null,null,null,null,null,null,null,null,null,null,null,null,null,null,null,null,null,null,null,null,null,null,null,null,null,null,null,null,null,null,null,null,null,null,null,null,null,null,null,null,null,null,null,null,null,null,null,"445 - LUXEMBURGO"]
[null,null,null,null,null,null,null,null,null,null,null,null,null,null,null,null,null,null,null,"05873 - VIGIA DEL FUERTE-ANTIOQUIA",null,null,null,null,null,null,null,null,null,null,null,null,"05873 - VIGIA DEL FUERTE-ANTIOQUIA",null,null,null,null,null,null,null,null,null,"15842 - UMBITA-BOYACA",null,null,null,null,null,null,null,null,null,null,null,null,null,null,null,null,null,null,null,null,null,null,null,null,null,null,null,null,null,null,null,null,null,null,null,null,null,null,null,null,null,null,null,null,null,null,null,null,null,null,null,null,null,null,null,"447 - MACAO"]
[null,null,null,null,null,null,null,null,null,null,null,null,null,null,null,null,null,null,null,"05885 - YALI-ANTIOQUIA",null,null,null,null,null,null,null,null,null,null,null,null,"05885 - YALI-ANTIOQUIA",null,null,null,null,null,null,null,null,null,"15861 - VENTAQUEMADA-BOYACA",null,null,null,null,null,null,null,null,null,null,null,null,null,null,null,null,null,null,null,null,null,null,null,null,null,null,null,null,null,null,null,null,null,null,null,null,null,null,null,null,null,null,null,null,null,null,null,null,null,null,null,null,null,null,null,"448 - MACEDONIA"]
[null,null,null,null,null,null,null,null,null,null,null,null,null,null,null,null,null,null,null,"05887 - YARUMAL-ANTIOQUIA",null,null,null,null,null,null,null,null,null,null,null,null,"05887 - YARUMAL-ANTIOQUIA",null,null,null,null,null,null,null,null,null,"15879 - VIRACACHA-BOYACA",null,null,null,null,null,null,null,null,null,null,null,null,null,null,null,null,null,null,null,null,null,null,null,null,null,null,null,null,null,null,null,null,null,null,null,null,null,null,null,null,null,null,null,null,null,null,null,null,null,null,null,null,null,null,null,"450 - MADAGASCAR"]
[null,null,null,null,null,null,null,null,null,null,null,null,null,null,null,null,null,null,null,"05890 - YOLOMBO-ANTIOQUIA",null,null,null,null,null,null,null,null,null,null,null,null,"05890 - YOLOMBO-ANTIOQUIA",null,null,null,null,null,null,null,null,null,"15897 - ZETAQUIRA-BOYACA",null,null,null,null,null,null,null,null,null,null,null,null,null,null,null,null,null,null,null,null,null,null,null,null,null,null,null,null,null,null,null,null,null,null,null,null,null,null,null,null,null,null,null,null,null,null,null,null,null,null,null,null,null,null,null,"455 - MALAYSIA"]
[null,null,null,null,null,null,null,null,null,null,null,null,null,null,null,null,null,null,null,"05893 - YONDO-ANTIOQUIA",null,null,null,null,null,null,null,null,null,null,null,null,"05893 - YONDO-ANTIOQUIA",null,null,null,null,null,null,null,null,null,null,null,null,null,null,null,null,null,null,null,null,null,null,null,null,null,null,null,null,null,null,null,null,null,null,null,null,null,null,null,null,null,null,null,null,null,null,null,null,null,null,null,null,null,null,null,null,null,null,null,null,null,null,null,null,null,"458 - MALAWI"]
[null,null,null,null,null,null,null,null,null,null,null,null,null,null,null,null,null,null,null,"05895 - ZARAGOZA-ANTIOQUIA",null,null,null,null,null,null,null,null,null,null,null,null,"05895 - ZARAGOZA-ANTIOQUIA",null,null,null,null,null,null,null,null,null,null,null,null,null,null,null,null,null,null,null,null,null,null,null,null,null,null,null,null,null,null,null,null,null,null,null,null,null,null,null,null,null,null,null,null,null,null,null,null,null,null,null,null,null,null,null,null,null,null,null,null,null,null,null,null,null,"461 - MALDIVAS"]
[null,null,null,null,null,null,null,null,null,null,null,null,null,null,null,null,null,null,null,null,null,null,null,null,null,null,null,null,null,null,null,null,null,null,null,null,null,null,null,null,null,null,null,null,null,null,null,null,null,null,null,null,null,null,null,null,null,null,null,null,null,null,null,null,null,null,null,null,null,null,null,null,null,null,null,null,null,null,null,null,null,null,null,null,null,null,null,null,null,null,null,null,null,null,null,null,null,null,"464 - MALI"]
[null,null,null,null,null,null,null,null,null,null,null,null,null,null,null,null,null,null,null,null,null,null,null,null,null,null,null,null,null,null,null,null,null,null,null,null,null,null,null,null,null,null,null,null,null,null,null,null,null,null,null,null,null,null,null,null,null,null,null,null,null,null,null,null,null,null,null,null,null,null,null,null,null,null,null,null,null,null,null,null,null,null,null,null,null,null,null,null,null,null,null,null,null,null,null,null,null,null,"467 - MALTA"]
[null,null,null,null,null,null,null,null,null,null,null,null,null,null,null,null,null,null,null,null,null,null,null,null,null,null,null,null,null,null,null,null,null,null,null,null,null,null,null,null,null,null,null,null,null,null,null,null,null,null,null,null,null,null,null,null,null,null,null,null,null,null,null,null,null,null,null,null,null,null,null,null,null,null,null,null,null,null,null,null,null,null,null,null,null,null,null,null,null,null,null,null,null,null,null,null,null,null,"469 - MARIANAS DEL NORTE - ISLAS"]
[null,null,null,null,null,null,null,null,null,null,null,null,null,null,null,null,null,null,null,null,null,null,null,null,null,null,null,null,null,null,null,null,null,null,null,null,null,null,null,null,null,null,null,null,null,null,null,null,null,null,null,null,null,null,null,null,null,null,null,null,null,null,null,null,null,null,null,null,null,null,null,null,null,null,null,null,null,null,null,null,null,null,null,null,null,null,null,null,null,null,null,null,null,null,null,null,null,null,"472 - MARSHALL - ISLAS"]
[null,null,null,null,null,null,null,null,null,null,null,null,null,null,null,null,null,null,null,null,null,null,null,null,null,null,null,null,null,null,null,null,null,null,null,null,null,null,null,null,null,null,null,null,null,null,null,null,null,null,null,null,null,null,null,null,null,null,null,null,null,null,null,null,null,null,null,null,null,null,null,null,null,null,null,null,null,null,null,null,null,null,null,null,null,null,null,null,null,null,null,null,null,null,null,null,null,null,"474 - MARRUECOS"]
[null,null,null,null,null,null,null,null,null,null,null,null,null,null,null,null,null,null,null,null,null,null,null,null,null,null,null,null,null,null,null,null,null,null,null,null,null,null,null,null,null,null,null,null,null,null,null,null,null,null,null,null,null,null,null,null,null,null,null,null,null,null,null,null,null,null,null,null,null,null,null,null,null,null,null,null,null,null,null,null,null,null,null,null,null,null,null,null,null,null,null,null,null,null,null,null,null,null,"477 - MARTINICA"]
[null,null,null,null,null,null,null,null,null,null,null,null,null,null,null,null,null,null,null,null,null,null,null,null,null,null,null,null,null,null,null,null,null,null,null,null,null,null,null,null,null,null,null,null,null,null,null,null,null,null,null,null,null,null,null,null,null,null,null,null,null,null,null,null,null,null,null,null,null,null,null,null,null,null,null,null,null,null,null,null,null,null,null,null,null,null,null,null,null,null,null,null,null,null,null,null,null,null,"485 - MAURICIO"]
[null,null,null,null,null,null,null,null,null,null,null,null,null,null,null,null,null,null,null,null,null,null,null,null,null,null,null,null,null,null,null,null,null,null,null,null,null,null,null,null,null,null,null,null,null,null,null,null,null,null,null,null,null,null,null,null,null,null,null,null,null,null,null,null,null,null,null,null,null,null,null,null,null,null,null,null,null,null,null,null,null,null,null,null,null,null,null,null,null,null,null,null,null,null,null,null,null,null,"488 - MAURITANIA"]
[null,null,null,null,null,null,null,null,null,null,null,null,null,null,null,null,null,null,null,null,null,null,null,null,null,null,null,null,null,null,null,null,null,null,null,null,null,null,null,null,null,null,null,null,null,null,null,null,null,null,null,null,null,null,null,null,null,null,null,null,null,null,null,null,null,null,null,null,null,null,null,null,null,null,null,null,null,null,null,null,null,null,null,null,null,null,null,null,null,null,null,null,null,null,null,null,null,null,"493 - MEXICO"]
[null,null,null,null,null,null,null,null,null,null,null,null,null,null,null,null,null,null,null,null,null,null,null,null,null,null,null,null,null,null,null,null,null,null,null,null,null,null,null,null,null,null,null,null,null,null,null,null,null,null,null,null,null,null,null,null,null,null,null,null,null,null,null,null,null,null,null,null,null,null,null,null,null,null,null,null,null,null,null,null,null,null,null,null,null,null,null,null,null,null,null,null,null,null,null,null,null,null,"494 - MICRONESIA - ESTADOS FEDERADOS DE"]
[null,null,null,null,null,null,null,null,null,null,null,null,null,null,null,null,null,null,null,null,null,null,null,null,null,null,null,null,null,null,null,null,null,null,null,null,null,null,null,null,null,null,null,null,null,null,null,null,null,null,null,null,null,null,null,null,null,null,null,null,null,null,null,null,null,null,null,null,null,null,null,null,null,null,null,null,null,null,null,null,null,null,null,null,null,null,null,null,null,null,null,null,null,null,null,null,null,null,"496 - MOLDAVIA"]
[null,null,null,null,null,null,null,null,null,null,null,null,null,null,null,null,null,null,null,null,null,null,null,null,null,null,null,null,null,null,null,null,null,null,null,null,null,null,null,null,null,null,null,null,null,null,null,null,null,null,null,null,null,null,null,null,null,null,null,null,null,null,null,null,null,null,null,null,null,null,null,null,null,null,null,null,null,null,null,null,null,null,null,null,null,null,null,null,null,null,null,null,null,null,null,null,null,null,"497 - MONGOLIA"]
[null,null,null,null,null,null,null,null,null,null,null,null,null,null,null,null,null,null,null,null,null,null,null,null,null,null,null,null,null,null,null,null,null,null,null,null,null,null,null,null,null,null,null,null,null,null,null,null,null,null,null,null,null,null,null,null,null,null,null,null,null,null,null,null,null,null,null,null,null,null,null,null,null,null,null,null,null,null,null,null,null,null,null,null,null,null,null,null,null,null,null,null,null,null,null,null,null,null,"498 -MONACO"]
[null,null,null,null,null,null,null,null,null,null,null,null,null,null,null,null,null,null,null,null,null,null,null,null,null,null,null,null,null,null,null,null,null,null,null,null,null,null,null,null,null,null,null,null,null,null,null,null,null,null,null,null,null,null,null,null,null,null,null,null,null,null,null,null,null,null,null,null,null,null,null,null,null,null,null,null,null,null,null,null,null,null,null,null,null,null,null,null,null,null,null,null,null,null,null,null,null,null,"501 - MONSERRAT - ISLA"]
[null,null,null,null,null,null,null,null,null,null,null,null,null,null,null,null,null,null,null,null,null,null,null,null,null,null,null,null,null,null,null,null,null,null,null,null,null,null,null,null,null,null,null,null,null,null,null,null,null,null,null,null,null,null,null,null,null,null,null,null,null,null,null,null,null,null,null,null,null,null,null,null,null,null,null,null,null,null,null,null,null,null,null,null,null,null,null,null,null,null,null,null,null,null,null,null,null,null,"505 - MOZAMBIQUE"]
[null,null,null,null,null,null,null,null,null,null,null,null,null,null,null,null,null,null,null,null,null,null,null,null,null,null,null,null,null,null,null,null,null,null,null,null,null,null,null,null,null,null,null,null,null,null,null,null,null,null,null,null,null,null,null,null,null,null,null,null,null,null,null,null,null,null,null,null,null,null,null,null,null,null,null,null,null,null,null,null,null,null,null,null,null,null,null,null,null,null,null,null,null,null,null,null,null,null,"507- NAMIBIA"]
[null,null,null,null,null,null,null,null,null,null,null,null,null,null,null,null,null,null,null,null,null,null,null,null,null,null,null,null,null,null,null,null,null,null,null,null,null,null,null,null,null,null,null,null,null,null,null,null,null,null,null,null,null,null,null,null,null,null,null,null,null,null,null,null,null,null,null,null,null,null,null,null,null,null,null,null,null,null,null,null,null,null,null,null,null,null,null,null,null,null,null,null,null,null,null,null,null,null,"508 - NAURU"]
[null,null,null,null,null,null,null,null,null,null,null,null,null,null,null,null,null,null,null,null,null,null,null,null,null,null,null,null,null,null,null,null,null,null,null,null,null,null,null,null,null,null,null,null,null,null,null,null,null,null,null,null,null,null,null,null,null,null,null,null,null,null,null,null,null,null,null,null,null,null,null,null,null,null,null,null,null,null,null,null,null,null,null,null,null,null,null,null,null,null,null,null,null,null,null,null,null,null,"511 - NAVIDAD (CHRISTMAS) - ISLAS"]
[null,null,null,null,null,null,null,null,null,null,null,null,null,null,null,null,null,null,null,null,null,null,null,null,null,null,null,null,null,null,null,null,null,null,null,null,null,null,null,null,null,null,null,null,null,null,null,null,null,null,null,null,null,null,null,null,null,null,null,null,null,null,null,null,null,null,null,null,null,null,null,null,null,null,null,null,null,null,null,null,null,null,null,null,null,null,null,null,null,null,null,null,null,null,null,null,null,null,"517 - NEPAL"]
[null,null,null,null,null,null,null,null,null,null,null,null,null,null,null,null,null,null,null,null,null,null,null,null,null,null,null,null,null,null,null,null,null,null,null,null,null,null,null,null,null,null,null,null,null,null,null,null,null,null,null,null,null,null,null,null,null,null,null,null,null,null,null,null,null,null,null,null,null,null,null,null,null,null,null,null,null,null,null,null,null,null,null,null,null,null,null,null,null,null,null,null,null,null,null,null,null,null,"521 - NICARAGUA"]
[null,null,null,null,null,null,null,null,null,null,null,null,null,null,null,null,null,null,null,null,null,null,null,null,null,null,null,null,null,null,null,null,null,null,null,null,null,null,null,null,null,null,null,null,null,null,null,null,null,null,null,null,null,null,null,null,null,null,null,null,null,null,null,null,null,null,null,null,null,null,null,null,null,null,null,null,null,null,null,null,null,null,null,null,null,null,null,null,null,null,null,null,null,null,null,null,null,null,"525 - NIGER"]
[null,null,null,null,null,null,null,null,null,null,null,null,null,null,null,null,null,null,null,null,null,null,null,null,null,null,null,null,null,null,null,null,null,null,null,null,null,null,null,null,null,null,null,null,null,null,null,null,null,null,null,null,null,null,null,null,null,null,null,null,null,null,null,null,null,null,null,null,null,null,null,null,null,null,null,null,null,null,null,null,null,null,null,null,null,null,null,null,null,null,null,null,null,null,null,null,null,null,"528 - NIGERIA"]
[null,null,null,null,null,null,null,null,null,null,null,null,null,null,null,null,null,null,null,null,null,null,null,null,null,null,null,null,null,null,null,null,null,null,null,null,null,null,null,null,null,null,null,null,null,null,null,null,null,null,null,null,null,null,null,null,null,null,null,null,null,null,null,null,null,null,null,null,null,null,null,null,null,null,null,null,null,null,null,null,null,null,null,null,null,null,null,null,null,null,null,null,null,null,null,null,null,null,"531 - NIUE - ISLA"]
[null,null,null,null,null,null,null,null,null,null,null,null,null,null,null,null,null,null,null,null,null,null,null,null,null,null,null,null,null,null,null,null,null,null,null,null,null,null,null,null,null,null,null,null,null,null,null,null,null,null,null,null,null,null,null,null,null,null,null,null,null,null,null,null,null,null,null,null,null,null,null,null,null,null,null,null,null,null,null,null,null,null,null,null,null,null,null,null,null,null,null,null,null,null,null,null,null,null,"535 - NORFOLK - ISLA"]
[null,null,null,null,null,null,null,null,null,null,null,null,null,null,null,null,null,null,null,null,null,null,null,null,null,null,null,null,null,null,null,null,null,null,null,null,null,null,null,null,null,null,null,null,null,null,null,null,null,null,null,null,null,null,null,null,null,null,null,null,null,null,null,null,null,null,null,null,null,null,null,null,null,null,null,null,null,null,null,null,null,null,null,null,null,null,null,null,null,null,null,null,null,null,null,null,null,null,"538 - NORUEGA"]
[null,null,null,null,null,null,null,null,null,null,null,null,null,null,null,null,null,null,null,null,null,null,null,null,null,null,null,null,null,null,null,null,null,null,null,null,null,null,null,null,null,null,null,null,null,null,null,null,null,null,null,null,null,null,null,null,null,null,null,null,null,null,null,null,null,null,null,null,null,null,null,null,null,null,null,null,null,null,null,null,null,null,null,null,null,null,null,null,null,null,null,null,null,null,null,null,null,null,"542 - NUEVA CALEDONIA"]
[null,null,null,null,null,null,null,null,null,null,null,null,null,null,null,null,null,null,null,null,null,null,null,null,null,null,null,null,null,null,null,null,null,null,null,null,null,null,null,null,null,null,null,null,null,null,null,null,null,null,null,null,null,null,null,null,null,null,null,null,null,null,null,null,null,null,null,null,null,null,null,null,null,null,null,null,null,null,null,null,null,null,null,null,null,null,null,null,null,null,null,null,null,null,null,null,null,null,"545 - PAPUASIA NUEVA GUINEA"]
[null,null,null,null,null,null,null,null,null,null,null,null,null,null,null,null,null,null,null,null,null,null,null,null,null,null,null,null,null,null,null,null,null,null,null,null,null,null,null,null,null,null,null,null,null,null,null,null,null,null,null,null,null,null,null,null,null,null,null,null,null,null,null,null,null,null,null,null,null,null,null,null,null,null,null,null,null,null,null,null,null,null,null,null,null,null,null,null,null,null,null,null,null,null,null,null,null,null,"548 - NUEVA ZELANDIA"]
[null,null,null,null,null,null,null,null,null,null,null,null,null,null,null,null,null,null,null,null,null,null,null,null,null,null,null,null,null,null,null,null,null,null,null,null,null,null,null,null,null,null,null,null,null,null,null,null,null,null,null,null,null,null,null,null,null,null,null,null,null,null,null,null,null,null,null,null,null,null,null,null,null,null,null,null,null,null,null,null,null,null,null,null,null,null,null,null,null,null,null,null,null,null,null,null,null,null,"551 - VANUATU"]
[null,null,null,null,null,null,null,null,null,null,null,null,null,null,null,null,null,null,null,null,null,null,null,null,null,null,null,null,null,null,null,null,null,null,null,null,null,null,null,null,null,null,null,null,null,null,null,null,null,null,null,null,null,null,null,null,null,null,null,null,null,null,null,null,null,null,null,null,null,null,null,null,null,null,null,null,null,null,null,null,null,null,null,null,null,null,null,null,null,null,null,null,null,null,null,null,null,null,"556 - OMAN"]
[null,null,null,null,null,null,null,null,null,null,null,null,null,null,null,null,null,null,null,null,null,null,null,null,null,null,null,null,null,null,null,null,null,null,null,null,null,null,null,null,null,null,null,null,null,null,null,null,null,null,null,null,null,null,null,null,null,null,null,null,null,null,null,null,null,null,null,null,null,null,null,null,null,null,null,null,null,null,null,null,null,null,null,null,null,null,null,null,null,null,null,null,null,null,null,null,null,null,"566 - PACIFICO - ISLAS (USA)"]
[null,null,null,null,null,null,null,null,null,null,null,null,null,null,null,null,null,null,null,null,null,null,null,null,null,null,null,null,null,null,null,null,null,null,null,null,null,null,null,null,null,null,null,null,null,null,null,null,null,null,null,null,null,null,null,null,null,null,null,null,null,null,null,null,null,null,null,null,null,null,null,null,null,null,null,null,null,null,null,null,null,null,null,null,null,null,null,null,null,null,null,null,null,null,null,null,null,null,"573 - PAISES BAJOS (HOLANDA)"]
[null,null,null,null,null,null,null,null,null,null,null,null,null,null,null,null,null,null,null,null,null,null,null,null,null,null,null,null,null,null,null,null,null,null,null,null,null,null,null,null,null,null,null,null,null,null,null,null,null,null,null,null,null,null,null,null,null,null,null,null,null,null,null,null,null,null,null,null,null,null,null,null,null,null,null,null,null,null,null,null,null,null,null,null,null,null,null,null,null,null,null,null,null,null,null,null,null,null,"576 - PAKISTAN"]
[null,null,null,null,null,null,null,null,null,null,null,null,null,null,null,null,null,null,null,null,null,null,null,null,null,null,null,null,null,null,null,null,null,null,null,null,null,null,null,null,null,null,null,null,null,null,null,null,null,null,null,null,null,null,null,null,null,null,null,null,null,null,null,null,null,null,null,null,null,null,null,null,null,null,null,null,null,null,null,null,null,null,null,null,null,null,null,null,null,null,null,null,null,null,null,null,null,null,"578 - PALAU - ISLAS"]
[null,null,null,null,null,null,null,null,null,null,null,null,null,null,null,null,null,null,null,null,null,null,null,null,null,null,null,null,null,null,null,null,null,null,null,null,null,null,null,null,null,null,null,null,null,null,null,null,null,null,null,null,null,null,null,null,null,null,null,null,null,null,null,null,null,null,null,null,null,null,null,null,null,null,null,null,null,null,null,null,null,null,null,null,null,null,null,null,null,null,null,null,null,null,null,null,null,null,"580 - PANAMA"]
[null,null,null,null,null,null,null,null,null,null,null,null,null,null,null,null,null,null,null,null,null,null,null,null,null,null,null,null,null,null,null,null,null,null,null,null,null,null,null,null,null,null,null,null,null,null,null,null,null,null,null,null,null,null,null,null,null,null,null,null,null,null,null,null,null,null,null,null,null,null,null,null,null,null,null,null,null,null,null,null,null,null,null,null,null,null,null,null,null,null,null,null,null,null,null,null,null,null,"586 - PARAGUAY"]
[null,null,null,null,null,null,null,null,null,null,null,null,null,null,null,null,null,null,null,null,null,null,null,null,null,null,null,null,null,null,null,null,null,null,null,null,null,null,null,null,null,null,null,null,null,null,null,null,null,null,null,null,null,null,null,null,null,null,null,null,null,null,null,null,null,null,null,null,null,null,null,null,null,null,null,null,null,null,null,null,null,null,null,null,null,null,null,null,null,null,null,null,null,null,null,null,null,null,"589 - PERU"]
[null,null,null,null,null,null,null,null,null,null,null,null,null,null,null,null,null,null,null,null,null,null,null,null,null,null,null,null,null,null,null,null,null,null,null,null,null,null,null,null,null,null,null,null,null,null,null,null,null,null,null,null,null,null,null,null,null,null,null,null,null,null,null,null,null,null,null,null,null,null,null,null,null,null,null,null,null,null,null,null,null,null,null,null,null,null,null,null,null,null,null,null,null,null,null,null,null,null,"593 - PITCAIRN - ISLA"]
[null,null,null,null,null,null,null,null,null,null,null,null,null,null,null,null,null,null,null,null,null,null,null,null,null,null,null,null,null,null,null,null,null,null,null,null,null,null,null,null,null,null,null,null,null,null,null,null,null,null,null,null,null,null,null,null,null,null,null,null,null,null,null,null,null,null,null,null,null,null,null,null,null,null,null,null,null,null,null,null,null,null,null,null,null,null,null,null,null,null,null,null,null,null,null,null,null,null,"599 - POLINESIA FRANCESA"]
[null,null,null,null,null,null,null,null,null,null,null,null,null,null,null,null,null,null,null,null,null,null,null,null,null,null,null,null,null,null,null,null,null,null,null,null,null,null,null,null,null,null,null,null,null,null,null,null,null,null,null,null,null,null,null,null,null,null,null,null,null,null,null,null,null,null,null,null,null,null,null,null,null,null,null,null,null,null,null,null,null,null,null,null,null,null,null,null,null,null,null,null,null,null,null,null,null,null,"603 - POLONIA"]
[null,null,null,null,null,null,null,null,null,null,null,null,null,null,null,null,null,null,null,null,null,null,null,null,null,null,null,null,null,null,null,null,null,null,null,null,null,null,null,null,null,null,null,null,null,null,null,null,null,null,null,null,null,null,null,null,null,null,null,null,null,null,null,null,null,null,null,null,null,null,null,null,null,null,null,null,null,null,null,null,null,null,null,null,null,null,null,null,null,null,null,null,null,null,null,null,null,null,"607 - PORTUGAL"]
[null,null,null,null,null,null,null,null,null,null,null,null,null,null,null,null,null,null,null,null,null,null,null,null,null,null,null,null,null,null,null,null,null,null,null,null,null,null,null,null,null,null,null,null,null,null,null,null,null,null,null,null,null,null,null,null,null,null,null,null,null,null,null,null,null,null,null,null,null,null,null,null,null,null,null,null,null,null,null,null,null,null,null,null,null,null,null,null,null,null,null,null,null,null,null,null,null,null,"611 - PUERTO RICO"]
[null,null,null,null,null,null,null,null,null,null,null,null,null,null,null,null,null,null,null,null,null,null,null,null,null,null,null,null,null,null,null,null,null,null,null,null,null,null,null,null,null,null,null,null,null,null,null,null,null,null,null,null,null,null,null,null,null,null,null,null,null,null,null,null,null,null,null,null,null,null,null,null,null,null,null,null,null,null,null,null,null,null,null,null,null,null,null,null,null,null,null,null,null,null,null,null,null,null,"618 - QATAR"]
[null,null,null,null,null,null,null,null,null,null,null,null,null,null,null,null,null,null,null,null,null,null,null,null,null,null,null,null,null,null,null,null,null,null,null,null,null,null,null,null,null,null,null,null,null,null,null,null,null,null,null,null,null,null,null,null,null,null,null,null,null,null,null,null,null,null,null,null,null,null,null,null,null,null,null,null,null,null,null,null,null,null,null,null,null,null,null,null,null,null,null,null,null,null,null,null,null,null,"628 - REINO UNIDO"]
[null,null,null,null,null,null,null,null,null,null,null,null,null,null,null,null,null,null,null,null,null,null,null,null,null,null,null,null,null,null,null,null,null,null,null,null,null,null,null,null,null,null,null,null,null,null,null,null,null,null,null,null,null,null,null,null,null,null,null,null,null,null,null,null,null,null,null,null,null,null,null,null,null,null,null,null,null,null,null,null,null,null,null,null,null,null,null,null,null,null,null,null,null,null,null,null,null,null,"640 - REPUBLICA CENTROAFRICANA"]
[null,null,null,null,null,null,null,null,null,null,null,null,null,null,null,null,null,null,null,null,null,null,null,null,null,null,null,null,null,null,null,null,null,null,null,null,null,null,null,null,null,null,null,null,null,null,null,null,null,null,null,null,null,null,null,null,null,null,null,null,null,null,null,null,null,null,null,null,null,null,null,null,null,null,null,null,null,null,null,null,null,null,null,null,null,null,null,null,null,null,null,null,null,null,null,null,null,null,"644 - REPUBLICA CHECA"]
[null,null,null,null,null,null,null,null,null,null,null,null,null,null,null,null,null,null,null,null,null,null,null,null,null,null,null,null,null,null,null,null,null,null,null,null,null,null,null,null,null,null,null,null,null,null,null,null,null,null,null,null,null,null,null,null,null,null,null,null,null,null,null,null,null,null,null,null,null,null,null,null,null,null,null,null,null,null,null,null,null,null,null,null,null,null,null,null,null,null,null,null,null,null,null,null,null,null,"647 - REPUBLICA DOMINICANA"]
[null,null,null,null,null,null,null,null,null,null,null,null,null,null,null,null,null,null,null,null,null,null,null,null,null,null,null,null,null,null,null,null,null,null,null,null,null,null,null,null,null,null,null,null,null,null,null,null,null,null,null,null,null,null,null,null,null,null,null,null,null,null,null,null,null,null,null,null,null,null,null,null,null,null,null,null,null,null,null,null,null,null,null,null,null,null,null,null,null,null,null,null,null,null,null,null,null,null,"660 - REUNION"]
[null,null,null,null,null,null,null,null,null,null,null,null,null,null,null,null,null,null,null,null,null,null,null,null,null,null,null,null,null,null,null,null,null,null,null,null,null,null,null,null,null,null,null,null,null,null,null,null,null,null,null,null,null,null,null,null,null,null,null,null,null,null,null,null,null,null,null,null,null,null,null,null,null,null,null,null,null,null,null,null,null,null,null,null,null,null,null,null,null,null,null,null,null,null,null,null,null,null,"665 - ZIMBABWE"]
[null,null,null,null,null,null,null,null,null,null,null,null,null,null,null,null,null,null,null,null,null,null,null,null,null,null,null,null,null,null,null,null,null,null,null,null,null,null,null,null,null,null,null,null,null,null,null,null,null,null,null,null,null,null,null,null,null,null,null,null,null,null,null,null,null,null,null,null,null,null,null,null,null,null,null,null,null,null,null,null,null,null,null,null,null,null,null,null,null,null,null,null,null,null,null,null,null,null,"670 - RUMANIA"]
[null,null,null,null,null,null,null,null,null,null,null,null,null,null,null,null,null,null,null,null,null,null,null,null,null,null,null,null,null,null,null,null,null,null,null,null,null,null,null,null,null,null,null,null,null,null,null,null,null,null,null,null,null,null,null,null,null,null,null,null,null,null,null,null,null,null,null,null,null,null,null,null,null,null,null,null,null,null,null,null,null,null,null,null,null,null,null,null,null,null,null,null,null,null,null,null,null,null,"675 - RUANDA"]
[null,null,null,null,null,null,null,null,null,null,null,null,null,null,null,null,null,null,null,null,null,null,null,null,null,null,null,null,null,null,null,null,null,null,null,null,null,null,null,null,null,null,null,null,null,null,null,null,null,null,null,null,null,null,null,null,null,null,null,null,null,null,null,null,null,null,null,null,null,null,null,null,null,null,null,null,null,null,null,null,null,null,null,null,null,null,null,null,null,null,null,null,null,null,null,null,null,null,"676 - RUSIA"]
[null,null,null,null,null,null,null,null,null,null,null,null,null,null,null,null,null,null,null,null,null,null,null,null,null,null,null,null,null,null,null,null,null,null,null,null,null,null,null,null,null,null,null,null,null,null,null,null,null,null,null,null,null,null,null,null,null,null,null,null,null,null,null,null,null,null,null,null,null,null,null,null,null,null,null,null,null,null,null,null,null,null,null,null,null,null,null,null,null,null,null,null,null,null,null,null,null,null,"677 - SALOMON - ISLAS"]
[null,null,null,null,null,null,null,null,null,null,null,null,null,null,null,null,null,null,null,null,null,null,null,null,null,null,null,null,null,null,null,null,null,null,null,null,null,null,null,null,null,null,null,null,null,null,null,null,null,null,null,null,null,null,null,null,null,null,null,null,null,null,null,null,null,null,null,null,null,null,null,null,null,null,null,null,null,null,null,null,null,null,null,null,null,null,null,null,null,null,null,null,null,null,null,null,null,null,"685 - SAHARA OCCIDENTAL"]
[null,null,null,null,null,null,null,null,null,null,null,null,null,null,null,null,null,null,null,null,null,null,null,null,null,null,null,null,null,null,null,null,null,null,null,null,null,null,null,null,null,null,null,null,null,null,null,null,null,null,null,null,null,null,null,null,null,null,null,null,null,null,null,null,null,null,null,null,null,null,null,null,null,null,null,null,null,null,null,null,null,null,null,null,null,null,null,null,null,null,null,null,null,null,null,null,null,null,"687 - SAMOA"]
[null,null,null,null,null,null,null,null,null,null,null,null,null,null,null,null,null,null,null,null,null,null,null,null,null,null,null,null,null,null,null,null,null,null,null,null,null,null,null,null,null,null,null,null,null,null,null,null,null,null,null,null,null,null,null,null,null,null,null,null,null,null,null,null,null,null,null,null,null,null,null,null,null,null,null,null,null,null,null,null,null,null,null,null,null,null,null,null,null,null,null,null,null,null,null,null,null,null,"690 - SAMOA NORTEAMERICANA"]
[null,null,null,null,null,null,null,null,null,null,null,null,null,null,null,null,null,null,null,null,null,null,null,null,null,null,null,null,null,null,null,null,null,null,null,null,null,null,null,null,null,null,null,null,null,null,null,null,null,null,null,null,null,null,null,null,null,null,null,null,null,null,null,null,null,null,null,null,null,null,null,null,null,null,null,null,null,null,null,null,null,null,null,null,null,null,null,null,null,null,null,null,null,null,null,null,null,null,"695 - SAN CRISTOBAL Y NIEVES"]
[null,null,null,null,null,null,null,null,null,null,null,null,null,null,null,null,null,null,null,null,null,null,null,null,null,null,null,null,null,null,null,null,null,null,null,null,null,null,null,null,null,null,null,null,null,null,null,null,null,null,null,null,null,null,null,null,null,null,null,null,null,null,null,null,null,null,null,null,null,null,null,null,null,null,null,null,null,null,null,null,null,null,null,null,null,null,null,null,null,null,null,null,null,null,null,null,null,null,"697 - SAN MARINO"]
[null,null,null,null,null,null,null,null,null,null,null,null,null,null,null,null,null,null,null,null,null,null,null,null,null,null,null,null,null,null,null,null,null,null,null,null,null,null,null,null,null,null,null,null,null,null,null,null,null,null,null,null,null,null,null,null,null,null,null,null,null,null,null,null,null,null,null,null,null,null,null,null,null,null,null,null,null,null,null,null,null,null,null,null,null,null,null,null,null,null,null,null,null,null,null,null,null,null,"700 - SAN PEDRO Y MIGUELON"]
[null,null,null,null,null,null,null,null,null,null,null,null,null,null,null,null,null,null,null,null,null,null,null,null,null,null,null,null,null,null,null,null,null,null,null,null,null,null,null,null,null,null,null,null,null,null,null,null,null,null,null,null,null,null,null,null,null,null,null,null,null,null,null,null,null,null,null,null,null,null,null,null,null,null,null,null,null,null,null,null,null,null,null,null,null,null,null,null,null,null,null,null,null,null,null,null,null,null,"705 - SAN VICENTE Y LAS GRANADINAS"]
[null,null,null,null,null,null,null,null,null,null,null,null,null,null,null,null,null,null,null,null,null,null,null,null,null,null,null,null,null,null,null,null,null,null,null,null,null,null,null,null,null,null,null,null,null,null,null,null,null,null,null,null,null,null,null,null,null,null,null,null,null,null,null,null,null,null,null,null,null,null,null,null,null,null,null,null,null,null,null,null,null,null,null,null,null,null,null,null,null,null,null,null,null,null,null,null,null,null,"710 - SANTA ELENA"]
[null,null,null,null,null,null,null,null,null,null,null,null,null,null,null,null,null,null,null,null,null,null,null,null,null,null,null,null,null,null,null,null,null,null,null,null,null,null,null,null,null,null,null,null,null,null,null,null,null,null,null,null,null,null,null,null,null,null,null,null,null,null,null,null,null,null,null,null,null,null,null,null,null,null,null,null,null,null,null,null,null,null,null,null,null,null,null,null,null,null,null,null,null,null,null,null,null,null,"715 - SANTA LUCIA"]
[null,null,null,null,null,null,null,null,null,null,null,null,null,null,null,null,null,null,null,null,null,null,null,null,null,null,null,null,null,null,null,null,null,null,null,null,null,null,null,null,null,null,null,null,null,null,null,null,null,null,null,null,null,null,null,null,null,null,null,null,null,null,null,null,null,null,null,null,null,null,null,null,null,null,null,null,null,null,null,null,null,null,null,null,null,null,null,null,null,null,null,null,null,null,null,null,null,null,"720 - SANTO TOME Y PRINCIPE"]
[null,null,null,null,null,null,null,null,null,null,null,null,null,null,null,null,null,null,null,null,null,null,null,null,null,null,null,null,null,null,null,null,null,null,null,null,null,null,null,null,null,null,null,null,null,null,null,null,null,null,null,null,null,null,null,null,null,null,null,null,null,null,null,null,null,null,null,null,null,null,null,null,null,null,null,null,null,null,null,null,null,null,null,null,null,null,null,null,null,null,null,null,null,null,null,null,null,null,"728 - SENEGAL"]
[null,null,null,null,null,null,null,null,null,null,null,null,null,null,null,null,null,null,null,null,null,null,null,null,null,null,null,null,null,null,null,null,null,null,null,null,null,null,null,null,null,null,null,null,null,null,null,null,null,null,null,null,null,null,null,null,null,null,null,null,null,null,null,null,null,null,null,null,null,null,null,null,null,null,null,null,null,null,null,null,null,null,null,null,null,null,null,null,null,null,null,null,null,null,null,null,null,null,"731 - SEYCHELLES"]
[null,null,null,null,null,null,null,null,null,null,null,null,null,null,null,null,null,null,null,null,null,null,null,null,null,null,null,null,null,null,null,null,null,null,null,null,null,null,null,null,null,null,null,null,null,null,null,null,null,null,null,null,null,null,null,null,null,null,null,null,null,null,null,null,null,null,null,null,null,null,null,null,null,null,null,null,null,null,null,null,null,null,null,null,null,null,null,null,null,null,null,null,null,null,null,null,null,null,"735 - SIERRA LEONA"]
[null,null,null,null,null,null,null,null,null,null,null,null,null,null,null,null,null,null,null,null,null,null,null,null,null,null,null,null,null,null,null,null,null,null,null,null,null,null,null,null,null,null,null,null,null,null,null,null,null,null,null,null,null,null,null,null,null,null,null,null,null,null,null,null,null,null,null,null,null,null,null,null,null,null,null,null,null,null,null,null,null,null,null,null,null,null,null,null,null,null,null,null,null,null,null,null,null,null,"741- SINGAPUR"]
[null,null,null,null,null,null,null,null,null,null,null,null,null,null,null,null,null,null,null,null,null,null,null,null,null,null,null,null,null,null,null,null,null,null,null,null,null,null,null,null,null,null,null,null,null,null,null,null,null,null,null,null,null,null,null,null,null,null,null,null,null,null,null,null,null,null,null,null,null,null,null,null,null,null,null,null,null,null,null,null,null,null,null,null,null,null,null,null,null,null,null,null,null,null,null,null,null,null,"744 - SIRIA - REPUBLICA ARABE DE"]
[null,null,null,null,null,null,null,null,null,null,null,null,null,null,null,null,null,null,null,null,null,null,null,null,null,null,null,null,null,null,null,null,null,null,null,null,null,null,null,null,null,null,null,null,null,null,null,null,null,null,null,null,null,null,null,null,null,null,null,null,null,null,null,null,null,null,null,null,null,null,null,null,null,null,null,null,null,null,null,null,null,null,null,null,null,null,null,null,null,null,null,null,null,null,null,null,null,null,"748 - SOMALIA"]
[null,null,null,null,null,null,null,null,null,null,null,null,null,null,null,null,null,null,null,null,null,null,null,null,null,null,null,null,null,null,null,null,null,null,null,null,null,null,null,null,null,null,null,null,null,null,null,null,null,null,null,null,null,null,null,null,null,null,null,null,null,null,null,null,null,null,null,null,null,null,null,null,null,null,null,null,null,null,null,null,null,null,null,null,null,null,null,null,null,null,null,null,null,null,null,null,null,null,"750 - SRI LANKA"]
[null,null,null,null,null,null,null,null,null,null,null,null,null,null,null,null,null,null,null,null,null,null,null,null,null,null,null,null,null,null,null,null,null,null,null,null,null,null,null,null,null,null,null,null,null,null,null,null,null,null,null,null,null,null,null,null,null,null,null,null,null,null,null,null,null,null,null,null,null,null,null,null,null,null,null,null,null,null,null,null,null,null,null,null,null,null,null,null,null,null,null,null,null,null,null,null,null,null,"756 - SUDAFRICA - REPUBLICA DE"]
[null,null,null,null,null,null,null,null,null,null,null,null,null,null,null,null,null,null,null,null,null,null,null,null,null,null,null,null,null,null,null,null,null,null,null,null,null,null,null,null,null,null,null,null,null,null,null,null,null,null,null,null,null,null,null,null,null,null,null,null,null,null,null,null,null,null,null,null,null,null,null,null,null,null,null,null,null,null,null,null,null,null,null,null,null,null,null,null,null,null,null,null,null,null,null,null,null,null,"759 - SUDAN"]
[null,null,null,null,null,null,null,null,null,null,null,null,null,null,null,null,null,null,null,null,null,null,null,null,null,null,null,null,null,null,null,null,null,null,null,null,null,null,null,null,null,null,null,null,null,null,null,null,null,null,null,null,null,null,null,null,null,null,null,null,null,null,null,null,null,null,null,null,null,null,null,null,null,null,null,null,null,null,null,null,null,null,null,null,null,null,null,null,null,null,null,null,null,null,null,null,null,null,"764 - SUECIA"]
[null,null,null,null,null,null,null,null,null,null,null,null,null,null,null,null,null,null,null,null,null,null,null,null,null,null,null,null,null,null,null,null,null,null,null,null,null,null,null,null,null,null,null,null,null,null,null,null,null,null,null,null,null,null,null,null,null,null,null,null,null,null,null,null,null,null,null,null,null,null,null,null,null,null,null,null,null,null,null,null,null,null,null,null,null,null,null,null,null,null,null,null,null,null,null,null,null,null,"767 - SUIZA"]
[null,null,null,null,null,null,null,null,null,null,null,null,null,null,null,null,null,null,null,null,null,null,null,null,null,null,null,null,null,null,null,null,null,null,null,null,null,null,null,null,null,null,null,null,null,null,null,null,null,null,null,null,null,null,null,null,null,null,null,null,null,null,null,null,null,null,null,null,null,null,null,null,null,null,null,null,null,null,null,null,null,null,null,null,null,null,null,null,null,null,null,null,null,null,null,null,null,null,"770 - SURINAM"]
[null,null,null,null,null,null,null,null,null,null,null,null,null,null,null,null,null,null,null,null,null,null,null,null,null,null,null,null,null,null,null,null,null,null,null,null,null,null,null,null,null,null,null,null,null,null,null,null,null,null,null,null,null,null,null,null,null,null,null,null,null,null,null,null,null,null,null,null,null,null,null,null,null,null,null,null,null,null,null,null,null,null,null,null,null,null,null,null,null,null,null,null,null,null,null,null,null,null,"773 - SWAZILANDIA"]
[null,null,null,null,null,null,null,null,null,null,null,null,null,null,null,null,null,null,null,null,null,null,null,null,null,null,null,null,null,null,null,null,null,null,null,null,null,null,null,null,null,null,null,null,null,null,null,null,null,null,null,null,null,null,null,null,null,null,null,null,null,null,null,null,null,null,null,null,null,null,null,null,null,null,null,null,null,null,null,null,null,null,null,null,null,null,null,null,null,null,null,null,null,null,null,null,null,null,"774 - TADJIKISTAN"]
[null,null,null,null,null,null,null,null,null,null,null,null,null,null,null,null,null,null,null,null,null,null,null,null,null,null,null,null,null,null,null,null,null,null,null,null,null,null,null,null,null,null,null,null,null,null,null,null,null,null,null,null,null,null,null,null,null,null,null,null,null,null,null,null,null,null,null,null,null,null,null,null,null,null,null,null,null,null,null,null,null,null,null,null,null,null,null,null,null,null,null,null,null,null,null,null,null,null,"776 - TAILANDIA"]
[null,null,null,null,null,null,null,null,null,null,null,null,null,null,null,null,null,null,null,null,null,null,null,null,null,null,null,null,null,null,null,null,null,null,null,null,null,null,null,null,null,null,null,null,null,null,null,null,null,null,null,null,null,null,null,null,null,null,null,null,null,null,null,null,null,null,null,null,null,null,null,null,null,null,null,null,null,null,null,null,null,null,null,null,null,null,null,null,null,null,null,null,null,null,null,null,null,null,"780 - TANZANIA - REPUBLICA UNIDA DE"]
[null,null,null,null,null,null,null,null,null,null,null,null,null,null,null,null,null,null,null,null,null,null,null,null,null,null,null,null,null,null,null,null,null,null,null,null,null,null,null,null,null,null,null,null,null,null,null,null,null,null,null,null,null,null,null,null,null,null,null,null,null,null,null,null,null,null,null,null,null,null,null,null,null,null,null,null,null,null,null,null,null,null,null,null,null,null,null,null,null,null,null,null,null,null,null,null,null,null,"783- DJIBOUTI"]
[null,null,null,null,null,null,null,null,null,null,null,null,null,null,null,null,null,null,null,null,null,null,null,null,null,null,null,null,null,null,null,null,null,null,null,null,null,null,null,null,null,null,null,null,null,null,null,null,null,null,null,null,null,null,null,null,null,null,null,null,null,null,null,null,null,null,null,null,null,null,null,null,null,null,null,null,null,null,null,null,null,null,null,null,null,null,null,null,null,null,null,null,null,null,null,null,null,null,"787 - TERRITORIO BRITANICO DEL OCEANO INDICO"]
[null,null,null,null,null,null,null,null,null,null,null,null,null,null,null,null,null,null,null,null,null,null,null,null,null,null,null,null,null,null,null,null,null,null,null,null,null,null,null,null,null,null,null,null,null,null,null,null,null,null,null,null,null,null,null,null,null,null,null,null,null,null,null,null,null,null,null,null,null,null,null,null,null,null,null,null,null,null,null,null,null,null,null,null,null,null,null,null,null,null,null,null,null,null,null,null,null,null,"788 - TIMOR DEL ESTE"]
[null,null,null,null,null,null,null,null,null,null,null,null,null,null,null,null,null,null,null,null,null,null,null,null,null,null,null,null,null,null,null,null,null,null,null,null,null,null,null,null,null,null,null,null,null,null,null,null,null,null,null,null,null,null,null,null,null,null,null,null,null,null,null,null,null,null,null,null,null,null,null,null,null,null,null,null,null,null,null,null,null,null,null,null,null,null,null,null,null,null,null,null,null,null,null,null,null,null,"800 - TOGO"]
[null,null,null,null,null,null,null,null,null,null,null,null,null,null,null,null,null,null,null,null,null,null,null,null,null,null,null,null,null,null,null,null,null,null,null,null,null,null,null,null,null,null,null,null,null,null,null,null,null,null,null,null,null,null,null,null,null,null,null,null,null,null,null,null,null,null,null,null,null,null,null,null,null,null,null,null,null,null,null,null,null,null,null,null,null,null,null,null,null,null,null,null,null,null,null,null,null,null,"805 - TOKELAU"]
[null,null,null,null,null,null,null,null,null,null,null,null,null,null,null,null,null,null,null,null,null,null,null,null,null,null,null,null,null,null,null,null,null,null,null,null,null,null,null,null,null,null,null,null,null,null,null,null,null,null,null,null,null,null,null,null,null,null,null,null,null,null,null,null,null,null,null,null,null,null,null,null,null,null,null,null,null,null,null,null,null,null,null,null,null,null,null,null,null,null,null,null,null,null,null,null,null,null,"810 - TONGA"]
[null,null,null,null,null,null,null,null,null,null,null,null,null,null,null,null,null,null,null,null,null,null,null,null,null,null,null,null,null,null,null,null,null,null,null,null,null,null,null,null,null,null,null,null,null,null,null,null,null,null,null,null,null,null,null,null,null,null,null,null,null,null,null,null,null,null,null,null,null,null,null,null,null,null,null,null,null,null,null,null,null,null,null,null,null,null,null,null,null,null,null,null,null,null,null,null,null,null,"815 - TRINIDAD Y TOBAGO"]
[null,null,null,null,null,null,null,null,null,null,null,null,null,null,null,null,null,null,null,null,null,null,null,null,null,null,null,null,null,null,null,null,null,null,null,null,null,null,null,null,null,null,null,null,null,null,null,null,null,null,null,null,null,null,null,null,null,null,null,null,null,null,null,null,null,null,null,null,null,null,null,null,null,null,null,null,null,null,null,null,null,null,null,null,null,null,null,null,null,null,null,null,null,null,null,null,null,null,"820 - TUNICIA"]
[null,null,null,null,null,null,null,null,null,null,null,null,null,null,null,null,null,null,null,null,null,null,null,null,null,null,null,null,null,null,null,null,null,null,null,null,null,null,null,null,null,null,null,null,null,null,null,null,null,null,null,null,null,null,null,null,null,null,null,null,null,null,null,null,null,null,null,null,null,null,null,null,null,null,null,null,null,null,null,null,null,null,null,null,null,null,null,null,null,null,null,null,null,null,null,null,null,null,"823 - TURCAS Y CAICOS - ISLAS"]
[null,null,null,null,null,null,null,null,null,null,null,null,null,null,null,null,null,null,null,null,null,null,null,null,null,null,null,null,null,null,null,null,null,null,null,null,null,null,null,null,null,null,null,null,null,null,null,null,null,null,null,null,null,null,null,null,null,null,null,null,null,null,null,null,null,null,null,null,null,null,null,null,null,null,null,null,null,null,null,null,null,null,null,null,null,null,null,null,null,null,null,null,null,null,null,null,null,null,"825 - TURKMENISTAN"]
[null,null,null,null,null,null,null,null,null,null,null,null,null,null,null,null,null,null,null,null,null,null,null,null,null,null,null,null,null,null,null,null,null,null,null,null,null,null,null,null,null,null,null,null,null,null,null,null,null,null,null,null,null,null,null,null,null,null,null,null,null,null,null,null,null,null,null,null,null,null,null,null,null,null,null,null,null,null,null,null,null,null,null,null,null,null,null,null,null,null,null,null,null,null,null,null,null,null,"827 - TURQUIA"]
[null,null,null,null,null,null,null,null,null,null,null,null,null,null,null,null,null,null,null,null,null,null,null,null,null,null,null,null,null,null,null,null,null,null,null,null,null,null,null,null,null,null,null,null,null,null,null,null,null,null,null,null,null,null,null,null,null,null,null,null,null,null,null,null,null,null,null,null,null,null,null,null,null,null,null,null,null,null,null,null,null,null,null,null,null,null,null,null,null,null,null,null,null,null,null,null,null,null,"828 - TUVALU"]
[null,null,null,null,null,null,null,null,null,null,null,null,null,null,null,null,null,null,null,null,null,null,null,null,null,null,null,null,null,null,null,null,null,null,null,null,null,null,null,null,null,null,null,null,null,null,null,null,null,null,null,null,null,null,null,null,null,null,null,null,null,null,null,null,null,null,null,null,null,null,null,null,null,null,null,null,null,null,null,null,null,null,null,null,null,null,null,null,null,null,null,null,null,null,null,null,null,null,"830 - UCRANIA"]
[null,null,null,null,null,null,null,null,null,null,null,null,null,null,null,null,null,null,null,null,null,null,null,null,null,null,null,null,null,null,null,null,null,null,null,null,null,null,null,null,null,null,null,null,null,null,null,null,null,null,null,null,null,null,null,null,null,null,null,null,null,null,null,null,null,null,null,null,null,null,null,null,null,null,null,null,null,null,null,null,null,null,null,null,null,null,null,null,null,null,null,null,null,null,null,null,null,null,"833 - UGANDA"]
[null,null,null,null,null,null,null,null,null,null,null,null,null,null,null,null,null,null,null,null,null,null,null,null,null,null,null,null,null,null,null,null,null,null,null,null,null,null,null,null,null,null,null,null,null,null,null,null,null,null,null,null,null,null,null,null,null,null,null,null,null,null,null,null,null,null,null,null,null,null,null,null,null,null,null,null,null,null,null,null,null,null,null,null,null,null,null,null,null,null,null,null,null,null,null,null,null,null,"845 - URUGUAY"]
[null,null,null,null,null,null,null,null,null,null,null,null,null,null,null,null,null,null,null,null,null,null,null,null,null,null,null,null,null,null,null,null,null,null,null,null,null,null,null,null,null,null,null,null,null,null,null,null,null,null,null,null,null,null,null,null,null,null,null,null,null,null,null,null,null,null,null,null,null,null,null,null,null,null,null,null,null,null,null,null,null,null,null,null,null,null,null,null,null,null,null,null,null,null,null,null,null,null,"847 - UZBEKISTAN"]
[null,null,null,null,null,null,null,null,null,null,null,null,null,null,null,null,null,null,null,null,null,null,null,null,null,null,null,null,null,null,null,null,null,null,null,null,null,null,null,null,null,null,null,null,null,null,null,null,null,null,null,null,null,null,null,null,null,null,null,null,null,null,null,null,null,null,null,null,null,null,null,null,null,null,null,null,null,null,null,null,null,null,null,null,null,null,null,null,null,null,null,null,null,null,null,null,null,null,"850 - VENEZUELA"]
[null,null,null,null,null,null,null,null,null,null,null,null,null,null,null,null,null,null,null,null,null,null,null,null,null,null,null,null,null,null,null,null,null,null,null,null,null,null,null,null,null,null,null,null,null,null,null,null,null,null,null,null,null,null,null,null,null,null,null,null,null,null,null,null,null,null,null,null,null,null,null,null,null,null,null,null,null,null,null,null,null,null,null,null,null,null,null,null,null,null,null,null,null,null,null,null,null,null,"855 - VIET NAM"]
[null,null,null,null,null,null,null,null,null,null,null,null,null,null,null,null,null,null,null,null,null,null,null,null,null,null,null,null,null,null,null,null,null,null,null,null,null,null,null,null,null,null,null,null,null,null,null,null,null,null,null,null,null,null,null,null,null,null,null,null,null,null,null,null,null,null,null,null,null,null,null,null,null,null,null,null,null,null,null,null,null,null,null,null,null,null,null,null,null,null,null,null,null,null,null,null,null,null,"863 - VIRGENES - ISLAS (BRITANICAS)"]
[null,null,null,null,null,null,null,null,null,null,null,null,null,null,null,null,null,null,null,null,null,null,null,null,null,null,null,null,null,null,null,null,null,null,null,null,null,null,null,null,null,null,null,null,null,null,null,null,null,null,null,null,null,null,null,null,null,null,null,null,null,null,null,null,null,null,null,null,null,null,null,null,null,null,null,null,null,null,null,null,null,null,null,null,null,null,null,null,null,null,null,null,null,null,null,null,null,null,"866 - VIRGENES - ISLAS (NORTEAMERICANAS)"]
[null,null,null,null,null,null,null,null,null,null,null,null,null,null,null,null,null,null,null,null,null,null,null,null,null,null,null,null,null,null,null,null,null,null,null,null,null,null,null,null,null,null,null,null,null,null,null,null,null,null,null,null,null,null,null,null,null,null,null,null,null,null,null,null,null,null,null,null,null,null,null,null,null,null,null,null,null,null,null,null,null,null,null,null,null,null,null,null,null,null,null,null,null,null,null,null,null,null,"870 - FIJI"]
[null,null,null,null,null,null,null,null,null,null,null,null,null,null,null,null,null,null,null,null,null,null,null,null,null,null,null,null,null,null,null,null,null,null,null,null,null,null,null,null,null,null,null,null,null,null,null,null,null,null,null,null,null,null,null,null,null,null,null,null,null,null,null,null,null,null,null,null,null,null,null,null,null,null,null,null,null,null,null,null,null,null,null,null,null,null,null,null,null,null,null,null,null,null,null,null,null,null,"875 - WALLIS Y FORTUNA - ISLAS"]
[null,null,null,null,null,null,null,null,null,null,null,null,null,null,null,null,null,null,null,null,null,null,null,null,null,null,null,null,null,null,null,null,null,null,null,null,null,null,null,null,null,null,null,null,null,null,null,null,null,null,null,null,null,null,null,null,null,null,null,null,null,null,null,null,null,null,null,null,null,null,null,null,null,null,null,null,null,null,null,null,null,null,null,null,null,null,null,null,null,null,null,null,null,null,null,null,null,null,"880 - YEMEN"]
[null,null,null,null,null,null,null,null,null,null,null,null,null,null,null,null,null,null,null,null,null,null,null,null,null,null,null,null,null,null,null,null,null,null,null,null,null,null,null,null,null,null,null,null,null,null,null,null,null,null,null,null,null,null,null,null,null,null,null,null,null,null,null,null,null,null,null,null,null,null,null,null,null,null,null,null,null,null,null,null,null,null,null,null,null,null,null,null,null,null,null,null,null,null,null,null,null,null,"885 - YUGOSLAVIA"]
[null,null,null,null,null,null,null,null,null,null,null,null,null,null,null,null,null,null,null,null,null,null,null,null,null,null,null,null,null,null,null,null,null,null,null,null,null,null,null,null,null,null,null,null,null,null,null,null,null,null,null,null,null,null,null,null,null,null,null,null,null,null,null,null,null,null,null,null,null,null,null,null,null,null,null,null,null,null,null,null,null,null,null,null,null,null,null,null,null,null,null,null,null,null,null,null,null,null,"888 - ZAIRE"]
[null,null,null,null,null,null,null,null,null,null,null,null,null,null,null,null,null,null,null,null,null,null,null,null,null,null,null,null,null,null,null,null,null,null,null,null,null,null,null,null,null,null,null,null,null,null,null,null,null,null,null,null,null,null,null,null,null,null,null,null,null,null,null,null,null,null,null,null,null,null,null,null,null,null,null,null,null,null,null,null,null,null,null,null,null,null,null,null,null,null,null,null,null,null,null,null,null,null,"890 - ZAMBIA"]
[null,null,null,null,null,null,null,null,null,null,null,null,null,null,null,null,null,null,null,null,null,null,null,null,null,null,null,null,null,null,null,null,null,null,null,null,null,null,null,null,null,null,null,null,null,null,null,null,null,null,null,null,null,null,null,null,null,null,null,null,null,null,null,null,null,null,null,null,null,null,null,null,null,null,null,null,null,null,null,null,null,null,null,null,null,null,null,null,null,null,null,null,null,null,null,null,null,null,"897 - ZONA NEUTRAL PALESTINA"]

{"sheet":"Contenido","index":3,"n_rows":39,"n_cols":9,"rows_kept":39,"cut":false,"hidden":false,"merged":[[38,2,38,13],[32,3,32,12],[34,3,34,12],[36,3,36,12],[5,3,5,12],[6,3,6,12],[7,3,7,12],[9,6,9,9],[29,6,29,9],[31,3,31,12],[28,6,28,9]]}
[]
[]
[]
[]
[]
[null,null,null,{"$f":"\"Plantilla InExX \"&Premisas!B12&\" para generación de instancias XBRL \"","v":"Plantilla InExX Ver 2.0 para generación de instancias XBRL "}]
[null,null,null,{"$f":"Premisas!B19&\" - Corte a Diciembre 31 de 2023\"","v":"Grupo 1 - Corte a Diciembre 31 de 2023"}]
[null,null,null,"Versión 1.0"]
[]
[null,null,null,null,null,null,"Formularios"]
[]
[null,null,null,null,null,null,110000,null,"Carátula"]
[null,null,null,null,null,null,110010,null,"Administradores"]
[null,null,null,null,null,null,210000,null,"Estado de situación financiera"]
[null,null,null,null,null,null,310000,null,"Estado de Resultados"]
[null,null,null,null,null,null,410000,null,"Estado de Resultados - Otro Resultado Integral"]
[null,null,null,null,null,null,520000,null,"Estado de Flujos de Efectivo"]
[null,null,null,null,null,null,610000,null,"Estado de Cambios en el Patrimonio"]
[null,null,null,null,null,null,800101,null,"Nota de Efectivo y equivalentes al efectivo"]
[null,null,null,null,null,null,800111,null,"Nota de Cuentas por cobrar"]
[null,null,null,null,null,null,"800111a",null,"Nota de Detalle de Cuentas por cobrar"]
[null,null,null,null,null,null,800500,null,"Lista de Notas"]
[null,null,null,null,null,null,800600,null,"Lista de Políticas"]
[null,null,null,null,null,null,811000,null,"Nota de Cambios por políticas contables, estimaciones …"]
[null,null,null,null,null,null,822100,null,"Nota de Propiedades, planta y equipo"]
[null,null,null,null,null,null,823180,null,"Nota de Activos Intangibles"]
[null,null,null,null,null,null,828000,null,"Nota de cuentas por pagar"]
[]
[null,null,null,null,null,null,"Resumen de validaciones"]
[null,null,null,null,null,null,"Anotaciones"]
[]
[]
[null,null,null,{"$f":"Texto_1&Premisas!B19&Texto_2","v":"Esta herramienta es una opción que facilita a los vigilados pertenecientes al Grupo 1 de aplicación de normatividad financiera de la Superintendencia de Vigilancia y Seguridad Privada, la generación de los archivos (instancias) XBRL que la entidad requiere como parte de la presentación de la información financiera para el corte a diciembre 31 de 2023."}]
[]
[null,null,null,"El uso de esta herramienta no es obligatorio, ni su comportamiento puede ser motivo para sustentar el no cumplimiento del requerimiento en los términos indicados en él."]
[]
[null,null,null,"Para consultar detalles sobre el uso de esta herramienta se puede acceder al botón de ayuda ubicado la barra de menú o consultar el portal web de la entidad."]
[]
[null,null,"Ver Certificado de licencia y condiciones de uso"]

{"sheet":"Resumen de Validaciones","index":4,"n_rows":30,"n_cols":11,"rows_kept":30,"cut":false,"hidden":false,"merged":[[29,1,29,5],[1,1,1,2],[2,1,2,2],[3,1,3,2],[5,2,7,5],[9,2,10,3],[9,4,10,5]]}
[null,null,null,null,null,null,null,0]
[]
[]
[]
[]
[null,null,"Resumen de validaciones"]
[]
[]
[null,{"$f":"MID(A9,27,2)","v":""}]
[null,{"$f":"MID(A10,34,2)","v":""},"Formulario",null,"Estado de validaciones por formulario"]
[null,{"$f":"MID(A11,48,2)","v":""}]
[null,null,110000,"Carátula",{"$f":"IF('110000 - Carátula'!L13=0,\"El formulario NO tiene validaciones pendientes\",\"El Formulario tiene validaciones pendientes\")","v":"El Formulario tiene validaciones pendientes"},{"$f":"'110000 - Carátula'!H13","v":"Formulario 'Carátula' con 25 Celdas por diligenciar"},null,null,null,{"$f":"MID(F12,27,2)","v":"25"},{"$f":"IF(F12=\"Formulario 'Carátula' Completo\",0,ABS(J12))","v":25}]
[null,null,110010,"Administradores",{"$f":"IF('110010 - Administradores'!Q13=0,\"El formulario NO tiene validaciones pendientes\",\"El Formulario tiene validaciones pendientes\")","v":"El Formulario tiene validaciones pendientes"},{"$f":"'110010 - Administradores'!M13","v":"Formulario 'Administradores' con 2 filas por diligenciar"},null,null,null,{"$f":"MID(F13,34,2)","v":"2 "},{"$f":"IF(F13=\"Formulario 'Administradores' Completo\",0,ABS(J13))","v":2}]
[null,null,210000,"Estado de situación financiera",{"$f":"IF('210000 - Est. Situa. Financiera'!M13=0,\"El formulario NO tiene validaciones pendientes\",\"El Formulario tiene validaciones pendientes\")","v":"El Formulario tiene validaciones pendientes"},{"$f":"'210000 - Est. Situa. Financiera'!I13","v":"Formulario 'Estado de Situación Financiera' con 6 inconsistencias"},null,null,null,{"$f":"MID(F14,49,2)","v":"6 "},{"$f":"IF(F14=\"Formulario 'Estado de Situación Financiera' Válido\",0,ABS(J14))","v":6}]
[null,null,310000,"Estado de Resultados",{"$f":"IF('310000 - Est. Resultados'!N13=0,\"El formulario NO tiene validaciones pendientes\",\"El Formulario tiene validaciones pendientes\")","v":"El Formulario tiene validaciones pendientes"},{"$f":"'310000 - Est. Resultados'!I13","v":"Formulario 'Estado de Resultados' con 4 inconsistencias"},null,null,null,{"$f":"MID(F15,38,2)","v":" 4"},{"$f":"IF(F15=\"Formulario 'Estado de Resultados' Válido\",0,ABS(J15))","v":4}]
[null,null,410000,"Estado de Resultados - Otro Resultado Integral",{"$f":"IF('410000 - Est. Resultados ORI'!N13=0,\"El formulario NO tiene validaciones pendientes\",\"El Formulario tiene validaciones pendientes\")","v":"El formulario NO tiene validaciones pendientes"},{"$f":"'410000 - Est. Resultados ORI'!I13","v":"Formulario 'Estado de Resultados - ORI' Válido"},null,null,null,{"$f":"MID(F16,44,2)","v":"id"},{"$f":"IF(F16=\"Formulario 'Estado de Resultados - ORI' Válido\",0,ABS(J16))","v":0}]
[null,null,520000,"Estado de Flujos de Efectivo",{"$f":"IF('520000 - Est. Flujos de Efec.'!N13=0,\"El formulario NO tiene validaciones pendientes\",\"El Formulario tiene validaciones pendientes\")","v":"El formulario NO tiene validaciones pendientes"},{"$f":"'520000 - Est. Flujos de Efec.'!I13","v":"Formulario 'Estado de Flujos de Efectivo' Válido"},null,null,null,{"$f":"MID(F17,47,2)","v":"do"},{"$f":"IF(F17=\"Formulario 'Estado de Flujos de Efectivo' Válido\",0,ABS(J17))","v":0}]
[null,null,610000,"Estado de Cambios en el Patrimonio",{"$f":"IF('610000 - Est. Camb. Patrimonio'!AG13=0,\"El formulario NO tiene validaciones pendientes\",\"El Formulario tiene validaciones pendientes\")","v":"El Formulario tiene validaciones pendientes"},{"$f":"'610000 - Est. Camb. Patrimonio'!AD13","v":"Formulario 'Estado de Cambios en el Patrimonio' con 1 inconsistencias"},null,null,null,{"$f":"MID(F18,53,2)","v":"1 "},{"$f":"IF(F18=\"Formulario 'Estado de Cambios en el Patrimonio' Válido\",0,ABS(J18))","v":1}]
[null,null,800101,"Nota de Efectivo y equivalentes al efectivo",{"$f":"IF('800101 - Nota. Efect. y Equiv.'!Q13=0,\"El formulario NO tiene validaciones pendientes\",\"El Formulario tiene validaciones pendientes\")","v":"El formulario NO tiene validaciones pendientes"},{"$f":"'800101 - Nota. Efect. y Equiv.'!J13","v":"Formulario 'Nota de Efectivo...' con 1 inconsistencias"},null,null,null,{"$f":"MID(F19,37,2)","v":" 1"},{"$f":"IF(F19=\"Formulario 'Nota de Efectivo...' Válido\",0,ABS(J19))","v":1}]
[null,null,800111,"Nota de Cuentas por cobrar",{"$f":"IF('800111 - Nota. Cuentas x cobrar'!U12=0,\"El formulario NO tiene validaciones pendientes\",\"El Formulario tiene validaciones pendientes\")","v":"El formulario NO tiene validaciones pendientes"},{"$f":"'800111 - Nota. Cuentas x cobrar'!Q12","v":"Formulario 'Nota de Cuentas por cobrar' Válido"},null,null,null,{"$f":"MID(F20,45,2)","v":"do"},{"$f":"IF(F20=\"Formulario 'Nota de Cuentas por cobrar' Válido\",0,ABS(J20))","v":0}]
[null,null,"800111a","Nota de Detalle de Cuentas por cobrar",{"$f":"IF('800111a - Nota. Detalle de CxC.'!V12=0,\"El formulario NO tiene validaciones pendientes\",\"El Formulario tiene validaciones pendientes\")","v":"El formulario NO tiene validaciones pendientes"},{"$f":"'800111a - Nota. Detalle de CxC.'!S12","v":"Formulario 'Nota de Detalle de cuentas por cobrar' Válido"},null,null,null,{"$f":"MID(F21,55,2)","v":"id"},{"$f":"IF(F21=\"Formulario 'Nota de Detalle de cuentas por cobrar' Válido\",0,ABS(J21))","v":0}]
[null,null,800500,"Lista de Notas",{"$f":"IF('800500 - Lista de Notas'!K13=0,\"El formulario NO tiene validaciones pendientes\",\"El Formulario tiene validaciones pendientes\")","v":"El Formulario tiene validaciones pendientes"},{"$f":"'800500 - Lista de Notas'!H13","v":"Formulario 'Lista de notas' con 121 inconsistencias"},null,null,null,{"$f":"MID(F22,33,3)","v":"121"},{"$f":"IF(F22=\"Formulario 'Lista de notas' Válido\",0,ABS(J22))","v":121}]
[null,null,800600,"Lista de Políticas contables",{"$f":"IF('800600 - Lista de Politicas'!K13=0,\"El formulario NO tiene validaciones pendientes\",\"El Formulario tiene validaciones pendientes\")","v":"El Formulario tiene validaciones pendientes"},{"$f":"'800600 - Lista de Politicas'!H13","v":"Formulario 'Lista de políticas contables' con 71 inconsistencias"},null,null,null,{"$f":"MID(F23,47,2)","v":"71"},{"$f":"IF(F23=\"Formulario 'Lista de políticas contables' Válido\",0,ABS(J23))","v":71}]
[null,null,811000,"Nota de Cambios en Políticas …",{"$f":"IF('811000 - Cambios en Polític...'!Q12=0,\"El formulario NO tiene validaciones pendientes\",\"El Formulario tiene validaciones pendientes\")","v":"El formulario NO tiene validaciones pendientes"},{"$f":"'811000 - Cambios en Polític...'!M12","v":"Formulario 'Nota de Cambios en políticas...' Válido"},null,null,null,{"$f":"MID(F24,50,2)","v":"do"},{"$f":"IF(F24=\"Formulario 'Nota de Cambios en políticas...' Válido\",0,ABS(I24))","v":0}]
[null,null,822100,"Nota de Propiedades, planta y equipo",{"$f":"IF('822100 - Nota. Prop, plan y eq.'!AH12=0,\"El formulario NO tiene validaciones pendientes\",\"El Formulario tiene validaciones pendientes\")","v":"El formulario NO tiene validaciones pendientes"},{"$f":"'822100 - Nota. Prop, plan y eq.'!AD12","v":"Formulario 'Nota de Propiedades, planta y equipo' Válido"},null,null,null,{"$f":"MID(F25,70,2)","v":""},0]
[null,null,823180,"Nota de Activos Intangibles",{"$f":"IF('823180 - Nota. Activos Intang.'!X13=0,\"El formulario NO tiene validaciones pendientes\",\"El Formulario tiene validaciones pendientes\")","v":"El formulario NO tiene validaciones pendientes"},"Formulario 'Nota de Activos Intangibles' Válido",null,null,null,{"$f":"MID(F26,70,2)","v":""},0]
[null,null,828000,"Nota de cuentas por pagar",{"$f":"IF('828000 - Nota. Cuentas x pagar'!V12=0,\"El formulario NO tiene validaciones pendientes\",\"El Formulario tiene validaciones pendientes\")","v":"El formulario NO tiene validaciones pendientes"},{"$f":"'828000 - Nota. Cuentas x pagar'!R12","v":"Formulario 'Nota de Cuentas por pagar' Válido"},null,null,null,{"$f":"MID(F27,39,2)","v":" V"},{"$f":"IF(F27=\"Formulario 'Nota de Cuentas por pagar' Válido\",0,ABS(J27))","v":0}]
[]
[]
[null,{"$f":"IF(J30=0,\"El archivo NO tiene validaciones pendientes\",\"El archivo tiene validaciones pendientes:\")","v":"El archivo tiene validaciones pendientes:"},null,null,null,null,{"$f":"J30","v":231},null,null,{"$f":"K30","v":231},{"$f":"IFERROR(SUM(K12:K28),Check)","v":231}]

{"sheet":"110000 - Carátula","index":5,"n_rows":52,"n_cols":16,"rows_kept":52,"cut":false,"hidden":false,"merged":[[7,4,9,7]]}
[]
[]
[]
[]
[]
[]
[]
[null,null,null,null,"110000 - CARÁTULA"]
[]
[]
[]
[null,null,null,null,null,1]
[null,null,"Periodo",null,null,{"$f":"Periodos!$C$4","v":"2023-12-31"},null,{"$f":"IF(L13=0,\"Formulario 'Carátula' Completo\",\"Formulario 'Carátula' con \"&L13&\" Celdas por diligenciar\")","v":"Formulario 'Carátula' con 25 Celdas por diligenciar"},null,null,null,{"$f":"SUM(L16:L52)","v":25}]
[null,null,1,"co-svsp-core:Caratula","Carátula"]
[null,null,1,"co-svsp-core:DatosBasicos","Datos Básicos"]
[null,null,1,"co-svsp-core:NIT","NIT",null,null,{"$f":"IF(AND(F16<>\"\",LEN(F16)=9),\"CORRECTO\",\"Debe registrar información para '\"&E16&\"'\")","v":"Debe registrar información para 'NIT'"},null,null,null,{"$f":"IF(H16=\"CORRECTO\",0,1)","v":1}]
[null,null,1,"co-svsp-core:DV","DV",null,null,{"$f":"IF(F17<>\"\",\"CORRECTO\",\"Debe registrar información para '\"&E17&\"'\")","v":"Debe registrar información para 'DV'"},null,null,null,{"$f":"IF(H17=\"CORRECTO\",0,1)","v":1}]
[null,null,1,"co-svsp-core:FechadeCorte","Fecha de Corte","2023-12-31",null,{"$f":"IF(F18<>\"\",\"CORRECTO\",\"Debe registrar información para '\"&E18&\"'\")","v":"CORRECTO"},null,null,null,{"$f":"IF(H18=\"CORRECTO\",0,1)","v":0}]
[null,null,1,"co-svsp-core:SereunioelmaximoOrganoSocialparaconsiderarlosEstadosFinancieros","Se reunió el máximo Órgano Social para considerar los Estados Financieros",null,null,{"$f":"IF(F19<>\"\",\"CORRECTO\",\"Debe registrar información para '\"&E19&\"'\")","v":"Debe registrar información para 'Se reunió el máximo Órgano Social para considerar los Estados Financieros'"},null,null,null,{"$f":"IF(H19=\"CORRECTO\",0,1)","v":1},null,{"$f":"IF(OR(F19=\"\",F19=\"02. NO\"),0,1)","v":0}]
[null,null,1,"co-svsp-core:ActaNumero","Acta Número",null,null,{"$f":"IF(P20=\"CORRECTO\",\"CORRECTO\",\"Debe registrar información para '\"&E20&\"' cuando responda afirmativamente a la pregunta '\"&E19&\"', en caso contrario esta celda debe estar vacia\")","v":"CORRECTO"},null,null,null,{"$f":"IF(P20=\"CORRECTO\",0,1)","v":0},null,{"$f":"IF(F20=\"\",0,1)","v":0},null,{"$f":"IF(AND(N19=0,N20=0),\"CORRECTO\",IF(AND(N19<>0,N20<>0),\"CORRECTO\",\"INCORRECTO\"))","v":"CORRECTO"}]
[null,null,1,"co-svsp-core:FechadelActa","Fecha del Acta",null,null,{"$f":"IF(P21=\"CORRECTO\",\"CORRECTO\",\"Debe registrar información para '\"&E21&\"' cuando responda afirmativamente a la pregunta '\"&E20&\"', en caso contrario esta celda debe estar vacia\")","v":"CORRECTO"},null,null,null,{"$f":"IF(H21=\"CORRECTO\",0,1)","v":0},null,{"$f":"IF(F21=\"\",0,1)","v":0},null,{"$f":"IF(AND(N19=0,N21=0),\"CORRECTO\",IF(AND(N19<>0,N21<>0),\"CORRECTO\",\"INCORRECTO\"))","v":"CORRECTO"}]
[null,null,1,"co-svsp-core:FueronaprobadosenAsambleaGeneraldeAccionistasolaJuntadeSocios","Fueron aprobados en Asamblea General de Accionistas o la Junta de Socios",null,null,{"$f":"IF(P22=\"CORRECTO\",\"CORRECTO\",\"Debe registrar información para '\"&E22&\"' cuando responda afirmativamente a la pregunta '\"&E21&\"', en caso contrario esta celda debe estar vacia\")","v":"CORRECTO"},null,null,null,{"$f":"IF(H22=\"CORRECTO\",0,1)","v":0},null,{"$f":"IF(F22=\"\",0,1)","v":0},null,{"$f":"IF(AND(N19=0,N22=0),\"CORRECTO\",IF(AND(N19<>0,N22<>0),\"CORRECTO\",\"INCORRECTO\"))","v":"CORRECTO"}]
[null,null,1,"co-svsp-core:InformacionGeneral","Información General"]
[null,null,1,"co-svsp-core:RazonSocial","Razón Social",null,null,{"$f":"IF(F24<>\"\",\"CORRECTO\",\"Debe registrar información para '\"&E24&\"'\")","v":"Debe registrar información para 'Razón Social'"},null,null,null,{"$f":"IF(H24=\"CORRECTO\",0,1)","v":1}]
[null,null,1,"co-svsp-core:ObjetoSocialPrincipal","Objeto Social Principal",null,null,"Debe registrar información para 'Objeto Social Principal'",null,null,null,1]
[null,null,1,"co-svsp-core:ClasificacionIndustrialInternacionalUniformeVersion4AC","Clasificación Industrial Internacional Uniforme Versión 4 A.C",null,null,"Debe registrar información para 'Clasificación Industrial Internacional Uniforme Versión 4 A.C'",null,null,null,1]
[null,null,1,"co-svsp-core:GrupodePreparadoresdeInformacionFinanciera","Grupo de Preparadores de Información Financiera",null,null,"Debe registrar información para 'Grupo de Preparadores de Información Financiera'",null,null,null,1]
[null,null,1,"co-svsp-core:NaturalezadelaEmpresa","Naturaleza de la Empresa",null,null,"Debe registrar información para 'Naturaleza de la Empresa'",null,null,null,1]
[null,null,1,"co-svsp-core:TipoSocietario","Tipo Societario",null,null,"Debe registrar información para 'Tipo Societario'",null,null,null,1]
[null,null,1,"co-svsp-core:EstadoDeLaEmpresa","Estado de la Empresa",null,null,"Debe registrar información para 'Estado de la Empresa'",null,null,null,1]
[null,null,1,"co-svsp-core:DirecciondeNotificacionJudicial","Dirección de Notificación Judicial",null,null,"Debe registrar información para 'Dirección de Notificación Judicial'",null,null,null,1]
[null,null,1,"co-svsp-core:DepartamentodeNotificacionJudicial","Departamento de Notificación Judicial",null,null,"Debe registrar información para 'Departamento de Notificación Judicial'",null,null,null,1]
[null,null,1,"co-svsp-core:CiudaddeNotificacionJudicial","Ciudad de Notificación Judicial",null,null,{"$f":"IF(AND(F33<>\"\",MID(F32,1,2)=MID(F33,1,2)),\"CORRECTO\",\"Debe registrar información para '\"&E33&\"'. El valor seleccionado para '\"&E33&\"' debe corresponder con el valor seleccionado para '\"&E32&\"'.\")","v":"Debe registrar información para 'Ciudad de Notificación Judicial'. El valor seleccionado para 'Ciudad de Notificación Judicial' debe corresponder con el valor seleccionado para 'Departamento de Notificación Judicial'."},null,null,null,1]
[null,null,1,"co-svsp-core:CorreoElectronicoDeNotificacion","Correo electrónico de notificación",null,null,{"$f":"IF(AND(K34=FALSE,F34<>\"\"),\"CORRECTO\",\"Debe registrar información para '\"&E34&\"'\")","v":"Debe registrar información para 'Correo electrónico de notificación'"},null,null,{"$f":"ISERROR(AND(SEARCH(\"@\",F34),SEARCH(\".\",F34)))","v":true},1]
[null,null,1,"co-svsp-core:AutorizacionNotificacionJudicial","Autorizo a la Superintendencia de Vigilancia y Seguridad Privada a que me notifique y/o comunique cualquier decisión al correo electrónico suministrado en el marco de la aplicación del artículo 56 de la Ley 1437 de 2011",null,null,{"$f":"IF(F35<>\"\",\"CORRECTO\",\"Debe registrar información para '\"&E35&\"'\")","v":"Debe registrar información para 'Autorizo a la Superintendencia de Vigilancia y Seguridad Privada a que me notifique y/o comunique cualquier decisión al correo electrónico suministrado en el marco de la aplicación del artículo 56 de la Ley 1437 de 2011'"},null,null,null,{"$f":"IF(H35=\"CORRECTO\",0,1)","v":1},null,{"$f":"IF(OR(F35=\"\",F35=\"02. NO\"),0,1)","v":0}]
[null,null,1,"co-svsp-core:Celular","Celular",null,null,"Debe registrar información para 'Celular'",null,null,null,1]
[null,null,1,"co-svsp-core:TelefonoFijo","Teléfono Fijo",null,null,"Debe registrar información para 'Teléfono Fijo'",null,null,null,1]
[null,null,1,"co-svsp-core:InformacionAnteSupervigilancia","Información ante Supervigilancia"]
[null,null,1,"co-svsp-core:EstadoDeLicenciaDeFuncionamiento","Estado de Licencia de Funcionamiento",null,null,{"$f":"IF(F39<>\"\",\"CORRECTO\",\"Debe registrar información para '\"&E39&\"'\")","v":"Debe registrar información para 'Estado de Licencia de Funcionamiento'"},null,null,null,{"$f":"IF(H39=\"CORRECTO\",0,1)","v":1}]
[null,null,1,"co-svsp-core:TipoDeServicio","Tipo de Servicio",null,null,{"$f":"IF(F40<>\"\",\"CORRECTO\",\"Debe registrar información para '\"&E40&\"'\")","v":"Debe registrar información para 'Tipo de Servicio'"},null,null,null,{"$f":"IF(H40=\"CORRECTO\",0,1)","v":1}]
[null,null,1,"co-svsp-core:InformacionSobreLaRevisoriaFiscal","Información sobre la Revisoría Fiscal"]
[null,null,1,"co-svsp-core:LaCompaniaEstaObligadaARevisorFiscal","¿La compañía esta obligada a tener revisor fiscal?",null,null,{"$f":"IF(F42<>\"\",\"CORRECTO\",\"Debe registrar información para '\"&E42&\"'\")","v":"Debe registrar información para '¿La compañía esta obligada a tener revisor fiscal?'"},null,null,null,{"$f":"IF(H42=\"CORRECTO\",0,1)","v":1},null,{"$f":"IF(OR(F42=\"\",F42=\"02. NO\"),0,1)","v":0}]
[null,null,1,"co-svsp-core:RevisorFiscalPerteneceAFirma","¿El revisor fiscal pertenece a una firma?",null,null,{"$f":"IF(P43=\"CORRECTO\",\"CORRECTO\",\"Debe registrar información para '\"&E43&\"' cuando responde afirmativamente a '\"&E42&\"'. '\"&E43&\"' debe estar vacio cuando responde negativamente a '\"&E42&\"'\")","v":"CORRECTO"},null,null,null,{"$f":"IF(P43=\"CORRECTO\",0,1)","v":0},null,{"$f":"IF(F43=\"\",0,1)","v":0},{"$f":"IF(OR(F43=\"\",F43=\"02. NO\"),0,1)","v":0},{"$f":"IF(AND(N42=0,N43=0),\"CORRECTO\",IF(AND(N42<>0,N43<>0),\"CORRECTO\",\"INCORRECTO\"))","v":"CORRECTO"}]
[null,null,1,"co-svsp-core:RazonSocialRevisorFiscalPersonaJurídica","¿A que firma pertenece el revisor fiscal?",null,null,{"$f":"IF(P44=\"CORRECTO\",\"CORRECTO\",\"Debe registrar información para '\"&E44&\"' cuando responde afirmativamente a '\"&E43&\"'. '\"&E44&\"' debe estar vacio cuando responde negativamente a '\"&E43&\"'\")","v":"CORRECTO"},null,null,null,{"$f":"IF(H44=\"CORRECTO\",0,1)","v":0},null,null,{"$f":"IF(F44=\"\",0,1)","v":0},{"$f":"IF(AND(O43=0,O44=0),\"CORRECTO\",IF(AND(O43<>0,O44<>0),\"CORRECTO\",\"INCORRECTO\"))","v":"CORRECTO"}]
[null,null,1,"co-svsp-core:DirecciondeDomicilioRevisorFiscalPersonaJurídica","Dirección de Domicilio de la firma a la cual pertenece el revisor fiscal",null,null,{"$f":"IF(P45=\"CORRECTO\",\"CORRECTO\",\"Debe registrar información para '\"&E45&\"' cuando responde afirmativamente a '\"&E43&\"'. '\"&E45&\"' debe estar vacio cuando responde negativamente a '\"&E43&\"'\")","v":"CORRECTO"},null,null,null,{"$f":"IF(H45=\"CORRECTO\",0,1)","v":0},null,null,{"$f":"IF(F45=\"\",0,1)","v":0},{"$f":"IF(AND(O43=0,O45=0),\"CORRECTO\",IF(AND(O43<>0,O45<>0),\"CORRECTO\",\"INCORRECTO\"))","v":"CORRECTO"}]
[null,null,1,"co-svsp-core:RegistroJCCRevisorFiscalPersonaJurídica","Registro en la Junta Central de Contadores del Revisor fiscal",null,null,{"$f":"IF(P46=\"CORRECTO\",\"CORRECTO\",\"Debe registrar información para '\"&E46&\"' cuando responde afirmativamente a '\"&E42&\"'. '\"&E46&\"' debe estar vacio cuando responde negativamente a '\"&E42&\"'\")","v":"CORRECTO"},null,null,null,{"$f":"IF(P46=\"CORRECTO\",0,1)","v":0},null,{"$f":"IF(F46=\"\",0,1)","v":0},null,{"$f":"IF(AND(N42=0,N46=0),\"CORRECTO\",IF(AND(N42<>0,N46<>0),\"CORRECTO\",\"INCORRECTO\"))","v":"CORRECTO"}]
[null,null,1,"co-svsp-core:InformacionSobreConsolidacionDeEstadosFinancieros","Información sobre consolidación de Estados Financieros"]
[null,null,1,"co-svsp-core:LaCompaniaEsResponsableDeConsolidarInformacionParaEstePeriodo","¿La compañía es responsable de consolidar información para este periodo?",null,null,{"$f":"IF(F48<>\"\",\"CORRECTO\",\"Debe registrar información para '\"&E48&\"'\")","v":"Debe registrar información para '¿La compañía es responsable de consolidar información para este periodo?'"},null,null,null,{"$f":"IF(H48=\"CORRECTO\",0,1)","v":1}]
[null,null,1,"co-svsp-core:LaCompaniaEsSubordinadaOAsociadaDeOtraCompania","¿La compañía es subordinada o asociada de otra compañía?",null,null,{"$f":"IF(F49<>\"\",\"CORRECTO\",\"Debe registrar información para '\"&E49&\"'\")","v":"Debe registrar información para '¿La compañía es subordinada o asociada de otra compañía?'"},null,null,null,{"$f":"IF(H49=\"CORRECTO\",0,1)","v":1}]
[null,null,1,"co-svsp-core:LaCompaniaTieneSubordinadas","¿La compañía tiene subordinadas?",null,null,{"$f":"IF(F50<>\"\",\"CORRECTO\",\"Debe registrar información para '\"&E50&\"'\")","v":"Debe registrar información para '¿La compañía tiene subordinadas?'"},null,null,null,{"$f":"IF(H50=\"CORRECTO\",0,1)","v":1}]
[null,null,1,"co-svsp-core:LaCompaniaTieneAsociadas","¿La compañía tiene asociadas?",null,null,{"$f":"IF(F51<>\"\",\"CORRECTO\",\"Debe registrar información para '\"&E51&\"'\")","v":"Debe registrar información para '¿La compañía tiene asociadas?'"},null,null,null,{"$f":"IF(H51=\"CORRECTO\",0,1)","v":1}]
[null,null,1,"co-svsp-core:LaCompaniaTieneNegociosConjuntos","¿La compañía tiene negocios conjuntos?",null,null,{"$f":"IF(F52<>\"\",\"CORRECTO\",\"Debe registrar información para '\"&E52&\"'\")","v":"Debe registrar información para '¿La compañía tiene negocios conjuntos?'"},null,null,null,{"$f":"IF(H52=\"CORRECTO\",0,1)","v":1}]

{"sheet":"110010 - Administradores","index":6,"n_rows":17,"n_cols":17,"rows_kept":17,"cut":false,"hidden":false,"merged":[[7,4,9,12],[12,5,12,10]]}
[]
[]
[]
[]
[]
[]
[]
[null,null,null,null,"110010 - Información a revelar sobre administradores"]
[]
[]
[]
[]
[null,null,null,null,null,"Detalles de Administradores ",null,null,null,null,null,null,{"$f":"IF(Q13=0,\"Formulario 'Administradores' Completo\",\"Formulario 'Administradores' con \"&Q13&\" filas por diligenciar\")","v":"Formulario 'Administradores' con 2 filas por diligenciar"},null,null,null,{"$f":"SUM(Q15:Q17)","v":2}]
[null,null,null,null,"co-svsp-core_2017-12-31:AdministradoresEje","Tipo de documento","Numero de documento","Nombres","Apellidos","Email","Tarjeta profesional"]
[null,null,null,null,"Representante legal [miembro]",null,null,null,null,null,null,null,{"$f":"IF(AND(F15<>\"\",G15<>\"\",H15<>\"\",I15<>\"\",J15<>\"\",P15=FALSE),\"CORRECTO\",\"Registre de forma completa y adecuada la información de \"&E15&\"'\")","v":"Registre de forma completa y adecuada la información de Representante legal [miembro]'"},{"$f":"ISERROR(AND(SEARCH(\"@\",H15),SEARCH(\".\",H15)))","v":true},null,{"$f":"ISERROR(AND(SEARCH(\"@\",J15),SEARCH(\".\",J15)))","v":true},{"$f":"IF(M15=\"CORRECTO\",0,1)","v":1}]
[null,null,null,null,"Contador [miembro]",null,null,null,null,null,null,null,{"$f":"IF(AND(E16<>\"\",F16<>\"\",G16<>\"\",H16<>\"\",I16<>\"\",J16<>\"\",K16<>\"\",P16=FALSE),\"CORRECTO\",\"Registre de forma completa y adecuada la información de \"&E16&\"'\")","v":"Registre de forma completa y adecuada la información de Contador [miembro]'"},{"$f":"ISERROR(AND(SEARCH(\"@\",H16),SEARCH(\".\",H16)))","v":true},null,{"$f":"ISERROR(AND(SEARCH(\"@\",J16),SEARCH(\".\",J16)))","v":true},{"$f":"IF(M16=\"CORRECTO\",0,1)","v":1}]
[null,null,null,null,"Revisor fiscal [miembro]",null,null,null,null,null,null,null,{"$f":"IF(OR('110000 - Carátula'!F42=\"\",'110000 - Carátula'!F42=\"02. NO\"),\"CORRECTO\",IF(AND('110000 - Carátula'!F42=\"01. SI\",F17<>\"\",G17<>\"\",H17<>\"\",I17<>\"\",J17<>\"\",K17<>\"\",P17=FALSE),\"CORRECTO\",\"Se indíca en 'Carátula' la obligatoriedad de tener revisor fiscal, de forma completa y adecuada la información de \"&E17&\"'\"))","v":"CORRECTO"},{"$f":"ISERROR(AND(SEARCH(\"@\",H17),SEARCH(\".\",H17)))","v":true},null,{"$f":"ISERROR(AND(SEARCH(\"@\",J17),SEARCH(\".\",J17)))","v":true},{"$f":"IF(M17=\"CORRECTO\",0,1)","v":0}]

{"sheet":"110010 GeneraXBRL","index":7,"n_rows":16,"n_cols":7,"rows_kept":16,"cut":false,"hidden":true,"merged":[[3,3,5,9],[7,3,7,6]]}
[]
[]
[]
[null,null,null,"110010 - Información a revelar sobre administradores"]
[]
[]
[]
[]
[null,null,null,null,"co-svsp-core:RepresentantePrincipalMiembro","co-svsp-core:ContadorMiembro","co-svsp-core:RevisorFiscalMiembro"]
[null,"Periodo",null,"co-svsp-core:AdministradoresEje","Representante legal [miembro]","Contador [miembro]","Revisor fiscal [miembro]"]
[null,"1;1","co-svsp-core:TipoDeDocumento","Tipo de documento",{"$f":"IF('110010 - Administradores'!F15=\"\",\"\",'110010 - Administradores'!F15)","v":""},{"$f":"IF('110010 - Administradores'!F16=\"\",\"\",'110010 - Administradores'!F16)","v":""},{"$f":"IF('110010 - Administradores'!F17=\"\",\"\",'110010 - Administradores'!F17)","v":""}]
[null,"1;1","co-svsp-core:NumeroDeDocumento","Numero de documento",{"$f":"IF('110010 - Administradores'!G15=\"\",\"\",'110010 - Administradores'!G15)","v":""},{"$f":"IF('110010 - Administradores'!G16=\"\",\"\",'110010 - Administradores'!G16)","v":""},{"$f":"IF('110010 - Administradores'!G17=\"\",\"\",'110010 - Administradores'!G17)","v":""}]
[null,"1;1","co-svsp-core:Nombres","Nombres",{"$f":"IF('110010 - Administradores'!H15=\"\",\"\",'110010 - Administradores'!H15)","v":""},{"$f":"IF('110010 - Administradores'!H16=\"\",\"\",'110010 - Administradores'!H16)","v":""},{"$f":"IF('110010 - Administradores'!H17=\"\",\"\",'110010 - Administradores'!H17)","v":""}]
[null,"1;1","co-svsp-core:Apellidos","Apellidos",{"$f":"IF('110010 - Administradores'!I15=\"\",\"\",'110010 - Administradores'!I15)","v":""},{"$f":"IF('110010 - Administradores'!I16=\"\",\"\",'110010 - Administradores'!I16)","v":""},{"$f":"IF('110010 - Administradores'!I17=\"\",\"\",'110010 - Administradores'!I17)","v":""}]
[null,"1;1","co-svsp-core:Email","Email",{"$f":"IF('110010 - Administradores'!J15=\"\",\"\",'110010 - Administradores'!J15)","v":""},{"$f":"IF('110010 - Administradores'!J16=\"\",\"\",'110010 - Administradores'!J16)","v":""},{"$f":"IF('110010 - Administradores'!J17=\"\",\"\",'110010 - Administradores'!J17)","v":""}]
[null,"1;1","co-svsp-core:TarjetaProfesional","Tarjeta profesional",{"$f":"IF('110010 - Administradores'!K15=\"\",\"\",'110010 - Administradores'!K15)","v":""},{"$f":"IF('110010 - Administradores'!K16=\"\",\"\",'110010 - Administradores'!K16)","v":""},{"$f":"IF('110010 - Administradores'!K17=\"\",\"\",'110010 - Administradores'!K17)","v":""}]

{"sheet":"210000 - Est. Situa. Financiera","index":8,"n_rows":85,"n_cols":14,"rows_kept":85,"cut":false,"hidden":false,"merged":[[6,4,8,9],[12,8,12,9]]}
[]
[]
[]
[]
[]
[]
[null,null,null,null,"210000 - ESTADO DE SITUACIÓN FINANCIERA"]
[]
[]
[]
[]
[null,null,null,null,null,1,2]
[null,null,null,null,null,{"$f":"Periodos!$C$4","v":"2023-12-31"},{"$f":"Periodos!$D$4","v":"2022-12-31"},null,{"$f":"IF(M13=0,\"Formulario 'Estado de Situación Financiera' Válido\",\"Formulario 'Estado de Situación Financiera' con \"&M13&\" inconsistencias\")","v":"Formulario 'Estado de Situación Financiera' con 6 inconsistencias"},null,null,null,{"$f":"SUM(M14:N80)","v":6}]
[null,null,1,"ifrs-full:StatementOfFinancialPositionAbstract","Estado de situación financiera [resumen]",null,null,null,null,null,null,null,{"$f":"IF(F84=\"CORRECTO\",0,1)","v":1}]
[null,null,1,"ifrs-full:AssetsAbstract","Activos [resumen]",null,null,null,null,null,null,null,{"$f":"IF(G84=\"CORRECTO\",0,1)","v":0}]
[null,null,1,"ifrs-full:CurrentAssetsAbstract","Activos corrientes [resumen]"]
[null,null,1,"ifrs-full:CashAndCashEquivalents","Efectivo y equivalentes al efectivo",{"$f":"'800101 - Nota. Efect. y Equiv.'!F25","v":0},{"$f":"'800101 - Nota. Efect. y Equiv.'!G25","v":0}]
[null,null,1,"ifrs-full:Inventories","Inventarios corrientes"]
[null,null,1,"ifrs-full:CurrentTaxAssetsCurrent","Activos por impuestos corrientes, corriente"]
[null,null,1,"ifrs-full:TradeAndOtherCurrentReceivables","Cuentas comerciales por cobrar y otras cuentas por cobrar corrientes",{"$f":"'800111 - Nota. Cuentas x cobrar'!F28+'800111 - Nota. Cuentas x cobrar'!G28","v":0},{"$f":"'800111 - Nota. Cuentas x cobrar'!F49+'800111 - Nota. Cuentas x cobrar'!G49","v":0}]
[null,null,1,"ifrs-full:CurrentBiologicalAssets","Activos biológicos corrientes"]
[null,null,1,"ifrs-full:OtherCurrentFinancialAssets","Otros activos financieros corrientes"]
[null,null,1,"ifrs-full:OtherCurrentNonfinancialAssets","Otros activos no financieros corrientes"]
[null,null,1,"ifrs-full:CurrentNoncashAssetsPledgedAsCollateralForWhichTransfereeHasRightByContractOrCustomToSellOrRepledgeCollateral","Activos corrientes distintos al efectivo pignorados como garantía colateral para las que el receptor de transferencias tiene derecho por contrato o costumbre a vender o pignorar de nuevo dicha garantía colateral"]
[null,null,1,"ifrs-full:CurrentAssetsOtherThanAssetsOrDisposalGroupsClassifiedAsHeldForSaleOrAsHeldForDistributionToOwners","Total activos corrientes distintos de los activos no corrientes o grupo de activos para su disposición clasificados como mantenidos para la venta o como mantenidos para distribuir a los propietarios",{"$f":"IF(SUM(F17:F24)=0,\"\",SUM(F17:F24))","v":""},{"$f":"IF(SUM(G17:G24)=0,\"\",SUM(G17:G24))","v":""}]
[null,null,1,"ifrs-full:NoncurrentAssetsOrDisposalGroupsClassifiedAsHeldForSaleOrAsHeldForDistributionToOwners","Activos no corrientes o grupos de activos para su disposición clasificados como mantenidos para la venta o como mantenidos para distribuir a los propietarios"]
[null,null,1,"ifrs-full:CurrentAssets","Activos corrientes totales",{"$f":"IF(SUM(F17:F24)+F26=0,\"\",SUM(F17:F24)+F26)","v":""},{"$f":"IF(SUM(G17:G24)+G26=0,\"\",SUM(G17:G24)+G26)","v":""}]
[null,null,1,"ifrs-full:NoncurrentAssetsAbstract","Activos no corrientes [resumen]"]
[null,null,1,"ifrs-full:InvestmentProperty","Propiedad de inversión"]
[null,null,1,"ifrs-full:PropertyPlantAndEquipment","Propiedades, planta y equipo",{"$f":"'822100 - Nota. Prop, plan y eq.'!AB43","v":0},{"$f":"'822100 - Nota. Prop, plan y eq.'!AB22","v":0}]
[null,null,1,"ifrs-full:Goodwill","Plusvalía"]
[null,null,1,"ifrs-full:IntangibleAssetsOtherThanGoodwill","Activos intangibles distintos de la plusvalía",{"$f":"+'823180 - Nota. Activos Intang.'!O38","v":0},{"$f":"+'823180 - Nota. Activos Intang.'!O67","v":0}]
[null,null,1,"ifrs-full:InvestmentAccountedForUsingEquityMethod","Inversiones contabilizadas utilizando el método de la participación"]
[null,null,1,"ifrs-full:InvestmentsInSubsidiariesJointVenturesAndAssociates","Inversiones en subsidiarias, negocios conjuntos y asociadas"]
[null,null,1,"ifrs-full:NoncurrentBiologicalAssets","Activos biológicos no corrientes"]
[null,null,1,"ifrs-full:NoncurrentReceivables","Cuentas comerciales por cobrar y otras cuentas por cobrar no corrientes",{"$f":"'800111 - Nota. Cuentas x cobrar'!H28+'800111 - Nota. Cuentas x cobrar'!I28","v":0},{"$f":"'800111 - Nota. Cuentas x cobrar'!H49+'800111 - Nota. Cuentas x cobrar'!I49","v":0}]
[null,null,1,"ifrs-full:NoncurrentInventories","Inventarios no corrientes"]
[null,null,1,"ifrs-full:DeferredTaxAssets","Activos por impuestos diferidos"]
[null,null,1,"ifrs-full:CurrentTaxAssetsNoncurrent","Activos por impuestos corrientes, no corriente"]
[null,null,1,"ifrs-full:OtherNoncurrentFinancialAssets","Otros activos financieros no corrientes"]
[null,null,1,"ifrs-full:OtherNoncurrentNonfinancialAssets","Otros activos no financieros no corrientes"]
[null,null,1,"ifrs-full:NoncurrentNoncashAssetsPledgedAsCollateralForWhichTransfereeHasRightByContractOrCustomToSellOrRepledgeCollateral","Activos no corrientes distintos al efectivo pignorados como garantía colateral para las que el receptor de transferencias tiene derecho por contrato o costumbre a vender o pignorar de nuevo la garantía colateral"]
[null,null,1,"ifrs-full:NoncurrentAssets","Total de activos no corrientes",{"$f":"IF(SUM(F29:F42)=0,\"\",SUM(F29:F42))","v":""},{"$f":"IF(SUM(G29:G42)=0,\"\",SUM(G29:G42))","v":""}]
[null,null,1,"ifrs-full:Assets","Total de activos",{"$f":"IF(SUM(F17:F24)+F26+SUM(F29:F42)=0,\"\",SUM(F17:F24)+F26+SUM(F29:F42))","v":""},{"$f":"SUM(G17:G24)+G26+SUM(G29:G42)","v":0},null,{"$f":"IF(F44<>\"\",\"CORRECTO\",\"Debe registrar información para '\"&E44&\"' en la columna correspondiente al periodo actual.\")","v":"Debe registrar información para 'Total de activos' en la columna correspondiente al periodo actual."},{"$f":"IF(G44<>\"\",\"CORRECTO\",\"Debe registrar información para '\"&E44&\"'  en la columna correspondiente al periodo anterior. En caso de que la empresa haya sido constituida el mismo año de la fecha de corte, registre cero en '\"&E25&\"'. (Celda F14)\")","v":"CORRECTO"}]
[null,null,1,"ifrs-full:EquityAndLiabilitiesAbstract","Patrimonio y pasivos [resumen]"]
[null,null,1,"ifrs-full:LiabilitiesAbstract","Pasivos [resumen]"]
[null,null,1,"ifrs-full:CurrentLiabilitiesAbstract","Pasivos corrientes [resumen]"]
[null,null,1,"ifrs-full:CurrentProvisionsAbstract","Disposiciones actuales [resumen]"]
[null,null,1,"ifrs-full:CurrentProvisionsForEmployeeBenefits","Provisiones corrientes por beneficios a los empleados"]
[null,null,1,"ifrs-full:OtherShorttermProvisions","Otras provisiones corrientes"]
[null,null,1,"ifrs-full:CurrentProvisions","Total provisiones corrientes",{"$f":"IF(SUM(F49:F50)=0,\"\",SUM(F49:F50))","v":""},{"$f":"IF(SUM(G49:G50)=0,\"\",SUM(G49:G50))","v":""}]
[null,null,1,"ifrs-full:TradeAndOtherCurrentPayables","Cuentas por pagar comerciales y otras cuentas por pagar",{"$f":"'828000 - Nota. Cuentas x pagar'!F18+'828000 - Nota. Cuentas x pagar'!G18","v":0},{"$f":"'828000 - Nota. Cuentas x pagar'!F31+'828000 - Nota. Cuentas x pagar'!G31","v":0}]
[null,null,1,"ifrs-full:CurrentTaxLiabilitiesCurrent","Pasivos por impuestos corrientes, corriente"]
[null,null,1,"ifrs-full:OtherCurrentFinancialLiabilities","Otros pasivos financieros corrientes",{"$f":"'828000 - Nota. Cuentas x pagar'!F19+'828000 - Nota. Cuentas x pagar'!G19","v":0},{"$f":"'828000 - Nota. Cuentas x pagar'!F32+'828000 - Nota. Cuentas x pagar'!G32","v":0}]
[null,null,1,"ifrs-full:OtherCurrentNonfinancialLiabilities","Otros pasivos no financieros corrientes"]
[null,null,1,"ifrs-full:CurrentLiabilitiesOtherThanLiabilitiesIncludedInDisposalGroupsClassifiedAsHeldForSale","Total de pasivos corrientes distintos de los pasivos incluidos en grupos de activos para su disposición clasificados como mantenidos para la venta",{"$f":"IF(SUM(F49:F50)+SUM(F52:F55)=0,\"\",SUM(F49:F50)+SUM(F52:F55))","v":""},{"$f":"IF(SUM(G49:G50)+SUM(G52:G55)=0,\"\",SUM(G49:G50)+SUM(G52:G55))","v":""}]
[null,null,1,"ifrs-full:LiabilitiesIncludedInDisposalGroupsClassifiedAsHeldForSale","Pasivos incluidos en grupos de activos para su disposición clasificados como mantenidos para la venta"]
[null,null,1,"ifrs-full:CurrentLiabilities","Pasivos corrientes totales",{"$f":"IF(SUM(F49:F50)+SUM(F52:F55)+F57=0,\"\",SUM(F49:F50)+SUM(F52:F55)+F57)","v":""},{"$f":"IF(AND(G49=\"\",SUM(G49:G50)+SUM(G52:G55)+G57)=0,\"\",SUM(G49:G50)+SUM(G52:G55)+G57)","v":0}]
[null,null,1,"ifrs-full:NoncurrentLiabilitiesAbstract","Pasivos no corrientes [resumen]"]
[null,null,1,"ifrs-full:NoncurrentProvisionsAbstract","Provisiones no corrientes [resumen]"]
[null,null,1,"ifrs-full:NoncurrentProvisionsForEmployeeBenefits","Provisiones no corrientes por beneficios a los empleados"]
[null,null,1,"ifrs-full:OtherLongtermProvisions","Otras provisiones no corrientes"]
[null,null,1,"ifrs-full:NoncurrentProvisions","Total provisiones no corrientes",{"$f":"IF(SUM(F61:F62)=0,\"\",SUM(F61:F62))","v":""},{"$f":"IF(SUM(G61:G62)=0,\"\",SUM(G61:G62))","v":""}]
[null,null,1,"ifrs-full:NoncurrentPayables","Cuentas comerciales por pagar y otras cuentas por pagar no corrientes",{"$f":"'828000 - Nota. Cuentas x pagar'!H18+'828000 - Nota. Cuentas x pagar'!I18","v":0},{"$f":"'828000 - Nota. Cuentas x pagar'!H31+'828000 - Nota. Cuentas x pagar'!I31","v":0}]
[null,null,1,"ifrs-full:DeferredTaxLiabilities","Pasivo por impuestos diferidos"]
[null,null,1,"ifrs-full:CurrentTaxLiabilitiesNoncurrent","Pasivos por impuestos corrientes, no corriente"]
[null,null,1,"ifrs-full:OtherNoncurrentFinancialLiabilities","Otros pasivos financieros no corrientes",{"$f":"'828000 - Nota. Cuentas x pagar'!H19+'828000 - Nota. Cuentas x pagar'!I19","v":0},{"$f":"'828000 - Nota. Cuentas x pagar'!H32+'828000 - Nota. Cuentas x pagar'!I32","v":0}]
[null,null,1,"ifrs-full:OtherNoncurrentNonfinancialLiabilities","Otros pasivos no financieros no corrientes"]
[null,null,1,"ifrs-full:NoncurrentLiabilities","Total de pasivos no corrientes",{"$f":"IF(SUM(F61:F62)+SUM(F64:F68)=0,\"\",SUM(F61:F62)+SUM(F64:F68))","v":""},{"$f":"IF(SUM(G61:G62)+SUM(G64:G68)=0,\"\",SUM(G61:G62)+SUM(G64:G68))","v":""}]
[null,null,1,"ifrs-full:Liabilities","Total pasivos",{"$f":"IF(SUM(F49:F50)+SUM(F52:F55)+F57+SUM(F61:F62)+SUM(F64:F68)=0,\"\",SUM(F49:F50)+SUM(F52:F55)+F57+SUM(F61:F62)+SUM(F64:F68))","v":""},{"$f":"SUM(G49:G50)+SUM(G52:G55)+G57+SUM(G61:G62)+SUM(G64:G68)","v":0},null,{"$f":"IF(F70<>\"\",\"CORRECTO\",\"Debe registrar información para '\"&E70&\"' en la columna correspondiente al periodo actual.\")","v":"Debe registrar información para 'Total pasivos' en la columna correspondiente al periodo actual."},{"$f":"IF(G70<>\"\",\"CORRECTO\",\"Debe registrar información para '\"&E70&\"'  en la columna correspondiente al periodo anterior. En caso de que la empresa haya sido constituida el mismo año de la fecha de corte, registre cero\")","v":"CORRECTO"},null,null,{"$f":"IF(I70=\"CORRECTO\",0,1)","v":1},{"$f":"IF(J70=\"CORRECTO\",0,1)","v":0}]
[null,null,1,"ifrs-full:EquityAbstract","Patrimonio [resumen]"]
[null,null,1,"ifrs-full:IssuedCapital","Capital emitido: Capital social, Capital suscrito o Aportes sociales",null,null,null,{"$f":"IF(F72<>\"\",\"CORRECTO\",\"Debe registrar información para '\"&E72&\"' en la columna correspondiente al periodo actual.\")","v":"Debe registrar información para 'Capital emitido: Capital social, Capital suscrito o Aportes sociales' en la columna correspondiente al periodo actual."},{"$f":"IF(G72<>\"\",\"CORRECTO\",\"Debe registrar información para '\"&E72&\"'  en la columna correspondiente al periodo anterior. En caso de que la empresa haya sido constituida el mismo año de la fecha de corte, registre cero.\")","v":"Debe registrar información para 'Capital emitido: Capital social, Capital suscrito o Aportes sociales'  en la columna correspondiente al periodo anterior. En caso de que la empresa haya sido constituida el mismo año de la fecha de corte, registre cero."},null,null,{"$f":"IF(I72=\"CORRECTO\",0,1)","v":1},{"$f":"IF(J72=\"CORRECTO\",0,1)","v":1}]
[null,null,1,"ifrs-full:RetainedEarnings","Ganancias acumuladas"]
[null,null,1,"ifrs-full:SharePremium","Prima de emisión"]
[null,null,1,"ifrs-full:TreasuryShares","Acciones propias en cartera"]
[null,null,1,"co-svsp-core:InversionSuplementariaAlCapitalAsignado","Inversión suplementaria al capital asignado"]
[null,null,1,"ifrs-full:OtherEquityInterest","Otras participaciones en el patrimonio"]
[null,null,1,"ifrs-full:OtherReserves","Otras reservas"]
[null,null,1,"ifrs-full:Equity","Patrimonio total",{"$f":"IF(SUM(F72:F78)=0,\"\",F72+F73+F74-F75+F76+F77+F78)","v":""},{"$f":"G72+G73+G74-G75+G76+G77+G78","v":0},null,{"$f":"IF(F79<>\"\",\"CORRECTO\",\"Debe registrar información para '\"&E79&\"' en la columna correspondiente al periodo actual.\")","v":"Debe registrar información para 'Patrimonio total' en la columna correspondiente al periodo actual."},{"$f":"IF(G79<>\"\",\"CORRECTO\",\"Debe registrar información para '\"&E79&\"'  en la columna correspondiente al periodo anterior. En caso de que la empresa haya sido constituida el mismo año de la fecha de corte, registre cero en '\"&E60&\"'. (Celda F14)\")","v":"CORRECTO"},null,null,{"$f":"IF(I79=\"CORRECTO\",0,1)","v":1},{"$f":"IF(J79=\"CORRECTO\",0,1)","v":0}]
[null,null,1,"ifrs-full:EquityAndLiabilities","Total de patrimonio y pasivos",{"$f":"IF(SUM(F49:F50)+SUM(F52:F55)+F57+SUM(F61:F62)+SUM(F64:F68)+SUM(F72:F78)=0,\"\",SUM(F49:F50)+SUM(F52:F55)+F57+SUM(F61:F62)+SUM(F64:F68)+F72+F73+F74-F75+F76+F77+F78)","v":""},{"$f":"SUM(G49:G50)+SUM(G52:G55)+G57+SUM(G61:G62)+SUM(G64:G68)+G72+G73+G74-G75+G76+G77+G78","v":0},null,{"$f":"IF(F80<>\"\",\"CORRECTO\",\"Debe registrar información para '\"&E80&\"' en la columna correspondiente al periodo actual.\")","v":"Debe registrar información para 'Total de patrimonio y pasivos' en la columna correspondiente al periodo actual."},{"$f":"IF(G80<>\"\",\"CORRECTO\",\"Debe registrar información para '\"&E80&\"'  en la columna correspondiente al periodo anterior. En caso de que la empresa haya sido constituida el mismo año de la fecha de corte, registre cero en '\"&E61&\"'. (Celda F14)\")","v":"CORRECTO"},null,null,{"$f":"IF(I80=\"CORRECTO\",0,1)","v":1},{"$f":"IF(J80=\"CORRECTO\",0,1)","v":0}]
[]
[]
[]
[null,null,null,null,"Cumplimiento de la Ecuación contable",{"$f":"IF(F85=0,\"CORRECTO\",\"INCORRECTO\")","v":"INCORRECTO"},{"$f":"IF(G85=0,\"CORRECTO\",\"INCORRECTO\")","v":"CORRECTO"}]
[null,null,null,null,"Diferencia entre Activo y Pasivo + Patrimonio",{"$f":"IFERROR(+F44-F80,\"Registre valor en Total Activos y en Total Patrimonio y pasivos\")","v":"Registre valor en Total Activos y en Total Patrimonio y pasivos"},{"$f":"IFERROR(+G44-G80,\"Registre valor en Total Activos y en Total Patrimonio y pasivos\")","v":0}]

{"sheet":"310000 - Est. Resultados","index":9,"n_rows":48,"n_cols":14,"rows_kept":48,"cut":false,"hidden":false,"merged":[[6,4,8,9],[12,8,12,9]]}
[]
[]
[]
[]
[]
[]
[null,null,null,null,"310000 - ESTADO DE RESULTADOS"]
[]
[]
[]
[]
[null,null,null,null,null,1,2]
[null,null,null,null,null,{"$f":"Periodos!$C$4","v":"2023-12-31"},{"$f":"Periodos!$D$4","v":"2022-12-31"},null,{"$f":"IF(N13=0,\"Formulario 'Estado de Resultados' Válido\",\"Formulario 'Estado de Resultados' con \"&N13&\" inconsistencias\")","v":"Formulario 'Estado de Resultados' con 4 inconsistencias"},null,null,null,null,{"$f":"SUM(M16:N39)","v":4}]
[null,null,0,"ifrs-full:IncomeStatementAbstract","Resultado de periodo [resumen]"]
[null,null,0,"ifrs-full:ProfitLossAbstract","Ganancia (pérdida) [resumen]"]
[null,null,0,"ifrs-full:Revenue","Ingresos de actividades ordinarias",null,null,null,{"$f":"IF(F16<>\"\",\"CORRECTO\",\"Debe registrar información para '\"&E16&\"' en la columna correspondiente al periodo actual.\")","v":"Debe registrar información para 'Ingresos de actividades ordinarias' en la columna correspondiente al periodo actual."},{"$f":"IF(G16<>\"\",\"CORRECTO\",\"Debe registrar información para '\"&E16&\"'  en la columna correspondiente al periodo anterior.\")","v":"Debe registrar información para 'Ingresos de actividades ordinarias'  en la columna correspondiente al periodo anterior."},null,null,{"$f":"IF(I16=\"CORRECTO\",0,1)","v":1},1]
[null,null,0,"ifrs-full:CostOfSales","Costo de ventas",null,null,null,{"$f":"IF(F17<>\"\",\"CORRECTO\",\"Debe registrar información para '\"&E17&\"' en la columna correspondiente al periodo actual.\")","v":"Debe registrar información para 'Costo de ventas' en la columna correspondiente al periodo actual."},{"$f":"IF(G17<>\"\",\"CORRECTO\",\"Debe registrar información para '\"&E17&\"'  en la columna correspondiente al periodo anterior.\")","v":"Debe registrar información para 'Costo de ventas'  en la columna correspondiente al periodo anterior."},null,null,1,1]
[null,null,0,"ifrs-full:GrossProfit","Ganancia bruta",{"$f":"F16-F17","v":0},{"$f":"G16-G17","v":0},null,{"$f":"IF(F18<>\"\",\"CORRECTO\",\"Debe registrar información para '\"&E18&\"' en la columna correspondiente al periodo actual.\")","v":"CORRECTO"},{"$f":"IF(G18<>\"\",\"CORRECTO\",\"Debe registrar información para '\"&E18&\"'  en la columna correspondiente al periodo anterior.\")","v":"CORRECTO"},null,null,0,0]
[null,null,0,"ifrs-full:OtherIncome","Otros ingresos"]
[null,null,0,"ifrs-full:DistributionCosts","Costos de distribución"]
[null,null,0,"ifrs-full:AdministrativeExpense","Gastos de administración"]
[null,null,0,"ifrs-full:OtherExpenseByFunction","Otros gastos"]
[null,null,0,"ifrs-full:OtherGainsLosses","Otras ganancias (pérdidas)"]
[null,null,0,"ifrs-full:ProfitLossFromOperatingActivities","Ganancia (pérdida) por actividades de operación",{"$f":"F18+F19-F20-F21-F22+F23","v":0},{"$f":"G18+G19-G20-G21-G22+G23","v":0},null,{"$f":"IF(F24<>\"\",\"CORRECTO\",\"Debe registrar información para '\"&E24&\"' en la columna correspondiente al periodo actual.\")","v":"CORRECTO"},{"$f":"IF(G24<>\"\",\"CORRECTO\",\"Debe registrar información para '\"&E24&\"'  en la columna correspondiente al periodo anterior.\")","v":"CORRECTO"},null,null,{"$f":"IF(I24=\"CORRECTO\",0,1)","v":0},{"$f":"IF(J24=\"CORRECTO\",0,1)","v":0}]
[null,null,0,"ifrs-full:DifferenceBetweenCarryingAmountOfDividendsPayableAndCarryingAmountOfNoncashAssetsDistributed","Diferencia entre el importe en libros de dividendos pagaderos e importe en libros de activos distribuidos distintos al efectivo"]
[null,null,0,"ifrs-full:GainLossArisingFromDerecognitionOfFinancialAssetsMeasuredAtAmortisedCost","Ganancias (pérdidas) que surgen de la baja en cuentas de activos financieros medidos al costo amortizado"]
[null,null,0,"ifrs-full:FinanceIncome","Ingresos financieros"]
[null,null,0,"ifrs-full:FinanceCosts","Costos financieros"]
[null,null,0,"ifrs-full:ImpairmentLossImpairmentGainAndReversalOfImpairmentLossDeterminedInAccordanceWithIFRS9","Deterioro de valor de ganancias y reversión de pérdidas por deterioro de valor (pérdidas por deterioro de valor) determinado de acuerdo con la NIIF 9"]
[null,null,0,"ifrs-full:ShareOfProfitLossOfAssociatesAndJointVenturesAccountedForUsingEquityMethod","Participación en las ganancias (pérdidas) de asociadas y negocios conjuntos que se contabilicen utilizando el método de la participación"]
[null,null,0,"ifrs-full:OtherIncomeExpenseFromSubsidiariesJointlyControlledEntitiesAndAssociates","Otros ingresos (gastos) procedentes de subsidiarias, entidades controladas de forma conjunta y asociadas"]
[null,null,0,"ifrs-full:GainsLossesArisingFromDifferenceBetweenPreviousCarryingAmountAndFairValueOfFinancialAssetsReclassifiedAsMeasuredAtFairValue","Ganancias (pérdidas) que surgen de diferencias entre el costo amortizado anterior y el valor razonable de activos financieros reclasificados de la categoría de medición costo amortizado a la categoría de medición de valor razonable con cambios en resultados"]
[null,null,0,"ifrs-full:CumulativeGainLossPreviouslyRecognisedInOtherComprehensiveIncomeArisingFromReclassificationOfFinancialAssetsOutOfFairValueThroughOtherComprehensiveIncomeIntoFairValueThroughProfitOrLossMeasurementCategory","Ganancia (pérdida) acumulada anteriormente reconocida en otro resultado integral que surge de la reclasificación de activos financieros de la categoría de medición de valor razonable con cambios en otro resultado integral a la de valor razonable con cambios en resultados"]
[null,null,0,"ifrs-full:HedgingGainsLossesForHedgeOfGroupOfItemsWithOffsettingRiskPositions","Ganancias (pérdidas) de cobertura por cobertura de un grupo de partidas con posiciones de riesgo compensadoras"]
[null,null,0,"ifrs-full:ProfitLossBeforeTax","Ganancia (pérdida), antes de impuestos",{"$f":"F24+F25+F26+F27-F28-F29+F30+F31+F32+F33+F34","v":0},{"$f":"G24+G25+G26+G27-G28-G29+G30+G31+G32+G33+G34","v":0},null,{"$f":"IF(F35<>\"\",\"CORRECTO\",\"Debe registrar información para '\"&E35&\"' en la columna correspondiente al periodo actual.\")","v":"CORRECTO"},{"$f":"IF(G35<>\"\",\"CORRECTO\",\"Debe registrar información para '\"&E35&\"'  en la columna correspondiente al periodo anterior.\")","v":"CORRECTO"},null,null,{"$f":"IF(I35=\"CORRECTO\",0,1)","v":0},{"$f":"IF(J35=\"CORRECTO\",0,1)","v":0}]
[null,null,0,"ifrs-full:IncomeTaxExpenseContinuingOperations","Ingreso (gasto) por impuestos"]
[null,null,0,"ifrs-full:ProfitLossFromContinuingOperations","Ganancia (pérdida) procedente de operaciones continuadas",{"$f":"F35-F36","v":0},{"$f":"IF(G35=\"\",\"\",G35-G36)","v":0},null,{"$f":"IF(F37<>\"\",\"CORRECTO\",\"Debe registrar información para '\"&E37&\"' en la columna correspondiente al periodo actual.\")","v":"CORRECTO"},{"$f":"IF(G37<>\"\",\"CORRECTO\",\"Debe registrar información para '\"&E37&\"'  en la columna correspondiente al periodo anterior.\")","v":"CORRECTO"}]
[null,null,0,"ifrs-full:ProfitLossFromDiscontinuedOperations","Ganancia (pérdida) procedente de operaciones discontinuadas"]
[null,null,0,"ifrs-full:ProfitLoss","Ganancia (pérdida)",{"$f":"F37+F38","v":0},{"$f":"G37+G38","v":0},null,{"$f":"IF(F39<>\"\",\"CORRECTO\",\"Debe registrar información para '\"&E39&\"' en la columna correspondiente al periodo actual.\")","v":"CORRECTO"},{"$f":"IF(G39<>\"\",\"CORRECTO\",\"Debe registrar información para '\"&E39&\"'  en la columna correspondiente al periodo anterior.\")","v":"CORRECTO"},null,null,{"$f":"IF(I39=\"CORRECTO\",0,1)","v":0},{"$f":"IF(J39=\"CORRECTO\",0,1)","v":0}]
[null,null,0,"ifrs-full:EarningsPerShareAbstract","Ganancias por acción [resumen]"]
[null,null,0,"ifrs-full:BasicEarningsPerShareAbstract","Ganancia por acción básica [resumen]"]
[null,null,0,"ifrs-full:BasicEarningsLossPerShareFromContinuingOperations","Ganancia (pérdida) por acción básica en operaciones continuadas"]
[null,null,0,"ifrs-full:BasicEarningsLossPerShareFromDiscontinuedOperations","Ganancia (pérdida) por acción básica en operaciones discontinuadas"]
[null,null,0,"ifrs-full:BasicEarningsLossPerShare","Total ganancias (pérdidas) básicas por acción",{"$f":"F42+F43","v":0},{"$f":"G42+G43","v":0}]
[null,null,0,"ifrs-full:DilutedEarningsPerShareAbstract","Ganancias por acción diluidas [resumen]"]
[null,null,0,"ifrs-full:DilutedEarningsLossPerShareFromContinuingOperations","Ganancias (pérdida) diluida por acción procedente de operaciones continuadas"]
[null,null,0,"ifrs-full:DilutedEarningsLossPerShareFromDiscontinuedOperations","Ganancias (pérdida) diluida por acción procedentes de operaciones discontinuadas"]
[null,null,0,"ifrs-full:DilutedEarningsLossPerShare","Total ganancias (pérdidas) por acción diluidas",{"$f":"F46+F47","v":0},{"$f":"G46+G47","v":0}]

{"sheet":"410000 - Est. Resultados ORI","index":10,"n_rows":57,"n_cols":14,"rows_kept":57,"cut":false,"hidden":false,"merged":[[6,4,8,9],[12,8,12,9]]}
[]
[]
[]
[]
[]
[]
[null,null,null,null,"410000 - ESTADO DE RESULTADOS - COMPONENTES ORI"]
[]
[]
[]
[]
[null,null,null,null,null,1,2]
[null,null,null,null,null,{"$f":"Periodos!$C$4","v":"2023-12-31"},{"$f":"Periodos!$D$4","v":"2022-12-31"},null,{"$f":"IF(N13=0,\"Formulario 'Estado de Resultados - ORI' Válido\",\"Formulario 'Estado de Resultados - ORI' con \"&N13&\" inconsistencias\")","v":"Formulario 'Estado de Resultados - ORI' Válido"},null,null,null,null,{"$f":"SUM(M15:N57)","v":0}]
[null,null,0,"ifrs-full:StatementOfComprehensiveIncomeAbstract","Estado del resultado integral [resumen]"]
[null,null,0,"ifrs-full:ProfitLoss","Ganancia (pérdida)",{"$f":"'310000 - Est. Resultados'!F39","v":0},{"$f":"'310000 - Est. Resultados'!G39","v":0},null,{"$f":"IF(F15<>\"\",\"CORRECTO\",\"Debe registrar información para '\"&E15&\"' en la columna correspondiente al periodo actual.\")","v":"CORRECTO"},{"$f":"IF(G15<>\"\",\"CORRECTO\",\"Debe registrar información para '\"&E15&\"'  en la columna correspondiente al periodo anterior.\")","v":"CORRECTO"},null,null,{"$f":"IF(I15=\"CORRECTO\",0,1)","v":0},{"$f":"IF(J15=\"CORRECTO\",0,1)","v":0}]
[null,null,0,"ifrs-full:OtherComprehensiveIncomeAbstract","Otro resultado integral [resumen]"]
[null,null,0,"ifrs-full:ComponentsOfOtherComprehensiveIncomeThatWillNotBeReclassifiedToProfitOrLossNetOfTaxAbstract","Componentes de otro resultado integral que no se reclasificarán al resultado del periodo, netos de impuestos [resumen]"]
[null,null,0,"ifrs-full:OtherComprehensiveIncomeNetOfTaxGainsLossesFromInvestmentsInEquityInstruments","Otro resultado integral, neto de impuestos, ganancias (pérdidas) de inversiones en instrumentos de patrimonio"]
[null,null,0,"ifrs-full:OtherComprehensiveIncomeNetOfTaxGainsLossesOnRevaluation","Otro resultado integral, neto de impuestos, ganancias (pérdidas) por revaluación"]
[null,null,0,"ifrs-full:OtherComprehensiveIncomeNetOfTaxGainsLossesOnRemeasurementsOfDefinedBenefitPlans","Otro resultado integral, neto de impuestos, ganancias (pérdidas) por nuevas mediciones de planes de beneficios definidos"]
[null,null,0,"ifrs-full:OtherComprehensiveIncomeNetOfTaxChangeInFairValueOfFinancialLiabilityAttributableToChangeInCreditRiskOfLiability","Otro resultado integral, neto de impuestos, cambio en el valor razonable de pasivos financieros atribuible a cambios en el riesgo crediticio del pasivo"]
[null,null,0,"ifrs-full:ShareOfOtherComprehensiveIncomeOfAssociatesAndJointVenturesAccountedForUsingEquityMethodThatWillNotBeReclassifiedToProfitOrLossNetOfTax","Participación de otro resultado integral de asociadas y negocios conjuntos contabilizados utilizando el método de la participación que no se reclasificará al resultado del periodo, neto de impuestos"]
[null,null,0,"ifrs-full:OtherComprehensiveIncomeThatWillNotBeReclassifiedToProfitOrLossNetOfTax","Total otro resultado integral que no se reclasificará al resultado del periodo, neto de impuestos",{"$f":"F18+F19+F20+F21+F22","v":0},{"$f":"G18+G19+G20+G21+G22","v":0}]
[null,null,0,"ifrs-full:ComponentsOfOtherComprehensiveIncomeThatWillBeReclassifiedToProfitOrLossNetOfTaxAbstract","Componentes de otro resultado integral que se reclasificarán al resultado del periodo, netos de impuestos [resumen]"]
[null,null,0,"ifrs-full:ExchangeDifferencesOnTranslationAbstract","Diferencias de cambio por conversión [resumen]"]
[null,null,0,"ifrs-full:GainsLossesOnExchangeDifferencesOnTranslationNetOfTax","Ganancias (pérdidas) por diferencias de cambio de conversión, netas de impuestos"]
[null,null,0,"ifrs-full:ReclassificationAdjustmentsOnExchangeDifferencesOnTranslationNetOfTax","Ajustes de reclasificación en diferencias de cambio de conversión, netos de impuestos"]
[null,null,0,"ifrs-full:OtherComprehensiveIncomeNetOfTaxExchangeDifferencesOnTranslation","Otro resultado integral, neto de impuestos, diferencias de cambio por conversión",{"$f":"F26-F27","v":0},{"$f":"G26-G27","v":0}]
[null,null,0,"ifrs-full:AvailableforsaleFinancialAssetsAbstract","Activos financieros disponibles para la venta [resumen]"]
[null,null,0,"ifrs-full:GainsLossesOnRemeasuringAvailableforsaleFinancialAssetsNetOfTax","Ganancias (pérdidas) por nuevas mediciones de activos financieros disponibles para la venta, netas de impuestos"]
[null,null,0,"ifrs-full:ReclassificationAdjustmentsOnAvailableforsaleFinancialAssetsNetOfTax","Ajustes de reclasificación, activos financieros disponibles para la venta, netos de impuestos"]
[null,null,0,"ifrs-full:OtherComprehensiveIncomeNetOfTaxAvailableforsaleFinancialAssets","Otro resultado integral, neto de impuestos, activos financieros disponibles para la venta",{"$f":"F30-F31","v":0},{"$f":"G30-G31","v":0}]
[null,null,0,"ifrs-full:CashFlowHedgesAbstract","Coberturas del flujo de efectivo [resumen]"]
[null,null,0,"ifrs-full:GainsLossesOnCashFlowHedgesNetOfTax","Ganancias (pérdidas) por coberturas de flujos de efectivo, neto de impuestos"]
[null,null,0,"ifrs-full:ReclassificationAdjustmentsOnCashFlowHedgesNetOfTax","Ajustes de reclasificación en coberturas de flujos de efectivo, netos de impuestos"]
[null,null,0,"ifrs-full:AdjustmentsForAmountsTransferredToInitialCarryingAmountOfHedgedItems","Importes eliminados del patrimonio e incluidos en el importe en libros de activos (pasivos) no financieros que se hayan adquirido o incurrido mediante una transacción prevista altamente probable cubierta, neto de impuestos"]
[null,null,0,"ifrs-full:OtherComprehensiveIncomeNetOfTaxCashFlowHedges","Otro resultado integral, neto de impuestos, coberturas del flujo de efectivo",{"$f":"F34-F35-F36","v":0},{"$f":"G34-G35-G36","v":0}]
[null,null,0,"ifrs-full:HedgesOfNetInvestmentsInForeignOperationsAbstract","Coberturas de inversiones netas en negocios en el extranjero [resumen]"]
[null,null,0,"ifrs-full:GainsLossesOnHedgesOfNetInvestmentsInForeignOperationsNetOfTax","Ganancias (pérdidas) por coberturas de inversiones netas en negocios en el extranjero, neto de impuestos"]
[null,null,0,"ifrs-full:ReclassificationAdjustmentsOnHedgesOfNetInvestmentsInForeignOperationsNetOfTax","Ajustes de reclasificación por coberturas de inversiones netas en negocios en el extranjero, netos de impuestos"]
[null,null,0,"ifrs-full:OtherComprehensiveIncomeNetOfTaxHedgesOfNetInvestmentsInForeignOperations","Otro resultado integral, neto de impuestos, coberturas de inversiones netas en negocios en el extranjero",{"$f":"F39-F40","v":0},{"$f":"G39-G40","v":0}]
[null,null,0,"ifrs-full:ChangeInValueOfTimeValueOfOptionsAbstract","Cambio en el valor temporal del dinero de opciones [resumen]"]
[null,null,0,"ifrs-full:GainsLossesOnChangeInValueOfTimeValueOfOptionsNetOfTax","Ganancia (pérdida) por cambios en el valor temporal del dinero de opciones, neta de impuestos"]
[null,null,0,"ifrs-full:ReclassificationAdjustmentsOnChangeInValueOfTimeValueOfOptionsNetOfTax","Ajustes de reclasificación por cambios en el valor temporal del dinero de opciones, netos de impuestos"]
[null,null,0,"ifrs-full:OtherComprehensiveIncomeNetOfTaxChangeInValueOfTimeValueOfOptions","Otro resultado integral, neto de impuestos, cambios en el valor del valor temporal del dinero de opciones",{"$f":"F43-F44","v":0},{"$f":"G43-G44","v":0}]
[null,null,0,"ifrs-full:ChangeInValueOfForwardElementsOfForwardContractsAbstract","Cambios en el valor de los elementos a término de contratos a término [resumen]"]
[null,null,0,"ifrs-full:GainsLossesOnChangeInValueOfForwardElementsOfForwardContractsNetOfTax","Ganancia (pérdida) por cambios en el valor de los elementos a término de contratos a término, neta de impuestos"]
[null,null,0,"ifrs-full:ReclassificationAdjustmentsOnChangeInValueOfForwardElementsOfForwardContractsNetOfTax","Ajustes de reclasificación por cambios en el valor de los elementos a término de contratos a término, netos de impuestos"]
[null,null,0,"ifrs-full:OtherComprehensiveIncomeNetOfTaxChangeInValueOfForwardElementsOfForwardContracts","Otro resultado integral, neto de impuestos, cambios en el valor de los elementos a término de contratos a término",{"$f":"F47-F48","v":0},{"$f":"G47-G48","v":0}]
[null,null,0,"ifrs-full:ChangeInValueOfForeignCurrencyBasisSpreadsAbstract","Cambio en el valor de los diferenciales de tasa cambio de moneda extranjera [resumen]"]
[null,null,0,"ifrs-full:GainsLossesOnChangeInValueOfForeignCurrencyBasisSpreadsNetOfTax","Ganancia (pérdida) por cambios en el valor de los diferenciales de la tasa de cambio de la moneda extranjera, neta de impuestos"]
[null,null,0,"ifrs-full:ReclassificationAdjustmentsOnChangeInValueOfForeignCurrencyBasisSpreadsNetOfTax","Ajustes de reclasificación por cambios en el valor de los diferenciales de la tasa de cambio de la moneda extranjera, netos de impuestos"]
[null,null,0,"ifrs-full:OtherComprehensiveIncomeNetOfTaxChangeInValueOfForeignCurrencyBasisSpreads","Otro resultado integral, neto de impuestos, cambios en el valor de los diferenciales de tasa de cambio de la moneda extranjera",{"$f":"F51-F52","v":0},{"$f":"G51-G52","v":0}]
[null,null,0,"ifrs-full:ShareOfOtherComprehensiveIncomeOfAssociatesAndJointVenturesAccountedForUsingEquityMethodThatWillBeReclassifiedToProfitOrLossNetOfTax","Participación de otro resultado integral de asociadas y negocios conjuntos contabilizados utilizando el método de la participación que se reclasificará al resultado del periodo, neto de impuestos"]
[null,null,0,"ifrs-full:OtherComprehensiveIncomeThatWillBeReclassifiedToProfitOrLossNetOfTax","Total otro resultado integral que se reclasificará al resultado del periodo, neto de impuestos",{"$f":"F26-F27+F30-F31+F34-F35-F36+F39-F40+F43-F44+F47-F48+F51-F52","v":0},{"$f":"G26-G27+G30-G31+G34-G35-G36+G39-G40+G43-G44+G47-G48+G51-G52","v":0}]
[null,null,0,"ifrs-full:OtherComprehensiveIncome","Total otro resultado integral",{"$f":"F18+F19+F20+F21+F22+F26-F27+F30-F31+F34-F35-F36+F39-F40+F43-F44+F47-F48+F51-F52+F54","v":0},{"$f":"G18+G19+G20+G21+G22+G26-G27+G30-G31+G34-G35-G36+G39-G40+G43-G44+G47-G48+G51-G52+G54","v":0}]
[null,null,0,"ifrs-full:ComprehensiveIncome","Resultado integral total",{"$f":"F15+F18+F19+F20+F21+F22+F26-F27+F30-F31+F34-F35-F36+F39-F40+F43-F44+F47-F48+F51-F52+F54","v":0},{"$f":"G15+G18+G19+G20+G21+G22+G26-G27+G30-G31+G34-G35-G36+G39-G40+G43-G44+G47-G48+G51-G52+G54","v":0},null,{"$f":"IFERROR(IF(F57<>\"\",\"CORRECTO\",\"Debe registrar información para '\"&E57&\"' en la columna correspondiente al periodo actual.\"),\"Debe registrar información para '\"&E57&\"' en la columna correspondiente al periodo actual.\")","v":"CORRECTO"},{"$f":"IFERROR(IF(G57<>\"\",\"CORRECTO\",\"Debe registrar información para '\"&G57&\"' en la columna correspondiente al periodo actual.\"),\"Debe registrar información para '\"&E57&\"' en la columna correspondiente al periodo actual.\")","v":"CORRECTO"},null,null,{"$f":"IF(I57=\"CORRECTO\",0,1)","v":0},{"$f":"IF(J57=\"CORRECTO\",0,1)","v":0}]

{"sheet":"520000 - Est. Flujos de Efec.","index":11,"n_rows":93,"n_cols":14,"rows_kept":93,"cut":false,"hidden":false,"merged":[[6,4,8,9],[12,8,12,9]]}
[]
[]
[]
[]
[]
[]
[null,null,null,null,"520000 - ESTADO DE FLUJOS DE EFECTIVO MÉTODO INDIRECTO"]
[]
[]
[]
[]
[null,null,null,null,null,1,2]
[null,null,null,null,null,{"$f":"Periodos!$C$4","v":"2023-12-31"},{"$f":"Periodos!$D$4","v":"2022-12-31"},null,{"$f":"IF(N13=0,\"Formulario 'Estado de Flujos de Efectivo' Válido\",\"Formulario 'Estado de Flujos de Efectivo' con \"&N13&\" inconsistencias\")","v":"Formulario 'Estado de Flujos de Efectivo' Válido"},null,null,null,null,{"$f":"SUM(M16:N90)","v":0}]
[null,null,0,"ifrs-full:StatementOfCashFlowsAbstract","Estado de flujos de efectivo [resumen]"]
[null,null,0,"ifrs-full:CashFlowsFromUsedInOperatingActivitiesAbstract","Flujos de efectivo procedentes de (utilizados en) actividades de operación [resumen]"]
[null,null,0,"ifrs-full:ProfitLoss","Ganancia (pérdida)",{"$f":"'310000 - Est. Resultados'!$F$39","v":0},{"$f":"'310000 - Est. Resultados'!$G$39","v":0},null,{"$f":"IF(F16<>\"\",\"CORRECTO\",\"Debe registrar información para '\"&E16&\"' en la columna correspondiente al periodo actual.\")","v":"CORRECTO"},{"$f":"IF(G16<>\"\",\"CORRECTO\",\"Debe registrar información para '\"&E16&\"'  en la columna correspondiente al periodo anterior.\")","v":"CORRECTO"},null,null,{"$f":"IF(I16=\"CORRECTO\",0,1)","v":0},{"$f":"IF(J16=\"CORRECTO\",0,1)","v":0}]
[null,null,0,"ifrs-full:AdjustmentsForReconcileProfitLossAbstract","Ajustes para conciliar la ganancia (pérdida) [resumen]"]
[null,null,0,"ifrs-full:AdjustmentsForIncomeTaxExpense","Ajustes por gasto por impuestos a las ganancias"]
[null,null,0,"ifrs-full:AdjustmentsForFinanceCosts","Ajustes por costos financieros"]
[null,null,0,"ifrs-full:AdjustmentsForDecreaseIncreaseInInventories","Ajustes por disminuciones (incrementos) en los inventarios"]
[null,null,0,"ifrs-full:AdjustmentsForDecreaseIncreaseInTradeAccountReceivable","Ajustes por la disminución (incremento) de cuentas por cobrar de origen comercial"]
[null,null,0,"ifrs-full:AdjustmentsForDecreaseIncreaseInOtherOperatingReceivables","Ajustes por disminuciones (incrementos) en otras cuentas por cobrar derivadas de las actividades de operación"]
[null,null,0,"ifrs-full:AdjustmentsForIncreaseDecreaseInTradeAccountPayable","Ajustes por el incremento (disminución) de cuentas por pagar de origen comercial"]
[null,null,0,"ifrs-full:AdjustmentsForIncreaseDecreaseInOtherOperatingPayables","Ajustes por incrementos (disminuciones) en otras cuentas por pagar derivadas de las actividades de operación"]
[null,null,0,"ifrs-full:AdjustmentsForDepreciationAndAmortisationExpense","Ajustes por gastos de depreciación y amortización"]
[null,null,0,"ifrs-full:AdjustmentsForImpairmentLossReversalOfImpairmentLossRecognisedInProfitOrLoss","Ajustes por deterioro de valor (reversiones de pérdidas por deterioro de valor) reconocidas en el resultado del periodo"]
[null,null,0,"ifrs-full:AdjustmentsForProvisions","Ajustes por provisiones"]
[null,null,0,"ifrs-full:AdjustmentsForUnrealisedForeignExchangeLossesGains","Ajustes por pérdidas (ganancias) de moneda extranjera no realizadas"]
[null,null,0,"ifrs-full:AdjustmentsForSharebasedPayments","Ajustes por pagos basados en acciones"]
[null,null,0,"ifrs-full:AdjustmentsForFairValueGainsLosses","Ajustes por pérdidas (ganancias) del valor razonable"]
[null,null,0,"ifrs-full:AdjustmentsForUndistributedProfitsOfAssociates","Ajustes por ganancias no distribuidas de asociadas"]
[null,null,0,"ifrs-full:OtherAdjustmentsForNoncashItems","Otros ajustes por partidas distintas al efectivo"]
[null,null,0,"ifrs-full:AdjustmentsForLossesGainsOnDisposalOfNoncurrentAssets","Ajustes por pérdidas (ganancias) por la disposición de activos no corrientes"]
[null,null,0,"ifrs-full:OtherAdjustmentsForWhichCashEffectsAreInvestingOrFinancingCashFlow","Otros ajustes para los que los efectos sobre el efectivo son flujos de efectivo de inversión o financiación"]
[null,null,0,"ifrs-full:OtherAdjustmentsToReconcileProfitLoss","Otros ajustes para conciliar la ganancia (pérdida)"]
[null,null,0,"ifrs-full:AdjustmentsForReconcileProfitLoss","Total ajustes para conciliar la ganancia (pérdida)",{"$f":"F18+F19+F20+F21+F22+F23+F24+F25+F26+F27+F28+F29+F30+F31+F32+F33+F34+F35","v":0},{"$f":"G18+G19+G20+G21+G22+G23+G24+G25+G26+G27+G28+G29+G30+G31+G32+G33+G34+G35","v":0},null,{"$f":"IF(F36<>\"\",\"CORRECTO\",\"Debe registrar información para '\"&E36&\"' en la columna correspondiente al periodo actual.\")","v":"CORRECTO"},{"$f":"IF(G36<>\"\",\"CORRECTO\",\"Debe registrar información para '\"&E36&\"'  en la columna correspondiente al periodo anterior.\")","v":"CORRECTO"},null,null,{"$f":"IF(I36=\"CORRECTO\",0,1)","v":0},{"$f":"IF(J36=\"CORRECTO\",0,1)","v":0}]
[null,null,0,"ifrs-full:CashFlowsFromUsedInOperations","Flujos de efectivo netos procedentes (utilizados en) operaciones",{"$f":"F16+F36","v":0},{"$f":"G16+G36","v":0},null,{"$f":"IF(F37<>\"\",\"CORRECTO\",\"Debe registrar información para '\"&E37&\"' en la columna correspondiente al periodo actual.\")","v":"CORRECTO"},{"$f":"IF(G37<>\"\",\"CORRECTO\",\"Debe registrar información para '\"&E37&\"'  en la columna correspondiente al periodo anterior.\")","v":"CORRECTO"},null,null,{"$f":"IF(I37=\"CORRECTO\",0,1)","v":0},{"$f":"IF(J37=\"CORRECTO\",0,1)","v":0}]
[null,null,0,"ifrs-full:DividendsPaidClassifiedAsOperatingActivities","Dividendos pagados"]
[null,null,0,"ifrs-full:DividendsReceivedClassifiedAsOperatingActivities","Dividendos recibidos"]
[null,null,0,"ifrs-full:InterestPaidClassifiedAsOperatingActivities","Intereses pagados"]
[null,null,0,"ifrs-full:InterestReceivedClassifiedAsOperatingActivities","Intereses recibidos"]
[null,null,0,"ifrs-full:IncomeTaxesPaidRefundClassifiedAsOperatingActivities","Impuestos a las ganancias reembolsados (pagados)"]
[null,null,0,"ifrs-full:OtherInflowsOutflowsOfCashClassifiedAsOperatingActivities","Otras entradas (salidas) de efectivo"]
[null,null,0,"ifrs-full:CashFlowsFromUsedInOperatingActivities","Flujos de efectivo netos procedentes de (utilizados en) actividades de operación",{"$f":"F37+F38+F39+F40+F41+F42+F43","v":0},{"$f":"G37+G38+G39+G40+G41+G42+G43","v":0},null,{"$f":"IF(F44<>\"\",\"CORRECTO\",\"Debe registrar información para '\"&E44&\"' en la columna correspondiente al periodo actual.\")","v":"CORRECTO"},{"$f":"IF(G44<>\"\",\"CORRECTO\",\"Debe registrar información para '\"&E44&\"'  en la columna correspondiente al periodo anterior.\")","v":"CORRECTO"},null,null,{"$f":"IF(I44=\"CORRECTO\",0,1)","v":0},{"$f":"IF(J44=\"CORRECTO\",0,1)","v":0}]
[null,null,0,"ifrs-full:CashFlowsFromUsedInInvestingActivitiesAbstract","Flujos de efectivo procedentes de (utilizados en) actividades de inversión [resumen]"]
[null,null,0,"ifrs-full:CashFlowsFromLosingControlOfSubsidiariesOrOtherBusinessesClassifiedAsInvestingActivities","Flujos de efectivo procedentes de la pérdida de control de subsidiarias u otros negocios"]
[null,null,0,"ifrs-full:CashFlowsUsedInObtainingControlOfSubsidiariesOrOtherBusinessesClassifiedAsInvestingActivities","Flujos de efectivo utilizados para obtener el control de subsidiarias u otros negocios"]
[null,null,0,"ifrs-full:OtherCashReceiptsFromSalesOfEquityOrDebtInstrumentsOfOtherEntitiesClassifiedAsInvestingActivities","Otros cobros por la venta de patrimonio o instrumentos de deuda de otras entidades"]
[null,null,0,"ifrs-full:OtherCashPaymentsToAcquireEquityOrDebtInstrumentsOfOtherEntitiesClassifiedAsInvestingActivities","Otros pagos para adquirir patrimonio o instrumentos de deuda de otras entidades"]
[null,null,0,"ifrs-full:OtherCashReceiptsFromSalesOfInterestsInJointVenturesClassifiedAsInvestingActivities","Otros cobros por la venta de participaciones en negocios conjuntos"]
[null,null,0,"ifrs-full:OtherCashPaymentsToAcquireInterestsInJointVenturesClassifiedAsInvestingActivities","Otros pagos para adquirir participaciones en negocios conjuntos"]
[null,null,0,"ifrs-full:ProceedsFromSalesOfPropertyPlantAndEquipmentClassifiedAsInvestingActivities","Importes procedentes de la venta de propiedades, planta y equipo"]
[null,null,0,"ifrs-full:PurchaseOfPropertyPlantAndEquipmentClassifiedAsInvestingActivities","Compras de propiedades, planta y equipo"]
[null,null,0,"ifrs-full:ProceedsFromSalesOfIntangibleAssetsClassifiedAsInvestingActivities","Importes procedentes de ventas de activos intangibles"]
[null,null,0,"ifrs-full:PurchaseOfIntangibleAssetsClassifiedAsInvestingActivities","Compras de activos intangibles"]
[null,null,0,"ifrs-full:ProceedsFromOtherLongtermAssetsClassifiedAsInvestingActivities","Recursos por ventas de otros activos a largo plazo"]
[null,null,0,"ifrs-full:PurchaseOfOtherLongtermAssetsClassifiedAsInvestingActivities","Compras de otros activos a largo plazo"]
[null,null,0,"ifrs-full:ProceedsFromGovernmentGrantsClassifiedAsInvestingActivities","Importes procedentes de subvenciones del gobierno"]
[null,null,0,"ifrs-full:CashAdvancesAndLoansMadeToOtherPartiesClassifiedAsInvestingActivities","Anticipos de efectivo y préstamos concedidos a terceros"]
[null,null,0,"ifrs-full:CashReceiptsFromRepaymentOfAdvancesAndLoansMadeToOtherPartiesClassifiedAsInvestingActivities","Cobros procedentes del reembolso de anticipos y préstamos concedidos a terceros"]
[null,null,0,"ifrs-full:CashPaymentsForFutureContractsForwardContractsOptionContractsAndSwapContractsClassifiedAsInvestingActivities","Pagos en efectivo por contratos de futuros, contratos a término, contratos de opciones y contratos de permuta financiera"]
[null,null,0,"ifrs-full:CashReceiptsFromFutureContractsForwardContractsOptionContractsAndSwapContractsClassifiedAsInvestingActivities","Cobros en efectivo por contratos de futuros, contratos a término, contratos de opciones y contratos de permuta financiera"]
[null,null,0,"ifrs-full:DividendsReceivedClassifiedAsInvestingActivities","Dividendos recibidos"]
[null,null,0,"ifrs-full:InterestPaidClassifiedAsInvestingActivities","Intereses pagados"]
[null,null,0,"ifrs-full:InterestReceivedClassifiedAsInvestingActivities","Intereses recibidos"]
[null,null,0,"ifrs-full:IncomeTaxesPaidRefundClassifiedAsInvestingActivities","Impuestos a las ganancias reembolsados (pagados)"]
[null,null,0,"ifrs-full:OtherInflowsOutflowsOfCashClassifiedAsInvestingActivities","Otras entradas (salidas) de efectivo"]
[null,null,0,"ifrs-full:CashFlowsFromUsedInInvestingActivities","Flujos de efectivo netos procedentes de (utilizados en) actividades de inversión",{"$f":"F46+F47+F48+F49+F50+F51+F52+F53+F54+F55+F56+F57+F58+F59+F60+F61+F62+F63+F64+F65+F66+F67","v":0},{"$f":"G46+G47+G48+G49+G50+G51+G52+G53+G54+G55+G56+G57+G58+G59+G60+G61+G62+G63+G64+G65+G66+G67","v":0},null,{"$f":"IF(F68<>\"\",\"CORRECTO\",\"Debe registrar información para '\"&E68&\"' en la columna correspondiente al periodo actual.\")","v":"CORRECTO"},{"$f":"IF(G68<>\"\",\"CORRECTO\",\"Debe registrar información para '\"&E68&\"'  en la columna correspondiente al periodo anterior.\")","v":"CORRECTO"},null,null,{"$f":"IF(I68=\"CORRECTO\",0,1)","v":0},{"$f":"IF(J68=\"CORRECTO\",0,1)","v":0}]
[null,null,0,"ifrs-full:CashFlowsFromUsedInFinancingActivitiesAbstract","Flujos de efectivo procedentes de (utilizados en) actividades de financiación [resumen]"]
[null,null,0,"ifrs-full:ProceedsFromChangesInOwnershipInterestsInSubsidiaries","Recursos por cambios en las participaciones en la propiedad en subsidiarias que no dan lugar a la pérdida de control"]
[null,null,0,"ifrs-full:PaymentsFromChangesInOwnershipInterestsInSubsidiaries","Pagos por cambios en las participaciones en la propiedad en subsidiarias que no dan lugar a la pérdida de control"]
[null,null,0,"ifrs-full:ProceedsFromIssuingShares","Importes procedentes de la emisión de acciones"]
[null,null,0,"ifrs-full:ProceedsFromIssuingOtherEquityInstruments","Importes procedentes de la emisión de otros instrumentos de patrimonio"]
[null,null,0,"ifrs-full:PaymentsToAcquireOrRedeemEntitysShares","Pagos por adquirir o rescatar las acciones de la entidad"]
[null,null,0,"ifrs-full:PaymentsOfOtherEquityInstruments","Pagos por otras participaciones en el patrimonio"]
[null,null,0,"ifrs-full:ProceedsFromBorrowingsClassifiedAsFinancingActivities","Importes procedentes de préstamos"]
[null,null,0,"ifrs-full:RepaymentsOfBorrowingsClassifiedAsFinancingActivities","Reembolsos de préstamos"]
[null,null,0,"ifrs-full:PaymentsOfLeaseLiabilitiesClassifiedAsFinancingActivities","Pagos de pasivos por arrendamiento"]
[null,null,0,"ifrs-full:ProceedsFromGovernmentGrantsClassifiedAsFinancingActivities","Importes procedentes de subvenciones del gobierno"]
[null,null,0,"ifrs-full:DividendsPaidClassifiedAsFinancingActivities","Dividendos pagados"]
[null,null,0,"ifrs-full:InterestPaidClassifiedAsFinancingActivities","Intereses pagados"]
[null,null,0,"ifrs-full:IncomeTaxesPaidRefundClassifiedAsFinancingActivities","Impuestos a las ganancias reembolsados (pagados)"]
[null,null,0,"ifrs-full:OtherInflowsOutflowsOfCashClassifiedAsFinancingActivities","Otras entradas (salidas) de efectivo"]
[null,null,0,"ifrs-full:CashFlowsFromUsedInFinancingActivities","Flujos de efectivo netos procedentes de (utilizados en) actividades de financiación",{"$f":"F70+F71+F72+F73+F74+F75+F76+F77+F78+F79+F80+F81+F82+F83","v":0},{"$f":"G70+G71+G72+G73+G74+G75+G76+G77+G78+G79+G80+G81+G82+G83","v":0},null,{"$f":"IF(F84<>\"\",\"CORRECTO\",\"Debe registrar información para '\"&E84&\"' en la columna correspondiente al periodo actual.\")","v":"CORRECTO"},{"$f":"IF(G84<>\"\",\"CORRECTO\",\"Debe registrar información para '\"&E84&\"'  en la columna correspondiente al periodo anterior.\")","v":"CORRECTO"},null,null,{"$f":"IF(I84=\"CORRECTO\",0,1)","v":0},{"$f":"IF(J84=\"CORRECTO\",0,1)","v":0}]
[null,null,0,"ifrs-full:IncreaseDecreaseInCashAndCashEquivalentsBeforeEffectOfExchangeRateChanges","Incremento (disminución) neto de efectivo y equivalentes al efectivo, antes del efecto de los cambios en la tasa de cambio",{"$f":"F44+F68+F84","v":0},{"$f":"G44+G68+G84","v":0},null,{"$f":"IF(F85<>\"\",\"CORRECTO\",\"Debe registrar información para '\"&E85&\"' en la columna correspondiente al periodo actual.\")","v":"CORRECTO"},{"$f":"IF(G85<>\"\",\"CORRECTO\",\"Debe registrar información para '\"&E85&\"'  en la columna correspondiente al periodo anterior.\")","v":"CORRECTO"},null,null,{"$f":"IF(I85=\"CORRECTO\",0,1)","v":0},{"$f":"IF(J85=\"CORRECTO\",0,1)","v":0}]
[null,null,0,"ifrs-full:EffectOfExchangeRateChangesOnCashAndCashEquivalentsAbstract","Efectos de la variación en la tasa de cambio sobre el efectivo y equivalentes al efectivo [resumen]"]
[null,null,0,"ifrs-full:EffectOfExchangeRateChangesOnCashAndCashEquivalents","Efectos de la variación en la tasa de cambio sobre el efectivo y equivalentes al efectivo"]
[null,null,0,"ifrs-full:IncreaseDecreaseInCashAndCashEquivalents","Incremento (disminución) neto de efectivo y equivalentes al efectivo",{"$f":"+F85+F87","v":0},{"$f":"+G85+G87","v":0},null,{"$f":"IF(F88=F90-F89,\"CORRECTO\",\"El valor calculado para '\"&E88&\"' debe ser igual a la diferencia entre '\"&E90&\"' menos '\"&E89&\"', en la columna correspondiente al periodo actual.\")","v":"CORRECTO"},{"$f":"IF(G88=G90-G89,\"CORRECTO\",\"El valor calculado para '\"&E88&\"' debe ser igual a la diferencia entre '\"&E90&\"' menos '\"&E89&\"', en la columna correspondiente al periodo actual.\")","v":"CORRECTO"},null,null,{"$f":"IF(I88=\"CORRECTO\",0,1)","v":0},0]
[null,null,1,"ifrs-full:CashAndCashEquivalents","Efectivo y equivalentes al efectivo al principio del periodo",{"$f":"'800101 - Nota. Efect. y Equiv.'!G25","v":0},{"$f":"'800101 - Nota. Efect. y Equiv.'!H25","v":0},null,{"$f":"IF(F89<>\"\",\"CORRECTO\",\"Debe registrar información para '\"&E89&\"' en la columna correspondiente al periodo actual.\")","v":"CORRECTO"},{"$f":"IF(G89<>\"\",\"CORRECTO\",\"Debe registrar información para '\"&E89&\"'  en la columna correspondiente al periodo anterior.\")","v":"CORRECTO"},null,null,0,0]
[null,null,1,"ifrs-full:CashAndCashEquivalents","Efectivo y equivalentes al efectivo al final del periodo",{"$f":"'800101 - Nota. Efect. y Equiv.'!F25","v":0},{"$f":"'800101 - Nota. Efect. y Equiv.'!G25","v":0},null,{"$f":"IF(F90<>\"\",\"CORRECTO\",\"Debe registrar información para '\"&E90&\"' en la columna correspondiente al periodo actual.\")","v":"CORRECTO"},{"$f":"IF(G90<>\"\",\"CORRECTO\",\"Debe registrar información para '\"&E90&\"'  en la columna correspondiente al periodo anterior.\")","v":"CORRECTO"},null,null,0,0]
[]
[]
[null,null,null,null,"Diferencia entre los valores calculados en el Esado de Flujos de Efectivo y los registrados para Efectivo y equivalentes del efectivo",{"$f":"F88-(F90-F89)","v":0},{"$f":"G88-(G90-G89)","v":0}]

{"sheet":"610000 - Est. Camb. Patrimonio","index":12,"n_rows":60,"n_cols":33,"rows_kept":60,"cut":false,"hidden":false,"merged":[[12,5,12,26],[39,5,39,26],[6,4,8,14],[6,15,8,25]]}
[]
[]
[]
[]
[]
[]
[null,null,null,null,{"$f":"\"610000 - Estado de Cambios en el patrimonio (para \"&YEAR(Periodos!$C$4)&\" y \"&YEAR(Periodos!$D$4)&\")\"","v":"610000 - Estado de Cambios en el patrimonio (para 2023 y 2022)"},null,null,null,null,null,null,null,null,null,null,{"$f":"\"610000 - Estado de Cambios en el patrimonio (para \"&YEAR(Periodos!$C$4)&\" y \"&YEAR(Periodos!$D$4)&\")\"","v":"610000 - Estado de Cambios en el patrimonio (para 2023 y 2022)"}]
[]
[]
[]
[]
[]
[null,null,null,null,null,{"$f":"\"Periodo Actual \"&Periodos!$C$4","v":"Periodo Actual 2023-12-31"},null,null,null,null,null,null,null,null,null,null,null,null,null,null,null,null,null,null,null,null,null,null,null,{"$f":"IF(AG13=0,\"Formulario 'Estado de Cambios en el Patrimonio' Válido\",\"Formulario 'Estado de Cambios en el Patrimonio' con \"&AG13&\" inconsistencias\")","v":"Formulario 'Estado de Cambios en el Patrimonio' con 1 inconsistencias"},null,null,{"$f":"SUM(AG21:AG33)+SUM(AG48:AG60)","v":1}]
[null,null,null,null,null,"ifrs-full:IssuedCapitalMember","ifrs-full:SharePremiumMember","ifrs-full:TreasurySharesMember","ifrs-full:OtherEquityInterestMember","co-svsp-core:ReservaLegalMiembro","co-svsp-core:ReservaEstatutariaMiembro","ifrs-full:RevaluationSurplusMember","ifrs-full:ReserveOfExchangeDifferencesOnTranslationMember","ifrs-full:ReserveOfCashFlowHedgesMember","ifrs-full:ReserveOfGainsAndLossesOnHedgingInstrumentsThatHedgeInvestmentsInEquityInstrumentsMember","ifrs-full:ReserveOfChangeInValueOfTimeValueOfOptionsMember","ifrs-full:ReserveOfChangeInValueOfForwardElementsOfForwardContractsMember","ifrs-full:ReserveOfGainsAndLossesOnFinancialAssetsMeasuredAtFairValueThroughOtherComprehensiveIncomeMember","ifrs-full:ReserveOfSharebasedPaymentsMember","ifrs-full:ReserveOfChangeInValueOfForeignCurrencyBasisSpreadsMember","ifrs-full:ReserveOfRemeasurementsOfDefinedBenefitPlansMember","ifrs-full:AmountRecognisedInOtherComprehensiveIncomeAndAccumulatedInEquityRelatingToNoncurrentAssetsOrDisposalGroupsHeldForSaleMember","ifrs-full:ReserveOfGainsAndLossesFromInvestmentsInEquityInstrumentsMember","ifrs-full:ReserveOfChangeInFairValueOfFinancialLiabilityAttributableToChangeInCreditRiskOfLiabilityMember","ifrs-full:OtherReservesMember","ifrs-full:RetainedEarningsMember","ifrs-full:EquityMember"]
[null,null,null,null,"ifrs-full:ComponentsOfEquityAxis","Capital emitido [miembro]","Prima de emisión [miembro]","Acciones propias en cartera [miembro]","Otras participaciones en el patrimonio [miembro]","Reserva legal [miembro]","Reserva estatutaria [miembro]","Reverva por superávit de revaluación [miembro]","Reserva de diferencias de cambio en conversiones [miembro]","Reserva de coberturas de flujo de efectivo [miembro]","Reserva de ganancias y pérdidas sobre instrumentos de cobertura que cubren inversiones en instrumentos de patrimonio [miembro]","Reserva por cambios en el valor temporal del dinero de opciones [miembro]","Reserva por cambios en el valor de los elementos a término de contratos a término [miembro]","Reversión de ganancias y pérdidas sobre activos financieros medidos al valor razonable con cambios en otro resultado integral [miembro]","Reserva de pagos basados en acciones [miembro]","Reserva por cambios en el valor de los diferenciales de la tasa de cambio de la moneda extranjera [miembro]","Reserva de nuevas mediciones de planes de beneficios definidos [miembro]","Importes reconocidos en otro resultado integral y acumulados en el patrimonio relativos a activos no corrientes o grupos de activos para su disposición mantenidos para la venta [miembro]","Reserva de ganancias y pérdidas por inversiones en instrumentos de patrimonio [miembro]","Reserva para cambios en el valor razonable de pasivos financieros atribuibles a cambios en el riesgo crediticio del pasivo [miembro]","Total Otras reservas [miembro]","Ganancias acumuladas [miembro]","Patrimonio [miembro]"]
[null,null,"0;1","ifrs-full:StatementOfChangesInEquityAbstract","Estado de cambios en el patrimonio [resumen]"]
[null,null,"0;1","ifrs-full:StatementOfChangesInEquityLineItems","Estado de cambios en el patrimonio [partidas de los estados financieros]"]
[null,null,"1;2","ifrs-full:Equity","Patrimonio al comienzo del periodo",{"$f":"F60","v":0},0,0,0,0,0,0,0,0,0,0,0,0,0,0,0,0,0,0,{"$f":"J18+K18+L18+M18+N18+O18+P18+Q18+R18+S18+T18+U18+V18+W18+X18","v":0},{"$f":"Z60","v":0},{"$f":"F18+G18-H18+I18+Y18+Z18","v":0}]
[null,null,"0;1","ifrs-full:ChangesInEquityAbstract","Cambios en el patrimonio [resumen]"]
[null,null,"0;1","ifrs-full:ComprehensiveIncomeAbstract","Resultado integral [resumen]"]
[null,null,"0;1","ifrs-full:ProfitLoss","Ganancia (pérdida)",null,null,null,null,null,null,null,null,null,null,null,null,null,null,null,null,null,null,null,{"$f":"J21+K21+L21+M21+N21+O21+P21+Q21+R21+S21+T21+U21+V21+W21+X21","v":0},null,{"$f":"F21+G21-H21+I21+Y21+Z21","v":0},null,null,{"$f":"IF(AA21='310000 - Est. Resultados'!$F$39,\"CORRECTO\",\"La información registrada en este formulario para '\"&E21&\"' en la columna '\"&$AA$15&\"' para del periodo actual, debe ser igual al reportado en el Estado de Resultados\")","v":"CORRECTO"},null,null,{"$f":"IF(AD21=\"CORRECTO\",0,1)","v":0}]
[null,null,"0;1","ifrs-full:OtherComprehensiveIncome","Otro resultado integral",null,null,null,null,null,null,null,null,null,null,null,null,null,null,null,null,null,null,null,{"$f":"J22+K22+L22+M22+N22+O22+P22+Q22+R22+S22+T22+U22+V22+W22+X22","v":0},null,{"$f":"F22+G22-H22+I22+Y22+Z22","v":0},null,null,{"$f":"IF(AA22='410000 - Est. Resultados ORI'!F56,\"CORRECTO\",\"La información registrada en este formulario para '\"&E22&\"' en la columna '\"&$AA$15&\"' para del periodo actual, debe ser igual al reportado en el formularo ORI\")","v":"CORRECTO"},null,null,{"$f":"IF(AD22=\"CORRECTO\",0,1)","v":0}]
[null,null,"0;1","ifrs-full:ComprehensiveIncome","Resultado integral total",{"$f":"F21+F22","v":0},0,0,0,0,0,0,0,0,0,0,0,0,0,0,0,0,0,0,0,0,0,null,null,{"$f":"IF(AA23='410000 - Est. Resultados ORI'!F57,\"CORRECTO\",\"La información registrada en este formulario para '\"&E23&\"' en la columna '\"&$AA$15&\"' para del periodo actual, debe ser igual al reportado en el formulario ORI\")","v":"CORRECTO"},null,null,{"$f":"IF(AD23=\"CORRECTO\",0,1)","v":0}]
[null,null,"0;1","ifrs-full:IssueOfEquity","Emisión de patrimonio",null,null,null,null,null,null,null,null,null,null,null,null,null,null,null,null,null,null,null,{"$f":"J24+K24+L24+M24+N24+O24+P24+Q24+R24+S24+T24+U24+V24+W24+X24","v":0},null,0]
[null,null,"0;1","ifrs-full:DividendsPaid","Dividendos reconocidos como distribuciones a los propietarios",null,null,null,null,null,null,null,null,null,null,null,null,null,null,null,null,null,null,null,0,null,0]
[null,null,"0;1","ifrs-full:IncreaseDecreaseThroughOtherContributionsByOwners","Incrementos por otras aportaciones de los propietarios, patrimonio",null,null,null,null,null,null,null,null,null,null,null,null,null,null,null,null,null,null,null,0,null,0]
[null,null,"0;1","ifrs-full:IncreaseDecreaseThroughOtherDistributionsToOwners","Disminución por otras distribuciones a los propietarios, patrimonio",null,null,null,null,null,null,null,null,null,null,null,null,null,null,null,null,null,null,null,0,null,0]
[null,null,"0;1","ifrs-full:IncreaseDecreaseThroughTransfersAndOtherChangesEquity","Incrementos (disminuciones) por otros cambios, patrimonio",null,null,null,null,null,null,null,null,null,null,null,null,null,null,null,null,null,null,null,0,null,0]
[null,null,"0;1","ifrs-full:IncreaseDecreaseThroughTreasuryShareTransactions","Incrementos (disminuciones) por transacciones con acciones propias, patrimonio",null,null,null,null,null,null,null,null,null,null,null,null,null,null,null,null,null,null,null,0,null,0]
[null,null,"0;1","ifrs-full:IncreaseDecreaseThroughChangesInOwnershipInterestsInSubsidiariesThatDoNotResultInLossOfControl","Incrementos (disminuciones) por cambios las participaciones en la propiedad de subsidiarias que no dan lugar a pérdida de control, patrimonio",null,null,null,null,null,null,null,null,null,null,null,null,null,null,null,null,null,null,null,0,null,0]
[null,null,"0;1","ifrs-full:IncreaseDecreaseThroughSharebasedPaymentTransactions","Incrementos (disminuciones) por transacciones con pagos basados en acciones, patrimonio",null,null,null,null,null,null,null,null,null,null,null,null,null,null,null,null,null,null,null,0,null,0]
[null,null,"0;1","ifrs-full:ChangesInEquity","Total incremento (disminución) en el patrimonio",{"$f":"F23+F24-F25+F26-F27+F28+F29+F30+F31","v":0},{"$f":"G23+G24-G25+G26-G27+G28+G29+G30+G31","v":0},0,0,0,0,0,0,0,0,0,0,0,0,0,0,0,0,0,0,0,{"$f":"AA23+AA24-AA25+AA26-AA27+AA28+AA29+AA30+AA31","v":0}]
[null,null,"1;1","ifrs-full:Equity","Patrimonio al final del periodo",{"$f":"F18+F32","v":0},0,0,0,0,0,0,0,0,0,0,0,0,0,0,0,0,0,0,0,{"$f":"Z18+Z32","v":0},{"$f":"F33+G33-H33+I33+Y33+Z33","v":0},null,null,{"$f":"IF(AA33='210000 - Est. Situa. Financiera'!F79,\"CORRECTO\",\"La información registrada en este formulario para '\"&E33&\"' en la columna '\"&$AA$15&\"' para del periodo actual, debe ser igual al reportado en el formulario Estado de Situación Financiera\")","v":"La información registrada en este formulario para 'Patrimonio al final del periodo' en la columna 'Patrimonio [miembro]' para del periodo actual, debe ser igual al reportado en el formulario Estado de Situación Financiera"},null,null,{"$f":"IF(AD33=\"CORRECTO\",0,1)","v":1}]
[]
[]
[]
[]
[]
[]
[null,null,null,null,null,{"$f":"\"Periodo Anterior \"&Periodos!$D$4","v":"Periodo Anterior 2022-12-31"}]
[null,null,null,null,null,"ifrs-full:IssuedCapitalMember","ifrs-full:SharePremiumMember","ifrs-full:TreasurySharesMember","ifrs-full:OtherEquityInterestMember","co-svsp-core:ReservaLegalMiembro","co-svsp-core:ReservaEstatutariaMiembro","ifrs-full:RevaluationSurplusMember","ifrs-full:ReserveOfExchangeDifferencesOnTranslationMember","ifrs-full:ReserveOfCashFlowHedgesMember","ifrs-full:ReserveOfGainsAndLossesOnHedgingInstrumentsThatHedgeInvestmentsInEquityInstrumentsMember","ifrs-full:ReserveOfChangeInValueOfTimeValueOfOptionsMember","ifrs-full:ReserveOfChangeInValueOfForwardElementsOfForwardContractsMember","ifrs-full:ReserveOfGainsAndLossesOnFinancialAssetsMeasuredAtFairValueThroughOtherComprehensiveIncomeMember","ifrs-full:ReserveOfSharebasedPaymentsMember","ifrs-full:ReserveOfChangeInValueOfForeignCurrencyBasisSpreadsMember","ifrs-full:ReserveOfRemeasurementsOfDefinedBenefitPlansMember","ifrs-full:AmountRecognisedInOtherComprehensiveIncomeAndAccumulatedInEquityRelatingToNoncurrentAssetsOrDisposalGroupsHeldForSaleMember","ifrs-full:ReserveOfGainsAndLossesFromInvestmentsInEquityInstrumentsMember","ifrs-full:ReserveOfChangeInFairValueOfFinancialLiabilityAttributableToChangeInCreditRiskOfLiabilityMember","ifrs-full:OtherReservesMember","ifrs-full:RetainedEarningsMember","ifrs-full:EquityMember"]
[null,null,null,null,"ifrs-full:ComponentsOfEquityAxis","Capital emitido [miembro]","Prima de emisión [miembro]","Acciones propias en cartera [miembro]","Otras participaciones en el patrimonio [miembro]","Reserva legal [miembro]","Reserva estatutaria [miembro]","Reverva por superávit de revaluación [miembro]","Reserva de diferencias de cambio en conversiones [miembro]","Reserva de coberturas de flujo de efectivo [miembro]","Reserva de ganancias y pérdidas sobre instrumentos de cobertura que cubren inversiones en instrumentos de patrimonio [miembro]","Reserva por cambios en el valor temporal del dinero de opciones [miembro]","Reserva por cambios en el valor de los elementos a término de contratos a término [miembro]","Reversión de ganancias y pérdidas sobre activos financieros medidos al valor razonable con cambios en otro resultado integral [miembro]","Reserva de pagos basados en acciones [miembro]","Reserva por cambios en el valor de los diferenciales de la tasa de cambio de la moneda extranjera [miembro]","Reserva de nuevas mediciones de planes de beneficios definidos [miembro]","Importes reconocidos en otro resultado integral y acumulados en el patrimonio relativos a activos no corrientes o grupos de activos para su disposición mantenidos para la venta [miembro]","Reserva de ganancias y pérdidas por inversiones en instrumentos de patrimonio [miembro]","Reserva para cambios en el valor razonable de pasivos financieros atribuibles a cambios en el riesgo crediticio del pasivo [miembro]","Total Otras reservas [miembro]","Ganancias acumuladas [miembro]","Patrimonio [miembro]"]
[null,null,"0;2","ifrs-full:StatementOfChangesInEquityAbstract","Estado de cambios en el patrimonio [resumen]"]
[null,null,"0;2","ifrs-full:StatementOfChangesInEquityLineItems","Estado de cambios en el patrimonio [partidas de los estados financieros]"]
[null,null,"1;3","ifrs-full:Equity","Patrimonio al comienzo del periodo",null,null,null,null,null,null,null,null,null,null,null,null,null,null,null,null,null,null,null,{"$f":"J45+K45+L45+M45+N45+O45+P45+Q45+R45+S45+T45+U45+V45+W45+X45","v":0},null,{"$f":"F45+G45-H45+I45+Y45+Z45","v":0}]
[null,null,"0;2","ifrs-full:ChangesInEquityAbstract","Cambios en el patrimonio [resumen]"]
[null,null,"0;2","ifrs-full:ComprehensiveIncomeAbstract","Resultado integral [resumen]"]
[null,null,"0;2","ifrs-full:ProfitLoss","Ganancia (pérdida)",null,null,null,null,null,null,null,null,null,null,null,null,null,null,null,null,null,null,null,{"$f":"J48+K48+L48+M48+N48+O48+P48+Q48+R48+S48+T48+U48+V48+W48+X48","v":0},null,{"$f":"F48+G48-H48+I48+Y48+Z48","v":0},null,null,{"$f":"IF(AA48='310000 - Est. Resultados'!G39,\"CORRECTO\",\"La información registrada en este formulario para '\"&E48&\"' en la columna '\"&$AA$15&\"' para del periodo anterior, debe ser igual al reportado en el Estado de Resultados\")","v":"CORRECTO"},null,null,{"$f":"IF(AD48=\"CORRECTO\",0,1)","v":0}]
[null,null,"0;2","ifrs-full:OtherComprehensiveIncome","Otro resultado integral",null,null,null,null,null,null,null,null,null,null,null,null,null,null,null,null,null,null,null,0,null,0,null,null,{"$f":"IF(AA49='410000 - Est. Resultados ORI'!G56,\"CORRECTO\",\"La información registrada en este formulario para '\"&E49&\"' en la columna '\"&$AA$15&\"' para del periodo anterior, debe ser igual al reportado en el formulario ORI\")","v":"CORRECTO"},null,null,{"$f":"IF(AD49=\"CORRECTO\",0,1)","v":0}]
[null,null,"0;2","ifrs-full:ComprehensiveIncome","Resultado integral total",{"$f":"F48+F49","v":0},0,0,0,0,0,0,0,0,0,0,0,0,0,0,0,0,0,0,0,0,0,null,null,{"$f":"IF(AA50='410000 - Est. Resultados ORI'!G57,\"CORRECTO\",\"La información registrada en este formulario para '\"&E50&\"' en la columna '\"&$AA$15&\"' para del periodo anterior, debe ser igual al reportado en el formulario ORI\")","v":"CORRECTO"},null,null,{"$f":"IF(AD50=\"CORRECTO\",0,1)","v":0}]
[null,null,"0;2","ifrs-full:IssueOfEquity","Emisión de patrimonio",null,null,null,null,null,null,null,null,null,null,null,null,null,null,null,null,null,null,null,0,null,0]
[null,null,"0;2","ifrs-full:DividendsPaid","Dividendos reconocidos como distribuciones a los propietarios",null,null,null,null,null,null,null,null,null,null,null,null,null,null,null,null,null,null,null,0,null,0]
[null,null,"0;2","ifrs-full:IncreaseDecreaseThroughOtherContributionsByOwners","Incrementos por otras aportaciones de los propietarios, patrimonio",null,null,null,null,null,null,null,null,null,null,null,null,null,null,null,null,null,null,null,0,null,0]
[null,null,"0;2","ifrs-full:IncreaseDecreaseThroughOtherDistributionsToOwners","Disminución por otras distribuciones a los propietarios, patrimonio",null,null,null,null,null,null,null,null,null,null,null,null,null,null,null,null,null,null,null,0,null,0]
[null,null,"0;2","ifrs-full:IncreaseDecreaseThroughTransfersAndOtherChangesEquity","Incrementos (disminuciones) por otros cambios, patrimonio",null,null,null,null,null,null,null,null,null,null,null,null,null,null,null,null,null,null,null,0,null,0]
[null,null,"0;2","ifrs-full:IncreaseDecreaseThroughTreasuryShareTransactions","Incrementos (disminuciones) por transacciones con acciones propias, patrimonio",null,null,null,null,null,null,null,null,null,null,null,null,null,null,null,null,null,null,null,0,null,0]
[null,null,"0;2","ifrs-full:IncreaseDecreaseThroughChangesInOwnershipInterestsInSubsidiariesThatDoNotResultInLossOfControl","Incrementos (disminuciones) por cambios las participaciones en la propiedad de subsidiarias que no dan lugar a pérdida de control, patrimonio",null,null,null,null,null,null,null,null,null,null,null,null,null,null,null,null,null,null,null,0,null,0]
[null,null,"0;2","ifrs-full:IncreaseDecreaseThroughSharebasedPaymentTransactions","Incrementos (disminuciones) por transacciones con pagos basados en acciones, patrimonio",null,null,null,null,null,null,null,null,null,null,null,null,null,null,null,null,null,null,null,0,null,0]
[null,null,"0;2","ifrs-full:ChangesInEquity","Total incremento (disminución) en el patrimonio",{"$f":"F50+F51-F52+F53-F54+F55+F56+F57+F58","v":0},{"$f":"G50+G51-G52+G53-G54+G55+G56+G57+G58","v":0},0,0,0,0,0,0,0,0,0,0,0,0,0,0,0,0,0,0,{"$f":"Z50+Z51-Z52+Z53-Z54+Z55+Z56+Z57+Z58","v":0},{"$f":"AA50+AA51-AA52+AA53-AA54+AA55+AA56+AA57+AA58","v":0}]
[null,null,"1;2","ifrs-full:Equity","Patrimonio al final del periodo",{"$f":"F45+F59","v":0},0,0,0,0,0,0,0,0,0,0,0,0,0,0,0,0,0,0,0,{"$f":"Z45+Z59","v":0},{"$f":"F60+G60-H60+I60+Y60+Z60","v":0},null,null,{"$f":"IF(AA60='210000 - Est. Situa. Financiera'!G79,\"CORRECTO\",\"La información registrada en este formulario para '\"&E60&\"' en la columna '\"&$AA$15&\"' para del periodo anterior, debe ser igual al reportado en el formulario Estado de Situación Financiera\")","v":"CORRECTO"},null,null,{"$f":"IF(AD60=\"CORRECTO\",0,1)","v":0}]

{"sheet":"800101 - Nota. Efect. y Equiv.","index":13,"n_rows":25,"n_cols":17,"rows_kept":25,"cut":false,"hidden":false,"merged":[[6,3,8,11],[12,9,12,11]]}
[]
[]
[]
[]
[]
[]
[null,null,null,"800101 - Nota de Efectivo y equivalentes al efectivo"]
[]
[]
[]
[]
[null,null,null,null,null,1,2,3]
[null,null,null,null,null,{"$f":"Periodos!$C$4","v":"2023-12-31"},{"$f":"Periodos!$D$4","v":"2022-12-31"},{"$f":"Periodos!$E$4","v":"2021-12-31"},null,{"$f":"IF(P13=0,\"Formulario 'Nota de Efectivo...' Válido\",\"Formulario 'Nota de Efectivo...' con \"&P13&\" inconsistencias\")","v":"Formulario 'Nota de Efectivo...' con 1 inconsistencias"},null,null,null,null,null,{"$f":"SUM(O18:XFD25)","v":1}]
[null,null,1,"ifrs-full:CashAndCashEquivalentsAbstract","Efectivo y equivalentes al efectivo [resumen]"]
[null,null,1,"ifrs-full:CashAbstract","Efectivo [resumen]"]
[null,null,1,"ifrs-full:CashOnHand","Efectivo en caja"]
[null,null,1,"ifrs-full:BalancesWithBanks","Saldos en bancos"]
[null,null,1,"ifrs-full:Cash","Total efectivo",{"$f":"F16+F17","v":0},{"$f":"G16+G17","v":0},null,null,{"$f":"IF(F18<>\"\",\"CORRECTO\",\"Debe registrar información para '\"&E18&\"' en la columna correspondiente al periodo actual.\")","v":"CORRECTO"},{"$f":"IF(G18<>\"\",\"CORRECTO\",\"Debe registrar información para '\"&E18&\"' en la columna correspondiente al periodo actual.\")","v":"CORRECTO"},null,null,null,{"$f":"IF(J18=\"CORRECTO\",0,1)","v":0},{"$f":"IF(K18=\"CORRECTO\",0,1)","v":0}]
[null,null,1,"ifrs-full:CashEquivalentsAbstract","Equivalentes al efectivo [resumen]"]
[null,null,1,"ifrs-full:ShorttermDepositsClassifiedAsCashEquivalents","Depósitos a corto plazo, clasificados como equivalentes al efectivo"]
[null,null,1,"ifrs-full:ShorttermInvestmentsClassifiedAsCashEquivalents","Inversiones a corto plazo, clasificados como equivalentes al efectivo"]
[null,null,1,"ifrs-full:BankingArrangementsClassifiedAsCashEquivalents","Otros acuerdos bancarios, clasificados como equivalentes al efectivo"]
[null,null,1,"ifrs-full:CashEquivalents","Total equivalentes al efectivo",{"$f":"F20+F21+F22","v":0},{"$f":"G20+G21+G22","v":0}]
[null,null,1,"ifrs-full:OtherCashAndCashEquivalents","Otro efectivo y equivalentes al efectivo"]
[null,null,1,"ifrs-full:CashAndCashEquivalents","Total de efectivo y equivalentes al efectivo",{"$f":"F16+F17+F20+F21+F22+F24","v":0},{"$f":"G16+G17+G20+G21+G22+G24","v":0},null,null,{"$f":"IF(F25<>\"\",\"CORRECTO\",\"Debe registrar información para '\"&E25&\"' en la columna correspondiente al periodo actual.\")","v":"CORRECTO"},{"$f":"IF(G25<>\"\",\"CORRECTO\",\"Debe registrar información para '\"&E25&\"'  en la columna correspondiente al periodo anterior.\")","v":"CORRECTO"},{"$f":"IF(H25<>\"\",\"CORRECTO\",\"Debe registrar información para '\"&E25&\"'  en la columna correspondiente al periodo 2020.\")","v":"Debe registrar información para 'Total de efectivo y equivalentes al efectivo'  en la columna correspondiente al periodo 2020."},null,null,{"$f":"IF(J25=\"CORRECTO\",0,1)","v":0},{"$f":"IF(K25=\"CORRECTO\",0,1)","v":0},{"$f":"IF(L25=\"CORRECTO\",0,1)","v":1}]

{"sheet":"800111 - Nota. Cuentas x cobrar","index":14,"n_rows":49,"n_cols":25,"rows_kept":49,"cut":false,"hidden":false,"merged":[[32,5,32,8],[32,9,32,14],[6,4,8,16],[10,5,10,14],[11,5,11,8],[11,9,11,14],[31,5,31,14]]}
[]
[]
[]
[]
[]
[]
[null,null,null,null,{"$f":"\"800111 - Nota. Cuentas por cobrar (para \"&YEAR(Periodos!$C$4)&\" y \"&YEAR(Periodos!$D$4)&\")\"","v":"800111 - Nota. Cuentas por cobrar (para 2023 y 2022)"}]
[]
[]
[]
[null,null,null,null,null,{"$f":"\"Periodo Actual \"&Periodos!$C$4","v":"Periodo Actual 2023-12-31"}]
[null,null,null,null,null,"Nacional o del exterior [miembro]",null,null,null,"Bandas de tiempo acumuladas [miembro]",null,null,null,null,null,null,{"$f":"IF(U12=0,\"Formulario 'Nota de Cuentas por cobrar' Válido\",\"Formulario 'Nota de Cuentas por cobrar' con \"&U12&\" inconsistencias\")","v":"Formulario 'Nota de Cuentas por cobrar' Válido"},null,null,null,{"$f":"SUM(U17:U49)","v":0},{"$f":"SUM(U18:V25)","v":0}]
[null,null,null,null,null,"co-svsp-core:Nacionales_corrientes_CxC_Miembro","co-svsp-core:En_el_exterior_corrientes_CxC_Miembro","co-svsp-core:Nacionales_no_corrientes_CxC_Miembro","co-svsp-core:En_el_exterior_no_corrientes_CxC_Miembro","co-svsp-core:CxC_No_vencida_Miembro","co-svsp-core:CxC_Vencidas_1_a_90_dias_Miembro","co-svsp-core:CxC_Vencidas_91_a_180_dias_Miembro","co-svsp-core:CxC_Vencidas_181_a_360_dias_Miembro","co-svsp-core:CxC_Vencidas_mas_de_360_dias_Miembro","co-svsp-core:CxC_Total_Vencidas_Miembro"]
[null,null,null,null,"co-svsp-core:CuentasPorCobrar_Eje","Nacionales corrientes [miembro]","En el exterior corrientes [miembro]","Nacionales no corrientes [miembro]","En el exterior no corrientes [miembro]","Número de vencidas [miembro]","Valor vencidas de 1 a 90 días [miembro]","Valor vencidas de 91 a 180 días [miembro]","Valor vencidas de 181 a 360 días  [miembro]","Valor vencidas de mas de 360 días [miembro]","Total cuentas por cobrar vencidas [miembro]"]
[null,null,"1;1","co-svsp-core:CxC_Cuentas_comerciales_por_cobrar_y_otras_cuentas_por_cobrar","Cuentas comerciales por cobrar y otras cuentas por cobrar"]
[null,null,"1;1","co-svsp-core:CxC_Cuentas_comerciales_por_cobrar","Cuentas comerciales por cobrar"]
[null,null,"1;1","co-svsp-core:CxC_Cuentas_comerciales_por_cobrar_no_están_en_mora_ni_deterioradas_de_valor","Cuentas comerciales por cobrar que no están en mora ni deterioradas de valor",null,null,null,null,null,null,null,null,null,{"$f":"K17+L17+M17+N17","v":0},null,{"$f":"IF(Y17=\"CORRECTO\",\"CORRECTO\",\"Al indicar que se tienen cuentas vencidas para '\"&E17&\"', debe indicarse el monto en la columna correspondiente y viceversa.\")","v":"CORRECTO"},null,null,null,{"$f":"IF(Q17=\"CORRECTO\",0,1)","v":0},null,{"$f":"IF(OR(J17=\"\",J17=0),0,1)","v":0},{"$f":"K17+L17+M17+N17","v":0},{"$f":"IF(AND(W17=0,X17=0),\"CORRECTO\",IF(AND(W17<>0,X17<>0),\"CORRECTO\",\"INCORRECTO\"))","v":"CORRECTO"}]
[null,null,"1;1","co-svsp-core:CxC_Cuentas_comerciales_por_cobrar_en_mora_pero_no_deterioradas_de_valor","Cuentas comerciales por cobrar en mora pero no deterioradas de valor",null,null,null,null,null,null,null,null,null,{"$f":"K18+L18+M18+N18","v":0},null,{"$f":"IF(Y18=\"CORRECTO\",\"CORRECTO\",\"Al indicar que se tienen cuentas vencidas para '\"&E18&\"', debe indicarse el monto en la columna correspondiente y viceversa.\")","v":"CORRECTO"},null,null,null,{"$f":"IF(Q18=\"CORRECTO\",0,1)","v":0},null,{"$f":"IF(OR(J18=\"\",J18=0),0,1)","v":0},{"$f":"K18+L18+M18+N18","v":0},"CORRECTO"]
[null,null,"1;1","co-svsp-core:CxC_Cuentas_comerciales_por_cobrar_deterioradas_de_valor","Cuentas comerciales por cobrar deterioradas de valor",null,null,null,null,null,null,null,null,null,{"$f":"K19+L19+M19+N19","v":0},null,{"$f":"IF(Y19=\"CORRECTO\",\"CORRECTO\",\"Al indicar que se tienen cuentas vencidas para '\"&E19&\"', debe indicarse el monto en la columna correspondiente y viceversa.\")","v":"CORRECTO"},null,null,null,0,null,0,0,"CORRECTO"]
[null,null,"1;1","co-svsp-core:CxC_Deterioro_menor_valor","Deterioro (menor valor)",null,null,null,null,null,null,null,null,null,{"$f":"K20+L20+M20+N20","v":0},null,{"$f":"IF(Y20=\"CORRECTO\",\"CORRECTO\",\"Al indicar que se tienen cuentas vencidas para '\"&E20&\"', debe indicarse el monto en la columna correspondiente y viceversa.\")","v":"CORRECTO"},null,null,null,0,null,0,0,"CORRECTO"]
[null,null,"1;1","co-svsp-core:CxC_Total_cuentas_comerciales_por_cobrar","Total cuentas comerciales por cobrar",{"$f":"F17+F18+F19-F20","v":0},0,0,0,{"$f":"J17+J18+J19-J20","v":0},0,0,0,0,0]
[null,null,"1;1","co-svsp-core:CxC_Otras_cuentas_por_cobrar","Otras cuentas por cobrar"]
[null,null,"1;1","co-svsp-core:CxC_Cuentas_comerciales_por_cobrar_no_están_en_mora_ni_deterioradas_de_valor_OCxC","Otras cuentas por cobrar que no están en mora ni deterioradas de valor",null,null,null,null,null,null,null,null,null,{"$f":"K23+L23+M23+N23","v":0},null,{"$f":"IF(Y23=\"CORRECTO\",\"CORRECTO\",\"Al indicar que se tienen cuentas vencidas para '\"&E23&\"', debe indicarse el monto en la columna correspondiente y viceversa.\")","v":"CORRECTO"},null,null,null,{"$f":"IF(Q23=\"CORRECTO\",0,1)","v":0},null,{"$f":"IF(OR(J23=\"\",J23=0),0,1)","v":0},{"$f":"K23+L23+M23+N23","v":0},{"$f":"IF(AND(W23=0,X23=0),\"CORRECTO\",IF(AND(W23<>0,X23<>0),\"CORRECTO\",\"INCORRECTO\"))","v":"CORRECTO"}]
[null,null,"1;1","co-svsp-core:CxC_Cuentas_comerciales_por_cobrar_en_mora_pero_no_deterioradas_de_valor_OCxC","Otras cuentas por cobrar en mora pero no deterioradas de valor",null,null,null,null,null,null,null,null,null,{"$f":"K24+L24+M24+N24","v":0},null,"CORRECTO",null,null,null,0,null,0,0,"CORRECTO"]
[null,null,"1;1","co-svsp-core:CxC_Cuentas_comerciales_por_cobrar_deterioradas_de_valor_OCxC","Otras cuentas por cobrar deterioradas de valor",null,null,null,null,null,null,null,null,null,{"$f":"K25+L25+M25+N25","v":0},null,"CORRECTO",null,null,null,0,null,0,0,"CORRECTO"]
[null,null,"1;1","co-svsp-core:CxC_Deterioro_menor_valor_OCxC","Deterioro (menor valor)",null,null,null,null,null,null,null,null,null,{"$f":"K26+L26+M26+N26","v":0},null,"CORRECTO",null,null,null,0,null,0,0,"CORRECTO"]
[null,null,"1;1","co-svsp-core:CxC_Total_cuentas_comerciales_por_cobrar_OCxC","Total otras cuentas por cobrar",{"$f":"F23+F24+F25-F26","v":0},0,0,0,{"$f":"J23+J24+J25-J26","v":0},0,0,0,0,0]
[null,null,"1;1","co-svsp-core:CxC_Total_cuentas_por_cobrar_y_otras_cuentas_por_cobrar","Total cuentas por cobrar y otras cuentas por cobrar",{"$f":"F17+F18+F19-F20+F23+F24+F25-F26","v":0},0,0,0,{"$f":"+J21+J27","v":0},0,0,0,0,{"$f":"O21+O27","v":0}]
[]
[]
[null,null,null,null,null,{"$f":"F18+F19+F20-F21+F24+F25+F26-F27","v":0},0,0,0,0,0,0,0,0,0]
[null,null,null,null,null,{"$f":"\"Periodo Actual \"&Periodos!$D$4","v":"Periodo Actual 2022-12-31"}]
[null,null,null,null,null,"Nacional o del exterior [miembro]",null,null,null,"Bandas de tiempo acumuladas [miembro]"]
[null,null,null,null,null,"co-svsp-core:Nacionales_corrientes_CxC_Miembro","co-svsp-core:En_el_exterior_corrientes_CxC_Miembro","co-svsp-core:Nacionales_no_corrientes_CxC_Miembro","co-svsp-core:En_el_exterior_no_corrientes_CxC_Miembro","co-svsp-core:CxC_No_vencida_Miembro","co-svsp-core:CxC_Vencidas_1_a_90_dias_Miembro","co-svsp-core:CxC_Vencidas_91_a_180_dias_Miembro","co-svsp-core:CxC_Vencidas_181_a_360_dias_Miembro","co-svsp-core:CxC_Vencidas_mas_de_360_dias_Miembro","co-svsp-core:CxC_Total_Vencidas_Miembro"]
[null,null,null,null,"co-svsp-core:CuentasPorCobrar_Eje","Nacionales corrientes [miembro]","En el exterior corrientes [miembro]","Nacionales no corrientes [miembro]","En el exterior no corrientes [miembro]","Número de vencidas [miembro]","Valor vencidas de 1 a 90 días [miembro]","Valor vencidas de 91 a 180 días [miembro]","Valor vencidas de 181 a 360 días  [miembro]","Valor vencidas de mas de 360 días [miembro]","Total cuentas por cobrar vencidas [miembro]"]
[null,null,"1;2","co-svsp-core:CxC_Cuentas_comerciales_por_cobrar_y_otras_cuentas_por_cobrar","Cuentas comerciales por cobrar y otras cuentas por cobrar"]
[null,null,"1;2","co-svsp-core:CxC_Cuentas_comerciales_por_cobrar","Cuentas comerciales por cobrar"]
[null,null,"1;2","co-svsp-core:CxC_Cuentas_comerciales_por_cobrar_no_están_en_mora_ni_deterioradas_de_valor","Cuentas comerciales por cobrar que no están en mora ni deterioradas de valor",null,null,null,null,null,null,null,null,null,{"$f":"K38+L38+M38+N38","v":0},null,{"$f":"IF(Y38=\"CORRECTO\",\"CORRECTO\",\"Al indicar que se tienen cuentas vencidas para '\"&E38&\"', debe indicarse el monto en la columna correspondiente y viceversa.\")","v":"CORRECTO"},null,null,null,{"$f":"IF(Q38=\"CORRECTO\",0,1)","v":0},null,{"$f":"IF(OR(J38=\"\",J38=0),0,1)","v":0},{"$f":"K38+L38+M38+N38","v":0},{"$f":"IF(AND(W38=0,X38=0),\"CORRECTO\",IF(AND(W38<>0,X38<>0),\"CORRECTO\",\"INCORRECTO\"))","v":"CORRECTO"}]
[null,null,"1;2","co-svsp-core:CxC_Cuentas_comerciales_por_cobrar_en_mora_pero_no_deterioradas_de_valor","Cuentas comerciales por cobrar en mora pero no deterioradas de valor",null,null,null,null,null,null,null,null,null,{"$f":"K39+L39+M39+N39","v":0},null,"CORRECTO",null,null,null,0,null,0,0,{"$f":"IF(AND(W39=0,X39=0),\"CORRECTO\",IF(AND(W39<>0,X39<>0),\"CORRECTO\",\"INCORRECTO\"))","v":"CORRECTO"}]
[null,null,"1;2","co-svsp-core:CxC_Cuentas_comerciales_por_cobrar_deterioradas_de_valor","Cuentas comerciales por cobrar deterioradas de valor",null,null,null,null,null,null,null,null,null,{"$f":"K40+L40+M40+N40","v":0},null,"CORRECTO",null,null,null,0,null,0,0,"CORRECTO"]
[null,null,"1;2","co-svsp-core:CxC_Deterioro_menor_valor","Deterioro (menor valor)",null,null,null,null,null,null,null,null,null,{"$f":"K41+L41+M41+N41","v":0},null,"CORRECTO",null,null,null,0,null,0,0,"CORRECTO"]
[null,null,"1;2","co-svsp-core:CxC_Total_cuentas_comerciales_por_cobrar","Total cuentas comerciales por cobrar",{"$f":"F38+F39+F40-F41","v":0},0,0,0,{"$f":"J38+J39+J40-J41","v":0},0,0,0,0,0]
[null,null,"1;2","co-svsp-core:CxC_Otras_cuentas_por_cobrar","Otras cuentas por cobrar"]
[null,null,"1;2","co-svsp-core:CxC_Cuentas_comerciales_por_cobrar_no_están_en_mora_ni_deterioradas_de_valor_OCxC","Otras cuentas por cobrar que no están en mora ni deterioradas de valor",null,null,null,null,null,null,null,null,null,{"$f":"K44+L44+M44+N44","v":0},null,{"$f":"IF(Y44=\"CORRECTO\",\"CORRECTO\",\"Al indicar que se tienen cuentas vencidas para '\"&E44&\"', debe indicarse el monto en la columna correspondiente y viceversa.\")","v":"CORRECTO"},null,null,null,{"$f":"IF(Q44=\"CORRECTO\",0,1)","v":0},null,{"$f":"IF(OR(J44=\"\",J44=0),0,1)","v":0},{"$f":"K44+L44+M44+N44","v":0},{"$f":"IF(AND(W44=0,X44=0),\"CORRECTO\",IF(AND(W44<>0,X44<>0),\"CORRECTO\",\"INCORRECTO\"))","v":"CORRECTO"}]
[null,null,"1;2","co-svsp-core:CxC_Cuentas_comerciales_por_cobrar_en_mora_pero_no_deterioradas_de_valor_OCxC","Otras cuentas por cobrar en mora pero no deterioradas de valor",null,null,null,null,null,null,null,null,null,{"$f":"K45+L45+M45+N45","v":0},null,"CORRECTO",null,null,null,0,null,0,0,"CORRECTO"]
[null,null,"1;2","co-svsp-core:CxC_Cuentas_comerciales_por_cobrar_deterioradas_de_valor_OCxC","Otras cuentas por cobrar deterioradas de valor",null,null,null,null,null,null,null,null,null,{"$f":"K46+L46+M46+N46","v":0},null,"CORRECTO",null,null,null,0,null,0,0,"CORRECTO"]
[null,null,"1;2","co-svsp-core:CxC_Deterioro_menor_valor_OCxC","Deterioro (menor valor)",null,null,null,null,null,null,null,null,null,{"$f":"K47+L47+M47+N47","v":0},null,"CORRECTO",null,null,null,0,null,0,0,"CORRECTO"]
[null,null,"1;2","co-svsp-core:CxC_Total_cuentas_comerciales_por_cobrar_OCxC","Total otras cuentas por cobrar",{"$f":"F44+F45+F46-F47","v":0},0,0,0,{"$f":"J44+J45+J46-J47","v":0},0,0,0,0,0]
[null,null,"1;2","co-svsp-core:CxC_Total_cuentas_por_cobrar_y_otras_cuentas_por_cobrar","Total cuentas por cobrar y otras cuentas por cobrar",{"$f":"F38+F39+F40-F41+F44+F45+F46-F47","v":0},0,0,0,{"$f":"+J42+J48","v":0},0,0,0,0,{"$f":"O42+O48","v":0}]

{"sheet":"800111a - Nota. Detalle de CxC.","index":15,"n_rows":346,"n_cols":22,"rows_kept":346,"cut":false,"hidden":false,"merged":[[6,4,8,18],[10,5,10,16],[11,5,11,16],[181,5,181,16],[182,5,182,16]]}
[]
[]
[]
[]
[]
[]
[null,null,null,null,{"$f":"\"800111a - Nota. Detalle de cuentas por cobrar (para \"&YEAR(Periodos!$C$4)&\" y \"&YEAR(Periodos!$D$4)&\")\"","v":"800111a - Nota. Detalle de cuentas por cobrar (para 2023 y 2022)"}]
[]
[]
[]
[null,null,null,null,null,{"$f":"\"Periodo Actual \"&Periodos!$C$4","v":"Periodo Actual 2023-12-31"}]
[null,null,null,null,null,"Detalle de Cuentas por cobrar",null,null,null,null,null,null,null,null,null,null,null,null,{"$f":"IF(V12=0,\"Formulario 'Nota de Detalle de cuentas por cobrar' Válido\",\"Formulario 'Nota de Detalle de cuentas por cobrar' con \"&V12&\" inconsistencias\")","v":"Formulario 'Nota de Detalle de cuentas por cobrar' Válido"},null,null,{"$f":"SUM(V17:V346)","v":0}]
[null,null,null,null,null,"co-svsp-core:TipoDeDocumentoDeudorCxC","co-svsp-core:NumeroIdentificacionDeudorCxC","co-svsp-core:PrimerApellidoDeudorCxC","co-svsp-core:SegundoApellidoDeudorCxC","co-svsp-core:PrimerNombreDeudorCxC","co-svsp-core:OtrosNombresDeudorCxC","co-svsp-core:RazonSocialDeudorCxC","co-svsp-core:DireccionDeudorCxC","co-svsp-core:DepartamentoDeudorCxC","co-svsp-core:MunicipioDeudorCxC","co-svsp-core:PaisDeudorCxC","co-svsp-core:SaldoCuentasPorCobrarCxC"]
[null,null,null,null,"co-svsp-core:DetalleCuentasXCobrar_Eje","Tipo de documento del deudor","Número de identificación del deudor","Primer apellido deudor","Segundo apellido deudor","Primer nombre deudor","Otros nombres deudor","Razón Social deudor","Dirección deudor","Departamento deudor","Municipio deudor","País deudor","Saldo cuentas por cobrar"]
[null,null,"1;1","co-svsp-core:RelacionCuentasXCobrarMiembro","Relación de cuentas por cobrar [miembro]"]
[null,null,"1;1","co-svsp-core:RelacionCuentasXCobrarClientesMiembro","Relación de cuentas por cobrar clientes [miembro]"]
[null,null,"1;1","co-svsp-core:DetalleCuentasXCobrarClientes1Miembro","Detalle de cuentas por cobrar clientes 1 [miembro]"]
[null,null,"1;1","co-svsp-core:DetalleCuentasXCobrarClientes2Miembro","Detalle de cuentas por cobrar clientes 2 [miembro]"]
[null,null,"1;1","co-svsp-core:DetalleCuentasXCobrarClientes3Miembro","Detalle de cuentas por cobrar clientes 3 [miembro]"]
[null,null,"1;1","co-svsp-core:DetalleCuentasXCobrarClientes4Miembro","Detalle de cuentas por cobrar clientes 4 [miembro]"]
[null,null,"1;1","co-svsp-core:DetalleCuentasXCobrarClientes5Miembro","Detalle de cuentas por cobrar clientes 5 [miembro]"]
[null,null,"1;1","co-svsp-core:DetalleCuentasXCobrarClientes6Miembro","Detalle de cuentas por cobrar clientes 6 [miembro]"]
[null,null,"1;1","co-svsp-core:DetalleCuentasXCobrarClientes7Miembro","Detalle de cuentas por cobrar clientes 7 [miembro]"]
[null,null,"1;1","co-svsp-core:DetalleCuentasXCobrarClientes8Miembro","Detalle de cuentas por cobrar clientes 8 [miembro]"]
[null,null,"1;1","co-svsp-core:DetalleCuentasXCobrarClientes9Miembro","Detalle de cuentas por cobrar clientes 9 [miembro]"]
[null,null,"1;1","co-svsp-core:DetalleCuentasXCobrarClientes10Miembro","Detalle de cuentas por cobrar clientes 10 [miembro]"]
[null,null,"1;1","co-svsp-core:DetalleCuentasXCobrarClientes11Miembro","Detalle de cuentas por cobrar clientes 11 [miembro]"]
[null,null,"1;1","co-svsp-core:DetalleCuentasXCobrarClientes12Miembro","Detalle de cuentas por cobrar clientes 12 [miembro]"]
[null,null,"1;1","co-svsp-core:DetalleCuentasXCobrarClientes13Miembro","Detalle de cuentas por cobrar clientes 13 [miembro]"]
[null,null,"1;1","co-svsp-core:DetalleCuentasXCobrarClientes14Miembro","Detalle de cuentas por cobrar clientes 14 [miembro]"]
[null,null,"1;1","co-svsp-core:DetalleCuentasXCobrarClientes15Miembro","Detalle de cuentas por cobrar clientes 15 [miembro]"]
[null,null,"1;1","co-svsp-core:DetalleCuentasXCobrarClientes16Miembro","Detalle de cuentas por cobrar clientes 16 [miembro]"]
[null,null,"1;1","co-svsp-core:DetalleCuentasXCobrarClientes17Miembro","Detalle de cuentas por cobrar clientes 17 [miembro]"]
[null,null,"1;1","co-svsp-core:DetalleCuentasXCobrarClientes18Miembro","Detalle de cuentas por cobrar clientes 18 [miembro]"]
[null,null,"1;1","co-svsp-core:DetalleCuentasXCobrarClientes19Miembro","Detalle de cuentas por cobrar clientes 19 [miembro]"]
[null,null,"1;1","co-svsp-core:DetalleCuentasXCobrarClientes20Miembro","Detalle de cuentas por cobrar clientes 20 [miembro]"]
[null,null,"1;1","co-svsp-core:DetalleCuentasXCobrarClientes21Miembro","Detalle de cuentas por cobrar clientes 21 [miembro]"]
[null,null,"1;1","co-svsp-core:DetalleCuentasXCobrarClientes22Miembro","Detalle de cuentas por cobrar clientes 22 [miembro]"]
[null,null,"1;1","co-svsp-core:DetalleCuentasXCobrarClientes23Miembro","Detalle de cuentas por cobrar clientes 23 [miembro]"]
[null,null,"1;1","co-svsp-core:DetalleCuentasXCobrarClientes24Miembro","Detalle de cuentas por cobrar clientes 24 [miembro]"]
[null,null,"1;1","co-svsp-core:DetalleCuentasXCobrarClientes25Miembro","Detalle de cuentas por cobrar clientes 25 [miembro]"]
[null,null,"1;1","co-svsp-core:DetalleCuentasXCobrarClientes26Miembro","Detalle de cuentas por cobrar clientes 26 [miembro]"]
[null,null,"1;1","co-svsp-core:DetalleCuentasXCobrarClientes27Miembro","Detalle de cuentas por cobrar clientes 27 [miembro]"]
[null,null,"1;1","co-svsp-core:DetalleCuentasXCobrarClientes28Miembro","Detalle de cuentas por cobrar clientes 28 [miembro]"]
[null,null,"1;1","co-svsp-core:DetalleCuentasXCobrarClientes29Miembro","Detalle de cuentas por cobrar clientes 29 [miembro]"]
[null,null,"1;1","co-svsp-core:DetalleCuentasXCobrarClientes30Miembro","Detalle de cuentas por cobrar clientes 30 [miembro]"]
[null,null,"1;1","co-svsp-core:DetalleCuentasXCobrarClientes31Miembro","Detalle de cuentas por cobrar clientes 31 [miembro]"]
[null,null,"1;1","co-svsp-core:DetalleCuentasXCobrarClientes32Miembro","Detalle de cuentas por cobrar clientes 32 [miembro]"]
[null,null,"1;1","co-svsp-core:DetalleCuentasXCobrarClientes33Miembro","Detalle de cuentas por cobrar clientes 33 [miembro]"]
[null,null,"1;1","co-svsp-core:DetalleCuentasXCobrarClientes34Miembro","Detalle de cuentas por cobrar clientes 34 [miembro]"]
[null,null,"1;1","co-svsp-core:DetalleCuentasXCobrarClientes35Miembro","Detalle de cuentas por cobrar clientes 35 [miembro]"]
[null,null,"1;1","co-svsp-core:DetalleCuentasXCobrarClientes36Miembro","Detalle de cuentas por cobrar clientes 36 [miembro]"]
[null,null,"1;1","co-svsp-core:DetalleCuentasXCobrarClientes37Miembro","Detalle de cuentas por cobrar clientes 37 [miembro]"]
[null,null,"1;1","co-svsp-core:DetalleCuentasXCobrarClientes38Miembro","Detalle de cuentas por cobrar clientes 38 [miembro]"]
[null,null,"1;1","co-svsp-core:DetalleCuentasXCobrarClientes39Miembro","Detalle de cuentas por cobrar clientes 39 [miembro]"]
[null,null,"1;1","co-svsp-core:DetalleCuentasXCobrarClientes40Miembro","Detalle de cuentas por cobrar clientes 40 [miembro]"]
[null,null,"1;1","co-svsp-core:DetalleCuentasXCobrarClientes41Miembro","Detalle de cuentas por cobrar clientes 41 [miembro]"]
[null,null,"1;1","co-svsp-core:DetalleCuentasXCobrarClientes42Miembro","Detalle de cuentas por cobrar clientes 42 [miembro]"]
[null,null,"1;1","co-svsp-core:DetalleCuentasXCobrarClientes43Miembro","Detalle de cuentas por cobrar clientes 43 [miembro]"]
[null,null,"1;1","co-svsp-core:DetalleCuentasXCobrarClientes44Miembro","Detalle de cuentas por cobrar clientes 44 [miembro]"]
[null,null,"1;1","co-svsp-core:DetalleCuentasXCobrarClientes45Miembro","Detalle de cuentas por cobrar clientes 45 [miembro]"]
[null,null,"1;1","co-svsp-core:DetalleCuentasXCobrarClientes46Miembro","Detalle de cuentas por cobrar clientes 46 [miembro]"]
[null,null,"1;1","co-svsp-core:DetalleCuentasXCobrarClientes47Miembro","Detalle de cuentas por cobrar clientes 47 [miembro]"]
[null,null,"1;1","co-svsp-core:DetalleCuentasXCobrarClientes48Miembro","Detalle de cuentas por cobrar clientes 48 [miembro]"]
[null,null,"1;1","co-svsp-core:DetalleCuentasXCobrarClientes49Miembro","Detalle de cuentas por cobrar clientes 49 [miembro]"]
[null,null,"1;1","co-svsp-core:DetalleCuentasXCobrarClientes50Miembro","Detalle de cuentas por cobrar clientes 50 [miembro]"]
[null,null,"1;1","co-svsp-core:DetalleCuentasXCobrarClientes51EnAdelante","Detalle de cuentas por cobrar clientes 51 en adelante [miembro]"]
[null,null,"1;1","co-svsp-core:TotalDetalleCuentasXCobrarClientesMiembro","Total Detalle de cuentas por cobrar clientes [miembro]",null,null,null,null,null,null,null,null,null,null,null,{"$f":"SUM(Q17:Q67)","v":0}]
[null,null,"1;1","co-svsp-core:RelacionCuentasXCobrarAccionistasSociosVinculadasMiembro","Relación de cuentas por cobrar, compañías accionostas, socios y compañías vinculadas [miembro]"]
[null,null,"1;1","co-svsp-core:DetalleCuentasXCobrarAccionistasSociosVinculadas1Miembro","Detalle de cuentas por cobrar a accionistas, socios o vinculadas 1 [miembro]"]
[null,null,"1;1","co-svsp-core:DetalleCuentasXCobrarAccionistasSociosVinculadas2Miembro","Detalle de cuentas por cobrar a accionistas, socios o vinculadas 2 [miembro]"]
[null,null,"1;1","co-svsp-core:DetalleCuentasXCobrarAccionistasSociosVinculadas3Miembro","Detalle de cuentas por cobrar a accionistas, socios o vinculadas 3 [miembro]"]
[null,null,"1;1","co-svsp-core:DetalleCuentasXCobrarAccionistasSociosVinculadas4Miembro","Detalle de cuentas por cobrar a accionistas, socios o vinculadas 4 [miembro]"]
[null,null,"1;1","co-svsp-core:DetalleCuentasXCobrarAccionistasSociosVinculadas5Miembro","Detalle de cuentas por cobrar a accionistas, socios o vinculadas 5 [miembro]"]
[null,null,"1;1","co-svsp-core:DetalleCuentasXCobrarAccionistasSociosVinculadas6Miembro","Detalle de cuentas por cobrar a accionistas, socios o vinculadas 6 [miembro]"]
[null,null,"1;1","co-svsp-core:DetalleCuentasXCobrarAccionistasSociosVinculadas7Miembro","Detalle de cuentas por cobrar a accionistas, socios o vinculadas 7 [miembro]"]
[null,null,"1;1","co-svsp-core:DetalleCuentasXCobrarAccionistasSociosVinculadas8Miembro","Detalle de cuentas por cobrar a accionistas, socios o vinculadas 8 [miembro]"]
[null,null,"1;1","co-svsp-core:DetalleCuentasXCobrarAccionistasSociosVinculadas9Miembro","Detalle de cuentas por cobrar a accionistas, socios o vinculadas 9 [miembro]"]
[null,null,"1;1","co-svsp-core:DetalleCuentasXCobrarAccionistasSociosVinculadas10Miembro","Detalle de cuentas por cobrar a accionistas, socios o vinculadas 10 [miembro]"]
[null,null,"1;1","co-svsp-core:DetalleCuentasXCobrarAccionistasSociosVinculadas11Miembro","Detalle de cuentas por cobrar a accionistas, socios o vinculadas 11 [miembro]"]
[null,null,"1;1","co-svsp-core:DetalleCuentasXCobrarAccionistasSociosVinculadas12Miembro","Detalle de cuentas por cobrar a accionistas, socios o vinculadas 12 [miembro]"]
[null,null,"1;1","co-svsp-core:DetalleCuentasXCobrarAccionistasSociosVinculadas13Miembro","Detalle de cuentas por cobrar a accionistas, socios o vinculadas 13 [miembro]"]
[null,null,"1;1","co-svsp-core:DetalleCuentasXCobrarAccionistasSociosVinculadas14Miembro","Detalle de cuentas por cobrar a accionistas, socios o vinculadas 14 [miembro]"]
[null,null,"1;1","co-svsp-core:DetalleCuentasXCobrarAccionistasSociosVinculadas15Miembro","Detalle de cuentas por cobrar a accionistas, socios o vinculadas 15 [miembro]"]
[null,null,"1;1","co-svsp-core:DetalleCuentasXCobrarAccionistasSociosVinculadas16Miembro","Detalle de cuentas por cobrar a accionistas, socios o vinculadas 16 [miembro]"]
[null,null,"1;1","co-svsp-core:DetalleCuentasXCobrarAccionistasSociosVinculadas17Miembro","Detalle de cuentas por cobrar a accionistas, socios o vinculadas 17 [miembro]"]
[null,null,"1;1","co-svsp-core:DetalleCuentasXCobrarAccionistasSociosVinculadas18Miembro","Detalle de cuentas por cobrar a accionistas, socios o vinculadas 18 [miembro]"]
[null,null,"1;1","co-svsp-core:DetalleCuentasXCobrarAccionistasSociosVinculadas19Miembro","Detalle de cuentas por cobrar a accionistas, socios o vinculadas 19 [miembro]"]
[null,null,"1;1","co-svsp-core:DetalleCuentasXCobrarAccionistasSociosVinculadas20Miembro","Detalle de cuentas por cobrar a accionistas, socios o vinculadas 20 [miembro]"]
[null,null,"1;1","co-svsp-core:DetalleCuentasXCobrarAccionistasSociosVinculadas21Miembro","Detalle de cuentas por cobrar a accionistas, socios o vinculadas 21 [miembro]"]
[null,null,"1;1","co-svsp-core:DetalleCuentasXCobrarAccionistasSociosVinculadas22Miembro","Detalle de cuentas por cobrar a accionistas, socios o vinculadas 22 [miembro]"]
[null,null,"1;1","co-svsp-core:DetalleCuentasXCobrarAccionistasSociosVinculadas23Miembro","Detalle de cuentas por cobrar a accionistas, socios o vinculadas 23 [miembro]"]
[null,null,"1;1","co-svsp-core:DetalleCuentasXCobrarAccionistasSociosVinculadas24Miembro","Detalle de cuentas por cobrar a accionistas, socios o vinculadas 24 [miembro]"]
[null,null,"1;1","co-svsp-core:DetalleCuentasXCobrarAccionistasSociosVinculadas25Miembro","Detalle de cuentas por cobrar a accionistas, socios o vinculadas 25 [miembro]"]
[null,null,"1;1","co-svsp-core:DetalleCuentasXCobrarAccionistasSociosVinculadas26Miembro","Detalle de cuentas por cobrar a accionistas, socios o vinculadas 26 [miembro]"]
[null,null,"1;1","co-svsp-core:DetalleCuentasXCobrarAccionistasSociosVinculadas27Miembro","Detalle de cuentas por cobrar a accionistas, socios o vinculadas 27 [miembro]"]
[null,null,"1;1","co-svsp-core:DetalleCuentasXCobrarAccionistasSociosVinculadas28Miembro","Detalle de cuentas por cobrar a accionistas, socios o vinculadas 28 [miembro]"]
[null,null,"1;1","co-svsp-core:DetalleCuentasXCobrarAccionistasSociosVinculadas29Miembro","Detalle de cuentas por cobrar a accionistas, socios o vinculadas 29 [miembro]"]
[null,null,"1;1","co-svsp-core:DetalleCuentasXCobrarAccionistasSociosVinculadas30Miembro","Detalle de cuentas por cobrar a accionistas, socios o vinculadas 30 [miembro]"]
[null,null,"1;1","co-svsp-core:DetalleCuentasXCobrarAccionistasSociosVinculadas31Miembro","Detalle de cuentas por cobrar a accionistas, socios o vinculadas 31 [miembro]"]
[null,null,"1;1","co-svsp-core:DetalleCuentasXCobrarAccionistasSociosVinculadas32Miembro","Detalle de cuentas por cobrar a accionistas, socios o vinculadas 32 [miembro]"]
[null,null,"1;1","co-svsp-core:DetalleCuentasXCobrarAccionistasSociosVinculadas33Miembro","Detalle de cuentas por cobrar a accionistas, socios o vinculadas 33 [miembro]"]
[null,null,"1;1","co-svsp-core:DetalleCuentasXCobrarAccionistasSociosVinculadas34Miembro","Detalle de cuentas por cobrar a accionistas, socios o vinculadas 34 [miembro]"]
[null,null,"1;1","co-svsp-core:DetalleCuentasXCobrarAccionistasSociosVinculadas35Miembro","Detalle de cuentas por cobrar a accionistas, socios o vinculadas 35 [miembro]"]
[null,null,"1;1","co-svsp-core:DetalleCuentasXCobrarAccionistasSociosVinculadas36Miembro","Detalle de cuentas por cobrar a accionistas, socios o vinculadas 36 [miembro]"]
[null,null,"1;1","co-svsp-core:DetalleCuentasXCobrarAccionistasSociosVinculadas37Miembro","Detalle de cuentas por cobrar a accionistas, socios o vinculadas 37 [miembro]"]
[null,null,"1;1","co-svsp-core:DetalleCuentasXCobrarAccionistasSociosVinculadas38Miembro","Detalle de cuentas por cobrar a accionistas, socios o vinculadas 38 [miembro]"]
[null,null,"1;1","co-svsp-core:DetalleCuentasXCobrarAccionistasSociosVinculadas39Miembro","Detalle de cuentas por cobrar a accionistas, socios o vinculadas 39 [miembro]"]
[null,null,"1;1","co-svsp-core:DetalleCuentasXCobrarAccionistasSociosVinculadas40Miembro","Detalle de cuentas por cobrar a accionistas, socios o vinculadas 40 [miembro]"]
[null,null,"1;1","co-svsp-core:DetalleCuentasXCobrarAccionistasSociosVinculadas41Miembro","Detalle de cuentas por cobrar a accionistas, socios o vinculadas 41 [miembro]"]
[null,null,"1;1","co-svsp-core:DetalleCuentasXCobrarAccionistasSociosVinculadas42Miembro","Detalle de cuentas por cobrar a accionistas, socios o vinculadas 42 [miembro]"]
[null,null,"1;1","co-svsp-core:DetalleCuentasXCobrarAccionistasSociosVinculadas43Miembro","Detalle de cuentas por cobrar a accionistas, socios o vinculadas 43 [miembro]"]
[null,null,"1;1","co-svsp-core:DetalleCuentasXCobrarAccionistasSociosVinculadas44Miembro","Detalle de cuentas por cobrar a accionistas, socios o vinculadas 44 [miembro]"]
[null,null,"1;1","co-svsp-core:DetalleCuentasXCobrarAccionistasSociosVinculadas45Miembro","Detalle de cuentas por cobrar a accionistas, socios o vinculadas 45 [miembro]"]
[null,null,"1;1","co-svsp-core:DetalleCuentasXCobrarAccionistasSociosVinculadas46Miembro","Detalle de cuentas por cobrar a accionistas, socios o vinculadas 46 [miembro]"]
[null,null,"1;1","co-svsp-core:DetalleCuentasXCobrarAccionistasSociosVinculadas47Miembro","Detalle de cuentas por cobrar a accionistas, socios o vinculadas 47 [miembro]"]
[null,null,"1;1","co-svsp-core:DetalleCuentasXCobrarAccionistasSociosVinculadas48Miembro","Detalle de cuentas por cobrar a accionistas, socios o vinculadas 48 [miembro]"]
[null,null,"1;1","co-svsp-core:DetalleCuentasXCobrarAccionistasSociosVinculadas49Miembro","Detalle de cuentas por cobrar a accionistas, socios o vinculadas 49 [miembro]"]
[null,null,"1;1","co-svsp-core:DetalleCuentasXCobrarAccionistasSociosVinculadas50Miembro","Detalle de cuentas por cobrar a accionistas, socios o vinculadas 50 [miembro]"]
[null,null,"1;1","co-svsp-core:DetalleCuentasXCobrarAccionistasSociosVinculadas51EnAdelante","Detalle de cuentas por cobrar a accionistas, socios o vinculadas 51 en adelante [miembro]"]
[null,null,"1;1","co-svsp-core:TotalDetalleCuentasXCobrarAccionistasSociosVinculadasMiembro","Total Detalle de cuentas por cobrar a accionistas, socios o vinculadas [miembro]",null,null,null,null,null,null,null,null,null,null,null,{"$f":"SUM(Q70:Q120)","v":0}]
[null,null,"1;1","co-svsp-core:RelacionCuentasXCobrarOtrasCuentasXCobrarMiembro","Relación de otras cuentas por cobrar [miembro]"]
[null,null,"1;1","co-svsp-core:DetalleCuentasXCobrarOtrasCuentasXCobrar1Miembro","Detalle de cuentas por cobrar Otras cuentas por cobrar  1 [miembro]"]
[null,null,"1;1","co-svsp-core:DetalleCuentasXCobrarOtrasCuentasXCobrar2Miembro","Detalle de cuentas por cobrar Otras cuentas por cobrar  2 [miembro]"]
[null,null,"1;1","co-svsp-core:DetalleCuentasXCobrarOtrasCuentasXCobrar3Miembro","Detalle de cuentas por cobrar Otras cuentas por cobrar  3 [miembro]"]
[null,null,"1;1","co-svsp-core:DetalleCuentasXCobrarOtrasCuentasXCobrar4Miembro","Detalle de cuentas por cobrar Otras cuentas por cobrar  4 [miembro]"]
[null,null,"1;1","co-svsp-core:DetalleCuentasXCobrarOtrasCuentasXCobrar5Miembro","Detalle de cuentas por cobrar Otras cuentas por cobrar  5 [miembro]"]
[null,null,"1;1","co-svsp-core:DetalleCuentasXCobrarOtrasCuentasXCobrar6Miembro","Detalle de cuentas por cobrar Otras cuentas por cobrar  6 [miembro]"]
[null,null,"1;1","co-svsp-core:DetalleCuentasXCobrarOtrasCuentasXCobrar7Miembro","Detalle de cuentas por cobrar Otras cuentas por cobrar  7 [miembro]"]
[null,null,"1;1","co-svsp-core:DetalleCuentasXCobrarOtrasCuentasXCobrar8Miembro","Detalle de cuentas por cobrar Otras cuentas por cobrar  8 [miembro]"]
[null,null,"1;1","co-svsp-core:DetalleCuentasXCobrarOtrasCuentasXCobrar9Miembro","Detalle de cuentas por cobrar Otras cuentas por cobrar  9 [miembro]"]
[null,null,"1;1","co-svsp-core:DetalleCuentasXCobrarOtrasCuentasXCobrar10Miembro","Detalle de cuentas por cobrar Otras cuentas por cobrar  10 [miembro]"]
[null,null,"1;1","co-svsp-core:DetalleCuentasXCobrarOtrasCuentasXCobrar11Miembro","Detalle de cuentas por cobrar Otras cuentas por cobrar  11 [miembro]"]
[null,null,"1;1","co-svsp-core:DetalleCuentasXCobrarOtrasCuentasXCobrar12Miembro","Detalle de cuentas por cobrar Otras cuentas por cobrar  12 [miembro]"]
[null,null,"1;1","co-svsp-core:DetalleCuentasXCobrarOtrasCuentasXCobrar13Miembro","Detalle de cuentas por cobrar Otras cuentas por cobrar  13 [miembro]"]
[null,null,"1;1","co-svsp-core:DetalleCuentasXCobrarOtrasCuentasXCobrar14Miembro","Detalle de cuentas por cobrar Otras cuentas por cobrar  14 [miembro]"]
[null,null,"1;1","co-svsp-core:DetalleCuentasXCobrarOtrasCuentasXCobrar15Miembro","Detalle de cuentas por cobrar Otras cuentas por cobrar  15 [miembro]"]
[null,null,"1;1","co-svsp-core:DetalleCuentasXCobrarOtrasCuentasXCobrar16Miembro","Detalle de cuentas por cobrar Otras cuentas por cobrar  16 [miembro]"]
[null,null,"1;1","co-svsp-core:DetalleCuentasXCobrarOtrasCuentasXCobrar17Miembro","Detalle de cuentas por cobrar Otras cuentas por cobrar  17 [miembro]"]
[null,null,"1;1","co-svsp-core:DetalleCuentasXCobrarOtrasCuentasXCobrar18Miembro","Detalle de cuentas por cobrar Otras cuentas por cobrar  18 [miembro]"]
[null,null,"1;1","co-svsp-core:DetalleCuentasXCobrarOtrasCuentasXCobrar19Miembro","Detalle de cuentas por cobrar Otras cuentas por cobrar  19 [miembro]"]
[null,null,"1;1","co-svsp-core:DetalleCuentasXCobrarOtrasCuentasXCobrar20Miembro","Detalle de cuentas por cobrar Otras cuentas por cobrar  20 [miembro]"]
[null,null,"1;1","co-svsp-core:DetalleCuentasXCobrarOtrasCuentasXCobrar21Miembro","Detalle de cuentas por cobrar Otras cuentas por cobrar  21 [miembro]"]
[null,null,"1;1","co-svsp-core:DetalleCuentasXCobrarOtrasCuentasXCobrar22Miembro","Detalle de cuentas por cobrar Otras cuentas por cobrar  22 [miembro]"]
[null,null,"1;1","co-svsp-core:DetalleCuentasXCobrarOtrasCuentasXCobrar23Miembro","Detalle de cuentas por cobrar Otras cuentas por cobrar  23 [miembro]"]
[null,null,"1;1","co-svsp-core:DetalleCuentasXCobrarOtrasCuentasXCobrar24Miembro","Detalle de cuentas por cobrar Otras cuentas por cobrar  24 [miembro]"]
[null,null,"1;1","co-svsp-core:DetalleCuentasXCobrarOtrasCuentasXCobrar25Miembro","Detalle de cuentas por cobrar Otras cuentas por cobrar  25 [miembro]"]
[null,null,"1;1","co-svsp-core:DetalleCuentasXCobrarOtrasCuentasXCobrar26Miembro","Detalle de cuentas por cobrar Otras cuentas por cobrar  26 [miembro]"]
[null,null,"1;1","co-svsp-core:DetalleCuentasXCobrarOtrasCuentasXCobrar27Miembro","Detalle de cuentas por cobrar Otras cuentas por cobrar  27 [miembro]"]
[null,null,"1;1","co-svsp-core:DetalleCuentasXCobrarOtrasCuentasXCobrar28Miembro","Detalle de cuentas por cobrar Otras cuentas por cobrar  28 [miembro]"]
[null,null,"1;1","co-svsp-core:DetalleCuentasXCobrarOtrasCuentasXCobrar29Miembro","Detalle de cuentas por cobrar Otras cuentas por cobrar  29 [miembro]"]
[null,null,"1;1","co-svsp-core:DetalleCuentasXCobrarOtrasCuentasXCobrar30Miembro","Detalle de cuentas por cobrar Otras cuentas por cobrar  30 [miembro]"]
[null,null,"1;1","co-svsp-core:DetalleCuentasXCobrarOtrasCuentasXCobrar31Miembro","Detalle de cuentas por cobrar Otras cuentas por cobrar  31 [miembro]"]
[null,null,"1;1","co-svsp-core:DetalleCuentasXCobrarOtrasCuentasXCobrar32Miembro","Detalle de cuentas por cobrar Otras cuentas por cobrar  32 [miembro]"]
[null,null,"1;1","co-svsp-core:DetalleCuentasXCobrarOtrasCuentasXCobrar33Miembro","Detalle de cuentas por cobrar Otras cuentas por cobrar  33 [miembro]"]
[null,null,"1;1","co-svsp-core:DetalleCuentasXCobrarOtrasCuentasXCobrar34Miembro","Detalle de cuentas por cobrar Otras cuentas por cobrar  34 [miembro]"]
[null,null,"1;1","co-svsp-core:DetalleCuentasXCobrarOtrasCuentasXCobrar35Miembro","Detalle de cuentas por cobrar Otras cuentas por cobrar  35 [miembro]"]
[null,null,"1;1","co-svsp-core:DetalleCuentasXCobrarOtrasCuentasXCobrar36Miembro","Detalle de cuentas por cobrar Otras cuentas por cobrar  36 [miembro]"]
[null,null,"1;1","co-svsp-core:DetalleCuentasXCobrarOtrasCuentasXCobrar37Miembro","Detalle de cuentas por cobrar Otras cuentas por cobrar  37 [miembro]"]
[null,null,"1;1","co-svsp-core:DetalleCuentasXCobrarOtrasCuentasXCobrar38Miembro","Detalle de cuentas por cobrar Otras cuentas por cobrar  38 [miembro]"]
[null,null,"1;1","co-svsp-core:DetalleCuentasXCobrarOtrasCuentasXCobrar39Miembro","Detalle de cuentas por cobrar Otras cuentas por cobrar  39 [miembro]"]
[null,null,"1;1","co-svsp-core:DetalleCuentasXCobrarOtrasCuentasXCobrar40Miembro","Detalle de cuentas por cobrar Otras cuentas por cobrar  40 [miembro]"]
[null,null,"1;1","co-svsp-core:DetalleCuentasXCobrarOtrasCuentasXCobrar41Miembro","Detalle de cuentas por cobrar Otras cuentas por cobrar  41 [miembro]"]
[null,null,"1;1","co-svsp-core:DetalleCuentasXCobrarOtrasCuentasXCobrar42Miembro","Detalle de cuentas por cobrar Otras cuentas por cobrar  42 [miembro]"]
[null,null,"1;1","co-svsp-core:DetalleCuentasXCobrarOtrasCuentasXCobrar43Miembro","Detalle de cuentas por cobrar Otras cuentas por cobrar  43 [miembro]"]
[null,null,"1;1","co-svsp-core:DetalleCuentasXCobrarOtrasCuentasXCobrar44Miembro","Detalle de cuentas por cobrar Otras cuentas por cobrar  44 [miembro]"]
[null,null,"1;1","co-svsp-core:DetalleCuentasXCobrarOtrasCuentasXCobrar45Miembro","Detalle de cuentas por cobrar Otras cuentas por cobrar  45 [miembro]"]
[null,null,"1;1","co-svsp-core:DetalleCuentasXCobrarOtrasCuentasXCobrar46Miembro","Detalle de cuentas por cobrar Otras cuentas por cobrar  46 [miembro]"]
[null,null,"1;1","co-svsp-core:DetalleCuentasXCobrarOtrasCuentasXCobrar47Miembro","Detalle de cuentas por cobrar Otras cuentas por cobrar  47 [miembro]"]
[null,null,"1;1","co-svsp-core:DetalleCuentasXCobrarOtrasCuentasXCobrar48Miembro","Detalle de cuentas por cobrar Otras cuentas por cobrar  48 [miembro]"]
[null,null,"1;1","co-svsp-core:DetalleCuentasXCobrarOtrasCuentasXCobrar49Miembro","Detalle de cuentas por cobrar Otras cuentas por cobrar  49 [miembro]"]
[null,null,"1;1","co-svsp-core:DetalleCuentasXCobrarOtrasCuentasXCobrar50Miembro","Detalle de cuentas por cobrar Otras cuentas por cobrar  50 [miembro]"]
[null,null,"1;1","co-svsp-core:DetalleCuentasXCobrarOtrasCuentasXCobrar51EnAdelante","Detalle de cuentas por cobrar Otras cuentas por cobrar  51 en adelante [miembro]"]
[null,null,"1;1","co-svsp-core:TotalDetalleCuentasXCobrarOtrasCuentasXCobrarMiembro","Total Detalle de cuentas por cobrar, otras cuentas por cobrar [miembro]",null,null,null,null,null,null,null,null,null,null,null,{"$f":"SUM(Q123:Q173)","v":0}]
[null,null,"1;1","co-svsp-core:TotalDetalleCuentasXCobrarMiembro","Total Detalle de cuentas por cobrar [miembro]",null,null,null,null,null,null,null,null,null,null,null,{"$f":"Q174+Q121+Q68","v":0},null,{"$f":"IF(Q175='210000 - Est. Situa. Financiera'!F20+'210000 - Est. Situa. Financiera'!F36,\"CORRECTO\",\"La información registrada en este formulario para '\"&E175&\"' en la columna '\"&$Q$14&\"' para del periodo actual, debe ser igual al reportado en el Estado de Situación Financiera\")","v":"CORRECTO"},null,null,{"$f":"IF(S175=\"CORRECTO\",0,1)","v":0}]
[]
[]
[]
[]
[]
[]
[null,null,null,null,null,{"$f":"\"Periodo Actual \"&Periodos!$D$4","v":"Periodo Actual 2022-12-31"}]
[null,null,null,null,null,"Detalle de Cuentas por cobrar"]
[null,null,null,null,null,"co-svsp-core:TipoDeDocumentoDeudorCxC","co-svsp-core:NumeroIdentificacionDeudorCxC","co-svsp-core:PrimerApellidoDeudorCxC","co-svsp-core:SegundoApellidoDeudorCxC","co-svsp-core:PrimerNombreDeudorCxC","co-svsp-core:OtrosNombresDeudorCxC","co-svsp-core:RazonSocialDeudorCxC","co-svsp-core:DireccionDeudorCxC","co-svsp-core:DepartamentoDeudorCxC","co-svsp-core:MunicipioDeudorCxC","co-svsp-core:PaisDeudorCxC","co-svsp-core:SaldoCuentasPorCobrarCxC"]
[null,null,null,null,"co-svsp-core:DetalleCuentasXCobrar_Eje","Tipo de documento del deudor","Número de identificación del deudor","Primer apellido deudor","Segundo apellido deudor","Primer nombre deudor","Otros nombres deudor","Razón Social deudor","Dirección deudor","Departamento deudor","Municipio deudor","País deudor","Saldo cuentas por cobrar"]
[null,null,"1;2","co-svsp-core:RelacionCuentasXCobrarMiembro","Relación de cuentas por cobrar [miembro]"]
[null,null,"1;2","co-svsp-core:RelacionCuentasXCobrarClientesMiembro","Relación de cuentas por cobrar clientes [miembro]"]
[null,null,"1;2","co-svsp-core:DetalleCuentasXCobrarClientes1Miembro","Detalle de cuentas por cobrar clientes 1 [miembro]"]
[null,null,"1;2","co-svsp-core:DetalleCuentasXCobrarClientes2Miembro","Detalle de cuentas por cobrar clientes 2 [miembro]"]
[null,null,"1;2","co-svsp-core:DetalleCuentasXCobrarClientes3Miembro","Detalle de cuentas por cobrar clientes 3 [miembro]"]
[null,null,"1;2","co-svsp-core:DetalleCuentasXCobrarClientes4Miembro","Detalle de cuentas por cobrar clientes 4 [miembro]"]
[null,null,"1;2","co-svsp-core:DetalleCuentasXCobrarClientes5Miembro","Detalle de cuentas por cobrar clientes 5 [miembro]"]
[null,null,"1;2","co-svsp-core:DetalleCuentasXCobrarClientes6Miembro","Detalle de cuentas por cobrar clientes 6 [miembro]"]
[null,null,"1;2","co-svsp-core:DetalleCuentasXCobrarClientes7Miembro","Detalle de cuentas por cobrar clientes 7 [miembro]"]
[null,null,"1;2","co-svsp-core:DetalleCuentasXCobrarClientes8Miembro","Detalle de cuentas por cobrar clientes 8 [miembro]"]
[null,null,"1;2","co-svsp-core:DetalleCuentasXCobrarClientes9Miembro","Detalle de cuentas por cobrar clientes 9 [miembro]"]
[null,null,"1;2","co-svsp-core:DetalleCuentasXCobrarClientes10Miembro","Detalle de cuentas por cobrar clientes 10 [miembro]"]
[null,null,"1;2","co-svsp-core:DetalleCuentasXCobrarClientes11Miembro","Detalle de cuentas por cobrar clientes 11 [miembro]"]
[null,null,"1;2","co-svsp-core:DetalleCuentasXCobrarClientes12Miembro","Detalle de cuentas por cobrar clientes 12 [miembro]"]
[null,null,"1;2","co-svsp-core:DetalleCuentasXCobrarClientes13Miembro","Detalle de cuentas por cobrar clientes 13 [miembro]"]
[null,null,"1;2","co-svsp-core:DetalleCuentasXCobrarClientes14Miembro","Detalle de cuentas por cobrar clientes 14 [miembro]"]
[null,null,"1;2","co-svsp-core:DetalleCuentasXCobrarClientes15Miembro","Detalle de cuentas por cobrar clientes 15 [miembro]"]
[null,null,"1;2","co-svsp-core:DetalleCuentasXCobrarClientes16Miembro","Detalle de cuentas por cobrar clientes 16 [miembro]"]
[null,null,"1;2","co-svsp-core:DetalleCuentasXCobrarClientes17Miembro","Detalle de cuentas por cobrar clientes 17 [miembro]"]
[null,null,"1;2","co-svsp-core:DetalleCuentasXCobrarClientes18Miembro","Detalle de cuentas por cobrar clientes 18 [miembro]"]
[null,null,"1;2","co-svsp-core:DetalleCuentasXCobrarClientes19Miembro","Detalle de cuentas por cobrar clientes 19 [miembro]"]
[null,null,"1;2","co-svsp-core:DetalleCuentasXCobrarClientes20Miembro","Detalle de cuentas por cobrar clientes 20 [miembro]"]
[null,null,"1;2","co-svsp-core:DetalleCuentasXCobrarClientes21Miembro","Detalle de cuentas por cobrar clientes 21 [miembro]"]
[null,null,"1;2","co-svsp-core:DetalleCuentasXCobrarClientes22Miembro","Detalle de cuentas por cobrar clientes 22 [miembro]"]
[null,null,"1;2","co-svsp-core:DetalleCuentasXCobrarClientes23Miembro","Detalle de cuentas por cobrar clientes 23 [miembro]"]
[null,null,"1;2","co-svsp-core:DetalleCuentasXCobrarClientes24Miembro","Detalle de cuentas por cobrar clientes 24 [miembro]"]
[null,null,"1;2","co-svsp-core:DetalleCuentasXCobrarClientes25Miembro","Detalle de cuentas por cobrar clientes 25 [miembro]"]
[null,null,"1;2","co-svsp-core:DetalleCuentasXCobrarClientes26Miembro","Detalle de cuentas por cobrar clientes 26 [miembro]"]
[null,null,"1;2","co-svsp-core:DetalleCuentasXCobrarClientes27Miembro","Detalle de cuentas por cobrar clientes 27 [miembro]"]
[null,null,"1;2","co-svsp-core:DetalleCuentasXCobrarClientes28Miembro","Detalle de cuentas por cobrar clientes 28 [miembro]"]
[null,null,"1;2","co-svsp-core:DetalleCuentasXCobrarClientes29Miembro","Detalle de cuentas por cobrar clientes 29 [miembro]"]
[null,null,"1;2","co-svsp-core:DetalleCuentasXCobrarClientes30Miembro","Detalle de cuentas por cobrar clientes 30 [miembro]"]
[null,null,"1;2","co-svsp-core:DetalleCuentasXCobrarClientes31Miembro","Detalle de cuentas por cobrar clientes 31 [miembro]"]
[null,null,"1;2","co-svsp-core:DetalleCuentasXCobrarClientes32Miembro","Detalle de cuentas por cobrar clientes 32 [miembro]"]
[null,null,"1;2","co-svsp-core:DetalleCuentasXCobrarClientes33Miembro","Detalle de cuentas por cobrar clientes 33 [miembro]"]
[null,null,"1;2","co-svsp-core:DetalleCuentasXCobrarClientes34Miembro","Detalle de cuentas por cobrar clientes 34 [miembro]"]
[null,null,"1;2","co-svsp-core:DetalleCuentasXCobrarClientes35Miembro","Detalle de cuentas por cobrar clientes 35 [miembro]"]
[null,null,"1;2","co-svsp-core:DetalleCuentasXCobrarClientes36Miembro","Detalle de cuentas por cobrar clientes 36 [miembro]"]
[null,null,"1;2","co-svsp-core:DetalleCuentasXCobrarClientes37Miembro","Detalle de cuentas por cobrar clientes 37 [miembro]"]
[null,null,"1;2","co-svsp-core:DetalleCuentasXCobrarClientes38Miembro","Detalle de cuentas por cobrar clientes 38 [miembro]"]
[null,null,"1;2","co-svsp-core:DetalleCuentasXCobrarClientes39Miembro","Detalle de cuentas por cobrar clientes 39 [miembro]"]
[null,null,"1;2","co-svsp-core:DetalleCuentasXCobrarClientes40Miembro","Detalle de cuentas por cobrar clientes 40 [miembro]"]
[null,null,"1;2","co-svsp-core:DetalleCuentasXCobrarClientes41Miembro","Detalle de cuentas por cobrar clientes 41 [miembro]"]
[null,null,"1;2","co-svsp-core:DetalleCuentasXCobrarClientes42Miembro","Detalle de cuentas por cobrar clientes 42 [miembro]"]
[null,null,"1;2","co-svsp-core:DetalleCuentasXCobrarClientes43Miembro","Detalle de cuentas por cobrar clientes 43 [miembro]"]
[null,null,"1;2","co-svsp-core:DetalleCuentasXCobrarClientes44Miembro","Detalle de cuentas por cobrar clientes 44 [miembro]"]
[null,null,"1;2","co-svsp-core:DetalleCuentasXCobrarClientes45Miembro","Detalle de cuentas por cobrar clientes 45 [miembro]"]
[null,null,"1;2","co-svsp-core:DetalleCuentasXCobrarClientes46Miembro","Detalle de cuentas por cobrar clientes 46 [miembro]"]
[null,null,"1;2","co-svsp-core:DetalleCuentasXCobrarClientes47Miembro","Detalle de cuentas por cobrar clientes 47 [miembro]"]
[null,null,"1;2","co-svsp-core:DetalleCuentasXCobrarClientes48Miembro","Detalle de cuentas por cobrar clientes 48 [miembro]"]
[null,null,"1;2","co-svsp-core:DetalleCuentasXCobrarClientes49Miembro","Detalle de cuentas por cobrar clientes 49 [miembro]"]
[null,null,"1;2","co-svsp-core:DetalleCuentasXCobrarClientes50Miembro","Detalle de cuentas por cobrar clientes 50 [miembro]"]
[null,null,"1;2","co-svsp-core:DetalleCuentasXCobrarClientes51EnAdelante","Detalle de cuentas por cobrar clientes 51 en adelante [miembro]"]
[null,null,"1;2","co-svsp-core:TotalDetalleCuentasXCobrarClientesMiembro","Total Detalle de cuentas por cobrar clientes [miembro]",null,null,null,null,null,null,null,null,null,null,null,{"$f":"SUM(Q188:Q238)","v":0}]
[null,null,"1;2","co-svsp-core:RelacionCuentasXCobrarAccionistasSociosVinculadasMiembro","Relación de cuentas por cobrar, compañías accionostas, socios y compañías vinculadas [miembro]"]
[null,null,"1;2","co-svsp-core:DetalleCuentasXCobrarAccionistasSociosVinculadas1Miembro","Detalle de cuentas por cobrar a accionistas, socios o vinculadas 1 [miembro]"]
[null,null,"1;2","co-svsp-core:DetalleCuentasXCobrarAccionistasSociosVinculadas2Miembro","Detalle de cuentas por cobrar a accionistas, socios o vinculadas 2 [miembro]"]
[null,null,"1;2","co-svsp-core:DetalleCuentasXCobrarAccionistasSociosVinculadas3Miembro","Detalle de cuentas por cobrar a accionistas, socios o vinculadas 3 [miembro]"]
[null,null,"1;2","co-svsp-core:DetalleCuentasXCobrarAccionistasSociosVinculadas4Miembro","Detalle de cuentas por cobrar a accionistas, socios o vinculadas 4 [miembro]"]
[null,null,"1;2","co-svsp-core:DetalleCuentasXCobrarAccionistasSociosVinculadas5Miembro","Detalle de cuentas por cobrar a accionistas, socios o vinculadas 5 [miembro]"]
[null,null,"1;2","co-svsp-core:DetalleCuentasXCobrarAccionistasSociosVinculadas6Miembro","Detalle de cuentas por cobrar a accionistas, socios o vinculadas 6 [miembro]"]
[null,null,"1;2","co-svsp-core:DetalleCuentasXCobrarAccionistasSociosVinculadas7Miembro","Detalle de cuentas por cobrar a accionistas, socios o vinculadas 7 [miembro]"]
[null,null,"1;2","co-svsp-core:DetalleCuentasXCobrarAccionistasSociosVinculadas8Miembro","Detalle de cuentas por cobrar a accionistas, socios o vinculadas 8 [miembro]"]
[null,null,"1;2","co-svsp-core:DetalleCuentasXCobrarAccionistasSociosVinculadas9Miembro","Detalle de cuentas por cobrar a accionistas, socios o vinculadas 9 [miembro]"]
[null,null,"1;2","co-svsp-core:DetalleCuentasXCobrarAccionistasSociosVinculadas10Miembro","Detalle de cuentas por cobrar a accionistas, socios o vinculadas 10 [miembro]"]
[null,null,"1;2","co-svsp-core:DetalleCuentasXCobrarAccionistasSociosVinculadas11Miembro","Detalle de cuentas por cobrar a accionistas, socios o vinculadas 11 [miembro]"]
[null,null,"1;2","co-svsp-core:DetalleCuentasXCobrarAccionistasSociosVinculadas12Miembro","Detalle de cuentas por cobrar a accionistas, socios o vinculadas 12 [miembro]"]
[null,null,"1;2","co-svsp-core:DetalleCuentasXCobrarAccionistasSociosVinculadas13Miembro","Detalle de cuentas por cobrar a accionistas, socios o vinculadas 13 [miembro]"]
[null,null,"1;2","co-svsp-core:DetalleCuentasXCobrarAccionistasSociosVinculadas14Miembro","Detalle de cuentas por cobrar a accionistas, socios o vinculadas 14 [miembro]"]
[null,null,"1;2","co-svsp-core:DetalleCuentasXCobrarAccionistasSociosVinculadas15Miembro","Detalle de cuentas por cobrar a accionistas, socios o vinculadas 15 [miembro]"]
[null,null,"1;2","co-svsp-core:DetalleCuentasXCobrarAccionistasSociosVinculadas16Miembro","Detalle de cuentas por cobrar a accionistas, socios o vinculadas 16 [miembro]"]
[null,null,"1;2","co-svsp-core:DetalleCuentasXCobrarAccionistasSociosVinculadas17Miembro","Detalle de cuentas por cobrar a accionistas, socios o vinculadas 17 [miembro]"]
[null,null,"1;2","co-svsp-core:DetalleCuentasXCobrarAccionistasSociosVinculadas18Miembro","Detalle de cuentas por cobrar a accionistas, socios o vinculadas 18 [miembro]"]
[null,null,"1;2","co-svsp-core:DetalleCuentasXCobrarAccionistasSociosVinculadas19Miembro","Detalle de cuentas por cobrar a accionistas, socios o vinculadas 19 [miembro]"]
[null,null,"1;2","co-svsp-core:DetalleCuentasXCobrarAccionistasSociosVinculadas20Miembro","Detalle de cuentas por cobrar a accionistas, socios o vinculadas 20 [miembro]"]
[null,null,"1;2","co-svsp-core:DetalleCuentasXCobrarAccionistasSociosVinculadas21Miembro","Detalle de cuentas por cobrar a accionistas, socios o vinculadas 21 [miembro]"]
[null,null,"1;2","co-svsp-core:DetalleCuentasXCobrarAccionistasSociosVinculadas22Miembro","Detalle de cuentas por cobrar a accionistas, socios o vinculadas 22 [miembro]"]
[null,null,"1;2","co-svsp-core:DetalleCuentasXCobrarAccionistasSociosVinculadas23Miembro","Detalle de cuentas por cobrar a accionistas, socios o vinculadas 23 [miembro]"]
[null,null,"1;2","co-svsp-core:DetalleCuentasXCobrarAccionistasSociosVinculadas24Miembro","Detalle de cuentas por cobrar a accionistas, socios o vinculadas 24 [miembro]"]
[null,null,"1;2","co-svsp-core:DetalleCuentasXCobrarAccionistasSociosVinculadas25Miembro","Detalle de cuentas por cobrar a accionistas, socios o vinculadas 25 [miembro]"]
[null,null,"1;2","co-svsp-core:DetalleCuentasXCobrarAccionistasSociosVinculadas26Miembro","Detalle de cuentas por cobrar a accionistas, socios o vinculadas 26 [miembro]"]
[null,null,"1;2","co-svsp-core:DetalleCuentasXCobrarAccionistasSociosVinculadas27Miembro","Detalle de cuentas por cobrar a accionistas, socios o vinculadas 27 [miembro]"]
[null,null,"1;2","co-svsp-core:DetalleCuentasXCobrarAccionistasSociosVinculadas28Miembro","Detalle de cuentas por cobrar a accionistas, socios o vinculadas 28 [miembro]"]
[null,null,"1;2","co-svsp-core:DetalleCuentasXCobrarAccionistasSociosVinculadas29Miembro","Detalle de cuentas por cobrar a accionistas, socios o vinculadas 29 [miembro]"]
[null,null,"1;2","co-svsp-core:DetalleCuentasXCobrarAccionistasSociosVinculadas30Miembro","Detalle de cuentas por cobrar a accionistas, socios o vinculadas 30 [miembro]"]
[null,null,"1;2","co-svsp-core:DetalleCuentasXCobrarAccionistasSociosVinculadas31Miembro","Detalle de cuentas por cobrar a accionistas, socios o vinculadas 31 [miembro]"]
[null,null,"1;2","co-svsp-core:DetalleCuentasXCobrarAccionistasSociosVinculadas32Miembro","Detalle de cuentas por cobrar a accionistas, socios o vinculadas 32 [miembro]"]
[null,null,"1;2","co-svsp-core:DetalleCuentasXCobrarAccionistasSociosVinculadas33Miembro","Detalle de cuentas por cobrar a accionistas, socios o vinculadas 33 [miembro]"]
[null,null,"1;2","co-svsp-core:DetalleCuentasXCobrarAccionistasSociosVinculadas34Miembro","Detalle de cuentas por cobrar a accionistas, socios o vinculadas 34 [miembro]"]
[null,null,"1;2","co-svsp-core:DetalleCuentasXCobrarAccionistasSociosVinculadas35Miembro","Detalle de cuentas por cobrar a accionistas, socios o vinculadas 35 [miembro]"]
[null,null,"1;2","co-svsp-core:DetalleCuentasXCobrarAccionistasSociosVinculadas36Miembro","Detalle de cuentas por cobrar a accionistas, socios o vinculadas 36 [miembro]"]
[null,null,"1;2","co-svsp-core:DetalleCuentasXCobrarAccionistasSociosVinculadas37Miembro","Detalle de cuentas por cobrar a accionistas, socios o vinculadas 37 [miembro]"]
[null,null,"1;2","co-svsp-core:DetalleCuentasXCobrarAccionistasSociosVinculadas38Miembro","Detalle de cuentas por cobrar a accionistas, socios o vinculadas 38 [miembro]"]
[null,null,"1;2","co-svsp-core:DetalleCuentasXCobrarAccionistasSociosVinculadas39Miembro","Detalle de cuentas por cobrar a accionistas, socios o vinculadas 39 [miembro]"]
[null,null,"1;2","co-svsp-core:DetalleCuentasXCobrarAccionistasSociosVinculadas40Miembro","Detalle de cuentas por cobrar a accionistas, socios o vinculadas 40 [miembro]"]
[null,null,"1;2","co-svsp-core:DetalleCuentasXCobrarAccionistasSociosVinculadas41Miembro","Detalle de cuentas por cobrar a accionistas, socios o vinculadas 41 [miembro]"]
[null,null,"1;2","co-svsp-core:DetalleCuentasXCobrarAccionistasSociosVinculadas42Miembro","Detalle de cuentas por cobrar a accionistas, socios o vinculadas 42 [miembro]"]
[null,null,"1;2","co-svsp-core:DetalleCuentasXCobrarAccionistasSociosVinculadas43Miembro","Detalle de cuentas por cobrar a accionistas, socios o vinculadas 43 [miembro]"]
[null,null,"1;2","co-svsp-core:DetalleCuentasXCobrarAccionistasSociosVinculadas44Miembro","Detalle de cuentas por cobrar a accionistas, socios o vinculadas 44 [miembro]"]
[null,null,"1;2","co-svsp-core:DetalleCuentasXCobrarAccionistasSociosVinculadas45Miembro","Detalle de cuentas por cobrar a accionistas, socios o vinculadas 45 [miembro]"]
[null,null,"1;2","co-svsp-core:DetalleCuentasXCobrarAccionistasSociosVinculadas46Miembro","Detalle de cuentas por cobrar a accionistas, socios o vinculadas 46 [miembro]"]
[null,null,"1;2","co-svsp-core:DetalleCuentasXCobrarAccionistasSociosVinculadas47Miembro","Detalle de cuentas por cobrar a accionistas, socios o vinculadas 47 [miembro]"]
[null,null,"1;2","co-svsp-core:DetalleCuentasXCobrarAccionistasSociosVinculadas48Miembro","Detalle de cuentas por cobrar a accionistas, socios o vinculadas 48 [miembro]"]
[null,null,"1;2","co-svsp-core:DetalleCuentasXCobrarAccionistasSociosVinculadas49Miembro","Detalle de cuentas por cobrar a accionistas, socios o vinculadas 49 [miembro]"]
[null,null,"1;2","co-svsp-core:DetalleCuentasXCobrarAccionistasSociosVinculadas50Miembro","Detalle de cuentas por cobrar a accionistas, socios o vinculadas 50 [miembro]"]
[null,null,"1;2","co-svsp-core:DetalleCuentasXCobrarAccionistasSociosVinculadas51EnAdelante","Detalle de cuentas por cobrar a accionistas, socios o vinculadas 51 en adelante [miembro]"]
[null,null,"1;2","co-svsp-core:TotalDetalleCuentasXCobrarAccionistasSociosVinculadasMiembro","Total Detalle de cuentas por cobrar a accionistas, socios o vinculadas [miembro]",null,null,null,null,null,null,null,null,null,null,null,{"$f":"SUM(Q241:Q291)","v":0}]
[null,null,"1;2","co-svsp-core:RelacionCuentasXCobrarOtrasCuentasXCobrarMiembro","Relación de otras cuentas por cobrar [miembro]"]
[null,null,"1;2","co-svsp-core:DetalleCuentasXCobrarOtrasCuentasXCobrar1Miembro","Detalle de cuentas por cobrar Otras cuentas por cobrar  1 [miembro]"]
[null,null,"1;2","co-svsp-core:DetalleCuentasXCobrarOtrasCuentasXCobrar2Miembro","Detalle de cuentas por cobrar Otras cuentas por cobrar  2 [miembro]"]
[null,null,"1;2","co-svsp-core:DetalleCuentasXCobrarOtrasCuentasXCobrar3Miembro","Detalle de cuentas por cobrar Otras cuentas por cobrar  3 [miembro]"]
[null,null,"1;2","co-svsp-core:DetalleCuentasXCobrarOtrasCuentasXCobrar4Miembro","Detalle de cuentas por cobrar Otras cuentas por cobrar  4 [miembro]"]
[null,null,"1;2","co-svsp-core:DetalleCuentasXCobrarOtrasCuentasXCobrar5Miembro","Detalle de cuentas por cobrar Otras cuentas por cobrar  5 [miembro]"]
[null,null,"1;2","co-svsp-core:DetalleCuentasXCobrarOtrasCuentasXCobrar6Miembro","Detalle de cuentas por cobrar Otras cuentas por cobrar  6 [miembro]"]
[null,null,"1;2","co-svsp-core:DetalleCuentasXCobrarOtrasCuentasXCobrar7Miembro","Detalle de cuentas por cobrar Otras cuentas por cobrar  7 [miembro]"]
[null,null,"1;2","co-svsp-core:DetalleCuentasXCobrarOtrasCuentasXCobrar8Miembro","Detalle de cuentas por cobrar Otras cuentas por cobrar  8 [miembro]"]
[null,null,"1;2","co-svsp-core:DetalleCuentasXCobrarOtrasCuentasXCobrar9Miembro","Detalle de cuentas por cobrar Otras cuentas por cobrar  9 [miembro]"]
[null,null,"1;2","co-svsp-core:DetalleCuentasXCobrarOtrasCuentasXCobrar10Miembro","Detalle de cuentas por cobrar Otras cuentas por cobrar  10 [miembro]"]
[null,null,"1;2","co-svsp-core:DetalleCuentasXCobrarOtrasCuentasXCobrar11Miembro","Detalle de cuentas por cobrar Otras cuentas por cobrar  11 [miembro]"]
[null,null,"1;2","co-svsp-core:DetalleCuentasXCobrarOtrasCuentasXCobrar12Miembro","Detalle de cuentas por cobrar Otras cuentas por cobrar  12 [miembro]"]
[null,null,"1;2","co-svsp-core:DetalleCuentasXCobrarOtrasCuentasXCobrar13Miembro","Detalle de cuentas por cobrar Otras cuentas por cobrar  13 [miembro]"]
[null,null,"1;2","co-svsp-core:DetalleCuentasXCobrarOtrasCuentasXCobrar14Miembro","Detalle de cuentas por cobrar Otras cuentas por cobrar  14 [miembro]"]
[null,null,"1;2","co-svsp-core:DetalleCuentasXCobrarOtrasCuentasXCobrar15Miembro","Detalle de cuentas por cobrar Otras cuentas por cobrar  15 [miembro]"]
[null,null,"1;2","co-svsp-core:DetalleCuentasXCobrarOtrasCuentasXCobrar16Miembro","Detalle de cuentas por cobrar Otras cuentas por cobrar  16 [miembro]"]
[null,null,"1;2","co-svsp-core:DetalleCuentasXCobrarOtrasCuentasXCobrar17Miembro","Detalle de cuentas por cobrar Otras cuentas por cobrar  17 [miembro]"]
[null,null,"1;2","co-svsp-core:DetalleCuentasXCobrarOtrasCuentasXCobrar18Miembro","Detalle de cuentas por cobrar Otras cuentas por cobrar  18 [miembro]"]
[null,null,"1;2","co-svsp-core:DetalleCuentasXCobrarOtrasCuentasXCobrar19Miembro","Detalle de cuentas por cobrar Otras cuentas por cobrar  19 [miembro]"]
[null,null,"1;2","co-svsp-core:DetalleCuentasXCobrarOtrasCuentasXCobrar20Miembro","Detalle de cuentas por cobrar Otras cuentas por cobrar  20 [miembro]"]
[null,null,"1;2","co-svsp-core:DetalleCuentasXCobrarOtrasCuentasXCobrar21Miembro","Detalle de cuentas por cobrar Otras cuentas por cobrar  21 [miembro]"]
[null,null,"1;2","co-svsp-core:DetalleCuentasXCobrarOtrasCuentasXCobrar22Miembro","Detalle de cuentas por cobrar Otras cuentas por cobrar  22 [miembro]"]
[null,null,"1;2","co-svsp-core:DetalleCuentasXCobrarOtrasCuentasXCobrar23Miembro","Detalle de cuentas por cobrar Otras cuentas por cobrar  23 [miembro]"]
[null,null,"1;2","co-svsp-core:DetalleCuentasXCobrarOtrasCuentasXCobrar24Miembro","Detalle de cuentas por cobrar Otras cuentas por cobrar  24 [miembro]"]
[null,null,"1;2","co-svsp-core:DetalleCuentasXCobrarOtrasCuentasXCobrar25Miembro","Detalle de cuentas por cobrar Otras cuentas por cobrar  25 [miembro]"]
[null,null,"1;2","co-svsp-core:DetalleCuentasXCobrarOtrasCuentasXCobrar26Miembro","Detalle de cuentas por cobrar Otras cuentas por cobrar  26 [miembro]"]
[null,null,"1;2","co-svsp-core:DetalleCuentasXCobrarOtrasCuentasXCobrar27Miembro","Detalle de cuentas por cobrar Otras cuentas por cobrar  27 [miembro]"]
[null,null,"1;2","co-svsp-core:DetalleCuentasXCobrarOtrasCuentasXCobrar28Miembro","Detalle de cuentas por cobrar Otras cuentas por cobrar  28 [miembro]"]
[null,null,"1;2","co-svsp-core:DetalleCuentasXCobrarOtrasCuentasXCobrar29Miembro","Detalle de cuentas por cobrar Otras cuentas por cobrar  29 [miembro]"]
[null,null,"1;2","co-svsp-core:DetalleCuentasXCobrarOtrasCuentasXCobrar30Miembro","Detalle de cuentas por cobrar Otras cuentas por cobrar  30 [miembro]"]
[null,null,"1;2","co-svsp-core:DetalleCuentasXCobrarOtrasCuentasXCobrar31Miembro","Detalle de cuentas por cobrar Otras cuentas por cobrar  31 [miembro]"]
[null,null,"1;2","co-svsp-core:DetalleCuentasXCobrarOtrasCuentasXCobrar32Miembro","Detalle de cuentas por cobrar Otras cuentas por cobrar  32 [miembro]"]
[null,null,"1;2","co-svsp-core:DetalleCuentasXCobrarOtrasCuentasXCobrar33Miembro","Detalle de cuentas por cobrar Otras cuentas por cobrar  33 [miembro]"]
[null,null,"1;2","co-svsp-core:DetalleCuentasXCobrarOtrasCuentasXCobrar34Miembro","Detalle de cuentas por cobrar Otras cuentas por cobrar  34 [miembro]"]
[null,null,"1;2","co-svsp-core:DetalleCuentasXCobrarOtrasCuentasXCobrar35Miembro","Detalle de cuentas por cobrar Otras cuentas por cobrar  35 [miembro]"]
[null,null,"1;2","co-svsp-core:DetalleCuentasXCobrarOtrasCuentasXCobrar36Miembro","Detalle de cuentas por cobrar Otras cuentas por cobrar  36 [miembro]"]
[null,null,"1;2","co-svsp-core:DetalleCuentasXCobrarOtrasCuentasXCobrar37Miembro","Detalle de cuentas por cobrar Otras cuentas por cobrar  37 [miembro]"]
[null,null,"1;2","co-svsp-core:DetalleCuentasXCobrarOtrasCuentasXCobrar38Miembro","Detalle de cuentas por cobrar Otras cuentas por cobrar  38 [miembro]"]
[null,null,"1;2","co-svsp-core:DetalleCuentasXCobrarOtrasCuentasXCobrar39Miembro","Detalle de cuentas por cobrar Otras cuentas por cobrar  39 [miembro]"]
[null,null,"1;2","co-svsp-core:DetalleCuentasXCobrarOtrasCuentasXCobrar40Miembro","Detalle de cuentas por cobrar Otras cuentas por cobrar  40 [miembro]"]
[null,null,"1;2","co-svsp-core:DetalleCuentasXCobrarOtrasCuentasXCobrar41Miembro","Detalle de cuentas por cobrar Otras cuentas por cobrar  41 [miembro]"]
[null,null,"1;2","co-svsp-core:DetalleCuentasXCobrarOtrasCuentasXCobrar42Miembro","Detalle de cuentas por cobrar Otras cuentas por cobrar  42 [miembro]"]
[null,null,"1;2","co-svsp-core:DetalleCuentasXCobrarOtrasCuentasXCobrar43Miembro","Detalle de cuentas por cobrar Otras cuentas por cobrar  43 [miembro]"]
[null,null,"1;2","co-svsp-core:DetalleCuentasXCobrarOtrasCuentasXCobrar44Miembro","Detalle de cuentas por cobrar Otras cuentas por cobrar  44 [miembro]"]
[null,null,"1;2","co-svsp-core:DetalleCuentasXCobrarOtrasCuentasXCobrar45Miembro","Detalle de cuentas por cobrar Otras cuentas por cobrar  45 [miembro]"]
[null,null,"1;2","co-svsp-core:DetalleCuentasXCobrarOtrasCuentasXCobrar46Miembro","Detalle de cuentas por cobrar Otras cuentas por cobrar  46 [miembro]"]
[null,null,"1;2","co-svsp-core:DetalleCuentasXCobrarOtrasCuentasXCobrar47Miembro","Detalle de cuentas por cobrar Otras cuentas por cobrar  47 [miembro]"]
[null,null,"1;2","co-svsp-core:DetalleCuentasXCobrarOtrasCuentasXCobrar48Miembro","Detalle de cuentas por cobrar Otras cuentas por cobrar  48 [miembro]"]
[null,null,"1;2","co-svsp-core:DetalleCuentasXCobrarOtrasCuentasXCobrar49Miembro","Detalle de cuentas por cobrar Otras cuentas por cobrar  49 [miembro]"]
[null,null,"1;2","co-svsp-core:DetalleCuentasXCobrarOtrasCuentasXCobrar50Miembro","Detalle de cuentas por cobrar Otras cuentas por cobrar  50 [miembro]"]
[null,null,"1;2","co-svsp-core:DetalleCuentasXCobrarOtrasCuentasXCobrar51EnAdelante","Detalle de cuentas por cobrar Otras cuentas por cobrar  51 en adelante [miembro]",null,null,null,null,null,null,null,null,null,null,null,{"$f":"+'210000 - Est. Situa. Financiera'!G20","v":0}]
[null,null,"1;2","co-svsp-core:TotalDetalleCuentasXCobrarOtrasCuentasXCobrarMiembro","Total Detalle de cuentas por cobrar, otras cuentas por cobrar [miembro]",null,null,null,null,null,null,null,null,null,null,null,{"$f":"SUM(Q294:Q344)","v":0}]
[null,null,"1;2","co-svsp-core:TotalDetalleCuentasXCobrarMiembro","Total Detalle de cuentas por cobrar [miembro]",null,null,null,null,null,null,null,null,null,null,null,{"$f":"Q345+Q292+Q239","v":0},null,{"$f":"IF(Q346='210000 - Est. Situa. Financiera'!G20+'210000 - Est. Situa. Financiera'!G36,\"CORRECTO\",\"La información registrada en este formulario para '\"&E346&\"' en la columna '\"&$Q$185&\"' para del periodo anterior, debe ser igual al reportado en el Estado de Situación Financiera\")","v":"CORRECTO"},null,null,{"$f":"IF(S346=\"CORRECTO\",0,1)","v":0}]

{"sheet":"800111A GeneraXBRL","index":16,"n_rows":193,"n_cols":165,"rows_kept":193,"cut":false,"hidden":true,"merged":[[3,3,5,9],[7,3,7,6]]}
[]
[]
[]
[]
[]
[]
[]
[]
[null,null,null,null,"co-svsp-core:RelacionCuentasXCobrarMiembro","co-svsp-core:RelacionCuentasXCobrarClientesMiembro","co-svsp-core:DetalleCuentasXCobrarClientes1Miembro","co-svsp-core:DetalleCuentasXCobrarClientes2Miembro","co-svsp-core:DetalleCuentasXCobrarClientes3Miembro","co-svsp-core:DetalleCuentasXCobrarClientes4Miembro","co-svsp-core:DetalleCuentasXCobrarClientes5Miembro","co-svsp-core:DetalleCuentasXCobrarClientes6Miembro","co-svsp-core:DetalleCuentasXCobrarClientes7Miembro","co-svsp-core:DetalleCuentasXCobrarClientes8Miembro","co-svsp-core:DetalleCuentasXCobrarClientes9Miembro","co-svsp-core:DetalleCuentasXCobrarClientes10Miembro","co-svsp-core:DetalleCuentasXCobrarClientes11Miembro","co-svsp-core:DetalleCuentasXCobrarClientes12Miembro","co-svsp-core:DetalleCuentasXCobrarClientes13Miembro","co-svsp-core:DetalleCuentasXCobrarClientes14Miembro","co-svsp-core:DetalleCuentasXCobrarClientes15Miembro","co-svsp-core:DetalleCuentasXCobrarClientes16Miembro","co-svsp-core:DetalleCuentasXCobrarClientes17Miembro","co-svsp-core:DetalleCuentasXCobrarClientes18Miembro","co-svsp-core:DetalleCuentasXCobrarClientes19Miembro","co-svsp-core:DetalleCuentasXCobrarClientes20Miembro","co-svsp-core:DetalleCuentasXCobrarClientes21Miembro","co-svsp-core:DetalleCuentasXCobrarClientes22Miembro","co-svsp-core:DetalleCuentasXCobrarClientes23Miembro","co-svsp-core:DetalleCuentasXCobrarClientes24Miembro","co-svsp-core:DetalleCuentasXCobrarClientes25Miembro","co-svsp-core:DetalleCuentasXCobrarClientes26Miembro","co-svsp-core:DetalleCuentasXCobrarClientes27Miembro","co-svsp-core:DetalleCuentasXCobrarClientes28Miembro","co-svsp-core:DetalleCuentasXCobrarClientes29Miembro","co-svsp-core:DetalleCuentasXCobrarClientes30Miembro","co-svsp-core:DetalleCuentasXCobrarClientes31Miembro","co-svsp-core:DetalleCuentasXCobrarClientes32Miembro","co-svsp-core:DetalleCuentasXCobrarClientes33Miembro","co-svsp-core:DetalleCuentasXCobrarClientes34Miembro","co-svsp-core:DetalleCuentasXCobrarClientes35Miembro","co-svsp-core:DetalleCuentasXCobrarClientes36Miembro","co-svsp-core:DetalleCuentasXCobrarClientes37Miembro","co-svsp-core:DetalleCuentasXCobrarClientes38Miembro","co-svsp-core:DetalleCuentasXCobrarClientes39Miembro","co-svsp-core:DetalleCuentasXCobrarClientes40Miembro","co-svsp-core:DetalleCuentasXCobrarClientes41Miembro","co-svsp-core:DetalleCuentasXCobrarClientes42Miembro","co-svsp-core:DetalleCuentasXCobrarClientes43Miembro","co-svsp-core:DetalleCuentasXCobrarClientes44Miembro","co-svsp-core:DetalleCuentasXCobrarClientes45Miembro","co-svsp-core:DetalleCuentasXCobrarClientes46Miembro","co-svsp-core:DetalleCuentasXCobrarClientes47Miembro","co-svsp-core:DetalleCuentasXCobrarClientes48Miembro","co-svsp-core:DetalleCuentasXCobrarClientes49Miembro","co-svsp-core:DetalleCuentasXCobrarClientes50Miembro","co-svsp-core:DetalleCuentasXCobrarClientes51EnAdelante","co-svsp-core:TotalDetalleCuentasXCobrarClientesMiembro","co-svsp-core:RelacionCuentasXCobrarAccionistasSociosVinculadasMiembro","co-svsp-core:DetalleCuentasXCobrarAccionistasSociosVinculadas1Miembro","co-svsp-core:DetalleCuentasXCobrarAccionistasSociosVinculadas2Miembro","co-svsp-core:DetalleCuentasXCobrarAccionistasSociosVinculadas3Miembro","co-svsp-core:DetalleCuentasXCobrarAccionistasSociosVinculadas4Miembro","co-svsp-core:DetalleCuentasXCobrarAccionistasSociosVinculadas5Miembro","co-svsp-core:DetalleCuentasXCobrarAccionistasSociosVinculadas6Miembro","co-svsp-core:DetalleCuentasXCobrarAccionistasSociosVinculadas7Miembro","co-svsp-core:DetalleCuentasXCobrarAccionistasSociosVinculadas8Miembro","co-svsp-core:DetalleCuentasXCobrarAccionistasSociosVinculadas9Miembro","co-svsp-core:DetalleCuentasXCobrarAccionistasSociosVinculadas10Miembro","co-svsp-core:DetalleCuentasXCobrarAccionistasSociosVinculadas11Miembro","co-svsp-core:DetalleCuentasXCobrarAccionistasSociosVinculadas12Miembro","co-svsp-core:DetalleCuentasXCobrarAccionistasSociosVinculadas13Miembro","co-svsp-core:DetalleCuentasXCobrarAccionistasSociosVinculadas14Miembro","co-svsp-core:DetalleCuentasXCobrarAccionistasSociosVinculadas15Miembro","co-svsp-core:DetalleCuentasXCobrarAccionistasSociosVinculadas16Miembro","co-svsp-core:DetalleCuentasXCobrarAccionistasSociosVinculadas17Miembro","co-svsp-core:DetalleCuentasXCobrarAccionistasSociosVinculadas18Miembro","co-svsp-core:DetalleCuentasXCobrarAccionistasSociosVinculadas19Miembro","co-svsp-core:DetalleCuentasXCobrarAccionistasSociosVinculadas20Miembro","co-svsp-core:DetalleCuentasXCobrarAccionistasSociosVinculadas21Miembro","co-svsp-core:DetalleCuentasXCobrarAccionistasSociosVinculadas22Miembro","co-svsp-core:DetalleCuentasXCobrarAccionistasSociosVinculadas23Miembro","co-svsp-core:DetalleCuentasXCobrarAccionistasSociosVinculadas24Miembro","co-svsp-core:DetalleCuentasXCobrarAccionistasSociosVinculadas25Miembro","co-svsp-core:DetalleCuentasXCobrarAccionistasSociosVinculadas26Miembro","co-svsp-core:DetalleCuentasXCobrarAccionistasSociosVinculadas27Miembro","co-svsp-core:DetalleCuentasXCobrarAccionistasSociosVinculadas28Miembro","co-svsp-core:DetalleCuentasXCobrarAccionistasSociosVinculadas29Miembro","co-svsp-core:DetalleCuentasXCobrarAccionistasSociosVinculadas30Miembro","co-svsp-core:DetalleCuentasXCobrarAccionistasSociosVinculadas31Miembro","co-svsp-core:DetalleCuentasXCobrarAccionistasSociosVinculadas32Miembro","co-svsp-core:DetalleCuentasXCobrarAccionistasSociosVinculadas33Miembro","co-svsp-core:DetalleCuentasXCobrarAccionistasSociosVinculadas34Miembro","co-svsp-core:DetalleCuentasXCobrarAccionistasSociosVinculadas35Miembro","co-svsp-core:DetalleCuentasXCobrarAccionistasSociosVinculadas36Miembro","co-svsp-core:DetalleCuentasXCobrarAccionistasSociosVinculadas37Miembro","co-svsp-core:DetalleCuentasXCobrarAccionistasSociosVinculadas38Miembro","co-svsp-core:DetalleCuentasXCobrarAccionistasSociosVinculadas39Miembro","co-svsp-core:DetalleCuentasXCobrarAccionistasSociosVinculadas40Miembro","co-svsp-core:DetalleCuentasXCobrarAccionistasSociosVinculadas41Miembro","co-svsp-core:DetalleCuentasXCobrarAccionistasSociosVinculadas42Miembro","co-svsp-core:DetalleCuentasXCobrarAccionistasSociosVinculadas43Miembro","co-svsp-core:DetalleCuentasXCobrarAccionistasSociosVinculadas44Miembro","co-svsp-core:DetalleCuentasXCobrarAccionistasSociosVinculadas45Miembro","co-svsp-core:DetalleCuentasXCobrarAccionistasSociosVinculadas46Miembro","co-svsp-core:DetalleCuentasXCobrarAccionistasSociosVinculadas47Miembro","co-svsp-core:DetalleCuentasXCobrarAccionistasSociosVinculadas48Miembro","co-svsp-core:DetalleCuentasXCobrarAccionistasSociosVinculadas49Miembro","co-svsp-core:DetalleCuentasXCobrarAccionistasSociosVinculadas50Miembro","co-svsp-core:DetalleCuentasXCobrarAccionistasSociosVinculadas51EnAdelante","co-svsp-core:TotalDetalleCuentasXCobrarAccionistasSociosVinculadasMiembro","co-svsp-core:RelacionCuentasXCobrarOtrasCuentasXCobrarMiembro","co-svsp-core:DetalleCuentasXCobrarOtrasCuentasXCobrar1Miembro","co-svsp-core:DetalleCuentasXCobrarOtrasCuentasXCobrar2Miembro","co-svsp-core:DetalleCuentasXCobrarOtrasCuentasXCobrar3Miembro","co-svsp-core:DetalleCuentasXCobrarOtrasCuentasXCobrar4Miembro","co-svsp-core:DetalleCuentasXCobrarOtrasCuentasXCobrar5Miembro","co-svsp-core:DetalleCuentasXCobrarOtrasCuentasXCobrar6Miembro","co-svsp-core:DetalleCuentasXCobrarOtrasCuentasXCobrar7Miembro","co-svsp-core:DetalleCuentasXCobrarOtrasCuentasXCobrar8Miembro","co-svsp-core:DetalleCuentasXCobrarOtrasCuentasXCobrar9Miembro","co-svsp-core:DetalleCuentasXCobrarOtrasCuentasXCobrar10Miembro","co-svsp-core:DetalleCuentasXCobrarOtrasCuentasXCobrar11Miembro","co-svsp-core:DetalleCuentasXCobrarOtrasCuentasXCobrar12Miembro","co-svsp-core:DetalleCuentasXCobrarOtrasCuentasXCobrar13Miembro","co-svsp-core:DetalleCuentasXCobrarOtrasCuentasXCobrar14Miembro","co-svsp-core:DetalleCuentasXCobrarOtrasCuentasXCobrar15Miembro","co-svsp-core:DetalleCuentasXCobrarOtrasCuentasXCobrar16Miembro","co-svsp-core:DetalleCuentasXCobrarOtrasCuentasXCobrar17Miembro","co-svsp-core:DetalleCuentasXCobrarOtrasCuentasXCobrar18Miembro","co-svsp-core:DetalleCuentasXCobrarOtrasCuentasXCobrar19Miembro","co-svsp-core:DetalleCuentasXCobrarOtrasCuentasXCobrar20Miembro","co-svsp-core:DetalleCuentasXCobrarOtrasCuentasXCobrar21Miembro","co-svsp-core:DetalleCuentasXCobrarOtrasCuentasXCobrar22Miembro","co-svsp-core:DetalleCuentasXCobrarOtrasCuentasXCobrar23Miembro","co-svsp-core:DetalleCuentasXCobrarOtrasCuentasXCobrar24Miembro","co-svsp-core:DetalleCuentasXCobrarOtrasCuentasXCobrar25Miembro","co-svsp-core:DetalleCuentasXCobrarOtrasCuentasXCobrar26Miembro","co-svsp-core:DetalleCuentasXCobrarOtrasCuentasXCobrar27Miembro","co-svsp-core:DetalleCuentasXCobrarOtrasCuentasXCobrar28Miembro","co-svsp-core:DetalleCuentasXCobrarOtrasCuentasXCobrar29Miembro","co-svsp-core:DetalleCuentasXCobrarOtrasCuentasXCobrar30Miembro","co-svsp-core:DetalleCuentasXCobrarOtrasCuentasXCobrar31Miembro","co-svsp-core:DetalleCuentasXCobrarOtrasCuentasXCobrar32Miembro","co-svsp-core:DetalleCuentasXCobrarOtrasCuentasXCobrar33Miembro","co-svsp-core:DetalleCuentasXCobrarOtrasCuentasXCobrar34Miembro","co-svsp-core:DetalleCuentasXCobrarOtrasCuentasXCobrar35Miembro","co-svsp-core:DetalleCuentasXCobrarOtrasCuentasXCobrar36Miembro","co-svsp-core:DetalleCuentasXCobrarOtrasCuentasXCobrar37Miembro","co-svsp-core:DetalleCuentasXCobrarOtrasCuentasXCobrar38Miembro","co-svsp-core:DetalleCuentasXCobrarOtrasCuentasXCobrar39Miembro","co-svsp-core:DetalleCuentasXCobrarOtrasCuentasXCobrar40Miembro","co-svsp-core:DetalleCuentasXCobrarOtrasCuentasXCobrar41Miembro","co-svsp-core:DetalleCuentasXCobrarOtrasCuentasXCobrar42Miembro","co-svsp-core:DetalleCuentasXCobrarOtrasCuentasXCobrar43Miembro","co-svsp-core:DetalleCuentasXCobrarOtrasCuentasXCobrar44Miembro","co-svsp-core:DetalleCuentasXCobrarOtrasCuentasXCobrar45Miembro","co-svsp-core:DetalleCuentasXCobrarOtrasCuentasXCobrar46Miembro","co-svsp-core:DetalleCuentasXCobrarOtrasCuentasXCobrar47Miembro","co-svsp-core:DetalleCuentasXCobrarOtrasCuentasXCobrar48Miembro","co-svsp-core:DetalleCuentasXCobrarOtrasCuentasXCobrar49Miembro","co-svsp-core:DetalleCuentasXCobrarOtrasCuentasXCobrar50Miembro","co-svsp-core:DetalleCuentasXCobrarOtrasCuentasXCobrar51EnAdelante","co-svsp-core:TotalDetalleCuentasXCobrarOtrasCuentasXCobrarMiembro","co-svsp-core:TotalDetalleCuentasXCobrarMiembro"]
[null,"Periodo",null,"co-svsp-core:DetalleCuentasXCobrar_Eje","Relación de cuentas por cobrar [miembro]","Relación de cuentas por cobrar clientes [miembro]","Detalle de cuentas por cobrar clientes 1 [miembro]","Detalle de cuentas por cobrar clientes 2 [miembro]","Detalle de cuentas por cobrar clientes 3 [miembro]","Detalle de cuentas por cobrar clientes 4 [miembro]","Detalle de cuentas por cobrar clientes 5 [miembro]","Detalle de cuentas por cobrar clientes 6 [miembro]","Detalle de cuentas por cobrar clientes 7 [miembro]","Detalle de cuentas por cobrar clientes 8 [miembro]","Detalle de cuentas por cobrar clientes 9 [miembro]","Detalle de cuentas por cobrar clientes 10 [miembro]","Detalle de cuentas por cobrar clientes 11 [miembro]","Detalle de cuentas por cobrar clientes 12 [miembro]","Detalle de cuentas por cobrar clientes 13 [miembro]","Detalle de cuentas por cobrar clientes 14 [miembro]","Detalle de cuentas por cobrar clientes 15 [miembro]","Detalle de cuentas por cobrar clientes 16 [miembro]","Detalle de cuentas por cobrar clientes 17 [miembro]","Detalle de cuentas por cobrar clientes 18 [miembro]","Detalle de cuentas por cobrar clientes 19 [miembro]","Detalle de cuentas por cobrar clientes 20 [miembro]","Detalle de cuentas por cobrar clientes 21 [miembro]","Detalle de cuentas por cobrar clientes 22 [miembro]","Detalle de cuentas por cobrar clientes 23 [miembro]","Detalle de cuentas por cobrar clientes 24 [miembro]","Detalle de cuentas por cobrar clientes 25 [miembro]","Detalle de cuentas por cobrar clientes 26 [miembro]","Detalle de cuentas por cobrar clientes 27 [miembro]","Detalle de cuentas por cobrar clientes 28 [miembro]","Detalle de cuentas por cobrar clientes 29 [miembro]","Detalle de cuentas por cobrar clientes 30 [miembro]","Detalle de cuentas por cobrar clientes 31 [miembro]","Detalle de cuentas por cobrar clientes 32 [miembro]","Detalle de cuentas por cobrar clientes 33 [miembro]","Detalle de cuentas por cobrar clientes 34 [miembro]","Detalle de cuentas por cobrar clientes 35 [miembro]","Detalle de cuentas por cobrar clientes 36 [miembro]","Detalle de cuentas por cobrar clientes 37 [miembro]","Detalle de cuentas por cobrar clientes 38 [miembro]","Detalle de cuentas por cobrar clientes 39 [miembro]","Detalle de cuentas por cobrar clientes 40 [miembro]","Detalle de cuentas por cobrar clientes 41 [miembro]","Detalle de cuentas por cobrar clientes 42 [miembro]","Detalle de cuentas por cobrar clientes 43 [miembro]","Detalle de cuentas por cobrar clientes 44 [miembro]","Detalle de cuentas por cobrar clientes 45 [miembro]","Detalle de cuentas por cobrar clientes 46 [miembro]","Detalle de cuentas por cobrar clientes 47 [miembro]","Detalle de cuentas por cobrar clientes 48 [miembro]","Detalle de cuentas por cobrar clientes 49 [miembro]","Detalle de cuentas por cobrar clientes 50 [miembro]","Detalle de cuentas por cobrar clientes 51 en adelante [miembro]","Total Detalle de cuentas por cobrar clientes [miembro]","Relación de cuentas por cobrar, compañías accionostas, socios y compañías vinculadas [miembro]","Detalle de cuentas por cobrar a accionistas, socios o vinculadas 1 [miembro]","Detalle de cuentas por cobrar a accionistas, socios o vinculadas 2 [miembro]","Detalle de cuentas por cobrar a accionistas, socios o vinculadas 3 [miembro]","Detalle de cuentas por cobrar a accionistas, socios o vinculadas 4 [miembro]","Detalle de cuentas por cobrar a accionistas, socios o vinculadas 5 [miembro]","Detalle de cuentas por cobrar a accionistas, socios o vinculadas 6 [miembro]","Detalle de cuentas por cobrar a accionistas, socios o vinculadas 7 [miembro]","Detalle de cuentas por cobrar a accionistas, socios o vinculadas 8 [miembro]","Detalle de cuentas por cobrar a accionistas, socios o vinculadas 9 [miembro]","Detalle de cuentas por cobrar a accionistas, socios o vinculadas 10 [miembro]","Detalle de cuentas por cobrar a accionistas, socios o vinculadas 11 [miembro]","Detalle de cuentas por cobrar a accionistas, socios o vinculadas 12 [miembro]","Detalle de cuentas por cobrar a accionistas, socios o vinculadas 13 [miembro]","Detalle de cuentas por cobrar a accionistas, socios o vinculadas 14 [miembro]","Detalle de cuentas por cobrar a accionistas, socios o vinculadas 15 [miembro]","Detalle de cuentas por cobrar a accionistas, socios o vinculadas 16 [miembro]","Detalle de cuentas por cobrar a accionistas, socios o vinculadas 17 [miembro]","Detalle de cuentas por cobrar a accionistas, socios o vinculadas 18 [miembro]","Detalle de cuentas por cobrar a accionistas, socios o vinculadas 19 [miembro]","Detalle de cuentas por cobrar a accionistas, socios o vinculadas 20 [miembro]","Detalle de cuentas por cobrar a accionistas, socios o vinculadas 21 [miembro]","Detalle de cuentas por cobrar a accionistas, socios o vinculadas 22 [miembro]","Detalle de cuentas por cobrar a accionistas, socios o vinculadas 23 [miembro]","Detalle de cuentas por cobrar a accionistas, socios o vinculadas 24 [miembro]","Detalle de cuentas por cobrar a accionistas, socios o vinculadas 25 [miembro]","Detalle de cuentas por cobrar a accionistas, socios o vinculadas 26 [miembro]","Detalle de cuentas por cobrar a accionistas, socios o vinculadas 27 [miembro]","Detalle de cuentas por cobrar a accionistas, socios o vinculadas 28 [miembro]","Detalle de cuentas por cobrar a accionistas, socios o vinculadas 29 [miembro]","Detalle de cuentas por cobrar a accionistas, socios o vinculadas 30 [miembro]","Detalle de cuentas por cobrar a accionistas, socios o vinculadas 31 [miembro]","Detalle de cuentas por cobrar a accionistas, socios o vinculadas 32 [miembro]","Detalle de cuentas por cobrar a accionistas, socios o vinculadas 33 [miembro]","Detalle de cuentas por cobrar a accionistas, socios o vinculadas 34 [miembro]","Detalle de cuentas por cobrar a accionistas, socios o vinculadas 35 [miembro]","Detalle de cuentas por cobrar a accionistas, socios o vinculadas 36 [miembro]","Detalle de cuentas por cobrar a accionistas, socios o vinculadas 37 [miembro]","Detalle de cuentas por cobrar a accionistas, socios o vinculadas 38 [miembro]","Detalle de cuentas por cobrar a accionistas, socios o vinculadas 39 [miembro]","Detalle de cuentas por cobrar a accionistas, socios o vinculadas 40 [miembro]","Detalle de cuentas por cobrar a accionistas, socios o vinculadas 41 [miembro]","Detalle de cuentas por cobrar a accionistas, socios o vinculadas 42 [miembro]","Detalle de cuentas por cobrar a accionistas, socios o vinculadas 43 [miembro]","Detalle de cuentas por cobrar a accionistas, socios o vinculadas 44 [miembro]","Detalle de cuentas por cobrar a accionistas, socios o vinculadas 45 [miembro]","Detalle de cuentas por cobrar a accionistas, socios o vinculadas 46 [miembro]","Detalle de cuentas por cobrar a accionistas, socios o vinculadas 47 [miembro]","Detalle de cuentas por cobrar a accionistas, socios o vinculadas 48 [miembro]","Detalle de cuentas por cobrar a accionistas, socios o vinculadas 49 [miembro]","Detalle de cuentas por cobrar a accionistas, socios o vinculadas 50 [miembro]","Detalle de cuentas por cobrar a accionistas, socios o vinculadas 51 en adelante [miembro]","Total Detalle de cuentas por cobrar a accionistas, socios o vinculadas [miembro]","Relación de otras cuentas por cobrar [miembro]","Detalle de cuentas por cobrar Otras cuentas por cobrar  1 [miembro]","Detalle de cuentas por cobrar Otras cuentas por cobrar  2 [miembro]","Detalle de cuentas por cobrar Otras cuentas por cobrar  3 [miembro]","Detalle de cuentas por cobrar Otras cuentas por cobrar  4 [miembro]","Detalle de cuentas por cobrar Otras cuentas por cobrar  5 [miembro]","Detalle de cuentas por cobrar Otras cuentas por cobrar  6 [miembro]","Detalle de cuentas por cobrar Otras cuentas por cobrar  7 [miembro]","Detalle de cuentas por cobrar Otras cuentas por cobrar  8 [miembro]","Detalle de cuentas por cobrar Otras cuentas por cobrar  9 [miembro]","Detalle de cuentas por cobrar Otras cuentas por cobrar  10 [miembro]","Detalle de cuentas por cobrar Otras cuentas por cobrar  11 [miembro]","Detalle de cuentas por cobrar Otras cuentas por cobrar  12 [miembro]","Detalle de cuentas por cobrar Otras cuentas por cobrar  13 [miembro]","Detalle de cuentas por cobrar Otras cuentas por cobrar  14 [miembro]","Detalle de cuentas por cobrar Otras cuentas por cobrar  15 [miembro]","Detalle de cuentas por cobrar Otras cuentas por cobrar  16 [miembro]","Detalle de cuentas por cobrar Otras cuentas por cobrar  17 [miembro]","Detalle de cuentas por cobrar Otras cuentas por cobrar  18 [miembro]","Detalle de cuentas por cobrar Otras cuentas por cobrar  19 [miembro]","Detalle de cuentas por cobrar Otras cuentas por cobrar  20 [miembro]","Detalle de cuentas por cobrar Otras cuentas por cobrar  21 [miembro]","Detalle de cuentas por cobrar Otras cuentas por cobrar  22 [miembro]","Detalle de cuentas por cobrar Otras cuentas por cobrar  23 [miembro]","Detalle de cuentas por cobrar Otras cuentas por cobrar  24 [miembro]","Detalle de cuentas por cobrar Otras cuentas por cobrar  25 [miembro]","Detalle de cuentas por cobrar Otras cuentas por cobrar  26 [miembro]","Detalle de cuentas por cobrar Otras cuentas por cobrar  27 [miembro]","Detalle de cuentas por cobrar Otras cuentas por cobrar  28 [miembro]","Detalle de cuentas por cobrar Otras cuentas por cobrar  29 [miembro]","Detalle de cuentas por cobrar Otras cuentas por cobrar  30 [miembro]","Detalle de cuentas por cobrar Otras cuentas por cobrar  31 [miembro]","Detalle de cuentas por cobrar Otras cuentas por cobrar  32 [miembro]","Detalle de cuentas por cobrar Otras cuentas por cobrar  33 [miembro]","Detalle de cuentas por cobrar Otras cuentas por cobrar  34 [miembro]","Detalle de cuentas por cobrar Otras cuentas por cobrar  35 [miembro]","Detalle de cuentas por cobrar Otras cuentas por cobrar  36 [miembro]","Detalle de cuentas por cobrar Otras cuentas por cobrar  37 [miembro]","Detalle de cuentas por cobrar Otras cuentas por cobrar  38 [miembro]","Detalle de cuentas por cobrar Otras cuentas por cobrar  39 [miembro]","Detalle de cuentas por cobrar Otras cuentas por cobrar  40 [miembro]","Detalle de cuentas por cobrar Otras cuentas por cobrar  41 [miembro]","Detalle de cuentas por cobrar Otras cuentas por cobrar  42 [miembro]","Detalle de cuentas por cobrar Otras cuentas por cobrar  43 [miembro]","Detalle de cuentas por cobrar Otras cuentas por cobrar  44 [miembro]","Detalle de cuentas por cobrar Otras cuentas por cobrar  45 [miembro]","Detalle de cuentas por cobrar Otras cuentas por cobrar  46 [miembro]","Detalle de cuentas por cobrar Otras cuentas por cobrar  47 [miembro]","Detalle de cuentas por cobrar Otras cuentas por cobrar  48 [miembro]","Detalle de cuentas por cobrar Otras cuentas por cobrar  49 [miembro]","Detalle de cuentas por cobrar Otras cuentas por cobrar  50 [miembro]","Detalle de cuentas por cobrar Otras cuentas por cobrar  51 en adelante [miembro]","Total Detalle de cuentas por cobrar, otras cuentas por cobrar [miembro]","Total Detalle de cuentas por cobrar [miembro]"]
[null,"1;1","co-svsp-core:TipoDeDocumentoDeudorCxC","Tipo de documento del deudor",null,null,{"$f":"IF('800111a - Nota. Detalle de CxC.'!F17=\"\",\"\",'800111a - Nota. Detalle de CxC.'!F17)","v":""},{"$f":"IF('800111a - Nota. Detalle de CxC.'!F18=\"\",\"\",'800111a - Nota. Detalle de CxC.'!F18)","v":""},{"$f":"IF('800111a - Nota. Detalle de CxC.'!F19=\"\",\"\",'800111a - Nota. Detalle de CxC.'!F19)","v":""},{"$f":"IF('800111a - Nota. Detalle de CxC.'!F20=\"\",\"\",'800111a - Nota. Detalle de CxC.'!F20)","v":""},{"$f":"IF('800111a - Nota. Detalle de CxC.'!F21=\"\",\"\",'800111a - Nota. Detalle de CxC.'!F21)","v":""},{"$f":"IF('800111a - Nota. Detalle de CxC.'!F22=\"\",\"\",'800111a - Nota. Detalle de CxC.'!F22)","v":""},{"$f":"IF('800111a - Nota. Detalle de CxC.'!F23=\"\",\"\",'800111a - Nota. Detalle de CxC.'!F23)","v":""},{"$f":"IF('800111a - Nota. Detalle de CxC.'!F24=\"\",\"\",'800111a - Nota. Detalle de CxC.'!F24)","v":""},{"$f":"IF('800111a - Nota. Detalle de CxC.'!F25=\"\",\"\",'800111a - Nota. Detalle de CxC.'!F25)","v":""},{"$f":"IF('800111a - Nota. Detalle de CxC.'!F26=\"\",\"\",'800111a - Nota. Detalle de CxC.'!F26)","v":""},{"$f":"IF('800111a - Nota. Detalle de CxC.'!F27=\"\",\"\",'800111a - Nota. Detalle de CxC.'!F27)","v":""},{"$f":"IF('800111a - Nota. Detalle de CxC.'!F28=\"\",\"\",'800111a - Nota. Detalle de CxC.'!F28)","v":""},{"$f":"IF('800111a - Nota. Detalle de CxC.'!F29=\"\",\"\",'800111a - Nota. Detalle de CxC.'!F29)","v":""},{"$f":"IF('800111a - Nota. Detalle de CxC.'!F30=\"\",\"\",'800111a - Nota. Detalle de CxC.'!F30)","v":""},{"$f":"IF('800111a - Nota. Detalle de CxC.'!F31=\"\",\"\",'800111a - Nota. Detalle de CxC.'!F31)","v":""},{"$f":"IF('800111a - Nota. Detalle de CxC.'!F32=\"\",\"\",'800111a - Nota. Detalle de CxC.'!F32)","v":""},{"$f":"IF('800111a - Nota. Detalle de CxC.'!F33=\"\",\"\",'800111a - Nota. Detalle de CxC.'!F33)","v":""},{"$f":"IF('800111a - Nota. Detalle de CxC.'!F34=\"\",\"\",'800111a - Nota. Detalle de CxC.'!F34)","v":""},{"$f":"IF('800111a - Nota. Detalle de CxC.'!F35=\"\",\"\",'800111a - Nota. Detalle de CxC.'!F35)","v":""},{"$f":"IF('800111a - Nota. Detalle de CxC.'!F36=\"\",\"\",'800111a - Nota. Detalle de CxC.'!F36)","v":""},{"$f":"IF('800111a - Nota. Detalle de CxC.'!F37=\"\",\"\",'800111a - Nota. Detalle de CxC.'!F37)","v":""},{"$f":"IF('800111a - Nota. Detalle de CxC.'!F38=\"\",\"\",'800111a - Nota. Detalle de CxC.'!F38)","v":""},{"$f":"IF('800111a - Nota. Detalle de CxC.'!F39=\"\",\"\",'800111a - Nota. Detalle de CxC.'!F39)","v":""},{"$f":"IF('800111a - Nota. Detalle de CxC.'!F40=\"\",\"\",'800111a - Nota. Detalle de CxC.'!F40)","v":""},{"$f":"IF('800111a - Nota. Detalle de CxC.'!F41=\"\",\"\",'800111a - Nota. Detalle de CxC.'!F41)","v":""},{"$f":"IF('800111a - Nota. Detalle de CxC.'!F42=\"\",\"\",'800111a - Nota. Detalle de CxC.'!F42)","v":""},{"$f":"IF('800111a - Nota. Detalle de CxC.'!F43=\"\",\"\",'800111a - Nota. Detalle de CxC.'!F43)","v":""},{"$f":"IF('800111a - Nota. Detalle de CxC.'!F44=\"\",\"\",'800111a - Nota. Detalle de CxC.'!F44)","v":""},{"$f":"IF('800111a - Nota. Detalle de CxC.'!F45=\"\",\"\",'800111a - Nota. Detalle de CxC.'!F45)","v":""},{"$f":"IF('800111a - Nota. Detalle de CxC.'!F46=\"\",\"\",'800111a - Nota. Detalle de CxC.'!F46)","v":""},{"$f":"IF('800111a - Nota. Detalle de CxC.'!F47=\"\",\"\",'800111a - Nota. Detalle de CxC.'!F47)","v":""},{"$f":"IF('800111a - Nota. Detalle de CxC.'!F48=\"\",\"\",'800111a - Nota. Detalle de CxC.'!F48)","v":""},{"$f":"IF('800111a - Nota. Detalle de CxC.'!F49=\"\",\"\",'800111a - Nota. Detalle de CxC.'!F49)","v":""},{"$f":"IF('800111a - Nota. Detalle de CxC.'!F50=\"\",\"\",'800111a - Nota. Detalle de CxC.'!F50)","v":""},{"$f":"IF('800111a - Nota. Detalle de CxC.'!F51=\"\",\"\",'800111a - Nota. Detalle de CxC.'!F51)","v":""},{"$f":"IF('800111a - Nota. Detalle de CxC.'!F52=\"\",\"\",'800111a - Nota. Detalle de CxC.'!F52)","v":""},{"$f":"IF('800111a - Nota. Detalle de CxC.'!F53=\"\",\"\",'800111a - Nota. Detalle de CxC.'!F53)","v":""},{"$f":"IF('800111a - Nota. Detalle de CxC.'!F54=\"\",\"\",'800111a - Nota. Detalle de CxC.'!F54)","v":""},{"$f":"IF('800111a - Nota. Detalle de CxC.'!F55=\"\",\"\",'800111a - Nota. Detalle de CxC.'!F55)","v":""},{"$f":"IF('800111a - Nota. Detalle de CxC.'!F56=\"\",\"\",'800111a - Nota. Detalle de CxC.'!F56)","v":""},{"$f":"IF('800111a - Nota. Detalle de CxC.'!F57=\"\",\"\",'800111a - Nota. Detalle de CxC.'!F57)","v":""},{"$f":"IF('800111a - Nota. Detalle de CxC.'!F58=\"\",\"\",'800111a - Nota. Detalle de CxC.'!F58)","v":""},{"$f":"IF('800111a - Nota. Detalle de CxC.'!F59=\"\",\"\",'800111a - Nota. Detalle de CxC.'!F59)","v":""},{"$f":"IF('800111a - Nota. Detalle de CxC.'!F60=\"\",\"\",'800111a - Nota. Detalle de CxC.'!F60)","v":""},{"$f":"IF('800111a - Nota. Detalle de CxC.'!F61=\"\",\"\",'800111a - Nota. Detalle de CxC.'!F61)","v":""},{"$f":"IF('800111a - Nota. Detalle de CxC.'!F62=\"\",\"\",'800111a - Nota. Detalle de CxC.'!F62)","v":""},{"$f":"IF('800111a - Nota. Detalle de CxC.'!F63=\"\",\"\",'800111a - Nota. Detalle de CxC.'!F63)","v":""},{"$f":"IF('800111a - Nota. Detalle de CxC.'!F64=\"\",\"\",'800111a - Nota. Detalle de CxC.'!F64)","v":""},{"$f":"IF('800111a - Nota. Detalle de CxC.'!F65=\"\",\"\",'800111a - Nota. Detalle de CxC.'!F65)","v":""},{"$f":"IF('800111a - Nota. Detalle de CxC.'!F66=\"\",\"\",'800111a - Nota. Detalle de CxC.'!F66)","v":""},null,null,null,{"$f":"IF('800111a - Nota. Detalle de CxC.'!F70=\"\",\"\",'800111a - Nota. Detalle de CxC.'!F70)","v":""},{"$f":"IF('800111a - Nota. Detalle de CxC.'!F71=\"\",\"\",'800111a - Nota. Detalle de CxC.'!F71)","v":""},{"$f":"IF('800111a - Nota. Detalle de CxC.'!F72=\"\",\"\",'800111a - Nota. Detalle de CxC.'!F72)","v":""},{"$f":"IF('800111a - Nota. Detalle de CxC.'!F73=\"\",\"\",'800111a - Nota. Detalle de CxC.'!F73)","v":""},{"$f":"IF('800111a - Nota. Detalle de CxC.'!F74=\"\",\"\",'800111a - Nota. Detalle de CxC.'!F74)","v":""},{"$f":"IF('800111a - Nota. Detalle de CxC.'!F75=\"\",\"\",'800111a - Nota. Detalle de CxC.'!F75)","v":""},{"$f":"IF('800111a - Nota. Detalle de CxC.'!F76=\"\",\"\",'800111a - Nota. Detalle de CxC.'!F76)","v":""},{"$f":"IF('800111a - Nota. Detalle de CxC.'!F77=\"\",\"\",'800111a - Nota. Detalle de CxC.'!F77)","v":""},{"$f":"IF('800111a - Nota. Detalle de CxC.'!F78=\"\",\"\",'800111a - Nota. Detalle de CxC.'!F78)","v":""},{"$f":"IF('800111a - Nota. Detalle de CxC.'!F79=\"\",\"\",'800111a - Nota. Detalle de CxC.'!F79)","v":""},{"$f":"IF('800111a - Nota. Detalle de CxC.'!F80=\"\",\"\",'800111a - Nota. Detalle de CxC.'!F80)","v":""},{"$f":"IF('800111a - Nota. Detalle de CxC.'!F81=\"\",\"\",'800111a - Nota. Detalle de CxC.'!F81)","v":""},{"$f":"IF('800111a - Nota. Detalle de CxC.'!F82=\"\",\"\",'800111a - Nota. Detalle de CxC.'!F82)","v":""},{"$f":"IF('800111a - Nota. Detalle de CxC.'!F83=\"\",\"\",'800111a - Nota. Detalle de CxC.'!F83)","v":""},{"$f":"IF('800111a - Nota. Detalle de CxC.'!F84=\"\",\"\",'800111a - Nota. Detalle de CxC.'!F84)","v":""},{"$f":"IF('800111a - Nota. Detalle de CxC.'!F85=\"\",\"\",'800111a - Nota. Detalle de CxC.'!F85)","v":""},{"$f":"IF('800111a - Nota. Detalle de CxC.'!F86=\"\",\"\",'800111a - Nota. Detalle de CxC.'!F86)","v":""},{"$f":"IF('800111a - Nota. Detalle de CxC.'!F87=\"\",\"\",'800111a - Nota. Detalle de CxC.'!F87)","v":""},{"$f":"IF('800111a - Nota. Detalle de CxC.'!F88=\"\",\"\",'800111a - Nota. Detalle de CxC.'!F88)","v":""},{"$f":"IF('800111a - Nota. Detalle de CxC.'!F89=\"\",\"\",'800111a - Nota. Detalle de CxC.'!F89)","v":""},{"$f":"IF('800111a - Nota. Detalle de CxC.'!F90=\"\",\"\",'800111a - Nota. Detalle de CxC.'!F90)","v":""},{"$f":"IF('800111a - Nota. Detalle de CxC.'!F91=\"\",\"\",'800111a - Nota. Detalle de CxC.'!F91)","v":""},{"$f":"IF('800111a - Nota. Detalle de CxC.'!F92=\"\",\"\",'800111a - Nota. Detalle de CxC.'!F92)","v":""},{"$f":"IF('800111a - Nota. Detalle de CxC.'!F93=\"\",\"\",'800111a - Nota. Detalle de CxC.'!F93)","v":""},{"$f":"IF('800111a - Nota. Detalle de CxC.'!F94=\"\",\"\",'800111a - Nota. Detalle de CxC.'!F94)","v":""},{"$f":"IF('800111a - Nota. Detalle de CxC.'!F95=\"\",\"\",'800111a - Nota. Detalle de CxC.'!F95)","v":""},{"$f":"IF('800111a - Nota. Detalle de CxC.'!F96=\"\",\"\",'800111a - Nota. Detalle de CxC.'!F96)","v":""},{"$f":"IF('800111a - Nota. Detalle de CxC.'!F97=\"\",\"\",'800111a - Nota. Detalle de CxC.'!F97)","v":""},{"$f":"IF('800111a - Nota. Detalle de CxC.'!F98=\"\",\"\",'800111a - Nota. Detalle de CxC.'!F98)","v":""},{"$f":"IF('800111a - Nota. Detalle de CxC.'!F99=\"\",\"\",'800111a - Nota. Detalle de CxC.'!F99)","v":""},{"$f":"IF('800111a - Nota. Detalle de CxC.'!F100=\"\",\"\",'800111a - Nota. Detalle de CxC.'!F100)","v":""},{"$f":"IF('800111a - Nota. Detalle de CxC.'!F101=\"\",\"\",'800111a - Nota. Detalle de CxC.'!F101)","v":""},{"$f":"IF('800111a - Nota. Detalle de CxC.'!F102=\"\",\"\",'800111a - Nota. Detalle de CxC.'!F102)","v":""},{"$f":"IF('800111a - Nota. Detalle de CxC.'!F103=\"\",\"\",'800111a - Nota. Detalle de CxC.'!F103)","v":""},{"$f":"IF('800111a - Nota. Detalle de CxC.'!F104=\"\",\"\",'800111a - Nota. Detalle de CxC.'!F104)","v":""},{"$f":"IF('800111a - Nota. Detalle de CxC.'!F105=\"\",\"\",'800111a - Nota. Detalle de CxC.'!F105)","v":""},{"$f":"IF('800111a - Nota. Detalle de CxC.'!F106=\"\",\"\",'800111a - Nota. Detalle de CxC.'!F106)","v":""},{"$f":"IF('800111a - Nota. Detalle de CxC.'!F107=\"\",\"\",'800111a - Nota. Detalle de CxC.'!F107)","v":""},{"$f":"IF('800111a - Nota. Detalle de CxC.'!F108=\"\",\"\",'800111a - Nota. Detalle de CxC.'!F108)","v":""},{"$f":"IF('800111a - Nota. Detalle de CxC.'!F109=\"\",\"\",'800111a - Nota. Detalle de CxC.'!F109)","v":""},{"$f":"IF('800111a - Nota. Detalle de CxC.'!F110=\"\",\"\",'800111a - Nota. Detalle de CxC.'!F110)","v":""},{"$f":"IF('800111a - Nota. Detalle de CxC.'!F111=\"\",\"\",'800111a - Nota. Detalle de CxC.'!F111)","v":""},{"$f":"IF('800111a - Nota. Detalle de CxC.'!F112=\"\",\"\",'800111a - Nota. Detalle de CxC.'!F112)","v":""},{"$f":"IF('800111a - Nota. Detalle de CxC.'!F113=\"\",\"\",'800111a - Nota. Detalle de CxC.'!F113)","v":""},{"$f":"IF('800111a - Nota. Detalle de CxC.'!F114=\"\",\"\",'800111a - Nota. Detalle de CxC.'!F114)","v":""},{"$f":"IF('800111a - Nota. Detalle de CxC.'!F115=\"\",\"\",'800111a - Nota. Detalle de CxC.'!F115)","v":""},{"$f":"IF('800111a - Nota. Detalle de CxC.'!F116=\"\",\"\",'800111a - Nota. Detalle de CxC.'!F116)","v":""},{"$f":"IF('800111a - Nota. Detalle de CxC.'!F117=\"\",\"\",'800111a - Nota. Detalle de CxC.'!F117)","v":""},{"$f":"IF('800111a - Nota. Detalle de CxC.'!F118=\"\",\"\",'800111a - Nota. Detalle de CxC.'!F118)","v":""},{"$f":"IF('800111a - Nota. Detalle de CxC.'!F119=\"\",\"\",'800111a - Nota. Detalle de CxC.'!F119)","v":""},null,null,null,{"$f":"IF('800111a - Nota. Detalle de CxC.'!F123=\"\",\"\",'800111a - Nota. Detalle de CxC.'!F123)","v":""},{"$f":"IF('800111a - Nota. Detalle de CxC.'!F124=\"\",\"\",'800111a - Nota. Detalle de CxC.'!F124)","v":""},{"$f":"IF('800111a - Nota. Detalle de CxC.'!F125=\"\",\"\",'800111a - Nota. Detalle de CxC.'!F125)","v":""},{"$f":"IF('800111a - Nota. Detalle de CxC.'!F126=\"\",\"\",'800111a - Nota. Detalle de CxC.'!F126)","v":""},{"$f":"IF('800111a - Nota. Detalle de CxC.'!F127=\"\",\"\",'800111a - Nota. Detalle de CxC.'!F127)","v":""},{"$f":"IF('800111a - Nota. Detalle de CxC.'!F128=\"\",\"\",'800111a - Nota. Detalle de CxC.'!F128)","v":""},{"$f":"IF('800111a - Nota. Detalle de CxC.'!F129=\"\",\"\",'800111a - Nota. Detalle de CxC.'!F129)","v":""},{"$f":"IF('800111a - Nota. Detalle de CxC.'!F130=\"\",\"\",'800111a - Nota. Detalle de CxC.'!F130)","v":""},{"$f":"IF('800111a - Nota. Detalle de CxC.'!F131=\"\",\"\",'800111a - Nota. Detalle de CxC.'!F131)","v":""},{"$f":"IF('800111a - Nota. Detalle de CxC.'!F132=\"\",\"\",'800111a - Nota. Detalle de CxC.'!F132)","v":""},{"$f":"IF('800111a - Nota. Detalle de CxC.'!F133=\"\",\"\",'800111a - Nota. Detalle de CxC.'!F133)","v":""},{"$f":"IF('800111a - Nota. Detalle de CxC.'!F134=\"\",\"\",'800111a - Nota. Detalle de CxC.'!F134)","v":""},{"$f":"IF('800111a - Nota. Detalle de CxC.'!F135=\"\",\"\",'800111a - Nota. Detalle de CxC.'!F135)","v":""},{"$f":"IF('800111a - Nota. Detalle de CxC.'!F136=\"\",\"\",'800111a - Nota. Detalle de CxC.'!F136)","v":""},{"$f":"IF('800111a - Nota. Detalle de CxC.'!F137=\"\",\"\",'800111a - Nota. Detalle de CxC.'!F137)","v":""},{"$f":"IF('800111a - Nota. Detalle de CxC.'!F138=\"\",\"\",'800111a - Nota. Detalle de CxC.'!F138)","v":""},{"$f":"IF('800111a - Nota. Detalle de CxC.'!F139=\"\",\"\",'800111a - Nota. Detalle de CxC.'!F139)","v":""},{"$f":"IF('800111a - Nota. Detalle de CxC.'!F140=\"\",\"\",'800111a - Nota. Detalle de CxC.'!F140)","v":""},{"$f":"IF('800111a - Nota. Detalle de CxC.'!F141=\"\",\"\",'800111a - Nota. Detalle de CxC.'!F141)","v":""},{"$f":"IF('800111a - Nota. Detalle de CxC.'!F142=\"\",\"\",'800111a - Nota. Detalle de CxC.'!F142)","v":""},{"$f":"IF('800111a - Nota. Detalle de CxC.'!F143=\"\",\"\",'800111a - Nota. Detalle de CxC.'!F143)","v":""},{"$f":"IF('800111a - Nota. Detalle de CxC.'!F144=\"\",\"\",'800111a - Nota. Detalle de CxC.'!F144)","v":""},{"$f":"IF('800111a - Nota. Detalle de CxC.'!F145=\"\",\"\",'800111a - Nota. Detalle de CxC.'!F145)","v":""},{"$f":"IF('800111a - Nota. Detalle de CxC.'!F146=\"\",\"\",'800111a - Nota. Detalle de CxC.'!F146)","v":""},{"$f":"IF('800111a - Nota. Detalle de CxC.'!F147=\"\",\"\",'800111a - Nota. Detalle de CxC.'!F147)","v":""},{"$f":"IF('800111a - Nota. Detalle de CxC.'!F148=\"\",\"\",'800111a - Nota. Detalle de CxC.'!F148)","v":""},{"$f":"IF('800111a - Nota. Detalle de CxC.'!F149=\"\",\"\",'800111a - Nota. Detalle de CxC.'!F149)","v":""},{"$f":"IF('800111a - Nota. Detalle de CxC.'!F150=\"\",\"\",'800111a - Nota. Detalle de CxC.'!F150)","v":""},{"$f":"IF('800111a - Nota. Detalle de CxC.'!F151=\"\",\"\",'800111a - Nota. Detalle de CxC.'!F151)","v":""},{"$f":"IF('800111a - Nota. Detalle de CxC.'!F152=\"\",\"\",'800111a - Nota. Detalle de CxC.'!F152)","v":""},{"$f":"IF('800111a - Nota. Detalle de CxC.'!F153=\"\",\"\",'800111a - Nota. Detalle de CxC.'!F153)","v":""},{"$f":"IF('800111a - Nota. Detalle de CxC.'!F154=\"\",\"\",'800111a - Nota. Detalle de CxC.'!F154)","v":""},{"$f":"IF('800111a - Nota. Detalle de CxC.'!F155=\"\",\"\",'800111a - Nota. Detalle de CxC.'!F155)","v":""},{"$f":"IF('800111a - Nota. Detalle de CxC.'!F156=\"\",\"\",'800111a - Nota. Detalle de CxC.'!F156)","v":""},{"$f":"IF('800111a - Nota. Detalle de CxC.'!F157=\"\",\"\",'800111a - Nota. Detalle de CxC.'!F157)","v":""},{"$f":"IF('800111a - Nota. Detalle de CxC.'!F158=\"\",\"\",'800111a - Nota. Detalle de CxC.'!F158)","v":""},{"$f":"IF('800111a - Nota. Detalle de CxC.'!F159=\"\",\"\",'800111a - Nota. Detalle de CxC.'!F159)","v":""},{"$f":"IF('800111a - Nota. Detalle de CxC.'!F160=\"\",\"\",'800111a - Nota. Detalle de CxC.'!F160)","v":""},{"$f":"IF('800111a - Nota. Detalle de CxC.'!F161=\"\",\"\",'800111a - Nota. Detalle de CxC.'!F161)","v":""},{"$f":"IF('800111a - Nota. Detalle de CxC.'!F162=\"\",\"\",'800111a - Nota. Detalle de CxC.'!F162)","v":""},{"$f":"IF('800111a - Nota. Detalle de CxC.'!F163=\"\",\"\",'800111a - Nota. Detalle de CxC.'!F163)","v":""},{"$f":"IF('800111a - Nota. Detalle de CxC.'!F164=\"\",\"\",'800111a - Nota. Detalle de CxC.'!F164)","v":""},{"$f":"IF('800111a - Nota. Detalle de CxC.'!F165=\"\",\"\",'800111a - Nota. Detalle de CxC.'!F165)","v":""},{"$f":"IF('800111a - Nota. Detalle de CxC.'!F166=\"\",\"\",'800111a - Nota. Detalle de CxC.'!F166)","v":""},{"$f":"IF('800111a - Nota. Detalle de CxC.'!F167=\"\",\"\",'800111a - Nota. Detalle de CxC.'!F167)","v":""},{"$f":"IF('800111a - Nota. Detalle de CxC.'!F168=\"\",\"\",'800111a - Nota. Detalle de CxC.'!F168)","v":""},{"$f":"IF('800111a - Nota. Detalle de CxC.'!F169=\"\",\"\",'800111a - Nota. Detalle de CxC.'!F169)","v":""},{"$f":"IF('800111a - Nota. Detalle de CxC.'!F170=\"\",\"\",'800111a - Nota. Detalle de CxC.'!F170)","v":""},{"$f":"IF('800111a - Nota. Detalle de CxC.'!F171=\"\",\"\",'800111a - Nota. Detalle de CxC.'!F171)","v":""},{"$f":"IF('800111a - Nota. Detalle de CxC.'!F172=\"\",\"\",'800111a - Nota. Detalle de CxC.'!F172)","v":""}]
[null,"1;1","co-svsp-core:NumeroIdentificacionDeudorCxC","Número de identificación del deudor",null,null,{"$f":"IF('800111a - Nota. Detalle de CxC.'!G17=\"\",\"\",'800111a - Nota. Detalle de CxC.'!G17)","v":""},{"$f":"IF('800111a - Nota. Detalle de CxC.'!G18=\"\",\"\",'800111a - Nota. Detalle de CxC.'!G18)","v":""},{"$f":"IF('800111a - Nota. Detalle de CxC.'!G19=\"\",\"\",'800111a - Nota. Detalle de CxC.'!G19)","v":""},{"$f":"IF('800111a - Nota. Detalle de CxC.'!G20=\"\",\"\",'800111a - Nota. Detalle de CxC.'!G20)","v":""},{"$f":"IF('800111a - Nota. Detalle de CxC.'!G21=\"\",\"\",'800111a - Nota. Detalle de CxC.'!G21)","v":""},{"$f":"IF('800111a - Nota. Detalle de CxC.'!G22=\"\",\"\",'800111a - Nota. Detalle de CxC.'!G22)","v":""},{"$f":"IF('800111a - Nota. Detalle de CxC.'!G23=\"\",\"\",'800111a - Nota. Detalle de CxC.'!G23)","v":""},{"$f":"IF('800111a - Nota. Detalle de CxC.'!G24=\"\",\"\",'800111a - Nota. Detalle de CxC.'!G24)","v":""},{"$f":"IF('800111a - Nota. Detalle de CxC.'!G25=\"\",\"\",'800111a - Nota. Detalle de CxC.'!G25)","v":""},{"$f":"IF('800111a - Nota. Detalle de CxC.'!G26=\"\",\"\",'800111a - Nota. Detalle de CxC.'!G26)","v":""},{"$f":"IF('800111a - Nota. Detalle de CxC.'!G27=\"\",\"\",'800111a - Nota. Detalle de CxC.'!G27)","v":""},{"$f":"IF('800111a - Nota. Detalle de CxC.'!G28=\"\",\"\",'800111a - Nota. Detalle de CxC.'!G28)","v":""},{"$f":"IF('800111a - Nota. Detalle de CxC.'!G29=\"\",\"\",'800111a - Nota. Detalle de CxC.'!G29)","v":""},{"$f":"IF('800111a - Nota. Detalle de CxC.'!G30=\"\",\"\",'800111a - Nota. Detalle de CxC.'!G30)","v":""},{"$f":"IF('800111a - Nota. Detalle de CxC.'!G31=\"\",\"\",'800111a - Nota. Detalle de CxC.'!G31)","v":""},{"$f":"IF('800111a - Nota. Detalle de CxC.'!G32=\"\",\"\",'800111a - Nota. Detalle de CxC.'!G32)","v":""},{"$f":"IF('800111a - Nota. Detalle de CxC.'!G33=\"\",\"\",'800111a - Nota. Detalle de CxC.'!G33)","v":""},{"$f":"IF('800111a - Nota. Detalle de CxC.'!G34=\"\",\"\",'800111a - Nota. Detalle de CxC.'!G34)","v":""},{"$f":"IF('800111a - Nota. Detalle de CxC.'!G35=\"\",\"\",'800111a - Nota. Detalle de CxC.'!G35)","v":""},{"$f":"IF('800111a - Nota. Detalle de CxC.'!G36=\"\",\"\",'800111a - Nota. Detalle de CxC.'!G36)","v":""},{"$f":"IF('800111a - Nota. Detalle de CxC.'!G37=\"\",\"\",'800111a - Nota. Detalle de CxC.'!G37)","v":""},{"$f":"IF('800111a - Nota. Detalle de CxC.'!G38=\"\",\"\",'800111a - Nota. Detalle de CxC.'!G38)","v":""},{"$f":"IF('800111a - Nota. Detalle de CxC.'!G39=\"\",\"\",'800111a - Nota. Detalle de CxC.'!G39)","v":""},{"$f":"IF('800111a - Nota. Detalle de CxC.'!G40=\"\",\"\",'800111a - Nota. Detalle de CxC.'!G40)","v":""},{"$f":"IF('800111a - Nota. Detalle de CxC.'!G41=\"\",\"\",'800111a - Nota. Detalle de CxC.'!G41)","v":""},{"$f":"IF('800111a - Nota. Detalle de CxC.'!G42=\"\",\"\",'800111a - Nota. Detalle de CxC.'!G42)","v":""},{"$f":"IF('800111a - Nota. Detalle de CxC.'!G43=\"\",\"\",'800111a - Nota. Detalle de CxC.'!G43)","v":""},{"$f":"IF('800111a - Nota. Detalle de CxC.'!G44=\"\",\"\",'800111a - Nota. Detalle de CxC.'!G44)","v":""},{"$f":"IF('800111a - Nota. Detalle de CxC.'!G45=\"\",\"\",'800111a - Nota. Detalle de CxC.'!G45)","v":""},{"$f":"IF('800111a - Nota. Detalle de CxC.'!G46=\"\",\"\",'800111a - Nota. Detalle de CxC.'!G46)","v":""},{"$f":"IF('800111a - Nota. Detalle de CxC.'!G47=\"\",\"\",'800111a - Nota. Detalle de CxC.'!G47)","v":""},{"$f":"IF('800111a - Nota. Detalle de CxC.'!G48=\"\",\"\",'800111a - Nota. Detalle de CxC.'!G48)","v":""},{"$f":"IF('800111a - Nota. Detalle de CxC.'!G49=\"\",\"\",'800111a - Nota. Detalle de CxC.'!G49)","v":""},{"$f":"IF('800111a - Nota. Detalle de CxC.'!G50=\"\",\"\",'800111a - Nota. Detalle de CxC.'!G50)","v":""},{"$f":"IF('800111a - Nota. Detalle de CxC.'!G51=\"\",\"\",'800111a - Nota. Detalle de CxC.'!G51)","v":""},{"$f":"IF('800111a - Nota. Detalle de CxC.'!G52=\"\",\"\",'800111a - Nota. Detalle de CxC.'!G52)","v":""},{"$f":"IF('800111a - Nota. Detalle de CxC.'!G53=\"\",\"\",'800111a - Nota. Detalle de CxC.'!G53)","v":""},{"$f":"IF('800111a - Nota. Detalle de CxC.'!G54=\"\",\"\",'800111a - Nota. Detalle de CxC.'!G54)","v":""},{"$f":"IF('800111a - Nota. Detalle de CxC.'!G55=\"\",\"\",'800111a - Nota. Detalle de CxC.'!G55)","v":""},{"$f":"IF('800111a - Nota. Detalle de CxC.'!G56=\"\",\"\",'800111a - Nota. Detalle de CxC.'!G56)","v":""},{"$f":"IF('800111a - Nota. Detalle de CxC.'!G57=\"\",\"\",'800111a - Nota. Detalle de CxC.'!G57)","v":""},{"$f":"IF('800111a - Nota. Detalle de CxC.'!G58=\"\",\"\",'800111a - Nota. Detalle de CxC.'!G58)","v":""},{"$f":"IF('800111a - Nota. Detalle de CxC.'!G59=\"\",\"\",'800111a - Nota. Detalle de CxC.'!G59)","v":""},{"$f":"IF('800111a - Nota. Detalle de CxC.'!G60=\"\",\"\",'800111a - Nota. Detalle de CxC.'!G60)","v":""},{"$f":"IF('800111a - Nota. Detalle de CxC.'!G61=\"\",\"\",'800111a - Nota. Detalle de CxC.'!G61)","v":""},{"$f":"IF('800111a - Nota. Detalle de CxC.'!G62=\"\",\"\",'800111a - Nota. Detalle de CxC.'!G62)","v":""},{"$f":"IF('800111a - Nota. Detalle de CxC.'!G63=\"\",\"\",'800111a - Nota. Detalle de CxC.'!G63)","v":""},{"$f":"IF('800111a - Nota. Detalle de CxC.'!G64=\"\",\"\",'800111a - Nota. Detalle de CxC.'!G64)","v":""},{"$f":"IF('800111a - Nota. Detalle de CxC.'!G65=\"\",\"\",'800111a - Nota. Detalle de CxC.'!G65)","v":""},{"$f":"IF('800111a - Nota. Detalle de CxC.'!G66=\"\",\"\",'800111a - Nota. Detalle de CxC.'!G66)","v":""},null,null,null,{"$f":"IF('800111a - Nota. Detalle de CxC.'!G70=\"\",\"\",'800111a - Nota. Detalle de CxC.'!G70)","v":""},{"$f":"IF('800111a - Nota. Detalle de CxC.'!G71=\"\",\"\",'800111a - Nota. Detalle de CxC.'!G71)","v":""},{"$f":"IF('800111a - Nota. Detalle de CxC.'!G72=\"\",\"\",'800111a - Nota. Detalle de CxC.'!G72)","v":""},{"$f":"IF('800111a - Nota. Detalle de CxC.'!G73=\"\",\"\",'800111a - Nota. Detalle de CxC.'!G73)","v":""},{"$f":"IF('800111a - Nota. Detalle de CxC.'!G74=\"\",\"\",'800111a - Nota. Detalle de CxC.'!G74)","v":""},{"$f":"IF('800111a - Nota. Detalle de CxC.'!G75=\"\",\"\",'800111a - Nota. Detalle de CxC.'!G75)","v":""},{"$f":"IF('800111a - Nota. Detalle de CxC.'!G76=\"\",\"\",'800111a - Nota. Detalle de CxC.'!G76)","v":""},{"$f":"IF('800111a - Nota. Detalle de CxC.'!G77=\"\",\"\",'800111a - Nota. Detalle de CxC.'!G77)","v":""},{"$f":"IF('800111a - Nota. Detalle de CxC.'!G78=\"\",\"\",'800111a - Nota. Detalle de CxC.'!G78)","v":""},{"$f":"IF('800111a - Nota. Detalle de CxC.'!G79=\"\",\"\",'800111a - Nota. Detalle de CxC.'!G79)","v":""},{"$f":"IF('800111a - Nota. Detalle de CxC.'!G80=\"\",\"\",'800111a - Nota. Detalle de CxC.'!G80)","v":""},{"$f":"IF('800111a - Nota. Detalle de CxC.'!G81=\"\",\"\",'800111a - Nota. Detalle de CxC.'!G81)","v":""},{"$f":"IF('800111a - Nota. Detalle de CxC.'!G82=\"\",\"\",'800111a - Nota. Detalle de CxC.'!G82)","v":""},{"$f":"IF('800111a - Nota. Detalle de CxC.'!G83=\"\",\"\",'800111a - Nota. Detalle de CxC.'!G83)","v":""},{"$f":"IF('800111a - Nota. Detalle de CxC.'!G84=\"\",\"\",'800111a - Nota. Detalle de CxC.'!G84)","v":""},{"$f":"IF('800111a - Nota. Detalle de CxC.'!G85=\"\",\"\",'800111a - Nota. Detalle de CxC.'!G85)","v":""},{"$f":"IF('800111a - Nota. Detalle de CxC.'!G86=\"\",\"\",'800111a - Nota. Detalle de CxC.'!G86)","v":""},{"$f":"IF('800111a - Nota. Detalle de CxC.'!G87=\"\",\"\",'800111a - Nota. Detalle de CxC.'!G87)","v":""},{"$f":"IF('800111a - Nota. Detalle de CxC.'!G88=\"\",\"\",'800111a - Nota. Detalle de CxC.'!G88)","v":""},{"$f":"IF('800111a - Nota. Detalle de CxC.'!G89=\"\",\"\",'800111a - Nota. Detalle de CxC.'!G89)","v":""},{"$f":"IF('800111a - Nota. Detalle de CxC.'!G90=\"\",\"\",'800111a - Nota. Detalle de CxC.'!G90)","v":""},{"$f":"IF('800111a - Nota. Detalle de CxC.'!G91=\"\",\"\",'800111a - Nota. Detalle de CxC.'!G91)","v":""},{"$f":"IF('800111a - Nota. Detalle de CxC.'!G92=\"\",\"\",'800111a - Nota. Detalle de CxC.'!G92)","v":""},{"$f":"IF('800111a - Nota. Detalle de CxC.'!G93=\"\",\"\",'800111a - Nota. Detalle de CxC.'!G93)","v":""},{"$f":"IF('800111a - Nota. Detalle de CxC.'!G94=\"\",\"\",'800111a - Nota. Detalle de CxC.'!G94)","v":""},{"$f":"IF('800111a - Nota. Detalle de CxC.'!G95=\"\",\"\",'800111a - Nota. Detalle de CxC.'!G95)","v":""},{"$f":"IF('800111a - Nota. Detalle de CxC.'!G96=\"\",\"\",'800111a - Nota. Detalle de CxC.'!G96)","v":""},{"$f":"IF('800111a - Nota. Detalle de CxC.'!G97=\"\",\"\",'800111a - Nota. Detalle de CxC.'!G97)","v":""},{"$f":"IF('800111a - Nota. Detalle de CxC.'!G98=\"\",\"\",'800111a - Nota. Detalle de CxC.'!G98)","v":""},{"$f":"IF('800111a - Nota. Detalle de CxC.'!G99=\"\",\"\",'800111a - Nota. Detalle de CxC.'!G99)","v":""},{"$f":"IF('800111a - Nota. Detalle de CxC.'!G100=\"\",\"\",'800111a - Nota. Detalle de CxC.'!G100)","v":""},{"$f":"IF('800111a - Nota. Detalle de CxC.'!G101=\"\",\"\",'800111a - Nota. Detalle de CxC.'!G101)","v":""},{"$f":"IF('800111a - Nota. Detalle de CxC.'!G102=\"\",\"\",'800111a - Nota. Detalle de CxC.'!G102)","v":""},{"$f":"IF('800111a - Nota. Detalle de CxC.'!G103=\"\",\"\",'800111a - Nota. Detalle de CxC.'!G103)","v":""},{"$f":"IF('800111a - Nota. Detalle de CxC.'!G104=\"\",\"\",'800111a - Nota. Detalle de CxC.'!G104)","v":""},{"$f":"IF('800111a - Nota. Detalle de CxC.'!G105=\"\",\"\",'800111a - Nota. Detalle de CxC.'!G105)","v":""},{"$f":"IF('800111a - Nota. Detalle de CxC.'!G106=\"\",\"\",'800111a - Nota. Detalle de CxC.'!G106)","v":""},{"$f":"IF('800111a - Nota. Detalle de CxC.'!G107=\"\",\"\",'800111a - Nota. Detalle de CxC.'!G107)","v":""},{"$f":"IF('800111a - Nota. Detalle de CxC.'!G108=\"\",\"\",'800111a - Nota. Detalle de CxC.'!G108)","v":""},{"$f":"IF('800111a - Nota. Detalle de CxC.'!G109=\"\",\"\",'800111a - Nota. Detalle de CxC.'!G109)","v":""},{"$f":"IF('800111a - Nota. Detalle de CxC.'!G110=\"\",\"\",'800111a - Nota. Detalle de CxC.'!G110)","v":""},{"$f":"IF('800111a - Nota. Detalle de CxC.'!G111=\"\",\"\",'800111a - Nota. Detalle de CxC.'!G111)","v":""},{"$f":"IF('800111a - Nota. Detalle de CxC.'!G112=\"\",\"\",'800111a - Nota. Detalle de CxC.'!G112)","v":""},{"$f":"IF('800111a - Nota. Detalle de CxC.'!G113=\"\",\"\",'800111a - Nota. Detalle de CxC.'!G113)","v":""},{"$f":"IF('800111a - Nota. Detalle de CxC.'!G114=\"\",\"\",'800111a - Nota. Detalle de CxC.'!G114)","v":""},{"$f":"IF('800111a - Nota. Detalle de CxC.'!G115=\"\",\"\",'800111a - Nota. Detalle de CxC.'!G115)","v":""},{"$f":"IF('800111a - Nota. Detalle de CxC.'!G116=\"\",\"\",'800111a - Nota. Detalle de CxC.'!G116)","v":""},{"$f":"IF('800111a - Nota. Detalle de CxC.'!G117=\"\",\"\",'800111a - Nota. Detalle de CxC.'!G117)","v":""},{"$f":"IF('800111a - Nota. Detalle de CxC.'!G118=\"\",\"\",'800111a - Nota. Detalle de CxC.'!G118)","v":""},{"$f":"IF('800111a - Nota. Detalle de CxC.'!G119=\"\",\"\",'800111a - Nota. Detalle de CxC.'!G119)","v":""},null,null,null,{"$f":"IF('800111a - Nota. Detalle de CxC.'!G123=\"\",\"\",'800111a - Nota. Detalle de CxC.'!G123)","v":""},{"$f":"IF('800111a - Nota. Detalle de CxC.'!G124=\"\",\"\",'800111a - Nota. Detalle de CxC.'!G124)","v":""},{"$f":"IF('800111a - Nota. Detalle de CxC.'!G125=\"\",\"\",'800111a - Nota. Detalle de CxC.'!G125)","v":""},{"$f":"IF('800111a - Nota. Detalle de CxC.'!G126=\"\",\"\",'800111a - Nota. Detalle de CxC.'!G126)","v":""},{"$f":"IF('800111a - Nota. Detalle de CxC.'!G127=\"\",\"\",'800111a - Nota. Detalle de CxC.'!G127)","v":""},{"$f":"IF('800111a - Nota. Detalle de CxC.'!G128=\"\",\"\",'800111a - Nota. Detalle de CxC.'!G128)","v":""},{"$f":"IF('800111a - Nota. Detalle de CxC.'!G129=\"\",\"\",'800111a - Nota. Detalle de CxC.'!G129)","v":""},{"$f":"IF('800111a - Nota. Detalle de CxC.'!G130=\"\",\"\",'800111a - Nota. Detalle de CxC.'!G130)","v":""},{"$f":"IF('800111a - Nota. Detalle de CxC.'!G131=\"\",\"\",'800111a - Nota. Detalle de CxC.'!G131)","v":""},{"$f":"IF('800111a - Nota. Detalle de CxC.'!G132=\"\",\"\",'800111a - Nota. Detalle de CxC.'!G132)","v":""},{"$f":"IF('800111a - Nota. Detalle de CxC.'!G133=\"\",\"\",'800111a - Nota. Detalle de CxC.'!G133)","v":""},{"$f":"IF('800111a - Nota. Detalle de CxC.'!G134=\"\",\"\",'800111a - Nota. Detalle de CxC.'!G134)","v":""},{"$f":"IF('800111a - Nota. Detalle de CxC.'!G135=\"\",\"\",'800111a - Nota. Detalle de CxC.'!G135)","v":""},{"$f":"IF('800111a - Nota. Detalle de CxC.'!G136=\"\",\"\",'800111a - Nota. Detalle de CxC.'!G136)","v":""},{"$f":"IF('800111a - Nota. Detalle de CxC.'!G137=\"\",\"\",'800111a - Nota. Detalle de CxC.'!G137)","v":""},{"$f":"IF('800111a - Nota. Detalle de CxC.'!G138=\"\",\"\",'800111a - Nota. Detalle de CxC.'!G138)","v":""},{"$f":"IF('800111a - Nota. Detalle de CxC.'!G139=\"\",\"\",'800111a - Nota. Detalle de CxC.'!G139)","v":""},{"$f":"IF('800111a - Nota. Detalle de CxC.'!G140=\"\",\"\",'800111a - Nota. Detalle de CxC.'!G140)","v":""},{"$f":"IF('800111a - Nota. Detalle de CxC.'!G141=\"\",\"\",'800111a - Nota. Detalle de CxC.'!G141)","v":""},{"$f":"IF('800111a - Nota. Detalle de CxC.'!G142=\"\",\"\",'800111a - Nota. Detalle de CxC.'!G142)","v":""},{"$f":"IF('800111a - Nota. Detalle de CxC.'!G143=\"\",\"\",'800111a - Nota. Detalle de CxC.'!G143)","v":""},{"$f":"IF('800111a - Nota. Detalle de CxC.'!G144=\"\",\"\",'800111a - Nota. Detalle de CxC.'!G144)","v":""},{"$f":"IF('800111a - Nota. Detalle de CxC.'!G145=\"\",\"\",'800111a - Nota. Detalle de CxC.'!G145)","v":""},{"$f":"IF('800111a - Nota. Detalle de CxC.'!G146=\"\",\"\",'800111a - Nota. Detalle de CxC.'!G146)","v":""},{"$f":"IF('800111a - Nota. Detalle de CxC.'!G147=\"\",\"\",'800111a - Nota. Detalle de CxC.'!G147)","v":""},{"$f":"IF('800111a - Nota. Detalle de CxC.'!G148=\"\",\"\",'800111a - Nota. Detalle de CxC.'!G148)","v":""},{"$f":"IF('800111a - Nota. Detalle de CxC.'!G149=\"\",\"\",'800111a - Nota. Detalle de CxC.'!G149)","v":""},{"$f":"IF('800111a - Nota. Detalle de CxC.'!G150=\"\",\"\",'800111a - Nota. Detalle de CxC.'!G150)","v":""},{"$f":"IF('800111a - Nota. Detalle de CxC.'!G151=\"\",\"\",'800111a - Nota. Detalle de CxC.'!G151)","v":""},{"$f":"IF('800111a - Nota. Detalle de CxC.'!G152=\"\",\"\",'800111a - Nota. Detalle de CxC.'!G152)","v":""},{"$f":"IF('800111a - Nota. Detalle de CxC.'!G153=\"\",\"\",'800111a - Nota. Detalle de CxC.'!G153)","v":""},{"$f":"IF('800111a - Nota. Detalle de CxC.'!G154=\"\",\"\",'800111a - Nota. Detalle de CxC.'!G154)","v":""},{"$f":"IF('800111a - Nota. Detalle de CxC.'!G155=\"\",\"\",'800111a - Nota. Detalle de CxC.'!G155)","v":""},{"$f":"IF('800111a - Nota. Detalle de CxC.'!G156=\"\",\"\",'800111a - Nota. Detalle de CxC.'!G156)","v":""},{"$f":"IF('800111a - Nota. Detalle de CxC.'!G157=\"\",\"\",'800111a - Nota. Detalle de CxC.'!G157)","v":""},{"$f":"IF('800111a - Nota. Detalle de CxC.'!G158=\"\",\"\",'800111a - Nota. Detalle de CxC.'!G158)","v":""},{"$f":"IF('800111a - Nota. Detalle de CxC.'!G159=\"\",\"\",'800111a - Nota. Detalle de CxC.'!G159)","v":""},{"$f":"IF('800111a - Nota. Detalle de CxC.'!G160=\"\",\"\",'800111a - Nota. Detalle de CxC.'!G160)","v":""},{"$f":"IF('800111a - Nota. Detalle de CxC.'!G161=\"\",\"\",'800111a - Nota. Detalle de CxC.'!G161)","v":""},{"$f":"IF('800111a - Nota. Detalle de CxC.'!G162=\"\",\"\",'800111a - Nota. Detalle de CxC.'!G162)","v":""},{"$f":"IF('800111a - Nota. Detalle de CxC.'!G163=\"\",\"\",'800111a - Nota. Detalle de CxC.'!G163)","v":""},{"$f":"IF('800111a - Nota. Detalle de CxC.'!G164=\"\",\"\",'800111a - Nota. Detalle de CxC.'!G164)","v":""},{"$f":"IF('800111a - Nota. Detalle de CxC.'!G165=\"\",\"\",'800111a - Nota. Detalle de CxC.'!G165)","v":""},{"$f":"IF('800111a - Nota. Detalle de CxC.'!G166=\"\",\"\",'800111a - Nota. Detalle de CxC.'!G166)","v":""},{"$f":"IF('800111a - Nota. Detalle de CxC.'!G167=\"\",\"\",'800111a - Nota. Detalle de CxC.'!G167)","v":""},{"$f":"IF('800111a - Nota. Detalle de CxC.'!G168=\"\",\"\",'800111a - Nota. Detalle de CxC.'!G168)","v":""},{"$f":"IF('800111a - Nota. Detalle de CxC.'!G169=\"\",\"\",'800111a - Nota. Detalle de CxC.'!G169)","v":""},{"$f":"IF('800111a - Nota. Detalle de CxC.'!G170=\"\",\"\",'800111a - Nota. Detalle de CxC.'!G170)","v":""},{"$f":"IF('800111a - Nota. Detalle de CxC.'!G171=\"\",\"\",'800111a - Nota. Detalle de CxC.'!G171)","v":""},{"$f":"IF('800111a - Nota. Detalle de CxC.'!G172=\"\",\"\",'800111a - Nota. Detalle de CxC.'!G172)","v":""}]
[null,"1;1","co-svsp-core:PrimerApellidoDeudorCxC","Primer apellido deudor",null,null,{"$f":"IF('800111a - Nota. Detalle de CxC.'!H17=\"\",\"\",'800111a - Nota. Detalle de CxC.'!H17)","v":""},{"$f":"IF('800111a - Nota. Detalle de CxC.'!H18=\"\",\"\",'800111a - Nota. Detalle de CxC.'!H18)","v":""},{"$f":"IF('800111a - Nota. Detalle de CxC.'!H19=\"\",\"\",'800111a - Nota. Detalle de CxC.'!H19)","v":""},{"$f":"IF('800111a - Nota. Detalle de CxC.'!H20=\"\",\"\",'800111a - Nota. Detalle de CxC.'!H20)","v":""},{"$f":"IF('800111a - Nota. Detalle de CxC.'!H21=\"\",\"\",'800111a - Nota. Detalle de CxC.'!H21)","v":""},{"$f":"IF('800111a - Nota. Detalle de CxC.'!H22=\"\",\"\",'800111a - Nota. Detalle de CxC.'!H22)","v":""},{"$f":"IF('800111a - Nota. Detalle de CxC.'!H23=\"\",\"\",'800111a - Nota. Detalle de CxC.'!H23)","v":""},{"$f":"IF('800111a - Nota. Detalle de CxC.'!H24=\"\",\"\",'800111a - Nota. Detalle de CxC.'!H24)","v":""},{"$f":"IF('800111a - Nota. Detalle de CxC.'!H25=\"\",\"\",'800111a - Nota. Detalle de CxC.'!H25)","v":""},{"$f":"IF('800111a - Nota. Detalle de CxC.'!H26=\"\",\"\",'800111a - Nota. Detalle de CxC.'!H26)","v":""},{"$f":"IF('800111a - Nota. Detalle de CxC.'!H27=\"\",\"\",'800111a - Nota. Detalle de CxC.'!H27)","v":""},{"$f":"IF('800111a - Nota. Detalle de CxC.'!H28=\"\",\"\",'800111a - Nota. Detalle de CxC.'!H28)","v":""},{"$f":"IF('800111a - Nota. Detalle de CxC.'!H29=\"\",\"\",'800111a - Nota. Detalle de CxC.'!H29)","v":""},{"$f":"IF('800111a - Nota. Detalle de CxC.'!H30=\"\",\"\",'800111a - Nota. Detalle de CxC.'!H30)","v":""},{"$f":"IF('800111a - Nota. Detalle de CxC.'!H31=\"\",\"\",'800111a - Nota. Detalle de CxC.'!H31)","v":""},{"$f":"IF('800111a - Nota. Detalle de CxC.'!H32=\"\",\"\",'800111a - Nota. Detalle de CxC.'!H32)","v":""},{"$f":"IF('800111a - Nota. Detalle de CxC.'!H33=\"\",\"\",'800111a - Nota. Detalle de CxC.'!H33)","v":""},{"$f":"IF('800111a - Nota. Detalle de CxC.'!H34=\"\",\"\",'800111a - Nota. Detalle de CxC.'!H34)","v":""},{"$f":"IF('800111a - Nota. Detalle de CxC.'!H35=\"\",\"\",'800111a - Nota. Detalle de CxC.'!H35)","v":""},{"$f":"IF('800111a - Nota. Detalle de CxC.'!H36=\"\",\"\",'800111a - Nota. Detalle de CxC.'!H36)","v":""},{"$f":"IF('800111a - Nota. Detalle de CxC.'!H37=\"\",\"\",'800111a - Nota. Detalle de CxC.'!H37)","v":""},{"$f":"IF('800111a - Nota. Detalle de CxC.'!H38=\"\",\"\",'800111a - Nota. Detalle de CxC.'!H38)","v":""},{"$f":"IF('800111a - Nota. Detalle de CxC.'!H39=\"\",\"\",'800111a - Nota. Detalle de CxC.'!H39)","v":""},{"$f":"IF('800111a - Nota. Detalle de CxC.'!H40=\"\",\"\",'800111a - Nota. Detalle de CxC.'!H40)","v":""},{"$f":"IF('800111a - Nota. Detalle de CxC.'!H41=\"\",\"\",'800111a - Nota. Detalle de CxC.'!H41)","v":""},{"$f":"IF('800111a - Nota. Detalle de CxC.'!H42=\"\",\"\",'800111a - Nota. Detalle de CxC.'!H42)","v":""},{"$f":"IF('800111a - Nota. Detalle de CxC.'!H43=\"\",\"\",'800111a - Nota. Detalle de CxC.'!H43)","v":""},{"$f":"IF('800111a - Nota. Detalle de CxC.'!H44=\"\",\"\",'800111a - Nota. Detalle de CxC.'!H44)","v":""},{"$f":"IF('800111a - Nota. Detalle de CxC.'!H45=\"\",\"\",'800111a - Nota. Detalle de CxC.'!H45)","v":""},{"$f":"IF('800111a - Nota. Detalle de CxC.'!H46=\"\",\"\",'800111a - Nota. Detalle de CxC.'!H46)","v":""},{"$f":"IF('800111a - Nota. Detalle de CxC.'!H47=\"\",\"\",'800111a - Nota. Detalle de CxC.'!H47)","v":""},{"$f":"IF('800111a - Nota. Detalle de CxC.'!H48=\"\",\"\",'800111a - Nota. Detalle de CxC.'!H48)","v":""},{"$f":"IF('800111a - Nota. Detalle de CxC.'!H49=\"\",\"\",'800111a - Nota. Detalle de CxC.'!H49)","v":""},{"$f":"IF('800111a - Nota. Detalle de CxC.'!H50=\"\",\"\",'800111a - Nota. Detalle de CxC.'!H50)","v":""},{"$f":"IF('800111a - Nota. Detalle de CxC.'!H51=\"\",\"\",'800111a - Nota. Detalle de CxC.'!H51)","v":""},{"$f":"IF('800111a - Nota. Detalle de CxC.'!H52=\"\",\"\",'800111a - Nota. Detalle de CxC.'!H52)","v":""},{"$f":"IF('800111a - Nota. Detalle de CxC.'!H53=\"\",\"\",'800111a - Nota. Detalle de CxC.'!H53)","v":""},{"$f":"IF('800111a - Nota. Detalle de CxC.'!H54=\"\",\"\",'800111a - Nota. Detalle de CxC.'!H54)","v":""},{"$f":"IF('800111a - Nota. Detalle de CxC.'!H55=\"\",\"\",'800111a - Nota. Detalle de CxC.'!H55)","v":""},{"$f":"IF('800111a - Nota. Detalle de CxC.'!H56=\"\",\"\",'800111a - Nota. Detalle de CxC.'!H56)","v":""},{"$f":"IF('800111a - Nota. Detalle de CxC.'!H57=\"\",\"\",'800111a - Nota. Detalle de CxC.'!H57)","v":""},{"$f":"IF('800111a - Nota. Detalle de CxC.'!H58=\"\",\"\",'800111a - Nota. Detalle de CxC.'!H58)","v":""},{"$f":"IF('800111a - Nota. Detalle de CxC.'!H59=\"\",\"\",'800111a - Nota. Detalle de CxC.'!H59)","v":""},{"$f":"IF('800111a - Nota. Detalle de CxC.'!H60=\"\",\"\",'800111a - Nota. Detalle de CxC.'!H60)","v":""},{"$f":"IF('800111a - Nota. Detalle de CxC.'!H61=\"\",\"\",'800111a - Nota. Detalle de CxC.'!H61)","v":""},{"$f":"IF('800111a - Nota. Detalle de CxC.'!H62=\"\",\"\",'800111a - Nota. Detalle de CxC.'!H62)","v":""},{"$f":"IF('800111a - Nota. Detalle de CxC.'!H63=\"\",\"\",'800111a - Nota. Detalle de CxC.'!H63)","v":""},{"$f":"IF('800111a - Nota. Detalle de CxC.'!H64=\"\",\"\",'800111a - Nota. Detalle de CxC.'!H64)","v":""},{"$f":"IF('800111a - Nota. Detalle de CxC.'!H65=\"\",\"\",'800111a - Nota. Detalle de CxC.'!H65)","v":""},{"$f":"IF('800111a - Nota. Detalle de CxC.'!H66=\"\",\"\",'800111a - Nota. Detalle de CxC.'!H66)","v":""},null,null,null,{"$f":"IF('800111a - Nota. Detalle de CxC.'!H70=\"\",\"\",'800111a - Nota. Detalle de CxC.'!H70)","v":""},{"$f":"IF('800111a - Nota. Detalle de CxC.'!H71=\"\",\"\",'800111a - Nota. Detalle de CxC.'!H71)","v":""},{"$f":"IF('800111a - Nota. Detalle de CxC.'!H72=\"\",\"\",'800111a - Nota. Detalle de CxC.'!H72)","v":""},{"$f":"IF('800111a - Nota. Detalle de CxC.'!H73=\"\",\"\",'800111a - Nota. Detalle de CxC.'!H73)","v":""},{"$f":"IF('800111a - Nota. Detalle de CxC.'!H74=\"\",\"\",'800111a - Nota. Detalle de CxC.'!H74)","v":""},{"$f":"IF('800111a - Nota. Detalle de CxC.'!H75=\"\",\"\",'800111a - Nota. Detalle de CxC.'!H75)","v":""},{"$f":"IF('800111a - Nota. Detalle de CxC.'!H76=\"\",\"\",'800111a - Nota. Detalle de CxC.'!H76)","v":""},{"$f":"IF('800111a - Nota. Detalle de CxC.'!H77=\"\",\"\",'800111a - Nota. Detalle de CxC.'!H77)","v":""},{"$f":"IF('800111a - Nota. Detalle de CxC.'!H78=\"\",\"\",'800111a - Nota. Detalle de CxC.'!H78)","v":""},{"$f":"IF('800111a - Nota. Detalle de CxC.'!H79=\"\",\"\",'800111a - Nota. Detalle de CxC.'!H79)","v":""},{"$f":"IF('800111a - Nota. Detalle de CxC.'!H80=\"\",\"\",'800111a - Nota. Detalle de CxC.'!H80)","v":""},{"$f":"IF('800111a - Nota. Detalle de CxC.'!H81=\"\",\"\",'800111a - Nota. Detalle de CxC.'!H81)","v":""},{"$f":"IF('800111a - Nota. Detalle de CxC.'!H82=\"\",\"\",'800111a - Nota. Detalle de CxC.'!H82)","v":""},{"$f":"IF('800111a - Nota. Detalle de CxC.'!H83=\"\",\"\",'800111a - Nota. Detalle de CxC.'!H83)","v":""},{"$f":"IF('800111a - Nota. Detalle de CxC.'!H84=\"\",\"\",'800111a - Nota. Detalle de CxC.'!H84)","v":""},{"$f":"IF('800111a - Nota. Detalle de CxC.'!H85=\"\",\"\",'800111a - Nota. Detalle de CxC.'!H85)","v":""},{"$f":"IF('800111a - Nota. Detalle de CxC.'!H86=\"\",\"\",'800111a - Nota. Detalle de CxC.'!H86)","v":""},{"$f":"IF('800111a - Nota. Detalle de CxC.'!H87=\"\",\"\",'800111a - Nota. Detalle de CxC.'!H87)","v":""},{"$f":"IF('800111a - Nota. Detalle de CxC.'!H88=\"\",\"\",'800111a - Nota. Detalle de CxC.'!H88)","v":""},{"$f":"IF('800111a - Nota. Detalle de CxC.'!H89=\"\",\"\",'800111a - Nota. Detalle de CxC.'!H89)","v":""},{"$f":"IF('800111a - Nota. Detalle de CxC.'!H90=\"\",\"\",'800111a - Nota. Detalle de CxC.'!H90)","v":""},{"$f":"IF('800111a - Nota. Detalle de CxC.'!H91=\"\",\"\",'800111a - Nota. Detalle de CxC.'!H91)","v":""},{"$f":"IF('800111a - Nota. Detalle de CxC.'!H92=\"\",\"\",'800111a - Nota. Detalle de CxC.'!H92)","v":""},{"$f":"IF('800111a - Nota. Detalle de CxC.'!H93=\"\",\"\",'800111a - Nota. Detalle de CxC.'!H93)","v":""},{"$f":"IF('800111a - Nota. Detalle de CxC.'!H94=\"\",\"\",'800111a - Nota. Detalle de CxC.'!H94)","v":""},{"$f":"IF('800111a - Nota. Detalle de CxC.'!H95=\"\",\"\",'800111a - Nota. Detalle de CxC.'!H95)","v":""},{"$f":"IF('800111a - Nota. Detalle de CxC.'!H96=\"\",\"\",'800111a - Nota. Detalle de CxC.'!H96)","v":""},{"$f":"IF('800111a - Nota. Detalle de CxC.'!H97=\"\",\"\",'800111a - Nota. Detalle de CxC.'!H97)","v":""},{"$f":"IF('800111a - Nota. Detalle de CxC.'!H98=\"\",\"\",'800111a - Nota. Detalle de CxC.'!H98)","v":""},{"$f":"IF('800111a - Nota. Detalle de CxC.'!H99=\"\",\"\",'800111a - Nota. Detalle de CxC.'!H99)","v":""},{"$f":"IF('800111a - Nota. Detalle de CxC.'!H100=\"\",\"\",'800111a - Nota. Detalle de CxC.'!H100)","v":""},{"$f":"IF('800111a - Nota. Detalle de CxC.'!H101=\"\",\"\",'800111a - Nota. Detalle de CxC.'!H101)","v":""},{"$f":"IF('800111a - Nota. Detalle de CxC.'!H102=\"\",\"\",'800111a - Nota. Detalle de CxC.'!H102)","v":""},{"$f":"IF('800111a - Nota. Detalle de CxC.'!H103=\"\",\"\",'800111a - Nota. Detalle de CxC.'!H103)","v":""},{"$f":"IF('800111a - Nota. Detalle de CxC.'!H104=\"\",\"\",'800111a - Nota. Detalle de CxC.'!H104)","v":""},{"$f":"IF('800111a - Nota. Detalle de CxC.'!H105=\"\",\"\",'800111a - Nota. Detalle de CxC.'!H105)","v":""},{"$f":"IF('800111a - Nota. Detalle de CxC.'!H106=\"\",\"\",'800111a - Nota. Detalle de CxC.'!H106)","v":""},{"$f":"IF('800111a - Nota. Detalle de CxC.'!H107=\"\",\"\",'800111a - Nota. Detalle de CxC.'!H107)","v":""},{"$f":"IF('800111a - Nota. Detalle de CxC.'!H108=\"\",\"\",'800111a - Nota. Detalle de CxC.'!H108)","v":""},{"$f":"IF('800111a - Nota. Detalle de CxC.'!H109=\"\",\"\",'800111a - Nota. Detalle de CxC.'!H109)","v":""},{"$f":"IF('800111a - Nota. Detalle de CxC.'!H110=\"\",\"\",'800111a - Nota. Detalle de CxC.'!H110)","v":""},{"$f":"IF('800111a - Nota. Detalle de CxC.'!H111=\"\",\"\",'800111a - Nota. Detalle de CxC.'!H111)","v":""},{"$f":"IF('800111a - Nota. Detalle de CxC.'!H112=\"\",\"\",'800111a - Nota. Detalle de CxC.'!H112)","v":""},{"$f":"IF('800111a - Nota. Detalle de CxC.'!H113=\"\",\"\",'800111a - Nota. Detalle de CxC.'!H113)","v":""},{"$f":"IF('800111a - Nota. Detalle de CxC.'!H114=\"\",\"\",'800111a - Nota. Detalle de CxC.'!H114)","v":""},{"$f":"IF('800111a - Nota. Detalle de CxC.'!H115=\"\",\"\",'800111a - Nota. Detalle de CxC.'!H115)","v":""},{"$f":"IF('800111a - Nota. Detalle de CxC.'!H116=\"\",\"\",'800111a - Nota. Detalle de CxC.'!H116)","v":""},{"$f":"IF('800111a - Nota. Detalle de CxC.'!H117=\"\",\"\",'800111a - Nota. Detalle de CxC.'!H117)","v":""},{"$f":"IF('800111a - Nota. Detalle de CxC.'!H118=\"\",\"\",'800111a - Nota. Detalle de CxC.'!H118)","v":""},{"$f":"IF('800111a - Nota. Detalle de CxC.'!H119=\"\",\"\",'800111a - Nota. Detalle de CxC.'!H119)","v":""},null,null,null,{"$f":"IF('800111a - Nota. Detalle de CxC.'!H123=\"\",\"\",'800111a - Nota. Detalle de CxC.'!H123)","v":""},{"$f":"IF('800111a - Nota. Detalle de CxC.'!H124=\"\",\"\",'800111a - Nota. Detalle de CxC.'!H124)","v":""},{"$f":"IF('800111a - Nota. Detalle de CxC.'!H125=\"\",\"\",'800111a - Nota. Detalle de CxC.'!H125)","v":""},{"$f":"IF('800111a - Nota. Detalle de CxC.'!H126=\"\",\"\",'800111a - Nota. Detalle de CxC.'!H126)","v":""},{"$f":"IF('800111a - Nota. Detalle de CxC.'!H127=\"\",\"\",'800111a - Nota. Detalle de CxC.'!H127)","v":""},{"$f":"IF('800111a - Nota. Detalle de CxC.'!H128=\"\",\"\",'800111a - Nota. Detalle de CxC.'!H128)","v":""},{"$f":"IF('800111a - Nota. Detalle de CxC.'!H129=\"\",\"\",'800111a - Nota. Detalle de CxC.'!H129)","v":""},{"$f":"IF('800111a - Nota. Detalle de CxC.'!H130=\"\",\"\",'800111a - Nota. Detalle de CxC.'!H130)","v":""},{"$f":"IF('800111a - Nota. Detalle de CxC.'!H131=\"\",\"\",'800111a - Nota. Detalle de CxC.'!H131)","v":""},{"$f":"IF('800111a - Nota. Detalle de CxC.'!H132=\"\",\"\",'800111a - Nota. Detalle de CxC.'!H132)","v":""},{"$f":"IF('800111a - Nota. Detalle de CxC.'!H133=\"\",\"\",'800111a - Nota. Detalle de CxC.'!H133)","v":""},{"$f":"IF('800111a - Nota. Detalle de CxC.'!H134=\"\",\"\",'800111a - Nota. Detalle de CxC.'!H134)","v":""},{"$f":"IF('800111a - Nota. Detalle de CxC.'!H135=\"\",\"\",'800111a - Nota. Detalle de CxC.'!H135)","v":""},{"$f":"IF('800111a - Nota. Detalle de CxC.'!H136=\"\",\"\",'800111a - Nota. Detalle de CxC.'!H136)","v":""},{"$f":"IF('800111a - Nota. Detalle de CxC.'!H137=\"\",\"\",'800111a - Nota. Detalle de CxC.'!H137)","v":""},{"$f":"IF('800111a - Nota. Detalle de CxC.'!H138=\"\",\"\",'800111a - Nota. Detalle de CxC.'!H138)","v":""},{"$f":"IF('800111a - Nota. Detalle de CxC.'!H139=\"\",\"\",'800111a - Nota. Detalle de CxC.'!H139)","v":""},{"$f":"IF('800111a - Nota. Detalle de CxC.'!H140=\"\",\"\",'800111a - Nota. Detalle de CxC.'!H140)","v":""},{"$f":"IF('800111a - Nota. Detalle de CxC.'!H141=\"\",\"\",'800111a - Nota. Detalle de CxC.'!H141)","v":""},{"$f":"IF('800111a - Nota. Detalle de CxC.'!H142=\"\",\"\",'800111a - Nota. Detalle de CxC.'!H142)","v":""},{"$f":"IF('800111a - Nota. Detalle de CxC.'!H143=\"\",\"\",'800111a - Nota. Detalle de CxC.'!H143)","v":""},{"$f":"IF('800111a - Nota. Detalle de CxC.'!H144=\"\",\"\",'800111a - Nota. Detalle de CxC.'!H144)","v":""},{"$f":"IF('800111a - Nota. Detalle de CxC.'!H145=\"\",\"\",'800111a - Nota. Detalle de CxC.'!H145)","v":""},{"$f":"IF('800111a - Nota. Detalle de CxC.'!H146=\"\",\"\",'800111a - Nota. Detalle de CxC.'!H146)","v":""},{"$f":"IF('800111a - Nota. Detalle de CxC.'!H147=\"\",\"\",'800111a - Nota. Detalle de CxC.'!H147)","v":""},{"$f":"IF('800111a - Nota. Detalle de CxC.'!H148=\"\",\"\",'800111a - Nota. Detalle de CxC.'!H148)","v":""},{"$f":"IF('800111a - Nota. Detalle de CxC.'!H149=\"\",\"\",'800111a - Nota. Detalle de CxC.'!H149)","v":""},{"$f":"IF('800111a - Nota. Detalle de CxC.'!H150=\"\",\"\",'800111a - Nota. Detalle de CxC.'!H150)","v":""},{"$f":"IF('800111a - Nota. Detalle de CxC.'!H151=\"\",\"\",'800111a - Nota. Detalle de CxC.'!H151)","v":""},{"$f":"IF('800111a - Nota. Detalle de CxC.'!H152=\"\",\"\",'800111a - Nota. Detalle de CxC.'!H152)","v":""},{"$f":"IF('800111a - Nota. Detalle de CxC.'!H153=\"\",\"\",'800111a - Nota. Detalle de CxC.'!H153)","v":""},{"$f":"IF('800111a - Nota. Detalle de CxC.'!H154=\"\",\"\",'800111a - Nota. Detalle de CxC.'!H154)","v":""},{"$f":"IF('800111a - Nota. Detalle de CxC.'!H155=\"\",\"\",'800111a - Nota. Detalle de CxC.'!H155)","v":""},{"$f":"IF('800111a - Nota. Detalle de CxC.'!H156=\"\",\"\",'800111a - Nota. Detalle de CxC.'!H156)","v":""},{"$f":"IF('800111a - Nota. Detalle de CxC.'!H157=\"\",\"\",'800111a - Nota. Detalle de CxC.'!H157)","v":""},{"$f":"IF('800111a - Nota. Detalle de CxC.'!H158=\"\",\"\",'800111a - Nota. Detalle de CxC.'!H158)","v":""},{"$f":"IF('800111a - Nota. Detalle de CxC.'!H159=\"\",\"\",'800111a - Nota. Detalle de CxC.'!H159)","v":""},{"$f":"IF('800111a - Nota. Detalle de CxC.'!H160=\"\",\"\",'800111a - Nota. Detalle de CxC.'!H160)","v":""},{"$f":"IF('800111a - Nota. Detalle de CxC.'!H161=\"\",\"\",'800111a - Nota. Detalle de CxC.'!H161)","v":""},{"$f":"IF('800111a - Nota. Detalle de CxC.'!H162=\"\",\"\",'800111a - Nota. Detalle de CxC.'!H162)","v":""},{"$f":"IF('800111a - Nota. Detalle de CxC.'!H163=\"\",\"\",'800111a - Nota. Detalle de CxC.'!H163)","v":""},{"$f":"IF('800111a - Nota. Detalle de CxC.'!H164=\"\",\"\",'800111a - Nota. Detalle de CxC.'!H164)","v":""},{"$f":"IF('800111a - Nota. Detalle de CxC.'!H165=\"\",\"\",'800111a - Nota. Detalle de CxC.'!H165)","v":""},{"$f":"IF('800111a - Nota. Detalle de CxC.'!H166=\"\",\"\",'800111a - Nota. Detalle de CxC.'!H166)","v":""},{"$f":"IF('800111a - Nota. Detalle de CxC.'!H167=\"\",\"\",'800111a - Nota. Detalle de CxC.'!H167)","v":""},{"$f":"IF('800111a - Nota. Detalle de CxC.'!H168=\"\",\"\",'800111a - Nota. Detalle de CxC.'!H168)","v":""},{"$f":"IF('800111a - Nota. Detalle de CxC.'!H169=\"\",\"\",'800111a - Nota. Detalle de CxC.'!H169)","v":""},{"$f":"IF('800111a - Nota. Detalle de CxC.'!H170=\"\",\"\",'800111a - Nota. Detalle de CxC.'!H170)","v":""},{"$f":"IF('800111a - Nota. Detalle de CxC.'!H171=\"\",\"\",'800111a - Nota. Detalle de CxC.'!H171)","v":""},{"$f":"IF('800111a - Nota. Detalle de CxC.'!H172=\"\",\"\",'800111a - Nota. Detalle de CxC.'!H172)","v":""}]
[null,"1;1","co-svsp-core:SegundoApellidoDeudorCxC","Segundo apellido deudor",null,null,{"$f":"IF('800111a - Nota. Detalle de CxC.'!I17=\"\",\"\",'800111a - Nota. Detalle de CxC.'!I17)","v":""},{"$f":"IF('800111a - Nota. Detalle de CxC.'!I18=\"\",\"\",'800111a - Nota. Detalle de CxC.'!I18)","v":""},{"$f":"IF('800111a - Nota. Detalle de CxC.'!I19=\"\",\"\",'800111a - Nota. Detalle de CxC.'!I19)","v":""},{"$f":"IF('800111a - Nota. Detalle de CxC.'!I20=\"\",\"\",'800111a - Nota. Detalle de CxC.'!I20)","v":""},{"$f":"IF('800111a - Nota. Detalle de CxC.'!I21=\"\",\"\",'800111a - Nota. Detalle de CxC.'!I21)","v":""},{"$f":"IF('800111a - Nota. Detalle de CxC.'!I22=\"\",\"\",'800111a - Nota. Detalle de CxC.'!I22)","v":""},{"$f":"IF('800111a - Nota. Detalle de CxC.'!I23=\"\",\"\",'800111a - Nota. Detalle de CxC.'!I23)","v":""},{"$f":"IF('800111a - Nota. Detalle de CxC.'!I24=\"\",\"\",'800111a - Nota. Detalle de CxC.'!I24)","v":""},{"$f":"IF('800111a - Nota. Detalle de CxC.'!I25=\"\",\"\",'800111a - Nota. Detalle de CxC.'!I25)","v":""},{"$f":"IF('800111a - Nota. Detalle de CxC.'!I26=\"\",\"\",'800111a - Nota. Detalle de CxC.'!I26)","v":""},{"$f":"IF('800111a - Nota. Detalle de CxC.'!I27=\"\",\"\",'800111a - Nota. Detalle de CxC.'!I27)","v":""},{"$f":"IF('800111a - Nota. Detalle de CxC.'!I28=\"\",\"\",'800111a - Nota. Detalle de CxC.'!I28)","v":""},{"$f":"IF('800111a - Nota. Detalle de CxC.'!I29=\"\",\"\",'800111a - Nota. Detalle de CxC.'!I29)","v":""},{"$f":"IF('800111a - Nota. Detalle de CxC.'!I30=\"\",\"\",'800111a - Nota. Detalle de CxC.'!I30)","v":""},{"$f":"IF('800111a - Nota. Detalle de CxC.'!I31=\"\",\"\",'800111a - Nota. Detalle de CxC.'!I31)","v":""},{"$f":"IF('800111a - Nota. Detalle de CxC.'!I32=\"\",\"\",'800111a - Nota. Detalle de CxC.'!I32)","v":""},{"$f":"IF('800111a - Nota. Detalle de CxC.'!I33=\"\",\"\",'800111a - Nota. Detalle de CxC.'!I33)","v":""},{"$f":"IF('800111a - Nota. Detalle de CxC.'!I34=\"\",\"\",'800111a - Nota. Detalle de CxC.'!I34)","v":""},{"$f":"IF('800111a - Nota. Detalle de CxC.'!I35=\"\",\"\",'800111a - Nota. Detalle de CxC.'!I35)","v":""},{"$f":"IF('800111a - Nota. Detalle de CxC.'!I36=\"\",\"\",'800111a - Nota. Detalle de CxC.'!I36)","v":""},{"$f":"IF('800111a - Nota. Detalle de CxC.'!I37=\"\",\"\",'800111a - Nota. Detalle de CxC.'!I37)","v":""},{"$f":"IF('800111a - Nota. Detalle de CxC.'!I38=\"\",\"\",'800111a - Nota. Detalle de CxC.'!I38)","v":""},{"$f":"IF('800111a - Nota. Detalle de CxC.'!I39=\"\",\"\",'800111a - Nota. Detalle de CxC.'!I39)","v":""},{"$f":"IF('800111a - Nota. Detalle de CxC.'!I40=\"\",\"\",'800111a - Nota. Detalle de CxC.'!I40)","v":""},{"$f":"IF('800111a - Nota. Detalle de CxC.'!I41=\"\",\"\",'800111a - Nota. Detalle de CxC.'!I41)","v":""},{"$f":"IF('800111a - Nota. Detalle de CxC.'!I42=\"\",\"\",'800111a - Nota. Detalle de CxC.'!I42)","v":""},{"$f":"IF('800111a - Nota. Detalle de CxC.'!I43=\"\",\"\",'800111a - Nota. Detalle de CxC.'!I43)","v":""},{"$f":"IF('800111a - Nota. Detalle de CxC.'!I44=\"\",\"\",'800111a - Nota. Detalle de CxC.'!I44)","v":""},{"$f":"IF('800111a - Nota. Detalle de CxC.'!I45=\"\",\"\",'800111a - Nota. Detalle de CxC.'!I45)","v":""},{"$f":"IF('800111a - Nota. Detalle de CxC.'!I46=\"\",\"\",'800111a - Nota. Detalle de CxC.'!I46)","v":""},{"$f":"IF('800111a - Nota. Detalle de CxC.'!I47=\"\",\"\",'800111a - Nota. Detalle de CxC.'!I47)","v":""},{"$f":"IF('800111a - Nota. Detalle de CxC.'!I48=\"\",\"\",'800111a - Nota. Detalle de CxC.'!I48)","v":""},{"$f":"IF('800111a - Nota. Detalle de CxC.'!I49=\"\",\"\",'800111a - Nota. Detalle de CxC.'!I49)","v":""},{"$f":"IF('800111a - Nota. Detalle de CxC.'!I50=\"\",\"\",'800111a - Nota. Detalle de CxC.'!I50)","v":""},{"$f":"IF('800111a - Nota. Detalle de CxC.'!I51=\"\",\"\",'800111a - Nota. Detalle de CxC.'!I51)","v":""},{"$f":"IF('800111a - Nota. Detalle de CxC.'!I52=\"\",\"\",'800111a - Nota. Detalle de CxC.'!I52)","v":""},{"$f":"IF('800111a - Nota. Detalle de CxC.'!I53=\"\",\"\",'800111a - Nota. Detalle de CxC.'!I53)","v":""},{"$f":"IF('800111a - Nota. Detalle de CxC.'!I54=\"\",\"\",'800111a - Nota. Detalle de CxC.'!I54)","v":""},{"$f":"IF('800111a - Nota. Detalle de CxC.'!I55=\"\",\"\",'800111a - Nota. Detalle de CxC.'!I55)","v":""},{"$f":"IF('800111a - Nota. Detalle de CxC.'!I56=\"\",\"\",'800111a - Nota. Detalle de CxC.'!I56)","v":""},{"$f":"IF('800111a - Nota. Detalle de CxC.'!I57=\"\",\"\",'800111a - Nota. Detalle de CxC.'!I57)","v":""},{"$f":"IF('800111a - Nota. Detalle de CxC.'!I58=\"\",\"\",'800111a - Nota. Detalle de CxC.'!I58)","v":""},{"$f":"IF('800111a - Nota. Detalle de CxC.'!I59=\"\",\"\",'800111a - Nota. Detalle de CxC.'!I59)","v":""},{"$f":"IF('800111a - Nota. Detalle de CxC.'!I60=\"\",\"\",'800111a - Nota. Detalle de CxC.'!I60)","v":""},{"$f":"IF('800111a - Nota. Detalle de CxC.'!I61=\"\",\"\",'800111a - Nota. Detalle de CxC.'!I61)","v":""},{"$f":"IF('800111a - Nota. Detalle de CxC.'!I62=\"\",\"\",'800111a - Nota. Detalle de CxC.'!I62)","v":""},{"$f":"IF('800111a - Nota. Detalle de CxC.'!I63=\"\",\"\",'800111a - Nota. Detalle de CxC.'!I63)","v":""},{"$f":"IF('800111a - Nota. Detalle de CxC.'!I64=\"\",\"\",'800111a - Nota. Detalle de CxC.'!I64)","v":""},{"$f":"IF('800111a - Nota. Detalle de CxC.'!I65=\"\",\"\",'800111a - Nota. Detalle de CxC.'!I65)","v":""},{"$f":"IF('800111a - Nota. Detalle de CxC.'!I66=\"\",\"\",'800111a - Nota. Detalle de CxC.'!I66)","v":""},null,null,null,{"$f":"IF('800111a - Nota. Detalle de CxC.'!I70=\"\",\"\",'800111a - Nota. Detalle de CxC.'!I70)","v":""},{"$f":"IF('800111a - Nota. Detalle de CxC.'!I71=\"\",\"\",'800111a - Nota. Detalle de CxC.'!I71)","v":""},{"$f":"IF('800111a - Nota. Detalle de CxC.'!I72=\"\",\"\",'800111a - Nota. Detalle de CxC.'!I72)","v":""},{"$f":"IF('800111a - Nota. Detalle de CxC.'!I73=\"\",\"\",'800111a - Nota. Detalle de CxC.'!I73)","v":""},{"$f":"IF('800111a - Nota. Detalle de CxC.'!I74=\"\",\"\",'800111a - Nota. Detalle de CxC.'!I74)","v":""},{"$f":"IF('800111a - Nota. Detalle de CxC.'!I75=\"\",\"\",'800111a - Nota. Detalle de CxC.'!I75)","v":""},{"$f":"IF('800111a - Nota. Detalle de CxC.'!I76=\"\",\"\",'800111a - Nota. Detalle de CxC.'!I76)","v":""},{"$f":"IF('800111a - Nota. Detalle de CxC.'!I77=\"\",\"\",'800111a - Nota. Detalle de CxC.'!I77)","v":""},{"$f":"IF('800111a - Nota. Detalle de CxC.'!I78=\"\",\"\",'800111a - Nota. Detalle de CxC.'!I78)","v":""},{"$f":"IF('800111a - Nota. Detalle de CxC.'!I79=\"\",\"\",'800111a - Nota. Detalle de CxC.'!I79)","v":""},{"$f":"IF('800111a - Nota. Detalle de CxC.'!I80=\"\",\"\",'800111a - Nota. Detalle de CxC.'!I80)","v":""},{"$f":"IF('800111a - Nota. Detalle de CxC.'!I81=\"\",\"\",'800111a - Nota. Detalle de CxC.'!I81)","v":""},{"$f":"IF('800111a - Nota. Detalle de CxC.'!I82=\"\",\"\",'800111a - Nota. Detalle de CxC.'!I82)","v":""},{"$f":"IF('800111a - Nota. Detalle de CxC.'!I83=\"\",\"\",'800111a - Nota. Detalle de CxC.'!I83)","v":""},{"$f":"IF('800111a - Nota. Detalle de CxC.'!I84=\"\",\"\",'800111a - Nota. Detalle de CxC.'!I84)","v":""},{"$f":"IF('800111a - Nota. Detalle de CxC.'!I85=\"\",\"\",'800111a - Nota. Detalle de CxC.'!I85)","v":""},{"$f":"IF('800111a - Nota. Detalle de CxC.'!I86=\"\",\"\",'800111a - Nota. Detalle de CxC.'!I86)","v":""},{"$f":"IF('800111a - Nota. Detalle de CxC.'!I87=\"\",\"\",'800111a - Nota. Detalle de CxC.'!I87)","v":""},{"$f":"IF('800111a - Nota. Detalle de CxC.'!I88=\"\",\"\",'800111a - Nota. Detalle de CxC.'!I88)","v":""},{"$f":"IF('800111a - Nota. Detalle de CxC.'!I89=\"\",\"\",'800111a - Nota. Detalle de CxC.'!I89)","v":""},{"$f":"IF('800111a - Nota. Detalle de CxC.'!I90=\"\",\"\",'800111a - Nota. Detalle de CxC.'!I90)","v":""},{"$f":"IF('800111a - Nota. Detalle de CxC.'!I91=\"\",\"\",'800111a - Nota. Detalle de CxC.'!I91)","v":""},{"$f":"IF('800111a - Nota. Detalle de CxC.'!I92=\"\",\"\",'800111a - Nota. Detalle de CxC.'!I92)","v":""},{"$f":"IF('800111a - Nota. Detalle de CxC.'!I93=\"\",\"\",'800111a - Nota. Detalle de CxC.'!I93)","v":""},{"$f":"IF('800111a - Nota. Detalle de CxC.'!I94=\"\",\"\",'800111a - Nota. Detalle de CxC.'!I94)","v":""},{"$f":"IF('800111a - Nota. Detalle de CxC.'!I95=\"\",\"\",'800111a - Nota. Detalle de CxC.'!I95)","v":""},{"$f":"IF('800111a - Nota. Detalle de CxC.'!I96=\"\",\"\",'800111a - Nota. Detalle de CxC.'!I96)","v":""},{"$f":"IF('800111a - Nota. Detalle de CxC.'!I97=\"\",\"\",'800111a - Nota. Detalle de CxC.'!I97)","v":""},{"$f":"IF('800111a - Nota. Detalle de CxC.'!I98=\"\",\"\",'800111a - Nota. Detalle de CxC.'!I98)","v":""},{"$f":"IF('800111a - Nota. Detalle de CxC.'!I99=\"\",\"\",'800111a - Nota. Detalle de CxC.'!I99)","v":""},{"$f":"IF('800111a - Nota. Detalle de CxC.'!I100=\"\",\"\",'800111a - Nota. Detalle de CxC.'!I100)","v":""},{"$f":"IF('800111a - Nota. Detalle de CxC.'!I101=\"\",\"\",'800111a - Nota. Detalle de CxC.'!I101)","v":""},{"$f":"IF('800111a - Nota. Detalle de CxC.'!I102=\"\",\"\",'800111a - Nota. Detalle de CxC.'!I102)","v":""},{"$f":"IF('800111a - Nota. Detalle de CxC.'!I103=\"\",\"\",'800111a - Nota. Detalle de CxC.'!I103)","v":""},{"$f":"IF('800111a - Nota. Detalle de CxC.'!I104=\"\",\"\",'800111a - Nota. Detalle de CxC.'!I104)","v":""},{"$f":"IF('800111a - Nota. Detalle de CxC.'!I105=\"\",\"\",'800111a - Nota. Detalle de CxC.'!I105)","v":""},{"$f":"IF('800111a - Nota. Detalle de CxC.'!I106=\"\",\"\",'800111a - Nota. Detalle de CxC.'!I106)","v":""},{"$f":"IF('800111a - Nota. Detalle de CxC.'!I107=\"\",\"\",'800111a - Nota. Detalle de CxC.'!I107)","v":""},{"$f":"IF('800111a - Nota. Detalle de CxC.'!I108=\"\",\"\",'800111a - Nota. Detalle de CxC.'!I108)","v":""},{"$f":"IF('800111a - Nota. Detalle de CxC.'!I109=\"\",\"\",'800111a - Nota. Detalle de CxC.'!I109)","v":""},{"$f":"IF('800111a - Nota. Detalle de CxC.'!I110=\"\",\"\",'800111a - Nota. Detalle de CxC.'!I110)","v":""},{"$f":"IF('800111a - Nota. Detalle de CxC.'!I111=\"\",\"\",'800111a - Nota. Detalle de CxC.'!I111)","v":""},{"$f":"IF('800111a - Nota. Detalle de CxC.'!I112=\"\",\"\",'800111a - Nota. Detalle de CxC.'!I112)","v":""},{"$f":"IF('800111a - Nota. Detalle de CxC.'!I113=\"\",\"\",'800111a - Nota. Detalle de CxC.'!I113)","v":""},{"$f":"IF('800111a - Nota. Detalle de CxC.'!I114=\"\",\"\",'800111a - Nota. Detalle de CxC.'!I114)","v":""},{"$f":"IF('800111a - Nota. Detalle de CxC.'!I115=\"\",\"\",'800111a - Nota. Detalle de CxC.'!I115)","v":""},{"$f":"IF('800111a - Nota. Detalle de CxC.'!I116=\"\",\"\",'800111a - Nota. Detalle de CxC.'!I116)","v":""},{"$f":"IF('800111a - Nota. Detalle de CxC.'!I117=\"\",\"\",'800111a - Nota. Detalle de CxC.'!I117)","v":""},{"$f":"IF('800111a - Nota. Detalle de CxC.'!I118=\"\",\"\",'800111a - Nota. Detalle de CxC.'!I118)","v":""},{"$f":"IF('800111a - Nota. Detalle de CxC.'!I119=\"\",\"\",'800111a - Nota. Detalle de CxC.'!I119)","v":""},null,null,null,{"$f":"IF('800111a - Nota. Detalle de CxC.'!I123=\"\",\"\",'800111a - Nota. Detalle de CxC.'!I123)","v":""},{"$f":"IF('800111a - Nota. Detalle de CxC.'!I124=\"\",\"\",'800111a - Nota. Detalle de CxC.'!I124)","v":""},{"$f":"IF('800111a - Nota. Detalle de CxC.'!I125=\"\",\"\",'800111a - Nota. Detalle de CxC.'!I125)","v":""},{"$f":"IF('800111a - Nota. Detalle de CxC.'!I126=\"\",\"\",'800111a - Nota. Detalle de CxC.'!I126)","v":""},{"$f":"IF('800111a - Nota. Detalle de CxC.'!I127=\"\",\"\",'800111a - Nota. Detalle de CxC.'!I127)","v":""},{"$f":"IF('800111a - Nota. Detalle de CxC.'!I128=\"\",\"\",'800111a - Nota. Detalle de CxC.'!I128)","v":""},{"$f":"IF('800111a - Nota. Detalle de CxC.'!I129=\"\",\"\",'800111a - Nota. Detalle de CxC.'!I129)","v":""},{"$f":"IF('800111a - Nota. Detalle de CxC.'!I130=\"\",\"\",'800111a - Nota. Detalle de CxC.'!I130)","v":""},{"$f":"IF('800111a - Nota. Detalle de CxC.'!I131=\"\",\"\",'800111a - Nota. Detalle de CxC.'!I131)","v":""},{"$f":"IF('800111a - Nota. Detalle de CxC.'!I132=\"\",\"\",'800111a - Nota. Detalle de CxC.'!I132)","v":""},{"$f":"IF('800111a - Nota. Detalle de CxC.'!I133=\"\",\"\",'800111a - Nota. Detalle de CxC.'!I133)","v":""},{"$f":"IF('800111a - Nota. Detalle de CxC.'!I134=\"\",\"\",'800111a - Nota. Detalle de CxC.'!I134)","v":""},{"$f":"IF('800111a - Nota. Detalle de CxC.'!I135=\"\",\"\",'800111a - Nota. Detalle de CxC.'!I135)","v":""},{"$f":"IF('800111a - Nota. Detalle de CxC.'!I136=\"\",\"\",'800111a - Nota. Detalle de CxC.'!I136)","v":""},{"$f":"IF('800111a - Nota. Detalle de CxC.'!I137=\"\",\"\",'800111a - Nota. Detalle de CxC.'!I137)","v":""},{"$f":"IF('800111a - Nota. Detalle de CxC.'!I138=\"\",\"\",'800111a - Nota. Detalle de CxC.'!I138)","v":""},{"$f":"IF('800111a - Nota. Detalle de CxC.'!I139=\"\",\"\",'800111a - Nota. Detalle de CxC.'!I139)","v":""},{"$f":"IF('800111a - Nota. Detalle de CxC.'!I140=\"\",\"\",'800111a - Nota. Detalle de CxC.'!I140)","v":""},{"$f":"IF('800111a - Nota. Detalle de CxC.'!I141=\"\",\"\",'800111a - Nota. Detalle de CxC.'!I141)","v":""},{"$f":"IF('800111a - Nota. Detalle de CxC.'!I142=\"\",\"\",'800111a - Nota. Detalle de CxC.'!I142)","v":""},{"$f":"IF('800111a - Nota. Detalle de CxC.'!I143=\"\",\"\",'800111a - Nota. Detalle de CxC.'!I143)","v":""},{"$f":"IF('800111a - Nota. Detalle de CxC.'!I144=\"\",\"\",'800111a - Nota. Detalle de CxC.'!I144)","v":""},{"$f":"IF('800111a - Nota. Detalle de CxC.'!I145=\"\",\"\",'800111a - Nota. Detalle de CxC.'!I145)","v":""},{"$f":"IF('800111a - Nota. Detalle de CxC.'!I146=\"\",\"\",'800111a - Nota. Detalle de CxC.'!I146)","v":""},{"$f":"IF('800111a - Nota. Detalle de CxC.'!I147=\"\",\"\",'800111a - Nota. Detalle de CxC.'!I147)","v":""},{"$f":"IF('800111a - Nota. Detalle de CxC.'!I148=\"\",\"\",'800111a - Nota. Detalle de CxC.'!I148)","v":""},{"$f":"IF('800111a - Nota. Detalle de CxC.'!I149=\"\",\"\",'800111a - Nota. Detalle de CxC.'!I149)","v":""},{"$f":"IF('800111a - Nota. Detalle de CxC.'!I150=\"\",\"\",'800111a - Nota. Detalle de CxC.'!I150)","v":""},{"$f":"IF('800111a - Nota. Detalle de CxC.'!I151=\"\",\"\",'800111a - Nota. Detalle de CxC.'!I151)","v":""},{"$f":"IF('800111a - Nota. Detalle de CxC.'!I152=\"\",\"\",'800111a - Nota. Detalle de CxC.'!I152)","v":""},{"$f":"IF('800111a - Nota. Detalle de CxC.'!I153=\"\",\"\",'800111a - Nota. Detalle de CxC.'!I153)","v":""},{"$f":"IF('800111a - Nota. Detalle de CxC.'!I154=\"\",\"\",'800111a - Nota. Detalle de CxC.'!I154)","v":""},{"$f":"IF('800111a - Nota. Detalle de CxC.'!I155=\"\",\"\",'800111a - Nota. Detalle de CxC.'!I155)","v":""},{"$f":"IF('800111a - Nota. Detalle de CxC.'!I156=\"\",\"\",'800111a - Nota. Detalle de CxC.'!I156)","v":""},{"$f":"IF('800111a - Nota. Detalle de CxC.'!I157=\"\",\"\",'800111a - Nota. Detalle de CxC.'!I157)","v":""},{"$f":"IF('800111a - Nota. Detalle de CxC.'!I158=\"\",\"\",'800111a - Nota. Detalle de CxC.'!I158)","v":""},{"$f":"IF('800111a - Nota. Detalle de CxC.'!I159=\"\",\"\",'800111a - Nota. Detalle de CxC.'!I159)","v":""},{"$f":"IF('800111a - Nota. Detalle de CxC.'!I160=\"\",\"\",'800111a - Nota. Detalle de CxC.'!I160)","v":""},{"$f":"IF('800111a - Nota. Detalle de CxC.'!I161=\"\",\"\",'800111a - Nota. Detalle de CxC.'!I161)","v":""},{"$f":"IF('800111a - Nota. Detalle de CxC.'!I162=\"\",\"\",'800111a - Nota. Detalle de CxC.'!I162)","v":""},{"$f":"IF('800111a - Nota. Detalle de CxC.'!I163=\"\",\"\",'800111a - Nota. Detalle de CxC.'!I163)","v":""},{"$f":"IF('800111a - Nota. Detalle de CxC.'!I164=\"\",\"\",'800111a - Nota. Detalle de CxC.'!I164)","v":""},{"$f":"IF('800111a - Nota. Detalle de CxC.'!I165=\"\",\"\",'800111a - Nota. Detalle de CxC.'!I165)","v":""},{"$f":"IF('800111a - Nota. Detalle de CxC.'!I166=\"\",\"\",'800111a - Nota. Detalle de CxC.'!I166)","v":""},{"$f":"IF('800111a - Nota. Detalle de CxC.'!I167=\"\",\"\",'800111a - Nota. Detalle de CxC.'!I167)","v":""},{"$f":"IF('800111a - Nota. Detalle de CxC.'!I168=\"\",\"\",'800111a - Nota. Detalle de CxC.'!I168)","v":""},{"$f":"IF('800111a - Nota. Detalle de CxC.'!I169=\"\",\"\",'800111a - Nota. Detalle de CxC.'!I169)","v":""},{"$f":"IF('800111a - Nota. Detalle de CxC.'!I170=\"\",\"\",'800111a - Nota. Detalle de CxC.'!I170)","v":""},{"$f":"IF('800111a - Nota. Detalle de CxC.'!I171=\"\",\"\",'800111a - Nota. Detalle de CxC.'!I171)","v":""},{"$f":"IF('800111a - Nota. Detalle de CxC.'!I172=\"\",\"\",'800111a - Nota. Detalle de CxC.'!I172)","v":""}]
[null,"1;1","co-svsp-core:PrimerNombreDeudorCxC","Primer nombre deudor",null,null,{"$f":"IF('800111a - Nota. Detalle de CxC.'!J17=\"\",\"\",'800111a - Nota. Detalle de CxC.'!J17)","v":""},{"$f":"IF('800111a - Nota. Detalle de CxC.'!J18=\"\",\"\",'800111a - Nota. Detalle de CxC.'!J18)","v":""},{"$f":"IF('800111a - Nota. Detalle de CxC.'!J19=\"\",\"\",'800111a - Nota. Detalle de CxC.'!J19)","v":""},{"$f":"IF('800111a - Nota. Detalle de CxC.'!J20=\"\",\"\",'800111a - Nota. Detalle de CxC.'!J20)","v":""},{"$f":"IF('800111a - Nota. Detalle de CxC.'!J21=\"\",\"\",'800111a - Nota. Detalle de CxC.'!J21)","v":""},{"$f":"IF('800111a - Nota. Detalle de CxC.'!J22=\"\",\"\",'800111a - Nota. Detalle de CxC.'!J22)","v":""},{"$f":"IF('800111a - Nota. Detalle de CxC.'!J23=\"\",\"\",'800111a - Nota. Detalle de CxC.'!J23)","v":""},{"$f":"IF('800111a - Nota. Detalle de CxC.'!J24=\"\",\"\",'800111a - Nota. Detalle de CxC.'!J24)","v":""},{"$f":"IF('800111a - Nota. Detalle de CxC.'!J25=\"\",\"\",'800111a - Nota. Detalle de CxC.'!J25)","v":""},{"$f":"IF('800111a - Nota. Detalle de CxC.'!J26=\"\",\"\",'800111a - Nota. Detalle de CxC.'!J26)","v":""},{"$f":"IF('800111a - Nota. Detalle de CxC.'!J27=\"\",\"\",'800111a - Nota. Detalle de CxC.'!J27)","v":""},{"$f":"IF('800111a - Nota. Detalle de CxC.'!J28=\"\",\"\",'800111a - Nota. Detalle de CxC.'!J28)","v":""},{"$f":"IF('800111a - Nota. Detalle de CxC.'!J29=\"\",\"\",'800111a - Nota. Detalle de CxC.'!J29)","v":""},{"$f":"IF('800111a - Nota. Detalle de CxC.'!J30=\"\",\"\",'800111a - Nota. Detalle de CxC.'!J30)","v":""},{"$f":"IF('800111a - Nota. Detalle de CxC.'!J31=\"\",\"\",'800111a - Nota. Detalle de CxC.'!J31)","v":""},{"$f":"IF('800111a - Nota. Detalle de CxC.'!J32=\"\",\"\",'800111a - Nota. Detalle de CxC.'!J32)","v":""},{"$f":"IF('800111a - Nota. Detalle de CxC.'!J33=\"\",\"\",'800111a - Nota. Detalle de CxC.'!J33)","v":""},{"$f":"IF('800111a - Nota. Detalle de CxC.'!J34=\"\",\"\",'800111a - Nota. Detalle de CxC.'!J34)","v":""},{"$f":"IF('800111a - Nota. Detalle de CxC.'!J35=\"\",\"\",'800111a - Nota. Detalle de CxC.'!J35)","v":""},{"$f":"IF('800111a - Nota. Detalle de CxC.'!J36=\"\",\"\",'800111a - Nota. Detalle de CxC.'!J36)","v":""},{"$f":"IF('800111a - Nota. Detalle de CxC.'!J37=\"\",\"\",'800111a - Nota. Detalle de CxC.'!J37)","v":""},{"$f":"IF('800111a - Nota. Detalle de CxC.'!J38=\"\",\"\",'800111a - Nota. Detalle de CxC.'!J38)","v":""},{"$f":"IF('800111a - Nota. Detalle de CxC.'!J39=\"\",\"\",'800111a - Nota. Detalle de CxC.'!J39)","v":""},{"$f":"IF('800111a - Nota. Detalle de CxC.'!J40=\"\",\"\",'800111a - Nota. Detalle de CxC.'!J40)","v":""},{"$f":"IF('800111a - Nota. Detalle de CxC.'!J41=\"\",\"\",'800111a - Nota. Detalle de CxC.'!J41)","v":""},{"$f":"IF('800111a - Nota. Detalle de CxC.'!J42=\"\",\"\",'800111a - Nota. Detalle de CxC.'!J42)","v":""},{"$f":"IF('800111a - Nota. Detalle de CxC.'!J43=\"\",\"\",'800111a - Nota. Detalle de CxC.'!J43)","v":""},{"$f":"IF('800111a - Nota. Detalle de CxC.'!J44=\"\",\"\",'800111a - Nota. Detalle de CxC.'!J44)","v":""},{"$f":"IF('800111a - Nota. Detalle de CxC.'!J45=\"\",\"\",'800111a - Nota. Detalle de CxC.'!J45)","v":""},{"$f":"IF('800111a - Nota. Detalle de CxC.'!J46=\"\",\"\",'800111a - Nota. Detalle de CxC.'!J46)","v":""},{"$f":"IF('800111a - Nota. Detalle de CxC.'!J47=\"\",\"\",'800111a - Nota. Detalle de CxC.'!J47)","v":""},{"$f":"IF('800111a - Nota. Detalle de CxC.'!J48=\"\",\"\",'800111a - Nota. Detalle de CxC.'!J48)","v":""},{"$f":"IF('800111a - Nota. Detalle de CxC.'!J49=\"\",\"\",'800111a - Nota. Detalle de CxC.'!J49)","v":""},{"$f":"IF('800111a - Nota. Detalle de CxC.'!J50=\"\",\"\",'800111a - Nota. Detalle de CxC.'!J50)","v":""},{"$f":"IF('800111a - Nota. Detalle de CxC.'!J51=\"\",\"\",'800111a - Nota. Detalle de CxC.'!J51)","v":""},{"$f":"IF('800111a - Nota. Detalle de CxC.'!J52=\"\",\"\",'800111a - Nota. Detalle de CxC.'!J52)","v":""},{"$f":"IF('800111a - Nota. Detalle de CxC.'!J53=\"\",\"\",'800111a - Nota. Detalle de CxC.'!J53)","v":""},{"$f":"IF('800111a - Nota. Detalle de CxC.'!J54=\"\",\"\",'800111a - Nota. Detalle de CxC.'!J54)","v":""},{"$f":"IF('800111a - Nota. Detalle de CxC.'!J55=\"\",\"\",'800111a - Nota. Detalle de CxC.'!J55)","v":""},{"$f":"IF('800111a - Nota. Detalle de CxC.'!J56=\"\",\"\",'800111a - Nota. Detalle de CxC.'!J56)","v":""},{"$f":"IF('800111a - Nota. Detalle de CxC.'!J57=\"\",\"\",'800111a - Nota. Detalle de CxC.'!J57)","v":""},{"$f":"IF('800111a - Nota. Detalle de CxC.'!J58=\"\",\"\",'800111a - Nota. Detalle de CxC.'!J58)","v":""},{"$f":"IF('800111a - Nota. Detalle de CxC.'!J59=\"\",\"\",'800111a - Nota. Detalle de CxC.'!J59)","v":""},{"$f":"IF('800111a - Nota. Detalle de CxC.'!J60=\"\",\"\",'800111a - Nota. Detalle de CxC.'!J60)","v":""},{"$f":"IF('800111a - Nota. Detalle de CxC.'!J61=\"\",\"\",'800111a - Nota. Detalle de CxC.'!J61)","v":""},{"$f":"IF('800111a - Nota. Detalle de CxC.'!J62=\"\",\"\",'800111a - Nota. Detalle de CxC.'!J62)","v":""},{"$f":"IF('800111a - Nota. Detalle de CxC.'!J63=\"\",\"\",'800111a - Nota. Detalle de CxC.'!J63)","v":""},{"$f":"IF('800111a - Nota. Detalle de CxC.'!J64=\"\",\"\",'800111a - Nota. Detalle de CxC.'!J64)","v":""},{"$f":"IF('800111a - Nota. Detalle de CxC.'!J65=\"\",\"\",'800111a - Nota. Detalle de CxC.'!J65)","v":""},{"$f":"IF('800111a - Nota. Detalle de CxC.'!J66=\"\",\"\",'800111a - Nota. Detalle de CxC.'!J66)","v":""},null,null,null,{"$f":"IF('800111a - Nota. Detalle de CxC.'!J70=\"\",\"\",'800111a - Nota. Detalle de CxC.'!J70)","v":""},{"$f":"IF('800111a - Nota. Detalle de CxC.'!J71=\"\",\"\",'800111a - Nota. Detalle de CxC.'!J71)","v":""},{"$f":"IF('800111a - Nota. Detalle de CxC.'!J72=\"\",\"\",'800111a - Nota. Detalle de CxC.'!J72)","v":""},{"$f":"IF('800111a - Nota. Detalle de CxC.'!J73=\"\",\"\",'800111a - Nota. Detalle de CxC.'!J73)","v":""},{"$f":"IF('800111a - Nota. Detalle de CxC.'!J74=\"\",\"\",'800111a - Nota. Detalle de CxC.'!J74)","v":""},{"$f":"IF('800111a - Nota. Detalle de CxC.'!J75=\"\",\"\",'800111a - Nota. Detalle de CxC.'!J75)","v":""},{"$f":"IF('800111a - Nota. Detalle de CxC.'!J76=\"\",\"\",'800111a - Nota. Detalle de CxC.'!J76)","v":""},{"$f":"IF('800111a - Nota. Detalle de CxC.'!J77=\"\",\"\",'800111a - Nota. Detalle de CxC.'!J77)","v":""},{"$f":"IF('800111a - Nota. Detalle de CxC.'!J78=\"\",\"\",'800111a - Nota. Detalle de CxC.'!J78)","v":""},{"$f":"IF('800111a - Nota. Detalle de CxC.'!J79=\"\",\"\",'800111a - Nota. Detalle de CxC.'!J79)","v":""},{"$f":"IF('800111a - Nota. Detalle de CxC.'!J80=\"\",\"\",'800111a - Nota. Detalle de CxC.'!J80)","v":""},{"$f":"IF('800111a - Nota. Detalle de CxC.'!J81=\"\",\"\",'800111a - Nota. Detalle de CxC.'!J81)","v":""},{"$f":"IF('800111a - Nota. Detalle de CxC.'!J82=\"\",\"\",'800111a - Nota. Detalle de CxC.'!J82)","v":""},{"$f":"IF('800111a - Nota. Detalle de CxC.'!J83=\"\",\"\",'800111a - Nota. Detalle de CxC.'!J83)","v":""},{"$f":"IF('800111a - Nota. Detalle de CxC.'!J84=\"\",\"\",'800111a - Nota. Detalle de CxC.'!J84)","v":""},{"$f":"IF('800111a - Nota. Detalle de CxC.'!J85=\"\",\"\",'800111a - Nota. Detalle de CxC.'!J85)","v":""},{"$f":"IF('800111a - Nota. Detalle de CxC.'!J86=\"\",\"\",'800111a - Nota. Detalle de CxC.'!J86)","v":""},{"$f":"IF('800111a - Nota. Detalle de CxC.'!J87=\"\",\"\",'800111a - Nota. Detalle de CxC.'!J87)","v":""},{"$f":"IF('800111a - Nota. Detalle de CxC.'!J88=\"\",\"\",'800111a - Nota. Detalle de CxC.'!J88)","v":""},{"$f":"IF('800111a - Nota. Detalle de CxC.'!J89=\"\",\"\",'800111a - Nota. Detalle de CxC.'!J89)","v":""},{"$f":"IF('800111a - Nota. Detalle de CxC.'!J90=\"\",\"\",'800111a - Nota. Detalle de CxC.'!J90)","v":""},{"$f":"IF('800111a - Nota. Detalle de CxC.'!J91=\"\",\"\",'800111a - Nota. Detalle de CxC.'!J91)","v":""},{"$f":"IF('800111a - Nota. Detalle de CxC.'!J92=\"\",\"\",'800111a - Nota. Detalle de CxC.'!J92)","v":""},{"$f":"IF('800111a - Nota. Detalle de CxC.'!J93=\"\",\"\",'800111a - Nota. Detalle de CxC.'!J93)","v":""},{"$f":"IF('800111a - Nota. Detalle de CxC.'!J94=\"\",\"\",'800111a - Nota. Detalle de CxC.'!J94)","v":""},{"$f":"IF('800111a - Nota. Detalle de CxC.'!J95=\"\",\"\",'800111a - Nota. Detalle de CxC.'!J95)","v":""},{"$f":"IF('800111a - Nota. Detalle de CxC.'!J96=\"\",\"\",'800111a - Nota. Detalle de CxC.'!J96)","v":""},{"$f":"IF('800111a - Nota. Detalle de CxC.'!J97=\"\",\"\",'800111a - Nota. Detalle de CxC.'!J97)","v":""},{"$f":"IF('800111a - Nota. Detalle de CxC.'!J98=\"\",\"\",'800111a - Nota. Detalle de CxC.'!J98)","v":""},{"$f":"IF('800111a - Nota. Detalle de CxC.'!J99=\"\",\"\",'800111a - Nota. Detalle de CxC.'!J99)","v":""},{"$f":"IF('800111a - Nota. Detalle de CxC.'!J100=\"\",\"\",'800111a - Nota. Detalle de CxC.'!J100)","v":""},{"$f":"IF('800111a - Nota. Detalle de CxC.'!J101=\"\",\"\",'800111a - Nota. Detalle de CxC.'!J101)","v":""},{"$f":"IF('800111a - Nota. Detalle de CxC.'!J102=\"\",\"\",'800111a - Nota. Detalle de CxC.'!J102)","v":""},{"$f":"IF('800111a - Nota. Detalle de CxC.'!J103=\"\",\"\",'800111a - Nota. Detalle de CxC.'!J103)","v":""},{"$f":"IF('800111a - Nota. Detalle de CxC.'!J104=\"\",\"\",'800111a - Nota. Detalle de CxC.'!J104)","v":""},{"$f":"IF('800111a - Nota. Detalle de CxC.'!J105=\"\",\"\",'800111a - Nota. Detalle de CxC.'!J105)","v":""},{"$f":"IF('800111a - Nota. Detalle de CxC.'!J106=\"\",\"\",'800111a - Nota. Detalle de CxC.'!J106)","v":""},{"$f":"IF('800111a - Nota. Detalle de CxC.'!J107=\"\",\"\",'800111a - Nota. Detalle de CxC.'!J107)","v":""},{"$f":"IF('800111a - Nota. Detalle de CxC.'!J108=\"\",\"\",'800111a - Nota. Detalle de CxC.'!J108)","v":""},{"$f":"IF('800111a - Nota. Detalle de CxC.'!J109=\"\",\"\",'800111a - Nota. Detalle de CxC.'!J109)","v":""},{"$f":"IF('800111a - Nota. Detalle de CxC.'!J110=\"\",\"\",'800111a - Nota. Detalle de CxC.'!J110)","v":""},{"$f":"IF('800111a - Nota. Detalle de CxC.'!J111=\"\",\"\",'800111a - Nota. Detalle de CxC.'!J111)","v":""},{"$f":"IF('800111a - Nota. Detalle de CxC.'!J112=\"\",\"\",'800111a - Nota. Detalle de CxC.'!J112)","v":""},{"$f":"IF('800111a - Nota. Detalle de CxC.'!J113=\"\",\"\",'800111a - Nota. Detalle de CxC.'!J113)","v":""},{"$f":"IF('800111a - Nota. Detalle de CxC.'!J114=\"\",\"\",'800111a - Nota. Detalle de CxC.'!J114)","v":""},{"$f":"IF('800111a - Nota. Detalle de CxC.'!J115=\"\",\"\",'800111a - Nota. Detalle de CxC.'!J115)","v":""},{"$f":"IF('800111a - Nota. Detalle de CxC.'!J116=\"\",\"\",'800111a - Nota. Detalle de CxC.'!J116)","v":""},{"$f":"IF('800111a - Nota. Detalle de CxC.'!J117=\"\",\"\",'800111a - Nota. Detalle de CxC.'!J117)","v":""},{"$f":"IF('800111a - Nota. Detalle de CxC.'!J118=\"\",\"\",'800111a - Nota. Detalle de CxC.'!J118)","v":""},{"$f":"IF('800111a - Nota. Detalle de CxC.'!J119=\"\",\"\",'800111a - Nota. Detalle de CxC.'!J119)","v":""},null,null,null,{"$f":"IF('800111a - Nota. Detalle de CxC.'!J123=\"\",\"\",'800111a - Nota. Detalle de CxC.'!J123)","v":""},{"$f":"IF('800111a - Nota. Detalle de CxC.'!J124=\"\",\"\",'800111a - Nota. Detalle de CxC.'!J124)","v":""},{"$f":"IF('800111a - Nota. Detalle de CxC.'!J125=\"\",\"\",'800111a - Nota. Detalle de CxC.'!J125)","v":""},{"$f":"IF('800111a - Nota. Detalle de CxC.'!J126=\"\",\"\",'800111a - Nota. Detalle de CxC.'!J126)","v":""},{"$f":"IF('800111a - Nota. Detalle de CxC.'!J127=\"\",\"\",'800111a - Nota. Detalle de CxC.'!J127)","v":""},{"$f":"IF('800111a - Nota. Detalle de CxC.'!J128=\"\",\"\",'800111a - Nota. Detalle de CxC.'!J128)","v":""},{"$f":"IF('800111a - Nota. Detalle de CxC.'!J129=\"\",\"\",'800111a - Nota. Detalle de CxC.'!J129)","v":""},{"$f":"IF('800111a - Nota. Detalle de CxC.'!J130=\"\",\"\",'800111a - Nota. Detalle de CxC.'!J130)","v":""},{"$f":"IF('800111a - Nota. Detalle de CxC.'!J131=\"\",\"\",'800111a - Nota. Detalle de CxC.'!J131)","v":""},{"$f":"IF('800111a - Nota. Detalle de CxC.'!J132=\"\",\"\",'800111a - Nota. Detalle de CxC.'!J132)","v":""},{"$f":"IF('800111a - Nota. Detalle de CxC.'!J133=\"\",\"\",'800111a - Nota. Detalle de CxC.'!J133)","v":""},{"$f":"IF('800111a - Nota. Detalle de CxC.'!J134=\"\",\"\",'800111a - Nota. Detalle de CxC.'!J134)","v":""},{"$f":"IF('800111a - Nota. Detalle de CxC.'!J135=\"\",\"\",'800111a - Nota. Detalle de CxC.'!J135)","v":""},{"$f":"IF('800111a - Nota. Detalle de CxC.'!J136=\"\",\"\",'800111a - Nota. Detalle de CxC.'!J136)","v":""},{"$f":"IF('800111a - Nota. Detalle de CxC.'!J137=\"\",\"\",'800111a - Nota. Detalle de CxC.'!J137)","v":""},{"$f":"IF('800111a - Nota. Detalle de CxC.'!J138=\"\",\"\",'800111a - Nota. Detalle de CxC.'!J138)","v":""},{"$f":"IF('800111a - Nota. Detalle de CxC.'!J139=\"\",\"\",'800111a - Nota. Detalle de CxC.'!J139)","v":""},{"$f":"IF('800111a - Nota. Detalle de CxC.'!J140=\"\",\"\",'800111a - Nota. Detalle de CxC.'!J140)","v":""},{"$f":"IF('800111a - Nota. Detalle de CxC.'!J141=\"\",\"\",'800111a - Nota. Detalle de CxC.'!J141)","v":""},{"$f":"IF('800111a - Nota. Detalle de CxC.'!J142=\"\",\"\",'800111a - Nota. Detalle de CxC.'!J142)","v":""},{"$f":"IF('800111a - Nota. Detalle de CxC.'!J143=\"\",\"\",'800111a - Nota. Detalle de CxC.'!J143)","v":""},{"$f":"IF('800111a - Nota. Detalle de CxC.'!J144=\"\",\"\",'800111a - Nota. Detalle de CxC.'!J144)","v":""},{"$f":"IF('800111a - Nota. Detalle de CxC.'!J145=\"\",\"\",'800111a - Nota. Detalle de CxC.'!J145)","v":""},{"$f":"IF('800111a - Nota. Detalle de CxC.'!J146=\"\",\"\",'800111a - Nota. Detalle de CxC.'!J146)","v":""},{"$f":"IF('800111a - Nota. Detalle de CxC.'!J147=\"\",\"\",'800111a - Nota. Detalle de CxC.'!J147)","v":""},{"$f":"IF('800111a - Nota. Detalle de CxC.'!J148=\"\",\"\",'800111a - Nota. Detalle de CxC.'!J148)","v":""},{"$f":"IF('800111a - Nota. Detalle de CxC.'!J149=\"\",\"\",'800111a - Nota. Detalle de CxC.'!J149)","v":""},{"$f":"IF('800111a - Nota. Detalle de CxC.'!J150=\"\",\"\",'800111a - Nota. Detalle de CxC.'!J150)","v":""},{"$f":"IF('800111a - Nota. Detalle de CxC.'!J151=\"\",\"\",'800111a - Nota. Detalle de CxC.'!J151)","v":""},{"$f":"IF('800111a - Nota. Detalle de CxC.'!J152=\"\",\"\",'800111a - Nota. Detalle de CxC.'!J152)","v":""},{"$f":"IF('800111a - Nota. Detalle de CxC.'!J153=\"\",\"\",'800111a - Nota. Detalle de CxC.'!J153)","v":""},{"$f":"IF('800111a - Nota. Detalle de CxC.'!J154=\"\",\"\",'800111a - Nota. Detalle de CxC.'!J154)","v":""},{"$f":"IF('800111a - Nota. Detalle de CxC.'!J155=\"\",\"\",'800111a - Nota. Detalle de CxC.'!J155)","v":""},{"$f":"IF('800111a - Nota. Detalle de CxC.'!J156=\"\",\"\",'800111a - Nota. Detalle de CxC.'!J156)","v":""},{"$f":"IF('800111a - Nota. Detalle de CxC.'!J157=\"\",\"\",'800111a - Nota. Detalle de CxC.'!J157)","v":""},{"$f":"IF('800111a - Nota. Detalle de CxC.'!J158=\"\",\"\",'800111a - Nota. Detalle de CxC.'!J158)","v":""},{"$f":"IF('800111a - Nota. Detalle de CxC.'!J159=\"\",\"\",'800111a - Nota. Detalle de CxC.'!J159)","v":""},{"$f":"IF('800111a - Nota. Detalle de CxC.'!J160=\"\",\"\",'800111a - Nota. Detalle de CxC.'!J160)","v":""},{"$f":"IF('800111a - Nota. Detalle de CxC.'!J161=\"\",\"\",'800111a - Nota. Detalle de CxC.'!J161)","v":""},{"$f":"IF('800111a - Nota. Detalle de CxC.'!J162=\"\",\"\",'800111a - Nota. Detalle de CxC.'!J162)","v":""},{"$f":"IF('800111a - Nota. Detalle de CxC.'!J163=\"\",\"\",'800111a - Nota. Detalle de CxC.'!J163)","v":""},{"$f":"IF('800111a - Nota. Detalle de CxC.'!J164=\"\",\"\",'800111a - Nota. Detalle de CxC.'!J164)","v":""},{"$f":"IF('800111a - Nota. Detalle de CxC.'!J165=\"\",\"\",'800111a - Nota. Detalle de CxC.'!J165)","v":""},{"$f":"IF('800111a - Nota. Detalle de CxC.'!J166=\"\",\"\",'800111a - Nota. Detalle de CxC.'!J166)","v":""},{"$f":"IF('800111a - Nota. Detalle de CxC.'!J167=\"\",\"\",'800111a - Nota. Detalle de CxC.'!J167)","v":""},{"$f":"IF('800111a - Nota. Detalle de CxC.'!J168=\"\",\"\",'800111a - Nota. Detalle de CxC.'!J168)","v":""},{"$f":"IF('800111a - Nota. Detalle de CxC.'!J169=\"\",\"\",'800111a - Nota. Detalle de CxC.'!J169)","v":""},{"$f":"IF('800111a - Nota. Detalle de CxC.'!J170=\"\",\"\",'800111a - Nota. Detalle de CxC.'!J170)","v":""},{"$f":"IF('800111a - Nota. Detalle de CxC.'!J171=\"\",\"\",'800111a - Nota. Detalle de CxC.'!J171)","v":""},{"$f":"IF('800111a - Nota. Detalle de CxC.'!J172=\"\",\"\",'800111a - Nota. Detalle de CxC.'!J172)","v":""}]
[null,"1;1","co-svsp-core:OtrosNombresDeudorCxC","Otros nombres deudor",null,null,{"$f":"IF('800111a - Nota. Detalle de CxC.'!K17=\"\",\"\",'800111a - Nota. Detalle de CxC.'!K17)","v":""},{"$f":"IF('800111a - Nota. Detalle de CxC.'!K18=\"\",\"\",'800111a - Nota. Detalle de CxC.'!K18)","v":""},{"$f":"IF('800111a - Nota. Detalle de CxC.'!K19=\"\",\"\",'800111a - Nota. Detalle de CxC.'!K19)","v":""},{"$f":"IF('800111a - Nota. Detalle de CxC.'!K20=\"\",\"\",'800111a - Nota. Detalle de CxC.'!K20)","v":""},{"$f":"IF('800111a - Nota. Detalle de CxC.'!K21=\"\",\"\",'800111a - Nota. Detalle de CxC.'!K21)","v":""},{"$f":"IF('800111a - Nota. Detalle de CxC.'!K22=\"\",\"\",'800111a - Nota. Detalle de CxC.'!K22)","v":""},{"$f":"IF('800111a - Nota. Detalle de CxC.'!K23=\"\",\"\",'800111a - Nota. Detalle de CxC.'!K23)","v":""},{"$f":"IF('800111a - Nota. Detalle de CxC.'!K24=\"\",\"\",'800111a - Nota. Detalle de CxC.'!K24)","v":""},{"$f":"IF('800111a - Nota. Detalle de CxC.'!K25=\"\",\"\",'800111a - Nota. Detalle de CxC.'!K25)","v":""},{"$f":"IF('800111a - Nota. Detalle de CxC.'!K26=\"\",\"\",'800111a - Nota. Detalle de CxC.'!K26)","v":""},{"$f":"IF('800111a - Nota. Detalle de CxC.'!K27=\"\",\"\",'800111a - Nota. Detalle de CxC.'!K27)","v":""},{"$f":"IF('800111a - Nota. Detalle de CxC.'!K28=\"\",\"\",'800111a - Nota. Detalle de CxC.'!K28)","v":""},{"$f":"IF('800111a - Nota. Detalle de CxC.'!K29=\"\",\"\",'800111a - Nota. Detalle de CxC.'!K29)","v":""},{"$f":"IF('800111a - Nota. Detalle de CxC.'!K30=\"\",\"\",'800111a - Nota. Detalle de CxC.'!K30)","v":""},{"$f":"IF('800111a - Nota. Detalle de CxC.'!K31=\"\",\"\",'800111a - Nota. Detalle de CxC.'!K31)","v":""},{"$f":"IF('800111a - Nota. Detalle de CxC.'!K32=\"\",\"\",'800111a - Nota. Detalle de CxC.'!K32)","v":""},{"$f":"IF('800111a - Nota. Detalle de CxC.'!K33=\"\",\"\",'800111a - Nota. Detalle de CxC.'!K33)","v":""},{"$f":"IF('800111a - Nota. Detalle de CxC.'!K34=\"\",\"\",'800111a - Nota. Detalle de CxC.'!K34)","v":""},{"$f":"IF('800111a - Nota. Detalle de CxC.'!K35=\"\",\"\",'800111a - Nota. Detalle de CxC.'!K35)","v":""},{"$f":"IF('800111a - Nota. Detalle de CxC.'!K36=\"\",\"\",'800111a - Nota. Detalle de CxC.'!K36)","v":""},{"$f":"IF('800111a - Nota. Detalle de CxC.'!K37=\"\",\"\",'800111a - Nota. Detalle de CxC.'!K37)","v":""},{"$f":"IF('800111a - Nota. Detalle de CxC.'!K38=\"\",\"\",'800111a - Nota. Detalle de CxC.'!K38)","v":""},{"$f":"IF('800111a - Nota. Detalle de CxC.'!K39=\"\",\"\",'800111a - Nota. Detalle de CxC.'!K39)","v":""},{"$f":"IF('800111a - Nota. Detalle de CxC.'!K40=\"\",\"\",'800111a - Nota. Detalle de CxC.'!K40)","v":""},{"$f":"IF('800111a - Nota. Detalle de CxC.'!K41=\"\",\"\",'800111a - Nota. Detalle de CxC.'!K41)","v":""},{"$f":"IF('800111a - Nota. Detalle de CxC.'!K42=\"\",\"\",'800111a - Nota. Detalle de CxC.'!K42)","v":""},{"$f":"IF('800111a - Nota. Detalle de CxC.'!K43=\"\",\"\",'800111a - Nota. Detalle de CxC.'!K43)","v":""},{"$f":"IF('800111a - Nota. Detalle de CxC.'!K44=\"\",\"\",'800111a - Nota. Detalle de CxC.'!K44)","v":""},{"$f":"IF('800111a - Nota. Detalle de CxC.'!K45=\"\",\"\",'800111a - Nota. Detalle de CxC.'!K45)","v":""},{"$f":"IF('800111a - Nota. Detalle de CxC.'!K46=\"\",\"\",'800111a - Nota. Detalle de CxC.'!K46)","v":""},{"$f":"IF('800111a - Nota. Detalle de CxC.'!K47=\"\",\"\",'800111a - Nota. Detalle de CxC.'!K47)","v":""},{"$f":"IF('800111a - Nota. Detalle de CxC.'!K48=\"\",\"\",'800111a - Nota. Detalle de CxC.'!K48)","v":""},{"$f":"IF('800111a - Nota. Detalle de CxC.'!K49=\"\",\"\",'800111a - Nota. Detalle de CxC.'!K49)","v":""},{"$f":"IF('800111a - Nota. Detalle de CxC.'!K50=\"\",\"\",'800111a - Nota. Detalle de CxC.'!K50)","v":""},{"$f":"IF('800111a - Nota. Detalle de CxC.'!K51=\"\",\"\",'800111a - Nota. Detalle de CxC.'!K51)","v":""},{"$f":"IF('800111a - Nota. Detalle de CxC.'!K52=\"\",\"\",'800111a - Nota. Detalle de CxC.'!K52)","v":""},{"$f":"IF('800111a - Nota. Detalle de CxC.'!K53=\"\",\"\",'800111a - Nota. Detalle de CxC.'!K53)","v":""},{"$f":"IF('800111a - Nota. Detalle de CxC.'!K54=\"\",\"\",'800111a - Nota. Detalle de CxC.'!K54)","v":""},{"$f":"IF('800111a - Nota. Detalle de CxC.'!K55=\"\",\"\",'800111a - Nota. Detalle de CxC.'!K55)","v":""},{"$f":"IF('800111a - Nota. Detalle de CxC.'!K56=\"\",\"\",'800111a - Nota. Detalle de CxC.'!K56)","v":""},{"$f":"IF('800111a - Nota. Detalle de CxC.'!K57=\"\",\"\",'800111a - Nota. Detalle de CxC.'!K57)","v":""},{"$f":"IF('800111a - Nota. Detalle de CxC.'!K58=\"\",\"\",'800111a - Nota. Detalle de CxC.'!K58)","v":""},{"$f":"IF('800111a - Nota. Detalle de CxC.'!K59=\"\",\"\",'800111a - Nota. Detalle de CxC.'!K59)","v":""},{"$f":"IF('800111a - Nota. Detalle de CxC.'!K60=\"\",\"\",'800111a - Nota. Detalle de CxC.'!K60)","v":""},{"$f":"IF('800111a - Nota. Detalle de CxC.'!K61=\"\",\"\",'800111a - Nota. Detalle de CxC.'!K61)","v":""},{"$f":"IF('800111a - Nota. Detalle de CxC.'!K62=\"\",\"\",'800111a - Nota. Detalle de CxC.'!K62)","v":""},{"$f":"IF('800111a - Nota. Detalle de CxC.'!K63=\"\",\"\",'800111a - Nota. Detalle de CxC.'!K63)","v":""},{"$f":"IF('800111a - Nota. Detalle de CxC.'!K64=\"\",\"\",'800111a - Nota. Detalle de CxC.'!K64)","v":""},{"$f":"IF('800111a - Nota. Detalle de CxC.'!K65=\"\",\"\",'800111a - Nota. Detalle de CxC.'!K65)","v":""},{"$f":"IF('800111a - Nota. Detalle de CxC.'!K66=\"\",\"\",'800111a - Nota. Detalle de CxC.'!K66)","v":""},null,null,null,{"$f":"IF('800111a - Nota. Detalle de CxC.'!K70=\"\",\"\",'800111a - Nota. Detalle de CxC.'!K70)","v":""},{"$f":"IF('800111a - Nota. Detalle de CxC.'!K71=\"\",\"\",'800111a - Nota. Detalle de CxC.'!K71)","v":""},{"$f":"IF('800111a - Nota. Detalle de CxC.'!K72=\"\",\"\",'800111a - Nota. Detalle de CxC.'!K72)","v":""},{"$f":"IF('800111a - Nota. Detalle de CxC.'!K73=\"\",\"\",'800111a - Nota. Detalle de CxC.'!K73)","v":""},{"$f":"IF('800111a - Nota. Detalle de CxC.'!K74=\"\",\"\",'800111a - Nota. Detalle de CxC.'!K74)","v":""},{"$f":"IF('800111a - Nota. Detalle de CxC.'!K75=\"\",\"\",'800111a - Nota. Detalle de CxC.'!K75)","v":""},{"$f":"IF('800111a - Nota. Detalle de CxC.'!K76=\"\",\"\",'800111a - Nota. Detalle de CxC.'!K76)","v":""},{"$f":"IF('800111a - Nota. Detalle de CxC.'!K77=\"\",\"\",'800111a - Nota. Detalle de CxC.'!K77)","v":""},{"$f":"IF('800111a - Nota. Detalle de CxC.'!K78=\"\",\"\",'800111a - Nota. Detalle de CxC.'!K78)","v":""},{"$f":"IF('800111a - Nota. Detalle de CxC.'!K79=\"\",\"\",'800111a - Nota. Detalle de CxC.'!K79)","v":""},{"$f":"IF('800111a - Nota. Detalle de CxC.'!K80=\"\",\"\",'800111a - Nota. Detalle de CxC.'!K80)","v":""},{"$f":"IF('800111a - Nota. Detalle de CxC.'!K81=\"\",\"\",'800111a - Nota. Detalle de CxC.'!K81)","v":""},{"$f":"IF('800111a - Nota. Detalle de CxC.'!K82=\"\",\"\",'800111a - Nota. Detalle de CxC.'!K82)","v":""},{"$f":"IF('800111a - Nota. Detalle de CxC.'!K83=\"\",\"\",'800111a - Nota. Detalle de CxC.'!K83)","v":""},{"$f":"IF('800111a - Nota. Detalle de CxC.'!K84=\"\",\"\",'800111a - Nota. Detalle de CxC.'!K84)","v":""},{"$f":"IF('800111a - Nota. Detalle de CxC.'!K85=\"\",\"\",'800111a - Nota. Detalle de CxC.'!K85)","v":""},{"$f":"IF('800111a - Nota. Detalle de CxC.'!K86=\"\",\"\",'800111a - Nota. Detalle de CxC.'!K86)","v":""},{"$f":"IF('800111a - Nota. Detalle de CxC.'!K87=\"\",\"\",'800111a - Nota. Detalle de CxC.'!K87)","v":""},{"$f":"IF('800111a - Nota. Detalle de CxC.'!K88=\"\",\"\",'800111a - Nota. Detalle de CxC.'!K88)","v":""},{"$f":"IF('800111a - Nota. Detalle de CxC.'!K89=\"\",\"\",'800111a - Nota. Detalle de CxC.'!K89)","v":""},{"$f":"IF('800111a - Nota. Detalle de CxC.'!K90=\"\",\"\",'800111a - Nota. Detalle de CxC.'!K90)","v":""},{"$f":"IF('800111a - Nota. Detalle de CxC.'!K91=\"\",\"\",'800111a - Nota. Detalle de CxC.'!K91)","v":""},{"$f":"IF('800111a - Nota. Detalle de CxC.'!K92=\"\",\"\",'800111a - Nota. Detalle de CxC.'!K92)","v":""},{"$f":"IF('800111a - Nota. Detalle de CxC.'!K93=\"\",\"\",'800111a - Nota. Detalle de CxC.'!K93)","v":""},{"$f":"IF('800111a - Nota. Detalle de CxC.'!K94=\"\",\"\",'800111a - Nota. Detalle de CxC.'!K94)","v":""},{"$f":"IF('800111a - Nota. Detalle de CxC.'!K95=\"\",\"\",'800111a - Nota. Detalle de CxC.'!K95)","v":""},{"$f":"IF('800111a - Nota. Detalle de CxC.'!K96=\"\",\"\",'800111a - Nota. Detalle de CxC.'!K96)","v":""},{"$f":"IF('800111a - Nota. Detalle de CxC.'!K97=\"\",\"\",'800111a - Nota. Detalle de CxC.'!K97)","v":""},{"$f":"IF('800111a - Nota. Detalle de CxC.'!K98=\"\",\"\",'800111a - Nota. Detalle de CxC.'!K98)","v":""},{"$f":"IF('800111a - Nota. Detalle de CxC.'!K99=\"\",\"\",'800111a - Nota. Detalle de CxC.'!K99)","v":""},{"$f":"IF('800111a - Nota. Detalle de CxC.'!K100=\"\",\"\",'800111a - Nota. Detalle de CxC.'!K100)","v":""},{"$f":"IF('800111a - Nota. Detalle de CxC.'!K101=\"\",\"\",'800111a - Nota. Detalle de CxC.'!K101)","v":""},{"$f":"IF('800111a - Nota. Detalle de CxC.'!K102=\"\",\"\",'800111a - Nota. Detalle de CxC.'!K102)","v":""},{"$f":"IF('800111a - Nota. Detalle de CxC.'!K103=\"\",\"\",'800111a - Nota. Detalle de CxC.'!K103)","v":""},{"$f":"IF('800111a - Nota. Detalle de CxC.'!K104=\"\",\"\",'800111a - Nota. Detalle de CxC.'!K104)","v":""},{"$f":"IF('800111a - Nota. Detalle de CxC.'!K105=\"\",\"\",'800111a - Nota. Detalle de CxC.'!K105)","v":""},{"$f":"IF('800111a - Nota. Detalle de CxC.'!K106=\"\",\"\",'800111a - Nota. Detalle de CxC.'!K106)","v":""},{"$f":"IF('800111a - Nota. Detalle de CxC.'!K107=\"\",\"\",'800111a - Nota. Detalle de CxC.'!K107)","v":""},{"$f":"IF('800111a - Nota. Detalle de CxC.'!K108=\"\",\"\",'800111a - Nota. Detalle de CxC.'!K108)","v":""},{"$f":"IF('800111a - Nota. Detalle de CxC.'!K109=\"\",\"\",'800111a - Nota. Detalle de CxC.'!K109)","v":""},{"$f":"IF('800111a - Nota. Detalle de CxC.'!K110=\"\",\"\",'800111a - Nota. Detalle de CxC.'!K110)","v":""},{"$f":"IF('800111a - Nota. Detalle de CxC.'!K111=\"\",\"\",'800111a - Nota. Detalle de CxC.'!K111)","v":""},{"$f":"IF('800111a - Nota. Detalle de CxC.'!K112=\"\",\"\",'800111a - Nota. Detalle de CxC.'!K112)","v":""},{"$f":"IF('800111a - Nota. Detalle de CxC.'!K113=\"\",\"\",'800111a - Nota. Detalle de CxC.'!K113)","v":""},{"$f":"IF('800111a - Nota. Detalle de CxC.'!K114=\"\",\"\",'800111a - Nota. Detalle de CxC.'!K114)","v":""},{"$f":"IF('800111a - Nota. Detalle de CxC.'!K115=\"\",\"\",'800111a - Nota. Detalle de CxC.'!K115)","v":""},{"$f":"IF('800111a - Nota. Detalle de CxC.'!K116=\"\",\"\",'800111a - Nota. Detalle de CxC.'!K116)","v":""},{"$f":"IF('800111a - Nota. Detalle de CxC.'!K117=\"\",\"\",'800111a - Nota. Detalle de CxC.'!K117)","v":""},{"$f":"IF('800111a - Nota. Detalle de CxC.'!K118=\"\",\"\",'800111a - Nota. Detalle de CxC.'!K118)","v":""},{"$f":"IF('800111a - Nota. Detalle de CxC.'!K119=\"\",\"\",'800111a - Nota. Detalle de CxC.'!K119)","v":""},null,null,null,{"$f":"IF('800111a - Nota. Detalle de CxC.'!K123=\"\",\"\",'800111a - Nota. Detalle de CxC.'!K123)","v":""},{"$f":"IF('800111a - Nota. Detalle de CxC.'!K124=\"\",\"\",'800111a - Nota. Detalle de CxC.'!K124)","v":""},{"$f":"IF('800111a - Nota. Detalle de CxC.'!K125=\"\",\"\",'800111a - Nota. Detalle de CxC.'!K125)","v":""},{"$f":"IF('800111a - Nota. Detalle de CxC.'!K126=\"\",\"\",'800111a - Nota. Detalle de CxC.'!K126)","v":""},{"$f":"IF('800111a - Nota. Detalle de CxC.'!K127=\"\",\"\",'800111a - Nota. Detalle de CxC.'!K127)","v":""},{"$f":"IF('800111a - Nota. Detalle de CxC.'!K128=\"\",\"\",'800111a - Nota. Detalle de CxC.'!K128)","v":""},{"$f":"IF('800111a - Nota. Detalle de CxC.'!K129=\"\",\"\",'800111a - Nota. Detalle de CxC.'!K129)","v":""},{"$f":"IF('800111a - Nota. Detalle de CxC.'!K130=\"\",\"\",'800111a - Nota. Detalle de CxC.'!K130)","v":""},{"$f":"IF('800111a - Nota. Detalle de CxC.'!K131=\"\",\"\",'800111a - Nota. Detalle de CxC.'!K131)","v":""},{"$f":"IF('800111a - Nota. Detalle de CxC.'!K132=\"\",\"\",'800111a - Nota. Detalle de CxC.'!K132)","v":""},{"$f":"IF('800111a - Nota. Detalle de CxC.'!K133=\"\",\"\",'800111a - Nota. Detalle de CxC.'!K133)","v":""},{"$f":"IF('800111a - Nota. Detalle de CxC.'!K134=\"\",\"\",'800111a - Nota. Detalle de CxC.'!K134)","v":""},{"$f":"IF('800111a - Nota. Detalle de CxC.'!K135=\"\",\"\",'800111a - Nota. Detalle de CxC.'!K135)","v":""},{"$f":"IF('800111a - Nota. Detalle de CxC.'!K136=\"\",\"\",'800111a - Nota. Detalle de CxC.'!K136)","v":""},{"$f":"IF('800111a - Nota. Detalle de CxC.'!K137=\"\",\"\",'800111a - Nota. Detalle de CxC.'!K137)","v":""},{"$f":"IF('800111a - Nota. Detalle de CxC.'!K138=\"\",\"\",'800111a - Nota. Detalle de CxC.'!K138)","v":""},{"$f":"IF('800111a - Nota. Detalle de CxC.'!K139=\"\",\"\",'800111a - Nota. Detalle de CxC.'!K139)","v":""},{"$f":"IF('800111a - Nota. Detalle de CxC.'!K140=\"\",\"\",'800111a - Nota. Detalle de CxC.'!K140)","v":""},{"$f":"IF('800111a - Nota. Detalle de CxC.'!K141=\"\",\"\",'800111a - Nota. Detalle de CxC.'!K141)","v":""},{"$f":"IF('800111a - Nota. Detalle de CxC.'!K142=\"\",\"\",'800111a - Nota. Detalle de CxC.'!K142)","v":""},{"$f":"IF('800111a - Nota. Detalle de CxC.'!K143=\"\",\"\",'800111a - Nota. Detalle de CxC.'!K143)","v":""},{"$f":"IF('800111a - Nota. Detalle de CxC.'!K144=\"\",\"\",'800111a - Nota. Detalle de CxC.'!K144)","v":""},{"$f":"IF('800111a - Nota. Detalle de CxC.'!K145=\"\",\"\",'800111a - Nota. Detalle de CxC.'!K145)","v":""},{"$f":"IF('800111a - Nota. Detalle de CxC.'!K146=\"\",\"\",'800111a - Nota. Detalle de CxC.'!K146)","v":""},{"$f":"IF('800111a - Nota. Detalle de CxC.'!K147=\"\",\"\",'800111a - Nota. Detalle de CxC.'!K147)","v":""},{"$f":"IF('800111a - Nota. Detalle de CxC.'!K148=\"\",\"\",'800111a - Nota. Detalle de CxC.'!K148)","v":""},{"$f":"IF('800111a - Nota. Detalle de CxC.'!K149=\"\",\"\",'800111a - Nota. Detalle de CxC.'!K149)","v":""},{"$f":"IF('800111a - Nota. Detalle de CxC.'!K150=\"\",\"\",'800111a - Nota. Detalle de CxC.'!K150)","v":""},{"$f":"IF('800111a - Nota. Detalle de CxC.'!K151=\"\",\"\",'800111a - Nota. Detalle de CxC.'!K151)","v":""},{"$f":"IF('800111a - Nota. Detalle de CxC.'!K152=\"\",\"\",'800111a - Nota. Detalle de CxC.'!K152)","v":""},{"$f":"IF('800111a - Nota. Detalle de CxC.'!K153=\"\",\"\",'800111a - Nota. Detalle de CxC.'!K153)","v":""},{"$f":"IF('800111a - Nota. Detalle de CxC.'!K154=\"\",\"\",'800111a - Nota. Detalle de CxC.'!K154)","v":""},{"$f":"IF('800111a - Nota. Detalle de CxC.'!K155=\"\",\"\",'800111a - Nota. Detalle de CxC.'!K155)","v":""},{"$f":"IF('800111a - Nota. Detalle de CxC.'!K156=\"\",\"\",'800111a - Nota. Detalle de CxC.'!K156)","v":""},{"$f":"IF('800111a - Nota. Detalle de CxC.'!K157=\"\",\"\",'800111a - Nota. Detalle de CxC.'!K157)","v":""},{"$f":"IF('800111a - Nota. Detalle de CxC.'!K158=\"\",\"\",'800111a - Nota. Detalle de CxC.'!K158)","v":""},{"$f":"IF('800111a - Nota. Detalle de CxC.'!K159=\"\",\"\",'800111a - Nota. Detalle de CxC.'!K159)","v":""},{"$f":"IF('800111a - Nota. Detalle de CxC.'!K160=\"\",\"\",'800111a - Nota. Detalle de CxC.'!K160)","v":""},{"$f":"IF('800111a - Nota. Detalle de CxC.'!K161=\"\",\"\",'800111a - Nota. Detalle de CxC.'!K161)","v":""},{"$f":"IF('800111a - Nota. Detalle de CxC.'!K162=\"\",\"\",'800111a - Nota. Detalle de CxC.'!K162)","v":""},{"$f":"IF('800111a - Nota. Detalle de CxC.'!K163=\"\",\"\",'800111a - Nota. Detalle de CxC.'!K163)","v":""},{"$f":"IF('800111a - Nota. Detalle de CxC.'!K164=\"\",\"\",'800111a - Nota. Detalle de CxC.'!K164)","v":""},{"$f":"IF('800111a - Nota. Detalle de CxC.'!K165=\"\",\"\",'800111a - Nota. Detalle de CxC.'!K165)","v":""},{"$f":"IF('800111a - Nota. Detalle de CxC.'!K166=\"\",\"\",'800111a - Nota. Detalle de CxC.'!K166)","v":""},{"$f":"IF('800111a - Nota. Detalle de CxC.'!K167=\"\",\"\",'800111a - Nota. Detalle de CxC.'!K167)","v":""},{"$f":"IF('800111a - Nota. Detalle de CxC.'!K168=\"\",\"\",'800111a - Nota. Detalle de CxC.'!K168)","v":""},{"$f":"IF('800111a - Nota. Detalle de CxC.'!K169=\"\",\"\",'800111a - Nota. Detalle de CxC.'!K169)","v":""},{"$f":"IF('800111a - Nota. Detalle de CxC.'!K170=\"\",\"\",'800111a - Nota. Detalle de CxC.'!K170)","v":""},{"$f":"IF('800111a - Nota. Detalle de CxC.'!K171=\"\",\"\",'800111a - Nota. Detalle de CxC.'!K171)","v":""},{"$f":"IF('800111a - Nota. Detalle de CxC.'!K172=\"\",\"\",'800111a - Nota. Detalle de CxC.'!K172)","v":""}]
[null,"1;1","co-svsp-core:RazonSocialDeudorCxC","Razón Social deudor",null,null,{"$f":"IF('800111a - Nota. Detalle de CxC.'!L17=\"\",\"\",'800111a - Nota. Detalle de CxC.'!L17)","v":""},{"$f":"IF('800111a - Nota. Detalle de CxC.'!L18=\"\",\"\",'800111a - Nota. Detalle de CxC.'!L18)","v":""},{"$f":"IF('800111a - Nota. Detalle de CxC.'!L19=\"\",\"\",'800111a - Nota. Detalle de CxC.'!L19)","v":""},{"$f":"IF('800111a - Nota. Detalle de CxC.'!L20=\"\",\"\",'800111a - Nota. Detalle de CxC.'!L20)","v":""},{"$f":"IF('800111a - Nota. Detalle de CxC.'!L21=\"\",\"\",'800111a - Nota. Detalle de CxC.'!L21)","v":""},{"$f":"IF('800111a - Nota. Detalle de CxC.'!L22=\"\",\"\",'800111a - Nota. Detalle de CxC.'!L22)","v":""},{"$f":"IF('800111a - Nota. Detalle de CxC.'!L23=\"\",\"\",'800111a - Nota. Detalle de CxC.'!L23)","v":""},{"$f":"IF('800111a - Nota. Detalle de CxC.'!L24=\"\",\"\",'800111a - Nota. Detalle de CxC.'!L24)","v":""},{"$f":"IF('800111a - Nota. Detalle de CxC.'!L25=\"\",\"\",'800111a - Nota. Detalle de CxC.'!L25)","v":""},{"$f":"IF('800111a - Nota. Detalle de CxC.'!L26=\"\",\"\",'800111a - Nota. Detalle de CxC.'!L26)","v":""},{"$f":"IF('800111a - Nota. Detalle de CxC.'!L27=\"\",\"\",'800111a - Nota. Detalle de CxC.'!L27)","v":""},{"$f":"IF('800111a - Nota. Detalle de CxC.'!L28=\"\",\"\",'800111a - Nota. Detalle de CxC.'!L28)","v":""},{"$f":"IF('800111a - Nota. Detalle de CxC.'!L29=\"\",\"\",'800111a - Nota. Detalle de CxC.'!L29)","v":""},{"$f":"IF('800111a - Nota. Detalle de CxC.'!L30=\"\",\"\",'800111a - Nota. Detalle de CxC.'!L30)","v":""},{"$f":"IF('800111a - Nota. Detalle de CxC.'!L31=\"\",\"\",'800111a - Nota. Detalle de CxC.'!L31)","v":""},{"$f":"IF('800111a - Nota. Detalle de CxC.'!L32=\"\",\"\",'800111a - Nota. Detalle de CxC.'!L32)","v":""},{"$f":"IF('800111a - Nota. Detalle de CxC.'!L33=\"\",\"\",'800111a - Nota. Detalle de CxC.'!L33)","v":""},{"$f":"IF('800111a - Nota. Detalle de CxC.'!L34=\"\",\"\",'800111a - Nota. Detalle de CxC.'!L34)","v":""},{"$f":"IF('800111a - Nota. Detalle de CxC.'!L35=\"\",\"\",'800111a - Nota. Detalle de CxC.'!L35)","v":""},{"$f":"IF('800111a - Nota. Detalle de CxC.'!L36=\"\",\"\",'800111a - Nota. Detalle de CxC.'!L36)","v":""},{"$f":"IF('800111a - Nota. Detalle de CxC.'!L37=\"\",\"\",'800111a - Nota. Detalle de CxC.'!L37)","v":""},{"$f":"IF('800111a - Nota. Detalle de CxC.'!L38=\"\",\"\",'800111a - Nota. Detalle de CxC.'!L38)","v":""},{"$f":"IF('800111a - Nota. Detalle de CxC.'!L39=\"\",\"\",'800111a - Nota. Detalle de CxC.'!L39)","v":""},{"$f":"IF('800111a - Nota. Detalle de CxC.'!L40=\"\",\"\",'800111a - Nota. Detalle de CxC.'!L40)","v":""},{"$f":"IF('800111a - Nota. Detalle de CxC.'!L41=\"\",\"\",'800111a - Nota. Detalle de CxC.'!L41)","v":""},{"$f":"IF('800111a - Nota. Detalle de CxC.'!L42=\"\",\"\",'800111a - Nota. Detalle de CxC.'!L42)","v":""},{"$f":"IF('800111a - Nota. Detalle de CxC.'!L43=\"\",\"\",'800111a - Nota. Detalle de CxC.'!L43)","v":""},{"$f":"IF('800111a - Nota. Detalle de CxC.'!L44=\"\",\"\",'800111a - Nota. Detalle de CxC.'!L44)","v":""},{"$f":"IF('800111a - Nota. Detalle de CxC.'!L45=\"\",\"\",'800111a - Nota. Detalle de CxC.'!L45)","v":""},{"$f":"IF('800111a - Nota. Detalle de CxC.'!L46=\"\",\"\",'800111a - Nota. Detalle de CxC.'!L46)","v":""},{"$f":"IF('800111a - Nota. Detalle de CxC.'!L47=\"\",\"\",'800111a - Nota. Detalle de CxC.'!L47)","v":""},{"$f":"IF('800111a - Nota. Detalle de CxC.'!L48=\"\",\"\",'800111a - Nota. Detalle de CxC.'!L48)","v":""},{"$f":"IF('800111a - Nota. Detalle de CxC.'!L49=\"\",\"\",'800111a - Nota. Detalle de CxC.'!L49)","v":""},{"$f":"IF('800111a - Nota. Detalle de CxC.'!L50=\"\",\"\",'800111a - Nota. Detalle de CxC.'!L50)","v":""},{"$f":"IF('800111a - Nota. Detalle de CxC.'!L51=\"\",\"\",'800111a - Nota. Detalle de CxC.'!L51)","v":""},{"$f":"IF('800111a - Nota. Detalle de CxC.'!L52=\"\",\"\",'800111a - Nota. Detalle de CxC.'!L52)","v":""},{"$f":"IF('800111a - Nota. Detalle de CxC.'!L53=\"\",\"\",'800111a - Nota. Detalle de CxC.'!L53)","v":""},{"$f":"IF('800111a - Nota. Detalle de CxC.'!L54=\"\",\"\",'800111a - Nota. Detalle de CxC.'!L54)","v":""},{"$f":"IF('800111a - Nota. Detalle de CxC.'!L55=\"\",\"\",'800111a - Nota. Detalle de CxC.'!L55)","v":""},{"$f":"IF('800111a - Nota. Detalle de CxC.'!L56=\"\",\"\",'800111a - Nota. Detalle de CxC.'!L56)","v":""},{"$f":"IF('800111a - Nota. Detalle de CxC.'!L57=\"\",\"\",'800111a - Nota. Detalle de CxC.'!L57)","v":""},{"$f":"IF('800111a - Nota. Detalle de CxC.'!L58=\"\",\"\",'800111a - Nota. Detalle de CxC.'!L58)","v":""},{"$f":"IF('800111a - Nota. Detalle de CxC.'!L59=\"\",\"\",'800111a - Nota. Detalle de CxC.'!L59)","v":""},{"$f":"IF('800111a - Nota. Detalle de CxC.'!L60=\"\",\"\",'800111a - Nota. Detalle de CxC.'!L60)","v":""},{"$f":"IF('800111a - Nota. Detalle de CxC.'!L61=\"\",\"\",'800111a - Nota. Detalle de CxC.'!L61)","v":""},{"$f":"IF('800111a - Nota. Detalle de CxC.'!L62=\"\",\"\",'800111a - Nota. Detalle de CxC.'!L62)","v":""},{"$f":"IF('800111a - Nota. Detalle de CxC.'!L63=\"\",\"\",'800111a - Nota. Detalle de CxC.'!L63)","v":""},{"$f":"IF('800111a - Nota. Detalle de CxC.'!L64=\"\",\"\",'800111a - Nota. Detalle de CxC.'!L64)","v":""},{"$f":"IF('800111a - Nota. Detalle de CxC.'!L65=\"\",\"\",'800111a - Nota. Detalle de CxC.'!L65)","v":""},{"$f":"IF('800111a - Nota. Detalle de CxC.'!L66=\"\",\"\",'800111a - Nota. Detalle de CxC.'!L66)","v":""},null,null,null,{"$f":"IF('800111a - Nota. Detalle de CxC.'!L70=\"\",\"\",'800111a - Nota. Detalle de CxC.'!L70)","v":""},{"$f":"IF('800111a - Nota. Detalle de CxC.'!L71=\"\",\"\",'800111a - Nota. Detalle de CxC.'!L71)","v":""},{"$f":"IF('800111a - Nota. Detalle de CxC.'!L72=\"\",\"\",'800111a - Nota. Detalle de CxC.'!L72)","v":""},{"$f":"IF('800111a - Nota. Detalle de CxC.'!L73=\"\",\"\",'800111a - Nota. Detalle de CxC.'!L73)","v":""},{"$f":"IF('800111a - Nota. Detalle de CxC.'!L74=\"\",\"\",'800111a - Nota. Detalle de CxC.'!L74)","v":""},{"$f":"IF('800111a - Nota. Detalle de CxC.'!L75=\"\",\"\",'800111a - Nota. Detalle de CxC.'!L75)","v":""},{"$f":"IF('800111a - Nota. Detalle de CxC.'!L76=\"\",\"\",'800111a - Nota. Detalle de CxC.'!L76)","v":""},{"$f":"IF('800111a - Nota. Detalle de CxC.'!L77=\"\",\"\",'800111a - Nota. Detalle de CxC.'!L77)","v":""},{"$f":"IF('800111a - Nota. Detalle de CxC.'!L78=\"\",\"\",'800111a - Nota. Detalle de CxC.'!L78)","v":""},{"$f":"IF('800111a - Nota. Detalle de CxC.'!L79=\"\",\"\",'800111a - Nota. Detalle de CxC.'!L79)","v":""},{"$f":"IF('800111a - Nota. Detalle de CxC.'!L80=\"\",\"\",'800111a - Nota. Detalle de CxC.'!L80)","v":""},{"$f":"IF('800111a - Nota. Detalle de CxC.'!L81=\"\",\"\",'800111a - Nota. Detalle de CxC.'!L81)","v":""},{"$f":"IF('800111a - Nota. Detalle de CxC.'!L82=\"\",\"\",'800111a - Nota. Detalle de CxC.'!L82)","v":""},{"$f":"IF('800111a - Nota. Detalle de CxC.'!L83=\"\",\"\",'800111a - Nota. Detalle de CxC.'!L83)","v":""},{"$f":"IF('800111a - Nota. Detalle de CxC.'!L84=\"\",\"\",'800111a - Nota. Detalle de CxC.'!L84)","v":""},{"$f":"IF('800111a - Nota. Detalle de CxC.'!L85=\"\",\"\",'800111a - Nota. Detalle de CxC.'!L85)","v":""},{"$f":"IF('800111a - Nota. Detalle de CxC.'!L86=\"\",\"\",'800111a - Nota. Detalle de CxC.'!L86)","v":""},{"$f":"IF('800111a - Nota. Detalle de CxC.'!L87=\"\",\"\",'800111a - Nota. Detalle de CxC.'!L87)","v":""},{"$f":"IF('800111a - Nota. Detalle de CxC.'!L88=\"\",\"\",'800111a - Nota. Detalle de CxC.'!L88)","v":""},{"$f":"IF('800111a - Nota. Detalle de CxC.'!L89=\"\",\"\",'800111a - Nota. Detalle de CxC.'!L89)","v":""},{"$f":"IF('800111a - Nota. Detalle de CxC.'!L90=\"\",\"\",'800111a - Nota. Detalle de CxC.'!L90)","v":""},{"$f":"IF('800111a - Nota. Detalle de CxC.'!L91=\"\",\"\",'800111a - Nota. Detalle de CxC.'!L91)","v":""},{"$f":"IF('800111a - Nota. Detalle de CxC.'!L92=\"\",\"\",'800111a - Nota. Detalle de CxC.'!L92)","v":""},{"$f":"IF('800111a - Nota. Detalle de CxC.'!L93=\"\",\"\",'800111a - Nota. Detalle de CxC.'!L93)","v":""},{"$f":"IF('800111a - Nota. Detalle de CxC.'!L94=\"\",\"\",'800111a - Nota. Detalle de CxC.'!L94)","v":""},{"$f":"IF('800111a - Nota. Detalle de CxC.'!L95=\"\",\"\",'800111a - Nota. Detalle de CxC.'!L95)","v":""},{"$f":"IF('800111a - Nota. Detalle de CxC.'!L96=\"\",\"\",'800111a - Nota. Detalle de CxC.'!L96)","v":""},{"$f":"IF('800111a - Nota. Detalle de CxC.'!L97=\"\",\"\",'800111a - Nota. Detalle de CxC.'!L97)","v":""},{"$f":"IF('800111a - Nota. Detalle de CxC.'!L98=\"\",\"\",'800111a - Nota. Detalle de CxC.'!L98)","v":""},{"$f":"IF('800111a - Nota. Detalle de CxC.'!L99=\"\",\"\",'800111a - Nota. Detalle de CxC.'!L99)","v":""},{"$f":"IF('800111a - Nota. Detalle de CxC.'!L100=\"\",\"\",'800111a - Nota. Detalle de CxC.'!L100)","v":""},{"$f":"IF('800111a - Nota. Detalle de CxC.'!L101=\"\",\"\",'800111a - Nota. Detalle de CxC.'!L101)","v":""},{"$f":"IF('800111a - Nota. Detalle de CxC.'!L102=\"\",\"\",'800111a - Nota. Detalle de CxC.'!L102)","v":""},{"$f":"IF('800111a - Nota. Detalle de CxC.'!L103=\"\",\"\",'800111a - Nota. Detalle de CxC.'!L103)","v":""},{"$f":"IF('800111a - Nota. Detalle de CxC.'!L104=\"\",\"\",'800111a - Nota. Detalle de CxC.'!L104)","v":""},{"$f":"IF('800111a - Nota. Detalle de CxC.'!L105=\"\",\"\",'800111a - Nota. Detalle de CxC.'!L105)","v":""},{"$f":"IF('800111a - Nota. Detalle de CxC.'!L106=\"\",\"\",'800111a - Nota. Detalle de CxC.'!L106)","v":""},{"$f":"IF('800111a - Nota. Detalle de CxC.'!L107=\"\",\"\",'800111a - Nota. Detalle de CxC.'!L107)","v":""},{"$f":"IF('800111a - Nota. Detalle de CxC.'!L108=\"\",\"\",'800111a - Nota. Detalle de CxC.'!L108)","v":""},{"$f":"IF('800111a - Nota. Detalle de CxC.'!L109=\"\",\"\",'800111a - Nota. Detalle de CxC.'!L109)","v":""},{"$f":"IF('800111a - Nota. Detalle de CxC.'!L110=\"\",\"\",'800111a - Nota. Detalle de CxC.'!L110)","v":""},{"$f":"IF('800111a - Nota. Detalle de CxC.'!L111=\"\",\"\",'800111a - Nota. Detalle de CxC.'!L111)","v":""},{"$f":"IF('800111a - Nota. Detalle de CxC.'!L112=\"\",\"\",'800111a - Nota. Detalle de CxC.'!L112)","v":""},{"$f":"IF('800111a - Nota. Detalle de CxC.'!L113=\"\",\"\",'800111a - Nota. Detalle de CxC.'!L113)","v":""},{"$f":"IF('800111a - Nota. Detalle de CxC.'!L114=\"\",\"\",'800111a - Nota. Detalle de CxC.'!L114)","v":""},{"$f":"IF('800111a - Nota. Detalle de CxC.'!L115=\"\",\"\",'800111a - Nota. Detalle de CxC.'!L115)","v":""},{"$f":"IF('800111a - Nota. Detalle de CxC.'!L116=\"\",\"\",'800111a - Nota. Detalle de CxC.'!L116)","v":""},{"$f":"IF('800111a - Nota. Detalle de CxC.'!L117=\"\",\"\",'800111a - Nota. Detalle de CxC.'!L117)","v":""},{"$f":"IF('800111a - Nota. Detalle de CxC.'!L118=\"\",\"\",'800111a - Nota. Detalle de CxC.'!L118)","v":""},{"$f":"IF('800111a - Nota. Detalle de CxC.'!L119=\"\",\"\",'800111a - Nota. Detalle de CxC.'!L119)","v":""},null,null,null,{"$f":"IF('800111a - Nota. Detalle de CxC.'!L123=\"\",\"\",'800111a - Nota. Detalle de CxC.'!L123)","v":""},{"$f":"IF('800111a - Nota. Detalle de CxC.'!L124=\"\",\"\",'800111a - Nota. Detalle de CxC.'!L124)","v":""},{"$f":"IF('800111a - Nota. Detalle de CxC.'!L125=\"\",\"\",'800111a - Nota. Detalle de CxC.'!L125)","v":""},{"$f":"IF('800111a - Nota. Detalle de CxC.'!L126=\"\",\"\",'800111a - Nota. Detalle de CxC.'!L126)","v":""},{"$f":"IF('800111a - Nota. Detalle de CxC.'!L127=\"\",\"\",'800111a - Nota. Detalle de CxC.'!L127)","v":""},{"$f":"IF('800111a - Nota. Detalle de CxC.'!L128=\"\",\"\",'800111a - Nota. Detalle de CxC.'!L128)","v":""},{"$f":"IF('800111a - Nota. Detalle de CxC.'!L129=\"\",\"\",'800111a - Nota. Detalle de CxC.'!L129)","v":""},{"$f":"IF('800111a - Nota. Detalle de CxC.'!L130=\"\",\"\",'800111a - Nota. Detalle de CxC.'!L130)","v":""},{"$f":"IF('800111a - Nota. Detalle de CxC.'!L131=\"\",\"\",'800111a - Nota. Detalle de CxC.'!L131)","v":""},{"$f":"IF('800111a - Nota. Detalle de CxC.'!L132=\"\",\"\",'800111a - Nota. Detalle de CxC.'!L132)","v":""},{"$f":"IF('800111a - Nota. Detalle de CxC.'!L133=\"\",\"\",'800111a - Nota. Detalle de CxC.'!L133)","v":""},{"$f":"IF('800111a - Nota. Detalle de CxC.'!L134=\"\",\"\",'800111a - Nota. Detalle de CxC.'!L134)","v":""},{"$f":"IF('800111a - Nota. Detalle de CxC.'!L135=\"\",\"\",'800111a - Nota. Detalle de CxC.'!L135)","v":""},{"$f":"IF('800111a - Nota. Detalle de CxC.'!L136=\"\",\"\",'800111a - Nota. Detalle de CxC.'!L136)","v":""},{"$f":"IF('800111a - Nota. Detalle de CxC.'!L137=\"\",\"\",'800111a - Nota. Detalle de CxC.'!L137)","v":""},{"$f":"IF('800111a - Nota. Detalle de CxC.'!L138=\"\",\"\",'800111a - Nota. Detalle de CxC.'!L138)","v":""},{"$f":"IF('800111a - Nota. Detalle de CxC.'!L139=\"\",\"\",'800111a - Nota. Detalle de CxC.'!L139)","v":""},{"$f":"IF('800111a - Nota. Detalle de CxC.'!L140=\"\",\"\",'800111a - Nota. Detalle de CxC.'!L140)","v":""},{"$f":"IF('800111a - Nota. Detalle de CxC.'!L141=\"\",\"\",'800111a - Nota. Detalle de CxC.'!L141)","v":""},{"$f":"IF('800111a - Nota. Detalle de CxC.'!L142=\"\",\"\",'800111a - Nota. Detalle de CxC.'!L142)","v":""},{"$f":"IF('800111a - Nota. Detalle de CxC.'!L143=\"\",\"\",'800111a - Nota. Detalle de CxC.'!L143)","v":""},{"$f":"IF('800111a - Nota. Detalle de CxC.'!L144=\"\",\"\",'800111a - Nota. Detalle de CxC.'!L144)","v":""},{"$f":"IF('800111a - Nota. Detalle de CxC.'!L145=\"\",\"\",'800111a - Nota. Detalle de CxC.'!L145)","v":""},{"$f":"IF('800111a - Nota. Detalle de CxC.'!L146=\"\",\"\",'800111a - Nota. Detalle de CxC.'!L146)","v":""},{"$f":"IF('800111a - Nota. Detalle de CxC.'!L147=\"\",\"\",'800111a - Nota. Detalle de CxC.'!L147)","v":""},{"$f":"IF('800111a - Nota. Detalle de CxC.'!L148=\"\",\"\",'800111a - Nota. Detalle de CxC.'!L148)","v":""},{"$f":"IF('800111a - Nota. Detalle de CxC.'!L149=\"\",\"\",'800111a - Nota. Detalle de CxC.'!L149)","v":""},{"$f":"IF('800111a - Nota. Detalle de CxC.'!L150=\"\",\"\",'800111a - Nota. Detalle de CxC.'!L150)","v":""},{"$f":"IF('800111a - Nota. Detalle de CxC.'!L151=\"\",\"\",'800111a - Nota. Detalle de CxC.'!L151)","v":""},{"$f":"IF('800111a - Nota. Detalle de CxC.'!L152=\"\",\"\",'800111a - Nota. Detalle de CxC.'!L152)","v":""},{"$f":"IF('800111a - Nota. Detalle de CxC.'!L153=\"\",\"\",'800111a - Nota. Detalle de CxC.'!L153)","v":""},{"$f":"IF('800111a - Nota. Detalle de CxC.'!L154=\"\",\"\",'800111a - Nota. Detalle de CxC.'!L154)","v":""},{"$f":"IF('800111a - Nota. Detalle de CxC.'!L155=\"\",\"\",'800111a - Nota. Detalle de CxC.'!L155)","v":""},{"$f":"IF('800111a - Nota. Detalle de CxC.'!L156=\"\",\"\",'800111a - Nota. Detalle de CxC.'!L156)","v":""},{"$f":"IF('800111a - Nota. Detalle de CxC.'!L157=\"\",\"\",'800111a - Nota. Detalle de CxC.'!L157)","v":""},{"$f":"IF('800111a - Nota. Detalle de CxC.'!L158=\"\",\"\",'800111a - Nota. Detalle de CxC.'!L158)","v":""},{"$f":"IF('800111a - Nota. Detalle de CxC.'!L159=\"\",\"\",'800111a - Nota. Detalle de CxC.'!L159)","v":""},{"$f":"IF('800111a - Nota. Detalle de CxC.'!L160=\"\",\"\",'800111a - Nota. Detalle de CxC.'!L160)","v":""},{"$f":"IF('800111a - Nota. Detalle de CxC.'!L161=\"\",\"\",'800111a - Nota. Detalle de CxC.'!L161)","v":""},{"$f":"IF('800111a - Nota. Detalle de CxC.'!L162=\"\",\"\",'800111a - Nota. Detalle de CxC.'!L162)","v":""},{"$f":"IF('800111a - Nota. Detalle de CxC.'!L163=\"\",\"\",'800111a - Nota. Detalle de CxC.'!L163)","v":""},{"$f":"IF('800111a - Nota. Detalle de CxC.'!L164=\"\",\"\",'800111a - Nota. Detalle de CxC.'!L164)","v":""},{"$f":"IF('800111a - Nota. Detalle de CxC.'!L165=\"\",\"\",'800111a - Nota. Detalle de CxC.'!L165)","v":""},{"$f":"IF('800111a - Nota. Detalle de CxC.'!L166=\"\",\"\",'800111a - Nota. Detalle de CxC.'!L166)","v":""},{"$f":"IF('800111a - Nota. Detalle de CxC.'!L167=\"\",\"\",'800111a - Nota. Detalle de CxC.'!L167)","v":""},{"$f":"IF('800111a - Nota. Detalle de CxC.'!L168=\"\",\"\",'800111a - Nota. Detalle de CxC.'!L168)","v":""},{"$f":"IF('800111a - Nota. Detalle de CxC.'!L169=\"\",\"\",'800111a - Nota. Detalle de CxC.'!L169)","v":""},{"$f":"IF('800111a - Nota. Detalle de CxC.'!L170=\"\",\"\",'800111a - Nota. Detalle de CxC.'!L170)","v":""},{"$f":"IF('800111a - Nota. Detalle de CxC.'!L171=\"\",\"\",'800111a - Nota. Detalle de CxC.'!L171)","v":""},{"$f":"IF('800111a - Nota. Detalle de CxC.'!L172=\"\",\"\",'800111a - Nota. Detalle de CxC.'!L172)","v":""}]
[null,"1;1","co-svsp-core:DireccionDeudorCxC","Dirección deudor",null,null,{"$f":"IF('800111a - Nota. Detalle de CxC.'!M17=\"\",\"\",'800111a - Nota. Detalle de CxC.'!M17)","v":""},{"$f":"IF('800111a - Nota. Detalle de CxC.'!M18=\"\",\"\",'800111a - Nota. Detalle de CxC.'!M18)","v":""},{"$f":"IF('800111a - Nota. Detalle de CxC.'!M19=\"\",\"\",'800111a - Nota. Detalle de CxC.'!M19)","v":""},{"$f":"IF('800111a - Nota. Detalle de CxC.'!M20=\"\",\"\",'800111a - Nota. Detalle de CxC.'!M20)","v":""},{"$f":"IF('800111a - Nota. Detalle de CxC.'!M21=\"\",\"\",'800111a - Nota. Detalle de CxC.'!M21)","v":""},{"$f":"IF('800111a - Nota. Detalle de CxC.'!M22=\"\",\"\",'800111a - Nota. Detalle de CxC.'!M22)","v":""},{"$f":"IF('800111a - Nota. Detalle de CxC.'!M23=\"\",\"\",'800111a - Nota. Detalle de CxC.'!M23)","v":""},{"$f":"IF('800111a - Nota. Detalle de CxC.'!M24=\"\",\"\",'800111a - Nota. Detalle de CxC.'!M24)","v":""},{"$f":"IF('800111a - Nota. Detalle de CxC.'!M25=\"\",\"\",'800111a - Nota. Detalle de CxC.'!M25)","v":""},{"$f":"IF('800111a - Nota. Detalle de CxC.'!M26=\"\",\"\",'800111a - Nota. Detalle de CxC.'!M26)","v":""},{"$f":"IF('800111a - Nota. Detalle de CxC.'!M27=\"\",\"\",'800111a - Nota. Detalle de CxC.'!M27)","v":""},{"$f":"IF('800111a - Nota. Detalle de CxC.'!M28=\"\",\"\",'800111a - Nota. Detalle de CxC.'!M28)","v":""},{"$f":"IF('800111a - Nota. Detalle de CxC.'!M29=\"\",\"\",'800111a - Nota. Detalle de CxC.'!M29)","v":""},{"$f":"IF('800111a - Nota. Detalle de CxC.'!M30=\"\",\"\",'800111a - Nota. Detalle de CxC.'!M30)","v":""},{"$f":"IF('800111a - Nota. Detalle de CxC.'!M31=\"\",\"\",'800111a - Nota. Detalle de CxC.'!M31)","v":""},{"$f":"IF('800111a - Nota. Detalle de CxC.'!M32=\"\",\"\",'800111a - Nota. Detalle de CxC.'!M32)","v":""},{"$f":"IF('800111a - Nota. Detalle de CxC.'!M33=\"\",\"\",'800111a - Nota. Detalle de CxC.'!M33)","v":""},{"$f":"IF('800111a - Nota. Detalle de CxC.'!M34=\"\",\"\",'800111a - Nota. Detalle de CxC.'!M34)","v":""},{"$f":"IF('800111a - Nota. Detalle de CxC.'!M35=\"\",\"\",'800111a - Nota. Detalle de CxC.'!M35)","v":""},{"$f":"IF('800111a - Nota. Detalle de CxC.'!M36=\"\",\"\",'800111a - Nota. Detalle de CxC.'!M36)","v":""},{"$f":"IF('800111a - Nota. Detalle de CxC.'!M37=\"\",\"\",'800111a - Nota. Detalle de CxC.'!M37)","v":""},{"$f":"IF('800111a - Nota. Detalle de CxC.'!M38=\"\",\"\",'800111a - Nota. Detalle de CxC.'!M38)","v":""},{"$f":"IF('800111a - Nota. Detalle de CxC.'!M39=\"\",\"\",'800111a - Nota. Detalle de CxC.'!M39)","v":""},{"$f":"IF('800111a - Nota. Detalle de CxC.'!M40=\"\",\"\",'800111a - Nota. Detalle de CxC.'!M40)","v":""},{"$f":"IF('800111a - Nota. Detalle de CxC.'!M41=\"\",\"\",'800111a - Nota. Detalle de CxC.'!M41)","v":""},{"$f":"IF('800111a - Nota. Detalle de CxC.'!M42=\"\",\"\",'800111a - Nota. Detalle de CxC.'!M42)","v":""},{"$f":"IF('800111a - Nota. Detalle de CxC.'!M43=\"\",\"\",'800111a - Nota. Detalle de CxC.'!M43)","v":""},{"$f":"IF('800111a - Nota. Detalle de CxC.'!M44=\"\",\"\",'800111a - Nota. Detalle de CxC.'!M44)","v":""},{"$f":"IF('800111a - Nota. Detalle de CxC.'!M45=\"\",\"\",'800111a - Nota. Detalle de CxC.'!M45)","v":""},{"$f":"IF('800111a - Nota. Detalle de CxC.'!M46=\"\",\"\",'800111a - Nota. Detalle de CxC.'!M46)","v":""},{"$f":"IF('800111a - Nota. Detalle de CxC.'!M47=\"\",\"\",'800111a - Nota. Detalle de CxC.'!M47)","v":""},{"$f":"IF('800111a - Nota. Detalle de CxC.'!M48=\"\",\"\",'800111a - Nota. Detalle de CxC.'!M48)","v":""},{"$f":"IF('800111a - Nota. Detalle de CxC.'!M49=\"\",\"\",'800111a - Nota. Detalle de CxC.'!M49)","v":""},{"$f":"IF('800111a - Nota. Detalle de CxC.'!M50=\"\",\"\",'800111a - Nota. Detalle de CxC.'!M50)","v":""},{"$f":"IF('800111a - Nota. Detalle de CxC.'!M51=\"\",\"\",'800111a - Nota. Detalle de CxC.'!M51)","v":""},{"$f":"IF('800111a - Nota. Detalle de CxC.'!M52=\"\",\"\",'800111a - Nota. Detalle de CxC.'!M52)","v":""},{"$f":"IF('800111a - Nota. Detalle de CxC.'!M53=\"\",\"\",'800111a - Nota. Detalle de CxC.'!M53)","v":""},{"$f":"IF('800111a - Nota. Detalle de CxC.'!M54=\"\",\"\",'800111a - Nota. Detalle de CxC.'!M54)","v":""},{"$f":"IF('800111a - Nota. Detalle de CxC.'!M55=\"\",\"\",'800111a - Nota. Detalle de CxC.'!M55)","v":""},{"$f":"IF('800111a - Nota. Detalle de CxC.'!M56=\"\",\"\",'800111a - Nota. Detalle de CxC.'!M56)","v":""},{"$f":"IF('800111a - Nota. Detalle de CxC.'!M57=\"\",\"\",'800111a - Nota. Detalle de CxC.'!M57)","v":""},{"$f":"IF('800111a - Nota. Detalle de CxC.'!M58=\"\",\"\",'800111a - Nota. Detalle de CxC.'!M58)","v":""},{"$f":"IF('800111a - Nota. Detalle de CxC.'!M59=\"\",\"\",'800111a - Nota. Detalle de CxC.'!M59)","v":""},{"$f":"IF('800111a - Nota. Detalle de CxC.'!M60=\"\",\"\",'800111a - Nota. Detalle de CxC.'!M60)","v":""},{"$f":"IF('800111a - Nota. Detalle de CxC.'!M61=\"\",\"\",'800111a - Nota. Detalle de CxC.'!M61)","v":""},{"$f":"IF('800111a - Nota. Detalle de CxC.'!M62=\"\",\"\",'800111a - Nota. Detalle de CxC.'!M62)","v":""},{"$f":"IF('800111a - Nota. Detalle de CxC.'!M63=\"\",\"\",'800111a - Nota. Detalle de CxC.'!M63)","v":""},{"$f":"IF('800111a - Nota. Detalle de CxC.'!M64=\"\",\"\",'800111a - Nota. Detalle de CxC.'!M64)","v":""},{"$f":"IF('800111a - Nota. Detalle de CxC.'!M65=\"\",\"\",'800111a - Nota. Detalle de CxC.'!M65)","v":""},{"$f":"IF('800111a - Nota. Detalle de CxC.'!M66=\"\",\"\",'800111a - Nota. Detalle de CxC.'!M66)","v":""},null,null,null,{"$f":"IF('800111a - Nota. Detalle de CxC.'!M70=\"\",\"\",'800111a - Nota. Detalle de CxC.'!M70)","v":""},{"$f":"IF('800111a - Nota. Detalle de CxC.'!M71=\"\",\"\",'800111a - Nota. Detalle de CxC.'!M71)","v":""},{"$f":"IF('800111a - Nota. Detalle de CxC.'!M72=\"\",\"\",'800111a - Nota. Detalle de CxC.'!M72)","v":""},{"$f":"IF('800111a - Nota. Detalle de CxC.'!M73=\"\",\"\",'800111a - Nota. Detalle de CxC.'!M73)","v":""},{"$f":"IF('800111a - Nota. Detalle de CxC.'!M74=\"\",\"\",'800111a - Nota. Detalle de CxC.'!M74)","v":""},{"$f":"IF('800111a - Nota. Detalle de CxC.'!M75=\"\",\"\",'800111a - Nota. Detalle de CxC.'!M75)","v":""},{"$f":"IF('800111a - Nota. Detalle de CxC.'!M76=\"\",\"\",'800111a - Nota. Detalle de CxC.'!M76)","v":""},{"$f":"IF('800111a - Nota. Detalle de CxC.'!M77=\"\",\"\",'800111a - Nota. Detalle de CxC.'!M77)","v":""},{"$f":"IF('800111a - Nota. Detalle de CxC.'!M78=\"\",\"\",'800111a - Nota. Detalle de CxC.'!M78)","v":""},{"$f":"IF('800111a - Nota. Detalle de CxC.'!M79=\"\",\"\",'800111a - Nota. Detalle de CxC.'!M79)","v":""},{"$f":"IF('800111a - Nota. Detalle de CxC.'!M80=\"\",\"\",'800111a - Nota. Detalle de CxC.'!M80)","v":""},{"$f":"IF('800111a - Nota. Detalle de CxC.'!M81=\"\",\"\",'800111a - Nota. Detalle de CxC.'!M81)","v":""},{"$f":"IF('800111a - Nota. Detalle de CxC.'!M82=\"\",\"\",'800111a - Nota. Detalle de CxC.'!M82)","v":""},{"$f":"IF('800111a - Nota. Detalle de CxC.'!M83=\"\",\"\",'800111a - Nota. Detalle de CxC.'!M83)","v":""},{"$f":"IF('800111a - Nota. Detalle de CxC.'!M84=\"\",\"\",'800111a - Nota. Detalle de CxC.'!M84)","v":""},{"$f":"IF('800111a - Nota. Detalle de CxC.'!M85=\"\",\"\",'800111a - Nota. Detalle de CxC.'!M85)","v":""},{"$f":"IF('800111a - Nota. Detalle de CxC.'!M86=\"\",\"\",'800111a - Nota. Detalle de CxC.'!M86)","v":""},{"$f":"IF('800111a - Nota. Detalle de CxC.'!M87=\"\",\"\",'800111a - Nota. Detalle de CxC.'!M87)","v":""},{"$f":"IF('800111a - Nota. Detalle de CxC.'!M88=\"\",\"\",'800111a - Nota. Detalle de CxC.'!M88)","v":""},{"$f":"IF('800111a - Nota. Detalle de CxC.'!M89=\"\",\"\",'800111a - Nota. Detalle de CxC.'!M89)","v":""},{"$f":"IF('800111a - Nota. Detalle de CxC.'!M90=\"\",\"\",'800111a - Nota. Detalle de CxC.'!M90)","v":""},{"$f":"IF('800111a - Nota. Detalle de CxC.'!M91=\"\",\"\",'800111a - Nota. Detalle de CxC.'!M91)","v":""},{"$f":"IF('800111a - Nota. Detalle de CxC.'!M92=\"\",\"\",'800111a - Nota. Detalle de CxC.'!M92)","v":""},{"$f":"IF('800111a - Nota. Detalle de CxC.'!M93=\"\",\"\",'800111a - Nota. Detalle de CxC.'!M93)","v":""},{"$f":"IF('800111a - Nota. Detalle de CxC.'!M94=\"\",\"\",'800111a - Nota. Detalle de CxC.'!M94)","v":""},{"$f":"IF('800111a - Nota. Detalle de CxC.'!M95=\"\",\"\",'800111a - Nota. Detalle de CxC.'!M95)","v":""},{"$f":"IF('800111a - Nota. Detalle de CxC.'!M96=\"\",\"\",'800111a - Nota. Detalle de CxC.'!M96)","v":""},{"$f":"IF('800111a - Nota. Detalle de CxC.'!M97=\"\",\"\",'800111a - Nota. Detalle de CxC.'!M97)","v":""},{"$f":"IF('800111a - Nota. Detalle de CxC.'!M98=\"\",\"\",'800111a - Nota. Detalle de CxC.'!M98)","v":""},{"$f":"IF('800111a - Nota. Detalle de CxC.'!M99=\"\",\"\",'800111a - Nota. Detalle de CxC.'!M99)","v":""},{"$f":"IF('800111a - Nota. Detalle de CxC.'!M100=\"\",\"\",'800111a - Nota. Detalle de CxC.'!M100)","v":""},{"$f":"IF('800111a - Nota. Detalle de CxC.'!M101=\"\",\"\",'800111a - Nota. Detalle de CxC.'!M101)","v":""},{"$f":"IF('800111a - Nota. Detalle de CxC.'!M102=\"\",\"\",'800111a - Nota. Detalle de CxC.'!M102)","v":""},{"$f":"IF('800111a - Nota. Detalle de CxC.'!M103=\"\",\"\",'800111a - Nota. Detalle de CxC.'!M103)","v":""},{"$f":"IF('800111a - Nota. Detalle de CxC.'!M104=\"\",\"\",'800111a - Nota. Detalle de CxC.'!M104)","v":""},{"$f":"IF('800111a - Nota. Detalle de CxC.'!M105=\"\",\"\",'800111a - Nota. Detalle de CxC.'!M105)","v":""},{"$f":"IF('800111a - Nota. Detalle de CxC.'!M106=\"\",\"\",'800111a - Nota. Detalle de CxC.'!M106)","v":""},{"$f":"IF('800111a - Nota. Detalle de CxC.'!M107=\"\",\"\",'800111a - Nota. Detalle de CxC.'!M107)","v":""},{"$f":"IF('800111a - Nota. Detalle de CxC.'!M108=\"\",\"\",'800111a - Nota. Detalle de CxC.'!M108)","v":""},{"$f":"IF('800111a - Nota. Detalle de CxC.'!M109=\"\",\"\",'800111a - Nota. Detalle de CxC.'!M109)","v":""},{"$f":"IF('800111a - Nota. Detalle de CxC.'!M110=\"\",\"\",'800111a - Nota. Detalle de CxC.'!M110)","v":""},{"$f":"IF('800111a - Nota. Detalle de CxC.'!M111=\"\",\"\",'800111a - Nota. Detalle de CxC.'!M111)","v":""},{"$f":"IF('800111a - Nota. Detalle de CxC.'!M112=\"\",\"\",'800111a - Nota. Detalle de CxC.'!M112)","v":""},{"$f":"IF('800111a - Nota. Detalle de CxC.'!M113=\"\",\"\",'800111a - Nota. Detalle de CxC.'!M113)","v":""},{"$f":"IF('800111a - Nota. Detalle de CxC.'!M114=\"\",\"\",'800111a - Nota. Detalle de CxC.'!M114)","v":""},{"$f":"IF('800111a - Nota. Detalle de CxC.'!M115=\"\",\"\",'800111a - Nota. Detalle de CxC.'!M115)","v":""},{"$f":"IF('800111a - Nota. Detalle de CxC.'!M116=\"\",\"\",'800111a - Nota. Detalle de CxC.'!M116)","v":""},{"$f":"IF('800111a - Nota. Detalle de CxC.'!M117=\"\",\"\",'800111a - Nota. Detalle de CxC.'!M117)","v":""},{"$f":"IF('800111a - Nota. Detalle de CxC.'!M118=\"\",\"\",'800111a - Nota. Detalle de CxC.'!M118)","v":""},{"$f":"IF('800111a - Nota. Detalle de CxC.'!M119=\"\",\"\",'800111a - Nota. Detalle de CxC.'!M119)","v":""},null,null,null,{"$f":"IF('800111a - Nota. Detalle de CxC.'!M123=\"\",\"\",'800111a - Nota. Detalle de CxC.'!M123)","v":""},{"$f":"IF('800111a - Nota. Detalle de CxC.'!M124=\"\",\"\",'800111a - Nota. Detalle de CxC.'!M124)","v":""},{"$f":"IF('800111a - Nota. Detalle de CxC.'!M125=\"\",\"\",'800111a - Nota. Detalle de CxC.'!M125)","v":""},{"$f":"IF('800111a - Nota. Detalle de CxC.'!M126=\"\",\"\",'800111a - Nota. Detalle de CxC.'!M126)","v":""},{"$f":"IF('800111a - Nota. Detalle de CxC.'!M127=\"\",\"\",'800111a - Nota. Detalle de CxC.'!M127)","v":""},{"$f":"IF('800111a - Nota. Detalle de CxC.'!M128=\"\",\"\",'800111a - Nota. Detalle de CxC.'!M128)","v":""},{"$f":"IF('800111a - Nota. Detalle de CxC.'!M129=\"\",\"\",'800111a - Nota. Detalle de CxC.'!M129)","v":""},{"$f":"IF('800111a - Nota. Detalle de CxC.'!M130=\"\",\"\",'800111a - Nota. Detalle de CxC.'!M130)","v":""},{"$f":"IF('800111a - Nota. Detalle de CxC.'!M131=\"\",\"\",'800111a - Nota. Detalle de CxC.'!M131)","v":""},{"$f":"IF('800111a - Nota. Detalle de CxC.'!M132=\"\",\"\",'800111a - Nota. Detalle de CxC.'!M132)","v":""},{"$f":"IF('800111a - Nota. Detalle de CxC.'!M133=\"\",\"\",'800111a - Nota. Detalle de CxC.'!M133)","v":""},{"$f":"IF('800111a - Nota. Detalle de CxC.'!M134=\"\",\"\",'800111a - Nota. Detalle de CxC.'!M134)","v":""},{"$f":"IF('800111a - Nota. Detalle de CxC.'!M135=\"\",\"\",'800111a - Nota. Detalle de CxC.'!M135)","v":""},{"$f":"IF('800111a - Nota. Detalle de CxC.'!M136=\"\",\"\",'800111a - Nota. Detalle de CxC.'!M136)","v":""},{"$f":"IF('800111a - Nota. Detalle de CxC.'!M137=\"\",\"\",'800111a - Nota. Detalle de CxC.'!M137)","v":""},{"$f":"IF('800111a - Nota. Detalle de CxC.'!M138=\"\",\"\",'800111a - Nota. Detalle de CxC.'!M138)","v":""},{"$f":"IF('800111a - Nota. Detalle de CxC.'!M139=\"\",\"\",'800111a - Nota. Detalle de CxC.'!M139)","v":""},{"$f":"IF('800111a - Nota. Detalle de CxC.'!M140=\"\",\"\",'800111a - Nota. Detalle de CxC.'!M140)","v":""},{"$f":"IF('800111a - Nota. Detalle de CxC.'!M141=\"\",\"\",'800111a - Nota. Detalle de CxC.'!M141)","v":""},{"$f":"IF('800111a - Nota. Detalle de CxC.'!M142=\"\",\"\",'800111a - Nota. Detalle de CxC.'!M142)","v":""},{"$f":"IF('800111a - Nota. Detalle de CxC.'!M143=\"\",\"\",'800111a - Nota. Detalle de CxC.'!M143)","v":""},{"$f":"IF('800111a - Nota. Detalle de CxC.'!M144=\"\",\"\",'800111a - Nota. Detalle de CxC.'!M144)","v":""},{"$f":"IF('800111a - Nota. Detalle de CxC.'!M145=\"\",\"\",'800111a - Nota. Detalle de CxC.'!M145)","v":""},{"$f":"IF('800111a - Nota. Detalle de CxC.'!M146=\"\",\"\",'800111a - Nota. Detalle de CxC.'!M146)","v":""},{"$f":"IF('800111a - Nota. Detalle de CxC.'!M147=\"\",\"\",'800111a - Nota. Detalle de CxC.'!M147)","v":""},{"$f":"IF('800111a - Nota. Detalle de CxC.'!M148=\"\",\"\",'800111a - Nota. Detalle de CxC.'!M148)","v":""},{"$f":"IF('800111a - Nota. Detalle de CxC.'!M149=\"\",\"\",'800111a - Nota. Detalle de CxC.'!M149)","v":""},{"$f":"IF('800111a - Nota. Detalle de CxC.'!M150=\"\",\"\",'800111a - Nota. Detalle de CxC.'!M150)","v":""},{"$f":"IF('800111a - Nota. Detalle de CxC.'!M151=\"\",\"\",'800111a - Nota. Detalle de CxC.'!M151)","v":""},{"$f":"IF('800111a - Nota. Detalle de CxC.'!M152=\"\",\"\",'800111a - Nota. Detalle de CxC.'!M152)","v":""},{"$f":"IF('800111a - Nota. Detalle de CxC.'!M153=\"\",\"\",'800111a - Nota. Detalle de CxC.'!M153)","v":""},{"$f":"IF('800111a - Nota. Detalle de CxC.'!M154=\"\",\"\",'800111a - Nota. Detalle de CxC.'!M154)","v":""},{"$f":"IF('800111a - Nota. Detalle de CxC.'!M155=\"\",\"\",'800111a - Nota. Detalle de CxC.'!M155)","v":""},{"$f":"IF('800111a - Nota. Detalle de CxC.'!M156=\"\",\"\",'800111a - Nota. Detalle de CxC.'!M156)","v":""},{"$f":"IF('800111a - Nota. Detalle de CxC.'!M157=\"\",\"\",'800111a - Nota. Detalle de CxC.'!M157)","v":""},{"$f":"IF('800111a - Nota. Detalle de CxC.'!M158=\"\",\"\",'800111a - Nota. Detalle de CxC.'!M158)","v":""},{"$f":"IF('800111a - Nota. Detalle de CxC.'!M159=\"\",\"\",'800111a - Nota. Detalle de CxC.'!M159)","v":""},{"$f":"IF('800111a - Nota. Detalle de CxC.'!M160=\"\",\"\",'800111a - Nota. Detalle de CxC.'!M160)","v":""},{"$f":"IF('800111a - Nota. Detalle de CxC.'!M161=\"\",\"\",'800111a - Nota. Detalle de CxC.'!M161)","v":""},{"$f":"IF('800111a - Nota. Detalle de CxC.'!M162=\"\",\"\",'800111a - Nota. Detalle de CxC.'!M162)","v":""},{"$f":"IF('800111a - Nota. Detalle de CxC.'!M163=\"\",\"\",'800111a - Nota. Detalle de CxC.'!M163)","v":""},{"$f":"IF('800111a - Nota. Detalle de CxC.'!M164=\"\",\"\",'800111a - Nota. Detalle de CxC.'!M164)","v":""},{"$f":"IF('800111a - Nota. Detalle de CxC.'!M165=\"\",\"\",'800111a - Nota. Detalle de CxC.'!M165)","v":""},{"$f":"IF('800111a - Nota. Detalle de CxC.'!M166=\"\",\"\",'800111a - Nota. Detalle de CxC.'!M166)","v":""},{"$f":"IF('800111a - Nota. Detalle de CxC.'!M167=\"\",\"\",'800111a - Nota. Detalle de CxC.'!M167)","v":""},{"$f":"IF('800111a - Nota. Detalle de CxC.'!M168=\"\",\"\",'800111a - Nota. Detalle de CxC.'!M168)","v":""},{"$f":"IF('800111a - Nota. Detalle de CxC.'!M169=\"\",\"\",'800111a - Nota. Detalle de CxC.'!M169)","v":""},{"$f":"IF('800111a - Nota. Detalle de CxC.'!M170=\"\",\"\",'800111a - Nota. Detalle de CxC.'!M170)","v":""},{"$f":"IF('800111a - Nota. Detalle de CxC.'!M171=\"\",\"\",'800111a - Nota. Detalle de CxC.'!M171)","v":""},{"$f":"IF('800111a - Nota. Detalle de CxC.'!M172=\"\",\"\",'800111a - Nota. Detalle de CxC.'!M172)","v":""}]
[null,"1;1","co-svsp-core:DepartamentoDeudorCxC","Departamento deudor",null,null,{"$f":"IF('800111a - Nota. Detalle de CxC.'!N17=\"\",\"\",'800111a - Nota. Detalle de CxC.'!N17)","v":""},{"$f":"IF('800111a - Nota. Detalle de CxC.'!N18=\"\",\"\",'800111a - Nota. Detalle de CxC.'!N18)","v":""},{"$f":"IF('800111a - Nota. Detalle de CxC.'!N19=\"\",\"\",'800111a - Nota. Detalle de CxC.'!N19)","v":""},{"$f":"IF('800111a - Nota. Detalle de CxC.'!N20=\"\",\"\",'800111a - Nota. Detalle de CxC.'!N20)","v":""},{"$f":"IF('800111a - Nota. Detalle de CxC.'!N21=\"\",\"\",'800111a - Nota. Detalle de CxC.'!N21)","v":""},{"$f":"IF('800111a - Nota. Detalle de CxC.'!N22=\"\",\"\",'800111a - Nota. Detalle de CxC.'!N22)","v":""},{"$f":"IF('800111a - Nota. Detalle de CxC.'!N23=\"\",\"\",'800111a - Nota. Detalle de CxC.'!N23)","v":""},{"$f":"IF('800111a - Nota. Detalle de CxC.'!N24=\"\",\"\",'800111a - Nota. Detalle de CxC.'!N24)","v":""},{"$f":"IF('800111a - Nota. Detalle de CxC.'!N25=\"\",\"\",'800111a - Nota. Detalle de CxC.'!N25)","v":""},{"$f":"IF('800111a - Nota. Detalle de CxC.'!N26=\"\",\"\",'800111a - Nota. Detalle de CxC.'!N26)","v":""},{"$f":"IF('800111a - Nota. Detalle de CxC.'!N27=\"\",\"\",'800111a - Nota. Detalle de CxC.'!N27)","v":""},{"$f":"IF('800111a - Nota. Detalle de CxC.'!N28=\"\",\"\",'800111a - Nota. Detalle de CxC.'!N28)","v":""},{"$f":"IF('800111a - Nota. Detalle de CxC.'!N29=\"\",\"\",'800111a - Nota. Detalle de CxC.'!N29)","v":""},{"$f":"IF('800111a - Nota. Detalle de CxC.'!N30=\"\",\"\",'800111a - Nota. Detalle de CxC.'!N30)","v":""},{"$f":"IF('800111a - Nota. Detalle de CxC.'!N31=\"\",\"\",'800111a - Nota. Detalle de CxC.'!N31)","v":""},{"$f":"IF('800111a - Nota. Detalle de CxC.'!N32=\"\",\"\",'800111a - Nota. Detalle de CxC.'!N32)","v":""},{"$f":"IF('800111a - Nota. Detalle de CxC.'!N33=\"\",\"\",'800111a - Nota. Detalle de CxC.'!N33)","v":""},{"$f":"IF('800111a - Nota. Detalle de CxC.'!N34=\"\",\"\",'800111a - Nota. Detalle de CxC.'!N34)","v":""},{"$f":"IF('800111a - Nota. Detalle de CxC.'!N35=\"\",\"\",'800111a - Nota. Detalle de CxC.'!N35)","v":""},{"$f":"IF('800111a - Nota. Detalle de CxC.'!N36=\"\",\"\",'800111a - Nota. Detalle de CxC.'!N36)","v":""},{"$f":"IF('800111a - Nota. Detalle de CxC.'!N37=\"\",\"\",'800111a - Nota. Detalle de CxC.'!N37)","v":""},{"$f":"IF('800111a - Nota. Detalle de CxC.'!N38=\"\",\"\",'800111a - Nota. Detalle de CxC.'!N38)","v":""},{"$f":"IF('800111a - Nota. Detalle de CxC.'!N39=\"\",\"\",'800111a - Nota. Detalle de CxC.'!N39)","v":""},{"$f":"IF('800111a - Nota. Detalle de CxC.'!N40=\"\",\"\",'800111a - Nota. Detalle de CxC.'!N40)","v":""},{"$f":"IF('800111a - Nota. Detalle de CxC.'!N41=\"\",\"\",'800111a - Nota. Detalle de CxC.'!N41)","v":""},{"$f":"IF('800111a - Nota. Detalle de CxC.'!N42=\"\",\"\",'800111a - Nota. Detalle de CxC.'!N42)","v":""},{"$f":"IF('800111a - Nota. Detalle de CxC.'!N43=\"\",\"\",'800111a - Nota. Detalle de CxC.'!N43)","v":""},{"$f":"IF('800111a - Nota. Detalle de CxC.'!N44=\"\",\"\",'800111a - Nota. Detalle de CxC.'!N44)","v":""},{"$f":"IF('800111a - Nota. Detalle de CxC.'!N45=\"\",\"\",'800111a - Nota. Detalle de CxC.'!N45)","v":""},{"$f":"IF('800111a - Nota. Detalle de CxC.'!N46=\"\",\"\",'800111a - Nota. Detalle de CxC.'!N46)","v":""},{"$f":"IF('800111a - Nota. Detalle de CxC.'!N47=\"\",\"\",'800111a - Nota. Detalle de CxC.'!N47)","v":""},{"$f":"IF('800111a - Nota. Detalle de CxC.'!N48=\"\",\"\",'800111a - Nota. Detalle de CxC.'!N48)","v":""},{"$f":"IF('800111a - Nota. Detalle de CxC.'!N49=\"\",\"\",'800111a - Nota. Detalle de CxC.'!N49)","v":""},{"$f":"IF('800111a - Nota. Detalle de CxC.'!N50=\"\",\"\",'800111a - Nota. Detalle de CxC.'!N50)","v":""},{"$f":"IF('800111a - Nota. Detalle de CxC.'!N51=\"\",\"\",'800111a - Nota. Detalle de CxC.'!N51)","v":""},{"$f":"IF('800111a - Nota. Detalle de CxC.'!N52=\"\",\"\",'800111a - Nota. Detalle de CxC.'!N52)","v":""},{"$f":"IF('800111a - Nota. Detalle de CxC.'!N53=\"\",\"\",'800111a - Nota. Detalle de CxC.'!N53)","v":""},{"$f":"IF('800111a - Nota. Detalle de CxC.'!N54=\"\",\"\",'800111a - Nota. Detalle de CxC.'!N54)","v":""},{"$f":"IF('800111a - Nota. Detalle de CxC.'!N55=\"\",\"\",'800111a - Nota. Detalle de CxC.'!N55)","v":""},{"$f":"IF('800111a - Nota. Detalle de CxC.'!N56=\"\",\"\",'800111a - Nota. Detalle de CxC.'!N56)","v":""},{"$f":"IF('800111a - Nota. Detalle de CxC.'!N57=\"\",\"\",'800111a - Nota. Detalle de CxC.'!N57)","v":""},{"$f":"IF('800111a - Nota. Detalle de CxC.'!N58=\"\",\"\",'800111a - Nota. Detalle de CxC.'!N58)","v":""},{"$f":"IF('800111a - Nota. Detalle de CxC.'!N59=\"\",\"\",'800111a - Nota. Detalle de CxC.'!N59)","v":""},{"$f":"IF('800111a - Nota. Detalle de CxC.'!N60=\"\",\"\",'800111a - Nota. Detalle de CxC.'!N60)","v":""},{"$f":"IF('800111a - Nota. Detalle de CxC.'!N61=\"\",\"\",'800111a - Nota. Detalle de CxC.'!N61)","v":""},{"$f":"IF('800111a - Nota. Detalle de CxC.'!N62=\"\",\"\",'800111a - Nota. Detalle de CxC.'!N62)","v":""},{"$f":"IF('800111a - Nota. Detalle de CxC.'!N63=\"\",\"\",'800111a - Nota. Detalle de CxC.'!N63)","v":""},{"$f":"IF('800111a - Nota. Detalle de CxC.'!N64=\"\",\"\",'800111a - Nota. Detalle de CxC.'!N64)","v":""},{"$f":"IF('800111a - Nota. Detalle de CxC.'!N65=\"\",\"\",'800111a - Nota. Detalle de CxC.'!N65)","v":""},{"$f":"IF('800111a - Nota. Detalle de CxC.'!N66=\"\",\"\",'800111a - Nota. Detalle de CxC.'!N66)","v":""},null,null,null,{"$f":"IF('800111a - Nota. Detalle de CxC.'!N70=\"\",\"\",'800111a - Nota. Detalle de CxC.'!N70)","v":""},{"$f":"IF('800111a - Nota. Detalle de CxC.'!N71=\"\",\"\",'800111a - Nota. Detalle de CxC.'!N71)","v":""},{"$f":"IF('800111a - Nota. Detalle de CxC.'!N72=\"\",\"\",'800111a - Nota. Detalle de CxC.'!N72)","v":""},{"$f":"IF('800111a - Nota. Detalle de CxC.'!N73=\"\",\"\",'800111a - Nota. Detalle de CxC.'!N73)","v":""},{"$f":"IF('800111a - Nota. Detalle de CxC.'!N74=\"\",\"\",'800111a - Nota. Detalle de CxC.'!N74)","v":""},{"$f":"IF('800111a - Nota. Detalle de CxC.'!N75=\"\",\"\",'800111a - Nota. Detalle de CxC.'!N75)","v":""},{"$f":"IF('800111a - Nota. Detalle de CxC.'!N76=\"\",\"\",'800111a - Nota. Detalle de CxC.'!N76)","v":""},{"$f":"IF('800111a - Nota. Detalle de CxC.'!N77=\"\",\"\",'800111a - Nota. Detalle de CxC.'!N77)","v":""},{"$f":"IF('800111a - Nota. Detalle de CxC.'!N78=\"\",\"\",'800111a - Nota. Detalle de CxC.'!N78)","v":""},{"$f":"IF('800111a - Nota. Detalle de CxC.'!N79=\"\",\"\",'800111a - Nota. Detalle de CxC.'!N79)","v":""},{"$f":"IF('800111a - Nota. Detalle de CxC.'!N80=\"\",\"\",'800111a - Nota. Detalle de CxC.'!N80)","v":""},{"$f":"IF('800111a - Nota. Detalle de CxC.'!N81=\"\",\"\",'800111a - Nota. Detalle de CxC.'!N81)","v":""},{"$f":"IF('800111a - Nota. Detalle de CxC.'!N82=\"\",\"\",'800111a - Nota. Detalle de CxC.'!N82)","v":""},{"$f":"IF('800111a - Nota. Detalle de CxC.'!N83=\"\",\"\",'800111a - Nota. Detalle de CxC.'!N83)","v":""},{"$f":"IF('800111a - Nota. Detalle de CxC.'!N84=\"\",\"\",'800111a - Nota. Detalle de CxC.'!N84)","v":""},{"$f":"IF('800111a - Nota. Detalle de CxC.'!N85=\"\",\"\",'800111a - Nota. Detalle de CxC.'!N85)","v":""},{"$f":"IF('800111a - Nota. Detalle de CxC.'!N86=\"\",\"\",'800111a - Nota. Detalle de CxC.'!N86)","v":""},{"$f":"IF('800111a - Nota. Detalle de CxC.'!N87=\"\",\"\",'800111a - Nota. Detalle de CxC.'!N87)","v":""},{"$f":"IF('800111a - Nota. Detalle de CxC.'!N88=\"\",\"\",'800111a - Nota. Detalle de CxC.'!N88)","v":""},{"$f":"IF('800111a - Nota. Detalle de CxC.'!N89=\"\",\"\",'800111a - Nota. Detalle de CxC.'!N89)","v":""},{"$f":"IF('800111a - Nota. Detalle de CxC.'!N90=\"\",\"\",'800111a - Nota. Detalle de CxC.'!N90)","v":""},{"$f":"IF('800111a - Nota. Detalle de CxC.'!N91=\"\",\"\",'800111a - Nota. Detalle de CxC.'!N91)","v":""},{"$f":"IF('800111a - Nota. Detalle de CxC.'!N92=\"\",\"\",'800111a - Nota. Detalle de CxC.'!N92)","v":""},{"$f":"IF('800111a - Nota. Detalle de CxC.'!N93=\"\",\"\",'800111a - Nota. Detalle de CxC.'!N93)","v":""},{"$f":"IF('800111a - Nota. Detalle de CxC.'!N94=\"\",\"\",'800111a - Nota. Detalle de CxC.'!N94)","v":""},{"$f":"IF('800111a - Nota. Detalle de CxC.'!N95=\"\",\"\",'800111a - Nota. Detalle de CxC.'!N95)","v":""},{"$f":"IF('800111a - Nota. Detalle de CxC.'!N96=\"\",\"\",'800111a - Nota. Detalle de CxC.'!N96)","v":""},{"$f":"IF('800111a - Nota. Detalle de CxC.'!N97=\"\",\"\",'800111a - Nota. Detalle de CxC.'!N97)","v":""},{"$f":"IF('800111a - Nota. Detalle de CxC.'!N98=\"\",\"\",'800111a - Nota. Detalle de CxC.'!N98)","v":""},{"$f":"IF('800111a - Nota. Detalle de CxC.'!N99=\"\",\"\",'800111a - Nota. Detalle de CxC.'!N99)","v":""},{"$f":"IF('800111a - Nota. Detalle de CxC.'!N100=\"\",\"\",'800111a - Nota. Detalle de CxC.'!N100)","v":""},{"$f":"IF('800111a - Nota. Detalle de CxC.'!N101=\"\",\"\",'800111a - Nota. Detalle de CxC.'!N101)","v":""},{"$f":"IF('800111a - Nota. Detalle de CxC.'!N102=\"\",\"\",'800111a - Nota. Detalle de CxC.'!N102)","v":""},{"$f":"IF('800111a - Nota. Detalle de CxC.'!N103=\"\",\"\",'800111a - Nota. Detalle de CxC.'!N103)","v":""},{"$f":"IF('800111a - Nota. Detalle de CxC.'!N104=\"\",\"\",'800111a - Nota. Detalle de CxC.'!N104)","v":""},{"$f":"IF('800111a - Nota. Detalle de CxC.'!N105=\"\",\"\",'800111a - Nota. Detalle de CxC.'!N105)","v":""},{"$f":"IF('800111a - Nota. Detalle de CxC.'!N106=\"\",\"\",'800111a - Nota. Detalle de CxC.'!N106)","v":""},{"$f":"IF('800111a - Nota. Detalle de CxC.'!N107=\"\",\"\",'800111a - Nota. Detalle de CxC.'!N107)","v":""},{"$f":"IF('800111a - Nota. Detalle de CxC.'!N108=\"\",\"\",'800111a - Nota. Detalle de CxC.'!N108)","v":""},{"$f":"IF('800111a - Nota. Detalle de CxC.'!N109=\"\",\"\",'800111a - Nota. Detalle de CxC.'!N109)","v":""},{"$f":"IF('800111a - Nota. Detalle de CxC.'!N110=\"\",\"\",'800111a - Nota. Detalle de CxC.'!N110)","v":""},{"$f":"IF('800111a - Nota. Detalle de CxC.'!N111=\"\",\"\",'800111a - Nota. Detalle de CxC.'!N111)","v":""},{"$f":"IF('800111a - Nota. Detalle de CxC.'!N112=\"\",\"\",'800111a - Nota. Detalle de CxC.'!N112)","v":""},{"$f":"IF('800111a - Nota. Detalle de CxC.'!N113=\"\",\"\",'800111a - Nota. Detalle de CxC.'!N113)","v":""},{"$f":"IF('800111a - Nota. Detalle de CxC.'!N114=\"\",\"\",'800111a - Nota. Detalle de CxC.'!N114)","v":""},{"$f":"IF('800111a - Nota. Detalle de CxC.'!N115=\"\",\"\",'800111a - Nota. Detalle de CxC.'!N115)","v":""},{"$f":"IF('800111a - Nota. Detalle de CxC.'!N116=\"\",\"\",'800111a - Nota. Detalle de CxC.'!N116)","v":""},{"$f":"IF('800111a - Nota. Detalle de CxC.'!N117=\"\",\"\",'800111a - Nota. Detalle de CxC.'!N117)","v":""},{"$f":"IF('800111a - Nota. Detalle de CxC.'!N118=\"\",\"\",'800111a - Nota. Detalle de CxC.'!N118)","v":""},{"$f":"IF('800111a - Nota. Detalle de CxC.'!N119=\"\",\"\",'800111a - Nota. Detalle de CxC.'!N119)","v":""},null,null,null,{"$f":"IF('800111a - Nota. Detalle de CxC.'!N123=\"\",\"\",'800111a - Nota. Detalle de CxC.'!N123)","v":""},{"$f":"IF('800111a - Nota. Detalle de CxC.'!N124=\"\",\"\",'800111a - Nota. Detalle de CxC.'!N124)","v":""},{"$f":"IF('800111a - Nota. Detalle de CxC.'!N125=\"\",\"\",'800111a - Nota. Detalle de CxC.'!N125)","v":""},{"$f":"IF('800111a - Nota. Detalle de CxC.'!N126=\"\",\"\",'800111a - Nota. Detalle de CxC.'!N126)","v":""},{"$f":"IF('800111a - Nota. Detalle de CxC.'!N127=\"\",\"\",'800111a - Nota. Detalle de CxC.'!N127)","v":""},{"$f":"IF('800111a - Nota. Detalle de CxC.'!N128=\"\",\"\",'800111a - Nota. Detalle de CxC.'!N128)","v":""},{"$f":"IF('800111a - Nota. Detalle de CxC.'!N129=\"\",\"\",'800111a - Nota. Detalle de CxC.'!N129)","v":""},{"$f":"IF('800111a - Nota. Detalle de CxC.'!N130=\"\",\"\",'800111a - Nota. Detalle de CxC.'!N130)","v":""},{"$f":"IF('800111a - Nota. Detalle de CxC.'!N131=\"\",\"\",'800111a - Nota. Detalle de CxC.'!N131)","v":""},{"$f":"IF('800111a - Nota. Detalle de CxC.'!N132=\"\",\"\",'800111a - Nota. Detalle de CxC.'!N132)","v":""},{"$f":"IF('800111a - Nota. Detalle de CxC.'!N133=\"\",\"\",'800111a - Nota. Detalle de CxC.'!N133)","v":""},{"$f":"IF('800111a - Nota. Detalle de CxC.'!N134=\"\",\"\",'800111a - Nota. Detalle de CxC.'!N134)","v":""},{"$f":"IF('800111a - Nota. Detalle de CxC.'!N135=\"\",\"\",'800111a - Nota. Detalle de CxC.'!N135)","v":""},{"$f":"IF('800111a - Nota. Detalle de CxC.'!N136=\"\",\"\",'800111a - Nota. Detalle de CxC.'!N136)","v":""},{"$f":"IF('800111a - Nota. Detalle de CxC.'!N137=\"\",\"\",'800111a - Nota. Detalle de CxC.'!N137)","v":""},{"$f":"IF('800111a - Nota. Detalle de CxC.'!N138=\"\",\"\",'800111a - Nota. Detalle de CxC.'!N138)","v":""},{"$f":"IF('800111a - Nota. Detalle de CxC.'!N139=\"\",\"\",'800111a - Nota. Detalle de CxC.'!N139)","v":""},{"$f":"IF('800111a - Nota. Detalle de CxC.'!N140=\"\",\"\",'800111a - Nota. Detalle de CxC.'!N140)","v":""},{"$f":"IF('800111a - Nota. Detalle de CxC.'!N141=\"\",\"\",'800111a - Nota. Detalle de CxC.'!N141)","v":""},{"$f":"IF('800111a - Nota. Detalle de CxC.'!N142=\"\",\"\",'800111a - Nota. Detalle de CxC.'!N142)","v":""},{"$f":"IF('800111a - Nota. Detalle de CxC.'!N143=\"\",\"\",'800111a - Nota. Detalle de CxC.'!N143)","v":""},{"$f":"IF('800111a - Nota. Detalle de CxC.'!N144=\"\",\"\",'800111a - Nota. Detalle de CxC.'!N144)","v":""},{"$f":"IF('800111a - Nota. Detalle de CxC.'!N145=\"\",\"\",'800111a - Nota. Detalle de CxC.'!N145)","v":""},{"$f":"IF('800111a - Nota. Detalle de CxC.'!N146=\"\",\"\",'800111a - Nota. Detalle de CxC.'!N146)","v":""},{"$f":"IF('800111a - Nota. Detalle de CxC.'!N147=\"\",\"\",'800111a - Nota. Detalle de CxC.'!N147)","v":""},{"$f":"IF('800111a - Nota. Detalle de CxC.'!N148=\"\",\"\",'800111a - Nota. Detalle de CxC.'!N148)","v":""},{"$f":"IF('800111a - Nota. Detalle de CxC.'!N149=\"\",\"\",'800111a - Nota. Detalle de CxC.'!N149)","v":""},{"$f":"IF('800111a - Nota. Detalle de CxC.'!N150=\"\",\"\",'800111a - Nota. Detalle de CxC.'!N150)","v":""},{"$f":"IF('800111a - Nota. Detalle de CxC.'!N151=\"\",\"\",'800111a - Nota. Detalle de CxC.'!N151)","v":""},{"$f":"IF('800111a - Nota. Detalle de CxC.'!N152=\"\",\"\",'800111a - Nota. Detalle de CxC.'!N152)","v":""},{"$f":"IF('800111a - Nota. Detalle de CxC.'!N153=\"\",\"\",'800111a - Nota. Detalle de CxC.'!N153)","v":""},{"$f":"IF('800111a - Nota. Detalle de CxC.'!N154=\"\",\"\",'800111a - Nota. Detalle de CxC.'!N154)","v":""},{"$f":"IF('800111a - Nota. Detalle de CxC.'!N155=\"\",\"\",'800111a - Nota. Detalle de CxC.'!N155)","v":""},{"$f":"IF('800111a - Nota. Detalle de CxC.'!N156=\"\",\"\",'800111a - Nota. Detalle de CxC.'!N156)","v":""},{"$f":"IF('800111a - Nota. Detalle de CxC.'!N157=\"\",\"\",'800111a - Nota. Detalle de CxC.'!N157)","v":""},{"$f":"IF('800111a - Nota. Detalle de CxC.'!N158=\"\",\"\",'800111a - Nota. Detalle de CxC.'!N158)","v":""},{"$f":"IF('800111a - Nota. Detalle de CxC.'!N159=\"\",\"\",'800111a - Nota. Detalle de CxC.'!N159)","v":""},{"$f":"IF('800111a - Nota. Detalle de CxC.'!N160=\"\",\"\",'800111a - Nota. Detalle de CxC.'!N160)","v":""},{"$f":"IF('800111a - Nota. Detalle de CxC.'!N161=\"\",\"\",'800111a - Nota. Detalle de CxC.'!N161)","v":""},{"$f":"IF('800111a - Nota. Detalle de CxC.'!N162=\"\",\"\",'800111a - Nota. Detalle de CxC.'!N162)","v":""},{"$f":"IF('800111a - Nota. Detalle de CxC.'!N163=\"\",\"\",'800111a - Nota. Detalle de CxC.'!N163)","v":""},{"$f":"IF('800111a - Nota. Detalle de CxC.'!N164=\"\",\"\",'800111a - Nota. Detalle de CxC.'!N164)","v":""},{"$f":"IF('800111a - Nota. Detalle de CxC.'!N165=\"\",\"\",'800111a - Nota. Detalle de CxC.'!N165)","v":""},{"$f":"IF('800111a - Nota. Detalle de CxC.'!N166=\"\",\"\",'800111a - Nota. Detalle de CxC.'!N166)","v":""},{"$f":"IF('800111a - Nota. Detalle de CxC.'!N167=\"\",\"\",'800111a - Nota. Detalle de CxC.'!N167)","v":""},{"$f":"IF('800111a - Nota. Detalle de CxC.'!N168=\"\",\"\",'800111a - Nota. Detalle de CxC.'!N168)","v":""},{"$f":"IF('800111a - Nota. Detalle de CxC.'!N169=\"\",\"\",'800111a - Nota. Detalle de CxC.'!N169)","v":""},{"$f":"IF('800111a - Nota. Detalle de CxC.'!N170=\"\",\"\",'800111a - Nota. Detalle de CxC.'!N170)","v":""},{"$f":"IF('800111a - Nota. Detalle de CxC.'!N171=\"\",\"\",'800111a - Nota. Detalle de CxC.'!N171)","v":""},{"$f":"IF('800111a - Nota. Detalle de CxC.'!N172=\"\",\"\",'800111a - Nota. Detalle de CxC.'!N172)","v":""}]
[null,"1;1","co-svsp-core:MunicipioDeudorCxC","Municipio deudor",null,null,{"$f":"IF('800111a - Nota. Detalle de CxC.'!O17=\"\",\"\",'800111a - Nota. Detalle de CxC.'!O17)","v":""},{"$f":"IF('800111a - Nota. Detalle de CxC.'!O18=\"\",\"\",'800111a - Nota. Detalle de CxC.'!O18)","v":""},{"$f":"IF('800111a - Nota. Detalle de CxC.'!O19=\"\",\"\",'800111a - Nota. Detalle de CxC.'!O19)","v":""},{"$f":"IF('800111a - Nota. Detalle de CxC.'!O20=\"\",\"\",'800111a - Nota. Detalle de CxC.'!O20)","v":""},{"$f":"IF('800111a - Nota. Detalle de CxC.'!O21=\"\",\"\",'800111a - Nota. Detalle de CxC.'!O21)","v":""},{"$f":"IF('800111a - Nota. Detalle de CxC.'!O22=\"\",\"\",'800111a - Nota. Detalle de CxC.'!O22)","v":""},{"$f":"IF('800111a - Nota. Detalle de CxC.'!O23=\"\",\"\",'800111a - Nota. Detalle de CxC.'!O23)","v":""},{"$f":"IF('800111a - Nota. Detalle de CxC.'!O24=\"\",\"\",'800111a - Nota. Detalle de CxC.'!O24)","v":""},{"$f":"IF('800111a - Nota. Detalle de CxC.'!O25=\"\",\"\",'800111a - Nota. Detalle de CxC.'!O25)","v":""},{"$f":"IF('800111a - Nota. Detalle de CxC.'!O26=\"\",\"\",'800111a - Nota. Detalle de CxC.'!O26)","v":""},{"$f":"IF('800111a - Nota. Detalle de CxC.'!O27=\"\",\"\",'800111a - Nota. Detalle de CxC.'!O27)","v":""},{"$f":"IF('800111a - Nota. Detalle de CxC.'!O28=\"\",\"\",'800111a - Nota. Detalle de CxC.'!O28)","v":""},{"$f":"IF('800111a - Nota. Detalle de CxC.'!O29=\"\",\"\",'800111a - Nota. Detalle de CxC.'!O29)","v":""},{"$f":"IF('800111a - Nota. Detalle de CxC.'!O30=\"\",\"\",'800111a - Nota. Detalle de CxC.'!O30)","v":""},{"$f":"IF('800111a - Nota. Detalle de CxC.'!O31=\"\",\"\",'800111a - Nota. Detalle de CxC.'!O31)","v":""},{"$f":"IF('800111a - Nota. Detalle de CxC.'!O32=\"\",\"\",'800111a - Nota. Detalle de CxC.'!O32)","v":""},{"$f":"IF('800111a - Nota. Detalle de CxC.'!O33=\"\",\"\",'800111a - Nota. Detalle de CxC.'!O33)","v":""},{"$f":"IF('800111a - Nota. Detalle de CxC.'!O34=\"\",\"\",'800111a - Nota. Detalle de CxC.'!O34)","v":""},{"$f":"IF('800111a - Nota. Detalle de CxC.'!O35=\"\",\"\",'800111a - Nota. Detalle de CxC.'!O35)","v":""},{"$f":"IF('800111a - Nota. Detalle de CxC.'!O36=\"\",\"\",'800111a - Nota. Detalle de CxC.'!O36)","v":""},{"$f":"IF('800111a - Nota. Detalle de CxC.'!O37=\"\",\"\",'800111a - Nota. Detalle de CxC.'!O37)","v":""},{"$f":"IF('800111a - Nota. Detalle de CxC.'!O38=\"\",\"\",'800111a - Nota. Detalle de CxC.'!O38)","v":""},{"$f":"IF('800111a - Nota. Detalle de CxC.'!O39=\"\",\"\",'800111a - Nota. Detalle de CxC.'!O39)","v":""},{"$f":"IF('800111a - Nota. Detalle de CxC.'!O40=\"\",\"\",'800111a - Nota. Detalle de CxC.'!O40)","v":""},{"$f":"IF('800111a - Nota. Detalle de CxC.'!O41=\"\",\"\",'800111a - Nota. Detalle de CxC.'!O41)","v":""},{"$f":"IF('800111a - Nota. Detalle de CxC.'!O42=\"\",\"\",'800111a - Nota. Detalle de CxC.'!O42)","v":""},{"$f":"IF('800111a - Nota. Detalle de CxC.'!O43=\"\",\"\",'800111a - Nota. Detalle de CxC.'!O43)","v":""},{"$f":"IF('800111a - Nota. Detalle de CxC.'!O44=\"\",\"\",'800111a - Nota. Detalle de CxC.'!O44)","v":""},{"$f":"IF('800111a - Nota. Detalle de CxC.'!O45=\"\",\"\",'800111a - Nota. Detalle de CxC.'!O45)","v":""},{"$f":"IF('800111a - Nota. Detalle de CxC.'!O46=\"\",\"\",'800111a - Nota. Detalle de CxC.'!O46)","v":""},{"$f":"IF('800111a - Nota. Detalle de CxC.'!O47=\"\",\"\",'800111a - Nota. Detalle de CxC.'!O47)","v":""},{"$f":"IF('800111a - Nota. Detalle de CxC.'!O48=\"\",\"\",'800111a - Nota. Detalle de CxC.'!O48)","v":""},{"$f":"IF('800111a - Nota. Detalle de CxC.'!O49=\"\",\"\",'800111a - Nota. Detalle de CxC.'!O49)","v":""},{"$f":"IF('800111a - Nota. Detalle de CxC.'!O50=\"\",\"\",'800111a - Nota. Detalle de CxC.'!O50)","v":""},{"$f":"IF('800111a - Nota. Detalle de CxC.'!O51=\"\",\"\",'800111a - Nota. Detalle de CxC.'!O51)","v":""},{"$f":"IF('800111a - Nota. Detalle de CxC.'!O52=\"\",\"\",'800111a - Nota. Detalle de CxC.'!O52)","v":""},{"$f":"IF('800111a - Nota. Detalle de CxC.'!O53=\"\",\"\",'800111a - Nota. Detalle de CxC.'!O53)","v":""},{"$f":"IF('800111a - Nota. Detalle de CxC.'!O54=\"\",\"\",'800111a - Nota. Detalle de CxC.'!O54)","v":""},{"$f":"IF('800111a - Nota. Detalle de CxC.'!O55=\"\",\"\",'800111a - Nota. Detalle de CxC.'!O55)","v":""},{"$f":"IF('800111a - Nota. Detalle de CxC.'!O56=\"\",\"\",'800111a - Nota. Detalle de CxC.'!O56)","v":""},{"$f":"IF('800111a - Nota. Detalle de CxC.'!O57=\"\",\"\",'800111a - Nota. Detalle de CxC.'!O57)","v":""},{"$f":"IF('800111a - Nota. Detalle de CxC.'!O58=\"\",\"\",'800111a - Nota. Detalle de CxC.'!O58)","v":""},{"$f":"IF('800111a - Nota. Detalle de CxC.'!O59=\"\",\"\",'800111a - Nota. Detalle de CxC.'!O59)","v":""},{"$f":"IF('800111a - Nota. Detalle de CxC.'!O60=\"\",\"\",'800111a - Nota. Detalle de CxC.'!O60)","v":""},{"$f":"IF('800111a - Nota. Detalle de CxC.'!O61=\"\",\"\",'800111a - Nota. Detalle de CxC.'!O61)","v":""},{"$f":"IF('800111a - Nota. Detalle de CxC.'!O62=\"\",\"\",'800111a - Nota. Detalle de CxC.'!O62)","v":""},{"$f":"IF('800111a - Nota. Detalle de CxC.'!O63=\"\",\"\",'800111a - Nota. Detalle de CxC.'!O63)","v":""},{"$f":"IF('800111a - Nota. Detalle de CxC.'!O64=\"\",\"\",'800111a - Nota. Detalle de CxC.'!O64)","v":""},{"$f":"IF('800111a - Nota. Detalle de CxC.'!O65=\"\",\"\",'800111a - Nota. Detalle de CxC.'!O65)","v":""},{"$f":"IF('800111a - Nota. Detalle de CxC.'!O66=\"\",\"\",'800111a - Nota. Detalle de CxC.'!O66)","v":""},null,null,null,{"$f":"IF('800111a - Nota. Detalle de CxC.'!O70=\"\",\"\",'800111a - Nota. Detalle de CxC.'!O70)","v":""},{"$f":"IF('800111a - Nota. Detalle de CxC.'!O71=\"\",\"\",'800111a - Nota. Detalle de CxC.'!O71)","v":""},{"$f":"IF('800111a - Nota. Detalle de CxC.'!O72=\"\",\"\",'800111a - Nota. Detalle de CxC.'!O72)","v":""},{"$f":"IF('800111a - Nota. Detalle de CxC.'!O73=\"\",\"\",'800111a - Nota. Detalle de CxC.'!O73)","v":""},{"$f":"IF('800111a - Nota. Detalle de CxC.'!O74=\"\",\"\",'800111a - Nota. Detalle de CxC.'!O74)","v":""},{"$f":"IF('800111a - Nota. Detalle de CxC.'!O75=\"\",\"\",'800111a - Nota. Detalle de CxC.'!O75)","v":""},{"$f":"IF('800111a - Nota. Detalle de CxC.'!O76=\"\",\"\",'800111a - Nota. Detalle de CxC.'!O76)","v":""},{"$f":"IF('800111a - Nota. Detalle de CxC.'!O77=\"\",\"\",'800111a - Nota. Detalle de CxC.'!O77)","v":""},{"$f":"IF('800111a - Nota. Detalle de CxC.'!O78=\"\",\"\",'800111a - Nota. Detalle de CxC.'!O78)","v":""},{"$f":"IF('800111a - Nota. Detalle de CxC.'!O79=\"\",\"\",'800111a - Nota. Detalle de CxC.'!O79)","v":""},{"$f":"IF('800111a - Nota. Detalle de CxC.'!O80=\"\",\"\",'800111a - Nota. Detalle de CxC.'!O80)","v":""},{"$f":"IF('800111a - Nota. Detalle de CxC.'!O81=\"\",\"\",'800111a - Nota. Detalle de CxC.'!O81)","v":""},{"$f":"IF('800111a - Nota. Detalle de CxC.'!O82=\"\",\"\",'800111a - Nota. Detalle de CxC.'!O82)","v":""},{"$f":"IF('800111a - Nota. Detalle de CxC.'!O83=\"\",\"\",'800111a - Nota. Detalle de CxC.'!O83)","v":""},{"$f":"IF('800111a - Nota. Detalle de CxC.'!O84=\"\",\"\",'800111a - Nota. Detalle de CxC.'!O84)","v":""},{"$f":"IF('800111a - Nota. Detalle de CxC.'!O85=\"\",\"\",'800111a - Nota. Detalle de CxC.'!O85)","v":""},{"$f":"IF('800111a - Nota. Detalle de CxC.'!O86=\"\",\"\",'800111a - Nota. Detalle de CxC.'!O86)","v":""},{"$f":"IF('800111a - Nota. Detalle de CxC.'!O87=\"\",\"\",'800111a - Nota. Detalle de CxC.'!O87)","v":""},{"$f":"IF('800111a - Nota. Detalle de CxC.'!O88=\"\",\"\",'800111a - Nota. Detalle de CxC.'!O88)","v":""},{"$f":"IF('800111a - Nota. Detalle de CxC.'!O89=\"\",\"\",'800111a - Nota. Detalle de CxC.'!O89)","v":""},{"$f":"IF('800111a - Nota. Detalle de CxC.'!O90=\"\",\"\",'800111a - Nota. Detalle de CxC.'!O90)","v":""},{"$f":"IF('800111a - Nota. Detalle de CxC.'!O91=\"\",\"\",'800111a - Nota. Detalle de CxC.'!O91)","v":""},{"$f":"IF('800111a - Nota. Detalle de CxC.'!O92=\"\",\"\",'800111a - Nota. Detalle de CxC.'!O92)","v":""},{"$f":"IF('800111a - Nota. Detalle de CxC.'!O93=\"\",\"\",'800111a - Nota. Detalle de CxC.'!O93)","v":""},{"$f":"IF('800111a - Nota. Detalle de CxC.'!O94=\"\",\"\",'800111a - Nota. Detalle de CxC.'!O94)","v":""},{"$f":"IF('800111a - Nota. Detalle de CxC.'!O95=\"\",\"\",'800111a - Nota. Detalle de CxC.'!O95)","v":""},{"$f":"IF('800111a - Nota. Detalle de CxC.'!O96=\"\",\"\",'800111a - Nota. Detalle de CxC.'!O96)","v":""},{"$f":"IF('800111a - Nota. Detalle de CxC.'!O97=\"\",\"\",'800111a - Nota. Detalle de CxC.'!O97)","v":""},{"$f":"IF('800111a - Nota. Detalle de CxC.'!O98=\"\",\"\",'800111a - Nota. Detalle de CxC.'!O98)","v":""},{"$f":"IF('800111a - Nota. Detalle de CxC.'!O99=\"\",\"\",'800111a - Nota. Detalle de CxC.'!O99)","v":""},{"$f":"IF('800111a - Nota. Detalle de CxC.'!O100=\"\",\"\",'800111a - Nota. Detalle de CxC.'!O100)","v":""},{"$f":"IF('800111a - Nota. Detalle de CxC.'!O101=\"\",\"\",'800111a - Nota. Detalle de CxC.'!O101)","v":""},{"$f":"IF('800111a - Nota. Detalle de CxC.'!O102=\"\",\"\",'800111a - Nota. Detalle de CxC.'!O102)","v":""},{"$f":"IF('800111a - Nota. Detalle de CxC.'!O103=\"\",\"\",'800111a - Nota. Detalle de CxC.'!O103)","v":""},{"$f":"IF('800111a - Nota. Detalle de CxC.'!O104=\"\",\"\",'800111a - Nota. Detalle de CxC.'!O104)","v":""},{"$f":"IF('800111a - Nota. Detalle de CxC.'!O105=\"\",\"\",'800111a - Nota. Detalle de CxC.'!O105)","v":""},{"$f":"IF('800111a - Nota. Detalle de CxC.'!O106=\"\",\"\",'800111a - Nota. Detalle de CxC.'!O106)","v":""},{"$f":"IF('800111a - Nota. Detalle de CxC.'!O107=\"\",\"\",'800111a - Nota. Detalle de CxC.'!O107)","v":""},{"$f":"IF('800111a - Nota. Detalle de CxC.'!O108=\"\",\"\",'800111a - Nota. Detalle de CxC.'!O108)","v":""},{"$f":"IF('800111a - Nota. Detalle de CxC.'!O109=\"\",\"\",'800111a - Nota. Detalle de CxC.'!O109)","v":""},{"$f":"IF('800111a - Nota. Detalle de CxC.'!O110=\"\",\"\",'800111a - Nota. Detalle de CxC.'!O110)","v":""},{"$f":"IF('800111a - Nota. Detalle de CxC.'!O111=\"\",\"\",'800111a - Nota. Detalle de CxC.'!O111)","v":""},{"$f":"IF('800111a - Nota. Detalle de CxC.'!O112=\"\",\"\",'800111a - Nota. Detalle de CxC.'!O112)","v":""},{"$f":"IF('800111a - Nota. Detalle de CxC.'!O113=\"\",\"\",'800111a - Nota. Detalle de CxC.'!O113)","v":""},{"$f":"IF('800111a - Nota. Detalle de CxC.'!O114=\"\",\"\",'800111a - Nota. Detalle de CxC.'!O114)","v":""},{"$f":"IF('800111a - Nota. Detalle de CxC.'!O115=\"\",\"\",'800111a - Nota. Detalle de CxC.'!O115)","v":""},{"$f":"IF('800111a - Nota. Detalle de CxC.'!O116=\"\",\"\",'800111a - Nota. Detalle de CxC.'!O116)","v":""},{"$f":"IF('800111a - Nota. Detalle de CxC.'!O117=\"\",\"\",'800111a - Nota. Detalle de CxC.'!O117)","v":""},{"$f":"IF('800111a - Nota. Detalle de CxC.'!O118=\"\",\"\",'800111a - Nota. Detalle de CxC.'!O118)","v":""},{"$f":"IF('800111a - Nota. Detalle de CxC.'!O119=\"\",\"\",'800111a - Nota. Detalle de CxC.'!O119)","v":""},null,null,null,{"$f":"IF('800111a - Nota. Detalle de CxC.'!O123=\"\",\"\",'800111a - Nota. Detalle de CxC.'!O123)","v":""},{"$f":"IF('800111a - Nota. Detalle de CxC.'!O124=\"\",\"\",'800111a - Nota. Detalle de CxC.'!O124)","v":""},{"$f":"IF('800111a - Nota. Detalle de CxC.'!O125=\"\",\"\",'800111a - Nota. Detalle de CxC.'!O125)","v":""},{"$f":"IF('800111a - Nota. Detalle de CxC.'!O126=\"\",\"\",'800111a - Nota. Detalle de CxC.'!O126)","v":""},{"$f":"IF('800111a - Nota. Detalle de CxC.'!O127=\"\",\"\",'800111a - Nota. Detalle de CxC.'!O127)","v":""},{"$f":"IF('800111a - Nota. Detalle de CxC.'!O128=\"\",\"\",'800111a - Nota. Detalle de CxC.'!O128)","v":""},{"$f":"IF('800111a - Nota. Detalle de CxC.'!O129=\"\",\"\",'800111a - Nota. Detalle de CxC.'!O129)","v":""},{"$f":"IF('800111a - Nota. Detalle de CxC.'!O130=\"\",\"\",'800111a - Nota. Detalle de CxC.'!O130)","v":""},{"$f":"IF('800111a - Nota. Detalle de CxC.'!O131=\"\",\"\",'800111a - Nota. Detalle de CxC.'!O131)","v":""},{"$f":"IF('800111a - Nota. Detalle de CxC.'!O132=\"\",\"\",'800111a - Nota. Detalle de CxC.'!O132)","v":""},{"$f":"IF('800111a - Nota. Detalle de CxC.'!O133=\"\",\"\",'800111a - Nota. Detalle de CxC.'!O133)","v":""},{"$f":"IF('800111a - Nota. Detalle de CxC.'!O134=\"\",\"\",'800111a - Nota. Detalle de CxC.'!O134)","v":""},{"$f":"IF('800111a - Nota. Detalle de CxC.'!O135=\"\",\"\",'800111a - Nota. Detalle de CxC.'!O135)","v":""},{"$f":"IF('800111a - Nota. Detalle de CxC.'!O136=\"\",\"\",'800111a - Nota. Detalle de CxC.'!O136)","v":""},{"$f":"IF('800111a - Nota. Detalle de CxC.'!O137=\"\",\"\",'800111a - Nota. Detalle de CxC.'!O137)","v":""},{"$f":"IF('800111a - Nota. Detalle de CxC.'!O138=\"\",\"\",'800111a - Nota. Detalle de CxC.'!O138)","v":""},{"$f":"IF('800111a - Nota. Detalle de CxC.'!O139=\"\",\"\",'800111a - Nota. Detalle de CxC.'!O139)","v":""},{"$f":"IF('800111a - Nota. Detalle de CxC.'!O140=\"\",\"\",'800111a - Nota. Detalle de CxC.'!O140)","v":""},{"$f":"IF('800111a - Nota. Detalle de CxC.'!O141=\"\",\"\",'800111a - Nota. Detalle de CxC.'!O141)","v":""},{"$f":"IF('800111a - Nota. Detalle de CxC.'!O142=\"\",\"\",'800111a - Nota. Detalle de CxC.'!O142)","v":""},{"$f":"IF('800111a - Nota. Detalle de CxC.'!O143=\"\",\"\",'800111a - Nota. Detalle de CxC.'!O143)","v":""},{"$f":"IF('800111a - Nota. Detalle de CxC.'!O144=\"\",\"\",'800111a - Nota. Detalle de CxC.'!O144)","v":""},{"$f":"IF('800111a - Nota. Detalle de CxC.'!O145=\"\",\"\",'800111a - Nota. Detalle de CxC.'!O145)","v":""},{"$f":"IF('800111a - Nota. Detalle de CxC.'!O146=\"\",\"\",'800111a - Nota. Detalle de CxC.'!O146)","v":""},{"$f":"IF('800111a - Nota. Detalle de CxC.'!O147=\"\",\"\",'800111a - Nota. Detalle de CxC.'!O147)","v":""},{"$f":"IF('800111a - Nota. Detalle de CxC.'!O148=\"\",\"\",'800111a - Nota. Detalle de CxC.'!O148)","v":""},{"$f":"IF('800111a - Nota. Detalle de CxC.'!O149=\"\",\"\",'800111a - Nota. Detalle de CxC.'!O149)","v":""},{"$f":"IF('800111a - Nota. Detalle de CxC.'!O150=\"\",\"\",'800111a - Nota. Detalle de CxC.'!O150)","v":""},{"$f":"IF('800111a - Nota. Detalle de CxC.'!O151=\"\",\"\",'800111a - Nota. Detalle de CxC.'!O151)","v":""},{"$f":"IF('800111a - Nota. Detalle de CxC.'!O152=\"\",\"\",'800111a - Nota. Detalle de CxC.'!O152)","v":""},{"$f":"IF('800111a - Nota. Detalle de CxC.'!O153=\"\",\"\",'800111a - Nota. Detalle de CxC.'!O153)","v":""},{"$f":"IF('800111a - Nota. Detalle de CxC.'!O154=\"\",\"\",'800111a - Nota. Detalle de CxC.'!O154)","v":""},{"$f":"IF('800111a - Nota. Detalle de CxC.'!O155=\"\",\"\",'800111a - Nota. Detalle de CxC.'!O155)","v":""},{"$f":"IF('800111a - Nota. Detalle de CxC.'!O156=\"\",\"\",'800111a - Nota. Detalle de CxC.'!O156)","v":""},{"$f":"IF('800111a - Nota. Detalle de CxC.'!O157=\"\",\"\",'800111a - Nota. Detalle de CxC.'!O157)","v":""},{"$f":"IF('800111a - Nota. Detalle de CxC.'!O158=\"\",\"\",'800111a - Nota. Detalle de CxC.'!O158)","v":""},{"$f":"IF('800111a - Nota. Detalle de CxC.'!O159=\"\",\"\",'800111a - Nota. Detalle de CxC.'!O159)","v":""},{"$f":"IF('800111a - Nota. Detalle de CxC.'!O160=\"\",\"\",'800111a - Nota. Detalle de CxC.'!O160)","v":""},{"$f":"IF('800111a - Nota. Detalle de CxC.'!O161=\"\",\"\",'800111a - Nota. Detalle de CxC.'!O161)","v":""},{"$f":"IF('800111a - Nota. Detalle de CxC.'!O162=\"\",\"\",'800111a - Nota. Detalle de CxC.'!O162)","v":""},{"$f":"IF('800111a - Nota. Detalle de CxC.'!O163=\"\",\"\",'800111a - Nota. Detalle de CxC.'!O163)","v":""},{"$f":"IF('800111a - Nota. Detalle de CxC.'!O164=\"\",\"\",'800111a - Nota. Detalle de CxC.'!O164)","v":""},{"$f":"IF('800111a - Nota. Detalle de CxC.'!O165=\"\",\"\",'800111a - Nota. Detalle de CxC.'!O165)","v":""},{"$f":"IF('800111a - Nota. Detalle de CxC.'!O166=\"\",\"\",'800111a - Nota. Detalle de CxC.'!O166)","v":""},{"$f":"IF('800111a - Nota. Detalle de CxC.'!O167=\"\",\"\",'800111a - Nota. Detalle de CxC.'!O167)","v":""},{"$f":"IF('800111a - Nota. Detalle de CxC.'!O168=\"\",\"\",'800111a - Nota. Detalle de CxC.'!O168)","v":""},{"$f":"IF('800111a - Nota. Detalle de CxC.'!O169=\"\",\"\",'800111a - Nota. Detalle de CxC.'!O169)","v":""},{"$f":"IF('800111a - Nota. Detalle de CxC.'!O170=\"\",\"\",'800111a - Nota. Detalle de CxC.'!O170)","v":""},{"$f":"IF('800111a - Nota. Detalle de CxC.'!O171=\"\",\"\",'800111a - Nota. Detalle de CxC.'!O171)","v":""},{"$f":"IF('800111a - Nota. Detalle de CxC.'!O172=\"\",\"\",'800111a - Nota. Detalle de CxC.'!O172)","v":""}]
[null,"1;1","co-svsp-core:PaisDeudorCxC","País deudor",null,null,{"$f":"IF('800111a - Nota. Detalle de CxC.'!P17=\"\",\"\",'800111a - Nota. Detalle de CxC.'!P17)","v":""},{"$f":"IF('800111a - Nota. Detalle de CxC.'!P18=\"\",\"\",'800111a - Nota. Detalle de CxC.'!P18)","v":""},{"$f":"IF('800111a - Nota. Detalle de CxC.'!P19=\"\",\"\",'800111a - Nota. Detalle de CxC.'!P19)","v":""},{"$f":"IF('800111a - Nota. Detalle de CxC.'!P20=\"\",\"\",'800111a - Nota. Detalle de CxC.'!P20)","v":""},{"$f":"IF('800111a - Nota. Detalle de CxC.'!P21=\"\",\"\",'800111a - Nota. Detalle de CxC.'!P21)","v":""},{"$f":"IF('800111a - Nota. Detalle de CxC.'!P22=\"\",\"\",'800111a - Nota. Detalle de CxC.'!P22)","v":""},{"$f":"IF('800111a - Nota. Detalle de CxC.'!P23=\"\",\"\",'800111a - Nota. Detalle de CxC.'!P23)","v":""},{"$f":"IF('800111a - Nota. Detalle de CxC.'!P24=\"\",\"\",'800111a - Nota. Detalle de CxC.'!P24)","v":""},{"$f":"IF('800111a - Nota. Detalle de CxC.'!P25=\"\",\"\",'800111a - Nota. Detalle de CxC.'!P25)","v":""},{"$f":"IF('800111a - Nota. Detalle de CxC.'!P26=\"\",\"\",'800111a - Nota. Detalle de CxC.'!P26)","v":""},{"$f":"IF('800111a - Nota. Detalle de CxC.'!P27=\"\",\"\",'800111a - Nota. Detalle de CxC.'!P27)","v":""},{"$f":"IF('800111a - Nota. Detalle de CxC.'!P28=\"\",\"\",'800111a - Nota. Detalle de CxC.'!P28)","v":""},{"$f":"IF('800111a - Nota. Detalle de CxC.'!P29=\"\",\"\",'800111a - Nota. Detalle de CxC.'!P29)","v":""},{"$f":"IF('800111a - Nota. Detalle de CxC.'!P30=\"\",\"\",'800111a - Nota. Detalle de CxC.'!P30)","v":""},{"$f":"IF('800111a - Nota. Detalle de CxC.'!P31=\"\",\"\",'800111a - Nota. Detalle de CxC.'!P31)","v":""},{"$f":"IF('800111a - Nota. Detalle de CxC.'!P32=\"\",\"\",'800111a - Nota. Detalle de CxC.'!P32)","v":""},{"$f":"IF('800111a - Nota. Detalle de CxC.'!P33=\"\",\"\",'800111a - Nota. Detalle de CxC.'!P33)","v":""},{"$f":"IF('800111a - Nota. Detalle de CxC.'!P34=\"\",\"\",'800111a - Nota. Detalle de CxC.'!P34)","v":""},{"$f":"IF('800111a - Nota. Detalle de CxC.'!P35=\"\",\"\",'800111a - Nota. Detalle de CxC.'!P35)","v":""},{"$f":"IF('800111a - Nota. Detalle de CxC.'!P36=\"\",\"\",'800111a - Nota. Detalle de CxC.'!P36)","v":""},{"$f":"IF('800111a - Nota. Detalle de CxC.'!P37=\"\",\"\",'800111a - Nota. Detalle de CxC.'!P37)","v":""},{"$f":"IF('800111a - Nota. Detalle de CxC.'!P38=\"\",\"\",'800111a - Nota. Detalle de CxC.'!P38)","v":""},{"$f":"IF('800111a - Nota. Detalle de CxC.'!P39=\"\",\"\",'800111a - Nota. Detalle de CxC.'!P39)","v":""},{"$f":"IF('800111a - Nota. Detalle de CxC.'!P40=\"\",\"\",'800111a - Nota. Detalle de CxC.'!P40)","v":""},{"$f":"IF('800111a - Nota. Detalle de CxC.'!P41=\"\",\"\",'800111a - Nota. Detalle de CxC.'!P41)","v":""},{"$f":"IF('800111a - Nota. Detalle de CxC.'!P42=\"\",\"\",'800111a - Nota. Detalle de CxC.'!P42)","v":""},{"$f":"IF('800111a - Nota. Detalle de CxC.'!P43=\"\",\"\",'800111a - Nota. Detalle de CxC.'!P43)","v":""},{"$f":"IF('800111a - Nota. Detalle de CxC.'!P44=\"\",\"\",'800111a - Nota. Detalle de CxC.'!P44)","v":""},{"$f":"IF('800111a - Nota. Detalle de CxC.'!P45=\"\",\"\",'800111a - Nota. Detalle de CxC.'!P45)","v":""},{"$f":"IF('800111a - Nota. Detalle de CxC.'!P46=\"\",\"\",'800111a - Nota. Detalle de CxC.'!P46)","v":""},{"$f":"IF('800111a - Nota. Detalle de CxC.'!P47=\"\",\"\",'800111a - Nota. Detalle de CxC.'!P47)","v":""},{"$f":"IF('800111a - Nota. Detalle de CxC.'!P48=\"\",\"\",'800111a - Nota. Detalle de CxC.'!P48)","v":""},{"$f":"IF('800111a - Nota. Detalle de CxC.'!P49=\"\",\"\",'800111a - Nota. Detalle de CxC.'!P49)","v":""},{"$f":"IF('800111a - Nota. Detalle de CxC.'!P50=\"\",\"\",'800111a - Nota. Detalle de CxC.'!P50)","v":""},{"$f":"IF('800111a - Nota. Detalle de CxC.'!P51=\"\",\"\",'800111a - Nota. Detalle de CxC.'!P51)","v":""},{"$f":"IF('800111a - Nota. Detalle de CxC.'!P52=\"\",\"\",'800111a - Nota. Detalle de CxC.'!P52)","v":""},{"$f":"IF('800111a - Nota. Detalle de CxC.'!P53=\"\",\"\",'800111a - Nota. Detalle de CxC.'!P53)","v":""},{"$f":"IF('800111a - Nota. Detalle de CxC.'!P54=\"\",\"\",'800111a - Nota. Detalle de CxC.'!P54)","v":""},{"$f":"IF('800111a - Nota. Detalle de CxC.'!P55=\"\",\"\",'800111a - Nota. Detalle de CxC.'!P55)","v":""},{"$f":"IF('800111a - Nota. Detalle de CxC.'!P56=\"\",\"\",'800111a - Nota. Detalle de CxC.'!P56)","v":""},{"$f":"IF('800111a - Nota. Detalle de CxC.'!P57=\"\",\"\",'800111a - Nota. Detalle de CxC.'!P57)","v":""},{"$f":"IF('800111a - Nota. Detalle de CxC.'!P58=\"\",\"\",'800111a - Nota. Detalle de CxC.'!P58)","v":""},{"$f":"IF('800111a - Nota. Detalle de CxC.'!P59=\"\",\"\",'800111a - Nota. Detalle de CxC.'!P59)","v":""},{"$f":"IF('800111a - Nota. Detalle de CxC.'!P60=\"\",\"\",'800111a - Nota. Detalle de CxC.'!P60)","v":""},{"$f":"IF('800111a - Nota. Detalle de CxC.'!P61=\"\",\"\",'800111a - Nota. Detalle de CxC.'!P61)","v":""},{"$f":"IF('800111a - Nota. Detalle de CxC.'!P62=\"\",\"\",'800111a - Nota. Detalle de CxC.'!P62)","v":""},{"$f":"IF('800111a - Nota. Detalle de CxC.'!P63=\"\",\"\",'800111a - Nota. Detalle de CxC.'!P63)","v":""},{"$f":"IF('800111a - Nota. Detalle de CxC.'!P64=\"\",\"\",'800111a - Nota. Detalle de CxC.'!P64)","v":""},{"$f":"IF('800111a - Nota. Detalle de CxC.'!P65=\"\",\"\",'800111a - Nota. Detalle de CxC.'!P65)","v":""},{"$f":"IF('800111a - Nota. Detalle de CxC.'!P66=\"\",\"\",'800111a - Nota. Detalle de CxC.'!P66)","v":""},null,null,null,{"$f":"IF('800111a - Nota. Detalle de CxC.'!P70=\"\",\"\",'800111a - Nota. Detalle de CxC.'!P70)","v":""},{"$f":"IF('800111a - Nota. Detalle de CxC.'!P71=\"\",\"\",'800111a - Nota. Detalle de CxC.'!P71)","v":""},{"$f":"IF('800111a - Nota. Detalle de CxC.'!P72=\"\",\"\",'800111a - Nota. Detalle de CxC.'!P72)","v":""},{"$f":"IF('800111a - Nota. Detalle de CxC.'!P73=\"\",\"\",'800111a - Nota. Detalle de CxC.'!P73)","v":""},{"$f":"IF('800111a - Nota. Detalle de CxC.'!P74=\"\",\"\",'800111a - Nota. Detalle de CxC.'!P74)","v":""},{"$f":"IF('800111a - Nota. Detalle de CxC.'!P75=\"\",\"\",'800111a - Nota. Detalle de CxC.'!P75)","v":""},{"$f":"IF('800111a - Nota. Detalle de CxC.'!P76=\"\",\"\",'800111a - Nota. Detalle de CxC.'!P76)","v":""},{"$f":"IF('800111a - Nota. Detalle de CxC.'!P77=\"\",\"\",'800111a - Nota. Detalle de CxC.'!P77)","v":""},{"$f":"IF('800111a - Nota. Detalle de CxC.'!P78=\"\",\"\",'800111a - Nota. Detalle de CxC.'!P78)","v":""},{"$f":"IF('800111a - Nota. Detalle de CxC.'!P79=\"\",\"\",'800111a - Nota. Detalle de CxC.'!P79)","v":""},{"$f":"IF('800111a - Nota. Detalle de CxC.'!P80=\"\",\"\",'800111a - Nota. Detalle de CxC.'!P80)","v":""},{"$f":"IF('800111a - Nota. Detalle de CxC.'!P81=\"\",\"\",'800111a - Nota. Detalle de CxC.'!P81)","v":""},{"$f":"IF('800111a - Nota. Detalle de CxC.'!P82=\"\",\"\",'800111a - Nota. Detalle de CxC.'!P82)","v":""},{"$f":"IF('800111a - Nota. Detalle de CxC.'!P83=\"\",\"\",'800111a - Nota. Detalle de CxC.'!P83)","v":""},{"$f":"IF('800111a - Nota. Detalle de CxC.'!P84=\"\",\"\",'800111a - Nota. Detalle de CxC.'!P84)","v":""},{"$f":"IF('800111a - Nota. Detalle de CxC.'!P85=\"\",\"\",'800111a - Nota. Detalle de CxC.'!P85)","v":""},{"$f":"IF('800111a - Nota. Detalle de CxC.'!P86=\"\",\"\",'800111a - Nota. Detalle de CxC.'!P86)","v":""},{"$f":"IF('800111a - Nota. Detalle de CxC.'!P87=\"\",\"\",'800111a - Nota. Detalle de CxC.'!P87)","v":""},{"$f":"IF('800111a - Nota. Detalle de CxC.'!P88=\"\",\"\",'800111a - Nota. Detalle de CxC.'!P88)","v":""},{"$f":"IF('800111a - Nota. Detalle de CxC.'!P89=\"\",\"\",'800111a - Nota. Detalle de CxC.'!P89)","v":""},{"$f":"IF('800111a - Nota. Detalle de CxC.'!P90=\"\",\"\",'800111a - Nota. Detalle de CxC.'!P90)","v":""},{"$f":"IF('800111a - Nota. Detalle de CxC.'!P91=\"\",\"\",'800111a - Nota. Detalle de CxC.'!P91)","v":""},{"$f":"IF('800111a - Nota. Detalle de CxC.'!P92=\"\",\"\",'800111a - Nota. Detalle de CxC.'!P92)","v":""},{"$f":"IF('800111a - Nota. Detalle de CxC.'!P93=\"\",\"\",'800111a - Nota. Detalle de CxC.'!P93)","v":""},{"$f":"IF('800111a - Nota. Detalle de CxC.'!P94=\"\",\"\",'800111a - Nota. Detalle de CxC.'!P94)","v":""},{"$f":"IF('800111a - Nota. Detalle de CxC.'!P95=\"\",\"\",'800111a - Nota. Detalle de CxC.'!P95)","v":""},{"$f":"IF('800111a - Nota. Detalle de CxC.'!P96=\"\",\"\",'800111a - Nota. Detalle de CxC.'!P96)","v":""},{"$f":"IF('800111a - Nota. Detalle de CxC.'!P97=\"\",\"\",'800111a - Nota. Detalle de CxC.'!P97)","v":""},{"$f":"IF('800111a - Nota. Detalle de CxC.'!P98=\"\",\"\",'800111a - Nota. Detalle de CxC.'!P98)","v":""},{"$f":"IF('800111a - Nota. Detalle de CxC.'!P99=\"\",\"\",'800111a - Nota. Detalle de CxC.'!P99)","v":""},{"$f":"IF('800111a - Nota. Detalle de CxC.'!P100=\"\",\"\",'800111a - Nota. Detalle de CxC.'!P100)","v":""},{"$f":"IF('800111a - Nota. Detalle de CxC.'!P101=\"\",\"\",'800111a - Nota. Detalle de CxC.'!P101)","v":""},{"$f":"IF('800111a - Nota. Detalle de CxC.'!P102=\"\",\"\",'800111a - Nota. Detalle de CxC.'!P102)","v":""},{"$f":"IF('800111a - Nota. Detalle de CxC.'!P103=\"\",\"\",'800111a - Nota. Detalle de CxC.'!P103)","v":""},{"$f":"IF('800111a - Nota. Detalle de CxC.'!P104=\"\",\"\",'800111a - Nota. Detalle de CxC.'!P104)","v":""},{"$f":"IF('800111a - Nota. Detalle de CxC.'!P105=\"\",\"\",'800111a - Nota. Detalle de CxC.'!P105)","v":""},{"$f":"IF('800111a - Nota. Detalle de CxC.'!P106=\"\",\"\",'800111a - Nota. Detalle de CxC.'!P106)","v":""},{"$f":"IF('800111a - Nota. Detalle de CxC.'!P107=\"\",\"\",'800111a - Nota. Detalle de CxC.'!P107)","v":""},{"$f":"IF('800111a - Nota. Detalle de CxC.'!P108=\"\",\"\",'800111a - Nota. Detalle de CxC.'!P108)","v":""},{"$f":"IF('800111a - Nota. Detalle de CxC.'!P109=\"\",\"\",'800111a - Nota. Detalle de CxC.'!P109)","v":""},{"$f":"IF('800111a - Nota. Detalle de CxC.'!P110=\"\",\"\",'800111a - Nota. Detalle de CxC.'!P110)","v":""},{"$f":"IF('800111a - Nota. Detalle de CxC.'!P111=\"\",\"\",'800111a - Nota. Detalle de CxC.'!P111)","v":""},{"$f":"IF('800111a - Nota. Detalle de CxC.'!P112=\"\",\"\",'800111a - Nota. Detalle de CxC.'!P112)","v":""},{"$f":"IF('800111a - Nota. Detalle de CxC.'!P113=\"\",\"\",'800111a - Nota. Detalle de CxC.'!P113)","v":""},{"$f":"IF('800111a - Nota. Detalle de CxC.'!P114=\"\",\"\",'800111a - Nota. Detalle de CxC.'!P114)","v":""},{"$f":"IF('800111a - Nota. Detalle de CxC.'!P115=\"\",\"\",'800111a - Nota. Detalle de CxC.'!P115)","v":""},{"$f":"IF('800111a - Nota. Detalle de CxC.'!P116=\"\",\"\",'800111a - Nota. Detalle de CxC.'!P116)","v":""},{"$f":"IF('800111a - Nota. Detalle de CxC.'!P117=\"\",\"\",'800111a - Nota. Detalle de CxC.'!P117)","v":""},{"$f":"IF('800111a - Nota. Detalle de CxC.'!P118=\"\",\"\",'800111a - Nota. Detalle de CxC.'!P118)","v":""},{"$f":"IF('800111a - Nota. Detalle de CxC.'!P119=\"\",\"\",'800111a - Nota. Detalle de CxC.'!P119)","v":""},null,null,null,{"$f":"IF('800111a - Nota. Detalle de CxC.'!P123=\"\",\"\",'800111a - Nota. Detalle de CxC.'!P123)","v":""},{"$f":"IF('800111a - Nota. Detalle de CxC.'!P124=\"\",\"\",'800111a - Nota. Detalle de CxC.'!P124)","v":""},{"$f":"IF('800111a - Nota. Detalle de CxC.'!P125=\"\",\"\",'800111a - Nota. Detalle de CxC.'!P125)","v":""},{"$f":"IF('800111a - Nota. Detalle de CxC.'!P126=\"\",\"\",'800111a - Nota. Detalle de CxC.'!P126)","v":""},{"$f":"IF('800111a - Nota. Detalle de CxC.'!P127=\"\",\"\",'800111a - Nota. Detalle de CxC.'!P127)","v":""},{"$f":"IF('800111a - Nota. Detalle de CxC.'!P128=\"\",\"\",'800111a - Nota. Detalle de CxC.'!P128)","v":""},{"$f":"IF('800111a - Nota. Detalle de CxC.'!P129=\"\",\"\",'800111a - Nota. Detalle de CxC.'!P129)","v":""},{"$f":"IF('800111a - Nota. Detalle de CxC.'!P130=\"\",\"\",'800111a - Nota. Detalle de CxC.'!P130)","v":""},{"$f":"IF('800111a - Nota. Detalle de CxC.'!P131=\"\",\"\",'800111a - Nota. Detalle de CxC.'!P131)","v":""},{"$f":"IF('800111a - Nota. Detalle de CxC.'!P132=\"\",\"\",'800111a - Nota. Detalle de CxC.'!P132)","v":""},{"$f":"IF('800111a - Nota. Detalle de CxC.'!P133=\"\",\"\",'800111a - Nota. Detalle de CxC.'!P133)","v":""},{"$f":"IF('800111a - Nota. Detalle de CxC.'!P134=\"\",\"\",'800111a - Nota. Detalle de CxC.'!P134)","v":""},{"$f":"IF('800111a - Nota. Detalle de CxC.'!P135=\"\",\"\",'800111a - Nota. Detalle de CxC.'!P135)","v":""},{"$f":"IF('800111a - Nota. Detalle de CxC.'!P136=\"\",\"\",'800111a - Nota. Detalle de CxC.'!P136)","v":""},{"$f":"IF('800111a - Nota. Detalle de CxC.'!P137=\"\",\"\",'800111a - Nota. Detalle de CxC.'!P137)","v":""},{"$f":"IF('800111a - Nota. Detalle de CxC.'!P138=\"\",\"\",'800111a - Nota. Detalle de CxC.'!P138)","v":""},{"$f":"IF('800111a - Nota. Detalle de CxC.'!P139=\"\",\"\",'800111a - Nota. Detalle de CxC.'!P139)","v":""},{"$f":"IF('800111a - Nota. Detalle de CxC.'!P140=\"\",\"\",'800111a - Nota. Detalle de CxC.'!P140)","v":""},{"$f":"IF('800111a - Nota. Detalle de CxC.'!P141=\"\",\"\",'800111a - Nota. Detalle de CxC.'!P141)","v":""},{"$f":"IF('800111a - Nota. Detalle de CxC.'!P142=\"\",\"\",'800111a - Nota. Detalle de CxC.'!P142)","v":""},{"$f":"IF('800111a - Nota. Detalle de CxC.'!P143=\"\",\"\",'800111a - Nota. Detalle de CxC.'!P143)","v":""},{"$f":"IF('800111a - Nota. Detalle de CxC.'!P144=\"\",\"\",'800111a - Nota. Detalle de CxC.'!P144)","v":""},{"$f":"IF('800111a - Nota. Detalle de CxC.'!P145=\"\",\"\",'800111a - Nota. Detalle de CxC.'!P145)","v":""},{"$f":"IF('800111a - Nota. Detalle de CxC.'!P146=\"\",\"\",'800111a - Nota. Detalle de CxC.'!P146)","v":""},{"$f":"IF('800111a - Nota. Detalle de CxC.'!P147=\"\",\"\",'800111a - Nota. Detalle de CxC.'!P147)","v":""},{"$f":"IF('800111a - Nota. Detalle de CxC.'!P148=\"\",\"\",'800111a - Nota. Detalle de CxC.'!P148)","v":""},{"$f":"IF('800111a - Nota. Detalle de CxC.'!P149=\"\",\"\",'800111a - Nota. Detalle de CxC.'!P149)","v":""},{"$f":"IF('800111a - Nota. Detalle de CxC.'!P150=\"\",\"\",'800111a - Nota. Detalle de CxC.'!P150)","v":""},{"$f":"IF('800111a - Nota. Detalle de CxC.'!P151=\"\",\"\",'800111a - Nota. Detalle de CxC.'!P151)","v":""},{"$f":"IF('800111a - Nota. Detalle de CxC.'!P152=\"\",\"\",'800111a - Nota. Detalle de CxC.'!P152)","v":""},{"$f":"IF('800111a - Nota. Detalle de CxC.'!P153=\"\",\"\",'800111a - Nota. Detalle de CxC.'!P153)","v":""},{"$f":"IF('800111a - Nota. Detalle de CxC.'!P154=\"\",\"\",'800111a - Nota. Detalle de CxC.'!P154)","v":""},{"$f":"IF('800111a - Nota. Detalle de CxC.'!P155=\"\",\"\",'800111a - Nota. Detalle de CxC.'!P155)","v":""},{"$f":"IF('800111a - Nota. Detalle de CxC.'!P156=\"\",\"\",'800111a - Nota. Detalle de CxC.'!P156)","v":""},{"$f":"IF('800111a - Nota. Detalle de CxC.'!P157=\"\",\"\",'800111a - Nota. Detalle de CxC.'!P157)","v":""},{"$f":"IF('800111a - Nota. Detalle de CxC.'!P158=\"\",\"\",'800111a - Nota. Detalle de CxC.'!P158)","v":""},{"$f":"IF('800111a - Nota. Detalle de CxC.'!P159=\"\",\"\",'800111a - Nota. Detalle de CxC.'!P159)","v":""},{"$f":"IF('800111a - Nota. Detalle de CxC.'!P160=\"\",\"\",'800111a - Nota. Detalle de CxC.'!P160)","v":""},{"$f":"IF('800111a - Nota. Detalle de CxC.'!P161=\"\",\"\",'800111a - Nota. Detalle de CxC.'!P161)","v":""},{"$f":"IF('800111a - Nota. Detalle de CxC.'!P162=\"\",\"\",'800111a - Nota. Detalle de CxC.'!P162)","v":""},{"$f":"IF('800111a - Nota. Detalle de CxC.'!P163=\"\",\"\",'800111a - Nota. Detalle de CxC.'!P163)","v":""},{"$f":"IF('800111a - Nota. Detalle de CxC.'!P164=\"\",\"\",'800111a - Nota. Detalle de CxC.'!P164)","v":""},{"$f":"IF('800111a - Nota. Detalle de CxC.'!P165=\"\",\"\",'800111a - Nota. Detalle de CxC.'!P165)","v":""},{"$f":"IF('800111a - Nota. Detalle de CxC.'!P166=\"\",\"\",'800111a - Nota. Detalle de CxC.'!P166)","v":""},{"$f":"IF('800111a - Nota. Detalle de CxC.'!P167=\"\",\"\",'800111a - Nota. Detalle de CxC.'!P167)","v":""},{"$f":"IF('800111a - Nota. Detalle de CxC.'!P168=\"\",\"\",'800111a - Nota. Detalle de CxC.'!P168)","v":""},{"$f":"IF('800111a - Nota. Detalle de CxC.'!P169=\"\",\"\",'800111a - Nota. Detalle de CxC.'!P169)","v":""},{"$f":"IF('800111a - Nota. Detalle de CxC.'!P170=\"\",\"\",'800111a - Nota. Detalle de CxC.'!P170)","v":""},{"$f":"IF('800111a - Nota. Detalle de CxC.'!P171=\"\",\"\",'800111a - Nota. Detalle de CxC.'!P171)","v":""},{"$f":"IF('800111a - Nota. Detalle de CxC.'!P172=\"\",\"\",'800111a - Nota. Detalle de CxC.'!P172)","v":""}]
[null,"1;1","co-svsp-core:SaldoCuentasPorCobrarCxC","Saldo cuentas por cobrar",null,null,{"$f":"IF('800111a - Nota. Detalle de CxC.'!Q17=\"\",\"\",'800111a - Nota. Detalle de CxC.'!Q17)","v":""},{"$f":"IF('800111a - Nota. Detalle de CxC.'!Q18=\"\",\"\",'800111a - Nota. Detalle de CxC.'!Q18)","v":""},{"$f":"IF('800111a - Nota. Detalle de CxC.'!Q19=\"\",\"\",'800111a - Nota. Detalle de CxC.'!Q19)","v":""},{"$f":"IF('800111a - Nota. Detalle de CxC.'!Q20=\"\",\"\",'800111a - Nota. Detalle de CxC.'!Q20)","v":""},{"$f":"IF('800111a - Nota. Detalle de CxC.'!Q21=\"\",\"\",'800111a - Nota. Detalle de CxC.'!Q21)","v":""},{"$f":"IF('800111a - Nota. Detalle de CxC.'!Q22=\"\",\"\",'800111a - Nota. Detalle de CxC.'!Q22)","v":""},{"$f":"IF('800111a - Nota. Detalle de CxC.'!Q23=\"\",\"\",'800111a - Nota. Detalle de CxC.'!Q23)","v":""},{"$f":"IF('800111a - Nota. Detalle de CxC.'!Q24=\"\",\"\",'800111a - Nota. Detalle de CxC.'!Q24)","v":""},{"$f":"IF('800111a - Nota. Detalle de CxC.'!Q25=\"\",\"\",'800111a - Nota. Detalle de CxC.'!Q25)","v":""},{"$f":"IF('800111a - Nota. Detalle de CxC.'!Q26=\"\",\"\",'800111a - Nota. Detalle de CxC.'!Q26)","v":""},{"$f":"IF('800111a - Nota. Detalle de CxC.'!Q27=\"\",\"\",'800111a - Nota. Detalle de CxC.'!Q27)","v":""},{"$f":"IF('800111a - Nota. Detalle de CxC.'!Q28=\"\",\"\",'800111a - Nota. Detalle de CxC.'!Q28)","v":""},{"$f":"IF('800111a - Nota. Detalle de CxC.'!Q29=\"\",\"\",'800111a - Nota. Detalle de CxC.'!Q29)","v":""},{"$f":"IF('800111a - Nota. Detalle de CxC.'!Q30=\"\",\"\",'800111a - Nota. Detalle de CxC.'!Q30)","v":""},{"$f":"IF('800111a - Nota. Detalle de CxC.'!Q31=\"\",\"\",'800111a - Nota. Detalle de CxC.'!Q31)","v":""},{"$f":"IF('800111a - Nota. Detalle de CxC.'!Q32=\"\",\"\",'800111a - Nota. Detalle de CxC.'!Q32)","v":""},{"$f":"IF('800111a - Nota. Detalle de CxC.'!Q33=\"\",\"\",'800111a - Nota. Detalle de CxC.'!Q33)","v":""},{"$f":"IF('800111a - Nota. Detalle de CxC.'!Q34=\"\",\"\",'800111a - Nota. Detalle de CxC.'!Q34)","v":""},{"$f":"IF('800111a - Nota. Detalle de CxC.'!Q35=\"\",\"\",'800111a - Nota. Detalle de CxC.'!Q35)","v":""},{"$f":"IF('800111a - Nota. Detalle de CxC.'!Q36=\"\",\"\",'800111a - Nota. Detalle de CxC.'!Q36)","v":""},{"$f":"IF('800111a - Nota. Detalle de CxC.'!Q37=\"\",\"\",'800111a - Nota. Detalle de CxC.'!Q37)","v":""},{"$f":"IF('800111a - Nota. Detalle de CxC.'!Q38=\"\",\"\",'800111a - Nota. Detalle de CxC.'!Q38)","v":""},{"$f":"IF('800111a - Nota. Detalle de CxC.'!Q39=\"\",\"\",'800111a - Nota. Detalle de CxC.'!Q39)","v":""},{"$f":"IF('800111a - Nota. Detalle de CxC.'!Q40=\"\",\"\",'800111a - Nota. Detalle de CxC.'!Q40)","v":""},{"$f":"IF('800111a - Nota. Detalle de CxC.'!Q41=\"\",\"\",'800111a - Nota. Detalle de CxC.'!Q41)","v":""},{"$f":"IF('800111a - Nota. Detalle de CxC.'!Q42=\"\",\"\",'800111a - Nota. Detalle de CxC.'!Q42)","v":""},{"$f":"IF('800111a - Nota. Detalle de CxC.'!Q43=\"\",\"\",'800111a - Nota. Detalle de CxC.'!Q43)","v":""},{"$f":"IF('800111a - Nota. Detalle de CxC.'!Q44=\"\",\"\",'800111a - Nota. Detalle de CxC.'!Q44)","v":""},{"$f":"IF('800111a - Nota. Detalle de CxC.'!Q45=\"\",\"\",'800111a - Nota. Detalle de CxC.'!Q45)","v":""},{"$f":"IF('800111a - Nota. Detalle de CxC.'!Q46=\"\",\"\",'800111a - Nota. Detalle de CxC.'!Q46)","v":""},{"$f":"IF('800111a - Nota. Detalle de CxC.'!Q47=\"\",\"\",'800111a - Nota. Detalle de CxC.'!Q47)","v":""},{"$f":"IF('800111a - Nota. Detalle de CxC.'!Q48=\"\",\"\",'800111a - Nota. Detalle de CxC.'!Q48)","v":""},{"$f":"IF('800111a - Nota. Detalle de CxC.'!Q49=\"\",\"\",'800111a - Nota. Detalle de CxC.'!Q49)","v":""},{"$f":"IF('800111a - Nota. Detalle de CxC.'!Q50=\"\",\"\",'800111a - Nota. Detalle de CxC.'!Q50)","v":""},{"$f":"IF('800111a - Nota. Detalle de CxC.'!Q51=\"\",\"\",'800111a - Nota. Detalle de CxC.'!Q51)","v":""},{"$f":"IF('800111a - Nota. Detalle de CxC.'!Q52=\"\",\"\",'800111a - Nota. Detalle de CxC.'!Q52)","v":""},{"$f":"IF('800111a - Nota. Detalle de CxC.'!Q53=\"\",\"\",'800111a - Nota. Detalle de CxC.'!Q53)","v":""},{"$f":"IF('800111a - Nota. Detalle de CxC.'!Q54=\"\",\"\",'800111a - Nota. Detalle de CxC.'!Q54)","v":""},{"$f":"IF('800111a - Nota. Detalle de CxC.'!Q55=\"\",\"\",'800111a - Nota. Detalle de CxC.'!Q55)","v":""},{"$f":"IF('800111a - Nota. Detalle de CxC.'!Q56=\"\",\"\",'800111a - Nota. Detalle de CxC.'!Q56)","v":""},{"$f":"IF('800111a - Nota. Detalle de CxC.'!Q57=\"\",\"\",'800111a - Nota. Detalle de CxC.'!Q57)","v":""},{"$f":"IF('800111a - Nota. Detalle de CxC.'!Q58=\"\",\"\",'800111a - Nota. Detalle de CxC.'!Q58)","v":""},{"$f":"IF('800111a - Nota. Detalle de CxC.'!Q59=\"\",\"\",'800111a - Nota. Detalle de CxC.'!Q59)","v":""},{"$f":"IF('800111a - Nota. Detalle de CxC.'!Q60=\"\",\"\",'800111a - Nota. Detalle de CxC.'!Q60)","v":""},{"$f":"IF('800111a - Nota. Detalle de CxC.'!Q61=\"\",\"\",'800111a - Nota. Detalle de CxC.'!Q61)","v":""},{"$f":"IF('800111a - Nota. Detalle de CxC.'!Q62=\"\",\"\",'800111a - Nota. Detalle de CxC.'!Q62)","v":""},{"$f":"IF('800111a - Nota. Detalle de CxC.'!Q63=\"\",\"\",'800111a - Nota. Detalle de CxC.'!Q63)","v":""},{"$f":"IF('800111a - Nota. Detalle de CxC.'!Q64=\"\",\"\",'800111a - Nota. Detalle de CxC.'!Q64)","v":""},{"$f":"IF('800111a - Nota. Detalle de CxC.'!Q65=\"\",\"\",'800111a - Nota. Detalle de CxC.'!Q65)","v":""},{"$f":"IF('800111a - Nota. Detalle de CxC.'!Q66=\"\",\"\",'800111a - Nota. Detalle de CxC.'!Q66)","v":""},{"$f":"IF('800111a - Nota. Detalle de CxC.'!Q67=\"\",\"\",'800111a - Nota. Detalle de CxC.'!Q67)","v":""},{"$f":"IF('800111a - Nota. Detalle de CxC.'!Q68=\"\",\"\",'800111a - Nota. Detalle de CxC.'!Q68)","v":0},null,{"$f":"IF('800111a - Nota. Detalle de CxC.'!Q70=\"\",\"\",'800111a - Nota. Detalle de CxC.'!Q70)","v":""},{"$f":"IF('800111a - Nota. Detalle de CxC.'!Q71=\"\",\"\",'800111a - Nota. Detalle de CxC.'!Q71)","v":""},{"$f":"IF('800111a - Nota. Detalle de CxC.'!Q72=\"\",\"\",'800111a - Nota. Detalle de CxC.'!Q72)","v":""},{"$f":"IF('800111a - Nota. Detalle de CxC.'!Q73=\"\",\"\",'800111a - Nota. Detalle de CxC.'!Q73)","v":""},{"$f":"IF('800111a - Nota. Detalle de CxC.'!Q74=\"\",\"\",'800111a - Nota. Detalle de CxC.'!Q74)","v":""},{"$f":"IF('800111a - Nota. Detalle de CxC.'!Q75=\"\",\"\",'800111a - Nota. Detalle de CxC.'!Q75)","v":""},{"$f":"IF('800111a - Nota. Detalle de CxC.'!Q76=\"\",\"\",'800111a - Nota. Detalle de CxC.'!Q76)","v":""},{"$f":"IF('800111a - Nota. Detalle de CxC.'!Q77=\"\",\"\",'800111a - Nota. Detalle de CxC.'!Q77)","v":""},{"$f":"IF('800111a - Nota. Detalle de CxC.'!Q78=\"\",\"\",'800111a - Nota. Detalle de CxC.'!Q78)","v":""},{"$f":"IF('800111a - Nota. Detalle de CxC.'!Q79=\"\",\"\",'800111a - Nota. Detalle de CxC.'!Q79)","v":""},{"$f":"IF('800111a - Nota. Detalle de CxC.'!Q80=\"\",\"\",'800111a - Nota. Detalle de CxC.'!Q80)","v":""},{"$f":"IF('800111a - Nota. Detalle de CxC.'!Q81=\"\",\"\",'800111a - Nota. Detalle de CxC.'!Q81)","v":""},{"$f":"IF('800111a - Nota. Detalle de CxC.'!Q82=\"\",\"\",'800111a - Nota. Detalle de CxC.'!Q82)","v":""},{"$f":"IF('800111a - Nota. Detalle de CxC.'!Q83=\"\",\"\",'800111a - Nota. Detalle de CxC.'!Q83)","v":""},{"$f":"IF('800111a - Nota. Detalle de CxC.'!Q84=\"\",\"\",'800111a - Nota. Detalle de CxC.'!Q84)","v":""},{"$f":"IF('800111a - Nota. Detalle de CxC.'!Q85=\"\",\"\",'800111a - Nota. Detalle de CxC.'!Q85)","v":""},{"$f":"IF('800111a - Nota. Detalle de CxC.'!Q86=\"\",\"\",'800111a - Nota. Detalle de CxC.'!Q86)","v":""},{"$f":"IF('800111a - Nota. Detalle de CxC.'!Q87=\"\",\"\",'800111a - Nota. Detalle de CxC.'!Q87)","v":""},{"$f":"IF('800111a - Nota. Detalle de CxC.'!Q88=\"\",\"\",'800111a - Nota. Detalle de CxC.'!Q88)","v":""},{"$f":"IF('800111a - Nota. Detalle de CxC.'!Q89=\"\",\"\",'800111a - Nota. Detalle de CxC.'!Q89)","v":""},{"$f":"IF('800111a - Nota. Detalle de CxC.'!Q90=\"\",\"\",'800111a - Nota. Detalle de CxC.'!Q90)","v":""},{"$f":"IF('800111a - Nota. Detalle de CxC.'!Q91=\"\",\"\",'800111a - Nota. Detalle de CxC.'!Q91)","v":""},{"$f":"IF('800111a - Nota. Detalle de CxC.'!Q92=\"\",\"\",'800111a - Nota. Detalle de CxC.'!Q92)","v":""},{"$f":"IF('800111a - Nota. Detalle de CxC.'!Q93=\"\",\"\",'800111a - Nota. Detalle de CxC.'!Q93)","v":""},{"$f":"IF('800111a - Nota. Detalle de CxC.'!Q94=\"\",\"\",'800111a - Nota. Detalle de CxC.'!Q94)","v":""},{"$f":"IF('800111a - Nota. Detalle de CxC.'!Q95=\"\",\"\",'800111a - Nota. Detalle de CxC.'!Q95)","v":""},{"$f":"IF('800111a - Nota. Detalle de CxC.'!Q96=\"\",\"\",'800111a - Nota. Detalle de CxC.'!Q96)","v":""},{"$f":"IF('800111a - Nota. Detalle de CxC.'!Q97=\"\",\"\",'800111a - Nota. Detalle de CxC.'!Q97)","v":""},{"$f":"IF('800111a - Nota. Detalle de CxC.'!Q98=\"\",\"\",'800111a - Nota. Detalle de CxC.'!Q98)","v":""},{"$f":"IF('800111a - Nota. Detalle de CxC.'!Q99=\"\",\"\",'800111a - Nota. Detalle de CxC.'!Q99)","v":""},{"$f":"IF('800111a - Nota. Detalle de CxC.'!Q100=\"\",\"\",'800111a - Nota. Detalle de CxC.'!Q100)","v":""},{"$f":"IF('800111a - Nota. Detalle de CxC.'!Q101=\"\",\"\",'800111a - Nota. Detalle de CxC.'!Q101)","v":""},{"$f":"IF('800111a - Nota. Detalle de CxC.'!Q102=\"\",\"\",'800111a - Nota. Detalle de CxC.'!Q102)","v":""},{"$f":"IF('800111a - Nota. Detalle de CxC.'!Q103=\"\",\"\",'800111a - Nota. Detalle de CxC.'!Q103)","v":""},{"$f":"IF('800111a - Nota. Detalle de CxC.'!Q104=\"\",\"\",'800111a - Nota. Detalle de CxC.'!Q104)","v":""},{"$f":"IF('800111a - Nota. Detalle de CxC.'!Q105=\"\",\"\",'800111a - Nota. Detalle de CxC.'!Q105)","v":""},{"$f":"IF('800111a - Nota. Detalle de CxC.'!Q106=\"\",\"\",'800111a - Nota. Detalle de CxC.'!Q106)","v":""},{"$f":"IF('800111a - Nota. Detalle de CxC.'!Q107=\"\",\"\",'800111a - Nota. Detalle de CxC.'!Q107)","v":""},{"$f":"IF('800111a - Nota. Detalle de CxC.'!Q108=\"\",\"\",'800111a - Nota. Detalle de CxC.'!Q108)","v":""},{"$f":"IF('800111a - Nota. Detalle de CxC.'!Q109=\"\",\"\",'800111a - Nota. Detalle de CxC.'!Q109)","v":""},{"$f":"IF('800111a - Nota. Detalle de CxC.'!Q110=\"\",\"\",'800111a - Nota. Detalle de CxC.'!Q110)","v":""},{"$f":"IF('800111a - Nota. Detalle de CxC.'!Q111=\"\",\"\",'800111a - Nota. Detalle de CxC.'!Q111)","v":""},{"$f":"IF('800111a - Nota. Detalle de CxC.'!Q112=\"\",\"\",'800111a - Nota. Detalle de CxC.'!Q112)","v":""},{"$f":"IF('800111a - Nota. Detalle de CxC.'!Q113=\"\",\"\",'800111a - Nota. Detalle de CxC.'!Q113)","v":""},{"$f":"IF('800111a - Nota. Detalle de CxC.'!Q114=\"\",\"\",'800111a - Nota. Detalle de CxC.'!Q114)","v":""},{"$f":"IF('800111a - Nota. Detalle de CxC.'!Q115=\"\",\"\",'800111a - Nota. Detalle de CxC.'!Q115)","v":""},{"$f":"IF('800111a - Nota. Detalle de CxC.'!Q116=\"\",\"\",'800111a - Nota. Detalle de CxC.'!Q116)","v":""},{"$f":"IF('800111a - Nota. Detalle de CxC.'!Q117=\"\",\"\",'800111a - Nota. Detalle de CxC.'!Q117)","v":""},{"$f":"IF('800111a - Nota. Detalle de CxC.'!Q118=\"\",\"\",'800111a - Nota. Detalle de CxC.'!Q118)","v":""},{"$f":"IF('800111a - Nota. Detalle de CxC.'!Q119=\"\",\"\",'800111a - Nota. Detalle de CxC.'!Q119)","v":""},{"$f":"IF('800111a - Nota. Detalle de CxC.'!Q120=\"\",\"\",'800111a - Nota. Detalle de CxC.'!Q120)","v":""},{"$f":"IF('800111a - Nota. Detalle de CxC.'!Q121=\"\",\"\",'800111a - Nota. Detalle de CxC.'!Q121)","v":0},null,{"$f":"IF('800111a - Nota. Detalle de CxC.'!Q123=\"\",\"\",'800111a - Nota. Detalle de CxC.'!Q123)","v":""},{"$f":"IF('800111a - Nota. Detalle de CxC.'!Q124=\"\",\"\",'800111a - Nota. Detalle de CxC.'!Q124)","v":""},{"$f":"IF('800111a - Nota. Detalle de CxC.'!Q125=\"\",\"\",'800111a - Nota. Detalle de CxC.'!Q125)","v":""},{"$f":"IF('800111a - Nota. Detalle de CxC.'!Q126=\"\",\"\",'800111a - Nota. Detalle de CxC.'!Q126)","v":""},{"$f":"IF('800111a - Nota. Detalle de CxC.'!Q127=\"\",\"\",'800111a - Nota. Detalle de CxC.'!Q127)","v":""},{"$f":"IF('800111a - Nota. Detalle de CxC.'!Q128=\"\",\"\",'800111a - Nota. Detalle de CxC.'!Q128)","v":""},{"$f":"IF('800111a - Nota. Detalle de CxC.'!Q129=\"\",\"\",'800111a - Nota. Detalle de CxC.'!Q129)","v":""},{"$f":"IF('800111a - Nota. Detalle de CxC.'!Q130=\"\",\"\",'800111a - Nota. Detalle de CxC.'!Q130)","v":""},{"$f":"IF('800111a - Nota. Detalle de CxC.'!Q131=\"\",\"\",'800111a - Nota. Detalle de CxC.'!Q131)","v":""},{"$f":"IF('800111a - Nota. Detalle de CxC.'!Q132=\"\",\"\",'800111a - Nota. Detalle de CxC.'!Q132)","v":""},{"$f":"IF('800111a - Nota. Detalle de CxC.'!Q133=\"\",\"\",'800111a - Nota. Detalle de CxC.'!Q133)","v":""},{"$f":"IF('800111a - Nota. Detalle de CxC.'!Q134=\"\",\"\",'800111a - Nota. Detalle de CxC.'!Q134)","v":""},{"$f":"IF('800111a - Nota. Detalle de CxC.'!Q135=\"\",\"\",'800111a - Nota. Detalle de CxC.'!Q135)","v":""},{"$f":"IF('800111a - Nota. Detalle de CxC.'!Q136=\"\",\"\",'800111a - Nota. Detalle de CxC.'!Q136)","v":""},{"$f":"IF('800111a - Nota. Detalle de CxC.'!Q137=\"\",\"\",'800111a - Nota. Detalle de CxC.'!Q137)","v":""},{"$f":"IF('800111a - Nota. Detalle de CxC.'!Q138=\"\",\"\",'800111a - Nota. Detalle de CxC.'!Q138)","v":""},{"$f":"IF('800111a - Nota. Detalle de CxC.'!Q139=\"\",\"\",'800111a - Nota. Detalle de CxC.'!Q139)","v":""},{"$f":"IF('800111a - Nota. Detalle de CxC.'!Q140=\"\",\"\",'800111a - Nota. Detalle de CxC.'!Q140)","v":""},{"$f":"IF('800111a - Nota. Detalle de CxC.'!Q141=\"\",\"\",'800111a - Nota. Detalle de CxC.'!Q141)","v":""},{"$f":"IF('800111a - Nota. Detalle de CxC.'!Q142=\"\",\"\",'800111a - Nota. Detalle de CxC.'!Q142)","v":""},{"$f":"IF('800111a - Nota. Detalle de CxC.'!Q143=\"\",\"\",'800111a - Nota. Detalle de CxC.'!Q143)","v":""},{"$f":"IF('800111a - Nota. Detalle de CxC.'!Q144=\"\",\"\",'800111a - Nota. Detalle de CxC.'!Q144)","v":""},{"$f":"IF('800111a - Nota. Detalle de CxC.'!Q145=\"\",\"\",'800111a - Nota. Detalle de CxC.'!Q145)","v":""},{"$f":"IF('800111a - Nota. Detalle de CxC.'!Q146=\"\",\"\",'800111a - Nota. Detalle de CxC.'!Q146)","v":""},{"$f":"IF('800111a - Nota. Detalle de CxC.'!Q147=\"\",\"\",'800111a - Nota. Detalle de CxC.'!Q147)","v":""},{"$f":"IF('800111a - Nota. Detalle de CxC.'!Q148=\"\",\"\",'800111a - Nota. Detalle de CxC.'!Q148)","v":""},{"$f":"IF('800111a - Nota. Detalle de CxC.'!Q149=\"\",\"\",'800111a - Nota. Detalle de CxC.'!Q149)","v":""},{"$f":"IF('800111a - Nota. Detalle de CxC.'!Q150=\"\",\"\",'800111a - Nota. Detalle de CxC.'!Q150)","v":""},{"$f":"IF('800111a - Nota. Detalle de CxC.'!Q151=\"\",\"\",'800111a - Nota. Detalle de CxC.'!Q151)","v":""},{"$f":"IF('800111a - Nota. Detalle de CxC.'!Q152=\"\",\"\",'800111a - Nota. Detalle de CxC.'!Q152)","v":""},{"$f":"IF('800111a - Nota. Detalle de CxC.'!Q153=\"\",\"\",'800111a - Nota. Detalle de CxC.'!Q153)","v":""},{"$f":"IF('800111a - Nota. Detalle de CxC.'!Q154=\"\",\"\",'800111a - Nota. Detalle de CxC.'!Q154)","v":""},{"$f":"IF('800111a - Nota. Detalle de CxC.'!Q155=\"\",\"\",'800111a - Nota. Detalle de CxC.'!Q155)","v":""},{"$f":"IF('800111a - Nota. Detalle de CxC.'!Q156=\"\",\"\",'800111a - Nota. Detalle de CxC.'!Q156)","v":""},{"$f":"IF('800111a - Nota. Detalle de CxC.'!Q157=\"\",\"\",'800111a - Nota. Detalle de CxC.'!Q157)","v":""},{"$f":"IF('800111a - Nota. Detalle de CxC.'!Q158=\"\",\"\",'800111a - Nota. Detalle de CxC.'!Q158)","v":""},{"$f":"IF('800111a - Nota. Detalle de CxC.'!Q159=\"\",\"\",'800111a - Nota. Detalle de CxC.'!Q159)","v":""},{"$f":"IF('800111a - Nota. Detalle de CxC.'!Q160=\"\",\"\",'800111a - Nota. Detalle de CxC.'!Q160)","v":""},{"$f":"IF('800111a - Nota. Detalle de CxC.'!Q161=\"\",\"\",'800111a - Nota. Detalle de CxC.'!Q161)","v":""},{"$f":"IF('800111a - Nota. Detalle de CxC.'!Q162=\"\",\"\",'800111a - Nota. Detalle de CxC.'!Q162)","v":""},{"$f":"IF('800111a - Nota. Detalle de CxC.'!Q163=\"\",\"\",'800111a - Nota. Detalle de CxC.'!Q163)","v":""},{"$f":"IF('800111a - Nota. Detalle de CxC.'!Q164=\"\",\"\",'800111a - Nota. Detalle de CxC.'!Q164)","v":""},{"$f":"IF('800111a - Nota. Detalle de CxC.'!Q165=\"\",\"\",'800111a - Nota. Detalle de CxC.'!Q165)","v":""},{"$f":"IF('800111a - Nota. Detalle de CxC.'!Q166=\"\",\"\",'800111a - Nota. Detalle de CxC.'!Q166)","v":""},{"$f":"IF('800111a - Nota. Detalle de CxC.'!Q167=\"\",\"\",'800111a - Nota. Detalle de CxC.'!Q167)","v":""},{"$f":"IF('800111a - Nota. Detalle de CxC.'!Q168=\"\",\"\",'800111a - Nota. Detalle de CxC.'!Q168)","v":""},{"$f":"IF('800111a - Nota. Detalle de CxC.'!Q169=\"\",\"\",'800111a - Nota. Detalle de CxC.'!Q169)","v":""},{"$f":"IF('800111a - Nota. Detalle de CxC.'!Q170=\"\",\"\",'800111a - Nota. Detalle de CxC.'!Q170)","v":""},{"$f":"IF('800111a - Nota. Detalle de CxC.'!Q171=\"\",\"\",'800111a - Nota. Detalle de CxC.'!Q171)","v":""},{"$f":"IF('800111a - Nota. Detalle de CxC.'!Q172=\"\",\"\",'800111a - Nota. Detalle de CxC.'!Q172)","v":""},{"$f":"IF('800111a - Nota. Detalle de CxC.'!Q173=\"\",\"\",'800111a - Nota. Detalle de CxC.'!Q173)","v":""},{"$f":"IF('800111a - Nota. Detalle de CxC.'!Q174=\"\",\"\",'800111a - Nota. Detalle de CxC.'!Q174)","v":0},{"$f":"IF('800111a - Nota. Detalle de CxC.'!Q175=\"\",\"\",'800111a - Nota. Detalle de CxC.'!Q175)","v":0}]
[]
[]
[]
[]
[]
[]
[]
[]
[]
[]
[]
[]
[]
[]
[]
[]
[]
[]
[]
[]
[]
[]
[]
[]
[]
[]
[]
[]
[]
[]
[]
[]
[]
[]
[]
[]
[]
[]
[]
[]
[]
[]
[]
[]
[]
[]
[]
[]
[]
[]
[]
[]
[]
[]
[]
[]
[]
[]
[]
[]
[]
[]
[]
[]
[]
[]
[]
[]
[]
[]
[]
[]
[]
[]
[]
[]
[]
[]
[]
[]
[]
[]
[]
[]
[]
[]
[]
[]
[]
[]
[]
[]
[]
[]
[]
[]
[]
[]
[]
[]
[]
[]
[]
[]
[]
[]
[]
[]
[]
[]
[]
[]
[]
[]
[]
[]
[]
[]
[]
[]
[]
[]
[]
[]
[]
[]
[]
[]
[]
[]
[]
[]
[]
[]
[]
[]
[]
[]
[]
[]
[]
[]
[]
[]
[]
[]
[]
[]
[]
[]
[]
[]
[]
[]
[]
[]
[]
[null,null,null,null,"co-svsp-core:RelacionCuentasXCobrarMiembro","co-svsp-core:RelacionCuentasXCobrarClientesMiembro","co-svsp-core:DetalleCuentasXCobrarClientes1Miembro","co-svsp-core:DetalleCuentasXCobrarClientes2Miembro","co-svsp-core:DetalleCuentasXCobrarClientes3Miembro","co-svsp-core:DetalleCuentasXCobrarClientes4Miembro","co-svsp-core:DetalleCuentasXCobrarClientes5Miembro","co-svsp-core:DetalleCuentasXCobrarClientes6Miembro","co-svsp-core:DetalleCuentasXCobrarClientes7Miembro","co-svsp-core:DetalleCuentasXCobrarClientes8Miembro","co-svsp-core:DetalleCuentasXCobrarClientes9Miembro","co-svsp-core:DetalleCuentasXCobrarClientes10Miembro","co-svsp-core:DetalleCuentasXCobrarClientes11Miembro","co-svsp-core:DetalleCuentasXCobrarClientes12Miembro","co-svsp-core:DetalleCuentasXCobrarClientes13Miembro","co-svsp-core:DetalleCuentasXCobrarClientes14Miembro","co-svsp-core:DetalleCuentasXCobrarClientes15Miembro","co-svsp-core:DetalleCuentasXCobrarClientes16Miembro","co-svsp-core:DetalleCuentasXCobrarClientes17Miembro","co-svsp-core:DetalleCuentasXCobrarClientes18Miembro","co-svsp-core:DetalleCuentasXCobrarClientes19Miembro","co-svsp-core:DetalleCuentasXCobrarClientes20Miembro","co-svsp-core:DetalleCuentasXCobrarClientes21Miembro","co-svsp-core:DetalleCuentasXCobrarClientes22Miembro","co-svsp-core:DetalleCuentasXCobrarClientes23Miembro","co-svsp-core:DetalleCuentasXCobrarClientes24Miembro","co-svsp-core:DetalleCuentasXCobrarClientes25Miembro","co-svsp-core:DetalleCuentasXCobrarClientes26Miembro","co-svsp-core:DetalleCuentasXCobrarClientes27Miembro","co-svsp-core:DetalleCuentasXCobrarClientes28Miembro","co-svsp-core:DetalleCuentasXCobrarClientes29Miembro","co-svsp-core:DetalleCuentasXCobrarClientes30Miembro","co-svsp-core:DetalleCuentasXCobrarClientes31Miembro","co-svsp-core:DetalleCuentasXCobrarClientes32Miembro","co-svsp-core:DetalleCuentasXCobrarClientes33Miembro","co-svsp-core:DetalleCuentasXCobrarClientes34Miembro","co-svsp-core:DetalleCuentasXCobrarClientes35Miembro","co-svsp-core:DetalleCuentasXCobrarClientes36Miembro","co-svsp-core:DetalleCuentasXCobrarClientes37Miembro","co-svsp-core:DetalleCuentasXCobrarClientes38Miembro","co-svsp-core:DetalleCuentasXCobrarClientes39Miembro","co-svsp-core:DetalleCuentasXCobrarClientes40Miembro","co-svsp-core:DetalleCuentasXCobrarClientes41Miembro","co-svsp-core:DetalleCuentasXCobrarClientes42Miembro","co-svsp-core:DetalleCuentasXCobrarClientes43Miembro","co-svsp-core:DetalleCuentasXCobrarClientes44Miembro","co-svsp-core:DetalleCuentasXCobrarClientes45Miembro","co-svsp-core:DetalleCuentasXCobrarClientes46Miembro","co-svsp-core:DetalleCuentasXCobrarClientes47Miembro","co-svsp-core:DetalleCuentasXCobrarClientes48Miembro","co-svsp-core:DetalleCuentasXCobrarClientes49Miembro","co-svsp-core:DetalleCuentasXCobrarClientes50Miembro","co-svsp-core:DetalleCuentasXCobrarClientes51EnAdelante","co-svsp-core:TotalDetalleCuentasXCobrarClientesMiembro","co-svsp-core:RelacionCuentasXCobrarAccionistasSociosVinculadasMiembro","co-svsp-core:DetalleCuentasXCobrarAccionistasSociosVinculadas1Miembro","co-svsp-core:DetalleCuentasXCobrarAccionistasSociosVinculadas2Miembro","co-svsp-core:DetalleCuentasXCobrarAccionistasSociosVinculadas3Miembro","co-svsp-core:DetalleCuentasXCobrarAccionistasSociosVinculadas4Miembro","co-svsp-core:DetalleCuentasXCobrarAccionistasSociosVinculadas5Miembro","co-svsp-core:DetalleCuentasXCobrarAccionistasSociosVinculadas6Miembro","co-svsp-core:DetalleCuentasXCobrarAccionistasSociosVinculadas7Miembro","co-svsp-core:DetalleCuentasXCobrarAccionistasSociosVinculadas8Miembro","co-svsp-core:DetalleCuentasXCobrarAccionistasSociosVinculadas9Miembro","co-svsp-core:DetalleCuentasXCobrarAccionistasSociosVinculadas10Miembro","co-svsp-core:DetalleCuentasXCobrarAccionistasSociosVinculadas11Miembro","co-svsp-core:DetalleCuentasXCobrarAccionistasSociosVinculadas12Miembro","co-svsp-core:DetalleCuentasXCobrarAccionistasSociosVinculadas13Miembro","co-svsp-core:DetalleCuentasXCobrarAccionistasSociosVinculadas14Miembro","co-svsp-core:DetalleCuentasXCobrarAccionistasSociosVinculadas15Miembro","co-svsp-core:DetalleCuentasXCobrarAccionistasSociosVinculadas16Miembro","co-svsp-core:DetalleCuentasXCobrarAccionistasSociosVinculadas17Miembro","co-svsp-core:DetalleCuentasXCobrarAccionistasSociosVinculadas18Miembro","co-svsp-core:DetalleCuentasXCobrarAccionistasSociosVinculadas19Miembro","co-svsp-core:DetalleCuentasXCobrarAccionistasSociosVinculadas20Miembro","co-svsp-core:DetalleCuentasXCobrarAccionistasSociosVinculadas21Miembro","co-svsp-core:DetalleCuentasXCobrarAccionistasSociosVinculadas22Miembro","co-svsp-core:DetalleCuentasXCobrarAccionistasSociosVinculadas23Miembro","co-svsp-core:DetalleCuentasXCobrarAccionistasSociosVinculadas24Miembro","co-svsp-core:DetalleCuentasXCobrarAccionistasSociosVinculadas25Miembro","co-svsp-core:DetalleCuentasXCobrarAccionistasSociosVinculadas26Miembro","co-svsp-core:DetalleCuentasXCobrarAccionistasSociosVinculadas27Miembro","co-svsp-core:DetalleCuentasXCobrarAccionistasSociosVinculadas28Miembro","co-svsp-core:DetalleCuentasXCobrarAccionistasSociosVinculadas29Miembro","co-svsp-core:DetalleCuentasXCobrarAccionistasSociosVinculadas30Miembro","co-svsp-core:DetalleCuentasXCobrarAccionistasSociosVinculadas31Miembro","co-svsp-core:DetalleCuentasXCobrarAccionistasSociosVinculadas32Miembro","co-svsp-core:DetalleCuentasXCobrarAccionistasSociosVinculadas33Miembro","co-svsp-core:DetalleCuentasXCobrarAccionistasSociosVinculadas34Miembro","co-svsp-core:DetalleCuentasXCobrarAccionistasSociosVinculadas35Miembro","co-svsp-core:DetalleCuentasXCobrarAccionistasSociosVinculadas36Miembro","co-svsp-core:DetalleCuentasXCobrarAccionistasSociosVinculadas37Miembro","co-svsp-core:DetalleCuentasXCobrarAccionistasSociosVinculadas38Miembro","co-svsp-core:DetalleCuentasXCobrarAccionistasSociosVinculadas39Miembro","co-svsp-core:DetalleCuentasXCobrarAccionistasSociosVinculadas40Miembro","co-svsp-core:DetalleCuentasXCobrarAccionistasSociosVinculadas41Miembro","co-svsp-core:DetalleCuentasXCobrarAccionistasSociosVinculadas42Miembro","co-svsp-core:DetalleCuentasXCobrarAccionistasSociosVinculadas43Miembro","co-svsp-core:DetalleCuentasXCobrarAccionistasSociosVinculadas44Miembro","co-svsp-core:DetalleCuentasXCobrarAccionistasSociosVinculadas45Miembro","co-svsp-core:DetalleCuentasXCobrarAccionistasSociosVinculadas46Miembro","co-svsp-core:DetalleCuentasXCobrarAccionistasSociosVinculadas47Miembro","co-svsp-core:DetalleCuentasXCobrarAccionistasSociosVinculadas48Miembro","co-svsp-core:DetalleCuentasXCobrarAccionistasSociosVinculadas49Miembro","co-svsp-core:DetalleCuentasXCobrarAccionistasSociosVinculadas50Miembro","co-svsp-core:DetalleCuentasXCobrarAccionistasSociosVinculadas51EnAdelante","co-svsp-core:TotalDetalleCuentasXCobrarAccionistasSociosVinculadasMiembro","co-svsp-core:RelacionCuentasXCobrarOtrasCuentasXCobrarMiembro","co-svsp-core:DetalleCuentasXCobrarOtrasCuentasXCobrar1Miembro","co-svsp-core:DetalleCuentasXCobrarOtrasCuentasXCobrar2Miembro","co-svsp-core:DetalleCuentasXCobrarOtrasCuentasXCobrar3Miembro","co-svsp-core:DetalleCuentasXCobrarOtrasCuentasXCobrar4Miembro","co-svsp-core:DetalleCuentasXCobrarOtrasCuentasXCobrar5Miembro","co-svsp-core:DetalleCuentasXCobrarOtrasCuentasXCobrar6Miembro","co-svsp-core:DetalleCuentasXCobrarOtrasCuentasXCobrar7Miembro","co-svsp-core:DetalleCuentasXCobrarOtrasCuentasXCobrar8Miembro","co-svsp-core:DetalleCuentasXCobrarOtrasCuentasXCobrar9Miembro","co-svsp-core:DetalleCuentasXCobrarOtrasCuentasXCobrar10Miembro","co-svsp-core:DetalleCuentasXCobrarOtrasCuentasXCobrar11Miembro","co-svsp-core:DetalleCuentasXCobrarOtrasCuentasXCobrar12Miembro","co-svsp-core:DetalleCuentasXCobrarOtrasCuentasXCobrar13Miembro","co-svsp-core:DetalleCuentasXCobrarOtrasCuentasXCobrar14Miembro","co-svsp-core:DetalleCuentasXCobrarOtrasCuentasXCobrar15Miembro","co-svsp-core:DetalleCuentasXCobrarOtrasCuentasXCobrar16Miembro","co-svsp-core:DetalleCuentasXCobrarOtrasCuentasXCobrar17Miembro","co-svsp-core:DetalleCuentasXCobrarOtrasCuentasXCobrar18Miembro","co-svsp-core:DetalleCuentasXCobrarOtrasCuentasXCobrar19Miembro","co-svsp-core:DetalleCuentasXCobrarOtrasCuentasXCobrar20Miembro","co-svsp-core:DetalleCuentasXCobrarOtrasCuentasXCobrar21Miembro","co-svsp-core:DetalleCuentasXCobrarOtrasCuentasXCobrar22Miembro","co-svsp-core:DetalleCuentasXCobrarOtrasCuentasXCobrar23Miembro","co-svsp-core:DetalleCuentasXCobrarOtrasCuentasXCobrar24Miembro","co-svsp-core:DetalleCuentasXCobrarOtrasCuentasXCobrar25Miembro","co-svsp-core:DetalleCuentasXCobrarOtrasCuentasXCobrar26Miembro","co-svsp-core:DetalleCuentasXCobrarOtrasCuentasXCobrar27Miembro","co-svsp-core:DetalleCuentasXCobrarOtrasCuentasXCobrar28Miembro","co-svsp-core:DetalleCuentasXCobrarOtrasCuentasXCobrar29Miembro","co-svsp-core:DetalleCuentasXCobrarOtrasCuentasXCobrar30Miembro","co-svsp-core:DetalleCuentasXCobrarOtrasCuentasXCobrar31Miembro","co-svsp-core:DetalleCuentasXCobrarOtrasCuentasXCobrar32Miembro","co-svsp-core:DetalleCuentasXCobrarOtrasCuentasXCobrar33Miembro","co-svsp-core:DetalleCuentasXCobrarOtrasCuentasXCobrar34Miembro","co-svsp-core:DetalleCuentasXCobrarOtrasCuentasXCobrar35Miembro","co-svsp-core:DetalleCuentasXCobrarOtrasCuentasXCobrar36Miembro","co-svsp-core:DetalleCuentasXCobrarOtrasCuentasXCobrar37Miembro","co-svsp-core:DetalleCuentasXCobrarOtrasCuentasXCobrar38Miembro","co-svsp-core:DetalleCuentasXCobrarOtrasCuentasXCobrar39Miembro","co-svsp-core:DetalleCuentasXCobrarOtrasCuentasXCobrar40Miembro","co-svsp-core:DetalleCuentasXCobrarOtrasCuentasXCobrar41Miembro","co-svsp-core:DetalleCuentasXCobrarOtrasCuentasXCobrar42Miembro","co-svsp-core:DetalleCuentasXCobrarOtrasCuentasXCobrar43Miembro","co-svsp-core:DetalleCuentasXCobrarOtrasCuentasXCobrar44Miembro","co-svsp-core:DetalleCuentasXCobrarOtrasCuentasXCobrar45Miembro","co-svsp-core:DetalleCuentasXCobrarOtrasCuentasXCobrar46Miembro","co-svsp-core:DetalleCuentasXCobrarOtrasCuentasXCobrar47Miembro","co-svsp-core:DetalleCuentasXCobrarOtrasCuentasXCobrar48Miembro","co-svsp-core:DetalleCuentasXCobrarOtrasCuentasXCobrar49Miembro","co-svsp-core:DetalleCuentasXCobrarOtrasCuentasXCobrar50Miembro","co-svsp-core:DetalleCuentasXCobrarOtrasCuentasXCobrar51EnAdelante","co-svsp-core:TotalDetalleCuentasXCobrarOtrasCuentasXCobrarMiembro","co-svsp-core:TotalDetalleCuentasXCobrarMiembro"]
[null,"Periodo",null,"co-svsp-core:DetalleCuentasXCobrar_Eje","Relación de cuentas por cobrar [miembro]","Relación de cuentas por cobrar clientes [miembro]","Detalle de cuentas por cobrar clientes 1 [miembro]","Detalle de cuentas por cobrar clientes 2 [miembro]","Detalle de cuentas por cobrar clientes 3 [miembro]","Detalle de cuentas por cobrar clientes 4 [miembro]","Detalle de cuentas por cobrar clientes 5 [miembro]","Detalle de cuentas por cobrar clientes 6 [miembro]","Detalle de cuentas por cobrar clientes 7 [miembro]","Detalle de cuentas por cobrar clientes 8 [miembro]","Detalle de cuentas por cobrar clientes 9 [miembro]","Detalle de cuentas por cobrar clientes 10 [miembro]","Detalle de cuentas por cobrar clientes 11 [miembro]","Detalle de cuentas por cobrar clientes 12 [miembro]","Detalle de cuentas por cobrar clientes 13 [miembro]","Detalle de cuentas por cobrar clientes 14 [miembro]","Detalle de cuentas por cobrar clientes 15 [miembro]","Detalle de cuentas por cobrar clientes 16 [miembro]","Detalle de cuentas por cobrar clientes 17 [miembro]","Detalle de cuentas por cobrar clientes 18 [miembro]","Detalle de cuentas por cobrar clientes 19 [miembro]","Detalle de cuentas por cobrar clientes 20 [miembro]","Detalle de cuentas por cobrar clientes 21 [miembro]","Detalle de cuentas por cobrar clientes 22 [miembro]","Detalle de cuentas por cobrar clientes 23 [miembro]","Detalle de cuentas por cobrar clientes 24 [miembro]","Detalle de cuentas por cobrar clientes 25 [miembro]","Detalle de cuentas por cobrar clientes 26 [miembro]","Detalle de cuentas por cobrar clientes 27 [miembro]","Detalle de cuentas por cobrar clientes 28 [miembro]","Detalle de cuentas por cobrar clientes 29 [miembro]","Detalle de cuentas por cobrar clientes 30 [miembro]","Detalle de cuentas por cobrar clientes 31 [miembro]","Detalle de cuentas por cobrar clientes 32 [miembro]","Detalle de cuentas por cobrar clientes 33 [miembro]","Detalle de cuentas por cobrar clientes 34 [miembro]","Detalle de cuentas por cobrar clientes 35 [miembro]","Detalle de cuentas por cobrar clientes 36 [miembro]","Detalle de cuentas por cobrar clientes 37 [miembro]","Detalle de cuentas por cobrar clientes 38 [miembro]","Detalle de cuentas por cobrar clientes 39 [miembro]","Detalle de cuentas por cobrar clientes 40 [miembro]","Detalle de cuentas por cobrar clientes 41 [miembro]","Detalle de cuentas por cobrar clientes 42 [miembro]","Detalle de cuentas por cobrar clientes 43 [miembro]","Detalle de cuentas por cobrar clientes 44 [miembro]","Detalle de cuentas por cobrar clientes 45 [miembro]","Detalle de cuentas por cobrar clientes 46 [miembro]","Detalle de cuentas por cobrar clientes 47 [miembro]","Detalle de cuentas por cobrar clientes 48 [miembro]","Detalle de cuentas por cobrar clientes 49 [miembro]","Detalle de cuentas por cobrar clientes 50 [miembro]","Detalle de cuentas por cobrar clientes 51 en adelante [miembro]","Total Detalle de cuentas por cobrar clientes [miembro]","Relación de cuentas por cobrar, compañías accionostas, socios y compañías vinculadas [miembro]","Detalle de cuentas por cobrar a accionistas, socios o vinculadas 1 [miembro]","Detalle de cuentas por cobrar a accionistas, socios o vinculadas 2 [miembro]","Detalle de cuentas por cobrar a accionistas, socios o vinculadas 3 [miembro]","Detalle de cuentas por cobrar a accionistas, socios o vinculadas 4 [miembro]","Detalle de cuentas por cobrar a accionistas, socios o vinculadas 5 [miembro]","Detalle de cuentas por cobrar a accionistas, socios o vinculadas 6 [miembro]","Detalle de cuentas por cobrar a accionistas, socios o vinculadas 7 [miembro]","Detalle de cuentas por cobrar a accionistas, socios o vinculadas 8 [miembro]","Detalle de cuentas por cobrar a accionistas, socios o vinculadas 9 [miembro]","Detalle de cuentas por cobrar a accionistas, socios o vinculadas 10 [miembro]","Detalle de cuentas por cobrar a accionistas, socios o vinculadas 11 [miembro]","Detalle de cuentas por cobrar a accionistas, socios o vinculadas 12 [miembro]","Detalle de cuentas por cobrar a accionistas, socios o vinculadas 13 [miembro]","Detalle de cuentas por cobrar a accionistas, socios o vinculadas 14 [miembro]","Detalle de cuentas por cobrar a accionistas, socios o vinculadas 15 [miembro]","Detalle de cuentas por cobrar a accionistas, socios o vinculadas 16 [miembro]","Detalle de cuentas por cobrar a accionistas, socios o vinculadas 17 [miembro]","Detalle de cuentas por cobrar a accionistas, socios o vinculadas 18 [miembro]","Detalle de cuentas por cobrar a accionistas, socios o vinculadas 19 [miembro]","Detalle de cuentas por cobrar a accionistas, socios o vinculadas 20 [miembro]","Detalle de cuentas por cobrar a accionistas, socios o vinculadas 21 [miembro]","Detalle de cuentas por cobrar a accionistas, socios o vinculadas 22 [miembro]","Detalle de cuentas por cobrar a accionistas, socios o vinculadas 23 [miembro]","Detalle de cuentas por cobrar a accionistas, socios o vinculadas 24 [miembro]","Detalle de cuentas por cobrar a accionistas, socios o vinculadas 25 [miembro]","Detalle de cuentas por cobrar a accionistas, socios o vinculadas 26 [miembro]","Detalle de cuentas por cobrar a accionistas, socios o vinculadas 27 [miembro]","Detalle de cuentas por cobrar a accionistas, socios o vinculadas 28 [miembro]","Detalle de cuentas por cobrar a accionistas, socios o vinculadas 29 [miembro]","Detalle de cuentas por cobrar a accionistas, socios o vinculadas 30 [miembro]","Detalle de cuentas por cobrar a accionistas, socios o vinculadas 31 [miembro]","Detalle de cuentas por cobrar a accionistas, socios o vinculadas 32 [miembro]","Detalle de cuentas por cobrar a accionistas, socios o vinculadas 33 [miembro]","Detalle de cuentas por cobrar a accionistas, socios o vinculadas 34 [miembro]","Detalle de cuentas por cobrar a accionistas, socios o vinculadas 35 [miembro]","Detalle de cuentas por cobrar a accionistas, socios o vinculadas 36 [miembro]","Detalle de cuentas por cobrar a accionistas, socios o vinculadas 37 [miembro]","Detalle de cuentas por cobrar a accionistas, socios o vinculadas 38 [miembro]","Detalle de cuentas por cobrar a accionistas, socios o vinculadas 39 [miembro]","Detalle de cuentas por cobrar a accionistas, socios o vinculadas 40 [miembro]","Detalle de cuentas por cobrar a accionistas, socios o vinculadas 41 [miembro]","Detalle de cuentas por cobrar a accionistas, socios o vinculadas 42 [miembro]","Detalle de cuentas por cobrar a accionistas, socios o vinculadas 43 [miembro]","Detalle de cuentas por cobrar a accionistas, socios o vinculadas 44 [miembro]","Detalle de cuentas por cobrar a accionistas, socios o vinculadas 45 [miembro]","Detalle de cuentas por cobrar a accionistas, socios o vinculadas 46 [miembro]","Detalle de cuentas por cobrar a accionistas, socios o vinculadas 47 [miembro]","Detalle de cuentas por cobrar a accionistas, socios o vinculadas 48 [miembro]","Detalle de cuentas por cobrar a accionistas, socios o vinculadas 49 [miembro]","Detalle de cuentas por cobrar a accionistas, socios o vinculadas 50 [miembro]","Detalle de cuentas por cobrar a accionistas, socios o vinculadas 51 en adelante [miembro]","Total Detalle de cuentas por cobrar a accionistas, socios o vinculadas [miembro]","Relación de otras cuentas por cobrar [miembro]","Detalle de cuentas por cobrar Otras cuentas por cobrar  1 [miembro]","Detalle de cuentas por cobrar Otras cuentas por cobrar  2 [miembro]","Detalle de cuentas por cobrar Otras cuentas por cobrar  3 [miembro]","Detalle de cuentas por cobrar Otras cuentas por cobrar  4 [miembro]","Detalle de cuentas por cobrar Otras cuentas por cobrar  5 [miembro]","Detalle de cuentas por cobrar Otras cuentas por cobrar  6 [miembro]","Detalle de cuentas por cobrar Otras cuentas por cobrar  7 [miembro]","Detalle de cuentas por cobrar Otras cuentas por cobrar  8 [miembro]","Detalle de cuentas por cobrar Otras cuentas por cobrar  9 [miembro]","Detalle de cuentas por cobrar Otras cuentas por cobrar  10 [miembro]","Detalle de cuentas por cobrar Otras cuentas por cobrar  11 [miembro]","Detalle de cuentas por cobrar Otras cuentas por cobrar  12 [miembro]","Detalle de cuentas por cobrar Otras cuentas por cobrar  13 [miembro]","Detalle de cuentas por cobrar Otras cuentas por cobrar  14 [miembro]","Detalle de cuentas por cobrar Otras cuentas por cobrar  15 [miembro]","Detalle de cuentas por cobrar Otras cuentas por cobrar  16 [miembro]","Detalle de cuentas por cobrar Otras cuentas por cobrar  17 [miembro]","Detalle de cuentas por cobrar Otras cuentas por cobrar  18 [miembro]","Detalle de cuentas por cobrar Otras cuentas por cobrar  19 [miembro]","Detalle de cuentas por cobrar Otras cuentas por cobrar  20 [miembro]","Detalle de cuentas por cobrar Otras cuentas por cobrar  21 [miembro]","Detalle de cuentas por cobrar Otras cuentas por cobrar  22 [miembro]","Detalle de cuentas por cobrar Otras cuentas por cobrar  23 [miembro]","Detalle de cuentas por cobrar Otras cuentas por cobrar  24 [miembro]","Detalle de cuentas por cobrar Otras cuentas por cobrar  25 [miembro]","Detalle de cuentas por cobrar Otras cuentas por cobrar  26 [miembro]","Detalle de cuentas por cobrar Otras cuentas por cobrar  27 [miembro]","Detalle de cuentas por cobrar Otras cuentas por cobrar  28 [miembro]","Detalle de cuentas por cobrar Otras cuentas por cobrar  29 [miembro]","Detalle de cuentas por cobrar Otras cuentas por cobrar  30 [miembro]","Detalle de cuentas por cobrar Otras cuentas por cobrar  31 [miembro]","Detalle de cuentas por cobrar Otras cuentas por cobrar  32 [miembro]","Detalle de cuentas por cobrar Otras cuentas por cobrar  33 [miembro]","Detalle de cuentas por cobrar Otras cuentas por cobrar  34 [miembro]","Detalle de cuentas por cobrar Otras cuentas por cobrar  35 [miembro]","Detalle de cuentas por cobrar Otras cuentas por cobrar  36 [miembro]","Detalle de cuentas por cobrar Otras cuentas por cobrar  37 [miembro]","Detalle de cuentas por cobrar Otras cuentas por cobrar  38 [miembro]","Detalle de cuentas por cobrar Otras cuentas por cobrar  39 [miembro]","Detalle de cuentas por cobrar Otras cuentas por cobrar  40 [miembro]","Detalle de cuentas por cobrar Otras cuentas por cobrar  41 [miembro]","Detalle de cuentas por cobrar Otras cuentas por cobrar  42 [miembro]","Detalle de cuentas por cobrar Otras cuentas por cobrar  43 [miembro]","Detalle de cuentas por cobrar Otras cuentas por cobrar  44 [miembro]","Detalle de cuentas por cobrar Otras cuentas por cobrar  45 [miembro]","Detalle de cuentas por cobrar Otras cuentas por cobrar  46 [miembro]","Detalle de cuentas por cobrar Otras cuentas por cobrar  47 [miembro]","Detalle de cuentas por cobrar Otras cuentas por cobrar  48 [miembro]","Detalle de cuentas por cobrar Otras cuentas por cobrar  49 [miembro]","Detalle de cuentas por cobrar Otras cuentas por cobrar  50 [miembro]","Detalle de cuentas por cobrar Otras cuentas por cobrar  51 en adelante [miembro]","Total Detalle de cuentas por cobrar, otras cuentas por cobrar [miembro]","Total Detalle de cuentas por cobrar [miembro]"]
[null,"1;2","co-svsp-core:TipoDeDocumentoDeudorCxC","Tipo de documento del deudor",null,null,{"$f":"IF('800111a - Nota. Detalle de CxC.'!F188=\"\",\"\",'800111a - Nota. Detalle de CxC.'!F188)","v":""},{"$f":"IF('800111a - Nota. Detalle de CxC.'!F189=\"\",\"\",'800111a - Nota. Detalle de CxC.'!F189)","v":""},{"$f":"IF('800111a - Nota. Detalle de CxC.'!F190=\"\",\"\",'800111a - Nota. Detalle de CxC.'!F190)","v":""},{"$f":"IF('800111a - Nota. Detalle de CxC.'!F191=\"\",\"\",'800111a - Nota. Detalle de CxC.'!F191)","v":""},{"$f":"IF('800111a - Nota. Detalle de CxC.'!F192=\"\",\"\",'800111a - Nota. Detalle de CxC.'!F192)","v":""},{"$f":"IF('800111a - Nota. Detalle de CxC.'!F193=\"\",\"\",'800111a - Nota. Detalle de CxC.'!F193)","v":""},{"$f":"IF('800111a - Nota. Detalle de CxC.'!F194=\"\",\"\",'800111a - Nota. Detalle de CxC.'!F194)","v":""},{"$f":"IF('800111a - Nota. Detalle de CxC.'!F195=\"\",\"\",'800111a - Nota. Detalle de CxC.'!F195)","v":""},{"$f":"IF('800111a - Nota. Detalle de CxC.'!F196=\"\",\"\",'800111a - Nota. Detalle de CxC.'!F196)","v":""},{"$f":"IF('800111a - Nota. Detalle de CxC.'!F197=\"\",\"\",'800111a - Nota. Detalle de CxC.'!F197)","v":""},{"$f":"IF('800111a - Nota. Detalle de CxC.'!F198=\"\",\"\",'800111a - Nota. Detalle de CxC.'!F198)","v":""},{"$f":"IF('800111a - Nota. Detalle de CxC.'!F199=\"\",\"\",'800111a - Nota. Detalle de CxC.'!F199)","v":""},{"$f":"IF('800111a - Nota. Detalle de CxC.'!F200=\"\",\"\",'800111a - Nota. Detalle de CxC.'!F200)","v":""},{"$f":"IF('800111a - Nota. Detalle de CxC.'!F201=\"\",\"\",'800111a - Nota. Detalle de CxC.'!F201)","v":""},{"$f":"IF('800111a - Nota. Detalle de CxC.'!F202=\"\",\"\",'800111a - Nota. Detalle de CxC.'!F202)","v":""},{"$f":"IF('800111a - Nota. Detalle de CxC.'!F203=\"\",\"\",'800111a - Nota. Detalle de CxC.'!F203)","v":""},{"$f":"IF('800111a - Nota. Detalle de CxC.'!F204=\"\",\"\",'800111a - Nota. Detalle de CxC.'!F204)","v":""},{"$f":"IF('800111a - Nota. Detalle de CxC.'!F205=\"\",\"\",'800111a - Nota. Detalle de CxC.'!F205)","v":""},{"$f":"IF('800111a - Nota. Detalle de CxC.'!F206=\"\",\"\",'800111a - Nota. Detalle de CxC.'!F206)","v":""},{"$f":"IF('800111a - Nota. Detalle de CxC.'!F207=\"\",\"\",'800111a - Nota. Detalle de CxC.'!F207)","v":""},{"$f":"IF('800111a - Nota. Detalle de CxC.'!F208=\"\",\"\",'800111a - Nota. Detalle de CxC.'!F208)","v":""},{"$f":"IF('800111a - Nota. Detalle de CxC.'!F209=\"\",\"\",'800111a - Nota. Detalle de CxC.'!F209)","v":""},{"$f":"IF('800111a - Nota. Detalle de CxC.'!F210=\"\",\"\",'800111a - Nota. Detalle de CxC.'!F210)","v":""},{"$f":"IF('800111a - Nota. Detalle de CxC.'!F211=\"\",\"\",'800111a - Nota. Detalle de CxC.'!F211)","v":""},{"$f":"IF('800111a - Nota. Detalle de CxC.'!F212=\"\",\"\",'800111a - Nota. Detalle de CxC.'!F212)","v":""},{"$f":"IF('800111a - Nota. Detalle de CxC.'!F213=\"\",\"\",'800111a - Nota. Detalle de CxC.'!F213)","v":""},{"$f":"IF('800111a - Nota. Detalle de CxC.'!F214=\"\",\"\",'800111a - Nota. Detalle de CxC.'!F214)","v":""},{"$f":"IF('800111a - Nota. Detalle de CxC.'!F215=\"\",\"\",'800111a - Nota. Detalle de CxC.'!F215)","v":""},{"$f":"IF('800111a - Nota. Detalle de CxC.'!F216=\"\",\"\",'800111a - Nota. Detalle de CxC.'!F216)","v":""},{"$f":"IF('800111a - Nota. Detalle de CxC.'!F217=\"\",\"\",'800111a - Nota. Detalle de CxC.'!F217)","v":""},{"$f":"IF('800111a - Nota. Detalle de CxC.'!F218=\"\",\"\",'800111a - Nota. Detalle de CxC.'!F218)","v":""},{"$f":"IF('800111a - Nota. Detalle de CxC.'!F219=\"\",\"\",'800111a - Nota. Detalle de CxC.'!F219)","v":""},{"$f":"IF('800111a - Nota. Detalle de CxC.'!F220=\"\",\"\",'800111a - Nota. Detalle de CxC.'!F220)","v":""},{"$f":"IF('800111a - Nota. Detalle de CxC.'!F221=\"\",\"\",'800111a - Nota. Detalle de CxC.'!F221)","v":""},{"$f":"IF('800111a - Nota. Detalle de CxC.'!F222=\"\",\"\",'800111a - Nota. Detalle de CxC.'!F222)","v":""},{"$f":"IF('800111a - Nota. Detalle de CxC.'!F223=\"\",\"\",'800111a - Nota. Detalle de CxC.'!F223)","v":""},{"$f":"IF('800111a - Nota. Detalle de CxC.'!F224=\"\",\"\",'800111a - Nota. Detalle de CxC.'!F224)","v":""},{"$f":"IF('800111a - Nota. Detalle de CxC.'!F225=\"\",\"\",'800111a - Nota. Detalle de CxC.'!F225)","v":""},{"$f":"IF('800111a - Nota. Detalle de CxC.'!F226=\"\",\"\",'800111a - Nota. Detalle de CxC.'!F226)","v":""},{"$f":"IF('800111a - Nota. Detalle de CxC.'!F227=\"\",\"\",'800111a - Nota. Detalle de CxC.'!F227)","v":""},{"$f":"IF('800111a - Nota. Detalle de CxC.'!F228=\"\",\"\",'800111a - Nota. Detalle de CxC.'!F228)","v":""},{"$f":"IF('800111a - Nota. Detalle de CxC.'!F229=\"\",\"\",'800111a - Nota. Detalle de CxC.'!F229)","v":""},{"$f":"IF('800111a - Nota. Detalle de CxC.'!F230=\"\",\"\",'800111a - Nota. Detalle de CxC.'!F230)","v":""},{"$f":"IF('800111a - Nota. Detalle de CxC.'!F231=\"\",\"\",'800111a - Nota. Detalle de CxC.'!F231)","v":""},{"$f":"IF('800111a - Nota. Detalle de CxC.'!F232=\"\",\"\",'800111a - Nota. Detalle de CxC.'!F232)","v":""},{"$f":"IF('800111a - Nota. Detalle de CxC.'!F233=\"\",\"\",'800111a - Nota. Detalle de CxC.'!F233)","v":""},{"$f":"IF('800111a - Nota. Detalle de CxC.'!F234=\"\",\"\",'800111a - Nota. Detalle de CxC.'!F234)","v":""},{"$f":"IF('800111a - Nota. Detalle de CxC.'!F235=\"\",\"\",'800111a - Nota. Detalle de CxC.'!F235)","v":""},{"$f":"IF('800111a - Nota. Detalle de CxC.'!F236=\"\",\"\",'800111a - Nota. Detalle de CxC.'!F236)","v":""},{"$f":"IF('800111a - Nota. Detalle de CxC.'!F237=\"\",\"\",'800111a - Nota. Detalle de CxC.'!F237)","v":""},null,null,null,{"$f":"IF('800111a - Nota. Detalle de CxC.'!F241=\"\",\"\",'800111a - Nota. Detalle de CxC.'!F241)","v":""},{"$f":"IF('800111a - Nota. Detalle de CxC.'!F242=\"\",\"\",'800111a - Nota. Detalle de CxC.'!F242)","v":""},{"$f":"IF('800111a - Nota. Detalle de CxC.'!F243=\"\",\"\",'800111a - Nota. Detalle de CxC.'!F243)","v":""},{"$f":"IF('800111a - Nota. Detalle de CxC.'!F244=\"\",\"\",'800111a - Nota. Detalle de CxC.'!F244)","v":""},{"$f":"IF('800111a - Nota. Detalle de CxC.'!F245=\"\",\"\",'800111a - Nota. Detalle de CxC.'!F245)","v":""},{"$f":"IF('800111a - Nota. Detalle de CxC.'!F246=\"\",\"\",'800111a - Nota. Detalle de CxC.'!F246)","v":""},{"$f":"IF('800111a - Nota. Detalle de CxC.'!F247=\"\",\"\",'800111a - Nota. Detalle de CxC.'!F247)","v":""},{"$f":"IF('800111a - Nota. Detalle de CxC.'!F248=\"\",\"\",'800111a - Nota. Detalle de CxC.'!F248)","v":""},{"$f":"IF('800111a - Nota. Detalle de CxC.'!F249=\"\",\"\",'800111a - Nota. Detalle de CxC.'!F249)","v":""},{"$f":"IF('800111a - Nota. Detalle de CxC.'!F250=\"\",\"\",'800111a - Nota. Detalle de CxC.'!F250)","v":""},{"$f":"IF('800111a - Nota. Detalle de CxC.'!F251=\"\",\"\",'800111a - Nota. Detalle de CxC.'!F251)","v":""},{"$f":"IF('800111a - Nota. Detalle de CxC.'!F252=\"\",\"\",'800111a - Nota. Detalle de CxC.'!F252)","v":""},{"$f":"IF('800111a - Nota. Detalle de CxC.'!F253=\"\",\"\",'800111a - Nota. Detalle de CxC.'!F253)","v":""},{"$f":"IF('800111a - Nota. Detalle de CxC.'!F254=\"\",\"\",'800111a - Nota. Detalle de CxC.'!F254)","v":""},{"$f":"IF('800111a - Nota. Detalle de CxC.'!F255=\"\",\"\",'800111a - Nota. Detalle de CxC.'!F255)","v":""},{"$f":"IF('800111a - Nota. Detalle de CxC.'!F256=\"\",\"\",'800111a - Nota. Detalle de CxC.'!F256)","v":""},{"$f":"IF('800111a - Nota. Detalle de CxC.'!F257=\"\",\"\",'800111a - Nota. Detalle de CxC.'!F257)","v":""},{"$f":"IF('800111a - Nota. Detalle de CxC.'!F258=\"\",\"\",'800111a - Nota. Detalle de CxC.'!F258)","v":""},{"$f":"IF('800111a - Nota. Detalle de CxC.'!F259=\"\",\"\",'800111a - Nota. Detalle de CxC.'!F259)","v":""},{"$f":"IF('800111a - Nota. Detalle de CxC.'!F260=\"\",\"\",'800111a - Nota. Detalle de CxC.'!F260)","v":""},{"$f":"IF('800111a - Nota. Detalle de CxC.'!F261=\"\",\"\",'800111a - Nota. Detalle de CxC.'!F261)","v":""},{"$f":"IF('800111a - Nota. Detalle de CxC.'!F262=\"\",\"\",'800111a - Nota. Detalle de CxC.'!F262)","v":""},{"$f":"IF('800111a - Nota. Detalle de CxC.'!F263=\"\",\"\",'800111a - Nota. Detalle de CxC.'!F263)","v":""},{"$f":"IF('800111a - Nota. Detalle de CxC.'!F264=\"\",\"\",'800111a - Nota. Detalle de CxC.'!F264)","v":""},{"$f":"IF('800111a - Nota. Detalle de CxC.'!F265=\"\",\"\",'800111a - Nota. Detalle de CxC.'!F265)","v":""},{"$f":"IF('800111a - Nota. Detalle de CxC.'!F266=\"\",\"\",'800111a - Nota. Detalle de CxC.'!F266)","v":""},{"$f":"IF('800111a - Nota. Detalle de CxC.'!F267=\"\",\"\",'800111a - Nota. Detalle de CxC.'!F267)","v":""},{"$f":"IF('800111a - Nota. Detalle de CxC.'!F268=\"\",\"\",'800111a - Nota. Detalle de CxC.'!F268)","v":""},{"$f":"IF('800111a - Nota. Detalle de CxC.'!F269=\"\",\"\",'800111a - Nota. Detalle de CxC.'!F269)","v":""},{"$f":"IF('800111a - Nota. Detalle de CxC.'!F270=\"\",\"\",'800111a - Nota. Detalle de CxC.'!F270)","v":""},{"$f":"IF('800111a - Nota. Detalle de CxC.'!F271=\"\",\"\",'800111a - Nota. Detalle de CxC.'!F271)","v":""},{"$f":"IF('800111a - Nota. Detalle de CxC.'!F272=\"\",\"\",'800111a - Nota. Detalle de CxC.'!F272)","v":""},{"$f":"IF('800111a - Nota. Detalle de CxC.'!F273=\"\",\"\",'800111a - Nota. Detalle de CxC.'!F273)","v":""},{"$f":"IF('800111a - Nota. Detalle de CxC.'!F274=\"\",\"\",'800111a - Nota. Detalle de CxC.'!F274)","v":""},{"$f":"IF('800111a - Nota. Detalle de CxC.'!F275=\"\",\"\",'800111a - Nota. Detalle de CxC.'!F275)","v":""},{"$f":"IF('800111a - Nota. Detalle de CxC.'!F276=\"\",\"\",'800111a - Nota. Detalle de CxC.'!F276)","v":""},{"$f":"IF('800111a - Nota. Detalle de CxC.'!F277=\"\",\"\",'800111a - Nota. Detalle de CxC.'!F277)","v":""},{"$f":"IF('800111a - Nota. Detalle de CxC.'!F278=\"\",\"\",'800111a - Nota. Detalle de CxC.'!F278)","v":""},{"$f":"IF('800111a - Nota. Detalle de CxC.'!F279=\"\",\"\",'800111a - Nota. Detalle de CxC.'!F279)","v":""},{"$f":"IF('800111a - Nota. Detalle de CxC.'!F280=\"\",\"\",'800111a - Nota. Detalle de CxC.'!F280)","v":""},{"$f":"IF('800111a - Nota. Detalle de CxC.'!F281=\"\",\"\",'800111a - Nota. Detalle de CxC.'!F281)","v":""},{"$f":"IF('800111a - Nota. Detalle de CxC.'!F282=\"\",\"\",'800111a - Nota. Detalle de CxC.'!F282)","v":""},{"$f":"IF('800111a - Nota. Detalle de CxC.'!F283=\"\",\"\",'800111a - Nota. Detalle de CxC.'!F283)","v":""},{"$f":"IF('800111a - Nota. Detalle de CxC.'!F284=\"\",\"\",'800111a - Nota. Detalle de CxC.'!F284)","v":""},{"$f":"IF('800111a - Nota. Detalle de CxC.'!F285=\"\",\"\",'800111a - Nota. Detalle de CxC.'!F285)","v":""},{"$f":"IF('800111a - Nota. Detalle de CxC.'!F286=\"\",\"\",'800111a - Nota. Detalle de CxC.'!F286)","v":""},{"$f":"IF('800111a - Nota. Detalle de CxC.'!F287=\"\",\"\",'800111a - Nota. Detalle de CxC.'!F287)","v":""},{"$f":"IF('800111a - Nota. Detalle de CxC.'!F288=\"\",\"\",'800111a - Nota. Detalle de CxC.'!F288)","v":""},{"$f":"IF('800111a - Nota. Detalle de CxC.'!F289=\"\",\"\",'800111a - Nota. Detalle de CxC.'!F289)","v":""},{"$f":"IF('800111a - Nota. Detalle de CxC.'!F290=\"\",\"\",'800111a - Nota. Detalle de CxC.'!F290)","v":""},null,null,null,{"$f":"IF('800111a - Nota. Detalle de CxC.'!F294=\"\",\"\",'800111a - Nota. Detalle de CxC.'!F294)","v":""},{"$f":"IF('800111a - Nota. Detalle de CxC.'!F295=\"\",\"\",'800111a - Nota. Detalle de CxC.'!F295)","v":""},{"$f":"IF('800111a - Nota. Detalle de CxC.'!F296=\"\",\"\",'800111a - Nota. Detalle de CxC.'!F296)","v":""},{"$f":"IF('800111a - Nota. Detalle de CxC.'!F297=\"\",\"\",'800111a - Nota. Detalle de CxC.'!F297)","v":""},{"$f":"IF('800111a - Nota. Detalle de CxC.'!F298=\"\",\"\",'800111a - Nota. Detalle de CxC.'!F298)","v":""},{"$f":"IF('800111a - Nota. Detalle de CxC.'!F299=\"\",\"\",'800111a - Nota. Detalle de CxC.'!F299)","v":""},{"$f":"IF('800111a - Nota. Detalle de CxC.'!F300=\"\",\"\",'800111a - Nota. Detalle de CxC.'!F300)","v":""},{"$f":"IF('800111a - Nota. Detalle de CxC.'!F301=\"\",\"\",'800111a - Nota. Detalle de CxC.'!F301)","v":""},{"$f":"IF('800111a - Nota. Detalle de CxC.'!F302=\"\",\"\",'800111a - Nota. Detalle de CxC.'!F302)","v":""},{"$f":"IF('800111a - Nota. Detalle de CxC.'!F303=\"\",\"\",'800111a - Nota. Detalle de CxC.'!F303)","v":""},{"$f":"IF('800111a - Nota. Detalle de CxC.'!F304=\"\",\"\",'800111a - Nota. Detalle de CxC.'!F304)","v":""},{"$f":"IF('800111a - Nota. Detalle de CxC.'!F305=\"\",\"\",'800111a - Nota. Detalle de CxC.'!F305)","v":""},{"$f":"IF('800111a - Nota. Detalle de CxC.'!F306=\"\",\"\",'800111a - Nota. Detalle de CxC.'!F306)","v":""},{"$f":"IF('800111a - Nota. Detalle de CxC.'!F307=\"\",\"\",'800111a - Nota. Detalle de CxC.'!F307)","v":""},{"$f":"IF('800111a - Nota. Detalle de CxC.'!F308=\"\",\"\",'800111a - Nota. Detalle de CxC.'!F308)","v":""},{"$f":"IF('800111a - Nota. Detalle de CxC.'!F309=\"\",\"\",'800111a - Nota. Detalle de CxC.'!F309)","v":""},{"$f":"IF('800111a - Nota. Detalle de CxC.'!F310=\"\",\"\",'800111a - Nota. Detalle de CxC.'!F310)","v":""},{"$f":"IF('800111a - Nota. Detalle de CxC.'!F311=\"\",\"\",'800111a - Nota. Detalle de CxC.'!F311)","v":""},{"$f":"IF('800111a - Nota. Detalle de CxC.'!F312=\"\",\"\",'800111a - Nota. Detalle de CxC.'!F312)","v":""},{"$f":"IF('800111a - Nota. Detalle de CxC.'!F313=\"\",\"\",'800111a - Nota. Detalle de CxC.'!F313)","v":""},{"$f":"IF('800111a - Nota. Detalle de CxC.'!F314=\"\",\"\",'800111a - Nota. Detalle de CxC.'!F314)","v":""},{"$f":"IF('800111a - Nota. Detalle de CxC.'!F315=\"\",\"\",'800111a - Nota. Detalle de CxC.'!F315)","v":""},{"$f":"IF('800111a - Nota. Detalle de CxC.'!F316=\"\",\"\",'800111a - Nota. Detalle de CxC.'!F316)","v":""},{"$f":"IF('800111a - Nota. Detalle de CxC.'!F317=\"\",\"\",'800111a - Nota. Detalle de CxC.'!F317)","v":""},{"$f":"IF('800111a - Nota. Detalle de CxC.'!F318=\"\",\"\",'800111a - Nota. Detalle de CxC.'!F318)","v":""},{"$f":"IF('800111a - Nota. Detalle de CxC.'!F319=\"\",\"\",'800111a - Nota. Detalle de CxC.'!F319)","v":""},{"$f":"IF('800111a - Nota. Detalle de CxC.'!F320=\"\",\"\",'800111a - Nota. Detalle de CxC.'!F320)","v":""},{"$f":"IF('800111a - Nota. Detalle de CxC.'!F321=\"\",\"\",'800111a - Nota. Detalle de CxC.'!F321)","v":""},{"$f":"IF('800111a - Nota. Detalle de CxC.'!F322=\"\",\"\",'800111a - Nota. Detalle de CxC.'!F322)","v":""},{"$f":"IF('800111a - Nota. Detalle de CxC.'!F323=\"\",\"\",'800111a - Nota. Detalle de CxC.'!F323)","v":""},{"$f":"IF('800111a - Nota. Detalle de CxC.'!F324=\"\",\"\",'800111a - Nota. Detalle de CxC.'!F324)","v":""},{"$f":"IF('800111a - Nota. Detalle de CxC.'!F325=\"\",\"\",'800111a - Nota. Detalle de CxC.'!F325)","v":""},{"$f":"IF('800111a - Nota. Detalle de CxC.'!F326=\"\",\"\",'800111a - Nota. Detalle de CxC.'!F326)","v":""},{"$f":"IF('800111a - Nota. Detalle de CxC.'!F327=\"\",\"\",'800111a - Nota. Detalle de CxC.'!F327)","v":""},{"$f":"IF('800111a - Nota. Detalle de CxC.'!F328=\"\",\"\",'800111a - Nota. Detalle de CxC.'!F328)","v":""},{"$f":"IF('800111a - Nota. Detalle de CxC.'!F329=\"\",\"\",'800111a - Nota. Detalle de CxC.'!F329)","v":""},{"$f":"IF('800111a - Nota. Detalle de CxC.'!F330=\"\",\"\",'800111a - Nota. Detalle de CxC.'!F330)","v":""},{"$f":"IF('800111a - Nota. Detalle de CxC.'!F331=\"\",\"\",'800111a - Nota. Detalle de CxC.'!F331)","v":""},{"$f":"IF('800111a - Nota. Detalle de CxC.'!F332=\"\",\"\",'800111a - Nota. Detalle de CxC.'!F332)","v":""},{"$f":"IF('800111a - Nota. Detalle de CxC.'!F333=\"\",\"\",'800111a - Nota. Detalle de CxC.'!F333)","v":""},{"$f":"IF('800111a - Nota. Detalle de CxC.'!F334=\"\",\"\",'800111a - Nota. Detalle de CxC.'!F334)","v":""},{"$f":"IF('800111a - Nota. Detalle de CxC.'!F335=\"\",\"\",'800111a - Nota. Detalle de CxC.'!F335)","v":""},{"$f":"IF('800111a - Nota. Detalle de CxC.'!F336=\"\",\"\",'800111a - Nota. Detalle de CxC.'!F336)","v":""},{"$f":"IF('800111a - Nota. Detalle de CxC.'!F337=\"\",\"\",'800111a - Nota. Detalle de CxC.'!F337)","v":""},{"$f":"IF('800111a - Nota. Detalle de CxC.'!F338=\"\",\"\",'800111a - Nota. Detalle de CxC.'!F338)","v":""},{"$f":"IF('800111a - Nota. Detalle de CxC.'!F339=\"\",\"\",'800111a - Nota. Detalle de CxC.'!F339)","v":""},{"$f":"IF('800111a - Nota. Detalle de CxC.'!F340=\"\",\"\",'800111a - Nota. Detalle de CxC.'!F340)","v":""},{"$f":"IF('800111a - Nota. Detalle de CxC.'!F341=\"\",\"\",'800111a - Nota. Detalle de CxC.'!F341)","v":""},{"$f":"IF('800111a - Nota. Detalle de CxC.'!F342=\"\",\"\",'800111a - Nota. Detalle de CxC.'!F342)","v":""},{"$f":"IF('800111a - Nota. Detalle de CxC.'!F343=\"\",\"\",'800111a - Nota. Detalle de CxC.'!F343)","v":""}]
[null,"1;2","co-svsp-core:NumeroIdentificacionDeudorCxC","Número de identificación del deudor",null,null,{"$f":"IF('800111a - Nota. Detalle de CxC.'!G188=\"\",\"\",'800111a - Nota. Detalle de CxC.'!G188)","v":""},{"$f":"IF('800111a - Nota. Detalle de CxC.'!G189=\"\",\"\",'800111a - Nota. Detalle de CxC.'!G189)","v":""},{"$f":"IF('800111a - Nota. Detalle de CxC.'!G190=\"\",\"\",'800111a - Nota. Detalle de CxC.'!G190)","v":""},{"$f":"IF('800111a - Nota. Detalle de CxC.'!G191=\"\",\"\",'800111a - Nota. Detalle de CxC.'!G191)","v":""},{"$f":"IF('800111a - Nota. Detalle de CxC.'!G192=\"\",\"\",'800111a - Nota. Detalle de CxC.'!G192)","v":""},{"$f":"IF('800111a - Nota. Detalle de CxC.'!G193=\"\",\"\",'800111a - Nota. Detalle de CxC.'!G193)","v":""},{"$f":"IF('800111a - Nota. Detalle de CxC.'!G194=\"\",\"\",'800111a - Nota. Detalle de CxC.'!G194)","v":""},{"$f":"IF('800111a - Nota. Detalle de CxC.'!G195=\"\",\"\",'800111a - Nota. Detalle de CxC.'!G195)","v":""},{"$f":"IF('800111a - Nota. Detalle de CxC.'!G196=\"\",\"\",'800111a - Nota. Detalle de CxC.'!G196)","v":""},{"$f":"IF('800111a - Nota. Detalle de CxC.'!G197=\"\",\"\",'800111a - Nota. Detalle de CxC.'!G197)","v":""},{"$f":"IF('800111a - Nota. Detalle de CxC.'!G198=\"\",\"\",'800111a - Nota. Detalle de CxC.'!G198)","v":""},{"$f":"IF('800111a - Nota. Detalle de CxC.'!G199=\"\",\"\",'800111a - Nota. Detalle de CxC.'!G199)","v":""},{"$f":"IF('800111a - Nota. Detalle de CxC.'!G200=\"\",\"\",'800111a - Nota. Detalle de CxC.'!G200)","v":""},{"$f":"IF('800111a - Nota. Detalle de CxC.'!G201=\"\",\"\",'800111a - Nota. Detalle de CxC.'!G201)","v":""},{"$f":"IF('800111a - Nota. Detalle de CxC.'!G202=\"\",\"\",'800111a - Nota. Detalle de CxC.'!G202)","v":""},{"$f":"IF('800111a - Nota. Detalle de CxC.'!G203=\"\",\"\",'800111a - Nota. Detalle de CxC.'!G203)","v":""},{"$f":"IF('800111a - Nota. Detalle de CxC.'!G204=\"\",\"\",'800111a - Nota. Detalle de CxC.'!G204)","v":""},{"$f":"IF('800111a - Nota. Detalle de CxC.'!G205=\"\",\"\",'800111a - Nota. Detalle de CxC.'!G205)","v":""},{"$f":"IF('800111a - Nota. Detalle de CxC.'!G206=\"\",\"\",'800111a - Nota. Detalle de CxC.'!G206)","v":""},{"$f":"IF('800111a - Nota. Detalle de CxC.'!G207=\"\",\"\",'800111a - Nota. Detalle de CxC.'!G207)","v":""},{"$f":"IF('800111a - Nota. Detalle de CxC.'!G208=\"\",\"\",'800111a - Nota. Detalle de CxC.'!G208)","v":""},{"$f":"IF('800111a - Nota. Detalle de CxC.'!G209=\"\",\"\",'800111a - Nota. Detalle de CxC.'!G209)","v":""},{"$f":"IF('800111a - Nota. Detalle de CxC.'!G210=\"\",\"\",'800111a - Nota. Detalle de CxC.'!G210)","v":""},{"$f":"IF('800111a - Nota. Detalle de CxC.'!G211=\"\",\"\",'800111a - Nota. Detalle de CxC.'!G211)","v":""},{"$f":"IF('800111a - Nota. Detalle de CxC.'!G212=\"\",\"\",'800111a - Nota. Detalle de CxC.'!G212)","v":""},{"$f":"IF('800111a - Nota. Detalle de CxC.'!G213=\"\",\"\",'800111a - Nota. Detalle de CxC.'!G213)","v":""},{"$f":"IF('800111a - Nota. Detalle de CxC.'!G214=\"\",\"\",'800111a - Nota. Detalle de CxC.'!G214)","v":""},{"$f":"IF('800111a - Nota. Detalle de CxC.'!G215=\"\",\"\",'800111a - Nota. Detalle de CxC.'!G215)","v":""},{"$f":"IF('800111a - Nota. Detalle de CxC.'!G216=\"\",\"\",'800111a - Nota. Detalle de CxC.'!G216)","v":""},{"$f":"IF('800111a - Nota. Detalle de CxC.'!G217=\"\",\"\",'800111a - Nota. Detalle de CxC.'!G217)","v":""},{"$f":"IF('800111a - Nota. Detalle de CxC.'!G218=\"\",\"\",'800111a - Nota. Detalle de CxC.'!G218)","v":""},{"$f":"IF('800111a - Nota. Detalle de CxC.'!G219=\"\",\"\",'800111a - Nota. Detalle de CxC.'!G219)","v":""},{"$f":"IF('800111a - Nota. Detalle de CxC.'!G220=\"\",\"\",'800111a - Nota. Detalle de CxC.'!G220)","v":""},{"$f":"IF('800111a - Nota. Detalle de CxC.'!G221=\"\",\"\",'800111a - Nota. Detalle de CxC.'!G221)","v":""},{"$f":"IF('800111a - Nota. Detalle de CxC.'!G222=\"\",\"\",'800111a - Nota. Detalle de CxC.'!G222)","v":""},{"$f":"IF('800111a - Nota. Detalle de CxC.'!G223=\"\",\"\",'800111a - Nota. Detalle de CxC.'!G223)","v":""},{"$f":"IF('800111a - Nota. Detalle de CxC.'!G224=\"\",\"\",'800111a - Nota. Detalle de CxC.'!G224)","v":""},{"$f":"IF('800111a - Nota. Detalle de CxC.'!G225=\"\",\"\",'800111a - Nota. Detalle de CxC.'!G225)","v":""},{"$f":"IF('800111a - Nota. Detalle de CxC.'!G226=\"\",\"\",'800111a - Nota. Detalle de CxC.'!G226)","v":""},{"$f":"IF('800111a - Nota. Detalle de CxC.'!G227=\"\",\"\",'800111a - Nota. Detalle de CxC.'!G227)","v":""},{"$f":"IF('800111a - Nota. Detalle de CxC.'!G228=\"\",\"\",'800111a - Nota. Detalle de CxC.'!G228)","v":""},{"$f":"IF('800111a - Nota. Detalle de CxC.'!G229=\"\",\"\",'800111a - Nota. Detalle de CxC.'!G229)","v":""},{"$f":"IF('800111a - Nota. Detalle de CxC.'!G230=\"\",\"\",'800111a - Nota. Detalle de CxC.'!G230)","v":""},{"$f":"IF('800111a - Nota. Detalle de CxC.'!G231=\"\",\"\",'800111a - Nota. Detalle de CxC.'!G231)","v":""},{"$f":"IF('800111a - Nota. Detalle de CxC.'!G232=\"\",\"\",'800111a - Nota. Detalle de CxC.'!G232)","v":""},{"$f":"IF('800111a - Nota. Detalle de CxC.'!G233=\"\",\"\",'800111a - Nota. Detalle de CxC.'!G233)","v":""},{"$f":"IF('800111a - Nota. Detalle de CxC.'!G234=\"\",\"\",'800111a - Nota. Detalle de CxC.'!G234)","v":""},{"$f":"IF('800111a - Nota. Detalle de CxC.'!G235=\"\",\"\",'800111a - Nota. Detalle de CxC.'!G235)","v":""},{"$f":"IF('800111a - Nota. Detalle de CxC.'!G236=\"\",\"\",'800111a - Nota. Detalle de CxC.'!G236)","v":""},{"$f":"IF('800111a - Nota. Detalle de CxC.'!G237=\"\",\"\",'800111a - Nota. Detalle de CxC.'!G237)","v":""},null,null,null,{"$f":"IF('800111a - Nota. Detalle de CxC.'!G241=\"\",\"\",'800111a - Nota. Detalle de CxC.'!G241)","v":""},{"$f":"IF('800111a - Nota. Detalle de CxC.'!G242=\"\",\"\",'800111a - Nota. Detalle de CxC.'!G242)","v":""},{"$f":"IF('800111a - Nota. Detalle de CxC.'!G243=\"\",\"\",'800111a - Nota. Detalle de CxC.'!G243)","v":""},{"$f":"IF('800111a - Nota. Detalle de CxC.'!G244=\"\",\"\",'800111a - Nota. Detalle de CxC.'!G244)","v":""},{"$f":"IF('800111a - Nota. Detalle de CxC.'!G245=\"\",\"\",'800111a - Nota. Detalle de CxC.'!G245)","v":""},{"$f":"IF('800111a - Nota. Detalle de CxC.'!G246=\"\",\"\",'800111a - Nota. Detalle de CxC.'!G246)","v":""},{"$f":"IF('800111a - Nota. Detalle de CxC.'!G247=\"\",\"\",'800111a - Nota. Detalle de CxC.'!G247)","v":""},{"$f":"IF('800111a - Nota. Detalle de CxC.'!G248=\"\",\"\",'800111a - Nota. Detalle de CxC.'!G248)","v":""},{"$f":"IF('800111a - Nota. Detalle de CxC.'!G249=\"\",\"\",'800111a - Nota. Detalle de CxC.'!G249)","v":""},{"$f":"IF('800111a - Nota. Detalle de CxC.'!G250=\"\",\"\",'800111a - Nota. Detalle de CxC.'!G250)","v":""},{"$f":"IF('800111a - Nota. Detalle de CxC.'!G251=\"\",\"\",'800111a - Nota. Detalle de CxC.'!G251)","v":""},{"$f":"IF('800111a - Nota. Detalle de CxC.'!G252=\"\",\"\",'800111a - Nota. Detalle de CxC.'!G252)","v":""},{"$f":"IF('800111a - Nota. Detalle de CxC.'!G253=\"\",\"\",'800111a - Nota. Detalle de CxC.'!G253)","v":""},{"$f":"IF('800111a - Nota. Detalle de CxC.'!G254=\"\",\"\",'800111a - Nota. Detalle de CxC.'!G254)","v":""},{"$f":"IF('800111a - Nota. Detalle de CxC.'!G255=\"\",\"\",'800111a - Nota. Detalle de CxC.'!G255)","v":""},{"$f":"IF('800111a - Nota. Detalle de CxC.'!G256=\"\",\"\",'800111a - Nota. Detalle de CxC.'!G256)","v":""},{"$f":"IF('800111a - Nota. Detalle de CxC.'!G257=\"\",\"\",'800111a - Nota. Detalle de CxC.'!G257)","v":""},{"$f":"IF('800111a - Nota. Detalle de CxC.'!G258=\"\",\"\",'800111a - Nota. Detalle de CxC.'!G258)","v":""},{"$f":"IF('800111a - Nota. Detalle de CxC.'!G259=\"\",\"\",'800111a - Nota. Detalle de CxC.'!G259)","v":""},{"$f":"IF('800111a - Nota. Detalle de CxC.'!G260=\"\",\"\",'800111a - Nota. Detalle de CxC.'!G260)","v":""},{"$f":"IF('800111a - Nota. Detalle de CxC.'!G261=\"\",\"\",'800111a - Nota. Detalle de CxC.'!G261)","v":""},{"$f":"IF('800111a - Nota. Detalle de CxC.'!G262=\"\",\"\",'800111a - Nota. Detalle de CxC.'!G262)","v":""},{"$f":"IF('800111a - Nota. Detalle de CxC.'!G263=\"\",\"\",'800111a - Nota. Detalle de CxC.'!G263)","v":""},{"$f":"IF('800111a - Nota. Detalle de CxC.'!G264=\"\",\"\",'800111a - Nota. Detalle de CxC.'!G264)","v":""},{"$f":"IF('800111a - Nota. Detalle de CxC.'!G265=\"\",\"\",'800111a - Nota. Detalle de CxC.'!G265)","v":""},{"$f":"IF('800111a - Nota. Detalle de CxC.'!G266=\"\",\"\",'800111a - Nota. Detalle de CxC.'!G266)","v":""},{"$f":"IF('800111a - Nota. Detalle de CxC.'!G267=\"\",\"\",'800111a - Nota. Detalle de CxC.'!G267)","v":""},{"$f":"IF('800111a - Nota. Detalle de CxC.'!G268=\"\",\"\",'800111a - Nota. Detalle de CxC.'!G268)","v":""},{"$f":"IF('800111a - Nota. Detalle de CxC.'!G269=\"\",\"\",'800111a - Nota. Detalle de CxC.'!G269)","v":""},{"$f":"IF('800111a - Nota. Detalle de CxC.'!G270=\"\",\"\",'800111a - Nota. Detalle de CxC.'!G270)","v":""},{"$f":"IF('800111a - Nota. Detalle de CxC.'!G271=\"\",\"\",'800111a - Nota. Detalle de CxC.'!G271)","v":""},{"$f":"IF('800111a - Nota. Detalle de CxC.'!G272=\"\",\"\",'800111a - Nota. Detalle de CxC.'!G272)","v":""},{"$f":"IF('800111a - Nota. Detalle de CxC.'!G273=\"\",\"\",'800111a - Nota. Detalle de CxC.'!G273)","v":""},{"$f":"IF('800111a - Nota. Detalle de CxC.'!G274=\"\",\"\",'800111a - Nota. Detalle de CxC.'!G274)","v":""},{"$f":"IF('800111a - Nota. Detalle de CxC.'!G275=\"\",\"\",'800111a - Nota. Detalle de CxC.'!G275)","v":""},{"$f":"IF('800111a - Nota. Detalle de CxC.'!G276=\"\",\"\",'800111a - Nota. Detalle de CxC.'!G276)","v":""},{"$f":"IF('800111a - Nota. Detalle de CxC.'!G277=\"\",\"\",'800111a - Nota. Detalle de CxC.'!G277)","v":""},{"$f":"IF('800111a - Nota. Detalle de CxC.'!G278=\"\",\"\",'800111a - Nota. Detalle de CxC.'!G278)","v":""},{"$f":"IF('800111a - Nota. Detalle de CxC.'!G279=\"\",\"\",'800111a - Nota. Detalle de CxC.'!G279)","v":""},{"$f":"IF('800111a - Nota. Detalle de CxC.'!G280=\"\",\"\",'800111a - Nota. Detalle de CxC.'!G280)","v":""},{"$f":"IF('800111a - Nota. Detalle de CxC.'!G281=\"\",\"\",'800111a - Nota. Detalle de CxC.'!G281)","v":""},{"$f":"IF('800111a - Nota. Detalle de CxC.'!G282=\"\",\"\",'800111a - Nota. Detalle de CxC.'!G282)","v":""},{"$f":"IF('800111a - Nota. Detalle de CxC.'!G283=\"\",\"\",'800111a - Nota. Detalle de CxC.'!G283)","v":""},{"$f":"IF('800111a - Nota. Detalle de CxC.'!G284=\"\",\"\",'800111a - Nota. Detalle de CxC.'!G284)","v":""},{"$f":"IF('800111a - Nota. Detalle de CxC.'!G285=\"\",\"\",'800111a - Nota. Detalle de CxC.'!G285)","v":""},{"$f":"IF('800111a - Nota. Detalle de CxC.'!G286=\"\",\"\",'800111a - Nota. Detalle de CxC.'!G286)","v":""},{"$f":"IF('800111a - Nota. Detalle de CxC.'!G287=\"\",\"\",'800111a - Nota. Detalle de CxC.'!G287)","v":""},{"$f":"IF('800111a - Nota. Detalle de CxC.'!G288=\"\",\"\",'800111a - Nota. Detalle de CxC.'!G288)","v":""},{"$f":"IF('800111a - Nota. Detalle de CxC.'!G289=\"\",\"\",'800111a - Nota. Detalle de CxC.'!G289)","v":""},{"$f":"IF('800111a - Nota. Detalle de CxC.'!G290=\"\",\"\",'800111a - Nota. Detalle de CxC.'!G290)","v":""},null,null,null,{"$f":"IF('800111a - Nota. Detalle de CxC.'!G294=\"\",\"\",'800111a - Nota. Detalle de CxC.'!G294)","v":""},{"$f":"IF('800111a - Nota. Detalle de CxC.'!G295=\"\",\"\",'800111a - Nota. Detalle de CxC.'!G295)","v":""},{"$f":"IF('800111a - Nota. Detalle de CxC.'!G296=\"\",\"\",'800111a - Nota. Detalle de CxC.'!G296)","v":""},{"$f":"IF('800111a - Nota. Detalle de CxC.'!G297=\"\",\"\",'800111a - Nota. Detalle de CxC.'!G297)","v":""},{"$f":"IF('800111a - Nota. Detalle de CxC.'!G298=\"\",\"\",'800111a - Nota. Detalle de CxC.'!G298)","v":""},{"$f":"IF('800111a - Nota. Detalle de CxC.'!G299=\"\",\"\",'800111a - Nota. Detalle de CxC.'!G299)","v":""},{"$f":"IF('800111a - Nota. Detalle de CxC.'!G300=\"\",\"\",'800111a - Nota. Detalle de CxC.'!G300)","v":""},{"$f":"IF('800111a - Nota. Detalle de CxC.'!G301=\"\",\"\",'800111a - Nota. Detalle de CxC.'!G301)","v":""},{"$f":"IF('800111a - Nota. Detalle de CxC.'!G302=\"\",\"\",'800111a - Nota. Detalle de CxC.'!G302)","v":""},{"$f":"IF('800111a - Nota. Detalle de CxC.'!G303=\"\",\"\",'800111a - Nota. Detalle de CxC.'!G303)","v":""},{"$f":"IF('800111a - Nota. Detalle de CxC.'!G304=\"\",\"\",'800111a - Nota. Detalle de CxC.'!G304)","v":""},{"$f":"IF('800111a - Nota. Detalle de CxC.'!G305=\"\",\"\",'800111a - Nota. Detalle de CxC.'!G305)","v":""},{"$f":"IF('800111a - Nota. Detalle de CxC.'!G306=\"\",\"\",'800111a - Nota. Detalle de CxC.'!G306)","v":""},{"$f":"IF('800111a - Nota. Detalle de CxC.'!G307=\"\",\"\",'800111a - Nota. Detalle de CxC.'!G307)","v":""},{"$f":"IF('800111a - Nota. Detalle de CxC.'!G308=\"\",\"\",'800111a - Nota. Detalle de CxC.'!G308)","v":""},{"$f":"IF('800111a - Nota. Detalle de CxC.'!G309=\"\",\"\",'800111a - Nota. Detalle de CxC.'!G309)","v":""},{"$f":"IF('800111a - Nota. Detalle de CxC.'!G310=\"\",\"\",'800111a - Nota. Detalle de CxC.'!G310)","v":""},{"$f":"IF('800111a - Nota. Detalle de CxC.'!G311=\"\",\"\",'800111a - Nota. Detalle de CxC.'!G311)","v":""},{"$f":"IF('800111a - Nota. Detalle de CxC.'!G312=\"\",\"\",'800111a - Nota. Detalle de CxC.'!G312)","v":""},{"$f":"IF('800111a - Nota. Detalle de CxC.'!G313=\"\",\"\",'800111a - Nota. Detalle de CxC.'!G313)","v":""},{"$f":"IF('800111a - Nota. Detalle de CxC.'!G314=\"\",\"\",'800111a - Nota. Detalle de CxC.'!G314)","v":""},{"$f":"IF('800111a - Nota. Detalle de CxC.'!G315=\"\",\"\",'800111a - Nota. Detalle de CxC.'!G315)","v":""},{"$f":"IF('800111a - Nota. Detalle de CxC.'!G316=\"\",\"\",'800111a - Nota. Detalle de CxC.'!G316)","v":""},{"$f":"IF('800111a - Nota. Detalle de CxC.'!G317=\"\",\"\",'800111a - Nota. Detalle de CxC.'!G317)","v":""},{"$f":"IF('800111a - Nota. Detalle de CxC.'!G318=\"\",\"\",'800111a - Nota. Detalle de CxC.'!G318)","v":""},{"$f":"IF('800111a - Nota. Detalle de CxC.'!G319=\"\",\"\",'800111a - Nota. Detalle de CxC.'!G319)","v":""},{"$f":"IF('800111a - Nota. Detalle de CxC.'!G320=\"\",\"\",'800111a - Nota. Detalle de CxC.'!G320)","v":""},{"$f":"IF('800111a - Nota. Detalle de CxC.'!G321=\"\",\"\",'800111a - Nota. Detalle de CxC.'!G321)","v":""},{"$f":"IF('800111a - Nota. Detalle de CxC.'!G322=\"\",\"\",'800111a - Nota. Detalle de CxC.'!G322)","v":""},{"$f":"IF('800111a - Nota. Detalle de CxC.'!G323=\"\",\"\",'800111a - Nota. Detalle de CxC.'!G323)","v":""},{"$f":"IF('800111a - Nota. Detalle de CxC.'!G324=\"\",\"\",'800111a - Nota. Detalle de CxC.'!G324)","v":""},{"$f":"IF('800111a - Nota. Detalle de CxC.'!G325=\"\",\"\",'800111a - Nota. Detalle de CxC.'!G325)","v":""},{"$f":"IF('800111a - Nota. Detalle de CxC.'!G326=\"\",\"\",'800111a - Nota. Detalle de CxC.'!G326)","v":""},{"$f":"IF('800111a - Nota. Detalle de CxC.'!G327=\"\",\"\",'800111a - Nota. Detalle de CxC.'!G327)","v":""},{"$f":"IF('800111a - Nota. Detalle de CxC.'!G328=\"\",\"\",'800111a - Nota. Detalle de CxC.'!G328)","v":""},{"$f":"IF('800111a - Nota. Detalle de CxC.'!G329=\"\",\"\",'800111a - Nota. Detalle de CxC.'!G329)","v":""},{"$f":"IF('800111a - Nota. Detalle de CxC.'!G330=\"\",\"\",'800111a - Nota. Detalle de CxC.'!G330)","v":""},{"$f":"IF('800111a - Nota. Detalle de CxC.'!G331=\"\",\"\",'800111a - Nota. Detalle de CxC.'!G331)","v":""},{"$f":"IF('800111a - Nota. Detalle de CxC.'!G332=\"\",\"\",'800111a - Nota. Detalle de CxC.'!G332)","v":""},{"$f":"IF('800111a - Nota. Detalle de CxC.'!G333=\"\",\"\",'800111a - Nota. Detalle de CxC.'!G333)","v":""},{"$f":"IF('800111a - Nota. Detalle de CxC.'!G334=\"\",\"\",'800111a - Nota. Detalle de CxC.'!G334)","v":""},{"$f":"IF('800111a - Nota. Detalle de CxC.'!G335=\"\",\"\",'800111a - Nota. Detalle de CxC.'!G335)","v":""},{"$f":"IF('800111a - Nota. Detalle de CxC.'!G336=\"\",\"\",'800111a - Nota. Detalle de CxC.'!G336)","v":""},{"$f":"IF('800111a - Nota. Detalle de CxC.'!G337=\"\",\"\",'800111a - Nota. Detalle de CxC.'!G337)","v":""},{"$f":"IF('800111a - Nota. Detalle de CxC.'!G338=\"\",\"\",'800111a - Nota. Detalle de CxC.'!G338)","v":""},{"$f":"IF('800111a - Nota. Detalle de CxC.'!G339=\"\",\"\",'800111a - Nota. Detalle de CxC.'!G339)","v":""},{"$f":"IF('800111a - Nota. Detalle de CxC.'!G340=\"\",\"\",'800111a - Nota. Detalle de CxC.'!G340)","v":""},{"$f":"IF('800111a - Nota. Detalle de CxC.'!G341=\"\",\"\",'800111a - Nota. Detalle de CxC.'!G341)","v":""},{"$f":"IF('800111a - Nota. Detalle de CxC.'!G342=\"\",\"\",'800111a - Nota. Detalle de CxC.'!G342)","v":""},{"$f":"IF('800111a - Nota. Detalle de CxC.'!G343=\"\",\"\",'800111a - Nota. Detalle de CxC.'!G343)","v":""}]
[null,"1;2","co-svsp-core:PrimerApellidoDeudorCxC","Primer apellido deudor",null,null,{"$f":"IF('800111a - Nota. Detalle de CxC.'!H188=\"\",\"\",'800111a - Nota. Detalle de CxC.'!H188)","v":""},{"$f":"IF('800111a - Nota. Detalle de CxC.'!H189=\"\",\"\",'800111a - Nota. Detalle de CxC.'!H189)","v":""},{"$f":"IF('800111a - Nota. Detalle de CxC.'!H190=\"\",\"\",'800111a - Nota. Detalle de CxC.'!H190)","v":""},{"$f":"IF('800111a - Nota. Detalle de CxC.'!H191=\"\",\"\",'800111a - Nota. Detalle de CxC.'!H191)","v":""},{"$f":"IF('800111a - Nota. Detalle de CxC.'!H192=\"\",\"\",'800111a - Nota. Detalle de CxC.'!H192)","v":""},{"$f":"IF('800111a - Nota. Detalle de CxC.'!H193=\"\",\"\",'800111a - Nota. Detalle de CxC.'!H193)","v":""},{"$f":"IF('800111a - Nota. Detalle de CxC.'!H194=\"\",\"\",'800111a - Nota. Detalle de CxC.'!H194)","v":""},{"$f":"IF('800111a - Nota. Detalle de CxC.'!H195=\"\",\"\",'800111a - Nota. Detalle de CxC.'!H195)","v":""},{"$f":"IF('800111a - Nota. Detalle de CxC.'!H196=\"\",\"\",'800111a - Nota. Detalle de CxC.'!H196)","v":""},{"$f":"IF('800111a - Nota. Detalle de CxC.'!H197=\"\",\"\",'800111a - Nota. Detalle de CxC.'!H197)","v":""},{"$f":"IF('800111a - Nota. Detalle de CxC.'!H198=\"\",\"\",'800111a - Nota. Detalle de CxC.'!H198)","v":""},{"$f":"IF('800111a - Nota. Detalle de CxC.'!H199=\"\",\"\",'800111a - Nota. Detalle de CxC.'!H199)","v":""},{"$f":"IF('800111a - Nota. Detalle de CxC.'!H200=\"\",\"\",'800111a - Nota. Detalle de CxC.'!H200)","v":""},{"$f":"IF('800111a - Nota. Detalle de CxC.'!H201=\"\",\"\",'800111a - Nota. Detalle de CxC.'!H201)","v":""},{"$f":"IF('800111a - Nota. Detalle de CxC.'!H202=\"\",\"\",'800111a - Nota. Detalle de CxC.'!H202)","v":""},{"$f":"IF('800111a - Nota. Detalle de CxC.'!H203=\"\",\"\",'800111a - Nota. Detalle de CxC.'!H203)","v":""},{"$f":"IF('800111a - Nota. Detalle de CxC.'!H204=\"\",\"\",'800111a - Nota. Detalle de CxC.'!H204)","v":""},{"$f":"IF('800111a - Nota. Detalle de CxC.'!H205=\"\",\"\",'800111a - Nota. Detalle de CxC.'!H205)","v":""},{"$f":"IF('800111a - Nota. Detalle de CxC.'!H206=\"\",\"\",'800111a - Nota. Detalle de CxC.'!H206)","v":""},{"$f":"IF('800111a - Nota. Detalle de CxC.'!H207=\"\",\"\",'800111a - Nota. Detalle de CxC.'!H207)","v":""},{"$f":"IF('800111a - Nota. Detalle de CxC.'!H208=\"\",\"\",'800111a - Nota. Detalle de CxC.'!H208)","v":""},{"$f":"IF('800111a - Nota. Detalle de CxC.'!H209=\"\",\"\",'800111a - Nota. Detalle de CxC.'!H209)","v":""},{"$f":"IF('800111a - Nota. Detalle de CxC.'!H210=\"\",\"\",'800111a - Nota. Detalle de CxC.'!H210)","v":""},{"$f":"IF('800111a - Nota. Detalle de CxC.'!H211=\"\",\"\",'800111a - Nota. Detalle de CxC.'!H211)","v":""},{"$f":"IF('800111a - Nota. Detalle de CxC.'!H212=\"\",\"\",'800111a - Nota. Detalle de CxC.'!H212)","v":""},{"$f":"IF('800111a - Nota. Detalle de CxC.'!H213=\"\",\"\",'800111a - Nota. Detalle de CxC.'!H213)","v":""},{"$f":"IF('800111a - Nota. Detalle de CxC.'!H214=\"\",\"\",'800111a - Nota. Detalle de CxC.'!H214)","v":""},{"$f":"IF('800111a - Nota. Detalle de CxC.'!H215=\"\",\"\",'800111a - Nota. Detalle de CxC.'!H215)","v":""},{"$f":"IF('800111a - Nota. Detalle de CxC.'!H216=\"\",\"\",'800111a - Nota. Detalle de CxC.'!H216)","v":""},{"$f":"IF('800111a - Nota. Detalle de CxC.'!H217=\"\",\"\",'800111a - Nota. Detalle de CxC.'!H217)","v":""},{"$f":"IF('800111a - Nota. Detalle de CxC.'!H218=\"\",\"\",'800111a - Nota. Detalle de CxC.'!H218)","v":""},{"$f":"IF('800111a - Nota. Detalle de CxC.'!H219=\"\",\"\",'800111a - Nota. Detalle de CxC.'!H219)","v":""},{"$f":"IF('800111a - Nota. Detalle de CxC.'!H220=\"\",\"\",'800111a - Nota. Detalle de CxC.'!H220)","v":""},{"$f":"IF('800111a - Nota. Detalle de CxC.'!H221=\"\",\"\",'800111a - Nota. Detalle de CxC.'!H221)","v":""},{"$f":"IF('800111a - Nota. Detalle de CxC.'!H222=\"\",\"\",'800111a - Nota. Detalle de CxC.'!H222)","v":""},{"$f":"IF('800111a - Nota. Detalle de CxC.'!H223=\"\",\"\",'800111a - Nota. Detalle de CxC.'!H223)","v":""},{"$f":"IF('800111a - Nota. Detalle de CxC.'!H224=\"\",\"\",'800111a - Nota. Detalle de CxC.'!H224)","v":""},{"$f":"IF('800111a - Nota. Detalle de CxC.'!H225=\"\",\"\",'800111a - Nota. Detalle de CxC.'!H225)","v":""},{"$f":"IF('800111a - Nota. Detalle de CxC.'!H226=\"\",\"\",'800111a - Nota. Detalle de CxC.'!H226)","v":""},{"$f":"IF('800111a - Nota. Detalle de CxC.'!H227=\"\",\"\",'800111a - Nota. Detalle de CxC.'!H227)","v":""},{"$f":"IF('800111a - Nota. Detalle de CxC.'!H228=\"\",\"\",'800111a - Nota. Detalle de CxC.'!H228)","v":""},{"$f":"IF('800111a - Nota. Detalle de CxC.'!H229=\"\",\"\",'800111a - Nota. Detalle de CxC.'!H229)","v":""},{"$f":"IF('800111a - Nota. Detalle de CxC.'!H230=\"\",\"\",'800111a - Nota. Detalle de CxC.'!H230)","v":""},{"$f":"IF('800111a - Nota. Detalle de CxC.'!H231=\"\",\"\",'800111a - Nota. Detalle de CxC.'!H231)","v":""},{"$f":"IF('800111a - Nota. Detalle de CxC.'!H232=\"\",\"\",'800111a - Nota. Detalle de CxC.'!H232)","v":""},{"$f":"IF('800111a - Nota. Detalle de CxC.'!H233=\"\",\"\",'800111a - Nota. Detalle de CxC.'!H233)","v":""},{"$f":"IF('800111a - Nota. Detalle de CxC.'!H234=\"\",\"\",'800111a - Nota. Detalle de CxC.'!H234)","v":""},{"$f":"IF('800111a - Nota. Detalle de CxC.'!H235=\"\",\"\",'800111a - Nota. Detalle de CxC.'!H235)","v":""},{"$f":"IF('800111a - Nota. Detalle de CxC.'!H236=\"\",\"\",'800111a - Nota. Detalle de CxC.'!H236)","v":""},{"$f":"IF('800111a - Nota. Detalle de CxC.'!H237=\"\",\"\",'800111a - Nota. Detalle de CxC.'!H237)","v":""},null,null,null,{"$f":"IF('800111a - Nota. Detalle de CxC.'!H241=\"\",\"\",'800111a - Nota. Detalle de CxC.'!H241)","v":""},{"$f":"IF('800111a - Nota. Detalle de CxC.'!H242=\"\",\"\",'800111a - Nota. Detalle de CxC.'!H242)","v":""},{"$f":"IF('800111a - Nota. Detalle de CxC.'!H243=\"\",\"\",'800111a - Nota. Detalle de CxC.'!H243)","v":""},{"$f":"IF('800111a - Nota. Detalle de CxC.'!H244=\"\",\"\",'800111a - Nota. Detalle de CxC.'!H244)","v":""},{"$f":"IF('800111a - Nota. Detalle de CxC.'!H245=\"\",\"\",'800111a - Nota. Detalle de CxC.'!H245)","v":""},{"$f":"IF('800111a - Nota. Detalle de CxC.'!H246=\"\",\"\",'800111a - Nota. Detalle de CxC.'!H246)","v":""},{"$f":"IF('800111a - Nota. Detalle de CxC.'!H247=\"\",\"\",'800111a - Nota. Detalle de CxC.'!H247)","v":""},{"$f":"IF('800111a - Nota. Detalle de CxC.'!H248=\"\",\"\",'800111a - Nota. Detalle de CxC.'!H248)","v":""},{"$f":"IF('800111a - Nota. Detalle de CxC.'!H249=\"\",\"\",'800111a - Nota. Detalle de CxC.'!H249)","v":""},{"$f":"IF('800111a - Nota. Detalle de CxC.'!H250=\"\",\"\",'800111a - Nota. Detalle de CxC.'!H250)","v":""},{"$f":"IF('800111a - Nota. Detalle de CxC.'!H251=\"\",\"\",'800111a - Nota. Detalle de CxC.'!H251)","v":""},{"$f":"IF('800111a - Nota. Detalle de CxC.'!H252=\"\",\"\",'800111a - Nota. Detalle de CxC.'!H252)","v":""},{"$f":"IF('800111a - Nota. Detalle de CxC.'!H253=\"\",\"\",'800111a - Nota. Detalle de CxC.'!H253)","v":""},{"$f":"IF('800111a - Nota. Detalle de CxC.'!H254=\"\",\"\",'800111a - Nota. Detalle de CxC.'!H254)","v":""},{"$f":"IF('800111a - Nota. Detalle de CxC.'!H255=\"\",\"\",'800111a - Nota. Detalle de CxC.'!H255)","v":""},{"$f":"IF('800111a - Nota. Detalle de CxC.'!H256=\"\",\"\",'800111a - Nota. Detalle de CxC.'!H256)","v":""},{"$f":"IF('800111a - Nota. Detalle de CxC.'!H257=\"\",\"\",'800111a - Nota. Detalle de CxC.'!H257)","v":""},{"$f":"IF('800111a - Nota. Detalle de CxC.'!H258=\"\",\"\",'800111a - Nota. Detalle de CxC.'!H258)","v":""},{"$f":"IF('800111a - Nota. Detalle de CxC.'!H259=\"\",\"\",'800111a - Nota. Detalle de CxC.'!H259)","v":""},{"$f":"IF('800111a - Nota. Detalle de CxC.'!H260=\"\",\"\",'800111a - Nota. Detalle de CxC.'!H260)","v":""},{"$f":"IF('800111a - Nota. Detalle de CxC.'!H261=\"\",\"\",'800111a - Nota. Detalle de CxC.'!H261)","v":""},{"$f":"IF('800111a - Nota. Detalle de CxC.'!H262=\"\",\"\",'800111a - Nota. Detalle de CxC.'!H262)","v":""},{"$f":"IF('800111a - Nota. Detalle de CxC.'!H263=\"\",\"\",'800111a - Nota. Detalle de CxC.'!H263)","v":""},{"$f":"IF('800111a - Nota. Detalle de CxC.'!H264=\"\",\"\",'800111a - Nota. Detalle de CxC.'!H264)","v":""},{"$f":"IF('800111a - Nota. Detalle de CxC.'!H265=\"\",\"\",'800111a - Nota. Detalle de CxC.'!H265)","v":""},{"$f":"IF('800111a - Nota. Detalle de CxC.'!H266=\"\",\"\",'800111a - Nota. Detalle de CxC.'!H266)","v":""},{"$f":"IF('800111a - Nota. Detalle de CxC.'!H267=\"\",\"\",'800111a - Nota. Detalle de CxC.'!H267)","v":""},{"$f":"IF('800111a - Nota. Detalle de CxC.'!H268=\"\",\"\",'800111a - Nota. Detalle de CxC.'!H268)","v":""},{"$f":"IF('800111a - Nota. Detalle de CxC.'!H269=\"\",\"\",'800111a - Nota. Detalle de CxC.'!H269)","v":""},{"$f":"IF('800111a - Nota. Detalle de CxC.'!H270=\"\",\"\",'800111a - Nota. Detalle de CxC.'!H270)","v":""},{"$f":"IF('800111a - Nota. Detalle de CxC.'!H271=\"\",\"\",'800111a - Nota. Detalle de CxC.'!H271)","v":""},{"$f":"IF('800111a - Nota. Detalle de CxC.'!H272=\"\",\"\",'800111a - Nota. Detalle de CxC.'!H272)","v":""},{"$f":"IF('800111a - Nota. Detalle de CxC.'!H273=\"\",\"\",'800111a - Nota. Detalle de CxC.'!H273)","v":""},{"$f":"IF('800111a - Nota. Detalle de CxC.'!H274=\"\",\"\",'800111a - Nota. Detalle de CxC.'!H274)","v":""},{"$f":"IF('800111a - Nota. Detalle de CxC.'!H275=\"\",\"\",'800111a - Nota. Detalle de CxC.'!H275)","v":""},{"$f":"IF('800111a - Nota. Detalle de CxC.'!H276=\"\",\"\",'800111a - Nota. Detalle de CxC.'!H276)","v":""},{"$f":"IF('800111a - Nota. Detalle de CxC.'!H277=\"\",\"\",'800111a - Nota. Detalle de CxC.'!H277)","v":""},{"$f":"IF('800111a - Nota. Detalle de CxC.'!H278=\"\",\"\",'800111a - Nota. Detalle de CxC.'!H278)","v":""},{"$f":"IF('800111a - Nota. Detalle de CxC.'!H279=\"\",\"\",'800111a - Nota. Detalle de CxC.'!H279)","v":""},{"$f":"IF('800111a - Nota. Detalle de CxC.'!H280=\"\",\"\",'800111a - Nota. Detalle de CxC.'!H280)","v":""},{"$f":"IF('800111a - Nota. Detalle de CxC.'!H281=\"\",\"\",'800111a - Nota. Detalle de CxC.'!H281)","v":""},{"$f":"IF('800111a - Nota. Detalle de CxC.'!H282=\"\",\"\",'800111a - Nota. Detalle de CxC.'!H282)","v":""},{"$f":"IF('800111a - Nota. Detalle de CxC.'!H283=\"\",\"\",'800111a - Nota. Detalle de CxC.'!H283)","v":""},{"$f":"IF('800111a - Nota. Detalle de CxC.'!H284=\"\",\"\",'800111a - Nota. Detalle de CxC.'!H284)","v":""},{"$f":"IF('800111a - Nota. Detalle de CxC.'!H285=\"\",\"\",'800111a - Nota. Detalle de CxC.'!H285)","v":""},{"$f":"IF('800111a - Nota. Detalle de CxC.'!H286=\"\",\"\",'800111a - Nota. Detalle de CxC.'!H286)","v":""},{"$f":"IF('800111a - Nota. Detalle de CxC.'!H287=\"\",\"\",'800111a - Nota. Detalle de CxC.'!H287)","v":""},{"$f":"IF('800111a - Nota. Detalle de CxC.'!H288=\"\",\"\",'800111a - Nota. Detalle de CxC.'!H288)","v":""},{"$f":"IF('800111a - Nota. Detalle de CxC.'!H289=\"\",\"\",'800111a - Nota. Detalle de CxC.'!H289)","v":""},{"$f":"IF('800111a - Nota. Detalle de CxC.'!H290=\"\",\"\",'800111a - Nota. Detalle de CxC.'!H290)","v":""},null,null,null,{"$f":"IF('800111a - Nota. Detalle de CxC.'!H294=\"\",\"\",'800111a - Nota. Detalle de CxC.'!H294)","v":""},{"$f":"IF('800111a - Nota. Detalle de CxC.'!H295=\"\",\"\",'800111a - Nota. Detalle de CxC.'!H295)","v":""},{"$f":"IF('800111a - Nota. Detalle de CxC.'!H296=\"\",\"\",'800111a - Nota. Detalle de CxC.'!H296)","v":""},{"$f":"IF('800111a - Nota. Detalle de CxC.'!H297=\"\",\"\",'800111a - Nota. Detalle de CxC.'!H297)","v":""},{"$f":"IF('800111a - Nota. Detalle de CxC.'!H298=\"\",\"\",'800111a - Nota. Detalle de CxC.'!H298)","v":""},{"$f":"IF('800111a - Nota. Detalle de CxC.'!H299=\"\",\"\",'800111a - Nota. Detalle de CxC.'!H299)","v":""},{"$f":"IF('800111a - Nota. Detalle de CxC.'!H300=\"\",\"\",'800111a - Nota. Detalle de CxC.'!H300)","v":""},{"$f":"IF('800111a - Nota. Detalle de CxC.'!H301=\"\",\"\",'800111a - Nota. Detalle de CxC.'!H301)","v":""},{"$f":"IF('800111a - Nota. Detalle de CxC.'!H302=\"\",\"\",'800111a - Nota. Detalle de CxC.'!H302)","v":""},{"$f":"IF('800111a - Nota. Detalle de CxC.'!H303=\"\",\"\",'800111a - Nota. Detalle de CxC.'!H303)","v":""},{"$f":"IF('800111a - Nota. Detalle de CxC.'!H304=\"\",\"\",'800111a - Nota. Detalle de CxC.'!H304)","v":""},{"$f":"IF('800111a - Nota. Detalle de CxC.'!H305=\"\",\"\",'800111a - Nota. Detalle de CxC.'!H305)","v":""},{"$f":"IF('800111a - Nota. Detalle de CxC.'!H306=\"\",\"\",'800111a - Nota. Detalle de CxC.'!H306)","v":""},{"$f":"IF('800111a - Nota. Detalle de CxC.'!H307=\"\",\"\",'800111a - Nota. Detalle de CxC.'!H307)","v":""},{"$f":"IF('800111a - Nota. Detalle de CxC.'!H308=\"\",\"\",'800111a - Nota. Detalle de CxC.'!H308)","v":""},{"$f":"IF('800111a - Nota. Detalle de CxC.'!H309=\"\",\"\",'800111a - Nota. Detalle de CxC.'!H309)","v":""},{"$f":"IF('800111a - Nota. Detalle de CxC.'!H310=\"\",\"\",'800111a - Nota. Detalle de CxC.'!H310)","v":""},{"$f":"IF('800111a - Nota. Detalle de CxC.'!H311=\"\",\"\",'800111a - Nota. Detalle de CxC.'!H311)","v":""},{"$f":"IF('800111a - Nota. Detalle de CxC.'!H312=\"\",\"\",'800111a - Nota. Detalle de CxC.'!H312)","v":""},{"$f":"IF('800111a - Nota. Detalle de CxC.'!H313=\"\",\"\",'800111a - Nota. Detalle de CxC.'!H313)","v":""},{"$f":"IF('800111a - Nota. Detalle de CxC.'!H314=\"\",\"\",'800111a - Nota. Detalle de CxC.'!H314)","v":""},{"$f":"IF('800111a - Nota. Detalle de CxC.'!H315=\"\",\"\",'800111a - Nota. Detalle de CxC.'!H315)","v":""},{"$f":"IF('800111a - Nota. Detalle de CxC.'!H316=\"\",\"\",'800111a - Nota. Detalle de CxC.'!H316)","v":""},{"$f":"IF('800111a - Nota. Detalle de CxC.'!H317=\"\",\"\",'800111a - Nota. Detalle de CxC.'!H317)","v":""},{"$f":"IF('800111a - Nota. Detalle de CxC.'!H318=\"\",\"\",'800111a - Nota. Detalle de CxC.'!H318)","v":""},{"$f":"IF('800111a - Nota. Detalle de CxC.'!H319=\"\",\"\",'800111a - Nota. Detalle de CxC.'!H319)","v":""},{"$f":"IF('800111a - Nota. Detalle de CxC.'!H320=\"\",\"\",'800111a - Nota. Detalle de CxC.'!H320)","v":""},{"$f":"IF('800111a - Nota. Detalle de CxC.'!H321=\"\",\"\",'800111a - Nota. Detalle de CxC.'!H321)","v":""},{"$f":"IF('800111a - Nota. Detalle de CxC.'!H322=\"\",\"\",'800111a - Nota. Detalle de CxC.'!H322)","v":""},{"$f":"IF('800111a - Nota. Detalle de CxC.'!H323=\"\",\"\",'800111a - Nota. Detalle de CxC.'!H323)","v":""},{"$f":"IF('800111a - Nota. Detalle de CxC.'!H324=\"\",\"\",'800111a - Nota. Detalle de CxC.'!H324)","v":""},{"$f":"IF('800111a - Nota. Detalle de CxC.'!H325=\"\",\"\",'800111a - Nota. Detalle de CxC.'!H325)","v":""},{"$f":"IF('800111a - Nota. Detalle de CxC.'!H326=\"\",\"\",'800111a - Nota. Detalle de CxC.'!H326)","v":""},{"$f":"IF('800111a - Nota. Detalle de CxC.'!H327=\"\",\"\",'800111a - Nota. Detalle de CxC.'!H327)","v":""},{"$f":"IF('800111a - Nota. Detalle de CxC.'!H328=\"\",\"\",'800111a - Nota. Detalle de CxC.'!H328)","v":""},{"$f":"IF('800111a - Nota. Detalle de CxC.'!H329=\"\",\"\",'800111a - Nota. Detalle de CxC.'!H329)","v":""},{"$f":"IF('800111a - Nota. Detalle de CxC.'!H330=\"\",\"\",'800111a - Nota. Detalle de CxC.'!H330)","v":""},{"$f":"IF('800111a - Nota. Detalle de CxC.'!H331=\"\",\"\",'800111a - Nota. Detalle de CxC.'!H331)","v":""},{"$f":"IF('800111a - Nota. Detalle de CxC.'!H332=\"\",\"\",'800111a - Nota. Detalle de CxC.'!H332)","v":""},{"$f":"IF('800111a - Nota. Detalle de CxC.'!H333=\"\",\"\",'800111a - Nota. Detalle de CxC.'!H333)","v":""},{"$f":"IF('800111a - Nota. Detalle de CxC.'!H334=\"\",\"\",'800111a - Nota. Detalle de CxC.'!H334)","v":""},{"$f":"IF('800111a - Nota. Detalle de CxC.'!H335=\"\",\"\",'800111a - Nota. Detalle de CxC.'!H335)","v":""},{"$f":"IF('800111a - Nota. Detalle de CxC.'!H336=\"\",\"\",'800111a - Nota. Detalle de CxC.'!H336)","v":""},{"$f":"IF('800111a - Nota. Detalle de CxC.'!H337=\"\",\"\",'800111a - Nota. Detalle de CxC.'!H337)","v":""},{"$f":"IF('800111a - Nota. Detalle de CxC.'!H338=\"\",\"\",'800111a - Nota. Detalle de CxC.'!H338)","v":""},{"$f":"IF('800111a - Nota. Detalle de CxC.'!H339=\"\",\"\",'800111a - Nota. Detalle de CxC.'!H339)","v":""},{"$f":"IF('800111a - Nota. Detalle de CxC.'!H340=\"\",\"\",'800111a - Nota. Detalle de CxC.'!H340)","v":""},{"$f":"IF('800111a - Nota. Detalle de CxC.'!H341=\"\",\"\",'800111a - Nota. Detalle de CxC.'!H341)","v":""},{"$f":"IF('800111a - Nota. Detalle de CxC.'!H342=\"\",\"\",'800111a - Nota. Detalle de CxC.'!H342)","v":""},{"$f":"IF('800111a - Nota. Detalle de CxC.'!H343=\"\",\"\",'800111a - Nota. Detalle de CxC.'!H343)","v":""}]
[null,"1;2","co-svsp-core:SegundoApellidoDeudorCxC","Segundo apellido deudor",null,null,{"$f":"IF('800111a - Nota. Detalle de CxC.'!I188=\"\",\"\",'800111a - Nota. Detalle de CxC.'!I188)","v":""},{"$f":"IF('800111a - Nota. Detalle de CxC.'!I189=\"\",\"\",'800111a - Nota. Detalle de CxC.'!I189)","v":""},{"$f":"IF('800111a - Nota. Detalle de CxC.'!I190=\"\",\"\",'800111a - Nota. Detalle de CxC.'!I190)","v":""},{"$f":"IF('800111a - Nota. Detalle de CxC.'!I191=\"\",\"\",'800111a - Nota. Detalle de CxC.'!I191)","v":""},{"$f":"IF('800111a - Nota. Detalle de CxC.'!I192=\"\",\"\",'800111a - Nota. Detalle de CxC.'!I192)","v":""},{"$f":"IF('800111a - Nota. Detalle de CxC.'!I193=\"\",\"\",'800111a - Nota. Detalle de CxC.'!I193)","v":""},{"$f":"IF('800111a - Nota. Detalle de CxC.'!I194=\"\",\"\",'800111a - Nota. Detalle de CxC.'!I194)","v":""},{"$f":"IF('800111a - Nota. Detalle de CxC.'!I195=\"\",\"\",'800111a - Nota. Detalle de CxC.'!I195)","v":""},{"$f":"IF('800111a - Nota. Detalle de CxC.'!I196=\"\",\"\",'800111a - Nota. Detalle de CxC.'!I196)","v":""},{"$f":"IF('800111a - Nota. Detalle de CxC.'!I197=\"\",\"\",'800111a - Nota. Detalle de CxC.'!I197)","v":""},{"$f":"IF('800111a - Nota. Detalle de CxC.'!I198=\"\",\"\",'800111a - Nota. Detalle de CxC.'!I198)","v":""},{"$f":"IF('800111a - Nota. Detalle de CxC.'!I199=\"\",\"\",'800111a - Nota. Detalle de CxC.'!I199)","v":""},{"$f":"IF('800111a - Nota. Detalle de CxC.'!I200=\"\",\"\",'800111a - Nota. Detalle de CxC.'!I200)","v":""},{"$f":"IF('800111a - Nota. Detalle de CxC.'!I201=\"\",\"\",'800111a - Nota. Detalle de CxC.'!I201)","v":""},{"$f":"IF('800111a - Nota. Detalle de CxC.'!I202=\"\",\"\",'800111a - Nota. Detalle de CxC.'!I202)","v":""},{"$f":"IF('800111a - Nota. Detalle de CxC.'!I203=\"\",\"\",'800111a - Nota. Detalle de CxC.'!I203)","v":""},{"$f":"IF('800111a - Nota. Detalle de CxC.'!I204=\"\",\"\",'800111a - Nota. Detalle de CxC.'!I204)","v":""},{"$f":"IF('800111a - Nota. Detalle de CxC.'!I205=\"\",\"\",'800111a - Nota. Detalle de CxC.'!I205)","v":""},{"$f":"IF('800111a - Nota. Detalle de CxC.'!I206=\"\",\"\",'800111a - Nota. Detalle de CxC.'!I206)","v":""},{"$f":"IF('800111a - Nota. Detalle de CxC.'!I207=\"\",\"\",'800111a - Nota. Detalle de CxC.'!I207)","v":""},{"$f":"IF('800111a - Nota. Detalle de CxC.'!I208=\"\",\"\",'800111a - Nota. Detalle de CxC.'!I208)","v":""},{"$f":"IF('800111a - Nota. Detalle de CxC.'!I209=\"\",\"\",'800111a - Nota. Detalle de CxC.'!I209)","v":""},{"$f":"IF('800111a - Nota. Detalle de CxC.'!I210=\"\",\"\",'800111a - Nota. Detalle de CxC.'!I210)","v":""},{"$f":"IF('800111a - Nota. Detalle de CxC.'!I211=\"\",\"\",'800111a - Nota. Detalle de CxC.'!I211)","v":""},{"$f":"IF('800111a - Nota. Detalle de CxC.'!I212=\"\",\"\",'800111a - Nota. Detalle de CxC.'!I212)","v":""},{"$f":"IF('800111a - Nota. Detalle de CxC.'!I213=\"\",\"\",'800111a - Nota. Detalle de CxC.'!I213)","v":""},{"$f":"IF('800111a - Nota. Detalle de CxC.'!I214=\"\",\"\",'800111a - Nota. Detalle de CxC.'!I214)","v":""},{"$f":"IF('800111a - Nota. Detalle de CxC.'!I215=\"\",\"\",'800111a - Nota. Detalle de CxC.'!I215)","v":""},{"$f":"IF('800111a - Nota. Detalle de CxC.'!I216=\"\",\"\",'800111a - Nota. Detalle de CxC.'!I216)","v":""},{"$f":"IF('800111a - Nota. Detalle de CxC.'!I217=\"\",\"\",'800111a - Nota. Detalle de CxC.'!I217)","v":""},{"$f":"IF('800111a - Nota. Detalle de CxC.'!I218=\"\",\"\",'800111a - Nota. Detalle de CxC.'!I218)","v":""},{"$f":"IF('800111a - Nota. Detalle de CxC.'!I219=\"\",\"\",'800111a - Nota. Detalle de CxC.'!I219)","v":""},{"$f":"IF('800111a - Nota. Detalle de CxC.'!I220=\"\",\"\",'800111a - Nota. Detalle de CxC.'!I220)","v":""},{"$f":"IF('800111a - Nota. Detalle de CxC.'!I221=\"\",\"\",'800111a - Nota. Detalle de CxC.'!I221)","v":""},{"$f":"IF('800111a - Nota. Detalle de CxC.'!I222=\"\",\"\",'800111a - Nota. Detalle de CxC.'!I222)","v":""},{"$f":"IF('800111a - Nota. Detalle de CxC.'!I223=\"\",\"\",'800111a - Nota. Detalle de CxC.'!I223)","v":""},{"$f":"IF('800111a - Nota. Detalle de CxC.'!I224=\"\",\"\",'800111a - Nota. Detalle de CxC.'!I224)","v":""},{"$f":"IF('800111a - Nota. Detalle de CxC.'!I225=\"\",\"\",'800111a - Nota. Detalle de CxC.'!I225)","v":""},{"$f":"IF('800111a - Nota. Detalle de CxC.'!I226=\"\",\"\",'800111a - Nota. Detalle de CxC.'!I226)","v":""},{"$f":"IF('800111a - Nota. Detalle de CxC.'!I227=\"\",\"\",'800111a - Nota. Detalle de CxC.'!I227)","v":""},{"$f":"IF('800111a - Nota. Detalle de CxC.'!I228=\"\",\"\",'800111a - Nota. Detalle de CxC.'!I228)","v":""},{"$f":"IF('800111a - Nota. Detalle de CxC.'!I229=\"\",\"\",'800111a - Nota. Detalle de CxC.'!I229)","v":""},{"$f":"IF('800111a - Nota. Detalle de CxC.'!I230=\"\",\"\",'800111a - Nota. Detalle de CxC.'!I230)","v":""},{"$f":"IF('800111a - Nota. Detalle de CxC.'!I231=\"\",\"\",'800111a - Nota. Detalle de CxC.'!I231)","v":""},{"$f":"IF('800111a - Nota. Detalle de CxC.'!I232=\"\",\"\",'800111a - Nota. Detalle de CxC.'!I232)","v":""},{"$f":"IF('800111a - Nota. Detalle de CxC.'!I233=\"\",\"\",'800111a - Nota. Detalle de CxC.'!I233)","v":""},{"$f":"IF('800111a - Nota. Detalle de CxC.'!I234=\"\",\"\",'800111a - Nota. Detalle de CxC.'!I234)","v":""},{"$f":"IF('800111a - Nota. Detalle de CxC.'!I235=\"\",\"\",'800111a - Nota. Detalle de CxC.'!I235)","v":""},{"$f":"IF('800111a - Nota. Detalle de CxC.'!I236=\"\",\"\",'800111a - Nota. Detalle de CxC.'!I236)","v":""},{"$f":"IF('800111a - Nota. Detalle de CxC.'!I237=\"\",\"\",'800111a - Nota. Detalle de CxC.'!I237)","v":""},null,null,null,{"$f":"IF('800111a - Nota. Detalle de CxC.'!I241=\"\",\"\",'800111a - Nota. Detalle de CxC.'!I241)","v":""},{"$f":"IF('800111a - Nota. Detalle de CxC.'!I242=\"\",\"\",'800111a - Nota. Detalle de CxC.'!I242)","v":""},{"$f":"IF('800111a - Nota. Detalle de CxC.'!I243=\"\",\"\",'800111a - Nota. Detalle de CxC.'!I243)","v":""},{"$f":"IF('800111a - Nota. Detalle de CxC.'!I244=\"\",\"\",'800111a - Nota. Detalle de CxC.'!I244)","v":""},{"$f":"IF('800111a - Nota. Detalle de CxC.'!I245=\"\",\"\",'800111a - Nota. Detalle de CxC.'!I245)","v":""},{"$f":"IF('800111a - Nota. Detalle de CxC.'!I246=\"\",\"\",'800111a - Nota. Detalle de CxC.'!I246)","v":""},{"$f":"IF('800111a - Nota. Detalle de CxC.'!I247=\"\",\"\",'800111a - Nota. Detalle de CxC.'!I247)","v":""},{"$f":"IF('800111a - Nota. Detalle de CxC.'!I248=\"\",\"\",'800111a - Nota. Detalle de CxC.'!I248)","v":""},{"$f":"IF('800111a - Nota. Detalle de CxC.'!I249=\"\",\"\",'800111a - Nota. Detalle de CxC.'!I249)","v":""},{"$f":"IF('800111a - Nota. Detalle de CxC.'!I250=\"\",\"\",'800111a - Nota. Detalle de CxC.'!I250)","v":""},{"$f":"IF('800111a - Nota. Detalle de CxC.'!I251=\"\",\"\",'800111a - Nota. Detalle de CxC.'!I251)","v":""},{"$f":"IF('800111a - Nota. Detalle de CxC.'!I252=\"\",\"\",'800111a - Nota. Detalle de CxC.'!I252)","v":""},{"$f":"IF('800111a - Nota. Detalle de CxC.'!I253=\"\",\"\",'800111a - Nota. Detalle de CxC.'!I253)","v":""},{"$f":"IF('800111a - Nota. Detalle de CxC.'!I254=\"\",\"\",'800111a - Nota. Detalle de CxC.'!I254)","v":""},{"$f":"IF('800111a - Nota. Detalle de CxC.'!I255=\"\",\"\",'800111a - Nota. Detalle de CxC.'!I255)","v":""},{"$f":"IF('800111a - Nota. Detalle de CxC.'!I256=\"\",\"\",'800111a - Nota. Detalle de CxC.'!I256)","v":""},{"$f":"IF('800111a - Nota. Detalle de CxC.'!I257=\"\",\"\",'800111a - Nota. Detalle de CxC.'!I257)","v":""},{"$f":"IF('800111a - Nota. Detalle de CxC.'!I258=\"\",\"\",'800111a - Nota. Detalle de CxC.'!I258)","v":""},{"$f":"IF('800111a - Nota. Detalle de CxC.'!I259=\"\",\"\",'800111a - Nota. Detalle de CxC.'!I259)","v":""},{"$f":"IF('800111a - Nota. Detalle de CxC.'!I260=\"\",\"\",'800111a - Nota. Detalle de CxC.'!I260)","v":""},{"$f":"IF('800111a - Nota. Detalle de CxC.'!I261=\"\",\"\",'800111a - Nota. Detalle de CxC.'!I261)","v":""},{"$f":"IF('800111a - Nota. Detalle de CxC.'!I262=\"\",\"\",'800111a - Nota. Detalle de CxC.'!I262)","v":""},{"$f":"IF('800111a - Nota. Detalle de CxC.'!I263=\"\",\"\",'800111a - Nota. Detalle de CxC.'!I263)","v":""},{"$f":"IF('800111a - Nota. Detalle de CxC.'!I264=\"\",\"\",'800111a - Nota. Detalle de CxC.'!I264)","v":""},{"$f":"IF('800111a - Nota. Detalle de CxC.'!I265=\"\",\"\",'800111a - Nota. Detalle de CxC.'!I265)","v":""},{"$f":"IF('800111a - Nota. Detalle de CxC.'!I266=\"\",\"\",'800111a - Nota. Detalle de CxC.'!I266)","v":""},{"$f":"IF('800111a - Nota. Detalle de CxC.'!I267=\"\",\"\",'800111a - Nota. Detalle de CxC.'!I267)","v":""},{"$f":"IF('800111a - Nota. Detalle de CxC.'!I268=\"\",\"\",'800111a - Nota. Detalle de CxC.'!I268)","v":""},{"$f":"IF('800111a - Nota. Detalle de CxC.'!I269=\"\",\"\",'800111a - Nota. Detalle de CxC.'!I269)","v":""},{"$f":"IF('800111a - Nota. Detalle de CxC.'!I270=\"\",\"\",'800111a - Nota. Detalle de CxC.'!I270)","v":""},{"$f":"IF('800111a - Nota. Detalle de CxC.'!I271=\"\",\"\",'800111a - Nota. Detalle de CxC.'!I271)","v":""},{"$f":"IF('800111a - Nota. Detalle de CxC.'!I272=\"\",\"\",'800111a - Nota. Detalle de CxC.'!I272)","v":""},{"$f":"IF('800111a - Nota. Detalle de CxC.'!I273=\"\",\"\",'800111a - Nota. Detalle de CxC.'!I273)","v":""},{"$f":"IF('800111a - Nota. Detalle de CxC.'!I274=\"\",\"\",'800111a - Nota. Detalle de CxC.'!I274)","v":""},{"$f":"IF('800111a - Nota. Detalle de CxC.'!I275=\"\",\"\",'800111a - Nota. Detalle de CxC.'!I275)","v":""},{"$f":"IF('800111a - Nota. Detalle de CxC.'!I276=\"\",\"\",'800111a - Nota. Detalle de CxC.'!I276)","v":""},{"$f":"IF('800111a - Nota. Detalle de CxC.'!I277=\"\",\"\",'800111a - Nota. Detalle de CxC.'!I277)","v":""},{"$f":"IF('800111a - Nota. Detalle de CxC.'!I278=\"\",\"\",'800111a - Nota. Detalle de CxC.'!I278)","v":""},{"$f":"IF('800111a - Nota. Detalle de CxC.'!I279=\"\",\"\",'800111a - Nota. Detalle de CxC.'!I279)","v":""},{"$f":"IF('800111a - Nota. Detalle de CxC.'!I280=\"\",\"\",'800111a - Nota. Detalle de CxC.'!I280)","v":""},{"$f":"IF('800111a - Nota. Detalle de CxC.'!I281=\"\",\"\",'800111a - Nota. Detalle de CxC.'!I281)","v":""},{"$f":"IF('800111a - Nota. Detalle de CxC.'!I282=\"\",\"\",'800111a - Nota. Detalle de CxC.'!I282)","v":""},{"$f":"IF('800111a - Nota. Detalle de CxC.'!I283=\"\",\"\",'800111a - Nota. Detalle de CxC.'!I283)","v":""},{"$f":"IF('800111a - Nota. Detalle de CxC.'!I284=\"\",\"\",'800111a - Nota. Detalle de CxC.'!I284)","v":""},{"$f":"IF('800111a - Nota. Detalle de CxC.'!I285=\"\",\"\",'800111a - Nota. Detalle de CxC.'!I285)","v":""},{"$f":"IF('800111a - Nota. Detalle de CxC.'!I286=\"\",\"\",'800111a - Nota. Detalle de CxC.'!I286)","v":""},{"$f":"IF('800111a - Nota. Detalle de CxC.'!I287=\"\",\"\",'800111a - Nota. Detalle de CxC.'!I287)","v":""},{"$f":"IF('800111a - Nota. Detalle de CxC.'!I288=\"\",\"\",'800111a - Nota. Detalle de CxC.'!I288)","v":""},{"$f":"IF('800111a - Nota. Detalle de CxC.'!I289=\"\",\"\",'800111a - Nota. Detalle de CxC.'!I289)","v":""},{"$f":"IF('800111a - Nota. Detalle de CxC.'!I290=\"\",\"\",'800111a - Nota. Detalle de CxC.'!I290)","v":""},null,null,null,{"$f":"IF('800111a - Nota. Detalle de CxC.'!I294=\"\",\"\",'800111a - Nota. Detalle de CxC.'!I294)","v":""},{"$f":"IF('800111a - Nota. Detalle de CxC.'!I295=\"\",\"\",'800111a - Nota. Detalle de CxC.'!I295)","v":""},{"$f":"IF('800111a - Nota. Detalle de CxC.'!I296=\"\",\"\",'800111a - Nota. Detalle de CxC.'!I296)","v":""},{"$f":"IF('800111a - Nota. Detalle de CxC.'!I297=\"\",\"\",'800111a - Nota. Detalle de CxC.'!I297)","v":""},{"$f":"IF('800111a - Nota. Detalle de CxC.'!I298=\"\",\"\",'800111a - Nota. Detalle de CxC.'!I298)","v":""},{"$f":"IF('800111a - Nota. Detalle de CxC.'!I299=\"\",\"\",'800111a - Nota. Detalle de CxC.'!I299)","v":""},{"$f":"IF('800111a - Nota. Detalle de CxC.'!I300=\"\",\"\",'800111a - Nota. Detalle de CxC.'!I300)","v":""},{"$f":"IF('800111a - Nota. Detalle de CxC.'!I301=\"\",\"\",'800111a - Nota. Detalle de CxC.'!I301)","v":""},{"$f":"IF('800111a - Nota. Detalle de CxC.'!I302=\"\",\"\",'800111a - Nota. Detalle de CxC.'!I302)","v":""},{"$f":"IF('800111a - Nota. Detalle de CxC.'!I303=\"\",\"\",'800111a - Nota. Detalle de CxC.'!I303)","v":""},{"$f":"IF('800111a - Nota. Detalle de CxC.'!I304=\"\",\"\",'800111a - Nota. Detalle de CxC.'!I304)","v":""},{"$f":"IF('800111a - Nota. Detalle de CxC.'!I305=\"\",\"\",'800111a - Nota. Detalle de CxC.'!I305)","v":""},{"$f":"IF('800111a - Nota. Detalle de CxC.'!I306=\"\",\"\",'800111a - Nota. Detalle de CxC.'!I306)","v":""},{"$f":"IF('800111a - Nota. Detalle de CxC.'!I307=\"\",\"\",'800111a - Nota. Detalle de CxC.'!I307)","v":""},{"$f":"IF('800111a - Nota. Detalle de CxC.'!I308=\"\",\"\",'800111a - Nota. Detalle de CxC.'!I308)","v":""},{"$f":"IF('800111a - Nota. Detalle de CxC.'!I309=\"\",\"\",'800111a - Nota. Detalle de CxC.'!I309)","v":""},{"$f":"IF('800111a - Nota. Detalle de CxC.'!I310=\"\",\"\",'800111a - Nota. Detalle de CxC.'!I310)","v":""},{"$f":"IF('800111a - Nota. Detalle de CxC.'!I311=\"\",\"\",'800111a - Nota. Detalle de CxC.'!I311)","v":""},{"$f":"IF('800111a - Nota. Detalle de CxC.'!I312=\"\",\"\",'800111a - Nota. Detalle de CxC.'!I312)","v":""},{"$f":"IF('800111a - Nota. Detalle de CxC.'!I313=\"\",\"\",'800111a - Nota. Detalle de CxC.'!I313)","v":""},{"$f":"IF('800111a - Nota. Detalle de CxC.'!I314=\"\",\"\",'800111a - Nota. Detalle de CxC.'!I314)","v":""},{"$f":"IF('800111a - Nota. Detalle de CxC.'!I315=\"\",\"\",'800111a - Nota. Detalle de CxC.'!I315)","v":""},{"$f":"IF('800111a - Nota. Detalle de CxC.'!I316=\"\",\"\",'800111a - Nota. Detalle de CxC.'!I316)","v":""},{"$f":"IF('800111a - Nota. Detalle de CxC.'!I317=\"\",\"\",'800111a - Nota. Detalle de CxC.'!I317)","v":""},{"$f":"IF('800111a - Nota. Detalle de CxC.'!I318=\"\",\"\",'800111a - Nota. Detalle de CxC.'!I318)","v":""},{"$f":"IF('800111a - Nota. Detalle de CxC.'!I319=\"\",\"\",'800111a - Nota. Detalle de CxC.'!I319)","v":""},{"$f":"IF('800111a - Nota. Detalle de CxC.'!I320=\"\",\"\",'800111a - Nota. Detalle de CxC.'!I320)","v":""},{"$f":"IF('800111a - Nota. Detalle de CxC.'!I321=\"\",\"\",'800111a - Nota. Detalle de CxC.'!I321)","v":""},{"$f":"IF('800111a - Nota. Detalle de CxC.'!I322=\"\",\"\",'800111a - Nota. Detalle de CxC.'!I322)","v":""},{"$f":"IF('800111a - Nota. Detalle de CxC.'!I323=\"\",\"\",'800111a - Nota. Detalle de CxC.'!I323)","v":""},{"$f":"IF('800111a - Nota. Detalle de CxC.'!I324=\"\",\"\",'800111a - Nota. Detalle de CxC.'!I324)","v":""},{"$f":"IF('800111a - Nota. Detalle de CxC.'!I325=\"\",\"\",'800111a - Nota. Detalle de CxC.'!I325)","v":""},{"$f":"IF('800111a - Nota. Detalle de CxC.'!I326=\"\",\"\",'800111a - Nota. Detalle de CxC.'!I326)","v":""},{"$f":"IF('800111a - Nota. Detalle de CxC.'!I327=\"\",\"\",'800111a - Nota. Detalle de CxC.'!I327)","v":""},{"$f":"IF('800111a - Nota. Detalle de CxC.'!I328=\"\",\"\",'800111a - Nota. Detalle de CxC.'!I328)","v":""},{"$f":"IF('800111a - Nota. Detalle de CxC.'!I329=\"\",\"\",'800111a - Nota. Detalle de CxC.'!I329)","v":""},{"$f":"IF('800111a - Nota. Detalle de CxC.'!I330=\"\",\"\",'800111a - Nota. Detalle de CxC.'!I330)","v":""},{"$f":"IF('800111a - Nota. Detalle de CxC.'!I331=\"\",\"\",'800111a - Nota. Detalle de CxC.'!I331)","v":""},{"$f":"IF('800111a - Nota. Detalle de CxC.'!I332=\"\",\"\",'800111a - Nota. Detalle de CxC.'!I332)","v":""},{"$f":"IF('800111a - Nota. Detalle de CxC.'!I333=\"\",\"\",'800111a - Nota. Detalle de CxC.'!I333)","v":""},{"$f":"IF('800111a - Nota. Detalle de CxC.'!I334=\"\",\"\",'800111a - Nota. Detalle de CxC.'!I334)","v":""},{"$f":"IF('800111a - Nota. Detalle de CxC.'!I335=\"\",\"\",'800111a - Nota. Detalle de CxC.'!I335)","v":""},{"$f":"IF('800111a - Nota. Detalle de CxC.'!I336=\"\",\"\",'800111a - Nota. Detalle de CxC.'!I336)","v":""},{"$f":"IF('800111a - Nota. Detalle de CxC.'!I337=\"\",\"\",'800111a - Nota. Detalle de CxC.'!I337)","v":""},{"$f":"IF('800111a - Nota. Detalle de CxC.'!I338=\"\",\"\",'800111a - Nota. Detalle de CxC.'!I338)","v":""},{"$f":"IF('800111a - Nota. Detalle de CxC.'!I339=\"\",\"\",'800111a - Nota. Detalle de CxC.'!I339)","v":""},{"$f":"IF('800111a - Nota. Detalle de CxC.'!I340=\"\",\"\",'800111a - Nota. Detalle de CxC.'!I340)","v":""},{"$f":"IF('800111a - Nota. Detalle de CxC.'!I341=\"\",\"\",'800111a - Nota. Detalle de CxC.'!I341)","v":""},{"$f":"IF('800111a - Nota. Detalle de CxC.'!I342=\"\",\"\",'800111a - Nota. Detalle de CxC.'!I342)","v":""},{"$f":"IF('800111a - Nota. Detalle de CxC.'!I343=\"\",\"\",'800111a - Nota. Detalle de CxC.'!I343)","v":""}]
[null,"1;2","co-svsp-core:PrimerNombreDeudorCxC","Primer nombre deudor",null,null,{"$f":"IF('800111a - Nota. Detalle de CxC.'!J188=\"\",\"\",'800111a - Nota. Detalle de CxC.'!J188)","v":""},{"$f":"IF('800111a - Nota. Detalle de CxC.'!J189=\"\",\"\",'800111a - Nota. Detalle de CxC.'!J189)","v":""},{"$f":"IF('800111a - Nota. Detalle de CxC.'!J190=\"\",\"\",'800111a - Nota. Detalle de CxC.'!J190)","v":""},{"$f":"IF('800111a - Nota. Detalle de CxC.'!J191=\"\",\"\",'800111a - Nota. Detalle de CxC.'!J191)","v":""},{"$f":"IF('800111a - Nota. Detalle de CxC.'!J192=\"\",\"\",'800111a - Nota. Detalle de CxC.'!J192)","v":""},{"$f":"IF('800111a - Nota. Detalle de CxC.'!J193=\"\",\"\",'800111a - Nota. Detalle de CxC.'!J193)","v":""},{"$f":"IF('800111a - Nota. Detalle de CxC.'!J194=\"\",\"\",'800111a - Nota. Detalle de CxC.'!J194)","v":""},{"$f":"IF('800111a - Nota. Detalle de CxC.'!J195=\"\",\"\",'800111a - Nota. Detalle de CxC.'!J195)","v":""},{"$f":"IF('800111a - Nota. Detalle de CxC.'!J196=\"\",\"\",'800111a - Nota. Detalle de CxC.'!J196)","v":""},{"$f":"IF('800111a - Nota. Detalle de CxC.'!J197=\"\",\"\",'800111a - Nota. Detalle de CxC.'!J197)","v":""},{"$f":"IF('800111a - Nota. Detalle de CxC.'!J198=\"\",\"\",'800111a - Nota. Detalle de CxC.'!J198)","v":""},{"$f":"IF('800111a - Nota. Detalle de CxC.'!J199=\"\",\"\",'800111a - Nota. Detalle de CxC.'!J199)","v":""},{"$f":"IF('800111a - Nota. Detalle de CxC.'!J200=\"\",\"\",'800111a - Nota. Detalle de CxC.'!J200)","v":""},{"$f":"IF('800111a - Nota. Detalle de CxC.'!J201=\"\",\"\",'800111a - Nota. Detalle de CxC.'!J201)","v":""},{"$f":"IF('800111a - Nota. Detalle de CxC.'!J202=\"\",\"\",'800111a - Nota. Detalle de CxC.'!J202)","v":""},{"$f":"IF('800111a - Nota. Detalle de CxC.'!J203=\"\",\"\",'800111a - Nota. Detalle de CxC.'!J203)","v":""},{"$f":"IF('800111a - Nota. Detalle de CxC.'!J204=\"\",\"\",'800111a - Nota. Detalle de CxC.'!J204)","v":""},{"$f":"IF('800111a - Nota. Detalle de CxC.'!J205=\"\",\"\",'800111a - Nota. Detalle de CxC.'!J205)","v":""},{"$f":"IF('800111a - Nota. Detalle de CxC.'!J206=\"\",\"\",'800111a - Nota. Detalle de CxC.'!J206)","v":""},{"$f":"IF('800111a - Nota. Detalle de CxC.'!J207=\"\",\"\",'800111a - Nota. Detalle de CxC.'!J207)","v":""},{"$f":"IF('800111a - Nota. Detalle de CxC.'!J208=\"\",\"\",'800111a - Nota. Detalle de CxC.'!J208)","v":""},{"$f":"IF('800111a - Nota. Detalle de CxC.'!J209=\"\",\"\",'800111a - Nota. Detalle de CxC.'!J209)","v":""},{"$f":"IF('800111a - Nota. Detalle de CxC.'!J210=\"\",\"\",'800111a - Nota. Detalle de CxC.'!J210)","v":""},{"$f":"IF('800111a - Nota. Detalle de CxC.'!J211=\"\",\"\",'800111a - Nota. Detalle de CxC.'!J211)","v":""},{"$f":"IF('800111a - Nota. Detalle de CxC.'!J212=\"\",\"\",'800111a - Nota. Detalle de CxC.'!J212)","v":""},{"$f":"IF('800111a - Nota. Detalle de CxC.'!J213=\"\",\"\",'800111a - Nota. Detalle de CxC.'!J213)","v":""},{"$f":"IF('800111a - Nota. Detalle de CxC.'!J214=\"\",\"\",'800111a - Nota. Detalle de CxC.'!J214)","v":""},{"$f":"IF('800111a - Nota. Detalle de CxC.'!J215=\"\",\"\",'800111a - Nota. Detalle de CxC.'!J215)","v":""},{"$f":"IF('800111a - Nota. Detalle de CxC.'!J216=\"\",\"\",'800111a - Nota. Detalle de CxC.'!J216)","v":""},{"$f":"IF('800111a - Nota. Detalle de CxC.'!J217=\"\",\"\",'800111a - Nota. Detalle de CxC.'!J217)","v":""},{"$f":"IF('800111a - Nota. Detalle de CxC.'!J218=\"\",\"\",'800111a - Nota. Detalle de CxC.'!J218)","v":""},{"$f":"IF('800111a - Nota. Detalle de CxC.'!J219=\"\",\"\",'800111a - Nota. Detalle de CxC.'!J219)","v":""},{"$f":"IF('800111a - Nota. Detalle de CxC.'!J220=\"\",\"\",'800111a - Nota. Detalle de CxC.'!J220)","v":""},{"$f":"IF('800111a - Nota. Detalle de CxC.'!J221=\"\",\"\",'800111a - Nota. Detalle de CxC.'!J221)","v":""},{"$f":"IF('800111a - Nota. Detalle de CxC.'!J222=\"\",\"\",'800111a - Nota. Detalle de CxC.'!J222)","v":""},{"$f":"IF('800111a - Nota. Detalle de CxC.'!J223=\"\",\"\",'800111a - Nota. Detalle de CxC.'!J223)","v":""},{"$f":"IF('800111a - Nota. Detalle de CxC.'!J224=\"\",\"\",'800111a - Nota. Detalle de CxC.'!J224)","v":""},{"$f":"IF('800111a - Nota. Detalle de CxC.'!J225=\"\",\"\",'800111a - Nota. Detalle de CxC.'!J225)","v":""},{"$f":"IF('800111a - Nota. Detalle de CxC.'!J226=\"\",\"\",'800111a - Nota. Detalle de CxC.'!J226)","v":""},{"$f":"IF('800111a - Nota. Detalle de CxC.'!J227=\"\",\"\",'800111a - Nota. Detalle de CxC.'!J227)","v":""},{"$f":"IF('800111a - Nota. Detalle de CxC.'!J228=\"\",\"\",'800111a - Nota. Detalle de CxC.'!J228)","v":""},{"$f":"IF('800111a - Nota. Detalle de CxC.'!J229=\"\",\"\",'800111a - Nota. Detalle de CxC.'!J229)","v":""},{"$f":"IF('800111a - Nota. Detalle de CxC.'!J230=\"\",\"\",'800111a - Nota. Detalle de CxC.'!J230)","v":""},{"$f":"IF('800111a - Nota. Detalle de CxC.'!J231=\"\",\"\",'800111a - Nota. Detalle de CxC.'!J231)","v":""},{"$f":"IF('800111a - Nota. Detalle de CxC.'!J232=\"\",\"\",'800111a - Nota. Detalle de CxC.'!J232)","v":""},{"$f":"IF('800111a - Nota. Detalle de CxC.'!J233=\"\",\"\",'800111a - Nota. Detalle de CxC.'!J233)","v":""},{"$f":"IF('800111a - Nota. Detalle de CxC.'!J234=\"\",\"\",'800111a - Nota. Detalle de CxC.'!J234)","v":""},{"$f":"IF('800111a - Nota. Detalle de CxC.'!J235=\"\",\"\",'800111a - Nota. Detalle de CxC.'!J235)","v":""},{"$f":"IF('800111a - Nota. Detalle de CxC.'!J236=\"\",\"\",'800111a - Nota. Detalle de CxC.'!J236)","v":""},{"$f":"IF('800111a - Nota. Detalle de CxC.'!J237=\"\",\"\",'800111a - Nota. Detalle de CxC.'!J237)","v":""},null,null,null,{"$f":"IF('800111a - Nota. Detalle de CxC.'!J241=\"\",\"\",'800111a - Nota. Detalle de CxC.'!J241)","v":""},{"$f":"IF('800111a - Nota. Detalle de CxC.'!J242=\"\",\"\",'800111a - Nota. Detalle de CxC.'!J242)","v":""},{"$f":"IF('800111a - Nota. Detalle de CxC.'!J243=\"\",\"\",'800111a - Nota. Detalle de CxC.'!J243)","v":""},{"$f":"IF('800111a - Nota. Detalle de CxC.'!J244=\"\",\"\",'800111a - Nota. Detalle de CxC.'!J244)","v":""},{"$f":"IF('800111a - Nota. Detalle de CxC.'!J245=\"\",\"\",'800111a - Nota. Detalle de CxC.'!J245)","v":""},{"$f":"IF('800111a - Nota. Detalle de CxC.'!J246=\"\",\"\",'800111a - Nota. Detalle de CxC.'!J246)","v":""},{"$f":"IF('800111a - Nota. Detalle de CxC.'!J247=\"\",\"\",'800111a - Nota. Detalle de CxC.'!J247)","v":""},{"$f":"IF('800111a - Nota. Detalle de CxC.'!J248=\"\",\"\",'800111a - Nota. Detalle de CxC.'!J248)","v":""},{"$f":"IF('800111a - Nota. Detalle de CxC.'!J249=\"\",\"\",'800111a - Nota. Detalle de CxC.'!J249)","v":""},{"$f":"IF('800111a - Nota. Detalle de CxC.'!J250=\"\",\"\",'800111a - Nota. Detalle de CxC.'!J250)","v":""},{"$f":"IF('800111a - Nota. Detalle de CxC.'!J251=\"\",\"\",'800111a - Nota. Detalle de CxC.'!J251)","v":""},{"$f":"IF('800111a - Nota. Detalle de CxC.'!J252=\"\",\"\",'800111a - Nota. Detalle de CxC.'!J252)","v":""},{"$f":"IF('800111a - Nota. Detalle de CxC.'!J253=\"\",\"\",'800111a - Nota. Detalle de CxC.'!J253)","v":""},{"$f":"IF('800111a - Nota. Detalle de CxC.'!J254=\"\",\"\",'800111a - Nota. Detalle de CxC.'!J254)","v":""},{"$f":"IF('800111a - Nota. Detalle de CxC.'!J255=\"\",\"\",'800111a - Nota. Detalle de CxC.'!J255)","v":""},{"$f":"IF('800111a - Nota. Detalle de CxC.'!J256=\"\",\"\",'800111a - Nota. Detalle de CxC.'!J256)","v":""},{"$f":"IF('800111a - Nota. Detalle de CxC.'!J257=\"\",\"\",'800111a - Nota. Detalle de CxC.'!J257)","v":""},{"$f":"IF('800111a - Nota. Detalle de CxC.'!J258=\"\",\"\",'800111a - Nota. Detalle de CxC.'!J258)","v":""},{"$f":"IF('800111a - Nota. Detalle de CxC.'!J259=\"\",\"\",'800111a - Nota. Detalle de CxC.'!J259)","v":""},{"$f":"IF('800111a - Nota. Detalle de CxC.'!J260=\"\",\"\",'800111a - Nota. Detalle de CxC.'!J260)","v":""},{"$f":"IF('800111a - Nota. Detalle de CxC.'!J261=\"\",\"\",'800111a - Nota. Detalle de CxC.'!J261)","v":""},{"$f":"IF('800111a - Nota. Detalle de CxC.'!J262=\"\",\"\",'800111a - Nota. Detalle de CxC.'!J262)","v":""},{"$f":"IF('800111a - Nota. Detalle de CxC.'!J263=\"\",\"\",'800111a - Nota. Detalle de CxC.'!J263)","v":""},{"$f":"IF('800111a - Nota. Detalle de CxC.'!J264=\"\",\"\",'800111a - Nota. Detalle de CxC.'!J264)","v":""},{"$f":"IF('800111a - Nota. Detalle de CxC.'!J265=\"\",\"\",'800111a - Nota. Detalle de CxC.'!J265)","v":""},{"$f":"IF('800111a - Nota. Detalle de CxC.'!J266=\"\",\"\",'800111a - Nota. Detalle de CxC.'!J266)","v":""},{"$f":"IF('800111a - Nota. Detalle de CxC.'!J267=\"\",\"\",'800111a - Nota. Detalle de CxC.'!J267)","v":""},{"$f":"IF('800111a - Nota. Detalle de CxC.'!J268=\"\",\"\",'800111a - Nota. Detalle de CxC.'!J268)","v":""},{"$f":"IF('800111a - Nota. Detalle de CxC.'!J269=\"\",\"\",'800111a - Nota. Detalle de CxC.'!J269)","v":""},{"$f":"IF('800111a - Nota. Detalle de CxC.'!J270=\"\",\"\",'800111a - Nota. Detalle de CxC.'!J270)","v":""},{"$f":"IF('800111a - Nota. Detalle de CxC.'!J271=\"\",\"\",'800111a - Nota. Detalle de CxC.'!J271)","v":""},{"$f":"IF('800111a - Nota. Detalle de CxC.'!J272=\"\",\"\",'800111a - Nota. Detalle de CxC.'!J272)","v":""},{"$f":"IF('800111a - Nota. Detalle de CxC.'!J273=\"\",\"\",'800111a - Nota. Detalle de CxC.'!J273)","v":""},{"$f":"IF('800111a - Nota. Detalle de CxC.'!J274=\"\",\"\",'800111a - Nota. Detalle de CxC.'!J274)","v":""},{"$f":"IF('800111a - Nota. Detalle de CxC.'!J275=\"\",\"\",'800111a - Nota. Detalle de CxC.'!J275)","v":""},{"$f":"IF('800111a - Nota. Detalle de CxC.'!J276=\"\",\"\",'800111a - Nota. Detalle de CxC.'!J276)","v":""},{"$f":"IF('800111a - Nota. Detalle de CxC.'!J277=\"\",\"\",'800111a - Nota. Detalle de CxC.'!J277)","v":""},{"$f":"IF('800111a - Nota. Detalle de CxC.'!J278=\"\",\"\",'800111a - Nota. Detalle de CxC.'!J278)","v":""},{"$f":"IF('800111a - Nota. Detalle de CxC.'!J279=\"\",\"\",'800111a - Nota. Detalle de CxC.'!J279)","v":""},{"$f":"IF('800111a - Nota. Detalle de CxC.'!J280=\"\",\"\",'800111a - Nota. Detalle de CxC.'!J280)","v":""},{"$f":"IF('800111a - Nota. Detalle de CxC.'!J281=\"\",\"\",'800111a - Nota. Detalle de CxC.'!J281)","v":""},{"$f":"IF('800111a - Nota. Detalle de CxC.'!J282=\"\",\"\",'800111a - Nota. Detalle de CxC.'!J282)","v":""},{"$f":"IF('800111a - Nota. Detalle de CxC.'!J283=\"\",\"\",'800111a - Nota. Detalle de CxC.'!J283)","v":""},{"$f":"IF('800111a - Nota. Detalle de CxC.'!J284=\"\",\"\",'800111a - Nota. Detalle de CxC.'!J284)","v":""},{"$f":"IF('800111a - Nota. Detalle de CxC.'!J285=\"\",\"\",'800111a - Nota. Detalle de CxC.'!J285)","v":""},{"$f":"IF('800111a - Nota. Detalle de CxC.'!J286=\"\",\"\",'800111a - Nota. Detalle de CxC.'!J286)","v":""},{"$f":"IF('800111a - Nota. Detalle de CxC.'!J287=\"\",\"\",'800111a - Nota. Detalle de CxC.'!J287)","v":""},{"$f":"IF('800111a - Nota. Detalle de CxC.'!J288=\"\",\"\",'800111a - Nota. Detalle de CxC.'!J288)","v":""},{"$f":"IF('800111a - Nota. Detalle de CxC.'!J289=\"\",\"\",'800111a - Nota. Detalle de CxC.'!J289)","v":""},{"$f":"IF('800111a - Nota. Detalle de CxC.'!J290=\"\",\"\",'800111a - Nota. Detalle de CxC.'!J290)","v":""},null,null,null,{"$f":"IF('800111a - Nota. Detalle de CxC.'!J294=\"\",\"\",'800111a - Nota. Detalle de CxC.'!J294)","v":""},{"$f":"IF('800111a - Nota. Detalle de CxC.'!J295=\"\",\"\",'800111a - Nota. Detalle de CxC.'!J295)","v":""},{"$f":"IF('800111a - Nota. Detalle de CxC.'!J296=\"\",\"\",'800111a - Nota. Detalle de CxC.'!J296)","v":""},{"$f":"IF('800111a - Nota. Detalle de CxC.'!J297=\"\",\"\",'800111a - Nota. Detalle de CxC.'!J297)","v":""},{"$f":"IF('800111a - Nota. Detalle de CxC.'!J298=\"\",\"\",'800111a - Nota. Detalle de CxC.'!J298)","v":""},{"$f":"IF('800111a - Nota. Detalle de CxC.'!J299=\"\",\"\",'800111a - Nota. Detalle de CxC.'!J299)","v":""},{"$f":"IF('800111a - Nota. Detalle de CxC.'!J300=\"\",\"\",'800111a - Nota. Detalle de CxC.'!J300)","v":""},{"$f":"IF('800111a - Nota. Detalle de CxC.'!J301=\"\",\"\",'800111a - Nota. Detalle de CxC.'!J301)","v":""},{"$f":"IF('800111a - Nota. Detalle de CxC.'!J302=\"\",\"\",'800111a - Nota. Detalle de CxC.'!J302)","v":""},{"$f":"IF('800111a - Nota. Detalle de CxC.'!J303=\"\",\"\",'800111a - Nota. Detalle de CxC.'!J303)","v":""},{"$f":"IF('800111a - Nota. Detalle de CxC.'!J304=\"\",\"\",'800111a - Nota. Detalle de CxC.'!J304)","v":""},{"$f":"IF('800111a - Nota. Detalle de CxC.'!J305=\"\",\"\",'800111a - Nota. Detalle de CxC.'!J305)","v":""},{"$f":"IF('800111a - Nota. Detalle de CxC.'!J306=\"\",\"\",'800111a - Nota. Detalle de CxC.'!J306)","v":""},{"$f":"IF('800111a - Nota. Detalle de CxC.'!J307=\"\",\"\",'800111a - Nota. Detalle de CxC.'!J307)","v":""},{"$f":"IF('800111a - Nota. Detalle de CxC.'!J308=\"\",\"\",'800111a - Nota. Detalle de CxC.'!J308)","v":""},{"$f":"IF('800111a - Nota. Detalle de CxC.'!J309=\"\",\"\",'800111a - Nota. Detalle de CxC.'!J309)","v":""},{"$f":"IF('800111a - Nota. Detalle de CxC.'!J310=\"\",\"\",'800111a - Nota. Detalle de CxC.'!J310)","v":""},{"$f":"IF('800111a - Nota. Detalle de CxC.'!J311=\"\",\"\",'800111a - Nota. Detalle de CxC.'!J311)","v":""},{"$f":"IF('800111a - Nota. Detalle de CxC.'!J312=\"\",\"\",'800111a - Nota. Detalle de CxC.'!J312)","v":""},{"$f":"IF('800111a - Nota. Detalle de CxC.'!J313=\"\",\"\",'800111a - Nota. Detalle de CxC.'!J313)","v":""},{"$f":"IF('800111a - Nota. Detalle de CxC.'!J314=\"\",\"\",'800111a - Nota. Detalle de CxC.'!J314)","v":""},{"$f":"IF('800111a - Nota. Detalle de CxC.'!J315=\"\",\"\",'800111a - Nota. Detalle de CxC.'!J315)","v":""},{"$f":"IF('800111a - Nota. Detalle de CxC.'!J316=\"\",\"\",'800111a - Nota. Detalle de CxC.'!J316)","v":""},{"$f":"IF('800111a - Nota. Detalle de CxC.'!J317=\"\",\"\",'800111a - Nota. Detalle de CxC.'!J317)","v":""},{"$f":"IF('800111a - Nota. Detalle de CxC.'!J318=\"\",\"\",'800111a - Nota. Detalle de CxC.'!J318)","v":""},{"$f":"IF('800111a - Nota. Detalle de CxC.'!J319=\"\",\"\",'800111a - Nota. Detalle de CxC.'!J319)","v":""},{"$f":"IF('800111a - Nota. Detalle de CxC.'!J320=\"\",\"\",'800111a - Nota. Detalle de CxC.'!J320)","v":""},{"$f":"IF('800111a - Nota. Detalle de CxC.'!J321=\"\",\"\",'800111a - Nota. Detalle de CxC.'!J321)","v":""},{"$f":"IF('800111a - Nota. Detalle de CxC.'!J322=\"\",\"\",'800111a - Nota. Detalle de CxC.'!J322)","v":""},{"$f":"IF('800111a - Nota. Detalle de CxC.'!J323=\"\",\"\",'800111a - Nota. Detalle de CxC.'!J323)","v":""},{"$f":"IF('800111a - Nota. Detalle de CxC.'!J324=\"\",\"\",'800111a - Nota. Detalle de CxC.'!J324)","v":""},{"$f":"IF('800111a - Nota. Detalle de CxC.'!J325=\"\",\"\",'800111a - Nota. Detalle de CxC.'!J325)","v":""},{"$f":"IF('800111a - Nota. Detalle de CxC.'!J326=\"\",\"\",'800111a - Nota. Detalle de CxC.'!J326)","v":""},{"$f":"IF('800111a - Nota. Detalle de CxC.'!J327=\"\",\"\",'800111a - Nota. Detalle de CxC.'!J327)","v":""},{"$f":"IF('800111a - Nota. Detalle de CxC.'!J328=\"\",\"\",'800111a - Nota. Detalle de CxC.'!J328)","v":""},{"$f":"IF('800111a - Nota. Detalle de CxC.'!J329=\"\",\"\",'800111a - Nota. Detalle de CxC.'!J329)","v":""},{"$f":"IF('800111a - Nota. Detalle de CxC.'!J330=\"\",\"\",'800111a - Nota. Detalle de CxC.'!J330)","v":""},{"$f":"IF('800111a - Nota. Detalle de CxC.'!J331=\"\",\"\",'800111a - Nota. Detalle de CxC.'!J331)","v":""},{"$f":"IF('800111a - Nota. Detalle de CxC.'!J332=\"\",\"\",'800111a - Nota. Detalle de CxC.'!J332)","v":""},{"$f":"IF('800111a - Nota. Detalle de CxC.'!J333=\"\",\"\",'800111a - Nota. Detalle de CxC.'!J333)","v":""},{"$f":"IF('800111a - Nota. Detalle de CxC.'!J334=\"\",\"\",'800111a - Nota. Detalle de CxC.'!J334)","v":""},{"$f":"IF('800111a - Nota. Detalle de CxC.'!J335=\"\",\"\",'800111a - Nota. Detalle de CxC.'!J335)","v":""},{"$f":"IF('800111a - Nota. Detalle de CxC.'!J336=\"\",\"\",'800111a - Nota. Detalle de CxC.'!J336)","v":""},{"$f":"IF('800111a - Nota. Detalle de CxC.'!J337=\"\",\"\",'800111a - Nota. Detalle de CxC.'!J337)","v":""},{"$f":"IF('800111a - Nota. Detalle de CxC.'!J338=\"\",\"\",'800111a - Nota. Detalle de CxC.'!J338)","v":""},{"$f":"IF('800111a - Nota. Detalle de CxC.'!J339=\"\",\"\",'800111a - Nota. Detalle de CxC.'!J339)","v":""},{"$f":"IF('800111a - Nota. Detalle de CxC.'!J340=\"\",\"\",'800111a - Nota. Detalle de CxC.'!J340)","v":""},{"$f":"IF('800111a - Nota. Detalle de CxC.'!J341=\"\",\"\",'800111a - Nota. Detalle de CxC.'!J341)","v":""},{"$f":"IF('800111a - Nota. Detalle de CxC.'!J342=\"\",\"\",'800111a - Nota. Detalle de CxC.'!J342)","v":""},{"$f":"IF('800111a - Nota. Detalle de CxC.'!J343=\"\",\"\",'800111a - Nota. Detalle de CxC.'!J343)","v":""}]
[null,"1;2","co-svsp-core:OtrosNombresDeudorCxC","Otros nombres deudor",null,null,{"$f":"IF('800111a - Nota. Detalle de CxC.'!K188=\"\",\"\",'800111a - Nota. Detalle de CxC.'!K188)","v":""},{"$f":"IF('800111a - Nota. Detalle de CxC.'!K189=\"\",\"\",'800111a - Nota. Detalle de CxC.'!K189)","v":""},{"$f":"IF('800111a - Nota. Detalle de CxC.'!K190=\"\",\"\",'800111a - Nota. Detalle de CxC.'!K190)","v":""},{"$f":"IF('800111a - Nota. Detalle de CxC.'!K191=\"\",\"\",'800111a - Nota. Detalle de CxC.'!K191)","v":""},{"$f":"IF('800111a - Nota. Detalle de CxC.'!K192=\"\",\"\",'800111a - Nota. Detalle de CxC.'!K192)","v":""},{"$f":"IF('800111a - Nota. Detalle de CxC.'!K193=\"\",\"\",'800111a - Nota. Detalle de CxC.'!K193)","v":""},{"$f":"IF('800111a - Nota. Detalle de CxC.'!K194=\"\",\"\",'800111a - Nota. Detalle de CxC.'!K194)","v":""},{"$f":"IF('800111a - Nota. Detalle de CxC.'!K195=\"\",\"\",'800111a - Nota. Detalle de CxC.'!K195)","v":""},{"$f":"IF('800111a - Nota. Detalle de CxC.'!K196=\"\",\"\",'800111a - Nota. Detalle de CxC.'!K196)","v":""},{"$f":"IF('800111a - Nota. Detalle de CxC.'!K197=\"\",\"\",'800111a - Nota. Detalle de CxC.'!K197)","v":""},{"$f":"IF('800111a - Nota. Detalle de CxC.'!K198=\"\",\"\",'800111a - Nota. Detalle de CxC.'!K198)","v":""},{"$f":"IF('800111a - Nota. Detalle de CxC.'!K199=\"\",\"\",'800111a - Nota. Detalle de CxC.'!K199)","v":""},{"$f":"IF('800111a - Nota. Detalle de CxC.'!K200=\"\",\"\",'800111a - Nota. Detalle de CxC.'!K200)","v":""},{"$f":"IF('800111a - Nota. Detalle de CxC.'!K201=\"\",\"\",'800111a - Nota. Detalle de CxC.'!K201)","v":""},{"$f":"IF('800111a - Nota. Detalle de CxC.'!K202=\"\",\"\",'800111a - Nota. Detalle de CxC.'!K202)","v":""},{"$f":"IF('800111a - Nota. Detalle de CxC.'!K203=\"\",\"\",'800111a - Nota. Detalle de CxC.'!K203)","v":""},{"$f":"IF('800111a - Nota. Detalle de CxC.'!K204=\"\",\"\",'800111a - Nota. Detalle de CxC.'!K204)","v":""},{"$f":"IF('800111a - Nota. Detalle de CxC.'!K205=\"\",\"\",'800111a - Nota. Detalle de CxC.'!K205)","v":""},{"$f":"IF('800111a - Nota. Detalle de CxC.'!K206=\"\",\"\",'800111a - Nota. Detalle de CxC.'!K206)","v":""},{"$f":"IF('800111a - Nota. Detalle de CxC.'!K207=\"\",\"\",'800111a - Nota. Detalle de CxC.'!K207)","v":""},{"$f":"IF('800111a - Nota. Detalle de CxC.'!K208=\"\",\"\",'800111a - Nota. Detalle de CxC.'!K208)","v":""},{"$f":"IF('800111a - Nota. Detalle de CxC.'!K209=\"\",\"\",'800111a - Nota. Detalle de CxC.'!K209)","v":""},{"$f":"IF('800111a - Nota. Detalle de CxC.'!K210=\"\",\"\",'800111a - Nota. Detalle de CxC.'!K210)","v":""},{"$f":"IF('800111a - Nota. Detalle de CxC.'!K211=\"\",\"\",'800111a - Nota. Detalle de CxC.'!K211)","v":""},{"$f":"IF('800111a - Nota. Detalle de CxC.'!K212=\"\",\"\",'800111a - Nota. Detalle de CxC.'!K212)","v":""},{"$f":"IF('800111a - Nota. Detalle de CxC.'!K213=\"\",\"\",'800111a - Nota. Detalle de CxC.'!K213)","v":""},{"$f":"IF('800111a - Nota. Detalle de CxC.'!K214=\"\",\"\",'800111a - Nota. Detalle de CxC.'!K214)","v":""},{"$f":"IF('800111a - Nota. Detalle de CxC.'!K215=\"\",\"\",'800111a - Nota. Detalle de CxC.'!K215)","v":""},{"$f":"IF('800111a - Nota. Detalle de CxC.'!K216=\"\",\"\",'800111a - Nota. Detalle de CxC.'!K216)","v":""},{"$f":"IF('800111a - Nota. Detalle de CxC.'!K217=\"\",\"\",'800111a - Nota. Detalle de CxC.'!K217)","v":""},{"$f":"IF('800111a - Nota. Detalle de CxC.'!K218=\"\",\"\",'800111a - Nota. Detalle de CxC.'!K218)","v":""},{"$f":"IF('800111a - Nota. Detalle de CxC.'!K219=\"\",\"\",'800111a - Nota. Detalle de CxC.'!K219)","v":""},{"$f":"IF('800111a - Nota. Detalle de CxC.'!K220=\"\",\"\",'800111a - Nota. Detalle de CxC.'!K220)","v":""},{"$f":"IF('800111a - Nota. Detalle de CxC.'!K221=\"\",\"\",'800111a - Nota. Detalle de CxC.'!K221)","v":""},{"$f":"IF('800111a - Nota. Detalle de CxC.'!K222=\"\",\"\",'800111a - Nota. Detalle de CxC.'!K222)","v":""},{"$f":"IF('800111a - Nota. Detalle de CxC.'!K223=\"\",\"\",'800111a - Nota. Detalle de CxC.'!K223)","v":""},{"$f":"IF('800111a - Nota. Detalle de CxC.'!K224=\"\",\"\",'800111a - Nota. Detalle de CxC.'!K224)","v":""},{"$f":"IF('800111a - Nota. Detalle de CxC.'!K225=\"\",\"\",'800111a - Nota. Detalle de CxC.'!K225)","v":""},{"$f":"IF('800111a - Nota. Detalle de CxC.'!K226=\"\",\"\",'800111a - Nota. Detalle de CxC.'!K226)","v":""},{"$f":"IF('800111a - Nota. Detalle de CxC.'!K227=\"\",\"\",'800111a - Nota. Detalle de CxC.'!K227)","v":""},{"$f":"IF('800111a - Nota. Detalle de CxC.'!K228=\"\",\"\",'800111a - Nota. Detalle de CxC.'!K228)","v":""},{"$f":"IF('800111a - Nota. Detalle de CxC.'!K229=\"\",\"\",'800111a - Nota. Detalle de CxC.'!K229)","v":""},{"$f":"IF('800111a - Nota. Detalle de CxC.'!K230=\"\",\"\",'800111a - Nota. Detalle de CxC.'!K230)","v":""},{"$f":"IF('800111a - Nota. Detalle de CxC.'!K231=\"\",\"\",'800111a - Nota. Detalle de CxC.'!K231)","v":""},{"$f":"IF('800111a - Nota. Detalle de CxC.'!K232=\"\",\"\",'800111a - Nota. Detalle de CxC.'!K232)","v":""},{"$f":"IF('800111a - Nota. Detalle de CxC.'!K233=\"\",\"\",'800111a - Nota. Detalle de CxC.'!K233)","v":""},{"$f":"IF('800111a - Nota. Detalle de CxC.'!K234=\"\",\"\",'800111a - Nota. Detalle de CxC.'!K234)","v":""},{"$f":"IF('800111a - Nota. Detalle de CxC.'!K235=\"\",\"\",'800111a - Nota. Detalle de CxC.'!K235)","v":""},{"$f":"IF('800111a - Nota. Detalle de CxC.'!K236=\"\",\"\",'800111a - Nota. Detalle de CxC.'!K236)","v":""},{"$f":"IF('800111a - Nota. Detalle de CxC.'!K237=\"\",\"\",'800111a - Nota. Detalle de CxC.'!K237)","v":""},null,null,null,{"$f":"IF('800111a - Nota. Detalle de CxC.'!K241=\"\",\"\",'800111a - Nota. Detalle de CxC.'!K241)","v":""},{"$f":"IF('800111a - Nota. Detalle de CxC.'!K242=\"\",\"\",'800111a - Nota. Detalle de CxC.'!K242)","v":""},{"$f":"IF('800111a - Nota. Detalle de CxC.'!K243=\"\",\"\",'800111a - Nota. Detalle de CxC.'!K243)","v":""},{"$f":"IF('800111a - Nota. Detalle de CxC.'!K244=\"\",\"\",'800111a - Nota. Detalle de CxC.'!K244)","v":""},{"$f":"IF('800111a - Nota. Detalle de CxC.'!K245=\"\",\"\",'800111a - Nota. Detalle de CxC.'!K245)","v":""},{"$f":"IF('800111a - Nota. Detalle de CxC.'!K246=\"\",\"\",'800111a - Nota. Detalle de CxC.'!K246)","v":""},{"$f":"IF('800111a - Nota. Detalle de CxC.'!K247=\"\",\"\",'800111a - Nota. Detalle de CxC.'!K247)","v":""},{"$f":"IF('800111a - Nota. Detalle de CxC.'!K248=\"\",\"\",'800111a - Nota. Detalle de CxC.'!K248)","v":""},{"$f":"IF('800111a - Nota. Detalle de CxC.'!K249=\"\",\"\",'800111a - Nota. Detalle de CxC.'!K249)","v":""},{"$f":"IF('800111a - Nota. Detalle de CxC.'!K250=\"\",\"\",'800111a - Nota. Detalle de CxC.'!K250)","v":""},{"$f":"IF('800111a - Nota. Detalle de CxC.'!K251=\"\",\"\",'800111a - Nota. Detalle de CxC.'!K251)","v":""},{"$f":"IF('800111a - Nota. Detalle de CxC.'!K252=\"\",\"\",'800111a - Nota. Detalle de CxC.'!K252)","v":""},{"$f":"IF('800111a - Nota. Detalle de CxC.'!K253=\"\",\"\",'800111a - Nota. Detalle de CxC.'!K253)","v":""},{"$f":"IF('800111a - Nota. Detalle de CxC.'!K254=\"\",\"\",'800111a - Nota. Detalle de CxC.'!K254)","v":""},{"$f":"IF('800111a - Nota. Detalle de CxC.'!K255=\"\",\"\",'800111a - Nota. Detalle de CxC.'!K255)","v":""},{"$f":"IF('800111a - Nota. Detalle de CxC.'!K256=\"\",\"\",'800111a - Nota. Detalle de CxC.'!K256)","v":""},{"$f":"IF('800111a - Nota. Detalle de CxC.'!K257=\"\",\"\",'800111a - Nota. Detalle de CxC.'!K257)","v":""},{"$f":"IF('800111a - Nota. Detalle de CxC.'!K258=\"\",\"\",'800111a - Nota. Detalle de CxC.'!K258)","v":""},{"$f":"IF('800111a - Nota. Detalle de CxC.'!K259=\"\",\"\",'800111a - Nota. Detalle de CxC.'!K259)","v":""},{"$f":"IF('800111a - Nota. Detalle de CxC.'!K260=\"\",\"\",'800111a - Nota. Detalle de CxC.'!K260)","v":""},{"$f":"IF('800111a - Nota. Detalle de CxC.'!K261=\"\",\"\",'800111a - Nota. Detalle de CxC.'!K261)","v":""},{"$f":"IF('800111a - Nota. Detalle de CxC.'!K262=\"\",\"\",'800111a - Nota. Detalle de CxC.'!K262)","v":""},{"$f":"IF('800111a - Nota. Detalle de CxC.'!K263=\"\",\"\",'800111a - Nota. Detalle de CxC.'!K263)","v":""},{"$f":"IF('800111a - Nota. Detalle de CxC.'!K264=\"\",\"\",'800111a - Nota. Detalle de CxC.'!K264)","v":""},{"$f":"IF('800111a - Nota. Detalle de CxC.'!K265=\"\",\"\",'800111a - Nota. Detalle de CxC.'!K265)","v":""},{"$f":"IF('800111a - Nota. Detalle de CxC.'!K266=\"\",\"\",'800111a - Nota. Detalle de CxC.'!K266)","v":""},{"$f":"IF('800111a - Nota. Detalle de CxC.'!K267=\"\",\"\",'800111a - Nota. Detalle de CxC.'!K267)","v":""},{"$f":"IF('800111a - Nota. Detalle de CxC.'!K268=\"\",\"\",'800111a - Nota. Detalle de CxC.'!K268)","v":""},{"$f":"IF('800111a - Nota. Detalle de CxC.'!K269=\"\",\"\",'800111a - Nota. Detalle de CxC.'!K269)","v":""},{"$f":"IF('800111a - Nota. Detalle de CxC.'!K270=\"\",\"\",'800111a - Nota. Detalle de CxC.'!K270)","v":""},{"$f":"IF('800111a - Nota. Detalle de CxC.'!K271=\"\",\"\",'800111a - Nota. Detalle de CxC.'!K271)","v":""},{"$f":"IF('800111a - Nota. Detalle de CxC.'!K272=\"\",\"\",'800111a - Nota. Detalle de CxC.'!K272)","v":""},{"$f":"IF('800111a - Nota. Detalle de CxC.'!K273=\"\",\"\",'800111a - Nota. Detalle de CxC.'!K273)","v":""},{"$f":"IF('800111a - Nota. Detalle de CxC.'!K274=\"\",\"\",'800111a - Nota. Detalle de CxC.'!K274)","v":""},{"$f":"IF('800111a - Nota. Detalle de CxC.'!K275=\"\",\"\",'800111a - Nota. Detalle de CxC.'!K275)","v":""},{"$f":"IF('800111a - Nota. Detalle de CxC.'!K276=\"\",\"\",'800111a - Nota. Detalle de CxC.'!K276)","v":""},{"$f":"IF('800111a - Nota. Detalle de CxC.'!K277=\"\",\"\",'800111a - Nota. Detalle de CxC.'!K277)","v":""},{"$f":"IF('800111a - Nota. Detalle de CxC.'!K278=\"\",\"\",'800111a - Nota. Detalle de CxC.'!K278)","v":""},{"$f":"IF('800111a - Nota. Detalle de CxC.'!K279=\"\",\"\",'800111a - Nota. Detalle de CxC.'!K279)","v":""},{"$f":"IF('800111a - Nota. Detalle de CxC.'!K280=\"\",\"\",'800111a - Nota. Detalle de CxC.'!K280)","v":""},{"$f":"IF('800111a - Nota. Detalle de CxC.'!K281=\"\",\"\",'800111a - Nota. Detalle de CxC.'!K281)","v":""},{"$f":"IF('800111a - Nota. Detalle de CxC.'!K282=\"\",\"\",'800111a - Nota. Detalle de CxC.'!K282)","v":""},{"$f":"IF('800111a - Nota. Detalle de CxC.'!K283=\"\",\"\",'800111a - Nota. Detalle de CxC.'!K283)","v":""},{"$f":"IF('800111a - Nota. Detalle de CxC.'!K284=\"\",\"\",'800111a - Nota. Detalle de CxC.'!K284)","v":""},{"$f":"IF('800111a - Nota. Detalle de CxC.'!K285=\"\",\"\",'800111a - Nota. Detalle de CxC.'!K285)","v":""},{"$f":"IF('800111a - Nota. Detalle de CxC.'!K286=\"\",\"\",'800111a - Nota. Detalle de CxC.'!K286)","v":""},{"$f":"IF('800111a - Nota. Detalle de CxC.'!K287=\"\",\"\",'800111a - Nota. Detalle de CxC.'!K287)","v":""},{"$f":"IF('800111a - Nota. Detalle de CxC.'!K288=\"\",\"\",'800111a - Nota. Detalle de CxC.'!K288)","v":""},{"$f":"IF('800111a - Nota. Detalle de CxC.'!K289=\"\",\"\",'800111a - Nota. Detalle de CxC.'!K289)","v":""},{"$f":"IF('800111a - Nota. Detalle de CxC.'!K290=\"\",\"\",'800111a - Nota. Detalle de CxC.'!K290)","v":""},null,null,null,{"$f":"IF('800111a - Nota. Detalle de CxC.'!K294=\"\",\"\",'800111a - Nota. Detalle de CxC.'!K294)","v":""},{"$f":"IF('800111a - Nota. Detalle de CxC.'!K295=\"\",\"\",'800111a - Nota. Detalle de CxC.'!K295)","v":""},{"$f":"IF('800111a - Nota. Detalle de CxC.'!K296=\"\",\"\",'800111a - Nota. Detalle de CxC.'!K296)","v":""},{"$f":"IF('800111a - Nota. Detalle de CxC.'!K297=\"\",\"\",'800111a - Nota. Detalle de CxC.'!K297)","v":""},{"$f":"IF('800111a - Nota. Detalle de CxC.'!K298=\"\",\"\",'800111a - Nota. Detalle de CxC.'!K298)","v":""},{"$f":"IF('800111a - Nota. Detalle de CxC.'!K299=\"\",\"\",'800111a - Nota. Detalle de CxC.'!K299)","v":""},{"$f":"IF('800111a - Nota. Detalle de CxC.'!K300=\"\",\"\",'800111a - Nota. Detalle de CxC.'!K300)","v":""},{"$f":"IF('800111a - Nota. Detalle de CxC.'!K301=\"\",\"\",'800111a - Nota. Detalle de CxC.'!K301)","v":""},{"$f":"IF('800111a - Nota. Detalle de CxC.'!K302=\"\",\"\",'800111a - Nota. Detalle de CxC.'!K302)","v":""},{"$f":"IF('800111a - Nota. Detalle de CxC.'!K303=\"\",\"\",'800111a - Nota. Detalle de CxC.'!K303)","v":""},{"$f":"IF('800111a - Nota. Detalle de CxC.'!K304=\"\",\"\",'800111a - Nota. Detalle de CxC.'!K304)","v":""},{"$f":"IF('800111a - Nota. Detalle de CxC.'!K305=\"\",\"\",'800111a - Nota. Detalle de CxC.'!K305)","v":""},{"$f":"IF('800111a - Nota. Detalle de CxC.'!K306=\"\",\"\",'800111a - Nota. Detalle de CxC.'!K306)","v":""},{"$f":"IF('800111a - Nota. Detalle de CxC.'!K307=\"\",\"\",'800111a - Nota. Detalle de CxC.'!K307)","v":""},{"$f":"IF('800111a - Nota. Detalle de CxC.'!K308=\"\",\"\",'800111a - Nota. Detalle de CxC.'!K308)","v":""},{"$f":"IF('800111a - Nota. Detalle de CxC.'!K309=\"\",\"\",'800111a - Nota. Detalle de CxC.'!K309)","v":""},{"$f":"IF('800111a - Nota. Detalle de CxC.'!K310=\"\",\"\",'800111a - Nota. Detalle de CxC.'!K310)","v":""},{"$f":"IF('800111a - Nota. Detalle de CxC.'!K311=\"\",\"\",'800111a - Nota. Detalle de CxC.'!K311)","v":""},{"$f":"IF('800111a - Nota. Detalle de CxC.'!K312=\"\",\"\",'800111a - Nota. Detalle de CxC.'!K312)","v":""},{"$f":"IF('800111a - Nota. Detalle de CxC.'!K313=\"\",\"\",'800111a - Nota. Detalle de CxC.'!K313)","v":""},{"$f":"IF('800111a - Nota. Detalle de CxC.'!K314=\"\",\"\",'800111a - Nota. Detalle de CxC.'!K314)","v":""},{"$f":"IF('800111a - Nota. Detalle de CxC.'!K315=\"\",\"\",'800111a - Nota. Detalle de CxC.'!K315)","v":""},{"$f":"IF('800111a - Nota. Detalle de CxC.'!K316=\"\",\"\",'800111a - Nota. Detalle de CxC.'!K316)","v":""},{"$f":"IF('800111a - Nota. Detalle de CxC.'!K317=\"\",\"\",'800111a - Nota. Detalle de CxC.'!K317)","v":""},{"$f":"IF('800111a - Nota. Detalle de CxC.'!K318=\"\",\"\",'800111a - Nota. Detalle de CxC.'!K318)","v":""},{"$f":"IF('800111a - Nota. Detalle de CxC.'!K319=\"\",\"\",'800111a - Nota. Detalle de CxC.'!K319)","v":""},{"$f":"IF('800111a - Nota. Detalle de CxC.'!K320=\"\",\"\",'800111a - Nota. Detalle de CxC.'!K320)","v":""},{"$f":"IF('800111a - Nota. Detalle de CxC.'!K321=\"\",\"\",'800111a - Nota. Detalle de CxC.'!K321)","v":""},{"$f":"IF('800111a - Nota. Detalle de CxC.'!K322=\"\",\"\",'800111a - Nota. Detalle de CxC.'!K322)","v":""},{"$f":"IF('800111a - Nota. Detalle de CxC.'!K323=\"\",\"\",'800111a - Nota. Detalle de CxC.'!K323)","v":""},{"$f":"IF('800111a - Nota. Detalle de CxC.'!K324=\"\",\"\",'800111a - Nota. Detalle de CxC.'!K324)","v":""},{"$f":"IF('800111a - Nota. Detalle de CxC.'!K325=\"\",\"\",'800111a - Nota. Detalle de CxC.'!K325)","v":""},{"$f":"IF('800111a - Nota. Detalle de CxC.'!K326=\"\",\"\",'800111a - Nota. Detalle de CxC.'!K326)","v":""},{"$f":"IF('800111a - Nota. Detalle de CxC.'!K327=\"\",\"\",'800111a - Nota. Detalle de CxC.'!K327)","v":""},{"$f":"IF('800111a - Nota. Detalle de CxC.'!K328=\"\",\"\",'800111a - Nota. Detalle de CxC.'!K328)","v":""},{"$f":"IF('800111a - Nota. Detalle de CxC.'!K329=\"\",\"\",'800111a - Nota. Detalle de CxC.'!K329)","v":""},{"$f":"IF('800111a - Nota. Detalle de CxC.'!K330=\"\",\"\",'800111a - Nota. Detalle de CxC.'!K330)","v":""},{"$f":"IF('800111a - Nota. Detalle de CxC.'!K331=\"\",\"\",'800111a - Nota. Detalle de CxC.'!K331)","v":""},{"$f":"IF('800111a - Nota. Detalle de CxC.'!K332=\"\",\"\",'800111a - Nota. Detalle de CxC.'!K332)","v":""},{"$f":"IF('800111a - Nota. Detalle de CxC.'!K333=\"\",\"\",'800111a - Nota. Detalle de CxC.'!K333)","v":""},{"$f":"IF('800111a - Nota. Detalle de CxC.'!K334=\"\",\"\",'800111a - Nota. Detalle de CxC.'!K334)","v":""},{"$f":"IF('800111a - Nota. Detalle de CxC.'!K335=\"\",\"\",'800111a - Nota. Detalle de CxC.'!K335)","v":""},{"$f":"IF('800111a - Nota. Detalle de CxC.'!K336=\"\",\"\",'800111a - Nota. Detalle de CxC.'!K336)","v":""},{"$f":"IF('800111a - Nota. Detalle de CxC.'!K337=\"\",\"\",'800111a - Nota. Detalle de CxC.'!K337)","v":""},{"$f":"IF('800111a - Nota. Detalle de CxC.'!K338=\"\",\"\",'800111a - Nota. Detalle de CxC.'!K338)","v":""},{"$f":"IF('800111a - Nota. Detalle de CxC.'!K339=\"\",\"\",'800111a - Nota. Detalle de CxC.'!K339)","v":""},{"$f":"IF('800111a - Nota. Detalle de CxC.'!K340=\"\",\"\",'800111a - Nota. Detalle de CxC.'!K340)","v":""},{"$f":"IF('800111a - Nota. Detalle de CxC.'!K341=\"\",\"\",'800111a - Nota. Detalle de CxC.'!K341)","v":""},{"$f":"IF('800111a - Nota. Detalle de CxC.'!K342=\"\",\"\",'800111a - Nota. Detalle de CxC.'!K342)","v":""},{"$f":"IF('800111a - Nota. Detalle de CxC.'!K343=\"\",\"\",'800111a - Nota. Detalle de CxC.'!K343)","v":""}]
[null,"1;2","co-svsp-core:RazonSocialDeudorCxC","Razón Social deudor",null,null,{"$f":"IF('800111a - Nota. Detalle de CxC.'!L188=\"\",\"\",'800111a - Nota. Detalle de CxC.'!L188)","v":""},{"$f":"IF('800111a - Nota. Detalle de CxC.'!L189=\"\",\"\",'800111a - Nota. Detalle de CxC.'!L189)","v":""},{"$f":"IF('800111a - Nota. Detalle de CxC.'!L190=\"\",\"\",'800111a - Nota. Detalle de CxC.'!L190)","v":""},{"$f":"IF('800111a - Nota. Detalle de CxC.'!L191=\"\",\"\",'800111a - Nota. Detalle de CxC.'!L191)","v":""},{"$f":"IF('800111a - Nota. Detalle de CxC.'!L192=\"\",\"\",'800111a - Nota. Detalle de CxC.'!L192)","v":""},{"$f":"IF('800111a - Nota. Detalle de CxC.'!L193=\"\",\"\",'800111a - Nota. Detalle de CxC.'!L193)","v":""},{"$f":"IF('800111a - Nota. Detalle de CxC.'!L194=\"\",\"\",'800111a - Nota. Detalle de CxC.'!L194)","v":""},{"$f":"IF('800111a - Nota. Detalle de CxC.'!L195=\"\",\"\",'800111a - Nota. Detalle de CxC.'!L195)","v":""},{"$f":"IF('800111a - Nota. Detalle de CxC.'!L196=\"\",\"\",'800111a - Nota. Detalle de CxC.'!L196)","v":""},{"$f":"IF('800111a - Nota. Detalle de CxC.'!L197=\"\",\"\",'800111a - Nota. Detalle de CxC.'!L197)","v":""},{"$f":"IF('800111a - Nota. Detalle de CxC.'!L198=\"\",\"\",'800111a - Nota. Detalle de CxC.'!L198)","v":""},{"$f":"IF('800111a - Nota. Detalle de CxC.'!L199=\"\",\"\",'800111a - Nota. Detalle de CxC.'!L199)","v":""},{"$f":"IF('800111a - Nota. Detalle de CxC.'!L200=\"\",\"\",'800111a - Nota. Detalle de CxC.'!L200)","v":""},{"$f":"IF('800111a - Nota. Detalle de CxC.'!L201=\"\",\"\",'800111a - Nota. Detalle de CxC.'!L201)","v":""},{"$f":"IF('800111a - Nota. Detalle de CxC.'!L202=\"\",\"\",'800111a - Nota. Detalle de CxC.'!L202)","v":""},{"$f":"IF('800111a - Nota. Detalle de CxC.'!L203=\"\",\"\",'800111a - Nota. Detalle de CxC.'!L203)","v":""},{"$f":"IF('800111a - Nota. Detalle de CxC.'!L204=\"\",\"\",'800111a - Nota. Detalle de CxC.'!L204)","v":""},{"$f":"IF('800111a - Nota. Detalle de CxC.'!L205=\"\",\"\",'800111a - Nota. Detalle de CxC.'!L205)","v":""},{"$f":"IF('800111a - Nota. Detalle de CxC.'!L206=\"\",\"\",'800111a - Nota. Detalle de CxC.'!L206)","v":""},{"$f":"IF('800111a - Nota. Detalle de CxC.'!L207=\"\",\"\",'800111a - Nota. Detalle de CxC.'!L207)","v":""},{"$f":"IF('800111a - Nota. Detalle de CxC.'!L208=\"\",\"\",'800111a - Nota. Detalle de CxC.'!L208)","v":""},{"$f":"IF('800111a - Nota. Detalle de CxC.'!L209=\"\",\"\",'800111a - Nota. Detalle de CxC.'!L209)","v":""},{"$f":"IF('800111a - Nota. Detalle de CxC.'!L210=\"\",\"\",'800111a - Nota. Detalle de CxC.'!L210)","v":""},{"$f":"IF('800111a - Nota. Detalle de CxC.'!L211=\"\",\"\",'800111a - Nota. Detalle de CxC.'!L211)","v":""},{"$f":"IF('800111a - Nota. Detalle de CxC.'!L212=\"\",\"\",'800111a - Nota. Detalle de CxC.'!L212)","v":""},{"$f":"IF('800111a - Nota. Detalle de CxC.'!L213=\"\",\"\",'800111a - Nota. Detalle de CxC.'!L213)","v":""},{"$f":"IF('800111a - Nota. Detalle de CxC.'!L214=\"\",\"\",'800111a - Nota. Detalle de CxC.'!L214)","v":""},{"$f":"IF('800111a - Nota. Detalle de CxC.'!L215=\"\",\"\",'800111a - Nota. Detalle de CxC.'!L215)","v":""},{"$f":"IF('800111a - Nota. Detalle de CxC.'!L216=\"\",\"\",'800111a - Nota. Detalle de CxC.'!L216)","v":""},{"$f":"IF('800111a - Nota. Detalle de CxC.'!L217=\"\",\"\",'800111a - Nota. Detalle de CxC.'!L217)","v":""},{"$f":"IF('800111a - Nota. Detalle de CxC.'!L218=\"\",\"\",'800111a - Nota. Detalle de CxC.'!L218)","v":""},{"$f":"IF('800111a - Nota. Detalle de CxC.'!L219=\"\",\"\",'800111a - Nota. Detalle de CxC.'!L219)","v":""},{"$f":"IF('800111a - Nota. Detalle de CxC.'!L220=\"\",\"\",'800111a - Nota. Detalle de CxC.'!L220)","v":""},{"$f":"IF('800111a - Nota. Detalle de CxC.'!L221=\"\",\"\",'800111a - Nota. Detalle de CxC.'!L221)","v":""},{"$f":"IF('800111a - Nota. Detalle de CxC.'!L222=\"\",\"\",'800111a - Nota. Detalle de CxC.'!L222)","v":""},{"$f":"IF('800111a - Nota. Detalle de CxC.'!L223=\"\",\"\",'800111a - Nota. Detalle de CxC.'!L223)","v":""},{"$f":"IF('800111a - Nota. Detalle de CxC.'!L224=\"\",\"\",'800111a - Nota. Detalle de CxC.'!L224)","v":""},{"$f":"IF('800111a - Nota. Detalle de CxC.'!L225=\"\",\"\",'800111a - Nota. Detalle de CxC.'!L225)","v":""},{"$f":"IF('800111a - Nota. Detalle de CxC.'!L226=\"\",\"\",'800111a - Nota. Detalle de CxC.'!L226)","v":""},{"$f":"IF('800111a - Nota. Detalle de CxC.'!L227=\"\",\"\",'800111a - Nota. Detalle de CxC.'!L227)","v":""},{"$f":"IF('800111a - Nota. Detalle de CxC.'!L228=\"\",\"\",'800111a - Nota. Detalle de CxC.'!L228)","v":""},{"$f":"IF('800111a - Nota. Detalle de CxC.'!L229=\"\",\"\",'800111a - Nota. Detalle de CxC.'!L229)","v":""},{"$f":"IF('800111a - Nota. Detalle de CxC.'!L230=\"\",\"\",'800111a - Nota. Detalle de CxC.'!L230)","v":""},{"$f":"IF('800111a - Nota. Detalle de CxC.'!L231=\"\",\"\",'800111a - Nota. Detalle de CxC.'!L231)","v":""},{"$f":"IF('800111a - Nota. Detalle de CxC.'!L232=\"\",\"\",'800111a - Nota. Detalle de CxC.'!L232)","v":""},{"$f":"IF('800111a - Nota. Detalle de CxC.'!L233=\"\",\"\",'800111a - Nota. Detalle de CxC.'!L233)","v":""},{"$f":"IF('800111a - Nota. Detalle de CxC.'!L234=\"\",\"\",'800111a - Nota. Detalle de CxC.'!L234)","v":""},{"$f":"IF('800111a - Nota. Detalle de CxC.'!L235=\"\",\"\",'800111a - Nota. Detalle de CxC.'!L235)","v":""},{"$f":"IF('800111a - Nota. Detalle de CxC.'!L236=\"\",\"\",'800111a - Nota. Detalle de CxC.'!L236)","v":""},{"$f":"IF('800111a - Nota. Detalle de CxC.'!L237=\"\",\"\",'800111a - Nota. Detalle de CxC.'!L237)","v":""},null,null,null,{"$f":"IF('800111a - Nota. Detalle de CxC.'!L241=\"\",\"\",'800111a - Nota. Detalle de CxC.'!L241)","v":""},{"$f":"IF('800111a - Nota. Detalle de CxC.'!L242=\"\",\"\",'800111a - Nota. Detalle de CxC.'!L242)","v":""},{"$f":"IF('800111a - Nota. Detalle de CxC.'!L243=\"\",\"\",'800111a - Nota. Detalle de CxC.'!L243)","v":""},{"$f":"IF('800111a - Nota. Detalle de CxC.'!L244=\"\",\"\",'800111a - Nota. Detalle de CxC.'!L244)","v":""},{"$f":"IF('800111a - Nota. Detalle de CxC.'!L245=\"\",\"\",'800111a - Nota. Detalle de CxC.'!L245)","v":""},{"$f":"IF('800111a - Nota. Detalle de CxC.'!L246=\"\",\"\",'800111a - Nota. Detalle de CxC.'!L246)","v":""},{"$f":"IF('800111a - Nota. Detalle de CxC.'!L247=\"\",\"\",'800111a - Nota. Detalle de CxC.'!L247)","v":""},{"$f":"IF('800111a - Nota. Detalle de CxC.'!L248=\"\",\"\",'800111a - Nota. Detalle de CxC.'!L248)","v":""},{"$f":"IF('800111a - Nota. Detalle de CxC.'!L249=\"\",\"\",'800111a - Nota. Detalle de CxC.'!L249)","v":""},{"$f":"IF('800111a - Nota. Detalle de CxC.'!L250=\"\",\"\",'800111a - Nota. Detalle de CxC.'!L250)","v":""},{"$f":"IF('800111a - Nota. Detalle de CxC.'!L251=\"\",\"\",'800111a - Nota. Detalle de CxC.'!L251)","v":""},{"$f":"IF('800111a - Nota. Detalle de CxC.'!L252=\"\",\"\",'800111a - Nota. Detalle de CxC.'!L252)","v":""},{"$f":"IF('800111a - Nota. Detalle de CxC.'!L253=\"\",\"\",'800111a - Nota. Detalle de CxC.'!L253)","v":""},{"$f":"IF('800111a - Nota. Detalle de CxC.'!L254=\"\",\"\",'800111a - Nota. Detalle de CxC.'!L254)","v":""},{"$f":"IF('800111a - Nota. Detalle de CxC.'!L255=\"\",\"\",'800111a - Nota. Detalle de CxC.'!L255)","v":""},{"$f":"IF('800111a - Nota. Detalle de CxC.'!L256=\"\",\"\",'800111a - Nota. Detalle de CxC.'!L256)","v":""},{"$f":"IF('800111a - Nota. Detalle de CxC.'!L257=\"\",\"\",'800111a - Nota. Detalle de CxC.'!L257)","v":""},{"$f":"IF('800111a - Nota. Detalle de CxC.'!L258=\"\",\"\",'800111a - Nota. Detalle de CxC.'!L258)","v":""},{"$f":"IF('800111a - Nota. Detalle de CxC.'!L259=\"\",\"\",'800111a - Nota. Detalle de CxC.'!L259)","v":""},{"$f":"IF('800111a - Nota. Detalle de CxC.'!L260=\"\",\"\",'800111a - Nota. Detalle de CxC.'!L260)","v":""},{"$f":"IF('800111a - Nota. Detalle de CxC.'!L261=\"\",\"\",'800111a - Nota. Detalle de CxC.'!L261)","v":""},{"$f":"IF('800111a - Nota. Detalle de CxC.'!L262=\"\",\"\",'800111a - Nota. Detalle de CxC.'!L262)","v":""},{"$f":"IF('800111a - Nota. Detalle de CxC.'!L263=\"\",\"\",'800111a - Nota. Detalle de CxC.'!L263)","v":""},{"$f":"IF('800111a - Nota. Detalle de CxC.'!L264=\"\",\"\",'800111a - Nota. Detalle de CxC.'!L264)","v":""},{"$f":"IF('800111a - Nota. Detalle de CxC.'!L265=\"\",\"\",'800111a - Nota. Detalle de CxC.'!L265)","v":""},{"$f":"IF('800111a - Nota. Detalle de CxC.'!L266=\"\",\"\",'800111a - Nota. Detalle de CxC.'!L266)","v":""},{"$f":"IF('800111a - Nota. Detalle de CxC.'!L267=\"\",\"\",'800111a - Nota. Detalle de CxC.'!L267)","v":""},{"$f":"IF('800111a - Nota. Detalle de CxC.'!L268=\"\",\"\",'800111a - Nota. Detalle de CxC.'!L268)","v":""},{"$f":"IF('800111a - Nota. Detalle de CxC.'!L269=\"\",\"\",'800111a - Nota. Detalle de CxC.'!L269)","v":""},{"$f":"IF('800111a - Nota. Detalle de CxC.'!L270=\"\",\"\",'800111a - Nota. Detalle de CxC.'!L270)","v":""},{"$f":"IF('800111a - Nota. Detalle de CxC.'!L271=\"\",\"\",'800111a - Nota. Detalle de CxC.'!L271)","v":""},{"$f":"IF('800111a - Nota. Detalle de CxC.'!L272=\"\",\"\",'800111a - Nota. Detalle de CxC.'!L272)","v":""},{"$f":"IF('800111a - Nota. Detalle de CxC.'!L273=\"\",\"\",'800111a - Nota. Detalle de CxC.'!L273)","v":""},{"$f":"IF('800111a - Nota. Detalle de CxC.'!L274=\"\",\"\",'800111a - Nota. Detalle de CxC.'!L274)","v":""},{"$f":"IF('800111a - Nota. Detalle de CxC.'!L275=\"\",\"\",'800111a - Nota. Detalle de CxC.'!L275)","v":""},{"$f":"IF('800111a - Nota. Detalle de CxC.'!L276=\"\",\"\",'800111a - Nota. Detalle de CxC.'!L276)","v":""},{"$f":"IF('800111a - Nota. Detalle de CxC.'!L277=\"\",\"\",'800111a - Nota. Detalle de CxC.'!L277)","v":""},{"$f":"IF('800111a - Nota. Detalle de CxC.'!L278=\"\",\"\",'800111a - Nota. Detalle de CxC.'!L278)","v":""},{"$f":"IF('800111a - Nota. Detalle de CxC.'!L279=\"\",\"\",'800111a - Nota. Detalle de CxC.'!L279)","v":""},{"$f":"IF('800111a - Nota. Detalle de CxC.'!L280=\"\",\"\",'800111a - Nota. Detalle de CxC.'!L280)","v":""},{"$f":"IF('800111a - Nota. Detalle de CxC.'!L281=\"\",\"\",'800111a - Nota. Detalle de CxC.'!L281)","v":""},{"$f":"IF('800111a - Nota. Detalle de CxC.'!L282=\"\",\"\",'800111a - Nota. Detalle de CxC.'!L282)","v":""},{"$f":"IF('800111a - Nota. Detalle de CxC.'!L283=\"\",\"\",'800111a - Nota. Detalle de CxC.'!L283)","v":""},{"$f":"IF('800111a - Nota. Detalle de CxC.'!L284=\"\",\"\",'800111a - Nota. Detalle de CxC.'!L284)","v":""},{"$f":"IF('800111a - Nota. Detalle de CxC.'!L285=\"\",\"\",'800111a - Nota. Detalle de CxC.'!L285)","v":""},{"$f":"IF('800111a - Nota. Detalle de CxC.'!L286=\"\",\"\",'800111a - Nota. Detalle de CxC.'!L286)","v":""},{"$f":"IF('800111a - Nota. Detalle de CxC.'!L287=\"\",\"\",'800111a - Nota. Detalle de CxC.'!L287)","v":""},{"$f":"IF('800111a - Nota. Detalle de CxC.'!L288=\"\",\"\",'800111a - Nota. Detalle de CxC.'!L288)","v":""},{"$f":"IF('800111a - Nota. Detalle de CxC.'!L289=\"\",\"\",'800111a - Nota. Detalle de CxC.'!L289)","v":""},{"$f":"IF('800111a - Nota. Detalle de CxC.'!L290=\"\",\"\",'800111a - Nota. Detalle de CxC.'!L290)","v":""},null,null,null,{"$f":"IF('800111a - Nota. Detalle de CxC.'!L294=\"\",\"\",'800111a - Nota. Detalle de CxC.'!L294)","v":""},{"$f":"IF('800111a - Nota. Detalle de CxC.'!L295=\"\",\"\",'800111a - Nota. Detalle de CxC.'!L295)","v":""},{"$f":"IF('800111a - Nota. Detalle de CxC.'!L296=\"\",\"\",'800111a - Nota. Detalle de CxC.'!L296)","v":""},{"$f":"IF('800111a - Nota. Detalle de CxC.'!L297=\"\",\"\",'800111a - Nota. Detalle de CxC.'!L297)","v":""},{"$f":"IF('800111a - Nota. Detalle de CxC.'!L298=\"\",\"\",'800111a - Nota. Detalle de CxC.'!L298)","v":""},{"$f":"IF('800111a - Nota. Detalle de CxC.'!L299=\"\",\"\",'800111a - Nota. Detalle de CxC.'!L299)","v":""},{"$f":"IF('800111a - Nota. Detalle de CxC.'!L300=\"\",\"\",'800111a - Nota. Detalle de CxC.'!L300)","v":""},{"$f":"IF('800111a - Nota. Detalle de CxC.'!L301=\"\",\"\",'800111a - Nota. Detalle de CxC.'!L301)","v":""},{"$f":"IF('800111a - Nota. Detalle de CxC.'!L302=\"\",\"\",'800111a - Nota. Detalle de CxC.'!L302)","v":""},{"$f":"IF('800111a - Nota. Detalle de CxC.'!L303=\"\",\"\",'800111a - Nota. Detalle de CxC.'!L303)","v":""},{"$f":"IF('800111a - Nota. Detalle de CxC.'!L304=\"\",\"\",'800111a - Nota. Detalle de CxC.'!L304)","v":""},{"$f":"IF('800111a - Nota. Detalle de CxC.'!L305=\"\",\"\",'800111a - Nota. Detalle de CxC.'!L305)","v":""},{"$f":"IF('800111a - Nota. Detalle de CxC.'!L306=\"\",\"\",'800111a - Nota. Detalle de CxC.'!L306)","v":""},{"$f":"IF('800111a - Nota. Detalle de CxC.'!L307=\"\",\"\",'800111a - Nota. Detalle de CxC.'!L307)","v":""},{"$f":"IF('800111a - Nota. Detalle de CxC.'!L308=\"\",\"\",'800111a - Nota. Detalle de CxC.'!L308)","v":""},{"$f":"IF('800111a - Nota. Detalle de CxC.'!L309=\"\",\"\",'800111a - Nota. Detalle de CxC.'!L309)","v":""},{"$f":"IF('800111a - Nota. Detalle de CxC.'!L310=\"\",\"\",'800111a - Nota. Detalle de CxC.'!L310)","v":""},{"$f":"IF('800111a - Nota. Detalle de CxC.'!L311=\"\",\"\",'800111a - Nota. Detalle de CxC.'!L311)","v":""},{"$f":"IF('800111a - Nota. Detalle de CxC.'!L312=\"\",\"\",'800111a - Nota. Detalle de CxC.'!L312)","v":""},{"$f":"IF('800111a - Nota. Detalle de CxC.'!L313=\"\",\"\",'800111a - Nota. Detalle de CxC.'!L313)","v":""},{"$f":"IF('800111a - Nota. Detalle de CxC.'!L314=\"\",\"\",'800111a - Nota. Detalle de CxC.'!L314)","v":""},{"$f":"IF('800111a - Nota. Detalle de CxC.'!L315=\"\",\"\",'800111a - Nota. Detalle de CxC.'!L315)","v":""},{"$f":"IF('800111a - Nota. Detalle de CxC.'!L316=\"\",\"\",'800111a - Nota. Detalle de CxC.'!L316)","v":""},{"$f":"IF('800111a - Nota. Detalle de CxC.'!L317=\"\",\"\",'800111a - Nota. Detalle de CxC.'!L317)","v":""},{"$f":"IF('800111a - Nota. Detalle de CxC.'!L318=\"\",\"\",'800111a - Nota. Detalle de CxC.'!L318)","v":""},{"$f":"IF('800111a - Nota. Detalle de CxC.'!L319=\"\",\"\",'800111a - Nota. Detalle de CxC.'!L319)","v":""},{"$f":"IF('800111a - Nota. Detalle de CxC.'!L320=\"\",\"\",'800111a - Nota. Detalle de CxC.'!L320)","v":""},{"$f":"IF('800111a - Nota. Detalle de CxC.'!L321=\"\",\"\",'800111a - Nota. Detalle de CxC.'!L321)","v":""},{"$f":"IF('800111a - Nota. Detalle de CxC.'!L322=\"\",\"\",'800111a - Nota. Detalle de CxC.'!L322)","v":""},{"$f":"IF('800111a - Nota. Detalle de CxC.'!L323=\"\",\"\",'800111a - Nota. Detalle de CxC.'!L323)","v":""},{"$f":"IF('800111a - Nota. Detalle de CxC.'!L324=\"\",\"\",'800111a - Nota. Detalle de CxC.'!L324)","v":""},{"$f":"IF('800111a - Nota. Detalle de CxC.'!L325=\"\",\"\",'800111a - Nota. Detalle de CxC.'!L325)","v":""},{"$f":"IF('800111a - Nota. Detalle de CxC.'!L326=\"\",\"\",'800111a - Nota. Detalle de CxC.'!L326)","v":""},{"$f":"IF('800111a - Nota. Detalle de CxC.'!L327=\"\",\"\",'800111a - Nota. Detalle de CxC.'!L327)","v":""},{"$f":"IF('800111a - Nota. Detalle de CxC.'!L328=\"\",\"\",'800111a - Nota. Detalle de CxC.'!L328)","v":""},{"$f":"IF('800111a - Nota. Detalle de CxC.'!L329=\"\",\"\",'800111a - Nota. Detalle de CxC.'!L329)","v":""},{"$f":"IF('800111a - Nota. Detalle de CxC.'!L330=\"\",\"\",'800111a - Nota. Detalle de CxC.'!L330)","v":""},{"$f":"IF('800111a - Nota. Detalle de CxC.'!L331=\"\",\"\",'800111a - Nota. Detalle de CxC.'!L331)","v":""},{"$f":"IF('800111a - Nota. Detalle de CxC.'!L332=\"\",\"\",'800111a - Nota. Detalle de CxC.'!L332)","v":""},{"$f":"IF('800111a - Nota. Detalle de CxC.'!L333=\"\",\"\",'800111a - Nota. Detalle de CxC.'!L333)","v":""},{"$f":"IF('800111a - Nota. Detalle de CxC.'!L334=\"\",\"\",'800111a - Nota. Detalle de CxC.'!L334)","v":""},{"$f":"IF('800111a - Nota. Detalle de CxC.'!L335=\"\",\"\",'800111a - Nota. Detalle de CxC.'!L335)","v":""},{"$f":"IF('800111a - Nota. Detalle de CxC.'!L336=\"\",\"\",'800111a - Nota. Detalle de CxC.'!L336)","v":""},{"$f":"IF('800111a - Nota. Detalle de CxC.'!L337=\"\",\"\",'800111a - Nota. Detalle de CxC.'!L337)","v":""},{"$f":"IF('800111a - Nota. Detalle de CxC.'!L338=\"\",\"\",'800111a - Nota. Detalle de CxC.'!L338)","v":""},{"$f":"IF('800111a - Nota. Detalle de CxC.'!L339=\"\",\"\",'800111a - Nota. Detalle de CxC.'!L339)","v":""},{"$f":"IF('800111a - Nota. Detalle de CxC.'!L340=\"\",\"\",'800111a - Nota. Detalle de CxC.'!L340)","v":""},{"$f":"IF('800111a - Nota. Detalle de CxC.'!L341=\"\",\"\",'800111a - Nota. Detalle de CxC.'!L341)","v":""},{"$f":"IF('800111a - Nota. Detalle de CxC.'!L342=\"\",\"\",'800111a - Nota. Detalle de CxC.'!L342)","v":""},{"$f":"IF('800111a - Nota. Detalle de CxC.'!L343=\"\",\"\",'800111a - Nota. Detalle de CxC.'!L343)","v":""}]
[null,"1;2","co-svsp-core:DireccionDeudorCxC","Dirección deudor",null,null,{"$f":"IF('800111a - Nota. Detalle de CxC.'!M188=\"\",\"\",'800111a - Nota. Detalle de CxC.'!M188)","v":""},{"$f":"IF('800111a - Nota. Detalle de CxC.'!M189=\"\",\"\",'800111a - Nota. Detalle de CxC.'!M189)","v":""},{"$f":"IF('800111a - Nota. Detalle de CxC.'!M190=\"\",\"\",'800111a - Nota. Detalle de CxC.'!M190)","v":""},{"$f":"IF('800111a - Nota. Detalle de CxC.'!M191=\"\",\"\",'800111a - Nota. Detalle de CxC.'!M191)","v":""},{"$f":"IF('800111a - Nota. Detalle de CxC.'!M192=\"\",\"\",'800111a - Nota. Detalle de CxC.'!M192)","v":""},{"$f":"IF('800111a - Nota. Detalle de CxC.'!M193=\"\",\"\",'800111a - Nota. Detalle de CxC.'!M193)","v":""},{"$f":"IF('800111a - Nota. Detalle de CxC.'!M194=\"\",\"\",'800111a - Nota. Detalle de CxC.'!M194)","v":""},{"$f":"IF('800111a - Nota. Detalle de CxC.'!M195=\"\",\"\",'800111a - Nota. Detalle de CxC.'!M195)","v":""},{"$f":"IF('800111a - Nota. Detalle de CxC.'!M196=\"\",\"\",'800111a - Nota. Detalle de CxC.'!M196)","v":""},{"$f":"IF('800111a - Nota. Detalle de CxC.'!M197=\"\",\"\",'800111a - Nota. Detalle de CxC.'!M197)","v":""},{"$f":"IF('800111a - Nota. Detalle de CxC.'!M198=\"\",\"\",'800111a - Nota. Detalle de CxC.'!M198)","v":""},{"$f":"IF('800111a - Nota. Detalle de CxC.'!M199=\"\",\"\",'800111a - Nota. Detalle de CxC.'!M199)","v":""},{"$f":"IF('800111a - Nota. Detalle de CxC.'!M200=\"\",\"\",'800111a - Nota. Detalle de CxC.'!M200)","v":""},{"$f":"IF('800111a - Nota. Detalle de CxC.'!M201=\"\",\"\",'800111a - Nota. Detalle de CxC.'!M201)","v":""},{"$f":"IF('800111a - Nota. Detalle de CxC.'!M202=\"\",\"\",'800111a - Nota. Detalle de CxC.'!M202)","v":""},{"$f":"IF('800111a - Nota. Detalle de CxC.'!M203=\"\",\"\",'800111a - Nota. Detalle de CxC.'!M203)","v":""},{"$f":"IF('800111a - Nota. Detalle de CxC.'!M204=\"\",\"\",'800111a - Nota. Detalle de CxC.'!M204)","v":""},{"$f":"IF('800111a - Nota. Detalle de CxC.'!M205=\"\",\"\",'800111a - Nota. Detalle de CxC.'!M205)","v":""},{"$f":"IF('800111a - Nota. Detalle de CxC.'!M206=\"\",\"\",'800111a - Nota. Detalle de CxC.'!M206)","v":""},{"$f":"IF('800111a - Nota. Detalle de CxC.'!M207=\"\",\"\",'800111a - Nota. Detalle de CxC.'!M207)","v":""},{"$f":"IF('800111a - Nota. Detalle de CxC.'!M208=\"\",\"\",'800111a - Nota. Detalle de CxC.'!M208)","v":""},{"$f":"IF('800111a - Nota. Detalle de CxC.'!M209=\"\",\"\",'800111a - Nota. Detalle de CxC.'!M209)","v":""},{"$f":"IF('800111a - Nota. Detalle de CxC.'!M210=\"\",\"\",'800111a - Nota. Detalle de CxC.'!M210)","v":""},{"$f":"IF('800111a - Nota. Detalle de CxC.'!M211=\"\",\"\",'800111a - Nota. Detalle de CxC.'!M211)","v":""},{"$f":"IF('800111a - Nota. Detalle de CxC.'!M212=\"\",\"\",'800111a - Nota. Detalle de CxC.'!M212)","v":""},{"$f":"IF('800111a - Nota. Detalle de CxC.'!M213=\"\",\"\",'800111a - Nota. Detalle de CxC.'!M213)","v":""},{"$f":"IF('800111a - Nota. Detalle de CxC.'!M214=\"\",\"\",'800111a - Nota. Detalle de CxC.'!M214)","v":""},{"$f":"IF('800111a - Nota. Detalle de CxC.'!M215=\"\",\"\",'800111a - Nota. Detalle de CxC.'!M215)","v":""},{"$f":"IF('800111a - Nota. Detalle de CxC.'!M216=\"\",\"\",'800111a - Nota. Detalle de CxC.'!M216)","v":""},{"$f":"IF('800111a - Nota. Detalle de CxC.'!M217=\"\",\"\",'800111a - Nota. Detalle de CxC.'!M217)","v":""},{"$f":"IF('800111a - Nota. Detalle de CxC.'!M218=\"\",\"\",'800111a - Nota. Detalle de CxC.'!M218)","v":""},{"$f":"IF('800111a - Nota. Detalle de CxC.'!M219=\"\",\"\",'800111a - Nota. Detalle de CxC.'!M219)","v":""},{"$f":"IF('800111a - Nota. Detalle de CxC.'!M220=\"\",\"\",'800111a - Nota. Detalle de CxC.'!M220)","v":""},{"$f":"IF('800111a - Nota. Detalle de CxC.'!M221=\"\",\"\",'800111a - Nota. Detalle de CxC.'!M221)","v":""},{"$f":"IF('800111a - Nota. Detalle de CxC.'!M222=\"\",\"\",'800111a - Nota. Detalle de CxC.'!M222)","v":""},{"$f":"IF('800111a - Nota. Detalle de CxC.'!M223=\"\",\"\",'800111a - Nota. Detalle de CxC.'!M223)","v":""},{"$f":"IF('800111a - Nota. Detalle de CxC.'!M224=\"\",\"\",'800111a - Nota. Detalle de CxC.'!M224)","v":""},{"$f":"IF('800111a - Nota. Detalle de CxC.'!M225=\"\",\"\",'800111a - Nota. Detalle de CxC.'!M225)","v":""},{"$f":"IF('800111a - Nota. Detalle de CxC.'!M226=\"\",\"\",'800111a - Nota. Detalle de CxC.'!M226)","v":""},{"$f":"IF('800111a - Nota. Detalle de CxC.'!M227=\"\",\"\",'800111a - Nota. Detalle de CxC.'!M227)","v":""},{"$f":"IF('800111a - Nota. Detalle de CxC.'!M228=\"\",\"\",'800111a - Nota. Detalle de CxC.'!M228)","v":""},{"$f":"IF('800111a - Nota. Detalle de CxC.'!M229=\"\",\"\",'800111a - Nota. Detalle de CxC.'!M229)","v":""},{"$f":"IF('800111a - Nota. Detalle de CxC.'!M230=\"\",\"\",'800111a - Nota. Detalle de CxC.'!M230)","v":""},{"$f":"IF('800111a - Nota. Detalle de CxC.'!M231=\"\",\"\",'800111a - Nota. Detalle de CxC.'!M231)","v":""},{"$f":"IF('800111a - Nota. Detalle de CxC.'!M232=\"\",\"\",'800111a - Nota. Detalle de CxC.'!M232)","v":""},{"$f":"IF('800111a - Nota. Detalle de CxC.'!M233=\"\",\"\",'800111a - Nota. Detalle de CxC.'!M233)","v":""},{"$f":"IF('800111a - Nota. Detalle de CxC.'!M234=\"\",\"\",'800111a - Nota. Detalle de CxC.'!M234)","v":""},{"$f":"IF('800111a - Nota. Detalle de CxC.'!M235=\"\",\"\",'800111a - Nota. Detalle de CxC.'!M235)","v":""},{"$f":"IF('800111a - Nota. Detalle de CxC.'!M236=\"\",\"\",'800111a - Nota. Detalle de CxC.'!M236)","v":""},{"$f":"IF('800111a - Nota. Detalle de CxC.'!M237=\"\",\"\",'800111a - Nota. Detalle de CxC.'!M237)","v":""},null,null,null,{"$f":"IF('800111a - Nota. Detalle de CxC.'!M241=\"\",\"\",'800111a - Nota. Detalle de CxC.'!M241)","v":""},{"$f":"IF('800111a - Nota. Detalle de CxC.'!M242=\"\",\"\",'800111a - Nota. Detalle de CxC.'!M242)","v":""},{"$f":"IF('800111a - Nota. Detalle de CxC.'!M243=\"\",\"\",'800111a - Nota. Detalle de CxC.'!M243)","v":""},{"$f":"IF('800111a - Nota. Detalle de CxC.'!M244=\"\",\"\",'800111a - Nota. Detalle de CxC.'!M244)","v":""},{"$f":"IF('800111a - Nota. Detalle de CxC.'!M245=\"\",\"\",'800111a - Nota. Detalle de CxC.'!M245)","v":""},{"$f":"IF('800111a - Nota. Detalle de CxC.'!M246=\"\",\"\",'800111a - Nota. Detalle de CxC.'!M246)","v":""},{"$f":"IF('800111a - Nota. Detalle de CxC.'!M247=\"\",\"\",'800111a - Nota. Detalle de CxC.'!M247)","v":""},{"$f":"IF('800111a - Nota. Detalle de CxC.'!M248=\"\",\"\",'800111a - Nota. Detalle de CxC.'!M248)","v":""},{"$f":"IF('800111a - Nota. Detalle de CxC.'!M249=\"\",\"\",'800111a - Nota. Detalle de CxC.'!M249)","v":""},{"$f":"IF('800111a - Nota. Detalle de CxC.'!M250=\"\",\"\",'800111a - Nota. Detalle de CxC.'!M250)","v":""},{"$f":"IF('800111a - Nota. Detalle de CxC.'!M251=\"\",\"\",'800111a - Nota. Detalle de CxC.'!M251)","v":""},{"$f":"IF('800111a - Nota. Detalle de CxC.'!M252=\"\",\"\",'800111a - Nota. Detalle de CxC.'!M252)","v":""},{"$f":"IF('800111a - Nota. Detalle de CxC.'!M253=\"\",\"\",'800111a - Nota. Detalle de CxC.'!M253)","v":""},{"$f":"IF('800111a - Nota. Detalle de CxC.'!M254=\"\",\"\",'800111a - Nota. Detalle de CxC.'!M254)","v":""},{"$f":"IF('800111a - Nota. Detalle de CxC.'!M255=\"\",\"\",'800111a - Nota. Detalle de CxC.'!M255)","v":""},{"$f":"IF('800111a - Nota. Detalle de CxC.'!M256=\"\",\"\",'800111a - Nota. Detalle de CxC.'!M256)","v":""},{"$f":"IF('800111a - Nota. Detalle de CxC.'!M257=\"\",\"\",'800111a - Nota. Detalle de CxC.'!M257)","v":""},{"$f":"IF('800111a - Nota. Detalle de CxC.'!M258=\"\",\"\",'800111a - Nota. Detalle de CxC.'!M258)","v":""},{"$f":"IF('800111a - Nota. Detalle de CxC.'!M259=\"\",\"\",'800111a - Nota. Detalle de CxC.'!M259)","v":""},{"$f":"IF('800111a - Nota. Detalle de CxC.'!M260=\"\",\"\",'800111a - Nota. Detalle de CxC.'!M260)","v":""},{"$f":"IF('800111a - Nota. Detalle de CxC.'!M261=\"\",\"\",'800111a - Nota. Detalle de CxC.'!M261)","v":""},{"$f":"IF('800111a - Nota. Detalle de CxC.'!M262=\"\",\"\",'800111a - Nota. Detalle de CxC.'!M262)","v":""},{"$f":"IF('800111a - Nota. Detalle de CxC.'!M263=\"\",\"\",'800111a - Nota. Detalle de CxC.'!M263)","v":""},{"$f":"IF('800111a - Nota. Detalle de CxC.'!M264=\"\",\"\",'800111a - Nota. Detalle de CxC.'!M264)","v":""},{"$f":"IF('800111a - Nota. Detalle de CxC.'!M265=\"\",\"\",'800111a - Nota. Detalle de CxC.'!M265)","v":""},{"$f":"IF('800111a - Nota. Detalle de CxC.'!M266=\"\",\"\",'800111a - Nota. Detalle de CxC.'!M266)","v":""},{"$f":"IF('800111a - Nota. Detalle de CxC.'!M267=\"\",\"\",'800111a - Nota. Detalle de CxC.'!M267)","v":""},{"$f":"IF('800111a - Nota. Detalle de CxC.'!M268=\"\",\"\",'800111a - Nota. Detalle de CxC.'!M268)","v":""},{"$f":"IF('800111a - Nota. Detalle de CxC.'!M269=\"\",\"\",'800111a - Nota. Detalle de CxC.'!M269)","v":""},{"$f":"IF('800111a - Nota. Detalle de CxC.'!M270=\"\",\"\",'800111a - Nota. Detalle de CxC.'!M270)","v":""},{"$f":"IF('800111a - Nota. Detalle de CxC.'!M271=\"\",\"\",'800111a - Nota. Detalle de CxC.'!M271)","v":""},{"$f":"IF('800111a - Nota. Detalle de CxC.'!M272=\"\",\"\",'800111a - Nota. Detalle de CxC.'!M272)","v":""},{"$f":"IF('800111a - Nota. Detalle de CxC.'!M273=\"\",\"\",'800111a - Nota. Detalle de CxC.'!M273)","v":""},{"$f":"IF('800111a - Nota. Detalle de CxC.'!M274=\"\",\"\",'800111a - Nota. Detalle de CxC.'!M274)","v":""},{"$f":"IF('800111a - Nota. Detalle de CxC.'!M275=\"\",\"\",'800111a - Nota. Detalle de CxC.'!M275)","v":""},{"$f":"IF('800111a - Nota. Detalle de CxC.'!M276=\"\",\"\",'800111a - Nota. Detalle de CxC.'!M276)","v":""},{"$f":"IF('800111a - Nota. Detalle de CxC.'!M277=\"\",\"\",'800111a - Nota. Detalle de CxC.'!M277)","v":""},{"$f":"IF('800111a - Nota. Detalle de CxC.'!M278=\"\",\"\",'800111a - Nota. Detalle de CxC.'!M278)","v":""},{"$f":"IF('800111a - Nota. Detalle de CxC.'!M279=\"\",\"\",'800111a - Nota. Detalle de CxC.'!M279)","v":""},{"$f":"IF('800111a - Nota. Detalle de CxC.'!M280=\"\",\"\",'800111a - Nota. Detalle de CxC.'!M280)","v":""},{"$f":"IF('800111a - Nota. Detalle de CxC.'!M281=\"\",\"\",'800111a - Nota. Detalle de CxC.'!M281)","v":""},{"$f":"IF('800111a - Nota. Detalle de CxC.'!M282=\"\",\"\",'800111a - Nota. Detalle de CxC.'!M282)","v":""},{"$f":"IF('800111a - Nota. Detalle de CxC.'!M283=\"\",\"\",'800111a - Nota. Detalle de CxC.'!M283)","v":""},{"$f":"IF('800111a - Nota. Detalle de CxC.'!M284=\"\",\"\",'800111a - Nota. Detalle de CxC.'!M284)","v":""},{"$f":"IF('800111a - Nota. Detalle de CxC.'!M285=\"\",\"\",'800111a - Nota. Detalle de CxC.'!M285)","v":""},{"$f":"IF('800111a - Nota. Detalle de CxC.'!M286=\"\",\"\",'800111a - Nota. Detalle de CxC.'!M286)","v":""},{"$f":"IF('800111a - Nota. Detalle de CxC.'!M287=\"\",\"\",'800111a - Nota. Detalle de CxC.'!M287)","v":""},{"$f":"IF('800111a - Nota. Detalle de CxC.'!M288=\"\",\"\",'800111a - Nota. Detalle de CxC.'!M288)","v":""},{"$f":"IF('800111a - Nota. Detalle de CxC.'!M289=\"\",\"\",'800111a - Nota. Detalle de CxC.'!M289)","v":""},{"$f":"IF('800111a - Nota. Detalle de CxC.'!M290=\"\",\"\",'800111a - Nota. Detalle de CxC.'!M290)","v":""},null,null,null,{"$f":"IF('800111a - Nota. Detalle de CxC.'!M294=\"\",\"\",'800111a - Nota. Detalle de CxC.'!M294)","v":""},{"$f":"IF('800111a - Nota. Detalle de CxC.'!M295=\"\",\"\",'800111a - Nota. Detalle de CxC.'!M295)","v":""},{"$f":"IF('800111a - Nota. Detalle de CxC.'!M296=\"\",\"\",'800111a - Nota. Detalle de CxC.'!M296)","v":""},{"$f":"IF('800111a - Nota. Detalle de CxC.'!M297=\"\",\"\",'800111a - Nota. Detalle de CxC.'!M297)","v":""},{"$f":"IF('800111a - Nota. Detalle de CxC.'!M298=\"\",\"\",'800111a - Nota. Detalle de CxC.'!M298)","v":""},{"$f":"IF('800111a - Nota. Detalle de CxC.'!M299=\"\",\"\",'800111a - Nota. Detalle de CxC.'!M299)","v":""},{"$f":"IF('800111a - Nota. Detalle de CxC.'!M300=\"\",\"\",'800111a - Nota. Detalle de CxC.'!M300)","v":""},{"$f":"IF('800111a - Nota. Detalle de CxC.'!M301=\"\",\"\",'800111a - Nota. Detalle de CxC.'!M301)","v":""},{"$f":"IF('800111a - Nota. Detalle de CxC.'!M302=\"\",\"\",'800111a - Nota. Detalle de CxC.'!M302)","v":""},{"$f":"IF('800111a - Nota. Detalle de CxC.'!M303=\"\",\"\",'800111a - Nota. Detalle de CxC.'!M303)","v":""},{"$f":"IF('800111a - Nota. Detalle de CxC.'!M304=\"\",\"\",'800111a - Nota. Detalle de CxC.'!M304)","v":""},{"$f":"IF('800111a - Nota. Detalle de CxC.'!M305=\"\",\"\",'800111a - Nota. Detalle de CxC.'!M305)","v":""},{"$f":"IF('800111a - Nota. Detalle de CxC.'!M306=\"\",\"\",'800111a - Nota. Detalle de CxC.'!M306)","v":""},{"$f":"IF('800111a - Nota. Detalle de CxC.'!M307=\"\",\"\",'800111a - Nota. Detalle de CxC.'!M307)","v":""},{"$f":"IF('800111a - Nota. Detalle de CxC.'!M308=\"\",\"\",'800111a - Nota. Detalle de CxC.'!M308)","v":""},{"$f":"IF('800111a - Nota. Detalle de CxC.'!M309=\"\",\"\",'800111a - Nota. Detalle de CxC.'!M309)","v":""},{"$f":"IF('800111a - Nota. Detalle de CxC.'!M310=\"\",\"\",'800111a - Nota. Detalle de CxC.'!M310)","v":""},{"$f":"IF('800111a - Nota. Detalle de CxC.'!M311=\"\",\"\",'800111a - Nota. Detalle de CxC.'!M311)","v":""},{"$f":"IF('800111a - Nota. Detalle de CxC.'!M312=\"\",\"\",'800111a - Nota. Detalle de CxC.'!M312)","v":""},{"$f":"IF('800111a - Nota. Detalle de CxC.'!M313=\"\",\"\",'800111a - Nota. Detalle de CxC.'!M313)","v":""},{"$f":"IF('800111a - Nota. Detalle de CxC.'!M314=\"\",\"\",'800111a - Nota. Detalle de CxC.'!M314)","v":""},{"$f":"IF('800111a - Nota. Detalle de CxC.'!M315=\"\",\"\",'800111a - Nota. Detalle de CxC.'!M315)","v":""},{"$f":"IF('800111a - Nota. Detalle de CxC.'!M316=\"\",\"\",'800111a - Nota. Detalle de CxC.'!M316)","v":""},{"$f":"IF('800111a - Nota. Detalle de CxC.'!M317=\"\",\"\",'800111a - Nota. Detalle de CxC.'!M317)","v":""},{"$f":"IF('800111a - Nota. Detalle de CxC.'!M318=\"\",\"\",'800111a - Nota. Detalle de CxC.'!M318)","v":""},{"$f":"IF('800111a - Nota. Detalle de CxC.'!M319=\"\",\"\",'800111a - Nota. Detalle de CxC.'!M319)","v":""},{"$f":"IF('800111a - Nota. Detalle de CxC.'!M320=\"\",\"\",'800111a - Nota. Detalle de CxC.'!M320)","v":""},{"$f":"IF('800111a - Nota. Detalle de CxC.'!M321=\"\",\"\",'800111a - Nota. Detalle de CxC.'!M321)","v":""},{"$f":"IF('800111a - Nota. Detalle de CxC.'!M322=\"\",\"\",'800111a - Nota. Detalle de CxC.'!M322)","v":""},{"$f":"IF('800111a - Nota. Detalle de CxC.'!M323=\"\",\"\",'800111a - Nota. Detalle de CxC.'!M323)","v":""},{"$f":"IF('800111a - Nota. Detalle de CxC.'!M324=\"\",\"\",'800111a - Nota. Detalle de CxC.'!M324)","v":""},{"$f":"IF('800111a - Nota. Detalle de CxC.'!M325=\"\",\"\",'800111a - Nota. Detalle de CxC.'!M325)","v":""},{"$f":"IF('800111a - Nota. Detalle de CxC.'!M326=\"\",\"\",'800111a - Nota. Detalle de CxC.'!M326)","v":""},{"$f":"IF('800111a - Nota. Detalle de CxC.'!M327=\"\",\"\",'800111a - Nota. Detalle de CxC.'!M327)","v":""},{"$f":"IF('800111a - Nota. Detalle de CxC.'!M328=\"\",\"\",'800111a - Nota. Detalle de CxC.'!M328)","v":""},{"$f":"IF('800111a - Nota. Detalle de CxC.'!M329=\"\",\"\",'800111a - Nota. Detalle de CxC.'!M329)","v":""},{"$f":"IF('800111a - Nota. Detalle de CxC.'!M330=\"\",\"\",'800111a - Nota. Detalle de CxC.'!M330)","v":""},{"$f":"IF('800111a - Nota. Detalle de CxC.'!M331=\"\",\"\",'800111a - Nota. Detalle de CxC.'!M331)","v":""},{"$f":"IF('800111a - Nota. Detalle de CxC.'!M332=\"\",\"\",'800111a - Nota. Detalle de CxC.'!M332)","v":""},{"$f":"IF('800111a - Nota. Detalle de CxC.'!M333=\"\",\"\",'800111a - Nota. Detalle de CxC.'!M333)","v":""},{"$f":"IF('800111a - Nota. Detalle de CxC.'!M334=\"\",\"\",'800111a - Nota. Detalle de CxC.'!M334)","v":""},{"$f":"IF('800111a - Nota. Detalle de CxC.'!M335=\"\",\"\",'800111a - Nota. Detalle de CxC.'!M335)","v":""},{"$f":"IF('800111a - Nota. Detalle de CxC.'!M336=\"\",\"\",'800111a - Nota. Detalle de CxC.'!M336)","v":""},{"$f":"IF('800111a - Nota. Detalle de CxC.'!M337=\"\",\"\",'800111a - Nota. Detalle de CxC.'!M337)","v":""},{"$f":"IF('800111a - Nota. Detalle de CxC.'!M338=\"\",\"\",'800111a - Nota. Detalle de CxC.'!M338)","v":""},{"$f":"IF('800111a - Nota. Detalle de CxC.'!M339=\"\",\"\",'800111a - Nota. Detalle de CxC.'!M339)","v":""},{"$f":"IF('800111a - Nota. Detalle de CxC.'!M340=\"\",\"\",'800111a - Nota. Detalle de CxC.'!M340)","v":""},{"$f":"IF('800111a - Nota. Detalle de CxC.'!M341=\"\",\"\",'800111a - Nota. Detalle de CxC.'!M341)","v":""},{"$f":"IF('800111a - Nota. Detalle de CxC.'!M342=\"\",\"\",'800111a - Nota. Detalle de CxC.'!M342)","v":""},{"$f":"IF('800111a - Nota. Detalle de CxC.'!M343=\"\",\"\",'800111a - Nota. Detalle de CxC.'!M343)","v":""}]
[null,"1;2","co-svsp-core:DepartamentoDeudorCxC","Departamento deudor",null,null,{"$f":"IF('800111a - Nota. Detalle de CxC.'!N188=\"\",\"\",'800111a - Nota. Detalle de CxC.'!N188)","v":""},{"$f":"IF('800111a - Nota. Detalle de CxC.'!N189=\"\",\"\",'800111a - Nota. Detalle de CxC.'!N189)","v":""},{"$f":"IF('800111a - Nota. Detalle de CxC.'!N190=\"\",\"\",'800111a - Nota. Detalle de CxC.'!N190)","v":""},{"$f":"IF('800111a - Nota. Detalle de CxC.'!N191=\"\",\"\",'800111a - Nota. Detalle de CxC.'!N191)","v":""},{"$f":"IF('800111a - Nota. Detalle de CxC.'!N192=\"\",\"\",'800111a - Nota. Detalle de CxC.'!N192)","v":""},{"$f":"IF('800111a - Nota. Detalle de CxC.'!N193=\"\",\"\",'800111a - Nota. Detalle de CxC.'!N193)","v":""},{"$f":"IF('800111a - Nota. Detalle de CxC.'!N194=\"\",\"\",'800111a - Nota. Detalle de CxC.'!N194)","v":""},{"$f":"IF('800111a - Nota. Detalle de CxC.'!N195=\"\",\"\",'800111a - Nota. Detalle de CxC.'!N195)","v":""},{"$f":"IF('800111a - Nota. Detalle de CxC.'!N196=\"\",\"\",'800111a - Nota. Detalle de CxC.'!N196)","v":""},{"$f":"IF('800111a - Nota. Detalle de CxC.'!N197=\"\",\"\",'800111a - Nota. Detalle de CxC.'!N197)","v":""},{"$f":"IF('800111a - Nota. Detalle de CxC.'!N198=\"\",\"\",'800111a - Nota. Detalle de CxC.'!N198)","v":""},{"$f":"IF('800111a - Nota. Detalle de CxC.'!N199=\"\",\"\",'800111a - Nota. Detalle de CxC.'!N199)","v":""},{"$f":"IF('800111a - Nota. Detalle de CxC.'!N200=\"\",\"\",'800111a - Nota. Detalle de CxC.'!N200)","v":""},{"$f":"IF('800111a - Nota. Detalle de CxC.'!N201=\"\",\"\",'800111a - Nota. Detalle de CxC.'!N201)","v":""},{"$f":"IF('800111a - Nota. Detalle de CxC.'!N202=\"\",\"\",'800111a - Nota. Detalle de CxC.'!N202)","v":""},{"$f":"IF('800111a - Nota. Detalle de CxC.'!N203=\"\",\"\",'800111a - Nota. Detalle de CxC.'!N203)","v":""},{"$f":"IF('800111a - Nota. Detalle de CxC.'!N204=\"\",\"\",'800111a - Nota. Detalle de CxC.'!N204)","v":""},{"$f":"IF('800111a - Nota. Detalle de CxC.'!N205=\"\",\"\",'800111a - Nota. Detalle de CxC.'!N205)","v":""},{"$f":"IF('800111a - Nota. Detalle de CxC.'!N206=\"\",\"\",'800111a - Nota. Detalle de CxC.'!N206)","v":""},{"$f":"IF('800111a - Nota. Detalle de CxC.'!N207=\"\",\"\",'800111a - Nota. Detalle de CxC.'!N207)","v":""},{"$f":"IF('800111a - Nota. Detalle de CxC.'!N208=\"\",\"\",'800111a - Nota. Detalle de CxC.'!N208)","v":""},{"$f":"IF('800111a - Nota. Detalle de CxC.'!N209=\"\",\"\",'800111a - Nota. Detalle de CxC.'!N209)","v":""},{"$f":"IF('800111a - Nota. Detalle de CxC.'!N210=\"\",\"\",'800111a - Nota. Detalle de CxC.'!N210)","v":""},{"$f":"IF('800111a - Nota. Detalle de CxC.'!N211=\"\",\"\",'800111a - Nota. Detalle de CxC.'!N211)","v":""},{"$f":"IF('800111a - Nota. Detalle de CxC.'!N212=\"\",\"\",'800111a - Nota. Detalle de CxC.'!N212)","v":""},{"$f":"IF('800111a - Nota. Detalle de CxC.'!N213=\"\",\"\",'800111a - Nota. Detalle de CxC.'!N213)","v":""},{"$f":"IF('800111a - Nota. Detalle de CxC.'!N214=\"\",\"\",'800111a - Nota. Detalle de CxC.'!N214)","v":""},{"$f":"IF('800111a - Nota. Detalle de CxC.'!N215=\"\",\"\",'800111a - Nota. Detalle de CxC.'!N215)","v":""},{"$f":"IF('800111a - Nota. Detalle de CxC.'!N216=\"\",\"\",'800111a - Nota. Detalle de CxC.'!N216)","v":""},{"$f":"IF('800111a - Nota. Detalle de CxC.'!N217=\"\",\"\",'800111a - Nota. Detalle de CxC.'!N217)","v":""},{"$f":"IF('800111a - Nota. Detalle de CxC.'!N218=\"\",\"\",'800111a - Nota. Detalle de CxC.'!N218)","v":""},{"$f":"IF('800111a - Nota. Detalle de CxC.'!N219=\"\",\"\",'800111a - Nota. Detalle de CxC.'!N219)","v":""},{"$f":"IF('800111a - Nota. Detalle de CxC.'!N220=\"\",\"\",'800111a - Nota. Detalle de CxC.'!N220)","v":""},{"$f":"IF('800111a - Nota. Detalle de CxC.'!N221=\"\",\"\",'800111a - Nota. Detalle de CxC.'!N221)","v":""},{"$f":"IF('800111a - Nota. Detalle de CxC.'!N222=\"\",\"\",'800111a - Nota. Detalle de CxC.'!N222)","v":""},{"$f":"IF('800111a - Nota. Detalle de CxC.'!N223=\"\",\"\",'800111a - Nota. Detalle de CxC.'!N223)","v":""},{"$f":"IF('800111a - Nota. Detalle de CxC.'!N224=\"\",\"\",'800111a - Nota. Detalle de CxC.'!N224)","v":""},{"$f":"IF('800111a - Nota. Detalle de CxC.'!N225=\"\",\"\",'800111a - Nota. Detalle de CxC.'!N225)","v":""},{"$f":"IF('800111a - Nota. Detalle de CxC.'!N226=\"\",\"\",'800111a - Nota. Detalle de CxC.'!N226)","v":""},{"$f":"IF('800111a - Nota. Detalle de CxC.'!N227=\"\",\"\",'800111a - Nota. Detalle de CxC.'!N227)","v":""},{"$f":"IF('800111a - Nota. Detalle de CxC.'!N228=\"\",\"\",'800111a - Nota. Detalle de CxC.'!N228)","v":""},{"$f":"IF('800111a - Nota. Detalle de CxC.'!N229=\"\",\"\",'800111a - Nota. Detalle de CxC.'!N229)","v":""},{"$f":"IF('800111a - Nota. Detalle de CxC.'!N230=\"\",\"\",'800111a - Nota. Detalle de CxC.'!N230)","v":""},{"$f":"IF('800111a - Nota. Detalle de CxC.'!N231=\"\",\"\",'800111a - Nota. Detalle de CxC.'!N231)","v":""},{"$f":"IF('800111a - Nota. Detalle de CxC.'!N232=\"\",\"\",'800111a - Nota. Detalle de CxC.'!N232)","v":""},{"$f":"IF('800111a - Nota. Detalle de CxC.'!N233=\"\",\"\",'800111a - Nota. Detalle de CxC.'!N233)","v":""},{"$f":"IF('800111a - Nota. Detalle de CxC.'!N234=\"\",\"\",'800111a - Nota. Detalle de CxC.'!N234)","v":""},{"$f":"IF('800111a - Nota. Detalle de CxC.'!N235=\"\",\"\",'800111a - Nota. Detalle de CxC.'!N235)","v":""},{"$f":"IF('800111a - Nota. Detalle de CxC.'!N236=\"\",\"\",'800111a - Nota. Detalle de CxC.'!N236)","v":""},{"$f":"IF('800111a - Nota. Detalle de CxC.'!N237=\"\",\"\",'800111a - Nota. Detalle de CxC.'!N237)","v":""},null,null,null,{"$f":"IF('800111a - Nota. Detalle de CxC.'!N241=\"\",\"\",'800111a - Nota. Detalle de CxC.'!N241)","v":""},{"$f":"IF('800111a - Nota. Detalle de CxC.'!N242=\"\",\"\",'800111a - Nota. Detalle de CxC.'!N242)","v":""},{"$f":"IF('800111a - Nota. Detalle de CxC.'!N243=\"\",\"\",'800111a - Nota. Detalle de CxC.'!N243)","v":""},{"$f":"IF('800111a - Nota. Detalle de CxC.'!N244=\"\",\"\",'800111a - Nota. Detalle de CxC.'!N244)","v":""},{"$f":"IF('800111a - Nota. Detalle de CxC.'!N245=\"\",\"\",'800111a - Nota. Detalle de CxC.'!N245)","v":""},{"$f":"IF('800111a - Nota. Detalle de CxC.'!N246=\"\",\"\",'800111a - Nota. Detalle de CxC.'!N246)","v":""},{"$f":"IF('800111a - Nota. Detalle de CxC.'!N247=\"\",\"\",'800111a - Nota. Detalle de CxC.'!N247)","v":""},{"$f":"IF('800111a - Nota. Detalle de CxC.'!N248=\"\",\"\",'800111a - Nota. Detalle de CxC.'!N248)","v":""},{"$f":"IF('800111a - Nota. Detalle de CxC.'!N249=\"\",\"\",'800111a - Nota. Detalle de CxC.'!N249)","v":""},{"$f":"IF('800111a - Nota. Detalle de CxC.'!N250=\"\",\"\",'800111a - Nota. Detalle de CxC.'!N250)","v":""},{"$f":"IF('800111a - Nota. Detalle de CxC.'!N251=\"\",\"\",'800111a - Nota. Detalle de CxC.'!N251)","v":""},{"$f":"IF('800111a - Nota. Detalle de CxC.'!N252=\"\",\"\",'800111a - Nota. Detalle de CxC.'!N252)","v":""},{"$f":"IF('800111a - Nota. Detalle de CxC.'!N253=\"\",\"\",'800111a - Nota. Detalle de CxC.'!N253)","v":""},{"$f":"IF('800111a - Nota. Detalle de CxC.'!N254=\"\",\"\",'800111a - Nota. Detalle de CxC.'!N254)","v":""},{"$f":"IF('800111a - Nota. Detalle de CxC.'!N255=\"\",\"\",'800111a - Nota. Detalle de CxC.'!N255)","v":""},{"$f":"IF('800111a - Nota. Detalle de CxC.'!N256=\"\",\"\",'800111a - Nota. Detalle de CxC.'!N256)","v":""},{"$f":"IF('800111a - Nota. Detalle de CxC.'!N257=\"\",\"\",'800111a - Nota. Detalle de CxC.'!N257)","v":""},{"$f":"IF('800111a - Nota. Detalle de CxC.'!N258=\"\",\"\",'800111a - Nota. Detalle de CxC.'!N258)","v":""},{"$f":"IF('800111a - Nota. Detalle de CxC.'!N259=\"\",\"\",'800111a - Nota. Detalle de CxC.'!N259)","v":""},{"$f":"IF('800111a - Nota. Detalle de CxC.'!N260=\"\",\"\",'800111a - Nota. Detalle de CxC.'!N260)","v":""},{"$f":"IF('800111a - Nota. Detalle de CxC.'!N261=\"\",\"\",'800111a - Nota. Detalle de CxC.'!N261)","v":""},{"$f":"IF('800111a - Nota. Detalle de CxC.'!N262=\"\",\"\",'800111a - Nota. Detalle de CxC.'!N262)","v":""},{"$f":"IF('800111a - Nota. Detalle de CxC.'!N263=\"\",\"\",'800111a - Nota. Detalle de CxC.'!N263)","v":""},{"$f":"IF('800111a - Nota. Detalle de CxC.'!N264=\"\",\"\",'800111a - Nota. Detalle de CxC.'!N264)","v":""},{"$f":"IF('800111a - Nota. Detalle de CxC.'!N265=\"\",\"\",'800111a - Nota. Detalle de CxC.'!N265)","v":""},{"$f":"IF('800111a - Nota. Detalle de CxC.'!N266=\"\",\"\",'800111a - Nota. Detalle de CxC.'!N266)","v":""},{"$f":"IF('800111a - Nota. Detalle de CxC.'!N267=\"\",\"\",'800111a - Nota. Detalle de CxC.'!N267)","v":""},{"$f":"IF('800111a - Nota. Detalle de CxC.'!N268=\"\",\"\",'800111a - Nota. Detalle de CxC.'!N268)","v":""},{"$f":"IF('800111a - Nota. Detalle de CxC.'!N269=\"\",\"\",'800111a - Nota. Detalle de CxC.'!N269)","v":""},{"$f":"IF('800111a - Nota. Detalle de CxC.'!N270=\"\",\"\",'800111a - Nota. Detalle de CxC.'!N270)","v":""},{"$f":"IF('800111a - Nota. Detalle de CxC.'!N271=\"\",\"\",'800111a - Nota. Detalle de CxC.'!N271)","v":""},{"$f":"IF('800111a - Nota. Detalle de CxC.'!N272=\"\",\"\",'800111a - Nota. Detalle de CxC.'!N272)","v":""},{"$f":"IF('800111a - Nota. Detalle de CxC.'!N273=\"\",\"\",'800111a - Nota. Detalle de CxC.'!N273)","v":""},{"$f":"IF('800111a - Nota. Detalle de CxC.'!N274=\"\",\"\",'800111a - Nota. Detalle de CxC.'!N274)","v":""},{"$f":"IF('800111a - Nota. Detalle de CxC.'!N275=\"\",\"\",'800111a - Nota. Detalle de CxC.'!N275)","v":""},{"$f":"IF('800111a - Nota. Detalle de CxC.'!N276=\"\",\"\",'800111a - Nota. Detalle de CxC.'!N276)","v":""},{"$f":"IF('800111a - Nota. Detalle de CxC.'!N277=\"\",\"\",'800111a - Nota. Detalle de CxC.'!N277)","v":""},{"$f":"IF('800111a - Nota. Detalle de CxC.'!N278=\"\",\"\",'800111a - Nota. Detalle de CxC.'!N278)","v":""},{"$f":"IF('800111a - Nota. Detalle de CxC.'!N279=\"\",\"\",'800111a - Nota. Detalle de CxC.'!N279)","v":""},{"$f":"IF('800111a - Nota. Detalle de CxC.'!N280=\"\",\"\",'800111a - Nota. Detalle de CxC.'!N280)","v":""},{"$f":"IF('800111a - Nota. Detalle de CxC.'!N281=\"\",\"\",'800111a - Nota. Detalle de CxC.'!N281)","v":""},{"$f":"IF('800111a - Nota. Detalle de CxC.'!N282=\"\",\"\",'800111a - Nota. Detalle de CxC.'!N282)","v":""},{"$f":"IF('800111a - Nota. Detalle de CxC.'!N283=\"\",\"\",'800111a - Nota. Detalle de CxC.'!N283)","v":""},{"$f":"IF('800111a - Nota. Detalle de CxC.'!N284=\"\",\"\",'800111a - Nota. Detalle de CxC.'!N284)","v":""},{"$f":"IF('800111a - Nota. Detalle de CxC.'!N285=\"\",\"\",'800111a - Nota. Detalle de CxC.'!N285)","v":""},{"$f":"IF('800111a - Nota. Detalle de CxC.'!N286=\"\",\"\",'800111a - Nota. Detalle de CxC.'!N286)","v":""},{"$f":"IF('800111a - Nota. Detalle de CxC.'!N287=\"\",\"\",'800111a - Nota. Detalle de CxC.'!N287)","v":""},{"$f":"IF('800111a - Nota. Detalle de CxC.'!N288=\"\",\"\",'800111a - Nota. Detalle de CxC.'!N288)","v":""},{"$f":"IF('800111a - Nota. Detalle de CxC.'!N289=\"\",\"\",'800111a - Nota. Detalle de CxC.'!N289)","v":""},{"$f":"IF('800111a - Nota. Detalle de CxC.'!N290=\"\",\"\",'800111a - Nota. Detalle de CxC.'!N290)","v":""},null,null,null,{"$f":"IF('800111a - Nota. Detalle de CxC.'!N294=\"\",\"\",'800111a - Nota. Detalle de CxC.'!N294)","v":""},{"$f":"IF('800111a - Nota. Detalle de CxC.'!N295=\"\",\"\",'800111a - Nota. Detalle de CxC.'!N295)","v":""},{"$f":"IF('800111a - Nota. Detalle de CxC.'!N296=\"\",\"\",'800111a - Nota. Detalle de CxC.'!N296)","v":""},{"$f":"IF('800111a - Nota. Detalle de CxC.'!N297=\"\",\"\",'800111a - Nota. Detalle de CxC.'!N297)","v":""},{"$f":"IF('800111a - Nota. Detalle de CxC.'!N298=\"\",\"\",'800111a - Nota. Detalle de CxC.'!N298)","v":""},{"$f":"IF('800111a - Nota. Detalle de CxC.'!N299=\"\",\"\",'800111a - Nota. Detalle de CxC.'!N299)","v":""},{"$f":"IF('800111a - Nota. Detalle de CxC.'!N300=\"\",\"\",'800111a - Nota. Detalle de CxC.'!N300)","v":""},{"$f":"IF('800111a - Nota. Detalle de CxC.'!N301=\"\",\"\",'800111a - Nota. Detalle de CxC.'!N301)","v":""},{"$f":"IF('800111a - Nota. Detalle de CxC.'!N302=\"\",\"\",'800111a - Nota. Detalle de CxC.'!N302)","v":""},{"$f":"IF('800111a - Nota. Detalle de CxC.'!N303=\"\",\"\",'800111a - Nota. Detalle de CxC.'!N303)","v":""},{"$f":"IF('800111a - Nota. Detalle de CxC.'!N304=\"\",\"\",'800111a - Nota. Detalle de CxC.'!N304)","v":""},{"$f":"IF('800111a - Nota. Detalle de CxC.'!N305=\"\",\"\",'800111a - Nota. Detalle de CxC.'!N305)","v":""},{"$f":"IF('800111a - Nota. Detalle de CxC.'!N306=\"\",\"\",'800111a - Nota. Detalle de CxC.'!N306)","v":""},{"$f":"IF('800111a - Nota. Detalle de CxC.'!N307=\"\",\"\",'800111a - Nota. Detalle de CxC.'!N307)","v":""},{"$f":"IF('800111a - Nota. Detalle de CxC.'!N308=\"\",\"\",'800111a - Nota. Detalle de CxC.'!N308)","v":""},{"$f":"IF('800111a - Nota. Detalle de CxC.'!N309=\"\",\"\",'800111a - Nota. Detalle de CxC.'!N309)","v":""},{"$f":"IF('800111a - Nota. Detalle de CxC.'!N310=\"\",\"\",'800111a - Nota. Detalle de CxC.'!N310)","v":""},{"$f":"IF('800111a - Nota. Detalle de CxC.'!N311=\"\",\"\",'800111a - Nota. Detalle de CxC.'!N311)","v":""},{"$f":"IF('800111a - Nota. Detalle de CxC.'!N312=\"\",\"\",'800111a - Nota. Detalle de CxC.'!N312)","v":""},{"$f":"IF('800111a - Nota. Detalle de CxC.'!N313=\"\",\"\",'800111a - Nota. Detalle de CxC.'!N313)","v":""},{"$f":"IF('800111a - Nota. Detalle de CxC.'!N314=\"\",\"\",'800111a - Nota. Detalle de CxC.'!N314)","v":""},{"$f":"IF('800111a - Nota. Detalle de CxC.'!N315=\"\",\"\",'800111a - Nota. Detalle de CxC.'!N315)","v":""},{"$f":"IF('800111a - Nota. Detalle de CxC.'!N316=\"\",\"\",'800111a - Nota. Detalle de CxC.'!N316)","v":""},{"$f":"IF('800111a - Nota. Detalle de CxC.'!N317=\"\",\"\",'800111a - Nota. Detalle de CxC.'!N317)","v":""},{"$f":"IF('800111a - Nota. Detalle de CxC.'!N318=\"\",\"\",'800111a - Nota. Detalle de CxC.'!N318)","v":""},{"$f":"IF('800111a - Nota. Detalle de CxC.'!N319=\"\",\"\",'800111a - Nota. Detalle de CxC.'!N319)","v":""},{"$f":"IF('800111a - Nota. Detalle de CxC.'!N320=\"\",\"\",'800111a - Nota. Detalle de CxC.'!N320)","v":""},{"$f":"IF('800111a - Nota. Detalle de CxC.'!N321=\"\",\"\",'800111a - Nota. Detalle de CxC.'!N321)","v":""},{"$f":"IF('800111a - Nota. Detalle de CxC.'!N322=\"\",\"\",'800111a - Nota. Detalle de CxC.'!N322)","v":""},{"$f":"IF('800111a - Nota. Detalle de CxC.'!N323=\"\",\"\",'800111a - Nota. Detalle de CxC.'!N323)","v":""},{"$f":"IF('800111a - Nota. Detalle de CxC.'!N324=\"\",\"\",'800111a - Nota. Detalle de CxC.'!N324)","v":""},{"$f":"IF('800111a - Nota. Detalle de CxC.'!N325=\"\",\"\",'800111a - Nota. Detalle de CxC.'!N325)","v":""},{"$f":"IF('800111a - Nota. Detalle de CxC.'!N326=\"\",\"\",'800111a - Nota. Detalle de CxC.'!N326)","v":""},{"$f":"IF('800111a - Nota. Detalle de CxC.'!N327=\"\",\"\",'800111a - Nota. Detalle de CxC.'!N327)","v":""},{"$f":"IF('800111a - Nota. Detalle de CxC.'!N328=\"\",\"\",'800111a - Nota. Detalle de CxC.'!N328)","v":""},{"$f":"IF('800111a - Nota. Detalle de CxC.'!N329=\"\",\"\",'800111a - Nota. Detalle de CxC.'!N329)","v":""},{"$f":"IF('800111a - Nota. Detalle de CxC.'!N330=\"\",\"\",'800111a - Nota. Detalle de CxC.'!N330)","v":""},{"$f":"IF('800111a - Nota. Detalle de CxC.'!N331=\"\",\"\",'800111a - Nota. Detalle de CxC.'!N331)","v":""},{"$f":"IF('800111a - Nota. Detalle de CxC.'!N332=\"\",\"\",'800111a - Nota. Detalle de CxC.'!N332)","v":""},{"$f":"IF('800111a - Nota. Detalle de CxC.'!N333=\"\",\"\",'800111a - Nota. Detalle de CxC.'!N333)","v":""},{"$f":"IF('800111a - Nota. Detalle de CxC.'!N334=\"\",\"\",'800111a - Nota. Detalle de CxC.'!N334)","v":""},{"$f":"IF('800111a - Nota. Detalle de CxC.'!N335=\"\",\"\",'800111a - Nota. Detalle de CxC.'!N335)","v":""},{"$f":"IF('800111a - Nota. Detalle de CxC.'!N336=\"\",\"\",'800111a - Nota. Detalle de CxC.'!N336)","v":""},{"$f":"IF('800111a - Nota. Detalle de CxC.'!N337=\"\",\"\",'800111a - Nota. Detalle de CxC.'!N337)","v":""},{"$f":"IF('800111a - Nota. Detalle de CxC.'!N338=\"\",\"\",'800111a - Nota. Detalle de CxC.'!N338)","v":""},{"$f":"IF('800111a - Nota. Detalle de CxC.'!N339=\"\",\"\",'800111a - Nota. Detalle de CxC.'!N339)","v":""},{"$f":"IF('800111a - Nota. Detalle de CxC.'!N340=\"\",\"\",'800111a - Nota. Detalle de CxC.'!N340)","v":""},{"$f":"IF('800111a - Nota. Detalle de CxC.'!N341=\"\",\"\",'800111a - Nota. Detalle de CxC.'!N341)","v":""},{"$f":"IF('800111a - Nota. Detalle de CxC.'!N342=\"\",\"\",'800111a - Nota. Detalle de CxC.'!N342)","v":""},{"$f":"IF('800111a - Nota. Detalle de CxC.'!N343=\"\",\"\",'800111a - Nota. Detalle de CxC.'!N343)","v":""}]
[null,"1;2","co-svsp-core:MunicipioDeudorCxC","Municipio deudor",null,null,{"$f":"IF('800111a - Nota. Detalle de CxC.'!O188=\"\",\"\",'800111a - Nota. Detalle de CxC.'!O188)","v":""},{"$f":"IF('800111a - Nota. Detalle de CxC.'!O189=\"\",\"\",'800111a - Nota. Detalle de CxC.'!O189)","v":""},{"$f":"IF('800111a - Nota. Detalle de CxC.'!O190=\"\",\"\",'800111a - Nota. Detalle de CxC.'!O190)","v":""},{"$f":"IF('800111a - Nota. Detalle de CxC.'!O191=\"\",\"\",'800111a - Nota. Detalle de CxC.'!O191)","v":""},{"$f":"IF('800111a - Nota. Detalle de CxC.'!O192=\"\",\"\",'800111a - Nota. Detalle de CxC.'!O192)","v":""},{"$f":"IF('800111a - Nota. Detalle de CxC.'!O193=\"\",\"\",'800111a - Nota. Detalle de CxC.'!O193)","v":""},{"$f":"IF('800111a - Nota. Detalle de CxC.'!O194=\"\",\"\",'800111a - Nota. Detalle de CxC.'!O194)","v":""},{"$f":"IF('800111a - Nota. Detalle de CxC.'!O195=\"\",\"\",'800111a - Nota. Detalle de CxC.'!O195)","v":""},{"$f":"IF('800111a - Nota. Detalle de CxC.'!O196=\"\",\"\",'800111a - Nota. Detalle de CxC.'!O196)","v":""},{"$f":"IF('800111a - Nota. Detalle de CxC.'!O197=\"\",\"\",'800111a - Nota. Detalle de CxC.'!O197)","v":""},{"$f":"IF('800111a - Nota. Detalle de CxC.'!O198=\"\",\"\",'800111a - Nota. Detalle de CxC.'!O198)","v":""},{"$f":"IF('800111a - Nota. Detalle de CxC.'!O199=\"\",\"\",'800111a - Nota. Detalle de CxC.'!O199)","v":""},{"$f":"IF('800111a - Nota. Detalle de CxC.'!O200=\"\",\"\",'800111a - Nota. Detalle de CxC.'!O200)","v":""},{"$f":"IF('800111a - Nota. Detalle de CxC.'!O201=\"\",\"\",'800111a - Nota. Detalle de CxC.'!O201)","v":""},{"$f":"IF('800111a - Nota. Detalle de CxC.'!O202=\"\",\"\",'800111a - Nota. Detalle de CxC.'!O202)","v":""},{"$f":"IF('800111a - Nota. Detalle de CxC.'!O203=\"\",\"\",'800111a - Nota. Detalle de CxC.'!O203)","v":""},{"$f":"IF('800111a - Nota. Detalle de CxC.'!O204=\"\",\"\",'800111a - Nota. Detalle de CxC.'!O204)","v":""},{"$f":"IF('800111a - Nota. Detalle de CxC.'!O205=\"\",\"\",'800111a - Nota. Detalle de CxC.'!O205)","v":""},{"$f":"IF('800111a - Nota. Detalle de CxC.'!O206=\"\",\"\",'800111a - Nota. Detalle de CxC.'!O206)","v":""},{"$f":"IF('800111a - Nota. Detalle de CxC.'!O207=\"\",\"\",'800111a - Nota. Detalle de CxC.'!O207)","v":""},{"$f":"IF('800111a - Nota. Detalle de CxC.'!O208=\"\",\"\",'800111a - Nota. Detalle de CxC.'!O208)","v":""},{"$f":"IF('800111a - Nota. Detalle de CxC.'!O209=\"\",\"\",'800111a - Nota. Detalle de CxC.'!O209)","v":""},{"$f":"IF('800111a - Nota. Detalle de CxC.'!O210=\"\",\"\",'800111a - Nota. Detalle de CxC.'!O210)","v":""},{"$f":"IF('800111a - Nota. Detalle de CxC.'!O211=\"\",\"\",'800111a - Nota. Detalle de CxC.'!O211)","v":""},{"$f":"IF('800111a - Nota. Detalle de CxC.'!O212=\"\",\"\",'800111a - Nota. Detalle de CxC.'!O212)","v":""},{"$f":"IF('800111a - Nota. Detalle de CxC.'!O213=\"\",\"\",'800111a - Nota. Detalle de CxC.'!O213)","v":""},{"$f":"IF('800111a - Nota. Detalle de CxC.'!O214=\"\",\"\",'800111a - Nota. Detalle de CxC.'!O214)","v":""},{"$f":"IF('800111a - Nota. Detalle de CxC.'!O215=\"\",\"\",'800111a - Nota. Detalle de CxC.'!O215)","v":""},{"$f":"IF('800111a - Nota. Detalle de CxC.'!O216=\"\",\"\",'800111a - Nota. Detalle de CxC.'!O216)","v":""},{"$f":"IF('800111a - Nota. Detalle de CxC.'!O217=\"\",\"\",'800111a - Nota. Detalle de CxC.'!O217)","v":""},{"$f":"IF('800111a - Nota. Detalle de CxC.'!O218=\"\",\"\",'800111a - Nota. Detalle de CxC.'!O218)","v":""},{"$f":"IF('800111a - Nota. Detalle de CxC.'!O219=\"\",\"\",'800111a - Nota. Detalle de CxC.'!O219)","v":""},{"$f":"IF('800111a - Nota. Detalle de CxC.'!O220=\"\",\"\",'800111a - Nota. Detalle de CxC.'!O220)","v":""},{"$f":"IF('800111a - Nota. Detalle de CxC.'!O221=\"\",\"\",'800111a - Nota. Detalle de CxC.'!O221)","v":""},{"$f":"IF('800111a - Nota. Detalle de CxC.'!O222=\"\",\"\",'800111a - Nota. Detalle de CxC.'!O222)","v":""},{"$f":"IF('800111a - Nota. Detalle de CxC.'!O223=\"\",\"\",'800111a - Nota. Detalle de CxC.'!O223)","v":""},{"$f":"IF('800111a - Nota. Detalle de CxC.'!O224=\"\",\"\",'800111a - Nota. Detalle de CxC.'!O224)","v":""},{"$f":"IF('800111a - Nota. Detalle de CxC.'!O225=\"\",\"\",'800111a - Nota. Detalle de CxC.'!O225)","v":""},{"$f":"IF('800111a - Nota. Detalle de CxC.'!O226=\"\",\"\",'800111a - Nota. Detalle de CxC.'!O226)","v":""},{"$f":"IF('800111a - Nota. Detalle de CxC.'!O227=\"\",\"\",'800111a - Nota. Detalle de CxC.'!O227)","v":""},{"$f":"IF('800111a - Nota. Detalle de CxC.'!O228=\"\",\"\",'800111a - Nota. Detalle de CxC.'!O228)","v":""},{"$f":"IF('800111a - Nota. Detalle de CxC.'!O229=\"\",\"\",'800111a - Nota. Detalle de CxC.'!O229)","v":""},{"$f":"IF('800111a - Nota. Detalle de CxC.'!O230=\"\",\"\",'800111a - Nota. Detalle de CxC.'!O230)","v":""},{"$f":"IF('800111a - Nota. Detalle de CxC.'!O231=\"\",\"\",'800111a - Nota. Detalle de CxC.'!O231)","v":""},{"$f":"IF('800111a - Nota. Detalle de CxC.'!O232=\"\",\"\",'800111a - Nota. Detalle de CxC.'!O232)","v":""},{"$f":"IF('800111a - Nota. Detalle de CxC.'!O233=\"\",\"\",'800111a - Nota. Detalle de CxC.'!O233)","v":""},{"$f":"IF('800111a - Nota. Detalle de CxC.'!O234=\"\",\"\",'800111a - Nota. Detalle de CxC.'!O234)","v":""},{"$f":"IF('800111a - Nota. Detalle de CxC.'!O235=\"\",\"\",'800111a - Nota. Detalle de CxC.'!O235)","v":""},{"$f":"IF('800111a - Nota. Detalle de CxC.'!O236=\"\",\"\",'800111a - Nota. Detalle de CxC.'!O236)","v":""},{"$f":"IF('800111a - Nota. Detalle de CxC.'!O237=\"\",\"\",'800111a - Nota. Detalle de CxC.'!O237)","v":""},null,null,null,{"$f":"IF('800111a - Nota. Detalle de CxC.'!O241=\"\",\"\",'800111a - Nota. Detalle de CxC.'!O241)","v":""},{"$f":"IF('800111a - Nota. Detalle de CxC.'!O242=\"\",\"\",'800111a - Nota. Detalle de CxC.'!O242)","v":""},{"$f":"IF('800111a - Nota. Detalle de CxC.'!O243=\"\",\"\",'800111a - Nota. Detalle de CxC.'!O243)","v":""},{"$f":"IF('800111a - Nota. Detalle de CxC.'!O244=\"\",\"\",'800111a - Nota. Detalle de CxC.'!O244)","v":""},{"$f":"IF('800111a - Nota. Detalle de CxC.'!O245=\"\",\"\",'800111a - Nota. Detalle de CxC.'!O245)","v":""},{"$f":"IF('800111a - Nota. Detalle de CxC.'!O246=\"\",\"\",'800111a - Nota. Detalle de CxC.'!O246)","v":""},{"$f":"IF('800111a - Nota. Detalle de CxC.'!O247=\"\",\"\",'800111a - Nota. Detalle de CxC.'!O247)","v":""},{"$f":"IF('800111a - Nota. Detalle de CxC.'!O248=\"\",\"\",'800111a - Nota. Detalle de CxC.'!O248)","v":""},{"$f":"IF('800111a - Nota. Detalle de CxC.'!O249=\"\",\"\",'800111a - Nota. Detalle de CxC.'!O249)","v":""},{"$f":"IF('800111a - Nota. Detalle de CxC.'!O250=\"\",\"\",'800111a - Nota. Detalle de CxC.'!O250)","v":""},{"$f":"IF('800111a - Nota. Detalle de CxC.'!O251=\"\",\"\",'800111a - Nota. Detalle de CxC.'!O251)","v":""},{"$f":"IF('800111a - Nota. Detalle de CxC.'!O252=\"\",\"\",'800111a - Nota. Detalle de CxC.'!O252)","v":""},{"$f":"IF('800111a - Nota. Detalle de CxC.'!O253=\"\",\"\",'800111a - Nota. Detalle de CxC.'!O253)","v":""},{"$f":"IF('800111a - Nota. Detalle de CxC.'!O254=\"\",\"\",'800111a - Nota. Detalle de CxC.'!O254)","v":""},{"$f":"IF('800111a - Nota. Detalle de CxC.'!O255=\"\",\"\",'800111a - Nota. Detalle de CxC.'!O255)","v":""},{"$f":"IF('800111a - Nota. Detalle de CxC.'!O256=\"\",\"\",'800111a - Nota. Detalle de CxC.'!O256)","v":""},{"$f":"IF('800111a - Nota. Detalle de CxC.'!O257=\"\",\"\",'800111a - Nota. Detalle de CxC.'!O257)","v":""},{"$f":"IF('800111a - Nota. Detalle de CxC.'!O258=\"\",\"\",'800111a - Nota. Detalle de CxC.'!O258)","v":""},{"$f":"IF('800111a - Nota. Detalle de CxC.'!O259=\"\",\"\",'800111a - Nota. Detalle de CxC.'!O259)","v":""},{"$f":"IF('800111a - Nota. Detalle de CxC.'!O260=\"\",\"\",'800111a - Nota. Detalle de CxC.'!O260)","v":""},{"$f":"IF('800111a - Nota. Detalle de CxC.'!O261=\"\",\"\",'800111a - Nota. Detalle de CxC.'!O261)","v":""},{"$f":"IF('800111a - Nota. Detalle de CxC.'!O262=\"\",\"\",'800111a - Nota. Detalle de CxC.'!O262)","v":""},{"$f":"IF('800111a - Nota. Detalle de CxC.'!O263=\"\",\"\",'800111a - Nota. Detalle de CxC.'!O263)","v":""},{"$f":"IF('800111a - Nota. Detalle de CxC.'!O264=\"\",\"\",'800111a - Nota. Detalle de CxC.'!O264)","v":""},{"$f":"IF('800111a - Nota. Detalle de CxC.'!O265=\"\",\"\",'800111a - Nota. Detalle de CxC.'!O265)","v":""},{"$f":"IF('800111a - Nota. Detalle de CxC.'!O266=\"\",\"\",'800111a - Nota. Detalle de CxC.'!O266)","v":""},{"$f":"IF('800111a - Nota. Detalle de CxC.'!O267=\"\",\"\",'800111a - Nota. Detalle de CxC.'!O267)","v":""},{"$f":"IF('800111a - Nota. Detalle de CxC.'!O268=\"\",\"\",'800111a - Nota. Detalle de CxC.'!O268)","v":""},{"$f":"IF('800111a - Nota. Detalle de CxC.'!O269=\"\",\"\",'800111a - Nota. Detalle de CxC.'!O269)","v":""},{"$f":"IF('800111a - Nota. Detalle de CxC.'!O270=\"\",\"\",'800111a - Nota. Detalle de CxC.'!O270)","v":""},{"$f":"IF('800111a - Nota. Detalle de CxC.'!O271=\"\",\"\",'800111a - Nota. Detalle de CxC.'!O271)","v":""},{"$f":"IF('800111a - Nota. Detalle de CxC.'!O272=\"\",\"\",'800111a - Nota. Detalle de CxC.'!O272)","v":""},{"$f":"IF('800111a - Nota. Detalle de CxC.'!O273=\"\",\"\",'800111a - Nota. Detalle de CxC.'!O273)","v":""},{"$f":"IF('800111a - Nota. Detalle de CxC.'!O274=\"\",\"\",'800111a - Nota. Detalle de CxC.'!O274)","v":""},{"$f":"IF('800111a - Nota. Detalle de CxC.'!O275=\"\",\"\",'800111a - Nota. Detalle de CxC.'!O275)","v":""},{"$f":"IF('800111a - Nota. Detalle de CxC.'!O276=\"\",\"\",'800111a - Nota. Detalle de CxC.'!O276)","v":""},{"$f":"IF('800111a - Nota. Detalle de CxC.'!O277=\"\",\"\",'800111a - Nota. Detalle de CxC.'!O277)","v":""},{"$f":"IF('800111a - Nota. Detalle de CxC.'!O278=\"\",\"\",'800111a - Nota. Detalle de CxC.'!O278)","v":""},{"$f":"IF('800111a - Nota. Detalle de CxC.'!O279=\"\",\"\",'800111a - Nota. Detalle de CxC.'!O279)","v":""},{"$f":"IF('800111a - Nota. Detalle de CxC.'!O280=\"\",\"\",'800111a - Nota. Detalle de CxC.'!O280)","v":""},{"$f":"IF('800111a - Nota. Detalle de CxC.'!O281=\"\",\"\",'800111a - Nota. Detalle de CxC.'!O281)","v":""},{"$f":"IF('800111a - Nota. Detalle de CxC.'!O282=\"\",\"\",'800111a - Nota. Detalle de CxC.'!O282)","v":""},{"$f":"IF('800111a - Nota. Detalle de CxC.'!O283=\"\",\"\",'800111a - Nota. Detalle de CxC.'!O283)","v":""},{"$f":"IF('800111a - Nota. Detalle de CxC.'!O284=\"\",\"\",'800111a - Nota. Detalle de CxC.'!O284)","v":""},{"$f":"IF('800111a - Nota. Detalle de CxC.'!O285=\"\",\"\",'800111a - Nota. Detalle de CxC.'!O285)","v":""},{"$f":"IF('800111a - Nota. Detalle de CxC.'!O286=\"\",\"\",'800111a - Nota. Detalle de CxC.'!O286)","v":""},{"$f":"IF('800111a - Nota. Detalle de CxC.'!O287=\"\",\"\",'800111a - Nota. Detalle de CxC.'!O287)","v":""},{"$f":"IF('800111a - Nota. Detalle de CxC.'!O288=\"\",\"\",'800111a - Nota. Detalle de CxC.'!O288)","v":""},{"$f":"IF('800111a - Nota. Detalle de CxC.'!O289=\"\",\"\",'800111a - Nota. Detalle de CxC.'!O289)","v":""},{"$f":"IF('800111a - Nota. Detalle de CxC.'!O290=\"\",\"\",'800111a - Nota. Detalle de CxC.'!O290)","v":""},null,null,null,{"$f":"IF('800111a - Nota. Detalle de CxC.'!O294=\"\",\"\",'800111a - Nota. Detalle de CxC.'!O294)","v":""},{"$f":"IF('800111a - Nota. Detalle de CxC.'!O295=\"\",\"\",'800111a - Nota. Detalle de CxC.'!O295)","v":""},{"$f":"IF('800111a - Nota. Detalle de CxC.'!O296=\"\",\"\",'800111a - Nota. Detalle de CxC.'!O296)","v":""},{"$f":"IF('800111a - Nota. Detalle de CxC.'!O297=\"\",\"\",'800111a - Nota. Detalle de CxC.'!O297)","v":""},{"$f":"IF('800111a - Nota. Detalle de CxC.'!O298=\"\",\"\",'800111a - Nota. Detalle de CxC.'!O298)","v":""},{"$f":"IF('800111a - Nota. Detalle de CxC.'!O299=\"\",\"\",'800111a - Nota. Detalle de CxC.'!O299)","v":""},{"$f":"IF('800111a - Nota. Detalle de CxC.'!O300=\"\",\"\",'800111a - Nota. Detalle de CxC.'!O300)","v":""},{"$f":"IF('800111a - Nota. Detalle de CxC.'!O301=\"\",\"\",'800111a - Nota. Detalle de CxC.'!O301)","v":""},{"$f":"IF('800111a - Nota. Detalle de CxC.'!O302=\"\",\"\",'800111a - Nota. Detalle de CxC.'!O302)","v":""},{"$f":"IF('800111a - Nota. Detalle de CxC.'!O303=\"\",\"\",'800111a - Nota. Detalle de CxC.'!O303)","v":""},{"$f":"IF('800111a - Nota. Detalle de CxC.'!O304=\"\",\"\",'800111a - Nota. Detalle de CxC.'!O304)","v":""},{"$f":"IF('800111a - Nota. Detalle de CxC.'!O305=\"\",\"\",'800111a - Nota. Detalle de CxC.'!O305)","v":""},{"$f":"IF('800111a - Nota. Detalle de CxC.'!O306=\"\",\"\",'800111a - Nota. Detalle de CxC.'!O306)","v":""},{"$f":"IF('800111a - Nota. Detalle de CxC.'!O307=\"\",\"\",'800111a - Nota. Detalle de CxC.'!O307)","v":""},{"$f":"IF('800111a - Nota. Detalle de CxC.'!O308=\"\",\"\",'800111a - Nota. Detalle de CxC.'!O308)","v":""},{"$f":"IF('800111a - Nota. Detalle de CxC.'!O309=\"\",\"\",'800111a - Nota. Detalle de CxC.'!O309)","v":""},{"$f":"IF('800111a - Nota. Detalle de CxC.'!O310=\"\",\"\",'800111a - Nota. Detalle de CxC.'!O310)","v":""},{"$f":"IF('800111a - Nota. Detalle de CxC.'!O311=\"\",\"\",'800111a - Nota. Detalle de CxC.'!O311)","v":""},{"$f":"IF('800111a - Nota. Detalle de CxC.'!O312=\"\",\"\",'800111a - Nota. Detalle de CxC.'!O312)","v":""},{"$f":"IF('800111a - Nota. Detalle de CxC.'!O313=\"\",\"\",'800111a - Nota. Detalle de CxC.'!O313)","v":""},{"$f":"IF('800111a - Nota. Detalle de CxC.'!O314=\"\",\"\",'800111a - Nota. Detalle de CxC.'!O314)","v":""},{"$f":"IF('800111a - Nota. Detalle de CxC.'!O315=\"\",\"\",'800111a - Nota. Detalle de CxC.'!O315)","v":""},{"$f":"IF('800111a - Nota. Detalle de CxC.'!O316=\"\",\"\",'800111a - Nota. Detalle de CxC.'!O316)","v":""},{"$f":"IF('800111a - Nota. Detalle de CxC.'!O317=\"\",\"\",'800111a - Nota. Detalle de CxC.'!O317)","v":""},{"$f":"IF('800111a - Nota. Detalle de CxC.'!O318=\"\",\"\",'800111a - Nota. Detalle de CxC.'!O318)","v":""},{"$f":"IF('800111a - Nota. Detalle de CxC.'!O319=\"\",\"\",'800111a - Nota. Detalle de CxC.'!O319)","v":""},{"$f":"IF('800111a - Nota. Detalle de CxC.'!O320=\"\",\"\",'800111a - Nota. Detalle de CxC.'!O320)","v":""},{"$f":"IF('800111a - Nota. Detalle de CxC.'!O321=\"\",\"\",'800111a - Nota. Detalle de CxC.'!O321)","v":""},{"$f":"IF('800111a - Nota. Detalle de CxC.'!O322=\"\",\"\",'800111a - Nota. Detalle de CxC.'!O322)","v":""},{"$f":"IF('800111a - Nota. Detalle de CxC.'!O323=\"\",\"\",'800111a - Nota. Detalle de CxC.'!O323)","v":""},{"$f":"IF('800111a - Nota. Detalle de CxC.'!O324=\"\",\"\",'800111a - Nota. Detalle de CxC.'!O324)","v":""},{"$f":"IF('800111a - Nota. Detalle de CxC.'!O325=\"\",\"\",'800111a - Nota. Detalle de CxC.'!O325)","v":""},{"$f":"IF('800111a - Nota. Detalle de CxC.'!O326=\"\",\"\",'800111a - Nota. Detalle de CxC.'!O326)","v":""},{"$f":"IF('800111a - Nota. Detalle de CxC.'!O327=\"\",\"\",'800111a - Nota. Detalle de CxC.'!O327)","v":""},{"$f":"IF('800111a - Nota. Detalle de CxC.'!O328=\"\",\"\",'800111a - Nota. Detalle de CxC.'!O328)","v":""},{"$f":"IF('800111a - Nota. Detalle de CxC.'!O329=\"\",\"\",'800111a - Nota. Detalle de CxC.'!O329)","v":""},{"$f":"IF('800111a - Nota. Detalle de CxC.'!O330=\"\",\"\",'800111a - Nota. Detalle de CxC.'!O330)","v":""},{"$f":"IF('800111a - Nota. Detalle de CxC.'!O331=\"\",\"\",'800111a - Nota. Detalle de CxC.'!O331)","v":""},{"$f":"IF('800111a - Nota. Detalle de CxC.'!O332=\"\",\"\",'800111a - Nota. Detalle de CxC.'!O332)","v":""},{"$f":"IF('800111a - Nota. Detalle de CxC.'!O333=\"\",\"\",'800111a - Nota. Detalle de CxC.'!O333)","v":""},{"$f":"IF('800111a - Nota. Detalle de CxC.'!O334=\"\",\"\",'800111a - Nota. Detalle de CxC.'!O334)","v":""},{"$f":"IF('800111a - Nota. Detalle de CxC.'!O335=\"\",\"\",'800111a - Nota. Detalle de CxC.'!O335)","v":""},{"$f":"IF('800111a - Nota. Detalle de CxC.'!O336=\"\",\"\",'800111a - Nota. Detalle de CxC.'!O336)","v":""},{"$f":"IF('800111a - Nota. Detalle de CxC.'!O337=\"\",\"\",'800111a - Nota. Detalle de CxC.'!O337)","v":""},{"$f":"IF('800111a - Nota. Detalle de CxC.'!O338=\"\",\"\",'800111a - Nota. Detalle de CxC.'!O338)","v":""},{"$f":"IF('800111a - Nota. Detalle de CxC.'!O339=\"\",\"\",'800111a - Nota. Detalle de CxC.'!O339)","v":""},{"$f":"IF('800111a - Nota. Detalle de CxC.'!O340=\"\",\"\",'800111a - Nota. Detalle de CxC.'!O340)","v":""},{"$f":"IF('800111a - Nota. Detalle de CxC.'!O341=\"\",\"\",'800111a - Nota. Detalle de CxC.'!O341)","v":""},{"$f":"IF('800111a - Nota. Detalle de CxC.'!O342=\"\",\"\",'800111a - Nota. Detalle de CxC.'!O342)","v":""},{"$f":"IF('800111a - Nota. Detalle de CxC.'!O343=\"\",\"\",'800111a - Nota. Detalle de CxC.'!O343)","v":""}]
[null,"1;2","co-svsp-core:PaisDeudorCxC","País deudor",null,null,{"$f":"IF('800111a - Nota. Detalle de CxC.'!P188=\"\",\"\",'800111a - Nota. Detalle de CxC.'!P188)","v":""},{"$f":"IF('800111a - Nota. Detalle de CxC.'!P189=\"\",\"\",'800111a - Nota. Detalle de CxC.'!P189)","v":""},{"$f":"IF('800111a - Nota. Detalle de CxC.'!P190=\"\",\"\",'800111a - Nota. Detalle de CxC.'!P190)","v":""},{"$f":"IF('800111a - Nota. Detalle de CxC.'!P191=\"\",\"\",'800111a - Nota. Detalle de CxC.'!P191)","v":""},{"$f":"IF('800111a - Nota. Detalle de CxC.'!P192=\"\",\"\",'800111a - Nota. Detalle de CxC.'!P192)","v":""},{"$f":"IF('800111a - Nota. Detalle de CxC.'!P193=\"\",\"\",'800111a - Nota. Detalle de CxC.'!P193)","v":""},{"$f":"IF('800111a - Nota. Detalle de CxC.'!P194=\"\",\"\",'800111a - Nota. Detalle de CxC.'!P194)","v":""},{"$f":"IF('800111a - Nota. Detalle de CxC.'!P195=\"\",\"\",'800111a - Nota. Detalle de CxC.'!P195)","v":""},{"$f":"IF('800111a - Nota. Detalle de CxC.'!P196=\"\",\"\",'800111a - Nota. Detalle de CxC.'!P196)","v":""},{"$f":"IF('800111a - Nota. Detalle de CxC.'!P197=\"\",\"\",'800111a - Nota. Detalle de CxC.'!P197)","v":""},{"$f":"IF('800111a - Nota. Detalle de CxC.'!P198=\"\",\"\",'800111a - Nota. Detalle de CxC.'!P198)","v":""},{"$f":"IF('800111a - Nota. Detalle de CxC.'!P199=\"\",\"\",'800111a - Nota. Detalle de CxC.'!P199)","v":""},{"$f":"IF('800111a - Nota. Detalle de CxC.'!P200=\"\",\"\",'800111a - Nota. Detalle de CxC.'!P200)","v":""},{"$f":"IF('800111a - Nota. Detalle de CxC.'!P201=\"\",\"\",'800111a - Nota. Detalle de CxC.'!P201)","v":""},{"$f":"IF('800111a - Nota. Detalle de CxC.'!P202=\"\",\"\",'800111a - Nota. Detalle de CxC.'!P202)","v":""},{"$f":"IF('800111a - Nota. Detalle de CxC.'!P203=\"\",\"\",'800111a - Nota. Detalle de CxC.'!P203)","v":""},{"$f":"IF('800111a - Nota. Detalle de CxC.'!P204=\"\",\"\",'800111a - Nota. Detalle de CxC.'!P204)","v":""},{"$f":"IF('800111a - Nota. Detalle de CxC.'!P205=\"\",\"\",'800111a - Nota. Detalle de CxC.'!P205)","v":""},{"$f":"IF('800111a - Nota. Detalle de CxC.'!P206=\"\",\"\",'800111a - Nota. Detalle de CxC.'!P206)","v":""},{"$f":"IF('800111a - Nota. Detalle de CxC.'!P207=\"\",\"\",'800111a - Nota. Detalle de CxC.'!P207)","v":""},{"$f":"IF('800111a - Nota. Detalle de CxC.'!P208=\"\",\"\",'800111a - Nota. Detalle de CxC.'!P208)","v":""},{"$f":"IF('800111a - Nota. Detalle de CxC.'!P209=\"\",\"\",'800111a - Nota. Detalle de CxC.'!P209)","v":""},{"$f":"IF('800111a - Nota. Detalle de CxC.'!P210=\"\",\"\",'800111a - Nota. Detalle de CxC.'!P210)","v":""},{"$f":"IF('800111a - Nota. Detalle de CxC.'!P211=\"\",\"\",'800111a - Nota. Detalle de CxC.'!P211)","v":""},{"$f":"IF('800111a - Nota. Detalle de CxC.'!P212=\"\",\"\",'800111a - Nota. Detalle de CxC.'!P212)","v":""},{"$f":"IF('800111a - Nota. Detalle de CxC.'!P213=\"\",\"\",'800111a - Nota. Detalle de CxC.'!P213)","v":""},{"$f":"IF('800111a - Nota. Detalle de CxC.'!P214=\"\",\"\",'800111a - Nota. Detalle de CxC.'!P214)","v":""},{"$f":"IF('800111a - Nota. Detalle de CxC.'!P215=\"\",\"\",'800111a - Nota. Detalle de CxC.'!P215)","v":""},{"$f":"IF('800111a - Nota. Detalle de CxC.'!P216=\"\",\"\",'800111a - Nota. Detalle de CxC.'!P216)","v":""},{"$f":"IF('800111a - Nota. Detalle de CxC.'!P217=\"\",\"\",'800111a - Nota. Detalle de CxC.'!P217)","v":""},{"$f":"IF('800111a - Nota. Detalle de CxC.'!P218=\"\",\"\",'800111a - Nota. Detalle de CxC.'!P218)","v":""},{"$f":"IF('800111a - Nota. Detalle de CxC.'!P219=\"\",\"\",'800111a - Nota. Detalle de CxC.'!P219)","v":""},{"$f":"IF('800111a - Nota. Detalle de CxC.'!P220=\"\",\"\",'800111a - Nota. Detalle de CxC.'!P220)","v":""},{"$f":"IF('800111a - Nota. Detalle de CxC.'!P221=\"\",\"\",'800111a - Nota. Detalle de CxC.'!P221)","v":""},{"$f":"IF('800111a - Nota. Detalle de CxC.'!P222=\"\",\"\",'800111a - Nota. Detalle de CxC.'!P222)","v":""},{"$f":"IF('800111a - Nota. Detalle de CxC.'!P223=\"\",\"\",'800111a - Nota. Detalle de CxC.'!P223)","v":""},{"$f":"IF('800111a - Nota. Detalle de CxC.'!P224=\"\",\"\",'800111a - Nota. Detalle de CxC.'!P224)","v":""},{"$f":"IF('800111a - Nota. Detalle de CxC.'!P225=\"\",\"\",'800111a - Nota. Detalle de CxC.'!P225)","v":""},{"$f":"IF('800111a - Nota. Detalle de CxC.'!P226=\"\",\"\",'800111a - Nota. Detalle de CxC.'!P226)","v":""},{"$f":"IF('800111a - Nota. Detalle de CxC.'!P227=\"\",\"\",'800111a - Nota. Detalle de CxC.'!P227)","v":""},{"$f":"IF('800111a - Nota. Detalle de CxC.'!P228=\"\",\"\",'800111a - Nota. Detalle de CxC.'!P228)","v":""},{"$f":"IF('800111a - Nota. Detalle de CxC.'!P229=\"\",\"\",'800111a - Nota. Detalle de CxC.'!P229)","v":""},{"$f":"IF('800111a - Nota. Detalle de CxC.'!P230=\"\",\"\",'800111a - Nota. Detalle de CxC.'!P230)","v":""},{"$f":"IF('800111a - Nota. Detalle de CxC.'!P231=\"\",\"\",'800111a - Nota. Detalle de CxC.'!P231)","v":""},{"$f":"IF('800111a - Nota. Detalle de CxC.'!P232=\"\",\"\",'800111a - Nota. Detalle de CxC.'!P232)","v":""},{"$f":"IF('800111a - Nota. Detalle de CxC.'!P233=\"\",\"\",'800111a - Nota. Detalle de CxC.'!P233)","v":""},{"$f":"IF('800111a - Nota. Detalle de CxC.'!P234=\"\",\"\",'800111a - Nota. Detalle de CxC.'!P234)","v":""},{"$f":"IF('800111a - Nota. Detalle de CxC.'!P235=\"\",\"\",'800111a - Nota. Detalle de CxC.'!P235)","v":""},{"$f":"IF('800111a - Nota. Detalle de CxC.'!P236=\"\",\"\",'800111a - Nota. Detalle de CxC.'!P236)","v":""},{"$f":"IF('800111a - Nota. Detalle de CxC.'!P237=\"\",\"\",'800111a - Nota. Detalle de CxC.'!P237)","v":""},null,null,null,{"$f":"IF('800111a - Nota. Detalle de CxC.'!P241=\"\",\"\",'800111a - Nota. Detalle de CxC.'!P241)","v":""},{"$f":"IF('800111a - Nota. Detalle de CxC.'!P242=\"\",\"\",'800111a - Nota. Detalle de CxC.'!P242)","v":""},{"$f":"IF('800111a - Nota. Detalle de CxC.'!P243=\"\",\"\",'800111a - Nota. Detalle de CxC.'!P243)","v":""},{"$f":"IF('800111a - Nota. Detalle de CxC.'!P244=\"\",\"\",'800111a - Nota. Detalle de CxC.'!P244)","v":""},{"$f":"IF('800111a - Nota. Detalle de CxC.'!P245=\"\",\"\",'800111a - Nota. Detalle de CxC.'!P245)","v":""},{"$f":"IF('800111a - Nota. Detalle de CxC.'!P246=\"\",\"\",'800111a - Nota. Detalle de CxC.'!P246)","v":""},{"$f":"IF('800111a - Nota. Detalle de CxC.'!P247=\"\",\"\",'800111a - Nota. Detalle de CxC.'!P247)","v":""},{"$f":"IF('800111a - Nota. Detalle de CxC.'!P248=\"\",\"\",'800111a - Nota. Detalle de CxC.'!P248)","v":""},{"$f":"IF('800111a - Nota. Detalle de CxC.'!P249=\"\",\"\",'800111a - Nota. Detalle de CxC.'!P249)","v":""},{"$f":"IF('800111a - Nota. Detalle de CxC.'!P250=\"\",\"\",'800111a - Nota. Detalle de CxC.'!P250)","v":""},{"$f":"IF('800111a - Nota. Detalle de CxC.'!P251=\"\",\"\",'800111a - Nota. Detalle de CxC.'!P251)","v":""},{"$f":"IF('800111a - Nota. Detalle de CxC.'!P252=\"\",\"\",'800111a - Nota. Detalle de CxC.'!P252)","v":""},{"$f":"IF('800111a - Nota. Detalle de CxC.'!P253=\"\",\"\",'800111a - Nota. Detalle de CxC.'!P253)","v":""},{"$f":"IF('800111a - Nota. Detalle de CxC.'!P254=\"\",\"\",'800111a - Nota. Detalle de CxC.'!P254)","v":""},{"$f":"IF('800111a - Nota. Detalle de CxC.'!P255=\"\",\"\",'800111a - Nota. Detalle de CxC.'!P255)","v":""},{"$f":"IF('800111a - Nota. Detalle de CxC.'!P256=\"\",\"\",'800111a - Nota. Detalle de CxC.'!P256)","v":""},{"$f":"IF('800111a - Nota. Detalle de CxC.'!P257=\"\",\"\",'800111a - Nota. Detalle de CxC.'!P257)","v":""},{"$f":"IF('800111a - Nota. Detalle de CxC.'!P258=\"\",\"\",'800111a - Nota. Detalle de CxC.'!P258)","v":""},{"$f":"IF('800111a - Nota. Detalle de CxC.'!P259=\"\",\"\",'800111a - Nota. Detalle de CxC.'!P259)","v":""},{"$f":"IF('800111a - Nota. Detalle de CxC.'!P260=\"\",\"\",'800111a - Nota. Detalle de CxC.'!P260)","v":""},{"$f":"IF('800111a - Nota. Detalle de CxC.'!P261=\"\",\"\",'800111a - Nota. Detalle de CxC.'!P261)","v":""},{"$f":"IF('800111a - Nota. Detalle de CxC.'!P262=\"\",\"\",'800111a - Nota. Detalle de CxC.'!P262)","v":""},{"$f":"IF('800111a - Nota. Detalle de CxC.'!P263=\"\",\"\",'800111a - Nota. Detalle de CxC.'!P263)","v":""},{"$f":"IF('800111a - Nota. Detalle de CxC.'!P264=\"\",\"\",'800111a - Nota. Detalle de CxC.'!P264)","v":""},{"$f":"IF('800111a - Nota. Detalle de CxC.'!P265=\"\",\"\",'800111a - Nota. Detalle de CxC.'!P265)","v":""},{"$f":"IF('800111a - Nota. Detalle de CxC.'!P266=\"\",\"\",'800111a - Nota. Detalle de CxC.'!P266)","v":""},{"$f":"IF('800111a - Nota. Detalle de CxC.'!P267=\"\",\"\",'800111a - Nota. Detalle de CxC.'!P267)","v":""},{"$f":"IF('800111a - Nota. Detalle de CxC.'!P268=\"\",\"\",'800111a - Nota. Detalle de CxC.'!P268)","v":""},{"$f":"IF('800111a - Nota. Detalle de CxC.'!P269=\"\",\"\",'800111a - Nota. Detalle de CxC.'!P269)","v":""},{"$f":"IF('800111a - Nota. Detalle de CxC.'!P270=\"\",\"\",'800111a - Nota. Detalle de CxC.'!P270)","v":""},{"$f":"IF('800111a - Nota. Detalle de CxC.'!P271=\"\",\"\",'800111a - Nota. Detalle de CxC.'!P271)","v":""},{"$f":"IF('800111a - Nota. Detalle de CxC.'!P272=\"\",\"\",'800111a - Nota. Detalle de CxC.'!P272)","v":""},{"$f":"IF('800111a - Nota. Detalle de CxC.'!P273=\"\",\"\",'800111a - Nota. Detalle de CxC.'!P273)","v":""},{"$f":"IF('800111a - Nota. Detalle de CxC.'!P274=\"\",\"\",'800111a - Nota. Detalle de CxC.'!P274)","v":""},{"$f":"IF('800111a - Nota. Detalle de CxC.'!P275=\"\",\"\",'800111a - Nota. Detalle de CxC.'!P275)","v":""},{"$f":"IF('800111a - Nota. Detalle de CxC.'!P276=\"\",\"\",'800111a - Nota. Detalle de CxC.'!P276)","v":""},{"$f":"IF('800111a - Nota. Detalle de CxC.'!P277=\"\",\"\",'800111a - Nota. Detalle de CxC.'!P277)","v":""},{"$f":"IF('800111a - Nota. Detalle de CxC.'!P278=\"\",\"\",'800111a - Nota. Detalle de CxC.'!P278)","v":""},{"$f":"IF('800111a - Nota. Detalle de CxC.'!P279=\"\",\"\",'800111a - Nota. Detalle de CxC.'!P279)","v":""},{"$f":"IF('800111a - Nota. Detalle de CxC.'!P280=\"\",\"\",'800111a - Nota. Detalle de CxC.'!P280)","v":""},{"$f":"IF('800111a - Nota. Detalle de CxC.'!P281=\"\",\"\",'800111a - Nota. Detalle de CxC.'!P281)","v":""},{"$f":"IF('800111a - Nota. Detalle de CxC.'!P282=\"\",\"\",'800111a - Nota. Detalle de CxC.'!P282)","v":""},{"$f":"IF('800111a - Nota. Detalle de CxC.'!P283=\"\",\"\",'800111a - Nota. Detalle de CxC.'!P283)","v":""},{"$f":"IF('800111a - Nota. Detalle de CxC.'!P284=\"\",\"\",'800111a - Nota. Detalle de CxC.'!P284)","v":""},{"$f":"IF('800111a - Nota. Detalle de CxC.'!P285=\"\",\"\",'800111a - Nota. Detalle de CxC.'!P285)","v":""},{"$f":"IF('800111a - Nota. Detalle de CxC.'!P286=\"\",\"\",'800111a - Nota. Detalle de CxC.'!P286)","v":""},{"$f":"IF('800111a - Nota. Detalle de CxC.'!P287=\"\",\"\",'800111a - Nota. Detalle de CxC.'!P287)","v":""},{"$f":"IF('800111a - Nota. Detalle de CxC.'!P288=\"\",\"\",'800111a - Nota. Detalle de CxC.'!P288)","v":""},{"$f":"IF('800111a - Nota. Detalle de CxC.'!P289=\"\",\"\",'800111a - Nota. Detalle de CxC.'!P289)","v":""},{"$f":"IF('800111a - Nota. Detalle de CxC.'!P290=\"\",\"\",'800111a - Nota. Detalle de CxC.'!P290)","v":""},null,null,null,{"$f":"IF('800111a - Nota. Detalle de CxC.'!P294=\"\",\"\",'800111a - Nota. Detalle de CxC.'!P294)","v":""},{"$f":"IF('800111a - Nota. Detalle de CxC.'!P295=\"\",\"\",'800111a - Nota. Detalle de CxC.'!P295)","v":""},{"$f":"IF('800111a - Nota. Detalle de CxC.'!P296=\"\",\"\",'800111a - Nota. Detalle de CxC.'!P296)","v":""},{"$f":"IF('800111a - Nota. Detalle de CxC.'!P297=\"\",\"\",'800111a - Nota. Detalle de CxC.'!P297)","v":""},{"$f":"IF('800111a - Nota. Detalle de CxC.'!P298=\"\",\"\",'800111a - Nota. Detalle de CxC.'!P298)","v":""},{"$f":"IF('800111a - Nota. Detalle de CxC.'!P299=\"\",\"\",'800111a - Nota. Detalle de CxC.'!P299)","v":""},{"$f":"IF('800111a - Nota. Detalle de CxC.'!P300=\"\",\"\",'800111a - Nota. Detalle de CxC.'!P300)","v":""},{"$f":"IF('800111a - Nota. Detalle de CxC.'!P301=\"\",\"\",'800111a - Nota. Detalle de CxC.'!P301)","v":""},{"$f":"IF('800111a - Nota. Detalle de CxC.'!P302=\"\",\"\",'800111a - Nota. Detalle de CxC.'!P302)","v":""},{"$f":"IF('800111a - Nota. Detalle de CxC.'!P303=\"\",\"\",'800111a - Nota. Detalle de CxC.'!P303)","v":""},{"$f":"IF('800111a - Nota. Detalle de CxC.'!P304=\"\",\"\",'800111a - Nota. Detalle de CxC.'!P304)","v":""},{"$f":"IF('800111a - Nota. Detalle de CxC.'!P305=\"\",\"\",'800111a - Nota. Detalle de CxC.'!P305)","v":""},{"$f":"IF('800111a - Nota. Detalle de CxC.'!P306=\"\",\"\",'800111a - Nota. Detalle de CxC.'!P306)","v":""},{"$f":"IF('800111a - Nota. Detalle de CxC.'!P307=\"\",\"\",'800111a - Nota. Detalle de CxC.'!P307)","v":""},{"$f":"IF('800111a - Nota. Detalle de CxC.'!P308=\"\",\"\",'800111a - Nota. Detalle de CxC.'!P308)","v":""},{"$f":"IF('800111a - Nota. Detalle de CxC.'!P309=\"\",\"\",'800111a - Nota. Detalle de CxC.'!P309)","v":""},{"$f":"IF('800111a - Nota. Detalle de CxC.'!P310=\"\",\"\",'800111a - Nota. Detalle de CxC.'!P310)","v":""},{"$f":"IF('800111a - Nota. Detalle de CxC.'!P311=\"\",\"\",'800111a - Nota. Detalle de CxC.'!P311)","v":""},{"$f":"IF('800111a - Nota. Detalle de CxC.'!P312=\"\",\"\",'800111a - Nota. Detalle de CxC.'!P312)","v":""},{"$f":"IF('800111a - Nota. Detalle de CxC.'!P313=\"\",\"\",'800111a - Nota. Detalle de CxC.'!P313)","v":""},{"$f":"IF('800111a - Nota. Detalle de CxC.'!P314=\"\",\"\",'800111a - Nota. Detalle de CxC.'!P314)","v":""},{"$f":"IF('800111a - Nota. Detalle de CxC.'!P315=\"\",\"\",'800111a - Nota. Detalle de CxC.'!P315)","v":""},{"$f":"IF('800111a - Nota. Detalle de CxC.'!P316=\"\",\"\",'800111a - Nota. Detalle de CxC.'!P316)","v":""},{"$f":"IF('800111a - Nota. Detalle de CxC.'!P317=\"\",\"\",'800111a - Nota. Detalle de CxC.'!P317)","v":""},{"$f":"IF('800111a - Nota. Detalle de CxC.'!P318=\"\",\"\",'800111a - Nota. Detalle de CxC.'!P318)","v":""},{"$f":"IF('800111a - Nota. Detalle de CxC.'!P319=\"\",\"\",'800111a - Nota. Detalle de CxC.'!P319)","v":""},{"$f":"IF('800111a - Nota. Detalle de CxC.'!P320=\"\",\"\",'800111a - Nota. Detalle de CxC.'!P320)","v":""},{"$f":"IF('800111a - Nota. Detalle de CxC.'!P321=\"\",\"\",'800111a - Nota. Detalle de CxC.'!P321)","v":""},{"$f":"IF('800111a - Nota. Detalle de CxC.'!P322=\"\",\"\",'800111a - Nota. Detalle de CxC.'!P322)","v":""},{"$f":"IF('800111a - Nota. Detalle de CxC.'!P323=\"\",\"\",'800111a - Nota. Detalle de CxC.'!P323)","v":""},{"$f":"IF('800111a - Nota. Detalle de CxC.'!P324=\"\",\"\",'800111a - Nota. Detalle de CxC.'!P324)","v":""},{"$f":"IF('800111a - Nota. Detalle de CxC.'!P325=\"\",\"\",'800111a - Nota. Detalle de CxC.'!P325)","v":""},{"$f":"IF('800111a - Nota. Detalle de CxC.'!P326=\"\",\"\",'800111a - Nota. Detalle de CxC.'!P326)","v":""},{"$f":"IF('800111a - Nota. Detalle de CxC.'!P327=\"\",\"\",'800111a - Nota. Detalle de CxC.'!P327)","v":""},{"$f":"IF('800111a - Nota. Detalle de CxC.'!P328=\"\",\"\",'800111a - Nota. Detalle de CxC.'!P328)","v":""},{"$f":"IF('800111a - Nota. Detalle de CxC.'!P329=\"\",\"\",'800111a - Nota. Detalle de CxC.'!P329)","v":""},{"$f":"IF('800111a - Nota. Detalle de CxC.'!P330=\"\",\"\",'800111a - Nota. Detalle de CxC.'!P330)","v":""},{"$f":"IF('800111a - Nota. Detalle de CxC.'!P331=\"\",\"\",'800111a - Nota. Detalle de CxC.'!P331)","v":""},{"$f":"IF('800111a - Nota. Detalle de CxC.'!P332=\"\",\"\",'800111a - Nota. Detalle de CxC.'!P332)","v":""},{"$f":"IF('800111a - Nota. Detalle de CxC.'!P333=\"\",\"\",'800111a - Nota. Detalle de CxC.'!P333)","v":""},{"$f":"IF('800111a - Nota. Detalle de CxC.'!P334=\"\",\"\",'800111a - Nota. Detalle de CxC.'!P334)","v":""},{"$f":"IF('800111a - Nota. Detalle de CxC.'!P335=\"\",\"\",'800111a - Nota. Detalle de CxC.'!P335)","v":""},{"$f":"IF('800111a - Nota. Detalle de CxC.'!P336=\"\",\"\",'800111a - Nota. Detalle de CxC.'!P336)","v":""},{"$f":"IF('800111a - Nota. Detalle de CxC.'!P337=\"\",\"\",'800111a - Nota. Detalle de CxC.'!P337)","v":""},{"$f":"IF('800111a - Nota. Detalle de CxC.'!P338=\"\",\"\",'800111a - Nota. Detalle de CxC.'!P338)","v":""},{"$f":"IF('800111a - Nota. Detalle de CxC.'!P339=\"\",\"\",'800111a - Nota. Detalle de CxC.'!P339)","v":""},{"$f":"IF('800111a - Nota. Detalle de CxC.'!P340=\"\",\"\",'800111a - Nota. Detalle de CxC.'!P340)","v":""},{"$f":"IF('800111a - Nota. Detalle de CxC.'!P341=\"\",\"\",'800111a - Nota. Detalle de CxC.'!P341)","v":""},{"$f":"IF('800111a - Nota. Detalle de CxC.'!P342=\"\",\"\",'800111a - Nota. Detalle de CxC.'!P342)","v":""},{"$f":"IF('800111a - Nota. Detalle de CxC.'!P343=\"\",\"\",'800111a - Nota. Detalle de CxC.'!P343)","v":""}]
[null,"1;2","co-svsp-core:SaldoCuentasPorCobrarCxC","Saldo cuentas por cobrar",null,null,{"$f":"IF('800111a - Nota. Detalle de CxC.'!Q188=\"\",\"\",'800111a - Nota. Detalle de CxC.'!Q188)","v":""},{"$f":"IF('800111a - Nota. Detalle de CxC.'!Q189=\"\",\"\",'800111a - Nota. Detalle de CxC.'!Q189)","v":""},{"$f":"IF('800111a - Nota. Detalle de CxC.'!Q190=\"\",\"\",'800111a - Nota. Detalle de CxC.'!Q190)","v":""},{"$f":"IF('800111a - Nota. Detalle de CxC.'!Q191=\"\",\"\",'800111a - Nota. Detalle de CxC.'!Q191)","v":""},{"$f":"IF('800111a - Nota. Detalle de CxC.'!Q192=\"\",\"\",'800111a - Nota. Detalle de CxC.'!Q192)","v":""},{"$f":"IF('800111a - Nota. Detalle de CxC.'!Q193=\"\",\"\",'800111a - Nota. Detalle de CxC.'!Q193)","v":""},{"$f":"IF('800111a - Nota. Detalle de CxC.'!Q194=\"\",\"\",'800111a - Nota. Detalle de CxC.'!Q194)","v":""},{"$f":"IF('800111a - Nota. Detalle de CxC.'!Q195=\"\",\"\",'800111a - Nota. Detalle de CxC.'!Q195)","v":""},{"$f":"IF('800111a - Nota. Detalle de CxC.'!Q196=\"\",\"\",'800111a - Nota. Detalle de CxC.'!Q196)","v":""},{"$f":"IF('800111a - Nota. Detalle de CxC.'!Q197=\"\",\"\",'800111a - Nota. Detalle de CxC.'!Q197)","v":""},{"$f":"IF('800111a - Nota. Detalle de CxC.'!Q198=\"\",\"\",'800111a - Nota. Detalle de CxC.'!Q198)","v":""},{"$f":"IF('800111a - Nota. Detalle de CxC.'!Q199=\"\",\"\",'800111a - Nota. Detalle de CxC.'!Q199)","v":""},{"$f":"IF('800111a - Nota. Detalle de CxC.'!Q200=\"\",\"\",'800111a - Nota. Detalle de CxC.'!Q200)","v":""},{"$f":"IF('800111a - Nota. Detalle de CxC.'!Q201=\"\",\"\",'800111a - Nota. Detalle de CxC.'!Q201)","v":""},{"$f":"IF('800111a - Nota. Detalle de CxC.'!Q202=\"\",\"\",'800111a - Nota. Detalle de CxC.'!Q202)","v":""},{"$f":"IF('800111a - Nota. Detalle de CxC.'!Q203=\"\",\"\",'800111a - Nota. Detalle de CxC.'!Q203)","v":""},{"$f":"IF('800111a - Nota. Detalle de CxC.'!Q204=\"\",\"\",'800111a - Nota. Detalle de CxC.'!Q204)","v":""},{"$f":"IF('800111a - Nota. Detalle de CxC.'!Q205=\"\",\"\",'800111a - Nota. Detalle de CxC.'!Q205)","v":""},{"$f":"IF('800111a - Nota. Detalle de CxC.'!Q206=\"\",\"\",'800111a - Nota. Detalle de CxC.'!Q206)","v":""},{"$f":"IF('800111a - Nota. Detalle de CxC.'!Q207=\"\",\"\",'800111a - Nota. Detalle de CxC.'!Q207)","v":""},{"$f":"IF('800111a - Nota. Detalle de CxC.'!Q208=\"\",\"\",'800111a - Nota. Detalle de CxC.'!Q208)","v":""},{"$f":"IF('800111a - Nota. Detalle de CxC.'!Q209=\"\",\"\",'800111a - Nota. Detalle de CxC.'!Q209)","v":""},{"$f":"IF('800111a - Nota. Detalle de CxC.'!Q210=\"\",\"\",'800111a - Nota. Detalle de CxC.'!Q210)","v":""},{"$f":"IF('800111a - Nota. Detalle de CxC.'!Q211=\"\",\"\",'800111a - Nota. Detalle de CxC.'!Q211)","v":""},{"$f":"IF('800111a - Nota. Detalle de CxC.'!Q212=\"\",\"\",'800111a - Nota. Detalle de CxC.'!Q212)","v":""},{"$f":"IF('800111a - Nota. Detalle de CxC.'!Q213=\"\",\"\",'800111a - Nota. Detalle de CxC.'!Q213)","v":""},{"$f":"IF('800111a - Nota. Detalle de CxC.'!Q214=\"\",\"\",'800111a - Nota. Detalle de CxC.'!Q214)","v":""},{"$f":"IF('800111a - Nota. Detalle de CxC.'!Q215=\"\",\"\",'800111a - Nota. Detalle de CxC.'!Q215)","v":""},{"$f":"IF('800111a - Nota. Detalle de CxC.'!Q216=\"\",\"\",'800111a - Nota. Detalle de CxC.'!Q216)","v":""},{"$f":"IF('800111a - Nota. Detalle de CxC.'!Q217=\"\",\"\",'800111a - Nota. Detalle de CxC.'!Q217)","v":""},{"$f":"IF('800111a - Nota. Detalle de CxC.'!Q218=\"\",\"\",'800111a - Nota. Detalle de CxC.'!Q218)","v":""},{"$f":"IF('800111a - Nota. Detalle de CxC.'!Q219=\"\",\"\",'800111a - Nota. Detalle de CxC.'!Q219)","v":""},{"$f":"IF('800111a - Nota. Detalle de CxC.'!Q220=\"\",\"\",'800111a - Nota. Detalle de CxC.'!Q220)","v":""},{"$f":"IF('800111a - Nota. Detalle de CxC.'!Q221=\"\",\"\",'800111a - Nota. Detalle de CxC.'!Q221)","v":""},{"$f":"IF('800111a - Nota. Detalle de CxC.'!Q222=\"\",\"\",'800111a - Nota. Detalle de CxC.'!Q222)","v":""},{"$f":"IF('800111a - Nota. Detalle de CxC.'!Q223=\"\",\"\",'800111a - Nota. Detalle de CxC.'!Q223)","v":""},{"$f":"IF('800111a - Nota. Detalle de CxC.'!Q224=\"\",\"\",'800111a - Nota. Detalle de CxC.'!Q224)","v":""},{"$f":"IF('800111a - Nota. Detalle de CxC.'!Q225=\"\",\"\",'800111a - Nota. Detalle de CxC.'!Q225)","v":""},{"$f":"IF('800111a - Nota. Detalle de CxC.'!Q226=\"\",\"\",'800111a - Nota. Detalle de CxC.'!Q226)","v":""},{"$f":"IF('800111a - Nota. Detalle de CxC.'!Q227=\"\",\"\",'800111a - Nota. Detalle de CxC.'!Q227)","v":""},{"$f":"IF('800111a - Nota. Detalle de CxC.'!Q228=\"\",\"\",'800111a - Nota. Detalle de CxC.'!Q228)","v":""},{"$f":"IF('800111a - Nota. Detalle de CxC.'!Q229=\"\",\"\",'800111a - Nota. Detalle de CxC.'!Q229)","v":""},{"$f":"IF('800111a - Nota. Detalle de CxC.'!Q230=\"\",\"\",'800111a - Nota. Detalle de CxC.'!Q230)","v":""},{"$f":"IF('800111a - Nota. Detalle de CxC.'!Q231=\"\",\"\",'800111a - Nota. Detalle de CxC.'!Q231)","v":""},{"$f":"IF('800111a - Nota. Detalle de CxC.'!Q232=\"\",\"\",'800111a - Nota. Detalle de CxC.'!Q232)","v":""},{"$f":"IF('800111a - Nota. Detalle de CxC.'!Q233=\"\",\"\",'800111a - Nota. Detalle de CxC.'!Q233)","v":""},{"$f":"IF('800111a - Nota. Detalle de CxC.'!Q234=\"\",\"\",'800111a - Nota. Detalle de CxC.'!Q234)","v":""},{"$f":"IF('800111a - Nota. Detalle de CxC.'!Q235=\"\",\"\",'800111a - Nota. Detalle de CxC.'!Q235)","v":""},{"$f":"IF('800111a - Nota. Detalle de CxC.'!Q236=\"\",\"\",'800111a - Nota. Detalle de CxC.'!Q236)","v":""},{"$f":"IF('800111a - Nota. Detalle de CxC.'!Q237=\"\",\"\",'800111a - Nota. Detalle de CxC.'!Q237)","v":""},{"$f":"IF('800111a - Nota. Detalle de CxC.'!Q238=\"\",\"\",'800111a - Nota. Detalle de CxC.'!Q238)","v":""},{"$f":"IF('800111a - Nota. Detalle de CxC.'!Q239=\"\",\"\",'800111a - Nota. Detalle de CxC.'!Q239)","v":0},null,{"$f":"IF('800111a - Nota. Detalle de CxC.'!Q241=\"\",\"\",'800111a - Nota. Detalle de CxC.'!Q241)","v":""},{"$f":"IF('800111a - Nota. Detalle de CxC.'!Q242=\"\",\"\",'800111a - Nota. Detalle de CxC.'!Q242)","v":""},{"$f":"IF('800111a - Nota. Detalle de CxC.'!Q243=\"\",\"\",'800111a - Nota. Detalle de CxC.'!Q243)","v":""},{"$f":"IF('800111a - Nota. Detalle de CxC.'!Q244=\"\",\"\",'800111a - Nota. Detalle de CxC.'!Q244)","v":""},{"$f":"IF('800111a - Nota. Detalle de CxC.'!Q245=\"\",\"\",'800111a - Nota. Detalle de CxC.'!Q245)","v":""},{"$f":"IF('800111a - Nota. Detalle de CxC.'!Q246=\"\",\"\",'800111a - Nota. Detalle de CxC.'!Q246)","v":""},{"$f":"IF('800111a - Nota. Detalle de CxC.'!Q247=\"\",\"\",'800111a - Nota. Detalle de CxC.'!Q247)","v":""},{"$f":"IF('800111a - Nota. Detalle de CxC.'!Q248=\"\",\"\",'800111a - Nota. Detalle de CxC.'!Q248)","v":""},{"$f":"IF('800111a - Nota. Detalle de CxC.'!Q249=\"\",\"\",'800111a - Nota. Detalle de CxC.'!Q249)","v":""},{"$f":"IF('800111a - Nota. Detalle de CxC.'!Q250=\"\",\"\",'800111a - Nota. Detalle de CxC.'!Q250)","v":""},{"$f":"IF('800111a - Nota. Detalle de CxC.'!Q251=\"\",\"\",'800111a - Nota. Detalle de CxC.'!Q251)","v":""},{"$f":"IF('800111a - Nota. Detalle de CxC.'!Q252=\"\",\"\",'800111a - Nota. Detalle de CxC.'!Q252)","v":""},{"$f":"IF('800111a - Nota. Detalle de CxC.'!Q253=\"\",\"\",'800111a - Nota. Detalle de CxC.'!Q253)","v":""},{"$f":"IF('800111a - Nota. Detalle de CxC.'!Q254=\"\",\"\",'800111a - Nota. Detalle de CxC.'!Q254)","v":""},{"$f":"IF('800111a - Nota. Detalle de CxC.'!Q255=\"\",\"\",'800111a - Nota. Detalle de CxC.'!Q255)","v":""},{"$f":"IF('800111a - Nota. Detalle de CxC.'!Q256=\"\",\"\",'800111a - Nota. Detalle de CxC.'!Q256)","v":""},{"$f":"IF('800111a - Nota. Detalle de CxC.'!Q257=\"\",\"\",'800111a - Nota. Detalle de CxC.'!Q257)","v":""},{"$f":"IF('800111a - Nota. Detalle de CxC.'!Q258=\"\",\"\",'800111a - Nota. Detalle de CxC.'!Q258)","v":""},{"$f":"IF('800111a - Nota. Detalle de CxC.'!Q259=\"\",\"\",'800111a - Nota. Detalle de CxC.'!Q259)","v":""},{"$f":"IF('800111a - Nota. Detalle de CxC.'!Q260=\"\",\"\",'800111a - Nota. Detalle de CxC.'!Q260)","v":""},{"$f":"IF('800111a - Nota. Detalle de CxC.'!Q261=\"\",\"\",'800111a - Nota. Detalle de CxC.'!Q261)","v":""},{"$f":"IF('800111a - Nota. Detalle de CxC.'!Q262=\"\",\"\",'800111a - Nota. Detalle de CxC.'!Q262)","v":""},{"$f":"IF('800111a - Nota. Detalle de CxC.'!Q263=\"\",\"\",'800111a - Nota. Detalle de CxC.'!Q263)","v":""},{"$f":"IF('800111a - Nota. Detalle de CxC.'!Q264=\"\",\"\",'800111a - Nota. Detalle de CxC.'!Q264)","v":""},{"$f":"IF('800111a - Nota. Detalle de CxC.'!Q265=\"\",\"\",'800111a - Nota. Detalle de CxC.'!Q265)","v":""},{"$f":"IF('800111a - Nota. Detalle de CxC.'!Q266=\"\",\"\",'800111a - Nota. Detalle de CxC.'!Q266)","v":""},{"$f":"IF('800111a - Nota. Detalle de CxC.'!Q267=\"\",\"\",'800111a - Nota. Detalle de CxC.'!Q267)","v":""},{"$f":"IF('800111a - Nota. Detalle de CxC.'!Q268=\"\",\"\",'800111a - Nota. Detalle de CxC.'!Q268)","v":""},{"$f":"IF('800111a - Nota. Detalle de CxC.'!Q269=\"\",\"\",'800111a - Nota. Detalle de CxC.'!Q269)","v":""},{"$f":"IF('800111a - Nota. Detalle de CxC.'!Q270=\"\",\"\",'800111a - Nota. Detalle de CxC.'!Q270)","v":""},{"$f":"IF('800111a - Nota. Detalle de CxC.'!Q271=\"\",\"\",'800111a - Nota. Detalle de CxC.'!Q271)","v":""},{"$f":"IF('800111a - Nota. Detalle de CxC.'!Q272=\"\",\"\",'800111a - Nota. Detalle de CxC.'!Q272)","v":""},{"$f":"IF('800111a - Nota. Detalle de CxC.'!Q273=\"\",\"\",'800111a - Nota. Detalle de CxC.'!Q273)","v":""},{"$f":"IF('800111a - Nota. Detalle de CxC.'!Q274=\"\",\"\",'800111a - Nota. Detalle de CxC.'!Q274)","v":""},{"$f":"IF('800111a - Nota. Detalle de CxC.'!Q275=\"\",\"\",'800111a - Nota. Detalle de CxC.'!Q275)","v":""},{"$f":"IF('800111a - Nota. Detalle de CxC.'!Q276=\"\",\"\",'800111a - Nota. Detalle de CxC.'!Q276)","v":""},{"$f":"IF('800111a - Nota. Detalle de CxC.'!Q277=\"\",\"\",'800111a - Nota. Detalle de CxC.'!Q277)","v":""},{"$f":"IF('800111a - Nota. Detalle de CxC.'!Q278=\"\",\"\",'800111a - Nota. Detalle de CxC.'!Q278)","v":""},{"$f":"IF('800111a - Nota. Detalle de CxC.'!Q279=\"\",\"\",'800111a - Nota. Detalle de CxC.'!Q279)","v":""},{"$f":"IF('800111a - Nota. Detalle de CxC.'!Q280=\"\",\"\",'800111a - Nota. Detalle de CxC.'!Q280)","v":""},{"$f":"IF('800111a - Nota. Detalle de CxC.'!Q281=\"\",\"\",'800111a - Nota. Detalle de CxC.'!Q281)","v":""},{"$f":"IF('800111a - Nota. Detalle de CxC.'!Q282=\"\",\"\",'800111a - Nota. Detalle de CxC.'!Q282)","v":""},{"$f":"IF('800111a - Nota. Detalle de CxC.'!Q283=\"\",\"\",'800111a - Nota. Detalle de CxC.'!Q283)","v":""},{"$f":"IF('800111a - Nota. Detalle de CxC.'!Q284=\"\",\"\",'800111a - Nota. Detalle de CxC.'!Q284)","v":""},{"$f":"IF('800111a - Nota. Detalle de CxC.'!Q285=\"\",\"\",'800111a - Nota. Detalle de CxC.'!Q285)","v":""},{"$f":"IF('800111a - Nota. Detalle de CxC.'!Q286=\"\",\"\",'800111a - Nota. Detalle de CxC.'!Q286)","v":""},{"$f":"IF('800111a - Nota. Detalle de CxC.'!Q287=\"\",\"\",'800111a - Nota. Detalle de CxC.'!Q287)","v":""},{"$f":"IF('800111a - Nota. Detalle de CxC.'!Q288=\"\",\"\",'800111a - Nota. Detalle de CxC.'!Q288)","v":""},{"$f":"IF('800111a - Nota. Detalle de CxC.'!Q289=\"\",\"\",'800111a - Nota. Detalle de CxC.'!Q289)","v":""},{"$f":"IF('800111a - Nota. Detalle de CxC.'!Q290=\"\",\"\",'800111a - Nota. Detalle de CxC.'!Q290)","v":""},{"$f":"IF('800111a - Nota. Detalle de CxC.'!Q291=\"\",\"\",'800111a - Nota. Detalle de CxC.'!Q291)","v":""},{"$f":"IF('800111a - Nota. Detalle de CxC.'!Q292=\"\",\"\",'800111a - Nota. Detalle de CxC.'!Q292)","v":0},null,{"$f":"IF('800111a - Nota. Detalle de CxC.'!Q294=\"\",\"\",'800111a - Nota. Detalle de CxC.'!Q294)","v":""},{"$f":"IF('800111a - Nota. Detalle de CxC.'!Q295=\"\",\"\",'800111a - Nota. Detalle de CxC.'!Q295)","v":""},{"$f":"IF('800111a - Nota. Detalle de CxC.'!Q296=\"\",\"\",'800111a - Nota. Detalle de CxC.'!Q296)","v":""},{"$f":"IF('800111a - Nota. Detalle de CxC.'!Q297=\"\",\"\",'800111a - Nota. Detalle de CxC.'!Q297)","v":""},{"$f":"IF('800111a - Nota. Detalle de CxC.'!Q298=\"\",\"\",'800111a - Nota. Detalle de CxC.'!Q298)","v":""},{"$f":"IF('800111a - Nota. Detalle de CxC.'!Q299=\"\",\"\",'800111a - Nota. Detalle de CxC.'!Q299)","v":""},{"$f":"IF('800111a - Nota. Detalle de CxC.'!Q300=\"\",\"\",'800111a - Nota. Detalle de CxC.'!Q300)","v":""},{"$f":"IF('800111a - Nota. Detalle de CxC.'!Q301=\"\",\"\",'800111a - Nota. Detalle de CxC.'!Q301)","v":""},{"$f":"IF('800111a - Nota. Detalle de CxC.'!Q302=\"\",\"\",'800111a - Nota. Detalle de CxC.'!Q302)","v":""},{"$f":"IF('800111a - Nota. Detalle de CxC.'!Q303=\"\",\"\",'800111a - Nota. Detalle de CxC.'!Q303)","v":""},{"$f":"IF('800111a - Nota. Detalle de CxC.'!Q304=\"\",\"\",'800111a - Nota. Detalle de CxC.'!Q304)","v":""},{"$f":"IF('800111a - Nota. Detalle de CxC.'!Q305=\"\",\"\",'800111a - Nota. Detalle de CxC.'!Q305)","v":""},{"$f":"IF('800111a - Nota. Detalle de CxC.'!Q306=\"\",\"\",'800111a - Nota. Detalle de CxC.'!Q306)","v":""},{"$f":"IF('800111a - Nota. Detalle de CxC.'!Q307=\"\",\"\",'800111a - Nota. Detalle de CxC.'!Q307)","v":""},{"$f":"IF('800111a - Nota. Detalle de CxC.'!Q308=\"\",\"\",'800111a - Nota. Detalle de CxC.'!Q308)","v":""},{"$f":"IF('800111a - Nota. Detalle de CxC.'!Q309=\"\",\"\",'800111a - Nota. Detalle de CxC.'!Q309)","v":""},{"$f":"IF('800111a - Nota. Detalle de CxC.'!Q310=\"\",\"\",'800111a - Nota. Detalle de CxC.'!Q310)","v":""},{"$f":"IF('800111a - Nota. Detalle de CxC.'!Q311=\"\",\"\",'800111a - Nota. Detalle de CxC.'!Q311)","v":""},{"$f":"IF('800111a - Nota. Detalle de CxC.'!Q312=\"\",\"\",'800111a - Nota. Detalle de CxC.'!Q312)","v":""},{"$f":"IF('800111a - Nota. Detalle de CxC.'!Q313=\"\",\"\",'800111a - Nota. Detalle de CxC.'!Q313)","v":""},{"$f":"IF('800111a - Nota. Detalle de CxC.'!Q314=\"\",\"\",'800111a - Nota. Detalle de CxC.'!Q314)","v":""},{"$f":"IF('800111a - Nota. Detalle de CxC.'!Q315=\"\",\"\",'800111a - Nota. Detalle de CxC.'!Q315)","v":""},{"$f":"IF('800111a - Nota. Detalle de CxC.'!Q316=\"\",\"\",'800111a - Nota. Detalle de CxC.'!Q316)","v":""},{"$f":"IF('800111a - Nota. Detalle de CxC.'!Q317=\"\",\"\",'800111a - Nota. Detalle de CxC.'!Q317)","v":""},{"$f":"IF('800111a - Nota. Detalle de CxC.'!Q318=\"\",\"\",'800111a - Nota. Detalle de CxC.'!Q318)","v":""},{"$f":"IF('800111a - Nota. Detalle de CxC.'!Q319=\"\",\"\",'800111a - Nota. Detalle de CxC.'!Q319)","v":""},{"$f":"IF('800111a - Nota. Detalle de CxC.'!Q320=\"\",\"\",'800111a - Nota. Detalle de CxC.'!Q320)","v":""},{"$f":"IF('800111a - Nota. Detalle de CxC.'!Q321=\"\",\"\",'800111a - Nota. Detalle de CxC.'!Q321)","v":""},{"$f":"IF('800111a - Nota. Detalle de CxC.'!Q322=\"\",\"\",'800111a - Nota. Detalle de CxC.'!Q322)","v":""},{"$f":"IF('800111a - Nota. Detalle de CxC.'!Q323=\"\",\"\",'800111a - Nota. Detalle de CxC.'!Q323)","v":""},{"$f":"IF('800111a - Nota. Detalle de CxC.'!Q324=\"\",\"\",'800111a - Nota. Detalle de CxC.'!Q324)","v":""},{"$f":"IF('800111a - Nota. Detalle de CxC.'!Q325=\"\",\"\",'800111a - Nota. Detalle de CxC.'!Q325)","v":""},{"$f":"IF('800111a - Nota. Detalle de CxC.'!Q326=\"\",\"\",'800111a - Nota. Detalle de CxC.'!Q326)","v":""},{"$f":"IF('800111a - Nota. Detalle de CxC.'!Q327=\"\",\"\",'800111a - Nota. Detalle de CxC.'!Q327)","v":""},{"$f":"IF('800111a - Nota. Detalle de CxC.'!Q328=\"\",\"\",'800111a - Nota. Detalle de CxC.'!Q328)","v":""},{"$f":"IF('800111a - Nota. Detalle de CxC.'!Q329=\"\",\"\",'800111a - Nota. Detalle de CxC.'!Q329)","v":""},{"$f":"IF('800111a - Nota. Detalle de CxC.'!Q330=\"\",\"\",'800111a - Nota. Detalle de CxC.'!Q330)","v":""},{"$f":"IF('800111a - Nota. Detalle de CxC.'!Q331=\"\",\"\",'800111a - Nota. Detalle de CxC.'!Q331)","v":""},{"$f":"IF('800111a - Nota. Detalle de CxC.'!Q332=\"\",\"\",'800111a - Nota. Detalle de CxC.'!Q332)","v":""},{"$f":"IF('800111a - Nota. Detalle de CxC.'!Q333=\"\",\"\",'800111a - Nota. Detalle de CxC.'!Q333)","v":""},{"$f":"IF('800111a - Nota. Detalle de CxC.'!Q334=\"\",\"\",'800111a - Nota. Detalle de CxC.'!Q334)","v":""},{"$f":"IF('800111a - Nota. Detalle de CxC.'!Q335=\"\",\"\",'800111a - Nota. Detalle de CxC.'!Q335)","v":""},{"$f":"IF('800111a - Nota. Detalle de CxC.'!Q336=\"\",\"\",'800111a - Nota. Detalle de CxC.'!Q336)","v":""},{"$f":"IF('800111a - Nota. Detalle de CxC.'!Q337=\"\",\"\",'800111a - Nota. Detalle de CxC.'!Q337)","v":""},{"$f":"IF('800111a - Nota. Detalle de CxC.'!Q338=\"\",\"\",'800111a - Nota. Detalle de CxC.'!Q338)","v":""},{"$f":"IF('800111a - Nota. Detalle de CxC.'!Q339=\"\",\"\",'800111a - Nota. Detalle de CxC.'!Q339)","v":""},{"$f":"IF('800111a - Nota. Detalle de CxC.'!Q340=\"\",\"\",'800111a - Nota. Detalle de CxC.'!Q340)","v":""},{"$f":"IF('800111a - Nota. Detalle de CxC.'!Q341=\"\",\"\",'800111a - Nota. Detalle de CxC.'!Q341)","v":""},{"$f":"IF('800111a - Nota. Detalle de CxC.'!Q342=\"\",\"\",'800111a - Nota. Detalle de CxC.'!Q342)","v":""},{"$f":"IF('800111a - Nota. Detalle de CxC.'!Q343=\"\",\"\",'800111a - Nota. Detalle de CxC.'!Q343)","v":""},{"$f":"IF('800111a - Nota. Detalle de CxC.'!Q344=\"\",\"\",'800111a - Nota. Detalle de CxC.'!Q344)","v":0},{"$f":"IF('800111a - Nota. Detalle de CxC.'!Q345=\"\",\"\",'800111a - Nota. Detalle de CxC.'!Q345)","v":0},{"$f":"IF('800111a - Nota. Detalle de CxC.'!Q346=\"\",\"\",'800111a - Nota. Detalle de CxC.'!Q346)","v":0}]

{"sheet":"800500 - Lista de Notas","index":17,"n_rows":214,"n_cols":11,"rows_kept":214,"cut":false,"hidden":false,"merged":[[6,4,8,7]]}
[]
[]
[]
[]
[]
[]
[null,null,null,null,"800500 - LISTA DE NOTAS"]
[]
[]
[]
[]
[null,null,null,null,null,1]
[null,null,null,null,null,{"$f":"Periodos!$C$4","v":"2023-12-31"},null,{"$f":"IF(K13=0,\"Formulario 'Lista de notas' Válido\",\"Formulario 'Lista de notas' con \"&K13&\" inconsistencias\")","v":"Formulario 'Lista de notas' con 121 inconsistencias"},null,null,{"$f":"SUM(K14:L134)","v":121}]
[null,null,0,"ifrs-full:DisclosureOfNotesAndOtherExplanatoryInformationExplanatory","Información a revelar sobre notas y otra información explicativa [bloque de texto]",null,null,{"$f":"IF(F14<>\"\",\"CORRECTO\",\"Debe registrar información para '\"&E14&\"'\")","v":"Debe registrar información para 'Información a revelar sobre notas y otra información explicativa [bloque de texto]'"},null,null,{"$f":"IF(H14=\"CORRECTO\",0,1)","v":1}]
[null,null,0,"ifrs-full:DisclosureOfAccountingJudgementsAndEstimatesExplanatory","Información a revelar sobre juicios y estimaciones contables [bloque de texto]",null,null,{"$f":"IF(F15<>\"\",\"CORRECTO\",\"Debe registrar información para '\"&E15&\"'\")","v":"Debe registrar información para 'Información a revelar sobre juicios y estimaciones contables [bloque de texto]'"},null,null,{"$f":"IF(H15=\"CORRECTO\",0,1)","v":1}]
[null,null,0,"ifrs-full:DisclosureOfAccruedExpensesAndOtherLiabilitiesExplanatory","Información a revelar sobre gastos acumulados (devengados) y otros pasivos [bloque de texto]",null,null,"Debe registrar información para 'Información a revelar sobre gastos acumulados (devengados) y otros pasivos [bloque de texto]'",null,null,1]
[null,null,0,"ifrs-full:DisclosureOfAllowanceForCreditLossesExplanatory","Información a revelar sobre correcciones de valor por pérdidas crediticias [bloque de texto]",null,null,"Debe registrar información para 'Información a revelar sobre correcciones de valor por pérdidas crediticias [bloque de texto]'",null,null,1]
[null,null,0,"ifrs-full:DisclosureOfSignificantInvestmentsInAssociatesExplanatory","Información a revelar sobre asociadas [bloque de texto]",null,null,"Debe registrar información para 'Información a revelar sobre asociadas [bloque de texto]'",null,null,1]
[null,null,0,"ifrs-full:DisclosureOfAuditorsRemunerationExplanatory","Información a revelar sobre remuneración de los auditores [bloque de texto]",null,null,"Debe registrar información para 'Información a revelar sobre remuneración de los auditores [bloque de texto]'",null,null,1]
[null,null,0,"ifrs-full:DisclosureOfAuthorisationOfFinancialStatementsExplanatory","Información a revelar sobre la autorización de los estados financieros [bloque de texto]",null,null,"Debe registrar información para 'Información a revelar sobre la autorización de los estados financieros [bloque de texto]'",null,null,1]
[null,null,0,"ifrs-full:DisclosureOfAvailableforsaleAssetsExplanatory","información a revelar sobre activos financieros disponibles para la venta [bloque de texto]",null,null,"Debe registrar información para 'información a revelar sobre activos financieros disponibles para la venta [bloque de texto]'",null,null,1]
[null,null,0,"ifrs-full:DisclosureOfBasisOfConsolidationExplanatory","Información a revelar sobre criterios de consolidación [bloque de texto]",null,null,"Debe registrar información para 'Información a revelar sobre criterios de consolidación [bloque de texto]'",null,null,1]
[null,null,0,"ifrs-full:DisclosureOfBasisOfPreparationOfFinancialStatementsExplanatory","Información a revelar sobre criterios de elaboración de los estados financieros [bloque de texto]",null,null,"Debe registrar información para 'Información a revelar sobre criterios de elaboración de los estados financieros [bloque de texto]'",null,null,1]
[null,null,0,"ifrs-full:DisclosureOfBorrowingsExplanatory","Información a revelar sobre préstamos [bloque de texto]",null,null,"Debe registrar información para 'Información a revelar sobre préstamos [bloque de texto]'",null,null,1]
[null,null,0,"ifrs-full:DisclosureOfBusinessCombinationsExplanatory","Información a revelar sobre combinaciones de negocios [bloque de texto]",null,null,"Debe registrar información para 'Información a revelar sobre combinaciones de negocios [bloque de texto]'",null,null,1]
[null,null,0,"ifrs-full:DisclosureOfCashAndBankBalancesAtCentralBanksExplanatory","Información a revelar sobre saldos bancarios y de efectivo en bancos centrales [bloque de texto]",null,null,"Debe registrar información para 'Información a revelar sobre saldos bancarios y de efectivo en bancos centrales [bloque de texto]'",null,null,1]
[null,null,0,"ifrs-full:DisclosureOfCashAndCashEquivalentsExplanatory","Información a revelar sobre efectivo y equivalentes al efectivo [bloque de texto]",null,null,"Debe registrar información para 'Información a revelar sobre efectivo y equivalentes al efectivo [bloque de texto]'",null,null,1]
[null,null,0,"ifrs-full:DisclosureOfCashFlowStatementExplanatory","Información a revelar sobre el estado de flujos de efectivo [bloque de texto]",null,null,"Debe registrar información para 'Información a revelar sobre el estado de flujos de efectivo [bloque de texto]'",null,null,1]
[null,null,0,"ifrs-full:DisclosureOfChangesInAccountingPoliciesAccountingEstimatesAndErrorsExplanatory","Información a revelar sobre cambios en políticas contables, estimaciones contables y errores [bloque de texto]",null,null,"Debe registrar información para 'Información a revelar sobre cambios en políticas contables, estimaciones contables y errores [bloque de texto]'",null,null,1]
[null,null,0,"ifrs-full:DisclosureOfCollateralExplanatory","Información a revelar sobre garantías colaterales [bloque de texto]",null,null,"Debe registrar información para 'Información a revelar sobre garantías colaterales [bloque de texto]'",null,null,1]
[null,null,0,"ifrs-full:DisclosureOfClaimsAndBenefitsPaidExplanatory","Información a revelar sobre reclamaciones y beneficios pagados [bloque de texto]",null,null,"Debe registrar información para 'Información a revelar sobre reclamaciones y beneficios pagados [bloque de texto]'",null,null,1]
[null,null,0,"ifrs-full:DisclosureOfCommitmentsAndContingentLiabilitiesExplanatory","Información a revelar sobre compromisos y pasivos contingentes [bloque de texto]",null,null,"Debe registrar información para 'Información a revelar sobre compromisos y pasivos contingentes [bloque de texto]'",null,null,1]
[null,null,0,"ifrs-full:DisclosureOfCostOfSalesExplanatory","Información a revelar sobre costos de ventas [bloque de texto]",null,null,"Debe registrar información para 'Información a revelar sobre costos de ventas [bloque de texto]'",null,null,1]
[null,null,0,"ifrs-full:DisclosureOfCreditRiskExplanatory","Información a revelar sobre riesgo crediticio [bloque de texto]",null,null,"Debe registrar información para 'Información a revelar sobre riesgo crediticio [bloque de texto]'",null,null,1]
[null,null,0,"ifrs-full:DisclosureOfDebtSecuritiesExplanatory","Información a revelar sobre instrumentos de deuda [bloque de texto]",null,null,"Debe registrar información para 'Información a revelar sobre instrumentos de deuda [bloque de texto]'",null,null,1]
[null,null,0,"ifrs-full:DisclosureOfDeferredAcquisitionCostsArisingFromInsuranceContractsExplanatory","Información a revelar sobre costos de adquisición diferidos que surgen de contratos de seguro [bloque de texto]",null,null,"Debe registrar información para 'Información a revelar sobre costos de adquisición diferidos que surgen de contratos de seguro [bloque de texto]'",null,null,1]
[null,null,0,"ifrs-full:DisclosureOfDeferredIncomeExplanatory","Información a revelar sobre ingresos diferidos [bloque de texto]",null,null,"Debe registrar información para 'Información a revelar sobre ingresos diferidos [bloque de texto]'",null,null,1]
[null,null,0,"ifrs-full:DisclosureOfDeferredTaxesExplanatory","Información a revelar sobre impuestos diferidos [bloque de texto]",null,null,"Debe registrar información para 'Información a revelar sobre impuestos diferidos [bloque de texto]'",null,null,1]
[null,null,0,"ifrs-full:DisclosureOfDepositsFromBanksExplanatory","Información a revelar sobre depósitos de bancos [bloque de texto]",null,null,"Debe registrar información para 'Información a revelar sobre depósitos de bancos [bloque de texto]'",null,null,1]
[null,null,0,"ifrs-full:DisclosureOfDepositsFromCustomersExplanatory","Información a revelar sobre depósitos de clientes [bloque de texto]",null,null,"Debe registrar información para 'Información a revelar sobre depósitos de clientes [bloque de texto]'",null,null,1]
[null,null,0,"ifrs-full:DisclosureOfDepreciationAndAmortisationExpenseExplanatory","Información a revelar sobre gastos por depreciación y amortización [bloque de texto]",null,null,"Debe registrar información para 'Información a revelar sobre gastos por depreciación y amortización [bloque de texto]'",null,null,1]
[null,null,0,"ifrs-full:DisclosureOfDerivativeFinancialInstrumentsExplanatory","Información a revelar sobre instrumentos financieros derivados [bloque de texto]",null,null,"Debe registrar información para 'Información a revelar sobre instrumentos financieros derivados [bloque de texto]'",null,null,1]
[null,null,0,"ifrs-full:DisclosureOfDiscontinuedOperationsExplanatory","Información a revelar sobre operaciones discontinuadas [bloque de texto]",null,null,"Debe registrar información para 'Información a revelar sobre operaciones discontinuadas [bloque de texto]'",null,null,1]
[null,null,0,"ifrs-full:DisclosureOfDividendsExplanatory","Información a revelar sobre dividendos [bloque de texto]",null,null,"Debe registrar información para 'Información a revelar sobre dividendos [bloque de texto]'",null,null,1]
[null,null,0,"ifrs-full:DisclosureOfEarningsPerShareExplanatory","Información a revelar sobre ganancias por acción [bloque de texto]",null,null,"Debe registrar información para 'Información a revelar sobre ganancias por acción [bloque de texto]'",null,null,1]
[null,null,0,"ifrs-full:DisclosureOfEffectOfChangesInForeignExchangeRatesExplanatory","Información a revelar sobre el efecto de las variaciones en las tasas de cambio de la moneda extranjera [bloque de texto]",null,null,"Debe registrar información para 'Información a revelar sobre el efecto de las variaciones en las tasas de cambio de la moneda extranjera [bloque de texto]'",null,null,1]
[null,null,0,"ifrs-full:DisclosureOfEmployeeBenefitsExplanatory","Información a revelar sobre beneficios a los empleados [bloque de texto]",null,null,"Debe registrar información para 'Información a revelar sobre beneficios a los empleados [bloque de texto]'",null,null,1]
[null,null,0,"ifrs-full:DisclosureOfEntitysReportableSegmentsExplanatory","Información a revelar sobre los segmentos de operación de la entidad [bloque de texto]",null,null,"Debe registrar información para 'Información a revelar sobre los segmentos de operación de la entidad [bloque de texto]'",null,null,1]
[null,null,0,"ifrs-full:DisclosureOfEventsAfterReportingPeriodExplanatory","Información a revelar sobre hechos ocurridos después del periodo sobre el que se informa [bloque de texto]",null,null,"Debe registrar información para 'Información a revelar sobre hechos ocurridos después del periodo sobre el que se informa [bloque de texto]'",null,null,1]
[null,null,0,"ifrs-full:DescriptionOfNatureOfNonadjustingEventAfterReportingPeriod","Descripción de la naturaleza de hechos ocurridos después del periodo sobre el que se informa que no implican ajuste",null,null,"Debe registrar información para 'Descripción de la naturaleza de hechos ocurridos después del periodo sobre el que se informa que no implican ajuste'",null,null,1]
[null,null,0,"ifrs-full:ExplanationOfFinancialEffectOfNonadjustingEventAfterReportingPeriod","Explicación del efecto financiero de hechos ocurridos después del periodo sobre el que se informa que no implican ajuste [bloque de texto]",null,null,"Debe registrar información para 'Explicación del efecto financiero de hechos ocurridos después del periodo sobre el que se informa que no implican ajuste [bloque de texto]'",null,null,1]
[null,null,0,"ifrs-full:DisclosureOfExpensesExplanatory","Información a revelar sobre gastos [bloque de texto]",null,null,"Debe registrar información para 'Información a revelar sobre gastos [bloque de texto]'",null,null,1]
[null,null,0,"ifrs-full:DisclosureOfExpensesByNatureExplanatory","Información a revelar sobre gastos por naturaleza [bloque de texto]",null,null,"Debe registrar información para 'Información a revelar sobre gastos por naturaleza [bloque de texto]'",null,null,1]
[null,null,0,"ifrs-full:DisclosureOfExplorationAndEvaluationAssetsExplanatory","Información a revelar sobre activos para exploración y evaluación [bloque de texto]",null,null,"Debe registrar información para 'Información a revelar sobre activos para exploración y evaluación [bloque de texto]'",null,null,1]
[null,null,0,"ifrs-full:DisclosureOfFairValueMeasurementExplanatory","Información a revelar sobre medición del valor razonable [bloque de texto]",null,null,{"$f":"IF(F55<>\"\",\"CORRECTO\",\"Debe registrar información para '\"&E55&\"'\")","v":"Debe registrar información para 'Información a revelar sobre medición del valor razonable [bloque de texto]'"},null,null,{"$f":"IF(H55=\"CORRECTO\",0,1)","v":1}]
[null,null,0,"ifrs-full:DisclosureOfFairValueOfFinancialInstrumentsExplanatory","Información a revelar sobre el valor razonable de instrumentos financieros [bloque de texto]",null,null,"Debe registrar información para 'Información a revelar sobre el valor razonable de instrumentos financieros [bloque de texto]'",null,null,1]
[null,null,0,"ifrs-full:DisclosureOfFeeAndCommissionIncomeExpenseExplanatory","Información a revelar sobre ingresos (gastos) por primas y comisiones [bloque de texto]",null,null,"Debe registrar información para 'Información a revelar sobre ingresos (gastos) por primas y comisiones [bloque de texto]'",null,null,1]
[null,null,0,"ifrs-full:DisclosureOfFinanceCostExplanatory","Información a revelar sobre costos financieros [bloque de texto]",null,null,"Debe registrar información para 'Información a revelar sobre costos financieros [bloque de texto]'",null,null,1]
[null,null,0,"ifrs-full:DisclosureOfFinanceIncomeExpenseExplanatory","Información a revelar sobre ingresos (costos) financieros [bloque de texto]",null,null,"Debe registrar información para 'Información a revelar sobre ingresos (costos) financieros [bloque de texto]'",null,null,1]
[null,null,0,"ifrs-full:DisclosureOfFinanceIncomeExplanatory","Información a revelar sobre ingresos financieros [bloque de texto]",null,null,"Debe registrar información para 'Información a revelar sobre ingresos financieros [bloque de texto]'",null,null,1]
[null,null,0,"ifrs-full:DisclosureOfFinancialAssetsHeldForTradingExplanatory","Información a revelar sobre activos financieros mantenidos para negociar [bloque de texto]",null,null,"Debe registrar información para 'Información a revelar sobre activos financieros mantenidos para negociar [bloque de texto]'",null,null,1]
[null,null,0,"ifrs-full:DisclosureOfFinancialInstrumentsExplanatory","Información a revelar sobre instrumentos financieros [bloque de texto]",null,null,"Debe registrar información para 'Información a revelar sobre instrumentos financieros [bloque de texto]'",null,null,1]
[null,null,0,"ifrs-full:DisclosureOfFinancialInstrumentsAtFairValueThroughProfitOrLossExplanatory","Información a revelar sobre instrumentos financieros a valor razonable con cambios en resultados [bloque de texto]",null,null,"Debe registrar información para 'Información a revelar sobre instrumentos financieros a valor razonable con cambios en resultados [bloque de texto]'",null,null,1]
[null,null,0,"ifrs-full:DisclosureOfFinancialInstrumentsDesignatedAtFairValueThroughProfitOrLossExplanatory","Información a revelar sobre instrumentos financieros designados como a valor razonable con cambios en resultados [bloque de texto]",null,null,"Debe registrar información para 'Información a revelar sobre instrumentos financieros designados como a valor razonable con cambios en resultados [bloque de texto]'",null,null,1]
[null,null,0,"ifrs-full:DisclosureOfFinancialInstrumentsHeldForTradingExplanatory","Información a revelar sobre instrumentos financieros mantenidos para negociar [bloque de texto]",null,null,"Debe registrar información para 'Información a revelar sobre instrumentos financieros mantenidos para negociar [bloque de texto]'",null,null,1]
[null,null,0,"ifrs-full:DisclosureOfFinancialLiabilitiesHeldForTradingExplanatory","Información a revelar sobre pasivos financieros mantenidos para negociar [bloque de texto]",null,null,"Debe registrar información para 'Información a revelar sobre pasivos financieros mantenidos para negociar [bloque de texto]'",null,null,1]
[null,null,0,"ifrs-full:DisclosureOfFinancialRiskManagementExplanatory","Información a revelar sobre gestión del riesgo financiero [bloque de texto]",null,null,"Debe registrar información para 'Información a revelar sobre gestión del riesgo financiero [bloque de texto]'",null,null,1]
[null,null,0,"ifrs-full:DisclosureOfFirstTimeAdoptionExplanatory","Información a revelar sobre la adopción por primera vez de las NIIF [bloque de texto]",null,null,"Debe registrar información para 'Información a revelar sobre la adopción por primera vez de las NIIF [bloque de texto]'",null,null,1]
[null,null,0,"ifrs-full:DisclosureOfGeneralAndAdministrativeExpenseExplanatory","Información a revelar sobre gastos generales y administrativos [bloque de texto]",null,null,"Debe registrar información para 'Información a revelar sobre gastos generales y administrativos [bloque de texto]'",null,null,1]
[null,null,0,"ifrs-full:DisclosureOfGeneralInformationAboutFinancialStatementsExplanatory","Información a revelar sobre información general sobre los estados financieros [bloque de texto]",null,null,"Debe registrar información para 'Información a revelar sobre información general sobre los estados financieros [bloque de texto]'",null,null,1]
[null,null,0,"ifrs-full:DisclosureOfGoingConcernExplanatory","Información a revelar sobre la hipótesis de negocio en marcha [bloque de texto]",null,null,"Debe registrar información para 'Información a revelar sobre la hipótesis de negocio en marcha [bloque de texto]'",null,null,1]
[null,null,0,"ifrs-full:DisclosureOfGoodwillExplanatory","Información a revelar sobre la plusvalía [bloque de texto]",null,null,"Debe registrar información para 'Información a revelar sobre la plusvalía [bloque de texto]'",null,null,1]
[null,null,0,"ifrs-full:DisclosureOfGovernmentGrantsExplanatory","Información a revelar sobre subvenciones del gobierno [bloque de texto]",null,null,"Debe registrar información para 'Información a revelar sobre subvenciones del gobierno [bloque de texto]'",null,null,1]
[null,null,0,"ifrs-full:DisclosureOfImpairmentOfAssetsExplanatory","Información a revelar sobre deterioro de valor de activos [bloque de texto]",null,null,"Debe registrar información para 'Información a revelar sobre deterioro de valor de activos [bloque de texto]'",null,null,1]
[null,null,0,"ifrs-full:DisclosureOfIncomeTaxExplanatory","Información a revelar sobre impuestos a las ganancias [bloque de texto]",null,null,"Debe registrar información para 'Información a revelar sobre impuestos a las ganancias [bloque de texto]'",null,null,1]
[null,null,0,"ifrs-full:DisclosureOfInformationAboutEmployeesExplanatory","Información a revelar sobre empleados [bloque de texto]",null,null,"Debe registrar información para 'Información a revelar sobre empleados [bloque de texto]'",null,null,1]
[null,null,0,"ifrs-full:DisclosureOfInformationAboutKeyManagementPersonnelExplanatory","Información a revelar sobre personal clave de la gerencia [bloque de texto]",null,null,"Debe registrar información para 'Información a revelar sobre personal clave de la gerencia [bloque de texto]'",null,null,1]
[null,null,0,"ifrs-full:DisclosureOfInsuranceContractsExplanatory","Información a revelar de contratos de seguro [bloque de texto]",null,null,"Debe registrar información para 'Información a revelar de contratos de seguro [bloque de texto]'",null,null,1]
[null,null,0,"ifrs-full:DisclosureOfInsurancePremiumRevenueExplanatory","Información a revelar sobre ingresos ordinarios por primas de seguro [bloque de texto]",null,null,"Debe registrar información para 'Información a revelar sobre ingresos ordinarios por primas de seguro [bloque de texto]'",null,null,1]
[null,null,0,"ifrs-full:DisclosureOfIntangibleAssetsExplanatory","Información a revelar sobre activos intangibles [bloque de texto]",null,null,"Debe registrar información para 'Información a revelar sobre activos intangibles [bloque de texto]'",null,null,1]
[null,null,0,"ifrs-full:DisclosureOfIntangibleAssetsAndGoodwillExplanatory","Información a revelar sobre activos intangibles y plusvalía [bloque de texto]",null,null,"Debe registrar información para 'Información a revelar sobre activos intangibles y plusvalía [bloque de texto]'",null,null,1]
[null,null,0,"ifrs-full:DisclosureOfInterestExpenseExplanatory","Información a revelar sobre gastos por intereses [bloque de texto]",null,null,"Debe registrar información para 'Información a revelar sobre gastos por intereses [bloque de texto]'",null,null,1]
[null,null,0,"ifrs-full:DisclosureOfInterestIncomeExplanatory","Información a revelar sobre ingresos por intereses [bloque de texto]",null,null,"Debe registrar información para 'Información a revelar sobre ingresos por intereses [bloque de texto]'",null,null,1]
[null,null,0,"ifrs-full:DisclosureOfInterestIncomeExpenseExplanatory","Información a revelar sobre ingresos (gastos) por intereses [bloque de texto]",null,null,"Debe registrar información para 'Información a revelar sobre ingresos (gastos) por intereses [bloque de texto]'",null,null,1]
[null,null,0,"ifrs-full:DisclosureOfInventoriesExplanatory","Información a revelar sobre inventarios [bloque de texto]",null,null,"Debe registrar información para 'Información a revelar sobre inventarios [bloque de texto]'",null,null,1]
[null,null,0,"ifrs-full:DisclosureOfInvestmentContractsLiabilitiesExplanatory","Información a revelar sobre pasivos por contratos de inversión [bloque de texto]",null,null,"Debe registrar información para 'Información a revelar sobre pasivos por contratos de inversión [bloque de texto]'",null,null,1]
[null,null,0,"ifrs-full:DisclosureOfInvestmentPropertyExplanatory","Información a revelar sobre propiedades de inversión [bloque de texto]",null,null,"Debe registrar información para 'Información a revelar sobre propiedades de inversión [bloque de texto]'",null,null,1]
[null,null,0,"ifrs-full:DisclosureOfInvestmentsAccountedForUsingEquityMethodExplanatory","Información a revelar sobre inversiones contabilizadas utilizando el método de la participación [bloque de texto]",null,null,"Debe registrar información para 'Información a revelar sobre inversiones contabilizadas utilizando el método de la participación [bloque de texto]'",null,null,1]
[null,null,0,"ifrs-full:DisclosureOfInvestmentsOtherThanInvestmentsAccountedForUsingEquityMethodExplanatory","Información a revelar sobre inversiones distintas de las contabilizadas utilizando el método de la participación [bloque de texto]",null,null,"Debe registrar información para 'Información a revelar sobre inversiones distintas de las contabilizadas utilizando el método de la participación [bloque de texto]'",null,null,1]
[null,null,0,"ifrs-full:DisclosureOfIssuedCapitalExplanatory","Información a revelar sobre capital emitido [bloque de texto]",null,null,"Debe registrar información para 'Información a revelar sobre capital emitido [bloque de texto]'",null,null,1]
[null,null,0,"ifrs-full:DisclosureOfJointVenturesExplanatory","Información a revelar sobre negocios conjuntos [bloque de texto]",null,null,"Debe registrar información para 'Información a revelar sobre negocios conjuntos [bloque de texto]'",null,null,1]
[null,null,0,"ifrs-full:DisclosureOfLeasePrepaymentsExplanatory","Información a revelar anticipos por arrendamientos [bloque de texto]",null,null,"Debe registrar información para 'Información a revelar anticipos por arrendamientos [bloque de texto]'",null,null,1]
[null,null,0,"ifrs-full:DisclosureOfLeasesExplanatory","Información a revelar sobre arrendamientos [bloque de texto]",null,null,"Debe registrar información para 'Información a revelar sobre arrendamientos [bloque de texto]'",null,null,1]
[null,null,0,"ifrs-full:DisclosureOfLiquidityRiskExplanatory","Información a revelar sobre riesgo de liquidez [bloque de texto]",null,null,"Debe registrar información para 'Información a revelar sobre riesgo de liquidez [bloque de texto]'",null,null,1]
[null,null,0,"ifrs-full:DisclosureOfLoansAndAdvancesToBanksExplanatory","Información a revelar sobre préstamos y anticipos a bancos [bloque de texto]",null,null,"Debe registrar información para 'Información a revelar sobre préstamos y anticipos a bancos [bloque de texto]'",null,null,1]
[null,null,0,"ifrs-full:DisclosureOfLoansAndAdvancesToCustomersExplanatory","Información a revelar sobre préstamos y anticipos a clientes [bloque de texto]",null,null,"Debe registrar información para 'Información a revelar sobre préstamos y anticipos a clientes [bloque de texto]'",null,null,1]
[null,null,0,"ifrs-full:DisclosureOfMarketRiskExplanatory","Información a revelar sobre riesgo de mercado [bloque de texto]",null,null,"Debe registrar información para 'Información a revelar sobre riesgo de mercado [bloque de texto]'",null,null,1]
[null,null,0,"ifrs-full:DisclosureOfNetAssetValueAttributableToUnitholdersExplanatory","Información a revelar sobre el valor de los activos netos atribuibles a los tenedores de las unidades de inversión [bloque de texto]",null,null,"Debe registrar información para 'Información a revelar sobre el valor de los activos netos atribuibles a los tenedores de las unidades de inversión [bloque de texto]'",null,null,1]
[null,null,0,"ifrs-full:DisclosureOfNoncontrollingInterestsExplanatory","Información a revelar sobre participaciones no controladoras [bloque de texto]",null,null,"Debe registrar información para 'Información a revelar sobre participaciones no controladoras [bloque de texto]'",null,null,1]
[null,null,0,"ifrs-full:DisclosureOfNoncurrentAssetsHeldForSaleAndDiscontinuedOperationsExplanatory","Información a revelar sobre activos no corrientes mantenidos para la venta y operaciones discontinuadas [bloque de texto]",null,null,"Debe registrar información para 'Información a revelar sobre activos no corrientes mantenidos para la venta y operaciones discontinuadas [bloque de texto]'",null,null,1]
[null,null,0,"ifrs-full:DisclosureOfNoncurrentAssetsOrDisposalGroupsClassifiedAsHeldForSaleExplanatory","Información a revelar sobre activos no corrientes o grupo de activos para su disposición clasificados como mantenidos para la venta [bloque de texto]",null,null,"Debe registrar información para 'Información a revelar sobre activos no corrientes o grupo de activos para su disposición clasificados como mantenidos para la venta [bloque de texto]'",null,null,1]
[null,null,0,"ifrs-full:DisclosureOfObjectivesPoliciesAndProcessesForManagingCapitalExplanatory","Información a revelar sobre objetivos, políticas y procesos para la gestión del capital [bloque de texto]",null,null,"Debe registrar información para 'Información a revelar sobre objetivos, políticas y procesos para la gestión del capital [bloque de texto]'",null,null,1]
[null,null,0,"ifrs-full:DisclosureOfOtherAssetsExplanatory","Información a revelar sobre otros activos [bloque de texto]",null,null,"Debe registrar información para 'Información a revelar sobre otros activos [bloque de texto]'",null,null,1]
[null,null,0,"ifrs-full:DisclosureOfOtherCurrentAssetsExplanatory","Información a revelar sobre otros activos corrientes [bloque de texto]",null,null,"Debe registrar información para 'Información a revelar sobre otros activos corrientes [bloque de texto]'",null,null,1]
[null,null,0,"ifrs-full:DisclosureOfOtherCurrentLiabilitiesExplanatory","Información a revelar sobre otros pasivos corrientes [bloque de texto]",null,null,"Debe registrar información para 'Información a revelar sobre otros pasivos corrientes [bloque de texto]'",null,null,1]
[null,null,0,"ifrs-full:DisclosureOfOtherLiabilitiesExplanatory","Información a revelar sobre otros pasivos [bloque de texto]",null,null,"Debe registrar información para 'Información a revelar sobre otros pasivos [bloque de texto]'",null,null,1]
[null,null,0,"ifrs-full:DisclosureOfOtherNoncurrentAssetsExplanatory","Información a revelar sobre otros activos no corrientes [bloque de texto]",null,null,"Debe registrar información para 'Información a revelar sobre otros activos no corrientes [bloque de texto]'",null,null,1]
[null,null,0,"ifrs-full:DisclosureOfOtherNoncurrentLiabilitiesExplanatory","Información a revelar sobre otros pasivos no corrientes [bloque de texto]",null,null,"Debe registrar información para 'Información a revelar sobre otros pasivos no corrientes [bloque de texto]'",null,null,1]
[null,null,0,"ifrs-full:DisclosureOfOtherOperatingExpenseExplanatory","Información a revelar sobre otros gastos de operación [bloque de texto]",null,null,"Debe registrar información para 'Información a revelar sobre otros gastos de operación [bloque de texto]'",null,null,1]
[null,null,0,"ifrs-full:DisclosureOfOtherOperatingIncomeExpenseExplanatory","Información a revelar sobre otros ingresos (gastos) de operación [bloque de texto]",null,null,"Debe registrar información para 'Información a revelar sobre otros ingresos (gastos) de operación [bloque de texto]'",null,null,1]
[null,null,0,"ifrs-full:DisclosureOfOtherOperatingIncomeExplanatory","Información a revelar sobre otros resultados de operación [bloque de texto]",null,null,"Debe registrar información para 'Información a revelar sobre otros resultados de operación [bloque de texto]'",null,null,1]
[null,null,0,"ifrs-full:DisclosureOfPrepaymentsAndOtherAssetsExplanatory","Información a revelar sobre anticipos y otros activos [bloque de texto]",null,null,"Debe registrar información para 'Información a revelar sobre anticipos y otros activos [bloque de texto]'",null,null,1]
[null,null,0,"ifrs-full:DisclosureOfProfitLossFromOperatingActivitiesExplanatory","Información a revelar sobre ganancias (pérdidas) por actividades de operación [bloque de texto]",null,null,"Debe registrar información para 'Información a revelar sobre ganancias (pérdidas) por actividades de operación [bloque de texto]'",null,null,1]
[null,null,0,"ifrs-full:DisclosureOfPropertyPlantAndEquipmentExplanatory","Información a revelar sobre propiedades, planta y equipo [bloque de texto]",null,null,"Debe registrar información para 'Información a revelar sobre propiedades, planta y equipo [bloque de texto]'",null,null,1]
[null,null,0,"ifrs-full:DisclosureOfProvisionsExplanatory","Información a revelar sobre provisiones [bloque de texto]",null,null,"Debe registrar información para 'Información a revelar sobre provisiones [bloque de texto]'",null,null,1]
[null,null,0,"ifrs-full:DisclosureOfReclassificationOfFinancialInstrumentsExplanatory","Información a revelar sobre la reclasificación de instrumentos financieros [bloque de texto]",null,null,"Debe registrar información para 'Información a revelar sobre la reclasificación de instrumentos financieros [bloque de texto]'",null,null,1]
[null,null,0,"ifrs-full:DisclosureOfReinsuranceExplanatory","Información a revelar sobre reaseguros [bloque de texto]",null,null,"Debe registrar información para 'Información a revelar sobre reaseguros [bloque de texto]'",null,null,1]
[null,null,0,"ifrs-full:DisclosureOfRelatedPartyExplanatory","Información a revelar sobre partes relacionadas [bloque de texto]",null,null,"Debe registrar información para 'Información a revelar sobre partes relacionadas [bloque de texto]'",null,null,1]
[null,null,0,"ifrs-full:DisclosureOfRepurchaseAndReverseRepurchaseAgreementsExplanatory","Información a revelar sobre acuerdos de recompra y de recompra inversa [bloque de texto]",null,null,{"$f":"IF(F119<>\"\",\"CORRECTO\",\"Debe registrar información para '\"&E119&\"'\")","v":"Debe registrar información para 'Información a revelar sobre acuerdos de recompra y de recompra inversa [bloque de texto]'"},null,null,{"$f":"IF(H119=\"CORRECTO\",0,1)","v":1}]
[null,null,0,"ifrs-full:DisclosureOfResearchAndDevelopmentExpenseExplanatory","Información a revelar sobre gastos de investigación y desarrollo [bloque de texto]",null,null,"Debe registrar información para 'Información a revelar sobre gastos de investigación y desarrollo [bloque de texto]'",null,null,1]
[null,null,0,"ifrs-full:DisclosureOfReservesAndOtherEquityInterestExplanatory","Información a revelar sobre reservas dentro de patrimonio [bloque de texto]",null,null,"Debe registrar información para 'Información a revelar sobre reservas dentro de patrimonio [bloque de texto]'",null,null,1]
[null,null,0,"ifrs-full:DisclosureOfRestrictedCashAndCashEquivalentsExplanatory","Información a revelar sobre efectivo y equivalentes al efectivo restringidos [bloque de texto]",null,null,"Debe registrar información para 'Información a revelar sobre efectivo y equivalentes al efectivo restringidos [bloque de texto]'",null,null,1]
[null,null,0,"ifrs-full:DisclosureOfRevenueExplanatory","Información a revelar sobre ingresos de actividades ordinarias [bloque de texto]",null,null,"Debe registrar información para 'Información a revelar sobre ingresos de actividades ordinarias [bloque de texto]'",null,null,1]
[null,null,0,"ifrs-full:DisclosureOfServiceConcessionArrangementsExplanatory","Información a revelar sobre acuerdos de concesión de servicios [bloque de texto]",null,null,"Debe registrar información para 'Información a revelar sobre acuerdos de concesión de servicios [bloque de texto]'",null,null,1]
[null,null,0,"ifrs-full:DisclosureOfShareCapitalReservesAndOtherEquityInterestExplanatory","Información a revelar sobre capital en acciones, reservas y otras participaciones en el patrimonio [bloque de texto]",null,null,"Debe registrar información para 'Información a revelar sobre capital en acciones, reservas y otras participaciones en el patrimonio [bloque de texto]'",null,null,1]
[null,null,0,"ifrs-full:DisclosureOfSharebasedPaymentArrangementsExplanatory","Información a revelar sobre acuerdos con pagos basados en acciones [bloque de texto]",null,null,"Debe registrar información para 'Información a revelar sobre acuerdos con pagos basados en acciones [bloque de texto]'",null,null,1]
[null,null,0,"ifrs-full:DisclosureOfSubordinatedLiabilitiesExplanatory","Información a revelar sobre pasivos subordinados [bloque de texto]",null,null,"Debe registrar información para 'Información a revelar sobre pasivos subordinados [bloque de texto]'",null,null,1]
[null,null,0,"ifrs-full:DisclosureOfSignificantInvestmentsInSubsidiariesExplanatory","Información a revelar sobre subsidiarias [bloque de texto]",null,null,"Debe registrar información para 'Información a revelar sobre subsidiarias [bloque de texto]'",null,null,1]
[null,null,0,"ifrs-full:DisclosureOfSummaryOfSignificantAccountingPoliciesExplanatory","Información a revelar sobre las políticas contables significativas [bloque de texto]",{"$f":"IF('800600 - Lista de Politicas'!F14=\"\",\"\",'800600 - Lista de Politicas'!F14)","v":""},null,"Debe registrar información para 'Información a revelar sobre las políticas contables significativas [bloque de texto]'",null,null,1]
[null,null,0,"ifrs-full:DisclosureOfTaxReceivablesAndPayablesExplanatory","Información a revelar sobre cuentas por cobrar y por pagar por impuestos [bloque de texto]",null,null,"Debe registrar información para 'Información a revelar sobre cuentas por cobrar y por pagar por impuestos [bloque de texto]'",null,null,1]
[null,null,0,"ifrs-full:DisclosureOfTradeAndOtherPayablesExplanatory","Información a revelar sobre acreedores comerciales y otras cuentas por pagar [bloque de texto]",null,null,"Debe registrar información para 'Información a revelar sobre acreedores comerciales y otras cuentas por pagar [bloque de texto]'",null,null,1]
[null,null,0,"ifrs-full:DisclosureOfTradeAndOtherReceivablesExplanatory","Información a revelar sobre deudores comerciales y otras cuentas por cobrar [bloque de texto]",null,null,"Debe registrar información para 'Información a revelar sobre deudores comerciales y otras cuentas por cobrar [bloque de texto]'",null,null,1]
[null,null,0,"ifrs-full:DisclosureOfTradingIncomeExpenseExplanatory","Información a revelar sobre ingresos (gastos) comerciales [bloque de texto]",null,null,"Debe registrar información para 'Información a revelar sobre ingresos (gastos) comerciales [bloque de texto]'",null,null,1]
[null,null,0,"ifrs-full:DisclosureOfTreasurySharesExplanatory","Información a revelar sobre acciones propias [bloque de texto]",null,null,"Debe registrar información para 'Información a revelar sobre acciones propias [bloque de texto]'",null,null,1]
[]
[]
[]
[]
[]
[]
[]
[]
[]
[]
[]
[]
[]
[]
[]
[]
[]
[]
[]
[]
[]
[]
[]
[]
[]
[]
[]
[]
[]
[]
[]
[]
[]
[null,null,null,null,"Información a revelar sobre reservas dentro de patrimonio [bloque de texto]"]
[null,null,null,null,"Información a revelar sobre efectivo y equivalentes al efectivo restringidos [bloque de texto]"]
[null,null,null,null,"Información a revelar sobre ingresos de actividades ordinarias [bloque de texto]"]
[null,null,null,null,"Información a revelar sobre acuerdos de concesión de servicios [bloque de texto]"]
[null,null,null,null,"Información a revelar sobre capital en acciones, reservas y otras participaciones en el patrimonio [bloque de texto]"]
[null,null,null,null,"Información a revelar sobre acuerdos con pagos basados en acciones [bloque de texto]"]
[null,null,null,null,"Información a revelar sobre pasivos subordinados [bloque de texto]"]
[null,null,null,null,"Información a revelar sobre subsidiarias [bloque de texto]"]
[null,null,null,null,"Información a revelar sobre las políticas contables significativas [bloque de texto]"]
[null,null,null,null,"Información a revelar sobre cuentas por cobrar y por pagar por impuestos [bloque de texto]"]
[null,null,null,null,"Información a revelar sobre acreedores comerciales y otras cuentas por pagar [bloque de texto]"]
[null,null,null,null,"Información a revelar sobre deudores comerciales y otras cuentas por cobrar [bloque de texto]"]
[null,null,null,null,"Información a revelar sobre ingresos (gastos) comerciales [bloque de texto]"]
[null,null,null,null,"Información a revelar sobre acciones propias [bloque de texto]"]
[null,null,null,null,"Información a revelar sobre objetivos, políticas y procesos para la gestión del capital [bloque de texto]"]
[null,null,null,null,"Información a revelar sobre otros activos [bloque de texto]"]
[null,null,null,null,"Información a revelar sobre otros activos corrientes [bloque de texto]"]
[null,null,null,null,"Información a revelar sobre otros pasivos corrientes [bloque de texto]"]
[null,null,null,null,"Información a revelar sobre otros pasivos [bloque de texto]"]
[null,null,null,null,"Información a revelar sobre otros activos no corrientes [bloque de texto]"]
[null,null,null,null,"Información a revelar sobre otros pasivos no corrientes [bloque de texto]"]
[null,null,null,null,"Información a revelar sobre otros gastos de operación [bloque de texto]"]
[null,null,null,null,"Información a revelar sobre otros ingresos (gastos) de operación [bloque de texto]"]
[null,null,null,null,"Información a revelar sobre otros resultados de operación [bloque de texto]"]
[null,null,null,null,"Información a revelar sobre anticipos y otros activos [bloque de texto]"]
[null,null,null,null,"Información a revelar sobre ganancias (pérdidas) por actividades de operación [bloque de texto]"]
[null,null,null,null,"Información a revelar sobre propiedades, planta y equipo [bloque de texto]"]
[null,null,null,null,"Información a revelar sobre provisiones [bloque de texto]"]
[null,null,null,null,"Información a revelar sobre la reclasificación de instrumentos financieros [bloque de texto]"]
[null,null,null,null,"Información a revelar sobre reaseguros [bloque de texto]"]
[null,null,null,null,"Información a revelar sobre partes relacionadas [bloque de texto]"]
[null,null,null,null,"Información a revelar sobre acuerdos de recompra y de recompra inversa [bloque de texto]"]
[null,null,null,null,"Información a revelar sobre gastos de investigación y desarrollo [bloque de texto]"]
[null,null,null,null,"Información a revelar sobre reservas dentro de patrimonio [bloque de texto]"]
[null,null,null,null,"Información a revelar sobre efectivo y equivalentes al efectivo restringidos [bloque de texto]"]
[null,null,null,null,"Información a revelar sobre ingresos de actividades ordinarias [bloque de texto]"]
[null,null,null,null,"Información a revelar sobre acuerdos de concesión de servicios [bloque de texto]"]
[null,null,null,null,"Información a revelar sobre capital en acciones, reservas y otras participaciones en el patrimonio [bloque de texto]"]
[null,null,null,null,"Información a revelar sobre acuerdos con pagos basados en acciones [bloque de texto]"]
[null,null,null,null,"Información a revelar sobre pasivos subordinados [bloque de texto]"]
[null,null,null,null,"Información a revelar sobre subsidiarias [bloque de texto]"]
[null,null,null,null,"Información a revelar sobre las políticas contables significativas [bloque de texto]"]
[null,null,null,null,"Información a revelar sobre cuentas por cobrar y por pagar por impuestos [bloque de texto]"]
[null,null,null,null,"Información a revelar sobre acreedores comerciales y otras cuentas por pagar [bloque de texto]"]
[null,null,null,null,"Información a revelar sobre deudores comerciales y otras cuentas por cobrar [bloque de texto]"]
[null,null,null,null,"Información a revelar sobre ingresos (gastos) comerciales [bloque de texto]"]
[null,null,null,null,"Información a revelar sobre acciones propias [bloque de texto]"]

{"sheet":"800600 - Lista de Politicas","index":18,"n_rows":84,"n_cols":11,"rows_kept":84,"cut":false,"hidden":false,"merged":[[6,4,8,7]]}
[]
[]
[]
[]
[]
[]
[null,null,null,null,"800600 - LISTA DE POLÍTICAS CONTABLES"]
[]
[]
[]
[]
[null,null,null,null,null,1]
[null,null,null,null,null,{"$f":"Periodos!$C$4","v":"2023-12-31"},null,{"$f":"IF(K13=0,\"Formulario 'Lista de políticas contables' Válido\",\"Formulario 'Lista de políticas contables' con \"&K13&\" inconsistencias\")","v":"Formulario 'Lista de políticas contables' con 71 inconsistencias"},null,null,{"$f":"SUM(K14:L84)","v":71}]
[null,null,0,"ifrs-full:DisclosureOfSummaryOfSignificantAccountingPoliciesExplanatory","Información a revelar sobre las políticas contables significativas [bloque de texto]",null,null,{"$f":"IF(F14<>\"\",\"CORRECTO\",\"Debe registrar información para '\"&E14&\"'\")","v":"Debe registrar información para 'Información a revelar sobre las políticas contables significativas [bloque de texto]'"},null,null,{"$f":"IF(H14=\"CORRECTO\",0,1)","v":1}]
[null,null,0,"ifrs-full:DescriptionOfAccountingPolicyForAvailableforsaleFinancialAssetsExplanatory","Descripción de la política contable de activos financieros disponibles para la venta [bloque de texto]",null,null,{"$f":"IF(F15<>\"\",\"CORRECTO\",\"Debe registrar información para '\"&E15&\"'\")","v":"Debe registrar información para 'Descripción de la política contable de activos financieros disponibles para la venta [bloque de texto]'"},null,null,{"$f":"IF(H15=\"CORRECTO\",0,1)","v":1}]
[null,null,0,"ifrs-full:DescriptionOfAccountingPolicyForBorrowingCostsExplanatory","Descripción de la política contable para costos de préstamos [bloque de texto]",null,null,"Debe registrar información para 'Descripción de la política contable para costos de préstamos [bloque de texto]'",null,null,1]
[null,null,0,"ifrs-full:DescriptionOfAccountingPolicyForBorrowingsExplanatory","Descripción de la política contable para préstamos [bloque de texto]",null,null,"Debe registrar información para 'Descripción de la política contable para préstamos [bloque de texto]'",null,null,1]
[null,null,0,"ifrs-full:DescriptionOfAccountingPolicyForBusinessCombinationsAndGoodwillExplanatory","Descripción de la política contable para combinaciones de negocios y plusvalía [bloque de texto]",null,null,"Debe registrar información para 'Descripción de la política contable para combinaciones de negocios y plusvalía [bloque de texto]'",null,null,1]
[null,null,0,"ifrs-full:DescriptionOfAccountingPolicyForCashFlowsExplanatory","Descripción de la política contable para flujos de efectivo [bloque de texto]",null,null,"Debe registrar información para 'Descripción de la política contable para flujos de efectivo [bloque de texto]'",null,null,1]
[null,null,0,"ifrs-full:DescriptionOfAccountingPolicyForConstructionInProgressExplanatory","Descripción de la política contable para construcciones en proceso [bloque de texto]",null,null,"Debe registrar información para 'Descripción de la política contable para construcciones en proceso [bloque de texto]'",null,null,1]
[null,null,0,"ifrs-full:DescriptionOfAccountingPolicyForContingentLiabilitiesAndContingentAssetsExplanatory","Descripción de la política contable para pasivos contingentes y activos contingentes [bloque de texto]",null,null,"Debe registrar información para 'Descripción de la política contable para pasivos contingentes y activos contingentes [bloque de texto]'",null,null,1]
[null,null,0,"ifrs-full:DescriptionOfAccountingPolicyForDecommissioningRestorationAndRehabilitationProvisionsExplanatory","Descripción de la política contable para provisiones para retiro del servicio, restauración y rehabilitación [bloque de texto]",null,null,"Debe registrar información para 'Descripción de la política contable para provisiones para retiro del servicio, restauración y rehabilitación [bloque de texto]'",null,null,1]
[null,null,0,"ifrs-full:DescriptionOfAccountingPolicyForDeferredIncomeTaxExplanatory","Descripción de la política contable para impuesto a las ganancias diferido [bloque de texto]",null,null,"Debe registrar información para 'Descripción de la política contable para impuesto a las ganancias diferido [bloque de texto]'",null,null,1]
[null,null,0,"ifrs-full:DescriptionOfAccountingPolicyForDepreciationExpenseExplanatory","Descripción de la política contable para gastos por depreciación [bloque de texto]",null,null,"Debe registrar información para 'Descripción de la política contable para gastos por depreciación [bloque de texto]'",null,null,1]
[null,null,0,"ifrs-full:DescriptionOfAccountingPolicyForDerecognitionOfFinancialInstrumentsExplanatory","Descripción de la política contable para baja en cuentas de instrumentos financieros [bloque de texto]",null,null,"Debe registrar información para 'Descripción de la política contable para baja en cuentas de instrumentos financieros [bloque de texto]'",null,null,1]
[null,null,0,"ifrs-full:DescriptionOfAccountingPolicyForDerivativeFinancialInstrumentsAndHedgingExplanatory","Descripción de la política contable para instrumentos financieros derivados y coberturas [bloque de texto]",null,null,"Debe registrar información para 'Descripción de la política contable para instrumentos financieros derivados y coberturas [bloque de texto]'",null,null,1]
[null,null,0,"ifrs-full:DescriptionOfAccountingPolicyToDetermineComponentsOfCashAndCashEquivalents","Descripción de la política contable para la determinación de los componentes del efectivo y equivalentes al efectivo [bloque de texto]",null,null,"Debe registrar información para 'Descripción de la política contable para la determinación de los componentes del efectivo y equivalentes al efectivo [bloque de texto]'",null,null,1]
[null,null,0,"ifrs-full:DescriptionOfAccountingPolicyForDiscontinuedOperationsExplanatory","Descripción de la política contable para operaciones discontinuadas [bloque de texto]",null,null,"Debe registrar información para 'Descripción de la política contable para operaciones discontinuadas [bloque de texto]'",null,null,1]
[null,null,0,"ifrs-full:DescriptionOfAccountingPolicyForDividendsExplanatory","Descripción de la política contable para dividendos [bloque de texto]",null,null,"Debe registrar información para 'Descripción de la política contable para dividendos [bloque de texto]'",null,null,1]
[null,null,0,"ifrs-full:DescriptionOfAccountingPolicyForEarningsPerShareExplanatory","Descripción de la política contable para las ganancias por acción [bloque de texto]",null,null,"Debe registrar información para 'Descripción de la política contable para las ganancias por acción [bloque de texto]'",null,null,1]
[null,null,0,"ifrs-full:DescriptionOfAccountingPolicyForEmissionRightsExplanatory","Descripción de la política contable para derechos de emisión [bloque de texto]",null,null,"Debe registrar información para 'Descripción de la política contable para derechos de emisión [bloque de texto]'",null,null,1]
[null,null,0,"ifrs-full:DescriptionOfAccountingPolicyForEmployeeBenefitsExplanatory","Descripción de la política contable para beneficios a los empleados [bloque de texto]",null,null,"Debe registrar información para 'Descripción de la política contable para beneficios a los empleados [bloque de texto]'",null,null,1]
[null,null,0,"ifrs-full:DescriptionOfAccountingPolicyForExpensesExplanatory","Descripción de la política contable para gastos [bloque de texto]",null,null,"Debe registrar información para 'Descripción de la política contable para gastos [bloque de texto]'",null,null,1]
[null,null,0,"ifrs-full:DescriptionOfAccountingPolicyForFairValueMeasurementExplanatory","Descripción de la política contable para mediciones al valor razonable [bloque de texto]",null,null,"Debe registrar información para 'Descripción de la política contable para mediciones al valor razonable [bloque de texto]'",null,null,1]
[null,null,0,"ifrs-full:DescriptionOfAccountingPolicyForFinanceCostsExplanatory","Descripción de la política contable para costos financieros [bloque de texto]",null,null,"Debe registrar información para 'Descripción de la política contable para costos financieros [bloque de texto]'",null,null,1]
[null,null,0,"ifrs-full:DescriptionOfAccountingPolicyForFinanceIncomeAndCostsExplanatory","Descripción de la política contable para ingresos y costos financieros [bloque de texto]",null,null,"Debe registrar información para 'Descripción de la política contable para ingresos y costos financieros [bloque de texto]'",null,null,1]
[null,null,0,"ifrs-full:DescriptionOfAccountingPolicyForFinancialAssetsExplanatory","Descripción de la política contable para activos financieros [bloque de texto]",null,null,"Debe registrar información para 'Descripción de la política contable para activos financieros [bloque de texto]'",null,null,1]
[null,null,0,"ifrs-full:DescriptionOfAccountingPolicyForFinancialInstrumentsExplanatory","Descripción de la política contable para instrumentos financieros [bloque de texto]",null,null,"Debe registrar información para 'Descripción de la política contable para instrumentos financieros [bloque de texto]'",null,null,1]
[null,null,0,"ifrs-full:DescriptionOfAccountingPolicyForFinancialInstrumentsAtFairValueThroughProfitOrLossExplanatory","Descripción de la política contable para instrumentos financieros a valor razonable con cambios en resultados [bloque de texto]",null,null,"Debe registrar información para 'Descripción de la política contable para instrumentos financieros a valor razonable con cambios en resultados [bloque de texto]'",null,null,1]
[null,null,0,"ifrs-full:DescriptionOfAccountingPolicyForFinancialLiabilitiesExplanatory","Descripción de la política contable para pasivos financieros [bloque de texto]",null,null,"Debe registrar información para 'Descripción de la política contable para pasivos financieros [bloque de texto]'",null,null,1]
[null,null,0,"ifrs-full:DescriptionOfAccountingPolicyForForeignCurrencyTranslationExplanatory","Descripción de la política contable para conversión de moneda extranjera [bloque de texto]",null,null,"Debe registrar información para 'Descripción de la política contable para conversión de moneda extranjera [bloque de texto]'",null,null,1]
[null,null,0,"ifrs-full:DescriptionOfAccountingPolicyForFunctionalCurrencyExplanatory","Descripción de la política contable para la moneda funcional [bloque de texto]",null,null,"Debe registrar información para 'Descripción de la política contable para la moneda funcional [bloque de texto]'",null,null,1]
[null,null,0,"ifrs-full:DescriptionOfAccountingPolicyForGoodwillExplanatory","Descripción de la política contable para la plusvalía [bloque de texto]",null,null,"Debe registrar información para 'Descripción de la política contable para la plusvalía [bloque de texto]'",null,null,1]
[null,null,0,"ifrs-full:DescriptionOfAccountingPolicyForGovernmentGrants","Descripción de las políticas contables para subvenciones gubernamentales [bloque de texto]",null,null,"Debe registrar información para 'Descripción de las políticas contables para subvenciones gubernamentales [bloque de texto]'",null,null,1]
[null,null,0,"ifrs-full:DescriptionOfAccountingPolicyForHedgingExplanatory","Descripción de la política contable para coberturas [bloque de texto]",null,null,"Debe registrar información para 'Descripción de la política contable para coberturas [bloque de texto]'",null,null,1]
[null,null,0,"ifrs-full:DescriptionOfAccountingPolicyForHeldtomaturityInvestmentsExplanatory","Descripción de la política contable para inversiones mantenidas hasta el vencimiento [bloque de texto]",null,null,"Debe registrar información para 'Descripción de la política contable para inversiones mantenidas hasta el vencimiento [bloque de texto]'",null,null,1]
[null,null,0,"ifrs-full:DescriptionOfAccountingPolicyForImpairmentOfAssetsExplanatory","Descripción de la política contable para deterioro del valor de activos [bloque de texto]",null,null,"Debe registrar información para 'Descripción de la política contable para deterioro del valor de activos [bloque de texto]'",null,null,1]
[null,null,0,"ifrs-full:DescriptionOfAccountingPolicyForImpairmentOfFinancialAssetsExplanatory","Descripción de la política contable para deterioro del valor de activos financieros [bloque de texto]",null,null,"Debe registrar información para 'Descripción de la política contable para deterioro del valor de activos financieros [bloque de texto]'",null,null,1]
[null,null,0,"ifrs-full:DescriptionOfAccountingPolicyForImpairmentOfNonfinancialAssetsExplanatory","Descripción de la política contable para deterioro del valor de activos no financieros [bloque de texto]",null,null,"Debe registrar información para 'Descripción de la política contable para deterioro del valor de activos no financieros [bloque de texto]'",null,null,1]
[null,null,0,"ifrs-full:DescriptionOfAccountingPolicyForIncomeTaxExplanatory","Descripción de la política contable para impuestos a las ganancias [bloque de texto]",null,null,"Debe registrar información para 'Descripción de la política contable para impuestos a las ganancias [bloque de texto]'",null,null,1]
[null,null,0,"ifrs-full:DescriptionOfAccountingPolicyForInsuranceContracts","Descripción de las políticas contables de contratos de seguro y de los activos, pasivos, ingresos y gastos relacionados [bloque de texto]",null,null,"Debe registrar información para 'Descripción de las políticas contables de contratos de seguro y de los activos, pasivos, ingresos y gastos relacionados [bloque de texto]'",null,null,1]
[null,null,0,"ifrs-full:DescriptionOfAccountingPolicyForIntangibleAssetsAndGoodwillExplanatory","Descripción de la política contable para activos intangibles y plusvalía [bloque de texto]",null,null,"Debe registrar información para 'Descripción de la política contable para activos intangibles y plusvalía [bloque de texto]'",null,null,1]
[null,null,0,"ifrs-full:DescriptionOfAccountingPolicyForIntangibleAssetsOtherThanGoodwillExplanatory","Descripción de la política contable para activos intangibles distintos a la plusvalía [bloque de texto]",null,null,"Debe registrar información para 'Descripción de la política contable para activos intangibles distintos a la plusvalía [bloque de texto]'",null,null,1]
[null,null,0,"ifrs-full:DescriptionOfAccountingPolicyForInterestIncomeAndExpenseExplanatory","Descripción de la política contable para ingresos y gastos por intereses [bloque de texto]",null,null,"Debe registrar información para 'Descripción de la política contable para ingresos y gastos por intereses [bloque de texto]'",null,null,1]
[null,null,0,"ifrs-full:DescriptionOfAccountingPolicyForInvestmentInAssociates","Descripción de las políticas contables para inversiones en asociadas [bloque de texto]",null,null,"Debe registrar información para 'Descripción de las políticas contables para inversiones en asociadas [bloque de texto]'",null,null,1]
[null,null,0,"ifrs-full:DescriptionOfAccountingPolicyForInvestmentsInJointVentures","Descripción de las políticas contables para inversiones en negocios conjuntos [bloque de texto]",null,null,"Debe registrar información para 'Descripción de las políticas contables para inversiones en negocios conjuntos [bloque de texto]'",null,null,1]
[null,null,0,"ifrs-full:DescriptionOfAccountingPolicyForInvestmentPropertyExplanatory","Descripción de la política contable para propiedades de inversión [bloque de texto]",null,null,"Debe registrar información para 'Descripción de la política contable para propiedades de inversión [bloque de texto]'",null,null,1]
[null,null,0,"ifrs-full:DescriptionOfAccountingPolicyForInvestmentsOtherThanInvestmentsAccountedForUsingEquityMethodExplanatory","Descripción de la política contable para inversiones distintas de las inversiones contabilizadas utilizando el método de la participación [bloque de texto]",null,null,"Debe registrar información para 'Descripción de la política contable para inversiones distintas de las inversiones contabilizadas utilizando el método de la participación [bloque de texto]'",null,null,1]
[null,null,0,"ifrs-full:DescriptionOfAccountingPolicyForIssuedCapitalExplanatory","Descripción de la política contable para el capital emitido [bloque de texto]",null,null,"Debe registrar información para 'Descripción de la política contable para el capital emitido [bloque de texto]'",null,null,1]
[null,null,0,"ifrs-full:DescriptionOfAccountingPolicyForLeasesExplanatory","Descripción de la política contable para arrendamientos [bloque de texto]",null,null,"Debe registrar información para 'Descripción de la política contable para arrendamientos [bloque de texto]'",null,null,1]
[null,null,0,"ifrs-full:DescriptionOfAccountingPolicyForLoansAndReceivablesExplanatory","Descripción de la política contable para préstamos y cuentas por cobrar [bloque de texto]",null,null,"Debe registrar información para 'Descripción de la política contable para préstamos y cuentas por cobrar [bloque de texto]'",null,null,1]
[null,null,0,"ifrs-full:DescriptionOfAccountingPolicyForMeasuringInventories","Descripción de las políticas contables para la medición de inventarios [bloque de texto]",null,null,"Debe registrar información para 'Descripción de las políticas contables para la medición de inventarios [bloque de texto]'",null,null,1]
[null,null,0,"ifrs-full:DescriptionOfAccountingPolicyForNoncurrentAssetsOrDisposalGroupsClassifiedAsHeldForSaleExplanatory","Descripción de la política contable para activos no corrientes o grupos de activos para su disposición clasificados como mantenidos para la venta [bloque de texto]",null,null,"Debe registrar información para 'Descripción de la política contable para activos no corrientes o grupos de activos para su disposición clasificados como mantenidos para la venta [bloque de texto]'",null,null,1]
[null,null,0,"ifrs-full:DescriptionOfAccountingPolicyForNoncurrentAssetsOrDisposalGroupsClassifiedAsHeldForSaleAndDiscontinuedOperationsExplanatory","Descripción de la política contable para activos no corrientes o grupos de activos para su disposición clasificados como mantenidos para la venta y operaciones discontinuadas [bloque de texto]",null,null,"Debe registrar información para 'Descripción de la política contable para activos no corrientes o grupos de activos para su disposición clasificados como mantenidos para la venta y operaciones discontinuadas [bloque de texto]'",null,null,1]
[null,null,0,"ifrs-full:DescriptionOfAccountingPolicyForOilAndGasAssetsExplanatory","Descripción de la política contable para activos de petróleo y gas [bloque de texto]",null,null,"Debe registrar información para 'Descripción de la política contable para activos de petróleo y gas [bloque de texto]'",null,null,1]
[null,null,0,"ifrs-full:DescriptionOfAccountingPolicyForPropertyPlantAndEquipmentExplanatory","Descripción de la política contable para propiedades, planta y equipo [bloque de texto]",null,null,"Debe registrar información para 'Descripción de la política contable para propiedades, planta y equipo [bloque de texto]'",null,null,1]
[null,null,0,"ifrs-full:DescriptionOfAccountingPolicyForProvisionsExplanatory","Descripción de la política contable para provisiones [bloque de texto]",null,null,"Debe registrar información para 'Descripción de la política contable para provisiones [bloque de texto]'",null,null,1]
[null,null,0,"ifrs-full:DescriptionOfAccountingPolicyForReclassificationOfFinancialInstrumentsExplanatory","Descripción de la política contable para la reclasificación de instrumentos financieros [bloque de texto]",null,null,"Debe registrar información para 'Descripción de la política contable para la reclasificación de instrumentos financieros [bloque de texto]'",null,null,1]
[null,null,0,"ifrs-full:DescriptionOfAccountingPolicyForRecognisingDifferenceBetweenFairValueAtInitialRecognitionAndAmountDeterminedUsingValuationTechniqueExplanatory","Descripción de la política contable para el reconocimiento en el resultado del periodo de la diferencia entre el valor razonable en el reconocimiento inicial y el precio de transacción [bloque de texto]",null,null,"Debe registrar información para 'Descripción de la política contable para el reconocimiento en el resultado del periodo de la diferencia entre el valor razonable en el reconocimiento inicial y el precio de transacción [bloque de texto]'",null,null,1]
[null,null,0,"ifrs-full:DescriptionOfAccountingPolicyForRecognitionOfRevenue","Descripción de las políticas contables para el reconocimiento de ingresos de actividades ordinarias [bloque de texto]",null,null,"Debe registrar información para 'Descripción de las políticas contables para el reconocimiento de ingresos de actividades ordinarias [bloque de texto]'",null,null,1]
[null,null,0,"ifrs-full:DescriptionOfAccountingPolicyForRepairsAndMaintenanceExplanatory","Descripción de la política contable para reparaciones y mantenimiento [bloque de texto]",null,null,"Debe registrar información para 'Descripción de la política contable para reparaciones y mantenimiento [bloque de texto]'",null,null,1]
[null,null,0,"ifrs-full:DescriptionOfAccountingPolicyForResearchAndDevelopmentExpenseExplanatory","Descripción de la política contable para gastos de investigación y desarrollo [bloque de texto]",null,null,"Debe registrar información para 'Descripción de la política contable para gastos de investigación y desarrollo [bloque de texto]'",null,null,1]
[null,null,0,"ifrs-full:DescriptionOfAccountingPolicyForRestrictedCashAndCashEquivalentsExplanatory","Descripción de la política contable para el efectivo y equivalentes al efectivo restringido [bloque de texto]",null,null,"Debe registrar información para 'Descripción de la política contable para el efectivo y equivalentes al efectivo restringido [bloque de texto]'",null,null,1]
[null,null,0,"ifrs-full:DescriptionOfAccountingPolicyForServiceConcessionArrangementsExplanatory","Descripción de la política contable para acuerdos de concesión de servicios [bloque de texto]",null,null,"Debe registrar información para 'Descripción de la política contable para acuerdos de concesión de servicios [bloque de texto]'",null,null,1]
[null,null,0,"ifrs-full:DescriptionOfAccountingPolicyForSharebasedPaymentTransactionsExplanatory","Descripción de la política contable para las transacciones con pagos basados en acciones [bloque de texto]",null,null,"Debe registrar información para 'Descripción de la política contable para las transacciones con pagos basados en acciones [bloque de texto]'",null,null,1]
[null,null,0,"ifrs-full:DescriptionOfAccountingPolicyForStrippingCostsExplanatory","Descripción de la política contable para costos de desmonte [bloque de texto]",null,null,"Debe registrar información para 'Descripción de la política contable para costos de desmonte [bloque de texto]'",null,null,1]
[null,null,0,"ifrs-full:DescriptionOfAccountingPolicyForSubsidiariesExplanatory","Descripción de la política contable para subsidiarias [bloque de texto]",null,null,"Debe registrar información para 'Descripción de la política contable para subsidiarias [bloque de texto]'",null,null,1]
[null,null,0,"ifrs-full:DescriptionOfAccountingPolicyForTerminationBenefits","Descripción de las políticas contables para los beneficios por terminación [bloque de texto]",null,null,"Debe registrar información para 'Descripción de las políticas contables para los beneficios por terminación [bloque de texto]'",null,null,1]
[null,null,0,"ifrs-full:DescriptionOfAccountingPolicyForTradeAndOtherPayablesExplanatory","Descripción de la política contable para acreedores comerciales y otras cuentas por pagar [bloque de texto]",null,null,{"$f":"IF(F79<>\"\",\"CORRECTO\",\"Debe registrar información para '\"&E79&\"'\")","v":"Debe registrar información para 'Descripción de la política contable para acreedores comerciales y otras cuentas por pagar [bloque de texto]'"},null,null,{"$f":"IF(H79=\"CORRECTO\",0,1)","v":1}]
[null,null,0,"ifrs-full:DescriptionOfAccountingPolicyForTradeAndOtherReceivablesExplanatory","Descripción de la política contable para deudores comerciales y otras cuentas por cobrar [bloque de texto]",null,null,"Debe registrar información para 'Descripción de la política contable para deudores comerciales y otras cuentas por cobrar [bloque de texto]'",null,null,1]
[null,null,0,"ifrs-full:DescriptionOfAccountingPolicyForTradingIncomeAndExpenseExplanatory","Descripción de la política contable para ingresos y gastos comerciales [bloque de texto]",null,null,"Debe registrar información para 'Descripción de la política contable para ingresos y gastos comerciales [bloque de texto]'",null,null,1]
[null,null,0,"ifrs-full:DescriptionOfAccountingPolicyForTransactionsWithNoncontrollingInterestsExplanatory","Descripción de la política contable para transacciones con participaciones no controladoras [bloque de texto]",null,null,"Debe registrar información para 'Descripción de la política contable para transacciones con participaciones no controladoras [bloque de texto]'",null,null,1]
[null,null,0,"ifrs-full:DescriptionOfAccountingPolicyForTransactionsWithRelatedPartiesExplanatory","Descripción de la política contable para transacciones con partes relacionadas [bloque de texto]",null,null,"Debe registrar información para 'Descripción de la política contable para transacciones con partes relacionadas [bloque de texto]'",null,null,1]
[null,null,0,"ifrs-full:DescriptionOfOtherAccountingPoliciesRelevantToUnderstandingOfFinancialStatements","Descripción de otras políticas contables relevantes para comprender los estados financieros [bloque de texto]",null,null,"Debe registrar información para 'Descripción de otras políticas contables relevantes para comprender los estados financieros [bloque de texto]'",null,null,1]

{"sheet":"811000 - Cambios en Polític...","index":19,"n_rows":40,"n_cols":17,"rows_kept":40,"cut":false,"hidden":false,"merged":[[10,5,10,10],[11,5,11,10],[6,4,8,12]]}
[]
[]
[]
[]
[]
[]
[null,null,null,null,"811000 Notas - Cambios por políticas contables, estimaciones contables o corrección de errores"]
[]
[]
[]
[null,null,null,null,null,{"$f":"\"Periodo Actual \"&Periodos!$C$4","v":"Periodo Actual 2023-12-31"}]
[null,null,null,null,null,"Cambios por políticas, estimaciones o correcciones",null,null,null,null,null,null,{"$f":"IF(Q12=0,\"Formulario 'Nota de Cambios en políticas...' Válido\",\"Formulario 'Nota de Cambios en políticas...' con \"&Q12&\" inconsistencias\")","v":"Formulario 'Nota de Cambios en políticas...' Válido"},null,null,null,{"$f":"SUM(Q16:Q40)","v":0}]
[null,null,null,null,null,"co-svsp-core:TipoDeCambioPorPoliticaEstimacionOError","co-svsp-core:DescripcionDelCambioEnPoliticaEstimacionOError","co-svsp-core:ImpactoEnElActivoPorCambioPorPoliticaEstimacionOError","co-svsp-core:ImpactoEnElPasivoPorCambioPorPoliticaEstimacionOError","co-svsp-core:ImpactoEnElPatrimonioPorCambioPorPoliticaEstimacionOError","co-svsp-core:ImpactoEnElResultadoPorCambioPorPoliticaEstimacionOError"]
[null,null,null,null,"co-svsp-core:InformacionarevelarSobreCambiosEnPoliticasContablesEstimacionesOErroresEje","Tipo de Cambio por politica, estimación o error","Descripción del cambio en política, estimación o error","Valor en pesos del impacto en el activo por cambio por política, estimación o error","Valor en pesos del impacto en el pasivo por cambio por política, estimación o error","Valor en pesos del impacto en el patrimonio por cambio por política, estimación o error","Valor en pesos del impacto en el resultado por cambio por política, estimación o error"]
[null,null,"1;1","co-svsp-core:CambioPorPoliticaEstimacionOErrorMiembro","Cambio por política, estimación o error [miembro]"]
[null,null,"1;1","co-svsp-core:CambioPorPoliticaEstimacionOError1Miembro","Cambio por política, estimación o error 1 [miembro]",null,null,null,null,null,null,null,{"$f":"IF(Q16=0,\"CORRECTO\",\"Debe registrar información completa para la fila '\"&E16&\"'\")","v":"CORRECTO"},null,null,null,{"$f":"IF(OR(AND(F16<>\"\",G16<>\"\",(H16+I16+J16+K16)<>0),(AND(F16=\"\",G16=\"\",H16=\"\",I16=\"\",J16=\"\",K16=\"\"))),0,1)","v":0}]
[null,null,"1;1","co-svsp-core:CambioPorPoliticaEstimacionOError2Miembro","Cambio por política, estimación o error 2 [miembro]",null,null,null,null,null,null,null,{"$f":"IF(Q17=0,\"CORRECTO\",\"Debe registrar información completa para la fila '\"&E17&\"'\")","v":"CORRECTO"},null,null,null,{"$f":"IF(OR(AND(F17<>\"\",G17<>\"\",(H17+I17+J17+K17)<>0),(AND(F17=\"\",G17=\"\",H17=\"\",I17=\"\",J17=\"\",K17=\"\"))),0,1)","v":0}]
[null,null,"1;1","co-svsp-core:CambioPorPoliticaEstimacionOError3Miembro","Cambio por política, estimación o error 3 [miembro]",null,null,null,null,null,null,null,"CORRECTO",null,null,null,0]
[null,null,"1;1","co-svsp-core:CambioPorPoliticaEstimacionOError4Miembro","Cambio por política, estimación o error 4 [miembro]",null,null,null,null,null,null,null,"CORRECTO",null,null,null,0]
[null,null,"1;1","co-svsp-core:CambioPorPoliticaEstimacionOError5Miembro","Cambio por política, estimación o error 5 [miembro]",null,null,null,null,null,null,null,"CORRECTO",null,null,null,0]
[null,null,"1;1","co-svsp-core:CambioPorPoliticaEstimacionOError6Miembro","Cambio por política, estimación o error 6 [miembro]",null,null,null,null,null,null,null,"CORRECTO",null,null,null,0]
[null,null,"1;1","co-svsp-core:CambioPorPoliticaEstimacionOError7Miembro","Cambio por política, estimación o error 7 [miembro]",null,null,null,null,null,null,null,"CORRECTO",null,null,null,0]
[null,null,"1;1","co-svsp-core:CambioPorPoliticaEstimacionOError8Miembro","Cambio por política, estimación o error 8 [miembro]",null,null,null,null,null,null,null,"CORRECTO",null,null,null,0]
[null,null,"1;1","co-svsp-core:CambioPorPoliticaEstimacionOError9Miembro","Cambio por política, estimación o error 9 [miembro]",null,null,null,null,null,null,null,"CORRECTO",null,null,null,0]
[null,null,"1;1","co-svsp-core:CambioPorPoliticaEstimacionOError10Miembro","Cambio por política, estimación o error 10 [miembro]",null,null,null,null,null,null,null,"CORRECTO",null,null,null,0]
[null,null,"1;1","co-svsp-core:CambioPorPoliticaEstimacionOError11Miembro","Cambio por política, estimación o error 11 [miembro]",null,null,null,null,null,null,null,"CORRECTO",null,null,null,0]
[null,null,"1;1","co-svsp-core:CambioPorPoliticaEstimacionOError12Miembro","Cambio por política, estimación o error 12 [miembro]",null,null,null,null,null,null,null,"CORRECTO",null,null,null,0]
[null,null,"1;1","co-svsp-core:CambioPorPoliticaEstimacionOError13Miembro","Cambio por política, estimación o error 13 [miembro]",null,null,null,null,null,null,null,"CORRECTO",null,null,null,0]
[null,null,"1;1","co-svsp-core:CambioPorPoliticaEstimacionOError14Miembro","Cambio por política, estimación o error 14 [miembro]",null,null,null,null,null,null,null,"CORRECTO",null,null,null,0]
[null,null,"1;1","co-svsp-core:CambioPorPoliticaEstimacionOError15Miembro","Cambio por política, estimación o error 15 [miembro]",null,null,null,null,null,null,null,"CORRECTO",null,null,null,0]
[null,null,"1;1","co-svsp-core:CambioPorPoliticaEstimacionOError16Miembro","Cambio por política, estimación o error 16 [miembro]",null,null,null,null,null,null,null,"CORRECTO",null,null,null,0]
[null,null,"1;1","co-svsp-core:CambioPorPoliticaEstimacionOError17Miembro","Cambio por política, estimación o error 17 [miembro]",null,null,null,null,null,null,null,"CORRECTO",null,null,null,0]
[null,null,"1;1","co-svsp-core:CambioPorPoliticaEstimacionOError18Miembro","Cambio por política, estimación o error 18 [miembro]",null,null,null,null,null,null,null,"CORRECTO",null,null,null,0]
[null,null,"1;1","co-svsp-core:CambioPorPoliticaEstimacionOError19Miembro","Cambio por política, estimación o error 19 [miembro]",null,null,null,null,null,null,null,"CORRECTO",null,null,null,0]
[null,null,"1;1","co-svsp-core:CambioPorPoliticaEstimacionOError20Miembro","Cambio por política, estimación o error 20 [miembro]",null,null,null,null,null,null,null,"CORRECTO",null,null,null,0]
[null,null,"1;1","co-svsp-core:CambioPorPoliticaEstimacionOError21Miembro","Cambio por política, estimación o error 21 [miembro]",null,null,null,null,null,null,null,"CORRECTO",null,null,null,0]
[null,null,"1;1","co-svsp-core:CambioPorPoliticaEstimacionOError22Miembro","Cambio por política, estimación o error 22 [miembro]",null,null,null,null,null,null,null,"CORRECTO",null,null,null,0]
[null,null,"1;1","co-svsp-core:CambioPorPoliticaEstimacionOError23Miembro","Cambio por política, estimación o error 23 [miembro]",null,null,null,null,null,null,null,"CORRECTO",null,null,null,0]
[null,null,"1;1","co-svsp-core:CambioPorPoliticaEstimacionOError24Miembro","Cambio por política, estimación o error 24 [miembro]",null,null,null,null,null,null,null,"CORRECTO",null,null,null,0]
[null,null,"1;1","co-svsp-core:CambioPorPoliticaEstimacionOError25Miembro","Cambio por política, estimación o error 25 [miembro]",null,null,null,null,null,null,null,"CORRECTO",null,null,null,0]

{"sheet":"811000 GeneraXBRL","index":20,"n_rows":16,"n_cols":30,"rows_kept":16,"cut":false,"hidden":true,"merged":[[3,3,5,9],[7,3,7,6]]}
[]
[]
[]
[null,null,null,"110010 - Información a revelar sobre administradores"]
[]
[]
[]
[]
[null,null,null,null,"co-svsp-core:CambioPorPoliticaEstimacionOErrorMiembro","co-svsp-core:CambioPorPoliticaEstimacionOError1Miembro","co-svsp-core:CambioPorPoliticaEstimacionOError2Miembro","co-svsp-core:CambioPorPoliticaEstimacionOError3Miembro","co-svsp-core:CambioPorPoliticaEstimacionOError4Miembro","co-svsp-core:CambioPorPoliticaEstimacionOError5Miembro","co-svsp-core:CambioPorPoliticaEstimacionOError6Miembro","co-svsp-core:CambioPorPoliticaEstimacionOError7Miembro","co-svsp-core:CambioPorPoliticaEstimacionOError8Miembro","co-svsp-core:CambioPorPoliticaEstimacionOError9Miembro","co-svsp-core:CambioPorPoliticaEstimacionOError10Miembro","co-svsp-core:CambioPorPoliticaEstimacionOError11Miembro","co-svsp-core:CambioPorPoliticaEstimacionOError12Miembro","co-svsp-core:CambioPorPoliticaEstimacionOError13Miembro","co-svsp-core:CambioPorPoliticaEstimacionOError14Miembro","co-svsp-core:CambioPorPoliticaEstimacionOError15Miembro","co-svsp-core:CambioPorPoliticaEstimacionOError16Miembro","co-svsp-core:CambioPorPoliticaEstimacionOError17Miembro","co-svsp-core:CambioPorPoliticaEstimacionOError18Miembro","co-svsp-core:CambioPorPoliticaEstimacionOError19Miembro","co-svsp-core:CambioPorPoliticaEstimacionOError20Miembro","co-svsp-core:CambioPorPoliticaEstimacionOError21Miembro","co-svsp-core:CambioPorPoliticaEstimacionOError22Miembro","co-svsp-core:CambioPorPoliticaEstimacionOError23Miembro","co-svsp-core:CambioPorPoliticaEstimacionOError24Miembro","co-svsp-core:CambioPorPoliticaEstimacionOError25Miembro"]
[null,"Periodo",null,"co-svsp-core:InformacionarevelarSobreCambiosEnPoliticasContablesEstimacionesOErroresEje","Cambio por política, estimación o error [miembro]","Cambio por política, estimación o error 1 [miembro]","Cambio por política, estimación o error 2 [miembro]","Cambio por política, estimación o error 3 [miembro]","Cambio por política, estimación o error 4 [miembro]","Cambio por política, estimación o error 5 [miembro]","Cambio por política, estimación o error 6 [miembro]","Cambio por política, estimación o error 7 [miembro]","Cambio por política, estimación o error 8 [miembro]","Cambio por política, estimación o error 9 [miembro]","Cambio por política, estimación o error 10 [miembro]","Cambio por política, estimación o error 11 [miembro]","Cambio por política, estimación o error 12 [miembro]","Cambio por política, estimación o error 13 [miembro]","Cambio por política, estimación o error 14 [miembro]","Cambio por política, estimación o error 15 [miembro]","Cambio por política, estimación o error 16 [miembro]","Cambio por política, estimación o error 17 [miembro]","Cambio por política, estimación o error 18 [miembro]","Cambio por política, estimación o error 19 [miembro]","Cambio por política, estimación o error 20 [miembro]","Cambio por política, estimación o error 21 [miembro]","Cambio por política, estimación o error 22 [miembro]","Cambio por política, estimación o error 23 [miembro]","Cambio por política, estimación o error 24 [miembro]","Cambio por política, estimación o error 25 [miembro]"]
[null,"0;1","co-svsp-core:TipoDeCambioPorPoliticaEstimacionOError","Tipo de Cambio por politica, estimación o error",null,{"$f":"IF('811000 - Cambios en Polític...'!$F$16=\"\",\"\",'811000 - Cambios en Polític...'!$F$16)","v":""},{"$f":"IF('811000 - Cambios en Polític...'!$F$17=\"\",\"\",'811000 - Cambios en Polític...'!$F$17)","v":""},{"$f":"IF('811000 - Cambios en Polític...'!$F$18=\"\",\"\",'811000 - Cambios en Polític...'!$F$18)","v":""},{"$f":"IF('811000 - Cambios en Polític...'!$F$19=\"\",\"\",'811000 - Cambios en Polític...'!$F$19)","v":""},{"$f":"IF('811000 - Cambios en Polític...'!$F$20=\"\",\"\",'811000 - Cambios en Polític...'!$F$20)","v":""},{"$f":"IF('811000 - Cambios en Polític...'!$F$21=\"\",\"\",'811000 - Cambios en Polític...'!$F$21)","v":""},{"$f":"IF('811000 - Cambios en Polític...'!$F$22=\"\",\"\",'811000 - Cambios en Polític...'!$F$22)","v":""},{"$f":"IF('811000 - Cambios en Polític...'!$F$23=\"\",\"\",'811000 - Cambios en Polític...'!$F$23)","v":""},{"$f":"IF('811000 - Cambios en Polític...'!$F$24=\"\",\"\",'811000 - Cambios en Polític...'!$F$24)","v":""},{"$f":"IF('811000 - Cambios en Polític...'!$F$25=\"\",\"\",'811000 - Cambios en Polític...'!$F$25)","v":""},{"$f":"IF('811000 - Cambios en Polític...'!$F$26=\"\",\"\",'811000 - Cambios en Polític...'!$F$26)","v":""},{"$f":"IF('811000 - Cambios en Polític...'!$F$27=\"\",\"\",'811000 - Cambios en Polític...'!$F$27)","v":""},{"$f":"IF('811000 - Cambios en Polític...'!$F$28=\"\",\"\",'811000 - Cambios en Polític...'!$F$28)","v":""},{"$f":"IF('811000 - Cambios en Polític...'!$F$29=\"\",\"\",'811000 - Cambios en Polític...'!$F$29)","v":""},{"$f":"IF('811000 - Cambios en Polític...'!$F$30=\"\",\"\",'811000 - Cambios en Polític...'!$F$30)","v":""},{"$f":"IF('811000 - Cambios en Polític...'!$F$31=\"\",\"\",'811000 - Cambios en Polític...'!$F$31)","v":""},{"$f":"IF('811000 - Cambios en Polític...'!$F$32=\"\",\"\",'811000 - Cambios en Polític...'!$F$32)","v":""},{"$f":"IF('811000 - Cambios en Polític...'!$F$33=\"\",\"\",'811000 - Cambios en Polític...'!$F$33)","v":""},{"$f":"IF('811000 - Cambios en Polític...'!$F$34=\"\",\"\",'811000 - Cambios en Polític...'!$F$34)","v":""},{"$f":"IF('811000 - Cambios en Polític...'!$F$35=\"\",\"\",'811000 - Cambios en Polític...'!$F$35)","v":""},{"$f":"IF('811000 - Cambios en Polític...'!$F$36=\"\",\"\",'811000 - Cambios en Polític...'!$F$36)","v":""},{"$f":"IF('811000 - Cambios en Polític...'!$F$37=\"\",\"\",'811000 - Cambios en Polític...'!$F$37)","v":""},{"$f":"IF('811000 - Cambios en Polític...'!$F$38=\"\",\"\",'811000 - Cambios en Polític...'!$F$38)","v":""},{"$f":"IF('811000 - Cambios en Polític...'!$F$39=\"\",\"\",'811000 - Cambios en Polític...'!$F$39)","v":""},{"$f":"IF('811000 - Cambios en Polític...'!$F$40=\"\",\"\",'811000 - Cambios en Polític...'!$F$40)","v":""}]
[null,"0;1","co-svsp-core:DescripcionDelCambioEnPoliticaEstimacionOError","Descripción del cambio en política, estimación o error",null,{"$f":"IF('811000 - Cambios en Polític...'!$G$16=\"\",\"\",'811000 - Cambios en Polític...'!$G$16)","v":""},{"$f":"IF('811000 - Cambios en Polític...'!$G$17=\"\",\"\",'811000 - Cambios en Polític...'!$G$17)","v":""},{"$f":"IF('811000 - Cambios en Polític...'!$G$18=\"\",\"\",'811000 - Cambios en Polític...'!$G$18)","v":""},{"$f":"IF('811000 - Cambios en Polític...'!$G$19=\"\",\"\",'811000 - Cambios en Polític...'!$G$19)","v":""},{"$f":"IF('811000 - Cambios en Polític...'!$G$20=\"\",\"\",'811000 - Cambios en Polític...'!$G$20)","v":""},{"$f":"IF('811000 - Cambios en Polític...'!$G$21=\"\",\"\",'811000 - Cambios en Polític...'!$G$21)","v":""},{"$f":"IF('811000 - Cambios en Polític...'!$G$22=\"\",\"\",'811000 - Cambios en Polític...'!$G$22)","v":""},{"$f":"IF('811000 - Cambios en Polític...'!$G$23=\"\",\"\",'811000 - Cambios en Polític...'!$G$23)","v":""},{"$f":"IF('811000 - Cambios en Polític...'!$G$24=\"\",\"\",'811000 - Cambios en Polític...'!$G$24)","v":""},{"$f":"IF('811000 - Cambios en Polític...'!$G$25=\"\",\"\",'811000 - Cambios en Polític...'!$G$25)","v":""},{"$f":"IF('811000 - Cambios en Polític...'!$G$26=\"\",\"\",'811000 - Cambios en Polític...'!$G$26)","v":""},{"$f":"IF('811000 - Cambios en Polític...'!$G$27=\"\",\"\",'811000 - Cambios en Polític...'!$G$27)","v":""},{"$f":"IF('811000 - Cambios en Polític...'!$G$28=\"\",\"\",'811000 - Cambios en Polític...'!$G$28)","v":""},{"$f":"IF('811000 - Cambios en Polític...'!$G$29=\"\",\"\",'811000 - Cambios en Polític...'!$G$29)","v":""},{"$f":"IF('811000 - Cambios en Polític...'!$G$30=\"\",\"\",'811000 - Cambios en Polític...'!$G$30)","v":""},{"$f":"IF('811000 - Cambios en Polític...'!$G$31=\"\",\"\",'811000 - Cambios en Polític...'!$G$31)","v":""},{"$f":"IF('811000 - Cambios en Polític...'!$G$32=\"\",\"\",'811000 - Cambios en Polític...'!$G$32)","v":""},{"$f":"IF('811000 - Cambios en Polític...'!$G$33=\"\",\"\",'811000 - Cambios en Polític...'!$G$33)","v":""},{"$f":"IF('811000 - Cambios en Polític...'!$G$34=\"\",\"\",'811000 - Cambios en Polític...'!$G$34)","v":""},{"$f":"IF('811000 - Cambios en Polític...'!$G$35=\"\",\"\",'811000 - Cambios en Polític...'!$G$35)","v":""},{"$f":"IF('811000 - Cambios en Polític...'!$G$36=\"\",\"\",'811000 - Cambios en Polític...'!$G$36)","v":""},{"$f":"IF('811000 - Cambios en Polític...'!$G$37=\"\",\"\",'811000 - Cambios en Polític...'!$G$37)","v":""},{"$f":"IF('811000 - Cambios en Polític...'!$G$38=\"\",\"\",'811000 - Cambios en Polític...'!$G$38)","v":""},{"$f":"IF('811000 - Cambios en Polític...'!$G$39=\"\",\"\",'811000 - Cambios en Polític...'!$G$39)","v":""},{"$f":"IF('811000 - Cambios en Polític...'!$G$40=\"\",\"\",'811000 - Cambios en Polític...'!$G$40)","v":""}]
[null,"0;1","co-svsp-core:ImpactoEnElActivoPorCambioPorPoliticaEstimacionOError","Impacto en el activo por cambio por política, estimación o error",null,{"$f":"IF('811000 - Cambios en Polític...'!$H$16=\"\",\"\",'811000 - Cambios en Polític...'!$H$16)","v":""},{"$f":"IF('811000 - Cambios en Polític...'!$H$17=\"\",\"\",'811000 - Cambios en Polític...'!$H$17)","v":""},{"$f":"IF('811000 - Cambios en Polític...'!$H$18=\"\",\"\",'811000 - Cambios en Polític...'!$H$18)","v":""},{"$f":"IF('811000 - Cambios en Polític...'!$H$19=\"\",\"\",'811000 - Cambios en Polític...'!$H$19)","v":""},{"$f":"IF('811000 - Cambios en Polític...'!$H$20=\"\",\"\",'811000 - Cambios en Polític...'!$H$20)","v":""},{"$f":"IF('811000 - Cambios en Polític...'!$H$21=\"\",\"\",'811000 - Cambios en Polític...'!$H$21)","v":""},{"$f":"IF('811000 - Cambios en Polític...'!$H$22=\"\",\"\",'811000 - Cambios en Polític...'!$H$22)","v":""},{"$f":"IF('811000 - Cambios en Polític...'!$H$23=\"\",\"\",'811000 - Cambios en Polític...'!$H$23)","v":""},{"$f":"IF('811000 - Cambios en Polític...'!$H$24=\"\",\"\",'811000 - Cambios en Polític...'!$H$24)","v":""},{"$f":"IF('811000 - Cambios en Polític...'!$H$25=\"\",\"\",'811000 - Cambios en Polític...'!$H$25)","v":""},{"$f":"IF('811000 - Cambios en Polític...'!$H$26=\"\",\"\",'811000 - Cambios en Polític...'!$H$26)","v":""},{"$f":"IF('811000 - Cambios en Polític...'!$H$27=\"\",\"\",'811000 - Cambios en Polític...'!$H$27)","v":""},{"$f":"IF('811000 - Cambios en Polític...'!$H$28=\"\",\"\",'811000 - Cambios en Polític...'!$H$28)","v":""},{"$f":"IF('811000 - Cambios en Polític...'!$H$29=\"\",\"\",'811000 - Cambios en Polític...'!$H$29)","v":""},{"$f":"IF('811000 - Cambios en Polític...'!$H$30=\"\",\"\",'811000 - Cambios en Polític...'!$H$30)","v":""},{"$f":"IF('811000 - Cambios en Polític...'!$H$31=\"\",\"\",'811000 - Cambios en Polític...'!$H$31)","v":""},{"$f":"IF('811000 - Cambios en Polític...'!$H$32=\"\",\"\",'811000 - Cambios en Polític...'!$H$32)","v":""},{"$f":"IF('811000 - Cambios en Polític...'!$H$33=\"\",\"\",'811000 - Cambios en Polític...'!$H$33)","v":""},{"$f":"IF('811000 - Cambios en Polític...'!$H$34=\"\",\"\",'811000 - Cambios en Polític...'!$H$34)","v":""},{"$f":"IF('811000 - Cambios en Polític...'!$H$35=\"\",\"\",'811000 - Cambios en Polític...'!$H$35)","v":""},{"$f":"IF('811000 - Cambios en Polític...'!$H$36=\"\",\"\",'811000 - Cambios en Polític...'!$H$36)","v":""},{"$f":"IF('811000 - Cambios en Polític...'!$H$37=\"\",\"\",'811000 - Cambios en Polític...'!$H$37)","v":""},{"$f":"IF('811000 - Cambios en Polític...'!$H$38=\"\",\"\",'811000 - Cambios en Polític...'!$H$38)","v":""},{"$f":"IF('811000 - Cambios en Polític...'!$H$39=\"\",\"\",'811000 - Cambios en Polític...'!$H$39)","v":""},{"$f":"IF('811000 - Cambios en Polític...'!$H$40=\"\",\"\",'811000 - Cambios en Polític...'!$H$40)","v":""}]
[null,"0;1","co-svsp-core:ImpactoEnElPasivoPorCambioPorPoliticaEstimacionOError","Impacto en el pasivo por cambio por política, estimación o error",null,{"$f":"IF('811000 - Cambios en Polític...'!$I$16=\"\",\"\",'811000 - Cambios en Polític...'!$I$16)","v":""},{"$f":"IF('811000 - Cambios en Polític...'!$I$17=\"\",\"\",'811000 - Cambios en Polític...'!$I$17)","v":""},{"$f":"IF('811000 - Cambios en Polític...'!$I$18=\"\",\"\",'811000 - Cambios en Polític...'!$I$18)","v":""},{"$f":"IF('811000 - Cambios en Polític...'!$I$19=\"\",\"\",'811000 - Cambios en Polític...'!$I$19)","v":""},{"$f":"IF('811000 - Cambios en Polític...'!$I$20=\"\",\"\",'811000 - Cambios en Polític...'!$I$20)","v":""},{"$f":"IF('811000 - Cambios en Polític...'!$I$21=\"\",\"\",'811000 - Cambios en Polític...'!$I$21)","v":""},{"$f":"IF('811000 - Cambios en Polític...'!$I$22=\"\",\"\",'811000 - Cambios en Polític...'!$I$22)","v":""},{"$f":"IF('811000 - Cambios en Polític...'!$I$23=\"\",\"\",'811000 - Cambios en Polític...'!$I$23)","v":""},{"$f":"IF('811000 - Cambios en Polític...'!$I$24=\"\",\"\",'811000 - Cambios en Polític...'!$I$24)","v":""},{"$f":"IF('811000 - Cambios en Polític...'!$I$25=\"\",\"\",'811000 - Cambios en Polític...'!$I$25)","v":""},{"$f":"IF('811000 - Cambios en Polític...'!$I$26=\"\",\"\",'811000 - Cambios en Polític...'!$I$26)","v":""},{"$f":"IF('811000 - Cambios en Polític...'!$I$27=\"\",\"\",'811000 - Cambios en Polític...'!$I$27)","v":""},{"$f":"IF('811000 - Cambios en Polític...'!$I$28=\"\",\"\",'811000 - Cambios en Polític...'!$I$28)","v":""},{"$f":"IF('811000 - Cambios en Polític...'!$I$29=\"\",\"\",'811000 - Cambios en Polític...'!$I$29)","v":""},{"$f":"IF('811000 - Cambios en Polític...'!$I$30=\"\",\"\",'811000 - Cambios en Polític...'!$I$30)","v":""},{"$f":"IF('811000 - Cambios en Polític...'!$I$31=\"\",\"\",'811000 - Cambios en Polític...'!$I$31)","v":""},{"$f":"IF('811000 - Cambios en Polític...'!$I$32=\"\",\"\",'811000 - Cambios en Polític...'!$I$32)","v":""},{"$f":"IF('811000 - Cambios en Polític...'!$I$33=\"\",\"\",'811000 - Cambios en Polític...'!$I$33)","v":""},{"$f":"IF('811000 - Cambios en Polític...'!$I$34=\"\",\"\",'811000 - Cambios en Polític...'!$I$34)","v":""},{"$f":"IF('811000 - Cambios en Polític...'!$I$35=\"\",\"\",'811000 - Cambios en Polític...'!$I$35)","v":""},{"$f":"IF('811000 - Cambios en Polític...'!$I$36=\"\",\"\",'811000 - Cambios en Polític...'!$I$36)","v":""},{"$f":"IF('811000 - Cambios en Polític...'!$I$37=\"\",\"\",'811000 - Cambios en Polític...'!$I$37)","v":""},{"$f":"IF('811000 - Cambios en Polític...'!$I$38=\"\",\"\",'811000 - Cambios en Polític...'!$I$38)","v":""},{"$f":"IF('811000 - Cambios en Polític...'!$I$39=\"\",\"\",'811000 - Cambios en Polític...'!$I$39)","v":""},{"$f":"IF('811000 - Cambios en Polític...'!$I$40=\"\",\"\",'811000 - Cambios en Polític...'!$I$40)","v":""}]
[null,"0;1","co-svsp-core:ImpactoEnElPatrimonioPorCambioPorPoliticaEstimacionOError","Impacto en el patrimonio por cambio por política, estimación o error",null,{"$f":"IF('811000 - Cambios en Polític...'!$J$16=\"\",\"\",'811000 - Cambios en Polític...'!$J$16)","v":""},{"$f":"IF('811000 - Cambios en Polític...'!$J$17=\"\",\"\",'811000 - Cambios en Polític...'!$J$17)","v":""},{"$f":"IF('811000 - Cambios en Polític...'!$J$18=\"\",\"\",'811000 - Cambios en Polític...'!$J$18)","v":""},{"$f":"IF('811000 - Cambios en Polític...'!$J$19=\"\",\"\",'811000 - Cambios en Polític...'!$J$19)","v":""},{"$f":"IF('811000 - Cambios en Polític...'!$J$20=\"\",\"\",'811000 - Cambios en Polític...'!$J$20)","v":""},{"$f":"IF('811000 - Cambios en Polític...'!$J$21=\"\",\"\",'811000 - Cambios en Polític...'!$J$21)","v":""},{"$f":"IF('811000 - Cambios en Polític...'!$J$22=\"\",\"\",'811000 - Cambios en Polític...'!$J$22)","v":""},{"$f":"IF('811000 - Cambios en Polític...'!$J$23=\"\",\"\",'811000 - Cambios en Polític...'!$J$23)","v":""},{"$f":"IF('811000 - Cambios en Polític...'!$J$24=\"\",\"\",'811000 - Cambios en Polític...'!$J$24)","v":""},{"$f":"IF('811000 - Cambios en Polític...'!$J$25=\"\",\"\",'811000 - Cambios en Polític...'!$J$25)","v":""},{"$f":"IF('811000 - Cambios en Polític...'!$J$26=\"\",\"\",'811000 - Cambios en Polític...'!$J$26)","v":""},{"$f":"IF('811000 - Cambios en Polític...'!$J$27=\"\",\"\",'811000 - Cambios en Polític...'!$J$27)","v":""},{"$f":"IF('811000 - Cambios en Polític...'!$J$28=\"\",\"\",'811000 - Cambios en Polític...'!$J$28)","v":""},{"$f":"IF('811000 - Cambios en Polític...'!$J$29=\"\",\"\",'811000 - Cambios en Polític...'!$J$29)","v":""},{"$f":"IF('811000 - Cambios en Polític...'!$J$30=\"\",\"\",'811000 - Cambios en Polític...'!$J$30)","v":""},{"$f":"IF('811000 - Cambios en Polític...'!$J$31=\"\",\"\",'811000 - Cambios en Polític...'!$J$31)","v":""},{"$f":"IF('811000 - Cambios en Polític...'!$J$32=\"\",\"\",'811000 - Cambios en Polític...'!$J$32)","v":""},{"$f":"IF('811000 - Cambios en Polític...'!$J$33=\"\",\"\",'811000 - Cambios en Polític...'!$J$33)","v":""},{"$f":"IF('811000 - Cambios en Polític...'!$J$34=\"\",\"\",'811000 - Cambios en Polític...'!$J$34)","v":""},{"$f":"IF('811000 - Cambios en Polític...'!$J$35=\"\",\"\",'811000 - Cambios en Polític...'!$J$35)","v":""},{"$f":"IF('811000 - Cambios en Polític...'!$J$36=\"\",\"\",'811000 - Cambios en Polític...'!$J$36)","v":""},{"$f":"IF('811000 - Cambios en Polític...'!$J$37=\"\",\"\",'811000 - Cambios en Polític...'!$J$37)","v":""},{"$f":"IF('811000 - Cambios en Polític...'!$J$38=\"\",\"\",'811000 - Cambios en Polític...'!$J$38)","v":""},{"$f":"IF('811000 - Cambios en Polític...'!$J$39=\"\",\"\",'811000 - Cambios en Polític...'!$J$39)","v":""},{"$f":"IF('811000 - Cambios en Polític...'!$J$40=\"\",\"\",'811000 - Cambios en Polític...'!$J$40)","v":""}]
[null,"0;1","co-svsp-core:ImpactoEnElResultadoPorCambioPorPoliticaEstimacionOError","Impacto en el resultado por cambio por política, estimación o error",null,{"$f":"IF('811000 - Cambios en Polític...'!$K$16=\"\",\"\",'811000 - Cambios en Polític...'!$K$16)","v":""},{"$f":"IF('811000 - Cambios en Polític...'!$K$17=\"\",\"\",'811000 - Cambios en Polític...'!$K$17)","v":""},{"$f":"IF('811000 - Cambios en Polític...'!$K$18=\"\",\"\",'811000 - Cambios en Polític...'!$K$18)","v":""},{"$f":"IF('811000 - Cambios en Polític...'!$K$19=\"\",\"\",'811000 - Cambios en Polític...'!$K$19)","v":""},{"$f":"IF('811000 - Cambios en Polític...'!$K$20=\"\",\"\",'811000 - Cambios en Polític...'!$K$20)","v":""},{"$f":"IF('811000 - Cambios en Polític...'!$K$21=\"\",\"\",'811000 - Cambios en Polític...'!$K$21)","v":""},{"$f":"IF('811000 - Cambios en Polític...'!$K$22=\"\",\"\",'811000 - Cambios en Polític...'!$K$22)","v":""},{"$f":"IF('811000 - Cambios en Polític...'!$K$23=\"\",\"\",'811000 - Cambios en Polític...'!$K$23)","v":""},{"$f":"IF('811000 - Cambios en Polític...'!$K$24=\"\",\"\",'811000 - Cambios en Polític...'!$K$24)","v":""},{"$f":"IF('811000 - Cambios en Polític...'!$K$25=\"\",\"\",'811000 - Cambios en Polític...'!$K$25)","v":""},{"$f":"IF('811000 - Cambios en Polític...'!$K$26=\"\",\"\",'811000 - Cambios en Polític...'!$K$26)","v":""},{"$f":"IF('811000 - Cambios en Polític...'!$K$27=\"\",\"\",'811000 - Cambios en Polític...'!$K$27)","v":""},{"$f":"IF('811000 - Cambios en Polític...'!$K$28=\"\",\"\",'811000 - Cambios en Polític...'!$K$28)","v":""},{"$f":"IF('811000 - Cambios en Polític...'!$K$29=\"\",\"\",'811000 - Cambios en Polític...'!$K$29)","v":""},{"$f":"IF('811000 - Cambios en Polític...'!$K$30=\"\",\"\",'811000 - Cambios en Polític...'!$K$30)","v":""},{"$f":"IF('811000 - Cambios en Polític...'!$K$31=\"\",\"\",'811000 - Cambios en Polític...'!$K$31)","v":""},{"$f":"IF('811000 - Cambios en Polític...'!$K$32=\"\",\"\",'811000 - Cambios en Polític...'!$K$32)","v":""},{"$f":"IF('811000 - Cambios en Polític...'!$K$33=\"\",\"\",'811000 - Cambios en Polític...'!$K$33)","v":""},{"$f":"IF('811000 - Cambios en Polític...'!$K$34=\"\",\"\",'811000 - Cambios en Polític...'!$K$34)","v":""},{"$f":"IF('811000 - Cambios en Polític...'!$K$35=\"\",\"\",'811000 - Cambios en Polític...'!$K$35)","v":""},{"$f":"IF('811000 - Cambios en Polític...'!$K$36=\"\",\"\",'811000 - Cambios en Polític...'!$K$36)","v":""},{"$f":"IF('811000 - Cambios en Polític...'!$K$37=\"\",\"\",'811000 - Cambios en Polític...'!$K$37)","v":""},{"$f":"IF('811000 - Cambios en Polític...'!$K$38=\"\",\"\",'811000 - Cambios en Polític...'!$K$38)","v":""},{"$f":"IF('811000 - Cambios en Polític...'!$K$39=\"\",\"\",'811000 - Cambios en Polític...'!$K$39)","v":""},{"$f":"IF('811000 - Cambios en Polític...'!$K$40=\"\",\"\",'811000 - Cambios en Polític...'!$K$40)","v":""}]

{"sheet":"822100 - Nota. Prop, plan y eq.","index":21,"n_rows":81,"n_cols":30,"rows_kept":81,"cut":false,"hidden":false,"merged":[[10,5,10,27],[11,5,11,27],[48,5,48,27],[49,5,49,27],[6,5,8,15],[6,16,8,26]]}
[]
[]
[]
[]
[]
[]
[null,null,null,null,null,{"$f":"\"822100 - Nota. Propiedades, planta y equipo  (para \"&YEAR(Periodos!$C$4)&\" y \"&YEAR(Periodos!$D$4)&\")\"","v":"822100 - Nota. Propiedades, planta y equipo  (para 2023 y 2022)"},null,null,null,null,null,null,null,null,null,null,{"$f":"\"822100 - Nota. Propiedades, planta y equipo (para \"&YEAR(Periodos!$C$4)&\" y \"&YEAR(Periodos!$D$4)&\")\"","v":"822100 - Nota. Propiedades, planta y equipo (para 2023 y 2022)"}]
[]
[]
[]
[null,null,null,null,null,{"$f":"\"Periodo Actual \"&Periodos!$C$4","v":"Periodo Actual 2023-12-31"}]
[null,null,null,null,null,"Propiedades, planta y equipo",null,null,null,null,null,null,null,null,null,null,null,null,null,null,null,null,null,null,null,null,null,null,null,{"$f":"IF(AH12=0,\"Formulario 'Nota de Propiedades, planta y equipo' Válido\",\"Formulario 'Nota de Propiedades, planta y equipo' con \"&AH12&\" inconsistencias\")","v":"Formulario 'Nota de Propiedades, planta y equipo' Válido"}]
[null,null,null,null,null,"ifrs-full:LandMember","ifrs-full:BuildingsMember","ifrs-full:LandAndBuildingsMember","ifrs-full:MachineryMember","ifrs-full:ShipsMember","ifrs-full:AircraftMember","co-svsp-core:AutomovilesBlindandosMiembro","co-svsp-core:OtrosVehiculosMiembro","ifrs-full:MotorVehiclesMember","ifrs-full:VehiclesMember","ifrs-full:FixturesAndFittingsMember","ifrs-full:ComputerEquipmentMember","ifrs-full:CommunicationAndNetworkEquipmentMember","ifrs-full:NetworkInfrastructureMember","ifrs-full:BearerPlantsMember","ifrs-full:TangibleExplorationAndEvaluationAssetsMember","ifrs-full:LeaseholdImprovementsMember","ifrs-full:ConstructionInProgressMember","co-svsp-core:CaninosMiembro","co-svsp-core:EquinosMiembro","co-svsp-core:AnimalesMiembro","co-svsp-core:Otras_PPE","ifrs-full:OtherPropertyPlantAndEquipmentMember"]
[null,null,null,null,"co-svsp-core:PropiedadesPlantaYEquipoEje_G1","Terrenos [miembro]","Edificios [miembro]","Terrenos y construcciones [miembro]","Maquinaria [miembro]","Buques [miembro]","Aeronaves [miembro]","Automóviles Blindados [miembro]","Otros vehículos [miembro]","Equipos de Transporte [miembro]","Vehículos [miembro]","Enseres y accesorios [miembro]","Equipos informáticos [miembro]","Equipos de redes y comunicación [miembro]","Infraestructura de red [miembro]","Plantas productoras [miembro]","Activos tangibles de exploración y evaluación [miembro]","Mejoras de derechos de arrendamiento [miembro]","Construcciones en proceso [miembro]","Caninos [miembro]","Equinos [miembro]","Animales [miembro]","Otras [miembro]","Total propiedades, planta y equipo [miembro]"]
[null,null,"1;1","ifrs-full:DisclosureOfPropertyPlantAndEquipmentLineItems","Información a revelar detallada sobre propiedades, planta y equipo [partidas de los estados financieros]"]
[null,null,"0;1","ifrs-full:MeasurementBasesPropertyPlantAndEquipment","Bases de medición, propiedades, planta y equipo"]
[null,null,"0;1","ifrs-full:DepreciationMethodPropertyPlantAndEquipment","Método de depreciación, propiedades, planta y equipo"]
[null,null,"0;1","ifrs-full:EffectiveDatesOfRevaluationPropertyPlantAndEquipment","Fechas de vigencia de revaluación, propiedades, planta y equipo"]
[null,null,"0;1","ifrs-full:ExplanationOfIndependentValuerUsedForRevaluationPropertyPlantAndEquipment","Explicación de la implicación del tasador independiente en la revaluación, propiedades, planta y equipo"]
[null,null,"0;1","co-svsp-core:ExplanationOfRevaluationMethodsAndSignificantAssumptionsPropertyPlantAndEquipment","Explicación del método de revaluación y supuestos significativos, propiedad, planta y equipo"]
[null,null,"1;1","ifrs-full:ReconciliationOfChangesInPropertyPlantAndEquipmentAbstract","Conciliación de cambios en propiedades, planta y equipo [resumen]"]
[null,null,"1;2","ifrs-full:PropertyPlantAndEquipment","Propiedades, planta y equipo al comienzo del periodo",{"$f":"+F81","v":0},{"$f":"+G81","v":0},{"$f":"+H81","v":0},{"$f":"+I81","v":0},{"$f":"+J81","v":0},{"$f":"+K81","v":0},0,0,0,0,0,0,0,0,0,0,0,{"$f":"+W81","v":0},{"$f":"+X81","v":0},{"$f":"+Y81","v":0},{"$f":"+Z81","v":0},{"$f":"+AA81","v":0},{"$f":"IF(AND(F22=\"\",G22=\"\",I22=\"\",J22=\"\",K22=\"\",L22=\"\",M22=\"\",P22=\"\",Q22=\"\",R22=\"\",S22=\"\",T22=\"\",U22=\"\",V22=\"\",W22=\"\",X22=\"\",Y22=\"\",AA22=\"\"),\"\",F22+G22+I22+J22+K22+L22+M22+P22+Q22+R22+S22+T22+U22+V22+W22+X22+Y22+AA22)","v":0}]
[null,null,"0;1","ifrs-full:ChangesInPropertyPlantAndEquipmentAbstract","Cambios en propiedades, planta y equipo [resumen]"]
[null,null,"0;1","ifrs-full:AdditionsOtherThanThroughBusinessCombinationsPropertyPlantAndEquipment","Incrementos distintos de los procedentes de combinaciones de negocios, propiedades, planta y equipo",null,null,{"$f":"IF(AND(F24=\"\",G24=\"\"),\"\",F24+G24)","v":""},null,null,null,null,null,{"$f":"IF(AND(L24=\"\",M24=\"\"),\"\",L24+M24)","v":""},{"$f":"IF(AND(J24=\"\",K24=\"\",L24=\"\",M24=\"\"),\"\",J24+K24+L24+M24)","v":""},null,null,null,null,null,null,null,null,null,null,{"$f":"IF(AND(X24=\"\",Y24=\"\"),\"\",X24+Y24)","v":""},null,{"$f":"IF(AND(F24=\"\",G24=\"\",I24=\"\",J24=\"\",K24=\"\",L24=\"\",M24=\"\",P24=\"\",Q24=\"\",R24=\"\",S24=\"\",T24=\"\",U24=\"\",V24=\"\",W24=\"\",X24=\"\",Y24=\"\",AA24=\"\"),\"\",F24+G24+I24+J24+K24+L24+M24+P24+Q24+R24+S24+T24+U24+V24+W24+X24+Y24+AA24)","v":""}]
[null,null,"0;1","ifrs-full:AcquisitionsThroughBusinessCombinationsPropertyPlantAndEquipment","Adquisiciones realizadas mediante combinaciones de negocios, propiedades, planta y equipo",null,null,"",null,null,null,null,null,"","",null,null,null,null,null,null,null,null,null,null,"",null,""]
[null,null,"0;1","ifrs-full:DepreciationPropertyPlantAndEquipment","Depreciación, propiedades, planta y equipo",null,null,"",null,null,null,null,null,"","",null,null,null,null,null,null,null,null,null,null,"",null,""]
[null,null,"0;1","ifrs-full:ImpairmentLossRecognisedInProfitOrLossPropertyPlantAndEquipment","Pérdidas por deterioro de valor reconocidas en el resultado del periodo, propiedades, planta y equipo",null,null,"",null,null,null,null,null,"","",null,null,null,null,null,null,null,null,null,null,"",null,""]
[null,null,"0;1","ifrs-full:ReversalOfImpairmentLossRecognisedInProfitOrLossPropertyPlantAndEquipment","Reversión de pérdidas por deterioro de valor reconocidas en el resultado del periodo, propiedades, planta y equipo",null,null,"",null,null,null,null,null,"","",null,null,null,null,null,null,null,null,null,null,"",null,""]
[null,null,"0;1","ifrs-full:RevaluationIncreaseDecreasePropertyPlantAndEquipment","Incrementos (disminuciones) de revaluaciones, propiedades, planta y equipo",null,null,"",null,null,null,null,null,"","",null,null,null,null,null,null,null,null,null,null,"",null,""]
[null,null,"0;1","ifrs-full:ImpairmentLossRecognisedInOtherComprehensiveIncomePropertyPlantAndEquipment","Pérdidas por deterioro de valor reconocidas en otro resultado integral, propiedades, planta y equipo",null,null,"",null,null,null,null,null,"","",null,null,null,null,null,null,null,null,null,null,"",null,""]
[null,null,"0;1","ifrs-full:ReversalOfImpairmentLossRecognisedInOtherComprehensiveIncomePropertyPlantAndEquipment","Reversión de pérdidas por deterioro de valor reconocidas en otro resultado integral, propiedades, planta y equipo",null,null,"",null,null,null,null,null,"","",null,null,null,null,null,null,null,null,null,null,"",null,""]
[null,null,"1;1","ifrs-full:IncreaseDecreaseThroughTransfersAndOtherChangesPropertyPlantAndEquipmentAbstract","Incrementos (disminuciones) por transferencias y otros cambios, propiedades, planta y equipo [resumen]",null,null,"",null,null,null,null,null,null,null,null,null,null,null,null,null,null,null,null,null,null,null,""]
[null,null,"0;1","ifrs-full:IncreaseDecreaseThroughTransfersFromToInvestmentPropertyPropertyPlantAndEquipment","Incrementos (disminuciones) por transferencias desde (hacia) propiedades de inversión, propiedades, planta y equipo",null,null,{"$f":"IF(AND(F33=\"\",G33=\"\"),\"\",F33+G33)","v":""},null,null,null,null,null,{"$f":"IF(AND(L33=\"\",M33=\"\"),\"\",L33+M33)","v":""},{"$f":"IF(AND(J33=\"\",K33=\"\",L33=\"\",M33=\"\"),\"\",J33+K33+L33+M33)","v":""},null,null,null,null,null,null,null,null,null,null,{"$f":"IF(AND(X33=\"\",Y33=\"\"),\"\",X33+Y33)","v":""},null,{"$f":"IF(AND(F33=\"\",G33=\"\",I33=\"\",J33=\"\",K33=\"\",L33=\"\",M33=\"\",P33=\"\",Q33=\"\",R33=\"\",S33=\"\",T33=\"\",U33=\"\",V33=\"\",W33=\"\",X33=\"\",Y33=\"\",AA33=\"\"),\"\",F33+G33+I33+J33+K33+L33+M33+P33+Q33+R33+S33+T33+U33+V33+W33+X33+Y33+AA33)","v":""}]
[null,null,"0;1","ifrs-full:IncreaseDecreaseThroughTransfersFromConstructionInProgressPropertyPlantAndEquipment","Incrementos (disminuciones) por transferencias desde construcciones en proceso , propiedades, planta y equipo",null,null,{"$f":"IF(AND(F34=\"\",G34=\"\"),\"\",F34+G34)","v":""},null,null,null,null,null,{"$f":"IF(AND(L34=\"\",M34=\"\"),\"\",L34+M34)","v":""},{"$f":"IF(AND(J34=\"\",K34=\"\",L34=\"\",M34=\"\"),\"\",J34+K34+L34+M34)","v":""},null,null,null,null,null,null,null,null,null,null,{"$f":"IF(AND(X34=\"\",Y34=\"\"),\"\",X34+Y34)","v":""},null,{"$f":"IF(AND(F34=\"\",G34=\"\",I34=\"\",J34=\"\",K34=\"\",L34=\"\",M34=\"\",P34=\"\",Q34=\"\",R34=\"\",S34=\"\",T34=\"\",U34=\"\",V34=\"\",W34=\"\",X34=\"\",Y34=\"\",AA34=\"\"),\"\",F34+G34+I34+J34+K34+L34+M34+P34+Q34+R34+S34+T34+U34+V34+W34+X34+Y34+AA34)","v":""}]
[null,null,"0;1","ifrs-full:IncreaseDecreaseThroughOtherChangesPropertyPlantAndEquipment","Incrementos (disminuciones) por otros cambios, propiedades, planta y equipo",null,null,{"$f":"IF(AND(F35=\"\",G35=\"\"),\"\",F35+G35)","v":""},null,null,null,null,null,{"$f":"IF(AND(L35=\"\",M35=\"\"),\"\",L35+M35)","v":""},{"$f":"IF(AND(J35=\"\",K35=\"\",L35=\"\",M35=\"\"),\"\",J35+K35+L35+M35)","v":""},null,null,null,null,null,null,null,null,null,null,{"$f":"IF(AND(X35=\"\",Y35=\"\"),\"\",X35+Y35)","v":""},null,{"$f":"IF(AND(F35=\"\",G35=\"\",I35=\"\",J35=\"\",K35=\"\",L35=\"\",M35=\"\",P35=\"\",Q35=\"\",R35=\"\",S35=\"\",T35=\"\",U35=\"\",V35=\"\",W35=\"\",X35=\"\",Y35=\"\",AA35=\"\"),\"\",F35+G35+I35+J35+K35+L35+M35+P35+Q35+R35+S35+T35+U35+V35+W35+X35+Y35+AA35)","v":""}]
[null,null,"0;1","ifrs-full:IncreaseDecreaseThroughTransfersAndOtherChangesPropertyPlantAndEquipment","Total incrementos (disminuciones) por transferencias y otros cambios, propiedades, planta y equipo",{"$f":"F33+F34+F35","v":0},{"$f":"G33+G34+G35","v":0},{"$f":"IF(AND(F36=\"\",G36=\"\"),\"\",F36+G36)","v":0},{"$f":"I33+I34+I35","v":0},{"$f":"J33+J34+J35","v":0},{"$f":"K33+K34+K35","v":0},{"$f":"L33+L34+L35","v":0},{"$f":"M33+M34+M35","v":0},{"$f":"IF(AND(L36=\"\",M36=\"\"),\"\",L36+M36)","v":0},{"$f":"IF(AND(J36=\"\",K36=\"\",L36=\"\",M36=\"\"),\"\",J36+K36+L36+M36)","v":0},{"$f":"P33+P34+P35","v":0},0,0,0,0,0,0,{"$f":"W33+W34+W35","v":0},{"$f":"X33+X34+X35","v":0},{"$f":"Y33+Y34+Y35","v":0},{"$f":"IF(AND(X36=\"\",Y36=\"\"),\"\",X36+Y36)","v":0},{"$f":"AA33+AA34+AA35","v":0},{"$f":"IF(AND(F36=\"\",G36=\"\",I36=\"\",J36=\"\",K36=\"\",L36=\"\",M36=\"\",P36=\"\",Q36=\"\",R36=\"\",S36=\"\",T36=\"\",U36=\"\",V36=\"\",W36=\"\",X36=\"\",Y36=\"\",AA36=\"\"),\"\",F36+G36+I36+J36+K36+L36+M36+P36+Q36+R36+S36+T36+U36+V36+W36+X36+Y36+AA36)","v":0}]
[null,null,"0;1","ifrs-full:DisposalsAndRetirementsPropertyPlantAndEquipmentAbstract","Disposiciones y retiros de servicio, propiedades, planta y equipo [resumen]"]
[null,null,"0;1","ifrs-full:DisposalsPropertyPlantAndEquipment","Disposiciones, propiedades, planta y equipo",null,null,{"$f":"IF(AND(F38=\"\",G38=\"\"),\"\",F38+G38)","v":""},null,null,null,null,null,{"$f":"IF(AND(L38=\"\",M38=\"\"),\"\",L38+M38)","v":""},{"$f":"IF(AND(J38=\"\",K38=\"\",L38=\"\",M38=\"\"),\"\",J38+K38+L38+M38)","v":""},null,null,null,null,null,null,null,null,null,null,{"$f":"IF(AND(X38=\"\",Y38=\"\"),\"\",X38+Y38)","v":""},null,{"$f":"IF(AND(F38=\"\",G38=\"\",I38=\"\",J38=\"\",K38=\"\",L38=\"\",M38=\"\",P38=\"\",Q38=\"\",R38=\"\",S38=\"\",T38=\"\",U38=\"\",V38=\"\",W38=\"\",X38=\"\",Y38=\"\",AA38=\"\"),\"\",F38+G38+I38+J38+K38+L38+M38+P38+Q38+R38+S38+T38+U38+V38+W38+X38+Y38+AA38)","v":""}]
[null,null,"0;1","ifrs-full:RetirementsPropertyPlantAndEquipment","Retiros, propiedades, planta y equipo",null,null,"",null,null,null,null,null,"","",null,null,null,null,null,null,null,null,null,null,"",null,""]
[null,null,"0;1","ifrs-full:DisposalsAndRetirementsPropertyPlantAndEquipment","Total de disposiciones y retiros de servicio, propiedades, planta y equipo",{"$f":"F38+F39","v":0},{"$f":"G38+G39","v":0},0,{"$f":"I38+I39","v":0},{"$f":"J38+J39","v":0},{"$f":"K38+K39","v":0},{"$f":"L38+L39","v":0},{"$f":"M38+M39","v":0},0,0,{"$f":"P38+P39","v":0},0,0,0,0,0,0,{"$f":"W38+W39","v":0},{"$f":"X38+X39","v":0},{"$f":"Y38+Y39","v":0},0,{"$f":"AA38+AA39","v":0},0]
[null,null,"0;1","ifrs-full:DecreaseThroughClassifiedAsHeldForSalePropertyPlantAndEquipment","Disminuciones por clasificar como mantenidos para la venta, propiedades, planta y equipo",null,null,"",null,null,null,null,null,"","",null,null,null,null,null,null,null,null,null,null,"",null,""]
[null,null,"0;1","ifrs-full:ChangesInPropertyPlantAndEquipment","Total incremento (disminución) en propiedades, planta y equipo",{"$f":"F24+F25-F26-F27+F28+F29-F30+F31+F36-F40-F41","v":0},{"$f":"G24+G25-G26-G27+G28+G29-G30+G31+G36-G40-G41","v":0},0,{"$f":"I24+I25-I26-I27+I28+I29-I30+I31+I36-I40-I41","v":0},{"$f":"J24+J25-J26-J27+J28+J29-J30+J31+J36-J40-J41","v":0},{"$f":"K24+K25-K26-K27+K28+K29-K30+K31+K36-K40-K41","v":0},{"$f":"L24+L25-L26-L27+L28+L29-L30+L31+L36-L40-L41","v":0},{"$f":"M24+M25-M26-M27+M28+M29-M30+M31+M36-M40-M41","v":0},0,0,{"$f":"P24+P25-P26-P27+P28+P29-P30+P31+P36-P40-P41","v":0},0,0,0,0,0,0,{"$f":"W24+W25-W26-W27+W28+W29-W30+W31+W36-W40-W41","v":0},{"$f":"X24+X25-X26-X27+X28+X29-X30+X31+X36-X40-X41","v":0},{"$f":"Y24+Y25-Y26-Y27+Y28+Y29-Y30+Y31+Y36-Y40-Y41","v":0},0,{"$f":"AA24+AA25-AA26-AA27+AA28+AA29-AA30+AA31+AA36-AA40-AA41","v":0},0]
[null,null,"1;1","ifrs-full:PropertyPlantAndEquipment","Propiedades, planta y equipo al final del periodo",{"$f":"F22+F42","v":0},{"$f":"G22+G42","v":0},0,{"$f":"I22+I42","v":0},{"$f":"J22+J42","v":0},{"$f":"K22+K42","v":0},{"$f":"L22+L42","v":0},{"$f":"M22+M42","v":0},0,0,{"$f":"P22+P42","v":0},0,0,0,0,0,0,{"$f":"W22+W42","v":0},{"$f":"X22+X42","v":0},{"$f":"Y22+Y42","v":0},0,{"$f":"AA22+AA42","v":0},0]
[]
[]
[]
[]
[]
[null,null,null,null,null,{"$f":"\"Periodo Actual \"&Periodos!$D$4","v":"Periodo Actual 2022-12-31"}]
[null,null,null,null,null,"Propiedades, planta y equipo"]
[null,null,null,null,null,"ifrs-full:LandMember","ifrs-full:BuildingsMember","ifrs-full:LandAndBuildingsMember","ifrs-full:MachineryMember","ifrs-full:ShipsMember","ifrs-full:AircraftMember","co-svsp-core:AutomovilesBlindandosMiembro","co-svsp-core:OtrosVehiculosMiembro","ifrs-full:MotorVehiclesMember","ifrs-full:VehiclesMember","ifrs-full:FixturesAndFittingsMember","ifrs-full:ComputerEquipmentMember","ifrs-full:CommunicationAndNetworkEquipmentMember","ifrs-full:NetworkInfrastructureMember","ifrs-full:BearerPlantsMember","ifrs-full:TangibleExplorationAndEvaluationAssetsMember","ifrs-full:LeaseholdImprovementsMember","ifrs-full:ConstructionInProgressMember","co-svsp-core:CaninosMiembro","co-svsp-core:EquinosMiembro","co-svsp-core:AnimalesMiembro","co-svsp-core:Otras_PPE","ifrs-full:OtherPropertyPlantAndEquipmentMember"]
[null,null,null,null,"co-svsp-core:PropiedadesPlantaYEquipoEje_G1","Terrenos [miembro]","Edificios [miembro]","Terrenos y construcciones [miembro]","Maquinaria [miembro]","Buques [miembro]","Aeronaves [miembro]","Automóviles Blindados [miembro]","Otros vehículos [miembro]","Equipos de Transporte [miembro]","Vehículos [miembro]","Enseres y accesorios [miembro]","Equipos informáticos [miembro]","Equipos de redes y comunicación [miembro]","Infraestructura de red [miembro]","Plantas productoras [miembro]","Activos tangibles de exploración y evaluación [miembro]","Mejoras de derechos de arrendamiento [miembro]","Construcciones en proceso [miembro]","Caninos [miembro]","Equinos [miembro]","Animales [miembro]","Otras [miembro]","Total propiedades, planta y equipo [miembro]"]
[null,null,"1;2","ifrs-full:DisclosureOfPropertyPlantAndEquipmentLineItems","Información a revelar detallada sobre propiedades, planta y equipo [partidas de los estados financieros]"]
[null,null,"0;2","ifrs-full:MeasurementBasesPropertyPlantAndEquipment","Bases de medición, propiedades, planta y equipo"]
[null,null,"0;2","ifrs-full:DepreciationMethodPropertyPlantAndEquipment","Método de depreciación, propiedades, planta y equipo"]
[null,null,"0;2","ifrs-full:EffectiveDatesOfRevaluationPropertyPlantAndEquipment","Fechas de vigencia de revaluación, propiedades, planta y equipo"]
[null,null,"0;2","ifrs-full:ExplanationOfIndependentValuerUsedForRevaluationPropertyPlantAndEquipment","Explicación de la implicación del tasador independiente en la revaluación, propiedades, planta y equipo"]
[null,null,"0;2","co-svsp-core:ExplanationOfRevaluationMethodsAndSignificantAssumptionsPropertyPlantAndEquipment","Explicación del método de revaluación y supuestos significativos, propiedad, planta y equipo"]
[null,null,"1;2","ifrs-full:ReconciliationOfChangesInPropertyPlantAndEquipmentAbstract","Conciliación de cambios en propiedades, planta y equipo [resumen]"]
[null,null,"1;3","ifrs-full:PropertyPlantAndEquipment","Propiedades, planta y equipo al comienzo del periodo",null,null,{"$f":"IF(AND(F60=\"\",G60=\"\"),\"\",F60+G60)","v":""},null,null,null,null,null,{"$f":"IF(AND(L60=\"\",M60=\"\"),\"\",L60+M60)","v":""},{"$f":"IF(AND(J60=\"\",K60=\"\",L60=\"\",M60=\"\"),\"\",J60+K60+L60+M60)","v":""},null,null,null,null,null,null,null,null,null,null,{"$f":"IF(AND(X60=\"\",Y60=\"\"),\"\",X60+Y60)","v":""},null,{"$f":"IF(AND(F60=\"\",G60=\"\",I60=\"\",J60=\"\",K60=\"\",L60=\"\",M60=\"\",P60=\"\",Q60=\"\",R60=\"\",S60=\"\",T60=\"\",U60=\"\",V60=\"\",W60=\"\",X60=\"\",Y60=\"\",AA60=\"\"),\"\",F60+G60+I60+J60+K60+L60+M60+P60+Q60+R60+S60+T60+U60+V60+W60+X60+Y60+AA60)","v":""}]
[null,null,"0;2","ifrs-full:ChangesInPropertyPlantAndEquipmentAbstract","Cambios en propiedades, planta y equipo [resumen]"]
[null,null,"0;2","ifrs-full:AdditionsOtherThanThroughBusinessCombinationsPropertyPlantAndEquipment","Incrementos distintos de los procedentes de combinaciones de negocios, propiedades, planta y equipo",null,null,{"$f":"IF(AND(F62=\"\",G62=\"\"),\"\",F62+G62)","v":""},null,null,null,null,null,{"$f":"IF(AND(L62=\"\",M62=\"\"),\"\",L62+M62)","v":""},{"$f":"IF(AND(J62=\"\",K62=\"\",L62=\"\",M62=\"\"),\"\",J62+K62+L62+M62)","v":""},null,null,null,null,null,null,null,null,null,null,{"$f":"IF(AND(X62=\"\",Y62=\"\"),\"\",X62+Y62)","v":""},null,{"$f":"IF(AND(F62=\"\",G62=\"\",I62=\"\",J62=\"\",K62=\"\",L62=\"\",M62=\"\",P62=\"\",Q62=\"\",R62=\"\",S62=\"\",T62=\"\",U62=\"\",V62=\"\",W62=\"\",X62=\"\",Y62=\"\",AA62=\"\"),\"\",F62+G62+I62+J62+K62+L62+M62+P62+Q62+R62+S62+T62+U62+V62+W62+X62+Y62+AA62)","v":""}]
[null,null,"0;2","ifrs-full:AcquisitionsThroughBusinessCombinationsPropertyPlantAndEquipment","Adquisiciones realizadas mediante combinaciones de negocios, propiedades, planta y equipo",null,null,"",null,null,null,null,null,"","",null,null,null,null,null,null,null,null,null,null,"",null,""]
[null,null,"0;2","ifrs-full:DepreciationPropertyPlantAndEquipment","Depreciación, propiedades, planta y equipo",null,null,"",null,null,null,null,null,"","",null,null,null,null,null,null,null,null,null,null,"",null,""]
[null,null,"0;2","ifrs-full:ImpairmentLossRecognisedInProfitOrLossPropertyPlantAndEquipment","Pérdidas por deterioro de valor reconocidas en el resultado del periodo, propiedades, planta y equipo",null,null,"",null,null,null,null,null,"","",null,null,null,null,null,null,null,null,null,null,"",null,""]
[null,null,"0;2","ifrs-full:ReversalOfImpairmentLossRecognisedInProfitOrLossPropertyPlantAndEquipment","Reversión de pérdidas por deterioro de valor reconocidas en el resultado del periodo, propiedades, planta y equipo",null,null,"",null,null,null,null,null,"","",null,null,null,null,null,null,null,null,null,null,"",null,""]
[null,null,"0;2","ifrs-full:RevaluationIncreaseDecreasePropertyPlantAndEquipment","Incrementos (disminuciones) de revaluaciones, propiedades, planta y equipo",null,null,"",null,null,null,null,null,"","",null,null,null,null,null,null,null,null,null,null,"",null,""]
[null,null,"0;2","ifrs-full:ImpairmentLossRecognisedInOtherComprehensiveIncomePropertyPlantAndEquipment","Pérdidas por deterioro de valor reconocidas en otro resultado integral, propiedades, planta y equipo",null,null,"",null,null,null,null,null,"","",null,null,null,null,null,null,null,null,null,null,"",null,""]
[null,null,"0;2","ifrs-full:ReversalOfImpairmentLossRecognisedInOtherComprehensiveIncomePropertyPlantAndEquipment","Reversión de pérdidas por deterioro de valor reconocidas en otro resultado integral, propiedades, planta y equipo",null,null,"",null,null,null,null,null,"","",null,null,null,null,null,null,null,null,null,null,"",null,""]
[null,null,"1;2","ifrs-full:IncreaseDecreaseThroughTransfersAndOtherChangesPropertyPlantAndEquipmentAbstract","Incrementos (disminuciones) por transferencias y otros cambios, propiedades, planta y equipo [resumen]"]
[null,null,"0;2","ifrs-full:IncreaseDecreaseThroughTransfersFromToInvestmentPropertyPropertyPlantAndEquipment","Incrementos (disminuciones) por transferencias desde (hacia) propiedades de inversión, propiedades, planta y equipo",null,null,{"$f":"IF(AND(F71=\"\",G71=\"\"),\"\",F71+G71)","v":""},null,null,null,null,null,{"$f":"IF(AND(L71=\"\",M71=\"\"),\"\",L71+M71)","v":""},{"$f":"IF(AND(J71=\"\",K71=\"\",L71=\"\",M71=\"\"),\"\",J71+K71+L71+M71)","v":""},null,null,null,null,null,null,null,null,null,null,{"$f":"IF(AND(X71=\"\",Y71=\"\"),\"\",X71+Y71)","v":""},null,{"$f":"IF(AND(F71=\"\",G71=\"\",I71=\"\",J71=\"\",K71=\"\",L71=\"\",M71=\"\",P71=\"\",Q71=\"\",R71=\"\",S71=\"\",T71=\"\",U71=\"\",V71=\"\",W71=\"\",X71=\"\",Y71=\"\",AA71=\"\"),\"\",F71+G71+I71+J71+K71+L71+M71+P71+Q71+R71+S71+T71+U71+V71+W71+X71+Y71+AA71)","v":""}]
[null,null,"0;2","ifrs-full:IncreaseDecreaseThroughTransfersFromConstructionInProgressPropertyPlantAndEquipment","Incrementos (disminuciones) por transferencias desde construcciones en proceso , propiedades, planta y equipo",null,null,{"$f":"IF(AND(F72=\"\",G72=\"\"),\"\",F72+G72)","v":""},null,null,null,null,null,{"$f":"IF(AND(L72=\"\",M72=\"\"),\"\",L72+M72)","v":""},{"$f":"IF(AND(J72=\"\",K72=\"\",L72=\"\",M72=\"\"),\"\",J72+K72+L72+M72)","v":""},null,null,null,null,null,null,null,null,null,null,{"$f":"IF(AND(X72=\"\",Y72=\"\"),\"\",X72+Y72)","v":""},null,{"$f":"IF(AND(F72=\"\",G72=\"\",I72=\"\",J72=\"\",K72=\"\",L72=\"\",M72=\"\",P72=\"\",Q72=\"\",R72=\"\",S72=\"\",T72=\"\",U72=\"\",V72=\"\",W72=\"\",X72=\"\",Y72=\"\",AA72=\"\"),\"\",F72+G72+I72+J72+K72+L72+M72+P72+Q72+R72+S72+T72+U72+V72+W72+X72+Y72+AA72)","v":""}]
[null,null,"0;2","ifrs-full:IncreaseDecreaseThroughOtherChangesPropertyPlantAndEquipment","Incrementos (disminuciones) por otros cambios, propiedades, planta y equipo",null,null,{"$f":"IF(AND(F73=\"\",G73=\"\"),\"\",F73+G73)","v":""},null,null,null,null,null,{"$f":"IF(AND(L73=\"\",M73=\"\"),\"\",L73+M73)","v":""},{"$f":"IF(AND(J73=\"\",K73=\"\",L73=\"\",M73=\"\"),\"\",J73+K73+L73+M73)","v":""},null,null,null,null,null,null,null,null,null,null,{"$f":"IF(AND(X73=\"\",Y73=\"\"),\"\",X73+Y73)","v":""},null,{"$f":"IF(AND(F73=\"\",G73=\"\",I73=\"\",J73=\"\",K73=\"\",L73=\"\",M73=\"\",P73=\"\",Q73=\"\",R73=\"\",S73=\"\",T73=\"\",U73=\"\",V73=\"\",W73=\"\",X73=\"\",Y73=\"\",AA73=\"\"),\"\",F73+G73+I73+J73+K73+L73+M73+P73+Q73+R73+S73+T73+U73+V73+W73+X73+Y73+AA73)","v":""}]
[null,null,"0;2","ifrs-full:IncreaseDecreaseThroughTransfersAndOtherChangesPropertyPlantAndEquipment","Total incrementos (disminuciones) por transferencias y otros cambios, propiedades, planta y equipo",{"$f":"F71+F72+F73","v":0},{"$f":"G71+G72+G73","v":0},{"$f":"IF(AND(F74=\"\",G74=\"\"),\"\",F74+G74)","v":0},{"$f":"I71+I72+I73","v":0},{"$f":"J71+J72+J73","v":0},{"$f":"K71+K72+K73","v":0},{"$f":"L71+L72+L73","v":0},{"$f":"M71+M72+M73","v":0},{"$f":"IF(AND(L74=\"\",M74=\"\"),\"\",L74+M74)","v":0},{"$f":"IF(AND(J74=\"\",K74=\"\",L74=\"\",M74=\"\"),\"\",J74+K74+L74+M74)","v":0},{"$f":"P71+P72+P73","v":0},0,0,0,0,0,0,0,0,0,{"$f":"IF(AND(X74=\"\",Y74=\"\"),\"\",X74+Y74)","v":0},{"$f":"AA71+AA72+AA73","v":0},{"$f":"IF(AND(F74=\"\",G74=\"\",I74=\"\",J74=\"\",K74=\"\",L74=\"\",M74=\"\",P74=\"\",Q74=\"\",R74=\"\",S74=\"\",T74=\"\",U74=\"\",V74=\"\",W74=\"\",X74=\"\",Y74=\"\",AA74=\"\"),\"\",F74+G74+I74+J74+K74+L74+M74+P74+Q74+R74+S74+T74+U74+V74+W74+X74+Y74+AA74)","v":0}]
[null,null,"0;2","ifrs-full:DisposalsAndRetirementsPropertyPlantAndEquipmentAbstract","Disposiciones y retiros de servicio, propiedades, planta y equipo [resumen]"]
[null,null,"0;2","ifrs-full:DisposalsPropertyPlantAndEquipment","Disposiciones, propiedades, planta y equipo",null,null,{"$f":"IF(AND(F76=\"\",G76=\"\"),\"\",F76+G76)","v":""},null,null,null,null,null,{"$f":"IF(AND(L76=\"\",M76=\"\"),\"\",L76+M76)","v":""},{"$f":"IF(AND(J76=\"\",K76=\"\",L76=\"\",M76=\"\"),\"\",J76+K76+L76+M76)","v":""},null,null,null,null,null,null,null,null,null,null,{"$f":"IF(AND(X76=\"\",Y76=\"\"),\"\",X76+Y76)","v":""},null,{"$f":"IF(AND(F76=\"\",G76=\"\",I76=\"\",J76=\"\",K76=\"\",L76=\"\",M76=\"\",P76=\"\",Q76=\"\",R76=\"\",S76=\"\",T76=\"\",U76=\"\",V76=\"\",W76=\"\",X76=\"\",Y76=\"\",AA76=\"\"),\"\",F76+G76+I76+J76+K76+L76+M76+P76+Q76+R76+S76+T76+U76+V76+W76+X76+Y76+AA76)","v":""}]
[null,null,"0;2","ifrs-full:RetirementsPropertyPlantAndEquipment","Retiros, propiedades, planta y equipo",null,null,"",null,null,null,null,null,"","",null,null,null,null,null,null,null,null,null,null,"",null,""]
[null,null,"0;2","ifrs-full:DisposalsAndRetirementsPropertyPlantAndEquipment","Total de disposiciones y retiros de servicio, propiedades, planta y equipo",{"$f":"F76+F77","v":0},{"$f":"G76+G77","v":0},0,{"$f":"I76+I77","v":0},{"$f":"J76+J77","v":0},{"$f":"K76+K77","v":0},{"$f":"L76+L77","v":0},{"$f":"M76+M77","v":0},0,0,{"$f":"P76+P77","v":0},0,0,0,0,0,0,0,0,0,0,{"$f":"AA76+AA77","v":0},0]
[null,null,"0;2","ifrs-full:DecreaseThroughClassifiedAsHeldForSalePropertyPlantAndEquipment","Disminuciones por clasificar como mantenidos para la venta, propiedades, planta y equipo",null,null,"",null,null,null,null,null,"","",null,null,null,null,null,null,null,null,null,null,"",null,""]
[null,null,"0;2","ifrs-full:ChangesInPropertyPlantAndEquipment","Total incremento (disminución) en propiedades, planta y equipo",{"$f":"F62+F63-F64-F65+F66+F67-F68+F69+F74-F78-F79","v":0},{"$f":"G62+G63-G64-G65+G66+G67-G68+G69+G74-G78-G79","v":0},0,{"$f":"I62+I63-I64-I65+I66+I67-I68+I69+I74-I78-I79","v":0},{"$f":"J62+J63-J64-J65+J66+J67-J68+J69+J74-J78-J79","v":0},{"$f":"K62+K63-K64-K65+K66+K67-K68+K69+K74-K78-K79","v":0},{"$f":"L62+L63-L64-L65+L66+L67-L68+L69+L74-L78-L79","v":0},{"$f":"M62+M63-M64-M65+M66+M67-M68+M69+M74-M78-M79","v":0},0,0,{"$f":"P62+P63-P64-P65+P66+P67-P68+P69+P74-P78-P79","v":0},0,0,0,0,0,0,0,0,0,0,{"$f":"AA62+AA63-AA64-AA65+AA66+AA67-AA68+AA69+AA74-AA78-AA79","v":0},0]
[null,null,"1;2","ifrs-full:PropertyPlantAndEquipment","Propiedades, planta y equipo al final del periodo",{"$f":"F60+F80","v":0},{"$f":"G60+G80","v":0},0,{"$f":"I60+I80","v":0},{"$f":"J60+J80","v":0},{"$f":"K60+K80","v":0},{"$f":"L60+L80","v":0},{"$f":"M60+M80","v":0},0,0,{"$f":"P60+P80","v":0},0,0,0,0,0,0,0,0,0,0,{"$f":"AA60+AA80","v":0},0]

{"sheet":"823180 - Nota. Activos Intang.","index":22,"n_rows":67,"n_cols":24,"rows_kept":67,"cut":false,"hidden":false,"merged":[[6,4,8,20],[12,5,12,14],[41,5,41,14]]}
[]
[]
[]
[]
[]
[]
[null,null,null,null,{"$f":"\"828000 - Activos intangibles  (para \"&YEAR(Periodos!$C$4)&\" y \"&YEAR(Periodos!$D$4)&\")\"","v":"828000 - Activos intangibles  (para 2023 y 2022)"}]
[]
[]
[]
[]
[]
[null,null,null,null,null,{"$f":"\"Periodo Actual \"&Periodos!$C$4","v":"Periodo Actual 2023-12-31"},null,null,null,null,null,null,null,null,null,null,null,null,null,null,{"$f":"IF(X13=0,\"Formulario 'Nota de Activos Intangibles' Válido\",\"Formulario 'Nota de Activos Intangibles' con \"&X13&\" inconsistencias\")","v":"Formulario 'Nota de Activos Intangibles' Válido"},null,null,0]
[null,null,null,null,null,"ifrs-full:BrandNamesMember","co-svsp-core:PatentesMiembro","ifrs-full:ComputerSoftwareMember","ifrs-full:LicencesAndFranchisesMember","co-svsp-core:DerechosMiembro","co-svsp-core:KnowhowMiembro","ifrs-full:IntangibleExplorationAndEvaluationAssetsMember","co-svsp-core:ServiceConcessionArrangementsClassifiedAsIntangibleAssetsMember","ifrs-full:OtherIntangibleAssetsMember","ifrs-full:IntangibleAssetsOtherThanGoodwillMember",null,null,null,null,null,null,null,null,{"$f":"SUM(X16:X17)","v":2}]
[null,null,null,null,"co-svsp-core:ActivosIntangibles_Eje_G1","Marcas comerciales [miembro]","Patentes [Miembro]","Programas de computador [miembro]","Licencias y franquicias [miembro]","Derechos [Miembro]","Knowhow [Miembro]","Activos intangibles de exploración y evaluación [miembro]","Acuerdos de concesión de servicios clasficados como intangibles [Miembro]","Otros activos intangibles [miembro] ","Total Activos intangibles distintos de la plusvalía [miembro]"]
[null,null,"0;1","ifrs-full:DisclosureOfIntangibleAssetsLineItems","Información a revelar detallada sobre activos intangibles [partidas de los estados financieros]",null,null,null,null,null,null,null,null,null,null,null,null,null,null,null,null,null,null,{"$f":"IF(U16=\"CORRECTO\",0,1)","v":1}]
[null,null,"0;1","ifrs-full:AmortisationMethodIntangibleAssetsOtherThanGoodwill","Método de amortización, activos intangibles distintos de la plusvalía",null,null,null,null,null,null,null,null,null,null,null,null,null,null,null,null,null,null,{"$f":"IF(U17=\"CORRECTO\",0,1)","v":1}]
[null,null,"0;1","co-svsp-core:GrossCarryingAmount","Importe en libros en términos brutos",null,null,null,null,null,null,null,null,null,{"$f":"SUM(F18:N18)","v":0}]
[null,null,"0;1","co-svsp-core:AccumulatedDepreciationAndAmortisation","Depreciación y amortización acumuladas",null,null,null,null,null,null,null,null,null,{"$f":"SUM(F19:N19)","v":0}]
[null,null,"0;1","co-svsp-core:AccumulatedImpairment","Deterioro de valor acumulado",null,null,null,null,null,null,null,null,null,{"$f":"SUM(F20:N20)","v":0}]
[null,null,"0;1","ifrs-full:ReconciliationOfChangesInIntangibleAssetsOtherThanGoodwillAbstract","Conciliación de cambios en activos intangibles distintos de la plusvalía [resumen]"]
[null,null,"1;2","ifrs-full:IntangibleAssetsOtherThanGoodwill","Activos intangibles distintos de la plusvalía al inicio del periodo",{"$f":"+F67","v":0},0,0,0,0,0,0,0,0,{"$f":"SUM(F22:N22)","v":0}]
[null,null,"0;1","ifrs-full:AdditionsOtherThanThroughBusinessCombinationsIntangibleAssetsOtherThanGoodwill","Incrementos distintos de los procedentes de combinaciones de negocios, activos intangibles distintos de la plusvalía",null,null,null,null,null,null,null,null,null,0]
[null,null,"0;1","ifrs-full:AcquisitionsThroughBusinessCombinationsIntangibleAssetsOtherThanGoodwill","Adquisiciones realizadas mediante combinaciones de negocios, activos intangibles distintos a la plusvalía",null,null,null,null,null,null,null,null,null,0]
[null,null,"0;1","ifrs-full:AmortisationIntangibleAssetsOtherThanGoodwill","Amortización, activos intangibles distintos de la plusvalía",null,null,null,null,null,null,null,null,null,0]
[null,null,"0;1","ifrs-full:ImpairmentLossRecognisedInProfitOrLossIntangibleAssetsOtherThanGoodwill","Pérdidas por deterioro de valor reconocidas en el resultado del periodo, activos intangibles distintos de la plusvalía",null,null,null,null,null,null,null,null,null,0]
[null,null,"0;1","ifrs-full:ReversalOfImpairmentLossRecognisedInProfitOrLossIntangibleAssetsOtherThanGoodwill","Reversión de pérdidas por deterioro de valor reconocidas en el resultado del periodo, activos intangibles distintos de la plusvalía",null,null,null,null,null,null,null,null,null,0]
[null,null,"0;1","ifrs-full:IncreaseDecreaseThroughTransfersAndOtherChangesIntangibleAssetsOtherThanGoodwillAbstract","Incrementos (disminuciones) por transferencias y otros cambios, activos intangibles distintos de la plusvalía [resumen]"]
[null,null,"0;1","ifrs-full:IncreaseDecreaseThroughTransfersIntangibleAssetsOtherThanGoodwill","Incrementos (disminuciones) por transferencias, activos intangibles distintas de la plusvalía",null,null,null,null,null,null,null,null,null,{"$f":"SUM(F29:N29)","v":0}]
[null,null,"0;1","ifrs-full:IncreaseDecreaseThroughOtherChangesIntangibleAssetsOtherThanGoodwill","Incrementos (disminuciones) por otros cambios, activos intangibles distintos de la plusvalía",null,null,null,null,null,null,null,null,null,{"$f":"SUM(F30:N30)","v":0}]
[null,null,"0;1","ifrs-full:IncreaseDecreaseThroughTransfersAndOtherChangesIntangibleAssetsOtherThanGoodwill","Incremento (disminución) por transferencias y otros cambios, activos intangibles distintos de la plusvalía",{"$f":"F29+F30","v":0},0,0,0,0,0,0,0,0,0]
[null,null,"0;1","ifrs-full:DisposalsAndRetirementsIntangibleAssetsOtherThanGoodwillAbstract","Disposiciones y retiros de servicio, activos intangibles distintos de la plusvalía [resumen]"]
[null,null,"0;1","ifrs-full:DisposalsIntangibleAssetsOtherThanGoodwill","Disposiciones, activos intangibles distintos de la plusvalía",null,null,null,null,null,null,null,null,null,{"$f":"SUM(F33:N33)","v":0}]
[null,null,"0;1","ifrs-full:RetirementsIntangibleAssetsOtherThanGoodwill","Retiros de servicio, activos intangibles distintos de la plusvalía",null,null,null,null,null,null,null,null,null,{"$f":"SUM(F34:N34)","v":0}]
[null,null,"0;1","ifrs-full:DisposalsAndRetirementsIntangibleAssetsOtherThanGoodwill","Disposiciones y retiros de servicio, activos intangibles distintos de la plusvalía",{"$f":"F33+F34","v":0},0,0,0,0,0,0,0,0,0]
[null,null,"0;1","ifrs-full:DecreaseThroughClassifiedAsHeldForSaleIntangibleAssetsOtherThanGoodwill","Disminuciones por clasificar como mantenidos para la venta, activos intangibles distintos de la plusvalía",null,null,null,null,null,null,null,null,null,{"$f":"SUM(F36:N36)","v":0}]
[null,null,"0;1","ifrs-full:ChangesInIntangibleAssetsOtherThanGoodwill","Incremento (disminución) en activos intangibles distintos de la plusvalía",{"$f":"F23+F24+F25-F26+F27+F31-F35-F36","v":0},0,0,0,0,0,0,0,0,0]
[null,null,"1;1","ifrs-full:IntangibleAssetsOtherThanGoodwill","Activos intangibles distintos de la plusvalía al final del periodo",{"$f":"F22+F37","v":0},0,0,0,0,0,0,0,0,0]
[]
[]
[]
[null,null,null,null,null,{"$f":"\"Periodo Actual \"&Periodos!$D$4","v":"Periodo Actual 2022-12-31"}]
[null,null,null,null,null,"ifrs-full:BrandNamesMember","co-svsp-core:PatentesMiembro","ifrs-full:ComputerSoftwareMember","ifrs-full:LicencesAndFranchisesMember","co-svsp-core:DerechosMiembro","co-svsp-core:KnowhowMiembro","ifrs-full:IntangibleExplorationAndEvaluationAssetsMember","co-svsp-core:ServiceConcessionArrangementsClassifiedAsIntangibleAssetsMember","ifrs-full:OtherIntangibleAssetsMember","ifrs-full:IntangibleAssetsOtherThanGoodwillMember",null,null,null,null,null,{"$f":"IF(X43=0,\"Formulario 'Administradores' Completo\",\"Formulario 'Administradores' con \"&X43&\" filas por diligenciar\")","v":"Formulario 'Administradores' con 2 filas por diligenciar"},null,null,{"$f":"SUM(X45:X46)","v":2}]
[null,null,null,null,"co-svsp-core:ActivosIntangibles_Eje_G1","Marcas comerciales [miembro]","Patentes [Miembro]","Programas de computador [miembro]","Licencias y franquicias [miembro]","Derechos [Miembro]","Knowhow [Miembro]","Activos intangibles de exploración y evaluación [miembro]","Acuerdos de concesión de servicios clasficados como intangibles [Miembro]","Otros activos intangibles [miembro] ","Total Activos intangibles distintos de la plusvalía [miembro]"]
[null,null,"0;2","ifrs-full:DisclosureOfIntangibleAssetsLineItems","Información a revelar detallada sobre activos intangibles [partidas de los estados financieros]",null,null,null,null,null,null,null,null,null,null,null,null,null,null,null,null,null,null,{"$f":"IF(U45=\"CORRECTO\",0,1)","v":1}]
[null,null,"0;2","ifrs-full:AmortisationMethodIntangibleAssetsOtherThanGoodwill","Método de amortización, activos intangibles distintos de la plusvalía",null,null,null,null,null,null,null,null,null,null,null,null,null,null,null,null,null,null,{"$f":"IF(U46=\"CORRECTO\",0,1)","v":1}]
[null,null,"0;2","co-svsp-core:GrossCarryingAmount","Importe en libros en términos brutos",null,null,null,null,null,null,null,null,null,{"$f":"SUM(F47:N47)","v":0}]
[null,null,"0;2","co-svsp-core:AccumulatedDepreciationAndAmortisation","Depreciación y amortización acumuladas",null,null,null,null,null,null,null,null,null,{"$f":"SUM(F48:N48)","v":0}]
[null,null,"0;2","co-svsp-core:AccumulatedImpairment","Deterioro de valor acumulado",null,null,null,null,null,null,null,null,null,{"$f":"SUM(F49:N49)","v":0}]
[null,null,"0;2","ifrs-full:ReconciliationOfChangesInIntangibleAssetsOtherThanGoodwillAbstract","Conciliación de cambios en activos intangibles distintos de la plusvalía [resumen]"]
[null,null,"1;3","ifrs-full:IntangibleAssetsOtherThanGoodwill","Activos intangibles distintos de la plusvalía al inicio del periodo",null,null,null,null,null,null,null,null,null,{"$f":"SUM(F51:N51)","v":0}]
[null,null,"0;2","ifrs-full:AdditionsOtherThanThroughBusinessCombinationsIntangibleAssetsOtherThanGoodwill","Incrementos distintos de los procedentes de combinaciones de negocios, activos intangibles distintos de la plusvalía",null,null,null,null,null,null,null,null,null,0]
[null,null,"0;2","ifrs-full:AcquisitionsThroughBusinessCombinationsIntangibleAssetsOtherThanGoodwill","Adquisiciones realizadas mediante combinaciones de negocios, activos intangibles distintos a la plusvalía",null,null,null,null,null,null,null,null,null,0]
[null,null,"0;2","ifrs-full:AmortisationIntangibleAssetsOtherThanGoodwill","Amortización, activos intangibles distintos de la plusvalía",null,null,null,null,null,null,null,null,null,0]
[null,null,"0;2","ifrs-full:ImpairmentLossRecognisedInProfitOrLossIntangibleAssetsOtherThanGoodwill","Pérdidas por deterioro de valor reconocidas en el resultado del periodo, activos intangibles distintos de la plusvalía",null,null,null,null,null,null,null,null,null,0]
[null,null,"0;2","ifrs-full:ReversalOfImpairmentLossRecognisedInProfitOrLossIntangibleAssetsOtherThanGoodwill","Reversión de pérdidas por deterioro de valor reconocidas en el resultado del periodo, activos intangibles distintos de la plusvalía",null,null,null,null,null,null,null,null,null,0]
[null,null,"0;2","ifrs-full:IncreaseDecreaseThroughTransfersAndOtherChangesIntangibleAssetsOtherThanGoodwillAbstract","Incrementos (disminuciones) por transferencias y otros cambios, activos intangibles distintos de la plusvalía [resumen]"]
[null,null,"0;2","ifrs-full:IncreaseDecreaseThroughTransfersIntangibleAssetsOtherThanGoodwill","Incrementos (disminuciones) por transferencias, activos intangibles distintas de la plusvalía",null,null,null,null,null,null,null,null,null,{"$f":"SUM(F58:N58)","v":0}]
[null,null,"0;2","ifrs-full:IncreaseDecreaseThroughOtherChangesIntangibleAssetsOtherThanGoodwill","Incrementos (disminuciones) por otros cambios, activos intangibles distintos de la plusvalía",null,null,null,null,null,null,null,null,null,{"$f":"SUM(F59:N59)","v":0}]
[null,null,"0;2","ifrs-full:IncreaseDecreaseThroughTransfersAndOtherChangesIntangibleAssetsOtherThanGoodwill","Incremento (disminución) por transferencias y otros cambios, activos intangibles distintos de la plusvalía",{"$f":"F58+F59","v":0},0,0,0,0,0,0,0,0,0]
[null,null,"0;2","ifrs-full:DisposalsAndRetirementsIntangibleAssetsOtherThanGoodwillAbstract","Disposiciones y retiros de servicio, activos intangibles distintos de la plusvalía [resumen]"]
[null,null,"0;2","ifrs-full:DisposalsIntangibleAssetsOtherThanGoodwill","Disposiciones, activos intangibles distintos de la plusvalía",null,null,null,null,null,null,null,null,null,{"$f":"SUM(F62:N62)","v":0}]
[null,null,"0;2","ifrs-full:RetirementsIntangibleAssetsOtherThanGoodwill","Retiros de servicio, activos intangibles distintos de la plusvalía",null,null,null,null,null,null,null,null,null,{"$f":"SUM(F63:N63)","v":0}]
[null,null,"0;2","ifrs-full:DisposalsAndRetirementsIntangibleAssetsOtherThanGoodwill","Disposiciones y retiros de servicio, activos intangibles distintos de la plusvalía",{"$f":"F62+F63","v":0},0,0,0,0,0,0,0,0,0]
[null,null,"0;2","ifrs-full:DecreaseThroughClassifiedAsHeldForSaleIntangibleAssetsOtherThanGoodwill","Disminuciones por clasificar como mantenidos para la venta, activos intangibles distintos de la plusvalía",null,null,null,null,null,null,null,null,null,{"$f":"SUM(F65:N65)","v":0}]
[null,null,"0;2","ifrs-full:ChangesInIntangibleAssetsOtherThanGoodwill","Incremento (disminución) en activos intangibles distintos de la plusvalía",{"$f":"F52+F53+F54-F55+F56+F60-F64-F65","v":0},0,0,0,0,0,0,0,0,0]
[null,null,"1;2","ifrs-full:IntangibleAssetsOtherThanGoodwill","Activos intangibles distintos de la plusvalía al final del periodo",{"$f":"F51+F66","v":0},0,0,0,0,0,0,0,0,0]

{"sheet":"828000 - Nota. Cuentas x pagar","index":23,"n_rows":33,"n_cols":27,"rows_kept":33,"cut":false,"hidden":false,"merged":[[24,5,24,9],[24,10,24,15],[6,4,8,17],[10,5,10,15],[11,5,11,9],[11,10,11,15],[23,5,23,15]]}
[]
[]
[]
[]
[]
[]
[null,null,null,null,{"$f":"\"828000 - Nota. Cuentas por pagar (para \"&YEAR(Periodos!$C$4)&\" y \"&YEAR(Periodos!$D$4)&\")\"","v":"828000 - Nota. Cuentas por pagar (para 2023 y 2022)"}]
[]
[]
[]
[null,null,null,null,null,{"$f":"\"Periodo Actual \"&Periodos!$C$4","v":"Periodo Actual 2023-12-31"}]
[null,null,null,null,null,"Nacional o del exterior [miembro]",null,null,null,null,"Bandas de tiempo acumuladas [miembro]",null,null,null,null,null,null,{"$f":"IF(V12=0,\"Formulario 'Nota de Cuentas por pagar' Válido\",\"Formulario 'Nota de Cuentas por pagar' con \"&V12&\" inconsistencias\")","v":"Formulario 'Nota de Cuentas por pagar' Válido"},null,null,null,{"$f":"SUM(V16:V32)","v":0},{"$f":"SUM(V18:W20)","v":0}]
[null,null,null,null,null,"co-svsp-core:Nacionales_corrientes_CxP_Miembro","co-svsp-core:En_el_exterior_corrientes_CxP_Miembro","co-svsp-core:Nacionales_no_corrientes_CxP_Miembro","co-svsp-core:En_el_exterior_no_corrientes_CxP_Miembro","co-svsp-core:Total_Saldo_del_ejercicio_CxP_Miembro","co-svsp-core:Numero_de_obligaciones_vencidas_CxP_Miembro","co-svsp-core:CxP_Vencidas_1_a_90_dias_Miembro","co-svsp-core:CxP_Vencidas_91_a_180_dias_Miembro","co-svsp-core:CxP_Vencidas_181_a_360_dias_Miembro","co-svsp-core:CxP_Vencidas_mas_de_360_dias_Miembro","co-svsp-core:Obligaciones_vencidas_CxP_Miembro"]
[null,null,null,null,"co-svsp-core:CuentasXPagar_Eje","Nacionales corrientes [miembro]","En el exterior corrientes [miembro]","Nacionales no corrientes [miembro]","En el exterior no corrientes [miembro]","Total Saldo del ejercicio [miembro]","Número de obligaciones vencidas  [miembro]","Valor obligaciones vencidas de 1 a 90 días [miembro]","Valor obligaciones vencidas de 91 a 180 días [miembro]","Valor obligaciones vencidas de 181 a 360 días  [miembro]","Valor obligaciones vencidas de mas de 360 días [miembro]","Total obligaciones vencidas [miembro]"]
[null,null,"1;1","co-svsp-core:CxP_Cuentas_comerciales_por_pagar_otras_cuentas_por_pagar_y_otros_pasivos_financieros_items","Cuentas comerciales por pagar, otras cuentas por pagar y otros pasivos financieros items"]
[null,null,"1;1","co-svsp-core:CxP_Cuentas_por_pagar_comerciales","Cuentas comerciales por pagar",null,null,null,null,{"$f":"F16+G16+H16+I16","v":0},null,null,null,null,null,{"$f":"L16+M16+N16+O16","v":0},null,{"$f":"IF(AA16=\"CORRECTO\",\"CORRECTO\",\"Al indicar que se tienen cuentas vencidas para '\"&E16&\"', debe indicarse el monto en la columna correspondiente y viceversa.\")","v":"CORRECTO"},null,null,null,{"$f":"IF(R16=\"CORRECTO\",0,1)","v":0},null,{"$f":"IF(OR(K16=\"\",K16=0),0,1)","v":0},{"$f":"L16+M16+N16+O16","v":0},null,{"$f":"IF(AND(X16=0,Y16=0),\"CORRECTO\",IF(AND(X16<>0,Y16<>0),\"CORRECTO\",\"INCORRECTO\"))","v":"CORRECTO"}]
[null,null,"1;1","co-svsp-core:CxP_Otras_cuentas_por_pagar","Otras cuentas por pagar",null,null,null,null,{"$f":"F17+G17+H17+I17","v":0},null,null,null,null,null,{"$f":"L17+M17+N17+O17","v":0},null,{"$f":"IF(AA17=\"CORRECTO\",\"CORRECTO\",\"Al indicar que se tienen cuentas vencidas para '\"&E17&\"', debe indicarse el monto en la columna correspondiente y viceversa.\")","v":"CORRECTO"},null,null,null,{"$f":"IF(R17=\"CORRECTO\",0,1)","v":0},null,{"$f":"IF(OR(K17=\"\",K17=0),0,1)","v":0},{"$f":"L17+M17+N17+O17","v":0},null,{"$f":"IF(AND(X17=0,Y17=0),\"CORRECTO\",IF(AND(X17<>0,Y17<>0),\"CORRECTO\",\"INCORRECTO\"))","v":"CORRECTO"}]
[null,null,"1;1","co-svsp-core:CxP_Total_cuentas_comerciales_por_pagar_y_otras_cuentas_por_pagar","Total cuentas comerciales por pagar y otras cuentas por pagar",{"$f":"F16+F17","v":0},0,0,0,0,0,0,0,0,0,0]
[null,null,"1;1","co-svsp-core:CxP_Otros_Pasivos_financieros","Otros Pasivos financieros",null,null,null,null,{"$f":"F19+G19+H19+I19","v":0},null,null,null,null,null,{"$f":"L19+M19+N19+O19","v":0},null,{"$f":"IF(AA19=\"CORRECTO\",\"CORRECTO\",\"Al indicar que se tienen cuentas vencidas para '\"&E19&\"', debe indicarse el monto en la columna correspondiente y viceversa.\")","v":"CORRECTO"},null,null,null,{"$f":"IF(R19=\"CORRECTO\",0,1)","v":0},null,{"$f":"IF(OR(K19=\"\",K19=0),0,1)","v":0},{"$f":"L19+M19+N19+O19","v":0},null,{"$f":"IF(AND(X19=0,Y19=0),\"CORRECTO\",IF(AND(X19<>0,Y19<>0),\"CORRECTO\",\"INCORRECTO\"))","v":"CORRECTO"}]
[null,null,"1;1","co-svsp-core:CxP_Total_cuentas_comerciales_por_pagar_otras_cuentas_por_pagar_y_otros_pasivos_financieros","Total cuentas comerciales por pagar, otras cuentas por pagar y otros pasivos financieros",{"$f":"F18+F19","v":0},{"$f":"G18+G19","v":0},{"$f":"H18+H19","v":0},{"$f":"I18+I19","v":0},{"$f":"F20+G20+H20+I20","v":0},{"$f":"K18+K19","v":0},0,0,0,0,0]
[]
[]
[]
[null,null,null,null,null,{"$f":"\"Periodo Actual \"&Periodos!$D$4","v":"Periodo Actual 2022-12-31"}]
[null,null,null,null,null,"Nacional o del exterior [miembro]",null,null,null,null,"Bandas de tiempo acumuladas [miembro]",null,null,null,null,null,null,null,null,null,null,null,{"$f":"SUM(V31:W33)","v":0}]
[null,null,null,null,null,"co-svsp-core:Nacionales_corrientes_CxP_Miembro","co-svsp-core:En_el_exterior_corrientes_CxP_Miembro","co-svsp-core:Nacionales_no_corrientes_CxP_Miembro","co-svsp-core:En_el_exterior_no_corrientes_CxP_Miembro","co-svsp-core:Total_Saldo_del_ejercicio_CxP_Miembro","co-svsp-core:Numero_de_obligaciones_vencidas_CxP_Miembro","co-svsp-core:CxP_Vencidas_1_a_90_dias_Miembro","co-svsp-core:CxP_Vencidas_91_a_180_dias_Miembro","co-svsp-core:CxP_Vencidas_181_a_360_dias_Miembro","co-svsp-core:CxP_Vencidas_mas_de_360_dias_Miembro","co-svsp-core:Obligaciones_vencidas_CxP_Miembro"]
[null,null,null,null,"co-svsp-core:CuentasXPagar_Eje","Nacionales corrientes [miembro]","En el exterior corrientes [miembro]","Nacionales no corrientes [miembro]","En el exterior no corrientes [miembro]","Total Saldo del ejercicio [miembro]","Número de obligaciones vencidas  [miembro]","Valor obligaciones vencidas de 1 a 90 días [miembro]","Valor obligaciones vencidas de 91 a 180 días [miembro]","Valor obligaciones vencidas de 181 a 360 días  [miembro]","Valor obligaciones vencidas de mas de 360 días [miembro]","Total obligaciones vencidas [miembro]"]
[null,null,"1;2","co-svsp-core:CxP_Cuentas_comerciales_por_pagar_otras_cuentas_por_pagar_y_otros_pasivos_financieros_items","Cuentas comerciales por pagar, otras cuentas por pagar y otros pasivos financieros items"]
[null,null,"1;2","co-svsp-core:CxP_Cuentas_por_pagar_comerciales","Cuentas comerciales por pagar",null,null,null,null,{"$f":"F29+G29+H29+I29","v":0},null,null,null,null,null,{"$f":"L29+M29+N29+O29","v":0},null,{"$f":"IF(AA29=\"CORRECTO\",\"CORRECTO\",\"Al indicar que se tienen cuentas vencidas para '\"&E29&\"', debe indicarse el monto en la columna correspondiente y viceversa.\")","v":"CORRECTO"},null,null,null,{"$f":"IF(R29=\"CORRECTO\",0,1)","v":0},null,{"$f":"IF(OR(K29=\"\",K29=0),0,1)","v":0},{"$f":"L29+M29+N29+O29","v":0},null,{"$f":"IF(AND(X29=0,Y29=0),\"CORRECTO\",IF(AND(X29<>0,Y29<>0),\"CORRECTO\",\"INCORRECTO\"))","v":"CORRECTO"}]
[null,null,"1;2","co-svsp-core:CxP_Otras_cuentas_por_pagar","Otras cuentas por pagar",null,null,null,null,{"$f":"F30+G30+H30+I30","v":0},null,null,null,null,null,{"$f":"L30+M30+N30+O30","v":0},null,{"$f":"IF(AA30=\"CORRECTO\",\"CORRECTO\",\"Al indicar que se tienen cuentas vencidas para '\"&E30&\"', debe indicarse el monto en la columna correspondiente y viceversa.\")","v":"CORRECTO"},null,null,null,{"$f":"IF(R30=\"CORRECTO\",0,1)","v":0},null,{"$f":"IF(OR(K30=\"\",K30=0),0,1)","v":0},{"$f":"L30+M30+N30+O30","v":0},null,{"$f":"IF(AND(X30=0,Y30=0),\"CORRECTO\",IF(AND(X30<>0,Y30<>0),\"CORRECTO\",\"INCORRECTO\"))","v":"CORRECTO"}]
[null,null,"1;2","co-svsp-core:CxP_Total_cuentas_comerciales_por_pagar_y_otras_cuentas_por_pagar","Total cuentas comerciales por pagar y otras cuentas por pagar",{"$f":"F29+F30","v":0},0,0,0,0,0,0,0,0,0,0]
[null,null,"1;2","co-svsp-core:CxP_Otros_Pasivos_financieros","Otros Pasivos financieros",null,null,null,null,{"$f":"F32+G32+H32+I32","v":0},null,null,null,null,null,{"$f":"L32+M32+N32+O32","v":0},null,{"$f":"IF(AA32=\"CORRECTO\",\"CORRECTO\",\"Al indicar que se tienen cuentas vencidas para '\"&E32&\"', debe indicarse el monto en la columna correspondiente y viceversa.\")","v":"CORRECTO"},null,null,null,{"$f":"IF(R32=\"CORRECTO\",0,1)","v":0},null,{"$f":"IF(OR(K32=\"\",K32=0),0,1)","v":0},{"$f":"L32+M32+N32+O32","v":0},null,{"$f":"IF(AND(X32=0,Y32=0),\"CORRECTO\",IF(AND(X32<>0,Y32<>0),\"CORRECTO\",\"INCORRECTO\"))","v":"CORRECTO"}]
[null,null,"1;2","co-svsp-core:CxP_Total_cuentas_comerciales_por_pagar_otras_cuentas_por_pagar_y_otros_pasivos_financieros","Total cuentas comerciales por pagar, otras cuentas por pagar y otros pasivos financieros",{"$f":"F31+F32","v":0},{"$f":"G31+G32","v":0},{"$f":"H31+H32","v":0},{"$f":"I31+I32","v":0},{"$f":"F33+G33+H33+I33","v":0},{"$f":"K31+K32","v":0},0,0,0,0,0]

{"sheet":"Anotaciones","index":24,"n_rows":8,"n_cols":3,"rows_kept":8,"cut":false,"hidden":false,"merged":[[4,2,4,11],[7,2,7,11]]}
[]
[]
[]
[]
[null,null,"ANOTACIONES"]
[]
[]
[null,null,"Esta hoja tiene por propósito que el usuario final, quien diligencia la información, pueda tomar las anotaciones que considere convenientes mientras diligencia la información y genera la plantilla. El contenido de esta hoja NO se utilizará al momento de generar el archivo .xbrl que será remitido a la Superintendencia de Vigilancia y Seguridad Privada."]

{"sheet":"Data","index":25,"n_rows":8341,"n_cols":25,"rows_kept":8341,"cut":false,"hidden":true,"merged":[]}
["RowId","Footnote","Local Primary Item","Primary Item","Decimals","UnitRef","Fact","Identifier","IdentifierSchema","PeriodInitDuration","PeriodEndInstant","Dimension","DimensionMember","Dimension","DimensionMember","Dimension","DimensionMember","Dimension","DimensionMember","Dimension","DimensionMember","Dimension","DimensionMember","Dimension","DimensionMember"]
["/* "]
["/* "]
["/*"]
["/**OutputHeader","xmlns:xbrli = 'http://www.xbrl.org/2003/instance'"]
["/**OutputHeader","xmlns:link = 'http://www.xbrl.org/2003/linkbase'"]
["/**OutputHeader","xmlns:xlink = 'http://www.w3.org/1999/xlink'"]
["/**OutputHeader","xmlns:xsi='http://www.w3.org/2001/XMLSchema-instance'"]
["/**OutputHeader","xmlns:iso4217='http://www.xbrl.org/2003/iso4217'"]
["/**OutputHeader","xmlns:xbrldi='http://xbrl.org/2006/xbrldi'"]
["/**OutputHeader","xmlns:ifrs-full='http://xbrl.ifrs.org/taxonomy/2021-03-24/ifrs-full'"]
["/**OutputHeader","xmlns:co-svsp-core='http://www.supervigilancia.gov.co/tools/Taxonomias/2021-12-31/'"]
["/**OutputHeader",{"$f":"\"link:schemaRef xlink:type='simple' xlink:href='\"&cHRef&\"'\"","v":"link:schemaRef xlink:type='simple' xlink:href='http://www.supervigilancia.gov.co/tools/Taxonomias/2021-12-31/Grupo1_2021-12-31.xsd'"}]
["/**OutputMiddle","<xbrli:unit id=\"peso\">\n<xbrli:measure>iso4217:COP</xbrli:measure>\n</xbrli:unit>",null,"<xbrli:unit id=\"peso\">\n<xbrli:measure>iso4217:","COP","</xbrli:measure>\n</xbrli:unit>"]
["/**OutputMiddle","<xbrli:unit id=\"entero\">\n<xbrli:measure>xbrli:pure</xbrli:measure>\n</xbrli:unit>",null,"<xbrli:unit id=\"entero\">\n<xbrli:measure>xbrli:","pure","</xbrli:measure>\n</xbrli:unit>"]
["/**OutputMiddle","<xbrli:unit id=\"pesoXaccion\">    <xbrli:divide>\n      <xbrli:unitNumerator>\n      <xbrli:measure>iso4217:COP</xbrli:measure>\n      </xbrli:unitNumerator>\n      <xbrli:unitDenominator>\n      <xbrli:measure>xbrli:shares</xbrli:measure>\n      </xbrli:unitDenominator>\n    </xbrli:divide>\n</xbrli:unit>",null,"<xbrli:unit id=\"pesoXaccion\">","    <xbrli:divide>\n      <xbrli:unitNumerator>\n      <xbrli:measure>iso4217:COP</xbrli:measure>\n      </xbrli:unitNumerator>\n      <xbrli:unitDenominator>\n      <xbrli:measure>xbrli:shares</xbrli:measure>\n      </xbrli:unitDenominator>\n    </xbrli:divide>\n","</xbrli:unit>"]
["/**OutputMiddle","<xbrli:unit id=\"porcentaje\">\n<xbrli:measure>xbrli:pure</xbrli:measure>\n</xbrli:unit>",null,"<xbrli:unit id=\"porcentaje\">\n<xbrli:measure>xbrli:","pure","</xbrli:measure>\n</xbrli:unit>"]
["/**OutputMiddle","<xbrli:unit id=\"decimal\">\n<xbrli:measure>xbrli:pure</xbrli:measure>\n</xbrli:unit>",null,"<xbrli:unit id=\"decimal\">\n<xbrli:measure>xbrli:","pure","</xbrli:measure>\n</xbrli:unit>"]
["/**OutputMiddle","<xbrli:unit id=\"acciones\">\n<xbrli:measure>xbrli:shares</xbrli:measure>\n</xbrli:unit>",null,"<xbrli:unit id=\"acciones\">\n<xbrli:measure>xbrli:","shares","</xbrli:measure>\n</xbrli:unit>"]
["/**FootnoteLang","\"en\""]
["/**OutputTail","</xbrli:xbrl>"]
["/*"]
[null,"_1-peso",null,null,0,"peso",null,{"$f":"hwNIT","v":0},"http://www.xbrl.org/scheme/companyName"]
[null,"_2-vacio",null,null,null,null,null,0,"http://www.xbrl.org/scheme/companyName"]
[null,"_3-entero",null,null,0,"entero",null,0,"http://www.xbrl.org/scheme/companyName"]
[null,"_4-pesoXaccion",null,null,"INF","pesoXaccion",null,0,"http://www.xbrl.org/scheme/companyName"]
[null,"_5-porcentaje",null,null,"INF","porcentaje",null,0,"http://www.xbrl.org/scheme/companyName"]
[null,"_6-decimal",null,null,"INF","decimal",null,0,"http://www.xbrl.org/scheme/companyName"]
[null,"_7-acciones",null,null,"INF","acciones",null,0,"http://www.xbrl.org/scheme/companyName"]
[null,"_8-pesomillares",null,null,0,"peso",null,0,"http://www.xbrl.org/scheme/companyName"]
["/*"]
[{"$f":"IF(G32=\"\",\"/*\",\"\")","v":"/*"}]
["/*",null,"110000 - Carátula"]
["/*",null,"--01--"]
["/*",null,{"$f":"'110000 - Carátula'!$E$14","v":"Carátula"},{"$f":"'110000 - Carátula'!$D$14","v":"co-svsp-core:Caratula"}]
["/*",null,{"$f":"'110000 - Carátula'!$E$15","v":"Datos Básicos"},{"$f":"'110000 - Carátula'!$D$15","v":"co-svsp-core:DatosBasicos"}]
["/*",null,{"$f":"'110000 - Carátula'!$E$16","v":"NIT"},{"$f":"'110000 - Carátula'!$D$16","v":"co-svsp-core:NIT"}]
["/*",null,{"$f":"'110000 - Carátula'!$E$17","v":"DV"},{"$f":"'110000 - Carátula'!$D$17","v":"co-svsp-core:DV"}]
["",null,{"$f":"'110000 - Carátula'!$E$18","v":"Fecha de Corte"},{"$f":"'110000 - Carátula'!$D$18","v":"co-svsp-core:FechadeCorte"},null,null,{"$f":"'110000 - Carátula'!$F$18","v":"2023-12-31"},0,"http://www.xbrl.org/scheme/companyName",null,{"$f":"Periodos!$C$4","v":"2023-12-31"}]
["/*",null,{"$f":"'110000 - Carátula'!$E$19","v":"Se reunió el máximo Órgano Social para considerar los Estados Financieros"},{"$f":"'110000 - Carátula'!$D$19","v":"co-svsp-core:SereunioelmaximoOrganoSocialparaconsiderarlosEstadosFinancieros"}]
["/*",null,{"$f":"'110000 - Carátula'!$E$20","v":"Acta Número"},{"$f":"'110000 - Carátula'!$D$20","v":"co-svsp-core:ActaNumero"}]
["/*",null,{"$f":"'110000 - Carátula'!$E$21","v":"Fecha del Acta"},{"$f":"'110000 - Carátula'!$D$21","v":"co-svsp-core:FechadelActa"}]
["/*",null,{"$f":"'110000 - Carátula'!$E$22","v":"Fueron aprobados en Asamblea General de Accionistas o la Junta de Socios"},{"$f":"'110000 - Carátula'!$D$22","v":"co-svsp-core:FueronaprobadosenAsambleaGeneraldeAccionistasolaJuntadeSocios"}]
["/*",null,{"$f":"'110000 - Carátula'!$E$23","v":"Información General"},{"$f":"'110000 - Carátula'!$D$23","v":"co-svsp-core:InformacionGeneral"}]
["/*",null,{"$f":"'110000 - Carátula'!$E$24","v":"Razón Social"},{"$f":"'110000 - Carátula'!$D$24","v":"co-svsp-core:RazonSocial"}]
["/*",null,{"$f":"'110000 - Carátula'!$E$25","v":"Objeto Social Principal"},{"$f":"'110000 - Carátula'!$D$25","v":"co-svsp-core:ObjetoSocialPrincipal"}]
["/*",null,{"$f":"'110000 - Carátula'!$E$26","v":"Clasificación Industrial Internacional Uniforme Versión 4 A.C"},{"$f":"'110000 - Carátula'!$D$26","v":"co-svsp-core:ClasificacionIndustrialInternacionalUniformeVersion4AC"}]
["/*",null,{"$f":"'110000 - Carátula'!$E$27","v":"Grupo de Preparadores de Información Financiera"},{"$f":"'110000 - Carátula'!$D$27","v":"co-svsp-core:GrupodePreparadoresdeInformacionFinanciera"}]
["/*",null,{"$f":"'110000 - Carátula'!$E$28","v":"Naturaleza de la Empresa"},{"$f":"'110000 - Carátula'!$D$28","v":"co-svsp-core:NaturalezadelaEmpresa"}]
["/*",null,{"$f":"'110000 - Carátula'!$E$29","v":"Tipo Societario"},{"$f":"'110000 - Carátula'!$D$29","v":"co-svsp-core:TipoSocietario"}]
["/*",null,{"$f":"'110000 - Carátula'!$E$30","v":"Estado de la Empresa"},{"$f":"'110000 - Carátula'!$D$30","v":"co-svsp-core:EstadoDeLaEmpresa"}]
["/*",null,{"$f":"'110000 - Carátula'!$E$31","v":"Dirección de Notificación Judicial"},{"$f":"'110000 - Carátula'!$D$31","v":"co-svsp-core:DirecciondeNotificacionJudicial"}]
["/*",null,{"$f":"'110000 - Carátula'!$E$32","v":"Departamento de Notificación Judicial"},{"$f":"'110000 - Carátula'!$D$32","v":"co-svsp-core:DepartamentodeNotificacionJudicial"}]
["/*",null,{"$f":"'110000 - Carátula'!$E$33","v":"Ciudad de Notificación Judicial"},{"$f":"'110000 - Carátula'!$D$33","v":"co-svsp-core:CiudaddeNotificacionJudicial"}]
["/*",null,{"$f":"'110000 - Carátula'!$E$34","v":"Correo electrónico de notificación"},{"$f":"'110000 - Carátula'!$D$34","v":"co-svsp-core:CorreoElectronicoDeNotificacion"}]
["/*",null,{"$f":"'110000 - Carátula'!$E$35","v":"Autorizo a la Superintendencia de Vigilancia y Seguridad Privada a que me notifique y/o comunique cualquier decisión al correo electrónico suministrado en el marco de la aplicación del artículo 56 de la Ley 1437 de 2011"},{"$f":"'110000 - Carátula'!$D$35","v":"co-svsp-core:AutorizacionNotificacionJudicial"}]
["/*",null,{"$f":"'110000 - Carátula'!$E$36","v":"Celular"},{"$f":"'110000 - Carátula'!$D$36","v":"co-svsp-core:Celular"}]
["/*",null,{"$f":"'110000 - Carátula'!$E$37","v":"Teléfono Fijo"},{"$f":"'110000 - Carátula'!$D$37","v":"co-svsp-core:TelefonoFijo"}]
["/*",null,{"$f":"'110000 - Carátula'!$E$38","v":"Información ante Supervigilancia"},{"$f":"'110000 - Carátula'!$D$38","v":"co-svsp-core:InformacionAnteSupervigilancia"}]
["/*",null,{"$f":"'110000 - Carátula'!$E$39","v":"Estado de Licencia de Funcionamiento"},{"$f":"'110000 - Carátula'!$D$39","v":"co-svsp-core:EstadoDeLicenciaDeFuncionamiento"}]
["/*",null,{"$f":"'110000 - Carátula'!$E$40","v":"Tipo de Servicio"},{"$f":"'110000 - Carátula'!$D$40","v":"co-svsp-core:TipoDeServicio"}]
["/*",null,{"$f":"'110000 - Carátula'!$E$41","v":"Información sobre la Revisoría Fiscal"},{"$f":"'110000 - Carátula'!$D$41","v":"co-svsp-core:InformacionSobreLaRevisoriaFiscal"}]
["/*",null,{"$f":"'110000 - Carátula'!$E$42","v":"¿La compañía esta obligada a tener revisor fiscal?"},{"$f":"'110000 - Carátula'!$D$42","v":"co-svsp-core:LaCompaniaEstaObligadaARevisorFiscal"}]
["/*",null,{"$f":"'110000 - Carátula'!$E$43","v":"¿El revisor fiscal pertenece a una firma?"},{"$f":"'110000 - Carátula'!$D$43","v":"co-svsp-core:RevisorFiscalPerteneceAFirma"}]
["/*",null,{"$f":"'110000 - Carátula'!$E$44","v":"¿A que firma pertenece el revisor fiscal?"},{"$f":"'110000 - Carátula'!$D$44","v":"co-svsp-core:RazonSocialRevisorFiscalPersonaJurídica"}]
["/*",null,{"$f":"'110000 - Carátula'!$E$45","v":"Dirección de Domicilio de la firma a la cual pertenece el revisor fiscal"},{"$f":"'110000 - Carátula'!$D$45","v":"co-svsp-core:DirecciondeDomicilioRevisorFiscalPersonaJurídica"}]
["/*",null,{"$f":"'110000 - Carátula'!$E$46","v":"Registro en la Junta Central de Contadores del Revisor fiscal"},{"$f":"'110000 - Carátula'!$D$46","v":"co-svsp-core:RegistroJCCRevisorFiscalPersonaJurídica"}]
["/*",null,{"$f":"'110000 - Carátula'!$E$47","v":"Información sobre consolidación de Estados Financieros"},{"$f":"'110000 - Carátula'!$D$47","v":"co-svsp-core:InformacionSobreConsolidacionDeEstadosFinancieros"}]
["/*",null,{"$f":"'110000 - Carátula'!$E$48","v":"¿La compañía es responsable de consolidar información para este periodo?"},{"$f":"'110000 - Carátula'!$D$48","v":"co-svsp-core:LaCompaniaEsResponsableDeConsolidarInformacionParaEstePeriodo"}]
["/*",null,{"$f":"'110000 - Carátula'!$E$49","v":"¿La compañía es subordinada o asociada de otra compañía?"},{"$f":"'110000 - Carátula'!$D$49","v":"co-svsp-core:LaCompaniaEsSubordinadaOAsociadaDeOtraCompania"}]
["/*",null,{"$f":"'110000 - Carátula'!$E$50","v":"¿La compañía tiene subordinadas?"},{"$f":"'110000 - Carátula'!$D$50","v":"co-svsp-core:LaCompaniaTieneSubordinadas"}]
["/*",null,{"$f":"'110000 - Carátula'!$E$51","v":"¿La compañía tiene asociadas?"},{"$f":"'110000 - Carátula'!$D$51","v":"co-svsp-core:LaCompaniaTieneAsociadas"}]
["/*",null,{"$f":"'110000 - Carátula'!$E$52","v":"¿La compañía tiene negocios conjuntos?"},{"$f":"'110000 - Carátula'!$D$52","v":"co-svsp-core:LaCompaniaTieneNegociosConjuntos"}]
["/*"]
["/*",null,"110010 GeneraXBRL"]
["/*",null,"--01--"]
["/*",null,{"$f":"'110010 GeneraXBRL'!$D$11","v":"Tipo de documento"},{"$f":"'110010 GeneraXBRL'!$C$11","v":"co-svsp-core:TipoDeDocumento"}]
["/*",null,{"$f":"'110010 GeneraXBRL'!$D$12","v":"Numero de documento"},{"$f":"'110010 GeneraXBRL'!$C$12","v":"co-svsp-core:NumeroDeDocumento"}]
["/*",null,{"$f":"'110010 GeneraXBRL'!$D$13","v":"Nombres"},{"$f":"'110010 GeneraXBRL'!$C$13","v":"co-svsp-core:Nombres"}]
["/*",null,{"$f":"'110010 GeneraXBRL'!$D$14","v":"Apellidos"},{"$f":"'110010 GeneraXBRL'!$C$14","v":"co-svsp-core:Apellidos"}]
["/*",null,{"$f":"'110010 GeneraXBRL'!$D$15","v":"Email"},{"$f":"'110010 GeneraXBRL'!$C$15","v":"co-svsp-core:Email"}]
["/*",null,{"$f":"'110010 GeneraXBRL'!$D$16","v":"Tarjeta profesional"},{"$f":"'110010 GeneraXBRL'!$C$16","v":"co-svsp-core:TarjetaProfesional"}]
["/*",null,"--02--"]
["/*",null,{"$f":"'110010 GeneraXBRL'!$D$11","v":"Tipo de documento"},{"$f":"'110010 GeneraXBRL'!$C$11","v":"co-svsp-core:TipoDeDocumento"}]
["/*",null,{"$f":"'110010 GeneraXBRL'!$D$12","v":"Numero de documento"},{"$f":"'110010 GeneraXBRL'!$C$12","v":"co-svsp-core:NumeroDeDocumento"}]
["/*",null,{"$f":"'110010 GeneraXBRL'!$D$13","v":"Nombres"},{"$f":"'110010 GeneraXBRL'!$C$13","v":"co-svsp-core:Nombres"}]
["/*",null,{"$f":"'110010 GeneraXBRL'!$D$14","v":"Apellidos"},{"$f":"'110010 GeneraXBRL'!$C$14","v":"co-svsp-core:Apellidos"}]
["/*",null,{"$f":"'110010 GeneraXBRL'!$D$15","v":"Email"},{"$f":"'110010 GeneraXBRL'!$C$15","v":"co-svsp-core:Email"}]
["/*",null,{"$f":"'110010 GeneraXBRL'!$D$16","v":"Tarjeta profesional"},{"$f":"'110010 GeneraXBRL'!$C$16","v":"co-svsp-core:TarjetaProfesional"}]
["/*",null,"--03--"]
["/*",null,{"$f":"'110010 GeneraXBRL'!$D$11","v":"Tipo de documento"},{"$f":"'110010 GeneraXBRL'!$C$11","v":"co-svsp-core:TipoDeDocumento"}]
["/*",null,{"$f":"'110010 GeneraXBRL'!$D$12","v":"Numero de documento"},{"$f":"'110010 GeneraXBRL'!$C$12","v":"co-svsp-core:NumeroDeDocumento"}]
["/*",null,{"$f":"'110010 GeneraXBRL'!$D$13","v":"Nombres"},{"$f":"'110010 GeneraXBRL'!$C$13","v":"co-svsp-core:Nombres"}]
["/*",null,{"$f":"'110010 GeneraXBRL'!$D$14","v":"Apellidos"},{"$f":"'110010 GeneraXBRL'!$C$14","v":"co-svsp-core:Apellidos"}]
["/*",null,{"$f":"'110010 GeneraXBRL'!$D$15","v":"Email"},{"$f":"'110010 GeneraXBRL'!$C$15","v":"co-svsp-core:Email"}]
[{"$f":"IF(G96=\"\",\"/*\",\"\")","v":"/*"},null,{"$f":"'110010 GeneraXBRL'!$D$16","v":"Tarjeta profesional"},{"$f":"'110010 GeneraXBRL'!$C$16","v":"co-svsp-core:TarjetaProfesional"}]
["/*"]
["/*",null,"800101 - Nota. Efect. y Equiv."]
["/*",null,"--01--"]
["/*",null,{"$f":"'800101 - Nota. Efect. y Equiv.'!$E$14","v":"Efectivo y equivalentes al efectivo [resumen]"},{"$f":"'800101 - Nota. Efect. y Equiv.'!$D$14","v":"ifrs-full:CashAndCashEquivalentsAbstract"}]
["/*",null,{"$f":"'800101 - Nota. Efect. y Equiv.'!$E$15","v":"Efectivo [resumen]"},{"$f":"'800101 - Nota. Efect. y Equiv.'!$D$15","v":"ifrs-full:CashAbstract"}]
["/*",null,{"$f":"'800101 - Nota. Efect. y Equiv.'!$E$16","v":"Efectivo en caja"},{"$f":"'800101 - Nota. Efect. y Equiv.'!$D$16","v":"ifrs-full:CashOnHand"}]
["/*",null,{"$f":"'800101 - Nota. Efect. y Equiv.'!$E$17","v":"Saldos en bancos"},{"$f":"'800101 - Nota. Efect. y Equiv.'!$D$17","v":"ifrs-full:BalancesWithBanks"}]
["",null,{"$f":"'800101 - Nota. Efect. y Equiv.'!$E$18","v":"Total efectivo"},{"$f":"'800101 - Nota. Efect. y Equiv.'!$D$18","v":"ifrs-full:Cash"},0,"peso",{"$f":"'800101 - Nota. Efect. y Equiv.'!$F$18","v":0},0,"http://www.xbrl.org/scheme/companyName",null,{"$f":"Periodos!$C$4","v":"2023-12-31"}]
["/*",null,{"$f":"'800101 - Nota. Efect. y Equiv.'!$E$19","v":"Equivalentes al efectivo [resumen]"},{"$f":"'800101 - Nota. Efect. y Equiv.'!$D$19","v":"ifrs-full:CashEquivalentsAbstract"}]
["/*",null,{"$f":"'800101 - Nota. Efect. y Equiv.'!$E$20","v":"Depósitos a corto plazo, clasificados como equivalentes al efectivo"},{"$f":"'800101 - Nota. Efect. y Equiv.'!$D$20","v":"ifrs-full:ShorttermDepositsClassifiedAsCashEquivalents"}]
["/*",null,{"$f":"'800101 - Nota. Efect. y Equiv.'!$E$21","v":"Inversiones a corto plazo, clasificados como equivalentes al efectivo"},{"$f":"'800101 - Nota. Efect. y Equiv.'!$D$21","v":"ifrs-full:ShorttermInvestmentsClassifiedAsCashEquivalents"}]
["/*",null,{"$f":"'800101 - Nota. Efect. y Equiv.'!$E$22","v":"Otros acuerdos bancarios, clasificados como equivalentes al efectivo"},{"$f":"'800101 - Nota. Efect. y Equiv.'!$D$22","v":"ifrs-full:BankingArrangementsClassifiedAsCashEquivalents"}]
["",null,{"$f":"'800101 - Nota. Efect. y Equiv.'!$E$23","v":"Total equivalentes al efectivo"},{"$f":"'800101 - Nota. Efect. y Equiv.'!$D$23","v":"ifrs-full:CashEquivalents"},0,"peso",{"$f":"'800101 - Nota. Efect. y Equiv.'!$F$23","v":0},0,"http://www.xbrl.org/scheme/companyName",null,{"$f":"Periodos!$C$4","v":"2023-12-31"}]
["/*",null,{"$f":"'800101 - Nota. Efect. y Equiv.'!$E$24","v":"Otro efectivo y equivalentes al efectivo"},{"$f":"'800101 - Nota. Efect. y Equiv.'!$D$24","v":"ifrs-full:OtherCashAndCashEquivalents"}]
["",null,{"$f":"'800101 - Nota. Efect. y Equiv.'!$E$25","v":"Total de efectivo y equivalentes al efectivo"},{"$f":"'800101 - Nota. Efect. y Equiv.'!$D$25","v":"ifrs-full:CashAndCashEquivalents"},0,"peso",{"$f":"'800101 - Nota. Efect. y Equiv.'!$F$25","v":0},0,"http://www.xbrl.org/scheme/companyName",null,{"$f":"Periodos!$C$4","v":"2023-12-31"}]
["/*",null,"--02--"]
["/*",null,{"$f":"'800101 - Nota. Efect. y Equiv.'!$E$14","v":"Efectivo y equivalentes al efectivo [resumen]"},{"$f":"'800101 - Nota. Efect. y Equiv.'!$D$14","v":"ifrs-full:CashAndCashEquivalentsAbstract"}]
["/*",null,{"$f":"'800101 - Nota. Efect. y Equiv.'!$E$15","v":"Efectivo [resumen]"},{"$f":"'800101 - Nota. Efect. y Equiv.'!$D$15","v":"ifrs-full:CashAbstract"}]
["/*",null,{"$f":"'800101 - Nota. Efect. y Equiv.'!$E$16","v":"Efectivo en caja"},{"$f":"'800101 - Nota. Efect. y Equiv.'!$D$16","v":"ifrs-full:CashOnHand"}]
["/*",null,{"$f":"'800101 - Nota. Efect. y Equiv.'!$E$17","v":"Saldos en bancos"},{"$f":"'800101 - Nota. Efect. y Equiv.'!$D$17","v":"ifrs-full:BalancesWithBanks"}]
["",null,{"$f":"'800101 - Nota. Efect. y Equiv.'!$E$18","v":"Total efectivo"},{"$f":"'800101 - Nota. Efect. y Equiv.'!$D$18","v":"ifrs-full:Cash"},0,"peso",{"$f":"'800101 - Nota. Efect. y Equiv.'!$G$18","v":0},0,"http://www.xbrl.org/scheme/companyName",null,{"$f":"Periodos!$D$4","v":"2022-12-31"}]
["/*",null,{"$f":"'800101 - Nota. Efect. y Equiv.'!$E$19","v":"Equivalentes al efectivo [resumen]"},{"$f":"'800101 - Nota. Efect. y Equiv.'!$D$19","v":"ifrs-full:CashEquivalentsAbstract"}]
["/*",null,{"$f":"'800101 - Nota. Efect. y Equiv.'!$E$20","v":"Depósitos a corto plazo, clasificados como equivalentes al efectivo"},{"$f":"'800101 - Nota. Efect. y Equiv.'!$D$20","v":"ifrs-full:ShorttermDepositsClassifiedAsCashEquivalents"}]
["/*",null,{"$f":"'800101 - Nota. Efect. y Equiv.'!$E$21","v":"Inversiones a corto plazo, clasificados como equivalentes al efectivo"},{"$f":"'800101 - Nota. Efect. y Equiv.'!$D$21","v":"ifrs-full:ShorttermInvestmentsClassifiedAsCashEquivalents"}]
["/*",null,{"$f":"'800101 - Nota. Efect. y Equiv.'!$E$22","v":"Otros acuerdos bancarios, clasificados como equivalentes al efectivo"},{"$f":"'800101 - Nota. Efect. y Equiv.'!$D$22","v":"ifrs-full:BankingArrangementsClassifiedAsCashEquivalents"}]
["",null,{"$f":"'800101 - Nota. Efect. y Equiv.'!$E$23","v":"Total equivalentes al efectivo"},{"$f":"'800101 - Nota. Efect. y Equiv.'!$D$23","v":"ifrs-full:CashEquivalents"},0,"peso",{"$f":"'800101 - Nota. Efect. y Equiv.'!$G$23","v":0},0,"http://www.xbrl.org/scheme/companyName",null,{"$f":"Periodos!$D$4","v":"2022-12-31"}]
["/*",null,{"$f":"'800101 - Nota. Efect. y Equiv.'!$E$24","v":"Otro efectivo y equivalentes al efectivo"},{"$f":"'800101 - Nota. Efect. y Equiv.'!$D$24","v":"ifrs-full:OtherCashAndCashEquivalents"}]
["",null,{"$f":"'800101 - Nota. Efect. y Equiv.'!$E$25","v":"Total de efectivo y equivalentes al efectivo"},{"$f":"'800101 - Nota. Efect. y Equiv.'!$D$25","v":"ifrs-full:CashAndCashEquivalents"},0,"peso",{"$f":"'800101 - Nota. Efect. y Equiv.'!$G$25","v":0},0,"http://www.xbrl.org/scheme/companyName",null,{"$f":"Periodos!$D$4","v":"2022-12-31"}]
["/*",null,"--03--"]
["/*",null,{"$f":"'800101 - Nota. Efect. y Equiv.'!$E$14","v":"Efectivo y equivalentes al efectivo [resumen]"},{"$f":"'800101 - Nota. Efect. y Equiv.'!$D$14","v":"ifrs-full:CashAndCashEquivalentsAbstract"}]
["/*",null,{"$f":"'800101 - Nota. Efect. y Equiv.'!$E$15","v":"Efectivo [resumen]"},{"$f":"'800101 - Nota. Efect. y Equiv.'!$D$15","v":"ifrs-full:CashAbstract"}]
["/*",null,{"$f":"'800101 - Nota. Efect. y Equiv.'!$E$16","v":"Efectivo en caja"},{"$f":"'800101 - Nota. Efect. y Equiv.'!$D$16","v":"ifrs-full:CashOnHand"}]
["/*",null,{"$f":"'800101 - Nota. Efect. y Equiv.'!$E$17","v":"Saldos en bancos"},{"$f":"'800101 - Nota. Efect. y Equiv.'!$D$17","v":"ifrs-full:BalancesWithBanks"}]
["/*",null,{"$f":"'800101 - Nota. Efect. y Equiv.'!$E$18","v":"Total efectivo"},{"$f":"'800101 - Nota. Efect. y Equiv.'!$D$18","v":"ifrs-full:Cash"}]
["/*",null,{"$f":"'800101 - Nota. Efect. y Equiv.'!$E$19","v":"Equivalentes al efectivo [resumen]"},{"$f":"'800101 - Nota. Efect. y Equiv.'!$D$19","v":"ifrs-full:CashEquivalentsAbstract"}]
["/*",null,{"$f":"'800101 - Nota. Efect. y Equiv.'!$E$20","v":"Depósitos a corto plazo, clasificados como equivalentes al efectivo"},{"$f":"'800101 - Nota. Efect. y Equiv.'!$D$20","v":"ifrs-full:ShorttermDepositsClassifiedAsCashEquivalents"}]
["/*",null,{"$f":"'800101 - Nota. Efect. y Equiv.'!$E$21","v":"Inversiones a corto plazo, clasificados como equivalentes al efectivo"},{"$f":"'800101 - Nota. Efect. y Equiv.'!$D$21","v":"ifrs-full:ShorttermInvestmentsClassifiedAsCashEquivalents"}]
["/*",null,{"$f":"'800101 - Nota. Efect. y Equiv.'!$E$22","v":"Otros acuerdos bancarios, clasificados como equivalentes al efectivo"},{"$f":"'800101 - Nota. Efect. y Equiv.'!$D$22","v":"ifrs-full:BankingArrangementsClassifiedAsCashEquivalents"}]
["/*",null,{"$f":"'800101 - Nota. Efect. y Equiv.'!$E$23","v":"Total equivalentes al efectivo"},{"$f":"'800101 - Nota. Efect. y Equiv.'!$D$23","v":"ifrs-full:CashEquivalents"}]
["/*",null,{"$f":"'800101 - Nota. Efect. y Equiv.'!$E$24","v":"Otro efectivo y equivalentes al efectivo"},{"$f":"'800101 - Nota. Efect. y Equiv.'!$D$24","v":"ifrs-full:OtherCashAndCashEquivalents"}]
["/*",null,{"$f":"'800101 - Nota. Efect. y Equiv.'!$E$25","v":"Total de efectivo y equivalentes al efectivo"},{"$f":"'800101 - Nota. Efect. y Equiv.'!$D$25","v":"ifrs-full:CashAndCashEquivalents"}]
["/*"]
["/*",null,"800111 - Nota. Cuentas x cobrar"]
["/*",null,"--01--"]
["/*",null,{"$f":"'800111 - Nota. Cuentas x cobrar'!$E$15","v":"Cuentas comerciales por cobrar y otras cuentas por cobrar"},{"$f":"'800111 - Nota. Cuentas x cobrar'!$D$15","v":"co-svsp-core:CxC_Cuentas_comerciales_por_cobrar_y_otras_cuentas_por_cobrar"}]
["/*",null,{"$f":"'800111 - Nota. Cuentas x cobrar'!$E$16","v":"Cuentas comerciales por cobrar"},{"$f":"'800111 - Nota. Cuentas x cobrar'!$D$16","v":"co-svsp-core:CxC_Cuentas_comerciales_por_cobrar"}]
["/*",null,{"$f":"'800111 - Nota. Cuentas x cobrar'!$E$17","v":"Cuentas comerciales por cobrar que no están en mora ni deterioradas de valor"},{"$f":"'800111 - Nota. Cuentas x cobrar'!$D$17","v":"co-svsp-core:CxC_Cuentas_comerciales_por_cobrar_no_están_en_mora_ni_deterioradas_de_valor"}]
["/*",null,{"$f":"'800111 - Nota. Cuentas x cobrar'!$E$18","v":"Cuentas comerciales por cobrar en mora pero no deterioradas de valor"},{"$f":"'800111 - Nota. Cuentas x cobrar'!$D$18","v":"co-svsp-core:CxC_Cuentas_comerciales_por_cobrar_en_mora_pero_no_deterioradas_de_valor"}]
["/*",null,{"$f":"'800111 - Nota. Cuentas x cobrar'!$E$19","v":"Cuentas comerciales por cobrar deterioradas de valor"},{"$f":"'800111 - Nota. Cuentas x cobrar'!$D$19","v":"co-svsp-core:CxC_Cuentas_comerciales_por_cobrar_deterioradas_de_valor"}]
["/*",null,{"$f":"'800111 - Nota. Cuentas x cobrar'!$E$20","v":"Deterioro (menor valor)"},{"$f":"'800111 - Nota. Cuentas x cobrar'!$D$20","v":"co-svsp-core:CxC_Deterioro_menor_valor"}]
["",null,{"$f":"'800111 - Nota. Cuentas x cobrar'!$E$21","v":"Total cuentas comerciales por cobrar"},{"$f":"'800111 - Nota. Cuentas x cobrar'!$D$21","v":"co-svsp-core:CxC_Total_cuentas_comerciales_por_cobrar"},0,"peso",{"$f":"'800111 - Nota. Cuentas x cobrar'!$F$21","v":0},0,"http://www.xbrl.org/scheme/companyName",null,{"$f":"Periodos!$C$4","v":"2023-12-31"},{"$f":"'800111 - Nota. Cuentas x cobrar'!$E$14","v":"co-svsp-core:CuentasPorCobrar_Eje"},{"$f":"'800111 - Nota. Cuentas x cobrar'!$F$13","v":"co-svsp-core:Nacionales_corrientes_CxC_Miembro"}]
["/*",null,{"$f":"'800111 - Nota. Cuentas x cobrar'!$E$22","v":"Otras cuentas por cobrar"},{"$f":"'800111 - Nota. Cuentas x cobrar'!$D$22","v":"co-svsp-core:CxC_Otras_cuentas_por_cobrar"}]
["/*",null,{"$f":"'800111 - Nota. Cuentas x cobrar'!$E$23","v":"Otras cuentas por cobrar que no están en mora ni deterioradas de valor"},{"$f":"'800111 - Nota. Cuentas x cobrar'!$D$23","v":"co-svsp-core:CxC_Cuentas_comerciales_por_cobrar_no_están_en_mora_ni_deterioradas_de_valor_OCxC"}]
["/*",null,{"$f":"'800111 - Nota. Cuentas x cobrar'!$E$24","v":"Otras cuentas por cobrar en mora pero no deterioradas de valor"},{"$f":"'800111 - Nota. Cuentas x cobrar'!$D$24","v":"co-svsp-core:CxC_Cuentas_comerciales_por_cobrar_en_mora_pero_no_deterioradas_de_valor_OCxC"}]
["/*",null,{"$f":"'800111 - Nota. Cuentas x cobrar'!$E$25","v":"Otras cuentas por cobrar deterioradas de valor"},{"$f":"'800111 - Nota. Cuentas x cobrar'!$D$25","v":"co-svsp-core:CxC_Cuentas_comerciales_por_cobrar_deterioradas_de_valor_OCxC"}]
["/*",null,{"$f":"'800111 - Nota. Cuentas x cobrar'!$E$26","v":"Deterioro (menor valor)"},{"$f":"'800111 - Nota. Cuentas x cobrar'!$D$26","v":"co-svsp-core:CxC_Deterioro_menor_valor_OCxC"}]
["",null,{"$f":"'800111 - Nota. Cuentas x cobrar'!$E$27","v":"Total otras cuentas por cobrar"},{"$f":"'800111 - Nota. Cuentas x cobrar'!$D$27","v":"co-svsp-core:CxC_Total_cuentas_comerciales_por_cobrar_OCxC"},0,"peso",{"$f":"'800111 - Nota. Cuentas x cobrar'!$F$27","v":0},0,"http://www.xbrl.org/scheme/companyName",null,{"$f":"Periodos!$C$4","v":"2023-12-31"},{"$f":"'800111 - Nota. Cuentas x cobrar'!$E$14","v":"co-svsp-core:CuentasPorCobrar_Eje"},{"$f":"'800111 - Nota. Cuentas x cobrar'!$F$13","v":"co-svsp-core:Nacionales_corrientes_CxC_Miembro"}]
["",null,{"$f":"'800111 - Nota. Cuentas x cobrar'!$E$28","v":"Total cuentas por cobrar y otras cuentas por cobrar"},{"$f":"'800111 - Nota. Cuentas x cobrar'!$D$28","v":"co-svsp-core:CxC_Total_cuentas_por_cobrar_y_otras_cuentas_por_cobrar"},0,"peso",{"$f":"'800111 - Nota. Cuentas x cobrar'!$F$28","v":0},0,"http://www.xbrl.org/scheme/companyName",null,{"$f":"Periodos!$C$4","v":"2023-12-31"},{"$f":"'800111 - Nota. Cuentas x cobrar'!$E$14","v":"co-svsp-core:CuentasPorCobrar_Eje"},{"$f":"'800111 - Nota. Cuentas x cobrar'!$F$13","v":"co-svsp-core:Nacionales_corrientes_CxC_Miembro"}]
["/*",null,"--02--"]
["/*",null,{"$f":"'800111 - Nota. Cuentas x cobrar'!$E$15","v":"Cuentas comerciales por cobrar y otras cuentas por cobrar"},{"$f":"'800111 - Nota. Cuentas x cobrar'!$D$15","v":"co-svsp-core:CxC_Cuentas_comerciales_por_cobrar_y_otras_cuentas_por_cobrar"}]
["/*",null,{"$f":"'800111 - Nota. Cuentas x cobrar'!$E$16","v":"Cuentas comerciales por cobrar"},{"$f":"'800111 - Nota. Cuentas x cobrar'!$D$16","v":"co-svsp-core:CxC_Cuentas_comerciales_por_cobrar"}]
["/*",null,{"$f":"'800111 - Nota. Cuentas x cobrar'!$E$17","v":"Cuentas comerciales por cobrar que no están en mora ni deterioradas de valor"},{"$f":"'800111 - Nota. Cuentas x cobrar'!$D$17","v":"co-svsp-core:CxC_Cuentas_comerciales_por_cobrar_no_están_en_mora_ni_deterioradas_de_valor"}]
["/*",null,{"$f":"'800111 - Nota. Cuentas x cobrar'!$E$18","v":"Cuentas comerciales por cobrar en mora pero no deterioradas de valor"},{"$f":"'800111 - Nota. Cuentas x cobrar'!$D$18","v":"co-svsp-core:CxC_Cuentas_comerciales_por_cobrar_en_mora_pero_no_deterioradas_de_valor"}]
[{"$f":"IF(G160=\"\",\"/*\",\"\")","v":"/*"},null,{"$f":"'800111 - Nota. Cuentas x cobrar'!$E$19","v":"Cuentas comerciales por cobrar deterioradas de valor"},{"$f":"'800111 - Nota. Cuentas x cobrar'!$D$19","v":"co-svsp-core:CxC_Cuentas_comerciales_por_cobrar_deterioradas_de_valor"}]
["/*",null,{"$f":"'800111 - Nota. Cuentas x cobrar'!$E$20","v":"Deterioro (menor valor)"},{"$f":"'800111 - Nota. Cuentas x cobrar'!$D$20","v":"co-svsp-core:CxC_Deterioro_menor_valor"}]
["",null,{"$f":"'800111 - Nota. Cuentas x cobrar'!$E$21","v":"Total cuentas comerciales por cobrar"},{"$f":"'800111 - Nota. Cuentas x cobrar'!$D$21","v":"co-svsp-core:CxC_Total_cuentas_comerciales_por_cobrar"},0,"peso",{"$f":"'800111 - Nota. Cuentas x cobrar'!$G$21","v":0},0,"http://www.xbrl.org/scheme/companyName",null,{"$f":"Periodos!$C$4","v":"2023-12-31"},{"$f":"'800111 - Nota. Cuentas x cobrar'!$E$14","v":"co-svsp-core:CuentasPorCobrar_Eje"},{"$f":"'800111 - Nota. Cuentas x cobrar'!$G$13","v":"co-svsp-core:En_el_exterior_corrientes_CxC_Miembro"}]
["/*",null,{"$f":"'800111 - Nota. Cuentas x cobrar'!$E$22","v":"Otras cuentas por cobrar"},{"$f":"'800111 - Nota. Cuentas x cobrar'!$D$22","v":"co-svsp-core:CxC_Otras_cuentas_por_cobrar"}]
["/*",null,{"$f":"'800111 - Nota. Cuentas x cobrar'!$E$23","v":"Otras cuentas por cobrar que no están en mora ni deterioradas de valor"},{"$f":"'800111 - Nota. Cuentas x cobrar'!$D$23","v":"co-svsp-core:CxC_Cuentas_comerciales_por_cobrar_no_están_en_mora_ni_deterioradas_de_valor_OCxC"}]
["/*",null,{"$f":"'800111 - Nota. Cuentas x cobrar'!$E$24","v":"Otras cuentas por cobrar en mora pero no deterioradas de valor"},{"$f":"'800111 - Nota. Cuentas x cobrar'!$D$24","v":"co-svsp-core:CxC_Cuentas_comerciales_por_cobrar_en_mora_pero_no_deterioradas_de_valor_OCxC"}]
["/*",null,{"$f":"'800111 - Nota. Cuentas x cobrar'!$E$25","v":"Otras cuentas por cobrar deterioradas de valor"},{"$f":"'800111 - Nota. Cuentas x cobrar'!$D$25","v":"co-svsp-core:CxC_Cuentas_comerciales_por_cobrar_deterioradas_de_valor_OCxC"}]
["/*",null,{"$f":"'800111 - Nota. Cuentas x cobrar'!$E$26","v":"Deterioro (menor valor)"},{"$f":"'800111 - Nota. Cuentas x cobrar'!$D$26","v":"co-svsp-core:CxC_Deterioro_menor_valor_OCxC"}]
["",null,{"$f":"'800111 - Nota. Cuentas x cobrar'!$E$27","v":"Total otras cuentas por cobrar"},{"$f":"'800111 - Nota. Cuentas x cobrar'!$D$27","v":"co-svsp-core:CxC_Total_cuentas_comerciales_por_cobrar_OCxC"},0,"peso",{"$f":"'800111 - Nota. Cuentas x cobrar'!$G$27","v":0},0,"http://www.xbrl.org/scheme/companyName",null,{"$f":"Periodos!$C$4","v":"2023-12-31"},{"$f":"'800111 - Nota. Cuentas x cobrar'!$E$14","v":"co-svsp-core:CuentasPorCobrar_Eje"},{"$f":"'800111 - Nota. Cuentas x cobrar'!$G$13","v":"co-svsp-core:En_el_exterior_corrientes_CxC_Miembro"}]
["",null,{"$f":"'800111 - Nota. Cuentas x cobrar'!$E$28","v":"Total cuentas por cobrar y otras cuentas por cobrar"},{"$f":"'800111 - Nota. Cuentas x cobrar'!$D$28","v":"co-svsp-core:CxC_Total_cuentas_por_cobrar_y_otras_cuentas_por_cobrar"},0,"peso",{"$f":"'800111 - Nota. Cuentas x cobrar'!$G$28","v":0},0,"http://www.xbrl.org/scheme/companyName",null,{"$f":"Periodos!$C$4","v":"2023-12-31"},{"$f":"'800111 - Nota. Cuentas x cobrar'!$E$14","v":"co-svsp-core:CuentasPorCobrar_Eje"},{"$f":"'800111 - Nota. Cuentas x cobrar'!$G$13","v":"co-svsp-core:En_el_exterior_corrientes_CxC_Miembro"}]
["/*",null,"--03--"]
["/*",null,{"$f":"'800111 - Nota. Cuentas x cobrar'!$E$15","v":"Cuentas comerciales por cobrar y otras cuentas por cobrar"},{"$f":"'800111 - Nota. Cuentas x cobrar'!$D$15","v":"co-svsp-core:CxC_Cuentas_comerciales_por_cobrar_y_otras_cuentas_por_cobrar"}]
["/*",null,{"$f":"'800111 - Nota. Cuentas x cobrar'!$E$16","v":"Cuentas comerciales por cobrar"},{"$f":"'800111 - Nota. Cuentas x cobrar'!$D$16","v":"co-svsp-core:CxC_Cuentas_comerciales_por_cobrar"}]
["/*",null,{"$f":"'800111 - Nota. Cuentas x cobrar'!$E$17","v":"Cuentas comerciales por cobrar que no están en mora ni deterioradas de valor"},{"$f":"'800111 - Nota. Cuentas x cobrar'!$D$17","v":"co-svsp-core:CxC_Cuentas_comerciales_por_cobrar_no_están_en_mora_ni_deterioradas_de_valor"}]
["/*",null,{"$f":"'800111 - Nota. Cuentas x cobrar'!$E$18","v":"Cuentas comerciales por cobrar en mora pero no deterioradas de valor"},{"$f":"'800111 - Nota. Cuentas x cobrar'!$D$18","v":"co-svsp-core:CxC_Cuentas_comerciales_por_cobrar_en_mora_pero_no_deterioradas_de_valor"}]
["/*",null,{"$f":"'800111 - Nota. Cuentas x cobrar'!$E$19","v":"Cuentas comerciales por cobrar deterioradas de valor"},{"$f":"'800111 - Nota. Cuentas x cobrar'!$D$19","v":"co-svsp-core:CxC_Cuentas_comerciales_por_cobrar_deterioradas_de_valor"}]
["/*",null,{"$f":"'800111 - Nota. Cuentas x cobrar'!$E$20","v":"Deterioro (menor valor)"},{"$f":"'800111 - Nota. Cuentas x cobrar'!$D$20","v":"co-svsp-core:CxC_Deterioro_menor_valor"}]
["",null,{"$f":"'800111 - Nota. Cuentas x cobrar'!$E$21","v":"Total cuentas comerciales por cobrar"},{"$f":"'800111 - Nota. Cuentas x cobrar'!$D$21","v":"co-svsp-core:CxC_Total_cuentas_comerciales_por_cobrar"},0,"peso",{"$f":"'800111 - Nota. Cuentas x cobrar'!$H$21","v":0},0,"http://www.xbrl.org/scheme/companyName",null,{"$f":"Periodos!$C$4","v":"2023-12-31"},{"$f":"'800111 - Nota. Cuentas x cobrar'!$E$14","v":"co-svsp-core:CuentasPorCobrar_Eje"},{"$f":"'800111 - Nota. Cuentas x cobrar'!$H$13","v":"co-svsp-core:Nacionales_no_corrientes_CxC_Miembro"}]
["/*",null,{"$f":"'800111 - Nota. Cuentas x cobrar'!$E$22","v":"Otras cuentas por cobrar"},{"$f":"'800111 - Nota. Cuentas x cobrar'!$D$22","v":"co-svsp-core:CxC_Otras_cuentas_por_cobrar"}]
["/*",null,{"$f":"'800111 - Nota. Cuentas x cobrar'!$E$23","v":"Otras cuentas por cobrar que no están en mora ni deterioradas de valor"},{"$f":"'800111 - Nota. Cuentas x cobrar'!$D$23","v":"co-svsp-core:CxC_Cuentas_comerciales_por_cobrar_no_están_en_mora_ni_deterioradas_de_valor_OCxC"}]
["/*",null,{"$f":"'800111 - Nota. Cuentas x cobrar'!$E$24","v":"Otras cuentas por cobrar en mora pero no deterioradas de valor"},{"$f":"'800111 - Nota. Cuentas x cobrar'!$D$24","v":"co-svsp-core:CxC_Cuentas_comerciales_por_cobrar_en_mora_pero_no_deterioradas_de_valor_OCxC"}]
["/*",null,{"$f":"'800111 - Nota. Cuentas x cobrar'!$E$25","v":"Otras cuentas por cobrar deterioradas de valor"},{"$f":"'800111 - Nota. Cuentas x cobrar'!$D$25","v":"co-svsp-core:CxC_Cuentas_comerciales_por_cobrar_deterioradas_de_valor_OCxC"}]
["/*",null,{"$f":"'800111 - Nota. Cuentas x cobrar'!$E$26","v":"Deterioro (menor valor)"},{"$f":"'800111 - Nota. Cuentas x cobrar'!$D$26","v":"co-svsp-core:CxC_Deterioro_menor_valor_OCxC"}]
["",null,{"$f":"'800111 - Nota. Cuentas x cobrar'!$E$27","v":"Total otras cuentas por cobrar"},{"$f":"'800111 - Nota. Cuentas x cobrar'!$D$27","v":"co-svsp-core:CxC_Total_cuentas_comerciales_por_cobrar_OCxC"},0,"peso",{"$f":"'800111 - Nota. Cuentas x cobrar'!$H$27","v":0},0,"http://www.xbrl.org/scheme/companyName",null,{"$f":"Periodos!$C$4","v":"2023-12-31"},{"$f":"'800111 - Nota. Cuentas x cobrar'!$E$14","v":"co-svsp-core:CuentasPorCobrar_Eje"},{"$f":"'800111 - Nota. Cuentas x cobrar'!$H$13","v":"co-svsp-core:Nacionales_no_corrientes_CxC_Miembro"}]
["",null,{"$f":"'800111 - Nota. Cuentas x cobrar'!$E$28","v":"Total cuentas por cobrar y otras cuentas por cobrar"},{"$f":"'800111 - Nota. Cuentas x cobrar'!$D$28","v":"co-svsp-core:CxC_Total_cuentas_por_cobrar_y_otras_cuentas_por_cobrar"},0,"peso",{"$f":"'800111 - Nota. Cuentas x cobrar'!$H$28","v":0},0,"http://www.xbrl.org/scheme/companyName",null,{"$f":"Periodos!$C$4","v":"2023-12-31"},{"$f":"'800111 - Nota. Cuentas x cobrar'!$E$14","v":"co-svsp-core:CuentasPorCobrar_Eje"},{"$f":"'800111 - Nota. Cuentas x cobrar'!$H$13","v":"co-svsp-core:Nacionales_no_corrientes_CxC_Miembro"}]
["/*",null,"--04--"]
["/*",null,{"$f":"'800111 - Nota. Cuentas x cobrar'!$E$15","v":"Cuentas comerciales por cobrar y otras cuentas por cobrar"},{"$f":"'800111 - Nota. Cuentas x cobrar'!$D$15","v":"co-svsp-core:CxC_Cuentas_comerciales_por_cobrar_y_otras_cuentas_por_cobrar"}]
["/*",null,{"$f":"'800111 - Nota. Cuentas x cobrar'!$E$16","v":"Cuentas comerciales por cobrar"},{"$f":"'800111 - Nota. Cuentas x cobrar'!$D$16","v":"co-svsp-core:CxC_Cuentas_comerciales_por_cobrar"}]
["/*",null,{"$f":"'800111 - Nota. Cuentas x cobrar'!$E$17","v":"Cuentas comerciales por cobrar que no están en mora ni deterioradas de valor"},{"$f":"'800111 - Nota. Cuentas x cobrar'!$D$17","v":"co-svsp-core:CxC_Cuentas_comerciales_por_cobrar_no_están_en_mora_ni_deterioradas_de_valor"}]
["/*",null,{"$f":"'800111 - Nota. Cuentas x cobrar'!$E$18","v":"Cuentas comerciales por cobrar en mora pero no deterioradas de valor"},{"$f":"'800111 - Nota. Cuentas x cobrar'!$D$18","v":"co-svsp-core:CxC_Cuentas_comerciales_por_cobrar_en_mora_pero_no_deterioradas_de_valor"}]
["/*",null,{"$f":"'800111 - Nota. Cuentas x cobrar'!$E$19","v":"Cuentas comerciales por cobrar deterioradas de valor"},{"$f":"'800111 - Nota. Cuentas x cobrar'!$D$19","v":"co-svsp-core:CxC_Cuentas_comerciales_por_cobrar_deterioradas_de_valor"}]
["/*",null,{"$f":"'800111 - Nota. Cuentas x cobrar'!$E$20","v":"Deterioro (menor valor)"},{"$f":"'800111 - Nota. Cuentas x cobrar'!$D$20","v":"co-svsp-core:CxC_Deterioro_menor_valor"}]
["",null,{"$f":"'800111 - Nota. Cuentas x cobrar'!$E$21","v":"Total cuentas comerciales por cobrar"},{"$f":"'800111 - Nota. Cuentas x cobrar'!$D$21","v":"co-svsp-core:CxC_Total_cuentas_comerciales_por_cobrar"},0,"peso",{"$f":"'800111 - Nota. Cuentas x cobrar'!$I$21","v":0},0,"http://www.xbrl.org/scheme/companyName",null,{"$f":"Periodos!$C$4","v":"2023-12-31"},{"$f":"'800111 - Nota. Cuentas x cobrar'!$E$14","v":"co-svsp-core:CuentasPorCobrar_Eje"},{"$f":"'800111 - Nota. Cuentas x cobrar'!$I$13","v":"co-svsp-core:En_el_exterior_no_corrientes_CxC_Miembro"}]
["/*",null,{"$f":"'800111 - Nota. Cuentas x cobrar'!$E$22","v":"Otras cuentas por cobrar"},{"$f":"'800111 - Nota. Cuentas x cobrar'!$D$22","v":"co-svsp-core:CxC_Otras_cuentas_por_cobrar"}]
["/*",null,{"$f":"'800111 - Nota. Cuentas x cobrar'!$E$23","v":"Otras cuentas por cobrar que no están en mora ni deterioradas de valor"},{"$f":"'800111 - Nota. Cuentas x cobrar'!$D$23","v":"co-svsp-core:CxC_Cuentas_comerciales_por_cobrar_no_están_en_mora_ni_deterioradas_de_valor_OCxC"}]
["/*",null,{"$f":"'800111 - Nota. Cuentas x cobrar'!$E$24","v":"Otras cuentas por cobrar en mora pero no deterioradas de valor"},{"$f":"'800111 - Nota. Cuentas x cobrar'!$D$24","v":"co-svsp-core:CxC_Cuentas_comerciales_por_cobrar_en_mora_pero_no_deterioradas_de_valor_OCxC"}]
["/*",null,{"$f":"'800111 - Nota. Cuentas x cobrar'!$E$25","v":"Otras cuentas por cobrar deterioradas de valor"},{"$f":"'800111 - Nota. Cuentas x cobrar'!$D$25","v":"co-svsp-core:CxC_Cuentas_comerciales_por_cobrar_deterioradas_de_valor_OCxC"}]
["/*",null,{"$f":"'800111 - Nota. Cuentas x cobrar'!$E$26","v":"Deterioro (menor valor)"},{"$f":"'800111 - Nota. Cuentas x cobrar'!$D$26","v":"co-svsp-core:CxC_Deterioro_menor_valor_OCxC"}]
["",null,{"$f":"'800111 - Nota. Cuentas x cobrar'!$E$27","v":"Total otras cuentas por cobrar"},{"$f":"'800111 - Nota. Cuentas x cobrar'!$D$27","v":"co-svsp-core:CxC_Total_cuentas_comerciales_por_cobrar_OCxC"},0,"peso",{"$f":"'800111 - Nota. Cuentas x cobrar'!$I$27","v":0},0,"http://www.xbrl.org/scheme/companyName",null,{"$f":"Periodos!$C$4","v":"2023-12-31"},{"$f":"'800111 - Nota. Cuentas x cobrar'!$E$14","v":"co-svsp-core:CuentasPorCobrar_Eje"},{"$f":"'800111 - Nota. Cuentas x cobrar'!$I$13","v":"co-svsp-core:En_el_exterior_no_corrientes_CxC_Miembro"}]
["",null,{"$f":"'800111 - Nota. Cuentas x cobrar'!$E$28","v":"Total cuentas por cobrar y otras cuentas por cobrar"},{"$f":"'800111 - Nota. Cuentas x cobrar'!$D$28","v":"co-svsp-core:CxC_Total_cuentas_por_cobrar_y_otras_cuentas_por_cobrar"},0,"peso",{"$f":"'800111 - Nota. Cuentas x cobrar'!$I$28","v":0},0,"http://www.xbrl.org/scheme/companyName",null,{"$f":"Periodos!$C$4","v":"2023-12-31"},{"$f":"'800111 - Nota. Cuentas x cobrar'!$E$14","v":"co-svsp-core:CuentasPorCobrar_Eje"},{"$f":"'800111 - Nota. Cuentas x cobrar'!$I$13","v":"co-svsp-core:En_el_exterior_no_corrientes_CxC_Miembro"}]
["/*",null,"--05--"]
["/*",null,{"$f":"'800111 - Nota. Cuentas x cobrar'!$E$15","v":"Cuentas comerciales por cobrar y otras cuentas por cobrar"},{"$f":"'800111 - Nota. Cuentas x cobrar'!$D$15","v":"co-svsp-core:CxC_Cuentas_comerciales_por_cobrar_y_otras_cuentas_por_cobrar"}]
["/*",null,{"$f":"'800111 - Nota. Cuentas x cobrar'!$E$16","v":"Cuentas comerciales por cobrar"},{"$f":"'800111 - Nota. Cuentas x cobrar'!$D$16","v":"co-svsp-core:CxC_Cuentas_comerciales_por_cobrar"}]
["/*",null,{"$f":"'800111 - Nota. Cuentas x cobrar'!$E$17","v":"Cuentas comerciales por cobrar que no están en mora ni deterioradas de valor"},{"$f":"'800111 - Nota. Cuentas x cobrar'!$D$17","v":"co-svsp-core:CxC_Cuentas_comerciales_por_cobrar_no_están_en_mora_ni_deterioradas_de_valor"}]
["/*",null,{"$f":"'800111 - Nota. Cuentas x cobrar'!$E$18","v":"Cuentas comerciales por cobrar en mora pero no deterioradas de valor"},{"$f":"'800111 - Nota. Cuentas x cobrar'!$D$18","v":"co-svsp-core:CxC_Cuentas_comerciales_por_cobrar_en_mora_pero_no_deterioradas_de_valor"}]
["/*",null,{"$f":"'800111 - Nota. Cuentas x cobrar'!$E$19","v":"Cuentas comerciales por cobrar deterioradas de valor"},{"$f":"'800111 - Nota. Cuentas x cobrar'!$D$19","v":"co-svsp-core:CxC_Cuentas_comerciales_por_cobrar_deterioradas_de_valor"}]
["/*",null,{"$f":"'800111 - Nota. Cuentas x cobrar'!$E$20","v":"Deterioro (menor valor)"},{"$f":"'800111 - Nota. Cuentas x cobrar'!$D$20","v":"co-svsp-core:CxC_Deterioro_menor_valor"}]
["",null,{"$f":"'800111 - Nota. Cuentas x cobrar'!$E$21","v":"Total cuentas comerciales por cobrar"},{"$f":"'800111 - Nota. Cuentas x cobrar'!$D$21","v":"co-svsp-core:CxC_Total_cuentas_comerciales_por_cobrar"},0,"peso",{"$f":"'800111 - Nota. Cuentas x cobrar'!$J$21","v":0},0,"http://www.xbrl.org/scheme/companyName",null,{"$f":"Periodos!$C$4","v":"2023-12-31"},{"$f":"'800111 - Nota. Cuentas x cobrar'!$E$14","v":"co-svsp-core:CuentasPorCobrar_Eje"},{"$f":"'800111 - Nota. Cuentas x cobrar'!$J$13","v":"co-svsp-core:CxC_No_vencida_Miembro"}]
["/*",null,{"$f":"'800111 - Nota. Cuentas x cobrar'!$E$22","v":"Otras cuentas por cobrar"},{"$f":"'800111 - Nota. Cuentas x cobrar'!$D$22","v":"co-svsp-core:CxC_Otras_cuentas_por_cobrar"}]
["/*",null,{"$f":"'800111 - Nota. Cuentas x cobrar'!$E$23","v":"Otras cuentas por cobrar que no están en mora ni deterioradas de valor"},{"$f":"'800111 - Nota. Cuentas x cobrar'!$D$23","v":"co-svsp-core:CxC_Cuentas_comerciales_por_cobrar_no_están_en_mora_ni_deterioradas_de_valor_OCxC"}]
["/*",null,{"$f":"'800111 - Nota. Cuentas x cobrar'!$E$24","v":"Otras cuentas por cobrar en mora pero no deterioradas de valor"},{"$f":"'800111 - Nota. Cuentas x cobrar'!$D$24","v":"co-svsp-core:CxC_Cuentas_comerciales_por_cobrar_en_mora_pero_no_deterioradas_de_valor_OCxC"}]
["/*",null,{"$f":"'800111 - Nota. Cuentas x cobrar'!$E$25","v":"Otras cuentas por cobrar deterioradas de valor"},{"$f":"'800111 - Nota. Cuentas x cobrar'!$D$25","v":"co-svsp-core:CxC_Cuentas_comerciales_por_cobrar_deterioradas_de_valor_OCxC"}]
["/*",null,{"$f":"'800111 - Nota. Cuentas x cobrar'!$E$26","v":"Deterioro (menor valor)"},{"$f":"'800111 - Nota. Cuentas x cobrar'!$D$26","v":"co-svsp-core:CxC_Deterioro_menor_valor_OCxC"}]
["",null,{"$f":"'800111 - Nota. Cuentas x cobrar'!$E$27","v":"Total otras cuentas por cobrar"},{"$f":"'800111 - Nota. Cuentas x cobrar'!$D$27","v":"co-svsp-core:CxC_Total_cuentas_comerciales_por_cobrar_OCxC"},0,"peso",{"$f":"'800111 - Nota. Cuentas x cobrar'!$J$27","v":0},0,"http://www.xbrl.org/scheme/companyName",null,{"$f":"Periodos!$C$4","v":"2023-12-31"},{"$f":"'800111 - Nota. Cuentas x cobrar'!$E$14","v":"co-svsp-core:CuentasPorCobrar_Eje"},{"$f":"'800111 - Nota. Cuentas x cobrar'!$J$13","v":"co-svsp-core:CxC_No_vencida_Miembro"}]
["",null,{"$f":"'800111 - Nota. Cuentas x cobrar'!$E$28","v":"Total cuentas por cobrar y otras cuentas por cobrar"},{"$f":"'800111 - Nota. Cuentas x cobrar'!$D$28","v":"co-svsp-core:CxC_Total_cuentas_por_cobrar_y_otras_cuentas_por_cobrar"},0,"peso",{"$f":"'800111 - Nota. Cuentas x cobrar'!$J$28","v":0},0,"http://www.xbrl.org/scheme/companyName",null,{"$f":"Periodos!$C$4","v":"2023-12-31"},{"$f":"'800111 - Nota. Cuentas x cobrar'!$E$14","v":"co-svsp-core:CuentasPorCobrar_Eje"},{"$f":"'800111 - Nota. Cuentas x cobrar'!$J$13","v":"co-svsp-core:CxC_No_vencida_Miembro"}]
["/*",null,"--06--"]
["/*",null,{"$f":"'800111 - Nota. Cuentas x cobrar'!$E$15","v":"Cuentas comerciales por cobrar y otras cuentas por cobrar"},{"$f":"'800111 - Nota. Cuentas x cobrar'!$D$15","v":"co-svsp-core:CxC_Cuentas_comerciales_por_cobrar_y_otras_cuentas_por_cobrar"}]
["/*",null,{"$f":"'800111 - Nota. Cuentas x cobrar'!$E$16","v":"Cuentas comerciales por cobrar"},{"$f":"'800111 - Nota. Cuentas x cobrar'!$D$16","v":"co-svsp-core:CxC_Cuentas_comerciales_por_cobrar"}]
["/*",null,{"$f":"'800111 - Nota. Cuentas x cobrar'!$E$17","v":"Cuentas comerciales por cobrar que no están en mora ni deterioradas de valor"},{"$f":"'800111 - Nota. Cuentas x cobrar'!$D$17","v":"co-svsp-core:CxC_Cuentas_comerciales_por_cobrar_no_están_en_mora_ni_deterioradas_de_valor"}]
["/*",null,{"$f":"'800111 - Nota. Cuentas x cobrar'!$E$18","v":"Cuentas comerciales por cobrar en mora pero no deterioradas de valor"},{"$f":"'800111 - Nota. Cuentas x cobrar'!$D$18","v":"co-svsp-core:CxC_Cuentas_comerciales_por_cobrar_en_mora_pero_no_deterioradas_de_valor"}]
["/*",null,{"$f":"'800111 - Nota. Cuentas x cobrar'!$E$19","v":"Cuentas comerciales por cobrar deterioradas de valor"},{"$f":"'800111 - Nota. Cuentas x cobrar'!$D$19","v":"co-svsp-core:CxC_Cuentas_comerciales_por_cobrar_deterioradas_de_valor"}]
["/*",null,{"$f":"'800111 - Nota. Cuentas x cobrar'!$E$20","v":"Deterioro (menor valor)"},{"$f":"'800111 - Nota. Cuentas x cobrar'!$D$20","v":"co-svsp-core:CxC_Deterioro_menor_valor"}]
["",null,{"$f":"'800111 - Nota. Cuentas x cobrar'!$E$21","v":"Total cuentas comerciales por cobrar"},{"$f":"'800111 - Nota. Cuentas x cobrar'!$D$21","v":"co-svsp-core:CxC_Total_cuentas_comerciales_por_cobrar"},0,"peso",{"$f":"'800111 - Nota. Cuentas x cobrar'!$K$21","v":0},0,"http://www.xbrl.org/scheme/companyName",null,{"$f":"Periodos!$C$4","v":"2023-12-31"},{"$f":"'800111 - Nota. Cuentas x cobrar'!$E$14","v":"co-svsp-core:CuentasPorCobrar_Eje"},{"$f":"'800111 - Nota. Cuentas x cobrar'!$K$13","v":"co-svsp-core:CxC_Vencidas_1_a_90_dias_Miembro"}]
["/*",null,{"$f":"'800111 - Nota. Cuentas x cobrar'!$E$22","v":"Otras cuentas por cobrar"},{"$f":"'800111 - Nota. Cuentas x cobrar'!$D$22","v":"co-svsp-core:CxC_Otras_cuentas_por_cobrar"}]
[{"$f":"IF(G224=\"\",\"/*\",\"\")","v":"/*"},null,{"$f":"'800111 - Nota. Cuentas x cobrar'!$E$23","v":"Otras cuentas por cobrar que no están en mora ni deterioradas de valor"},{"$f":"'800111 - Nota. Cuentas x cobrar'!$D$23","v":"co-svsp-core:CxC_Cuentas_comerciales_por_cobrar_no_están_en_mora_ni_deterioradas_de_valor_OCxC"}]
["/*",null,{"$f":"'800111 - Nota. Cuentas x cobrar'!$E$24","v":"Otras cuentas por cobrar en mora pero no deterioradas de valor"},{"$f":"'800111 - Nota. Cuentas x cobrar'!$D$24","v":"co-svsp-core:CxC_Cuentas_comerciales_por_cobrar_en_mora_pero_no_deterioradas_de_valor_OCxC"}]
["/*",null,{"$f":"'800111 - Nota. Cuentas x cobrar'!$E$25","v":"Otras cuentas por cobrar deterioradas de valor"},{"$f":"'800111 - Nota. Cuentas x cobrar'!$D$25","v":"co-svsp-core:CxC_Cuentas_comerciales_por_cobrar_deterioradas_de_valor_OCxC"}]
["/*",null,{"$f":"'800111 - Nota. Cuentas x cobrar'!$E$26","v":"Deterioro (menor valor)"},{"$f":"'800111 - Nota. Cuentas x cobrar'!$D$26","v":"co-svsp-core:CxC_Deterioro_menor_valor_OCxC"}]
["",null,{"$f":"'800111 - Nota. Cuentas x cobrar'!$E$27","v":"Total otras cuentas por cobrar"},{"$f":"'800111 - Nota. Cuentas x cobrar'!$D$27","v":"co-svsp-core:CxC_Total_cuentas_comerciales_por_cobrar_OCxC"},0,"peso",{"$f":"'800111 - Nota. Cuentas x cobrar'!$K$27","v":0},0,"http://www.xbrl.org/scheme/companyName",null,{"$f":"Periodos!$C$4","v":"2023-12-31"},{"$f":"'800111 - Nota. Cuentas x cobrar'!$E$14","v":"co-svsp-core:CuentasPorCobrar_Eje"},{"$f":"'800111 - Nota. Cuentas x cobrar'!$K$13","v":"co-svsp-core:CxC_Vencidas_1_a_90_dias_Miembro"}]
["",null,{"$f":"'800111 - Nota. Cuentas x cobrar'!$E$28","v":"Total cuentas por cobrar y otras cuentas por cobrar"},{"$f":"'800111 - Nota. Cuentas x cobrar'!$D$28","v":"co-svsp-core:CxC_Total_cuentas_por_cobrar_y_otras_cuentas_por_cobrar"},0,"peso",{"$f":"'800111 - Nota. Cuentas x cobrar'!$K$28","v":0},0,"http://www.xbrl.org/scheme/companyName",null,{"$f":"Periodos!$C$4","v":"2023-12-31"},{"$f":"'800111 - Nota. Cuentas x cobrar'!$E$14","v":"co-svsp-core:CuentasPorCobrar_Eje"},{"$f":"'800111 - Nota. Cuentas x cobrar'!$K$13","v":"co-svsp-core:CxC_Vencidas_1_a_90_dias_Miembro"}]
["/*",null,"--07--"]
["/*",null,{"$f":"'800111 - Nota. Cuentas x cobrar'!$E$15","v":"Cuentas comerciales por cobrar y otras cuentas por cobrar"},{"$f":"'800111 - Nota. Cuentas x cobrar'!$D$15","v":"co-svsp-core:CxC_Cuentas_comerciales_por_cobrar_y_otras_cuentas_por_cobrar"}]
["/*",null,{"$f":"'800111 - Nota. Cuentas x cobrar'!$E$16","v":"Cuentas comerciales por cobrar"},{"$f":"'800111 - Nota. Cuentas x cobrar'!$D$16","v":"co-svsp-core:CxC_Cuentas_comerciales_por_cobrar"}]
["/*",null,{"$f":"'800111 - Nota. Cuentas x cobrar'!$E$17","v":"Cuentas comerciales por cobrar que no están en mora ni deterioradas de valor"},{"$f":"'800111 - Nota. Cuentas x cobrar'!$D$17","v":"co-svsp-core:CxC_Cuentas_comerciales_por_cobrar_no_están_en_mora_ni_deterioradas_de_valor"}]
["/*",null,{"$f":"'800111 - Nota. Cuentas x cobrar'!$E$18","v":"Cuentas comerciales por cobrar en mora pero no deterioradas de valor"},{"$f":"'800111 - Nota. Cuentas x cobrar'!$D$18","v":"co-svsp-core:CxC_Cuentas_comerciales_por_cobrar_en_mora_pero_no_deterioradas_de_valor"}]
["/*",null,{"$f":"'800111 - Nota. Cuentas x cobrar'!$E$19","v":"Cuentas comerciales por cobrar deterioradas de valor"},{"$f":"'800111 - Nota. Cuentas x cobrar'!$D$19","v":"co-svsp-core:CxC_Cuentas_comerciales_por_cobrar_deterioradas_de_valor"}]
["/*",null,{"$f":"'800111 - Nota. Cuentas x cobrar'!$E$20","v":"Deterioro (menor valor)"},{"$f":"'800111 - Nota. Cuentas x cobrar'!$D$20","v":"co-svsp-core:CxC_Deterioro_menor_valor"}]
["",null,{"$f":"'800111 - Nota. Cuentas x cobrar'!$E$21","v":"Total cuentas comerciales por cobrar"},{"$f":"'800111 - Nota. Cuentas x cobrar'!$D$21","v":"co-svsp-core:CxC_Total_cuentas_comerciales_por_cobrar"},0,"peso",{"$f":"'800111 - Nota. Cuentas x cobrar'!$L$21","v":0},0,"http://www.xbrl.org/scheme/companyName",null,{"$f":"Periodos!$C$4","v":"2023-12-31"},{"$f":"'800111 - Nota. Cuentas x cobrar'!$E$14","v":"co-svsp-core:CuentasPorCobrar_Eje"},{"$f":"'800111 - Nota. Cuentas x cobrar'!$L$13","v":"co-svsp-core:CxC_Vencidas_91_a_180_dias_Miembro"}]
["/*",null,{"$f":"'800111 - Nota. Cuentas x cobrar'!$E$22","v":"Otras cuentas por cobrar"},{"$f":"'800111 - Nota. Cuentas x cobrar'!$D$22","v":"co-svsp-core:CxC_Otras_cuentas_por_cobrar"}]
["/*",null,{"$f":"'800111 - Nota. Cuentas x cobrar'!$E$23","v":"Otras cuentas por cobrar que no están en mora ni deterioradas de valor"},{"$f":"'800111 - Nota. Cuentas x cobrar'!$D$23","v":"co-svsp-core:CxC_Cuentas_comerciales_por_cobrar_no_están_en_mora_ni_deterioradas_de_valor_OCxC"}]
["/*",null,{"$f":"'800111 - Nota. Cuentas x cobrar'!$E$24","v":"Otras cuentas por cobrar en mora pero no deterioradas de valor"},{"$f":"'800111 - Nota. Cuentas x cobrar'!$D$24","v":"co-svsp-core:CxC_Cuentas_comerciales_por_cobrar_en_mora_pero_no_deterioradas_de_valor_OCxC"}]
["/*",null,{"$f":"'800111 - Nota. Cuentas x cobrar'!$E$25","v":"Otras cuentas por cobrar deterioradas de valor"},{"$f":"'800111 - Nota. Cuentas x cobrar'!$D$25","v":"co-svsp-core:CxC_Cuentas_comerciales_por_cobrar_deterioradas_de_valor_OCxC"}]
["/*",null,{"$f":"'800111 - Nota. Cuentas x cobrar'!$E$26","v":"Deterioro (menor valor)"},{"$f":"'800111 - Nota. Cuentas x cobrar'!$D$26","v":"co-svsp-core:CxC_Deterioro_menor_valor_OCxC"}]
["",null,{"$f":"'800111 - Nota. Cuentas x cobrar'!$E$27","v":"Total otras cuentas por cobrar"},{"$f":"'800111 - Nota. Cuentas x cobrar'!$D$27","v":"co-svsp-core:CxC_Total_cuentas_comerciales_por_cobrar_OCxC"},0,"peso",{"$f":"'800111 - Nota. Cuentas x cobrar'!$L$27","v":0},0,"http://www.xbrl.org/scheme/companyName",null,{"$f":"Periodos!$C$4","v":"2023-12-31"},{"$f":"'800111 - Nota. Cuentas x cobrar'!$E$14","v":"co-svsp-core:CuentasPorCobrar_Eje"},{"$f":"'800111 - Nota. Cuentas x cobrar'!$L$13","v":"co-svsp-core:CxC_Vencidas_91_a_180_dias_Miembro"}]
["",null,{"$f":"'800111 - Nota. Cuentas x cobrar'!$E$28","v":"Total cuentas por cobrar y otras cuentas por cobrar"},{"$f":"'800111 - Nota. Cuentas x cobrar'!$D$28","v":"co-svsp-core:CxC_Total_cuentas_por_cobrar_y_otras_cuentas_por_cobrar"},0,"peso",{"$f":"'800111 - Nota. Cuentas x cobrar'!$L$28","v":0},0,"http://www.xbrl.org/scheme/companyName",null,{"$f":"Periodos!$C$4","v":"2023-12-31"},{"$f":"'800111 - Nota. Cuentas x cobrar'!$E$14","v":"co-svsp-core:CuentasPorCobrar_Eje"},{"$f":"'800111 - Nota. Cuentas x cobrar'!$L$13","v":"co-svsp-core:CxC_Vencidas_91_a_180_dias_Miembro"}]
["/*",null,"--08--"]
["/*",null,{"$f":"'800111 - Nota. Cuentas x cobrar'!$E$15","v":"Cuentas comerciales por cobrar y otras cuentas por cobrar"},{"$f":"'800111 - Nota. Cuentas x cobrar'!$D$15","v":"co-svsp-core:CxC_Cuentas_comerciales_por_cobrar_y_otras_cuentas_por_cobrar"}]
["/*",null,{"$f":"'800111 - Nota. Cuentas x cobrar'!$E$16","v":"Cuentas comerciales por cobrar"},{"$f":"'800111 - Nota. Cuentas x cobrar'!$D$16","v":"co-svsp-core:CxC_Cuentas_comerciales_por_cobrar"}]
["/*",null,{"$f":"'800111 - Nota. Cuentas x cobrar'!$E$17","v":"Cuentas comerciales por cobrar que no están en mora ni deterioradas de valor"},{"$f":"'800111 - Nota. Cuentas x cobrar'!$D$17","v":"co-svsp-core:CxC_Cuentas_comerciales_por_cobrar_no_están_en_mora_ni_deterioradas_de_valor"}]
["/*",null,{"$f":"'800111 - Nota. Cuentas x cobrar'!$E$18","v":"Cuentas comerciales por cobrar en mora pero no deterioradas de valor"},{"$f":"'800111 - Nota. Cuentas x cobrar'!$D$18","v":"co-svsp-core:CxC_Cuentas_comerciales_por_cobrar_en_mora_pero_no_deterioradas_de_valor"}]
["/*",null,{"$f":"'800111 - Nota. Cuentas x cobrar'!$E$19","v":"Cuentas comerciales por cobrar deterioradas de valor"},{"$f":"'800111 - Nota. Cuentas x cobrar'!$D$19","v":"co-svsp-core:CxC_Cuentas_comerciales_por_cobrar_deterioradas_de_valor"}]
["/*",null,{"$f":"'800111 - Nota. Cuentas x cobrar'!$E$20","v":"Deterioro (menor valor)"},{"$f":"'800111 - Nota. Cuentas x cobrar'!$D$20","v":"co-svsp-core:CxC_Deterioro_menor_valor"}]
["",null,{"$f":"'800111 - Nota. Cuentas x cobrar'!$E$21","v":"Total cuentas comerciales por cobrar"},{"$f":"'800111 - Nota. Cuentas x cobrar'!$D$21","v":"co-svsp-core:CxC_Total_cuentas_comerciales_por_cobrar"},0,"peso",{"$f":"'800111 - Nota. Cuentas x cobrar'!$M$21","v":0},0,"http://www.xbrl.org/scheme/companyName",null,{"$f":"Periodos!$C$4","v":"2023-12-31"},{"$f":"'800111 - Nota. Cuentas x cobrar'!$E$14","v":"co-svsp-core:CuentasPorCobrar_Eje"},{"$f":"'800111 - Nota. Cuentas x cobrar'!$M$13","v":"co-svsp-core:CxC_Vencidas_181_a_360_dias_Miembro"}]
["/*",null,{"$f":"'800111 - Nota. Cuentas x cobrar'!$E$22","v":"Otras cuentas por cobrar"},{"$f":"'800111 - Nota. Cuentas x cobrar'!$D$22","v":"co-svsp-core:CxC_Otras_cuentas_por_cobrar"}]
["/*",null,{"$f":"'800111 - Nota. Cuentas x cobrar'!$E$23","v":"Otras cuentas por cobrar que no están en mora ni deterioradas de valor"},{"$f":"'800111 - Nota. Cuentas x cobrar'!$D$23","v":"co-svsp-core:CxC_Cuentas_comerciales_por_cobrar_no_están_en_mora_ni_deterioradas_de_valor_OCxC"}]
["/*",null,{"$f":"'800111 - Nota. Cuentas x cobrar'!$E$24","v":"Otras cuentas por cobrar en mora pero no deterioradas de valor"},{"$f":"'800111 - Nota. Cuentas x cobrar'!$D$24","v":"co-svsp-core:CxC_Cuentas_comerciales_por_cobrar_en_mora_pero_no_deterioradas_de_valor_OCxC"}]
["/*",null,{"$f":"'800111 - Nota. Cuentas x cobrar'!$E$25","v":"Otras cuentas por cobrar deterioradas de valor"},{"$f":"'800111 - Nota. Cuentas x cobrar'!$D$25","v":"co-svsp-core:CxC_Cuentas_comerciales_por_cobrar_deterioradas_de_valor_OCxC"}]
["/*",null,{"$f":"'800111 - Nota. Cuentas x cobrar'!$E$26","v":"Deterioro (menor valor)"},{"$f":"'800111 - Nota. Cuentas x cobrar'!$D$26","v":"co-svsp-core:CxC_Deterioro_menor_valor_OCxC"}]
["",null,{"$f":"'800111 - Nota. Cuentas x cobrar'!$E$27","v":"Total otras cuentas por cobrar"},{"$f":"'800111 - Nota. Cuentas x cobrar'!$D$27","v":"co-svsp-core:CxC_Total_cuentas_comerciales_por_cobrar_OCxC"},0,"peso",{"$f":"'800111 - Nota. Cuentas x cobrar'!$M$27","v":0},0,"http://www.xbrl.org/scheme/companyName",null,{"$f":"Periodos!$C$4","v":"2023-12-31"},{"$f":"'800111 - Nota. Cuentas x cobrar'!$E$14","v":"co-svsp-core:CuentasPorCobrar_Eje"},{"$f":"'800111 - Nota. Cuentas x cobrar'!$M$13","v":"co-svsp-core:CxC_Vencidas_181_a_360_dias_Miembro"}]
["",null,{"$f":"'800111 - Nota. Cuentas x cobrar'!$E$28","v":"Total cuentas por cobrar y otras cuentas por cobrar"},{"$f":"'800111 - Nota. Cuentas x cobrar'!$D$28","v":"co-svsp-core:CxC_Total_cuentas_por_cobrar_y_otras_cuentas_por_cobrar"},0,"peso",{"$f":"'800111 - Nota. Cuentas x cobrar'!$M$28","v":0},0,"http://www.xbrl.org/scheme/companyName",null,{"$f":"Periodos!$C$4","v":"2023-12-31"},{"$f":"'800111 - Nota. Cuentas x cobrar'!$E$14","v":"co-svsp-core:CuentasPorCobrar_Eje"},{"$f":"'800111 - Nota. Cuentas x cobrar'!$M$13","v":"co-svsp-core:CxC_Vencidas_181_a_360_dias_Miembro"}]
["/*",null,"--09--"]
["/*",null,{"$f":"'800111 - Nota. Cuentas x cobrar'!$E$15","v":"Cuentas comerciales por cobrar y otras cuentas por cobrar"},{"$f":"'800111 - Nota. Cuentas x cobrar'!$D$15","v":"co-svsp-core:CxC_Cuentas_comerciales_por_cobrar_y_otras_cuentas_por_cobrar"}]
["/*",null,{"$f":"'800111 - Nota. Cuentas x cobrar'!$E$16","v":"Cuentas comerciales por cobrar"},{"$f":"'800111 - Nota. Cuentas x cobrar'!$D$16","v":"co-svsp-core:CxC_Cuentas_comerciales_por_cobrar"}]
["/*",null,{"$f":"'800111 - Nota. Cuentas x cobrar'!$E$17","v":"Cuentas comerciales por cobrar que no están en mora ni deterioradas de valor"},{"$f":"'800111 - Nota. Cuentas x cobrar'!$D$17","v":"co-svsp-core:CxC_Cuentas_comerciales_por_cobrar_no_están_en_mora_ni_deterioradas_de_valor"}]
["/*",null,{"$f":"'800111 - Nota. Cuentas x cobrar'!$E$18","v":"Cuentas comerciales por cobrar en mora pero no deterioradas de valor"},{"$f":"'800111 - Nota. Cuentas x cobrar'!$D$18","v":"co-svsp-core:CxC_Cuentas_comerciales_por_cobrar_en_mora_pero_no_deterioradas_de_valor"}]
["/*",null,{"$f":"'800111 - Nota. Cuentas x cobrar'!$E$19","v":"Cuentas comerciales por cobrar deterioradas de valor"},{"$f":"'800111 - Nota. Cuentas x cobrar'!$D$19","v":"co-svsp-core:CxC_Cuentas_comerciales_por_cobrar_deterioradas_de_valor"}]
["/*",null,{"$f":"'800111 - Nota. Cuentas x cobrar'!$E$20","v":"Deterioro (menor valor)"},{"$f":"'800111 - Nota. Cuentas x cobrar'!$D$20","v":"co-svsp-core:CxC_Deterioro_menor_valor"}]
["",null,{"$f":"'800111 - Nota. Cuentas x cobrar'!$E$21","v":"Total cuentas comerciales por cobrar"},{"$f":"'800111 - Nota. Cuentas x cobrar'!$D$21","v":"co-svsp-core:CxC_Total_cuentas_comerciales_por_cobrar"},0,"peso",{"$f":"'800111 - Nota. Cuentas x cobrar'!$N$21","v":0},0,"http://www.xbrl.org/scheme/companyName",null,{"$f":"Periodos!$C$4","v":"2023-12-31"},{"$f":"'800111 - Nota. Cuentas x cobrar'!$E$14","v":"co-svsp-core:CuentasPorCobrar_Eje"},{"$f":"'800111 - Nota. Cuentas x cobrar'!$N$13","v":"co-svsp-core:CxC_Vencidas_mas_de_360_dias_Miembro"}]
["/*",null,{"$f":"'800111 - Nota. Cuentas x cobrar'!$E$22","v":"Otras cuentas por cobrar"},{"$f":"'800111 - Nota. Cuentas x cobrar'!$D$22","v":"co-svsp-core:CxC_Otras_cuentas_por_cobrar"}]
["/*",null,{"$f":"'800111 - Nota. Cuentas x cobrar'!$E$23","v":"Otras cuentas por cobrar que no están en mora ni deterioradas de valor"},{"$f":"'800111 - Nota. Cuentas x cobrar'!$D$23","v":"co-svsp-core:CxC_Cuentas_comerciales_por_cobrar_no_están_en_mora_ni_deterioradas_de_valor_OCxC"}]
["/*",null,{"$f":"'800111 - Nota. Cuentas x cobrar'!$E$24","v":"Otras cuentas por cobrar en mora pero no deterioradas de valor"},{"$f":"'800111 - Nota. Cuentas x cobrar'!$D$24","v":"co-svsp-core:CxC_Cuentas_comerciales_por_cobrar_en_mora_pero_no_deterioradas_de_valor_OCxC"}]
["/*",null,{"$f":"'800111 - Nota. Cuentas x cobrar'!$E$25","v":"Otras cuentas por cobrar deterioradas de valor"},{"$f":"'800111 - Nota. Cuentas x cobrar'!$D$25","v":"co-svsp-core:CxC_Cuentas_comerciales_por_cobrar_deterioradas_de_valor_OCxC"}]
["/*",null,{"$f":"'800111 - Nota. Cuentas x cobrar'!$E$26","v":"Deterioro (menor valor)"},{"$f":"'800111 - Nota. Cuentas x cobrar'!$D$26","v":"co-svsp-core:CxC_Deterioro_menor_valor_OCxC"}]
["",null,{"$f":"'800111 - Nota. Cuentas x cobrar'!$E$27","v":"Total otras cuentas por cobrar"},{"$f":"'800111 - Nota. Cuentas x cobrar'!$D$27","v":"co-svsp-core:CxC_Total_cuentas_comerciales_por_cobrar_OCxC"},0,"peso",{"$f":"'800111 - Nota. Cuentas x cobrar'!$N$27","v":0},0,"http://www.xbrl.org/scheme/companyName",null,{"$f":"Periodos!$C$4","v":"2023-12-31"},{"$f":"'800111 - Nota. Cuentas x cobrar'!$E$14","v":"co-svsp-core:CuentasPorCobrar_Eje"},{"$f":"'800111 - Nota. Cuentas x cobrar'!$N$13","v":"co-svsp-core:CxC_Vencidas_mas_de_360_dias_Miembro"}]
["",null,{"$f":"'800111 - Nota. Cuentas x cobrar'!$E$28","v":"Total cuentas por cobrar y otras cuentas por cobrar"},{"$f":"'800111 - Nota. Cuentas x cobrar'!$D$28","v":"co-svsp-core:CxC_Total_cuentas_por_cobrar_y_otras_cuentas_por_cobrar"},0,"peso",{"$f":"'800111 - Nota. Cuentas x cobrar'!$N$28","v":0},0,"http://www.xbrl.org/scheme/companyName",null,{"$f":"Periodos!$C$4","v":"2023-12-31"},{"$f":"'800111 - Nota. Cuentas x cobrar'!$E$14","v":"co-svsp-core:CuentasPorCobrar_Eje"},{"$f":"'800111 - Nota. Cuentas x cobrar'!$N$13","v":"co-svsp-core:CxC_Vencidas_mas_de_360_dias_Miembro"}]
["/*",null,"--10--"]
["/*",null,{"$f":"'800111 - Nota. Cuentas x cobrar'!$E$15","v":"Cuentas comerciales por cobrar y otras cuentas por cobrar"},{"$f":"'800111 - Nota. Cuentas x cobrar'!$D$15","v":"co-svsp-core:CxC_Cuentas_comerciales_por_cobrar_y_otras_cuentas_por_cobrar"}]
["/*",null,{"$f":"'800111 - Nota. Cuentas x cobrar'!$E$16","v":"Cuentas comerciales por cobrar"},{"$f":"'800111 - Nota. Cuentas x cobrar'!$D$16","v":"co-svsp-core:CxC_Cuentas_comerciales_por_cobrar"}]
["",null,{"$f":"'800111 - Nota. Cuentas x cobrar'!$E$17","v":"Cuentas comerciales por cobrar que no están en mora ni deterioradas de valor"},{"$f":"'800111 - Nota. Cuentas x cobrar'!$D$17","v":"co-svsp-core:CxC_Cuentas_comerciales_por_cobrar_no_están_en_mora_ni_deterioradas_de_valor"},0,"peso",{"$f":"'800111 - Nota. Cuentas x cobrar'!$O$17","v":0},0,"http://www.xbrl.org/scheme/companyName",null,{"$f":"Periodos!$C$4","v":"2023-12-31"},{"$f":"'800111 - Nota. Cuentas x cobrar'!$E$14","v":"co-svsp-core:CuentasPorCobrar_Eje"},{"$f":"'800111 - Nota. Cuentas x cobrar'!$O$13","v":"co-svsp-core:CxC_Total_Vencidas_Miembro"}]
["",null,{"$f":"'800111 - Nota. Cuentas x cobrar'!$E$18","v":"Cuentas comerciales por cobrar en mora pero no deterioradas de valor"},{"$f":"'800111 - Nota. Cuentas x cobrar'!$D$18","v":"co-svsp-core:CxC_Cuentas_comerciales_por_cobrar_en_mora_pero_no_deterioradas_de_valor"},0,"peso",{"$f":"'800111 - Nota. Cuentas x cobrar'!$O$18","v":0},0,"http://www.xbrl.org/scheme/companyName",null,{"$f":"Periodos!$C$4","v":"2023-12-31"},{"$f":"'800111 - Nota. Cuentas x cobrar'!$E$14","v":"co-svsp-core:CuentasPorCobrar_Eje"},{"$f":"'800111 - Nota. Cuentas x cobrar'!$O$13","v":"co-svsp-core:CxC_Total_Vencidas_Miembro"}]
["",null,{"$f":"'800111 - Nota. Cuentas x cobrar'!$E$19","v":"Cuentas comerciales por cobrar deterioradas de valor"},{"$f":"'800111 - Nota. Cuentas x cobrar'!$D$19","v":"co-svsp-core:CxC_Cuentas_comerciales_por_cobrar_deterioradas_de_valor"},0,"peso",{"$f":"'800111 - Nota. Cuentas x cobrar'!$O$19","v":0},0,"http://www.xbrl.org/scheme/companyName",null,{"$f":"Periodos!$C$4","v":"2023-12-31"},{"$f":"'800111 - Nota. Cuentas x cobrar'!$E$14","v":"co-svsp-core:CuentasPorCobrar_Eje"},{"$f":"'800111 - Nota. Cuentas x cobrar'!$O$13","v":"co-svsp-core:CxC_Total_Vencidas_Miembro"}]
["",null,{"$f":"'800111 - Nota. Cuentas x cobrar'!$E$20","v":"Deterioro (menor valor)"},{"$f":"'800111 - Nota. Cuentas x cobrar'!$D$20","v":"co-svsp-core:CxC_Deterioro_menor_valor"},0,"peso",{"$f":"'800111 - Nota. Cuentas x cobrar'!$O$20","v":0},0,"http://www.xbrl.org/scheme/companyName",null,{"$f":"Periodos!$C$4","v":"2023-12-31"},{"$f":"'800111 - Nota. Cuentas x cobrar'!$E$14","v":"co-svsp-core:CuentasPorCobrar_Eje"},{"$f":"'800111 - Nota. Cuentas x cobrar'!$O$13","v":"co-svsp-core:CxC_Total_Vencidas_Miembro"}]
["",null,{"$f":"'800111 - Nota. Cuentas x cobrar'!$E$21","v":"Total cuentas comerciales por cobrar"},{"$f":"'800111 - Nota. Cuentas x cobrar'!$D$21","v":"co-svsp-core:CxC_Total_cuentas_comerciales_por_cobrar"},0,"peso",{"$f":"'800111 - Nota. Cuentas x cobrar'!$O$21","v":0},0,"http://www.xbrl.org/scheme/companyName",null,{"$f":"Periodos!$C$4","v":"2023-12-31"},{"$f":"'800111 - Nota. Cuentas x cobrar'!$E$14","v":"co-svsp-core:CuentasPorCobrar_Eje"},{"$f":"'800111 - Nota. Cuentas x cobrar'!$O$13","v":"co-svsp-core:CxC_Total_Vencidas_Miembro"}]
["/*",null,{"$f":"'800111 - Nota. Cuentas x cobrar'!$E$22","v":"Otras cuentas por cobrar"},{"$f":"'800111 - Nota. Cuentas x cobrar'!$D$22","v":"co-svsp-core:CxC_Otras_cuentas_por_cobrar"}]
["",null,{"$f":"'800111 - Nota. Cuentas x cobrar'!$E$23","v":"Otras cuentas por cobrar que no están en mora ni deterioradas de valor"},{"$f":"'800111 - Nota. Cuentas x cobrar'!$D$23","v":"co-svsp-core:CxC_Cuentas_comerciales_por_cobrar_no_están_en_mora_ni_deterioradas_de_valor_OCxC"},0,"peso",{"$f":"'800111 - Nota. Cuentas x cobrar'!$O$23","v":0},0,"http://www.xbrl.org/scheme/companyName",null,{"$f":"Periodos!$C$4","v":"2023-12-31"},{"$f":"'800111 - Nota. Cuentas x cobrar'!$E$14","v":"co-svsp-core:CuentasPorCobrar_Eje"},{"$f":"'800111 - Nota. Cuentas x cobrar'!$O$13","v":"co-svsp-core:CxC_Total_Vencidas_Miembro"}]
["",null,{"$f":"'800111 - Nota. Cuentas x cobrar'!$E$24","v":"Otras cuentas por cobrar en mora pero no deterioradas de valor"},{"$f":"'800111 - Nota. Cuentas x cobrar'!$D$24","v":"co-svsp-core:CxC_Cuentas_comerciales_por_cobrar_en_mora_pero_no_deterioradas_de_valor_OCxC"},0,"peso",{"$f":"'800111 - Nota. Cuentas x cobrar'!$O$24","v":0},0,"http://www.xbrl.org/scheme/companyName",null,{"$f":"Periodos!$C$4","v":"2023-12-31"},{"$f":"'800111 - Nota. Cuentas x cobrar'!$E$14","v":"co-svsp-core:CuentasPorCobrar_Eje"},{"$f":"'800111 - Nota. Cuentas x cobrar'!$O$13","v":"co-svsp-core:CxC_Total_Vencidas_Miembro"}]
["",null,{"$f":"'800111 - Nota. Cuentas x cobrar'!$E$25","v":"Otras cuentas por cobrar deterioradas de valor"},{"$f":"'800111 - Nota. Cuentas x cobrar'!$D$25","v":"co-svsp-core:CxC_Cuentas_comerciales_por_cobrar_deterioradas_de_valor_OCxC"},0,"peso",{"$f":"'800111 - Nota. Cuentas x cobrar'!$O$25","v":0},0,"http://www.xbrl.org/scheme/companyName",null,{"$f":"Periodos!$C$4","v":"2023-12-31"},{"$f":"'800111 - Nota. Cuentas x cobrar'!$E$14","v":"co-svsp-core:CuentasPorCobrar_Eje"},{"$f":"'800111 - Nota. Cuentas x cobrar'!$O$13","v":"co-svsp-core:CxC_Total_Vencidas_Miembro"}]
["",null,{"$f":"'800111 - Nota. Cuentas x cobrar'!$E$26","v":"Deterioro (menor valor)"},{"$f":"'800111 - Nota. Cuentas x cobrar'!$D$26","v":"co-svsp-core:CxC_Deterioro_menor_valor_OCxC"},0,"peso",{"$f":"'800111 - Nota. Cuentas x cobrar'!$O$26","v":0},0,"http://www.xbrl.org/scheme/companyName",null,{"$f":"Periodos!$C$4","v":"2023-12-31"},{"$f":"'800111 - Nota. Cuentas x cobrar'!$E$14","v":"co-svsp-core:CuentasPorCobrar_Eje"},{"$f":"'800111 - Nota. Cuentas x cobrar'!$O$13","v":"co-svsp-core:CxC_Total_Vencidas_Miembro"}]
[{"$f":"IF(G288=\"\",\"/*\",\"\")","v":""},null,{"$f":"'800111 - Nota. Cuentas x cobrar'!$E$27","v":"Total otras cuentas por cobrar"},{"$f":"'800111 - Nota. Cuentas x cobrar'!$D$27","v":"co-svsp-core:CxC_Total_cuentas_comerciales_por_cobrar_OCxC"},0,"peso",{"$f":"'800111 - Nota. Cuentas x cobrar'!$O$27","v":0},0,"http://www.xbrl.org/scheme/companyName",null,{"$f":"Periodos!$C$4","v":"2023-12-31"},{"$f":"'800111 - Nota. Cuentas x cobrar'!$E$14","v":"co-svsp-core:CuentasPorCobrar_Eje"},{"$f":"'800111 - Nota. Cuentas x cobrar'!$O$13","v":"co-svsp-core:CxC_Total_Vencidas_Miembro"}]
["",null,{"$f":"'800111 - Nota. Cuentas x cobrar'!$E$28","v":"Total cuentas por cobrar y otras cuentas por cobrar"},{"$f":"'800111 - Nota. Cuentas x cobrar'!$D$28","v":"co-svsp-core:CxC_Total_cuentas_por_cobrar_y_otras_cuentas_por_cobrar"},0,"peso",{"$f":"'800111 - Nota. Cuentas x cobrar'!$O$28","v":0},0,"http://www.xbrl.org/scheme/companyName",null,{"$f":"Periodos!$C$4","v":"2023-12-31"},{"$f":"'800111 - Nota. Cuentas x cobrar'!$E$14","v":"co-svsp-core:CuentasPorCobrar_Eje"},{"$f":"'800111 - Nota. Cuentas x cobrar'!$O$13","v":"co-svsp-core:CxC_Total_Vencidas_Miembro"}]
["/*"]
["/*",null,"800111 - Nota. Cuentas x cobrar"]
["/*",null,"--01--"]
["/*",null,{"$f":"'800111 - Nota. Cuentas x cobrar'!$E$36","v":"Cuentas comerciales por cobrar y otras cuentas por cobrar"},{"$f":"'800111 - Nota. Cuentas x cobrar'!$D$36","v":"co-svsp-core:CxC_Cuentas_comerciales_por_cobrar_y_otras_cuentas_por_cobrar"}]
["/*",null,{"$f":"'800111 - Nota. Cuentas x cobrar'!$E$37","v":"Cuentas comerciales por cobrar"},{"$f":"'800111 - Nota. Cuentas x cobrar'!$D$37","v":"co-svsp-core:CxC_Cuentas_comerciales_por_cobrar"}]
["/*",null,{"$f":"'800111 - Nota. Cuentas x cobrar'!$E$38","v":"Cuentas comerciales por cobrar que no están en mora ni deterioradas de valor"},{"$f":"'800111 - Nota. Cuentas x cobrar'!$D$38","v":"co-svsp-core:CxC_Cuentas_comerciales_por_cobrar_no_están_en_mora_ni_deterioradas_de_valor"}]
["/*",null,{"$f":"'800111 - Nota. Cuentas x cobrar'!$E$39","v":"Cuentas comerciales por cobrar en mora pero no deterioradas de valor"},{"$f":"'800111 - Nota. Cuentas x cobrar'!$D$39","v":"co-svsp-core:CxC_Cuentas_comerciales_por_cobrar_en_mora_pero_no_deterioradas_de_valor"}]
["/*",null,{"$f":"'800111 - Nota. Cuentas x cobrar'!$E$40","v":"Cuentas comerciales por cobrar deterioradas de valor"},{"$f":"'800111 - Nota. Cuentas x cobrar'!$D$40","v":"co-svsp-core:CxC_Cuentas_comerciales_por_cobrar_deterioradas_de_valor"}]
["/*",null,{"$f":"'800111 - Nota. Cuentas x cobrar'!$E$41","v":"Deterioro (menor valor)"},{"$f":"'800111 - Nota. Cuentas x cobrar'!$D$41","v":"co-svsp-core:CxC_Deterioro_menor_valor"}]
["",null,{"$f":"'800111 - Nota. Cuentas x cobrar'!$E$42","v":"Total cuentas comerciales por cobrar"},{"$f":"'800111 - Nota. Cuentas x cobrar'!$D$42","v":"co-svsp-core:CxC_Total_cuentas_comerciales_por_cobrar"},0,"peso",{"$f":"'800111 - Nota. Cuentas x cobrar'!$F$42","v":0},0,"http://www.xbrl.org/scheme/companyName",null,{"$f":"Periodos!$D$4","v":"2022-12-31"},{"$f":"'800111 - Nota. Cuentas x cobrar'!$E$35","v":"co-svsp-core:CuentasPorCobrar_Eje"},{"$f":"'800111 - Nota. Cuentas x cobrar'!$F$34","v":"co-svsp-core:Nacionales_corrientes_CxC_Miembro"}]
["/*",null,{"$f":"'800111 - Nota. Cuentas x cobrar'!$E$43","v":"Otras cuentas por cobrar"},{"$f":"'800111 - Nota. Cuentas x cobrar'!$D$43","v":"co-svsp-core:CxC_Otras_cuentas_por_cobrar"}]
["/*",null,{"$f":"'800111 - Nota. Cuentas x cobrar'!$E$44","v":"Otras cuentas por cobrar que no están en mora ni deterioradas de valor"},{"$f":"'800111 - Nota. Cuentas x cobrar'!$D$44","v":"co-svsp-core:CxC_Cuentas_comerciales_por_cobrar_no_están_en_mora_ni_deterioradas_de_valor_OCxC"}]
["/*",null,{"$f":"'800111 - Nota. Cuentas x cobrar'!$E$45","v":"Otras cuentas por cobrar en mora pero no deterioradas de valor"},{"$f":"'800111 - Nota. Cuentas x cobrar'!$D$45","v":"co-svsp-core:CxC_Cuentas_comerciales_por_cobrar_en_mora_pero_no_deterioradas_de_valor_OCxC"}]
["/*",null,{"$f":"'800111 - Nota. Cuentas x cobrar'!$E$46","v":"Otras cuentas por cobrar deterioradas de valor"},{"$f":"'800111 - Nota. Cuentas x cobrar'!$D$46","v":"co-svsp-core:CxC_Cuentas_comerciales_por_cobrar_deterioradas_de_valor_OCxC"}]
["/*",null,{"$f":"'800111 - Nota. Cuentas x cobrar'!$E$47","v":"Deterioro (menor valor)"},{"$f":"'800111 - Nota. Cuentas x cobrar'!$D$47","v":"co-svsp-core:CxC_Deterioro_menor_valor_OCxC"}]
["",null,{"$f":"'800111 - Nota. Cuentas x cobrar'!$E$48","v":"Total otras cuentas por cobrar"},{"$f":"'800111 - Nota. Cuentas x cobrar'!$D$48","v":"co-svsp-core:CxC_Total_cuentas_comerciales_por_cobrar_OCxC"},0,"peso",{"$f":"'800111 - Nota. Cuentas x cobrar'!$F$48","v":0},0,"http://www.xbrl.org/scheme/companyName",null,{"$f":"Periodos!$D$4","v":"2022-12-31"},{"$f":"'800111 - Nota. Cuentas x cobrar'!$E$35","v":"co-svsp-core:CuentasPorCobrar_Eje"},{"$f":"'800111 - Nota. Cuentas x cobrar'!$F$34","v":"co-svsp-core:Nacionales_corrientes_CxC_Miembro"}]
["",null,{"$f":"'800111 - Nota. Cuentas x cobrar'!$E$49","v":"Total cuentas por cobrar y otras cuentas por cobrar"},{"$f":"'800111 - Nota. Cuentas x cobrar'!$D$49","v":"co-svsp-core:CxC_Total_cuentas_por_cobrar_y_otras_cuentas_por_cobrar"},0,"peso",{"$f":"'800111 - Nota. Cuentas x cobrar'!$F$49","v":0},0,"http://www.xbrl.org/scheme/companyName",null,{"$f":"Periodos!$D$4","v":"2022-12-31"},{"$f":"'800111 - Nota. Cuentas x cobrar'!$E$35","v":"co-svsp-core:CuentasPorCobrar_Eje"},{"$f":"'800111 - Nota. Cuentas x cobrar'!$F$34","v":"co-svsp-core:Nacionales_corrientes_CxC_Miembro"}]
["/*",null,"--02--"]
["/*",null,{"$f":"'800111 - Nota. Cuentas x cobrar'!$E$36","v":"Cuentas comerciales por cobrar y otras cuentas por cobrar"},{"$f":"'800111 - Nota. Cuentas x cobrar'!$D$36","v":"co-svsp-core:CxC_Cuentas_comerciales_por_cobrar_y_otras_cuentas_por_cobrar"}]
["/*",null,{"$f":"'800111 - Nota. Cuentas x cobrar'!$E$37","v":"Cuentas comerciales por cobrar"},{"$f":"'800111 - Nota. Cuentas x cobrar'!$D$37","v":"co-svsp-core:CxC_Cuentas_comerciales_por_cobrar"}]
["/*",null,{"$f":"'800111 - Nota. Cuentas x cobrar'!$E$38","v":"Cuentas comerciales por cobrar que no están en mora ni deterioradas de valor"},{"$f":"'800111 - Nota. Cuentas x cobrar'!$D$38","v":"co-svsp-core:CxC_Cuentas_comerciales_por_cobrar_no_están_en_mora_ni_deterioradas_de_valor"}]
["/*",null,{"$f":"'800111 - Nota. Cuentas x cobrar'!$E$39","v":"Cuentas comerciales por cobrar en mora pero no deterioradas de valor"},{"$f":"'800111 - Nota. Cuentas x cobrar'!$D$39","v":"co-svsp-core:CxC_Cuentas_comerciales_por_cobrar_en_mora_pero_no_deterioradas_de_valor"}]
["/*",null,{"$f":"'800111 - Nota. Cuentas x cobrar'!$E$40","v":"Cuentas comerciales por cobrar deterioradas de valor"},{"$f":"'800111 - Nota. Cuentas x cobrar'!$D$40","v":"co-svsp-core:CxC_Cuentas_comerciales_por_cobrar_deterioradas_de_valor"}]
["/*",null,{"$f":"'800111 - Nota. Cuentas x cobrar'!$E$41","v":"Deterioro (menor valor)"},{"$f":"'800111 - Nota. Cuentas x cobrar'!$D$41","v":"co-svsp-core:CxC_Deterioro_menor_valor"}]
["",null,{"$f":"'800111 - Nota. Cuentas x cobrar'!$E$42","v":"Total cuentas comerciales por cobrar"},{"$f":"'800111 - Nota. Cuentas x cobrar'!$D$42","v":"co-svsp-core:CxC_Total_cuentas_comerciales_por_cobrar"},0,"peso",{"$f":"'800111 - Nota. Cuentas x cobrar'!$G$42","v":0},0,"http://www.xbrl.org/scheme/companyName",null,{"$f":"Periodos!$D$4","v":"2022-12-31"},{"$f":"'800111 - Nota. Cuentas x cobrar'!$E$35","v":"co-svsp-core:CuentasPorCobrar_Eje"},{"$f":"'800111 - Nota. Cuentas x cobrar'!$G$34","v":"co-svsp-core:En_el_exterior_corrientes_CxC_Miembro"}]
["/*",null,{"$f":"'800111 - Nota. Cuentas x cobrar'!$E$43","v":"Otras cuentas por cobrar"},{"$f":"'800111 - Nota. Cuentas x cobrar'!$D$43","v":"co-svsp-core:CxC_Otras_cuentas_por_cobrar"}]
["/*",null,{"$f":"'800111 - Nota. Cuentas x cobrar'!$E$44","v":"Otras cuentas por cobrar que no están en mora ni deterioradas de valor"},{"$f":"'800111 - Nota. Cuentas x cobrar'!$D$44","v":"co-svsp-core:CxC_Cuentas_comerciales_por_cobrar_no_están_en_mora_ni_deterioradas_de_valor_OCxC"}]
["/*",null,{"$f":"'800111 - Nota. Cuentas x cobrar'!$E$45","v":"Otras cuentas por cobrar en mora pero no deterioradas de valor"},{"$f":"'800111 - Nota. Cuentas x cobrar'!$D$45","v":"co-svsp-core:CxC_Cuentas_comerciales_por_cobrar_en_mora_pero_no_deterioradas_de_valor_OCxC"}]
["/*",null,{"$f":"'800111 - Nota. Cuentas x cobrar'!$E$46","v":"Otras cuentas por cobrar deterioradas de valor"},{"$f":"'800111 - Nota. Cuentas x cobrar'!$D$46","v":"co-svsp-core:CxC_Cuentas_comerciales_por_cobrar_deterioradas_de_valor_OCxC"}]
["/*",null,{"$f":"'800111 - Nota. Cuentas x cobrar'!$E$47","v":"Deterioro (menor valor)"},{"$f":"'800111 - Nota. Cuentas x cobrar'!$D$47","v":"co-svsp-core:CxC_Deterioro_menor_valor_OCxC"}]
["",null,{"$f":"'800111 - Nota. Cuentas x cobrar'!$E$48","v":"Total otras cuentas por cobrar"},{"$f":"'800111 - Nota. Cuentas x cobrar'!$D$48","v":"co-svsp-core:CxC_Total_cuentas_comerciales_por_cobrar_OCxC"},0,"peso",{"$f":"'800111 - Nota. Cuentas x cobrar'!$G$48","v":0},0,"http://www.xbrl.org/scheme/companyName",null,{"$f":"Periodos!$D$4","v":"2022-12-31"},{"$f":"'800111 - Nota. Cuentas x cobrar'!$E$35","v":"co-svsp-core:CuentasPorCobrar_Eje"},{"$f":"'800111 - Nota. Cuentas x cobrar'!$G$34","v":"co-svsp-core:En_el_exterior_corrientes_CxC_Miembro"}]
["",null,{"$f":"'800111 - Nota. Cuentas x cobrar'!$E$49","v":"Total cuentas por cobrar y otras cuentas por cobrar"},{"$f":"'800111 - Nota. Cuentas x cobrar'!$D$49","v":"co-svsp-core:CxC_Total_cuentas_por_cobrar_y_otras_cuentas_por_cobrar"},0,"peso",{"$f":"'800111 - Nota. Cuentas x cobrar'!$G$49","v":0},0,"http://www.xbrl.org/scheme/companyName",null,{"$f":"Periodos!$D$4","v":"2022-12-31"},{"$f":"'800111 - Nota. Cuentas x cobrar'!$E$35","v":"co-svsp-core:CuentasPorCobrar_Eje"},{"$f":"'800111 - Nota. Cuentas x cobrar'!$G$34","v":"co-svsp-core:En_el_exterior_corrientes_CxC_Miembro"}]
["/*",null,"--03--"]
["/*",null,{"$f":"'800111 - Nota. Cuentas x cobrar'!$E$36","v":"Cuentas comerciales por cobrar y otras cuentas por cobrar"},{"$f":"'800111 - Nota. Cuentas x cobrar'!$D$36","v":"co-svsp-core:CxC_Cuentas_comerciales_por_cobrar_y_otras_cuentas_por_cobrar"}]
["/*",null,{"$f":"'800111 - Nota. Cuentas x cobrar'!$E$37","v":"Cuentas comerciales por cobrar"},{"$f":"'800111 - Nota. Cuentas x cobrar'!$D$37","v":"co-svsp-core:CxC_Cuentas_comerciales_por_cobrar"}]
["/*",null,{"$f":"'800111 - Nota. Cuentas x cobrar'!$E$38","v":"Cuentas comerciales por cobrar que no están en mora ni deterioradas de valor"},{"$f":"'800111 - Nota. Cuentas x cobrar'!$D$38","v":"co-svsp-core:CxC_Cuentas_comerciales_por_cobrar_no_están_en_mora_ni_deterioradas_de_valor"}]
["/*",null,{"$f":"'800111 - Nota. Cuentas x cobrar'!$E$39","v":"Cuentas comerciales por cobrar en mora pero no deterioradas de valor"},{"$f":"'800111 - Nota. Cuentas x cobrar'!$D$39","v":"co-svsp-core:CxC_Cuentas_comerciales_por_cobrar_en_mora_pero_no_deterioradas_de_valor"}]
["/*",null,{"$f":"'800111 - Nota. Cuentas x cobrar'!$E$40","v":"Cuentas comerciales por cobrar deterioradas de valor"},{"$f":"'800111 - Nota. Cuentas x cobrar'!$D$40","v":"co-svsp-core:CxC_Cuentas_comerciales_por_cobrar_deterioradas_de_valor"}]
["/*",null,{"$f":"'800111 - Nota. Cuentas x cobrar'!$E$41","v":"Deterioro (menor valor)"},{"$f":"'800111 - Nota. Cuentas x cobrar'!$D$41","v":"co-svsp-core:CxC_Deterioro_menor_valor"}]
["",null,{"$f":"'800111 - Nota. Cuentas x cobrar'!$E$42","v":"Total cuentas comerciales por cobrar"},{"$f":"'800111 - Nota. Cuentas x cobrar'!$D$42","v":"co-svsp-core:CxC_Total_cuentas_comerciales_por_cobrar"},0,"peso",{"$f":"'800111 - Nota. Cuentas x cobrar'!$H$42","v":0},0,"http://www.xbrl.org/scheme/companyName",null,{"$f":"Periodos!$D$4","v":"2022-12-31"},{"$f":"'800111 - Nota. Cuentas x cobrar'!$E$35","v":"co-svsp-core:CuentasPorCobrar_Eje"},{"$f":"'800111 - Nota. Cuentas x cobrar'!$H$34","v":"co-svsp-core:Nacionales_no_corrientes_CxC_Miembro"}]
["/*",null,{"$f":"'800111 - Nota. Cuentas x cobrar'!$E$43","v":"Otras cuentas por cobrar"},{"$f":"'800111 - Nota. Cuentas x cobrar'!$D$43","v":"co-svsp-core:CxC_Otras_cuentas_por_cobrar"}]
["/*",null,{"$f":"'800111 - Nota. Cuentas x cobrar'!$E$44","v":"Otras cuentas por cobrar que no están en mora ni deterioradas de valor"},{"$f":"'800111 - Nota. Cuentas x cobrar'!$D$44","v":"co-svsp-core:CxC_Cuentas_comerciales_por_cobrar_no_están_en_mora_ni_deterioradas_de_valor_OCxC"}]
["/*",null,{"$f":"'800111 - Nota. Cuentas x cobrar'!$E$45","v":"Otras cuentas por cobrar en mora pero no deterioradas de valor"},{"$f":"'800111 - Nota. Cuentas x cobrar'!$D$45","v":"co-svsp-core:CxC_Cuentas_comerciales_por_cobrar_en_mora_pero_no_deterioradas_de_valor_OCxC"}]
["/*",null,{"$f":"'800111 - Nota. Cuentas x cobrar'!$E$46","v":"Otras cuentas por cobrar deterioradas de valor"},{"$f":"'800111 - Nota. Cuentas x cobrar'!$D$46","v":"co-svsp-core:CxC_Cuentas_comerciales_por_cobrar_deterioradas_de_valor_OCxC"}]
["/*",null,{"$f":"'800111 - Nota. Cuentas x cobrar'!$E$47","v":"Deterioro (menor valor)"},{"$f":"'800111 - Nota. Cuentas x cobrar'!$D$47","v":"co-svsp-core:CxC_Deterioro_menor_valor_OCxC"}]
["",null,{"$f":"'800111 - Nota. Cuentas x cobrar'!$E$48","v":"Total otras cuentas por cobrar"},{"$f":"'800111 - Nota. Cuentas x cobrar'!$D$48","v":"co-svsp-core:CxC_Total_cuentas_comerciales_por_cobrar_OCxC"},0,"peso",{"$f":"'800111 - Nota. Cuentas x cobrar'!$H$48","v":0},0,"http://www.xbrl.org/scheme/companyName",null,{"$f":"Periodos!$D$4","v":"2022-12-31"},{"$f":"'800111 - Nota. Cuentas x cobrar'!$E$35","v":"co-svsp-core:CuentasPorCobrar_Eje"},{"$f":"'800111 - Nota. Cuentas x cobrar'!$H$34","v":"co-svsp-core:Nacionales_no_corrientes_CxC_Miembro"}]
["",null,{"$f":"'800111 - Nota. Cuentas x cobrar'!$E$49","v":"Total cuentas por cobrar y otras cuentas por cobrar"},{"$f":"'800111 - Nota. Cuentas x cobrar'!$D$49","v":"co-svsp-core:CxC_Total_cuentas_por_cobrar_y_otras_cuentas_por_cobrar"},0,"peso",{"$f":"'800111 - Nota. Cuentas x cobrar'!$H$49","v":0},0,"http://www.xbrl.org/scheme/companyName",null,{"$f":"Periodos!$D$4","v":"2022-12-31"},{"$f":"'800111 - Nota. Cuentas x cobrar'!$E$35","v":"co-svsp-core:CuentasPorCobrar_Eje"},{"$f":"'800111 - Nota. Cuentas x cobrar'!$H$34","v":"co-svsp-core:Nacionales_no_corrientes_CxC_Miembro"}]
["/*",null,"--04--"]
["/*",null,{"$f":"'800111 - Nota. Cuentas x cobrar'!$E$36","v":"Cuentas comerciales por cobrar y otras cuentas por cobrar"},{"$f":"'800111 - Nota. Cuentas x cobrar'!$D$36","v":"co-svsp-core:CxC_Cuentas_comerciales_por_cobrar_y_otras_cuentas_por_cobrar"}]
["/*",null,{"$f":"'800111 - Nota. Cuentas x cobrar'!$E$37","v":"Cuentas comerciales por cobrar"},{"$f":"'800111 - Nota. Cuentas x cobrar'!$D$37","v":"co-svsp-core:CxC_Cuentas_comerciales_por_cobrar"}]
["/*",null,{"$f":"'800111 - Nota. Cuentas x cobrar'!$E$38","v":"Cuentas comerciales por cobrar que no están en mora ni deterioradas de valor"},{"$f":"'800111 - Nota. Cuentas x cobrar'!$D$38","v":"co-svsp-core:CxC_Cuentas_comerciales_por_cobrar_no_están_en_mora_ni_deterioradas_de_valor"}]
["/*",null,{"$f":"'800111 - Nota. Cuentas x cobrar'!$E$39","v":"Cuentas comerciales por cobrar en mora pero no deterioradas de valor"},{"$f":"'800111 - Nota. Cuentas x cobrar'!$D$39","v":"co-svsp-core:CxC_Cuentas_comerciales_por_cobrar_en_mora_pero_no_deterioradas_de_valor"}]
["/*",null,{"$f":"'800111 - Nota. Cuentas x cobrar'!$E$40","v":"Cuentas comerciales por cobrar deterioradas de valor"},{"$f":"'800111 - Nota. Cuentas x cobrar'!$D$40","v":"co-svsp-core:CxC_Cuentas_comerciales_por_cobrar_deterioradas_de_valor"}]
["/*",null,{"$f":"'800111 - Nota. Cuentas x cobrar'!$E$41","v":"Deterioro (menor valor)"},{"$f":"'800111 - Nota. Cuentas x cobrar'!$D$41","v":"co-svsp-core:CxC_Deterioro_menor_valor"}]
["",null,{"$f":"'800111 - Nota. Cuentas x cobrar'!$E$42","v":"Total cuentas comerciales por cobrar"},{"$f":"'800111 - Nota. Cuentas x cobrar'!$D$42","v":"co-svsp-core:CxC_Total_cuentas_comerciales_por_cobrar"},0,"peso",{"$f":"'800111 - Nota. Cuentas x cobrar'!$I$42","v":0},0,"http://www.xbrl.org/scheme/companyName",null,{"$f":"Periodos!$D$4","v":"2022-12-31"},{"$f":"'800111 - Nota. Cuentas x cobrar'!$E$35","v":"co-svsp-core:CuentasPorCobrar_Eje"},{"$f":"'800111 - Nota. Cuentas x cobrar'!$I$34","v":"co-svsp-core:En_el_exterior_no_corrientes_CxC_Miembro"}]
["/*",null,{"$f":"'800111 - Nota. Cuentas x cobrar'!$E$43","v":"Otras cuentas por cobrar"},{"$f":"'800111 - Nota. Cuentas x cobrar'!$D$43","v":"co-svsp-core:CxC_Otras_cuentas_por_cobrar"}]
["/*",null,{"$f":"'800111 - Nota. Cuentas x cobrar'!$E$44","v":"Otras cuentas por cobrar que no están en mora ni deterioradas de valor"},{"$f":"'800111 - Nota. Cuentas x cobrar'!$D$44","v":"co-svsp-core:CxC_Cuentas_comerciales_por_cobrar_no_están_en_mora_ni_deterioradas_de_valor_OCxC"}]
["/*",null,{"$f":"'800111 - Nota. Cuentas x cobrar'!$E$45","v":"Otras cuentas por cobrar en mora pero no deterioradas de valor"},{"$f":"'800111 - Nota. Cuentas x cobrar'!$D$45","v":"co-svsp-core:CxC_Cuentas_comerciales_por_cobrar_en_mora_pero_no_deterioradas_de_valor_OCxC"}]
["/*",null,{"$f":"'800111 - Nota. Cuentas x cobrar'!$E$46","v":"Otras cuentas por cobrar deterioradas de valor"},{"$f":"'800111 - Nota. Cuentas x cobrar'!$D$46","v":"co-svsp-core:CxC_Cuentas_comerciales_por_cobrar_deterioradas_de_valor_OCxC"}]
["/*",null,{"$f":"'800111 - Nota. Cuentas x cobrar'!$E$47","v":"Deterioro (menor valor)"},{"$f":"'800111 - Nota. Cuentas x cobrar'!$D$47","v":"co-svsp-core:CxC_Deterioro_menor_valor_OCxC"}]
["",null,{"$f":"'800111 - Nota. Cuentas x cobrar'!$E$48","v":"Total otras cuentas por cobrar"},{"$f":"'800111 - Nota. Cuentas x cobrar'!$D$48","v":"co-svsp-core:CxC_Total_cuentas_comerciales_por_cobrar_OCxC"},0,"peso",{"$f":"'800111 - Nota. Cuentas x cobrar'!$I$48","v":0},0,"http://www.xbrl.org/scheme/companyName",null,{"$f":"Periodos!$D$4","v":"2022-12-31"},{"$f":"'800111 - Nota. Cuentas x cobrar'!$E$35","v":"co-svsp-core:CuentasPorCobrar_Eje"},{"$f":"'800111 - Nota. Cuentas x cobrar'!$I$34","v":"co-svsp-core:En_el_exterior_no_corrientes_CxC_Miembro"}]
["",null,{"$f":"'800111 - Nota. Cuentas x cobrar'!$E$49","v":"Total cuentas por cobrar y otras cuentas por cobrar"},{"$f":"'800111 - Nota. Cuentas x cobrar'!$D$49","v":"co-svsp-core:CxC_Total_cuentas_por_cobrar_y_otras_cuentas_por_cobrar"},0,"peso",{"$f":"'800111 - Nota. Cuentas x cobrar'!$I$49","v":0},0,"http://www.xbrl.org/scheme/companyName",null,{"$f":"Periodos!$D$4","v":"2022-12-31"},{"$f":"'800111 - Nota. Cuentas x cobrar'!$E$35","v":"co-svsp-core:CuentasPorCobrar_Eje"},{"$f":"'800111 - Nota. Cuentas x cobrar'!$I$34","v":"co-svsp-core:En_el_exterior_no_corrientes_CxC_Miembro"}]
[{"$f":"IF(G352=\"\",\"/*\",\"\")","v":"/*"},null,"--05--"]
["/*",null,{"$f":"'800111 - Nota. Cuentas x cobrar'!$E$36","v":"Cuentas comerciales por cobrar y otras cuentas por cobrar"},{"$f":"'800111 - Nota. Cuentas x cobrar'!$D$36","v":"co-svsp-core:CxC_Cuentas_comerciales_por_cobrar_y_otras_cuentas_por_cobrar"}]
["/*",null,{"$f":"'800111 - Nota. Cuentas x cobrar'!$E$37","v":"Cuentas comerciales por cobrar"},{"$f":"'800111 - Nota. Cuentas x cobrar'!$D$37","v":"co-svsp-core:CxC_Cuentas_comerciales_por_cobrar"}]
["/*",null,{"$f":"'800111 - Nota. Cuentas x cobrar'!$E$38","v":"Cuentas comerciales por cobrar que no están en mora ni deterioradas de valor"},{"$f":"'800111 - Nota. Cuentas x cobrar'!$D$38","v":"co-svsp-core:CxC_Cuentas_comerciales_por_cobrar_no_están_en_mora_ni_deterioradas_de_valor"}]
["/*",null,{"$f":"'800111 - Nota. Cuentas x cobrar'!$E$39","v":"Cuentas comerciales por cobrar en mora pero no deterioradas de valor"},{"$f":"'800111 - Nota. Cuentas x cobrar'!$D$39","v":"co-svsp-core:CxC_Cuentas_comerciales_por_cobrar_en_mora_pero_no_deterioradas_de_valor"}]
["/*",null,{"$f":"'800111 - Nota. Cuentas x cobrar'!$E$40","v":"Cuentas comerciales por cobrar deterioradas de valor"},{"$f":"'800111 - Nota. Cuentas x cobrar'!$D$40","v":"co-svsp-core:CxC_Cuentas_comerciales_por_cobrar_deterioradas_de_valor"}]
["/*",null,{"$f":"'800111 - Nota. Cuentas x cobrar'!$E$41","v":"Deterioro (menor valor)"},{"$f":"'800111 - Nota. Cuentas x cobrar'!$D$41","v":"co-svsp-core:CxC_Deterioro_menor_valor"}]
["",null,{"$f":"'800111 - Nota. Cuentas x cobrar'!$E$42","v":"Total cuentas comerciales por cobrar"},{"$f":"'800111 - Nota. Cuentas x cobrar'!$D$42","v":"co-svsp-core:CxC_Total_cuentas_comerciales_por_cobrar"},0,"peso",{"$f":"'800111 - Nota. Cuentas x cobrar'!$J$42","v":0},0,"http://www.xbrl.org/scheme/companyName",null,{"$f":"Periodos!$D$4","v":"2022-12-31"},{"$f":"'800111 - Nota. Cuentas x cobrar'!$E$35","v":"co-svsp-core:CuentasPorCobrar_Eje"},{"$f":"'800111 - Nota. Cuentas x cobrar'!$J$34","v":"co-svsp-core:CxC_No_vencida_Miembro"}]
["/*",null,{"$f":"'800111 - Nota. Cuentas x cobrar'!$E$43","v":"Otras cuentas por cobrar"},{"$f":"'800111 - Nota. Cuentas x cobrar'!$D$43","v":"co-svsp-core:CxC_Otras_cuentas_por_cobrar"}]
["/*",null,{"$f":"'800111 - Nota. Cuentas x cobrar'!$E$44","v":"Otras cuentas por cobrar que no están en mora ni deterioradas de valor"},{"$f":"'800111 - Nota. Cuentas x cobrar'!$D$44","v":"co-svsp-core:CxC_Cuentas_comerciales_por_cobrar_no_están_en_mora_ni_deterioradas_de_valor_OCxC"}]
["/*",null,{"$f":"'800111 - Nota. Cuentas x cobrar'!$E$45","v":"Otras cuentas por cobrar en mora pero no deterioradas de valor"},{"$f":"'800111 - Nota. Cuentas x cobrar'!$D$45","v":"co-svsp-core:CxC_Cuentas_comerciales_por_cobrar_en_mora_pero_no_deterioradas_de_valor_OCxC"}]
["/*",null,{"$f":"'800111 - Nota. Cuentas x cobrar'!$E$46","v":"Otras cuentas por cobrar deterioradas de valor"},{"$f":"'800111 - Nota. Cuentas x cobrar'!$D$46","v":"co-svsp-core:CxC_Cuentas_comerciales_por_cobrar_deterioradas_de_valor_OCxC"}]
["/*",null,{"$f":"'800111 - Nota. Cuentas x cobrar'!$E$47","v":"Deterioro (menor valor)"},{"$f":"'800111 - Nota. Cuentas x cobrar'!$D$47","v":"co-svsp-core:CxC_Deterioro_menor_valor_OCxC"}]
["",null,{"$f":"'800111 - Nota. Cuentas x cobrar'!$E$48","v":"Total otras cuentas por cobrar"},{"$f":"'800111 - Nota. Cuentas x cobrar'!$D$48","v":"co-svsp-core:CxC_Total_cuentas_comerciales_por_cobrar_OCxC"},0,"peso",{"$f":"'800111 - Nota. Cuentas x cobrar'!$J$48","v":0},0,"http://www.xbrl.org/scheme/companyName",null,{"$f":"Periodos!$D$4","v":"2022-12-31"},{"$f":"'800111 - Nota. Cuentas x cobrar'!$E$35","v":"co-svsp-core:CuentasPorCobrar_Eje"},{"$f":"'800111 - Nota. Cuentas x cobrar'!$J$34","v":"co-svsp-core:CxC_No_vencida_Miembro"}]
["",null,{"$f":"'800111 - Nota. Cuentas x cobrar'!$E$49","v":"Total cuentas por cobrar y otras cuentas por cobrar"},{"$f":"'800111 - Nota. Cuentas x cobrar'!$D$49","v":"co-svsp-core:CxC_Total_cuentas_por_cobrar_y_otras_cuentas_por_cobrar"},0,"peso",{"$f":"'800111 - Nota. Cuentas x cobrar'!$J$49","v":0},0,"http://www.xbrl.org/scheme/companyName",null,{"$f":"Periodos!$D$4","v":"2022-12-31"},{"$f":"'800111 - Nota. Cuentas x cobrar'!$E$35","v":"co-svsp-core:CuentasPorCobrar_Eje"},{"$f":"'800111 - Nota. Cuentas x cobrar'!$J$34","v":"co-svsp-core:CxC_No_vencida_Miembro"}]
["/*",null,"--06--"]
["/*",null,{"$f":"'800111 - Nota. Cuentas x cobrar'!$E$36","v":"Cuentas comerciales por cobrar y otras cuentas por cobrar"},{"$f":"'800111 - Nota. Cuentas x cobrar'!$D$36","v":"co-svsp-core:CxC_Cuentas_comerciales_por_cobrar_y_otras_cuentas_por_cobrar"}]
["/*",null,{"$f":"'800111 - Nota. Cuentas x cobrar'!$E$37","v":"Cuentas comerciales por cobrar"},{"$f":"'800111 - Nota. Cuentas x cobrar'!$D$37","v":"co-svsp-core:CxC_Cuentas_comerciales_por_cobrar"}]
["/*",null,{"$f":"'800111 - Nota. Cuentas x cobrar'!$E$38","v":"Cuentas comerciales por cobrar que no están en mora ni deterioradas de valor"},{"$f":"'800111 - Nota. Cuentas x cobrar'!$D$38","v":"co-svsp-core:CxC_Cuentas_comerciales_por_cobrar_no_están_en_mora_ni_deterioradas_de_valor"}]
["/*",null,{"$f":"'800111 - Nota. Cuentas x cobrar'!$E$39","v":"Cuentas comerciales por cobrar en mora pero no deterioradas de valor"},{"$f":"'800111 - Nota. Cuentas x cobrar'!$D$39","v":"co-svsp-core:CxC_Cuentas_comerciales_por_cobrar_en_mora_pero_no_deterioradas_de_valor"}]
["/*",null,{"$f":"'800111 - Nota. Cuentas x cobrar'!$E$40","v":"Cuentas comerciales por cobrar deterioradas de valor"},{"$f":"'800111 - Nota. Cuentas x cobrar'!$D$40","v":"co-svsp-core:CxC_Cuentas_comerciales_por_cobrar_deterioradas_de_valor"}]
["/*",null,{"$f":"'800111 - Nota. Cuentas x cobrar'!$E$41","v":"Deterioro (menor valor)"},{"$f":"'800111 - Nota. Cuentas x cobrar'!$D$41","v":"co-svsp-core:CxC_Deterioro_menor_valor"}]
["",null,{"$f":"'800111 - Nota. Cuentas x cobrar'!$E$42","v":"Total cuentas comerciales por cobrar"},{"$f":"'800111 - Nota. Cuentas x cobrar'!$D$42","v":"co-svsp-core:CxC_Total_cuentas_comerciales_por_cobrar"},0,"peso",{"$f":"'800111 - Nota. Cuentas x cobrar'!$K$42","v":0},0,"http://www.xbrl.org/scheme/companyName",null,{"$f":"Periodos!$D$4","v":"2022-12-31"},{"$f":"'800111 - Nota. Cuentas x cobrar'!$E$35","v":"co-svsp-core:CuentasPorCobrar_Eje"},{"$f":"'800111 - Nota. Cuentas x cobrar'!$K$34","v":"co-svsp-core:CxC_Vencidas_1_a_90_dias_Miembro"}]
["/*",null,{"$f":"'800111 - Nota. Cuentas x cobrar'!$E$43","v":"Otras cuentas por cobrar"},{"$f":"'800111 - Nota. Cuentas x cobrar'!$D$43","v":"co-svsp-core:CxC_Otras_cuentas_por_cobrar"}]
["/*",null,{"$f":"'800111 - Nota. Cuentas x cobrar'!$E$44","v":"Otras cuentas por cobrar que no están en mora ni deterioradas de valor"},{"$f":"'800111 - Nota. Cuentas x cobrar'!$D$44","v":"co-svsp-core:CxC_Cuentas_comerciales_por_cobrar_no_están_en_mora_ni_deterioradas_de_valor_OCxC"}]
["/*",null,{"$f":"'800111 - Nota. Cuentas x cobrar'!$E$45","v":"Otras cuentas por cobrar en mora pero no deterioradas de valor"},{"$f":"'800111 - Nota. Cuentas x cobrar'!$D$45","v":"co-svsp-core:CxC_Cuentas_comerciales_por_cobrar_en_mora_pero_no_deterioradas_de_valor_OCxC"}]
["/*",null,{"$f":"'800111 - Nota. Cuentas x cobrar'!$E$46","v":"Otras cuentas por cobrar deterioradas de valor"},{"$f":"'800111 - Nota. Cuentas x cobrar'!$D$46","v":"co-svsp-core:CxC_Cuentas_comerciales_por_cobrar_deterioradas_de_valor_OCxC"}]
["/*",null,{"$f":"'800111 - Nota. Cuentas x cobrar'!$E$47","v":"Deterioro (menor valor)"},{"$f":"'800111 - Nota. Cuentas x cobrar'!$D$47","v":"co-svsp-core:CxC_Deterioro_menor_valor_OCxC"}]
["",null,{"$f":"'800111 - Nota. Cuentas x cobrar'!$E$48","v":"Total otras cuentas por cobrar"},{"$f":"'800111 - Nota. Cuentas x cobrar'!$D$48","v":"co-svsp-core:CxC_Total_cuentas_comerciales_por_cobrar_OCxC"},0,"peso",{"$f":"'800111 - Nota. Cuentas x cobrar'!$K$48","v":0},0,"http://www.xbrl.org/scheme/companyName",null,{"$f":"Periodos!$D$4","v":"2022-12-31"},{"$f":"'800111 - Nota. Cuentas x cobrar'!$E$35","v":"co-svsp-core:CuentasPorCobrar_Eje"},{"$f":"'800111 - Nota. Cuentas x cobrar'!$K$34","v":"co-svsp-core:CxC_Vencidas_1_a_90_dias_Miembro"}]
["",null,{"$f":"'800111 - Nota. Cuentas x cobrar'!$E$49","v":"Total cuentas por cobrar y otras cuentas por cobrar"},{"$f":"'800111 - Nota. Cuentas x cobrar'!$D$49","v":"co-svsp-core:CxC_Total_cuentas_por_cobrar_y_otras_cuentas_por_cobrar"},0,"peso",{"$f":"'800111 - Nota. Cuentas x cobrar'!$K$49","v":0},0,"http://www.xbrl.org/scheme/companyName",null,{"$f":"Periodos!$D$4","v":"2022-12-31"},{"$f":"'800111 - Nota. Cuentas x cobrar'!$E$35","v":"co-svsp-core:CuentasPorCobrar_Eje"},{"$f":"'800111 - Nota. Cuentas x cobrar'!$K$34","v":"co-svsp-core:CxC_Vencidas_1_a_90_dias_Miembro"}]
["/*",null,"--07--"]
["/*",null,{"$f":"'800111 - Nota. Cuentas x cobrar'!$E$36","v":"Cuentas comerciales por cobrar y otras cuentas por cobrar"},{"$f":"'800111 - Nota. Cuentas x cobrar'!$D$36","v":"co-svsp-core:CxC_Cuentas_comerciales_por_cobrar_y_otras_cuentas_por_cobrar"}]
["/*",null,{"$f":"'800111 - Nota. Cuentas x cobrar'!$E$37","v":"Cuentas comerciales por cobrar"},{"$f":"'800111 - Nota. Cuentas x cobrar'!$D$37","v":"co-svsp-core:CxC_Cuentas_comerciales_por_cobrar"}]
["/*",null,{"$f":"'800111 - Nota. Cuentas x cobrar'!$E$38","v":"Cuentas comerciales por cobrar que no están en mora ni deterioradas de valor"},{"$f":"'800111 - Nota. Cuentas x cobrar'!$D$38","v":"co-svsp-core:CxC_Cuentas_comerciales_por_cobrar_no_están_en_mora_ni_deterioradas_de_valor"}]
["/*",null,{"$f":"'800111 - Nota. Cuentas x cobrar'!$E$39","v":"Cuentas comerciales por cobrar en mora pero no deterioradas de valor"},{"$f":"'800111 - Nota. Cuentas x cobrar'!$D$39","v":"co-svsp-core:CxC_Cuentas_comerciales_por_cobrar_en_mora_pero_no_deterioradas_de_valor"}]
["/*",null,{"$f":"'800111 - Nota. Cuentas x cobrar'!$E$40","v":"Cuentas comerciales por cobrar deterioradas de valor"},{"$f":"'800111 - Nota. Cuentas x cobrar'!$D$40","v":"co-svsp-core:CxC_Cuentas_comerciales_por_cobrar_deterioradas_de_valor"}]
["/*",null,{"$f":"'800111 - Nota. Cuentas x cobrar'!$E$41","v":"Deterioro (menor valor)"},{"$f":"'800111 - Nota. Cuentas x cobrar'!$D$41","v":"co-svsp-core:CxC_Deterioro_menor_valor"}]
["",null,{"$f":"'800111 - Nota. Cuentas x cobrar'!$E$42","v":"Total cuentas comerciales por cobrar"},{"$f":"'800111 - Nota. Cuentas x cobrar'!$D$42","v":"co-svsp-core:CxC_Total_cuentas_comerciales_por_cobrar"},0,"peso",{"$f":"'800111 - Nota. Cuentas x cobrar'!$L$42","v":0},0,"http://www.xbrl.org/scheme/companyName",null,{"$f":"Periodos!$D$4","v":"2022-12-31"},{"$f":"'800111 - Nota. Cuentas x cobrar'!$E$35","v":"co-svsp-core:CuentasPorCobrar_Eje"},{"$f":"'800111 - Nota. Cuentas x cobrar'!$L$34","v":"co-svsp-core:CxC_Vencidas_91_a_180_dias_Miembro"}]
["/*",null,{"$f":"'800111 - Nota. Cuentas x cobrar'!$E$43","v":"Otras cuentas por cobrar"},{"$f":"'800111 - Nota. Cuentas x cobrar'!$D$43","v":"co-svsp-core:CxC_Otras_cuentas_por_cobrar"}]
["/*",null,{"$f":"'800111 - Nota. Cuentas x cobrar'!$E$44","v":"Otras cuentas por cobrar que no están en mora ni deterioradas de valor"},{"$f":"'800111 - Nota. Cuentas x cobrar'!$D$44","v":"co-svsp-core:CxC_Cuentas_comerciales_por_cobrar_no_están_en_mora_ni_deterioradas_de_valor_OCxC"}]
["/*",null,{"$f":"'800111 - Nota. Cuentas x cobrar'!$E$45","v":"Otras cuentas por cobrar en mora pero no deterioradas de valor"},{"$f":"'800111 - Nota. Cuentas x cobrar'!$D$45","v":"co-svsp-core:CxC_Cuentas_comerciales_por_cobrar_en_mora_pero_no_deterioradas_de_valor_OCxC"}]
["/*",null,{"$f":"'800111 - Nota. Cuentas x cobrar'!$E$46","v":"Otras cuentas por cobrar deterioradas de valor"},{"$f":"'800111 - Nota. Cuentas x cobrar'!$D$46","v":"co-svsp-core:CxC_Cuentas_comerciales_por_cobrar_deterioradas_de_valor_OCxC"}]
["/*",null,{"$f":"'800111 - Nota. Cuentas x cobrar'!$E$47","v":"Deterioro (menor valor)"},{"$f":"'800111 - Nota. Cuentas x cobrar'!$D$47","v":"co-svsp-core:CxC_Deterioro_menor_valor_OCxC"}]
["",null,{"$f":"'800111 - Nota. Cuentas x cobrar'!$E$48","v":"Total otras cuentas por cobrar"},{"$f":"'800111 - Nota. Cuentas x cobrar'!$D$48","v":"co-svsp-core:CxC_Total_cuentas_comerciales_por_cobrar_OCxC"},0,"peso",{"$f":"'800111 - Nota. Cuentas x cobrar'!$L$48","v":0},0,"http://www.xbrl.org/scheme/companyName",null,{"$f":"Periodos!$D$4","v":"2022-12-31"},{"$f":"'800111 - Nota. Cuentas x cobrar'!$E$35","v":"co-svsp-core:CuentasPorCobrar_Eje"},{"$f":"'800111 - Nota. Cuentas x cobrar'!$L$34","v":"co-svsp-core:CxC_Vencidas_91_a_180_dias_Miembro"}]
["",null,{"$f":"'800111 - Nota. Cuentas x cobrar'!$E$49","v":"Total cuentas por cobrar y otras cuentas por cobrar"},{"$f":"'800111 - Nota. Cuentas x cobrar'!$D$49","v":"co-svsp-core:CxC_Total_cuentas_por_cobrar_y_otras_cuentas_por_cobrar"},0,"peso",{"$f":"'800111 - Nota. Cuentas x cobrar'!$L$49","v":0},0,"http://www.xbrl.org/scheme/companyName",null,{"$f":"Periodos!$D$4","v":"2022-12-31"},{"$f":"'800111 - Nota. Cuentas x cobrar'!$E$35","v":"co-svsp-core:CuentasPorCobrar_Eje"},{"$f":"'800111 - Nota. Cuentas x cobrar'!$L$34","v":"co-svsp-core:CxC_Vencidas_91_a_180_dias_Miembro"}]
["/*",null,"--08--"]
["/*",null,{"$f":"'800111 - Nota. Cuentas x cobrar'!$E$36","v":"Cuentas comerciales por cobrar y otras cuentas por cobrar"},{"$f":"'800111 - Nota. Cuentas x cobrar'!$D$36","v":"co-svsp-core:CxC_Cuentas_comerciales_por_cobrar_y_otras_cuentas_por_cobrar"}]
["/*",null,{"$f":"'800111 - Nota. Cuentas x cobrar'!$E$37","v":"Cuentas comerciales por cobrar"},{"$f":"'800111 - Nota. Cuentas x cobrar'!$D$37","v":"co-svsp-core:CxC_Cuentas_comerciales_por_cobrar"}]
["/*",null,{"$f":"'800111 - Nota. Cuentas x cobrar'!$E$38","v":"Cuentas comerciales por cobrar que no están en mora ni deterioradas de valor"},{"$f":"'800111 - Nota. Cuentas x cobrar'!$D$38","v":"co-svsp-core:CxC_Cuentas_comerciales_por_cobrar_no_están_en_mora_ni_deterioradas_de_valor"}]
["/*",null,{"$f":"'800111 - Nota. Cuentas x cobrar'!$E$39","v":"Cuentas comerciales por cobrar en mora pero no deterioradas de valor"},{"$f":"'800111 - Nota. Cuentas x cobrar'!$D$39","v":"co-svsp-core:CxC_Cuentas_comerciales_por_cobrar_en_mora_pero_no_deterioradas_de_valor"}]
["/*",null,{"$f":"'800111 - Nota. Cuentas x cobrar'!$E$40","v":"Cuentas comerciales por cobrar deterioradas de valor"},{"$f":"'800111 - Nota. Cuentas x cobrar'!$D$40","v":"co-svsp-core:CxC_Cuentas_comerciales_por_cobrar_deterioradas_de_valor"}]
["/*",null,{"$f":"'800111 - Nota. Cuentas x cobrar'!$E$41","v":"Deterioro (menor valor)"},{"$f":"'800111 - Nota. Cuentas x cobrar'!$D$41","v":"co-svsp-core:CxC_Deterioro_menor_valor"}]
["",null,{"$f":"'800111 - Nota. Cuentas x cobrar'!$E$42","v":"Total cuentas comerciales por cobrar"},{"$f":"'800111 - Nota. Cuentas x cobrar'!$D$42","v":"co-svsp-core:CxC_Total_cuentas_comerciales_por_cobrar"},0,"peso",{"$f":"'800111 - Nota. Cuentas x cobrar'!$M$42","v":0},0,"http://www.xbrl.org/scheme/companyName",null,{"$f":"Periodos!$D$4","v":"2022-12-31"},{"$f":"'800111 - Nota. Cuentas x cobrar'!$E$35","v":"co-svsp-core:CuentasPorCobrar_Eje"},{"$f":"'800111 - Nota. Cuentas x cobrar'!$M$34","v":"co-svsp-core:CxC_Vencidas_181_a_360_dias_Miembro"}]
["/*",null,{"$f":"'800111 - Nota. Cuentas x cobrar'!$E$43","v":"Otras cuentas por cobrar"},{"$f":"'800111 - Nota. Cuentas x cobrar'!$D$43","v":"co-svsp-core:CxC_Otras_cuentas_por_cobrar"}]
["/*",null,{"$f":"'800111 - Nota. Cuentas x cobrar'!$E$44","v":"Otras cuentas por cobrar que no están en mora ni deterioradas de valor"},{"$f":"'800111 - Nota. Cuentas x cobrar'!$D$44","v":"co-svsp-core:CxC_Cuentas_comerciales_por_cobrar_no_están_en_mora_ni_deterioradas_de_valor_OCxC"}]
["/*",null,{"$f":"'800111 - Nota. Cuentas x cobrar'!$E$45","v":"Otras cuentas por cobrar en mora pero no deterioradas de valor"},{"$f":"'800111 - Nota. Cuentas x cobrar'!$D$45","v":"co-svsp-core:CxC_Cuentas_comerciales_por_cobrar_en_mora_pero_no_deterioradas_de_valor_OCxC"}]
["/*",null,{"$f":"'800111 - Nota. Cuentas x cobrar'!$E$46","v":"Otras cuentas por cobrar deterioradas de valor"},{"$f":"'800111 - Nota. Cuentas x cobrar'!$D$46","v":"co-svsp-core:CxC_Cuentas_comerciales_por_cobrar_deterioradas_de_valor_OCxC"}]
["/*",null,{"$f":"'800111 - Nota. Cuentas x cobrar'!$E$47","v":"Deterioro (menor valor)"},{"$f":"'800111 - Nota. Cuentas x cobrar'!$D$47","v":"co-svsp-core:CxC_Deterioro_menor_valor_OCxC"}]
["",null,{"$f":"'800111 - Nota. Cuentas x cobrar'!$E$48","v":"Total otras cuentas por cobrar"},{"$f":"'800111 - Nota. Cuentas x cobrar'!$D$48","v":"co-svsp-core:CxC_Total_cuentas_comerciales_por_cobrar_OCxC"},0,"peso",{"$f":"'800111 - Nota. Cuentas x cobrar'!$M$48","v":0},0,"http://www.xbrl.org/scheme/companyName",null,{"$f":"Periodos!$D$4","v":"2022-12-31"},{"$f":"'800111 - Nota. Cuentas x cobrar'!$E$35","v":"co-svsp-core:CuentasPorCobrar_Eje"},{"$f":"'800111 - Nota. Cuentas x cobrar'!$M$34","v":"co-svsp-core:CxC_Vencidas_181_a_360_dias_Miembro"}]
["",null,{"$f":"'800111 - Nota. Cuentas x cobrar'!$E$49","v":"Total cuentas por cobrar y otras cuentas por cobrar"},{"$f":"'800111 - Nota. Cuentas x cobrar'!$D$49","v":"co-svsp-core:CxC_Total_cuentas_por_cobrar_y_otras_cuentas_por_cobrar"},0,"peso",{"$f":"'800111 - Nota. Cuentas x cobrar'!$M$49","v":0},0,"http://www.xbrl.org/scheme/companyName",null,{"$f":"Periodos!$D$4","v":"2022-12-31"},{"$f":"'800111 - Nota. Cuentas x cobrar'!$E$35","v":"co-svsp-core:CuentasPorCobrar_Eje"},{"$f":"'800111 - Nota. Cuentas x cobrar'!$M$34","v":"co-svsp-core:CxC_Vencidas_181_a_360_dias_Miembro"}]
["/*",null,"--09--"]
["/*",null,{"$f":"'800111 - Nota. Cuentas x cobrar'!$E$36","v":"Cuentas comerciales por cobrar y otras cuentas por cobrar"},{"$f":"'800111 - Nota. Cuentas x cobrar'!$D$36","v":"co-svsp-core:CxC_Cuentas_comerciales_por_cobrar_y_otras_cuentas_por_cobrar"}]
["/*",null,{"$f":"'800111 - Nota. Cuentas x cobrar'!$E$37","v":"Cuentas comerciales por cobrar"},{"$f":"'800111 - Nota. Cuentas x cobrar'!$D$37","v":"co-svsp-core:CxC_Cuentas_comerciales_por_cobrar"}]
["/*",null,{"$f":"'800111 - Nota. Cuentas x cobrar'!$E$38","v":"Cuentas comerciales por cobrar que no están en mora ni deterioradas de valor"},{"$f":"'800111 - Nota. Cuentas x cobrar'!$D$38","v":"co-svsp-core:CxC_Cuentas_comerciales_por_cobrar_no_están_en_mora_ni_deterioradas_de_valor"}]
[{"$f":"IF(G416=\"\",\"/*\",\"\")","v":"/*"},null,{"$f":"'800111 - Nota. Cuentas x cobrar'!$E$39","v":"Cuentas comerciales por cobrar en mora pero no deterioradas de valor"},{"$f":"'800111 - Nota. Cuentas x cobrar'!$D$39","v":"co-svsp-core:CxC_Cuentas_comerciales_por_cobrar_en_mora_pero_no_deterioradas_de_valor"}]
["/*",null,{"$f":"'800111 - Nota. Cuentas x cobrar'!$E$40","v":"Cuentas comerciales por cobrar deterioradas de valor"},{"$f":"'800111 - Nota. Cuentas x cobrar'!$D$40","v":"co-svsp-core:CxC_Cuentas_comerciales_por_cobrar_deterioradas_de_valor"}]
["/*",null,{"$f":"'800111 - Nota. Cuentas x cobrar'!$E$41","v":"Deterioro (menor valor)"},{"$f":"'800111 - Nota. Cuentas x cobrar'!$D$41","v":"co-svsp-core:CxC_Deterioro_menor_valor"}]
["",null,{"$f":"'800111 - Nota. Cuentas x cobrar'!$E$42","v":"Total cuentas comerciales por cobrar"},{"$f":"'800111 - Nota. Cuentas x cobrar'!$D$42","v":"co-svsp-core:CxC_Total_cuentas_comerciales_por_cobrar"},0,"peso",{"$f":"'800111 - Nota. Cuentas x cobrar'!$N$42","v":0},0,"http://www.xbrl.org/scheme/companyName",null,{"$f":"Periodos!$D$4","v":"2022-12-31"},{"$f":"'800111 - Nota. Cuentas x cobrar'!$E$35","v":"co-svsp-core:CuentasPorCobrar_Eje"},{"$f":"'800111 - Nota. Cuentas x cobrar'!$N$34","v":"co-svsp-core:CxC_Vencidas_mas_de_360_dias_Miembro"}]
["/*",null,{"$f":"'800111 - Nota. Cuentas x cobrar'!$E$43","v":"Otras cuentas por cobrar"},{"$f":"'800111 - Nota. Cuentas x cobrar'!$D$43","v":"co-svsp-core:CxC_Otras_cuentas_por_cobrar"}]
["/*",null,{"$f":"'800111 - Nota. Cuentas x cobrar'!$E$44","v":"Otras cuentas por cobrar que no están en mora ni deterioradas de valor"},{"$f":"'800111 - Nota. Cuentas x cobrar'!$D$44","v":"co-svsp-core:CxC_Cuentas_comerciales_por_cobrar_no_están_en_mora_ni_deterioradas_de_valor_OCxC"}]
["/*",null,{"$f":"'800111 - Nota. Cuentas x cobrar'!$E$45","v":"Otras cuentas por cobrar en mora pero no deterioradas de valor"},{"$f":"'800111 - Nota. Cuentas x cobrar'!$D$45","v":"co-svsp-core:CxC_Cuentas_comerciales_por_cobrar_en_mora_pero_no_deterioradas_de_valor_OCxC"}]
["/*",null,{"$f":"'800111 - Nota. Cuentas x cobrar'!$E$46","v":"Otras cuentas por cobrar deterioradas de valor"},{"$f":"'800111 - Nota. Cuentas x cobrar'!$D$46","v":"co-svsp-core:CxC_Cuentas_comerciales_por_cobrar_deterioradas_de_valor_OCxC"}]
["/*",null,{"$f":"'800111 - Nota. Cuentas x cobrar'!$E$47","v":"Deterioro (menor valor)"},{"$f":"'800111 - Nota. Cuentas x cobrar'!$D$47","v":"co-svsp-core:CxC_Deterioro_menor_valor_OCxC"}]
["",null,{"$f":"'800111 - Nota. Cuentas x cobrar'!$E$48","v":"Total otras cuentas por cobrar"},{"$f":"'800111 - Nota. Cuentas x cobrar'!$D$48","v":"co-svsp-core:CxC_Total_cuentas_comerciales_por_cobrar_OCxC"},0,"peso",{"$f":"'800111 - Nota. Cuentas x cobrar'!$N$48","v":0},0,"http://www.xbrl.org/scheme/companyName",null,{"$f":"Periodos!$D$4","v":"2022-12-31"},{"$f":"'800111 - Nota. Cuentas x cobrar'!$E$35","v":"co-svsp-core:CuentasPorCobrar_Eje"},{"$f":"'800111 - Nota. Cuentas x cobrar'!$N$34","v":"co-svsp-core:CxC_Vencidas_mas_de_360_dias_Miembro"}]
["",null,{"$f":"'800111 - Nota. Cuentas x cobrar'!$E$49","v":"Total cuentas por cobrar y otras cuentas por cobrar"},{"$f":"'800111 - Nota. Cuentas x cobrar'!$D$49","v":"co-svsp-core:CxC_Total_cuentas_por_cobrar_y_otras_cuentas_por_cobrar"},0,"peso",{"$f":"'800111 - Nota. Cuentas x cobrar'!$N$49","v":0},0,"http://www.xbrl.org/scheme/companyName",null,{"$f":"Periodos!$D$4","v":"2022-12-31"},{"$f":"'800111 - Nota. Cuentas x cobrar'!$E$35","v":"co-svsp-core:CuentasPorCobrar_Eje"},{"$f":"'800111 - Nota. Cuentas x cobrar'!$N$34","v":"co-svsp-core:CxC_Vencidas_mas_de_360_dias_Miembro"}]
["/*",null,"--10--"]
["/*",null,{"$f":"'800111 - Nota. Cuentas x cobrar'!$E$36","v":"Cuentas comerciales por cobrar y otras cuentas por cobrar"},{"$f":"'800111 - Nota. Cuentas x cobrar'!$D$36","v":"co-svsp-core:CxC_Cuentas_comerciales_por_cobrar_y_otras_cuentas_por_cobrar"}]
["/*",null,{"$f":"'800111 - Nota. Cuentas x cobrar'!$E$37","v":"Cuentas comerciales por cobrar"},{"$f":"'800111 - Nota. Cuentas x cobrar'!$D$37","v":"co-svsp-core:CxC_Cuentas_comerciales_por_cobrar"}]
["",null,{"$f":"'800111 - Nota. Cuentas x cobrar'!$E$38","v":"Cuentas comerciales por cobrar que no están en mora ni deterioradas de valor"},{"$f":"'800111 - Nota. Cuentas x cobrar'!$D$38","v":"co-svsp-core:CxC_Cuentas_comerciales_por_cobrar_no_están_en_mora_ni_deterioradas_de_valor"},0,"peso",{"$f":"'800111 - Nota. Cuentas x cobrar'!$O$38","v":0},0,"http://www.xbrl.org/scheme/companyName",null,{"$f":"Periodos!$D$4","v":"2022-12-31"},{"$f":"'800111 - Nota. Cuentas x cobrar'!$E$35","v":"co-svsp-core:CuentasPorCobrar_Eje"},{"$f":"'800111 - Nota. Cuentas x cobrar'!$O$34","v":"co-svsp-core:CxC_Total_Vencidas_Miembro"}]
["",null,{"$f":"'800111 - Nota. Cuentas x cobrar'!$E$39","v":"Cuentas comerciales por cobrar en mora pero no deterioradas de valor"},{"$f":"'800111 - Nota. Cuentas x cobrar'!$D$39","v":"co-svsp-core:CxC_Cuentas_comerciales_por_cobrar_en_mora_pero_no_deterioradas_de_valor"},0,"peso",{"$f":"'800111 - Nota. Cuentas x cobrar'!$O$39","v":0},0,"http://www.xbrl.org/scheme/companyName",null,{"$f":"Periodos!$D$4","v":"2022-12-31"},{"$f":"'800111 - Nota. Cuentas x cobrar'!$E$35","v":"co-svsp-core:CuentasPorCobrar_Eje"},{"$f":"'800111 - Nota. Cuentas x cobrar'!$O$34","v":"co-svsp-core:CxC_Total_Vencidas_Miembro"}]
["",null,{"$f":"'800111 - Nota. Cuentas x cobrar'!$E$40","v":"Cuentas comerciales por cobrar deterioradas de valor"},{"$f":"'800111 - Nota. Cuentas x cobrar'!$D$40","v":"co-svsp-core:CxC_Cuentas_comerciales_por_cobrar_deterioradas_de_valor"},0,"peso",{"$f":"'800111 - Nota. Cuentas x cobrar'!$O$40","v":0},0,"http://www.xbrl.org/scheme/companyName",null,{"$f":"Periodos!$D$4","v":"2022-12-31"},{"$f":"'800111 - Nota. Cuentas x cobrar'!$E$35","v":"co-svsp-core:CuentasPorCobrar_Eje"},{"$f":"'800111 - Nota. Cuentas x cobrar'!$O$34","v":"co-svsp-core:CxC_Total_Vencidas_Miembro"}]
["",null,{"$f":"'800111 - Nota. Cuentas x cobrar'!$E$41","v":"Deterioro (menor valor)"},{"$f":"'800111 - Nota. Cuentas x cobrar'!$D$41","v":"co-svsp-core:CxC_Deterioro_menor_valor"},0,"peso",{"$f":"'800111 - Nota. Cuentas x cobrar'!$O$41","v":0},0,"http://www.xbrl.org/scheme/companyName",null,{"$f":"Periodos!$D$4","v":"2022-12-31"},{"$f":"'800111 - Nota. Cuentas x cobrar'!$E$35","v":"co-svsp-core:CuentasPorCobrar_Eje"},{"$f":"'800111 - Nota. Cuentas x cobrar'!$O$34","v":"co-svsp-core:CxC_Total_Vencidas_Miembro"}]
["",null,{"$f":"'800111 - Nota. Cuentas x cobrar'!$E$42","v":"Total cuentas comerciales por cobrar"},{"$f":"'800111 - Nota. Cuentas x cobrar'!$D$42","v":"co-svsp-core:CxC_Total_cuentas_comerciales_por_cobrar"},0,"peso",{"$f":"'800111 - Nota. Cuentas x cobrar'!$O$42","v":0},0,"http://www.xbrl.org/scheme/companyName",null,{"$f":"Periodos!$D$4","v":"2022-12-31"},{"$f":"'800111 - Nota. Cuentas x cobrar'!$E$35","v":"co-svsp-core:CuentasPorCobrar_Eje"},{"$f":"'800111 - Nota. Cuentas x cobrar'!$O$34","v":"co-svsp-core:CxC_Total_Vencidas_Miembro"}]
["/*",null,{"$f":"'800111 - Nota. Cuentas x cobrar'!$E$43","v":"Otras cuentas por cobrar"},{"$f":"'800111 - Nota. Cuentas x cobrar'!$D$43","v":"co-svsp-core:CxC_Otras_cuentas_por_cobrar"}]
["",null,{"$f":"'800111 - Nota. Cuentas x cobrar'!$E$44","v":"Otras cuentas por cobrar que no están en mora ni deterioradas de valor"},{"$f":"'800111 - Nota. Cuentas x cobrar'!$D$44","v":"co-svsp-core:CxC_Cuentas_comerciales_por_cobrar_no_están_en_mora_ni_deterioradas_de_valor_OCxC"},0,"peso",{"$f":"'800111 - Nota. Cuentas x cobrar'!$O$44","v":0},0,"http://www.xbrl.org/scheme/companyName",null,{"$f":"Periodos!$D$4","v":"2022-12-31"},{"$f":"'800111 - Nota. Cuentas x cobrar'!$E$35","v":"co-svsp-core:CuentasPorCobrar_Eje"},{"$f":"'800111 - Nota. Cuentas x cobrar'!$O$34","v":"co-svsp-core:CxC_Total_Vencidas_Miembro"}]
["",null,{"$f":"'800111 - Nota. Cuentas x cobrar'!$E$45","v":"Otras cuentas por cobrar en mora pero no deterioradas de valor"},{"$f":"'800111 - Nota. Cuentas x cobrar'!$D$45","v":"co-svsp-core:CxC_Cuentas_comerciales_por_cobrar_en_mora_pero_no_deterioradas_de_valor_OCxC"},0,"peso",{"$f":"'800111 - Nota. Cuentas x cobrar'!$O$45","v":0},0,"http://www.xbrl.org/scheme/companyName",null,{"$f":"Periodos!$D$4","v":"2022-12-31"},{"$f":"'800111 - Nota. Cuentas x cobrar'!$E$35","v":"co-svsp-core:CuentasPorCobrar_Eje"},{"$f":"'800111 - Nota. Cuentas x cobrar'!$O$34","v":"co-svsp-core:CxC_Total_Vencidas_Miembro"}]
["",null,{"$f":"'800111 - Nota. Cuentas x cobrar'!$E$46","v":"Otras cuentas por cobrar deterioradas de valor"},{"$f":"'800111 - Nota. Cuentas x cobrar'!$D$46","v":"co-svsp-core:CxC_Cuentas_comerciales_por_cobrar_deterioradas_de_valor_OCxC"},0,"peso",{"$f":"'800111 - Nota. Cuentas x cobrar'!$O$46","v":0},0,"http://www.xbrl.org/scheme/companyName",null,{"$f":"Periodos!$D$4","v":"2022-12-31"},{"$f":"'800111 - Nota. Cuentas x cobrar'!$E$35","v":"co-svsp-core:CuentasPorCobrar_Eje"},{"$f":"'800111 - Nota. Cuentas x cobrar'!$O$34","v":"co-svsp-core:CxC_Total_Vencidas_Miembro"}]
["",null,{"$f":"'800111 - Nota. Cuentas x cobrar'!$E$47","v":"Deterioro (menor valor)"},{"$f":"'800111 - Nota. Cuentas x cobrar'!$D$47","v":"co-svsp-core:CxC_Deterioro_menor_valor_OCxC"},0,"peso",{"$f":"'800111 - Nota. Cuentas x cobrar'!$O$47","v":0},0,"http://www.xbrl.org/scheme/companyName",null,{"$f":"Periodos!$D$4","v":"2022-12-31"},{"$f":"'800111 - Nota. Cuentas x cobrar'!$E$35","v":"co-svsp-core:CuentasPorCobrar_Eje"},{"$f":"'800111 - Nota. Cuentas x cobrar'!$O$34","v":"co-svsp-core:CxC_Total_Vencidas_Miembro"}]
["",null,{"$f":"'800111 - Nota. Cuentas x cobrar'!$E$48","v":"Total otras cuentas por cobrar"},{"$f":"'800111 - Nota. Cuentas x cobrar'!$D$48","v":"co-svsp-core:CxC_Total_cuentas_comerciales_por_cobrar_OCxC"},0,"peso",{"$f":"'800111 - Nota. Cuentas x cobrar'!$O$48","v":0},0,"http://www.xbrl.org/scheme/companyName",null,{"$f":"Periodos!$D$4","v":"2022-12-31"},{"$f":"'800111 - Nota. Cuentas x cobrar'!$E$35","v":"co-svsp-core:CuentasPorCobrar_Eje"},{"$f":"'800111 - Nota. Cuentas x cobrar'!$O$34","v":"co-svsp-core:CxC_Total_Vencidas_Miembro"}]
["",null,{"$f":"'800111 - Nota. Cuentas x cobrar'!$E$49","v":"Total cuentas por cobrar y otras cuentas por cobrar"},{"$f":"'800111 - Nota. Cuentas x cobrar'!$D$49","v":"co-svsp-core:CxC_Total_cuentas_por_cobrar_y_otras_cuentas_por_cobrar"},0,"peso",{"$f":"'800111 - Nota. Cuentas x cobrar'!$O$49","v":0},0,"http://www.xbrl.org/scheme/companyName",null,{"$f":"Periodos!$D$4","v":"2022-12-31"},{"$f":"'800111 - Nota. Cuentas x cobrar'!$E$35","v":"co-svsp-core:CuentasPorCobrar_Eje"},{"$f":"'800111 - Nota. Cuentas x cobrar'!$O$34","v":"co-svsp-core:CxC_Total_Vencidas_Miembro"}]
["/*"]
["/*",null,"800111A GeneraXBRL"]
["/*",null,"--01--"]
["/*",null,{"$f":"'800111A GeneraXBRL'!$D$11","v":"Tipo de documento del deudor"},{"$f":"'800111A GeneraXBRL'!$C$11","v":"co-svsp-core:TipoDeDocumentoDeudorCxC"}]
["/*",null,{"$f":"'800111A GeneraXBRL'!$D$12","v":"Número de identificación del deudor"},{"$f":"'800111A GeneraXBRL'!$C$12","v":"co-svsp-core:NumeroIdentificacionDeudorCxC"}]
["/*",null,{"$f":"'800111A GeneraXBRL'!$D$13","v":"Primer apellido deudor"},{"$f":"'800111A GeneraXBRL'!$C$13","v":"co-svsp-core:PrimerApellidoDeudorCxC"}]
["/*",null,{"$f":"'800111A GeneraXBRL'!$D$14","v":"Segundo apellido deudor"},{"$f":"'800111A GeneraXBRL'!$C$14","v":"co-svsp-core:SegundoApellidoDeudorCxC"}]
["/*",null,{"$f":"'800111A GeneraXBRL'!$D$15","v":"Primer nombre deudor"},{"$f":"'800111A GeneraXBRL'!$C$15","v":"co-svsp-core:PrimerNombreDeudorCxC"}]
["/*",null,{"$f":"'800111A GeneraXBRL'!$D$16","v":"Otros nombres deudor"},{"$f":"'800111A GeneraXBRL'!$C$16","v":"co-svsp-core:OtrosNombresDeudorCxC"}]
["/*",null,{"$f":"'800111A GeneraXBRL'!$D$17","v":"Razón Social deudor"},{"$f":"'800111A GeneraXBRL'!$C$17","v":"co-svsp-core:RazonSocialDeudorCxC"}]
["/*",null,{"$f":"'800111A GeneraXBRL'!$D$18","v":"Dirección deudor"},{"$f":"'800111A GeneraXBRL'!$C$18","v":"co-svsp-core:DireccionDeudorCxC"}]
["/*",null,{"$f":"'800111A GeneraXBRL'!$D$19","v":"Departamento deudor"},{"$f":"'800111A GeneraXBRL'!$C$19","v":"co-svsp-core:DepartamentoDeudorCxC"}]
["/*",null,{"$f":"'800111A GeneraXBRL'!$D$20","v":"Municipio deudor"},{"$f":"'800111A GeneraXBRL'!$C$20","v":"co-svsp-core:MunicipioDeudorCxC"}]
["/*",null,{"$f":"'800111A GeneraXBRL'!$D$21","v":"País deudor"},{"$f":"'800111A GeneraXBRL'!$C$21","v":"co-svsp-core:PaisDeudorCxC"}]
["/*",null,{"$f":"'800111A GeneraXBRL'!$D$22","v":"Saldo cuentas por cobrar"},{"$f":"'800111A GeneraXBRL'!$C$22","v":"co-svsp-core:SaldoCuentasPorCobrarCxC"}]
["/*",null,"--02--"]
["/*",null,{"$f":"'800111A GeneraXBRL'!$D$11","v":"Tipo de documento del deudor"},{"$f":"'800111A GeneraXBRL'!$C$11","v":"co-svsp-core:TipoDeDocumentoDeudorCxC"}]
["/*",null,{"$f":"'800111A GeneraXBRL'!$D$12","v":"Número de identificación del deudor"},{"$f":"'800111A GeneraXBRL'!$C$12","v":"co-svsp-core:NumeroIdentificacionDeudorCxC"}]
["/*",null,{"$f":"'800111A GeneraXBRL'!$D$13","v":"Primer apellido deudor"},{"$f":"'800111A GeneraXBRL'!$C$13","v":"co-svsp-core:PrimerApellidoDeudorCxC"}]
["/*",null,{"$f":"'800111A GeneraXBRL'!$D$14","v":"Segundo apellido deudor"},{"$f":"'800111A GeneraXBRL'!$C$14","v":"co-svsp-core:SegundoApellidoDeudorCxC"}]
["/*",null,{"$f":"'800111A GeneraXBRL'!$D$15","v":"Primer nombre deudor"},{"$f":"'800111A GeneraXBRL'!$C$15","v":"co-svsp-core:PrimerNombreDeudorCxC"}]
["/*",null,{"$f":"'800111A GeneraXBRL'!$D$16","v":"Otros nombres deudor"},{"$f":"'800111A GeneraXBRL'!$C$16","v":"co-svsp-core:OtrosNombresDeudorCxC"}]
["/*",null,{"$f":"'800111A GeneraXBRL'!$D$17","v":"Razón Social deudor"},{"$f":"'800111A GeneraXBRL'!$C$17","v":"co-svsp-core:RazonSocialDeudorCxC"}]
["/*",null,{"$f":"'800111A GeneraXBRL'!$D$18","v":"Dirección deudor"},{"$f":"'800111A GeneraXBRL'!$C$18","v":"co-svsp-core:DireccionDeudorCxC"}]
["/*",null,{"$f":"'800111A GeneraXBRL'!$D$19","v":"Departamento deudor"},{"$f":"'800111A GeneraXBRL'!$C$19","v":"co-svsp-core:DepartamentoDeudorCxC"}]
["/*",null,{"$f":"'800111A GeneraXBRL'!$D$20","v":"Municipio deudor"},{"$f":"'800111A GeneraXBRL'!$C$20","v":"co-svsp-core:MunicipioDeudorCxC"}]
["/*",null,{"$f":"'800111A GeneraXBRL'!$D$21","v":"País deudor"},{"$f":"'800111A GeneraXBRL'!$C$21","v":"co-svsp-core:PaisDeudorCxC"}]
["/*",null,{"$f":"'800111A GeneraXBRL'!$D$22","v":"Saldo cuentas por cobrar"},{"$f":"'800111A GeneraXBRL'!$C$22","v":"co-svsp-core:SaldoCuentasPorCobrarCxC"}]
["/*",null,"--03--"]
["/*",null,{"$f":"'800111A GeneraXBRL'!$D$11","v":"Tipo de documento del deudor"},{"$f":"'800111A GeneraXBRL'!$C$11","v":"co-svsp-core:TipoDeDocumentoDeudorCxC"}]
["/*",null,{"$f":"'800111A GeneraXBRL'!$D$12","v":"Número de identificación del deudor"},{"$f":"'800111A GeneraXBRL'!$C$12","v":"co-svsp-core:NumeroIdentificacionDeudorCxC"}]
["/*",null,{"$f":"'800111A GeneraXBRL'!$D$13","v":"Primer apellido deudor"},{"$f":"'800111A GeneraXBRL'!$C$13","v":"co-svsp-core:PrimerApellidoDeudorCxC"}]
["/*",null,{"$f":"'800111A GeneraXBRL'!$D$14","v":"Segundo apellido deudor"},{"$f":"'800111A GeneraXBRL'!$C$14","v":"co-svsp-core:SegundoApellidoDeudorCxC"}]
["/*",null,{"$f":"'800111A GeneraXBRL'!$D$15","v":"Primer nombre deudor"},{"$f":"'800111A GeneraXBRL'!$C$15","v":"co-svsp-core:PrimerNombreDeudorCxC"}]
["/*",null,{"$f":"'800111A GeneraXBRL'!$D$16","v":"Otros nombres deudor"},{"$f":"'800111A GeneraXBRL'!$C$16","v":"co-svsp-core:OtrosNombresDeudorCxC"}]
["/*",null,{"$f":"'800111A GeneraXBRL'!$D$17","v":"Razón Social deudor"},{"$f":"'800111A GeneraXBRL'!$C$17","v":"co-svsp-core:RazonSocialDeudorCxC"}]
["/*",null,{"$f":"'800111A GeneraXBRL'!$D$18","v":"Dirección deudor"},{"$f":"'800111A GeneraXBRL'!$C$18","v":"co-svsp-core:DireccionDeudorCxC"}]
["/*",null,{"$f":"'800111A GeneraXBRL'!$D$19","v":"Departamento deudor"},{"$f":"'800111A GeneraXBRL'!$C$19","v":"co-svsp-core:DepartamentoDeudorCxC"}]
[{"$f":"IF(G480=\"\",\"/*\",\"\")","v":"/*"},null,{"$f":"'800111A GeneraXBRL'!$D$20","v":"Municipio deudor"},{"$f":"'800111A GeneraXBRL'!$C$20","v":"co-svsp-core:MunicipioDeudorCxC"}]
["/*",null,{"$f":"'800111A GeneraXBRL'!$D$21","v":"País deudor"},{"$f":"'800111A GeneraXBRL'!$C$21","v":"co-svsp-core:PaisDeudorCxC"}]
["/*",null,{"$f":"'800111A GeneraXBRL'!$D$22","v":"Saldo cuentas por cobrar"},{"$f":"'800111A GeneraXBRL'!$C$22","v":"co-svsp-core:SaldoCuentasPorCobrarCxC"}]
["/*",null,"--04--"]
["/*",null,{"$f":"'800111A GeneraXBRL'!$D$11","v":"Tipo de documento del deudor"},{"$f":"'800111A GeneraXBRL'!$C$11","v":"co-svsp-core:TipoDeDocumentoDeudorCxC"}]
["/*",null,{"$f":"'800111A GeneraXBRL'!$D$12","v":"Número de identificación del deudor"},{"$f":"'800111A GeneraXBRL'!$C$12","v":"co-svsp-core:NumeroIdentificacionDeudorCxC"}]
["/*",null,{"$f":"'800111A GeneraXBRL'!$D$13","v":"Primer apellido deudor"},{"$f":"'800111A GeneraXBRL'!$C$13","v":"co-svsp-core:PrimerApellidoDeudorCxC"}]
["/*",null,{"$f":"'800111A GeneraXBRL'!$D$14","v":"Segundo apellido deudor"},{"$f":"'800111A GeneraXBRL'!$C$14","v":"co-svsp-core:SegundoApellidoDeudorCxC"}]
["/*",null,{"$f":"'800111A GeneraXBRL'!$D$15","v":"Primer nombre deudor"},{"$f":"'800111A GeneraXBRL'!$C$15","v":"co-svsp-core:PrimerNombreDeudorCxC"}]
["/*",null,{"$f":"'800111A GeneraXBRL'!$D$16","v":"Otros nombres deudor"},{"$f":"'800111A GeneraXBRL'!$C$16","v":"co-svsp-core:OtrosNombresDeudorCxC"}]
["/*",null,{"$f":"'800111A GeneraXBRL'!$D$17","v":"Razón Social deudor"},{"$f":"'800111A GeneraXBRL'!$C$17","v":"co-svsp-core:RazonSocialDeudorCxC"}]
["/*",null,{"$f":"'800111A GeneraXBRL'!$D$18","v":"Dirección deudor"},{"$f":"'800111A GeneraXBRL'!$C$18","v":"co-svsp-core:DireccionDeudorCxC"}]
["/*",null,{"$f":"'800111A GeneraXBRL'!$D$19","v":"Departamento deudor"},{"$f":"'800111A GeneraXBRL'!$C$19","v":"co-svsp-core:DepartamentoDeudorCxC"}]
["/*",null,{"$f":"'800111A GeneraXBRL'!$D$20","v":"Municipio deudor"},{"$f":"'800111A GeneraXBRL'!$C$20","v":"co-svsp-core:MunicipioDeudorCxC"}]
["/*",null,{"$f":"'800111A GeneraXBRL'!$D$21","v":"País deudor"},{"$f":"'800111A GeneraXBRL'!$C$21","v":"co-svsp-core:PaisDeudorCxC"}]
["/*",null,{"$f":"'800111A GeneraXBRL'!$D$22","v":"Saldo cuentas por cobrar"},{"$f":"'800111A GeneraXBRL'!$C$22","v":"co-svsp-core:SaldoCuentasPorCobrarCxC"}]
["/*",null,"--05--"]
["/*",null,{"$f":"'800111A GeneraXBRL'!$D$11","v":"Tipo de documento del deudor"},{"$f":"'800111A GeneraXBRL'!$C$11","v":"co-svsp-core:TipoDeDocumentoDeudorCxC"}]
["/*",null,{"$f":"'800111A GeneraXBRL'!$D$12","v":"Número de identificación del deudor"},{"$f":"'800111A GeneraXBRL'!$C$12","v":"co-svsp-core:NumeroIdentificacionDeudorCxC"}]
["/*",null,{"$f":"'800111A GeneraXBRL'!$D$13","v":"Primer apellido deudor"},{"$f":"'800111A GeneraXBRL'!$C$13","v":"co-svsp-core:PrimerApellidoDeudorCxC"}]
["/*",null,{"$f":"'800111A GeneraXBRL'!$D$14","v":"Segundo apellido deudor"},{"$f":"'800111A GeneraXBRL'!$C$14","v":"co-svsp-core:SegundoApellidoDeudorCxC"}]
["/*",null,{"$f":"'800111A GeneraXBRL'!$D$15","v":"Primer nombre deudor"},{"$f":"'800111A GeneraXBRL'!$C$15","v":"co-svsp-core:PrimerNombreDeudorCxC"}]
["/*",null,{"$f":"'800111A GeneraXBRL'!$D$16","v":"Otros nombres deudor"},{"$f":"'800111A GeneraXBRL'!$C$16","v":"co-svsp-core:OtrosNombresDeudorCxC"}]
["/*",null,{"$f":"'800111A GeneraXBRL'!$D$17","v":"Razón Social deudor"},{"$f":"'800111A GeneraXBRL'!$C$17","v":"co-svsp-core:RazonSocialDeudorCxC"}]
["/*",null,{"$f":"'800111A GeneraXBRL'!$D$18","v":"Dirección deudor"},{"$f":"'800111A GeneraXBRL'!$C$18","v":"co-svsp-core:DireccionDeudorCxC"}]
["/*",null,{"$f":"'800111A GeneraXBRL'!$D$19","v":"Departamento deudor"},{"$f":"'800111A GeneraXBRL'!$C$19","v":"co-svsp-core:DepartamentoDeudorCxC"}]
["/*",null,{"$f":"'800111A GeneraXBRL'!$D$20","v":"Municipio deudor"},{"$f":"'800111A GeneraXBRL'!$C$20","v":"co-svsp-core:MunicipioDeudorCxC"}]
["/*",null,{"$f":"'800111A GeneraXBRL'!$D$21","v":"País deudor"},{"$f":"'800111A GeneraXBRL'!$C$21","v":"co-svsp-core:PaisDeudorCxC"}]
["/*",null,{"$f":"'800111A GeneraXBRL'!$D$22","v":"Saldo cuentas por cobrar"},{"$f":"'800111A GeneraXBRL'!$C$22","v":"co-svsp-core:SaldoCuentasPorCobrarCxC"}]
["/*",null,"--06--"]
["/*",null,{"$f":"'800111A GeneraXBRL'!$D$11","v":"Tipo de documento del deudor"},{"$f":"'800111A GeneraXBRL'!$C$11","v":"co-svsp-core:TipoDeDocumentoDeudorCxC"}]
["/*",null,{"$f":"'800111A GeneraXBRL'!$D$12","v":"Número de identificación del deudor"},{"$f":"'800111A GeneraXBRL'!$C$12","v":"co-svsp-core:NumeroIdentificacionDeudorCxC"}]
["/*",null,{"$f":"'800111A GeneraXBRL'!$D$13","v":"Primer apellido deudor"},{"$f":"'800111A GeneraXBRL'!$C$13","v":"co-svsp-core:PrimerApellidoDeudorCxC"}]
["/*",null,{"$f":"'800111A GeneraXBRL'!$D$14","v":"Segundo apellido deudor"},{"$f":"'800111A GeneraXBRL'!$C$14","v":"co-svsp-core:SegundoApellidoDeudorCxC"}]
["/*",null,{"$f":"'800111A GeneraXBRL'!$D$15","v":"Primer nombre deudor"},{"$f":"'800111A GeneraXBRL'!$C$15","v":"co-svsp-core:PrimerNombreDeudorCxC"}]
["/*",null,{"$f":"'800111A GeneraXBRL'!$D$16","v":"Otros nombres deudor"},{"$f":"'800111A GeneraXBRL'!$C$16","v":"co-svsp-core:OtrosNombresDeudorCxC"}]
["/*",null,{"$f":"'800111A GeneraXBRL'!$D$17","v":"Razón Social deudor"},{"$f":"'800111A GeneraXBRL'!$C$17","v":"co-svsp-core:RazonSocialDeudorCxC"}]
["/*",null,{"$f":"'800111A GeneraXBRL'!$D$18","v":"Dirección deudor"},{"$f":"'800111A GeneraXBRL'!$C$18","v":"co-svsp-core:DireccionDeudorCxC"}]
["/*",null,{"$f":"'800111A GeneraXBRL'!$D$19","v":"Departamento deudor"},{"$f":"'800111A GeneraXBRL'!$C$19","v":"co-svsp-core:DepartamentoDeudorCxC"}]
["/*",null,{"$f":"'800111A GeneraXBRL'!$D$20","v":"Municipio deudor"},{"$f":"'800111A GeneraXBRL'!$C$20","v":"co-svsp-core:MunicipioDeudorCxC"}]
["/*",null,{"$f":"'800111A GeneraXBRL'!$D$21","v":"País deudor"},{"$f":"'800111A GeneraXBRL'!$C$21","v":"co-svsp-core:PaisDeudorCxC"}]
["/*",null,{"$f":"'800111A GeneraXBRL'!$D$22","v":"Saldo cuentas por cobrar"},{"$f":"'800111A GeneraXBRL'!$C$22","v":"co-svsp-core:SaldoCuentasPorCobrarCxC"}]
["/*",null,"--07--"]
["/*",null,{"$f":"'800111A GeneraXBRL'!$D$11","v":"Tipo de documento del deudor"},{"$f":"'800111A GeneraXBRL'!$C$11","v":"co-svsp-core:TipoDeDocumentoDeudorCxC"}]
["/*",null,{"$f":"'800111A GeneraXBRL'!$D$12","v":"Número de identificación del deudor"},{"$f":"'800111A GeneraXBRL'!$C$12","v":"co-svsp-core:NumeroIdentificacionDeudorCxC"}]
["/*",null,{"$f":"'800111A GeneraXBRL'!$D$13","v":"Primer apellido deudor"},{"$f":"'800111A GeneraXBRL'!$C$13","v":"co-svsp-core:PrimerApellidoDeudorCxC"}]
["/*",null,{"$f":"'800111A GeneraXBRL'!$D$14","v":"Segundo apellido deudor"},{"$f":"'800111A GeneraXBRL'!$C$14","v":"co-svsp-core:SegundoApellidoDeudorCxC"}]
["/*",null,{"$f":"'800111A GeneraXBRL'!$D$15","v":"Primer nombre deudor"},{"$f":"'800111A GeneraXBRL'!$C$15","v":"co-svsp-core:PrimerNombreDeudorCxC"}]
["/*",null,{"$f":"'800111A GeneraXBRL'!$D$16","v":"Otros nombres deudor"},{"$f":"'800111A GeneraXBRL'!$C$16","v":"co-svsp-core:OtrosNombresDeudorCxC"}]
["/*",null,{"$f":"'800111A GeneraXBRL'!$D$17","v":"Razón Social deudor"},{"$f":"'800111A GeneraXBRL'!$C$17","v":"co-svsp-core:RazonSocialDeudorCxC"}]
["/*",null,{"$f":"'800111A GeneraXBRL'!$D$18","v":"Dirección deudor"},{"$f":"'800111A GeneraXBRL'!$C$18","v":"co-svsp-core:DireccionDeudorCxC"}]
["/*",null,{"$f":"'800111A GeneraXBRL'!$D$19","v":"Departamento deudor"},{"$f":"'800111A GeneraXBRL'!$C$19","v":"co-svsp-core:DepartamentoDeudorCxC"}]
["/*",null,{"$f":"'800111A GeneraXBRL'!$D$20","v":"Municipio deudor"},{"$f":"'800111A GeneraXBRL'!$C$20","v":"co-svsp-core:MunicipioDeudorCxC"}]
["/*",null,{"$f":"'800111A GeneraXBRL'!$D$21","v":"País deudor"},{"$f":"'800111A GeneraXBRL'!$C$21","v":"co-svsp-core:PaisDeudorCxC"}]
["/*",null,{"$f":"'800111A GeneraXBRL'!$D$22","v":"Saldo cuentas por cobrar"},{"$f":"'800111A GeneraXBRL'!$C$22","v":"co-svsp-core:SaldoCuentasPorCobrarCxC"}]
["/*",null,"--08--"]
["/*",null,{"$f":"'800111A GeneraXBRL'!$D$11","v":"Tipo de documento del deudor"},{"$f":"'800111A GeneraXBRL'!$C$11","v":"co-svsp-core:TipoDeDocumentoDeudorCxC"}]
["/*",null,{"$f":"'800111A GeneraXBRL'!$D$12","v":"Número de identificación del deudor"},{"$f":"'800111A GeneraXBRL'!$C$12","v":"co-svsp-core:NumeroIdentificacionDeudorCxC"}]
["/*",null,{"$f":"'800111A GeneraXBRL'!$D$13","v":"Primer apellido deudor"},{"$f":"'800111A GeneraXBRL'!$C$13","v":"co-svsp-core:PrimerApellidoDeudorCxC"}]
["/*",null,{"$f":"'800111A GeneraXBRL'!$D$14","v":"Segundo apellido deudor"},{"$f":"'800111A GeneraXBRL'!$C$14","v":"co-svsp-core:SegundoApellidoDeudorCxC"}]
["/*",null,{"$f":"'800111A GeneraXBRL'!$D$15","v":"Primer nombre deudor"},{"$f":"'800111A GeneraXBRL'!$C$15","v":"co-svsp-core:PrimerNombreDeudorCxC"}]
["/*",null,{"$f":"'800111A GeneraXBRL'!$D$16","v":"Otros nombres deudor"},{"$f":"'800111A GeneraXBRL'!$C$16","v":"co-svsp-core:OtrosNombresDeudorCxC"}]
["/*",null,{"$f":"'800111A GeneraXBRL'!$D$17","v":"Razón Social deudor"},{"$f":"'800111A GeneraXBRL'!$C$17","v":"co-svsp-core:RazonSocialDeudorCxC"}]
["/*",null,{"$f":"'800111A GeneraXBRL'!$D$18","v":"Dirección deudor"},{"$f":"'800111A GeneraXBRL'!$C$18","v":"co-svsp-core:DireccionDeudorCxC"}]
[{"$f":"IF(G544=\"\",\"/*\",\"\")","v":"/*"},null,{"$f":"'800111A GeneraXBRL'!$D$19","v":"Departamento deudor"},{"$f":"'800111A GeneraXBRL'!$C$19","v":"co-svsp-core:DepartamentoDeudorCxC"}]
["/*",null,{"$f":"'800111A GeneraXBRL'!$D$20","v":"Municipio deudor"},{"$f":"'800111A GeneraXBRL'!$C$20","v":"co-svsp-core:MunicipioDeudorCxC"}]
["/*",null,{"$f":"'800111A GeneraXBRL'!$D$21","v":"País deudor"},{"$f":"'800111A GeneraXBRL'!$C$21","v":"co-svsp-core:PaisDeudorCxC"}]
["/*",null,{"$f":"'800111A GeneraXBRL'!$D$22","v":"Saldo cuentas por cobrar"},{"$f":"'800111A GeneraXBRL'!$C$22","v":"co-svsp-core:SaldoCuentasPorCobrarCxC"}]
["/*",null,"--09--"]
["/*",null,{"$f":"'800111A GeneraXBRL'!$D$11","v":"Tipo de documento del deudor"},{"$f":"'800111A GeneraXBRL'!$C$11","v":"co-svsp-core:TipoDeDocumentoDeudorCxC"}]
["/*",null,{"$f":"'800111A GeneraXBRL'!$D$12","v":"Número de identificación del deudor"},{"$f":"'800111A GeneraXBRL'!$C$12","v":"co-svsp-core:NumeroIdentificacionDeudorCxC"}]
["/*",null,{"$f":"'800111A GeneraXBRL'!$D$13","v":"Primer apellido deudor"},{"$f":"'800111A GeneraXBRL'!$C$13","v":"co-svsp-core:PrimerApellidoDeudorCxC"}]
["/*",null,{"$f":"'800111A GeneraXBRL'!$D$14","v":"Segundo apellido deudor"},{"$f":"'800111A GeneraXBRL'!$C$14","v":"co-svsp-core:SegundoApellidoDeudorCxC"}]
["/*",null,{"$f":"'800111A GeneraXBRL'!$D$15","v":"Primer nombre deudor"},{"$f":"'800111A GeneraXBRL'!$C$15","v":"co-svsp-core:PrimerNombreDeudorCxC"}]
["/*",null,{"$f":"'800111A GeneraXBRL'!$D$16","v":"Otros nombres deudor"},{"$f":"'800111A GeneraXBRL'!$C$16","v":"co-svsp-core:OtrosNombresDeudorCxC"}]
["/*",null,{"$f":"'800111A GeneraXBRL'!$D$17","v":"Razón Social deudor"},{"$f":"'800111A GeneraXBRL'!$C$17","v":"co-svsp-core:RazonSocialDeudorCxC"}]
["/*",null,{"$f":"'800111A GeneraXBRL'!$D$18","v":"Dirección deudor"},{"$f":"'800111A GeneraXBRL'!$C$18","v":"co-svsp-core:DireccionDeudorCxC"}]
["/*",null,{"$f":"'800111A GeneraXBRL'!$D$19","v":"Departamento deudor"},{"$f":"'800111A GeneraXBRL'!$C$19","v":"co-svsp-core:DepartamentoDeudorCxC"}]
["/*",null,{"$f":"'800111A GeneraXBRL'!$D$20","v":"Municipio deudor"},{"$f":"'800111A GeneraXBRL'!$C$20","v":"co-svsp-core:MunicipioDeudorCxC"}]
["/*",null,{"$f":"'800111A GeneraXBRL'!$D$21","v":"País deudor"},{"$f":"'800111A GeneraXBRL'!$C$21","v":"co-svsp-core:PaisDeudorCxC"}]
["/*",null,{"$f":"'800111A GeneraXBRL'!$D$22","v":"Saldo cuentas por cobrar"},{"$f":"'800111A GeneraXBRL'!$C$22","v":"co-svsp-core:SaldoCuentasPorCobrarCxC"}]
["/*",null,"--10--"]
["/*",null,{"$f":"'800111A GeneraXBRL'!$D$11","v":"Tipo de documento del deudor"},{"$f":"'800111A GeneraXBRL'!$C$11","v":"co-svsp-core:TipoDeDocumentoDeudorCxC"}]
["/*",null,{"$f":"'800111A GeneraXBRL'!$D$12","v":"Número de identificación del deudor"},{"$f":"'800111A GeneraXBRL'!$C$12","v":"co-svsp-core:NumeroIdentificacionDeudorCxC"}]
["/*",null,{"$f":"'800111A GeneraXBRL'!$D$13","v":"Primer apellido deudor"},{"$f":"'800111A GeneraXBRL'!$C$13","v":"co-svsp-core:PrimerApellidoDeudorCxC"}]
["/*",null,{"$f":"'800111A GeneraXBRL'!$D$14","v":"Segundo apellido deudor"},{"$f":"'800111A GeneraXBRL'!$C$14","v":"co-svsp-core:SegundoApellidoDeudorCxC"}]
["/*",null,{"$f":"'800111A GeneraXBRL'!$D$15","v":"Primer nombre deudor"},{"$f":"'800111A GeneraXBRL'!$C$15","v":"co-svsp-core:PrimerNombreDeudorCxC"}]
["/*",null,{"$f":"'800111A GeneraXBRL'!$D$16","v":"Otros nombres deudor"},{"$f":"'800111A GeneraXBRL'!$C$16","v":"co-svsp-core:OtrosNombresDeudorCxC"}]
["/*",null,{"$f":"'800111A GeneraXBRL'!$D$17","v":"Razón Social deudor"},{"$f":"'800111A GeneraXBRL'!$C$17","v":"co-svsp-core:RazonSocialDeudorCxC"}]
["/*",null,{"$f":"'800111A GeneraXBRL'!$D$18","v":"Dirección deudor"},{"$f":"'800111A GeneraXBRL'!$C$18","v":"co-svsp-core:DireccionDeudorCxC"}]
["/*",null,{"$f":"'800111A GeneraXBRL'!$D$19","v":"Departamento deudor"},{"$f":"'800111A GeneraXBRL'!$C$19","v":"co-svsp-core:DepartamentoDeudorCxC"}]
["/*",null,{"$f":"'800111A GeneraXBRL'!$D$20","v":"Municipio deudor"},{"$f":"'800111A GeneraXBRL'!$C$20","v":"co-svsp-core:MunicipioDeudorCxC"}]
["/*",null,{"$f":"'800111A GeneraXBRL'!$D$21","v":"País deudor"},{"$f":"'800111A GeneraXBRL'!$C$21","v":"co-svsp-core:PaisDeudorCxC"}]
["/*",null,{"$f":"'800111A GeneraXBRL'!$D$22","v":"Saldo cuentas por cobrar"},{"$f":"'800111A GeneraXBRL'!$C$22","v":"co-svsp-core:SaldoCuentasPorCobrarCxC"}]
["/*",null,"--11--"]
["/*",null,{"$f":"'800111A GeneraXBRL'!$D$11","v":"Tipo de documento del deudor"},{"$f":"'800111A GeneraXBRL'!$C$11","v":"co-svsp-core:TipoDeDocumentoDeudorCxC"}]
["/*",null,{"$f":"'800111A GeneraXBRL'!$D$12","v":"Número de identificación del deudor"},{"$f":"'800111A GeneraXBRL'!$C$12","v":"co-svsp-core:NumeroIdentificacionDeudorCxC"}]
["/*",null,{"$f":"'800111A GeneraXBRL'!$D$13","v":"Primer apellido deudor"},{"$f":"'800111A GeneraXBRL'!$C$13","v":"co-svsp-core:PrimerApellidoDeudorCxC"}]
["/*",null,{"$f":"'800111A GeneraXBRL'!$D$14","v":"Segundo apellido deudor"},{"$f":"'800111A GeneraXBRL'!$C$14","v":"co-svsp-core:SegundoApellidoDeudorCxC"}]
["/*",null,{"$f":"'800111A GeneraXBRL'!$D$15","v":"Primer nombre deudor"},{"$f":"'800111A GeneraXBRL'!$C$15","v":"co-svsp-core:PrimerNombreDeudorCxC"}]
["/*",null,{"$f":"'800111A GeneraXBRL'!$D$16","v":"Otros nombres deudor"},{"$f":"'800111A GeneraXBRL'!$C$16","v":"co-svsp-core:OtrosNombresDeudorCxC"}]
["/*",null,{"$f":"'800111A GeneraXBRL'!$D$17","v":"Razón Social deudor"},{"$f":"'800111A GeneraXBRL'!$C$17","v":"co-svsp-core:RazonSocialDeudorCxC"}]
["/*",null,{"$f":"'800111A GeneraXBRL'!$D$18","v":"Dirección deudor"},{"$f":"'800111A GeneraXBRL'!$C$18","v":"co-svsp-core:DireccionDeudorCxC"}]
["/*",null,{"$f":"'800111A GeneraXBRL'!$D$19","v":"Departamento deudor"},{"$f":"'800111A GeneraXBRL'!$C$19","v":"co-svsp-core:DepartamentoDeudorCxC"}]
["/*",null,{"$f":"'800111A GeneraXBRL'!$D$20","v":"Municipio deudor"},{"$f":"'800111A GeneraXBRL'!$C$20","v":"co-svsp-core:MunicipioDeudorCxC"}]
["/*",null,{"$f":"'800111A GeneraXBRL'!$D$21","v":"País deudor"},{"$f":"'800111A GeneraXBRL'!$C$21","v":"co-svsp-core:PaisDeudorCxC"}]
["/*",null,{"$f":"'800111A GeneraXBRL'!$D$22","v":"Saldo cuentas por cobrar"},{"$f":"'800111A GeneraXBRL'!$C$22","v":"co-svsp-core:SaldoCuentasPorCobrarCxC"}]
["/*",null,"--12--"]
["/*",null,{"$f":"'800111A GeneraXBRL'!$D$11","v":"Tipo de documento del deudor"},{"$f":"'800111A GeneraXBRL'!$C$11","v":"co-svsp-core:TipoDeDocumentoDeudorCxC"}]
["/*",null,{"$f":"'800111A GeneraXBRL'!$D$12","v":"Número de identificación del deudor"},{"$f":"'800111A GeneraXBRL'!$C$12","v":"co-svsp-core:NumeroIdentificacionDeudorCxC"}]
["/*",null,{"$f":"'800111A GeneraXBRL'!$D$13","v":"Primer apellido deudor"},{"$f":"'800111A GeneraXBRL'!$C$13","v":"co-svsp-core:PrimerApellidoDeudorCxC"}]
["/*",null,{"$f":"'800111A GeneraXBRL'!$D$14","v":"Segundo apellido deudor"},{"$f":"'800111A GeneraXBRL'!$C$14","v":"co-svsp-core:SegundoApellidoDeudorCxC"}]
["/*",null,{"$f":"'800111A GeneraXBRL'!$D$15","v":"Primer nombre deudor"},{"$f":"'800111A GeneraXBRL'!$C$15","v":"co-svsp-core:PrimerNombreDeudorCxC"}]
["/*",null,{"$f":"'800111A GeneraXBRL'!$D$16","v":"Otros nombres deudor"},{"$f":"'800111A GeneraXBRL'!$C$16","v":"co-svsp-core:OtrosNombresDeudorCxC"}]
["/*",null,{"$f":"'800111A GeneraXBRL'!$D$17","v":"Razón Social deudor"},{"$f":"'800111A GeneraXBRL'!$C$17","v":"co-svsp-core:RazonSocialDeudorCxC"}]
["/*",null,{"$f":"'800111A GeneraXBRL'!$D$18","v":"Dirección deudor"},{"$f":"'800111A GeneraXBRL'!$C$18","v":"co-svsp-core:DireccionDeudorCxC"}]
["/*",null,{"$f":"'800111A GeneraXBRL'!$D$19","v":"Departamento deudor"},{"$f":"'800111A GeneraXBRL'!$C$19","v":"co-svsp-core:DepartamentoDeudorCxC"}]
["/*",null,{"$f":"'800111A GeneraXBRL'!$D$20","v":"Municipio deudor"},{"$f":"'800111A GeneraXBRL'!$C$20","v":"co-svsp-core:MunicipioDeudorCxC"}]
["/*",null,{"$f":"'800111A GeneraXBRL'!$D$21","v":"País deudor"},{"$f":"'800111A GeneraXBRL'!$C$21","v":"co-svsp-core:PaisDeudorCxC"}]
["/*",null,{"$f":"'800111A GeneraXBRL'!$D$22","v":"Saldo cuentas por cobrar"},{"$f":"'800111A GeneraXBRL'!$C$22","v":"co-svsp-core:SaldoCuentasPorCobrarCxC"}]
["/*",null,"--13--"]
["/*",null,{"$f":"'800111A GeneraXBRL'!$D$11","v":"Tipo de documento del deudor"},{"$f":"'800111A GeneraXBRL'!$C$11","v":"co-svsp-core:TipoDeDocumentoDeudorCxC"}]
["/*",null,{"$f":"'800111A GeneraXBRL'!$D$12","v":"Número de identificación del deudor"},{"$f":"'800111A GeneraXBRL'!$C$12","v":"co-svsp-core:NumeroIdentificacionDeudorCxC"}]
["/*",null,{"$f":"'800111A GeneraXBRL'!$D$13","v":"Primer apellido deudor"},{"$f":"'800111A GeneraXBRL'!$C$13","v":"co-svsp-core:PrimerApellidoDeudorCxC"}]
["/*",null,{"$f":"'800111A GeneraXBRL'!$D$14","v":"Segundo apellido deudor"},{"$f":"'800111A GeneraXBRL'!$C$14","v":"co-svsp-core:SegundoApellidoDeudorCxC"}]
["/*",null,{"$f":"'800111A GeneraXBRL'!$D$15","v":"Primer nombre deudor"},{"$f":"'800111A GeneraXBRL'!$C$15","v":"co-svsp-core:PrimerNombreDeudorCxC"}]
["/*",null,{"$f":"'800111A GeneraXBRL'!$D$16","v":"Otros nombres deudor"},{"$f":"'800111A GeneraXBRL'!$C$16","v":"co-svsp-core:OtrosNombresDeudorCxC"}]
["/*",null,{"$f":"'800111A GeneraXBRL'!$D$17","v":"Razón Social deudor"},{"$f":"'800111A GeneraXBRL'!$C$17","v":"co-svsp-core:RazonSocialDeudorCxC"}]
[{"$f":"IF(G608=\"\",\"/*\",\"\")","v":"/*"},null,{"$f":"'800111A GeneraXBRL'!$D$18","v":"Dirección deudor"},{"$f":"'800111A GeneraXBRL'!$C$18","v":"co-svsp-core:DireccionDeudorCxC"}]
["/*",null,{"$f":"'800111A GeneraXBRL'!$D$19","v":"Departamento deudor"},{"$f":"'800111A GeneraXBRL'!$C$19","v":"co-svsp-core:DepartamentoDeudorCxC"}]
["/*",null,{"$f":"'800111A GeneraXBRL'!$D$20","v":"Municipio deudor"},{"$f":"'800111A GeneraXBRL'!$C$20","v":"co-svsp-core:MunicipioDeudorCxC"}]
["/*",null,{"$f":"'800111A GeneraXBRL'!$D$21","v":"País deudor"},{"$f":"'800111A GeneraXBRL'!$C$21","v":"co-svsp-core:PaisDeudorCxC"}]
["/*",null,{"$f":"'800111A GeneraXBRL'!$D$22","v":"Saldo cuentas por cobrar"},{"$f":"'800111A GeneraXBRL'!$C$22","v":"co-svsp-core:SaldoCuentasPorCobrarCxC"}]
["/*",null,"--14--"]
["/*",null,{"$f":"'800111A GeneraXBRL'!$D$11","v":"Tipo de documento del deudor"},{"$f":"'800111A GeneraXBRL'!$C$11","v":"co-svsp-core:TipoDeDocumentoDeudorCxC"}]
["/*",null,{"$f":"'800111A GeneraXBRL'!$D$12","v":"Número de identificación del deudor"},{"$f":"'800111A GeneraXBRL'!$C$12","v":"co-svsp-core:NumeroIdentificacionDeudorCxC"}]
["/*",null,{"$f":"'800111A GeneraXBRL'!$D$13","v":"Primer apellido deudor"},{"$f":"'800111A GeneraXBRL'!$C$13","v":"co-svsp-core:PrimerApellidoDeudorCxC"}]
["/*",null,{"$f":"'800111A GeneraXBRL'!$D$14","v":"Segundo apellido deudor"},{"$f":"'800111A GeneraXBRL'!$C$14","v":"co-svsp-core:SegundoApellidoDeudorCxC"}]
["/*",null,{"$f":"'800111A GeneraXBRL'!$D$15","v":"Primer nombre deudor"},{"$f":"'800111A GeneraXBRL'!$C$15","v":"co-svsp-core:PrimerNombreDeudorCxC"}]
["/*",null,{"$f":"'800111A GeneraXBRL'!$D$16","v":"Otros nombres deudor"},{"$f":"'800111A GeneraXBRL'!$C$16","v":"co-svsp-core:OtrosNombresDeudorCxC"}]
["/*",null,{"$f":"'800111A GeneraXBRL'!$D$17","v":"Razón Social deudor"},{"$f":"'800111A GeneraXBRL'!$C$17","v":"co-svsp-core:RazonSocialDeudorCxC"}]
["/*",null,{"$f":"'800111A GeneraXBRL'!$D$18","v":"Dirección deudor"},{"$f":"'800111A GeneraXBRL'!$C$18","v":"co-svsp-core:DireccionDeudorCxC"}]
["/*",null,{"$f":"'800111A GeneraXBRL'!$D$19","v":"Departamento deudor"},{"$f":"'800111A GeneraXBRL'!$C$19","v":"co-svsp-core:DepartamentoDeudorCxC"}]
["/*",null,{"$f":"'800111A GeneraXBRL'!$D$20","v":"Municipio deudor"},{"$f":"'800111A GeneraXBRL'!$C$20","v":"co-svsp-core:MunicipioDeudorCxC"}]
["/*",null,{"$f":"'800111A GeneraXBRL'!$D$21","v":"País deudor"},{"$f":"'800111A GeneraXBRL'!$C$21","v":"co-svsp-core:PaisDeudorCxC"}]
["/*",null,{"$f":"'800111A GeneraXBRL'!$D$22","v":"Saldo cuentas por cobrar"},{"$f":"'800111A GeneraXBRL'!$C$22","v":"co-svsp-core:SaldoCuentasPorCobrarCxC"}]
["/*",null,"--15--"]
["/*",null,{"$f":"'800111A GeneraXBRL'!$D$11","v":"Tipo de documento del deudor"},{"$f":"'800111A GeneraXBRL'!$C$11","v":"co-svsp-core:TipoDeDocumentoDeudorCxC"}]
["/*",null,{"$f":"'800111A GeneraXBRL'!$D$12","v":"Número de identificación del deudor"},{"$f":"'800111A GeneraXBRL'!$C$12","v":"co-svsp-core:NumeroIdentificacionDeudorCxC"}]
["/*",null,{"$f":"'800111A GeneraXBRL'!$D$13","v":"Primer apellido deudor"},{"$f":"'800111A GeneraXBRL'!$C$13","v":"co-svsp-core:PrimerApellidoDeudorCxC"}]
["/*",null,{"$f":"'800111A GeneraXBRL'!$D$14","v":"Segundo apellido deudor"},{"$f":"'800111A GeneraXBRL'!$C$14","v":"co-svsp-core:SegundoApellidoDeudorCxC"}]
["/*",null,{"$f":"'800111A GeneraXBRL'!$D$15","v":"Primer nombre deudor"},{"$f":"'800111A GeneraXBRL'!$C$15","v":"co-svsp-core:PrimerNombreDeudorCxC"}]
["/*",null,{"$f":"'800111A GeneraXBRL'!$D$16","v":"Otros nombres deudor"},{"$f":"'800111A GeneraXBRL'!$C$16","v":"co-svsp-core:OtrosNombresDeudorCxC"}]
["/*",null,{"$f":"'800111A GeneraXBRL'!$D$17","v":"Razón Social deudor"},{"$f":"'800111A GeneraXBRL'!$C$17","v":"co-svsp-core:RazonSocialDeudorCxC"}]
["/*",null,{"$f":"'800111A GeneraXBRL'!$D$18","v":"Dirección deudor"},{"$f":"'800111A GeneraXBRL'!$C$18","v":"co-svsp-core:DireccionDeudorCxC"}]
["/*",null,{"$f":"'800111A GeneraXBRL'!$D$19","v":"Departamento deudor"},{"$f":"'800111A GeneraXBRL'!$C$19","v":"co-svsp-core:DepartamentoDeudorCxC"}]
["/*",null,{"$f":"'800111A GeneraXBRL'!$D$20","v":"Municipio deudor"},{"$f":"'800111A GeneraXBRL'!$C$20","v":"co-svsp-core:MunicipioDeudorCxC"}]
["/*",null,{"$f":"'800111A GeneraXBRL'!$D$21","v":"País deudor"},{"$f":"'800111A GeneraXBRL'!$C$21","v":"co-svsp-core:PaisDeudorCxC"}]
["/*",null,{"$f":"'800111A GeneraXBRL'!$D$22","v":"Saldo cuentas por cobrar"},{"$f":"'800111A GeneraXBRL'!$C$22","v":"co-svsp-core:SaldoCuentasPorCobrarCxC"}]
["/*",null,"--16--"]
["/*",null,{"$f":"'800111A GeneraXBRL'!$D$11","v":"Tipo de documento del deudor"},{"$f":"'800111A GeneraXBRL'!$C$11","v":"co-svsp-core:TipoDeDocumentoDeudorCxC"}]
["/*",null,{"$f":"'800111A GeneraXBRL'!$D$12","v":"Número de identificación del deudor"},{"$f":"'800111A GeneraXBRL'!$C$12","v":"co-svsp-core:NumeroIdentificacionDeudorCxC"}]
["/*",null,{"$f":"'800111A GeneraXBRL'!$D$13","v":"Primer apellido deudor"},{"$f":"'800111A GeneraXBRL'!$C$13","v":"co-svsp-core:PrimerApellidoDeudorCxC"}]
["/*",null,{"$f":"'800111A GeneraXBRL'!$D$14","v":"Segundo apellido deudor"},{"$f":"'800111A GeneraXBRL'!$C$14","v":"co-svsp-core:SegundoApellidoDeudorCxC"}]
["/*",null,{"$f":"'800111A GeneraXBRL'!$D$15","v":"Primer nombre deudor"},{"$f":"'800111A GeneraXBRL'!$C$15","v":"co-svsp-core:PrimerNombreDeudorCxC"}]
["/*",null,{"$f":"'800111A GeneraXBRL'!$D$16","v":"Otros nombres deudor"},{"$f":"'800111A GeneraXBRL'!$C$16","v":"co-svsp-core:OtrosNombresDeudorCxC"}]
["/*",null,{"$f":"'800111A GeneraXBRL'!$D$17","v":"Razón Social deudor"},{"$f":"'800111A GeneraXBRL'!$C$17","v":"co-svsp-core:RazonSocialDeudorCxC"}]
["/*",null,{"$f":"'800111A GeneraXBRL'!$D$18","v":"Dirección deudor"},{"$f":"'800111A GeneraXBRL'!$C$18","v":"co-svsp-core:DireccionDeudorCxC"}]
["/*",null,{"$f":"'800111A GeneraXBRL'!$D$19","v":"Departamento deudor"},{"$f":"'800111A GeneraXBRL'!$C$19","v":"co-svsp-core:DepartamentoDeudorCxC"}]
["/*",null,{"$f":"'800111A GeneraXBRL'!$D$20","v":"Municipio deudor"},{"$f":"'800111A GeneraXBRL'!$C$20","v":"co-svsp-core:MunicipioDeudorCxC"}]
["/*",null,{"$f":"'800111A GeneraXBRL'!$D$21","v":"País deudor"},{"$f":"'800111A GeneraXBRL'!$C$21","v":"co-svsp-core:PaisDeudorCxC"}]
["/*",null,{"$f":"'800111A GeneraXBRL'!$D$22","v":"Saldo cuentas por cobrar"},{"$f":"'800111A GeneraXBRL'!$C$22","v":"co-svsp-core:SaldoCuentasPorCobrarCxC"}]
["/*",null,"--17--"]
["/*",null,{"$f":"'800111A GeneraXBRL'!$D$11","v":"Tipo de documento del deudor"},{"$f":"'800111A GeneraXBRL'!$C$11","v":"co-svsp-core:TipoDeDocumentoDeudorCxC"}]
["/*",null,{"$f":"'800111A GeneraXBRL'!$D$12","v":"Número de identificación del deudor"},{"$f":"'800111A GeneraXBRL'!$C$12","v":"co-svsp-core:NumeroIdentificacionDeudorCxC"}]
["/*",null,{"$f":"'800111A GeneraXBRL'!$D$13","v":"Primer apellido deudor"},{"$f":"'800111A GeneraXBRL'!$C$13","v":"co-svsp-core:PrimerApellidoDeudorCxC"}]
["/*",null,{"$f":"'800111A GeneraXBRL'!$D$14","v":"Segundo apellido deudor"},{"$f":"'800111A GeneraXBRL'!$C$14","v":"co-svsp-core:SegundoApellidoDeudorCxC"}]
["/*",null,{"$f":"'800111A GeneraXBRL'!$D$15","v":"Primer nombre deudor"},{"$f":"'800111A GeneraXBRL'!$C$15","v":"co-svsp-core:PrimerNombreDeudorCxC"}]
["/*",null,{"$f":"'800111A GeneraXBRL'!$D$16","v":"Otros nombres deudor"},{"$f":"'800111A GeneraXBRL'!$C$16","v":"co-svsp-core:OtrosNombresDeudorCxC"}]
["/*",null,{"$f":"'800111A GeneraXBRL'!$D$17","v":"Razón Social deudor"},{"$f":"'800111A GeneraXBRL'!$C$17","v":"co-svsp-core:RazonSocialDeudorCxC"}]
["/*",null,{"$f":"'800111A GeneraXBRL'!$D$18","v":"Dirección deudor"},{"$f":"'800111A GeneraXBRL'!$C$18","v":"co-svsp-core:DireccionDeudorCxC"}]
["/*",null,{"$f":"'800111A GeneraXBRL'!$D$19","v":"Departamento deudor"},{"$f":"'800111A GeneraXBRL'!$C$19","v":"co-svsp-core:DepartamentoDeudorCxC"}]
["/*",null,{"$f":"'800111A GeneraXBRL'!$D$20","v":"Municipio deudor"},{"$f":"'800111A GeneraXBRL'!$C$20","v":"co-svsp-core:MunicipioDeudorCxC"}]
["/*",null,{"$f":"'800111A GeneraXBRL'!$D$21","v":"País deudor"},{"$f":"'800111A GeneraXBRL'!$C$21","v":"co-svsp-core:PaisDeudorCxC"}]
["/*",null,{"$f":"'800111A GeneraXBRL'!$D$22","v":"Saldo cuentas por cobrar"},{"$f":"'800111A GeneraXBRL'!$C$22","v":"co-svsp-core:SaldoCuentasPorCobrarCxC"}]
["/*",null,"--18--"]
["/*",null,{"$f":"'800111A GeneraXBRL'!$D$11","v":"Tipo de documento del deudor"},{"$f":"'800111A GeneraXBRL'!$C$11","v":"co-svsp-core:TipoDeDocumentoDeudorCxC"}]
["/*",null,{"$f":"'800111A GeneraXBRL'!$D$12","v":"Número de identificación del deudor"},{"$f":"'800111A GeneraXBRL'!$C$12","v":"co-svsp-core:NumeroIdentificacionDeudorCxC"}]
["/*",null,{"$f":"'800111A GeneraXBRL'!$D$13","v":"Primer apellido deudor"},{"$f":"'800111A GeneraXBRL'!$C$13","v":"co-svsp-core:PrimerApellidoDeudorCxC"}]
["/*",null,{"$f":"'800111A GeneraXBRL'!$D$14","v":"Segundo apellido deudor"},{"$f":"'800111A GeneraXBRL'!$C$14","v":"co-svsp-core:SegundoApellidoDeudorCxC"}]
["/*",null,{"$f":"'800111A GeneraXBRL'!$D$15","v":"Primer nombre deudor"},{"$f":"'800111A GeneraXBRL'!$C$15","v":"co-svsp-core:PrimerNombreDeudorCxC"}]
["/*",null,{"$f":"'800111A GeneraXBRL'!$D$16","v":"Otros nombres deudor"},{"$f":"'800111A GeneraXBRL'!$C$16","v":"co-svsp-core:OtrosNombresDeudorCxC"}]
[{"$f":"IF(G672=\"\",\"/*\",\"\")","v":"/*"},null,{"$f":"'800111A GeneraXBRL'!$D$17","v":"Razón Social deudor"},{"$f":"'800111A GeneraXBRL'!$C$17","v":"co-svsp-core:RazonSocialDeudorCxC"}]
["/*",null,{"$f":"'800111A GeneraXBRL'!$D$18","v":"Dirección deudor"},{"$f":"'800111A GeneraXBRL'!$C$18","v":"co-svsp-core:DireccionDeudorCxC"}]
["/*",null,{"$f":"'800111A GeneraXBRL'!$D$19","v":"Departamento deudor"},{"$f":"'800111A GeneraXBRL'!$C$19","v":"co-svsp-core:DepartamentoDeudorCxC"}]
["/*",null,{"$f":"'800111A GeneraXBRL'!$D$20","v":"Municipio deudor"},{"$f":"'800111A GeneraXBRL'!$C$20","v":"co-svsp-core:MunicipioDeudorCxC"}]
["/*",null,{"$f":"'800111A GeneraXBRL'!$D$21","v":"País deudor"},{"$f":"'800111A GeneraXBRL'!$C$21","v":"co-svsp-core:PaisDeudorCxC"}]
["/*",null,{"$f":"'800111A GeneraXBRL'!$D$22","v":"Saldo cuentas por cobrar"},{"$f":"'800111A GeneraXBRL'!$C$22","v":"co-svsp-core:SaldoCuentasPorCobrarCxC"}]
["/*",null,"--19--"]
["/*",null,{"$f":"'800111A GeneraXBRL'!$D$11","v":"Tipo de documento del deudor"},{"$f":"'800111A GeneraXBRL'!$C$11","v":"co-svsp-core:TipoDeDocumentoDeudorCxC"}]
["/*",null,{"$f":"'800111A GeneraXBRL'!$D$12","v":"Número de identificación del deudor"},{"$f":"'800111A GeneraXBRL'!$C$12","v":"co-svsp-core:NumeroIdentificacionDeudorCxC"}]
["/*",null,{"$f":"'800111A GeneraXBRL'!$D$13","v":"Primer apellido deudor"},{"$f":"'800111A GeneraXBRL'!$C$13","v":"co-svsp-core:PrimerApellidoDeudorCxC"}]
["/*",null,{"$f":"'800111A GeneraXBRL'!$D$14","v":"Segundo apellido deudor"},{"$f":"'800111A GeneraXBRL'!$C$14","v":"co-svsp-core:SegundoApellidoDeudorCxC"}]
["/*",null,{"$f":"'800111A GeneraXBRL'!$D$15","v":"Primer nombre deudor"},{"$f":"'800111A GeneraXBRL'!$C$15","v":"co-svsp-core:PrimerNombreDeudorCxC"}]
["/*",null,{"$f":"'800111A GeneraXBRL'!$D$16","v":"Otros nombres deudor"},{"$f":"'800111A GeneraXBRL'!$C$16","v":"co-svsp-core:OtrosNombresDeudorCxC"}]
["/*",null,{"$f":"'800111A GeneraXBRL'!$D$17","v":"Razón Social deudor"},{"$f":"'800111A GeneraXBRL'!$C$17","v":"co-svsp-core:RazonSocialDeudorCxC"}]
["/*",null,{"$f":"'800111A GeneraXBRL'!$D$18","v":"Dirección deudor"},{"$f":"'800111A GeneraXBRL'!$C$18","v":"co-svsp-core:DireccionDeudorCxC"}]
["/*",null,{"$f":"'800111A GeneraXBRL'!$D$19","v":"Departamento deudor"},{"$f":"'800111A GeneraXBRL'!$C$19","v":"co-svsp-core:DepartamentoDeudorCxC"}]
["/*",null,{"$f":"'800111A GeneraXBRL'!$D$20","v":"Municipio deudor"},{"$f":"'800111A GeneraXBRL'!$C$20","v":"co-svsp-core:MunicipioDeudorCxC"}]
["/*",null,{"$f":"'800111A GeneraXBRL'!$D$21","v":"País deudor"},{"$f":"'800111A GeneraXBRL'!$C$21","v":"co-svsp-core:PaisDeudorCxC"}]
["/*",null,{"$f":"'800111A GeneraXBRL'!$D$22","v":"Saldo cuentas por cobrar"},{"$f":"'800111A GeneraXBRL'!$C$22","v":"co-svsp-core:SaldoCuentasPorCobrarCxC"}]
["/*",null,"--20--"]
["/*",null,{"$f":"'800111A GeneraXBRL'!$D$11","v":"Tipo de documento del deudor"},{"$f":"'800111A GeneraXBRL'!$C$11","v":"co-svsp-core:TipoDeDocumentoDeudorCxC"}]
["/*",null,{"$f":"'800111A GeneraXBRL'!$D$12","v":"Número de identificación del deudor"},{"$f":"'800111A GeneraXBRL'!$C$12","v":"co-svsp-core:NumeroIdentificacionDeudorCxC"}]
["/*",null,{"$f":"'800111A GeneraXBRL'!$D$13","v":"Primer apellido deudor"},{"$f":"'800111A GeneraXBRL'!$C$13","v":"co-svsp-core:PrimerApellidoDeudorCxC"}]
["/*",null,{"$f":"'800111A GeneraXBRL'!$D$14","v":"Segundo apellido deudor"},{"$f":"'800111A GeneraXBRL'!$C$14","v":"co-svsp-core:SegundoApellidoDeudorCxC"}]
["/*",null,{"$f":"'800111A GeneraXBRL'!$D$15","v":"Primer nombre deudor"},{"$f":"'800111A GeneraXBRL'!$C$15","v":"co-svsp-core:PrimerNombreDeudorCxC"}]
["/*",null,{"$f":"'800111A GeneraXBRL'!$D$16","v":"Otros nombres deudor"},{"$f":"'800111A GeneraXBRL'!$C$16","v":"co-svsp-core:OtrosNombresDeudorCxC"}]
["/*",null,{"$f":"'800111A GeneraXBRL'!$D$17","v":"Razón Social deudor"},{"$f":"'800111A GeneraXBRL'!$C$17","v":"co-svsp-core:RazonSocialDeudorCxC"}]
["/*",null,{"$f":"'800111A GeneraXBRL'!$D$18","v":"Dirección deudor"},{"$f":"'800111A GeneraXBRL'!$C$18","v":"co-svsp-core:DireccionDeudorCxC"}]
["/*",null,{"$f":"'800111A GeneraXBRL'!$D$19","v":"Departamento deudor"},{"$f":"'800111A GeneraXBRL'!$C$19","v":"co-svsp-core:DepartamentoDeudorCxC"}]
["/*",null,{"$f":"'800111A GeneraXBRL'!$D$20","v":"Municipio deudor"},{"$f":"'800111A GeneraXBRL'!$C$20","v":"co-svsp-core:MunicipioDeudorCxC"}]
["/*",null,{"$f":"'800111A GeneraXBRL'!$D$21","v":"País deudor"},{"$f":"'800111A GeneraXBRL'!$C$21","v":"co-svsp-core:PaisDeudorCxC"}]
["/*",null,{"$f":"'800111A GeneraXBRL'!$D$22","v":"Saldo cuentas por cobrar"},{"$f":"'800111A GeneraXBRL'!$C$22","v":"co-svsp-core:SaldoCuentasPorCobrarCxC"}]
["/*",null,"--21--"]
["/*",null,{"$f":"'800111A GeneraXBRL'!$D$11","v":"Tipo de documento del deudor"},{"$f":"'800111A GeneraXBRL'!$C$11","v":"co-svsp-core:TipoDeDocumentoDeudorCxC"}]
["/*",null,{"$f":"'800111A GeneraXBRL'!$D$12","v":"Número de identificación del deudor"},{"$f":"'800111A GeneraXBRL'!$C$12","v":"co-svsp-core:NumeroIdentificacionDeudorCxC"}]
["/*",null,{"$f":"'800111A GeneraXBRL'!$D$13","v":"Primer apellido deudor"},{"$f":"'800111A GeneraXBRL'!$C$13","v":"co-svsp-core:PrimerApellidoDeudorCxC"}]
["/*",null,{"$f":"'800111A GeneraXBRL'!$D$14","v":"Segundo apellido deudor"},{"$f":"'800111A GeneraXBRL'!$C$14","v":"co-svsp-core:SegundoApellidoDeudorCxC"}]
["/*",null,{"$f":"'800111A GeneraXBRL'!$D$15","v":"Primer nombre deudor"},{"$f":"'800111A GeneraXBRL'!$C$15","v":"co-svsp-core:PrimerNombreDeudorCxC"}]
["/*",null,{"$f":"'800111A GeneraXBRL'!$D$16","v":"Otros nombres deudor"},{"$f":"'800111A GeneraXBRL'!$C$16","v":"co-svsp-core:OtrosNombresDeudorCxC"}]
["/*",null,{"$f":"'800111A GeneraXBRL'!$D$17","v":"Razón Social deudor"},{"$f":"'800111A GeneraXBRL'!$C$17","v":"co-svsp-core:RazonSocialDeudorCxC"}]
["/*",null,{"$f":"'800111A GeneraXBRL'!$D$18","v":"Dirección deudor"},{"$f":"'800111A GeneraXBRL'!$C$18","v":"co-svsp-core:DireccionDeudorCxC"}]
["/*",null,{"$f":"'800111A GeneraXBRL'!$D$19","v":"Departamento deudor"},{"$f":"'800111A GeneraXBRL'!$C$19","v":"co-svsp-core:DepartamentoDeudorCxC"}]
["/*",null,{"$f":"'800111A GeneraXBRL'!$D$20","v":"Municipio deudor"},{"$f":"'800111A GeneraXBRL'!$C$20","v":"co-svsp-core:MunicipioDeudorCxC"}]
["/*",null,{"$f":"'800111A GeneraXBRL'!$D$21","v":"País deudor"},{"$f":"'800111A GeneraXBRL'!$C$21","v":"co-svsp-core:PaisDeudorCxC"}]
["/*",null,{"$f":"'800111A GeneraXBRL'!$D$22","v":"Saldo cuentas por cobrar"},{"$f":"'800111A GeneraXBRL'!$C$22","v":"co-svsp-core:SaldoCuentasPorCobrarCxC"}]
["/*",null,"--22--"]
["/*",null,{"$f":"'800111A GeneraXBRL'!$D$11","v":"Tipo de documento del deudor"},{"$f":"'800111A GeneraXBRL'!$C$11","v":"co-svsp-core:TipoDeDocumentoDeudorCxC"}]
["/*",null,{"$f":"'800111A GeneraXBRL'!$D$12","v":"Número de identificación del deudor"},{"$f":"'800111A GeneraXBRL'!$C$12","v":"co-svsp-core:NumeroIdentificacionDeudorCxC"}]
["/*",null,{"$f":"'800111A GeneraXBRL'!$D$13","v":"Primer apellido deudor"},{"$f":"'800111A GeneraXBRL'!$C$13","v":"co-svsp-core:PrimerApellidoDeudorCxC"}]
["/*",null,{"$f":"'800111A GeneraXBRL'!$D$14","v":"Segundo apellido deudor"},{"$f":"'800111A GeneraXBRL'!$C$14","v":"co-svsp-core:SegundoApellidoDeudorCxC"}]
["/*",null,{"$f":"'800111A GeneraXBRL'!$D$15","v":"Primer nombre deudor"},{"$f":"'800111A GeneraXBRL'!$C$15","v":"co-svsp-core:PrimerNombreDeudorCxC"}]
["/*",null,{"$f":"'800111A GeneraXBRL'!$D$16","v":"Otros nombres deudor"},{"$f":"'800111A GeneraXBRL'!$C$16","v":"co-svsp-core:OtrosNombresDeudorCxC"}]
["/*",null,{"$f":"'800111A GeneraXBRL'!$D$17","v":"Razón Social deudor"},{"$f":"'800111A GeneraXBRL'!$C$17","v":"co-svsp-core:RazonSocialDeudorCxC"}]
["/*",null,{"$f":"'800111A GeneraXBRL'!$D$18","v":"Dirección deudor"},{"$f":"'800111A GeneraXBRL'!$C$18","v":"co-svsp-core:DireccionDeudorCxC"}]
["/*",null,{"$f":"'800111A GeneraXBRL'!$D$19","v":"Departamento deudor"},{"$f":"'800111A GeneraXBRL'!$C$19","v":"co-svsp-core:DepartamentoDeudorCxC"}]
["/*",null,{"$f":"'800111A GeneraXBRL'!$D$20","v":"Municipio deudor"},{"$f":"'800111A GeneraXBRL'!$C$20","v":"co-svsp-core:MunicipioDeudorCxC"}]
["/*",null,{"$f":"'800111A GeneraXBRL'!$D$21","v":"País deudor"},{"$f":"'800111A GeneraXBRL'!$C$21","v":"co-svsp-core:PaisDeudorCxC"}]
["/*",null,{"$f":"'800111A GeneraXBRL'!$D$22","v":"Saldo cuentas por cobrar"},{"$f":"'800111A GeneraXBRL'!$C$22","v":"co-svsp-core:SaldoCuentasPorCobrarCxC"}]
["/*",null,"--23--"]
["/*",null,{"$f":"'800111A GeneraXBRL'!$D$11","v":"Tipo de documento del deudor"},{"$f":"'800111A GeneraXBRL'!$C$11","v":"co-svsp-core:TipoDeDocumentoDeudorCxC"}]
["/*",null,{"$f":"'800111A GeneraXBRL'!$D$12","v":"Número de identificación del deudor"},{"$f":"'800111A GeneraXBRL'!$C$12","v":"co-svsp-core:NumeroIdentificacionDeudorCxC"}]
["/*",null,{"$f":"'800111A GeneraXBRL'!$D$13","v":"Primer apellido deudor"},{"$f":"'800111A GeneraXBRL'!$C$13","v":"co-svsp-core:PrimerApellidoDeudorCxC"}]
["/*",null,{"$f":"'800111A GeneraXBRL'!$D$14","v":"Segundo apellido deudor"},{"$f":"'800111A GeneraXBRL'!$C$14","v":"co-svsp-core:SegundoApellidoDeudorCxC"}]
["/*",null,{"$f":"'800111A GeneraXBRL'!$D$15","v":"Primer nombre deudor"},{"$f":"'800111A GeneraXBRL'!$C$15","v":"co-svsp-core:PrimerNombreDeudorCxC"}]
[{"$f":"IF(G736=\"\",\"/*\",\"\")","v":"/*"},null,{"$f":"'800111A GeneraXBRL'!$D$16","v":"Otros nombres deudor"},{"$f":"'800111A GeneraXBRL'!$C$16","v":"co-svsp-core:OtrosNombresDeudorCxC"}]
["/*",null,{"$f":"'800111A GeneraXBRL'!$D$17","v":"Razón Social deudor"},{"$f":"'800111A GeneraXBRL'!$C$17","v":"co-svsp-core:RazonSocialDeudorCxC"}]
["/*",null,{"$f":"'800111A GeneraXBRL'!$D$18","v":"Dirección deudor"},{"$f":"'800111A GeneraXBRL'!$C$18","v":"co-svsp-core:DireccionDeudorCxC"}]
["/*",null,{"$f":"'800111A GeneraXBRL'!$D$19","v":"Departamento deudor"},{"$f":"'800111A GeneraXBRL'!$C$19","v":"co-svsp-core:DepartamentoDeudorCxC"}]
["/*",null,{"$f":"'800111A GeneraXBRL'!$D$20","v":"Municipio deudor"},{"$f":"'800111A GeneraXBRL'!$C$20","v":"co-svsp-core:MunicipioDeudorCxC"}]
["/*",null,{"$f":"'800111A GeneraXBRL'!$D$21","v":"País deudor"},{"$f":"'800111A GeneraXBRL'!$C$21","v":"co-svsp-core:PaisDeudorCxC"}]
["/*",null,{"$f":"'800111A GeneraXBRL'!$D$22","v":"Saldo cuentas por cobrar"},{"$f":"'800111A GeneraXBRL'!$C$22","v":"co-svsp-core:SaldoCuentasPorCobrarCxC"}]
["/*",null,"--24--"]
["/*",null,{"$f":"'800111A GeneraXBRL'!$D$11","v":"Tipo de documento del deudor"},{"$f":"'800111A GeneraXBRL'!$C$11","v":"co-svsp-core:TipoDeDocumentoDeudorCxC"}]
["/*",null,{"$f":"'800111A GeneraXBRL'!$D$12","v":"Número de identificación del deudor"},{"$f":"'800111A GeneraXBRL'!$C$12","v":"co-svsp-core:NumeroIdentificacionDeudorCxC"}]
["/*",null,{"$f":"'800111A GeneraXBRL'!$D$13","v":"Primer apellido deudor"},{"$f":"'800111A GeneraXBRL'!$C$13","v":"co-svsp-core:PrimerApellidoDeudorCxC"}]
["/*",null,{"$f":"'800111A GeneraXBRL'!$D$14","v":"Segundo apellido deudor"},{"$f":"'800111A GeneraXBRL'!$C$14","v":"co-svsp-core:SegundoApellidoDeudorCxC"}]
["/*",null,{"$f":"'800111A GeneraXBRL'!$D$15","v":"Primer nombre deudor"},{"$f":"'800111A GeneraXBRL'!$C$15","v":"co-svsp-core:PrimerNombreDeudorCxC"}]
["/*",null,{"$f":"'800111A GeneraXBRL'!$D$16","v":"Otros nombres deudor"},{"$f":"'800111A GeneraXBRL'!$C$16","v":"co-svsp-core:OtrosNombresDeudorCxC"}]
["/*",null,{"$f":"'800111A GeneraXBRL'!$D$17","v":"Razón Social deudor"},{"$f":"'800111A GeneraXBRL'!$C$17","v":"co-svsp-core:RazonSocialDeudorCxC"}]
["/*",null,{"$f":"'800111A GeneraXBRL'!$D$18","v":"Dirección deudor"},{"$f":"'800111A GeneraXBRL'!$C$18","v":"co-svsp-core:DireccionDeudorCxC"}]
["/*",null,{"$f":"'800111A GeneraXBRL'!$D$19","v":"Departamento deudor"},{"$f":"'800111A GeneraXBRL'!$C$19","v":"co-svsp-core:DepartamentoDeudorCxC"}]
["/*",null,{"$f":"'800111A GeneraXBRL'!$D$20","v":"Municipio deudor"},{"$f":"'800111A GeneraXBRL'!$C$20","v":"co-svsp-core:MunicipioDeudorCxC"}]
["/*",null,{"$f":"'800111A GeneraXBRL'!$D$21","v":"País deudor"},{"$f":"'800111A GeneraXBRL'!$C$21","v":"co-svsp-core:PaisDeudorCxC"}]
["/*",null,{"$f":"'800111A GeneraXBRL'!$D$22","v":"Saldo cuentas por cobrar"},{"$f":"'800111A GeneraXBRL'!$C$22","v":"co-svsp-core:SaldoCuentasPorCobrarCxC"}]
["/*",null,"--25--"]
["/*",null,{"$f":"'800111A GeneraXBRL'!$D$11","v":"Tipo de documento del deudor"},{"$f":"'800111A GeneraXBRL'!$C$11","v":"co-svsp-core:TipoDeDocumentoDeudorCxC"}]
["/*",null,{"$f":"'800111A GeneraXBRL'!$D$12","v":"Número de identificación del deudor"},{"$f":"'800111A GeneraXBRL'!$C$12","v":"co-svsp-core:NumeroIdentificacionDeudorCxC"}]
["/*",null,{"$f":"'800111A GeneraXBRL'!$D$13","v":"Primer apellido deudor"},{"$f":"'800111A GeneraXBRL'!$C$13","v":"co-svsp-core:PrimerApellidoDeudorCxC"}]
["/*",null,{"$f":"'800111A GeneraXBRL'!$D$14","v":"Segundo apellido deudor"},{"$f":"'800111A GeneraXBRL'!$C$14","v":"co-svsp-core:SegundoApellidoDeudorCxC"}]
["/*",null,{"$f":"'800111A GeneraXBRL'!$D$15","v":"Primer nombre deudor"},{"$f":"'800111A GeneraXBRL'!$C$15","v":"co-svsp-core:PrimerNombreDeudorCxC"}]
["/*",null,{"$f":"'800111A GeneraXBRL'!$D$16","v":"Otros nombres deudor"},{"$f":"'800111A GeneraXBRL'!$C$16","v":"co-svsp-core:OtrosNombresDeudorCxC"}]
["/*",null,{"$f":"'800111A GeneraXBRL'!$D$17","v":"Razón Social deudor"},{"$f":"'800111A GeneraXBRL'!$C$17","v":"co-svsp-core:RazonSocialDeudorCxC"}]
["/*",null,{"$f":"'800111A GeneraXBRL'!$D$18","v":"Dirección deudor"},{"$f":"'800111A GeneraXBRL'!$C$18","v":"co-svsp-core:DireccionDeudorCxC"}]
["/*",null,{"$f":"'800111A GeneraXBRL'!$D$19","v":"Departamento deudor"},{"$f":"'800111A GeneraXBRL'!$C$19","v":"co-svsp-core:DepartamentoDeudorCxC"}]
["/*",null,{"$f":"'800111A GeneraXBRL'!$D$20","v":"Municipio deudor"},{"$f":"'800111A GeneraXBRL'!$C$20","v":"co-svsp-core:MunicipioDeudorCxC"}]
["/*",null,{"$f":"'800111A GeneraXBRL'!$D$21","v":"País deudor"},{"$f":"'800111A GeneraXBRL'!$C$21","v":"co-svsp-core:PaisDeudorCxC"}]
["/*",null,{"$f":"'800111A GeneraXBRL'!$D$22","v":"Saldo cuentas por cobrar"},{"$f":"'800111A GeneraXBRL'!$C$22","v":"co-svsp-core:SaldoCuentasPorCobrarCxC"}]
["/*",null,"--26--"]
["/*",null,{"$f":"'800111A GeneraXBRL'!$D$11","v":"Tipo de documento del deudor"},{"$f":"'800111A GeneraXBRL'!$C$11","v":"co-svsp-core:TipoDeDocumentoDeudorCxC"}]
["/*",null,{"$f":"'800111A GeneraXBRL'!$D$12","v":"Número de identificación del deudor"},{"$f":"'800111A GeneraXBRL'!$C$12","v":"co-svsp-core:NumeroIdentificacionDeudorCxC"}]
["/*",null,{"$f":"'800111A GeneraXBRL'!$D$13","v":"Primer apellido deudor"},{"$f":"'800111A GeneraXBRL'!$C$13","v":"co-svsp-core:PrimerApellidoDeudorCxC"}]
["/*",null,{"$f":"'800111A GeneraXBRL'!$D$14","v":"Segundo apellido deudor"},{"$f":"'800111A GeneraXBRL'!$C$14","v":"co-svsp-core:SegundoApellidoDeudorCxC"}]
["/*",null,{"$f":"'800111A GeneraXBRL'!$D$15","v":"Primer nombre deudor"},{"$f":"'800111A GeneraXBRL'!$C$15","v":"co-svsp-core:PrimerNombreDeudorCxC"}]
["/*",null,{"$f":"'800111A GeneraXBRL'!$D$16","v":"Otros nombres deudor"},{"$f":"'800111A GeneraXBRL'!$C$16","v":"co-svsp-core:OtrosNombresDeudorCxC"}]
["/*",null,{"$f":"'800111A GeneraXBRL'!$D$17","v":"Razón Social deudor"},{"$f":"'800111A GeneraXBRL'!$C$17","v":"co-svsp-core:RazonSocialDeudorCxC"}]
["/*",null,{"$f":"'800111A GeneraXBRL'!$D$18","v":"Dirección deudor"},{"$f":"'800111A GeneraXBRL'!$C$18","v":"co-svsp-core:DireccionDeudorCxC"}]
["/*",null,{"$f":"'800111A GeneraXBRL'!$D$19","v":"Departamento deudor"},{"$f":"'800111A GeneraXBRL'!$C$19","v":"co-svsp-core:DepartamentoDeudorCxC"}]
["/*",null,{"$f":"'800111A GeneraXBRL'!$D$20","v":"Municipio deudor"},{"$f":"'800111A GeneraXBRL'!$C$20","v":"co-svsp-core:MunicipioDeudorCxC"}]
["/*",null,{"$f":"'800111A GeneraXBRL'!$D$21","v":"País deudor"},{"$f":"'800111A GeneraXBRL'!$C$21","v":"co-svsp-core:PaisDeudorCxC"}]
["/*",null,{"$f":"'800111A GeneraXBRL'!$D$22","v":"Saldo cuentas por cobrar"},{"$f":"'800111A GeneraXBRL'!$C$22","v":"co-svsp-core:SaldoCuentasPorCobrarCxC"}]
["/*",null,"--27--"]
["/*",null,{"$f":"'800111A GeneraXBRL'!$D$11","v":"Tipo de documento del deudor"},{"$f":"'800111A GeneraXBRL'!$C$11","v":"co-svsp-core:TipoDeDocumentoDeudorCxC"}]
["/*",null,{"$f":"'800111A GeneraXBRL'!$D$12","v":"Número de identificación del deudor"},{"$f":"'800111A GeneraXBRL'!$C$12","v":"co-svsp-core:NumeroIdentificacionDeudorCxC"}]
["/*",null,{"$f":"'800111A GeneraXBRL'!$D$13","v":"Primer apellido deudor"},{"$f":"'800111A GeneraXBRL'!$C$13","v":"co-svsp-core:PrimerApellidoDeudorCxC"}]
["/*",null,{"$f":"'800111A GeneraXBRL'!$D$14","v":"Segundo apellido deudor"},{"$f":"'800111A GeneraXBRL'!$C$14","v":"co-svsp-core:SegundoApellidoDeudorCxC"}]
["/*",null,{"$f":"'800111A GeneraXBRL'!$D$15","v":"Primer nombre deudor"},{"$f":"'800111A GeneraXBRL'!$C$15","v":"co-svsp-core:PrimerNombreDeudorCxC"}]
["/*",null,{"$f":"'800111A GeneraXBRL'!$D$16","v":"Otros nombres deudor"},{"$f":"'800111A GeneraXBRL'!$C$16","v":"co-svsp-core:OtrosNombresDeudorCxC"}]
["/*",null,{"$f":"'800111A GeneraXBRL'!$D$17","v":"Razón Social deudor"},{"$f":"'800111A GeneraXBRL'!$C$17","v":"co-svsp-core:RazonSocialDeudorCxC"}]
["/*",null,{"$f":"'800111A GeneraXBRL'!$D$18","v":"Dirección deudor"},{"$f":"'800111A GeneraXBRL'!$C$18","v":"co-svsp-core:DireccionDeudorCxC"}]
["/*",null,{"$f":"'800111A GeneraXBRL'!$D$19","v":"Departamento deudor"},{"$f":"'800111A GeneraXBRL'!$C$19","v":"co-svsp-core:DepartamentoDeudorCxC"}]
["/*",null,{"$f":"'800111A GeneraXBRL'!$D$20","v":"Municipio deudor"},{"$f":"'800111A GeneraXBRL'!$C$20","v":"co-svsp-core:MunicipioDeudorCxC"}]
["/*",null,{"$f":"'800111A GeneraXBRL'!$D$21","v":"País deudor"},{"$f":"'800111A GeneraXBRL'!$C$21","v":"co-svsp-core:PaisDeudorCxC"}]
["/*",null,{"$f":"'800111A GeneraXBRL'!$D$22","v":"Saldo cuentas por cobrar"},{"$f":"'800111A GeneraXBRL'!$C$22","v":"co-svsp-core:SaldoCuentasPorCobrarCxC"}]
["/*",null,"--28--"]
["/*",null,{"$f":"'800111A GeneraXBRL'!$D$11","v":"Tipo de documento del deudor"},{"$f":"'800111A GeneraXBRL'!$C$11","v":"co-svsp-core:TipoDeDocumentoDeudorCxC"}]
["/*",null,{"$f":"'800111A GeneraXBRL'!$D$12","v":"Número de identificación del deudor"},{"$f":"'800111A GeneraXBRL'!$C$12","v":"co-svsp-core:NumeroIdentificacionDeudorCxC"}]
["/*",null,{"$f":"'800111A GeneraXBRL'!$D$13","v":"Primer apellido deudor"},{"$f":"'800111A GeneraXBRL'!$C$13","v":"co-svsp-core:PrimerApellidoDeudorCxC"}]
["/*",null,{"$f":"'800111A GeneraXBRL'!$D$14","v":"Segundo apellido deudor"},{"$f":"'800111A GeneraXBRL'!$C$14","v":"co-svsp-core:SegundoApellidoDeudorCxC"}]
[{"$f":"IF(G800=\"\",\"/*\",\"\")","v":"/*"},null,{"$f":"'800111A GeneraXBRL'!$D$15","v":"Primer nombre deudor"},{"$f":"'800111A GeneraXBRL'!$C$15","v":"co-svsp-core:PrimerNombreDeudorCxC"}]
["/*",null,{"$f":"'800111A GeneraXBRL'!$D$16","v":"Otros nombres deudor"},{"$f":"'800111A GeneraXBRL'!$C$16","v":"co-svsp-core:OtrosNombresDeudorCxC"}]
["/*",null,{"$f":"'800111A GeneraXBRL'!$D$17","v":"Razón Social deudor"},{"$f":"'800111A GeneraXBRL'!$C$17","v":"co-svsp-core:RazonSocialDeudorCxC"}]
["/*",null,{"$f":"'800111A GeneraXBRL'!$D$18","v":"Dirección deudor"},{"$f":"'800111A GeneraXBRL'!$C$18","v":"co-svsp-core:DireccionDeudorCxC"}]
["/*",null,{"$f":"'800111A GeneraXBRL'!$D$19","v":"Departamento deudor"},{"$f":"'800111A GeneraXBRL'!$C$19","v":"co-svsp-core:DepartamentoDeudorCxC"}]
["/*",null,{"$f":"'800111A GeneraXBRL'!$D$20","v":"Municipio deudor"},{"$f":"'800111A GeneraXBRL'!$C$20","v":"co-svsp-core:MunicipioDeudorCxC"}]
["/*",null,{"$f":"'800111A GeneraXBRL'!$D$21","v":"País deudor"},{"$f":"'800111A GeneraXBRL'!$C$21","v":"co-svsp-core:PaisDeudorCxC"}]
["/*",null,{"$f":"'800111A GeneraXBRL'!$D$22","v":"Saldo cuentas por cobrar"},{"$f":"'800111A GeneraXBRL'!$C$22","v":"co-svsp-core:SaldoCuentasPorCobrarCxC"}]
["/*",null,"--29--"]
["/*",null,{"$f":"'800111A GeneraXBRL'!$D$11","v":"Tipo de documento del deudor"},{"$f":"'800111A GeneraXBRL'!$C$11","v":"co-svsp-core:TipoDeDocumentoDeudorCxC"}]
["/*",null,{"$f":"'800111A GeneraXBRL'!$D$12","v":"Número de identificación del deudor"},{"$f":"'800111A GeneraXBRL'!$C$12","v":"co-svsp-core:NumeroIdentificacionDeudorCxC"}]
["/*",null,{"$f":"'800111A GeneraXBRL'!$D$13","v":"Primer apellido deudor"},{"$f":"'800111A GeneraXBRL'!$C$13","v":"co-svsp-core:PrimerApellidoDeudorCxC"}]
["/*",null,{"$f":"'800111A GeneraXBRL'!$D$14","v":"Segundo apellido deudor"},{"$f":"'800111A GeneraXBRL'!$C$14","v":"co-svsp-core:SegundoApellidoDeudorCxC"}]
["/*",null,{"$f":"'800111A GeneraXBRL'!$D$15","v":"Primer nombre deudor"},{"$f":"'800111A GeneraXBRL'!$C$15","v":"co-svsp-core:PrimerNombreDeudorCxC"}]
["/*",null,{"$f":"'800111A GeneraXBRL'!$D$16","v":"Otros nombres deudor"},{"$f":"'800111A GeneraXBRL'!$C$16","v":"co-svsp-core:OtrosNombresDeudorCxC"}]
["/*",null,{"$f":"'800111A GeneraXBRL'!$D$17","v":"Razón Social deudor"},{"$f":"'800111A GeneraXBRL'!$C$17","v":"co-svsp-core:RazonSocialDeudorCxC"}]
["/*",null,{"$f":"'800111A GeneraXBRL'!$D$18","v":"Dirección deudor"},{"$f":"'800111A GeneraXBRL'!$C$18","v":"co-svsp-core:DireccionDeudorCxC"}]
["/*",null,{"$f":"'800111A GeneraXBRL'!$D$19","v":"Departamento deudor"},{"$f":"'800111A GeneraXBRL'!$C$19","v":"co-svsp-core:DepartamentoDeudorCxC"}]
["/*",null,{"$f":"'800111A GeneraXBRL'!$D$20","v":"Municipio deudor"},{"$f":"'800111A GeneraXBRL'!$C$20","v":"co-svsp-core:MunicipioDeudorCxC"}]
["/*",null,{"$f":"'800111A GeneraXBRL'!$D$21","v":"País deudor"},{"$f":"'800111A GeneraXBRL'!$C$21","v":"co-svsp-core:PaisDeudorCxC"}]
["/*",null,{"$f":"'800111A GeneraXBRL'!$D$22","v":"Saldo cuentas por cobrar"},{"$f":"'800111A GeneraXBRL'!$C$22","v":"co-svsp-core:SaldoCuentasPorCobrarCxC"}]
["/*",null,"--30--"]
["/*",null,{"$f":"'800111A GeneraXBRL'!$D$11","v":"Tipo de documento del deudor"},{"$f":"'800111A GeneraXBRL'!$C$11","v":"co-svsp-core:TipoDeDocumentoDeudorCxC"}]
["/*",null,{"$f":"'800111A GeneraXBRL'!$D$12","v":"Número de identificación del deudor"},{"$f":"'800111A GeneraXBRL'!$C$12","v":"co-svsp-core:NumeroIdentificacionDeudorCxC"}]
["/*",null,{"$f":"'800111A GeneraXBRL'!$D$13","v":"Primer apellido deudor"},{"$f":"'800111A GeneraXBRL'!$C$13","v":"co-svsp-core:PrimerApellidoDeudorCxC"}]
["/*",null,{"$f":"'800111A GeneraXBRL'!$D$14","v":"Segundo apellido deudor"},{"$f":"'800111A GeneraXBRL'!$C$14","v":"co-svsp-core:SegundoApellidoDeudorCxC"}]
["/*",null,{"$f":"'800111A GeneraXBRL'!$D$15","v":"Primer nombre deudor"},{"$f":"'800111A GeneraXBRL'!$C$15","v":"co-svsp-core:PrimerNombreDeudorCxC"}]
["/*",null,{"$f":"'800111A GeneraXBRL'!$D$16","v":"Otros nombres deudor"},{"$f":"'800111A GeneraXBRL'!$C$16","v":"co-svsp-core:OtrosNombresDeudorCxC"}]
["/*",null,{"$f":"'800111A GeneraXBRL'!$D$17","v":"Razón Social deudor"},{"$f":"'800111A GeneraXBRL'!$C$17","v":"co-svsp-core:RazonSocialDeudorCxC"}]
["/*",null,{"$f":"'800111A GeneraXBRL'!$D$18","v":"Dirección deudor"},{"$f":"'800111A GeneraXBRL'!$C$18","v":"co-svsp-core:DireccionDeudorCxC"}]
["/*",null,{"$f":"'800111A GeneraXBRL'!$D$19","v":"Departamento deudor"},{"$f":"'800111A GeneraXBRL'!$C$19","v":"co-svsp-core:DepartamentoDeudorCxC"}]
["/*",null,{"$f":"'800111A GeneraXBRL'!$D$20","v":"Municipio deudor"},{"$f":"'800111A GeneraXBRL'!$C$20","v":"co-svsp-core:MunicipioDeudorCxC"}]
["/*",null,{"$f":"'800111A GeneraXBRL'!$D$21","v":"País deudor"},{"$f":"'800111A GeneraXBRL'!$C$21","v":"co-svsp-core:PaisDeudorCxC"}]
["/*",null,{"$f":"'800111A GeneraXBRL'!$D$22","v":"Saldo cuentas por cobrar"},{"$f":"'800111A GeneraXBRL'!$C$22","v":"co-svsp-core:SaldoCuentasPorCobrarCxC"}]
["/*",null,"--31--"]
["/*",null,{"$f":"'800111A GeneraXBRL'!$D$11","v":"Tipo de documento del deudor"},{"$f":"'800111A GeneraXBRL'!$C$11","v":"co-svsp-core:TipoDeDocumentoDeudorCxC"}]
["/*",null,{"$f":"'800111A GeneraXBRL'!$D$12","v":"Número de identificación del deudor"},{"$f":"'800111A GeneraXBRL'!$C$12","v":"co-svsp-core:NumeroIdentificacionDeudorCxC"}]
["/*",null,{"$f":"'800111A GeneraXBRL'!$D$13","v":"Primer apellido deudor"},{"$f":"'800111A GeneraXBRL'!$C$13","v":"co-svsp-core:PrimerApellidoDeudorCxC"}]
["/*",null,{"$f":"'800111A GeneraXBRL'!$D$14","v":"Segundo apellido deudor"},{"$f":"'800111A GeneraXBRL'!$C$14","v":"co-svsp-core:SegundoApellidoDeudorCxC"}]
["/*",null,{"$f":"'800111A GeneraXBRL'!$D$15","v":"Primer nombre deudor"},{"$f":"'800111A GeneraXBRL'!$C$15","v":"co-svsp-core:PrimerNombreDeudorCxC"}]
["/*",null,{"$f":"'800111A GeneraXBRL'!$D$16","v":"Otros nombres deudor"},{"$f":"'800111A GeneraXBRL'!$C$16","v":"co-svsp-core:OtrosNombresDeudorCxC"}]
["/*",null,{"$f":"'800111A GeneraXBRL'!$D$17","v":"Razón Social deudor"},{"$f":"'800111A GeneraXBRL'!$C$17","v":"co-svsp-core:RazonSocialDeudorCxC"}]
["/*",null,{"$f":"'800111A GeneraXBRL'!$D$18","v":"Dirección deudor"},{"$f":"'800111A GeneraXBRL'!$C$18","v":"co-svsp-core:DireccionDeudorCxC"}]
["/*",null,{"$f":"'800111A GeneraXBRL'!$D$19","v":"Departamento deudor"},{"$f":"'800111A GeneraXBRL'!$C$19","v":"co-svsp-core:DepartamentoDeudorCxC"}]
["/*",null,{"$f":"'800111A GeneraXBRL'!$D$20","v":"Municipio deudor"},{"$f":"'800111A GeneraXBRL'!$C$20","v":"co-svsp-core:MunicipioDeudorCxC"}]
["/*",null,{"$f":"'800111A GeneraXBRL'!$D$21","v":"País deudor"},{"$f":"'800111A GeneraXBRL'!$C$21","v":"co-svsp-core:PaisDeudorCxC"}]
["/*",null,{"$f":"'800111A GeneraXBRL'!$D$22","v":"Saldo cuentas por cobrar"},{"$f":"'800111A GeneraXBRL'!$C$22","v":"co-svsp-core:SaldoCuentasPorCobrarCxC"}]
["/*",null,"--32--"]
["/*",null,{"$f":"'800111A GeneraXBRL'!$D$11","v":"Tipo de documento del deudor"},{"$f":"'800111A GeneraXBRL'!$C$11","v":"co-svsp-core:TipoDeDocumentoDeudorCxC"}]
["/*",null,{"$f":"'800111A GeneraXBRL'!$D$12","v":"Número de identificación del deudor"},{"$f":"'800111A GeneraXBRL'!$C$12","v":"co-svsp-core:NumeroIdentificacionDeudorCxC"}]
["/*",null,{"$f":"'800111A GeneraXBRL'!$D$13","v":"Primer apellido deudor"},{"$f":"'800111A GeneraXBRL'!$C$13","v":"co-svsp-core:PrimerApellidoDeudorCxC"}]
["/*",null,{"$f":"'800111A GeneraXBRL'!$D$14","v":"Segundo apellido deudor"},{"$f":"'800111A GeneraXBRL'!$C$14","v":"co-svsp-core:SegundoApellidoDeudorCxC"}]
["/*",null,{"$f":"'800111A GeneraXBRL'!$D$15","v":"Primer nombre deudor"},{"$f":"'800111A GeneraXBRL'!$C$15","v":"co-svsp-core:PrimerNombreDeudorCxC"}]
["/*",null,{"$f":"'800111A GeneraXBRL'!$D$16","v":"Otros nombres deudor"},{"$f":"'800111A GeneraXBRL'!$C$16","v":"co-svsp-core:OtrosNombresDeudorCxC"}]
["/*",null,{"$f":"'800111A GeneraXBRL'!$D$17","v":"Razón Social deudor"},{"$f":"'800111A GeneraXBRL'!$C$17","v":"co-svsp-core:RazonSocialDeudorCxC"}]
["/*",null,{"$f":"'800111A GeneraXBRL'!$D$18","v":"Dirección deudor"},{"$f":"'800111A GeneraXBRL'!$C$18","v":"co-svsp-core:DireccionDeudorCxC"}]
["/*",null,{"$f":"'800111A GeneraXBRL'!$D$19","v":"Departamento deudor"},{"$f":"'800111A GeneraXBRL'!$C$19","v":"co-svsp-core:DepartamentoDeudorCxC"}]
["/*",null,{"$f":"'800111A GeneraXBRL'!$D$20","v":"Municipio deudor"},{"$f":"'800111A GeneraXBRL'!$C$20","v":"co-svsp-core:MunicipioDeudorCxC"}]
["/*",null,{"$f":"'800111A GeneraXBRL'!$D$21","v":"País deudor"},{"$f":"'800111A GeneraXBRL'!$C$21","v":"co-svsp-core:PaisDeudorCxC"}]
["/*",null,{"$f":"'800111A GeneraXBRL'!$D$22","v":"Saldo cuentas por cobrar"},{"$f":"'800111A GeneraXBRL'!$C$22","v":"co-svsp-core:SaldoCuentasPorCobrarCxC"}]
["/*",null,"--33--"]
["/*",null,{"$f":"'800111A GeneraXBRL'!$D$11","v":"Tipo de documento del deudor"},{"$f":"'800111A GeneraXBRL'!$C$11","v":"co-svsp-core:TipoDeDocumentoDeudorCxC"}]
["/*",null,{"$f":"'800111A GeneraXBRL'!$D$12","v":"Número de identificación del deudor"},{"$f":"'800111A GeneraXBRL'!$C$12","v":"co-svsp-core:NumeroIdentificacionDeudorCxC"}]
["/*",null,{"$f":"'800111A GeneraXBRL'!$D$13","v":"Primer apellido deudor"},{"$f":"'800111A GeneraXBRL'!$C$13","v":"co-svsp-core:PrimerApellidoDeudorCxC"}]
[{"$f":"IF(G864=\"\",\"/*\",\"\")","v":"/*"},null,{"$f":"'800111A GeneraXBRL'!$D$14","v":"Segundo apellido deudor"},{"$f":"'800111A GeneraXBRL'!$C$14","v":"co-svsp-core:SegundoApellidoDeudorCxC"}]
["/*",null,{"$f":"'800111A GeneraXBRL'!$D$15","v":"Primer nombre deudor"},{"$f":"'800111A GeneraXBRL'!$C$15","v":"co-svsp-core:PrimerNombreDeudorCxC"}]
["/*",null,{"$f":"'800111A GeneraXBRL'!$D$16","v":"Otros nombres deudor"},{"$f":"'800111A GeneraXBRL'!$C$16","v":"co-svsp-core:OtrosNombresDeudorCxC"}]
["/*",null,{"$f":"'800111A GeneraXBRL'!$D$17","v":"Razón Social deudor"},{"$f":"'800111A GeneraXBRL'!$C$17","v":"co-svsp-core:RazonSocialDeudorCxC"}]
["/*",null,{"$f":"'800111A GeneraXBRL'!$D$18","v":"Dirección deudor"},{"$f":"'800111A GeneraXBRL'!$C$18","v":"co-svsp-core:DireccionDeudorCxC"}]
["/*",null,{"$f":"'800111A GeneraXBRL'!$D$19","v":"Departamento deudor"},{"$f":"'800111A GeneraXBRL'!$C$19","v":"co-svsp-core:DepartamentoDeudorCxC"}]
["/*",null,{"$f":"'800111A GeneraXBRL'!$D$20","v":"Municipio deudor"},{"$f":"'800111A GeneraXBRL'!$C$20","v":"co-svsp-core:MunicipioDeudorCxC"}]
["/*",null,{"$f":"'800111A GeneraXBRL'!$D$21","v":"País deudor"},{"$f":"'800111A GeneraXBRL'!$C$21","v":"co-svsp-core:PaisDeudorCxC"}]
["/*",null,{"$f":"'800111A GeneraXBRL'!$D$22","v":"Saldo cuentas por cobrar"},{"$f":"'800111A GeneraXBRL'!$C$22","v":"co-svsp-core:SaldoCuentasPorCobrarCxC"}]
["/*",null,"--34--"]
["/*",null,{"$f":"'800111A GeneraXBRL'!$D$11","v":"Tipo de documento del deudor"},{"$f":"'800111A GeneraXBRL'!$C$11","v":"co-svsp-core:TipoDeDocumentoDeudorCxC"}]
["/*",null,{"$f":"'800111A GeneraXBRL'!$D$12","v":"Número de identificación del deudor"},{"$f":"'800111A GeneraXBRL'!$C$12","v":"co-svsp-core:NumeroIdentificacionDeudorCxC"}]
["/*",null,{"$f":"'800111A GeneraXBRL'!$D$13","v":"Primer apellido deudor"},{"$f":"'800111A GeneraXBRL'!$C$13","v":"co-svsp-core:PrimerApellidoDeudorCxC"}]
["/*",null,{"$f":"'800111A GeneraXBRL'!$D$14","v":"Segundo apellido deudor"},{"$f":"'800111A GeneraXBRL'!$C$14","v":"co-svsp-core:SegundoApellidoDeudorCxC"}]
["/*",null,{"$f":"'800111A GeneraXBRL'!$D$15","v":"Primer nombre deudor"},{"$f":"'800111A GeneraXBRL'!$C$15","v":"co-svsp-core:PrimerNombreDeudorCxC"}]
["/*",null,{"$f":"'800111A GeneraXBRL'!$D$16","v":"Otros nombres deudor"},{"$f":"'800111A GeneraXBRL'!$C$16","v":"co-svsp-core:OtrosNombresDeudorCxC"}]
["/*",null,{"$f":"'800111A GeneraXBRL'!$D$17","v":"Razón Social deudor"},{"$f":"'800111A GeneraXBRL'!$C$17","v":"co-svsp-core:RazonSocialDeudorCxC"}]
["/*",null,{"$f":"'800111A GeneraXBRL'!$D$18","v":"Dirección deudor"},{"$f":"'800111A GeneraXBRL'!$C$18","v":"co-svsp-core:DireccionDeudorCxC"}]
["/*",null,{"$f":"'800111A GeneraXBRL'!$D$19","v":"Departamento deudor"},{"$f":"'800111A GeneraXBRL'!$C$19","v":"co-svsp-core:DepartamentoDeudorCxC"}]
["/*",null,{"$f":"'800111A GeneraXBRL'!$D$20","v":"Municipio deudor"},{"$f":"'800111A GeneraXBRL'!$C$20","v":"co-svsp-core:MunicipioDeudorCxC"}]
["/*",null,{"$f":"'800111A GeneraXBRL'!$D$21","v":"País deudor"},{"$f":"'800111A GeneraXBRL'!$C$21","v":"co-svsp-core:PaisDeudorCxC"}]
["/*",null,{"$f":"'800111A GeneraXBRL'!$D$22","v":"Saldo cuentas por cobrar"},{"$f":"'800111A GeneraXBRL'!$C$22","v":"co-svsp-core:SaldoCuentasPorCobrarCxC"}]
["/*",null,"--35--"]
["/*",null,{"$f":"'800111A GeneraXBRL'!$D$11","v":"Tipo de documento del deudor"},{"$f":"'800111A GeneraXBRL'!$C$11","v":"co-svsp-core:TipoDeDocumentoDeudorCxC"}]
["/*",null,{"$f":"'800111A GeneraXBRL'!$D$12","v":"Número de identificación del deudor"},{"$f":"'800111A GeneraXBRL'!$C$12","v":"co-svsp-core:NumeroIdentificacionDeudorCxC"}]
["/*",null,{"$f":"'800111A GeneraXBRL'!$D$13","v":"Primer apellido deudor"},{"$f":"'800111A GeneraXBRL'!$C$13","v":"co-svsp-core:PrimerApellidoDeudorCxC"}]
["/*",null,{"$f":"'800111A GeneraXBRL'!$D$14","v":"Segundo apellido deudor"},{"$f":"'800111A GeneraXBRL'!$C$14","v":"co-svsp-core:SegundoApellidoDeudorCxC"}]
["/*",null,{"$f":"'800111A GeneraXBRL'!$D$15","v":"Primer nombre deudor"},{"$f":"'800111A GeneraXBRL'!$C$15","v":"co-svsp-core:PrimerNombreDeudorCxC"}]
["/*",null,{"$f":"'800111A GeneraXBRL'!$D$16","v":"Otros nombres deudor"},{"$f":"'800111A GeneraXBRL'!$C$16","v":"co-svsp-core:OtrosNombresDeudorCxC"}]
["/*",null,{"$f":"'800111A GeneraXBRL'!$D$17","v":"Razón Social deudor"},{"$f":"'800111A GeneraXBRL'!$C$17","v":"co-svsp-core:RazonSocialDeudorCxC"}]
["/*",null,{"$f":"'800111A GeneraXBRL'!$D$18","v":"Dirección deudor"},{"$f":"'800111A GeneraXBRL'!$C$18","v":"co-svsp-core:DireccionDeudorCxC"}]
["/*",null,{"$f":"'800111A GeneraXBRL'!$D$19","v":"Departamento deudor"},{"$f":"'800111A GeneraXBRL'!$C$19","v":"co-svsp-core:DepartamentoDeudorCxC"}]
["/*",null,{"$f":"'800111A GeneraXBRL'!$D$20","v":"Municipio deudor"},{"$f":"'800111A GeneraXBRL'!$C$20","v":"co-svsp-core:MunicipioDeudorCxC"}]
["/*",null,{"$f":"'800111A GeneraXBRL'!$D$21","v":"País deudor"},{"$f":"'800111A GeneraXBRL'!$C$21","v":"co-svsp-core:PaisDeudorCxC"}]
["/*",null,{"$f":"'800111A GeneraXBRL'!$D$22","v":"Saldo cuentas por cobrar"},{"$f":"'800111A GeneraXBRL'!$C$22","v":"co-svsp-core:SaldoCuentasPorCobrarCxC"}]
["/*",null,"--36--"]
["/*",null,{"$f":"'800111A GeneraXBRL'!$D$11","v":"Tipo de documento del deudor"},{"$f":"'800111A GeneraXBRL'!$C$11","v":"co-svsp-core:TipoDeDocumentoDeudorCxC"}]
["/*",null,{"$f":"'800111A GeneraXBRL'!$D$12","v":"Número de identificación del deudor"},{"$f":"'800111A GeneraXBRL'!$C$12","v":"co-svsp-core:NumeroIdentificacionDeudorCxC"}]
["/*",null,{"$f":"'800111A GeneraXBRL'!$D$13","v":"Primer apellido deudor"},{"$f":"'800111A GeneraXBRL'!$C$13","v":"co-svsp-core:PrimerApellidoDeudorCxC"}]
["/*",null,{"$f":"'800111A GeneraXBRL'!$D$14","v":"Segundo apellido deudor"},{"$f":"'800111A GeneraXBRL'!$C$14","v":"co-svsp-core:SegundoApellidoDeudorCxC"}]
["/*",null,{"$f":"'800111A GeneraXBRL'!$D$15","v":"Primer nombre deudor"},{"$f":"'800111A GeneraXBRL'!$C$15","v":"co-svsp-core:PrimerNombreDeudorCxC"}]
["/*",null,{"$f":"'800111A GeneraXBRL'!$D$16","v":"Otros nombres deudor"},{"$f":"'800111A GeneraXBRL'!$C$16","v":"co-svsp-core:OtrosNombresDeudorCxC"}]
["/*",null,{"$f":"'800111A GeneraXBRL'!$D$17","v":"Razón Social deudor"},{"$f":"'800111A GeneraXBRL'!$C$17","v":"co-svsp-core:RazonSocialDeudorCxC"}]
["/*",null,{"$f":"'800111A GeneraXBRL'!$D$18","v":"Dirección deudor"},{"$f":"'800111A GeneraXBRL'!$C$18","v":"co-svsp-core:DireccionDeudorCxC"}]
["/*",null,{"$f":"'800111A GeneraXBRL'!$D$19","v":"Departamento deudor"},{"$f":"'800111A GeneraXBRL'!$C$19","v":"co-svsp-core:DepartamentoDeudorCxC"}]
["/*",null,{"$f":"'800111A GeneraXBRL'!$D$20","v":"Municipio deudor"},{"$f":"'800111A GeneraXBRL'!$C$20","v":"co-svsp-core:MunicipioDeudorCxC"}]
["/*",null,{"$f":"'800111A GeneraXBRL'!$D$21","v":"País deudor"},{"$f":"'800111A GeneraXBRL'!$C$21","v":"co-svsp-core:PaisDeudorCxC"}]
["/*",null,{"$f":"'800111A GeneraXBRL'!$D$22","v":"Saldo cuentas por cobrar"},{"$f":"'800111A GeneraXBRL'!$C$22","v":"co-svsp-core:SaldoCuentasPorCobrarCxC"}]
["/*",null,"--37--"]
["/*",null,{"$f":"'800111A GeneraXBRL'!$D$11","v":"Tipo de documento del deudor"},{"$f":"'800111A GeneraXBRL'!$C$11","v":"co-svsp-core:TipoDeDocumentoDeudorCxC"}]
["/*",null,{"$f":"'800111A GeneraXBRL'!$D$12","v":"Número de identificación del deudor"},{"$f":"'800111A GeneraXBRL'!$C$12","v":"co-svsp-core:NumeroIdentificacionDeudorCxC"}]
["/*",null,{"$f":"'800111A GeneraXBRL'!$D$13","v":"Primer apellido deudor"},{"$f":"'800111A GeneraXBRL'!$C$13","v":"co-svsp-core:PrimerApellidoDeudorCxC"}]
["/*",null,{"$f":"'800111A GeneraXBRL'!$D$14","v":"Segundo apellido deudor"},{"$f":"'800111A GeneraXBRL'!$C$14","v":"co-svsp-core:SegundoApellidoDeudorCxC"}]
["/*",null,{"$f":"'800111A GeneraXBRL'!$D$15","v":"Primer nombre deudor"},{"$f":"'800111A GeneraXBRL'!$C$15","v":"co-svsp-core:PrimerNombreDeudorCxC"}]
["/*",null,{"$f":"'800111A GeneraXBRL'!$D$16","v":"Otros nombres deudor"},{"$f":"'800111A GeneraXBRL'!$C$16","v":"co-svsp-core:OtrosNombresDeudorCxC"}]
["/*",null,{"$f":"'800111A GeneraXBRL'!$D$17","v":"Razón Social deudor"},{"$f":"'800111A GeneraXBRL'!$C$17","v":"co-svsp-core:RazonSocialDeudorCxC"}]
["/*",null,{"$f":"'800111A GeneraXBRL'!$D$18","v":"Dirección deudor"},{"$f":"'800111A GeneraXBRL'!$C$18","v":"co-svsp-core:DireccionDeudorCxC"}]
["/*",null,{"$f":"'800111A GeneraXBRL'!$D$19","v":"Departamento deudor"},{"$f":"'800111A GeneraXBRL'!$C$19","v":"co-svsp-core:DepartamentoDeudorCxC"}]
["/*",null,{"$f":"'800111A GeneraXBRL'!$D$20","v":"Municipio deudor"},{"$f":"'800111A GeneraXBRL'!$C$20","v":"co-svsp-core:MunicipioDeudorCxC"}]
["/*",null,{"$f":"'800111A GeneraXBRL'!$D$21","v":"País deudor"},{"$f":"'800111A GeneraXBRL'!$C$21","v":"co-svsp-core:PaisDeudorCxC"}]
["/*",null,{"$f":"'800111A GeneraXBRL'!$D$22","v":"Saldo cuentas por cobrar"},{"$f":"'800111A GeneraXBRL'!$C$22","v":"co-svsp-core:SaldoCuentasPorCobrarCxC"}]
["/*",null,"--38--"]
["/*",null,{"$f":"'800111A GeneraXBRL'!$D$11","v":"Tipo de documento del deudor"},{"$f":"'800111A GeneraXBRL'!$C$11","v":"co-svsp-core:TipoDeDocumentoDeudorCxC"}]
["/*",null,{"$f":"'800111A GeneraXBRL'!$D$12","v":"Número de identificación del deudor"},{"$f":"'800111A GeneraXBRL'!$C$12","v":"co-svsp-core:NumeroIdentificacionDeudorCxC"}]
[{"$f":"IF(G928=\"\",\"/*\",\"\")","v":"/*"},null,{"$f":"'800111A GeneraXBRL'!$D$13","v":"Primer apellido deudor"},{"$f":"'800111A GeneraXBRL'!$C$13","v":"co-svsp-core:PrimerApellidoDeudorCxC"}]
["/*",null,{"$f":"'800111A GeneraXBRL'!$D$14","v":"Segundo apellido deudor"},{"$f":"'800111A GeneraXBRL'!$C$14","v":"co-svsp-core:SegundoApellidoDeudorCxC"}]
["/*",null,{"$f":"'800111A GeneraXBRL'!$D$15","v":"Primer nombre deudor"},{"$f":"'800111A GeneraXBRL'!$C$15","v":"co-svsp-core:PrimerNombreDeudorCxC"}]
["/*",null,{"$f":"'800111A GeneraXBRL'!$D$16","v":"Otros nombres deudor"},{"$f":"'800111A GeneraXBRL'!$C$16","v":"co-svsp-core:OtrosNombresDeudorCxC"}]
["/*",null,{"$f":"'800111A GeneraXBRL'!$D$17","v":"Razón Social deudor"},{"$f":"'800111A GeneraXBRL'!$C$17","v":"co-svsp-core:RazonSocialDeudorCxC"}]
["/*",null,{"$f":"'800111A GeneraXBRL'!$D$18","v":"Dirección deudor"},{"$f":"'800111A GeneraXBRL'!$C$18","v":"co-svsp-core:DireccionDeudorCxC"}]
["/*",null,{"$f":"'800111A GeneraXBRL'!$D$19","v":"Departamento deudor"},{"$f":"'800111A GeneraXBRL'!$C$19","v":"co-svsp-core:DepartamentoDeudorCxC"}]
["/*",null,{"$f":"'800111A GeneraXBRL'!$D$20","v":"Municipio deudor"},{"$f":"'800111A GeneraXBRL'!$C$20","v":"co-svsp-core:MunicipioDeudorCxC"}]
["/*",null,{"$f":"'800111A GeneraXBRL'!$D$21","v":"País deudor"},{"$f":"'800111A GeneraXBRL'!$C$21","v":"co-svsp-core:PaisDeudorCxC"}]
["/*",null,{"$f":"'800111A GeneraXBRL'!$D$22","v":"Saldo cuentas por cobrar"},{"$f":"'800111A GeneraXBRL'!$C$22","v":"co-svsp-core:SaldoCuentasPorCobrarCxC"}]
["/*",null,"--39--"]
["/*",null,{"$f":"'800111A GeneraXBRL'!$D$11","v":"Tipo de documento del deudor"},{"$f":"'800111A GeneraXBRL'!$C$11","v":"co-svsp-core:TipoDeDocumentoDeudorCxC"}]
["/*",null,{"$f":"'800111A GeneraXBRL'!$D$12","v":"Número de identificación del deudor"},{"$f":"'800111A GeneraXBRL'!$C$12","v":"co-svsp-core:NumeroIdentificacionDeudorCxC"}]
["/*",null,{"$f":"'800111A GeneraXBRL'!$D$13","v":"Primer apellido deudor"},{"$f":"'800111A GeneraXBRL'!$C$13","v":"co-svsp-core:PrimerApellidoDeudorCxC"}]
["/*",null,{"$f":"'800111A GeneraXBRL'!$D$14","v":"Segundo apellido deudor"},{"$f":"'800111A GeneraXBRL'!$C$14","v":"co-svsp-core:SegundoApellidoDeudorCxC"}]
["/*",null,{"$f":"'800111A GeneraXBRL'!$D$15","v":"Primer nombre deudor"},{"$f":"'800111A GeneraXBRL'!$C$15","v":"co-svsp-core:PrimerNombreDeudorCxC"}]
["/*",null,{"$f":"'800111A GeneraXBRL'!$D$16","v":"Otros nombres deudor"},{"$f":"'800111A GeneraXBRL'!$C$16","v":"co-svsp-core:OtrosNombresDeudorCxC"}]
["/*",null,{"$f":"'800111A GeneraXBRL'!$D$17","v":"Razón Social deudor"},{"$f":"'800111A GeneraXBRL'!$C$17","v":"co-svsp-core:RazonSocialDeudorCxC"}]
["/*",null,{"$f":"'800111A GeneraXBRL'!$D$18","v":"Dirección deudor"},{"$f":"'800111A GeneraXBRL'!$C$18","v":"co-svsp-core:DireccionDeudorCxC"}]
["/*",null,{"$f":"'800111A GeneraXBRL'!$D$19","v":"Departamento deudor"},{"$f":"'800111A GeneraXBRL'!$C$19","v":"co-svsp-core:DepartamentoDeudorCxC"}]
["/*",null,{"$f":"'800111A GeneraXBRL'!$D$20","v":"Municipio deudor"},{"$f":"'800111A GeneraXBRL'!$C$20","v":"co-svsp-core:MunicipioDeudorCxC"}]
["/*",null,{"$f":"'800111A GeneraXBRL'!$D$21","v":"País deudor"},{"$f":"'800111A GeneraXBRL'!$C$21","v":"co-svsp-core:PaisDeudorCxC"}]
["/*",null,{"$f":"'800111A GeneraXBRL'!$D$22","v":"Saldo cuentas por cobrar"},{"$f":"'800111A GeneraXBRL'!$C$22","v":"co-svsp-core:SaldoCuentasPorCobrarCxC"}]
["/*",null,"--40--"]
["/*",null,{"$f":"'800111A GeneraXBRL'!$D$11","v":"Tipo de documento del deudor"},{"$f":"'800111A GeneraXBRL'!$C$11","v":"co-svsp-core:TipoDeDocumentoDeudorCxC"}]
["/*",null,{"$f":"'800111A GeneraXBRL'!$D$12","v":"Número de identificación del deudor"},{"$f":"'800111A GeneraXBRL'!$C$12","v":"co-svsp-core:NumeroIdentificacionDeudorCxC"}]
["/*",null,{"$f":"'800111A GeneraXBRL'!$D$13","v":"Primer apellido deudor"},{"$f":"'800111A GeneraXBRL'!$C$13","v":"co-svsp-core:PrimerApellidoDeudorCxC"}]
["/*",null,{"$f":"'800111A GeneraXBRL'!$D$14","v":"Segundo apellido deudor"},{"$f":"'800111A GeneraXBRL'!$C$14","v":"co-svsp-core:SegundoApellidoDeudorCxC"}]
["/*",null,{"$f":"'800111A GeneraXBRL'!$D$15","v":"Primer nombre deudor"},{"$f":"'800111A GeneraXBRL'!$C$15","v":"co-svsp-core:PrimerNombreDeudorCxC"}]
["/*",null,{"$f":"'800111A GeneraXBRL'!$D$16","v":"Otros nombres deudor"},{"$f":"'800111A GeneraXBRL'!$C$16","v":"co-svsp-core:OtrosNombresDeudorCxC"}]
["/*",null,{"$f":"'800111A GeneraXBRL'!$D$17","v":"Razón Social deudor"},{"$f":"'800111A GeneraXBRL'!$C$17","v":"co-svsp-core:RazonSocialDeudorCxC"}]
["/*",null,{"$f":"'800111A GeneraXBRL'!$D$18","v":"Dirección deudor"},{"$f":"'800111A GeneraXBRL'!$C$18","v":"co-svsp-core:DireccionDeudorCxC"}]
["/*",null,{"$f":"'800111A GeneraXBRL'!$D$19","v":"Departamento deudor"},{"$f":"'800111A GeneraXBRL'!$C$19","v":"co-svsp-core:DepartamentoDeudorCxC"}]
["/*",null,{"$f":"'800111A GeneraXBRL'!$D$20","v":"Municipio deudor"},{"$f":"'800111A GeneraXBRL'!$C$20","v":"co-svsp-core:MunicipioDeudorCxC"}]
["/*",null,{"$f":"'800111A GeneraXBRL'!$D$21","v":"País deudor"},{"$f":"'800111A GeneraXBRL'!$C$21","v":"co-svsp-core:PaisDeudorCxC"}]
["/*",null,{"$f":"'800111A GeneraXBRL'!$D$22","v":"Saldo cuentas por cobrar"},{"$f":"'800111A GeneraXBRL'!$C$22","v":"co-svsp-core:SaldoCuentasPorCobrarCxC"}]
["/*",null,"--41--"]
["/*",null,{"$f":"'800111A GeneraXBRL'!$D$11","v":"Tipo de documento del deudor"},{"$f":"'800111A GeneraXBRL'!$C$11","v":"co-svsp-core:TipoDeDocumentoDeudorCxC"}]
["/*",null,{"$f":"'800111A GeneraXBRL'!$D$12","v":"Número de identificación del deudor"},{"$f":"'800111A GeneraXBRL'!$C$12","v":"co-svsp-core:NumeroIdentificacionDeudorCxC"}]
["/*",null,{"$f":"'800111A GeneraXBRL'!$D$13","v":"Primer apellido deudor"},{"$f":"'800111A GeneraXBRL'!$C$13","v":"co-svsp-core:PrimerApellidoDeudorCxC"}]
["/*",null,{"$f":"'800111A GeneraXBRL'!$D$14","v":"Segundo apellido deudor"},{"$f":"'800111A GeneraXBRL'!$C$14","v":"co-svsp-core:SegundoApellidoDeudorCxC"}]
["/*",null,{"$f":"'800111A GeneraXBRL'!$D$15","v":"Primer nombre deudor"},{"$f":"'800111A GeneraXBRL'!$C$15","v":"co-svsp-core:PrimerNombreDeudorCxC"}]
["/*",null,{"$f":"'800111A GeneraXBRL'!$D$16","v":"Otros nombres deudor"},{"$f":"'800111A GeneraXBRL'!$C$16","v":"co-svsp-core:OtrosNombresDeudorCxC"}]
["/*",null,{"$f":"'800111A GeneraXBRL'!$D$17","v":"Razón Social deudor"},{"$f":"'800111A GeneraXBRL'!$C$17","v":"co-svsp-core:RazonSocialDeudorCxC"}]
["/*",null,{"$f":"'800111A GeneraXBRL'!$D$18","v":"Dirección deudor"},{"$f":"'800111A GeneraXBRL'!$C$18","v":"co-svsp-core:DireccionDeudorCxC"}]
["/*",null,{"$f":"'800111A GeneraXBRL'!$D$19","v":"Departamento deudor"},{"$f":"'800111A GeneraXBRL'!$C$19","v":"co-svsp-core:DepartamentoDeudorCxC"}]
["/*",null,{"$f":"'800111A GeneraXBRL'!$D$20","v":"Municipio deudor"},{"$f":"'800111A GeneraXBRL'!$C$20","v":"co-svsp-core:MunicipioDeudorCxC"}]
["/*",null,{"$f":"'800111A GeneraXBRL'!$D$21","v":"País deudor"},{"$f":"'800111A GeneraXBRL'!$C$21","v":"co-svsp-core:PaisDeudorCxC"}]
["/*",null,{"$f":"'800111A GeneraXBRL'!$D$22","v":"Saldo cuentas por cobrar"},{"$f":"'800111A GeneraXBRL'!$C$22","v":"co-svsp-core:SaldoCuentasPorCobrarCxC"}]
["/*",null,"--42--"]
["/*",null,{"$f":"'800111A GeneraXBRL'!$D$11","v":"Tipo de documento del deudor"},{"$f":"'800111A GeneraXBRL'!$C$11","v":"co-svsp-core:TipoDeDocumentoDeudorCxC"}]
["/*",null,{"$f":"'800111A GeneraXBRL'!$D$12","v":"Número de identificación del deudor"},{"$f":"'800111A GeneraXBRL'!$C$12","v":"co-svsp-core:NumeroIdentificacionDeudorCxC"}]
["/*",null,{"$f":"'800111A GeneraXBRL'!$D$13","v":"Primer apellido deudor"},{"$f":"'800111A GeneraXBRL'!$C$13","v":"co-svsp-core:PrimerApellidoDeudorCxC"}]
["/*",null,{"$f":"'800111A GeneraXBRL'!$D$14","v":"Segundo apellido deudor"},{"$f":"'800111A GeneraXBRL'!$C$14","v":"co-svsp-core:SegundoApellidoDeudorCxC"}]
["/*",null,{"$f":"'800111A GeneraXBRL'!$D$15","v":"Primer nombre deudor"},{"$f":"'800111A GeneraXBRL'!$C$15","v":"co-svsp-core:PrimerNombreDeudorCxC"}]
["/*",null,{"$f":"'800111A GeneraXBRL'!$D$16","v":"Otros nombres deudor"},{"$f":"'800111A GeneraXBRL'!$C$16","v":"co-svsp-core:OtrosNombresDeudorCxC"}]
["/*",null,{"$f":"'800111A GeneraXBRL'!$D$17","v":"Razón Social deudor"},{"$f":"'800111A GeneraXBRL'!$C$17","v":"co-svsp-core:RazonSocialDeudorCxC"}]
["/*",null,{"$f":"'800111A GeneraXBRL'!$D$18","v":"Dirección deudor"},{"$f":"'800111A GeneraXBRL'!$C$18","v":"co-svsp-core:DireccionDeudorCxC"}]
["/*",null,{"$f":"'800111A GeneraXBRL'!$D$19","v":"Departamento deudor"},{"$f":"'800111A GeneraXBRL'!$C$19","v":"co-svsp-core:DepartamentoDeudorCxC"}]
["/*",null,{"$f":"'800111A GeneraXBRL'!$D$20","v":"Municipio deudor"},{"$f":"'800111A GeneraXBRL'!$C$20","v":"co-svsp-core:MunicipioDeudorCxC"}]
["/*",null,{"$f":"'800111A GeneraXBRL'!$D$21","v":"País deudor"},{"$f":"'800111A GeneraXBRL'!$C$21","v":"co-svsp-core:PaisDeudorCxC"}]
["/*",null,{"$f":"'800111A GeneraXBRL'!$D$22","v":"Saldo cuentas por cobrar"},{"$f":"'800111A GeneraXBRL'!$C$22","v":"co-svsp-core:SaldoCuentasPorCobrarCxC"}]
["/*",null,"--43--"]
["/*",null,{"$f":"'800111A GeneraXBRL'!$D$11","v":"Tipo de documento del deudor"},{"$f":"'800111A GeneraXBRL'!$C$11","v":"co-svsp-core:TipoDeDocumentoDeudorCxC"}]
[{"$f":"IF(G992=\"\",\"/*\",\"\")","v":"/*"},null,{"$f":"'800111A GeneraXBRL'!$D$12","v":"Número de identificación del deudor"},{"$f":"'800111A GeneraXBRL'!$C$12","v":"co-svsp-core:NumeroIdentificacionDeudorCxC"}]
["/*",null,{"$f":"'800111A GeneraXBRL'!$D$13","v":"Primer apellido deudor"},{"$f":"'800111A GeneraXBRL'!$C$13","v":"co-svsp-core:PrimerApellidoDeudorCxC"}]
["/*",null,{"$f":"'800111A GeneraXBRL'!$D$14","v":"Segundo apellido deudor"},{"$f":"'800111A GeneraXBRL'!$C$14","v":"co-svsp-core:SegundoApellidoDeudorCxC"}]
["/*",null,{"$f":"'800111A GeneraXBRL'!$D$15","v":"Primer nombre deudor"},{"$f":"'800111A GeneraXBRL'!$C$15","v":"co-svsp-core:PrimerNombreDeudorCxC"}]
["/*",null,{"$f":"'800111A GeneraXBRL'!$D$16","v":"Otros nombres deudor"},{"$f":"'800111A GeneraXBRL'!$C$16","v":"co-svsp-core:OtrosNombresDeudorCxC"}]
["/*",null,{"$f":"'800111A GeneraXBRL'!$D$17","v":"Razón Social deudor"},{"$f":"'800111A GeneraXBRL'!$C$17","v":"co-svsp-core:RazonSocialDeudorCxC"}]
["/*",null,{"$f":"'800111A GeneraXBRL'!$D$18","v":"Dirección deudor"},{"$f":"'800111A GeneraXBRL'!$C$18","v":"co-svsp-core:DireccionDeudorCxC"}]
["/*",null,{"$f":"'800111A GeneraXBRL'!$D$19","v":"Departamento deudor"},{"$f":"'800111A GeneraXBRL'!$C$19","v":"co-svsp-core:DepartamentoDeudorCxC"}]
["/*",null,{"$f":"'800111A GeneraXBRL'!$D$20","v":"Municipio deudor"},{"$f":"'800111A GeneraXBRL'!$C$20","v":"co-svsp-core:MunicipioDeudorCxC"}]
["/*",null,{"$f":"'800111A GeneraXBRL'!$D$21","v":"País deudor"},{"$f":"'800111A GeneraXBRL'!$C$21","v":"co-svsp-core:PaisDeudorCxC"}]
["/*",null,{"$f":"'800111A GeneraXBRL'!$D$22","v":"Saldo cuentas por cobrar"},{"$f":"'800111A GeneraXBRL'!$C$22","v":"co-svsp-core:SaldoCuentasPorCobrarCxC"}]
["/*",null,"--44--"]
["/*",null,{"$f":"'800111A GeneraXBRL'!$D$11","v":"Tipo de documento del deudor"},{"$f":"'800111A GeneraXBRL'!$C$11","v":"co-svsp-core:TipoDeDocumentoDeudorCxC"}]
["/*",null,{"$f":"'800111A GeneraXBRL'!$D$12","v":"Número de identificación del deudor"},{"$f":"'800111A GeneraXBRL'!$C$12","v":"co-svsp-core:NumeroIdentificacionDeudorCxC"}]
["/*",null,{"$f":"'800111A GeneraXBRL'!$D$13","v":"Primer apellido deudor"},{"$f":"'800111A GeneraXBRL'!$C$13","v":"co-svsp-core:PrimerApellidoDeudorCxC"}]
["/*",null,{"$f":"'800111A GeneraXBRL'!$D$14","v":"Segundo apellido deudor"},{"$f":"'800111A GeneraXBRL'!$C$14","v":"co-svsp-core:SegundoApellidoDeudorCxC"}]
["/*",null,{"$f":"'800111A GeneraXBRL'!$D$15","v":"Primer nombre deudor"},{"$f":"'800111A GeneraXBRL'!$C$15","v":"co-svsp-core:PrimerNombreDeudorCxC"}]
["/*",null,{"$f":"'800111A GeneraXBRL'!$D$16","v":"Otros nombres deudor"},{"$f":"'800111A GeneraXBRL'!$C$16","v":"co-svsp-core:OtrosNombresDeudorCxC"}]
["/*",null,{"$f":"'800111A GeneraXBRL'!$D$17","v":"Razón Social deudor"},{"$f":"'800111A GeneraXBRL'!$C$17","v":"co-svsp-core:RazonSocialDeudorCxC"}]
["/*",null,{"$f":"'800111A GeneraXBRL'!$D$18","v":"Dirección deudor"},{"$f":"'800111A GeneraXBRL'!$C$18","v":"co-svsp-core:DireccionDeudorCxC"}]
["/*",null,{"$f":"'800111A GeneraXBRL'!$D$19","v":"Departamento deudor"},{"$f":"'800111A GeneraXBRL'!$C$19","v":"co-svsp-core:DepartamentoDeudorCxC"}]
["/*",null,{"$f":"'800111A GeneraXBRL'!$D$20","v":"Municipio deudor"},{"$f":"'800111A GeneraXBRL'!$C$20","v":"co-svsp-core:MunicipioDeudorCxC"}]
["/*",null,{"$f":"'800111A GeneraXBRL'!$D$21","v":"País deudor"},{"$f":"'800111A GeneraXBRL'!$C$21","v":"co-svsp-core:PaisDeudorCxC"}]
["/*",null,{"$f":"'800111A GeneraXBRL'!$D$22","v":"Saldo cuentas por cobrar"},{"$f":"'800111A GeneraXBRL'!$C$22","v":"co-svsp-core:SaldoCuentasPorCobrarCxC"}]
["/*",null,"--45--"]
["/*",null,{"$f":"'800111A GeneraXBRL'!$D$11","v":"Tipo de documento del deudor"},{"$f":"'800111A GeneraXBRL'!$C$11","v":"co-svsp-core:TipoDeDocumentoDeudorCxC"}]
["/*",null,{"$f":"'800111A GeneraXBRL'!$D$12","v":"Número de identificación del deudor"},{"$f":"'800111A GeneraXBRL'!$C$12","v":"co-svsp-core:NumeroIdentificacionDeudorCxC"}]
["/*",null,{"$f":"'800111A GeneraXBRL'!$D$13","v":"Primer apellido deudor"},{"$f":"'800111A GeneraXBRL'!$C$13","v":"co-svsp-core:PrimerApellidoDeudorCxC"}]
["/*",null,{"$f":"'800111A GeneraXBRL'!$D$14","v":"Segundo apellido deudor"},{"$f":"'800111A GeneraXBRL'!$C$14","v":"co-svsp-core:SegundoApellidoDeudorCxC"}]
["/*",null,{"$f":"'800111A GeneraXBRL'!$D$15","v":"Primer nombre deudor"},{"$f":"'800111A GeneraXBRL'!$C$15","v":"co-svsp-core:PrimerNombreDeudorCxC"}]
["/*",null,{"$f":"'800111A GeneraXBRL'!$D$16","v":"Otros nombres deudor"},{"$f":"'800111A GeneraXBRL'!$C$16","v":"co-svsp-core:OtrosNombresDeudorCxC"}]
["/*",null,{"$f":"'800111A GeneraXBRL'!$D$17","v":"Razón Social deudor"},{"$f":"'800111A GeneraXBRL'!$C$17","v":"co-svsp-core:RazonSocialDeudorCxC"}]
["/*",null,{"$f":"'800111A GeneraXBRL'!$D$18","v":"Dirección deudor"},{"$f":"'800111A GeneraXBRL'!$C$18","v":"co-svsp-core:DireccionDeudorCxC"}]
["/*",null,{"$f":"'800111A GeneraXBRL'!$D$19","v":"Departamento deudor"},{"$f":"'800111A GeneraXBRL'!$C$19","v":"co-svsp-core:DepartamentoDeudorCxC"}]
["/*",null,{"$f":"'800111A GeneraXBRL'!$D$20","v":"Municipio deudor"},{"$f":"'800111A GeneraXBRL'!$C$20","v":"co-svsp-core:MunicipioDeudorCxC"}]
["/*",null,{"$f":"'800111A GeneraXBRL'!$D$21","v":"País deudor"},{"$f":"'800111A GeneraXBRL'!$C$21","v":"co-svsp-core:PaisDeudorCxC"}]
["/*",null,{"$f":"'800111A GeneraXBRL'!$D$22","v":"Saldo cuentas por cobrar"},{"$f":"'800111A GeneraXBRL'!$C$22","v":"co-svsp-core:SaldoCuentasPorCobrarCxC"}]
["/*",null,"--46--"]
["/*",null,{"$f":"'800111A GeneraXBRL'!$D$11","v":"Tipo de documento del deudor"},{"$f":"'800111A GeneraXBRL'!$C$11","v":"co-svsp-core:TipoDeDocumentoDeudorCxC"}]
["/*",null,{"$f":"'800111A GeneraXBRL'!$D$12","v":"Número de identificación del deudor"},{"$f":"'800111A GeneraXBRL'!$C$12","v":"co-svsp-core:NumeroIdentificacionDeudorCxC"}]
["/*",null,{"$f":"'800111A GeneraXBRL'!$D$13","v":"Primer apellido deudor"},{"$f":"'800111A GeneraXBRL'!$C$13","v":"co-svsp-core:PrimerApellidoDeudorCxC"}]
["/*",null,{"$f":"'800111A GeneraXBRL'!$D$14","v":"Segundo apellido deudor"},{"$f":"'800111A GeneraXBRL'!$C$14","v":"co-svsp-core:SegundoApellidoDeudorCxC"}]
["/*",null,{"$f":"'800111A GeneraXBRL'!$D$15","v":"Primer nombre deudor"},{"$f":"'800111A GeneraXBRL'!$C$15","v":"co-svsp-core:PrimerNombreDeudorCxC"}]
["/*",null,{"$f":"'800111A GeneraXBRL'!$D$16","v":"Otros nombres deudor"},{"$f":"'800111A GeneraXBRL'!$C$16","v":"co-svsp-core:OtrosNombresDeudorCxC"}]
["/*",null,{"$f":"'800111A GeneraXBRL'!$D$17","v":"Razón Social deudor"},{"$f":"'800111A GeneraXBRL'!$C$17","v":"co-svsp-core:RazonSocialDeudorCxC"}]
["/*",null,{"$f":"'800111A GeneraXBRL'!$D$18","v":"Dirección deudor"},{"$f":"'800111A GeneraXBRL'!$C$18","v":"co-svsp-core:DireccionDeudorCxC"}]
["/*",null,{"$f":"'800111A GeneraXBRL'!$D$19","v":"Departamento deudor"},{"$f":"'800111A GeneraXBRL'!$C$19","v":"co-svsp-core:DepartamentoDeudorCxC"}]
["/*",null,{"$f":"'800111A GeneraXBRL'!$D$20","v":"Municipio deudor"},{"$f":"'800111A GeneraXBRL'!$C$20","v":"co-svsp-core:MunicipioDeudorCxC"}]
["/*",null,{"$f":"'800111A GeneraXBRL'!$D$21","v":"País deudor"},{"$f":"'800111A GeneraXBRL'!$C$21","v":"co-svsp-core:PaisDeudorCxC"}]
["/*",null,{"$f":"'800111A GeneraXBRL'!$D$22","v":"Saldo cuentas por cobrar"},{"$f":"'800111A GeneraXBRL'!$C$22","v":"co-svsp-core:SaldoCuentasPorCobrarCxC"}]
["/*",null,"--47--"]
["/*",null,{"$f":"'800111A GeneraXBRL'!$D$11","v":"Tipo de documento del deudor"},{"$f":"'800111A GeneraXBRL'!$C$11","v":"co-svsp-core:TipoDeDocumentoDeudorCxC"}]
["/*",null,{"$f":"'800111A GeneraXBRL'!$D$12","v":"Número de identificación del deudor"},{"$f":"'800111A GeneraXBRL'!$C$12","v":"co-svsp-core:NumeroIdentificacionDeudorCxC"}]
["/*",null,{"$f":"'800111A GeneraXBRL'!$D$13","v":"Primer apellido deudor"},{"$f":"'800111A GeneraXBRL'!$C$13","v":"co-svsp-core:PrimerApellidoDeudorCxC"}]
["/*",null,{"$f":"'800111A GeneraXBRL'!$D$14","v":"Segundo apellido deudor"},{"$f":"'800111A GeneraXBRL'!$C$14","v":"co-svsp-core:SegundoApellidoDeudorCxC"}]
["/*",null,{"$f":"'800111A GeneraXBRL'!$D$15","v":"Primer nombre deudor"},{"$f":"'800111A GeneraXBRL'!$C$15","v":"co-svsp-core:PrimerNombreDeudorCxC"}]
["/*",null,{"$f":"'800111A GeneraXBRL'!$D$16","v":"Otros nombres deudor"},{"$f":"'800111A GeneraXBRL'!$C$16","v":"co-svsp-core:OtrosNombresDeudorCxC"}]
["/*",null,{"$f":"'800111A GeneraXBRL'!$D$17","v":"Razón Social deudor"},{"$f":"'800111A GeneraXBRL'!$C$17","v":"co-svsp-core:RazonSocialDeudorCxC"}]
["/*",null,{"$f":"'800111A GeneraXBRL'!$D$18","v":"Dirección deudor"},{"$f":"'800111A GeneraXBRL'!$C$18","v":"co-svsp-core:DireccionDeudorCxC"}]
["/*",null,{"$f":"'800111A GeneraXBRL'!$D$19","v":"Departamento deudor"},{"$f":"'800111A GeneraXBRL'!$C$19","v":"co-svsp-core:DepartamentoDeudorCxC"}]
["/*",null,{"$f":"'800111A GeneraXBRL'!$D$20","v":"Municipio deudor"},{"$f":"'800111A GeneraXBRL'!$C$20","v":"co-svsp-core:MunicipioDeudorCxC"}]
["/*",null,{"$f":"'800111A GeneraXBRL'!$D$21","v":"País deudor"},{"$f":"'800111A GeneraXBRL'!$C$21","v":"co-svsp-core:PaisDeudorCxC"}]
["/*",null,{"$f":"'800111A GeneraXBRL'!$D$22","v":"Saldo cuentas por cobrar"},{"$f":"'800111A GeneraXBRL'!$C$22","v":"co-svsp-core:SaldoCuentasPorCobrarCxC"}]
["/*",null,"--48--"]
[{"$f":"IF(G1056=\"\",\"/*\",\"\")","v":"/*"},null,{"$f":"'800111A GeneraXBRL'!$D$11","v":"Tipo de documento del deudor"},{"$f":"'800111A GeneraXBRL'!$C$11","v":"co-svsp-core:TipoDeDocumentoDeudorCxC"}]
["/*",null,{"$f":"'800111A GeneraXBRL'!$D$12","v":"Número de identificación del deudor"},{"$f":"'800111A GeneraXBRL'!$C$12","v":"co-svsp-core:NumeroIdentificacionDeudorCxC"}]
["/*",null,{"$f":"'800111A GeneraXBRL'!$D$13","v":"Primer apellido deudor"},{"$f":"'800111A GeneraXBRL'!$C$13","v":"co-svsp-core:PrimerApellidoDeudorCxC"}]
["/*",null,{"$f":"'800111A GeneraXBRL'!$D$14","v":"Segundo apellido deudor"},{"$f":"'800111A GeneraXBRL'!$C$14","v":"co-svsp-core:SegundoApellidoDeudorCxC"}]
["/*",null,{"$f":"'800111A GeneraXBRL'!$D$15","v":"Primer nombre deudor"},{"$f":"'800111A GeneraXBRL'!$C$15","v":"co-svsp-core:PrimerNombreDeudorCxC"}]
["/*",null,{"$f":"'800111A GeneraXBRL'!$D$16","v":"Otros nombres deudor"},{"$f":"'800111A GeneraXBRL'!$C$16","v":"co-svsp-core:OtrosNombresDeudorCxC"}]
["/*",null,{"$f":"'800111A GeneraXBRL'!$D$17","v":"Razón Social deudor"},{"$f":"'800111A GeneraXBRL'!$C$17","v":"co-svsp-core:RazonSocialDeudorCxC"}]
["/*",null,{"$f":"'800111A GeneraXBRL'!$D$18","v":"Dirección deudor"},{"$f":"'800111A GeneraXBRL'!$C$18","v":"co-svsp-core:DireccionDeudorCxC"}]
["/*",null,{"$f":"'800111A GeneraXBRL'!$D$19","v":"Departamento deudor"},{"$f":"'800111A GeneraXBRL'!$C$19","v":"co-svsp-core:DepartamentoDeudorCxC"}]
["/*",null,{"$f":"'800111A GeneraXBRL'!$D$20","v":"Municipio deudor"},{"$f":"'800111A GeneraXBRL'!$C$20","v":"co-svsp-core:MunicipioDeudorCxC"}]
["/*",null,{"$f":"'800111A GeneraXBRL'!$D$21","v":"País deudor"},{"$f":"'800111A GeneraXBRL'!$C$21","v":"co-svsp-core:PaisDeudorCxC"}]
["/*",null,{"$f":"'800111A GeneraXBRL'!$D$22","v":"Saldo cuentas por cobrar"},{"$f":"'800111A GeneraXBRL'!$C$22","v":"co-svsp-core:SaldoCuentasPorCobrarCxC"}]
["/*",null,"--49--"]
["/*",null,{"$f":"'800111A GeneraXBRL'!$D$11","v":"Tipo de documento del deudor"},{"$f":"'800111A GeneraXBRL'!$C$11","v":"co-svsp-core:TipoDeDocumentoDeudorCxC"}]
["/*",null,{"$f":"'800111A GeneraXBRL'!$D$12","v":"Número de identificación del deudor"},{"$f":"'800111A GeneraXBRL'!$C$12","v":"co-svsp-core:NumeroIdentificacionDeudorCxC"}]
["/*",null,{"$f":"'800111A GeneraXBRL'!$D$13","v":"Primer apellido deudor"},{"$f":"'800111A GeneraXBRL'!$C$13","v":"co-svsp-core:PrimerApellidoDeudorCxC"}]
["/*",null,{"$f":"'800111A GeneraXBRL'!$D$14","v":"Segundo apellido deudor"},{"$f":"'800111A GeneraXBRL'!$C$14","v":"co-svsp-core:SegundoApellidoDeudorCxC"}]
["/*",null,{"$f":"'800111A GeneraXBRL'!$D$15","v":"Primer nombre deudor"},{"$f":"'800111A GeneraXBRL'!$C$15","v":"co-svsp-core:PrimerNombreDeudorCxC"}]
["/*",null,{"$f":"'800111A GeneraXBRL'!$D$16","v":"Otros nombres deudor"},{"$f":"'800111A GeneraXBRL'!$C$16","v":"co-svsp-core:OtrosNombresDeudorCxC"}]
["/*",null,{"$f":"'800111A GeneraXBRL'!$D$17","v":"Razón Social deudor"},{"$f":"'800111A GeneraXBRL'!$C$17","v":"co-svsp-core:RazonSocialDeudorCxC"}]
["/*",null,{"$f":"'800111A GeneraXBRL'!$D$18","v":"Dirección deudor"},{"$f":"'800111A GeneraXBRL'!$C$18","v":"co-svsp-core:DireccionDeudorCxC"}]
["/*",null,{"$f":"'800111A GeneraXBRL'!$D$19","v":"Departamento deudor"},{"$f":"'800111A GeneraXBRL'!$C$19","v":"co-svsp-core:DepartamentoDeudorCxC"}]
["/*",null,{"$f":"'800111A GeneraXBRL'!$D$20","v":"Municipio deudor"},{"$f":"'800111A GeneraXBRL'!$C$20","v":"co-svsp-core:MunicipioDeudorCxC"}]
["/*",null,{"$f":"'800111A GeneraXBRL'!$D$21","v":"País deudor"},{"$f":"'800111A GeneraXBRL'!$C$21","v":"co-svsp-core:PaisDeudorCxC"}]
["/*",null,{"$f":"'800111A GeneraXBRL'!$D$22","v":"Saldo cuentas por cobrar"},{"$f":"'800111A GeneraXBRL'!$C$22","v":"co-svsp-core:SaldoCuentasPorCobrarCxC"}]
["/*",null,"--50--"]
["/*",null,{"$f":"'800111A GeneraXBRL'!$D$11","v":"Tipo de documento del deudor"},{"$f":"'800111A GeneraXBRL'!$C$11","v":"co-svsp-core:TipoDeDocumentoDeudorCxC"}]
["/*",null,{"$f":"'800111A GeneraXBRL'!$D$12","v":"Número de identificación del deudor"},{"$f":"'800111A GeneraXBRL'!$C$12","v":"co-svsp-core:NumeroIdentificacionDeudorCxC"}]
["/*",null,{"$f":"'800111A GeneraXBRL'!$D$13","v":"Primer apellido deudor"},{"$f":"'800111A GeneraXBRL'!$C$13","v":"co-svsp-core:PrimerApellidoDeudorCxC"}]
["/*",null,{"$f":"'800111A GeneraXBRL'!$D$14","v":"Segundo apellido deudor"},{"$f":"'800111A GeneraXBRL'!$C$14","v":"co-svsp-core:SegundoApellidoDeudorCxC"}]
["/*",null,{"$f":"'800111A GeneraXBRL'!$D$15","v":"Primer nombre deudor"},{"$f":"'800111A GeneraXBRL'!$C$15","v":"co-svsp-core:PrimerNombreDeudorCxC"}]
["/*",null,{"$f":"'800111A GeneraXBRL'!$D$16","v":"Otros nombres deudor"},{"$f":"'800111A GeneraXBRL'!$C$16","v":"co-svsp-core:OtrosNombresDeudorCxC"}]
["/*",null,{"$f":"'800111A GeneraXBRL'!$D$17","v":"Razón Social deudor"},{"$f":"'800111A GeneraXBRL'!$C$17","v":"co-svsp-core:RazonSocialDeudorCxC"}]
["/*",null,{"$f":"'800111A GeneraXBRL'!$D$18","v":"Dirección deudor"},{"$f":"'800111A GeneraXBRL'!$C$18","v":"co-svsp-core:DireccionDeudorCxC"}]
["/*",null,{"$f":"'800111A GeneraXBRL'!$D$19","v":"Departamento deudor"},{"$f":"'800111A GeneraXBRL'!$C$19","v":"co-svsp-core:DepartamentoDeudorCxC"}]
["/*",null,{"$f":"'800111A GeneraXBRL'!$D$20","v":"Municipio deudor"},{"$f":"'800111A GeneraXBRL'!$C$20","v":"co-svsp-core:MunicipioDeudorCxC"}]
["/*",null,{"$f":"'800111A GeneraXBRL'!$D$21","v":"País deudor"},{"$f":"'800111A GeneraXBRL'!$C$21","v":"co-svsp-core:PaisDeudorCxC"}]
["/*",null,{"$f":"'800111A GeneraXBRL'!$D$22","v":"Saldo cuentas por cobrar"},{"$f":"'800111A GeneraXBRL'!$C$22","v":"co-svsp-core:SaldoCuentasPorCobrarCxC"}]
["/*",null,"--51--"]
["/*",null,{"$f":"'800111A GeneraXBRL'!$D$11","v":"Tipo de documento del deudor"},{"$f":"'800111A GeneraXBRL'!$C$11","v":"co-svsp-core:TipoDeDocumentoDeudorCxC"}]
["/*",null,{"$f":"'800111A GeneraXBRL'!$D$12","v":"Número de identificación del deudor"},{"$f":"'800111A GeneraXBRL'!$C$12","v":"co-svsp-core:NumeroIdentificacionDeudorCxC"}]
["/*",null,{"$f":"'800111A GeneraXBRL'!$D$13","v":"Primer apellido deudor"},{"$f":"'800111A GeneraXBRL'!$C$13","v":"co-svsp-core:PrimerApellidoDeudorCxC"}]
["/*",null,{"$f":"'800111A GeneraXBRL'!$D$14","v":"Segundo apellido deudor"},{"$f":"'800111A GeneraXBRL'!$C$14","v":"co-svsp-core:SegundoApellidoDeudorCxC"}]
["/*",null,{"$f":"'800111A GeneraXBRL'!$D$15","v":"Primer nombre deudor"},{"$f":"'800111A GeneraXBRL'!$C$15","v":"co-svsp-core:PrimerNombreDeudorCxC"}]
["/*",null,{"$f":"'800111A GeneraXBRL'!$D$16","v":"Otros nombres deudor"},{"$f":"'800111A GeneraXBRL'!$C$16","v":"co-svsp-core:OtrosNombresDeudorCxC"}]
["/*",null,{"$f":"'800111A GeneraXBRL'!$D$17","v":"Razón Social deudor"},{"$f":"'800111A GeneraXBRL'!$C$17","v":"co-svsp-core:RazonSocialDeudorCxC"}]
["/*",null,{"$f":"'800111A GeneraXBRL'!$D$18","v":"Dirección deudor"},{"$f":"'800111A GeneraXBRL'!$C$18","v":"co-svsp-core:DireccionDeudorCxC"}]
["/*",null,{"$f":"'800111A GeneraXBRL'!$D$19","v":"Departamento deudor"},{"$f":"'800111A GeneraXBRL'!$C$19","v":"co-svsp-core:DepartamentoDeudorCxC"}]
["/*",null,{"$f":"'800111A GeneraXBRL'!$D$20","v":"Municipio deudor"},{"$f":"'800111A GeneraXBRL'!$C$20","v":"co-svsp-core:MunicipioDeudorCxC"}]
["/*",null,{"$f":"'800111A GeneraXBRL'!$D$21","v":"País deudor"},{"$f":"'800111A GeneraXBRL'!$C$21","v":"co-svsp-core:PaisDeudorCxC"}]
["/*",null,{"$f":"'800111A GeneraXBRL'!$D$22","v":"Saldo cuentas por cobrar"},{"$f":"'800111A GeneraXBRL'!$C$22","v":"co-svsp-core:SaldoCuentasPorCobrarCxC"}]
["/*",null,"--52--"]
["/*",null,{"$f":"'800111A GeneraXBRL'!$D$11","v":"Tipo de documento del deudor"},{"$f":"'800111A GeneraXBRL'!$C$11","v":"co-svsp-core:TipoDeDocumentoDeudorCxC"}]
["/*",null,{"$f":"'800111A GeneraXBRL'!$D$12","v":"Número de identificación del deudor"},{"$f":"'800111A GeneraXBRL'!$C$12","v":"co-svsp-core:NumeroIdentificacionDeudorCxC"}]
["/*",null,{"$f":"'800111A GeneraXBRL'!$D$13","v":"Primer apellido deudor"},{"$f":"'800111A GeneraXBRL'!$C$13","v":"co-svsp-core:PrimerApellidoDeudorCxC"}]
["/*",null,{"$f":"'800111A GeneraXBRL'!$D$14","v":"Segundo apellido deudor"},{"$f":"'800111A GeneraXBRL'!$C$14","v":"co-svsp-core:SegundoApellidoDeudorCxC"}]
["/*",null,{"$f":"'800111A GeneraXBRL'!$D$15","v":"Primer nombre deudor"},{"$f":"'800111A GeneraXBRL'!$C$15","v":"co-svsp-core:PrimerNombreDeudorCxC"}]
["/*",null,{"$f":"'800111A GeneraXBRL'!$D$16","v":"Otros nombres deudor"},{"$f":"'800111A GeneraXBRL'!$C$16","v":"co-svsp-core:OtrosNombresDeudorCxC"}]
["/*",null,{"$f":"'800111A GeneraXBRL'!$D$17","v":"Razón Social deudor"},{"$f":"'800111A GeneraXBRL'!$C$17","v":"co-svsp-core:RazonSocialDeudorCxC"}]
["/*",null,{"$f":"'800111A GeneraXBRL'!$D$18","v":"Dirección deudor"},{"$f":"'800111A GeneraXBRL'!$C$18","v":"co-svsp-core:DireccionDeudorCxC"}]
["/*",null,{"$f":"'800111A GeneraXBRL'!$D$19","v":"Departamento deudor"},{"$f":"'800111A GeneraXBRL'!$C$19","v":"co-svsp-core:DepartamentoDeudorCxC"}]
["/*",null,{"$f":"'800111A GeneraXBRL'!$D$20","v":"Municipio deudor"},{"$f":"'800111A GeneraXBRL'!$C$20","v":"co-svsp-core:MunicipioDeudorCxC"}]
["/*",null,{"$f":"'800111A GeneraXBRL'!$D$21","v":"País deudor"},{"$f":"'800111A GeneraXBRL'!$C$21","v":"co-svsp-core:PaisDeudorCxC"}]
["/*",null,{"$f":"'800111A GeneraXBRL'!$D$22","v":"Saldo cuentas por cobrar"},{"$f":"'800111A GeneraXBRL'!$C$22","v":"co-svsp-core:SaldoCuentasPorCobrarCxC"}]
[{"$f":"IF(G1120=\"\",\"/*\",\"\")","v":"/*"},null,"--53--"]
["/*",null,{"$f":"'800111A GeneraXBRL'!$D$11","v":"Tipo de documento del deudor"},{"$f":"'800111A GeneraXBRL'!$C$11","v":"co-svsp-core:TipoDeDocumentoDeudorCxC"}]
["/*",null,{"$f":"'800111A GeneraXBRL'!$D$12","v":"Número de identificación del deudor"},{"$f":"'800111A GeneraXBRL'!$C$12","v":"co-svsp-core:NumeroIdentificacionDeudorCxC"}]
["/*",null,{"$f":"'800111A GeneraXBRL'!$D$13","v":"Primer apellido deudor"},{"$f":"'800111A GeneraXBRL'!$C$13","v":"co-svsp-core:PrimerApellidoDeudorCxC"}]
["/*",null,{"$f":"'800111A GeneraXBRL'!$D$14","v":"Segundo apellido deudor"},{"$f":"'800111A GeneraXBRL'!$C$14","v":"co-svsp-core:SegundoApellidoDeudorCxC"}]
["/*",null,{"$f":"'800111A GeneraXBRL'!$D$15","v":"Primer nombre deudor"},{"$f":"'800111A GeneraXBRL'!$C$15","v":"co-svsp-core:PrimerNombreDeudorCxC"}]
["/*",null,{"$f":"'800111A GeneraXBRL'!$D$16","v":"Otros nombres deudor"},{"$f":"'800111A GeneraXBRL'!$C$16","v":"co-svsp-core:OtrosNombresDeudorCxC"}]
["/*",null,{"$f":"'800111A GeneraXBRL'!$D$17","v":"Razón Social deudor"},{"$f":"'800111A GeneraXBRL'!$C$17","v":"co-svsp-core:RazonSocialDeudorCxC"}]
["/*",null,{"$f":"'800111A GeneraXBRL'!$D$18","v":"Dirección deudor"},{"$f":"'800111A GeneraXBRL'!$C$18","v":"co-svsp-core:DireccionDeudorCxC"}]
["/*",null,{"$f":"'800111A GeneraXBRL'!$D$19","v":"Departamento deudor"},{"$f":"'800111A GeneraXBRL'!$C$19","v":"co-svsp-core:DepartamentoDeudorCxC"}]
["/*",null,{"$f":"'800111A GeneraXBRL'!$D$20","v":"Municipio deudor"},{"$f":"'800111A GeneraXBRL'!$C$20","v":"co-svsp-core:MunicipioDeudorCxC"}]
["/*",null,{"$f":"'800111A GeneraXBRL'!$D$21","v":"País deudor"},{"$f":"'800111A GeneraXBRL'!$C$21","v":"co-svsp-core:PaisDeudorCxC"}]
["/*",null,{"$f":"'800111A GeneraXBRL'!$D$22","v":"Saldo cuentas por cobrar"},{"$f":"'800111A GeneraXBRL'!$C$22","v":"co-svsp-core:SaldoCuentasPorCobrarCxC"}]
["/*",null,"--54--"]
["/*",null,{"$f":"'800111A GeneraXBRL'!$D$11","v":"Tipo de documento del deudor"},{"$f":"'800111A GeneraXBRL'!$C$11","v":"co-svsp-core:TipoDeDocumentoDeudorCxC"}]
["/*",null,{"$f":"'800111A GeneraXBRL'!$D$12","v":"Número de identificación del deudor"},{"$f":"'800111A GeneraXBRL'!$C$12","v":"co-svsp-core:NumeroIdentificacionDeudorCxC"}]
["/*",null,{"$f":"'800111A GeneraXBRL'!$D$13","v":"Primer apellido deudor"},{"$f":"'800111A GeneraXBRL'!$C$13","v":"co-svsp-core:PrimerApellidoDeudorCxC"}]
["/*",null,{"$f":"'800111A GeneraXBRL'!$D$14","v":"Segundo apellido deudor"},{"$f":"'800111A GeneraXBRL'!$C$14","v":"co-svsp-core:SegundoApellidoDeudorCxC"}]
["/*",null,{"$f":"'800111A GeneraXBRL'!$D$15","v":"Primer nombre deudor"},{"$f":"'800111A GeneraXBRL'!$C$15","v":"co-svsp-core:PrimerNombreDeudorCxC"}]
["/*",null,{"$f":"'800111A GeneraXBRL'!$D$16","v":"Otros nombres deudor"},{"$f":"'800111A GeneraXBRL'!$C$16","v":"co-svsp-core:OtrosNombresDeudorCxC"}]
["/*",null,{"$f":"'800111A GeneraXBRL'!$D$17","v":"Razón Social deudor"},{"$f":"'800111A GeneraXBRL'!$C$17","v":"co-svsp-core:RazonSocialDeudorCxC"}]
["/*",null,{"$f":"'800111A GeneraXBRL'!$D$18","v":"Dirección deudor"},{"$f":"'800111A GeneraXBRL'!$C$18","v":"co-svsp-core:DireccionDeudorCxC"}]
["/*",null,{"$f":"'800111A GeneraXBRL'!$D$19","v":"Departamento deudor"},{"$f":"'800111A GeneraXBRL'!$C$19","v":"co-svsp-core:DepartamentoDeudorCxC"}]
["/*",null,{"$f":"'800111A GeneraXBRL'!$D$20","v":"Municipio deudor"},{"$f":"'800111A GeneraXBRL'!$C$20","v":"co-svsp-core:MunicipioDeudorCxC"}]
["/*",null,{"$f":"'800111A GeneraXBRL'!$D$21","v":"País deudor"},{"$f":"'800111A GeneraXBRL'!$C$21","v":"co-svsp-core:PaisDeudorCxC"}]
["",null,{"$f":"'800111A GeneraXBRL'!$D$22","v":"Saldo cuentas por cobrar"},{"$f":"'800111A GeneraXBRL'!$C$22","v":"co-svsp-core:SaldoCuentasPorCobrarCxC"},0,"peso",{"$f":"'800111A GeneraXBRL'!$BF$22","v":0},0,"http://www.xbrl.org/scheme/companyName",null,{"$f":"Periodos!$C$4","v":"2023-12-31"},{"$f":"'800111A GeneraXBRL'!$D$10","v":"co-svsp-core:DetalleCuentasXCobrar_Eje"},{"$f":"'800111A GeneraXBRL'!$BF$9","v":"co-svsp-core:TotalDetalleCuentasXCobrarClientesMiembro"}]
["/*",null,"--55--"]
["/*",null,{"$f":"'800111A GeneraXBRL'!$D$11","v":"Tipo de documento del deudor"},{"$f":"'800111A GeneraXBRL'!$C$11","v":"co-svsp-core:TipoDeDocumentoDeudorCxC"}]
["/*",null,{"$f":"'800111A GeneraXBRL'!$D$12","v":"Número de identificación del deudor"},{"$f":"'800111A GeneraXBRL'!$C$12","v":"co-svsp-core:NumeroIdentificacionDeudorCxC"}]
["/*",null,{"$f":"'800111A GeneraXBRL'!$D$13","v":"Primer apellido deudor"},{"$f":"'800111A GeneraXBRL'!$C$13","v":"co-svsp-core:PrimerApellidoDeudorCxC"}]
["/*",null,{"$f":"'800111A GeneraXBRL'!$D$14","v":"Segundo apellido deudor"},{"$f":"'800111A GeneraXBRL'!$C$14","v":"co-svsp-core:SegundoApellidoDeudorCxC"}]
["/*",null,{"$f":"'800111A GeneraXBRL'!$D$15","v":"Primer nombre deudor"},{"$f":"'800111A GeneraXBRL'!$C$15","v":"co-svsp-core:PrimerNombreDeudorCxC"}]
["/*",null,{"$f":"'800111A GeneraXBRL'!$D$16","v":"Otros nombres deudor"},{"$f":"'800111A GeneraXBRL'!$C$16","v":"co-svsp-core:OtrosNombresDeudorCxC"}]
["/*",null,{"$f":"'800111A GeneraXBRL'!$D$17","v":"Razón Social deudor"},{"$f":"'800111A GeneraXBRL'!$C$17","v":"co-svsp-core:RazonSocialDeudorCxC"}]
["/*",null,{"$f":"'800111A GeneraXBRL'!$D$18","v":"Dirección deudor"},{"$f":"'800111A GeneraXBRL'!$C$18","v":"co-svsp-core:DireccionDeudorCxC"}]
["/*",null,{"$f":"'800111A GeneraXBRL'!$D$19","v":"Departamento deudor"},{"$f":"'800111A GeneraXBRL'!$C$19","v":"co-svsp-core:DepartamentoDeudorCxC"}]
["/*",null,{"$f":"'800111A GeneraXBRL'!$D$20","v":"Municipio deudor"},{"$f":"'800111A GeneraXBRL'!$C$20","v":"co-svsp-core:MunicipioDeudorCxC"}]
["/*",null,{"$f":"'800111A GeneraXBRL'!$D$21","v":"País deudor"},{"$f":"'800111A GeneraXBRL'!$C$21","v":"co-svsp-core:PaisDeudorCxC"}]
["/*",null,{"$f":"'800111A GeneraXBRL'!$D$22","v":"Saldo cuentas por cobrar"},{"$f":"'800111A GeneraXBRL'!$C$22","v":"co-svsp-core:SaldoCuentasPorCobrarCxC"}]
["/*",null,"--56--"]
["/*",null,{"$f":"'800111A GeneraXBRL'!$D$11","v":"Tipo de documento del deudor"},{"$f":"'800111A GeneraXBRL'!$C$11","v":"co-svsp-core:TipoDeDocumentoDeudorCxC"}]
["/*",null,{"$f":"'800111A GeneraXBRL'!$D$12","v":"Número de identificación del deudor"},{"$f":"'800111A GeneraXBRL'!$C$12","v":"co-svsp-core:NumeroIdentificacionDeudorCxC"}]
["/*",null,{"$f":"'800111A GeneraXBRL'!$D$13","v":"Primer apellido deudor"},{"$f":"'800111A GeneraXBRL'!$C$13","v":"co-svsp-core:PrimerApellidoDeudorCxC"}]
["/*",null,{"$f":"'800111A GeneraXBRL'!$D$14","v":"Segundo apellido deudor"},{"$f":"'800111A GeneraXBRL'!$C$14","v":"co-svsp-core:SegundoApellidoDeudorCxC"}]
["/*",null,{"$f":"'800111A GeneraXBRL'!$D$15","v":"Primer nombre deudor"},{"$f":"'800111A GeneraXBRL'!$C$15","v":"co-svsp-core:PrimerNombreDeudorCxC"}]
["/*",null,{"$f":"'800111A GeneraXBRL'!$D$16","v":"Otros nombres deudor"},{"$f":"'800111A GeneraXBRL'!$C$16","v":"co-svsp-core:OtrosNombresDeudorCxC"}]
["/*",null,{"$f":"'800111A GeneraXBRL'!$D$17","v":"Razón Social deudor"},{"$f":"'800111A GeneraXBRL'!$C$17","v":"co-svsp-core:RazonSocialDeudorCxC"}]
["/*",null,{"$f":"'800111A GeneraXBRL'!$D$18","v":"Dirección deudor"},{"$f":"'800111A GeneraXBRL'!$C$18","v":"co-svsp-core:DireccionDeudorCxC"}]
["/*",null,{"$f":"'800111A GeneraXBRL'!$D$19","v":"Departamento deudor"},{"$f":"'800111A GeneraXBRL'!$C$19","v":"co-svsp-core:DepartamentoDeudorCxC"}]
["/*",null,{"$f":"'800111A GeneraXBRL'!$D$20","v":"Municipio deudor"},{"$f":"'800111A GeneraXBRL'!$C$20","v":"co-svsp-core:MunicipioDeudorCxC"}]
["/*",null,{"$f":"'800111A GeneraXBRL'!$D$21","v":"País deudor"},{"$f":"'800111A GeneraXBRL'!$C$21","v":"co-svsp-core:PaisDeudorCxC"}]
["/*",null,{"$f":"'800111A GeneraXBRL'!$D$22","v":"Saldo cuentas por cobrar"},{"$f":"'800111A GeneraXBRL'!$C$22","v":"co-svsp-core:SaldoCuentasPorCobrarCxC"}]
["/*",null,"--57--"]
["/*",null,{"$f":"'800111A GeneraXBRL'!$D$11","v":"Tipo de documento del deudor"},{"$f":"'800111A GeneraXBRL'!$C$11","v":"co-svsp-core:TipoDeDocumentoDeudorCxC"}]
["/*",null,{"$f":"'800111A GeneraXBRL'!$D$12","v":"Número de identificación del deudor"},{"$f":"'800111A GeneraXBRL'!$C$12","v":"co-svsp-core:NumeroIdentificacionDeudorCxC"}]
["/*",null,{"$f":"'800111A GeneraXBRL'!$D$13","v":"Primer apellido deudor"},{"$f":"'800111A GeneraXBRL'!$C$13","v":"co-svsp-core:PrimerApellidoDeudorCxC"}]
["/*",null,{"$f":"'800111A GeneraXBRL'!$D$14","v":"Segundo apellido deudor"},{"$f":"'800111A GeneraXBRL'!$C$14","v":"co-svsp-core:SegundoApellidoDeudorCxC"}]
["/*",null,{"$f":"'800111A GeneraXBRL'!$D$15","v":"Primer nombre deudor"},{"$f":"'800111A GeneraXBRL'!$C$15","v":"co-svsp-core:PrimerNombreDeudorCxC"}]
["/*",null,{"$f":"'800111A GeneraXBRL'!$D$16","v":"Otros nombres deudor"},{"$f":"'800111A GeneraXBRL'!$C$16","v":"co-svsp-core:OtrosNombresDeudorCxC"}]
["/*",null,{"$f":"'800111A GeneraXBRL'!$D$17","v":"Razón Social deudor"},{"$f":"'800111A GeneraXBRL'!$C$17","v":"co-svsp-core:RazonSocialDeudorCxC"}]
["/*",null,{"$f":"'800111A GeneraXBRL'!$D$18","v":"Dirección deudor"},{"$f":"'800111A GeneraXBRL'!$C$18","v":"co-svsp-core:DireccionDeudorCxC"}]
["/*",null,{"$f":"'800111A GeneraXBRL'!$D$19","v":"Departamento deudor"},{"$f":"'800111A GeneraXBRL'!$C$19","v":"co-svsp-core:DepartamentoDeudorCxC"}]
["/*",null,{"$f":"'800111A GeneraXBRL'!$D$20","v":"Municipio deudor"},{"$f":"'800111A GeneraXBRL'!$C$20","v":"co-svsp-core:MunicipioDeudorCxC"}]
["/*",null,{"$f":"'800111A GeneraXBRL'!$D$21","v":"País deudor"},{"$f":"'800111A GeneraXBRL'!$C$21","v":"co-svsp-core:PaisDeudorCxC"}]
[{"$f":"IF(G1184=\"\",\"/*\",\"\")","v":"/*"},null,{"$f":"'800111A GeneraXBRL'!$D$22","v":"Saldo cuentas por cobrar"},{"$f":"'800111A GeneraXBRL'!$C$22","v":"co-svsp-core:SaldoCuentasPorCobrarCxC"}]
["/*",null,"--58--"]
["/*",null,{"$f":"'800111A GeneraXBRL'!$D$11","v":"Tipo de documento del deudor"},{"$f":"'800111A GeneraXBRL'!$C$11","v":"co-svsp-core:TipoDeDocumentoDeudorCxC"}]
["/*",null,{"$f":"'800111A GeneraXBRL'!$D$12","v":"Número de identificación del deudor"},{"$f":"'800111A GeneraXBRL'!$C$12","v":"co-svsp-core:NumeroIdentificacionDeudorCxC"}]
["/*",null,{"$f":"'800111A GeneraXBRL'!$D$13","v":"Primer apellido deudor"},{"$f":"'800111A GeneraXBRL'!$C$13","v":"co-svsp-core:PrimerApellidoDeudorCxC"}]
["/*",null,{"$f":"'800111A GeneraXBRL'!$D$14","v":"Segundo apellido deudor"},{"$f":"'800111A GeneraXBRL'!$C$14","v":"co-svsp-core:SegundoApellidoDeudorCxC"}]
["/*",null,{"$f":"'800111A GeneraXBRL'!$D$15","v":"Primer nombre deudor"},{"$f":"'800111A GeneraXBRL'!$C$15","v":"co-svsp-core:PrimerNombreDeudorCxC"}]
["/*",null,{"$f":"'800111A GeneraXBRL'!$D$16","v":"Otros nombres deudor"},{"$f":"'800111A GeneraXBRL'!$C$16","v":"co-svsp-core:OtrosNombresDeudorCxC"}]
["/*",null,{"$f":"'800111A GeneraXBRL'!$D$17","v":"Razón Social deudor"},{"$f":"'800111A GeneraXBRL'!$C$17","v":"co-svsp-core:RazonSocialDeudorCxC"}]
["/*",null,{"$f":"'800111A GeneraXBRL'!$D$18","v":"Dirección deudor"},{"$f":"'800111A GeneraXBRL'!$C$18","v":"co-svsp-core:DireccionDeudorCxC"}]
["/*",null,{"$f":"'800111A GeneraXBRL'!$D$19","v":"Departamento deudor"},{"$f":"'800111A GeneraXBRL'!$C$19","v":"co-svsp-core:DepartamentoDeudorCxC"}]
["/*",null,{"$f":"'800111A GeneraXBRL'!$D$20","v":"Municipio deudor"},{"$f":"'800111A GeneraXBRL'!$C$20","v":"co-svsp-core:MunicipioDeudorCxC"}]
["/*",null,{"$f":"'800111A GeneraXBRL'!$D$21","v":"País deudor"},{"$f":"'800111A GeneraXBRL'!$C$21","v":"co-svsp-core:PaisDeudorCxC"}]
["/*",null,{"$f":"'800111A GeneraXBRL'!$D$22","v":"Saldo cuentas por cobrar"},{"$f":"'800111A GeneraXBRL'!$C$22","v":"co-svsp-core:SaldoCuentasPorCobrarCxC"}]
["/*",null,"--59--"]
["/*",null,{"$f":"'800111A GeneraXBRL'!$D$11","v":"Tipo de documento del deudor"},{"$f":"'800111A GeneraXBRL'!$C$11","v":"co-svsp-core:TipoDeDocumentoDeudorCxC"}]
["/*",null,{"$f":"'800111A GeneraXBRL'!$D$12","v":"Número de identificación del deudor"},{"$f":"'800111A GeneraXBRL'!$C$12","v":"co-svsp-core:NumeroIdentificacionDeudorCxC"}]
["/*",null,{"$f":"'800111A GeneraXBRL'!$D$13","v":"Primer apellido deudor"},{"$f":"'800111A GeneraXBRL'!$C$13","v":"co-svsp-core:PrimerApellidoDeudorCxC"}]
["/*",null,{"$f":"'800111A GeneraXBRL'!$D$14","v":"Segundo apellido deudor"},{"$f":"'800111A GeneraXBRL'!$C$14","v":"co-svsp-core:SegundoApellidoDeudorCxC"}]
["/*",null,{"$f":"'800111A GeneraXBRL'!$D$15","v":"Primer nombre deudor"},{"$f":"'800111A GeneraXBRL'!$C$15","v":"co-svsp-core:PrimerNombreDeudorCxC"}]
["/*",null,{"$f":"'800111A GeneraXBRL'!$D$16","v":"Otros nombres deudor"},{"$f":"'800111A GeneraXBRL'!$C$16","v":"co-svsp-core:OtrosNombresDeudorCxC"}]
["/*",null,{"$f":"'800111A GeneraXBRL'!$D$17","v":"Razón Social deudor"},{"$f":"'800111A GeneraXBRL'!$C$17","v":"co-svsp-core:RazonSocialDeudorCxC"}]
["/*",null,{"$f":"'800111A GeneraXBRL'!$D$18","v":"Dirección deudor"},{"$f":"'800111A GeneraXBRL'!$C$18","v":"co-svsp-core:DireccionDeudorCxC"}]
["/*",null,{"$f":"'800111A GeneraXBRL'!$D$19","v":"Departamento deudor"},{"$f":"'800111A GeneraXBRL'!$C$19","v":"co-svsp-core:DepartamentoDeudorCxC"}]
["/*",null,{"$f":"'800111A GeneraXBRL'!$D$20","v":"Municipio deudor"},{"$f":"'800111A GeneraXBRL'!$C$20","v":"co-svsp-core:MunicipioDeudorCxC"}]
["/*",null,{"$f":"'800111A GeneraXBRL'!$D$21","v":"País deudor"},{"$f":"'800111A GeneraXBRL'!$C$21","v":"co-svsp-core:PaisDeudorCxC"}]
["/*",null,{"$f":"'800111A GeneraXBRL'!$D$22","v":"Saldo cuentas por cobrar"},{"$f":"'800111A GeneraXBRL'!$C$22","v":"co-svsp-core:SaldoCuentasPorCobrarCxC"}]
["/*",null,"--60--"]
["/*",null,{"$f":"'800111A GeneraXBRL'!$D$11","v":"Tipo de documento del deudor"},{"$f":"'800111A GeneraXBRL'!$C$11","v":"co-svsp-core:TipoDeDocumentoDeudorCxC"}]
["/*",null,{"$f":"'800111A GeneraXBRL'!$D$12","v":"Número de identificación del deudor"},{"$f":"'800111A GeneraXBRL'!$C$12","v":"co-svsp-core:NumeroIdentificacionDeudorCxC"}]
["/*",null,{"$f":"'800111A GeneraXBRL'!$D$13","v":"Primer apellido deudor"},{"$f":"'800111A GeneraXBRL'!$C$13","v":"co-svsp-core:PrimerApellidoDeudorCxC"}]
["/*",null,{"$f":"'800111A GeneraXBRL'!$D$14","v":"Segundo apellido deudor"},{"$f":"'800111A GeneraXBRL'!$C$14","v":"co-svsp-core:SegundoApellidoDeudorCxC"}]
["/*",null,{"$f":"'800111A GeneraXBRL'!$D$15","v":"Primer nombre deudor"},{"$f":"'800111A GeneraXBRL'!$C$15","v":"co-svsp-core:PrimerNombreDeudorCxC"}]
["/*",null,{"$f":"'800111A GeneraXBRL'!$D$16","v":"Otros nombres deudor"},{"$f":"'800111A GeneraXBRL'!$C$16","v":"co-svsp-core:OtrosNombresDeudorCxC"}]
["/*",null,{"$f":"'800111A GeneraXBRL'!$D$17","v":"Razón Social deudor"},{"$f":"'800111A GeneraXBRL'!$C$17","v":"co-svsp-core:RazonSocialDeudorCxC"}]
["/*",null,{"$f":"'800111A GeneraXBRL'!$D$18","v":"Dirección deudor"},{"$f":"'800111A GeneraXBRL'!$C$18","v":"co-svsp-core:DireccionDeudorCxC"}]
["/*",null,{"$f":"'800111A GeneraXBRL'!$D$19","v":"Departamento deudor"},{"$f":"'800111A GeneraXBRL'!$C$19","v":"co-svsp-core:DepartamentoDeudorCxC"}]
["/*",null,{"$f":"'800111A GeneraXBRL'!$D$20","v":"Municipio deudor"},{"$f":"'800111A GeneraXBRL'!$C$20","v":"co-svsp-core:MunicipioDeudorCxC"}]
["/*",null,{"$f":"'800111A GeneraXBRL'!$D$21","v":"País deudor"},{"$f":"'800111A GeneraXBRL'!$C$21","v":"co-svsp-core:PaisDeudorCxC"}]
["/*",null,{"$f":"'800111A GeneraXBRL'!$D$22","v":"Saldo cuentas por cobrar"},{"$f":"'800111A GeneraXBRL'!$C$22","v":"co-svsp-core:SaldoCuentasPorCobrarCxC"}]
["/*",null,"--61--"]
["/*",null,{"$f":"'800111A GeneraXBRL'!$D$11","v":"Tipo de documento del deudor"},{"$f":"'800111A GeneraXBRL'!$C$11","v":"co-svsp-core:TipoDeDocumentoDeudorCxC"}]
["/*",null,{"$f":"'800111A GeneraXBRL'!$D$12","v":"Número de identificación del deudor"},{"$f":"'800111A GeneraXBRL'!$C$12","v":"co-svsp-core:NumeroIdentificacionDeudorCxC"}]
["/*",null,{"$f":"'800111A GeneraXBRL'!$D$13","v":"Primer apellido deudor"},{"$f":"'800111A GeneraXBRL'!$C$13","v":"co-svsp-core:PrimerApellidoDeudorCxC"}]
["/*",null,{"$f":"'800111A GeneraXBRL'!$D$14","v":"Segundo apellido deudor"},{"$f":"'800111A GeneraXBRL'!$C$14","v":"co-svsp-core:SegundoApellidoDeudorCxC"}]
["/*",null,{"$f":"'800111A GeneraXBRL'!$D$15","v":"Primer nombre deudor"},{"$f":"'800111A GeneraXBRL'!$C$15","v":"co-svsp-core:PrimerNombreDeudorCxC"}]
["/*",null,{"$f":"'800111A GeneraXBRL'!$D$16","v":"Otros nombres deudor"},{"$f":"'800111A GeneraXBRL'!$C$16","v":"co-svsp-core:OtrosNombresDeudorCxC"}]
["/*",null,{"$f":"'800111A GeneraXBRL'!$D$17","v":"Razón Social deudor"},{"$f":"'800111A GeneraXBRL'!$C$17","v":"co-svsp-core:RazonSocialDeudorCxC"}]
["/*",null,{"$f":"'800111A GeneraXBRL'!$D$18","v":"Dirección deudor"},{"$f":"'800111A GeneraXBRL'!$C$18","v":"co-svsp-core:DireccionDeudorCxC"}]
["/*",null,{"$f":"'800111A GeneraXBRL'!$D$19","v":"Departamento deudor"},{"$f":"'800111A GeneraXBRL'!$C$19","v":"co-svsp-core:DepartamentoDeudorCxC"}]
["/*",null,{"$f":"'800111A GeneraXBRL'!$D$20","v":"Municipio deudor"},{"$f":"'800111A GeneraXBRL'!$C$20","v":"co-svsp-core:MunicipioDeudorCxC"}]
["/*",null,{"$f":"'800111A GeneraXBRL'!$D$21","v":"País deudor"},{"$f":"'800111A GeneraXBRL'!$C$21","v":"co-svsp-core:PaisDeudorCxC"}]
["/*",null,{"$f":"'800111A GeneraXBRL'!$D$22","v":"Saldo cuentas por cobrar"},{"$f":"'800111A GeneraXBRL'!$C$22","v":"co-svsp-core:SaldoCuentasPorCobrarCxC"}]
["/*",null,"--62--"]
["/*",null,{"$f":"'800111A GeneraXBRL'!$D$11","v":"Tipo de documento del deudor"},{"$f":"'800111A GeneraXBRL'!$C$11","v":"co-svsp-core:TipoDeDocumentoDeudorCxC"}]
["/*",null,{"$f":"'800111A GeneraXBRL'!$D$12","v":"Número de identificación del deudor"},{"$f":"'800111A GeneraXBRL'!$C$12","v":"co-svsp-core:NumeroIdentificacionDeudorCxC"}]
["/*",null,{"$f":"'800111A GeneraXBRL'!$D$13","v":"Primer apellido deudor"},{"$f":"'800111A GeneraXBRL'!$C$13","v":"co-svsp-core:PrimerApellidoDeudorCxC"}]
["/*",null,{"$f":"'800111A GeneraXBRL'!$D$14","v":"Segundo apellido deudor"},{"$f":"'800111A GeneraXBRL'!$C$14","v":"co-svsp-core:SegundoApellidoDeudorCxC"}]
["/*",null,{"$f":"'800111A GeneraXBRL'!$D$15","v":"Primer nombre deudor"},{"$f":"'800111A GeneraXBRL'!$C$15","v":"co-svsp-core:PrimerNombreDeudorCxC"}]
["/*",null,{"$f":"'800111A GeneraXBRL'!$D$16","v":"Otros nombres deudor"},{"$f":"'800111A GeneraXBRL'!$C$16","v":"co-svsp-core:OtrosNombresDeudorCxC"}]
["/*",null,{"$f":"'800111A GeneraXBRL'!$D$17","v":"Razón Social deudor"},{"$f":"'800111A GeneraXBRL'!$C$17","v":"co-svsp-core:RazonSocialDeudorCxC"}]
["/*",null,{"$f":"'800111A GeneraXBRL'!$D$18","v":"Dirección deudor"},{"$f":"'800111A GeneraXBRL'!$C$18","v":"co-svsp-core:DireccionDeudorCxC"}]
["/*",null,{"$f":"'800111A GeneraXBRL'!$D$19","v":"Departamento deudor"},{"$f":"'800111A GeneraXBRL'!$C$19","v":"co-svsp-core:DepartamentoDeudorCxC"}]
["/*",null,{"$f":"'800111A GeneraXBRL'!$D$20","v":"Municipio deudor"},{"$f":"'800111A GeneraXBRL'!$C$20","v":"co-svsp-core:MunicipioDeudorCxC"}]
[{"$f":"IF(G1248=\"\",\"/*\",\"\")","v":"/*"},null,{"$f":"'800111A GeneraXBRL'!$D$21","v":"País deudor"},{"$f":"'800111A GeneraXBRL'!$C$21","v":"co-svsp-core:PaisDeudorCxC"}]
["/*",null,{"$f":"'800111A GeneraXBRL'!$D$22","v":"Saldo cuentas por cobrar"},{"$f":"'800111A GeneraXBRL'!$C$22","v":"co-svsp-core:SaldoCuentasPorCobrarCxC"}]
["/*",null,"--63--"]
["/*",null,{"$f":"'800111A GeneraXBRL'!$D$11","v":"Tipo de documento del deudor"},{"$f":"'800111A GeneraXBRL'!$C$11","v":"co-svsp-core:TipoDeDocumentoDeudorCxC"}]
["/*",null,{"$f":"'800111A GeneraXBRL'!$D$12","v":"Número de identificación del deudor"},{"$f":"'800111A GeneraXBRL'!$C$12","v":"co-svsp-core:NumeroIdentificacionDeudorCxC"}]
["/*",null,{"$f":"'800111A GeneraXBRL'!$D$13","v":"Primer apellido deudor"},{"$f":"'800111A GeneraXBRL'!$C$13","v":"co-svsp-core:PrimerApellidoDeudorCxC"}]
["/*",null,{"$f":"'800111A GeneraXBRL'!$D$14","v":"Segundo apellido deudor"},{"$f":"'800111A GeneraXBRL'!$C$14","v":"co-svsp-core:SegundoApellidoDeudorCxC"}]
["/*",null,{"$f":"'800111A GeneraXBRL'!$D$15","v":"Primer nombre deudor"},{"$f":"'800111A GeneraXBRL'!$C$15","v":"co-svsp-core:PrimerNombreDeudorCxC"}]
["/*",null,{"$f":"'800111A GeneraXBRL'!$D$16","v":"Otros nombres deudor"},{"$f":"'800111A GeneraXBRL'!$C$16","v":"co-svsp-core:OtrosNombresDeudorCxC"}]
["/*",null,{"$f":"'800111A GeneraXBRL'!$D$17","v":"Razón Social deudor"},{"$f":"'800111A GeneraXBRL'!$C$17","v":"co-svsp-core:RazonSocialDeudorCxC"}]
["/*",null,{"$f":"'800111A GeneraXBRL'!$D$18","v":"Dirección deudor"},{"$f":"'800111A GeneraXBRL'!$C$18","v":"co-svsp-core:DireccionDeudorCxC"}]
["/*",null,{"$f":"'800111A GeneraXBRL'!$D$19","v":"Departamento deudor"},{"$f":"'800111A GeneraXBRL'!$C$19","v":"co-svsp-core:DepartamentoDeudorCxC"}]
["/*",null,{"$f":"'800111A GeneraXBRL'!$D$20","v":"Municipio deudor"},{"$f":"'800111A GeneraXBRL'!$C$20","v":"co-svsp-core:MunicipioDeudorCxC"}]
["/*",null,{"$f":"'800111A GeneraXBRL'!$D$21","v":"País deudor"},{"$f":"'800111A GeneraXBRL'!$C$21","v":"co-svsp-core:PaisDeudorCxC"}]
["/*",null,{"$f":"'800111A GeneraXBRL'!$D$22","v":"Saldo cuentas por cobrar"},{"$f":"'800111A GeneraXBRL'!$C$22","v":"co-svsp-core:SaldoCuentasPorCobrarCxC"}]
["/*",null,"--64--"]
["/*",null,{"$f":"'800111A GeneraXBRL'!$D$11","v":"Tipo de documento del deudor"},{"$f":"'800111A GeneraXBRL'!$C$11","v":"co-svsp-core:TipoDeDocumentoDeudorCxC"}]
["/*",null,{"$f":"'800111A GeneraXBRL'!$D$12","v":"Número de identificación del deudor"},{"$f":"'800111A GeneraXBRL'!$C$12","v":"co-svsp-core:NumeroIdentificacionDeudorCxC"}]
["/*",null,{"$f":"'800111A GeneraXBRL'!$D$13","v":"Primer apellido deudor"},{"$f":"'800111A GeneraXBRL'!$C$13","v":"co-svsp-core:PrimerApellidoDeudorCxC"}]
["/*",null,{"$f":"'800111A GeneraXBRL'!$D$14","v":"Segundo apellido deudor"},{"$f":"'800111A GeneraXBRL'!$C$14","v":"co-svsp-core:SegundoApellidoDeudorCxC"}]
["/*",null,{"$f":"'800111A GeneraXBRL'!$D$15","v":"Primer nombre deudor"},{"$f":"'800111A GeneraXBRL'!$C$15","v":"co-svsp-core:PrimerNombreDeudorCxC"}]
["/*",null,{"$f":"'800111A GeneraXBRL'!$D$16","v":"Otros nombres deudor"},{"$f":"'800111A GeneraXBRL'!$C$16","v":"co-svsp-core:OtrosNombresDeudorCxC"}]
["/*",null,{"$f":"'800111A GeneraXBRL'!$D$17","v":"Razón Social deudor"},{"$f":"'800111A GeneraXBRL'!$C$17","v":"co-svsp-core:RazonSocialDeudorCxC"}]
["/*",null,{"$f":"'800111A GeneraXBRL'!$D$18","v":"Dirección deudor"},{"$f":"'800111A GeneraXBRL'!$C$18","v":"co-svsp-core:DireccionDeudorCxC"}]
["/*",null,{"$f":"'800111A GeneraXBRL'!$D$19","v":"Departamento deudor"},{"$f":"'800111A GeneraXBRL'!$C$19","v":"co-svsp-core:DepartamentoDeudorCxC"}]
["/*",null,{"$f":"'800111A GeneraXBRL'!$D$20","v":"Municipio deudor"},{"$f":"'800111A GeneraXBRL'!$C$20","v":"co-svsp-core:MunicipioDeudorCxC"}]
["/*",null,{"$f":"'800111A GeneraXBRL'!$D$21","v":"País deudor"},{"$f":"'800111A GeneraXBRL'!$C$21","v":"co-svsp-core:PaisDeudorCxC"}]
["/*",null,{"$f":"'800111A GeneraXBRL'!$D$22","v":"Saldo cuentas por cobrar"},{"$f":"'800111A GeneraXBRL'!$C$22","v":"co-svsp-core:SaldoCuentasPorCobrarCxC"}]
["/*",null,"--65--"]
["/*",null,{"$f":"'800111A GeneraXBRL'!$D$11","v":"Tipo de documento del deudor"},{"$f":"'800111A GeneraXBRL'!$C$11","v":"co-svsp-core:TipoDeDocumentoDeudorCxC"}]
["/*",null,{"$f":"'800111A GeneraXBRL'!$D$12","v":"Número de identificación del deudor"},{"$f":"'800111A GeneraXBRL'!$C$12","v":"co-svsp-core:NumeroIdentificacionDeudorCxC"}]
["/*",null,{"$f":"'800111A GeneraXBRL'!$D$13","v":"Primer apellido deudor"},{"$f":"'800111A GeneraXBRL'!$C$13","v":"co-svsp-core:PrimerApellidoDeudorCxC"}]
["/*",null,{"$f":"'800111A GeneraXBRL'!$D$14","v":"Segundo apellido deudor"},{"$f":"'800111A GeneraXBRL'!$C$14","v":"co-svsp-core:SegundoApellidoDeudorCxC"}]
["/*",null,{"$f":"'800111A GeneraXBRL'!$D$15","v":"Primer nombre deudor"},{"$f":"'800111A GeneraXBRL'!$C$15","v":"co-svsp-core:PrimerNombreDeudorCxC"}]
["/*",null,{"$f":"'800111A GeneraXBRL'!$D$16","v":"Otros nombres deudor"},{"$f":"'800111A GeneraXBRL'!$C$16","v":"co-svsp-core:OtrosNombresDeudorCxC"}]
["/*",null,{"$f":"'800111A GeneraXBRL'!$D$17","v":"Razón Social deudor"},{"$f":"'800111A GeneraXBRL'!$C$17","v":"co-svsp-core:RazonSocialDeudorCxC"}]
["/*",null,{"$f":"'800111A GeneraXBRL'!$D$18","v":"Dirección deudor"},{"$f":"'800111A GeneraXBRL'!$C$18","v":"co-svsp-core:DireccionDeudorCxC"}]
["/*",null,{"$f":"'800111A GeneraXBRL'!$D$19","v":"Departamento deudor"},{"$f":"'800111A GeneraXBRL'!$C$19","v":"co-svsp-core:DepartamentoDeudorCxC"}]
["/*",null,{"$f":"'800111A GeneraXBRL'!$D$20","v":"Municipio deudor"},{"$f":"'800111A GeneraXBRL'!$C$20","v":"co-svsp-core:MunicipioDeudorCxC"}]
["/*",null,{"$f":"'800111A GeneraXBRL'!$D$21","v":"País deudor"},{"$f":"'800111A GeneraXBRL'!$C$21","v":"co-svsp-core:PaisDeudorCxC"}]
["/*",null,{"$f":"'800111A GeneraXBRL'!$D$22","v":"Saldo cuentas por cobrar"},{"$f":"'800111A GeneraXBRL'!$C$22","v":"co-svsp-core:SaldoCuentasPorCobrarCxC"}]
["/*",null,"--66--"]
["/*",null,{"$f":"'800111A GeneraXBRL'!$D$11","v":"Tipo de documento del deudor"},{"$f":"'800111A GeneraXBRL'!$C$11","v":"co-svsp-core:TipoDeDocumentoDeudorCxC"}]
["/*",null,{"$f":"'800111A GeneraXBRL'!$D$12","v":"Número de identificación del deudor"},{"$f":"'800111A GeneraXBRL'!$C$12","v":"co-svsp-core:NumeroIdentificacionDeudorCxC"}]
["/*",null,{"$f":"'800111A GeneraXBRL'!$D$13","v":"Primer apellido deudor"},{"$f":"'800111A GeneraXBRL'!$C$13","v":"co-svsp-core:PrimerApellidoDeudorCxC"}]
["/*",null,{"$f":"'800111A GeneraXBRL'!$D$14","v":"Segundo apellido deudor"},{"$f":"'800111A GeneraXBRL'!$C$14","v":"co-svsp-core:SegundoApellidoDeudorCxC"}]
["/*",null,{"$f":"'800111A GeneraXBRL'!$D$15","v":"Primer nombre deudor"},{"$f":"'800111A GeneraXBRL'!$C$15","v":"co-svsp-core:PrimerNombreDeudorCxC"}]
["/*",null,{"$f":"'800111A GeneraXBRL'!$D$16","v":"Otros nombres deudor"},{"$f":"'800111A GeneraXBRL'!$C$16","v":"co-svsp-core:OtrosNombresDeudorCxC"}]
["/*",null,{"$f":"'800111A GeneraXBRL'!$D$17","v":"Razón Social deudor"},{"$f":"'800111A GeneraXBRL'!$C$17","v":"co-svsp-core:RazonSocialDeudorCxC"}]
["/*",null,{"$f":"'800111A GeneraXBRL'!$D$18","v":"Dirección deudor"},{"$f":"'800111A GeneraXBRL'!$C$18","v":"co-svsp-core:DireccionDeudorCxC"}]
["/*",null,{"$f":"'800111A GeneraXBRL'!$D$19","v":"Departamento deudor"},{"$f":"'800111A GeneraXBRL'!$C$19","v":"co-svsp-core:DepartamentoDeudorCxC"}]
["/*",null,{"$f":"'800111A GeneraXBRL'!$D$20","v":"Municipio deudor"},{"$f":"'800111A GeneraXBRL'!$C$20","v":"co-svsp-core:MunicipioDeudorCxC"}]
["/*",null,{"$f":"'800111A GeneraXBRL'!$D$21","v":"País deudor"},{"$f":"'800111A GeneraXBRL'!$C$21","v":"co-svsp-core:PaisDeudorCxC"}]
["/*",null,{"$f":"'800111A GeneraXBRL'!$D$22","v":"Saldo cuentas por cobrar"},{"$f":"'800111A GeneraXBRL'!$C$22","v":"co-svsp-core:SaldoCuentasPorCobrarCxC"}]
["/*",null,"--67--"]
["/*",null,{"$f":"'800111A GeneraXBRL'!$D$11","v":"Tipo de documento del deudor"},{"$f":"'800111A GeneraXBRL'!$C$11","v":"co-svsp-core:TipoDeDocumentoDeudorCxC"}]
["/*",null,{"$f":"'800111A GeneraXBRL'!$D$12","v":"Número de identificación del deudor"},{"$f":"'800111A GeneraXBRL'!$C$12","v":"co-svsp-core:NumeroIdentificacionDeudorCxC"}]
["/*",null,{"$f":"'800111A GeneraXBRL'!$D$13","v":"Primer apellido deudor"},{"$f":"'800111A GeneraXBRL'!$C$13","v":"co-svsp-core:PrimerApellidoDeudorCxC"}]
["/*",null,{"$f":"'800111A GeneraXBRL'!$D$14","v":"Segundo apellido deudor"},{"$f":"'800111A GeneraXBRL'!$C$14","v":"co-svsp-core:SegundoApellidoDeudorCxC"}]
["/*",null,{"$f":"'800111A GeneraXBRL'!$D$15","v":"Primer nombre deudor"},{"$f":"'800111A GeneraXBRL'!$C$15","v":"co-svsp-core:PrimerNombreDeudorCxC"}]
["/*",null,{"$f":"'800111A GeneraXBRL'!$D$16","v":"Otros nombres deudor"},{"$f":"'800111A GeneraXBRL'!$C$16","v":"co-svsp-core:OtrosNombresDeudorCxC"}]
["/*",null,{"$f":"'800111A GeneraXBRL'!$D$17","v":"Razón Social deudor"},{"$f":"'800111A GeneraXBRL'!$C$17","v":"co-svsp-core:RazonSocialDeudorCxC"}]
["/*",null,{"$f":"'800111A GeneraXBRL'!$D$18","v":"Dirección deudor"},{"$f":"'800111A GeneraXBRL'!$C$18","v":"co-svsp-core:DireccionDeudorCxC"}]
["/*",null,{"$f":"'800111A GeneraXBRL'!$D$19","v":"Departamento deudor"},{"$f":"'800111A GeneraXBRL'!$C$19","v":"co-svsp-core:DepartamentoDeudorCxC"}]
[{"$f":"IF(G1312=\"\",\"/*\",\"\")","v":"/*"},null,{"$f":"'800111A GeneraXBRL'!$D$20","v":"Municipio deudor"},{"$f":"'800111A GeneraXBRL'!$C$20","v":"co-svsp-core:MunicipioDeudorCxC"}]
["/*",null,{"$f":"'800111A GeneraXBRL'!$D$21","v":"País deudor"},{"$f":"'800111A GeneraXBRL'!$C$21","v":"co-svsp-core:PaisDeudorCxC"}]
["/*",null,{"$f":"'800111A GeneraXBRL'!$D$22","v":"Saldo cuentas por cobrar"},{"$f":"'800111A GeneraXBRL'!$C$22","v":"co-svsp-core:SaldoCuentasPorCobrarCxC"}]
["/*",null,"--68--"]
["/*",null,{"$f":"'800111A GeneraXBRL'!$D$11","v":"Tipo de documento del deudor"},{"$f":"'800111A GeneraXBRL'!$C$11","v":"co-svsp-core:TipoDeDocumentoDeudorCxC"}]
["/*",null,{"$f":"'800111A GeneraXBRL'!$D$12","v":"Número de identificación del deudor"},{"$f":"'800111A GeneraXBRL'!$C$12","v":"co-svsp-core:NumeroIdentificacionDeudorCxC"}]
["/*",null,{"$f":"'800111A GeneraXBRL'!$D$13","v":"Primer apellido deudor"},{"$f":"'800111A GeneraXBRL'!$C$13","v":"co-svsp-core:PrimerApellidoDeudorCxC"}]
["/*",null,{"$f":"'800111A GeneraXBRL'!$D$14","v":"Segundo apellido deudor"},{"$f":"'800111A GeneraXBRL'!$C$14","v":"co-svsp-core:SegundoApellidoDeudorCxC"}]
["/*",null,{"$f":"'800111A GeneraXBRL'!$D$15","v":"Primer nombre deudor"},{"$f":"'800111A GeneraXBRL'!$C$15","v":"co-svsp-core:PrimerNombreDeudorCxC"}]
["/*",null,{"$f":"'800111A GeneraXBRL'!$D$16","v":"Otros nombres deudor"},{"$f":"'800111A GeneraXBRL'!$C$16","v":"co-svsp-core:OtrosNombresDeudorCxC"}]
["/*",null,{"$f":"'800111A GeneraXBRL'!$D$17","v":"Razón Social deudor"},{"$f":"'800111A GeneraXBRL'!$C$17","v":"co-svsp-core:RazonSocialDeudorCxC"}]
["/*",null,{"$f":"'800111A GeneraXBRL'!$D$18","v":"Dirección deudor"},{"$f":"'800111A GeneraXBRL'!$C$18","v":"co-svsp-core:DireccionDeudorCxC"}]
["/*",null,{"$f":"'800111A GeneraXBRL'!$D$19","v":"Departamento deudor"},{"$f":"'800111A GeneraXBRL'!$C$19","v":"co-svsp-core:DepartamentoDeudorCxC"}]
["/*",null,{"$f":"'800111A GeneraXBRL'!$D$20","v":"Municipio deudor"},{"$f":"'800111A GeneraXBRL'!$C$20","v":"co-svsp-core:MunicipioDeudorCxC"}]
["/*",null,{"$f":"'800111A GeneraXBRL'!$D$21","v":"País deudor"},{"$f":"'800111A GeneraXBRL'!$C$21","v":"co-svsp-core:PaisDeudorCxC"}]
["/*",null,{"$f":"'800111A GeneraXBRL'!$D$22","v":"Saldo cuentas por cobrar"},{"$f":"'800111A GeneraXBRL'!$C$22","v":"co-svsp-core:SaldoCuentasPorCobrarCxC"}]
["/*",null,"--69--"]
["/*",null,{"$f":"'800111A GeneraXBRL'!$D$11","v":"Tipo de documento del deudor"},{"$f":"'800111A GeneraXBRL'!$C$11","v":"co-svsp-core:TipoDeDocumentoDeudorCxC"}]
["/*",null,{"$f":"'800111A GeneraXBRL'!$D$12","v":"Número de identificación del deudor"},{"$f":"'800111A GeneraXBRL'!$C$12","v":"co-svsp-core:NumeroIdentificacionDeudorCxC"}]
["/*",null,{"$f":"'800111A GeneraXBRL'!$D$13","v":"Primer apellido deudor"},{"$f":"'800111A GeneraXBRL'!$C$13","v":"co-svsp-core:PrimerApellidoDeudorCxC"}]
["/*",null,{"$f":"'800111A GeneraXBRL'!$D$14","v":"Segundo apellido deudor"},{"$f":"'800111A GeneraXBRL'!$C$14","v":"co-svsp-core:SegundoApellidoDeudorCxC"}]
["/*",null,{"$f":"'800111A GeneraXBRL'!$D$15","v":"Primer nombre deudor"},{"$f":"'800111A GeneraXBRL'!$C$15","v":"co-svsp-core:PrimerNombreDeudorCxC"}]
["/*",null,{"$f":"'800111A GeneraXBRL'!$D$16","v":"Otros nombres deudor"},{"$f":"'800111A GeneraXBRL'!$C$16","v":"co-svsp-core:OtrosNombresDeudorCxC"}]
["/*",null,{"$f":"'800111A GeneraXBRL'!$D$17","v":"Razón Social deudor"},{"$f":"'800111A GeneraXBRL'!$C$17","v":"co-svsp-core:RazonSocialDeudorCxC"}]
["/*",null,{"$f":"'800111A GeneraXBRL'!$D$18","v":"Dirección deudor"},{"$f":"'800111A GeneraXBRL'!$C$18","v":"co-svsp-core:DireccionDeudorCxC"}]
["/*",null,{"$f":"'800111A GeneraXBRL'!$D$19","v":"Departamento deudor"},{"$f":"'800111A GeneraXBRL'!$C$19","v":"co-svsp-core:DepartamentoDeudorCxC"}]
["/*",null,{"$f":"'800111A GeneraXBRL'!$D$20","v":"Municipio deudor"},{"$f":"'800111A GeneraXBRL'!$C$20","v":"co-svsp-core:MunicipioDeudorCxC"}]
["/*",null,{"$f":"'800111A GeneraXBRL'!$D$21","v":"País deudor"},{"$f":"'800111A GeneraXBRL'!$C$21","v":"co-svsp-core:PaisDeudorCxC"}]
["/*",null,{"$f":"'800111A GeneraXBRL'!$D$22","v":"Saldo cuentas por cobrar"},{"$f":"'800111A GeneraXBRL'!$C$22","v":"co-svsp-core:SaldoCuentasPorCobrarCxC"}]
["/*",null,"--70--"]
["/*",null,{"$f":"'800111A GeneraXBRL'!$D$11","v":"Tipo de documento del deudor"},{"$f":"'800111A GeneraXBRL'!$C$11","v":"co-svsp-core:TipoDeDocumentoDeudorCxC"}]
["/*",null,{"$f":"'800111A GeneraXBRL'!$D$12","v":"Número de identificación del deudor"},{"$f":"'800111A GeneraXBRL'!$C$12","v":"co-svsp-core:NumeroIdentificacionDeudorCxC"}]
["/*",null,{"$f":"'800111A GeneraXBRL'!$D$13","v":"Primer apellido deudor"},{"$f":"'800111A GeneraXBRL'!$C$13","v":"co-svsp-core:PrimerApellidoDeudorCxC"}]
["/*",null,{"$f":"'800111A GeneraXBRL'!$D$14","v":"Segundo apellido deudor"},{"$f":"'800111A GeneraXBRL'!$C$14","v":"co-svsp-core:SegundoApellidoDeudorCxC"}]
["/*",null,{"$f":"'800111A GeneraXBRL'!$D$15","v":"Primer nombre deudor"},{"$f":"'800111A GeneraXBRL'!$C$15","v":"co-svsp-core:PrimerNombreDeudorCxC"}]
["/*",null,{"$f":"'800111A GeneraXBRL'!$D$16","v":"Otros nombres deudor"},{"$f":"'800111A GeneraXBRL'!$C$16","v":"co-svsp-core:OtrosNombresDeudorCxC"}]
["/*",null,{"$f":"'800111A GeneraXBRL'!$D$17","v":"Razón Social deudor"},{"$f":"'800111A GeneraXBRL'!$C$17","v":"co-svsp-core:RazonSocialDeudorCxC"}]
["/*",null,{"$f":"'800111A GeneraXBRL'!$D$18","v":"Dirección deudor"},{"$f":"'800111A GeneraXBRL'!$C$18","v":"co-svsp-core:DireccionDeudorCxC"}]
["/*",null,{"$f":"'800111A GeneraXBRL'!$D$19","v":"Departamento deudor"},{"$f":"'800111A GeneraXBRL'!$C$19","v":"co-svsp-core:DepartamentoDeudorCxC"}]
["/*",null,{"$f":"'800111A GeneraXBRL'!$D$20","v":"Municipio deudor"},{"$f":"'800111A GeneraXBRL'!$C$20","v":"co-svsp-core:MunicipioDeudorCxC"}]
["/*",null,{"$f":"'800111A GeneraXBRL'!$D$21","v":"País deudor"},{"$f":"'800111A GeneraXBRL'!$C$21","v":"co-svsp-core:PaisDeudorCxC"}]
["/*",null,{"$f":"'800111A GeneraXBRL'!$D$22","v":"Saldo cuentas por cobrar"},{"$f":"'800111A GeneraXBRL'!$C$22","v":"co-svsp-core:SaldoCuentasPorCobrarCxC"}]
["/*",null,"--71--"]
["/*",null,{"$f":"'800111A GeneraXBRL'!$D$11","v":"Tipo de documento del deudor"},{"$f":"'800111A GeneraXBRL'!$C$11","v":"co-svsp-core:TipoDeDocumentoDeudorCxC"}]
["/*",null,{"$f":"'800111A GeneraXBRL'!$D$12","v":"Número de identificación del deudor"},{"$f":"'800111A GeneraXBRL'!$C$12","v":"co-svsp-core:NumeroIdentificacionDeudorCxC"}]
["/*",null,{"$f":"'800111A GeneraXBRL'!$D$13","v":"Primer apellido deudor"},{"$f":"'800111A GeneraXBRL'!$C$13","v":"co-svsp-core:PrimerApellidoDeudorCxC"}]
["/*",null,{"$f":"'800111A GeneraXBRL'!$D$14","v":"Segundo apellido deudor"},{"$f":"'800111A GeneraXBRL'!$C$14","v":"co-svsp-core:SegundoApellidoDeudorCxC"}]
["/*",null,{"$f":"'800111A GeneraXBRL'!$D$15","v":"Primer nombre deudor"},{"$f":"'800111A GeneraXBRL'!$C$15","v":"co-svsp-core:PrimerNombreDeudorCxC"}]
["/*",null,{"$f":"'800111A GeneraXBRL'!$D$16","v":"Otros nombres deudor"},{"$f":"'800111A GeneraXBRL'!$C$16","v":"co-svsp-core:OtrosNombresDeudorCxC"}]
["/*",null,{"$f":"'800111A GeneraXBRL'!$D$17","v":"Razón Social deudor"},{"$f":"'800111A GeneraXBRL'!$C$17","v":"co-svsp-core:RazonSocialDeudorCxC"}]
["/*",null,{"$f":"'800111A GeneraXBRL'!$D$18","v":"Dirección deudor"},{"$f":"'800111A GeneraXBRL'!$C$18","v":"co-svsp-core:DireccionDeudorCxC"}]
["/*",null,{"$f":"'800111A GeneraXBRL'!$D$19","v":"Departamento deudor"},{"$f":"'800111A GeneraXBRL'!$C$19","v":"co-svsp-core:DepartamentoDeudorCxC"}]
["/*",null,{"$f":"'800111A GeneraXBRL'!$D$20","v":"Municipio deudor"},{"$f":"'800111A GeneraXBRL'!$C$20","v":"co-svsp-core:MunicipioDeudorCxC"}]
["/*",null,{"$f":"'800111A GeneraXBRL'!$D$21","v":"País deudor"},{"$f":"'800111A GeneraXBRL'!$C$21","v":"co-svsp-core:PaisDeudorCxC"}]
["/*",null,{"$f":"'800111A GeneraXBRL'!$D$22","v":"Saldo cuentas por cobrar"},{"$f":"'800111A GeneraXBRL'!$C$22","v":"co-svsp-core:SaldoCuentasPorCobrarCxC"}]
["/*",null,"--72--"]
["/*",null,{"$f":"'800111A GeneraXBRL'!$D$11","v":"Tipo de documento del deudor"},{"$f":"'800111A GeneraXBRL'!$C$11","v":"co-svsp-core:TipoDeDocumentoDeudorCxC"}]
["/*",null,{"$f":"'800111A GeneraXBRL'!$D$12","v":"Número de identificación del deudor"},{"$f":"'800111A GeneraXBRL'!$C$12","v":"co-svsp-core:NumeroIdentificacionDeudorCxC"}]
["/*",null,{"$f":"'800111A GeneraXBRL'!$D$13","v":"Primer apellido deudor"},{"$f":"'800111A GeneraXBRL'!$C$13","v":"co-svsp-core:PrimerApellidoDeudorCxC"}]
["/*",null,{"$f":"'800111A GeneraXBRL'!$D$14","v":"Segundo apellido deudor"},{"$f":"'800111A GeneraXBRL'!$C$14","v":"co-svsp-core:SegundoApellidoDeudorCxC"}]
["/*",null,{"$f":"'800111A GeneraXBRL'!$D$15","v":"Primer nombre deudor"},{"$f":"'800111A GeneraXBRL'!$C$15","v":"co-svsp-core:PrimerNombreDeudorCxC"}]
["/*",null,{"$f":"'800111A GeneraXBRL'!$D$16","v":"Otros nombres deudor"},{"$f":"'800111A GeneraXBRL'!$C$16","v":"co-svsp-core:OtrosNombresDeudorCxC"}]
["/*",null,{"$f":"'800111A GeneraXBRL'!$D$17","v":"Razón Social deudor"},{"$f":"'800111A GeneraXBRL'!$C$17","v":"co-svsp-core:RazonSocialDeudorCxC"}]
["/*",null,{"$f":"'800111A GeneraXBRL'!$D$18","v":"Dirección deudor"},{"$f":"'800111A GeneraXBRL'!$C$18","v":"co-svsp-core:DireccionDeudorCxC"}]
[{"$f":"IF(G1376=\"\",\"/*\",\"\")","v":"/*"},null,{"$f":"'800111A GeneraXBRL'!$D$19","v":"Departamento deudor"},{"$f":"'800111A GeneraXBRL'!$C$19","v":"co-svsp-core:DepartamentoDeudorCxC"}]
["/*",null,{"$f":"'800111A GeneraXBRL'!$D$20","v":"Municipio deudor"},{"$f":"'800111A GeneraXBRL'!$C$20","v":"co-svsp-core:MunicipioDeudorCxC"}]
["/*",null,{"$f":"'800111A GeneraXBRL'!$D$21","v":"País deudor"},{"$f":"'800111A GeneraXBRL'!$C$21","v":"co-svsp-core:PaisDeudorCxC"}]
["/*",null,{"$f":"'800111A GeneraXBRL'!$D$22","v":"Saldo cuentas por cobrar"},{"$f":"'800111A GeneraXBRL'!$C$22","v":"co-svsp-core:SaldoCuentasPorCobrarCxC"}]
["/*",null,"--73--"]
["/*",null,{"$f":"'800111A GeneraXBRL'!$D$11","v":"Tipo de documento del deudor"},{"$f":"'800111A GeneraXBRL'!$C$11","v":"co-svsp-core:TipoDeDocumentoDeudorCxC"}]
["/*",null,{"$f":"'800111A GeneraXBRL'!$D$12","v":"Número de identificación del deudor"},{"$f":"'800111A GeneraXBRL'!$C$12","v":"co-svsp-core:NumeroIdentificacionDeudorCxC"}]
["/*",null,{"$f":"'800111A GeneraXBRL'!$D$13","v":"Primer apellido deudor"},{"$f":"'800111A GeneraXBRL'!$C$13","v":"co-svsp-core:PrimerApellidoDeudorCxC"}]
["/*",null,{"$f":"'800111A GeneraXBRL'!$D$14","v":"Segundo apellido deudor"},{"$f":"'800111A GeneraXBRL'!$C$14","v":"co-svsp-core:SegundoApellidoDeudorCxC"}]
["/*",null,{"$f":"'800111A GeneraXBRL'!$D$15","v":"Primer nombre deudor"},{"$f":"'800111A GeneraXBRL'!$C$15","v":"co-svsp-core:PrimerNombreDeudorCxC"}]
["/*",null,{"$f":"'800111A GeneraXBRL'!$D$16","v":"Otros nombres deudor"},{"$f":"'800111A GeneraXBRL'!$C$16","v":"co-svsp-core:OtrosNombresDeudorCxC"}]
["/*",null,{"$f":"'800111A GeneraXBRL'!$D$17","v":"Razón Social deudor"},{"$f":"'800111A GeneraXBRL'!$C$17","v":"co-svsp-core:RazonSocialDeudorCxC"}]
["/*",null,{"$f":"'800111A GeneraXBRL'!$D$18","v":"Dirección deudor"},{"$f":"'800111A GeneraXBRL'!$C$18","v":"co-svsp-core:DireccionDeudorCxC"}]
["/*",null,{"$f":"'800111A GeneraXBRL'!$D$19","v":"Departamento deudor"},{"$f":"'800111A GeneraXBRL'!$C$19","v":"co-svsp-core:DepartamentoDeudorCxC"}]
["/*",null,{"$f":"'800111A GeneraXBRL'!$D$20","v":"Municipio deudor"},{"$f":"'800111A GeneraXBRL'!$C$20","v":"co-svsp-core:MunicipioDeudorCxC"}]
["/*",null,{"$f":"'800111A GeneraXBRL'!$D$21","v":"País deudor"},{"$f":"'800111A GeneraXBRL'!$C$21","v":"co-svsp-core:PaisDeudorCxC"}]
["/*",null,{"$f":"'800111A GeneraXBRL'!$D$22","v":"Saldo cuentas por cobrar"},{"$f":"'800111A GeneraXBRL'!$C$22","v":"co-svsp-core:SaldoCuentasPorCobrarCxC"}]
["/*",null,"--74--"]
["/*",null,{"$f":"'800111A GeneraXBRL'!$D$11","v":"Tipo de documento del deudor"},{"$f":"'800111A GeneraXBRL'!$C$11","v":"co-svsp-core:TipoDeDocumentoDeudorCxC"}]
["/*",null,{"$f":"'800111A GeneraXBRL'!$D$12","v":"Número de identificación del deudor"},{"$f":"'800111A GeneraXBRL'!$C$12","v":"co-svsp-core:NumeroIdentificacionDeudorCxC"}]
["/*",null,{"$f":"'800111A GeneraXBRL'!$D$13","v":"Primer apellido deudor"},{"$f":"'800111A GeneraXBRL'!$C$13","v":"co-svsp-core:PrimerApellidoDeudorCxC"}]
["/*",null,{"$f":"'800111A GeneraXBRL'!$D$14","v":"Segundo apellido deudor"},{"$f":"'800111A GeneraXBRL'!$C$14","v":"co-svsp-core:SegundoApellidoDeudorCxC"}]
["/*",null,{"$f":"'800111A GeneraXBRL'!$D$15","v":"Primer nombre deudor"},{"$f":"'800111A GeneraXBRL'!$C$15","v":"co-svsp-core:PrimerNombreDeudorCxC"}]
["/*",null,{"$f":"'800111A GeneraXBRL'!$D$16","v":"Otros nombres deudor"},{"$f":"'800111A GeneraXBRL'!$C$16","v":"co-svsp-core:OtrosNombresDeudorCxC"}]
["/*",null,{"$f":"'800111A GeneraXBRL'!$D$17","v":"Razón Social deudor"},{"$f":"'800111A GeneraXBRL'!$C$17","v":"co-svsp-core:RazonSocialDeudorCxC"}]
["/*",null,{"$f":"'800111A GeneraXBRL'!$D$18","v":"Dirección deudor"},{"$f":"'800111A GeneraXBRL'!$C$18","v":"co-svsp-core:DireccionDeudorCxC"}]
["/*",null,{"$f":"'800111A GeneraXBRL'!$D$19","v":"Departamento deudor"},{"$f":"'800111A GeneraXBRL'!$C$19","v":"co-svsp-core:DepartamentoDeudorCxC"}]
["/*",null,{"$f":"'800111A GeneraXBRL'!$D$20","v":"Municipio deudor"},{"$f":"'800111A GeneraXBRL'!$C$20","v":"co-svsp-core:MunicipioDeudorCxC"}]
["/*",null,{"$f":"'800111A GeneraXBRL'!$D$21","v":"País deudor"},{"$f":"'800111A GeneraXBRL'!$C$21","v":"co-svsp-core:PaisDeudorCxC"}]
["/*",null,{"$f":"'800111A GeneraXBRL'!$D$22","v":"Saldo cuentas por cobrar"},{"$f":"'800111A GeneraXBRL'!$C$22","v":"co-svsp-core:SaldoCuentasPorCobrarCxC"}]
["/*",null,"--75--"]
["/*",null,{"$f":"'800111A GeneraXBRL'!$D$11","v":"Tipo de documento del deudor"},{"$f":"'800111A GeneraXBRL'!$C$11","v":"co-svsp-core:TipoDeDocumentoDeudorCxC"}]
["/*",null,{"$f":"'800111A GeneraXBRL'!$D$12","v":"Número de identificación del deudor"},{"$f":"'800111A GeneraXBRL'!$C$12","v":"co-svsp-core:NumeroIdentificacionDeudorCxC"}]
["/*",null,{"$f":"'800111A GeneraXBRL'!$D$13","v":"Primer apellido deudor"},{"$f":"'800111A GeneraXBRL'!$C$13","v":"co-svsp-core:PrimerApellidoDeudorCxC"}]
["/*",null,{"$f":"'800111A GeneraXBRL'!$D$14","v":"Segundo apellido deudor"},{"$f":"'800111A GeneraXBRL'!$C$14","v":"co-svsp-core:SegundoApellidoDeudorCxC"}]
["/*",null,{"$f":"'800111A GeneraXBRL'!$D$15","v":"Primer nombre deudor"},{"$f":"'800111A GeneraXBRL'!$C$15","v":"co-svsp-core:PrimerNombreDeudorCxC"}]
["/*",null,{"$f":"'800111A GeneraXBRL'!$D$16","v":"Otros nombres deudor"},{"$f":"'800111A GeneraXBRL'!$C$16","v":"co-svsp-core:OtrosNombresDeudorCxC"}]
["/*",null,{"$f":"'800111A GeneraXBRL'!$D$17","v":"Razón Social deudor"},{"$f":"'800111A GeneraXBRL'!$C$17","v":"co-svsp-core:RazonSocialDeudorCxC"}]
["/*",null,{"$f":"'800111A GeneraXBRL'!$D$18","v":"Dirección deudor"},{"$f":"'800111A GeneraXBRL'!$C$18","v":"co-svsp-core:DireccionDeudorCxC"}]
["/*",null,{"$f":"'800111A GeneraXBRL'!$D$19","v":"Departamento deudor"},{"$f":"'800111A GeneraXBRL'!$C$19","v":"co-svsp-core:DepartamentoDeudorCxC"}]
["/*",null,{"$f":"'800111A GeneraXBRL'!$D$20","v":"Municipio deudor"},{"$f":"'800111A GeneraXBRL'!$C$20","v":"co-svsp-core:MunicipioDeudorCxC"}]
["/*",null,{"$f":"'800111A GeneraXBRL'!$D$21","v":"País deudor"},{"$f":"'800111A GeneraXBRL'!$C$21","v":"co-svsp-core:PaisDeudorCxC"}]
["/*",null,{"$f":"'800111A GeneraXBRL'!$D$22","v":"Saldo cuentas por cobrar"},{"$f":"'800111A GeneraXBRL'!$C$22","v":"co-svsp-core:SaldoCuentasPorCobrarCxC"}]
["/*",null,"--76--"]
["/*",null,{"$f":"'800111A GeneraXBRL'!$D$11","v":"Tipo de documento del deudor"},{"$f":"'800111A GeneraXBRL'!$C$11","v":"co-svsp-core:TipoDeDocumentoDeudorCxC"}]
["/*",null,{"$f":"'800111A GeneraXBRL'!$D$12","v":"Número de identificación del deudor"},{"$f":"'800111A GeneraXBRL'!$C$12","v":"co-svsp-core:NumeroIdentificacionDeudorCxC"}]
["/*",null,{"$f":"'800111A GeneraXBRL'!$D$13","v":"Primer apellido deudor"},{"$f":"'800111A GeneraXBRL'!$C$13","v":"co-svsp-core:PrimerApellidoDeudorCxC"}]
["/*",null,{"$f":"'800111A GeneraXBRL'!$D$14","v":"Segundo apellido deudor"},{"$f":"'800111A GeneraXBRL'!$C$14","v":"co-svsp-core:SegundoApellidoDeudorCxC"}]
["/*",null,{"$f":"'800111A GeneraXBRL'!$D$15","v":"Primer nombre deudor"},{"$f":"'800111A GeneraXBRL'!$C$15","v":"co-svsp-core:PrimerNombreDeudorCxC"}]
["/*",null,{"$f":"'800111A GeneraXBRL'!$D$16","v":"Otros nombres deudor"},{"$f":"'800111A GeneraXBRL'!$C$16","v":"co-svsp-core:OtrosNombresDeudorCxC"}]
["/*",null,{"$f":"'800111A GeneraXBRL'!$D$17","v":"Razón Social deudor"},{"$f":"'800111A GeneraXBRL'!$C$17","v":"co-svsp-core:RazonSocialDeudorCxC"}]
["/*",null,{"$f":"'800111A GeneraXBRL'!$D$18","v":"Dirección deudor"},{"$f":"'800111A GeneraXBRL'!$C$18","v":"co-svsp-core:DireccionDeudorCxC"}]
["/*",null,{"$f":"'800111A GeneraXBRL'!$D$19","v":"Departamento deudor"},{"$f":"'800111A GeneraXBRL'!$C$19","v":"co-svsp-core:DepartamentoDeudorCxC"}]
["/*",null,{"$f":"'800111A GeneraXBRL'!$D$20","v":"Municipio deudor"},{"$f":"'800111A GeneraXBRL'!$C$20","v":"co-svsp-core:MunicipioDeudorCxC"}]
["/*",null,{"$f":"'800111A GeneraXBRL'!$D$21","v":"País deudor"},{"$f":"'800111A GeneraXBRL'!$C$21","v":"co-svsp-core:PaisDeudorCxC"}]
["/*",null,{"$f":"'800111A GeneraXBRL'!$D$22","v":"Saldo cuentas por cobrar"},{"$f":"'800111A GeneraXBRL'!$C$22","v":"co-svsp-core:SaldoCuentasPorCobrarCxC"}]
["/*",null,"--77--"]
["/*",null,{"$f":"'800111A GeneraXBRL'!$D$11","v":"Tipo de documento del deudor"},{"$f":"'800111A GeneraXBRL'!$C$11","v":"co-svsp-core:TipoDeDocumentoDeudorCxC"}]
["/*",null,{"$f":"'800111A GeneraXBRL'!$D$12","v":"Número de identificación del deudor"},{"$f":"'800111A GeneraXBRL'!$C$12","v":"co-svsp-core:NumeroIdentificacionDeudorCxC"}]
["/*",null,{"$f":"'800111A GeneraXBRL'!$D$13","v":"Primer apellido deudor"},{"$f":"'800111A GeneraXBRL'!$C$13","v":"co-svsp-core:PrimerApellidoDeudorCxC"}]
["/*",null,{"$f":"'800111A GeneraXBRL'!$D$14","v":"Segundo apellido deudor"},{"$f":"'800111A GeneraXBRL'!$C$14","v":"co-svsp-core:SegundoApellidoDeudorCxC"}]
["/*",null,{"$f":"'800111A GeneraXBRL'!$D$15","v":"Primer nombre deudor"},{"$f":"'800111A GeneraXBRL'!$C$15","v":"co-svsp-core:PrimerNombreDeudorCxC"}]
["/*",null,{"$f":"'800111A GeneraXBRL'!$D$16","v":"Otros nombres deudor"},{"$f":"'800111A GeneraXBRL'!$C$16","v":"co-svsp-core:OtrosNombresDeudorCxC"}]
["/*",null,{"$f":"'800111A GeneraXBRL'!$D$17","v":"Razón Social deudor"},{"$f":"'800111A GeneraXBRL'!$C$17","v":"co-svsp-core:RazonSocialDeudorCxC"}]
[{"$f":"IF(G1440=\"\",\"/*\",\"\")","v":"/*"},null,{"$f":"'800111A GeneraXBRL'!$D$18","v":"Dirección deudor"},{"$f":"'800111A GeneraXBRL'!$C$18","v":"co-svsp-core:DireccionDeudorCxC"}]
["/*",null,{"$f":"'800111A GeneraXBRL'!$D$19","v":"Departamento deudor"},{"$f":"'800111A GeneraXBRL'!$C$19","v":"co-svsp-core:DepartamentoDeudorCxC"}]
["/*",null,{"$f":"'800111A GeneraXBRL'!$D$20","v":"Municipio deudor"},{"$f":"'800111A GeneraXBRL'!$C$20","v":"co-svsp-core:MunicipioDeudorCxC"}]
["/*",null,{"$f":"'800111A GeneraXBRL'!$D$21","v":"País deudor"},{"$f":"'800111A GeneraXBRL'!$C$21","v":"co-svsp-core:PaisDeudorCxC"}]
["/*",null,{"$f":"'800111A GeneraXBRL'!$D$22","v":"Saldo cuentas por cobrar"},{"$f":"'800111A GeneraXBRL'!$C$22","v":"co-svsp-core:SaldoCuentasPorCobrarCxC"}]
["/*",null,"--78--"]
["/*",null,{"$f":"'800111A GeneraXBRL'!$D$11","v":"Tipo de documento del deudor"},{"$f":"'800111A GeneraXBRL'!$C$11","v":"co-svsp-core:TipoDeDocumentoDeudorCxC"}]
["/*",null,{"$f":"'800111A GeneraXBRL'!$D$12","v":"Número de identificación del deudor"},{"$f":"'800111A GeneraXBRL'!$C$12","v":"co-svsp-core:NumeroIdentificacionDeudorCxC"}]
["/*",null,{"$f":"'800111A GeneraXBRL'!$D$13","v":"Primer apellido deudor"},{"$f":"'800111A GeneraXBRL'!$C$13","v":"co-svsp-core:PrimerApellidoDeudorCxC"}]
["/*",null,{"$f":"'800111A GeneraXBRL'!$D$14","v":"Segundo apellido deudor"},{"$f":"'800111A GeneraXBRL'!$C$14","v":"co-svsp-core:SegundoApellidoDeudorCxC"}]
["/*",null,{"$f":"'800111A GeneraXBRL'!$D$15","v":"Primer nombre deudor"},{"$f":"'800111A GeneraXBRL'!$C$15","v":"co-svsp-core:PrimerNombreDeudorCxC"}]
["/*",null,{"$f":"'800111A GeneraXBRL'!$D$16","v":"Otros nombres deudor"},{"$f":"'800111A GeneraXBRL'!$C$16","v":"co-svsp-core:OtrosNombresDeudorCxC"}]
["/*",null,{"$f":"'800111A GeneraXBRL'!$D$17","v":"Razón Social deudor"},{"$f":"'800111A GeneraXBRL'!$C$17","v":"co-svsp-core:RazonSocialDeudorCxC"}]
["/*",null,{"$f":"'800111A GeneraXBRL'!$D$18","v":"Dirección deudor"},{"$f":"'800111A GeneraXBRL'!$C$18","v":"co-svsp-core:DireccionDeudorCxC"}]
["/*",null,{"$f":"'800111A GeneraXBRL'!$D$19","v":"Departamento deudor"},{"$f":"'800111A GeneraXBRL'!$C$19","v":"co-svsp-core:DepartamentoDeudorCxC"}]
["/*",null,{"$f":"'800111A GeneraXBRL'!$D$20","v":"Municipio deudor"},{"$f":"'800111A GeneraXBRL'!$C$20","v":"co-svsp-core:MunicipioDeudorCxC"}]
["/*",null,{"$f":"'800111A GeneraXBRL'!$D$21","v":"País deudor"},{"$f":"'800111A GeneraXBRL'!$C$21","v":"co-svsp-core:PaisDeudorCxC"}]
["/*",null,{"$f":"'800111A GeneraXBRL'!$D$22","v":"Saldo cuentas por cobrar"},{"$f":"'800111A GeneraXBRL'!$C$22","v":"co-svsp-core:SaldoCuentasPorCobrarCxC"}]
["/*",null,"--79--"]
["/*",null,{"$f":"'800111A GeneraXBRL'!$D$11","v":"Tipo de documento del deudor"},{"$f":"'800111A GeneraXBRL'!$C$11","v":"co-svsp-core:TipoDeDocumentoDeudorCxC"}]
["/*",null,{"$f":"'800111A GeneraXBRL'!$D$12","v":"Número de identificación del deudor"},{"$f":"'800111A GeneraXBRL'!$C$12","v":"co-svsp-core:NumeroIdentificacionDeudorCxC"}]
["/*",null,{"$f":"'800111A GeneraXBRL'!$D$13","v":"Primer apellido deudor"},{"$f":"'800111A GeneraXBRL'!$C$13","v":"co-svsp-core:PrimerApellidoDeudorCxC"}]
["/*",null,{"$f":"'800111A GeneraXBRL'!$D$14","v":"Segundo apellido deudor"},{"$f":"'800111A GeneraXBRL'!$C$14","v":"co-svsp-core:SegundoApellidoDeudorCxC"}]
["/*",null,{"$f":"'800111A GeneraXBRL'!$D$15","v":"Primer nombre deudor"},{"$f":"'800111A GeneraXBRL'!$C$15","v":"co-svsp-core:PrimerNombreDeudorCxC"}]
["/*",null,{"$f":"'800111A GeneraXBRL'!$D$16","v":"Otros nombres deudor"},{"$f":"'800111A GeneraXBRL'!$C$16","v":"co-svsp-core:OtrosNombresDeudorCxC"}]
["/*",null,{"$f":"'800111A GeneraXBRL'!$D$17","v":"Razón Social deudor"},{"$f":"'800111A GeneraXBRL'!$C$17","v":"co-svsp-core:RazonSocialDeudorCxC"}]
["/*",null,{"$f":"'800111A GeneraXBRL'!$D$18","v":"Dirección deudor"},{"$f":"'800111A GeneraXBRL'!$C$18","v":"co-svsp-core:DireccionDeudorCxC"}]
["/*",null,{"$f":"'800111A GeneraXBRL'!$D$19","v":"Departamento deudor"},{"$f":"'800111A GeneraXBRL'!$C$19","v":"co-svsp-core:DepartamentoDeudorCxC"}]
["/*",null,{"$f":"'800111A GeneraXBRL'!$D$20","v":"Municipio deudor"},{"$f":"'800111A GeneraXBRL'!$C$20","v":"co-svsp-core:MunicipioDeudorCxC"}]
["/*",null,{"$f":"'800111A GeneraXBRL'!$D$21","v":"País deudor"},{"$f":"'800111A GeneraXBRL'!$C$21","v":"co-svsp-core:PaisDeudorCxC"}]
["/*",null,{"$f":"'800111A GeneraXBRL'!$D$22","v":"Saldo cuentas por cobrar"},{"$f":"'800111A GeneraXBRL'!$C$22","v":"co-svsp-core:SaldoCuentasPorCobrarCxC"}]
["/*",null,"--80--"]
["/*",null,{"$f":"'800111A GeneraXBRL'!$D$11","v":"Tipo de documento del deudor"},{"$f":"'800111A GeneraXBRL'!$C$11","v":"co-svsp-core:TipoDeDocumentoDeudorCxC"}]
["/*",null,{"$f":"'800111A GeneraXBRL'!$D$12","v":"Número de identificación del deudor"},{"$f":"'800111A GeneraXBRL'!$C$12","v":"co-svsp-core:NumeroIdentificacionDeudorCxC"}]
["/*",null,{"$f":"'800111A GeneraXBRL'!$D$13","v":"Primer apellido deudor"},{"$f":"'800111A GeneraXBRL'!$C$13","v":"co-svsp-core:PrimerApellidoDeudorCxC"}]
["/*",null,{"$f":"'800111A GeneraXBRL'!$D$14","v":"Segundo apellido deudor"},{"$f":"'800111A GeneraXBRL'!$C$14","v":"co-svsp-core:SegundoApellidoDeudorCxC"}]
["/*",null,{"$f":"'800111A GeneraXBRL'!$D$15","v":"Primer nombre deudor"},{"$f":"'800111A GeneraXBRL'!$C$15","v":"co-svsp-core:PrimerNombreDeudorCxC"}]
["/*",null,{"$f":"'800111A GeneraXBRL'!$D$16","v":"Otros nombres deudor"},{"$f":"'800111A GeneraXBRL'!$C$16","v":"co-svsp-core:OtrosNombresDeudorCxC"}]
["/*",null,{"$f":"'800111A GeneraXBRL'!$D$17","v":"Razón Social deudor"},{"$f":"'800111A GeneraXBRL'!$C$17","v":"co-svsp-core:RazonSocialDeudorCxC"}]
["/*",null,{"$f":"'800111A GeneraXBRL'!$D$18","v":"Dirección deudor"},{"$f":"'800111A GeneraXBRL'!$C$18","v":"co-svsp-core:DireccionDeudorCxC"}]
["/*",null,{"$f":"'800111A GeneraXBRL'!$D$19","v":"Departamento deudor"},{"$f":"'800111A GeneraXBRL'!$C$19","v":"co-svsp-core:DepartamentoDeudorCxC"}]
["/*",null,{"$f":"'800111A GeneraXBRL'!$D$20","v":"Municipio deudor"},{"$f":"'800111A GeneraXBRL'!$C$20","v":"co-svsp-core:MunicipioDeudorCxC"}]
["/*",null,{"$f":"'800111A GeneraXBRL'!$D$21","v":"País deudor"},{"$f":"'800111A GeneraXBRL'!$C$21","v":"co-svsp-core:PaisDeudorCxC"}]
["/*",null,{"$f":"'800111A GeneraXBRL'!$D$22","v":"Saldo cuentas por cobrar"},{"$f":"'800111A GeneraXBRL'!$C$22","v":"co-svsp-core:SaldoCuentasPorCobrarCxC"}]
["/*",null,"--81--"]
["/*",null,{"$f":"'800111A GeneraXBRL'!$D$11","v":"Tipo de documento del deudor"},{"$f":"'800111A GeneraXBRL'!$C$11","v":"co-svsp-core:TipoDeDocumentoDeudorCxC"}]
["/*",null,{"$f":"'800111A GeneraXBRL'!$D$12","v":"Número de identificación del deudor"},{"$f":"'800111A GeneraXBRL'!$C$12","v":"co-svsp-core:NumeroIdentificacionDeudorCxC"}]
["/*",null,{"$f":"'800111A GeneraXBRL'!$D$13","v":"Primer apellido deudor"},{"$f":"'800111A GeneraXBRL'!$C$13","v":"co-svsp-core:PrimerApellidoDeudorCxC"}]
["/*",null,{"$f":"'800111A GeneraXBRL'!$D$14","v":"Segundo apellido deudor"},{"$f":"'800111A GeneraXBRL'!$C$14","v":"co-svsp-core:SegundoApellidoDeudorCxC"}]
["/*",null,{"$f":"'800111A GeneraXBRL'!$D$15","v":"Primer nombre deudor"},{"$f":"'800111A GeneraXBRL'!$C$15","v":"co-svsp-core:PrimerNombreDeudorCxC"}]
["/*",null,{"$f":"'800111A GeneraXBRL'!$D$16","v":"Otros nombres deudor"},{"$f":"'800111A GeneraXBRL'!$C$16","v":"co-svsp-core:OtrosNombresDeudorCxC"}]
["/*",null,{"$f":"'800111A GeneraXBRL'!$D$17","v":"Razón Social deudor"},{"$f":"'800111A GeneraXBRL'!$C$17","v":"co-svsp-core:RazonSocialDeudorCxC"}]
["/*",null,{"$f":"'800111A GeneraXBRL'!$D$18","v":"Dirección deudor"},{"$f":"'800111A GeneraXBRL'!$C$18","v":"co-svsp-core:DireccionDeudorCxC"}]
["/*",null,{"$f":"'800111A GeneraXBRL'!$D$19","v":"Departamento deudor"},{"$f":"'800111A GeneraXBRL'!$C$19","v":"co-svsp-core:DepartamentoDeudorCxC"}]
["/*",null,{"$f":"'800111A GeneraXBRL'!$D$20","v":"Municipio deudor"},{"$f":"'800111A GeneraXBRL'!$C$20","v":"co-svsp-core:MunicipioDeudorCxC"}]
["/*",null,{"$f":"'800111A GeneraXBRL'!$D$21","v":"País deudor"},{"$f":"'800111A GeneraXBRL'!$C$21","v":"co-svsp-core:PaisDeudorCxC"}]
["/*",null,{"$f":"'800111A GeneraXBRL'!$D$22","v":"Saldo cuentas por cobrar"},{"$f":"'800111A GeneraXBRL'!$C$22","v":"co-svsp-core:SaldoCuentasPorCobrarCxC"}]
["/*",null,"--82--"]
["/*",null,{"$f":"'800111A GeneraXBRL'!$D$11","v":"Tipo de documento del deudor"},{"$f":"'800111A GeneraXBRL'!$C$11","v":"co-svsp-core:TipoDeDocumentoDeudorCxC"}]
["/*",null,{"$f":"'800111A GeneraXBRL'!$D$12","v":"Número de identificación del deudor"},{"$f":"'800111A GeneraXBRL'!$C$12","v":"co-svsp-core:NumeroIdentificacionDeudorCxC"}]
["/*",null,{"$f":"'800111A GeneraXBRL'!$D$13","v":"Primer apellido deudor"},{"$f":"'800111A GeneraXBRL'!$C$13","v":"co-svsp-core:PrimerApellidoDeudorCxC"}]
["/*",null,{"$f":"'800111A GeneraXBRL'!$D$14","v":"Segundo apellido deudor"},{"$f":"'800111A GeneraXBRL'!$C$14","v":"co-svsp-core:SegundoApellidoDeudorCxC"}]
["/*",null,{"$f":"'800111A GeneraXBRL'!$D$15","v":"Primer nombre deudor"},{"$f":"'800111A GeneraXBRL'!$C$15","v":"co-svsp-core:PrimerNombreDeudorCxC"}]
["/*",null,{"$f":"'800111A GeneraXBRL'!$D$16","v":"Otros nombres deudor"},{"$f":"'800111A GeneraXBRL'!$C$16","v":"co-svsp-core:OtrosNombresDeudorCxC"}]
[{"$f":"IF(G1504=\"\",\"/*\",\"\")","v":"/*"},null,{"$f":"'800111A GeneraXBRL'!$D$17","v":"Razón Social deudor"},{"$f":"'800111A GeneraXBRL'!$C$17","v":"co-svsp-core:RazonSocialDeudorCxC"}]
["/*",null,{"$f":"'800111A GeneraXBRL'!$D$18","v":"Dirección deudor"},{"$f":"'800111A GeneraXBRL'!$C$18","v":"co-svsp-core:DireccionDeudorCxC"}]
["/*",null,{"$f":"'800111A GeneraXBRL'!$D$19","v":"Departamento deudor"},{"$f":"'800111A GeneraXBRL'!$C$19","v":"co-svsp-core:DepartamentoDeudorCxC"}]
["/*",null,{"$f":"'800111A GeneraXBRL'!$D$20","v":"Municipio deudor"},{"$f":"'800111A GeneraXBRL'!$C$20","v":"co-svsp-core:MunicipioDeudorCxC"}]
["/*",null,{"$f":"'800111A GeneraXBRL'!$D$21","v":"País deudor"},{"$f":"'800111A GeneraXBRL'!$C$21","v":"co-svsp-core:PaisDeudorCxC"}]
["/*",null,{"$f":"'800111A GeneraXBRL'!$D$22","v":"Saldo cuentas por cobrar"},{"$f":"'800111A GeneraXBRL'!$C$22","v":"co-svsp-core:SaldoCuentasPorCobrarCxC"}]
["/*",null,"--83--"]
["/*",null,{"$f":"'800111A GeneraXBRL'!$D$11","v":"Tipo de documento del deudor"},{"$f":"'800111A GeneraXBRL'!$C$11","v":"co-svsp-core:TipoDeDocumentoDeudorCxC"}]
["/*",null,{"$f":"'800111A GeneraXBRL'!$D$12","v":"Número de identificación del deudor"},{"$f":"'800111A GeneraXBRL'!$C$12","v":"co-svsp-core:NumeroIdentificacionDeudorCxC"}]
["/*",null,{"$f":"'800111A GeneraXBRL'!$D$13","v":"Primer apellido deudor"},{"$f":"'800111A GeneraXBRL'!$C$13","v":"co-svsp-core:PrimerApellidoDeudorCxC"}]
["/*",null,{"$f":"'800111A GeneraXBRL'!$D$14","v":"Segundo apellido deudor"},{"$f":"'800111A GeneraXBRL'!$C$14","v":"co-svsp-core:SegundoApellidoDeudorCxC"}]
["/*",null,{"$f":"'800111A GeneraXBRL'!$D$15","v":"Primer nombre deudor"},{"$f":"'800111A GeneraXBRL'!$C$15","v":"co-svsp-core:PrimerNombreDeudorCxC"}]
["/*",null,{"$f":"'800111A GeneraXBRL'!$D$16","v":"Otros nombres deudor"},{"$f":"'800111A GeneraXBRL'!$C$16","v":"co-svsp-core:OtrosNombresDeudorCxC"}]
["/*",null,{"$f":"'800111A GeneraXBRL'!$D$17","v":"Razón Social deudor"},{"$f":"'800111A GeneraXBRL'!$C$17","v":"co-svsp-core:RazonSocialDeudorCxC"}]
["/*",null,{"$f":"'800111A GeneraXBRL'!$D$18","v":"Dirección deudor"},{"$f":"'800111A GeneraXBRL'!$C$18","v":"co-svsp-core:DireccionDeudorCxC"}]
["/*",null,{"$f":"'800111A GeneraXBRL'!$D$19","v":"Departamento deudor"},{"$f":"'800111A GeneraXBRL'!$C$19","v":"co-svsp-core:DepartamentoDeudorCxC"}]
["/*",null,{"$f":"'800111A GeneraXBRL'!$D$20","v":"Municipio deudor"},{"$f":"'800111A GeneraXBRL'!$C$20","v":"co-svsp-core:MunicipioDeudorCxC"}]
["/*",null,{"$f":"'800111A GeneraXBRL'!$D$21","v":"País deudor"},{"$f":"'800111A GeneraXBRL'!$C$21","v":"co-svsp-core:PaisDeudorCxC"}]
["/*",null,{"$f":"'800111A GeneraXBRL'!$D$22","v":"Saldo cuentas por cobrar"},{"$f":"'800111A GeneraXBRL'!$C$22","v":"co-svsp-core:SaldoCuentasPorCobrarCxC"}]
["/*",null,"--84--"]
["/*",null,{"$f":"'800111A GeneraXBRL'!$D$11","v":"Tipo de documento del deudor"},{"$f":"'800111A GeneraXBRL'!$C$11","v":"co-svsp-core:TipoDeDocumentoDeudorCxC"}]
["/*",null,{"$f":"'800111A GeneraXBRL'!$D$12","v":"Número de identificación del deudor"},{"$f":"'800111A GeneraXBRL'!$C$12","v":"co-svsp-core:NumeroIdentificacionDeudorCxC"}]
["/*",null,{"$f":"'800111A GeneraXBRL'!$D$13","v":"Primer apellido deudor"},{"$f":"'800111A GeneraXBRL'!$C$13","v":"co-svsp-core:PrimerApellidoDeudorCxC"}]
["/*",null,{"$f":"'800111A GeneraXBRL'!$D$14","v":"Segundo apellido deudor"},{"$f":"'800111A GeneraXBRL'!$C$14","v":"co-svsp-core:SegundoApellidoDeudorCxC"}]
["/*",null,{"$f":"'800111A GeneraXBRL'!$D$15","v":"Primer nombre deudor"},{"$f":"'800111A GeneraXBRL'!$C$15","v":"co-svsp-core:PrimerNombreDeudorCxC"}]
["/*",null,{"$f":"'800111A GeneraXBRL'!$D$16","v":"Otros nombres deudor"},{"$f":"'800111A GeneraXBRL'!$C$16","v":"co-svsp-core:OtrosNombresDeudorCxC"}]
["/*",null,{"$f":"'800111A GeneraXBRL'!$D$17","v":"Razón Social deudor"},{"$f":"'800111A GeneraXBRL'!$C$17","v":"co-svsp-core:RazonSocialDeudorCxC"}]
["/*",null,{"$f":"'800111A GeneraXBRL'!$D$18","v":"Dirección deudor"},{"$f":"'800111A GeneraXBRL'!$C$18","v":"co-svsp-core:DireccionDeudorCxC"}]
["/*",null,{"$f":"'800111A GeneraXBRL'!$D$19","v":"Departamento deudor"},{"$f":"'800111A GeneraXBRL'!$C$19","v":"co-svsp-core:DepartamentoDeudorCxC"}]
["/*",null,{"$f":"'800111A GeneraXBRL'!$D$20","v":"Municipio deudor"},{"$f":"'800111A GeneraXBRL'!$C$20","v":"co-svsp-core:MunicipioDeudorCxC"}]
["/*",null,{"$f":"'800111A GeneraXBRL'!$D$21","v":"País deudor"},{"$f":"'800111A GeneraXBRL'!$C$21","v":"co-svsp-core:PaisDeudorCxC"}]
["/*",null,{"$f":"'800111A GeneraXBRL'!$D$22","v":"Saldo cuentas por cobrar"},{"$f":"'800111A GeneraXBRL'!$C$22","v":"co-svsp-core:SaldoCuentasPorCobrarCxC"}]
["/*",null,"--85--"]
["/*",null,{"$f":"'800111A GeneraXBRL'!$D$11","v":"Tipo de documento del deudor"},{"$f":"'800111A GeneraXBRL'!$C$11","v":"co-svsp-core:TipoDeDocumentoDeudorCxC"}]
["/*",null,{"$f":"'800111A GeneraXBRL'!$D$12","v":"Número de identificación del deudor"},{"$f":"'800111A GeneraXBRL'!$C$12","v":"co-svsp-core:NumeroIdentificacionDeudorCxC"}]
["/*",null,{"$f":"'800111A GeneraXBRL'!$D$13","v":"Primer apellido deudor"},{"$f":"'800111A GeneraXBRL'!$C$13","v":"co-svsp-core:PrimerApellidoDeudorCxC"}]
["/*",null,{"$f":"'800111A GeneraXBRL'!$D$14","v":"Segundo apellido deudor"},{"$f":"'800111A GeneraXBRL'!$C$14","v":"co-svsp-core:SegundoApellidoDeudorCxC"}]
["/*",null,{"$f":"'800111A GeneraXBRL'!$D$15","v":"Primer nombre deudor"},{"$f":"'800111A GeneraXBRL'!$C$15","v":"co-svsp-core:PrimerNombreDeudorCxC"}]
["/*",null,{"$f":"'800111A GeneraXBRL'!$D$16","v":"Otros nombres deudor"},{"$f":"'800111A GeneraXBRL'!$C$16","v":"co-svsp-core:OtrosNombresDeudorCxC"}]
["/*",null,{"$f":"'800111A GeneraXBRL'!$D$17","v":"Razón Social deudor"},{"$f":"'800111A GeneraXBRL'!$C$17","v":"co-svsp-core:RazonSocialDeudorCxC"}]
["/*",null,{"$f":"'800111A GeneraXBRL'!$D$18","v":"Dirección deudor"},{"$f":"'800111A GeneraXBRL'!$C$18","v":"co-svsp-core:DireccionDeudorCxC"}]
["/*",null,{"$f":"'800111A GeneraXBRL'!$D$19","v":"Departamento deudor"},{"$f":"'800111A GeneraXBRL'!$C$19","v":"co-svsp-core:DepartamentoDeudorCxC"}]
["/*",null,{"$f":"'800111A GeneraXBRL'!$D$20","v":"Municipio deudor"},{"$f":"'800111A GeneraXBRL'!$C$20","v":"co-svsp-core:MunicipioDeudorCxC"}]
["/*",null,{"$f":"'800111A GeneraXBRL'!$D$21","v":"País deudor"},{"$f":"'800111A GeneraXBRL'!$C$21","v":"co-svsp-core:PaisDeudorCxC"}]
["/*",null,{"$f":"'800111A GeneraXBRL'!$D$22","v":"Saldo cuentas por cobrar"},{"$f":"'800111A GeneraXBRL'!$C$22","v":"co-svsp-core:SaldoCuentasPorCobrarCxC"}]
["/*",null,"--86--"]
["/*",null,{"$f":"'800111A GeneraXBRL'!$D$11","v":"Tipo de documento del deudor"},{"$f":"'800111A GeneraXBRL'!$C$11","v":"co-svsp-core:TipoDeDocumentoDeudorCxC"}]
["/*",null,{"$f":"'800111A GeneraXBRL'!$D$12","v":"Número de identificación del deudor"},{"$f":"'800111A GeneraXBRL'!$C$12","v":"co-svsp-core:NumeroIdentificacionDeudorCxC"}]
["/*",null,{"$f":"'800111A GeneraXBRL'!$D$13","v":"Primer apellido deudor"},{"$f":"'800111A GeneraXBRL'!$C$13","v":"co-svsp-core:PrimerApellidoDeudorCxC"}]
["/*",null,{"$f":"'800111A GeneraXBRL'!$D$14","v":"Segundo apellido deudor"},{"$f":"'800111A GeneraXBRL'!$C$14","v":"co-svsp-core:SegundoApellidoDeudorCxC"}]
["/*",null,{"$f":"'800111A GeneraXBRL'!$D$15","v":"Primer nombre deudor"},{"$f":"'800111A GeneraXBRL'!$C$15","v":"co-svsp-core:PrimerNombreDeudorCxC"}]
["/*",null,{"$f":"'800111A GeneraXBRL'!$D$16","v":"Otros nombres deudor"},{"$f":"'800111A GeneraXBRL'!$C$16","v":"co-svsp-core:OtrosNombresDeudorCxC"}]
["/*",null,{"$f":"'800111A GeneraXBRL'!$D$17","v":"Razón Social deudor"},{"$f":"'800111A GeneraXBRL'!$C$17","v":"co-svsp-core:RazonSocialDeudorCxC"}]
["/*",null,{"$f":"'800111A GeneraXBRL'!$D$18","v":"Dirección deudor"},{"$f":"'800111A GeneraXBRL'!$C$18","v":"co-svsp-core:DireccionDeudorCxC"}]
["/*",null,{"$f":"'800111A GeneraXBRL'!$D$19","v":"Departamento deudor"},{"$f":"'800111A GeneraXBRL'!$C$19","v":"co-svsp-core:DepartamentoDeudorCxC"}]
["/*",null,{"$f":"'800111A GeneraXBRL'!$D$20","v":"Municipio deudor"},{"$f":"'800111A GeneraXBRL'!$C$20","v":"co-svsp-core:MunicipioDeudorCxC"}]
["/*",null,{"$f":"'800111A GeneraXBRL'!$D$21","v":"País deudor"},{"$f":"'800111A GeneraXBRL'!$C$21","v":"co-svsp-core:PaisDeudorCxC"}]
["/*",null,{"$f":"'800111A GeneraXBRL'!$D$22","v":"Saldo cuentas por cobrar"},{"$f":"'800111A GeneraXBRL'!$C$22","v":"co-svsp-core:SaldoCuentasPorCobrarCxC"}]
["/*",null,"--87--"]
["/*",null,{"$f":"'800111A GeneraXBRL'!$D$11","v":"Tipo de documento del deudor"},{"$f":"'800111A GeneraXBRL'!$C$11","v":"co-svsp-core:TipoDeDocumentoDeudorCxC"}]
["/*",null,{"$f":"'800111A GeneraXBRL'!$D$12","v":"Número de identificación del deudor"},{"$f":"'800111A GeneraXBRL'!$C$12","v":"co-svsp-core:NumeroIdentificacionDeudorCxC"}]
["/*",null,{"$f":"'800111A GeneraXBRL'!$D$13","v":"Primer apellido deudor"},{"$f":"'800111A GeneraXBRL'!$C$13","v":"co-svsp-core:PrimerApellidoDeudorCxC"}]
["/*",null,{"$f":"'800111A GeneraXBRL'!$D$14","v":"Segundo apellido deudor"},{"$f":"'800111A GeneraXBRL'!$C$14","v":"co-svsp-core:SegundoApellidoDeudorCxC"}]
["/*",null,{"$f":"'800111A GeneraXBRL'!$D$15","v":"Primer nombre deudor"},{"$f":"'800111A GeneraXBRL'!$C$15","v":"co-svsp-core:PrimerNombreDeudorCxC"}]
[{"$f":"IF(G1568=\"\",\"/*\",\"\")","v":"/*"},null,{"$f":"'800111A GeneraXBRL'!$D$16","v":"Otros nombres deudor"},{"$f":"'800111A GeneraXBRL'!$C$16","v":"co-svsp-core:OtrosNombresDeudorCxC"}]
["/*",null,{"$f":"'800111A GeneraXBRL'!$D$17","v":"Razón Social deudor"},{"$f":"'800111A GeneraXBRL'!$C$17","v":"co-svsp-core:RazonSocialDeudorCxC"}]
["/*",null,{"$f":"'800111A GeneraXBRL'!$D$18","v":"Dirección deudor"},{"$f":"'800111A GeneraXBRL'!$C$18","v":"co-svsp-core:DireccionDeudorCxC"}]
["/*",null,{"$f":"'800111A GeneraXBRL'!$D$19","v":"Departamento deudor"},{"$f":"'800111A GeneraXBRL'!$C$19","v":"co-svsp-core:DepartamentoDeudorCxC"}]
["/*",null,{"$f":"'800111A GeneraXBRL'!$D$20","v":"Municipio deudor"},{"$f":"'800111A GeneraXBRL'!$C$20","v":"co-svsp-core:MunicipioDeudorCxC"}]
["/*",null,{"$f":"'800111A GeneraXBRL'!$D$21","v":"País deudor"},{"$f":"'800111A GeneraXBRL'!$C$21","v":"co-svsp-core:PaisDeudorCxC"}]
["/*",null,{"$f":"'800111A GeneraXBRL'!$D$22","v":"Saldo cuentas por cobrar"},{"$f":"'800111A GeneraXBRL'!$C$22","v":"co-svsp-core:SaldoCuentasPorCobrarCxC"}]
["/*",null,"--88--"]
["/*",null,{"$f":"'800111A GeneraXBRL'!$D$11","v":"Tipo de documento del deudor"},{"$f":"'800111A GeneraXBRL'!$C$11","v":"co-svsp-core:TipoDeDocumentoDeudorCxC"}]
["/*",null,{"$f":"'800111A GeneraXBRL'!$D$12","v":"Número de identificación del deudor"},{"$f":"'800111A GeneraXBRL'!$C$12","v":"co-svsp-core:NumeroIdentificacionDeudorCxC"}]
["/*",null,{"$f":"'800111A GeneraXBRL'!$D$13","v":"Primer apellido deudor"},{"$f":"'800111A GeneraXBRL'!$C$13","v":"co-svsp-core:PrimerApellidoDeudorCxC"}]
["/*",null,{"$f":"'800111A GeneraXBRL'!$D$14","v":"Segundo apellido deudor"},{"$f":"'800111A GeneraXBRL'!$C$14","v":"co-svsp-core:SegundoApellidoDeudorCxC"}]
["/*",null,{"$f":"'800111A GeneraXBRL'!$D$15","v":"Primer nombre deudor"},{"$f":"'800111A GeneraXBRL'!$C$15","v":"co-svsp-core:PrimerNombreDeudorCxC"}]
["/*",null,{"$f":"'800111A GeneraXBRL'!$D$16","v":"Otros nombres deudor"},{"$f":"'800111A GeneraXBRL'!$C$16","v":"co-svsp-core:OtrosNombresDeudorCxC"}]
["/*",null,{"$f":"'800111A GeneraXBRL'!$D$17","v":"Razón Social deudor"},{"$f":"'800111A GeneraXBRL'!$C$17","v":"co-svsp-core:RazonSocialDeudorCxC"}]
["/*",null,{"$f":"'800111A GeneraXBRL'!$D$18","v":"Dirección deudor"},{"$f":"'800111A GeneraXBRL'!$C$18","v":"co-svsp-core:DireccionDeudorCxC"}]
["/*",null,{"$f":"'800111A GeneraXBRL'!$D$19","v":"Departamento deudor"},{"$f":"'800111A GeneraXBRL'!$C$19","v":"co-svsp-core:DepartamentoDeudorCxC"}]
["/*",null,{"$f":"'800111A GeneraXBRL'!$D$20","v":"Municipio deudor"},{"$f":"'800111A GeneraXBRL'!$C$20","v":"co-svsp-core:MunicipioDeudorCxC"}]
["/*",null,{"$f":"'800111A GeneraXBRL'!$D$21","v":"País deudor"},{"$f":"'800111A GeneraXBRL'!$C$21","v":"co-svsp-core:PaisDeudorCxC"}]
["/*",null,{"$f":"'800111A GeneraXBRL'!$D$22","v":"Saldo cuentas por cobrar"},{"$f":"'800111A GeneraXBRL'!$C$22","v":"co-svsp-core:SaldoCuentasPorCobrarCxC"}]
["/*",null,"--89--"]
["/*",null,{"$f":"'800111A GeneraXBRL'!$D$11","v":"Tipo de documento del deudor"},{"$f":"'800111A GeneraXBRL'!$C$11","v":"co-svsp-core:TipoDeDocumentoDeudorCxC"}]
["/*",null,{"$f":"'800111A GeneraXBRL'!$D$12","v":"Número de identificación del deudor"},{"$f":"'800111A GeneraXBRL'!$C$12","v":"co-svsp-core:NumeroIdentificacionDeudorCxC"}]
["/*",null,{"$f":"'800111A GeneraXBRL'!$D$13","v":"Primer apellido deudor"},{"$f":"'800111A GeneraXBRL'!$C$13","v":"co-svsp-core:PrimerApellidoDeudorCxC"}]
["/*",null,{"$f":"'800111A GeneraXBRL'!$D$14","v":"Segundo apellido deudor"},{"$f":"'800111A GeneraXBRL'!$C$14","v":"co-svsp-core:SegundoApellidoDeudorCxC"}]
["/*",null,{"$f":"'800111A GeneraXBRL'!$D$15","v":"Primer nombre deudor"},{"$f":"'800111A GeneraXBRL'!$C$15","v":"co-svsp-core:PrimerNombreDeudorCxC"}]
["/*",null,{"$f":"'800111A GeneraXBRL'!$D$16","v":"Otros nombres deudor"},{"$f":"'800111A GeneraXBRL'!$C$16","v":"co-svsp-core:OtrosNombresDeudorCxC"}]
["/*",null,{"$f":"'800111A GeneraXBRL'!$D$17","v":"Razón Social deudor"},{"$f":"'800111A GeneraXBRL'!$C$17","v":"co-svsp-core:RazonSocialDeudorCxC"}]
["/*",null,{"$f":"'800111A GeneraXBRL'!$D$18","v":"Dirección deudor"},{"$f":"'800111A GeneraXBRL'!$C$18","v":"co-svsp-core:DireccionDeudorCxC"}]
["/*",null,{"$f":"'800111A GeneraXBRL'!$D$19","v":"Departamento deudor"},{"$f":"'800111A GeneraXBRL'!$C$19","v":"co-svsp-core:DepartamentoDeudorCxC"}]
["/*",null,{"$f":"'800111A GeneraXBRL'!$D$20","v":"Municipio deudor"},{"$f":"'800111A GeneraXBRL'!$C$20","v":"co-svsp-core:MunicipioDeudorCxC"}]
["/*",null,{"$f":"'800111A GeneraXBRL'!$D$21","v":"País deudor"},{"$f":"'800111A GeneraXBRL'!$C$21","v":"co-svsp-core:PaisDeudorCxC"}]
["/*",null,{"$f":"'800111A GeneraXBRL'!$D$22","v":"Saldo cuentas por cobrar"},{"$f":"'800111A GeneraXBRL'!$C$22","v":"co-svsp-core:SaldoCuentasPorCobrarCxC"}]
["/*",null,"--90--"]
["/*",null,{"$f":"'800111A GeneraXBRL'!$D$11","v":"Tipo de documento del deudor"},{"$f":"'800111A GeneraXBRL'!$C$11","v":"co-svsp-core:TipoDeDocumentoDeudorCxC"}]
["/*",null,{"$f":"'800111A GeneraXBRL'!$D$12","v":"Número de identificación del deudor"},{"$f":"'800111A GeneraXBRL'!$C$12","v":"co-svsp-core:NumeroIdentificacionDeudorCxC"}]
["/*",null,{"$f":"'800111A GeneraXBRL'!$D$13","v":"Primer apellido deudor"},{"$f":"'800111A GeneraXBRL'!$C$13","v":"co-svsp-core:PrimerApellidoDeudorCxC"}]
["/*",null,{"$f":"'800111A GeneraXBRL'!$D$14","v":"Segundo apellido deudor"},{"$f":"'800111A GeneraXBRL'!$C$14","v":"co-svsp-core:SegundoApellidoDeudorCxC"}]
["/*",null,{"$f":"'800111A GeneraXBRL'!$D$15","v":"Primer nombre deudor"},{"$f":"'800111A GeneraXBRL'!$C$15","v":"co-svsp-core:PrimerNombreDeudorCxC"}]
["/*",null,{"$f":"'800111A GeneraXBRL'!$D$16","v":"Otros nombres deudor"},{"$f":"'800111A GeneraXBRL'!$C$16","v":"co-svsp-core:OtrosNombresDeudorCxC"}]
["/*",null,{"$f":"'800111A GeneraXBRL'!$D$17","v":"Razón Social deudor"},{"$f":"'800111A GeneraXBRL'!$C$17","v":"co-svsp-core:RazonSocialDeudorCxC"}]
["/*",null,{"$f":"'800111A GeneraXBRL'!$D$18","v":"Dirección deudor"},{"$f":"'800111A GeneraXBRL'!$C$18","v":"co-svsp-core:DireccionDeudorCxC"}]
["/*",null,{"$f":"'800111A GeneraXBRL'!$D$19","v":"Departamento deudor"},{"$f":"'800111A GeneraXBRL'!$C$19","v":"co-svsp-core:DepartamentoDeudorCxC"}]
["/*",null,{"$f":"'800111A GeneraXBRL'!$D$20","v":"Municipio deudor"},{"$f":"'800111A GeneraXBRL'!$C$20","v":"co-svsp-core:MunicipioDeudorCxC"}]
["/*",null,{"$f":"'800111A GeneraXBRL'!$D$21","v":"País deudor"},{"$f":"'800111A GeneraXBRL'!$C$21","v":"co-svsp-core:PaisDeudorCxC"}]
["/*",null,{"$f":"'800111A GeneraXBRL'!$D$22","v":"Saldo cuentas por cobrar"},{"$f":"'800111A GeneraXBRL'!$C$22","v":"co-svsp-core:SaldoCuentasPorCobrarCxC"}]
["/*",null,"--91--"]
["/*",null,{"$f":"'800111A GeneraXBRL'!$D$11","v":"Tipo de documento del deudor"},{"$f":"'800111A GeneraXBRL'!$C$11","v":"co-svsp-core:TipoDeDocumentoDeudorCxC"}]
["/*",null,{"$f":"'800111A GeneraXBRL'!$D$12","v":"Número de identificación del deudor"},{"$f":"'800111A GeneraXBRL'!$C$12","v":"co-svsp-core:NumeroIdentificacionDeudorCxC"}]
["/*",null,{"$f":"'800111A GeneraXBRL'!$D$13","v":"Primer apellido deudor"},{"$f":"'800111A GeneraXBRL'!$C$13","v":"co-svsp-core:PrimerApellidoDeudorCxC"}]
["/*",null,{"$f":"'800111A GeneraXBRL'!$D$14","v":"Segundo apellido deudor"},{"$f":"'800111A GeneraXBRL'!$C$14","v":"co-svsp-core:SegundoApellidoDeudorCxC"}]
["/*",null,{"$f":"'800111A GeneraXBRL'!$D$15","v":"Primer nombre deudor"},{"$f":"'800111A GeneraXBRL'!$C$15","v":"co-svsp-core:PrimerNombreDeudorCxC"}]
["/*",null,{"$f":"'800111A GeneraXBRL'!$D$16","v":"Otros nombres deudor"},{"$f":"'800111A GeneraXBRL'!$C$16","v":"co-svsp-core:OtrosNombresDeudorCxC"}]
["/*",null,{"$f":"'800111A GeneraXBRL'!$D$17","v":"Razón Social deudor"},{"$f":"'800111A GeneraXBRL'!$C$17","v":"co-svsp-core:RazonSocialDeudorCxC"}]
["/*",null,{"$f":"'800111A GeneraXBRL'!$D$18","v":"Dirección deudor"},{"$f":"'800111A GeneraXBRL'!$C$18","v":"co-svsp-core:DireccionDeudorCxC"}]
["/*",null,{"$f":"'800111A GeneraXBRL'!$D$19","v":"Departamento deudor"},{"$f":"'800111A GeneraXBRL'!$C$19","v":"co-svsp-core:DepartamentoDeudorCxC"}]
["/*",null,{"$f":"'800111A GeneraXBRL'!$D$20","v":"Municipio deudor"},{"$f":"'800111A GeneraXBRL'!$C$20","v":"co-svsp-core:MunicipioDeudorCxC"}]
["/*",null,{"$f":"'800111A GeneraXBRL'!$D$21","v":"País deudor"},{"$f":"'800111A GeneraXBRL'!$C$21","v":"co-svsp-core:PaisDeudorCxC"}]
["/*",null,{"$f":"'800111A GeneraXBRL'!$D$22","v":"Saldo cuentas por cobrar"},{"$f":"'800111A GeneraXBRL'!$C$22","v":"co-svsp-core:SaldoCuentasPorCobrarCxC"}]
["/*",null,"--92--"]
["/*",null,{"$f":"'800111A GeneraXBRL'!$D$11","v":"Tipo de documento del deudor"},{"$f":"'800111A GeneraXBRL'!$C$11","v":"co-svsp-core:TipoDeDocumentoDeudorCxC"}]
["/*",null,{"$f":"'800111A GeneraXBRL'!$D$12","v":"Número de identificación del deudor"},{"$f":"'800111A GeneraXBRL'!$C$12","v":"co-svsp-core:NumeroIdentificacionDeudorCxC"}]
["/*",null,{"$f":"'800111A GeneraXBRL'!$D$13","v":"Primer apellido deudor"},{"$f":"'800111A GeneraXBRL'!$C$13","v":"co-svsp-core:PrimerApellidoDeudorCxC"}]
["/*",null,{"$f":"'800111A GeneraXBRL'!$D$14","v":"Segundo apellido deudor"},{"$f":"'800111A GeneraXBRL'!$C$14","v":"co-svsp-core:SegundoApellidoDeudorCxC"}]
[{"$f":"IF(G1632=\"\",\"/*\",\"\")","v":"/*"},null,{"$f":"'800111A GeneraXBRL'!$D$15","v":"Primer nombre deudor"},{"$f":"'800111A GeneraXBRL'!$C$15","v":"co-svsp-core:PrimerNombreDeudorCxC"}]
["/*",null,{"$f":"'800111A GeneraXBRL'!$D$16","v":"Otros nombres deudor"},{"$f":"'800111A GeneraXBRL'!$C$16","v":"co-svsp-core:OtrosNombresDeudorCxC"}]
["/*",null,{"$f":"'800111A GeneraXBRL'!$D$17","v":"Razón Social deudor"},{"$f":"'800111A GeneraXBRL'!$C$17","v":"co-svsp-core:RazonSocialDeudorCxC"}]
["/*",null,{"$f":"'800111A GeneraXBRL'!$D$18","v":"Dirección deudor"},{"$f":"'800111A GeneraXBRL'!$C$18","v":"co-svsp-core:DireccionDeudorCxC"}]
["/*",null,{"$f":"'800111A GeneraXBRL'!$D$19","v":"Departamento deudor"},{"$f":"'800111A GeneraXBRL'!$C$19","v":"co-svsp-core:DepartamentoDeudorCxC"}]
["/*",null,{"$f":"'800111A GeneraXBRL'!$D$20","v":"Municipio deudor"},{"$f":"'800111A GeneraXBRL'!$C$20","v":"co-svsp-core:MunicipioDeudorCxC"}]
["/*",null,{"$f":"'800111A GeneraXBRL'!$D$21","v":"País deudor"},{"$f":"'800111A GeneraXBRL'!$C$21","v":"co-svsp-core:PaisDeudorCxC"}]
["/*",null,{"$f":"'800111A GeneraXBRL'!$D$22","v":"Saldo cuentas por cobrar"},{"$f":"'800111A GeneraXBRL'!$C$22","v":"co-svsp-core:SaldoCuentasPorCobrarCxC"}]
["/*",null,"--93--"]
["/*",null,{"$f":"'800111A GeneraXBRL'!$D$11","v":"Tipo de documento del deudor"},{"$f":"'800111A GeneraXBRL'!$C$11","v":"co-svsp-core:TipoDeDocumentoDeudorCxC"}]
["/*",null,{"$f":"'800111A GeneraXBRL'!$D$12","v":"Número de identificación del deudor"},{"$f":"'800111A GeneraXBRL'!$C$12","v":"co-svsp-core:NumeroIdentificacionDeudorCxC"}]
["/*",null,{"$f":"'800111A GeneraXBRL'!$D$13","v":"Primer apellido deudor"},{"$f":"'800111A GeneraXBRL'!$C$13","v":"co-svsp-core:PrimerApellidoDeudorCxC"}]
["/*",null,{"$f":"'800111A GeneraXBRL'!$D$14","v":"Segundo apellido deudor"},{"$f":"'800111A GeneraXBRL'!$C$14","v":"co-svsp-core:SegundoApellidoDeudorCxC"}]
["/*",null,{"$f":"'800111A GeneraXBRL'!$D$15","v":"Primer nombre deudor"},{"$f":"'800111A GeneraXBRL'!$C$15","v":"co-svsp-core:PrimerNombreDeudorCxC"}]
["/*",null,{"$f":"'800111A GeneraXBRL'!$D$16","v":"Otros nombres deudor"},{"$f":"'800111A GeneraXBRL'!$C$16","v":"co-svsp-core:OtrosNombresDeudorCxC"}]
["/*",null,{"$f":"'800111A GeneraXBRL'!$D$17","v":"Razón Social deudor"},{"$f":"'800111A GeneraXBRL'!$C$17","v":"co-svsp-core:RazonSocialDeudorCxC"}]
["/*",null,{"$f":"'800111A GeneraXBRL'!$D$18","v":"Dirección deudor"},{"$f":"'800111A GeneraXBRL'!$C$18","v":"co-svsp-core:DireccionDeudorCxC"}]
["/*",null,{"$f":"'800111A GeneraXBRL'!$D$19","v":"Departamento deudor"},{"$f":"'800111A GeneraXBRL'!$C$19","v":"co-svsp-core:DepartamentoDeudorCxC"}]
["/*",null,{"$f":"'800111A GeneraXBRL'!$D$20","v":"Municipio deudor"},{"$f":"'800111A GeneraXBRL'!$C$20","v":"co-svsp-core:MunicipioDeudorCxC"}]
["/*",null,{"$f":"'800111A GeneraXBRL'!$D$21","v":"País deudor"},{"$f":"'800111A GeneraXBRL'!$C$21","v":"co-svsp-core:PaisDeudorCxC"}]
["/*",null,{"$f":"'800111A GeneraXBRL'!$D$22","v":"Saldo cuentas por cobrar"},{"$f":"'800111A GeneraXBRL'!$C$22","v":"co-svsp-core:SaldoCuentasPorCobrarCxC"}]
["/*",null,"--94--"]
["/*",null,{"$f":"'800111A GeneraXBRL'!$D$11","v":"Tipo de documento del deudor"},{"$f":"'800111A GeneraXBRL'!$C$11","v":"co-svsp-core:TipoDeDocumentoDeudorCxC"}]
["/*",null,{"$f":"'800111A GeneraXBRL'!$D$12","v":"Número de identificación del deudor"},{"$f":"'800111A GeneraXBRL'!$C$12","v":"co-svsp-core:NumeroIdentificacionDeudorCxC"}]
["/*",null,{"$f":"'800111A GeneraXBRL'!$D$13","v":"Primer apellido deudor"},{"$f":"'800111A GeneraXBRL'!$C$13","v":"co-svsp-core:PrimerApellidoDeudorCxC"}]
["/*",null,{"$f":"'800111A GeneraXBRL'!$D$14","v":"Segundo apellido deudor"},{"$f":"'800111A GeneraXBRL'!$C$14","v":"co-svsp-core:SegundoApellidoDeudorCxC"}]
["/*",null,{"$f":"'800111A GeneraXBRL'!$D$15","v":"Primer nombre deudor"},{"$f":"'800111A GeneraXBRL'!$C$15","v":"co-svsp-core:PrimerNombreDeudorCxC"}]
["/*",null,{"$f":"'800111A GeneraXBRL'!$D$16","v":"Otros nombres deudor"},{"$f":"'800111A GeneraXBRL'!$C$16","v":"co-svsp-core:OtrosNombresDeudorCxC"}]
["/*",null,{"$f":"'800111A GeneraXBRL'!$D$17","v":"Razón Social deudor"},{"$f":"'800111A GeneraXBRL'!$C$17","v":"co-svsp-core:RazonSocialDeudorCxC"}]
["/*",null,{"$f":"'800111A GeneraXBRL'!$D$18","v":"Dirección deudor"},{"$f":"'800111A GeneraXBRL'!$C$18","v":"co-svsp-core:DireccionDeudorCxC"}]
["/*",null,{"$f":"'800111A GeneraXBRL'!$D$19","v":"Departamento deudor"},{"$f":"'800111A GeneraXBRL'!$C$19","v":"co-svsp-core:DepartamentoDeudorCxC"}]
["/*",null,{"$f":"'800111A GeneraXBRL'!$D$20","v":"Municipio deudor"},{"$f":"'800111A GeneraXBRL'!$C$20","v":"co-svsp-core:MunicipioDeudorCxC"}]
["/*",null,{"$f":"'800111A GeneraXBRL'!$D$21","v":"País deudor"},{"$f":"'800111A GeneraXBRL'!$C$21","v":"co-svsp-core:PaisDeudorCxC"}]
["/*",null,{"$f":"'800111A GeneraXBRL'!$D$22","v":"Saldo cuentas por cobrar"},{"$f":"'800111A GeneraXBRL'!$C$22","v":"co-svsp-core:SaldoCuentasPorCobrarCxC"}]
["/*",null,"--95--"]
["/*",null,{"$f":"'800111A GeneraXBRL'!$D$11","v":"Tipo de documento del deudor"},{"$f":"'800111A GeneraXBRL'!$C$11","v":"co-svsp-core:TipoDeDocumentoDeudorCxC"}]
["/*",null,{"$f":"'800111A GeneraXBRL'!$D$12","v":"Número de identificación del deudor"},{"$f":"'800111A GeneraXBRL'!$C$12","v":"co-svsp-core:NumeroIdentificacionDeudorCxC"}]
["/*",null,{"$f":"'800111A GeneraXBRL'!$D$13","v":"Primer apellido deudor"},{"$f":"'800111A GeneraXBRL'!$C$13","v":"co-svsp-core:PrimerApellidoDeudorCxC"}]
["/*",null,{"$f":"'800111A GeneraXBRL'!$D$14","v":"Segundo apellido deudor"},{"$f":"'800111A GeneraXBRL'!$C$14","v":"co-svsp-core:SegundoApellidoDeudorCxC"}]
["/*",null,{"$f":"'800111A GeneraXBRL'!$D$15","v":"Primer nombre deudor"},{"$f":"'800111A GeneraXBRL'!$C$15","v":"co-svsp-core:PrimerNombreDeudorCxC"}]
["/*",null,{"$f":"'800111A GeneraXBRL'!$D$16","v":"Otros nombres deudor"},{"$f":"'800111A GeneraXBRL'!$C$16","v":"co-svsp-core:OtrosNombresDeudorCxC"}]
["/*",null,{"$f":"'800111A GeneraXBRL'!$D$17","v":"Razón Social deudor"},{"$f":"'800111A GeneraXBRL'!$C$17","v":"co-svsp-core:RazonSocialDeudorCxC"}]
["/*",null,{"$f":"'800111A GeneraXBRL'!$D$18","v":"Dirección deudor"},{"$f":"'800111A GeneraXBRL'!$C$18","v":"co-svsp-core:DireccionDeudorCxC"}]
["/*",null,{"$f":"'800111A GeneraXBRL'!$D$19","v":"Departamento deudor"},{"$f":"'800111A GeneraXBRL'!$C$19","v":"co-svsp-core:DepartamentoDeudorCxC"}]
["/*",null,{"$f":"'800111A GeneraXBRL'!$D$20","v":"Municipio deudor"},{"$f":"'800111A GeneraXBRL'!$C$20","v":"co-svsp-core:MunicipioDeudorCxC"}]
["/*",null,{"$f":"'800111A GeneraXBRL'!$D$21","v":"País deudor"},{"$f":"'800111A GeneraXBRL'!$C$21","v":"co-svsp-core:PaisDeudorCxC"}]
["/*",null,{"$f":"'800111A GeneraXBRL'!$D$22","v":"Saldo cuentas por cobrar"},{"$f":"'800111A GeneraXBRL'!$C$22","v":"co-svsp-core:SaldoCuentasPorCobrarCxC"}]
["/*",null,"--96--"]
["/*",null,{"$f":"'800111A GeneraXBRL'!$D$11","v":"Tipo de documento del deudor"},{"$f":"'800111A GeneraXBRL'!$C$11","v":"co-svsp-core:TipoDeDocumentoDeudorCxC"}]
["/*",null,{"$f":"'800111A GeneraXBRL'!$D$12","v":"Número de identificación del deudor"},{"$f":"'800111A GeneraXBRL'!$C$12","v":"co-svsp-core:NumeroIdentificacionDeudorCxC"}]
["/*",null,{"$f":"'800111A GeneraXBRL'!$D$13","v":"Primer apellido deudor"},{"$f":"'800111A GeneraXBRL'!$C$13","v":"co-svsp-core:PrimerApellidoDeudorCxC"}]
["/*",null,{"$f":"'800111A GeneraXBRL'!$D$14","v":"Segundo apellido deudor"},{"$f":"'800111A GeneraXBRL'!$C$14","v":"co-svsp-core:SegundoApellidoDeudorCxC"}]
["/*",null,{"$f":"'800111A GeneraXBRL'!$D$15","v":"Primer nombre deudor"},{"$f":"'800111A GeneraXBRL'!$C$15","v":"co-svsp-core:PrimerNombreDeudorCxC"}]
["/*",null,{"$f":"'800111A GeneraXBRL'!$D$16","v":"Otros nombres deudor"},{"$f":"'800111A GeneraXBRL'!$C$16","v":"co-svsp-core:OtrosNombresDeudorCxC"}]
["/*",null,{"$f":"'800111A GeneraXBRL'!$D$17","v":"Razón Social deudor"},{"$f":"'800111A GeneraXBRL'!$C$17","v":"co-svsp-core:RazonSocialDeudorCxC"}]
["/*",null,{"$f":"'800111A GeneraXBRL'!$D$18","v":"Dirección deudor"},{"$f":"'800111A GeneraXBRL'!$C$18","v":"co-svsp-core:DireccionDeudorCxC"}]
["/*",null,{"$f":"'800111A GeneraXBRL'!$D$19","v":"Departamento deudor"},{"$f":"'800111A GeneraXBRL'!$C$19","v":"co-svsp-core:DepartamentoDeudorCxC"}]
["/*",null,{"$f":"'800111A GeneraXBRL'!$D$20","v":"Municipio deudor"},{"$f":"'800111A GeneraXBRL'!$C$20","v":"co-svsp-core:MunicipioDeudorCxC"}]
["/*",null,{"$f":"'800111A GeneraXBRL'!$D$21","v":"País deudor"},{"$f":"'800111A GeneraXBRL'!$C$21","v":"co-svsp-core:PaisDeudorCxC"}]
["/*",null,{"$f":"'800111A GeneraXBRL'!$D$22","v":"Saldo cuentas por cobrar"},{"$f":"'800111A GeneraXBRL'!$C$22","v":"co-svsp-core:SaldoCuentasPorCobrarCxC"}]
["/*",null,"--97--"]
["/*",null,{"$f":"'800111A GeneraXBRL'!$D$11","v":"Tipo de documento del deudor"},{"$f":"'800111A GeneraXBRL'!$C$11","v":"co-svsp-core:TipoDeDocumentoDeudorCxC"}]
["/*",null,{"$f":"'800111A GeneraXBRL'!$D$12","v":"Número de identificación del deudor"},{"$f":"'800111A GeneraXBRL'!$C$12","v":"co-svsp-core:NumeroIdentificacionDeudorCxC"}]
["/*",null,{"$f":"'800111A GeneraXBRL'!$D$13","v":"Primer apellido deudor"},{"$f":"'800111A GeneraXBRL'!$C$13","v":"co-svsp-core:PrimerApellidoDeudorCxC"}]
[{"$f":"IF(G1696=\"\",\"/*\",\"\")","v":"/*"},null,{"$f":"'800111A GeneraXBRL'!$D$14","v":"Segundo apellido deudor"},{"$f":"'800111A GeneraXBRL'!$C$14","v":"co-svsp-core:SegundoApellidoDeudorCxC"}]
["/*",null,{"$f":"'800111A GeneraXBRL'!$D$15","v":"Primer nombre deudor"},{"$f":"'800111A GeneraXBRL'!$C$15","v":"co-svsp-core:PrimerNombreDeudorCxC"}]
["/*",null,{"$f":"'800111A GeneraXBRL'!$D$16","v":"Otros nombres deudor"},{"$f":"'800111A GeneraXBRL'!$C$16","v":"co-svsp-core:OtrosNombresDeudorCxC"}]
["/*",null,{"$f":"'800111A GeneraXBRL'!$D$17","v":"Razón Social deudor"},{"$f":"'800111A GeneraXBRL'!$C$17","v":"co-svsp-core:RazonSocialDeudorCxC"}]
["/*",null,{"$f":"'800111A GeneraXBRL'!$D$18","v":"Dirección deudor"},{"$f":"'800111A GeneraXBRL'!$C$18","v":"co-svsp-core:DireccionDeudorCxC"}]
["/*",null,{"$f":"'800111A GeneraXBRL'!$D$19","v":"Departamento deudor"},{"$f":"'800111A GeneraXBRL'!$C$19","v":"co-svsp-core:DepartamentoDeudorCxC"}]
["/*",null,{"$f":"'800111A GeneraXBRL'!$D$20","v":"Municipio deudor"},{"$f":"'800111A GeneraXBRL'!$C$20","v":"co-svsp-core:MunicipioDeudorCxC"}]
["/*",null,{"$f":"'800111A GeneraXBRL'!$D$21","v":"País deudor"},{"$f":"'800111A GeneraXBRL'!$C$21","v":"co-svsp-core:PaisDeudorCxC"}]
["/*",null,{"$f":"'800111A GeneraXBRL'!$D$22","v":"Saldo cuentas por cobrar"},{"$f":"'800111A GeneraXBRL'!$C$22","v":"co-svsp-core:SaldoCuentasPorCobrarCxC"}]
["/*",null,"--98--"]
["/*",null,{"$f":"'800111A GeneraXBRL'!$D$11","v":"Tipo de documento del deudor"},{"$f":"'800111A GeneraXBRL'!$C$11","v":"co-svsp-core:TipoDeDocumentoDeudorCxC"}]
["/*",null,{"$f":"'800111A GeneraXBRL'!$D$12","v":"Número de identificación del deudor"},{"$f":"'800111A GeneraXBRL'!$C$12","v":"co-svsp-core:NumeroIdentificacionDeudorCxC"}]
["/*",null,{"$f":"'800111A GeneraXBRL'!$D$13","v":"Primer apellido deudor"},{"$f":"'800111A GeneraXBRL'!$C$13","v":"co-svsp-core:PrimerApellidoDeudorCxC"}]
["/*",null,{"$f":"'800111A GeneraXBRL'!$D$14","v":"Segundo apellido deudor"},{"$f":"'800111A GeneraXBRL'!$C$14","v":"co-svsp-core:SegundoApellidoDeudorCxC"}]
["/*",null,{"$f":"'800111A GeneraXBRL'!$D$15","v":"Primer nombre deudor"},{"$f":"'800111A GeneraXBRL'!$C$15","v":"co-svsp-core:PrimerNombreDeudorCxC"}]
["/*",null,{"$f":"'800111A GeneraXBRL'!$D$16","v":"Otros nombres deudor"},{"$f":"'800111A GeneraXBRL'!$C$16","v":"co-svsp-core:OtrosNombresDeudorCxC"}]
["/*",null,{"$f":"'800111A GeneraXBRL'!$D$17","v":"Razón Social deudor"},{"$f":"'800111A GeneraXBRL'!$C$17","v":"co-svsp-core:RazonSocialDeudorCxC"}]
["/*",null,{"$f":"'800111A GeneraXBRL'!$D$18","v":"Dirección deudor"},{"$f":"'800111A GeneraXBRL'!$C$18","v":"co-svsp-core:DireccionDeudorCxC"}]
["/*",null,{"$f":"'800111A GeneraXBRL'!$D$19","v":"Departamento deudor"},{"$f":"'800111A GeneraXBRL'!$C$19","v":"co-svsp-core:DepartamentoDeudorCxC"}]
["/*",null,{"$f":"'800111A GeneraXBRL'!$D$20","v":"Municipio deudor"},{"$f":"'800111A GeneraXBRL'!$C$20","v":"co-svsp-core:MunicipioDeudorCxC"}]
["/*",null,{"$f":"'800111A GeneraXBRL'!$D$21","v":"País deudor"},{"$f":"'800111A GeneraXBRL'!$C$21","v":"co-svsp-core:PaisDeudorCxC"}]
["/*",null,{"$f":"'800111A GeneraXBRL'!$D$22","v":"Saldo cuentas por cobrar"},{"$f":"'800111A GeneraXBRL'!$C$22","v":"co-svsp-core:SaldoCuentasPorCobrarCxC"}]
["/*",null,"--99--"]
["/*",null,{"$f":"'800111A GeneraXBRL'!$D$11","v":"Tipo de documento del deudor"},{"$f":"'800111A GeneraXBRL'!$C$11","v":"co-svsp-core:TipoDeDocumentoDeudorCxC"}]
["/*",null,{"$f":"'800111A GeneraXBRL'!$D$12","v":"Número de identificación del deudor"},{"$f":"'800111A GeneraXBRL'!$C$12","v":"co-svsp-core:NumeroIdentificacionDeudorCxC"}]
["/*",null,{"$f":"'800111A GeneraXBRL'!$D$13","v":"Primer apellido deudor"},{"$f":"'800111A GeneraXBRL'!$C$13","v":"co-svsp-core:PrimerApellidoDeudorCxC"}]
["/*",null,{"$f":"'800111A GeneraXBRL'!$D$14","v":"Segundo apellido deudor"},{"$f":"'800111A GeneraXBRL'!$C$14","v":"co-svsp-core:SegundoApellidoDeudorCxC"}]
["/*",null,{"$f":"'800111A GeneraXBRL'!$D$15","v":"Primer nombre deudor"},{"$f":"'800111A GeneraXBRL'!$C$15","v":"co-svsp-core:PrimerNombreDeudorCxC"}]
["/*",null,{"$f":"'800111A GeneraXBRL'!$D$16","v":"Otros nombres deudor"},{"$f":"'800111A GeneraXBRL'!$C$16","v":"co-svsp-core:OtrosNombresDeudorCxC"}]
["/*",null,{"$f":"'800111A GeneraXBRL'!$D$17","v":"Razón Social deudor"},{"$f":"'800111A GeneraXBRL'!$C$17","v":"co-svsp-core:RazonSocialDeudorCxC"}]
["/*",null,{"$f":"'800111A GeneraXBRL'!$D$18","v":"Dirección deudor"},{"$f":"'800111A GeneraXBRL'!$C$18","v":"co-svsp-core:DireccionDeudorCxC"}]
["/*",null,{"$f":"'800111A GeneraXBRL'!$D$19","v":"Departamento deudor"},{"$f":"'800111A GeneraXBRL'!$C$19","v":"co-svsp-core:DepartamentoDeudorCxC"}]
["/*",null,{"$f":"'800111A GeneraXBRL'!$D$20","v":"Municipio deudor"},{"$f":"'800111A GeneraXBRL'!$C$20","v":"co-svsp-core:MunicipioDeudorCxC"}]
["/*",null,{"$f":"'800111A GeneraXBRL'!$D$21","v":"País deudor"},{"$f":"'800111A GeneraXBRL'!$C$21","v":"co-svsp-core:PaisDeudorCxC"}]
["/*",null,{"$f":"'800111A GeneraXBRL'!$D$22","v":"Saldo cuentas por cobrar"},{"$f":"'800111A GeneraXBRL'!$C$22","v":"co-svsp-core:SaldoCuentasPorCobrarCxC"}]
["/*",null,"--100--"]
["/*",null,{"$f":"'800111A GeneraXBRL'!$D$11","v":"Tipo de documento del deudor"},{"$f":"'800111A GeneraXBRL'!$C$11","v":"co-svsp-core:TipoDeDocumentoDeudorCxC"}]
["/*",null,{"$f":"'800111A GeneraXBRL'!$D$12","v":"Número de identificación del deudor"},{"$f":"'800111A GeneraXBRL'!$C$12","v":"co-svsp-core:NumeroIdentificacionDeudorCxC"}]
["/*",null,{"$f":"'800111A GeneraXBRL'!$D$13","v":"Primer apellido deudor"},{"$f":"'800111A GeneraXBRL'!$C$13","v":"co-svsp-core:PrimerApellidoDeudorCxC"}]
["/*",null,{"$f":"'800111A GeneraXBRL'!$D$14","v":"Segundo apellido deudor"},{"$f":"'800111A GeneraXBRL'!$C$14","v":"co-svsp-core:SegundoApellidoDeudorCxC"}]
["/*",null,{"$f":"'800111A GeneraXBRL'!$D$15","v":"Primer nombre deudor"},{"$f":"'800111A GeneraXBRL'!$C$15","v":"co-svsp-core:PrimerNombreDeudorCxC"}]
["/*",null,{"$f":"'800111A GeneraXBRL'!$D$16","v":"Otros nombres deudor"},{"$f":"'800111A GeneraXBRL'!$C$16","v":"co-svsp-core:OtrosNombresDeudorCxC"}]
["/*",null,{"$f":"'800111A GeneraXBRL'!$D$17","v":"Razón Social deudor"},{"$f":"'800111A GeneraXBRL'!$C$17","v":"co-svsp-core:RazonSocialDeudorCxC"}]
["/*",null,{"$f":"'800111A GeneraXBRL'!$D$18","v":"Dirección deudor"},{"$f":"'800111A GeneraXBRL'!$C$18","v":"co-svsp-core:DireccionDeudorCxC"}]
["/*",null,{"$f":"'800111A GeneraXBRL'!$D$19","v":"Departamento deudor"},{"$f":"'800111A GeneraXBRL'!$C$19","v":"co-svsp-core:DepartamentoDeudorCxC"}]
["/*",null,{"$f":"'800111A GeneraXBRL'!$D$20","v":"Municipio deudor"},{"$f":"'800111A GeneraXBRL'!$C$20","v":"co-svsp-core:MunicipioDeudorCxC"}]
["/*",null,{"$f":"'800111A GeneraXBRL'!$D$21","v":"País deudor"},{"$f":"'800111A GeneraXBRL'!$C$21","v":"co-svsp-core:PaisDeudorCxC"}]
["/*",null,{"$f":"'800111A GeneraXBRL'!$D$22","v":"Saldo cuentas por cobrar"},{"$f":"'800111A GeneraXBRL'!$C$22","v":"co-svsp-core:SaldoCuentasPorCobrarCxC"}]
["/*",null,"--101--"]
["/*",null,{"$f":"'800111A GeneraXBRL'!$D$11","v":"Tipo de documento del deudor"},{"$f":"'800111A GeneraXBRL'!$C$11","v":"co-svsp-core:TipoDeDocumentoDeudorCxC"}]
["/*",null,{"$f":"'800111A GeneraXBRL'!$D$12","v":"Número de identificación del deudor"},{"$f":"'800111A GeneraXBRL'!$C$12","v":"co-svsp-core:NumeroIdentificacionDeudorCxC"}]
["/*",null,{"$f":"'800111A GeneraXBRL'!$D$13","v":"Primer apellido deudor"},{"$f":"'800111A GeneraXBRL'!$C$13","v":"co-svsp-core:PrimerApellidoDeudorCxC"}]
["/*",null,{"$f":"'800111A GeneraXBRL'!$D$14","v":"Segundo apellido deudor"},{"$f":"'800111A GeneraXBRL'!$C$14","v":"co-svsp-core:SegundoApellidoDeudorCxC"}]
["/*",null,{"$f":"'800111A GeneraXBRL'!$D$15","v":"Primer nombre deudor"},{"$f":"'800111A GeneraXBRL'!$C$15","v":"co-svsp-core:PrimerNombreDeudorCxC"}]
["/*",null,{"$f":"'800111A GeneraXBRL'!$D$16","v":"Otros nombres deudor"},{"$f":"'800111A GeneraXBRL'!$C$16","v":"co-svsp-core:OtrosNombresDeudorCxC"}]
["/*",null,{"$f":"'800111A GeneraXBRL'!$D$17","v":"Razón Social deudor"},{"$f":"'800111A GeneraXBRL'!$C$17","v":"co-svsp-core:RazonSocialDeudorCxC"}]
["/*",null,{"$f":"'800111A GeneraXBRL'!$D$18","v":"Dirección deudor"},{"$f":"'800111A GeneraXBRL'!$C$18","v":"co-svsp-core:DireccionDeudorCxC"}]
["/*",null,{"$f":"'800111A GeneraXBRL'!$D$19","v":"Departamento deudor"},{"$f":"'800111A GeneraXBRL'!$C$19","v":"co-svsp-core:DepartamentoDeudorCxC"}]
["/*",null,{"$f":"'800111A GeneraXBRL'!$D$20","v":"Municipio deudor"},{"$f":"'800111A GeneraXBRL'!$C$20","v":"co-svsp-core:MunicipioDeudorCxC"}]
["/*",null,{"$f":"'800111A GeneraXBRL'!$D$21","v":"País deudor"},{"$f":"'800111A GeneraXBRL'!$C$21","v":"co-svsp-core:PaisDeudorCxC"}]
["/*",null,{"$f":"'800111A GeneraXBRL'!$D$22","v":"Saldo cuentas por cobrar"},{"$f":"'800111A GeneraXBRL'!$C$22","v":"co-svsp-core:SaldoCuentasPorCobrarCxC"}]
["/*",null,"--102--"]
["/*",null,{"$f":"'800111A GeneraXBRL'!$D$11","v":"Tipo de documento del deudor"},{"$f":"'800111A GeneraXBRL'!$C$11","v":"co-svsp-core:TipoDeDocumentoDeudorCxC"}]
["/*",null,{"$f":"'800111A GeneraXBRL'!$D$12","v":"Número de identificación del deudor"},{"$f":"'800111A GeneraXBRL'!$C$12","v":"co-svsp-core:NumeroIdentificacionDeudorCxC"}]
[{"$f":"IF(G1760=\"\",\"/*\",\"\")","v":"/*"},null,{"$f":"'800111A GeneraXBRL'!$D$13","v":"Primer apellido deudor"},{"$f":"'800111A GeneraXBRL'!$C$13","v":"co-svsp-core:PrimerApellidoDeudorCxC"}]
["/*",null,{"$f":"'800111A GeneraXBRL'!$D$14","v":"Segundo apellido deudor"},{"$f":"'800111A GeneraXBRL'!$C$14","v":"co-svsp-core:SegundoApellidoDeudorCxC"}]
["/*",null,{"$f":"'800111A GeneraXBRL'!$D$15","v":"Primer nombre deudor"},{"$f":"'800111A GeneraXBRL'!$C$15","v":"co-svsp-core:PrimerNombreDeudorCxC"}]
["/*",null,{"$f":"'800111A GeneraXBRL'!$D$16","v":"Otros nombres deudor"},{"$f":"'800111A GeneraXBRL'!$C$16","v":"co-svsp-core:OtrosNombresDeudorCxC"}]
["/*",null,{"$f":"'800111A GeneraXBRL'!$D$17","v":"Razón Social deudor"},{"$f":"'800111A GeneraXBRL'!$C$17","v":"co-svsp-core:RazonSocialDeudorCxC"}]
["/*",null,{"$f":"'800111A GeneraXBRL'!$D$18","v":"Dirección deudor"},{"$f":"'800111A GeneraXBRL'!$C$18","v":"co-svsp-core:DireccionDeudorCxC"}]
["/*",null,{"$f":"'800111A GeneraXBRL'!$D$19","v":"Departamento deudor"},{"$f":"'800111A GeneraXBRL'!$C$19","v":"co-svsp-core:DepartamentoDeudorCxC"}]
["/*",null,{"$f":"'800111A GeneraXBRL'!$D$20","v":"Municipio deudor"},{"$f":"'800111A GeneraXBRL'!$C$20","v":"co-svsp-core:MunicipioDeudorCxC"}]
["/*",null,{"$f":"'800111A GeneraXBRL'!$D$21","v":"País deudor"},{"$f":"'800111A GeneraXBRL'!$C$21","v":"co-svsp-core:PaisDeudorCxC"}]
["/*",null,{"$f":"'800111A GeneraXBRL'!$D$22","v":"Saldo cuentas por cobrar"},{"$f":"'800111A GeneraXBRL'!$C$22","v":"co-svsp-core:SaldoCuentasPorCobrarCxC"}]
["/*",null,"--103--"]
["/*",null,{"$f":"'800111A GeneraXBRL'!$D$11","v":"Tipo de documento del deudor"},{"$f":"'800111A GeneraXBRL'!$C$11","v":"co-svsp-core:TipoDeDocumentoDeudorCxC"}]
["/*",null,{"$f":"'800111A GeneraXBRL'!$D$12","v":"Número de identificación del deudor"},{"$f":"'800111A GeneraXBRL'!$C$12","v":"co-svsp-core:NumeroIdentificacionDeudorCxC"}]
["/*",null,{"$f":"'800111A GeneraXBRL'!$D$13","v":"Primer apellido deudor"},{"$f":"'800111A GeneraXBRL'!$C$13","v":"co-svsp-core:PrimerApellidoDeudorCxC"}]
["/*",null,{"$f":"'800111A GeneraXBRL'!$D$14","v":"Segundo apellido deudor"},{"$f":"'800111A GeneraXBRL'!$C$14","v":"co-svsp-core:SegundoApellidoDeudorCxC"}]
["/*",null,{"$f":"'800111A GeneraXBRL'!$D$15","v":"Primer nombre deudor"},{"$f":"'800111A GeneraXBRL'!$C$15","v":"co-svsp-core:PrimerNombreDeudorCxC"}]
["/*",null,{"$f":"'800111A GeneraXBRL'!$D$16","v":"Otros nombres deudor"},{"$f":"'800111A GeneraXBRL'!$C$16","v":"co-svsp-core:OtrosNombresDeudorCxC"}]
["/*",null,{"$f":"'800111A GeneraXBRL'!$D$17","v":"Razón Social deudor"},{"$f":"'800111A GeneraXBRL'!$C$17","v":"co-svsp-core:RazonSocialDeudorCxC"}]
["/*",null,{"$f":"'800111A GeneraXBRL'!$D$18","v":"Dirección deudor"},{"$f":"'800111A GeneraXBRL'!$C$18","v":"co-svsp-core:DireccionDeudorCxC"}]
["/*",null,{"$f":"'800111A GeneraXBRL'!$D$19","v":"Departamento deudor"},{"$f":"'800111A GeneraXBRL'!$C$19","v":"co-svsp-core:DepartamentoDeudorCxC"}]
["/*",null,{"$f":"'800111A GeneraXBRL'!$D$20","v":"Municipio deudor"},{"$f":"'800111A GeneraXBRL'!$C$20","v":"co-svsp-core:MunicipioDeudorCxC"}]
["/*",null,{"$f":"'800111A GeneraXBRL'!$D$21","v":"País deudor"},{"$f":"'800111A GeneraXBRL'!$C$21","v":"co-svsp-core:PaisDeudorCxC"}]
["/*",null,{"$f":"'800111A GeneraXBRL'!$D$22","v":"Saldo cuentas por cobrar"},{"$f":"'800111A GeneraXBRL'!$C$22","v":"co-svsp-core:SaldoCuentasPorCobrarCxC"}]
["/*",null,"--104--"]
["/*",null,{"$f":"'800111A GeneraXBRL'!$D$11","v":"Tipo de documento del deudor"},{"$f":"'800111A GeneraXBRL'!$C$11","v":"co-svsp-core:TipoDeDocumentoDeudorCxC"}]
["/*",null,{"$f":"'800111A GeneraXBRL'!$D$12","v":"Número de identificación del deudor"},{"$f":"'800111A GeneraXBRL'!$C$12","v":"co-svsp-core:NumeroIdentificacionDeudorCxC"}]
["/*",null,{"$f":"'800111A GeneraXBRL'!$D$13","v":"Primer apellido deudor"},{"$f":"'800111A GeneraXBRL'!$C$13","v":"co-svsp-core:PrimerApellidoDeudorCxC"}]
["/*",null,{"$f":"'800111A GeneraXBRL'!$D$14","v":"Segundo apellido deudor"},{"$f":"'800111A GeneraXBRL'!$C$14","v":"co-svsp-core:SegundoApellidoDeudorCxC"}]
["/*",null,{"$f":"'800111A GeneraXBRL'!$D$15","v":"Primer nombre deudor"},{"$f":"'800111A GeneraXBRL'!$C$15","v":"co-svsp-core:PrimerNombreDeudorCxC"}]
["/*",null,{"$f":"'800111A GeneraXBRL'!$D$16","v":"Otros nombres deudor"},{"$f":"'800111A GeneraXBRL'!$C$16","v":"co-svsp-core:OtrosNombresDeudorCxC"}]
["/*",null,{"$f":"'800111A GeneraXBRL'!$D$17","v":"Razón Social deudor"},{"$f":"'800111A GeneraXBRL'!$C$17","v":"co-svsp-core:RazonSocialDeudorCxC"}]
["/*",null,{"$f":"'800111A GeneraXBRL'!$D$18","v":"Dirección deudor"},{"$f":"'800111A GeneraXBRL'!$C$18","v":"co-svsp-core:DireccionDeudorCxC"}]
["/*",null,{"$f":"'800111A GeneraXBRL'!$D$19","v":"Departamento deudor"},{"$f":"'800111A GeneraXBRL'!$C$19","v":"co-svsp-core:DepartamentoDeudorCxC"}]
["/*",null,{"$f":"'800111A GeneraXBRL'!$D$20","v":"Municipio deudor"},{"$f":"'800111A GeneraXBRL'!$C$20","v":"co-svsp-core:MunicipioDeudorCxC"}]
["/*",null,{"$f":"'800111A GeneraXBRL'!$D$21","v":"País deudor"},{"$f":"'800111A GeneraXBRL'!$C$21","v":"co-svsp-core:PaisDeudorCxC"}]
["/*",null,{"$f":"'800111A GeneraXBRL'!$D$22","v":"Saldo cuentas por cobrar"},{"$f":"'800111A GeneraXBRL'!$C$22","v":"co-svsp-core:SaldoCuentasPorCobrarCxC"}]
["/*",null,"--105--"]
["/*",null,{"$f":"'800111A GeneraXBRL'!$D$11","v":"Tipo de documento del deudor"},{"$f":"'800111A GeneraXBRL'!$C$11","v":"co-svsp-core:TipoDeDocumentoDeudorCxC"}]
["/*",null,{"$f":"'800111A GeneraXBRL'!$D$12","v":"Número de identificación del deudor"},{"$f":"'800111A GeneraXBRL'!$C$12","v":"co-svsp-core:NumeroIdentificacionDeudorCxC"}]
["/*",null,{"$f":"'800111A GeneraXBRL'!$D$13","v":"Primer apellido deudor"},{"$f":"'800111A GeneraXBRL'!$C$13","v":"co-svsp-core:PrimerApellidoDeudorCxC"}]
["/*",null,{"$f":"'800111A GeneraXBRL'!$D$14","v":"Segundo apellido deudor"},{"$f":"'800111A GeneraXBRL'!$C$14","v":"co-svsp-core:SegundoApellidoDeudorCxC"}]
["/*",null,{"$f":"'800111A GeneraXBRL'!$D$15","v":"Primer nombre deudor"},{"$f":"'800111A GeneraXBRL'!$C$15","v":"co-svsp-core:PrimerNombreDeudorCxC"}]
["/*",null,{"$f":"'800111A GeneraXBRL'!$D$16","v":"Otros nombres deudor"},{"$f":"'800111A GeneraXBRL'!$C$16","v":"co-svsp-core:OtrosNombresDeudorCxC"}]
["/*",null,{"$f":"'800111A GeneraXBRL'!$D$17","v":"Razón Social deudor"},{"$f":"'800111A GeneraXBRL'!$C$17","v":"co-svsp-core:RazonSocialDeudorCxC"}]
["/*",null,{"$f":"'800111A GeneraXBRL'!$D$18","v":"Dirección deudor"},{"$f":"'800111A GeneraXBRL'!$C$18","v":"co-svsp-core:DireccionDeudorCxC"}]
["/*",null,{"$f":"'800111A GeneraXBRL'!$D$19","v":"Departamento deudor"},{"$f":"'800111A GeneraXBRL'!$C$19","v":"co-svsp-core:DepartamentoDeudorCxC"}]
["/*",null,{"$f":"'800111A GeneraXBRL'!$D$20","v":"Municipio deudor"},{"$f":"'800111A GeneraXBRL'!$C$20","v":"co-svsp-core:MunicipioDeudorCxC"}]
["/*",null,{"$f":"'800111A GeneraXBRL'!$D$21","v":"País deudor"},{"$f":"'800111A GeneraXBRL'!$C$21","v":"co-svsp-core:PaisDeudorCxC"}]
["/*",null,{"$f":"'800111A GeneraXBRL'!$D$22","v":"Saldo cuentas por cobrar"},{"$f":"'800111A GeneraXBRL'!$C$22","v":"co-svsp-core:SaldoCuentasPorCobrarCxC"}]
["/*",null,"--106--"]
["/*",null,{"$f":"'800111A GeneraXBRL'!$D$11","v":"Tipo de documento del deudor"},{"$f":"'800111A GeneraXBRL'!$C$11","v":"co-svsp-core:TipoDeDocumentoDeudorCxC"}]
["/*",null,{"$f":"'800111A GeneraXBRL'!$D$12","v":"Número de identificación del deudor"},{"$f":"'800111A GeneraXBRL'!$C$12","v":"co-svsp-core:NumeroIdentificacionDeudorCxC"}]
["/*",null,{"$f":"'800111A GeneraXBRL'!$D$13","v":"Primer apellido deudor"},{"$f":"'800111A GeneraXBRL'!$C$13","v":"co-svsp-core:PrimerApellidoDeudorCxC"}]
["/*",null,{"$f":"'800111A GeneraXBRL'!$D$14","v":"Segundo apellido deudor"},{"$f":"'800111A GeneraXBRL'!$C$14","v":"co-svsp-core:SegundoApellidoDeudorCxC"}]
["/*",null,{"$f":"'800111A GeneraXBRL'!$D$15","v":"Primer nombre deudor"},{"$f":"'800111A GeneraXBRL'!$C$15","v":"co-svsp-core:PrimerNombreDeudorCxC"}]
["/*",null,{"$f":"'800111A GeneraXBRL'!$D$16","v":"Otros nombres deudor"},{"$f":"'800111A GeneraXBRL'!$C$16","v":"co-svsp-core:OtrosNombresDeudorCxC"}]
["/*",null,{"$f":"'800111A GeneraXBRL'!$D$17","v":"Razón Social deudor"},{"$f":"'800111A GeneraXBRL'!$C$17","v":"co-svsp-core:RazonSocialDeudorCxC"}]
["/*",null,{"$f":"'800111A GeneraXBRL'!$D$18","v":"Dirección deudor"},{"$f":"'800111A GeneraXBRL'!$C$18","v":"co-svsp-core:DireccionDeudorCxC"}]
["/*",null,{"$f":"'800111A GeneraXBRL'!$D$19","v":"Departamento deudor"},{"$f":"'800111A GeneraXBRL'!$C$19","v":"co-svsp-core:DepartamentoDeudorCxC"}]
["/*",null,{"$f":"'800111A GeneraXBRL'!$D$20","v":"Municipio deudor"},{"$f":"'800111A GeneraXBRL'!$C$20","v":"co-svsp-core:MunicipioDeudorCxC"}]
["/*",null,{"$f":"'800111A GeneraXBRL'!$D$21","v":"País deudor"},{"$f":"'800111A GeneraXBRL'!$C$21","v":"co-svsp-core:PaisDeudorCxC"}]
["/*",null,{"$f":"'800111A GeneraXBRL'!$D$22","v":"Saldo cuentas por cobrar"},{"$f":"'800111A GeneraXBRL'!$C$22","v":"co-svsp-core:SaldoCuentasPorCobrarCxC"}]
["/*",null,"--107--"]
["/*",null,{"$f":"'800111A GeneraXBRL'!$D$11","v":"Tipo de documento del deudor"},{"$f":"'800111A GeneraXBRL'!$C$11","v":"co-svsp-core:TipoDeDocumentoDeudorCxC"}]
[{"$f":"IF(G1824=\"\",\"/*\",\"\")","v":"/*"},null,{"$f":"'800111A GeneraXBRL'!$D$12","v":"Número de identificación del deudor"},{"$f":"'800111A GeneraXBRL'!$C$12","v":"co-svsp-core:NumeroIdentificacionDeudorCxC"}]
["/*",null,{"$f":"'800111A GeneraXBRL'!$D$13","v":"Primer apellido deudor"},{"$f":"'800111A GeneraXBRL'!$C$13","v":"co-svsp-core:PrimerApellidoDeudorCxC"}]
["/*",null,{"$f":"'800111A GeneraXBRL'!$D$14","v":"Segundo apellido deudor"},{"$f":"'800111A GeneraXBRL'!$C$14","v":"co-svsp-core:SegundoApellidoDeudorCxC"}]
["/*",null,{"$f":"'800111A GeneraXBRL'!$D$15","v":"Primer nombre deudor"},{"$f":"'800111A GeneraXBRL'!$C$15","v":"co-svsp-core:PrimerNombreDeudorCxC"}]
["/*",null,{"$f":"'800111A GeneraXBRL'!$D$16","v":"Otros nombres deudor"},{"$f":"'800111A GeneraXBRL'!$C$16","v":"co-svsp-core:OtrosNombresDeudorCxC"}]
["/*",null,{"$f":"'800111A GeneraXBRL'!$D$17","v":"Razón Social deudor"},{"$f":"'800111A GeneraXBRL'!$C$17","v":"co-svsp-core:RazonSocialDeudorCxC"}]
["/*",null,{"$f":"'800111A GeneraXBRL'!$D$18","v":"Dirección deudor"},{"$f":"'800111A GeneraXBRL'!$C$18","v":"co-svsp-core:DireccionDeudorCxC"}]
["/*",null,{"$f":"'800111A GeneraXBRL'!$D$19","v":"Departamento deudor"},{"$f":"'800111A GeneraXBRL'!$C$19","v":"co-svsp-core:DepartamentoDeudorCxC"}]
["/*",null,{"$f":"'800111A GeneraXBRL'!$D$20","v":"Municipio deudor"},{"$f":"'800111A GeneraXBRL'!$C$20","v":"co-svsp-core:MunicipioDeudorCxC"}]
["/*",null,{"$f":"'800111A GeneraXBRL'!$D$21","v":"País deudor"},{"$f":"'800111A GeneraXBRL'!$C$21","v":"co-svsp-core:PaisDeudorCxC"}]
["",null,{"$f":"'800111A GeneraXBRL'!$D$22","v":"Saldo cuentas por cobrar"},{"$f":"'800111A GeneraXBRL'!$C$22","v":"co-svsp-core:SaldoCuentasPorCobrarCxC"},0,"peso",{"$f":"'800111A GeneraXBRL'!$DG$22","v":0},0,"http://www.xbrl.org/scheme/companyName",null,{"$f":"Periodos!$C$4","v":"2023-12-31"},{"$f":"'800111A GeneraXBRL'!$D$10","v":"co-svsp-core:DetalleCuentasXCobrar_Eje"},{"$f":"'800111A GeneraXBRL'!$DG$9","v":"co-svsp-core:TotalDetalleCuentasXCobrarAccionistasSociosVinculadasMiembro"}]
["/*",null,"--108--"]
["/*",null,{"$f":"'800111A GeneraXBRL'!$D$11","v":"Tipo de documento del deudor"},{"$f":"'800111A GeneraXBRL'!$C$11","v":"co-svsp-core:TipoDeDocumentoDeudorCxC"}]
["/*",null,{"$f":"'800111A GeneraXBRL'!$D$12","v":"Número de identificación del deudor"},{"$f":"'800111A GeneraXBRL'!$C$12","v":"co-svsp-core:NumeroIdentificacionDeudorCxC"}]
["/*",null,{"$f":"'800111A GeneraXBRL'!$D$13","v":"Primer apellido deudor"},{"$f":"'800111A GeneraXBRL'!$C$13","v":"co-svsp-core:PrimerApellidoDeudorCxC"}]
["/*",null,{"$f":"'800111A GeneraXBRL'!$D$14","v":"Segundo apellido deudor"},{"$f":"'800111A GeneraXBRL'!$C$14","v":"co-svsp-core:SegundoApellidoDeudorCxC"}]
["/*",null,{"$f":"'800111A GeneraXBRL'!$D$15","v":"Primer nombre deudor"},{"$f":"'800111A GeneraXBRL'!$C$15","v":"co-svsp-core:PrimerNombreDeudorCxC"}]
["/*",null,{"$f":"'800111A GeneraXBRL'!$D$16","v":"Otros nombres deudor"},{"$f":"'800111A GeneraXBRL'!$C$16","v":"co-svsp-core:OtrosNombresDeudorCxC"}]
["/*",null,{"$f":"'800111A GeneraXBRL'!$D$17","v":"Razón Social deudor"},{"$f":"'800111A GeneraXBRL'!$C$17","v":"co-svsp-core:RazonSocialDeudorCxC"}]
["/*",null,{"$f":"'800111A GeneraXBRL'!$D$18","v":"Dirección deudor"},{"$f":"'800111A GeneraXBRL'!$C$18","v":"co-svsp-core:DireccionDeudorCxC"}]
["/*",null,{"$f":"'800111A GeneraXBRL'!$D$19","v":"Departamento deudor"},{"$f":"'800111A GeneraXBRL'!$C$19","v":"co-svsp-core:DepartamentoDeudorCxC"}]
["/*",null,{"$f":"'800111A GeneraXBRL'!$D$20","v":"Municipio deudor"},{"$f":"'800111A GeneraXBRL'!$C$20","v":"co-svsp-core:MunicipioDeudorCxC"}]
["/*",null,{"$f":"'800111A GeneraXBRL'!$D$21","v":"País deudor"},{"$f":"'800111A GeneraXBRL'!$C$21","v":"co-svsp-core:PaisDeudorCxC"}]
["/*",null,{"$f":"'800111A GeneraXBRL'!$D$22","v":"Saldo cuentas por cobrar"},{"$f":"'800111A GeneraXBRL'!$C$22","v":"co-svsp-core:SaldoCuentasPorCobrarCxC"}]
["/*",null,"--109--"]
["/*",null,{"$f":"'800111A GeneraXBRL'!$D$11","v":"Tipo de documento del deudor"},{"$f":"'800111A GeneraXBRL'!$C$11","v":"co-svsp-core:TipoDeDocumentoDeudorCxC"}]
["/*",null,{"$f":"'800111A GeneraXBRL'!$D$12","v":"Número de identificación del deudor"},{"$f":"'800111A GeneraXBRL'!$C$12","v":"co-svsp-core:NumeroIdentificacionDeudorCxC"}]
["/*",null,{"$f":"'800111A GeneraXBRL'!$D$13","v":"Primer apellido deudor"},{"$f":"'800111A GeneraXBRL'!$C$13","v":"co-svsp-core:PrimerApellidoDeudorCxC"}]
["/*",null,{"$f":"'800111A GeneraXBRL'!$D$14","v":"Segundo apellido deudor"},{"$f":"'800111A GeneraXBRL'!$C$14","v":"co-svsp-core:SegundoApellidoDeudorCxC"}]
["/*",null,{"$f":"'800111A GeneraXBRL'!$D$15","v":"Primer nombre deudor"},{"$f":"'800111A GeneraXBRL'!$C$15","v":"co-svsp-core:PrimerNombreDeudorCxC"}]
["/*",null,{"$f":"'800111A GeneraXBRL'!$D$16","v":"Otros nombres deudor"},{"$f":"'800111A GeneraXBRL'!$C$16","v":"co-svsp-core:OtrosNombresDeudorCxC"}]
["/*",null,{"$f":"'800111A GeneraXBRL'!$D$17","v":"Razón Social deudor"},{"$f":"'800111A GeneraXBRL'!$C$17","v":"co-svsp-core:RazonSocialDeudorCxC"}]
["/*",null,{"$f":"'800111A GeneraXBRL'!$D$18","v":"Dirección deudor"},{"$f":"'800111A GeneraXBRL'!$C$18","v":"co-svsp-core:DireccionDeudorCxC"}]
["/*",null,{"$f":"'800111A GeneraXBRL'!$D$19","v":"Departamento deudor"},{"$f":"'800111A GeneraXBRL'!$C$19","v":"co-svsp-core:DepartamentoDeudorCxC"}]
["/*",null,{"$f":"'800111A GeneraXBRL'!$D$20","v":"Municipio deudor"},{"$f":"'800111A GeneraXBRL'!$C$20","v":"co-svsp-core:MunicipioDeudorCxC"}]
["/*",null,{"$f":"'800111A GeneraXBRL'!$D$21","v":"País deudor"},{"$f":"'800111A GeneraXBRL'!$C$21","v":"co-svsp-core:PaisDeudorCxC"}]
["/*",null,{"$f":"'800111A GeneraXBRL'!$D$22","v":"Saldo cuentas por cobrar"},{"$f":"'800111A GeneraXBRL'!$C$22","v":"co-svsp-core:SaldoCuentasPorCobrarCxC"}]
["/*",null,"--110--"]
["/*",null,{"$f":"'800111A GeneraXBRL'!$D$11","v":"Tipo de documento del deudor"},{"$f":"'800111A GeneraXBRL'!$C$11","v":"co-svsp-core:TipoDeDocumentoDeudorCxC"}]
["/*",null,{"$f":"'800111A GeneraXBRL'!$D$12","v":"Número de identificación del deudor"},{"$f":"'800111A GeneraXBRL'!$C$12","v":"co-svsp-core:NumeroIdentificacionDeudorCxC"}]
["/*",null,{"$f":"'800111A GeneraXBRL'!$D$13","v":"Primer apellido deudor"},{"$f":"'800111A GeneraXBRL'!$C$13","v":"co-svsp-core:PrimerApellidoDeudorCxC"}]
["/*",null,{"$f":"'800111A GeneraXBRL'!$D$14","v":"Segundo apellido deudor"},{"$f":"'800111A GeneraXBRL'!$C$14","v":"co-svsp-core:SegundoApellidoDeudorCxC"}]
["/*",null,{"$f":"'800111A GeneraXBRL'!$D$15","v":"Primer nombre deudor"},{"$f":"'800111A GeneraXBRL'!$C$15","v":"co-svsp-core:PrimerNombreDeudorCxC"}]
["/*",null,{"$f":"'800111A GeneraXBRL'!$D$16","v":"Otros nombres deudor"},{"$f":"'800111A GeneraXBRL'!$C$16","v":"co-svsp-core:OtrosNombresDeudorCxC"}]
["/*",null,{"$f":"'800111A GeneraXBRL'!$D$17","v":"Razón Social deudor"},{"$f":"'800111A GeneraXBRL'!$C$17","v":"co-svsp-core:RazonSocialDeudorCxC"}]
["/*",null,{"$f":"'800111A GeneraXBRL'!$D$18","v":"Dirección deudor"},{"$f":"'800111A GeneraXBRL'!$C$18","v":"co-svsp-core:DireccionDeudorCxC"}]
["/*",null,{"$f":"'800111A GeneraXBRL'!$D$19","v":"Departamento deudor"},{"$f":"'800111A GeneraXBRL'!$C$19","v":"co-svsp-core:DepartamentoDeudorCxC"}]
["/*",null,{"$f":"'800111A GeneraXBRL'!$D$20","v":"Municipio deudor"},{"$f":"'800111A GeneraXBRL'!$C$20","v":"co-svsp-core:MunicipioDeudorCxC"}]
["/*",null,{"$f":"'800111A GeneraXBRL'!$D$21","v":"País deudor"},{"$f":"'800111A GeneraXBRL'!$C$21","v":"co-svsp-core:PaisDeudorCxC"}]
["/*",null,{"$f":"'800111A GeneraXBRL'!$D$22","v":"Saldo cuentas por cobrar"},{"$f":"'800111A GeneraXBRL'!$C$22","v":"co-svsp-core:SaldoCuentasPorCobrarCxC"}]
["/*",null,"--111--"]
["/*",null,{"$f":"'800111A GeneraXBRL'!$D$11","v":"Tipo de documento del deudor"},{"$f":"'800111A GeneraXBRL'!$C$11","v":"co-svsp-core:TipoDeDocumentoDeudorCxC"}]
["/*",null,{"$f":"'800111A GeneraXBRL'!$D$12","v":"Número de identificación del deudor"},{"$f":"'800111A GeneraXBRL'!$C$12","v":"co-svsp-core:NumeroIdentificacionDeudorCxC"}]
["/*",null,{"$f":"'800111A GeneraXBRL'!$D$13","v":"Primer apellido deudor"},{"$f":"'800111A GeneraXBRL'!$C$13","v":"co-svsp-core:PrimerApellidoDeudorCxC"}]
["/*",null,{"$f":"'800111A GeneraXBRL'!$D$14","v":"Segundo apellido deudor"},{"$f":"'800111A GeneraXBRL'!$C$14","v":"co-svsp-core:SegundoApellidoDeudorCxC"}]
["/*",null,{"$f":"'800111A GeneraXBRL'!$D$15","v":"Primer nombre deudor"},{"$f":"'800111A GeneraXBRL'!$C$15","v":"co-svsp-core:PrimerNombreDeudorCxC"}]
["/*",null,{"$f":"'800111A GeneraXBRL'!$D$16","v":"Otros nombres deudor"},{"$f":"'800111A GeneraXBRL'!$C$16","v":"co-svsp-core:OtrosNombresDeudorCxC"}]
["/*",null,{"$f":"'800111A GeneraXBRL'!$D$17","v":"Razón Social deudor"},{"$f":"'800111A GeneraXBRL'!$C$17","v":"co-svsp-core:RazonSocialDeudorCxC"}]
["/*",null,{"$f":"'800111A GeneraXBRL'!$D$18","v":"Dirección deudor"},{"$f":"'800111A GeneraXBRL'!$C$18","v":"co-svsp-core:DireccionDeudorCxC"}]
["/*",null,{"$f":"'800111A GeneraXBRL'!$D$19","v":"Departamento deudor"},{"$f":"'800111A GeneraXBRL'!$C$19","v":"co-svsp-core:DepartamentoDeudorCxC"}]
["/*",null,{"$f":"'800111A GeneraXBRL'!$D$20","v":"Municipio deudor"},{"$f":"'800111A GeneraXBRL'!$C$20","v":"co-svsp-core:MunicipioDeudorCxC"}]
["/*",null,{"$f":"'800111A GeneraXBRL'!$D$21","v":"País deudor"},{"$f":"'800111A GeneraXBRL'!$C$21","v":"co-svsp-core:PaisDeudorCxC"}]
["/*",null,{"$f":"'800111A GeneraXBRL'!$D$22","v":"Saldo cuentas por cobrar"},{"$f":"'800111A GeneraXBRL'!$C$22","v":"co-svsp-core:SaldoCuentasPorCobrarCxC"}]
["/*",null,"--112--"]
[{"$f":"IF(G1888=\"\",\"/*\",\"\")","v":"/*"},null,{"$f":"'800111A GeneraXBRL'!$D$11","v":"Tipo de documento del deudor"},{"$f":"'800111A GeneraXBRL'!$C$11","v":"co-svsp-core:TipoDeDocumentoDeudorCxC"}]
["/*",null,{"$f":"'800111A GeneraXBRL'!$D$12","v":"Número de identificación del deudor"},{"$f":"'800111A GeneraXBRL'!$C$12","v":"co-svsp-core:NumeroIdentificacionDeudorCxC"}]
["/*",null,{"$f":"'800111A GeneraXBRL'!$D$13","v":"Primer apellido deudor"},{"$f":"'800111A GeneraXBRL'!$C$13","v":"co-svsp-core:PrimerApellidoDeudorCxC"}]
["/*",null,{"$f":"'800111A GeneraXBRL'!$D$14","v":"Segundo apellido deudor"},{"$f":"'800111A GeneraXBRL'!$C$14","v":"co-svsp-core:SegundoApellidoDeudorCxC"}]
["/*",null,{"$f":"'800111A GeneraXBRL'!$D$15","v":"Primer nombre deudor"},{"$f":"'800111A GeneraXBRL'!$C$15","v":"co-svsp-core:PrimerNombreDeudorCxC"}]
["/*",null,{"$f":"'800111A GeneraXBRL'!$D$16","v":"Otros nombres deudor"},{"$f":"'800111A GeneraXBRL'!$C$16","v":"co-svsp-core:OtrosNombresDeudorCxC"}]
["/*",null,{"$f":"'800111A GeneraXBRL'!$D$17","v":"Razón Social deudor"},{"$f":"'800111A GeneraXBRL'!$C$17","v":"co-svsp-core:RazonSocialDeudorCxC"}]
["/*",null,{"$f":"'800111A GeneraXBRL'!$D$18","v":"Dirección deudor"},{"$f":"'800111A GeneraXBRL'!$C$18","v":"co-svsp-core:DireccionDeudorCxC"}]
["/*",null,{"$f":"'800111A GeneraXBRL'!$D$19","v":"Departamento deudor"},{"$f":"'800111A GeneraXBRL'!$C$19","v":"co-svsp-core:DepartamentoDeudorCxC"}]
["/*",null,{"$f":"'800111A GeneraXBRL'!$D$20","v":"Municipio deudor"},{"$f":"'800111A GeneraXBRL'!$C$20","v":"co-svsp-core:MunicipioDeudorCxC"}]
["/*",null,{"$f":"'800111A GeneraXBRL'!$D$21","v":"País deudor"},{"$f":"'800111A GeneraXBRL'!$C$21","v":"co-svsp-core:PaisDeudorCxC"}]
["/*",null,{"$f":"'800111A GeneraXBRL'!$D$22","v":"Saldo cuentas por cobrar"},{"$f":"'800111A GeneraXBRL'!$C$22","v":"co-svsp-core:SaldoCuentasPorCobrarCxC"}]
["/*",null,"--113--"]
["/*",null,{"$f":"'800111A GeneraXBRL'!$D$11","v":"Tipo de documento del deudor"},{"$f":"'800111A GeneraXBRL'!$C$11","v":"co-svsp-core:TipoDeDocumentoDeudorCxC"}]
["/*",null,{"$f":"'800111A GeneraXBRL'!$D$12","v":"Número de identificación del deudor"},{"$f":"'800111A GeneraXBRL'!$C$12","v":"co-svsp-core:NumeroIdentificacionDeudorCxC"}]
["/*",null,{"$f":"'800111A GeneraXBRL'!$D$13","v":"Primer apellido deudor"},{"$f":"'800111A GeneraXBRL'!$C$13","v":"co-svsp-core:PrimerApellidoDeudorCxC"}]
["/*",null,{"$f":"'800111A GeneraXBRL'!$D$14","v":"Segundo apellido deudor"},{"$f":"'800111A GeneraXBRL'!$C$14","v":"co-svsp-core:SegundoApellidoDeudorCxC"}]
["/*",null,{"$f":"'800111A GeneraXBRL'!$D$15","v":"Primer nombre deudor"},{"$f":"'800111A GeneraXBRL'!$C$15","v":"co-svsp-core:PrimerNombreDeudorCxC"}]
["/*",null,{"$f":"'800111A GeneraXBRL'!$D$16","v":"Otros nombres deudor"},{"$f":"'800111A GeneraXBRL'!$C$16","v":"co-svsp-core:OtrosNombresDeudorCxC"}]
["/*",null,{"$f":"'800111A GeneraXBRL'!$D$17","v":"Razón Social deudor"},{"$f":"'800111A GeneraXBRL'!$C$17","v":"co-svsp-core:RazonSocialDeudorCxC"}]
["/*",null,{"$f":"'800111A GeneraXBRL'!$D$18","v":"Dirección deudor"},{"$f":"'800111A GeneraXBRL'!$C$18","v":"co-svsp-core:DireccionDeudorCxC"}]
["/*",null,{"$f":"'800111A GeneraXBRL'!$D$19","v":"Departamento deudor"},{"$f":"'800111A GeneraXBRL'!$C$19","v":"co-svsp-core:DepartamentoDeudorCxC"}]
["/*",null,{"$f":"'800111A GeneraXBRL'!$D$20","v":"Municipio deudor"},{"$f":"'800111A GeneraXBRL'!$C$20","v":"co-svsp-core:MunicipioDeudorCxC"}]
["/*",null,{"$f":"'800111A GeneraXBRL'!$D$21","v":"País deudor"},{"$f":"'800111A GeneraXBRL'!$C$21","v":"co-svsp-core:PaisDeudorCxC"}]
["/*",null,{"$f":"'800111A GeneraXBRL'!$D$22","v":"Saldo cuentas por cobrar"},{"$f":"'800111A GeneraXBRL'!$C$22","v":"co-svsp-core:SaldoCuentasPorCobrarCxC"}]
["/*",null,"--114--"]
["/*",null,{"$f":"'800111A GeneraXBRL'!$D$11","v":"Tipo de documento del deudor"},{"$f":"'800111A GeneraXBRL'!$C$11","v":"co-svsp-core:TipoDeDocumentoDeudorCxC"}]
["/*",null,{"$f":"'800111A GeneraXBRL'!$D$12","v":"Número de identificación del deudor"},{"$f":"'800111A GeneraXBRL'!$C$12","v":"co-svsp-core:NumeroIdentificacionDeudorCxC"}]
["/*",null,{"$f":"'800111A GeneraXBRL'!$D$13","v":"Primer apellido deudor"},{"$f":"'800111A GeneraXBRL'!$C$13","v":"co-svsp-core:PrimerApellidoDeudorCxC"}]
["/*",null,{"$f":"'800111A GeneraXBRL'!$D$14","v":"Segundo apellido deudor"},{"$f":"'800111A GeneraXBRL'!$C$14","v":"co-svsp-core:SegundoApellidoDeudorCxC"}]
["/*",null,{"$f":"'800111A GeneraXBRL'!$D$15","v":"Primer nombre deudor"},{"$f":"'800111A GeneraXBRL'!$C$15","v":"co-svsp-core:PrimerNombreDeudorCxC"}]
["/*",null,{"$f":"'800111A GeneraXBRL'!$D$16","v":"Otros nombres deudor"},{"$f":"'800111A GeneraXBRL'!$C$16","v":"co-svsp-core:OtrosNombresDeudorCxC"}]
["/*",null,{"$f":"'800111A GeneraXBRL'!$D$17","v":"Razón Social deudor"},{"$f":"'800111A GeneraXBRL'!$C$17","v":"co-svsp-core:RazonSocialDeudorCxC"}]
["/*",null,{"$f":"'800111A GeneraXBRL'!$D$18","v":"Dirección deudor"},{"$f":"'800111A GeneraXBRL'!$C$18","v":"co-svsp-core:DireccionDeudorCxC"}]
["/*",null,{"$f":"'800111A GeneraXBRL'!$D$19","v":"Departamento deudor"},{"$f":"'800111A GeneraXBRL'!$C$19","v":"co-svsp-core:DepartamentoDeudorCxC"}]
["/*",null,{"$f":"'800111A GeneraXBRL'!$D$20","v":"Municipio deudor"},{"$f":"'800111A GeneraXBRL'!$C$20","v":"co-svsp-core:MunicipioDeudorCxC"}]
["/*",null,{"$f":"'800111A GeneraXBRL'!$D$21","v":"País deudor"},{"$f":"'800111A GeneraXBRL'!$C$21","v":"co-svsp-core:PaisDeudorCxC"}]
["/*",null,{"$f":"'800111A GeneraXBRL'!$D$22","v":"Saldo cuentas por cobrar"},{"$f":"'800111A GeneraXBRL'!$C$22","v":"co-svsp-core:SaldoCuentasPorCobrarCxC"}]
["/*",null,"--115--"]
["/*",null,{"$f":"'800111A GeneraXBRL'!$D$11","v":"Tipo de documento del deudor"},{"$f":"'800111A GeneraXBRL'!$C$11","v":"co-svsp-core:TipoDeDocumentoDeudorCxC"}]
["/*",null,{"$f":"'800111A GeneraXBRL'!$D$12","v":"Número de identificación del deudor"},{"$f":"'800111A GeneraXBRL'!$C$12","v":"co-svsp-core:NumeroIdentificacionDeudorCxC"}]
["/*",null,{"$f":"'800111A GeneraXBRL'!$D$13","v":"Primer apellido deudor"},{"$f":"'800111A GeneraXBRL'!$C$13","v":"co-svsp-core:PrimerApellidoDeudorCxC"}]
["/*",null,{"$f":"'800111A GeneraXBRL'!$D$14","v":"Segundo apellido deudor"},{"$f":"'800111A GeneraXBRL'!$C$14","v":"co-svsp-core:SegundoApellidoDeudorCxC"}]
["/*",null,{"$f":"'800111A GeneraXBRL'!$D$15","v":"Primer nombre deudor"},{"$f":"'800111A GeneraXBRL'!$C$15","v":"co-svsp-core:PrimerNombreDeudorCxC"}]
["/*",null,{"$f":"'800111A GeneraXBRL'!$D$16","v":"Otros nombres deudor"},{"$f":"'800111A GeneraXBRL'!$C$16","v":"co-svsp-core:OtrosNombresDeudorCxC"}]
["/*",null,{"$f":"'800111A GeneraXBRL'!$D$17","v":"Razón Social deudor"},{"$f":"'800111A GeneraXBRL'!$C$17","v":"co-svsp-core:RazonSocialDeudorCxC"}]
["/*",null,{"$f":"'800111A GeneraXBRL'!$D$18","v":"Dirección deudor"},{"$f":"'800111A GeneraXBRL'!$C$18","v":"co-svsp-core:DireccionDeudorCxC"}]
["/*",null,{"$f":"'800111A GeneraXBRL'!$D$19","v":"Departamento deudor"},{"$f":"'800111A GeneraXBRL'!$C$19","v":"co-svsp-core:DepartamentoDeudorCxC"}]
["/*",null,{"$f":"'800111A GeneraXBRL'!$D$20","v":"Municipio deudor"},{"$f":"'800111A GeneraXBRL'!$C$20","v":"co-svsp-core:MunicipioDeudorCxC"}]
["/*",null,{"$f":"'800111A GeneraXBRL'!$D$21","v":"País deudor"},{"$f":"'800111A GeneraXBRL'!$C$21","v":"co-svsp-core:PaisDeudorCxC"}]
["/*",null,{"$f":"'800111A GeneraXBRL'!$D$22","v":"Saldo cuentas por cobrar"},{"$f":"'800111A GeneraXBRL'!$C$22","v":"co-svsp-core:SaldoCuentasPorCobrarCxC"}]
["/*",null,"--116--"]
["/*",null,{"$f":"'800111A GeneraXBRL'!$D$11","v":"Tipo de documento del deudor"},{"$f":"'800111A GeneraXBRL'!$C$11","v":"co-svsp-core:TipoDeDocumentoDeudorCxC"}]
["/*",null,{"$f":"'800111A GeneraXBRL'!$D$12","v":"Número de identificación del deudor"},{"$f":"'800111A GeneraXBRL'!$C$12","v":"co-svsp-core:NumeroIdentificacionDeudorCxC"}]
["/*",null,{"$f":"'800111A GeneraXBRL'!$D$13","v":"Primer apellido deudor"},{"$f":"'800111A GeneraXBRL'!$C$13","v":"co-svsp-core:PrimerApellidoDeudorCxC"}]
["/*",null,{"$f":"'800111A GeneraXBRL'!$D$14","v":"Segundo apellido deudor"},{"$f":"'800111A GeneraXBRL'!$C$14","v":"co-svsp-core:SegundoApellidoDeudorCxC"}]
["/*",null,{"$f":"'800111A GeneraXBRL'!$D$15","v":"Primer nombre deudor"},{"$f":"'800111A GeneraXBRL'!$C$15","v":"co-svsp-core:PrimerNombreDeudorCxC"}]
["/*",null,{"$f":"'800111A GeneraXBRL'!$D$16","v":"Otros nombres deudor"},{"$f":"'800111A GeneraXBRL'!$C$16","v":"co-svsp-core:OtrosNombresDeudorCxC"}]
["/*",null,{"$f":"'800111A GeneraXBRL'!$D$17","v":"Razón Social deudor"},{"$f":"'800111A GeneraXBRL'!$C$17","v":"co-svsp-core:RazonSocialDeudorCxC"}]
["/*",null,{"$f":"'800111A GeneraXBRL'!$D$18","v":"Dirección deudor"},{"$f":"'800111A GeneraXBRL'!$C$18","v":"co-svsp-core:DireccionDeudorCxC"}]
["/*",null,{"$f":"'800111A GeneraXBRL'!$D$19","v":"Departamento deudor"},{"$f":"'800111A GeneraXBRL'!$C$19","v":"co-svsp-core:DepartamentoDeudorCxC"}]
["/*",null,{"$f":"'800111A GeneraXBRL'!$D$20","v":"Municipio deudor"},{"$f":"'800111A GeneraXBRL'!$C$20","v":"co-svsp-core:MunicipioDeudorCxC"}]
["/*",null,{"$f":"'800111A GeneraXBRL'!$D$21","v":"País deudor"},{"$f":"'800111A GeneraXBRL'!$C$21","v":"co-svsp-core:PaisDeudorCxC"}]
["/*",null,{"$f":"'800111A GeneraXBRL'!$D$22","v":"Saldo cuentas por cobrar"},{"$f":"'800111A GeneraXBRL'!$C$22","v":"co-svsp-core:SaldoCuentasPorCobrarCxC"}]
[{"$f":"IF(G1952=\"\",\"/*\",\"\")","v":"/*"},null,"--117--"]
["/*",null,{"$f":"'800111A GeneraXBRL'!$D$11","v":"Tipo de documento del deudor"},{"$f":"'800111A GeneraXBRL'!$C$11","v":"co-svsp-core:TipoDeDocumentoDeudorCxC"}]
["/*",null,{"$f":"'800111A GeneraXBRL'!$D$12","v":"Número de identificación del deudor"},{"$f":"'800111A GeneraXBRL'!$C$12","v":"co-svsp-core:NumeroIdentificacionDeudorCxC"}]
["/*",null,{"$f":"'800111A GeneraXBRL'!$D$13","v":"Primer apellido deudor"},{"$f":"'800111A GeneraXBRL'!$C$13","v":"co-svsp-core:PrimerApellidoDeudorCxC"}]
["/*",null,{"$f":"'800111A GeneraXBRL'!$D$14","v":"Segundo apellido deudor"},{"$f":"'800111A GeneraXBRL'!$C$14","v":"co-svsp-core:SegundoApellidoDeudorCxC"}]
["/*",null,{"$f":"'800111A GeneraXBRL'!$D$15","v":"Primer nombre deudor"},{"$f":"'800111A GeneraXBRL'!$C$15","v":"co-svsp-core:PrimerNombreDeudorCxC"}]
["/*",null,{"$f":"'800111A GeneraXBRL'!$D$16","v":"Otros nombres deudor"},{"$f":"'800111A GeneraXBRL'!$C$16","v":"co-svsp-core:OtrosNombresDeudorCxC"}]
["/*",null,{"$f":"'800111A GeneraXBRL'!$D$17","v":"Razón Social deudor"},{"$f":"'800111A GeneraXBRL'!$C$17","v":"co-svsp-core:RazonSocialDeudorCxC"}]
["/*",null,{"$f":"'800111A GeneraXBRL'!$D$18","v":"Dirección deudor"},{"$f":"'800111A GeneraXBRL'!$C$18","v":"co-svsp-core:DireccionDeudorCxC"}]
["/*",null,{"$f":"'800111A GeneraXBRL'!$D$19","v":"Departamento deudor"},{"$f":"'800111A GeneraXBRL'!$C$19","v":"co-svsp-core:DepartamentoDeudorCxC"}]
["/*",null,{"$f":"'800111A GeneraXBRL'!$D$20","v":"Municipio deudor"},{"$f":"'800111A GeneraXBRL'!$C$20","v":"co-svsp-core:MunicipioDeudorCxC"}]
["/*",null,{"$f":"'800111A GeneraXBRL'!$D$21","v":"País deudor"},{"$f":"'800111A GeneraXBRL'!$C$21","v":"co-svsp-core:PaisDeudorCxC"}]
["/*",null,{"$f":"'800111A GeneraXBRL'!$D$22","v":"Saldo cuentas por cobrar"},{"$f":"'800111A GeneraXBRL'!$C$22","v":"co-svsp-core:SaldoCuentasPorCobrarCxC"}]
["/*",null,"--118--"]
["/*",null,{"$f":"'800111A GeneraXBRL'!$D$11","v":"Tipo de documento del deudor"},{"$f":"'800111A GeneraXBRL'!$C$11","v":"co-svsp-core:TipoDeDocumentoDeudorCxC"}]
["/*",null,{"$f":"'800111A GeneraXBRL'!$D$12","v":"Número de identificación del deudor"},{"$f":"'800111A GeneraXBRL'!$C$12","v":"co-svsp-core:NumeroIdentificacionDeudorCxC"}]
["/*",null,{"$f":"'800111A GeneraXBRL'!$D$13","v":"Primer apellido deudor"},{"$f":"'800111A GeneraXBRL'!$C$13","v":"co-svsp-core:PrimerApellidoDeudorCxC"}]
["/*",null,{"$f":"'800111A GeneraXBRL'!$D$14","v":"Segundo apellido deudor"},{"$f":"'800111A GeneraXBRL'!$C$14","v":"co-svsp-core:SegundoApellidoDeudorCxC"}]
["/*",null,{"$f":"'800111A GeneraXBRL'!$D$15","v":"Primer nombre deudor"},{"$f":"'800111A GeneraXBRL'!$C$15","v":"co-svsp-core:PrimerNombreDeudorCxC"}]
["/*",null,{"$f":"'800111A GeneraXBRL'!$D$16","v":"Otros nombres deudor"},{"$f":"'800111A GeneraXBRL'!$C$16","v":"co-svsp-core:OtrosNombresDeudorCxC"}]
["/*",null,{"$f":"'800111A GeneraXBRL'!$D$17","v":"Razón Social deudor"},{"$f":"'800111A GeneraXBRL'!$C$17","v":"co-svsp-core:RazonSocialDeudorCxC"}]
["/*",null,{"$f":"'800111A GeneraXBRL'!$D$18","v":"Dirección deudor"},{"$f":"'800111A GeneraXBRL'!$C$18","v":"co-svsp-core:DireccionDeudorCxC"}]
["/*",null,{"$f":"'800111A GeneraXBRL'!$D$19","v":"Departamento deudor"},{"$f":"'800111A GeneraXBRL'!$C$19","v":"co-svsp-core:DepartamentoDeudorCxC"}]
["/*",null,{"$f":"'800111A GeneraXBRL'!$D$20","v":"Municipio deudor"},{"$f":"'800111A GeneraXBRL'!$C$20","v":"co-svsp-core:MunicipioDeudorCxC"}]
["/*",null,{"$f":"'800111A GeneraXBRL'!$D$21","v":"País deudor"},{"$f":"'800111A GeneraXBRL'!$C$21","v":"co-svsp-core:PaisDeudorCxC"}]
["/*",null,{"$f":"'800111A GeneraXBRL'!$D$22","v":"Saldo cuentas por cobrar"},{"$f":"'800111A GeneraXBRL'!$C$22","v":"co-svsp-core:SaldoCuentasPorCobrarCxC"}]
["/*",null,"--119--"]
["/*",null,{"$f":"'800111A GeneraXBRL'!$D$11","v":"Tipo de documento del deudor"},{"$f":"'800111A GeneraXBRL'!$C$11","v":"co-svsp-core:TipoDeDocumentoDeudorCxC"}]
["/*",null,{"$f":"'800111A GeneraXBRL'!$D$12","v":"Número de identificación del deudor"},{"$f":"'800111A GeneraXBRL'!$C$12","v":"co-svsp-core:NumeroIdentificacionDeudorCxC"}]
["/*",null,{"$f":"'800111A GeneraXBRL'!$D$13","v":"Primer apellido deudor"},{"$f":"'800111A GeneraXBRL'!$C$13","v":"co-svsp-core:PrimerApellidoDeudorCxC"}]
["/*",null,{"$f":"'800111A GeneraXBRL'!$D$14","v":"Segundo apellido deudor"},{"$f":"'800111A GeneraXBRL'!$C$14","v":"co-svsp-core:SegundoApellidoDeudorCxC"}]
["/*",null,{"$f":"'800111A GeneraXBRL'!$D$15","v":"Primer nombre deudor"},{"$f":"'800111A GeneraXBRL'!$C$15","v":"co-svsp-core:PrimerNombreDeudorCxC"}]
["/*",null,{"$f":"'800111A GeneraXBRL'!$D$16","v":"Otros nombres deudor"},{"$f":"'800111A GeneraXBRL'!$C$16","v":"co-svsp-core:OtrosNombresDeudorCxC"}]
["/*",null,{"$f":"'800111A GeneraXBRL'!$D$17","v":"Razón Social deudor"},{"$f":"'800111A GeneraXBRL'!$C$17","v":"co-svsp-core:RazonSocialDeudorCxC"}]
["/*",null,{"$f":"'800111A GeneraXBRL'!$D$18","v":"Dirección deudor"},{"$f":"'800111A GeneraXBRL'!$C$18","v":"co-svsp-core:DireccionDeudorCxC"}]
["/*",null,{"$f":"'800111A GeneraXBRL'!$D$19","v":"Departamento deudor"},{"$f":"'800111A GeneraXBRL'!$C$19","v":"co-svsp-core:DepartamentoDeudorCxC"}]
["/*",null,{"$f":"'800111A GeneraXBRL'!$D$20","v":"Municipio deudor"},{"$f":"'800111A GeneraXBRL'!$C$20","v":"co-svsp-core:MunicipioDeudorCxC"}]
["/*",null,{"$f":"'800111A GeneraXBRL'!$D$21","v":"País deudor"},{"$f":"'800111A GeneraXBRL'!$C$21","v":"co-svsp-core:PaisDeudorCxC"}]
["/*",null,{"$f":"'800111A GeneraXBRL'!$D$22","v":"Saldo cuentas por cobrar"},{"$f":"'800111A GeneraXBRL'!$C$22","v":"co-svsp-core:SaldoCuentasPorCobrarCxC"}]
["/*",null,"--120--"]
["/*",null,{"$f":"'800111A GeneraXBRL'!$D$11","v":"Tipo de documento del deudor"},{"$f":"'800111A GeneraXBRL'!$C$11","v":"co-svsp-core:TipoDeDocumentoDeudorCxC"}]
["/*",null,{"$f":"'800111A GeneraXBRL'!$D$12","v":"Número de identificación del deudor"},{"$f":"'800111A GeneraXBRL'!$C$12","v":"co-svsp-core:NumeroIdentificacionDeudorCxC"}]
["/*",null,{"$f":"'800111A GeneraXBRL'!$D$13","v":"Primer apellido deudor"},{"$f":"'800111A GeneraXBRL'!$C$13","v":"co-svsp-core:PrimerApellidoDeudorCxC"}]
["/*",null,{"$f":"'800111A GeneraXBRL'!$D$14","v":"Segundo apellido deudor"},{"$f":"'800111A GeneraXBRL'!$C$14","v":"co-svsp-core:SegundoApellidoDeudorCxC"}]
["/*",null,{"$f":"'800111A GeneraXBRL'!$D$15","v":"Primer nombre deudor"},{"$f":"'800111A GeneraXBRL'!$C$15","v":"co-svsp-core:PrimerNombreDeudorCxC"}]
["/*",null,{"$f":"'800111A GeneraXBRL'!$D$16","v":"Otros nombres deudor"},{"$f":"'800111A GeneraXBRL'!$C$16","v":"co-svsp-core:OtrosNombresDeudorCxC"}]
["/*",null,{"$f":"'800111A GeneraXBRL'!$D$17","v":"Razón Social deudor"},{"$f":"'800111A GeneraXBRL'!$C$17","v":"co-svsp-core:RazonSocialDeudorCxC"}]
["/*",null,{"$f":"'800111A GeneraXBRL'!$D$18","v":"Dirección deudor"},{"$f":"'800111A GeneraXBRL'!$C$18","v":"co-svsp-core:DireccionDeudorCxC"}]
["/*",null,{"$f":"'800111A GeneraXBRL'!$D$19","v":"Departamento deudor"},{"$f":"'800111A GeneraXBRL'!$C$19","v":"co-svsp-core:DepartamentoDeudorCxC"}]
["/*",null,{"$f":"'800111A GeneraXBRL'!$D$20","v":"Municipio deudor"},{"$f":"'800111A GeneraXBRL'!$C$20","v":"co-svsp-core:MunicipioDeudorCxC"}]
["/*",null,{"$f":"'800111A GeneraXBRL'!$D$21","v":"País deudor"},{"$f":"'800111A GeneraXBRL'!$C$21","v":"co-svsp-core:PaisDeudorCxC"}]
["/*",null,{"$f":"'800111A GeneraXBRL'!$D$22","v":"Saldo cuentas por cobrar"},{"$f":"'800111A GeneraXBRL'!$C$22","v":"co-svsp-core:SaldoCuentasPorCobrarCxC"}]
["/*",null,"--121--"]
["/*",null,{"$f":"'800111A GeneraXBRL'!$D$11","v":"Tipo de documento del deudor"},{"$f":"'800111A GeneraXBRL'!$C$11","v":"co-svsp-core:TipoDeDocumentoDeudorCxC"}]
["/*",null,{"$f":"'800111A GeneraXBRL'!$D$12","v":"Número de identificación del deudor"},{"$f":"'800111A GeneraXBRL'!$C$12","v":"co-svsp-core:NumeroIdentificacionDeudorCxC"}]
["/*",null,{"$f":"'800111A GeneraXBRL'!$D$13","v":"Primer apellido deudor"},{"$f":"'800111A GeneraXBRL'!$C$13","v":"co-svsp-core:PrimerApellidoDeudorCxC"}]
["/*",null,{"$f":"'800111A GeneraXBRL'!$D$14","v":"Segundo apellido deudor"},{"$f":"'800111A GeneraXBRL'!$C$14","v":"co-svsp-core:SegundoApellidoDeudorCxC"}]
["/*",null,{"$f":"'800111A GeneraXBRL'!$D$15","v":"Primer nombre deudor"},{"$f":"'800111A GeneraXBRL'!$C$15","v":"co-svsp-core:PrimerNombreDeudorCxC"}]
["/*",null,{"$f":"'800111A GeneraXBRL'!$D$16","v":"Otros nombres deudor"},{"$f":"'800111A GeneraXBRL'!$C$16","v":"co-svsp-core:OtrosNombresDeudorCxC"}]
["/*",null,{"$f":"'800111A GeneraXBRL'!$D$17","v":"Razón Social deudor"},{"$f":"'800111A GeneraXBRL'!$C$17","v":"co-svsp-core:RazonSocialDeudorCxC"}]
["/*",null,{"$f":"'800111A GeneraXBRL'!$D$18","v":"Dirección deudor"},{"$f":"'800111A GeneraXBRL'!$C$18","v":"co-svsp-core:DireccionDeudorCxC"}]
["/*",null,{"$f":"'800111A GeneraXBRL'!$D$19","v":"Departamento deudor"},{"$f":"'800111A GeneraXBRL'!$C$19","v":"co-svsp-core:DepartamentoDeudorCxC"}]
["/*",null,{"$f":"'800111A GeneraXBRL'!$D$20","v":"Municipio deudor"},{"$f":"'800111A GeneraXBRL'!$C$20","v":"co-svsp-core:MunicipioDeudorCxC"}]
["/*",null,{"$f":"'800111A GeneraXBRL'!$D$21","v":"País deudor"},{"$f":"'800111A GeneraXBRL'!$C$21","v":"co-svsp-core:PaisDeudorCxC"}]
[{"$f":"IF(G2016=\"\",\"/*\",\"\")","v":"/*"},null,{"$f":"'800111A GeneraXBRL'!$D$22","v":"Saldo cuentas por cobrar"},{"$f":"'800111A GeneraXBRL'!$C$22","v":"co-svsp-core:SaldoCuentasPorCobrarCxC"}]
["/*",null,"--122--"]
["/*",null,{"$f":"'800111A GeneraXBRL'!$D$11","v":"Tipo de documento del deudor"},{"$f":"'800111A GeneraXBRL'!$C$11","v":"co-svsp-core:TipoDeDocumentoDeudorCxC"}]
["/*",null,{"$f":"'800111A GeneraXBRL'!$D$12","v":"Número de identificación del deudor"},{"$f":"'800111A GeneraXBRL'!$C$12","v":"co-svsp-core:NumeroIdentificacionDeudorCxC"}]
["/*",null,{"$f":"'800111A GeneraXBRL'!$D$13","v":"Primer apellido deudor"},{"$f":"'800111A GeneraXBRL'!$C$13","v":"co-svsp-core:PrimerApellidoDeudorCxC"}]
["/*",null,{"$f":"'800111A GeneraXBRL'!$D$14","v":"Segundo apellido deudor"},{"$f":"'800111A GeneraXBRL'!$C$14","v":"co-svsp-core:SegundoApellidoDeudorCxC"}]
["/*",null,{"$f":"'800111A GeneraXBRL'!$D$15","v":"Primer nombre deudor"},{"$f":"'800111A GeneraXBRL'!$C$15","v":"co-svsp-core:PrimerNombreDeudorCxC"}]
["/*",null,{"$f":"'800111A GeneraXBRL'!$D$16","v":"Otros nombres deudor"},{"$f":"'800111A GeneraXBRL'!$C$16","v":"co-svsp-core:OtrosNombresDeudorCxC"}]
["/*",null,{"$f":"'800111A GeneraXBRL'!$D$17","v":"Razón Social deudor"},{"$f":"'800111A GeneraXBRL'!$C$17","v":"co-svsp-core:RazonSocialDeudorCxC"}]
["/*",null,{"$f":"'800111A GeneraXBRL'!$D$18","v":"Dirección deudor"},{"$f":"'800111A GeneraXBRL'!$C$18","v":"co-svsp-core:DireccionDeudorCxC"}]
["/*",null,{"$f":"'800111A GeneraXBRL'!$D$19","v":"Departamento deudor"},{"$f":"'800111A GeneraXBRL'!$C$19","v":"co-svsp-core:DepartamentoDeudorCxC"}]
["/*",null,{"$f":"'800111A GeneraXBRL'!$D$20","v":"Municipio deudor"},{"$f":"'800111A GeneraXBRL'!$C$20","v":"co-svsp-core:MunicipioDeudorCxC"}]
["/*",null,{"$f":"'800111A GeneraXBRL'!$D$21","v":"País deudor"},{"$f":"'800111A GeneraXBRL'!$C$21","v":"co-svsp-core:PaisDeudorCxC"}]
["/*",null,{"$f":"'800111A GeneraXBRL'!$D$22","v":"Saldo cuentas por cobrar"},{"$f":"'800111A GeneraXBRL'!$C$22","v":"co-svsp-core:SaldoCuentasPorCobrarCxC"}]
["/*",null,"--123--"]
["/*",null,{"$f":"'800111A GeneraXBRL'!$D$11","v":"Tipo de documento del deudor"},{"$f":"'800111A GeneraXBRL'!$C$11","v":"co-svsp-core:TipoDeDocumentoDeudorCxC"}]
["/*",null,{"$f":"'800111A GeneraXBRL'!$D$12","v":"Número de identificación del deudor"},{"$f":"'800111A GeneraXBRL'!$C$12","v":"co-svsp-core:NumeroIdentificacionDeudorCxC"}]
["/*",null,{"$f":"'800111A GeneraXBRL'!$D$13","v":"Primer apellido deudor"},{"$f":"'800111A GeneraXBRL'!$C$13","v":"co-svsp-core:PrimerApellidoDeudorCxC"}]
["/*",null,{"$f":"'800111A GeneraXBRL'!$D$14","v":"Segundo apellido deudor"},{"$f":"'800111A GeneraXBRL'!$C$14","v":"co-svsp-core:SegundoApellidoDeudorCxC"}]
["/*",null,{"$f":"'800111A GeneraXBRL'!$D$15","v":"Primer nombre deudor"},{"$f":"'800111A GeneraXBRL'!$C$15","v":"co-svsp-core:PrimerNombreDeudorCxC"}]
["/*",null,{"$f":"'800111A GeneraXBRL'!$D$16","v":"Otros nombres deudor"},{"$f":"'800111A GeneraXBRL'!$C$16","v":"co-svsp-core:OtrosNombresDeudorCxC"}]
["/*",null,{"$f":"'800111A GeneraXBRL'!$D$17","v":"Razón Social deudor"},{"$f":"'800111A GeneraXBRL'!$C$17","v":"co-svsp-core:RazonSocialDeudorCxC"}]
["/*",null,{"$f":"'800111A GeneraXBRL'!$D$18","v":"Dirección deudor"},{"$f":"'800111A GeneraXBRL'!$C$18","v":"co-svsp-core:DireccionDeudorCxC"}]
["/*",null,{"$f":"'800111A GeneraXBRL'!$D$19","v":"Departamento deudor"},{"$f":"'800111A GeneraXBRL'!$C$19","v":"co-svsp-core:DepartamentoDeudorCxC"}]
["/*",null,{"$f":"'800111A GeneraXBRL'!$D$20","v":"Municipio deudor"},{"$f":"'800111A GeneraXBRL'!$C$20","v":"co-svsp-core:MunicipioDeudorCxC"}]
["/*",null,{"$f":"'800111A GeneraXBRL'!$D$21","v":"País deudor"},{"$f":"'800111A GeneraXBRL'!$C$21","v":"co-svsp-core:PaisDeudorCxC"}]
["/*",null,{"$f":"'800111A GeneraXBRL'!$D$22","v":"Saldo cuentas por cobrar"},{"$f":"'800111A GeneraXBRL'!$C$22","v":"co-svsp-core:SaldoCuentasPorCobrarCxC"}]
["/*",null,"--124--"]
["/*",null,{"$f":"'800111A GeneraXBRL'!$D$11","v":"Tipo de documento del deudor"},{"$f":"'800111A GeneraXBRL'!$C$11","v":"co-svsp-core:TipoDeDocumentoDeudorCxC"}]
["/*",null,{"$f":"'800111A GeneraXBRL'!$D$12","v":"Número de identificación del deudor"},{"$f":"'800111A GeneraXBRL'!$C$12","v":"co-svsp-core:NumeroIdentificacionDeudorCxC"}]
["/*",null,{"$f":"'800111A GeneraXBRL'!$D$13","v":"Primer apellido deudor"},{"$f":"'800111A GeneraXBRL'!$C$13","v":"co-svsp-core:PrimerApellidoDeudorCxC"}]
["/*",null,{"$f":"'800111A GeneraXBRL'!$D$14","v":"Segundo apellido deudor"},{"$f":"'800111A GeneraXBRL'!$C$14","v":"co-svsp-core:SegundoApellidoDeudorCxC"}]
["/*",null,{"$f":"'800111A GeneraXBRL'!$D$15","v":"Primer nombre deudor"},{"$f":"'800111A GeneraXBRL'!$C$15","v":"co-svsp-core:PrimerNombreDeudorCxC"}]
["/*",null,{"$f":"'800111A GeneraXBRL'!$D$16","v":"Otros nombres deudor"},{"$f":"'800111A GeneraXBRL'!$C$16","v":"co-svsp-core:OtrosNombresDeudorCxC"}]
["/*",null,{"$f":"'800111A GeneraXBRL'!$D$17","v":"Razón Social deudor"},{"$f":"'800111A GeneraXBRL'!$C$17","v":"co-svsp-core:RazonSocialDeudorCxC"}]
["/*",null,{"$f":"'800111A GeneraXBRL'!$D$18","v":"Dirección deudor"},{"$f":"'800111A GeneraXBRL'!$C$18","v":"co-svsp-core:DireccionDeudorCxC"}]
["/*",null,{"$f":"'800111A GeneraXBRL'!$D$19","v":"Departamento deudor"},{"$f":"'800111A GeneraXBRL'!$C$19","v":"co-svsp-core:DepartamentoDeudorCxC"}]
["/*",null,{"$f":"'800111A GeneraXBRL'!$D$20","v":"Municipio deudor"},{"$f":"'800111A GeneraXBRL'!$C$20","v":"co-svsp-core:MunicipioDeudorCxC"}]
["/*",null,{"$f":"'800111A GeneraXBRL'!$D$21","v":"País deudor"},{"$f":"'800111A GeneraXBRL'!$C$21","v":"co-svsp-core:PaisDeudorCxC"}]
["/*",null,{"$f":"'800111A GeneraXBRL'!$D$22","v":"Saldo cuentas por cobrar"},{"$f":"'800111A GeneraXBRL'!$C$22","v":"co-svsp-core:SaldoCuentasPorCobrarCxC"}]
["/*",null,"--125--"]
["/*",null,{"$f":"'800111A GeneraXBRL'!$D$11","v":"Tipo de documento del deudor"},{"$f":"'800111A GeneraXBRL'!$C$11","v":"co-svsp-core:TipoDeDocumentoDeudorCxC"}]
["/*",null,{"$f":"'800111A GeneraXBRL'!$D$12","v":"Número de identificación del deudor"},{"$f":"'800111A GeneraXBRL'!$C$12","v":"co-svsp-core:NumeroIdentificacionDeudorCxC"}]
["/*",null,{"$f":"'800111A GeneraXBRL'!$D$13","v":"Primer apellido deudor"},{"$f":"'800111A GeneraXBRL'!$C$13","v":"co-svsp-core:PrimerApellidoDeudorCxC"}]
["/*",null,{"$f":"'800111A GeneraXBRL'!$D$14","v":"Segundo apellido deudor"},{"$f":"'800111A GeneraXBRL'!$C$14","v":"co-svsp-core:SegundoApellidoDeudorCxC"}]
["/*",null,{"$f":"'800111A GeneraXBRL'!$D$15","v":"Primer nombre deudor"},{"$f":"'800111A GeneraXBRL'!$C$15","v":"co-svsp-core:PrimerNombreDeudorCxC"}]
["/*",null,{"$f":"'800111A GeneraXBRL'!$D$16","v":"Otros nombres deudor"},{"$f":"'800111A GeneraXBRL'!$C$16","v":"co-svsp-core:OtrosNombresDeudorCxC"}]
["/*",null,{"$f":"'800111A GeneraXBRL'!$D$17","v":"Razón Social deudor"},{"$f":"'800111A GeneraXBRL'!$C$17","v":"co-svsp-core:RazonSocialDeudorCxC"}]
["/*",null,{"$f":"'800111A GeneraXBRL'!$D$18","v":"Dirección deudor"},{"$f":"'800111A GeneraXBRL'!$C$18","v":"co-svsp-core:DireccionDeudorCxC"}]
["/*",null,{"$f":"'800111A GeneraXBRL'!$D$19","v":"Departamento deudor"},{"$f":"'800111A GeneraXBRL'!$C$19","v":"co-svsp-core:DepartamentoDeudorCxC"}]
["/*",null,{"$f":"'800111A GeneraXBRL'!$D$20","v":"Municipio deudor"},{"$f":"'800111A GeneraXBRL'!$C$20","v":"co-svsp-core:MunicipioDeudorCxC"}]
["/*",null,{"$f":"'800111A GeneraXBRL'!$D$21","v":"País deudor"},{"$f":"'800111A GeneraXBRL'!$C$21","v":"co-svsp-core:PaisDeudorCxC"}]
["/*",null,{"$f":"'800111A GeneraXBRL'!$D$22","v":"Saldo cuentas por cobrar"},{"$f":"'800111A GeneraXBRL'!$C$22","v":"co-svsp-core:SaldoCuentasPorCobrarCxC"}]
["/*",null,"--126--"]
["/*",null,{"$f":"'800111A GeneraXBRL'!$D$11","v":"Tipo de documento del deudor"},{"$f":"'800111A GeneraXBRL'!$C$11","v":"co-svsp-core:TipoDeDocumentoDeudorCxC"}]
["/*",null,{"$f":"'800111A GeneraXBRL'!$D$12","v":"Número de identificación del deudor"},{"$f":"'800111A GeneraXBRL'!$C$12","v":"co-svsp-core:NumeroIdentificacionDeudorCxC"}]
["/*",null,{"$f":"'800111A GeneraXBRL'!$D$13","v":"Primer apellido deudor"},{"$f":"'800111A GeneraXBRL'!$C$13","v":"co-svsp-core:PrimerApellidoDeudorCxC"}]
["/*",null,{"$f":"'800111A GeneraXBRL'!$D$14","v":"Segundo apellido deudor"},{"$f":"'800111A GeneraXBRL'!$C$14","v":"co-svsp-core:SegundoApellidoDeudorCxC"}]
["/*",null,{"$f":"'800111A GeneraXBRL'!$D$15","v":"Primer nombre deudor"},{"$f":"'800111A GeneraXBRL'!$C$15","v":"co-svsp-core:PrimerNombreDeudorCxC"}]
["/*",null,{"$f":"'800111A GeneraXBRL'!$D$16","v":"Otros nombres deudor"},{"$f":"'800111A GeneraXBRL'!$C$16","v":"co-svsp-core:OtrosNombresDeudorCxC"}]
["/*",null,{"$f":"'800111A GeneraXBRL'!$D$17","v":"Razón Social deudor"},{"$f":"'800111A GeneraXBRL'!$C$17","v":"co-svsp-core:RazonSocialDeudorCxC"}]
["/*",null,{"$f":"'800111A GeneraXBRL'!$D$18","v":"Dirección deudor"},{"$f":"'800111A GeneraXBRL'!$C$18","v":"co-svsp-core:DireccionDeudorCxC"}]
["/*",null,{"$f":"'800111A GeneraXBRL'!$D$19","v":"Departamento deudor"},{"$f":"'800111A GeneraXBRL'!$C$19","v":"co-svsp-core:DepartamentoDeudorCxC"}]
["/*",null,{"$f":"'800111A GeneraXBRL'!$D$20","v":"Municipio deudor"},{"$f":"'800111A GeneraXBRL'!$C$20","v":"co-svsp-core:MunicipioDeudorCxC"}]
[{"$f":"IF(G2080=\"\",\"/*\",\"\")","v":"/*"},null,{"$f":"'800111A GeneraXBRL'!$D$21","v":"País deudor"},{"$f":"'800111A GeneraXBRL'!$C$21","v":"co-svsp-core:PaisDeudorCxC"}]
["/*",null,{"$f":"'800111A GeneraXBRL'!$D$22","v":"Saldo cuentas por cobrar"},{"$f":"'800111A GeneraXBRL'!$C$22","v":"co-svsp-core:SaldoCuentasPorCobrarCxC"}]
["/*",null,"--127--"]
["/*",null,{"$f":"'800111A GeneraXBRL'!$D$11","v":"Tipo de documento del deudor"},{"$f":"'800111A GeneraXBRL'!$C$11","v":"co-svsp-core:TipoDeDocumentoDeudorCxC"}]
["/*",null,{"$f":"'800111A GeneraXBRL'!$D$12","v":"Número de identificación del deudor"},{"$f":"'800111A GeneraXBRL'!$C$12","v":"co-svsp-core:NumeroIdentificacionDeudorCxC"}]
["/*",null,{"$f":"'800111A GeneraXBRL'!$D$13","v":"Primer apellido deudor"},{"$f":"'800111A GeneraXBRL'!$C$13","v":"co-svsp-core:PrimerApellidoDeudorCxC"}]
["/*",null,{"$f":"'800111A GeneraXBRL'!$D$14","v":"Segundo apellido deudor"},{"$f":"'800111A GeneraXBRL'!$C$14","v":"co-svsp-core:SegundoApellidoDeudorCxC"}]
["/*",null,{"$f":"'800111A GeneraXBRL'!$D$15","v":"Primer nombre deudor"},{"$f":"'800111A GeneraXBRL'!$C$15","v":"co-svsp-core:PrimerNombreDeudorCxC"}]
["/*",null,{"$f":"'800111A GeneraXBRL'!$D$16","v":"Otros nombres deudor"},{"$f":"'800111A GeneraXBRL'!$C$16","v":"co-svsp-core:OtrosNombresDeudorCxC"}]
["/*",null,{"$f":"'800111A GeneraXBRL'!$D$17","v":"Razón Social deudor"},{"$f":"'800111A GeneraXBRL'!$C$17","v":"co-svsp-core:RazonSocialDeudorCxC"}]
["/*",null,{"$f":"'800111A GeneraXBRL'!$D$18","v":"Dirección deudor"},{"$f":"'800111A GeneraXBRL'!$C$18","v":"co-svsp-core:DireccionDeudorCxC"}]
["/*",null,{"$f":"'800111A GeneraXBRL'!$D$19","v":"Departamento deudor"},{"$f":"'800111A GeneraXBRL'!$C$19","v":"co-svsp-core:DepartamentoDeudorCxC"}]
["/*",null,{"$f":"'800111A GeneraXBRL'!$D$20","v":"Municipio deudor"},{"$f":"'800111A GeneraXBRL'!$C$20","v":"co-svsp-core:MunicipioDeudorCxC"}]
["/*",null,{"$f":"'800111A GeneraXBRL'!$D$21","v":"País deudor"},{"$f":"'800111A GeneraXBRL'!$C$21","v":"co-svsp-core:PaisDeudorCxC"}]
["/*",null,{"$f":"'800111A GeneraXBRL'!$D$22","v":"Saldo cuentas por cobrar"},{"$f":"'800111A GeneraXBRL'!$C$22","v":"co-svsp-core:SaldoCuentasPorCobrarCxC"}]
["/*",null,"--128--"]
["/*",null,{"$f":"'800111A GeneraXBRL'!$D$11","v":"Tipo de documento del deudor"},{"$f":"'800111A GeneraXBRL'!$C$11","v":"co-svsp-core:TipoDeDocumentoDeudorCxC"}]
["/*",null,{"$f":"'800111A GeneraXBRL'!$D$12","v":"Número de identificación del deudor"},{"$f":"'800111A GeneraXBRL'!$C$12","v":"co-svsp-core:NumeroIdentificacionDeudorCxC"}]
["/*",null,{"$f":"'800111A GeneraXBRL'!$D$13","v":"Primer apellido deudor"},{"$f":"'800111A GeneraXBRL'!$C$13","v":"co-svsp-core:PrimerApellidoDeudorCxC"}]
["/*",null,{"$f":"'800111A GeneraXBRL'!$D$14","v":"Segundo apellido deudor"},{"$f":"'800111A GeneraXBRL'!$C$14","v":"co-svsp-core:SegundoApellidoDeudorCxC"}]
["/*",null,{"$f":"'800111A GeneraXBRL'!$D$15","v":"Primer nombre deudor"},{"$f":"'800111A GeneraXBRL'!$C$15","v":"co-svsp-core:PrimerNombreDeudorCxC"}]
["/*",null,{"$f":"'800111A GeneraXBRL'!$D$16","v":"Otros nombres deudor"},{"$f":"'800111A GeneraXBRL'!$C$16","v":"co-svsp-core:OtrosNombresDeudorCxC"}]
["/*",null,{"$f":"'800111A GeneraXBRL'!$D$17","v":"Razón Social deudor"},{"$f":"'800111A GeneraXBRL'!$C$17","v":"co-svsp-core:RazonSocialDeudorCxC"}]
["/*",null,{"$f":"'800111A GeneraXBRL'!$D$18","v":"Dirección deudor"},{"$f":"'800111A GeneraXBRL'!$C$18","v":"co-svsp-core:DireccionDeudorCxC"}]
["/*",null,{"$f":"'800111A GeneraXBRL'!$D$19","v":"Departamento deudor"},{"$f":"'800111A GeneraXBRL'!$C$19","v":"co-svsp-core:DepartamentoDeudorCxC"}]
["/*",null,{"$f":"'800111A GeneraXBRL'!$D$20","v":"Municipio deudor"},{"$f":"'800111A GeneraXBRL'!$C$20","v":"co-svsp-core:MunicipioDeudorCxC"}]
["/*",null,{"$f":"'800111A GeneraXBRL'!$D$21","v":"País deudor"},{"$f":"'800111A GeneraXBRL'!$C$21","v":"co-svsp-core:PaisDeudorCxC"}]
["/*",null,{"$f":"'800111A GeneraXBRL'!$D$22","v":"Saldo cuentas por cobrar"},{"$f":"'800111A GeneraXBRL'!$C$22","v":"co-svsp-core:SaldoCuentasPorCobrarCxC"}]
["/*",null,"--129--"]
["/*",null,{"$f":"'800111A GeneraXBRL'!$D$11","v":"Tipo de documento del deudor"},{"$f":"'800111A GeneraXBRL'!$C$11","v":"co-svsp-core:TipoDeDocumentoDeudorCxC"}]
["/*",null,{"$f":"'800111A GeneraXBRL'!$D$12","v":"Número de identificación del deudor"},{"$f":"'800111A GeneraXBRL'!$C$12","v":"co-svsp-core:NumeroIdentificacionDeudorCxC"}]
["/*",null,{"$f":"'800111A GeneraXBRL'!$D$13","v":"Primer apellido deudor"},{"$f":"'800111A GeneraXBRL'!$C$13","v":"co-svsp-core:PrimerApellidoDeudorCxC"}]
["/*",null,{"$f":"'800111A GeneraXBRL'!$D$14","v":"Segundo apellido deudor"},{"$f":"'800111A GeneraXBRL'!$C$14","v":"co-svsp-core:SegundoApellidoDeudorCxC"}]
["/*",null,{"$f":"'800111A GeneraXBRL'!$D$15","v":"Primer nombre deudor"},{"$f":"'800111A GeneraXBRL'!$C$15","v":"co-svsp-core:PrimerNombreDeudorCxC"}]
["/*",null,{"$f":"'800111A GeneraXBRL'!$D$16","v":"Otros nombres deudor"},{"$f":"'800111A GeneraXBRL'!$C$16","v":"co-svsp-core:OtrosNombresDeudorCxC"}]
["/*",null,{"$f":"'800111A GeneraXBRL'!$D$17","v":"Razón Social deudor"},{"$f":"'800111A GeneraXBRL'!$C$17","v":"co-svsp-core:RazonSocialDeudorCxC"}]
["/*",null,{"$f":"'800111A GeneraXBRL'!$D$18","v":"Dirección deudor"},{"$f":"'800111A GeneraXBRL'!$C$18","v":"co-svsp-core:DireccionDeudorCxC"}]
["/*",null,{"$f":"'800111A GeneraXBRL'!$D$19","v":"Departamento deudor"},{"$f":"'800111A GeneraXBRL'!$C$19","v":"co-svsp-core:DepartamentoDeudorCxC"}]
["/*",null,{"$f":"'800111A GeneraXBRL'!$D$20","v":"Municipio deudor"},{"$f":"'800111A GeneraXBRL'!$C$20","v":"co-svsp-core:MunicipioDeudorCxC"}]
["/*",null,{"$f":"'800111A GeneraXBRL'!$D$21","v":"País deudor"},{"$f":"'800111A GeneraXBRL'!$C$21","v":"co-svsp-core:PaisDeudorCxC"}]
["/*",null,{"$f":"'800111A GeneraXBRL'!$D$22","v":"Saldo cuentas por cobrar"},{"$f":"'800111A GeneraXBRL'!$C$22","v":"co-svsp-core:SaldoCuentasPorCobrarCxC"}]
["/*",null,"--130--"]
["/*",null,{"$f":"'800111A GeneraXBRL'!$D$11","v":"Tipo de documento del deudor"},{"$f":"'800111A GeneraXBRL'!$C$11","v":"co-svsp-core:TipoDeDocumentoDeudorCxC"}]
["/*",null,{"$f":"'800111A GeneraXBRL'!$D$12","v":"Número de identificación del deudor"},{"$f":"'800111A GeneraXBRL'!$C$12","v":"co-svsp-core:NumeroIdentificacionDeudorCxC"}]
["/*",null,{"$f":"'800111A GeneraXBRL'!$D$13","v":"Primer apellido deudor"},{"$f":"'800111A GeneraXBRL'!$C$13","v":"co-svsp-core:PrimerApellidoDeudorCxC"}]
["/*",null,{"$f":"'800111A GeneraXBRL'!$D$14","v":"Segundo apellido deudor"},{"$f":"'800111A GeneraXBRL'!$C$14","v":"co-svsp-core:SegundoApellidoDeudorCxC"}]
["/*",null,{"$f":"'800111A GeneraXBRL'!$D$15","v":"Primer nombre deudor"},{"$f":"'800111A GeneraXBRL'!$C$15","v":"co-svsp-core:PrimerNombreDeudorCxC"}]
["/*",null,{"$f":"'800111A GeneraXBRL'!$D$16","v":"Otros nombres deudor"},{"$f":"'800111A GeneraXBRL'!$C$16","v":"co-svsp-core:OtrosNombresDeudorCxC"}]
["/*",null,{"$f":"'800111A GeneraXBRL'!$D$17","v":"Razón Social deudor"},{"$f":"'800111A GeneraXBRL'!$C$17","v":"co-svsp-core:RazonSocialDeudorCxC"}]
["/*",null,{"$f":"'800111A GeneraXBRL'!$D$18","v":"Dirección deudor"},{"$f":"'800111A GeneraXBRL'!$C$18","v":"co-svsp-core:DireccionDeudorCxC"}]
["/*",null,{"$f":"'800111A GeneraXBRL'!$D$19","v":"Departamento deudor"},{"$f":"'800111A GeneraXBRL'!$C$19","v":"co-svsp-core:DepartamentoDeudorCxC"}]
["/*",null,{"$f":"'800111A GeneraXBRL'!$D$20","v":"Municipio deudor"},{"$f":"'800111A GeneraXBRL'!$C$20","v":"co-svsp-core:MunicipioDeudorCxC"}]
["/*",null,{"$f":"'800111A GeneraXBRL'!$D$21","v":"País deudor"},{"$f":"'800111A GeneraXBRL'!$C$21","v":"co-svsp-core:PaisDeudorCxC"}]
["/*",null,{"$f":"'800111A GeneraXBRL'!$D$22","v":"Saldo cuentas por cobrar"},{"$f":"'800111A GeneraXBRL'!$C$22","v":"co-svsp-core:SaldoCuentasPorCobrarCxC"}]
["/*",null,"--131--"]
["/*",null,{"$f":"'800111A GeneraXBRL'!$D$11","v":"Tipo de documento del deudor"},{"$f":"'800111A GeneraXBRL'!$C$11","v":"co-svsp-core:TipoDeDocumentoDeudorCxC"}]
["/*",null,{"$f":"'800111A GeneraXBRL'!$D$12","v":"Número de identificación del deudor"},{"$f":"'800111A GeneraXBRL'!$C$12","v":"co-svsp-core:NumeroIdentificacionDeudorCxC"}]
["/*",null,{"$f":"'800111A GeneraXBRL'!$D$13","v":"Primer apellido deudor"},{"$f":"'800111A GeneraXBRL'!$C$13","v":"co-svsp-core:PrimerApellidoDeudorCxC"}]
["/*",null,{"$f":"'800111A GeneraXBRL'!$D$14","v":"Segundo apellido deudor"},{"$f":"'800111A GeneraXBRL'!$C$14","v":"co-svsp-core:SegundoApellidoDeudorCxC"}]
["/*",null,{"$f":"'800111A GeneraXBRL'!$D$15","v":"Primer nombre deudor"},{"$f":"'800111A GeneraXBRL'!$C$15","v":"co-svsp-core:PrimerNombreDeudorCxC"}]
["/*",null,{"$f":"'800111A GeneraXBRL'!$D$16","v":"Otros nombres deudor"},{"$f":"'800111A GeneraXBRL'!$C$16","v":"co-svsp-core:OtrosNombresDeudorCxC"}]
["/*",null,{"$f":"'800111A GeneraXBRL'!$D$17","v":"Razón Social deudor"},{"$f":"'800111A GeneraXBRL'!$C$17","v":"co-svsp-core:RazonSocialDeudorCxC"}]
["/*",null,{"$f":"'800111A GeneraXBRL'!$D$18","v":"Dirección deudor"},{"$f":"'800111A GeneraXBRL'!$C$18","v":"co-svsp-core:DireccionDeudorCxC"}]
["/*",null,{"$f":"'800111A GeneraXBRL'!$D$19","v":"Departamento deudor"},{"$f":"'800111A GeneraXBRL'!$C$19","v":"co-svsp-core:DepartamentoDeudorCxC"}]
[{"$f":"IF(G2144=\"\",\"/*\",\"\")","v":"/*"},null,{"$f":"'800111A GeneraXBRL'!$D$20","v":"Municipio deudor"},{"$f":"'800111A GeneraXBRL'!$C$20","v":"co-svsp-core:MunicipioDeudorCxC"}]
["/*",null,{"$f":"'800111A GeneraXBRL'!$D$21","v":"País deudor"},{"$f":"'800111A GeneraXBRL'!$C$21","v":"co-svsp-core:PaisDeudorCxC"}]
["/*",null,{"$f":"'800111A GeneraXBRL'!$D$22","v":"Saldo cuentas por cobrar"},{"$f":"'800111A GeneraXBRL'!$C$22","v":"co-svsp-core:SaldoCuentasPorCobrarCxC"}]
["/*",null,"--132--"]
["/*",null,{"$f":"'800111A GeneraXBRL'!$D$11","v":"Tipo de documento del deudor"},{"$f":"'800111A GeneraXBRL'!$C$11","v":"co-svsp-core:TipoDeDocumentoDeudorCxC"}]
["/*",null,{"$f":"'800111A GeneraXBRL'!$D$12","v":"Número de identificación del deudor"},{"$f":"'800111A GeneraXBRL'!$C$12","v":"co-svsp-core:NumeroIdentificacionDeudorCxC"}]
["/*",null,{"$f":"'800111A GeneraXBRL'!$D$13","v":"Primer apellido deudor"},{"$f":"'800111A GeneraXBRL'!$C$13","v":"co-svsp-core:PrimerApellidoDeudorCxC"}]
["/*",null,{"$f":"'800111A GeneraXBRL'!$D$14","v":"Segundo apellido deudor"},{"$f":"'800111A GeneraXBRL'!$C$14","v":"co-svsp-core:SegundoApellidoDeudorCxC"}]
["/*",null,{"$f":"'800111A GeneraXBRL'!$D$15","v":"Primer nombre deudor"},{"$f":"'800111A GeneraXBRL'!$C$15","v":"co-svsp-core:PrimerNombreDeudorCxC"}]
["/*",null,{"$f":"'800111A GeneraXBRL'!$D$16","v":"Otros nombres deudor"},{"$f":"'800111A GeneraXBRL'!$C$16","v":"co-svsp-core:OtrosNombresDeudorCxC"}]
["/*",null,{"$f":"'800111A GeneraXBRL'!$D$17","v":"Razón Social deudor"},{"$f":"'800111A GeneraXBRL'!$C$17","v":"co-svsp-core:RazonSocialDeudorCxC"}]
["/*",null,{"$f":"'800111A GeneraXBRL'!$D$18","v":"Dirección deudor"},{"$f":"'800111A GeneraXBRL'!$C$18","v":"co-svsp-core:DireccionDeudorCxC"}]
["/*",null,{"$f":"'800111A GeneraXBRL'!$D$19","v":"Departamento deudor"},{"$f":"'800111A GeneraXBRL'!$C$19","v":"co-svsp-core:DepartamentoDeudorCxC"}]
["/*",null,{"$f":"'800111A GeneraXBRL'!$D$20","v":"Municipio deudor"},{"$f":"'800111A GeneraXBRL'!$C$20","v":"co-svsp-core:MunicipioDeudorCxC"}]
["/*",null,{"$f":"'800111A GeneraXBRL'!$D$21","v":"País deudor"},{"$f":"'800111A GeneraXBRL'!$C$21","v":"co-svsp-core:PaisDeudorCxC"}]
["/*",null,{"$f":"'800111A GeneraXBRL'!$D$22","v":"Saldo cuentas por cobrar"},{"$f":"'800111A GeneraXBRL'!$C$22","v":"co-svsp-core:SaldoCuentasPorCobrarCxC"}]
["/*",null,"--133--"]
["/*",null,{"$f":"'800111A GeneraXBRL'!$D$11","v":"Tipo de documento del deudor"},{"$f":"'800111A GeneraXBRL'!$C$11","v":"co-svsp-core:TipoDeDocumentoDeudorCxC"}]
["/*",null,{"$f":"'800111A GeneraXBRL'!$D$12","v":"Número de identificación del deudor"},{"$f":"'800111A GeneraXBRL'!$C$12","v":"co-svsp-core:NumeroIdentificacionDeudorCxC"}]
["/*",null,{"$f":"'800111A GeneraXBRL'!$D$13","v":"Primer apellido deudor"},{"$f":"'800111A GeneraXBRL'!$C$13","v":"co-svsp-core:PrimerApellidoDeudorCxC"}]
["/*",null,{"$f":"'800111A GeneraXBRL'!$D$14","v":"Segundo apellido deudor"},{"$f":"'800111A GeneraXBRL'!$C$14","v":"co-svsp-core:SegundoApellidoDeudorCxC"}]
["/*",null,{"$f":"'800111A GeneraXBRL'!$D$15","v":"Primer nombre deudor"},{"$f":"'800111A GeneraXBRL'!$C$15","v":"co-svsp-core:PrimerNombreDeudorCxC"}]
["/*",null,{"$f":"'800111A GeneraXBRL'!$D$16","v":"Otros nombres deudor"},{"$f":"'800111A GeneraXBRL'!$C$16","v":"co-svsp-core:OtrosNombresDeudorCxC"}]
["/*",null,{"$f":"'800111A GeneraXBRL'!$D$17","v":"Razón Social deudor"},{"$f":"'800111A GeneraXBRL'!$C$17","v":"co-svsp-core:RazonSocialDeudorCxC"}]
["/*",null,{"$f":"'800111A GeneraXBRL'!$D$18","v":"Dirección deudor"},{"$f":"'800111A GeneraXBRL'!$C$18","v":"co-svsp-core:DireccionDeudorCxC"}]
["/*",null,{"$f":"'800111A GeneraXBRL'!$D$19","v":"Departamento deudor"},{"$f":"'800111A GeneraXBRL'!$C$19","v":"co-svsp-core:DepartamentoDeudorCxC"}]
["/*",null,{"$f":"'800111A GeneraXBRL'!$D$20","v":"Municipio deudor"},{"$f":"'800111A GeneraXBRL'!$C$20","v":"co-svsp-core:MunicipioDeudorCxC"}]
["/*",null,{"$f":"'800111A GeneraXBRL'!$D$21","v":"País deudor"},{"$f":"'800111A GeneraXBRL'!$C$21","v":"co-svsp-core:PaisDeudorCxC"}]
["/*",null,{"$f":"'800111A GeneraXBRL'!$D$22","v":"Saldo cuentas por cobrar"},{"$f":"'800111A GeneraXBRL'!$C$22","v":"co-svsp-core:SaldoCuentasPorCobrarCxC"}]
["/*",null,"--134--"]
["/*",null,{"$f":"'800111A GeneraXBRL'!$D$11","v":"Tipo de documento del deudor"},{"$f":"'800111A GeneraXBRL'!$C$11","v":"co-svsp-core:TipoDeDocumentoDeudorCxC"}]
["/*",null,{"$f":"'800111A GeneraXBRL'!$D$12","v":"Número de identificación del deudor"},{"$f":"'800111A GeneraXBRL'!$C$12","v":"co-svsp-core:NumeroIdentificacionDeudorCxC"}]
["/*",null,{"$f":"'800111A GeneraXBRL'!$D$13","v":"Primer apellido deudor"},{"$f":"'800111A GeneraXBRL'!$C$13","v":"co-svsp-core:PrimerApellidoDeudorCxC"}]
["/*",null,{"$f":"'800111A GeneraXBRL'!$D$14","v":"Segundo apellido deudor"},{"$f":"'800111A GeneraXBRL'!$C$14","v":"co-svsp-core:SegundoApellidoDeudorCxC"}]
["/*",null,{"$f":"'800111A GeneraXBRL'!$D$15","v":"Primer nombre deudor"},{"$f":"'800111A GeneraXBRL'!$C$15","v":"co-svsp-core:PrimerNombreDeudorCxC"}]
["/*",null,{"$f":"'800111A GeneraXBRL'!$D$16","v":"Otros nombres deudor"},{"$f":"'800111A GeneraXBRL'!$C$16","v":"co-svsp-core:OtrosNombresDeudorCxC"}]
["/*",null,{"$f":"'800111A GeneraXBRL'!$D$17","v":"Razón Social deudor"},{"$f":"'800111A GeneraXBRL'!$C$17","v":"co-svsp-core:RazonSocialDeudorCxC"}]
["/*",null,{"$f":"'800111A GeneraXBRL'!$D$18","v":"Dirección deudor"},{"$f":"'800111A GeneraXBRL'!$C$18","v":"co-svsp-core:DireccionDeudorCxC"}]
["/*",null,{"$f":"'800111A GeneraXBRL'!$D$19","v":"Departamento deudor"},{"$f":"'800111A GeneraXBRL'!$C$19","v":"co-svsp-core:DepartamentoDeudorCxC"}]
["/*",null,{"$f":"'800111A GeneraXBRL'!$D$20","v":"Municipio deudor"},{"$f":"'800111A GeneraXBRL'!$C$20","v":"co-svsp-core:MunicipioDeudorCxC"}]
["/*",null,{"$f":"'800111A GeneraXBRL'!$D$21","v":"País deudor"},{"$f":"'800111A GeneraXBRL'!$C$21","v":"co-svsp-core:PaisDeudorCxC"}]
["/*",null,{"$f":"'800111A GeneraXBRL'!$D$22","v":"Saldo cuentas por cobrar"},{"$f":"'800111A GeneraXBRL'!$C$22","v":"co-svsp-core:SaldoCuentasPorCobrarCxC"}]
["/*",null,"--135--"]
["/*",null,{"$f":"'800111A GeneraXBRL'!$D$11","v":"Tipo de documento del deudor"},{"$f":"'800111A GeneraXBRL'!$C$11","v":"co-svsp-core:TipoDeDocumentoDeudorCxC"}]
["/*",null,{"$f":"'800111A GeneraXBRL'!$D$12","v":"Número de identificación del deudor"},{"$f":"'800111A GeneraXBRL'!$C$12","v":"co-svsp-core:NumeroIdentificacionDeudorCxC"}]
["/*",null,{"$f":"'800111A GeneraXBRL'!$D$13","v":"Primer apellido deudor"},{"$f":"'800111A GeneraXBRL'!$C$13","v":"co-svsp-core:PrimerApellidoDeudorCxC"}]
["/*",null,{"$f":"'800111A GeneraXBRL'!$D$14","v":"Segundo apellido deudor"},{"$f":"'800111A GeneraXBRL'!$C$14","v":"co-svsp-core:SegundoApellidoDeudorCxC"}]
["/*",null,{"$f":"'800111A GeneraXBRL'!$D$15","v":"Primer nombre deudor"},{"$f":"'800111A GeneraXBRL'!$C$15","v":"co-svsp-core:PrimerNombreDeudorCxC"}]
["/*",null,{"$f":"'800111A GeneraXBRL'!$D$16","v":"Otros nombres deudor"},{"$f":"'800111A GeneraXBRL'!$C$16","v":"co-svsp-core:OtrosNombresDeudorCxC"}]
["/*",null,{"$f":"'800111A GeneraXBRL'!$D$17","v":"Razón Social deudor"},{"$f":"'800111A GeneraXBRL'!$C$17","v":"co-svsp-core:RazonSocialDeudorCxC"}]
["/*",null,{"$f":"'800111A GeneraXBRL'!$D$18","v":"Dirección deudor"},{"$f":"'800111A GeneraXBRL'!$C$18","v":"co-svsp-core:DireccionDeudorCxC"}]
["/*",null,{"$f":"'800111A GeneraXBRL'!$D$19","v":"Departamento deudor"},{"$f":"'800111A GeneraXBRL'!$C$19","v":"co-svsp-core:DepartamentoDeudorCxC"}]
["/*",null,{"$f":"'800111A GeneraXBRL'!$D$20","v":"Municipio deudor"},{"$f":"'800111A GeneraXBRL'!$C$20","v":"co-svsp-core:MunicipioDeudorCxC"}]
["/*",null,{"$f":"'800111A GeneraXBRL'!$D$21","v":"País deudor"},{"$f":"'800111A GeneraXBRL'!$C$21","v":"co-svsp-core:PaisDeudorCxC"}]
["/*",null,{"$f":"'800111A GeneraXBRL'!$D$22","v":"Saldo cuentas por cobrar"},{"$f":"'800111A GeneraXBRL'!$C$22","v":"co-svsp-core:SaldoCuentasPorCobrarCxC"}]
["/*",null,"--136--"]
["/*",null,{"$f":"'800111A GeneraXBRL'!$D$11","v":"Tipo de documento del deudor"},{"$f":"'800111A GeneraXBRL'!$C$11","v":"co-svsp-core:TipoDeDocumentoDeudorCxC"}]
["/*",null,{"$f":"'800111A GeneraXBRL'!$D$12","v":"Número de identificación del deudor"},{"$f":"'800111A GeneraXBRL'!$C$12","v":"co-svsp-core:NumeroIdentificacionDeudorCxC"}]
["/*",null,{"$f":"'800111A GeneraXBRL'!$D$13","v":"Primer apellido deudor"},{"$f":"'800111A GeneraXBRL'!$C$13","v":"co-svsp-core:PrimerApellidoDeudorCxC"}]
["/*",null,{"$f":"'800111A GeneraXBRL'!$D$14","v":"Segundo apellido deudor"},{"$f":"'800111A GeneraXBRL'!$C$14","v":"co-svsp-core:SegundoApellidoDeudorCxC"}]
["/*",null,{"$f":"'800111A GeneraXBRL'!$D$15","v":"Primer nombre deudor"},{"$f":"'800111A GeneraXBRL'!$C$15","v":"co-svsp-core:PrimerNombreDeudorCxC"}]
["/*",null,{"$f":"'800111A GeneraXBRL'!$D$16","v":"Otros nombres deudor"},{"$f":"'800111A GeneraXBRL'!$C$16","v":"co-svsp-core:OtrosNombresDeudorCxC"}]
["/*",null,{"$f":"'800111A GeneraXBRL'!$D$17","v":"Razón Social deudor"},{"$f":"'800111A GeneraXBRL'!$C$17","v":"co-svsp-core:RazonSocialDeudorCxC"}]
["/*",null,{"$f":"'800111A GeneraXBRL'!$D$18","v":"Dirección deudor"},{"$f":"'800111A GeneraXBRL'!$C$18","v":"co-svsp-core:DireccionDeudorCxC"}]
[{"$f":"IF(G2208=\"\",\"/*\",\"\")","v":"/*"},null,{"$f":"'800111A GeneraXBRL'!$D$19","v":"Departamento deudor"},{"$f":"'800111A GeneraXBRL'!$C$19","v":"co-svsp-core:DepartamentoDeudorCxC"}]
["/*",null,{"$f":"'800111A GeneraXBRL'!$D$20","v":"Municipio deudor"},{"$f":"'800111A GeneraXBRL'!$C$20","v":"co-svsp-core:MunicipioDeudorCxC"}]
["/*",null,{"$f":"'800111A GeneraXBRL'!$D$21","v":"País deudor"},{"$f":"'800111A GeneraXBRL'!$C$21","v":"co-svsp-core:PaisDeudorCxC"}]
["/*",null,{"$f":"'800111A GeneraXBRL'!$D$22","v":"Saldo cuentas por cobrar"},{"$f":"'800111A GeneraXBRL'!$C$22","v":"co-svsp-core:SaldoCuentasPorCobrarCxC"}]
["/*",null,"--137--"]
["/*",null,{"$f":"'800111A GeneraXBRL'!$D$11","v":"Tipo de documento del deudor"},{"$f":"'800111A GeneraXBRL'!$C$11","v":"co-svsp-core:TipoDeDocumentoDeudorCxC"}]
["/*",null,{"$f":"'800111A GeneraXBRL'!$D$12","v":"Número de identificación del deudor"},{"$f":"'800111A GeneraXBRL'!$C$12","v":"co-svsp-core:NumeroIdentificacionDeudorCxC"}]
["/*",null,{"$f":"'800111A GeneraXBRL'!$D$13","v":"Primer apellido deudor"},{"$f":"'800111A GeneraXBRL'!$C$13","v":"co-svsp-core:PrimerApellidoDeudorCxC"}]
["/*",null,{"$f":"'800111A GeneraXBRL'!$D$14","v":"Segundo apellido deudor"},{"$f":"'800111A GeneraXBRL'!$C$14","v":"co-svsp-core:SegundoApellidoDeudorCxC"}]
["/*",null,{"$f":"'800111A GeneraXBRL'!$D$15","v":"Primer nombre deudor"},{"$f":"'800111A GeneraXBRL'!$C$15","v":"co-svsp-core:PrimerNombreDeudorCxC"}]
["/*",null,{"$f":"'800111A GeneraXBRL'!$D$16","v":"Otros nombres deudor"},{"$f":"'800111A GeneraXBRL'!$C$16","v":"co-svsp-core:OtrosNombresDeudorCxC"}]
["/*",null,{"$f":"'800111A GeneraXBRL'!$D$17","v":"Razón Social deudor"},{"$f":"'800111A GeneraXBRL'!$C$17","v":"co-svsp-core:RazonSocialDeudorCxC"}]
["/*",null,{"$f":"'800111A GeneraXBRL'!$D$18","v":"Dirección deudor"},{"$f":"'800111A GeneraXBRL'!$C$18","v":"co-svsp-core:DireccionDeudorCxC"}]
["/*",null,{"$f":"'800111A GeneraXBRL'!$D$19","v":"Departamento deudor"},{"$f":"'800111A GeneraXBRL'!$C$19","v":"co-svsp-core:DepartamentoDeudorCxC"}]
["/*",null,{"$f":"'800111A GeneraXBRL'!$D$20","v":"Municipio deudor"},{"$f":"'800111A GeneraXBRL'!$C$20","v":"co-svsp-core:MunicipioDeudorCxC"}]
["/*",null,{"$f":"'800111A GeneraXBRL'!$D$21","v":"País deudor"},{"$f":"'800111A GeneraXBRL'!$C$21","v":"co-svsp-core:PaisDeudorCxC"}]
["/*",null,{"$f":"'800111A GeneraXBRL'!$D$22","v":"Saldo cuentas por cobrar"},{"$f":"'800111A GeneraXBRL'!$C$22","v":"co-svsp-core:SaldoCuentasPorCobrarCxC"}]
["/*",null,"--138--"]
["/*",null,{"$f":"'800111A GeneraXBRL'!$D$11","v":"Tipo de documento del deudor"},{"$f":"'800111A GeneraXBRL'!$C$11","v":"co-svsp-core:TipoDeDocumentoDeudorCxC"}]
["/*",null,{"$f":"'800111A GeneraXBRL'!$D$12","v":"Número de identificación del deudor"},{"$f":"'800111A GeneraXBRL'!$C$12","v":"co-svsp-core:NumeroIdentificacionDeudorCxC"}]
["/*",null,{"$f":"'800111A GeneraXBRL'!$D$13","v":"Primer apellido deudor"},{"$f":"'800111A GeneraXBRL'!$C$13","v":"co-svsp-core:PrimerApellidoDeudorCxC"}]
["/*",null,{"$f":"'800111A GeneraXBRL'!$D$14","v":"Segundo apellido deudor"},{"$f":"'800111A GeneraXBRL'!$C$14","v":"co-svsp-core:SegundoApellidoDeudorCxC"}]
["/*",null,{"$f":"'800111A GeneraXBRL'!$D$15","v":"Primer nombre deudor"},{"$f":"'800111A GeneraXBRL'!$C$15","v":"co-svsp-core:PrimerNombreDeudorCxC"}]
["/*",null,{"$f":"'800111A GeneraXBRL'!$D$16","v":"Otros nombres deudor"},{"$f":"'800111A GeneraXBRL'!$C$16","v":"co-svsp-core:OtrosNombresDeudorCxC"}]
["/*",null,{"$f":"'800111A GeneraXBRL'!$D$17","v":"Razón Social deudor"},{"$f":"'800111A GeneraXBRL'!$C$17","v":"co-svsp-core:RazonSocialDeudorCxC"}]
["/*",null,{"$f":"'800111A GeneraXBRL'!$D$18","v":"Dirección deudor"},{"$f":"'800111A GeneraXBRL'!$C$18","v":"co-svsp-core:DireccionDeudorCxC"}]
["/*",null,{"$f":"'800111A GeneraXBRL'!$D$19","v":"Departamento deudor"},{"$f":"'800111A GeneraXBRL'!$C$19","v":"co-svsp-core:DepartamentoDeudorCxC"}]
["/*",null,{"$f":"'800111A GeneraXBRL'!$D$20","v":"Municipio deudor"},{"$f":"'800111A GeneraXBRL'!$C$20","v":"co-svsp-core:MunicipioDeudorCxC"}]
["/*",null,{"$f":"'800111A GeneraXBRL'!$D$21","v":"País deudor"},{"$f":"'800111A GeneraXBRL'!$C$21","v":"co-svsp-core:PaisDeudorCxC"}]
["/*",null,{"$f":"'800111A GeneraXBRL'!$D$22","v":"Saldo cuentas por cobrar"},{"$f":"'800111A GeneraXBRL'!$C$22","v":"co-svsp-core:SaldoCuentasPorCobrarCxC"}]
["/*",null,"--139--"]
["/*",null,{"$f":"'800111A GeneraXBRL'!$D$11","v":"Tipo de documento del deudor"},{"$f":"'800111A GeneraXBRL'!$C$11","v":"co-svsp-core:TipoDeDocumentoDeudorCxC"}]
["/*",null,{"$f":"'800111A GeneraXBRL'!$D$12","v":"Número de identificación del deudor"},{"$f":"'800111A GeneraXBRL'!$C$12","v":"co-svsp-core:NumeroIdentificacionDeudorCxC"}]
["/*",null,{"$f":"'800111A GeneraXBRL'!$D$13","v":"Primer apellido deudor"},{"$f":"'800111A GeneraXBRL'!$C$13","v":"co-svsp-core:PrimerApellidoDeudorCxC"}]
["/*",null,{"$f":"'800111A GeneraXBRL'!$D$14","v":"Segundo apellido deudor"},{"$f":"'800111A GeneraXBRL'!$C$14","v":"co-svsp-core:SegundoApellidoDeudorCxC"}]
["/*",null,{"$f":"'800111A GeneraXBRL'!$D$15","v":"Primer nombre deudor"},{"$f":"'800111A GeneraXBRL'!$C$15","v":"co-svsp-core:PrimerNombreDeudorCxC"}]
["/*",null,{"$f":"'800111A GeneraXBRL'!$D$16","v":"Otros nombres deudor"},{"$f":"'800111A GeneraXBRL'!$C$16","v":"co-svsp-core:OtrosNombresDeudorCxC"}]
["/*",null,{"$f":"'800111A GeneraXBRL'!$D$17","v":"Razón Social deudor"},{"$f":"'800111A GeneraXBRL'!$C$17","v":"co-svsp-core:RazonSocialDeudorCxC"}]
["/*",null,{"$f":"'800111A GeneraXBRL'!$D$18","v":"Dirección deudor"},{"$f":"'800111A GeneraXBRL'!$C$18","v":"co-svsp-core:DireccionDeudorCxC"}]
["/*",null,{"$f":"'800111A GeneraXBRL'!$D$19","v":"Departamento deudor"},{"$f":"'800111A GeneraXBRL'!$C$19","v":"co-svsp-core:DepartamentoDeudorCxC"}]
["/*",null,{"$f":"'800111A GeneraXBRL'!$D$20","v":"Municipio deudor"},{"$f":"'800111A GeneraXBRL'!$C$20","v":"co-svsp-core:MunicipioDeudorCxC"}]
["/*",null,{"$f":"'800111A GeneraXBRL'!$D$21","v":"País deudor"},{"$f":"'800111A GeneraXBRL'!$C$21","v":"co-svsp-core:PaisDeudorCxC"}]
["/*",null,{"$f":"'800111A GeneraXBRL'!$D$22","v":"Saldo cuentas por cobrar"},{"$f":"'800111A GeneraXBRL'!$C$22","v":"co-svsp-core:SaldoCuentasPorCobrarCxC"}]
["/*",null,"--140--"]
["/*",null,{"$f":"'800111A GeneraXBRL'!$D$11","v":"Tipo de documento del deudor"},{"$f":"'800111A GeneraXBRL'!$C$11","v":"co-svsp-core:TipoDeDocumentoDeudorCxC"}]
["/*",null,{"$f":"'800111A GeneraXBRL'!$D$12","v":"Número de identificación del deudor"},{"$f":"'800111A GeneraXBRL'!$C$12","v":"co-svsp-core:NumeroIdentificacionDeudorCxC"}]
["/*",null,{"$f":"'800111A GeneraXBRL'!$D$13","v":"Primer apellido deudor"},{"$f":"'800111A GeneraXBRL'!$C$13","v":"co-svsp-core:PrimerApellidoDeudorCxC"}]
["/*",null,{"$f":"'800111A GeneraXBRL'!$D$14","v":"Segundo apellido deudor"},{"$f":"'800111A GeneraXBRL'!$C$14","v":"co-svsp-core:SegundoApellidoDeudorCxC"}]
["/*",null,{"$f":"'800111A GeneraXBRL'!$D$15","v":"Primer nombre deudor"},{"$f":"'800111A GeneraXBRL'!$C$15","v":"co-svsp-core:PrimerNombreDeudorCxC"}]
["/*",null,{"$f":"'800111A GeneraXBRL'!$D$16","v":"Otros nombres deudor"},{"$f":"'800111A GeneraXBRL'!$C$16","v":"co-svsp-core:OtrosNombresDeudorCxC"}]
["/*",null,{"$f":"'800111A GeneraXBRL'!$D$17","v":"Razón Social deudor"},{"$f":"'800111A GeneraXBRL'!$C$17","v":"co-svsp-core:RazonSocialDeudorCxC"}]
["/*",null,{"$f":"'800111A GeneraXBRL'!$D$18","v":"Dirección deudor"},{"$f":"'800111A GeneraXBRL'!$C$18","v":"co-svsp-core:DireccionDeudorCxC"}]
["/*",null,{"$f":"'800111A GeneraXBRL'!$D$19","v":"Departamento deudor"},{"$f":"'800111A GeneraXBRL'!$C$19","v":"co-svsp-core:DepartamentoDeudorCxC"}]
["/*",null,{"$f":"'800111A GeneraXBRL'!$D$20","v":"Municipio deudor"},{"$f":"'800111A GeneraXBRL'!$C$20","v":"co-svsp-core:MunicipioDeudorCxC"}]
["/*",null,{"$f":"'800111A GeneraXBRL'!$D$21","v":"País deudor"},{"$f":"'800111A GeneraXBRL'!$C$21","v":"co-svsp-core:PaisDeudorCxC"}]
["/*",null,{"$f":"'800111A GeneraXBRL'!$D$22","v":"Saldo cuentas por cobrar"},{"$f":"'800111A GeneraXBRL'!$C$22","v":"co-svsp-core:SaldoCuentasPorCobrarCxC"}]
["/*",null,"--141--"]
["/*",null,{"$f":"'800111A GeneraXBRL'!$D$11","v":"Tipo de documento del deudor"},{"$f":"'800111A GeneraXBRL'!$C$11","v":"co-svsp-core:TipoDeDocumentoDeudorCxC"}]
["/*",null,{"$f":"'800111A GeneraXBRL'!$D$12","v":"Número de identificación del deudor"},{"$f":"'800111A GeneraXBRL'!$C$12","v":"co-svsp-core:NumeroIdentificacionDeudorCxC"}]
["/*",null,{"$f":"'800111A GeneraXBRL'!$D$13","v":"Primer apellido deudor"},{"$f":"'800111A GeneraXBRL'!$C$13","v":"co-svsp-core:PrimerApellidoDeudorCxC"}]
["/*",null,{"$f":"'800111A GeneraXBRL'!$D$14","v":"Segundo apellido deudor"},{"$f":"'800111A GeneraXBRL'!$C$14","v":"co-svsp-core:SegundoApellidoDeudorCxC"}]
["/*",null,{"$f":"'800111A GeneraXBRL'!$D$15","v":"Primer nombre deudor"},{"$f":"'800111A GeneraXBRL'!$C$15","v":"co-svsp-core:PrimerNombreDeudorCxC"}]
["/*",null,{"$f":"'800111A GeneraXBRL'!$D$16","v":"Otros nombres deudor"},{"$f":"'800111A GeneraXBRL'!$C$16","v":"co-svsp-core:OtrosNombresDeudorCxC"}]
["/*",null,{"$f":"'800111A GeneraXBRL'!$D$17","v":"Razón Social deudor"},{"$f":"'800111A GeneraXBRL'!$C$17","v":"co-svsp-core:RazonSocialDeudorCxC"}]
[{"$f":"IF(G2272=\"\",\"/*\",\"\")","v":"/*"},null,{"$f":"'800111A GeneraXBRL'!$D$18","v":"Dirección deudor"},{"$f":"'800111A GeneraXBRL'!$C$18","v":"co-svsp-core:DireccionDeudorCxC"}]
["/*",null,{"$f":"'800111A GeneraXBRL'!$D$19","v":"Departamento deudor"},{"$f":"'800111A GeneraXBRL'!$C$19","v":"co-svsp-core:DepartamentoDeudorCxC"}]
["/*",null,{"$f":"'800111A GeneraXBRL'!$D$20","v":"Municipio deudor"},{"$f":"'800111A GeneraXBRL'!$C$20","v":"co-svsp-core:MunicipioDeudorCxC"}]
["/*",null,{"$f":"'800111A GeneraXBRL'!$D$21","v":"País deudor"},{"$f":"'800111A GeneraXBRL'!$C$21","v":"co-svsp-core:PaisDeudorCxC"}]
["/*",null,{"$f":"'800111A GeneraXBRL'!$D$22","v":"Saldo cuentas por cobrar"},{"$f":"'800111A GeneraXBRL'!$C$22","v":"co-svsp-core:SaldoCuentasPorCobrarCxC"}]
["/*",null,"--142--"]
["/*",null,{"$f":"'800111A GeneraXBRL'!$D$11","v":"Tipo de documento del deudor"},{"$f":"'800111A GeneraXBRL'!$C$11","v":"co-svsp-core:TipoDeDocumentoDeudorCxC"}]
["/*",null,{"$f":"'800111A GeneraXBRL'!$D$12","v":"Número de identificación del deudor"},{"$f":"'800111A GeneraXBRL'!$C$12","v":"co-svsp-core:NumeroIdentificacionDeudorCxC"}]
["/*",null,{"$f":"'800111A GeneraXBRL'!$D$13","v":"Primer apellido deudor"},{"$f":"'800111A GeneraXBRL'!$C$13","v":"co-svsp-core:PrimerApellidoDeudorCxC"}]
["/*",null,{"$f":"'800111A GeneraXBRL'!$D$14","v":"Segundo apellido deudor"},{"$f":"'800111A GeneraXBRL'!$C$14","v":"co-svsp-core:SegundoApellidoDeudorCxC"}]
["/*",null,{"$f":"'800111A GeneraXBRL'!$D$15","v":"Primer nombre deudor"},{"$f":"'800111A GeneraXBRL'!$C$15","v":"co-svsp-core:PrimerNombreDeudorCxC"}]
["/*",null,{"$f":"'800111A GeneraXBRL'!$D$16","v":"Otros nombres deudor"},{"$f":"'800111A GeneraXBRL'!$C$16","v":"co-svsp-core:OtrosNombresDeudorCxC"}]
["/*",null,{"$f":"'800111A GeneraXBRL'!$D$17","v":"Razón Social deudor"},{"$f":"'800111A GeneraXBRL'!$C$17","v":"co-svsp-core:RazonSocialDeudorCxC"}]
["/*",null,{"$f":"'800111A GeneraXBRL'!$D$18","v":"Dirección deudor"},{"$f":"'800111A GeneraXBRL'!$C$18","v":"co-svsp-core:DireccionDeudorCxC"}]
["/*",null,{"$f":"'800111A GeneraXBRL'!$D$19","v":"Departamento deudor"},{"$f":"'800111A GeneraXBRL'!$C$19","v":"co-svsp-core:DepartamentoDeudorCxC"}]
["/*",null,{"$f":"'800111A GeneraXBRL'!$D$20","v":"Municipio deudor"},{"$f":"'800111A GeneraXBRL'!$C$20","v":"co-svsp-core:MunicipioDeudorCxC"}]
["/*",null,{"$f":"'800111A GeneraXBRL'!$D$21","v":"País deudor"},{"$f":"'800111A GeneraXBRL'!$C$21","v":"co-svsp-core:PaisDeudorCxC"}]
["/*",null,{"$f":"'800111A GeneraXBRL'!$D$22","v":"Saldo cuentas por cobrar"},{"$f":"'800111A GeneraXBRL'!$C$22","v":"co-svsp-core:SaldoCuentasPorCobrarCxC"}]
["/*",null,"--143--"]
["/*",null,{"$f":"'800111A GeneraXBRL'!$D$11","v":"Tipo de documento del deudor"},{"$f":"'800111A GeneraXBRL'!$C$11","v":"co-svsp-core:TipoDeDocumentoDeudorCxC"}]
["/*",null,{"$f":"'800111A GeneraXBRL'!$D$12","v":"Número de identificación del deudor"},{"$f":"'800111A GeneraXBRL'!$C$12","v":"co-svsp-core:NumeroIdentificacionDeudorCxC"}]
["/*",null,{"$f":"'800111A GeneraXBRL'!$D$13","v":"Primer apellido deudor"},{"$f":"'800111A GeneraXBRL'!$C$13","v":"co-svsp-core:PrimerApellidoDeudorCxC"}]
["/*",null,{"$f":"'800111A GeneraXBRL'!$D$14","v":"Segundo apellido deudor"},{"$f":"'800111A GeneraXBRL'!$C$14","v":"co-svsp-core:SegundoApellidoDeudorCxC"}]
["/*",null,{"$f":"'800111A GeneraXBRL'!$D$15","v":"Primer nombre deudor"},{"$f":"'800111A GeneraXBRL'!$C$15","v":"co-svsp-core:PrimerNombreDeudorCxC"}]
["/*",null,{"$f":"'800111A GeneraXBRL'!$D$16","v":"Otros nombres deudor"},{"$f":"'800111A GeneraXBRL'!$C$16","v":"co-svsp-core:OtrosNombresDeudorCxC"}]
["/*",null,{"$f":"'800111A GeneraXBRL'!$D$17","v":"Razón Social deudor"},{"$f":"'800111A GeneraXBRL'!$C$17","v":"co-svsp-core:RazonSocialDeudorCxC"}]
["/*",null,{"$f":"'800111A GeneraXBRL'!$D$18","v":"Dirección deudor"},{"$f":"'800111A GeneraXBRL'!$C$18","v":"co-svsp-core:DireccionDeudorCxC"}]
["/*",null,{"$f":"'800111A GeneraXBRL'!$D$19","v":"Departamento deudor"},{"$f":"'800111A GeneraXBRL'!$C$19","v":"co-svsp-core:DepartamentoDeudorCxC"}]
["/*",null,{"$f":"'800111A GeneraXBRL'!$D$20","v":"Municipio deudor"},{"$f":"'800111A GeneraXBRL'!$C$20","v":"co-svsp-core:MunicipioDeudorCxC"}]
["/*",null,{"$f":"'800111A GeneraXBRL'!$D$21","v":"País deudor"},{"$f":"'800111A GeneraXBRL'!$C$21","v":"co-svsp-core:PaisDeudorCxC"}]
["/*",null,{"$f":"'800111A GeneraXBRL'!$D$22","v":"Saldo cuentas por cobrar"},{"$f":"'800111A GeneraXBRL'!$C$22","v":"co-svsp-core:SaldoCuentasPorCobrarCxC"}]
["/*",null,"--144--"]
["/*",null,{"$f":"'800111A GeneraXBRL'!$D$11","v":"Tipo de documento del deudor"},{"$f":"'800111A GeneraXBRL'!$C$11","v":"co-svsp-core:TipoDeDocumentoDeudorCxC"}]
["/*",null,{"$f":"'800111A GeneraXBRL'!$D$12","v":"Número de identificación del deudor"},{"$f":"'800111A GeneraXBRL'!$C$12","v":"co-svsp-core:NumeroIdentificacionDeudorCxC"}]
["/*",null,{"$f":"'800111A GeneraXBRL'!$D$13","v":"Primer apellido deudor"},{"$f":"'800111A GeneraXBRL'!$C$13","v":"co-svsp-core:PrimerApellidoDeudorCxC"}]
["/*",null,{"$f":"'800111A GeneraXBRL'!$D$14","v":"Segundo apellido deudor"},{"$f":"'800111A GeneraXBRL'!$C$14","v":"co-svsp-core:SegundoApellidoDeudorCxC"}]
["/*",null,{"$f":"'800111A GeneraXBRL'!$D$15","v":"Primer nombre deudor"},{"$f":"'800111A GeneraXBRL'!$C$15","v":"co-svsp-core:PrimerNombreDeudorCxC"}]
["/*",null,{"$f":"'800111A GeneraXBRL'!$D$16","v":"Otros nombres deudor"},{"$f":"'800111A GeneraXBRL'!$C$16","v":"co-svsp-core:OtrosNombresDeudorCxC"}]
["/*",null,{"$f":"'800111A GeneraXBRL'!$D$17","v":"Razón Social deudor"},{"$f":"'800111A GeneraXBRL'!$C$17","v":"co-svsp-core:RazonSocialDeudorCxC"}]
["/*",null,{"$f":"'800111A GeneraXBRL'!$D$18","v":"Dirección deudor"},{"$f":"'800111A GeneraXBRL'!$C$18","v":"co-svsp-core:DireccionDeudorCxC"}]
["/*",null,{"$f":"'800111A GeneraXBRL'!$D$19","v":"Departamento deudor"},{"$f":"'800111A GeneraXBRL'!$C$19","v":"co-svsp-core:DepartamentoDeudorCxC"}]
["/*",null,{"$f":"'800111A GeneraXBRL'!$D$20","v":"Municipio deudor"},{"$f":"'800111A GeneraXBRL'!$C$20","v":"co-svsp-core:MunicipioDeudorCxC"}]
["/*",null,{"$f":"'800111A GeneraXBRL'!$D$21","v":"País deudor"},{"$f":"'800111A GeneraXBRL'!$C$21","v":"co-svsp-core:PaisDeudorCxC"}]
["/*",null,{"$f":"'800111A GeneraXBRL'!$D$22","v":"Saldo cuentas por cobrar"},{"$f":"'800111A GeneraXBRL'!$C$22","v":"co-svsp-core:SaldoCuentasPorCobrarCxC"}]
["/*",null,"--145--"]
["/*",null,{"$f":"'800111A GeneraXBRL'!$D$11","v":"Tipo de documento del deudor"},{"$f":"'800111A GeneraXBRL'!$C$11","v":"co-svsp-core:TipoDeDocumentoDeudorCxC"}]
["/*",null,{"$f":"'800111A GeneraXBRL'!$D$12","v":"Número de identificación del deudor"},{"$f":"'800111A GeneraXBRL'!$C$12","v":"co-svsp-core:NumeroIdentificacionDeudorCxC"}]
["/*",null,{"$f":"'800111A GeneraXBRL'!$D$13","v":"Primer apellido deudor"},{"$f":"'800111A GeneraXBRL'!$C$13","v":"co-svsp-core:PrimerApellidoDeudorCxC"}]
["/*",null,{"$f":"'800111A GeneraXBRL'!$D$14","v":"Segundo apellido deudor"},{"$f":"'800111A GeneraXBRL'!$C$14","v":"co-svsp-core:SegundoApellidoDeudorCxC"}]
["/*",null,{"$f":"'800111A GeneraXBRL'!$D$15","v":"Primer nombre deudor"},{"$f":"'800111A GeneraXBRL'!$C$15","v":"co-svsp-core:PrimerNombreDeudorCxC"}]
["/*",null,{"$f":"'800111A GeneraXBRL'!$D$16","v":"Otros nombres deudor"},{"$f":"'800111A GeneraXBRL'!$C$16","v":"co-svsp-core:OtrosNombresDeudorCxC"}]
["/*",null,{"$f":"'800111A GeneraXBRL'!$D$17","v":"Razón Social deudor"},{"$f":"'800111A GeneraXBRL'!$C$17","v":"co-svsp-core:RazonSocialDeudorCxC"}]
["/*",null,{"$f":"'800111A GeneraXBRL'!$D$18","v":"Dirección deudor"},{"$f":"'800111A GeneraXBRL'!$C$18","v":"co-svsp-core:DireccionDeudorCxC"}]
["/*",null,{"$f":"'800111A GeneraXBRL'!$D$19","v":"Departamento deudor"},{"$f":"'800111A GeneraXBRL'!$C$19","v":"co-svsp-core:DepartamentoDeudorCxC"}]
["/*",null,{"$f":"'800111A GeneraXBRL'!$D$20","v":"Municipio deudor"},{"$f":"'800111A GeneraXBRL'!$C$20","v":"co-svsp-core:MunicipioDeudorCxC"}]
["/*",null,{"$f":"'800111A GeneraXBRL'!$D$21","v":"País deudor"},{"$f":"'800111A GeneraXBRL'!$C$21","v":"co-svsp-core:PaisDeudorCxC"}]
["/*",null,{"$f":"'800111A GeneraXBRL'!$D$22","v":"Saldo cuentas por cobrar"},{"$f":"'800111A GeneraXBRL'!$C$22","v":"co-svsp-core:SaldoCuentasPorCobrarCxC"}]
["/*",null,"--146--"]
["/*",null,{"$f":"'800111A GeneraXBRL'!$D$11","v":"Tipo de documento del deudor"},{"$f":"'800111A GeneraXBRL'!$C$11","v":"co-svsp-core:TipoDeDocumentoDeudorCxC"}]
["/*",null,{"$f":"'800111A GeneraXBRL'!$D$12","v":"Número de identificación del deudor"},{"$f":"'800111A GeneraXBRL'!$C$12","v":"co-svsp-core:NumeroIdentificacionDeudorCxC"}]
["/*",null,{"$f":"'800111A GeneraXBRL'!$D$13","v":"Primer apellido deudor"},{"$f":"'800111A GeneraXBRL'!$C$13","v":"co-svsp-core:PrimerApellidoDeudorCxC"}]
["/*",null,{"$f":"'800111A GeneraXBRL'!$D$14","v":"Segundo apellido deudor"},{"$f":"'800111A GeneraXBRL'!$C$14","v":"co-svsp-core:SegundoApellidoDeudorCxC"}]
["/*",null,{"$f":"'800111A GeneraXBRL'!$D$15","v":"Primer nombre deudor"},{"$f":"'800111A GeneraXBRL'!$C$15","v":"co-svsp-core:PrimerNombreDeudorCxC"}]
["/*",null,{"$f":"'800111A GeneraXBRL'!$D$16","v":"Otros nombres deudor"},{"$f":"'800111A GeneraXBRL'!$C$16","v":"co-svsp-core:OtrosNombresDeudorCxC"}]
[{"$f":"IF(G2336=\"\",\"/*\",\"\")","v":"/*"},null,{"$f":"'800111A GeneraXBRL'!$D$17","v":"Razón Social deudor"},{"$f":"'800111A GeneraXBRL'!$C$17","v":"co-svsp-core:RazonSocialDeudorCxC"}]
["/*",null,{"$f":"'800111A GeneraXBRL'!$D$18","v":"Dirección deudor"},{"$f":"'800111A GeneraXBRL'!$C$18","v":"co-svsp-core:DireccionDeudorCxC"}]
["/*",null,{"$f":"'800111A GeneraXBRL'!$D$19","v":"Departamento deudor"},{"$f":"'800111A GeneraXBRL'!$C$19","v":"co-svsp-core:DepartamentoDeudorCxC"}]
["/*",null,{"$f":"'800111A GeneraXBRL'!$D$20","v":"Municipio deudor"},{"$f":"'800111A GeneraXBRL'!$C$20","v":"co-svsp-core:MunicipioDeudorCxC"}]
["/*",null,{"$f":"'800111A GeneraXBRL'!$D$21","v":"País deudor"},{"$f":"'800111A GeneraXBRL'!$C$21","v":"co-svsp-core:PaisDeudorCxC"}]
["/*",null,{"$f":"'800111A GeneraXBRL'!$D$22","v":"Saldo cuentas por cobrar"},{"$f":"'800111A GeneraXBRL'!$C$22","v":"co-svsp-core:SaldoCuentasPorCobrarCxC"}]
["/*",null,"--147--"]
["/*",null,{"$f":"'800111A GeneraXBRL'!$D$11","v":"Tipo de documento del deudor"},{"$f":"'800111A GeneraXBRL'!$C$11","v":"co-svsp-core:TipoDeDocumentoDeudorCxC"}]
["/*",null,{"$f":"'800111A GeneraXBRL'!$D$12","v":"Número de identificación del deudor"},{"$f":"'800111A GeneraXBRL'!$C$12","v":"co-svsp-core:NumeroIdentificacionDeudorCxC"}]
["/*",null,{"$f":"'800111A GeneraXBRL'!$D$13","v":"Primer apellido deudor"},{"$f":"'800111A GeneraXBRL'!$C$13","v":"co-svsp-core:PrimerApellidoDeudorCxC"}]
["/*",null,{"$f":"'800111A GeneraXBRL'!$D$14","v":"Segundo apellido deudor"},{"$f":"'800111A GeneraXBRL'!$C$14","v":"co-svsp-core:SegundoApellidoDeudorCxC"}]
["/*",null,{"$f":"'800111A GeneraXBRL'!$D$15","v":"Primer nombre deudor"},{"$f":"'800111A GeneraXBRL'!$C$15","v":"co-svsp-core:PrimerNombreDeudorCxC"}]
["/*",null,{"$f":"'800111A GeneraXBRL'!$D$16","v":"Otros nombres deudor"},{"$f":"'800111A GeneraXBRL'!$C$16","v":"co-svsp-core:OtrosNombresDeudorCxC"}]
["/*",null,{"$f":"'800111A GeneraXBRL'!$D$17","v":"Razón Social deudor"},{"$f":"'800111A GeneraXBRL'!$C$17","v":"co-svsp-core:RazonSocialDeudorCxC"}]
["/*",null,{"$f":"'800111A GeneraXBRL'!$D$18","v":"Dirección deudor"},{"$f":"'800111A GeneraXBRL'!$C$18","v":"co-svsp-core:DireccionDeudorCxC"}]
["/*",null,{"$f":"'800111A GeneraXBRL'!$D$19","v":"Departamento deudor"},{"$f":"'800111A GeneraXBRL'!$C$19","v":"co-svsp-core:DepartamentoDeudorCxC"}]
["/*",null,{"$f":"'800111A GeneraXBRL'!$D$20","v":"Municipio deudor"},{"$f":"'800111A GeneraXBRL'!$C$20","v":"co-svsp-core:MunicipioDeudorCxC"}]
["/*",null,{"$f":"'800111A GeneraXBRL'!$D$21","v":"País deudor"},{"$f":"'800111A GeneraXBRL'!$C$21","v":"co-svsp-core:PaisDeudorCxC"}]
["/*",null,{"$f":"'800111A GeneraXBRL'!$D$22","v":"Saldo cuentas por cobrar"},{"$f":"'800111A GeneraXBRL'!$C$22","v":"co-svsp-core:SaldoCuentasPorCobrarCxC"}]
["/*",null,"--148--"]
["/*",null,{"$f":"'800111A GeneraXBRL'!$D$11","v":"Tipo de documento del deudor"},{"$f":"'800111A GeneraXBRL'!$C$11","v":"co-svsp-core:TipoDeDocumentoDeudorCxC"}]
["/*",null,{"$f":"'800111A GeneraXBRL'!$D$12","v":"Número de identificación del deudor"},{"$f":"'800111A GeneraXBRL'!$C$12","v":"co-svsp-core:NumeroIdentificacionDeudorCxC"}]
["/*",null,{"$f":"'800111A GeneraXBRL'!$D$13","v":"Primer apellido deudor"},{"$f":"'800111A GeneraXBRL'!$C$13","v":"co-svsp-core:PrimerApellidoDeudorCxC"}]
["/*",null,{"$f":"'800111A GeneraXBRL'!$D$14","v":"Segundo apellido deudor"},{"$f":"'800111A GeneraXBRL'!$C$14","v":"co-svsp-core:SegundoApellidoDeudorCxC"}]
["/*",null,{"$f":"'800111A GeneraXBRL'!$D$15","v":"Primer nombre deudor"},{"$f":"'800111A GeneraXBRL'!$C$15","v":"co-svsp-core:PrimerNombreDeudorCxC"}]
["/*",null,{"$f":"'800111A GeneraXBRL'!$D$16","v":"Otros nombres deudor"},{"$f":"'800111A GeneraXBRL'!$C$16","v":"co-svsp-core:OtrosNombresDeudorCxC"}]
["/*",null,{"$f":"'800111A GeneraXBRL'!$D$17","v":"Razón Social deudor"},{"$f":"'800111A GeneraXBRL'!$C$17","v":"co-svsp-core:RazonSocialDeudorCxC"}]
["/*",null,{"$f":"'800111A GeneraXBRL'!$D$18","v":"Dirección deudor"},{"$f":"'800111A GeneraXBRL'!$C$18","v":"co-svsp-core:DireccionDeudorCxC"}]
["/*",null,{"$f":"'800111A GeneraXBRL'!$D$19","v":"Departamento deudor"},{"$f":"'800111A GeneraXBRL'!$C$19","v":"co-svsp-core:DepartamentoDeudorCxC"}]
["/*",null,{"$f":"'800111A GeneraXBRL'!$D$20","v":"Municipio deudor"},{"$f":"'800111A GeneraXBRL'!$C$20","v":"co-svsp-core:MunicipioDeudorCxC"}]
["/*",null,{"$f":"'800111A GeneraXBRL'!$D$21","v":"País deudor"},{"$f":"'800111A GeneraXBRL'!$C$21","v":"co-svsp-core:PaisDeudorCxC"}]
["/*",null,{"$f":"'800111A GeneraXBRL'!$D$22","v":"Saldo cuentas por cobrar"},{"$f":"'800111A GeneraXBRL'!$C$22","v":"co-svsp-core:SaldoCuentasPorCobrarCxC"}]
["/*",null,"--149--"]
["/*",null,{"$f":"'800111A GeneraXBRL'!$D$11","v":"Tipo de documento del deudor"},{"$f":"'800111A GeneraXBRL'!$C$11","v":"co-svsp-core:TipoDeDocumentoDeudorCxC"}]
["/*",null,{"$f":"'800111A GeneraXBRL'!$D$12","v":"Número de identificación del deudor"},{"$f":"'800111A GeneraXBRL'!$C$12","v":"co-svsp-core:NumeroIdentificacionDeudorCxC"}]
["/*",null,{"$f":"'800111A GeneraXBRL'!$D$13","v":"Primer apellido deudor"},{"$f":"'800111A GeneraXBRL'!$C$13","v":"co-svsp-core:PrimerApellidoDeudorCxC"}]
["/*",null,{"$f":"'800111A GeneraXBRL'!$D$14","v":"Segundo apellido deudor"},{"$f":"'800111A GeneraXBRL'!$C$14","v":"co-svsp-core:SegundoApellidoDeudorCxC"}]
["/*",null,{"$f":"'800111A GeneraXBRL'!$D$15","v":"Primer nombre deudor"},{"$f":"'800111A GeneraXBRL'!$C$15","v":"co-svsp-core:PrimerNombreDeudorCxC"}]
["/*",null,{"$f":"'800111A GeneraXBRL'!$D$16","v":"Otros nombres deudor"},{"$f":"'800111A GeneraXBRL'!$C$16","v":"co-svsp-core:OtrosNombresDeudorCxC"}]
["/*",null,{"$f":"'800111A GeneraXBRL'!$D$17","v":"Razón Social deudor"},{"$f":"'800111A GeneraXBRL'!$C$17","v":"co-svsp-core:RazonSocialDeudorCxC"}]
["/*",null,{"$f":"'800111A GeneraXBRL'!$D$18","v":"Dirección deudor"},{"$f":"'800111A GeneraXBRL'!$C$18","v":"co-svsp-core:DireccionDeudorCxC"}]
["/*",null,{"$f":"'800111A GeneraXBRL'!$D$19","v":"Departamento deudor"},{"$f":"'800111A GeneraXBRL'!$C$19","v":"co-svsp-core:DepartamentoDeudorCxC"}]
["/*",null,{"$f":"'800111A GeneraXBRL'!$D$20","v":"Municipio deudor"},{"$f":"'800111A GeneraXBRL'!$C$20","v":"co-svsp-core:MunicipioDeudorCxC"}]
["/*",null,{"$f":"'800111A GeneraXBRL'!$D$21","v":"País deudor"},{"$f":"'800111A GeneraXBRL'!$C$21","v":"co-svsp-core:PaisDeudorCxC"}]
["/*",null,{"$f":"'800111A GeneraXBRL'!$D$22","v":"Saldo cuentas por cobrar"},{"$f":"'800111A GeneraXBRL'!$C$22","v":"co-svsp-core:SaldoCuentasPorCobrarCxC"}]
["/*",null,"--150--"]
["/*",null,{"$f":"'800111A GeneraXBRL'!$D$11","v":"Tipo de documento del deudor"},{"$f":"'800111A GeneraXBRL'!$C$11","v":"co-svsp-core:TipoDeDocumentoDeudorCxC"}]
["/*",null,{"$f":"'800111A GeneraXBRL'!$D$12","v":"Número de identificación del deudor"},{"$f":"'800111A GeneraXBRL'!$C$12","v":"co-svsp-core:NumeroIdentificacionDeudorCxC"}]
["/*",null,{"$f":"'800111A GeneraXBRL'!$D$13","v":"Primer apellido deudor"},{"$f":"'800111A GeneraXBRL'!$C$13","v":"co-svsp-core:PrimerApellidoDeudorCxC"}]
["/*",null,{"$f":"'800111A GeneraXBRL'!$D$14","v":"Segundo apellido deudor"},{"$f":"'800111A GeneraXBRL'!$C$14","v":"co-svsp-core:SegundoApellidoDeudorCxC"}]
["/*",null,{"$f":"'800111A GeneraXBRL'!$D$15","v":"Primer nombre deudor"},{"$f":"'800111A GeneraXBRL'!$C$15","v":"co-svsp-core:PrimerNombreDeudorCxC"}]
["/*",null,{"$f":"'800111A GeneraXBRL'!$D$16","v":"Otros nombres deudor"},{"$f":"'800111A GeneraXBRL'!$C$16","v":"co-svsp-core:OtrosNombresDeudorCxC"}]
["/*",null,{"$f":"'800111A GeneraXBRL'!$D$17","v":"Razón Social deudor"},{"$f":"'800111A GeneraXBRL'!$C$17","v":"co-svsp-core:RazonSocialDeudorCxC"}]
["/*",null,{"$f":"'800111A GeneraXBRL'!$D$18","v":"Dirección deudor"},{"$f":"'800111A GeneraXBRL'!$C$18","v":"co-svsp-core:DireccionDeudorCxC"}]
["/*",null,{"$f":"'800111A GeneraXBRL'!$D$19","v":"Departamento deudor"},{"$f":"'800111A GeneraXBRL'!$C$19","v":"co-svsp-core:DepartamentoDeudorCxC"}]
["/*",null,{"$f":"'800111A GeneraXBRL'!$D$20","v":"Municipio deudor"},{"$f":"'800111A GeneraXBRL'!$C$20","v":"co-svsp-core:MunicipioDeudorCxC"}]
["/*",null,{"$f":"'800111A GeneraXBRL'!$D$21","v":"País deudor"},{"$f":"'800111A GeneraXBRL'!$C$21","v":"co-svsp-core:PaisDeudorCxC"}]
["/*",null,{"$f":"'800111A GeneraXBRL'!$D$22","v":"Saldo cuentas por cobrar"},{"$f":"'800111A GeneraXBRL'!$C$22","v":"co-svsp-core:SaldoCuentasPorCobrarCxC"}]
["/*",null,"--151--"]
["/*",null,{"$f":"'800111A GeneraXBRL'!$D$11","v":"Tipo de documento del deudor"},{"$f":"'800111A GeneraXBRL'!$C$11","v":"co-svsp-core:TipoDeDocumentoDeudorCxC"}]
["/*",null,{"$f":"'800111A GeneraXBRL'!$D$12","v":"Número de identificación del deudor"},{"$f":"'800111A GeneraXBRL'!$C$12","v":"co-svsp-core:NumeroIdentificacionDeudorCxC"}]
["/*",null,{"$f":"'800111A GeneraXBRL'!$D$13","v":"Primer apellido deudor"},{"$f":"'800111A GeneraXBRL'!$C$13","v":"co-svsp-core:PrimerApellidoDeudorCxC"}]
["/*",null,{"$f":"'800111A GeneraXBRL'!$D$14","v":"Segundo apellido deudor"},{"$f":"'800111A GeneraXBRL'!$C$14","v":"co-svsp-core:SegundoApellidoDeudorCxC"}]
["/*",null,{"$f":"'800111A GeneraXBRL'!$D$15","v":"Primer nombre deudor"},{"$f":"'800111A GeneraXBRL'!$C$15","v":"co-svsp-core:PrimerNombreDeudorCxC"}]
[{"$f":"IF(G2400=\"\",\"/*\",\"\")","v":"/*"},null,{"$f":"'800111A GeneraXBRL'!$D$16","v":"Otros nombres deudor"},{"$f":"'800111A GeneraXBRL'!$C$16","v":"co-svsp-core:OtrosNombresDeudorCxC"}]
["/*",null,{"$f":"'800111A GeneraXBRL'!$D$17","v":"Razón Social deudor"},{"$f":"'800111A GeneraXBRL'!$C$17","v":"co-svsp-core:RazonSocialDeudorCxC"}]
["/*",null,{"$f":"'800111A GeneraXBRL'!$D$18","v":"Dirección deudor"},{"$f":"'800111A GeneraXBRL'!$C$18","v":"co-svsp-core:DireccionDeudorCxC"}]
["/*",null,{"$f":"'800111A GeneraXBRL'!$D$19","v":"Departamento deudor"},{"$f":"'800111A GeneraXBRL'!$C$19","v":"co-svsp-core:DepartamentoDeudorCxC"}]
["/*",null,{"$f":"'800111A GeneraXBRL'!$D$20","v":"Municipio deudor"},{"$f":"'800111A GeneraXBRL'!$C$20","v":"co-svsp-core:MunicipioDeudorCxC"}]
["/*",null,{"$f":"'800111A GeneraXBRL'!$D$21","v":"País deudor"},{"$f":"'800111A GeneraXBRL'!$C$21","v":"co-svsp-core:PaisDeudorCxC"}]
["/*",null,{"$f":"'800111A GeneraXBRL'!$D$22","v":"Saldo cuentas por cobrar"},{"$f":"'800111A GeneraXBRL'!$C$22","v":"co-svsp-core:SaldoCuentasPorCobrarCxC"}]
["/*",null,"--152--"]
["/*",null,{"$f":"'800111A GeneraXBRL'!$D$11","v":"Tipo de documento del deudor"},{"$f":"'800111A GeneraXBRL'!$C$11","v":"co-svsp-core:TipoDeDocumentoDeudorCxC"}]
["/*",null,{"$f":"'800111A GeneraXBRL'!$D$12","v":"Número de identificación del deudor"},{"$f":"'800111A GeneraXBRL'!$C$12","v":"co-svsp-core:NumeroIdentificacionDeudorCxC"}]
["/*",null,{"$f":"'800111A GeneraXBRL'!$D$13","v":"Primer apellido deudor"},{"$f":"'800111A GeneraXBRL'!$C$13","v":"co-svsp-core:PrimerApellidoDeudorCxC"}]
["/*",null,{"$f":"'800111A GeneraXBRL'!$D$14","v":"Segundo apellido deudor"},{"$f":"'800111A GeneraXBRL'!$C$14","v":"co-svsp-core:SegundoApellidoDeudorCxC"}]
["/*",null,{"$f":"'800111A GeneraXBRL'!$D$15","v":"Primer nombre deudor"},{"$f":"'800111A GeneraXBRL'!$C$15","v":"co-svsp-core:PrimerNombreDeudorCxC"}]
["/*",null,{"$f":"'800111A GeneraXBRL'!$D$16","v":"Otros nombres deudor"},{"$f":"'800111A GeneraXBRL'!$C$16","v":"co-svsp-core:OtrosNombresDeudorCxC"}]
["/*",null,{"$f":"'800111A GeneraXBRL'!$D$17","v":"Razón Social deudor"},{"$f":"'800111A GeneraXBRL'!$C$17","v":"co-svsp-core:RazonSocialDeudorCxC"}]
["/*",null,{"$f":"'800111A GeneraXBRL'!$D$18","v":"Dirección deudor"},{"$f":"'800111A GeneraXBRL'!$C$18","v":"co-svsp-core:DireccionDeudorCxC"}]
["/*",null,{"$f":"'800111A GeneraXBRL'!$D$19","v":"Departamento deudor"},{"$f":"'800111A GeneraXBRL'!$C$19","v":"co-svsp-core:DepartamentoDeudorCxC"}]
["/*",null,{"$f":"'800111A GeneraXBRL'!$D$20","v":"Municipio deudor"},{"$f":"'800111A GeneraXBRL'!$C$20","v":"co-svsp-core:MunicipioDeudorCxC"}]
["/*",null,{"$f":"'800111A GeneraXBRL'!$D$21","v":"País deudor"},{"$f":"'800111A GeneraXBRL'!$C$21","v":"co-svsp-core:PaisDeudorCxC"}]
["/*",null,{"$f":"'800111A GeneraXBRL'!$D$22","v":"Saldo cuentas por cobrar"},{"$f":"'800111A GeneraXBRL'!$C$22","v":"co-svsp-core:SaldoCuentasPorCobrarCxC"}]
["/*",null,"--153--"]
["/*",null,{"$f":"'800111A GeneraXBRL'!$D$11","v":"Tipo de documento del deudor"},{"$f":"'800111A GeneraXBRL'!$C$11","v":"co-svsp-core:TipoDeDocumentoDeudorCxC"}]
["/*",null,{"$f":"'800111A GeneraXBRL'!$D$12","v":"Número de identificación del deudor"},{"$f":"'800111A GeneraXBRL'!$C$12","v":"co-svsp-core:NumeroIdentificacionDeudorCxC"}]
["/*",null,{"$f":"'800111A GeneraXBRL'!$D$13","v":"Primer apellido deudor"},{"$f":"'800111A GeneraXBRL'!$C$13","v":"co-svsp-core:PrimerApellidoDeudorCxC"}]
["/*",null,{"$f":"'800111A GeneraXBRL'!$D$14","v":"Segundo apellido deudor"},{"$f":"'800111A GeneraXBRL'!$C$14","v":"co-svsp-core:SegundoApellidoDeudorCxC"}]
["/*",null,{"$f":"'800111A GeneraXBRL'!$D$15","v":"Primer nombre deudor"},{"$f":"'800111A GeneraXBRL'!$C$15","v":"co-svsp-core:PrimerNombreDeudorCxC"}]
["/*",null,{"$f":"'800111A GeneraXBRL'!$D$16","v":"Otros nombres deudor"},{"$f":"'800111A GeneraXBRL'!$C$16","v":"co-svsp-core:OtrosNombresDeudorCxC"}]
["/*",null,{"$f":"'800111A GeneraXBRL'!$D$17","v":"Razón Social deudor"},{"$f":"'800111A GeneraXBRL'!$C$17","v":"co-svsp-core:RazonSocialDeudorCxC"}]
["/*",null,{"$f":"'800111A GeneraXBRL'!$D$18","v":"Dirección deudor"},{"$f":"'800111A GeneraXBRL'!$C$18","v":"co-svsp-core:DireccionDeudorCxC"}]
["/*",null,{"$f":"'800111A GeneraXBRL'!$D$19","v":"Departamento deudor"},{"$f":"'800111A GeneraXBRL'!$C$19","v":"co-svsp-core:DepartamentoDeudorCxC"}]
["/*",null,{"$f":"'800111A GeneraXBRL'!$D$20","v":"Municipio deudor"},{"$f":"'800111A GeneraXBRL'!$C$20","v":"co-svsp-core:MunicipioDeudorCxC"}]
["/*",null,{"$f":"'800111A GeneraXBRL'!$D$21","v":"País deudor"},{"$f":"'800111A GeneraXBRL'!$C$21","v":"co-svsp-core:PaisDeudorCxC"}]
["/*",null,{"$f":"'800111A GeneraXBRL'!$D$22","v":"Saldo cuentas por cobrar"},{"$f":"'800111A GeneraXBRL'!$C$22","v":"co-svsp-core:SaldoCuentasPorCobrarCxC"}]
["/*",null,"--154--"]
["/*",null,{"$f":"'800111A GeneraXBRL'!$D$11","v":"Tipo de documento del deudor"},{"$f":"'800111A GeneraXBRL'!$C$11","v":"co-svsp-core:TipoDeDocumentoDeudorCxC"}]
["/*",null,{"$f":"'800111A GeneraXBRL'!$D$12","v":"Número de identificación del deudor"},{"$f":"'800111A GeneraXBRL'!$C$12","v":"co-svsp-core:NumeroIdentificacionDeudorCxC"}]
["/*",null,{"$f":"'800111A GeneraXBRL'!$D$13","v":"Primer apellido deudor"},{"$f":"'800111A GeneraXBRL'!$C$13","v":"co-svsp-core:PrimerApellidoDeudorCxC"}]
["/*",null,{"$f":"'800111A GeneraXBRL'!$D$14","v":"Segundo apellido deudor"},{"$f":"'800111A GeneraXBRL'!$C$14","v":"co-svsp-core:SegundoApellidoDeudorCxC"}]
["/*",null,{"$f":"'800111A GeneraXBRL'!$D$15","v":"Primer nombre deudor"},{"$f":"'800111A GeneraXBRL'!$C$15","v":"co-svsp-core:PrimerNombreDeudorCxC"}]
["/*",null,{"$f":"'800111A GeneraXBRL'!$D$16","v":"Otros nombres deudor"},{"$f":"'800111A GeneraXBRL'!$C$16","v":"co-svsp-core:OtrosNombresDeudorCxC"}]
["/*",null,{"$f":"'800111A GeneraXBRL'!$D$17","v":"Razón Social deudor"},{"$f":"'800111A GeneraXBRL'!$C$17","v":"co-svsp-core:RazonSocialDeudorCxC"}]
["/*",null,{"$f":"'800111A GeneraXBRL'!$D$18","v":"Dirección deudor"},{"$f":"'800111A GeneraXBRL'!$C$18","v":"co-svsp-core:DireccionDeudorCxC"}]
["/*",null,{"$f":"'800111A GeneraXBRL'!$D$19","v":"Departamento deudor"},{"$f":"'800111A GeneraXBRL'!$C$19","v":"co-svsp-core:DepartamentoDeudorCxC"}]
["/*",null,{"$f":"'800111A GeneraXBRL'!$D$20","v":"Municipio deudor"},{"$f":"'800111A GeneraXBRL'!$C$20","v":"co-svsp-core:MunicipioDeudorCxC"}]
["/*",null,{"$f":"'800111A GeneraXBRL'!$D$21","v":"País deudor"},{"$f":"'800111A GeneraXBRL'!$C$21","v":"co-svsp-core:PaisDeudorCxC"}]
["/*",null,{"$f":"'800111A GeneraXBRL'!$D$22","v":"Saldo cuentas por cobrar"},{"$f":"'800111A GeneraXBRL'!$C$22","v":"co-svsp-core:SaldoCuentasPorCobrarCxC"}]
["/*",null,"--155--"]
["/*",null,{"$f":"'800111A GeneraXBRL'!$D$11","v":"Tipo de documento del deudor"},{"$f":"'800111A GeneraXBRL'!$C$11","v":"co-svsp-core:TipoDeDocumentoDeudorCxC"}]
["/*",null,{"$f":"'800111A GeneraXBRL'!$D$12","v":"Número de identificación del deudor"},{"$f":"'800111A GeneraXBRL'!$C$12","v":"co-svsp-core:NumeroIdentificacionDeudorCxC"}]
["/*",null,{"$f":"'800111A GeneraXBRL'!$D$13","v":"Primer apellido deudor"},{"$f":"'800111A GeneraXBRL'!$C$13","v":"co-svsp-core:PrimerApellidoDeudorCxC"}]
["/*",null,{"$f":"'800111A GeneraXBRL'!$D$14","v":"Segundo apellido deudor"},{"$f":"'800111A GeneraXBRL'!$C$14","v":"co-svsp-core:SegundoApellidoDeudorCxC"}]
["/*",null,{"$f":"'800111A GeneraXBRL'!$D$15","v":"Primer nombre deudor"},{"$f":"'800111A GeneraXBRL'!$C$15","v":"co-svsp-core:PrimerNombreDeudorCxC"}]
["/*",null,{"$f":"'800111A GeneraXBRL'!$D$16","v":"Otros nombres deudor"},{"$f":"'800111A GeneraXBRL'!$C$16","v":"co-svsp-core:OtrosNombresDeudorCxC"}]
["/*",null,{"$f":"'800111A GeneraXBRL'!$D$17","v":"Razón Social deudor"},{"$f":"'800111A GeneraXBRL'!$C$17","v":"co-svsp-core:RazonSocialDeudorCxC"}]
["/*",null,{"$f":"'800111A GeneraXBRL'!$D$18","v":"Dirección deudor"},{"$f":"'800111A GeneraXBRL'!$C$18","v":"co-svsp-core:DireccionDeudorCxC"}]
["/*",null,{"$f":"'800111A GeneraXBRL'!$D$19","v":"Departamento deudor"},{"$f":"'800111A GeneraXBRL'!$C$19","v":"co-svsp-core:DepartamentoDeudorCxC"}]
["/*",null,{"$f":"'800111A GeneraXBRL'!$D$20","v":"Municipio deudor"},{"$f":"'800111A GeneraXBRL'!$C$20","v":"co-svsp-core:MunicipioDeudorCxC"}]
["/*",null,{"$f":"'800111A GeneraXBRL'!$D$21","v":"País deudor"},{"$f":"'800111A GeneraXBRL'!$C$21","v":"co-svsp-core:PaisDeudorCxC"}]
["/*",null,{"$f":"'800111A GeneraXBRL'!$D$22","v":"Saldo cuentas por cobrar"},{"$f":"'800111A GeneraXBRL'!$C$22","v":"co-svsp-core:SaldoCuentasPorCobrarCxC"}]
["/*",null,"--156--"]
["/*",null,{"$f":"'800111A GeneraXBRL'!$D$11","v":"Tipo de documento del deudor"},{"$f":"'800111A GeneraXBRL'!$C$11","v":"co-svsp-core:TipoDeDocumentoDeudorCxC"}]
["/*",null,{"$f":"'800111A GeneraXBRL'!$D$12","v":"Número de identificación del deudor"},{"$f":"'800111A GeneraXBRL'!$C$12","v":"co-svsp-core:NumeroIdentificacionDeudorCxC"}]
["/*",null,{"$f":"'800111A GeneraXBRL'!$D$13","v":"Primer apellido deudor"},{"$f":"'800111A GeneraXBRL'!$C$13","v":"co-svsp-core:PrimerApellidoDeudorCxC"}]
["/*",null,{"$f":"'800111A GeneraXBRL'!$D$14","v":"Segundo apellido deudor"},{"$f":"'800111A GeneraXBRL'!$C$14","v":"co-svsp-core:SegundoApellidoDeudorCxC"}]
[{"$f":"IF(G2464=\"\",\"/*\",\"\")","v":"/*"},null,{"$f":"'800111A GeneraXBRL'!$D$15","v":"Primer nombre deudor"},{"$f":"'800111A GeneraXBRL'!$C$15","v":"co-svsp-core:PrimerNombreDeudorCxC"}]
["/*",null,{"$f":"'800111A GeneraXBRL'!$D$16","v":"Otros nombres deudor"},{"$f":"'800111A GeneraXBRL'!$C$16","v":"co-svsp-core:OtrosNombresDeudorCxC"}]
["/*",null,{"$f":"'800111A GeneraXBRL'!$D$17","v":"Razón Social deudor"},{"$f":"'800111A GeneraXBRL'!$C$17","v":"co-svsp-core:RazonSocialDeudorCxC"}]
["/*",null,{"$f":"'800111A GeneraXBRL'!$D$18","v":"Dirección deudor"},{"$f":"'800111A GeneraXBRL'!$C$18","v":"co-svsp-core:DireccionDeudorCxC"}]
["/*",null,{"$f":"'800111A GeneraXBRL'!$D$19","v":"Departamento deudor"},{"$f":"'800111A GeneraXBRL'!$C$19","v":"co-svsp-core:DepartamentoDeudorCxC"}]
["/*",null,{"$f":"'800111A GeneraXBRL'!$D$20","v":"Municipio deudor"},{"$f":"'800111A GeneraXBRL'!$C$20","v":"co-svsp-core:MunicipioDeudorCxC"}]
["/*",null,{"$f":"'800111A GeneraXBRL'!$D$21","v":"País deudor"},{"$f":"'800111A GeneraXBRL'!$C$21","v":"co-svsp-core:PaisDeudorCxC"}]
["/*",null,{"$f":"'800111A GeneraXBRL'!$D$22","v":"Saldo cuentas por cobrar"},{"$f":"'800111A GeneraXBRL'!$C$22","v":"co-svsp-core:SaldoCuentasPorCobrarCxC"}]
["/*",null,"--157--"]
["/*",null,{"$f":"'800111A GeneraXBRL'!$D$11","v":"Tipo de documento del deudor"},{"$f":"'800111A GeneraXBRL'!$C$11","v":"co-svsp-core:TipoDeDocumentoDeudorCxC"}]
["/*",null,{"$f":"'800111A GeneraXBRL'!$D$12","v":"Número de identificación del deudor"},{"$f":"'800111A GeneraXBRL'!$C$12","v":"co-svsp-core:NumeroIdentificacionDeudorCxC"}]
["/*",null,{"$f":"'800111A GeneraXBRL'!$D$13","v":"Primer apellido deudor"},{"$f":"'800111A GeneraXBRL'!$C$13","v":"co-svsp-core:PrimerApellidoDeudorCxC"}]
["/*",null,{"$f":"'800111A GeneraXBRL'!$D$14","v":"Segundo apellido deudor"},{"$f":"'800111A GeneraXBRL'!$C$14","v":"co-svsp-core:SegundoApellidoDeudorCxC"}]
["/*",null,{"$f":"'800111A GeneraXBRL'!$D$15","v":"Primer nombre deudor"},{"$f":"'800111A GeneraXBRL'!$C$15","v":"co-svsp-core:PrimerNombreDeudorCxC"}]
["/*",null,{"$f":"'800111A GeneraXBRL'!$D$16","v":"Otros nombres deudor"},{"$f":"'800111A GeneraXBRL'!$C$16","v":"co-svsp-core:OtrosNombresDeudorCxC"}]
["/*",null,{"$f":"'800111A GeneraXBRL'!$D$17","v":"Razón Social deudor"},{"$f":"'800111A GeneraXBRL'!$C$17","v":"co-svsp-core:RazonSocialDeudorCxC"}]
["/*",null,{"$f":"'800111A GeneraXBRL'!$D$18","v":"Dirección deudor"},{"$f":"'800111A GeneraXBRL'!$C$18","v":"co-svsp-core:DireccionDeudorCxC"}]
["/*",null,{"$f":"'800111A GeneraXBRL'!$D$19","v":"Departamento deudor"},{"$f":"'800111A GeneraXBRL'!$C$19","v":"co-svsp-core:DepartamentoDeudorCxC"}]
["/*",null,{"$f":"'800111A GeneraXBRL'!$D$20","v":"Municipio deudor"},{"$f":"'800111A GeneraXBRL'!$C$20","v":"co-svsp-core:MunicipioDeudorCxC"}]
["/*",null,{"$f":"'800111A GeneraXBRL'!$D$21","v":"País deudor"},{"$f":"'800111A GeneraXBRL'!$C$21","v":"co-svsp-core:PaisDeudorCxC"}]
["/*",null,{"$f":"'800111A GeneraXBRL'!$D$22","v":"Saldo cuentas por cobrar"},{"$f":"'800111A GeneraXBRL'!$C$22","v":"co-svsp-core:SaldoCuentasPorCobrarCxC"}]
["/*",null,"--158--"]
["/*",null,{"$f":"'800111A GeneraXBRL'!$D$11","v":"Tipo de documento del deudor"},{"$f":"'800111A GeneraXBRL'!$C$11","v":"co-svsp-core:TipoDeDocumentoDeudorCxC"}]
["/*",null,{"$f":"'800111A GeneraXBRL'!$D$12","v":"Número de identificación del deudor"},{"$f":"'800111A GeneraXBRL'!$C$12","v":"co-svsp-core:NumeroIdentificacionDeudorCxC"}]
["/*",null,{"$f":"'800111A GeneraXBRL'!$D$13","v":"Primer apellido deudor"},{"$f":"'800111A GeneraXBRL'!$C$13","v":"co-svsp-core:PrimerApellidoDeudorCxC"}]
["/*",null,{"$f":"'800111A GeneraXBRL'!$D$14","v":"Segundo apellido deudor"},{"$f":"'800111A GeneraXBRL'!$C$14","v":"co-svsp-core:SegundoApellidoDeudorCxC"}]
["/*",null,{"$f":"'800111A GeneraXBRL'!$D$15","v":"Primer nombre deudor"},{"$f":"'800111A GeneraXBRL'!$C$15","v":"co-svsp-core:PrimerNombreDeudorCxC"}]
["/*",null,{"$f":"'800111A GeneraXBRL'!$D$16","v":"Otros nombres deudor"},{"$f":"'800111A GeneraXBRL'!$C$16","v":"co-svsp-core:OtrosNombresDeudorCxC"}]
["/*",null,{"$f":"'800111A GeneraXBRL'!$D$17","v":"Razón Social deudor"},{"$f":"'800111A GeneraXBRL'!$C$17","v":"co-svsp-core:RazonSocialDeudorCxC"}]
["/*",null,{"$f":"'800111A GeneraXBRL'!$D$18","v":"Dirección deudor"},{"$f":"'800111A GeneraXBRL'!$C$18","v":"co-svsp-core:DireccionDeudorCxC"}]
["/*",null,{"$f":"'800111A GeneraXBRL'!$D$19","v":"Departamento deudor"},{"$f":"'800111A GeneraXBRL'!$C$19","v":"co-svsp-core:DepartamentoDeudorCxC"}]
["/*",null,{"$f":"'800111A GeneraXBRL'!$D$20","v":"Municipio deudor"},{"$f":"'800111A GeneraXBRL'!$C$20","v":"co-svsp-core:MunicipioDeudorCxC"}]
["/*",null,{"$f":"'800111A GeneraXBRL'!$D$21","v":"País deudor"},{"$f":"'800111A GeneraXBRL'!$C$21","v":"co-svsp-core:PaisDeudorCxC"}]
["/*",null,{"$f":"'800111A GeneraXBRL'!$D$22","v":"Saldo cuentas por cobrar"},{"$f":"'800111A GeneraXBRL'!$C$22","v":"co-svsp-core:SaldoCuentasPorCobrarCxC"}]
["/*",null,"--159--"]
["/*",null,{"$f":"'800111A GeneraXBRL'!$D$11","v":"Tipo de documento del deudor"},{"$f":"'800111A GeneraXBRL'!$C$11","v":"co-svsp-core:TipoDeDocumentoDeudorCxC"}]
["/*",null,{"$f":"'800111A GeneraXBRL'!$D$12","v":"Número de identificación del deudor"},{"$f":"'800111A GeneraXBRL'!$C$12","v":"co-svsp-core:NumeroIdentificacionDeudorCxC"}]
["/*",null,{"$f":"'800111A GeneraXBRL'!$D$13","v":"Primer apellido deudor"},{"$f":"'800111A GeneraXBRL'!$C$13","v":"co-svsp-core:PrimerApellidoDeudorCxC"}]
["/*",null,{"$f":"'800111A GeneraXBRL'!$D$14","v":"Segundo apellido deudor"},{"$f":"'800111A GeneraXBRL'!$C$14","v":"co-svsp-core:SegundoApellidoDeudorCxC"}]
["/*",null,{"$f":"'800111A GeneraXBRL'!$D$15","v":"Primer nombre deudor"},{"$f":"'800111A GeneraXBRL'!$C$15","v":"co-svsp-core:PrimerNombreDeudorCxC"}]
["/*",null,{"$f":"'800111A GeneraXBRL'!$D$16","v":"Otros nombres deudor"},{"$f":"'800111A GeneraXBRL'!$C$16","v":"co-svsp-core:OtrosNombresDeudorCxC"}]
["/*",null,{"$f":"'800111A GeneraXBRL'!$D$17","v":"Razón Social deudor"},{"$f":"'800111A GeneraXBRL'!$C$17","v":"co-svsp-core:RazonSocialDeudorCxC"}]
["/*",null,{"$f":"'800111A GeneraXBRL'!$D$18","v":"Dirección deudor"},{"$f":"'800111A GeneraXBRL'!$C$18","v":"co-svsp-core:DireccionDeudorCxC"}]
["/*",null,{"$f":"'800111A GeneraXBRL'!$D$19","v":"Departamento deudor"},{"$f":"'800111A GeneraXBRL'!$C$19","v":"co-svsp-core:DepartamentoDeudorCxC"}]
["/*",null,{"$f":"'800111A GeneraXBRL'!$D$20","v":"Municipio deudor"},{"$f":"'800111A GeneraXBRL'!$C$20","v":"co-svsp-core:MunicipioDeudorCxC"}]
["/*",null,{"$f":"'800111A GeneraXBRL'!$D$21","v":"País deudor"},{"$f":"'800111A GeneraXBRL'!$C$21","v":"co-svsp-core:PaisDeudorCxC"}]
["/*",null,{"$f":"'800111A GeneraXBRL'!$D$22","v":"Saldo cuentas por cobrar"},{"$f":"'800111A GeneraXBRL'!$C$22","v":"co-svsp-core:SaldoCuentasPorCobrarCxC"}]
["/*",null,"--160--"]
["/*",null,{"$f":"'800111A GeneraXBRL'!$D$11","v":"Tipo de documento del deudor"},{"$f":"'800111A GeneraXBRL'!$C$11","v":"co-svsp-core:TipoDeDocumentoDeudorCxC"}]
["/*",null,{"$f":"'800111A GeneraXBRL'!$D$12","v":"Número de identificación del deudor"},{"$f":"'800111A GeneraXBRL'!$C$12","v":"co-svsp-core:NumeroIdentificacionDeudorCxC"}]
["/*",null,{"$f":"'800111A GeneraXBRL'!$D$13","v":"Primer apellido deudor"},{"$f":"'800111A GeneraXBRL'!$C$13","v":"co-svsp-core:PrimerApellidoDeudorCxC"}]
["/*",null,{"$f":"'800111A GeneraXBRL'!$D$14","v":"Segundo apellido deudor"},{"$f":"'800111A GeneraXBRL'!$C$14","v":"co-svsp-core:SegundoApellidoDeudorCxC"}]
["/*",null,{"$f":"'800111A GeneraXBRL'!$D$15","v":"Primer nombre deudor"},{"$f":"'800111A GeneraXBRL'!$C$15","v":"co-svsp-core:PrimerNombreDeudorCxC"}]
["/*",null,{"$f":"'800111A GeneraXBRL'!$D$16","v":"Otros nombres deudor"},{"$f":"'800111A GeneraXBRL'!$C$16","v":"co-svsp-core:OtrosNombresDeudorCxC"}]
["/*",null,{"$f":"'800111A GeneraXBRL'!$D$17","v":"Razón Social deudor"},{"$f":"'800111A GeneraXBRL'!$C$17","v":"co-svsp-core:RazonSocialDeudorCxC"}]
["/*",null,{"$f":"'800111A GeneraXBRL'!$D$18","v":"Dirección deudor"},{"$f":"'800111A GeneraXBRL'!$C$18","v":"co-svsp-core:DireccionDeudorCxC"}]
["/*",null,{"$f":"'800111A GeneraXBRL'!$D$19","v":"Departamento deudor"},{"$f":"'800111A GeneraXBRL'!$C$19","v":"co-svsp-core:DepartamentoDeudorCxC"}]
["/*",null,{"$f":"'800111A GeneraXBRL'!$D$20","v":"Municipio deudor"},{"$f":"'800111A GeneraXBRL'!$C$20","v":"co-svsp-core:MunicipioDeudorCxC"}]
["/*",null,{"$f":"'800111A GeneraXBRL'!$D$21","v":"País deudor"},{"$f":"'800111A GeneraXBRL'!$C$21","v":"co-svsp-core:PaisDeudorCxC"}]
["",null,{"$f":"'800111A GeneraXBRL'!$D$22","v":"Saldo cuentas por cobrar"},{"$f":"'800111A GeneraXBRL'!$C$22","v":"co-svsp-core:SaldoCuentasPorCobrarCxC"},0,"peso",{"$f":"'800111A GeneraXBRL'!$FH$22","v":0},0,"http://www.xbrl.org/scheme/companyName",null,{"$f":"Periodos!$C$4","v":"2023-12-31"},{"$f":"'800111A GeneraXBRL'!$D$10","v":"co-svsp-core:DetalleCuentasXCobrar_Eje"},{"$f":"'800111A GeneraXBRL'!$FH$9","v":"co-svsp-core:TotalDetalleCuentasXCobrarOtrasCuentasXCobrarMiembro"}]
["/*",null,"--161--"]
["/*",null,{"$f":"'800111A GeneraXBRL'!$D$11","v":"Tipo de documento del deudor"},{"$f":"'800111A GeneraXBRL'!$C$11","v":"co-svsp-core:TipoDeDocumentoDeudorCxC"}]
["/*",null,{"$f":"'800111A GeneraXBRL'!$D$12","v":"Número de identificación del deudor"},{"$f":"'800111A GeneraXBRL'!$C$12","v":"co-svsp-core:NumeroIdentificacionDeudorCxC"}]
["/*",null,{"$f":"'800111A GeneraXBRL'!$D$13","v":"Primer apellido deudor"},{"$f":"'800111A GeneraXBRL'!$C$13","v":"co-svsp-core:PrimerApellidoDeudorCxC"}]
[{"$f":"IF(G2528=\"\",\"/*\",\"\")","v":"/*"},null,{"$f":"'800111A GeneraXBRL'!$D$14","v":"Segundo apellido deudor"},{"$f":"'800111A GeneraXBRL'!$C$14","v":"co-svsp-core:SegundoApellidoDeudorCxC"}]
["/*",null,{"$f":"'800111A GeneraXBRL'!$D$15","v":"Primer nombre deudor"},{"$f":"'800111A GeneraXBRL'!$C$15","v":"co-svsp-core:PrimerNombreDeudorCxC"}]
["/*",null,{"$f":"'800111A GeneraXBRL'!$D$16","v":"Otros nombres deudor"},{"$f":"'800111A GeneraXBRL'!$C$16","v":"co-svsp-core:OtrosNombresDeudorCxC"}]
["/*",null,{"$f":"'800111A GeneraXBRL'!$D$17","v":"Razón Social deudor"},{"$f":"'800111A GeneraXBRL'!$C$17","v":"co-svsp-core:RazonSocialDeudorCxC"}]
["/*",null,{"$f":"'800111A GeneraXBRL'!$D$18","v":"Dirección deudor"},{"$f":"'800111A GeneraXBRL'!$C$18","v":"co-svsp-core:DireccionDeudorCxC"}]
["/*",null,{"$f":"'800111A GeneraXBRL'!$D$19","v":"Departamento deudor"},{"$f":"'800111A GeneraXBRL'!$C$19","v":"co-svsp-core:DepartamentoDeudorCxC"}]
["/*",null,{"$f":"'800111A GeneraXBRL'!$D$20","v":"Municipio deudor"},{"$f":"'800111A GeneraXBRL'!$C$20","v":"co-svsp-core:MunicipioDeudorCxC"}]
["/*",null,{"$f":"'800111A GeneraXBRL'!$D$21","v":"País deudor"},{"$f":"'800111A GeneraXBRL'!$C$21","v":"co-svsp-core:PaisDeudorCxC"}]
["",null,{"$f":"'800111A GeneraXBRL'!$D$22","v":"Saldo cuentas por cobrar"},{"$f":"'800111A GeneraXBRL'!$C$22","v":"co-svsp-core:SaldoCuentasPorCobrarCxC"},0,"peso",{"$f":"'800111A GeneraXBRL'!$FI$22","v":0},0,"http://www.xbrl.org/scheme/companyName",null,{"$f":"Periodos!$C$4","v":"2023-12-31"},{"$f":"'800111A GeneraXBRL'!$D$10","v":"co-svsp-core:DetalleCuentasXCobrar_Eje"},{"$f":"'800111A GeneraXBRL'!$FI$9","v":"co-svsp-core:TotalDetalleCuentasXCobrarMiembro"}]
["/*"]
["/*",null,"800111A GeneraXBRL"]
["/*",null,"--01--"]
["/*",null,{"$f":"'800111A GeneraXBRL'!$D$182","v":"Tipo de documento del deudor"},{"$f":"'800111A GeneraXBRL'!$C$182","v":"co-svsp-core:TipoDeDocumentoDeudorCxC"}]
["/*",null,{"$f":"'800111A GeneraXBRL'!$D$183","v":"Número de identificación del deudor"},{"$f":"'800111A GeneraXBRL'!$C$183","v":"co-svsp-core:NumeroIdentificacionDeudorCxC"}]
["/*",null,{"$f":"'800111A GeneraXBRL'!$D$184","v":"Primer apellido deudor"},{"$f":"'800111A GeneraXBRL'!$C$184","v":"co-svsp-core:PrimerApellidoDeudorCxC"}]
["/*",null,{"$f":"'800111A GeneraXBRL'!$D$185","v":"Segundo apellido deudor"},{"$f":"'800111A GeneraXBRL'!$C$185","v":"co-svsp-core:SegundoApellidoDeudorCxC"}]
["/*",null,{"$f":"'800111A GeneraXBRL'!$D$186","v":"Primer nombre deudor"},{"$f":"'800111A GeneraXBRL'!$C$186","v":"co-svsp-core:PrimerNombreDeudorCxC"}]
["/*",null,{"$f":"'800111A GeneraXBRL'!$D$187","v":"Otros nombres deudor"},{"$f":"'800111A GeneraXBRL'!$C$187","v":"co-svsp-core:OtrosNombresDeudorCxC"}]
["/*",null,{"$f":"'800111A GeneraXBRL'!$D$188","v":"Razón Social deudor"},{"$f":"'800111A GeneraXBRL'!$C$188","v":"co-svsp-core:RazonSocialDeudorCxC"}]
["/*",null,{"$f":"'800111A GeneraXBRL'!$D$189","v":"Dirección deudor"},{"$f":"'800111A GeneraXBRL'!$C$189","v":"co-svsp-core:DireccionDeudorCxC"}]
["/*",null,{"$f":"'800111A GeneraXBRL'!$D$190","v":"Departamento deudor"},{"$f":"'800111A GeneraXBRL'!$C$190","v":"co-svsp-core:DepartamentoDeudorCxC"}]
["/*",null,{"$f":"'800111A GeneraXBRL'!$D$191","v":"Municipio deudor"},{"$f":"'800111A GeneraXBRL'!$C$191","v":"co-svsp-core:MunicipioDeudorCxC"}]
["/*",null,{"$f":"'800111A GeneraXBRL'!$D$192","v":"País deudor"},{"$f":"'800111A GeneraXBRL'!$C$192","v":"co-svsp-core:PaisDeudorCxC"}]
["/*",null,{"$f":"'800111A GeneraXBRL'!$D$193","v":"Saldo cuentas por cobrar"},{"$f":"'800111A GeneraXBRL'!$C$193","v":"co-svsp-core:SaldoCuentasPorCobrarCxC"}]
["/*",null,"--02--"]
["/*",null,{"$f":"'800111A GeneraXBRL'!$D$182","v":"Tipo de documento del deudor"},{"$f":"'800111A GeneraXBRL'!$C$182","v":"co-svsp-core:TipoDeDocumentoDeudorCxC"}]
["/*",null,{"$f":"'800111A GeneraXBRL'!$D$183","v":"Número de identificación del deudor"},{"$f":"'800111A GeneraXBRL'!$C$183","v":"co-svsp-core:NumeroIdentificacionDeudorCxC"}]
["/*",null,{"$f":"'800111A GeneraXBRL'!$D$184","v":"Primer apellido deudor"},{"$f":"'800111A GeneraXBRL'!$C$184","v":"co-svsp-core:PrimerApellidoDeudorCxC"}]
["/*",null,{"$f":"'800111A GeneraXBRL'!$D$185","v":"Segundo apellido deudor"},{"$f":"'800111A GeneraXBRL'!$C$185","v":"co-svsp-core:SegundoApellidoDeudorCxC"}]
["/*",null,{"$f":"'800111A GeneraXBRL'!$D$186","v":"Primer nombre deudor"},{"$f":"'800111A GeneraXBRL'!$C$186","v":"co-svsp-core:PrimerNombreDeudorCxC"}]
["/*",null,{"$f":"'800111A GeneraXBRL'!$D$187","v":"Otros nombres deudor"},{"$f":"'800111A GeneraXBRL'!$C$187","v":"co-svsp-core:OtrosNombresDeudorCxC"}]
["/*",null,{"$f":"'800111A GeneraXBRL'!$D$188","v":"Razón Social deudor"},{"$f":"'800111A GeneraXBRL'!$C$188","v":"co-svsp-core:RazonSocialDeudorCxC"}]
["/*",null,{"$f":"'800111A GeneraXBRL'!$D$189","v":"Dirección deudor"},{"$f":"'800111A GeneraXBRL'!$C$189","v":"co-svsp-core:DireccionDeudorCxC"}]
["/*",null,{"$f":"'800111A GeneraXBRL'!$D$190","v":"Departamento deudor"},{"$f":"'800111A GeneraXBRL'!$C$190","v":"co-svsp-core:DepartamentoDeudorCxC"}]
["/*",null,{"$f":"'800111A GeneraXBRL'!$D$191","v":"Municipio deudor"},{"$f":"'800111A GeneraXBRL'!$C$191","v":"co-svsp-core:MunicipioDeudorCxC"}]
["/*",null,{"$f":"'800111A GeneraXBRL'!$D$192","v":"País deudor"},{"$f":"'800111A GeneraXBRL'!$C$192","v":"co-svsp-core:PaisDeudorCxC"}]
["/*",null,{"$f":"'800111A GeneraXBRL'!$D$193","v":"Saldo cuentas por cobrar"},{"$f":"'800111A GeneraXBRL'!$C$193","v":"co-svsp-core:SaldoCuentasPorCobrarCxC"}]
["/*",null,"--03--"]
["/*",null,{"$f":"'800111A GeneraXBRL'!$D$182","v":"Tipo de documento del deudor"},{"$f":"'800111A GeneraXBRL'!$C$182","v":"co-svsp-core:TipoDeDocumentoDeudorCxC"}]
["/*",null,{"$f":"'800111A GeneraXBRL'!$D$183","v":"Número de identificación del deudor"},{"$f":"'800111A GeneraXBRL'!$C$183","v":"co-svsp-core:NumeroIdentificacionDeudorCxC"}]
["/*",null,{"$f":"'800111A GeneraXBRL'!$D$184","v":"Primer apellido deudor"},{"$f":"'800111A GeneraXBRL'!$C$184","v":"co-svsp-core:PrimerApellidoDeudorCxC"}]
["/*",null,{"$f":"'800111A GeneraXBRL'!$D$185","v":"Segundo apellido deudor"},{"$f":"'800111A GeneraXBRL'!$C$185","v":"co-svsp-core:SegundoApellidoDeudorCxC"}]
["/*",null,{"$f":"'800111A GeneraXBRL'!$D$186","v":"Primer nombre deudor"},{"$f":"'800111A GeneraXBRL'!$C$186","v":"co-svsp-core:PrimerNombreDeudorCxC"}]
["/*",null,{"$f":"'800111A GeneraXBRL'!$D$187","v":"Otros nombres deudor"},{"$f":"'800111A GeneraXBRL'!$C$187","v":"co-svsp-core:OtrosNombresDeudorCxC"}]
["/*",null,{"$f":"'800111A GeneraXBRL'!$D$188","v":"Razón Social deudor"},{"$f":"'800111A GeneraXBRL'!$C$188","v":"co-svsp-core:RazonSocialDeudorCxC"}]
["/*",null,{"$f":"'800111A GeneraXBRL'!$D$189","v":"Dirección deudor"},{"$f":"'800111A GeneraXBRL'!$C$189","v":"co-svsp-core:DireccionDeudorCxC"}]
["/*",null,{"$f":"'800111A GeneraXBRL'!$D$190","v":"Departamento deudor"},{"$f":"'800111A GeneraXBRL'!$C$190","v":"co-svsp-core:DepartamentoDeudorCxC"}]
["/*",null,{"$f":"'800111A GeneraXBRL'!$D$191","v":"Municipio deudor"},{"$f":"'800111A GeneraXBRL'!$C$191","v":"co-svsp-core:MunicipioDeudorCxC"}]
["/*",null,{"$f":"'800111A GeneraXBRL'!$D$192","v":"País deudor"},{"$f":"'800111A GeneraXBRL'!$C$192","v":"co-svsp-core:PaisDeudorCxC"}]
["/*",null,{"$f":"'800111A GeneraXBRL'!$D$193","v":"Saldo cuentas por cobrar"},{"$f":"'800111A GeneraXBRL'!$C$193","v":"co-svsp-core:SaldoCuentasPorCobrarCxC"}]
["/*",null,"--04--"]
["/*",null,{"$f":"'800111A GeneraXBRL'!$D$182","v":"Tipo de documento del deudor"},{"$f":"'800111A GeneraXBRL'!$C$182","v":"co-svsp-core:TipoDeDocumentoDeudorCxC"}]
["/*",null,{"$f":"'800111A GeneraXBRL'!$D$183","v":"Número de identificación del deudor"},{"$f":"'800111A GeneraXBRL'!$C$183","v":"co-svsp-core:NumeroIdentificacionDeudorCxC"}]
["/*",null,{"$f":"'800111A GeneraXBRL'!$D$184","v":"Primer apellido deudor"},{"$f":"'800111A GeneraXBRL'!$C$184","v":"co-svsp-core:PrimerApellidoDeudorCxC"}]
["/*",null,{"$f":"'800111A GeneraXBRL'!$D$185","v":"Segundo apellido deudor"},{"$f":"'800111A GeneraXBRL'!$C$185","v":"co-svsp-core:SegundoApellidoDeudorCxC"}]
["/*",null,{"$f":"'800111A GeneraXBRL'!$D$186","v":"Primer nombre deudor"},{"$f":"'800111A GeneraXBRL'!$C$186","v":"co-svsp-core:PrimerNombreDeudorCxC"}]
["/*",null,{"$f":"'800111A GeneraXBRL'!$D$187","v":"Otros nombres deudor"},{"$f":"'800111A GeneraXBRL'!$C$187","v":"co-svsp-core:OtrosNombresDeudorCxC"}]
["/*",null,{"$f":"'800111A GeneraXBRL'!$D$188","v":"Razón Social deudor"},{"$f":"'800111A GeneraXBRL'!$C$188","v":"co-svsp-core:RazonSocialDeudorCxC"}]
["/*",null,{"$f":"'800111A GeneraXBRL'!$D$189","v":"Dirección deudor"},{"$f":"'800111A GeneraXBRL'!$C$189","v":"co-svsp-core:DireccionDeudorCxC"}]
["/*",null,{"$f":"'800111A GeneraXBRL'!$D$190","v":"Departamento deudor"},{"$f":"'800111A GeneraXBRL'!$C$190","v":"co-svsp-core:DepartamentoDeudorCxC"}]
["/*",null,{"$f":"'800111A GeneraXBRL'!$D$191","v":"Municipio deudor"},{"$f":"'800111A GeneraXBRL'!$C$191","v":"co-svsp-core:MunicipioDeudorCxC"}]
["/*",null,{"$f":"'800111A GeneraXBRL'!$D$192","v":"País deudor"},{"$f":"'800111A GeneraXBRL'!$C$192","v":"co-svsp-core:PaisDeudorCxC"}]
["/*",null,{"$f":"'800111A GeneraXBRL'!$D$193","v":"Saldo cuentas por cobrar"},{"$f":"'800111A GeneraXBRL'!$C$193","v":"co-svsp-core:SaldoCuentasPorCobrarCxC"}]
["/*",null,"--05--"]
[{"$f":"IF(G2592=\"\",\"/*\",\"\")","v":"/*"},null,{"$f":"'800111A GeneraXBRL'!$D$182","v":"Tipo de documento del deudor"},{"$f":"'800111A GeneraXBRL'!$C$182","v":"co-svsp-core:TipoDeDocumentoDeudorCxC"}]
["/*",null,{"$f":"'800111A GeneraXBRL'!$D$183","v":"Número de identificación del deudor"},{"$f":"'800111A GeneraXBRL'!$C$183","v":"co-svsp-core:NumeroIdentificacionDeudorCxC"}]
["/*",null,{"$f":"'800111A GeneraXBRL'!$D$184","v":"Primer apellido deudor"},{"$f":"'800111A GeneraXBRL'!$C$184","v":"co-svsp-core:PrimerApellidoDeudorCxC"}]
["/*",null,{"$f":"'800111A GeneraXBRL'!$D$185","v":"Segundo apellido deudor"},{"$f":"'800111A GeneraXBRL'!$C$185","v":"co-svsp-core:SegundoApellidoDeudorCxC"}]
["/*",null,{"$f":"'800111A GeneraXBRL'!$D$186","v":"Primer nombre deudor"},{"$f":"'800111A GeneraXBRL'!$C$186","v":"co-svsp-core:PrimerNombreDeudorCxC"}]
["/*",null,{"$f":"'800111A GeneraXBRL'!$D$187","v":"Otros nombres deudor"},{"$f":"'800111A GeneraXBRL'!$C$187","v":"co-svsp-core:OtrosNombresDeudorCxC"}]
["/*",null,{"$f":"'800111A GeneraXBRL'!$D$188","v":"Razón Social deudor"},{"$f":"'800111A GeneraXBRL'!$C$188","v":"co-svsp-core:RazonSocialDeudorCxC"}]
["/*",null,{"$f":"'800111A GeneraXBRL'!$D$189","v":"Dirección deudor"},{"$f":"'800111A GeneraXBRL'!$C$189","v":"co-svsp-core:DireccionDeudorCxC"}]
["/*",null,{"$f":"'800111A GeneraXBRL'!$D$190","v":"Departamento deudor"},{"$f":"'800111A GeneraXBRL'!$C$190","v":"co-svsp-core:DepartamentoDeudorCxC"}]
["/*",null,{"$f":"'800111A GeneraXBRL'!$D$191","v":"Municipio deudor"},{"$f":"'800111A GeneraXBRL'!$C$191","v":"co-svsp-core:MunicipioDeudorCxC"}]
["/*",null,{"$f":"'800111A GeneraXBRL'!$D$192","v":"País deudor"},{"$f":"'800111A GeneraXBRL'!$C$192","v":"co-svsp-core:PaisDeudorCxC"}]
["/*",null,{"$f":"'800111A GeneraXBRL'!$D$193","v":"Saldo cuentas por cobrar"},{"$f":"'800111A GeneraXBRL'!$C$193","v":"co-svsp-core:SaldoCuentasPorCobrarCxC"}]
["/*",null,"--06--"]
["/*",null,{"$f":"'800111A GeneraXBRL'!$D$182","v":"Tipo de documento del deudor"},{"$f":"'800111A GeneraXBRL'!$C$182","v":"co-svsp-core:TipoDeDocumentoDeudorCxC"}]
["/*",null,{"$f":"'800111A GeneraXBRL'!$D$183","v":"Número de identificación del deudor"},{"$f":"'800111A GeneraXBRL'!$C$183","v":"co-svsp-core:NumeroIdentificacionDeudorCxC"}]
["/*",null,{"$f":"'800111A GeneraXBRL'!$D$184","v":"Primer apellido deudor"},{"$f":"'800111A GeneraXBRL'!$C$184","v":"co-svsp-core:PrimerApellidoDeudorCxC"}]
["/*",null,{"$f":"'800111A GeneraXBRL'!$D$185","v":"Segundo apellido deudor"},{"$f":"'800111A GeneraXBRL'!$C$185","v":"co-svsp-core:SegundoApellidoDeudorCxC"}]
["/*",null,{"$f":"'800111A GeneraXBRL'!$D$186","v":"Primer nombre deudor"},{"$f":"'800111A GeneraXBRL'!$C$186","v":"co-svsp-core:PrimerNombreDeudorCxC"}]
["/*",null,{"$f":"'800111A GeneraXBRL'!$D$187","v":"Otros nombres deudor"},{"$f":"'800111A GeneraXBRL'!$C$187","v":"co-svsp-core:OtrosNombresDeudorCxC"}]
["/*",null,{"$f":"'800111A GeneraXBRL'!$D$188","v":"Razón Social deudor"},{"$f":"'800111A GeneraXBRL'!$C$188","v":"co-svsp-core:RazonSocialDeudorCxC"}]
["/*",null,{"$f":"'800111A GeneraXBRL'!$D$189","v":"Dirección deudor"},{"$f":"'800111A GeneraXBRL'!$C$189","v":"co-svsp-core:DireccionDeudorCxC"}]
["/*",null,{"$f":"'800111A GeneraXBRL'!$D$190","v":"Departamento deudor"},{"$f":"'800111A GeneraXBRL'!$C$190","v":"co-svsp-core:DepartamentoDeudorCxC"}]
["/*",null,{"$f":"'800111A GeneraXBRL'!$D$191","v":"Municipio deudor"},{"$f":"'800111A GeneraXBRL'!$C$191","v":"co-svsp-core:MunicipioDeudorCxC"}]
["/*",null,{"$f":"'800111A GeneraXBRL'!$D$192","v":"País deudor"},{"$f":"'800111A GeneraXBRL'!$C$192","v":"co-svsp-core:PaisDeudorCxC"}]
["/*",null,{"$f":"'800111A GeneraXBRL'!$D$193","v":"Saldo cuentas por cobrar"},{"$f":"'800111A GeneraXBRL'!$C$193","v":"co-svsp-core:SaldoCuentasPorCobrarCxC"}]
["/*",null,"--07--"]
["/*",null,{"$f":"'800111A GeneraXBRL'!$D$182","v":"Tipo de documento del deudor"},{"$f":"'800111A GeneraXBRL'!$C$182","v":"co-svsp-core:TipoDeDocumentoDeudorCxC"}]
["/*",null,{"$f":"'800111A GeneraXBRL'!$D$183","v":"Número de identificación del deudor"},{"$f":"'800111A GeneraXBRL'!$C$183","v":"co-svsp-core:NumeroIdentificacionDeudorCxC"}]
["/*",null,{"$f":"'800111A GeneraXBRL'!$D$184","v":"Primer apellido deudor"},{"$f":"'800111A GeneraXBRL'!$C$184","v":"co-svsp-core:PrimerApellidoDeudorCxC"}]
["/*",null,{"$f":"'800111A GeneraXBRL'!$D$185","v":"Segundo apellido deudor"},{"$f":"'800111A GeneraXBRL'!$C$185","v":"co-svsp-core:SegundoApellidoDeudorCxC"}]
["/*",null,{"$f":"'800111A GeneraXBRL'!$D$186","v":"Primer nombre deudor"},{"$f":"'800111A GeneraXBRL'!$C$186","v":"co-svsp-core:PrimerNombreDeudorCxC"}]
["/*",null,{"$f":"'800111A GeneraXBRL'!$D$187","v":"Otros nombres deudor"},{"$f":"'800111A GeneraXBRL'!$C$187","v":"co-svsp-core:OtrosNombresDeudorCxC"}]
["/*",null,{"$f":"'800111A GeneraXBRL'!$D$188","v":"Razón Social deudor"},{"$f":"'800111A GeneraXBRL'!$C$188","v":"co-svsp-core:RazonSocialDeudorCxC"}]
["/*",null,{"$f":"'800111A GeneraXBRL'!$D$189","v":"Dirección deudor"},{"$f":"'800111A GeneraXBRL'!$C$189","v":"co-svsp-core:DireccionDeudorCxC"}]
["/*",null,{"$f":"'800111A GeneraXBRL'!$D$190","v":"Departamento deudor"},{"$f":"'800111A GeneraXBRL'!$C$190","v":"co-svsp-core:DepartamentoDeudorCxC"}]
["/*",null,{"$f":"'800111A GeneraXBRL'!$D$191","v":"Municipio deudor"},{"$f":"'800111A GeneraXBRL'!$C$191","v":"co-svsp-core:MunicipioDeudorCxC"}]
["/*",null,{"$f":"'800111A GeneraXBRL'!$D$192","v":"País deudor"},{"$f":"'800111A GeneraXBRL'!$C$192","v":"co-svsp-core:PaisDeudorCxC"}]
["/*",null,{"$f":"'800111A GeneraXBRL'!$D$193","v":"Saldo cuentas por cobrar"},{"$f":"'800111A GeneraXBRL'!$C$193","v":"co-svsp-core:SaldoCuentasPorCobrarCxC"}]
["/*",null,"--08--"]
["/*",null,{"$f":"'800111A GeneraXBRL'!$D$182","v":"Tipo de documento del deudor"},{"$f":"'800111A GeneraXBRL'!$C$182","v":"co-svsp-core:TipoDeDocumentoDeudorCxC"}]
["/*",null,{"$f":"'800111A GeneraXBRL'!$D$183","v":"Número de identificación del deudor"},{"$f":"'800111A GeneraXBRL'!$C$183","v":"co-svsp-core:NumeroIdentificacionDeudorCxC"}]
["/*",null,{"$f":"'800111A GeneraXBRL'!$D$184","v":"Primer apellido deudor"},{"$f":"'800111A GeneraXBRL'!$C$184","v":"co-svsp-core:PrimerApellidoDeudorCxC"}]
["/*",null,{"$f":"'800111A GeneraXBRL'!$D$185","v":"Segundo apellido deudor"},{"$f":"'800111A GeneraXBRL'!$C$185","v":"co-svsp-core:SegundoApellidoDeudorCxC"}]
["/*",null,{"$f":"'800111A GeneraXBRL'!$D$186","v":"Primer nombre deudor"},{"$f":"'800111A GeneraXBRL'!$C$186","v":"co-svsp-core:PrimerNombreDeudorCxC"}]
["/*",null,{"$f":"'800111A GeneraXBRL'!$D$187","v":"Otros nombres deudor"},{"$f":"'800111A GeneraXBRL'!$C$187","v":"co-svsp-core:OtrosNombresDeudorCxC"}]
["/*",null,{"$f":"'800111A GeneraXBRL'!$D$188","v":"Razón Social deudor"},{"$f":"'800111A GeneraXBRL'!$C$188","v":"co-svsp-core:RazonSocialDeudorCxC"}]
["/*",null,{"$f":"'800111A GeneraXBRL'!$D$189","v":"Dirección deudor"},{"$f":"'800111A GeneraXBRL'!$C$189","v":"co-svsp-core:DireccionDeudorCxC"}]
["/*",null,{"$f":"'800111A GeneraXBRL'!$D$190","v":"Departamento deudor"},{"$f":"'800111A GeneraXBRL'!$C$190","v":"co-svsp-core:DepartamentoDeudorCxC"}]
["/*",null,{"$f":"'800111A GeneraXBRL'!$D$191","v":"Municipio deudor"},{"$f":"'800111A GeneraXBRL'!$C$191","v":"co-svsp-core:MunicipioDeudorCxC"}]
["/*",null,{"$f":"'800111A GeneraXBRL'!$D$192","v":"País deudor"},{"$f":"'800111A GeneraXBRL'!$C$192","v":"co-svsp-core:PaisDeudorCxC"}]
["/*",null,{"$f":"'800111A GeneraXBRL'!$D$193","v":"Saldo cuentas por cobrar"},{"$f":"'800111A GeneraXBRL'!$C$193","v":"co-svsp-core:SaldoCuentasPorCobrarCxC"}]
["/*",null,"--09--"]
["/*",null,{"$f":"'800111A GeneraXBRL'!$D$182","v":"Tipo de documento del deudor"},{"$f":"'800111A GeneraXBRL'!$C$182","v":"co-svsp-core:TipoDeDocumentoDeudorCxC"}]
["/*",null,{"$f":"'800111A GeneraXBRL'!$D$183","v":"Número de identificación del deudor"},{"$f":"'800111A GeneraXBRL'!$C$183","v":"co-svsp-core:NumeroIdentificacionDeudorCxC"}]
["/*",null,{"$f":"'800111A GeneraXBRL'!$D$184","v":"Primer apellido deudor"},{"$f":"'800111A GeneraXBRL'!$C$184","v":"co-svsp-core:PrimerApellidoDeudorCxC"}]
["/*",null,{"$f":"'800111A GeneraXBRL'!$D$185","v":"Segundo apellido deudor"},{"$f":"'800111A GeneraXBRL'!$C$185","v":"co-svsp-core:SegundoApellidoDeudorCxC"}]
["/*",null,{"$f":"'800111A GeneraXBRL'!$D$186","v":"Primer nombre deudor"},{"$f":"'800111A GeneraXBRL'!$C$186","v":"co-svsp-core:PrimerNombreDeudorCxC"}]
["/*",null,{"$f":"'800111A GeneraXBRL'!$D$187","v":"Otros nombres deudor"},{"$f":"'800111A GeneraXBRL'!$C$187","v":"co-svsp-core:OtrosNombresDeudorCxC"}]
["/*",null,{"$f":"'800111A GeneraXBRL'!$D$188","v":"Razón Social deudor"},{"$f":"'800111A GeneraXBRL'!$C$188","v":"co-svsp-core:RazonSocialDeudorCxC"}]
["/*",null,{"$f":"'800111A GeneraXBRL'!$D$189","v":"Dirección deudor"},{"$f":"'800111A GeneraXBRL'!$C$189","v":"co-svsp-core:DireccionDeudorCxC"}]
["/*",null,{"$f":"'800111A GeneraXBRL'!$D$190","v":"Departamento deudor"},{"$f":"'800111A GeneraXBRL'!$C$190","v":"co-svsp-core:DepartamentoDeudorCxC"}]
["/*",null,{"$f":"'800111A GeneraXBRL'!$D$191","v":"Municipio deudor"},{"$f":"'800111A GeneraXBRL'!$C$191","v":"co-svsp-core:MunicipioDeudorCxC"}]
["/*",null,{"$f":"'800111A GeneraXBRL'!$D$192","v":"País deudor"},{"$f":"'800111A GeneraXBRL'!$C$192","v":"co-svsp-core:PaisDeudorCxC"}]
["/*",null,{"$f":"'800111A GeneraXBRL'!$D$193","v":"Saldo cuentas por cobrar"},{"$f":"'800111A GeneraXBRL'!$C$193","v":"co-svsp-core:SaldoCuentasPorCobrarCxC"}]
[{"$f":"IF(G2656=\"\",\"/*\",\"\")","v":"/*"},null,"--10--"]
["/*",null,{"$f":"'800111A GeneraXBRL'!$D$182","v":"Tipo de documento del deudor"},{"$f":"'800111A GeneraXBRL'!$C$182","v":"co-svsp-core:TipoDeDocumentoDeudorCxC"}]
["/*",null,{"$f":"'800111A GeneraXBRL'!$D$183","v":"Número de identificación del deudor"},{"$f":"'800111A GeneraXBRL'!$C$183","v":"co-svsp-core:NumeroIdentificacionDeudorCxC"}]
["/*",null,{"$f":"'800111A GeneraXBRL'!$D$184","v":"Primer apellido deudor"},{"$f":"'800111A GeneraXBRL'!$C$184","v":"co-svsp-core:PrimerApellidoDeudorCxC"}]
["/*",null,{"$f":"'800111A GeneraXBRL'!$D$185","v":"Segundo apellido deudor"},{"$f":"'800111A GeneraXBRL'!$C$185","v":"co-svsp-core:SegundoApellidoDeudorCxC"}]
["/*",null,{"$f":"'800111A GeneraXBRL'!$D$186","v":"Primer nombre deudor"},{"$f":"'800111A GeneraXBRL'!$C$186","v":"co-svsp-core:PrimerNombreDeudorCxC"}]
["/*",null,{"$f":"'800111A GeneraXBRL'!$D$187","v":"Otros nombres deudor"},{"$f":"'800111A GeneraXBRL'!$C$187","v":"co-svsp-core:OtrosNombresDeudorCxC"}]
["/*",null,{"$f":"'800111A GeneraXBRL'!$D$188","v":"Razón Social deudor"},{"$f":"'800111A GeneraXBRL'!$C$188","v":"co-svsp-core:RazonSocialDeudorCxC"}]
["/*",null,{"$f":"'800111A GeneraXBRL'!$D$189","v":"Dirección deudor"},{"$f":"'800111A GeneraXBRL'!$C$189","v":"co-svsp-core:DireccionDeudorCxC"}]
["/*",null,{"$f":"'800111A GeneraXBRL'!$D$190","v":"Departamento deudor"},{"$f":"'800111A GeneraXBRL'!$C$190","v":"co-svsp-core:DepartamentoDeudorCxC"}]
["/*",null,{"$f":"'800111A GeneraXBRL'!$D$191","v":"Municipio deudor"},{"$f":"'800111A GeneraXBRL'!$C$191","v":"co-svsp-core:MunicipioDeudorCxC"}]
["/*",null,{"$f":"'800111A GeneraXBRL'!$D$192","v":"País deudor"},{"$f":"'800111A GeneraXBRL'!$C$192","v":"co-svsp-core:PaisDeudorCxC"}]
["/*",null,{"$f":"'800111A GeneraXBRL'!$D$193","v":"Saldo cuentas por cobrar"},{"$f":"'800111A GeneraXBRL'!$C$193","v":"co-svsp-core:SaldoCuentasPorCobrarCxC"}]
["/*",null,"--11--"]
["/*",null,{"$f":"'800111A GeneraXBRL'!$D$182","v":"Tipo de documento del deudor"},{"$f":"'800111A GeneraXBRL'!$C$182","v":"co-svsp-core:TipoDeDocumentoDeudorCxC"}]
["/*",null,{"$f":"'800111A GeneraXBRL'!$D$183","v":"Número de identificación del deudor"},{"$f":"'800111A GeneraXBRL'!$C$183","v":"co-svsp-core:NumeroIdentificacionDeudorCxC"}]
["/*",null,{"$f":"'800111A GeneraXBRL'!$D$184","v":"Primer apellido deudor"},{"$f":"'800111A GeneraXBRL'!$C$184","v":"co-svsp-core:PrimerApellidoDeudorCxC"}]
["/*",null,{"$f":"'800111A GeneraXBRL'!$D$185","v":"Segundo apellido deudor"},{"$f":"'800111A GeneraXBRL'!$C$185","v":"co-svsp-core:SegundoApellidoDeudorCxC"}]
["/*",null,{"$f":"'800111A GeneraXBRL'!$D$186","v":"Primer nombre deudor"},{"$f":"'800111A GeneraXBRL'!$C$186","v":"co-svsp-core:PrimerNombreDeudorCxC"}]
["/*",null,{"$f":"'800111A GeneraXBRL'!$D$187","v":"Otros nombres deudor"},{"$f":"'800111A GeneraXBRL'!$C$187","v":"co-svsp-core:OtrosNombresDeudorCxC"}]
["/*",null,{"$f":"'800111A GeneraXBRL'!$D$188","v":"Razón Social deudor"},{"$f":"'800111A GeneraXBRL'!$C$188","v":"co-svsp-core:RazonSocialDeudorCxC"}]
["/*",null,{"$f":"'800111A GeneraXBRL'!$D$189","v":"Dirección deudor"},{"$f":"'800111A GeneraXBRL'!$C$189","v":"co-svsp-core:DireccionDeudorCxC"}]
["/*",null,{"$f":"'800111A GeneraXBRL'!$D$190","v":"Departamento deudor"},{"$f":"'800111A GeneraXBRL'!$C$190","v":"co-svsp-core:DepartamentoDeudorCxC"}]
["/*",null,{"$f":"'800111A GeneraXBRL'!$D$191","v":"Municipio deudor"},{"$f":"'800111A GeneraXBRL'!$C$191","v":"co-svsp-core:MunicipioDeudorCxC"}]
["/*",null,{"$f":"'800111A GeneraXBRL'!$D$192","v":"País deudor"},{"$f":"'800111A GeneraXBRL'!$C$192","v":"co-svsp-core:PaisDeudorCxC"}]
["/*",null,{"$f":"'800111A GeneraXBRL'!$D$193","v":"Saldo cuentas por cobrar"},{"$f":"'800111A GeneraXBRL'!$C$193","v":"co-svsp-core:SaldoCuentasPorCobrarCxC"}]
["/*",null,"--12--"]
["/*",null,{"$f":"'800111A GeneraXBRL'!$D$182","v":"Tipo de documento del deudor"},{"$f":"'800111A GeneraXBRL'!$C$182","v":"co-svsp-core:TipoDeDocumentoDeudorCxC"}]
["/*",null,{"$f":"'800111A GeneraXBRL'!$D$183","v":"Número de identificación del deudor"},{"$f":"'800111A GeneraXBRL'!$C$183","v":"co-svsp-core:NumeroIdentificacionDeudorCxC"}]
["/*",null,{"$f":"'800111A GeneraXBRL'!$D$184","v":"Primer apellido deudor"},{"$f":"'800111A GeneraXBRL'!$C$184","v":"co-svsp-core:PrimerApellidoDeudorCxC"}]
["/*",null,{"$f":"'800111A GeneraXBRL'!$D$185","v":"Segundo apellido deudor"},{"$f":"'800111A GeneraXBRL'!$C$185","v":"co-svsp-core:SegundoApellidoDeudorCxC"}]
["/*",null,{"$f":"'800111A GeneraXBRL'!$D$186","v":"Primer nombre deudor"},{"$f":"'800111A GeneraXBRL'!$C$186","v":"co-svsp-core:PrimerNombreDeudorCxC"}]
["/*",null,{"$f":"'800111A GeneraXBRL'!$D$187","v":"Otros nombres deudor"},{"$f":"'800111A GeneraXBRL'!$C$187","v":"co-svsp-core:OtrosNombresDeudorCxC"}]
["/*",null,{"$f":"'800111A GeneraXBRL'!$D$188","v":"Razón Social deudor"},{"$f":"'800111A GeneraXBRL'!$C$188","v":"co-svsp-core:RazonSocialDeudorCxC"}]
["/*",null,{"$f":"'800111A GeneraXBRL'!$D$189","v":"Dirección deudor"},{"$f":"'800111A GeneraXBRL'!$C$189","v":"co-svsp-core:DireccionDeudorCxC"}]
["/*",null,{"$f":"'800111A GeneraXBRL'!$D$190","v":"Departamento deudor"},{"$f":"'800111A GeneraXBRL'!$C$190","v":"co-svsp-core:DepartamentoDeudorCxC"}]
["/*",null,{"$f":"'800111A GeneraXBRL'!$D$191","v":"Municipio deudor"},{"$f":"'800111A GeneraXBRL'!$C$191","v":"co-svsp-core:MunicipioDeudorCxC"}]
["/*",null,{"$f":"'800111A GeneraXBRL'!$D$192","v":"País deudor"},{"$f":"'800111A GeneraXBRL'!$C$192","v":"co-svsp-core:PaisDeudorCxC"}]
["/*",null,{"$f":"'800111A GeneraXBRL'!$D$193","v":"Saldo cuentas por cobrar"},{"$f":"'800111A GeneraXBRL'!$C$193","v":"co-svsp-core:SaldoCuentasPorCobrarCxC"}]
["/*",null,"--13--"]
["/*",null,{"$f":"'800111A GeneraXBRL'!$D$182","v":"Tipo de documento del deudor"},{"$f":"'800111A GeneraXBRL'!$C$182","v":"co-svsp-core:TipoDeDocumentoDeudorCxC"}]
["/*",null,{"$f":"'800111A GeneraXBRL'!$D$183","v":"Número de identificación del deudor"},{"$f":"'800111A GeneraXBRL'!$C$183","v":"co-svsp-core:NumeroIdentificacionDeudorCxC"}]
["/*",null,{"$f":"'800111A GeneraXBRL'!$D$184","v":"Primer apellido deudor"},{"$f":"'800111A GeneraXBRL'!$C$184","v":"co-svsp-core:PrimerApellidoDeudorCxC"}]
["/*",null,{"$f":"'800111A GeneraXBRL'!$D$185","v":"Segundo apellido deudor"},{"$f":"'800111A GeneraXBRL'!$C$185","v":"co-svsp-core:SegundoApellidoDeudorCxC"}]
["/*",null,{"$f":"'800111A GeneraXBRL'!$D$186","v":"Primer nombre deudor"},{"$f":"'800111A GeneraXBRL'!$C$186","v":"co-svsp-core:PrimerNombreDeudorCxC"}]
["/*",null,{"$f":"'800111A GeneraXBRL'!$D$187","v":"Otros nombres deudor"},{"$f":"'800111A GeneraXBRL'!$C$187","v":"co-svsp-core:OtrosNombresDeudorCxC"}]
["/*",null,{"$f":"'800111A GeneraXBRL'!$D$188","v":"Razón Social deudor"},{"$f":"'800111A GeneraXBRL'!$C$188","v":"co-svsp-core:RazonSocialDeudorCxC"}]
["/*",null,{"$f":"'800111A GeneraXBRL'!$D$189","v":"Dirección deudor"},{"$f":"'800111A GeneraXBRL'!$C$189","v":"co-svsp-core:DireccionDeudorCxC"}]
["/*",null,{"$f":"'800111A GeneraXBRL'!$D$190","v":"Departamento deudor"},{"$f":"'800111A GeneraXBRL'!$C$190","v":"co-svsp-core:DepartamentoDeudorCxC"}]
["/*",null,{"$f":"'800111A GeneraXBRL'!$D$191","v":"Municipio deudor"},{"$f":"'800111A GeneraXBRL'!$C$191","v":"co-svsp-core:MunicipioDeudorCxC"}]
["/*",null,{"$f":"'800111A GeneraXBRL'!$D$192","v":"País deudor"},{"$f":"'800111A GeneraXBRL'!$C$192","v":"co-svsp-core:PaisDeudorCxC"}]
["/*",null,{"$f":"'800111A GeneraXBRL'!$D$193","v":"Saldo cuentas por cobrar"},{"$f":"'800111A GeneraXBRL'!$C$193","v":"co-svsp-core:SaldoCuentasPorCobrarCxC"}]
["/*",null,"--14--"]
["/*",null,{"$f":"'800111A GeneraXBRL'!$D$182","v":"Tipo de documento del deudor"},{"$f":"'800111A GeneraXBRL'!$C$182","v":"co-svsp-core:TipoDeDocumentoDeudorCxC"}]
["/*",null,{"$f":"'800111A GeneraXBRL'!$D$183","v":"Número de identificación del deudor"},{"$f":"'800111A GeneraXBRL'!$C$183","v":"co-svsp-core:NumeroIdentificacionDeudorCxC"}]
["/*",null,{"$f":"'800111A GeneraXBRL'!$D$184","v":"Primer apellido deudor"},{"$f":"'800111A GeneraXBRL'!$C$184","v":"co-svsp-core:PrimerApellidoDeudorCxC"}]
["/*",null,{"$f":"'800111A GeneraXBRL'!$D$185","v":"Segundo apellido deudor"},{"$f":"'800111A GeneraXBRL'!$C$185","v":"co-svsp-core:SegundoApellidoDeudorCxC"}]
["/*",null,{"$f":"'800111A GeneraXBRL'!$D$186","v":"Primer nombre deudor"},{"$f":"'800111A GeneraXBRL'!$C$186","v":"co-svsp-core:PrimerNombreDeudorCxC"}]
["/*",null,{"$f":"'800111A GeneraXBRL'!$D$187","v":"Otros nombres deudor"},{"$f":"'800111A GeneraXBRL'!$C$187","v":"co-svsp-core:OtrosNombresDeudorCxC"}]
["/*",null,{"$f":"'800111A GeneraXBRL'!$D$188","v":"Razón Social deudor"},{"$f":"'800111A GeneraXBRL'!$C$188","v":"co-svsp-core:RazonSocialDeudorCxC"}]
["/*",null,{"$f":"'800111A GeneraXBRL'!$D$189","v":"Dirección deudor"},{"$f":"'800111A GeneraXBRL'!$C$189","v":"co-svsp-core:DireccionDeudorCxC"}]
["/*",null,{"$f":"'800111A GeneraXBRL'!$D$190","v":"Departamento deudor"},{"$f":"'800111A GeneraXBRL'!$C$190","v":"co-svsp-core:DepartamentoDeudorCxC"}]
["/*",null,{"$f":"'800111A GeneraXBRL'!$D$191","v":"Municipio deudor"},{"$f":"'800111A GeneraXBRL'!$C$191","v":"co-svsp-core:MunicipioDeudorCxC"}]
["/*",null,{"$f":"'800111A GeneraXBRL'!$D$192","v":"País deudor"},{"$f":"'800111A GeneraXBRL'!$C$192","v":"co-svsp-core:PaisDeudorCxC"}]
[{"$f":"IF(G2720=\"\",\"/*\",\"\")","v":"/*"},null,{"$f":"'800111A GeneraXBRL'!$D$193","v":"Saldo cuentas por cobrar"},{"$f":"'800111A GeneraXBRL'!$C$193","v":"co-svsp-core:SaldoCuentasPorCobrarCxC"}]
["/*",null,"--15--"]
["/*",null,{"$f":"'800111A GeneraXBRL'!$D$182","v":"Tipo de documento del deudor"},{"$f":"'800111A GeneraXBRL'!$C$182","v":"co-svsp-core:TipoDeDocumentoDeudorCxC"}]
["/*",null,{"$f":"'800111A GeneraXBRL'!$D$183","v":"Número de identificación del deudor"},{"$f":"'800111A GeneraXBRL'!$C$183","v":"co-svsp-core:NumeroIdentificacionDeudorCxC"}]
["/*",null,{"$f":"'800111A GeneraXBRL'!$D$184","v":"Primer apellido deudor"},{"$f":"'800111A GeneraXBRL'!$C$184","v":"co-svsp-core:PrimerApellidoDeudorCxC"}]
["/*",null,{"$f":"'800111A GeneraXBRL'!$D$185","v":"Segundo apellido deudor"},{"$f":"'800111A GeneraXBRL'!$C$185","v":"co-svsp-core:SegundoApellidoDeudorCxC"}]
["/*",null,{"$f":"'800111A GeneraXBRL'!$D$186","v":"Primer nombre deudor"},{"$f":"'800111A GeneraXBRL'!$C$186","v":"co-svsp-core:PrimerNombreDeudorCxC"}]
["/*",null,{"$f":"'800111A GeneraXBRL'!$D$187","v":"Otros nombres deudor"},{"$f":"'800111A GeneraXBRL'!$C$187","v":"co-svsp-core:OtrosNombresDeudorCxC"}]
["/*",null,{"$f":"'800111A GeneraXBRL'!$D$188","v":"Razón Social deudor"},{"$f":"'800111A GeneraXBRL'!$C$188","v":"co-svsp-core:RazonSocialDeudorCxC"}]
["/*",null,{"$f":"'800111A GeneraXBRL'!$D$189","v":"Dirección deudor"},{"$f":"'800111A GeneraXBRL'!$C$189","v":"co-svsp-core:DireccionDeudorCxC"}]
["/*",null,{"$f":"'800111A GeneraXBRL'!$D$190","v":"Departamento deudor"},{"$f":"'800111A GeneraXBRL'!$C$190","v":"co-svsp-core:DepartamentoDeudorCxC"}]
["/*",null,{"$f":"'800111A GeneraXBRL'!$D$191","v":"Municipio deudor"},{"$f":"'800111A GeneraXBRL'!$C$191","v":"co-svsp-core:MunicipioDeudorCxC"}]
["/*",null,{"$f":"'800111A GeneraXBRL'!$D$192","v":"País deudor"},{"$f":"'800111A GeneraXBRL'!$C$192","v":"co-svsp-core:PaisDeudorCxC"}]
["/*",null,{"$f":"'800111A GeneraXBRL'!$D$193","v":"Saldo cuentas por cobrar"},{"$f":"'800111A GeneraXBRL'!$C$193","v":"co-svsp-core:SaldoCuentasPorCobrarCxC"}]
["/*",null,"--16--"]
["/*",null,{"$f":"'800111A GeneraXBRL'!$D$182","v":"Tipo de documento del deudor"},{"$f":"'800111A GeneraXBRL'!$C$182","v":"co-svsp-core:TipoDeDocumentoDeudorCxC"}]
["/*",null,{"$f":"'800111A GeneraXBRL'!$D$183","v":"Número de identificación del deudor"},{"$f":"'800111A GeneraXBRL'!$C$183","v":"co-svsp-core:NumeroIdentificacionDeudorCxC"}]
["/*",null,{"$f":"'800111A GeneraXBRL'!$D$184","v":"Primer apellido deudor"},{"$f":"'800111A GeneraXBRL'!$C$184","v":"co-svsp-core:PrimerApellidoDeudorCxC"}]
["/*",null,{"$f":"'800111A GeneraXBRL'!$D$185","v":"Segundo apellido deudor"},{"$f":"'800111A GeneraXBRL'!$C$185","v":"co-svsp-core:SegundoApellidoDeudorCxC"}]
["/*",null,{"$f":"'800111A GeneraXBRL'!$D$186","v":"Primer nombre deudor"},{"$f":"'800111A GeneraXBRL'!$C$186","v":"co-svsp-core:PrimerNombreDeudorCxC"}]
["/*",null,{"$f":"'800111A GeneraXBRL'!$D$187","v":"Otros nombres deudor"},{"$f":"'800111A GeneraXBRL'!$C$187","v":"co-svsp-core:OtrosNombresDeudorCxC"}]
["/*",null,{"$f":"'800111A GeneraXBRL'!$D$188","v":"Razón Social deudor"},{"$f":"'800111A GeneraXBRL'!$C$188","v":"co-svsp-core:RazonSocialDeudorCxC"}]
["/*",null,{"$f":"'800111A GeneraXBRL'!$D$189","v":"Dirección deudor"},{"$f":"'800111A GeneraXBRL'!$C$189","v":"co-svsp-core:DireccionDeudorCxC"}]
["/*",null,{"$f":"'800111A GeneraXBRL'!$D$190","v":"Departamento deudor"},{"$f":"'800111A GeneraXBRL'!$C$190","v":"co-svsp-core:DepartamentoDeudorCxC"}]
["/*",null,{"$f":"'800111A GeneraXBRL'!$D$191","v":"Municipio deudor"},{"$f":"'800111A GeneraXBRL'!$C$191","v":"co-svsp-core:MunicipioDeudorCxC"}]
["/*",null,{"$f":"'800111A GeneraXBRL'!$D$192","v":"País deudor"},{"$f":"'800111A GeneraXBRL'!$C$192","v":"co-svsp-core:PaisDeudorCxC"}]
["/*",null,{"$f":"'800111A GeneraXBRL'!$D$193","v":"Saldo cuentas por cobrar"},{"$f":"'800111A GeneraXBRL'!$C$193","v":"co-svsp-core:SaldoCuentasPorCobrarCxC"}]
["/*",null,"--17--"]
["/*",null,{"$f":"'800111A GeneraXBRL'!$D$182","v":"Tipo de documento del deudor"},{"$f":"'800111A GeneraXBRL'!$C$182","v":"co-svsp-core:TipoDeDocumentoDeudorCxC"}]
["/*",null,{"$f":"'800111A GeneraXBRL'!$D$183","v":"Número de identificación del deudor"},{"$f":"'800111A GeneraXBRL'!$C$183","v":"co-svsp-core:NumeroIdentificacionDeudorCxC"}]
["/*",null,{"$f":"'800111A GeneraXBRL'!$D$184","v":"Primer apellido deudor"},{"$f":"'800111A GeneraXBRL'!$C$184","v":"co-svsp-core:PrimerApellidoDeudorCxC"}]
["/*",null,{"$f":"'800111A GeneraXBRL'!$D$185","v":"Segundo apellido deudor"},{"$f":"'800111A GeneraXBRL'!$C$185","v":"co-svsp-core:SegundoApellidoDeudorCxC"}]
["/*",null,{"$f":"'800111A GeneraXBRL'!$D$186","v":"Primer nombre deudor"},{"$f":"'800111A GeneraXBRL'!$C$186","v":"co-svsp-core:PrimerNombreDeudorCxC"}]
["/*",null,{"$f":"'800111A GeneraXBRL'!$D$187","v":"Otros nombres deudor"},{"$f":"'800111A GeneraXBRL'!$C$187","v":"co-svsp-core:OtrosNombresDeudorCxC"}]
["/*",null,{"$f":"'800111A GeneraXBRL'!$D$188","v":"Razón Social deudor"},{"$f":"'800111A GeneraXBRL'!$C$188","v":"co-svsp-core:RazonSocialDeudorCxC"}]
["/*",null,{"$f":"'800111A GeneraXBRL'!$D$189","v":"Dirección deudor"},{"$f":"'800111A GeneraXBRL'!$C$189","v":"co-svsp-core:DireccionDeudorCxC"}]
["/*",null,{"$f":"'800111A GeneraXBRL'!$D$190","v":"Departamento deudor"},{"$f":"'800111A GeneraXBRL'!$C$190","v":"co-svsp-core:DepartamentoDeudorCxC"}]
["/*",null,{"$f":"'800111A GeneraXBRL'!$D$191","v":"Municipio deudor"},{"$f":"'800111A GeneraXBRL'!$C$191","v":"co-svsp-core:MunicipioDeudorCxC"}]
["/*",null,{"$f":"'800111A GeneraXBRL'!$D$192","v":"País deudor"},{"$f":"'800111A GeneraXBRL'!$C$192","v":"co-svsp-core:PaisDeudorCxC"}]
["/*",null,{"$f":"'800111A GeneraXBRL'!$D$193","v":"Saldo cuentas por cobrar"},{"$f":"'800111A GeneraXBRL'!$C$193","v":"co-svsp-core:SaldoCuentasPorCobrarCxC"}]
["/*",null,"--18--"]
["/*",null,{"$f":"'800111A GeneraXBRL'!$D$182","v":"Tipo de documento del deudor"},{"$f":"'800111A GeneraXBRL'!$C$182","v":"co-svsp-core:TipoDeDocumentoDeudorCxC"}]
["/*",null,{"$f":"'800111A GeneraXBRL'!$D$183","v":"Número de identificación del deudor"},{"$f":"'800111A GeneraXBRL'!$C$183","v":"co-svsp-core:NumeroIdentificacionDeudorCxC"}]
["/*",null,{"$f":"'800111A GeneraXBRL'!$D$184","v":"Primer apellido deudor"},{"$f":"'800111A GeneraXBRL'!$C$184","v":"co-svsp-core:PrimerApellidoDeudorCxC"}]
["/*",null,{"$f":"'800111A GeneraXBRL'!$D$185","v":"Segundo apellido deudor"},{"$f":"'800111A GeneraXBRL'!$C$185","v":"co-svsp-core:SegundoApellidoDeudorCxC"}]
["/*",null,{"$f":"'800111A GeneraXBRL'!$D$186","v":"Primer nombre deudor"},{"$f":"'800111A GeneraXBRL'!$C$186","v":"co-svsp-core:PrimerNombreDeudorCxC"}]
["/*",null,{"$f":"'800111A GeneraXBRL'!$D$187","v":"Otros nombres deudor"},{"$f":"'800111A GeneraXBRL'!$C$187","v":"co-svsp-core:OtrosNombresDeudorCxC"}]
["/*",null,{"$f":"'800111A GeneraXBRL'!$D$188","v":"Razón Social deudor"},{"$f":"'800111A GeneraXBRL'!$C$188","v":"co-svsp-core:RazonSocialDeudorCxC"}]
["/*",null,{"$f":"'800111A GeneraXBRL'!$D$189","v":"Dirección deudor"},{"$f":"'800111A GeneraXBRL'!$C$189","v":"co-svsp-core:DireccionDeudorCxC"}]
["/*",null,{"$f":"'800111A GeneraXBRL'!$D$190","v":"Departamento deudor"},{"$f":"'800111A GeneraXBRL'!$C$190","v":"co-svsp-core:DepartamentoDeudorCxC"}]
["/*",null,{"$f":"'800111A GeneraXBRL'!$D$191","v":"Municipio deudor"},{"$f":"'800111A GeneraXBRL'!$C$191","v":"co-svsp-core:MunicipioDeudorCxC"}]
["/*",null,{"$f":"'800111A GeneraXBRL'!$D$192","v":"País deudor"},{"$f":"'800111A GeneraXBRL'!$C$192","v":"co-svsp-core:PaisDeudorCxC"}]
["/*",null,{"$f":"'800111A GeneraXBRL'!$D$193","v":"Saldo cuentas por cobrar"},{"$f":"'800111A GeneraXBRL'!$C$193","v":"co-svsp-core:SaldoCuentasPorCobrarCxC"}]
["/*",null,"--19--"]
["/*",null,{"$f":"'800111A GeneraXBRL'!$D$182","v":"Tipo de documento del deudor"},{"$f":"'800111A GeneraXBRL'!$C$182","v":"co-svsp-core:TipoDeDocumentoDeudorCxC"}]
["/*",null,{"$f":"'800111A GeneraXBRL'!$D$183","v":"Número de identificación del deudor"},{"$f":"'800111A GeneraXBRL'!$C$183","v":"co-svsp-core:NumeroIdentificacionDeudorCxC"}]
["/*",null,{"$f":"'800111A GeneraXBRL'!$D$184","v":"Primer apellido deudor"},{"$f":"'800111A GeneraXBRL'!$C$184","v":"co-svsp-core:PrimerApellidoDeudorCxC"}]
["/*",null,{"$f":"'800111A GeneraXBRL'!$D$185","v":"Segundo apellido deudor"},{"$f":"'800111A GeneraXBRL'!$C$185","v":"co-svsp-core:SegundoApellidoDeudorCxC"}]
["/*",null,{"$f":"'800111A GeneraXBRL'!$D$186","v":"Primer nombre deudor"},{"$f":"'800111A GeneraXBRL'!$C$186","v":"co-svsp-core:PrimerNombreDeudorCxC"}]
["/*",null,{"$f":"'800111A GeneraXBRL'!$D$187","v":"Otros nombres deudor"},{"$f":"'800111A GeneraXBRL'!$C$187","v":"co-svsp-core:OtrosNombresDeudorCxC"}]
["/*",null,{"$f":"'800111A GeneraXBRL'!$D$188","v":"Razón Social deudor"},{"$f":"'800111A GeneraXBRL'!$C$188","v":"co-svsp-core:RazonSocialDeudorCxC"}]
["/*",null,{"$f":"'800111A GeneraXBRL'!$D$189","v":"Dirección deudor"},{"$f":"'800111A GeneraXBRL'!$C$189","v":"co-svsp-core:DireccionDeudorCxC"}]
["/*",null,{"$f":"'800111A GeneraXBRL'!$D$190","v":"Departamento deudor"},{"$f":"'800111A GeneraXBRL'!$C$190","v":"co-svsp-core:DepartamentoDeudorCxC"}]
["/*",null,{"$f":"'800111A GeneraXBRL'!$D$191","v":"Municipio deudor"},{"$f":"'800111A GeneraXBRL'!$C$191","v":"co-svsp-core:MunicipioDeudorCxC"}]
[{"$f":"IF(G2784=\"\",\"/*\",\"\")","v":"/*"},null,{"$f":"'800111A GeneraXBRL'!$D$192","v":"País deudor"},{"$f":"'800111A GeneraXBRL'!$C$192","v":"co-svsp-core:PaisDeudorCxC"}]
["/*",null,{"$f":"'800111A GeneraXBRL'!$D$193","v":"Saldo cuentas por cobrar"},{"$f":"'800111A GeneraXBRL'!$C$193","v":"co-svsp-core:SaldoCuentasPorCobrarCxC"}]
["/*",null,"--20--"]
["/*",null,{"$f":"'800111A GeneraXBRL'!$D$182","v":"Tipo de documento del deudor"},{"$f":"'800111A GeneraXBRL'!$C$182","v":"co-svsp-core:TipoDeDocumentoDeudorCxC"}]
["/*",null,{"$f":"'800111A GeneraXBRL'!$D$183","v":"Número de identificación del deudor"},{"$f":"'800111A GeneraXBRL'!$C$183","v":"co-svsp-core:NumeroIdentificacionDeudorCxC"}]
["/*",null,{"$f":"'800111A GeneraXBRL'!$D$184","v":"Primer apellido deudor"},{"$f":"'800111A GeneraXBRL'!$C$184","v":"co-svsp-core:PrimerApellidoDeudorCxC"}]
["/*",null,{"$f":"'800111A GeneraXBRL'!$D$185","v":"Segundo apellido deudor"},{"$f":"'800111A GeneraXBRL'!$C$185","v":"co-svsp-core:SegundoApellidoDeudorCxC"}]
["/*",null,{"$f":"'800111A GeneraXBRL'!$D$186","v":"Primer nombre deudor"},{"$f":"'800111A GeneraXBRL'!$C$186","v":"co-svsp-core:PrimerNombreDeudorCxC"}]
["/*",null,{"$f":"'800111A GeneraXBRL'!$D$187","v":"Otros nombres deudor"},{"$f":"'800111A GeneraXBRL'!$C$187","v":"co-svsp-core:OtrosNombresDeudorCxC"}]
["/*",null,{"$f":"'800111A GeneraXBRL'!$D$188","v":"Razón Social deudor"},{"$f":"'800111A GeneraXBRL'!$C$188","v":"co-svsp-core:RazonSocialDeudorCxC"}]
["/*",null,{"$f":"'800111A GeneraXBRL'!$D$189","v":"Dirección deudor"},{"$f":"'800111A GeneraXBRL'!$C$189","v":"co-svsp-core:DireccionDeudorCxC"}]
["/*",null,{"$f":"'800111A GeneraXBRL'!$D$190","v":"Departamento deudor"},{"$f":"'800111A GeneraXBRL'!$C$190","v":"co-svsp-core:DepartamentoDeudorCxC"}]
["/*",null,{"$f":"'800111A GeneraXBRL'!$D$191","v":"Municipio deudor"},{"$f":"'800111A GeneraXBRL'!$C$191","v":"co-svsp-core:MunicipioDeudorCxC"}]
["/*",null,{"$f":"'800111A GeneraXBRL'!$D$192","v":"País deudor"},{"$f":"'800111A GeneraXBRL'!$C$192","v":"co-svsp-core:PaisDeudorCxC"}]
["/*",null,{"$f":"'800111A GeneraXBRL'!$D$193","v":"Saldo cuentas por cobrar"},{"$f":"'800111A GeneraXBRL'!$C$193","v":"co-svsp-core:SaldoCuentasPorCobrarCxC"}]
["/*",null,"--21--"]
["/*",null,{"$f":"'800111A GeneraXBRL'!$D$182","v":"Tipo de documento del deudor"},{"$f":"'800111A GeneraXBRL'!$C$182","v":"co-svsp-core:TipoDeDocumentoDeudorCxC"}]
["/*",null,{"$f":"'800111A GeneraXBRL'!$D$183","v":"Número de identificación del deudor"},{"$f":"'800111A GeneraXBRL'!$C$183","v":"co-svsp-core:NumeroIdentificacionDeudorCxC"}]
["/*",null,{"$f":"'800111A GeneraXBRL'!$D$184","v":"Primer apellido deudor"},{"$f":"'800111A GeneraXBRL'!$C$184","v":"co-svsp-core:PrimerApellidoDeudorCxC"}]
["/*",null,{"$f":"'800111A GeneraXBRL'!$D$185","v":"Segundo apellido deudor"},{"$f":"'800111A GeneraXBRL'!$C$185","v":"co-svsp-core:SegundoApellidoDeudorCxC"}]
["/*",null,{"$f":"'800111A GeneraXBRL'!$D$186","v":"Primer nombre deudor"},{"$f":"'800111A GeneraXBRL'!$C$186","v":"co-svsp-core:PrimerNombreDeudorCxC"}]
["/*",null,{"$f":"'800111A GeneraXBRL'!$D$187","v":"Otros nombres deudor"},{"$f":"'800111A GeneraXBRL'!$C$187","v":"co-svsp-core:OtrosNombresDeudorCxC"}]
["/*",null,{"$f":"'800111A GeneraXBRL'!$D$188","v":"Razón Social deudor"},{"$f":"'800111A GeneraXBRL'!$C$188","v":"co-svsp-core:RazonSocialDeudorCxC"}]
["/*",null,{"$f":"'800111A GeneraXBRL'!$D$189","v":"Dirección deudor"},{"$f":"'800111A GeneraXBRL'!$C$189","v":"co-svsp-core:DireccionDeudorCxC"}]
["/*",null,{"$f":"'800111A GeneraXBRL'!$D$190","v":"Departamento deudor"},{"$f":"'800111A GeneraXBRL'!$C$190","v":"co-svsp-core:DepartamentoDeudorCxC"}]
["/*",null,{"$f":"'800111A GeneraXBRL'!$D$191","v":"Municipio deudor"},{"$f":"'800111A GeneraXBRL'!$C$191","v":"co-svsp-core:MunicipioDeudorCxC"}]
["/*",null,{"$f":"'800111A GeneraXBRL'!$D$192","v":"País deudor"},{"$f":"'800111A GeneraXBRL'!$C$192","v":"co-svsp-core:PaisDeudorCxC"}]
["/*",null,{"$f":"'800111A GeneraXBRL'!$D$193","v":"Saldo cuentas por cobrar"},{"$f":"'800111A GeneraXBRL'!$C$193","v":"co-svsp-core:SaldoCuentasPorCobrarCxC"}]
["/*",null,"--22--"]
["/*",null,{"$f":"'800111A GeneraXBRL'!$D$182","v":"Tipo de documento del deudor"},{"$f":"'800111A GeneraXBRL'!$C$182","v":"co-svsp-core:TipoDeDocumentoDeudorCxC"}]
["/*",null,{"$f":"'800111A GeneraXBRL'!$D$183","v":"Número de identificación del deudor"},{"$f":"'800111A GeneraXBRL'!$C$183","v":"co-svsp-core:NumeroIdentificacionDeudorCxC"}]
["/*",null,{"$f":"'800111A GeneraXBRL'!$D$184","v":"Primer apellido deudor"},{"$f":"'800111A GeneraXBRL'!$C$184","v":"co-svsp-core:PrimerApellidoDeudorCxC"}]
["/*",null,{"$f":"'800111A GeneraXBRL'!$D$185","v":"Segundo apellido deudor"},{"$f":"'800111A GeneraXBRL'!$C$185","v":"co-svsp-core:SegundoApellidoDeudorCxC"}]
["/*",null,{"$f":"'800111A GeneraXBRL'!$D$186","v":"Primer nombre deudor"},{"$f":"'800111A GeneraXBRL'!$C$186","v":"co-svsp-core:PrimerNombreDeudorCxC"}]
["/*",null,{"$f":"'800111A GeneraXBRL'!$D$187","v":"Otros nombres deudor"},{"$f":"'800111A GeneraXBRL'!$C$187","v":"co-svsp-core:OtrosNombresDeudorCxC"}]
["/*",null,{"$f":"'800111A GeneraXBRL'!$D$188","v":"Razón Social deudor"},{"$f":"'800111A GeneraXBRL'!$C$188","v":"co-svsp-core:RazonSocialDeudorCxC"}]
["/*",null,{"$f":"'800111A GeneraXBRL'!$D$189","v":"Dirección deudor"},{"$f":"'800111A GeneraXBRL'!$C$189","v":"co-svsp-core:DireccionDeudorCxC"}]
["/*",null,{"$f":"'800111A GeneraXBRL'!$D$190","v":"Departamento deudor"},{"$f":"'800111A GeneraXBRL'!$C$190","v":"co-svsp-core:DepartamentoDeudorCxC"}]
["/*",null,{"$f":"'800111A GeneraXBRL'!$D$191","v":"Municipio deudor"},{"$f":"'800111A GeneraXBRL'!$C$191","v":"co-svsp-core:MunicipioDeudorCxC"}]
["/*",null,{"$f":"'800111A GeneraXBRL'!$D$192","v":"País deudor"},{"$f":"'800111A GeneraXBRL'!$C$192","v":"co-svsp-core:PaisDeudorCxC"}]
["/*",null,{"$f":"'800111A GeneraXBRL'!$D$193","v":"Saldo cuentas por cobrar"},{"$f":"'800111A GeneraXBRL'!$C$193","v":"co-svsp-core:SaldoCuentasPorCobrarCxC"}]
["/*",null,"--23--"]
["/*",null,{"$f":"'800111A GeneraXBRL'!$D$182","v":"Tipo de documento del deudor"},{"$f":"'800111A GeneraXBRL'!$C$182","v":"co-svsp-core:TipoDeDocumentoDeudorCxC"}]
["/*",null,{"$f":"'800111A GeneraXBRL'!$D$183","v":"Número de identificación del deudor"},{"$f":"'800111A GeneraXBRL'!$C$183","v":"co-svsp-core:NumeroIdentificacionDeudorCxC"}]
["/*",null,{"$f":"'800111A GeneraXBRL'!$D$184","v":"Primer apellido deudor"},{"$f":"'800111A GeneraXBRL'!$C$184","v":"co-svsp-core:PrimerApellidoDeudorCxC"}]
["/*",null,{"$f":"'800111A GeneraXBRL'!$D$185","v":"Segundo apellido deudor"},{"$f":"'800111A GeneraXBRL'!$C$185","v":"co-svsp-core:SegundoApellidoDeudorCxC"}]
["/*",null,{"$f":"'800111A GeneraXBRL'!$D$186","v":"Primer nombre deudor"},{"$f":"'800111A GeneraXBRL'!$C$186","v":"co-svsp-core:PrimerNombreDeudorCxC"}]
["/*",null,{"$f":"'800111A GeneraXBRL'!$D$187","v":"Otros nombres deudor"},{"$f":"'800111A GeneraXBRL'!$C$187","v":"co-svsp-core:OtrosNombresDeudorCxC"}]
["/*",null,{"$f":"'800111A GeneraXBRL'!$D$188","v":"Razón Social deudor"},{"$f":"'800111A GeneraXBRL'!$C$188","v":"co-svsp-core:RazonSocialDeudorCxC"}]
["/*",null,{"$f":"'800111A GeneraXBRL'!$D$189","v":"Dirección deudor"},{"$f":"'800111A GeneraXBRL'!$C$189","v":"co-svsp-core:DireccionDeudorCxC"}]
["/*",null,{"$f":"'800111A GeneraXBRL'!$D$190","v":"Departamento deudor"},{"$f":"'800111A GeneraXBRL'!$C$190","v":"co-svsp-core:DepartamentoDeudorCxC"}]
["/*",null,{"$f":"'800111A GeneraXBRL'!$D$191","v":"Municipio deudor"},{"$f":"'800111A GeneraXBRL'!$C$191","v":"co-svsp-core:MunicipioDeudorCxC"}]
["/*",null,{"$f":"'800111A GeneraXBRL'!$D$192","v":"País deudor"},{"$f":"'800111A GeneraXBRL'!$C$192","v":"co-svsp-core:PaisDeudorCxC"}]
["/*",null,{"$f":"'800111A GeneraXBRL'!$D$193","v":"Saldo cuentas por cobrar"},{"$f":"'800111A GeneraXBRL'!$C$193","v":"co-svsp-core:SaldoCuentasPorCobrarCxC"}]
["/*",null,"--24--"]
["/*",null,{"$f":"'800111A GeneraXBRL'!$D$182","v":"Tipo de documento del deudor"},{"$f":"'800111A GeneraXBRL'!$C$182","v":"co-svsp-core:TipoDeDocumentoDeudorCxC"}]
["/*",null,{"$f":"'800111A GeneraXBRL'!$D$183","v":"Número de identificación del deudor"},{"$f":"'800111A GeneraXBRL'!$C$183","v":"co-svsp-core:NumeroIdentificacionDeudorCxC"}]
["/*",null,{"$f":"'800111A GeneraXBRL'!$D$184","v":"Primer apellido deudor"},{"$f":"'800111A GeneraXBRL'!$C$184","v":"co-svsp-core:PrimerApellidoDeudorCxC"}]
["/*",null,{"$f":"'800111A GeneraXBRL'!$D$185","v":"Segundo apellido deudor"},{"$f":"'800111A GeneraXBRL'!$C$185","v":"co-svsp-core:SegundoApellidoDeudorCxC"}]
["/*",null,{"$f":"'800111A GeneraXBRL'!$D$186","v":"Primer nombre deudor"},{"$f":"'800111A GeneraXBRL'!$C$186","v":"co-svsp-core:PrimerNombreDeudorCxC"}]
["/*",null,{"$f":"'800111A GeneraXBRL'!$D$187","v":"Otros nombres deudor"},{"$f":"'800111A GeneraXBRL'!$C$187","v":"co-svsp-core:OtrosNombresDeudorCxC"}]
["/*",null,{"$f":"'800111A GeneraXBRL'!$D$188","v":"Razón Social deudor"},{"$f":"'800111A GeneraXBRL'!$C$188","v":"co-svsp-core:RazonSocialDeudorCxC"}]
["/*",null,{"$f":"'800111A GeneraXBRL'!$D$189","v":"Dirección deudor"},{"$f":"'800111A GeneraXBRL'!$C$189","v":"co-svsp-core:DireccionDeudorCxC"}]
["/*",null,{"$f":"'800111A GeneraXBRL'!$D$190","v":"Departamento deudor"},{"$f":"'800111A GeneraXBRL'!$C$190","v":"co-svsp-core:DepartamentoDeudorCxC"}]
[{"$f":"IF(G2848=\"\",\"/*\",\"\")","v":"/*"},null,{"$f":"'800111A GeneraXBRL'!$D$191","v":"Municipio deudor"},{"$f":"'800111A GeneraXBRL'!$C$191","v":"co-svsp-core:MunicipioDeudorCxC"}]
["/*",null,{"$f":"'800111A GeneraXBRL'!$D$192","v":"País deudor"},{"$f":"'800111A GeneraXBRL'!$C$192","v":"co-svsp-core:PaisDeudorCxC"}]
["/*",null,{"$f":"'800111A GeneraXBRL'!$D$193","v":"Saldo cuentas por cobrar"},{"$f":"'800111A GeneraXBRL'!$C$193","v":"co-svsp-core:SaldoCuentasPorCobrarCxC"}]
["/*",null,"--25--"]
["/*",null,{"$f":"'800111A GeneraXBRL'!$D$182","v":"Tipo de documento del deudor"},{"$f":"'800111A GeneraXBRL'!$C$182","v":"co-svsp-core:TipoDeDocumentoDeudorCxC"}]
["/*",null,{"$f":"'800111A GeneraXBRL'!$D$183","v":"Número de identificación del deudor"},{"$f":"'800111A GeneraXBRL'!$C$183","v":"co-svsp-core:NumeroIdentificacionDeudorCxC"}]
["/*",null,{"$f":"'800111A GeneraXBRL'!$D$184","v":"Primer apellido deudor"},{"$f":"'800111A GeneraXBRL'!$C$184","v":"co-svsp-core:PrimerApellidoDeudorCxC"}]
["/*",null,{"$f":"'800111A GeneraXBRL'!$D$185","v":"Segundo apellido deudor"},{"$f":"'800111A GeneraXBRL'!$C$185","v":"co-svsp-core:SegundoApellidoDeudorCxC"}]
["/*",null,{"$f":"'800111A GeneraXBRL'!$D$186","v":"Primer nombre deudor"},{"$f":"'800111A GeneraXBRL'!$C$186","v":"co-svsp-core:PrimerNombreDeudorCxC"}]
["/*",null,{"$f":"'800111A GeneraXBRL'!$D$187","v":"Otros nombres deudor"},{"$f":"'800111A GeneraXBRL'!$C$187","v":"co-svsp-core:OtrosNombresDeudorCxC"}]
["/*",null,{"$f":"'800111A GeneraXBRL'!$D$188","v":"Razón Social deudor"},{"$f":"'800111A GeneraXBRL'!$C$188","v":"co-svsp-core:RazonSocialDeudorCxC"}]
["/*",null,{"$f":"'800111A GeneraXBRL'!$D$189","v":"Dirección deudor"},{"$f":"'800111A GeneraXBRL'!$C$189","v":"co-svsp-core:DireccionDeudorCxC"}]
["/*",null,{"$f":"'800111A GeneraXBRL'!$D$190","v":"Departamento deudor"},{"$f":"'800111A GeneraXBRL'!$C$190","v":"co-svsp-core:DepartamentoDeudorCxC"}]
["/*",null,{"$f":"'800111A GeneraXBRL'!$D$191","v":"Municipio deudor"},{"$f":"'800111A GeneraXBRL'!$C$191","v":"co-svsp-core:MunicipioDeudorCxC"}]
["/*",null,{"$f":"'800111A GeneraXBRL'!$D$192","v":"País deudor"},{"$f":"'800111A GeneraXBRL'!$C$192","v":"co-svsp-core:PaisDeudorCxC"}]
["/*",null,{"$f":"'800111A GeneraXBRL'!$D$193","v":"Saldo cuentas por cobrar"},{"$f":"'800111A GeneraXBRL'!$C$193","v":"co-svsp-core:SaldoCuentasPorCobrarCxC"}]
["/*",null,"--26--"]
["/*",null,{"$f":"'800111A GeneraXBRL'!$D$182","v":"Tipo de documento del deudor"},{"$f":"'800111A GeneraXBRL'!$C$182","v":"co-svsp-core:TipoDeDocumentoDeudorCxC"}]
["/*",null,{"$f":"'800111A GeneraXBRL'!$D$183","v":"Número de identificación del deudor"},{"$f":"'800111A GeneraXBRL'!$C$183","v":"co-svsp-core:NumeroIdentificacionDeudorCxC"}]
["/*",null,{"$f":"'800111A GeneraXBRL'!$D$184","v":"Primer apellido deudor"},{"$f":"'800111A GeneraXBRL'!$C$184","v":"co-svsp-core:PrimerApellidoDeudorCxC"}]
["/*",null,{"$f":"'800111A GeneraXBRL'!$D$185","v":"Segundo apellido deudor"},{"$f":"'800111A GeneraXBRL'!$C$185","v":"co-svsp-core:SegundoApellidoDeudorCxC"}]
["/*",null,{"$f":"'800111A GeneraXBRL'!$D$186","v":"Primer nombre deudor"},{"$f":"'800111A GeneraXBRL'!$C$186","v":"co-svsp-core:PrimerNombreDeudorCxC"}]
["/*",null,{"$f":"'800111A GeneraXBRL'!$D$187","v":"Otros nombres deudor"},{"$f":"'800111A GeneraXBRL'!$C$187","v":"co-svsp-core:OtrosNombresDeudorCxC"}]
["/*",null,{"$f":"'800111A GeneraXBRL'!$D$188","v":"Razón Social deudor"},{"$f":"'800111A GeneraXBRL'!$C$188","v":"co-svsp-core:RazonSocialDeudorCxC"}]
["/*",null,{"$f":"'800111A GeneraXBRL'!$D$189","v":"Dirección deudor"},{"$f":"'800111A GeneraXBRL'!$C$189","v":"co-svsp-core:DireccionDeudorCxC"}]
["/*",null,{"$f":"'800111A GeneraXBRL'!$D$190","v":"Departamento deudor"},{"$f":"'800111A GeneraXBRL'!$C$190","v":"co-svsp-core:DepartamentoDeudorCxC"}]
["/*",null,{"$f":"'800111A GeneraXBRL'!$D$191","v":"Municipio deudor"},{"$f":"'800111A GeneraXBRL'!$C$191","v":"co-svsp-core:MunicipioDeudorCxC"}]
["/*",null,{"$f":"'800111A GeneraXBRL'!$D$192","v":"País deudor"},{"$f":"'800111A GeneraXBRL'!$C$192","v":"co-svsp-core:PaisDeudorCxC"}]
["/*",null,{"$f":"'800111A GeneraXBRL'!$D$193","v":"Saldo cuentas por cobrar"},{"$f":"'800111A GeneraXBRL'!$C$193","v":"co-svsp-core:SaldoCuentasPorCobrarCxC"}]
["/*",null,"--27--"]
["/*",null,{"$f":"'800111A GeneraXBRL'!$D$182","v":"Tipo de documento del deudor"},{"$f":"'800111A GeneraXBRL'!$C$182","v":"co-svsp-core:TipoDeDocumentoDeudorCxC"}]
["/*",null,{"$f":"'800111A GeneraXBRL'!$D$183","v":"Número de identificación del deudor"},{"$f":"'800111A GeneraXBRL'!$C$183","v":"co-svsp-core:NumeroIdentificacionDeudorCxC"}]
["/*",null,{"$f":"'800111A GeneraXBRL'!$D$184","v":"Primer apellido deudor"},{"$f":"'800111A GeneraXBRL'!$C$184","v":"co-svsp-core:PrimerApellidoDeudorCxC"}]
["/*",null,{"$f":"'800111A GeneraXBRL'!$D$185","v":"Segundo apellido deudor"},{"$f":"'800111A GeneraXBRL'!$C$185","v":"co-svsp-core:SegundoApellidoDeudorCxC"}]
["/*",null,{"$f":"'800111A GeneraXBRL'!$D$186","v":"Primer nombre deudor"},{"$f":"'800111A GeneraXBRL'!$C$186","v":"co-svsp-core:PrimerNombreDeudorCxC"}]
["/*",null,{"$f":"'800111A GeneraXBRL'!$D$187","v":"Otros nombres deudor"},{"$f":"'800111A GeneraXBRL'!$C$187","v":"co-svsp-core:OtrosNombresDeudorCxC"}]
["/*",null,{"$f":"'800111A GeneraXBRL'!$D$188","v":"Razón Social deudor"},{"$f":"'800111A GeneraXBRL'!$C$188","v":"co-svsp-core:RazonSocialDeudorCxC"}]
["/*",null,{"$f":"'800111A GeneraXBRL'!$D$189","v":"Dirección deudor"},{"$f":"'800111A GeneraXBRL'!$C$189","v":"co-svsp-core:DireccionDeudorCxC"}]
["/*",null,{"$f":"'800111A GeneraXBRL'!$D$190","v":"Departamento deudor"},{"$f":"'800111A GeneraXBRL'!$C$190","v":"co-svsp-core:DepartamentoDeudorCxC"}]
["/*",null,{"$f":"'800111A GeneraXBRL'!$D$191","v":"Municipio deudor"},{"$f":"'800111A GeneraXBRL'!$C$191","v":"co-svsp-core:MunicipioDeudorCxC"}]
["/*",null,{"$f":"'800111A GeneraXBRL'!$D$192","v":"País deudor"},{"$f":"'800111A GeneraXBRL'!$C$192","v":"co-svsp-core:PaisDeudorCxC"}]
["/*",null,{"$f":"'800111A GeneraXBRL'!$D$193","v":"Saldo cuentas por cobrar"},{"$f":"'800111A GeneraXBRL'!$C$193","v":"co-svsp-core:SaldoCuentasPorCobrarCxC"}]
["/*",null,"--28--"]
["/*",null,{"$f":"'800111A GeneraXBRL'!$D$182","v":"Tipo de documento del deudor"},{"$f":"'800111A GeneraXBRL'!$C$182","v":"co-svsp-core:TipoDeDocumentoDeudorCxC"}]
["/*",null,{"$f":"'800111A GeneraXBRL'!$D$183","v":"Número de identificación del deudor"},{"$f":"'800111A GeneraXBRL'!$C$183","v":"co-svsp-core:NumeroIdentificacionDeudorCxC"}]
["/*",null,{"$f":"'800111A GeneraXBRL'!$D$184","v":"Primer apellido deudor"},{"$f":"'800111A GeneraXBRL'!$C$184","v":"co-svsp-core:PrimerApellidoDeudorCxC"}]
["/*",null,{"$f":"'800111A GeneraXBRL'!$D$185","v":"Segundo apellido deudor"},{"$f":"'800111A GeneraXBRL'!$C$185","v":"co-svsp-core:SegundoApellidoDeudorCxC"}]
["/*",null,{"$f":"'800111A GeneraXBRL'!$D$186","v":"Primer nombre deudor"},{"$f":"'800111A GeneraXBRL'!$C$186","v":"co-svsp-core:PrimerNombreDeudorCxC"}]
["/*",null,{"$f":"'800111A GeneraXBRL'!$D$187","v":"Otros nombres deudor"},{"$f":"'800111A GeneraXBRL'!$C$187","v":"co-svsp-core:OtrosNombresDeudorCxC"}]
["/*",null,{"$f":"'800111A GeneraXBRL'!$D$188","v":"Razón Social deudor"},{"$f":"'800111A GeneraXBRL'!$C$188","v":"co-svsp-core:RazonSocialDeudorCxC"}]
["/*",null,{"$f":"'800111A GeneraXBRL'!$D$189","v":"Dirección deudor"},{"$f":"'800111A GeneraXBRL'!$C$189","v":"co-svsp-core:DireccionDeudorCxC"}]
["/*",null,{"$f":"'800111A GeneraXBRL'!$D$190","v":"Departamento deudor"},{"$f":"'800111A GeneraXBRL'!$C$190","v":"co-svsp-core:DepartamentoDeudorCxC"}]
["/*",null,{"$f":"'800111A GeneraXBRL'!$D$191","v":"Municipio deudor"},{"$f":"'800111A GeneraXBRL'!$C$191","v":"co-svsp-core:MunicipioDeudorCxC"}]
["/*",null,{"$f":"'800111A GeneraXBRL'!$D$192","v":"País deudor"},{"$f":"'800111A GeneraXBRL'!$C$192","v":"co-svsp-core:PaisDeudorCxC"}]
["/*",null,{"$f":"'800111A GeneraXBRL'!$D$193","v":"Saldo cuentas por cobrar"},{"$f":"'800111A GeneraXBRL'!$C$193","v":"co-svsp-core:SaldoCuentasPorCobrarCxC"}]
["/*",null,"--29--"]
["/*",null,{"$f":"'800111A GeneraXBRL'!$D$182","v":"Tipo de documento del deudor"},{"$f":"'800111A GeneraXBRL'!$C$182","v":"co-svsp-core:TipoDeDocumentoDeudorCxC"}]
["/*",null,{"$f":"'800111A GeneraXBRL'!$D$183","v":"Número de identificación del deudor"},{"$f":"'800111A GeneraXBRL'!$C$183","v":"co-svsp-core:NumeroIdentificacionDeudorCxC"}]
["/*",null,{"$f":"'800111A GeneraXBRL'!$D$184","v":"Primer apellido deudor"},{"$f":"'800111A GeneraXBRL'!$C$184","v":"co-svsp-core:PrimerApellidoDeudorCxC"}]
["/*",null,{"$f":"'800111A GeneraXBRL'!$D$185","v":"Segundo apellido deudor"},{"$f":"'800111A GeneraXBRL'!$C$185","v":"co-svsp-core:SegundoApellidoDeudorCxC"}]
["/*",null,{"$f":"'800111A GeneraXBRL'!$D$186","v":"Primer nombre deudor"},{"$f":"'800111A GeneraXBRL'!$C$186","v":"co-svsp-core:PrimerNombreDeudorCxC"}]
["/*",null,{"$f":"'800111A GeneraXBRL'!$D$187","v":"Otros nombres deudor"},{"$f":"'800111A GeneraXBRL'!$C$187","v":"co-svsp-core:OtrosNombresDeudorCxC"}]
["/*",null,{"$f":"'800111A GeneraXBRL'!$D$188","v":"Razón Social deudor"},{"$f":"'800111A GeneraXBRL'!$C$188","v":"co-svsp-core:RazonSocialDeudorCxC"}]
["/*",null,{"$f":"'800111A GeneraXBRL'!$D$189","v":"Dirección deudor"},{"$f":"'800111A GeneraXBRL'!$C$189","v":"co-svsp-core:DireccionDeudorCxC"}]
[{"$f":"IF(G2912=\"\",\"/*\",\"\")","v":"/*"},null,{"$f":"'800111A GeneraXBRL'!$D$190","v":"Departamento deudor"},{"$f":"'800111A GeneraXBRL'!$C$190","v":"co-svsp-core:DepartamentoDeudorCxC"}]
["/*",null,{"$f":"'800111A GeneraXBRL'!$D$191","v":"Municipio deudor"},{"$f":"'800111A GeneraXBRL'!$C$191","v":"co-svsp-core:MunicipioDeudorCxC"}]
["/*",null,{"$f":"'800111A GeneraXBRL'!$D$192","v":"País deudor"},{"$f":"'800111A GeneraXBRL'!$C$192","v":"co-svsp-core:PaisDeudorCxC"}]
["/*",null,{"$f":"'800111A GeneraXBRL'!$D$193","v":"Saldo cuentas por cobrar"},{"$f":"'800111A GeneraXBRL'!$C$193","v":"co-svsp-core:SaldoCuentasPorCobrarCxC"}]
["/*",null,"--30--"]
["/*",null,{"$f":"'800111A GeneraXBRL'!$D$182","v":"Tipo de documento del deudor"},{"$f":"'800111A GeneraXBRL'!$C$182","v":"co-svsp-core:TipoDeDocumentoDeudorCxC"}]
["/*",null,{"$f":"'800111A GeneraXBRL'!$D$183","v":"Número de identificación del deudor"},{"$f":"'800111A GeneraXBRL'!$C$183","v":"co-svsp-core:NumeroIdentificacionDeudorCxC"}]
["/*",null,{"$f":"'800111A GeneraXBRL'!$D$184","v":"Primer apellido deudor"},{"$f":"'800111A GeneraXBRL'!$C$184","v":"co-svsp-core:PrimerApellidoDeudorCxC"}]
["/*",null,{"$f":"'800111A GeneraXBRL'!$D$185","v":"Segundo apellido deudor"},{"$f":"'800111A GeneraXBRL'!$C$185","v":"co-svsp-core:SegundoApellidoDeudorCxC"}]
["/*",null,{"$f":"'800111A GeneraXBRL'!$D$186","v":"Primer nombre deudor"},{"$f":"'800111A GeneraXBRL'!$C$186","v":"co-svsp-core:PrimerNombreDeudorCxC"}]
["/*",null,{"$f":"'800111A GeneraXBRL'!$D$187","v":"Otros nombres deudor"},{"$f":"'800111A GeneraXBRL'!$C$187","v":"co-svsp-core:OtrosNombresDeudorCxC"}]
["/*",null,{"$f":"'800111A GeneraXBRL'!$D$188","v":"Razón Social deudor"},{"$f":"'800111A GeneraXBRL'!$C$188","v":"co-svsp-core:RazonSocialDeudorCxC"}]
["/*",null,{"$f":"'800111A GeneraXBRL'!$D$189","v":"Dirección deudor"},{"$f":"'800111A GeneraXBRL'!$C$189","v":"co-svsp-core:DireccionDeudorCxC"}]
["/*",null,{"$f":"'800111A GeneraXBRL'!$D$190","v":"Departamento deudor"},{"$f":"'800111A GeneraXBRL'!$C$190","v":"co-svsp-core:DepartamentoDeudorCxC"}]
["/*",null,{"$f":"'800111A GeneraXBRL'!$D$191","v":"Municipio deudor"},{"$f":"'800111A GeneraXBRL'!$C$191","v":"co-svsp-core:MunicipioDeudorCxC"}]
["/*",null,{"$f":"'800111A GeneraXBRL'!$D$192","v":"País deudor"},{"$f":"'800111A GeneraXBRL'!$C$192","v":"co-svsp-core:PaisDeudorCxC"}]
["/*",null,{"$f":"'800111A GeneraXBRL'!$D$193","v":"Saldo cuentas por cobrar"},{"$f":"'800111A GeneraXBRL'!$C$193","v":"co-svsp-core:SaldoCuentasPorCobrarCxC"}]
["/*",null,"--31--"]
["/*",null,{"$f":"'800111A GeneraXBRL'!$D$182","v":"Tipo de documento del deudor"},{"$f":"'800111A GeneraXBRL'!$C$182","v":"co-svsp-core:TipoDeDocumentoDeudorCxC"}]
["/*",null,{"$f":"'800111A GeneraXBRL'!$D$183","v":"Número de identificación del deudor"},{"$f":"'800111A GeneraXBRL'!$C$183","v":"co-svsp-core:NumeroIdentificacionDeudorCxC"}]
["/*",null,{"$f":"'800111A GeneraXBRL'!$D$184","v":"Primer apellido deudor"},{"$f":"'800111A GeneraXBRL'!$C$184","v":"co-svsp-core:PrimerApellidoDeudorCxC"}]
["/*",null,{"$f":"'800111A GeneraXBRL'!$D$185","v":"Segundo apellido deudor"},{"$f":"'800111A GeneraXBRL'!$C$185","v":"co-svsp-core:SegundoApellidoDeudorCxC"}]
["/*",null,{"$f":"'800111A GeneraXBRL'!$D$186","v":"Primer nombre deudor"},{"$f":"'800111A GeneraXBRL'!$C$186","v":"co-svsp-core:PrimerNombreDeudorCxC"}]
["/*",null,{"$f":"'800111A GeneraXBRL'!$D$187","v":"Otros nombres deudor"},{"$f":"'800111A GeneraXBRL'!$C$187","v":"co-svsp-core:OtrosNombresDeudorCxC"}]
["/*",null,{"$f":"'800111A GeneraXBRL'!$D$188","v":"Razón Social deudor"},{"$f":"'800111A GeneraXBRL'!$C$188","v":"co-svsp-core:RazonSocialDeudorCxC"}]
["/*",null,{"$f":"'800111A GeneraXBRL'!$D$189","v":"Dirección deudor"},{"$f":"'800111A GeneraXBRL'!$C$189","v":"co-svsp-core:DireccionDeudorCxC"}]
["/*",null,{"$f":"'800111A GeneraXBRL'!$D$190","v":"Departamento deudor"},{"$f":"'800111A GeneraXBRL'!$C$190","v":"co-svsp-core:DepartamentoDeudorCxC"}]
["/*",null,{"$f":"'800111A GeneraXBRL'!$D$191","v":"Municipio deudor"},{"$f":"'800111A GeneraXBRL'!$C$191","v":"co-svsp-core:MunicipioDeudorCxC"}]
["/*",null,{"$f":"'800111A GeneraXBRL'!$D$192","v":"País deudor"},{"$f":"'800111A GeneraXBRL'!$C$192","v":"co-svsp-core:PaisDeudorCxC"}]
["/*",null,{"$f":"'800111A GeneraXBRL'!$D$193","v":"Saldo cuentas por cobrar"},{"$f":"'800111A GeneraXBRL'!$C$193","v":"co-svsp-core:SaldoCuentasPorCobrarCxC"}]
["/*",null,"--32--"]
["/*",null,{"$f":"'800111A GeneraXBRL'!$D$182","v":"Tipo de documento del deudor"},{"$f":"'800111A GeneraXBRL'!$C$182","v":"co-svsp-core:TipoDeDocumentoDeudorCxC"}]
["/*",null,{"$f":"'800111A GeneraXBRL'!$D$183","v":"Número de identificación del deudor"},{"$f":"'800111A GeneraXBRL'!$C$183","v":"co-svsp-core:NumeroIdentificacionDeudorCxC"}]
["/*",null,{"$f":"'800111A GeneraXBRL'!$D$184","v":"Primer apellido deudor"},{"$f":"'800111A GeneraXBRL'!$C$184","v":"co-svsp-core:PrimerApellidoDeudorCxC"}]
["/*",null,{"$f":"'800111A GeneraXBRL'!$D$185","v":"Segundo apellido deudor"},{"$f":"'800111A GeneraXBRL'!$C$185","v":"co-svsp-core:SegundoApellidoDeudorCxC"}]
["/*",null,{"$f":"'800111A GeneraXBRL'!$D$186","v":"Primer nombre deudor"},{"$f":"'800111A GeneraXBRL'!$C$186","v":"co-svsp-core:PrimerNombreDeudorCxC"}]
["/*",null,{"$f":"'800111A GeneraXBRL'!$D$187","v":"Otros nombres deudor"},{"$f":"'800111A GeneraXBRL'!$C$187","v":"co-svsp-core:OtrosNombresDeudorCxC"}]
["/*",null,{"$f":"'800111A GeneraXBRL'!$D$188","v":"Razón Social deudor"},{"$f":"'800111A GeneraXBRL'!$C$188","v":"co-svsp-core:RazonSocialDeudorCxC"}]
["/*",null,{"$f":"'800111A GeneraXBRL'!$D$189","v":"Dirección deudor"},{"$f":"'800111A GeneraXBRL'!$C$189","v":"co-svsp-core:DireccionDeudorCxC"}]
["/*",null,{"$f":"'800111A GeneraXBRL'!$D$190","v":"Departamento deudor"},{"$f":"'800111A GeneraXBRL'!$C$190","v":"co-svsp-core:DepartamentoDeudorCxC"}]
["/*",null,{"$f":"'800111A GeneraXBRL'!$D$191","v":"Municipio deudor"},{"$f":"'800111A GeneraXBRL'!$C$191","v":"co-svsp-core:MunicipioDeudorCxC"}]
["/*",null,{"$f":"'800111A GeneraXBRL'!$D$192","v":"País deudor"},{"$f":"'800111A GeneraXBRL'!$C$192","v":"co-svsp-core:PaisDeudorCxC"}]
["/*",null,{"$f":"'800111A GeneraXBRL'!$D$193","v":"Saldo cuentas por cobrar"},{"$f":"'800111A GeneraXBRL'!$C$193","v":"co-svsp-core:SaldoCuentasPorCobrarCxC"}]
["/*",null,"--33--"]
["/*",null,{"$f":"'800111A GeneraXBRL'!$D$182","v":"Tipo de documento del deudor"},{"$f":"'800111A GeneraXBRL'!$C$182","v":"co-svsp-core:TipoDeDocumentoDeudorCxC"}]
["/*",null,{"$f":"'800111A GeneraXBRL'!$D$183","v":"Número de identificación del deudor"},{"$f":"'800111A GeneraXBRL'!$C$183","v":"co-svsp-core:NumeroIdentificacionDeudorCxC"}]
["/*",null,{"$f":"'800111A GeneraXBRL'!$D$184","v":"Primer apellido deudor"},{"$f":"'800111A GeneraXBRL'!$C$184","v":"co-svsp-core:PrimerApellidoDeudorCxC"}]
["/*",null,{"$f":"'800111A GeneraXBRL'!$D$185","v":"Segundo apellido deudor"},{"$f":"'800111A GeneraXBRL'!$C$185","v":"co-svsp-core:SegundoApellidoDeudorCxC"}]
["/*",null,{"$f":"'800111A GeneraXBRL'!$D$186","v":"Primer nombre deudor"},{"$f":"'800111A GeneraXBRL'!$C$186","v":"co-svsp-core:PrimerNombreDeudorCxC"}]
["/*",null,{"$f":"'800111A GeneraXBRL'!$D$187","v":"Otros nombres deudor"},{"$f":"'800111A GeneraXBRL'!$C$187","v":"co-svsp-core:OtrosNombresDeudorCxC"}]
["/*",null,{"$f":"'800111A GeneraXBRL'!$D$188","v":"Razón Social deudor"},{"$f":"'800111A GeneraXBRL'!$C$188","v":"co-svsp-core:RazonSocialDeudorCxC"}]
["/*",null,{"$f":"'800111A GeneraXBRL'!$D$189","v":"Dirección deudor"},{"$f":"'800111A GeneraXBRL'!$C$189","v":"co-svsp-core:DireccionDeudorCxC"}]
["/*",null,{"$f":"'800111A GeneraXBRL'!$D$190","v":"Departamento deudor"},{"$f":"'800111A GeneraXBRL'!$C$190","v":"co-svsp-core:DepartamentoDeudorCxC"}]
["/*",null,{"$f":"'800111A GeneraXBRL'!$D$191","v":"Municipio deudor"},{"$f":"'800111A GeneraXBRL'!$C$191","v":"co-svsp-core:MunicipioDeudorCxC"}]
["/*",null,{"$f":"'800111A GeneraXBRL'!$D$192","v":"País deudor"},{"$f":"'800111A GeneraXBRL'!$C$192","v":"co-svsp-core:PaisDeudorCxC"}]
["/*",null,{"$f":"'800111A GeneraXBRL'!$D$193","v":"Saldo cuentas por cobrar"},{"$f":"'800111A GeneraXBRL'!$C$193","v":"co-svsp-core:SaldoCuentasPorCobrarCxC"}]
["/*",null,"--34--"]
["/*",null,{"$f":"'800111A GeneraXBRL'!$D$182","v":"Tipo de documento del deudor"},{"$f":"'800111A GeneraXBRL'!$C$182","v":"co-svsp-core:TipoDeDocumentoDeudorCxC"}]
["/*",null,{"$f":"'800111A GeneraXBRL'!$D$183","v":"Número de identificación del deudor"},{"$f":"'800111A GeneraXBRL'!$C$183","v":"co-svsp-core:NumeroIdentificacionDeudorCxC"}]
["/*",null,{"$f":"'800111A GeneraXBRL'!$D$184","v":"Primer apellido deudor"},{"$f":"'800111A GeneraXBRL'!$C$184","v":"co-svsp-core:PrimerApellidoDeudorCxC"}]
["/*",null,{"$f":"'800111A GeneraXBRL'!$D$185","v":"Segundo apellido deudor"},{"$f":"'800111A GeneraXBRL'!$C$185","v":"co-svsp-core:SegundoApellidoDeudorCxC"}]
["/*",null,{"$f":"'800111A GeneraXBRL'!$D$186","v":"Primer nombre deudor"},{"$f":"'800111A GeneraXBRL'!$C$186","v":"co-svsp-core:PrimerNombreDeudorCxC"}]
["/*",null,{"$f":"'800111A GeneraXBRL'!$D$187","v":"Otros nombres deudor"},{"$f":"'800111A GeneraXBRL'!$C$187","v":"co-svsp-core:OtrosNombresDeudorCxC"}]
["/*",null,{"$f":"'800111A GeneraXBRL'!$D$188","v":"Razón Social deudor"},{"$f":"'800111A GeneraXBRL'!$C$188","v":"co-svsp-core:RazonSocialDeudorCxC"}]
[{"$f":"IF(G2976=\"\",\"/*\",\"\")","v":"/*"},null,{"$f":"'800111A GeneraXBRL'!$D$189","v":"Dirección deudor"},{"$f":"'800111A GeneraXBRL'!$C$189","v":"co-svsp-core:DireccionDeudorCxC"}]
["/*",null,{"$f":"'800111A GeneraXBRL'!$D$190","v":"Departamento deudor"},{"$f":"'800111A GeneraXBRL'!$C$190","v":"co-svsp-core:DepartamentoDeudorCxC"}]
["/*",null,{"$f":"'800111A GeneraXBRL'!$D$191","v":"Municipio deudor"},{"$f":"'800111A GeneraXBRL'!$C$191","v":"co-svsp-core:MunicipioDeudorCxC"}]
["/*",null,{"$f":"'800111A GeneraXBRL'!$D$192","v":"País deudor"},{"$f":"'800111A GeneraXBRL'!$C$192","v":"co-svsp-core:PaisDeudorCxC"}]
["/*",null,{"$f":"'800111A GeneraXBRL'!$D$193","v":"Saldo cuentas por cobrar"},{"$f":"'800111A GeneraXBRL'!$C$193","v":"co-svsp-core:SaldoCuentasPorCobrarCxC"}]
["/*",null,"--35--"]
["/*",null,{"$f":"'800111A GeneraXBRL'!$D$182","v":"Tipo de documento del deudor"},{"$f":"'800111A GeneraXBRL'!$C$182","v":"co-svsp-core:TipoDeDocumentoDeudorCxC"}]
["/*",null,{"$f":"'800111A GeneraXBRL'!$D$183","v":"Número de identificación del deudor"},{"$f":"'800111A GeneraXBRL'!$C$183","v":"co-svsp-core:NumeroIdentificacionDeudorCxC"}]
["/*",null,{"$f":"'800111A GeneraXBRL'!$D$184","v":"Primer apellido deudor"},{"$f":"'800111A GeneraXBRL'!$C$184","v":"co-svsp-core:PrimerApellidoDeudorCxC"}]
["/*",null,{"$f":"'800111A GeneraXBRL'!$D$185","v":"Segundo apellido deudor"},{"$f":"'800111A GeneraXBRL'!$C$185","v":"co-svsp-core:SegundoApellidoDeudorCxC"}]
["/*",null,{"$f":"'800111A GeneraXBRL'!$D$186","v":"Primer nombre deudor"},{"$f":"'800111A GeneraXBRL'!$C$186","v":"co-svsp-core:PrimerNombreDeudorCxC"}]
["/*",null,{"$f":"'800111A GeneraXBRL'!$D$187","v":"Otros nombres deudor"},{"$f":"'800111A GeneraXBRL'!$C$187","v":"co-svsp-core:OtrosNombresDeudorCxC"}]
["/*",null,{"$f":"'800111A GeneraXBRL'!$D$188","v":"Razón Social deudor"},{"$f":"'800111A GeneraXBRL'!$C$188","v":"co-svsp-core:RazonSocialDeudorCxC"}]
["/*",null,{"$f":"'800111A GeneraXBRL'!$D$189","v":"Dirección deudor"},{"$f":"'800111A GeneraXBRL'!$C$189","v":"co-svsp-core:DireccionDeudorCxC"}]
["/*",null,{"$f":"'800111A GeneraXBRL'!$D$190","v":"Departamento deudor"},{"$f":"'800111A GeneraXBRL'!$C$190","v":"co-svsp-core:DepartamentoDeudorCxC"}]
["/*",null,{"$f":"'800111A GeneraXBRL'!$D$191","v":"Municipio deudor"},{"$f":"'800111A GeneraXBRL'!$C$191","v":"co-svsp-core:MunicipioDeudorCxC"}]
["/*",null,{"$f":"'800111A GeneraXBRL'!$D$192","v":"País deudor"},{"$f":"'800111A GeneraXBRL'!$C$192","v":"co-svsp-core:PaisDeudorCxC"}]
["/*",null,{"$f":"'800111A GeneraXBRL'!$D$193","v":"Saldo cuentas por cobrar"},{"$f":"'800111A GeneraXBRL'!$C$193","v":"co-svsp-core:SaldoCuentasPorCobrarCxC"}]
["/*",null,"--36--"]
["/*",null,{"$f":"'800111A GeneraXBRL'!$D$182","v":"Tipo de documento del deudor"},{"$f":"'800111A GeneraXBRL'!$C$182","v":"co-svsp-core:TipoDeDocumentoDeudorCxC"}]
["/*",null,{"$f":"'800111A GeneraXBRL'!$D$183","v":"Número de identificación del deudor"},{"$f":"'800111A GeneraXBRL'!$C$183","v":"co-svsp-core:NumeroIdentificacionDeudorCxC"}]
["/*",null,{"$f":"'800111A GeneraXBRL'!$D$184","v":"Primer apellido deudor"},{"$f":"'800111A GeneraXBRL'!$C$184","v":"co-svsp-core:PrimerApellidoDeudorCxC"}]
["/*",null,{"$f":"'800111A GeneraXBRL'!$D$185","v":"Segundo apellido deudor"},{"$f":"'800111A GeneraXBRL'!$C$185","v":"co-svsp-core:SegundoApellidoDeudorCxC"}]
["/*",null,{"$f":"'800111A GeneraXBRL'!$D$186","v":"Primer nombre deudor"},{"$f":"'800111A GeneraXBRL'!$C$186","v":"co-svsp-core:PrimerNombreDeudorCxC"}]
["/*",null,{"$f":"'800111A GeneraXBRL'!$D$187","v":"Otros nombres deudor"},{"$f":"'800111A GeneraXBRL'!$C$187","v":"co-svsp-core:OtrosNombresDeudorCxC"}]
["/*",null,{"$f":"'800111A GeneraXBRL'!$D$188","v":"Razón Social deudor"},{"$f":"'800111A GeneraXBRL'!$C$188","v":"co-svsp-core:RazonSocialDeudorCxC"}]
["/*",null,{"$f":"'800111A GeneraXBRL'!$D$189","v":"Dirección deudor"},{"$f":"'800111A GeneraXBRL'!$C$189","v":"co-svsp-core:DireccionDeudorCxC"}]
["/*",null,{"$f":"'800111A GeneraXBRL'!$D$190","v":"Departamento deudor"},{"$f":"'800111A GeneraXBRL'!$C$190","v":"co-svsp-core:DepartamentoDeudorCxC"}]
["/*",null,{"$f":"'800111A GeneraXBRL'!$D$191","v":"Municipio deudor"},{"$f":"'800111A GeneraXBRL'!$C$191","v":"co-svsp-core:MunicipioDeudorCxC"}]
["/*",null,{"$f":"'800111A GeneraXBRL'!$D$192","v":"País deudor"},{"$f":"'800111A GeneraXBRL'!$C$192","v":"co-svsp-core:PaisDeudorCxC"}]
["/*",null,{"$f":"'800111A GeneraXBRL'!$D$193","v":"Saldo cuentas por cobrar"},{"$f":"'800111A GeneraXBRL'!$C$193","v":"co-svsp-core:SaldoCuentasPorCobrarCxC"}]
["/*",null,"--37--"]
["/*",null,{"$f":"'800111A GeneraXBRL'!$D$182","v":"Tipo de documento del deudor"},{"$f":"'800111A GeneraXBRL'!$C$182","v":"co-svsp-core:TipoDeDocumentoDeudorCxC"}]
["/*",null,{"$f":"'800111A GeneraXBRL'!$D$183","v":"Número de identificación del deudor"},{"$f":"'800111A GeneraXBRL'!$C$183","v":"co-svsp-core:NumeroIdentificacionDeudorCxC"}]
["/*",null,{"$f":"'800111A GeneraXBRL'!$D$184","v":"Primer apellido deudor"},{"$f":"'800111A GeneraXBRL'!$C$184","v":"co-svsp-core:PrimerApellidoDeudorCxC"}]
["/*",null,{"$f":"'800111A GeneraXBRL'!$D$185","v":"Segundo apellido deudor"},{"$f":"'800111A GeneraXBRL'!$C$185","v":"co-svsp-core:SegundoApellidoDeudorCxC"}]
["/*",null,{"$f":"'800111A GeneraXBRL'!$D$186","v":"Primer nombre deudor"},{"$f":"'800111A GeneraXBRL'!$C$186","v":"co-svsp-core:PrimerNombreDeudorCxC"}]
["/*",null,{"$f":"'800111A GeneraXBRL'!$D$187","v":"Otros nombres deudor"},{"$f":"'800111A GeneraXBRL'!$C$187","v":"co-svsp-core:OtrosNombresDeudorCxC"}]
["/*",null,{"$f":"'800111A GeneraXBRL'!$D$188","v":"Razón Social deudor"},{"$f":"'800111A GeneraXBRL'!$C$188","v":"co-svsp-core:RazonSocialDeudorCxC"}]
["/*",null,{"$f":"'800111A GeneraXBRL'!$D$189","v":"Dirección deudor"},{"$f":"'800111A GeneraXBRL'!$C$189","v":"co-svsp-core:DireccionDeudorCxC"}]
["/*",null,{"$f":"'800111A GeneraXBRL'!$D$190","v":"Departamento deudor"},{"$f":"'800111A GeneraXBRL'!$C$190","v":"co-svsp-core:DepartamentoDeudorCxC"}]
["/*",null,{"$f":"'800111A GeneraXBRL'!$D$191","v":"Municipio deudor"},{"$f":"'800111A GeneraXBRL'!$C$191","v":"co-svsp-core:MunicipioDeudorCxC"}]
["/*",null,{"$f":"'800111A GeneraXBRL'!$D$192","v":"País deudor"},{"$f":"'800111A GeneraXBRL'!$C$192","v":"co-svsp-core:PaisDeudorCxC"}]
["/*",null,{"$f":"'800111A GeneraXBRL'!$D$193","v":"Saldo cuentas por cobrar"},{"$f":"'800111A GeneraXBRL'!$C$193","v":"co-svsp-core:SaldoCuentasPorCobrarCxC"}]
["/*",null,"--38--"]
["/*",null,{"$f":"'800111A GeneraXBRL'!$D$182","v":"Tipo de documento del deudor"},{"$f":"'800111A GeneraXBRL'!$C$182","v":"co-svsp-core:TipoDeDocumentoDeudorCxC"}]
["/*",null,{"$f":"'800111A GeneraXBRL'!$D$183","v":"Número de identificación del deudor"},{"$f":"'800111A GeneraXBRL'!$C$183","v":"co-svsp-core:NumeroIdentificacionDeudorCxC"}]
["/*",null,{"$f":"'800111A GeneraXBRL'!$D$184","v":"Primer apellido deudor"},{"$f":"'800111A GeneraXBRL'!$C$184","v":"co-svsp-core:PrimerApellidoDeudorCxC"}]
["/*",null,{"$f":"'800111A GeneraXBRL'!$D$185","v":"Segundo apellido deudor"},{"$f":"'800111A GeneraXBRL'!$C$185","v":"co-svsp-core:SegundoApellidoDeudorCxC"}]
["/*",null,{"$f":"'800111A GeneraXBRL'!$D$186","v":"Primer nombre deudor"},{"$f":"'800111A GeneraXBRL'!$C$186","v":"co-svsp-core:PrimerNombreDeudorCxC"}]
["/*",null,{"$f":"'800111A GeneraXBRL'!$D$187","v":"Otros nombres deudor"},{"$f":"'800111A GeneraXBRL'!$C$187","v":"co-svsp-core:OtrosNombresDeudorCxC"}]
["/*",null,{"$f":"'800111A GeneraXBRL'!$D$188","v":"Razón Social deudor"},{"$f":"'800111A GeneraXBRL'!$C$188","v":"co-svsp-core:RazonSocialDeudorCxC"}]
["/*",null,{"$f":"'800111A GeneraXBRL'!$D$189","v":"Dirección deudor"},{"$f":"'800111A GeneraXBRL'!$C$189","v":"co-svsp-core:DireccionDeudorCxC"}]
["/*",null,{"$f":"'800111A GeneraXBRL'!$D$190","v":"Departamento deudor"},{"$f":"'800111A GeneraXBRL'!$C$190","v":"co-svsp-core:DepartamentoDeudorCxC"}]
["/*",null,{"$f":"'800111A GeneraXBRL'!$D$191","v":"Municipio deudor"},{"$f":"'800111A GeneraXBRL'!$C$191","v":"co-svsp-core:MunicipioDeudorCxC"}]
["/*",null,{"$f":"'800111A GeneraXBRL'!$D$192","v":"País deudor"},{"$f":"'800111A GeneraXBRL'!$C$192","v":"co-svsp-core:PaisDeudorCxC"}]
["/*",null,{"$f":"'800111A GeneraXBRL'!$D$193","v":"Saldo cuentas por cobrar"},{"$f":"'800111A GeneraXBRL'!$C$193","v":"co-svsp-core:SaldoCuentasPorCobrarCxC"}]
["/*",null,"--39--"]
["/*",null,{"$f":"'800111A GeneraXBRL'!$D$182","v":"Tipo de documento del deudor"},{"$f":"'800111A GeneraXBRL'!$C$182","v":"co-svsp-core:TipoDeDocumentoDeudorCxC"}]
["/*",null,{"$f":"'800111A GeneraXBRL'!$D$183","v":"Número de identificación del deudor"},{"$f":"'800111A GeneraXBRL'!$C$183","v":"co-svsp-core:NumeroIdentificacionDeudorCxC"}]
["/*",null,{"$f":"'800111A GeneraXBRL'!$D$184","v":"Primer apellido deudor"},{"$f":"'800111A GeneraXBRL'!$C$184","v":"co-svsp-core:PrimerApellidoDeudorCxC"}]
["/*",null,{"$f":"'800111A GeneraXBRL'!$D$185","v":"Segundo apellido deudor"},{"$f":"'800111A GeneraXBRL'!$C$185","v":"co-svsp-core:SegundoApellidoDeudorCxC"}]
["/*",null,{"$f":"'800111A GeneraXBRL'!$D$186","v":"Primer nombre deudor"},{"$f":"'800111A GeneraXBRL'!$C$186","v":"co-svsp-core:PrimerNombreDeudorCxC"}]
["/*",null,{"$f":"'800111A GeneraXBRL'!$D$187","v":"Otros nombres deudor"},{"$f":"'800111A GeneraXBRL'!$C$187","v":"co-svsp-core:OtrosNombresDeudorCxC"}]
[{"$f":"IF(G3040=\"\",\"/*\",\"\")","v":"/*"},null,{"$f":"'800111A GeneraXBRL'!$D$188","v":"Razón Social deudor"},{"$f":"'800111A GeneraXBRL'!$C$188","v":"co-svsp-core:RazonSocialDeudorCxC"}]
["/*",null,{"$f":"'800111A GeneraXBRL'!$D$189","v":"Dirección deudor"},{"$f":"'800111A GeneraXBRL'!$C$189","v":"co-svsp-core:DireccionDeudorCxC"}]
["/*",null,{"$f":"'800111A GeneraXBRL'!$D$190","v":"Departamento deudor"},{"$f":"'800111A GeneraXBRL'!$C$190","v":"co-svsp-core:DepartamentoDeudorCxC"}]
["/*",null,{"$f":"'800111A GeneraXBRL'!$D$191","v":"Municipio deudor"},{"$f":"'800111A GeneraXBRL'!$C$191","v":"co-svsp-core:MunicipioDeudorCxC"}]
["/*",null,{"$f":"'800111A GeneraXBRL'!$D$192","v":"País deudor"},{"$f":"'800111A GeneraXBRL'!$C$192","v":"co-svsp-core:PaisDeudorCxC"}]
["/*",null,{"$f":"'800111A GeneraXBRL'!$D$193","v":"Saldo cuentas por cobrar"},{"$f":"'800111A GeneraXBRL'!$C$193","v":"co-svsp-core:SaldoCuentasPorCobrarCxC"}]
["/*",null,"--40--"]
["/*",null,{"$f":"'800111A GeneraXBRL'!$D$182","v":"Tipo de documento del deudor"},{"$f":"'800111A GeneraXBRL'!$C$182","v":"co-svsp-core:TipoDeDocumentoDeudorCxC"}]
["/*",null,{"$f":"'800111A GeneraXBRL'!$D$183","v":"Número de identificación del deudor"},{"$f":"'800111A GeneraXBRL'!$C$183","v":"co-svsp-core:NumeroIdentificacionDeudorCxC"}]
["/*",null,{"$f":"'800111A GeneraXBRL'!$D$184","v":"Primer apellido deudor"},{"$f":"'800111A GeneraXBRL'!$C$184","v":"co-svsp-core:PrimerApellidoDeudorCxC"}]
["/*",null,{"$f":"'800111A GeneraXBRL'!$D$185","v":"Segundo apellido deudor"},{"$f":"'800111A GeneraXBRL'!$C$185","v":"co-svsp-core:SegundoApellidoDeudorCxC"}]
["/*",null,{"$f":"'800111A GeneraXBRL'!$D$186","v":"Primer nombre deudor"},{"$f":"'800111A GeneraXBRL'!$C$186","v":"co-svsp-core:PrimerNombreDeudorCxC"}]
["/*",null,{"$f":"'800111A GeneraXBRL'!$D$187","v":"Otros nombres deudor"},{"$f":"'800111A GeneraXBRL'!$C$187","v":"co-svsp-core:OtrosNombresDeudorCxC"}]
["/*",null,{"$f":"'800111A GeneraXBRL'!$D$188","v":"Razón Social deudor"},{"$f":"'800111A GeneraXBRL'!$C$188","v":"co-svsp-core:RazonSocialDeudorCxC"}]
["/*",null,{"$f":"'800111A GeneraXBRL'!$D$189","v":"Dirección deudor"},{"$f":"'800111A GeneraXBRL'!$C$189","v":"co-svsp-core:DireccionDeudorCxC"}]
["/*",null,{"$f":"'800111A GeneraXBRL'!$D$190","v":"Departamento deudor"},{"$f":"'800111A GeneraXBRL'!$C$190","v":"co-svsp-core:DepartamentoDeudorCxC"}]
["/*",null,{"$f":"'800111A GeneraXBRL'!$D$191","v":"Municipio deudor"},{"$f":"'800111A GeneraXBRL'!$C$191","v":"co-svsp-core:MunicipioDeudorCxC"}]
["/*",null,{"$f":"'800111A GeneraXBRL'!$D$192","v":"País deudor"},{"$f":"'800111A GeneraXBRL'!$C$192","v":"co-svsp-core:PaisDeudorCxC"}]
["/*",null,{"$f":"'800111A GeneraXBRL'!$D$193","v":"Saldo cuentas por cobrar"},{"$f":"'800111A GeneraXBRL'!$C$193","v":"co-svsp-core:SaldoCuentasPorCobrarCxC"}]
["/*",null,"--41--"]
["/*",null,{"$f":"'800111A GeneraXBRL'!$D$182","v":"Tipo de documento del deudor"},{"$f":"'800111A GeneraXBRL'!$C$182","v":"co-svsp-core:TipoDeDocumentoDeudorCxC"}]
["/*",null,{"$f":"'800111A GeneraXBRL'!$D$183","v":"Número de identificación del deudor"},{"$f":"'800111A GeneraXBRL'!$C$183","v":"co-svsp-core:NumeroIdentificacionDeudorCxC"}]
["/*",null,{"$f":"'800111A GeneraXBRL'!$D$184","v":"Primer apellido deudor"},{"$f":"'800111A GeneraXBRL'!$C$184","v":"co-svsp-core:PrimerApellidoDeudorCxC"}]
["/*",null,{"$f":"'800111A GeneraXBRL'!$D$185","v":"Segundo apellido deudor"},{"$f":"'800111A GeneraXBRL'!$C$185","v":"co-svsp-core:SegundoApellidoDeudorCxC"}]
["/*",null,{"$f":"'800111A GeneraXBRL'!$D$186","v":"Primer nombre deudor"},{"$f":"'800111A GeneraXBRL'!$C$186","v":"co-svsp-core:PrimerNombreDeudorCxC"}]
["/*",null,{"$f":"'800111A GeneraXBRL'!$D$187","v":"Otros nombres deudor"},{"$f":"'800111A GeneraXBRL'!$C$187","v":"co-svsp-core:OtrosNombresDeudorCxC"}]
["/*",null,{"$f":"'800111A GeneraXBRL'!$D$188","v":"Razón Social deudor"},{"$f":"'800111A GeneraXBRL'!$C$188","v":"co-svsp-core:RazonSocialDeudorCxC"}]
["/*",null,{"$f":"'800111A GeneraXBRL'!$D$189","v":"Dirección deudor"},{"$f":"'800111A GeneraXBRL'!$C$189","v":"co-svsp-core:DireccionDeudorCxC"}]
["/*",null,{"$f":"'800111A GeneraXBRL'!$D$190","v":"Departamento deudor"},{"$f":"'800111A GeneraXBRL'!$C$190","v":"co-svsp-core:DepartamentoDeudorCxC"}]
["/*",null,{"$f":"'800111A GeneraXBRL'!$D$191","v":"Municipio deudor"},{"$f":"'800111A GeneraXBRL'!$C$191","v":"co-svsp-core:MunicipioDeudorCxC"}]
["/*",null,{"$f":"'800111A GeneraXBRL'!$D$192","v":"País deudor"},{"$f":"'800111A GeneraXBRL'!$C$192","v":"co-svsp-core:PaisDeudorCxC"}]
["/*",null,{"$f":"'800111A GeneraXBRL'!$D$193","v":"Saldo cuentas por cobrar"},{"$f":"'800111A GeneraXBRL'!$C$193","v":"co-svsp-core:SaldoCuentasPorCobrarCxC"}]
["/*",null,"--42--"]
["/*",null,{"$f":"'800111A GeneraXBRL'!$D$182","v":"Tipo de documento del deudor"},{"$f":"'800111A GeneraXBRL'!$C$182","v":"co-svsp-core:TipoDeDocumentoDeudorCxC"}]
["/*",null,{"$f":"'800111A GeneraXBRL'!$D$183","v":"Número de identificación del deudor"},{"$f":"'800111A GeneraXBRL'!$C$183","v":"co-svsp-core:NumeroIdentificacionDeudorCxC"}]
["/*",null,{"$f":"'800111A GeneraXBRL'!$D$184","v":"Primer apellido deudor"},{"$f":"'800111A GeneraXBRL'!$C$184","v":"co-svsp-core:PrimerApellidoDeudorCxC"}]
["/*",null,{"$f":"'800111A GeneraXBRL'!$D$185","v":"Segundo apellido deudor"},{"$f":"'800111A GeneraXBRL'!$C$185","v":"co-svsp-core:SegundoApellidoDeudorCxC"}]
["/*",null,{"$f":"'800111A GeneraXBRL'!$D$186","v":"Primer nombre deudor"},{"$f":"'800111A GeneraXBRL'!$C$186","v":"co-svsp-core:PrimerNombreDeudorCxC"}]
["/*",null,{"$f":"'800111A GeneraXBRL'!$D$187","v":"Otros nombres deudor"},{"$f":"'800111A GeneraXBRL'!$C$187","v":"co-svsp-core:OtrosNombresDeudorCxC"}]
["/*",null,{"$f":"'800111A GeneraXBRL'!$D$188","v":"Razón Social deudor"},{"$f":"'800111A GeneraXBRL'!$C$188","v":"co-svsp-core:RazonSocialDeudorCxC"}]
["/*",null,{"$f":"'800111A GeneraXBRL'!$D$189","v":"Dirección deudor"},{"$f":"'800111A GeneraXBRL'!$C$189","v":"co-svsp-core:DireccionDeudorCxC"}]
["/*",null,{"$f":"'800111A GeneraXBRL'!$D$190","v":"Departamento deudor"},{"$f":"'800111A GeneraXBRL'!$C$190","v":"co-svsp-core:DepartamentoDeudorCxC"}]
["/*",null,{"$f":"'800111A GeneraXBRL'!$D$191","v":"Municipio deudor"},{"$f":"'800111A GeneraXBRL'!$C$191","v":"co-svsp-core:MunicipioDeudorCxC"}]
["/*",null,{"$f":"'800111A GeneraXBRL'!$D$192","v":"País deudor"},{"$f":"'800111A GeneraXBRL'!$C$192","v":"co-svsp-core:PaisDeudorCxC"}]
["/*",null,{"$f":"'800111A GeneraXBRL'!$D$193","v":"Saldo cuentas por cobrar"},{"$f":"'800111A GeneraXBRL'!$C$193","v":"co-svsp-core:SaldoCuentasPorCobrarCxC"}]
["/*",null,"--43--"]
["/*",null,{"$f":"'800111A GeneraXBRL'!$D$182","v":"Tipo de documento del deudor"},{"$f":"'800111A GeneraXBRL'!$C$182","v":"co-svsp-core:TipoDeDocumentoDeudorCxC"}]
["/*",null,{"$f":"'800111A GeneraXBRL'!$D$183","v":"Número de identificación del deudor"},{"$f":"'800111A GeneraXBRL'!$C$183","v":"co-svsp-core:NumeroIdentificacionDeudorCxC"}]
["/*",null,{"$f":"'800111A GeneraXBRL'!$D$184","v":"Primer apellido deudor"},{"$f":"'800111A GeneraXBRL'!$C$184","v":"co-svsp-core:PrimerApellidoDeudorCxC"}]
["/*",null,{"$f":"'800111A GeneraXBRL'!$D$185","v":"Segundo apellido deudor"},{"$f":"'800111A GeneraXBRL'!$C$185","v":"co-svsp-core:SegundoApellidoDeudorCxC"}]
["/*",null,{"$f":"'800111A GeneraXBRL'!$D$186","v":"Primer nombre deudor"},{"$f":"'800111A GeneraXBRL'!$C$186","v":"co-svsp-core:PrimerNombreDeudorCxC"}]
["/*",null,{"$f":"'800111A GeneraXBRL'!$D$187","v":"Otros nombres deudor"},{"$f":"'800111A GeneraXBRL'!$C$187","v":"co-svsp-core:OtrosNombresDeudorCxC"}]
["/*",null,{"$f":"'800111A GeneraXBRL'!$D$188","v":"Razón Social deudor"},{"$f":"'800111A GeneraXBRL'!$C$188","v":"co-svsp-core:RazonSocialDeudorCxC"}]
["/*",null,{"$f":"'800111A GeneraXBRL'!$D$189","v":"Dirección deudor"},{"$f":"'800111A GeneraXBRL'!$C$189","v":"co-svsp-core:DireccionDeudorCxC"}]
["/*",null,{"$f":"'800111A GeneraXBRL'!$D$190","v":"Departamento deudor"},{"$f":"'800111A GeneraXBRL'!$C$190","v":"co-svsp-core:DepartamentoDeudorCxC"}]
["/*",null,{"$f":"'800111A GeneraXBRL'!$D$191","v":"Municipio deudor"},{"$f":"'800111A GeneraXBRL'!$C$191","v":"co-svsp-core:MunicipioDeudorCxC"}]
["/*",null,{"$f":"'800111A GeneraXBRL'!$D$192","v":"País deudor"},{"$f":"'800111A GeneraXBRL'!$C$192","v":"co-svsp-core:PaisDeudorCxC"}]
["/*",null,{"$f":"'800111A GeneraXBRL'!$D$193","v":"Saldo cuentas por cobrar"},{"$f":"'800111A GeneraXBRL'!$C$193","v":"co-svsp-core:SaldoCuentasPorCobrarCxC"}]
["/*",null,"--44--"]
["/*",null,{"$f":"'800111A GeneraXBRL'!$D$182","v":"Tipo de documento del deudor"},{"$f":"'800111A GeneraXBRL'!$C$182","v":"co-svsp-core:TipoDeDocumentoDeudorCxC"}]
["/*",null,{"$f":"'800111A GeneraXBRL'!$D$183","v":"Número de identificación del deudor"},{"$f":"'800111A GeneraXBRL'!$C$183","v":"co-svsp-core:NumeroIdentificacionDeudorCxC"}]
["/*",null,{"$f":"'800111A GeneraXBRL'!$D$184","v":"Primer apellido deudor"},{"$f":"'800111A GeneraXBRL'!$C$184","v":"co-svsp-core:PrimerApellidoDeudorCxC"}]
["/*",null,{"$f":"'800111A GeneraXBRL'!$D$185","v":"Segundo apellido deudor"},{"$f":"'800111A GeneraXBRL'!$C$185","v":"co-svsp-core:SegundoApellidoDeudorCxC"}]
["/*",null,{"$f":"'800111A GeneraXBRL'!$D$186","v":"Primer nombre deudor"},{"$f":"'800111A GeneraXBRL'!$C$186","v":"co-svsp-core:PrimerNombreDeudorCxC"}]
[{"$f":"IF(G3104=\"\",\"/*\",\"\")","v":"/*"},null,{"$f":"'800111A GeneraXBRL'!$D$187","v":"Otros nombres deudor"},{"$f":"'800111A GeneraXBRL'!$C$187","v":"co-svsp-core:OtrosNombresDeudorCxC"}]
["/*",null,{"$f":"'800111A GeneraXBRL'!$D$188","v":"Razón Social deudor"},{"$f":"'800111A GeneraXBRL'!$C$188","v":"co-svsp-core:RazonSocialDeudorCxC"}]
["/*",null,{"$f":"'800111A GeneraXBRL'!$D$189","v":"Dirección deudor"},{"$f":"'800111A GeneraXBRL'!$C$189","v":"co-svsp-core:DireccionDeudorCxC"}]
["/*",null,{"$f":"'800111A GeneraXBRL'!$D$190","v":"Departamento deudor"},{"$f":"'800111A GeneraXBRL'!$C$190","v":"co-svsp-core:DepartamentoDeudorCxC"}]
["/*",null,{"$f":"'800111A GeneraXBRL'!$D$191","v":"Municipio deudor"},{"$f":"'800111A GeneraXBRL'!$C$191","v":"co-svsp-core:MunicipioDeudorCxC"}]
["/*",null,{"$f":"'800111A GeneraXBRL'!$D$192","v":"País deudor"},{"$f":"'800111A GeneraXBRL'!$C$192","v":"co-svsp-core:PaisDeudorCxC"}]
["/*",null,{"$f":"'800111A GeneraXBRL'!$D$193","v":"Saldo cuentas por cobrar"},{"$f":"'800111A GeneraXBRL'!$C$193","v":"co-svsp-core:SaldoCuentasPorCobrarCxC"}]
["/*",null,"--45--"]
["/*",null,{"$f":"'800111A GeneraXBRL'!$D$182","v":"Tipo de documento del deudor"},{"$f":"'800111A GeneraXBRL'!$C$182","v":"co-svsp-core:TipoDeDocumentoDeudorCxC"}]
["/*",null,{"$f":"'800111A GeneraXBRL'!$D$183","v":"Número de identificación del deudor"},{"$f":"'800111A GeneraXBRL'!$C$183","v":"co-svsp-core:NumeroIdentificacionDeudorCxC"}]
["/*",null,{"$f":"'800111A GeneraXBRL'!$D$184","v":"Primer apellido deudor"},{"$f":"'800111A GeneraXBRL'!$C$184","v":"co-svsp-core:PrimerApellidoDeudorCxC"}]
["/*",null,{"$f":"'800111A GeneraXBRL'!$D$185","v":"Segundo apellido deudor"},{"$f":"'800111A GeneraXBRL'!$C$185","v":"co-svsp-core:SegundoApellidoDeudorCxC"}]
["/*",null,{"$f":"'800111A GeneraXBRL'!$D$186","v":"Primer nombre deudor"},{"$f":"'800111A GeneraXBRL'!$C$186","v":"co-svsp-core:PrimerNombreDeudorCxC"}]
["/*",null,{"$f":"'800111A GeneraXBRL'!$D$187","v":"Otros nombres deudor"},{"$f":"'800111A GeneraXBRL'!$C$187","v":"co-svsp-core:OtrosNombresDeudorCxC"}]
["/*",null,{"$f":"'800111A GeneraXBRL'!$D$188","v":"Razón Social deudor"},{"$f":"'800111A GeneraXBRL'!$C$188","v":"co-svsp-core:RazonSocialDeudorCxC"}]
["/*",null,{"$f":"'800111A GeneraXBRL'!$D$189","v":"Dirección deudor"},{"$f":"'800111A GeneraXBRL'!$C$189","v":"co-svsp-core:DireccionDeudorCxC"}]
["/*",null,{"$f":"'800111A GeneraXBRL'!$D$190","v":"Departamento deudor"},{"$f":"'800111A GeneraXBRL'!$C$190","v":"co-svsp-core:DepartamentoDeudorCxC"}]
["/*",null,{"$f":"'800111A GeneraXBRL'!$D$191","v":"Municipio deudor"},{"$f":"'800111A GeneraXBRL'!$C$191","v":"co-svsp-core:MunicipioDeudorCxC"}]
["/*",null,{"$f":"'800111A GeneraXBRL'!$D$192","v":"País deudor"},{"$f":"'800111A GeneraXBRL'!$C$192","v":"co-svsp-core:PaisDeudorCxC"}]
["/*",null,{"$f":"'800111A GeneraXBRL'!$D$193","v":"Saldo cuentas por cobrar"},{"$f":"'800111A GeneraXBRL'!$C$193","v":"co-svsp-core:SaldoCuentasPorCobrarCxC"}]
["/*",null,"--46--"]
["/*",null,{"$f":"'800111A GeneraXBRL'!$D$182","v":"Tipo de documento del deudor"},{"$f":"'800111A GeneraXBRL'!$C$182","v":"co-svsp-core:TipoDeDocumentoDeudorCxC"}]
["/*",null,{"$f":"'800111A GeneraXBRL'!$D$183","v":"Número de identificación del deudor"},{"$f":"'800111A GeneraXBRL'!$C$183","v":"co-svsp-core:NumeroIdentificacionDeudorCxC"}]
["/*",null,{"$f":"'800111A GeneraXBRL'!$D$184","v":"Primer apellido deudor"},{"$f":"'800111A GeneraXBRL'!$C$184","v":"co-svsp-core:PrimerApellidoDeudorCxC"}]
["/*",null,{"$f":"'800111A GeneraXBRL'!$D$185","v":"Segundo apellido deudor"},{"$f":"'800111A GeneraXBRL'!$C$185","v":"co-svsp-core:SegundoApellidoDeudorCxC"}]
["/*",null,{"$f":"'800111A GeneraXBRL'!$D$186","v":"Primer nombre deudor"},{"$f":"'800111A GeneraXBRL'!$C$186","v":"co-svsp-core:PrimerNombreDeudorCxC"}]
["/*",null,{"$f":"'800111A GeneraXBRL'!$D$187","v":"Otros nombres deudor"},{"$f":"'800111A GeneraXBRL'!$C$187","v":"co-svsp-core:OtrosNombresDeudorCxC"}]
["/*",null,{"$f":"'800111A GeneraXBRL'!$D$188","v":"Razón Social deudor"},{"$f":"'800111A GeneraXBRL'!$C$188","v":"co-svsp-core:RazonSocialDeudorCxC"}]
["/*",null,{"$f":"'800111A GeneraXBRL'!$D$189","v":"Dirección deudor"},{"$f":"'800111A GeneraXBRL'!$C$189","v":"co-svsp-core:DireccionDeudorCxC"}]
["/*",null,{"$f":"'800111A GeneraXBRL'!$D$190","v":"Departamento deudor"},{"$f":"'800111A GeneraXBRL'!$C$190","v":"co-svsp-core:DepartamentoDeudorCxC"}]
["/*",null,{"$f":"'800111A GeneraXBRL'!$D$191","v":"Municipio deudor"},{"$f":"'800111A GeneraXBRL'!$C$191","v":"co-svsp-core:MunicipioDeudorCxC"}]
["/*",null,{"$f":"'800111A GeneraXBRL'!$D$192","v":"País deudor"},{"$f":"'800111A GeneraXBRL'!$C$192","v":"co-svsp-core:PaisDeudorCxC"}]
["/*",null,{"$f":"'800111A GeneraXBRL'!$D$193","v":"Saldo cuentas por cobrar"},{"$f":"'800111A GeneraXBRL'!$C$193","v":"co-svsp-core:SaldoCuentasPorCobrarCxC"}]
["/*",null,"--47--"]
["/*",null,{"$f":"'800111A GeneraXBRL'!$D$182","v":"Tipo de documento del deudor"},{"$f":"'800111A GeneraXBRL'!$C$182","v":"co-svsp-core:TipoDeDocumentoDeudorCxC"}]
["/*",null,{"$f":"'800111A GeneraXBRL'!$D$183","v":"Número de identificación del deudor"},{"$f":"'800111A GeneraXBRL'!$C$183","v":"co-svsp-core:NumeroIdentificacionDeudorCxC"}]
["/*",null,{"$f":"'800111A GeneraXBRL'!$D$184","v":"Primer apellido deudor"},{"$f":"'800111A GeneraXBRL'!$C$184","v":"co-svsp-core:PrimerApellidoDeudorCxC"}]
["/*",null,{"$f":"'800111A GeneraXBRL'!$D$185","v":"Segundo apellido deudor"},{"$f":"'800111A GeneraXBRL'!$C$185","v":"co-svsp-core:SegundoApellidoDeudorCxC"}]
["/*",null,{"$f":"'800111A GeneraXBRL'!$D$186","v":"Primer nombre deudor"},{"$f":"'800111A GeneraXBRL'!$C$186","v":"co-svsp-core:PrimerNombreDeudorCxC"}]
["/*",null,{"$f":"'800111A GeneraXBRL'!$D$187","v":"Otros nombres deudor"},{"$f":"'800111A GeneraXBRL'!$C$187","v":"co-svsp-core:OtrosNombresDeudorCxC"}]
["/*",null,{"$f":"'800111A GeneraXBRL'!$D$188","v":"Razón Social deudor"},{"$f":"'800111A GeneraXBRL'!$C$188","v":"co-svsp-core:RazonSocialDeudorCxC"}]
["/*",null,{"$f":"'800111A GeneraXBRL'!$D$189","v":"Dirección deudor"},{"$f":"'800111A GeneraXBRL'!$C$189","v":"co-svsp-core:DireccionDeudorCxC"}]
["/*",null,{"$f":"'800111A GeneraXBRL'!$D$190","v":"Departamento deudor"},{"$f":"'800111A GeneraXBRL'!$C$190","v":"co-svsp-core:DepartamentoDeudorCxC"}]
["/*",null,{"$f":"'800111A GeneraXBRL'!$D$191","v":"Municipio deudor"},{"$f":"'800111A GeneraXBRL'!$C$191","v":"co-svsp-core:MunicipioDeudorCxC"}]
["/*",null,{"$f":"'800111A GeneraXBRL'!$D$192","v":"País deudor"},{"$f":"'800111A GeneraXBRL'!$C$192","v":"co-svsp-core:PaisDeudorCxC"}]
["/*",null,{"$f":"'800111A GeneraXBRL'!$D$193","v":"Saldo cuentas por cobrar"},{"$f":"'800111A GeneraXBRL'!$C$193","v":"co-svsp-core:SaldoCuentasPorCobrarCxC"}]
["/*",null,"--48--"]
["/*",null,{"$f":"'800111A GeneraXBRL'!$D$182","v":"Tipo de documento del deudor"},{"$f":"'800111A GeneraXBRL'!$C$182","v":"co-svsp-core:TipoDeDocumentoDeudorCxC"}]
["/*",null,{"$f":"'800111A GeneraXBRL'!$D$183","v":"Número de identificación del deudor"},{"$f":"'800111A GeneraXBRL'!$C$183","v":"co-svsp-core:NumeroIdentificacionDeudorCxC"}]
["/*",null,{"$f":"'800111A GeneraXBRL'!$D$184","v":"Primer apellido deudor"},{"$f":"'800111A GeneraXBRL'!$C$184","v":"co-svsp-core:PrimerApellidoDeudorCxC"}]
["/*",null,{"$f":"'800111A GeneraXBRL'!$D$185","v":"Segundo apellido deudor"},{"$f":"'800111A GeneraXBRL'!$C$185","v":"co-svsp-core:SegundoApellidoDeudorCxC"}]
["/*",null,{"$f":"'800111A GeneraXBRL'!$D$186","v":"Primer nombre deudor"},{"$f":"'800111A GeneraXBRL'!$C$186","v":"co-svsp-core:PrimerNombreDeudorCxC"}]
["/*",null,{"$f":"'800111A GeneraXBRL'!$D$187","v":"Otros nombres deudor"},{"$f":"'800111A GeneraXBRL'!$C$187","v":"co-svsp-core:OtrosNombresDeudorCxC"}]
["/*",null,{"$f":"'800111A GeneraXBRL'!$D$188","v":"Razón Social deudor"},{"$f":"'800111A GeneraXBRL'!$C$188","v":"co-svsp-core:RazonSocialDeudorCxC"}]
["/*",null,{"$f":"'800111A GeneraXBRL'!$D$189","v":"Dirección deudor"},{"$f":"'800111A GeneraXBRL'!$C$189","v":"co-svsp-core:DireccionDeudorCxC"}]
["/*",null,{"$f":"'800111A GeneraXBRL'!$D$190","v":"Departamento deudor"},{"$f":"'800111A GeneraXBRL'!$C$190","v":"co-svsp-core:DepartamentoDeudorCxC"}]
["/*",null,{"$f":"'800111A GeneraXBRL'!$D$191","v":"Municipio deudor"},{"$f":"'800111A GeneraXBRL'!$C$191","v":"co-svsp-core:MunicipioDeudorCxC"}]
["/*",null,{"$f":"'800111A GeneraXBRL'!$D$192","v":"País deudor"},{"$f":"'800111A GeneraXBRL'!$C$192","v":"co-svsp-core:PaisDeudorCxC"}]
["/*",null,{"$f":"'800111A GeneraXBRL'!$D$193","v":"Saldo cuentas por cobrar"},{"$f":"'800111A GeneraXBRL'!$C$193","v":"co-svsp-core:SaldoCuentasPorCobrarCxC"}]
["/*",null,"--49--"]
["/*",null,{"$f":"'800111A GeneraXBRL'!$D$182","v":"Tipo de documento del deudor"},{"$f":"'800111A GeneraXBRL'!$C$182","v":"co-svsp-core:TipoDeDocumentoDeudorCxC"}]
["/*",null,{"$f":"'800111A GeneraXBRL'!$D$183","v":"Número de identificación del deudor"},{"$f":"'800111A GeneraXBRL'!$C$183","v":"co-svsp-core:NumeroIdentificacionDeudorCxC"}]
["/*",null,{"$f":"'800111A GeneraXBRL'!$D$184","v":"Primer apellido deudor"},{"$f":"'800111A GeneraXBRL'!$C$184","v":"co-svsp-core:PrimerApellidoDeudorCxC"}]
["/*",null,{"$f":"'800111A GeneraXBRL'!$D$185","v":"Segundo apellido deudor"},{"$f":"'800111A GeneraXBRL'!$C$185","v":"co-svsp-core:SegundoApellidoDeudorCxC"}]
[{"$f":"IF(G3168=\"\",\"/*\",\"\")","v":"/*"},null,{"$f":"'800111A GeneraXBRL'!$D$186","v":"Primer nombre deudor"},{"$f":"'800111A GeneraXBRL'!$C$186","v":"co-svsp-core:PrimerNombreDeudorCxC"}]
["/*",null,{"$f":"'800111A GeneraXBRL'!$D$187","v":"Otros nombres deudor"},{"$f":"'800111A GeneraXBRL'!$C$187","v":"co-svsp-core:OtrosNombresDeudorCxC"}]
["/*",null,{"$f":"'800111A GeneraXBRL'!$D$188","v":"Razón Social deudor"},{"$f":"'800111A GeneraXBRL'!$C$188","v":"co-svsp-core:RazonSocialDeudorCxC"}]
["/*",null,{"$f":"'800111A GeneraXBRL'!$D$189","v":"Dirección deudor"},{"$f":"'800111A GeneraXBRL'!$C$189","v":"co-svsp-core:DireccionDeudorCxC"}]
["/*",null,{"$f":"'800111A GeneraXBRL'!$D$190","v":"Departamento deudor"},{"$f":"'800111A GeneraXBRL'!$C$190","v":"co-svsp-core:DepartamentoDeudorCxC"}]
["/*",null,{"$f":"'800111A GeneraXBRL'!$D$191","v":"Municipio deudor"},{"$f":"'800111A GeneraXBRL'!$C$191","v":"co-svsp-core:MunicipioDeudorCxC"}]
["/*",null,{"$f":"'800111A GeneraXBRL'!$D$192","v":"País deudor"},{"$f":"'800111A GeneraXBRL'!$C$192","v":"co-svsp-core:PaisDeudorCxC"}]
["/*",null,{"$f":"'800111A GeneraXBRL'!$D$193","v":"Saldo cuentas por cobrar"},{"$f":"'800111A GeneraXBRL'!$C$193","v":"co-svsp-core:SaldoCuentasPorCobrarCxC"}]
["/*",null,"--50--"]
["/*",null,{"$f":"'800111A GeneraXBRL'!$D$182","v":"Tipo de documento del deudor"},{"$f":"'800111A GeneraXBRL'!$C$182","v":"co-svsp-core:TipoDeDocumentoDeudorCxC"}]
["/*",null,{"$f":"'800111A GeneraXBRL'!$D$183","v":"Número de identificación del deudor"},{"$f":"'800111A GeneraXBRL'!$C$183","v":"co-svsp-core:NumeroIdentificacionDeudorCxC"}]
["/*",null,{"$f":"'800111A GeneraXBRL'!$D$184","v":"Primer apellido deudor"},{"$f":"'800111A GeneraXBRL'!$C$184","v":"co-svsp-core:PrimerApellidoDeudorCxC"}]
["/*",null,{"$f":"'800111A GeneraXBRL'!$D$185","v":"Segundo apellido deudor"},{"$f":"'800111A GeneraXBRL'!$C$185","v":"co-svsp-core:SegundoApellidoDeudorCxC"}]
["/*",null,{"$f":"'800111A GeneraXBRL'!$D$186","v":"Primer nombre deudor"},{"$f":"'800111A GeneraXBRL'!$C$186","v":"co-svsp-core:PrimerNombreDeudorCxC"}]
["/*",null,{"$f":"'800111A GeneraXBRL'!$D$187","v":"Otros nombres deudor"},{"$f":"'800111A GeneraXBRL'!$C$187","v":"co-svsp-core:OtrosNombresDeudorCxC"}]
["/*",null,{"$f":"'800111A GeneraXBRL'!$D$188","v":"Razón Social deudor"},{"$f":"'800111A GeneraXBRL'!$C$188","v":"co-svsp-core:RazonSocialDeudorCxC"}]
["/*",null,{"$f":"'800111A GeneraXBRL'!$D$189","v":"Dirección deudor"},{"$f":"'800111A GeneraXBRL'!$C$189","v":"co-svsp-core:DireccionDeudorCxC"}]
["/*",null,{"$f":"'800111A GeneraXBRL'!$D$190","v":"Departamento deudor"},{"$f":"'800111A GeneraXBRL'!$C$190","v":"co-svsp-core:DepartamentoDeudorCxC"}]
["/*",null,{"$f":"'800111A GeneraXBRL'!$D$191","v":"Municipio deudor"},{"$f":"'800111A GeneraXBRL'!$C$191","v":"co-svsp-core:MunicipioDeudorCxC"}]
["/*",null,{"$f":"'800111A GeneraXBRL'!$D$192","v":"País deudor"},{"$f":"'800111A GeneraXBRL'!$C$192","v":"co-svsp-core:PaisDeudorCxC"}]
["/*",null,{"$f":"'800111A GeneraXBRL'!$D$193","v":"Saldo cuentas por cobrar"},{"$f":"'800111A GeneraXBRL'!$C$193","v":"co-svsp-core:SaldoCuentasPorCobrarCxC"}]
["/*",null,"--51--"]
["/*",null,{"$f":"'800111A GeneraXBRL'!$D$182","v":"Tipo de documento del deudor"},{"$f":"'800111A GeneraXBRL'!$C$182","v":"co-svsp-core:TipoDeDocumentoDeudorCxC"}]
["/*",null,{"$f":"'800111A GeneraXBRL'!$D$183","v":"Número de identificación del deudor"},{"$f":"'800111A GeneraXBRL'!$C$183","v":"co-svsp-core:NumeroIdentificacionDeudorCxC"}]
["/*",null,{"$f":"'800111A GeneraXBRL'!$D$184","v":"Primer apellido deudor"},{"$f":"'800111A GeneraXBRL'!$C$184","v":"co-svsp-core:PrimerApellidoDeudorCxC"}]
["/*",null,{"$f":"'800111A GeneraXBRL'!$D$185","v":"Segundo apellido deudor"},{"$f":"'800111A GeneraXBRL'!$C$185","v":"co-svsp-core:SegundoApellidoDeudorCxC"}]
["/*",null,{"$f":"'800111A GeneraXBRL'!$D$186","v":"Primer nombre deudor"},{"$f":"'800111A GeneraXBRL'!$C$186","v":"co-svsp-core:PrimerNombreDeudorCxC"}]
["/*",null,{"$f":"'800111A GeneraXBRL'!$D$187","v":"Otros nombres deudor"},{"$f":"'800111A GeneraXBRL'!$C$187","v":"co-svsp-core:OtrosNombresDeudorCxC"}]
["/*",null,{"$f":"'800111A GeneraXBRL'!$D$188","v":"Razón Social deudor"},{"$f":"'800111A GeneraXBRL'!$C$188","v":"co-svsp-core:RazonSocialDeudorCxC"}]
["/*",null,{"$f":"'800111A GeneraXBRL'!$D$189","v":"Dirección deudor"},{"$f":"'800111A GeneraXBRL'!$C$189","v":"co-svsp-core:DireccionDeudorCxC"}]
["/*",null,{"$f":"'800111A GeneraXBRL'!$D$190","v":"Departamento deudor"},{"$f":"'800111A GeneraXBRL'!$C$190","v":"co-svsp-core:DepartamentoDeudorCxC"}]
["/*",null,{"$f":"'800111A GeneraXBRL'!$D$191","v":"Municipio deudor"},{"$f":"'800111A GeneraXBRL'!$C$191","v":"co-svsp-core:MunicipioDeudorCxC"}]
["/*",null,{"$f":"'800111A GeneraXBRL'!$D$192","v":"País deudor"},{"$f":"'800111A GeneraXBRL'!$C$192","v":"co-svsp-core:PaisDeudorCxC"}]
["/*",null,{"$f":"'800111A GeneraXBRL'!$D$193","v":"Saldo cuentas por cobrar"},{"$f":"'800111A GeneraXBRL'!$C$193","v":"co-svsp-core:SaldoCuentasPorCobrarCxC"}]
["/*",null,"--52--"]
["/*",null,{"$f":"'800111A GeneraXBRL'!$D$182","v":"Tipo de documento del deudor"},{"$f":"'800111A GeneraXBRL'!$C$182","v":"co-svsp-core:TipoDeDocumentoDeudorCxC"}]
["/*",null,{"$f":"'800111A GeneraXBRL'!$D$183","v":"Número de identificación del deudor"},{"$f":"'800111A GeneraXBRL'!$C$183","v":"co-svsp-core:NumeroIdentificacionDeudorCxC"}]
["/*",null,{"$f":"'800111A GeneraXBRL'!$D$184","v":"Primer apellido deudor"},{"$f":"'800111A GeneraXBRL'!$C$184","v":"co-svsp-core:PrimerApellidoDeudorCxC"}]
["/*",null,{"$f":"'800111A GeneraXBRL'!$D$185","v":"Segundo apellido deudor"},{"$f":"'800111A GeneraXBRL'!$C$185","v":"co-svsp-core:SegundoApellidoDeudorCxC"}]
["/*",null,{"$f":"'800111A GeneraXBRL'!$D$186","v":"Primer nombre deudor"},{"$f":"'800111A GeneraXBRL'!$C$186","v":"co-svsp-core:PrimerNombreDeudorCxC"}]
["/*",null,{"$f":"'800111A GeneraXBRL'!$D$187","v":"Otros nombres deudor"},{"$f":"'800111A GeneraXBRL'!$C$187","v":"co-svsp-core:OtrosNombresDeudorCxC"}]
["/*",null,{"$f":"'800111A GeneraXBRL'!$D$188","v":"Razón Social deudor"},{"$f":"'800111A GeneraXBRL'!$C$188","v":"co-svsp-core:RazonSocialDeudorCxC"}]
["/*",null,{"$f":"'800111A GeneraXBRL'!$D$189","v":"Dirección deudor"},{"$f":"'800111A GeneraXBRL'!$C$189","v":"co-svsp-core:DireccionDeudorCxC"}]
["/*",null,{"$f":"'800111A GeneraXBRL'!$D$190","v":"Departamento deudor"},{"$f":"'800111A GeneraXBRL'!$C$190","v":"co-svsp-core:DepartamentoDeudorCxC"}]
["/*",null,{"$f":"'800111A GeneraXBRL'!$D$191","v":"Municipio deudor"},{"$f":"'800111A GeneraXBRL'!$C$191","v":"co-svsp-core:MunicipioDeudorCxC"}]
["/*",null,{"$f":"'800111A GeneraXBRL'!$D$192","v":"País deudor"},{"$f":"'800111A GeneraXBRL'!$C$192","v":"co-svsp-core:PaisDeudorCxC"}]
["/*",null,{"$f":"'800111A GeneraXBRL'!$D$193","v":"Saldo cuentas por cobrar"},{"$f":"'800111A GeneraXBRL'!$C$193","v":"co-svsp-core:SaldoCuentasPorCobrarCxC"}]
["/*",null,"--53--"]
["/*",null,{"$f":"'800111A GeneraXBRL'!$D$182","v":"Tipo de documento del deudor"},{"$f":"'800111A GeneraXBRL'!$C$182","v":"co-svsp-core:TipoDeDocumentoDeudorCxC"}]
["/*",null,{"$f":"'800111A GeneraXBRL'!$D$183","v":"Número de identificación del deudor"},{"$f":"'800111A GeneraXBRL'!$C$183","v":"co-svsp-core:NumeroIdentificacionDeudorCxC"}]
["/*",null,{"$f":"'800111A GeneraXBRL'!$D$184","v":"Primer apellido deudor"},{"$f":"'800111A GeneraXBRL'!$C$184","v":"co-svsp-core:PrimerApellidoDeudorCxC"}]
["/*",null,{"$f":"'800111A GeneraXBRL'!$D$185","v":"Segundo apellido deudor"},{"$f":"'800111A GeneraXBRL'!$C$185","v":"co-svsp-core:SegundoApellidoDeudorCxC"}]
["/*",null,{"$f":"'800111A GeneraXBRL'!$D$186","v":"Primer nombre deudor"},{"$f":"'800111A GeneraXBRL'!$C$186","v":"co-svsp-core:PrimerNombreDeudorCxC"}]
["/*",null,{"$f":"'800111A GeneraXBRL'!$D$187","v":"Otros nombres deudor"},{"$f":"'800111A GeneraXBRL'!$C$187","v":"co-svsp-core:OtrosNombresDeudorCxC"}]
["/*",null,{"$f":"'800111A GeneraXBRL'!$D$188","v":"Razón Social deudor"},{"$f":"'800111A GeneraXBRL'!$C$188","v":"co-svsp-core:RazonSocialDeudorCxC"}]
["/*",null,{"$f":"'800111A GeneraXBRL'!$D$189","v":"Dirección deudor"},{"$f":"'800111A GeneraXBRL'!$C$189","v":"co-svsp-core:DireccionDeudorCxC"}]
["/*",null,{"$f":"'800111A GeneraXBRL'!$D$190","v":"Departamento deudor"},{"$f":"'800111A GeneraXBRL'!$C$190","v":"co-svsp-core:DepartamentoDeudorCxC"}]
["/*",null,{"$f":"'800111A GeneraXBRL'!$D$191","v":"Municipio deudor"},{"$f":"'800111A GeneraXBRL'!$C$191","v":"co-svsp-core:MunicipioDeudorCxC"}]
["/*",null,{"$f":"'800111A GeneraXBRL'!$D$192","v":"País deudor"},{"$f":"'800111A GeneraXBRL'!$C$192","v":"co-svsp-core:PaisDeudorCxC"}]
["/*",null,{"$f":"'800111A GeneraXBRL'!$D$193","v":"Saldo cuentas por cobrar"},{"$f":"'800111A GeneraXBRL'!$C$193","v":"co-svsp-core:SaldoCuentasPorCobrarCxC"}]
["/*",null,"--54--"]
["/*",null,{"$f":"'800111A GeneraXBRL'!$D$182","v":"Tipo de documento del deudor"},{"$f":"'800111A GeneraXBRL'!$C$182","v":"co-svsp-core:TipoDeDocumentoDeudorCxC"}]
["/*",null,{"$f":"'800111A GeneraXBRL'!$D$183","v":"Número de identificación del deudor"},{"$f":"'800111A GeneraXBRL'!$C$183","v":"co-svsp-core:NumeroIdentificacionDeudorCxC"}]
["/*",null,{"$f":"'800111A GeneraXBRL'!$D$184","v":"Primer apellido deudor"},{"$f":"'800111A GeneraXBRL'!$C$184","v":"co-svsp-core:PrimerApellidoDeudorCxC"}]
[{"$f":"IF(G3232=\"\",\"/*\",\"\")","v":"/*"},null,{"$f":"'800111A GeneraXBRL'!$D$185","v":"Segundo apellido deudor"},{"$f":"'800111A GeneraXBRL'!$C$185","v":"co-svsp-core:SegundoApellidoDeudorCxC"}]
["/*",null,{"$f":"'800111A GeneraXBRL'!$D$186","v":"Primer nombre deudor"},{"$f":"'800111A GeneraXBRL'!$C$186","v":"co-svsp-core:PrimerNombreDeudorCxC"}]
["/*",null,{"$f":"'800111A GeneraXBRL'!$D$187","v":"Otros nombres deudor"},{"$f":"'800111A GeneraXBRL'!$C$187","v":"co-svsp-core:OtrosNombresDeudorCxC"}]
["/*",null,{"$f":"'800111A GeneraXBRL'!$D$188","v":"Razón Social deudor"},{"$f":"'800111A GeneraXBRL'!$C$188","v":"co-svsp-core:RazonSocialDeudorCxC"}]
["/*",null,{"$f":"'800111A GeneraXBRL'!$D$189","v":"Dirección deudor"},{"$f":"'800111A GeneraXBRL'!$C$189","v":"co-svsp-core:DireccionDeudorCxC"}]
["/*",null,{"$f":"'800111A GeneraXBRL'!$D$190","v":"Departamento deudor"},{"$f":"'800111A GeneraXBRL'!$C$190","v":"co-svsp-core:DepartamentoDeudorCxC"}]
["/*",null,{"$f":"'800111A GeneraXBRL'!$D$191","v":"Municipio deudor"},{"$f":"'800111A GeneraXBRL'!$C$191","v":"co-svsp-core:MunicipioDeudorCxC"}]
["/*",null,{"$f":"'800111A GeneraXBRL'!$D$192","v":"País deudor"},{"$f":"'800111A GeneraXBRL'!$C$192","v":"co-svsp-core:PaisDeudorCxC"}]
["",null,{"$f":"'800111A GeneraXBRL'!$D$193","v":"Saldo cuentas por cobrar"},{"$f":"'800111A GeneraXBRL'!$C$193","v":"co-svsp-core:SaldoCuentasPorCobrarCxC"},0,"peso",{"$f":"'800111A GeneraXBRL'!$BF$193","v":0},0,"http://www.xbrl.org/scheme/companyName",null,{"$f":"Periodos!$D$4","v":"2022-12-31"},{"$f":"'800111A GeneraXBRL'!$D$181","v":"co-svsp-core:DetalleCuentasXCobrar_Eje"},{"$f":"'800111A GeneraXBRL'!$BF$180","v":"co-svsp-core:TotalDetalleCuentasXCobrarClientesMiembro"}]
["/*",null,"--55--"]
["/*",null,{"$f":"'800111A GeneraXBRL'!$D$182","v":"Tipo de documento del deudor"},{"$f":"'800111A GeneraXBRL'!$C$182","v":"co-svsp-core:TipoDeDocumentoDeudorCxC"}]
["/*",null,{"$f":"'800111A GeneraXBRL'!$D$183","v":"Número de identificación del deudor"},{"$f":"'800111A GeneraXBRL'!$C$183","v":"co-svsp-core:NumeroIdentificacionDeudorCxC"}]
["/*",null,{"$f":"'800111A GeneraXBRL'!$D$184","v":"Primer apellido deudor"},{"$f":"'800111A GeneraXBRL'!$C$184","v":"co-svsp-core:PrimerApellidoDeudorCxC"}]
["/*",null,{"$f":"'800111A GeneraXBRL'!$D$185","v":"Segundo apellido deudor"},{"$f":"'800111A GeneraXBRL'!$C$185","v":"co-svsp-core:SegundoApellidoDeudorCxC"}]
["/*",null,{"$f":"'800111A GeneraXBRL'!$D$186","v":"Primer nombre deudor"},{"$f":"'800111A GeneraXBRL'!$C$186","v":"co-svsp-core:PrimerNombreDeudorCxC"}]
["/*",null,{"$f":"'800111A GeneraXBRL'!$D$187","v":"Otros nombres deudor"},{"$f":"'800111A GeneraXBRL'!$C$187","v":"co-svsp-core:OtrosNombresDeudorCxC"}]
["/*",null,{"$f":"'800111A GeneraXBRL'!$D$188","v":"Razón Social deudor"},{"$f":"'800111A GeneraXBRL'!$C$188","v":"co-svsp-core:RazonSocialDeudorCxC"}]
["/*",null,{"$f":"'800111A GeneraXBRL'!$D$189","v":"Dirección deudor"},{"$f":"'800111A GeneraXBRL'!$C$189","v":"co-svsp-core:DireccionDeudorCxC"}]
["/*",null,{"$f":"'800111A GeneraXBRL'!$D$190","v":"Departamento deudor"},{"$f":"'800111A GeneraXBRL'!$C$190","v":"co-svsp-core:DepartamentoDeudorCxC"}]
["/*",null,{"$f":"'800111A GeneraXBRL'!$D$191","v":"Municipio deudor"},{"$f":"'800111A GeneraXBRL'!$C$191","v":"co-svsp-core:MunicipioDeudorCxC"}]
["/*",null,{"$f":"'800111A GeneraXBRL'!$D$192","v":"País deudor"},{"$f":"'800111A GeneraXBRL'!$C$192","v":"co-svsp-core:PaisDeudorCxC"}]
["/*",null,{"$f":"'800111A GeneraXBRL'!$D$193","v":"Saldo cuentas por cobrar"},{"$f":"'800111A GeneraXBRL'!$C$193","v":"co-svsp-core:SaldoCuentasPorCobrarCxC"}]
["/*",null,"--56--"]
["/*",null,{"$f":"'800111A GeneraXBRL'!$D$182","v":"Tipo de documento del deudor"},{"$f":"'800111A GeneraXBRL'!$C$182","v":"co-svsp-core:TipoDeDocumentoDeudorCxC"}]
["/*",null,{"$f":"'800111A GeneraXBRL'!$D$183","v":"Número de identificación del deudor"},{"$f":"'800111A GeneraXBRL'!$C$183","v":"co-svsp-core:NumeroIdentificacionDeudorCxC"}]
["/*",null,{"$f":"'800111A GeneraXBRL'!$D$184","v":"Primer apellido deudor"},{"$f":"'800111A GeneraXBRL'!$C$184","v":"co-svsp-core:PrimerApellidoDeudorCxC"}]
["/*",null,{"$f":"'800111A GeneraXBRL'!$D$185","v":"Segundo apellido deudor"},{"$f":"'800111A GeneraXBRL'!$C$185","v":"co-svsp-core:SegundoApellidoDeudorCxC"}]
["/*",null,{"$f":"'800111A GeneraXBRL'!$D$186","v":"Primer nombre deudor"},{"$f":"'800111A GeneraXBRL'!$C$186","v":"co-svsp-core:PrimerNombreDeudorCxC"}]
["/*",null,{"$f":"'800111A GeneraXBRL'!$D$187","v":"Otros nombres deudor"},{"$f":"'800111A GeneraXBRL'!$C$187","v":"co-svsp-core:OtrosNombresDeudorCxC"}]
["/*",null,{"$f":"'800111A GeneraXBRL'!$D$188","v":"Razón Social deudor"},{"$f":"'800111A GeneraXBRL'!$C$188","v":"co-svsp-core:RazonSocialDeudorCxC"}]
["/*",null,{"$f":"'800111A GeneraXBRL'!$D$189","v":"Dirección deudor"},{"$f":"'800111A GeneraXBRL'!$C$189","v":"co-svsp-core:DireccionDeudorCxC"}]
["/*",null,{"$f":"'800111A GeneraXBRL'!$D$190","v":"Departamento deudor"},{"$f":"'800111A GeneraXBRL'!$C$190","v":"co-svsp-core:DepartamentoDeudorCxC"}]
["/*",null,{"$f":"'800111A GeneraXBRL'!$D$191","v":"Municipio deudor"},{"$f":"'800111A GeneraXBRL'!$C$191","v":"co-svsp-core:MunicipioDeudorCxC"}]
["/*",null,{"$f":"'800111A GeneraXBRL'!$D$192","v":"País deudor"},{"$f":"'800111A GeneraXBRL'!$C$192","v":"co-svsp-core:PaisDeudorCxC"}]
["/*",null,{"$f":"'800111A GeneraXBRL'!$D$193","v":"Saldo cuentas por cobrar"},{"$f":"'800111A GeneraXBRL'!$C$193","v":"co-svsp-core:SaldoCuentasPorCobrarCxC"}]
["/*",null,"--57--"]
["/*",null,{"$f":"'800111A GeneraXBRL'!$D$182","v":"Tipo de documento del deudor"},{"$f":"'800111A GeneraXBRL'!$C$182","v":"co-svsp-core:TipoDeDocumentoDeudorCxC"}]
["/*",null,{"$f":"'800111A GeneraXBRL'!$D$183","v":"Número de identificación del deudor"},{"$f":"'800111A GeneraXBRL'!$C$183","v":"co-svsp-core:NumeroIdentificacionDeudorCxC"}]
["/*",null,{"$f":"'800111A GeneraXBRL'!$D$184","v":"Primer apellido deudor"},{"$f":"'800111A GeneraXBRL'!$C$184","v":"co-svsp-core:PrimerApellidoDeudorCxC"}]
["/*",null,{"$f":"'800111A GeneraXBRL'!$D$185","v":"Segundo apellido deudor"},{"$f":"'800111A GeneraXBRL'!$C$185","v":"co-svsp-core:SegundoApellidoDeudorCxC"}]
["/*",null,{"$f":"'800111A GeneraXBRL'!$D$186","v":"Primer nombre deudor"},{"$f":"'800111A GeneraXBRL'!$C$186","v":"co-svsp-core:PrimerNombreDeudorCxC"}]
["/*",null,{"$f":"'800111A GeneraXBRL'!$D$187","v":"Otros nombres deudor"},{"$f":"'800111A GeneraXBRL'!$C$187","v":"co-svsp-core:OtrosNombresDeudorCxC"}]
["/*",null,{"$f":"'800111A GeneraXBRL'!$D$188","v":"Razón Social deudor"},{"$f":"'800111A GeneraXBRL'!$C$188","v":"co-svsp-core:RazonSocialDeudorCxC"}]
["/*",null,{"$f":"'800111A GeneraXBRL'!$D$189","v":"Dirección deudor"},{"$f":"'800111A GeneraXBRL'!$C$189","v":"co-svsp-core:DireccionDeudorCxC"}]
["/*",null,{"$f":"'800111A GeneraXBRL'!$D$190","v":"Departamento deudor"},{"$f":"'800111A GeneraXBRL'!$C$190","v":"co-svsp-core:DepartamentoDeudorCxC"}]
["/*",null,{"$f":"'800111A GeneraXBRL'!$D$191","v":"Municipio deudor"},{"$f":"'800111A GeneraXBRL'!$C$191","v":"co-svsp-core:MunicipioDeudorCxC"}]
["/*",null,{"$f":"'800111A GeneraXBRL'!$D$192","v":"País deudor"},{"$f":"'800111A GeneraXBRL'!$C$192","v":"co-svsp-core:PaisDeudorCxC"}]
["/*",null,{"$f":"'800111A GeneraXBRL'!$D$193","v":"Saldo cuentas por cobrar"},{"$f":"'800111A GeneraXBRL'!$C$193","v":"co-svsp-core:SaldoCuentasPorCobrarCxC"}]
["/*",null,"--58--"]
["/*",null,{"$f":"'800111A GeneraXBRL'!$D$182","v":"Tipo de documento del deudor"},{"$f":"'800111A GeneraXBRL'!$C$182","v":"co-svsp-core:TipoDeDocumentoDeudorCxC"}]
["/*",null,{"$f":"'800111A GeneraXBRL'!$D$183","v":"Número de identificación del deudor"},{"$f":"'800111A GeneraXBRL'!$C$183","v":"co-svsp-core:NumeroIdentificacionDeudorCxC"}]
["/*",null,{"$f":"'800111A GeneraXBRL'!$D$184","v":"Primer apellido deudor"},{"$f":"'800111A GeneraXBRL'!$C$184","v":"co-svsp-core:PrimerApellidoDeudorCxC"}]
["/*",null,{"$f":"'800111A GeneraXBRL'!$D$185","v":"Segundo apellido deudor"},{"$f":"'800111A GeneraXBRL'!$C$185","v":"co-svsp-core:SegundoApellidoDeudorCxC"}]
["/*",null,{"$f":"'800111A GeneraXBRL'!$D$186","v":"Primer nombre deudor"},{"$f":"'800111A GeneraXBRL'!$C$186","v":"co-svsp-core:PrimerNombreDeudorCxC"}]
["/*",null,{"$f":"'800111A GeneraXBRL'!$D$187","v":"Otros nombres deudor"},{"$f":"'800111A GeneraXBRL'!$C$187","v":"co-svsp-core:OtrosNombresDeudorCxC"}]
["/*",null,{"$f":"'800111A GeneraXBRL'!$D$188","v":"Razón Social deudor"},{"$f":"'800111A GeneraXBRL'!$C$188","v":"co-svsp-core:RazonSocialDeudorCxC"}]
["/*",null,{"$f":"'800111A GeneraXBRL'!$D$189","v":"Dirección deudor"},{"$f":"'800111A GeneraXBRL'!$C$189","v":"co-svsp-core:DireccionDeudorCxC"}]
["/*",null,{"$f":"'800111A GeneraXBRL'!$D$190","v":"Departamento deudor"},{"$f":"'800111A GeneraXBRL'!$C$190","v":"co-svsp-core:DepartamentoDeudorCxC"}]
["/*",null,{"$f":"'800111A GeneraXBRL'!$D$191","v":"Municipio deudor"},{"$f":"'800111A GeneraXBRL'!$C$191","v":"co-svsp-core:MunicipioDeudorCxC"}]
["/*",null,{"$f":"'800111A GeneraXBRL'!$D$192","v":"País deudor"},{"$f":"'800111A GeneraXBRL'!$C$192","v":"co-svsp-core:PaisDeudorCxC"}]
["/*",null,{"$f":"'800111A GeneraXBRL'!$D$193","v":"Saldo cuentas por cobrar"},{"$f":"'800111A GeneraXBRL'!$C$193","v":"co-svsp-core:SaldoCuentasPorCobrarCxC"}]
["/*",null,"--59--"]
["/*",null,{"$f":"'800111A GeneraXBRL'!$D$182","v":"Tipo de documento del deudor"},{"$f":"'800111A GeneraXBRL'!$C$182","v":"co-svsp-core:TipoDeDocumentoDeudorCxC"}]
["/*",null,{"$f":"'800111A GeneraXBRL'!$D$183","v":"Número de identificación del deudor"},{"$f":"'800111A GeneraXBRL'!$C$183","v":"co-svsp-core:NumeroIdentificacionDeudorCxC"}]
[{"$f":"IF(G3296=\"\",\"/*\",\"\")","v":"/*"},null,{"$f":"'800111A GeneraXBRL'!$D$184","v":"Primer apellido deudor"},{"$f":"'800111A GeneraXBRL'!$C$184","v":"co-svsp-core:PrimerApellidoDeudorCxC"}]
["/*",null,{"$f":"'800111A GeneraXBRL'!$D$185","v":"Segundo apellido deudor"},{"$f":"'800111A GeneraXBRL'!$C$185","v":"co-svsp-core:SegundoApellidoDeudorCxC"}]
["/*",null,{"$f":"'800111A GeneraXBRL'!$D$186","v":"Primer nombre deudor"},{"$f":"'800111A GeneraXBRL'!$C$186","v":"co-svsp-core:PrimerNombreDeudorCxC"}]
["/*",null,{"$f":"'800111A GeneraXBRL'!$D$187","v":"Otros nombres deudor"},{"$f":"'800111A GeneraXBRL'!$C$187","v":"co-svsp-core:OtrosNombresDeudorCxC"}]
["/*",null,{"$f":"'800111A GeneraXBRL'!$D$188","v":"Razón Social deudor"},{"$f":"'800111A GeneraXBRL'!$C$188","v":"co-svsp-core:RazonSocialDeudorCxC"}]
["/*",null,{"$f":"'800111A GeneraXBRL'!$D$189","v":"Dirección deudor"},{"$f":"'800111A GeneraXBRL'!$C$189","v":"co-svsp-core:DireccionDeudorCxC"}]
["/*",null,{"$f":"'800111A GeneraXBRL'!$D$190","v":"Departamento deudor"},{"$f":"'800111A GeneraXBRL'!$C$190","v":"co-svsp-core:DepartamentoDeudorCxC"}]
["/*",null,{"$f":"'800111A GeneraXBRL'!$D$191","v":"Municipio deudor"},{"$f":"'800111A GeneraXBRL'!$C$191","v":"co-svsp-core:MunicipioDeudorCxC"}]
["/*",null,{"$f":"'800111A GeneraXBRL'!$D$192","v":"País deudor"},{"$f":"'800111A GeneraXBRL'!$C$192","v":"co-svsp-core:PaisDeudorCxC"}]
["/*",null,{"$f":"'800111A GeneraXBRL'!$D$193","v":"Saldo cuentas por cobrar"},{"$f":"'800111A GeneraXBRL'!$C$193","v":"co-svsp-core:SaldoCuentasPorCobrarCxC"}]
["/*",null,"--60--"]
["/*",null,{"$f":"'800111A GeneraXBRL'!$D$182","v":"Tipo de documento del deudor"},{"$f":"'800111A GeneraXBRL'!$C$182","v":"co-svsp-core:TipoDeDocumentoDeudorCxC"}]
["/*",null,{"$f":"'800111A GeneraXBRL'!$D$183","v":"Número de identificación del deudor"},{"$f":"'800111A GeneraXBRL'!$C$183","v":"co-svsp-core:NumeroIdentificacionDeudorCxC"}]
["/*",null,{"$f":"'800111A GeneraXBRL'!$D$184","v":"Primer apellido deudor"},{"$f":"'800111A GeneraXBRL'!$C$184","v":"co-svsp-core:PrimerApellidoDeudorCxC"}]
["/*",null,{"$f":"'800111A GeneraXBRL'!$D$185","v":"Segundo apellido deudor"},{"$f":"'800111A GeneraXBRL'!$C$185","v":"co-svsp-core:SegundoApellidoDeudorCxC"}]
["/*",null,{"$f":"'800111A GeneraXBRL'!$D$186","v":"Primer nombre deudor"},{"$f":"'800111A GeneraXBRL'!$C$186","v":"co-svsp-core:PrimerNombreDeudorCxC"}]
["/*",null,{"$f":"'800111A GeneraXBRL'!$D$187","v":"Otros nombres deudor"},{"$f":"'800111A GeneraXBRL'!$C$187","v":"co-svsp-core:OtrosNombresDeudorCxC"}]
["/*",null,{"$f":"'800111A GeneraXBRL'!$D$188","v":"Razón Social deudor"},{"$f":"'800111A GeneraXBRL'!$C$188","v":"co-svsp-core:RazonSocialDeudorCxC"}]
["/*",null,{"$f":"'800111A GeneraXBRL'!$D$189","v":"Dirección deudor"},{"$f":"'800111A GeneraXBRL'!$C$189","v":"co-svsp-core:DireccionDeudorCxC"}]
["/*",null,{"$f":"'800111A GeneraXBRL'!$D$190","v":"Departamento deudor"},{"$f":"'800111A GeneraXBRL'!$C$190","v":"co-svsp-core:DepartamentoDeudorCxC"}]
["/*",null,{"$f":"'800111A GeneraXBRL'!$D$191","v":"Municipio deudor"},{"$f":"'800111A GeneraXBRL'!$C$191","v":"co-svsp-core:MunicipioDeudorCxC"}]
["/*",null,{"$f":"'800111A GeneraXBRL'!$D$192","v":"País deudor"},{"$f":"'800111A GeneraXBRL'!$C$192","v":"co-svsp-core:PaisDeudorCxC"}]
["/*",null,{"$f":"'800111A GeneraXBRL'!$D$193","v":"Saldo cuentas por cobrar"},{"$f":"'800111A GeneraXBRL'!$C$193","v":"co-svsp-core:SaldoCuentasPorCobrarCxC"}]
["/*",null,"--61--"]
["/*",null,{"$f":"'800111A GeneraXBRL'!$D$182","v":"Tipo de documento del deudor"},{"$f":"'800111A GeneraXBRL'!$C$182","v":"co-svsp-core:TipoDeDocumentoDeudorCxC"}]
["/*",null,{"$f":"'800111A GeneraXBRL'!$D$183","v":"Número de identificación del deudor"},{"$f":"'800111A GeneraXBRL'!$C$183","v":"co-svsp-core:NumeroIdentificacionDeudorCxC"}]
["/*",null,{"$f":"'800111A GeneraXBRL'!$D$184","v":"Primer apellido deudor"},{"$f":"'800111A GeneraXBRL'!$C$184","v":"co-svsp-core:PrimerApellidoDeudorCxC"}]
["/*",null,{"$f":"'800111A GeneraXBRL'!$D$185","v":"Segundo apellido deudor"},{"$f":"'800111A GeneraXBRL'!$C$185","v":"co-svsp-core:SegundoApellidoDeudorCxC"}]
["/*",null,{"$f":"'800111A GeneraXBRL'!$D$186","v":"Primer nombre deudor"},{"$f":"'800111A GeneraXBRL'!$C$186","v":"co-svsp-core:PrimerNombreDeudorCxC"}]
["/*",null,{"$f":"'800111A GeneraXBRL'!$D$187","v":"Otros nombres deudor"},{"$f":"'800111A GeneraXBRL'!$C$187","v":"co-svsp-core:OtrosNombresDeudorCxC"}]
["/*",null,{"$f":"'800111A GeneraXBRL'!$D$188","v":"Razón Social deudor"},{"$f":"'800111A GeneraXBRL'!$C$188","v":"co-svsp-core:RazonSocialDeudorCxC"}]
["/*",null,{"$f":"'800111A GeneraXBRL'!$D$189","v":"Dirección deudor"},{"$f":"'800111A GeneraXBRL'!$C$189","v":"co-svsp-core:DireccionDeudorCxC"}]
["/*",null,{"$f":"'800111A GeneraXBRL'!$D$190","v":"Departamento deudor"},{"$f":"'800111A GeneraXBRL'!$C$190","v":"co-svsp-core:DepartamentoDeudorCxC"}]
["/*",null,{"$f":"'800111A GeneraXBRL'!$D$191","v":"Municipio deudor"},{"$f":"'800111A GeneraXBRL'!$C$191","v":"co-svsp-core:MunicipioDeudorCxC"}]
["/*",null,{"$f":"'800111A GeneraXBRL'!$D$192","v":"País deudor"},{"$f":"'800111A GeneraXBRL'!$C$192","v":"co-svsp-core:PaisDeudorCxC"}]
["/*",null,{"$f":"'800111A GeneraXBRL'!$D$193","v":"Saldo cuentas por cobrar"},{"$f":"'800111A GeneraXBRL'!$C$193","v":"co-svsp-core:SaldoCuentasPorCobrarCxC"}]
["/*",null,"--62--"]
["/*",null,{"$f":"'800111A GeneraXBRL'!$D$182","v":"Tipo de documento del deudor"},{"$f":"'800111A GeneraXBRL'!$C$182","v":"co-svsp-core:TipoDeDocumentoDeudorCxC"}]
["/*",null,{"$f":"'800111A GeneraXBRL'!$D$183","v":"Número de identificación del deudor"},{"$f":"'800111A GeneraXBRL'!$C$183","v":"co-svsp-core:NumeroIdentificacionDeudorCxC"}]
["/*",null,{"$f":"'800111A GeneraXBRL'!$D$184","v":"Primer apellido deudor"},{"$f":"'800111A GeneraXBRL'!$C$184","v":"co-svsp-core:PrimerApellidoDeudorCxC"}]
["/*",null,{"$f":"'800111A GeneraXBRL'!$D$185","v":"Segundo apellido deudor"},{"$f":"'800111A GeneraXBRL'!$C$185","v":"co-svsp-core:SegundoApellidoDeudorCxC"}]
["/*",null,{"$f":"'800111A GeneraXBRL'!$D$186","v":"Primer nombre deudor"},{"$f":"'800111A GeneraXBRL'!$C$186","v":"co-svsp-core:PrimerNombreDeudorCxC"}]
["/*",null,{"$f":"'800111A GeneraXBRL'!$D$187","v":"Otros nombres deudor"},{"$f":"'800111A GeneraXBRL'!$C$187","v":"co-svsp-core:OtrosNombresDeudorCxC"}]
["/*",null,{"$f":"'800111A GeneraXBRL'!$D$188","v":"Razón Social deudor"},{"$f":"'800111A GeneraXBRL'!$C$188","v":"co-svsp-core:RazonSocialDeudorCxC"}]
["/*",null,{"$f":"'800111A GeneraXBRL'!$D$189","v":"Dirección deudor"},{"$f":"'800111A GeneraXBRL'!$C$189","v":"co-svsp-core:DireccionDeudorCxC"}]
["/*",null,{"$f":"'800111A GeneraXBRL'!$D$190","v":"Departamento deudor"},{"$f":"'800111A GeneraXBRL'!$C$190","v":"co-svsp-core:DepartamentoDeudorCxC"}]
["/*",null,{"$f":"'800111A GeneraXBRL'!$D$191","v":"Municipio deudor"},{"$f":"'800111A GeneraXBRL'!$C$191","v":"co-svsp-core:MunicipioDeudorCxC"}]
["/*",null,{"$f":"'800111A GeneraXBRL'!$D$192","v":"País deudor"},{"$f":"'800111A GeneraXBRL'!$C$192","v":"co-svsp-core:PaisDeudorCxC"}]
["/*",null,{"$f":"'800111A GeneraXBRL'!$D$193","v":"Saldo cuentas por cobrar"},{"$f":"'800111A GeneraXBRL'!$C$193","v":"co-svsp-core:SaldoCuentasPorCobrarCxC"}]
["/*",null,"--63--"]
["/*",null,{"$f":"'800111A GeneraXBRL'!$D$182","v":"Tipo de documento del deudor"},{"$f":"'800111A GeneraXBRL'!$C$182","v":"co-svsp-core:TipoDeDocumentoDeudorCxC"}]
["/*",null,{"$f":"'800111A GeneraXBRL'!$D$183","v":"Número de identificación del deudor"},{"$f":"'800111A GeneraXBRL'!$C$183","v":"co-svsp-core:NumeroIdentificacionDeudorCxC"}]
["/*",null,{"$f":"'800111A GeneraXBRL'!$D$184","v":"Primer apellido deudor"},{"$f":"'800111A GeneraXBRL'!$C$184","v":"co-svsp-core:PrimerApellidoDeudorCxC"}]
["/*",null,{"$f":"'800111A GeneraXBRL'!$D$185","v":"Segundo apellido deudor"},{"$f":"'800111A GeneraXBRL'!$C$185","v":"co-svsp-core:SegundoApellidoDeudorCxC"}]
["/*",null,{"$f":"'800111A GeneraXBRL'!$D$186","v":"Primer nombre deudor"},{"$f":"'800111A GeneraXBRL'!$C$186","v":"co-svsp-core:PrimerNombreDeudorCxC"}]
["/*",null,{"$f":"'800111A GeneraXBRL'!$D$187","v":"Otros nombres deudor"},{"$f":"'800111A GeneraXBRL'!$C$187","v":"co-svsp-core:OtrosNombresDeudorCxC"}]
["/*",null,{"$f":"'800111A GeneraXBRL'!$D$188","v":"Razón Social deudor"},{"$f":"'800111A GeneraXBRL'!$C$188","v":"co-svsp-core:RazonSocialDeudorCxC"}]
["/*",null,{"$f":"'800111A GeneraXBRL'!$D$189","v":"Dirección deudor"},{"$f":"'800111A GeneraXBRL'!$C$189","v":"co-svsp-core:DireccionDeudorCxC"}]
["/*",null,{"$f":"'800111A GeneraXBRL'!$D$190","v":"Departamento deudor"},{"$f":"'800111A GeneraXBRL'!$C$190","v":"co-svsp-core:DepartamentoDeudorCxC"}]
["/*",null,{"$f":"'800111A GeneraXBRL'!$D$191","v":"Municipio deudor"},{"$f":"'800111A GeneraXBRL'!$C$191","v":"co-svsp-core:MunicipioDeudorCxC"}]
["/*",null,{"$f":"'800111A GeneraXBRL'!$D$192","v":"País deudor"},{"$f":"'800111A GeneraXBRL'!$C$192","v":"co-svsp-core:PaisDeudorCxC"}]
["/*",null,{"$f":"'800111A GeneraXBRL'!$D$193","v":"Saldo cuentas por cobrar"},{"$f":"'800111A GeneraXBRL'!$C$193","v":"co-svsp-core:SaldoCuentasPorCobrarCxC"}]
["/*",null,"--64--"]
["/*",null,{"$f":"'800111A GeneraXBRL'!$D$182","v":"Tipo de documento del deudor"},{"$f":"'800111A GeneraXBRL'!$C$182","v":"co-svsp-core:TipoDeDocumentoDeudorCxC"}]
[{"$f":"IF(G3360=\"\",\"/*\",\"\")","v":"/*"},null,{"$f":"'800111A GeneraXBRL'!$D$183","v":"Número de identificación del deudor"},{"$f":"'800111A GeneraXBRL'!$C$183","v":"co-svsp-core:NumeroIdentificacionDeudorCxC"}]
["/*",null,{"$f":"'800111A GeneraXBRL'!$D$184","v":"Primer apellido deudor"},{"$f":"'800111A GeneraXBRL'!$C$184","v":"co-svsp-core:PrimerApellidoDeudorCxC"}]
["/*",null,{"$f":"'800111A GeneraXBRL'!$D$185","v":"Segundo apellido deudor"},{"$f":"'800111A GeneraXBRL'!$C$185","v":"co-svsp-core:SegundoApellidoDeudorCxC"}]
["/*",null,{"$f":"'800111A GeneraXBRL'!$D$186","v":"Primer nombre deudor"},{"$f":"'800111A GeneraXBRL'!$C$186","v":"co-svsp-core:PrimerNombreDeudorCxC"}]
["/*",null,{"$f":"'800111A GeneraXBRL'!$D$187","v":"Otros nombres deudor"},{"$f":"'800111A GeneraXBRL'!$C$187","v":"co-svsp-core:OtrosNombresDeudorCxC"}]
["/*",null,{"$f":"'800111A GeneraXBRL'!$D$188","v":"Razón Social deudor"},{"$f":"'800111A GeneraXBRL'!$C$188","v":"co-svsp-core:RazonSocialDeudorCxC"}]
["/*",null,{"$f":"'800111A GeneraXBRL'!$D$189","v":"Dirección deudor"},{"$f":"'800111A GeneraXBRL'!$C$189","v":"co-svsp-core:DireccionDeudorCxC"}]
["/*",null,{"$f":"'800111A GeneraXBRL'!$D$190","v":"Departamento deudor"},{"$f":"'800111A GeneraXBRL'!$C$190","v":"co-svsp-core:DepartamentoDeudorCxC"}]
["/*",null,{"$f":"'800111A GeneraXBRL'!$D$191","v":"Municipio deudor"},{"$f":"'800111A GeneraXBRL'!$C$191","v":"co-svsp-core:MunicipioDeudorCxC"}]
["/*",null,{"$f":"'800111A GeneraXBRL'!$D$192","v":"País deudor"},{"$f":"'800111A GeneraXBRL'!$C$192","v":"co-svsp-core:PaisDeudorCxC"}]
["/*",null,{"$f":"'800111A GeneraXBRL'!$D$193","v":"Saldo cuentas por cobrar"},{"$f":"'800111A GeneraXBRL'!$C$193","v":"co-svsp-core:SaldoCuentasPorCobrarCxC"}]
["/*",null,"--65--"]
["/*",null,{"$f":"'800111A GeneraXBRL'!$D$182","v":"Tipo de documento del deudor"},{"$f":"'800111A GeneraXBRL'!$C$182","v":"co-svsp-core:TipoDeDocumentoDeudorCxC"}]
["/*",null,{"$f":"'800111A GeneraXBRL'!$D$183","v":"Número de identificación del deudor"},{"$f":"'800111A GeneraXBRL'!$C$183","v":"co-svsp-core:NumeroIdentificacionDeudorCxC"}]
["/*",null,{"$f":"'800111A GeneraXBRL'!$D$184","v":"Primer apellido deudor"},{"$f":"'800111A GeneraXBRL'!$C$184","v":"co-svsp-core:PrimerApellidoDeudorCxC"}]
["/*",null,{"$f":"'800111A GeneraXBRL'!$D$185","v":"Segundo apellido deudor"},{"$f":"'800111A GeneraXBRL'!$C$185","v":"co-svsp-core:SegundoApellidoDeudorCxC"}]
["/*",null,{"$f":"'800111A GeneraXBRL'!$D$186","v":"Primer nombre deudor"},{"$f":"'800111A GeneraXBRL'!$C$186","v":"co-svsp-core:PrimerNombreDeudorCxC"}]
["/*",null,{"$f":"'800111A GeneraXBRL'!$D$187","v":"Otros nombres deudor"},{"$f":"'800111A GeneraXBRL'!$C$187","v":"co-svsp-core:OtrosNombresDeudorCxC"}]
["/*",null,{"$f":"'800111A GeneraXBRL'!$D$188","v":"Razón Social deudor"},{"$f":"'800111A GeneraXBRL'!$C$188","v":"co-svsp-core:RazonSocialDeudorCxC"}]
["/*",null,{"$f":"'800111A GeneraXBRL'!$D$189","v":"Dirección deudor"},{"$f":"'800111A GeneraXBRL'!$C$189","v":"co-svsp-core:DireccionDeudorCxC"}]
["/*",null,{"$f":"'800111A GeneraXBRL'!$D$190","v":"Departamento deudor"},{"$f":"'800111A GeneraXBRL'!$C$190","v":"co-svsp-core:DepartamentoDeudorCxC"}]
["/*",null,{"$f":"'800111A GeneraXBRL'!$D$191","v":"Municipio deudor"},{"$f":"'800111A GeneraXBRL'!$C$191","v":"co-svsp-core:MunicipioDeudorCxC"}]
["/*",null,{"$f":"'800111A GeneraXBRL'!$D$192","v":"País deudor"},{"$f":"'800111A GeneraXBRL'!$C$192","v":"co-svsp-core:PaisDeudorCxC"}]
["/*",null,{"$f":"'800111A GeneraXBRL'!$D$193","v":"Saldo cuentas por cobrar"},{"$f":"'800111A GeneraXBRL'!$C$193","v":"co-svsp-core:SaldoCuentasPorCobrarCxC"}]
["/*",null,"--66--"]
["/*",null,{"$f":"'800111A GeneraXBRL'!$D$182","v":"Tipo de documento del deudor"},{"$f":"'800111A GeneraXBRL'!$C$182","v":"co-svsp-core:TipoDeDocumentoDeudorCxC"}]
["/*",null,{"$f":"'800111A GeneraXBRL'!$D$183","v":"Número de identificación del deudor"},{"$f":"'800111A GeneraXBRL'!$C$183","v":"co-svsp-core:NumeroIdentificacionDeudorCxC"}]
["/*",null,{"$f":"'800111A GeneraXBRL'!$D$184","v":"Primer apellido deudor"},{"$f":"'800111A GeneraXBRL'!$C$184","v":"co-svsp-core:PrimerApellidoDeudorCxC"}]
["/*",null,{"$f":"'800111A GeneraXBRL'!$D$185","v":"Segundo apellido deudor"},{"$f":"'800111A GeneraXBRL'!$C$185","v":"co-svsp-core:SegundoApellidoDeudorCxC"}]
["/*",null,{"$f":"'800111A GeneraXBRL'!$D$186","v":"Primer nombre deudor"},{"$f":"'800111A GeneraXBRL'!$C$186","v":"co-svsp-core:PrimerNombreDeudorCxC"}]
["/*",null,{"$f":"'800111A GeneraXBRL'!$D$187","v":"Otros nombres deudor"},{"$f":"'800111A GeneraXBRL'!$C$187","v":"co-svsp-core:OtrosNombresDeudorCxC"}]
["/*",null,{"$f":"'800111A GeneraXBRL'!$D$188","v":"Razón Social deudor"},{"$f":"'800111A GeneraXBRL'!$C$188","v":"co-svsp-core:RazonSocialDeudorCxC"}]
["/*",null,{"$f":"'800111A GeneraXBRL'!$D$189","v":"Dirección deudor"},{"$f":"'800111A GeneraXBRL'!$C$189","v":"co-svsp-core:DireccionDeudorCxC"}]
["/*",null,{"$f":"'800111A GeneraXBRL'!$D$190","v":"Departamento deudor"},{"$f":"'800111A GeneraXBRL'!$C$190","v":"co-svsp-core:DepartamentoDeudorCxC"}]
["/*",null,{"$f":"'800111A GeneraXBRL'!$D$191","v":"Municipio deudor"},{"$f":"'800111A GeneraXBRL'!$C$191","v":"co-svsp-core:MunicipioDeudorCxC"}]
["/*",null,{"$f":"'800111A GeneraXBRL'!$D$192","v":"País deudor"},{"$f":"'800111A GeneraXBRL'!$C$192","v":"co-svsp-core:PaisDeudorCxC"}]
["/*",null,{"$f":"'800111A GeneraXBRL'!$D$193","v":"Saldo cuentas por cobrar"},{"$f":"'800111A GeneraXBRL'!$C$193","v":"co-svsp-core:SaldoCuentasPorCobrarCxC"}]
["/*",null,"--67--"]
["/*",null,{"$f":"'800111A GeneraXBRL'!$D$182","v":"Tipo de documento del deudor"},{"$f":"'800111A GeneraXBRL'!$C$182","v":"co-svsp-core:TipoDeDocumentoDeudorCxC"}]
["/*",null,{"$f":"'800111A GeneraXBRL'!$D$183","v":"Número de identificación del deudor"},{"$f":"'800111A GeneraXBRL'!$C$183","v":"co-svsp-core:NumeroIdentificacionDeudorCxC"}]
["/*",null,{"$f":"'800111A GeneraXBRL'!$D$184","v":"Primer apellido deudor"},{"$f":"'800111A GeneraXBRL'!$C$184","v":"co-svsp-core:PrimerApellidoDeudorCxC"}]
["/*",null,{"$f":"'800111A GeneraXBRL'!$D$185","v":"Segundo apellido deudor"},{"$f":"'800111A GeneraXBRL'!$C$185","v":"co-svsp-core:SegundoApellidoDeudorCxC"}]
["/*",null,{"$f":"'800111A GeneraXBRL'!$D$186","v":"Primer nombre deudor"},{"$f":"'800111A GeneraXBRL'!$C$186","v":"co-svsp-core:PrimerNombreDeudorCxC"}]
["/*",null,{"$f":"'800111A GeneraXBRL'!$D$187","v":"Otros nombres deudor"},{"$f":"'800111A GeneraXBRL'!$C$187","v":"co-svsp-core:OtrosNombresDeudorCxC"}]
["/*",null,{"$f":"'800111A GeneraXBRL'!$D$188","v":"Razón Social deudor"},{"$f":"'800111A GeneraXBRL'!$C$188","v":"co-svsp-core:RazonSocialDeudorCxC"}]
["/*",null,{"$f":"'800111A GeneraXBRL'!$D$189","v":"Dirección deudor"},{"$f":"'800111A GeneraXBRL'!$C$189","v":"co-svsp-core:DireccionDeudorCxC"}]
["/*",null,{"$f":"'800111A GeneraXBRL'!$D$190","v":"Departamento deudor"},{"$f":"'800111A GeneraXBRL'!$C$190","v":"co-svsp-core:DepartamentoDeudorCxC"}]
["/*",null,{"$f":"'800111A GeneraXBRL'!$D$191","v":"Municipio deudor"},{"$f":"'800111A GeneraXBRL'!$C$191","v":"co-svsp-core:MunicipioDeudorCxC"}]
["/*",null,{"$f":"'800111A GeneraXBRL'!$D$192","v":"País deudor"},{"$f":"'800111A GeneraXBRL'!$C$192","v":"co-svsp-core:PaisDeudorCxC"}]
["/*",null,{"$f":"'800111A GeneraXBRL'!$D$193","v":"Saldo cuentas por cobrar"},{"$f":"'800111A GeneraXBRL'!$C$193","v":"co-svsp-core:SaldoCuentasPorCobrarCxC"}]
["/*",null,"--68--"]
["/*",null,{"$f":"'800111A GeneraXBRL'!$D$182","v":"Tipo de documento del deudor"},{"$f":"'800111A GeneraXBRL'!$C$182","v":"co-svsp-core:TipoDeDocumentoDeudorCxC"}]
["/*",null,{"$f":"'800111A GeneraXBRL'!$D$183","v":"Número de identificación del deudor"},{"$f":"'800111A GeneraXBRL'!$C$183","v":"co-svsp-core:NumeroIdentificacionDeudorCxC"}]
["/*",null,{"$f":"'800111A GeneraXBRL'!$D$184","v":"Primer apellido deudor"},{"$f":"'800111A GeneraXBRL'!$C$184","v":"co-svsp-core:PrimerApellidoDeudorCxC"}]
["/*",null,{"$f":"'800111A GeneraXBRL'!$D$185","v":"Segundo apellido deudor"},{"$f":"'800111A GeneraXBRL'!$C$185","v":"co-svsp-core:SegundoApellidoDeudorCxC"}]
["/*",null,{"$f":"'800111A GeneraXBRL'!$D$186","v":"Primer nombre deudor"},{"$f":"'800111A GeneraXBRL'!$C$186","v":"co-svsp-core:PrimerNombreDeudorCxC"}]
["/*",null,{"$f":"'800111A GeneraXBRL'!$D$187","v":"Otros nombres deudor"},{"$f":"'800111A GeneraXBRL'!$C$187","v":"co-svsp-core:OtrosNombresDeudorCxC"}]
["/*",null,{"$f":"'800111A GeneraXBRL'!$D$188","v":"Razón Social deudor"},{"$f":"'800111A GeneraXBRL'!$C$188","v":"co-svsp-core:RazonSocialDeudorCxC"}]
["/*",null,{"$f":"'800111A GeneraXBRL'!$D$189","v":"Dirección deudor"},{"$f":"'800111A GeneraXBRL'!$C$189","v":"co-svsp-core:DireccionDeudorCxC"}]
["/*",null,{"$f":"'800111A GeneraXBRL'!$D$190","v":"Departamento deudor"},{"$f":"'800111A GeneraXBRL'!$C$190","v":"co-svsp-core:DepartamentoDeudorCxC"}]
["/*",null,{"$f":"'800111A GeneraXBRL'!$D$191","v":"Municipio deudor"},{"$f":"'800111A GeneraXBRL'!$C$191","v":"co-svsp-core:MunicipioDeudorCxC"}]
["/*",null,{"$f":"'800111A GeneraXBRL'!$D$192","v":"País deudor"},{"$f":"'800111A GeneraXBRL'!$C$192","v":"co-svsp-core:PaisDeudorCxC"}]
["/*",null,{"$f":"'800111A GeneraXBRL'!$D$193","v":"Saldo cuentas por cobrar"},{"$f":"'800111A GeneraXBRL'!$C$193","v":"co-svsp-core:SaldoCuentasPorCobrarCxC"}]
["/*",null,"--69--"]
[{"$f":"IF(G3424=\"\",\"/*\",\"\")","v":"/*"},null,{"$f":"'800111A GeneraXBRL'!$D$182","v":"Tipo de documento del deudor"},{"$f":"'800111A GeneraXBRL'!$C$182","v":"co-svsp-core:TipoDeDocumentoDeudorCxC"}]
["/*",null,{"$f":"'800111A GeneraXBRL'!$D$183","v":"Número de identificación del deudor"},{"$f":"'800111A GeneraXBRL'!$C$183","v":"co-svsp-core:NumeroIdentificacionDeudorCxC"}]
["/*",null,{"$f":"'800111A GeneraXBRL'!$D$184","v":"Primer apellido deudor"},{"$f":"'800111A GeneraXBRL'!$C$184","v":"co-svsp-core:PrimerApellidoDeudorCxC"}]
["/*",null,{"$f":"'800111A GeneraXBRL'!$D$185","v":"Segundo apellido deudor"},{"$f":"'800111A GeneraXBRL'!$C$185","v":"co-svsp-core:SegundoApellidoDeudorCxC"}]
["/*",null,{"$f":"'800111A GeneraXBRL'!$D$186","v":"Primer nombre deudor"},{"$f":"'800111A GeneraXBRL'!$C$186","v":"co-svsp-core:PrimerNombreDeudorCxC"}]
["/*",null,{"$f":"'800111A GeneraXBRL'!$D$187","v":"Otros nombres deudor"},{"$f":"'800111A GeneraXBRL'!$C$187","v":"co-svsp-core:OtrosNombresDeudorCxC"}]
["/*",null,{"$f":"'800111A GeneraXBRL'!$D$188","v":"Razón Social deudor"},{"$f":"'800111A GeneraXBRL'!$C$188","v":"co-svsp-core:RazonSocialDeudorCxC"}]
["/*",null,{"$f":"'800111A GeneraXBRL'!$D$189","v":"Dirección deudor"},{"$f":"'800111A GeneraXBRL'!$C$189","v":"co-svsp-core:DireccionDeudorCxC"}]
["/*",null,{"$f":"'800111A GeneraXBRL'!$D$190","v":"Departamento deudor"},{"$f":"'800111A GeneraXBRL'!$C$190","v":"co-svsp-core:DepartamentoDeudorCxC"}]
["/*",null,{"$f":"'800111A GeneraXBRL'!$D$191","v":"Municipio deudor"},{"$f":"'800111A GeneraXBRL'!$C$191","v":"co-svsp-core:MunicipioDeudorCxC"}]
["/*",null,{"$f":"'800111A GeneraXBRL'!$D$192","v":"País deudor"},{"$f":"'800111A GeneraXBRL'!$C$192","v":"co-svsp-core:PaisDeudorCxC"}]
["/*",null,{"$f":"'800111A GeneraXBRL'!$D$193","v":"Saldo cuentas por cobrar"},{"$f":"'800111A GeneraXBRL'!$C$193","v":"co-svsp-core:SaldoCuentasPorCobrarCxC"}]
["/*",null,"--70--"]
["/*",null,{"$f":"'800111A GeneraXBRL'!$D$182","v":"Tipo de documento del deudor"},{"$f":"'800111A GeneraXBRL'!$C$182","v":"co-svsp-core:TipoDeDocumentoDeudorCxC"}]
["/*",null,{"$f":"'800111A GeneraXBRL'!$D$183","v":"Número de identificación del deudor"},{"$f":"'800111A GeneraXBRL'!$C$183","v":"co-svsp-core:NumeroIdentificacionDeudorCxC"}]
["/*",null,{"$f":"'800111A GeneraXBRL'!$D$184","v":"Primer apellido deudor"},{"$f":"'800111A GeneraXBRL'!$C$184","v":"co-svsp-core:PrimerApellidoDeudorCxC"}]
["/*",null,{"$f":"'800111A GeneraXBRL'!$D$185","v":"Segundo apellido deudor"},{"$f":"'800111A GeneraXBRL'!$C$185","v":"co-svsp-core:SegundoApellidoDeudorCxC"}]
["/*",null,{"$f":"'800111A GeneraXBRL'!$D$186","v":"Primer nombre deudor"},{"$f":"'800111A GeneraXBRL'!$C$186","v":"co-svsp-core:PrimerNombreDeudorCxC"}]
["/*",null,{"$f":"'800111A GeneraXBRL'!$D$187","v":"Otros nombres deudor"},{"$f":"'800111A GeneraXBRL'!$C$187","v":"co-svsp-core:OtrosNombresDeudorCxC"}]
["/*",null,{"$f":"'800111A GeneraXBRL'!$D$188","v":"Razón Social deudor"},{"$f":"'800111A GeneraXBRL'!$C$188","v":"co-svsp-core:RazonSocialDeudorCxC"}]
["/*",null,{"$f":"'800111A GeneraXBRL'!$D$189","v":"Dirección deudor"},{"$f":"'800111A GeneraXBRL'!$C$189","v":"co-svsp-core:DireccionDeudorCxC"}]
["/*",null,{"$f":"'800111A GeneraXBRL'!$D$190","v":"Departamento deudor"},{"$f":"'800111A GeneraXBRL'!$C$190","v":"co-svsp-core:DepartamentoDeudorCxC"}]
["/*",null,{"$f":"'800111A GeneraXBRL'!$D$191","v":"Municipio deudor"},{"$f":"'800111A GeneraXBRL'!$C$191","v":"co-svsp-core:MunicipioDeudorCxC"}]
["/*",null,{"$f":"'800111A GeneraXBRL'!$D$192","v":"País deudor"},{"$f":"'800111A GeneraXBRL'!$C$192","v":"co-svsp-core:PaisDeudorCxC"}]
["/*",null,{"$f":"'800111A GeneraXBRL'!$D$193","v":"Saldo cuentas por cobrar"},{"$f":"'800111A GeneraXBRL'!$C$193","v":"co-svsp-core:SaldoCuentasPorCobrarCxC"}]
["/*",null,"--71--"]
["/*",null,{"$f":"'800111A GeneraXBRL'!$D$182","v":"Tipo de documento del deudor"},{"$f":"'800111A GeneraXBRL'!$C$182","v":"co-svsp-core:TipoDeDocumentoDeudorCxC"}]
["/*",null,{"$f":"'800111A GeneraXBRL'!$D$183","v":"Número de identificación del deudor"},{"$f":"'800111A GeneraXBRL'!$C$183","v":"co-svsp-core:NumeroIdentificacionDeudorCxC"}]
["/*",null,{"$f":"'800111A GeneraXBRL'!$D$184","v":"Primer apellido deudor"},{"$f":"'800111A GeneraXBRL'!$C$184","v":"co-svsp-core:PrimerApellidoDeudorCxC"}]
["/*",null,{"$f":"'800111A GeneraXBRL'!$D$185","v":"Segundo apellido deudor"},{"$f":"'800111A GeneraXBRL'!$C$185","v":"co-svsp-core:SegundoApellidoDeudorCxC"}]
["/*",null,{"$f":"'800111A GeneraXBRL'!$D$186","v":"Primer nombre deudor"},{"$f":"'800111A GeneraXBRL'!$C$186","v":"co-svsp-core:PrimerNombreDeudorCxC"}]
["/*",null,{"$f":"'800111A GeneraXBRL'!$D$187","v":"Otros nombres deudor"},{"$f":"'800111A GeneraXBRL'!$C$187","v":"co-svsp-core:OtrosNombresDeudorCxC"}]
["/*",null,{"$f":"'800111A GeneraXBRL'!$D$188","v":"Razón Social deudor"},{"$f":"'800111A GeneraXBRL'!$C$188","v":"co-svsp-core:RazonSocialDeudorCxC"}]
["/*",null,{"$f":"'800111A GeneraXBRL'!$D$189","v":"Dirección deudor"},{"$f":"'800111A GeneraXBRL'!$C$189","v":"co-svsp-core:DireccionDeudorCxC"}]
["/*",null,{"$f":"'800111A GeneraXBRL'!$D$190","v":"Departamento deudor"},{"$f":"'800111A GeneraXBRL'!$C$190","v":"co-svsp-core:DepartamentoDeudorCxC"}]
["/*",null,{"$f":"'800111A GeneraXBRL'!$D$191","v":"Municipio deudor"},{"$f":"'800111A GeneraXBRL'!$C$191","v":"co-svsp-core:MunicipioDeudorCxC"}]
["/*",null,{"$f":"'800111A GeneraXBRL'!$D$192","v":"País deudor"},{"$f":"'800111A GeneraXBRL'!$C$192","v":"co-svsp-core:PaisDeudorCxC"}]
["/*",null,{"$f":"'800111A GeneraXBRL'!$D$193","v":"Saldo cuentas por cobrar"},{"$f":"'800111A GeneraXBRL'!$C$193","v":"co-svsp-core:SaldoCuentasPorCobrarCxC"}]
["/*",null,"--72--"]
["/*",null,{"$f":"'800111A GeneraXBRL'!$D$182","v":"Tipo de documento del deudor"},{"$f":"'800111A GeneraXBRL'!$C$182","v":"co-svsp-core:TipoDeDocumentoDeudorCxC"}]
["/*",null,{"$f":"'800111A GeneraXBRL'!$D$183","v":"Número de identificación del deudor"},{"$f":"'800111A GeneraXBRL'!$C$183","v":"co-svsp-core:NumeroIdentificacionDeudorCxC"}]
["/*",null,{"$f":"'800111A GeneraXBRL'!$D$184","v":"Primer apellido deudor"},{"$f":"'800111A GeneraXBRL'!$C$184","v":"co-svsp-core:PrimerApellidoDeudorCxC"}]
["/*",null,{"$f":"'800111A GeneraXBRL'!$D$185","v":"Segundo apellido deudor"},{"$f":"'800111A GeneraXBRL'!$C$185","v":"co-svsp-core:SegundoApellidoDeudorCxC"}]
["/*",null,{"$f":"'800111A GeneraXBRL'!$D$186","v":"Primer nombre deudor"},{"$f":"'800111A GeneraXBRL'!$C$186","v":"co-svsp-core:PrimerNombreDeudorCxC"}]
["/*",null,{"$f":"'800111A GeneraXBRL'!$D$187","v":"Otros nombres deudor"},{"$f":"'800111A GeneraXBRL'!$C$187","v":"co-svsp-core:OtrosNombresDeudorCxC"}]
["/*",null,{"$f":"'800111A GeneraXBRL'!$D$188","v":"Razón Social deudor"},{"$f":"'800111A GeneraXBRL'!$C$188","v":"co-svsp-core:RazonSocialDeudorCxC"}]
["/*",null,{"$f":"'800111A GeneraXBRL'!$D$189","v":"Dirección deudor"},{"$f":"'800111A GeneraXBRL'!$C$189","v":"co-svsp-core:DireccionDeudorCxC"}]
["/*",null,{"$f":"'800111A GeneraXBRL'!$D$190","v":"Departamento deudor"},{"$f":"'800111A GeneraXBRL'!$C$190","v":"co-svsp-core:DepartamentoDeudorCxC"}]
["/*",null,{"$f":"'800111A GeneraXBRL'!$D$191","v":"Municipio deudor"},{"$f":"'800111A GeneraXBRL'!$C$191","v":"co-svsp-core:MunicipioDeudorCxC"}]
["/*",null,{"$f":"'800111A GeneraXBRL'!$D$192","v":"País deudor"},{"$f":"'800111A GeneraXBRL'!$C$192","v":"co-svsp-core:PaisDeudorCxC"}]
["/*",null,{"$f":"'800111A GeneraXBRL'!$D$193","v":"Saldo cuentas por cobrar"},{"$f":"'800111A GeneraXBRL'!$C$193","v":"co-svsp-core:SaldoCuentasPorCobrarCxC"}]
["/*",null,"--73--"]
["/*",null,{"$f":"'800111A GeneraXBRL'!$D$182","v":"Tipo de documento del deudor"},{"$f":"'800111A GeneraXBRL'!$C$182","v":"co-svsp-core:TipoDeDocumentoDeudorCxC"}]
["/*",null,{"$f":"'800111A GeneraXBRL'!$D$183","v":"Número de identificación del deudor"},{"$f":"'800111A GeneraXBRL'!$C$183","v":"co-svsp-core:NumeroIdentificacionDeudorCxC"}]
["/*",null,{"$f":"'800111A GeneraXBRL'!$D$184","v":"Primer apellido deudor"},{"$f":"'800111A GeneraXBRL'!$C$184","v":"co-svsp-core:PrimerApellidoDeudorCxC"}]
["/*",null,{"$f":"'800111A GeneraXBRL'!$D$185","v":"Segundo apellido deudor"},{"$f":"'800111A GeneraXBRL'!$C$185","v":"co-svsp-core:SegundoApellidoDeudorCxC"}]
["/*",null,{"$f":"'800111A GeneraXBRL'!$D$186","v":"Primer nombre deudor"},{"$f":"'800111A GeneraXBRL'!$C$186","v":"co-svsp-core:PrimerNombreDeudorCxC"}]
["/*",null,{"$f":"'800111A GeneraXBRL'!$D$187","v":"Otros nombres deudor"},{"$f":"'800111A GeneraXBRL'!$C$187","v":"co-svsp-core:OtrosNombresDeudorCxC"}]
["/*",null,{"$f":"'800111A GeneraXBRL'!$D$188","v":"Razón Social deudor"},{"$f":"'800111A GeneraXBRL'!$C$188","v":"co-svsp-core:RazonSocialDeudorCxC"}]
["/*",null,{"$f":"'800111A GeneraXBRL'!$D$189","v":"Dirección deudor"},{"$f":"'800111A GeneraXBRL'!$C$189","v":"co-svsp-core:DireccionDeudorCxC"}]
["/*",null,{"$f":"'800111A GeneraXBRL'!$D$190","v":"Departamento deudor"},{"$f":"'800111A GeneraXBRL'!$C$190","v":"co-svsp-core:DepartamentoDeudorCxC"}]
["/*",null,{"$f":"'800111A GeneraXBRL'!$D$191","v":"Municipio deudor"},{"$f":"'800111A GeneraXBRL'!$C$191","v":"co-svsp-core:MunicipioDeudorCxC"}]
["/*",null,{"$f":"'800111A GeneraXBRL'!$D$192","v":"País deudor"},{"$f":"'800111A GeneraXBRL'!$C$192","v":"co-svsp-core:PaisDeudorCxC"}]
["/*",null,{"$f":"'800111A GeneraXBRL'!$D$193","v":"Saldo cuentas por cobrar"},{"$f":"'800111A GeneraXBRL'!$C$193","v":"co-svsp-core:SaldoCuentasPorCobrarCxC"}]
[{"$f":"IF(G3488=\"\",\"/*\",\"\")","v":"/*"},null,"--74--"]
["/*",null,{"$f":"'800111A GeneraXBRL'!$D$182","v":"Tipo de documento del deudor"},{"$f":"'800111A GeneraXBRL'!$C$182","v":"co-svsp-core:TipoDeDocumentoDeudorCxC"}]
["/*",null,{"$f":"'800111A GeneraXBRL'!$D$183","v":"Número de identificación del deudor"},{"$f":"'800111A GeneraXBRL'!$C$183","v":"co-svsp-core:NumeroIdentificacionDeudorCxC"}]
["/*",null,{"$f":"'800111A GeneraXBRL'!$D$184","v":"Primer apellido deudor"},{"$f":"'800111A GeneraXBRL'!$C$184","v":"co-svsp-core:PrimerApellidoDeudorCxC"}]
["/*",null,{"$f":"'800111A GeneraXBRL'!$D$185","v":"Segundo apellido deudor"},{"$f":"'800111A GeneraXBRL'!$C$185","v":"co-svsp-core:SegundoApellidoDeudorCxC"}]
["/*",null,{"$f":"'800111A GeneraXBRL'!$D$186","v":"Primer nombre deudor"},{"$f":"'800111A GeneraXBRL'!$C$186","v":"co-svsp-core:PrimerNombreDeudorCxC"}]
["/*",null,{"$f":"'800111A GeneraXBRL'!$D$187","v":"Otros nombres deudor"},{"$f":"'800111A GeneraXBRL'!$C$187","v":"co-svsp-core:OtrosNombresDeudorCxC"}]
["/*",null,{"$f":"'800111A GeneraXBRL'!$D$188","v":"Razón Social deudor"},{"$f":"'800111A GeneraXBRL'!$C$188","v":"co-svsp-core:RazonSocialDeudorCxC"}]
["/*",null,{"$f":"'800111A GeneraXBRL'!$D$189","v":"Dirección deudor"},{"$f":"'800111A GeneraXBRL'!$C$189","v":"co-svsp-core:DireccionDeudorCxC"}]
["/*",null,{"$f":"'800111A GeneraXBRL'!$D$190","v":"Departamento deudor"},{"$f":"'800111A GeneraXBRL'!$C$190","v":"co-svsp-core:DepartamentoDeudorCxC"}]
["/*",null,{"$f":"'800111A GeneraXBRL'!$D$191","v":"Municipio deudor"},{"$f":"'800111A GeneraXBRL'!$C$191","v":"co-svsp-core:MunicipioDeudorCxC"}]
["/*",null,{"$f":"'800111A GeneraXBRL'!$D$192","v":"País deudor"},{"$f":"'800111A GeneraXBRL'!$C$192","v":"co-svsp-core:PaisDeudorCxC"}]
["/*",null,{"$f":"'800111A GeneraXBRL'!$D$193","v":"Saldo cuentas por cobrar"},{"$f":"'800111A GeneraXBRL'!$C$193","v":"co-svsp-core:SaldoCuentasPorCobrarCxC"}]
["/*",null,"--75--"]
["/*",null,{"$f":"'800111A GeneraXBRL'!$D$182","v":"Tipo de documento del deudor"},{"$f":"'800111A GeneraXBRL'!$C$182","v":"co-svsp-core:TipoDeDocumentoDeudorCxC"}]
["/*",null,{"$f":"'800111A GeneraXBRL'!$D$183","v":"Número de identificación del deudor"},{"$f":"'800111A GeneraXBRL'!$C$183","v":"co-svsp-core:NumeroIdentificacionDeudorCxC"}]
["/*",null,{"$f":"'800111A GeneraXBRL'!$D$184","v":"Primer apellido deudor"},{"$f":"'800111A GeneraXBRL'!$C$184","v":"co-svsp-core:PrimerApellidoDeudorCxC"}]
["/*",null,{"$f":"'800111A GeneraXBRL'!$D$185","v":"Segundo apellido deudor"},{"$f":"'800111A GeneraXBRL'!$C$185","v":"co-svsp-core:SegundoApellidoDeudorCxC"}]
["/*",null,{"$f":"'800111A GeneraXBRL'!$D$186","v":"Primer nombre deudor"},{"$f":"'800111A GeneraXBRL'!$C$186","v":"co-svsp-core:PrimerNombreDeudorCxC"}]
["/*",null,{"$f":"'800111A GeneraXBRL'!$D$187","v":"Otros nombres deudor"},{"$f":"'800111A GeneraXBRL'!$C$187","v":"co-svsp-core:OtrosNombresDeudorCxC"}]
["/*",null,{"$f":"'800111A GeneraXBRL'!$D$188","v":"Razón Social deudor"},{"$f":"'800111A GeneraXBRL'!$C$188","v":"co-svsp-core:RazonSocialDeudorCxC"}]
["/*",null,{"$f":"'800111A GeneraXBRL'!$D$189","v":"Dirección deudor"},{"$f":"'800111A GeneraXBRL'!$C$189","v":"co-svsp-core:DireccionDeudorCxC"}]
["/*",null,{"$f":"'800111A GeneraXBRL'!$D$190","v":"Departamento deudor"},{"$f":"'800111A GeneraXBRL'!$C$190","v":"co-svsp-core:DepartamentoDeudorCxC"}]
["/*",null,{"$f":"'800111A GeneraXBRL'!$D$191","v":"Municipio deudor"},{"$f":"'800111A GeneraXBRL'!$C$191","v":"co-svsp-core:MunicipioDeudorCxC"}]
["/*",null,{"$f":"'800111A GeneraXBRL'!$D$192","v":"País deudor"},{"$f":"'800111A GeneraXBRL'!$C$192","v":"co-svsp-core:PaisDeudorCxC"}]
["/*",null,{"$f":"'800111A GeneraXBRL'!$D$193","v":"Saldo cuentas por cobrar"},{"$f":"'800111A GeneraXBRL'!$C$193","v":"co-svsp-core:SaldoCuentasPorCobrarCxC"}]
["/*",null,"--76--"]
["/*",null,{"$f":"'800111A GeneraXBRL'!$D$182","v":"Tipo de documento del deudor"},{"$f":"'800111A GeneraXBRL'!$C$182","v":"co-svsp-core:TipoDeDocumentoDeudorCxC"}]
["/*",null,{"$f":"'800111A GeneraXBRL'!$D$183","v":"Número de identificación del deudor"},{"$f":"'800111A GeneraXBRL'!$C$183","v":"co-svsp-core:NumeroIdentificacionDeudorCxC"}]
["/*",null,{"$f":"'800111A GeneraXBRL'!$D$184","v":"Primer apellido deudor"},{"$f":"'800111A GeneraXBRL'!$C$184","v":"co-svsp-core:PrimerApellidoDeudorCxC"}]
["/*",null,{"$f":"'800111A GeneraXBRL'!$D$185","v":"Segundo apellido deudor"},{"$f":"'800111A GeneraXBRL'!$C$185","v":"co-svsp-core:SegundoApellidoDeudorCxC"}]
["/*",null,{"$f":"'800111A GeneraXBRL'!$D$186","v":"Primer nombre deudor"},{"$f":"'800111A GeneraXBRL'!$C$186","v":"co-svsp-core:PrimerNombreDeudorCxC"}]
["/*",null,{"$f":"'800111A GeneraXBRL'!$D$187","v":"Otros nombres deudor"},{"$f":"'800111A GeneraXBRL'!$C$187","v":"co-svsp-core:OtrosNombresDeudorCxC"}]
["/*",null,{"$f":"'800111A GeneraXBRL'!$D$188","v":"Razón Social deudor"},{"$f":"'800111A GeneraXBRL'!$C$188","v":"co-svsp-core:RazonSocialDeudorCxC"}]
["/*",null,{"$f":"'800111A GeneraXBRL'!$D$189","v":"Dirección deudor"},{"$f":"'800111A GeneraXBRL'!$C$189","v":"co-svsp-core:DireccionDeudorCxC"}]
["/*",null,{"$f":"'800111A GeneraXBRL'!$D$190","v":"Departamento deudor"},{"$f":"'800111A GeneraXBRL'!$C$190","v":"co-svsp-core:DepartamentoDeudorCxC"}]
["/*",null,{"$f":"'800111A GeneraXBRL'!$D$191","v":"Municipio deudor"},{"$f":"'800111A GeneraXBRL'!$C$191","v":"co-svsp-core:MunicipioDeudorCxC"}]
["/*",null,{"$f":"'800111A GeneraXBRL'!$D$192","v":"País deudor"},{"$f":"'800111A GeneraXBRL'!$C$192","v":"co-svsp-core:PaisDeudorCxC"}]
["/*",null,{"$f":"'800111A GeneraXBRL'!$D$193","v":"Saldo cuentas por cobrar"},{"$f":"'800111A GeneraXBRL'!$C$193","v":"co-svsp-core:SaldoCuentasPorCobrarCxC"}]
["/*",null,"--77--"]
["/*",null,{"$f":"'800111A GeneraXBRL'!$D$182","v":"Tipo de documento del deudor"},{"$f":"'800111A GeneraXBRL'!$C$182","v":"co-svsp-core:TipoDeDocumentoDeudorCxC"}]
["/*",null,{"$f":"'800111A GeneraXBRL'!$D$183","v":"Número de identificación del deudor"},{"$f":"'800111A GeneraXBRL'!$C$183","v":"co-svsp-core:NumeroIdentificacionDeudorCxC"}]
["/*",null,{"$f":"'800111A GeneraXBRL'!$D$184","v":"Primer apellido deudor"},{"$f":"'800111A GeneraXBRL'!$C$184","v":"co-svsp-core:PrimerApellidoDeudorCxC"}]
["/*",null,{"$f":"'800111A GeneraXBRL'!$D$185","v":"Segundo apellido deudor"},{"$f":"'800111A GeneraXBRL'!$C$185","v":"co-svsp-core:SegundoApellidoDeudorCxC"}]
["/*",null,{"$f":"'800111A GeneraXBRL'!$D$186","v":"Primer nombre deudor"},{"$f":"'800111A GeneraXBRL'!$C$186","v":"co-svsp-core:PrimerNombreDeudorCxC"}]
["/*",null,{"$f":"'800111A GeneraXBRL'!$D$187","v":"Otros nombres deudor"},{"$f":"'800111A GeneraXBRL'!$C$187","v":"co-svsp-core:OtrosNombresDeudorCxC"}]
["/*",null,{"$f":"'800111A GeneraXBRL'!$D$188","v":"Razón Social deudor"},{"$f":"'800111A GeneraXBRL'!$C$188","v":"co-svsp-core:RazonSocialDeudorCxC"}]
["/*",null,{"$f":"'800111A GeneraXBRL'!$D$189","v":"Dirección deudor"},{"$f":"'800111A GeneraXBRL'!$C$189","v":"co-svsp-core:DireccionDeudorCxC"}]
["/*",null,{"$f":"'800111A GeneraXBRL'!$D$190","v":"Departamento deudor"},{"$f":"'800111A GeneraXBRL'!$C$190","v":"co-svsp-core:DepartamentoDeudorCxC"}]
["/*",null,{"$f":"'800111A GeneraXBRL'!$D$191","v":"Municipio deudor"},{"$f":"'800111A GeneraXBRL'!$C$191","v":"co-svsp-core:MunicipioDeudorCxC"}]
["/*",null,{"$f":"'800111A GeneraXBRL'!$D$192","v":"País deudor"},{"$f":"'800111A GeneraXBRL'!$C$192","v":"co-svsp-core:PaisDeudorCxC"}]
["/*",null,{"$f":"'800111A GeneraXBRL'!$D$193","v":"Saldo cuentas por cobrar"},{"$f":"'800111A GeneraXBRL'!$C$193","v":"co-svsp-core:SaldoCuentasPorCobrarCxC"}]
["/*",null,"--78--"]
["/*",null,{"$f":"'800111A GeneraXBRL'!$D$182","v":"Tipo de documento del deudor"},{"$f":"'800111A GeneraXBRL'!$C$182","v":"co-svsp-core:TipoDeDocumentoDeudorCxC"}]
["/*",null,{"$f":"'800111A GeneraXBRL'!$D$183","v":"Número de identificación del deudor"},{"$f":"'800111A GeneraXBRL'!$C$183","v":"co-svsp-core:NumeroIdentificacionDeudorCxC"}]
["/*",null,{"$f":"'800111A GeneraXBRL'!$D$184","v":"Primer apellido deudor"},{"$f":"'800111A GeneraXBRL'!$C$184","v":"co-svsp-core:PrimerApellidoDeudorCxC"}]
["/*",null,{"$f":"'800111A GeneraXBRL'!$D$185","v":"Segundo apellido deudor"},{"$f":"'800111A GeneraXBRL'!$C$185","v":"co-svsp-core:SegundoApellidoDeudorCxC"}]
["/*",null,{"$f":"'800111A GeneraXBRL'!$D$186","v":"Primer nombre deudor"},{"$f":"'800111A GeneraXBRL'!$C$186","v":"co-svsp-core:PrimerNombreDeudorCxC"}]
["/*",null,{"$f":"'800111A GeneraXBRL'!$D$187","v":"Otros nombres deudor"},{"$f":"'800111A GeneraXBRL'!$C$187","v":"co-svsp-core:OtrosNombresDeudorCxC"}]
["/*",null,{"$f":"'800111A GeneraXBRL'!$D$188","v":"Razón Social deudor"},{"$f":"'800111A GeneraXBRL'!$C$188","v":"co-svsp-core:RazonSocialDeudorCxC"}]
["/*",null,{"$f":"'800111A GeneraXBRL'!$D$189","v":"Dirección deudor"},{"$f":"'800111A GeneraXBRL'!$C$189","v":"co-svsp-core:DireccionDeudorCxC"}]
["/*",null,{"$f":"'800111A GeneraXBRL'!$D$190","v":"Departamento deudor"},{"$f":"'800111A GeneraXBRL'!$C$190","v":"co-svsp-core:DepartamentoDeudorCxC"}]
["/*",null,{"$f":"'800111A GeneraXBRL'!$D$191","v":"Municipio deudor"},{"$f":"'800111A GeneraXBRL'!$C$191","v":"co-svsp-core:MunicipioDeudorCxC"}]
["/*",null,{"$f":"'800111A GeneraXBRL'!$D$192","v":"País deudor"},{"$f":"'800111A GeneraXBRL'!$C$192","v":"co-svsp-core:PaisDeudorCxC"}]
[{"$f":"IF(G3552=\"\",\"/*\",\"\")","v":"/*"},null,{"$f":"'800111A GeneraXBRL'!$D$193","v":"Saldo cuentas por cobrar"},{"$f":"'800111A GeneraXBRL'!$C$193","v":"co-svsp-core:SaldoCuentasPorCobrarCxC"}]
["/*",null,"--79--"]
["/*",null,{"$f":"'800111A GeneraXBRL'!$D$182","v":"Tipo de documento del deudor"},{"$f":"'800111A GeneraXBRL'!$C$182","v":"co-svsp-core:TipoDeDocumentoDeudorCxC"}]
["/*",null,{"$f":"'800111A GeneraXBRL'!$D$183","v":"Número de identificación del deudor"},{"$f":"'800111A GeneraXBRL'!$C$183","v":"co-svsp-core:NumeroIdentificacionDeudorCxC"}]
["/*",null,{"$f":"'800111A GeneraXBRL'!$D$184","v":"Primer apellido deudor"},{"$f":"'800111A GeneraXBRL'!$C$184","v":"co-svsp-core:PrimerApellidoDeudorCxC"}]
["/*",null,{"$f":"'800111A GeneraXBRL'!$D$185","v":"Segundo apellido deudor"},{"$f":"'800111A GeneraXBRL'!$C$185","v":"co-svsp-core:SegundoApellidoDeudorCxC"}]
["/*",null,{"$f":"'800111A GeneraXBRL'!$D$186","v":"Primer nombre deudor"},{"$f":"'800111A GeneraXBRL'!$C$186","v":"co-svsp-core:PrimerNombreDeudorCxC"}]
["/*",null,{"$f":"'800111A GeneraXBRL'!$D$187","v":"Otros nombres deudor"},{"$f":"'800111A GeneraXBRL'!$C$187","v":"co-svsp-core:OtrosNombresDeudorCxC"}]
["/*",null,{"$f":"'800111A GeneraXBRL'!$D$188","v":"Razón Social deudor"},{"$f":"'800111A GeneraXBRL'!$C$188","v":"co-svsp-core:RazonSocialDeudorCxC"}]
["/*",null,{"$f":"'800111A GeneraXBRL'!$D$189","v":"Dirección deudor"},{"$f":"'800111A GeneraXBRL'!$C$189","v":"co-svsp-core:DireccionDeudorCxC"}]
["/*",null,{"$f":"'800111A GeneraXBRL'!$D$190","v":"Departamento deudor"},{"$f":"'800111A GeneraXBRL'!$C$190","v":"co-svsp-core:DepartamentoDeudorCxC"}]
["/*",null,{"$f":"'800111A GeneraXBRL'!$D$191","v":"Municipio deudor"},{"$f":"'800111A GeneraXBRL'!$C$191","v":"co-svsp-core:MunicipioDeudorCxC"}]
["/*",null,{"$f":"'800111A GeneraXBRL'!$D$192","v":"País deudor"},{"$f":"'800111A GeneraXBRL'!$C$192","v":"co-svsp-core:PaisDeudorCxC"}]
["/*",null,{"$f":"'800111A GeneraXBRL'!$D$193","v":"Saldo cuentas por cobrar"},{"$f":"'800111A GeneraXBRL'!$C$193","v":"co-svsp-core:SaldoCuentasPorCobrarCxC"}]
["/*",null,"--80--"]
["/*",null,{"$f":"'800111A GeneraXBRL'!$D$182","v":"Tipo de documento del deudor"},{"$f":"'800111A GeneraXBRL'!$C$182","v":"co-svsp-core:TipoDeDocumentoDeudorCxC"}]
["/*",null,{"$f":"'800111A GeneraXBRL'!$D$183","v":"Número de identificación del deudor"},{"$f":"'800111A GeneraXBRL'!$C$183","v":"co-svsp-core:NumeroIdentificacionDeudorCxC"}]
["/*",null,{"$f":"'800111A GeneraXBRL'!$D$184","v":"Primer apellido deudor"},{"$f":"'800111A GeneraXBRL'!$C$184","v":"co-svsp-core:PrimerApellidoDeudorCxC"}]
["/*",null,{"$f":"'800111A GeneraXBRL'!$D$185","v":"Segundo apellido deudor"},{"$f":"'800111A GeneraXBRL'!$C$185","v":"co-svsp-core:SegundoApellidoDeudorCxC"}]
["/*",null,{"$f":"'800111A GeneraXBRL'!$D$186","v":"Primer nombre deudor"},{"$f":"'800111A GeneraXBRL'!$C$186","v":"co-svsp-core:PrimerNombreDeudorCxC"}]
["/*",null,{"$f":"'800111A GeneraXBRL'!$D$187","v":"Otros nombres deudor"},{"$f":"'800111A GeneraXBRL'!$C$187","v":"co-svsp-core:OtrosNombresDeudorCxC"}]
["/*",null,{"$f":"'800111A GeneraXBRL'!$D$188","v":"Razón Social deudor"},{"$f":"'800111A GeneraXBRL'!$C$188","v":"co-svsp-core:RazonSocialDeudorCxC"}]
["/*",null,{"$f":"'800111A GeneraXBRL'!$D$189","v":"Dirección deudor"},{"$f":"'800111A GeneraXBRL'!$C$189","v":"co-svsp-core:DireccionDeudorCxC"}]
["/*",null,{"$f":"'800111A GeneraXBRL'!$D$190","v":"Departamento deudor"},{"$f":"'800111A GeneraXBRL'!$C$190","v":"co-svsp-core:DepartamentoDeudorCxC"}]
["/*",null,{"$f":"'800111A GeneraXBRL'!$D$191","v":"Municipio deudor"},{"$f":"'800111A GeneraXBRL'!$C$191","v":"co-svsp-core:MunicipioDeudorCxC"}]
["/*",null,{"$f":"'800111A GeneraXBRL'!$D$192","v":"País deudor"},{"$f":"'800111A GeneraXBRL'!$C$192","v":"co-svsp-core:PaisDeudorCxC"}]
["/*",null,{"$f":"'800111A GeneraXBRL'!$D$193","v":"Saldo cuentas por cobrar"},{"$f":"'800111A GeneraXBRL'!$C$193","v":"co-svsp-core:SaldoCuentasPorCobrarCxC"}]
["/*",null,"--81--"]
["/*",null,{"$f":"'800111A GeneraXBRL'!$D$182","v":"Tipo de documento del deudor"},{"$f":"'800111A GeneraXBRL'!$C$182","v":"co-svsp-core:TipoDeDocumentoDeudorCxC"}]
["/*",null,{"$f":"'800111A GeneraXBRL'!$D$183","v":"Número de identificación del deudor"},{"$f":"'800111A GeneraXBRL'!$C$183","v":"co-svsp-core:NumeroIdentificacionDeudorCxC"}]
["/*",null,{"$f":"'800111A GeneraXBRL'!$D$184","v":"Primer apellido deudor"},{"$f":"'800111A GeneraXBRL'!$C$184","v":"co-svsp-core:PrimerApellidoDeudorCxC"}]
["/*",null,{"$f":"'800111A GeneraXBRL'!$D$185","v":"Segundo apellido deudor"},{"$f":"'800111A GeneraXBRL'!$C$185","v":"co-svsp-core:SegundoApellidoDeudorCxC"}]
["/*",null,{"$f":"'800111A GeneraXBRL'!$D$186","v":"Primer nombre deudor"},{"$f":"'800111A GeneraXBRL'!$C$186","v":"co-svsp-core:PrimerNombreDeudorCxC"}]
["/*",null,{"$f":"'800111A GeneraXBRL'!$D$187","v":"Otros nombres deudor"},{"$f":"'800111A GeneraXBRL'!$C$187","v":"co-svsp-core:OtrosNombresDeudorCxC"}]
["/*",null,{"$f":"'800111A GeneraXBRL'!$D$188","v":"Razón Social deudor"},{"$f":"'800111A GeneraXBRL'!$C$188","v":"co-svsp-core:RazonSocialDeudorCxC"}]
["/*",null,{"$f":"'800111A GeneraXBRL'!$D$189","v":"Dirección deudor"},{"$f":"'800111A GeneraXBRL'!$C$189","v":"co-svsp-core:DireccionDeudorCxC"}]
["/*",null,{"$f":"'800111A GeneraXBRL'!$D$190","v":"Departamento deudor"},{"$f":"'800111A GeneraXBRL'!$C$190","v":"co-svsp-core:DepartamentoDeudorCxC"}]
["/*",null,{"$f":"'800111A GeneraXBRL'!$D$191","v":"Municipio deudor"},{"$f":"'800111A GeneraXBRL'!$C$191","v":"co-svsp-core:MunicipioDeudorCxC"}]
["/*",null,{"$f":"'800111A GeneraXBRL'!$D$192","v":"País deudor"},{"$f":"'800111A GeneraXBRL'!$C$192","v":"co-svsp-core:PaisDeudorCxC"}]
["/*",null,{"$f":"'800111A GeneraXBRL'!$D$193","v":"Saldo cuentas por cobrar"},{"$f":"'800111A GeneraXBRL'!$C$193","v":"co-svsp-core:SaldoCuentasPorCobrarCxC"}]
["/*",null,"--82--"]
["/*",null,{"$f":"'800111A GeneraXBRL'!$D$182","v":"Tipo de documento del deudor"},{"$f":"'800111A GeneraXBRL'!$C$182","v":"co-svsp-core:TipoDeDocumentoDeudorCxC"}]
["/*",null,{"$f":"'800111A GeneraXBRL'!$D$183","v":"Número de identificación del deudor"},{"$f":"'800111A GeneraXBRL'!$C$183","v":"co-svsp-core:NumeroIdentificacionDeudorCxC"}]
["/*",null,{"$f":"'800111A GeneraXBRL'!$D$184","v":"Primer apellido deudor"},{"$f":"'800111A GeneraXBRL'!$C$184","v":"co-svsp-core:PrimerApellidoDeudorCxC"}]
["/*",null,{"$f":"'800111A GeneraXBRL'!$D$185","v":"Segundo apellido deudor"},{"$f":"'800111A GeneraXBRL'!$C$185","v":"co-svsp-core:SegundoApellidoDeudorCxC"}]
["/*",null,{"$f":"'800111A GeneraXBRL'!$D$186","v":"Primer nombre deudor"},{"$f":"'800111A GeneraXBRL'!$C$186","v":"co-svsp-core:PrimerNombreDeudorCxC"}]
["/*",null,{"$f":"'800111A GeneraXBRL'!$D$187","v":"Otros nombres deudor"},{"$f":"'800111A GeneraXBRL'!$C$187","v":"co-svsp-core:OtrosNombresDeudorCxC"}]
["/*",null,{"$f":"'800111A GeneraXBRL'!$D$188","v":"Razón Social deudor"},{"$f":"'800111A GeneraXBRL'!$C$188","v":"co-svsp-core:RazonSocialDeudorCxC"}]
["/*",null,{"$f":"'800111A GeneraXBRL'!$D$189","v":"Dirección deudor"},{"$f":"'800111A GeneraXBRL'!$C$189","v":"co-svsp-core:DireccionDeudorCxC"}]
["/*",null,{"$f":"'800111A GeneraXBRL'!$D$190","v":"Departamento deudor"},{"$f":"'800111A GeneraXBRL'!$C$190","v":"co-svsp-core:DepartamentoDeudorCxC"}]
["/*",null,{"$f":"'800111A GeneraXBRL'!$D$191","v":"Municipio deudor"},{"$f":"'800111A GeneraXBRL'!$C$191","v":"co-svsp-core:MunicipioDeudorCxC"}]
["/*",null,{"$f":"'800111A GeneraXBRL'!$D$192","v":"País deudor"},{"$f":"'800111A GeneraXBRL'!$C$192","v":"co-svsp-core:PaisDeudorCxC"}]
["/*",null,{"$f":"'800111A GeneraXBRL'!$D$193","v":"Saldo cuentas por cobrar"},{"$f":"'800111A GeneraXBRL'!$C$193","v":"co-svsp-core:SaldoCuentasPorCobrarCxC"}]
["/*",null,"--83--"]
["/*",null,{"$f":"'800111A GeneraXBRL'!$D$182","v":"Tipo de documento del deudor"},{"$f":"'800111A GeneraXBRL'!$C$182","v":"co-svsp-core:TipoDeDocumentoDeudorCxC"}]
["/*",null,{"$f":"'800111A GeneraXBRL'!$D$183","v":"Número de identificación del deudor"},{"$f":"'800111A GeneraXBRL'!$C$183","v":"co-svsp-core:NumeroIdentificacionDeudorCxC"}]
["/*",null,{"$f":"'800111A GeneraXBRL'!$D$184","v":"Primer apellido deudor"},{"$f":"'800111A GeneraXBRL'!$C$184","v":"co-svsp-core:PrimerApellidoDeudorCxC"}]
["/*",null,{"$f":"'800111A GeneraXBRL'!$D$185","v":"Segundo apellido deudor"},{"$f":"'800111A GeneraXBRL'!$C$185","v":"co-svsp-core:SegundoApellidoDeudorCxC"}]
["/*",null,{"$f":"'800111A GeneraXBRL'!$D$186","v":"Primer nombre deudor"},{"$f":"'800111A GeneraXBRL'!$C$186","v":"co-svsp-core:PrimerNombreDeudorCxC"}]
["/*",null,{"$f":"'800111A GeneraXBRL'!$D$187","v":"Otros nombres deudor"},{"$f":"'800111A GeneraXBRL'!$C$187","v":"co-svsp-core:OtrosNombresDeudorCxC"}]
["/*",null,{"$f":"'800111A GeneraXBRL'!$D$188","v":"Razón Social deudor"},{"$f":"'800111A GeneraXBRL'!$C$188","v":"co-svsp-core:RazonSocialDeudorCxC"}]
["/*",null,{"$f":"'800111A GeneraXBRL'!$D$189","v":"Dirección deudor"},{"$f":"'800111A GeneraXBRL'!$C$189","v":"co-svsp-core:DireccionDeudorCxC"}]
["/*",null,{"$f":"'800111A GeneraXBRL'!$D$190","v":"Departamento deudor"},{"$f":"'800111A GeneraXBRL'!$C$190","v":"co-svsp-core:DepartamentoDeudorCxC"}]
["/*",null,{"$f":"'800111A GeneraXBRL'!$D$191","v":"Municipio deudor"},{"$f":"'800111A GeneraXBRL'!$C$191","v":"co-svsp-core:MunicipioDeudorCxC"}]
[{"$f":"IF(G3616=\"\",\"/*\",\"\")","v":"/*"},null,{"$f":"'800111A GeneraXBRL'!$D$192","v":"País deudor"},{"$f":"'800111A GeneraXBRL'!$C$192","v":"co-svsp-core:PaisDeudorCxC"}]
["/*",null,{"$f":"'800111A GeneraXBRL'!$D$193","v":"Saldo cuentas por cobrar"},{"$f":"'800111A GeneraXBRL'!$C$193","v":"co-svsp-core:SaldoCuentasPorCobrarCxC"}]
["/*",null,"--84--"]
["/*",null,{"$f":"'800111A GeneraXBRL'!$D$182","v":"Tipo de documento del deudor"},{"$f":"'800111A GeneraXBRL'!$C$182","v":"co-svsp-core:TipoDeDocumentoDeudorCxC"}]
["/*",null,{"$f":"'800111A GeneraXBRL'!$D$183","v":"Número de identificación del deudor"},{"$f":"'800111A GeneraXBRL'!$C$183","v":"co-svsp-core:NumeroIdentificacionDeudorCxC"}]
["/*",null,{"$f":"'800111A GeneraXBRL'!$D$184","v":"Primer apellido deudor"},{"$f":"'800111A GeneraXBRL'!$C$184","v":"co-svsp-core:PrimerApellidoDeudorCxC"}]
["/*",null,{"$f":"'800111A GeneraXBRL'!$D$185","v":"Segundo apellido deudor"},{"$f":"'800111A GeneraXBRL'!$C$185","v":"co-svsp-core:SegundoApellidoDeudorCxC"}]
["/*",null,{"$f":"'800111A GeneraXBRL'!$D$186","v":"Primer nombre deudor"},{"$f":"'800111A GeneraXBRL'!$C$186","v":"co-svsp-core:PrimerNombreDeudorCxC"}]
["/*",null,{"$f":"'800111A GeneraXBRL'!$D$187","v":"Otros nombres deudor"},{"$f":"'800111A GeneraXBRL'!$C$187","v":"co-svsp-core:OtrosNombresDeudorCxC"}]
["/*",null,{"$f":"'800111A GeneraXBRL'!$D$188","v":"Razón Social deudor"},{"$f":"'800111A GeneraXBRL'!$C$188","v":"co-svsp-core:RazonSocialDeudorCxC"}]
["/*",null,{"$f":"'800111A GeneraXBRL'!$D$189","v":"Dirección deudor"},{"$f":"'800111A GeneraXBRL'!$C$189","v":"co-svsp-core:DireccionDeudorCxC"}]
["/*",null,{"$f":"'800111A GeneraXBRL'!$D$190","v":"Departamento deudor"},{"$f":"'800111A GeneraXBRL'!$C$190","v":"co-svsp-core:DepartamentoDeudorCxC"}]
["/*",null,{"$f":"'800111A GeneraXBRL'!$D$191","v":"Municipio deudor"},{"$f":"'800111A GeneraXBRL'!$C$191","v":"co-svsp-core:MunicipioDeudorCxC"}]
["/*",null,{"$f":"'800111A GeneraXBRL'!$D$192","v":"País deudor"},{"$f":"'800111A GeneraXBRL'!$C$192","v":"co-svsp-core:PaisDeudorCxC"}]
["/*",null,{"$f":"'800111A GeneraXBRL'!$D$193","v":"Saldo cuentas por cobrar"},{"$f":"'800111A GeneraXBRL'!$C$193","v":"co-svsp-core:SaldoCuentasPorCobrarCxC"}]
["/*",null,"--85--"]
["/*",null,{"$f":"'800111A GeneraXBRL'!$D$182","v":"Tipo de documento del deudor"},{"$f":"'800111A GeneraXBRL'!$C$182","v":"co-svsp-core:TipoDeDocumentoDeudorCxC"}]
["/*",null,{"$f":"'800111A GeneraXBRL'!$D$183","v":"Número de identificación del deudor"},{"$f":"'800111A GeneraXBRL'!$C$183","v":"co-svsp-core:NumeroIdentificacionDeudorCxC"}]
["/*",null,{"$f":"'800111A GeneraXBRL'!$D$184","v":"Primer apellido deudor"},{"$f":"'800111A GeneraXBRL'!$C$184","v":"co-svsp-core:PrimerApellidoDeudorCxC"}]
["/*",null,{"$f":"'800111A GeneraXBRL'!$D$185","v":"Segundo apellido deudor"},{"$f":"'800111A GeneraXBRL'!$C$185","v":"co-svsp-core:SegundoApellidoDeudorCxC"}]
["/*",null,{"$f":"'800111A GeneraXBRL'!$D$186","v":"Primer nombre deudor"},{"$f":"'800111A GeneraXBRL'!$C$186","v":"co-svsp-core:PrimerNombreDeudorCxC"}]
["/*",null,{"$f":"'800111A GeneraXBRL'!$D$187","v":"Otros nombres deudor"},{"$f":"'800111A GeneraXBRL'!$C$187","v":"co-svsp-core:OtrosNombresDeudorCxC"}]
["/*",null,{"$f":"'800111A GeneraXBRL'!$D$188","v":"Razón Social deudor"},{"$f":"'800111A GeneraXBRL'!$C$188","v":"co-svsp-core:RazonSocialDeudorCxC"}]
["/*",null,{"$f":"'800111A GeneraXBRL'!$D$189","v":"Dirección deudor"},{"$f":"'800111A GeneraXBRL'!$C$189","v":"co-svsp-core:DireccionDeudorCxC"}]
["/*",null,{"$f":"'800111A GeneraXBRL'!$D$190","v":"Departamento deudor"},{"$f":"'800111A GeneraXBRL'!$C$190","v":"co-svsp-core:DepartamentoDeudorCxC"}]
["/*",null,{"$f":"'800111A GeneraXBRL'!$D$191","v":"Municipio deudor"},{"$f":"'800111A GeneraXBRL'!$C$191","v":"co-svsp-core:MunicipioDeudorCxC"}]
["/*",null,{"$f":"'800111A GeneraXBRL'!$D$192","v":"País deudor"},{"$f":"'800111A GeneraXBRL'!$C$192","v":"co-svsp-core:PaisDeudorCxC"}]
["/*",null,{"$f":"'800111A GeneraXBRL'!$D$193","v":"Saldo cuentas por cobrar"},{"$f":"'800111A GeneraXBRL'!$C$193","v":"co-svsp-core:SaldoCuentasPorCobrarCxC"}]
["/*",null,"--86--"]
["/*",null,{"$f":"'800111A GeneraXBRL'!$D$182","v":"Tipo de documento del deudor"},{"$f":"'800111A GeneraXBRL'!$C$182","v":"co-svsp-core:TipoDeDocumentoDeudorCxC"}]
["/*",null,{"$f":"'800111A GeneraXBRL'!$D$183","v":"Número de identificación del deudor"},{"$f":"'800111A GeneraXBRL'!$C$183","v":"co-svsp-core:NumeroIdentificacionDeudorCxC"}]
["/*",null,{"$f":"'800111A GeneraXBRL'!$D$184","v":"Primer apellido deudor"},{"$f":"'800111A GeneraXBRL'!$C$184","v":"co-svsp-core:PrimerApellidoDeudorCxC"}]
["/*",null,{"$f":"'800111A GeneraXBRL'!$D$185","v":"Segundo apellido deudor"},{"$f":"'800111A GeneraXBRL'!$C$185","v":"co-svsp-core:SegundoApellidoDeudorCxC"}]
["/*",null,{"$f":"'800111A GeneraXBRL'!$D$186","v":"Primer nombre deudor"},{"$f":"'800111A GeneraXBRL'!$C$186","v":"co-svsp-core:PrimerNombreDeudorCxC"}]
["/*",null,{"$f":"'800111A GeneraXBRL'!$D$187","v":"Otros nombres deudor"},{"$f":"'800111A GeneraXBRL'!$C$187","v":"co-svsp-core:OtrosNombresDeudorCxC"}]
["/*",null,{"$f":"'800111A GeneraXBRL'!$D$188","v":"Razón Social deudor"},{"$f":"'800111A GeneraXBRL'!$C$188","v":"co-svsp-core:RazonSocialDeudorCxC"}]
["/*",null,{"$f":"'800111A GeneraXBRL'!$D$189","v":"Dirección deudor"},{"$f":"'800111A GeneraXBRL'!$C$189","v":"co-svsp-core:DireccionDeudorCxC"}]
["/*",null,{"$f":"'800111A GeneraXBRL'!$D$190","v":"Departamento deudor"},{"$f":"'800111A GeneraXBRL'!$C$190","v":"co-svsp-core:DepartamentoDeudorCxC"}]
["/*",null,{"$f":"'800111A GeneraXBRL'!$D$191","v":"Municipio deudor"},{"$f":"'800111A GeneraXBRL'!$C$191","v":"co-svsp-core:MunicipioDeudorCxC"}]
["/*",null,{"$f":"'800111A GeneraXBRL'!$D$192","v":"País deudor"},{"$f":"'800111A GeneraXBRL'!$C$192","v":"co-svsp-core:PaisDeudorCxC"}]
["/*",null,{"$f":"'800111A GeneraXBRL'!$D$193","v":"Saldo cuentas por cobrar"},{"$f":"'800111A GeneraXBRL'!$C$193","v":"co-svsp-core:SaldoCuentasPorCobrarCxC"}]
["/*",null,"--87--"]
["/*",null,{"$f":"'800111A GeneraXBRL'!$D$182","v":"Tipo de documento del deudor"},{"$f":"'800111A GeneraXBRL'!$C$182","v":"co-svsp-core:TipoDeDocumentoDeudorCxC"}]
["/*",null,{"$f":"'800111A GeneraXBRL'!$D$183","v":"Número de identificación del deudor"},{"$f":"'800111A GeneraXBRL'!$C$183","v":"co-svsp-core:NumeroIdentificacionDeudorCxC"}]
["/*",null,{"$f":"'800111A GeneraXBRL'!$D$184","v":"Primer apellido deudor"},{"$f":"'800111A GeneraXBRL'!$C$184","v":"co-svsp-core:PrimerApellidoDeudorCxC"}]
["/*",null,{"$f":"'800111A GeneraXBRL'!$D$185","v":"Segundo apellido deudor"},{"$f":"'800111A GeneraXBRL'!$C$185","v":"co-svsp-core:SegundoApellidoDeudorCxC"}]
["/*",null,{"$f":"'800111A GeneraXBRL'!$D$186","v":"Primer nombre deudor"},{"$f":"'800111A GeneraXBRL'!$C$186","v":"co-svsp-core:PrimerNombreDeudorCxC"}]
["/*",null,{"$f":"'800111A GeneraXBRL'!$D$187","v":"Otros nombres deudor"},{"$f":"'800111A GeneraXBRL'!$C$187","v":"co-svsp-core:OtrosNombresDeudorCxC"}]
["/*",null,{"$f":"'800111A GeneraXBRL'!$D$188","v":"Razón Social deudor"},{"$f":"'800111A GeneraXBRL'!$C$188","v":"co-svsp-core:RazonSocialDeudorCxC"}]
["/*",null,{"$f":"'800111A GeneraXBRL'!$D$189","v":"Dirección deudor"},{"$f":"'800111A GeneraXBRL'!$C$189","v":"co-svsp-core:DireccionDeudorCxC"}]
["/*",null,{"$f":"'800111A GeneraXBRL'!$D$190","v":"Departamento deudor"},{"$f":"'800111A GeneraXBRL'!$C$190","v":"co-svsp-core:DepartamentoDeudorCxC"}]
["/*",null,{"$f":"'800111A GeneraXBRL'!$D$191","v":"Municipio deudor"},{"$f":"'800111A GeneraXBRL'!$C$191","v":"co-svsp-core:MunicipioDeudorCxC"}]
["/*",null,{"$f":"'800111A GeneraXBRL'!$D$192","v":"País deudor"},{"$f":"'800111A GeneraXBRL'!$C$192","v":"co-svsp-core:PaisDeudorCxC"}]
["/*",null,{"$f":"'800111A GeneraXBRL'!$D$193","v":"Saldo cuentas por cobrar"},{"$f":"'800111A GeneraXBRL'!$C$193","v":"co-svsp-core:SaldoCuentasPorCobrarCxC"}]
["/*",null,"--88--"]
["/*",null,{"$f":"'800111A GeneraXBRL'!$D$182","v":"Tipo de documento del deudor"},{"$f":"'800111A GeneraXBRL'!$C$182","v":"co-svsp-core:TipoDeDocumentoDeudorCxC"}]
["/*",null,{"$f":"'800111A GeneraXBRL'!$D$183","v":"Número de identificación del deudor"},{"$f":"'800111A GeneraXBRL'!$C$183","v":"co-svsp-core:NumeroIdentificacionDeudorCxC"}]
["/*",null,{"$f":"'800111A GeneraXBRL'!$D$184","v":"Primer apellido deudor"},{"$f":"'800111A GeneraXBRL'!$C$184","v":"co-svsp-core:PrimerApellidoDeudorCxC"}]
["/*",null,{"$f":"'800111A GeneraXBRL'!$D$185","v":"Segundo apellido deudor"},{"$f":"'800111A GeneraXBRL'!$C$185","v":"co-svsp-core:SegundoApellidoDeudorCxC"}]
["/*",null,{"$f":"'800111A GeneraXBRL'!$D$186","v":"Primer nombre deudor"},{"$f":"'800111A GeneraXBRL'!$C$186","v":"co-svsp-core:PrimerNombreDeudorCxC"}]
["/*",null,{"$f":"'800111A GeneraXBRL'!$D$187","v":"Otros nombres deudor"},{"$f":"'800111A GeneraXBRL'!$C$187","v":"co-svsp-core:OtrosNombresDeudorCxC"}]
["/*",null,{"$f":"'800111A GeneraXBRL'!$D$188","v":"Razón Social deudor"},{"$f":"'800111A GeneraXBRL'!$C$188","v":"co-svsp-core:RazonSocialDeudorCxC"}]
["/*",null,{"$f":"'800111A GeneraXBRL'!$D$189","v":"Dirección deudor"},{"$f":"'800111A GeneraXBRL'!$C$189","v":"co-svsp-core:DireccionDeudorCxC"}]
["/*",null,{"$f":"'800111A GeneraXBRL'!$D$190","v":"Departamento deudor"},{"$f":"'800111A GeneraXBRL'!$C$190","v":"co-svsp-core:DepartamentoDeudorCxC"}]
[{"$f":"IF(G3680=\"\",\"/*\",\"\")","v":"/*"},null,{"$f":"'800111A GeneraXBRL'!$D$191","v":"Municipio deudor"},{"$f":"'800111A GeneraXBRL'!$C$191","v":"co-svsp-core:MunicipioDeudorCxC"}]
["/*",null,{"$f":"'800111A GeneraXBRL'!$D$192","v":"País deudor"},{"$f":"'800111A GeneraXBRL'!$C$192","v":"co-svsp-core:PaisDeudorCxC"}]
["/*",null,{"$f":"'800111A GeneraXBRL'!$D$193","v":"Saldo cuentas por cobrar"},{"$f":"'800111A GeneraXBRL'!$C$193","v":"co-svsp-core:SaldoCuentasPorCobrarCxC"}]
["/*",null,"--89--"]
["/*",null,{"$f":"'800111A GeneraXBRL'!$D$182","v":"Tipo de documento del deudor"},{"$f":"'800111A GeneraXBRL'!$C$182","v":"co-svsp-core:TipoDeDocumentoDeudorCxC"}]
["/*",null,{"$f":"'800111A GeneraXBRL'!$D$183","v":"Número de identificación del deudor"},{"$f":"'800111A GeneraXBRL'!$C$183","v":"co-svsp-core:NumeroIdentificacionDeudorCxC"}]
["/*",null,{"$f":"'800111A GeneraXBRL'!$D$184","v":"Primer apellido deudor"},{"$f":"'800111A GeneraXBRL'!$C$184","v":"co-svsp-core:PrimerApellidoDeudorCxC"}]
["/*",null,{"$f":"'800111A GeneraXBRL'!$D$185","v":"Segundo apellido deudor"},{"$f":"'800111A GeneraXBRL'!$C$185","v":"co-svsp-core:SegundoApellidoDeudorCxC"}]
["/*",null,{"$f":"'800111A GeneraXBRL'!$D$186","v":"Primer nombre deudor"},{"$f":"'800111A GeneraXBRL'!$C$186","v":"co-svsp-core:PrimerNombreDeudorCxC"}]
["/*",null,{"$f":"'800111A GeneraXBRL'!$D$187","v":"Otros nombres deudor"},{"$f":"'800111A GeneraXBRL'!$C$187","v":"co-svsp-core:OtrosNombresDeudorCxC"}]
["/*",null,{"$f":"'800111A GeneraXBRL'!$D$188","v":"Razón Social deudor"},{"$f":"'800111A GeneraXBRL'!$C$188","v":"co-svsp-core:RazonSocialDeudorCxC"}]
["/*",null,{"$f":"'800111A GeneraXBRL'!$D$189","v":"Dirección deudor"},{"$f":"'800111A GeneraXBRL'!$C$189","v":"co-svsp-core:DireccionDeudorCxC"}]
["/*",null,{"$f":"'800111A GeneraXBRL'!$D$190","v":"Departamento deudor"},{"$f":"'800111A GeneraXBRL'!$C$190","v":"co-svsp-core:DepartamentoDeudorCxC"}]
["/*",null,{"$f":"'800111A GeneraXBRL'!$D$191","v":"Municipio deudor"},{"$f":"'800111A GeneraXBRL'!$C$191","v":"co-svsp-core:MunicipioDeudorCxC"}]
["/*",null,{"$f":"'800111A GeneraXBRL'!$D$192","v":"País deudor"},{"$f":"'800111A GeneraXBRL'!$C$192","v":"co-svsp-core:PaisDeudorCxC"}]
["/*",null,{"$f":"'800111A GeneraXBRL'!$D$193","v":"Saldo cuentas por cobrar"},{"$f":"'800111A GeneraXBRL'!$C$193","v":"co-svsp-core:SaldoCuentasPorCobrarCxC"}]
["/*",null,"--90--"]
["/*",null,{"$f":"'800111A GeneraXBRL'!$D$182","v":"Tipo de documento del deudor"},{"$f":"'800111A GeneraXBRL'!$C$182","v":"co-svsp-core:TipoDeDocumentoDeudorCxC"}]
["/*",null,{"$f":"'800111A GeneraXBRL'!$D$183","v":"Número de identificación del deudor"},{"$f":"'800111A GeneraXBRL'!$C$183","v":"co-svsp-core:NumeroIdentificacionDeudorCxC"}]
["/*",null,{"$f":"'800111A GeneraXBRL'!$D$184","v":"Primer apellido deudor"},{"$f":"'800111A GeneraXBRL'!$C$184","v":"co-svsp-core:PrimerApellidoDeudorCxC"}]
["/*",null,{"$f":"'800111A GeneraXBRL'!$D$185","v":"Segundo apellido deudor"},{"$f":"'800111A GeneraXBRL'!$C$185","v":"co-svsp-core:SegundoApellidoDeudorCxC"}]
["/*",null,{"$f":"'800111A GeneraXBRL'!$D$186","v":"Primer nombre deudor"},{"$f":"'800111A GeneraXBRL'!$C$186","v":"co-svsp-core:PrimerNombreDeudorCxC"}]
["/*",null,{"$f":"'800111A GeneraXBRL'!$D$187","v":"Otros nombres deudor"},{"$f":"'800111A GeneraXBRL'!$C$187","v":"co-svsp-core:OtrosNombresDeudorCxC"}]
["/*",null,{"$f":"'800111A GeneraXBRL'!$D$188","v":"Razón Social deudor"},{"$f":"'800111A GeneraXBRL'!$C$188","v":"co-svsp-core:RazonSocialDeudorCxC"}]
["/*",null,{"$f":"'800111A GeneraXBRL'!$D$189","v":"Dirección deudor"},{"$f":"'800111A GeneraXBRL'!$C$189","v":"co-svsp-core:DireccionDeudorCxC"}]
["/*",null,{"$f":"'800111A GeneraXBRL'!$D$190","v":"Departamento deudor"},{"$f":"'800111A GeneraXBRL'!$C$190","v":"co-svsp-core:DepartamentoDeudorCxC"}]
["/*",null,{"$f":"'800111A GeneraXBRL'!$D$191","v":"Municipio deudor"},{"$f":"'800111A GeneraXBRL'!$C$191","v":"co-svsp-core:MunicipioDeudorCxC"}]
["/*",null,{"$f":"'800111A GeneraXBRL'!$D$192","v":"País deudor"},{"$f":"'800111A GeneraXBRL'!$C$192","v":"co-svsp-core:PaisDeudorCxC"}]
["/*",null,{"$f":"'800111A GeneraXBRL'!$D$193","v":"Saldo cuentas por cobrar"},{"$f":"'800111A GeneraXBRL'!$C$193","v":"co-svsp-core:SaldoCuentasPorCobrarCxC"}]
["/*",null,"--91--"]
["/*",null,{"$f":"'800111A GeneraXBRL'!$D$182","v":"Tipo de documento del deudor"},{"$f":"'800111A GeneraXBRL'!$C$182","v":"co-svsp-core:TipoDeDocumentoDeudorCxC"}]
["/*",null,{"$f":"'800111A GeneraXBRL'!$D$183","v":"Número de identificación del deudor"},{"$f":"'800111A GeneraXBRL'!$C$183","v":"co-svsp-core:NumeroIdentificacionDeudorCxC"}]
["/*",null,{"$f":"'800111A GeneraXBRL'!$D$184","v":"Primer apellido deudor"},{"$f":"'800111A GeneraXBRL'!$C$184","v":"co-svsp-core:PrimerApellidoDeudorCxC"}]
["/*",null,{"$f":"'800111A GeneraXBRL'!$D$185","v":"Segundo apellido deudor"},{"$f":"'800111A GeneraXBRL'!$C$185","v":"co-svsp-core:SegundoApellidoDeudorCxC"}]
["/*",null,{"$f":"'800111A GeneraXBRL'!$D$186","v":"Primer nombre deudor"},{"$f":"'800111A GeneraXBRL'!$C$186","v":"co-svsp-core:PrimerNombreDeudorCxC"}]
["/*",null,{"$f":"'800111A GeneraXBRL'!$D$187","v":"Otros nombres deudor"},{"$f":"'800111A GeneraXBRL'!$C$187","v":"co-svsp-core:OtrosNombresDeudorCxC"}]
["/*",null,{"$f":"'800111A GeneraXBRL'!$D$188","v":"Razón Social deudor"},{"$f":"'800111A GeneraXBRL'!$C$188","v":"co-svsp-core:RazonSocialDeudorCxC"}]
["/*",null,{"$f":"'800111A GeneraXBRL'!$D$189","v":"Dirección deudor"},{"$f":"'800111A GeneraXBRL'!$C$189","v":"co-svsp-core:DireccionDeudorCxC"}]
["/*",null,{"$f":"'800111A GeneraXBRL'!$D$190","v":"Departamento deudor"},{"$f":"'800111A GeneraXBRL'!$C$190","v":"co-svsp-core:DepartamentoDeudorCxC"}]
["/*",null,{"$f":"'800111A GeneraXBRL'!$D$191","v":"Municipio deudor"},{"$f":"'800111A GeneraXBRL'!$C$191","v":"co-svsp-core:MunicipioDeudorCxC"}]
["/*",null,{"$f":"'800111A GeneraXBRL'!$D$192","v":"País deudor"},{"$f":"'800111A GeneraXBRL'!$C$192","v":"co-svsp-core:PaisDeudorCxC"}]
["/*",null,{"$f":"'800111A GeneraXBRL'!$D$193","v":"Saldo cuentas por cobrar"},{"$f":"'800111A GeneraXBRL'!$C$193","v":"co-svsp-core:SaldoCuentasPorCobrarCxC"}]
["/*",null,"--92--"]
["/*",null,{"$f":"'800111A GeneraXBRL'!$D$182","v":"Tipo de documento del deudor"},{"$f":"'800111A GeneraXBRL'!$C$182","v":"co-svsp-core:TipoDeDocumentoDeudorCxC"}]
["/*",null,{"$f":"'800111A GeneraXBRL'!$D$183","v":"Número de identificación del deudor"},{"$f":"'800111A GeneraXBRL'!$C$183","v":"co-svsp-core:NumeroIdentificacionDeudorCxC"}]
["/*",null,{"$f":"'800111A GeneraXBRL'!$D$184","v":"Primer apellido deudor"},{"$f":"'800111A GeneraXBRL'!$C$184","v":"co-svsp-core:PrimerApellidoDeudorCxC"}]
["/*",null,{"$f":"'800111A GeneraXBRL'!$D$185","v":"Segundo apellido deudor"},{"$f":"'800111A GeneraXBRL'!$C$185","v":"co-svsp-core:SegundoApellidoDeudorCxC"}]
["/*",null,{"$f":"'800111A GeneraXBRL'!$D$186","v":"Primer nombre deudor"},{"$f":"'800111A GeneraXBRL'!$C$186","v":"co-svsp-core:PrimerNombreDeudorCxC"}]
["/*",null,{"$f":"'800111A GeneraXBRL'!$D$187","v":"Otros nombres deudor"},{"$f":"'800111A GeneraXBRL'!$C$187","v":"co-svsp-core:OtrosNombresDeudorCxC"}]
["/*",null,{"$f":"'800111A GeneraXBRL'!$D$188","v":"Razón Social deudor"},{"$f":"'800111A GeneraXBRL'!$C$188","v":"co-svsp-core:RazonSocialDeudorCxC"}]
["/*",null,{"$f":"'800111A GeneraXBRL'!$D$189","v":"Dirección deudor"},{"$f":"'800111A GeneraXBRL'!$C$189","v":"co-svsp-core:DireccionDeudorCxC"}]
["/*",null,{"$f":"'800111A GeneraXBRL'!$D$190","v":"Departamento deudor"},{"$f":"'800111A GeneraXBRL'!$C$190","v":"co-svsp-core:DepartamentoDeudorCxC"}]
["/*",null,{"$f":"'800111A GeneraXBRL'!$D$191","v":"Municipio deudor"},{"$f":"'800111A GeneraXBRL'!$C$191","v":"co-svsp-core:MunicipioDeudorCxC"}]
["/*",null,{"$f":"'800111A GeneraXBRL'!$D$192","v":"País deudor"},{"$f":"'800111A GeneraXBRL'!$C$192","v":"co-svsp-core:PaisDeudorCxC"}]
["/*",null,{"$f":"'800111A GeneraXBRL'!$D$193","v":"Saldo cuentas por cobrar"},{"$f":"'800111A GeneraXBRL'!$C$193","v":"co-svsp-core:SaldoCuentasPorCobrarCxC"}]
["/*",null,"--93--"]
["/*",null,{"$f":"'800111A GeneraXBRL'!$D$182","v":"Tipo de documento del deudor"},{"$f":"'800111A GeneraXBRL'!$C$182","v":"co-svsp-core:TipoDeDocumentoDeudorCxC"}]
["/*",null,{"$f":"'800111A GeneraXBRL'!$D$183","v":"Número de identificación del deudor"},{"$f":"'800111A GeneraXBRL'!$C$183","v":"co-svsp-core:NumeroIdentificacionDeudorCxC"}]
["/*",null,{"$f":"'800111A GeneraXBRL'!$D$184","v":"Primer apellido deudor"},{"$f":"'800111A GeneraXBRL'!$C$184","v":"co-svsp-core:PrimerApellidoDeudorCxC"}]
["/*",null,{"$f":"'800111A GeneraXBRL'!$D$185","v":"Segundo apellido deudor"},{"$f":"'800111A GeneraXBRL'!$C$185","v":"co-svsp-core:SegundoApellidoDeudorCxC"}]
["/*",null,{"$f":"'800111A GeneraXBRL'!$D$186","v":"Primer nombre deudor"},{"$f":"'800111A GeneraXBRL'!$C$186","v":"co-svsp-core:PrimerNombreDeudorCxC"}]
["/*",null,{"$f":"'800111A GeneraXBRL'!$D$187","v":"Otros nombres deudor"},{"$f":"'800111A GeneraXBRL'!$C$187","v":"co-svsp-core:OtrosNombresDeudorCxC"}]
["/*",null,{"$f":"'800111A GeneraXBRL'!$D$188","v":"Razón Social deudor"},{"$f":"'800111A GeneraXBRL'!$C$188","v":"co-svsp-core:RazonSocialDeudorCxC"}]
["/*",null,{"$f":"'800111A GeneraXBRL'!$D$189","v":"Dirección deudor"},{"$f":"'800111A GeneraXBRL'!$C$189","v":"co-svsp-core:DireccionDeudorCxC"}]
[{"$f":"IF(G3744=\"\",\"/*\",\"\")","v":"/*"},null,{"$f":"'800111A GeneraXBRL'!$D$190","v":"Departamento deudor"},{"$f":"'800111A GeneraXBRL'!$C$190","v":"co-svsp-core:DepartamentoDeudorCxC"}]
["/*",null,{"$f":"'800111A GeneraXBRL'!$D$191","v":"Municipio deudor"},{"$f":"'800111A GeneraXBRL'!$C$191","v":"co-svsp-core:MunicipioDeudorCxC"}]
["/*",null,{"$f":"'800111A GeneraXBRL'!$D$192","v":"País deudor"},{"$f":"'800111A GeneraXBRL'!$C$192","v":"co-svsp-core:PaisDeudorCxC"}]
["/*",null,{"$f":"'800111A GeneraXBRL'!$D$193","v":"Saldo cuentas por cobrar"},{"$f":"'800111A GeneraXBRL'!$C$193","v":"co-svsp-core:SaldoCuentasPorCobrarCxC"}]
["/*",null,"--94--"]
["/*",null,{"$f":"'800111A GeneraXBRL'!$D$182","v":"Tipo de documento del deudor"},{"$f":"'800111A GeneraXBRL'!$C$182","v":"co-svsp-core:TipoDeDocumentoDeudorCxC"}]
["/*",null,{"$f":"'800111A GeneraXBRL'!$D$183","v":"Número de identificación del deudor"},{"$f":"'800111A GeneraXBRL'!$C$183","v":"co-svsp-core:NumeroIdentificacionDeudorCxC"}]
["/*",null,{"$f":"'800111A GeneraXBRL'!$D$184","v":"Primer apellido deudor"},{"$f":"'800111A GeneraXBRL'!$C$184","v":"co-svsp-core:PrimerApellidoDeudorCxC"}]
["/*",null,{"$f":"'800111A GeneraXBRL'!$D$185","v":"Segundo apellido deudor"},{"$f":"'800111A GeneraXBRL'!$C$185","v":"co-svsp-core:SegundoApellidoDeudorCxC"}]
["/*",null,{"$f":"'800111A GeneraXBRL'!$D$186","v":"Primer nombre deudor"},{"$f":"'800111A GeneraXBRL'!$C$186","v":"co-svsp-core:PrimerNombreDeudorCxC"}]
["/*",null,{"$f":"'800111A GeneraXBRL'!$D$187","v":"Otros nombres deudor"},{"$f":"'800111A GeneraXBRL'!$C$187","v":"co-svsp-core:OtrosNombresDeudorCxC"}]
["/*",null,{"$f":"'800111A GeneraXBRL'!$D$188","v":"Razón Social deudor"},{"$f":"'800111A GeneraXBRL'!$C$188","v":"co-svsp-core:RazonSocialDeudorCxC"}]
["/*",null,{"$f":"'800111A GeneraXBRL'!$D$189","v":"Dirección deudor"},{"$f":"'800111A GeneraXBRL'!$C$189","v":"co-svsp-core:DireccionDeudorCxC"}]
["/*",null,{"$f":"'800111A GeneraXBRL'!$D$190","v":"Departamento deudor"},{"$f":"'800111A GeneraXBRL'!$C$190","v":"co-svsp-core:DepartamentoDeudorCxC"}]
["/*",null,{"$f":"'800111A GeneraXBRL'!$D$191","v":"Municipio deudor"},{"$f":"'800111A GeneraXBRL'!$C$191","v":"co-svsp-core:MunicipioDeudorCxC"}]
["/*",null,{"$f":"'800111A GeneraXBRL'!$D$192","v":"País deudor"},{"$f":"'800111A GeneraXBRL'!$C$192","v":"co-svsp-core:PaisDeudorCxC"}]
["/*",null,{"$f":"'800111A GeneraXBRL'!$D$193","v":"Saldo cuentas por cobrar"},{"$f":"'800111A GeneraXBRL'!$C$193","v":"co-svsp-core:SaldoCuentasPorCobrarCxC"}]
["/*",null,"--95--"]
["/*",null,{"$f":"'800111A GeneraXBRL'!$D$182","v":"Tipo de documento del deudor"},{"$f":"'800111A GeneraXBRL'!$C$182","v":"co-svsp-core:TipoDeDocumentoDeudorCxC"}]
["/*",null,{"$f":"'800111A GeneraXBRL'!$D$183","v":"Número de identificación del deudor"},{"$f":"'800111A GeneraXBRL'!$C$183","v":"co-svsp-core:NumeroIdentificacionDeudorCxC"}]
["/*",null,{"$f":"'800111A GeneraXBRL'!$D$184","v":"Primer apellido deudor"},{"$f":"'800111A GeneraXBRL'!$C$184","v":"co-svsp-core:PrimerApellidoDeudorCxC"}]
["/*",null,{"$f":"'800111A GeneraXBRL'!$D$185","v":"Segundo apellido deudor"},{"$f":"'800111A GeneraXBRL'!$C$185","v":"co-svsp-core:SegundoApellidoDeudorCxC"}]
["/*",null,{"$f":"'800111A GeneraXBRL'!$D$186","v":"Primer nombre deudor"},{"$f":"'800111A GeneraXBRL'!$C$186","v":"co-svsp-core:PrimerNombreDeudorCxC"}]
["/*",null,{"$f":"'800111A GeneraXBRL'!$D$187","v":"Otros nombres deudor"},{"$f":"'800111A GeneraXBRL'!$C$187","v":"co-svsp-core:OtrosNombresDeudorCxC"}]
["/*",null,{"$f":"'800111A GeneraXBRL'!$D$188","v":"Razón Social deudor"},{"$f":"'800111A GeneraXBRL'!$C$188","v":"co-svsp-core:RazonSocialDeudorCxC"}]
["/*",null,{"$f":"'800111A GeneraXBRL'!$D$189","v":"Dirección deudor"},{"$f":"'800111A GeneraXBRL'!$C$189","v":"co-svsp-core:DireccionDeudorCxC"}]
["/*",null,{"$f":"'800111A GeneraXBRL'!$D$190","v":"Departamento deudor"},{"$f":"'800111A GeneraXBRL'!$C$190","v":"co-svsp-core:DepartamentoDeudorCxC"}]
["/*",null,{"$f":"'800111A GeneraXBRL'!$D$191","v":"Municipio deudor"},{"$f":"'800111A GeneraXBRL'!$C$191","v":"co-svsp-core:MunicipioDeudorCxC"}]
["/*",null,{"$f":"'800111A GeneraXBRL'!$D$192","v":"País deudor"},{"$f":"'800111A GeneraXBRL'!$C$192","v":"co-svsp-core:PaisDeudorCxC"}]
["/*",null,{"$f":"'800111A GeneraXBRL'!$D$193","v":"Saldo cuentas por cobrar"},{"$f":"'800111A GeneraXBRL'!$C$193","v":"co-svsp-core:SaldoCuentasPorCobrarCxC"}]
["/*",null,"--96--"]
["/*",null,{"$f":"'800111A GeneraXBRL'!$D$182","v":"Tipo de documento del deudor"},{"$f":"'800111A GeneraXBRL'!$C$182","v":"co-svsp-core:TipoDeDocumentoDeudorCxC"}]
["/*",null,{"$f":"'800111A GeneraXBRL'!$D$183","v":"Número de identificación del deudor"},{"$f":"'800111A GeneraXBRL'!$C$183","v":"co-svsp-core:NumeroIdentificacionDeudorCxC"}]
["/*",null,{"$f":"'800111A GeneraXBRL'!$D$184","v":"Primer apellido deudor"},{"$f":"'800111A GeneraXBRL'!$C$184","v":"co-svsp-core:PrimerApellidoDeudorCxC"}]
["/*",null,{"$f":"'800111A GeneraXBRL'!$D$185","v":"Segundo apellido deudor"},{"$f":"'800111A GeneraXBRL'!$C$185","v":"co-svsp-core:SegundoApellidoDeudorCxC"}]
["/*",null,{"$f":"'800111A GeneraXBRL'!$D$186","v":"Primer nombre deudor"},{"$f":"'800111A GeneraXBRL'!$C$186","v":"co-svsp-core:PrimerNombreDeudorCxC"}]
["/*",null,{"$f":"'800111A GeneraXBRL'!$D$187","v":"Otros nombres deudor"},{"$f":"'800111A GeneraXBRL'!$C$187","v":"co-svsp-core:OtrosNombresDeudorCxC"}]
["/*",null,{"$f":"'800111A GeneraXBRL'!$D$188","v":"Razón Social deudor"},{"$f":"'800111A GeneraXBRL'!$C$188","v":"co-svsp-core:RazonSocialDeudorCxC"}]
["/*",null,{"$f":"'800111A GeneraXBRL'!$D$189","v":"Dirección deudor"},{"$f":"'800111A GeneraXBRL'!$C$189","v":"co-svsp-core:DireccionDeudorCxC"}]
["/*",null,{"$f":"'800111A GeneraXBRL'!$D$190","v":"Departamento deudor"},{"$f":"'800111A GeneraXBRL'!$C$190","v":"co-svsp-core:DepartamentoDeudorCxC"}]
["/*",null,{"$f":"'800111A GeneraXBRL'!$D$191","v":"Municipio deudor"},{"$f":"'800111A GeneraXBRL'!$C$191","v":"co-svsp-core:MunicipioDeudorCxC"}]
["/*",null,{"$f":"'800111A GeneraXBRL'!$D$192","v":"País deudor"},{"$f":"'800111A GeneraXBRL'!$C$192","v":"co-svsp-core:PaisDeudorCxC"}]
["/*",null,{"$f":"'800111A GeneraXBRL'!$D$193","v":"Saldo cuentas por cobrar"},{"$f":"'800111A GeneraXBRL'!$C$193","v":"co-svsp-core:SaldoCuentasPorCobrarCxC"}]
["/*",null,"--97--"]
["/*",null,{"$f":"'800111A GeneraXBRL'!$D$182","v":"Tipo de documento del deudor"},{"$f":"'800111A GeneraXBRL'!$C$182","v":"co-svsp-core:TipoDeDocumentoDeudorCxC"}]
["/*",null,{"$f":"'800111A GeneraXBRL'!$D$183","v":"Número de identificación del deudor"},{"$f":"'800111A GeneraXBRL'!$C$183","v":"co-svsp-core:NumeroIdentificacionDeudorCxC"}]
["/*",null,{"$f":"'800111A GeneraXBRL'!$D$184","v":"Primer apellido deudor"},{"$f":"'800111A GeneraXBRL'!$C$184","v":"co-svsp-core:PrimerApellidoDeudorCxC"}]
["/*",null,{"$f":"'800111A GeneraXBRL'!$D$185","v":"Segundo apellido deudor"},{"$f":"'800111A GeneraXBRL'!$C$185","v":"co-svsp-core:SegundoApellidoDeudorCxC"}]
["/*",null,{"$f":"'800111A GeneraXBRL'!$D$186","v":"Primer nombre deudor"},{"$f":"'800111A GeneraXBRL'!$C$186","v":"co-svsp-core:PrimerNombreDeudorCxC"}]
["/*",null,{"$f":"'800111A GeneraXBRL'!$D$187","v":"Otros nombres deudor"},{"$f":"'800111A GeneraXBRL'!$C$187","v":"co-svsp-core:OtrosNombresDeudorCxC"}]
["/*",null,{"$f":"'800111A GeneraXBRL'!$D$188","v":"Razón Social deudor"},{"$f":"'800111A GeneraXBRL'!$C$188","v":"co-svsp-core:RazonSocialDeudorCxC"}]
["/*",null,{"$f":"'800111A GeneraXBRL'!$D$189","v":"Dirección deudor"},{"$f":"'800111A GeneraXBRL'!$C$189","v":"co-svsp-core:DireccionDeudorCxC"}]
["/*",null,{"$f":"'800111A GeneraXBRL'!$D$190","v":"Departamento deudor"},{"$f":"'800111A GeneraXBRL'!$C$190","v":"co-svsp-core:DepartamentoDeudorCxC"}]
["/*",null,{"$f":"'800111A GeneraXBRL'!$D$191","v":"Municipio deudor"},{"$f":"'800111A GeneraXBRL'!$C$191","v":"co-svsp-core:MunicipioDeudorCxC"}]
["/*",null,{"$f":"'800111A GeneraXBRL'!$D$192","v":"País deudor"},{"$f":"'800111A GeneraXBRL'!$C$192","v":"co-svsp-core:PaisDeudorCxC"}]
["/*",null,{"$f":"'800111A GeneraXBRL'!$D$193","v":"Saldo cuentas por cobrar"},{"$f":"'800111A GeneraXBRL'!$C$193","v":"co-svsp-core:SaldoCuentasPorCobrarCxC"}]
["/*",null,"--98--"]
["/*",null,{"$f":"'800111A GeneraXBRL'!$D$182","v":"Tipo de documento del deudor"},{"$f":"'800111A GeneraXBRL'!$C$182","v":"co-svsp-core:TipoDeDocumentoDeudorCxC"}]
["/*",null,{"$f":"'800111A GeneraXBRL'!$D$183","v":"Número de identificación del deudor"},{"$f":"'800111A GeneraXBRL'!$C$183","v":"co-svsp-core:NumeroIdentificacionDeudorCxC"}]
["/*",null,{"$f":"'800111A GeneraXBRL'!$D$184","v":"Primer apellido deudor"},{"$f":"'800111A GeneraXBRL'!$C$184","v":"co-svsp-core:PrimerApellidoDeudorCxC"}]
["/*",null,{"$f":"'800111A GeneraXBRL'!$D$185","v":"Segundo apellido deudor"},{"$f":"'800111A GeneraXBRL'!$C$185","v":"co-svsp-core:SegundoApellidoDeudorCxC"}]
["/*",null,{"$f":"'800111A GeneraXBRL'!$D$186","v":"Primer nombre deudor"},{"$f":"'800111A GeneraXBRL'!$C$186","v":"co-svsp-core:PrimerNombreDeudorCxC"}]
["/*",null,{"$f":"'800111A GeneraXBRL'!$D$187","v":"Otros nombres deudor"},{"$f":"'800111A GeneraXBRL'!$C$187","v":"co-svsp-core:OtrosNombresDeudorCxC"}]
["/*",null,{"$f":"'800111A GeneraXBRL'!$D$188","v":"Razón Social deudor"},{"$f":"'800111A GeneraXBRL'!$C$188","v":"co-svsp-core:RazonSocialDeudorCxC"}]
[{"$f":"IF(G3808=\"\",\"/*\",\"\")","v":"/*"},null,{"$f":"'800111A GeneraXBRL'!$D$189","v":"Dirección deudor"},{"$f":"'800111A GeneraXBRL'!$C$189","v":"co-svsp-core:DireccionDeudorCxC"}]
["/*",null,{"$f":"'800111A GeneraXBRL'!$D$190","v":"Departamento deudor"},{"$f":"'800111A GeneraXBRL'!$C$190","v":"co-svsp-core:DepartamentoDeudorCxC"}]
["/*",null,{"$f":"'800111A GeneraXBRL'!$D$191","v":"Municipio deudor"},{"$f":"'800111A GeneraXBRL'!$C$191","v":"co-svsp-core:MunicipioDeudorCxC"}]
["/*",null,{"$f":"'800111A GeneraXBRL'!$D$192","v":"País deudor"},{"$f":"'800111A GeneraXBRL'!$C$192","v":"co-svsp-core:PaisDeudorCxC"}]
["/*",null,{"$f":"'800111A GeneraXBRL'!$D$193","v":"Saldo cuentas por cobrar"},{"$f":"'800111A GeneraXBRL'!$C$193","v":"co-svsp-core:SaldoCuentasPorCobrarCxC"}]
["/*",null,"--99--"]
["/*",null,{"$f":"'800111A GeneraXBRL'!$D$182","v":"Tipo de documento del deudor"},{"$f":"'800111A GeneraXBRL'!$C$182","v":"co-svsp-core:TipoDeDocumentoDeudorCxC"}]
["/*",null,{"$f":"'800111A GeneraXBRL'!$D$183","v":"Número de identificación del deudor"},{"$f":"'800111A GeneraXBRL'!$C$183","v":"co-svsp-core:NumeroIdentificacionDeudorCxC"}]
["/*",null,{"$f":"'800111A GeneraXBRL'!$D$184","v":"Primer apellido deudor"},{"$f":"'800111A GeneraXBRL'!$C$184","v":"co-svsp-core:PrimerApellidoDeudorCxC"}]
["/*",null,{"$f":"'800111A GeneraXBRL'!$D$185","v":"Segundo apellido deudor"},{"$f":"'800111A GeneraXBRL'!$C$185","v":"co-svsp-core:SegundoApellidoDeudorCxC"}]
["/*",null,{"$f":"'800111A GeneraXBRL'!$D$186","v":"Primer nombre deudor"},{"$f":"'800111A GeneraXBRL'!$C$186","v":"co-svsp-core:PrimerNombreDeudorCxC"}]
["/*",null,{"$f":"'800111A GeneraXBRL'!$D$187","v":"Otros nombres deudor"},{"$f":"'800111A GeneraXBRL'!$C$187","v":"co-svsp-core:OtrosNombresDeudorCxC"}]
["/*",null,{"$f":"'800111A GeneraXBRL'!$D$188","v":"Razón Social deudor"},{"$f":"'800111A GeneraXBRL'!$C$188","v":"co-svsp-core:RazonSocialDeudorCxC"}]
["/*",null,{"$f":"'800111A GeneraXBRL'!$D$189","v":"Dirección deudor"},{"$f":"'800111A GeneraXBRL'!$C$189","v":"co-svsp-core:DireccionDeudorCxC"}]
["/*",null,{"$f":"'800111A GeneraXBRL'!$D$190","v":"Departamento deudor"},{"$f":"'800111A GeneraXBRL'!$C$190","v":"co-svsp-core:DepartamentoDeudorCxC"}]
["/*",null,{"$f":"'800111A GeneraXBRL'!$D$191","v":"Municipio deudor"},{"$f":"'800111A GeneraXBRL'!$C$191","v":"co-svsp-core:MunicipioDeudorCxC"}]
["/*",null,{"$f":"'800111A GeneraXBRL'!$D$192","v":"País deudor"},{"$f":"'800111A GeneraXBRL'!$C$192","v":"co-svsp-core:PaisDeudorCxC"}]
["/*",null,{"$f":"'800111A GeneraXBRL'!$D$193","v":"Saldo cuentas por cobrar"},{"$f":"'800111A GeneraXBRL'!$C$193","v":"co-svsp-core:SaldoCuentasPorCobrarCxC"}]
["/*",null,"--100--"]
["/*",null,{"$f":"'800111A GeneraXBRL'!$D$182","v":"Tipo de documento del deudor"},{"$f":"'800111A GeneraXBRL'!$C$182","v":"co-svsp-core:TipoDeDocumentoDeudorCxC"}]
["/*",null,{"$f":"'800111A GeneraXBRL'!$D$183","v":"Número de identificación del deudor"},{"$f":"'800111A GeneraXBRL'!$C$183","v":"co-svsp-core:NumeroIdentificacionDeudorCxC"}]
["/*",null,{"$f":"'800111A GeneraXBRL'!$D$184","v":"Primer apellido deudor"},{"$f":"'800111A GeneraXBRL'!$C$184","v":"co-svsp-core:PrimerApellidoDeudorCxC"}]
["/*",null,{"$f":"'800111A GeneraXBRL'!$D$185","v":"Segundo apellido deudor"},{"$f":"'800111A GeneraXBRL'!$C$185","v":"co-svsp-core:SegundoApellidoDeudorCxC"}]
["/*",null,{"$f":"'800111A GeneraXBRL'!$D$186","v":"Primer nombre deudor"},{"$f":"'800111A GeneraXBRL'!$C$186","v":"co-svsp-core:PrimerNombreDeudorCxC"}]
["/*",null,{"$f":"'800111A GeneraXBRL'!$D$187","v":"Otros nombres deudor"},{"$f":"'800111A GeneraXBRL'!$C$187","v":"co-svsp-core:OtrosNombresDeudorCxC"}]
["/*",null,{"$f":"'800111A GeneraXBRL'!$D$188","v":"Razón Social deudor"},{"$f":"'800111A GeneraXBRL'!$C$188","v":"co-svsp-core:RazonSocialDeudorCxC"}]
["/*",null,{"$f":"'800111A GeneraXBRL'!$D$189","v":"Dirección deudor"},{"$f":"'800111A GeneraXBRL'!$C$189","v":"co-svsp-core:DireccionDeudorCxC"}]
["/*",null,{"$f":"'800111A GeneraXBRL'!$D$190","v":"Departamento deudor"},{"$f":"'800111A GeneraXBRL'!$C$190","v":"co-svsp-core:DepartamentoDeudorCxC"}]
["/*",null,{"$f":"'800111A GeneraXBRL'!$D$191","v":"Municipio deudor"},{"$f":"'800111A GeneraXBRL'!$C$191","v":"co-svsp-core:MunicipioDeudorCxC"}]
["/*",null,{"$f":"'800111A GeneraXBRL'!$D$192","v":"País deudor"},{"$f":"'800111A GeneraXBRL'!$C$192","v":"co-svsp-core:PaisDeudorCxC"}]
["/*",null,{"$f":"'800111A GeneraXBRL'!$D$193","v":"Saldo cuentas por cobrar"},{"$f":"'800111A GeneraXBRL'!$C$193","v":"co-svsp-core:SaldoCuentasPorCobrarCxC"}]
["/*",null,"--101--"]
["/*",null,{"$f":"'800111A GeneraXBRL'!$D$182","v":"Tipo de documento del deudor"},{"$f":"'800111A GeneraXBRL'!$C$182","v":"co-svsp-core:TipoDeDocumentoDeudorCxC"}]
["/*",null,{"$f":"'800111A GeneraXBRL'!$D$183","v":"Número de identificación del deudor"},{"$f":"'800111A GeneraXBRL'!$C$183","v":"co-svsp-core:NumeroIdentificacionDeudorCxC"}]
["/*",null,{"$f":"'800111A GeneraXBRL'!$D$184","v":"Primer apellido deudor"},{"$f":"'800111A GeneraXBRL'!$C$184","v":"co-svsp-core:PrimerApellidoDeudorCxC"}]
["/*",null,{"$f":"'800111A GeneraXBRL'!$D$185","v":"Segundo apellido deudor"},{"$f":"'800111A GeneraXBRL'!$C$185","v":"co-svsp-core:SegundoApellidoDeudorCxC"}]
["/*",null,{"$f":"'800111A GeneraXBRL'!$D$186","v":"Primer nombre deudor"},{"$f":"'800111A GeneraXBRL'!$C$186","v":"co-svsp-core:PrimerNombreDeudorCxC"}]
["/*",null,{"$f":"'800111A GeneraXBRL'!$D$187","v":"Otros nombres deudor"},{"$f":"'800111A GeneraXBRL'!$C$187","v":"co-svsp-core:OtrosNombresDeudorCxC"}]
["/*",null,{"$f":"'800111A GeneraXBRL'!$D$188","v":"Razón Social deudor"},{"$f":"'800111A GeneraXBRL'!$C$188","v":"co-svsp-core:RazonSocialDeudorCxC"}]
["/*",null,{"$f":"'800111A GeneraXBRL'!$D$189","v":"Dirección deudor"},{"$f":"'800111A GeneraXBRL'!$C$189","v":"co-svsp-core:DireccionDeudorCxC"}]
["/*",null,{"$f":"'800111A GeneraXBRL'!$D$190","v":"Departamento deudor"},{"$f":"'800111A GeneraXBRL'!$C$190","v":"co-svsp-core:DepartamentoDeudorCxC"}]
["/*",null,{"$f":"'800111A GeneraXBRL'!$D$191","v":"Municipio deudor"},{"$f":"'800111A GeneraXBRL'!$C$191","v":"co-svsp-core:MunicipioDeudorCxC"}]
["/*",null,{"$f":"'800111A GeneraXBRL'!$D$192","v":"País deudor"},{"$f":"'800111A GeneraXBRL'!$C$192","v":"co-svsp-core:PaisDeudorCxC"}]
["/*",null,{"$f":"'800111A GeneraXBRL'!$D$193","v":"Saldo cuentas por cobrar"},{"$f":"'800111A GeneraXBRL'!$C$193","v":"co-svsp-core:SaldoCuentasPorCobrarCxC"}]
["/*",null,"--102--"]
["/*",null,{"$f":"'800111A GeneraXBRL'!$D$182","v":"Tipo de documento del deudor"},{"$f":"'800111A GeneraXBRL'!$C$182","v":"co-svsp-core:TipoDeDocumentoDeudorCxC"}]
["/*",null,{"$f":"'800111A GeneraXBRL'!$D$183","v":"Número de identificación del deudor"},{"$f":"'800111A GeneraXBRL'!$C$183","v":"co-svsp-core:NumeroIdentificacionDeudorCxC"}]
["/*",null,{"$f":"'800111A GeneraXBRL'!$D$184","v":"Primer apellido deudor"},{"$f":"'800111A GeneraXBRL'!$C$184","v":"co-svsp-core:PrimerApellidoDeudorCxC"}]
["/*",null,{"$f":"'800111A GeneraXBRL'!$D$185","v":"Segundo apellido deudor"},{"$f":"'800111A GeneraXBRL'!$C$185","v":"co-svsp-core:SegundoApellidoDeudorCxC"}]
["/*",null,{"$f":"'800111A GeneraXBRL'!$D$186","v":"Primer nombre deudor"},{"$f":"'800111A GeneraXBRL'!$C$186","v":"co-svsp-core:PrimerNombreDeudorCxC"}]
["/*",null,{"$f":"'800111A GeneraXBRL'!$D$187","v":"Otros nombres deudor"},{"$f":"'800111A GeneraXBRL'!$C$187","v":"co-svsp-core:OtrosNombresDeudorCxC"}]
["/*",null,{"$f":"'800111A GeneraXBRL'!$D$188","v":"Razón Social deudor"},{"$f":"'800111A GeneraXBRL'!$C$188","v":"co-svsp-core:RazonSocialDeudorCxC"}]
["/*",null,{"$f":"'800111A GeneraXBRL'!$D$189","v":"Dirección deudor"},{"$f":"'800111A GeneraXBRL'!$C$189","v":"co-svsp-core:DireccionDeudorCxC"}]
["/*",null,{"$f":"'800111A GeneraXBRL'!$D$190","v":"Departamento deudor"},{"$f":"'800111A GeneraXBRL'!$C$190","v":"co-svsp-core:DepartamentoDeudorCxC"}]
["/*",null,{"$f":"'800111A GeneraXBRL'!$D$191","v":"Municipio deudor"},{"$f":"'800111A GeneraXBRL'!$C$191","v":"co-svsp-core:MunicipioDeudorCxC"}]
["/*",null,{"$f":"'800111A GeneraXBRL'!$D$192","v":"País deudor"},{"$f":"'800111A GeneraXBRL'!$C$192","v":"co-svsp-core:PaisDeudorCxC"}]
["/*",null,{"$f":"'800111A GeneraXBRL'!$D$193","v":"Saldo cuentas por cobrar"},{"$f":"'800111A GeneraXBRL'!$C$193","v":"co-svsp-core:SaldoCuentasPorCobrarCxC"}]
["/*",null,"--103--"]
["/*",null,{"$f":"'800111A GeneraXBRL'!$D$182","v":"Tipo de documento del deudor"},{"$f":"'800111A GeneraXBRL'!$C$182","v":"co-svsp-core:TipoDeDocumentoDeudorCxC"}]
["/*",null,{"$f":"'800111A GeneraXBRL'!$D$183","v":"Número de identificación del deudor"},{"$f":"'800111A GeneraXBRL'!$C$183","v":"co-svsp-core:NumeroIdentificacionDeudorCxC"}]
["/*",null,{"$f":"'800111A GeneraXBRL'!$D$184","v":"Primer apellido deudor"},{"$f":"'800111A GeneraXBRL'!$C$184","v":"co-svsp-core:PrimerApellidoDeudorCxC"}]
["/*",null,{"$f":"'800111A GeneraXBRL'!$D$185","v":"Segundo apellido deudor"},{"$f":"'800111A GeneraXBRL'!$C$185","v":"co-svsp-core:SegundoApellidoDeudorCxC"}]
["/*",null,{"$f":"'800111A GeneraXBRL'!$D$186","v":"Primer nombre deudor"},{"$f":"'800111A GeneraXBRL'!$C$186","v":"co-svsp-core:PrimerNombreDeudorCxC"}]
["/*",null,{"$f":"'800111A GeneraXBRL'!$D$187","v":"Otros nombres deudor"},{"$f":"'800111A GeneraXBRL'!$C$187","v":"co-svsp-core:OtrosNombresDeudorCxC"}]
[{"$f":"IF(G3872=\"\",\"/*\",\"\")","v":"/*"},null,{"$f":"'800111A GeneraXBRL'!$D$188","v":"Razón Social deudor"},{"$f":"'800111A GeneraXBRL'!$C$188","v":"co-svsp-core:RazonSocialDeudorCxC"}]
["/*",null,{"$f":"'800111A GeneraXBRL'!$D$189","v":"Dirección deudor"},{"$f":"'800111A GeneraXBRL'!$C$189","v":"co-svsp-core:DireccionDeudorCxC"}]
["/*",null,{"$f":"'800111A GeneraXBRL'!$D$190","v":"Departamento deudor"},{"$f":"'800111A GeneraXBRL'!$C$190","v":"co-svsp-core:DepartamentoDeudorCxC"}]
["/*",null,{"$f":"'800111A GeneraXBRL'!$D$191","v":"Municipio deudor"},{"$f":"'800111A GeneraXBRL'!$C$191","v":"co-svsp-core:MunicipioDeudorCxC"}]
["/*",null,{"$f":"'800111A GeneraXBRL'!$D$192","v":"País deudor"},{"$f":"'800111A GeneraXBRL'!$C$192","v":"co-svsp-core:PaisDeudorCxC"}]
["/*",null,{"$f":"'800111A GeneraXBRL'!$D$193","v":"Saldo cuentas por cobrar"},{"$f":"'800111A GeneraXBRL'!$C$193","v":"co-svsp-core:SaldoCuentasPorCobrarCxC"}]
["/*",null,"--104--"]
["/*",null,{"$f":"'800111A GeneraXBRL'!$D$182","v":"Tipo de documento del deudor"},{"$f":"'800111A GeneraXBRL'!$C$182","v":"co-svsp-core:TipoDeDocumentoDeudorCxC"}]
["/*",null,{"$f":"'800111A GeneraXBRL'!$D$183","v":"Número de identificación del deudor"},{"$f":"'800111A GeneraXBRL'!$C$183","v":"co-svsp-core:NumeroIdentificacionDeudorCxC"}]
["/*",null,{"$f":"'800111A GeneraXBRL'!$D$184","v":"Primer apellido deudor"},{"$f":"'800111A GeneraXBRL'!$C$184","v":"co-svsp-core:PrimerApellidoDeudorCxC"}]
["/*",null,{"$f":"'800111A GeneraXBRL'!$D$185","v":"Segundo apellido deudor"},{"$f":"'800111A GeneraXBRL'!$C$185","v":"co-svsp-core:SegundoApellidoDeudorCxC"}]
["/*",null,{"$f":"'800111A GeneraXBRL'!$D$186","v":"Primer nombre deudor"},{"$f":"'800111A GeneraXBRL'!$C$186","v":"co-svsp-core:PrimerNombreDeudorCxC"}]
["/*",null,{"$f":"'800111A GeneraXBRL'!$D$187","v":"Otros nombres deudor"},{"$f":"'800111A GeneraXBRL'!$C$187","v":"co-svsp-core:OtrosNombresDeudorCxC"}]
["/*",null,{"$f":"'800111A GeneraXBRL'!$D$188","v":"Razón Social deudor"},{"$f":"'800111A GeneraXBRL'!$C$188","v":"co-svsp-core:RazonSocialDeudorCxC"}]
["/*",null,{"$f":"'800111A GeneraXBRL'!$D$189","v":"Dirección deudor"},{"$f":"'800111A GeneraXBRL'!$C$189","v":"co-svsp-core:DireccionDeudorCxC"}]
["/*",null,{"$f":"'800111A GeneraXBRL'!$D$190","v":"Departamento deudor"},{"$f":"'800111A GeneraXBRL'!$C$190","v":"co-svsp-core:DepartamentoDeudorCxC"}]
["/*",null,{"$f":"'800111A GeneraXBRL'!$D$191","v":"Municipio deudor"},{"$f":"'800111A GeneraXBRL'!$C$191","v":"co-svsp-core:MunicipioDeudorCxC"}]
["/*",null,{"$f":"'800111A GeneraXBRL'!$D$192","v":"País deudor"},{"$f":"'800111A GeneraXBRL'!$C$192","v":"co-svsp-core:PaisDeudorCxC"}]
["/*",null,{"$f":"'800111A GeneraXBRL'!$D$193","v":"Saldo cuentas por cobrar"},{"$f":"'800111A GeneraXBRL'!$C$193","v":"co-svsp-core:SaldoCuentasPorCobrarCxC"}]
["/*",null,"--105--"]
["/*",null,{"$f":"'800111A GeneraXBRL'!$D$182","v":"Tipo de documento del deudor"},{"$f":"'800111A GeneraXBRL'!$C$182","v":"co-svsp-core:TipoDeDocumentoDeudorCxC"}]
["/*",null,{"$f":"'800111A GeneraXBRL'!$D$183","v":"Número de identificación del deudor"},{"$f":"'800111A GeneraXBRL'!$C$183","v":"co-svsp-core:NumeroIdentificacionDeudorCxC"}]
["/*",null,{"$f":"'800111A GeneraXBRL'!$D$184","v":"Primer apellido deudor"},{"$f":"'800111A GeneraXBRL'!$C$184","v":"co-svsp-core:PrimerApellidoDeudorCxC"}]
["/*",null,{"$f":"'800111A GeneraXBRL'!$D$185","v":"Segundo apellido deudor"},{"$f":"'800111A GeneraXBRL'!$C$185","v":"co-svsp-core:SegundoApellidoDeudorCxC"}]
["/*",null,{"$f":"'800111A GeneraXBRL'!$D$186","v":"Primer nombre deudor"},{"$f":"'800111A GeneraXBRL'!$C$186","v":"co-svsp-core:PrimerNombreDeudorCxC"}]
["/*",null,{"$f":"'800111A GeneraXBRL'!$D$187","v":"Otros nombres deudor"},{"$f":"'800111A GeneraXBRL'!$C$187","v":"co-svsp-core:OtrosNombresDeudorCxC"}]
["/*",null,{"$f":"'800111A GeneraXBRL'!$D$188","v":"Razón Social deudor"},{"$f":"'800111A GeneraXBRL'!$C$188","v":"co-svsp-core:RazonSocialDeudorCxC"}]
["/*",null,{"$f":"'800111A GeneraXBRL'!$D$189","v":"Dirección deudor"},{"$f":"'800111A GeneraXBRL'!$C$189","v":"co-svsp-core:DireccionDeudorCxC"}]
["/*",null,{"$f":"'800111A GeneraXBRL'!$D$190","v":"Departamento deudor"},{"$f":"'800111A GeneraXBRL'!$C$190","v":"co-svsp-core:DepartamentoDeudorCxC"}]
["/*",null,{"$f":"'800111A GeneraXBRL'!$D$191","v":"Municipio deudor"},{"$f":"'800111A GeneraXBRL'!$C$191","v":"co-svsp-core:MunicipioDeudorCxC"}]
["/*",null,{"$f":"'800111A GeneraXBRL'!$D$192","v":"País deudor"},{"$f":"'800111A GeneraXBRL'!$C$192","v":"co-svsp-core:PaisDeudorCxC"}]
["/*",null,{"$f":"'800111A GeneraXBRL'!$D$193","v":"Saldo cuentas por cobrar"},{"$f":"'800111A GeneraXBRL'!$C$193","v":"co-svsp-core:SaldoCuentasPorCobrarCxC"}]
["/*",null,"--106--"]
["/*",null,{"$f":"'800111A GeneraXBRL'!$D$182","v":"Tipo de documento del deudor"},{"$f":"'800111A GeneraXBRL'!$C$182","v":"co-svsp-core:TipoDeDocumentoDeudorCxC"}]
["/*",null,{"$f":"'800111A GeneraXBRL'!$D$183","v":"Número de identificación del deudor"},{"$f":"'800111A GeneraXBRL'!$C$183","v":"co-svsp-core:NumeroIdentificacionDeudorCxC"}]
["/*",null,{"$f":"'800111A GeneraXBRL'!$D$184","v":"Primer apellido deudor"},{"$f":"'800111A GeneraXBRL'!$C$184","v":"co-svsp-core:PrimerApellidoDeudorCxC"}]
["/*",null,{"$f":"'800111A GeneraXBRL'!$D$185","v":"Segundo apellido deudor"},{"$f":"'800111A GeneraXBRL'!$C$185","v":"co-svsp-core:SegundoApellidoDeudorCxC"}]
["/*",null,{"$f":"'800111A GeneraXBRL'!$D$186","v":"Primer nombre deudor"},{"$f":"'800111A GeneraXBRL'!$C$186","v":"co-svsp-core:PrimerNombreDeudorCxC"}]
["/*",null,{"$f":"'800111A GeneraXBRL'!$D$187","v":"Otros nombres deudor"},{"$f":"'800111A GeneraXBRL'!$C$187","v":"co-svsp-core:OtrosNombresDeudorCxC"}]
["/*",null,{"$f":"'800111A GeneraXBRL'!$D$188","v":"Razón Social deudor"},{"$f":"'800111A GeneraXBRL'!$C$188","v":"co-svsp-core:RazonSocialDeudorCxC"}]
["/*",null,{"$f":"'800111A GeneraXBRL'!$D$189","v":"Dirección deudor"},{"$f":"'800111A GeneraXBRL'!$C$189","v":"co-svsp-core:DireccionDeudorCxC"}]
["/*",null,{"$f":"'800111A GeneraXBRL'!$D$190","v":"Departamento deudor"},{"$f":"'800111A GeneraXBRL'!$C$190","v":"co-svsp-core:DepartamentoDeudorCxC"}]
["/*",null,{"$f":"'800111A GeneraXBRL'!$D$191","v":"Municipio deudor"},{"$f":"'800111A GeneraXBRL'!$C$191","v":"co-svsp-core:MunicipioDeudorCxC"}]
["/*",null,{"$f":"'800111A GeneraXBRL'!$D$192","v":"País deudor"},{"$f":"'800111A GeneraXBRL'!$C$192","v":"co-svsp-core:PaisDeudorCxC"}]
["/*",null,{"$f":"'800111A GeneraXBRL'!$D$193","v":"Saldo cuentas por cobrar"},{"$f":"'800111A GeneraXBRL'!$C$193","v":"co-svsp-core:SaldoCuentasPorCobrarCxC"}]
["/*",null,"--107--"]
["/*",null,{"$f":"'800111A GeneraXBRL'!$D$182","v":"Tipo de documento del deudor"},{"$f":"'800111A GeneraXBRL'!$C$182","v":"co-svsp-core:TipoDeDocumentoDeudorCxC"}]
["/*",null,{"$f":"'800111A GeneraXBRL'!$D$183","v":"Número de identificación del deudor"},{"$f":"'800111A GeneraXBRL'!$C$183","v":"co-svsp-core:NumeroIdentificacionDeudorCxC"}]
["/*",null,{"$f":"'800111A GeneraXBRL'!$D$184","v":"Primer apellido deudor"},{"$f":"'800111A GeneraXBRL'!$C$184","v":"co-svsp-core:PrimerApellidoDeudorCxC"}]
["/*",null,{"$f":"'800111A GeneraXBRL'!$D$185","v":"Segundo apellido deudor"},{"$f":"'800111A GeneraXBRL'!$C$185","v":"co-svsp-core:SegundoApellidoDeudorCxC"}]
["/*",null,{"$f":"'800111A GeneraXBRL'!$D$186","v":"Primer nombre deudor"},{"$f":"'800111A GeneraXBRL'!$C$186","v":"co-svsp-core:PrimerNombreDeudorCxC"}]
["/*",null,{"$f":"'800111A GeneraXBRL'!$D$187","v":"Otros nombres deudor"},{"$f":"'800111A GeneraXBRL'!$C$187","v":"co-svsp-core:OtrosNombresDeudorCxC"}]
["/*",null,{"$f":"'800111A GeneraXBRL'!$D$188","v":"Razón Social deudor"},{"$f":"'800111A GeneraXBRL'!$C$188","v":"co-svsp-core:RazonSocialDeudorCxC"}]
["/*",null,{"$f":"'800111A GeneraXBRL'!$D$189","v":"Dirección deudor"},{"$f":"'800111A GeneraXBRL'!$C$189","v":"co-svsp-core:DireccionDeudorCxC"}]
["/*",null,{"$f":"'800111A GeneraXBRL'!$D$190","v":"Departamento deudor"},{"$f":"'800111A GeneraXBRL'!$C$190","v":"co-svsp-core:DepartamentoDeudorCxC"}]
["/*",null,{"$f":"'800111A GeneraXBRL'!$D$191","v":"Municipio deudor"},{"$f":"'800111A GeneraXBRL'!$C$191","v":"co-svsp-core:MunicipioDeudorCxC"}]
["/*",null,{"$f":"'800111A GeneraXBRL'!$D$192","v":"País deudor"},{"$f":"'800111A GeneraXBRL'!$C$192","v":"co-svsp-core:PaisDeudorCxC"}]
["",null,{"$f":"'800111A GeneraXBRL'!$D$193","v":"Saldo cuentas por cobrar"},{"$f":"'800111A GeneraXBRL'!$C$193","v":"co-svsp-core:SaldoCuentasPorCobrarCxC"},0,"peso",{"$f":"'800111A GeneraXBRL'!$DG$193","v":0},0,"http://www.xbrl.org/scheme/companyName",null,{"$f":"Periodos!$D$4","v":"2022-12-31"},{"$f":"'800111A GeneraXBRL'!$D$181","v":"co-svsp-core:DetalleCuentasXCobrar_Eje"},{"$f":"'800111A GeneraXBRL'!$DG$180","v":"co-svsp-core:TotalDetalleCuentasXCobrarAccionistasSociosVinculadasMiembro"}]
["/*",null,"--108--"]
["/*",null,{"$f":"'800111A GeneraXBRL'!$D$182","v":"Tipo de documento del deudor"},{"$f":"'800111A GeneraXBRL'!$C$182","v":"co-svsp-core:TipoDeDocumentoDeudorCxC"}]
["/*",null,{"$f":"'800111A GeneraXBRL'!$D$183","v":"Número de identificación del deudor"},{"$f":"'800111A GeneraXBRL'!$C$183","v":"co-svsp-core:NumeroIdentificacionDeudorCxC"}]
["/*",null,{"$f":"'800111A GeneraXBRL'!$D$184","v":"Primer apellido deudor"},{"$f":"'800111A GeneraXBRL'!$C$184","v":"co-svsp-core:PrimerApellidoDeudorCxC"}]
["/*",null,{"$f":"'800111A GeneraXBRL'!$D$185","v":"Segundo apellido deudor"},{"$f":"'800111A GeneraXBRL'!$C$185","v":"co-svsp-core:SegundoApellidoDeudorCxC"}]
["/*",null,{"$f":"'800111A GeneraXBRL'!$D$186","v":"Primer nombre deudor"},{"$f":"'800111A GeneraXBRL'!$C$186","v":"co-svsp-core:PrimerNombreDeudorCxC"}]
[{"$f":"IF(G3936=\"\",\"/*\",\"\")","v":"/*"},null,{"$f":"'800111A GeneraXBRL'!$D$187","v":"Otros nombres deudor"},{"$f":"'800111A GeneraXBRL'!$C$187","v":"co-svsp-core:OtrosNombresDeudorCxC"}]
["/*",null,{"$f":"'800111A GeneraXBRL'!$D$188","v":"Razón Social deudor"},{"$f":"'800111A GeneraXBRL'!$C$188","v":"co-svsp-core:RazonSocialDeudorCxC"}]
["/*",null,{"$f":"'800111A GeneraXBRL'!$D$189","v":"Dirección deudor"},{"$f":"'800111A GeneraXBRL'!$C$189","v":"co-svsp-core:DireccionDeudorCxC"}]
["/*",null,{"$f":"'800111A GeneraXBRL'!$D$190","v":"Departamento deudor"},{"$f":"'800111A GeneraXBRL'!$C$190","v":"co-svsp-core:DepartamentoDeudorCxC"}]
["/*",null,{"$f":"'800111A GeneraXBRL'!$D$191","v":"Municipio deudor"},{"$f":"'800111A GeneraXBRL'!$C$191","v":"co-svsp-core:MunicipioDeudorCxC"}]
["/*",null,{"$f":"'800111A GeneraXBRL'!$D$192","v":"País deudor"},{"$f":"'800111A GeneraXBRL'!$C$192","v":"co-svsp-core:PaisDeudorCxC"}]
["/*",null,{"$f":"'800111A GeneraXBRL'!$D$193","v":"Saldo cuentas por cobrar"},{"$f":"'800111A GeneraXBRL'!$C$193","v":"co-svsp-core:SaldoCuentasPorCobrarCxC"}]
["/*",null,"--109--"]
["/*",null,{"$f":"'800111A GeneraXBRL'!$D$182","v":"Tipo de documento del deudor"},{"$f":"'800111A GeneraXBRL'!$C$182","v":"co-svsp-core:TipoDeDocumentoDeudorCxC"}]
["/*",null,{"$f":"'800111A GeneraXBRL'!$D$183","v":"Número de identificación del deudor"},{"$f":"'800111A GeneraXBRL'!$C$183","v":"co-svsp-core:NumeroIdentificacionDeudorCxC"}]
["/*",null,{"$f":"'800111A GeneraXBRL'!$D$184","v":"Primer apellido deudor"},{"$f":"'800111A GeneraXBRL'!$C$184","v":"co-svsp-core:PrimerApellidoDeudorCxC"}]
["/*",null,{"$f":"'800111A GeneraXBRL'!$D$185","v":"Segundo apellido deudor"},{"$f":"'800111A GeneraXBRL'!$C$185","v":"co-svsp-core:SegundoApellidoDeudorCxC"}]
["/*",null,{"$f":"'800111A GeneraXBRL'!$D$186","v":"Primer nombre deudor"},{"$f":"'800111A GeneraXBRL'!$C$186","v":"co-svsp-core:PrimerNombreDeudorCxC"}]
["/*",null,{"$f":"'800111A GeneraXBRL'!$D$187","v":"Otros nombres deudor"},{"$f":"'800111A GeneraXBRL'!$C$187","v":"co-svsp-core:OtrosNombresDeudorCxC"}]
["/*",null,{"$f":"'800111A GeneraXBRL'!$D$188","v":"Razón Social deudor"},{"$f":"'800111A GeneraXBRL'!$C$188","v":"co-svsp-core:RazonSocialDeudorCxC"}]
["/*",null,{"$f":"'800111A GeneraXBRL'!$D$189","v":"Dirección deudor"},{"$f":"'800111A GeneraXBRL'!$C$189","v":"co-svsp-core:DireccionDeudorCxC"}]
["/*",null,{"$f":"'800111A GeneraXBRL'!$D$190","v":"Departamento deudor"},{"$f":"'800111A GeneraXBRL'!$C$190","v":"co-svsp-core:DepartamentoDeudorCxC"}]
["/*",null,{"$f":"'800111A GeneraXBRL'!$D$191","v":"Municipio deudor"},{"$f":"'800111A GeneraXBRL'!$C$191","v":"co-svsp-core:MunicipioDeudorCxC"}]
["/*",null,{"$f":"'800111A GeneraXBRL'!$D$192","v":"País deudor"},{"$f":"'800111A GeneraXBRL'!$C$192","v":"co-svsp-core:PaisDeudorCxC"}]
["/*",null,{"$f":"'800111A GeneraXBRL'!$D$193","v":"Saldo cuentas por cobrar"},{"$f":"'800111A GeneraXBRL'!$C$193","v":"co-svsp-core:SaldoCuentasPorCobrarCxC"}]
["/*",null,"--110--"]
["/*",null,{"$f":"'800111A GeneraXBRL'!$D$182","v":"Tipo de documento del deudor"},{"$f":"'800111A GeneraXBRL'!$C$182","v":"co-svsp-core:TipoDeDocumentoDeudorCxC"}]
["/*",null,{"$f":"'800111A GeneraXBRL'!$D$183","v":"Número de identificación del deudor"},{"$f":"'800111A GeneraXBRL'!$C$183","v":"co-svsp-core:NumeroIdentificacionDeudorCxC"}]
["/*",null,{"$f":"'800111A GeneraXBRL'!$D$184","v":"Primer apellido deudor"},{"$f":"'800111A GeneraXBRL'!$C$184","v":"co-svsp-core:PrimerApellidoDeudorCxC"}]
["/*",null,{"$f":"'800111A GeneraXBRL'!$D$185","v":"Segundo apellido deudor"},{"$f":"'800111A GeneraXBRL'!$C$185","v":"co-svsp-core:SegundoApellidoDeudorCxC"}]
["/*",null,{"$f":"'800111A GeneraXBRL'!$D$186","v":"Primer nombre deudor"},{"$f":"'800111A GeneraXBRL'!$C$186","v":"co-svsp-core:PrimerNombreDeudorCxC"}]
["/*",null,{"$f":"'800111A GeneraXBRL'!$D$187","v":"Otros nombres deudor"},{"$f":"'800111A GeneraXBRL'!$C$187","v":"co-svsp-core:OtrosNombresDeudorCxC"}]
["/*",null,{"$f":"'800111A GeneraXBRL'!$D$188","v":"Razón Social deudor"},{"$f":"'800111A GeneraXBRL'!$C$188","v":"co-svsp-core:RazonSocialDeudorCxC"}]
["/*",null,{"$f":"'800111A GeneraXBRL'!$D$189","v":"Dirección deudor"},{"$f":"'800111A GeneraXBRL'!$C$189","v":"co-svsp-core:DireccionDeudorCxC"}]
["/*",null,{"$f":"'800111A GeneraXBRL'!$D$190","v":"Departamento deudor"},{"$f":"'800111A GeneraXBRL'!$C$190","v":"co-svsp-core:DepartamentoDeudorCxC"}]
["/*",null,{"$f":"'800111A GeneraXBRL'!$D$191","v":"Municipio deudor"},{"$f":"'800111A GeneraXBRL'!$C$191","v":"co-svsp-core:MunicipioDeudorCxC"}]
["/*",null,{"$f":"'800111A GeneraXBRL'!$D$192","v":"País deudor"},{"$f":"'800111A GeneraXBRL'!$C$192","v":"co-svsp-core:PaisDeudorCxC"}]
["/*",null,{"$f":"'800111A GeneraXBRL'!$D$193","v":"Saldo cuentas por cobrar"},{"$f":"'800111A GeneraXBRL'!$C$193","v":"co-svsp-core:SaldoCuentasPorCobrarCxC"}]
["/*",null,"--111--"]
["/*",null,{"$f":"'800111A GeneraXBRL'!$D$182","v":"Tipo de documento del deudor"},{"$f":"'800111A GeneraXBRL'!$C$182","v":"co-svsp-core:TipoDeDocumentoDeudorCxC"}]
["/*",null,{"$f":"'800111A GeneraXBRL'!$D$183","v":"Número de identificación del deudor"},{"$f":"'800111A GeneraXBRL'!$C$183","v":"co-svsp-core:NumeroIdentificacionDeudorCxC"}]
["/*",null,{"$f":"'800111A GeneraXBRL'!$D$184","v":"Primer apellido deudor"},{"$f":"'800111A GeneraXBRL'!$C$184","v":"co-svsp-core:PrimerApellidoDeudorCxC"}]
["/*",null,{"$f":"'800111A GeneraXBRL'!$D$185","v":"Segundo apellido deudor"},{"$f":"'800111A GeneraXBRL'!$C$185","v":"co-svsp-core:SegundoApellidoDeudorCxC"}]
["/*",null,{"$f":"'800111A GeneraXBRL'!$D$186","v":"Primer nombre deudor"},{"$f":"'800111A GeneraXBRL'!$C$186","v":"co-svsp-core:PrimerNombreDeudorCxC"}]
["/*",null,{"$f":"'800111A GeneraXBRL'!$D$187","v":"Otros nombres deudor"},{"$f":"'800111A GeneraXBRL'!$C$187","v":"co-svsp-core:OtrosNombresDeudorCxC"}]
["/*",null,{"$f":"'800111A GeneraXBRL'!$D$188","v":"Razón Social deudor"},{"$f":"'800111A GeneraXBRL'!$C$188","v":"co-svsp-core:RazonSocialDeudorCxC"}]
["/*",null,{"$f":"'800111A GeneraXBRL'!$D$189","v":"Dirección deudor"},{"$f":"'800111A GeneraXBRL'!$C$189","v":"co-svsp-core:DireccionDeudorCxC"}]
["/*",null,{"$f":"'800111A GeneraXBRL'!$D$190","v":"Departamento deudor"},{"$f":"'800111A GeneraXBRL'!$C$190","v":"co-svsp-core:DepartamentoDeudorCxC"}]
["/*",null,{"$f":"'800111A GeneraXBRL'!$D$191","v":"Municipio deudor"},{"$f":"'800111A GeneraXBRL'!$C$191","v":"co-svsp-core:MunicipioDeudorCxC"}]
["/*",null,{"$f":"'800111A GeneraXBRL'!$D$192","v":"País deudor"},{"$f":"'800111A GeneraXBRL'!$C$192","v":"co-svsp-core:PaisDeudorCxC"}]
["/*",null,{"$f":"'800111A GeneraXBRL'!$D$193","v":"Saldo cuentas por cobrar"},{"$f":"'800111A GeneraXBRL'!$C$193","v":"co-svsp-core:SaldoCuentasPorCobrarCxC"}]
["/*",null,"--112--"]
["/*",null,{"$f":"'800111A GeneraXBRL'!$D$182","v":"Tipo de documento del deudor"},{"$f":"'800111A GeneraXBRL'!$C$182","v":"co-svsp-core:TipoDeDocumentoDeudorCxC"}]
["/*",null,{"$f":"'800111A GeneraXBRL'!$D$183","v":"Número de identificación del deudor"},{"$f":"'800111A GeneraXBRL'!$C$183","v":"co-svsp-core:NumeroIdentificacionDeudorCxC"}]
["/*",null,{"$f":"'800111A GeneraXBRL'!$D$184","v":"Primer apellido deudor"},{"$f":"'800111A GeneraXBRL'!$C$184","v":"co-svsp-core:PrimerApellidoDeudorCxC"}]
["/*",null,{"$f":"'800111A GeneraXBRL'!$D$185","v":"Segundo apellido deudor"},{"$f":"'800111A GeneraXBRL'!$C$185","v":"co-svsp-core:SegundoApellidoDeudorCxC"}]
["/*",null,{"$f":"'800111A GeneraXBRL'!$D$186","v":"Primer nombre deudor"},{"$f":"'800111A GeneraXBRL'!$C$186","v":"co-svsp-core:PrimerNombreDeudorCxC"}]
["/*",null,{"$f":"'800111A GeneraXBRL'!$D$187","v":"Otros nombres deudor"},{"$f":"'800111A GeneraXBRL'!$C$187","v":"co-svsp-core:OtrosNombresDeudorCxC"}]
["/*",null,{"$f":"'800111A GeneraXBRL'!$D$188","v":"Razón Social deudor"},{"$f":"'800111A GeneraXBRL'!$C$188","v":"co-svsp-core:RazonSocialDeudorCxC"}]
["/*",null,{"$f":"'800111A GeneraXBRL'!$D$189","v":"Dirección deudor"},{"$f":"'800111A GeneraXBRL'!$C$189","v":"co-svsp-core:DireccionDeudorCxC"}]
["/*",null,{"$f":"'800111A GeneraXBRL'!$D$190","v":"Departamento deudor"},{"$f":"'800111A GeneraXBRL'!$C$190","v":"co-svsp-core:DepartamentoDeudorCxC"}]
["/*",null,{"$f":"'800111A GeneraXBRL'!$D$191","v":"Municipio deudor"},{"$f":"'800111A GeneraXBRL'!$C$191","v":"co-svsp-core:MunicipioDeudorCxC"}]
["/*",null,{"$f":"'800111A GeneraXBRL'!$D$192","v":"País deudor"},{"$f":"'800111A GeneraXBRL'!$C$192","v":"co-svsp-core:PaisDeudorCxC"}]
["/*",null,{"$f":"'800111A GeneraXBRL'!$D$193","v":"Saldo cuentas por cobrar"},{"$f":"'800111A GeneraXBRL'!$C$193","v":"co-svsp-core:SaldoCuentasPorCobrarCxC"}]
["/*",null,"--113--"]
["/*",null,{"$f":"'800111A GeneraXBRL'!$D$182","v":"Tipo de documento del deudor"},{"$f":"'800111A GeneraXBRL'!$C$182","v":"co-svsp-core:TipoDeDocumentoDeudorCxC"}]
["/*",null,{"$f":"'800111A GeneraXBRL'!$D$183","v":"Número de identificación del deudor"},{"$f":"'800111A GeneraXBRL'!$C$183","v":"co-svsp-core:NumeroIdentificacionDeudorCxC"}]
["/*",null,{"$f":"'800111A GeneraXBRL'!$D$184","v":"Primer apellido deudor"},{"$f":"'800111A GeneraXBRL'!$C$184","v":"co-svsp-core:PrimerApellidoDeudorCxC"}]
["/*",null,{"$f":"'800111A GeneraXBRL'!$D$185","v":"Segundo apellido deudor"},{"$f":"'800111A GeneraXBRL'!$C$185","v":"co-svsp-core:SegundoApellidoDeudorCxC"}]
[{"$f":"IF(G4000=\"\",\"/*\",\"\")","v":"/*"},null,{"$f":"'800111A GeneraXBRL'!$D$186","v":"Primer nombre deudor"},{"$f":"'800111A GeneraXBRL'!$C$186","v":"co-svsp-core:PrimerNombreDeudorCxC"}]
["/*",null,{"$f":"'800111A GeneraXBRL'!$D$187","v":"Otros nombres deudor"},{"$f":"'800111A GeneraXBRL'!$C$187","v":"co-svsp-core:OtrosNombresDeudorCxC"}]
["/*",null,{"$f":"'800111A GeneraXBRL'!$D$188","v":"Razón Social deudor"},{"$f":"'800111A GeneraXBRL'!$C$188","v":"co-svsp-core:RazonSocialDeudorCxC"}]
["/*",null,{"$f":"'800111A GeneraXBRL'!$D$189","v":"Dirección deudor"},{"$f":"'800111A GeneraXBRL'!$C$189","v":"co-svsp-core:DireccionDeudorCxC"}]
["/*",null,{"$f":"'800111A GeneraXBRL'!$D$190","v":"Departamento deudor"},{"$f":"'800111A GeneraXBRL'!$C$190","v":"co-svsp-core:DepartamentoDeudorCxC"}]
["/*",null,{"$f":"'800111A GeneraXBRL'!$D$191","v":"Municipio deudor"},{"$f":"'800111A GeneraXBRL'!$C$191","v":"co-svsp-core:MunicipioDeudorCxC"}]
["/*",null,{"$f":"'800111A GeneraXBRL'!$D$192","v":"País deudor"},{"$f":"'800111A GeneraXBRL'!$C$192","v":"co-svsp-core:PaisDeudorCxC"}]
["/*",null,{"$f":"'800111A GeneraXBRL'!$D$193","v":"Saldo cuentas por cobrar"},{"$f":"'800111A GeneraXBRL'!$C$193","v":"co-svsp-core:SaldoCuentasPorCobrarCxC"}]
["/*",null,"--114--"]
["/*",null,{"$f":"'800111A GeneraXBRL'!$D$182","v":"Tipo de documento del deudor"},{"$f":"'800111A GeneraXBRL'!$C$182","v":"co-svsp-core:TipoDeDocumentoDeudorCxC"}]
["/*",null,{"$f":"'800111A GeneraXBRL'!$D$183","v":"Número de identificación del deudor"},{"$f":"'800111A GeneraXBRL'!$C$183","v":"co-svsp-core:NumeroIdentificacionDeudorCxC"}]
["/*",null,{"$f":"'800111A GeneraXBRL'!$D$184","v":"Primer apellido deudor"},{"$f":"'800111A GeneraXBRL'!$C$184","v":"co-svsp-core:PrimerApellidoDeudorCxC"}]
["/*",null,{"$f":"'800111A GeneraXBRL'!$D$185","v":"Segundo apellido deudor"},{"$f":"'800111A GeneraXBRL'!$C$185","v":"co-svsp-core:SegundoApellidoDeudorCxC"}]
["/*",null,{"$f":"'800111A GeneraXBRL'!$D$186","v":"Primer nombre deudor"},{"$f":"'800111A GeneraXBRL'!$C$186","v":"co-svsp-core:PrimerNombreDeudorCxC"}]
["/*",null,{"$f":"'800111A GeneraXBRL'!$D$187","v":"Otros nombres deudor"},{"$f":"'800111A GeneraXBRL'!$C$187","v":"co-svsp-core:OtrosNombresDeudorCxC"}]
["/*",null,{"$f":"'800111A GeneraXBRL'!$D$188","v":"Razón Social deudor"},{"$f":"'800111A GeneraXBRL'!$C$188","v":"co-svsp-core:RazonSocialDeudorCxC"}]
["/*",null,{"$f":"'800111A GeneraXBRL'!$D$189","v":"Dirección deudor"},{"$f":"'800111A GeneraXBRL'!$C$189","v":"co-svsp-core:DireccionDeudorCxC"}]
["/*",null,{"$f":"'800111A GeneraXBRL'!$D$190","v":"Departamento deudor"},{"$f":"'800111A GeneraXBRL'!$C$190","v":"co-svsp-core:DepartamentoDeudorCxC"}]
["/*",null,{"$f":"'800111A GeneraXBRL'!$D$191","v":"Municipio deudor"},{"$f":"'800111A GeneraXBRL'!$C$191","v":"co-svsp-core:MunicipioDeudorCxC"}]
["/*",null,{"$f":"'800111A GeneraXBRL'!$D$192","v":"País deudor"},{"$f":"'800111A GeneraXBRL'!$C$192","v":"co-svsp-core:PaisDeudorCxC"}]
["/*",null,{"$f":"'800111A GeneraXBRL'!$D$193","v":"Saldo cuentas por cobrar"},{"$f":"'800111A GeneraXBRL'!$C$193","v":"co-svsp-core:SaldoCuentasPorCobrarCxC"}]
["/*",null,"--115--"]
["/*",null,{"$f":"'800111A GeneraXBRL'!$D$182","v":"Tipo de documento del deudor"},{"$f":"'800111A GeneraXBRL'!$C$182","v":"co-svsp-core:TipoDeDocumentoDeudorCxC"}]
["/*",null,{"$f":"'800111A GeneraXBRL'!$D$183","v":"Número de identificación del deudor"},{"$f":"'800111A GeneraXBRL'!$C$183","v":"co-svsp-core:NumeroIdentificacionDeudorCxC"}]
["/*",null,{"$f":"'800111A GeneraXBRL'!$D$184","v":"Primer apellido deudor"},{"$f":"'800111A GeneraXBRL'!$C$184","v":"co-svsp-core:PrimerApellidoDeudorCxC"}]
["/*",null,{"$f":"'800111A GeneraXBRL'!$D$185","v":"Segundo apellido deudor"},{"$f":"'800111A GeneraXBRL'!$C$185","v":"co-svsp-core:SegundoApellidoDeudorCxC"}]
["/*",null,{"$f":"'800111A GeneraXBRL'!$D$186","v":"Primer nombre deudor"},{"$f":"'800111A GeneraXBRL'!$C$186","v":"co-svsp-core:PrimerNombreDeudorCxC"}]
["/*",null,{"$f":"'800111A GeneraXBRL'!$D$187","v":"Otros nombres deudor"},{"$f":"'800111A GeneraXBRL'!$C$187","v":"co-svsp-core:OtrosNombresDeudorCxC"}]
["/*",null,{"$f":"'800111A GeneraXBRL'!$D$188","v":"Razón Social deudor"},{"$f":"'800111A GeneraXBRL'!$C$188","v":"co-svsp-core:RazonSocialDeudorCxC"}]
["/*",null,{"$f":"'800111A GeneraXBRL'!$D$189","v":"Dirección deudor"},{"$f":"'800111A GeneraXBRL'!$C$189","v":"co-svsp-core:DireccionDeudorCxC"}]
["/*",null,{"$f":"'800111A GeneraXBRL'!$D$190","v":"Departamento deudor"},{"$f":"'800111A GeneraXBRL'!$C$190","v":"co-svsp-core:DepartamentoDeudorCxC"}]
["/*",null,{"$f":"'800111A GeneraXBRL'!$D$191","v":"Municipio deudor"},{"$f":"'800111A GeneraXBRL'!$C$191","v":"co-svsp-core:MunicipioDeudorCxC"}]
["/*",null,{"$f":"'800111A GeneraXBRL'!$D$192","v":"País deudor"},{"$f":"'800111A GeneraXBRL'!$C$192","v":"co-svsp-core:PaisDeudorCxC"}]
["/*",null,{"$f":"'800111A GeneraXBRL'!$D$193","v":"Saldo cuentas por cobrar"},{"$f":"'800111A GeneraXBRL'!$C$193","v":"co-svsp-core:SaldoCuentasPorCobrarCxC"}]
["/*",null,"--116--"]
["/*",null,{"$f":"'800111A GeneraXBRL'!$D$182","v":"Tipo de documento del deudor"},{"$f":"'800111A GeneraXBRL'!$C$182","v":"co-svsp-core:TipoDeDocumentoDeudorCxC"}]
["/*",null,{"$f":"'800111A GeneraXBRL'!$D$183","v":"Número de identificación del deudor"},{"$f":"'800111A GeneraXBRL'!$C$183","v":"co-svsp-core:NumeroIdentificacionDeudorCxC"}]
["/*",null,{"$f":"'800111A GeneraXBRL'!$D$184","v":"Primer apellido deudor"},{"$f":"'800111A GeneraXBRL'!$C$184","v":"co-svsp-core:PrimerApellidoDeudorCxC"}]
["/*",null,{"$f":"'800111A GeneraXBRL'!$D$185","v":"Segundo apellido deudor"},{"$f":"'800111A GeneraXBRL'!$C$185","v":"co-svsp-core:SegundoApellidoDeudorCxC"}]
["/*",null,{"$f":"'800111A GeneraXBRL'!$D$186","v":"Primer nombre deudor"},{"$f":"'800111A GeneraXBRL'!$C$186","v":"co-svsp-core:PrimerNombreDeudorCxC"}]
["/*",null,{"$f":"'800111A GeneraXBRL'!$D$187","v":"Otros nombres deudor"},{"$f":"'800111A GeneraXBRL'!$C$187","v":"co-svsp-core:OtrosNombresDeudorCxC"}]
["/*",null,{"$f":"'800111A GeneraXBRL'!$D$188","v":"Razón Social deudor"},{"$f":"'800111A GeneraXBRL'!$C$188","v":"co-svsp-core:RazonSocialDeudorCxC"}]
["/*",null,{"$f":"'800111A GeneraXBRL'!$D$189","v":"Dirección deudor"},{"$f":"'800111A GeneraXBRL'!$C$189","v":"co-svsp-core:DireccionDeudorCxC"}]
["/*",null,{"$f":"'800111A GeneraXBRL'!$D$190","v":"Departamento deudor"},{"$f":"'800111A GeneraXBRL'!$C$190","v":"co-svsp-core:DepartamentoDeudorCxC"}]
["/*",null,{"$f":"'800111A GeneraXBRL'!$D$191","v":"Municipio deudor"},{"$f":"'800111A GeneraXBRL'!$C$191","v":"co-svsp-core:MunicipioDeudorCxC"}]
["/*",null,{"$f":"'800111A GeneraXBRL'!$D$192","v":"País deudor"},{"$f":"'800111A GeneraXBRL'!$C$192","v":"co-svsp-core:PaisDeudorCxC"}]
["/*",null,{"$f":"'800111A GeneraXBRL'!$D$193","v":"Saldo cuentas por cobrar"},{"$f":"'800111A GeneraXBRL'!$C$193","v":"co-svsp-core:SaldoCuentasPorCobrarCxC"}]
["/*",null,"--117--"]
["/*",null,{"$f":"'800111A GeneraXBRL'!$D$182","v":"Tipo de documento del deudor"},{"$f":"'800111A GeneraXBRL'!$C$182","v":"co-svsp-core:TipoDeDocumentoDeudorCxC"}]
["/*",null,{"$f":"'800111A GeneraXBRL'!$D$183","v":"Número de identificación del deudor"},{"$f":"'800111A GeneraXBRL'!$C$183","v":"co-svsp-core:NumeroIdentificacionDeudorCxC"}]
["/*",null,{"$f":"'800111A GeneraXBRL'!$D$184","v":"Primer apellido deudor"},{"$f":"'800111A GeneraXBRL'!$C$184","v":"co-svsp-core:PrimerApellidoDeudorCxC"}]
["/*",null,{"$f":"'800111A GeneraXBRL'!$D$185","v":"Segundo apellido deudor"},{"$f":"'800111A GeneraXBRL'!$C$185","v":"co-svsp-core:SegundoApellidoDeudorCxC"}]
["/*",null,{"$f":"'800111A GeneraXBRL'!$D$186","v":"Primer nombre deudor"},{"$f":"'800111A GeneraXBRL'!$C$186","v":"co-svsp-core:PrimerNombreDeudorCxC"}]
["/*",null,{"$f":"'800111A GeneraXBRL'!$D$187","v":"Otros nombres deudor"},{"$f":"'800111A GeneraXBRL'!$C$187","v":"co-svsp-core:OtrosNombresDeudorCxC"}]
["/*",null,{"$f":"'800111A GeneraXBRL'!$D$188","v":"Razón Social deudor"},{"$f":"'800111A GeneraXBRL'!$C$188","v":"co-svsp-core:RazonSocialDeudorCxC"}]
["/*",null,{"$f":"'800111A GeneraXBRL'!$D$189","v":"Dirección deudor"},{"$f":"'800111A GeneraXBRL'!$C$189","v":"co-svsp-core:DireccionDeudorCxC"}]
["/*",null,{"$f":"'800111A GeneraXBRL'!$D$190","v":"Departamento deudor"},{"$f":"'800111A GeneraXBRL'!$C$190","v":"co-svsp-core:DepartamentoDeudorCxC"}]
["/*",null,{"$f":"'800111A GeneraXBRL'!$D$191","v":"Municipio deudor"},{"$f":"'800111A GeneraXBRL'!$C$191","v":"co-svsp-core:MunicipioDeudorCxC"}]
["/*",null,{"$f":"'800111A GeneraXBRL'!$D$192","v":"País deudor"},{"$f":"'800111A GeneraXBRL'!$C$192","v":"co-svsp-core:PaisDeudorCxC"}]
["/*",null,{"$f":"'800111A GeneraXBRL'!$D$193","v":"Saldo cuentas por cobrar"},{"$f":"'800111A GeneraXBRL'!$C$193","v":"co-svsp-core:SaldoCuentasPorCobrarCxC"}]
["/*",null,"--118--"]
["/*",null,{"$f":"'800111A GeneraXBRL'!$D$182","v":"Tipo de documento del deudor"},{"$f":"'800111A GeneraXBRL'!$C$182","v":"co-svsp-core:TipoDeDocumentoDeudorCxC"}]
["/*",null,{"$f":"'800111A GeneraXBRL'!$D$183","v":"Número de identificación del deudor"},{"$f":"'800111A GeneraXBRL'!$C$183","v":"co-svsp-core:NumeroIdentificacionDeudorCxC"}]
["/*",null,{"$f":"'800111A GeneraXBRL'!$D$184","v":"Primer apellido deudor"},{"$f":"'800111A GeneraXBRL'!$C$184","v":"co-svsp-core:PrimerApellidoDeudorCxC"}]
[{"$f":"IF(G4064=\"\",\"/*\",\"\")","v":"/*"},null,{"$f":"'800111A GeneraXBRL'!$D$185","v":"Segundo apellido deudor"},{"$f":"'800111A GeneraXBRL'!$C$185","v":"co-svsp-core:SegundoApellidoDeudorCxC"}]
["/*",null,{"$f":"'800111A GeneraXBRL'!$D$186","v":"Primer nombre deudor"},{"$f":"'800111A GeneraXBRL'!$C$186","v":"co-svsp-core:PrimerNombreDeudorCxC"}]
["/*",null,{"$f":"'800111A GeneraXBRL'!$D$187","v":"Otros nombres deudor"},{"$f":"'800111A GeneraXBRL'!$C$187","v":"co-svsp-core:OtrosNombresDeudorCxC"}]
["/*",null,{"$f":"'800111A GeneraXBRL'!$D$188","v":"Razón Social deudor"},{"$f":"'800111A GeneraXBRL'!$C$188","v":"co-svsp-core:RazonSocialDeudorCxC"}]
["/*",null,{"$f":"'800111A GeneraXBRL'!$D$189","v":"Dirección deudor"},{"$f":"'800111A GeneraXBRL'!$C$189","v":"co-svsp-core:DireccionDeudorCxC"}]
["/*",null,{"$f":"'800111A GeneraXBRL'!$D$190","v":"Departamento deudor"},{"$f":"'800111A GeneraXBRL'!$C$190","v":"co-svsp-core:DepartamentoDeudorCxC"}]
["/*",null,{"$f":"'800111A GeneraXBRL'!$D$191","v":"Municipio deudor"},{"$f":"'800111A GeneraXBRL'!$C$191","v":"co-svsp-core:MunicipioDeudorCxC"}]
["/*",null,{"$f":"'800111A GeneraXBRL'!$D$192","v":"País deudor"},{"$f":"'800111A GeneraXBRL'!$C$192","v":"co-svsp-core:PaisDeudorCxC"}]
["/*",null,{"$f":"'800111A GeneraXBRL'!$D$193","v":"Saldo cuentas por cobrar"},{"$f":"'800111A GeneraXBRL'!$C$193","v":"co-svsp-core:SaldoCuentasPorCobrarCxC"}]
["/*",null,"--119--"]
["/*",null,{"$f":"'800111A GeneraXBRL'!$D$182","v":"Tipo de documento del deudor"},{"$f":"'800111A GeneraXBRL'!$C$182","v":"co-svsp-core:TipoDeDocumentoDeudorCxC"}]
["/*",null,{"$f":"'800111A GeneraXBRL'!$D$183","v":"Número de identificación del deudor"},{"$f":"'800111A GeneraXBRL'!$C$183","v":"co-svsp-core:NumeroIdentificacionDeudorCxC"}]
["/*",null,{"$f":"'800111A GeneraXBRL'!$D$184","v":"Primer apellido deudor"},{"$f":"'800111A GeneraXBRL'!$C$184","v":"co-svsp-core:PrimerApellidoDeudorCxC"}]
["/*",null,{"$f":"'800111A GeneraXBRL'!$D$185","v":"Segundo apellido deudor"},{"$f":"'800111A GeneraXBRL'!$C$185","v":"co-svsp-core:SegundoApellidoDeudorCxC"}]
["/*",null,{"$f":"'800111A GeneraXBRL'!$D$186","v":"Primer nombre deudor"},{"$f":"'800111A GeneraXBRL'!$C$186","v":"co-svsp-core:PrimerNombreDeudorCxC"}]
["/*",null,{"$f":"'800111A GeneraXBRL'!$D$187","v":"Otros nombres deudor"},{"$f":"'800111A GeneraXBRL'!$C$187","v":"co-svsp-core:OtrosNombresDeudorCxC"}]
["/*",null,{"$f":"'800111A GeneraXBRL'!$D$188","v":"Razón Social deudor"},{"$f":"'800111A GeneraXBRL'!$C$188","v":"co-svsp-core:RazonSocialDeudorCxC"}]
["/*",null,{"$f":"'800111A GeneraXBRL'!$D$189","v":"Dirección deudor"},{"$f":"'800111A GeneraXBRL'!$C$189","v":"co-svsp-core:DireccionDeudorCxC"}]
["/*",null,{"$f":"'800111A GeneraXBRL'!$D$190","v":"Departamento deudor"},{"$f":"'800111A GeneraXBRL'!$C$190","v":"co-svsp-core:DepartamentoDeudorCxC"}]
["/*",null,{"$f":"'800111A GeneraXBRL'!$D$191","v":"Municipio deudor"},{"$f":"'800111A GeneraXBRL'!$C$191","v":"co-svsp-core:MunicipioDeudorCxC"}]
["/*",null,{"$f":"'800111A GeneraXBRL'!$D$192","v":"País deudor"},{"$f":"'800111A GeneraXBRL'!$C$192","v":"co-svsp-core:PaisDeudorCxC"}]
["/*",null,{"$f":"'800111A GeneraXBRL'!$D$193","v":"Saldo cuentas por cobrar"},{"$f":"'800111A GeneraXBRL'!$C$193","v":"co-svsp-core:SaldoCuentasPorCobrarCxC"}]
["/*",null,"--120--"]
["/*",null,{"$f":"'800111A GeneraXBRL'!$D$182","v":"Tipo de documento del deudor"},{"$f":"'800111A GeneraXBRL'!$C$182","v":"co-svsp-core:TipoDeDocumentoDeudorCxC"}]
["/*",null,{"$f":"'800111A GeneraXBRL'!$D$183","v":"Número de identificación del deudor"},{"$f":"'800111A GeneraXBRL'!$C$183","v":"co-svsp-core:NumeroIdentificacionDeudorCxC"}]
["/*",null,{"$f":"'800111A GeneraXBRL'!$D$184","v":"Primer apellido deudor"},{"$f":"'800111A GeneraXBRL'!$C$184","v":"co-svsp-core:PrimerApellidoDeudorCxC"}]
["/*",null,{"$f":"'800111A GeneraXBRL'!$D$185","v":"Segundo apellido deudor"},{"$f":"'800111A GeneraXBRL'!$C$185","v":"co-svsp-core:SegundoApellidoDeudorCxC"}]
["/*",null,{"$f":"'800111A GeneraXBRL'!$D$186","v":"Primer nombre deudor"},{"$f":"'800111A GeneraXBRL'!$C$186","v":"co-svsp-core:PrimerNombreDeudorCxC"}]
["/*",null,{"$f":"'800111A GeneraXBRL'!$D$187","v":"Otros nombres deudor"},{"$f":"'800111A GeneraXBRL'!$C$187","v":"co-svsp-core:OtrosNombresDeudorCxC"}]
["/*",null,{"$f":"'800111A GeneraXBRL'!$D$188","v":"Razón Social deudor"},{"$f":"'800111A GeneraXBRL'!$C$188","v":"co-svsp-core:RazonSocialDeudorCxC"}]
["/*",null,{"$f":"'800111A GeneraXBRL'!$D$189","v":"Dirección deudor"},{"$f":"'800111A GeneraXBRL'!$C$189","v":"co-svsp-core:DireccionDeudorCxC"}]
["/*",null,{"$f":"'800111A GeneraXBRL'!$D$190","v":"Departamento deudor"},{"$f":"'800111A GeneraXBRL'!$C$190","v":"co-svsp-core:DepartamentoDeudorCxC"}]
["/*",null,{"$f":"'800111A GeneraXBRL'!$D$191","v":"Municipio deudor"},{"$f":"'800111A GeneraXBRL'!$C$191","v":"co-svsp-core:MunicipioDeudorCxC"}]
["/*",null,{"$f":"'800111A GeneraXBRL'!$D$192","v":"País deudor"},{"$f":"'800111A GeneraXBRL'!$C$192","v":"co-svsp-core:PaisDeudorCxC"}]
["/*",null,{"$f":"'800111A GeneraXBRL'!$D$193","v":"Saldo cuentas por cobrar"},{"$f":"'800111A GeneraXBRL'!$C$193","v":"co-svsp-core:SaldoCuentasPorCobrarCxC"}]
["/*",null,"--121--"]
["/*",null,{"$f":"'800111A GeneraXBRL'!$D$182","v":"Tipo de documento del deudor"},{"$f":"'800111A GeneraXBRL'!$C$182","v":"co-svsp-core:TipoDeDocumentoDeudorCxC"}]
["/*",null,{"$f":"'800111A GeneraXBRL'!$D$183","v":"Número de identificación del deudor"},{"$f":"'800111A GeneraXBRL'!$C$183","v":"co-svsp-core:NumeroIdentificacionDeudorCxC"}]
["/*",null,{"$f":"'800111A GeneraXBRL'!$D$184","v":"Primer apellido deudor"},{"$f":"'800111A GeneraXBRL'!$C$184","v":"co-svsp-core:PrimerApellidoDeudorCxC"}]
["/*",null,{"$f":"'800111A GeneraXBRL'!$D$185","v":"Segundo apellido deudor"},{"$f":"'800111A GeneraXBRL'!$C$185","v":"co-svsp-core:SegundoApellidoDeudorCxC"}]
["/*",null,{"$f":"'800111A GeneraXBRL'!$D$186","v":"Primer nombre deudor"},{"$f":"'800111A GeneraXBRL'!$C$186","v":"co-svsp-core:PrimerNombreDeudorCxC"}]
["/*",null,{"$f":"'800111A GeneraXBRL'!$D$187","v":"Otros nombres deudor"},{"$f":"'800111A GeneraXBRL'!$C$187","v":"co-svsp-core:OtrosNombresDeudorCxC"}]
["/*",null,{"$f":"'800111A GeneraXBRL'!$D$188","v":"Razón Social deudor"},{"$f":"'800111A GeneraXBRL'!$C$188","v":"co-svsp-core:RazonSocialDeudorCxC"}]
["/*",null,{"$f":"'800111A GeneraXBRL'!$D$189","v":"Dirección deudor"},{"$f":"'800111A GeneraXBRL'!$C$189","v":"co-svsp-core:DireccionDeudorCxC"}]
["/*",null,{"$f":"'800111A GeneraXBRL'!$D$190","v":"Departamento deudor"},{"$f":"'800111A GeneraXBRL'!$C$190","v":"co-svsp-core:DepartamentoDeudorCxC"}]
["/*",null,{"$f":"'800111A GeneraXBRL'!$D$191","v":"Municipio deudor"},{"$f":"'800111A GeneraXBRL'!$C$191","v":"co-svsp-core:MunicipioDeudorCxC"}]
["/*",null,{"$f":"'800111A GeneraXBRL'!$D$192","v":"País deudor"},{"$f":"'800111A GeneraXBRL'!$C$192","v":"co-svsp-core:PaisDeudorCxC"}]
["/*",null,{"$f":"'800111A GeneraXBRL'!$D$193","v":"Saldo cuentas por cobrar"},{"$f":"'800111A GeneraXBRL'!$C$193","v":"co-svsp-core:SaldoCuentasPorCobrarCxC"}]
["/*",null,"--122--"]
["/*",null,{"$f":"'800111A GeneraXBRL'!$D$182","v":"Tipo de documento del deudor"},{"$f":"'800111A GeneraXBRL'!$C$182","v":"co-svsp-core:TipoDeDocumentoDeudorCxC"}]
["/*",null,{"$f":"'800111A GeneraXBRL'!$D$183","v":"Número de identificación del deudor"},{"$f":"'800111A GeneraXBRL'!$C$183","v":"co-svsp-core:NumeroIdentificacionDeudorCxC"}]
["/*",null,{"$f":"'800111A GeneraXBRL'!$D$184","v":"Primer apellido deudor"},{"$f":"'800111A GeneraXBRL'!$C$184","v":"co-svsp-core:PrimerApellidoDeudorCxC"}]
["/*",null,{"$f":"'800111A GeneraXBRL'!$D$185","v":"Segundo apellido deudor"},{"$f":"'800111A GeneraXBRL'!$C$185","v":"co-svsp-core:SegundoApellidoDeudorCxC"}]
["/*",null,{"$f":"'800111A GeneraXBRL'!$D$186","v":"Primer nombre deudor"},{"$f":"'800111A GeneraXBRL'!$C$186","v":"co-svsp-core:PrimerNombreDeudorCxC"}]
["/*",null,{"$f":"'800111A GeneraXBRL'!$D$187","v":"Otros nombres deudor"},{"$f":"'800111A GeneraXBRL'!$C$187","v":"co-svsp-core:OtrosNombresDeudorCxC"}]
["/*",null,{"$f":"'800111A GeneraXBRL'!$D$188","v":"Razón Social deudor"},{"$f":"'800111A GeneraXBRL'!$C$188","v":"co-svsp-core:RazonSocialDeudorCxC"}]
["/*",null,{"$f":"'800111A GeneraXBRL'!$D$189","v":"Dirección deudor"},{"$f":"'800111A GeneraXBRL'!$C$189","v":"co-svsp-core:DireccionDeudorCxC"}]
["/*",null,{"$f":"'800111A GeneraXBRL'!$D$190","v":"Departamento deudor"},{"$f":"'800111A GeneraXBRL'!$C$190","v":"co-svsp-core:DepartamentoDeudorCxC"}]
["/*",null,{"$f":"'800111A GeneraXBRL'!$D$191","v":"Municipio deudor"},{"$f":"'800111A GeneraXBRL'!$C$191","v":"co-svsp-core:MunicipioDeudorCxC"}]
["/*",null,{"$f":"'800111A GeneraXBRL'!$D$192","v":"País deudor"},{"$f":"'800111A GeneraXBRL'!$C$192","v":"co-svsp-core:PaisDeudorCxC"}]
["/*",null,{"$f":"'800111A GeneraXBRL'!$D$193","v":"Saldo cuentas por cobrar"},{"$f":"'800111A GeneraXBRL'!$C$193","v":"co-svsp-core:SaldoCuentasPorCobrarCxC"}]
["/*",null,"--123--"]
["/*",null,{"$f":"'800111A GeneraXBRL'!$D$182","v":"Tipo de documento del deudor"},{"$f":"'800111A GeneraXBRL'!$C$182","v":"co-svsp-core:TipoDeDocumentoDeudorCxC"}]
["/*",null,{"$f":"'800111A GeneraXBRL'!$D$183","v":"Número de identificación del deudor"},{"$f":"'800111A GeneraXBRL'!$C$183","v":"co-svsp-core:NumeroIdentificacionDeudorCxC"}]
[{"$f":"IF(G4128=\"\",\"/*\",\"\")","v":"/*"},null,{"$f":"'800111A GeneraXBRL'!$D$184","v":"Primer apellido deudor"},{"$f":"'800111A GeneraXBRL'!$C$184","v":"co-svsp-core:PrimerApellidoDeudorCxC"}]
["/*",null,{"$f":"'800111A GeneraXBRL'!$D$185","v":"Segundo apellido deudor"},{"$f":"'800111A GeneraXBRL'!$C$185","v":"co-svsp-core:SegundoApellidoDeudorCxC"}]
["/*",null,{"$f":"'800111A GeneraXBRL'!$D$186","v":"Primer nombre deudor"},{"$f":"'800111A GeneraXBRL'!$C$186","v":"co-svsp-core:PrimerNombreDeudorCxC"}]
["/*",null,{"$f":"'800111A GeneraXBRL'!$D$187","v":"Otros nombres deudor"},{"$f":"'800111A GeneraXBRL'!$C$187","v":"co-svsp-core:OtrosNombresDeudorCxC"}]
["/*",null,{"$f":"'800111A GeneraXBRL'!$D$188","v":"Razón Social deudor"},{"$f":"'800111A GeneraXBRL'!$C$188","v":"co-svsp-core:RazonSocialDeudorCxC"}]
["/*",null,{"$f":"'800111A GeneraXBRL'!$D$189","v":"Dirección deudor"},{"$f":"'800111A GeneraXBRL'!$C$189","v":"co-svsp-core:DireccionDeudorCxC"}]
["/*",null,{"$f":"'800111A GeneraXBRL'!$D$190","v":"Departamento deudor"},{"$f":"'800111A GeneraXBRL'!$C$190","v":"co-svsp-core:DepartamentoDeudorCxC"}]
["/*",null,{"$f":"'800111A GeneraXBRL'!$D$191","v":"Municipio deudor"},{"$f":"'800111A GeneraXBRL'!$C$191","v":"co-svsp-core:MunicipioDeudorCxC"}]
["/*",null,{"$f":"'800111A GeneraXBRL'!$D$192","v":"País deudor"},{"$f":"'800111A GeneraXBRL'!$C$192","v":"co-svsp-core:PaisDeudorCxC"}]
["/*",null,{"$f":"'800111A GeneraXBRL'!$D$193","v":"Saldo cuentas por cobrar"},{"$f":"'800111A GeneraXBRL'!$C$193","v":"co-svsp-core:SaldoCuentasPorCobrarCxC"}]
["/*",null,"--124--"]
["/*",null,{"$f":"'800111A GeneraXBRL'!$D$182","v":"Tipo de documento del deudor"},{"$f":"'800111A GeneraXBRL'!$C$182","v":"co-svsp-core:TipoDeDocumentoDeudorCxC"}]
["/*",null,{"$f":"'800111A GeneraXBRL'!$D$183","v":"Número de identificación del deudor"},{"$f":"'800111A GeneraXBRL'!$C$183","v":"co-svsp-core:NumeroIdentificacionDeudorCxC"}]
["/*",null,{"$f":"'800111A GeneraXBRL'!$D$184","v":"Primer apellido deudor"},{"$f":"'800111A GeneraXBRL'!$C$184","v":"co-svsp-core:PrimerApellidoDeudorCxC"}]
["/*",null,{"$f":"'800111A GeneraXBRL'!$D$185","v":"Segundo apellido deudor"},{"$f":"'800111A GeneraXBRL'!$C$185","v":"co-svsp-core:SegundoApellidoDeudorCxC"}]
["/*",null,{"$f":"'800111A GeneraXBRL'!$D$186","v":"Primer nombre deudor"},{"$f":"'800111A GeneraXBRL'!$C$186","v":"co-svsp-core:PrimerNombreDeudorCxC"}]
["/*",null,{"$f":"'800111A GeneraXBRL'!$D$187","v":"Otros nombres deudor"},{"$f":"'800111A GeneraXBRL'!$C$187","v":"co-svsp-core:OtrosNombresDeudorCxC"}]
["/*",null,{"$f":"'800111A GeneraXBRL'!$D$188","v":"Razón Social deudor"},{"$f":"'800111A GeneraXBRL'!$C$188","v":"co-svsp-core:RazonSocialDeudorCxC"}]
["/*",null,{"$f":"'800111A GeneraXBRL'!$D$189","v":"Dirección deudor"},{"$f":"'800111A GeneraXBRL'!$C$189","v":"co-svsp-core:DireccionDeudorCxC"}]
["/*",null,{"$f":"'800111A GeneraXBRL'!$D$190","v":"Departamento deudor"},{"$f":"'800111A GeneraXBRL'!$C$190","v":"co-svsp-core:DepartamentoDeudorCxC"}]
["/*",null,{"$f":"'800111A GeneraXBRL'!$D$191","v":"Municipio deudor"},{"$f":"'800111A GeneraXBRL'!$C$191","v":"co-svsp-core:MunicipioDeudorCxC"}]
["/*",null,{"$f":"'800111A GeneraXBRL'!$D$192","v":"País deudor"},{"$f":"'800111A GeneraXBRL'!$C$192","v":"co-svsp-core:PaisDeudorCxC"}]
["/*",null,{"$f":"'800111A GeneraXBRL'!$D$193","v":"Saldo cuentas por cobrar"},{"$f":"'800111A GeneraXBRL'!$C$193","v":"co-svsp-core:SaldoCuentasPorCobrarCxC"}]
["/*",null,"--125--"]
["/*",null,{"$f":"'800111A GeneraXBRL'!$D$182","v":"Tipo de documento del deudor"},{"$f":"'800111A GeneraXBRL'!$C$182","v":"co-svsp-core:TipoDeDocumentoDeudorCxC"}]
["/*",null,{"$f":"'800111A GeneraXBRL'!$D$183","v":"Número de identificación del deudor"},{"$f":"'800111A GeneraXBRL'!$C$183","v":"co-svsp-core:NumeroIdentificacionDeudorCxC"}]
["/*",null,{"$f":"'800111A GeneraXBRL'!$D$184","v":"Primer apellido deudor"},{"$f":"'800111A GeneraXBRL'!$C$184","v":"co-svsp-core:PrimerApellidoDeudorCxC"}]
["/*",null,{"$f":"'800111A GeneraXBRL'!$D$185","v":"Segundo apellido deudor"},{"$f":"'800111A GeneraXBRL'!$C$185","v":"co-svsp-core:SegundoApellidoDeudorCxC"}]
["/*",null,{"$f":"'800111A GeneraXBRL'!$D$186","v":"Primer nombre deudor"},{"$f":"'800111A GeneraXBRL'!$C$186","v":"co-svsp-core:PrimerNombreDeudorCxC"}]
["/*",null,{"$f":"'800111A GeneraXBRL'!$D$187","v":"Otros nombres deudor"},{"$f":"'800111A GeneraXBRL'!$C$187","v":"co-svsp-core:OtrosNombresDeudorCxC"}]
["/*",null,{"$f":"'800111A GeneraXBRL'!$D$188","v":"Razón Social deudor"},{"$f":"'800111A GeneraXBRL'!$C$188","v":"co-svsp-core:RazonSocialDeudorCxC"}]
["/*",null,{"$f":"'800111A GeneraXBRL'!$D$189","v":"Dirección deudor"},{"$f":"'800111A GeneraXBRL'!$C$189","v":"co-svsp-core:DireccionDeudorCxC"}]
["/*",null,{"$f":"'800111A GeneraXBRL'!$D$190","v":"Departamento deudor"},{"$f":"'800111A GeneraXBRL'!$C$190","v":"co-svsp-core:DepartamentoDeudorCxC"}]
["/*",null,{"$f":"'800111A GeneraXBRL'!$D$191","v":"Municipio deudor"},{"$f":"'800111A GeneraXBRL'!$C$191","v":"co-svsp-core:MunicipioDeudorCxC"}]
["/*",null,{"$f":"'800111A GeneraXBRL'!$D$192","v":"País deudor"},{"$f":"'800111A GeneraXBRL'!$C$192","v":"co-svsp-core:PaisDeudorCxC"}]
["/*",null,{"$f":"'800111A GeneraXBRL'!$D$193","v":"Saldo cuentas por cobrar"},{"$f":"'800111A GeneraXBRL'!$C$193","v":"co-svsp-core:SaldoCuentasPorCobrarCxC"}]
["/*",null,"--126--"]
["/*",null,{"$f":"'800111A GeneraXBRL'!$D$182","v":"Tipo de documento del deudor"},{"$f":"'800111A GeneraXBRL'!$C$182","v":"co-svsp-core:TipoDeDocumentoDeudorCxC"}]
["/*",null,{"$f":"'800111A GeneraXBRL'!$D$183","v":"Número de identificación del deudor"},{"$f":"'800111A GeneraXBRL'!$C$183","v":"co-svsp-core:NumeroIdentificacionDeudorCxC"}]
["/*",null,{"$f":"'800111A GeneraXBRL'!$D$184","v":"Primer apellido deudor"},{"$f":"'800111A GeneraXBRL'!$C$184","v":"co-svsp-core:PrimerApellidoDeudorCxC"}]
["/*",null,{"$f":"'800111A GeneraXBRL'!$D$185","v":"Segundo apellido deudor"},{"$f":"'800111A GeneraXBRL'!$C$185","v":"co-svsp-core:SegundoApellidoDeudorCxC"}]
["/*",null,{"$f":"'800111A GeneraXBRL'!$D$186","v":"Primer nombre deudor"},{"$f":"'800111A GeneraXBRL'!$C$186","v":"co-svsp-core:PrimerNombreDeudorCxC"}]
["/*",null,{"$f":"'800111A GeneraXBRL'!$D$187","v":"Otros nombres deudor"},{"$f":"'800111A GeneraXBRL'!$C$187","v":"co-svsp-core:OtrosNombresDeudorCxC"}]
["/*",null,{"$f":"'800111A GeneraXBRL'!$D$188","v":"Razón Social deudor"},{"$f":"'800111A GeneraXBRL'!$C$188","v":"co-svsp-core:RazonSocialDeudorCxC"}]
["/*",null,{"$f":"'800111A GeneraXBRL'!$D$189","v":"Dirección deudor"},{"$f":"'800111A GeneraXBRL'!$C$189","v":"co-svsp-core:DireccionDeudorCxC"}]
["/*",null,{"$f":"'800111A GeneraXBRL'!$D$190","v":"Departamento deudor"},{"$f":"'800111A GeneraXBRL'!$C$190","v":"co-svsp-core:DepartamentoDeudorCxC"}]
["/*",null,{"$f":"'800111A GeneraXBRL'!$D$191","v":"Municipio deudor"},{"$f":"'800111A GeneraXBRL'!$C$191","v":"co-svsp-core:MunicipioDeudorCxC"}]
["/*",null,{"$f":"'800111A GeneraXBRL'!$D$192","v":"País deudor"},{"$f":"'800111A GeneraXBRL'!$C$192","v":"co-svsp-core:PaisDeudorCxC"}]
["/*",null,{"$f":"'800111A GeneraXBRL'!$D$193","v":"Saldo cuentas por cobrar"},{"$f":"'800111A GeneraXBRL'!$C$193","v":"co-svsp-core:SaldoCuentasPorCobrarCxC"}]
["/*",null,"--127--"]
["/*",null,{"$f":"'800111A GeneraXBRL'!$D$182","v":"Tipo de documento del deudor"},{"$f":"'800111A GeneraXBRL'!$C$182","v":"co-svsp-core:TipoDeDocumentoDeudorCxC"}]
["/*",null,{"$f":"'800111A GeneraXBRL'!$D$183","v":"Número de identificación del deudor"},{"$f":"'800111A GeneraXBRL'!$C$183","v":"co-svsp-core:NumeroIdentificacionDeudorCxC"}]
["/*",null,{"$f":"'800111A GeneraXBRL'!$D$184","v":"Primer apellido deudor"},{"$f":"'800111A GeneraXBRL'!$C$184","v":"co-svsp-core:PrimerApellidoDeudorCxC"}]
["/*",null,{"$f":"'800111A GeneraXBRL'!$D$185","v":"Segundo apellido deudor"},{"$f":"'800111A GeneraXBRL'!$C$185","v":"co-svsp-core:SegundoApellidoDeudorCxC"}]
["/*",null,{"$f":"'800111A GeneraXBRL'!$D$186","v":"Primer nombre deudor"},{"$f":"'800111A GeneraXBRL'!$C$186","v":"co-svsp-core:PrimerNombreDeudorCxC"}]
["/*",null,{"$f":"'800111A GeneraXBRL'!$D$187","v":"Otros nombres deudor"},{"$f":"'800111A GeneraXBRL'!$C$187","v":"co-svsp-core:OtrosNombresDeudorCxC"}]
["/*",null,{"$f":"'800111A GeneraXBRL'!$D$188","v":"Razón Social deudor"},{"$f":"'800111A GeneraXBRL'!$C$188","v":"co-svsp-core:RazonSocialDeudorCxC"}]
["/*",null,{"$f":"'800111A GeneraXBRL'!$D$189","v":"Dirección deudor"},{"$f":"'800111A GeneraXBRL'!$C$189","v":"co-svsp-core:DireccionDeudorCxC"}]
["/*",null,{"$f":"'800111A GeneraXBRL'!$D$190","v":"Departamento deudor"},{"$f":"'800111A GeneraXBRL'!$C$190","v":"co-svsp-core:DepartamentoDeudorCxC"}]
["/*",null,{"$f":"'800111A GeneraXBRL'!$D$191","v":"Municipio deudor"},{"$f":"'800111A GeneraXBRL'!$C$191","v":"co-svsp-core:MunicipioDeudorCxC"}]
["/*",null,{"$f":"'800111A GeneraXBRL'!$D$192","v":"País deudor"},{"$f":"'800111A GeneraXBRL'!$C$192","v":"co-svsp-core:PaisDeudorCxC"}]
["/*",null,{"$f":"'800111A GeneraXBRL'!$D$193","v":"Saldo cuentas por cobrar"},{"$f":"'800111A GeneraXBRL'!$C$193","v":"co-svsp-core:SaldoCuentasPorCobrarCxC"}]
["/*",null,"--128--"]
["/*",null,{"$f":"'800111A GeneraXBRL'!$D$182","v":"Tipo de documento del deudor"},{"$f":"'800111A GeneraXBRL'!$C$182","v":"co-svsp-core:TipoDeDocumentoDeudorCxC"}]
[{"$f":"IF(G4192=\"\",\"/*\",\"\")","v":"/*"},null,{"$f":"'800111A GeneraXBRL'!$D$183","v":"Número de identificación del deudor"},{"$f":"'800111A GeneraXBRL'!$C$183","v":"co-svsp-core:NumeroIdentificacionDeudorCxC"}]
["/*",null,{"$f":"'800111A GeneraXBRL'!$D$184","v":"Primer apellido deudor"},{"$f":"'800111A GeneraXBRL'!$C$184","v":"co-svsp-core:PrimerApellidoDeudorCxC"}]
["/*",null,{"$f":"'800111A GeneraXBRL'!$D$185","v":"Segundo apellido deudor"},{"$f":"'800111A GeneraXBRL'!$C$185","v":"co-svsp-core:SegundoApellidoDeudorCxC"}]
["/*",null,{"$f":"'800111A GeneraXBRL'!$D$186","v":"Primer nombre deudor"},{"$f":"'800111A GeneraXBRL'!$C$186","v":"co-svsp-core:PrimerNombreDeudorCxC"}]
["/*",null,{"$f":"'800111A GeneraXBRL'!$D$187","v":"Otros nombres deudor"},{"$f":"'800111A GeneraXBRL'!$C$187","v":"co-svsp-core:OtrosNombresDeudorCxC"}]
["/*",null,{"$f":"'800111A GeneraXBRL'!$D$188","v":"Razón Social deudor"},{"$f":"'800111A GeneraXBRL'!$C$188","v":"co-svsp-core:RazonSocialDeudorCxC"}]
["/*",null,{"$f":"'800111A GeneraXBRL'!$D$189","v":"Dirección deudor"},{"$f":"'800111A GeneraXBRL'!$C$189","v":"co-svsp-core:DireccionDeudorCxC"}]
["/*",null,{"$f":"'800111A GeneraXBRL'!$D$190","v":"Departamento deudor"},{"$f":"'800111A GeneraXBRL'!$C$190","v":"co-svsp-core:DepartamentoDeudorCxC"}]
["/*",null,{"$f":"'800111A GeneraXBRL'!$D$191","v":"Municipio deudor"},{"$f":"'800111A GeneraXBRL'!$C$191","v":"co-svsp-core:MunicipioDeudorCxC"}]
["/*",null,{"$f":"'800111A GeneraXBRL'!$D$192","v":"País deudor"},{"$f":"'800111A GeneraXBRL'!$C$192","v":"co-svsp-core:PaisDeudorCxC"}]
["/*",null,{"$f":"'800111A GeneraXBRL'!$D$193","v":"Saldo cuentas por cobrar"},{"$f":"'800111A GeneraXBRL'!$C$193","v":"co-svsp-core:SaldoCuentasPorCobrarCxC"}]
["/*",null,"--129--"]
["/*",null,{"$f":"'800111A GeneraXBRL'!$D$182","v":"Tipo de documento del deudor"},{"$f":"'800111A GeneraXBRL'!$C$182","v":"co-svsp-core:TipoDeDocumentoDeudorCxC"}]
["/*",null,{"$f":"'800111A GeneraXBRL'!$D$183","v":"Número de identificación del deudor"},{"$f":"'800111A GeneraXBRL'!$C$183","v":"co-svsp-core:NumeroIdentificacionDeudorCxC"}]
["/*",null,{"$f":"'800111A GeneraXBRL'!$D$184","v":"Primer apellido deudor"},{"$f":"'800111A GeneraXBRL'!$C$184","v":"co-svsp-core:PrimerApellidoDeudorCxC"}]
["/*",null,{"$f":"'800111A GeneraXBRL'!$D$185","v":"Segundo apellido deudor"},{"$f":"'800111A GeneraXBRL'!$C$185","v":"co-svsp-core:SegundoApellidoDeudorCxC"}]
["/*",null,{"$f":"'800111A GeneraXBRL'!$D$186","v":"Primer nombre deudor"},{"$f":"'800111A GeneraXBRL'!$C$186","v":"co-svsp-core:PrimerNombreDeudorCxC"}]
["/*",null,{"$f":"'800111A GeneraXBRL'!$D$187","v":"Otros nombres deudor"},{"$f":"'800111A GeneraXBRL'!$C$187","v":"co-svsp-core:OtrosNombresDeudorCxC"}]
["/*",null,{"$f":"'800111A GeneraXBRL'!$D$188","v":"Razón Social deudor"},{"$f":"'800111A GeneraXBRL'!$C$188","v":"co-svsp-core:RazonSocialDeudorCxC"}]
["/*",null,{"$f":"'800111A GeneraXBRL'!$D$189","v":"Dirección deudor"},{"$f":"'800111A GeneraXBRL'!$C$189","v":"co-svsp-core:DireccionDeudorCxC"}]
["/*",null,{"$f":"'800111A GeneraXBRL'!$D$190","v":"Departamento deudor"},{"$f":"'800111A GeneraXBRL'!$C$190","v":"co-svsp-core:DepartamentoDeudorCxC"}]
["/*",null,{"$f":"'800111A GeneraXBRL'!$D$191","v":"Municipio deudor"},{"$f":"'800111A GeneraXBRL'!$C$191","v":"co-svsp-core:MunicipioDeudorCxC"}]
["/*",null,{"$f":"'800111A GeneraXBRL'!$D$192","v":"País deudor"},{"$f":"'800111A GeneraXBRL'!$C$192","v":"co-svsp-core:PaisDeudorCxC"}]
["/*",null,{"$f":"'800111A GeneraXBRL'!$D$193","v":"Saldo cuentas por cobrar"},{"$f":"'800111A GeneraXBRL'!$C$193","v":"co-svsp-core:SaldoCuentasPorCobrarCxC"}]
["/*",null,"--130--"]
["/*",null,{"$f":"'800111A GeneraXBRL'!$D$182","v":"Tipo de documento del deudor"},{"$f":"'800111A GeneraXBRL'!$C$182","v":"co-svsp-core:TipoDeDocumentoDeudorCxC"}]
["/*",null,{"$f":"'800111A GeneraXBRL'!$D$183","v":"Número de identificación del deudor"},{"$f":"'800111A GeneraXBRL'!$C$183","v":"co-svsp-core:NumeroIdentificacionDeudorCxC"}]
["/*",null,{"$f":"'800111A GeneraXBRL'!$D$184","v":"Primer apellido deudor"},{"$f":"'800111A GeneraXBRL'!$C$184","v":"co-svsp-core:PrimerApellidoDeudorCxC"}]
["/*",null,{"$f":"'800111A GeneraXBRL'!$D$185","v":"Segundo apellido deudor"},{"$f":"'800111A GeneraXBRL'!$C$185","v":"co-svsp-core:SegundoApellidoDeudorCxC"}]
["/*",null,{"$f":"'800111A GeneraXBRL'!$D$186","v":"Primer nombre deudor"},{"$f":"'800111A GeneraXBRL'!$C$186","v":"co-svsp-core:PrimerNombreDeudorCxC"}]
["/*",null,{"$f":"'800111A GeneraXBRL'!$D$187","v":"Otros nombres deudor"},{"$f":"'800111A GeneraXBRL'!$C$187","v":"co-svsp-core:OtrosNombresDeudorCxC"}]
["/*",null,{"$f":"'800111A GeneraXBRL'!$D$188","v":"Razón Social deudor"},{"$f":"'800111A GeneraXBRL'!$C$188","v":"co-svsp-core:RazonSocialDeudorCxC"}]
["/*",null,{"$f":"'800111A GeneraXBRL'!$D$189","v":"Dirección deudor"},{"$f":"'800111A GeneraXBRL'!$C$189","v":"co-svsp-core:DireccionDeudorCxC"}]
["/*",null,{"$f":"'800111A GeneraXBRL'!$D$190","v":"Departamento deudor"},{"$f":"'800111A GeneraXBRL'!$C$190","v":"co-svsp-core:DepartamentoDeudorCxC"}]
["/*",null,{"$f":"'800111A GeneraXBRL'!$D$191","v":"Municipio deudor"},{"$f":"'800111A GeneraXBRL'!$C$191","v":"co-svsp-core:MunicipioDeudorCxC"}]
["/*",null,{"$f":"'800111A GeneraXBRL'!$D$192","v":"País deudor"},{"$f":"'800111A GeneraXBRL'!$C$192","v":"co-svsp-core:PaisDeudorCxC"}]
["/*",null,{"$f":"'800111A GeneraXBRL'!$D$193","v":"Saldo cuentas por cobrar"},{"$f":"'800111A GeneraXBRL'!$C$193","v":"co-svsp-core:SaldoCuentasPorCobrarCxC"}]
["/*",null,"--131--"]
["/*",null,{"$f":"'800111A GeneraXBRL'!$D$182","v":"Tipo de documento del deudor"},{"$f":"'800111A GeneraXBRL'!$C$182","v":"co-svsp-core:TipoDeDocumentoDeudorCxC"}]
["/*",null,{"$f":"'800111A GeneraXBRL'!$D$183","v":"Número de identificación del deudor"},{"$f":"'800111A GeneraXBRL'!$C$183","v":"co-svsp-core:NumeroIdentificacionDeudorCxC"}]
["/*",null,{"$f":"'800111A GeneraXBRL'!$D$184","v":"Primer apellido deudor"},{"$f":"'800111A GeneraXBRL'!$C$184","v":"co-svsp-core:PrimerApellidoDeudorCxC"}]
["/*",null,{"$f":"'800111A GeneraXBRL'!$D$185","v":"Segundo apellido deudor"},{"$f":"'800111A GeneraXBRL'!$C$185","v":"co-svsp-core:SegundoApellidoDeudorCxC"}]
["/*",null,{"$f":"'800111A GeneraXBRL'!$D$186","v":"Primer nombre deudor"},{"$f":"'800111A GeneraXBRL'!$C$186","v":"co-svsp-core:PrimerNombreDeudorCxC"}]
["/*",null,{"$f":"'800111A GeneraXBRL'!$D$187","v":"Otros nombres deudor"},{"$f":"'800111A GeneraXBRL'!$C$187","v":"co-svsp-core:OtrosNombresDeudorCxC"}]
["/*",null,{"$f":"'800111A GeneraXBRL'!$D$188","v":"Razón Social deudor"},{"$f":"'800111A GeneraXBRL'!$C$188","v":"co-svsp-core:RazonSocialDeudorCxC"}]
["/*",null,{"$f":"'800111A GeneraXBRL'!$D$189","v":"Dirección deudor"},{"$f":"'800111A GeneraXBRL'!$C$189","v":"co-svsp-core:DireccionDeudorCxC"}]
["/*",null,{"$f":"'800111A GeneraXBRL'!$D$190","v":"Departamento deudor"},{"$f":"'800111A GeneraXBRL'!$C$190","v":"co-svsp-core:DepartamentoDeudorCxC"}]
["/*",null,{"$f":"'800111A GeneraXBRL'!$D$191","v":"Municipio deudor"},{"$f":"'800111A GeneraXBRL'!$C$191","v":"co-svsp-core:MunicipioDeudorCxC"}]
["/*",null,{"$f":"'800111A GeneraXBRL'!$D$192","v":"País deudor"},{"$f":"'800111A GeneraXBRL'!$C$192","v":"co-svsp-core:PaisDeudorCxC"}]
["/*",null,{"$f":"'800111A GeneraXBRL'!$D$193","v":"Saldo cuentas por cobrar"},{"$f":"'800111A GeneraXBRL'!$C$193","v":"co-svsp-core:SaldoCuentasPorCobrarCxC"}]
["/*",null,"--132--"]
["/*",null,{"$f":"'800111A GeneraXBRL'!$D$182","v":"Tipo de documento del deudor"},{"$f":"'800111A GeneraXBRL'!$C$182","v":"co-svsp-core:TipoDeDocumentoDeudorCxC"}]
["/*",null,{"$f":"'800111A GeneraXBRL'!$D$183","v":"Número de identificación del deudor"},{"$f":"'800111A GeneraXBRL'!$C$183","v":"co-svsp-core:NumeroIdentificacionDeudorCxC"}]
["/*",null,{"$f":"'800111A GeneraXBRL'!$D$184","v":"Primer apellido deudor"},{"$f":"'800111A GeneraXBRL'!$C$184","v":"co-svsp-core:PrimerApellidoDeudorCxC"}]
["/*",null,{"$f":"'800111A GeneraXBRL'!$D$185","v":"Segundo apellido deudor"},{"$f":"'800111A GeneraXBRL'!$C$185","v":"co-svsp-core:SegundoApellidoDeudorCxC"}]
["/*",null,{"$f":"'800111A GeneraXBRL'!$D$186","v":"Primer nombre deudor"},{"$f":"'800111A GeneraXBRL'!$C$186","v":"co-svsp-core:PrimerNombreDeudorCxC"}]
["/*",null,{"$f":"'800111A GeneraXBRL'!$D$187","v":"Otros nombres deudor"},{"$f":"'800111A GeneraXBRL'!$C$187","v":"co-svsp-core:OtrosNombresDeudorCxC"}]
["/*",null,{"$f":"'800111A GeneraXBRL'!$D$188","v":"Razón Social deudor"},{"$f":"'800111A GeneraXBRL'!$C$188","v":"co-svsp-core:RazonSocialDeudorCxC"}]
["/*",null,{"$f":"'800111A GeneraXBRL'!$D$189","v":"Dirección deudor"},{"$f":"'800111A GeneraXBRL'!$C$189","v":"co-svsp-core:DireccionDeudorCxC"}]
["/*",null,{"$f":"'800111A GeneraXBRL'!$D$190","v":"Departamento deudor"},{"$f":"'800111A GeneraXBRL'!$C$190","v":"co-svsp-core:DepartamentoDeudorCxC"}]
["/*",null,{"$f":"'800111A GeneraXBRL'!$D$191","v":"Municipio deudor"},{"$f":"'800111A GeneraXBRL'!$C$191","v":"co-svsp-core:MunicipioDeudorCxC"}]
["/*",null,{"$f":"'800111A GeneraXBRL'!$D$192","v":"País deudor"},{"$f":"'800111A GeneraXBRL'!$C$192","v":"co-svsp-core:PaisDeudorCxC"}]
["/*",null,{"$f":"'800111A GeneraXBRL'!$D$193","v":"Saldo cuentas por cobrar"},{"$f":"'800111A GeneraXBRL'!$C$193","v":"co-svsp-core:SaldoCuentasPorCobrarCxC"}]
["/*",null,"--133--"]
[{"$f":"IF(G4256=\"\",\"/*\",\"\")","v":"/*"},null,{"$f":"'800111A GeneraXBRL'!$D$182","v":"Tipo de documento del deudor"},{"$f":"'800111A GeneraXBRL'!$C$182","v":"co-svsp-core:TipoDeDocumentoDeudorCxC"}]
["/*",null,{"$f":"'800111A GeneraXBRL'!$D$183","v":"Número de identificación del deudor"},{"$f":"'800111A GeneraXBRL'!$C$183","v":"co-svsp-core:NumeroIdentificacionDeudorCxC"}]
["/*",null,{"$f":"'800111A GeneraXBRL'!$D$184","v":"Primer apellido deudor"},{"$f":"'800111A GeneraXBRL'!$C$184","v":"co-svsp-core:PrimerApellidoDeudorCxC"}]
["/*",null,{"$f":"'800111A GeneraXBRL'!$D$185","v":"Segundo apellido deudor"},{"$f":"'800111A GeneraXBRL'!$C$185","v":"co-svsp-core:SegundoApellidoDeudorCxC"}]
["/*",null,{"$f":"'800111A GeneraXBRL'!$D$186","v":"Primer nombre deudor"},{"$f":"'800111A GeneraXBRL'!$C$186","v":"co-svsp-core:PrimerNombreDeudorCxC"}]
["/*",null,{"$f":"'800111A GeneraXBRL'!$D$187","v":"Otros nombres deudor"},{"$f":"'800111A GeneraXBRL'!$C$187","v":"co-svsp-core:OtrosNombresDeudorCxC"}]
["/*",null,{"$f":"'800111A GeneraXBRL'!$D$188","v":"Razón Social deudor"},{"$f":"'800111A GeneraXBRL'!$C$188","v":"co-svsp-core:RazonSocialDeudorCxC"}]
["/*",null,{"$f":"'800111A GeneraXBRL'!$D$189","v":"Dirección deudor"},{"$f":"'800111A GeneraXBRL'!$C$189","v":"co-svsp-core:DireccionDeudorCxC"}]
["/*",null,{"$f":"'800111A GeneraXBRL'!$D$190","v":"Departamento deudor"},{"$f":"'800111A GeneraXBRL'!$C$190","v":"co-svsp-core:DepartamentoDeudorCxC"}]
["/*",null,{"$f":"'800111A GeneraXBRL'!$D$191","v":"Municipio deudor"},{"$f":"'800111A GeneraXBRL'!$C$191","v":"co-svsp-core:MunicipioDeudorCxC"}]
["/*",null,{"$f":"'800111A GeneraXBRL'!$D$192","v":"País deudor"},{"$f":"'800111A GeneraXBRL'!$C$192","v":"co-svsp-core:PaisDeudorCxC"}]
["/*",null,{"$f":"'800111A GeneraXBRL'!$D$193","v":"Saldo cuentas por cobrar"},{"$f":"'800111A GeneraXBRL'!$C$193","v":"co-svsp-core:SaldoCuentasPorCobrarCxC"}]
["/*",null,"--134--"]
["/*",null,{"$f":"'800111A GeneraXBRL'!$D$182","v":"Tipo de documento del deudor"},{"$f":"'800111A GeneraXBRL'!$C$182","v":"co-svsp-core:TipoDeDocumentoDeudorCxC"}]
["/*",null,{"$f":"'800111A GeneraXBRL'!$D$183","v":"Número de identificación del deudor"},{"$f":"'800111A GeneraXBRL'!$C$183","v":"co-svsp-core:NumeroIdentificacionDeudorCxC"}]
["/*",null,{"$f":"'800111A GeneraXBRL'!$D$184","v":"Primer apellido deudor"},{"$f":"'800111A GeneraXBRL'!$C$184","v":"co-svsp-core:PrimerApellidoDeudorCxC"}]
["/*",null,{"$f":"'800111A GeneraXBRL'!$D$185","v":"Segundo apellido deudor"},{"$f":"'800111A GeneraXBRL'!$C$185","v":"co-svsp-core:SegundoApellidoDeudorCxC"}]
["/*",null,{"$f":"'800111A GeneraXBRL'!$D$186","v":"Primer nombre deudor"},{"$f":"'800111A GeneraXBRL'!$C$186","v":"co-svsp-core:PrimerNombreDeudorCxC"}]
["/*",null,{"$f":"'800111A GeneraXBRL'!$D$187","v":"Otros nombres deudor"},{"$f":"'800111A GeneraXBRL'!$C$187","v":"co-svsp-core:OtrosNombresDeudorCxC"}]
["/*",null,{"$f":"'800111A GeneraXBRL'!$D$188","v":"Razón Social deudor"},{"$f":"'800111A GeneraXBRL'!$C$188","v":"co-svsp-core:RazonSocialDeudorCxC"}]
["/*",null,{"$f":"'800111A GeneraXBRL'!$D$189","v":"Dirección deudor"},{"$f":"'800111A GeneraXBRL'!$C$189","v":"co-svsp-core:DireccionDeudorCxC"}]
["/*",null,{"$f":"'800111A GeneraXBRL'!$D$190","v":"Departamento deudor"},{"$f":"'800111A GeneraXBRL'!$C$190","v":"co-svsp-core:DepartamentoDeudorCxC"}]
["/*",null,{"$f":"'800111A GeneraXBRL'!$D$191","v":"Municipio deudor"},{"$f":"'800111A GeneraXBRL'!$C$191","v":"co-svsp-core:MunicipioDeudorCxC"}]
["/*",null,{"$f":"'800111A GeneraXBRL'!$D$192","v":"País deudor"},{"$f":"'800111A GeneraXBRL'!$C$192","v":"co-svsp-core:PaisDeudorCxC"}]
["/*",null,{"$f":"'800111A GeneraXBRL'!$D$193","v":"Saldo cuentas por cobrar"},{"$f":"'800111A GeneraXBRL'!$C$193","v":"co-svsp-core:SaldoCuentasPorCobrarCxC"}]
["/*",null,"--135--"]
["/*",null,{"$f":"'800111A GeneraXBRL'!$D$182","v":"Tipo de documento del deudor"},{"$f":"'800111A GeneraXBRL'!$C$182","v":"co-svsp-core:TipoDeDocumentoDeudorCxC"}]
["/*",null,{"$f":"'800111A GeneraXBRL'!$D$183","v":"Número de identificación del deudor"},{"$f":"'800111A GeneraXBRL'!$C$183","v":"co-svsp-core:NumeroIdentificacionDeudorCxC"}]
["/*",null,{"$f":"'800111A GeneraXBRL'!$D$184","v":"Primer apellido deudor"},{"$f":"'800111A GeneraXBRL'!$C$184","v":"co-svsp-core:PrimerApellidoDeudorCxC"}]
["/*",null,{"$f":"'800111A GeneraXBRL'!$D$185","v":"Segundo apellido deudor"},{"$f":"'800111A GeneraXBRL'!$C$185","v":"co-svsp-core:SegundoApellidoDeudorCxC"}]
["/*",null,{"$f":"'800111A GeneraXBRL'!$D$186","v":"Primer nombre deudor"},{"$f":"'800111A GeneraXBRL'!$C$186","v":"co-svsp-core:PrimerNombreDeudorCxC"}]
["/*",null,{"$f":"'800111A GeneraXBRL'!$D$187","v":"Otros nombres deudor"},{"$f":"'800111A GeneraXBRL'!$C$187","v":"co-svsp-core:OtrosNombresDeudorCxC"}]
["/*",null,{"$f":"'800111A GeneraXBRL'!$D$188","v":"Razón Social deudor"},{"$f":"'800111A GeneraXBRL'!$C$188","v":"co-svsp-core:RazonSocialDeudorCxC"}]
["/*",null,{"$f":"'800111A GeneraXBRL'!$D$189","v":"Dirección deudor"},{"$f":"'800111A GeneraXBRL'!$C$189","v":"co-svsp-core:DireccionDeudorCxC"}]
["/*",null,{"$f":"'800111A GeneraXBRL'!$D$190","v":"Departamento deudor"},{"$f":"'800111A GeneraXBRL'!$C$190","v":"co-svsp-core:DepartamentoDeudorCxC"}]
["/*",null,{"$f":"'800111A GeneraXBRL'!$D$191","v":"Municipio deudor"},{"$f":"'800111A GeneraXBRL'!$C$191","v":"co-svsp-core:MunicipioDeudorCxC"}]
["/*",null,{"$f":"'800111A GeneraXBRL'!$D$192","v":"País deudor"},{"$f":"'800111A GeneraXBRL'!$C$192","v":"co-svsp-core:PaisDeudorCxC"}]
["/*",null,{"$f":"'800111A GeneraXBRL'!$D$193","v":"Saldo cuentas por cobrar"},{"$f":"'800111A GeneraXBRL'!$C$193","v":"co-svsp-core:SaldoCuentasPorCobrarCxC"}]
["/*",null,"--136--"]
["/*",null,{"$f":"'800111A GeneraXBRL'!$D$182","v":"Tipo de documento del deudor"},{"$f":"'800111A GeneraXBRL'!$C$182","v":"co-svsp-core:TipoDeDocumentoDeudorCxC"}]
["/*",null,{"$f":"'800111A GeneraXBRL'!$D$183","v":"Número de identificación del deudor"},{"$f":"'800111A GeneraXBRL'!$C$183","v":"co-svsp-core:NumeroIdentificacionDeudorCxC"}]
["/*",null,{"$f":"'800111A GeneraXBRL'!$D$184","v":"Primer apellido deudor"},{"$f":"'800111A GeneraXBRL'!$C$184","v":"co-svsp-core:PrimerApellidoDeudorCxC"}]
["/*",null,{"$f":"'800111A GeneraXBRL'!$D$185","v":"Segundo apellido deudor"},{"$f":"'800111A GeneraXBRL'!$C$185","v":"co-svsp-core:SegundoApellidoDeudorCxC"}]
["/*",null,{"$f":"'800111A GeneraXBRL'!$D$186","v":"Primer nombre deudor"},{"$f":"'800111A GeneraXBRL'!$C$186","v":"co-svsp-core:PrimerNombreDeudorCxC"}]
["/*",null,{"$f":"'800111A GeneraXBRL'!$D$187","v":"Otros nombres deudor"},{"$f":"'800111A GeneraXBRL'!$C$187","v":"co-svsp-core:OtrosNombresDeudorCxC"}]
["/*",null,{"$f":"'800111A GeneraXBRL'!$D$188","v":"Razón Social deudor"},{"$f":"'800111A GeneraXBRL'!$C$188","v":"co-svsp-core:RazonSocialDeudorCxC"}]
["/*",null,{"$f":"'800111A GeneraXBRL'!$D$189","v":"Dirección deudor"},{"$f":"'800111A GeneraXBRL'!$C$189","v":"co-svsp-core:DireccionDeudorCxC"}]
["/*",null,{"$f":"'800111A GeneraXBRL'!$D$190","v":"Departamento deudor"},{"$f":"'800111A GeneraXBRL'!$C$190","v":"co-svsp-core:DepartamentoDeudorCxC"}]
["/*",null,{"$f":"'800111A GeneraXBRL'!$D$191","v":"Municipio deudor"},{"$f":"'800111A GeneraXBRL'!$C$191","v":"co-svsp-core:MunicipioDeudorCxC"}]
["/*",null,{"$f":"'800111A GeneraXBRL'!$D$192","v":"País deudor"},{"$f":"'800111A GeneraXBRL'!$C$192","v":"co-svsp-core:PaisDeudorCxC"}]
["/*",null,{"$f":"'800111A GeneraXBRL'!$D$193","v":"Saldo cuentas por cobrar"},{"$f":"'800111A GeneraXBRL'!$C$193","v":"co-svsp-core:SaldoCuentasPorCobrarCxC"}]
["/*",null,"--137--"]
["/*",null,{"$f":"'800111A GeneraXBRL'!$D$182","v":"Tipo de documento del deudor"},{"$f":"'800111A GeneraXBRL'!$C$182","v":"co-svsp-core:TipoDeDocumentoDeudorCxC"}]
["/*",null,{"$f":"'800111A GeneraXBRL'!$D$183","v":"Número de identificación del deudor"},{"$f":"'800111A GeneraXBRL'!$C$183","v":"co-svsp-core:NumeroIdentificacionDeudorCxC"}]
["/*",null,{"$f":"'800111A GeneraXBRL'!$D$184","v":"Primer apellido deudor"},{"$f":"'800111A GeneraXBRL'!$C$184","v":"co-svsp-core:PrimerApellidoDeudorCxC"}]
["/*",null,{"$f":"'800111A GeneraXBRL'!$D$185","v":"Segundo apellido deudor"},{"$f":"'800111A GeneraXBRL'!$C$185","v":"co-svsp-core:SegundoApellidoDeudorCxC"}]
["/*",null,{"$f":"'800111A GeneraXBRL'!$D$186","v":"Primer nombre deudor"},{"$f":"'800111A GeneraXBRL'!$C$186","v":"co-svsp-core:PrimerNombreDeudorCxC"}]
["/*",null,{"$f":"'800111A GeneraXBRL'!$D$187","v":"Otros nombres deudor"},{"$f":"'800111A GeneraXBRL'!$C$187","v":"co-svsp-core:OtrosNombresDeudorCxC"}]
["/*",null,{"$f":"'800111A GeneraXBRL'!$D$188","v":"Razón Social deudor"},{"$f":"'800111A GeneraXBRL'!$C$188","v":"co-svsp-core:RazonSocialDeudorCxC"}]
["/*",null,{"$f":"'800111A GeneraXBRL'!$D$189","v":"Dirección deudor"},{"$f":"'800111A GeneraXBRL'!$C$189","v":"co-svsp-core:DireccionDeudorCxC"}]
["/*",null,{"$f":"'800111A GeneraXBRL'!$D$190","v":"Departamento deudor"},{"$f":"'800111A GeneraXBRL'!$C$190","v":"co-svsp-core:DepartamentoDeudorCxC"}]
["/*",null,{"$f":"'800111A GeneraXBRL'!$D$191","v":"Municipio deudor"},{"$f":"'800111A GeneraXBRL'!$C$191","v":"co-svsp-core:MunicipioDeudorCxC"}]
["/*",null,{"$f":"'800111A GeneraXBRL'!$D$192","v":"País deudor"},{"$f":"'800111A GeneraXBRL'!$C$192","v":"co-svsp-core:PaisDeudorCxC"}]
["/*",null,{"$f":"'800111A GeneraXBRL'!$D$193","v":"Saldo cuentas por cobrar"},{"$f":"'800111A GeneraXBRL'!$C$193","v":"co-svsp-core:SaldoCuentasPorCobrarCxC"}]
[{"$f":"IF(G4320=\"\",\"/*\",\"\")","v":"/*"},null,"--138--"]
["/*",null,{"$f":"'800111A GeneraXBRL'!$D$182","v":"Tipo de documento del deudor"},{"$f":"'800111A GeneraXBRL'!$C$182","v":"co-svsp-core:TipoDeDocumentoDeudorCxC"}]
["/*",null,{"$f":"'800111A GeneraXBRL'!$D$183","v":"Número de identificación del deudor"},{"$f":"'800111A GeneraXBRL'!$C$183","v":"co-svsp-core:NumeroIdentificacionDeudorCxC"}]
["/*",null,{"$f":"'800111A GeneraXBRL'!$D$184","v":"Primer apellido deudor"},{"$f":"'800111A GeneraXBRL'!$C$184","v":"co-svsp-core:PrimerApellidoDeudorCxC"}]
["/*",null,{"$f":"'800111A GeneraXBRL'!$D$185","v":"Segundo apellido deudor"},{"$f":"'800111A GeneraXBRL'!$C$185","v":"co-svsp-core:SegundoApellidoDeudorCxC"}]
["/*",null,{"$f":"'800111A GeneraXBRL'!$D$186","v":"Primer nombre deudor"},{"$f":"'800111A GeneraXBRL'!$C$186","v":"co-svsp-core:PrimerNombreDeudorCxC"}]
["/*",null,{"$f":"'800111A GeneraXBRL'!$D$187","v":"Otros nombres deudor"},{"$f":"'800111A GeneraXBRL'!$C$187","v":"co-svsp-core:OtrosNombresDeudorCxC"}]
["/*",null,{"$f":"'800111A GeneraXBRL'!$D$188","v":"Razón Social deudor"},{"$f":"'800111A GeneraXBRL'!$C$188","v":"co-svsp-core:RazonSocialDeudorCxC"}]
["/*",null,{"$f":"'800111A GeneraXBRL'!$D$189","v":"Dirección deudor"},{"$f":"'800111A GeneraXBRL'!$C$189","v":"co-svsp-core:DireccionDeudorCxC"}]
["/*",null,{"$f":"'800111A GeneraXBRL'!$D$190","v":"Departamento deudor"},{"$f":"'800111A GeneraXBRL'!$C$190","v":"co-svsp-core:DepartamentoDeudorCxC"}]
["/*",null,{"$f":"'800111A GeneraXBRL'!$D$191","v":"Municipio deudor"},{"$f":"'800111A GeneraXBRL'!$C$191","v":"co-svsp-core:MunicipioDeudorCxC"}]
["/*",null,{"$f":"'800111A GeneraXBRL'!$D$192","v":"País deudor"},{"$f":"'800111A GeneraXBRL'!$C$192","v":"co-svsp-core:PaisDeudorCxC"}]
["/*",null,{"$f":"'800111A GeneraXBRL'!$D$193","v":"Saldo cuentas por cobrar"},{"$f":"'800111A GeneraXBRL'!$C$193","v":"co-svsp-core:SaldoCuentasPorCobrarCxC"}]
["/*",null,"--139--"]
["/*",null,{"$f":"'800111A GeneraXBRL'!$D$182","v":"Tipo de documento del deudor"},{"$f":"'800111A GeneraXBRL'!$C$182","v":"co-svsp-core:TipoDeDocumentoDeudorCxC"}]
["/*",null,{"$f":"'800111A GeneraXBRL'!$D$183","v":"Número de identificación del deudor"},{"$f":"'800111A GeneraXBRL'!$C$183","v":"co-svsp-core:NumeroIdentificacionDeudorCxC"}]
["/*",null,{"$f":"'800111A GeneraXBRL'!$D$184","v":"Primer apellido deudor"},{"$f":"'800111A GeneraXBRL'!$C$184","v":"co-svsp-core:PrimerApellidoDeudorCxC"}]
["/*",null,{"$f":"'800111A GeneraXBRL'!$D$185","v":"Segundo apellido deudor"},{"$f":"'800111A GeneraXBRL'!$C$185","v":"co-svsp-core:SegundoApellidoDeudorCxC"}]
["/*",null,{"$f":"'800111A GeneraXBRL'!$D$186","v":"Primer nombre deudor"},{"$f":"'800111A GeneraXBRL'!$C$186","v":"co-svsp-core:PrimerNombreDeudorCxC"}]
["/*",null,{"$f":"'800111A GeneraXBRL'!$D$187","v":"Otros nombres deudor"},{"$f":"'800111A GeneraXBRL'!$C$187","v":"co-svsp-core:OtrosNombresDeudorCxC"}]
["/*",null,{"$f":"'800111A GeneraXBRL'!$D$188","v":"Razón Social deudor"},{"$f":"'800111A GeneraXBRL'!$C$188","v":"co-svsp-core:RazonSocialDeudorCxC"}]
["/*",null,{"$f":"'800111A GeneraXBRL'!$D$189","v":"Dirección deudor"},{"$f":"'800111A GeneraXBRL'!$C$189","v":"co-svsp-core:DireccionDeudorCxC"}]
["/*",null,{"$f":"'800111A GeneraXBRL'!$D$190","v":"Departamento deudor"},{"$f":"'800111A GeneraXBRL'!$C$190","v":"co-svsp-core:DepartamentoDeudorCxC"}]
["/*",null,{"$f":"'800111A GeneraXBRL'!$D$191","v":"Municipio deudor"},{"$f":"'800111A GeneraXBRL'!$C$191","v":"co-svsp-core:MunicipioDeudorCxC"}]
["/*",null,{"$f":"'800111A GeneraXBRL'!$D$192","v":"País deudor"},{"$f":"'800111A GeneraXBRL'!$C$192","v":"co-svsp-core:PaisDeudorCxC"}]
["/*",null,{"$f":"'800111A GeneraXBRL'!$D$193","v":"Saldo cuentas por cobrar"},{"$f":"'800111A GeneraXBRL'!$C$193","v":"co-svsp-core:SaldoCuentasPorCobrarCxC"}]
["/*",null,"--140--"]
["/*",null,{"$f":"'800111A GeneraXBRL'!$D$182","v":"Tipo de documento del deudor"},{"$f":"'800111A GeneraXBRL'!$C$182","v":"co-svsp-core:TipoDeDocumentoDeudorCxC"}]
["/*",null,{"$f":"'800111A GeneraXBRL'!$D$183","v":"Número de identificación del deudor"},{"$f":"'800111A GeneraXBRL'!$C$183","v":"co-svsp-core:NumeroIdentificacionDeudorCxC"}]
["/*",null,{"$f":"'800111A GeneraXBRL'!$D$184","v":"Primer apellido deudor"},{"$f":"'800111A GeneraXBRL'!$C$184","v":"co-svsp-core:PrimerApellidoDeudorCxC"}]
["/*",null,{"$f":"'800111A GeneraXBRL'!$D$185","v":"Segundo apellido deudor"},{"$f":"'800111A GeneraXBRL'!$C$185","v":"co-svsp-core:SegundoApellidoDeudorCxC"}]
["/*",null,{"$f":"'800111A GeneraXBRL'!$D$186","v":"Primer nombre deudor"},{"$f":"'800111A GeneraXBRL'!$C$186","v":"co-svsp-core:PrimerNombreDeudorCxC"}]
["/*",null,{"$f":"'800111A GeneraXBRL'!$D$187","v":"Otros nombres deudor"},{"$f":"'800111A GeneraXBRL'!$C$187","v":"co-svsp-core:OtrosNombresDeudorCxC"}]
["/*",null,{"$f":"'800111A GeneraXBRL'!$D$188","v":"Razón Social deudor"},{"$f":"'800111A GeneraXBRL'!$C$188","v":"co-svsp-core:RazonSocialDeudorCxC"}]
["/*",null,{"$f":"'800111A GeneraXBRL'!$D$189","v":"Dirección deudor"},{"$f":"'800111A GeneraXBRL'!$C$189","v":"co-svsp-core:DireccionDeudorCxC"}]
["/*",null,{"$f":"'800111A GeneraXBRL'!$D$190","v":"Departamento deudor"},{"$f":"'800111A GeneraXBRL'!$C$190","v":"co-svsp-core:DepartamentoDeudorCxC"}]
["/*",null,{"$f":"'800111A GeneraXBRL'!$D$191","v":"Municipio deudor"},{"$f":"'800111A GeneraXBRL'!$C$191","v":"co-svsp-core:MunicipioDeudorCxC"}]
["/*",null,{"$f":"'800111A GeneraXBRL'!$D$192","v":"País deudor"},{"$f":"'800111A GeneraXBRL'!$C$192","v":"co-svsp-core:PaisDeudorCxC"}]
["/*",null,{"$f":"'800111A GeneraXBRL'!$D$193","v":"Saldo cuentas por cobrar"},{"$f":"'800111A GeneraXBRL'!$C$193","v":"co-svsp-core:SaldoCuentasPorCobrarCxC"}]
["/*",null,"--141--"]
["/*",null,{"$f":"'800111A GeneraXBRL'!$D$182","v":"Tipo de documento del deudor"},{"$f":"'800111A GeneraXBRL'!$C$182","v":"co-svsp-core:TipoDeDocumentoDeudorCxC"}]
["/*",null,{"$f":"'800111A GeneraXBRL'!$D$183","v":"Número de identificación del deudor"},{"$f":"'800111A GeneraXBRL'!$C$183","v":"co-svsp-core:NumeroIdentificacionDeudorCxC"}]
["/*",null,{"$f":"'800111A GeneraXBRL'!$D$184","v":"Primer apellido deudor"},{"$f":"'800111A GeneraXBRL'!$C$184","v":"co-svsp-core:PrimerApellidoDeudorCxC"}]
["/*",null,{"$f":"'800111A GeneraXBRL'!$D$185","v":"Segundo apellido deudor"},{"$f":"'800111A GeneraXBRL'!$C$185","v":"co-svsp-core:SegundoApellidoDeudorCxC"}]
["/*",null,{"$f":"'800111A GeneraXBRL'!$D$186","v":"Primer nombre deudor"},{"$f":"'800111A GeneraXBRL'!$C$186","v":"co-svsp-core:PrimerNombreDeudorCxC"}]
["/*",null,{"$f":"'800111A GeneraXBRL'!$D$187","v":"Otros nombres deudor"},{"$f":"'800111A GeneraXBRL'!$C$187","v":"co-svsp-core:OtrosNombresDeudorCxC"}]
["/*",null,{"$f":"'800111A GeneraXBRL'!$D$188","v":"Razón Social deudor"},{"$f":"'800111A GeneraXBRL'!$C$188","v":"co-svsp-core:RazonSocialDeudorCxC"}]
["/*",null,{"$f":"'800111A GeneraXBRL'!$D$189","v":"Dirección deudor"},{"$f":"'800111A GeneraXBRL'!$C$189","v":"co-svsp-core:DireccionDeudorCxC"}]
["/*",null,{"$f":"'800111A GeneraXBRL'!$D$190","v":"Departamento deudor"},{"$f":"'800111A GeneraXBRL'!$C$190","v":"co-svsp-core:DepartamentoDeudorCxC"}]
["/*",null,{"$f":"'800111A GeneraXBRL'!$D$191","v":"Municipio deudor"},{"$f":"'800111A GeneraXBRL'!$C$191","v":"co-svsp-core:MunicipioDeudorCxC"}]
["/*",null,{"$f":"'800111A GeneraXBRL'!$D$192","v":"País deudor"},{"$f":"'800111A GeneraXBRL'!$C$192","v":"co-svsp-core:PaisDeudorCxC"}]
["/*",null,{"$f":"'800111A GeneraXBRL'!$D$193","v":"Saldo cuentas por cobrar"},{"$f":"'800111A GeneraXBRL'!$C$193","v":"co-svsp-core:SaldoCuentasPorCobrarCxC"}]
["/*",null,"--142--"]
["/*",null,{"$f":"'800111A GeneraXBRL'!$D$182","v":"Tipo de documento del deudor"},{"$f":"'800111A GeneraXBRL'!$C$182","v":"co-svsp-core:TipoDeDocumentoDeudorCxC"}]
["/*",null,{"$f":"'800111A GeneraXBRL'!$D$183","v":"Número de identificación del deudor"},{"$f":"'800111A GeneraXBRL'!$C$183","v":"co-svsp-core:NumeroIdentificacionDeudorCxC"}]
["/*",null,{"$f":"'800111A GeneraXBRL'!$D$184","v":"Primer apellido deudor"},{"$f":"'800111A GeneraXBRL'!$C$184","v":"co-svsp-core:PrimerApellidoDeudorCxC"}]
["/*",null,{"$f":"'800111A GeneraXBRL'!$D$185","v":"Segundo apellido deudor"},{"$f":"'800111A GeneraXBRL'!$C$185","v":"co-svsp-core:SegundoApellidoDeudorCxC"}]
["/*",null,{"$f":"'800111A GeneraXBRL'!$D$186","v":"Primer nombre deudor"},{"$f":"'800111A GeneraXBRL'!$C$186","v":"co-svsp-core:PrimerNombreDeudorCxC"}]
["/*",null,{"$f":"'800111A GeneraXBRL'!$D$187","v":"Otros nombres deudor"},{"$f":"'800111A GeneraXBRL'!$C$187","v":"co-svsp-core:OtrosNombresDeudorCxC"}]
["/*",null,{"$f":"'800111A GeneraXBRL'!$D$188","v":"Razón Social deudor"},{"$f":"'800111A GeneraXBRL'!$C$188","v":"co-svsp-core:RazonSocialDeudorCxC"}]
["/*",null,{"$f":"'800111A GeneraXBRL'!$D$189","v":"Dirección deudor"},{"$f":"'800111A GeneraXBRL'!$C$189","v":"co-svsp-core:DireccionDeudorCxC"}]
["/*",null,{"$f":"'800111A GeneraXBRL'!$D$190","v":"Departamento deudor"},{"$f":"'800111A GeneraXBRL'!$C$190","v":"co-svsp-core:DepartamentoDeudorCxC"}]
["/*",null,{"$f":"'800111A GeneraXBRL'!$D$191","v":"Municipio deudor"},{"$f":"'800111A GeneraXBRL'!$C$191","v":"co-svsp-core:MunicipioDeudorCxC"}]
["/*",null,{"$f":"'800111A GeneraXBRL'!$D$192","v":"País deudor"},{"$f":"'800111A GeneraXBRL'!$C$192","v":"co-svsp-core:PaisDeudorCxC"}]
[{"$f":"IF(G4384=\"\",\"/*\",\"\")","v":"/*"},null,{"$f":"'800111A GeneraXBRL'!$D$193","v":"Saldo cuentas por cobrar"},{"$f":"'800111A GeneraXBRL'!$C$193","v":"co-svsp-core:SaldoCuentasPorCobrarCxC"}]
["/*",null,"--143--"]
["/*",null,{"$f":"'800111A GeneraXBRL'!$D$182","v":"Tipo de documento del deudor"},{"$f":"'800111A GeneraXBRL'!$C$182","v":"co-svsp-core:TipoDeDocumentoDeudorCxC"}]
["/*",null,{"$f":"'800111A GeneraXBRL'!$D$183","v":"Número de identificación del deudor"},{"$f":"'800111A GeneraXBRL'!$C$183","v":"co-svsp-core:NumeroIdentificacionDeudorCxC"}]
["/*",null,{"$f":"'800111A GeneraXBRL'!$D$184","v":"Primer apellido deudor"},{"$f":"'800111A GeneraXBRL'!$C$184","v":"co-svsp-core:PrimerApellidoDeudorCxC"}]
["/*",null,{"$f":"'800111A GeneraXBRL'!$D$185","v":"Segundo apellido deudor"},{"$f":"'800111A GeneraXBRL'!$C$185","v":"co-svsp-core:SegundoApellidoDeudorCxC"}]
["/*",null,{"$f":"'800111A GeneraXBRL'!$D$186","v":"Primer nombre deudor"},{"$f":"'800111A GeneraXBRL'!$C$186","v":"co-svsp-core:PrimerNombreDeudorCxC"}]
["/*",null,{"$f":"'800111A GeneraXBRL'!$D$187","v":"Otros nombres deudor"},{"$f":"'800111A GeneraXBRL'!$C$187","v":"co-svsp-core:OtrosNombresDeudorCxC"}]
["/*",null,{"$f":"'800111A GeneraXBRL'!$D$188","v":"Razón Social deudor"},{"$f":"'800111A GeneraXBRL'!$C$188","v":"co-svsp-core:RazonSocialDeudorCxC"}]
["/*",null,{"$f":"'800111A GeneraXBRL'!$D$189","v":"Dirección deudor"},{"$f":"'800111A GeneraXBRL'!$C$189","v":"co-svsp-core:DireccionDeudorCxC"}]
["/*",null,{"$f":"'800111A GeneraXBRL'!$D$190","v":"Departamento deudor"},{"$f":"'800111A GeneraXBRL'!$C$190","v":"co-svsp-core:DepartamentoDeudorCxC"}]
["/*",null,{"$f":"'800111A GeneraXBRL'!$D$191","v":"Municipio deudor"},{"$f":"'800111A GeneraXBRL'!$C$191","v":"co-svsp-core:MunicipioDeudorCxC"}]
["/*",null,{"$f":"'800111A GeneraXBRL'!$D$192","v":"País deudor"},{"$f":"'800111A GeneraXBRL'!$C$192","v":"co-svsp-core:PaisDeudorCxC"}]
["/*",null,{"$f":"'800111A GeneraXBRL'!$D$193","v":"Saldo cuentas por cobrar"},{"$f":"'800111A GeneraXBRL'!$C$193","v":"co-svsp-core:SaldoCuentasPorCobrarCxC"}]
["/*",null,"--144--"]
["/*",null,{"$f":"'800111A GeneraXBRL'!$D$182","v":"Tipo de documento del deudor"},{"$f":"'800111A GeneraXBRL'!$C$182","v":"co-svsp-core:TipoDeDocumentoDeudorCxC"}]
["/*",null,{"$f":"'800111A GeneraXBRL'!$D$183","v":"Número de identificación del deudor"},{"$f":"'800111A GeneraXBRL'!$C$183","v":"co-svsp-core:NumeroIdentificacionDeudorCxC"}]
["/*",null,{"$f":"'800111A GeneraXBRL'!$D$184","v":"Primer apellido deudor"},{"$f":"'800111A GeneraXBRL'!$C$184","v":"co-svsp-core:PrimerApellidoDeudorCxC"}]
["/*",null,{"$f":"'800111A GeneraXBRL'!$D$185","v":"Segundo apellido deudor"},{"$f":"'800111A GeneraXBRL'!$C$185","v":"co-svsp-core:SegundoApellidoDeudorCxC"}]
["/*",null,{"$f":"'800111A GeneraXBRL'!$D$186","v":"Primer nombre deudor"},{"$f":"'800111A GeneraXBRL'!$C$186","v":"co-svsp-core:PrimerNombreDeudorCxC"}]
["/*",null,{"$f":"'800111A GeneraXBRL'!$D$187","v":"Otros nombres deudor"},{"$f":"'800111A GeneraXBRL'!$C$187","v":"co-svsp-core:OtrosNombresDeudorCxC"}]
["/*",null,{"$f":"'800111A GeneraXBRL'!$D$188","v":"Razón Social deudor"},{"$f":"'800111A GeneraXBRL'!$C$188","v":"co-svsp-core:RazonSocialDeudorCxC"}]
["/*",null,{"$f":"'800111A GeneraXBRL'!$D$189","v":"Dirección deudor"},{"$f":"'800111A GeneraXBRL'!$C$189","v":"co-svsp-core:DireccionDeudorCxC"}]
["/*",null,{"$f":"'800111A GeneraXBRL'!$D$190","v":"Departamento deudor"},{"$f":"'800111A GeneraXBRL'!$C$190","v":"co-svsp-core:DepartamentoDeudorCxC"}]
["/*",null,{"$f":"'800111A GeneraXBRL'!$D$191","v":"Municipio deudor"},{"$f":"'800111A GeneraXBRL'!$C$191","v":"co-svsp-core:MunicipioDeudorCxC"}]
["/*",null,{"$f":"'800111A GeneraXBRL'!$D$192","v":"País deudor"},{"$f":"'800111A GeneraXBRL'!$C$192","v":"co-svsp-core:PaisDeudorCxC"}]
["/*",null,{"$f":"'800111A GeneraXBRL'!$D$193","v":"Saldo cuentas por cobrar"},{"$f":"'800111A GeneraXBRL'!$C$193","v":"co-svsp-core:SaldoCuentasPorCobrarCxC"}]
["/*",null,"--145--"]
["/*",null,{"$f":"'800111A GeneraXBRL'!$D$182","v":"Tipo de documento del deudor"},{"$f":"'800111A GeneraXBRL'!$C$182","v":"co-svsp-core:TipoDeDocumentoDeudorCxC"}]
["/*",null,{"$f":"'800111A GeneraXBRL'!$D$183","v":"Número de identificación del deudor"},{"$f":"'800111A GeneraXBRL'!$C$183","v":"co-svsp-core:NumeroIdentificacionDeudorCxC"}]
["/*",null,{"$f":"'800111A GeneraXBRL'!$D$184","v":"Primer apellido deudor"},{"$f":"'800111A GeneraXBRL'!$C$184","v":"co-svsp-core:PrimerApellidoDeudorCxC"}]
["/*",null,{"$f":"'800111A GeneraXBRL'!$D$185","v":"Segundo apellido deudor"},{"$f":"'800111A GeneraXBRL'!$C$185","v":"co-svsp-core:SegundoApellidoDeudorCxC"}]
["/*",null,{"$f":"'800111A GeneraXBRL'!$D$186","v":"Primer nombre deudor"},{"$f":"'800111A GeneraXBRL'!$C$186","v":"co-svsp-core:PrimerNombreDeudorCxC"}]
["/*",null,{"$f":"'800111A GeneraXBRL'!$D$187","v":"Otros nombres deudor"},{"$f":"'800111A GeneraXBRL'!$C$187","v":"co-svsp-core:OtrosNombresDeudorCxC"}]
["/*",null,{"$f":"'800111A GeneraXBRL'!$D$188","v":"Razón Social deudor"},{"$f":"'800111A GeneraXBRL'!$C$188","v":"co-svsp-core:RazonSocialDeudorCxC"}]
["/*",null,{"$f":"'800111A GeneraXBRL'!$D$189","v":"Dirección deudor"},{"$f":"'800111A GeneraXBRL'!$C$189","v":"co-svsp-core:DireccionDeudorCxC"}]
["/*",null,{"$f":"'800111A GeneraXBRL'!$D$190","v":"Departamento deudor"},{"$f":"'800111A GeneraXBRL'!$C$190","v":"co-svsp-core:DepartamentoDeudorCxC"}]
["/*",null,{"$f":"'800111A GeneraXBRL'!$D$191","v":"Municipio deudor"},{"$f":"'800111A GeneraXBRL'!$C$191","v":"co-svsp-core:MunicipioDeudorCxC"}]
["/*",null,{"$f":"'800111A GeneraXBRL'!$D$192","v":"País deudor"},{"$f":"'800111A GeneraXBRL'!$C$192","v":"co-svsp-core:PaisDeudorCxC"}]
["/*",null,{"$f":"'800111A GeneraXBRL'!$D$193","v":"Saldo cuentas por cobrar"},{"$f":"'800111A GeneraXBRL'!$C$193","v":"co-svsp-core:SaldoCuentasPorCobrarCxC"}]
["/*",null,"--146--"]
["/*",null,{"$f":"'800111A GeneraXBRL'!$D$182","v":"Tipo de documento del deudor"},{"$f":"'800111A GeneraXBRL'!$C$182","v":"co-svsp-core:TipoDeDocumentoDeudorCxC"}]
["/*",null,{"$f":"'800111A GeneraXBRL'!$D$183","v":"Número de identificación del deudor"},{"$f":"'800111A GeneraXBRL'!$C$183","v":"co-svsp-core:NumeroIdentificacionDeudorCxC"}]
["/*",null,{"$f":"'800111A GeneraXBRL'!$D$184","v":"Primer apellido deudor"},{"$f":"'800111A GeneraXBRL'!$C$184","v":"co-svsp-core:PrimerApellidoDeudorCxC"}]
["/*",null,{"$f":"'800111A GeneraXBRL'!$D$185","v":"Segundo apellido deudor"},{"$f":"'800111A GeneraXBRL'!$C$185","v":"co-svsp-core:SegundoApellidoDeudorCxC"}]
["/*",null,{"$f":"'800111A GeneraXBRL'!$D$186","v":"Primer nombre deudor"},{"$f":"'800111A GeneraXBRL'!$C$186","v":"co-svsp-core:PrimerNombreDeudorCxC"}]
["/*",null,{"$f":"'800111A GeneraXBRL'!$D$187","v":"Otros nombres deudor"},{"$f":"'800111A GeneraXBRL'!$C$187","v":"co-svsp-core:OtrosNombresDeudorCxC"}]
["/*",null,{"$f":"'800111A GeneraXBRL'!$D$188","v":"Razón Social deudor"},{"$f":"'800111A GeneraXBRL'!$C$188","v":"co-svsp-core:RazonSocialDeudorCxC"}]
["/*",null,{"$f":"'800111A GeneraXBRL'!$D$189","v":"Dirección deudor"},{"$f":"'800111A GeneraXBRL'!$C$189","v":"co-svsp-core:DireccionDeudorCxC"}]
["/*",null,{"$f":"'800111A GeneraXBRL'!$D$190","v":"Departamento deudor"},{"$f":"'800111A GeneraXBRL'!$C$190","v":"co-svsp-core:DepartamentoDeudorCxC"}]
["/*",null,{"$f":"'800111A GeneraXBRL'!$D$191","v":"Municipio deudor"},{"$f":"'800111A GeneraXBRL'!$C$191","v":"co-svsp-core:MunicipioDeudorCxC"}]
["/*",null,{"$f":"'800111A GeneraXBRL'!$D$192","v":"País deudor"},{"$f":"'800111A GeneraXBRL'!$C$192","v":"co-svsp-core:PaisDeudorCxC"}]
["/*",null,{"$f":"'800111A GeneraXBRL'!$D$193","v":"Saldo cuentas por cobrar"},{"$f":"'800111A GeneraXBRL'!$C$193","v":"co-svsp-core:SaldoCuentasPorCobrarCxC"}]
["/*",null,"--147--"]
["/*",null,{"$f":"'800111A GeneraXBRL'!$D$182","v":"Tipo de documento del deudor"},{"$f":"'800111A GeneraXBRL'!$C$182","v":"co-svsp-core:TipoDeDocumentoDeudorCxC"}]
["/*",null,{"$f":"'800111A GeneraXBRL'!$D$183","v":"Número de identificación del deudor"},{"$f":"'800111A GeneraXBRL'!$C$183","v":"co-svsp-core:NumeroIdentificacionDeudorCxC"}]
["/*",null,{"$f":"'800111A GeneraXBRL'!$D$184","v":"Primer apellido deudor"},{"$f":"'800111A GeneraXBRL'!$C$184","v":"co-svsp-core:PrimerApellidoDeudorCxC"}]
["/*",null,{"$f":"'800111A GeneraXBRL'!$D$185","v":"Segundo apellido deudor"},{"$f":"'800111A GeneraXBRL'!$C$185","v":"co-svsp-core:SegundoApellidoDeudorCxC"}]
["/*",null,{"$f":"'800111A GeneraXBRL'!$D$186","v":"Primer nombre deudor"},{"$f":"'800111A GeneraXBRL'!$C$186","v":"co-svsp-core:PrimerNombreDeudorCxC"}]
["/*",null,{"$f":"'800111A GeneraXBRL'!$D$187","v":"Otros nombres deudor"},{"$f":"'800111A GeneraXBRL'!$C$187","v":"co-svsp-core:OtrosNombresDeudorCxC"}]
["/*",null,{"$f":"'800111A GeneraXBRL'!$D$188","v":"Razón Social deudor"},{"$f":"'800111A GeneraXBRL'!$C$188","v":"co-svsp-core:RazonSocialDeudorCxC"}]
["/*",null,{"$f":"'800111A GeneraXBRL'!$D$189","v":"Dirección deudor"},{"$f":"'800111A GeneraXBRL'!$C$189","v":"co-svsp-core:DireccionDeudorCxC"}]
["/*",null,{"$f":"'800111A GeneraXBRL'!$D$190","v":"Departamento deudor"},{"$f":"'800111A GeneraXBRL'!$C$190","v":"co-svsp-core:DepartamentoDeudorCxC"}]
["/*",null,{"$f":"'800111A GeneraXBRL'!$D$191","v":"Municipio deudor"},{"$f":"'800111A GeneraXBRL'!$C$191","v":"co-svsp-core:MunicipioDeudorCxC"}]
[{"$f":"IF(G4448=\"\",\"/*\",\"\")","v":"/*"},null,{"$f":"'800111A GeneraXBRL'!$D$192","v":"País deudor"},{"$f":"'800111A GeneraXBRL'!$C$192","v":"co-svsp-core:PaisDeudorCxC"}]
["/*",null,{"$f":"'800111A GeneraXBRL'!$D$193","v":"Saldo cuentas por cobrar"},{"$f":"'800111A GeneraXBRL'!$C$193","v":"co-svsp-core:SaldoCuentasPorCobrarCxC"}]
["/*",null,"--148--"]
["/*",null,{"$f":"'800111A GeneraXBRL'!$D$182","v":"Tipo de documento del deudor"},{"$f":"'800111A GeneraXBRL'!$C$182","v":"co-svsp-core:TipoDeDocumentoDeudorCxC"}]
["/*",null,{"$f":"'800111A GeneraXBRL'!$D$183","v":"Número de identificación del deudor"},{"$f":"'800111A GeneraXBRL'!$C$183","v":"co-svsp-core:NumeroIdentificacionDeudorCxC"}]
["/*",null,{"$f":"'800111A GeneraXBRL'!$D$184","v":"Primer apellido deudor"},{"$f":"'800111A GeneraXBRL'!$C$184","v":"co-svsp-core:PrimerApellidoDeudorCxC"}]
["/*",null,{"$f":"'800111A GeneraXBRL'!$D$185","v":"Segundo apellido deudor"},{"$f":"'800111A GeneraXBRL'!$C$185","v":"co-svsp-core:SegundoApellidoDeudorCxC"}]
["/*",null,{"$f":"'800111A GeneraXBRL'!$D$186","v":"Primer nombre deudor"},{"$f":"'800111A GeneraXBRL'!$C$186","v":"co-svsp-core:PrimerNombreDeudorCxC"}]
["/*",null,{"$f":"'800111A GeneraXBRL'!$D$187","v":"Otros nombres deudor"},{"$f":"'800111A GeneraXBRL'!$C$187","v":"co-svsp-core:OtrosNombresDeudorCxC"}]
["/*",null,{"$f":"'800111A GeneraXBRL'!$D$188","v":"Razón Social deudor"},{"$f":"'800111A GeneraXBRL'!$C$188","v":"co-svsp-core:RazonSocialDeudorCxC"}]
["/*",null,{"$f":"'800111A GeneraXBRL'!$D$189","v":"Dirección deudor"},{"$f":"'800111A GeneraXBRL'!$C$189","v":"co-svsp-core:DireccionDeudorCxC"}]
["/*",null,{"$f":"'800111A GeneraXBRL'!$D$190","v":"Departamento deudor"},{"$f":"'800111A GeneraXBRL'!$C$190","v":"co-svsp-core:DepartamentoDeudorCxC"}]
["/*",null,{"$f":"'800111A GeneraXBRL'!$D$191","v":"Municipio deudor"},{"$f":"'800111A GeneraXBRL'!$C$191","v":"co-svsp-core:MunicipioDeudorCxC"}]
["/*",null,{"$f":"'800111A GeneraXBRL'!$D$192","v":"País deudor"},{"$f":"'800111A GeneraXBRL'!$C$192","v":"co-svsp-core:PaisDeudorCxC"}]
["/*",null,{"$f":"'800111A GeneraXBRL'!$D$193","v":"Saldo cuentas por cobrar"},{"$f":"'800111A GeneraXBRL'!$C$193","v":"co-svsp-core:SaldoCuentasPorCobrarCxC"}]
["/*",null,"--149--"]
["/*",null,{"$f":"'800111A GeneraXBRL'!$D$182","v":"Tipo de documento del deudor"},{"$f":"'800111A GeneraXBRL'!$C$182","v":"co-svsp-core:TipoDeDocumentoDeudorCxC"}]
["/*",null,{"$f":"'800111A GeneraXBRL'!$D$183","v":"Número de identificación del deudor"},{"$f":"'800111A GeneraXBRL'!$C$183","v":"co-svsp-core:NumeroIdentificacionDeudorCxC"}]
["/*",null,{"$f":"'800111A GeneraXBRL'!$D$184","v":"Primer apellido deudor"},{"$f":"'800111A GeneraXBRL'!$C$184","v":"co-svsp-core:PrimerApellidoDeudorCxC"}]
["/*",null,{"$f":"'800111A GeneraXBRL'!$D$185","v":"Segundo apellido deudor"},{"$f":"'800111A GeneraXBRL'!$C$185","v":"co-svsp-core:SegundoApellidoDeudorCxC"}]
["/*",null,{"$f":"'800111A GeneraXBRL'!$D$186","v":"Primer nombre deudor"},{"$f":"'800111A GeneraXBRL'!$C$186","v":"co-svsp-core:PrimerNombreDeudorCxC"}]
["/*",null,{"$f":"'800111A GeneraXBRL'!$D$187","v":"Otros nombres deudor"},{"$f":"'800111A GeneraXBRL'!$C$187","v":"co-svsp-core:OtrosNombresDeudorCxC"}]
["/*",null,{"$f":"'800111A GeneraXBRL'!$D$188","v":"Razón Social deudor"},{"$f":"'800111A GeneraXBRL'!$C$188","v":"co-svsp-core:RazonSocialDeudorCxC"}]
["/*",null,{"$f":"'800111A GeneraXBRL'!$D$189","v":"Dirección deudor"},{"$f":"'800111A GeneraXBRL'!$C$189","v":"co-svsp-core:DireccionDeudorCxC"}]
["/*",null,{"$f":"'800111A GeneraXBRL'!$D$190","v":"Departamento deudor"},{"$f":"'800111A GeneraXBRL'!$C$190","v":"co-svsp-core:DepartamentoDeudorCxC"}]
["/*",null,{"$f":"'800111A GeneraXBRL'!$D$191","v":"Municipio deudor"},{"$f":"'800111A GeneraXBRL'!$C$191","v":"co-svsp-core:MunicipioDeudorCxC"}]
["/*",null,{"$f":"'800111A GeneraXBRL'!$D$192","v":"País deudor"},{"$f":"'800111A GeneraXBRL'!$C$192","v":"co-svsp-core:PaisDeudorCxC"}]
["/*",null,{"$f":"'800111A GeneraXBRL'!$D$193","v":"Saldo cuentas por cobrar"},{"$f":"'800111A GeneraXBRL'!$C$193","v":"co-svsp-core:SaldoCuentasPorCobrarCxC"}]
["/*",null,"--150--"]
["/*",null,{"$f":"'800111A GeneraXBRL'!$D$182","v":"Tipo de documento del deudor"},{"$f":"'800111A GeneraXBRL'!$C$182","v":"co-svsp-core:TipoDeDocumentoDeudorCxC"}]
["/*",null,{"$f":"'800111A GeneraXBRL'!$D$183","v":"Número de identificación del deudor"},{"$f":"'800111A GeneraXBRL'!$C$183","v":"co-svsp-core:NumeroIdentificacionDeudorCxC"}]
["/*",null,{"$f":"'800111A GeneraXBRL'!$D$184","v":"Primer apellido deudor"},{"$f":"'800111A GeneraXBRL'!$C$184","v":"co-svsp-core:PrimerApellidoDeudorCxC"}]
["/*",null,{"$f":"'800111A GeneraXBRL'!$D$185","v":"Segundo apellido deudor"},{"$f":"'800111A GeneraXBRL'!$C$185","v":"co-svsp-core:SegundoApellidoDeudorCxC"}]
["/*",null,{"$f":"'800111A GeneraXBRL'!$D$186","v":"Primer nombre deudor"},{"$f":"'800111A GeneraXBRL'!$C$186","v":"co-svsp-core:PrimerNombreDeudorCxC"}]
["/*",null,{"$f":"'800111A GeneraXBRL'!$D$187","v":"Otros nombres deudor"},{"$f":"'800111A GeneraXBRL'!$C$187","v":"co-svsp-core:OtrosNombresDeudorCxC"}]
["/*",null,{"$f":"'800111A GeneraXBRL'!$D$188","v":"Razón Social deudor"},{"$f":"'800111A GeneraXBRL'!$C$188","v":"co-svsp-core:RazonSocialDeudorCxC"}]
["/*",null,{"$f":"'800111A GeneraXBRL'!$D$189","v":"Dirección deudor"},{"$f":"'800111A GeneraXBRL'!$C$189","v":"co-svsp-core:DireccionDeudorCxC"}]
["/*",null,{"$f":"'800111A GeneraXBRL'!$D$190","v":"Departamento deudor"},{"$f":"'800111A GeneraXBRL'!$C$190","v":"co-svsp-core:DepartamentoDeudorCxC"}]
["/*",null,{"$f":"'800111A GeneraXBRL'!$D$191","v":"Municipio deudor"},{"$f":"'800111A GeneraXBRL'!$C$191","v":"co-svsp-core:MunicipioDeudorCxC"}]
["/*",null,{"$f":"'800111A GeneraXBRL'!$D$192","v":"País deudor"},{"$f":"'800111A GeneraXBRL'!$C$192","v":"co-svsp-core:PaisDeudorCxC"}]
["/*",null,{"$f":"'800111A GeneraXBRL'!$D$193","v":"Saldo cuentas por cobrar"},{"$f":"'800111A GeneraXBRL'!$C$193","v":"co-svsp-core:SaldoCuentasPorCobrarCxC"}]
["/*",null,"--151--"]
["/*",null,{"$f":"'800111A GeneraXBRL'!$D$182","v":"Tipo de documento del deudor"},{"$f":"'800111A GeneraXBRL'!$C$182","v":"co-svsp-core:TipoDeDocumentoDeudorCxC"}]
["/*",null,{"$f":"'800111A GeneraXBRL'!$D$183","v":"Número de identificación del deudor"},{"$f":"'800111A GeneraXBRL'!$C$183","v":"co-svsp-core:NumeroIdentificacionDeudorCxC"}]
["/*",null,{"$f":"'800111A GeneraXBRL'!$D$184","v":"Primer apellido deudor"},{"$f":"'800111A GeneraXBRL'!$C$184","v":"co-svsp-core:PrimerApellidoDeudorCxC"}]
["/*",null,{"$f":"'800111A GeneraXBRL'!$D$185","v":"Segundo apellido deudor"},{"$f":"'800111A GeneraXBRL'!$C$185","v":"co-svsp-core:SegundoApellidoDeudorCxC"}]
["/*",null,{"$f":"'800111A GeneraXBRL'!$D$186","v":"Primer nombre deudor"},{"$f":"'800111A GeneraXBRL'!$C$186","v":"co-svsp-core:PrimerNombreDeudorCxC"}]
["/*",null,{"$f":"'800111A GeneraXBRL'!$D$187","v":"Otros nombres deudor"},{"$f":"'800111A GeneraXBRL'!$C$187","v":"co-svsp-core:OtrosNombresDeudorCxC"}]
["/*",null,{"$f":"'800111A GeneraXBRL'!$D$188","v":"Razón Social deudor"},{"$f":"'800111A GeneraXBRL'!$C$188","v":"co-svsp-core:RazonSocialDeudorCxC"}]
["/*",null,{"$f":"'800111A GeneraXBRL'!$D$189","v":"Dirección deudor"},{"$f":"'800111A GeneraXBRL'!$C$189","v":"co-svsp-core:DireccionDeudorCxC"}]
["/*",null,{"$f":"'800111A GeneraXBRL'!$D$190","v":"Departamento deudor"},{"$f":"'800111A GeneraXBRL'!$C$190","v":"co-svsp-core:DepartamentoDeudorCxC"}]
["/*",null,{"$f":"'800111A GeneraXBRL'!$D$191","v":"Municipio deudor"},{"$f":"'800111A GeneraXBRL'!$C$191","v":"co-svsp-core:MunicipioDeudorCxC"}]
["/*",null,{"$f":"'800111A GeneraXBRL'!$D$192","v":"País deudor"},{"$f":"'800111A GeneraXBRL'!$C$192","v":"co-svsp-core:PaisDeudorCxC"}]
["/*",null,{"$f":"'800111A GeneraXBRL'!$D$193","v":"Saldo cuentas por cobrar"},{"$f":"'800111A GeneraXBRL'!$C$193","v":"co-svsp-core:SaldoCuentasPorCobrarCxC"}]
["/*",null,"--152--"]
["/*",null,{"$f":"'800111A GeneraXBRL'!$D$182","v":"Tipo de documento del deudor"},{"$f":"'800111A GeneraXBRL'!$C$182","v":"co-svsp-core:TipoDeDocumentoDeudorCxC"}]
["/*",null,{"$f":"'800111A GeneraXBRL'!$D$183","v":"Número de identificación del deudor"},{"$f":"'800111A GeneraXBRL'!$C$183","v":"co-svsp-core:NumeroIdentificacionDeudorCxC"}]
["/*",null,{"$f":"'800111A GeneraXBRL'!$D$184","v":"Primer apellido deudor"},{"$f":"'800111A GeneraXBRL'!$C$184","v":"co-svsp-core:PrimerApellidoDeudorCxC"}]
["/*",null,{"$f":"'800111A GeneraXBRL'!$D$185","v":"Segundo apellido deudor"},{"$f":"'800111A GeneraXBRL'!$C$185","v":"co-svsp-core:SegundoApellidoDeudorCxC"}]
["/*",null,{"$f":"'800111A GeneraXBRL'!$D$186","v":"Primer nombre deudor"},{"$f":"'800111A GeneraXBRL'!$C$186","v":"co-svsp-core:PrimerNombreDeudorCxC"}]
["/*",null,{"$f":"'800111A GeneraXBRL'!$D$187","v":"Otros nombres deudor"},{"$f":"'800111A GeneraXBRL'!$C$187","v":"co-svsp-core:OtrosNombresDeudorCxC"}]
["/*",null,{"$f":"'800111A GeneraXBRL'!$D$188","v":"Razón Social deudor"},{"$f":"'800111A GeneraXBRL'!$C$188","v":"co-svsp-core:RazonSocialDeudorCxC"}]
["/*",null,{"$f":"'800111A GeneraXBRL'!$D$189","v":"Dirección deudor"},{"$f":"'800111A GeneraXBRL'!$C$189","v":"co-svsp-core:DireccionDeudorCxC"}]
["/*",null,{"$f":"'800111A GeneraXBRL'!$D$190","v":"Departamento deudor"},{"$f":"'800111A GeneraXBRL'!$C$190","v":"co-svsp-core:DepartamentoDeudorCxC"}]
[{"$f":"IF(G4512=\"\",\"/*\",\"\")","v":"/*"},null,{"$f":"'800111A GeneraXBRL'!$D$191","v":"Municipio deudor"},{"$f":"'800111A GeneraXBRL'!$C$191","v":"co-svsp-core:MunicipioDeudorCxC"}]
["/*",null,{"$f":"'800111A GeneraXBRL'!$D$192","v":"País deudor"},{"$f":"'800111A GeneraXBRL'!$C$192","v":"co-svsp-core:PaisDeudorCxC"}]
["/*",null,{"$f":"'800111A GeneraXBRL'!$D$193","v":"Saldo cuentas por cobrar"},{"$f":"'800111A GeneraXBRL'!$C$193","v":"co-svsp-core:SaldoCuentasPorCobrarCxC"}]
["/*",null,"--153--"]
["/*",null,{"$f":"'800111A GeneraXBRL'!$D$182","v":"Tipo de documento del deudor"},{"$f":"'800111A GeneraXBRL'!$C$182","v":"co-svsp-core:TipoDeDocumentoDeudorCxC"}]
["/*",null,{"$f":"'800111A GeneraXBRL'!$D$183","v":"Número de identificación del deudor"},{"$f":"'800111A GeneraXBRL'!$C$183","v":"co-svsp-core:NumeroIdentificacionDeudorCxC"}]
["/*",null,{"$f":"'800111A GeneraXBRL'!$D$184","v":"Primer apellido deudor"},{"$f":"'800111A GeneraXBRL'!$C$184","v":"co-svsp-core:PrimerApellidoDeudorCxC"}]
["/*",null,{"$f":"'800111A GeneraXBRL'!$D$185","v":"Segundo apellido deudor"},{"$f":"'800111A GeneraXBRL'!$C$185","v":"co-svsp-core:SegundoApellidoDeudorCxC"}]
["/*",null,{"$f":"'800111A GeneraXBRL'!$D$186","v":"Primer nombre deudor"},{"$f":"'800111A GeneraXBRL'!$C$186","v":"co-svsp-core:PrimerNombreDeudorCxC"}]
["/*",null,{"$f":"'800111A GeneraXBRL'!$D$187","v":"Otros nombres deudor"},{"$f":"'800111A GeneraXBRL'!$C$187","v":"co-svsp-core:OtrosNombresDeudorCxC"}]
["/*",null,{"$f":"'800111A GeneraXBRL'!$D$188","v":"Razón Social deudor"},{"$f":"'800111A GeneraXBRL'!$C$188","v":"co-svsp-core:RazonSocialDeudorCxC"}]
["/*",null,{"$f":"'800111A GeneraXBRL'!$D$189","v":"Dirección deudor"},{"$f":"'800111A GeneraXBRL'!$C$189","v":"co-svsp-core:DireccionDeudorCxC"}]
["/*",null,{"$f":"'800111A GeneraXBRL'!$D$190","v":"Departamento deudor"},{"$f":"'800111A GeneraXBRL'!$C$190","v":"co-svsp-core:DepartamentoDeudorCxC"}]
["/*",null,{"$f":"'800111A GeneraXBRL'!$D$191","v":"Municipio deudor"},{"$f":"'800111A GeneraXBRL'!$C$191","v":"co-svsp-core:MunicipioDeudorCxC"}]
["/*",null,{"$f":"'800111A GeneraXBRL'!$D$192","v":"País deudor"},{"$f":"'800111A GeneraXBRL'!$C$192","v":"co-svsp-core:PaisDeudorCxC"}]
["/*",null,{"$f":"'800111A GeneraXBRL'!$D$193","v":"Saldo cuentas por cobrar"},{"$f":"'800111A GeneraXBRL'!$C$193","v":"co-svsp-core:SaldoCuentasPorCobrarCxC"}]
["/*",null,"--154--"]
["/*",null,{"$f":"'800111A GeneraXBRL'!$D$182","v":"Tipo de documento del deudor"},{"$f":"'800111A GeneraXBRL'!$C$182","v":"co-svsp-core:TipoDeDocumentoDeudorCxC"}]
["/*",null,{"$f":"'800111A GeneraXBRL'!$D$183","v":"Número de identificación del deudor"},{"$f":"'800111A GeneraXBRL'!$C$183","v":"co-svsp-core:NumeroIdentificacionDeudorCxC"}]
["/*",null,{"$f":"'800111A GeneraXBRL'!$D$184","v":"Primer apellido deudor"},{"$f":"'800111A GeneraXBRL'!$C$184","v":"co-svsp-core:PrimerApellidoDeudorCxC"}]
["/*",null,{"$f":"'800111A GeneraXBRL'!$D$185","v":"Segundo apellido deudor"},{"$f":"'800111A GeneraXBRL'!$C$185","v":"co-svsp-core:SegundoApellidoDeudorCxC"}]
["/*",null,{"$f":"'800111A GeneraXBRL'!$D$186","v":"Primer nombre deudor"},{"$f":"'800111A GeneraXBRL'!$C$186","v":"co-svsp-core:PrimerNombreDeudorCxC"}]
["/*",null,{"$f":"'800111A GeneraXBRL'!$D$187","v":"Otros nombres deudor"},{"$f":"'800111A GeneraXBRL'!$C$187","v":"co-svsp-core:OtrosNombresDeudorCxC"}]
["/*",null,{"$f":"'800111A GeneraXBRL'!$D$188","v":"Razón Social deudor"},{"$f":"'800111A GeneraXBRL'!$C$188","v":"co-svsp-core:RazonSocialDeudorCxC"}]
["/*",null,{"$f":"'800111A GeneraXBRL'!$D$189","v":"Dirección deudor"},{"$f":"'800111A GeneraXBRL'!$C$189","v":"co-svsp-core:DireccionDeudorCxC"}]
["/*",null,{"$f":"'800111A GeneraXBRL'!$D$190","v":"Departamento deudor"},{"$f":"'800111A GeneraXBRL'!$C$190","v":"co-svsp-core:DepartamentoDeudorCxC"}]
["/*",null,{"$f":"'800111A GeneraXBRL'!$D$191","v":"Municipio deudor"},{"$f":"'800111A GeneraXBRL'!$C$191","v":"co-svsp-core:MunicipioDeudorCxC"}]
["/*",null,{"$f":"'800111A GeneraXBRL'!$D$192","v":"País deudor"},{"$f":"'800111A GeneraXBRL'!$C$192","v":"co-svsp-core:PaisDeudorCxC"}]
["/*",null,{"$f":"'800111A GeneraXBRL'!$D$193","v":"Saldo cuentas por cobrar"},{"$f":"'800111A GeneraXBRL'!$C$193","v":"co-svsp-core:SaldoCuentasPorCobrarCxC"}]
["/*",null,"--155--"]
["/*",null,{"$f":"'800111A GeneraXBRL'!$D$182","v":"Tipo de documento del deudor"},{"$f":"'800111A GeneraXBRL'!$C$182","v":"co-svsp-core:TipoDeDocumentoDeudorCxC"}]
["/*",null,{"$f":"'800111A GeneraXBRL'!$D$183","v":"Número de identificación del deudor"},{"$f":"'800111A GeneraXBRL'!$C$183","v":"co-svsp-core:NumeroIdentificacionDeudorCxC"}]
["/*",null,{"$f":"'800111A GeneraXBRL'!$D$184","v":"Primer apellido deudor"},{"$f":"'800111A GeneraXBRL'!$C$184","v":"co-svsp-core:PrimerApellidoDeudorCxC"}]
["/*",null,{"$f":"'800111A GeneraXBRL'!$D$185","v":"Segundo apellido deudor"},{"$f":"'800111A GeneraXBRL'!$C$185","v":"co-svsp-core:SegundoApellidoDeudorCxC"}]
["/*",null,{"$f":"'800111A GeneraXBRL'!$D$186","v":"Primer nombre deudor"},{"$f":"'800111A GeneraXBRL'!$C$186","v":"co-svsp-core:PrimerNombreDeudorCxC"}]
["/*",null,{"$f":"'800111A GeneraXBRL'!$D$187","v":"Otros nombres deudor"},{"$f":"'800111A GeneraXBRL'!$C$187","v":"co-svsp-core:OtrosNombresDeudorCxC"}]
["/*",null,{"$f":"'800111A GeneraXBRL'!$D$188","v":"Razón Social deudor"},{"$f":"'800111A GeneraXBRL'!$C$188","v":"co-svsp-core:RazonSocialDeudorCxC"}]
["/*",null,{"$f":"'800111A GeneraXBRL'!$D$189","v":"Dirección deudor"},{"$f":"'800111A GeneraXBRL'!$C$189","v":"co-svsp-core:DireccionDeudorCxC"}]
["/*",null,{"$f":"'800111A GeneraXBRL'!$D$190","v":"Departamento deudor"},{"$f":"'800111A GeneraXBRL'!$C$190","v":"co-svsp-core:DepartamentoDeudorCxC"}]
["/*",null,{"$f":"'800111A GeneraXBRL'!$D$191","v":"Municipio deudor"},{"$f":"'800111A GeneraXBRL'!$C$191","v":"co-svsp-core:MunicipioDeudorCxC"}]
["/*",null,{"$f":"'800111A GeneraXBRL'!$D$192","v":"País deudor"},{"$f":"'800111A GeneraXBRL'!$C$192","v":"co-svsp-core:PaisDeudorCxC"}]
["/*",null,{"$f":"'800111A GeneraXBRL'!$D$193","v":"Saldo cuentas por cobrar"},{"$f":"'800111A GeneraXBRL'!$C$193","v":"co-svsp-core:SaldoCuentasPorCobrarCxC"}]
["/*",null,"--156--"]
["/*",null,{"$f":"'800111A GeneraXBRL'!$D$182","v":"Tipo de documento del deudor"},{"$f":"'800111A GeneraXBRL'!$C$182","v":"co-svsp-core:TipoDeDocumentoDeudorCxC"}]
["/*",null,{"$f":"'800111A GeneraXBRL'!$D$183","v":"Número de identificación del deudor"},{"$f":"'800111A GeneraXBRL'!$C$183","v":"co-svsp-core:NumeroIdentificacionDeudorCxC"}]
["/*",null,{"$f":"'800111A GeneraXBRL'!$D$184","v":"Primer apellido deudor"},{"$f":"'800111A GeneraXBRL'!$C$184","v":"co-svsp-core:PrimerApellidoDeudorCxC"}]
["/*",null,{"$f":"'800111A GeneraXBRL'!$D$185","v":"Segundo apellido deudor"},{"$f":"'800111A GeneraXBRL'!$C$185","v":"co-svsp-core:SegundoApellidoDeudorCxC"}]
["/*",null,{"$f":"'800111A GeneraXBRL'!$D$186","v":"Primer nombre deudor"},{"$f":"'800111A GeneraXBRL'!$C$186","v":"co-svsp-core:PrimerNombreDeudorCxC"}]
["/*",null,{"$f":"'800111A GeneraXBRL'!$D$187","v":"Otros nombres deudor"},{"$f":"'800111A GeneraXBRL'!$C$187","v":"co-svsp-core:OtrosNombresDeudorCxC"}]
["/*",null,{"$f":"'800111A GeneraXBRL'!$D$188","v":"Razón Social deudor"},{"$f":"'800111A GeneraXBRL'!$C$188","v":"co-svsp-core:RazonSocialDeudorCxC"}]
["/*",null,{"$f":"'800111A GeneraXBRL'!$D$189","v":"Dirección deudor"},{"$f":"'800111A GeneraXBRL'!$C$189","v":"co-svsp-core:DireccionDeudorCxC"}]
["/*",null,{"$f":"'800111A GeneraXBRL'!$D$190","v":"Departamento deudor"},{"$f":"'800111A GeneraXBRL'!$C$190","v":"co-svsp-core:DepartamentoDeudorCxC"}]
["/*",null,{"$f":"'800111A GeneraXBRL'!$D$191","v":"Municipio deudor"},{"$f":"'800111A GeneraXBRL'!$C$191","v":"co-svsp-core:MunicipioDeudorCxC"}]
["/*",null,{"$f":"'800111A GeneraXBRL'!$D$192","v":"País deudor"},{"$f":"'800111A GeneraXBRL'!$C$192","v":"co-svsp-core:PaisDeudorCxC"}]
["/*",null,{"$f":"'800111A GeneraXBRL'!$D$193","v":"Saldo cuentas por cobrar"},{"$f":"'800111A GeneraXBRL'!$C$193","v":"co-svsp-core:SaldoCuentasPorCobrarCxC"}]
["/*",null,"--157--"]
["/*",null,{"$f":"'800111A GeneraXBRL'!$D$182","v":"Tipo de documento del deudor"},{"$f":"'800111A GeneraXBRL'!$C$182","v":"co-svsp-core:TipoDeDocumentoDeudorCxC"}]
["/*",null,{"$f":"'800111A GeneraXBRL'!$D$183","v":"Número de identificación del deudor"},{"$f":"'800111A GeneraXBRL'!$C$183","v":"co-svsp-core:NumeroIdentificacionDeudorCxC"}]
["/*",null,{"$f":"'800111A GeneraXBRL'!$D$184","v":"Primer apellido deudor"},{"$f":"'800111A GeneraXBRL'!$C$184","v":"co-svsp-core:PrimerApellidoDeudorCxC"}]
["/*",null,{"$f":"'800111A GeneraXBRL'!$D$185","v":"Segundo apellido deudor"},{"$f":"'800111A GeneraXBRL'!$C$185","v":"co-svsp-core:SegundoApellidoDeudorCxC"}]
["/*",null,{"$f":"'800111A GeneraXBRL'!$D$186","v":"Primer nombre deudor"},{"$f":"'800111A GeneraXBRL'!$C$186","v":"co-svsp-core:PrimerNombreDeudorCxC"}]
["/*",null,{"$f":"'800111A GeneraXBRL'!$D$187","v":"Otros nombres deudor"},{"$f":"'800111A GeneraXBRL'!$C$187","v":"co-svsp-core:OtrosNombresDeudorCxC"}]
["/*",null,{"$f":"'800111A GeneraXBRL'!$D$188","v":"Razón Social deudor"},{"$f":"'800111A GeneraXBRL'!$C$188","v":"co-svsp-core:RazonSocialDeudorCxC"}]
["/*",null,{"$f":"'800111A GeneraXBRL'!$D$189","v":"Dirección deudor"},{"$f":"'800111A GeneraXBRL'!$C$189","v":"co-svsp-core:DireccionDeudorCxC"}]
[{"$f":"IF(G4576=\"\",\"/*\",\"\")","v":"/*"},null,{"$f":"'800111A GeneraXBRL'!$D$190","v":"Departamento deudor"},{"$f":"'800111A GeneraXBRL'!$C$190","v":"co-svsp-core:DepartamentoDeudorCxC"}]
["/*",null,{"$f":"'800111A GeneraXBRL'!$D$191","v":"Municipio deudor"},{"$f":"'800111A GeneraXBRL'!$C$191","v":"co-svsp-core:MunicipioDeudorCxC"}]
["/*",null,{"$f":"'800111A GeneraXBRL'!$D$192","v":"País deudor"},{"$f":"'800111A GeneraXBRL'!$C$192","v":"co-svsp-core:PaisDeudorCxC"}]
["/*",null,{"$f":"'800111A GeneraXBRL'!$D$193","v":"Saldo cuentas por cobrar"},{"$f":"'800111A GeneraXBRL'!$C$193","v":"co-svsp-core:SaldoCuentasPorCobrarCxC"}]
["/*",null,"--158--"]
["/*",null,{"$f":"'800111A GeneraXBRL'!$D$182","v":"Tipo de documento del deudor"},{"$f":"'800111A GeneraXBRL'!$C$182","v":"co-svsp-core:TipoDeDocumentoDeudorCxC"}]
["/*",null,{"$f":"'800111A GeneraXBRL'!$D$183","v":"Número de identificación del deudor"},{"$f":"'800111A GeneraXBRL'!$C$183","v":"co-svsp-core:NumeroIdentificacionDeudorCxC"}]
["/*",null,{"$f":"'800111A GeneraXBRL'!$D$184","v":"Primer apellido deudor"},{"$f":"'800111A GeneraXBRL'!$C$184","v":"co-svsp-core:PrimerApellidoDeudorCxC"}]
["/*",null,{"$f":"'800111A GeneraXBRL'!$D$185","v":"Segundo apellido deudor"},{"$f":"'800111A GeneraXBRL'!$C$185","v":"co-svsp-core:SegundoApellidoDeudorCxC"}]
["/*",null,{"$f":"'800111A GeneraXBRL'!$D$186","v":"Primer nombre deudor"},{"$f":"'800111A GeneraXBRL'!$C$186","v":"co-svsp-core:PrimerNombreDeudorCxC"}]
["/*",null,{"$f":"'800111A GeneraXBRL'!$D$187","v":"Otros nombres deudor"},{"$f":"'800111A GeneraXBRL'!$C$187","v":"co-svsp-core:OtrosNombresDeudorCxC"}]
["/*",null,{"$f":"'800111A GeneraXBRL'!$D$188","v":"Razón Social deudor"},{"$f":"'800111A GeneraXBRL'!$C$188","v":"co-svsp-core:RazonSocialDeudorCxC"}]
["/*",null,{"$f":"'800111A GeneraXBRL'!$D$189","v":"Dirección deudor"},{"$f":"'800111A GeneraXBRL'!$C$189","v":"co-svsp-core:DireccionDeudorCxC"}]
["/*",null,{"$f":"'800111A GeneraXBRL'!$D$190","v":"Departamento deudor"},{"$f":"'800111A GeneraXBRL'!$C$190","v":"co-svsp-core:DepartamentoDeudorCxC"}]
["/*",null,{"$f":"'800111A GeneraXBRL'!$D$191","v":"Municipio deudor"},{"$f":"'800111A GeneraXBRL'!$C$191","v":"co-svsp-core:MunicipioDeudorCxC"}]
["/*",null,{"$f":"'800111A GeneraXBRL'!$D$192","v":"País deudor"},{"$f":"'800111A GeneraXBRL'!$C$192","v":"co-svsp-core:PaisDeudorCxC"}]
["/*",null,{"$f":"'800111A GeneraXBRL'!$D$193","v":"Saldo cuentas por cobrar"},{"$f":"'800111A GeneraXBRL'!$C$193","v":"co-svsp-core:SaldoCuentasPorCobrarCxC"}]
["/*",null,"--159--"]
["/*",null,{"$f":"'800111A GeneraXBRL'!$D$182","v":"Tipo de documento del deudor"},{"$f":"'800111A GeneraXBRL'!$C$182","v":"co-svsp-core:TipoDeDocumentoDeudorCxC"}]
["/*",null,{"$f":"'800111A GeneraXBRL'!$D$183","v":"Número de identificación del deudor"},{"$f":"'800111A GeneraXBRL'!$C$183","v":"co-svsp-core:NumeroIdentificacionDeudorCxC"}]
["/*",null,{"$f":"'800111A GeneraXBRL'!$D$184","v":"Primer apellido deudor"},{"$f":"'800111A GeneraXBRL'!$C$184","v":"co-svsp-core:PrimerApellidoDeudorCxC"}]
["/*",null,{"$f":"'800111A GeneraXBRL'!$D$185","v":"Segundo apellido deudor"},{"$f":"'800111A GeneraXBRL'!$C$185","v":"co-svsp-core:SegundoApellidoDeudorCxC"}]
["/*",null,{"$f":"'800111A GeneraXBRL'!$D$186","v":"Primer nombre deudor"},{"$f":"'800111A GeneraXBRL'!$C$186","v":"co-svsp-core:PrimerNombreDeudorCxC"}]
["/*",null,{"$f":"'800111A GeneraXBRL'!$D$187","v":"Otros nombres deudor"},{"$f":"'800111A GeneraXBRL'!$C$187","v":"co-svsp-core:OtrosNombresDeudorCxC"}]
["/*",null,{"$f":"'800111A GeneraXBRL'!$D$188","v":"Razón Social deudor"},{"$f":"'800111A GeneraXBRL'!$C$188","v":"co-svsp-core:RazonSocialDeudorCxC"}]
["/*",null,{"$f":"'800111A GeneraXBRL'!$D$189","v":"Dirección deudor"},{"$f":"'800111A GeneraXBRL'!$C$189","v":"co-svsp-core:DireccionDeudorCxC"}]
["/*",null,{"$f":"'800111A GeneraXBRL'!$D$190","v":"Departamento deudor"},{"$f":"'800111A GeneraXBRL'!$C$190","v":"co-svsp-core:DepartamentoDeudorCxC"}]
["/*",null,{"$f":"'800111A GeneraXBRL'!$D$191","v":"Municipio deudor"},{"$f":"'800111A GeneraXBRL'!$C$191","v":"co-svsp-core:MunicipioDeudorCxC"}]
["/*",null,{"$f":"'800111A GeneraXBRL'!$D$192","v":"País deudor"},{"$f":"'800111A GeneraXBRL'!$C$192","v":"co-svsp-core:PaisDeudorCxC"}]
["",null,{"$f":"'800111A GeneraXBRL'!$D$193","v":"Saldo cuentas por cobrar"},{"$f":"'800111A GeneraXBRL'!$C$193","v":"co-svsp-core:SaldoCuentasPorCobrarCxC"},0,"peso",{"$f":"'800111A GeneraXBRL'!$FG$193","v":0},0,"http://www.xbrl.org/scheme/companyName",null,{"$f":"Periodos!$D$4","v":"2022-12-31"},{"$f":"'800111A GeneraXBRL'!$D$181","v":"co-svsp-core:DetalleCuentasXCobrar_Eje"},{"$f":"'800111A GeneraXBRL'!$FG$180","v":"co-svsp-core:DetalleCuentasXCobrarOtrasCuentasXCobrar51EnAdelante"}]
["/*",null,"--160--"]
["/*",null,{"$f":"'800111A GeneraXBRL'!$D$182","v":"Tipo de documento del deudor"},{"$f":"'800111A GeneraXBRL'!$C$182","v":"co-svsp-core:TipoDeDocumentoDeudorCxC"}]
["/*",null,{"$f":"'800111A GeneraXBRL'!$D$183","v":"Número de identificación del deudor"},{"$f":"'800111A GeneraXBRL'!$C$183","v":"co-svsp-core:NumeroIdentificacionDeudorCxC"}]
["/*",null,{"$f":"'800111A GeneraXBRL'!$D$184","v":"Primer apellido deudor"},{"$f":"'800111A GeneraXBRL'!$C$184","v":"co-svsp-core:PrimerApellidoDeudorCxC"}]
["/*",null,{"$f":"'800111A GeneraXBRL'!$D$185","v":"Segundo apellido deudor"},{"$f":"'800111A GeneraXBRL'!$C$185","v":"co-svsp-core:SegundoApellidoDeudorCxC"}]
["/*",null,{"$f":"'800111A GeneraXBRL'!$D$186","v":"Primer nombre deudor"},{"$f":"'800111A GeneraXBRL'!$C$186","v":"co-svsp-core:PrimerNombreDeudorCxC"}]
["/*",null,{"$f":"'800111A GeneraXBRL'!$D$187","v":"Otros nombres deudor"},{"$f":"'800111A GeneraXBRL'!$C$187","v":"co-svsp-core:OtrosNombresDeudorCxC"}]
["/*",null,{"$f":"'800111A GeneraXBRL'!$D$188","v":"Razón Social deudor"},{"$f":"'800111A GeneraXBRL'!$C$188","v":"co-svsp-core:RazonSocialDeudorCxC"}]
["/*",null,{"$f":"'800111A GeneraXBRL'!$D$189","v":"Dirección deudor"},{"$f":"'800111A GeneraXBRL'!$C$189","v":"co-svsp-core:DireccionDeudorCxC"}]
["/*",null,{"$f":"'800111A GeneraXBRL'!$D$190","v":"Departamento deudor"},{"$f":"'800111A GeneraXBRL'!$C$190","v":"co-svsp-core:DepartamentoDeudorCxC"}]
["/*",null,{"$f":"'800111A GeneraXBRL'!$D$191","v":"Municipio deudor"},{"$f":"'800111A GeneraXBRL'!$C$191","v":"co-svsp-core:MunicipioDeudorCxC"}]
["/*",null,{"$f":"'800111A GeneraXBRL'!$D$192","v":"País deudor"},{"$f":"'800111A GeneraXBRL'!$C$192","v":"co-svsp-core:PaisDeudorCxC"}]
["",null,{"$f":"'800111A GeneraXBRL'!$D$193","v":"Saldo cuentas por cobrar"},{"$f":"'800111A GeneraXBRL'!$C$193","v":"co-svsp-core:SaldoCuentasPorCobrarCxC"},0,"peso",{"$f":"'800111A GeneraXBRL'!$FH$193","v":0},0,"http://www.xbrl.org/scheme/companyName",null,{"$f":"Periodos!$D$4","v":"2022-12-31"},{"$f":"'800111A GeneraXBRL'!$D$181","v":"co-svsp-core:DetalleCuentasXCobrar_Eje"},{"$f":"'800111A GeneraXBRL'!$FH$180","v":"co-svsp-core:TotalDetalleCuentasXCobrarOtrasCuentasXCobrarMiembro"}]
["/*",null,"--161--"]
["/*",null,{"$f":"'800111A GeneraXBRL'!$D$182","v":"Tipo de documento del deudor"},{"$f":"'800111A GeneraXBRL'!$C$182","v":"co-svsp-core:TipoDeDocumentoDeudorCxC"}]
["/*",null,{"$f":"'800111A GeneraXBRL'!$D$183","v":"Número de identificación del deudor"},{"$f":"'800111A GeneraXBRL'!$C$183","v":"co-svsp-core:NumeroIdentificacionDeudorCxC"}]
["/*",null,{"$f":"'800111A GeneraXBRL'!$D$184","v":"Primer apellido deudor"},{"$f":"'800111A GeneraXBRL'!$C$184","v":"co-svsp-core:PrimerApellidoDeudorCxC"}]
["/*",null,{"$f":"'800111A GeneraXBRL'!$D$185","v":"Segundo apellido deudor"},{"$f":"'800111A GeneraXBRL'!$C$185","v":"co-svsp-core:SegundoApellidoDeudorCxC"}]
["/*",null,{"$f":"'800111A GeneraXBRL'!$D$186","v":"Primer nombre deudor"},{"$f":"'800111A GeneraXBRL'!$C$186","v":"co-svsp-core:PrimerNombreDeudorCxC"}]
["/*",null,{"$f":"'800111A GeneraXBRL'!$D$187","v":"Otros nombres deudor"},{"$f":"'800111A GeneraXBRL'!$C$187","v":"co-svsp-core:OtrosNombresDeudorCxC"}]
["/*",null,{"$f":"'800111A GeneraXBRL'!$D$188","v":"Razón Social deudor"},{"$f":"'800111A GeneraXBRL'!$C$188","v":"co-svsp-core:RazonSocialDeudorCxC"}]
["/*",null,{"$f":"'800111A GeneraXBRL'!$D$189","v":"Dirección deudor"},{"$f":"'800111A GeneraXBRL'!$C$189","v":"co-svsp-core:DireccionDeudorCxC"}]
["/*",null,{"$f":"'800111A GeneraXBRL'!$D$190","v":"Departamento deudor"},{"$f":"'800111A GeneraXBRL'!$C$190","v":"co-svsp-core:DepartamentoDeudorCxC"}]
["/*",null,{"$f":"'800111A GeneraXBRL'!$D$191","v":"Municipio deudor"},{"$f":"'800111A GeneraXBRL'!$C$191","v":"co-svsp-core:MunicipioDeudorCxC"}]
["/*",null,{"$f":"'800111A GeneraXBRL'!$D$192","v":"País deudor"},{"$f":"'800111A GeneraXBRL'!$C$192","v":"co-svsp-core:PaisDeudorCxC"}]
["",null,{"$f":"'800111A GeneraXBRL'!$D$193","v":"Saldo cuentas por cobrar"},{"$f":"'800111A GeneraXBRL'!$C$193","v":"co-svsp-core:SaldoCuentasPorCobrarCxC"},0,"peso",{"$f":"'800111A GeneraXBRL'!$FI$193","v":0},0,"http://www.xbrl.org/scheme/companyName",null,{"$f":"Periodos!$D$4","v":"2022-12-31"},{"$f":"'800111A GeneraXBRL'!$D$181","v":"co-svsp-core:DetalleCuentasXCobrar_Eje"},{"$f":"'800111A GeneraXBRL'!$FI$180","v":"co-svsp-core:TotalDetalleCuentasXCobrarMiembro"}]
["/*"]
["/*",null,"800500 - Lista de Notas"]
["/*",null,"--01--"]
["/*",null,{"$f":"'800500 - Lista de Notas'!$E$14","v":"Información a revelar sobre notas y otra información explicativa [bloque de texto]"},{"$f":"'800500 - Lista de Notas'!$D$14","v":"ifrs-full:DisclosureOfNotesAndOtherExplanatoryInformationExplanatory"}]
["/*",null,{"$f":"'800500 - Lista de Notas'!$E$15","v":"Información a revelar sobre juicios y estimaciones contables [bloque de texto]"},{"$f":"'800500 - Lista de Notas'!$D$15","v":"ifrs-full:DisclosureOfAccountingJudgementsAndEstimatesExplanatory"}]
["/*",null,{"$f":"'800500 - Lista de Notas'!$E$16","v":"Información a revelar sobre gastos acumulados (devengados) y otros pasivos [bloque de texto]"},{"$f":"'800500 - Lista de Notas'!$D$16","v":"ifrs-full:DisclosureOfAccruedExpensesAndOtherLiabilitiesExplanatory"}]
["/*",null,{"$f":"'800500 - Lista de Notas'!$E$17","v":"Información a revelar sobre correcciones de valor por pérdidas crediticias [bloque de texto]"},{"$f":"'800500 - Lista de Notas'!$D$17","v":"ifrs-full:DisclosureOfAllowanceForCreditLossesExplanatory"}]
["/*",null,{"$f":"'800500 - Lista de Notas'!$E$18","v":"Información a revelar sobre asociadas [bloque de texto]"},{"$f":"'800500 - Lista de Notas'!$D$18","v":"ifrs-full:DisclosureOfSignificantInvestmentsInAssociatesExplanatory"}]
[{"$f":"IF(G4640=\"\",\"/*\",\"\")","v":"/*"},null,{"$f":"'800500 - Lista de Notas'!$E$19","v":"Información a revelar sobre remuneración de los auditores [bloque de texto]"},{"$f":"'800500 - Lista de Notas'!$D$19","v":"ifrs-full:DisclosureOfAuditorsRemunerationExplanatory"}]
["/*",null,{"$f":"'800500 - Lista de Notas'!$E$20","v":"Información a revelar sobre la autorización de los estados financieros [bloque de texto]"},{"$f":"'800500 - Lista de Notas'!$D$20","v":"ifrs-full:DisclosureOfAuthorisationOfFinancialStatementsExplanatory"}]
["/*",null,{"$f":"'800500 - Lista de Notas'!$E$21","v":"información a revelar sobre activos financieros disponibles para la venta [bloque de texto]"},{"$f":"'800500 - Lista de Notas'!$D$21","v":"ifrs-full:DisclosureOfAvailableforsaleAssetsExplanatory"}]
["/*",null,{"$f":"'800500 - Lista de Notas'!$E$22","v":"Información a revelar sobre criterios de consolidación [bloque de texto]"},{"$f":"'800500 - Lista de Notas'!$D$22","v":"ifrs-full:DisclosureOfBasisOfConsolidationExplanatory"}]
["/*",null,{"$f":"'800500 - Lista de Notas'!$E$23","v":"Información a revelar sobre criterios de elaboración de los estados financieros [bloque de texto]"},{"$f":"'800500 - Lista de Notas'!$D$23","v":"ifrs-full:DisclosureOfBasisOfPreparationOfFinancialStatementsExplanatory"}]
["/*",null,{"$f":"'800500 - Lista de Notas'!$E$24","v":"Información a revelar sobre préstamos [bloque de texto]"},{"$f":"'800500 - Lista de Notas'!$D$24","v":"ifrs-full:DisclosureOfBorrowingsExplanatory"}]
["/*",null,{"$f":"'800500 - Lista de Notas'!$E$25","v":"Información a revelar sobre combinaciones de negocios [bloque de texto]"},{"$f":"'800500 - Lista de Notas'!$D$25","v":"ifrs-full:DisclosureOfBusinessCombinationsExplanatory"}]
["/*",null,{"$f":"'800500 - Lista de Notas'!$E$26","v":"Información a revelar sobre saldos bancarios y de efectivo en bancos centrales [bloque de texto]"},{"$f":"'800500 - Lista de Notas'!$D$26","v":"ifrs-full:DisclosureOfCashAndBankBalancesAtCentralBanksExplanatory"}]
["/*",null,{"$f":"'800500 - Lista de Notas'!$E$27","v":"Información a revelar sobre efectivo y equivalentes al efectivo [bloque de texto]"},{"$f":"'800500 - Lista de Notas'!$D$27","v":"ifrs-full:DisclosureOfCashAndCashEquivalentsExplanatory"}]
["/*",null,{"$f":"'800500 - Lista de Notas'!$E$28","v":"Información a revelar sobre el estado de flujos de efectivo [bloque de texto]"},{"$f":"'800500 - Lista de Notas'!$D$28","v":"ifrs-full:DisclosureOfCashFlowStatementExplanatory"}]
["/*",null,{"$f":"'800500 - Lista de Notas'!$E$29","v":"Información a revelar sobre cambios en políticas contables, estimaciones contables y errores [bloque de texto]"},{"$f":"'800500 - Lista de Notas'!$D$29","v":"ifrs-full:DisclosureOfChangesInAccountingPoliciesAccountingEstimatesAndErrorsExplanatory"}]
["/*",null,{"$f":"'800500 - Lista de Notas'!$E$30","v":"Información a revelar sobre garantías colaterales [bloque de texto]"},{"$f":"'800500 - Lista de Notas'!$D$30","v":"ifrs-full:DisclosureOfCollateralExplanatory"}]
["/*",null,{"$f":"'800500 - Lista de Notas'!$E$31","v":"Información a revelar sobre reclamaciones y beneficios pagados [bloque de texto]"},{"$f":"'800500 - Lista de Notas'!$D$31","v":"ifrs-full:DisclosureOfClaimsAndBenefitsPaidExplanatory"}]
["/*",null,{"$f":"'800500 - Lista de Notas'!$E$32","v":"Información a revelar sobre compromisos y pasivos contingentes [bloque de texto]"},{"$f":"'800500 - Lista de Notas'!$D$32","v":"ifrs-full:DisclosureOfCommitmentsAndContingentLiabilitiesExplanatory"}]
["/*",null,{"$f":"'800500 - Lista de Notas'!$E$33","v":"Información a revelar sobre costos de ventas [bloque de texto]"},{"$f":"'800500 - Lista de Notas'!$D$33","v":"ifrs-full:DisclosureOfCostOfSalesExplanatory"}]
["/*",null,{"$f":"'800500 - Lista de Notas'!$E$34","v":"Información a revelar sobre riesgo crediticio [bloque de texto]"},{"$f":"'800500 - Lista de Notas'!$D$34","v":"ifrs-full:DisclosureOfCreditRiskExplanatory"}]
["/*",null,{"$f":"'800500 - Lista de Notas'!$E$35","v":"Información a revelar sobre instrumentos de deuda [bloque de texto]"},{"$f":"'800500 - Lista de Notas'!$D$35","v":"ifrs-full:DisclosureOfDebtSecuritiesExplanatory"}]
["/*",null,{"$f":"'800500 - Lista de Notas'!$E$36","v":"Información a revelar sobre costos de adquisición diferidos que surgen de contratos de seguro [bloque de texto]"},{"$f":"'800500 - Lista de Notas'!$D$36","v":"ifrs-full:DisclosureOfDeferredAcquisitionCostsArisingFromInsuranceContractsExplanatory"}]
["/*",null,{"$f":"'800500 - Lista de Notas'!$E$37","v":"Información a revelar sobre ingresos diferidos [bloque de texto]"},{"$f":"'800500 - Lista de Notas'!$D$37","v":"ifrs-full:DisclosureOfDeferredIncomeExplanatory"}]
["/*",null,{"$f":"'800500 - Lista de Notas'!$E$38","v":"Información a revelar sobre impuestos diferidos [bloque de texto]"},{"$f":"'800500 - Lista de Notas'!$D$38","v":"ifrs-full:DisclosureOfDeferredTaxesExplanatory"}]
["/*",null,{"$f":"'800500 - Lista de Notas'!$E$39","v":"Información a revelar sobre depósitos de bancos [bloque de texto]"},{"$f":"'800500 - Lista de Notas'!$D$39","v":"ifrs-full:DisclosureOfDepositsFromBanksExplanatory"}]
["/*",null,{"$f":"'800500 - Lista de Notas'!$E$40","v":"Información a revelar sobre depósitos de clientes [bloque de texto]"},{"$f":"'800500 - Lista de Notas'!$D$40","v":"ifrs-full:DisclosureOfDepositsFromCustomersExplanatory"}]
["/*",null,{"$f":"'800500 - Lista de Notas'!$E$41","v":"Información a revelar sobre gastos por depreciación y amortización [bloque de texto]"},{"$f":"'800500 - Lista de Notas'!$D$41","v":"ifrs-full:DisclosureOfDepreciationAndAmortisationExpenseExplanatory"}]
["/*",null,{"$f":"'800500 - Lista de Notas'!$E$42","v":"Información a revelar sobre instrumentos financieros derivados [bloque de texto]"},{"$f":"'800500 - Lista de Notas'!$D$42","v":"ifrs-full:DisclosureOfDerivativeFinancialInstrumentsExplanatory"}]
["/*",null,{"$f":"'800500 - Lista de Notas'!$E$43","v":"Información a revelar sobre operaciones discontinuadas [bloque de texto]"},{"$f":"'800500 - Lista de Notas'!$D$43","v":"ifrs-full:DisclosureOfDiscontinuedOperationsExplanatory"}]
["/*",null,{"$f":"'800500 - Lista de Notas'!$E$44","v":"Información a revelar sobre dividendos [bloque de texto]"},{"$f":"'800500 - Lista de Notas'!$D$44","v":"ifrs-full:DisclosureOfDividendsExplanatory"}]
["/*",null,{"$f":"'800500 - Lista de Notas'!$E$45","v":"Información a revelar sobre ganancias por acción [bloque de texto]"},{"$f":"'800500 - Lista de Notas'!$D$45","v":"ifrs-full:DisclosureOfEarningsPerShareExplanatory"}]
["/*",null,{"$f":"'800500 - Lista de Notas'!$E$46","v":"Información a revelar sobre el efecto de las variaciones en las tasas de cambio de la moneda extranjera [bloque de texto]"},{"$f":"'800500 - Lista de Notas'!$D$46","v":"ifrs-full:DisclosureOfEffectOfChangesInForeignExchangeRatesExplanatory"}]
["/*",null,{"$f":"'800500 - Lista de Notas'!$E$47","v":"Información a revelar sobre beneficios a los empleados [bloque de texto]"},{"$f":"'800500 - Lista de Notas'!$D$47","v":"ifrs-full:DisclosureOfEmployeeBenefitsExplanatory"}]
["/*",null,{"$f":"'800500 - Lista de Notas'!$E$48","v":"Información a revelar sobre los segmentos de operación de la entidad [bloque de texto]"},{"$f":"'800500 - Lista de Notas'!$D$48","v":"ifrs-full:DisclosureOfEntitysReportableSegmentsExplanatory"}]
["/*",null,{"$f":"'800500 - Lista de Notas'!$E$49","v":"Información a revelar sobre hechos ocurridos después del periodo sobre el que se informa [bloque de texto]"},{"$f":"'800500 - Lista de Notas'!$D$49","v":"ifrs-full:DisclosureOfEventsAfterReportingPeriodExplanatory"}]
["/*",null,{"$f":"'800500 - Lista de Notas'!$E$50","v":"Descripción de la naturaleza de hechos ocurridos después del periodo sobre el que se informa que no implican ajuste"},{"$f":"'800500 - Lista de Notas'!$D$50","v":"ifrs-full:DescriptionOfNatureOfNonadjustingEventAfterReportingPeriod"}]
["/*",null,{"$f":"'800500 - Lista de Notas'!$E$51","v":"Explicación del efecto financiero de hechos ocurridos después del periodo sobre el que se informa que no implican ajuste [bloque de texto]"},{"$f":"'800500 - Lista de Notas'!$D$51","v":"ifrs-full:ExplanationOfFinancialEffectOfNonadjustingEventAfterReportingPeriod"}]
["/*",null,{"$f":"'800500 - Lista de Notas'!$E$52","v":"Información a revelar sobre gastos [bloque de texto]"},{"$f":"'800500 - Lista de Notas'!$D$52","v":"ifrs-full:DisclosureOfExpensesExplanatory"}]
["/*",null,{"$f":"'800500 - Lista de Notas'!$E$53","v":"Información a revelar sobre gastos por naturaleza [bloque de texto]"},{"$f":"'800500 - Lista de Notas'!$D$53","v":"ifrs-full:DisclosureOfExpensesByNatureExplanatory"}]
["/*",null,{"$f":"'800500 - Lista de Notas'!$E$54","v":"Información a revelar sobre activos para exploración y evaluación [bloque de texto]"},{"$f":"'800500 - Lista de Notas'!$D$54","v":"ifrs-full:DisclosureOfExplorationAndEvaluationAssetsExplanatory"}]
["/*",null,{"$f":"'800500 - Lista de Notas'!$E$55","v":"Información a revelar sobre medición del valor razonable [bloque de texto]"},{"$f":"'800500 - Lista de Notas'!$D$55","v":"ifrs-full:DisclosureOfFairValueMeasurementExplanatory"}]
["/*",null,{"$f":"'800500 - Lista de Notas'!$E$56","v":"Información a revelar sobre el valor razonable de instrumentos financieros [bloque de texto]"},{"$f":"'800500 - Lista de Notas'!$D$56","v":"ifrs-full:DisclosureOfFairValueOfFinancialInstrumentsExplanatory"}]
["/*",null,{"$f":"'800500 - Lista de Notas'!$E$57","v":"Información a revelar sobre ingresos (gastos) por primas y comisiones [bloque de texto]"},{"$f":"'800500 - Lista de Notas'!$D$57","v":"ifrs-full:DisclosureOfFeeAndCommissionIncomeExpenseExplanatory"}]
["/*",null,{"$f":"'800500 - Lista de Notas'!$E$58","v":"Información a revelar sobre costos financieros [bloque de texto]"},{"$f":"'800500 - Lista de Notas'!$D$58","v":"ifrs-full:DisclosureOfFinanceCostExplanatory"}]
["/*",null,{"$f":"'800500 - Lista de Notas'!$E$59","v":"Información a revelar sobre ingresos (costos) financieros [bloque de texto]"},{"$f":"'800500 - Lista de Notas'!$D$59","v":"ifrs-full:DisclosureOfFinanceIncomeExpenseExplanatory"}]
["/*",null,{"$f":"'800500 - Lista de Notas'!$E$60","v":"Información a revelar sobre ingresos financieros [bloque de texto]"},{"$f":"'800500 - Lista de Notas'!$D$60","v":"ifrs-full:DisclosureOfFinanceIncomeExplanatory"}]
["/*",null,{"$f":"'800500 - Lista de Notas'!$E$61","v":"Información a revelar sobre activos financieros mantenidos para negociar [bloque de texto]"},{"$f":"'800500 - Lista de Notas'!$D$61","v":"ifrs-full:DisclosureOfFinancialAssetsHeldForTradingExplanatory"}]
["/*",null,{"$f":"'800500 - Lista de Notas'!$E$62","v":"Información a revelar sobre instrumentos financieros [bloque de texto]"},{"$f":"'800500 - Lista de Notas'!$D$62","v":"ifrs-full:DisclosureOfFinancialInstrumentsExplanatory"}]
["/*",null,{"$f":"'800500 - Lista de Notas'!$E$63","v":"Información a revelar sobre instrumentos financieros a valor razonable con cambios en resultados [bloque de texto]"},{"$f":"'800500 - Lista de Notas'!$D$63","v":"ifrs-full:DisclosureOfFinancialInstrumentsAtFairValueThroughProfitOrLossExplanatory"}]
["/*",null,{"$f":"'800500 - Lista de Notas'!$E$64","v":"Información a revelar sobre instrumentos financieros designados como a valor razonable con cambios en resultados [bloque de texto]"},{"$f":"'800500 - Lista de Notas'!$D$64","v":"ifrs-full:DisclosureOfFinancialInstrumentsDesignatedAtFairValueThroughProfitOrLossExplanatory"}]
["/*",null,{"$f":"'800500 - Lista de Notas'!$E$65","v":"Información a revelar sobre instrumentos financieros mantenidos para negociar [bloque de texto]"},{"$f":"'800500 - Lista de Notas'!$D$65","v":"ifrs-full:DisclosureOfFinancialInstrumentsHeldForTradingExplanatory"}]
["/*",null,{"$f":"'800500 - Lista de Notas'!$E$66","v":"Información a revelar sobre pasivos financieros mantenidos para negociar [bloque de texto]"},{"$f":"'800500 - Lista de Notas'!$D$66","v":"ifrs-full:DisclosureOfFinancialLiabilitiesHeldForTradingExplanatory"}]
["/*",null,{"$f":"'800500 - Lista de Notas'!$E$67","v":"Información a revelar sobre gestión del riesgo financiero [bloque de texto]"},{"$f":"'800500 - Lista de Notas'!$D$67","v":"ifrs-full:DisclosureOfFinancialRiskManagementExplanatory"}]
["/*",null,{"$f":"'800500 - Lista de Notas'!$E$68","v":"Información a revelar sobre la adopción por primera vez de las NIIF [bloque de texto]"},{"$f":"'800500 - Lista de Notas'!$D$68","v":"ifrs-full:DisclosureOfFirstTimeAdoptionExplanatory"}]
["/*",null,{"$f":"'800500 - Lista de Notas'!$E$69","v":"Información a revelar sobre gastos generales y administrativos [bloque de texto]"},{"$f":"'800500 - Lista de Notas'!$D$69","v":"ifrs-full:DisclosureOfGeneralAndAdministrativeExpenseExplanatory"}]
["/*",null,{"$f":"'800500 - Lista de Notas'!$E$70","v":"Información a revelar sobre información general sobre los estados financieros [bloque de texto]"},{"$f":"'800500 - Lista de Notas'!$D$70","v":"ifrs-full:DisclosureOfGeneralInformationAboutFinancialStatementsExplanatory"}]
["/*",null,{"$f":"'800500 - Lista de Notas'!$E$71","v":"Información a revelar sobre la hipótesis de negocio en marcha [bloque de texto]"},{"$f":"'800500 - Lista de Notas'!$D$71","v":"ifrs-full:DisclosureOfGoingConcernExplanatory"}]
["/*",null,{"$f":"'800500 - Lista de Notas'!$E$72","v":"Información a revelar sobre la plusvalía [bloque de texto]"},{"$f":"'800500 - Lista de Notas'!$D$72","v":"ifrs-full:DisclosureOfGoodwillExplanatory"}]
["/*",null,{"$f":"'800500 - Lista de Notas'!$E$73","v":"Información a revelar sobre subvenciones del gobierno [bloque de texto]"},{"$f":"'800500 - Lista de Notas'!$D$73","v":"ifrs-full:DisclosureOfGovernmentGrantsExplanatory"}]
["/*",null,{"$f":"'800500 - Lista de Notas'!$E$74","v":"Información a revelar sobre deterioro de valor de activos [bloque de texto]"},{"$f":"'800500 - Lista de Notas'!$D$74","v":"ifrs-full:DisclosureOfImpairmentOfAssetsExplanatory"}]
["/*",null,{"$f":"'800500 - Lista de Notas'!$E$75","v":"Información a revelar sobre impuestos a las ganancias [bloque de texto]"},{"$f":"'800500 - Lista de Notas'!$D$75","v":"ifrs-full:DisclosureOfIncomeTaxExplanatory"}]
["/*",null,{"$f":"'800500 - Lista de Notas'!$E$76","v":"Información a revelar sobre empleados [bloque de texto]"},{"$f":"'800500 - Lista de Notas'!$D$76","v":"ifrs-full:DisclosureOfInformationAboutEmployeesExplanatory"}]
["/*",null,{"$f":"'800500 - Lista de Notas'!$E$77","v":"Información a revelar sobre personal clave de la gerencia [bloque de texto]"},{"$f":"'800500 - Lista de Notas'!$D$77","v":"ifrs-full:DisclosureOfInformationAboutKeyManagementPersonnelExplanatory"}]
["/*",null,{"$f":"'800500 - Lista de Notas'!$E$78","v":"Información a revelar de contratos de seguro [bloque de texto]"},{"$f":"'800500 - Lista de Notas'!$D$78","v":"ifrs-full:DisclosureOfInsuranceContractsExplanatory"}]
["/*",null,{"$f":"'800500 - Lista de Notas'!$E$79","v":"Información a revelar sobre ingresos ordinarios por primas de seguro [bloque de texto]"},{"$f":"'800500 - Lista de Notas'!$D$79","v":"ifrs-full:DisclosureOfInsurancePremiumRevenueExplanatory"}]
["/*",null,{"$f":"'800500 - Lista de Notas'!$E$80","v":"Información a revelar sobre activos intangibles [bloque de texto]"},{"$f":"'800500 - Lista de Notas'!$D$80","v":"ifrs-full:DisclosureOfIntangibleAssetsExplanatory"}]
["/*",null,{"$f":"'800500 - Lista de Notas'!$E$81","v":"Información a revelar sobre activos intangibles y plusvalía [bloque de texto]"},{"$f":"'800500 - Lista de Notas'!$D$81","v":"ifrs-full:DisclosureOfIntangibleAssetsAndGoodwillExplanatory"}]
["/*",null,{"$f":"'800500 - Lista de Notas'!$E$82","v":"Información a revelar sobre gastos por intereses [bloque de texto]"},{"$f":"'800500 - Lista de Notas'!$D$82","v":"ifrs-full:DisclosureOfInterestExpenseExplanatory"}]
[{"$f":"IF(G4704=\"\",\"/*\",\"\")","v":"/*"},null,{"$f":"'800500 - Lista de Notas'!$E$83","v":"Información a revelar sobre ingresos por intereses [bloque de texto]"},{"$f":"'800500 - Lista de Notas'!$D$83","v":"ifrs-full:DisclosureOfInterestIncomeExplanatory"}]
["/*",null,{"$f":"'800500 - Lista de Notas'!$E$84","v":"Información a revelar sobre ingresos (gastos) por intereses [bloque de texto]"},{"$f":"'800500 - Lista de Notas'!$D$84","v":"ifrs-full:DisclosureOfInterestIncomeExpenseExplanatory"}]
["/*",null,{"$f":"'800500 - Lista de Notas'!$E$85","v":"Información a revelar sobre inventarios [bloque de texto]"},{"$f":"'800500 - Lista de Notas'!$D$85","v":"ifrs-full:DisclosureOfInventoriesExplanatory"}]
["/*",null,{"$f":"'800500 - Lista de Notas'!$E$86","v":"Información a revelar sobre pasivos por contratos de inversión [bloque de texto]"},{"$f":"'800500 - Lista de Notas'!$D$86","v":"ifrs-full:DisclosureOfInvestmentContractsLiabilitiesExplanatory"}]
["/*",null,{"$f":"'800500 - Lista de Notas'!$E$87","v":"Información a revelar sobre propiedades de inversión [bloque de texto]"},{"$f":"'800500 - Lista de Notas'!$D$87","v":"ifrs-full:DisclosureOfInvestmentPropertyExplanatory"}]
["/*",null,{"$f":"'800500 - Lista de Notas'!$E$88","v":"Información a revelar sobre inversiones contabilizadas utilizando el método de la participación [bloque de texto]"},{"$f":"'800500 - Lista de Notas'!$D$88","v":"ifrs-full:DisclosureOfInvestmentsAccountedForUsingEquityMethodExplanatory"}]
["/*",null,{"$f":"'800500 - Lista de Notas'!$E$89","v":"Información a revelar sobre inversiones distintas de las contabilizadas utilizando el método de la participación [bloque de texto]"},{"$f":"'800500 - Lista de Notas'!$D$89","v":"ifrs-full:DisclosureOfInvestmentsOtherThanInvestmentsAccountedForUsingEquityMethodExplanatory"}]
["/*",null,{"$f":"'800500 - Lista de Notas'!$E$90","v":"Información a revelar sobre capital emitido [bloque de texto]"},{"$f":"'800500 - Lista de Notas'!$D$90","v":"ifrs-full:DisclosureOfIssuedCapitalExplanatory"}]
["/*",null,{"$f":"'800500 - Lista de Notas'!$E$91","v":"Información a revelar sobre negocios conjuntos [bloque de texto]"},{"$f":"'800500 - Lista de Notas'!$D$91","v":"ifrs-full:DisclosureOfJointVenturesExplanatory"}]
["/*",null,{"$f":"'800500 - Lista de Notas'!$E$92","v":"Información a revelar anticipos por arrendamientos [bloque de texto]"},{"$f":"'800500 - Lista de Notas'!$D$92","v":"ifrs-full:DisclosureOfLeasePrepaymentsExplanatory"}]
["/*",null,{"$f":"'800500 - Lista de Notas'!$E$93","v":"Información a revelar sobre arrendamientos [bloque de texto]"},{"$f":"'800500 - Lista de Notas'!$D$93","v":"ifrs-full:DisclosureOfLeasesExplanatory"}]
["/*",null,{"$f":"'800500 - Lista de Notas'!$E$94","v":"Información a revelar sobre riesgo de liquidez [bloque de texto]"},{"$f":"'800500 - Lista de Notas'!$D$94","v":"ifrs-full:DisclosureOfLiquidityRiskExplanatory"}]
["/*",null,{"$f":"'800500 - Lista de Notas'!$E$95","v":"Información a revelar sobre préstamos y anticipos a bancos [bloque de texto]"},{"$f":"'800500 - Lista de Notas'!$D$95","v":"ifrs-full:DisclosureOfLoansAndAdvancesToBanksExplanatory"}]
["/*",null,{"$f":"'800500 - Lista de Notas'!$E$96","v":"Información a revelar sobre préstamos y anticipos a clientes [bloque de texto]"},{"$f":"'800500 - Lista de Notas'!$D$96","v":"ifrs-full:DisclosureOfLoansAndAdvancesToCustomersExplanatory"}]
["/*",null,{"$f":"'800500 - Lista de Notas'!$E$97","v":"Información a revelar sobre riesgo de mercado [bloque de texto]"},{"$f":"'800500 - Lista de Notas'!$D$97","v":"ifrs-full:DisclosureOfMarketRiskExplanatory"}]
["/*",null,{"$f":"'800500 - Lista de Notas'!$E$98","v":"Información a revelar sobre el valor de los activos netos atribuibles a los tenedores de las unidades de inversión [bloque de texto]"},{"$f":"'800500 - Lista de Notas'!$D$98","v":"ifrs-full:DisclosureOfNetAssetValueAttributableToUnitholdersExplanatory"}]
["/*",null,{"$f":"'800500 - Lista de Notas'!$E$99","v":"Información a revelar sobre participaciones no controladoras [bloque de texto]"},{"$f":"'800500 - Lista de Notas'!$D$99","v":"ifrs-full:DisclosureOfNoncontrollingInterestsExplanatory"}]
["/*",null,{"$f":"'800500 - Lista de Notas'!$E$100","v":"Información a revelar sobre activos no corrientes mantenidos para la venta y operaciones discontinuadas [bloque de texto]"},{"$f":"'800500 - Lista de Notas'!$D$100","v":"ifrs-full:DisclosureOfNoncurrentAssetsHeldForSaleAndDiscontinuedOperationsExplanatory"}]
["/*",null,{"$f":"'800500 - Lista de Notas'!$E$101","v":"Información a revelar sobre activos no corrientes o grupo de activos para su disposición clasificados como mantenidos para la venta [bloque de texto]"},{"$f":"'800500 - Lista de Notas'!$D$101","v":"ifrs-full:DisclosureOfNoncurrentAssetsOrDisposalGroupsClassifiedAsHeldForSaleExplanatory"}]
["/*",null,{"$f":"'800500 - Lista de Notas'!$E$102","v":"Información a revelar sobre objetivos, políticas y procesos para la gestión del capital [bloque de texto]"},{"$f":"'800500 - Lista de Notas'!$D$102","v":"ifrs-full:DisclosureOfObjectivesPoliciesAndProcessesForManagingCapitalExplanatory"}]
["/*",null,{"$f":"'800500 - Lista de Notas'!$E$103","v":"Información a revelar sobre otros activos [bloque de texto]"},{"$f":"'800500 - Lista de Notas'!$D$103","v":"ifrs-full:DisclosureOfOtherAssetsExplanatory"}]
["/*",null,{"$f":"'800500 - Lista de Notas'!$E$104","v":"Información a revelar sobre otros activos corrientes [bloque de texto]"},{"$f":"'800500 - Lista de Notas'!$D$104","v":"ifrs-full:DisclosureOfOtherCurrentAssetsExplanatory"}]
["/*",null,{"$f":"'800500 - Lista de Notas'!$E$105","v":"Información a revelar sobre otros pasivos corrientes [bloque de texto]"},{"$f":"'800500 - Lista de Notas'!$D$105","v":"ifrs-full:DisclosureOfOtherCurrentLiabilitiesExplanatory"}]
["/*",null,{"$f":"'800500 - Lista de Notas'!$E$106","v":"Información a revelar sobre otros pasivos [bloque de texto]"},{"$f":"'800500 - Lista de Notas'!$D$106","v":"ifrs-full:DisclosureOfOtherLiabilitiesExplanatory"}]
["/*",null,{"$f":"'800500 - Lista de Notas'!$E$107","v":"Información a revelar sobre otros activos no corrientes [bloque de texto]"},{"$f":"'800500 - Lista de Notas'!$D$107","v":"ifrs-full:DisclosureOfOtherNoncurrentAssetsExplanatory"}]
["/*",null,{"$f":"'800500 - Lista de Notas'!$E$108","v":"Información a revelar sobre otros pasivos no corrientes [bloque de texto]"},{"$f":"'800500 - Lista de Notas'!$D$108","v":"ifrs-full:DisclosureOfOtherNoncurrentLiabilitiesExplanatory"}]
["/*",null,{"$f":"'800500 - Lista de Notas'!$E$109","v":"Información a revelar sobre otros gastos de operación [bloque de texto]"},{"$f":"'800500 - Lista de Notas'!$D$109","v":"ifrs-full:DisclosureOfOtherOperatingExpenseExplanatory"}]
["/*",null,{"$f":"'800500 - Lista de Notas'!$E$110","v":"Información a revelar sobre otros ingresos (gastos) de operación [bloque de texto]"},{"$f":"'800500 - Lista de Notas'!$D$110","v":"ifrs-full:DisclosureOfOtherOperatingIncomeExpenseExplanatory"}]
["/*",null,{"$f":"'800500 - Lista de Notas'!$E$111","v":"Información a revelar sobre otros resultados de operación [bloque de texto]"},{"$f":"'800500 - Lista de Notas'!$D$111","v":"ifrs-full:DisclosureOfOtherOperatingIncomeExplanatory"}]
["/*",null,{"$f":"'800500 - Lista de Notas'!$E$112","v":"Información a revelar sobre anticipos y otros activos [bloque de texto]"},{"$f":"'800500 - Lista de Notas'!$D$112","v":"ifrs-full:DisclosureOfPrepaymentsAndOtherAssetsExplanatory"}]
["/*",null,{"$f":"'800500 - Lista de Notas'!$E$113","v":"Información a revelar sobre ganancias (pérdidas) por actividades de operación [bloque de texto]"},{"$f":"'800500 - Lista de Notas'!$D$113","v":"ifrs-full:DisclosureOfProfitLossFromOperatingActivitiesExplanatory"}]
["/*",null,{"$f":"'800500 - Lista de Notas'!$E$114","v":"Información a revelar sobre propiedades, planta y equipo [bloque de texto]"},{"$f":"'800500 - Lista de Notas'!$D$114","v":"ifrs-full:DisclosureOfPropertyPlantAndEquipmentExplanatory"}]
["/*",null,{"$f":"'800500 - Lista de Notas'!$E$115","v":"Información a revelar sobre provisiones [bloque de texto]"},{"$f":"'800500 - Lista de Notas'!$D$115","v":"ifrs-full:DisclosureOfProvisionsExplanatory"}]
["/*",null,{"$f":"'800500 - Lista de Notas'!$E$116","v":"Información a revelar sobre la reclasificación de instrumentos financieros [bloque de texto]"},{"$f":"'800500 - Lista de Notas'!$D$116","v":"ifrs-full:DisclosureOfReclassificationOfFinancialInstrumentsExplanatory"}]
["/*",null,{"$f":"'800500 - Lista de Notas'!$E$117","v":"Información a revelar sobre reaseguros [bloque de texto]"},{"$f":"'800500 - Lista de Notas'!$D$117","v":"ifrs-full:DisclosureOfReinsuranceExplanatory"}]
["/*",null,{"$f":"'800500 - Lista de Notas'!$E$118","v":"Información a revelar sobre partes relacionadas [bloque de texto]"},{"$f":"'800500 - Lista de Notas'!$D$118","v":"ifrs-full:DisclosureOfRelatedPartyExplanatory"}]
["/*",null,{"$f":"'800500 - Lista de Notas'!$E$119","v":"Información a revelar sobre acuerdos de recompra y de recompra inversa [bloque de texto]"},{"$f":"'800500 - Lista de Notas'!$D$119","v":"ifrs-full:DisclosureOfRepurchaseAndReverseRepurchaseAgreementsExplanatory"}]
["/*",null,{"$f":"'800500 - Lista de Notas'!$E$120","v":"Información a revelar sobre gastos de investigación y desarrollo [bloque de texto]"},{"$f":"'800500 - Lista de Notas'!$D$120","v":"ifrs-full:DisclosureOfResearchAndDevelopmentExpenseExplanatory"}]
["/*",null,{"$f":"'800500 - Lista de Notas'!$E$121","v":"Información a revelar sobre reservas dentro de patrimonio [bloque de texto]"},{"$f":"'800500 - Lista de Notas'!$D$121","v":"ifrs-full:DisclosureOfReservesAndOtherEquityInterestExplanatory"}]
["/*",null,{"$f":"'800500 - Lista de Notas'!$E$122","v":"Información a revelar sobre efectivo y equivalentes al efectivo restringidos [bloque de texto]"},{"$f":"'800500 - Lista de Notas'!$D$122","v":"ifrs-full:DisclosureOfRestrictedCashAndCashEquivalentsExplanatory"}]
["/*",null,{"$f":"'800500 - Lista de Notas'!$E$123","v":"Información a revelar sobre ingresos de actividades ordinarias [bloque de texto]"},{"$f":"'800500 - Lista de Notas'!$D$123","v":"ifrs-full:DisclosureOfRevenueExplanatory"}]
["/*",null,{"$f":"'800500 - Lista de Notas'!$E$124","v":"Información a revelar sobre acuerdos de concesión de servicios [bloque de texto]"},{"$f":"'800500 - Lista de Notas'!$D$124","v":"ifrs-full:DisclosureOfServiceConcessionArrangementsExplanatory"}]
["/*",null,{"$f":"'800500 - Lista de Notas'!$E$125","v":"Información a revelar sobre capital en acciones, reservas y otras participaciones en el patrimonio [bloque de texto]"},{"$f":"'800500 - Lista de Notas'!$D$125","v":"ifrs-full:DisclosureOfShareCapitalReservesAndOtherEquityInterestExplanatory"}]
["/*",null,{"$f":"'800500 - Lista de Notas'!$E$126","v":"Información a revelar sobre acuerdos con pagos basados en acciones [bloque de texto]"},{"$f":"'800500 - Lista de Notas'!$D$126","v":"ifrs-full:DisclosureOfSharebasedPaymentArrangementsExplanatory"}]
["/*",null,{"$f":"'800500 - Lista de Notas'!$E$127","v":"Información a revelar sobre pasivos subordinados [bloque de texto]"},{"$f":"'800500 - Lista de Notas'!$D$127","v":"ifrs-full:DisclosureOfSubordinatedLiabilitiesExplanatory"}]
["/*",null,{"$f":"'800500 - Lista de Notas'!$E$128","v":"Información a revelar sobre subsidiarias [bloque de texto]"},{"$f":"'800500 - Lista de Notas'!$D$128","v":"ifrs-full:DisclosureOfSignificantInvestmentsInSubsidiariesExplanatory"}]
["/*",null,{"$f":"'800500 - Lista de Notas'!$E$129","v":"Información a revelar sobre las políticas contables significativas [bloque de texto]"},{"$f":"'800500 - Lista de Notas'!$D$129","v":"ifrs-full:DisclosureOfSummaryOfSignificantAccountingPoliciesExplanatory"}]
["/*",null,{"$f":"'800500 - Lista de Notas'!$E$130","v":"Información a revelar sobre cuentas por cobrar y por pagar por impuestos [bloque de texto]"},{"$f":"'800500 - Lista de Notas'!$D$130","v":"ifrs-full:DisclosureOfTaxReceivablesAndPayablesExplanatory"}]
["/*",null,{"$f":"'800500 - Lista de Notas'!$E$131","v":"Información a revelar sobre acreedores comerciales y otras cuentas por pagar [bloque de texto]"},{"$f":"'800500 - Lista de Notas'!$D$131","v":"ifrs-full:DisclosureOfTradeAndOtherPayablesExplanatory"}]
["/*",null,{"$f":"'800500 - Lista de Notas'!$E$132","v":"Información a revelar sobre deudores comerciales y otras cuentas por cobrar [bloque de texto]"},{"$f":"'800500 - Lista de Notas'!$D$132","v":"ifrs-full:DisclosureOfTradeAndOtherReceivablesExplanatory"}]
["/*",null,{"$f":"'800500 - Lista de Notas'!$E$133","v":"Información a revelar sobre ingresos (gastos) comerciales [bloque de texto]"},{"$f":"'800500 - Lista de Notas'!$D$133","v":"ifrs-full:DisclosureOfTradingIncomeExpenseExplanatory"}]
["/*",null,{"$f":"'800500 - Lista de Notas'!$E$134","v":"Información a revelar sobre acciones propias [bloque de texto]"},{"$f":"'800500 - Lista de Notas'!$D$134","v":"ifrs-full:DisclosureOfTreasurySharesExplanatory"}]
["/*"]
["/*",null,"800600 - Lista de Politicas"]
["/*",null,"--01--"]
["/*",null,{"$f":"'800600 - Lista de Politicas'!$E$14","v":"Información a revelar sobre las políticas contables significativas [bloque de texto]"},{"$f":"'800600 - Lista de Politicas'!$D$14","v":"ifrs-full:DisclosureOfSummaryOfSignificantAccountingPoliciesExplanatory"}]
["/*",null,{"$f":"'800600 - Lista de Politicas'!$E$15","v":"Descripción de la política contable de activos financieros disponibles para la venta [bloque de texto]"},{"$f":"'800600 - Lista de Politicas'!$D$15","v":"ifrs-full:DescriptionOfAccountingPolicyForAvailableforsaleFinancialAssetsExplanatory"}]
["/*",null,{"$f":"'800600 - Lista de Politicas'!$E$16","v":"Descripción de la política contable para costos de préstamos [bloque de texto]"},{"$f":"'800600 - Lista de Politicas'!$D$16","v":"ifrs-full:DescriptionOfAccountingPolicyForBorrowingCostsExplanatory"}]
["/*",null,{"$f":"'800600 - Lista de Politicas'!$E$17","v":"Descripción de la política contable para préstamos [bloque de texto]"},{"$f":"'800600 - Lista de Politicas'!$D$17","v":"ifrs-full:DescriptionOfAccountingPolicyForBorrowingsExplanatory"}]
["/*",null,{"$f":"'800600 - Lista de Politicas'!$E$18","v":"Descripción de la política contable para combinaciones de negocios y plusvalía [bloque de texto]"},{"$f":"'800600 - Lista de Politicas'!$D$18","v":"ifrs-full:DescriptionOfAccountingPolicyForBusinessCombinationsAndGoodwillExplanatory"}]
["/*",null,{"$f":"'800600 - Lista de Politicas'!$E$19","v":"Descripción de la política contable para flujos de efectivo [bloque de texto]"},{"$f":"'800600 - Lista de Politicas'!$D$19","v":"ifrs-full:DescriptionOfAccountingPolicyForCashFlowsExplanatory"}]
["/*",null,{"$f":"'800600 - Lista de Politicas'!$E$20","v":"Descripción de la política contable para construcciones en proceso [bloque de texto]"},{"$f":"'800600 - Lista de Politicas'!$D$20","v":"ifrs-full:DescriptionOfAccountingPolicyForConstructionInProgressExplanatory"}]
["/*",null,{"$f":"'800600 - Lista de Politicas'!$E$21","v":"Descripción de la política contable para pasivos contingentes y activos contingentes [bloque de texto]"},{"$f":"'800600 - Lista de Politicas'!$D$21","v":"ifrs-full:DescriptionOfAccountingPolicyForContingentLiabilitiesAndContingentAssetsExplanatory"}]
["/*",null,{"$f":"'800600 - Lista de Politicas'!$E$22","v":"Descripción de la política contable para provisiones para retiro del servicio, restauración y rehabilitación [bloque de texto]"},{"$f":"'800600 - Lista de Politicas'!$D$22","v":"ifrs-full:DescriptionOfAccountingPolicyForDecommissioningRestorationAndRehabilitationProvisionsExplanatory"}]
[{"$f":"IF(G4768=\"\",\"/*\",\"\")","v":"/*"},null,{"$f":"'800600 - Lista de Politicas'!$E$23","v":"Descripción de la política contable para impuesto a las ganancias diferido [bloque de texto]"},{"$f":"'800600 - Lista de Politicas'!$D$23","v":"ifrs-full:DescriptionOfAccountingPolicyForDeferredIncomeTaxExplanatory"}]
["/*",null,{"$f":"'800600 - Lista de Politicas'!$E$24","v":"Descripción de la política contable para gastos por depreciación [bloque de texto]"},{"$f":"'800600 - Lista de Politicas'!$D$24","v":"ifrs-full:DescriptionOfAccountingPolicyForDepreciationExpenseExplanatory"}]
["/*",null,{"$f":"'800600 - Lista de Politicas'!$E$25","v":"Descripción de la política contable para baja en cuentas de instrumentos financieros [bloque de texto]"},{"$f":"'800600 - Lista de Politicas'!$D$25","v":"ifrs-full:DescriptionOfAccountingPolicyForDerecognitionOfFinancialInstrumentsExplanatory"}]
["/*",null,{"$f":"'800600 - Lista de Politicas'!$E$26","v":"Descripción de la política contable para instrumentos financieros derivados y coberturas [bloque de texto]"},{"$f":"'800600 - Lista de Politicas'!$D$26","v":"ifrs-full:DescriptionOfAccountingPolicyForDerivativeFinancialInstrumentsAndHedgingExplanatory"}]
["/*",null,{"$f":"'800600 - Lista de Politicas'!$E$27","v":"Descripción de la política contable para la determinación de los componentes del efectivo y equivalentes al efectivo [bloque de texto]"},{"$f":"'800600 - Lista de Politicas'!$D$27","v":"ifrs-full:DescriptionOfAccountingPolicyToDetermineComponentsOfCashAndCashEquivalents"}]
["/*",null,{"$f":"'800600 - Lista de Politicas'!$E$28","v":"Descripción de la política contable para operaciones discontinuadas [bloque de texto]"},{"$f":"'800600 - Lista de Politicas'!$D$28","v":"ifrs-full:DescriptionOfAccountingPolicyForDiscontinuedOperationsExplanatory"}]
["/*",null,{"$f":"'800600 - Lista de Politicas'!$E$29","v":"Descripción de la política contable para dividendos [bloque de texto]"},{"$f":"'800600 - Lista de Politicas'!$D$29","v":"ifrs-full:DescriptionOfAccountingPolicyForDividendsExplanatory"}]
["/*",null,{"$f":"'800600 - Lista de Politicas'!$E$30","v":"Descripción de la política contable para las ganancias por acción [bloque de texto]"},{"$f":"'800600 - Lista de Politicas'!$D$30","v":"ifrs-full:DescriptionOfAccountingPolicyForEarningsPerShareExplanatory"}]
["/*",null,{"$f":"'800600 - Lista de Politicas'!$E$31","v":"Descripción de la política contable para derechos de emisión [bloque de texto]"},{"$f":"'800600 - Lista de Politicas'!$D$31","v":"ifrs-full:DescriptionOfAccountingPolicyForEmissionRightsExplanatory"}]
["/*",null,{"$f":"'800600 - Lista de Politicas'!$E$32","v":"Descripción de la política contable para beneficios a los empleados [bloque de texto]"},{"$f":"'800600 - Lista de Politicas'!$D$32","v":"ifrs-full:DescriptionOfAccountingPolicyForEmployeeBenefitsExplanatory"}]
["/*",null,{"$f":"'800600 - Lista de Politicas'!$E$33","v":"Descripción de la política contable para gastos [bloque de texto]"},{"$f":"'800600 - Lista de Politicas'!$D$33","v":"ifrs-full:DescriptionOfAccountingPolicyForExpensesExplanatory"}]
["/*",null,{"$f":"'800600 - Lista de Politicas'!$E$34","v":"Descripción de la política contable para mediciones al valor razonable [bloque de texto]"},{"$f":"'800600 - Lista de Politicas'!$D$34","v":"ifrs-full:DescriptionOfAccountingPolicyForFairValueMeasurementExplanatory"}]
["/*",null,{"$f":"'800600 - Lista de Politicas'!$E$35","v":"Descripción de la política contable para costos financieros [bloque de texto]"},{"$f":"'800600 - Lista de Politicas'!$D$35","v":"ifrs-full:DescriptionOfAccountingPolicyForFinanceCostsExplanatory"}]
["/*",null,{"$f":"'800600 - Lista de Politicas'!$E$36","v":"Descripción de la política contable para ingresos y costos financieros [bloque de texto]"},{"$f":"'800600 - Lista de Politicas'!$D$36","v":"ifrs-full:DescriptionOfAccountingPolicyForFinanceIncomeAndCostsExplanatory"}]
["/*",null,{"$f":"'800600 - Lista de Politicas'!$E$37","v":"Descripción de la política contable para activos financieros [bloque de texto]"},{"$f":"'800600 - Lista de Politicas'!$D$37","v":"ifrs-full:DescriptionOfAccountingPolicyForFinancialAssetsExplanatory"}]
["/*",null,{"$f":"'800600 - Lista de Politicas'!$E$38","v":"Descripción de la política contable para instrumentos financieros [bloque de texto]"},{"$f":"'800600 - Lista de Politicas'!$D$38","v":"ifrs-full:DescriptionOfAccountingPolicyForFinancialInstrumentsExplanatory"}]
["/*",null,{"$f":"'800600 - Lista de Politicas'!$E$39","v":"Descripción de la política contable para instrumentos financieros a valor razonable con cambios en resultados [bloque de texto]"},{"$f":"'800600 - Lista de Politicas'!$D$39","v":"ifrs-full:DescriptionOfAccountingPolicyForFinancialInstrumentsAtFairValueThroughProfitOrLossExplanatory"}]
["/*",null,{"$f":"'800600 - Lista de Politicas'!$E$40","v":"Descripción de la política contable para pasivos financieros [bloque de texto]"},{"$f":"'800600 - Lista de Politicas'!$D$40","v":"ifrs-full:DescriptionOfAccountingPolicyForFinancialLiabilitiesExplanatory"}]
["/*",null,{"$f":"'800600 - Lista de Politicas'!$E$41","v":"Descripción de la política contable para conversión de moneda extranjera [bloque de texto]"},{"$f":"'800600 - Lista de Politicas'!$D$41","v":"ifrs-full:DescriptionOfAccountingPolicyForForeignCurrencyTranslationExplanatory"}]
["/*",null,{"$f":"'800600 - Lista de Politicas'!$E$42","v":"Descripción de la política contable para la moneda funcional [bloque de texto]"},{"$f":"'800600 - Lista de Politicas'!$D$42","v":"ifrs-full:DescriptionOfAccountingPolicyForFunctionalCurrencyExplanatory"}]
["/*",null,{"$f":"'800600 - Lista de Politicas'!$E$43","v":"Descripción de la política contable para la plusvalía [bloque de texto]"},{"$f":"'800600 - Lista de Politicas'!$D$43","v":"ifrs-full:DescriptionOfAccountingPolicyForGoodwillExplanatory"}]
["/*",null,{"$f":"'800600 - Lista de Politicas'!$E$44","v":"Descripción de las políticas contables para subvenciones gubernamentales [bloque de texto]"},{"$f":"'800600 - Lista de Politicas'!$D$44","v":"ifrs-full:DescriptionOfAccountingPolicyForGovernmentGrants"}]
["/*",null,{"$f":"'800600 - Lista de Politicas'!$E$45","v":"Descripción de la política contable para coberturas [bloque de texto]"},{"$f":"'800600 - Lista de Politicas'!$D$45","v":"ifrs-full:DescriptionOfAccountingPolicyForHedgingExplanatory"}]
["/*",null,{"$f":"'800600 - Lista de Politicas'!$E$46","v":"Descripción de la política contable para inversiones mantenidas hasta el vencimiento [bloque de texto]"},{"$f":"'800600 - Lista de Politicas'!$D$46","v":"ifrs-full:DescriptionOfAccountingPolicyForHeldtomaturityInvestmentsExplanatory"}]
["/*",null,{"$f":"'800600 - Lista de Politicas'!$E$47","v":"Descripción de la política contable para deterioro del valor de activos [bloque de texto]"},{"$f":"'800600 - Lista de Politicas'!$D$47","v":"ifrs-full:DescriptionOfAccountingPolicyForImpairmentOfAssetsExplanatory"}]
["/*",null,{"$f":"'800600 - Lista de Politicas'!$E$48","v":"Descripción de la política contable para deterioro del valor de activos financieros [bloque de texto]"},{"$f":"'800600 - Lista de Politicas'!$D$48","v":"ifrs-full:DescriptionOfAccountingPolicyForImpairmentOfFinancialAssetsExplanatory"}]
["/*",null,{"$f":"'800600 - Lista de Politicas'!$E$49","v":"Descripción de la política contable para deterioro del valor de activos no financieros [bloque de texto]"},{"$f":"'800600 - Lista de Politicas'!$D$49","v":"ifrs-full:DescriptionOfAccountingPolicyForImpairmentOfNonfinancialAssetsExplanatory"}]
["/*",null,{"$f":"'800600 - Lista de Politicas'!$E$50","v":"Descripción de la política contable para impuestos a las ganancias [bloque de texto]"},{"$f":"'800600 - Lista de Politicas'!$D$50","v":"ifrs-full:DescriptionOfAccountingPolicyForIncomeTaxExplanatory"}]
["/*",null,{"$f":"'800600 - Lista de Politicas'!$E$51","v":"Descripción de las políticas contables de contratos de seguro y de los activos, pasivos, ingresos y gastos relacionados [bloque de texto]"},{"$f":"'800600 - Lista de Politicas'!$D$51","v":"ifrs-full:DescriptionOfAccountingPolicyForInsuranceContracts"}]
["/*",null,{"$f":"'800600 - Lista de Politicas'!$E$52","v":"Descripción de la política contable para activos intangibles y plusvalía [bloque de texto]"},{"$f":"'800600 - Lista de Politicas'!$D$52","v":"ifrs-full:DescriptionOfAccountingPolicyForIntangibleAssetsAndGoodwillExplanatory"}]
["/*",null,{"$f":"'800600 - Lista de Politicas'!$E$53","v":"Descripción de la política contable para activos intangibles distintos a la plusvalía [bloque de texto]"},{"$f":"'800600 - Lista de Politicas'!$D$53","v":"ifrs-full:DescriptionOfAccountingPolicyForIntangibleAssetsOtherThanGoodwillExplanatory"}]
["/*",null,{"$f":"'800600 - Lista de Politicas'!$E$54","v":"Descripción de la política contable para ingresos y gastos por intereses [bloque de texto]"},{"$f":"'800600 - Lista de Politicas'!$D$54","v":"ifrs-full:DescriptionOfAccountingPolicyForInterestIncomeAndExpenseExplanatory"}]
["/*",null,{"$f":"'800600 - Lista de Politicas'!$E$55","v":"Descripción de las políticas contables para inversiones en asociadas [bloque de texto]"},{"$f":"'800600 - Lista de Politicas'!$D$55","v":"ifrs-full:DescriptionOfAccountingPolicyForInvestmentInAssociates"}]
["/*",null,{"$f":"'800600 - Lista de Politicas'!$E$56","v":"Descripción de las políticas contables para inversiones en negocios conjuntos [bloque de texto]"},{"$f":"'800600 - Lista de Politicas'!$D$56","v":"ifrs-full:DescriptionOfAccountingPolicyForInvestmentsInJointVentures"}]
["/*",null,{"$f":"'800600 - Lista de Politicas'!$E$57","v":"Descripción de la política contable para propiedades de inversión [bloque de texto]"},{"$f":"'800600 - Lista de Politicas'!$D$57","v":"ifrs-full:DescriptionOfAccountingPolicyForInvestmentPropertyExplanatory"}]
["/*",null,{"$f":"'800600 - Lista de Politicas'!$E$58","v":"Descripción de la política contable para inversiones distintas de las inversiones contabilizadas utilizando el método de la participación [bloque de texto]"},{"$f":"'800600 - Lista de Politicas'!$D$58","v":"ifrs-full:DescriptionOfAccountingPolicyForInvestmentsOtherThanInvestmentsAccountedForUsingEquityMethodExplanatory"}]
["/*",null,{"$f":"'800600 - Lista de Politicas'!$E$59","v":"Descripción de la política contable para el capital emitido [bloque de texto]"},{"$f":"'800600 - Lista de Politicas'!$D$59","v":"ifrs-full:DescriptionOfAccountingPolicyForIssuedCapitalExplanatory"}]
["/*",null,{"$f":"'800600 - Lista de Politicas'!$E$60","v":"Descripción de la política contable para arrendamientos [bloque de texto]"},{"$f":"'800600 - Lista de Politicas'!$D$60","v":"ifrs-full:DescriptionOfAccountingPolicyForLeasesExplanatory"}]
["/*",null,{"$f":"'800600 - Lista de Politicas'!$E$61","v":"Descripción de la política contable para préstamos y cuentas por cobrar [bloque de texto]"},{"$f":"'800600 - Lista de Politicas'!$D$61","v":"ifrs-full:DescriptionOfAccountingPolicyForLoansAndReceivablesExplanatory"}]
["/*",null,{"$f":"'800600 - Lista de Politicas'!$E$62","v":"Descripción de las políticas contables para la medición de inventarios [bloque de texto]"},{"$f":"'800600 - Lista de Politicas'!$D$62","v":"ifrs-full:DescriptionOfAccountingPolicyForMeasuringInventories"}]
["/*",null,{"$f":"'800600 - Lista de Politicas'!$E$63","v":"Descripción de la política contable para activos no corrientes o grupos de activos para su disposición clasificados como mantenidos para la venta [bloque de texto]"},{"$f":"'800600 - Lista de Politicas'!$D$63","v":"ifrs-full:DescriptionOfAccountingPolicyForNoncurrentAssetsOrDisposalGroupsClassifiedAsHeldForSaleExplanatory"}]
["/*",null,{"$f":"'800600 - Lista de Politicas'!$E$64","v":"Descripción de la política contable para activos no corrientes o grupos de activos para su disposición clasificados como mantenidos para la venta y operaciones discontinuadas [bloque de texto]"},{"$f":"'800600 - Lista de Politicas'!$D$64","v":"ifrs-full:DescriptionOfAccountingPolicyForNoncurrentAssetsOrDisposalGroupsClassifiedAsHeldForSaleAndDiscontinuedOperationsExplanatory"}]
["/*",null,{"$f":"'800600 - Lista de Politicas'!$E$65","v":"Descripción de la política contable para activos de petróleo y gas [bloque de texto]"},{"$f":"'800600 - Lista de Politicas'!$D$65","v":"ifrs-full:DescriptionOfAccountingPolicyForOilAndGasAssetsExplanatory"}]
["/*",null,{"$f":"'800600 - Lista de Politicas'!$E$66","v":"Descripción de la política contable para propiedades, planta y equipo [bloque de texto]"},{"$f":"'800600 - Lista de Politicas'!$D$66","v":"ifrs-full:DescriptionOfAccountingPolicyForPropertyPlantAndEquipmentExplanatory"}]
["/*",null,{"$f":"'800600 - Lista de Politicas'!$E$67","v":"Descripción de la política contable para provisiones [bloque de texto]"},{"$f":"'800600 - Lista de Politicas'!$D$67","v":"ifrs-full:DescriptionOfAccountingPolicyForProvisionsExplanatory"}]
["/*",null,{"$f":"'800600 - Lista de Politicas'!$E$68","v":"Descripción de la política contable para la reclasificación de instrumentos financieros [bloque de texto]"},{"$f":"'800600 - Lista de Politicas'!$D$68","v":"ifrs-full:DescriptionOfAccountingPolicyForReclassificationOfFinancialInstrumentsExplanatory"}]
["/*",null,{"$f":"'800600 - Lista de Politicas'!$E$69","v":"Descripción de la política contable para el reconocimiento en el resultado del periodo de la diferencia entre el valor razonable en el reconocimiento inicial y el precio de transacción [bloque de texto]"},{"$f":"'800600 - Lista de Politicas'!$D$69","v":"ifrs-full:DescriptionOfAccountingPolicyForRecognisingDifferenceBetweenFairValueAtInitialRecognitionAndAmountDeterminedUsingValuationTechniqueExplanatory"}]
["/*",null,{"$f":"'800600 - Lista de Politicas'!$E$70","v":"Descripción de las políticas contables para el reconocimiento de ingresos de actividades ordinarias [bloque de texto]"},{"$f":"'800600 - Lista de Politicas'!$D$70","v":"ifrs-full:DescriptionOfAccountingPolicyForRecognitionOfRevenue"}]
["/*",null,{"$f":"'800600 - Lista de Politicas'!$E$71","v":"Descripción de la política contable para reparaciones y mantenimiento [bloque de texto]"},{"$f":"'800600 - Lista de Politicas'!$D$71","v":"ifrs-full:DescriptionOfAccountingPolicyForRepairsAndMaintenanceExplanatory"}]
["/*",null,{"$f":"'800600 - Lista de Politicas'!$E$72","v":"Descripción de la política contable para gastos de investigación y desarrollo [bloque de texto]"},{"$f":"'800600 - Lista de Politicas'!$D$72","v":"ifrs-full:DescriptionOfAccountingPolicyForResearchAndDevelopmentExpenseExplanatory"}]
["/*",null,{"$f":"'800600 - Lista de Politicas'!$E$73","v":"Descripción de la política contable para el efectivo y equivalentes al efectivo restringido [bloque de texto]"},{"$f":"'800600 - Lista de Politicas'!$D$73","v":"ifrs-full:DescriptionOfAccountingPolicyForRestrictedCashAndCashEquivalentsExplanatory"}]
["/*",null,{"$f":"'800600 - Lista de Politicas'!$E$74","v":"Descripción de la política contable para acuerdos de concesión de servicios [bloque de texto]"},{"$f":"'800600 - Lista de Politicas'!$D$74","v":"ifrs-full:DescriptionOfAccountingPolicyForServiceConcessionArrangementsExplanatory"}]
["/*",null,{"$f":"'800600 - Lista de Politicas'!$E$75","v":"Descripción de la política contable para las transacciones con pagos basados en acciones [bloque de texto]"},{"$f":"'800600 - Lista de Politicas'!$D$75","v":"ifrs-full:DescriptionOfAccountingPolicyForSharebasedPaymentTransactionsExplanatory"}]
["/*",null,{"$f":"'800600 - Lista de Politicas'!$E$76","v":"Descripción de la política contable para costos de desmonte [bloque de texto]"},{"$f":"'800600 - Lista de Politicas'!$D$76","v":"ifrs-full:DescriptionOfAccountingPolicyForStrippingCostsExplanatory"}]
["/*",null,{"$f":"'800600 - Lista de Politicas'!$E$77","v":"Descripción de la política contable para subsidiarias [bloque de texto]"},{"$f":"'800600 - Lista de Politicas'!$D$77","v":"ifrs-full:DescriptionOfAccountingPolicyForSubsidiariesExplanatory"}]
["/*",null,{"$f":"'800600 - Lista de Politicas'!$E$78","v":"Descripción de las políticas contables para los beneficios por terminación [bloque de texto]"},{"$f":"'800600 - Lista de Politicas'!$D$78","v":"ifrs-full:DescriptionOfAccountingPolicyForTerminationBenefits"}]
["/*",null,{"$f":"'800600 - Lista de Politicas'!$E$79","v":"Descripción de la política contable para acreedores comerciales y otras cuentas por pagar [bloque de texto]"},{"$f":"'800600 - Lista de Politicas'!$D$79","v":"ifrs-full:DescriptionOfAccountingPolicyForTradeAndOtherPayablesExplanatory"}]
["/*",null,{"$f":"'800600 - Lista de Politicas'!$E$80","v":"Descripción de la política contable para deudores comerciales y otras cuentas por cobrar [bloque de texto]"},{"$f":"'800600 - Lista de Politicas'!$D$80","v":"ifrs-full:DescriptionOfAccountingPolicyForTradeAndOtherReceivablesExplanatory"}]
["/*",null,{"$f":"'800600 - Lista de Politicas'!$E$81","v":"Descripción de la política contable para ingresos y gastos comerciales [bloque de texto]"},{"$f":"'800600 - Lista de Politicas'!$D$81","v":"ifrs-full:DescriptionOfAccountingPolicyForTradingIncomeAndExpenseExplanatory"}]
["/*",null,{"$f":"'800600 - Lista de Politicas'!$E$82","v":"Descripción de la política contable para transacciones con participaciones no controladoras [bloque de texto]"},{"$f":"'800600 - Lista de Politicas'!$D$82","v":"ifrs-full:DescriptionOfAccountingPolicyForTransactionsWithNoncontrollingInterestsExplanatory"}]
["/*",null,{"$f":"'800600 - Lista de Politicas'!$E$83","v":"Descripción de la política contable para transacciones con partes relacionadas [bloque de texto]"},{"$f":"'800600 - Lista de Politicas'!$D$83","v":"ifrs-full:DescriptionOfAccountingPolicyForTransactionsWithRelatedPartiesExplanatory"}]
["/*",null,{"$f":"'800600 - Lista de Politicas'!$E$84","v":"Descripción de otras políticas contables relevantes para comprender los estados financieros [bloque de texto]"},{"$f":"'800600 - Lista de Politicas'!$D$84","v":"ifrs-full:DescriptionOfOtherAccountingPoliciesRelevantToUnderstandingOfFinancialStatements"}]
["/*"]
["/*",null,"811000 GeneraXBRL"]
[{"$f":"IF(G4832=\"\",\"/*\",\"\")","v":"/*"},null,"--01--"]
["/*",null,{"$f":"'811000 GeneraXBRL'!$D$11","v":"Tipo de Cambio por politica, estimación o error"},{"$f":"'811000 GeneraXBRL'!$C$11","v":"co-svsp-core:TipoDeCambioPorPoliticaEstimacionOError"}]
["/*",null,{"$f":"'811000 GeneraXBRL'!$D$12","v":"Descripción del cambio en política, estimación o error"},{"$f":"'811000 GeneraXBRL'!$C$12","v":"co-svsp-core:DescripcionDelCambioEnPoliticaEstimacionOError"}]
["/*",null,{"$f":"'811000 GeneraXBRL'!$D$13","v":"Impacto en el activo por cambio por política, estimación o error"},{"$f":"'811000 GeneraXBRL'!$C$13","v":"co-svsp-core:ImpactoEnElActivoPorCambioPorPoliticaEstimacionOError"}]
["/*",null,{"$f":"'811000 GeneraXBRL'!$D$14","v":"Impacto en el pasivo por cambio por política, estimación o error"},{"$f":"'811000 GeneraXBRL'!$C$14","v":"co-svsp-core:ImpactoEnElPasivoPorCambioPorPoliticaEstimacionOError"}]
["/*",null,{"$f":"'811000 GeneraXBRL'!$D$15","v":"Impacto en el patrimonio por cambio por política, estimación o error"},{"$f":"'811000 GeneraXBRL'!$C$15","v":"co-svsp-core:ImpactoEnElPatrimonioPorCambioPorPoliticaEstimacionOError"}]
["/*",null,{"$f":"'811000 GeneraXBRL'!$D$16","v":"Impacto en el resultado por cambio por política, estimación o error"},{"$f":"'811000 GeneraXBRL'!$C$16","v":"co-svsp-core:ImpactoEnElResultadoPorCambioPorPoliticaEstimacionOError"}]
["/*",null,"--02--"]
["/*",null,{"$f":"'811000 GeneraXBRL'!$D$11","v":"Tipo de Cambio por politica, estimación o error"},{"$f":"'811000 GeneraXBRL'!$C$11","v":"co-svsp-core:TipoDeCambioPorPoliticaEstimacionOError"}]
["/*",null,{"$f":"'811000 GeneraXBRL'!$D$12","v":"Descripción del cambio en política, estimación o error"},{"$f":"'811000 GeneraXBRL'!$C$12","v":"co-svsp-core:DescripcionDelCambioEnPoliticaEstimacionOError"}]
["/*",null,{"$f":"'811000 GeneraXBRL'!$D$13","v":"Impacto en el activo por cambio por política, estimación o error"},{"$f":"'811000 GeneraXBRL'!$C$13","v":"co-svsp-core:ImpactoEnElActivoPorCambioPorPoliticaEstimacionOError"}]
["/*",null,{"$f":"'811000 GeneraXBRL'!$D$14","v":"Impacto en el pasivo por cambio por política, estimación o error"},{"$f":"'811000 GeneraXBRL'!$C$14","v":"co-svsp-core:ImpactoEnElPasivoPorCambioPorPoliticaEstimacionOError"}]
["/*",null,{"$f":"'811000 GeneraXBRL'!$D$15","v":"Impacto en el patrimonio por cambio por política, estimación o error"},{"$f":"'811000 GeneraXBRL'!$C$15","v":"co-svsp-core:ImpactoEnElPatrimonioPorCambioPorPoliticaEstimacionOError"}]
["/*",null,{"$f":"'811000 GeneraXBRL'!$D$16","v":"Impacto en el resultado por cambio por política, estimación o error"},{"$f":"'811000 GeneraXBRL'!$C$16","v":"co-svsp-core:ImpactoEnElResultadoPorCambioPorPoliticaEstimacionOError"}]
["/*",null,"--03--"]
["/*",null,{"$f":"'811000 GeneraXBRL'!$D$11","v":"Tipo de Cambio por politica, estimación o error"},{"$f":"'811000 GeneraXBRL'!$C$11","v":"co-svsp-core:TipoDeCambioPorPoliticaEstimacionOError"}]
["/*",null,{"$f":"'811000 GeneraXBRL'!$D$12","v":"Descripción del cambio en política, estimación o error"},{"$f":"'811000 GeneraXBRL'!$C$12","v":"co-svsp-core:DescripcionDelCambioEnPoliticaEstimacionOError"}]
["/*",null,{"$f":"'811000 GeneraXBRL'!$D$13","v":"Impacto en el activo por cambio por política, estimación o error"},{"$f":"'811000 GeneraXBRL'!$C$13","v":"co-svsp-core:ImpactoEnElActivoPorCambioPorPoliticaEstimacionOError"}]
["/*",null,{"$f":"'811000 GeneraXBRL'!$D$14","v":"Impacto en el pasivo por cambio por política, estimación o error"},{"$f":"'811000 GeneraXBRL'!$C$14","v":"co-svsp-core:ImpactoEnElPasivoPorCambioPorPoliticaEstimacionOError"}]
["/*",null,{"$f":"'811000 GeneraXBRL'!$D$15","v":"Impacto en el patrimonio por cambio por política, estimación o error"},{"$f":"'811000 GeneraXBRL'!$C$15","v":"co-svsp-core:ImpactoEnElPatrimonioPorCambioPorPoliticaEstimacionOError"}]
["/*",null,{"$f":"'811000 GeneraXBRL'!$D$16","v":"Impacto en el resultado por cambio por política, estimación o error"},{"$f":"'811000 GeneraXBRL'!$C$16","v":"co-svsp-core:ImpactoEnElResultadoPorCambioPorPoliticaEstimacionOError"}]
["/*",null,"--04--"]
["/*",null,{"$f":"'811000 GeneraXBRL'!$D$11","v":"Tipo de Cambio por politica, estimación o error"},{"$f":"'811000 GeneraXBRL'!$C$11","v":"co-svsp-core:TipoDeCambioPorPoliticaEstimacionOError"}]
["/*",null,{"$f":"'811000 GeneraXBRL'!$D$12","v":"Descripción del cambio en política, estimación o error"},{"$f":"'811000 GeneraXBRL'!$C$12","v":"co-svsp-core:DescripcionDelCambioEnPoliticaEstimacionOError"}]
["/*",null,{"$f":"'811000 GeneraXBRL'!$D$13","v":"Impacto en el activo por cambio por política, estimación o error"},{"$f":"'811000 GeneraXBRL'!$C$13","v":"co-svsp-core:ImpactoEnElActivoPorCambioPorPoliticaEstimacionOError"}]
["/*",null,{"$f":"'811000 GeneraXBRL'!$D$14","v":"Impacto en el pasivo por cambio por política, estimación o error"},{"$f":"'811000 GeneraXBRL'!$C$14","v":"co-svsp-core:ImpactoEnElPasivoPorCambioPorPoliticaEstimacionOError"}]
["/*",null,{"$f":"'811000 GeneraXBRL'!$D$15","v":"Impacto en el patrimonio por cambio por política, estimación o error"},{"$f":"'811000 GeneraXBRL'!$C$15","v":"co-svsp-core:ImpactoEnElPatrimonioPorCambioPorPoliticaEstimacionOError"}]
["/*",null,{"$f":"'811000 GeneraXBRL'!$D$16","v":"Impacto en el resultado por cambio por política, estimación o error"},{"$f":"'811000 GeneraXBRL'!$C$16","v":"co-svsp-core:ImpactoEnElResultadoPorCambioPorPoliticaEstimacionOError"}]
["/*",null,"--05--"]
["/*",null,{"$f":"'811000 GeneraXBRL'!$D$11","v":"Tipo de Cambio por politica, estimación o error"},{"$f":"'811000 GeneraXBRL'!$C$11","v":"co-svsp-core:TipoDeCambioPorPoliticaEstimacionOError"}]
["/*",null,{"$f":"'811000 GeneraXBRL'!$D$12","v":"Descripción del cambio en política, estimación o error"},{"$f":"'811000 GeneraXBRL'!$C$12","v":"co-svsp-core:DescripcionDelCambioEnPoliticaEstimacionOError"}]
["/*",null,{"$f":"'811000 GeneraXBRL'!$D$13","v":"Impacto en el activo por cambio por política, estimación o error"},{"$f":"'811000 GeneraXBRL'!$C$13","v":"co-svsp-core:ImpactoEnElActivoPorCambioPorPoliticaEstimacionOError"}]
["/*",null,{"$f":"'811000 GeneraXBRL'!$D$14","v":"Impacto en el pasivo por cambio por política, estimación o error"},{"$f":"'811000 GeneraXBRL'!$C$14","v":"co-svsp-core:ImpactoEnElPasivoPorCambioPorPoliticaEstimacionOError"}]
["/*",null,{"$f":"'811000 GeneraXBRL'!$D$15","v":"Impacto en el patrimonio por cambio por política, estimación o error"},{"$f":"'811000 GeneraXBRL'!$C$15","v":"co-svsp-core:ImpactoEnElPatrimonioPorCambioPorPoliticaEstimacionOError"}]
["/*",null,{"$f":"'811000 GeneraXBRL'!$D$16","v":"Impacto en el resultado por cambio por política, estimación o error"},{"$f":"'811000 GeneraXBRL'!$C$16","v":"co-svsp-core:ImpactoEnElResultadoPorCambioPorPoliticaEstimacionOError"}]
["/*",null,"--06--"]
["/*",null,{"$f":"'811000 GeneraXBRL'!$D$11","v":"Tipo de Cambio por politica, estimación o error"},{"$f":"'811000 GeneraXBRL'!$C$11","v":"co-svsp-core:TipoDeCambioPorPoliticaEstimacionOError"}]
["/*",null,{"$f":"'811000 GeneraXBRL'!$D$12","v":"Descripción del cambio en política, estimación o error"},{"$f":"'811000 GeneraXBRL'!$C$12","v":"co-svsp-core:DescripcionDelCambioEnPoliticaEstimacionOError"}]
["/*",null,{"$f":"'811000 GeneraXBRL'!$D$13","v":"Impacto en el activo por cambio por política, estimación o error"},{"$f":"'811000 GeneraXBRL'!$C$13","v":"co-svsp-core:ImpactoEnElActivoPorCambioPorPoliticaEstimacionOError"}]
["/*",null,{"$f":"'811000 GeneraXBRL'!$D$14","v":"Impacto en el pasivo por cambio por política, estimación o error"},{"$f":"'811000 GeneraXBRL'!$C$14","v":"co-svsp-core:ImpactoEnElPasivoPorCambioPorPoliticaEstimacionOError"}]
["/*",null,{"$f":"'811000 GeneraXBRL'!$D$15","v":"Impacto en el patrimonio por cambio por política, estimación o error"},{"$f":"'811000 GeneraXBRL'!$C$15","v":"co-svsp-core:ImpactoEnElPatrimonioPorCambioPorPoliticaEstimacionOError"}]
["/*",null,{"$f":"'811000 GeneraXBRL'!$D$16","v":"Impacto en el resultado por cambio por política, estimación o error"},{"$f":"'811000 GeneraXBRL'!$C$16","v":"co-svsp-core:ImpactoEnElResultadoPorCambioPorPoliticaEstimacionOError"}]
["/*",null,"--07--"]
["/*",null,{"$f":"'811000 GeneraXBRL'!$D$11","v":"Tipo de Cambio por politica, estimación o error"},{"$f":"'811000 GeneraXBRL'!$C$11","v":"co-svsp-core:TipoDeCambioPorPoliticaEstimacionOError"}]
["/*",null,{"$f":"'811000 GeneraXBRL'!$D$12","v":"Descripción del cambio en política, estimación o error"},{"$f":"'811000 GeneraXBRL'!$C$12","v":"co-svsp-core:DescripcionDelCambioEnPoliticaEstimacionOError"}]
["/*",null,{"$f":"'811000 GeneraXBRL'!$D$13","v":"Impacto en el activo por cambio por política, estimación o error"},{"$f":"'811000 GeneraXBRL'!$C$13","v":"co-svsp-core:ImpactoEnElActivoPorCambioPorPoliticaEstimacionOError"}]
["/*",null,{"$f":"'811000 GeneraXBRL'!$D$14","v":"Impacto en el pasivo por cambio por política, estimación o error"},{"$f":"'811000 GeneraXBRL'!$C$14","v":"co-svsp-core:ImpactoEnElPasivoPorCambioPorPoliticaEstimacionOError"}]
["/*",null,{"$f":"'811000 GeneraXBRL'!$D$15","v":"Impacto en el patrimonio por cambio por política, estimación o error"},{"$f":"'811000 GeneraXBRL'!$C$15","v":"co-svsp-core:ImpactoEnElPatrimonioPorCambioPorPoliticaEstimacionOError"}]
["/*",null,{"$f":"'811000 GeneraXBRL'!$D$16","v":"Impacto en el resultado por cambio por política, estimación o error"},{"$f":"'811000 GeneraXBRL'!$C$16","v":"co-svsp-core:ImpactoEnElResultadoPorCambioPorPoliticaEstimacionOError"}]
["/*",null,"--08--"]
["/*",null,{"$f":"'811000 GeneraXBRL'!$D$11","v":"Tipo de Cambio por politica, estimación o error"},{"$f":"'811000 GeneraXBRL'!$C$11","v":"co-svsp-core:TipoDeCambioPorPoliticaEstimacionOError"}]
["/*",null,{"$f":"'811000 GeneraXBRL'!$D$12","v":"Descripción del cambio en política, estimación o error"},{"$f":"'811000 GeneraXBRL'!$C$12","v":"co-svsp-core:DescripcionDelCambioEnPoliticaEstimacionOError"}]
["/*",null,{"$f":"'811000 GeneraXBRL'!$D$13","v":"Impacto en el activo por cambio por política, estimación o error"},{"$f":"'811000 GeneraXBRL'!$C$13","v":"co-svsp-core:ImpactoEnElActivoPorCambioPorPoliticaEstimacionOError"}]
["/*",null,{"$f":"'811000 GeneraXBRL'!$D$14","v":"Impacto en el pasivo por cambio por política, estimación o error"},{"$f":"'811000 GeneraXBRL'!$C$14","v":"co-svsp-core:ImpactoEnElPasivoPorCambioPorPoliticaEstimacionOError"}]
["/*",null,{"$f":"'811000 GeneraXBRL'!$D$15","v":"Impacto en el patrimonio por cambio por política, estimación o error"},{"$f":"'811000 GeneraXBRL'!$C$15","v":"co-svsp-core:ImpactoEnElPatrimonioPorCambioPorPoliticaEstimacionOError"}]
["/*",null,{"$f":"'811000 GeneraXBRL'!$D$16","v":"Impacto en el resultado por cambio por política, estimación o error"},{"$f":"'811000 GeneraXBRL'!$C$16","v":"co-svsp-core:ImpactoEnElResultadoPorCambioPorPoliticaEstimacionOError"}]
["/*",null,"--09--"]
["/*",null,{"$f":"'811000 GeneraXBRL'!$D$11","v":"Tipo de Cambio por politica, estimación o error"},{"$f":"'811000 GeneraXBRL'!$C$11","v":"co-svsp-core:TipoDeCambioPorPoliticaEstimacionOError"}]
["/*",null,{"$f":"'811000 GeneraXBRL'!$D$12","v":"Descripción del cambio en política, estimación o error"},{"$f":"'811000 GeneraXBRL'!$C$12","v":"co-svsp-core:DescripcionDelCambioEnPoliticaEstimacionOError"}]
["/*",null,{"$f":"'811000 GeneraXBRL'!$D$13","v":"Impacto en el activo por cambio por política, estimación o error"},{"$f":"'811000 GeneraXBRL'!$C$13","v":"co-svsp-core:ImpactoEnElActivoPorCambioPorPoliticaEstimacionOError"}]
["/*",null,{"$f":"'811000 GeneraXBRL'!$D$14","v":"Impacto en el pasivo por cambio por política, estimación o error"},{"$f":"'811000 GeneraXBRL'!$C$14","v":"co-svsp-core:ImpactoEnElPasivoPorCambioPorPoliticaEstimacionOError"}]
["/*",null,{"$f":"'811000 GeneraXBRL'!$D$15","v":"Impacto en el patrimonio por cambio por política, estimación o error"},{"$f":"'811000 GeneraXBRL'!$C$15","v":"co-svsp-core:ImpactoEnElPatrimonioPorCambioPorPoliticaEstimacionOError"}]
["/*",null,{"$f":"'811000 GeneraXBRL'!$D$16","v":"Impacto en el resultado por cambio por política, estimación o error"},{"$f":"'811000 GeneraXBRL'!$C$16","v":"co-svsp-core:ImpactoEnElResultadoPorCambioPorPoliticaEstimacionOError"}]
["/*",null,"--10--"]
[{"$f":"IF(G4896=\"\",\"/*\",\"\")","v":"/*"},null,{"$f":"'811000 GeneraXBRL'!$D$11","v":"Tipo de Cambio por politica, estimación o error"},{"$f":"'811000 GeneraXBRL'!$C$11","v":"co-svsp-core:TipoDeCambioPorPoliticaEstimacionOError"}]
["/*",null,{"$f":"'811000 GeneraXBRL'!$D$12","v":"Descripción del cambio en política, estimación o error"},{"$f":"'811000 GeneraXBRL'!$C$12","v":"co-svsp-core:DescripcionDelCambioEnPoliticaEstimacionOError"}]
["/*",null,{"$f":"'811000 GeneraXBRL'!$D$13","v":"Impacto en el activo por cambio por política, estimación o error"},{"$f":"'811000 GeneraXBRL'!$C$13","v":"co-svsp-core:ImpactoEnElActivoPorCambioPorPoliticaEstimacionOError"}]
["/*",null,{"$f":"'811000 GeneraXBRL'!$D$14","v":"Impacto en el pasivo por cambio por política, estimación o error"},{"$f":"'811000 GeneraXBRL'!$C$14","v":"co-svsp-core:ImpactoEnElPasivoPorCambioPorPoliticaEstimacionOError"}]
["/*",null,{"$f":"'811000 GeneraXBRL'!$D$15","v":"Impacto en el patrimonio por cambio por política, estimación o error"},{"$f":"'811000 GeneraXBRL'!$C$15","v":"co-svsp-core:ImpactoEnElPatrimonioPorCambioPorPoliticaEstimacionOError"}]
["/*",null,{"$f":"'811000 GeneraXBRL'!$D$16","v":"Impacto en el resultado por cambio por política, estimación o error"},{"$f":"'811000 GeneraXBRL'!$C$16","v":"co-svsp-core:ImpactoEnElResultadoPorCambioPorPoliticaEstimacionOError"}]
["/*",null,"--11--"]
["/*",null,{"$f":"'811000 GeneraXBRL'!$D$11","v":"Tipo de Cambio por politica, estimación o error"},{"$f":"'811000 GeneraXBRL'!$C$11","v":"co-svsp-core:TipoDeCambioPorPoliticaEstimacionOError"}]
["/*",null,{"$f":"'811000 GeneraXBRL'!$D$12","v":"Descripción del cambio en política, estimación o error"},{"$f":"'811000 GeneraXBRL'!$C$12","v":"co-svsp-core:DescripcionDelCambioEnPoliticaEstimacionOError"}]
["/*",null,{"$f":"'811000 GeneraXBRL'!$D$13","v":"Impacto en el activo por cambio por política, estimación o error"},{"$f":"'811000 GeneraXBRL'!$C$13","v":"co-svsp-core:ImpactoEnElActivoPorCambioPorPoliticaEstimacionOError"}]
["/*",null,{"$f":"'811000 GeneraXBRL'!$D$14","v":"Impacto en el pasivo por cambio por política, estimación o error"},{"$f":"'811000 GeneraXBRL'!$C$14","v":"co-svsp-core:ImpactoEnElPasivoPorCambioPorPoliticaEstimacionOError"}]
["/*",null,{"$f":"'811000 GeneraXBRL'!$D$15","v":"Impacto en el patrimonio por cambio por política, estimación o error"},{"$f":"'811000 GeneraXBRL'!$C$15","v":"co-svsp-core:ImpactoEnElPatrimonioPorCambioPorPoliticaEstimacionOError"}]
["/*",null,{"$f":"'811000 GeneraXBRL'!$D$16","v":"Impacto en el resultado por cambio por política, estimación o error"},{"$f":"'811000 GeneraXBRL'!$C$16","v":"co-svsp-core:ImpactoEnElResultadoPorCambioPorPoliticaEstimacionOError"}]
["/*",null,"--12--"]
["/*",null,{"$f":"'811000 GeneraXBRL'!$D$11","v":"Tipo de Cambio por politica, estimación o error"},{"$f":"'811000 GeneraXBRL'!$C$11","v":"co-svsp-core:TipoDeCambioPorPoliticaEstimacionOError"}]
["/*",null,{"$f":"'811000 GeneraXBRL'!$D$12","v":"Descripción del cambio en política, estimación o error"},{"$f":"'811000 GeneraXBRL'!$C$12","v":"co-svsp-core:DescripcionDelCambioEnPoliticaEstimacionOError"}]
["/*",null,{"$f":"'811000 GeneraXBRL'!$D$13","v":"Impacto en el activo por cambio por política, estimación o error"},{"$f":"'811000 GeneraXBRL'!$C$13","v":"co-svsp-core:ImpactoEnElActivoPorCambioPorPoliticaEstimacionOError"}]
["/*",null,{"$f":"'811000 GeneraXBRL'!$D$14","v":"Impacto en el pasivo por cambio por política, estimación o error"},{"$f":"'811000 GeneraXBRL'!$C$14","v":"co-svsp-core:ImpactoEnElPasivoPorCambioPorPoliticaEstimacionOError"}]
["/*",null,{"$f":"'811000 GeneraXBRL'!$D$15","v":"Impacto en el patrimonio por cambio por política, estimación o error"},{"$f":"'811000 GeneraXBRL'!$C$15","v":"co-svsp-core:ImpactoEnElPatrimonioPorCambioPorPoliticaEstimacionOError"}]
["/*",null,{"$f":"'811000 GeneraXBRL'!$D$16","v":"Impacto en el resultado por cambio por política, estimación o error"},{"$f":"'811000 GeneraXBRL'!$C$16","v":"co-svsp-core:ImpactoEnElResultadoPorCambioPorPoliticaEstimacionOError"}]
["/*",null,"--13--"]
["/*",null,{"$f":"'811000 GeneraXBRL'!$D$11","v":"Tipo de Cambio por politica, estimación o error"},{"$f":"'811000 GeneraXBRL'!$C$11","v":"co-svsp-core:TipoDeCambioPorPoliticaEstimacionOError"}]
["/*",null,{"$f":"'811000 GeneraXBRL'!$D$12","v":"Descripción del cambio en política, estimación o error"},{"$f":"'811000 GeneraXBRL'!$C$12","v":"co-svsp-core:DescripcionDelCambioEnPoliticaEstimacionOError"}]
["/*",null,{"$f":"'811000 GeneraXBRL'!$D$13","v":"Impacto en el activo por cambio por política, estimación o error"},{"$f":"'811000 GeneraXBRL'!$C$13","v":"co-svsp-core:ImpactoEnElActivoPorCambioPorPoliticaEstimacionOError"}]
["/*",null,{"$f":"'811000 GeneraXBRL'!$D$14","v":"Impacto en el pasivo por cambio por política, estimación o error"},{"$f":"'811000 GeneraXBRL'!$C$14","v":"co-svsp-core:ImpactoEnElPasivoPorCambioPorPoliticaEstimacionOError"}]
["/*",null,{"$f":"'811000 GeneraXBRL'!$D$15","v":"Impacto en el patrimonio por cambio por política, estimación o error"},{"$f":"'811000 GeneraXBRL'!$C$15","v":"co-svsp-core:ImpactoEnElPatrimonioPorCambioPorPoliticaEstimacionOError"}]
["/*",null,{"$f":"'811000 GeneraXBRL'!$D$16","v":"Impacto en el resultado por cambio por política, estimación o error"},{"$f":"'811000 GeneraXBRL'!$C$16","v":"co-svsp-core:ImpactoEnElResultadoPorCambioPorPoliticaEstimacionOError"}]
["/*",null,"--14--"]
["/*",null,{"$f":"'811000 GeneraXBRL'!$D$11","v":"Tipo de Cambio por politica, estimación o error"},{"$f":"'811000 GeneraXBRL'!$C$11","v":"co-svsp-core:TipoDeCambioPorPoliticaEstimacionOError"}]
["/*",null,{"$f":"'811000 GeneraXBRL'!$D$12","v":"Descripción del cambio en política, estimación o error"},{"$f":"'811000 GeneraXBRL'!$C$12","v":"co-svsp-core:DescripcionDelCambioEnPoliticaEstimacionOError"}]
["/*",null,{"$f":"'811000 GeneraXBRL'!$D$13","v":"Impacto en el activo por cambio por política, estimación o error"},{"$f":"'811000 GeneraXBRL'!$C$13","v":"co-svsp-core:ImpactoEnElActivoPorCambioPorPoliticaEstimacionOError"}]
["/*",null,{"$f":"'811000 GeneraXBRL'!$D$14","v":"Impacto en el pasivo por cambio por política, estimación o error"},{"$f":"'811000 GeneraXBRL'!$C$14","v":"co-svsp-core:ImpactoEnElPasivoPorCambioPorPoliticaEstimacionOError"}]
["/*",null,{"$f":"'811000 GeneraXBRL'!$D$15","v":"Impacto en el patrimonio por cambio por política, estimación o error"},{"$f":"'811000 GeneraXBRL'!$C$15","v":"co-svsp-core:ImpactoEnElPatrimonioPorCambioPorPoliticaEstimacionOError"}]
["/*",null,{"$f":"'811000 GeneraXBRL'!$D$16","v":"Impacto en el resultado por cambio por política, estimación o error"},{"$f":"'811000 GeneraXBRL'!$C$16","v":"co-svsp-core:ImpactoEnElResultadoPorCambioPorPoliticaEstimacionOError"}]
["/*",null,"--15--"]
["/*",null,{"$f":"'811000 GeneraXBRL'!$D$11","v":"Tipo de Cambio por politica, estimación o error"},{"$f":"'811000 GeneraXBRL'!$C$11","v":"co-svsp-core:TipoDeCambioPorPoliticaEstimacionOError"}]
["/*",null,{"$f":"'811000 GeneraXBRL'!$D$12","v":"Descripción del cambio en política, estimación o error"},{"$f":"'811000 GeneraXBRL'!$C$12","v":"co-svsp-core:DescripcionDelCambioEnPoliticaEstimacionOError"}]
["/*",null,{"$f":"'811000 GeneraXBRL'!$D$13","v":"Impacto en el activo por cambio por política, estimación o error"},{"$f":"'811000 GeneraXBRL'!$C$13","v":"co-svsp-core:ImpactoEnElActivoPorCambioPorPoliticaEstimacionOError"}]
["/*",null,{"$f":"'811000 GeneraXBRL'!$D$14","v":"Impacto en el pasivo por cambio por política, estimación o error"},{"$f":"'811000 GeneraXBRL'!$C$14","v":"co-svsp-core:ImpactoEnElPasivoPorCambioPorPoliticaEstimacionOError"}]
["/*",null,{"$f":"'811000 GeneraXBRL'!$D$15","v":"Impacto en el patrimonio por cambio por política, estimación o error"},{"$f":"'811000 GeneraXBRL'!$C$15","v":"co-svsp-core:ImpactoEnElPatrimonioPorCambioPorPoliticaEstimacionOError"}]
["/*",null,{"$f":"'811000 GeneraXBRL'!$D$16","v":"Impacto en el resultado por cambio por política, estimación o error"},{"$f":"'811000 GeneraXBRL'!$C$16","v":"co-svsp-core:ImpactoEnElResultadoPorCambioPorPoliticaEstimacionOError"}]
["/*",null,"--16--"]
["/*",null,{"$f":"'811000 GeneraXBRL'!$D$11","v":"Tipo de Cambio por politica, estimación o error"},{"$f":"'811000 GeneraXBRL'!$C$11","v":"co-svsp-core:TipoDeCambioPorPoliticaEstimacionOError"}]
["/*",null,{"$f":"'811000 GeneraXBRL'!$D$12","v":"Descripción del cambio en política, estimación o error"},{"$f":"'811000 GeneraXBRL'!$C$12","v":"co-svsp-core:DescripcionDelCambioEnPoliticaEstimacionOError"}]
["/*",null,{"$f":"'811000 GeneraXBRL'!$D$13","v":"Impacto en el activo por cambio por política, estimación o error"},{"$f":"'811000 GeneraXBRL'!$C$13","v":"co-svsp-core:ImpactoEnElActivoPorCambioPorPoliticaEstimacionOError"}]
["/*",null,{"$f":"'811000 GeneraXBRL'!$D$14","v":"Impacto en el pasivo por cambio por política, estimación o error"},{"$f":"'811000 GeneraXBRL'!$C$14","v":"co-svsp-core:ImpactoEnElPasivoPorCambioPorPoliticaEstimacionOError"}]
["/*",null,{"$f":"'811000 GeneraXBRL'!$D$15","v":"Impacto en el patrimonio por cambio por política, estimación o error"},{"$f":"'811000 GeneraXBRL'!$C$15","v":"co-svsp-core:ImpactoEnElPatrimonioPorCambioPorPoliticaEstimacionOError"}]
["/*",null,{"$f":"'811000 GeneraXBRL'!$D$16","v":"Impacto en el resultado por cambio por política, estimación o error"},{"$f":"'811000 GeneraXBRL'!$C$16","v":"co-svsp-core:ImpactoEnElResultadoPorCambioPorPoliticaEstimacionOError"}]
["/*",null,"--17--"]
["/*",null,{"$f":"'811000 GeneraXBRL'!$D$11","v":"Tipo de Cambio por politica, estimación o error"},{"$f":"'811000 GeneraXBRL'!$C$11","v":"co-svsp-core:TipoDeCambioPorPoliticaEstimacionOError"}]
["/*",null,{"$f":"'811000 GeneraXBRL'!$D$12","v":"Descripción del cambio en política, estimación o error"},{"$f":"'811000 GeneraXBRL'!$C$12","v":"co-svsp-core:DescripcionDelCambioEnPoliticaEstimacionOError"}]
["/*",null,{"$f":"'811000 GeneraXBRL'!$D$13","v":"Impacto en el activo por cambio por política, estimación o error"},{"$f":"'811000 GeneraXBRL'!$C$13","v":"co-svsp-core:ImpactoEnElActivoPorCambioPorPoliticaEstimacionOError"}]
["/*",null,{"$f":"'811000 GeneraXBRL'!$D$14","v":"Impacto en el pasivo por cambio por política, estimación o error"},{"$f":"'811000 GeneraXBRL'!$C$14","v":"co-svsp-core:ImpactoEnElPasivoPorCambioPorPoliticaEstimacionOError"}]
["/*",null,{"$f":"'811000 GeneraXBRL'!$D$15","v":"Impacto en el patrimonio por cambio por política, estimación o error"},{"$f":"'811000 GeneraXBRL'!$C$15","v":"co-svsp-core:ImpactoEnElPatrimonioPorCambioPorPoliticaEstimacionOError"}]
["/*",null,{"$f":"'811000 GeneraXBRL'!$D$16","v":"Impacto en el resultado por cambio por política, estimación o error"},{"$f":"'811000 GeneraXBRL'!$C$16","v":"co-svsp-core:ImpactoEnElResultadoPorCambioPorPoliticaEstimacionOError"}]
["/*",null,"--18--"]
["/*",null,{"$f":"'811000 GeneraXBRL'!$D$11","v":"Tipo de Cambio por politica, estimación o error"},{"$f":"'811000 GeneraXBRL'!$C$11","v":"co-svsp-core:TipoDeCambioPorPoliticaEstimacionOError"}]
["/*",null,{"$f":"'811000 GeneraXBRL'!$D$12","v":"Descripción del cambio en política, estimación o error"},{"$f":"'811000 GeneraXBRL'!$C$12","v":"co-svsp-core:DescripcionDelCambioEnPoliticaEstimacionOError"}]
["/*",null,{"$f":"'811000 GeneraXBRL'!$D$13","v":"Impacto en el activo por cambio por política, estimación o error"},{"$f":"'811000 GeneraXBRL'!$C$13","v":"co-svsp-core:ImpactoEnElActivoPorCambioPorPoliticaEstimacionOError"}]
["/*",null,{"$f":"'811000 GeneraXBRL'!$D$14","v":"Impacto en el pasivo por cambio por política, estimación o error"},{"$f":"'811000 GeneraXBRL'!$C$14","v":"co-svsp-core:ImpactoEnElPasivoPorCambioPorPoliticaEstimacionOError"}]
["/*",null,{"$f":"'811000 GeneraXBRL'!$D$15","v":"Impacto en el patrimonio por cambio por política, estimación o error"},{"$f":"'811000 GeneraXBRL'!$C$15","v":"co-svsp-core:ImpactoEnElPatrimonioPorCambioPorPoliticaEstimacionOError"}]
["/*",null,{"$f":"'811000 GeneraXBRL'!$D$16","v":"Impacto en el resultado por cambio por política, estimación o error"},{"$f":"'811000 GeneraXBRL'!$C$16","v":"co-svsp-core:ImpactoEnElResultadoPorCambioPorPoliticaEstimacionOError"}]
["/*",null,"--19--"]
["/*",null,{"$f":"'811000 GeneraXBRL'!$D$11","v":"Tipo de Cambio por politica, estimación o error"},{"$f":"'811000 GeneraXBRL'!$C$11","v":"co-svsp-core:TipoDeCambioPorPoliticaEstimacionOError"}]
[{"$f":"IF(G4960=\"\",\"/*\",\"\")","v":"/*"},null,{"$f":"'811000 GeneraXBRL'!$D$12","v":"Descripción del cambio en política, estimación o error"},{"$f":"'811000 GeneraXBRL'!$C$12","v":"co-svsp-core:DescripcionDelCambioEnPoliticaEstimacionOError"}]
["/*",null,{"$f":"'811000 GeneraXBRL'!$D$13","v":"Impacto en el activo por cambio por política, estimación o error"},{"$f":"'811000 GeneraXBRL'!$C$13","v":"co-svsp-core:ImpactoEnElActivoPorCambioPorPoliticaEstimacionOError"}]
["/*",null,{"$f":"'811000 GeneraXBRL'!$D$14","v":"Impacto en el pasivo por cambio por política, estimación o error"},{"$f":"'811000 GeneraXBRL'!$C$14","v":"co-svsp-core:ImpactoEnElPasivoPorCambioPorPoliticaEstimacionOError"}]
["/*",null,{"$f":"'811000 GeneraXBRL'!$D$15","v":"Impacto en el patrimonio por cambio por política, estimación o error"},{"$f":"'811000 GeneraXBRL'!$C$15","v":"co-svsp-core:ImpactoEnElPatrimonioPorCambioPorPoliticaEstimacionOError"}]
["/*",null,{"$f":"'811000 GeneraXBRL'!$D$16","v":"Impacto en el resultado por cambio por política, estimación o error"},{"$f":"'811000 GeneraXBRL'!$C$16","v":"co-svsp-core:ImpactoEnElResultadoPorCambioPorPoliticaEstimacionOError"}]
["/*",null,"--20--"]
["/*",null,{"$f":"'811000 GeneraXBRL'!$D$11","v":"Tipo de Cambio por politica, estimación o error"},{"$f":"'811000 GeneraXBRL'!$C$11","v":"co-svsp-core:TipoDeCambioPorPoliticaEstimacionOError"}]
["/*",null,{"$f":"'811000 GeneraXBRL'!$D$12","v":"Descripción del cambio en política, estimación o error"},{"$f":"'811000 GeneraXBRL'!$C$12","v":"co-svsp-core:DescripcionDelCambioEnPoliticaEstimacionOError"}]
["/*",null,{"$f":"'811000 GeneraXBRL'!$D$13","v":"Impacto en el activo por cambio por política, estimación o error"},{"$f":"'811000 GeneraXBRL'!$C$13","v":"co-svsp-core:ImpactoEnElActivoPorCambioPorPoliticaEstimacionOError"}]
["/*",null,{"$f":"'811000 GeneraXBRL'!$D$14","v":"Impacto en el pasivo por cambio por política, estimación o error"},{"$f":"'811000 GeneraXBRL'!$C$14","v":"co-svsp-core:ImpactoEnElPasivoPorCambioPorPoliticaEstimacionOError"}]
["/*",null,{"$f":"'811000 GeneraXBRL'!$D$15","v":"Impacto en el patrimonio por cambio por política, estimación o error"},{"$f":"'811000 GeneraXBRL'!$C$15","v":"co-svsp-core:ImpactoEnElPatrimonioPorCambioPorPoliticaEstimacionOError"}]
["/*",null,{"$f":"'811000 GeneraXBRL'!$D$16","v":"Impacto en el resultado por cambio por política, estimación o error"},{"$f":"'811000 GeneraXBRL'!$C$16","v":"co-svsp-core:ImpactoEnElResultadoPorCambioPorPoliticaEstimacionOError"}]
["/*",null,"--21--"]
["/*",null,{"$f":"'811000 GeneraXBRL'!$D$11","v":"Tipo de Cambio por politica, estimación o error"},{"$f":"'811000 GeneraXBRL'!$C$11","v":"co-svsp-core:TipoDeCambioPorPoliticaEstimacionOError"}]
["/*",null,{"$f":"'811000 GeneraXBRL'!$D$12","v":"Descripción del cambio en política, estimación o error"},{"$f":"'811000 GeneraXBRL'!$C$12","v":"co-svsp-core:DescripcionDelCambioEnPoliticaEstimacionOError"}]
["/*",null,{"$f":"'811000 GeneraXBRL'!$D$13","v":"Impacto en el activo por cambio por política, estimación o error"},{"$f":"'811000 GeneraXBRL'!$C$13","v":"co-svsp-core:ImpactoEnElActivoPorCambioPorPoliticaEstimacionOError"}]
["/*",null,{"$f":"'811000 GeneraXBRL'!$D$14","v":"Impacto en el pasivo por cambio por política, estimación o error"},{"$f":"'811000 GeneraXBRL'!$C$14","v":"co-svsp-core:ImpactoEnElPasivoPorCambioPorPoliticaEstimacionOError"}]
["/*",null,{"$f":"'811000 GeneraXBRL'!$D$15","v":"Impacto en el patrimonio por cambio por política, estimación o error"},{"$f":"'811000 GeneraXBRL'!$C$15","v":"co-svsp-core:ImpactoEnElPatrimonioPorCambioPorPoliticaEstimacionOError"}]
["/*",null,{"$f":"'811000 GeneraXBRL'!$D$16","v":"Impacto en el resultado por cambio por política, estimación o error"},{"$f":"'811000 GeneraXBRL'!$C$16","v":"co-svsp-core:ImpactoEnElResultadoPorCambioPorPoliticaEstimacionOError"}]
["/*",null,"--22--"]
["/*",null,{"$f":"'811000 GeneraXBRL'!$D$11","v":"Tipo de Cambio por politica, estimación o error"},{"$f":"'811000 GeneraXBRL'!$C$11","v":"co-svsp-core:TipoDeCambioPorPoliticaEstimacionOError"}]
["/*",null,{"$f":"'811000 GeneraXBRL'!$D$12","v":"Descripción del cambio en política, estimación o error"},{"$f":"'811000 GeneraXBRL'!$C$12","v":"co-svsp-core:DescripcionDelCambioEnPoliticaEstimacionOError"}]
["/*",null,{"$f":"'811000 GeneraXBRL'!$D$13","v":"Impacto en el activo por cambio por política, estimación o error"},{"$f":"'811000 GeneraXBRL'!$C$13","v":"co-svsp-core:ImpactoEnElActivoPorCambioPorPoliticaEstimacionOError"}]
["/*",null,{"$f":"'811000 GeneraXBRL'!$D$14","v":"Impacto en el pasivo por cambio por política, estimación o error"},{"$f":"'811000 GeneraXBRL'!$C$14","v":"co-svsp-core:ImpactoEnElPasivoPorCambioPorPoliticaEstimacionOError"}]
["/*",null,{"$f":"'811000 GeneraXBRL'!$D$15","v":"Impacto en el patrimonio por cambio por política, estimación o error"},{"$f":"'811000 GeneraXBRL'!$C$15","v":"co-svsp-core:ImpactoEnElPatrimonioPorCambioPorPoliticaEstimacionOError"}]
["/*",null,{"$f":"'811000 GeneraXBRL'!$D$16","v":"Impacto en el resultado por cambio por política, estimación o error"},{"$f":"'811000 GeneraXBRL'!$C$16","v":"co-svsp-core:ImpactoEnElResultadoPorCambioPorPoliticaEstimacionOError"}]
["/*",null,"--23--"]
["/*",null,{"$f":"'811000 GeneraXBRL'!$D$11","v":"Tipo de Cambio por politica, estimación o error"},{"$f":"'811000 GeneraXBRL'!$C$11","v":"co-svsp-core:TipoDeCambioPorPoliticaEstimacionOError"}]
["/*",null,{"$f":"'811000 GeneraXBRL'!$D$12","v":"Descripción del cambio en política, estimación o error"},{"$f":"'811000 GeneraXBRL'!$C$12","v":"co-svsp-core:DescripcionDelCambioEnPoliticaEstimacionOError"}]
["/*",null,{"$f":"'811000 GeneraXBRL'!$D$13","v":"Impacto en el activo por cambio por política, estimación o error"},{"$f":"'811000 GeneraXBRL'!$C$13","v":"co-svsp-core:ImpactoEnElActivoPorCambioPorPoliticaEstimacionOError"}]
["/*",null,{"$f":"'811000 GeneraXBRL'!$D$14","v":"Impacto en el pasivo por cambio por política, estimación o error"},{"$f":"'811000 GeneraXBRL'!$C$14","v":"co-svsp-core:ImpactoEnElPasivoPorCambioPorPoliticaEstimacionOError"}]
["/*",null,{"$f":"'811000 GeneraXBRL'!$D$15","v":"Impacto en el patrimonio por cambio por política, estimación o error"},{"$f":"'811000 GeneraXBRL'!$C$15","v":"co-svsp-core:ImpactoEnElPatrimonioPorCambioPorPoliticaEstimacionOError"}]
["/*",null,{"$f":"'811000 GeneraXBRL'!$D$16","v":"Impacto en el resultado por cambio por política, estimación o error"},{"$f":"'811000 GeneraXBRL'!$C$16","v":"co-svsp-core:ImpactoEnElResultadoPorCambioPorPoliticaEstimacionOError"}]
["/*",null,"--24--"]
["/*",null,{"$f":"'811000 GeneraXBRL'!$D$11","v":"Tipo de Cambio por politica, estimación o error"},{"$f":"'811000 GeneraXBRL'!$C$11","v":"co-svsp-core:TipoDeCambioPorPoliticaEstimacionOError"}]
["/*",null,{"$f":"'811000 GeneraXBRL'!$D$12","v":"Descripción del cambio en política, estimación o error"},{"$f":"'811000 GeneraXBRL'!$C$12","v":"co-svsp-core:DescripcionDelCambioEnPoliticaEstimacionOError"}]
["/*",null,{"$f":"'811000 GeneraXBRL'!$D$13","v":"Impacto en el activo por cambio por política, estimación o error"},{"$f":"'811000 GeneraXBRL'!$C$13","v":"co-svsp-core:ImpactoEnElActivoPorCambioPorPoliticaEstimacionOError"}]
["/*",null,{"$f":"'811000 GeneraXBRL'!$D$14","v":"Impacto en el pasivo por cambio por política, estimación o error"},{"$f":"'811000 GeneraXBRL'!$C$14","v":"co-svsp-core:ImpactoEnElPasivoPorCambioPorPoliticaEstimacionOError"}]
["/*",null,{"$f":"'811000 GeneraXBRL'!$D$15","v":"Impacto en el patrimonio por cambio por política, estimación o error"},{"$f":"'811000 GeneraXBRL'!$C$15","v":"co-svsp-core:ImpactoEnElPatrimonioPorCambioPorPoliticaEstimacionOError"}]
["/*",null,{"$f":"'811000 GeneraXBRL'!$D$16","v":"Impacto en el resultado por cambio por política, estimación o error"},{"$f":"'811000 GeneraXBRL'!$C$16","v":"co-svsp-core:ImpactoEnElResultadoPorCambioPorPoliticaEstimacionOError"}]
["/*",null,"--25--"]
["/*",null,{"$f":"'811000 GeneraXBRL'!$D$11","v":"Tipo de Cambio por politica, estimación o error"},{"$f":"'811000 GeneraXBRL'!$C$11","v":"co-svsp-core:TipoDeCambioPorPoliticaEstimacionOError"}]
["/*",null,{"$f":"'811000 GeneraXBRL'!$D$12","v":"Descripción del cambio en política, estimación o error"},{"$f":"'811000 GeneraXBRL'!$C$12","v":"co-svsp-core:DescripcionDelCambioEnPoliticaEstimacionOError"}]
["/*",null,{"$f":"'811000 GeneraXBRL'!$D$13","v":"Impacto en el activo por cambio por política, estimación o error"},{"$f":"'811000 GeneraXBRL'!$C$13","v":"co-svsp-core:ImpactoEnElActivoPorCambioPorPoliticaEstimacionOError"}]
["/*",null,{"$f":"'811000 GeneraXBRL'!$D$14","v":"Impacto en el pasivo por cambio por política, estimación o error"},{"$f":"'811000 GeneraXBRL'!$C$14","v":"co-svsp-core:ImpactoEnElPasivoPorCambioPorPoliticaEstimacionOError"}]
["/*",null,{"$f":"'811000 GeneraXBRL'!$D$15","v":"Impacto en el patrimonio por cambio por política, estimación o error"},{"$f":"'811000 GeneraXBRL'!$C$15","v":"co-svsp-core:ImpactoEnElPatrimonioPorCambioPorPoliticaEstimacionOError"}]
["/*",null,{"$f":"'811000 GeneraXBRL'!$D$16","v":"Impacto en el resultado por cambio por política, estimación o error"},{"$f":"'811000 GeneraXBRL'!$C$16","v":"co-svsp-core:ImpactoEnElResultadoPorCambioPorPoliticaEstimacionOError"}]
["/*",null,"--26--"]
["/*",null,{"$f":"'811000 GeneraXBRL'!$D$11","v":"Tipo de Cambio por politica, estimación o error"},{"$f":"'811000 GeneraXBRL'!$C$11","v":"co-svsp-core:TipoDeCambioPorPoliticaEstimacionOError"}]
["/*",null,{"$f":"'811000 GeneraXBRL'!$D$12","v":"Descripción del cambio en política, estimación o error"},{"$f":"'811000 GeneraXBRL'!$C$12","v":"co-svsp-core:DescripcionDelCambioEnPoliticaEstimacionOError"}]
["/*",null,{"$f":"'811000 GeneraXBRL'!$D$13","v":"Impacto en el activo por cambio por política, estimación o error"},{"$f":"'811000 GeneraXBRL'!$C$13","v":"co-svsp-core:ImpactoEnElActivoPorCambioPorPoliticaEstimacionOError"}]
["/*",null,{"$f":"'811000 GeneraXBRL'!$D$14","v":"Impacto en el pasivo por cambio por política, estimación o error"},{"$f":"'811000 GeneraXBRL'!$C$14","v":"co-svsp-core:ImpactoEnElPasivoPorCambioPorPoliticaEstimacionOError"}]
["/*",null,{"$f":"'811000 GeneraXBRL'!$D$15","v":"Impacto en el patrimonio por cambio por política, estimación o error"},{"$f":"'811000 GeneraXBRL'!$C$15","v":"co-svsp-core:ImpactoEnElPatrimonioPorCambioPorPoliticaEstimacionOError"}]
["/*",null,{"$f":"'811000 GeneraXBRL'!$D$16","v":"Impacto en el resultado por cambio por política, estimación o error"},{"$f":"'811000 GeneraXBRL'!$C$16","v":"co-svsp-core:ImpactoEnElResultadoPorCambioPorPoliticaEstimacionOError"}]
["/*"]
["/*",null,"822100 - Nota. Prop, plan y eq."]
["/*",null,"--01--"]
["/*",null,{"$f":"'822100 - Nota. Prop, plan y eq.'!$E$15","v":"Información a revelar detallada sobre propiedades, planta y equipo [partidas de los estados financieros]"},{"$f":"'822100 - Nota. Prop, plan y eq.'!$D$15","v":"ifrs-full:DisclosureOfPropertyPlantAndEquipmentLineItems"}]
["/*",null,{"$f":"'822100 - Nota. Prop, plan y eq.'!$E$16","v":"Bases de medición, propiedades, planta y equipo"},{"$f":"'822100 - Nota. Prop, plan y eq.'!$D$16","v":"ifrs-full:MeasurementBasesPropertyPlantAndEquipment"}]
["/*",null,{"$f":"'822100 - Nota. Prop, plan y eq.'!$E$17","v":"Método de depreciación, propiedades, planta y equipo"},{"$f":"'822100 - Nota. Prop, plan y eq.'!$D$17","v":"ifrs-full:DepreciationMethodPropertyPlantAndEquipment"}]
["/*",null,{"$f":"'822100 - Nota. Prop, plan y eq.'!$E$18","v":"Fechas de vigencia de revaluación, propiedades, planta y equipo"},{"$f":"'822100 - Nota. Prop, plan y eq.'!$D$18","v":"ifrs-full:EffectiveDatesOfRevaluationPropertyPlantAndEquipment"}]
["/*",null,{"$f":"'822100 - Nota. Prop, plan y eq.'!$E$19","v":"Explicación de la implicación del tasador independiente en la revaluación, propiedades, planta y equipo"},{"$f":"'822100 - Nota. Prop, plan y eq.'!$D$19","v":"ifrs-full:ExplanationOfIndependentValuerUsedForRevaluationPropertyPlantAndEquipment"}]
["/*",null,{"$f":"'822100 - Nota. Prop, plan y eq.'!$E$20","v":"Explicación del método de revaluación y supuestos significativos, propiedad, planta y equipo"},{"$f":"'822100 - Nota. Prop, plan y eq.'!$D$20","v":"co-svsp-core:ExplanationOfRevaluationMethodsAndSignificantAssumptionsPropertyPlantAndEquipment"}]
["/*",null,{"$f":"'822100 - Nota. Prop, plan y eq.'!$E$21","v":"Conciliación de cambios en propiedades, planta y equipo [resumen]"},{"$f":"'822100 - Nota. Prop, plan y eq.'!$D$21","v":"ifrs-full:ReconciliationOfChangesInPropertyPlantAndEquipmentAbstract"}]
[{"$f":"IF(G5024=\"\",\"/*\",\"\")","v":"/*"},null,{"$f":"'822100 - Nota. Prop, plan y eq.'!$E$22","v":"Propiedades, planta y equipo al comienzo del periodo"},{"$f":"'822100 - Nota. Prop, plan y eq.'!$D$22","v":"ifrs-full:PropertyPlantAndEquipment"}]
["/*",null,{"$f":"'822100 - Nota. Prop, plan y eq.'!$E$23","v":"Cambios en propiedades, planta y equipo [resumen]"},{"$f":"'822100 - Nota. Prop, plan y eq.'!$D$23","v":"ifrs-full:ChangesInPropertyPlantAndEquipmentAbstract"}]
["/*",null,{"$f":"'822100 - Nota. Prop, plan y eq.'!$E$24","v":"Incrementos distintos de los procedentes de combinaciones de negocios, propiedades, planta y equipo"},{"$f":"'822100 - Nota. Prop, plan y eq.'!$D$24","v":"ifrs-full:AdditionsOtherThanThroughBusinessCombinationsPropertyPlantAndEquipment"}]
["/*",null,{"$f":"'822100 - Nota. Prop, plan y eq.'!$E$25","v":"Adquisiciones realizadas mediante combinaciones de negocios, propiedades, planta y equipo"},{"$f":"'822100 - Nota. Prop, plan y eq.'!$D$25","v":"ifrs-full:AcquisitionsThroughBusinessCombinationsPropertyPlantAndEquipment"}]
["/*",null,{"$f":"'822100 - Nota. Prop, plan y eq.'!$E$26","v":"Depreciación, propiedades, planta y equipo"},{"$f":"'822100 - Nota. Prop, plan y eq.'!$D$26","v":"ifrs-full:DepreciationPropertyPlantAndEquipment"}]
["/*",null,{"$f":"'822100 - Nota. Prop, plan y eq.'!$E$27","v":"Pérdidas por deterioro de valor reconocidas en el resultado del periodo, propiedades, planta y equipo"},{"$f":"'822100 - Nota. Prop, plan y eq.'!$D$27","v":"ifrs-full:ImpairmentLossRecognisedInProfitOrLossPropertyPlantAndEquipment"}]
["/*",null,{"$f":"'822100 - Nota. Prop, plan y eq.'!$E$28","v":"Reversión de pérdidas por deterioro de valor reconocidas en el resultado del periodo, propiedades, planta y equipo"},{"$f":"'822100 - Nota. Prop, plan y eq.'!$D$28","v":"ifrs-full:ReversalOfImpairmentLossRecognisedInProfitOrLossPropertyPlantAndEquipment"}]
["/*",null,{"$f":"'822100 - Nota. Prop, plan y eq.'!$E$29","v":"Incrementos (disminuciones) de revaluaciones, propiedades, planta y equipo"},{"$f":"'822100 - Nota. Prop, plan y eq.'!$D$29","v":"ifrs-full:RevaluationIncreaseDecreasePropertyPlantAndEquipment"}]
["/*",null,{"$f":"'822100 - Nota. Prop, plan y eq.'!$E$30","v":"Pérdidas por deterioro de valor reconocidas en otro resultado integral, propiedades, planta y equipo"},{"$f":"'822100 - Nota. Prop, plan y eq.'!$D$30","v":"ifrs-full:ImpairmentLossRecognisedInOtherComprehensiveIncomePropertyPlantAndEquipment"}]
["/*",null,{"$f":"'822100 - Nota. Prop, plan y eq.'!$E$31","v":"Reversión de pérdidas por deterioro de valor reconocidas en otro resultado integral, propiedades, planta y equipo"},{"$f":"'822100 - Nota. Prop, plan y eq.'!$D$31","v":"ifrs-full:ReversalOfImpairmentLossRecognisedInOtherComprehensiveIncomePropertyPlantAndEquipment"}]
["/*",null,{"$f":"'822100 - Nota. Prop, plan y eq.'!$E$32","v":"Incrementos (disminuciones) por transferencias y otros cambios, propiedades, planta y equipo [resumen]"},{"$f":"'822100 - Nota. Prop, plan y eq.'!$D$32","v":"ifrs-full:IncreaseDecreaseThroughTransfersAndOtherChangesPropertyPlantAndEquipmentAbstract"}]
["/*",null,{"$f":"'822100 - Nota. Prop, plan y eq.'!$E$33","v":"Incrementos (disminuciones) por transferencias desde (hacia) propiedades de inversión, propiedades, planta y equipo"},{"$f":"'822100 - Nota. Prop, plan y eq.'!$D$33","v":"ifrs-full:IncreaseDecreaseThroughTransfersFromToInvestmentPropertyPropertyPlantAndEquipment"}]
["/*",null,{"$f":"'822100 - Nota. Prop, plan y eq.'!$E$34","v":"Incrementos (disminuciones) por transferencias desde construcciones en proceso , propiedades, planta y equipo"},{"$f":"'822100 - Nota. Prop, plan y eq.'!$D$34","v":"ifrs-full:IncreaseDecreaseThroughTransfersFromConstructionInProgressPropertyPlantAndEquipment"}]
["/*",null,{"$f":"'822100 - Nota. Prop, plan y eq.'!$E$35","v":"Incrementos (disminuciones) por otros cambios, propiedades, planta y equipo"},{"$f":"'822100 - Nota. Prop, plan y eq.'!$D$35","v":"ifrs-full:IncreaseDecreaseThroughOtherChangesPropertyPlantAndEquipment"}]
["",null,{"$f":"'822100 - Nota. Prop, plan y eq.'!$E$36","v":"Total incrementos (disminuciones) por transferencias y otros cambios, propiedades, planta y equipo"},{"$f":"'822100 - Nota. Prop, plan y eq.'!$D$36","v":"ifrs-full:IncreaseDecreaseThroughTransfersAndOtherChangesPropertyPlantAndEquipment"},0,"peso",{"$f":"'822100 - Nota. Prop, plan y eq.'!$F$36","v":0},0,"http://www.xbrl.org/scheme/companyName",{"$f":"Periodos!$C$3","v":"2023-01-01"},{"$f":"Periodos!$C$4","v":"2023-12-31"},{"$f":"'822100 - Nota. Prop, plan y eq.'!$E$14","v":"co-svsp-core:PropiedadesPlantaYEquipoEje_G1"},{"$f":"'822100 - Nota. Prop, plan y eq.'!$F$13","v":"ifrs-full:LandMember"}]
["/*",null,{"$f":"'822100 - Nota. Prop, plan y eq.'!$E$37","v":"Disposiciones y retiros de servicio, propiedades, planta y equipo [resumen]"},{"$f":"'822100 - Nota. Prop, plan y eq.'!$D$37","v":"ifrs-full:DisposalsAndRetirementsPropertyPlantAndEquipmentAbstract"}]
["/*",null,{"$f":"'822100 - Nota. Prop, plan y eq.'!$E$38","v":"Disposiciones, propiedades, planta y equipo"},{"$f":"'822100 - Nota. Prop, plan y eq.'!$D$38","v":"ifrs-full:DisposalsPropertyPlantAndEquipment"}]
["/*",null,{"$f":"'822100 - Nota. Prop, plan y eq.'!$E$39","v":"Retiros, propiedades, planta y equipo"},{"$f":"'822100 - Nota. Prop, plan y eq.'!$D$39","v":"ifrs-full:RetirementsPropertyPlantAndEquipment"}]
["",null,{"$f":"'822100 - Nota. Prop, plan y eq.'!$E$40","v":"Total de disposiciones y retiros de servicio, propiedades, planta y equipo"},{"$f":"'822100 - Nota. Prop, plan y eq.'!$D$40","v":"ifrs-full:DisposalsAndRetirementsPropertyPlantAndEquipment"},0,"peso",{"$f":"'822100 - Nota. Prop, plan y eq.'!$F$40","v":0},0,"http://www.xbrl.org/scheme/companyName",{"$f":"Periodos!$C$3","v":"2023-01-01"},{"$f":"Periodos!$C$4","v":"2023-12-31"},{"$f":"'822100 - Nota. Prop, plan y eq.'!$E$14","v":"co-svsp-core:PropiedadesPlantaYEquipoEje_G1"},{"$f":"'822100 - Nota. Prop, plan y eq.'!$F$13","v":"ifrs-full:LandMember"}]
["/*",null,{"$f":"'822100 - Nota. Prop, plan y eq.'!$E$41","v":"Disminuciones por clasificar como mantenidos para la venta, propiedades, planta y equipo"},{"$f":"'822100 - Nota. Prop, plan y eq.'!$D$41","v":"ifrs-full:DecreaseThroughClassifiedAsHeldForSalePropertyPlantAndEquipment"}]
["",null,{"$f":"'822100 - Nota. Prop, plan y eq.'!$E$42","v":"Total incremento (disminución) en propiedades, planta y equipo"},{"$f":"'822100 - Nota. Prop, plan y eq.'!$D$42","v":"ifrs-full:ChangesInPropertyPlantAndEquipment"},0,"peso",{"$f":"'822100 - Nota. Prop, plan y eq.'!$F$42","v":0},0,"http://www.xbrl.org/scheme/companyName",{"$f":"Periodos!$C$3","v":"2023-01-01"},{"$f":"Periodos!$C$4","v":"2023-12-31"},{"$f":"'822100 - Nota. Prop, plan y eq.'!$E$14","v":"co-svsp-core:PropiedadesPlantaYEquipoEje_G1"},{"$f":"'822100 - Nota. Prop, plan y eq.'!$F$13","v":"ifrs-full:LandMember"}]
["",null,{"$f":"'822100 - Nota. Prop, plan y eq.'!$E$43","v":"Propiedades, planta y equipo al final del periodo"},{"$f":"'822100 - Nota. Prop, plan y eq.'!$D$43","v":"ifrs-full:PropertyPlantAndEquipment"},0,"peso",{"$f":"'822100 - Nota. Prop, plan y eq.'!$F$43","v":0},0,"http://www.xbrl.org/scheme/companyName",null,{"$f":"Periodos!$C$4","v":"2023-12-31"},{"$f":"'822100 - Nota. Prop, plan y eq.'!$E$14","v":"co-svsp-core:PropiedadesPlantaYEquipoEje_G1"},{"$f":"'822100 - Nota. Prop, plan y eq.'!$F$13","v":"ifrs-full:LandMember"}]
["/*",null,"--02--"]
["/*",null,{"$f":"'822100 - Nota. Prop, plan y eq.'!$E$15","v":"Información a revelar detallada sobre propiedades, planta y equipo [partidas de los estados financieros]"},{"$f":"'822100 - Nota. Prop, plan y eq.'!$D$15","v":"ifrs-full:DisclosureOfPropertyPlantAndEquipmentLineItems"}]
["/*",null,{"$f":"'822100 - Nota. Prop, plan y eq.'!$E$16","v":"Bases de medición, propiedades, planta y equipo"},{"$f":"'822100 - Nota. Prop, plan y eq.'!$D$16","v":"ifrs-full:MeasurementBasesPropertyPlantAndEquipment"}]
["/*",null,{"$f":"'822100 - Nota. Prop, plan y eq.'!$E$17","v":"Método de depreciación, propiedades, planta y equipo"},{"$f":"'822100 - Nota. Prop, plan y eq.'!$D$17","v":"ifrs-full:DepreciationMethodPropertyPlantAndEquipment"}]
["/*",null,{"$f":"'822100 - Nota. Prop, plan y eq.'!$E$18","v":"Fechas de vigencia de revaluación, propiedades, planta y equipo"},{"$f":"'822100 - Nota. Prop, plan y eq.'!$D$18","v":"ifrs-full:EffectiveDatesOfRevaluationPropertyPlantAndEquipment"}]
["/*",null,{"$f":"'822100 - Nota. Prop, plan y eq.'!$E$19","v":"Explicación de la implicación del tasador independiente en la revaluación, propiedades, planta y equipo"},{"$f":"'822100 - Nota. Prop, plan y eq.'!$D$19","v":"ifrs-full:ExplanationOfIndependentValuerUsedForRevaluationPropertyPlantAndEquipment"}]
["/*",null,{"$f":"'822100 - Nota. Prop, plan y eq.'!$E$20","v":"Explicación del método de revaluación y supuestos significativos, propiedad, planta y equipo"},{"$f":"'822100 - Nota. Prop, plan y eq.'!$D$20","v":"co-svsp-core:ExplanationOfRevaluationMethodsAndSignificantAssumptionsPropertyPlantAndEquipment"}]
["/*",null,{"$f":"'822100 - Nota. Prop, plan y eq.'!$E$21","v":"Conciliación de cambios en propiedades, planta y equipo [resumen]"},{"$f":"'822100 - Nota. Prop, plan y eq.'!$D$21","v":"ifrs-full:ReconciliationOfChangesInPropertyPlantAndEquipmentAbstract"}]
["/*",null,{"$f":"'822100 - Nota. Prop, plan y eq.'!$E$22","v":"Propiedades, planta y equipo al comienzo del periodo"},{"$f":"'822100 - Nota. Prop, plan y eq.'!$D$22","v":"ifrs-full:PropertyPlantAndEquipment"}]
["/*",null,{"$f":"'822100 - Nota. Prop, plan y eq.'!$E$23","v":"Cambios en propiedades, planta y equipo [resumen]"},{"$f":"'822100 - Nota. Prop, plan y eq.'!$D$23","v":"ifrs-full:ChangesInPropertyPlantAndEquipmentAbstract"}]
["/*",null,{"$f":"'822100 - Nota. Prop, plan y eq.'!$E$24","v":"Incrementos distintos de los procedentes de combinaciones de negocios, propiedades, planta y equipo"},{"$f":"'822100 - Nota. Prop, plan y eq.'!$D$24","v":"ifrs-full:AdditionsOtherThanThroughBusinessCombinationsPropertyPlantAndEquipment"}]
["/*",null,{"$f":"'822100 - Nota. Prop, plan y eq.'!$E$25","v":"Adquisiciones realizadas mediante combinaciones de negocios, propiedades, planta y equipo"},{"$f":"'822100 - Nota. Prop, plan y eq.'!$D$25","v":"ifrs-full:AcquisitionsThroughBusinessCombinationsPropertyPlantAndEquipment"}]
["/*",null,{"$f":"'822100 - Nota. Prop, plan y eq.'!$E$26","v":"Depreciación, propiedades, planta y equipo"},{"$f":"'822100 - Nota. Prop, plan y eq.'!$D$26","v":"ifrs-full:DepreciationPropertyPlantAndEquipment"}]
["/*",null,{"$f":"'822100 - Nota. Prop, plan y eq.'!$E$27","v":"Pérdidas por deterioro de valor reconocidas en el resultado del periodo, propiedades, planta y equipo"},{"$f":"'822100 - Nota. Prop, plan y eq.'!$D$27","v":"ifrs-full:ImpairmentLossRecognisedInProfitOrLossPropertyPlantAndEquipment"}]
["/*",null,{"$f":"'822100 - Nota. Prop, plan y eq.'!$E$28","v":"Reversión de pérdidas por deterioro de valor reconocidas en el resultado del periodo, propiedades, planta y equipo"},{"$f":"'822100 - Nota. Prop, plan y eq.'!$D$28","v":"ifrs-full:ReversalOfImpairmentLossRecognisedInProfitOrLossPropertyPlantAndEquipment"}]
["/*",null,{"$f":"'822100 - Nota. Prop, plan y eq.'!$E$29","v":"Incrementos (disminuciones) de revaluaciones, propiedades, planta y equipo"},{"$f":"'822100 - Nota. Prop, plan y eq.'!$D$29","v":"ifrs-full:RevaluationIncreaseDecreasePropertyPlantAndEquipment"}]
["/*",null,{"$f":"'822100 - Nota. Prop, plan y eq.'!$E$30","v":"Pérdidas por deterioro de valor reconocidas en otro resultado integral, propiedades, planta y equipo"},{"$f":"'822100 - Nota. Prop, plan y eq.'!$D$30","v":"ifrs-full:ImpairmentLossRecognisedInOtherComprehensiveIncomePropertyPlantAndEquipment"}]
["/*",null,{"$f":"'822100 - Nota. Prop, plan y eq.'!$E$31","v":"Reversión de pérdidas por deterioro de valor reconocidas en otro resultado integral, propiedades, planta y equipo"},{"$f":"'822100 - Nota. Prop, plan y eq.'!$D$31","v":"ifrs-full:ReversalOfImpairmentLossRecognisedInOtherComprehensiveIncomePropertyPlantAndEquipment"}]
["/*",null,{"$f":"'822100 - Nota. Prop, plan y eq.'!$E$32","v":"Incrementos (disminuciones) por transferencias y otros cambios, propiedades, planta y equipo [resumen]"},{"$f":"'822100 - Nota. Prop, plan y eq.'!$D$32","v":"ifrs-full:IncreaseDecreaseThroughTransfersAndOtherChangesPropertyPlantAndEquipmentAbstract"}]
["/*",null,{"$f":"'822100 - Nota. Prop, plan y eq.'!$E$33","v":"Incrementos (disminuciones) por transferencias desde (hacia) propiedades de inversión, propiedades, planta y equipo"},{"$f":"'822100 - Nota. Prop, plan y eq.'!$D$33","v":"ifrs-full:IncreaseDecreaseThroughTransfersFromToInvestmentPropertyPropertyPlantAndEquipment"}]
["/*",null,{"$f":"'822100 - Nota. Prop, plan y eq.'!$E$34","v":"Incrementos (disminuciones) por transferencias desde construcciones en proceso , propiedades, planta y equipo"},{"$f":"'822100 - Nota. Prop, plan y eq.'!$D$34","v":"ifrs-full:IncreaseDecreaseThroughTransfersFromConstructionInProgressPropertyPlantAndEquipment"}]
["/*",null,{"$f":"'822100 - Nota. Prop, plan y eq.'!$E$35","v":"Incrementos (disminuciones) por otros cambios, propiedades, planta y equipo"},{"$f":"'822100 - Nota. Prop, plan y eq.'!$D$35","v":"ifrs-full:IncreaseDecreaseThroughOtherChangesPropertyPlantAndEquipment"}]
["",null,{"$f":"'822100 - Nota. Prop, plan y eq.'!$E$36","v":"Total incrementos (disminuciones) por transferencias y otros cambios, propiedades, planta y equipo"},{"$f":"'822100 - Nota. Prop, plan y eq.'!$D$36","v":"ifrs-full:IncreaseDecreaseThroughTransfersAndOtherChangesPropertyPlantAndEquipment"},0,"peso",{"$f":"'822100 - Nota. Prop, plan y eq.'!$G$36","v":0},0,"http://www.xbrl.org/scheme/companyName",{"$f":"Periodos!$C$3","v":"2023-01-01"},{"$f":"Periodos!$C$4","v":"2023-12-31"},{"$f":"'822100 - Nota. Prop, plan y eq.'!$E$14","v":"co-svsp-core:PropiedadesPlantaYEquipoEje_G1"},{"$f":"'822100 - Nota. Prop, plan y eq.'!$G$13","v":"ifrs-full:BuildingsMember"}]
["/*",null,{"$f":"'822100 - Nota. Prop, plan y eq.'!$E$37","v":"Disposiciones y retiros de servicio, propiedades, planta y equipo [resumen]"},{"$f":"'822100 - Nota. Prop, plan y eq.'!$D$37","v":"ifrs-full:DisposalsAndRetirementsPropertyPlantAndEquipmentAbstract"}]
["/*",null,{"$f":"'822100 - Nota. Prop, plan y eq.'!$E$38","v":"Disposiciones, propiedades, planta y equipo"},{"$f":"'822100 - Nota. Prop, plan y eq.'!$D$38","v":"ifrs-full:DisposalsPropertyPlantAndEquipment"}]
["/*",null,{"$f":"'822100 - Nota. Prop, plan y eq.'!$E$39","v":"Retiros, propiedades, planta y equipo"},{"$f":"'822100 - Nota. Prop, plan y eq.'!$D$39","v":"ifrs-full:RetirementsPropertyPlantAndEquipment"}]
["",null,{"$f":"'822100 - Nota. Prop, plan y eq.'!$E$40","v":"Total de disposiciones y retiros de servicio, propiedades, planta y equipo"},{"$f":"'822100 - Nota. Prop, plan y eq.'!$D$40","v":"ifrs-full:DisposalsAndRetirementsPropertyPlantAndEquipment"},0,"peso",{"$f":"'822100 - Nota. Prop, plan y eq.'!$G$40","v":0},0,"http://www.xbrl.org/scheme/companyName",{"$f":"Periodos!$C$3","v":"2023-01-01"},{"$f":"Periodos!$C$4","v":"2023-12-31"},{"$f":"'822100 - Nota. Prop, plan y eq.'!$E$14","v":"co-svsp-core:PropiedadesPlantaYEquipoEje_G1"},{"$f":"'822100 - Nota. Prop, plan y eq.'!$G$13","v":"ifrs-full:BuildingsMember"}]
["/*",null,{"$f":"'822100 - Nota. Prop, plan y eq.'!$E$41","v":"Disminuciones por clasificar como mantenidos para la venta, propiedades, planta y equipo"},{"$f":"'822100 - Nota. Prop, plan y eq.'!$D$41","v":"ifrs-full:DecreaseThroughClassifiedAsHeldForSalePropertyPlantAndEquipment"}]
["",null,{"$f":"'822100 - Nota. Prop, plan y eq.'!$E$42","v":"Total incremento (disminución) en propiedades, planta y equipo"},{"$f":"'822100 - Nota. Prop, plan y eq.'!$D$42","v":"ifrs-full:ChangesInPropertyPlantAndEquipment"},0,"peso",{"$f":"'822100 - Nota. Prop, plan y eq.'!$G$42","v":0},0,"http://www.xbrl.org/scheme/companyName",{"$f":"Periodos!$C$3","v":"2023-01-01"},{"$f":"Periodos!$C$4","v":"2023-12-31"},{"$f":"'822100 - Nota. Prop, plan y eq.'!$E$14","v":"co-svsp-core:PropiedadesPlantaYEquipoEje_G1"},{"$f":"'822100 - Nota. Prop, plan y eq.'!$G$13","v":"ifrs-full:BuildingsMember"}]
["",null,{"$f":"'822100 - Nota. Prop, plan y eq.'!$E$43","v":"Propiedades, planta y equipo al final del periodo"},{"$f":"'822100 - Nota. Prop, plan y eq.'!$D$43","v":"ifrs-full:PropertyPlantAndEquipment"},0,"peso",{"$f":"'822100 - Nota. Prop, plan y eq.'!$G$43","v":0},0,"http://www.xbrl.org/scheme/companyName",null,{"$f":"Periodos!$C$4","v":"2023-12-31"},{"$f":"'822100 - Nota. Prop, plan y eq.'!$E$14","v":"co-svsp-core:PropiedadesPlantaYEquipoEje_G1"},{"$f":"'822100 - Nota. Prop, plan y eq.'!$G$13","v":"ifrs-full:BuildingsMember"}]
["/*",null,"--03--"]
["/*",null,{"$f":"'822100 - Nota. Prop, plan y eq.'!$E$15","v":"Información a revelar detallada sobre propiedades, planta y equipo [partidas de los estados financieros]"},{"$f":"'822100 - Nota. Prop, plan y eq.'!$D$15","v":"ifrs-full:DisclosureOfPropertyPlantAndEquipmentLineItems"}]
["/*",null,{"$f":"'822100 - Nota. Prop, plan y eq.'!$E$16","v":"Bases de medición, propiedades, planta y equipo"},{"$f":"'822100 - Nota. Prop, plan y eq.'!$D$16","v":"ifrs-full:MeasurementBasesPropertyPlantAndEquipment"}]
["/*",null,{"$f":"'822100 - Nota. Prop, plan y eq.'!$E$17","v":"Método de depreciación, propiedades, planta y equipo"},{"$f":"'822100 - Nota. Prop, plan y eq.'!$D$17","v":"ifrs-full:DepreciationMethodPropertyPlantAndEquipment"}]
["/*",null,{"$f":"'822100 - Nota. Prop, plan y eq.'!$E$18","v":"Fechas de vigencia de revaluación, propiedades, planta y equipo"},{"$f":"'822100 - Nota. Prop, plan y eq.'!$D$18","v":"ifrs-full:EffectiveDatesOfRevaluationPropertyPlantAndEquipment"}]
["/*",null,{"$f":"'822100 - Nota. Prop, plan y eq.'!$E$19","v":"Explicación de la implicación del tasador independiente en la revaluación, propiedades, planta y equipo"},{"$f":"'822100 - Nota. Prop, plan y eq.'!$D$19","v":"ifrs-full:ExplanationOfIndependentValuerUsedForRevaluationPropertyPlantAndEquipment"}]
["/*",null,{"$f":"'822100 - Nota. Prop, plan y eq.'!$E$20","v":"Explicación del método de revaluación y supuestos significativos, propiedad, planta y equipo"},{"$f":"'822100 - Nota. Prop, plan y eq.'!$D$20","v":"co-svsp-core:ExplanationOfRevaluationMethodsAndSignificantAssumptionsPropertyPlantAndEquipment"}]
["/*",null,{"$f":"'822100 - Nota. Prop, plan y eq.'!$E$21","v":"Conciliación de cambios en propiedades, planta y equipo [resumen]"},{"$f":"'822100 - Nota. Prop, plan y eq.'!$D$21","v":"ifrs-full:ReconciliationOfChangesInPropertyPlantAndEquipmentAbstract"}]
["/*",null,{"$f":"'822100 - Nota. Prop, plan y eq.'!$E$22","v":"Propiedades, planta y equipo al comienzo del periodo"},{"$f":"'822100 - Nota. Prop, plan y eq.'!$D$22","v":"ifrs-full:PropertyPlantAndEquipment"}]
["/*",null,{"$f":"'822100 - Nota. Prop, plan y eq.'!$E$23","v":"Cambios en propiedades, planta y equipo [resumen]"},{"$f":"'822100 - Nota. Prop, plan y eq.'!$D$23","v":"ifrs-full:ChangesInPropertyPlantAndEquipmentAbstract"}]
["/*",null,{"$f":"'822100 - Nota. Prop, plan y eq.'!$E$24","v":"Incrementos distintos de los procedentes de combinaciones de negocios, propiedades, planta y equipo"},{"$f":"'822100 - Nota. Prop, plan y eq.'!$D$24","v":"ifrs-full:AdditionsOtherThanThroughBusinessCombinationsPropertyPlantAndEquipment"}]
["/*",null,{"$f":"'822100 - Nota. Prop, plan y eq.'!$E$25","v":"Adquisiciones realizadas mediante combinaciones de negocios, propiedades, planta y equipo"},{"$f":"'822100 - Nota. Prop, plan y eq.'!$D$25","v":"ifrs-full:AcquisitionsThroughBusinessCombinationsPropertyPlantAndEquipment"}]
[{"$f":"IF(G5088=\"\",\"/*\",\"\")","v":"/*"},null,{"$f":"'822100 - Nota. Prop, plan y eq.'!$E$26","v":"Depreciación, propiedades, planta y equipo"},{"$f":"'822100 - Nota. Prop, plan y eq.'!$D$26","v":"ifrs-full:DepreciationPropertyPlantAndEquipment"}]
["/*",null,{"$f":"'822100 - Nota. Prop, plan y eq.'!$E$27","v":"Pérdidas por deterioro de valor reconocidas en el resultado del periodo, propiedades, planta y equipo"},{"$f":"'822100 - Nota. Prop, plan y eq.'!$D$27","v":"ifrs-full:ImpairmentLossRecognisedInProfitOrLossPropertyPlantAndEquipment"}]
["/*",null,{"$f":"'822100 - Nota. Prop, plan y eq.'!$E$28","v":"Reversión de pérdidas por deterioro de valor reconocidas en el resultado del periodo, propiedades, planta y equipo"},{"$f":"'822100 - Nota. Prop, plan y eq.'!$D$28","v":"ifrs-full:ReversalOfImpairmentLossRecognisedInProfitOrLossPropertyPlantAndEquipment"}]
["/*",null,{"$f":"'822100 - Nota. Prop, plan y eq.'!$E$29","v":"Incrementos (disminuciones) de revaluaciones, propiedades, planta y equipo"},{"$f":"'822100 - Nota. Prop, plan y eq.'!$D$29","v":"ifrs-full:RevaluationIncreaseDecreasePropertyPlantAndEquipment"}]
["/*",null,{"$f":"'822100 - Nota. Prop, plan y eq.'!$E$30","v":"Pérdidas por deterioro de valor reconocidas en otro resultado integral, propiedades, planta y equipo"},{"$f":"'822100 - Nota. Prop, plan y eq.'!$D$30","v":"ifrs-full:ImpairmentLossRecognisedInOtherComprehensiveIncomePropertyPlantAndEquipment"}]
["/*",null,{"$f":"'822100 - Nota. Prop, plan y eq.'!$E$31","v":"Reversión de pérdidas por deterioro de valor reconocidas en otro resultado integral, propiedades, planta y equipo"},{"$f":"'822100 - Nota. Prop, plan y eq.'!$D$31","v":"ifrs-full:ReversalOfImpairmentLossRecognisedInOtherComprehensiveIncomePropertyPlantAndEquipment"}]
["/*",null,{"$f":"'822100 - Nota. Prop, plan y eq.'!$E$32","v":"Incrementos (disminuciones) por transferencias y otros cambios, propiedades, planta y equipo [resumen]"},{"$f":"'822100 - Nota. Prop, plan y eq.'!$D$32","v":"ifrs-full:IncreaseDecreaseThroughTransfersAndOtherChangesPropertyPlantAndEquipmentAbstract"}]
["/*",null,{"$f":"'822100 - Nota. Prop, plan y eq.'!$E$33","v":"Incrementos (disminuciones) por transferencias desde (hacia) propiedades de inversión, propiedades, planta y equipo"},{"$f":"'822100 - Nota. Prop, plan y eq.'!$D$33","v":"ifrs-full:IncreaseDecreaseThroughTransfersFromToInvestmentPropertyPropertyPlantAndEquipment"}]
["/*",null,{"$f":"'822100 - Nota. Prop, plan y eq.'!$E$34","v":"Incrementos (disminuciones) por transferencias desde construcciones en proceso , propiedades, planta y equipo"},{"$f":"'822100 - Nota. Prop, plan y eq.'!$D$34","v":"ifrs-full:IncreaseDecreaseThroughTransfersFromConstructionInProgressPropertyPlantAndEquipment"}]
["/*",null,{"$f":"'822100 - Nota. Prop, plan y eq.'!$E$35","v":"Incrementos (disminuciones) por otros cambios, propiedades, planta y equipo"},{"$f":"'822100 - Nota. Prop, plan y eq.'!$D$35","v":"ifrs-full:IncreaseDecreaseThroughOtherChangesPropertyPlantAndEquipment"}]
["",null,{"$f":"'822100 - Nota. Prop, plan y eq.'!$E$36","v":"Total incrementos (disminuciones) por transferencias y otros cambios, propiedades, planta y equipo"},{"$f":"'822100 - Nota. Prop, plan y eq.'!$D$36","v":"ifrs-full:IncreaseDecreaseThroughTransfersAndOtherChangesPropertyPlantAndEquipment"},0,"peso",{"$f":"'822100 - Nota. Prop, plan y eq.'!$H$36","v":0},0,"http://www.xbrl.org/scheme/companyName",{"$f":"Periodos!$C$3","v":"2023-01-01"},{"$f":"Periodos!$C$4","v":"2023-12-31"},{"$f":"'822100 - Nota. Prop, plan y eq.'!$E$14","v":"co-svsp-core:PropiedadesPlantaYEquipoEje_G1"},{"$f":"'822100 - Nota. Prop, plan y eq.'!$H$13","v":"ifrs-full:LandAndBuildingsMember"}]
["/*",null,{"$f":"'822100 - Nota. Prop, plan y eq.'!$E$37","v":"Disposiciones y retiros de servicio, propiedades, planta y equipo [resumen]"},{"$f":"'822100 - Nota. Prop, plan y eq.'!$D$37","v":"ifrs-full:DisposalsAndRetirementsPropertyPlantAndEquipmentAbstract"}]
["/*",null,{"$f":"'822100 - Nota. Prop, plan y eq.'!$E$38","v":"Disposiciones, propiedades, planta y equipo"},{"$f":"'822100 - Nota. Prop, plan y eq.'!$D$38","v":"ifrs-full:DisposalsPropertyPlantAndEquipment"}]
["/*",null,{"$f":"'822100 - Nota. Prop, plan y eq.'!$E$39","v":"Retiros, propiedades, planta y equipo"},{"$f":"'822100 - Nota. Prop, plan y eq.'!$D$39","v":"ifrs-full:RetirementsPropertyPlantAndEquipment"}]
["",null,{"$f":"'822100 - Nota. Prop, plan y eq.'!$E$40","v":"Total de disposiciones y retiros de servicio, propiedades, planta y equipo"},{"$f":"'822100 - Nota. Prop, plan y eq.'!$D$40","v":"ifrs-full:DisposalsAndRetirementsPropertyPlantAndEquipment"},0,"peso",{"$f":"'822100 - Nota. Prop, plan y eq.'!$H$40","v":0},0,"http://www.xbrl.org/scheme/companyName",{"$f":"Periodos!$C$3","v":"2023-01-01"},{"$f":"Periodos!$C$4","v":"2023-12-31"},{"$f":"'822100 - Nota. Prop, plan y eq.'!$E$14","v":"co-svsp-core:PropiedadesPlantaYEquipoEje_G1"},{"$f":"'822100 - Nota. Prop, plan y eq.'!$H$13","v":"ifrs-full:LandAndBuildingsMember"}]
["/*",null,{"$f":"'822100 - Nota. Prop, plan y eq.'!$E$41","v":"Disminuciones por clasificar como mantenidos para la venta, propiedades, planta y equipo"},{"$f":"'822100 - Nota. Prop, plan y eq.'!$D$41","v":"ifrs-full:DecreaseThroughClassifiedAsHeldForSalePropertyPlantAndEquipment"}]
["",null,{"$f":"'822100 - Nota. Prop, plan y eq.'!$E$42","v":"Total incremento (disminución) en propiedades, planta y equipo"},{"$f":"'822100 - Nota. Prop, plan y eq.'!$D$42","v":"ifrs-full:ChangesInPropertyPlantAndEquipment"},0,"peso",{"$f":"'822100 - Nota. Prop, plan y eq.'!$H$42","v":0},0,"http://www.xbrl.org/scheme/companyName",{"$f":"Periodos!$C$3","v":"2023-01-01"},{"$f":"Periodos!$C$4","v":"2023-12-31"},{"$f":"'822100 - Nota. Prop, plan y eq.'!$E$14","v":"co-svsp-core:PropiedadesPlantaYEquipoEje_G1"},{"$f":"'822100 - Nota. Prop, plan y eq.'!$H$13","v":"ifrs-full:LandAndBuildingsMember"}]
["",null,{"$f":"'822100 - Nota. Prop, plan y eq.'!$E$43","v":"Propiedades, planta y equipo al final del periodo"},{"$f":"'822100 - Nota. Prop, plan y eq.'!$D$43","v":"ifrs-full:PropertyPlantAndEquipment"},0,"peso",{"$f":"'822100 - Nota. Prop, plan y eq.'!$H$43","v":0},0,"http://www.xbrl.org/scheme/companyName",null,{"$f":"Periodos!$C$4","v":"2023-12-31"},{"$f":"'822100 - Nota. Prop, plan y eq.'!$E$14","v":"co-svsp-core:PropiedadesPlantaYEquipoEje_G1"},{"$f":"'822100 - Nota. Prop, plan y eq.'!$H$13","v":"ifrs-full:LandAndBuildingsMember"}]
["/*",null,"--04--"]
["/*",null,{"$f":"'822100 - Nota. Prop, plan y eq.'!$E$15","v":"Información a revelar detallada sobre propiedades, planta y equipo [partidas de los estados financieros]"},{"$f":"'822100 - Nota. Prop, plan y eq.'!$D$15","v":"ifrs-full:DisclosureOfPropertyPlantAndEquipmentLineItems"}]
["/*",null,{"$f":"'822100 - Nota. Prop, plan y eq.'!$E$16","v":"Bases de medición, propiedades, planta y equipo"},{"$f":"'822100 - Nota. Prop, plan y eq.'!$D$16","v":"ifrs-full:MeasurementBasesPropertyPlantAndEquipment"}]
["/*",null,{"$f":"'822100 - Nota. Prop, plan y eq.'!$E$17","v":"Método de depreciación, propiedades, planta y equipo"},{"$f":"'822100 - Nota. Prop, plan y eq.'!$D$17","v":"ifrs-full:DepreciationMethodPropertyPlantAndEquipment"}]
["/*",null,{"$f":"'822100 - Nota. Prop, plan y eq.'!$E$18","v":"Fechas de vigencia de revaluación, propiedades, planta y equipo"},{"$f":"'822100 - Nota. Prop, plan y eq.'!$D$18","v":"ifrs-full:EffectiveDatesOfRevaluationPropertyPlantAndEquipment"}]
["/*",null,{"$f":"'822100 - Nota. Prop, plan y eq.'!$E$19","v":"Explicación de la implicación del tasador independiente en la revaluación, propiedades, planta y equipo"},{"$f":"'822100 - Nota. Prop, plan y eq.'!$D$19","v":"ifrs-full:ExplanationOfIndependentValuerUsedForRevaluationPropertyPlantAndEquipment"}]
["/*",null,{"$f":"'822100 - Nota. Prop, plan y eq.'!$E$20","v":"Explicación del método de revaluación y supuestos significativos, propiedad, planta y equipo"},{"$f":"'822100 - Nota. Prop, plan y eq.'!$D$20","v":"co-svsp-core:ExplanationOfRevaluationMethodsAndSignificantAssumptionsPropertyPlantAndEquipment"}]
["/*",null,{"$f":"'822100 - Nota. Prop, plan y eq.'!$E$21","v":"Conciliación de cambios en propiedades, planta y equipo [resumen]"},{"$f":"'822100 - Nota. Prop, plan y eq.'!$D$21","v":"ifrs-full:ReconciliationOfChangesInPropertyPlantAndEquipmentAbstract"}]
["/*",null,{"$f":"'822100 - Nota. Prop, plan y eq.'!$E$22","v":"Propiedades, planta y equipo al comienzo del periodo"},{"$f":"'822100 - Nota. Prop, plan y eq.'!$D$22","v":"ifrs-full:PropertyPlantAndEquipment"}]
["/*",null,{"$f":"'822100 - Nota. Prop, plan y eq.'!$E$23","v":"Cambios en propiedades, planta y equipo [resumen]"},{"$f":"'822100 - Nota. Prop, plan y eq.'!$D$23","v":"ifrs-full:ChangesInPropertyPlantAndEquipmentAbstract"}]
["/*",null,{"$f":"'822100 - Nota. Prop, plan y eq.'!$E$24","v":"Incrementos distintos de los procedentes de combinaciones de negocios, propiedades, planta y equipo"},{"$f":"'822100 - Nota. Prop, plan y eq.'!$D$24","v":"ifrs-full:AdditionsOtherThanThroughBusinessCombinationsPropertyPlantAndEquipment"}]
["/*",null,{"$f":"'822100 - Nota. Prop, plan y eq.'!$E$25","v":"Adquisiciones realizadas mediante combinaciones de negocios, propiedades, planta y equipo"},{"$f":"'822100 - Nota. Prop, plan y eq.'!$D$25","v":"ifrs-full:AcquisitionsThroughBusinessCombinationsPropertyPlantAndEquipment"}]
["/*",null,{"$f":"'822100 - Nota. Prop, plan y eq.'!$E$26","v":"Depreciación, propiedades, planta y equipo"},{"$f":"'822100 - Nota. Prop, plan y eq.'!$D$26","v":"ifrs-full:DepreciationPropertyPlantAndEquipment"}]
["/*",null,{"$f":"'822100 - Nota. Prop, plan y eq.'!$E$27","v":"Pérdidas por deterioro de valor reconocidas en el resultado del periodo, propiedades, planta y equipo"},{"$f":"'822100 - Nota. Prop, plan y eq.'!$D$27","v":"ifrs-full:ImpairmentLossRecognisedInProfitOrLossPropertyPlantAndEquipment"}]
["/*",null,{"$f":"'822100 - Nota. Prop, plan y eq.'!$E$28","v":"Reversión de pérdidas por deterioro de valor reconocidas en el resultado del periodo, propiedades, planta y equipo"},{"$f":"'822100 - Nota. Prop, plan y eq.'!$D$28","v":"ifrs-full:ReversalOfImpairmentLossRecognisedInProfitOrLossPropertyPlantAndEquipment"}]
["/*",null,{"$f":"'822100 - Nota. Prop, plan y eq.'!$E$29","v":"Incrementos (disminuciones) de revaluaciones, propiedades, planta y equipo"},{"$f":"'822100 - Nota. Prop, plan y eq.'!$D$29","v":"ifrs-full:RevaluationIncreaseDecreasePropertyPlantAndEquipment"}]
["/*",null,{"$f":"'822100 - Nota. Prop, plan y eq.'!$E$30","v":"Pérdidas por deterioro de valor reconocidas en otro resultado integral, propiedades, planta y equipo"},{"$f":"'822100 - Nota. Prop, plan y eq.'!$D$30","v":"ifrs-full:ImpairmentLossRecognisedInOtherComprehensiveIncomePropertyPlantAndEquipment"}]
["/*",null,{"$f":"'822100 - Nota. Prop, plan y eq.'!$E$31","v":"Reversión de pérdidas por deterioro de valor reconocidas en otro resultado integral, propiedades, planta y equipo"},{"$f":"'822100 - Nota. Prop, plan y eq.'!$D$31","v":"ifrs-full:ReversalOfImpairmentLossRecognisedInOtherComprehensiveIncomePropertyPlantAndEquipment"}]
["/*",null,{"$f":"'822100 - Nota. Prop, plan y eq.'!$E$32","v":"Incrementos (disminuciones) por transferencias y otros cambios, propiedades, planta y equipo [resumen]"},{"$f":"'822100 - Nota. Prop, plan y eq.'!$D$32","v":"ifrs-full:IncreaseDecreaseThroughTransfersAndOtherChangesPropertyPlantAndEquipmentAbstract"}]
["/*",null,{"$f":"'822100 - Nota. Prop, plan y eq.'!$E$33","v":"Incrementos (disminuciones) por transferencias desde (hacia) propiedades de inversión, propiedades, planta y equipo"},{"$f":"'822100 - Nota. Prop, plan y eq.'!$D$33","v":"ifrs-full:IncreaseDecreaseThroughTransfersFromToInvestmentPropertyPropertyPlantAndEquipment"}]
["/*",null,{"$f":"'822100 - Nota. Prop, plan y eq.'!$E$34","v":"Incrementos (disminuciones) por transferencias desde construcciones en proceso , propiedades, planta y equipo"},{"$f":"'822100 - Nota. Prop, plan y eq.'!$D$34","v":"ifrs-full:IncreaseDecreaseThroughTransfersFromConstructionInProgressPropertyPlantAndEquipment"}]
["/*",null,{"$f":"'822100 - Nota. Prop, plan y eq.'!$E$35","v":"Incrementos (disminuciones) por otros cambios, propiedades, planta y equipo"},{"$f":"'822100 - Nota. Prop, plan y eq.'!$D$35","v":"ifrs-full:IncreaseDecreaseThroughOtherChangesPropertyPlantAndEquipment"}]
["",null,{"$f":"'822100 - Nota. Prop, plan y eq.'!$E$36","v":"Total incrementos (disminuciones) por transferencias y otros cambios, propiedades, planta y equipo"},{"$f":"'822100 - Nota. Prop, plan y eq.'!$D$36","v":"ifrs-full:IncreaseDecreaseThroughTransfersAndOtherChangesPropertyPlantAndEquipment"},0,"peso",{"$f":"'822100 - Nota. Prop, plan y eq.'!$I$36","v":0},0,"http://www.xbrl.org/scheme/companyName",{"$f":"Periodos!$C$3","v":"2023-01-01"},{"$f":"Periodos!$C$4","v":"2023-12-31"},{"$f":"'822100 - Nota. Prop, plan y eq.'!$E$14","v":"co-svsp-core:PropiedadesPlantaYEquipoEje_G1"},{"$f":"'822100 - Nota. Prop, plan y eq.'!$I$13","v":"ifrs-full:MachineryMember"}]
["/*",null,{"$f":"'822100 - Nota. Prop, plan y eq.'!$E$37","v":"Disposiciones y retiros de servicio, propiedades, planta y equipo [resumen]"},{"$f":"'822100 - Nota. Prop, plan y eq.'!$D$37","v":"ifrs-full:DisposalsAndRetirementsPropertyPlantAndEquipmentAbstract"}]
["/*",null,{"$f":"'822100 - Nota. Prop, plan y eq.'!$E$38","v":"Disposiciones, propiedades, planta y equipo"},{"$f":"'822100 - Nota. Prop, plan y eq.'!$D$38","v":"ifrs-full:DisposalsPropertyPlantAndEquipment"}]
["/*",null,{"$f":"'822100 - Nota. Prop, plan y eq.'!$E$39","v":"Retiros, propiedades, planta y equipo"},{"$f":"'822100 - Nota. Prop, plan y eq.'!$D$39","v":"ifrs-full:RetirementsPropertyPlantAndEquipment"}]
["",null,{"$f":"'822100 - Nota. Prop, plan y eq.'!$E$40","v":"Total de disposiciones y retiros de servicio, propiedades, planta y equipo"},{"$f":"'822100 - Nota. Prop, plan y eq.'!$D$40","v":"ifrs-full:DisposalsAndRetirementsPropertyPlantAndEquipment"},0,"peso",{"$f":"'822100 - Nota. Prop, plan y eq.'!$I$40","v":0},0,"http://www.xbrl.org/scheme/companyName",{"$f":"Periodos!$C$3","v":"2023-01-01"},{"$f":"Periodos!$C$4","v":"2023-12-31"},{"$f":"'822100 - Nota. Prop, plan y eq.'!$E$14","v":"co-svsp-core:PropiedadesPlantaYEquipoEje_G1"},{"$f":"'822100 - Nota. Prop, plan y eq.'!$I$13","v":"ifrs-full:MachineryMember"}]
["/*",null,{"$f":"'822100 - Nota. Prop, plan y eq.'!$E$41","v":"Disminuciones por clasificar como mantenidos para la venta, propiedades, planta y equipo"},{"$f":"'822100 - Nota. Prop, plan y eq.'!$D$41","v":"ifrs-full:DecreaseThroughClassifiedAsHeldForSalePropertyPlantAndEquipment"}]
["",null,{"$f":"'822100 - Nota. Prop, plan y eq.'!$E$42","v":"Total incremento (disminución) en propiedades, planta y equipo"},{"$f":"'822100 - Nota. Prop, plan y eq.'!$D$42","v":"ifrs-full:ChangesInPropertyPlantAndEquipment"},0,"peso",{"$f":"'822100 - Nota. Prop, plan y eq.'!$I$42","v":0},0,"http://www.xbrl.org/scheme/companyName",{"$f":"Periodos!$C$3","v":"2023-01-01"},{"$f":"Periodos!$C$4","v":"2023-12-31"},{"$f":"'822100 - Nota. Prop, plan y eq.'!$E$14","v":"co-svsp-core:PropiedadesPlantaYEquipoEje_G1"},{"$f":"'822100 - Nota. Prop, plan y eq.'!$I$13","v":"ifrs-full:MachineryMember"}]
["",null,{"$f":"'822100 - Nota. Prop, plan y eq.'!$E$43","v":"Propiedades, planta y equipo al final del periodo"},{"$f":"'822100 - Nota. Prop, plan y eq.'!$D$43","v":"ifrs-full:PropertyPlantAndEquipment"},0,"peso",{"$f":"'822100 - Nota. Prop, plan y eq.'!$I$43","v":0},0,"http://www.xbrl.org/scheme/companyName",null,{"$f":"Periodos!$C$4","v":"2023-12-31"},{"$f":"'822100 - Nota. Prop, plan y eq.'!$E$14","v":"co-svsp-core:PropiedadesPlantaYEquipoEje_G1"},{"$f":"'822100 - Nota. Prop, plan y eq.'!$I$13","v":"ifrs-full:MachineryMember"}]
["/*",null,"--05--"]
["/*",null,{"$f":"'822100 - Nota. Prop, plan y eq.'!$E$15","v":"Información a revelar detallada sobre propiedades, planta y equipo [partidas de los estados financieros]"},{"$f":"'822100 - Nota. Prop, plan y eq.'!$D$15","v":"ifrs-full:DisclosureOfPropertyPlantAndEquipmentLineItems"}]
["/*",null,{"$f":"'822100 - Nota. Prop, plan y eq.'!$E$16","v":"Bases de medición, propiedades, planta y equipo"},{"$f":"'822100 - Nota. Prop, plan y eq.'!$D$16","v":"ifrs-full:MeasurementBasesPropertyPlantAndEquipment"}]
["/*",null,{"$f":"'822100 - Nota. Prop, plan y eq.'!$E$17","v":"Método de depreciación, propiedades, planta y equipo"},{"$f":"'822100 - Nota. Prop, plan y eq.'!$D$17","v":"ifrs-full:DepreciationMethodPropertyPlantAndEquipment"}]
["/*",null,{"$f":"'822100 - Nota. Prop, plan y eq.'!$E$18","v":"Fechas de vigencia de revaluación, propiedades, planta y equipo"},{"$f":"'822100 - Nota. Prop, plan y eq.'!$D$18","v":"ifrs-full:EffectiveDatesOfRevaluationPropertyPlantAndEquipment"}]
["/*",null,{"$f":"'822100 - Nota. Prop, plan y eq.'!$E$19","v":"Explicación de la implicación del tasador independiente en la revaluación, propiedades, planta y equipo"},{"$f":"'822100 - Nota. Prop, plan y eq.'!$D$19","v":"ifrs-full:ExplanationOfIndependentValuerUsedForRevaluationPropertyPlantAndEquipment"}]
["/*",null,{"$f":"'822100 - Nota. Prop, plan y eq.'!$E$20","v":"Explicación del método de revaluación y supuestos significativos, propiedad, planta y equipo"},{"$f":"'822100 - Nota. Prop, plan y eq.'!$D$20","v":"co-svsp-core:ExplanationOfRevaluationMethodsAndSignificantAssumptionsPropertyPlantAndEquipment"}]
["/*",null,{"$f":"'822100 - Nota. Prop, plan y eq.'!$E$21","v":"Conciliación de cambios en propiedades, planta y equipo [resumen]"},{"$f":"'822100 - Nota. Prop, plan y eq.'!$D$21","v":"ifrs-full:ReconciliationOfChangesInPropertyPlantAndEquipmentAbstract"}]
["/*",null,{"$f":"'822100 - Nota. Prop, plan y eq.'!$E$22","v":"Propiedades, planta y equipo al comienzo del periodo"},{"$f":"'822100 - Nota. Prop, plan y eq.'!$D$22","v":"ifrs-full:PropertyPlantAndEquipment"}]
["/*",null,{"$f":"'822100 - Nota. Prop, plan y eq.'!$E$23","v":"Cambios en propiedades, planta y equipo [resumen]"},{"$f":"'822100 - Nota. Prop, plan y eq.'!$D$23","v":"ifrs-full:ChangesInPropertyPlantAndEquipmentAbstract"}]
["/*",null,{"$f":"'822100 - Nota. Prop, plan y eq.'!$E$24","v":"Incrementos distintos de los procedentes de combinaciones de negocios, propiedades, planta y equipo"},{"$f":"'822100 - Nota. Prop, plan y eq.'!$D$24","v":"ifrs-full:AdditionsOtherThanThroughBusinessCombinationsPropertyPlantAndEquipment"}]
["/*",null,{"$f":"'822100 - Nota. Prop, plan y eq.'!$E$25","v":"Adquisiciones realizadas mediante combinaciones de negocios, propiedades, planta y equipo"},{"$f":"'822100 - Nota. Prop, plan y eq.'!$D$25","v":"ifrs-full:AcquisitionsThroughBusinessCombinationsPropertyPlantAndEquipment"}]
["/*",null,{"$f":"'822100 - Nota. Prop, plan y eq.'!$E$26","v":"Depreciación, propiedades, planta y equipo"},{"$f":"'822100 - Nota. Prop, plan y eq.'!$D$26","v":"ifrs-full:DepreciationPropertyPlantAndEquipment"}]
["/*",null,{"$f":"'822100 - Nota. Prop, plan y eq.'!$E$27","v":"Pérdidas por deterioro de valor reconocidas en el resultado del periodo, propiedades, planta y equipo"},{"$f":"'822100 - Nota. Prop, plan y eq.'!$D$27","v":"ifrs-full:ImpairmentLossRecognisedInProfitOrLossPropertyPlantAndEquipment"}]
["/*",null,{"$f":"'822100 - Nota. Prop, plan y eq.'!$E$28","v":"Reversión de pérdidas por deterioro de valor reconocidas en el resultado del periodo, propiedades, planta y equipo"},{"$f":"'822100 - Nota. Prop, plan y eq.'!$D$28","v":"ifrs-full:ReversalOfImpairmentLossRecognisedInProfitOrLossPropertyPlantAndEquipment"}]
["/*",null,{"$f":"'822100 - Nota. Prop, plan y eq.'!$E$29","v":"Incrementos (disminuciones) de revaluaciones, propiedades, planta y equipo"},{"$f":"'822100 - Nota. Prop, plan y eq.'!$D$29","v":"ifrs-full:RevaluationIncreaseDecreasePropertyPlantAndEquipment"}]
[{"$f":"IF(G5152=\"\",\"/*\",\"\")","v":"/*"},null,{"$f":"'822100 - Nota. Prop, plan y eq.'!$E$30","v":"Pérdidas por deterioro de valor reconocidas en otro resultado integral, propiedades, planta y equipo"},{"$f":"'822100 - Nota. Prop, plan y eq.'!$D$30","v":"ifrs-full:ImpairmentLossRecognisedInOtherComprehensiveIncomePropertyPlantAndEquipment"}]
["/*",null,{"$f":"'822100 - Nota. Prop, plan y eq.'!$E$31","v":"Reversión de pérdidas por deterioro de valor reconocidas en otro resultado integral, propiedades, planta y equipo"},{"$f":"'822100 - Nota. Prop, plan y eq.'!$D$31","v":"ifrs-full:ReversalOfImpairmentLossRecognisedInOtherComprehensiveIncomePropertyPlantAndEquipment"}]
["/*",null,{"$f":"'822100 - Nota. Prop, plan y eq.'!$E$32","v":"Incrementos (disminuciones) por transferencias y otros cambios, propiedades, planta y equipo [resumen]"},{"$f":"'822100 - Nota. Prop, plan y eq.'!$D$32","v":"ifrs-full:IncreaseDecreaseThroughTransfersAndOtherChangesPropertyPlantAndEquipmentAbstract"}]
["/*",null,{"$f":"'822100 - Nota. Prop, plan y eq.'!$E$33","v":"Incrementos (disminuciones) por transferencias desde (hacia) propiedades de inversión, propiedades, planta y equipo"},{"$f":"'822100 - Nota. Prop, plan y eq.'!$D$33","v":"ifrs-full:IncreaseDecreaseThroughTransfersFromToInvestmentPropertyPropertyPlantAndEquipment"}]
["/*",null,{"$f":"'822100 - Nota. Prop, plan y eq.'!$E$34","v":"Incrementos (disminuciones) por transferencias desde construcciones en proceso , propiedades, planta y equipo"},{"$f":"'822100 - Nota. Prop, plan y eq.'!$D$34","v":"ifrs-full:IncreaseDecreaseThroughTransfersFromConstructionInProgressPropertyPlantAndEquipment"}]
["/*",null,{"$f":"'822100 - Nota. Prop, plan y eq.'!$E$35","v":"Incrementos (disminuciones) por otros cambios, propiedades, planta y equipo"},{"$f":"'822100 - Nota. Prop, plan y eq.'!$D$35","v":"ifrs-full:IncreaseDecreaseThroughOtherChangesPropertyPlantAndEquipment"}]
["",null,{"$f":"'822100 - Nota. Prop, plan y eq.'!$E$36","v":"Total incrementos (disminuciones) por transferencias y otros cambios, propiedades, planta y equipo"},{"$f":"'822100 - Nota. Prop, plan y eq.'!$D$36","v":"ifrs-full:IncreaseDecreaseThroughTransfersAndOtherChangesPropertyPlantAndEquipment"},0,"peso",{"$f":"'822100 - Nota. Prop, plan y eq.'!$J$36","v":0},0,"http://www.xbrl.org/scheme/companyName",{"$f":"Periodos!$C$3","v":"2023-01-01"},{"$f":"Periodos!$C$4","v":"2023-12-31"},{"$f":"'822100 - Nota. Prop, plan y eq.'!$E$14","v":"co-svsp-core:PropiedadesPlantaYEquipoEje_G1"},{"$f":"'822100 - Nota. Prop, plan y eq.'!$J$13","v":"ifrs-full:ShipsMember"}]
["/*",null,{"$f":"'822100 - Nota. Prop, plan y eq.'!$E$37","v":"Disposiciones y retiros de servicio, propiedades, planta y equipo [resumen]"},{"$f":"'822100 - Nota. Prop, plan y eq.'!$D$37","v":"ifrs-full:DisposalsAndRetirementsPropertyPlantAndEquipmentAbstract"}]
["/*",null,{"$f":"'822100 - Nota. Prop, plan y eq.'!$E$38","v":"Disposiciones, propiedades, planta y equipo"},{"$f":"'822100 - Nota. Prop, plan y eq.'!$D$38","v":"ifrs-full:DisposalsPropertyPlantAndEquipment"}]
["/*",null,{"$f":"'822100 - Nota. Prop, plan y eq.'!$E$39","v":"Retiros, propiedades, planta y equipo"},{"$f":"'822100 - Nota. Prop, plan y eq.'!$D$39","v":"ifrs-full:RetirementsPropertyPlantAndEquipment"}]
["",null,{"$f":"'822100 - Nota. Prop, plan y eq.'!$E$40","v":"Total de disposiciones y retiros de servicio, propiedades, planta y equipo"},{"$f":"'822100 - Nota. Prop, plan y eq.'!$D$40","v":"ifrs-full:DisposalsAndRetirementsPropertyPlantAndEquipment"},0,"peso",{"$f":"'822100 - Nota. Prop, plan y eq.'!$J$40","v":0},0,"http://www.xbrl.org/scheme/companyName",{"$f":"Periodos!$C$3","v":"2023-01-01"},{"$f":"Periodos!$C$4","v":"2023-12-31"},{"$f":"'822100 - Nota. Prop, plan y eq.'!$E$14","v":"co-svsp-core:PropiedadesPlantaYEquipoEje_G1"},{"$f":"'822100 - Nota. Prop, plan y eq.'!$J$13","v":"ifrs-full:ShipsMember"}]
["/*",null,{"$f":"'822100 - Nota. Prop, plan y eq.'!$E$41","v":"Disminuciones por clasificar como mantenidos para la venta, propiedades, planta y equipo"},{"$f":"'822100 - Nota. Prop, plan y eq.'!$D$41","v":"ifrs-full:DecreaseThroughClassifiedAsHeldForSalePropertyPlantAndEquipment"}]
["",null,{"$f":"'822100 - Nota. Prop, plan y eq.'!$E$42","v":"Total incremento (disminución) en propiedades, planta y equipo"},{"$f":"'822100 - Nota. Prop, plan y eq.'!$D$42","v":"ifrs-full:ChangesInPropertyPlantAndEquipment"},0,"peso",{"$f":"'822100 - Nota. Prop, plan y eq.'!$J$42","v":0},0,"http://www.xbrl.org/scheme/companyName",{"$f":"Periodos!$C$3","v":"2023-01-01"},{"$f":"Periodos!$C$4","v":"2023-12-31"},{"$f":"'822100 - Nota. Prop, plan y eq.'!$E$14","v":"co-svsp-core:PropiedadesPlantaYEquipoEje_G1"},{"$f":"'822100 - Nota. Prop, plan y eq.'!$J$13","v":"ifrs-full:ShipsMember"}]
["",null,{"$f":"'822100 - Nota. Prop, plan y eq.'!$E$43","v":"Propiedades, planta y equipo al final del periodo"},{"$f":"'822100 - Nota. Prop, plan y eq.'!$D$43","v":"ifrs-full:PropertyPlantAndEquipment"},0,"peso",{"$f":"'822100 - Nota. Prop, plan y eq.'!$J$43","v":0},0,"http://www.xbrl.org/scheme/companyName",null,{"$f":"Periodos!$C$4","v":"2023-12-31"},{"$f":"'822100 - Nota. Prop, plan y eq.'!$E$14","v":"co-svsp-core:PropiedadesPlantaYEquipoEje_G1"},{"$f":"'822100 - Nota. Prop, plan y eq.'!$J$13","v":"ifrs-full:ShipsMember"}]
["/*",null,"--06--"]
["/*",null,{"$f":"'822100 - Nota. Prop, plan y eq.'!$E$15","v":"Información a revelar detallada sobre propiedades, planta y equipo [partidas de los estados financieros]"},{"$f":"'822100 - Nota. Prop, plan y eq.'!$D$15","v":"ifrs-full:DisclosureOfPropertyPlantAndEquipmentLineItems"}]
["/*",null,{"$f":"'822100 - Nota. Prop, plan y eq.'!$E$16","v":"Bases de medición, propiedades, planta y equipo"},{"$f":"'822100 - Nota. Prop, plan y eq.'!$D$16","v":"ifrs-full:MeasurementBasesPropertyPlantAndEquipment"}]
["/*",null,{"$f":"'822100 - Nota. Prop, plan y eq.'!$E$17","v":"Método de depreciación, propiedades, planta y equipo"},{"$f":"'822100 - Nota. Prop, plan y eq.'!$D$17","v":"ifrs-full:DepreciationMethodPropertyPlantAndEquipment"}]
["/*",null,{"$f":"'822100 - Nota. Prop, plan y eq.'!$E$18","v":"Fechas de vigencia de revaluación, propiedades, planta y equipo"},{"$f":"'822100 - Nota. Prop, plan y eq.'!$D$18","v":"ifrs-full:EffectiveDatesOfRevaluationPropertyPlantAndEquipment"}]
["/*",null,{"$f":"'822100 - Nota. Prop, plan y eq.'!$E$19","v":"Explicación de la implicación del tasador independiente en la revaluación, propiedades, planta y equipo"},{"$f":"'822100 - Nota. Prop, plan y eq.'!$D$19","v":"ifrs-full:ExplanationOfIndependentValuerUsedForRevaluationPropertyPlantAndEquipment"}]
["/*",null,{"$f":"'822100 - Nota. Prop, plan y eq.'!$E$20","v":"Explicación del método de revaluación y supuestos significativos, propiedad, planta y equipo"},{"$f":"'822100 - Nota. Prop, plan y eq.'!$D$20","v":"co-svsp-core:ExplanationOfRevaluationMethodsAndSignificantAssumptionsPropertyPlantAndEquipment"}]
["/*",null,{"$f":"'822100 - Nota. Prop, plan y eq.'!$E$21","v":"Conciliación de cambios en propiedades, planta y equipo [resumen]"},{"$f":"'822100 - Nota. Prop, plan y eq.'!$D$21","v":"ifrs-full:ReconciliationOfChangesInPropertyPlantAndEquipmentAbstract"}]
["/*",null,{"$f":"'822100 - Nota. Prop, plan y eq.'!$E$22","v":"Propiedades, planta y equipo al comienzo del periodo"},{"$f":"'822100 - Nota. Prop, plan y eq.'!$D$22","v":"ifrs-full:PropertyPlantAndEquipment"}]
["/*",null,{"$f":"'822100 - Nota. Prop, plan y eq.'!$E$23","v":"Cambios en propiedades, planta y equipo [resumen]"},{"$f":"'822100 - Nota. Prop, plan y eq.'!$D$23","v":"ifrs-full:ChangesInPropertyPlantAndEquipmentAbstract"}]
["/*",null,{"$f":"'822100 - Nota. Prop, plan y eq.'!$E$24","v":"Incrementos distintos de los procedentes de combinaciones de negocios, propiedades, planta y equipo"},{"$f":"'822100 - Nota. Prop, plan y eq.'!$D$24","v":"ifrs-full:AdditionsOtherThanThroughBusinessCombinationsPropertyPlantAndEquipment"}]
["/*",null,{"$f":"'822100 - Nota. Prop, plan y eq.'!$E$25","v":"Adquisiciones realizadas mediante combinaciones de negocios, propiedades, planta y equipo"},{"$f":"'822100 - Nota. Prop, plan y eq.'!$D$25","v":"ifrs-full:AcquisitionsThroughBusinessCombinationsPropertyPlantAndEquipment"}]
["/*",null,{"$f":"'822100 - Nota. Prop, plan y eq.'!$E$26","v":"Depreciación, propiedades, planta y equipo"},{"$f":"'822100 - Nota. Prop, plan y eq.'!$D$26","v":"ifrs-full:DepreciationPropertyPlantAndEquipment"}]
["/*",null,{"$f":"'822100 - Nota. Prop, plan y eq.'!$E$27","v":"Pérdidas por deterioro de valor reconocidas en el resultado del periodo, propiedades, planta y equipo"},{"$f":"'822100 - Nota. Prop, plan y eq.'!$D$27","v":"ifrs-full:ImpairmentLossRecognisedInProfitOrLossPropertyPlantAndEquipment"}]
["/*",null,{"$f":"'822100 - Nota. Prop, plan y eq.'!$E$28","v":"Reversión de pérdidas por deterioro de valor reconocidas en el resultado del periodo, propiedades, planta y equipo"},{"$f":"'822100 - Nota. Prop, plan y eq.'!$D$28","v":"ifrs-full:ReversalOfImpairmentLossRecognisedInProfitOrLossPropertyPlantAndEquipment"}]
["/*",null,{"$f":"'822100 - Nota. Prop, plan y eq.'!$E$29","v":"Incrementos (disminuciones) de revaluaciones, propiedades, planta y equipo"},{"$f":"'822100 - Nota. Prop, plan y eq.'!$D$29","v":"ifrs-full:RevaluationIncreaseDecreasePropertyPlantAndEquipment"}]
["/*",null,{"$f":"'822100 - Nota. Prop, plan y eq.'!$E$30","v":"Pérdidas por deterioro de valor reconocidas en otro resultado integral, propiedades, planta y equipo"},{"$f":"'822100 - Nota. Prop, plan y eq.'!$D$30","v":"ifrs-full:ImpairmentLossRecognisedInOtherComprehensiveIncomePropertyPlantAndEquipment"}]
["/*",null,{"$f":"'822100 - Nota. Prop, plan y eq.'!$E$31","v":"Reversión de pérdidas por deterioro de valor reconocidas en otro resultado integral, propiedades, planta y equipo"},{"$f":"'822100 - Nota. Prop, plan y eq.'!$D$31","v":"ifrs-full:ReversalOfImpairmentLossRecognisedInOtherComprehensiveIncomePropertyPlantAndEquipment"}]
["/*",null,{"$f":"'822100 - Nota. Prop, plan y eq.'!$E$32","v":"Incrementos (disminuciones) por transferencias y otros cambios, propiedades, planta y equipo [resumen]"},{"$f":"'822100 - Nota. Prop, plan y eq.'!$D$32","v":"ifrs-full:IncreaseDecreaseThroughTransfersAndOtherChangesPropertyPlantAndEquipmentAbstract"}]
["/*",null,{"$f":"'822100 - Nota. Prop, plan y eq.'!$E$33","v":"Incrementos (disminuciones) por transferencias desde (hacia) propiedades de inversión, propiedades, planta y equipo"},{"$f":"'822100 - Nota. Prop, plan y eq.'!$D$33","v":"ifrs-full:IncreaseDecreaseThroughTransfersFromToInvestmentPropertyPropertyPlantAndEquipment"}]
["/*",null,{"$f":"'822100 - Nota. Prop, plan y eq.'!$E$34","v":"Incrementos (disminuciones) por transferencias desde construcciones en proceso , propiedades, planta y equipo"},{"$f":"'822100 - Nota. Prop, plan y eq.'!$D$34","v":"ifrs-full:IncreaseDecreaseThroughTransfersFromConstructionInProgressPropertyPlantAndEquipment"}]
["/*",null,{"$f":"'822100 - Nota. Prop, plan y eq.'!$E$35","v":"Incrementos (disminuciones) por otros cambios, propiedades, planta y equipo"},{"$f":"'822100 - Nota. Prop, plan y eq.'!$D$35","v":"ifrs-full:IncreaseDecreaseThroughOtherChangesPropertyPlantAndEquipment"}]
["",null,{"$f":"'822100 - Nota. Prop, plan y eq.'!$E$36","v":"Total incrementos (disminuciones) por transferencias y otros cambios, propiedades, planta y equipo"},{"$f":"'822100 - Nota. Prop, plan y eq.'!$D$36","v":"ifrs-full:IncreaseDecreaseThroughTransfersAndOtherChangesPropertyPlantAndEquipment"},0,"peso",{"$f":"'822100 - Nota. Prop, plan y eq.'!$K$36","v":0},0,"http://www.xbrl.org/scheme/companyName",{"$f":"Periodos!$C$3","v":"2023-01-01"},{"$f":"Periodos!$C$4","v":"2023-12-31"},{"$f":"'822100 - Nota. Prop, plan y eq.'!$E$14","v":"co-svsp-core:PropiedadesPlantaYEquipoEje_G1"},{"$f":"'822100 - Nota. Prop, plan y eq.'!$K$13","v":"ifrs-full:AircraftMember"}]
["/*",null,{"$f":"'822100 - Nota. Prop, plan y eq.'!$E$37","v":"Disposiciones y retiros de servicio, propiedades, planta y equipo [resumen]"},{"$f":"'822100 - Nota. Prop, plan y eq.'!$D$37","v":"ifrs-full:DisposalsAndRetirementsPropertyPlantAndEquipmentAbstract"}]
["/*",null,{"$f":"'822100 - Nota. Prop, plan y eq.'!$E$38","v":"Disposiciones, propiedades, planta y equipo"},{"$f":"'822100 - Nota. Prop, plan y eq.'!$D$38","v":"ifrs-full:DisposalsPropertyPlantAndEquipment"}]
["/*",null,{"$f":"'822100 - Nota. Prop, plan y eq.'!$E$39","v":"Retiros, propiedades, planta y equipo"},{"$f":"'822100 - Nota. Prop, plan y eq.'!$D$39","v":"ifrs-full:RetirementsPropertyPlantAndEquipment"}]
["",null,{"$f":"'822100 - Nota. Prop, plan y eq.'!$E$40","v":"Total de disposiciones y retiros de servicio, propiedades, planta y equipo"},{"$f":"'822100 - Nota. Prop, plan y eq.'!$D$40","v":"ifrs-full:DisposalsAndRetirementsPropertyPlantAndEquipment"},0,"peso",{"$f":"'822100 - Nota. Prop, plan y eq.'!$K$40","v":0},0,"http://www.xbrl.org/scheme/companyName",{"$f":"Periodos!$C$3","v":"2023-01-01"},{"$f":"Periodos!$C$4","v":"2023-12-31"},{"$f":"'822100 - Nota. Prop, plan y eq.'!$E$14","v":"co-svsp-core:PropiedadesPlantaYEquipoEje_G1"},{"$f":"'822100 - Nota. Prop, plan y eq.'!$K$13","v":"ifrs-full:AircraftMember"}]
["/*",null,{"$f":"'822100 - Nota. Prop, plan y eq.'!$E$41","v":"Disminuciones por clasificar como mantenidos para la venta, propiedades, planta y equipo"},{"$f":"'822100 - Nota. Prop, plan y eq.'!$D$41","v":"ifrs-full:DecreaseThroughClassifiedAsHeldForSalePropertyPlantAndEquipment"}]
["",null,{"$f":"'822100 - Nota. Prop, plan y eq.'!$E$42","v":"Total incremento (disminución) en propiedades, planta y equipo"},{"$f":"'822100 - Nota. Prop, plan y eq.'!$D$42","v":"ifrs-full:ChangesInPropertyPlantAndEquipment"},0,"peso",{"$f":"'822100 - Nota. Prop, plan y eq.'!$K$42","v":0},0,"http://www.xbrl.org/scheme/companyName",{"$f":"Periodos!$C$3","v":"2023-01-01"},{"$f":"Periodos!$C$4","v":"2023-12-31"},{"$f":"'822100 - Nota. Prop, plan y eq.'!$E$14","v":"co-svsp-core:PropiedadesPlantaYEquipoEje_G1"},{"$f":"'822100 - Nota. Prop, plan y eq.'!$K$13","v":"ifrs-full:AircraftMember"}]
["",null,{"$f":"'822100 - Nota. Prop, plan y eq.'!$E$43","v":"Propiedades, planta y equipo al final del periodo"},{"$f":"'822100 - Nota. Prop, plan y eq.'!$D$43","v":"ifrs-full:PropertyPlantAndEquipment"},0,"peso",{"$f":"'822100 - Nota. Prop, plan y eq.'!$K$43","v":0},0,"http://www.xbrl.org/scheme/companyName",null,{"$f":"Periodos!$C$4","v":"2023-12-31"},{"$f":"'822100 - Nota. Prop, plan y eq.'!$E$14","v":"co-svsp-core:PropiedadesPlantaYEquipoEje_G1"},{"$f":"'822100 - Nota. Prop, plan y eq.'!$K$13","v":"ifrs-full:AircraftMember"}]
["/*",null,"--07--"]
["/*",null,{"$f":"'822100 - Nota. Prop, plan y eq.'!$E$15","v":"Información a revelar detallada sobre propiedades, planta y equipo [partidas de los estados financieros]"},{"$f":"'822100 - Nota. Prop, plan y eq.'!$D$15","v":"ifrs-full:DisclosureOfPropertyPlantAndEquipmentLineItems"}]
["/*",null,{"$f":"'822100 - Nota. Prop, plan y eq.'!$E$16","v":"Bases de medición, propiedades, planta y equipo"},{"$f":"'822100 - Nota. Prop, plan y eq.'!$D$16","v":"ifrs-full:MeasurementBasesPropertyPlantAndEquipment"}]
["/*",null,{"$f":"'822100 - Nota. Prop, plan y eq.'!$E$17","v":"Método de depreciación, propiedades, planta y equipo"},{"$f":"'822100 - Nota. Prop, plan y eq.'!$D$17","v":"ifrs-full:DepreciationMethodPropertyPlantAndEquipment"}]
["/*",null,{"$f":"'822100 - Nota. Prop, plan y eq.'!$E$18","v":"Fechas de vigencia de revaluación, propiedades, planta y equipo"},{"$f":"'822100 - Nota. Prop, plan y eq.'!$D$18","v":"ifrs-full:EffectiveDatesOfRevaluationPropertyPlantAndEquipment"}]
["/*",null,{"$f":"'822100 - Nota. Prop, plan y eq.'!$E$19","v":"Explicación de la implicación del tasador independiente en la revaluación, propiedades, planta y equipo"},{"$f":"'822100 - Nota. Prop, plan y eq.'!$D$19","v":"ifrs-full:ExplanationOfIndependentValuerUsedForRevaluationPropertyPlantAndEquipment"}]
["/*",null,{"$f":"'822100 - Nota. Prop, plan y eq.'!$E$20","v":"Explicación del método de revaluación y supuestos significativos, propiedad, planta y equipo"},{"$f":"'822100 - Nota. Prop, plan y eq.'!$D$20","v":"co-svsp-core:ExplanationOfRevaluationMethodsAndSignificantAssumptionsPropertyPlantAndEquipment"}]
["/*",null,{"$f":"'822100 - Nota. Prop, plan y eq.'!$E$21","v":"Conciliación de cambios en propiedades, planta y equipo [resumen]"},{"$f":"'822100 - Nota. Prop, plan y eq.'!$D$21","v":"ifrs-full:ReconciliationOfChangesInPropertyPlantAndEquipmentAbstract"}]
["/*",null,{"$f":"'822100 - Nota. Prop, plan y eq.'!$E$22","v":"Propiedades, planta y equipo al comienzo del periodo"},{"$f":"'822100 - Nota. Prop, plan y eq.'!$D$22","v":"ifrs-full:PropertyPlantAndEquipment"}]
["/*",null,{"$f":"'822100 - Nota. Prop, plan y eq.'!$E$23","v":"Cambios en propiedades, planta y equipo [resumen]"},{"$f":"'822100 - Nota. Prop, plan y eq.'!$D$23","v":"ifrs-full:ChangesInPropertyPlantAndEquipmentAbstract"}]
["/*",null,{"$f":"'822100 - Nota. Prop, plan y eq.'!$E$24","v":"Incrementos distintos de los procedentes de combinaciones de negocios, propiedades, planta y equipo"},{"$f":"'822100 - Nota. Prop, plan y eq.'!$D$24","v":"ifrs-full:AdditionsOtherThanThroughBusinessCombinationsPropertyPlantAndEquipment"}]
["/*",null,{"$f":"'822100 - Nota. Prop, plan y eq.'!$E$25","v":"Adquisiciones realizadas mediante combinaciones de negocios, propiedades, planta y equipo"},{"$f":"'822100 - Nota. Prop, plan y eq.'!$D$25","v":"ifrs-full:AcquisitionsThroughBusinessCombinationsPropertyPlantAndEquipment"}]
["/*",null,{"$f":"'822100 - Nota. Prop, plan y eq.'!$E$26","v":"Depreciación, propiedades, planta y equipo"},{"$f":"'822100 - Nota. Prop, plan y eq.'!$D$26","v":"ifrs-full:DepreciationPropertyPlantAndEquipment"}]
["/*",null,{"$f":"'822100 - Nota. Prop, plan y eq.'!$E$27","v":"Pérdidas por deterioro de valor reconocidas en el resultado del periodo, propiedades, planta y equipo"},{"$f":"'822100 - Nota. Prop, plan y eq.'!$D$27","v":"ifrs-full:ImpairmentLossRecognisedInProfitOrLossPropertyPlantAndEquipment"}]
["/*",null,{"$f":"'822100 - Nota. Prop, plan y eq.'!$E$28","v":"Reversión de pérdidas por deterioro de valor reconocidas en el resultado del periodo, propiedades, planta y equipo"},{"$f":"'822100 - Nota. Prop, plan y eq.'!$D$28","v":"ifrs-full:ReversalOfImpairmentLossRecognisedInProfitOrLossPropertyPlantAndEquipment"}]
["/*",null,{"$f":"'822100 - Nota. Prop, plan y eq.'!$E$29","v":"Incrementos (disminuciones) de revaluaciones, propiedades, planta y equipo"},{"$f":"'822100 - Nota. Prop, plan y eq.'!$D$29","v":"ifrs-full:RevaluationIncreaseDecreasePropertyPlantAndEquipment"}]
["/*",null,{"$f":"'822100 - Nota. Prop, plan y eq.'!$E$30","v":"Pérdidas por deterioro de valor reconocidas en otro resultado integral, propiedades, planta y equipo"},{"$f":"'822100 - Nota. Prop, plan y eq.'!$D$30","v":"ifrs-full:ImpairmentLossRecognisedInOtherComprehensiveIncomePropertyPlantAndEquipment"}]
["/*",null,{"$f":"'822100 - Nota. Prop, plan y eq.'!$E$31","v":"Reversión de pérdidas por deterioro de valor reconocidas en otro resultado integral, propiedades, planta y equipo"},{"$f":"'822100 - Nota. Prop, plan y eq.'!$D$31","v":"ifrs-full:ReversalOfImpairmentLossRecognisedInOtherComprehensiveIncomePropertyPlantAndEquipment"}]
["/*",null,{"$f":"'822100 - Nota. Prop, plan y eq.'!$E$32","v":"Incrementos (disminuciones) por transferencias y otros cambios, propiedades, planta y equipo [resumen]"},{"$f":"'822100 - Nota. Prop, plan y eq.'!$D$32","v":"ifrs-full:IncreaseDecreaseThroughTransfersAndOtherChangesPropertyPlantAndEquipmentAbstract"}]
["/*",null,{"$f":"'822100 - Nota. Prop, plan y eq.'!$E$33","v":"Incrementos (disminuciones) por transferencias desde (hacia) propiedades de inversión, propiedades, planta y equipo"},{"$f":"'822100 - Nota. Prop, plan y eq.'!$D$33","v":"ifrs-full:IncreaseDecreaseThroughTransfersFromToInvestmentPropertyPropertyPlantAndEquipment"}]
[{"$f":"IF(G5216=\"\",\"/*\",\"\")","v":"/*"},null,{"$f":"'822100 - Nota. Prop, plan y eq.'!$E$34","v":"Incrementos (disminuciones) por transferencias desde construcciones en proceso , propiedades, planta y equipo"},{"$f":"'822100 - Nota. Prop, plan y eq.'!$D$34","v":"ifrs-full:IncreaseDecreaseThroughTransfersFromConstructionInProgressPropertyPlantAndEquipment"}]
["/*",null,{"$f":"'822100 - Nota. Prop, plan y eq.'!$E$35","v":"Incrementos (disminuciones) por otros cambios, propiedades, planta y equipo"},{"$f":"'822100 - Nota. Prop, plan y eq.'!$D$35","v":"ifrs-full:IncreaseDecreaseThroughOtherChangesPropertyPlantAndEquipment"}]
["",null,{"$f":"'822100 - Nota. Prop, plan y eq.'!$E$36","v":"Total incrementos (disminuciones) por transferencias y otros cambios, propiedades, planta y equipo"},{"$f":"'822100 - Nota. Prop, plan y eq.'!$D$36","v":"ifrs-full:IncreaseDecreaseThroughTransfersAndOtherChangesPropertyPlantAndEquipment"},0,"peso",{"$f":"'822100 - Nota. Prop, plan y eq.'!$L$36","v":0},0,"http://www.xbrl.org/scheme/companyName",{"$f":"Periodos!$C$3","v":"2023-01-01"},{"$f":"Periodos!$C$4","v":"2023-12-31"},{"$f":"'822100 - Nota. Prop, plan y eq.'!$E$14","v":"co-svsp-core:PropiedadesPlantaYEquipoEje_G1"},{"$f":"'822100 - Nota. Prop, plan y eq.'!$L$13","v":"co-svsp-core:AutomovilesBlindandosMiembro"}]
["/*",null,{"$f":"'822100 - Nota. Prop, plan y eq.'!$E$37","v":"Disposiciones y retiros de servicio, propiedades, planta y equipo [resumen]"},{"$f":"'822100 - Nota. Prop, plan y eq.'!$D$37","v":"ifrs-full:DisposalsAndRetirementsPropertyPlantAndEquipmentAbstract"}]
["/*",null,{"$f":"'822100 - Nota. Prop, plan y eq.'!$E$38","v":"Disposiciones, propiedades, planta y equipo"},{"$f":"'822100 - Nota. Prop, plan y eq.'!$D$38","v":"ifrs-full:DisposalsPropertyPlantAndEquipment"}]
["/*",null,{"$f":"'822100 - Nota. Prop, plan y eq.'!$E$39","v":"Retiros, propiedades, planta y equipo"},{"$f":"'822100 - Nota. Prop, plan y eq.'!$D$39","v":"ifrs-full:RetirementsPropertyPlantAndEquipment"}]
["",null,{"$f":"'822100 - Nota. Prop, plan y eq.'!$E$40","v":"Total de disposiciones y retiros de servicio, propiedades, planta y equipo"},{"$f":"'822100 - Nota. Prop, plan y eq.'!$D$40","v":"ifrs-full:DisposalsAndRetirementsPropertyPlantAndEquipment"},0,"peso",{"$f":"'822100 - Nota. Prop, plan y eq.'!$L$40","v":0},0,"http://www.xbrl.org/scheme/companyName",{"$f":"Periodos!$C$3","v":"2023-01-01"},{"$f":"Periodos!$C$4","v":"2023-12-31"},{"$f":"'822100 - Nota. Prop, plan y eq.'!$E$14","v":"co-svsp-core:PropiedadesPlantaYEquipoEje_G1"},{"$f":"'822100 - Nota. Prop, plan y eq.'!$L$13","v":"co-svsp-core:AutomovilesBlindandosMiembro"}]
["/*",null,{"$f":"'822100 - Nota. Prop, plan y eq.'!$E$41","v":"Disminuciones por clasificar como mantenidos para la venta, propiedades, planta y equipo"},{"$f":"'822100 - Nota. Prop, plan y eq.'!$D$41","v":"ifrs-full:DecreaseThroughClassifiedAsHeldForSalePropertyPlantAndEquipment"}]
["",null,{"$f":"'822100 - Nota. Prop, plan y eq.'!$E$42","v":"Total incremento (disminución) en propiedades, planta y equipo"},{"$f":"'822100 - Nota. Prop, plan y eq.'!$D$42","v":"ifrs-full:ChangesInPropertyPlantAndEquipment"},0,"peso",{"$f":"'822100 - Nota. Prop, plan y eq.'!$L$42","v":0},0,"http://www.xbrl.org/scheme/companyName",{"$f":"Periodos!$C$3","v":"2023-01-01"},{"$f":"Periodos!$C$4","v":"2023-12-31"},{"$f":"'822100 - Nota. Prop, plan y eq.'!$E$14","v":"co-svsp-core:PropiedadesPlantaYEquipoEje_G1"},{"$f":"'822100 - Nota. Prop, plan y eq.'!$L$13","v":"co-svsp-core:AutomovilesBlindandosMiembro"}]
["",null,{"$f":"'822100 - Nota. Prop, plan y eq.'!$E$43","v":"Propiedades, planta y equipo al final del periodo"},{"$f":"'822100 - Nota. Prop, plan y eq.'!$D$43","v":"ifrs-full:PropertyPlantAndEquipment"},0,"peso",{"$f":"'822100 - Nota. Prop, plan y eq.'!$L$43","v":0},0,"http://www.xbrl.org/scheme/companyName",null,{"$f":"Periodos!$C$4","v":"2023-12-31"},{"$f":"'822100 - Nota. Prop, plan y eq.'!$E$14","v":"co-svsp-core:PropiedadesPlantaYEquipoEje_G1"},{"$f":"'822100 - Nota. Prop, plan y eq.'!$L$13","v":"co-svsp-core:AutomovilesBlindandosMiembro"}]
["/*",null,"--08--"]
["/*",null,{"$f":"'822100 - Nota. Prop, plan y eq.'!$E$15","v":"Información a revelar detallada sobre propiedades, planta y equipo [partidas de los estados financieros]"},{"$f":"'822100 - Nota. Prop, plan y eq.'!$D$15","v":"ifrs-full:DisclosureOfPropertyPlantAndEquipmentLineItems"}]
["/*",null,{"$f":"'822100 - Nota. Prop, plan y eq.'!$E$16","v":"Bases de medición, propiedades, planta y equipo"},{"$f":"'822100 - Nota. Prop, plan y eq.'!$D$16","v":"ifrs-full:MeasurementBasesPropertyPlantAndEquipment"}]
["/*",null,{"$f":"'822100 - Nota. Prop, plan y eq.'!$E$17","v":"Método de depreciación, propiedades, planta y equipo"},{"$f":"'822100 - Nota. Prop, plan y eq.'!$D$17","v":"ifrs-full:DepreciationMethodPropertyPlantAndEquipment"}]
["/*",null,{"$f":"'822100 - Nota. Prop, plan y eq.'!$E$18","v":"Fechas de vigencia de revaluación, propiedades, planta y equipo"},{"$f":"'822100 - Nota. Prop, plan y eq.'!$D$18","v":"ifrs-full:EffectiveDatesOfRevaluationPropertyPlantAndEquipment"}]
["/*",null,{"$f":"'822100 - Nota. Prop, plan y eq.'!$E$19","v":"Explicación de la implicación del tasador independiente en la revaluación, propiedades, planta y equipo"},{"$f":"'822100 - Nota. Prop, plan y eq.'!$D$19","v":"ifrs-full:ExplanationOfIndependentValuerUsedForRevaluationPropertyPlantAndEquipment"}]
["/*",null,{"$f":"'822100 - Nota. Prop, plan y eq.'!$E$20","v":"Explicación del método de revaluación y supuestos significativos, propiedad, planta y equipo"},{"$f":"'822100 - Nota. Prop, plan y eq.'!$D$20","v":"co-svsp-core:ExplanationOfRevaluationMethodsAndSignificantAssumptionsPropertyPlantAndEquipment"}]
["/*",null,{"$f":"'822100 - Nota. Prop, plan y eq.'!$E$21","v":"Conciliación de cambios en propiedades, planta y equipo [resumen]"},{"$f":"'822100 - Nota. Prop, plan y eq.'!$D$21","v":"ifrs-full:ReconciliationOfChangesInPropertyPlantAndEquipmentAbstract"}]
["/*",null,{"$f":"'822100 - Nota. Prop, plan y eq.'!$E$22","v":"Propiedades, planta y equipo al comienzo del periodo"},{"$f":"'822100 - Nota. Prop, plan y eq.'!$D$22","v":"ifrs-full:PropertyPlantAndEquipment"}]
["/*",null,{"$f":"'822100 - Nota. Prop, plan y eq.'!$E$23","v":"Cambios en propiedades, planta y equipo [resumen]"},{"$f":"'822100 - Nota. Prop, plan y eq.'!$D$23","v":"ifrs-full:ChangesInPropertyPlantAndEquipmentAbstract"}]
["/*",null,{"$f":"'822100 - Nota. Prop, plan y eq.'!$E$24","v":"Incrementos distintos de los procedentes de combinaciones de negocios, propiedades, planta y equipo"},{"$f":"'822100 - Nota. Prop, plan y eq.'!$D$24","v":"ifrs-full:AdditionsOtherThanThroughBusinessCombinationsPropertyPlantAndEquipment"}]
["/*",null,{"$f":"'822100 - Nota. Prop, plan y eq.'!$E$25","v":"Adquisiciones realizadas mediante combinaciones de negocios, propiedades, planta y equipo"},{"$f":"'822100 - Nota. Prop, plan y eq.'!$D$25","v":"ifrs-full:AcquisitionsThroughBusinessCombinationsPropertyPlantAndEquipment"}]
["/*",null,{"$f":"'822100 - Nota. Prop, plan y eq.'!$E$26","v":"Depreciación, propiedades, planta y equipo"},{"$f":"'822100 - Nota. Prop, plan y eq.'!$D$26","v":"ifrs-full:DepreciationPropertyPlantAndEquipment"}]
["/*",null,{"$f":"'822100 - Nota. Prop, plan y eq.'!$E$27","v":"Pérdidas por deterioro de valor reconocidas en el resultado del periodo, propiedades, planta y equipo"},{"$f":"'822100 - Nota. Prop, plan y eq.'!$D$27","v":"ifrs-full:ImpairmentLossRecognisedInProfitOrLossPropertyPlantAndEquipment"}]
["/*",null,{"$f":"'822100 - Nota. Prop, plan y eq.'!$E$28","v":"Reversión de pérdidas por deterioro de valor reconocidas en el resultado del periodo, propiedades, planta y equipo"},{"$f":"'822100 - Nota. Prop, plan y eq.'!$D$28","v":"ifrs-full:ReversalOfImpairmentLossRecognisedInProfitOrLossPropertyPlantAndEquipment"}]
["/*",null,{"$f":"'822100 - Nota. Prop, plan y eq.'!$E$29","v":"Incrementos (disminuciones) de revaluaciones, propiedades, planta y equipo"},{"$f":"'822100 - Nota. Prop, plan y eq.'!$D$29","v":"ifrs-full:RevaluationIncreaseDecreasePropertyPlantAndEquipment"}]
["/*",null,{"$f":"'822100 - Nota. Prop, plan y eq.'!$E$30","v":"Pérdidas por deterioro de valor reconocidas en otro resultado integral, propiedades, planta y equipo"},{"$f":"'822100 - Nota. Prop, plan y eq.'!$D$30","v":"ifrs-full:ImpairmentLossRecognisedInOtherComprehensiveIncomePropertyPlantAndEquipment"}]
["/*",null,{"$f":"'822100 - Nota. Prop, plan y eq.'!$E$31","v":"Reversión de pérdidas por deterioro de valor reconocidas en otro resultado integral, propiedades, planta y equipo"},{"$f":"'822100 - Nota. Prop, plan y eq.'!$D$31","v":"ifrs-full:ReversalOfImpairmentLossRecognisedInOtherComprehensiveIncomePropertyPlantAndEquipment"}]
["/*",null,{"$f":"'822100 - Nota. Prop, plan y eq.'!$E$32","v":"Incrementos (disminuciones) por transferencias y otros cambios, propiedades, planta y equipo [resumen]"},{"$f":"'822100 - Nota. Prop, plan y eq.'!$D$32","v":"ifrs-full:IncreaseDecreaseThroughTransfersAndOtherChangesPropertyPlantAndEquipmentAbstract"}]
["/*",null,{"$f":"'822100 - Nota. Prop, plan y eq.'!$E$33","v":"Incrementos (disminuciones) por transferencias desde (hacia) propiedades de inversión, propiedades, planta y equipo"},{"$f":"'822100 - Nota. Prop, plan y eq.'!$D$33","v":"ifrs-full:IncreaseDecreaseThroughTransfersFromToInvestmentPropertyPropertyPlantAndEquipment"}]
["/*",null,{"$f":"'822100 - Nota. Prop, plan y eq.'!$E$34","v":"Incrementos (disminuciones) por transferencias desde construcciones en proceso , propiedades, planta y equipo"},{"$f":"'822100 - Nota. Prop, plan y eq.'!$D$34","v":"ifrs-full:IncreaseDecreaseThroughTransfersFromConstructionInProgressPropertyPlantAndEquipment"}]
["/*",null,{"$f":"'822100 - Nota. Prop, plan y eq.'!$E$35","v":"Incrementos (disminuciones) por otros cambios, propiedades, planta y equipo"},{"$f":"'822100 - Nota. Prop, plan y eq.'!$D$35","v":"ifrs-full:IncreaseDecreaseThroughOtherChangesPropertyPlantAndEquipment"}]
["",null,{"$f":"'822100 - Nota. Prop, plan y eq.'!$E$36","v":"Total incrementos (disminuciones) por transferencias y otros cambios, propiedades, planta y equipo"},{"$f":"'822100 - Nota. Prop, plan y eq.'!$D$36","v":"ifrs-full:IncreaseDecreaseThroughTransfersAndOtherChangesPropertyPlantAndEquipment"},0,"peso",{"$f":"'822100 - Nota. Prop, plan y eq.'!$M$36","v":0},0,"http://www.xbrl.org/scheme/companyName",{"$f":"Periodos!$C$3","v":"2023-01-01"},{"$f":"Periodos!$C$4","v":"2023-12-31"},{"$f":"'822100 - Nota. Prop, plan y eq.'!$E$14","v":"co-svsp-core:PropiedadesPlantaYEquipoEje_G1"},{"$f":"'822100 - Nota. Prop, plan y eq.'!$M$13","v":"co-svsp-core:OtrosVehiculosMiembro"}]
["/*",null,{"$f":"'822100 - Nota. Prop, plan y eq.'!$E$37","v":"Disposiciones y retiros de servicio, propiedades, planta y equipo [resumen]"},{"$f":"'822100 - Nota. Prop, plan y eq.'!$D$37","v":"ifrs-full:DisposalsAndRetirementsPropertyPlantAndEquipmentAbstract"}]
["/*",null,{"$f":"'822100 - Nota. Prop, plan y eq.'!$E$38","v":"Disposiciones, propiedades, planta y equipo"},{"$f":"'822100 - Nota. Prop, plan y eq.'!$D$38","v":"ifrs-full:DisposalsPropertyPlantAndEquipment"}]
["/*",null,{"$f":"'822100 - Nota. Prop, plan y eq.'!$E$39","v":"Retiros, propiedades, planta y equipo"},{"$f":"'822100 - Nota. Prop, plan y eq.'!$D$39","v":"ifrs-full:RetirementsPropertyPlantAndEquipment"}]
["",null,{"$f":"'822100 - Nota. Prop, plan y eq.'!$E$40","v":"Total de disposiciones y retiros de servicio, propiedades, planta y equipo"},{"$f":"'822100 - Nota. Prop, plan y eq.'!$D$40","v":"ifrs-full:DisposalsAndRetirementsPropertyPlantAndEquipment"},0,"peso",{"$f":"'822100 - Nota. Prop, plan y eq.'!$M$40","v":0},0,"http://www.xbrl.org/scheme/companyName",{"$f":"Periodos!$C$3","v":"2023-01-01"},{"$f":"Periodos!$C$4","v":"2023-12-31"},{"$f":"'822100 - Nota. Prop, plan y eq.'!$E$14","v":"co-svsp-core:PropiedadesPlantaYEquipoEje_G1"},{"$f":"'822100 - Nota. Prop, plan y eq.'!$M$13","v":"co-svsp-core:OtrosVehiculosMiembro"}]
["/*",null,{"$f":"'822100 - Nota. Prop, plan y eq.'!$E$41","v":"Disminuciones por clasificar como mantenidos para la venta, propiedades, planta y equipo"},{"$f":"'822100 - Nota. Prop, plan y eq.'!$D$41","v":"ifrs-full:DecreaseThroughClassifiedAsHeldForSalePropertyPlantAndEquipment"}]
["",null,{"$f":"'822100 - Nota. Prop, plan y eq.'!$E$42","v":"Total incremento (disminución) en propiedades, planta y equipo"},{"$f":"'822100 - Nota. Prop, plan y eq.'!$D$42","v":"ifrs-full:ChangesInPropertyPlantAndEquipment"},0,"peso",{"$f":"'822100 - Nota. Prop, plan y eq.'!$M$42","v":0},0,"http://www.xbrl.org/scheme/companyName",{"$f":"Periodos!$C$3","v":"2023-01-01"},{"$f":"Periodos!$C$4","v":"2023-12-31"},{"$f":"'822100 - Nota. Prop, plan y eq.'!$E$14","v":"co-svsp-core:PropiedadesPlantaYEquipoEje_G1"},{"$f":"'822100 - Nota. Prop, plan y eq.'!$M$13","v":"co-svsp-core:OtrosVehiculosMiembro"}]
["",null,{"$f":"'822100 - Nota. Prop, plan y eq.'!$E$43","v":"Propiedades, planta y equipo al final del periodo"},{"$f":"'822100 - Nota. Prop, plan y eq.'!$D$43","v":"ifrs-full:PropertyPlantAndEquipment"},0,"peso",{"$f":"'822100 - Nota. Prop, plan y eq.'!$M$43","v":0},0,"http://www.xbrl.org/scheme/companyName",null,{"$f":"Periodos!$C$4","v":"2023-12-31"},{"$f":"'822100 - Nota. Prop, plan y eq.'!$E$14","v":"co-svsp-core:PropiedadesPlantaYEquipoEje_G1"},{"$f":"'822100 - Nota. Prop, plan y eq.'!$M$13","v":"co-svsp-core:OtrosVehiculosMiembro"}]
["/*",null,"--09--"]
["/*",null,{"$f":"'822100 - Nota. Prop, plan y eq.'!$E$15","v":"Información a revelar detallada sobre propiedades, planta y equipo [partidas de los estados financieros]"},{"$f":"'822100 - Nota. Prop, plan y eq.'!$D$15","v":"ifrs-full:DisclosureOfPropertyPlantAndEquipmentLineItems"}]
["/*",null,{"$f":"'822100 - Nota. Prop, plan y eq.'!$E$16","v":"Bases de medición, propiedades, planta y equipo"},{"$f":"'822100 - Nota. Prop, plan y eq.'!$D$16","v":"ifrs-full:MeasurementBasesPropertyPlantAndEquipment"}]
["/*",null,{"$f":"'822100 - Nota. Prop, plan y eq.'!$E$17","v":"Método de depreciación, propiedades, planta y equipo"},{"$f":"'822100 - Nota. Prop, plan y eq.'!$D$17","v":"ifrs-full:DepreciationMethodPropertyPlantAndEquipment"}]
["/*",null,{"$f":"'822100 - Nota. Prop, plan y eq.'!$E$18","v":"Fechas de vigencia de revaluación, propiedades, planta y equipo"},{"$f":"'822100 - Nota. Prop, plan y eq.'!$D$18","v":"ifrs-full:EffectiveDatesOfRevaluationPropertyPlantAndEquipment"}]
["/*",null,{"$f":"'822100 - Nota. Prop, plan y eq.'!$E$19","v":"Explicación de la implicación del tasador independiente en la revaluación, propiedades, planta y equipo"},{"$f":"'822100 - Nota. Prop, plan y eq.'!$D$19","v":"ifrs-full:ExplanationOfIndependentValuerUsedForRevaluationPropertyPlantAndEquipment"}]
["/*",null,{"$f":"'822100 - Nota. Prop, plan y eq.'!$E$20","v":"Explicación del método de revaluación y supuestos significativos, propiedad, planta y equipo"},{"$f":"'822100 - Nota. Prop, plan y eq.'!$D$20","v":"co-svsp-core:ExplanationOfRevaluationMethodsAndSignificantAssumptionsPropertyPlantAndEquipment"}]
["/*",null,{"$f":"'822100 - Nota. Prop, plan y eq.'!$E$21","v":"Conciliación de cambios en propiedades, planta y equipo [resumen]"},{"$f":"'822100 - Nota. Prop, plan y eq.'!$D$21","v":"ifrs-full:ReconciliationOfChangesInPropertyPlantAndEquipmentAbstract"}]
["/*",null,{"$f":"'822100 - Nota. Prop, plan y eq.'!$E$22","v":"Propiedades, planta y equipo al comienzo del periodo"},{"$f":"'822100 - Nota. Prop, plan y eq.'!$D$22","v":"ifrs-full:PropertyPlantAndEquipment"}]
["/*",null,{"$f":"'822100 - Nota. Prop, plan y eq.'!$E$23","v":"Cambios en propiedades, planta y equipo [resumen]"},{"$f":"'822100 - Nota. Prop, plan y eq.'!$D$23","v":"ifrs-full:ChangesInPropertyPlantAndEquipmentAbstract"}]
["/*",null,{"$f":"'822100 - Nota. Prop, plan y eq.'!$E$24","v":"Incrementos distintos de los procedentes de combinaciones de negocios, propiedades, planta y equipo"},{"$f":"'822100 - Nota. Prop, plan y eq.'!$D$24","v":"ifrs-full:AdditionsOtherThanThroughBusinessCombinationsPropertyPlantAndEquipment"}]
["/*",null,{"$f":"'822100 - Nota. Prop, plan y eq.'!$E$25","v":"Adquisiciones realizadas mediante combinaciones de negocios, propiedades, planta y equipo"},{"$f":"'822100 - Nota. Prop, plan y eq.'!$D$25","v":"ifrs-full:AcquisitionsThroughBusinessCombinationsPropertyPlantAndEquipment"}]
["/*",null,{"$f":"'822100 - Nota. Prop, plan y eq.'!$E$26","v":"Depreciación, propiedades, planta y equipo"},{"$f":"'822100 - Nota. Prop, plan y eq.'!$D$26","v":"ifrs-full:DepreciationPropertyPlantAndEquipment"}]
["/*",null,{"$f":"'822100 - Nota. Prop, plan y eq.'!$E$27","v":"Pérdidas por deterioro de valor reconocidas en el resultado del periodo, propiedades, planta y equipo"},{"$f":"'822100 - Nota. Prop, plan y eq.'!$D$27","v":"ifrs-full:ImpairmentLossRecognisedInProfitOrLossPropertyPlantAndEquipment"}]
["/*",null,{"$f":"'822100 - Nota. Prop, plan y eq.'!$E$28","v":"Reversión de pérdidas por deterioro de valor reconocidas en el resultado del periodo, propiedades, planta y equipo"},{"$f":"'822100 - Nota. Prop, plan y eq.'!$D$28","v":"ifrs-full:ReversalOfImpairmentLossRecognisedInProfitOrLossPropertyPlantAndEquipment"}]
["/*",null,{"$f":"'822100 - Nota. Prop, plan y eq.'!$E$29","v":"Incrementos (disminuciones) de revaluaciones, propiedades, planta y equipo"},{"$f":"'822100 - Nota. Prop, plan y eq.'!$D$29","v":"ifrs-full:RevaluationIncreaseDecreasePropertyPlantAndEquipment"}]
["/*",null,{"$f":"'822100 - Nota. Prop, plan y eq.'!$E$30","v":"Pérdidas por deterioro de valor reconocidas en otro resultado integral, propiedades, planta y equipo"},{"$f":"'822100 - Nota. Prop, plan y eq.'!$D$30","v":"ifrs-full:ImpairmentLossRecognisedInOtherComprehensiveIncomePropertyPlantAndEquipment"}]
["/*",null,{"$f":"'822100 - Nota. Prop, plan y eq.'!$E$31","v":"Reversión de pérdidas por deterioro de valor reconocidas en otro resultado integral, propiedades, planta y equipo"},{"$f":"'822100 - Nota. Prop, plan y eq.'!$D$31","v":"ifrs-full:ReversalOfImpairmentLossRecognisedInOtherComprehensiveIncomePropertyPlantAndEquipment"}]
["/*",null,{"$f":"'822100 - Nota. Prop, plan y eq.'!$E$32","v":"Incrementos (disminuciones) por transferencias y otros cambios, propiedades, planta y equipo [resumen]"},{"$f":"'822100 - Nota. Prop, plan y eq.'!$D$32","v":"ifrs-full:IncreaseDecreaseThroughTransfersAndOtherChangesPropertyPlantAndEquipmentAbstract"}]
["/*",null,{"$f":"'822100 - Nota. Prop, plan y eq.'!$E$33","v":"Incrementos (disminuciones) por transferencias desde (hacia) propiedades de inversión, propiedades, planta y equipo"},{"$f":"'822100 - Nota. Prop, plan y eq.'!$D$33","v":"ifrs-full:IncreaseDecreaseThroughTransfersFromToInvestmentPropertyPropertyPlantAndEquipment"}]
["/*",null,{"$f":"'822100 - Nota. Prop, plan y eq.'!$E$34","v":"Incrementos (disminuciones) por transferencias desde construcciones en proceso , propiedades, planta y equipo"},{"$f":"'822100 - Nota. Prop, plan y eq.'!$D$34","v":"ifrs-full:IncreaseDecreaseThroughTransfersFromConstructionInProgressPropertyPlantAndEquipment"}]
["/*",null,{"$f":"'822100 - Nota. Prop, plan y eq.'!$E$35","v":"Incrementos (disminuciones) por otros cambios, propiedades, planta y equipo"},{"$f":"'822100 - Nota. Prop, plan y eq.'!$D$35","v":"ifrs-full:IncreaseDecreaseThroughOtherChangesPropertyPlantAndEquipment"}]
["",null,{"$f":"'822100 - Nota. Prop, plan y eq.'!$E$36","v":"Total incrementos (disminuciones) por transferencias y otros cambios, propiedades, planta y equipo"},{"$f":"'822100 - Nota. Prop, plan y eq.'!$D$36","v":"ifrs-full:IncreaseDecreaseThroughTransfersAndOtherChangesPropertyPlantAndEquipment"},0,"peso",{"$f":"'822100 - Nota. Prop, plan y eq.'!$N$36","v":0},0,"http://www.xbrl.org/scheme/companyName",{"$f":"Periodos!$C$3","v":"2023-01-01"},{"$f":"Periodos!$C$4","v":"2023-12-31"},{"$f":"'822100 - Nota. Prop, plan y eq.'!$E$14","v":"co-svsp-core:PropiedadesPlantaYEquipoEje_G1"},{"$f":"'822100 - Nota. Prop, plan y eq.'!$N$13","v":"ifrs-full:MotorVehiclesMember"}]
["/*",null,{"$f":"'822100 - Nota. Prop, plan y eq.'!$E$37","v":"Disposiciones y retiros de servicio, propiedades, planta y equipo [resumen]"},{"$f":"'822100 - Nota. Prop, plan y eq.'!$D$37","v":"ifrs-full:DisposalsAndRetirementsPropertyPlantAndEquipmentAbstract"}]
[{"$f":"IF(G5280=\"\",\"/*\",\"\")","v":"/*"},null,{"$f":"'822100 - Nota. Prop, plan y eq.'!$E$38","v":"Disposiciones, propiedades, planta y equipo"},{"$f":"'822100 - Nota. Prop, plan y eq.'!$D$38","v":"ifrs-full:DisposalsPropertyPlantAndEquipment"}]
["/*",null,{"$f":"'822100 - Nota. Prop, plan y eq.'!$E$39","v":"Retiros, propiedades, planta y equipo"},{"$f":"'822100 - Nota. Prop, plan y eq.'!$D$39","v":"ifrs-full:RetirementsPropertyPlantAndEquipment"}]
["",null,{"$f":"'822100 - Nota. Prop, plan y eq.'!$E$40","v":"Total de disposiciones y retiros de servicio, propiedades, planta y equipo"},{"$f":"'822100 - Nota. Prop, plan y eq.'!$D$40","v":"ifrs-full:DisposalsAndRetirementsPropertyPlantAndEquipment"},0,"peso",{"$f":"'822100 - Nota. Prop, plan y eq.'!$N$40","v":0},0,"http://www.xbrl.org/scheme/companyName",{"$f":"Periodos!$C$3","v":"2023-01-01"},{"$f":"Periodos!$C$4","v":"2023-12-31"},{"$f":"'822100 - Nota. Prop, plan y eq.'!$E$14","v":"co-svsp-core:PropiedadesPlantaYEquipoEje_G1"},{"$f":"'822100 - Nota. Prop, plan y eq.'!$N$13","v":"ifrs-full:MotorVehiclesMember"}]
["/*",null,{"$f":"'822100 - Nota. Prop, plan y eq.'!$E$41","v":"Disminuciones por clasificar como mantenidos para la venta, propiedades, planta y equipo"},{"$f":"'822100 - Nota. Prop, plan y eq.'!$D$41","v":"ifrs-full:DecreaseThroughClassifiedAsHeldForSalePropertyPlantAndEquipment"}]
["",null,{"$f":"'822100 - Nota. Prop, plan y eq.'!$E$42","v":"Total incremento (disminución) en propiedades, planta y equipo"},{"$f":"'822100 - Nota. Prop, plan y eq.'!$D$42","v":"ifrs-full:ChangesInPropertyPlantAndEquipment"},0,"peso",{"$f":"'822100 - Nota. Prop, plan y eq.'!$N$42","v":0},0,"http://www.xbrl.org/scheme/companyName",{"$f":"Periodos!$C$3","v":"2023-01-01"},{"$f":"Periodos!$C$4","v":"2023-12-31"},{"$f":"'822100 - Nota. Prop, plan y eq.'!$E$14","v":"co-svsp-core:PropiedadesPlantaYEquipoEje_G1"},{"$f":"'822100 - Nota. Prop, plan y eq.'!$N$13","v":"ifrs-full:MotorVehiclesMember"}]
["",null,{"$f":"'822100 - Nota. Prop, plan y eq.'!$E$43","v":"Propiedades, planta y equipo al final del periodo"},{"$f":"'822100 - Nota. Prop, plan y eq.'!$D$43","v":"ifrs-full:PropertyPlantAndEquipment"},0,"peso",{"$f":"'822100 - Nota. Prop, plan y eq.'!$N$43","v":0},0,"http://www.xbrl.org/scheme/companyName",null,{"$f":"Periodos!$C$4","v":"2023-12-31"},{"$f":"'822100 - Nota. Prop, plan y eq.'!$E$14","v":"co-svsp-core:PropiedadesPlantaYEquipoEje_G1"},{"$f":"'822100 - Nota. Prop, plan y eq.'!$N$13","v":"ifrs-full:MotorVehiclesMember"}]
["/*",null,"--10--"]
["/*",null,{"$f":"'822100 - Nota. Prop, plan y eq.'!$E$15","v":"Información a revelar detallada sobre propiedades, planta y equipo [partidas de los estados financieros]"},{"$f":"'822100 - Nota. Prop, plan y eq.'!$D$15","v":"ifrs-full:DisclosureOfPropertyPlantAndEquipmentLineItems"}]
["/*",null,{"$f":"'822100 - Nota. Prop, plan y eq.'!$E$16","v":"Bases de medición, propiedades, planta y equipo"},{"$f":"'822100 - Nota. Prop, plan y eq.'!$D$16","v":"ifrs-full:MeasurementBasesPropertyPlantAndEquipment"}]
["/*",null,{"$f":"'822100 - Nota. Prop, plan y eq.'!$E$17","v":"Método de depreciación, propiedades, planta y equipo"},{"$f":"'822100 - Nota. Prop, plan y eq.'!$D$17","v":"ifrs-full:DepreciationMethodPropertyPlantAndEquipment"}]
["/*",null,{"$f":"'822100 - Nota. Prop, plan y eq.'!$E$18","v":"Fechas de vigencia de revaluación, propiedades, planta y equipo"},{"$f":"'822100 - Nota. Prop, plan y eq.'!$D$18","v":"ifrs-full:EffectiveDatesOfRevaluationPropertyPlantAndEquipment"}]
["/*",null,{"$f":"'822100 - Nota. Prop, plan y eq.'!$E$19","v":"Explicación de la implicación del tasador independiente en la revaluación, propiedades, planta y equipo"},{"$f":"'822100 - Nota. Prop, plan y eq.'!$D$19","v":"ifrs-full:ExplanationOfIndependentValuerUsedForRevaluationPropertyPlantAndEquipment"}]
["/*",null,{"$f":"'822100 - Nota. Prop, plan y eq.'!$E$20","v":"Explicación del método de revaluación y supuestos significativos, propiedad, planta y equipo"},{"$f":"'822100 - Nota. Prop, plan y eq.'!$D$20","v":"co-svsp-core:ExplanationOfRevaluationMethodsAndSignificantAssumptionsPropertyPlantAndEquipment"}]
["/*",null,{"$f":"'822100 - Nota. Prop, plan y eq.'!$E$21","v":"Conciliación de cambios en propiedades, planta y equipo [resumen]"},{"$f":"'822100 - Nota. Prop, plan y eq.'!$D$21","v":"ifrs-full:ReconciliationOfChangesInPropertyPlantAndEquipmentAbstract"}]
["/*",null,{"$f":"'822100 - Nota. Prop, plan y eq.'!$E$22","v":"Propiedades, planta y equipo al comienzo del periodo"},{"$f":"'822100 - Nota. Prop, plan y eq.'!$D$22","v":"ifrs-full:PropertyPlantAndEquipment"}]
["/*",null,{"$f":"'822100 - Nota. Prop, plan y eq.'!$E$23","v":"Cambios en propiedades, planta y equipo [resumen]"},{"$f":"'822100 - Nota. Prop, plan y eq.'!$D$23","v":"ifrs-full:ChangesInPropertyPlantAndEquipmentAbstract"}]
["/*",null,{"$f":"'822100 - Nota. Prop, plan y eq.'!$E$24","v":"Incrementos distintos de los procedentes de combinaciones de negocios, propiedades, planta y equipo"},{"$f":"'822100 - Nota. Prop, plan y eq.'!$D$24","v":"ifrs-full:AdditionsOtherThanThroughBusinessCombinationsPropertyPlantAndEquipment"}]
["/*",null,{"$f":"'822100 - Nota. Prop, plan y eq.'!$E$25","v":"Adquisiciones realizadas mediante combinaciones de negocios, propiedades, planta y equipo"},{"$f":"'822100 - Nota. Prop, plan y eq.'!$D$25","v":"ifrs-full:AcquisitionsThroughBusinessCombinationsPropertyPlantAndEquipment"}]
["/*",null,{"$f":"'822100 - Nota. Prop, plan y eq.'!$E$26","v":"Depreciación, propiedades, planta y equipo"},{"$f":"'822100 - Nota. Prop, plan y eq.'!$D$26","v":"ifrs-full:DepreciationPropertyPlantAndEquipment"}]
["/*",null,{"$f":"'822100 - Nota. Prop, plan y eq.'!$E$27","v":"Pérdidas por deterioro de valor reconocidas en el resultado del periodo, propiedades, planta y equipo"},{"$f":"'822100 - Nota. Prop, plan y eq.'!$D$27","v":"ifrs-full:ImpairmentLossRecognisedInProfitOrLossPropertyPlantAndEquipment"}]
["/*",null,{"$f":"'822100 - Nota. Prop, plan y eq.'!$E$28","v":"Reversión de pérdidas por deterioro de valor reconocidas en el resultado del periodo, propiedades, planta y equipo"},{"$f":"'822100 - Nota. Prop, plan y eq.'!$D$28","v":"ifrs-full:ReversalOfImpairmentLossRecognisedInProfitOrLossPropertyPlantAndEquipment"}]
["/*",null,{"$f":"'822100 - Nota. Prop, plan y eq.'!$E$29","v":"Incrementos (disminuciones) de revaluaciones, propiedades, planta y equipo"},{"$f":"'822100 - Nota. Prop, plan y eq.'!$D$29","v":"ifrs-full:RevaluationIncreaseDecreasePropertyPlantAndEquipment"}]
["/*",null,{"$f":"'822100 - Nota. Prop, plan y eq.'!$E$30","v":"Pérdidas por deterioro de valor reconocidas en otro resultado integral, propiedades, planta y equipo"},{"$f":"'822100 - Nota. Prop, plan y eq.'!$D$30","v":"ifrs-full:ImpairmentLossRecognisedInOtherComprehensiveIncomePropertyPlantAndEquipment"}]
["/*",null,{"$f":"'822100 - Nota. Prop, plan y eq.'!$E$31","v":"Reversión de pérdidas por deterioro de valor reconocidas en otro resultado integral, propiedades, planta y equipo"},{"$f":"'822100 - Nota. Prop, plan y eq.'!$D$31","v":"ifrs-full:ReversalOfImpairmentLossRecognisedInOtherComprehensiveIncomePropertyPlantAndEquipment"}]
["/*",null,{"$f":"'822100 - Nota. Prop, plan y eq.'!$E$32","v":"Incrementos (disminuciones) por transferencias y otros cambios, propiedades, planta y equipo [resumen]"},{"$f":"'822100 - Nota. Prop, plan y eq.'!$D$32","v":"ifrs-full:IncreaseDecreaseThroughTransfersAndOtherChangesPropertyPlantAndEquipmentAbstract"}]
["/*",null,{"$f":"'822100 - Nota. Prop, plan y eq.'!$E$33","v":"Incrementos (disminuciones) por transferencias desde (hacia) propiedades de inversión, propiedades, planta y equipo"},{"$f":"'822100 - Nota. Prop, plan y eq.'!$D$33","v":"ifrs-full:IncreaseDecreaseThroughTransfersFromToInvestmentPropertyPropertyPlantAndEquipment"}]
["/*",null,{"$f":"'822100 - Nota. Prop, plan y eq.'!$E$34","v":"Incrementos (disminuciones) por transferencias desde construcciones en proceso , propiedades, planta y equipo"},{"$f":"'822100 - Nota. Prop, plan y eq.'!$D$34","v":"ifrs-full:IncreaseDecreaseThroughTransfersFromConstructionInProgressPropertyPlantAndEquipment"}]
["/*",null,{"$f":"'822100 - Nota. Prop, plan y eq.'!$E$35","v":"Incrementos (disminuciones) por otros cambios, propiedades, planta y equipo"},{"$f":"'822100 - Nota. Prop, plan y eq.'!$D$35","v":"ifrs-full:IncreaseDecreaseThroughOtherChangesPropertyPlantAndEquipment"}]
["",null,{"$f":"'822100 - Nota. Prop, plan y eq.'!$E$36","v":"Total incrementos (disminuciones) por transferencias y otros cambios, propiedades, planta y equipo"},{"$f":"'822100 - Nota. Prop, plan y eq.'!$D$36","v":"ifrs-full:IncreaseDecreaseThroughTransfersAndOtherChangesPropertyPlantAndEquipment"},0,"peso",{"$f":"'822100 - Nota. Prop, plan y eq.'!$O$36","v":0},0,"http://www.xbrl.org/scheme/companyName",{"$f":"Periodos!$C$3","v":"2023-01-01"},{"$f":"Periodos!$C$4","v":"2023-12-31"},{"$f":"'822100 - Nota. Prop, plan y eq.'!$E$14","v":"co-svsp-core:PropiedadesPlantaYEquipoEje_G1"},{"$f":"'822100 - Nota. Prop, plan y eq.'!$O$13","v":"ifrs-full:VehiclesMember"}]
["/*",null,{"$f":"'822100 - Nota. Prop, plan y eq.'!$E$37","v":"Disposiciones y retiros de servicio, propiedades, planta y equipo [resumen]"},{"$f":"'822100 - Nota. Prop, plan y eq.'!$D$37","v":"ifrs-full:DisposalsAndRetirementsPropertyPlantAndEquipmentAbstract"}]
["/*",null,{"$f":"'822100 - Nota. Prop, plan y eq.'!$E$38","v":"Disposiciones, propiedades, planta y equipo"},{"$f":"'822100 - Nota. Prop, plan y eq.'!$D$38","v":"ifrs-full:DisposalsPropertyPlantAndEquipment"}]
["/*",null,{"$f":"'822100 - Nota. Prop, plan y eq.'!$E$39","v":"Retiros, propiedades, planta y equipo"},{"$f":"'822100 - Nota. Prop, plan y eq.'!$D$39","v":"ifrs-full:RetirementsPropertyPlantAndEquipment"}]
["",null,{"$f":"'822100 - Nota. Prop, plan y eq.'!$E$40","v":"Total de disposiciones y retiros de servicio, propiedades, planta y equipo"},{"$f":"'822100 - Nota. Prop, plan y eq.'!$D$40","v":"ifrs-full:DisposalsAndRetirementsPropertyPlantAndEquipment"},0,"peso",{"$f":"'822100 - Nota. Prop, plan y eq.'!$O$40","v":0},0,"http://www.xbrl.org/scheme/companyName",{"$f":"Periodos!$C$3","v":"2023-01-01"},{"$f":"Periodos!$C$4","v":"2023-12-31"},{"$f":"'822100 - Nota. Prop, plan y eq.'!$E$14","v":"co-svsp-core:PropiedadesPlantaYEquipoEje_G1"},{"$f":"'822100 - Nota. Prop, plan y eq.'!$O$13","v":"ifrs-full:VehiclesMember"}]
["/*",null,{"$f":"'822100 - Nota. Prop, plan y eq.'!$E$41","v":"Disminuciones por clasificar como mantenidos para la venta, propiedades, planta y equipo"},{"$f":"'822100 - Nota. Prop, plan y eq.'!$D$41","v":"ifrs-full:DecreaseThroughClassifiedAsHeldForSalePropertyPlantAndEquipment"}]
["",null,{"$f":"'822100 - Nota. Prop, plan y eq.'!$E$42","v":"Total incremento (disminución) en propiedades, planta y equipo"},{"$f":"'822100 - Nota. Prop, plan y eq.'!$D$42","v":"ifrs-full:ChangesInPropertyPlantAndEquipment"},0,"peso",{"$f":"'822100 - Nota. Prop, plan y eq.'!$O$42","v":0},0,"http://www.xbrl.org/scheme/companyName",{"$f":"Periodos!$C$3","v":"2023-01-01"},{"$f":"Periodos!$C$4","v":"2023-12-31"},{"$f":"'822100 - Nota. Prop, plan y eq.'!$E$14","v":"co-svsp-core:PropiedadesPlantaYEquipoEje_G1"},{"$f":"'822100 - Nota. Prop, plan y eq.'!$O$13","v":"ifrs-full:VehiclesMember"}]
["",null,{"$f":"'822100 - Nota. Prop, plan y eq.'!$E$43","v":"Propiedades, planta y equipo al final del periodo"},{"$f":"'822100 - Nota. Prop, plan y eq.'!$D$43","v":"ifrs-full:PropertyPlantAndEquipment"},0,"peso",{"$f":"'822100 - Nota. Prop, plan y eq.'!$O$43","v":0},0,"http://www.xbrl.org/scheme/companyName",null,{"$f":"Periodos!$C$4","v":"2023-12-31"},{"$f":"'822100 - Nota. Prop, plan y eq.'!$E$14","v":"co-svsp-core:PropiedadesPlantaYEquipoEje_G1"},{"$f":"'822100 - Nota. Prop, plan y eq.'!$O$13","v":"ifrs-full:VehiclesMember"}]
["/*",null,"--11--"]
["/*",null,{"$f":"'822100 - Nota. Prop, plan y eq.'!$E$15","v":"Información a revelar detallada sobre propiedades, planta y equipo [partidas de los estados financieros]"},{"$f":"'822100 - Nota. Prop, plan y eq.'!$D$15","v":"ifrs-full:DisclosureOfPropertyPlantAndEquipmentLineItems"}]
["/*",null,{"$f":"'822100 - Nota. Prop, plan y eq.'!$E$16","v":"Bases de medición, propiedades, planta y equipo"},{"$f":"'822100 - Nota. Prop, plan y eq.'!$D$16","v":"ifrs-full:MeasurementBasesPropertyPlantAndEquipment"}]
["/*",null,{"$f":"'822100 - Nota. Prop, plan y eq.'!$E$17","v":"Método de depreciación, propiedades, planta y equipo"},{"$f":"'822100 - Nota. Prop, plan y eq.'!$D$17","v":"ifrs-full:DepreciationMethodPropertyPlantAndEquipment"}]
["/*",null,{"$f":"'822100 - Nota. Prop, plan y eq.'!$E$18","v":"Fechas de vigencia de revaluación, propiedades, planta y equipo"},{"$f":"'822100 - Nota. Prop, plan y eq.'!$D$18","v":"ifrs-full:EffectiveDatesOfRevaluationPropertyPlantAndEquipment"}]
["/*",null,{"$f":"'822100 - Nota. Prop, plan y eq.'!$E$19","v":"Explicación de la implicación del tasador independiente en la revaluación, propiedades, planta y equipo"},{"$f":"'822100 - Nota. Prop, plan y eq.'!$D$19","v":"ifrs-full:ExplanationOfIndependentValuerUsedForRevaluationPropertyPlantAndEquipment"}]
["/*",null,{"$f":"'822100 - Nota. Prop, plan y eq.'!$E$20","v":"Explicación del método de revaluación y supuestos significativos, propiedad, planta y equipo"},{"$f":"'822100 - Nota. Prop, plan y eq.'!$D$20","v":"co-svsp-core:ExplanationOfRevaluationMethodsAndSignificantAssumptionsPropertyPlantAndEquipment"}]
["/*",null,{"$f":"'822100 - Nota. Prop, plan y eq.'!$E$21","v":"Conciliación de cambios en propiedades, planta y equipo [resumen]"},{"$f":"'822100 - Nota. Prop, plan y eq.'!$D$21","v":"ifrs-full:ReconciliationOfChangesInPropertyPlantAndEquipmentAbstract"}]
["/*",null,{"$f":"'822100 - Nota. Prop, plan y eq.'!$E$22","v":"Propiedades, planta y equipo al comienzo del periodo"},{"$f":"'822100 - Nota. Prop, plan y eq.'!$D$22","v":"ifrs-full:PropertyPlantAndEquipment"}]
["/*",null,{"$f":"'822100 - Nota. Prop, plan y eq.'!$E$23","v":"Cambios en propiedades, planta y equipo [resumen]"},{"$f":"'822100 - Nota. Prop, plan y eq.'!$D$23","v":"ifrs-full:ChangesInPropertyPlantAndEquipmentAbstract"}]
["/*",null,{"$f":"'822100 - Nota. Prop, plan y eq.'!$E$24","v":"Incrementos distintos de los procedentes de combinaciones de negocios, propiedades, planta y equipo"},{"$f":"'822100 - Nota. Prop, plan y eq.'!$D$24","v":"ifrs-full:AdditionsOtherThanThroughBusinessCombinationsPropertyPlantAndEquipment"}]
["/*",null,{"$f":"'822100 - Nota. Prop, plan y eq.'!$E$25","v":"Adquisiciones realizadas mediante combinaciones de negocios, propiedades, planta y equipo"},{"$f":"'822100 - Nota. Prop, plan y eq.'!$D$25","v":"ifrs-full:AcquisitionsThroughBusinessCombinationsPropertyPlantAndEquipment"}]
["/*",null,{"$f":"'822100 - Nota. Prop, plan y eq.'!$E$26","v":"Depreciación, propiedades, planta y equipo"},{"$f":"'822100 - Nota. Prop, plan y eq.'!$D$26","v":"ifrs-full:DepreciationPropertyPlantAndEquipment"}]
["/*",null,{"$f":"'822100 - Nota. Prop, plan y eq.'!$E$27","v":"Pérdidas por deterioro de valor reconocidas en el resultado del periodo, propiedades, planta y equipo"},{"$f":"'822100 - Nota. Prop, plan y eq.'!$D$27","v":"ifrs-full:ImpairmentLossRecognisedInProfitOrLossPropertyPlantAndEquipment"}]
["/*",null,{"$f":"'822100 - Nota. Prop, plan y eq.'!$E$28","v":"Reversión de pérdidas por deterioro de valor reconocidas en el resultado del periodo, propiedades, planta y equipo"},{"$f":"'822100 - Nota. Prop, plan y eq.'!$D$28","v":"ifrs-full:ReversalOfImpairmentLossRecognisedInProfitOrLossPropertyPlantAndEquipment"}]
["/*",null,{"$f":"'822100 - Nota. Prop, plan y eq.'!$E$29","v":"Incrementos (disminuciones) de revaluaciones, propiedades, planta y equipo"},{"$f":"'822100 - Nota. Prop, plan y eq.'!$D$29","v":"ifrs-full:RevaluationIncreaseDecreasePropertyPlantAndEquipment"}]
["/*",null,{"$f":"'822100 - Nota. Prop, plan y eq.'!$E$30","v":"Pérdidas por deterioro de valor reconocidas en otro resultado integral, propiedades, planta y equipo"},{"$f":"'822100 - Nota. Prop, plan y eq.'!$D$30","v":"ifrs-full:ImpairmentLossRecognisedInOtherComprehensiveIncomePropertyPlantAndEquipment"}]
["/*",null,{"$f":"'822100 - Nota. Prop, plan y eq.'!$E$31","v":"Reversión de pérdidas por deterioro de valor reconocidas en otro resultado integral, propiedades, planta y equipo"},{"$f":"'822100 - Nota. Prop, plan y eq.'!$D$31","v":"ifrs-full:ReversalOfImpairmentLossRecognisedInOtherComprehensiveIncomePropertyPlantAndEquipment"}]
["/*",null,{"$f":"'822100 - Nota. Prop, plan y eq.'!$E$32","v":"Incrementos (disminuciones) por transferencias y otros cambios, propiedades, planta y equipo [resumen]"},{"$f":"'822100 - Nota. Prop, plan y eq.'!$D$32","v":"ifrs-full:IncreaseDecreaseThroughTransfersAndOtherChangesPropertyPlantAndEquipmentAbstract"}]
["/*",null,{"$f":"'822100 - Nota. Prop, plan y eq.'!$E$33","v":"Incrementos (disminuciones) por transferencias desde (hacia) propiedades de inversión, propiedades, planta y equipo"},{"$f":"'822100 - Nota. Prop, plan y eq.'!$D$33","v":"ifrs-full:IncreaseDecreaseThroughTransfersFromToInvestmentPropertyPropertyPlantAndEquipment"}]
["/*",null,{"$f":"'822100 - Nota. Prop, plan y eq.'!$E$34","v":"Incrementos (disminuciones) por transferencias desde construcciones en proceso , propiedades, planta y equipo"},{"$f":"'822100 - Nota. Prop, plan y eq.'!$D$34","v":"ifrs-full:IncreaseDecreaseThroughTransfersFromConstructionInProgressPropertyPlantAndEquipment"}]
["/*",null,{"$f":"'822100 - Nota. Prop, plan y eq.'!$E$35","v":"Incrementos (disminuciones) por otros cambios, propiedades, planta y equipo"},{"$f":"'822100 - Nota. Prop, plan y eq.'!$D$35","v":"ifrs-full:IncreaseDecreaseThroughOtherChangesPropertyPlantAndEquipment"}]
["",null,{"$f":"'822100 - Nota. Prop, plan y eq.'!$E$36","v":"Total incrementos (disminuciones) por transferencias y otros cambios, propiedades, planta y equipo"},{"$f":"'822100 - Nota. Prop, plan y eq.'!$D$36","v":"ifrs-full:IncreaseDecreaseThroughTransfersAndOtherChangesPropertyPlantAndEquipment"},0,"peso",{"$f":"'822100 - Nota. Prop, plan y eq.'!$P$36","v":0},0,"http://www.xbrl.org/scheme/companyName",{"$f":"Periodos!$C$3","v":"2023-01-01"},{"$f":"Periodos!$C$4","v":"2023-12-31"},{"$f":"'822100 - Nota. Prop, plan y eq.'!$E$14","v":"co-svsp-core:PropiedadesPlantaYEquipoEje_G1"},{"$f":"'822100 - Nota. Prop, plan y eq.'!$P$13","v":"ifrs-full:FixturesAndFittingsMember"}]
["/*",null,{"$f":"'822100 - Nota. Prop, plan y eq.'!$E$37","v":"Disposiciones y retiros de servicio, propiedades, planta y equipo [resumen]"},{"$f":"'822100 - Nota. Prop, plan y eq.'!$D$37","v":"ifrs-full:DisposalsAndRetirementsPropertyPlantAndEquipmentAbstract"}]
["/*",null,{"$f":"'822100 - Nota. Prop, plan y eq.'!$E$38","v":"Disposiciones, propiedades, planta y equipo"},{"$f":"'822100 - Nota. Prop, plan y eq.'!$D$38","v":"ifrs-full:DisposalsPropertyPlantAndEquipment"}]
["/*",null,{"$f":"'822100 - Nota. Prop, plan y eq.'!$E$39","v":"Retiros, propiedades, planta y equipo"},{"$f":"'822100 - Nota. Prop, plan y eq.'!$D$39","v":"ifrs-full:RetirementsPropertyPlantAndEquipment"}]
["",null,{"$f":"'822100 - Nota. Prop, plan y eq.'!$E$40","v":"Total de disposiciones y retiros de servicio, propiedades, planta y equipo"},{"$f":"'822100 - Nota. Prop, plan y eq.'!$D$40","v":"ifrs-full:DisposalsAndRetirementsPropertyPlantAndEquipment"},0,"peso",{"$f":"'822100 - Nota. Prop, plan y eq.'!$P$40","v":0},0,"http://www.xbrl.org/scheme/companyName",{"$f":"Periodos!$C$3","v":"2023-01-01"},{"$f":"Periodos!$C$4","v":"2023-12-31"},{"$f":"'822100 - Nota. Prop, plan y eq.'!$E$14","v":"co-svsp-core:PropiedadesPlantaYEquipoEje_G1"},{"$f":"'822100 - Nota. Prop, plan y eq.'!$P$13","v":"ifrs-full:FixturesAndFittingsMember"}]
["/*",null,{"$f":"'822100 - Nota. Prop, plan y eq.'!$E$41","v":"Disminuciones por clasificar como mantenidos para la venta, propiedades, planta y equipo"},{"$f":"'822100 - Nota. Prop, plan y eq.'!$D$41","v":"ifrs-full:DecreaseThroughClassifiedAsHeldForSalePropertyPlantAndEquipment"}]
[{"$f":"IF(G5344=\"\",\"/*\",\"\")","v":""},null,{"$f":"'822100 - Nota. Prop, plan y eq.'!$E$42","v":"Total incremento (disminución) en propiedades, planta y equipo"},{"$f":"'822100 - Nota. Prop, plan y eq.'!$D$42","v":"ifrs-full:ChangesInPropertyPlantAndEquipment"},0,"peso",{"$f":"'822100 - Nota. Prop, plan y eq.'!$P$42","v":0},0,"http://www.xbrl.org/scheme/companyName",{"$f":"Periodos!$C$3","v":"2023-01-01"},{"$f":"Periodos!$C$4","v":"2023-12-31"},{"$f":"'822100 - Nota. Prop, plan y eq.'!$E$14","v":"co-svsp-core:PropiedadesPlantaYEquipoEje_G1"},{"$f":"'822100 - Nota. Prop, plan y eq.'!$P$13","v":"ifrs-full:FixturesAndFittingsMember"}]
["",null,{"$f":"'822100 - Nota. Prop, plan y eq.'!$E$43","v":"Propiedades, planta y equipo al final del periodo"},{"$f":"'822100 - Nota. Prop, plan y eq.'!$D$43","v":"ifrs-full:PropertyPlantAndEquipment"},0,"peso",{"$f":"'822100 - Nota. Prop, plan y eq.'!$P$43","v":0},0,"http://www.xbrl.org/scheme/companyName",null,{"$f":"Periodos!$C$4","v":"2023-12-31"},{"$f":"'822100 - Nota. Prop, plan y eq.'!$E$14","v":"co-svsp-core:PropiedadesPlantaYEquipoEje_G1"},{"$f":"'822100 - Nota. Prop, plan y eq.'!$P$13","v":"ifrs-full:FixturesAndFittingsMember"}]
["/*",null,"--12--"]
["/*",null,{"$f":"'822100 - Nota. Prop, plan y eq.'!$E$15","v":"Información a revelar detallada sobre propiedades, planta y equipo [partidas de los estados financieros]"},{"$f":"'822100 - Nota. Prop, plan y eq.'!$D$15","v":"ifrs-full:DisclosureOfPropertyPlantAndEquipmentLineItems"}]
["/*",null,{"$f":"'822100 - Nota. Prop, plan y eq.'!$E$16","v":"Bases de medición, propiedades, planta y equipo"},{"$f":"'822100 - Nota. Prop, plan y eq.'!$D$16","v":"ifrs-full:MeasurementBasesPropertyPlantAndEquipment"}]
["/*",null,{"$f":"'822100 - Nota. Prop, plan y eq.'!$E$17","v":"Método de depreciación, propiedades, planta y equipo"},{"$f":"'822100 - Nota. Prop, plan y eq.'!$D$17","v":"ifrs-full:DepreciationMethodPropertyPlantAndEquipment"}]
["/*",null,{"$f":"'822100 - Nota. Prop, plan y eq.'!$E$18","v":"Fechas de vigencia de revaluación, propiedades, planta y equipo"},{"$f":"'822100 - Nota. Prop, plan y eq.'!$D$18","v":"ifrs-full:EffectiveDatesOfRevaluationPropertyPlantAndEquipment"}]
["/*",null,{"$f":"'822100 - Nota. Prop, plan y eq.'!$E$19","v":"Explicación de la implicación del tasador independiente en la revaluación, propiedades, planta y equipo"},{"$f":"'822100 - Nota. Prop, plan y eq.'!$D$19","v":"ifrs-full:ExplanationOfIndependentValuerUsedForRevaluationPropertyPlantAndEquipment"}]
["/*",null,{"$f":"'822100 - Nota. Prop, plan y eq.'!$E$20","v":"Explicación del método de revaluación y supuestos significativos, propiedad, planta y equipo"},{"$f":"'822100 - Nota. Prop, plan y eq.'!$D$20","v":"co-svsp-core:ExplanationOfRevaluationMethodsAndSignificantAssumptionsPropertyPlantAndEquipment"}]
["/*",null,{"$f":"'822100 - Nota. Prop, plan y eq.'!$E$21","v":"Conciliación de cambios en propiedades, planta y equipo [resumen]"},{"$f":"'822100 - Nota. Prop, plan y eq.'!$D$21","v":"ifrs-full:ReconciliationOfChangesInPropertyPlantAndEquipmentAbstract"}]
["/*",null,{"$f":"'822100 - Nota. Prop, plan y eq.'!$E$22","v":"Propiedades, planta y equipo al comienzo del periodo"},{"$f":"'822100 - Nota. Prop, plan y eq.'!$D$22","v":"ifrs-full:PropertyPlantAndEquipment"}]
["/*",null,{"$f":"'822100 - Nota. Prop, plan y eq.'!$E$23","v":"Cambios en propiedades, planta y equipo [resumen]"},{"$f":"'822100 - Nota. Prop, plan y eq.'!$D$23","v":"ifrs-full:ChangesInPropertyPlantAndEquipmentAbstract"}]
["/*",null,{"$f":"'822100 - Nota. Prop, plan y eq.'!$E$24","v":"Incrementos distintos de los procedentes de combinaciones de negocios, propiedades, planta y equipo"},{"$f":"'822100 - Nota. Prop, plan y eq.'!$D$24","v":"ifrs-full:AdditionsOtherThanThroughBusinessCombinationsPropertyPlantAndEquipment"}]
["/*",null,{"$f":"'822100 - Nota. Prop, plan y eq.'!$E$25","v":"Adquisiciones realizadas mediante combinaciones de negocios, propiedades, planta y equipo"},{"$f":"'822100 - Nota. Prop, plan y eq.'!$D$25","v":"ifrs-full:AcquisitionsThroughBusinessCombinationsPropertyPlantAndEquipment"}]
["/*",null,{"$f":"'822100 - Nota. Prop, plan y eq.'!$E$26","v":"Depreciación, propiedades, planta y equipo"},{"$f":"'822100 - Nota. Prop, plan y eq.'!$D$26","v":"ifrs-full:DepreciationPropertyPlantAndEquipment"}]
["/*",null,{"$f":"'822100 - Nota. Prop, plan y eq.'!$E$27","v":"Pérdidas por deterioro de valor reconocidas en el resultado del periodo, propiedades, planta y equipo"},{"$f":"'822100 - Nota. Prop, plan y eq.'!$D$27","v":"ifrs-full:ImpairmentLossRecognisedInProfitOrLossPropertyPlantAndEquipment"}]
["/*",null,{"$f":"'822100 - Nota. Prop, plan y eq.'!$E$28","v":"Reversión de pérdidas por deterioro de valor reconocidas en el resultado del periodo, propiedades, planta y equipo"},{"$f":"'822100 - Nota. Prop, plan y eq.'!$D$28","v":"ifrs-full:ReversalOfImpairmentLossRecognisedInProfitOrLossPropertyPlantAndEquipment"}]
["/*",null,{"$f":"'822100 - Nota. Prop, plan y eq.'!$E$29","v":"Incrementos (disminuciones) de revaluaciones, propiedades, planta y equipo"},{"$f":"'822100 - Nota. Prop, plan y eq.'!$D$29","v":"ifrs-full:RevaluationIncreaseDecreasePropertyPlantAndEquipment"}]
["/*",null,{"$f":"'822100 - Nota. Prop, plan y eq.'!$E$30","v":"Pérdidas por deterioro de valor reconocidas en otro resultado integral, propiedades, planta y equipo"},{"$f":"'822100 - Nota. Prop, plan y eq.'!$D$30","v":"ifrs-full:ImpairmentLossRecognisedInOtherComprehensiveIncomePropertyPlantAndEquipment"}]
["/*",null,{"$f":"'822100 - Nota. Prop, plan y eq.'!$E$31","v":"Reversión de pérdidas por deterioro de valor reconocidas en otro resultado integral, propiedades, planta y equipo"},{"$f":"'822100 - Nota. Prop, plan y eq.'!$D$31","v":"ifrs-full:ReversalOfImpairmentLossRecognisedInOtherComprehensiveIncomePropertyPlantAndEquipment"}]
["/*",null,{"$f":"'822100 - Nota. Prop, plan y eq.'!$E$32","v":"Incrementos (disminuciones) por transferencias y otros cambios, propiedades, planta y equipo [resumen]"},{"$f":"'822100 - Nota. Prop, plan y eq.'!$D$32","v":"ifrs-full:IncreaseDecreaseThroughTransfersAndOtherChangesPropertyPlantAndEquipmentAbstract"}]
["/*",null,{"$f":"'822100 - Nota. Prop, plan y eq.'!$E$33","v":"Incrementos (disminuciones) por transferencias desde (hacia) propiedades de inversión, propiedades, planta y equipo"},{"$f":"'822100 - Nota. Prop, plan y eq.'!$D$33","v":"ifrs-full:IncreaseDecreaseThroughTransfersFromToInvestmentPropertyPropertyPlantAndEquipment"}]
["/*",null,{"$f":"'822100 - Nota. Prop, plan y eq.'!$E$34","v":"Incrementos (disminuciones) por transferencias desde construcciones en proceso , propiedades, planta y equipo"},{"$f":"'822100 - Nota. Prop, plan y eq.'!$D$34","v":"ifrs-full:IncreaseDecreaseThroughTransfersFromConstructionInProgressPropertyPlantAndEquipment"}]
["/*",null,{"$f":"'822100 - Nota. Prop, plan y eq.'!$E$35","v":"Incrementos (disminuciones) por otros cambios, propiedades, planta y equipo"},{"$f":"'822100 - Nota. Prop, plan y eq.'!$D$35","v":"ifrs-full:IncreaseDecreaseThroughOtherChangesPropertyPlantAndEquipment"}]
["",null,{"$f":"'822100 - Nota. Prop, plan y eq.'!$E$36","v":"Total incrementos (disminuciones) por transferencias y otros cambios, propiedades, planta y equipo"},{"$f":"'822100 - Nota. Prop, plan y eq.'!$D$36","v":"ifrs-full:IncreaseDecreaseThroughTransfersAndOtherChangesPropertyPlantAndEquipment"},0,"peso",{"$f":"'822100 - Nota. Prop, plan y eq.'!$Q$36","v":0},0,"http://www.xbrl.org/scheme/companyName",{"$f":"Periodos!$C$3","v":"2023-01-01"},{"$f":"Periodos!$C$4","v":"2023-12-31"},{"$f":"'822100 - Nota. Prop, plan y eq.'!$E$14","v":"co-svsp-core:PropiedadesPlantaYEquipoEje_G1"},{"$f":"'822100 - Nota. Prop, plan y eq.'!$Q$13","v":"ifrs-full:ComputerEquipmentMember"}]
["/*",null,{"$f":"'822100 - Nota. Prop, plan y eq.'!$E$37","v":"Disposiciones y retiros de servicio, propiedades, planta y equipo [resumen]"},{"$f":"'822100 - Nota. Prop, plan y eq.'!$D$37","v":"ifrs-full:DisposalsAndRetirementsPropertyPlantAndEquipmentAbstract"}]
["/*",null,{"$f":"'822100 - Nota. Prop, plan y eq.'!$E$38","v":"Disposiciones, propiedades, planta y equipo"},{"$f":"'822100 - Nota. Prop, plan y eq.'!$D$38","v":"ifrs-full:DisposalsPropertyPlantAndEquipment"}]
["/*",null,{"$f":"'822100 - Nota. Prop, plan y eq.'!$E$39","v":"Retiros, propiedades, planta y equipo"},{"$f":"'822100 - Nota. Prop, plan y eq.'!$D$39","v":"ifrs-full:RetirementsPropertyPlantAndEquipment"}]
["",null,{"$f":"'822100 - Nota. Prop, plan y eq.'!$E$40","v":"Total de disposiciones y retiros de servicio, propiedades, planta y equipo"},{"$f":"'822100 - Nota. Prop, plan y eq.'!$D$40","v":"ifrs-full:DisposalsAndRetirementsPropertyPlantAndEquipment"},0,"peso",{"$f":"'822100 - Nota. Prop, plan y eq.'!$Q$40","v":0},0,"http://www.xbrl.org/scheme/companyName",{"$f":"Periodos!$C$3","v":"2023-01-01"},{"$f":"Periodos!$C$4","v":"2023-12-31"},{"$f":"'822100 - Nota. Prop, plan y eq.'!$E$14","v":"co-svsp-core:PropiedadesPlantaYEquipoEje_G1"},{"$f":"'822100 - Nota. Prop, plan y eq.'!$Q$13","v":"ifrs-full:ComputerEquipmentMember"}]
["/*",null,{"$f":"'822100 - Nota. Prop, plan y eq.'!$E$41","v":"Disminuciones por clasificar como mantenidos para la venta, propiedades, planta y equipo"},{"$f":"'822100 - Nota. Prop, plan y eq.'!$D$41","v":"ifrs-full:DecreaseThroughClassifiedAsHeldForSalePropertyPlantAndEquipment"}]
["",null,{"$f":"'822100 - Nota. Prop, plan y eq.'!$E$42","v":"Total incremento (disminución) en propiedades, planta y equipo"},{"$f":"'822100 - Nota. Prop, plan y eq.'!$D$42","v":"ifrs-full:ChangesInPropertyPlantAndEquipment"},0,"peso",{"$f":"'822100 - Nota. Prop, plan y eq.'!$Q$42","v":0},0,"http://www.xbrl.org/scheme/companyName",{"$f":"Periodos!$C$3","v":"2023-01-01"},{"$f":"Periodos!$C$4","v":"2023-12-31"},{"$f":"'822100 - Nota. Prop, plan y eq.'!$E$14","v":"co-svsp-core:PropiedadesPlantaYEquipoEje_G1"},{"$f":"'822100 - Nota. Prop, plan y eq.'!$Q$13","v":"ifrs-full:ComputerEquipmentMember"}]
["",null,{"$f":"'822100 - Nota. Prop, plan y eq.'!$E$43","v":"Propiedades, planta y equipo al final del periodo"},{"$f":"'822100 - Nota. Prop, plan y eq.'!$D$43","v":"ifrs-full:PropertyPlantAndEquipment"},0,"peso",{"$f":"'822100 - Nota. Prop, plan y eq.'!$Q$43","v":0},0,"http://www.xbrl.org/scheme/companyName",null,{"$f":"Periodos!$C$4","v":"2023-12-31"},{"$f":"'822100 - Nota. Prop, plan y eq.'!$E$14","v":"co-svsp-core:PropiedadesPlantaYEquipoEje_G1"},{"$f":"'822100 - Nota. Prop, plan y eq.'!$Q$13","v":"ifrs-full:ComputerEquipmentMember"}]
["/*",null,"--13--"]
["/*",null,{"$f":"'822100 - Nota. Prop, plan y eq.'!$E$15","v":"Información a revelar detallada sobre propiedades, planta y equipo [partidas de los estados financieros]"},{"$f":"'822100 - Nota. Prop, plan y eq.'!$D$15","v":"ifrs-full:DisclosureOfPropertyPlantAndEquipmentLineItems"}]
["/*",null,{"$f":"'822100 - Nota. Prop, plan y eq.'!$E$16","v":"Bases de medición, propiedades, planta y equipo"},{"$f":"'822100 - Nota. Prop, plan y eq.'!$D$16","v":"ifrs-full:MeasurementBasesPropertyPlantAndEquipment"}]
["/*",null,{"$f":"'822100 - Nota. Prop, plan y eq.'!$E$17","v":"Método de depreciación, propiedades, planta y equipo"},{"$f":"'822100 - Nota. Prop, plan y eq.'!$D$17","v":"ifrs-full:DepreciationMethodPropertyPlantAndEquipment"}]
["/*",null,{"$f":"'822100 - Nota. Prop, plan y eq.'!$E$18","v":"Fechas de vigencia de revaluación, propiedades, planta y equipo"},{"$f":"'822100 - Nota. Prop, plan y eq.'!$D$18","v":"ifrs-full:EffectiveDatesOfRevaluationPropertyPlantAndEquipment"}]
["/*",null,{"$f":"'822100 - Nota. Prop, plan y eq.'!$E$19","v":"Explicación de la implicación del tasador independiente en la revaluación, propiedades, planta y equipo"},{"$f":"'822100 - Nota. Prop, plan y eq.'!$D$19","v":"ifrs-full:ExplanationOfIndependentValuerUsedForRevaluationPropertyPlantAndEquipment"}]
["/*",null,{"$f":"'822100 - Nota. Prop, plan y eq.'!$E$20","v":"Explicación del método de revaluación y supuestos significativos, propiedad, planta y equipo"},{"$f":"'822100 - Nota. Prop, plan y eq.'!$D$20","v":"co-svsp-core:ExplanationOfRevaluationMethodsAndSignificantAssumptionsPropertyPlantAndEquipment"}]
["/*",null,{"$f":"'822100 - Nota. Prop, plan y eq.'!$E$21","v":"Conciliación de cambios en propiedades, planta y equipo [resumen]"},{"$f":"'822100 - Nota. Prop, plan y eq.'!$D$21","v":"ifrs-full:ReconciliationOfChangesInPropertyPlantAndEquipmentAbstract"}]
["/*",null,{"$f":"'822100 - Nota. Prop, plan y eq.'!$E$22","v":"Propiedades, planta y equipo al comienzo del periodo"},{"$f":"'822100 - Nota. Prop, plan y eq.'!$D$22","v":"ifrs-full:PropertyPlantAndEquipment"}]
["/*",null,{"$f":"'822100 - Nota. Prop, plan y eq.'!$E$23","v":"Cambios en propiedades, planta y equipo [resumen]"},{"$f":"'822100 - Nota. Prop, plan y eq.'!$D$23","v":"ifrs-full:ChangesInPropertyPlantAndEquipmentAbstract"}]
["/*",null,{"$f":"'822100 - Nota. Prop, plan y eq.'!$E$24","v":"Incrementos distintos de los procedentes de combinaciones de negocios, propiedades, planta y equipo"},{"$f":"'822100 - Nota. Prop, plan y eq.'!$D$24","v":"ifrs-full:AdditionsOtherThanThroughBusinessCombinationsPropertyPlantAndEquipment"}]
["/*",null,{"$f":"'822100 - Nota. Prop, plan y eq.'!$E$25","v":"Adquisiciones realizadas mediante combinaciones de negocios, propiedades, planta y equipo"},{"$f":"'822100 - Nota. Prop, plan y eq.'!$D$25","v":"ifrs-full:AcquisitionsThroughBusinessCombinationsPropertyPlantAndEquipment"}]
["/*",null,{"$f":"'822100 - Nota. Prop, plan y eq.'!$E$26","v":"Depreciación, propiedades, planta y equipo"},{"$f":"'822100 - Nota. Prop, plan y eq.'!$D$26","v":"ifrs-full:DepreciationPropertyPlantAndEquipment"}]
["/*",null,{"$f":"'822100 - Nota. Prop, plan y eq.'!$E$27","v":"Pérdidas por deterioro de valor reconocidas en el resultado del periodo, propiedades, planta y equipo"},{"$f":"'822100 - Nota. Prop, plan y eq.'!$D$27","v":"ifrs-full:ImpairmentLossRecognisedInProfitOrLossPropertyPlantAndEquipment"}]
["/*",null,{"$f":"'822100 - Nota. Prop, plan y eq.'!$E$28","v":"Reversión de pérdidas por deterioro de valor reconocidas en el resultado del periodo, propiedades, planta y equipo"},{"$f":"'822100 - Nota. Prop, plan y eq.'!$D$28","v":"ifrs-full:ReversalOfImpairmentLossRecognisedInProfitOrLossPropertyPlantAndEquipment"}]
["/*",null,{"$f":"'822100 - Nota. Prop, plan y eq.'!$E$29","v":"Incrementos (disminuciones) de revaluaciones, propiedades, planta y equipo"},{"$f":"'822100 - Nota. Prop, plan y eq.'!$D$29","v":"ifrs-full:RevaluationIncreaseDecreasePropertyPlantAndEquipment"}]
["/*",null,{"$f":"'822100 - Nota. Prop, plan y eq.'!$E$30","v":"Pérdidas por deterioro de valor reconocidas en otro resultado integral, propiedades, planta y equipo"},{"$f":"'822100 - Nota. Prop, plan y eq.'!$D$30","v":"ifrs-full:ImpairmentLossRecognisedInOtherComprehensiveIncomePropertyPlantAndEquipment"}]
["/*",null,{"$f":"'822100 - Nota. Prop, plan y eq.'!$E$31","v":"Reversión de pérdidas por deterioro de valor reconocidas en otro resultado integral, propiedades, planta y equipo"},{"$f":"'822100 - Nota. Prop, plan y eq.'!$D$31","v":"ifrs-full:ReversalOfImpairmentLossRecognisedInOtherComprehensiveIncomePropertyPlantAndEquipment"}]
["/*",null,{"$f":"'822100 - Nota. Prop, plan y eq.'!$E$32","v":"Incrementos (disminuciones) por transferencias y otros cambios, propiedades, planta y equipo [resumen]"},{"$f":"'822100 - Nota. Prop, plan y eq.'!$D$32","v":"ifrs-full:IncreaseDecreaseThroughTransfersAndOtherChangesPropertyPlantAndEquipmentAbstract"}]
["/*",null,{"$f":"'822100 - Nota. Prop, plan y eq.'!$E$33","v":"Incrementos (disminuciones) por transferencias desde (hacia) propiedades de inversión, propiedades, planta y equipo"},{"$f":"'822100 - Nota. Prop, plan y eq.'!$D$33","v":"ifrs-full:IncreaseDecreaseThroughTransfersFromToInvestmentPropertyPropertyPlantAndEquipment"}]
["/*",null,{"$f":"'822100 - Nota. Prop, plan y eq.'!$E$34","v":"Incrementos (disminuciones) por transferencias desde construcciones en proceso , propiedades, planta y equipo"},{"$f":"'822100 - Nota. Prop, plan y eq.'!$D$34","v":"ifrs-full:IncreaseDecreaseThroughTransfersFromConstructionInProgressPropertyPlantAndEquipment"}]
["/*",null,{"$f":"'822100 - Nota. Prop, plan y eq.'!$E$35","v":"Incrementos (disminuciones) por otros cambios, propiedades, planta y equipo"},{"$f":"'822100 - Nota. Prop, plan y eq.'!$D$35","v":"ifrs-full:IncreaseDecreaseThroughOtherChangesPropertyPlantAndEquipment"}]
["",null,{"$f":"'822100 - Nota. Prop, plan y eq.'!$E$36","v":"Total incrementos (disminuciones) por transferencias y otros cambios, propiedades, planta y equipo"},{"$f":"'822100 - Nota. Prop, plan y eq.'!$D$36","v":"ifrs-full:IncreaseDecreaseThroughTransfersAndOtherChangesPropertyPlantAndEquipment"},0,"peso",{"$f":"'822100 - Nota. Prop, plan y eq.'!$R$36","v":0},0,"http://www.xbrl.org/scheme/companyName",{"$f":"Periodos!$C$3","v":"2023-01-01"},{"$f":"Periodos!$C$4","v":"2023-12-31"},{"$f":"'822100 - Nota. Prop, plan y eq.'!$E$14","v":"co-svsp-core:PropiedadesPlantaYEquipoEje_G1"},{"$f":"'822100 - Nota. Prop, plan y eq.'!$R$13","v":"ifrs-full:CommunicationAndNetworkEquipmentMember"}]
["/*",null,{"$f":"'822100 - Nota. Prop, plan y eq.'!$E$37","v":"Disposiciones y retiros de servicio, propiedades, planta y equipo [resumen]"},{"$f":"'822100 - Nota. Prop, plan y eq.'!$D$37","v":"ifrs-full:DisposalsAndRetirementsPropertyPlantAndEquipmentAbstract"}]
["/*",null,{"$f":"'822100 - Nota. Prop, plan y eq.'!$E$38","v":"Disposiciones, propiedades, planta y equipo"},{"$f":"'822100 - Nota. Prop, plan y eq.'!$D$38","v":"ifrs-full:DisposalsPropertyPlantAndEquipment"}]
["/*",null,{"$f":"'822100 - Nota. Prop, plan y eq.'!$E$39","v":"Retiros, propiedades, planta y equipo"},{"$f":"'822100 - Nota. Prop, plan y eq.'!$D$39","v":"ifrs-full:RetirementsPropertyPlantAndEquipment"}]
["",null,{"$f":"'822100 - Nota. Prop, plan y eq.'!$E$40","v":"Total de disposiciones y retiros de servicio, propiedades, planta y equipo"},{"$f":"'822100 - Nota. Prop, plan y eq.'!$D$40","v":"ifrs-full:DisposalsAndRetirementsPropertyPlantAndEquipment"},0,"peso",{"$f":"'822100 - Nota. Prop, plan y eq.'!$R$40","v":0},0,"http://www.xbrl.org/scheme/companyName",{"$f":"Periodos!$C$3","v":"2023-01-01"},{"$f":"Periodos!$C$4","v":"2023-12-31"},{"$f":"'822100 - Nota. Prop, plan y eq.'!$E$14","v":"co-svsp-core:PropiedadesPlantaYEquipoEje_G1"},{"$f":"'822100 - Nota. Prop, plan y eq.'!$R$13","v":"ifrs-full:CommunicationAndNetworkEquipmentMember"}]
["/*",null,{"$f":"'822100 - Nota. Prop, plan y eq.'!$E$41","v":"Disminuciones por clasificar como mantenidos para la venta, propiedades, planta y equipo"},{"$f":"'822100 - Nota. Prop, plan y eq.'!$D$41","v":"ifrs-full:DecreaseThroughClassifiedAsHeldForSalePropertyPlantAndEquipment"}]
["",null,{"$f":"'822100 - Nota. Prop, plan y eq.'!$E$42","v":"Total incremento (disminución) en propiedades, planta y equipo"},{"$f":"'822100 - Nota. Prop, plan y eq.'!$D$42","v":"ifrs-full:ChangesInPropertyPlantAndEquipment"},0,"peso",{"$f":"'822100 - Nota. Prop, plan y eq.'!$R$42","v":0},0,"http://www.xbrl.org/scheme/companyName",{"$f":"Periodos!$C$3","v":"2023-01-01"},{"$f":"Periodos!$C$4","v":"2023-12-31"},{"$f":"'822100 - Nota. Prop, plan y eq.'!$E$14","v":"co-svsp-core:PropiedadesPlantaYEquipoEje_G1"},{"$f":"'822100 - Nota. Prop, plan y eq.'!$R$13","v":"ifrs-full:CommunicationAndNetworkEquipmentMember"}]
["",null,{"$f":"'822100 - Nota. Prop, plan y eq.'!$E$43","v":"Propiedades, planta y equipo al final del periodo"},{"$f":"'822100 - Nota. Prop, plan y eq.'!$D$43","v":"ifrs-full:PropertyPlantAndEquipment"},0,"peso",{"$f":"'822100 - Nota. Prop, plan y eq.'!$R$43","v":0},0,"http://www.xbrl.org/scheme/companyName",null,{"$f":"Periodos!$C$4","v":"2023-12-31"},{"$f":"'822100 - Nota. Prop, plan y eq.'!$E$14","v":"co-svsp-core:PropiedadesPlantaYEquipoEje_G1"},{"$f":"'822100 - Nota. Prop, plan y eq.'!$R$13","v":"ifrs-full:CommunicationAndNetworkEquipmentMember"}]
["/*",null,"--14--"]
["/*",null,{"$f":"'822100 - Nota. Prop, plan y eq.'!$E$15","v":"Información a revelar detallada sobre propiedades, planta y equipo [partidas de los estados financieros]"},{"$f":"'822100 - Nota. Prop, plan y eq.'!$D$15","v":"ifrs-full:DisclosureOfPropertyPlantAndEquipmentLineItems"}]
[{"$f":"IF(G5408=\"\",\"/*\",\"\")","v":"/*"},null,{"$f":"'822100 - Nota. Prop, plan y eq.'!$E$16","v":"Bases de medición, propiedades, planta y equipo"},{"$f":"'822100 - Nota. Prop, plan y eq.'!$D$16","v":"ifrs-full:MeasurementBasesPropertyPlantAndEquipment"}]
["/*",null,{"$f":"'822100 - Nota. Prop, plan y eq.'!$E$17","v":"Método de depreciación, propiedades, planta y equipo"},{"$f":"'822100 - Nota. Prop, plan y eq.'!$D$17","v":"ifrs-full:DepreciationMethodPropertyPlantAndEquipment"}]
["/*",null,{"$f":"'822100 - Nota. Prop, plan y eq.'!$E$18","v":"Fechas de vigencia de revaluación, propiedades, planta y equipo"},{"$f":"'822100 - Nota. Prop, plan y eq.'!$D$18","v":"ifrs-full:EffectiveDatesOfRevaluationPropertyPlantAndEquipment"}]
["/*",null,{"$f":"'822100 - Nota. Prop, plan y eq.'!$E$19","v":"Explicación de la implicación del tasador independiente en la revaluación, propiedades, planta y equipo"},{"$f":"'822100 - Nota. Prop, plan y eq.'!$D$19","v":"ifrs-full:ExplanationOfIndependentValuerUsedForRevaluationPropertyPlantAndEquipment"}]
["/*",null,{"$f":"'822100 - Nota. Prop, plan y eq.'!$E$20","v":"Explicación del método de revaluación y supuestos significativos, propiedad, planta y equipo"},{"$f":"'822100 - Nota. Prop, plan y eq.'!$D$20","v":"co-svsp-core:ExplanationOfRevaluationMethodsAndSignificantAssumptionsPropertyPlantAndEquipment"}]
["/*",null,{"$f":"'822100 - Nota. Prop, plan y eq.'!$E$21","v":"Conciliación de cambios en propiedades, planta y equipo [resumen]"},{"$f":"'822100 - Nota. Prop, plan y eq.'!$D$21","v":"ifrs-full:ReconciliationOfChangesInPropertyPlantAndEquipmentAbstract"}]
["/*",null,{"$f":"'822100 - Nota. Prop, plan y eq.'!$E$22","v":"Propiedades, planta y equipo al comienzo del periodo"},{"$f":"'822100 - Nota. Prop, plan y eq.'!$D$22","v":"ifrs-full:PropertyPlantAndEquipment"}]
["/*",null,{"$f":"'822100 - Nota. Prop, plan y eq.'!$E$23","v":"Cambios en propiedades, planta y equipo [resumen]"},{"$f":"'822100 - Nota. Prop, plan y eq.'!$D$23","v":"ifrs-full:ChangesInPropertyPlantAndEquipmentAbstract"}]
["/*",null,{"$f":"'822100 - Nota. Prop, plan y eq.'!$E$24","v":"Incrementos distintos de los procedentes de combinaciones de negocios, propiedades, planta y equipo"},{"$f":"'822100 - Nota. Prop, plan y eq.'!$D$24","v":"ifrs-full:AdditionsOtherThanThroughBusinessCombinationsPropertyPlantAndEquipment"}]
["/*",null,{"$f":"'822100 - Nota. Prop, plan y eq.'!$E$25","v":"Adquisiciones realizadas mediante combinaciones de negocios, propiedades, planta y equipo"},{"$f":"'822100 - Nota. Prop, plan y eq.'!$D$25","v":"ifrs-full:AcquisitionsThroughBusinessCombinationsPropertyPlantAndEquipment"}]
["/*",null,{"$f":"'822100 - Nota. Prop, plan y eq.'!$E$26","v":"Depreciación, propiedades, planta y equipo"},{"$f":"'822100 - Nota. Prop, plan y eq.'!$D$26","v":"ifrs-full:DepreciationPropertyPlantAndEquipment"}]
["/*",null,{"$f":"'822100 - Nota. Prop, plan y eq.'!$E$27","v":"Pérdidas por deterioro de valor reconocidas en el resultado del periodo, propiedades, planta y equipo"},{"$f":"'822100 - Nota. Prop, plan y eq.'!$D$27","v":"ifrs-full:ImpairmentLossRecognisedInProfitOrLossPropertyPlantAndEquipment"}]
["/*",null,{"$f":"'822100 - Nota. Prop, plan y eq.'!$E$28","v":"Reversión de pérdidas por deterioro de valor reconocidas en el resultado del periodo, propiedades, planta y equipo"},{"$f":"'822100 - Nota. Prop, plan y eq.'!$D$28","v":"ifrs-full:ReversalOfImpairmentLossRecognisedInProfitOrLossPropertyPlantAndEquipment"}]
["/*",null,{"$f":"'822100 - Nota. Prop, plan y eq.'!$E$29","v":"Incrementos (disminuciones) de revaluaciones, propiedades, planta y equipo"},{"$f":"'822100 - Nota. Prop, plan y eq.'!$D$29","v":"ifrs-full:RevaluationIncreaseDecreasePropertyPlantAndEquipment"}]
["/*",null,{"$f":"'822100 - Nota. Prop, plan y eq.'!$E$30","v":"Pérdidas por deterioro de valor reconocidas en otro resultado integral, propiedades, planta y equipo"},{"$f":"'822100 - Nota. Prop, plan y eq.'!$D$30","v":"ifrs-full:ImpairmentLossRecognisedInOtherComprehensiveIncomePropertyPlantAndEquipment"}]
["/*",null,{"$f":"'822100 - Nota. Prop, plan y eq.'!$E$31","v":"Reversión de pérdidas por deterioro de valor reconocidas en otro resultado integral, propiedades, planta y equipo"},{"$f":"'822100 - Nota. Prop, plan y eq.'!$D$31","v":"ifrs-full:ReversalOfImpairmentLossRecognisedInOtherComprehensiveIncomePropertyPlantAndEquipment"}]
["/*",null,{"$f":"'822100 - Nota. Prop, plan y eq.'!$E$32","v":"Incrementos (disminuciones) por transferencias y otros cambios, propiedades, planta y equipo [resumen]"},{"$f":"'822100 - Nota. Prop, plan y eq.'!$D$32","v":"ifrs-full:IncreaseDecreaseThroughTransfersAndOtherChangesPropertyPlantAndEquipmentAbstract"}]
["/*",null,{"$f":"'822100 - Nota. Prop, plan y eq.'!$E$33","v":"Incrementos (disminuciones) por transferencias desde (hacia) propiedades de inversión, propiedades, planta y equipo"},{"$f":"'822100 - Nota. Prop, plan y eq.'!$D$33","v":"ifrs-full:IncreaseDecreaseThroughTransfersFromToInvestmentPropertyPropertyPlantAndEquipment"}]
["/*",null,{"$f":"'822100 - Nota. Prop, plan y eq.'!$E$34","v":"Incrementos (disminuciones) por transferencias desde construcciones en proceso , propiedades, planta y equipo"},{"$f":"'822100 - Nota. Prop, plan y eq.'!$D$34","v":"ifrs-full:IncreaseDecreaseThroughTransfersFromConstructionInProgressPropertyPlantAndEquipment"}]
["/*",null,{"$f":"'822100 - Nota. Prop, plan y eq.'!$E$35","v":"Incrementos (disminuciones) por otros cambios, propiedades, planta y equipo"},{"$f":"'822100 - Nota. Prop, plan y eq.'!$D$35","v":"ifrs-full:IncreaseDecreaseThroughOtherChangesPropertyPlantAndEquipment"}]
["",null,{"$f":"'822100 - Nota. Prop, plan y eq.'!$E$36","v":"Total incrementos (disminuciones) por transferencias y otros cambios, propiedades, planta y equipo"},{"$f":"'822100 - Nota. Prop, plan y eq.'!$D$36","v":"ifrs-full:IncreaseDecreaseThroughTransfersAndOtherChangesPropertyPlantAndEquipment"},0,"peso",{"$f":"'822100 - Nota. Prop, plan y eq.'!$S$36","v":0},0,"http://www.xbrl.org/scheme/companyName",{"$f":"Periodos!$C$3","v":"2023-01-01"},{"$f":"Periodos!$C$4","v":"2023-12-31"},{"$f":"'822100 - Nota. Prop, plan y eq.'!$E$14","v":"co-svsp-core:PropiedadesPlantaYEquipoEje_G1"},{"$f":"'822100 - Nota. Prop, plan y eq.'!$S$13","v":"ifrs-full:NetworkInfrastructureMember"}]
["/*",null,{"$f":"'822100 - Nota. Prop, plan y eq.'!$E$37","v":"Disposiciones y retiros de servicio, propiedades, planta y equipo [resumen]"},{"$f":"'822100 - Nota. Prop, plan y eq.'!$D$37","v":"ifrs-full:DisposalsAndRetirementsPropertyPlantAndEquipmentAbstract"}]
["/*",null,{"$f":"'822100 - Nota. Prop, plan y eq.'!$E$38","v":"Disposiciones, propiedades, planta y equipo"},{"$f":"'822100 - Nota. Prop, plan y eq.'!$D$38","v":"ifrs-full:DisposalsPropertyPlantAndEquipment"}]
["/*",null,{"$f":"'822100 - Nota. Prop, plan y eq.'!$E$39","v":"Retiros, propiedades, planta y equipo"},{"$f":"'822100 - Nota. Prop, plan y eq.'!$D$39","v":"ifrs-full:RetirementsPropertyPlantAndEquipment"}]
["",null,{"$f":"'822100 - Nota. Prop, plan y eq.'!$E$40","v":"Total de disposiciones y retiros de servicio, propiedades, planta y equipo"},{"$f":"'822100 - Nota. Prop, plan y eq.'!$D$40","v":"ifrs-full:DisposalsAndRetirementsPropertyPlantAndEquipment"},0,"peso",{"$f":"'822100 - Nota. Prop, plan y eq.'!$S$40","v":0},0,"http://www.xbrl.org/scheme/companyName",{"$f":"Periodos!$C$3","v":"2023-01-01"},{"$f":"Periodos!$C$4","v":"2023-12-31"},{"$f":"'822100 - Nota. Prop, plan y eq.'!$E$14","v":"co-svsp-core:PropiedadesPlantaYEquipoEje_G1"},{"$f":"'822100 - Nota. Prop, plan y eq.'!$S$13","v":"ifrs-full:NetworkInfrastructureMember"}]
["/*",null,{"$f":"'822100 - Nota. Prop, plan y eq.'!$E$41","v":"Disminuciones por clasificar como mantenidos para la venta, propiedades, planta y equipo"},{"$f":"'822100 - Nota. Prop, plan y eq.'!$D$41","v":"ifrs-full:DecreaseThroughClassifiedAsHeldForSalePropertyPlantAndEquipment"}]
["",null,{"$f":"'822100 - Nota. Prop, plan y eq.'!$E$42","v":"Total incremento (disminución) en propiedades, planta y equipo"},{"$f":"'822100 - Nota. Prop, plan y eq.'!$D$42","v":"ifrs-full:ChangesInPropertyPlantAndEquipment"},0,"peso",{"$f":"'822100 - Nota. Prop, plan y eq.'!$S$42","v":0},0,"http://www.xbrl.org/scheme/companyName",{"$f":"Periodos!$C$3","v":"2023-01-01"},{"$f":"Periodos!$C$4","v":"2023-12-31"},{"$f":"'822100 - Nota. Prop, plan y eq.'!$E$14","v":"co-svsp-core:PropiedadesPlantaYEquipoEje_G1"},{"$f":"'822100 - Nota. Prop, plan y eq.'!$S$13","v":"ifrs-full:NetworkInfrastructureMember"}]
["",null,{"$f":"'822100 - Nota. Prop, plan y eq.'!$E$43","v":"Propiedades, planta y equipo al final del periodo"},{"$f":"'822100 - Nota. Prop, plan y eq.'!$D$43","v":"ifrs-full:PropertyPlantAndEquipment"},0,"peso",{"$f":"'822100 - Nota. Prop, plan y eq.'!$S$43","v":0},0,"http://www.xbrl.org/scheme/companyName",null,{"$f":"Periodos!$C$4","v":"2023-12-31"},{"$f":"'822100 - Nota. Prop, plan y eq.'!$E$14","v":"co-svsp-core:PropiedadesPlantaYEquipoEje_G1"},{"$f":"'822100 - Nota. Prop, plan y eq.'!$S$13","v":"ifrs-full:NetworkInfrastructureMember"}]
["/*",null,"--15--"]
["/*",null,{"$f":"'822100 - Nota. Prop, plan y eq.'!$E$15","v":"Información a revelar detallada sobre propiedades, planta y equipo [partidas de los estados financieros]"},{"$f":"'822100 - Nota. Prop, plan y eq.'!$D$15","v":"ifrs-full:DisclosureOfPropertyPlantAndEquipmentLineItems"}]
["/*",null,{"$f":"'822100 - Nota. Prop, plan y eq.'!$E$16","v":"Bases de medición, propiedades, planta y equipo"},{"$f":"'822100 - Nota. Prop, plan y eq.'!$D$16","v":"ifrs-full:MeasurementBasesPropertyPlantAndEquipment"}]
["/*",null,{"$f":"'822100 - Nota. Prop, plan y eq.'!$E$17","v":"Método de depreciación, propiedades, planta y equipo"},{"$f":"'822100 - Nota. Prop, plan y eq.'!$D$17","v":"ifrs-full:DepreciationMethodPropertyPlantAndEquipment"}]
["/*",null,{"$f":"'822100 - Nota. Prop, plan y eq.'!$E$18","v":"Fechas de vigencia de revaluación, propiedades, planta y equipo"},{"$f":"'822100 - Nota. Prop, plan y eq.'!$D$18","v":"ifrs-full:EffectiveDatesOfRevaluationPropertyPlantAndEquipment"}]
["/*",null,{"$f":"'822100 - Nota. Prop, plan y eq.'!$E$19","v":"Explicación de la implicación del tasador independiente en la revaluación, propiedades, planta y equipo"},{"$f":"'822100 - Nota. Prop, plan y eq.'!$D$19","v":"ifrs-full:ExplanationOfIndependentValuerUsedForRevaluationPropertyPlantAndEquipment"}]
["/*",null,{"$f":"'822100 - Nota. Prop, plan y eq.'!$E$20","v":"Explicación del método de revaluación y supuestos significativos, propiedad, planta y equipo"},{"$f":"'822100 - Nota. Prop, plan y eq.'!$D$20","v":"co-svsp-core:ExplanationOfRevaluationMethodsAndSignificantAssumptionsPropertyPlantAndEquipment"}]
["/*",null,{"$f":"'822100 - Nota. Prop, plan y eq.'!$E$21","v":"Conciliación de cambios en propiedades, planta y equipo [resumen]"},{"$f":"'822100 - Nota. Prop, plan y eq.'!$D$21","v":"ifrs-full:ReconciliationOfChangesInPropertyPlantAndEquipmentAbstract"}]
["/*",null,{"$f":"'822100 - Nota. Prop, plan y eq.'!$E$22","v":"Propiedades, planta y equipo al comienzo del periodo"},{"$f":"'822100 - Nota. Prop, plan y eq.'!$D$22","v":"ifrs-full:PropertyPlantAndEquipment"}]
["/*",null,{"$f":"'822100 - Nota. Prop, plan y eq.'!$E$23","v":"Cambios en propiedades, planta y equipo [resumen]"},{"$f":"'822100 - Nota. Prop, plan y eq.'!$D$23","v":"ifrs-full:ChangesInPropertyPlantAndEquipmentAbstract"}]
["/*",null,{"$f":"'822100 - Nota. Prop, plan y eq.'!$E$24","v":"Incrementos distintos de los procedentes de combinaciones de negocios, propiedades, planta y equipo"},{"$f":"'822100 - Nota. Prop, plan y eq.'!$D$24","v":"ifrs-full:AdditionsOtherThanThroughBusinessCombinationsPropertyPlantAndEquipment"}]
["/*",null,{"$f":"'822100 - Nota. Prop, plan y eq.'!$E$25","v":"Adquisiciones realizadas mediante combinaciones de negocios, propiedades, planta y equipo"},{"$f":"'822100 - Nota. Prop, plan y eq.'!$D$25","v":"ifrs-full:AcquisitionsThroughBusinessCombinationsPropertyPlantAndEquipment"}]
["/*",null,{"$f":"'822100 - Nota. Prop, plan y eq.'!$E$26","v":"Depreciación, propiedades, planta y equipo"},{"$f":"'822100 - Nota. Prop, plan y eq.'!$D$26","v":"ifrs-full:DepreciationPropertyPlantAndEquipment"}]
["/*",null,{"$f":"'822100 - Nota. Prop, plan y eq.'!$E$27","v":"Pérdidas por deterioro de valor reconocidas en el resultado del periodo, propiedades, planta y equipo"},{"$f":"'822100 - Nota. Prop, plan y eq.'!$D$27","v":"ifrs-full:ImpairmentLossRecognisedInProfitOrLossPropertyPlantAndEquipment"}]
["/*",null,{"$f":"'822100 - Nota. Prop, plan y eq.'!$E$28","v":"Reversión de pérdidas por deterioro de valor reconocidas en el resultado del periodo, propiedades, planta y equipo"},{"$f":"'822100 - Nota. Prop, plan y eq.'!$D$28","v":"ifrs-full:ReversalOfImpairmentLossRecognisedInProfitOrLossPropertyPlantAndEquipment"}]
["/*",null,{"$f":"'822100 - Nota. Prop, plan y eq.'!$E$29","v":"Incrementos (disminuciones) de revaluaciones, propiedades, planta y equipo"},{"$f":"'822100 - Nota. Prop, plan y eq.'!$D$29","v":"ifrs-full:RevaluationIncreaseDecreasePropertyPlantAndEquipment"}]
["/*",null,{"$f":"'822100 - Nota. Prop, plan y eq.'!$E$30","v":"Pérdidas por deterioro de valor reconocidas en otro resultado integral, propiedades, planta y equipo"},{"$f":"'822100 - Nota. Prop, plan y eq.'!$D$30","v":"ifrs-full:ImpairmentLossRecognisedInOtherComprehensiveIncomePropertyPlantAndEquipment"}]
["/*",null,{"$f":"'822100 - Nota. Prop, plan y eq.'!$E$31","v":"Reversión de pérdidas por deterioro de valor reconocidas en otro resultado integral, propiedades, planta y equipo"},{"$f":"'822100 - Nota. Prop, plan y eq.'!$D$31","v":"ifrs-full:ReversalOfImpairmentLossRecognisedInOtherComprehensiveIncomePropertyPlantAndEquipment"}]
["/*",null,{"$f":"'822100 - Nota. Prop, plan y eq.'!$E$32","v":"Incrementos (disminuciones) por transferencias y otros cambios, propiedades, planta y equipo [resumen]"},{"$f":"'822100 - Nota. Prop, plan y eq.'!$D$32","v":"ifrs-full:IncreaseDecreaseThroughTransfersAndOtherChangesPropertyPlantAndEquipmentAbstract"}]
["/*",null,{"$f":"'822100 - Nota. Prop, plan y eq.'!$E$33","v":"Incrementos (disminuciones) por transferencias desde (hacia) propiedades de inversión, propiedades, planta y equipo"},{"$f":"'822100 - Nota. Prop, plan y eq.'!$D$33","v":"ifrs-full:IncreaseDecreaseThroughTransfersFromToInvestmentPropertyPropertyPlantAndEquipment"}]
["/*",null,{"$f":"'822100 - Nota. Prop, plan y eq.'!$E$34","v":"Incrementos (disminuciones) por transferencias desde construcciones en proceso , propiedades, planta y equipo"},{"$f":"'822100 - Nota. Prop, plan y eq.'!$D$34","v":"ifrs-full:IncreaseDecreaseThroughTransfersFromConstructionInProgressPropertyPlantAndEquipment"}]
["/*",null,{"$f":"'822100 - Nota. Prop, plan y eq.'!$E$35","v":"Incrementos (disminuciones) por otros cambios, propiedades, planta y equipo"},{"$f":"'822100 - Nota. Prop, plan y eq.'!$D$35","v":"ifrs-full:IncreaseDecreaseThroughOtherChangesPropertyPlantAndEquipment"}]
["",null,{"$f":"'822100 - Nota. Prop, plan y eq.'!$E$36","v":"Total incrementos (disminuciones) por transferencias y otros cambios, propiedades, planta y equipo"},{"$f":"'822100 - Nota. Prop, plan y eq.'!$D$36","v":"ifrs-full:IncreaseDecreaseThroughTransfersAndOtherChangesPropertyPlantAndEquipment"},0,"peso",{"$f":"'822100 - Nota. Prop, plan y eq.'!$T$36","v":0},0,"http://www.xbrl.org/scheme/companyName",{"$f":"Periodos!$C$3","v":"2023-01-01"},{"$f":"Periodos!$C$4","v":"2023-12-31"},{"$f":"'822100 - Nota. Prop, plan y eq.'!$E$14","v":"co-svsp-core:PropiedadesPlantaYEquipoEje_G1"},{"$f":"'822100 - Nota. Prop, plan y eq.'!$T$13","v":"ifrs-full:BearerPlantsMember"}]
["/*",null,{"$f":"'822100 - Nota. Prop, plan y eq.'!$E$37","v":"Disposiciones y retiros de servicio, propiedades, planta y equipo [resumen]"},{"$f":"'822100 - Nota. Prop, plan y eq.'!$D$37","v":"ifrs-full:DisposalsAndRetirementsPropertyPlantAndEquipmentAbstract"}]
["/*",null,{"$f":"'822100 - Nota. Prop, plan y eq.'!$E$38","v":"Disposiciones, propiedades, planta y equipo"},{"$f":"'822100 - Nota. Prop, plan y eq.'!$D$38","v":"ifrs-full:DisposalsPropertyPlantAndEquipment"}]
["/*",null,{"$f":"'822100 - Nota. Prop, plan y eq.'!$E$39","v":"Retiros, propiedades, planta y equipo"},{"$f":"'822100 - Nota. Prop, plan y eq.'!$D$39","v":"ifrs-full:RetirementsPropertyPlantAndEquipment"}]
["",null,{"$f":"'822100 - Nota. Prop, plan y eq.'!$E$40","v":"Total de disposiciones y retiros de servicio, propiedades, planta y equipo"},{"$f":"'822100 - Nota. Prop, plan y eq.'!$D$40","v":"ifrs-full:DisposalsAndRetirementsPropertyPlantAndEquipment"},0,"peso",{"$f":"'822100 - Nota. Prop, plan y eq.'!$T$40","v":0},0,"http://www.xbrl.org/scheme/companyName",{"$f":"Periodos!$C$3","v":"2023-01-01"},{"$f":"Periodos!$C$4","v":"2023-12-31"},{"$f":"'822100 - Nota. Prop, plan y eq.'!$E$14","v":"co-svsp-core:PropiedadesPlantaYEquipoEje_G1"},{"$f":"'822100 - Nota. Prop, plan y eq.'!$T$13","v":"ifrs-full:BearerPlantsMember"}]
["/*",null,{"$f":"'822100 - Nota. Prop, plan y eq.'!$E$41","v":"Disminuciones por clasificar como mantenidos para la venta, propiedades, planta y equipo"},{"$f":"'822100 - Nota. Prop, plan y eq.'!$D$41","v":"ifrs-full:DecreaseThroughClassifiedAsHeldForSalePropertyPlantAndEquipment"}]
["",null,{"$f":"'822100 - Nota. Prop, plan y eq.'!$E$42","v":"Total incremento (disminución) en propiedades, planta y equipo"},{"$f":"'822100 - Nota. Prop, plan y eq.'!$D$42","v":"ifrs-full:ChangesInPropertyPlantAndEquipment"},0,"peso",{"$f":"'822100 - Nota. Prop, plan y eq.'!$T$42","v":0},0,"http://www.xbrl.org/scheme/companyName",{"$f":"Periodos!$C$3","v":"2023-01-01"},{"$f":"Periodos!$C$4","v":"2023-12-31"},{"$f":"'822100 - Nota. Prop, plan y eq.'!$E$14","v":"co-svsp-core:PropiedadesPlantaYEquipoEje_G1"},{"$f":"'822100 - Nota. Prop, plan y eq.'!$T$13","v":"ifrs-full:BearerPlantsMember"}]
["",null,{"$f":"'822100 - Nota. Prop, plan y eq.'!$E$43","v":"Propiedades, planta y equipo al final del periodo"},{"$f":"'822100 - Nota. Prop, plan y eq.'!$D$43","v":"ifrs-full:PropertyPlantAndEquipment"},0,"peso",{"$f":"'822100 - Nota. Prop, plan y eq.'!$T$43","v":0},0,"http://www.xbrl.org/scheme/companyName",null,{"$f":"Periodos!$C$4","v":"2023-12-31"},{"$f":"'822100 - Nota. Prop, plan y eq.'!$E$14","v":"co-svsp-core:PropiedadesPlantaYEquipoEje_G1"},{"$f":"'822100 - Nota. Prop, plan y eq.'!$T$13","v":"ifrs-full:BearerPlantsMember"}]
["/*",null,"--16--"]
["/*",null,{"$f":"'822100 - Nota. Prop, plan y eq.'!$E$15","v":"Información a revelar detallada sobre propiedades, planta y equipo [partidas de los estados financieros]"},{"$f":"'822100 - Nota. Prop, plan y eq.'!$D$15","v":"ifrs-full:DisclosureOfPropertyPlantAndEquipmentLineItems"}]
["/*",null,{"$f":"'822100 - Nota. Prop, plan y eq.'!$E$16","v":"Bases de medición, propiedades, planta y equipo"},{"$f":"'822100 - Nota. Prop, plan y eq.'!$D$16","v":"ifrs-full:MeasurementBasesPropertyPlantAndEquipment"}]
["/*",null,{"$f":"'822100 - Nota. Prop, plan y eq.'!$E$17","v":"Método de depreciación, propiedades, planta y equipo"},{"$f":"'822100 - Nota. Prop, plan y eq.'!$D$17","v":"ifrs-full:DepreciationMethodPropertyPlantAndEquipment"}]
["/*",null,{"$f":"'822100 - Nota. Prop, plan y eq.'!$E$18","v":"Fechas de vigencia de revaluación, propiedades, planta y equipo"},{"$f":"'822100 - Nota. Prop, plan y eq.'!$D$18","v":"ifrs-full:EffectiveDatesOfRevaluationPropertyPlantAndEquipment"}]
["/*",null,{"$f":"'822100 - Nota. Prop, plan y eq.'!$E$19","v":"Explicación de la implicación del tasador independiente en la revaluación, propiedades, planta y equipo"},{"$f":"'822100 - Nota. Prop, plan y eq.'!$D$19","v":"ifrs-full:ExplanationOfIndependentValuerUsedForRevaluationPropertyPlantAndEquipment"}]
[{"$f":"IF(G5472=\"\",\"/*\",\"\")","v":"/*"},null,{"$f":"'822100 - Nota. Prop, plan y eq.'!$E$20","v":"Explicación del método de revaluación y supuestos significativos, propiedad, planta y equipo"},{"$f":"'822100 - Nota. Prop, plan y eq.'!$D$20","v":"co-svsp-core:ExplanationOfRevaluationMethodsAndSignificantAssumptionsPropertyPlantAndEquipment"}]
["/*",null,{"$f":"'822100 - Nota. Prop, plan y eq.'!$E$21","v":"Conciliación de cambios en propiedades, planta y equipo [resumen]"},{"$f":"'822100 - Nota. Prop, plan y eq.'!$D$21","v":"ifrs-full:ReconciliationOfChangesInPropertyPlantAndEquipmentAbstract"}]
["/*",null,{"$f":"'822100 - Nota. Prop, plan y eq.'!$E$22","v":"Propiedades, planta y equipo al comienzo del periodo"},{"$f":"'822100 - Nota. Prop, plan y eq.'!$D$22","v":"ifrs-full:PropertyPlantAndEquipment"}]
["/*",null,{"$f":"'822100 - Nota. Prop, plan y eq.'!$E$23","v":"Cambios en propiedades, planta y equipo [resumen]"},{"$f":"'822100 - Nota. Prop, plan y eq.'!$D$23","v":"ifrs-full:ChangesInPropertyPlantAndEquipmentAbstract"}]
["/*",null,{"$f":"'822100 - Nota. Prop, plan y eq.'!$E$24","v":"Incrementos distintos de los procedentes de combinaciones de negocios, propiedades, planta y equipo"},{"$f":"'822100 - Nota. Prop, plan y eq.'!$D$24","v":"ifrs-full:AdditionsOtherThanThroughBusinessCombinationsPropertyPlantAndEquipment"}]
["/*",null,{"$f":"'822100 - Nota. Prop, plan y eq.'!$E$25","v":"Adquisiciones realizadas mediante combinaciones de negocios, propiedades, planta y equipo"},{"$f":"'822100 - Nota. Prop, plan y eq.'!$D$25","v":"ifrs-full:AcquisitionsThroughBusinessCombinationsPropertyPlantAndEquipment"}]
["/*",null,{"$f":"'822100 - Nota. Prop, plan y eq.'!$E$26","v":"Depreciación, propiedades, planta y equipo"},{"$f":"'822100 - Nota. Prop, plan y eq.'!$D$26","v":"ifrs-full:DepreciationPropertyPlantAndEquipment"}]
["/*",null,{"$f":"'822100 - Nota. Prop, plan y eq.'!$E$27","v":"Pérdidas por deterioro de valor reconocidas en el resultado del periodo, propiedades, planta y equipo"},{"$f":"'822100 - Nota. Prop, plan y eq.'!$D$27","v":"ifrs-full:ImpairmentLossRecognisedInProfitOrLossPropertyPlantAndEquipment"}]
["/*",null,{"$f":"'822100 - Nota. Prop, plan y eq.'!$E$28","v":"Reversión de pérdidas por deterioro de valor reconocidas en el resultado del periodo, propiedades, planta y equipo"},{"$f":"'822100 - Nota. Prop, plan y eq.'!$D$28","v":"ifrs-full:ReversalOfImpairmentLossRecognisedInProfitOrLossPropertyPlantAndEquipment"}]
["/*",null,{"$f":"'822100 - Nota. Prop, plan y eq.'!$E$29","v":"Incrementos (disminuciones) de revaluaciones, propiedades, planta y equipo"},{"$f":"'822100 - Nota. Prop, plan y eq.'!$D$29","v":"ifrs-full:RevaluationIncreaseDecreasePropertyPlantAndEquipment"}]
["/*",null,{"$f":"'822100 - Nota. Prop, plan y eq.'!$E$30","v":"Pérdidas por deterioro de valor reconocidas en otro resultado integral, propiedades, planta y equipo"},{"$f":"'822100 - Nota. Prop, plan y eq.'!$D$30","v":"ifrs-full:ImpairmentLossRecognisedInOtherComprehensiveIncomePropertyPlantAndEquipment"}]
["/*",null,{"$f":"'822100 - Nota. Prop, plan y eq.'!$E$31","v":"Reversión de pérdidas por deterioro de valor reconocidas en otro resultado integral, propiedades, planta y equipo"},{"$f":"'822100 - Nota. Prop, plan y eq.'!$D$31","v":"ifrs-full:ReversalOfImpairmentLossRecognisedInOtherComprehensiveIncomePropertyPlantAndEquipment"}]
["/*",null,{"$f":"'822100 - Nota. Prop, plan y eq.'!$E$32","v":"Incrementos (disminuciones) por transferencias y otros cambios, propiedades, planta y equipo [resumen]"},{"$f":"'822100 - Nota. Prop, plan y eq.'!$D$32","v":"ifrs-full:IncreaseDecreaseThroughTransfersAndOtherChangesPropertyPlantAndEquipmentAbstract"}]
["/*",null,{"$f":"'822100 - Nota. Prop, plan y eq.'!$E$33","v":"Incrementos (disminuciones) por transferencias desde (hacia) propiedades de inversión, propiedades, planta y equipo"},{"$f":"'822100 - Nota. Prop, plan y eq.'!$D$33","v":"ifrs-full:IncreaseDecreaseThroughTransfersFromToInvestmentPropertyPropertyPlantAndEquipment"}]
["/*",null,{"$f":"'822100 - Nota. Prop, plan y eq.'!$E$34","v":"Incrementos (disminuciones) por transferencias desde construcciones en proceso , propiedades, planta y equipo"},{"$f":"'822100 - Nota. Prop, plan y eq.'!$D$34","v":"ifrs-full:IncreaseDecreaseThroughTransfersFromConstructionInProgressPropertyPlantAndEquipment"}]
["/*",null,{"$f":"'822100 - Nota. Prop, plan y eq.'!$E$35","v":"Incrementos (disminuciones) por otros cambios, propiedades, planta y equipo"},{"$f":"'822100 - Nota. Prop, plan y eq.'!$D$35","v":"ifrs-full:IncreaseDecreaseThroughOtherChangesPropertyPlantAndEquipment"}]
["",null,{"$f":"'822100 - Nota. Prop, plan y eq.'!$E$36","v":"Total incrementos (disminuciones) por transferencias y otros cambios, propiedades, planta y equipo"},{"$f":"'822100 - Nota. Prop, plan y eq.'!$D$36","v":"ifrs-full:IncreaseDecreaseThroughTransfersAndOtherChangesPropertyPlantAndEquipment"},0,"peso",{"$f":"'822100 - Nota. Prop, plan y eq.'!$U$36","v":0},0,"http://www.xbrl.org/scheme/companyName",{"$f":"Periodos!$C$3","v":"2023-01-01"},{"$f":"Periodos!$C$4","v":"2023-12-31"},{"$f":"'822100 - Nota. Prop, plan y eq.'!$E$14","v":"co-svsp-core:PropiedadesPlantaYEquipoEje_G1"},{"$f":"'822100 - Nota. Prop, plan y eq.'!$U$13","v":"ifrs-full:TangibleExplorationAndEvaluationAssetsMember"}]
["/*",null,{"$f":"'822100 - Nota. Prop, plan y eq.'!$E$37","v":"Disposiciones y retiros de servicio, propiedades, planta y equipo [resumen]"},{"$f":"'822100 - Nota. Prop, plan y eq.'!$D$37","v":"ifrs-full:DisposalsAndRetirementsPropertyPlantAndEquipmentAbstract"}]
["/*",null,{"$f":"'822100 - Nota. Prop, plan y eq.'!$E$38","v":"Disposiciones, propiedades, planta y equipo"},{"$f":"'822100 - Nota. Prop, plan y eq.'!$D$38","v":"ifrs-full:DisposalsPropertyPlantAndEquipment"}]
["/*",null,{"$f":"'822100 - Nota. Prop, plan y eq.'!$E$39","v":"Retiros, propiedades, planta y equipo"},{"$f":"'822100 - Nota. Prop, plan y eq.'!$D$39","v":"ifrs-full:RetirementsPropertyPlantAndEquipment"}]
["",null,{"$f":"'822100 - Nota. Prop, plan y eq.'!$E$40","v":"Total de disposiciones y retiros de servicio, propiedades, planta y equipo"},{"$f":"'822100 - Nota. Prop, plan y eq.'!$D$40","v":"ifrs-full:DisposalsAndRetirementsPropertyPlantAndEquipment"},0,"peso",{"$f":"'822100 - Nota. Prop, plan y eq.'!$U$40","v":0},0,"http://www.xbrl.org/scheme/companyName",{"$f":"Periodos!$C$3","v":"2023-01-01"},{"$f":"Periodos!$C$4","v":"2023-12-31"},{"$f":"'822100 - Nota. Prop, plan y eq.'!$E$14","v":"co-svsp-core:PropiedadesPlantaYEquipoEje_G1"},{"$f":"'822100 - Nota. Prop, plan y eq.'!$U$13","v":"ifrs-full:TangibleExplorationAndEvaluationAssetsMember"}]
["/*",null,{"$f":"'822100 - Nota. Prop, plan y eq.'!$E$41","v":"Disminuciones por clasificar como mantenidos para la venta, propiedades, planta y equipo"},{"$f":"'822100 - Nota. Prop, plan y eq.'!$D$41","v":"ifrs-full:DecreaseThroughClassifiedAsHeldForSalePropertyPlantAndEquipment"}]
["",null,{"$f":"'822100 - Nota. Prop, plan y eq.'!$E$42","v":"Total incremento (disminución) en propiedades, planta y equipo"},{"$f":"'822100 - Nota. Prop, plan y eq.'!$D$42","v":"ifrs-full:ChangesInPropertyPlantAndEquipment"},0,"peso",{"$f":"'822100 - Nota. Prop, plan y eq.'!$U$42","v":0},0,"http://www.xbrl.org/scheme/companyName",{"$f":"Periodos!$C$3","v":"2023-01-01"},{"$f":"Periodos!$C$4","v":"2023-12-31"},{"$f":"'822100 - Nota. Prop, plan y eq.'!$E$14","v":"co-svsp-core:PropiedadesPlantaYEquipoEje_G1"},{"$f":"'822100 - Nota. Prop, plan y eq.'!$U$13","v":"ifrs-full:TangibleExplorationAndEvaluationAssetsMember"}]
["",null,{"$f":"'822100 - Nota. Prop, plan y eq.'!$E$43","v":"Propiedades, planta y equipo al final del periodo"},{"$f":"'822100 - Nota. Prop, plan y eq.'!$D$43","v":"ifrs-full:PropertyPlantAndEquipment"},0,"peso",{"$f":"'822100 - Nota. Prop, plan y eq.'!$U$43","v":0},0,"http://www.xbrl.org/scheme/companyName",null,{"$f":"Periodos!$C$4","v":"2023-12-31"},{"$f":"'822100 - Nota. Prop, plan y eq.'!$E$14","v":"co-svsp-core:PropiedadesPlantaYEquipoEje_G1"},{"$f":"'822100 - Nota. Prop, plan y eq.'!$U$13","v":"ifrs-full:TangibleExplorationAndEvaluationAssetsMember"}]
["/*",null,"--17--"]
["/*",null,{"$f":"'822100 - Nota. Prop, plan y eq.'!$E$15","v":"Información a revelar detallada sobre propiedades, planta y equipo [partidas de los estados financieros]"},{"$f":"'822100 - Nota. Prop, plan y eq.'!$D$15","v":"ifrs-full:DisclosureOfPropertyPlantAndEquipmentLineItems"}]
["/*",null,{"$f":"'822100 - Nota. Prop, plan y eq.'!$E$16","v":"Bases de medición, propiedades, planta y equipo"},{"$f":"'822100 - Nota. Prop, plan y eq.'!$D$16","v":"ifrs-full:MeasurementBasesPropertyPlantAndEquipment"}]
["/*",null,{"$f":"'822100 - Nota. Prop, plan y eq.'!$E$17","v":"Método de depreciación, propiedades, planta y equipo"},{"$f":"'822100 - Nota. Prop, plan y eq.'!$D$17","v":"ifrs-full:DepreciationMethodPropertyPlantAndEquipment"}]
["/*",null,{"$f":"'822100 - Nota. Prop, plan y eq.'!$E$18","v":"Fechas de vigencia de revaluación, propiedades, planta y equipo"},{"$f":"'822100 - Nota. Prop, plan y eq.'!$D$18","v":"ifrs-full:EffectiveDatesOfRevaluationPropertyPlantAndEquipment"}]
["/*",null,{"$f":"'822100 - Nota. Prop, plan y eq.'!$E$19","v":"Explicación de la implicación del tasador independiente en la revaluación, propiedades, planta y equipo"},{"$f":"'822100 - Nota. Prop, plan y eq.'!$D$19","v":"ifrs-full:ExplanationOfIndependentValuerUsedForRevaluationPropertyPlantAndEquipment"}]
["/*",null,{"$f":"'822100 - Nota. Prop, plan y eq.'!$E$20","v":"Explicación del método de revaluación y supuestos significativos, propiedad, planta y equipo"},{"$f":"'822100 - Nota. Prop, plan y eq.'!$D$20","v":"co-svsp-core:ExplanationOfRevaluationMethodsAndSignificantAssumptionsPropertyPlantAndEquipment"}]
["/*",null,{"$f":"'822100 - Nota. Prop, plan y eq.'!$E$21","v":"Conciliación de cambios en propiedades, planta y equipo [resumen]"},{"$f":"'822100 - Nota. Prop, plan y eq.'!$D$21","v":"ifrs-full:ReconciliationOfChangesInPropertyPlantAndEquipmentAbstract"}]
["/*",null,{"$f":"'822100 - Nota. Prop, plan y eq.'!$E$22","v":"Propiedades, planta y equipo al comienzo del periodo"},{"$f":"'822100 - Nota. Prop, plan y eq.'!$D$22","v":"ifrs-full:PropertyPlantAndEquipment"}]
["/*",null,{"$f":"'822100 - Nota. Prop, plan y eq.'!$E$23","v":"Cambios en propiedades, planta y equipo [resumen]"},{"$f":"'822100 - Nota. Prop, plan y eq.'!$D$23","v":"ifrs-full:ChangesInPropertyPlantAndEquipmentAbstract"}]
["/*",null,{"$f":"'822100 - Nota. Prop, plan y eq.'!$E$24","v":"Incrementos distintos de los procedentes de combinaciones de negocios, propiedades, planta y equipo"},{"$f":"'822100 - Nota. Prop, plan y eq.'!$D$24","v":"ifrs-full:AdditionsOtherThanThroughBusinessCombinationsPropertyPlantAndEquipment"}]
["/*",null,{"$f":"'822100 - Nota. Prop, plan y eq.'!$E$25","v":"Adquisiciones realizadas mediante combinaciones de negocios, propiedades, planta y equipo"},{"$f":"'822100 - Nota. Prop, plan y eq.'!$D$25","v":"ifrs-full:AcquisitionsThroughBusinessCombinationsPropertyPlantAndEquipment"}]
["/*",null,{"$f":"'822100 - Nota. Prop, plan y eq.'!$E$26","v":"Depreciación, propiedades, planta y equipo"},{"$f":"'822100 - Nota. Prop, plan y eq.'!$D$26","v":"ifrs-full:DepreciationPropertyPlantAndEquipment"}]
["/*",null,{"$f":"'822100 - Nota. Prop, plan y eq.'!$E$27","v":"Pérdidas por deterioro de valor reconocidas en el resultado del periodo, propiedades, planta y equipo"},{"$f":"'822100 - Nota. Prop, plan y eq.'!$D$27","v":"ifrs-full:ImpairmentLossRecognisedInProfitOrLossPropertyPlantAndEquipment"}]
["/*",null,{"$f":"'822100 - Nota. Prop, plan y eq.'!$E$28","v":"Reversión de pérdidas por deterioro de valor reconocidas en el resultado del periodo, propiedades, planta y equipo"},{"$f":"'822100 - Nota. Prop, plan y eq.'!$D$28","v":"ifrs-full:ReversalOfImpairmentLossRecognisedInProfitOrLossPropertyPlantAndEquipment"}]
["/*",null,{"$f":"'822100 - Nota. Prop, plan y eq.'!$E$29","v":"Incrementos (disminuciones) de revaluaciones, propiedades, planta y equipo"},{"$f":"'822100 - Nota. Prop, plan y eq.'!$D$29","v":"ifrs-full:RevaluationIncreaseDecreasePropertyPlantAndEquipment"}]
["/*",null,{"$f":"'822100 - Nota. Prop, plan y eq.'!$E$30","v":"Pérdidas por deterioro de valor reconocidas en otro resultado integral, propiedades, planta y equipo"},{"$f":"'822100 - Nota. Prop, plan y eq.'!$D$30","v":"ifrs-full:ImpairmentLossRecognisedInOtherComprehensiveIncomePropertyPlantAndEquipment"}]
["/*",null,{"$f":"'822100 - Nota. Prop, plan y eq.'!$E$31","v":"Reversión de pérdidas por deterioro de valor reconocidas en otro resultado integral, propiedades, planta y equipo"},{"$f":"'822100 - Nota. Prop, plan y eq.'!$D$31","v":"ifrs-full:ReversalOfImpairmentLossRecognisedInOtherComprehensiveIncomePropertyPlantAndEquipment"}]
["/*",null,{"$f":"'822100 - Nota. Prop, plan y eq.'!$E$32","v":"Incrementos (disminuciones) por transferencias y otros cambios, propiedades, planta y equipo [resumen]"},{"$f":"'822100 - Nota. Prop, plan y eq.'!$D$32","v":"ifrs-full:IncreaseDecreaseThroughTransfersAndOtherChangesPropertyPlantAndEquipmentAbstract"}]
["/*",null,{"$f":"'822100 - Nota. Prop, plan y eq.'!$E$33","v":"Incrementos (disminuciones) por transferencias desde (hacia) propiedades de inversión, propiedades, planta y equipo"},{"$f":"'822100 - Nota. Prop, plan y eq.'!$D$33","v":"ifrs-full:IncreaseDecreaseThroughTransfersFromToInvestmentPropertyPropertyPlantAndEquipment"}]
["/*",null,{"$f":"'822100 - Nota. Prop, plan y eq.'!$E$34","v":"Incrementos (disminuciones) por transferencias desde construcciones en proceso , propiedades, planta y equipo"},{"$f":"'822100 - Nota. Prop, plan y eq.'!$D$34","v":"ifrs-full:IncreaseDecreaseThroughTransfersFromConstructionInProgressPropertyPlantAndEquipment"}]
["/*",null,{"$f":"'822100 - Nota. Prop, plan y eq.'!$E$35","v":"Incrementos (disminuciones) por otros cambios, propiedades, planta y equipo"},{"$f":"'822100 - Nota. Prop, plan y eq.'!$D$35","v":"ifrs-full:IncreaseDecreaseThroughOtherChangesPropertyPlantAndEquipment"}]
["",null,{"$f":"'822100 - Nota. Prop, plan y eq.'!$E$36","v":"Total incrementos (disminuciones) por transferencias y otros cambios, propiedades, planta y equipo"},{"$f":"'822100 - Nota. Prop, plan y eq.'!$D$36","v":"ifrs-full:IncreaseDecreaseThroughTransfersAndOtherChangesPropertyPlantAndEquipment"},0,"peso",{"$f":"'822100 - Nota. Prop, plan y eq.'!$V$36","v":0},0,"http://www.xbrl.org/scheme/companyName",{"$f":"Periodos!$C$3","v":"2023-01-01"},{"$f":"Periodos!$C$4","v":"2023-12-31"},{"$f":"'822100 - Nota. Prop, plan y eq.'!$E$14","v":"co-svsp-core:PropiedadesPlantaYEquipoEje_G1"},{"$f":"'822100 - Nota. Prop, plan y eq.'!$V$13","v":"ifrs-full:LeaseholdImprovementsMember"}]
["/*",null,{"$f":"'822100 - Nota. Prop, plan y eq.'!$E$37","v":"Disposiciones y retiros de servicio, propiedades, planta y equipo [resumen]"},{"$f":"'822100 - Nota. Prop, plan y eq.'!$D$37","v":"ifrs-full:DisposalsAndRetirementsPropertyPlantAndEquipmentAbstract"}]
["/*",null,{"$f":"'822100 - Nota. Prop, plan y eq.'!$E$38","v":"Disposiciones, propiedades, planta y equipo"},{"$f":"'822100 - Nota. Prop, plan y eq.'!$D$38","v":"ifrs-full:DisposalsPropertyPlantAndEquipment"}]
["/*",null,{"$f":"'822100 - Nota. Prop, plan y eq.'!$E$39","v":"Retiros, propiedades, planta y equipo"},{"$f":"'822100 - Nota. Prop, plan y eq.'!$D$39","v":"ifrs-full:RetirementsPropertyPlantAndEquipment"}]
["",null,{"$f":"'822100 - Nota. Prop, plan y eq.'!$E$40","v":"Total de disposiciones y retiros de servicio, propiedades, planta y equipo"},{"$f":"'822100 - Nota. Prop, plan y eq.'!$D$40","v":"ifrs-full:DisposalsAndRetirementsPropertyPlantAndEquipment"},0,"peso",{"$f":"'822100 - Nota. Prop, plan y eq.'!$V$40","v":0},0,"http://www.xbrl.org/scheme/companyName",{"$f":"Periodos!$C$3","v":"2023-01-01"},{"$f":"Periodos!$C$4","v":"2023-12-31"},{"$f":"'822100 - Nota. Prop, plan y eq.'!$E$14","v":"co-svsp-core:PropiedadesPlantaYEquipoEje_G1"},{"$f":"'822100 - Nota. Prop, plan y eq.'!$V$13","v":"ifrs-full:LeaseholdImprovementsMember"}]
["/*",null,{"$f":"'822100 - Nota. Prop, plan y eq.'!$E$41","v":"Disminuciones por clasificar como mantenidos para la venta, propiedades, planta y equipo"},{"$f":"'822100 - Nota. Prop, plan y eq.'!$D$41","v":"ifrs-full:DecreaseThroughClassifiedAsHeldForSalePropertyPlantAndEquipment"}]
["",null,{"$f":"'822100 - Nota. Prop, plan y eq.'!$E$42","v":"Total incremento (disminución) en propiedades, planta y equipo"},{"$f":"'822100 - Nota. Prop, plan y eq.'!$D$42","v":"ifrs-full:ChangesInPropertyPlantAndEquipment"},0,"peso",{"$f":"'822100 - Nota. Prop, plan y eq.'!$V$42","v":0},0,"http://www.xbrl.org/scheme/companyName",{"$f":"Periodos!$C$3","v":"2023-01-01"},{"$f":"Periodos!$C$4","v":"2023-12-31"},{"$f":"'822100 - Nota. Prop, plan y eq.'!$E$14","v":"co-svsp-core:PropiedadesPlantaYEquipoEje_G1"},{"$f":"'822100 - Nota. Prop, plan y eq.'!$V$13","v":"ifrs-full:LeaseholdImprovementsMember"}]
["",null,{"$f":"'822100 - Nota. Prop, plan y eq.'!$E$43","v":"Propiedades, planta y equipo al final del periodo"},{"$f":"'822100 - Nota. Prop, plan y eq.'!$D$43","v":"ifrs-full:PropertyPlantAndEquipment"},0,"peso",{"$f":"'822100 - Nota. Prop, plan y eq.'!$V$43","v":0},0,"http://www.xbrl.org/scheme/companyName",null,{"$f":"Periodos!$C$4","v":"2023-12-31"},{"$f":"'822100 - Nota. Prop, plan y eq.'!$E$14","v":"co-svsp-core:PropiedadesPlantaYEquipoEje_G1"},{"$f":"'822100 - Nota. Prop, plan y eq.'!$V$13","v":"ifrs-full:LeaseholdImprovementsMember"}]
["/*",null,"--18--"]
["/*",null,{"$f":"'822100 - Nota. Prop, plan y eq.'!$E$15","v":"Información a revelar detallada sobre propiedades, planta y equipo [partidas de los estados financieros]"},{"$f":"'822100 - Nota. Prop, plan y eq.'!$D$15","v":"ifrs-full:DisclosureOfPropertyPlantAndEquipmentLineItems"}]
["/*",null,{"$f":"'822100 - Nota. Prop, plan y eq.'!$E$16","v":"Bases de medición, propiedades, planta y equipo"},{"$f":"'822100 - Nota. Prop, plan y eq.'!$D$16","v":"ifrs-full:MeasurementBasesPropertyPlantAndEquipment"}]
["/*",null,{"$f":"'822100 - Nota. Prop, plan y eq.'!$E$17","v":"Método de depreciación, propiedades, planta y equipo"},{"$f":"'822100 - Nota. Prop, plan y eq.'!$D$17","v":"ifrs-full:DepreciationMethodPropertyPlantAndEquipment"}]
["/*",null,{"$f":"'822100 - Nota. Prop, plan y eq.'!$E$18","v":"Fechas de vigencia de revaluación, propiedades, planta y equipo"},{"$f":"'822100 - Nota. Prop, plan y eq.'!$D$18","v":"ifrs-full:EffectiveDatesOfRevaluationPropertyPlantAndEquipment"}]
["/*",null,{"$f":"'822100 - Nota. Prop, plan y eq.'!$E$19","v":"Explicación de la implicación del tasador independiente en la revaluación, propiedades, planta y equipo"},{"$f":"'822100 - Nota. Prop, plan y eq.'!$D$19","v":"ifrs-full:ExplanationOfIndependentValuerUsedForRevaluationPropertyPlantAndEquipment"}]
["/*",null,{"$f":"'822100 - Nota. Prop, plan y eq.'!$E$20","v":"Explicación del método de revaluación y supuestos significativos, propiedad, planta y equipo"},{"$f":"'822100 - Nota. Prop, plan y eq.'!$D$20","v":"co-svsp-core:ExplanationOfRevaluationMethodsAndSignificantAssumptionsPropertyPlantAndEquipment"}]
["/*",null,{"$f":"'822100 - Nota. Prop, plan y eq.'!$E$21","v":"Conciliación de cambios en propiedades, planta y equipo [resumen]"},{"$f":"'822100 - Nota. Prop, plan y eq.'!$D$21","v":"ifrs-full:ReconciliationOfChangesInPropertyPlantAndEquipmentAbstract"}]
["/*",null,{"$f":"'822100 - Nota. Prop, plan y eq.'!$E$22","v":"Propiedades, planta y equipo al comienzo del periodo"},{"$f":"'822100 - Nota. Prop, plan y eq.'!$D$22","v":"ifrs-full:PropertyPlantAndEquipment"}]
["/*",null,{"$f":"'822100 - Nota. Prop, plan y eq.'!$E$23","v":"Cambios en propiedades, planta y equipo [resumen]"},{"$f":"'822100 - Nota. Prop, plan y eq.'!$D$23","v":"ifrs-full:ChangesInPropertyPlantAndEquipmentAbstract"}]
[{"$f":"IF(G5536=\"\",\"/*\",\"\")","v":"/*"},null,{"$f":"'822100 - Nota. Prop, plan y eq.'!$E$24","v":"Incrementos distintos de los procedentes de combinaciones de negocios, propiedades, planta y equipo"},{"$f":"'822100 - Nota. Prop, plan y eq.'!$D$24","v":"ifrs-full:AdditionsOtherThanThroughBusinessCombinationsPropertyPlantAndEquipment"}]
["/*",null,{"$f":"'822100 - Nota. Prop, plan y eq.'!$E$25","v":"Adquisiciones realizadas mediante combinaciones de negocios, propiedades, planta y equipo"},{"$f":"'822100 - Nota. Prop, plan y eq.'!$D$25","v":"ifrs-full:AcquisitionsThroughBusinessCombinationsPropertyPlantAndEquipment"}]
["/*",null,{"$f":"'822100 - Nota. Prop, plan y eq.'!$E$26","v":"Depreciación, propiedades, planta y equipo"},{"$f":"'822100 - Nota. Prop, plan y eq.'!$D$26","v":"ifrs-full:DepreciationPropertyPlantAndEquipment"}]
["/*",null,{"$f":"'822100 - Nota. Prop, plan y eq.'!$E$27","v":"Pérdidas por deterioro de valor reconocidas en el resultado del periodo, propiedades, planta y equipo"},{"$f":"'822100 - Nota. Prop, plan y eq.'!$D$27","v":"ifrs-full:ImpairmentLossRecognisedInProfitOrLossPropertyPlantAndEquipment"}]
["/*",null,{"$f":"'822100 - Nota. Prop, plan y eq.'!$E$28","v":"Reversión de pérdidas por deterioro de valor reconocidas en el resultado del periodo, propiedades, planta y equipo"},{"$f":"'822100 - Nota. Prop, plan y eq.'!$D$28","v":"ifrs-full:ReversalOfImpairmentLossRecognisedInProfitOrLossPropertyPlantAndEquipment"}]
["/*",null,{"$f":"'822100 - Nota. Prop, plan y eq.'!$E$29","v":"Incrementos (disminuciones) de revaluaciones, propiedades, planta y equipo"},{"$f":"'822100 - Nota. Prop, plan y eq.'!$D$29","v":"ifrs-full:RevaluationIncreaseDecreasePropertyPlantAndEquipment"}]
["/*",null,{"$f":"'822100 - Nota. Prop, plan y eq.'!$E$30","v":"Pérdidas por deterioro de valor reconocidas en otro resultado integral, propiedades, planta y equipo"},{"$f":"'822100 - Nota. Prop, plan y eq.'!$D$30","v":"ifrs-full:ImpairmentLossRecognisedInOtherComprehensiveIncomePropertyPlantAndEquipment"}]
["/*",null,{"$f":"'822100 - Nota. Prop, plan y eq.'!$E$31","v":"Reversión de pérdidas por deterioro de valor reconocidas en otro resultado integral, propiedades, planta y equipo"},{"$f":"'822100 - Nota. Prop, plan y eq.'!$D$31","v":"ifrs-full:ReversalOfImpairmentLossRecognisedInOtherComprehensiveIncomePropertyPlantAndEquipment"}]
["/*",null,{"$f":"'822100 - Nota. Prop, plan y eq.'!$E$32","v":"Incrementos (disminuciones) por transferencias y otros cambios, propiedades, planta y equipo [resumen]"},{"$f":"'822100 - Nota. Prop, plan y eq.'!$D$32","v":"ifrs-full:IncreaseDecreaseThroughTransfersAndOtherChangesPropertyPlantAndEquipmentAbstract"}]
["/*",null,{"$f":"'822100 - Nota. Prop, plan y eq.'!$E$33","v":"Incrementos (disminuciones) por transferencias desde (hacia) propiedades de inversión, propiedades, planta y equipo"},{"$f":"'822100 - Nota. Prop, plan y eq.'!$D$33","v":"ifrs-full:IncreaseDecreaseThroughTransfersFromToInvestmentPropertyPropertyPlantAndEquipment"}]
["/*",null,{"$f":"'822100 - Nota. Prop, plan y eq.'!$E$34","v":"Incrementos (disminuciones) por transferencias desde construcciones en proceso , propiedades, planta y equipo"},{"$f":"'822100 - Nota. Prop, plan y eq.'!$D$34","v":"ifrs-full:IncreaseDecreaseThroughTransfersFromConstructionInProgressPropertyPlantAndEquipment"}]
["/*",null,{"$f":"'822100 - Nota. Prop, plan y eq.'!$E$35","v":"Incrementos (disminuciones) por otros cambios, propiedades, planta y equipo"},{"$f":"'822100 - Nota. Prop, plan y eq.'!$D$35","v":"ifrs-full:IncreaseDecreaseThroughOtherChangesPropertyPlantAndEquipment"}]
["",null,{"$f":"'822100 - Nota. Prop, plan y eq.'!$E$36","v":"Total incrementos (disminuciones) por transferencias y otros cambios, propiedades, planta y equipo"},{"$f":"'822100 - Nota. Prop, plan y eq.'!$D$36","v":"ifrs-full:IncreaseDecreaseThroughTransfersAndOtherChangesPropertyPlantAndEquipment"},0,"peso",{"$f":"'822100 - Nota. Prop, plan y eq.'!$W$36","v":0},0,"http://www.xbrl.org/scheme/companyName",{"$f":"Periodos!$C$3","v":"2023-01-01"},{"$f":"Periodos!$C$4","v":"2023-12-31"},{"$f":"'822100 - Nota. Prop, plan y eq.'!$E$14","v":"co-svsp-core:PropiedadesPlantaYEquipoEje_G1"},{"$f":"'822100 - Nota. Prop, plan y eq.'!$W$13","v":"ifrs-full:ConstructionInProgressMember"}]
["/*",null,{"$f":"'822100 - Nota. Prop, plan y eq.'!$E$37","v":"Disposiciones y retiros de servicio, propiedades, planta y equipo [resumen]"},{"$f":"'822100 - Nota. Prop, plan y eq.'!$D$37","v":"ifrs-full:DisposalsAndRetirementsPropertyPlantAndEquipmentAbstract"}]
["/*",null,{"$f":"'822100 - Nota. Prop, plan y eq.'!$E$38","v":"Disposiciones, propiedades, planta y equipo"},{"$f":"'822100 - Nota. Prop, plan y eq.'!$D$38","v":"ifrs-full:DisposalsPropertyPlantAndEquipment"}]
["/*",null,{"$f":"'822100 - Nota. Prop, plan y eq.'!$E$39","v":"Retiros, propiedades, planta y equipo"},{"$f":"'822100 - Nota. Prop, plan y eq.'!$D$39","v":"ifrs-full:RetirementsPropertyPlantAndEquipment"}]
["",null,{"$f":"'822100 - Nota. Prop, plan y eq.'!$E$40","v":"Total de disposiciones y retiros de servicio, propiedades, planta y equipo"},{"$f":"'822100 - Nota. Prop, plan y eq.'!$D$40","v":"ifrs-full:DisposalsAndRetirementsPropertyPlantAndEquipment"},0,"peso",{"$f":"'822100 - Nota. Prop, plan y eq.'!$W$40","v":0},0,"http://www.xbrl.org/scheme/companyName",{"$f":"Periodos!$C$3","v":"2023-01-01"},{"$f":"Periodos!$C$4","v":"2023-12-31"},{"$f":"'822100 - Nota. Prop, plan y eq.'!$E$14","v":"co-svsp-core:PropiedadesPlantaYEquipoEje_G1"},{"$f":"'822100 - Nota. Prop, plan y eq.'!$W$13","v":"ifrs-full:ConstructionInProgressMember"}]
["/*",null,{"$f":"'822100 - Nota. Prop, plan y eq.'!$E$41","v":"Disminuciones por clasificar como mantenidos para la venta, propiedades, planta y equipo"},{"$f":"'822100 - Nota. Prop, plan y eq.'!$D$41","v":"ifrs-full:DecreaseThroughClassifiedAsHeldForSalePropertyPlantAndEquipment"}]
["",null,{"$f":"'822100 - Nota. Prop, plan y eq.'!$E$42","v":"Total incremento (disminución) en propiedades, planta y equipo"},{"$f":"'822100 - Nota. Prop, plan y eq.'!$D$42","v":"ifrs-full:ChangesInPropertyPlantAndEquipment"},0,"peso",{"$f":"'822100 - Nota. Prop, plan y eq.'!$W$42","v":0},0,"http://www.xbrl.org/scheme/companyName",{"$f":"Periodos!$C$3","v":"2023-01-01"},{"$f":"Periodos!$C$4","v":"2023-12-31"},{"$f":"'822100 - Nota. Prop, plan y eq.'!$E$14","v":"co-svsp-core:PropiedadesPlantaYEquipoEje_G1"},{"$f":"'822100 - Nota. Prop, plan y eq.'!$W$13","v":"ifrs-full:ConstructionInProgressMember"}]
["",null,{"$f":"'822100 - Nota. Prop, plan y eq.'!$E$43","v":"Propiedades, planta y equipo al final del periodo"},{"$f":"'822100 - Nota. Prop, plan y eq.'!$D$43","v":"ifrs-full:PropertyPlantAndEquipment"},0,"peso",{"$f":"'822100 - Nota. Prop, plan y eq.'!$W$43","v":0},0,"http://www.xbrl.org/scheme/companyName",null,{"$f":"Periodos!$C$4","v":"2023-12-31"},{"$f":"'822100 - Nota. Prop, plan y eq.'!$E$14","v":"co-svsp-core:PropiedadesPlantaYEquipoEje_G1"},{"$f":"'822100 - Nota. Prop, plan y eq.'!$W$13","v":"ifrs-full:ConstructionInProgressMember"}]
["/*",null,"--19--"]
["/*",null,{"$f":"'822100 - Nota. Prop, plan y eq.'!$E$15","v":"Información a revelar detallada sobre propiedades, planta y equipo [partidas de los estados financieros]"},{"$f":"'822100 - Nota. Prop, plan y eq.'!$D$15","v":"ifrs-full:DisclosureOfPropertyPlantAndEquipmentLineItems"}]
["/*",null,{"$f":"'822100 - Nota. Prop, plan y eq.'!$E$16","v":"Bases de medición, propiedades, planta y equipo"},{"$f":"'822100 - Nota. Prop, plan y eq.'!$D$16","v":"ifrs-full:MeasurementBasesPropertyPlantAndEquipment"}]
["/*",null,{"$f":"'822100 - Nota. Prop, plan y eq.'!$E$17","v":"Método de depreciación, propiedades, planta y equipo"},{"$f":"'822100 - Nota. Prop, plan y eq.'!$D$17","v":"ifrs-full:DepreciationMethodPropertyPlantAndEquipment"}]
["/*",null,{"$f":"'822100 - Nota. Prop, plan y eq.'!$E$18","v":"Fechas de vigencia de revaluación, propiedades, planta y equipo"},{"$f":"'822100 - Nota. Prop, plan y eq.'!$D$18","v":"ifrs-full:EffectiveDatesOfRevaluationPropertyPlantAndEquipment"}]
["/*",null,{"$f":"'822100 - Nota. Prop, plan y eq.'!$E$19","v":"Explicación de la implicación del tasador independiente en la revaluación, propiedades, planta y equipo"},{"$f":"'822100 - Nota. Prop, plan y eq.'!$D$19","v":"ifrs-full:ExplanationOfIndependentValuerUsedForRevaluationPropertyPlantAndEquipment"}]
["/*",null,{"$f":"'822100 - Nota. Prop, plan y eq.'!$E$20","v":"Explicación del método de revaluación y supuestos significativos, propiedad, planta y equipo"},{"$f":"'822100 - Nota. Prop, plan y eq.'!$D$20","v":"co-svsp-core:ExplanationOfRevaluationMethodsAndSignificantAssumptionsPropertyPlantAndEquipment"}]
["/*",null,{"$f":"'822100 - Nota. Prop, plan y eq.'!$E$21","v":"Conciliación de cambios en propiedades, planta y equipo [resumen]"},{"$f":"'822100 - Nota. Prop, plan y eq.'!$D$21","v":"ifrs-full:ReconciliationOfChangesInPropertyPlantAndEquipmentAbstract"}]
["/*",null,{"$f":"'822100 - Nota. Prop, plan y eq.'!$E$22","v":"Propiedades, planta y equipo al comienzo del periodo"},{"$f":"'822100 - Nota. Prop, plan y eq.'!$D$22","v":"ifrs-full:PropertyPlantAndEquipment"}]
["/*",null,{"$f":"'822100 - Nota. Prop, plan y eq.'!$E$23","v":"Cambios en propiedades, planta y equipo [resumen]"},{"$f":"'822100 - Nota. Prop, plan y eq.'!$D$23","v":"ifrs-full:ChangesInPropertyPlantAndEquipmentAbstract"}]
["/*",null,{"$f":"'822100 - Nota. Prop, plan y eq.'!$E$24","v":"Incrementos distintos de los procedentes de combinaciones de negocios, propiedades, planta y equipo"},{"$f":"'822100 - Nota. Prop, plan y eq.'!$D$24","v":"ifrs-full:AdditionsOtherThanThroughBusinessCombinationsPropertyPlantAndEquipment"}]
["/*",null,{"$f":"'822100 - Nota. Prop, plan y eq.'!$E$25","v":"Adquisiciones realizadas mediante combinaciones de negocios, propiedades, planta y equipo"},{"$f":"'822100 - Nota. Prop, plan y eq.'!$D$25","v":"ifrs-full:AcquisitionsThroughBusinessCombinationsPropertyPlantAndEquipment"}]
["/*",null,{"$f":"'822100 - Nota. Prop, plan y eq.'!$E$26","v":"Depreciación, propiedades, planta y equipo"},{"$f":"'822100 - Nota. Prop, plan y eq.'!$D$26","v":"ifrs-full:DepreciationPropertyPlantAndEquipment"}]
["/*",null,{"$f":"'822100 - Nota. Prop, plan y eq.'!$E$27","v":"Pérdidas por deterioro de valor reconocidas en el resultado del periodo, propiedades, planta y equipo"},{"$f":"'822100 - Nota. Prop, plan y eq.'!$D$27","v":"ifrs-full:ImpairmentLossRecognisedInProfitOrLossPropertyPlantAndEquipment"}]
["/*",null,{"$f":"'822100 - Nota. Prop, plan y eq.'!$E$28","v":"Reversión de pérdidas por deterioro de valor reconocidas en el resultado del periodo, propiedades, planta y equipo"},{"$f":"'822100 - Nota. Prop, plan y eq.'!$D$28","v":"ifrs-full:ReversalOfImpairmentLossRecognisedInProfitOrLossPropertyPlantAndEquipment"}]
["/*",null,{"$f":"'822100 - Nota. Prop, plan y eq.'!$E$29","v":"Incrementos (disminuciones) de revaluaciones, propiedades, planta y equipo"},{"$f":"'822100 - Nota. Prop, plan y eq.'!$D$29","v":"ifrs-full:RevaluationIncreaseDecreasePropertyPlantAndEquipment"}]
["/*",null,{"$f":"'822100 - Nota. Prop, plan y eq.'!$E$30","v":"Pérdidas por deterioro de valor reconocidas en otro resultado integral, propiedades, planta y equipo"},{"$f":"'822100 - Nota. Prop, plan y eq.'!$D$30","v":"ifrs-full:ImpairmentLossRecognisedInOtherComprehensiveIncomePropertyPlantAndEquipment"}]
["/*",null,{"$f":"'822100 - Nota. Prop, plan y eq.'!$E$31","v":"Reversión de pérdidas por deterioro de valor reconocidas en otro resultado integral, propiedades, planta y equipo"},{"$f":"'822100 - Nota. Prop, plan y eq.'!$D$31","v":"ifrs-full:ReversalOfImpairmentLossRecognisedInOtherComprehensiveIncomePropertyPlantAndEquipment"}]
["/*",null,{"$f":"'822100 - Nota. Prop, plan y eq.'!$E$32","v":"Incrementos (disminuciones) por transferencias y otros cambios, propiedades, planta y equipo [resumen]"},{"$f":"'822100 - Nota. Prop, plan y eq.'!$D$32","v":"ifrs-full:IncreaseDecreaseThroughTransfersAndOtherChangesPropertyPlantAndEquipmentAbstract"}]
["/*",null,{"$f":"'822100 - Nota. Prop, plan y eq.'!$E$33","v":"Incrementos (disminuciones) por transferencias desde (hacia) propiedades de inversión, propiedades, planta y equipo"},{"$f":"'822100 - Nota. Prop, plan y eq.'!$D$33","v":"ifrs-full:IncreaseDecreaseThroughTransfersFromToInvestmentPropertyPropertyPlantAndEquipment"}]
["/*",null,{"$f":"'822100 - Nota. Prop, plan y eq.'!$E$34","v":"Incrementos (disminuciones) por transferencias desde construcciones en proceso , propiedades, planta y equipo"},{"$f":"'822100 - Nota. Prop, plan y eq.'!$D$34","v":"ifrs-full:IncreaseDecreaseThroughTransfersFromConstructionInProgressPropertyPlantAndEquipment"}]
["/*",null,{"$f":"'822100 - Nota. Prop, plan y eq.'!$E$35","v":"Incrementos (disminuciones) por otros cambios, propiedades, planta y equipo"},{"$f":"'822100 - Nota. Prop, plan y eq.'!$D$35","v":"ifrs-full:IncreaseDecreaseThroughOtherChangesPropertyPlantAndEquipment"}]
["",null,{"$f":"'822100 - Nota. Prop, plan y eq.'!$E$36","v":"Total incrementos (disminuciones) por transferencias y otros cambios, propiedades, planta y equipo"},{"$f":"'822100 - Nota. Prop, plan y eq.'!$D$36","v":"ifrs-full:IncreaseDecreaseThroughTransfersAndOtherChangesPropertyPlantAndEquipment"},0,"peso",{"$f":"'822100 - Nota. Prop, plan y eq.'!$X$36","v":0},0,"http://www.xbrl.org/scheme/companyName",{"$f":"Periodos!$C$3","v":"2023-01-01"},{"$f":"Periodos!$C$4","v":"2023-12-31"},{"$f":"'822100 - Nota. Prop, plan y eq.'!$E$14","v":"co-svsp-core:PropiedadesPlantaYEquipoEje_G1"},{"$f":"'822100 - Nota. Prop, plan y eq.'!$X$13","v":"co-svsp-core:CaninosMiembro"}]
["/*",null,{"$f":"'822100 - Nota. Prop, plan y eq.'!$E$37","v":"Disposiciones y retiros de servicio, propiedades, planta y equipo [resumen]"},{"$f":"'822100 - Nota. Prop, plan y eq.'!$D$37","v":"ifrs-full:DisposalsAndRetirementsPropertyPlantAndEquipmentAbstract"}]
["/*",null,{"$f":"'822100 - Nota. Prop, plan y eq.'!$E$38","v":"Disposiciones, propiedades, planta y equipo"},{"$f":"'822100 - Nota. Prop, plan y eq.'!$D$38","v":"ifrs-full:DisposalsPropertyPlantAndEquipment"}]
["/*",null,{"$f":"'822100 - Nota. Prop, plan y eq.'!$E$39","v":"Retiros, propiedades, planta y equipo"},{"$f":"'822100 - Nota. Prop, plan y eq.'!$D$39","v":"ifrs-full:RetirementsPropertyPlantAndEquipment"}]
["",null,{"$f":"'822100 - Nota. Prop, plan y eq.'!$E$40","v":"Total de disposiciones y retiros de servicio, propiedades, planta y equipo"},{"$f":"'822100 - Nota. Prop, plan y eq.'!$D$40","v":"ifrs-full:DisposalsAndRetirementsPropertyPlantAndEquipment"},0,"peso",{"$f":"'822100 - Nota. Prop, plan y eq.'!$X$40","v":0},0,"http://www.xbrl.org/scheme/companyName",{"$f":"Periodos!$C$3","v":"2023-01-01"},{"$f":"Periodos!$C$4","v":"2023-12-31"},{"$f":"'822100 - Nota. Prop, plan y eq.'!$E$14","v":"co-svsp-core:PropiedadesPlantaYEquipoEje_G1"},{"$f":"'822100 - Nota. Prop, plan y eq.'!$X$13","v":"co-svsp-core:CaninosMiembro"}]
["/*",null,{"$f":"'822100 - Nota. Prop, plan y eq.'!$E$41","v":"Disminuciones por clasificar como mantenidos para la venta, propiedades, planta y equipo"},{"$f":"'822100 - Nota. Prop, plan y eq.'!$D$41","v":"ifrs-full:DecreaseThroughClassifiedAsHeldForSalePropertyPlantAndEquipment"}]
["",null,{"$f":"'822100 - Nota. Prop, plan y eq.'!$E$42","v":"Total incremento (disminución) en propiedades, planta y equipo"},{"$f":"'822100 - Nota. Prop, plan y eq.'!$D$42","v":"ifrs-full:ChangesInPropertyPlantAndEquipment"},0,"peso",{"$f":"'822100 - Nota. Prop, plan y eq.'!$X$42","v":0},0,"http://www.xbrl.org/scheme/companyName",{"$f":"Periodos!$C$3","v":"2023-01-01"},{"$f":"Periodos!$C$4","v":"2023-12-31"},{"$f":"'822100 - Nota. Prop, plan y eq.'!$E$14","v":"co-svsp-core:PropiedadesPlantaYEquipoEje_G1"},{"$f":"'822100 - Nota. Prop, plan y eq.'!$X$13","v":"co-svsp-core:CaninosMiembro"}]
["",null,{"$f":"'822100 - Nota. Prop, plan y eq.'!$E$43","v":"Propiedades, planta y equipo al final del periodo"},{"$f":"'822100 - Nota. Prop, plan y eq.'!$D$43","v":"ifrs-full:PropertyPlantAndEquipment"},0,"peso",{"$f":"'822100 - Nota. Prop, plan y eq.'!$X$43","v":0},0,"http://www.xbrl.org/scheme/companyName",null,{"$f":"Periodos!$C$4","v":"2023-12-31"},{"$f":"'822100 - Nota. Prop, plan y eq.'!$E$14","v":"co-svsp-core:PropiedadesPlantaYEquipoEje_G1"},{"$f":"'822100 - Nota. Prop, plan y eq.'!$X$13","v":"co-svsp-core:CaninosMiembro"}]
["/*",null,"--20--"]
["/*",null,{"$f":"'822100 - Nota. Prop, plan y eq.'!$E$15","v":"Información a revelar detallada sobre propiedades, planta y equipo [partidas de los estados financieros]"},{"$f":"'822100 - Nota. Prop, plan y eq.'!$D$15","v":"ifrs-full:DisclosureOfPropertyPlantAndEquipmentLineItems"}]
["/*",null,{"$f":"'822100 - Nota. Prop, plan y eq.'!$E$16","v":"Bases de medición, propiedades, planta y equipo"},{"$f":"'822100 - Nota. Prop, plan y eq.'!$D$16","v":"ifrs-full:MeasurementBasesPropertyPlantAndEquipment"}]
["/*",null,{"$f":"'822100 - Nota. Prop, plan y eq.'!$E$17","v":"Método de depreciación, propiedades, planta y equipo"},{"$f":"'822100 - Nota. Prop, plan y eq.'!$D$17","v":"ifrs-full:DepreciationMethodPropertyPlantAndEquipment"}]
["/*",null,{"$f":"'822100 - Nota. Prop, plan y eq.'!$E$18","v":"Fechas de vigencia de revaluación, propiedades, planta y equipo"},{"$f":"'822100 - Nota. Prop, plan y eq.'!$D$18","v":"ifrs-full:EffectiveDatesOfRevaluationPropertyPlantAndEquipment"}]
["/*",null,{"$f":"'822100 - Nota. Prop, plan y eq.'!$E$19","v":"Explicación de la implicación del tasador independiente en la revaluación, propiedades, planta y equipo"},{"$f":"'822100 - Nota. Prop, plan y eq.'!$D$19","v":"ifrs-full:ExplanationOfIndependentValuerUsedForRevaluationPropertyPlantAndEquipment"}]
["/*",null,{"$f":"'822100 - Nota. Prop, plan y eq.'!$E$20","v":"Explicación del método de revaluación y supuestos significativos, propiedad, planta y equipo"},{"$f":"'822100 - Nota. Prop, plan y eq.'!$D$20","v":"co-svsp-core:ExplanationOfRevaluationMethodsAndSignificantAssumptionsPropertyPlantAndEquipment"}]
["/*",null,{"$f":"'822100 - Nota. Prop, plan y eq.'!$E$21","v":"Conciliación de cambios en propiedades, planta y equipo [resumen]"},{"$f":"'822100 - Nota. Prop, plan y eq.'!$D$21","v":"ifrs-full:ReconciliationOfChangesInPropertyPlantAndEquipmentAbstract"}]
["/*",null,{"$f":"'822100 - Nota. Prop, plan y eq.'!$E$22","v":"Propiedades, planta y equipo al comienzo del periodo"},{"$f":"'822100 - Nota. Prop, plan y eq.'!$D$22","v":"ifrs-full:PropertyPlantAndEquipment"}]
["/*",null,{"$f":"'822100 - Nota. Prop, plan y eq.'!$E$23","v":"Cambios en propiedades, planta y equipo [resumen]"},{"$f":"'822100 - Nota. Prop, plan y eq.'!$D$23","v":"ifrs-full:ChangesInPropertyPlantAndEquipmentAbstract"}]
["/*",null,{"$f":"'822100 - Nota. Prop, plan y eq.'!$E$24","v":"Incrementos distintos de los procedentes de combinaciones de negocios, propiedades, planta y equipo"},{"$f":"'822100 - Nota. Prop, plan y eq.'!$D$24","v":"ifrs-full:AdditionsOtherThanThroughBusinessCombinationsPropertyPlantAndEquipment"}]
["/*",null,{"$f":"'822100 - Nota. Prop, plan y eq.'!$E$25","v":"Adquisiciones realizadas mediante combinaciones de negocios, propiedades, planta y equipo"},{"$f":"'822100 - Nota. Prop, plan y eq.'!$D$25","v":"ifrs-full:AcquisitionsThroughBusinessCombinationsPropertyPlantAndEquipment"}]
["/*",null,{"$f":"'822100 - Nota. Prop, plan y eq.'!$E$26","v":"Depreciación, propiedades, planta y equipo"},{"$f":"'822100 - Nota. Prop, plan y eq.'!$D$26","v":"ifrs-full:DepreciationPropertyPlantAndEquipment"}]
["/*",null,{"$f":"'822100 - Nota. Prop, plan y eq.'!$E$27","v":"Pérdidas por deterioro de valor reconocidas en el resultado del periodo, propiedades, planta y equipo"},{"$f":"'822100 - Nota. Prop, plan y eq.'!$D$27","v":"ifrs-full:ImpairmentLossRecognisedInProfitOrLossPropertyPlantAndEquipment"}]
[{"$f":"IF(G5600=\"\",\"/*\",\"\")","v":"/*"},null,{"$f":"'822100 - Nota. Prop, plan y eq.'!$E$28","v":"Reversión de pérdidas por deterioro de valor reconocidas en el resultado del periodo, propiedades, planta y equipo"},{"$f":"'822100 - Nota. Prop, plan y eq.'!$D$28","v":"ifrs-full:ReversalOfImpairmentLossRecognisedInProfitOrLossPropertyPlantAndEquipment"}]
["/*",null,{"$f":"'822100 - Nota. Prop, plan y eq.'!$E$29","v":"Incrementos (disminuciones) de revaluaciones, propiedades, planta y equipo"},{"$f":"'822100 - Nota. Prop, plan y eq.'!$D$29","v":"ifrs-full:RevaluationIncreaseDecreasePropertyPlantAndEquipment"}]
["/*",null,{"$f":"'822100 - Nota. Prop, plan y eq.'!$E$30","v":"Pérdidas por deterioro de valor reconocidas en otro resultado integral, propiedades, planta y equipo"},{"$f":"'822100 - Nota. Prop, plan y eq.'!$D$30","v":"ifrs-full:ImpairmentLossRecognisedInOtherComprehensiveIncomePropertyPlantAndEquipment"}]
["/*",null,{"$f":"'822100 - Nota. Prop, plan y eq.'!$E$31","v":"Reversión de pérdidas por deterioro de valor reconocidas en otro resultado integral, propiedades, planta y equipo"},{"$f":"'822100 - Nota. Prop, plan y eq.'!$D$31","v":"ifrs-full:ReversalOfImpairmentLossRecognisedInOtherComprehensiveIncomePropertyPlantAndEquipment"}]
["/*",null,{"$f":"'822100 - Nota. Prop, plan y eq.'!$E$32","v":"Incrementos (disminuciones) por transferencias y otros cambios, propiedades, planta y equipo [resumen]"},{"$f":"'822100 - Nota. Prop, plan y eq.'!$D$32","v":"ifrs-full:IncreaseDecreaseThroughTransfersAndOtherChangesPropertyPlantAndEquipmentAbstract"}]
["/*",null,{"$f":"'822100 - Nota. Prop, plan y eq.'!$E$33","v":"Incrementos (disminuciones) por transferencias desde (hacia) propiedades de inversión, propiedades, planta y equipo"},{"$f":"'822100 - Nota. Prop, plan y eq.'!$D$33","v":"ifrs-full:IncreaseDecreaseThroughTransfersFromToInvestmentPropertyPropertyPlantAndEquipment"}]
["/*",null,{"$f":"'822100 - Nota. Prop, plan y eq.'!$E$34","v":"Incrementos (disminuciones) por transferencias desde construcciones en proceso , propiedades, planta y equipo"},{"$f":"'822100 - Nota. Prop, plan y eq.'!$D$34","v":"ifrs-full:IncreaseDecreaseThroughTransfersFromConstructionInProgressPropertyPlantAndEquipment"}]
["/*",null,{"$f":"'822100 - Nota. Prop, plan y eq.'!$E$35","v":"Incrementos (disminuciones) por otros cambios, propiedades, planta y equipo"},{"$f":"'822100 - Nota. Prop, plan y eq.'!$D$35","v":"ifrs-full:IncreaseDecreaseThroughOtherChangesPropertyPlantAndEquipment"}]
["",null,{"$f":"'822100 - Nota. Prop, plan y eq.'!$E$36","v":"Total incrementos (disminuciones) por transferencias y otros cambios, propiedades, planta y equipo"},{"$f":"'822100 - Nota. Prop, plan y eq.'!$D$36","v":"ifrs-full:IncreaseDecreaseThroughTransfersAndOtherChangesPropertyPlantAndEquipment"},0,"peso",{"$f":"'822100 - Nota. Prop, plan y eq.'!$Y$36","v":0},0,"http://www.xbrl.org/scheme/companyName",{"$f":"Periodos!$C$3","v":"2023-01-01"},{"$f":"Periodos!$C$4","v":"2023-12-31"},{"$f":"'822100 - Nota. Prop, plan y eq.'!$E$14","v":"co-svsp-core:PropiedadesPlantaYEquipoEje_G1"},{"$f":"'822100 - Nota. Prop, plan y eq.'!$Y$13","v":"co-svsp-core:EquinosMiembro"}]
["/*",null,{"$f":"'822100 - Nota. Prop, plan y eq.'!$E$37","v":"Disposiciones y retiros de servicio, propiedades, planta y equipo [resumen]"},{"$f":"'822100 - Nota. Prop, plan y eq.'!$D$37","v":"ifrs-full:DisposalsAndRetirementsPropertyPlantAndEquipmentAbstract"}]
["/*",null,{"$f":"'822100 - Nota. Prop, plan y eq.'!$E$38","v":"Disposiciones, propiedades, planta y equipo"},{"$f":"'822100 - Nota. Prop, plan y eq.'!$D$38","v":"ifrs-full:DisposalsPropertyPlantAndEquipment"}]
["/*",null,{"$f":"'822100 - Nota. Prop, plan y eq.'!$E$39","v":"Retiros, propiedades, planta y equipo"},{"$f":"'822100 - Nota. Prop, plan y eq.'!$D$39","v":"ifrs-full:RetirementsPropertyPlantAndEquipment"}]
["",null,{"$f":"'822100 - Nota. Prop, plan y eq.'!$E$40","v":"Total de disposiciones y retiros de servicio, propiedades, planta y equipo"},{"$f":"'822100 - Nota. Prop, plan y eq.'!$D$40","v":"ifrs-full:DisposalsAndRetirementsPropertyPlantAndEquipment"},0,"peso",{"$f":"'822100 - Nota. Prop, plan y eq.'!$Y$40","v":0},0,"http://www.xbrl.org/scheme/companyName",{"$f":"Periodos!$C$3","v":"2023-01-01"},{"$f":"Periodos!$C$4","v":"2023-12-31"},{"$f":"'822100 - Nota. Prop, plan y eq.'!$E$14","v":"co-svsp-core:PropiedadesPlantaYEquipoEje_G1"},{"$f":"'822100 - Nota. Prop, plan y eq.'!$Y$13","v":"co-svsp-core:EquinosMiembro"}]
["/*",null,{"$f":"'822100 - Nota. Prop, plan y eq.'!$E$41","v":"Disminuciones por clasificar como mantenidos para la venta, propiedades, planta y equipo"},{"$f":"'822100 - Nota. Prop, plan y eq.'!$D$41","v":"ifrs-full:DecreaseThroughClassifiedAsHeldForSalePropertyPlantAndEquipment"}]
["",null,{"$f":"'822100 - Nota. Prop, plan y eq.'!$E$42","v":"Total incremento (disminución) en propiedades, planta y equipo"},{"$f":"'822100 - Nota. Prop, plan y eq.'!$D$42","v":"ifrs-full:ChangesInPropertyPlantAndEquipment"},0,"peso",{"$f":"'822100 - Nota. Prop, plan y eq.'!$Y$42","v":0},0,"http://www.xbrl.org/scheme/companyName",{"$f":"Periodos!$C$3","v":"2023-01-01"},{"$f":"Periodos!$C$4","v":"2023-12-31"},{"$f":"'822100 - Nota. Prop, plan y eq.'!$E$14","v":"co-svsp-core:PropiedadesPlantaYEquipoEje_G1"},{"$f":"'822100 - Nota. Prop, plan y eq.'!$Y$13","v":"co-svsp-core:EquinosMiembro"}]
["",null,{"$f":"'822100 - Nota. Prop, plan y eq.'!$E$43","v":"Propiedades, planta y equipo al final del periodo"},{"$f":"'822100 - Nota. Prop, plan y eq.'!$D$43","v":"ifrs-full:PropertyPlantAndEquipment"},0,"peso",{"$f":"'822100 - Nota. Prop, plan y eq.'!$Y$43","v":0},0,"http://www.xbrl.org/scheme/companyName",null,{"$f":"Periodos!$C$4","v":"2023-12-31"},{"$f":"'822100 - Nota. Prop, plan y eq.'!$E$14","v":"co-svsp-core:PropiedadesPlantaYEquipoEje_G1"},{"$f":"'822100 - Nota. Prop, plan y eq.'!$Y$13","v":"co-svsp-core:EquinosMiembro"}]
["/*",null,"--21--"]
["/*",null,{"$f":"'822100 - Nota. Prop, plan y eq.'!$E$15","v":"Información a revelar detallada sobre propiedades, planta y equipo [partidas de los estados financieros]"},{"$f":"'822100 - Nota. Prop, plan y eq.'!$D$15","v":"ifrs-full:DisclosureOfPropertyPlantAndEquipmentLineItems"}]
["/*",null,{"$f":"'822100 - Nota. Prop, plan y eq.'!$E$16","v":"Bases de medición, propiedades, planta y equipo"},{"$f":"'822100 - Nota. Prop, plan y eq.'!$D$16","v":"ifrs-full:MeasurementBasesPropertyPlantAndEquipment"}]
["/*",null,{"$f":"'822100 - Nota. Prop, plan y eq.'!$E$17","v":"Método de depreciación, propiedades, planta y equipo"},{"$f":"'822100 - Nota. Prop, plan y eq.'!$D$17","v":"ifrs-full:DepreciationMethodPropertyPlantAndEquipment"}]
["/*",null,{"$f":"'822100 - Nota. Prop, plan y eq.'!$E$18","v":"Fechas de vigencia de revaluación, propiedades, planta y equipo"},{"$f":"'822100 - Nota. Prop, plan y eq.'!$D$18","v":"ifrs-full:EffectiveDatesOfRevaluationPropertyPlantAndEquipment"}]
["/*",null,{"$f":"'822100 - Nota. Prop, plan y eq.'!$E$19","v":"Explicación de la implicación del tasador independiente en la revaluación, propiedades, planta y equipo"},{"$f":"'822100 - Nota. Prop, plan y eq.'!$D$19","v":"ifrs-full:ExplanationOfIndependentValuerUsedForRevaluationPropertyPlantAndEquipment"}]
["/*",null,{"$f":"'822100 - Nota. Prop, plan y eq.'!$E$20","v":"Explicación del método de revaluación y supuestos significativos, propiedad, planta y equipo"},{"$f":"'822100 - Nota. Prop, plan y eq.'!$D$20","v":"co-svsp-core:ExplanationOfRevaluationMethodsAndSignificantAssumptionsPropertyPlantAndEquipment"}]
["/*",null,{"$f":"'822100 - Nota. Prop, plan y eq.'!$E$21","v":"Conciliación de cambios en propiedades, planta y equipo [resumen]"},{"$f":"'822100 - Nota. Prop, plan y eq.'!$D$21","v":"ifrs-full:ReconciliationOfChangesInPropertyPlantAndEquipmentAbstract"}]
["/*",null,{"$f":"'822100 - Nota. Prop, plan y eq.'!$E$22","v":"Propiedades, planta y equipo al comienzo del periodo"},{"$f":"'822100 - Nota. Prop, plan y eq.'!$D$22","v":"ifrs-full:PropertyPlantAndEquipment"}]
["/*",null,{"$f":"'822100 - Nota. Prop, plan y eq.'!$E$23","v":"Cambios en propiedades, planta y equipo [resumen]"},{"$f":"'822100 - Nota. Prop, plan y eq.'!$D$23","v":"ifrs-full:ChangesInPropertyPlantAndEquipmentAbstract"}]
["/*",null,{"$f":"'822100 - Nota. Prop, plan y eq.'!$E$24","v":"Incrementos distintos de los procedentes de combinaciones de negocios, propiedades, planta y equipo"},{"$f":"'822100 - Nota. Prop, plan y eq.'!$D$24","v":"ifrs-full:AdditionsOtherThanThroughBusinessCombinationsPropertyPlantAndEquipment"}]
["/*",null,{"$f":"'822100 - Nota. Prop, plan y eq.'!$E$25","v":"Adquisiciones realizadas mediante combinaciones de negocios, propiedades, planta y equipo"},{"$f":"'822100 - Nota. Prop, plan y eq.'!$D$25","v":"ifrs-full:AcquisitionsThroughBusinessCombinationsPropertyPlantAndEquipment"}]
["/*",null,{"$f":"'822100 - Nota. Prop, plan y eq.'!$E$26","v":"Depreciación, propiedades, planta y equipo"},{"$f":"'822100 - Nota. Prop, plan y eq.'!$D$26","v":"ifrs-full:DepreciationPropertyPlantAndEquipment"}]
["/*",null,{"$f":"'822100 - Nota. Prop, plan y eq.'!$E$27","v":"Pérdidas por deterioro de valor reconocidas en el resultado del periodo, propiedades, planta y equipo"},{"$f":"'822100 - Nota. Prop, plan y eq.'!$D$27","v":"ifrs-full:ImpairmentLossRecognisedInProfitOrLossPropertyPlantAndEquipment"}]
["/*",null,{"$f":"'822100 - Nota. Prop, plan y eq.'!$E$28","v":"Reversión de pérdidas por deterioro de valor reconocidas en el resultado del periodo, propiedades, planta y equipo"},{"$f":"'822100 - Nota. Prop, plan y eq.'!$D$28","v":"ifrs-full:ReversalOfImpairmentLossRecognisedInProfitOrLossPropertyPlantAndEquipment"}]
["/*",null,{"$f":"'822100 - Nota. Prop, plan y eq.'!$E$29","v":"Incrementos (disminuciones) de revaluaciones, propiedades, planta y equipo"},{"$f":"'822100 - Nota. Prop, plan y eq.'!$D$29","v":"ifrs-full:RevaluationIncreaseDecreasePropertyPlantAndEquipment"}]
["/*",null,{"$f":"'822100 - Nota. Prop, plan y eq.'!$E$30","v":"Pérdidas por deterioro de valor reconocidas en otro resultado integral, propiedades, planta y equipo"},{"$f":"'822100 - Nota. Prop, plan y eq.'!$D$30","v":"ifrs-full:ImpairmentLossRecognisedInOtherComprehensiveIncomePropertyPlantAndEquipment"}]
["/*",null,{"$f":"'822100 - Nota. Prop, plan y eq.'!$E$31","v":"Reversión de pérdidas por deterioro de valor reconocidas en otro resultado integral, propiedades, planta y equipo"},{"$f":"'822100 - Nota. Prop, plan y eq.'!$D$31","v":"ifrs-full:ReversalOfImpairmentLossRecognisedInOtherComprehensiveIncomePropertyPlantAndEquipment"}]
["/*",null,{"$f":"'822100 - Nota. Prop, plan y eq.'!$E$32","v":"Incrementos (disminuciones) por transferencias y otros cambios, propiedades, planta y equipo [resumen]"},{"$f":"'822100 - Nota. Prop, plan y eq.'!$D$32","v":"ifrs-full:IncreaseDecreaseThroughTransfersAndOtherChangesPropertyPlantAndEquipmentAbstract"}]
["/*",null,{"$f":"'822100 - Nota. Prop, plan y eq.'!$E$33","v":"Incrementos (disminuciones) por transferencias desde (hacia) propiedades de inversión, propiedades, planta y equipo"},{"$f":"'822100 - Nota. Prop, plan y eq.'!$D$33","v":"ifrs-full:IncreaseDecreaseThroughTransfersFromToInvestmentPropertyPropertyPlantAndEquipment"}]
["/*",null,{"$f":"'822100 - Nota. Prop, plan y eq.'!$E$34","v":"Incrementos (disminuciones) por transferencias desde construcciones en proceso , propiedades, planta y equipo"},{"$f":"'822100 - Nota. Prop, plan y eq.'!$D$34","v":"ifrs-full:IncreaseDecreaseThroughTransfersFromConstructionInProgressPropertyPlantAndEquipment"}]
["/*",null,{"$f":"'822100 - Nota. Prop, plan y eq.'!$E$35","v":"Incrementos (disminuciones) por otros cambios, propiedades, planta y equipo"},{"$f":"'822100 - Nota. Prop, plan y eq.'!$D$35","v":"ifrs-full:IncreaseDecreaseThroughOtherChangesPropertyPlantAndEquipment"}]
["",null,{"$f":"'822100 - Nota. Prop, plan y eq.'!$E$36","v":"Total incrementos (disminuciones) por transferencias y otros cambios, propiedades, planta y equipo"},{"$f":"'822100 - Nota. Prop, plan y eq.'!$D$36","v":"ifrs-full:IncreaseDecreaseThroughTransfersAndOtherChangesPropertyPlantAndEquipment"},0,"peso",{"$f":"'822100 - Nota. Prop, plan y eq.'!$Z$36","v":0},0,"http://www.xbrl.org/scheme/companyName",{"$f":"Periodos!$C$3","v":"2023-01-01"},{"$f":"Periodos!$C$4","v":"2023-12-31"},{"$f":"'822100 - Nota. Prop, plan y eq.'!$E$14","v":"co-svsp-core:PropiedadesPlantaYEquipoEje_G1"},{"$f":"'822100 - Nota. Prop, plan y eq.'!$Z$13","v":"co-svsp-core:AnimalesMiembro"}]
["/*",null,{"$f":"'822100 - Nota. Prop, plan y eq.'!$E$37","v":"Disposiciones y retiros de servicio, propiedades, planta y equipo [resumen]"},{"$f":"'822100 - Nota. Prop, plan y eq.'!$D$37","v":"ifrs-full:DisposalsAndRetirementsPropertyPlantAndEquipmentAbstract"}]
["/*",null,{"$f":"'822100 - Nota. Prop, plan y eq.'!$E$38","v":"Disposiciones, propiedades, planta y equipo"},{"$f":"'822100 - Nota. Prop, plan y eq.'!$D$38","v":"ifrs-full:DisposalsPropertyPlantAndEquipment"}]
["/*",null,{"$f":"'822100 - Nota. Prop, plan y eq.'!$E$39","v":"Retiros, propiedades, planta y equipo"},{"$f":"'822100 - Nota. Prop, plan y eq.'!$D$39","v":"ifrs-full:RetirementsPropertyPlantAndEquipment"}]
["",null,{"$f":"'822100 - Nota. Prop, plan y eq.'!$E$40","v":"Total de disposiciones y retiros de servicio, propiedades, planta y equipo"},{"$f":"'822100 - Nota. Prop, plan y eq.'!$D$40","v":"ifrs-full:DisposalsAndRetirementsPropertyPlantAndEquipment"},0,"peso",{"$f":"'822100 - Nota. Prop, plan y eq.'!$Z$40","v":0},0,"http://www.xbrl.org/scheme/companyName",{"$f":"Periodos!$C$3","v":"2023-01-01"},{"$f":"Periodos!$C$4","v":"2023-12-31"},{"$f":"'822100 - Nota. Prop, plan y eq.'!$E$14","v":"co-svsp-core:PropiedadesPlantaYEquipoEje_G1"},{"$f":"'822100 - Nota. Prop, plan y eq.'!$Z$13","v":"co-svsp-core:AnimalesMiembro"}]
["/*",null,{"$f":"'822100 - Nota. Prop, plan y eq.'!$E$41","v":"Disminuciones por clasificar como mantenidos para la venta, propiedades, planta y equipo"},{"$f":"'822100 - Nota. Prop, plan y eq.'!$D$41","v":"ifrs-full:DecreaseThroughClassifiedAsHeldForSalePropertyPlantAndEquipment"}]
["",null,{"$f":"'822100 - Nota. Prop, plan y eq.'!$E$42","v":"Total incremento (disminución) en propiedades, planta y equipo"},{"$f":"'822100 - Nota. Prop, plan y eq.'!$D$42","v":"ifrs-full:ChangesInPropertyPlantAndEquipment"},0,"peso",{"$f":"'822100 - Nota. Prop, plan y eq.'!$Z$42","v":0},0,"http://www.xbrl.org/scheme/companyName",{"$f":"Periodos!$C$3","v":"2023-01-01"},{"$f":"Periodos!$C$4","v":"2023-12-31"},{"$f":"'822100 - Nota. Prop, plan y eq.'!$E$14","v":"co-svsp-core:PropiedadesPlantaYEquipoEje_G1"},{"$f":"'822100 - Nota. Prop, plan y eq.'!$Z$13","v":"co-svsp-core:AnimalesMiembro"}]
["",null,{"$f":"'822100 - Nota. Prop, plan y eq.'!$E$43","v":"Propiedades, planta y equipo al final del periodo"},{"$f":"'822100 - Nota. Prop, plan y eq.'!$D$43","v":"ifrs-full:PropertyPlantAndEquipment"},0,"peso",{"$f":"'822100 - Nota. Prop, plan y eq.'!$Z$43","v":0},0,"http://www.xbrl.org/scheme/companyName",null,{"$f":"Periodos!$C$4","v":"2023-12-31"},{"$f":"'822100 - Nota. Prop, plan y eq.'!$E$14","v":"co-svsp-core:PropiedadesPlantaYEquipoEje_G1"},{"$f":"'822100 - Nota. Prop, plan y eq.'!$Z$13","v":"co-svsp-core:AnimalesMiembro"}]
["/*",null,"--22--"]
["/*",null,{"$f":"'822100 - Nota. Prop, plan y eq.'!$E$15","v":"Información a revelar detallada sobre propiedades, planta y equipo [partidas de los estados financieros]"},{"$f":"'822100 - Nota. Prop, plan y eq.'!$D$15","v":"ifrs-full:DisclosureOfPropertyPlantAndEquipmentLineItems"}]
["/*",null,{"$f":"'822100 - Nota. Prop, plan y eq.'!$E$16","v":"Bases de medición, propiedades, planta y equipo"},{"$f":"'822100 - Nota. Prop, plan y eq.'!$D$16","v":"ifrs-full:MeasurementBasesPropertyPlantAndEquipment"}]
["/*",null,{"$f":"'822100 - Nota. Prop, plan y eq.'!$E$17","v":"Método de depreciación, propiedades, planta y equipo"},{"$f":"'822100 - Nota. Prop, plan y eq.'!$D$17","v":"ifrs-full:DepreciationMethodPropertyPlantAndEquipment"}]
["/*",null,{"$f":"'822100 - Nota. Prop, plan y eq.'!$E$18","v":"Fechas de vigencia de revaluación, propiedades, planta y equipo"},{"$f":"'822100 - Nota. Prop, plan y eq.'!$D$18","v":"ifrs-full:EffectiveDatesOfRevaluationPropertyPlantAndEquipment"}]
["/*",null,{"$f":"'822100 - Nota. Prop, plan y eq.'!$E$19","v":"Explicación de la implicación del tasador independiente en la revaluación, propiedades, planta y equipo"},{"$f":"'822100 - Nota. Prop, plan y eq.'!$D$19","v":"ifrs-full:ExplanationOfIndependentValuerUsedForRevaluationPropertyPlantAndEquipment"}]
["/*",null,{"$f":"'822100 - Nota. Prop, plan y eq.'!$E$20","v":"Explicación del método de revaluación y supuestos significativos, propiedad, planta y equipo"},{"$f":"'822100 - Nota. Prop, plan y eq.'!$D$20","v":"co-svsp-core:ExplanationOfRevaluationMethodsAndSignificantAssumptionsPropertyPlantAndEquipment"}]
["/*",null,{"$f":"'822100 - Nota. Prop, plan y eq.'!$E$21","v":"Conciliación de cambios en propiedades, planta y equipo [resumen]"},{"$f":"'822100 - Nota. Prop, plan y eq.'!$D$21","v":"ifrs-full:ReconciliationOfChangesInPropertyPlantAndEquipmentAbstract"}]
["/*",null,{"$f":"'822100 - Nota. Prop, plan y eq.'!$E$22","v":"Propiedades, planta y equipo al comienzo del periodo"},{"$f":"'822100 - Nota. Prop, plan y eq.'!$D$22","v":"ifrs-full:PropertyPlantAndEquipment"}]
["/*",null,{"$f":"'822100 - Nota. Prop, plan y eq.'!$E$23","v":"Cambios en propiedades, planta y equipo [resumen]"},{"$f":"'822100 - Nota. Prop, plan y eq.'!$D$23","v":"ifrs-full:ChangesInPropertyPlantAndEquipmentAbstract"}]
["/*",null,{"$f":"'822100 - Nota. Prop, plan y eq.'!$E$24","v":"Incrementos distintos de los procedentes de combinaciones de negocios, propiedades, planta y equipo"},{"$f":"'822100 - Nota. Prop, plan y eq.'!$D$24","v":"ifrs-full:AdditionsOtherThanThroughBusinessCombinationsPropertyPlantAndEquipment"}]
["/*",null,{"$f":"'822100 - Nota. Prop, plan y eq.'!$E$25","v":"Adquisiciones realizadas mediante combinaciones de negocios, propiedades, planta y equipo"},{"$f":"'822100 - Nota. Prop, plan y eq.'!$D$25","v":"ifrs-full:AcquisitionsThroughBusinessCombinationsPropertyPlantAndEquipment"}]
["/*",null,{"$f":"'822100 - Nota. Prop, plan y eq.'!$E$26","v":"Depreciación, propiedades, planta y equipo"},{"$f":"'822100 - Nota. Prop, plan y eq.'!$D$26","v":"ifrs-full:DepreciationPropertyPlantAndEquipment"}]
["/*",null,{"$f":"'822100 - Nota. Prop, plan y eq.'!$E$27","v":"Pérdidas por deterioro de valor reconocidas en el resultado del periodo, propiedades, planta y equipo"},{"$f":"'822100 - Nota. Prop, plan y eq.'!$D$27","v":"ifrs-full:ImpairmentLossRecognisedInProfitOrLossPropertyPlantAndEquipment"}]
["/*",null,{"$f":"'822100 - Nota. Prop, plan y eq.'!$E$28","v":"Reversión de pérdidas por deterioro de valor reconocidas en el resultado del periodo, propiedades, planta y equipo"},{"$f":"'822100 - Nota. Prop, plan y eq.'!$D$28","v":"ifrs-full:ReversalOfImpairmentLossRecognisedInProfitOrLossPropertyPlantAndEquipment"}]
["/*",null,{"$f":"'822100 - Nota. Prop, plan y eq.'!$E$29","v":"Incrementos (disminuciones) de revaluaciones, propiedades, planta y equipo"},{"$f":"'822100 - Nota. Prop, plan y eq.'!$D$29","v":"ifrs-full:RevaluationIncreaseDecreasePropertyPlantAndEquipment"}]
["/*",null,{"$f":"'822100 - Nota. Prop, plan y eq.'!$E$30","v":"Pérdidas por deterioro de valor reconocidas en otro resultado integral, propiedades, planta y equipo"},{"$f":"'822100 - Nota. Prop, plan y eq.'!$D$30","v":"ifrs-full:ImpairmentLossRecognisedInOtherComprehensiveIncomePropertyPlantAndEquipment"}]
["/*",null,{"$f":"'822100 - Nota. Prop, plan y eq.'!$E$31","v":"Reversión de pérdidas por deterioro de valor reconocidas en otro resultado integral, propiedades, planta y equipo"},{"$f":"'822100 - Nota. Prop, plan y eq.'!$D$31","v":"ifrs-full:ReversalOfImpairmentLossRecognisedInOtherComprehensiveIncomePropertyPlantAndEquipment"}]
[{"$f":"IF(G5664=\"\",\"/*\",\"\")","v":"/*"},null,{"$f":"'822100 - Nota. Prop, plan y eq.'!$E$32","v":"Incrementos (disminuciones) por transferencias y otros cambios, propiedades, planta y equipo [resumen]"},{"$f":"'822100 - Nota. Prop, plan y eq.'!$D$32","v":"ifrs-full:IncreaseDecreaseThroughTransfersAndOtherChangesPropertyPlantAndEquipmentAbstract"}]
["/*",null,{"$f":"'822100 - Nota. Prop, plan y eq.'!$E$33","v":"Incrementos (disminuciones) por transferencias desde (hacia) propiedades de inversión, propiedades, planta y equipo"},{"$f":"'822100 - Nota. Prop, plan y eq.'!$D$33","v":"ifrs-full:IncreaseDecreaseThroughTransfersFromToInvestmentPropertyPropertyPlantAndEquipment"}]
["/*",null,{"$f":"'822100 - Nota. Prop, plan y eq.'!$E$34","v":"Incrementos (disminuciones) por transferencias desde construcciones en proceso , propiedades, planta y equipo"},{"$f":"'822100 - Nota. Prop, plan y eq.'!$D$34","v":"ifrs-full:IncreaseDecreaseThroughTransfersFromConstructionInProgressPropertyPlantAndEquipment"}]
["/*",null,{"$f":"'822100 - Nota. Prop, plan y eq.'!$E$35","v":"Incrementos (disminuciones) por otros cambios, propiedades, planta y equipo"},{"$f":"'822100 - Nota. Prop, plan y eq.'!$D$35","v":"ifrs-full:IncreaseDecreaseThroughOtherChangesPropertyPlantAndEquipment"}]
["",null,{"$f":"'822100 - Nota. Prop, plan y eq.'!$E$36","v":"Total incrementos (disminuciones) por transferencias y otros cambios, propiedades, planta y equipo"},{"$f":"'822100 - Nota. Prop, plan y eq.'!$D$36","v":"ifrs-full:IncreaseDecreaseThroughTransfersAndOtherChangesPropertyPlantAndEquipment"},0,"peso",{"$f":"'822100 - Nota. Prop, plan y eq.'!$AA$36","v":0},0,"http://www.xbrl.org/scheme/companyName",{"$f":"Periodos!$C$3","v":"2023-01-01"},{"$f":"Periodos!$C$4","v":"2023-12-31"},{"$f":"'822100 - Nota. Prop, plan y eq.'!$E$14","v":"co-svsp-core:PropiedadesPlantaYEquipoEje_G1"},{"$f":"'822100 - Nota. Prop, plan y eq.'!$AA$13","v":"co-svsp-core:Otras_PPE"}]
["/*",null,{"$f":"'822100 - Nota. Prop, plan y eq.'!$E$37","v":"Disposiciones y retiros de servicio, propiedades, planta y equipo [resumen]"},{"$f":"'822100 - Nota. Prop, plan y eq.'!$D$37","v":"ifrs-full:DisposalsAndRetirementsPropertyPlantAndEquipmentAbstract"}]
["/*",null,{"$f":"'822100 - Nota. Prop, plan y eq.'!$E$38","v":"Disposiciones, propiedades, planta y equipo"},{"$f":"'822100 - Nota. Prop, plan y eq.'!$D$38","v":"ifrs-full:DisposalsPropertyPlantAndEquipment"}]
["/*",null,{"$f":"'822100 - Nota. Prop, plan y eq.'!$E$39","v":"Retiros, propiedades, planta y equipo"},{"$f":"'822100 - Nota. Prop, plan y eq.'!$D$39","v":"ifrs-full:RetirementsPropertyPlantAndEquipment"}]
["",null,{"$f":"'822100 - Nota. Prop, plan y eq.'!$E$40","v":"Total de disposiciones y retiros de servicio, propiedades, planta y equipo"},{"$f":"'822100 - Nota. Prop, plan y eq.'!$D$40","v":"ifrs-full:DisposalsAndRetirementsPropertyPlantAndEquipment"},0,"peso",{"$f":"'822100 - Nota. Prop, plan y eq.'!$AA$40","v":0},0,"http://www.xbrl.org/scheme/companyName",{"$f":"Periodos!$C$3","v":"2023-01-01"},{"$f":"Periodos!$C$4","v":"2023-12-31"},{"$f":"'822100 - Nota. Prop, plan y eq.'!$E$14","v":"co-svsp-core:PropiedadesPlantaYEquipoEje_G1"},{"$f":"'822100 - Nota. Prop, plan y eq.'!$AA$13","v":"co-svsp-core:Otras_PPE"}]
["/*",null,{"$f":"'822100 - Nota. Prop, plan y eq.'!$E$41","v":"Disminuciones por clasificar como mantenidos para la venta, propiedades, planta y equipo"},{"$f":"'822100 - Nota. Prop, plan y eq.'!$D$41","v":"ifrs-full:DecreaseThroughClassifiedAsHeldForSalePropertyPlantAndEquipment"}]
["",null,{"$f":"'822100 - Nota. Prop, plan y eq.'!$E$42","v":"Total incremento (disminución) en propiedades, planta y equipo"},{"$f":"'822100 - Nota. Prop, plan y eq.'!$D$42","v":"ifrs-full:ChangesInPropertyPlantAndEquipment"},0,"peso",{"$f":"'822100 - Nota. Prop, plan y eq.'!$AA$42","v":0},0,"http://www.xbrl.org/scheme/companyName",{"$f":"Periodos!$C$3","v":"2023-01-01"},{"$f":"Periodos!$C$4","v":"2023-12-31"},{"$f":"'822100 - Nota. Prop, plan y eq.'!$E$14","v":"co-svsp-core:PropiedadesPlantaYEquipoEje_G1"},{"$f":"'822100 - Nota. Prop, plan y eq.'!$AA$13","v":"co-svsp-core:Otras_PPE"}]
["",null,{"$f":"'822100 - Nota. Prop, plan y eq.'!$E$43","v":"Propiedades, planta y equipo al final del periodo"},{"$f":"'822100 - Nota. Prop, plan y eq.'!$D$43","v":"ifrs-full:PropertyPlantAndEquipment"},0,"peso",{"$f":"'822100 - Nota. Prop, plan y eq.'!$AA$43","v":0},0,"http://www.xbrl.org/scheme/companyName",null,{"$f":"Periodos!$C$4","v":"2023-12-31"},{"$f":"'822100 - Nota. Prop, plan y eq.'!$E$14","v":"co-svsp-core:PropiedadesPlantaYEquipoEje_G1"},{"$f":"'822100 - Nota. Prop, plan y eq.'!$AA$13","v":"co-svsp-core:Otras_PPE"}]
["/*",null,"--23--"]
["/*",null,{"$f":"'822100 - Nota. Prop, plan y eq.'!$E$15","v":"Información a revelar detallada sobre propiedades, planta y equipo [partidas de los estados financieros]"},{"$f":"'822100 - Nota. Prop, plan y eq.'!$D$15","v":"ifrs-full:DisclosureOfPropertyPlantAndEquipmentLineItems"}]
["/*",null,{"$f":"'822100 - Nota. Prop, plan y eq.'!$E$16","v":"Bases de medición, propiedades, planta y equipo"},{"$f":"'822100 - Nota. Prop, plan y eq.'!$D$16","v":"ifrs-full:MeasurementBasesPropertyPlantAndEquipment"}]
["/*",null,{"$f":"'822100 - Nota. Prop, plan y eq.'!$E$17","v":"Método de depreciación, propiedades, planta y equipo"},{"$f":"'822100 - Nota. Prop, plan y eq.'!$D$17","v":"ifrs-full:DepreciationMethodPropertyPlantAndEquipment"}]
["/*",null,{"$f":"'822100 - Nota. Prop, plan y eq.'!$E$18","v":"Fechas de vigencia de revaluación, propiedades, planta y equipo"},{"$f":"'822100 - Nota. Prop, plan y eq.'!$D$18","v":"ifrs-full:EffectiveDatesOfRevaluationPropertyPlantAndEquipment"}]
["/*",null,{"$f":"'822100 - Nota. Prop, plan y eq.'!$E$19","v":"Explicación de la implicación del tasador independiente en la revaluación, propiedades, planta y equipo"},{"$f":"'822100 - Nota. Prop, plan y eq.'!$D$19","v":"ifrs-full:ExplanationOfIndependentValuerUsedForRevaluationPropertyPlantAndEquipment"}]
["/*",null,{"$f":"'822100 - Nota. Prop, plan y eq.'!$E$20","v":"Explicación del método de revaluación y supuestos significativos, propiedad, planta y equipo"},{"$f":"'822100 - Nota. Prop, plan y eq.'!$D$20","v":"co-svsp-core:ExplanationOfRevaluationMethodsAndSignificantAssumptionsPropertyPlantAndEquipment"}]
["/*",null,{"$f":"'822100 - Nota. Prop, plan y eq.'!$E$21","v":"Conciliación de cambios en propiedades, planta y equipo [resumen]"},{"$f":"'822100 - Nota. Prop, plan y eq.'!$D$21","v":"ifrs-full:ReconciliationOfChangesInPropertyPlantAndEquipmentAbstract"}]
["/*",null,{"$f":"'822100 - Nota. Prop, plan y eq.'!$E$22","v":"Propiedades, planta y equipo al comienzo del periodo"},{"$f":"'822100 - Nota. Prop, plan y eq.'!$D$22","v":"ifrs-full:PropertyPlantAndEquipment"}]
["/*",null,{"$f":"'822100 - Nota. Prop, plan y eq.'!$E$23","v":"Cambios en propiedades, planta y equipo [resumen]"},{"$f":"'822100 - Nota. Prop, plan y eq.'!$D$23","v":"ifrs-full:ChangesInPropertyPlantAndEquipmentAbstract"}]
["/*",null,{"$f":"'822100 - Nota. Prop, plan y eq.'!$E$24","v":"Incrementos distintos de los procedentes de combinaciones de negocios, propiedades, planta y equipo"},{"$f":"'822100 - Nota. Prop, plan y eq.'!$D$24","v":"ifrs-full:AdditionsOtherThanThroughBusinessCombinationsPropertyPlantAndEquipment"}]
["/*",null,{"$f":"'822100 - Nota. Prop, plan y eq.'!$E$25","v":"Adquisiciones realizadas mediante combinaciones de negocios, propiedades, planta y equipo"},{"$f":"'822100 - Nota. Prop, plan y eq.'!$D$25","v":"ifrs-full:AcquisitionsThroughBusinessCombinationsPropertyPlantAndEquipment"}]
["/*",null,{"$f":"'822100 - Nota. Prop, plan y eq.'!$E$26","v":"Depreciación, propiedades, planta y equipo"},{"$f":"'822100 - Nota. Prop, plan y eq.'!$D$26","v":"ifrs-full:DepreciationPropertyPlantAndEquipment"}]
["/*",null,{"$f":"'822100 - Nota. Prop, plan y eq.'!$E$27","v":"Pérdidas por deterioro de valor reconocidas en el resultado del periodo, propiedades, planta y equipo"},{"$f":"'822100 - Nota. Prop, plan y eq.'!$D$27","v":"ifrs-full:ImpairmentLossRecognisedInProfitOrLossPropertyPlantAndEquipment"}]
["/*",null,{"$f":"'822100 - Nota. Prop, plan y eq.'!$E$28","v":"Reversión de pérdidas por deterioro de valor reconocidas en el resultado del periodo, propiedades, planta y equipo"},{"$f":"'822100 - Nota. Prop, plan y eq.'!$D$28","v":"ifrs-full:ReversalOfImpairmentLossRecognisedInProfitOrLossPropertyPlantAndEquipment"}]
["/*",null,{"$f":"'822100 - Nota. Prop, plan y eq.'!$E$29","v":"Incrementos (disminuciones) de revaluaciones, propiedades, planta y equipo"},{"$f":"'822100 - Nota. Prop, plan y eq.'!$D$29","v":"ifrs-full:RevaluationIncreaseDecreasePropertyPlantAndEquipment"}]
["/*",null,{"$f":"'822100 - Nota. Prop, plan y eq.'!$E$30","v":"Pérdidas por deterioro de valor reconocidas en otro resultado integral, propiedades, planta y equipo"},{"$f":"'822100 - Nota. Prop, plan y eq.'!$D$30","v":"ifrs-full:ImpairmentLossRecognisedInOtherComprehensiveIncomePropertyPlantAndEquipment"}]
["/*",null,{"$f":"'822100 - Nota. Prop, plan y eq.'!$E$31","v":"Reversión de pérdidas por deterioro de valor reconocidas en otro resultado integral, propiedades, planta y equipo"},{"$f":"'822100 - Nota. Prop, plan y eq.'!$D$31","v":"ifrs-full:ReversalOfImpairmentLossRecognisedInOtherComprehensiveIncomePropertyPlantAndEquipment"}]
["/*",null,{"$f":"'822100 - Nota. Prop, plan y eq.'!$E$32","v":"Incrementos (disminuciones) por transferencias y otros cambios, propiedades, planta y equipo [resumen]"},{"$f":"'822100 - Nota. Prop, plan y eq.'!$D$32","v":"ifrs-full:IncreaseDecreaseThroughTransfersAndOtherChangesPropertyPlantAndEquipmentAbstract"}]
["/*",null,{"$f":"'822100 - Nota. Prop, plan y eq.'!$E$33","v":"Incrementos (disminuciones) por transferencias desde (hacia) propiedades de inversión, propiedades, planta y equipo"},{"$f":"'822100 - Nota. Prop, plan y eq.'!$D$33","v":"ifrs-full:IncreaseDecreaseThroughTransfersFromToInvestmentPropertyPropertyPlantAndEquipment"}]
["/*",null,{"$f":"'822100 - Nota. Prop, plan y eq.'!$E$34","v":"Incrementos (disminuciones) por transferencias desde construcciones en proceso , propiedades, planta y equipo"},{"$f":"'822100 - Nota. Prop, plan y eq.'!$D$34","v":"ifrs-full:IncreaseDecreaseThroughTransfersFromConstructionInProgressPropertyPlantAndEquipment"}]
["/*",null,{"$f":"'822100 - Nota. Prop, plan y eq.'!$E$35","v":"Incrementos (disminuciones) por otros cambios, propiedades, planta y equipo"},{"$f":"'822100 - Nota. Prop, plan y eq.'!$D$35","v":"ifrs-full:IncreaseDecreaseThroughOtherChangesPropertyPlantAndEquipment"}]
["",null,{"$f":"'822100 - Nota. Prop, plan y eq.'!$E$36","v":"Total incrementos (disminuciones) por transferencias y otros cambios, propiedades, planta y equipo"},{"$f":"'822100 - Nota. Prop, plan y eq.'!$D$36","v":"ifrs-full:IncreaseDecreaseThroughTransfersAndOtherChangesPropertyPlantAndEquipment"},0,"peso",{"$f":"'822100 - Nota. Prop, plan y eq.'!$AB$36","v":0},0,"http://www.xbrl.org/scheme/companyName",{"$f":"Periodos!$C$3","v":"2023-01-01"},{"$f":"Periodos!$C$4","v":"2023-12-31"}]
["/*",null,{"$f":"'822100 - Nota. Prop, plan y eq.'!$E$37","v":"Disposiciones y retiros de servicio, propiedades, planta y equipo [resumen]"},{"$f":"'822100 - Nota. Prop, plan y eq.'!$D$37","v":"ifrs-full:DisposalsAndRetirementsPropertyPlantAndEquipmentAbstract"}]
["/*",null,{"$f":"'822100 - Nota. Prop, plan y eq.'!$E$38","v":"Disposiciones, propiedades, planta y equipo"},{"$f":"'822100 - Nota. Prop, plan y eq.'!$D$38","v":"ifrs-full:DisposalsPropertyPlantAndEquipment"}]
["/*",null,{"$f":"'822100 - Nota. Prop, plan y eq.'!$E$39","v":"Retiros, propiedades, planta y equipo"},{"$f":"'822100 - Nota. Prop, plan y eq.'!$D$39","v":"ifrs-full:RetirementsPropertyPlantAndEquipment"}]
["",null,{"$f":"'822100 - Nota. Prop, plan y eq.'!$E$40","v":"Total de disposiciones y retiros de servicio, propiedades, planta y equipo"},{"$f":"'822100 - Nota. Prop, plan y eq.'!$D$40","v":"ifrs-full:DisposalsAndRetirementsPropertyPlantAndEquipment"},0,"peso",{"$f":"'822100 - Nota. Prop, plan y eq.'!$AB$40","v":0},0,"http://www.xbrl.org/scheme/companyName",{"$f":"Periodos!$C$3","v":"2023-01-01"},{"$f":"Periodos!$C$4","v":"2023-12-31"}]
["/*",null,{"$f":"'822100 - Nota. Prop, plan y eq.'!$E$41","v":"Disminuciones por clasificar como mantenidos para la venta, propiedades, planta y equipo"},{"$f":"'822100 - Nota. Prop, plan y eq.'!$D$41","v":"ifrs-full:DecreaseThroughClassifiedAsHeldForSalePropertyPlantAndEquipment"}]
["",null,{"$f":"'822100 - Nota. Prop, plan y eq.'!$E$42","v":"Total incremento (disminución) en propiedades, planta y equipo"},{"$f":"'822100 - Nota. Prop, plan y eq.'!$D$42","v":"ifrs-full:ChangesInPropertyPlantAndEquipment"},0,"peso",{"$f":"'822100 - Nota. Prop, plan y eq.'!$AB$42","v":0},0,"http://www.xbrl.org/scheme/companyName",{"$f":"Periodos!$C$3","v":"2023-01-01"},{"$f":"Periodos!$C$4","v":"2023-12-31"}]
["",null,{"$f":"'822100 - Nota. Prop, plan y eq.'!$E$43","v":"Propiedades, planta y equipo al final del periodo"},{"$f":"'822100 - Nota. Prop, plan y eq.'!$D$43","v":"ifrs-full:PropertyPlantAndEquipment"},0,"peso",{"$f":"'822100 - Nota. Prop, plan y eq.'!$AB$43","v":0},0,"http://www.xbrl.org/scheme/companyName",null,{"$f":"Periodos!$C$4","v":"2023-12-31"}]
["/*"]
["/*",null,"822100 - Nota. Prop, plan y eq."]
["/*",null,"--01--"]
["/*",null,{"$f":"'822100 - Nota. Prop, plan y eq.'!$E$53","v":"Información a revelar detallada sobre propiedades, planta y equipo [partidas de los estados financieros]"},{"$f":"'822100 - Nota. Prop, plan y eq.'!$D$53","v":"ifrs-full:DisclosureOfPropertyPlantAndEquipmentLineItems"}]
["/*",null,{"$f":"'822100 - Nota. Prop, plan y eq.'!$E$54","v":"Bases de medición, propiedades, planta y equipo"},{"$f":"'822100 - Nota. Prop, plan y eq.'!$D$54","v":"ifrs-full:MeasurementBasesPropertyPlantAndEquipment"}]
["/*",null,{"$f":"'822100 - Nota. Prop, plan y eq.'!$E$55","v":"Método de depreciación, propiedades, planta y equipo"},{"$f":"'822100 - Nota. Prop, plan y eq.'!$D$55","v":"ifrs-full:DepreciationMethodPropertyPlantAndEquipment"}]
["/*",null,{"$f":"'822100 - Nota. Prop, plan y eq.'!$E$56","v":"Fechas de vigencia de revaluación, propiedades, planta y equipo"},{"$f":"'822100 - Nota. Prop, plan y eq.'!$D$56","v":"ifrs-full:EffectiveDatesOfRevaluationPropertyPlantAndEquipment"}]
["/*",null,{"$f":"'822100 - Nota. Prop, plan y eq.'!$E$57","v":"Explicación de la implicación del tasador independiente en la revaluación, propiedades, planta y equipo"},{"$f":"'822100 - Nota. Prop, plan y eq.'!$D$57","v":"ifrs-full:ExplanationOfIndependentValuerUsedForRevaluationPropertyPlantAndEquipment"}]
["/*",null,{"$f":"'822100 - Nota. Prop, plan y eq.'!$E$58","v":"Explicación del método de revaluación y supuestos significativos, propiedad, planta y equipo"},{"$f":"'822100 - Nota. Prop, plan y eq.'!$D$58","v":"co-svsp-core:ExplanationOfRevaluationMethodsAndSignificantAssumptionsPropertyPlantAndEquipment"}]
["/*",null,{"$f":"'822100 - Nota. Prop, plan y eq.'!$E$59","v":"Conciliación de cambios en propiedades, planta y equipo [resumen]"},{"$f":"'822100 - Nota. Prop, plan y eq.'!$D$59","v":"ifrs-full:ReconciliationOfChangesInPropertyPlantAndEquipmentAbstract"}]
["/*",null,{"$f":"'822100 - Nota. Prop, plan y eq.'!$E$60","v":"Propiedades, planta y equipo al comienzo del periodo"},{"$f":"'822100 - Nota. Prop, plan y eq.'!$D$60","v":"ifrs-full:PropertyPlantAndEquipment"}]
["/*",null,{"$f":"'822100 - Nota. Prop, plan y eq.'!$E$61","v":"Cambios en propiedades, planta y equipo [resumen]"},{"$f":"'822100 - Nota. Prop, plan y eq.'!$D$61","v":"ifrs-full:ChangesInPropertyPlantAndEquipmentAbstract"}]
["/*",null,{"$f":"'822100 - Nota. Prop, plan y eq.'!$E$62","v":"Incrementos distintos de los procedentes de combinaciones de negocios, propiedades, planta y equipo"},{"$f":"'822100 - Nota. Prop, plan y eq.'!$D$62","v":"ifrs-full:AdditionsOtherThanThroughBusinessCombinationsPropertyPlantAndEquipment"}]
["/*",null,{"$f":"'822100 - Nota. Prop, plan y eq.'!$E$63","v":"Adquisiciones realizadas mediante combinaciones de negocios, propiedades, planta y equipo"},{"$f":"'822100 - Nota. Prop, plan y eq.'!$D$63","v":"ifrs-full:AcquisitionsThroughBusinessCombinationsPropertyPlantAndEquipment"}]
["/*",null,{"$f":"'822100 - Nota. Prop, plan y eq.'!$E$64","v":"Depreciación, propiedades, planta y equipo"},{"$f":"'822100 - Nota. Prop, plan y eq.'!$D$64","v":"ifrs-full:DepreciationPropertyPlantAndEquipment"}]
["/*",null,{"$f":"'822100 - Nota. Prop, plan y eq.'!$E$65","v":"Pérdidas por deterioro de valor reconocidas en el resultado del periodo, propiedades, planta y equipo"},{"$f":"'822100 - Nota. Prop, plan y eq.'!$D$65","v":"ifrs-full:ImpairmentLossRecognisedInProfitOrLossPropertyPlantAndEquipment"}]
["/*",null,{"$f":"'822100 - Nota. Prop, plan y eq.'!$E$66","v":"Reversión de pérdidas por deterioro de valor reconocidas en el resultado del periodo, propiedades, planta y equipo"},{"$f":"'822100 - Nota. Prop, plan y eq.'!$D$66","v":"ifrs-full:ReversalOfImpairmentLossRecognisedInProfitOrLossPropertyPlantAndEquipment"}]
["/*",null,{"$f":"'822100 - Nota. Prop, plan y eq.'!$E$67","v":"Incrementos (disminuciones) de revaluaciones, propiedades, planta y equipo"},{"$f":"'822100 - Nota. Prop, plan y eq.'!$D$67","v":"ifrs-full:RevaluationIncreaseDecreasePropertyPlantAndEquipment"}]
["/*",null,{"$f":"'822100 - Nota. Prop, plan y eq.'!$E$68","v":"Pérdidas por deterioro de valor reconocidas en otro resultado integral, propiedades, planta y equipo"},{"$f":"'822100 - Nota. Prop, plan y eq.'!$D$68","v":"ifrs-full:ImpairmentLossRecognisedInOtherComprehensiveIncomePropertyPlantAndEquipment"}]
["/*",null,{"$f":"'822100 - Nota. Prop, plan y eq.'!$E$69","v":"Reversión de pérdidas por deterioro de valor reconocidas en otro resultado integral, propiedades, planta y equipo"},{"$f":"'822100 - Nota. Prop, plan y eq.'!$D$69","v":"ifrs-full:ReversalOfImpairmentLossRecognisedInOtherComprehensiveIncomePropertyPlantAndEquipment"}]
["/*",null,{"$f":"'822100 - Nota. Prop, plan y eq.'!$E$70","v":"Incrementos (disminuciones) por transferencias y otros cambios, propiedades, planta y equipo [resumen]"},{"$f":"'822100 - Nota. Prop, plan y eq.'!$D$70","v":"ifrs-full:IncreaseDecreaseThroughTransfersAndOtherChangesPropertyPlantAndEquipmentAbstract"}]
["/*",null,{"$f":"'822100 - Nota. Prop, plan y eq.'!$E$71","v":"Incrementos (disminuciones) por transferencias desde (hacia) propiedades de inversión, propiedades, planta y equipo"},{"$f":"'822100 - Nota. Prop, plan y eq.'!$D$71","v":"ifrs-full:IncreaseDecreaseThroughTransfersFromToInvestmentPropertyPropertyPlantAndEquipment"}]
[{"$f":"IF(G5728=\"\",\"/*\",\"\")","v":"/*"},null,{"$f":"'822100 - Nota. Prop, plan y eq.'!$E$72","v":"Incrementos (disminuciones) por transferencias desde construcciones en proceso , propiedades, planta y equipo"},{"$f":"'822100 - Nota. Prop, plan y eq.'!$D$72","v":"ifrs-full:IncreaseDecreaseThroughTransfersFromConstructionInProgressPropertyPlantAndEquipment"}]
["/*",null,{"$f":"'822100 - Nota. Prop, plan y eq.'!$E$73","v":"Incrementos (disminuciones) por otros cambios, propiedades, planta y equipo"},{"$f":"'822100 - Nota. Prop, plan y eq.'!$D$73","v":"ifrs-full:IncreaseDecreaseThroughOtherChangesPropertyPlantAndEquipment"}]
["",null,{"$f":"'822100 - Nota. Prop, plan y eq.'!$E$74","v":"Total incrementos (disminuciones) por transferencias y otros cambios, propiedades, planta y equipo"},{"$f":"'822100 - Nota. Prop, plan y eq.'!$D$74","v":"ifrs-full:IncreaseDecreaseThroughTransfersAndOtherChangesPropertyPlantAndEquipment"},0,"peso",{"$f":"'822100 - Nota. Prop, plan y eq.'!$F$74","v":0},0,"http://www.xbrl.org/scheme/companyName",{"$f":"Periodos!$D$3","v":"2022-01-01"},{"$f":"Periodos!$D$4","v":"2022-12-31"},{"$f":"'822100 - Nota. Prop, plan y eq.'!$E$52","v":"co-svsp-core:PropiedadesPlantaYEquipoEje_G1"},{"$f":"'822100 - Nota. Prop, plan y eq.'!$F$51","v":"ifrs-full:LandMember"}]
["/*",null,{"$f":"'822100 - Nota. Prop, plan y eq.'!$E$75","v":"Disposiciones y retiros de servicio, propiedades, planta y equipo [resumen]"},{"$f":"'822100 - Nota. Prop, plan y eq.'!$D$75","v":"ifrs-full:DisposalsAndRetirementsPropertyPlantAndEquipmentAbstract"}]
["/*",null,{"$f":"'822100 - Nota. Prop, plan y eq.'!$E$76","v":"Disposiciones, propiedades, planta y equipo"},{"$f":"'822100 - Nota. Prop, plan y eq.'!$D$76","v":"ifrs-full:DisposalsPropertyPlantAndEquipment"}]
["/*",null,{"$f":"'822100 - Nota. Prop, plan y eq.'!$E$77","v":"Retiros, propiedades, planta y equipo"},{"$f":"'822100 - Nota. Prop, plan y eq.'!$D$77","v":"ifrs-full:RetirementsPropertyPlantAndEquipment"}]
["",null,{"$f":"'822100 - Nota. Prop, plan y eq.'!$E$78","v":"Total de disposiciones y retiros de servicio, propiedades, planta y equipo"},{"$f":"'822100 - Nota. Prop, plan y eq.'!$D$78","v":"ifrs-full:DisposalsAndRetirementsPropertyPlantAndEquipment"},0,"peso",{"$f":"'822100 - Nota. Prop, plan y eq.'!$F$78","v":0},0,"http://www.xbrl.org/scheme/companyName",{"$f":"Periodos!$D$3","v":"2022-01-01"},{"$f":"Periodos!$D$4","v":"2022-12-31"},{"$f":"'822100 - Nota. Prop, plan y eq.'!$E$52","v":"co-svsp-core:PropiedadesPlantaYEquipoEje_G1"},{"$f":"'822100 - Nota. Prop, plan y eq.'!$F$51","v":"ifrs-full:LandMember"}]
["/*",null,{"$f":"'822100 - Nota. Prop, plan y eq.'!$E$79","v":"Disminuciones por clasificar como mantenidos para la venta, propiedades, planta y equipo"},{"$f":"'822100 - Nota. Prop, plan y eq.'!$D$79","v":"ifrs-full:DecreaseThroughClassifiedAsHeldForSalePropertyPlantAndEquipment"}]
["",null,{"$f":"'822100 - Nota. Prop, plan y eq.'!$E$80","v":"Total incremento (disminución) en propiedades, planta y equipo"},{"$f":"'822100 - Nota. Prop, plan y eq.'!$D$80","v":"ifrs-full:ChangesInPropertyPlantAndEquipment"},0,"peso",{"$f":"'822100 - Nota. Prop, plan y eq.'!$F$80","v":0},0,"http://www.xbrl.org/scheme/companyName",{"$f":"Periodos!$D$3","v":"2022-01-01"},{"$f":"Periodos!$D$4","v":"2022-12-31"},{"$f":"'822100 - Nota. Prop, plan y eq.'!$E$52","v":"co-svsp-core:PropiedadesPlantaYEquipoEje_G1"},{"$f":"'822100 - Nota. Prop, plan y eq.'!$F$51","v":"ifrs-full:LandMember"}]
["",null,{"$f":"'822100 - Nota. Prop, plan y eq.'!$E$81","v":"Propiedades, planta y equipo al final del periodo"},{"$f":"'822100 - Nota. Prop, plan y eq.'!$D$81","v":"ifrs-full:PropertyPlantAndEquipment"},0,"peso",{"$f":"'822100 - Nota. Prop, plan y eq.'!$F$81","v":0},0,"http://www.xbrl.org/scheme/companyName",null,{"$f":"Periodos!$D$4","v":"2022-12-31"},{"$f":"'822100 - Nota. Prop, plan y eq.'!$E$52","v":"co-svsp-core:PropiedadesPlantaYEquipoEje_G1"},{"$f":"'822100 - Nota. Prop, plan y eq.'!$F$51","v":"ifrs-full:LandMember"}]
["/*",null,"--02--"]
["/*",null,{"$f":"'822100 - Nota. Prop, plan y eq.'!$E$53","v":"Información a revelar detallada sobre propiedades, planta y equipo [partidas de los estados financieros]"},{"$f":"'822100 - Nota. Prop, plan y eq.'!$D$53","v":"ifrs-full:DisclosureOfPropertyPlantAndEquipmentLineItems"}]
["/*",null,{"$f":"'822100 - Nota. Prop, plan y eq.'!$E$54","v":"Bases de medición, propiedades, planta y equipo"},{"$f":"'822100 - Nota. Prop, plan y eq.'!$D$54","v":"ifrs-full:MeasurementBasesPropertyPlantAndEquipment"}]
["/*",null,{"$f":"'822100 - Nota. Prop, plan y eq.'!$E$55","v":"Método de depreciación, propiedades, planta y equipo"},{"$f":"'822100 - Nota. Prop, plan y eq.'!$D$55","v":"ifrs-full:DepreciationMethodPropertyPlantAndEquipment"}]
["/*",null,{"$f":"'822100 - Nota. Prop, plan y eq.'!$E$56","v":"Fechas de vigencia de revaluación, propiedades, planta y equipo"},{"$f":"'822100 - Nota. Prop, plan y eq.'!$D$56","v":"ifrs-full:EffectiveDatesOfRevaluationPropertyPlantAndEquipment"}]
["/*",null,{"$f":"'822100 - Nota. Prop, plan y eq.'!$E$57","v":"Explicación de la implicación del tasador independiente en la revaluación, propiedades, planta y equipo"},{"$f":"'822100 - Nota. Prop, plan y eq.'!$D$57","v":"ifrs-full:ExplanationOfIndependentValuerUsedForRevaluationPropertyPlantAndEquipment"}]
["/*",null,{"$f":"'822100 - Nota. Prop, plan y eq.'!$E$58","v":"Explicación del método de revaluación y supuestos significativos, propiedad, planta y equipo"},{"$f":"'822100 - Nota. Prop, plan y eq.'!$D$58","v":"co-svsp-core:ExplanationOfRevaluationMethodsAndSignificantAssumptionsPropertyPlantAndEquipment"}]
["/*",null,{"$f":"'822100 - Nota. Prop, plan y eq.'!$E$59","v":"Conciliación de cambios en propiedades, planta y equipo [resumen]"},{"$f":"'822100 - Nota. Prop, plan y eq.'!$D$59","v":"ifrs-full:ReconciliationOfChangesInPropertyPlantAndEquipmentAbstract"}]
["/*",null,{"$f":"'822100 - Nota. Prop, plan y eq.'!$E$60","v":"Propiedades, planta y equipo al comienzo del periodo"},{"$f":"'822100 - Nota. Prop, plan y eq.'!$D$60","v":"ifrs-full:PropertyPlantAndEquipment"}]
["/*",null,{"$f":"'822100 - Nota. Prop, plan y eq.'!$E$61","v":"Cambios en propiedades, planta y equipo [resumen]"},{"$f":"'822100 - Nota. Prop, plan y eq.'!$D$61","v":"ifrs-full:ChangesInPropertyPlantAndEquipmentAbstract"}]
["/*",null,{"$f":"'822100 - Nota. Prop, plan y eq.'!$E$62","v":"Incrementos distintos de los procedentes de combinaciones de negocios, propiedades, planta y equipo"},{"$f":"'822100 - Nota. Prop, plan y eq.'!$D$62","v":"ifrs-full:AdditionsOtherThanThroughBusinessCombinationsPropertyPlantAndEquipment"}]
["/*",null,{"$f":"'822100 - Nota. Prop, plan y eq.'!$E$63","v":"Adquisiciones realizadas mediante combinaciones de negocios, propiedades, planta y equipo"},{"$f":"'822100 - Nota. Prop, plan y eq.'!$D$63","v":"ifrs-full:AcquisitionsThroughBusinessCombinationsPropertyPlantAndEquipment"}]
["/*",null,{"$f":"'822100 - Nota. Prop, plan y eq.'!$E$64","v":"Depreciación, propiedades, planta y equipo"},{"$f":"'822100 - Nota. Prop, plan y eq.'!$D$64","v":"ifrs-full:DepreciationPropertyPlantAndEquipment"}]
["/*",null,{"$f":"'822100 - Nota. Prop, plan y eq.'!$E$65","v":"Pérdidas por deterioro de valor reconocidas en el resultado del periodo, propiedades, planta y equipo"},{"$f":"'822100 - Nota. Prop, plan y eq.'!$D$65","v":"ifrs-full:ImpairmentLossRecognisedInProfitOrLossPropertyPlantAndEquipment"}]
["/*",null,{"$f":"'822100 - Nota. Prop, plan y eq.'!$E$66","v":"Reversión de pérdidas por deterioro de valor reconocidas en el resultado del periodo, propiedades, planta y equipo"},{"$f":"'822100 - Nota. Prop, plan y eq.'!$D$66","v":"ifrs-full:ReversalOfImpairmentLossRecognisedInProfitOrLossPropertyPlantAndEquipment"}]
["/*",null,{"$f":"'822100 - Nota. Prop, plan y eq.'!$E$67","v":"Incrementos (disminuciones) de revaluaciones, propiedades, planta y equipo"},{"$f":"'822100 - Nota. Prop, plan y eq.'!$D$67","v":"ifrs-full:RevaluationIncreaseDecreasePropertyPlantAndEquipment"}]
["/*",null,{"$f":"'822100 - Nota. Prop, plan y eq.'!$E$68","v":"Pérdidas por deterioro de valor reconocidas en otro resultado integral, propiedades, planta y equipo"},{"$f":"'822100 - Nota. Prop, plan y eq.'!$D$68","v":"ifrs-full:ImpairmentLossRecognisedInOtherComprehensiveIncomePropertyPlantAndEquipment"}]
["/*",null,{"$f":"'822100 - Nota. Prop, plan y eq.'!$E$69","v":"Reversión de pérdidas por deterioro de valor reconocidas en otro resultado integral, propiedades, planta y equipo"},{"$f":"'822100 - Nota. Prop, plan y eq.'!$D$69","v":"ifrs-full:ReversalOfImpairmentLossRecognisedInOtherComprehensiveIncomePropertyPlantAndEquipment"}]
["/*",null,{"$f":"'822100 - Nota. Prop, plan y eq.'!$E$70","v":"Incrementos (disminuciones) por transferencias y otros cambios, propiedades, planta y equipo [resumen]"},{"$f":"'822100 - Nota. Prop, plan y eq.'!$D$70","v":"ifrs-full:IncreaseDecreaseThroughTransfersAndOtherChangesPropertyPlantAndEquipmentAbstract"}]
["/*",null,{"$f":"'822100 - Nota. Prop, plan y eq.'!$E$71","v":"Incrementos (disminuciones) por transferencias desde (hacia) propiedades de inversión, propiedades, planta y equipo"},{"$f":"'822100 - Nota. Prop, plan y eq.'!$D$71","v":"ifrs-full:IncreaseDecreaseThroughTransfersFromToInvestmentPropertyPropertyPlantAndEquipment"}]
["/*",null,{"$f":"'822100 - Nota. Prop, plan y eq.'!$E$72","v":"Incrementos (disminuciones) por transferencias desde construcciones en proceso , propiedades, planta y equipo"},{"$f":"'822100 - Nota. Prop, plan y eq.'!$D$72","v":"ifrs-full:IncreaseDecreaseThroughTransfersFromConstructionInProgressPropertyPlantAndEquipment"}]
["/*",null,{"$f":"'822100 - Nota. Prop, plan y eq.'!$E$73","v":"Incrementos (disminuciones) por otros cambios, propiedades, planta y equipo"},{"$f":"'822100 - Nota. Prop, plan y eq.'!$D$73","v":"ifrs-full:IncreaseDecreaseThroughOtherChangesPropertyPlantAndEquipment"}]
["",null,{"$f":"'822100 - Nota. Prop, plan y eq.'!$E$74","v":"Total incrementos (disminuciones) por transferencias y otros cambios, propiedades, planta y equipo"},{"$f":"'822100 - Nota. Prop, plan y eq.'!$D$74","v":"ifrs-full:IncreaseDecreaseThroughTransfersAndOtherChangesPropertyPlantAndEquipment"},0,"peso",{"$f":"'822100 - Nota. Prop, plan y eq.'!$G$74","v":0},0,"http://www.xbrl.org/scheme/companyName",{"$f":"Periodos!$D$3","v":"2022-01-01"},{"$f":"Periodos!$D$4","v":"2022-12-31"},{"$f":"'822100 - Nota. Prop, plan y eq.'!$E$52","v":"co-svsp-core:PropiedadesPlantaYEquipoEje_G1"},{"$f":"'822100 - Nota. Prop, plan y eq.'!$G$51","v":"ifrs-full:BuildingsMember"}]
["/*",null,{"$f":"'822100 - Nota. Prop, plan y eq.'!$E$75","v":"Disposiciones y retiros de servicio, propiedades, planta y equipo [resumen]"},{"$f":"'822100 - Nota. Prop, plan y eq.'!$D$75","v":"ifrs-full:DisposalsAndRetirementsPropertyPlantAndEquipmentAbstract"}]
["/*",null,{"$f":"'822100 - Nota. Prop, plan y eq.'!$E$76","v":"Disposiciones, propiedades, planta y equipo"},{"$f":"'822100 - Nota. Prop, plan y eq.'!$D$76","v":"ifrs-full:DisposalsPropertyPlantAndEquipment"}]
["/*",null,{"$f":"'822100 - Nota. Prop, plan y eq.'!$E$77","v":"Retiros, propiedades, planta y equipo"},{"$f":"'822100 - Nota. Prop, plan y eq.'!$D$77","v":"ifrs-full:RetirementsPropertyPlantAndEquipment"}]
["",null,{"$f":"'822100 - Nota. Prop, plan y eq.'!$E$78","v":"Total de disposiciones y retiros de servicio, propiedades, planta y equipo"},{"$f":"'822100 - Nota. Prop, plan y eq.'!$D$78","v":"ifrs-full:DisposalsAndRetirementsPropertyPlantAndEquipment"},0,"peso",{"$f":"'822100 - Nota. Prop, plan y eq.'!$G$78","v":0},0,"http://www.xbrl.org/scheme/companyName",{"$f":"Periodos!$D$3","v":"2022-01-01"},{"$f":"Periodos!$D$4","v":"2022-12-31"},{"$f":"'822100 - Nota. Prop, plan y eq.'!$E$52","v":"co-svsp-core:PropiedadesPlantaYEquipoEje_G1"},{"$f":"'822100 - Nota. Prop, plan y eq.'!$G$51","v":"ifrs-full:BuildingsMember"}]
["/*",null,{"$f":"'822100 - Nota. Prop, plan y eq.'!$E$79","v":"Disminuciones por clasificar como mantenidos para la venta, propiedades, planta y equipo"},{"$f":"'822100 - Nota. Prop, plan y eq.'!$D$79","v":"ifrs-full:DecreaseThroughClassifiedAsHeldForSalePropertyPlantAndEquipment"}]
["",null,{"$f":"'822100 - Nota. Prop, plan y eq.'!$E$80","v":"Total incremento (disminución) en propiedades, planta y equipo"},{"$f":"'822100 - Nota. Prop, plan y eq.'!$D$80","v":"ifrs-full:ChangesInPropertyPlantAndEquipment"},0,"peso",{"$f":"'822100 - Nota. Prop, plan y eq.'!$G$80","v":0},0,"http://www.xbrl.org/scheme/companyName",{"$f":"Periodos!$D$3","v":"2022-01-01"},{"$f":"Periodos!$D$4","v":"2022-12-31"},{"$f":"'822100 - Nota. Prop, plan y eq.'!$E$52","v":"co-svsp-core:PropiedadesPlantaYEquipoEje_G1"},{"$f":"'822100 - Nota. Prop, plan y eq.'!$G$51","v":"ifrs-full:BuildingsMember"}]
["",null,{"$f":"'822100 - Nota. Prop, plan y eq.'!$E$81","v":"Propiedades, planta y equipo al final del periodo"},{"$f":"'822100 - Nota. Prop, plan y eq.'!$D$81","v":"ifrs-full:PropertyPlantAndEquipment"},0,"peso",{"$f":"'822100 - Nota. Prop, plan y eq.'!$G$81","v":0},0,"http://www.xbrl.org/scheme/companyName",null,{"$f":"Periodos!$D$4","v":"2022-12-31"},{"$f":"'822100 - Nota. Prop, plan y eq.'!$E$52","v":"co-svsp-core:PropiedadesPlantaYEquipoEje_G1"},{"$f":"'822100 - Nota. Prop, plan y eq.'!$G$51","v":"ifrs-full:BuildingsMember"}]
["/*",null,"--03--"]
["/*",null,{"$f":"'822100 - Nota. Prop, plan y eq.'!$E$53","v":"Información a revelar detallada sobre propiedades, planta y equipo [partidas de los estados financieros]"},{"$f":"'822100 - Nota. Prop, plan y eq.'!$D$53","v":"ifrs-full:DisclosureOfPropertyPlantAndEquipmentLineItems"}]
["/*",null,{"$f":"'822100 - Nota. Prop, plan y eq.'!$E$54","v":"Bases de medición, propiedades, planta y equipo"},{"$f":"'822100 - Nota. Prop, plan y eq.'!$D$54","v":"ifrs-full:MeasurementBasesPropertyPlantAndEquipment"}]
["/*",null,{"$f":"'822100 - Nota. Prop, plan y eq.'!$E$55","v":"Método de depreciación, propiedades, planta y equipo"},{"$f":"'822100 - Nota. Prop, plan y eq.'!$D$55","v":"ifrs-full:DepreciationMethodPropertyPlantAndEquipment"}]
["/*",null,{"$f":"'822100 - Nota. Prop, plan y eq.'!$E$56","v":"Fechas de vigencia de revaluación, propiedades, planta y equipo"},{"$f":"'822100 - Nota. Prop, plan y eq.'!$D$56","v":"ifrs-full:EffectiveDatesOfRevaluationPropertyPlantAndEquipment"}]
["/*",null,{"$f":"'822100 - Nota. Prop, plan y eq.'!$E$57","v":"Explicación de la implicación del tasador independiente en la revaluación, propiedades, planta y equipo"},{"$f":"'822100 - Nota. Prop, plan y eq.'!$D$57","v":"ifrs-full:ExplanationOfIndependentValuerUsedForRevaluationPropertyPlantAndEquipment"}]
["/*",null,{"$f":"'822100 - Nota. Prop, plan y eq.'!$E$58","v":"Explicación del método de revaluación y supuestos significativos, propiedad, planta y equipo"},{"$f":"'822100 - Nota. Prop, plan y eq.'!$D$58","v":"co-svsp-core:ExplanationOfRevaluationMethodsAndSignificantAssumptionsPropertyPlantAndEquipment"}]
["/*",null,{"$f":"'822100 - Nota. Prop, plan y eq.'!$E$59","v":"Conciliación de cambios en propiedades, planta y equipo [resumen]"},{"$f":"'822100 - Nota. Prop, plan y eq.'!$D$59","v":"ifrs-full:ReconciliationOfChangesInPropertyPlantAndEquipmentAbstract"}]
["/*",null,{"$f":"'822100 - Nota. Prop, plan y eq.'!$E$60","v":"Propiedades, planta y equipo al comienzo del periodo"},{"$f":"'822100 - Nota. Prop, plan y eq.'!$D$60","v":"ifrs-full:PropertyPlantAndEquipment"}]
["/*",null,{"$f":"'822100 - Nota. Prop, plan y eq.'!$E$61","v":"Cambios en propiedades, planta y equipo [resumen]"},{"$f":"'822100 - Nota. Prop, plan y eq.'!$D$61","v":"ifrs-full:ChangesInPropertyPlantAndEquipmentAbstract"}]
["/*",null,{"$f":"'822100 - Nota. Prop, plan y eq.'!$E$62","v":"Incrementos distintos de los procedentes de combinaciones de negocios, propiedades, planta y equipo"},{"$f":"'822100 - Nota. Prop, plan y eq.'!$D$62","v":"ifrs-full:AdditionsOtherThanThroughBusinessCombinationsPropertyPlantAndEquipment"}]
["/*",null,{"$f":"'822100 - Nota. Prop, plan y eq.'!$E$63","v":"Adquisiciones realizadas mediante combinaciones de negocios, propiedades, planta y equipo"},{"$f":"'822100 - Nota. Prop, plan y eq.'!$D$63","v":"ifrs-full:AcquisitionsThroughBusinessCombinationsPropertyPlantAndEquipment"}]
["/*",null,{"$f":"'822100 - Nota. Prop, plan y eq.'!$E$64","v":"Depreciación, propiedades, planta y equipo"},{"$f":"'822100 - Nota. Prop, plan y eq.'!$D$64","v":"ifrs-full:DepreciationPropertyPlantAndEquipment"}]
["/*",null,{"$f":"'822100 - Nota. Prop, plan y eq.'!$E$65","v":"Pérdidas por deterioro de valor reconocidas en el resultado del periodo, propiedades, planta y equipo"},{"$f":"'822100 - Nota. Prop, plan y eq.'!$D$65","v":"ifrs-full:ImpairmentLossRecognisedInProfitOrLossPropertyPlantAndEquipment"}]
["/*",null,{"$f":"'822100 - Nota. Prop, plan y eq.'!$E$66","v":"Reversión de pérdidas por deterioro de valor reconocidas en el resultado del periodo, propiedades, planta y equipo"},{"$f":"'822100 - Nota. Prop, plan y eq.'!$D$66","v":"ifrs-full:ReversalOfImpairmentLossRecognisedInProfitOrLossPropertyPlantAndEquipment"}]
["/*",null,{"$f":"'822100 - Nota. Prop, plan y eq.'!$E$67","v":"Incrementos (disminuciones) de revaluaciones, propiedades, planta y equipo"},{"$f":"'822100 - Nota. Prop, plan y eq.'!$D$67","v":"ifrs-full:RevaluationIncreaseDecreasePropertyPlantAndEquipment"}]
["/*",null,{"$f":"'822100 - Nota. Prop, plan y eq.'!$E$68","v":"Pérdidas por deterioro de valor reconocidas en otro resultado integral, propiedades, planta y equipo"},{"$f":"'822100 - Nota. Prop, plan y eq.'!$D$68","v":"ifrs-full:ImpairmentLossRecognisedInOtherComprehensiveIncomePropertyPlantAndEquipment"}]
["/*",null,{"$f":"'822100 - Nota. Prop, plan y eq.'!$E$69","v":"Reversión de pérdidas por deterioro de valor reconocidas en otro resultado integral, propiedades, planta y equipo"},{"$f":"'822100 - Nota. Prop, plan y eq.'!$D$69","v":"ifrs-full:ReversalOfImpairmentLossRecognisedInOtherComprehensiveIncomePropertyPlantAndEquipment"}]
["/*",null,{"$f":"'822100 - Nota. Prop, plan y eq.'!$E$70","v":"Incrementos (disminuciones) por transferencias y otros cambios, propiedades, planta y equipo [resumen]"},{"$f":"'822100 - Nota. Prop, plan y eq.'!$D$70","v":"ifrs-full:IncreaseDecreaseThroughTransfersAndOtherChangesPropertyPlantAndEquipmentAbstract"}]
["/*",null,{"$f":"'822100 - Nota. Prop, plan y eq.'!$E$71","v":"Incrementos (disminuciones) por transferencias desde (hacia) propiedades de inversión, propiedades, planta y equipo"},{"$f":"'822100 - Nota. Prop, plan y eq.'!$D$71","v":"ifrs-full:IncreaseDecreaseThroughTransfersFromToInvestmentPropertyPropertyPlantAndEquipment"}]
["/*",null,{"$f":"'822100 - Nota. Prop, plan y eq.'!$E$72","v":"Incrementos (disminuciones) por transferencias desde construcciones en proceso , propiedades, planta y equipo"},{"$f":"'822100 - Nota. Prop, plan y eq.'!$D$72","v":"ifrs-full:IncreaseDecreaseThroughTransfersFromConstructionInProgressPropertyPlantAndEquipment"}]
["/*",null,{"$f":"'822100 - Nota. Prop, plan y eq.'!$E$73","v":"Incrementos (disminuciones) por otros cambios, propiedades, planta y equipo"},{"$f":"'822100 - Nota. Prop, plan y eq.'!$D$73","v":"ifrs-full:IncreaseDecreaseThroughOtherChangesPropertyPlantAndEquipment"}]
["",null,{"$f":"'822100 - Nota. Prop, plan y eq.'!$E$74","v":"Total incrementos (disminuciones) por transferencias y otros cambios, propiedades, planta y equipo"},{"$f":"'822100 - Nota. Prop, plan y eq.'!$D$74","v":"ifrs-full:IncreaseDecreaseThroughTransfersAndOtherChangesPropertyPlantAndEquipment"},0,"peso",{"$f":"'822100 - Nota. Prop, plan y eq.'!$H$74","v":0},0,"http://www.xbrl.org/scheme/companyName",{"$f":"Periodos!$D$3","v":"2022-01-01"},{"$f":"Periodos!$D$4","v":"2022-12-31"},{"$f":"'822100 - Nota. Prop, plan y eq.'!$E$52","v":"co-svsp-core:PropiedadesPlantaYEquipoEje_G1"},{"$f":"'822100 - Nota. Prop, plan y eq.'!$H$51","v":"ifrs-full:LandAndBuildingsMember"}]
["/*",null,{"$f":"'822100 - Nota. Prop, plan y eq.'!$E$75","v":"Disposiciones y retiros de servicio, propiedades, planta y equipo [resumen]"},{"$f":"'822100 - Nota. Prop, plan y eq.'!$D$75","v":"ifrs-full:DisposalsAndRetirementsPropertyPlantAndEquipmentAbstract"}]
[{"$f":"IF(G5792=\"\",\"/*\",\"\")","v":"/*"},null,{"$f":"'822100 - Nota. Prop, plan y eq.'!$E$76","v":"Disposiciones, propiedades, planta y equipo"},{"$f":"'822100 - Nota. Prop, plan y eq.'!$D$76","v":"ifrs-full:DisposalsPropertyPlantAndEquipment"}]
["/*",null,{"$f":"'822100 - Nota. Prop, plan y eq.'!$E$77","v":"Retiros, propiedades, planta y equipo"},{"$f":"'822100 - Nota. Prop, plan y eq.'!$D$77","v":"ifrs-full:RetirementsPropertyPlantAndEquipment"}]
["",null,{"$f":"'822100 - Nota. Prop, plan y eq.'!$E$78","v":"Total de disposiciones y retiros de servicio, propiedades, planta y equipo"},{"$f":"'822100 - Nota. Prop, plan y eq.'!$D$78","v":"ifrs-full:DisposalsAndRetirementsPropertyPlantAndEquipment"},0,"peso",{"$f":"'822100 - Nota. Prop, plan y eq.'!$H$78","v":0},0,"http://www.xbrl.org/scheme/companyName",{"$f":"Periodos!$D$3","v":"2022-01-01"},{"$f":"Periodos!$D$4","v":"2022-12-31"},{"$f":"'822100 - Nota. Prop, plan y eq.'!$E$52","v":"co-svsp-core:PropiedadesPlantaYEquipoEje_G1"},{"$f":"'822100 - Nota. Prop, plan y eq.'!$H$51","v":"ifrs-full:LandAndBuildingsMember"}]
["/*",null,{"$f":"'822100 - Nota. Prop, plan y eq.'!$E$79","v":"Disminuciones por clasificar como mantenidos para la venta, propiedades, planta y equipo"},{"$f":"'822100 - Nota. Prop, plan y eq.'!$D$79","v":"ifrs-full:DecreaseThroughClassifiedAsHeldForSalePropertyPlantAndEquipment"}]
["",null,{"$f":"'822100 - Nota. Prop, plan y eq.'!$E$80","v":"Total incremento (disminución) en propiedades, planta y equipo"},{"$f":"'822100 - Nota. Prop, plan y eq.'!$D$80","v":"ifrs-full:ChangesInPropertyPlantAndEquipment"},0,"peso",{"$f":"'822100 - Nota. Prop, plan y eq.'!$H$80","v":0},0,"http://www.xbrl.org/scheme/companyName",{"$f":"Periodos!$D$3","v":"2022-01-01"},{"$f":"Periodos!$D$4","v":"2022-12-31"},{"$f":"'822100 - Nota. Prop, plan y eq.'!$E$52","v":"co-svsp-core:PropiedadesPlantaYEquipoEje_G1"},{"$f":"'822100 - Nota. Prop, plan y eq.'!$H$51","v":"ifrs-full:LandAndBuildingsMember"}]
["",null,{"$f":"'822100 - Nota. Prop, plan y eq.'!$E$81","v":"Propiedades, planta y equipo al final del periodo"},{"$f":"'822100 - Nota. Prop, plan y eq.'!$D$81","v":"ifrs-full:PropertyPlantAndEquipment"},0,"peso",{"$f":"'822100 - Nota. Prop, plan y eq.'!$H$81","v":0},0,"http://www.xbrl.org/scheme/companyName",null,{"$f":"Periodos!$D$4","v":"2022-12-31"},{"$f":"'822100 - Nota. Prop, plan y eq.'!$E$52","v":"co-svsp-core:PropiedadesPlantaYEquipoEje_G1"},{"$f":"'822100 - Nota. Prop, plan y eq.'!$H$51","v":"ifrs-full:LandAndBuildingsMember"}]
["/*",null,"--04--"]
["/*",null,{"$f":"'822100 - Nota. Prop, plan y eq.'!$E$53","v":"Información a revelar detallada sobre propiedades, planta y equipo [partidas de los estados financieros]"},{"$f":"'822100 - Nota. Prop, plan y eq.'!$D$53","v":"ifrs-full:DisclosureOfPropertyPlantAndEquipmentLineItems"}]
["/*",null,{"$f":"'822100 - Nota. Prop, plan y eq.'!$E$54","v":"Bases de medición, propiedades, planta y equipo"},{"$f":"'822100 - Nota. Prop, plan y eq.'!$D$54","v":"ifrs-full:MeasurementBasesPropertyPlantAndEquipment"}]
["/*",null,{"$f":"'822100 - Nota. Prop, plan y eq.'!$E$55","v":"Método de depreciación, propiedades, planta y equipo"},{"$f":"'822100 - Nota. Prop, plan y eq.'!$D$55","v":"ifrs-full:DepreciationMethodPropertyPlantAndEquipment"}]
["/*",null,{"$f":"'822100 - Nota. Prop, plan y eq.'!$E$56","v":"Fechas de vigencia de revaluación, propiedades, planta y equipo"},{"$f":"'822100 - Nota. Prop, plan y eq.'!$D$56","v":"ifrs-full:EffectiveDatesOfRevaluationPropertyPlantAndEquipment"}]
["/*",null,{"$f":"'822100 - Nota. Prop, plan y eq.'!$E$57","v":"Explicación de la implicación del tasador independiente en la revaluación, propiedades, planta y equipo"},{"$f":"'822100 - Nota. Prop, plan y eq.'!$D$57","v":"ifrs-full:ExplanationOfIndependentValuerUsedForRevaluationPropertyPlantAndEquipment"}]
["/*",null,{"$f":"'822100 - Nota. Prop, plan y eq.'!$E$58","v":"Explicación del método de revaluación y supuestos significativos, propiedad, planta y equipo"},{"$f":"'822100 - Nota. Prop, plan y eq.'!$D$58","v":"co-svsp-core:ExplanationOfRevaluationMethodsAndSignificantAssumptionsPropertyPlantAndEquipment"}]
["/*",null,{"$f":"'822100 - Nota. Prop, plan y eq.'!$E$59","v":"Conciliación de cambios en propiedades, planta y equipo [resumen]"},{"$f":"'822100 - Nota. Prop, plan y eq.'!$D$59","v":"ifrs-full:ReconciliationOfChangesInPropertyPlantAndEquipmentAbstract"}]
["/*",null,{"$f":"'822100 - Nota. Prop, plan y eq.'!$E$60","v":"Propiedades, planta y equipo al comienzo del periodo"},{"$f":"'822100 - Nota. Prop, plan y eq.'!$D$60","v":"ifrs-full:PropertyPlantAndEquipment"}]
["/*",null,{"$f":"'822100 - Nota. Prop, plan y eq.'!$E$61","v":"Cambios en propiedades, planta y equipo [resumen]"},{"$f":"'822100 - Nota. Prop, plan y eq.'!$D$61","v":"ifrs-full:ChangesInPropertyPlantAndEquipmentAbstract"}]
["/*",null,{"$f":"'822100 - Nota. Prop, plan y eq.'!$E$62","v":"Incrementos distintos de los procedentes de combinaciones de negocios, propiedades, planta y equipo"},{"$f":"'822100 - Nota. Prop, plan y eq.'!$D$62","v":"ifrs-full:AdditionsOtherThanThroughBusinessCombinationsPropertyPlantAndEquipment"}]
["/*",null,{"$f":"'822100 - Nota. Prop, plan y eq.'!$E$63","v":"Adquisiciones realizadas mediante combinaciones de negocios, propiedades, planta y equipo"},{"$f":"'822100 - Nota. Prop, plan y eq.'!$D$63","v":"ifrs-full:AcquisitionsThroughBusinessCombinationsPropertyPlantAndEquipment"}]
["/*",null,{"$f":"'822100 - Nota. Prop, plan y eq.'!$E$64","v":"Depreciación, propiedades, planta y equipo"},{"$f":"'822100 - Nota. Prop, plan y eq.'!$D$64","v":"ifrs-full:DepreciationPropertyPlantAndEquipment"}]
["/*",null,{"$f":"'822100 - Nota. Prop, plan y eq.'!$E$65","v":"Pérdidas por deterioro de valor reconocidas en el resultado del periodo, propiedades, planta y equipo"},{"$f":"'822100 - Nota. Prop, plan y eq.'!$D$65","v":"ifrs-full:ImpairmentLossRecognisedInProfitOrLossPropertyPlantAndEquipment"}]
["/*",null,{"$f":"'822100 - Nota. Prop, plan y eq.'!$E$66","v":"Reversión de pérdidas por deterioro de valor reconocidas en el resultado del periodo, propiedades, planta y equipo"},{"$f":"'822100 - Nota. Prop, plan y eq.'!$D$66","v":"ifrs-full:ReversalOfImpairmentLossRecognisedInProfitOrLossPropertyPlantAndEquipment"}]
["/*",null,{"$f":"'822100 - Nota. Prop, plan y eq.'!$E$67","v":"Incrementos (disminuciones) de revaluaciones, propiedades, planta y equipo"},{"$f":"'822100 - Nota. Prop, plan y eq.'!$D$67","v":"ifrs-full:RevaluationIncreaseDecreasePropertyPlantAndEquipment"}]
["/*",null,{"$f":"'822100 - Nota. Prop, plan y eq.'!$E$68","v":"Pérdidas por deterioro de valor reconocidas en otro resultado integral, propiedades, planta y equipo"},{"$f":"'822100 - Nota. Prop, plan y eq.'!$D$68","v":"ifrs-full:ImpairmentLossRecognisedInOtherComprehensiveIncomePropertyPlantAndEquipment"}]
["/*",null,{"$f":"'822100 - Nota. Prop, plan y eq.'!$E$69","v":"Reversión de pérdidas por deterioro de valor reconocidas en otro resultado integral, propiedades, planta y equipo"},{"$f":"'822100 - Nota. Prop, plan y eq.'!$D$69","v":"ifrs-full:ReversalOfImpairmentLossRecognisedInOtherComprehensiveIncomePropertyPlantAndEquipment"}]
["/*",null,{"$f":"'822100 - Nota. Prop, plan y eq.'!$E$70","v":"Incrementos (disminuciones) por transferencias y otros cambios, propiedades, planta y equipo [resumen]"},{"$f":"'822100 - Nota. Prop, plan y eq.'!$D$70","v":"ifrs-full:IncreaseDecreaseThroughTransfersAndOtherChangesPropertyPlantAndEquipmentAbstract"}]
["/*",null,{"$f":"'822100 - Nota. Prop, plan y eq.'!$E$71","v":"Incrementos (disminuciones) por transferencias desde (hacia) propiedades de inversión, propiedades, planta y equipo"},{"$f":"'822100 - Nota. Prop, plan y eq.'!$D$71","v":"ifrs-full:IncreaseDecreaseThroughTransfersFromToInvestmentPropertyPropertyPlantAndEquipment"}]
["/*",null,{"$f":"'822100 - Nota. Prop, plan y eq.'!$E$72","v":"Incrementos (disminuciones) por transferencias desde construcciones en proceso , propiedades, planta y equipo"},{"$f":"'822100 - Nota. Prop, plan y eq.'!$D$72","v":"ifrs-full:IncreaseDecreaseThroughTransfersFromConstructionInProgressPropertyPlantAndEquipment"}]
["/*",null,{"$f":"'822100 - Nota. Prop, plan y eq.'!$E$73","v":"Incrementos (disminuciones) por otros cambios, propiedades, planta y equipo"},{"$f":"'822100 - Nota. Prop, plan y eq.'!$D$73","v":"ifrs-full:IncreaseDecreaseThroughOtherChangesPropertyPlantAndEquipment"}]
["",null,{"$f":"'822100 - Nota. Prop, plan y eq.'!$E$74","v":"Total incrementos (disminuciones) por transferencias y otros cambios, propiedades, planta y equipo"},{"$f":"'822100 - Nota. Prop, plan y eq.'!$D$74","v":"ifrs-full:IncreaseDecreaseThroughTransfersAndOtherChangesPropertyPlantAndEquipment"},0,"peso",{"$f":"'822100 - Nota. Prop, plan y eq.'!$I$74","v":0},0,"http://www.xbrl.org/scheme/companyName",{"$f":"Periodos!$D$3","v":"2022-01-01"},{"$f":"Periodos!$D$4","v":"2022-12-31"},{"$f":"'822100 - Nota. Prop, plan y eq.'!$E$52","v":"co-svsp-core:PropiedadesPlantaYEquipoEje_G1"},{"$f":"'822100 - Nota. Prop, plan y eq.'!$I$51","v":"ifrs-full:MachineryMember"}]
["/*",null,{"$f":"'822100 - Nota. Prop, plan y eq.'!$E$75","v":"Disposiciones y retiros de servicio, propiedades, planta y equipo [resumen]"},{"$f":"'822100 - Nota. Prop, plan y eq.'!$D$75","v":"ifrs-full:DisposalsAndRetirementsPropertyPlantAndEquipmentAbstract"}]
["/*",null,{"$f":"'822100 - Nota. Prop, plan y eq.'!$E$76","v":"Disposiciones, propiedades, planta y equipo"},{"$f":"'822100 - Nota. Prop, plan y eq.'!$D$76","v":"ifrs-full:DisposalsPropertyPlantAndEquipment"}]
["/*",null,{"$f":"'822100 - Nota. Prop, plan y eq.'!$E$77","v":"Retiros, propiedades, planta y equipo"},{"$f":"'822100 - Nota. Prop, plan y eq.'!$D$77","v":"ifrs-full:RetirementsPropertyPlantAndEquipment"}]
["",null,{"$f":"'822100 - Nota. Prop, plan y eq.'!$E$78","v":"Total de disposiciones y retiros de servicio, propiedades, planta y equipo"},{"$f":"'822100 - Nota. Prop, plan y eq.'!$D$78","v":"ifrs-full:DisposalsAndRetirementsPropertyPlantAndEquipment"},0,"peso",{"$f":"'822100 - Nota. Prop, plan y eq.'!$I$78","v":0},0,"http://www.xbrl.org/scheme/companyName",{"$f":"Periodos!$D$3","v":"2022-01-01"},{"$f":"Periodos!$D$4","v":"2022-12-31"},{"$f":"'822100 - Nota. Prop, plan y eq.'!$E$52","v":"co-svsp-core:PropiedadesPlantaYEquipoEje_G1"},{"$f":"'822100 - Nota. Prop, plan y eq.'!$I$51","v":"ifrs-full:MachineryMember"}]
["/*",null,{"$f":"'822100 - Nota. Prop, plan y eq.'!$E$79","v":"Disminuciones por clasificar como mantenidos para la venta, propiedades, planta y equipo"},{"$f":"'822100 - Nota. Prop, plan y eq.'!$D$79","v":"ifrs-full:DecreaseThroughClassifiedAsHeldForSalePropertyPlantAndEquipment"}]
["",null,{"$f":"'822100 - Nota. Prop, plan y eq.'!$E$80","v":"Total incremento (disminución) en propiedades, planta y equipo"},{"$f":"'822100 - Nota. Prop, plan y eq.'!$D$80","v":"ifrs-full:ChangesInPropertyPlantAndEquipment"},0,"peso",{"$f":"'822100 - Nota. Prop, plan y eq.'!$I$80","v":0},0,"http://www.xbrl.org/scheme/companyName",{"$f":"Periodos!$D$3","v":"2022-01-01"},{"$f":"Periodos!$D$4","v":"2022-12-31"},{"$f":"'822100 - Nota. Prop, plan y eq.'!$E$52","v":"co-svsp-core:PropiedadesPlantaYEquipoEje_G1"},{"$f":"'822100 - Nota. Prop, plan y eq.'!$I$51","v":"ifrs-full:MachineryMember"}]
["",null,{"$f":"'822100 - Nota. Prop, plan y eq.'!$E$81","v":"Propiedades, planta y equipo al final del periodo"},{"$f":"'822100 - Nota. Prop, plan y eq.'!$D$81","v":"ifrs-full:PropertyPlantAndEquipment"},0,"peso",{"$f":"'822100 - Nota. Prop, plan y eq.'!$I$81","v":0},0,"http://www.xbrl.org/scheme/companyName",null,{"$f":"Periodos!$D$4","v":"2022-12-31"},{"$f":"'822100 - Nota. Prop, plan y eq.'!$E$52","v":"co-svsp-core:PropiedadesPlantaYEquipoEje_G1"},{"$f":"'822100 - Nota. Prop, plan y eq.'!$I$51","v":"ifrs-full:MachineryMember"}]
["/*",null,"--05--"]
["/*",null,{"$f":"'822100 - Nota. Prop, plan y eq.'!$E$53","v":"Información a revelar detallada sobre propiedades, planta y equipo [partidas de los estados financieros]"},{"$f":"'822100 - Nota. Prop, plan y eq.'!$D$53","v":"ifrs-full:DisclosureOfPropertyPlantAndEquipmentLineItems"}]
["/*",null,{"$f":"'822100 - Nota. Prop, plan y eq.'!$E$54","v":"Bases de medición, propiedades, planta y equipo"},{"$f":"'822100 - Nota. Prop, plan y eq.'!$D$54","v":"ifrs-full:MeasurementBasesPropertyPlantAndEquipment"}]
["/*",null,{"$f":"'822100 - Nota. Prop, plan y eq.'!$E$55","v":"Método de depreciación, propiedades, planta y equipo"},{"$f":"'822100 - Nota. Prop, plan y eq.'!$D$55","v":"ifrs-full:DepreciationMethodPropertyPlantAndEquipment"}]
["/*",null,{"$f":"'822100 - Nota. Prop, plan y eq.'!$E$56","v":"Fechas de vigencia de revaluación, propiedades, planta y equipo"},{"$f":"'822100 - Nota. Prop, plan y eq.'!$D$56","v":"ifrs-full:EffectiveDatesOfRevaluationPropertyPlantAndEquipment"}]
["/*",null,{"$f":"'822100 - Nota. Prop, plan y eq.'!$E$57","v":"Explicación de la implicación del tasador independiente en la revaluación, propiedades, planta y equipo"},{"$f":"'822100 - Nota. Prop, plan y eq.'!$D$57","v":"ifrs-full:ExplanationOfIndependentValuerUsedForRevaluationPropertyPlantAndEquipment"}]
["/*",null,{"$f":"'822100 - Nota. Prop, plan y eq.'!$E$58","v":"Explicación del método de revaluación y supuestos significativos, propiedad, planta y equipo"},{"$f":"'822100 - Nota. Prop, plan y eq.'!$D$58","v":"co-svsp-core:ExplanationOfRevaluationMethodsAndSignificantAssumptionsPropertyPlantAndEquipment"}]
["/*",null,{"$f":"'822100 - Nota. Prop, plan y eq.'!$E$59","v":"Conciliación de cambios en propiedades, planta y equipo [resumen]"},{"$f":"'822100 - Nota. Prop, plan y eq.'!$D$59","v":"ifrs-full:ReconciliationOfChangesInPropertyPlantAndEquipmentAbstract"}]
["/*",null,{"$f":"'822100 - Nota. Prop, plan y eq.'!$E$60","v":"Propiedades, planta y equipo al comienzo del periodo"},{"$f":"'822100 - Nota. Prop, plan y eq.'!$D$60","v":"ifrs-full:PropertyPlantAndEquipment"}]
["/*",null,{"$f":"'822100 - Nota. Prop, plan y eq.'!$E$61","v":"Cambios en propiedades, planta y equipo [resumen]"},{"$f":"'822100 - Nota. Prop, plan y eq.'!$D$61","v":"ifrs-full:ChangesInPropertyPlantAndEquipmentAbstract"}]
["/*",null,{"$f":"'822100 - Nota. Prop, plan y eq.'!$E$62","v":"Incrementos distintos de los procedentes de combinaciones de negocios, propiedades, planta y equipo"},{"$f":"'822100 - Nota. Prop, plan y eq.'!$D$62","v":"ifrs-full:AdditionsOtherThanThroughBusinessCombinationsPropertyPlantAndEquipment"}]
["/*",null,{"$f":"'822100 - Nota. Prop, plan y eq.'!$E$63","v":"Adquisiciones realizadas mediante combinaciones de negocios, propiedades, planta y equipo"},{"$f":"'822100 - Nota. Prop, plan y eq.'!$D$63","v":"ifrs-full:AcquisitionsThroughBusinessCombinationsPropertyPlantAndEquipment"}]
["/*",null,{"$f":"'822100 - Nota. Prop, plan y eq.'!$E$64","v":"Depreciación, propiedades, planta y equipo"},{"$f":"'822100 - Nota. Prop, plan y eq.'!$D$64","v":"ifrs-full:DepreciationPropertyPlantAndEquipment"}]
["/*",null,{"$f":"'822100 - Nota. Prop, plan y eq.'!$E$65","v":"Pérdidas por deterioro de valor reconocidas en el resultado del periodo, propiedades, planta y equipo"},{"$f":"'822100 - Nota. Prop, plan y eq.'!$D$65","v":"ifrs-full:ImpairmentLossRecognisedInProfitOrLossPropertyPlantAndEquipment"}]
["/*",null,{"$f":"'822100 - Nota. Prop, plan y eq.'!$E$66","v":"Reversión de pérdidas por deterioro de valor reconocidas en el resultado del periodo, propiedades, planta y equipo"},{"$f":"'822100 - Nota. Prop, plan y eq.'!$D$66","v":"ifrs-full:ReversalOfImpairmentLossRecognisedInProfitOrLossPropertyPlantAndEquipment"}]
["/*",null,{"$f":"'822100 - Nota. Prop, plan y eq.'!$E$67","v":"Incrementos (disminuciones) de revaluaciones, propiedades, planta y equipo"},{"$f":"'822100 - Nota. Prop, plan y eq.'!$D$67","v":"ifrs-full:RevaluationIncreaseDecreasePropertyPlantAndEquipment"}]
["/*",null,{"$f":"'822100 - Nota. Prop, plan y eq.'!$E$68","v":"Pérdidas por deterioro de valor reconocidas en otro resultado integral, propiedades, planta y equipo"},{"$f":"'822100 - Nota. Prop, plan y eq.'!$D$68","v":"ifrs-full:ImpairmentLossRecognisedInOtherComprehensiveIncomePropertyPlantAndEquipment"}]
["/*",null,{"$f":"'822100 - Nota. Prop, plan y eq.'!$E$69","v":"Reversión de pérdidas por deterioro de valor reconocidas en otro resultado integral, propiedades, planta y equipo"},{"$f":"'822100 - Nota. Prop, plan y eq.'!$D$69","v":"ifrs-full:ReversalOfImpairmentLossRecognisedInOtherComprehensiveIncomePropertyPlantAndEquipment"}]
["/*",null,{"$f":"'822100 - Nota. Prop, plan y eq.'!$E$70","v":"Incrementos (disminuciones) por transferencias y otros cambios, propiedades, planta y equipo [resumen]"},{"$f":"'822100 - Nota. Prop, plan y eq.'!$D$70","v":"ifrs-full:IncreaseDecreaseThroughTransfersAndOtherChangesPropertyPlantAndEquipmentAbstract"}]
["/*",null,{"$f":"'822100 - Nota. Prop, plan y eq.'!$E$71","v":"Incrementos (disminuciones) por transferencias desde (hacia) propiedades de inversión, propiedades, planta y equipo"},{"$f":"'822100 - Nota. Prop, plan y eq.'!$D$71","v":"ifrs-full:IncreaseDecreaseThroughTransfersFromToInvestmentPropertyPropertyPlantAndEquipment"}]
["/*",null,{"$f":"'822100 - Nota. Prop, plan y eq.'!$E$72","v":"Incrementos (disminuciones) por transferencias desde construcciones en proceso , propiedades, planta y equipo"},{"$f":"'822100 - Nota. Prop, plan y eq.'!$D$72","v":"ifrs-full:IncreaseDecreaseThroughTransfersFromConstructionInProgressPropertyPlantAndEquipment"}]
["/*",null,{"$f":"'822100 - Nota. Prop, plan y eq.'!$E$73","v":"Incrementos (disminuciones) por otros cambios, propiedades, planta y equipo"},{"$f":"'822100 - Nota. Prop, plan y eq.'!$D$73","v":"ifrs-full:IncreaseDecreaseThroughOtherChangesPropertyPlantAndEquipment"}]
["",null,{"$f":"'822100 - Nota. Prop, plan y eq.'!$E$74","v":"Total incrementos (disminuciones) por transferencias y otros cambios, propiedades, planta y equipo"},{"$f":"'822100 - Nota. Prop, plan y eq.'!$D$74","v":"ifrs-full:IncreaseDecreaseThroughTransfersAndOtherChangesPropertyPlantAndEquipment"},0,"peso",{"$f":"'822100 - Nota. Prop, plan y eq.'!$J$74","v":0},0,"http://www.xbrl.org/scheme/companyName",{"$f":"Periodos!$D$3","v":"2022-01-01"},{"$f":"Periodos!$D$4","v":"2022-12-31"},{"$f":"'822100 - Nota. Prop, plan y eq.'!$E$52","v":"co-svsp-core:PropiedadesPlantaYEquipoEje_G1"},{"$f":"'822100 - Nota. Prop, plan y eq.'!$J$51","v":"ifrs-full:ShipsMember"}]
["/*",null,{"$f":"'822100 - Nota. Prop, plan y eq.'!$E$75","v":"Disposiciones y retiros de servicio, propiedades, planta y equipo [resumen]"},{"$f":"'822100 - Nota. Prop, plan y eq.'!$D$75","v":"ifrs-full:DisposalsAndRetirementsPropertyPlantAndEquipmentAbstract"}]
["/*",null,{"$f":"'822100 - Nota. Prop, plan y eq.'!$E$76","v":"Disposiciones, propiedades, planta y equipo"},{"$f":"'822100 - Nota. Prop, plan y eq.'!$D$76","v":"ifrs-full:DisposalsPropertyPlantAndEquipment"}]
["/*",null,{"$f":"'822100 - Nota. Prop, plan y eq.'!$E$77","v":"Retiros, propiedades, planta y equipo"},{"$f":"'822100 - Nota. Prop, plan y eq.'!$D$77","v":"ifrs-full:RetirementsPropertyPlantAndEquipment"}]
["",null,{"$f":"'822100 - Nota. Prop, plan y eq.'!$E$78","v":"Total de disposiciones y retiros de servicio, propiedades, planta y equipo"},{"$f":"'822100 - Nota. Prop, plan y eq.'!$D$78","v":"ifrs-full:DisposalsAndRetirementsPropertyPlantAndEquipment"},0,"peso",{"$f":"'822100 - Nota. Prop, plan y eq.'!$J$78","v":0},0,"http://www.xbrl.org/scheme/companyName",{"$f":"Periodos!$D$3","v":"2022-01-01"},{"$f":"Periodos!$D$4","v":"2022-12-31"},{"$f":"'822100 - Nota. Prop, plan y eq.'!$E$52","v":"co-svsp-core:PropiedadesPlantaYEquipoEje_G1"},{"$f":"'822100 - Nota. Prop, plan y eq.'!$J$51","v":"ifrs-full:ShipsMember"}]
["/*",null,{"$f":"'822100 - Nota. Prop, plan y eq.'!$E$79","v":"Disminuciones por clasificar como mantenidos para la venta, propiedades, planta y equipo"},{"$f":"'822100 - Nota. Prop, plan y eq.'!$D$79","v":"ifrs-full:DecreaseThroughClassifiedAsHeldForSalePropertyPlantAndEquipment"}]
[{"$f":"IF(G5856=\"\",\"/*\",\"\")","v":""},null,{"$f":"'822100 - Nota. Prop, plan y eq.'!$E$80","v":"Total incremento (disminución) en propiedades, planta y equipo"},{"$f":"'822100 - Nota. Prop, plan y eq.'!$D$80","v":"ifrs-full:ChangesInPropertyPlantAndEquipment"},0,"peso",{"$f":"'822100 - Nota. Prop, plan y eq.'!$J$80","v":0},0,"http://www.xbrl.org/scheme/companyName",{"$f":"Periodos!$D$3","v":"2022-01-01"},{"$f":"Periodos!$D$4","v":"2022-12-31"},{"$f":"'822100 - Nota. Prop, plan y eq.'!$E$52","v":"co-svsp-core:PropiedadesPlantaYEquipoEje_G1"},{"$f":"'822100 - Nota. Prop, plan y eq.'!$J$51","v":"ifrs-full:ShipsMember"}]
["",null,{"$f":"'822100 - Nota. Prop, plan y eq.'!$E$81","v":"Propiedades, planta y equipo al final del periodo"},{"$f":"'822100 - Nota. Prop, plan y eq.'!$D$81","v":"ifrs-full:PropertyPlantAndEquipment"},0,"peso",{"$f":"'822100 - Nota. Prop, plan y eq.'!$J$81","v":0},0,"http://www.xbrl.org/scheme/companyName",null,{"$f":"Periodos!$D$4","v":"2022-12-31"},{"$f":"'822100 - Nota. Prop, plan y eq.'!$E$52","v":"co-svsp-core:PropiedadesPlantaYEquipoEje_G1"},{"$f":"'822100 - Nota. Prop, plan y eq.'!$J$51","v":"ifrs-full:ShipsMember"}]
["/*",null,"--06--"]
["/*",null,{"$f":"'822100 - Nota. Prop, plan y eq.'!$E$53","v":"Información a revelar detallada sobre propiedades, planta y equipo [partidas de los estados financieros]"},{"$f":"'822100 - Nota. Prop, plan y eq.'!$D$53","v":"ifrs-full:DisclosureOfPropertyPlantAndEquipmentLineItems"}]
["/*",null,{"$f":"'822100 - Nota. Prop, plan y eq.'!$E$54","v":"Bases de medición, propiedades, planta y equipo"},{"$f":"'822100 - Nota. Prop, plan y eq.'!$D$54","v":"ifrs-full:MeasurementBasesPropertyPlantAndEquipment"}]
["/*",null,{"$f":"'822100 - Nota. Prop, plan y eq.'!$E$55","v":"Método de depreciación, propiedades, planta y equipo"},{"$f":"'822100 - Nota. Prop, plan y eq.'!$D$55","v":"ifrs-full:DepreciationMethodPropertyPlantAndEquipment"}]
["/*",null,{"$f":"'822100 - Nota. Prop, plan y eq.'!$E$56","v":"Fechas de vigencia de revaluación, propiedades, planta y equipo"},{"$f":"'822100 - Nota. Prop, plan y eq.'!$D$56","v":"ifrs-full:EffectiveDatesOfRevaluationPropertyPlantAndEquipment"}]
["/*",null,{"$f":"'822100 - Nota. Prop, plan y eq.'!$E$57","v":"Explicación de la implicación del tasador independiente en la revaluación, propiedades, planta y equipo"},{"$f":"'822100 - Nota. Prop, plan y eq.'!$D$57","v":"ifrs-full:ExplanationOfIndependentValuerUsedForRevaluationPropertyPlantAndEquipment"}]
["/*",null,{"$f":"'822100 - Nota. Prop, plan y eq.'!$E$58","v":"Explicación del método de revaluación y supuestos significativos, propiedad, planta y equipo"},{"$f":"'822100 - Nota. Prop, plan y eq.'!$D$58","v":"co-svsp-core:ExplanationOfRevaluationMethodsAndSignificantAssumptionsPropertyPlantAndEquipment"}]
["/*",null,{"$f":"'822100 - Nota. Prop, plan y eq.'!$E$59","v":"Conciliación de cambios en propiedades, planta y equipo [resumen]"},{"$f":"'822100 - Nota. Prop, plan y eq.'!$D$59","v":"ifrs-full:ReconciliationOfChangesInPropertyPlantAndEquipmentAbstract"}]
["/*",null,{"$f":"'822100 - Nota. Prop, plan y eq.'!$E$60","v":"Propiedades, planta y equipo al comienzo del periodo"},{"$f":"'822100 - Nota. Prop, plan y eq.'!$D$60","v":"ifrs-full:PropertyPlantAndEquipment"}]
["/*",null,{"$f":"'822100 - Nota. Prop, plan y eq.'!$E$61","v":"Cambios en propiedades, planta y equipo [resumen]"},{"$f":"'822100 - Nota. Prop, plan y eq.'!$D$61","v":"ifrs-full:ChangesInPropertyPlantAndEquipmentAbstract"}]
["/*",null,{"$f":"'822100 - Nota. Prop, plan y eq.'!$E$62","v":"Incrementos distintos de los procedentes de combinaciones de negocios, propiedades, planta y equipo"},{"$f":"'822100 - Nota. Prop, plan y eq.'!$D$62","v":"ifrs-full:AdditionsOtherThanThroughBusinessCombinationsPropertyPlantAndEquipment"}]
["/*",null,{"$f":"'822100 - Nota. Prop, plan y eq.'!$E$63","v":"Adquisiciones realizadas mediante combinaciones de negocios, propiedades, planta y equipo"},{"$f":"'822100 - Nota. Prop, plan y eq.'!$D$63","v":"ifrs-full:AcquisitionsThroughBusinessCombinationsPropertyPlantAndEquipment"}]
["/*",null,{"$f":"'822100 - Nota. Prop, plan y eq.'!$E$64","v":"Depreciación, propiedades, planta y equipo"},{"$f":"'822100 - Nota. Prop, plan y eq.'!$D$64","v":"ifrs-full:DepreciationPropertyPlantAndEquipment"}]
["/*",null,{"$f":"'822100 - Nota. Prop, plan y eq.'!$E$65","v":"Pérdidas por deterioro de valor reconocidas en el resultado del periodo, propiedades, planta y equipo"},{"$f":"'822100 - Nota. Prop, plan y eq.'!$D$65","v":"ifrs-full:ImpairmentLossRecognisedInProfitOrLossPropertyPlantAndEquipment"}]
["/*",null,{"$f":"'822100 - Nota. Prop, plan y eq.'!$E$66","v":"Reversión de pérdidas por deterioro de valor reconocidas en el resultado del periodo, propiedades, planta y equipo"},{"$f":"'822100 - Nota. Prop, plan y eq.'!$D$66","v":"ifrs-full:ReversalOfImpairmentLossRecognisedInProfitOrLossPropertyPlantAndEquipment"}]
["/*",null,{"$f":"'822100 - Nota. Prop, plan y eq.'!$E$67","v":"Incrementos (disminuciones) de revaluaciones, propiedades, planta y equipo"},{"$f":"'822100 - Nota. Prop, plan y eq.'!$D$67","v":"ifrs-full:RevaluationIncreaseDecreasePropertyPlantAndEquipment"}]
["/*",null,{"$f":"'822100 - Nota. Prop, plan y eq.'!$E$68","v":"Pérdidas por deterioro de valor reconocidas en otro resultado integral, propiedades, planta y equipo"},{"$f":"'822100 - Nota. Prop, plan y eq.'!$D$68","v":"ifrs-full:ImpairmentLossRecognisedInOtherComprehensiveIncomePropertyPlantAndEquipment"}]
["/*",null,{"$f":"'822100 - Nota. Prop, plan y eq.'!$E$69","v":"Reversión de pérdidas por deterioro de valor reconocidas en otro resultado integral, propiedades, planta y equipo"},{"$f":"'822100 - Nota. Prop, plan y eq.'!$D$69","v":"ifrs-full:ReversalOfImpairmentLossRecognisedInOtherComprehensiveIncomePropertyPlantAndEquipment"}]
["/*",null,{"$f":"'822100 - Nota. Prop, plan y eq.'!$E$70","v":"Incrementos (disminuciones) por transferencias y otros cambios, propiedades, planta y equipo [resumen]"},{"$f":"'822100 - Nota. Prop, plan y eq.'!$D$70","v":"ifrs-full:IncreaseDecreaseThroughTransfersAndOtherChangesPropertyPlantAndEquipmentAbstract"}]
["/*",null,{"$f":"'822100 - Nota. Prop, plan y eq.'!$E$71","v":"Incrementos (disminuciones) por transferencias desde (hacia) propiedades de inversión, propiedades, planta y equipo"},{"$f":"'822100 - Nota. Prop, plan y eq.'!$D$71","v":"ifrs-full:IncreaseDecreaseThroughTransfersFromToInvestmentPropertyPropertyPlantAndEquipment"}]
["/*",null,{"$f":"'822100 - Nota. Prop, plan y eq.'!$E$72","v":"Incrementos (disminuciones) por transferencias desde construcciones en proceso , propiedades, planta y equipo"},{"$f":"'822100 - Nota. Prop, plan y eq.'!$D$72","v":"ifrs-full:IncreaseDecreaseThroughTransfersFromConstructionInProgressPropertyPlantAndEquipment"}]
["/*",null,{"$f":"'822100 - Nota. Prop, plan y eq.'!$E$73","v":"Incrementos (disminuciones) por otros cambios, propiedades, planta y equipo"},{"$f":"'822100 - Nota. Prop, plan y eq.'!$D$73","v":"ifrs-full:IncreaseDecreaseThroughOtherChangesPropertyPlantAndEquipment"}]
["",null,{"$f":"'822100 - Nota. Prop, plan y eq.'!$E$74","v":"Total incrementos (disminuciones) por transferencias y otros cambios, propiedades, planta y equipo"},{"$f":"'822100 - Nota. Prop, plan y eq.'!$D$74","v":"ifrs-full:IncreaseDecreaseThroughTransfersAndOtherChangesPropertyPlantAndEquipment"},0,"peso",{"$f":"'822100 - Nota. Prop, plan y eq.'!$K$74","v":0},0,"http://www.xbrl.org/scheme/companyName",{"$f":"Periodos!$D$3","v":"2022-01-01"},{"$f":"Periodos!$D$4","v":"2022-12-31"},{"$f":"'822100 - Nota. Prop, plan y eq.'!$E$52","v":"co-svsp-core:PropiedadesPlantaYEquipoEje_G1"},{"$f":"'822100 - Nota. Prop, plan y eq.'!$K$51","v":"ifrs-full:AircraftMember"}]
["/*",null,{"$f":"'822100 - Nota. Prop, plan y eq.'!$E$75","v":"Disposiciones y retiros de servicio, propiedades, planta y equipo [resumen]"},{"$f":"'822100 - Nota. Prop, plan y eq.'!$D$75","v":"ifrs-full:DisposalsAndRetirementsPropertyPlantAndEquipmentAbstract"}]
["/*",null,{"$f":"'822100 - Nota. Prop, plan y eq.'!$E$76","v":"Disposiciones, propiedades, planta y equipo"},{"$f":"'822100 - Nota. Prop, plan y eq.'!$D$76","v":"ifrs-full:DisposalsPropertyPlantAndEquipment"}]
["/*",null,{"$f":"'822100 - Nota. Prop, plan y eq.'!$E$77","v":"Retiros, propiedades, planta y equipo"},{"$f":"'822100 - Nota. Prop, plan y eq.'!$D$77","v":"ifrs-full:RetirementsPropertyPlantAndEquipment"}]
["",null,{"$f":"'822100 - Nota. Prop, plan y eq.'!$E$78","v":"Total de disposiciones y retiros de servicio, propiedades, planta y equipo"},{"$f":"'822100 - Nota. Prop, plan y eq.'!$D$78","v":"ifrs-full:DisposalsAndRetirementsPropertyPlantAndEquipment"},0,"peso",{"$f":"'822100 - Nota. Prop, plan y eq.'!$K$78","v":0},0,"http://www.xbrl.org/scheme/companyName",{"$f":"Periodos!$D$3","v":"2022-01-01"},{"$f":"Periodos!$D$4","v":"2022-12-31"},{"$f":"'822100 - Nota. Prop, plan y eq.'!$E$52","v":"co-svsp-core:PropiedadesPlantaYEquipoEje_G1"},{"$f":"'822100 - Nota. Prop, plan y eq.'!$K$51","v":"ifrs-full:AircraftMember"}]
["/*",null,{"$f":"'822100 - Nota. Prop, plan y eq.'!$E$79","v":"Disminuciones por clasificar como mantenidos para la venta, propiedades, planta y equipo"},{"$f":"'822100 - Nota. Prop, plan y eq.'!$D$79","v":"ifrs-full:DecreaseThroughClassifiedAsHeldForSalePropertyPlantAndEquipment"}]
["",null,{"$f":"'822100 - Nota. Prop, plan y eq.'!$E$80","v":"Total incremento (disminución) en propiedades, planta y equipo"},{"$f":"'822100 - Nota. Prop, plan y eq.'!$D$80","v":"ifrs-full:ChangesInPropertyPlantAndEquipment"},0,"peso",{"$f":"'822100 - Nota. Prop, plan y eq.'!$K$80","v":0},0,"http://www.xbrl.org/scheme/companyName",{"$f":"Periodos!$D$3","v":"2022-01-01"},{"$f":"Periodos!$D$4","v":"2022-12-31"},{"$f":"'822100 - Nota. Prop, plan y eq.'!$E$52","v":"co-svsp-core:PropiedadesPlantaYEquipoEje_G1"},{"$f":"'822100 - Nota. Prop, plan y eq.'!$K$51","v":"ifrs-full:AircraftMember"}]
["",null,{"$f":"'822100 - Nota. Prop, plan y eq.'!$E$81","v":"Propiedades, planta y equipo al final del periodo"},{"$f":"'822100 - Nota. Prop, plan y eq.'!$D$81","v":"ifrs-full:PropertyPlantAndEquipment"},0,"peso",{"$f":"'822100 - Nota. Prop, plan y eq.'!$K$81","v":0},0,"http://www.xbrl.org/scheme/companyName",null,{"$f":"Periodos!$D$4","v":"2022-12-31"},{"$f":"'822100 - Nota. Prop, plan y eq.'!$E$52","v":"co-svsp-core:PropiedadesPlantaYEquipoEje_G1"},{"$f":"'822100 - Nota. Prop, plan y eq.'!$K$51","v":"ifrs-full:AircraftMember"}]
["/*",null,"--07--"]
["/*",null,{"$f":"'822100 - Nota. Prop, plan y eq.'!$E$53","v":"Información a revelar detallada sobre propiedades, planta y equipo [partidas de los estados financieros]"},{"$f":"'822100 - Nota. Prop, plan y eq.'!$D$53","v":"ifrs-full:DisclosureOfPropertyPlantAndEquipmentLineItems"}]
["/*",null,{"$f":"'822100 - Nota. Prop, plan y eq.'!$E$54","v":"Bases de medición, propiedades, planta y equipo"},{"$f":"'822100 - Nota. Prop, plan y eq.'!$D$54","v":"ifrs-full:MeasurementBasesPropertyPlantAndEquipment"}]
["/*",null,{"$f":"'822100 - Nota. Prop, plan y eq.'!$E$55","v":"Método de depreciación, propiedades, planta y equipo"},{"$f":"'822100 - Nota. Prop, plan y eq.'!$D$55","v":"ifrs-full:DepreciationMethodPropertyPlantAndEquipment"}]
["/*",null,{"$f":"'822100 - Nota. Prop, plan y eq.'!$E$56","v":"Fechas de vigencia de revaluación, propiedades, planta y equipo"},{"$f":"'822100 - Nota. Prop, plan y eq.'!$D$56","v":"ifrs-full:EffectiveDatesOfRevaluationPropertyPlantAndEquipment"}]
["/*",null,{"$f":"'822100 - Nota. Prop, plan y eq.'!$E$57","v":"Explicación de la implicación del tasador independiente en la revaluación, propiedades, planta y equipo"},{"$f":"'822100 - Nota. Prop, plan y eq.'!$D$57","v":"ifrs-full:ExplanationOfIndependentValuerUsedForRevaluationPropertyPlantAndEquipment"}]
["/*",null,{"$f":"'822100 - Nota. Prop, plan y eq.'!$E$58","v":"Explicación del método de revaluación y supuestos significativos, propiedad, planta y equipo"},{"$f":"'822100 - Nota. Prop, plan y eq.'!$D$58","v":"co-svsp-core:ExplanationOfRevaluationMethodsAndSignificantAssumptionsPropertyPlantAndEquipment"}]
["/*",null,{"$f":"'822100 - Nota. Prop, plan y eq.'!$E$59","v":"Conciliación de cambios en propiedades, planta y equipo [resumen]"},{"$f":"'822100 - Nota. Prop, plan y eq.'!$D$59","v":"ifrs-full:ReconciliationOfChangesInPropertyPlantAndEquipmentAbstract"}]
["/*",null,{"$f":"'822100 - Nota. Prop, plan y eq.'!$E$60","v":"Propiedades, planta y equipo al comienzo del periodo"},{"$f":"'822100 - Nota. Prop, plan y eq.'!$D$60","v":"ifrs-full:PropertyPlantAndEquipment"}]
["/*",null,{"$f":"'822100 - Nota. Prop, plan y eq.'!$E$61","v":"Cambios en propiedades, planta y equipo [resumen]"},{"$f":"'822100 - Nota. Prop, plan y eq.'!$D$61","v":"ifrs-full:ChangesInPropertyPlantAndEquipmentAbstract"}]
["/*",null,{"$f":"'822100 - Nota. Prop, plan y eq.'!$E$62","v":"Incrementos distintos de los procedentes de combinaciones de negocios, propiedades, planta y equipo"},{"$f":"'822100 - Nota. Prop, plan y eq.'!$D$62","v":"ifrs-full:AdditionsOtherThanThroughBusinessCombinationsPropertyPlantAndEquipment"}]
["/*",null,{"$f":"'822100 - Nota. Prop, plan y eq.'!$E$63","v":"Adquisiciones realizadas mediante combinaciones de negocios, propiedades, planta y equipo"},{"$f":"'822100 - Nota. Prop, plan y eq.'!$D$63","v":"ifrs-full:AcquisitionsThroughBusinessCombinationsPropertyPlantAndEquipment"}]
["/*",null,{"$f":"'822100 - Nota. Prop, plan y eq.'!$E$64","v":"Depreciación, propiedades, planta y equipo"},{"$f":"'822100 - Nota. Prop, plan y eq.'!$D$64","v":"ifrs-full:DepreciationPropertyPlantAndEquipment"}]
["/*",null,{"$f":"'822100 - Nota. Prop, plan y eq.'!$E$65","v":"Pérdidas por deterioro de valor reconocidas en el resultado del periodo, propiedades, planta y equipo"},{"$f":"'822100 - Nota. Prop, plan y eq.'!$D$65","v":"ifrs-full:ImpairmentLossRecognisedInProfitOrLossPropertyPlantAndEquipment"}]
["/*",null,{"$f":"'822100 - Nota. Prop, plan y eq.'!$E$66","v":"Reversión de pérdidas por deterioro de valor reconocidas en el resultado del periodo, propiedades, planta y equipo"},{"$f":"'822100 - Nota. Prop, plan y eq.'!$D$66","v":"ifrs-full:ReversalOfImpairmentLossRecognisedInProfitOrLossPropertyPlantAndEquipment"}]
["/*",null,{"$f":"'822100 - Nota. Prop, plan y eq.'!$E$67","v":"Incrementos (disminuciones) de revaluaciones, propiedades, planta y equipo"},{"$f":"'822100 - Nota. Prop, plan y eq.'!$D$67","v":"ifrs-full:RevaluationIncreaseDecreasePropertyPlantAndEquipment"}]
["/*",null,{"$f":"'822100 - Nota. Prop, plan y eq.'!$E$68","v":"Pérdidas por deterioro de valor reconocidas en otro resultado integral, propiedades, planta y equipo"},{"$f":"'822100 - Nota. Prop, plan y eq.'!$D$68","v":"ifrs-full:ImpairmentLossRecognisedInOtherComprehensiveIncomePropertyPlantAndEquipment"}]
["/*",null,{"$f":"'822100 - Nota. Prop, plan y eq.'!$E$69","v":"Reversión de pérdidas por deterioro de valor reconocidas en otro resultado integral, propiedades, planta y equipo"},{"$f":"'822100 - Nota. Prop, plan y eq.'!$D$69","v":"ifrs-full:ReversalOfImpairmentLossRecognisedInOtherComprehensiveIncomePropertyPlantAndEquipment"}]
["/*",null,{"$f":"'822100 - Nota. Prop, plan y eq.'!$E$70","v":"Incrementos (disminuciones) por transferencias y otros cambios, propiedades, planta y equipo [resumen]"},{"$f":"'822100 - Nota. Prop, plan y eq.'!$D$70","v":"ifrs-full:IncreaseDecreaseThroughTransfersAndOtherChangesPropertyPlantAndEquipmentAbstract"}]
["/*",null,{"$f":"'822100 - Nota. Prop, plan y eq.'!$E$71","v":"Incrementos (disminuciones) por transferencias desde (hacia) propiedades de inversión, propiedades, planta y equipo"},{"$f":"'822100 - Nota. Prop, plan y eq.'!$D$71","v":"ifrs-full:IncreaseDecreaseThroughTransfersFromToInvestmentPropertyPropertyPlantAndEquipment"}]
["/*",null,{"$f":"'822100 - Nota. Prop, plan y eq.'!$E$72","v":"Incrementos (disminuciones) por transferencias desde construcciones en proceso , propiedades, planta y equipo"},{"$f":"'822100 - Nota. Prop, plan y eq.'!$D$72","v":"ifrs-full:IncreaseDecreaseThroughTransfersFromConstructionInProgressPropertyPlantAndEquipment"}]
["/*",null,{"$f":"'822100 - Nota. Prop, plan y eq.'!$E$73","v":"Incrementos (disminuciones) por otros cambios, propiedades, planta y equipo"},{"$f":"'822100 - Nota. Prop, plan y eq.'!$D$73","v":"ifrs-full:IncreaseDecreaseThroughOtherChangesPropertyPlantAndEquipment"}]
["",null,{"$f":"'822100 - Nota. Prop, plan y eq.'!$E$74","v":"Total incrementos (disminuciones) por transferencias y otros cambios, propiedades, planta y equipo"},{"$f":"'822100 - Nota. Prop, plan y eq.'!$D$74","v":"ifrs-full:IncreaseDecreaseThroughTransfersAndOtherChangesPropertyPlantAndEquipment"},0,"peso",{"$f":"'822100 - Nota. Prop, plan y eq.'!$L$74","v":0},0,"http://www.xbrl.org/scheme/companyName",{"$f":"Periodos!$D$3","v":"2022-01-01"},{"$f":"Periodos!$D$4","v":"2022-12-31"},{"$f":"'822100 - Nota. Prop, plan y eq.'!$E$52","v":"co-svsp-core:PropiedadesPlantaYEquipoEje_G1"},{"$f":"'822100 - Nota. Prop, plan y eq.'!$L$51","v":"co-svsp-core:AutomovilesBlindandosMiembro"}]
["/*",null,{"$f":"'822100 - Nota. Prop, plan y eq.'!$E$75","v":"Disposiciones y retiros de servicio, propiedades, planta y equipo [resumen]"},{"$f":"'822100 - Nota. Prop, plan y eq.'!$D$75","v":"ifrs-full:DisposalsAndRetirementsPropertyPlantAndEquipmentAbstract"}]
["/*",null,{"$f":"'822100 - Nota. Prop, plan y eq.'!$E$76","v":"Disposiciones, propiedades, planta y equipo"},{"$f":"'822100 - Nota. Prop, plan y eq.'!$D$76","v":"ifrs-full:DisposalsPropertyPlantAndEquipment"}]
["/*",null,{"$f":"'822100 - Nota. Prop, plan y eq.'!$E$77","v":"Retiros, propiedades, planta y equipo"},{"$f":"'822100 - Nota. Prop, plan y eq.'!$D$77","v":"ifrs-full:RetirementsPropertyPlantAndEquipment"}]
["",null,{"$f":"'822100 - Nota. Prop, plan y eq.'!$E$78","v":"Total de disposiciones y retiros de servicio, propiedades, planta y equipo"},{"$f":"'822100 - Nota. Prop, plan y eq.'!$D$78","v":"ifrs-full:DisposalsAndRetirementsPropertyPlantAndEquipment"},0,"peso",{"$f":"'822100 - Nota. Prop, plan y eq.'!$L$78","v":0},0,"http://www.xbrl.org/scheme/companyName",{"$f":"Periodos!$D$3","v":"2022-01-01"},{"$f":"Periodos!$D$4","v":"2022-12-31"},{"$f":"'822100 - Nota. Prop, plan y eq.'!$E$52","v":"co-svsp-core:PropiedadesPlantaYEquipoEje_G1"},{"$f":"'822100 - Nota. Prop, plan y eq.'!$L$51","v":"co-svsp-core:AutomovilesBlindandosMiembro"}]
["/*",null,{"$f":"'822100 - Nota. Prop, plan y eq.'!$E$79","v":"Disminuciones por clasificar como mantenidos para la venta, propiedades, planta y equipo"},{"$f":"'822100 - Nota. Prop, plan y eq.'!$D$79","v":"ifrs-full:DecreaseThroughClassifiedAsHeldForSalePropertyPlantAndEquipment"}]
["",null,{"$f":"'822100 - Nota. Prop, plan y eq.'!$E$80","v":"Total incremento (disminución) en propiedades, planta y equipo"},{"$f":"'822100 - Nota. Prop, plan y eq.'!$D$80","v":"ifrs-full:ChangesInPropertyPlantAndEquipment"},0,"peso",{"$f":"'822100 - Nota. Prop, plan y eq.'!$L$80","v":0},0,"http://www.xbrl.org/scheme/companyName",{"$f":"Periodos!$D$3","v":"2022-01-01"},{"$f":"Periodos!$D$4","v":"2022-12-31"},{"$f":"'822100 - Nota. Prop, plan y eq.'!$E$52","v":"co-svsp-core:PropiedadesPlantaYEquipoEje_G1"},{"$f":"'822100 - Nota. Prop, plan y eq.'!$L$51","v":"co-svsp-core:AutomovilesBlindandosMiembro"}]
["",null,{"$f":"'822100 - Nota. Prop, plan y eq.'!$E$81","v":"Propiedades, planta y equipo al final del periodo"},{"$f":"'822100 - Nota. Prop, plan y eq.'!$D$81","v":"ifrs-full:PropertyPlantAndEquipment"},0,"peso",{"$f":"'822100 - Nota. Prop, plan y eq.'!$L$81","v":0},0,"http://www.xbrl.org/scheme/companyName",null,{"$f":"Periodos!$D$4","v":"2022-12-31"},{"$f":"'822100 - Nota. Prop, plan y eq.'!$E$52","v":"co-svsp-core:PropiedadesPlantaYEquipoEje_G1"},{"$f":"'822100 - Nota. Prop, plan y eq.'!$L$51","v":"co-svsp-core:AutomovilesBlindandosMiembro"}]
["/*",null,"--08--"]
["/*",null,{"$f":"'822100 - Nota. Prop, plan y eq.'!$E$53","v":"Información a revelar detallada sobre propiedades, planta y equipo [partidas de los estados financieros]"},{"$f":"'822100 - Nota. Prop, plan y eq.'!$D$53","v":"ifrs-full:DisclosureOfPropertyPlantAndEquipmentLineItems"}]
[{"$f":"IF(G5920=\"\",\"/*\",\"\")","v":"/*"},null,{"$f":"'822100 - Nota. Prop, plan y eq.'!$E$54","v":"Bases de medición, propiedades, planta y equipo"},{"$f":"'822100 - Nota. Prop, plan y eq.'!$D$54","v":"ifrs-full:MeasurementBasesPropertyPlantAndEquipment"}]
["/*",null,{"$f":"'822100 - Nota. Prop, plan y eq.'!$E$55","v":"Método de depreciación, propiedades, planta y equipo"},{"$f":"'822100 - Nota. Prop, plan y eq.'!$D$55","v":"ifrs-full:DepreciationMethodPropertyPlantAndEquipment"}]
["/*",null,{"$f":"'822100 - Nota. Prop, plan y eq.'!$E$56","v":"Fechas de vigencia de revaluación, propiedades, planta y equipo"},{"$f":"'822100 - Nota. Prop, plan y eq.'!$D$56","v":"ifrs-full:EffectiveDatesOfRevaluationPropertyPlantAndEquipment"}]
["/*",null,{"$f":"'822100 - Nota. Prop, plan y eq.'!$E$57","v":"Explicación de la implicación del tasador independiente en la revaluación, propiedades, planta y equipo"},{"$f":"'822100 - Nota. Prop, plan y eq.'!$D$57","v":"ifrs-full:ExplanationOfIndependentValuerUsedForRevaluationPropertyPlantAndEquipment"}]
["/*",null,{"$f":"'822100 - Nota. Prop, plan y eq.'!$E$58","v":"Explicación del método de revaluación y supuestos significativos, propiedad, planta y equipo"},{"$f":"'822100 - Nota. Prop, plan y eq.'!$D$58","v":"co-svsp-core:ExplanationOfRevaluationMethodsAndSignificantAssumptionsPropertyPlantAndEquipment"}]
["/*",null,{"$f":"'822100 - Nota. Prop, plan y eq.'!$E$59","v":"Conciliación de cambios en propiedades, planta y equipo [resumen]"},{"$f":"'822100 - Nota. Prop, plan y eq.'!$D$59","v":"ifrs-full:ReconciliationOfChangesInPropertyPlantAndEquipmentAbstract"}]
["/*",null,{"$f":"'822100 - Nota. Prop, plan y eq.'!$E$60","v":"Propiedades, planta y equipo al comienzo del periodo"},{"$f":"'822100 - Nota. Prop, plan y eq.'!$D$60","v":"ifrs-full:PropertyPlantAndEquipment"}]
["/*",null,{"$f":"'822100 - Nota. Prop, plan y eq.'!$E$61","v":"Cambios en propiedades, planta y equipo [resumen]"},{"$f":"'822100 - Nota. Prop, plan y eq.'!$D$61","v":"ifrs-full:ChangesInPropertyPlantAndEquipmentAbstract"}]
["/*",null,{"$f":"'822100 - Nota. Prop, plan y eq.'!$E$62","v":"Incrementos distintos de los procedentes de combinaciones de negocios, propiedades, planta y equipo"},{"$f":"'822100 - Nota. Prop, plan y eq.'!$D$62","v":"ifrs-full:AdditionsOtherThanThroughBusinessCombinationsPropertyPlantAndEquipment"}]
["/*",null,{"$f":"'822100 - Nota. Prop, plan y eq.'!$E$63","v":"Adquisiciones realizadas mediante combinaciones de negocios, propiedades, planta y equipo"},{"$f":"'822100 - Nota. Prop, plan y eq.'!$D$63","v":"ifrs-full:AcquisitionsThroughBusinessCombinationsPropertyPlantAndEquipment"}]
["/*",null,{"$f":"'822100 - Nota. Prop, plan y eq.'!$E$64","v":"Depreciación, propiedades, planta y equipo"},{"$f":"'822100 - Nota. Prop, plan y eq.'!$D$64","v":"ifrs-full:DepreciationPropertyPlantAndEquipment"}]
["/*",null,{"$f":"'822100 - Nota. Prop, plan y eq.'!$E$65","v":"Pérdidas por deterioro de valor reconocidas en el resultado del periodo, propiedades, planta y equipo"},{"$f":"'822100 - Nota. Prop, plan y eq.'!$D$65","v":"ifrs-full:ImpairmentLossRecognisedInProfitOrLossPropertyPlantAndEquipment"}]
["/*",null,{"$f":"'822100 - Nota. Prop, plan y eq.'!$E$66","v":"Reversión de pérdidas por deterioro de valor reconocidas en el resultado del periodo, propiedades, planta y equipo"},{"$f":"'822100 - Nota. Prop, plan y eq.'!$D$66","v":"ifrs-full:ReversalOfImpairmentLossRecognisedInProfitOrLossPropertyPlantAndEquipment"}]
["/*",null,{"$f":"'822100 - Nota. Prop, plan y eq.'!$E$67","v":"Incrementos (disminuciones) de revaluaciones, propiedades, planta y equipo"},{"$f":"'822100 - Nota. Prop, plan y eq.'!$D$67","v":"ifrs-full:RevaluationIncreaseDecreasePropertyPlantAndEquipment"}]
["/*",null,{"$f":"'822100 - Nota. Prop, plan y eq.'!$E$68","v":"Pérdidas por deterioro de valor reconocidas en otro resultado integral, propiedades, planta y equipo"},{"$f":"'822100 - Nota. Prop, plan y eq.'!$D$68","v":"ifrs-full:ImpairmentLossRecognisedInOtherComprehensiveIncomePropertyPlantAndEquipment"}]
["/*",null,{"$f":"'822100 - Nota. Prop, plan y eq.'!$E$69","v":"Reversión de pérdidas por deterioro de valor reconocidas en otro resultado integral, propiedades, planta y equipo"},{"$f":"'822100 - Nota. Prop, plan y eq.'!$D$69","v":"ifrs-full:ReversalOfImpairmentLossRecognisedInOtherComprehensiveIncomePropertyPlantAndEquipment"}]
["/*",null,{"$f":"'822100 - Nota. Prop, plan y eq.'!$E$70","v":"Incrementos (disminuciones) por transferencias y otros cambios, propiedades, planta y equipo [resumen]"},{"$f":"'822100 - Nota. Prop, plan y eq.'!$D$70","v":"ifrs-full:IncreaseDecreaseThroughTransfersAndOtherChangesPropertyPlantAndEquipmentAbstract"}]
["/*",null,{"$f":"'822100 - Nota. Prop, plan y eq.'!$E$71","v":"Incrementos (disminuciones) por transferencias desde (hacia) propiedades de inversión, propiedades, planta y equipo"},{"$f":"'822100 - Nota. Prop, plan y eq.'!$D$71","v":"ifrs-full:IncreaseDecreaseThroughTransfersFromToInvestmentPropertyPropertyPlantAndEquipment"}]
["/*",null,{"$f":"'822100 - Nota. Prop, plan y eq.'!$E$72","v":"Incrementos (disminuciones) por transferencias desde construcciones en proceso , propiedades, planta y equipo"},{"$f":"'822100 - Nota. Prop, plan y eq.'!$D$72","v":"ifrs-full:IncreaseDecreaseThroughTransfersFromConstructionInProgressPropertyPlantAndEquipment"}]
["/*",null,{"$f":"'822100 - Nota. Prop, plan y eq.'!$E$73","v":"Incrementos (disminuciones) por otros cambios, propiedades, planta y equipo"},{"$f":"'822100 - Nota. Prop, plan y eq.'!$D$73","v":"ifrs-full:IncreaseDecreaseThroughOtherChangesPropertyPlantAndEquipment"}]
["",null,{"$f":"'822100 - Nota. Prop, plan y eq.'!$E$74","v":"Total incrementos (disminuciones) por transferencias y otros cambios, propiedades, planta y equipo"},{"$f":"'822100 - Nota. Prop, plan y eq.'!$D$74","v":"ifrs-full:IncreaseDecreaseThroughTransfersAndOtherChangesPropertyPlantAndEquipment"},0,"peso",{"$f":"'822100 - Nota. Prop, plan y eq.'!$M$74","v":0},0,"http://www.xbrl.org/scheme/companyName",{"$f":"Periodos!$D$3","v":"2022-01-01"},{"$f":"Periodos!$D$4","v":"2022-12-31"},{"$f":"'822100 - Nota. Prop, plan y eq.'!$E$52","v":"co-svsp-core:PropiedadesPlantaYEquipoEje_G1"},{"$f":"'822100 - Nota. Prop, plan y eq.'!$M$51","v":"co-svsp-core:OtrosVehiculosMiembro"}]
["/*",null,{"$f":"'822100 - Nota. Prop, plan y eq.'!$E$75","v":"Disposiciones y retiros de servicio, propiedades, planta y equipo [resumen]"},{"$f":"'822100 - Nota. Prop, plan y eq.'!$D$75","v":"ifrs-full:DisposalsAndRetirementsPropertyPlantAndEquipmentAbstract"}]
["/*",null,{"$f":"'822100 - Nota. Prop, plan y eq.'!$E$76","v":"Disposiciones, propiedades, planta y equipo"},{"$f":"'822100 - Nota. Prop, plan y eq.'!$D$76","v":"ifrs-full:DisposalsPropertyPlantAndEquipment"}]
["/*",null,{"$f":"'822100 - Nota. Prop, plan y eq.'!$E$77","v":"Retiros, propiedades, planta y equipo"},{"$f":"'822100 - Nota. Prop, plan y eq.'!$D$77","v":"ifrs-full:RetirementsPropertyPlantAndEquipment"}]
["",null,{"$f":"'822100 - Nota. Prop, plan y eq.'!$E$78","v":"Total de disposiciones y retiros de servicio, propiedades, planta y equipo"},{"$f":"'822100 - Nota. Prop, plan y eq.'!$D$78","v":"ifrs-full:DisposalsAndRetirementsPropertyPlantAndEquipment"},0,"peso",{"$f":"'822100 - Nota. Prop, plan y eq.'!$M$78","v":0},0,"http://www.xbrl.org/scheme/companyName",{"$f":"Periodos!$D$3","v":"2022-01-01"},{"$f":"Periodos!$D$4","v":"2022-12-31"},{"$f":"'822100 - Nota. Prop, plan y eq.'!$E$52","v":"co-svsp-core:PropiedadesPlantaYEquipoEje_G1"},{"$f":"'822100 - Nota. Prop, plan y eq.'!$M$51","v":"co-svsp-core:OtrosVehiculosMiembro"}]
["/*",null,{"$f":"'822100 - Nota. Prop, plan y eq.'!$E$79","v":"Disminuciones por clasificar como mantenidos para la venta, propiedades, planta y equipo"},{"$f":"'822100 - Nota. Prop, plan y eq.'!$D$79","v":"ifrs-full:DecreaseThroughClassifiedAsHeldForSalePropertyPlantAndEquipment"}]
["",null,{"$f":"'822100 - Nota. Prop, plan y eq.'!$E$80","v":"Total incremento (disminución) en propiedades, planta y equipo"},{"$f":"'822100 - Nota. Prop, plan y eq.'!$D$80","v":"ifrs-full:ChangesInPropertyPlantAndEquipment"},0,"peso",{"$f":"'822100 - Nota. Prop, plan y eq.'!$M$80","v":0},0,"http://www.xbrl.org/scheme/companyName",{"$f":"Periodos!$D$3","v":"2022-01-01"},{"$f":"Periodos!$D$4","v":"2022-12-31"},{"$f":"'822100 - Nota. Prop, plan y eq.'!$E$52","v":"co-svsp-core:PropiedadesPlantaYEquipoEje_G1"},{"$f":"'822100 - Nota. Prop, plan y eq.'!$M$51","v":"co-svsp-core:OtrosVehiculosMiembro"}]
["",null,{"$f":"'822100 - Nota. Prop, plan y eq.'!$E$81","v":"Propiedades, planta y equipo al final del periodo"},{"$f":"'822100 - Nota. Prop, plan y eq.'!$D$81","v":"ifrs-full:PropertyPlantAndEquipment"},0,"peso",{"$f":"'822100 - Nota. Prop, plan y eq.'!$M$81","v":0},0,"http://www.xbrl.org/scheme/companyName",null,{"$f":"Periodos!$D$4","v":"2022-12-31"},{"$f":"'822100 - Nota. Prop, plan y eq.'!$E$52","v":"co-svsp-core:PropiedadesPlantaYEquipoEje_G1"},{"$f":"'822100 - Nota. Prop, plan y eq.'!$M$51","v":"co-svsp-core:OtrosVehiculosMiembro"}]
["/*",null,"--09--"]
["/*",null,{"$f":"'822100 - Nota. Prop, plan y eq.'!$E$53","v":"Información a revelar detallada sobre propiedades, planta y equipo [partidas de los estados financieros]"},{"$f":"'822100 - Nota. Prop, plan y eq.'!$D$53","v":"ifrs-full:DisclosureOfPropertyPlantAndEquipmentLineItems"}]
["/*",null,{"$f":"'822100 - Nota. Prop, plan y eq.'!$E$54","v":"Bases de medición, propiedades, planta y equipo"},{"$f":"'822100 - Nota. Prop, plan y eq.'!$D$54","v":"ifrs-full:MeasurementBasesPropertyPlantAndEquipment"}]
["/*",null,{"$f":"'822100 - Nota. Prop, plan y eq.'!$E$55","v":"Método de depreciación, propiedades, planta y equipo"},{"$f":"'822100 - Nota. Prop, plan y eq.'!$D$55","v":"ifrs-full:DepreciationMethodPropertyPlantAndEquipment"}]
["/*",null,{"$f":"'822100 - Nota. Prop, plan y eq.'!$E$56","v":"Fechas de vigencia de revaluación, propiedades, planta y equipo"},{"$f":"'822100 - Nota. Prop, plan y eq.'!$D$56","v":"ifrs-full:EffectiveDatesOfRevaluationPropertyPlantAndEquipment"}]
["/*",null,{"$f":"'822100 - Nota. Prop, plan y eq.'!$E$57","v":"Explicación de la implicación del tasador independiente en la revaluación, propiedades, planta y equipo"},{"$f":"'822100 - Nota. Prop, plan y eq.'!$D$57","v":"ifrs-full:ExplanationOfIndependentValuerUsedForRevaluationPropertyPlantAndEquipment"}]
["/*",null,{"$f":"'822100 - Nota. Prop, plan y eq.'!$E$58","v":"Explicación del método de revaluación y supuestos significativos, propiedad, planta y equipo"},{"$f":"'822100 - Nota. Prop, plan y eq.'!$D$58","v":"co-svsp-core:ExplanationOfRevaluationMethodsAndSignificantAssumptionsPropertyPlantAndEquipment"}]
["/*",null,{"$f":"'822100 - Nota. Prop, plan y eq.'!$E$59","v":"Conciliación de cambios en propiedades, planta y equipo [resumen]"},{"$f":"'822100 - Nota. Prop, plan y eq.'!$D$59","v":"ifrs-full:ReconciliationOfChangesInPropertyPlantAndEquipmentAbstract"}]
["/*",null,{"$f":"'822100 - Nota. Prop, plan y eq.'!$E$60","v":"Propiedades, planta y equipo al comienzo del periodo"},{"$f":"'822100 - Nota. Prop, plan y eq.'!$D$60","v":"ifrs-full:PropertyPlantAndEquipment"}]
["/*",null,{"$f":"'822100 - Nota. Prop, plan y eq.'!$E$61","v":"Cambios en propiedades, planta y equipo [resumen]"},{"$f":"'822100 - Nota. Prop, plan y eq.'!$D$61","v":"ifrs-full:ChangesInPropertyPlantAndEquipmentAbstract"}]
["/*",null,{"$f":"'822100 - Nota. Prop, plan y eq.'!$E$62","v":"Incrementos distintos de los procedentes de combinaciones de negocios, propiedades, planta y equipo"},{"$f":"'822100 - Nota. Prop, plan y eq.'!$D$62","v":"ifrs-full:AdditionsOtherThanThroughBusinessCombinationsPropertyPlantAndEquipment"}]
["/*",null,{"$f":"'822100 - Nota. Prop, plan y eq.'!$E$63","v":"Adquisiciones realizadas mediante combinaciones de negocios, propiedades, planta y equipo"},{"$f":"'822100 - Nota. Prop, plan y eq.'!$D$63","v":"ifrs-full:AcquisitionsThroughBusinessCombinationsPropertyPlantAndEquipment"}]
["/*",null,{"$f":"'822100 - Nota. Prop, plan y eq.'!$E$64","v":"Depreciación, propiedades, planta y equipo"},{"$f":"'822100 - Nota. Prop, plan y eq.'!$D$64","v":"ifrs-full:DepreciationPropertyPlantAndEquipment"}]
["/*",null,{"$f":"'822100 - Nota. Prop, plan y eq.'!$E$65","v":"Pérdidas por deterioro de valor reconocidas en el resultado del periodo, propiedades, planta y equipo"},{"$f":"'822100 - Nota. Prop, plan y eq.'!$D$65","v":"ifrs-full:ImpairmentLossRecognisedInProfitOrLossPropertyPlantAndEquipment"}]
["/*",null,{"$f":"'822100 - Nota. Prop, plan y eq.'!$E$66","v":"Reversión de pérdidas por deterioro de valor reconocidas en el resultado del periodo, propiedades, planta y equipo"},{"$f":"'822100 - Nota. Prop, plan y eq.'!$D$66","v":"ifrs-full:ReversalOfImpairmentLossRecognisedInProfitOrLossPropertyPlantAndEquipment"}]
["/*",null,{"$f":"'822100 - Nota. Prop, plan y eq.'!$E$67","v":"Incrementos (disminuciones) de revaluaciones, propiedades, planta y equipo"},{"$f":"'822100 - Nota. Prop, plan y eq.'!$D$67","v":"ifrs-full:RevaluationIncreaseDecreasePropertyPlantAndEquipment"}]
["/*",null,{"$f":"'822100 - Nota. Prop, plan y eq.'!$E$68","v":"Pérdidas por deterioro de valor reconocidas en otro resultado integral, propiedades, planta y equipo"},{"$f":"'822100 - Nota. Prop, plan y eq.'!$D$68","v":"ifrs-full:ImpairmentLossRecognisedInOtherComprehensiveIncomePropertyPlantAndEquipment"}]
["/*",null,{"$f":"'822100 - Nota. Prop, plan y eq.'!$E$69","v":"Reversión de pérdidas por deterioro de valor reconocidas en otro resultado integral, propiedades, planta y equipo"},{"$f":"'822100 - Nota. Prop, plan y eq.'!$D$69","v":"ifrs-full:ReversalOfImpairmentLossRecognisedInOtherComprehensiveIncomePropertyPlantAndEquipment"}]
["/*",null,{"$f":"'822100 - Nota. Prop, plan y eq.'!$E$70","v":"Incrementos (disminuciones) por transferencias y otros cambios, propiedades, planta y equipo [resumen]"},{"$f":"'822100 - Nota. Prop, plan y eq.'!$D$70","v":"ifrs-full:IncreaseDecreaseThroughTransfersAndOtherChangesPropertyPlantAndEquipmentAbstract"}]
["/*",null,{"$f":"'822100 - Nota. Prop, plan y eq.'!$E$71","v":"Incrementos (disminuciones) por transferencias desde (hacia) propiedades de inversión, propiedades, planta y equipo"},{"$f":"'822100 - Nota. Prop, plan y eq.'!$D$71","v":"ifrs-full:IncreaseDecreaseThroughTransfersFromToInvestmentPropertyPropertyPlantAndEquipment"}]
["/*",null,{"$f":"'822100 - Nota. Prop, plan y eq.'!$E$72","v":"Incrementos (disminuciones) por transferencias desde construcciones en proceso , propiedades, planta y equipo"},{"$f":"'822100 - Nota. Prop, plan y eq.'!$D$72","v":"ifrs-full:IncreaseDecreaseThroughTransfersFromConstructionInProgressPropertyPlantAndEquipment"}]
["/*",null,{"$f":"'822100 - Nota. Prop, plan y eq.'!$E$73","v":"Incrementos (disminuciones) por otros cambios, propiedades, planta y equipo"},{"$f":"'822100 - Nota. Prop, plan y eq.'!$D$73","v":"ifrs-full:IncreaseDecreaseThroughOtherChangesPropertyPlantAndEquipment"}]
["",null,{"$f":"'822100 - Nota. Prop, plan y eq.'!$E$74","v":"Total incrementos (disminuciones) por transferencias y otros cambios, propiedades, planta y equipo"},{"$f":"'822100 - Nota. Prop, plan y eq.'!$D$74","v":"ifrs-full:IncreaseDecreaseThroughTransfersAndOtherChangesPropertyPlantAndEquipment"},0,"peso",{"$f":"'822100 - Nota. Prop, plan y eq.'!$N$74","v":0},0,"http://www.xbrl.org/scheme/companyName",{"$f":"Periodos!$D$3","v":"2022-01-01"},{"$f":"Periodos!$D$4","v":"2022-12-31"},{"$f":"'822100 - Nota. Prop, plan y eq.'!$E$52","v":"co-svsp-core:PropiedadesPlantaYEquipoEje_G1"},{"$f":"'822100 - Nota. Prop, plan y eq.'!$N$51","v":"ifrs-full:MotorVehiclesMember"}]
["/*",null,{"$f":"'822100 - Nota. Prop, plan y eq.'!$E$75","v":"Disposiciones y retiros de servicio, propiedades, planta y equipo [resumen]"},{"$f":"'822100 - Nota. Prop, plan y eq.'!$D$75","v":"ifrs-full:DisposalsAndRetirementsPropertyPlantAndEquipmentAbstract"}]
["/*",null,{"$f":"'822100 - Nota. Prop, plan y eq.'!$E$76","v":"Disposiciones, propiedades, planta y equipo"},{"$f":"'822100 - Nota. Prop, plan y eq.'!$D$76","v":"ifrs-full:DisposalsPropertyPlantAndEquipment"}]
["/*",null,{"$f":"'822100 - Nota. Prop, plan y eq.'!$E$77","v":"Retiros, propiedades, planta y equipo"},{"$f":"'822100 - Nota. Prop, plan y eq.'!$D$77","v":"ifrs-full:RetirementsPropertyPlantAndEquipment"}]
["",null,{"$f":"'822100 - Nota. Prop, plan y eq.'!$E$78","v":"Total de disposiciones y retiros de servicio, propiedades, planta y equipo"},{"$f":"'822100 - Nota. Prop, plan y eq.'!$D$78","v":"ifrs-full:DisposalsAndRetirementsPropertyPlantAndEquipment"},0,"peso",{"$f":"'822100 - Nota. Prop, plan y eq.'!$N$78","v":0},0,"http://www.xbrl.org/scheme/companyName",{"$f":"Periodos!$D$3","v":"2022-01-01"},{"$f":"Periodos!$D$4","v":"2022-12-31"},{"$f":"'822100 - Nota. Prop, plan y eq.'!$E$52","v":"co-svsp-core:PropiedadesPlantaYEquipoEje_G1"},{"$f":"'822100 - Nota. Prop, plan y eq.'!$N$51","v":"ifrs-full:MotorVehiclesMember"}]
["/*",null,{"$f":"'822100 - Nota. Prop, plan y eq.'!$E$79","v":"Disminuciones por clasificar como mantenidos para la venta, propiedades, planta y equipo"},{"$f":"'822100 - Nota. Prop, plan y eq.'!$D$79","v":"ifrs-full:DecreaseThroughClassifiedAsHeldForSalePropertyPlantAndEquipment"}]
["",null,{"$f":"'822100 - Nota. Prop, plan y eq.'!$E$80","v":"Total incremento (disminución) en propiedades, planta y equipo"},{"$f":"'822100 - Nota. Prop, plan y eq.'!$D$80","v":"ifrs-full:ChangesInPropertyPlantAndEquipment"},0,"peso",{"$f":"'822100 - Nota. Prop, plan y eq.'!$N$80","v":0},0,"http://www.xbrl.org/scheme/companyName",{"$f":"Periodos!$D$3","v":"2022-01-01"},{"$f":"Periodos!$D$4","v":"2022-12-31"},{"$f":"'822100 - Nota. Prop, plan y eq.'!$E$52","v":"co-svsp-core:PropiedadesPlantaYEquipoEje_G1"},{"$f":"'822100 - Nota. Prop, plan y eq.'!$N$51","v":"ifrs-full:MotorVehiclesMember"}]
["",null,{"$f":"'822100 - Nota. Prop, plan y eq.'!$E$81","v":"Propiedades, planta y equipo al final del periodo"},{"$f":"'822100 - Nota. Prop, plan y eq.'!$D$81","v":"ifrs-full:PropertyPlantAndEquipment"},0,"peso",{"$f":"'822100 - Nota. Prop, plan y eq.'!$N$81","v":0},0,"http://www.xbrl.org/scheme/companyName",null,{"$f":"Periodos!$D$4","v":"2022-12-31"},{"$f":"'822100 - Nota. Prop, plan y eq.'!$E$52","v":"co-svsp-core:PropiedadesPlantaYEquipoEje_G1"},{"$f":"'822100 - Nota. Prop, plan y eq.'!$N$51","v":"ifrs-full:MotorVehiclesMember"}]
["/*",null,"--10--"]
["/*",null,{"$f":"'822100 - Nota. Prop, plan y eq.'!$E$53","v":"Información a revelar detallada sobre propiedades, planta y equipo [partidas de los estados financieros]"},{"$f":"'822100 - Nota. Prop, plan y eq.'!$D$53","v":"ifrs-full:DisclosureOfPropertyPlantAndEquipmentLineItems"}]
["/*",null,{"$f":"'822100 - Nota. Prop, plan y eq.'!$E$54","v":"Bases de medición, propiedades, planta y equipo"},{"$f":"'822100 - Nota. Prop, plan y eq.'!$D$54","v":"ifrs-full:MeasurementBasesPropertyPlantAndEquipment"}]
["/*",null,{"$f":"'822100 - Nota. Prop, plan y eq.'!$E$55","v":"Método de depreciación, propiedades, planta y equipo"},{"$f":"'822100 - Nota. Prop, plan y eq.'!$D$55","v":"ifrs-full:DepreciationMethodPropertyPlantAndEquipment"}]
["/*",null,{"$f":"'822100 - Nota. Prop, plan y eq.'!$E$56","v":"Fechas de vigencia de revaluación, propiedades, planta y equipo"},{"$f":"'822100 - Nota. Prop, plan y eq.'!$D$56","v":"ifrs-full:EffectiveDatesOfRevaluationPropertyPlantAndEquipment"}]
["/*",null,{"$f":"'822100 - Nota. Prop, plan y eq.'!$E$57","v":"Explicación de la implicación del tasador independiente en la revaluación, propiedades, planta y equipo"},{"$f":"'822100 - Nota. Prop, plan y eq.'!$D$57","v":"ifrs-full:ExplanationOfIndependentValuerUsedForRevaluationPropertyPlantAndEquipment"}]
[{"$f":"IF(G5984=\"\",\"/*\",\"\")","v":"/*"},null,{"$f":"'822100 - Nota. Prop, plan y eq.'!$E$58","v":"Explicación del método de revaluación y supuestos significativos, propiedad, planta y equipo"},{"$f":"'822100 - Nota. Prop, plan y eq.'!$D$58","v":"co-svsp-core:ExplanationOfRevaluationMethodsAndSignificantAssumptionsPropertyPlantAndEquipment"}]
["/*",null,{"$f":"'822100 - Nota. Prop, plan y eq.'!$E$59","v":"Conciliación de cambios en propiedades, planta y equipo [resumen]"},{"$f":"'822100 - Nota. Prop, plan y eq.'!$D$59","v":"ifrs-full:ReconciliationOfChangesInPropertyPlantAndEquipmentAbstract"}]
["/*",null,{"$f":"'822100 - Nota. Prop, plan y eq.'!$E$60","v":"Propiedades, planta y equipo al comienzo del periodo"},{"$f":"'822100 - Nota. Prop, plan y eq.'!$D$60","v":"ifrs-full:PropertyPlantAndEquipment"}]
["/*",null,{"$f":"'822100 - Nota. Prop, plan y eq.'!$E$61","v":"Cambios en propiedades, planta y equipo [resumen]"},{"$f":"'822100 - Nota. Prop, plan y eq.'!$D$61","v":"ifrs-full:ChangesInPropertyPlantAndEquipmentAbstract"}]
["/*",null,{"$f":"'822100 - Nota. Prop, plan y eq.'!$E$62","v":"Incrementos distintos de los procedentes de combinaciones de negocios, propiedades, planta y equipo"},{"$f":"'822100 - Nota. Prop, plan y eq.'!$D$62","v":"ifrs-full:AdditionsOtherThanThroughBusinessCombinationsPropertyPlantAndEquipment"}]
["/*",null,{"$f":"'822100 - Nota. Prop, plan y eq.'!$E$63","v":"Adquisiciones realizadas mediante combinaciones de negocios, propiedades, planta y equipo"},{"$f":"'822100 - Nota. Prop, plan y eq.'!$D$63","v":"ifrs-full:AcquisitionsThroughBusinessCombinationsPropertyPlantAndEquipment"}]
["/*",null,{"$f":"'822100 - Nota. Prop, plan y eq.'!$E$64","v":"Depreciación, propiedades, planta y equipo"},{"$f":"'822100 - Nota. Prop, plan y eq.'!$D$64","v":"ifrs-full:DepreciationPropertyPlantAndEquipment"}]
["/*",null,{"$f":"'822100 - Nota. Prop, plan y eq.'!$E$65","v":"Pérdidas por deterioro de valor reconocidas en el resultado del periodo, propiedades, planta y equipo"},{"$f":"'822100 - Nota. Prop, plan y eq.'!$D$65","v":"ifrs-full:ImpairmentLossRecognisedInProfitOrLossPropertyPlantAndEquipment"}]
["/*",null,{"$f":"'822100 - Nota. Prop, plan y eq.'!$E$66","v":"Reversión de pérdidas por deterioro de valor reconocidas en el resultado del periodo, propiedades, planta y equipo"},{"$f":"'822100 - Nota. Prop, plan y eq.'!$D$66","v":"ifrs-full:ReversalOfImpairmentLossRecognisedInProfitOrLossPropertyPlantAndEquipment"}]
["/*",null,{"$f":"'822100 - Nota. Prop, plan y eq.'!$E$67","v":"Incrementos (disminuciones) de revaluaciones, propiedades, planta y equipo"},{"$f":"'822100 - Nota. Prop, plan y eq.'!$D$67","v":"ifrs-full:RevaluationIncreaseDecreasePropertyPlantAndEquipment"}]
["/*",null,{"$f":"'822100 - Nota. Prop, plan y eq.'!$E$68","v":"Pérdidas por deterioro de valor reconocidas en otro resultado integral, propiedades, planta y equipo"},{"$f":"'822100 - Nota. Prop, plan y eq.'!$D$68","v":"ifrs-full:ImpairmentLossRecognisedInOtherComprehensiveIncomePropertyPlantAndEquipment"}]
["/*",null,{"$f":"'822100 - Nota. Prop, plan y eq.'!$E$69","v":"Reversión de pérdidas por deterioro de valor reconocidas en otro resultado integral, propiedades, planta y equipo"},{"$f":"'822100 - Nota. Prop, plan y eq.'!$D$69","v":"ifrs-full:ReversalOfImpairmentLossRecognisedInOtherComprehensiveIncomePropertyPlantAndEquipment"}]
["/*",null,{"$f":"'822100 - Nota. Prop, plan y eq.'!$E$70","v":"Incrementos (disminuciones) por transferencias y otros cambios, propiedades, planta y equipo [resumen]"},{"$f":"'822100 - Nota. Prop, plan y eq.'!$D$70","v":"ifrs-full:IncreaseDecreaseThroughTransfersAndOtherChangesPropertyPlantAndEquipmentAbstract"}]
["/*",null,{"$f":"'822100 - Nota. Prop, plan y eq.'!$E$71","v":"Incrementos (disminuciones) por transferencias desde (hacia) propiedades de inversión, propiedades, planta y equipo"},{"$f":"'822100 - Nota. Prop, plan y eq.'!$D$71","v":"ifrs-full:IncreaseDecreaseThroughTransfersFromToInvestmentPropertyPropertyPlantAndEquipment"}]
["/*",null,{"$f":"'822100 - Nota. Prop, plan y eq.'!$E$72","v":"Incrementos (disminuciones) por transferencias desde construcciones en proceso , propiedades, planta y equipo"},{"$f":"'822100 - Nota. Prop, plan y eq.'!$D$72","v":"ifrs-full:IncreaseDecreaseThroughTransfersFromConstructionInProgressPropertyPlantAndEquipment"}]
["/*",null,{"$f":"'822100 - Nota. Prop, plan y eq.'!$E$73","v":"Incrementos (disminuciones) por otros cambios, propiedades, planta y equipo"},{"$f":"'822100 - Nota. Prop, plan y eq.'!$D$73","v":"ifrs-full:IncreaseDecreaseThroughOtherChangesPropertyPlantAndEquipment"}]
["",null,{"$f":"'822100 - Nota. Prop, plan y eq.'!$E$74","v":"Total incrementos (disminuciones) por transferencias y otros cambios, propiedades, planta y equipo"},{"$f":"'822100 - Nota. Prop, plan y eq.'!$D$74","v":"ifrs-full:IncreaseDecreaseThroughTransfersAndOtherChangesPropertyPlantAndEquipment"},0,"peso",{"$f":"'822100 - Nota. Prop, plan y eq.'!$O$74","v":0},0,"http://www.xbrl.org/scheme/companyName",{"$f":"Periodos!$D$3","v":"2022-01-01"},{"$f":"Periodos!$D$4","v":"2022-12-31"},{"$f":"'822100 - Nota. Prop, plan y eq.'!$E$52","v":"co-svsp-core:PropiedadesPlantaYEquipoEje_G1"},{"$f":"'822100 - Nota. Prop, plan y eq.'!$O$51","v":"ifrs-full:VehiclesMember"}]
["/*",null,{"$f":"'822100 - Nota. Prop, plan y eq.'!$E$75","v":"Disposiciones y retiros de servicio, propiedades, planta y equipo [resumen]"},{"$f":"'822100 - Nota. Prop, plan y eq.'!$D$75","v":"ifrs-full:DisposalsAndRetirementsPropertyPlantAndEquipmentAbstract"}]
["/*",null,{"$f":"'822100 - Nota. Prop, plan y eq.'!$E$76","v":"Disposiciones, propiedades, planta y equipo"},{"$f":"'822100 - Nota. Prop, plan y eq.'!$D$76","v":"ifrs-full:DisposalsPropertyPlantAndEquipment"}]
["/*",null,{"$f":"'822100 - Nota. Prop, plan y eq.'!$E$77","v":"Retiros, propiedades, planta y equipo"},{"$f":"'822100 - Nota. Prop, plan y eq.'!$D$77","v":"ifrs-full:RetirementsPropertyPlantAndEquipment"}]
["",null,{"$f":"'822100 - Nota. Prop, plan y eq.'!$E$78","v":"Total de disposiciones y retiros de servicio, propiedades, planta y equipo"},{"$f":"'822100 - Nota. Prop, plan y eq.'!$D$78","v":"ifrs-full:DisposalsAndRetirementsPropertyPlantAndEquipment"},0,"peso",{"$f":"'822100 - Nota. Prop, plan y eq.'!$O$78","v":0},0,"http://www.xbrl.org/scheme/companyName",{"$f":"Periodos!$D$3","v":"2022-01-01"},{"$f":"Periodos!$D$4","v":"2022-12-31"},{"$f":"'822100 - Nota. Prop, plan y eq.'!$E$52","v":"co-svsp-core:PropiedadesPlantaYEquipoEje_G1"},{"$f":"'822100 - Nota. Prop, plan y eq.'!$O$51","v":"ifrs-full:VehiclesMember"}]
["/*",null,{"$f":"'822100 - Nota. Prop, plan y eq.'!$E$79","v":"Disminuciones por clasificar como mantenidos para la venta, propiedades, planta y equipo"},{"$f":"'822100 - Nota. Prop, plan y eq.'!$D$79","v":"ifrs-full:DecreaseThroughClassifiedAsHeldForSalePropertyPlantAndEquipment"}]
["",null,{"$f":"'822100 - Nota. Prop, plan y eq.'!$E$80","v":"Total incremento (disminución) en propiedades, planta y equipo"},{"$f":"'822100 - Nota. Prop, plan y eq.'!$D$80","v":"ifrs-full:ChangesInPropertyPlantAndEquipment"},0,"peso",{"$f":"'822100 - Nota. Prop, plan y eq.'!$O$80","v":0},0,"http://www.xbrl.org/scheme/companyName",{"$f":"Periodos!$D$3","v":"2022-01-01"},{"$f":"Periodos!$D$4","v":"2022-12-31"},{"$f":"'822100 - Nota. Prop, plan y eq.'!$E$52","v":"co-svsp-core:PropiedadesPlantaYEquipoEje_G1"},{"$f":"'822100 - Nota. Prop, plan y eq.'!$O$51","v":"ifrs-full:VehiclesMember"}]
["",null,{"$f":"'822100 - Nota. Prop, plan y eq.'!$E$81","v":"Propiedades, planta y equipo al final del periodo"},{"$f":"'822100 - Nota. Prop, plan y eq.'!$D$81","v":"ifrs-full:PropertyPlantAndEquipment"},0,"peso",{"$f":"'822100 - Nota. Prop, plan y eq.'!$O$81","v":0},0,"http://www.xbrl.org/scheme/companyName",null,{"$f":"Periodos!$D$4","v":"2022-12-31"},{"$f":"'822100 - Nota. Prop, plan y eq.'!$E$52","v":"co-svsp-core:PropiedadesPlantaYEquipoEje_G1"},{"$f":"'822100 - Nota. Prop, plan y eq.'!$O$51","v":"ifrs-full:VehiclesMember"}]
["/*",null,"--11--"]
["/*",null,{"$f":"'822100 - Nota. Prop, plan y eq.'!$E$53","v":"Información a revelar detallada sobre propiedades, planta y equipo [partidas de los estados financieros]"},{"$f":"'822100 - Nota. Prop, plan y eq.'!$D$53","v":"ifrs-full:DisclosureOfPropertyPlantAndEquipmentLineItems"}]
["/*",null,{"$f":"'822100 - Nota. Prop, plan y eq.'!$E$54","v":"Bases de medición, propiedades, planta y equipo"},{"$f":"'822100 - Nota. Prop, plan y eq.'!$D$54","v":"ifrs-full:MeasurementBasesPropertyPlantAndEquipment"}]
["/*",null,{"$f":"'822100 - Nota. Prop, plan y eq.'!$E$55","v":"Método de depreciación, propiedades, planta y equipo"},{"$f":"'822100 - Nota. Prop, plan y eq.'!$D$55","v":"ifrs-full:DepreciationMethodPropertyPlantAndEquipment"}]
["/*",null,{"$f":"'822100 - Nota. Prop, plan y eq.'!$E$56","v":"Fechas de vigencia de revaluación, propiedades, planta y equipo"},{"$f":"'822100 - Nota. Prop, plan y eq.'!$D$56","v":"ifrs-full:EffectiveDatesOfRevaluationPropertyPlantAndEquipment"}]
["/*",null,{"$f":"'822100 - Nota. Prop, plan y eq.'!$E$57","v":"Explicación de la implicación del tasador independiente en la revaluación, propiedades, planta y equipo"},{"$f":"'822100 - Nota. Prop, plan y eq.'!$D$57","v":"ifrs-full:ExplanationOfIndependentValuerUsedForRevaluationPropertyPlantAndEquipment"}]
["/*",null,{"$f":"'822100 - Nota. Prop, plan y eq.'!$E$58","v":"Explicación del método de revaluación y supuestos significativos, propiedad, planta y equipo"},{"$f":"'822100 - Nota. Prop, plan y eq.'!$D$58","v":"co-svsp-core:ExplanationOfRevaluationMethodsAndSignificantAssumptionsPropertyPlantAndEquipment"}]
["/*",null,{"$f":"'822100 - Nota. Prop, plan y eq.'!$E$59","v":"Conciliación de cambios en propiedades, planta y equipo [resumen]"},{"$f":"'822100 - Nota. Prop, plan y eq.'!$D$59","v":"ifrs-full:ReconciliationOfChangesInPropertyPlantAndEquipmentAbstract"}]
["/*",null,{"$f":"'822100 - Nota. Prop, plan y eq.'!$E$60","v":"Propiedades, planta y equipo al comienzo del periodo"},{"$f":"'822100 - Nota. Prop, plan y eq.'!$D$60","v":"ifrs-full:PropertyPlantAndEquipment"}]
["/*",null,{"$f":"'822100 - Nota. Prop, plan y eq.'!$E$61","v":"Cambios en propiedades, planta y equipo [resumen]"},{"$f":"'822100 - Nota. Prop, plan y eq.'!$D$61","v":"ifrs-full:ChangesInPropertyPlantAndEquipmentAbstract"}]
["/*",null,{"$f":"'822100 - Nota. Prop, plan y eq.'!$E$62","v":"Incrementos distintos de los procedentes de combinaciones de negocios, propiedades, planta y equipo"},{"$f":"'822100 - Nota. Prop, plan y eq.'!$D$62","v":"ifrs-full:AdditionsOtherThanThroughBusinessCombinationsPropertyPlantAndEquipment"}]
["/*",null,{"$f":"'822100 - Nota. Prop, plan y eq.'!$E$63","v":"Adquisiciones realizadas mediante combinaciones de negocios, propiedades, planta y equipo"},{"$f":"'822100 - Nota. Prop, plan y eq.'!$D$63","v":"ifrs-full:AcquisitionsThroughBusinessCombinationsPropertyPlantAndEquipment"}]
["/*",null,{"$f":"'822100 - Nota. Prop, plan y eq.'!$E$64","v":"Depreciación, propiedades, planta y equipo"},{"$f":"'822100 - Nota. Prop, plan y eq.'!$D$64","v":"ifrs-full:DepreciationPropertyPlantAndEquipment"}]
["/*",null,{"$f":"'822100 - Nota. Prop, plan y eq.'!$E$65","v":"Pérdidas por deterioro de valor reconocidas en el resultado del periodo, propiedades, planta y equipo"},{"$f":"'822100 - Nota. Prop, plan y eq.'!$D$65","v":"ifrs-full:ImpairmentLossRecognisedInProfitOrLossPropertyPlantAndEquipment"}]
["/*",null,{"$f":"'822100 - Nota. Prop, plan y eq.'!$E$66","v":"Reversión de pérdidas por deterioro de valor reconocidas en el resultado del periodo, propiedades, planta y equipo"},{"$f":"'822100 - Nota. Prop, plan y eq.'!$D$66","v":"ifrs-full:ReversalOfImpairmentLossRecognisedInProfitOrLossPropertyPlantAndEquipment"}]
["/*",null,{"$f":"'822100 - Nota. Prop, plan y eq.'!$E$67","v":"Incrementos (disminuciones) de revaluaciones, propiedades, planta y equipo"},{"$f":"'822100 - Nota. Prop, plan y eq.'!$D$67","v":"ifrs-full:RevaluationIncreaseDecreasePropertyPlantAndEquipment"}]
["/*",null,{"$f":"'822100 - Nota. Prop, plan y eq.'!$E$68","v":"Pérdidas por deterioro de valor reconocidas en otro resultado integral, propiedades, planta y equipo"},{"$f":"'822100 - Nota. Prop, plan y eq.'!$D$68","v":"ifrs-full:ImpairmentLossRecognisedInOtherComprehensiveIncomePropertyPlantAndEquipment"}]
["/*",null,{"$f":"'822100 - Nota. Prop, plan y eq.'!$E$69","v":"Reversión de pérdidas por deterioro de valor reconocidas en otro resultado integral, propiedades, planta y equipo"},{"$f":"'822100 - Nota. Prop, plan y eq.'!$D$69","v":"ifrs-full:ReversalOfImpairmentLossRecognisedInOtherComprehensiveIncomePropertyPlantAndEquipment"}]
["/*",null,{"$f":"'822100 - Nota. Prop, plan y eq.'!$E$70","v":"Incrementos (disminuciones) por transferencias y otros cambios, propiedades, planta y equipo [resumen]"},{"$f":"'822100 - Nota. Prop, plan y eq.'!$D$70","v":"ifrs-full:IncreaseDecreaseThroughTransfersAndOtherChangesPropertyPlantAndEquipmentAbstract"}]
["/*",null,{"$f":"'822100 - Nota. Prop, plan y eq.'!$E$71","v":"Incrementos (disminuciones) por transferencias desde (hacia) propiedades de inversión, propiedades, planta y equipo"},{"$f":"'822100 - Nota. Prop, plan y eq.'!$D$71","v":"ifrs-full:IncreaseDecreaseThroughTransfersFromToInvestmentPropertyPropertyPlantAndEquipment"}]
["/*",null,{"$f":"'822100 - Nota. Prop, plan y eq.'!$E$72","v":"Incrementos (disminuciones) por transferencias desde construcciones en proceso , propiedades, planta y equipo"},{"$f":"'822100 - Nota. Prop, plan y eq.'!$D$72","v":"ifrs-full:IncreaseDecreaseThroughTransfersFromConstructionInProgressPropertyPlantAndEquipment"}]
["/*",null,{"$f":"'822100 - Nota. Prop, plan y eq.'!$E$73","v":"Incrementos (disminuciones) por otros cambios, propiedades, planta y equipo"},{"$f":"'822100 - Nota. Prop, plan y eq.'!$D$73","v":"ifrs-full:IncreaseDecreaseThroughOtherChangesPropertyPlantAndEquipment"}]
["",null,{"$f":"'822100 - Nota. Prop, plan y eq.'!$E$74","v":"Total incrementos (disminuciones) por transferencias y otros cambios, propiedades, planta y equipo"},{"$f":"'822100 - Nota. Prop, plan y eq.'!$D$74","v":"ifrs-full:IncreaseDecreaseThroughTransfersAndOtherChangesPropertyPlantAndEquipment"},0,"peso",{"$f":"'822100 - Nota. Prop, plan y eq.'!$P$74","v":0},0,"http://www.xbrl.org/scheme/companyName",{"$f":"Periodos!$D$3","v":"2022-01-01"},{"$f":"Periodos!$D$4","v":"2022-12-31"},{"$f":"'822100 - Nota. Prop, plan y eq.'!$E$52","v":"co-svsp-core:PropiedadesPlantaYEquipoEje_G1"},{"$f":"'822100 - Nota. Prop, plan y eq.'!$P$51","v":"ifrs-full:FixturesAndFittingsMember"}]
["/*",null,{"$f":"'822100 - Nota. Prop, plan y eq.'!$E$75","v":"Disposiciones y retiros de servicio, propiedades, planta y equipo [resumen]"},{"$f":"'822100 - Nota. Prop, plan y eq.'!$D$75","v":"ifrs-full:DisposalsAndRetirementsPropertyPlantAndEquipmentAbstract"}]
["/*",null,{"$f":"'822100 - Nota. Prop, plan y eq.'!$E$76","v":"Disposiciones, propiedades, planta y equipo"},{"$f":"'822100 - Nota. Prop, plan y eq.'!$D$76","v":"ifrs-full:DisposalsPropertyPlantAndEquipment"}]
["/*",null,{"$f":"'822100 - Nota. Prop, plan y eq.'!$E$77","v":"Retiros, propiedades, planta y equipo"},{"$f":"'822100 - Nota. Prop, plan y eq.'!$D$77","v":"ifrs-full:RetirementsPropertyPlantAndEquipment"}]
["",null,{"$f":"'822100 - Nota. Prop, plan y eq.'!$E$78","v":"Total de disposiciones y retiros de servicio, propiedades, planta y equipo"},{"$f":"'822100 - Nota. Prop, plan y eq.'!$D$78","v":"ifrs-full:DisposalsAndRetirementsPropertyPlantAndEquipment"},0,"peso",{"$f":"'822100 - Nota. Prop, plan y eq.'!$P$78","v":0},0,"http://www.xbrl.org/scheme/companyName",{"$f":"Periodos!$D$3","v":"2022-01-01"},{"$f":"Periodos!$D$4","v":"2022-12-31"},{"$f":"'822100 - Nota. Prop, plan y eq.'!$E$52","v":"co-svsp-core:PropiedadesPlantaYEquipoEje_G1"},{"$f":"'822100 - Nota. Prop, plan y eq.'!$P$51","v":"ifrs-full:FixturesAndFittingsMember"}]
["/*",null,{"$f":"'822100 - Nota. Prop, plan y eq.'!$E$79","v":"Disminuciones por clasificar como mantenidos para la venta, propiedades, planta y equipo"},{"$f":"'822100 - Nota. Prop, plan y eq.'!$D$79","v":"ifrs-full:DecreaseThroughClassifiedAsHeldForSalePropertyPlantAndEquipment"}]
["",null,{"$f":"'822100 - Nota. Prop, plan y eq.'!$E$80","v":"Total incremento (disminución) en propiedades, planta y equipo"},{"$f":"'822100 - Nota. Prop, plan y eq.'!$D$80","v":"ifrs-full:ChangesInPropertyPlantAndEquipment"},0,"peso",{"$f":"'822100 - Nota. Prop, plan y eq.'!$P$80","v":0},0,"http://www.xbrl.org/scheme/companyName",{"$f":"Periodos!$D$3","v":"2022-01-01"},{"$f":"Periodos!$D$4","v":"2022-12-31"},{"$f":"'822100 - Nota. Prop, plan y eq.'!$E$52","v":"co-svsp-core:PropiedadesPlantaYEquipoEje_G1"},{"$f":"'822100 - Nota. Prop, plan y eq.'!$P$51","v":"ifrs-full:FixturesAndFittingsMember"}]
["",null,{"$f":"'822100 - Nota. Prop, plan y eq.'!$E$81","v":"Propiedades, planta y equipo al final del periodo"},{"$f":"'822100 - Nota. Prop, plan y eq.'!$D$81","v":"ifrs-full:PropertyPlantAndEquipment"},0,"peso",{"$f":"'822100 - Nota. Prop, plan y eq.'!$P$81","v":0},0,"http://www.xbrl.org/scheme/companyName",null,{"$f":"Periodos!$D$4","v":"2022-12-31"},{"$f":"'822100 - Nota. Prop, plan y eq.'!$E$52","v":"co-svsp-core:PropiedadesPlantaYEquipoEje_G1"},{"$f":"'822100 - Nota. Prop, plan y eq.'!$P$51","v":"ifrs-full:FixturesAndFittingsMember"}]
["/*",null,"--12--"]
["/*",null,{"$f":"'822100 - Nota. Prop, plan y eq.'!$E$53","v":"Información a revelar detallada sobre propiedades, planta y equipo [partidas de los estados financieros]"},{"$f":"'822100 - Nota. Prop, plan y eq.'!$D$53","v":"ifrs-full:DisclosureOfPropertyPlantAndEquipmentLineItems"}]
["/*",null,{"$f":"'822100 - Nota. Prop, plan y eq.'!$E$54","v":"Bases de medición, propiedades, planta y equipo"},{"$f":"'822100 - Nota. Prop, plan y eq.'!$D$54","v":"ifrs-full:MeasurementBasesPropertyPlantAndEquipment"}]
["/*",null,{"$f":"'822100 - Nota. Prop, plan y eq.'!$E$55","v":"Método de depreciación, propiedades, planta y equipo"},{"$f":"'822100 - Nota. Prop, plan y eq.'!$D$55","v":"ifrs-full:DepreciationMethodPropertyPlantAndEquipment"}]
["/*",null,{"$f":"'822100 - Nota. Prop, plan y eq.'!$E$56","v":"Fechas de vigencia de revaluación, propiedades, planta y equipo"},{"$f":"'822100 - Nota. Prop, plan y eq.'!$D$56","v":"ifrs-full:EffectiveDatesOfRevaluationPropertyPlantAndEquipment"}]
["/*",null,{"$f":"'822100 - Nota. Prop, plan y eq.'!$E$57","v":"Explicación de la implicación del tasador independiente en la revaluación, propiedades, planta y equipo"},{"$f":"'822100 - Nota. Prop, plan y eq.'!$D$57","v":"ifrs-full:ExplanationOfIndependentValuerUsedForRevaluationPropertyPlantAndEquipment"}]
["/*",null,{"$f":"'822100 - Nota. Prop, plan y eq.'!$E$58","v":"Explicación del método de revaluación y supuestos significativos, propiedad, planta y equipo"},{"$f":"'822100 - Nota. Prop, plan y eq.'!$D$58","v":"co-svsp-core:ExplanationOfRevaluationMethodsAndSignificantAssumptionsPropertyPlantAndEquipment"}]
["/*",null,{"$f":"'822100 - Nota. Prop, plan y eq.'!$E$59","v":"Conciliación de cambios en propiedades, planta y equipo [resumen]"},{"$f":"'822100 - Nota. Prop, plan y eq.'!$D$59","v":"ifrs-full:ReconciliationOfChangesInPropertyPlantAndEquipmentAbstract"}]
["/*",null,{"$f":"'822100 - Nota. Prop, plan y eq.'!$E$60","v":"Propiedades, planta y equipo al comienzo del periodo"},{"$f":"'822100 - Nota. Prop, plan y eq.'!$D$60","v":"ifrs-full:PropertyPlantAndEquipment"}]
["/*",null,{"$f":"'822100 - Nota. Prop, plan y eq.'!$E$61","v":"Cambios en propiedades, planta y equipo [resumen]"},{"$f":"'822100 - Nota. Prop, plan y eq.'!$D$61","v":"ifrs-full:ChangesInPropertyPlantAndEquipmentAbstract"}]
[{"$f":"IF(G6048=\"\",\"/*\",\"\")","v":"/*"},null,{"$f":"'822100 - Nota. Prop, plan y eq.'!$E$62","v":"Incrementos distintos de los procedentes de combinaciones de negocios, propiedades, planta y equipo"},{"$f":"'822100 - Nota. Prop, plan y eq.'!$D$62","v":"ifrs-full:AdditionsOtherThanThroughBusinessCombinationsPropertyPlantAndEquipment"}]
["/*",null,{"$f":"'822100 - Nota. Prop, plan y eq.'!$E$63","v":"Adquisiciones realizadas mediante combinaciones de negocios, propiedades, planta y equipo"},{"$f":"'822100 - Nota. Prop, plan y eq.'!$D$63","v":"ifrs-full:AcquisitionsThroughBusinessCombinationsPropertyPlantAndEquipment"}]
["/*",null,{"$f":"'822100 - Nota. Prop, plan y eq.'!$E$64","v":"Depreciación, propiedades, planta y equipo"},{"$f":"'822100 - Nota. Prop, plan y eq.'!$D$64","v":"ifrs-full:DepreciationPropertyPlantAndEquipment"}]
["/*",null,{"$f":"'822100 - Nota. Prop, plan y eq.'!$E$65","v":"Pérdidas por deterioro de valor reconocidas en el resultado del periodo, propiedades, planta y equipo"},{"$f":"'822100 - Nota. Prop, plan y eq.'!$D$65","v":"ifrs-full:ImpairmentLossRecognisedInProfitOrLossPropertyPlantAndEquipment"}]
["/*",null,{"$f":"'822100 - Nota. Prop, plan y eq.'!$E$66","v":"Reversión de pérdidas por deterioro de valor reconocidas en el resultado del periodo, propiedades, planta y equipo"},{"$f":"'822100 - Nota. Prop, plan y eq.'!$D$66","v":"ifrs-full:ReversalOfImpairmentLossRecognisedInProfitOrLossPropertyPlantAndEquipment"}]
["/*",null,{"$f":"'822100 - Nota. Prop, plan y eq.'!$E$67","v":"Incrementos (disminuciones) de revaluaciones, propiedades, planta y equipo"},{"$f":"'822100 - Nota. Prop, plan y eq.'!$D$67","v":"ifrs-full:RevaluationIncreaseDecreasePropertyPlantAndEquipment"}]
["/*",null,{"$f":"'822100 - Nota. Prop, plan y eq.'!$E$68","v":"Pérdidas por deterioro de valor reconocidas en otro resultado integral, propiedades, planta y equipo"},{"$f":"'822100 - Nota. Prop, plan y eq.'!$D$68","v":"ifrs-full:ImpairmentLossRecognisedInOtherComprehensiveIncomePropertyPlantAndEquipment"}]
["/*",null,{"$f":"'822100 - Nota. Prop, plan y eq.'!$E$69","v":"Reversión de pérdidas por deterioro de valor reconocidas en otro resultado integral, propiedades, planta y equipo"},{"$f":"'822100 - Nota. Prop, plan y eq.'!$D$69","v":"ifrs-full:ReversalOfImpairmentLossRecognisedInOtherComprehensiveIncomePropertyPlantAndEquipment"}]
["/*",null,{"$f":"'822100 - Nota. Prop, plan y eq.'!$E$70","v":"Incrementos (disminuciones) por transferencias y otros cambios, propiedades, planta y equipo [resumen]"},{"$f":"'822100 - Nota. Prop, plan y eq.'!$D$70","v":"ifrs-full:IncreaseDecreaseThroughTransfersAndOtherChangesPropertyPlantAndEquipmentAbstract"}]
["/*",null,{"$f":"'822100 - Nota. Prop, plan y eq.'!$E$71","v":"Incrementos (disminuciones) por transferencias desde (hacia) propiedades de inversión, propiedades, planta y equipo"},{"$f":"'822100 - Nota. Prop, plan y eq.'!$D$71","v":"ifrs-full:IncreaseDecreaseThroughTransfersFromToInvestmentPropertyPropertyPlantAndEquipment"}]
["/*",null,{"$f":"'822100 - Nota. Prop, plan y eq.'!$E$72","v":"Incrementos (disminuciones) por transferencias desde construcciones en proceso , propiedades, planta y equipo"},{"$f":"'822100 - Nota. Prop, plan y eq.'!$D$72","v":"ifrs-full:IncreaseDecreaseThroughTransfersFromConstructionInProgressPropertyPlantAndEquipment"}]
["/*",null,{"$f":"'822100 - Nota. Prop, plan y eq.'!$E$73","v":"Incrementos (disminuciones) por otros cambios, propiedades, planta y equipo"},{"$f":"'822100 - Nota. Prop, plan y eq.'!$D$73","v":"ifrs-full:IncreaseDecreaseThroughOtherChangesPropertyPlantAndEquipment"}]
["",null,{"$f":"'822100 - Nota. Prop, plan y eq.'!$E$74","v":"Total incrementos (disminuciones) por transferencias y otros cambios, propiedades, planta y equipo"},{"$f":"'822100 - Nota. Prop, plan y eq.'!$D$74","v":"ifrs-full:IncreaseDecreaseThroughTransfersAndOtherChangesPropertyPlantAndEquipment"},0,"peso",{"$f":"'822100 - Nota. Prop, plan y eq.'!$Q$74","v":0},0,"http://www.xbrl.org/scheme/companyName",{"$f":"Periodos!$D$3","v":"2022-01-01"},{"$f":"Periodos!$D$4","v":"2022-12-31"},{"$f":"'822100 - Nota. Prop, plan y eq.'!$E$52","v":"co-svsp-core:PropiedadesPlantaYEquipoEje_G1"},{"$f":"'822100 - Nota. Prop, plan y eq.'!$Q$51","v":"ifrs-full:ComputerEquipmentMember"}]
["/*",null,{"$f":"'822100 - Nota. Prop, plan y eq.'!$E$75","v":"Disposiciones y retiros de servicio, propiedades, planta y equipo [resumen]"},{"$f":"'822100 - Nota. Prop, plan y eq.'!$D$75","v":"ifrs-full:DisposalsAndRetirementsPropertyPlantAndEquipmentAbstract"}]
["/*",null,{"$f":"'822100 - Nota. Prop, plan y eq.'!$E$76","v":"Disposiciones, propiedades, planta y equipo"},{"$f":"'822100 - Nota. Prop, plan y eq.'!$D$76","v":"ifrs-full:DisposalsPropertyPlantAndEquipment"}]
["/*",null,{"$f":"'822100 - Nota. Prop, plan y eq.'!$E$77","v":"Retiros, propiedades, planta y equipo"},{"$f":"'822100 - Nota. Prop, plan y eq.'!$D$77","v":"ifrs-full:RetirementsPropertyPlantAndEquipment"}]
["",null,{"$f":"'822100 - Nota. Prop, plan y eq.'!$E$78","v":"Total de disposiciones y retiros de servicio, propiedades, planta y equipo"},{"$f":"'822100 - Nota. Prop, plan y eq.'!$D$78","v":"ifrs-full:DisposalsAndRetirementsPropertyPlantAndEquipment"},0,"peso",{"$f":"'822100 - Nota. Prop, plan y eq.'!$Q$78","v":0},0,"http://www.xbrl.org/scheme/companyName",{"$f":"Periodos!$D$3","v":"2022-01-01"},{"$f":"Periodos!$D$4","v":"2022-12-31"},{"$f":"'822100 - Nota. Prop, plan y eq.'!$E$52","v":"co-svsp-core:PropiedadesPlantaYEquipoEje_G1"},{"$f":"'822100 - Nota. Prop, plan y eq.'!$Q$51","v":"ifrs-full:ComputerEquipmentMember"}]
["/*",null,{"$f":"'822100 - Nota. Prop, plan y eq.'!$E$79","v":"Disminuciones por clasificar como mantenidos para la venta, propiedades, planta y equipo"},{"$f":"'822100 - Nota. Prop, plan y eq.'!$D$79","v":"ifrs-full:DecreaseThroughClassifiedAsHeldForSalePropertyPlantAndEquipment"}]
["",null,{"$f":"'822100 - Nota. Prop, plan y eq.'!$E$80","v":"Total incremento (disminución) en propiedades, planta y equipo"},{"$f":"'822100 - Nota. Prop, plan y eq.'!$D$80","v":"ifrs-full:ChangesInPropertyPlantAndEquipment"},0,"peso",{"$f":"'822100 - Nota. Prop, plan y eq.'!$Q$80","v":0},0,"http://www.xbrl.org/scheme/companyName",{"$f":"Periodos!$D$3","v":"2022-01-01"},{"$f":"Periodos!$D$4","v":"2022-12-31"},{"$f":"'822100 - Nota. Prop, plan y eq.'!$E$52","v":"co-svsp-core:PropiedadesPlantaYEquipoEje_G1"},{"$f":"'822100 - Nota. Prop, plan y eq.'!$Q$51","v":"ifrs-full:ComputerEquipmentMember"}]
["",null,{"$f":"'822100 - Nota. Prop, plan y eq.'!$E$81","v":"Propiedades, planta y equipo al final del periodo"},{"$f":"'822100 - Nota. Prop, plan y eq.'!$D$81","v":"ifrs-full:PropertyPlantAndEquipment"},0,"peso",{"$f":"'822100 - Nota. Prop, plan y eq.'!$Q$81","v":0},0,"http://www.xbrl.org/scheme/companyName",null,{"$f":"Periodos!$D$4","v":"2022-12-31"},{"$f":"'822100 - Nota. Prop, plan y eq.'!$E$52","v":"co-svsp-core:PropiedadesPlantaYEquipoEje_G1"},{"$f":"'822100 - Nota. Prop, plan y eq.'!$Q$51","v":"ifrs-full:ComputerEquipmentMember"}]
["/*",null,"--13--"]
["/*",null,{"$f":"'822100 - Nota. Prop, plan y eq.'!$E$53","v":"Información a revelar detallada sobre propiedades, planta y equipo [partidas de los estados financieros]"},{"$f":"'822100 - Nota. Prop, plan y eq.'!$D$53","v":"ifrs-full:DisclosureOfPropertyPlantAndEquipmentLineItems"}]
["/*",null,{"$f":"'822100 - Nota. Prop, plan y eq.'!$E$54","v":"Bases de medición, propiedades, planta y equipo"},{"$f":"'822100 - Nota. Prop, plan y eq.'!$D$54","v":"ifrs-full:MeasurementBasesPropertyPlantAndEquipment"}]
["/*",null,{"$f":"'822100 - Nota. Prop, plan y eq.'!$E$55","v":"Método de depreciación, propiedades, planta y equipo"},{"$f":"'822100 - Nota. Prop, plan y eq.'!$D$55","v":"ifrs-full:DepreciationMethodPropertyPlantAndEquipment"}]
["/*",null,{"$f":"'822100 - Nota. Prop, plan y eq.'!$E$56","v":"Fechas de vigencia de revaluación, propiedades, planta y equipo"},{"$f":"'822100 - Nota. Prop, plan y eq.'!$D$56","v":"ifrs-full:EffectiveDatesOfRevaluationPropertyPlantAndEquipment"}]
["/*",null,{"$f":"'822100 - Nota. Prop, plan y eq.'!$E$57","v":"Explicación de la implicación del tasador independiente en la revaluación, propiedades, planta y equipo"},{"$f":"'822100 - Nota. Prop, plan y eq.'!$D$57","v":"ifrs-full:ExplanationOfIndependentValuerUsedForRevaluationPropertyPlantAndEquipment"}]
["/*",null,{"$f":"'822100 - Nota. Prop, plan y eq.'!$E$58","v":"Explicación del método de revaluación y supuestos significativos, propiedad, planta y equipo"},{"$f":"'822100 - Nota. Prop, plan y eq.'!$D$58","v":"co-svsp-core:ExplanationOfRevaluationMethodsAndSignificantAssumptionsPropertyPlantAndEquipment"}]
["/*",null,{"$f":"'822100 - Nota. Prop, plan y eq.'!$E$59","v":"Conciliación de cambios en propiedades, planta y equipo [resumen]"},{"$f":"'822100 - Nota. Prop, plan y eq.'!$D$59","v":"ifrs-full:ReconciliationOfChangesInPropertyPlantAndEquipmentAbstract"}]
["/*",null,{"$f":"'822100 - Nota. Prop, plan y eq.'!$E$60","v":"Propiedades, planta y equipo al comienzo del periodo"},{"$f":"'822100 - Nota. Prop, plan y eq.'!$D$60","v":"ifrs-full:PropertyPlantAndEquipment"}]
["/*",null,{"$f":"'822100 - Nota. Prop, plan y eq.'!$E$61","v":"Cambios en propiedades, planta y equipo [resumen]"},{"$f":"'822100 - Nota. Prop, plan y eq.'!$D$61","v":"ifrs-full:ChangesInPropertyPlantAndEquipmentAbstract"}]
["/*",null,{"$f":"'822100 - Nota. Prop, plan y eq.'!$E$62","v":"Incrementos distintos de los procedentes de combinaciones de negocios, propiedades, planta y equipo"},{"$f":"'822100 - Nota. Prop, plan y eq.'!$D$62","v":"ifrs-full:AdditionsOtherThanThroughBusinessCombinationsPropertyPlantAndEquipment"}]
["/*",null,{"$f":"'822100 - Nota. Prop, plan y eq.'!$E$63","v":"Adquisiciones realizadas mediante combinaciones de negocios, propiedades, planta y equipo"},{"$f":"'822100 - Nota. Prop, plan y eq.'!$D$63","v":"ifrs-full:AcquisitionsThroughBusinessCombinationsPropertyPlantAndEquipment"}]
["/*",null,{"$f":"'822100 - Nota. Prop, plan y eq.'!$E$64","v":"Depreciación, propiedades, planta y equipo"},{"$f":"'822100 - Nota. Prop, plan y eq.'!$D$64","v":"ifrs-full:DepreciationPropertyPlantAndEquipment"}]
["/*",null,{"$f":"'822100 - Nota. Prop, plan y eq.'!$E$65","v":"Pérdidas por deterioro de valor reconocidas en el resultado del periodo, propiedades, planta y equipo"},{"$f":"'822100 - Nota. Prop, plan y eq.'!$D$65","v":"ifrs-full:ImpairmentLossRecognisedInProfitOrLossPropertyPlantAndEquipment"}]
["/*",null,{"$f":"'822100 - Nota. Prop, plan y eq.'!$E$66","v":"Reversión de pérdidas por deterioro de valor reconocidas en el resultado del periodo, propiedades, planta y equipo"},{"$f":"'822100 - Nota. Prop, plan y eq.'!$D$66","v":"ifrs-full:ReversalOfImpairmentLossRecognisedInProfitOrLossPropertyPlantAndEquipment"}]
["/*",null,{"$f":"'822100 - Nota. Prop, plan y eq.'!$E$67","v":"Incrementos (disminuciones) de revaluaciones, propiedades, planta y equipo"},{"$f":"'822100 - Nota. Prop, plan y eq.'!$D$67","v":"ifrs-full:RevaluationIncreaseDecreasePropertyPlantAndEquipment"}]
["/*",null,{"$f":"'822100 - Nota. Prop, plan y eq.'!$E$68","v":"Pérdidas por deterioro de valor reconocidas en otro resultado integral, propiedades, planta y equipo"},{"$f":"'822100 - Nota. Prop, plan y eq.'!$D$68","v":"ifrs-full:ImpairmentLossRecognisedInOtherComprehensiveIncomePropertyPlantAndEquipment"}]
["/*",null,{"$f":"'822100 - Nota. Prop, plan y eq.'!$E$69","v":"Reversión de pérdidas por deterioro de valor reconocidas en otro resultado integral, propiedades, planta y equipo"},{"$f":"'822100 - Nota. Prop, plan y eq.'!$D$69","v":"ifrs-full:ReversalOfImpairmentLossRecognisedInOtherComprehensiveIncomePropertyPlantAndEquipment"}]
["/*",null,{"$f":"'822100 - Nota. Prop, plan y eq.'!$E$70","v":"Incrementos (disminuciones) por transferencias y otros cambios, propiedades, planta y equipo [resumen]"},{"$f":"'822100 - Nota. Prop, plan y eq.'!$D$70","v":"ifrs-full:IncreaseDecreaseThroughTransfersAndOtherChangesPropertyPlantAndEquipmentAbstract"}]
["/*",null,{"$f":"'822100 - Nota. Prop, plan y eq.'!$E$71","v":"Incrementos (disminuciones) por transferencias desde (hacia) propiedades de inversión, propiedades, planta y equipo"},{"$f":"'822100 - Nota. Prop, plan y eq.'!$D$71","v":"ifrs-full:IncreaseDecreaseThroughTransfersFromToInvestmentPropertyPropertyPlantAndEquipment"}]
["/*",null,{"$f":"'822100 - Nota. Prop, plan y eq.'!$E$72","v":"Incrementos (disminuciones) por transferencias desde construcciones en proceso , propiedades, planta y equipo"},{"$f":"'822100 - Nota. Prop, plan y eq.'!$D$72","v":"ifrs-full:IncreaseDecreaseThroughTransfersFromConstructionInProgressPropertyPlantAndEquipment"}]
["/*",null,{"$f":"'822100 - Nota. Prop, plan y eq.'!$E$73","v":"Incrementos (disminuciones) por otros cambios, propiedades, planta y equipo"},{"$f":"'822100 - Nota. Prop, plan y eq.'!$D$73","v":"ifrs-full:IncreaseDecreaseThroughOtherChangesPropertyPlantAndEquipment"}]
["",null,{"$f":"'822100 - Nota. Prop, plan y eq.'!$E$74","v":"Total incrementos (disminuciones) por transferencias y otros cambios, propiedades, planta y equipo"},{"$f":"'822100 - Nota. Prop, plan y eq.'!$D$74","v":"ifrs-full:IncreaseDecreaseThroughTransfersAndOtherChangesPropertyPlantAndEquipment"},0,"peso",{"$f":"'822100 - Nota. Prop, plan y eq.'!$R$74","v":0},0,"http://www.xbrl.org/scheme/companyName",{"$f":"Periodos!$D$3","v":"2022-01-01"},{"$f":"Periodos!$D$4","v":"2022-12-31"},{"$f":"'822100 - Nota. Prop, plan y eq.'!$E$52","v":"co-svsp-core:PropiedadesPlantaYEquipoEje_G1"},{"$f":"'822100 - Nota. Prop, plan y eq.'!$R$51","v":"ifrs-full:CommunicationAndNetworkEquipmentMember"}]
["/*",null,{"$f":"'822100 - Nota. Prop, plan y eq.'!$E$75","v":"Disposiciones y retiros de servicio, propiedades, planta y equipo [resumen]"},{"$f":"'822100 - Nota. Prop, plan y eq.'!$D$75","v":"ifrs-full:DisposalsAndRetirementsPropertyPlantAndEquipmentAbstract"}]
["/*",null,{"$f":"'822100 - Nota. Prop, plan y eq.'!$E$76","v":"Disposiciones, propiedades, planta y equipo"},{"$f":"'822100 - Nota. Prop, plan y eq.'!$D$76","v":"ifrs-full:DisposalsPropertyPlantAndEquipment"}]
["/*",null,{"$f":"'822100 - Nota. Prop, plan y eq.'!$E$77","v":"Retiros, propiedades, planta y equipo"},{"$f":"'822100 - Nota. Prop, plan y eq.'!$D$77","v":"ifrs-full:RetirementsPropertyPlantAndEquipment"}]
["",null,{"$f":"'822100 - Nota. Prop, plan y eq.'!$E$78","v":"Total de disposiciones y retiros de servicio, propiedades, planta y equipo"},{"$f":"'822100 - Nota. Prop, plan y eq.'!$D$78","v":"ifrs-full:DisposalsAndRetirementsPropertyPlantAndEquipment"},0,"peso",{"$f":"'822100 - Nota. Prop, plan y eq.'!$R$78","v":0},0,"http://www.xbrl.org/scheme/companyName",{"$f":"Periodos!$D$3","v":"2022-01-01"},{"$f":"Periodos!$D$4","v":"2022-12-31"},{"$f":"'822100 - Nota. Prop, plan y eq.'!$E$52","v":"co-svsp-core:PropiedadesPlantaYEquipoEje_G1"},{"$f":"'822100 - Nota. Prop, plan y eq.'!$R$51","v":"ifrs-full:CommunicationAndNetworkEquipmentMember"}]
["/*",null,{"$f":"'822100 - Nota. Prop, plan y eq.'!$E$79","v":"Disminuciones por clasificar como mantenidos para la venta, propiedades, planta y equipo"},{"$f":"'822100 - Nota. Prop, plan y eq.'!$D$79","v":"ifrs-full:DecreaseThroughClassifiedAsHeldForSalePropertyPlantAndEquipment"}]
["",null,{"$f":"'822100 - Nota. Prop, plan y eq.'!$E$80","v":"Total incremento (disminución) en propiedades, planta y equipo"},{"$f":"'822100 - Nota. Prop, plan y eq.'!$D$80","v":"ifrs-full:ChangesInPropertyPlantAndEquipment"},0,"peso",{"$f":"'822100 - Nota. Prop, plan y eq.'!$R$80","v":0},0,"http://www.xbrl.org/scheme/companyName",{"$f":"Periodos!$D$3","v":"2022-01-01"},{"$f":"Periodos!$D$4","v":"2022-12-31"},{"$f":"'822100 - Nota. Prop, plan y eq.'!$E$52","v":"co-svsp-core:PropiedadesPlantaYEquipoEje_G1"},{"$f":"'822100 - Nota. Prop, plan y eq.'!$R$51","v":"ifrs-full:CommunicationAndNetworkEquipmentMember"}]
["",null,{"$f":"'822100 - Nota. Prop, plan y eq.'!$E$81","v":"Propiedades, planta y equipo al final del periodo"},{"$f":"'822100 - Nota. Prop, plan y eq.'!$D$81","v":"ifrs-full:PropertyPlantAndEquipment"},0,"peso",{"$f":"'822100 - Nota. Prop, plan y eq.'!$R$81","v":0},0,"http://www.xbrl.org/scheme/companyName",null,{"$f":"Periodos!$D$4","v":"2022-12-31"},{"$f":"'822100 - Nota. Prop, plan y eq.'!$E$52","v":"co-svsp-core:PropiedadesPlantaYEquipoEje_G1"},{"$f":"'822100 - Nota. Prop, plan y eq.'!$R$51","v":"ifrs-full:CommunicationAndNetworkEquipmentMember"}]
["/*",null,"--14--"]
["/*",null,{"$f":"'822100 - Nota. Prop, plan y eq.'!$E$53","v":"Información a revelar detallada sobre propiedades, planta y equipo [partidas de los estados financieros]"},{"$f":"'822100 - Nota. Prop, plan y eq.'!$D$53","v":"ifrs-full:DisclosureOfPropertyPlantAndEquipmentLineItems"}]
["/*",null,{"$f":"'822100 - Nota. Prop, plan y eq.'!$E$54","v":"Bases de medición, propiedades, planta y equipo"},{"$f":"'822100 - Nota. Prop, plan y eq.'!$D$54","v":"ifrs-full:MeasurementBasesPropertyPlantAndEquipment"}]
["/*",null,{"$f":"'822100 - Nota. Prop, plan y eq.'!$E$55","v":"Método de depreciación, propiedades, planta y equipo"},{"$f":"'822100 - Nota. Prop, plan y eq.'!$D$55","v":"ifrs-full:DepreciationMethodPropertyPlantAndEquipment"}]
["/*",null,{"$f":"'822100 - Nota. Prop, plan y eq.'!$E$56","v":"Fechas de vigencia de revaluación, propiedades, planta y equipo"},{"$f":"'822100 - Nota. Prop, plan y eq.'!$D$56","v":"ifrs-full:EffectiveDatesOfRevaluationPropertyPlantAndEquipment"}]
["/*",null,{"$f":"'822100 - Nota. Prop, plan y eq.'!$E$57","v":"Explicación de la implicación del tasador independiente en la revaluación, propiedades, planta y equipo"},{"$f":"'822100 - Nota. Prop, plan y eq.'!$D$57","v":"ifrs-full:ExplanationOfIndependentValuerUsedForRevaluationPropertyPlantAndEquipment"}]
["/*",null,{"$f":"'822100 - Nota. Prop, plan y eq.'!$E$58","v":"Explicación del método de revaluación y supuestos significativos, propiedad, planta y equipo"},{"$f":"'822100 - Nota. Prop, plan y eq.'!$D$58","v":"co-svsp-core:ExplanationOfRevaluationMethodsAndSignificantAssumptionsPropertyPlantAndEquipment"}]
["/*",null,{"$f":"'822100 - Nota. Prop, plan y eq.'!$E$59","v":"Conciliación de cambios en propiedades, planta y equipo [resumen]"},{"$f":"'822100 - Nota. Prop, plan y eq.'!$D$59","v":"ifrs-full:ReconciliationOfChangesInPropertyPlantAndEquipmentAbstract"}]
["/*",null,{"$f":"'822100 - Nota. Prop, plan y eq.'!$E$60","v":"Propiedades, planta y equipo al comienzo del periodo"},{"$f":"'822100 - Nota. Prop, plan y eq.'!$D$60","v":"ifrs-full:PropertyPlantAndEquipment"}]
["/*",null,{"$f":"'822100 - Nota. Prop, plan y eq.'!$E$61","v":"Cambios en propiedades, planta y equipo [resumen]"},{"$f":"'822100 - Nota. Prop, plan y eq.'!$D$61","v":"ifrs-full:ChangesInPropertyPlantAndEquipmentAbstract"}]
["/*",null,{"$f":"'822100 - Nota. Prop, plan y eq.'!$E$62","v":"Incrementos distintos de los procedentes de combinaciones de negocios, propiedades, planta y equipo"},{"$f":"'822100 - Nota. Prop, plan y eq.'!$D$62","v":"ifrs-full:AdditionsOtherThanThroughBusinessCombinationsPropertyPlantAndEquipment"}]
["/*",null,{"$f":"'822100 - Nota. Prop, plan y eq.'!$E$63","v":"Adquisiciones realizadas mediante combinaciones de negocios, propiedades, planta y equipo"},{"$f":"'822100 - Nota. Prop, plan y eq.'!$D$63","v":"ifrs-full:AcquisitionsThroughBusinessCombinationsPropertyPlantAndEquipment"}]
["/*",null,{"$f":"'822100 - Nota. Prop, plan y eq.'!$E$64","v":"Depreciación, propiedades, planta y equipo"},{"$f":"'822100 - Nota. Prop, plan y eq.'!$D$64","v":"ifrs-full:DepreciationPropertyPlantAndEquipment"}]
["/*",null,{"$f":"'822100 - Nota. Prop, plan y eq.'!$E$65","v":"Pérdidas por deterioro de valor reconocidas en el resultado del periodo, propiedades, planta y equipo"},{"$f":"'822100 - Nota. Prop, plan y eq.'!$D$65","v":"ifrs-full:ImpairmentLossRecognisedInProfitOrLossPropertyPlantAndEquipment"}]
[{"$f":"IF(G6112=\"\",\"/*\",\"\")","v":"/*"},null,{"$f":"'822100 - Nota. Prop, plan y eq.'!$E$66","v":"Reversión de pérdidas por deterioro de valor reconocidas en el resultado del periodo, propiedades, planta y equipo"},{"$f":"'822100 - Nota. Prop, plan y eq.'!$D$66","v":"ifrs-full:ReversalOfImpairmentLossRecognisedInProfitOrLossPropertyPlantAndEquipment"}]
["/*",null,{"$f":"'822100 - Nota. Prop, plan y eq.'!$E$67","v":"Incrementos (disminuciones) de revaluaciones, propiedades, planta y equipo"},{"$f":"'822100 - Nota. Prop, plan y eq.'!$D$67","v":"ifrs-full:RevaluationIncreaseDecreasePropertyPlantAndEquipment"}]
["/*",null,{"$f":"'822100 - Nota. Prop, plan y eq.'!$E$68","v":"Pérdidas por deterioro de valor reconocidas en otro resultado integral, propiedades, planta y equipo"},{"$f":"'822100 - Nota. Prop, plan y eq.'!$D$68","v":"ifrs-full:ImpairmentLossRecognisedInOtherComprehensiveIncomePropertyPlantAndEquipment"}]
["/*",null,{"$f":"'822100 - Nota. Prop, plan y eq.'!$E$69","v":"Reversión de pérdidas por deterioro de valor reconocidas en otro resultado integral, propiedades, planta y equipo"},{"$f":"'822100 - Nota. Prop, plan y eq.'!$D$69","v":"ifrs-full:ReversalOfImpairmentLossRecognisedInOtherComprehensiveIncomePropertyPlantAndEquipment"}]
["/*",null,{"$f":"'822100 - Nota. Prop, plan y eq.'!$E$70","v":"Incrementos (disminuciones) por transferencias y otros cambios, propiedades, planta y equipo [resumen]"},{"$f":"'822100 - Nota. Prop, plan y eq.'!$D$70","v":"ifrs-full:IncreaseDecreaseThroughTransfersAndOtherChangesPropertyPlantAndEquipmentAbstract"}]
["/*",null,{"$f":"'822100 - Nota. Prop, plan y eq.'!$E$71","v":"Incrementos (disminuciones) por transferencias desde (hacia) propiedades de inversión, propiedades, planta y equipo"},{"$f":"'822100 - Nota. Prop, plan y eq.'!$D$71","v":"ifrs-full:IncreaseDecreaseThroughTransfersFromToInvestmentPropertyPropertyPlantAndEquipment"}]
["/*",null,{"$f":"'822100 - Nota. Prop, plan y eq.'!$E$72","v":"Incrementos (disminuciones) por transferencias desde construcciones en proceso , propiedades, planta y equipo"},{"$f":"'822100 - Nota. Prop, plan y eq.'!$D$72","v":"ifrs-full:IncreaseDecreaseThroughTransfersFromConstructionInProgressPropertyPlantAndEquipment"}]
["/*",null,{"$f":"'822100 - Nota. Prop, plan y eq.'!$E$73","v":"Incrementos (disminuciones) por otros cambios, propiedades, planta y equipo"},{"$f":"'822100 - Nota. Prop, plan y eq.'!$D$73","v":"ifrs-full:IncreaseDecreaseThroughOtherChangesPropertyPlantAndEquipment"}]
["",null,{"$f":"'822100 - Nota. Prop, plan y eq.'!$E$74","v":"Total incrementos (disminuciones) por transferencias y otros cambios, propiedades, planta y equipo"},{"$f":"'822100 - Nota. Prop, plan y eq.'!$D$74","v":"ifrs-full:IncreaseDecreaseThroughTransfersAndOtherChangesPropertyPlantAndEquipment"},0,"peso",{"$f":"'822100 - Nota. Prop, plan y eq.'!$S$74","v":0},0,"http://www.xbrl.org/scheme/companyName",{"$f":"Periodos!$D$3","v":"2022-01-01"},{"$f":"Periodos!$D$4","v":"2022-12-31"},{"$f":"'822100 - Nota. Prop, plan y eq.'!$E$52","v":"co-svsp-core:PropiedadesPlantaYEquipoEje_G1"},{"$f":"'822100 - Nota. Prop, plan y eq.'!$S$51","v":"ifrs-full:NetworkInfrastructureMember"}]
["/*",null,{"$f":"'822100 - Nota. Prop, plan y eq.'!$E$75","v":"Disposiciones y retiros de servicio, propiedades, planta y equipo [resumen]"},{"$f":"'822100 - Nota. Prop, plan y eq.'!$D$75","v":"ifrs-full:DisposalsAndRetirementsPropertyPlantAndEquipmentAbstract"}]
["/*",null,{"$f":"'822100 - Nota. Prop, plan y eq.'!$E$76","v":"Disposiciones, propiedades, planta y equipo"},{"$f":"'822100 - Nota. Prop, plan y eq.'!$D$76","v":"ifrs-full:DisposalsPropertyPlantAndEquipment"}]
["/*",null,{"$f":"'822100 - Nota. Prop, plan y eq.'!$E$77","v":"Retiros, propiedades, planta y equipo"},{"$f":"'822100 - Nota. Prop, plan y eq.'!$D$77","v":"ifrs-full:RetirementsPropertyPlantAndEquipment"}]
["",null,{"$f":"'822100 - Nota. Prop, plan y eq.'!$E$78","v":"Total de disposiciones y retiros de servicio, propiedades, planta y equipo"},{"$f":"'822100 - Nota. Prop, plan y eq.'!$D$78","v":"ifrs-full:DisposalsAndRetirementsPropertyPlantAndEquipment"},0,"peso",{"$f":"'822100 - Nota. Prop, plan y eq.'!$S$78","v":0},0,"http://www.xbrl.org/scheme/companyName",{"$f":"Periodos!$D$3","v":"2022-01-01"},{"$f":"Periodos!$D$4","v":"2022-12-31"},{"$f":"'822100 - Nota. Prop, plan y eq.'!$E$52","v":"co-svsp-core:PropiedadesPlantaYEquipoEje_G1"},{"$f":"'822100 - Nota. Prop, plan y eq.'!$S$51","v":"ifrs-full:NetworkInfrastructureMember"}]
["/*",null,{"$f":"'822100 - Nota. Prop, plan y eq.'!$E$79","v":"Disminuciones por clasificar como mantenidos para la venta, propiedades, planta y equipo"},{"$f":"'822100 - Nota. Prop, plan y eq.'!$D$79","v":"ifrs-full:DecreaseThroughClassifiedAsHeldForSalePropertyPlantAndEquipment"}]
["",null,{"$f":"'822100 - Nota. Prop, plan y eq.'!$E$80","v":"Total incremento (disminución) en propiedades, planta y equipo"},{"$f":"'822100 - Nota. Prop, plan y eq.'!$D$80","v":"ifrs-full:ChangesInPropertyPlantAndEquipment"},0,"peso",{"$f":"'822100 - Nota. Prop, plan y eq.'!$S$80","v":0},0,"http://www.xbrl.org/scheme/companyName",{"$f":"Periodos!$D$3","v":"2022-01-01"},{"$f":"Periodos!$D$4","v":"2022-12-31"},{"$f":"'822100 - Nota. Prop, plan y eq.'!$E$52","v":"co-svsp-core:PropiedadesPlantaYEquipoEje_G1"},{"$f":"'822100 - Nota. Prop, plan y eq.'!$S$51","v":"ifrs-full:NetworkInfrastructureMember"}]
["",null,{"$f":"'822100 - Nota. Prop, plan y eq.'!$E$81","v":"Propiedades, planta y equipo al final del periodo"},{"$f":"'822100 - Nota. Prop, plan y eq.'!$D$81","v":"ifrs-full:PropertyPlantAndEquipment"},0,"peso",{"$f":"'822100 - Nota. Prop, plan y eq.'!$S$81","v":0},0,"http://www.xbrl.org/scheme/companyName",null,{"$f":"Periodos!$D$4","v":"2022-12-31"},{"$f":"'822100 - Nota. Prop, plan y eq.'!$E$52","v":"co-svsp-core:PropiedadesPlantaYEquipoEje_G1"},{"$f":"'822100 - Nota. Prop, plan y eq.'!$S$51","v":"ifrs-full:NetworkInfrastructureMember"}]
["/*",null,"--15--"]
["/*",null,{"$f":"'822100 - Nota. Prop, plan y eq.'!$E$53","v":"Información a revelar detallada sobre propiedades, planta y equipo [partidas de los estados financieros]"},{"$f":"'822100 - Nota. Prop, plan y eq.'!$D$53","v":"ifrs-full:DisclosureOfPropertyPlantAndEquipmentLineItems"}]
["/*",null,{"$f":"'822100 - Nota. Prop, plan y eq.'!$E$54","v":"Bases de medición, propiedades, planta y equipo"},{"$f":"'822100 - Nota. Prop, plan y eq.'!$D$54","v":"ifrs-full:MeasurementBasesPropertyPlantAndEquipment"}]
["/*",null,{"$f":"'822100 - Nota. Prop, plan y eq.'!$E$55","v":"Método de depreciación, propiedades, planta y equipo"},{"$f":"'822100 - Nota. Prop, plan y eq.'!$D$55","v":"ifrs-full:DepreciationMethodPropertyPlantAndEquipment"}]
["/*",null,{"$f":"'822100 - Nota. Prop, plan y eq.'!$E$56","v":"Fechas de vigencia de revaluación, propiedades, planta y equipo"},{"$f":"'822100 - Nota. Prop, plan y eq.'!$D$56","v":"ifrs-full:EffectiveDatesOfRevaluationPropertyPlantAndEquipment"}]
["/*",null,{"$f":"'822100 - Nota. Prop, plan y eq.'!$E$57","v":"Explicación de la implicación del tasador independiente en la revaluación, propiedades, planta y equipo"},{"$f":"'822100 - Nota. Prop, plan y eq.'!$D$57","v":"ifrs-full:ExplanationOfIndependentValuerUsedForRevaluationPropertyPlantAndEquipment"}]
["/*",null,{"$f":"'822100 - Nota. Prop, plan y eq.'!$E$58","v":"Explicación del método de revaluación y supuestos significativos, propiedad, planta y equipo"},{"$f":"'822100 - Nota. Prop, plan y eq.'!$D$58","v":"co-svsp-core:ExplanationOfRevaluationMethodsAndSignificantAssumptionsPropertyPlantAndEquipment"}]
["/*",null,{"$f":"'822100 - Nota. Prop, plan y eq.'!$E$59","v":"Conciliación de cambios en propiedades, planta y equipo [resumen]"},{"$f":"'822100 - Nota. Prop, plan y eq.'!$D$59","v":"ifrs-full:ReconciliationOfChangesInPropertyPlantAndEquipmentAbstract"}]
["/*",null,{"$f":"'822100 - Nota. Prop, plan y eq.'!$E$60","v":"Propiedades, planta y equipo al comienzo del periodo"},{"$f":"'822100 - Nota. Prop, plan y eq.'!$D$60","v":"ifrs-full:PropertyPlantAndEquipment"}]
["/*",null,{"$f":"'822100 - Nota. Prop, plan y eq.'!$E$61","v":"Cambios en propiedades, planta y equipo [resumen]"},{"$f":"'822100 - Nota. Prop, plan y eq.'!$D$61","v":"ifrs-full:ChangesInPropertyPlantAndEquipmentAbstract"}]
["/*",null,{"$f":"'822100 - Nota. Prop, plan y eq.'!$E$62","v":"Incrementos distintos de los procedentes de combinaciones de negocios, propiedades, planta y equipo"},{"$f":"'822100 - Nota. Prop, plan y eq.'!$D$62","v":"ifrs-full:AdditionsOtherThanThroughBusinessCombinationsPropertyPlantAndEquipment"}]
["/*",null,{"$f":"'822100 - Nota. Prop, plan y eq.'!$E$63","v":"Adquisiciones realizadas mediante combinaciones de negocios, propiedades, planta y equipo"},{"$f":"'822100 - Nota. Prop, plan y eq.'!$D$63","v":"ifrs-full:AcquisitionsThroughBusinessCombinationsPropertyPlantAndEquipment"}]
["/*",null,{"$f":"'822100 - Nota. Prop, plan y eq.'!$E$64","v":"Depreciación, propiedades, planta y equipo"},{"$f":"'822100 - Nota. Prop, plan y eq.'!$D$64","v":"ifrs-full:DepreciationPropertyPlantAndEquipment"}]
["/*",null,{"$f":"'822100 - Nota. Prop, plan y eq.'!$E$65","v":"Pérdidas por deterioro de valor reconocidas en el resultado del periodo, propiedades, planta y equipo"},{"$f":"'822100 - Nota. Prop, plan y eq.'!$D$65","v":"ifrs-full:ImpairmentLossRecognisedInProfitOrLossPropertyPlantAndEquipment"}]
["/*",null,{"$f":"'822100 - Nota. Prop, plan y eq.'!$E$66","v":"Reversión de pérdidas por deterioro de valor reconocidas en el resultado del periodo, propiedades, planta y equipo"},{"$f":"'822100 - Nota. Prop, plan y eq.'!$D$66","v":"ifrs-full:ReversalOfImpairmentLossRecognisedInProfitOrLossPropertyPlantAndEquipment"}]
["/*",null,{"$f":"'822100 - Nota. Prop, plan y eq.'!$E$67","v":"Incrementos (disminuciones) de revaluaciones, propiedades, planta y equipo"},{"$f":"'822100 - Nota. Prop, plan y eq.'!$D$67","v":"ifrs-full:RevaluationIncreaseDecreasePropertyPlantAndEquipment"}]
["/*",null,{"$f":"'822100 - Nota. Prop, plan y eq.'!$E$68","v":"Pérdidas por deterioro de valor reconocidas en otro resultado integral, propiedades, planta y equipo"},{"$f":"'822100 - Nota. Prop, plan y eq.'!$D$68","v":"ifrs-full:ImpairmentLossRecognisedInOtherComprehensiveIncomePropertyPlantAndEquipment"}]
["/*",null,{"$f":"'822100 - Nota. Prop, plan y eq.'!$E$69","v":"Reversión de pérdidas por deterioro de valor reconocidas en otro resultado integral, propiedades, planta y equipo"},{"$f":"'822100 - Nota. Prop, plan y eq.'!$D$69","v":"ifrs-full:ReversalOfImpairmentLossRecognisedInOtherComprehensiveIncomePropertyPlantAndEquipment"}]
["/*",null,{"$f":"'822100 - Nota. Prop, plan y eq.'!$E$70","v":"Incrementos (disminuciones) por transferencias y otros cambios, propiedades, planta y equipo [resumen]"},{"$f":"'822100 - Nota. Prop, plan y eq.'!$D$70","v":"ifrs-full:IncreaseDecreaseThroughTransfersAndOtherChangesPropertyPlantAndEquipmentAbstract"}]
["/*",null,{"$f":"'822100 - Nota. Prop, plan y eq.'!$E$71","v":"Incrementos (disminuciones) por transferencias desde (hacia) propiedades de inversión, propiedades, planta y equipo"},{"$f":"'822100 - Nota. Prop, plan y eq.'!$D$71","v":"ifrs-full:IncreaseDecreaseThroughTransfersFromToInvestmentPropertyPropertyPlantAndEquipment"}]
["/*",null,{"$f":"'822100 - Nota. Prop, plan y eq.'!$E$72","v":"Incrementos (disminuciones) por transferencias desde construcciones en proceso , propiedades, planta y equipo"},{"$f":"'822100 - Nota. Prop, plan y eq.'!$D$72","v":"ifrs-full:IncreaseDecreaseThroughTransfersFromConstructionInProgressPropertyPlantAndEquipment"}]
["/*",null,{"$f":"'822100 - Nota. Prop, plan y eq.'!$E$73","v":"Incrementos (disminuciones) por otros cambios, propiedades, planta y equipo"},{"$f":"'822100 - Nota. Prop, plan y eq.'!$D$73","v":"ifrs-full:IncreaseDecreaseThroughOtherChangesPropertyPlantAndEquipment"}]
["",null,{"$f":"'822100 - Nota. Prop, plan y eq.'!$E$74","v":"Total incrementos (disminuciones) por transferencias y otros cambios, propiedades, planta y equipo"},{"$f":"'822100 - Nota. Prop, plan y eq.'!$D$74","v":"ifrs-full:IncreaseDecreaseThroughTransfersAndOtherChangesPropertyPlantAndEquipment"},0,"peso",{"$f":"'822100 - Nota. Prop, plan y eq.'!$T$74","v":0},0,"http://www.xbrl.org/scheme/companyName",{"$f":"Periodos!$D$3","v":"2022-01-01"},{"$f":"Periodos!$D$4","v":"2022-12-31"},{"$f":"'822100 - Nota. Prop, plan y eq.'!$E$52","v":"co-svsp-core:PropiedadesPlantaYEquipoEje_G1"},{"$f":"'822100 - Nota. Prop, plan y eq.'!$T$51","v":"ifrs-full:BearerPlantsMember"}]
["/*",null,{"$f":"'822100 - Nota. Prop, plan y eq.'!$E$75","v":"Disposiciones y retiros de servicio, propiedades, planta y equipo [resumen]"},{"$f":"'822100 - Nota. Prop, plan y eq.'!$D$75","v":"ifrs-full:DisposalsAndRetirementsPropertyPlantAndEquipmentAbstract"}]
["/*",null,{"$f":"'822100 - Nota. Prop, plan y eq.'!$E$76","v":"Disposiciones, propiedades, planta y equipo"},{"$f":"'822100 - Nota. Prop, plan y eq.'!$D$76","v":"ifrs-full:DisposalsPropertyPlantAndEquipment"}]
["/*",null,{"$f":"'822100 - Nota. Prop, plan y eq.'!$E$77","v":"Retiros, propiedades, planta y equipo"},{"$f":"'822100 - Nota. Prop, plan y eq.'!$D$77","v":"ifrs-full:RetirementsPropertyPlantAndEquipment"}]
["",null,{"$f":"'822100 - Nota. Prop, plan y eq.'!$E$78","v":"Total de disposiciones y retiros de servicio, propiedades, planta y equipo"},{"$f":"'822100 - Nota. Prop, plan y eq.'!$D$78","v":"ifrs-full:DisposalsAndRetirementsPropertyPlantAndEquipment"},0,"peso",{"$f":"'822100 - Nota. Prop, plan y eq.'!$T$78","v":0},0,"http://www.xbrl.org/scheme/companyName",{"$f":"Periodos!$D$3","v":"2022-01-01"},{"$f":"Periodos!$D$4","v":"2022-12-31"},{"$f":"'822100 - Nota. Prop, plan y eq.'!$E$52","v":"co-svsp-core:PropiedadesPlantaYEquipoEje_G1"},{"$f":"'822100 - Nota. Prop, plan y eq.'!$T$51","v":"ifrs-full:BearerPlantsMember"}]
["/*",null,{"$f":"'822100 - Nota. Prop, plan y eq.'!$E$79","v":"Disminuciones por clasificar como mantenidos para la venta, propiedades, planta y equipo"},{"$f":"'822100 - Nota. Prop, plan y eq.'!$D$79","v":"ifrs-full:DecreaseThroughClassifiedAsHeldForSalePropertyPlantAndEquipment"}]
["",null,{"$f":"'822100 - Nota. Prop, plan y eq.'!$E$80","v":"Total incremento (disminución) en propiedades, planta y equipo"},{"$f":"'822100 - Nota. Prop, plan y eq.'!$D$80","v":"ifrs-full:ChangesInPropertyPlantAndEquipment"},0,"peso",{"$f":"'822100 - Nota. Prop, plan y eq.'!$T$80","v":0},0,"http://www.xbrl.org/scheme/companyName",{"$f":"Periodos!$D$3","v":"2022-01-01"},{"$f":"Periodos!$D$4","v":"2022-12-31"},{"$f":"'822100 - Nota. Prop, plan y eq.'!$E$52","v":"co-svsp-core:PropiedadesPlantaYEquipoEje_G1"},{"$f":"'822100 - Nota. Prop, plan y eq.'!$T$51","v":"ifrs-full:BearerPlantsMember"}]
["",null,{"$f":"'822100 - Nota. Prop, plan y eq.'!$E$81","v":"Propiedades, planta y equipo al final del periodo"},{"$f":"'822100 - Nota. Prop, plan y eq.'!$D$81","v":"ifrs-full:PropertyPlantAndEquipment"},0,"peso",{"$f":"'822100 - Nota. Prop, plan y eq.'!$T$81","v":0},0,"http://www.xbrl.org/scheme/companyName",null,{"$f":"Periodos!$D$4","v":"2022-12-31"},{"$f":"'822100 - Nota. Prop, plan y eq.'!$E$52","v":"co-svsp-core:PropiedadesPlantaYEquipoEje_G1"},{"$f":"'822100 - Nota. Prop, plan y eq.'!$T$51","v":"ifrs-full:BearerPlantsMember"}]
["/*",null,"--16--"]
["/*",null,{"$f":"'822100 - Nota. Prop, plan y eq.'!$E$53","v":"Información a revelar detallada sobre propiedades, planta y equipo [partidas de los estados financieros]"},{"$f":"'822100 - Nota. Prop, plan y eq.'!$D$53","v":"ifrs-full:DisclosureOfPropertyPlantAndEquipmentLineItems"}]
["/*",null,{"$f":"'822100 - Nota. Prop, plan y eq.'!$E$54","v":"Bases de medición, propiedades, planta y equipo"},{"$f":"'822100 - Nota. Prop, plan y eq.'!$D$54","v":"ifrs-full:MeasurementBasesPropertyPlantAndEquipment"}]
["/*",null,{"$f":"'822100 - Nota. Prop, plan y eq.'!$E$55","v":"Método de depreciación, propiedades, planta y equipo"},{"$f":"'822100 - Nota. Prop, plan y eq.'!$D$55","v":"ifrs-full:DepreciationMethodPropertyPlantAndEquipment"}]
["/*",null,{"$f":"'822100 - Nota. Prop, plan y eq.'!$E$56","v":"Fechas de vigencia de revaluación, propiedades, planta y equipo"},{"$f":"'822100 - Nota. Prop, plan y eq.'!$D$56","v":"ifrs-full:EffectiveDatesOfRevaluationPropertyPlantAndEquipment"}]
["/*",null,{"$f":"'822100 - Nota. Prop, plan y eq.'!$E$57","v":"Explicación de la implicación del tasador independiente en la revaluación, propiedades, planta y equipo"},{"$f":"'822100 - Nota. Prop, plan y eq.'!$D$57","v":"ifrs-full:ExplanationOfIndependentValuerUsedForRevaluationPropertyPlantAndEquipment"}]
["/*",null,{"$f":"'822100 - Nota. Prop, plan y eq.'!$E$58","v":"Explicación del método de revaluación y supuestos significativos, propiedad, planta y equipo"},{"$f":"'822100 - Nota. Prop, plan y eq.'!$D$58","v":"co-svsp-core:ExplanationOfRevaluationMethodsAndSignificantAssumptionsPropertyPlantAndEquipment"}]
["/*",null,{"$f":"'822100 - Nota. Prop, plan y eq.'!$E$59","v":"Conciliación de cambios en propiedades, planta y equipo [resumen]"},{"$f":"'822100 - Nota. Prop, plan y eq.'!$D$59","v":"ifrs-full:ReconciliationOfChangesInPropertyPlantAndEquipmentAbstract"}]
["/*",null,{"$f":"'822100 - Nota. Prop, plan y eq.'!$E$60","v":"Propiedades, planta y equipo al comienzo del periodo"},{"$f":"'822100 - Nota. Prop, plan y eq.'!$D$60","v":"ifrs-full:PropertyPlantAndEquipment"}]
["/*",null,{"$f":"'822100 - Nota. Prop, plan y eq.'!$E$61","v":"Cambios en propiedades, planta y equipo [resumen]"},{"$f":"'822100 - Nota. Prop, plan y eq.'!$D$61","v":"ifrs-full:ChangesInPropertyPlantAndEquipmentAbstract"}]
["/*",null,{"$f":"'822100 - Nota. Prop, plan y eq.'!$E$62","v":"Incrementos distintos de los procedentes de combinaciones de negocios, propiedades, planta y equipo"},{"$f":"'822100 - Nota. Prop, plan y eq.'!$D$62","v":"ifrs-full:AdditionsOtherThanThroughBusinessCombinationsPropertyPlantAndEquipment"}]
["/*",null,{"$f":"'822100 - Nota. Prop, plan y eq.'!$E$63","v":"Adquisiciones realizadas mediante combinaciones de negocios, propiedades, planta y equipo"},{"$f":"'822100 - Nota. Prop, plan y eq.'!$D$63","v":"ifrs-full:AcquisitionsThroughBusinessCombinationsPropertyPlantAndEquipment"}]
["/*",null,{"$f":"'822100 - Nota. Prop, plan y eq.'!$E$64","v":"Depreciación, propiedades, planta y equipo"},{"$f":"'822100 - Nota. Prop, plan y eq.'!$D$64","v":"ifrs-full:DepreciationPropertyPlantAndEquipment"}]
["/*",null,{"$f":"'822100 - Nota. Prop, plan y eq.'!$E$65","v":"Pérdidas por deterioro de valor reconocidas en el resultado del periodo, propiedades, planta y equipo"},{"$f":"'822100 - Nota. Prop, plan y eq.'!$D$65","v":"ifrs-full:ImpairmentLossRecognisedInProfitOrLossPropertyPlantAndEquipment"}]
["/*",null,{"$f":"'822100 - Nota. Prop, plan y eq.'!$E$66","v":"Reversión de pérdidas por deterioro de valor reconocidas en el resultado del periodo, propiedades, planta y equipo"},{"$f":"'822100 - Nota. Prop, plan y eq.'!$D$66","v":"ifrs-full:ReversalOfImpairmentLossRecognisedInProfitOrLossPropertyPlantAndEquipment"}]
["/*",null,{"$f":"'822100 - Nota. Prop, plan y eq.'!$E$67","v":"Incrementos (disminuciones) de revaluaciones, propiedades, planta y equipo"},{"$f":"'822100 - Nota. Prop, plan y eq.'!$D$67","v":"ifrs-full:RevaluationIncreaseDecreasePropertyPlantAndEquipment"}]
["/*",null,{"$f":"'822100 - Nota. Prop, plan y eq.'!$E$68","v":"Pérdidas por deterioro de valor reconocidas en otro resultado integral, propiedades, planta y equipo"},{"$f":"'822100 - Nota. Prop, plan y eq.'!$D$68","v":"ifrs-full:ImpairmentLossRecognisedInOtherComprehensiveIncomePropertyPlantAndEquipment"}]
["/*",null,{"$f":"'822100 - Nota. Prop, plan y eq.'!$E$69","v":"Reversión de pérdidas por deterioro de valor reconocidas en otro resultado integral, propiedades, planta y equipo"},{"$f":"'822100 - Nota. Prop, plan y eq.'!$D$69","v":"ifrs-full:ReversalOfImpairmentLossRecognisedInOtherComprehensiveIncomePropertyPlantAndEquipment"}]
[{"$f":"IF(G6176=\"\",\"/*\",\"\")","v":"/*"},null,{"$f":"'822100 - Nota. Prop, plan y eq.'!$E$70","v":"Incrementos (disminuciones) por transferencias y otros cambios, propiedades, planta y equipo [resumen]"},{"$f":"'822100 - Nota. Prop, plan y eq.'!$D$70","v":"ifrs-full:IncreaseDecreaseThroughTransfersAndOtherChangesPropertyPlantAndEquipmentAbstract"}]
["/*",null,{"$f":"'822100 - Nota. Prop, plan y eq.'!$E$71","v":"Incrementos (disminuciones) por transferencias desde (hacia) propiedades de inversión, propiedades, planta y equipo"},{"$f":"'822100 - Nota. Prop, plan y eq.'!$D$71","v":"ifrs-full:IncreaseDecreaseThroughTransfersFromToInvestmentPropertyPropertyPlantAndEquipment"}]
["/*",null,{"$f":"'822100 - Nota. Prop, plan y eq.'!$E$72","v":"Incrementos (disminuciones) por transferencias desde construcciones en proceso , propiedades, planta y equipo"},{"$f":"'822100 - Nota. Prop, plan y eq.'!$D$72","v":"ifrs-full:IncreaseDecreaseThroughTransfersFromConstructionInProgressPropertyPlantAndEquipment"}]
["/*",null,{"$f":"'822100 - Nota. Prop, plan y eq.'!$E$73","v":"Incrementos (disminuciones) por otros cambios, propiedades, planta y equipo"},{"$f":"'822100 - Nota. Prop, plan y eq.'!$D$73","v":"ifrs-full:IncreaseDecreaseThroughOtherChangesPropertyPlantAndEquipment"}]
["",null,{"$f":"'822100 - Nota. Prop, plan y eq.'!$E$74","v":"Total incrementos (disminuciones) por transferencias y otros cambios, propiedades, planta y equipo"},{"$f":"'822100 - Nota. Prop, plan y eq.'!$D$74","v":"ifrs-full:IncreaseDecreaseThroughTransfersAndOtherChangesPropertyPlantAndEquipment"},0,"peso",{"$f":"'822100 - Nota. Prop, plan y eq.'!$U$74","v":0},0,"http://www.xbrl.org/scheme/companyName",{"$f":"Periodos!$D$3","v":"2022-01-01"},{"$f":"Periodos!$D$4","v":"2022-12-31"},{"$f":"'822100 - Nota. Prop, plan y eq.'!$E$52","v":"co-svsp-core:PropiedadesPlantaYEquipoEje_G1"},{"$f":"'822100 - Nota. Prop, plan y eq.'!$U$51","v":"ifrs-full:TangibleExplorationAndEvaluationAssetsMember"}]
["/*",null,{"$f":"'822100 - Nota. Prop, plan y eq.'!$E$75","v":"Disposiciones y retiros de servicio, propiedades, planta y equipo [resumen]"},{"$f":"'822100 - Nota. Prop, plan y eq.'!$D$75","v":"ifrs-full:DisposalsAndRetirementsPropertyPlantAndEquipmentAbstract"}]
["/*",null,{"$f":"'822100 - Nota. Prop, plan y eq.'!$E$76","v":"Disposiciones, propiedades, planta y equipo"},{"$f":"'822100 - Nota. Prop, plan y eq.'!$D$76","v":"ifrs-full:DisposalsPropertyPlantAndEquipment"}]
["/*",null,{"$f":"'822100 - Nota. Prop, plan y eq.'!$E$77","v":"Retiros, propiedades, planta y equipo"},{"$f":"'822100 - Nota. Prop, plan y eq.'!$D$77","v":"ifrs-full:RetirementsPropertyPlantAndEquipment"}]
["",null,{"$f":"'822100 - Nota. Prop, plan y eq.'!$E$78","v":"Total de disposiciones y retiros de servicio, propiedades, planta y equipo"},{"$f":"'822100 - Nota. Prop, plan y eq.'!$D$78","v":"ifrs-full:DisposalsAndRetirementsPropertyPlantAndEquipment"},0,"peso",{"$f":"'822100 - Nota. Prop, plan y eq.'!$U$78","v":0},0,"http://www.xbrl.org/scheme/companyName",{"$f":"Periodos!$D$3","v":"2022-01-01"},{"$f":"Periodos!$D$4","v":"2022-12-31"},{"$f":"'822100 - Nota. Prop, plan y eq.'!$E$52","v":"co-svsp-core:PropiedadesPlantaYEquipoEje_G1"},{"$f":"'822100 - Nota. Prop, plan y eq.'!$U$51","v":"ifrs-full:TangibleExplorationAndEvaluationAssetsMember"}]
["/*",null,{"$f":"'822100 - Nota. Prop, plan y eq.'!$E$79","v":"Disminuciones por clasificar como mantenidos para la venta, propiedades, planta y equipo"},{"$f":"'822100 - Nota. Prop, plan y eq.'!$D$79","v":"ifrs-full:DecreaseThroughClassifiedAsHeldForSalePropertyPlantAndEquipment"}]
["",null,{"$f":"'822100 - Nota. Prop, plan y eq.'!$E$80","v":"Total incremento (disminución) en propiedades, planta y equipo"},{"$f":"'822100 - Nota. Prop, plan y eq.'!$D$80","v":"ifrs-full:ChangesInPropertyPlantAndEquipment"},0,"peso",{"$f":"'822100 - Nota. Prop, plan y eq.'!$U$80","v":0},0,"http://www.xbrl.org/scheme/companyName",{"$f":"Periodos!$D$3","v":"2022-01-01"},{"$f":"Periodos!$D$4","v":"2022-12-31"},{"$f":"'822100 - Nota. Prop, plan y eq.'!$E$52","v":"co-svsp-core:PropiedadesPlantaYEquipoEje_G1"},{"$f":"'822100 - Nota. Prop, plan y eq.'!$U$51","v":"ifrs-full:TangibleExplorationAndEvaluationAssetsMember"}]
["",null,{"$f":"'822100 - Nota. Prop, plan y eq.'!$E$81","v":"Propiedades, planta y equipo al final del periodo"},{"$f":"'822100 - Nota. Prop, plan y eq.'!$D$81","v":"ifrs-full:PropertyPlantAndEquipment"},0,"peso",{"$f":"'822100 - Nota. Prop, plan y eq.'!$U$81","v":0},0,"http://www.xbrl.org/scheme/companyName",null,{"$f":"Periodos!$D$4","v":"2022-12-31"},{"$f":"'822100 - Nota. Prop, plan y eq.'!$E$52","v":"co-svsp-core:PropiedadesPlantaYEquipoEje_G1"},{"$f":"'822100 - Nota. Prop, plan y eq.'!$U$51","v":"ifrs-full:TangibleExplorationAndEvaluationAssetsMember"}]
["/*",null,"--17--"]
["/*",null,{"$f":"'822100 - Nota. Prop, plan y eq.'!$E$53","v":"Información a revelar detallada sobre propiedades, planta y equipo [partidas de los estados financieros]"},{"$f":"'822100 - Nota. Prop, plan y eq.'!$D$53","v":"ifrs-full:DisclosureOfPropertyPlantAndEquipmentLineItems"}]
["/*",null,{"$f":"'822100 - Nota. Prop, plan y eq.'!$E$54","v":"Bases de medición, propiedades, planta y equipo"},{"$f":"'822100 - Nota. Prop, plan y eq.'!$D$54","v":"ifrs-full:MeasurementBasesPropertyPlantAndEquipment"}]
["/*",null,{"$f":"'822100 - Nota. Prop, plan y eq.'!$E$55","v":"Método de depreciación, propiedades, planta y equipo"},{"$f":"'822100 - Nota. Prop, plan y eq.'!$D$55","v":"ifrs-full:DepreciationMethodPropertyPlantAndEquipment"}]
["/*",null,{"$f":"'822100 - Nota. Prop, plan y eq.'!$E$56","v":"Fechas de vigencia de revaluación, propiedades, planta y equipo"},{"$f":"'822100 - Nota. Prop, plan y eq.'!$D$56","v":"ifrs-full:EffectiveDatesOfRevaluationPropertyPlantAndEquipment"}]
["/*",null,{"$f":"'822100 - Nota. Prop, plan y eq.'!$E$57","v":"Explicación de la implicación del tasador independiente en la revaluación, propiedades, planta y equipo"},{"$f":"'822100 - Nota. Prop, plan y eq.'!$D$57","v":"ifrs-full:ExplanationOfIndependentValuerUsedForRevaluationPropertyPlantAndEquipment"}]
["/*",null,{"$f":"'822100 - Nota. Prop, plan y eq.'!$E$58","v":"Explicación del método de revaluación y supuestos significativos, propiedad, planta y equipo"},{"$f":"'822100 - Nota. Prop, plan y eq.'!$D$58","v":"co-svsp-core:ExplanationOfRevaluationMethodsAndSignificantAssumptionsPropertyPlantAndEquipment"}]
["/*",null,{"$f":"'822100 - Nota. Prop, plan y eq.'!$E$59","v":"Conciliación de cambios en propiedades, planta y equipo [resumen]"},{"$f":"'822100 - Nota. Prop, plan y eq.'!$D$59","v":"ifrs-full:ReconciliationOfChangesInPropertyPlantAndEquipmentAbstract"}]
["/*",null,{"$f":"'822100 - Nota. Prop, plan y eq.'!$E$60","v":"Propiedades, planta y equipo al comienzo del periodo"},{"$f":"'822100 - Nota. Prop, plan y eq.'!$D$60","v":"ifrs-full:PropertyPlantAndEquipment"}]
["/*",null,{"$f":"'822100 - Nota. Prop, plan y eq.'!$E$61","v":"Cambios en propiedades, planta y equipo [resumen]"},{"$f":"'822100 - Nota. Prop, plan y eq.'!$D$61","v":"ifrs-full:ChangesInPropertyPlantAndEquipmentAbstract"}]
["/*",null,{"$f":"'822100 - Nota. Prop, plan y eq.'!$E$62","v":"Incrementos distintos de los procedentes de combinaciones de negocios, propiedades, planta y equipo"},{"$f":"'822100 - Nota. Prop, plan y eq.'!$D$62","v":"ifrs-full:AdditionsOtherThanThroughBusinessCombinationsPropertyPlantAndEquipment"}]
["/*",null,{"$f":"'822100 - Nota. Prop, plan y eq.'!$E$63","v":"Adquisiciones realizadas mediante combinaciones de negocios, propiedades, planta y equipo"},{"$f":"'822100 - Nota. Prop, plan y eq.'!$D$63","v":"ifrs-full:AcquisitionsThroughBusinessCombinationsPropertyPlantAndEquipment"}]
["/*",null,{"$f":"'822100 - Nota. Prop, plan y eq.'!$E$64","v":"Depreciación, propiedades, planta y equipo"},{"$f":"'822100 - Nota. Prop, plan y eq.'!$D$64","v":"ifrs-full:DepreciationPropertyPlantAndEquipment"}]
["/*",null,{"$f":"'822100 - Nota. Prop, plan y eq.'!$E$65","v":"Pérdidas por deterioro de valor reconocidas en el resultado del periodo, propiedades, planta y equipo"},{"$f":"'822100 - Nota. Prop, plan y eq.'!$D$65","v":"ifrs-full:ImpairmentLossRecognisedInProfitOrLossPropertyPlantAndEquipment"}]
["/*",null,{"$f":"'822100 - Nota. Prop, plan y eq.'!$E$66","v":"Reversión de pérdidas por deterioro de valor reconocidas en el resultado del periodo, propiedades, planta y equipo"},{"$f":"'822100 - Nota. Prop, plan y eq.'!$D$66","v":"ifrs-full:ReversalOfImpairmentLossRecognisedInProfitOrLossPropertyPlantAndEquipment"}]
["/*",null,{"$f":"'822100 - Nota. Prop, plan y eq.'!$E$67","v":"Incrementos (disminuciones) de revaluaciones, propiedades, planta y equipo"},{"$f":"'822100 - Nota. Prop, plan y eq.'!$D$67","v":"ifrs-full:RevaluationIncreaseDecreasePropertyPlantAndEquipment"}]
["/*",null,{"$f":"'822100 - Nota. Prop, plan y eq.'!$E$68","v":"Pérdidas por deterioro de valor reconocidas en otro resultado integral, propiedades, planta y equipo"},{"$f":"'822100 - Nota. Prop, plan y eq.'!$D$68","v":"ifrs-full:ImpairmentLossRecognisedInOtherComprehensiveIncomePropertyPlantAndEquipment"}]
["/*",null,{"$f":"'822100 - Nota. Prop, plan y eq.'!$E$69","v":"Reversión de pérdidas por deterioro de valor reconocidas en otro resultado integral, propiedades, planta y equipo"},{"$f":"'822100 - Nota. Prop, plan y eq.'!$D$69","v":"ifrs-full:ReversalOfImpairmentLossRecognisedInOtherComprehensiveIncomePropertyPlantAndEquipment"}]
["/*",null,{"$f":"'822100 - Nota. Prop, plan y eq.'!$E$70","v":"Incrementos (disminuciones) por transferencias y otros cambios, propiedades, planta y equipo [resumen]"},{"$f":"'822100 - Nota. Prop, plan y eq.'!$D$70","v":"ifrs-full:IncreaseDecreaseThroughTransfersAndOtherChangesPropertyPlantAndEquipmentAbstract"}]
["/*",null,{"$f":"'822100 - Nota. Prop, plan y eq.'!$E$71","v":"Incrementos (disminuciones) por transferencias desde (hacia) propiedades de inversión, propiedades, planta y equipo"},{"$f":"'822100 - Nota. Prop, plan y eq.'!$D$71","v":"ifrs-full:IncreaseDecreaseThroughTransfersFromToInvestmentPropertyPropertyPlantAndEquipment"}]
["/*",null,{"$f":"'822100 - Nota. Prop, plan y eq.'!$E$72","v":"Incrementos (disminuciones) por transferencias desde construcciones en proceso , propiedades, planta y equipo"},{"$f":"'822100 - Nota. Prop, plan y eq.'!$D$72","v":"ifrs-full:IncreaseDecreaseThroughTransfersFromConstructionInProgressPropertyPlantAndEquipment"}]
["/*",null,{"$f":"'822100 - Nota. Prop, plan y eq.'!$E$73","v":"Incrementos (disminuciones) por otros cambios, propiedades, planta y equipo"},{"$f":"'822100 - Nota. Prop, plan y eq.'!$D$73","v":"ifrs-full:IncreaseDecreaseThroughOtherChangesPropertyPlantAndEquipment"}]
["",null,{"$f":"'822100 - Nota. Prop, plan y eq.'!$E$74","v":"Total incrementos (disminuciones) por transferencias y otros cambios, propiedades, planta y equipo"},{"$f":"'822100 - Nota. Prop, plan y eq.'!$D$74","v":"ifrs-full:IncreaseDecreaseThroughTransfersAndOtherChangesPropertyPlantAndEquipment"},0,"peso",{"$f":"'822100 - Nota. Prop, plan y eq.'!$V$74","v":0},0,"http://www.xbrl.org/scheme/companyName",{"$f":"Periodos!$D$3","v":"2022-01-01"},{"$f":"Periodos!$D$4","v":"2022-12-31"},{"$f":"'822100 - Nota. Prop, plan y eq.'!$E$52","v":"co-svsp-core:PropiedadesPlantaYEquipoEje_G1"},{"$f":"'822100 - Nota. Prop, plan y eq.'!$V$51","v":"ifrs-full:LeaseholdImprovementsMember"}]
["/*",null,{"$f":"'822100 - Nota. Prop, plan y eq.'!$E$75","v":"Disposiciones y retiros de servicio, propiedades, planta y equipo [resumen]"},{"$f":"'822100 - Nota. Prop, plan y eq.'!$D$75","v":"ifrs-full:DisposalsAndRetirementsPropertyPlantAndEquipmentAbstract"}]
["/*",null,{"$f":"'822100 - Nota. Prop, plan y eq.'!$E$76","v":"Disposiciones, propiedades, planta y equipo"},{"$f":"'822100 - Nota. Prop, plan y eq.'!$D$76","v":"ifrs-full:DisposalsPropertyPlantAndEquipment"}]
["/*",null,{"$f":"'822100 - Nota. Prop, plan y eq.'!$E$77","v":"Retiros, propiedades, planta y equipo"},{"$f":"'822100 - Nota. Prop, plan y eq.'!$D$77","v":"ifrs-full:RetirementsPropertyPlantAndEquipment"}]
["",null,{"$f":"'822100 - Nota. Prop, plan y eq.'!$E$78","v":"Total de disposiciones y retiros de servicio, propiedades, planta y equipo"},{"$f":"'822100 - Nota. Prop, plan y eq.'!$D$78","v":"ifrs-full:DisposalsAndRetirementsPropertyPlantAndEquipment"},0,"peso",{"$f":"'822100 - Nota. Prop, plan y eq.'!$V$78","v":0},0,"http://www.xbrl.org/scheme/companyName",{"$f":"Periodos!$D$3","v":"2022-01-01"},{"$f":"Periodos!$D$4","v":"2022-12-31"},{"$f":"'822100 - Nota. Prop, plan y eq.'!$E$52","v":"co-svsp-core:PropiedadesPlantaYEquipoEje_G1"},{"$f":"'822100 - Nota. Prop, plan y eq.'!$V$51","v":"ifrs-full:LeaseholdImprovementsMember"}]
["/*",null,{"$f":"'822100 - Nota. Prop, plan y eq.'!$E$79","v":"Disminuciones por clasificar como mantenidos para la venta, propiedades, planta y equipo"},{"$f":"'822100 - Nota. Prop, plan y eq.'!$D$79","v":"ifrs-full:DecreaseThroughClassifiedAsHeldForSalePropertyPlantAndEquipment"}]
["",null,{"$f":"'822100 - Nota. Prop, plan y eq.'!$E$80","v":"Total incremento (disminución) en propiedades, planta y equipo"},{"$f":"'822100 - Nota. Prop, plan y eq.'!$D$80","v":"ifrs-full:ChangesInPropertyPlantAndEquipment"},0,"peso",{"$f":"'822100 - Nota. Prop, plan y eq.'!$V$80","v":0},0,"http://www.xbrl.org/scheme/companyName",{"$f":"Periodos!$D$3","v":"2022-01-01"},{"$f":"Periodos!$D$4","v":"2022-12-31"},{"$f":"'822100 - Nota. Prop, plan y eq.'!$E$52","v":"co-svsp-core:PropiedadesPlantaYEquipoEje_G1"},{"$f":"'822100 - Nota. Prop, plan y eq.'!$V$51","v":"ifrs-full:LeaseholdImprovementsMember"}]
["",null,{"$f":"'822100 - Nota. Prop, plan y eq.'!$E$81","v":"Propiedades, planta y equipo al final del periodo"},{"$f":"'822100 - Nota. Prop, plan y eq.'!$D$81","v":"ifrs-full:PropertyPlantAndEquipment"},0,"peso",{"$f":"'822100 - Nota. Prop, plan y eq.'!$V$81","v":0},0,"http://www.xbrl.org/scheme/companyName",null,{"$f":"Periodos!$D$4","v":"2022-12-31"},{"$f":"'822100 - Nota. Prop, plan y eq.'!$E$52","v":"co-svsp-core:PropiedadesPlantaYEquipoEje_G1"},{"$f":"'822100 - Nota. Prop, plan y eq.'!$V$51","v":"ifrs-full:LeaseholdImprovementsMember"}]
["/*",null,"--18--"]
["/*",null,{"$f":"'822100 - Nota. Prop, plan y eq.'!$E$53","v":"Información a revelar detallada sobre propiedades, planta y equipo [partidas de los estados financieros]"},{"$f":"'822100 - Nota. Prop, plan y eq.'!$D$53","v":"ifrs-full:DisclosureOfPropertyPlantAndEquipmentLineItems"}]
["/*",null,{"$f":"'822100 - Nota. Prop, plan y eq.'!$E$54","v":"Bases de medición, propiedades, planta y equipo"},{"$f":"'822100 - Nota. Prop, plan y eq.'!$D$54","v":"ifrs-full:MeasurementBasesPropertyPlantAndEquipment"}]
["/*",null,{"$f":"'822100 - Nota. Prop, plan y eq.'!$E$55","v":"Método de depreciación, propiedades, planta y equipo"},{"$f":"'822100 - Nota. Prop, plan y eq.'!$D$55","v":"ifrs-full:DepreciationMethodPropertyPlantAndEquipment"}]
["/*",null,{"$f":"'822100 - Nota. Prop, plan y eq.'!$E$56","v":"Fechas de vigencia de revaluación, propiedades, planta y equipo"},{"$f":"'822100 - Nota. Prop, plan y eq.'!$D$56","v":"ifrs-full:EffectiveDatesOfRevaluationPropertyPlantAndEquipment"}]
["/*",null,{"$f":"'822100 - Nota. Prop, plan y eq.'!$E$57","v":"Explicación de la implicación del tasador independiente en la revaluación, propiedades, planta y equipo"},{"$f":"'822100 - Nota. Prop, plan y eq.'!$D$57","v":"ifrs-full:ExplanationOfIndependentValuerUsedForRevaluationPropertyPlantAndEquipment"}]
["/*",null,{"$f":"'822100 - Nota. Prop, plan y eq.'!$E$58","v":"Explicación del método de revaluación y supuestos significativos, propiedad, planta y equipo"},{"$f":"'822100 - Nota. Prop, plan y eq.'!$D$58","v":"co-svsp-core:ExplanationOfRevaluationMethodsAndSignificantAssumptionsPropertyPlantAndEquipment"}]
["/*",null,{"$f":"'822100 - Nota. Prop, plan y eq.'!$E$59","v":"Conciliación de cambios en propiedades, planta y equipo [resumen]"},{"$f":"'822100 - Nota. Prop, plan y eq.'!$D$59","v":"ifrs-full:ReconciliationOfChangesInPropertyPlantAndEquipmentAbstract"}]
["/*",null,{"$f":"'822100 - Nota. Prop, plan y eq.'!$E$60","v":"Propiedades, planta y equipo al comienzo del periodo"},{"$f":"'822100 - Nota. Prop, plan y eq.'!$D$60","v":"ifrs-full:PropertyPlantAndEquipment"}]
["/*",null,{"$f":"'822100 - Nota. Prop, plan y eq.'!$E$61","v":"Cambios en propiedades, planta y equipo [resumen]"},{"$f":"'822100 - Nota. Prop, plan y eq.'!$D$61","v":"ifrs-full:ChangesInPropertyPlantAndEquipmentAbstract"}]
["/*",null,{"$f":"'822100 - Nota. Prop, plan y eq.'!$E$62","v":"Incrementos distintos de los procedentes de combinaciones de negocios, propiedades, planta y equipo"},{"$f":"'822100 - Nota. Prop, plan y eq.'!$D$62","v":"ifrs-full:AdditionsOtherThanThroughBusinessCombinationsPropertyPlantAndEquipment"}]
["/*",null,{"$f":"'822100 - Nota. Prop, plan y eq.'!$E$63","v":"Adquisiciones realizadas mediante combinaciones de negocios, propiedades, planta y equipo"},{"$f":"'822100 - Nota. Prop, plan y eq.'!$D$63","v":"ifrs-full:AcquisitionsThroughBusinessCombinationsPropertyPlantAndEquipment"}]
["/*",null,{"$f":"'822100 - Nota. Prop, plan y eq.'!$E$64","v":"Depreciación, propiedades, planta y equipo"},{"$f":"'822100 - Nota. Prop, plan y eq.'!$D$64","v":"ifrs-full:DepreciationPropertyPlantAndEquipment"}]
["/*",null,{"$f":"'822100 - Nota. Prop, plan y eq.'!$E$65","v":"Pérdidas por deterioro de valor reconocidas en el resultado del periodo, propiedades, planta y equipo"},{"$f":"'822100 - Nota. Prop, plan y eq.'!$D$65","v":"ifrs-full:ImpairmentLossRecognisedInProfitOrLossPropertyPlantAndEquipment"}]
["/*",null,{"$f":"'822100 - Nota. Prop, plan y eq.'!$E$66","v":"Reversión de pérdidas por deterioro de valor reconocidas en el resultado del periodo, propiedades, planta y equipo"},{"$f":"'822100 - Nota. Prop, plan y eq.'!$D$66","v":"ifrs-full:ReversalOfImpairmentLossRecognisedInProfitOrLossPropertyPlantAndEquipment"}]
["/*",null,{"$f":"'822100 - Nota. Prop, plan y eq.'!$E$67","v":"Incrementos (disminuciones) de revaluaciones, propiedades, planta y equipo"},{"$f":"'822100 - Nota. Prop, plan y eq.'!$D$67","v":"ifrs-full:RevaluationIncreaseDecreasePropertyPlantAndEquipment"}]
["/*",null,{"$f":"'822100 - Nota. Prop, plan y eq.'!$E$68","v":"Pérdidas por deterioro de valor reconocidas en otro resultado integral, propiedades, planta y equipo"},{"$f":"'822100 - Nota. Prop, plan y eq.'!$D$68","v":"ifrs-full:ImpairmentLossRecognisedInOtherComprehensiveIncomePropertyPlantAndEquipment"}]
["/*",null,{"$f":"'822100 - Nota. Prop, plan y eq.'!$E$69","v":"Reversión de pérdidas por deterioro de valor reconocidas en otro resultado integral, propiedades, planta y equipo"},{"$f":"'822100 - Nota. Prop, plan y eq.'!$D$69","v":"ifrs-full:ReversalOfImpairmentLossRecognisedInOtherComprehensiveIncomePropertyPlantAndEquipment"}]
["/*",null,{"$f":"'822100 - Nota. Prop, plan y eq.'!$E$70","v":"Incrementos (disminuciones) por transferencias y otros cambios, propiedades, planta y equipo [resumen]"},{"$f":"'822100 - Nota. Prop, plan y eq.'!$D$70","v":"ifrs-full:IncreaseDecreaseThroughTransfersAndOtherChangesPropertyPlantAndEquipmentAbstract"}]
["/*",null,{"$f":"'822100 - Nota. Prop, plan y eq.'!$E$71","v":"Incrementos (disminuciones) por transferencias desde (hacia) propiedades de inversión, propiedades, planta y equipo"},{"$f":"'822100 - Nota. Prop, plan y eq.'!$D$71","v":"ifrs-full:IncreaseDecreaseThroughTransfersFromToInvestmentPropertyPropertyPlantAndEquipment"}]
["/*",null,{"$f":"'822100 - Nota. Prop, plan y eq.'!$E$72","v":"Incrementos (disminuciones) por transferencias desde construcciones en proceso , propiedades, planta y equipo"},{"$f":"'822100 - Nota. Prop, plan y eq.'!$D$72","v":"ifrs-full:IncreaseDecreaseThroughTransfersFromConstructionInProgressPropertyPlantAndEquipment"}]
["/*",null,{"$f":"'822100 - Nota. Prop, plan y eq.'!$E$73","v":"Incrementos (disminuciones) por otros cambios, propiedades, planta y equipo"},{"$f":"'822100 - Nota. Prop, plan y eq.'!$D$73","v":"ifrs-full:IncreaseDecreaseThroughOtherChangesPropertyPlantAndEquipment"}]
[{"$f":"IF(G6240=\"\",\"/*\",\"\")","v":""},null,{"$f":"'822100 - Nota. Prop, plan y eq.'!$E$74","v":"Total incrementos (disminuciones) por transferencias y otros cambios, propiedades, planta y equipo"},{"$f":"'822100 - Nota. Prop, plan y eq.'!$D$74","v":"ifrs-full:IncreaseDecreaseThroughTransfersAndOtherChangesPropertyPlantAndEquipment"},0,"peso",{"$f":"'822100 - Nota. Prop, plan y eq.'!$W$74","v":0},0,"http://www.xbrl.org/scheme/companyName",{"$f":"Periodos!$D$3","v":"2022-01-01"},{"$f":"Periodos!$D$4","v":"2022-12-31"},{"$f":"'822100 - Nota. Prop, plan y eq.'!$E$52","v":"co-svsp-core:PropiedadesPlantaYEquipoEje_G1"},{"$f":"'822100 - Nota. Prop, plan y eq.'!$W$51","v":"ifrs-full:ConstructionInProgressMember"}]
["/*",null,{"$f":"'822100 - Nota. Prop, plan y eq.'!$E$75","v":"Disposiciones y retiros de servicio, propiedades, planta y equipo [resumen]"},{"$f":"'822100 - Nota. Prop, plan y eq.'!$D$75","v":"ifrs-full:DisposalsAndRetirementsPropertyPlantAndEquipmentAbstract"}]
["/*",null,{"$f":"'822100 - Nota. Prop, plan y eq.'!$E$76","v":"Disposiciones, propiedades, planta y equipo"},{"$f":"'822100 - Nota. Prop, plan y eq.'!$D$76","v":"ifrs-full:DisposalsPropertyPlantAndEquipment"}]
["/*",null,{"$f":"'822100 - Nota. Prop, plan y eq.'!$E$77","v":"Retiros, propiedades, planta y equipo"},{"$f":"'822100 - Nota. Prop, plan y eq.'!$D$77","v":"ifrs-full:RetirementsPropertyPlantAndEquipment"}]
["",null,{"$f":"'822100 - Nota. Prop, plan y eq.'!$E$78","v":"Total de disposiciones y retiros de servicio, propiedades, planta y equipo"},{"$f":"'822100 - Nota. Prop, plan y eq.'!$D$78","v":"ifrs-full:DisposalsAndRetirementsPropertyPlantAndEquipment"},0,"peso",{"$f":"'822100 - Nota. Prop, plan y eq.'!$W$78","v":0},0,"http://www.xbrl.org/scheme/companyName",{"$f":"Periodos!$D$3","v":"2022-01-01"},{"$f":"Periodos!$D$4","v":"2022-12-31"},{"$f":"'822100 - Nota. Prop, plan y eq.'!$E$52","v":"co-svsp-core:PropiedadesPlantaYEquipoEje_G1"},{"$f":"'822100 - Nota. Prop, plan y eq.'!$W$51","v":"ifrs-full:ConstructionInProgressMember"}]
["/*",null,{"$f":"'822100 - Nota. Prop, plan y eq.'!$E$79","v":"Disminuciones por clasificar como mantenidos para la venta, propiedades, planta y equipo"},{"$f":"'822100 - Nota. Prop, plan y eq.'!$D$79","v":"ifrs-full:DecreaseThroughClassifiedAsHeldForSalePropertyPlantAndEquipment"}]
["",null,{"$f":"'822100 - Nota. Prop, plan y eq.'!$E$80","v":"Total incremento (disminución) en propiedades, planta y equipo"},{"$f":"'822100 - Nota. Prop, plan y eq.'!$D$80","v":"ifrs-full:ChangesInPropertyPlantAndEquipment"},0,"peso",{"$f":"'822100 - Nota. Prop, plan y eq.'!$W$80","v":0},0,"http://www.xbrl.org/scheme/companyName",{"$f":"Periodos!$D$3","v":"2022-01-01"},{"$f":"Periodos!$D$4","v":"2022-12-31"},{"$f":"'822100 - Nota. Prop, plan y eq.'!$E$52","v":"co-svsp-core:PropiedadesPlantaYEquipoEje_G1"},{"$f":"'822100 - Nota. Prop, plan y eq.'!$W$51","v":"ifrs-full:ConstructionInProgressMember"}]
["",null,{"$f":"'822100 - Nota. Prop, plan y eq.'!$E$81","v":"Propiedades, planta y equipo al final del periodo"},{"$f":"'822100 - Nota. Prop, plan y eq.'!$D$81","v":"ifrs-full:PropertyPlantAndEquipment"},0,"peso",{"$f":"'822100 - Nota. Prop, plan y eq.'!$W$81","v":0},0,"http://www.xbrl.org/scheme/companyName",null,{"$f":"Periodos!$D$4","v":"2022-12-31"},{"$f":"'822100 - Nota. Prop, plan y eq.'!$E$52","v":"co-svsp-core:PropiedadesPlantaYEquipoEje_G1"},{"$f":"'822100 - Nota. Prop, plan y eq.'!$W$51","v":"ifrs-full:ConstructionInProgressMember"}]
["/*",null,"--19--"]
["/*",null,{"$f":"'822100 - Nota. Prop, plan y eq.'!$E$53","v":"Información a revelar detallada sobre propiedades, planta y equipo [partidas de los estados financieros]"},{"$f":"'822100 - Nota. Prop, plan y eq.'!$D$53","v":"ifrs-full:DisclosureOfPropertyPlantAndEquipmentLineItems"}]
["/*",null,{"$f":"'822100 - Nota. Prop, plan y eq.'!$E$54","v":"Bases de medición, propiedades, planta y equipo"},{"$f":"'822100 - Nota. Prop, plan y eq.'!$D$54","v":"ifrs-full:MeasurementBasesPropertyPlantAndEquipment"}]
["/*",null,{"$f":"'822100 - Nota. Prop, plan y eq.'!$E$55","v":"Método de depreciación, propiedades, planta y equipo"},{"$f":"'822100 - Nota. Prop, plan y eq.'!$D$55","v":"ifrs-full:DepreciationMethodPropertyPlantAndEquipment"}]
["/*",null,{"$f":"'822100 - Nota. Prop, plan y eq.'!$E$56","v":"Fechas de vigencia de revaluación, propiedades, planta y equipo"},{"$f":"'822100 - Nota. Prop, plan y eq.'!$D$56","v":"ifrs-full:EffectiveDatesOfRevaluationPropertyPlantAndEquipment"}]
["/*",null,{"$f":"'822100 - Nota. Prop, plan y eq.'!$E$57","v":"Explicación de la implicación del tasador independiente en la revaluación, propiedades, planta y equipo"},{"$f":"'822100 - Nota. Prop, plan y eq.'!$D$57","v":"ifrs-full:ExplanationOfIndependentValuerUsedForRevaluationPropertyPlantAndEquipment"}]
["/*",null,{"$f":"'822100 - Nota. Prop, plan y eq.'!$E$58","v":"Explicación del método de revaluación y supuestos significativos, propiedad, planta y equipo"},{"$f":"'822100 - Nota. Prop, plan y eq.'!$D$58","v":"co-svsp-core:ExplanationOfRevaluationMethodsAndSignificantAssumptionsPropertyPlantAndEquipment"}]
["/*",null,{"$f":"'822100 - Nota. Prop, plan y eq.'!$E$59","v":"Conciliación de cambios en propiedades, planta y equipo [resumen]"},{"$f":"'822100 - Nota. Prop, plan y eq.'!$D$59","v":"ifrs-full:ReconciliationOfChangesInPropertyPlantAndEquipmentAbstract"}]
["/*",null,{"$f":"'822100 - Nota. Prop, plan y eq.'!$E$60","v":"Propiedades, planta y equipo al comienzo del periodo"},{"$f":"'822100 - Nota. Prop, plan y eq.'!$D$60","v":"ifrs-full:PropertyPlantAndEquipment"}]
["/*",null,{"$f":"'822100 - Nota. Prop, plan y eq.'!$E$61","v":"Cambios en propiedades, planta y equipo [resumen]"},{"$f":"'822100 - Nota. Prop, plan y eq.'!$D$61","v":"ifrs-full:ChangesInPropertyPlantAndEquipmentAbstract"}]
["/*",null,{"$f":"'822100 - Nota. Prop, plan y eq.'!$E$62","v":"Incrementos distintos de los procedentes de combinaciones de negocios, propiedades, planta y equipo"},{"$f":"'822100 - Nota. Prop, plan y eq.'!$D$62","v":"ifrs-full:AdditionsOtherThanThroughBusinessCombinationsPropertyPlantAndEquipment"}]
["/*",null,{"$f":"'822100 - Nota. Prop, plan y eq.'!$E$63","v":"Adquisiciones realizadas mediante combinaciones de negocios, propiedades, planta y equipo"},{"$f":"'822100 - Nota. Prop, plan y eq.'!$D$63","v":"ifrs-full:AcquisitionsThroughBusinessCombinationsPropertyPlantAndEquipment"}]
["/*",null,{"$f":"'822100 - Nota. Prop, plan y eq.'!$E$64","v":"Depreciación, propiedades, planta y equipo"},{"$f":"'822100 - Nota. Prop, plan y eq.'!$D$64","v":"ifrs-full:DepreciationPropertyPlantAndEquipment"}]
["/*",null,{"$f":"'822100 - Nota. Prop, plan y eq.'!$E$65","v":"Pérdidas por deterioro de valor reconocidas en el resultado del periodo, propiedades, planta y equipo"},{"$f":"'822100 - Nota. Prop, plan y eq.'!$D$65","v":"ifrs-full:ImpairmentLossRecognisedInProfitOrLossPropertyPlantAndEquipment"}]
["/*",null,{"$f":"'822100 - Nota. Prop, plan y eq.'!$E$66","v":"Reversión de pérdidas por deterioro de valor reconocidas en el resultado del periodo, propiedades, planta y equipo"},{"$f":"'822100 - Nota. Prop, plan y eq.'!$D$66","v":"ifrs-full:ReversalOfImpairmentLossRecognisedInProfitOrLossPropertyPlantAndEquipment"}]
["/*",null,{"$f":"'822100 - Nota. Prop, plan y eq.'!$E$67","v":"Incrementos (disminuciones) de revaluaciones, propiedades, planta y equipo"},{"$f":"'822100 - Nota. Prop, plan y eq.'!$D$67","v":"ifrs-full:RevaluationIncreaseDecreasePropertyPlantAndEquipment"}]
["/*",null,{"$f":"'822100 - Nota. Prop, plan y eq.'!$E$68","v":"Pérdidas por deterioro de valor reconocidas en otro resultado integral, propiedades, planta y equipo"},{"$f":"'822100 - Nota. Prop, plan y eq.'!$D$68","v":"ifrs-full:ImpairmentLossRecognisedInOtherComprehensiveIncomePropertyPlantAndEquipment"}]
["/*",null,{"$f":"'822100 - Nota. Prop, plan y eq.'!$E$69","v":"Reversión de pérdidas por deterioro de valor reconocidas en otro resultado integral, propiedades, planta y equipo"},{"$f":"'822100 - Nota. Prop, plan y eq.'!$D$69","v":"ifrs-full:ReversalOfImpairmentLossRecognisedInOtherComprehensiveIncomePropertyPlantAndEquipment"}]
["/*",null,{"$f":"'822100 - Nota. Prop, plan y eq.'!$E$70","v":"Incrementos (disminuciones) por transferencias y otros cambios, propiedades, planta y equipo [resumen]"},{"$f":"'822100 - Nota. Prop, plan y eq.'!$D$70","v":"ifrs-full:IncreaseDecreaseThroughTransfersAndOtherChangesPropertyPlantAndEquipmentAbstract"}]
["/*",null,{"$f":"'822100 - Nota. Prop, plan y eq.'!$E$71","v":"Incrementos (disminuciones) por transferencias desde (hacia) propiedades de inversión, propiedades, planta y equipo"},{"$f":"'822100 - Nota. Prop, plan y eq.'!$D$71","v":"ifrs-full:IncreaseDecreaseThroughTransfersFromToInvestmentPropertyPropertyPlantAndEquipment"}]
["/*",null,{"$f":"'822100 - Nota. Prop, plan y eq.'!$E$72","v":"Incrementos (disminuciones) por transferencias desde construcciones en proceso , propiedades, planta y equipo"},{"$f":"'822100 - Nota. Prop, plan y eq.'!$D$72","v":"ifrs-full:IncreaseDecreaseThroughTransfersFromConstructionInProgressPropertyPlantAndEquipment"}]
["/*",null,{"$f":"'822100 - Nota. Prop, plan y eq.'!$E$73","v":"Incrementos (disminuciones) por otros cambios, propiedades, planta y equipo"},{"$f":"'822100 - Nota. Prop, plan y eq.'!$D$73","v":"ifrs-full:IncreaseDecreaseThroughOtherChangesPropertyPlantAndEquipment"}]
["",null,{"$f":"'822100 - Nota. Prop, plan y eq.'!$E$74","v":"Total incrementos (disminuciones) por transferencias y otros cambios, propiedades, planta y equipo"},{"$f":"'822100 - Nota. Prop, plan y eq.'!$D$74","v":"ifrs-full:IncreaseDecreaseThroughTransfersAndOtherChangesPropertyPlantAndEquipment"},0,"peso",{"$f":"'822100 - Nota. Prop, plan y eq.'!$X$74","v":0},0,"http://www.xbrl.org/scheme/companyName",{"$f":"Periodos!$D$3","v":"2022-01-01"},{"$f":"Periodos!$D$4","v":"2022-12-31"},{"$f":"'822100 - Nota. Prop, plan y eq.'!$E$52","v":"co-svsp-core:PropiedadesPlantaYEquipoEje_G1"},{"$f":"'822100 - Nota. Prop, plan y eq.'!$X$51","v":"co-svsp-core:CaninosMiembro"}]
["/*",null,{"$f":"'822100 - Nota. Prop, plan y eq.'!$E$75","v":"Disposiciones y retiros de servicio, propiedades, planta y equipo [resumen]"},{"$f":"'822100 - Nota. Prop, plan y eq.'!$D$75","v":"ifrs-full:DisposalsAndRetirementsPropertyPlantAndEquipmentAbstract"}]
["/*",null,{"$f":"'822100 - Nota. Prop, plan y eq.'!$E$76","v":"Disposiciones, propiedades, planta y equipo"},{"$f":"'822100 - Nota. Prop, plan y eq.'!$D$76","v":"ifrs-full:DisposalsPropertyPlantAndEquipment"}]
["/*",null,{"$f":"'822100 - Nota. Prop, plan y eq.'!$E$77","v":"Retiros, propiedades, planta y equipo"},{"$f":"'822100 - Nota. Prop, plan y eq.'!$D$77","v":"ifrs-full:RetirementsPropertyPlantAndEquipment"}]
["",null,{"$f":"'822100 - Nota. Prop, plan y eq.'!$E$78","v":"Total de disposiciones y retiros de servicio, propiedades, planta y equipo"},{"$f":"'822100 - Nota. Prop, plan y eq.'!$D$78","v":"ifrs-full:DisposalsAndRetirementsPropertyPlantAndEquipment"},0,"peso",{"$f":"'822100 - Nota. Prop, plan y eq.'!$X$78","v":0},0,"http://www.xbrl.org/scheme/companyName",{"$f":"Periodos!$D$3","v":"2022-01-01"},{"$f":"Periodos!$D$4","v":"2022-12-31"},{"$f":"'822100 - Nota. Prop, plan y eq.'!$E$52","v":"co-svsp-core:PropiedadesPlantaYEquipoEje_G1"},{"$f":"'822100 - Nota. Prop, plan y eq.'!$X$51","v":"co-svsp-core:CaninosMiembro"}]
["/*",null,{"$f":"'822100 - Nota. Prop, plan y eq.'!$E$79","v":"Disminuciones por clasificar como mantenidos para la venta, propiedades, planta y equipo"},{"$f":"'822100 - Nota. Prop, plan y eq.'!$D$79","v":"ifrs-full:DecreaseThroughClassifiedAsHeldForSalePropertyPlantAndEquipment"}]
["",null,{"$f":"'822100 - Nota. Prop, plan y eq.'!$E$80","v":"Total incremento (disminución) en propiedades, planta y equipo"},{"$f":"'822100 - Nota. Prop, plan y eq.'!$D$80","v":"ifrs-full:ChangesInPropertyPlantAndEquipment"},0,"peso",{"$f":"'822100 - Nota. Prop, plan y eq.'!$X$80","v":0},0,"http://www.xbrl.org/scheme/companyName",{"$f":"Periodos!$D$3","v":"2022-01-01"},{"$f":"Periodos!$D$4","v":"2022-12-31"},{"$f":"'822100 - Nota. Prop, plan y eq.'!$E$52","v":"co-svsp-core:PropiedadesPlantaYEquipoEje_G1"},{"$f":"'822100 - Nota. Prop, plan y eq.'!$X$51","v":"co-svsp-core:CaninosMiembro"}]
["",null,{"$f":"'822100 - Nota. Prop, plan y eq.'!$E$81","v":"Propiedades, planta y equipo al final del periodo"},{"$f":"'822100 - Nota. Prop, plan y eq.'!$D$81","v":"ifrs-full:PropertyPlantAndEquipment"},0,"peso",{"$f":"'822100 - Nota. Prop, plan y eq.'!$X$81","v":0},0,"http://www.xbrl.org/scheme/companyName",null,{"$f":"Periodos!$D$4","v":"2022-12-31"},{"$f":"'822100 - Nota. Prop, plan y eq.'!$E$52","v":"co-svsp-core:PropiedadesPlantaYEquipoEje_G1"},{"$f":"'822100 - Nota. Prop, plan y eq.'!$X$51","v":"co-svsp-core:CaninosMiembro"}]
["/*",null,"--20--"]
["/*",null,{"$f":"'822100 - Nota. Prop, plan y eq.'!$E$53","v":"Información a revelar detallada sobre propiedades, planta y equipo [partidas de los estados financieros]"},{"$f":"'822100 - Nota. Prop, plan y eq.'!$D$53","v":"ifrs-full:DisclosureOfPropertyPlantAndEquipmentLineItems"}]
["/*",null,{"$f":"'822100 - Nota. Prop, plan y eq.'!$E$54","v":"Bases de medición, propiedades, planta y equipo"},{"$f":"'822100 - Nota. Prop, plan y eq.'!$D$54","v":"ifrs-full:MeasurementBasesPropertyPlantAndEquipment"}]
["/*",null,{"$f":"'822100 - Nota. Prop, plan y eq.'!$E$55","v":"Método de depreciación, propiedades, planta y equipo"},{"$f":"'822100 - Nota. Prop, plan y eq.'!$D$55","v":"ifrs-full:DepreciationMethodPropertyPlantAndEquipment"}]
["/*",null,{"$f":"'822100 - Nota. Prop, plan y eq.'!$E$56","v":"Fechas de vigencia de revaluación, propiedades, planta y equipo"},{"$f":"'822100 - Nota. Prop, plan y eq.'!$D$56","v":"ifrs-full:EffectiveDatesOfRevaluationPropertyPlantAndEquipment"}]
["/*",null,{"$f":"'822100 - Nota. Prop, plan y eq.'!$E$57","v":"Explicación de la implicación del tasador independiente en la revaluación, propiedades, planta y equipo"},{"$f":"'822100 - Nota. Prop, plan y eq.'!$D$57","v":"ifrs-full:ExplanationOfIndependentValuerUsedForRevaluationPropertyPlantAndEquipment"}]
["/*",null,{"$f":"'822100 - Nota. Prop, plan y eq.'!$E$58","v":"Explicación del método de revaluación y supuestos significativos, propiedad, planta y equipo"},{"$f":"'822100 - Nota. Prop, plan y eq.'!$D$58","v":"co-svsp-core:ExplanationOfRevaluationMethodsAndSignificantAssumptionsPropertyPlantAndEquipment"}]
["/*",null,{"$f":"'822100 - Nota. Prop, plan y eq.'!$E$59","v":"Conciliación de cambios en propiedades, planta y equipo [resumen]"},{"$f":"'822100 - Nota. Prop, plan y eq.'!$D$59","v":"ifrs-full:ReconciliationOfChangesInPropertyPlantAndEquipmentAbstract"}]
["/*",null,{"$f":"'822100 - Nota. Prop, plan y eq.'!$E$60","v":"Propiedades, planta y equipo al comienzo del periodo"},{"$f":"'822100 - Nota. Prop, plan y eq.'!$D$60","v":"ifrs-full:PropertyPlantAndEquipment"}]
["/*",null,{"$f":"'822100 - Nota. Prop, plan y eq.'!$E$61","v":"Cambios en propiedades, planta y equipo [resumen]"},{"$f":"'822100 - Nota. Prop, plan y eq.'!$D$61","v":"ifrs-full:ChangesInPropertyPlantAndEquipmentAbstract"}]
["/*",null,{"$f":"'822100 - Nota. Prop, plan y eq.'!$E$62","v":"Incrementos distintos de los procedentes de combinaciones de negocios, propiedades, planta y equipo"},{"$f":"'822100 - Nota. Prop, plan y eq.'!$D$62","v":"ifrs-full:AdditionsOtherThanThroughBusinessCombinationsPropertyPlantAndEquipment"}]
["/*",null,{"$f":"'822100 - Nota. Prop, plan y eq.'!$E$63","v":"Adquisiciones realizadas mediante combinaciones de negocios, propiedades, planta y equipo"},{"$f":"'822100 - Nota. Prop, plan y eq.'!$D$63","v":"ifrs-full:AcquisitionsThroughBusinessCombinationsPropertyPlantAndEquipment"}]
["/*",null,{"$f":"'822100 - Nota. Prop, plan y eq.'!$E$64","v":"Depreciación, propiedades, planta y equipo"},{"$f":"'822100 - Nota. Prop, plan y eq.'!$D$64","v":"ifrs-full:DepreciationPropertyPlantAndEquipment"}]
["/*",null,{"$f":"'822100 - Nota. Prop, plan y eq.'!$E$65","v":"Pérdidas por deterioro de valor reconocidas en el resultado del periodo, propiedades, planta y equipo"},{"$f":"'822100 - Nota. Prop, plan y eq.'!$D$65","v":"ifrs-full:ImpairmentLossRecognisedInProfitOrLossPropertyPlantAndEquipment"}]
["/*",null,{"$f":"'822100 - Nota. Prop, plan y eq.'!$E$66","v":"Reversión de pérdidas por deterioro de valor reconocidas en el resultado del periodo, propiedades, planta y equipo"},{"$f":"'822100 - Nota. Prop, plan y eq.'!$D$66","v":"ifrs-full:ReversalOfImpairmentLossRecognisedInProfitOrLossPropertyPlantAndEquipment"}]
["/*",null,{"$f":"'822100 - Nota. Prop, plan y eq.'!$E$67","v":"Incrementos (disminuciones) de revaluaciones, propiedades, planta y equipo"},{"$f":"'822100 - Nota. Prop, plan y eq.'!$D$67","v":"ifrs-full:RevaluationIncreaseDecreasePropertyPlantAndEquipment"}]
["/*",null,{"$f":"'822100 - Nota. Prop, plan y eq.'!$E$68","v":"Pérdidas por deterioro de valor reconocidas en otro resultado integral, propiedades, planta y equipo"},{"$f":"'822100 - Nota. Prop, plan y eq.'!$D$68","v":"ifrs-full:ImpairmentLossRecognisedInOtherComprehensiveIncomePropertyPlantAndEquipment"}]
["/*",null,{"$f":"'822100 - Nota. Prop, plan y eq.'!$E$69","v":"Reversión de pérdidas por deterioro de valor reconocidas en otro resultado integral, propiedades, planta y equipo"},{"$f":"'822100 - Nota. Prop, plan y eq.'!$D$69","v":"ifrs-full:ReversalOfImpairmentLossRecognisedInOtherComprehensiveIncomePropertyPlantAndEquipment"}]
["/*",null,{"$f":"'822100 - Nota. Prop, plan y eq.'!$E$70","v":"Incrementos (disminuciones) por transferencias y otros cambios, propiedades, planta y equipo [resumen]"},{"$f":"'822100 - Nota. Prop, plan y eq.'!$D$70","v":"ifrs-full:IncreaseDecreaseThroughTransfersAndOtherChangesPropertyPlantAndEquipmentAbstract"}]
["/*",null,{"$f":"'822100 - Nota. Prop, plan y eq.'!$E$71","v":"Incrementos (disminuciones) por transferencias desde (hacia) propiedades de inversión, propiedades, planta y equipo"},{"$f":"'822100 - Nota. Prop, plan y eq.'!$D$71","v":"ifrs-full:IncreaseDecreaseThroughTransfersFromToInvestmentPropertyPropertyPlantAndEquipment"}]
["/*",null,{"$f":"'822100 - Nota. Prop, plan y eq.'!$E$72","v":"Incrementos (disminuciones) por transferencias desde construcciones en proceso , propiedades, planta y equipo"},{"$f":"'822100 - Nota. Prop, plan y eq.'!$D$72","v":"ifrs-full:IncreaseDecreaseThroughTransfersFromConstructionInProgressPropertyPlantAndEquipment"}]
["/*",null,{"$f":"'822100 - Nota. Prop, plan y eq.'!$E$73","v":"Incrementos (disminuciones) por otros cambios, propiedades, planta y equipo"},{"$f":"'822100 - Nota. Prop, plan y eq.'!$D$73","v":"ifrs-full:IncreaseDecreaseThroughOtherChangesPropertyPlantAndEquipment"}]
["",null,{"$f":"'822100 - Nota. Prop, plan y eq.'!$E$74","v":"Total incrementos (disminuciones) por transferencias y otros cambios, propiedades, planta y equipo"},{"$f":"'822100 - Nota. Prop, plan y eq.'!$D$74","v":"ifrs-full:IncreaseDecreaseThroughTransfersAndOtherChangesPropertyPlantAndEquipment"},0,"peso",{"$f":"'822100 - Nota. Prop, plan y eq.'!$Y$74","v":0},0,"http://www.xbrl.org/scheme/companyName",{"$f":"Periodos!$D$3","v":"2022-01-01"},{"$f":"Periodos!$D$4","v":"2022-12-31"},{"$f":"'822100 - Nota. Prop, plan y eq.'!$E$52","v":"co-svsp-core:PropiedadesPlantaYEquipoEje_G1"},{"$f":"'822100 - Nota. Prop, plan y eq.'!$Y$51","v":"co-svsp-core:EquinosMiembro"}]
["/*",null,{"$f":"'822100 - Nota. Prop, plan y eq.'!$E$75","v":"Disposiciones y retiros de servicio, propiedades, planta y equipo [resumen]"},{"$f":"'822100 - Nota. Prop, plan y eq.'!$D$75","v":"ifrs-full:DisposalsAndRetirementsPropertyPlantAndEquipmentAbstract"}]
["/*",null,{"$f":"'822100 - Nota. Prop, plan y eq.'!$E$76","v":"Disposiciones, propiedades, planta y equipo"},{"$f":"'822100 - Nota. Prop, plan y eq.'!$D$76","v":"ifrs-full:DisposalsPropertyPlantAndEquipment"}]
["/*",null,{"$f":"'822100 - Nota. Prop, plan y eq.'!$E$77","v":"Retiros, propiedades, planta y equipo"},{"$f":"'822100 - Nota. Prop, plan y eq.'!$D$77","v":"ifrs-full:RetirementsPropertyPlantAndEquipment"}]
[{"$f":"IF(G6304=\"\",\"/*\",\"\")","v":""},null,{"$f":"'822100 - Nota. Prop, plan y eq.'!$E$78","v":"Total de disposiciones y retiros de servicio, propiedades, planta y equipo"},{"$f":"'822100 - Nota. Prop, plan y eq.'!$D$78","v":"ifrs-full:DisposalsAndRetirementsPropertyPlantAndEquipment"},0,"peso",{"$f":"'822100 - Nota. Prop, plan y eq.'!$Y$78","v":0},0,"http://www.xbrl.org/scheme/companyName",{"$f":"Periodos!$D$3","v":"2022-01-01"},{"$f":"Periodos!$D$4","v":"2022-12-31"},{"$f":"'822100 - Nota. Prop, plan y eq.'!$E$52","v":"co-svsp-core:PropiedadesPlantaYEquipoEje_G1"},{"$f":"'822100 - Nota. Prop, plan y eq.'!$Y$51","v":"co-svsp-core:EquinosMiembro"}]
["/*",null,{"$f":"'822100 - Nota. Prop, plan y eq.'!$E$79","v":"Disminuciones por clasificar como mantenidos para la venta, propiedades, planta y equipo"},{"$f":"'822100 - Nota. Prop, plan y eq.'!$D$79","v":"ifrs-full:DecreaseThroughClassifiedAsHeldForSalePropertyPlantAndEquipment"}]
["",null,{"$f":"'822100 - Nota. Prop, plan y eq.'!$E$80","v":"Total incremento (disminución) en propiedades, planta y equipo"},{"$f":"'822100 - Nota. Prop, plan y eq.'!$D$80","v":"ifrs-full:ChangesInPropertyPlantAndEquipment"},0,"peso",{"$f":"'822100 - Nota. Prop, plan y eq.'!$Y$80","v":0},0,"http://www.xbrl.org/scheme/companyName",{"$f":"Periodos!$D$3","v":"2022-01-01"},{"$f":"Periodos!$D$4","v":"2022-12-31"},{"$f":"'822100 - Nota. Prop, plan y eq.'!$E$52","v":"co-svsp-core:PropiedadesPlantaYEquipoEje_G1"},{"$f":"'822100 - Nota. Prop, plan y eq.'!$Y$51","v":"co-svsp-core:EquinosMiembro"}]
["",null,{"$f":"'822100 - Nota. Prop, plan y eq.'!$E$81","v":"Propiedades, planta y equipo al final del periodo"},{"$f":"'822100 - Nota. Prop, plan y eq.'!$D$81","v":"ifrs-full:PropertyPlantAndEquipment"},0,"peso",{"$f":"'822100 - Nota. Prop, plan y eq.'!$Y$81","v":0},0,"http://www.xbrl.org/scheme/companyName",null,{"$f":"Periodos!$D$4","v":"2022-12-31"},{"$f":"'822100 - Nota. Prop, plan y eq.'!$E$52","v":"co-svsp-core:PropiedadesPlantaYEquipoEje_G1"},{"$f":"'822100 - Nota. Prop, plan y eq.'!$Y$51","v":"co-svsp-core:EquinosMiembro"}]
["/*",null,"--21--"]
["/*",null,{"$f":"'822100 - Nota. Prop, plan y eq.'!$E$53","v":"Información a revelar detallada sobre propiedades, planta y equipo [partidas de los estados financieros]"},{"$f":"'822100 - Nota. Prop, plan y eq.'!$D$53","v":"ifrs-full:DisclosureOfPropertyPlantAndEquipmentLineItems"}]
["/*",null,{"$f":"'822100 - Nota. Prop, plan y eq.'!$E$54","v":"Bases de medición, propiedades, planta y equipo"},{"$f":"'822100 - Nota. Prop, plan y eq.'!$D$54","v":"ifrs-full:MeasurementBasesPropertyPlantAndEquipment"}]
["/*",null,{"$f":"'822100 - Nota. Prop, plan y eq.'!$E$55","v":"Método de depreciación, propiedades, planta y equipo"},{"$f":"'822100 - Nota. Prop, plan y eq.'!$D$55","v":"ifrs-full:DepreciationMethodPropertyPlantAndEquipment"}]
["/*",null,{"$f":"'822100 - Nota. Prop, plan y eq.'!$E$56","v":"Fechas de vigencia de revaluación, propiedades, planta y equipo"},{"$f":"'822100 - Nota. Prop, plan y eq.'!$D$56","v":"ifrs-full:EffectiveDatesOfRevaluationPropertyPlantAndEquipment"}]
["/*",null,{"$f":"'822100 - Nota. Prop, plan y eq.'!$E$57","v":"Explicación de la implicación del tasador independiente en la revaluación, propiedades, planta y equipo"},{"$f":"'822100 - Nota. Prop, plan y eq.'!$D$57","v":"ifrs-full:ExplanationOfIndependentValuerUsedForRevaluationPropertyPlantAndEquipment"}]
["/*",null,{"$f":"'822100 - Nota. Prop, plan y eq.'!$E$58","v":"Explicación del método de revaluación y supuestos significativos, propiedad, planta y equipo"},{"$f":"'822100 - Nota. Prop, plan y eq.'!$D$58","v":"co-svsp-core:ExplanationOfRevaluationMethodsAndSignificantAssumptionsPropertyPlantAndEquipment"}]
["/*",null,{"$f":"'822100 - Nota. Prop, plan y eq.'!$E$59","v":"Conciliación de cambios en propiedades, planta y equipo [resumen]"},{"$f":"'822100 - Nota. Prop, plan y eq.'!$D$59","v":"ifrs-full:ReconciliationOfChangesInPropertyPlantAndEquipmentAbstract"}]
["/*",null,{"$f":"'822100 - Nota. Prop, plan y eq.'!$E$60","v":"Propiedades, planta y equipo al comienzo del periodo"},{"$f":"'822100 - Nota. Prop, plan y eq.'!$D$60","v":"ifrs-full:PropertyPlantAndEquipment"}]
["/*",null,{"$f":"'822100 - Nota. Prop, plan y eq.'!$E$61","v":"Cambios en propiedades, planta y equipo [resumen]"},{"$f":"'822100 - Nota. Prop, plan y eq.'!$D$61","v":"ifrs-full:ChangesInPropertyPlantAndEquipmentAbstract"}]
["/*",null,{"$f":"'822100 - Nota. Prop, plan y eq.'!$E$62","v":"Incrementos distintos de los procedentes de combinaciones de negocios, propiedades, planta y equipo"},{"$f":"'822100 - Nota. Prop, plan y eq.'!$D$62","v":"ifrs-full:AdditionsOtherThanThroughBusinessCombinationsPropertyPlantAndEquipment"}]
["/*",null,{"$f":"'822100 - Nota. Prop, plan y eq.'!$E$63","v":"Adquisiciones realizadas mediante combinaciones de negocios, propiedades, planta y equipo"},{"$f":"'822100 - Nota. Prop, plan y eq.'!$D$63","v":"ifrs-full:AcquisitionsThroughBusinessCombinationsPropertyPlantAndEquipment"}]
["/*",null,{"$f":"'822100 - Nota. Prop, plan y eq.'!$E$64","v":"Depreciación, propiedades, planta y equipo"},{"$f":"'822100 - Nota. Prop, plan y eq.'!$D$64","v":"ifrs-full:DepreciationPropertyPlantAndEquipment"}]
["/*",null,{"$f":"'822100 - Nota. Prop, plan y eq.'!$E$65","v":"Pérdidas por deterioro de valor reconocidas en el resultado del periodo, propiedades, planta y equipo"},{"$f":"'822100 - Nota. Prop, plan y eq.'!$D$65","v":"ifrs-full:ImpairmentLossRecognisedInProfitOrLossPropertyPlantAndEquipment"}]
["/*",null,{"$f":"'822100 - Nota. Prop, plan y eq.'!$E$66","v":"Reversión de pérdidas por deterioro de valor reconocidas en el resultado del periodo, propiedades, planta y equipo"},{"$f":"'822100 - Nota. Prop, plan y eq.'!$D$66","v":"ifrs-full:ReversalOfImpairmentLossRecognisedInProfitOrLossPropertyPlantAndEquipment"}]
["/*",null,{"$f":"'822100 - Nota. Prop, plan y eq.'!$E$67","v":"Incrementos (disminuciones) de revaluaciones, propiedades, planta y equipo"},{"$f":"'822100 - Nota. Prop, plan y eq.'!$D$67","v":"ifrs-full:RevaluationIncreaseDecreasePropertyPlantAndEquipment"}]
["/*",null,{"$f":"'822100 - Nota. Prop, plan y eq.'!$E$68","v":"Pérdidas por deterioro de valor reconocidas en otro resultado integral, propiedades, planta y equipo"},{"$f":"'822100 - Nota. Prop, plan y eq.'!$D$68","v":"ifrs-full:ImpairmentLossRecognisedInOtherComprehensiveIncomePropertyPlantAndEquipment"}]
["/*",null,{"$f":"'822100 - Nota. Prop, plan y eq.'!$E$69","v":"Reversión de pérdidas por deterioro de valor reconocidas en otro resultado integral, propiedades, planta y equipo"},{"$f":"'822100 - Nota. Prop, plan y eq.'!$D$69","v":"ifrs-full:ReversalOfImpairmentLossRecognisedInOtherComprehensiveIncomePropertyPlantAndEquipment"}]
["/*",null,{"$f":"'822100 - Nota. Prop, plan y eq.'!$E$70","v":"Incrementos (disminuciones) por transferencias y otros cambios, propiedades, planta y equipo [resumen]"},{"$f":"'822100 - Nota. Prop, plan y eq.'!$D$70","v":"ifrs-full:IncreaseDecreaseThroughTransfersAndOtherChangesPropertyPlantAndEquipmentAbstract"}]
["/*",null,{"$f":"'822100 - Nota. Prop, plan y eq.'!$E$71","v":"Incrementos (disminuciones) por transferencias desde (hacia) propiedades de inversión, propiedades, planta y equipo"},{"$f":"'822100 - Nota. Prop, plan y eq.'!$D$71","v":"ifrs-full:IncreaseDecreaseThroughTransfersFromToInvestmentPropertyPropertyPlantAndEquipment"}]
["/*",null,{"$f":"'822100 - Nota. Prop, plan y eq.'!$E$72","v":"Incrementos (disminuciones) por transferencias desde construcciones en proceso , propiedades, planta y equipo"},{"$f":"'822100 - Nota. Prop, plan y eq.'!$D$72","v":"ifrs-full:IncreaseDecreaseThroughTransfersFromConstructionInProgressPropertyPlantAndEquipment"}]
["/*",null,{"$f":"'822100 - Nota. Prop, plan y eq.'!$E$73","v":"Incrementos (disminuciones) por otros cambios, propiedades, planta y equipo"},{"$f":"'822100 - Nota. Prop, plan y eq.'!$D$73","v":"ifrs-full:IncreaseDecreaseThroughOtherChangesPropertyPlantAndEquipment"}]
["",null,{"$f":"'822100 - Nota. Prop, plan y eq.'!$E$74","v":"Total incrementos (disminuciones) por transferencias y otros cambios, propiedades, planta y equipo"},{"$f":"'822100 - Nota. Prop, plan y eq.'!$D$74","v":"ifrs-full:IncreaseDecreaseThroughTransfersAndOtherChangesPropertyPlantAndEquipment"},0,"peso",{"$f":"'822100 - Nota. Prop, plan y eq.'!$Z$74","v":0},0,"http://www.xbrl.org/scheme/companyName",{"$f":"Periodos!$D$3","v":"2022-01-01"},{"$f":"Periodos!$D$4","v":"2022-12-31"},{"$f":"'822100 - Nota. Prop, plan y eq.'!$E$52","v":"co-svsp-core:PropiedadesPlantaYEquipoEje_G1"},{"$f":"'822100 - Nota. Prop, plan y eq.'!$Z$51","v":"co-svsp-core:AnimalesMiembro"}]
["/*",null,{"$f":"'822100 - Nota. Prop, plan y eq.'!$E$75","v":"Disposiciones y retiros de servicio, propiedades, planta y equipo [resumen]"},{"$f":"'822100 - Nota. Prop, plan y eq.'!$D$75","v":"ifrs-full:DisposalsAndRetirementsPropertyPlantAndEquipmentAbstract"}]
["/*",null,{"$f":"'822100 - Nota. Prop, plan y eq.'!$E$76","v":"Disposiciones, propiedades, planta y equipo"},{"$f":"'822100 - Nota. Prop, plan y eq.'!$D$76","v":"ifrs-full:DisposalsPropertyPlantAndEquipment"}]
["/*",null,{"$f":"'822100 - Nota. Prop, plan y eq.'!$E$77","v":"Retiros, propiedades, planta y equipo"},{"$f":"'822100 - Nota. Prop, plan y eq.'!$D$77","v":"ifrs-full:RetirementsPropertyPlantAndEquipment"}]
["",null,{"$f":"'822100 - Nota. Prop, plan y eq.'!$E$78","v":"Total de disposiciones y retiros de servicio, propiedades, planta y equipo"},{"$f":"'822100 - Nota. Prop, plan y eq.'!$D$78","v":"ifrs-full:DisposalsAndRetirementsPropertyPlantAndEquipment"},0,"peso",{"$f":"'822100 - Nota. Prop, plan y eq.'!$Z$78","v":0},0,"http://www.xbrl.org/scheme/companyName",{"$f":"Periodos!$D$3","v":"2022-01-01"},{"$f":"Periodos!$D$4","v":"2022-12-31"},{"$f":"'822100 - Nota. Prop, plan y eq.'!$E$52","v":"co-svsp-core:PropiedadesPlantaYEquipoEje_G1"},{"$f":"'822100 - Nota. Prop, plan y eq.'!$Z$51","v":"co-svsp-core:AnimalesMiembro"}]
["/*",null,{"$f":"'822100 - Nota. Prop, plan y eq.'!$E$79","v":"Disminuciones por clasificar como mantenidos para la venta, propiedades, planta y equipo"},{"$f":"'822100 - Nota. Prop, plan y eq.'!$D$79","v":"ifrs-full:DecreaseThroughClassifiedAsHeldForSalePropertyPlantAndEquipment"}]
["",null,{"$f":"'822100 - Nota. Prop, plan y eq.'!$E$80","v":"Total incremento (disminución) en propiedades, planta y equipo"},{"$f":"'822100 - Nota. Prop, plan y eq.'!$D$80","v":"ifrs-full:ChangesInPropertyPlantAndEquipment"},0,"peso",{"$f":"'822100 - Nota. Prop, plan y eq.'!$Z$80","v":0},0,"http://www.xbrl.org/scheme/companyName",{"$f":"Periodos!$D$3","v":"2022-01-01"},{"$f":"Periodos!$D$4","v":"2022-12-31"},{"$f":"'822100 - Nota. Prop, plan y eq.'!$E$52","v":"co-svsp-core:PropiedadesPlantaYEquipoEje_G1"},{"$f":"'822100 - Nota. Prop, plan y eq.'!$Z$51","v":"co-svsp-core:AnimalesMiembro"}]
["",null,{"$f":"'822100 - Nota. Prop, plan y eq.'!$E$81","v":"Propiedades, planta y equipo al final del periodo"},{"$f":"'822100 - Nota. Prop, plan y eq.'!$D$81","v":"ifrs-full:PropertyPlantAndEquipment"},0,"peso",{"$f":"'822100 - Nota. Prop, plan y eq.'!$Z$81","v":0},0,"http://www.xbrl.org/scheme/companyName",null,{"$f":"Periodos!$D$4","v":"2022-12-31"},{"$f":"'822100 - Nota. Prop, plan y eq.'!$E$52","v":"co-svsp-core:PropiedadesPlantaYEquipoEje_G1"},{"$f":"'822100 - Nota. Prop, plan y eq.'!$Z$51","v":"co-svsp-core:AnimalesMiembro"}]
["/*",null,"--22--"]
["/*",null,{"$f":"'822100 - Nota. Prop, plan y eq.'!$E$53","v":"Información a revelar detallada sobre propiedades, planta y equipo [partidas de los estados financieros]"},{"$f":"'822100 - Nota. Prop, plan y eq.'!$D$53","v":"ifrs-full:DisclosureOfPropertyPlantAndEquipmentLineItems"}]
["/*",null,{"$f":"'822100 - Nota. Prop, plan y eq.'!$E$54","v":"Bases de medición, propiedades, planta y equipo"},{"$f":"'822100 - Nota. Prop, plan y eq.'!$D$54","v":"ifrs-full:MeasurementBasesPropertyPlantAndEquipment"}]
["/*",null,{"$f":"'822100 - Nota. Prop, plan y eq.'!$E$55","v":"Método de depreciación, propiedades, planta y equipo"},{"$f":"'822100 - Nota. Prop, plan y eq.'!$D$55","v":"ifrs-full:DepreciationMethodPropertyPlantAndEquipment"}]
["/*",null,{"$f":"'822100 - Nota. Prop, plan y eq.'!$E$56","v":"Fechas de vigencia de revaluación, propiedades, planta y equipo"},{"$f":"'822100 - Nota. Prop, plan y eq.'!$D$56","v":"ifrs-full:EffectiveDatesOfRevaluationPropertyPlantAndEquipment"}]
["/*",null,{"$f":"'822100 - Nota. Prop, plan y eq.'!$E$57","v":"Explicación de la implicación del tasador independiente en la revaluación, propiedades, planta y equipo"},{"$f":"'822100 - Nota. Prop, plan y eq.'!$D$57","v":"ifrs-full:ExplanationOfIndependentValuerUsedForRevaluationPropertyPlantAndEquipment"}]
["/*",null,{"$f":"'822100 - Nota. Prop, plan y eq.'!$E$58","v":"Explicación del método de revaluación y supuestos significativos, propiedad, planta y equipo"},{"$f":"'822100 - Nota. Prop, plan y eq.'!$D$58","v":"co-svsp-core:ExplanationOfRevaluationMethodsAndSignificantAssumptionsPropertyPlantAndEquipment"}]
["/*",null,{"$f":"'822100 - Nota. Prop, plan y eq.'!$E$59","v":"Conciliación de cambios en propiedades, planta y equipo [resumen]"},{"$f":"'822100 - Nota. Prop, plan y eq.'!$D$59","v":"ifrs-full:ReconciliationOfChangesInPropertyPlantAndEquipmentAbstract"}]
["/*",null,{"$f":"'822100 - Nota. Prop, plan y eq.'!$E$60","v":"Propiedades, planta y equipo al comienzo del periodo"},{"$f":"'822100 - Nota. Prop, plan y eq.'!$D$60","v":"ifrs-full:PropertyPlantAndEquipment"}]
["/*",null,{"$f":"'822100 - Nota. Prop, plan y eq.'!$E$61","v":"Cambios en propiedades, planta y equipo [resumen]"},{"$f":"'822100 - Nota. Prop, plan y eq.'!$D$61","v":"ifrs-full:ChangesInPropertyPlantAndEquipmentAbstract"}]
["/*",null,{"$f":"'822100 - Nota. Prop, plan y eq.'!$E$62","v":"Incrementos distintos de los procedentes de combinaciones de negocios, propiedades, planta y equipo"},{"$f":"'822100 - Nota. Prop, plan y eq.'!$D$62","v":"ifrs-full:AdditionsOtherThanThroughBusinessCombinationsPropertyPlantAndEquipment"}]
["/*",null,{"$f":"'822100 - Nota. Prop, plan y eq.'!$E$63","v":"Adquisiciones realizadas mediante combinaciones de negocios, propiedades, planta y equipo"},{"$f":"'822100 - Nota. Prop, plan y eq.'!$D$63","v":"ifrs-full:AcquisitionsThroughBusinessCombinationsPropertyPlantAndEquipment"}]
["/*",null,{"$f":"'822100 - Nota. Prop, plan y eq.'!$E$64","v":"Depreciación, propiedades, planta y equipo"},{"$f":"'822100 - Nota. Prop, plan y eq.'!$D$64","v":"ifrs-full:DepreciationPropertyPlantAndEquipment"}]
["/*",null,{"$f":"'822100 - Nota. Prop, plan y eq.'!$E$65","v":"Pérdidas por deterioro de valor reconocidas en el resultado del periodo, propiedades, planta y equipo"},{"$f":"'822100 - Nota. Prop, plan y eq.'!$D$65","v":"ifrs-full:ImpairmentLossRecognisedInProfitOrLossPropertyPlantAndEquipment"}]
["/*",null,{"$f":"'822100 - Nota. Prop, plan y eq.'!$E$66","v":"Reversión de pérdidas por deterioro de valor reconocidas en el resultado del periodo, propiedades, planta y equipo"},{"$f":"'822100 - Nota. Prop, plan y eq.'!$D$66","v":"ifrs-full:ReversalOfImpairmentLossRecognisedInProfitOrLossPropertyPlantAndEquipment"}]
["/*",null,{"$f":"'822100 - Nota. Prop, plan y eq.'!$E$67","v":"Incrementos (disminuciones) de revaluaciones, propiedades, planta y equipo"},{"$f":"'822100 - Nota. Prop, plan y eq.'!$D$67","v":"ifrs-full:RevaluationIncreaseDecreasePropertyPlantAndEquipment"}]
["/*",null,{"$f":"'822100 - Nota. Prop, plan y eq.'!$E$68","v":"Pérdidas por deterioro de valor reconocidas en otro resultado integral, propiedades, planta y equipo"},{"$f":"'822100 - Nota. Prop, plan y eq.'!$D$68","v":"ifrs-full:ImpairmentLossRecognisedInOtherComprehensiveIncomePropertyPlantAndEquipment"}]
["/*",null,{"$f":"'822100 - Nota. Prop, plan y eq.'!$E$69","v":"Reversión de pérdidas por deterioro de valor reconocidas en otro resultado integral, propiedades, planta y equipo"},{"$f":"'822100 - Nota. Prop, plan y eq.'!$D$69","v":"ifrs-full:ReversalOfImpairmentLossRecognisedInOtherComprehensiveIncomePropertyPlantAndEquipment"}]
["/*",null,{"$f":"'822100 - Nota. Prop, plan y eq.'!$E$70","v":"Incrementos (disminuciones) por transferencias y otros cambios, propiedades, planta y equipo [resumen]"},{"$f":"'822100 - Nota. Prop, plan y eq.'!$D$70","v":"ifrs-full:IncreaseDecreaseThroughTransfersAndOtherChangesPropertyPlantAndEquipmentAbstract"}]
["/*",null,{"$f":"'822100 - Nota. Prop, plan y eq.'!$E$71","v":"Incrementos (disminuciones) por transferencias desde (hacia) propiedades de inversión, propiedades, planta y equipo"},{"$f":"'822100 - Nota. Prop, plan y eq.'!$D$71","v":"ifrs-full:IncreaseDecreaseThroughTransfersFromToInvestmentPropertyPropertyPlantAndEquipment"}]
["/*",null,{"$f":"'822100 - Nota. Prop, plan y eq.'!$E$72","v":"Incrementos (disminuciones) por transferencias desde construcciones en proceso , propiedades, planta y equipo"},{"$f":"'822100 - Nota. Prop, plan y eq.'!$D$72","v":"ifrs-full:IncreaseDecreaseThroughTransfersFromConstructionInProgressPropertyPlantAndEquipment"}]
["/*",null,{"$f":"'822100 - Nota. Prop, plan y eq.'!$E$73","v":"Incrementos (disminuciones) por otros cambios, propiedades, planta y equipo"},{"$f":"'822100 - Nota. Prop, plan y eq.'!$D$73","v":"ifrs-full:IncreaseDecreaseThroughOtherChangesPropertyPlantAndEquipment"}]
["",null,{"$f":"'822100 - Nota. Prop, plan y eq.'!$E$74","v":"Total incrementos (disminuciones) por transferencias y otros cambios, propiedades, planta y equipo"},{"$f":"'822100 - Nota. Prop, plan y eq.'!$D$74","v":"ifrs-full:IncreaseDecreaseThroughTransfersAndOtherChangesPropertyPlantAndEquipment"},0,"peso",{"$f":"'822100 - Nota. Prop, plan y eq.'!$AA$74","v":0},0,"http://www.xbrl.org/scheme/companyName",{"$f":"Periodos!$D$3","v":"2022-01-01"},{"$f":"Periodos!$D$4","v":"2022-12-31"},{"$f":"'822100 - Nota. Prop, plan y eq.'!$E$52","v":"co-svsp-core:PropiedadesPlantaYEquipoEje_G1"},{"$f":"'822100 - Nota. Prop, plan y eq.'!$AA$51","v":"co-svsp-core:Otras_PPE"}]
["/*",null,{"$f":"'822100 - Nota. Prop, plan y eq.'!$E$75","v":"Disposiciones y retiros de servicio, propiedades, planta y equipo [resumen]"},{"$f":"'822100 - Nota. Prop, plan y eq.'!$D$75","v":"ifrs-full:DisposalsAndRetirementsPropertyPlantAndEquipmentAbstract"}]
["/*",null,{"$f":"'822100 - Nota. Prop, plan y eq.'!$E$76","v":"Disposiciones, propiedades, planta y equipo"},{"$f":"'822100 - Nota. Prop, plan y eq.'!$D$76","v":"ifrs-full:DisposalsPropertyPlantAndEquipment"}]
["/*",null,{"$f":"'822100 - Nota. Prop, plan y eq.'!$E$77","v":"Retiros, propiedades, planta y equipo"},{"$f":"'822100 - Nota. Prop, plan y eq.'!$D$77","v":"ifrs-full:RetirementsPropertyPlantAndEquipment"}]
["",null,{"$f":"'822100 - Nota. Prop, plan y eq.'!$E$78","v":"Total de disposiciones y retiros de servicio, propiedades, planta y equipo"},{"$f":"'822100 - Nota. Prop, plan y eq.'!$D$78","v":"ifrs-full:DisposalsAndRetirementsPropertyPlantAndEquipment"},0,"peso",{"$f":"'822100 - Nota. Prop, plan y eq.'!$AA$78","v":0},0,"http://www.xbrl.org/scheme/companyName",{"$f":"Periodos!$D$3","v":"2022-01-01"},{"$f":"Periodos!$D$4","v":"2022-12-31"},{"$f":"'822100 - Nota. Prop, plan y eq.'!$E$52","v":"co-svsp-core:PropiedadesPlantaYEquipoEje_G1"},{"$f":"'822100 - Nota. Prop, plan y eq.'!$AA$51","v":"co-svsp-core:Otras_PPE"}]
["/*",null,{"$f":"'822100 - Nota. Prop, plan y eq.'!$E$79","v":"Disminuciones por clasificar como mantenidos para la venta, propiedades, planta y equipo"},{"$f":"'822100 - Nota. Prop, plan y eq.'!$D$79","v":"ifrs-full:DecreaseThroughClassifiedAsHeldForSalePropertyPlantAndEquipment"}]
["",null,{"$f":"'822100 - Nota. Prop, plan y eq.'!$E$80","v":"Total incremento (disminución) en propiedades, planta y equipo"},{"$f":"'822100 - Nota. Prop, plan y eq.'!$D$80","v":"ifrs-full:ChangesInPropertyPlantAndEquipment"},0,"peso",{"$f":"'822100 - Nota. Prop, plan y eq.'!$AA$80","v":0},0,"http://www.xbrl.org/scheme/companyName",{"$f":"Periodos!$D$3","v":"2022-01-01"},{"$f":"Periodos!$D$4","v":"2022-12-31"},{"$f":"'822100 - Nota. Prop, plan y eq.'!$E$52","v":"co-svsp-core:PropiedadesPlantaYEquipoEje_G1"},{"$f":"'822100 - Nota. Prop, plan y eq.'!$AA$51","v":"co-svsp-core:Otras_PPE"}]
["",null,{"$f":"'822100 - Nota. Prop, plan y eq.'!$E$81","v":"Propiedades, planta y equipo al final del periodo"},{"$f":"'822100 - Nota. Prop, plan y eq.'!$D$81","v":"ifrs-full:PropertyPlantAndEquipment"},0,"peso",{"$f":"'822100 - Nota. Prop, plan y eq.'!$AA$81","v":0},0,"http://www.xbrl.org/scheme/companyName",null,{"$f":"Periodos!$D$4","v":"2022-12-31"},{"$f":"'822100 - Nota. Prop, plan y eq.'!$E$52","v":"co-svsp-core:PropiedadesPlantaYEquipoEje_G1"},{"$f":"'822100 - Nota. Prop, plan y eq.'!$AA$51","v":"co-svsp-core:Otras_PPE"}]
[{"$f":"IF(G6368=\"\",\"/*\",\"\")","v":"/*"},null,"--23--"]
["/*",null,{"$f":"'822100 - Nota. Prop, plan y eq.'!$E$53","v":"Información a revelar detallada sobre propiedades, planta y equipo [partidas de los estados financieros]"},{"$f":"'822100 - Nota. Prop, plan y eq.'!$D$53","v":"ifrs-full:DisclosureOfPropertyPlantAndEquipmentLineItems"}]
["/*",null,{"$f":"'822100 - Nota. Prop, plan y eq.'!$E$54","v":"Bases de medición, propiedades, planta y equipo"},{"$f":"'822100 - Nota. Prop, plan y eq.'!$D$54","v":"ifrs-full:MeasurementBasesPropertyPlantAndEquipment"}]
["/*",null,{"$f":"'822100 - Nota. Prop, plan y eq.'!$E$55","v":"Método de depreciación, propiedades, planta y equipo"},{"$f":"'822100 - Nota. Prop, plan y eq.'!$D$55","v":"ifrs-full:DepreciationMethodPropertyPlantAndEquipment"}]
["/*",null,{"$f":"'822100 - Nota. Prop, plan y eq.'!$E$56","v":"Fechas de vigencia de revaluación, propiedades, planta y equipo"},{"$f":"'822100 - Nota. Prop, plan y eq.'!$D$56","v":"ifrs-full:EffectiveDatesOfRevaluationPropertyPlantAndEquipment"}]
["/*",null,{"$f":"'822100 - Nota. Prop, plan y eq.'!$E$57","v":"Explicación de la implicación del tasador independiente en la revaluación, propiedades, planta y equipo"},{"$f":"'822100 - Nota. Prop, plan y eq.'!$D$57","v":"ifrs-full:ExplanationOfIndependentValuerUsedForRevaluationPropertyPlantAndEquipment"}]
["/*",null,{"$f":"'822100 - Nota. Prop, plan y eq.'!$E$58","v":"Explicación del método de revaluación y supuestos significativos, propiedad, planta y equipo"},{"$f":"'822100 - Nota. Prop, plan y eq.'!$D$58","v":"co-svsp-core:ExplanationOfRevaluationMethodsAndSignificantAssumptionsPropertyPlantAndEquipment"}]
["/*",null,{"$f":"'822100 - Nota. Prop, plan y eq.'!$E$59","v":"Conciliación de cambios en propiedades, planta y equipo [resumen]"},{"$f":"'822100 - Nota. Prop, plan y eq.'!$D$59","v":"ifrs-full:ReconciliationOfChangesInPropertyPlantAndEquipmentAbstract"}]
["/*",null,{"$f":"'822100 - Nota. Prop, plan y eq.'!$E$60","v":"Propiedades, planta y equipo al comienzo del periodo"},{"$f":"'822100 - Nota. Prop, plan y eq.'!$D$60","v":"ifrs-full:PropertyPlantAndEquipment"}]
["/*",null,{"$f":"'822100 - Nota. Prop, plan y eq.'!$E$61","v":"Cambios en propiedades, planta y equipo [resumen]"},{"$f":"'822100 - Nota. Prop, plan y eq.'!$D$61","v":"ifrs-full:ChangesInPropertyPlantAndEquipmentAbstract"}]
["/*",null,{"$f":"'822100 - Nota. Prop, plan y eq.'!$E$62","v":"Incrementos distintos de los procedentes de combinaciones de negocios, propiedades, planta y equipo"},{"$f":"'822100 - Nota. Prop, plan y eq.'!$D$62","v":"ifrs-full:AdditionsOtherThanThroughBusinessCombinationsPropertyPlantAndEquipment"}]
["/*",null,{"$f":"'822100 - Nota. Prop, plan y eq.'!$E$63","v":"Adquisiciones realizadas mediante combinaciones de negocios, propiedades, planta y equipo"},{"$f":"'822100 - Nota. Prop, plan y eq.'!$D$63","v":"ifrs-full:AcquisitionsThroughBusinessCombinationsPropertyPlantAndEquipment"}]
["/*",null,{"$f":"'822100 - Nota. Prop, plan y eq.'!$E$64","v":"Depreciación, propiedades, planta y equipo"},{"$f":"'822100 - Nota. Prop, plan y eq.'!$D$64","v":"ifrs-full:DepreciationPropertyPlantAndEquipment"}]
["/*",null,{"$f":"'822100 - Nota. Prop, plan y eq.'!$E$65","v":"Pérdidas por deterioro de valor reconocidas en el resultado del periodo, propiedades, planta y equipo"},{"$f":"'822100 - Nota. Prop, plan y eq.'!$D$65","v":"ifrs-full:ImpairmentLossRecognisedInProfitOrLossPropertyPlantAndEquipment"}]
["/*",null,{"$f":"'822100 - Nota. Prop, plan y eq.'!$E$66","v":"Reversión de pérdidas por deterioro de valor reconocidas en el resultado del periodo, propiedades, planta y equipo"},{"$f":"'822100 - Nota. Prop, plan y eq.'!$D$66","v":"ifrs-full:ReversalOfImpairmentLossRecognisedInProfitOrLossPropertyPlantAndEquipment"}]
["/*",null,{"$f":"'822100 - Nota. Prop, plan y eq.'!$E$67","v":"Incrementos (disminuciones) de revaluaciones, propiedades, planta y equipo"},{"$f":"'822100 - Nota. Prop, plan y eq.'!$D$67","v":"ifrs-full:RevaluationIncreaseDecreasePropertyPlantAndEquipment"}]
["/*",null,{"$f":"'822100 - Nota. Prop, plan y eq.'!$E$68","v":"Pérdidas por deterioro de valor reconocidas en otro resultado integral, propiedades, planta y equipo"},{"$f":"'822100 - Nota. Prop, plan y eq.'!$D$68","v":"ifrs-full:ImpairmentLossRecognisedInOtherComprehensiveIncomePropertyPlantAndEquipment"}]
["/*",null,{"$f":"'822100 - Nota. Prop, plan y eq.'!$E$69","v":"Reversión de pérdidas por deterioro de valor reconocidas en otro resultado integral, propiedades, planta y equipo"},{"$f":"'822100 - Nota. Prop, plan y eq.'!$D$69","v":"ifrs-full:ReversalOfImpairmentLossRecognisedInOtherComprehensiveIncomePropertyPlantAndEquipment"}]
["/*",null,{"$f":"'822100 - Nota. Prop, plan y eq.'!$E$70","v":"Incrementos (disminuciones) por transferencias y otros cambios, propiedades, planta y equipo [resumen]"},{"$f":"'822100 - Nota. Prop, plan y eq.'!$D$70","v":"ifrs-full:IncreaseDecreaseThroughTransfersAndOtherChangesPropertyPlantAndEquipmentAbstract"}]
["/*",null,{"$f":"'822100 - Nota. Prop, plan y eq.'!$E$71","v":"Incrementos (disminuciones) por transferencias desde (hacia) propiedades de inversión, propiedades, planta y equipo"},{"$f":"'822100 - Nota. Prop, plan y eq.'!$D$71","v":"ifrs-full:IncreaseDecreaseThroughTransfersFromToInvestmentPropertyPropertyPlantAndEquipment"}]
["/*",null,{"$f":"'822100 - Nota. Prop, plan y eq.'!$E$72","v":"Incrementos (disminuciones) por transferencias desde construcciones en proceso , propiedades, planta y equipo"},{"$f":"'822100 - Nota. Prop, plan y eq.'!$D$72","v":"ifrs-full:IncreaseDecreaseThroughTransfersFromConstructionInProgressPropertyPlantAndEquipment"}]
["/*",null,{"$f":"'822100 - Nota. Prop, plan y eq.'!$E$73","v":"Incrementos (disminuciones) por otros cambios, propiedades, planta y equipo"},{"$f":"'822100 - Nota. Prop, plan y eq.'!$D$73","v":"ifrs-full:IncreaseDecreaseThroughOtherChangesPropertyPlantAndEquipment"}]
["",null,{"$f":"'822100 - Nota. Prop, plan y eq.'!$E$74","v":"Total incrementos (disminuciones) por transferencias y otros cambios, propiedades, planta y equipo"},{"$f":"'822100 - Nota. Prop, plan y eq.'!$D$74","v":"ifrs-full:IncreaseDecreaseThroughTransfersAndOtherChangesPropertyPlantAndEquipment"},0,"peso",{"$f":"'822100 - Nota. Prop, plan y eq.'!$AB$74","v":0},0,"http://www.xbrl.org/scheme/companyName",{"$f":"Periodos!$D$3","v":"2022-01-01"},{"$f":"Periodos!$D$4","v":"2022-12-31"}]
["/*",null,{"$f":"'822100 - Nota. Prop, plan y eq.'!$E$75","v":"Disposiciones y retiros de servicio, propiedades, planta y equipo [resumen]"},{"$f":"'822100 - Nota. Prop, plan y eq.'!$D$75","v":"ifrs-full:DisposalsAndRetirementsPropertyPlantAndEquipmentAbstract"}]
["/*",null,{"$f":"'822100 - Nota. Prop, plan y eq.'!$E$76","v":"Disposiciones, propiedades, planta y equipo"},{"$f":"'822100 - Nota. Prop, plan y eq.'!$D$76","v":"ifrs-full:DisposalsPropertyPlantAndEquipment"}]
["/*",null,{"$f":"'822100 - Nota. Prop, plan y eq.'!$E$77","v":"Retiros, propiedades, planta y equipo"},{"$f":"'822100 - Nota. Prop, plan y eq.'!$D$77","v":"ifrs-full:RetirementsPropertyPlantAndEquipment"}]
["",null,{"$f":"'822100 - Nota. Prop, plan y eq.'!$E$78","v":"Total de disposiciones y retiros de servicio, propiedades, planta y equipo"},{"$f":"'822100 - Nota. Prop, plan y eq.'!$D$78","v":"ifrs-full:DisposalsAndRetirementsPropertyPlantAndEquipment"},0,"peso",{"$f":"'822100 - Nota. Prop, plan y eq.'!$AB$78","v":0},0,"http://www.xbrl.org/scheme/companyName",{"$f":"Periodos!$D$3","v":"2022-01-01"},{"$f":"Periodos!$D$4","v":"2022-12-31"}]
["/*",null,{"$f":"'822100 - Nota. Prop, plan y eq.'!$E$79","v":"Disminuciones por clasificar como mantenidos para la venta, propiedades, planta y equipo"},{"$f":"'822100 - Nota. Prop, plan y eq.'!$D$79","v":"ifrs-full:DecreaseThroughClassifiedAsHeldForSalePropertyPlantAndEquipment"}]
["",null,{"$f":"'822100 - Nota. Prop, plan y eq.'!$E$80","v":"Total incremento (disminución) en propiedades, planta y equipo"},{"$f":"'822100 - Nota. Prop, plan y eq.'!$D$80","v":"ifrs-full:ChangesInPropertyPlantAndEquipment"},0,"peso",{"$f":"'822100 - Nota. Prop, plan y eq.'!$AB$80","v":0},0,"http://www.xbrl.org/scheme/companyName",{"$f":"Periodos!$D$3","v":"2022-01-01"},{"$f":"Periodos!$D$4","v":"2022-12-31"}]
["",null,{"$f":"'822100 - Nota. Prop, plan y eq.'!$E$81","v":"Propiedades, planta y equipo al final del periodo"},{"$f":"'822100 - Nota. Prop, plan y eq.'!$D$81","v":"ifrs-full:PropertyPlantAndEquipment"},0,"peso",{"$f":"'822100 - Nota. Prop, plan y eq.'!$AB$81","v":0},0,"http://www.xbrl.org/scheme/companyName",null,{"$f":"Periodos!$D$4","v":"2022-12-31"}]
["/*"]
["/*",null,"823180 - Nota. Activos Intang."]
["/*",null,"--01--"]
["/*",null,{"$f":"'823180 - Nota. Activos Intang.'!$E$16","v":"Información a revelar detallada sobre activos intangibles [partidas de los estados financieros]"},{"$f":"'823180 - Nota. Activos Intang.'!$D$16","v":"ifrs-full:DisclosureOfIntangibleAssetsLineItems"}]
["/*",null,{"$f":"'823180 - Nota. Activos Intang.'!$E$17","v":"Método de amortización, activos intangibles distintos de la plusvalía"},{"$f":"'823180 - Nota. Activos Intang.'!$D$17","v":"ifrs-full:AmortisationMethodIntangibleAssetsOtherThanGoodwill"}]
["/*",null,{"$f":"'823180 - Nota. Activos Intang.'!$E$18","v":"Importe en libros en términos brutos"},{"$f":"'823180 - Nota. Activos Intang.'!$D$18","v":"co-svsp-core:GrossCarryingAmount"}]
["/*",null,{"$f":"'823180 - Nota. Activos Intang.'!$E$19","v":"Depreciación y amortización acumuladas"},{"$f":"'823180 - Nota. Activos Intang.'!$D$19","v":"co-svsp-core:AccumulatedDepreciationAndAmortisation"}]
["/*",null,{"$f":"'823180 - Nota. Activos Intang.'!$E$20","v":"Deterioro de valor acumulado"},{"$f":"'823180 - Nota. Activos Intang.'!$D$20","v":"co-svsp-core:AccumulatedImpairment"}]
["/*",null,{"$f":"'823180 - Nota. Activos Intang.'!$E$21","v":"Conciliación de cambios en activos intangibles distintos de la plusvalía [resumen]"},{"$f":"'823180 - Nota. Activos Intang.'!$D$21","v":"ifrs-full:ReconciliationOfChangesInIntangibleAssetsOtherThanGoodwillAbstract"}]
["/*",null,{"$f":"'823180 - Nota. Activos Intang.'!$E$22","v":"Activos intangibles distintos de la plusvalía al inicio del periodo"},{"$f":"'823180 - Nota. Activos Intang.'!$D$22","v":"ifrs-full:IntangibleAssetsOtherThanGoodwill"}]
["/*",null,{"$f":"'823180 - Nota. Activos Intang.'!$E$23","v":"Incrementos distintos de los procedentes de combinaciones de negocios, activos intangibles distintos de la plusvalía"},{"$f":"'823180 - Nota. Activos Intang.'!$D$23","v":"ifrs-full:AdditionsOtherThanThroughBusinessCombinationsIntangibleAssetsOtherThanGoodwill"}]
["/*",null,{"$f":"'823180 - Nota. Activos Intang.'!$E$24","v":"Adquisiciones realizadas mediante combinaciones de negocios, activos intangibles distintos a la plusvalía"},{"$f":"'823180 - Nota. Activos Intang.'!$D$24","v":"ifrs-full:AcquisitionsThroughBusinessCombinationsIntangibleAssetsOtherThanGoodwill"}]
["/*",null,{"$f":"'823180 - Nota. Activos Intang.'!$E$25","v":"Amortización, activos intangibles distintos de la plusvalía"},{"$f":"'823180 - Nota. Activos Intang.'!$D$25","v":"ifrs-full:AmortisationIntangibleAssetsOtherThanGoodwill"}]
["/*",null,{"$f":"'823180 - Nota. Activos Intang.'!$E$26","v":"Pérdidas por deterioro de valor reconocidas en el resultado del periodo, activos intangibles distintos de la plusvalía"},{"$f":"'823180 - Nota. Activos Intang.'!$D$26","v":"ifrs-full:ImpairmentLossRecognisedInProfitOrLossIntangibleAssetsOtherThanGoodwill"}]
["/*",null,{"$f":"'823180 - Nota. Activos Intang.'!$E$27","v":"Reversión de pérdidas por deterioro de valor reconocidas en el resultado del periodo, activos intangibles distintos de la plusvalía"},{"$f":"'823180 - Nota. Activos Intang.'!$D$27","v":"ifrs-full:ReversalOfImpairmentLossRecognisedInProfitOrLossIntangibleAssetsOtherThanGoodwill"}]
["/*",null,{"$f":"'823180 - Nota. Activos Intang.'!$E$28","v":"Incrementos (disminuciones) por transferencias y otros cambios, activos intangibles distintos de la plusvalía [resumen]"},{"$f":"'823180 - Nota. Activos Intang.'!$D$28","v":"ifrs-full:IncreaseDecreaseThroughTransfersAndOtherChangesIntangibleAssetsOtherThanGoodwillAbstract"}]
["/*",null,{"$f":"'823180 - Nota. Activos Intang.'!$E$29","v":"Incrementos (disminuciones) por transferencias, activos intangibles distintas de la plusvalía"},{"$f":"'823180 - Nota. Activos Intang.'!$D$29","v":"ifrs-full:IncreaseDecreaseThroughTransfersIntangibleAssetsOtherThanGoodwill"}]
["/*",null,{"$f":"'823180 - Nota. Activos Intang.'!$E$30","v":"Incrementos (disminuciones) por otros cambios, activos intangibles distintos de la plusvalía"},{"$f":"'823180 - Nota. Activos Intang.'!$D$30","v":"ifrs-full:IncreaseDecreaseThroughOtherChangesIntangibleAssetsOtherThanGoodwill"}]
["",null,{"$f":"'823180 - Nota. Activos Intang.'!$E$31","v":"Incremento (disminución) por transferencias y otros cambios, activos intangibles distintos de la plusvalía"},{"$f":"'823180 - Nota. Activos Intang.'!$D$31","v":"ifrs-full:IncreaseDecreaseThroughTransfersAndOtherChangesIntangibleAssetsOtherThanGoodwill"},0,"peso",{"$f":"'823180 - Nota. Activos Intang.'!$F$31","v":0},0,"http://www.xbrl.org/scheme/companyName",{"$f":"Periodos!$C$3","v":"2023-01-01"},{"$f":"Periodos!$C$4","v":"2023-12-31"},{"$f":"'823180 - Nota. Activos Intang.'!$E$15","v":"co-svsp-core:ActivosIntangibles_Eje_G1"},{"$f":"'823180 - Nota. Activos Intang.'!$F$14","v":"ifrs-full:BrandNamesMember"}]
["/*",null,{"$f":"'823180 - Nota. Activos Intang.'!$E$32","v":"Disposiciones y retiros de servicio, activos intangibles distintos de la plusvalía [resumen]"},{"$f":"'823180 - Nota. Activos Intang.'!$D$32","v":"ifrs-full:DisposalsAndRetirementsIntangibleAssetsOtherThanGoodwillAbstract"}]
["/*",null,{"$f":"'823180 - Nota. Activos Intang.'!$E$33","v":"Disposiciones, activos intangibles distintos de la plusvalía"},{"$f":"'823180 - Nota. Activos Intang.'!$D$33","v":"ifrs-full:DisposalsIntangibleAssetsOtherThanGoodwill"}]
["/*",null,{"$f":"'823180 - Nota. Activos Intang.'!$E$34","v":"Retiros de servicio, activos intangibles distintos de la plusvalía"},{"$f":"'823180 - Nota. Activos Intang.'!$D$34","v":"ifrs-full:RetirementsIntangibleAssetsOtherThanGoodwill"}]
["",null,{"$f":"'823180 - Nota. Activos Intang.'!$E$35","v":"Disposiciones y retiros de servicio, activos intangibles distintos de la plusvalía"},{"$f":"'823180 - Nota. Activos Intang.'!$D$35","v":"ifrs-full:DisposalsAndRetirementsIntangibleAssetsOtherThanGoodwill"},0,"peso",{"$f":"'823180 - Nota. Activos Intang.'!$F$35","v":0},0,"http://www.xbrl.org/scheme/companyName",{"$f":"Periodos!$C$3","v":"2023-01-01"},{"$f":"Periodos!$C$4","v":"2023-12-31"},{"$f":"'823180 - Nota. Activos Intang.'!$E$15","v":"co-svsp-core:ActivosIntangibles_Eje_G1"},{"$f":"'823180 - Nota. Activos Intang.'!$F$14","v":"ifrs-full:BrandNamesMember"}]
["/*",null,{"$f":"'823180 - Nota. Activos Intang.'!$E$36","v":"Disminuciones por clasificar como mantenidos para la venta, activos intangibles distintos de la plusvalía"},{"$f":"'823180 - Nota. Activos Intang.'!$D$36","v":"ifrs-full:DecreaseThroughClassifiedAsHeldForSaleIntangibleAssetsOtherThanGoodwill"}]
["",null,{"$f":"'823180 - Nota. Activos Intang.'!$E$37","v":"Incremento (disminución) en activos intangibles distintos de la plusvalía"},{"$f":"'823180 - Nota. Activos Intang.'!$D$37","v":"ifrs-full:ChangesInIntangibleAssetsOtherThanGoodwill"},0,"peso",{"$f":"'823180 - Nota. Activos Intang.'!$F$37","v":0},0,"http://www.xbrl.org/scheme/companyName",{"$f":"Periodos!$C$3","v":"2023-01-01"},{"$f":"Periodos!$C$4","v":"2023-12-31"},{"$f":"'823180 - Nota. Activos Intang.'!$E$15","v":"co-svsp-core:ActivosIntangibles_Eje_G1"},{"$f":"'823180 - Nota. Activos Intang.'!$F$14","v":"ifrs-full:BrandNamesMember"}]
["",null,{"$f":"'823180 - Nota. Activos Intang.'!$E$38","v":"Activos intangibles distintos de la plusvalía al final del periodo"},{"$f":"'823180 - Nota. Activos Intang.'!$D$38","v":"ifrs-full:IntangibleAssetsOtherThanGoodwill"},0,"peso",{"$f":"'823180 - Nota. Activos Intang.'!$F$38","v":0},0,"http://www.xbrl.org/scheme/companyName",null,{"$f":"Periodos!$C$4","v":"2023-12-31"},{"$f":"'823180 - Nota. Activos Intang.'!$E$15","v":"co-svsp-core:ActivosIntangibles_Eje_G1"},{"$f":"'823180 - Nota. Activos Intang.'!$F$14","v":"ifrs-full:BrandNamesMember"}]
["/*",null,"--02--"]
["/*",null,{"$f":"'823180 - Nota. Activos Intang.'!$E$16","v":"Información a revelar detallada sobre activos intangibles [partidas de los estados financieros]"},{"$f":"'823180 - Nota. Activos Intang.'!$D$16","v":"ifrs-full:DisclosureOfIntangibleAssetsLineItems"}]
["/*",null,{"$f":"'823180 - Nota. Activos Intang.'!$E$17","v":"Método de amortización, activos intangibles distintos de la plusvalía"},{"$f":"'823180 - Nota. Activos Intang.'!$D$17","v":"ifrs-full:AmortisationMethodIntangibleAssetsOtherThanGoodwill"}]
["/*",null,{"$f":"'823180 - Nota. Activos Intang.'!$E$18","v":"Importe en libros en términos brutos"},{"$f":"'823180 - Nota. Activos Intang.'!$D$18","v":"co-svsp-core:GrossCarryingAmount"}]
["/*",null,{"$f":"'823180 - Nota. Activos Intang.'!$E$19","v":"Depreciación y amortización acumuladas"},{"$f":"'823180 - Nota. Activos Intang.'!$D$19","v":"co-svsp-core:AccumulatedDepreciationAndAmortisation"}]
["/*",null,{"$f":"'823180 - Nota. Activos Intang.'!$E$20","v":"Deterioro de valor acumulado"},{"$f":"'823180 - Nota. Activos Intang.'!$D$20","v":"co-svsp-core:AccumulatedImpairment"}]
["/*",null,{"$f":"'823180 - Nota. Activos Intang.'!$E$21","v":"Conciliación de cambios en activos intangibles distintos de la plusvalía [resumen]"},{"$f":"'823180 - Nota. Activos Intang.'!$D$21","v":"ifrs-full:ReconciliationOfChangesInIntangibleAssetsOtherThanGoodwillAbstract"}]
["/*",null,{"$f":"'823180 - Nota. Activos Intang.'!$E$22","v":"Activos intangibles distintos de la plusvalía al inicio del periodo"},{"$f":"'823180 - Nota. Activos Intang.'!$D$22","v":"ifrs-full:IntangibleAssetsOtherThanGoodwill"}]
[{"$f":"IF(G6432=\"\",\"/*\",\"\")","v":"/*"},null,{"$f":"'823180 - Nota. Activos Intang.'!$E$23","v":"Incrementos distintos de los procedentes de combinaciones de negocios, activos intangibles distintos de la plusvalía"},{"$f":"'823180 - Nota. Activos Intang.'!$D$23","v":"ifrs-full:AdditionsOtherThanThroughBusinessCombinationsIntangibleAssetsOtherThanGoodwill"}]
["/*",null,{"$f":"'823180 - Nota. Activos Intang.'!$E$24","v":"Adquisiciones realizadas mediante combinaciones de negocios, activos intangibles distintos a la plusvalía"},{"$f":"'823180 - Nota. Activos Intang.'!$D$24","v":"ifrs-full:AcquisitionsThroughBusinessCombinationsIntangibleAssetsOtherThanGoodwill"}]
["/*",null,{"$f":"'823180 - Nota. Activos Intang.'!$E$25","v":"Amortización, activos intangibles distintos de la plusvalía"},{"$f":"'823180 - Nota. Activos Intang.'!$D$25","v":"ifrs-full:AmortisationIntangibleAssetsOtherThanGoodwill"}]
["/*",null,{"$f":"'823180 - Nota. Activos Intang.'!$E$26","v":"Pérdidas por deterioro de valor reconocidas en el resultado del periodo, activos intangibles distintos de la plusvalía"},{"$f":"'823180 - Nota. Activos Intang.'!$D$26","v":"ifrs-full:ImpairmentLossRecognisedInProfitOrLossIntangibleAssetsOtherThanGoodwill"}]
["/*",null,{"$f":"'823180 - Nota. Activos Intang.'!$E$27","v":"Reversión de pérdidas por deterioro de valor reconocidas en el resultado del periodo, activos intangibles distintos de la plusvalía"},{"$f":"'823180 - Nota. Activos Intang.'!$D$27","v":"ifrs-full:ReversalOfImpairmentLossRecognisedInProfitOrLossIntangibleAssetsOtherThanGoodwill"}]
["/*",null,{"$f":"'823180 - Nota. Activos Intang.'!$E$28","v":"Incrementos (disminuciones) por transferencias y otros cambios, activos intangibles distintos de la plusvalía [resumen]"},{"$f":"'823180 - Nota. Activos Intang.'!$D$28","v":"ifrs-full:IncreaseDecreaseThroughTransfersAndOtherChangesIntangibleAssetsOtherThanGoodwillAbstract"}]
["/*",null,{"$f":"'823180 - Nota. Activos Intang.'!$E$29","v":"Incrementos (disminuciones) por transferencias, activos intangibles distintas de la plusvalía"},{"$f":"'823180 - Nota. Activos Intang.'!$D$29","v":"ifrs-full:IncreaseDecreaseThroughTransfersIntangibleAssetsOtherThanGoodwill"}]
["/*",null,{"$f":"'823180 - Nota. Activos Intang.'!$E$30","v":"Incrementos (disminuciones) por otros cambios, activos intangibles distintos de la plusvalía"},{"$f":"'823180 - Nota. Activos Intang.'!$D$30","v":"ifrs-full:IncreaseDecreaseThroughOtherChangesIntangibleAssetsOtherThanGoodwill"}]
["",null,{"$f":"'823180 - Nota. Activos Intang.'!$E$31","v":"Incremento (disminución) por transferencias y otros cambios, activos intangibles distintos de la plusvalía"},{"$f":"'823180 - Nota. Activos Intang.'!$D$31","v":"ifrs-full:IncreaseDecreaseThroughTransfersAndOtherChangesIntangibleAssetsOtherThanGoodwill"},0,"peso",{"$f":"'823180 - Nota. Activos Intang.'!$G$31","v":0},0,"http://www.xbrl.org/scheme/companyName",{"$f":"Periodos!$C$3","v":"2023-01-01"},{"$f":"Periodos!$C$4","v":"2023-12-31"},{"$f":"'823180 - Nota. Activos Intang.'!$E$15","v":"co-svsp-core:ActivosIntangibles_Eje_G1"},{"$f":"'823180 - Nota. Activos Intang.'!$G$14","v":"co-svsp-core:PatentesMiembro"}]
["/*",null,{"$f":"'823180 - Nota. Activos Intang.'!$E$32","v":"Disposiciones y retiros de servicio, activos intangibles distintos de la plusvalía [resumen]"},{"$f":"'823180 - Nota. Activos Intang.'!$D$32","v":"ifrs-full:DisposalsAndRetirementsIntangibleAssetsOtherThanGoodwillAbstract"}]
["/*",null,{"$f":"'823180 - Nota. Activos Intang.'!$E$33","v":"Disposiciones, activos intangibles distintos de la plusvalía"},{"$f":"'823180 - Nota. Activos Intang.'!$D$33","v":"ifrs-full:DisposalsIntangibleAssetsOtherThanGoodwill"}]
["/*",null,{"$f":"'823180 - Nota. Activos Intang.'!$E$34","v":"Retiros de servicio, activos intangibles distintos de la plusvalía"},{"$f":"'823180 - Nota. Activos Intang.'!$D$34","v":"ifrs-full:RetirementsIntangibleAssetsOtherThanGoodwill"}]
["",null,{"$f":"'823180 - Nota. Activos Intang.'!$E$35","v":"Disposiciones y retiros de servicio, activos intangibles distintos de la plusvalía"},{"$f":"'823180 - Nota. Activos Intang.'!$D$35","v":"ifrs-full:DisposalsAndRetirementsIntangibleAssetsOtherThanGoodwill"},0,"peso",{"$f":"'823180 - Nota. Activos Intang.'!$G$35","v":0},0,"http://www.xbrl.org/scheme/companyName",{"$f":"Periodos!$C$3","v":"2023-01-01"},{"$f":"Periodos!$C$4","v":"2023-12-31"},{"$f":"'823180 - Nota. Activos Intang.'!$E$15","v":"co-svsp-core:ActivosIntangibles_Eje_G1"},{"$f":"'823180 - Nota. Activos Intang.'!$G$14","v":"co-svsp-core:PatentesMiembro"}]
["/*",null,{"$f":"'823180 - Nota. Activos Intang.'!$E$36","v":"Disminuciones por clasificar como mantenidos para la venta, activos intangibles distintos de la plusvalía"},{"$f":"'823180 - Nota. Activos Intang.'!$D$36","v":"ifrs-full:DecreaseThroughClassifiedAsHeldForSaleIntangibleAssetsOtherThanGoodwill"}]
["",null,{"$f":"'823180 - Nota. Activos Intang.'!$E$37","v":"Incremento (disminución) en activos intangibles distintos de la plusvalía"},{"$f":"'823180 - Nota. Activos Intang.'!$D$37","v":"ifrs-full:ChangesInIntangibleAssetsOtherThanGoodwill"},0,"peso",{"$f":"'823180 - Nota. Activos Intang.'!$G$37","v":0},0,"http://www.xbrl.org/scheme/companyName",{"$f":"Periodos!$C$3","v":"2023-01-01"},{"$f":"Periodos!$C$4","v":"2023-12-31"},{"$f":"'823180 - Nota. Activos Intang.'!$E$15","v":"co-svsp-core:ActivosIntangibles_Eje_G1"},{"$f":"'823180 - Nota. Activos Intang.'!$G$14","v":"co-svsp-core:PatentesMiembro"}]
["",null,{"$f":"'823180 - Nota. Activos Intang.'!$E$38","v":"Activos intangibles distintos de la plusvalía al final del periodo"},{"$f":"'823180 - Nota. Activos Intang.'!$D$38","v":"ifrs-full:IntangibleAssetsOtherThanGoodwill"},0,"peso",{"$f":"'823180 - Nota. Activos Intang.'!$G$38","v":0},0,"http://www.xbrl.org/scheme/companyName",null,{"$f":"Periodos!$C$4","v":"2023-12-31"},{"$f":"'823180 - Nota. Activos Intang.'!$E$15","v":"co-svsp-core:ActivosIntangibles_Eje_G1"},{"$f":"'823180 - Nota. Activos Intang.'!$G$14","v":"co-svsp-core:PatentesMiembro"}]
["/*",null,"--03--"]
["/*",null,{"$f":"'823180 - Nota. Activos Intang.'!$E$16","v":"Información a revelar detallada sobre activos intangibles [partidas de los estados financieros]"},{"$f":"'823180 - Nota. Activos Intang.'!$D$16","v":"ifrs-full:DisclosureOfIntangibleAssetsLineItems"}]
["/*",null,{"$f":"'823180 - Nota. Activos Intang.'!$E$17","v":"Método de amortización, activos intangibles distintos de la plusvalía"},{"$f":"'823180 - Nota. Activos Intang.'!$D$17","v":"ifrs-full:AmortisationMethodIntangibleAssetsOtherThanGoodwill"}]
["/*",null,{"$f":"'823180 - Nota. Activos Intang.'!$E$18","v":"Importe en libros en términos brutos"},{"$f":"'823180 - Nota. Activos Intang.'!$D$18","v":"co-svsp-core:GrossCarryingAmount"}]
["/*",null,{"$f":"'823180 - Nota. Activos Intang.'!$E$19","v":"Depreciación y amortización acumuladas"},{"$f":"'823180 - Nota. Activos Intang.'!$D$19","v":"co-svsp-core:AccumulatedDepreciationAndAmortisation"}]
["/*",null,{"$f":"'823180 - Nota. Activos Intang.'!$E$20","v":"Deterioro de valor acumulado"},{"$f":"'823180 - Nota. Activos Intang.'!$D$20","v":"co-svsp-core:AccumulatedImpairment"}]
["/*",null,{"$f":"'823180 - Nota. Activos Intang.'!$E$21","v":"Conciliación de cambios en activos intangibles distintos de la plusvalía [resumen]"},{"$f":"'823180 - Nota. Activos Intang.'!$D$21","v":"ifrs-full:ReconciliationOfChangesInIntangibleAssetsOtherThanGoodwillAbstract"}]
["/*",null,{"$f":"'823180 - Nota. Activos Intang.'!$E$22","v":"Activos intangibles distintos de la plusvalía al inicio del periodo"},{"$f":"'823180 - Nota. Activos Intang.'!$D$22","v":"ifrs-full:IntangibleAssetsOtherThanGoodwill"}]
["/*",null,{"$f":"'823180 - Nota. Activos Intang.'!$E$23","v":"Incrementos distintos de los procedentes de combinaciones de negocios, activos intangibles distintos de la plusvalía"},{"$f":"'823180 - Nota. Activos Intang.'!$D$23","v":"ifrs-full:AdditionsOtherThanThroughBusinessCombinationsIntangibleAssetsOtherThanGoodwill"}]
["/*",null,{"$f":"'823180 - Nota. Activos Intang.'!$E$24","v":"Adquisiciones realizadas mediante combinaciones de negocios, activos intangibles distintos a la plusvalía"},{"$f":"'823180 - Nota. Activos Intang.'!$D$24","v":"ifrs-full:AcquisitionsThroughBusinessCombinationsIntangibleAssetsOtherThanGoodwill"}]
["/*",null,{"$f":"'823180 - Nota. Activos Intang.'!$E$25","v":"Amortización, activos intangibles distintos de la plusvalía"},{"$f":"'823180 - Nota. Activos Intang.'!$D$25","v":"ifrs-full:AmortisationIntangibleAssetsOtherThanGoodwill"}]
["/*",null,{"$f":"'823180 - Nota. Activos Intang.'!$E$26","v":"Pérdidas por deterioro de valor reconocidas en el resultado del periodo, activos intangibles distintos de la plusvalía"},{"$f":"'823180 - Nota. Activos Intang.'!$D$26","v":"ifrs-full:ImpairmentLossRecognisedInProfitOrLossIntangibleAssetsOtherThanGoodwill"}]
["/*",null,{"$f":"'823180 - Nota. Activos Intang.'!$E$27","v":"Reversión de pérdidas por deterioro de valor reconocidas en el resultado del periodo, activos intangibles distintos de la plusvalía"},{"$f":"'823180 - Nota. Activos Intang.'!$D$27","v":"ifrs-full:ReversalOfImpairmentLossRecognisedInProfitOrLossIntangibleAssetsOtherThanGoodwill"}]
["/*",null,{"$f":"'823180 - Nota. Activos Intang.'!$E$28","v":"Incrementos (disminuciones) por transferencias y otros cambios, activos intangibles distintos de la plusvalía [resumen]"},{"$f":"'823180 - Nota. Activos Intang.'!$D$28","v":"ifrs-full:IncreaseDecreaseThroughTransfersAndOtherChangesIntangibleAssetsOtherThanGoodwillAbstract"}]
["/*",null,{"$f":"'823180 - Nota. Activos Intang.'!$E$29","v":"Incrementos (disminuciones) por transferencias, activos intangibles distintas de la plusvalía"},{"$f":"'823180 - Nota. Activos Intang.'!$D$29","v":"ifrs-full:IncreaseDecreaseThroughTransfersIntangibleAssetsOtherThanGoodwill"}]
["/*",null,{"$f":"'823180 - Nota. Activos Intang.'!$E$30","v":"Incrementos (disminuciones) por otros cambios, activos intangibles distintos de la plusvalía"},{"$f":"'823180 - Nota. Activos Intang.'!$D$30","v":"ifrs-full:IncreaseDecreaseThroughOtherChangesIntangibleAssetsOtherThanGoodwill"}]
["",null,{"$f":"'823180 - Nota. Activos Intang.'!$E$31","v":"Incremento (disminución) por transferencias y otros cambios, activos intangibles distintos de la plusvalía"},{"$f":"'823180 - Nota. Activos Intang.'!$D$31","v":"ifrs-full:IncreaseDecreaseThroughTransfersAndOtherChangesIntangibleAssetsOtherThanGoodwill"},0,"peso",{"$f":"'823180 - Nota. Activos Intang.'!$H$31","v":0},0,"http://www.xbrl.org/scheme/companyName",{"$f":"Periodos!$C$3","v":"2023-01-01"},{"$f":"Periodos!$C$4","v":"2023-12-31"},{"$f":"'823180 - Nota. Activos Intang.'!$E$15","v":"co-svsp-core:ActivosIntangibles_Eje_G1"},{"$f":"'823180 - Nota. Activos Intang.'!$H$14","v":"ifrs-full:ComputerSoftwareMember"}]
["/*",null,{"$f":"'823180 - Nota. Activos Intang.'!$E$32","v":"Disposiciones y retiros de servicio, activos intangibles distintos de la plusvalía [resumen]"},{"$f":"'823180 - Nota. Activos Intang.'!$D$32","v":"ifrs-full:DisposalsAndRetirementsIntangibleAssetsOtherThanGoodwillAbstract"}]
["/*",null,{"$f":"'823180 - Nota. Activos Intang.'!$E$33","v":"Disposiciones, activos intangibles distintos de la plusvalía"},{"$f":"'823180 - Nota. Activos Intang.'!$D$33","v":"ifrs-full:DisposalsIntangibleAssetsOtherThanGoodwill"}]
["/*",null,{"$f":"'823180 - Nota. Activos Intang.'!$E$34","v":"Retiros de servicio, activos intangibles distintos de la plusvalía"},{"$f":"'823180 - Nota. Activos Intang.'!$D$34","v":"ifrs-full:RetirementsIntangibleAssetsOtherThanGoodwill"}]
["",null,{"$f":"'823180 - Nota. Activos Intang.'!$E$35","v":"Disposiciones y retiros de servicio, activos intangibles distintos de la plusvalía"},{"$f":"'823180 - Nota. Activos Intang.'!$D$35","v":"ifrs-full:DisposalsAndRetirementsIntangibleAssetsOtherThanGoodwill"},0,"peso",{"$f":"'823180 - Nota. Activos Intang.'!$H$35","v":0},0,"http://www.xbrl.org/scheme/companyName",{"$f":"Periodos!$C$3","v":"2023-01-01"},{"$f":"Periodos!$C$4","v":"2023-12-31"},{"$f":"'823180 - Nota. Activos Intang.'!$E$15","v":"co-svsp-core:ActivosIntangibles_Eje_G1"},{"$f":"'823180 - Nota. Activos Intang.'!$H$14","v":"ifrs-full:ComputerSoftwareMember"}]
["/*",null,{"$f":"'823180 - Nota. Activos Intang.'!$E$36","v":"Disminuciones por clasificar como mantenidos para la venta, activos intangibles distintos de la plusvalía"},{"$f":"'823180 - Nota. Activos Intang.'!$D$36","v":"ifrs-full:DecreaseThroughClassifiedAsHeldForSaleIntangibleAssetsOtherThanGoodwill"}]
["",null,{"$f":"'823180 - Nota. Activos Intang.'!$E$37","v":"Incremento (disminución) en activos intangibles distintos de la plusvalía"},{"$f":"'823180 - Nota. Activos Intang.'!$D$37","v":"ifrs-full:ChangesInIntangibleAssetsOtherThanGoodwill"},0,"peso",{"$f":"'823180 - Nota. Activos Intang.'!$H$37","v":0},0,"http://www.xbrl.org/scheme/companyName",{"$f":"Periodos!$C$3","v":"2023-01-01"},{"$f":"Periodos!$C$4","v":"2023-12-31"},{"$f":"'823180 - Nota. Activos Intang.'!$E$15","v":"co-svsp-core:ActivosIntangibles_Eje_G1"},{"$f":"'823180 - Nota. Activos Intang.'!$H$14","v":"ifrs-full:ComputerSoftwareMember"}]
["",null,{"$f":"'823180 - Nota. Activos Intang.'!$E$38","v":"Activos intangibles distintos de la plusvalía al final del periodo"},{"$f":"'823180 - Nota. Activos Intang.'!$D$38","v":"ifrs-full:IntangibleAssetsOtherThanGoodwill"},0,"peso",{"$f":"'823180 - Nota. Activos Intang.'!$H$38","v":0},0,"http://www.xbrl.org/scheme/companyName",null,{"$f":"Periodos!$C$4","v":"2023-12-31"},{"$f":"'823180 - Nota. Activos Intang.'!$E$15","v":"co-svsp-core:ActivosIntangibles_Eje_G1"},{"$f":"'823180 - Nota. Activos Intang.'!$H$14","v":"ifrs-full:ComputerSoftwareMember"}]
["/*",null,"--04--"]
["/*",null,{"$f":"'823180 - Nota. Activos Intang.'!$E$16","v":"Información a revelar detallada sobre activos intangibles [partidas de los estados financieros]"},{"$f":"'823180 - Nota. Activos Intang.'!$D$16","v":"ifrs-full:DisclosureOfIntangibleAssetsLineItems"}]
["/*",null,{"$f":"'823180 - Nota. Activos Intang.'!$E$17","v":"Método de amortización, activos intangibles distintos de la plusvalía"},{"$f":"'823180 - Nota. Activos Intang.'!$D$17","v":"ifrs-full:AmortisationMethodIntangibleAssetsOtherThanGoodwill"}]
["/*",null,{"$f":"'823180 - Nota. Activos Intang.'!$E$18","v":"Importe en libros en términos brutos"},{"$f":"'823180 - Nota. Activos Intang.'!$D$18","v":"co-svsp-core:GrossCarryingAmount"}]
["/*",null,{"$f":"'823180 - Nota. Activos Intang.'!$E$19","v":"Depreciación y amortización acumuladas"},{"$f":"'823180 - Nota. Activos Intang.'!$D$19","v":"co-svsp-core:AccumulatedDepreciationAndAmortisation"}]
["/*",null,{"$f":"'823180 - Nota. Activos Intang.'!$E$20","v":"Deterioro de valor acumulado"},{"$f":"'823180 - Nota. Activos Intang.'!$D$20","v":"co-svsp-core:AccumulatedImpairment"}]
["/*",null,{"$f":"'823180 - Nota. Activos Intang.'!$E$21","v":"Conciliación de cambios en activos intangibles distintos de la plusvalía [resumen]"},{"$f":"'823180 - Nota. Activos Intang.'!$D$21","v":"ifrs-full:ReconciliationOfChangesInIntangibleAssetsOtherThanGoodwillAbstract"}]
["/*",null,{"$f":"'823180 - Nota. Activos Intang.'!$E$22","v":"Activos intangibles distintos de la plusvalía al inicio del periodo"},{"$f":"'823180 - Nota. Activos Intang.'!$D$22","v":"ifrs-full:IntangibleAssetsOtherThanGoodwill"}]
["/*",null,{"$f":"'823180 - Nota. Activos Intang.'!$E$23","v":"Incrementos distintos de los procedentes de combinaciones de negocios, activos intangibles distintos de la plusvalía"},{"$f":"'823180 - Nota. Activos Intang.'!$D$23","v":"ifrs-full:AdditionsOtherThanThroughBusinessCombinationsIntangibleAssetsOtherThanGoodwill"}]
["/*",null,{"$f":"'823180 - Nota. Activos Intang.'!$E$24","v":"Adquisiciones realizadas mediante combinaciones de negocios, activos intangibles distintos a la plusvalía"},{"$f":"'823180 - Nota. Activos Intang.'!$D$24","v":"ifrs-full:AcquisitionsThroughBusinessCombinationsIntangibleAssetsOtherThanGoodwill"}]
["/*",null,{"$f":"'823180 - Nota. Activos Intang.'!$E$25","v":"Amortización, activos intangibles distintos de la plusvalía"},{"$f":"'823180 - Nota. Activos Intang.'!$D$25","v":"ifrs-full:AmortisationIntangibleAssetsOtherThanGoodwill"}]
["/*",null,{"$f":"'823180 - Nota. Activos Intang.'!$E$26","v":"Pérdidas por deterioro de valor reconocidas en el resultado del periodo, activos intangibles distintos de la plusvalía"},{"$f":"'823180 - Nota. Activos Intang.'!$D$26","v":"ifrs-full:ImpairmentLossRecognisedInProfitOrLossIntangibleAssetsOtherThanGoodwill"}]
["/*",null,{"$f":"'823180 - Nota. Activos Intang.'!$E$27","v":"Reversión de pérdidas por deterioro de valor reconocidas en el resultado del periodo, activos intangibles distintos de la plusvalía"},{"$f":"'823180 - Nota. Activos Intang.'!$D$27","v":"ifrs-full:ReversalOfImpairmentLossRecognisedInProfitOrLossIntangibleAssetsOtherThanGoodwill"}]
["/*",null,{"$f":"'823180 - Nota. Activos Intang.'!$E$28","v":"Incrementos (disminuciones) por transferencias y otros cambios, activos intangibles distintos de la plusvalía [resumen]"},{"$f":"'823180 - Nota. Activos Intang.'!$D$28","v":"ifrs-full:IncreaseDecreaseThroughTransfersAndOtherChangesIntangibleAssetsOtherThanGoodwillAbstract"}]
["/*",null,{"$f":"'823180 - Nota. Activos Intang.'!$E$29","v":"Incrementos (disminuciones) por transferencias, activos intangibles distintas de la plusvalía"},{"$f":"'823180 - Nota. Activos Intang.'!$D$29","v":"ifrs-full:IncreaseDecreaseThroughTransfersIntangibleAssetsOtherThanGoodwill"}]
["/*",null,{"$f":"'823180 - Nota. Activos Intang.'!$E$30","v":"Incrementos (disminuciones) por otros cambios, activos intangibles distintos de la plusvalía"},{"$f":"'823180 - Nota. Activos Intang.'!$D$30","v":"ifrs-full:IncreaseDecreaseThroughOtherChangesIntangibleAssetsOtherThanGoodwill"}]
["",null,{"$f":"'823180 - Nota. Activos Intang.'!$E$31","v":"Incremento (disminución) por transferencias y otros cambios, activos intangibles distintos de la plusvalía"},{"$f":"'823180 - Nota. Activos Intang.'!$D$31","v":"ifrs-full:IncreaseDecreaseThroughTransfersAndOtherChangesIntangibleAssetsOtherThanGoodwill"},0,"peso",{"$f":"'823180 - Nota. Activos Intang.'!$I$31","v":0},0,"http://www.xbrl.org/scheme/companyName",{"$f":"Periodos!$C$3","v":"2023-01-01"},{"$f":"Periodos!$C$4","v":"2023-12-31"},{"$f":"'823180 - Nota. Activos Intang.'!$E$15","v":"co-svsp-core:ActivosIntangibles_Eje_G1"},{"$f":"'823180 - Nota. Activos Intang.'!$I$14","v":"ifrs-full:LicencesAndFranchisesMember"}]
["/*",null,{"$f":"'823180 - Nota. Activos Intang.'!$E$32","v":"Disposiciones y retiros de servicio, activos intangibles distintos de la plusvalía [resumen]"},{"$f":"'823180 - Nota. Activos Intang.'!$D$32","v":"ifrs-full:DisposalsAndRetirementsIntangibleAssetsOtherThanGoodwillAbstract"}]
["/*",null,{"$f":"'823180 - Nota. Activos Intang.'!$E$33","v":"Disposiciones, activos intangibles distintos de la plusvalía"},{"$f":"'823180 - Nota. Activos Intang.'!$D$33","v":"ifrs-full:DisposalsIntangibleAssetsOtherThanGoodwill"}]
["/*",null,{"$f":"'823180 - Nota. Activos Intang.'!$E$34","v":"Retiros de servicio, activos intangibles distintos de la plusvalía"},{"$f":"'823180 - Nota. Activos Intang.'!$D$34","v":"ifrs-full:RetirementsIntangibleAssetsOtherThanGoodwill"}]
["",null,{"$f":"'823180 - Nota. Activos Intang.'!$E$35","v":"Disposiciones y retiros de servicio, activos intangibles distintos de la plusvalía"},{"$f":"'823180 - Nota. Activos Intang.'!$D$35","v":"ifrs-full:DisposalsAndRetirementsIntangibleAssetsOtherThanGoodwill"},0,"peso",{"$f":"'823180 - Nota. Activos Intang.'!$I$35","v":0},0,"http://www.xbrl.org/scheme/companyName",{"$f":"Periodos!$C$3","v":"2023-01-01"},{"$f":"Periodos!$C$4","v":"2023-12-31"},{"$f":"'823180 - Nota. Activos Intang.'!$E$15","v":"co-svsp-core:ActivosIntangibles_Eje_G1"},{"$f":"'823180 - Nota. Activos Intang.'!$I$14","v":"ifrs-full:LicencesAndFranchisesMember"}]
["/*",null,{"$f":"'823180 - Nota. Activos Intang.'!$E$36","v":"Disminuciones por clasificar como mantenidos para la venta, activos intangibles distintos de la plusvalía"},{"$f":"'823180 - Nota. Activos Intang.'!$D$36","v":"ifrs-full:DecreaseThroughClassifiedAsHeldForSaleIntangibleAssetsOtherThanGoodwill"}]
["",null,{"$f":"'823180 - Nota. Activos Intang.'!$E$37","v":"Incremento (disminución) en activos intangibles distintos de la plusvalía"},{"$f":"'823180 - Nota. Activos Intang.'!$D$37","v":"ifrs-full:ChangesInIntangibleAssetsOtherThanGoodwill"},0,"peso",{"$f":"'823180 - Nota. Activos Intang.'!$I$37","v":0},0,"http://www.xbrl.org/scheme/companyName",{"$f":"Periodos!$C$3","v":"2023-01-01"},{"$f":"Periodos!$C$4","v":"2023-12-31"},{"$f":"'823180 - Nota. Activos Intang.'!$E$15","v":"co-svsp-core:ActivosIntangibles_Eje_G1"},{"$f":"'823180 - Nota. Activos Intang.'!$I$14","v":"ifrs-full:LicencesAndFranchisesMember"}]
["",null,{"$f":"'823180 - Nota. Activos Intang.'!$E$38","v":"Activos intangibles distintos de la plusvalía al final del periodo"},{"$f":"'823180 - Nota. Activos Intang.'!$D$38","v":"ifrs-full:IntangibleAssetsOtherThanGoodwill"},0,"peso",{"$f":"'823180 - Nota. Activos Intang.'!$I$38","v":0},0,"http://www.xbrl.org/scheme/companyName",null,{"$f":"Periodos!$C$4","v":"2023-12-31"},{"$f":"'823180 - Nota. Activos Intang.'!$E$15","v":"co-svsp-core:ActivosIntangibles_Eje_G1"},{"$f":"'823180 - Nota. Activos Intang.'!$I$14","v":"ifrs-full:LicencesAndFranchisesMember"}]
[{"$f":"IF(G6496=\"\",\"/*\",\"\")","v":"/*"},null,"--05--"]
["/*",null,{"$f":"'823180 - Nota. Activos Intang.'!$E$16","v":"Información a revelar detallada sobre activos intangibles [partidas de los estados financieros]"},{"$f":"'823180 - Nota. Activos Intang.'!$D$16","v":"ifrs-full:DisclosureOfIntangibleAssetsLineItems"}]
["/*",null,{"$f":"'823180 - Nota. Activos Intang.'!$E$17","v":"Método de amortización, activos intangibles distintos de la plusvalía"},{"$f":"'823180 - Nota. Activos Intang.'!$D$17","v":"ifrs-full:AmortisationMethodIntangibleAssetsOtherThanGoodwill"}]
["/*",null,{"$f":"'823180 - Nota. Activos Intang.'!$E$18","v":"Importe en libros en términos brutos"},{"$f":"'823180 - Nota. Activos Intang.'!$D$18","v":"co-svsp-core:GrossCarryingAmount"}]
["/*",null,{"$f":"'823180 - Nota. Activos Intang.'!$E$19","v":"Depreciación y amortización acumuladas"},{"$f":"'823180 - Nota. Activos Intang.'!$D$19","v":"co-svsp-core:AccumulatedDepreciationAndAmortisation"}]
["/*",null,{"$f":"'823180 - Nota. Activos Intang.'!$E$20","v":"Deterioro de valor acumulado"},{"$f":"'823180 - Nota. Activos Intang.'!$D$20","v":"co-svsp-core:AccumulatedImpairment"}]
["/*",null,{"$f":"'823180 - Nota. Activos Intang.'!$E$21","v":"Conciliación de cambios en activos intangibles distintos de la plusvalía [resumen]"},{"$f":"'823180 - Nota. Activos Intang.'!$D$21","v":"ifrs-full:ReconciliationOfChangesInIntangibleAssetsOtherThanGoodwillAbstract"}]
["/*",null,{"$f":"'823180 - Nota. Activos Intang.'!$E$22","v":"Activos intangibles distintos de la plusvalía al inicio del periodo"},{"$f":"'823180 - Nota. Activos Intang.'!$D$22","v":"ifrs-full:IntangibleAssetsOtherThanGoodwill"}]
["/*",null,{"$f":"'823180 - Nota. Activos Intang.'!$E$23","v":"Incrementos distintos de los procedentes de combinaciones de negocios, activos intangibles distintos de la plusvalía"},{"$f":"'823180 - Nota. Activos Intang.'!$D$23","v":"ifrs-full:AdditionsOtherThanThroughBusinessCombinationsIntangibleAssetsOtherThanGoodwill"}]
["/*",null,{"$f":"'823180 - Nota. Activos Intang.'!$E$24","v":"Adquisiciones realizadas mediante combinaciones de negocios, activos intangibles distintos a la plusvalía"},{"$f":"'823180 - Nota. Activos Intang.'!$D$24","v":"ifrs-full:AcquisitionsThroughBusinessCombinationsIntangibleAssetsOtherThanGoodwill"}]
["/*",null,{"$f":"'823180 - Nota. Activos Intang.'!$E$25","v":"Amortización, activos intangibles distintos de la plusvalía"},{"$f":"'823180 - Nota. Activos Intang.'!$D$25","v":"ifrs-full:AmortisationIntangibleAssetsOtherThanGoodwill"}]
["/*",null,{"$f":"'823180 - Nota. Activos Intang.'!$E$26","v":"Pérdidas por deterioro de valor reconocidas en el resultado del periodo, activos intangibles distintos de la plusvalía"},{"$f":"'823180 - Nota. Activos Intang.'!$D$26","v":"ifrs-full:ImpairmentLossRecognisedInProfitOrLossIntangibleAssetsOtherThanGoodwill"}]
["/*",null,{"$f":"'823180 - Nota. Activos Intang.'!$E$27","v":"Reversión de pérdidas por deterioro de valor reconocidas en el resultado del periodo, activos intangibles distintos de la plusvalía"},{"$f":"'823180 - Nota. Activos Intang.'!$D$27","v":"ifrs-full:ReversalOfImpairmentLossRecognisedInProfitOrLossIntangibleAssetsOtherThanGoodwill"}]
["/*",null,{"$f":"'823180 - Nota. Activos Intang.'!$E$28","v":"Incrementos (disminuciones) por transferencias y otros cambios, activos intangibles distintos de la plusvalía [resumen]"},{"$f":"'823180 - Nota. Activos Intang.'!$D$28","v":"ifrs-full:IncreaseDecreaseThroughTransfersAndOtherChangesIntangibleAssetsOtherThanGoodwillAbstract"}]
["/*",null,{"$f":"'823180 - Nota. Activos Intang.'!$E$29","v":"Incrementos (disminuciones) por transferencias, activos intangibles distintas de la plusvalía"},{"$f":"'823180 - Nota. Activos Intang.'!$D$29","v":"ifrs-full:IncreaseDecreaseThroughTransfersIntangibleAssetsOtherThanGoodwill"}]
["/*",null,{"$f":"'823180 - Nota. Activos Intang.'!$E$30","v":"Incrementos (disminuciones) por otros cambios, activos intangibles distintos de la plusvalía"},{"$f":"'823180 - Nota. Activos Intang.'!$D$30","v":"ifrs-full:IncreaseDecreaseThroughOtherChangesIntangibleAssetsOtherThanGoodwill"}]
["",null,{"$f":"'823180 - Nota. Activos Intang.'!$E$31","v":"Incremento (disminución) por transferencias y otros cambios, activos intangibles distintos de la plusvalía"},{"$f":"'823180 - Nota. Activos Intang.'!$D$31","v":"ifrs-full:IncreaseDecreaseThroughTransfersAndOtherChangesIntangibleAssetsOtherThanGoodwill"},0,"peso",{"$f":"'823180 - Nota. Activos Intang.'!$J$31","v":0},0,"http://www.xbrl.org/scheme/companyName",{"$f":"Periodos!$C$3","v":"2023-01-01"},{"$f":"Periodos!$C$4","v":"2023-12-31"},{"$f":"'823180 - Nota. Activos Intang.'!$E$15","v":"co-svsp-core:ActivosIntangibles_Eje_G1"},{"$f":"'823180 - Nota. Activos Intang.'!$J$14","v":"co-svsp-core:DerechosMiembro"}]
["/*",null,{"$f":"'823180 - Nota. Activos Intang.'!$E$32","v":"Disposiciones y retiros de servicio, activos intangibles distintos de la plusvalía [resumen]"},{"$f":"'823180 - Nota. Activos Intang.'!$D$32","v":"ifrs-full:DisposalsAndRetirementsIntangibleAssetsOtherThanGoodwillAbstract"}]
["/*",null,{"$f":"'823180 - Nota. Activos Intang.'!$E$33","v":"Disposiciones, activos intangibles distintos de la plusvalía"},{"$f":"'823180 - Nota. Activos Intang.'!$D$33","v":"ifrs-full:DisposalsIntangibleAssetsOtherThanGoodwill"}]
["/*",null,{"$f":"'823180 - Nota. Activos Intang.'!$E$34","v":"Retiros de servicio, activos intangibles distintos de la plusvalía"},{"$f":"'823180 - Nota. Activos Intang.'!$D$34","v":"ifrs-full:RetirementsIntangibleAssetsOtherThanGoodwill"}]
["",null,{"$f":"'823180 - Nota. Activos Intang.'!$E$35","v":"Disposiciones y retiros de servicio, activos intangibles distintos de la plusvalía"},{"$f":"'823180 - Nota. Activos Intang.'!$D$35","v":"ifrs-full:DisposalsAndRetirementsIntangibleAssetsOtherThanGoodwill"},0,"peso",{"$f":"'823180 - Nota. Activos Intang.'!$J$35","v":0},0,"http://www.xbrl.org/scheme/companyName",{"$f":"Periodos!$C$3","v":"2023-01-01"},{"$f":"Periodos!$C$4","v":"2023-12-31"},{"$f":"'823180 - Nota. Activos Intang.'!$E$15","v":"co-svsp-core:ActivosIntangibles_Eje_G1"},{"$f":"'823180 - Nota. Activos Intang.'!$J$14","v":"co-svsp-core:DerechosMiembro"}]
["/*",null,{"$f":"'823180 - Nota. Activos Intang.'!$E$36","v":"Disminuciones por clasificar como mantenidos para la venta, activos intangibles distintos de la plusvalía"},{"$f":"'823180 - Nota. Activos Intang.'!$D$36","v":"ifrs-full:DecreaseThroughClassifiedAsHeldForSaleIntangibleAssetsOtherThanGoodwill"}]
["",null,{"$f":"'823180 - Nota. Activos Intang.'!$E$37","v":"Incremento (disminución) en activos intangibles distintos de la plusvalía"},{"$f":"'823180 - Nota. Activos Intang.'!$D$37","v":"ifrs-full:ChangesInIntangibleAssetsOtherThanGoodwill"},0,"peso",{"$f":"'823180 - Nota. Activos Intang.'!$J$37","v":0},0,"http://www.xbrl.org/scheme/companyName",{"$f":"Periodos!$C$3","v":"2023-01-01"},{"$f":"Periodos!$C$4","v":"2023-12-31"},{"$f":"'823180 - Nota. Activos Intang.'!$E$15","v":"co-svsp-core:ActivosIntangibles_Eje_G1"},{"$f":"'823180 - Nota. Activos Intang.'!$J$14","v":"co-svsp-core:DerechosMiembro"}]
["",null,{"$f":"'823180 - Nota. Activos Intang.'!$E$38","v":"Activos intangibles distintos de la plusvalía al final del periodo"},{"$f":"'823180 - Nota. Activos Intang.'!$D$38","v":"ifrs-full:IntangibleAssetsOtherThanGoodwill"},0,"peso",{"$f":"'823180 - Nota. Activos Intang.'!$J$38","v":0},0,"http://www.xbrl.org/scheme/companyName",null,{"$f":"Periodos!$C$4","v":"2023-12-31"},{"$f":"'823180 - Nota. Activos Intang.'!$E$15","v":"co-svsp-core:ActivosIntangibles_Eje_G1"},{"$f":"'823180 - Nota. Activos Intang.'!$J$14","v":"co-svsp-core:DerechosMiembro"}]
["/*",null,"--06--"]
["/*",null,{"$f":"'823180 - Nota. Activos Intang.'!$E$16","v":"Información a revelar detallada sobre activos intangibles [partidas de los estados financieros]"},{"$f":"'823180 - Nota. Activos Intang.'!$D$16","v":"ifrs-full:DisclosureOfIntangibleAssetsLineItems"}]
["/*",null,{"$f":"'823180 - Nota. Activos Intang.'!$E$17","v":"Método de amortización, activos intangibles distintos de la plusvalía"},{"$f":"'823180 - Nota. Activos Intang.'!$D$17","v":"ifrs-full:AmortisationMethodIntangibleAssetsOtherThanGoodwill"}]
["/*",null,{"$f":"'823180 - Nota. Activos Intang.'!$E$18","v":"Importe en libros en términos brutos"},{"$f":"'823180 - Nota. Activos Intang.'!$D$18","v":"co-svsp-core:GrossCarryingAmount"}]
["/*",null,{"$f":"'823180 - Nota. Activos Intang.'!$E$19","v":"Depreciación y amortización acumuladas"},{"$f":"'823180 - Nota. Activos Intang.'!$D$19","v":"co-svsp-core:AccumulatedDepreciationAndAmortisation"}]
["/*",null,{"$f":"'823180 - Nota. Activos Intang.'!$E$20","v":"Deterioro de valor acumulado"},{"$f":"'823180 - Nota. Activos Intang.'!$D$20","v":"co-svsp-core:AccumulatedImpairment"}]
["/*",null,{"$f":"'823180 - Nota. Activos Intang.'!$E$21","v":"Conciliación de cambios en activos intangibles distintos de la plusvalía [resumen]"},{"$f":"'823180 - Nota. Activos Intang.'!$D$21","v":"ifrs-full:ReconciliationOfChangesInIntangibleAssetsOtherThanGoodwillAbstract"}]
["/*",null,{"$f":"'823180 - Nota. Activos Intang.'!$E$22","v":"Activos intangibles distintos de la plusvalía al inicio del periodo"},{"$f":"'823180 - Nota. Activos Intang.'!$D$22","v":"ifrs-full:IntangibleAssetsOtherThanGoodwill"}]
["/*",null,{"$f":"'823180 - Nota. Activos Intang.'!$E$23","v":"Incrementos distintos de los procedentes de combinaciones de negocios, activos intangibles distintos de la plusvalía"},{"$f":"'823180 - Nota. Activos Intang.'!$D$23","v":"ifrs-full:AdditionsOtherThanThroughBusinessCombinationsIntangibleAssetsOtherThanGoodwill"}]
["/*",null,{"$f":"'823180 - Nota. Activos Intang.'!$E$24","v":"Adquisiciones realizadas mediante combinaciones de negocios, activos intangibles distintos a la plusvalía"},{"$f":"'823180 - Nota. Activos Intang.'!$D$24","v":"ifrs-full:AcquisitionsThroughBusinessCombinationsIntangibleAssetsOtherThanGoodwill"}]
["/*",null,{"$f":"'823180 - Nota. Activos Intang.'!$E$25","v":"Amortización, activos intangibles distintos de la plusvalía"},{"$f":"'823180 - Nota. Activos Intang.'!$D$25","v":"ifrs-full:AmortisationIntangibleAssetsOtherThanGoodwill"}]
["/*",null,{"$f":"'823180 - Nota. Activos Intang.'!$E$26","v":"Pérdidas por deterioro de valor reconocidas en el resultado del periodo, activos intangibles distintos de la plusvalía"},{"$f":"'823180 - Nota. Activos Intang.'!$D$26","v":"ifrs-full:ImpairmentLossRecognisedInProfitOrLossIntangibleAssetsOtherThanGoodwill"}]
["/*",null,{"$f":"'823180 - Nota. Activos Intang.'!$E$27","v":"Reversión de pérdidas por deterioro de valor reconocidas en el resultado del periodo, activos intangibles distintos de la plusvalía"},{"$f":"'823180 - Nota. Activos Intang.'!$D$27","v":"ifrs-full:ReversalOfImpairmentLossRecognisedInProfitOrLossIntangibleAssetsOtherThanGoodwill"}]
["/*",null,{"$f":"'823180 - Nota. Activos Intang.'!$E$28","v":"Incrementos (disminuciones) por transferencias y otros cambios, activos intangibles distintos de la plusvalía [resumen]"},{"$f":"'823180 - Nota. Activos Intang.'!$D$28","v":"ifrs-full:IncreaseDecreaseThroughTransfersAndOtherChangesIntangibleAssetsOtherThanGoodwillAbstract"}]
["/*",null,{"$f":"'823180 - Nota. Activos Intang.'!$E$29","v":"Incrementos (disminuciones) por transferencias, activos intangibles distintas de la plusvalía"},{"$f":"'823180 - Nota. Activos Intang.'!$D$29","v":"ifrs-full:IncreaseDecreaseThroughTransfersIntangibleAssetsOtherThanGoodwill"}]
["/*",null,{"$f":"'823180 - Nota. Activos Intang.'!$E$30","v":"Incrementos (disminuciones) por otros cambios, activos intangibles distintos de la plusvalía"},{"$f":"'823180 - Nota. Activos Intang.'!$D$30","v":"ifrs-full:IncreaseDecreaseThroughOtherChangesIntangibleAssetsOtherThanGoodwill"}]
["",null,{"$f":"'823180 - Nota. Activos Intang.'!$E$31","v":"Incremento (disminución) por transferencias y otros cambios, activos intangibles distintos de la plusvalía"},{"$f":"'823180 - Nota. Activos Intang.'!$D$31","v":"ifrs-full:IncreaseDecreaseThroughTransfersAndOtherChangesIntangibleAssetsOtherThanGoodwill"},0,"peso",{"$f":"'823180 - Nota. Activos Intang.'!$K$31","v":0},0,"http://www.xbrl.org/scheme/companyName",{"$f":"Periodos!$C$3","v":"2023-01-01"},{"$f":"Periodos!$C$4","v":"2023-12-31"},{"$f":"'823180 - Nota. Activos Intang.'!$E$15","v":"co-svsp-core:ActivosIntangibles_Eje_G1"},{"$f":"'823180 - Nota. Activos Intang.'!$K$14","v":"co-svsp-core:KnowhowMiembro"}]
["/*",null,{"$f":"'823180 - Nota. Activos Intang.'!$E$32","v":"Disposiciones y retiros de servicio, activos intangibles distintos de la plusvalía [resumen]"},{"$f":"'823180 - Nota. Activos Intang.'!$D$32","v":"ifrs-full:DisposalsAndRetirementsIntangibleAssetsOtherThanGoodwillAbstract"}]
["/*",null,{"$f":"'823180 - Nota. Activos Intang.'!$E$33","v":"Disposiciones, activos intangibles distintos de la plusvalía"},{"$f":"'823180 - Nota. Activos Intang.'!$D$33","v":"ifrs-full:DisposalsIntangibleAssetsOtherThanGoodwill"}]
["/*",null,{"$f":"'823180 - Nota. Activos Intang.'!$E$34","v":"Retiros de servicio, activos intangibles distintos de la plusvalía"},{"$f":"'823180 - Nota. Activos Intang.'!$D$34","v":"ifrs-full:RetirementsIntangibleAssetsOtherThanGoodwill"}]
["",null,{"$f":"'823180 - Nota. Activos Intang.'!$E$35","v":"Disposiciones y retiros de servicio, activos intangibles distintos de la plusvalía"},{"$f":"'823180 - Nota. Activos Intang.'!$D$35","v":"ifrs-full:DisposalsAndRetirementsIntangibleAssetsOtherThanGoodwill"},0,"peso",{"$f":"'823180 - Nota. Activos Intang.'!$K$35","v":0},0,"http://www.xbrl.org/scheme/companyName",{"$f":"Periodos!$C$3","v":"2023-01-01"},{"$f":"Periodos!$C$4","v":"2023-12-31"},{"$f":"'823180 - Nota. Activos Intang.'!$E$15","v":"co-svsp-core:ActivosIntangibles_Eje_G1"},{"$f":"'823180 - Nota. Activos Intang.'!$K$14","v":"co-svsp-core:KnowhowMiembro"}]
["/*",null,{"$f":"'823180 - Nota. Activos Intang.'!$E$36","v":"Disminuciones por clasificar como mantenidos para la venta, activos intangibles distintos de la plusvalía"},{"$f":"'823180 - Nota. Activos Intang.'!$D$36","v":"ifrs-full:DecreaseThroughClassifiedAsHeldForSaleIntangibleAssetsOtherThanGoodwill"}]
["",null,{"$f":"'823180 - Nota. Activos Intang.'!$E$37","v":"Incremento (disminución) en activos intangibles distintos de la plusvalía"},{"$f":"'823180 - Nota. Activos Intang.'!$D$37","v":"ifrs-full:ChangesInIntangibleAssetsOtherThanGoodwill"},0,"peso",{"$f":"'823180 - Nota. Activos Intang.'!$K$37","v":0},0,"http://www.xbrl.org/scheme/companyName",{"$f":"Periodos!$C$3","v":"2023-01-01"},{"$f":"Periodos!$C$4","v":"2023-12-31"},{"$f":"'823180 - Nota. Activos Intang.'!$E$15","v":"co-svsp-core:ActivosIntangibles_Eje_G1"},{"$f":"'823180 - Nota. Activos Intang.'!$K$14","v":"co-svsp-core:KnowhowMiembro"}]
["",null,{"$f":"'823180 - Nota. Activos Intang.'!$E$38","v":"Activos intangibles distintos de la plusvalía al final del periodo"},{"$f":"'823180 - Nota. Activos Intang.'!$D$38","v":"ifrs-full:IntangibleAssetsOtherThanGoodwill"},0,"peso",{"$f":"'823180 - Nota. Activos Intang.'!$K$38","v":0},0,"http://www.xbrl.org/scheme/companyName",null,{"$f":"Periodos!$C$4","v":"2023-12-31"},{"$f":"'823180 - Nota. Activos Intang.'!$E$15","v":"co-svsp-core:ActivosIntangibles_Eje_G1"},{"$f":"'823180 - Nota. Activos Intang.'!$K$14","v":"co-svsp-core:KnowhowMiembro"}]
["/*",null,"--07--"]
["/*",null,{"$f":"'823180 - Nota. Activos Intang.'!$E$16","v":"Información a revelar detallada sobre activos intangibles [partidas de los estados financieros]"},{"$f":"'823180 - Nota. Activos Intang.'!$D$16","v":"ifrs-full:DisclosureOfIntangibleAssetsLineItems"}]
["/*",null,{"$f":"'823180 - Nota. Activos Intang.'!$E$17","v":"Método de amortización, activos intangibles distintos de la plusvalía"},{"$f":"'823180 - Nota. Activos Intang.'!$D$17","v":"ifrs-full:AmortisationMethodIntangibleAssetsOtherThanGoodwill"}]
["/*",null,{"$f":"'823180 - Nota. Activos Intang.'!$E$18","v":"Importe en libros en términos brutos"},{"$f":"'823180 - Nota. Activos Intang.'!$D$18","v":"co-svsp-core:GrossCarryingAmount"}]
["/*",null,{"$f":"'823180 - Nota. Activos Intang.'!$E$19","v":"Depreciación y amortización acumuladas"},{"$f":"'823180 - Nota. Activos Intang.'!$D$19","v":"co-svsp-core:AccumulatedDepreciationAndAmortisation"}]
["/*",null,{"$f":"'823180 - Nota. Activos Intang.'!$E$20","v":"Deterioro de valor acumulado"},{"$f":"'823180 - Nota. Activos Intang.'!$D$20","v":"co-svsp-core:AccumulatedImpairment"}]
["/*",null,{"$f":"'823180 - Nota. Activos Intang.'!$E$21","v":"Conciliación de cambios en activos intangibles distintos de la plusvalía [resumen]"},{"$f":"'823180 - Nota. Activos Intang.'!$D$21","v":"ifrs-full:ReconciliationOfChangesInIntangibleAssetsOtherThanGoodwillAbstract"}]
["/*",null,{"$f":"'823180 - Nota. Activos Intang.'!$E$22","v":"Activos intangibles distintos de la plusvalía al inicio del periodo"},{"$f":"'823180 - Nota. Activos Intang.'!$D$22","v":"ifrs-full:IntangibleAssetsOtherThanGoodwill"}]
["/*",null,{"$f":"'823180 - Nota. Activos Intang.'!$E$23","v":"Incrementos distintos de los procedentes de combinaciones de negocios, activos intangibles distintos de la plusvalía"},{"$f":"'823180 - Nota. Activos Intang.'!$D$23","v":"ifrs-full:AdditionsOtherThanThroughBusinessCombinationsIntangibleAssetsOtherThanGoodwill"}]
["/*",null,{"$f":"'823180 - Nota. Activos Intang.'!$E$24","v":"Adquisiciones realizadas mediante combinaciones de negocios, activos intangibles distintos a la plusvalía"},{"$f":"'823180 - Nota. Activos Intang.'!$D$24","v":"ifrs-full:AcquisitionsThroughBusinessCombinationsIntangibleAssetsOtherThanGoodwill"}]
["/*",null,{"$f":"'823180 - Nota. Activos Intang.'!$E$25","v":"Amortización, activos intangibles distintos de la plusvalía"},{"$f":"'823180 - Nota. Activos Intang.'!$D$25","v":"ifrs-full:AmortisationIntangibleAssetsOtherThanGoodwill"}]
["/*",null,{"$f":"'823180 - Nota. Activos Intang.'!$E$26","v":"Pérdidas por deterioro de valor reconocidas en el resultado del periodo, activos intangibles distintos de la plusvalía"},{"$f":"'823180 - Nota. Activos Intang.'!$D$26","v":"ifrs-full:ImpairmentLossRecognisedInProfitOrLossIntangibleAssetsOtherThanGoodwill"}]
["/*",null,{"$f":"'823180 - Nota. Activos Intang.'!$E$27","v":"Reversión de pérdidas por deterioro de valor reconocidas en el resultado del periodo, activos intangibles distintos de la plusvalía"},{"$f":"'823180 - Nota. Activos Intang.'!$D$27","v":"ifrs-full:ReversalOfImpairmentLossRecognisedInProfitOrLossIntangibleAssetsOtherThanGoodwill"}]
["/*",null,{"$f":"'823180 - Nota. Activos Intang.'!$E$28","v":"Incrementos (disminuciones) por transferencias y otros cambios, activos intangibles distintos de la plusvalía [resumen]"},{"$f":"'823180 - Nota. Activos Intang.'!$D$28","v":"ifrs-full:IncreaseDecreaseThroughTransfersAndOtherChangesIntangibleAssetsOtherThanGoodwillAbstract"}]
["/*",null,{"$f":"'823180 - Nota. Activos Intang.'!$E$29","v":"Incrementos (disminuciones) por transferencias, activos intangibles distintas de la plusvalía"},{"$f":"'823180 - Nota. Activos Intang.'!$D$29","v":"ifrs-full:IncreaseDecreaseThroughTransfersIntangibleAssetsOtherThanGoodwill"}]
["/*",null,{"$f":"'823180 - Nota. Activos Intang.'!$E$30","v":"Incrementos (disminuciones) por otros cambios, activos intangibles distintos de la plusvalía"},{"$f":"'823180 - Nota. Activos Intang.'!$D$30","v":"ifrs-full:IncreaseDecreaseThroughOtherChangesIntangibleAssetsOtherThanGoodwill"}]
[{"$f":"IF(G6560=\"\",\"/*\",\"\")","v":""},null,{"$f":"'823180 - Nota. Activos Intang.'!$E$31","v":"Incremento (disminución) por transferencias y otros cambios, activos intangibles distintos de la plusvalía"},{"$f":"'823180 - Nota. Activos Intang.'!$D$31","v":"ifrs-full:IncreaseDecreaseThroughTransfersAndOtherChangesIntangibleAssetsOtherThanGoodwill"},0,"peso",{"$f":"'823180 - Nota. Activos Intang.'!$L$31","v":0},0,"http://www.xbrl.org/scheme/companyName",{"$f":"Periodos!$C$3","v":"2023-01-01"},{"$f":"Periodos!$C$4","v":"2023-12-31"},{"$f":"'823180 - Nota. Activos Intang.'!$E$15","v":"co-svsp-core:ActivosIntangibles_Eje_G1"},{"$f":"'823180 - Nota. Activos Intang.'!$L$14","v":"ifrs-full:IntangibleExplorationAndEvaluationAssetsMember"}]
["/*",null,{"$f":"'823180 - Nota. Activos Intang.'!$E$32","v":"Disposiciones y retiros de servicio, activos intangibles distintos de la plusvalía [resumen]"},{"$f":"'823180 - Nota. Activos Intang.'!$D$32","v":"ifrs-full:DisposalsAndRetirementsIntangibleAssetsOtherThanGoodwillAbstract"}]
["/*",null,{"$f":"'823180 - Nota. Activos Intang.'!$E$33","v":"Disposiciones, activos intangibles distintos de la plusvalía"},{"$f":"'823180 - Nota. Activos Intang.'!$D$33","v":"ifrs-full:DisposalsIntangibleAssetsOtherThanGoodwill"}]
["/*",null,{"$f":"'823180 - Nota. Activos Intang.'!$E$34","v":"Retiros de servicio, activos intangibles distintos de la plusvalía"},{"$f":"'823180 - Nota. Activos Intang.'!$D$34","v":"ifrs-full:RetirementsIntangibleAssetsOtherThanGoodwill"}]
["",null,{"$f":"'823180 - Nota. Activos Intang.'!$E$35","v":"Disposiciones y retiros de servicio, activos intangibles distintos de la plusvalía"},{"$f":"'823180 - Nota. Activos Intang.'!$D$35","v":"ifrs-full:DisposalsAndRetirementsIntangibleAssetsOtherThanGoodwill"},0,"peso",{"$f":"'823180 - Nota. Activos Intang.'!$L$35","v":0},0,"http://www.xbrl.org/scheme/companyName",{"$f":"Periodos!$C$3","v":"2023-01-01"},{"$f":"Periodos!$C$4","v":"2023-12-31"},{"$f":"'823180 - Nota. Activos Intang.'!$E$15","v":"co-svsp-core:ActivosIntangibles_Eje_G1"},{"$f":"'823180 - Nota. Activos Intang.'!$L$14","v":"ifrs-full:IntangibleExplorationAndEvaluationAssetsMember"}]
["/*",null,{"$f":"'823180 - Nota. Activos Intang.'!$E$36","v":"Disminuciones por clasificar como mantenidos para la venta, activos intangibles distintos de la plusvalía"},{"$f":"'823180 - Nota. Activos Intang.'!$D$36","v":"ifrs-full:DecreaseThroughClassifiedAsHeldForSaleIntangibleAssetsOtherThanGoodwill"}]
["",null,{"$f":"'823180 - Nota. Activos Intang.'!$E$37","v":"Incremento (disminución) en activos intangibles distintos de la plusvalía"},{"$f":"'823180 - Nota. Activos Intang.'!$D$37","v":"ifrs-full:ChangesInIntangibleAssetsOtherThanGoodwill"},0,"peso",{"$f":"'823180 - Nota. Activos Intang.'!$L$37","v":0},0,"http://www.xbrl.org/scheme/companyName",{"$f":"Periodos!$C$3","v":"2023-01-01"},{"$f":"Periodos!$C$4","v":"2023-12-31"},{"$f":"'823180 - Nota. Activos Intang.'!$E$15","v":"co-svsp-core:ActivosIntangibles_Eje_G1"},{"$f":"'823180 - Nota. Activos Intang.'!$L$14","v":"ifrs-full:IntangibleExplorationAndEvaluationAssetsMember"}]
["",null,{"$f":"'823180 - Nota. Activos Intang.'!$E$38","v":"Activos intangibles distintos de la plusvalía al final del periodo"},{"$f":"'823180 - Nota. Activos Intang.'!$D$38","v":"ifrs-full:IntangibleAssetsOtherThanGoodwill"},0,"peso",{"$f":"'823180 - Nota. Activos Intang.'!$L$38","v":0},0,"http://www.xbrl.org/scheme/companyName",null,{"$f":"Periodos!$C$4","v":"2023-12-31"},{"$f":"'823180 - Nota. Activos Intang.'!$E$15","v":"co-svsp-core:ActivosIntangibles_Eje_G1"},{"$f":"'823180 - Nota. Activos Intang.'!$L$14","v":"ifrs-full:IntangibleExplorationAndEvaluationAssetsMember"}]
["/*",null,"--08--"]
["/*",null,{"$f":"'823180 - Nota. Activos Intang.'!$E$16","v":"Información a revelar detallada sobre activos intangibles [partidas de los estados financieros]"},{"$f":"'823180 - Nota. Activos Intang.'!$D$16","v":"ifrs-full:DisclosureOfIntangibleAssetsLineItems"}]
["/*",null,{"$f":"'823180 - Nota. Activos Intang.'!$E$17","v":"Método de amortización, activos intangibles distintos de la plusvalía"},{"$f":"'823180 - Nota. Activos Intang.'!$D$17","v":"ifrs-full:AmortisationMethodIntangibleAssetsOtherThanGoodwill"}]
["/*",null,{"$f":"'823180 - Nota. Activos Intang.'!$E$18","v":"Importe en libros en términos brutos"},{"$f":"'823180 - Nota. Activos Intang.'!$D$18","v":"co-svsp-core:GrossCarryingAmount"}]
["/*",null,{"$f":"'823180 - Nota. Activos Intang.'!$E$19","v":"Depreciación y amortización acumuladas"},{"$f":"'823180 - Nota. Activos Intang.'!$D$19","v":"co-svsp-core:AccumulatedDepreciationAndAmortisation"}]
["/*",null,{"$f":"'823180 - Nota. Activos Intang.'!$E$20","v":"Deterioro de valor acumulado"},{"$f":"'823180 - Nota. Activos Intang.'!$D$20","v":"co-svsp-core:AccumulatedImpairment"}]
["/*",null,{"$f":"'823180 - Nota. Activos Intang.'!$E$21","v":"Conciliación de cambios en activos intangibles distintos de la plusvalía [resumen]"},{"$f":"'823180 - Nota. Activos Intang.'!$D$21","v":"ifrs-full:ReconciliationOfChangesInIntangibleAssetsOtherThanGoodwillAbstract"}]
["/*",null,{"$f":"'823180 - Nota. Activos Intang.'!$E$22","v":"Activos intangibles distintos de la plusvalía al inicio del periodo"},{"$f":"'823180 - Nota. Activos Intang.'!$D$22","v":"ifrs-full:IntangibleAssetsOtherThanGoodwill"}]
["/*",null,{"$f":"'823180 - Nota. Activos Intang.'!$E$23","v":"Incrementos distintos de los procedentes de combinaciones de negocios, activos intangibles distintos de la plusvalía"},{"$f":"'823180 - Nota. Activos Intang.'!$D$23","v":"ifrs-full:AdditionsOtherThanThroughBusinessCombinationsIntangibleAssetsOtherThanGoodwill"}]
["/*",null,{"$f":"'823180 - Nota. Activos Intang.'!$E$24","v":"Adquisiciones realizadas mediante combinaciones de negocios, activos intangibles distintos a la plusvalía"},{"$f":"'823180 - Nota. Activos Intang.'!$D$24","v":"ifrs-full:AcquisitionsThroughBusinessCombinationsIntangibleAssetsOtherThanGoodwill"}]
["/*",null,{"$f":"'823180 - Nota. Activos Intang.'!$E$25","v":"Amortización, activos intangibles distintos de la plusvalía"},{"$f":"'823180 - Nota. Activos Intang.'!$D$25","v":"ifrs-full:AmortisationIntangibleAssetsOtherThanGoodwill"}]
["/*",null,{"$f":"'823180 - Nota. Activos Intang.'!$E$26","v":"Pérdidas por deterioro de valor reconocidas en el resultado del periodo, activos intangibles distintos de la plusvalía"},{"$f":"'823180 - Nota. Activos Intang.'!$D$26","v":"ifrs-full:ImpairmentLossRecognisedInProfitOrLossIntangibleAssetsOtherThanGoodwill"}]
["/*",null,{"$f":"'823180 - Nota. Activos Intang.'!$E$27","v":"Reversión de pérdidas por deterioro de valor reconocidas en el resultado del periodo, activos intangibles distintos de la plusvalía"},{"$f":"'823180 - Nota. Activos Intang.'!$D$27","v":"ifrs-full:ReversalOfImpairmentLossRecognisedInProfitOrLossIntangibleAssetsOtherThanGoodwill"}]
["/*",null,{"$f":"'823180 - Nota. Activos Intang.'!$E$28","v":"Incrementos (disminuciones) por transferencias y otros cambios, activos intangibles distintos de la plusvalía [resumen]"},{"$f":"'823180 - Nota. Activos Intang.'!$D$28","v":"ifrs-full:IncreaseDecreaseThroughTransfersAndOtherChangesIntangibleAssetsOtherThanGoodwillAbstract"}]
["/*",null,{"$f":"'823180 - Nota. Activos Intang.'!$E$29","v":"Incrementos (disminuciones) por transferencias, activos intangibles distintas de la plusvalía"},{"$f":"'823180 - Nota. Activos Intang.'!$D$29","v":"ifrs-full:IncreaseDecreaseThroughTransfersIntangibleAssetsOtherThanGoodwill"}]
["/*",null,{"$f":"'823180 - Nota. Activos Intang.'!$E$30","v":"Incrementos (disminuciones) por otros cambios, activos intangibles distintos de la plusvalía"},{"$f":"'823180 - Nota. Activos Intang.'!$D$30","v":"ifrs-full:IncreaseDecreaseThroughOtherChangesIntangibleAssetsOtherThanGoodwill"}]
["",null,{"$f":"'823180 - Nota. Activos Intang.'!$E$31","v":"Incremento (disminución) por transferencias y otros cambios, activos intangibles distintos de la plusvalía"},{"$f":"'823180 - Nota. Activos Intang.'!$D$31","v":"ifrs-full:IncreaseDecreaseThroughTransfersAndOtherChangesIntangibleAssetsOtherThanGoodwill"},0,"peso",{"$f":"'823180 - Nota. Activos Intang.'!$M$31","v":0},0,"http://www.xbrl.org/scheme/companyName",{"$f":"Periodos!$C$3","v":"2023-01-01"},{"$f":"Periodos!$C$4","v":"2023-12-31"},{"$f":"'823180 - Nota. Activos Intang.'!$E$15","v":"co-svsp-core:ActivosIntangibles_Eje_G1"},{"$f":"'823180 - Nota. Activos Intang.'!$M$14","v":"co-svsp-core:ServiceConcessionArrangementsClassifiedAsIntangibleAssetsMember"}]
["/*",null,{"$f":"'823180 - Nota. Activos Intang.'!$E$32","v":"Disposiciones y retiros de servicio, activos intangibles distintos de la plusvalía [resumen]"},{"$f":"'823180 - Nota. Activos Intang.'!$D$32","v":"ifrs-full:DisposalsAndRetirementsIntangibleAssetsOtherThanGoodwillAbstract"}]
["/*",null,{"$f":"'823180 - Nota. Activos Intang.'!$E$33","v":"Disposiciones, activos intangibles distintos de la plusvalía"},{"$f":"'823180 - Nota. Activos Intang.'!$D$33","v":"ifrs-full:DisposalsIntangibleAssetsOtherThanGoodwill"}]
["/*",null,{"$f":"'823180 - Nota. Activos Intang.'!$E$34","v":"Retiros de servicio, activos intangibles distintos de la plusvalía"},{"$f":"'823180 - Nota. Activos Intang.'!$D$34","v":"ifrs-full:RetirementsIntangibleAssetsOtherThanGoodwill"}]
["",null,{"$f":"'823180 - Nota. Activos Intang.'!$E$35","v":"Disposiciones y retiros de servicio, activos intangibles distintos de la plusvalía"},{"$f":"'823180 - Nota. Activos Intang.'!$D$35","v":"ifrs-full:DisposalsAndRetirementsIntangibleAssetsOtherThanGoodwill"},0,"peso",{"$f":"'823180 - Nota. Activos Intang.'!$M$35","v":0},0,"http://www.xbrl.org/scheme/companyName",{"$f":"Periodos!$C$3","v":"2023-01-01"},{"$f":"Periodos!$C$4","v":"2023-12-31"},{"$f":"'823180 - Nota. Activos Intang.'!$E$15","v":"co-svsp-core:ActivosIntangibles_Eje_G1"},{"$f":"'823180 - Nota. Activos Intang.'!$M$14","v":"co-svsp-core:ServiceConcessionArrangementsClassifiedAsIntangibleAssetsMember"}]
["/*",null,{"$f":"'823180 - Nota. Activos Intang.'!$E$36","v":"Disminuciones por clasificar como mantenidos para la venta, activos intangibles distintos de la plusvalía"},{"$f":"'823180 - Nota. Activos Intang.'!$D$36","v":"ifrs-full:DecreaseThroughClassifiedAsHeldForSaleIntangibleAssetsOtherThanGoodwill"}]
["",null,{"$f":"'823180 - Nota. Activos Intang.'!$E$37","v":"Incremento (disminución) en activos intangibles distintos de la plusvalía"},{"$f":"'823180 - Nota. Activos Intang.'!$D$37","v":"ifrs-full:ChangesInIntangibleAssetsOtherThanGoodwill"},0,"peso",{"$f":"'823180 - Nota. Activos Intang.'!$M$37","v":0},0,"http://www.xbrl.org/scheme/companyName",{"$f":"Periodos!$C$3","v":"2023-01-01"},{"$f":"Periodos!$C$4","v":"2023-12-31"},{"$f":"'823180 - Nota. Activos Intang.'!$E$15","v":"co-svsp-core:ActivosIntangibles_Eje_G1"},{"$f":"'823180 - Nota. Activos Intang.'!$M$14","v":"co-svsp-core:ServiceConcessionArrangementsClassifiedAsIntangibleAssetsMember"}]
["",null,{"$f":"'823180 - Nota. Activos Intang.'!$E$38","v":"Activos intangibles distintos de la plusvalía al final del periodo"},{"$f":"'823180 - Nota. Activos Intang.'!$D$38","v":"ifrs-full:IntangibleAssetsOtherThanGoodwill"},0,"peso",{"$f":"'823180 - Nota. Activos Intang.'!$M$38","v":0},0,"http://www.xbrl.org/scheme/companyName",null,{"$f":"Periodos!$C$4","v":"2023-12-31"},{"$f":"'823180 - Nota. Activos Intang.'!$E$15","v":"co-svsp-core:ActivosIntangibles_Eje_G1"},{"$f":"'823180 - Nota. Activos Intang.'!$M$14","v":"co-svsp-core:ServiceConcessionArrangementsClassifiedAsIntangibleAssetsMember"}]
["/*",null,"--09--"]
["/*",null,{"$f":"'823180 - Nota. Activos Intang.'!$E$16","v":"Información a revelar detallada sobre activos intangibles [partidas de los estados financieros]"},{"$f":"'823180 - Nota. Activos Intang.'!$D$16","v":"ifrs-full:DisclosureOfIntangibleAssetsLineItems"}]
["/*",null,{"$f":"'823180 - Nota. Activos Intang.'!$E$17","v":"Método de amortización, activos intangibles distintos de la plusvalía"},{"$f":"'823180 - Nota. Activos Intang.'!$D$17","v":"ifrs-full:AmortisationMethodIntangibleAssetsOtherThanGoodwill"}]
["/*",null,{"$f":"'823180 - Nota. Activos Intang.'!$E$18","v":"Importe en libros en términos brutos"},{"$f":"'823180 - Nota. Activos Intang.'!$D$18","v":"co-svsp-core:GrossCarryingAmount"}]
["/*",null,{"$f":"'823180 - Nota. Activos Intang.'!$E$19","v":"Depreciación y amortización acumuladas"},{"$f":"'823180 - Nota. Activos Intang.'!$D$19","v":"co-svsp-core:AccumulatedDepreciationAndAmortisation"}]
["/*",null,{"$f":"'823180 - Nota. Activos Intang.'!$E$20","v":"Deterioro de valor acumulado"},{"$f":"'823180 - Nota. Activos Intang.'!$D$20","v":"co-svsp-core:AccumulatedImpairment"}]
["/*",null,{"$f":"'823180 - Nota. Activos Intang.'!$E$21","v":"Conciliación de cambios en activos intangibles distintos de la plusvalía [resumen]"},{"$f":"'823180 - Nota. Activos Intang.'!$D$21","v":"ifrs-full:ReconciliationOfChangesInIntangibleAssetsOtherThanGoodwillAbstract"}]
["/*",null,{"$f":"'823180 - Nota. Activos Intang.'!$E$22","v":"Activos intangibles distintos de la plusvalía al inicio del periodo"},{"$f":"'823180 - Nota. Activos Intang.'!$D$22","v":"ifrs-full:IntangibleAssetsOtherThanGoodwill"}]
["/*",null,{"$f":"'823180 - Nota. Activos Intang.'!$E$23","v":"Incrementos distintos de los procedentes de combinaciones de negocios, activos intangibles distintos de la plusvalía"},{"$f":"'823180 - Nota. Activos Intang.'!$D$23","v":"ifrs-full:AdditionsOtherThanThroughBusinessCombinationsIntangibleAssetsOtherThanGoodwill"}]
["/*",null,{"$f":"'823180 - Nota. Activos Intang.'!$E$24","v":"Adquisiciones realizadas mediante combinaciones de negocios, activos intangibles distintos a la plusvalía"},{"$f":"'823180 - Nota. Activos Intang.'!$D$24","v":"ifrs-full:AcquisitionsThroughBusinessCombinationsIntangibleAssetsOtherThanGoodwill"}]
["/*",null,{"$f":"'823180 - Nota. Activos Intang.'!$E$25","v":"Amortización, activos intangibles distintos de la plusvalía"},{"$f":"'823180 - Nota. Activos Intang.'!$D$25","v":"ifrs-full:AmortisationIntangibleAssetsOtherThanGoodwill"}]
["/*",null,{"$f":"'823180 - Nota. Activos Intang.'!$E$26","v":"Pérdidas por deterioro de valor reconocidas en el resultado del periodo, activos intangibles distintos de la plusvalía"},{"$f":"'823180 - Nota. Activos Intang.'!$D$26","v":"ifrs-full:ImpairmentLossRecognisedInProfitOrLossIntangibleAssetsOtherThanGoodwill"}]
["/*",null,{"$f":"'823180 - Nota. Activos Intang.'!$E$27","v":"Reversión de pérdidas por deterioro de valor reconocidas en el resultado del periodo, activos intangibles distintos de la plusvalía"},{"$f":"'823180 - Nota. Activos Intang.'!$D$27","v":"ifrs-full:ReversalOfImpairmentLossRecognisedInProfitOrLossIntangibleAssetsOtherThanGoodwill"}]
["/*",null,{"$f":"'823180 - Nota. Activos Intang.'!$E$28","v":"Incrementos (disminuciones) por transferencias y otros cambios, activos intangibles distintos de la plusvalía [resumen]"},{"$f":"'823180 - Nota. Activos Intang.'!$D$28","v":"ifrs-full:IncreaseDecreaseThroughTransfersAndOtherChangesIntangibleAssetsOtherThanGoodwillAbstract"}]
["/*",null,{"$f":"'823180 - Nota. Activos Intang.'!$E$29","v":"Incrementos (disminuciones) por transferencias, activos intangibles distintas de la plusvalía"},{"$f":"'823180 - Nota. Activos Intang.'!$D$29","v":"ifrs-full:IncreaseDecreaseThroughTransfersIntangibleAssetsOtherThanGoodwill"}]
["/*",null,{"$f":"'823180 - Nota. Activos Intang.'!$E$30","v":"Incrementos (disminuciones) por otros cambios, activos intangibles distintos de la plusvalía"},{"$f":"'823180 - Nota. Activos Intang.'!$D$30","v":"ifrs-full:IncreaseDecreaseThroughOtherChangesIntangibleAssetsOtherThanGoodwill"}]
["",null,{"$f":"'823180 - Nota. Activos Intang.'!$E$31","v":"Incremento (disminución) por transferencias y otros cambios, activos intangibles distintos de la plusvalía"},{"$f":"'823180 - Nota. Activos Intang.'!$D$31","v":"ifrs-full:IncreaseDecreaseThroughTransfersAndOtherChangesIntangibleAssetsOtherThanGoodwill"},0,"peso",{"$f":"'823180 - Nota. Activos Intang.'!$N$31","v":0},0,"http://www.xbrl.org/scheme/companyName",{"$f":"Periodos!$C$3","v":"2023-01-01"},{"$f":"Periodos!$C$4","v":"2023-12-31"},{"$f":"'823180 - Nota. Activos Intang.'!$E$15","v":"co-svsp-core:ActivosIntangibles_Eje_G1"},{"$f":"'823180 - Nota. Activos Intang.'!$N$14","v":"ifrs-full:OtherIntangibleAssetsMember"}]
["/*",null,{"$f":"'823180 - Nota. Activos Intang.'!$E$32","v":"Disposiciones y retiros de servicio, activos intangibles distintos de la plusvalía [resumen]"},{"$f":"'823180 - Nota. Activos Intang.'!$D$32","v":"ifrs-full:DisposalsAndRetirementsIntangibleAssetsOtherThanGoodwillAbstract"}]
["/*",null,{"$f":"'823180 - Nota. Activos Intang.'!$E$33","v":"Disposiciones, activos intangibles distintos de la plusvalía"},{"$f":"'823180 - Nota. Activos Intang.'!$D$33","v":"ifrs-full:DisposalsIntangibleAssetsOtherThanGoodwill"}]
["/*",null,{"$f":"'823180 - Nota. Activos Intang.'!$E$34","v":"Retiros de servicio, activos intangibles distintos de la plusvalía"},{"$f":"'823180 - Nota. Activos Intang.'!$D$34","v":"ifrs-full:RetirementsIntangibleAssetsOtherThanGoodwill"}]
["",null,{"$f":"'823180 - Nota. Activos Intang.'!$E$35","v":"Disposiciones y retiros de servicio, activos intangibles distintos de la plusvalía"},{"$f":"'823180 - Nota. Activos Intang.'!$D$35","v":"ifrs-full:DisposalsAndRetirementsIntangibleAssetsOtherThanGoodwill"},0,"peso",{"$f":"'823180 - Nota. Activos Intang.'!$N$35","v":0},0,"http://www.xbrl.org/scheme/companyName",{"$f":"Periodos!$C$3","v":"2023-01-01"},{"$f":"Periodos!$C$4","v":"2023-12-31"},{"$f":"'823180 - Nota. Activos Intang.'!$E$15","v":"co-svsp-core:ActivosIntangibles_Eje_G1"},{"$f":"'823180 - Nota. Activos Intang.'!$N$14","v":"ifrs-full:OtherIntangibleAssetsMember"}]
["/*",null,{"$f":"'823180 - Nota. Activos Intang.'!$E$36","v":"Disminuciones por clasificar como mantenidos para la venta, activos intangibles distintos de la plusvalía"},{"$f":"'823180 - Nota. Activos Intang.'!$D$36","v":"ifrs-full:DecreaseThroughClassifiedAsHeldForSaleIntangibleAssetsOtherThanGoodwill"}]
["",null,{"$f":"'823180 - Nota. Activos Intang.'!$E$37","v":"Incremento (disminución) en activos intangibles distintos de la plusvalía"},{"$f":"'823180 - Nota. Activos Intang.'!$D$37","v":"ifrs-full:ChangesInIntangibleAssetsOtherThanGoodwill"},0,"peso",{"$f":"'823180 - Nota. Activos Intang.'!$N$37","v":0},0,"http://www.xbrl.org/scheme/companyName",{"$f":"Periodos!$C$3","v":"2023-01-01"},{"$f":"Periodos!$C$4","v":"2023-12-31"},{"$f":"'823180 - Nota. Activos Intang.'!$E$15","v":"co-svsp-core:ActivosIntangibles_Eje_G1"},{"$f":"'823180 - Nota. Activos Intang.'!$N$14","v":"ifrs-full:OtherIntangibleAssetsMember"}]
["",null,{"$f":"'823180 - Nota. Activos Intang.'!$E$38","v":"Activos intangibles distintos de la plusvalía al final del periodo"},{"$f":"'823180 - Nota. Activos Intang.'!$D$38","v":"ifrs-full:IntangibleAssetsOtherThanGoodwill"},0,"peso",{"$f":"'823180 - Nota. Activos Intang.'!$N$38","v":0},0,"http://www.xbrl.org/scheme/companyName",null,{"$f":"Periodos!$C$4","v":"2023-12-31"},{"$f":"'823180 - Nota. Activos Intang.'!$E$15","v":"co-svsp-core:ActivosIntangibles_Eje_G1"},{"$f":"'823180 - Nota. Activos Intang.'!$N$14","v":"ifrs-full:OtherIntangibleAssetsMember"}]
["/*",null,"--10--"]
["/*",null,{"$f":"'823180 - Nota. Activos Intang.'!$E$16","v":"Información a revelar detallada sobre activos intangibles [partidas de los estados financieros]"},{"$f":"'823180 - Nota. Activos Intang.'!$D$16","v":"ifrs-full:DisclosureOfIntangibleAssetsLineItems"}]
["/*",null,{"$f":"'823180 - Nota. Activos Intang.'!$E$17","v":"Método de amortización, activos intangibles distintos de la plusvalía"},{"$f":"'823180 - Nota. Activos Intang.'!$D$17","v":"ifrs-full:AmortisationMethodIntangibleAssetsOtherThanGoodwill"}]
["",null,{"$f":"'823180 - Nota. Activos Intang.'!$E$18","v":"Importe en libros en términos brutos"},{"$f":"'823180 - Nota. Activos Intang.'!$D$18","v":"co-svsp-core:GrossCarryingAmount"},0,"peso",{"$f":"'823180 - Nota. Activos Intang.'!$O$18","v":0},0,"http://www.xbrl.org/scheme/companyName",{"$f":"Periodos!$C$3","v":"2023-01-01"},{"$f":"Periodos!$C$4","v":"2023-12-31"}]
["",null,{"$f":"'823180 - Nota. Activos Intang.'!$E$19","v":"Depreciación y amortización acumuladas"},{"$f":"'823180 - Nota. Activos Intang.'!$D$19","v":"co-svsp-core:AccumulatedDepreciationAndAmortisation"},0,"peso",{"$f":"'823180 - Nota. Activos Intang.'!$O$19","v":0},0,"http://www.xbrl.org/scheme/companyName",{"$f":"Periodos!$C$3","v":"2023-01-01"},{"$f":"Periodos!$C$4","v":"2023-12-31"}]
["",null,{"$f":"'823180 - Nota. Activos Intang.'!$E$20","v":"Deterioro de valor acumulado"},{"$f":"'823180 - Nota. Activos Intang.'!$D$20","v":"co-svsp-core:AccumulatedImpairment"},0,"peso",{"$f":"'823180 - Nota. Activos Intang.'!$O$20","v":0},0,"http://www.xbrl.org/scheme/companyName",{"$f":"Periodos!$C$3","v":"2023-01-01"},{"$f":"Periodos!$C$4","v":"2023-12-31"}]
["/*",null,{"$f":"'823180 - Nota. Activos Intang.'!$E$21","v":"Conciliación de cambios en activos intangibles distintos de la plusvalía [resumen]"},{"$f":"'823180 - Nota. Activos Intang.'!$D$21","v":"ifrs-full:ReconciliationOfChangesInIntangibleAssetsOtherThanGoodwillAbstract"}]
["/*",null,{"$f":"'823180 - Nota. Activos Intang.'!$E$22","v":"Activos intangibles distintos de la plusvalía al inicio del periodo"},{"$f":"'823180 - Nota. Activos Intang.'!$D$22","v":"ifrs-full:IntangibleAssetsOtherThanGoodwill"}]
[{"$f":"IF(G6624=\"\",\"/*\",\"\")","v":""},null,{"$f":"'823180 - Nota. Activos Intang.'!$E$23","v":"Incrementos distintos de los procedentes de combinaciones de negocios, activos intangibles distintos de la plusvalía"},{"$f":"'823180 - Nota. Activos Intang.'!$D$23","v":"ifrs-full:AdditionsOtherThanThroughBusinessCombinationsIntangibleAssetsOtherThanGoodwill"},0,"peso",{"$f":"'823180 - Nota. Activos Intang.'!$O$23","v":0},0,"http://www.xbrl.org/scheme/companyName",{"$f":"Periodos!$C$3","v":"2023-01-01"},{"$f":"Periodos!$C$4","v":"2023-12-31"}]
["",null,{"$f":"'823180 - Nota. Activos Intang.'!$E$24","v":"Adquisiciones realizadas mediante combinaciones de negocios, activos intangibles distintos a la plusvalía"},{"$f":"'823180 - Nota. Activos Intang.'!$D$24","v":"ifrs-full:AcquisitionsThroughBusinessCombinationsIntangibleAssetsOtherThanGoodwill"},0,"peso",{"$f":"'823180 - Nota. Activos Intang.'!$O$24","v":0},0,"http://www.xbrl.org/scheme/companyName",{"$f":"Periodos!$C$3","v":"2023-01-01"},{"$f":"Periodos!$C$4","v":"2023-12-31"}]
["",null,{"$f":"'823180 - Nota. Activos Intang.'!$E$25","v":"Amortización, activos intangibles distintos de la plusvalía"},{"$f":"'823180 - Nota. Activos Intang.'!$D$25","v":"ifrs-full:AmortisationIntangibleAssetsOtherThanGoodwill"},0,"peso",{"$f":"'823180 - Nota. Activos Intang.'!$O$25","v":0},0,"http://www.xbrl.org/scheme/companyName",{"$f":"Periodos!$C$3","v":"2023-01-01"},{"$f":"Periodos!$C$4","v":"2023-12-31"}]
["",null,{"$f":"'823180 - Nota. Activos Intang.'!$E$26","v":"Pérdidas por deterioro de valor reconocidas en el resultado del periodo, activos intangibles distintos de la plusvalía"},{"$f":"'823180 - Nota. Activos Intang.'!$D$26","v":"ifrs-full:ImpairmentLossRecognisedInProfitOrLossIntangibleAssetsOtherThanGoodwill"},0,"peso",{"$f":"'823180 - Nota. Activos Intang.'!$O$26","v":0},0,"http://www.xbrl.org/scheme/companyName",{"$f":"Periodos!$C$3","v":"2023-01-01"},{"$f":"Periodos!$C$4","v":"2023-12-31"}]
["",null,{"$f":"'823180 - Nota. Activos Intang.'!$E$27","v":"Reversión de pérdidas por deterioro de valor reconocidas en el resultado del periodo, activos intangibles distintos de la plusvalía"},{"$f":"'823180 - Nota. Activos Intang.'!$D$27","v":"ifrs-full:ReversalOfImpairmentLossRecognisedInProfitOrLossIntangibleAssetsOtherThanGoodwill"},0,"peso",{"$f":"'823180 - Nota. Activos Intang.'!$O$27","v":0},0,"http://www.xbrl.org/scheme/companyName",{"$f":"Periodos!$C$3","v":"2023-01-01"},{"$f":"Periodos!$C$4","v":"2023-12-31"}]
["/*",null,{"$f":"'823180 - Nota. Activos Intang.'!$E$28","v":"Incrementos (disminuciones) por transferencias y otros cambios, activos intangibles distintos de la plusvalía [resumen]"},{"$f":"'823180 - Nota. Activos Intang.'!$D$28","v":"ifrs-full:IncreaseDecreaseThroughTransfersAndOtherChangesIntangibleAssetsOtherThanGoodwillAbstract"}]
["",null,{"$f":"'823180 - Nota. Activos Intang.'!$E$29","v":"Incrementos (disminuciones) por transferencias, activos intangibles distintas de la plusvalía"},{"$f":"'823180 - Nota. Activos Intang.'!$D$29","v":"ifrs-full:IncreaseDecreaseThroughTransfersIntangibleAssetsOtherThanGoodwill"},0,"peso",{"$f":"'823180 - Nota. Activos Intang.'!$O$29","v":0},0,"http://www.xbrl.org/scheme/companyName",{"$f":"Periodos!$C$3","v":"2023-01-01"},{"$f":"Periodos!$C$4","v":"2023-12-31"}]
["",null,{"$f":"'823180 - Nota. Activos Intang.'!$E$30","v":"Incrementos (disminuciones) por otros cambios, activos intangibles distintos de la plusvalía"},{"$f":"'823180 - Nota. Activos Intang.'!$D$30","v":"ifrs-full:IncreaseDecreaseThroughOtherChangesIntangibleAssetsOtherThanGoodwill"},0,"peso",{"$f":"'823180 - Nota. Activos Intang.'!$O$30","v":0},0,"http://www.xbrl.org/scheme/companyName",{"$f":"Periodos!$C$3","v":"2023-01-01"},{"$f":"Periodos!$C$4","v":"2023-12-31"}]
["",null,{"$f":"'823180 - Nota. Activos Intang.'!$E$31","v":"Incremento (disminución) por transferencias y otros cambios, activos intangibles distintos de la plusvalía"},{"$f":"'823180 - Nota. Activos Intang.'!$D$31","v":"ifrs-full:IncreaseDecreaseThroughTransfersAndOtherChangesIntangibleAssetsOtherThanGoodwill"},0,"peso",{"$f":"'823180 - Nota. Activos Intang.'!$O$31","v":0},0,"http://www.xbrl.org/scheme/companyName",{"$f":"Periodos!$C$3","v":"2023-01-01"},{"$f":"Periodos!$C$4","v":"2023-12-31"}]
["/*",null,{"$f":"'823180 - Nota. Activos Intang.'!$E$32","v":"Disposiciones y retiros de servicio, activos intangibles distintos de la plusvalía [resumen]"},{"$f":"'823180 - Nota. Activos Intang.'!$D$32","v":"ifrs-full:DisposalsAndRetirementsIntangibleAssetsOtherThanGoodwillAbstract"}]
["",null,{"$f":"'823180 - Nota. Activos Intang.'!$E$33","v":"Disposiciones, activos intangibles distintos de la plusvalía"},{"$f":"'823180 - Nota. Activos Intang.'!$D$33","v":"ifrs-full:DisposalsIntangibleAssetsOtherThanGoodwill"},0,"peso",{"$f":"'823180 - Nota. Activos Intang.'!$O$33","v":0},0,"http://www.xbrl.org/scheme/companyName",{"$f":"Periodos!$C$3","v":"2023-01-01"},{"$f":"Periodos!$C$4","v":"2023-12-31"}]
["",null,{"$f":"'823180 - Nota. Activos Intang.'!$E$34","v":"Retiros de servicio, activos intangibles distintos de la plusvalía"},{"$f":"'823180 - Nota. Activos Intang.'!$D$34","v":"ifrs-full:RetirementsIntangibleAssetsOtherThanGoodwill"},0,"peso",{"$f":"'823180 - Nota. Activos Intang.'!$O$34","v":0},0,"http://www.xbrl.org/scheme/companyName",{"$f":"Periodos!$C$3","v":"2023-01-01"},{"$f":"Periodos!$C$4","v":"2023-12-31"}]
["",null,{"$f":"'823180 - Nota. Activos Intang.'!$E$35","v":"Disposiciones y retiros de servicio, activos intangibles distintos de la plusvalía"},{"$f":"'823180 - Nota. Activos Intang.'!$D$35","v":"ifrs-full:DisposalsAndRetirementsIntangibleAssetsOtherThanGoodwill"},0,"peso",{"$f":"'823180 - Nota. Activos Intang.'!$O$35","v":0},0,"http://www.xbrl.org/scheme/companyName",{"$f":"Periodos!$C$3","v":"2023-01-01"},{"$f":"Periodos!$C$4","v":"2023-12-31"}]
["",null,{"$f":"'823180 - Nota. Activos Intang.'!$E$36","v":"Disminuciones por clasificar como mantenidos para la venta, activos intangibles distintos de la plusvalía"},{"$f":"'823180 - Nota. Activos Intang.'!$D$36","v":"ifrs-full:DecreaseThroughClassifiedAsHeldForSaleIntangibleAssetsOtherThanGoodwill"},0,"peso",{"$f":"'823180 - Nota. Activos Intang.'!$O$36","v":0},0,"http://www.xbrl.org/scheme/companyName",{"$f":"Periodos!$C$3","v":"2023-01-01"},{"$f":"Periodos!$C$4","v":"2023-12-31"}]
["",null,{"$f":"'823180 - Nota. Activos Intang.'!$E$37","v":"Incremento (disminución) en activos intangibles distintos de la plusvalía"},{"$f":"'823180 - Nota. Activos Intang.'!$D$37","v":"ifrs-full:ChangesInIntangibleAssetsOtherThanGoodwill"},0,"peso",{"$f":"'823180 - Nota. Activos Intang.'!$O$37","v":0},0,"http://www.xbrl.org/scheme/companyName",{"$f":"Periodos!$C$3","v":"2023-01-01"},{"$f":"Periodos!$C$4","v":"2023-12-31"}]
["",null,{"$f":"'823180 - Nota. Activos Intang.'!$E$38","v":"Activos intangibles distintos de la plusvalía al final del periodo"},{"$f":"'823180 - Nota. Activos Intang.'!$D$38","v":"ifrs-full:IntangibleAssetsOtherThanGoodwill"},0,"peso",{"$f":"'823180 - Nota. Activos Intang.'!$O$38","v":0},0,"http://www.xbrl.org/scheme/companyName",null,{"$f":"Periodos!$C$4","v":"2023-12-31"}]
["/*"]
["/*",null,"823180 - Nota. Activos Intang."]
["/*",null,"--01--"]
["/*",null,{"$f":"'823180 - Nota. Activos Intang.'!$E$45","v":"Información a revelar detallada sobre activos intangibles [partidas de los estados financieros]"},{"$f":"'823180 - Nota. Activos Intang.'!$D$45","v":"ifrs-full:DisclosureOfIntangibleAssetsLineItems"}]
["/*",null,{"$f":"'823180 - Nota. Activos Intang.'!$E$46","v":"Método de amortización, activos intangibles distintos de la plusvalía"},{"$f":"'823180 - Nota. Activos Intang.'!$D$46","v":"ifrs-full:AmortisationMethodIntangibleAssetsOtherThanGoodwill"}]
["/*",null,{"$f":"'823180 - Nota. Activos Intang.'!$E$47","v":"Importe en libros en términos brutos"},{"$f":"'823180 - Nota. Activos Intang.'!$D$47","v":"co-svsp-core:GrossCarryingAmount"}]
["/*",null,{"$f":"'823180 - Nota. Activos Intang.'!$E$48","v":"Depreciación y amortización acumuladas"},{"$f":"'823180 - Nota. Activos Intang.'!$D$48","v":"co-svsp-core:AccumulatedDepreciationAndAmortisation"}]
["/*",null,{"$f":"'823180 - Nota. Activos Intang.'!$E$49","v":"Deterioro de valor acumulado"},{"$f":"'823180 - Nota. Activos Intang.'!$D$49","v":"co-svsp-core:AccumulatedImpairment"}]
["/*",null,{"$f":"'823180 - Nota. Activos Intang.'!$E$50","v":"Conciliación de cambios en activos intangibles distintos de la plusvalía [resumen]"},{"$f":"'823180 - Nota. Activos Intang.'!$D$50","v":"ifrs-full:ReconciliationOfChangesInIntangibleAssetsOtherThanGoodwillAbstract"}]
["/*",null,{"$f":"'823180 - Nota. Activos Intang.'!$E$51","v":"Activos intangibles distintos de la plusvalía al inicio del periodo"},{"$f":"'823180 - Nota. Activos Intang.'!$D$51","v":"ifrs-full:IntangibleAssetsOtherThanGoodwill"}]
["/*",null,{"$f":"'823180 - Nota. Activos Intang.'!$E$52","v":"Incrementos distintos de los procedentes de combinaciones de negocios, activos intangibles distintos de la plusvalía"},{"$f":"'823180 - Nota. Activos Intang.'!$D$52","v":"ifrs-full:AdditionsOtherThanThroughBusinessCombinationsIntangibleAssetsOtherThanGoodwill"}]
["/*",null,{"$f":"'823180 - Nota. Activos Intang.'!$E$53","v":"Adquisiciones realizadas mediante combinaciones de negocios, activos intangibles distintos a la plusvalía"},{"$f":"'823180 - Nota. Activos Intang.'!$D$53","v":"ifrs-full:AcquisitionsThroughBusinessCombinationsIntangibleAssetsOtherThanGoodwill"}]
["/*",null,{"$f":"'823180 - Nota. Activos Intang.'!$E$54","v":"Amortización, activos intangibles distintos de la plusvalía"},{"$f":"'823180 - Nota. Activos Intang.'!$D$54","v":"ifrs-full:AmortisationIntangibleAssetsOtherThanGoodwill"}]
["/*",null,{"$f":"'823180 - Nota. Activos Intang.'!$E$55","v":"Pérdidas por deterioro de valor reconocidas en el resultado del periodo, activos intangibles distintos de la plusvalía"},{"$f":"'823180 - Nota. Activos Intang.'!$D$55","v":"ifrs-full:ImpairmentLossRecognisedInProfitOrLossIntangibleAssetsOtherThanGoodwill"}]
["/*",null,{"$f":"'823180 - Nota. Activos Intang.'!$E$56","v":"Reversión de pérdidas por deterioro de valor reconocidas en el resultado del periodo, activos intangibles distintos de la plusvalía"},{"$f":"'823180 - Nota. Activos Intang.'!$D$56","v":"ifrs-full:ReversalOfImpairmentLossRecognisedInProfitOrLossIntangibleAssetsOtherThanGoodwill"}]
["/*",null,{"$f":"'823180 - Nota. Activos Intang.'!$E$57","v":"Incrementos (disminuciones) por transferencias y otros cambios, activos intangibles distintos de la plusvalía [resumen]"},{"$f":"'823180 - Nota. Activos Intang.'!$D$57","v":"ifrs-full:IncreaseDecreaseThroughTransfersAndOtherChangesIntangibleAssetsOtherThanGoodwillAbstract"}]
["/*",null,{"$f":"'823180 - Nota. Activos Intang.'!$E$58","v":"Incrementos (disminuciones) por transferencias, activos intangibles distintas de la plusvalía"},{"$f":"'823180 - Nota. Activos Intang.'!$D$58","v":"ifrs-full:IncreaseDecreaseThroughTransfersIntangibleAssetsOtherThanGoodwill"}]
["/*",null,{"$f":"'823180 - Nota. Activos Intang.'!$E$59","v":"Incrementos (disminuciones) por otros cambios, activos intangibles distintos de la plusvalía"},{"$f":"'823180 - Nota. Activos Intang.'!$D$59","v":"ifrs-full:IncreaseDecreaseThroughOtherChangesIntangibleAssetsOtherThanGoodwill"}]
["",null,{"$f":"'823180 - Nota. Activos Intang.'!$E$60","v":"Incremento (disminución) por transferencias y otros cambios, activos intangibles distintos de la plusvalía"},{"$f":"'823180 - Nota. Activos Intang.'!$D$60","v":"ifrs-full:IncreaseDecreaseThroughTransfersAndOtherChangesIntangibleAssetsOtherThanGoodwill"},0,"peso",{"$f":"'823180 - Nota. Activos Intang.'!$F$60","v":0},0,"http://www.xbrl.org/scheme/companyName",{"$f":"Periodos!$D$3","v":"2022-01-01"},{"$f":"Periodos!$D$4","v":"2022-12-31"},{"$f":"'823180 - Nota. Activos Intang.'!$E$44","v":"co-svsp-core:ActivosIntangibles_Eje_G1"},{"$f":"'823180 - Nota. Activos Intang.'!$F$43","v":"ifrs-full:BrandNamesMember"}]
["/*",null,{"$f":"'823180 - Nota. Activos Intang.'!$E$61","v":"Disposiciones y retiros de servicio, activos intangibles distintos de la plusvalía [resumen]"},{"$f":"'823180 - Nota. Activos Intang.'!$D$61","v":"ifrs-full:DisposalsAndRetirementsIntangibleAssetsOtherThanGoodwillAbstract"}]
["/*",null,{"$f":"'823180 - Nota. Activos Intang.'!$E$62","v":"Disposiciones, activos intangibles distintos de la plusvalía"},{"$f":"'823180 - Nota. Activos Intang.'!$D$62","v":"ifrs-full:DisposalsIntangibleAssetsOtherThanGoodwill"}]
["/*",null,{"$f":"'823180 - Nota. Activos Intang.'!$E$63","v":"Retiros de servicio, activos intangibles distintos de la plusvalía"},{"$f":"'823180 - Nota. Activos Intang.'!$D$63","v":"ifrs-full:RetirementsIntangibleAssetsOtherThanGoodwill"}]
["",null,{"$f":"'823180 - Nota. Activos Intang.'!$E$64","v":"Disposiciones y retiros de servicio, activos intangibles distintos de la plusvalía"},{"$f":"'823180 - Nota. Activos Intang.'!$D$64","v":"ifrs-full:DisposalsAndRetirementsIntangibleAssetsOtherThanGoodwill"},0,"peso",{"$f":"'823180 - Nota. Activos Intang.'!$F$64","v":0},0,"http://www.xbrl.org/scheme/companyName",{"$f":"Periodos!$D$3","v":"2022-01-01"},{"$f":"Periodos!$D$4","v":"2022-12-31"},{"$f":"'823180 - Nota. Activos Intang.'!$E$44","v":"co-svsp-core:ActivosIntangibles_Eje_G1"},{"$f":"'823180 - Nota. Activos Intang.'!$F$43","v":"ifrs-full:BrandNamesMember"}]
["/*",null,{"$f":"'823180 - Nota. Activos Intang.'!$E$65","v":"Disminuciones por clasificar como mantenidos para la venta, activos intangibles distintos de la plusvalía"},{"$f":"'823180 - Nota. Activos Intang.'!$D$65","v":"ifrs-full:DecreaseThroughClassifiedAsHeldForSaleIntangibleAssetsOtherThanGoodwill"}]
["",null,{"$f":"'823180 - Nota. Activos Intang.'!$E$66","v":"Incremento (disminución) en activos intangibles distintos de la plusvalía"},{"$f":"'823180 - Nota. Activos Intang.'!$D$66","v":"ifrs-full:ChangesInIntangibleAssetsOtherThanGoodwill"},0,"peso",{"$f":"'823180 - Nota. Activos Intang.'!$F$66","v":0},0,"http://www.xbrl.org/scheme/companyName",{"$f":"Periodos!$D$3","v":"2022-01-01"},{"$f":"Periodos!$D$4","v":"2022-12-31"},{"$f":"'823180 - Nota. Activos Intang.'!$E$44","v":"co-svsp-core:ActivosIntangibles_Eje_G1"},{"$f":"'823180 - Nota. Activos Intang.'!$F$43","v":"ifrs-full:BrandNamesMember"}]
["",null,{"$f":"'823180 - Nota. Activos Intang.'!$E$67","v":"Activos intangibles distintos de la plusvalía al final del periodo"},{"$f":"'823180 - Nota. Activos Intang.'!$D$67","v":"ifrs-full:IntangibleAssetsOtherThanGoodwill"},0,"peso",{"$f":"'823180 - Nota. Activos Intang.'!$F$67","v":0},0,"http://www.xbrl.org/scheme/companyName",null,{"$f":"Periodos!$D$4","v":"2022-12-31"},{"$f":"'823180 - Nota. Activos Intang.'!$E$44","v":"co-svsp-core:ActivosIntangibles_Eje_G1"},{"$f":"'823180 - Nota. Activos Intang.'!$F$43","v":"ifrs-full:BrandNamesMember"}]
["/*",null,"--02--"]
["/*",null,{"$f":"'823180 - Nota. Activos Intang.'!$E$45","v":"Información a revelar detallada sobre activos intangibles [partidas de los estados financieros]"},{"$f":"'823180 - Nota. Activos Intang.'!$D$45","v":"ifrs-full:DisclosureOfIntangibleAssetsLineItems"}]
["/*",null,{"$f":"'823180 - Nota. Activos Intang.'!$E$46","v":"Método de amortización, activos intangibles distintos de la plusvalía"},{"$f":"'823180 - Nota. Activos Intang.'!$D$46","v":"ifrs-full:AmortisationMethodIntangibleAssetsOtherThanGoodwill"}]
["/*",null,{"$f":"'823180 - Nota. Activos Intang.'!$E$47","v":"Importe en libros en términos brutos"},{"$f":"'823180 - Nota. Activos Intang.'!$D$47","v":"co-svsp-core:GrossCarryingAmount"}]
["/*",null,{"$f":"'823180 - Nota. Activos Intang.'!$E$48","v":"Depreciación y amortización acumuladas"},{"$f":"'823180 - Nota. Activos Intang.'!$D$48","v":"co-svsp-core:AccumulatedDepreciationAndAmortisation"}]
["/*",null,{"$f":"'823180 - Nota. Activos Intang.'!$E$49","v":"Deterioro de valor acumulado"},{"$f":"'823180 - Nota. Activos Intang.'!$D$49","v":"co-svsp-core:AccumulatedImpairment"}]
["/*",null,{"$f":"'823180 - Nota. Activos Intang.'!$E$50","v":"Conciliación de cambios en activos intangibles distintos de la plusvalía [resumen]"},{"$f":"'823180 - Nota. Activos Intang.'!$D$50","v":"ifrs-full:ReconciliationOfChangesInIntangibleAssetsOtherThanGoodwillAbstract"}]
["/*",null,{"$f":"'823180 - Nota. Activos Intang.'!$E$51","v":"Activos intangibles distintos de la plusvalía al inicio del periodo"},{"$f":"'823180 - Nota. Activos Intang.'!$D$51","v":"ifrs-full:IntangibleAssetsOtherThanGoodwill"}]
["/*",null,{"$f":"'823180 - Nota. Activos Intang.'!$E$52","v":"Incrementos distintos de los procedentes de combinaciones de negocios, activos intangibles distintos de la plusvalía"},{"$f":"'823180 - Nota. Activos Intang.'!$D$52","v":"ifrs-full:AdditionsOtherThanThroughBusinessCombinationsIntangibleAssetsOtherThanGoodwill"}]
["/*",null,{"$f":"'823180 - Nota. Activos Intang.'!$E$53","v":"Adquisiciones realizadas mediante combinaciones de negocios, activos intangibles distintos a la plusvalía"},{"$f":"'823180 - Nota. Activos Intang.'!$D$53","v":"ifrs-full:AcquisitionsThroughBusinessCombinationsIntangibleAssetsOtherThanGoodwill"}]
["/*",null,{"$f":"'823180 - Nota. Activos Intang.'!$E$54","v":"Amortización, activos intangibles distintos de la plusvalía"},{"$f":"'823180 - Nota. Activos Intang.'!$D$54","v":"ifrs-full:AmortisationIntangibleAssetsOtherThanGoodwill"}]
["/*",null,{"$f":"'823180 - Nota. Activos Intang.'!$E$55","v":"Pérdidas por deterioro de valor reconocidas en el resultado del periodo, activos intangibles distintos de la plusvalía"},{"$f":"'823180 - Nota. Activos Intang.'!$D$55","v":"ifrs-full:ImpairmentLossRecognisedInProfitOrLossIntangibleAssetsOtherThanGoodwill"}]
["/*",null,{"$f":"'823180 - Nota. Activos Intang.'!$E$56","v":"Reversión de pérdidas por deterioro de valor reconocidas en el resultado del periodo, activos intangibles distintos de la plusvalía"},{"$f":"'823180 - Nota. Activos Intang.'!$D$56","v":"ifrs-full:ReversalOfImpairmentLossRecognisedInProfitOrLossIntangibleAssetsOtherThanGoodwill"}]
["/*",null,{"$f":"'823180 - Nota. Activos Intang.'!$E$57","v":"Incrementos (disminuciones) por transferencias y otros cambios, activos intangibles distintos de la plusvalía [resumen]"},{"$f":"'823180 - Nota. Activos Intang.'!$D$57","v":"ifrs-full:IncreaseDecreaseThroughTransfersAndOtherChangesIntangibleAssetsOtherThanGoodwillAbstract"}]
["/*",null,{"$f":"'823180 - Nota. Activos Intang.'!$E$58","v":"Incrementos (disminuciones) por transferencias, activos intangibles distintas de la plusvalía"},{"$f":"'823180 - Nota. Activos Intang.'!$D$58","v":"ifrs-full:IncreaseDecreaseThroughTransfersIntangibleAssetsOtherThanGoodwill"}]
["/*",null,{"$f":"'823180 - Nota. Activos Intang.'!$E$59","v":"Incrementos (disminuciones) por otros cambios, activos intangibles distintos de la plusvalía"},{"$f":"'823180 - Nota. Activos Intang.'!$D$59","v":"ifrs-full:IncreaseDecreaseThroughOtherChangesIntangibleAssetsOtherThanGoodwill"}]
["",null,{"$f":"'823180 - Nota. Activos Intang.'!$E$60","v":"Incremento (disminución) por transferencias y otros cambios, activos intangibles distintos de la plusvalía"},{"$f":"'823180 - Nota. Activos Intang.'!$D$60","v":"ifrs-full:IncreaseDecreaseThroughTransfersAndOtherChangesIntangibleAssetsOtherThanGoodwill"},0,"peso",{"$f":"'823180 - Nota. Activos Intang.'!$G$60","v":0},0,"http://www.xbrl.org/scheme/companyName",{"$f":"Periodos!$D$3","v":"2022-01-01"},{"$f":"Periodos!$D$4","v":"2022-12-31"},{"$f":"'823180 - Nota. Activos Intang.'!$E$44","v":"co-svsp-core:ActivosIntangibles_Eje_G1"},{"$f":"'823180 - Nota. Activos Intang.'!$G$43","v":"co-svsp-core:PatentesMiembro"}]
["/*",null,{"$f":"'823180 - Nota. Activos Intang.'!$E$61","v":"Disposiciones y retiros de servicio, activos intangibles distintos de la plusvalía [resumen]"},{"$f":"'823180 - Nota. Activos Intang.'!$D$61","v":"ifrs-full:DisposalsAndRetirementsIntangibleAssetsOtherThanGoodwillAbstract"}]
["/*",null,{"$f":"'823180 - Nota. Activos Intang.'!$E$62","v":"Disposiciones, activos intangibles distintos de la plusvalía"},{"$f":"'823180 - Nota. Activos Intang.'!$D$62","v":"ifrs-full:DisposalsIntangibleAssetsOtherThanGoodwill"}]
["/*",null,{"$f":"'823180 - Nota. Activos Intang.'!$E$63","v":"Retiros de servicio, activos intangibles distintos de la plusvalía"},{"$f":"'823180 - Nota. Activos Intang.'!$D$63","v":"ifrs-full:RetirementsIntangibleAssetsOtherThanGoodwill"}]
["",null,{"$f":"'823180 - Nota. Activos Intang.'!$E$64","v":"Disposiciones y retiros de servicio, activos intangibles distintos de la plusvalía"},{"$f":"'823180 - Nota. Activos Intang.'!$D$64","v":"ifrs-full:DisposalsAndRetirementsIntangibleAssetsOtherThanGoodwill"},0,"peso",{"$f":"'823180 - Nota. Activos Intang.'!$G$64","v":0},0,"http://www.xbrl.org/scheme/companyName",{"$f":"Periodos!$D$3","v":"2022-01-01"},{"$f":"Periodos!$D$4","v":"2022-12-31"},{"$f":"'823180 - Nota. Activos Intang.'!$E$44","v":"co-svsp-core:ActivosIntangibles_Eje_G1"},{"$f":"'823180 - Nota. Activos Intang.'!$G$43","v":"co-svsp-core:PatentesMiembro"}]
["/*",null,{"$f":"'823180 - Nota. Activos Intang.'!$E$65","v":"Disminuciones por clasificar como mantenidos para la venta, activos intangibles distintos de la plusvalía"},{"$f":"'823180 - Nota. Activos Intang.'!$D$65","v":"ifrs-full:DecreaseThroughClassifiedAsHeldForSaleIntangibleAssetsOtherThanGoodwill"}]
[{"$f":"IF(G6688=\"\",\"/*\",\"\")","v":""},null,{"$f":"'823180 - Nota. Activos Intang.'!$E$66","v":"Incremento (disminución) en activos intangibles distintos de la plusvalía"},{"$f":"'823180 - Nota. Activos Intang.'!$D$66","v":"ifrs-full:ChangesInIntangibleAssetsOtherThanGoodwill"},0,"peso",{"$f":"'823180 - Nota. Activos Intang.'!$G$66","v":0},0,"http://www.xbrl.org/scheme/companyName",{"$f":"Periodos!$D$3","v":"2022-01-01"},{"$f":"Periodos!$D$4","v":"2022-12-31"},{"$f":"'823180 - Nota. Activos Intang.'!$E$44","v":"co-svsp-core:ActivosIntangibles_Eje_G1"},{"$f":"'823180 - Nota. Activos Intang.'!$G$43","v":"co-svsp-core:PatentesMiembro"}]
["",null,{"$f":"'823180 - Nota. Activos Intang.'!$E$67","v":"Activos intangibles distintos de la plusvalía al final del periodo"},{"$f":"'823180 - Nota. Activos Intang.'!$D$67","v":"ifrs-full:IntangibleAssetsOtherThanGoodwill"},0,"peso",{"$f":"'823180 - Nota. Activos Intang.'!$G$67","v":0},0,"http://www.xbrl.org/scheme/companyName",null,{"$f":"Periodos!$D$4","v":"2022-12-31"},{"$f":"'823180 - Nota. Activos Intang.'!$E$44","v":"co-svsp-core:ActivosIntangibles_Eje_G1"},{"$f":"'823180 - Nota. Activos Intang.'!$G$43","v":"co-svsp-core:PatentesMiembro"}]
["/*",null,"--03--"]
["/*",null,{"$f":"'823180 - Nota. Activos Intang.'!$E$45","v":"Información a revelar detallada sobre activos intangibles [partidas de los estados financieros]"},{"$f":"'823180 - Nota. Activos Intang.'!$D$45","v":"ifrs-full:DisclosureOfIntangibleAssetsLineItems"}]
["/*",null,{"$f":"'823180 - Nota. Activos Intang.'!$E$46","v":"Método de amortización, activos intangibles distintos de la plusvalía"},{"$f":"'823180 - Nota. Activos Intang.'!$D$46","v":"ifrs-full:AmortisationMethodIntangibleAssetsOtherThanGoodwill"}]
["/*",null,{"$f":"'823180 - Nota. Activos Intang.'!$E$47","v":"Importe en libros en términos brutos"},{"$f":"'823180 - Nota. Activos Intang.'!$D$47","v":"co-svsp-core:GrossCarryingAmount"}]
["/*",null,{"$f":"'823180 - Nota. Activos Intang.'!$E$48","v":"Depreciación y amortización acumuladas"},{"$f":"'823180 - Nota. Activos Intang.'!$D$48","v":"co-svsp-core:AccumulatedDepreciationAndAmortisation"}]
["/*",null,{"$f":"'823180 - Nota. Activos Intang.'!$E$49","v":"Deterioro de valor acumulado"},{"$f":"'823180 - Nota. Activos Intang.'!$D$49","v":"co-svsp-core:AccumulatedImpairment"}]
["/*",null,{"$f":"'823180 - Nota. Activos Intang.'!$E$50","v":"Conciliación de cambios en activos intangibles distintos de la plusvalía [resumen]"},{"$f":"'823180 - Nota. Activos Intang.'!$D$50","v":"ifrs-full:ReconciliationOfChangesInIntangibleAssetsOtherThanGoodwillAbstract"}]
["/*",null,{"$f":"'823180 - Nota. Activos Intang.'!$E$51","v":"Activos intangibles distintos de la plusvalía al inicio del periodo"},{"$f":"'823180 - Nota. Activos Intang.'!$D$51","v":"ifrs-full:IntangibleAssetsOtherThanGoodwill"}]
["/*",null,{"$f":"'823180 - Nota. Activos Intang.'!$E$52","v":"Incrementos distintos de los procedentes de combinaciones de negocios, activos intangibles distintos de la plusvalía"},{"$f":"'823180 - Nota. Activos Intang.'!$D$52","v":"ifrs-full:AdditionsOtherThanThroughBusinessCombinationsIntangibleAssetsOtherThanGoodwill"}]
["/*",null,{"$f":"'823180 - Nota. Activos Intang.'!$E$53","v":"Adquisiciones realizadas mediante combinaciones de negocios, activos intangibles distintos a la plusvalía"},{"$f":"'823180 - Nota. Activos Intang.'!$D$53","v":"ifrs-full:AcquisitionsThroughBusinessCombinationsIntangibleAssetsOtherThanGoodwill"}]
["/*",null,{"$f":"'823180 - Nota. Activos Intang.'!$E$54","v":"Amortización, activos intangibles distintos de la plusvalía"},{"$f":"'823180 - Nota. Activos Intang.'!$D$54","v":"ifrs-full:AmortisationIntangibleAssetsOtherThanGoodwill"}]
["/*",null,{"$f":"'823180 - Nota. Activos Intang.'!$E$55","v":"Pérdidas por deterioro de valor reconocidas en el resultado del periodo, activos intangibles distintos de la plusvalía"},{"$f":"'823180 - Nota. Activos Intang.'!$D$55","v":"ifrs-full:ImpairmentLossRecognisedInProfitOrLossIntangibleAssetsOtherThanGoodwill"}]
["/*",null,{"$f":"'823180 - Nota. Activos Intang.'!$E$56","v":"Reversión de pérdidas por deterioro de valor reconocidas en el resultado del periodo, activos intangibles distintos de la plusvalía"},{"$f":"'823180 - Nota. Activos Intang.'!$D$56","v":"ifrs-full:ReversalOfImpairmentLossRecognisedInProfitOrLossIntangibleAssetsOtherThanGoodwill"}]
["/*",null,{"$f":"'823180 - Nota. Activos Intang.'!$E$57","v":"Incrementos (disminuciones) por transferencias y otros cambios, activos intangibles distintos de la plusvalía [resumen]"},{"$f":"'823180 - Nota. Activos Intang.'!$D$57","v":"ifrs-full:IncreaseDecreaseThroughTransfersAndOtherChangesIntangibleAssetsOtherThanGoodwillAbstract"}]
["/*",null,{"$f":"'823180 - Nota. Activos Intang.'!$E$58","v":"Incrementos (disminuciones) por transferencias, activos intangibles distintas de la plusvalía"},{"$f":"'823180 - Nota. Activos Intang.'!$D$58","v":"ifrs-full:IncreaseDecreaseThroughTransfersIntangibleAssetsOtherThanGoodwill"}]
["/*",null,{"$f":"'823180 - Nota. Activos Intang.'!$E$59","v":"Incrementos (disminuciones) por otros cambios, activos intangibles distintos de la plusvalía"},{"$f":"'823180 - Nota. Activos Intang.'!$D$59","v":"ifrs-full:IncreaseDecreaseThroughOtherChangesIntangibleAssetsOtherThanGoodwill"}]
["",null,{"$f":"'823180 - Nota. Activos Intang.'!$E$60","v":"Incremento (disminución) por transferencias y otros cambios, activos intangibles distintos de la plusvalía"},{"$f":"'823180 - Nota. Activos Intang.'!$D$60","v":"ifrs-full:IncreaseDecreaseThroughTransfersAndOtherChangesIntangibleAssetsOtherThanGoodwill"},0,"peso",{"$f":"'823180 - Nota. Activos Intang.'!$H$60","v":0},0,"http://www.xbrl.org/scheme/companyName",{"$f":"Periodos!$D$3","v":"2022-01-01"},{"$f":"Periodos!$D$4","v":"2022-12-31"},{"$f":"'823180 - Nota. Activos Intang.'!$E$44","v":"co-svsp-core:ActivosIntangibles_Eje_G1"},{"$f":"'823180 - Nota. Activos Intang.'!$H$43","v":"ifrs-full:ComputerSoftwareMember"}]
["/*",null,{"$f":"'823180 - Nota. Activos Intang.'!$E$61","v":"Disposiciones y retiros de servicio, activos intangibles distintos de la plusvalía [resumen]"},{"$f":"'823180 - Nota. Activos Intang.'!$D$61","v":"ifrs-full:DisposalsAndRetirementsIntangibleAssetsOtherThanGoodwillAbstract"}]
["/*",null,{"$f":"'823180 - Nota. Activos Intang.'!$E$62","v":"Disposiciones, activos intangibles distintos de la plusvalía"},{"$f":"'823180 - Nota. Activos Intang.'!$D$62","v":"ifrs-full:DisposalsIntangibleAssetsOtherThanGoodwill"}]
["/*",null,{"$f":"'823180 - Nota. Activos Intang.'!$E$63","v":"Retiros de servicio, activos intangibles distintos de la plusvalía"},{"$f":"'823180 - Nota. Activos Intang.'!$D$63","v":"ifrs-full:RetirementsIntangibleAssetsOtherThanGoodwill"}]
["",null,{"$f":"'823180 - Nota. Activos Intang.'!$E$64","v":"Disposiciones y retiros de servicio, activos intangibles distintos de la plusvalía"},{"$f":"'823180 - Nota. Activos Intang.'!$D$64","v":"ifrs-full:DisposalsAndRetirementsIntangibleAssetsOtherThanGoodwill"},0,"peso",{"$f":"'823180 - Nota. Activos Intang.'!$H$64","v":0},0,"http://www.xbrl.org/scheme/companyName",{"$f":"Periodos!$D$3","v":"2022-01-01"},{"$f":"Periodos!$D$4","v":"2022-12-31"},{"$f":"'823180 - Nota. Activos Intang.'!$E$44","v":"co-svsp-core:ActivosIntangibles_Eje_G1"},{"$f":"'823180 - Nota. Activos Intang.'!$H$43","v":"ifrs-full:ComputerSoftwareMember"}]
["/*",null,{"$f":"'823180 - Nota. Activos Intang.'!$E$65","v":"Disminuciones por clasificar como mantenidos para la venta, activos intangibles distintos de la plusvalía"},{"$f":"'823180 - Nota. Activos Intang.'!$D$65","v":"ifrs-full:DecreaseThroughClassifiedAsHeldForSaleIntangibleAssetsOtherThanGoodwill"}]
["",null,{"$f":"'823180 - Nota. Activos Intang.'!$E$66","v":"Incremento (disminución) en activos intangibles distintos de la plusvalía"},{"$f":"'823180 - Nota. Activos Intang.'!$D$66","v":"ifrs-full:ChangesInIntangibleAssetsOtherThanGoodwill"},0,"peso",{"$f":"'823180 - Nota. Activos Intang.'!$H$66","v":0},0,"http://www.xbrl.org/scheme/companyName",{"$f":"Periodos!$D$3","v":"2022-01-01"},{"$f":"Periodos!$D$4","v":"2022-12-31"},{"$f":"'823180 - Nota. Activos Intang.'!$E$44","v":"co-svsp-core:ActivosIntangibles_Eje_G1"},{"$f":"'823180 - Nota. Activos Intang.'!$H$43","v":"ifrs-full:ComputerSoftwareMember"}]
["",null,{"$f":"'823180 - Nota. Activos Intang.'!$E$67","v":"Activos intangibles distintos de la plusvalía al final del periodo"},{"$f":"'823180 - Nota. Activos Intang.'!$D$67","v":"ifrs-full:IntangibleAssetsOtherThanGoodwill"},0,"peso",{"$f":"'823180 - Nota. Activos Intang.'!$H$67","v":0},0,"http://www.xbrl.org/scheme/companyName",null,{"$f":"Periodos!$D$4","v":"2022-12-31"},{"$f":"'823180 - Nota. Activos Intang.'!$E$44","v":"co-svsp-core:ActivosIntangibles_Eje_G1"},{"$f":"'823180 - Nota. Activos Intang.'!$H$43","v":"ifrs-full:ComputerSoftwareMember"}]
["/*",null,"--04--"]
["/*",null,{"$f":"'823180 - Nota. Activos Intang.'!$E$45","v":"Información a revelar detallada sobre activos intangibles [partidas de los estados financieros]"},{"$f":"'823180 - Nota. Activos Intang.'!$D$45","v":"ifrs-full:DisclosureOfIntangibleAssetsLineItems"}]
["/*",null,{"$f":"'823180 - Nota. Activos Intang.'!$E$46","v":"Método de amortización, activos intangibles distintos de la plusvalía"},{"$f":"'823180 - Nota. Activos Intang.'!$D$46","v":"ifrs-full:AmortisationMethodIntangibleAssetsOtherThanGoodwill"}]
["/*",null,{"$f":"'823180 - Nota. Activos Intang.'!$E$47","v":"Importe en libros en términos brutos"},{"$f":"'823180 - Nota. Activos Intang.'!$D$47","v":"co-svsp-core:GrossCarryingAmount"}]
["/*",null,{"$f":"'823180 - Nota. Activos Intang.'!$E$48","v":"Depreciación y amortización acumuladas"},{"$f":"'823180 - Nota. Activos Intang.'!$D$48","v":"co-svsp-core:AccumulatedDepreciationAndAmortisation"}]
["/*",null,{"$f":"'823180 - Nota. Activos Intang.'!$E$49","v":"Deterioro de valor acumulado"},{"$f":"'823180 - Nota. Activos Intang.'!$D$49","v":"co-svsp-core:AccumulatedImpairment"}]
["/*",null,{"$f":"'823180 - Nota. Activos Intang.'!$E$50","v":"Conciliación de cambios en activos intangibles distintos de la plusvalía [resumen]"},{"$f":"'823180 - Nota. Activos Intang.'!$D$50","v":"ifrs-full:ReconciliationOfChangesInIntangibleAssetsOtherThanGoodwillAbstract"}]
["/*",null,{"$f":"'823180 - Nota. Activos Intang.'!$E$51","v":"Activos intangibles distintos de la plusvalía al inicio del periodo"},{"$f":"'823180 - Nota. Activos Intang.'!$D$51","v":"ifrs-full:IntangibleAssetsOtherThanGoodwill"}]
["/*",null,{"$f":"'823180 - Nota. Activos Intang.'!$E$52","v":"Incrementos distintos de los procedentes de combinaciones de negocios, activos intangibles distintos de la plusvalía"},{"$f":"'823180 - Nota. Activos Intang.'!$D$52","v":"ifrs-full:AdditionsOtherThanThroughBusinessCombinationsIntangibleAssetsOtherThanGoodwill"}]
["/*",null,{"$f":"'823180 - Nota. Activos Intang.'!$E$53","v":"Adquisiciones realizadas mediante combinaciones de negocios, activos intangibles distintos a la plusvalía"},{"$f":"'823180 - Nota. Activos Intang.'!$D$53","v":"ifrs-full:AcquisitionsThroughBusinessCombinationsIntangibleAssetsOtherThanGoodwill"}]
["/*",null,{"$f":"'823180 - Nota. Activos Intang.'!$E$54","v":"Amortización, activos intangibles distintos de la plusvalía"},{"$f":"'823180 - Nota. Activos Intang.'!$D$54","v":"ifrs-full:AmortisationIntangibleAssetsOtherThanGoodwill"}]
["/*",null,{"$f":"'823180 - Nota. Activos Intang.'!$E$55","v":"Pérdidas por deterioro de valor reconocidas en el resultado del periodo, activos intangibles distintos de la plusvalía"},{"$f":"'823180 - Nota. Activos Intang.'!$D$55","v":"ifrs-full:ImpairmentLossRecognisedInProfitOrLossIntangibleAssetsOtherThanGoodwill"}]
["/*",null,{"$f":"'823180 - Nota. Activos Intang.'!$E$56","v":"Reversión de pérdidas por deterioro de valor reconocidas en el resultado del periodo, activos intangibles distintos de la plusvalía"},{"$f":"'823180 - Nota. Activos Intang.'!$D$56","v":"ifrs-full:ReversalOfImpairmentLossRecognisedInProfitOrLossIntangibleAssetsOtherThanGoodwill"}]
["/*",null,{"$f":"'823180 - Nota. Activos Intang.'!$E$57","v":"Incrementos (disminuciones) por transferencias y otros cambios, activos intangibles distintos de la plusvalía [resumen]"},{"$f":"'823180 - Nota. Activos Intang.'!$D$57","v":"ifrs-full:IncreaseDecreaseThroughTransfersAndOtherChangesIntangibleAssetsOtherThanGoodwillAbstract"}]
["/*",null,{"$f":"'823180 - Nota. Activos Intang.'!$E$58","v":"Incrementos (disminuciones) por transferencias, activos intangibles distintas de la plusvalía"},{"$f":"'823180 - Nota. Activos Intang.'!$D$58","v":"ifrs-full:IncreaseDecreaseThroughTransfersIntangibleAssetsOtherThanGoodwill"}]
["/*",null,{"$f":"'823180 - Nota. Activos Intang.'!$E$59","v":"Incrementos (disminuciones) por otros cambios, activos intangibles distintos de la plusvalía"},{"$f":"'823180 - Nota. Activos Intang.'!$D$59","v":"ifrs-full:IncreaseDecreaseThroughOtherChangesIntangibleAssetsOtherThanGoodwill"}]
["",null,{"$f":"'823180 - Nota. Activos Intang.'!$E$60","v":"Incremento (disminución) por transferencias y otros cambios, activos intangibles distintos de la plusvalía"},{"$f":"'823180 - Nota. Activos Intang.'!$D$60","v":"ifrs-full:IncreaseDecreaseThroughTransfersAndOtherChangesIntangibleAssetsOtherThanGoodwill"},0,"peso",{"$f":"'823180 - Nota. Activos Intang.'!$I$60","v":0},0,"http://www.xbrl.org/scheme/companyName",{"$f":"Periodos!$D$3","v":"2022-01-01"},{"$f":"Periodos!$D$4","v":"2022-12-31"},{"$f":"'823180 - Nota. Activos Intang.'!$E$44","v":"co-svsp-core:ActivosIntangibles_Eje_G1"},{"$f":"'823180 - Nota. Activos Intang.'!$I$43","v":"ifrs-full:LicencesAndFranchisesMember"}]
["/*",null,{"$f":"'823180 - Nota. Activos Intang.'!$E$61","v":"Disposiciones y retiros de servicio, activos intangibles distintos de la plusvalía [resumen]"},{"$f":"'823180 - Nota. Activos Intang.'!$D$61","v":"ifrs-full:DisposalsAndRetirementsIntangibleAssetsOtherThanGoodwillAbstract"}]
["/*",null,{"$f":"'823180 - Nota. Activos Intang.'!$E$62","v":"Disposiciones, activos intangibles distintos de la plusvalía"},{"$f":"'823180 - Nota. Activos Intang.'!$D$62","v":"ifrs-full:DisposalsIntangibleAssetsOtherThanGoodwill"}]
["/*",null,{"$f":"'823180 - Nota. Activos Intang.'!$E$63","v":"Retiros de servicio, activos intangibles distintos de la plusvalía"},{"$f":"'823180 - Nota. Activos Intang.'!$D$63","v":"ifrs-full:RetirementsIntangibleAssetsOtherThanGoodwill"}]
["",null,{"$f":"'823180 - Nota. Activos Intang.'!$E$64","v":"Disposiciones y retiros de servicio, activos intangibles distintos de la plusvalía"},{"$f":"'823180 - Nota. Activos Intang.'!$D$64","v":"ifrs-full:DisposalsAndRetirementsIntangibleAssetsOtherThanGoodwill"},0,"peso",{"$f":"'823180 - Nota. Activos Intang.'!$I$64","v":0},0,"http://www.xbrl.org/scheme/companyName",{"$f":"Periodos!$D$3","v":"2022-01-01"},{"$f":"Periodos!$D$4","v":"2022-12-31"},{"$f":"'823180 - Nota. Activos Intang.'!$E$44","v":"co-svsp-core:ActivosIntangibles_Eje_G1"},{"$f":"'823180 - Nota. Activos Intang.'!$I$43","v":"ifrs-full:LicencesAndFranchisesMember"}]
["/*",null,{"$f":"'823180 - Nota. Activos Intang.'!$E$65","v":"Disminuciones por clasificar como mantenidos para la venta, activos intangibles distintos de la plusvalía"},{"$f":"'823180 - Nota. Activos Intang.'!$D$65","v":"ifrs-full:DecreaseThroughClassifiedAsHeldForSaleIntangibleAssetsOtherThanGoodwill"}]
["",null,{"$f":"'823180 - Nota. Activos Intang.'!$E$66","v":"Incremento (disminución) en activos intangibles distintos de la plusvalía"},{"$f":"'823180 - Nota. Activos Intang.'!$D$66","v":"ifrs-full:ChangesInIntangibleAssetsOtherThanGoodwill"},0,"peso",{"$f":"'823180 - Nota. Activos Intang.'!$I$66","v":0},0,"http://www.xbrl.org/scheme/companyName",{"$f":"Periodos!$D$3","v":"2022-01-01"},{"$f":"Periodos!$D$4","v":"2022-12-31"},{"$f":"'823180 - Nota. Activos Intang.'!$E$44","v":"co-svsp-core:ActivosIntangibles_Eje_G1"},{"$f":"'823180 - Nota. Activos Intang.'!$I$43","v":"ifrs-full:LicencesAndFranchisesMember"}]
["",null,{"$f":"'823180 - Nota. Activos Intang.'!$E$67","v":"Activos intangibles distintos de la plusvalía al final del periodo"},{"$f":"'823180 - Nota. Activos Intang.'!$D$67","v":"ifrs-full:IntangibleAssetsOtherThanGoodwill"},0,"peso",{"$f":"'823180 - Nota. Activos Intang.'!$I$67","v":0},0,"http://www.xbrl.org/scheme/companyName",null,{"$f":"Periodos!$D$4","v":"2022-12-31"},{"$f":"'823180 - Nota. Activos Intang.'!$E$44","v":"co-svsp-core:ActivosIntangibles_Eje_G1"},{"$f":"'823180 - Nota. Activos Intang.'!$I$43","v":"ifrs-full:LicencesAndFranchisesMember"}]
["/*",null,"--05--"]
["/*",null,{"$f":"'823180 - Nota. Activos Intang.'!$E$45","v":"Información a revelar detallada sobre activos intangibles [partidas de los estados financieros]"},{"$f":"'823180 - Nota. Activos Intang.'!$D$45","v":"ifrs-full:DisclosureOfIntangibleAssetsLineItems"}]
["/*",null,{"$f":"'823180 - Nota. Activos Intang.'!$E$46","v":"Método de amortización, activos intangibles distintos de la plusvalía"},{"$f":"'823180 - Nota. Activos Intang.'!$D$46","v":"ifrs-full:AmortisationMethodIntangibleAssetsOtherThanGoodwill"}]
["/*",null,{"$f":"'823180 - Nota. Activos Intang.'!$E$47","v":"Importe en libros en términos brutos"},{"$f":"'823180 - Nota. Activos Intang.'!$D$47","v":"co-svsp-core:GrossCarryingAmount"}]
["/*",null,{"$f":"'823180 - Nota. Activos Intang.'!$E$48","v":"Depreciación y amortización acumuladas"},{"$f":"'823180 - Nota. Activos Intang.'!$D$48","v":"co-svsp-core:AccumulatedDepreciationAndAmortisation"}]
["/*",null,{"$f":"'823180 - Nota. Activos Intang.'!$E$49","v":"Deterioro de valor acumulado"},{"$f":"'823180 - Nota. Activos Intang.'!$D$49","v":"co-svsp-core:AccumulatedImpairment"}]
["/*",null,{"$f":"'823180 - Nota. Activos Intang.'!$E$50","v":"Conciliación de cambios en activos intangibles distintos de la plusvalía [resumen]"},{"$f":"'823180 - Nota. Activos Intang.'!$D$50","v":"ifrs-full:ReconciliationOfChangesInIntangibleAssetsOtherThanGoodwillAbstract"}]
["/*",null,{"$f":"'823180 - Nota. Activos Intang.'!$E$51","v":"Activos intangibles distintos de la plusvalía al inicio del periodo"},{"$f":"'823180 - Nota. Activos Intang.'!$D$51","v":"ifrs-full:IntangibleAssetsOtherThanGoodwill"}]
["/*",null,{"$f":"'823180 - Nota. Activos Intang.'!$E$52","v":"Incrementos distintos de los procedentes de combinaciones de negocios, activos intangibles distintos de la plusvalía"},{"$f":"'823180 - Nota. Activos Intang.'!$D$52","v":"ifrs-full:AdditionsOtherThanThroughBusinessCombinationsIntangibleAssetsOtherThanGoodwill"}]
["/*",null,{"$f":"'823180 - Nota. Activos Intang.'!$E$53","v":"Adquisiciones realizadas mediante combinaciones de negocios, activos intangibles distintos a la plusvalía"},{"$f":"'823180 - Nota. Activos Intang.'!$D$53","v":"ifrs-full:AcquisitionsThroughBusinessCombinationsIntangibleAssetsOtherThanGoodwill"}]
["/*",null,{"$f":"'823180 - Nota. Activos Intang.'!$E$54","v":"Amortización, activos intangibles distintos de la plusvalía"},{"$f":"'823180 - Nota. Activos Intang.'!$D$54","v":"ifrs-full:AmortisationIntangibleAssetsOtherThanGoodwill"}]
["/*",null,{"$f":"'823180 - Nota. Activos Intang.'!$E$55","v":"Pérdidas por deterioro de valor reconocidas en el resultado del periodo, activos intangibles distintos de la plusvalía"},{"$f":"'823180 - Nota. Activos Intang.'!$D$55","v":"ifrs-full:ImpairmentLossRecognisedInProfitOrLossIntangibleAssetsOtherThanGoodwill"}]
["/*",null,{"$f":"'823180 - Nota. Activos Intang.'!$E$56","v":"Reversión de pérdidas por deterioro de valor reconocidas en el resultado del periodo, activos intangibles distintos de la plusvalía"},{"$f":"'823180 - Nota. Activos Intang.'!$D$56","v":"ifrs-full:ReversalOfImpairmentLossRecognisedInProfitOrLossIntangibleAssetsOtherThanGoodwill"}]
["/*",null,{"$f":"'823180 - Nota. Activos Intang.'!$E$57","v":"Incrementos (disminuciones) por transferencias y otros cambios, activos intangibles distintos de la plusvalía [resumen]"},{"$f":"'823180 - Nota. Activos Intang.'!$D$57","v":"ifrs-full:IncreaseDecreaseThroughTransfersAndOtherChangesIntangibleAssetsOtherThanGoodwillAbstract"}]
[{"$f":"IF(G6752=\"\",\"/*\",\"\")","v":"/*"},null,{"$f":"'823180 - Nota. Activos Intang.'!$E$58","v":"Incrementos (disminuciones) por transferencias, activos intangibles distintas de la plusvalía"},{"$f":"'823180 - Nota. Activos Intang.'!$D$58","v":"ifrs-full:IncreaseDecreaseThroughTransfersIntangibleAssetsOtherThanGoodwill"}]
["/*",null,{"$f":"'823180 - Nota. Activos Intang.'!$E$59","v":"Incrementos (disminuciones) por otros cambios, activos intangibles distintos de la plusvalía"},{"$f":"'823180 - Nota. Activos Intang.'!$D$59","v":"ifrs-full:IncreaseDecreaseThroughOtherChangesIntangibleAssetsOtherThanGoodwill"}]
["",null,{"$f":"'823180 - Nota. Activos Intang.'!$E$60","v":"Incremento (disminución) por transferencias y otros cambios, activos intangibles distintos de la plusvalía"},{"$f":"'823180 - Nota. Activos Intang.'!$D$60","v":"ifrs-full:IncreaseDecreaseThroughTransfersAndOtherChangesIntangibleAssetsOtherThanGoodwill"},0,"peso",{"$f":"'823180 - Nota. Activos Intang.'!$J$60","v":0},0,"http://www.xbrl.org/scheme/companyName",{"$f":"Periodos!$D$3","v":"2022-01-01"},{"$f":"Periodos!$D$4","v":"2022-12-31"},{"$f":"'823180 - Nota. Activos Intang.'!$E$44","v":"co-svsp-core:ActivosIntangibles_Eje_G1"},{"$f":"'823180 - Nota. Activos Intang.'!$J$43","v":"co-svsp-core:DerechosMiembro"}]
["/*",null,{"$f":"'823180 - Nota. Activos Intang.'!$E$61","v":"Disposiciones y retiros de servicio, activos intangibles distintos de la plusvalía [resumen]"},{"$f":"'823180 - Nota. Activos Intang.'!$D$61","v":"ifrs-full:DisposalsAndRetirementsIntangibleAssetsOtherThanGoodwillAbstract"}]
["/*",null,{"$f":"'823180 - Nota. Activos Intang.'!$E$62","v":"Disposiciones, activos intangibles distintos de la plusvalía"},{"$f":"'823180 - Nota. Activos Intang.'!$D$62","v":"ifrs-full:DisposalsIntangibleAssetsOtherThanGoodwill"}]
["/*",null,{"$f":"'823180 - Nota. Activos Intang.'!$E$63","v":"Retiros de servicio, activos intangibles distintos de la plusvalía"},{"$f":"'823180 - Nota. Activos Intang.'!$D$63","v":"ifrs-full:RetirementsIntangibleAssetsOtherThanGoodwill"}]
["",null,{"$f":"'823180 - Nota. Activos Intang.'!$E$64","v":"Disposiciones y retiros de servicio, activos intangibles distintos de la plusvalía"},{"$f":"'823180 - Nota. Activos Intang.'!$D$64","v":"ifrs-full:DisposalsAndRetirementsIntangibleAssetsOtherThanGoodwill"},0,"peso",{"$f":"'823180 - Nota. Activos Intang.'!$J$64","v":0},0,"http://www.xbrl.org/scheme/companyName",{"$f":"Periodos!$D$3","v":"2022-01-01"},{"$f":"Periodos!$D$4","v":"2022-12-31"},{"$f":"'823180 - Nota. Activos Intang.'!$E$44","v":"co-svsp-core:ActivosIntangibles_Eje_G1"},{"$f":"'823180 - Nota. Activos Intang.'!$J$43","v":"co-svsp-core:DerechosMiembro"}]
["/*",null,{"$f":"'823180 - Nota. Activos Intang.'!$E$65","v":"Disminuciones por clasificar como mantenidos para la venta, activos intangibles distintos de la plusvalía"},{"$f":"'823180 - Nota. Activos Intang.'!$D$65","v":"ifrs-full:DecreaseThroughClassifiedAsHeldForSaleIntangibleAssetsOtherThanGoodwill"}]
["",null,{"$f":"'823180 - Nota. Activos Intang.'!$E$66","v":"Incremento (disminución) en activos intangibles distintos de la plusvalía"},{"$f":"'823180 - Nota. Activos Intang.'!$D$66","v":"ifrs-full:ChangesInIntangibleAssetsOtherThanGoodwill"},0,"peso",{"$f":"'823180 - Nota. Activos Intang.'!$J$66","v":0},0,"http://www.xbrl.org/scheme/companyName",{"$f":"Periodos!$D$3","v":"2022-01-01"},{"$f":"Periodos!$D$4","v":"2022-12-31"},{"$f":"'823180 - Nota. Activos Intang.'!$E$44","v":"co-svsp-core:ActivosIntangibles_Eje_G1"},{"$f":"'823180 - Nota. Activos Intang.'!$J$43","v":"co-svsp-core:DerechosMiembro"}]
["",null,{"$f":"'823180 - Nota. Activos Intang.'!$E$67","v":"Activos intangibles distintos de la plusvalía al final del periodo"},{"$f":"'823180 - Nota. Activos Intang.'!$D$67","v":"ifrs-full:IntangibleAssetsOtherThanGoodwill"},0,"peso",{"$f":"'823180 - Nota. Activos Intang.'!$J$67","v":0},0,"http://www.xbrl.org/scheme/companyName",null,{"$f":"Periodos!$D$4","v":"2022-12-31"},{"$f":"'823180 - Nota. Activos Intang.'!$E$44","v":"co-svsp-core:ActivosIntangibles_Eje_G1"},{"$f":"'823180 - Nota. Activos Intang.'!$J$43","v":"co-svsp-core:DerechosMiembro"}]
["/*",null,"--06--"]
["/*",null,{"$f":"'823180 - Nota. Activos Intang.'!$E$45","v":"Información a revelar detallada sobre activos intangibles [partidas de los estados financieros]"},{"$f":"'823180 - Nota. Activos Intang.'!$D$45","v":"ifrs-full:DisclosureOfIntangibleAssetsLineItems"}]
["/*",null,{"$f":"'823180 - Nota. Activos Intang.'!$E$46","v":"Método de amortización, activos intangibles distintos de la plusvalía"},{"$f":"'823180 - Nota. Activos Intang.'!$D$46","v":"ifrs-full:AmortisationMethodIntangibleAssetsOtherThanGoodwill"}]
["/*",null,{"$f":"'823180 - Nota. Activos Intang.'!$E$47","v":"Importe en libros en términos brutos"},{"$f":"'823180 - Nota. Activos Intang.'!$D$47","v":"co-svsp-core:GrossCarryingAmount"}]
["/*",null,{"$f":"'823180 - Nota. Activos Intang.'!$E$48","v":"Depreciación y amortización acumuladas"},{"$f":"'823180 - Nota. Activos Intang.'!$D$48","v":"co-svsp-core:AccumulatedDepreciationAndAmortisation"}]
["/*",null,{"$f":"'823180 - Nota. Activos Intang.'!$E$49","v":"Deterioro de valor acumulado"},{"$f":"'823180 - Nota. Activos Intang.'!$D$49","v":"co-svsp-core:AccumulatedImpairment"}]
["/*",null,{"$f":"'823180 - Nota. Activos Intang.'!$E$50","v":"Conciliación de cambios en activos intangibles distintos de la plusvalía [resumen]"},{"$f":"'823180 - Nota. Activos Intang.'!$D$50","v":"ifrs-full:ReconciliationOfChangesInIntangibleAssetsOtherThanGoodwillAbstract"}]
["/*",null,{"$f":"'823180 - Nota. Activos Intang.'!$E$51","v":"Activos intangibles distintos de la plusvalía al inicio del periodo"},{"$f":"'823180 - Nota. Activos Intang.'!$D$51","v":"ifrs-full:IntangibleAssetsOtherThanGoodwill"}]
["/*",null,{"$f":"'823180 - Nota. Activos Intang.'!$E$52","v":"Incrementos distintos de los procedentes de combinaciones de negocios, activos intangibles distintos de la plusvalía"},{"$f":"'823180 - Nota. Activos Intang.'!$D$52","v":"ifrs-full:AdditionsOtherThanThroughBusinessCombinationsIntangibleAssetsOtherThanGoodwill"}]
["/*",null,{"$f":"'823180 - Nota. Activos Intang.'!$E$53","v":"Adquisiciones realizadas mediante combinaciones de negocios, activos intangibles distintos a la plusvalía"},{"$f":"'823180 - Nota. Activos Intang.'!$D$53","v":"ifrs-full:AcquisitionsThroughBusinessCombinationsIntangibleAssetsOtherThanGoodwill"}]
["/*",null,{"$f":"'823180 - Nota. Activos Intang.'!$E$54","v":"Amortización, activos intangibles distintos de la plusvalía"},{"$f":"'823180 - Nota. Activos Intang.'!$D$54","v":"ifrs-full:AmortisationIntangibleAssetsOtherThanGoodwill"}]
["/*",null,{"$f":"'823180 - Nota. Activos Intang.'!$E$55","v":"Pérdidas por deterioro de valor reconocidas en el resultado del periodo, activos intangibles distintos de la plusvalía"},{"$f":"'823180 - Nota. Activos Intang.'!$D$55","v":"ifrs-full:ImpairmentLossRecognisedInProfitOrLossIntangibleAssetsOtherThanGoodwill"}]
["/*",null,{"$f":"'823180 - Nota. Activos Intang.'!$E$56","v":"Reversión de pérdidas por deterioro de valor reconocidas en el resultado del periodo, activos intangibles distintos de la plusvalía"},{"$f":"'823180 - Nota. Activos Intang.'!$D$56","v":"ifrs-full:ReversalOfImpairmentLossRecognisedInProfitOrLossIntangibleAssetsOtherThanGoodwill"}]
["/*",null,{"$f":"'823180 - Nota. Activos Intang.'!$E$57","v":"Incrementos (disminuciones) por transferencias y otros cambios, activos intangibles distintos de la plusvalía [resumen]"},{"$f":"'823180 - Nota. Activos Intang.'!$D$57","v":"ifrs-full:IncreaseDecreaseThroughTransfersAndOtherChangesIntangibleAssetsOtherThanGoodwillAbstract"}]
["/*",null,{"$f":"'823180 - Nota. Activos Intang.'!$E$58","v":"Incrementos (disminuciones) por transferencias, activos intangibles distintas de la plusvalía"},{"$f":"'823180 - Nota. Activos Intang.'!$D$58","v":"ifrs-full:IncreaseDecreaseThroughTransfersIntangibleAssetsOtherThanGoodwill"}]
["/*",null,{"$f":"'823180 - Nota. Activos Intang.'!$E$59","v":"Incrementos (disminuciones) por otros cambios, activos intangibles distintos de la plusvalía"},{"$f":"'823180 - Nota. Activos Intang.'!$D$59","v":"ifrs-full:IncreaseDecreaseThroughOtherChangesIntangibleAssetsOtherThanGoodwill"}]
["",null,{"$f":"'823180 - Nota. Activos Intang.'!$E$60","v":"Incremento (disminución) por transferencias y otros cambios, activos intangibles distintos de la plusvalía"},{"$f":"'823180 - Nota. Activos Intang.'!$D$60","v":"ifrs-full:IncreaseDecreaseThroughTransfersAndOtherChangesIntangibleAssetsOtherThanGoodwill"},0,"peso",{"$f":"'823180 - Nota. Activos Intang.'!$K$60","v":0},0,"http://www.xbrl.org/scheme/companyName",{"$f":"Periodos!$D$3","v":"2022-01-01"},{"$f":"Periodos!$D$4","v":"2022-12-31"},{"$f":"'823180 - Nota. Activos Intang.'!$E$44","v":"co-svsp-core:ActivosIntangibles_Eje_G1"},{"$f":"'823180 - Nota. Activos Intang.'!$K$43","v":"co-svsp-core:KnowhowMiembro"}]
["/*",null,{"$f":"'823180 - Nota. Activos Intang.'!$E$61","v":"Disposiciones y retiros de servicio, activos intangibles distintos de la plusvalía [resumen]"},{"$f":"'823180 - Nota. Activos Intang.'!$D$61","v":"ifrs-full:DisposalsAndRetirementsIntangibleAssetsOtherThanGoodwillAbstract"}]
["/*",null,{"$f":"'823180 - Nota. Activos Intang.'!$E$62","v":"Disposiciones, activos intangibles distintos de la plusvalía"},{"$f":"'823180 - Nota. Activos Intang.'!$D$62","v":"ifrs-full:DisposalsIntangibleAssetsOtherThanGoodwill"}]
["/*",null,{"$f":"'823180 - Nota. Activos Intang.'!$E$63","v":"Retiros de servicio, activos intangibles distintos de la plusvalía"},{"$f":"'823180 - Nota. Activos Intang.'!$D$63","v":"ifrs-full:RetirementsIntangibleAssetsOtherThanGoodwill"}]
["",null,{"$f":"'823180 - Nota. Activos Intang.'!$E$64","v":"Disposiciones y retiros de servicio, activos intangibles distintos de la plusvalía"},{"$f":"'823180 - Nota. Activos Intang.'!$D$64","v":"ifrs-full:DisposalsAndRetirementsIntangibleAssetsOtherThanGoodwill"},0,"peso",{"$f":"'823180 - Nota. Activos Intang.'!$K$64","v":0},0,"http://www.xbrl.org/scheme/companyName",{"$f":"Periodos!$D$3","v":"2022-01-01"},{"$f":"Periodos!$D$4","v":"2022-12-31"},{"$f":"'823180 - Nota. Activos Intang.'!$E$44","v":"co-svsp-core:ActivosIntangibles_Eje_G1"},{"$f":"'823180 - Nota. Activos Intang.'!$K$43","v":"co-svsp-core:KnowhowMiembro"}]
["/*",null,{"$f":"'823180 - Nota. Activos Intang.'!$E$65","v":"Disminuciones por clasificar como mantenidos para la venta, activos intangibles distintos de la plusvalía"},{"$f":"'823180 - Nota. Activos Intang.'!$D$65","v":"ifrs-full:DecreaseThroughClassifiedAsHeldForSaleIntangibleAssetsOtherThanGoodwill"}]
["",null,{"$f":"'823180 - Nota. Activos Intang.'!$E$66","v":"Incremento (disminución) en activos intangibles distintos de la plusvalía"},{"$f":"'823180 - Nota. Activos Intang.'!$D$66","v":"ifrs-full:ChangesInIntangibleAssetsOtherThanGoodwill"},0,"peso",{"$f":"'823180 - Nota. Activos Intang.'!$K$66","v":0},0,"http://www.xbrl.org/scheme/companyName",{"$f":"Periodos!$D$3","v":"2022-01-01"},{"$f":"Periodos!$D$4","v":"2022-12-31"},{"$f":"'823180 - Nota. Activos Intang.'!$E$44","v":"co-svsp-core:ActivosIntangibles_Eje_G1"},{"$f":"'823180 - Nota. Activos Intang.'!$K$43","v":"co-svsp-core:KnowhowMiembro"}]
["",null,{"$f":"'823180 - Nota. Activos Intang.'!$E$67","v":"Activos intangibles distintos de la plusvalía al final del periodo"},{"$f":"'823180 - Nota. Activos Intang.'!$D$67","v":"ifrs-full:IntangibleAssetsOtherThanGoodwill"},0,"peso",{"$f":"'823180 - Nota. Activos Intang.'!$K$67","v":0},0,"http://www.xbrl.org/scheme/companyName",null,{"$f":"Periodos!$D$4","v":"2022-12-31"},{"$f":"'823180 - Nota. Activos Intang.'!$E$44","v":"co-svsp-core:ActivosIntangibles_Eje_G1"},{"$f":"'823180 - Nota. Activos Intang.'!$K$43","v":"co-svsp-core:KnowhowMiembro"}]
["/*",null,"--07--"]
["/*",null,{"$f":"'823180 - Nota. Activos Intang.'!$E$45","v":"Información a revelar detallada sobre activos intangibles [partidas de los estados financieros]"},{"$f":"'823180 - Nota. Activos Intang.'!$D$45","v":"ifrs-full:DisclosureOfIntangibleAssetsLineItems"}]
["/*",null,{"$f":"'823180 - Nota. Activos Intang.'!$E$46","v":"Método de amortización, activos intangibles distintos de la plusvalía"},{"$f":"'823180 - Nota. Activos Intang.'!$D$46","v":"ifrs-full:AmortisationMethodIntangibleAssetsOtherThanGoodwill"}]
["/*",null,{"$f":"'823180 - Nota. Activos Intang.'!$E$47","v":"Importe en libros en términos brutos"},{"$f":"'823180 - Nota. Activos Intang.'!$D$47","v":"co-svsp-core:GrossCarryingAmount"}]
["/*",null,{"$f":"'823180 - Nota. Activos Intang.'!$E$48","v":"Depreciación y amortización acumuladas"},{"$f":"'823180 - Nota. Activos Intang.'!$D$48","v":"co-svsp-core:AccumulatedDepreciationAndAmortisation"}]
["/*",null,{"$f":"'823180 - Nota. Activos Intang.'!$E$49","v":"Deterioro de valor acumulado"},{"$f":"'823180 - Nota. Activos Intang.'!$D$49","v":"co-svsp-core:AccumulatedImpairment"}]
["/*",null,{"$f":"'823180 - Nota. Activos Intang.'!$E$50","v":"Conciliación de cambios en activos intangibles distintos de la plusvalía [resumen]"},{"$f":"'823180 - Nota. Activos Intang.'!$D$50","v":"ifrs-full:ReconciliationOfChangesInIntangibleAssetsOtherThanGoodwillAbstract"}]
["/*",null,{"$f":"'823180 - Nota. Activos Intang.'!$E$51","v":"Activos intangibles distintos de la plusvalía al inicio del periodo"},{"$f":"'823180 - Nota. Activos Intang.'!$D$51","v":"ifrs-full:IntangibleAssetsOtherThanGoodwill"}]
["/*",null,{"$f":"'823180 - Nota. Activos Intang.'!$E$52","v":"Incrementos distintos de los procedentes de combinaciones de negocios, activos intangibles distintos de la plusvalía"},{"$f":"'823180 - Nota. Activos Intang.'!$D$52","v":"ifrs-full:AdditionsOtherThanThroughBusinessCombinationsIntangibleAssetsOtherThanGoodwill"}]
["/*",null,{"$f":"'823180 - Nota. Activos Intang.'!$E$53","v":"Adquisiciones realizadas mediante combinaciones de negocios, activos intangibles distintos a la plusvalía"},{"$f":"'823180 - Nota. Activos Intang.'!$D$53","v":"ifrs-full:AcquisitionsThroughBusinessCombinationsIntangibleAssetsOtherThanGoodwill"}]
["/*",null,{"$f":"'823180 - Nota. Activos Intang.'!$E$54","v":"Amortización, activos intangibles distintos de la plusvalía"},{"$f":"'823180 - Nota. Activos Intang.'!$D$54","v":"ifrs-full:AmortisationIntangibleAssetsOtherThanGoodwill"}]
["/*",null,{"$f":"'823180 - Nota. Activos Intang.'!$E$55","v":"Pérdidas por deterioro de valor reconocidas en el resultado del periodo, activos intangibles distintos de la plusvalía"},{"$f":"'823180 - Nota. Activos Intang.'!$D$55","v":"ifrs-full:ImpairmentLossRecognisedInProfitOrLossIntangibleAssetsOtherThanGoodwill"}]
["/*",null,{"$f":"'823180 - Nota. Activos Intang.'!$E$56","v":"Reversión de pérdidas por deterioro de valor reconocidas en el resultado del periodo, activos intangibles distintos de la plusvalía"},{"$f":"'823180 - Nota. Activos Intang.'!$D$56","v":"ifrs-full:ReversalOfImpairmentLossRecognisedInProfitOrLossIntangibleAssetsOtherThanGoodwill"}]
["/*",null,{"$f":"'823180 - Nota. Activos Intang.'!$E$57","v":"Incrementos (disminuciones) por transferencias y otros cambios, activos intangibles distintos de la plusvalía [resumen]"},{"$f":"'823180 - Nota. Activos Intang.'!$D$57","v":"ifrs-full:IncreaseDecreaseThroughTransfersAndOtherChangesIntangibleAssetsOtherThanGoodwillAbstract"}]
["/*",null,{"$f":"'823180 - Nota. Activos Intang.'!$E$58","v":"Incrementos (disminuciones) por transferencias, activos intangibles distintas de la plusvalía"},{"$f":"'823180 - Nota. Activos Intang.'!$D$58","v":"ifrs-full:IncreaseDecreaseThroughTransfersIntangibleAssetsOtherThanGoodwill"}]
["/*",null,{"$f":"'823180 - Nota. Activos Intang.'!$E$59","v":"Incrementos (disminuciones) por otros cambios, activos intangibles distintos de la plusvalía"},{"$f":"'823180 - Nota. Activos Intang.'!$D$59","v":"ifrs-full:IncreaseDecreaseThroughOtherChangesIntangibleAssetsOtherThanGoodwill"}]
["",null,{"$f":"'823180 - Nota. Activos Intang.'!$E$60","v":"Incremento (disminución) por transferencias y otros cambios, activos intangibles distintos de la plusvalía"},{"$f":"'823180 - Nota. Activos Intang.'!$D$60","v":"ifrs-full:IncreaseDecreaseThroughTransfersAndOtherChangesIntangibleAssetsOtherThanGoodwill"},0,"peso",{"$f":"'823180 - Nota. Activos Intang.'!$L$60","v":0},0,"http://www.xbrl.org/scheme/companyName",{"$f":"Periodos!$D$3","v":"2022-01-01"},{"$f":"Periodos!$D$4","v":"2022-12-31"},{"$f":"'823180 - Nota. Activos Intang.'!$E$44","v":"co-svsp-core:ActivosIntangibles_Eje_G1"},{"$f":"'823180 - Nota. Activos Intang.'!$L$43","v":"ifrs-full:IntangibleExplorationAndEvaluationAssetsMember"}]
["/*",null,{"$f":"'823180 - Nota. Activos Intang.'!$E$61","v":"Disposiciones y retiros de servicio, activos intangibles distintos de la plusvalía [resumen]"},{"$f":"'823180 - Nota. Activos Intang.'!$D$61","v":"ifrs-full:DisposalsAndRetirementsIntangibleAssetsOtherThanGoodwillAbstract"}]
["/*",null,{"$f":"'823180 - Nota. Activos Intang.'!$E$62","v":"Disposiciones, activos intangibles distintos de la plusvalía"},{"$f":"'823180 - Nota. Activos Intang.'!$D$62","v":"ifrs-full:DisposalsIntangibleAssetsOtherThanGoodwill"}]
["/*",null,{"$f":"'823180 - Nota. Activos Intang.'!$E$63","v":"Retiros de servicio, activos intangibles distintos de la plusvalía"},{"$f":"'823180 - Nota. Activos Intang.'!$D$63","v":"ifrs-full:RetirementsIntangibleAssetsOtherThanGoodwill"}]
["",null,{"$f":"'823180 - Nota. Activos Intang.'!$E$64","v":"Disposiciones y retiros de servicio, activos intangibles distintos de la plusvalía"},{"$f":"'823180 - Nota. Activos Intang.'!$D$64","v":"ifrs-full:DisposalsAndRetirementsIntangibleAssetsOtherThanGoodwill"},0,"peso",{"$f":"'823180 - Nota. Activos Intang.'!$L$64","v":0},0,"http://www.xbrl.org/scheme/companyName",{"$f":"Periodos!$D$3","v":"2022-01-01"},{"$f":"Periodos!$D$4","v":"2022-12-31"},{"$f":"'823180 - Nota. Activos Intang.'!$E$44","v":"co-svsp-core:ActivosIntangibles_Eje_G1"},{"$f":"'823180 - Nota. Activos Intang.'!$L$43","v":"ifrs-full:IntangibleExplorationAndEvaluationAssetsMember"}]
["/*",null,{"$f":"'823180 - Nota. Activos Intang.'!$E$65","v":"Disminuciones por clasificar como mantenidos para la venta, activos intangibles distintos de la plusvalía"},{"$f":"'823180 - Nota. Activos Intang.'!$D$65","v":"ifrs-full:DecreaseThroughClassifiedAsHeldForSaleIntangibleAssetsOtherThanGoodwill"}]
["",null,{"$f":"'823180 - Nota. Activos Intang.'!$E$66","v":"Incremento (disminución) en activos intangibles distintos de la plusvalía"},{"$f":"'823180 - Nota. Activos Intang.'!$D$66","v":"ifrs-full:ChangesInIntangibleAssetsOtherThanGoodwill"},0,"peso",{"$f":"'823180 - Nota. Activos Intang.'!$L$66","v":0},0,"http://www.xbrl.org/scheme/companyName",{"$f":"Periodos!$D$3","v":"2022-01-01"},{"$f":"Periodos!$D$4","v":"2022-12-31"},{"$f":"'823180 - Nota. Activos Intang.'!$E$44","v":"co-svsp-core:ActivosIntangibles_Eje_G1"},{"$f":"'823180 - Nota. Activos Intang.'!$L$43","v":"ifrs-full:IntangibleExplorationAndEvaluationAssetsMember"}]
["",null,{"$f":"'823180 - Nota. Activos Intang.'!$E$67","v":"Activos intangibles distintos de la plusvalía al final del periodo"},{"$f":"'823180 - Nota. Activos Intang.'!$D$67","v":"ifrs-full:IntangibleAssetsOtherThanGoodwill"},0,"peso",{"$f":"'823180 - Nota. Activos Intang.'!$L$67","v":0},0,"http://www.xbrl.org/scheme/companyName",null,{"$f":"Periodos!$D$4","v":"2022-12-31"},{"$f":"'823180 - Nota. Activos Intang.'!$E$44","v":"co-svsp-core:ActivosIntangibles_Eje_G1"},{"$f":"'823180 - Nota. Activos Intang.'!$L$43","v":"ifrs-full:IntangibleExplorationAndEvaluationAssetsMember"}]
["/*",null,"--08--"]
["/*",null,{"$f":"'823180 - Nota. Activos Intang.'!$E$45","v":"Información a revelar detallada sobre activos intangibles [partidas de los estados financieros]"},{"$f":"'823180 - Nota. Activos Intang.'!$D$45","v":"ifrs-full:DisclosureOfIntangibleAssetsLineItems"}]
["/*",null,{"$f":"'823180 - Nota. Activos Intang.'!$E$46","v":"Método de amortización, activos intangibles distintos de la plusvalía"},{"$f":"'823180 - Nota. Activos Intang.'!$D$46","v":"ifrs-full:AmortisationMethodIntangibleAssetsOtherThanGoodwill"}]
["/*",null,{"$f":"'823180 - Nota. Activos Intang.'!$E$47","v":"Importe en libros en términos brutos"},{"$f":"'823180 - Nota. Activos Intang.'!$D$47","v":"co-svsp-core:GrossCarryingAmount"}]
["/*",null,{"$f":"'823180 - Nota. Activos Intang.'!$E$48","v":"Depreciación y amortización acumuladas"},{"$f":"'823180 - Nota. Activos Intang.'!$D$48","v":"co-svsp-core:AccumulatedDepreciationAndAmortisation"}]
["/*",null,{"$f":"'823180 - Nota. Activos Intang.'!$E$49","v":"Deterioro de valor acumulado"},{"$f":"'823180 - Nota. Activos Intang.'!$D$49","v":"co-svsp-core:AccumulatedImpairment"}]
[{"$f":"IF(G6816=\"\",\"/*\",\"\")","v":"/*"},null,{"$f":"'823180 - Nota. Activos Intang.'!$E$50","v":"Conciliación de cambios en activos intangibles distintos de la plusvalía [resumen]"},{"$f":"'823180 - Nota. Activos Intang.'!$D$50","v":"ifrs-full:ReconciliationOfChangesInIntangibleAssetsOtherThanGoodwillAbstract"}]
["/*",null,{"$f":"'823180 - Nota. Activos Intang.'!$E$51","v":"Activos intangibles distintos de la plusvalía al inicio del periodo"},{"$f":"'823180 - Nota. Activos Intang.'!$D$51","v":"ifrs-full:IntangibleAssetsOtherThanGoodwill"}]
["/*",null,{"$f":"'823180 - Nota. Activos Intang.'!$E$52","v":"Incrementos distintos de los procedentes de combinaciones de negocios, activos intangibles distintos de la plusvalía"},{"$f":"'823180 - Nota. Activos Intang.'!$D$52","v":"ifrs-full:AdditionsOtherThanThroughBusinessCombinationsIntangibleAssetsOtherThanGoodwill"}]
["/*",null,{"$f":"'823180 - Nota. Activos Intang.'!$E$53","v":"Adquisiciones realizadas mediante combinaciones de negocios, activos intangibles distintos a la plusvalía"},{"$f":"'823180 - Nota. Activos Intang.'!$D$53","v":"ifrs-full:AcquisitionsThroughBusinessCombinationsIntangibleAssetsOtherThanGoodwill"}]
["/*",null,{"$f":"'823180 - Nota. Activos Intang.'!$E$54","v":"Amortización, activos intangibles distintos de la plusvalía"},{"$f":"'823180 - Nota. Activos Intang.'!$D$54","v":"ifrs-full:AmortisationIntangibleAssetsOtherThanGoodwill"}]
["/*",null,{"$f":"'823180 - Nota. Activos Intang.'!$E$55","v":"Pérdidas por deterioro de valor reconocidas en el resultado del periodo, activos intangibles distintos de la plusvalía"},{"$f":"'823180 - Nota. Activos Intang.'!$D$55","v":"ifrs-full:ImpairmentLossRecognisedInProfitOrLossIntangibleAssetsOtherThanGoodwill"}]
["/*",null,{"$f":"'823180 - Nota. Activos Intang.'!$E$56","v":"Reversión de pérdidas por deterioro de valor reconocidas en el resultado del periodo, activos intangibles distintos de la plusvalía"},{"$f":"'823180 - Nota. Activos Intang.'!$D$56","v":"ifrs-full:ReversalOfImpairmentLossRecognisedInProfitOrLossIntangibleAssetsOtherThanGoodwill"}]
["/*",null,{"$f":"'823180 - Nota. Activos Intang.'!$E$57","v":"Incrementos (disminuciones) por transferencias y otros cambios, activos intangibles distintos de la plusvalía [resumen]"},{"$f":"'823180 - Nota. Activos Intang.'!$D$57","v":"ifrs-full:IncreaseDecreaseThroughTransfersAndOtherChangesIntangibleAssetsOtherThanGoodwillAbstract"}]
["/*",null,{"$f":"'823180 - Nota. Activos Intang.'!$E$58","v":"Incrementos (disminuciones) por transferencias, activos intangibles distintas de la plusvalía"},{"$f":"'823180 - Nota. Activos Intang.'!$D$58","v":"ifrs-full:IncreaseDecreaseThroughTransfersIntangibleAssetsOtherThanGoodwill"}]
["/*",null,{"$f":"'823180 - Nota. Activos Intang.'!$E$59","v":"Incrementos (disminuciones) por otros cambios, activos intangibles distintos de la plusvalía"},{"$f":"'823180 - Nota. Activos Intang.'!$D$59","v":"ifrs-full:IncreaseDecreaseThroughOtherChangesIntangibleAssetsOtherThanGoodwill"}]
["",null,{"$f":"'823180 - Nota. Activos Intang.'!$E$60","v":"Incremento (disminución) por transferencias y otros cambios, activos intangibles distintos de la plusvalía"},{"$f":"'823180 - Nota. Activos Intang.'!$D$60","v":"ifrs-full:IncreaseDecreaseThroughTransfersAndOtherChangesIntangibleAssetsOtherThanGoodwill"},0,"peso",{"$f":"'823180 - Nota. Activos Intang.'!$M$60","v":0},0,"http://www.xbrl.org/scheme/companyName",{"$f":"Periodos!$D$3","v":"2022-01-01"},{"$f":"Periodos!$D$4","v":"2022-12-31"},{"$f":"'823180 - Nota. Activos Intang.'!$E$44","v":"co-svsp-core:ActivosIntangibles_Eje_G1"},{"$f":"'823180 - Nota. Activos Intang.'!$M$43","v":"co-svsp-core:ServiceConcessionArrangementsClassifiedAsIntangibleAssetsMember"}]
["/*",null,{"$f":"'823180 - Nota. Activos Intang.'!$E$61","v":"Disposiciones y retiros de servicio, activos intangibles distintos de la plusvalía [resumen]"},{"$f":"'823180 - Nota. Activos Intang.'!$D$61","v":"ifrs-full:DisposalsAndRetirementsIntangibleAssetsOtherThanGoodwillAbstract"}]
["/*",null,{"$f":"'823180 - Nota. Activos Intang.'!$E$62","v":"Disposiciones, activos intangibles distintos de la plusvalía"},{"$f":"'823180 - Nota. Activos Intang.'!$D$62","v":"ifrs-full:DisposalsIntangibleAssetsOtherThanGoodwill"}]
["/*",null,{"$f":"'823180 - Nota. Activos Intang.'!$E$63","v":"Retiros de servicio, activos intangibles distintos de la plusvalía"},{"$f":"'823180 - Nota. Activos Intang.'!$D$63","v":"ifrs-full:RetirementsIntangibleAssetsOtherThanGoodwill"}]
["",null,{"$f":"'823180 - Nota. Activos Intang.'!$E$64","v":"Disposiciones y retiros de servicio, activos intangibles distintos de la plusvalía"},{"$f":"'823180 - Nota. Activos Intang.'!$D$64","v":"ifrs-full:DisposalsAndRetirementsIntangibleAssetsOtherThanGoodwill"},0,"peso",{"$f":"'823180 - Nota. Activos Intang.'!$M$64","v":0},0,"http://www.xbrl.org/scheme/companyName",{"$f":"Periodos!$D$3","v":"2022-01-01"},{"$f":"Periodos!$D$4","v":"2022-12-31"},{"$f":"'823180 - Nota. Activos Intang.'!$E$44","v":"co-svsp-core:ActivosIntangibles_Eje_G1"},{"$f":"'823180 - Nota. Activos Intang.'!$M$43","v":"co-svsp-core:ServiceConcessionArrangementsClassifiedAsIntangibleAssetsMember"}]
["/*",null,{"$f":"'823180 - Nota. Activos Intang.'!$E$65","v":"Disminuciones por clasificar como mantenidos para la venta, activos intangibles distintos de la plusvalía"},{"$f":"'823180 - Nota. Activos Intang.'!$D$65","v":"ifrs-full:DecreaseThroughClassifiedAsHeldForSaleIntangibleAssetsOtherThanGoodwill"}]
["",null,{"$f":"'823180 - Nota. Activos Intang.'!$E$66","v":"Incremento (disminución) en activos intangibles distintos de la plusvalía"},{"$f":"'823180 - Nota. Activos Intang.'!$D$66","v":"ifrs-full:ChangesInIntangibleAssetsOtherThanGoodwill"},0,"peso",{"$f":"'823180 - Nota. Activos Intang.'!$M$66","v":0},0,"http://www.xbrl.org/scheme/companyName",{"$f":"Periodos!$D$3","v":"2022-01-01"},{"$f":"Periodos!$D$4","v":"2022-12-31"},{"$f":"'823180 - Nota. Activos Intang.'!$E$44","v":"co-svsp-core:ActivosIntangibles_Eje_G1"},{"$f":"'823180 - Nota. Activos Intang.'!$M$43","v":"co-svsp-core:ServiceConcessionArrangementsClassifiedAsIntangibleAssetsMember"}]
["",null,{"$f":"'823180 - Nota. Activos Intang.'!$E$67","v":"Activos intangibles distintos de la plusvalía al final del periodo"},{"$f":"'823180 - Nota. Activos Intang.'!$D$67","v":"ifrs-full:IntangibleAssetsOtherThanGoodwill"},0,"peso",{"$f":"'823180 - Nota. Activos Intang.'!$M$67","v":0},0,"http://www.xbrl.org/scheme/companyName",null,{"$f":"Periodos!$D$4","v":"2022-12-31"},{"$f":"'823180 - Nota. Activos Intang.'!$E$44","v":"co-svsp-core:ActivosIntangibles_Eje_G1"},{"$f":"'823180 - Nota. Activos Intang.'!$M$43","v":"co-svsp-core:ServiceConcessionArrangementsClassifiedAsIntangibleAssetsMember"}]
["/*",null,"--09--"]
["/*",null,{"$f":"'823180 - Nota. Activos Intang.'!$E$45","v":"Información a revelar detallada sobre activos intangibles [partidas de los estados financieros]"},{"$f":"'823180 - Nota. Activos Intang.'!$D$45","v":"ifrs-full:DisclosureOfIntangibleAssetsLineItems"}]
["/*",null,{"$f":"'823180 - Nota. Activos Intang.'!$E$46","v":"Método de amortización, activos intangibles distintos de la plusvalía"},{"$f":"'823180 - Nota. Activos Intang.'!$D$46","v":"ifrs-full:AmortisationMethodIntangibleAssetsOtherThanGoodwill"}]
["/*",null,{"$f":"'823180 - Nota. Activos Intang.'!$E$47","v":"Importe en libros en términos brutos"},{"$f":"'823180 - Nota. Activos Intang.'!$D$47","v":"co-svsp-core:GrossCarryingAmount"}]
["/*",null,{"$f":"'823180 - Nota. Activos Intang.'!$E$48","v":"Depreciación y amortización acumuladas"},{"$f":"'823180 - Nota. Activos Intang.'!$D$48","v":"co-svsp-core:AccumulatedDepreciationAndAmortisation"}]
["/*",null,{"$f":"'823180 - Nota. Activos Intang.'!$E$49","v":"Deterioro de valor acumulado"},{"$f":"'823180 - Nota. Activos Intang.'!$D$49","v":"co-svsp-core:AccumulatedImpairment"}]
["/*",null,{"$f":"'823180 - Nota. Activos Intang.'!$E$50","v":"Conciliación de cambios en activos intangibles distintos de la plusvalía [resumen]"},{"$f":"'823180 - Nota. Activos Intang.'!$D$50","v":"ifrs-full:ReconciliationOfChangesInIntangibleAssetsOtherThanGoodwillAbstract"}]
["/*",null,{"$f":"'823180 - Nota. Activos Intang.'!$E$51","v":"Activos intangibles distintos de la plusvalía al inicio del periodo"},{"$f":"'823180 - Nota. Activos Intang.'!$D$51","v":"ifrs-full:IntangibleAssetsOtherThanGoodwill"}]
["/*",null,{"$f":"'823180 - Nota. Activos Intang.'!$E$52","v":"Incrementos distintos de los procedentes de combinaciones de negocios, activos intangibles distintos de la plusvalía"},{"$f":"'823180 - Nota. Activos Intang.'!$D$52","v":"ifrs-full:AdditionsOtherThanThroughBusinessCombinationsIntangibleAssetsOtherThanGoodwill"}]
["/*",null,{"$f":"'823180 - Nota. Activos Intang.'!$E$53","v":"Adquisiciones realizadas mediante combinaciones de negocios, activos intangibles distintos a la plusvalía"},{"$f":"'823180 - Nota. Activos Intang.'!$D$53","v":"ifrs-full:AcquisitionsThroughBusinessCombinationsIntangibleAssetsOtherThanGoodwill"}]
["/*",null,{"$f":"'823180 - Nota. Activos Intang.'!$E$54","v":"Amortización, activos intangibles distintos de la plusvalía"},{"$f":"'823180 - Nota. Activos Intang.'!$D$54","v":"ifrs-full:AmortisationIntangibleAssetsOtherThanGoodwill"}]
["/*",null,{"$f":"'823180 - Nota. Activos Intang.'!$E$55","v":"Pérdidas por deterioro de valor reconocidas en el resultado del periodo, activos intangibles distintos de la plusvalía"},{"$f":"'823180 - Nota. Activos Intang.'!$D$55","v":"ifrs-full:ImpairmentLossRecognisedInProfitOrLossIntangibleAssetsOtherThanGoodwill"}]
["/*",null,{"$f":"'823180 - Nota. Activos Intang.'!$E$56","v":"Reversión de pérdidas por deterioro de valor reconocidas en el resultado del periodo, activos intangibles distintos de la plusvalía"},{"$f":"'823180 - Nota. Activos Intang.'!$D$56","v":"ifrs-full:ReversalOfImpairmentLossRecognisedInProfitOrLossIntangibleAssetsOtherThanGoodwill"}]
["/*",null,{"$f":"'823180 - Nota. Activos Intang.'!$E$57","v":"Incrementos (disminuciones) por transferencias y otros cambios, activos intangibles distintos de la plusvalía [resumen]"},{"$f":"'823180 - Nota. Activos Intang.'!$D$57","v":"ifrs-full:IncreaseDecreaseThroughTransfersAndOtherChangesIntangibleAssetsOtherThanGoodwillAbstract"}]
["/*",null,{"$f":"'823180 - Nota. Activos Intang.'!$E$58","v":"Incrementos (disminuciones) por transferencias, activos intangibles distintas de la plusvalía"},{"$f":"'823180 - Nota. Activos Intang.'!$D$58","v":"ifrs-full:IncreaseDecreaseThroughTransfersIntangibleAssetsOtherThanGoodwill"}]
["/*",null,{"$f":"'823180 - Nota. Activos Intang.'!$E$59","v":"Incrementos (disminuciones) por otros cambios, activos intangibles distintos de la plusvalía"},{"$f":"'823180 - Nota. Activos Intang.'!$D$59","v":"ifrs-full:IncreaseDecreaseThroughOtherChangesIntangibleAssetsOtherThanGoodwill"}]
["",null,{"$f":"'823180 - Nota. Activos Intang.'!$E$60","v":"Incremento (disminución) por transferencias y otros cambios, activos intangibles distintos de la plusvalía"},{"$f":"'823180 - Nota. Activos Intang.'!$D$60","v":"ifrs-full:IncreaseDecreaseThroughTransfersAndOtherChangesIntangibleAssetsOtherThanGoodwill"},0,"peso",{"$f":"'823180 - Nota. Activos Intang.'!$N$60","v":0},0,"http://www.xbrl.org/scheme/companyName",{"$f":"Periodos!$D$3","v":"2022-01-01"},{"$f":"Periodos!$D$4","v":"2022-12-31"},{"$f":"'823180 - Nota. Activos Intang.'!$E$44","v":"co-svsp-core:ActivosIntangibles_Eje_G1"},{"$f":"'823180 - Nota. Activos Intang.'!$N$43","v":"ifrs-full:OtherIntangibleAssetsMember"}]
["/*",null,{"$f":"'823180 - Nota. Activos Intang.'!$E$61","v":"Disposiciones y retiros de servicio, activos intangibles distintos de la plusvalía [resumen]"},{"$f":"'823180 - Nota. Activos Intang.'!$D$61","v":"ifrs-full:DisposalsAndRetirementsIntangibleAssetsOtherThanGoodwillAbstract"}]
["/*",null,{"$f":"'823180 - Nota. Activos Intang.'!$E$62","v":"Disposiciones, activos intangibles distintos de la plusvalía"},{"$f":"'823180 - Nota. Activos Intang.'!$D$62","v":"ifrs-full:DisposalsIntangibleAssetsOtherThanGoodwill"}]
["/*",null,{"$f":"'823180 - Nota. Activos Intang.'!$E$63","v":"Retiros de servicio, activos intangibles distintos de la plusvalía"},{"$f":"'823180 - Nota. Activos Intang.'!$D$63","v":"ifrs-full:RetirementsIntangibleAssetsOtherThanGoodwill"}]
["",null,{"$f":"'823180 - Nota. Activos Intang.'!$E$64","v":"Disposiciones y retiros de servicio, activos intangibles distintos de la plusvalía"},{"$f":"'823180 - Nota. Activos Intang.'!$D$64","v":"ifrs-full:DisposalsAndRetirementsIntangibleAssetsOtherThanGoodwill"},0,"peso",{"$f":"'823180 - Nota. Activos Intang.'!$N$64","v":0},0,"http://www.xbrl.org/scheme/companyName",{"$f":"Periodos!$D$3","v":"2022-01-01"},{"$f":"Periodos!$D$4","v":"2022-12-31"},{"$f":"'823180 - Nota. Activos Intang.'!$E$44","v":"co-svsp-core:ActivosIntangibles_Eje_G1"},{"$f":"'823180 - Nota. Activos Intang.'!$N$43","v":"ifrs-full:OtherIntangibleAssetsMember"}]
["/*",null,{"$f":"'823180 - Nota. Activos Intang.'!$E$65","v":"Disminuciones por clasificar como mantenidos para la venta, activos intangibles distintos de la plusvalía"},{"$f":"'823180 - Nota. Activos Intang.'!$D$65","v":"ifrs-full:DecreaseThroughClassifiedAsHeldForSaleIntangibleAssetsOtherThanGoodwill"}]
["",null,{"$f":"'823180 - Nota. Activos Intang.'!$E$66","v":"Incremento (disminución) en activos intangibles distintos de la plusvalía"},{"$f":"'823180 - Nota. Activos Intang.'!$D$66","v":"ifrs-full:ChangesInIntangibleAssetsOtherThanGoodwill"},0,"peso",{"$f":"'823180 - Nota. Activos Intang.'!$N$66","v":0},0,"http://www.xbrl.org/scheme/companyName",{"$f":"Periodos!$D$3","v":"2022-01-01"},{"$f":"Periodos!$D$4","v":"2022-12-31"},{"$f":"'823180 - Nota. Activos Intang.'!$E$44","v":"co-svsp-core:ActivosIntangibles_Eje_G1"},{"$f":"'823180 - Nota. Activos Intang.'!$N$43","v":"ifrs-full:OtherIntangibleAssetsMember"}]
["",null,{"$f":"'823180 - Nota. Activos Intang.'!$E$67","v":"Activos intangibles distintos de la plusvalía al final del periodo"},{"$f":"'823180 - Nota. Activos Intang.'!$D$67","v":"ifrs-full:IntangibleAssetsOtherThanGoodwill"},0,"peso",{"$f":"'823180 - Nota. Activos Intang.'!$N$67","v":0},0,"http://www.xbrl.org/scheme/companyName",null,{"$f":"Periodos!$D$4","v":"2022-12-31"},{"$f":"'823180 - Nota. Activos Intang.'!$E$44","v":"co-svsp-core:ActivosIntangibles_Eje_G1"},{"$f":"'823180 - Nota. Activos Intang.'!$N$43","v":"ifrs-full:OtherIntangibleAssetsMember"}]
["/*",null,"--10--"]
["/*",null,{"$f":"'823180 - Nota. Activos Intang.'!$E$45","v":"Información a revelar detallada sobre activos intangibles [partidas de los estados financieros]"},{"$f":"'823180 - Nota. Activos Intang.'!$D$45","v":"ifrs-full:DisclosureOfIntangibleAssetsLineItems"}]
["/*",null,{"$f":"'823180 - Nota. Activos Intang.'!$E$46","v":"Método de amortización, activos intangibles distintos de la plusvalía"},{"$f":"'823180 - Nota. Activos Intang.'!$D$46","v":"ifrs-full:AmortisationMethodIntangibleAssetsOtherThanGoodwill"}]
["",null,{"$f":"'823180 - Nota. Activos Intang.'!$E$47","v":"Importe en libros en términos brutos"},{"$f":"'823180 - Nota. Activos Intang.'!$D$47","v":"co-svsp-core:GrossCarryingAmount"},0,"peso",{"$f":"'823180 - Nota. Activos Intang.'!$O$47","v":0},0,"http://www.xbrl.org/scheme/companyName",{"$f":"Periodos!$D$3","v":"2022-01-01"},{"$f":"Periodos!$D$4","v":"2022-12-31"}]
["",null,{"$f":"'823180 - Nota. Activos Intang.'!$E$48","v":"Depreciación y amortización acumuladas"},{"$f":"'823180 - Nota. Activos Intang.'!$D$48","v":"co-svsp-core:AccumulatedDepreciationAndAmortisation"},0,"peso",{"$f":"'823180 - Nota. Activos Intang.'!$O$48","v":0},0,"http://www.xbrl.org/scheme/companyName",{"$f":"Periodos!$D$3","v":"2022-01-01"},{"$f":"Periodos!$D$4","v":"2022-12-31"}]
["",null,{"$f":"'823180 - Nota. Activos Intang.'!$E$49","v":"Deterioro de valor acumulado"},{"$f":"'823180 - Nota. Activos Intang.'!$D$49","v":"co-svsp-core:AccumulatedImpairment"},0,"peso",{"$f":"'823180 - Nota. Activos Intang.'!$O$49","v":0},0,"http://www.xbrl.org/scheme/companyName",{"$f":"Periodos!$D$3","v":"2022-01-01"},{"$f":"Periodos!$D$4","v":"2022-12-31"}]
["/*",null,{"$f":"'823180 - Nota. Activos Intang.'!$E$50","v":"Conciliación de cambios en activos intangibles distintos de la plusvalía [resumen]"},{"$f":"'823180 - Nota. Activos Intang.'!$D$50","v":"ifrs-full:ReconciliationOfChangesInIntangibleAssetsOtherThanGoodwillAbstract"}]
["",null,{"$f":"'823180 - Nota. Activos Intang.'!$E$51","v":"Activos intangibles distintos de la plusvalía al inicio del periodo"},{"$f":"'823180 - Nota. Activos Intang.'!$D$51","v":"ifrs-full:IntangibleAssetsOtherThanGoodwill"},0,"peso",{"$f":"'823180 - Nota. Activos Intang.'!$O$51","v":0},0,"http://www.xbrl.org/scheme/companyName",null,{"$f":"Periodos!$E$4","v":"2021-12-31"}]
["",null,{"$f":"'823180 - Nota. Activos Intang.'!$E$52","v":"Incrementos distintos de los procedentes de combinaciones de negocios, activos intangibles distintos de la plusvalía"},{"$f":"'823180 - Nota. Activos Intang.'!$D$52","v":"ifrs-full:AdditionsOtherThanThroughBusinessCombinationsIntangibleAssetsOtherThanGoodwill"},0,"peso",{"$f":"'823180 - Nota. Activos Intang.'!$O$52","v":0},0,"http://www.xbrl.org/scheme/companyName",{"$f":"Periodos!$D$3","v":"2022-01-01"},{"$f":"Periodos!$D$4","v":"2022-12-31"}]
["",null,{"$f":"'823180 - Nota. Activos Intang.'!$E$53","v":"Adquisiciones realizadas mediante combinaciones de negocios, activos intangibles distintos a la plusvalía"},{"$f":"'823180 - Nota. Activos Intang.'!$D$53","v":"ifrs-full:AcquisitionsThroughBusinessCombinationsIntangibleAssetsOtherThanGoodwill"},0,"peso",{"$f":"'823180 - Nota. Activos Intang.'!$O$53","v":0},0,"http://www.xbrl.org/scheme/companyName",{"$f":"Periodos!$D$3","v":"2022-01-01"},{"$f":"Periodos!$D$4","v":"2022-12-31"}]
["",null,{"$f":"'823180 - Nota. Activos Intang.'!$E$54","v":"Amortización, activos intangibles distintos de la plusvalía"},{"$f":"'823180 - Nota. Activos Intang.'!$D$54","v":"ifrs-full:AmortisationIntangibleAssetsOtherThanGoodwill"},0,"peso",{"$f":"'823180 - Nota. Activos Intang.'!$O$54","v":0},0,"http://www.xbrl.org/scheme/companyName",{"$f":"Periodos!$D$3","v":"2022-01-01"},{"$f":"Periodos!$D$4","v":"2022-12-31"}]
["",null,{"$f":"'823180 - Nota. Activos Intang.'!$E$55","v":"Pérdidas por deterioro de valor reconocidas en el resultado del periodo, activos intangibles distintos de la plusvalía"},{"$f":"'823180 - Nota. Activos Intang.'!$D$55","v":"ifrs-full:ImpairmentLossRecognisedInProfitOrLossIntangibleAssetsOtherThanGoodwill"},0,"peso",{"$f":"'823180 - Nota. Activos Intang.'!$O$55","v":0},0,"http://www.xbrl.org/scheme/companyName",{"$f":"Periodos!$D$3","v":"2022-01-01"},{"$f":"Periodos!$D$4","v":"2022-12-31"}]
["",null,{"$f":"'823180 - Nota. Activos Intang.'!$E$56","v":"Reversión de pérdidas por deterioro de valor reconocidas en el resultado del periodo, activos intangibles distintos de la plusvalía"},{"$f":"'823180 - Nota. Activos Intang.'!$D$56","v":"ifrs-full:ReversalOfImpairmentLossRecognisedInProfitOrLossIntangibleAssetsOtherThanGoodwill"},0,"peso",{"$f":"'823180 - Nota. Activos Intang.'!$O$56","v":0},0,"http://www.xbrl.org/scheme/companyName",{"$f":"Periodos!$D$3","v":"2022-01-01"},{"$f":"Periodos!$D$4","v":"2022-12-31"}]
["/*",null,{"$f":"'823180 - Nota. Activos Intang.'!$E$57","v":"Incrementos (disminuciones) por transferencias y otros cambios, activos intangibles distintos de la plusvalía [resumen]"},{"$f":"'823180 - Nota. Activos Intang.'!$D$57","v":"ifrs-full:IncreaseDecreaseThroughTransfersAndOtherChangesIntangibleAssetsOtherThanGoodwillAbstract"}]
["",null,{"$f":"'823180 - Nota. Activos Intang.'!$E$58","v":"Incrementos (disminuciones) por transferencias, activos intangibles distintas de la plusvalía"},{"$f":"'823180 - Nota. Activos Intang.'!$D$58","v":"ifrs-full:IncreaseDecreaseThroughTransfersIntangibleAssetsOtherThanGoodwill"},0,"peso",{"$f":"'823180 - Nota. Activos Intang.'!$O$58","v":0},0,"http://www.xbrl.org/scheme/companyName",{"$f":"Periodos!$D$3","v":"2022-01-01"},{"$f":"Periodos!$D$4","v":"2022-12-31"}]
["",null,{"$f":"'823180 - Nota. Activos Intang.'!$E$59","v":"Incrementos (disminuciones) por otros cambios, activos intangibles distintos de la plusvalía"},{"$f":"'823180 - Nota. Activos Intang.'!$D$59","v":"ifrs-full:IncreaseDecreaseThroughOtherChangesIntangibleAssetsOtherThanGoodwill"},0,"peso",{"$f":"'823180 - Nota. Activos Intang.'!$O$59","v":0},0,"http://www.xbrl.org/scheme/companyName",{"$f":"Periodos!$D$3","v":"2022-01-01"},{"$f":"Periodos!$D$4","v":"2022-12-31"}]
["",null,{"$f":"'823180 - Nota. Activos Intang.'!$E$60","v":"Incremento (disminución) por transferencias y otros cambios, activos intangibles distintos de la plusvalía"},{"$f":"'823180 - Nota. Activos Intang.'!$D$60","v":"ifrs-full:IncreaseDecreaseThroughTransfersAndOtherChangesIntangibleAssetsOtherThanGoodwill"},0,"peso",{"$f":"'823180 - Nota. Activos Intang.'!$O$60","v":0},0,"http://www.xbrl.org/scheme/companyName",{"$f":"Periodos!$D$3","v":"2022-01-01"},{"$f":"Periodos!$D$4","v":"2022-12-31"}]
["/*",null,{"$f":"'823180 - Nota. Activos Intang.'!$E$61","v":"Disposiciones y retiros de servicio, activos intangibles distintos de la plusvalía [resumen]"},{"$f":"'823180 - Nota. Activos Intang.'!$D$61","v":"ifrs-full:DisposalsAndRetirementsIntangibleAssetsOtherThanGoodwillAbstract"}]
["",null,{"$f":"'823180 - Nota. Activos Intang.'!$E$62","v":"Disposiciones, activos intangibles distintos de la plusvalía"},{"$f":"'823180 - Nota. Activos Intang.'!$D$62","v":"ifrs-full:DisposalsIntangibleAssetsOtherThanGoodwill"},0,"peso",{"$f":"'823180 - Nota. Activos Intang.'!$O$62","v":0},0,"http://www.xbrl.org/scheme/companyName",{"$f":"Periodos!$D$3","v":"2022-01-01"},{"$f":"Periodos!$D$4","v":"2022-12-31"}]
["",null,{"$f":"'823180 - Nota. Activos Intang.'!$E$63","v":"Retiros de servicio, activos intangibles distintos de la plusvalía"},{"$f":"'823180 - Nota. Activos Intang.'!$D$63","v":"ifrs-full:RetirementsIntangibleAssetsOtherThanGoodwill"},0,"peso",{"$f":"'823180 - Nota. Activos Intang.'!$O$63","v":0},0,"http://www.xbrl.org/scheme/companyName",{"$f":"Periodos!$D$3","v":"2022-01-01"},{"$f":"Periodos!$D$4","v":"2022-12-31"}]
["",null,{"$f":"'823180 - Nota. Activos Intang.'!$E$64","v":"Disposiciones y retiros de servicio, activos intangibles distintos de la plusvalía"},{"$f":"'823180 - Nota. Activos Intang.'!$D$64","v":"ifrs-full:DisposalsAndRetirementsIntangibleAssetsOtherThanGoodwill"},0,"peso",{"$f":"'823180 - Nota. Activos Intang.'!$O$64","v":0},0,"http://www.xbrl.org/scheme/companyName",{"$f":"Periodos!$D$3","v":"2022-01-01"},{"$f":"Periodos!$D$4","v":"2022-12-31"}]
["",null,{"$f":"'823180 - Nota. Activos Intang.'!$E$65","v":"Disminuciones por clasificar como mantenidos para la venta, activos intangibles distintos de la plusvalía"},{"$f":"'823180 - Nota. Activos Intang.'!$D$65","v":"ifrs-full:DecreaseThroughClassifiedAsHeldForSaleIntangibleAssetsOtherThanGoodwill"},0,"peso",{"$f":"'823180 - Nota. Activos Intang.'!$O$65","v":0},0,"http://www.xbrl.org/scheme/companyName",{"$f":"Periodos!$D$3","v":"2022-01-01"},{"$f":"Periodos!$D$4","v":"2022-12-31"}]
[{"$f":"IF(G6880=\"\",\"/*\",\"\")","v":""},null,{"$f":"'823180 - Nota. Activos Intang.'!$E$66","v":"Incremento (disminución) en activos intangibles distintos de la plusvalía"},{"$f":"'823180 - Nota. Activos Intang.'!$D$66","v":"ifrs-full:ChangesInIntangibleAssetsOtherThanGoodwill"},0,"peso",{"$f":"'823180 - Nota. Activos Intang.'!$O$66","v":0},0,"http://www.xbrl.org/scheme/companyName",{"$f":"Periodos!$D$3","v":"2022-01-01"},{"$f":"Periodos!$D$4","v":"2022-12-31"}]
["",null,{"$f":"'823180 - Nota. Activos Intang.'!$E$67","v":"Activos intangibles distintos de la plusvalía al final del periodo"},{"$f":"'823180 - Nota. Activos Intang.'!$D$67","v":"ifrs-full:IntangibleAssetsOtherThanGoodwill"},0,"peso",{"$f":"'823180 - Nota. Activos Intang.'!$O$67","v":0},0,"http://www.xbrl.org/scheme/companyName",null,{"$f":"Periodos!$D$4","v":"2022-12-31"}]
["/*"]
["/*",null,"828000 - Nota. Cuentas x pagar"]
["/*",null,"--01--"]
["/*",null,{"$f":"'828000 - Nota. Cuentas x pagar'!$E$15","v":"Cuentas comerciales por pagar, otras cuentas por pagar y otros pasivos financieros items"},{"$f":"'828000 - Nota. Cuentas x pagar'!$D$15","v":"co-svsp-core:CxP_Cuentas_comerciales_por_pagar_otras_cuentas_por_pagar_y_otros_pasivos_financieros_items"}]
["/*",null,{"$f":"'828000 - Nota. Cuentas x pagar'!$E$16","v":"Cuentas comerciales por pagar"},{"$f":"'828000 - Nota. Cuentas x pagar'!$D$16","v":"co-svsp-core:CxP_Cuentas_por_pagar_comerciales"}]
["/*",null,{"$f":"'828000 - Nota. Cuentas x pagar'!$E$17","v":"Otras cuentas por pagar"},{"$f":"'828000 - Nota. Cuentas x pagar'!$D$17","v":"co-svsp-core:CxP_Otras_cuentas_por_pagar"}]
["",null,{"$f":"'828000 - Nota. Cuentas x pagar'!$E$18","v":"Total cuentas comerciales por pagar y otras cuentas por pagar"},{"$f":"'828000 - Nota. Cuentas x pagar'!$D$18","v":"co-svsp-core:CxP_Total_cuentas_comerciales_por_pagar_y_otras_cuentas_por_pagar"},0,"peso",{"$f":"'828000 - Nota. Cuentas x pagar'!$F$18","v":0},0,"http://www.xbrl.org/scheme/companyName",null,{"$f":"Periodos!$C$4","v":"2023-12-31"},{"$f":"'828000 - Nota. Cuentas x pagar'!$E$14","v":"co-svsp-core:CuentasXPagar_Eje"},{"$f":"'828000 - Nota. Cuentas x pagar'!$F$13","v":"co-svsp-core:Nacionales_corrientes_CxP_Miembro"}]
["/*",null,{"$f":"'828000 - Nota. Cuentas x pagar'!$E$19","v":"Otros Pasivos financieros"},{"$f":"'828000 - Nota. Cuentas x pagar'!$D$19","v":"co-svsp-core:CxP_Otros_Pasivos_financieros"}]
["",null,{"$f":"'828000 - Nota. Cuentas x pagar'!$E$20","v":"Total cuentas comerciales por pagar, otras cuentas por pagar y otros pasivos financieros"},{"$f":"'828000 - Nota. Cuentas x pagar'!$D$20","v":"co-svsp-core:CxP_Total_cuentas_comerciales_por_pagar_otras_cuentas_por_pagar_y_otros_pasivos_financieros"},0,"peso",{"$f":"'828000 - Nota. Cuentas x pagar'!$F$20","v":0},0,"http://www.xbrl.org/scheme/companyName",null,{"$f":"Periodos!$C$4","v":"2023-12-31"},{"$f":"'828000 - Nota. Cuentas x pagar'!$E$14","v":"co-svsp-core:CuentasXPagar_Eje"},{"$f":"'828000 - Nota. Cuentas x pagar'!$F$13","v":"co-svsp-core:Nacionales_corrientes_CxP_Miembro"}]
["/*",null,"--02--"]
["/*",null,{"$f":"'828000 - Nota. Cuentas x pagar'!$E$15","v":"Cuentas comerciales por pagar, otras cuentas por pagar y otros pasivos financieros items"},{"$f":"'828000 - Nota. Cuentas x pagar'!$D$15","v":"co-svsp-core:CxP_Cuentas_comerciales_por_pagar_otras_cuentas_por_pagar_y_otros_pasivos_financieros_items"}]
["/*",null,{"$f":"'828000 - Nota. Cuentas x pagar'!$E$16","v":"Cuentas comerciales por pagar"},{"$f":"'828000 - Nota. Cuentas x pagar'!$D$16","v":"co-svsp-core:CxP_Cuentas_por_pagar_comerciales"}]
["/*",null,{"$f":"'828000 - Nota. Cuentas x pagar'!$E$17","v":"Otras cuentas por pagar"},{"$f":"'828000 - Nota. Cuentas x pagar'!$D$17","v":"co-svsp-core:CxP_Otras_cuentas_por_pagar"}]
["",null,{"$f":"'828000 - Nota. Cuentas x pagar'!$E$18","v":"Total cuentas comerciales por pagar y otras cuentas por pagar"},{"$f":"'828000 - Nota. Cuentas x pagar'!$D$18","v":"co-svsp-core:CxP_Total_cuentas_comerciales_por_pagar_y_otras_cuentas_por_pagar"},0,"peso",{"$f":"'828000 - Nota. Cuentas x pagar'!$G$18","v":0},0,"http://www.xbrl.org/scheme/companyName",null,{"$f":"Periodos!$C$4","v":"2023-12-31"},{"$f":"'828000 - Nota. Cuentas x pagar'!$E$14","v":"co-svsp-core:CuentasXPagar_Eje"},{"$f":"'828000 - Nota. Cuentas x pagar'!$G$13","v":"co-svsp-core:En_el_exterior_corrientes_CxP_Miembro"}]
["/*",null,{"$f":"'828000 - Nota. Cuentas x pagar'!$E$19","v":"Otros Pasivos financieros"},{"$f":"'828000 - Nota. Cuentas x pagar'!$D$19","v":"co-svsp-core:CxP_Otros_Pasivos_financieros"}]
["",null,{"$f":"'828000 - Nota. Cuentas x pagar'!$E$20","v":"Total cuentas comerciales por pagar, otras cuentas por pagar y otros pasivos financieros"},{"$f":"'828000 - Nota. Cuentas x pagar'!$D$20","v":"co-svsp-core:CxP_Total_cuentas_comerciales_por_pagar_otras_cuentas_por_pagar_y_otros_pasivos_financieros"},0,"peso",{"$f":"'828000 - Nota. Cuentas x pagar'!$G$20","v":0},0,"http://www.xbrl.org/scheme/companyName",null,{"$f":"Periodos!$C$4","v":"2023-12-31"},{"$f":"'828000 - Nota. Cuentas x pagar'!$E$14","v":"co-svsp-core:CuentasXPagar_Eje"},{"$f":"'828000 - Nota. Cuentas x pagar'!$G$13","v":"co-svsp-core:En_el_exterior_corrientes_CxP_Miembro"}]
["/*",null,"--03--"]
["/*",null,{"$f":"'828000 - Nota. Cuentas x pagar'!$E$15","v":"Cuentas comerciales por pagar, otras cuentas por pagar y otros pasivos financieros items"},{"$f":"'828000 - Nota. Cuentas x pagar'!$D$15","v":"co-svsp-core:CxP_Cuentas_comerciales_por_pagar_otras_cuentas_por_pagar_y_otros_pasivos_financieros_items"}]
["/*",null,{"$f":"'828000 - Nota. Cuentas x pagar'!$E$16","v":"Cuentas comerciales por pagar"},{"$f":"'828000 - Nota. Cuentas x pagar'!$D$16","v":"co-svsp-core:CxP_Cuentas_por_pagar_comerciales"}]
["/*",null,{"$f":"'828000 - Nota. Cuentas x pagar'!$E$17","v":"Otras cuentas por pagar"},{"$f":"'828000 - Nota. Cuentas x pagar'!$D$17","v":"co-svsp-core:CxP_Otras_cuentas_por_pagar"}]
["",null,{"$f":"'828000 - Nota. Cuentas x pagar'!$E$18","v":"Total cuentas comerciales por pagar y otras cuentas por pagar"},{"$f":"'828000 - Nota. Cuentas x pagar'!$D$18","v":"co-svsp-core:CxP_Total_cuentas_comerciales_por_pagar_y_otras_cuentas_por_pagar"},0,"peso",{"$f":"'828000 - Nota. Cuentas x pagar'!$H$18","v":0},0,"http://www.xbrl.org/scheme/companyName",null,{"$f":"Periodos!$C$4","v":"2023-12-31"},{"$f":"'828000 - Nota. Cuentas x pagar'!$E$14","v":"co-svsp-core:CuentasXPagar_Eje"},{"$f":"'828000 - Nota. Cuentas x pagar'!$H$13","v":"co-svsp-core:Nacionales_no_corrientes_CxP_Miembro"}]
["/*",null,{"$f":"'828000 - Nota. Cuentas x pagar'!$E$19","v":"Otros Pasivos financieros"},{"$f":"'828000 - Nota. Cuentas x pagar'!$D$19","v":"co-svsp-core:CxP_Otros_Pasivos_financieros"}]
["",null,{"$f":"'828000 - Nota. Cuentas x pagar'!$E$20","v":"Total cuentas comerciales por pagar, otras cuentas por pagar y otros pasivos financieros"},{"$f":"'828000 - Nota. Cuentas x pagar'!$D$20","v":"co-svsp-core:CxP_Total_cuentas_comerciales_por_pagar_otras_cuentas_por_pagar_y_otros_pasivos_financieros"},0,"peso",{"$f":"'828000 - Nota. Cuentas x pagar'!$H$20","v":0},0,"http://www.xbrl.org/scheme/companyName",null,{"$f":"Periodos!$C$4","v":"2023-12-31"},{"$f":"'828000 - Nota. Cuentas x pagar'!$E$14","v":"co-svsp-core:CuentasXPagar_Eje"},{"$f":"'828000 - Nota. Cuentas x pagar'!$H$13","v":"co-svsp-core:Nacionales_no_corrientes_CxP_Miembro"}]
["/*",null,"--04--"]
["/*",null,{"$f":"'828000 - Nota. Cuentas x pagar'!$E$15","v":"Cuentas comerciales por pagar, otras cuentas por pagar y otros pasivos financieros items"},{"$f":"'828000 - Nota. Cuentas x pagar'!$D$15","v":"co-svsp-core:CxP_Cuentas_comerciales_por_pagar_otras_cuentas_por_pagar_y_otros_pasivos_financieros_items"}]
["/*",null,{"$f":"'828000 - Nota. Cuentas x pagar'!$E$16","v":"Cuentas comerciales por pagar"},{"$f":"'828000 - Nota. Cuentas x pagar'!$D$16","v":"co-svsp-core:CxP_Cuentas_por_pagar_comerciales"}]
["/*",null,{"$f":"'828000 - Nota. Cuentas x pagar'!$E$17","v":"Otras cuentas por pagar"},{"$f":"'828000 - Nota. Cuentas x pagar'!$D$17","v":"co-svsp-core:CxP_Otras_cuentas_por_pagar"}]
["",null,{"$f":"'828000 - Nota. Cuentas x pagar'!$E$18","v":"Total cuentas comerciales por pagar y otras cuentas por pagar"},{"$f":"'828000 - Nota. Cuentas x pagar'!$D$18","v":"co-svsp-core:CxP_Total_cuentas_comerciales_por_pagar_y_otras_cuentas_por_pagar"},0,"peso",{"$f":"'828000 - Nota. Cuentas x pagar'!$I$18","v":0},0,"http://www.xbrl.org/scheme/companyName",null,{"$f":"Periodos!$C$4","v":"2023-12-31"},{"$f":"'828000 - Nota. Cuentas x pagar'!$E$14","v":"co-svsp-core:CuentasXPagar_Eje"},{"$f":"'828000 - Nota. Cuentas x pagar'!$I$13","v":"co-svsp-core:En_el_exterior_no_corrientes_CxP_Miembro"}]
["/*",null,{"$f":"'828000 - Nota. Cuentas x pagar'!$E$19","v":"Otros Pasivos financieros"},{"$f":"'828000 - Nota. Cuentas x pagar'!$D$19","v":"co-svsp-core:CxP_Otros_Pasivos_financieros"}]
["",null,{"$f":"'828000 - Nota. Cuentas x pagar'!$E$20","v":"Total cuentas comerciales por pagar, otras cuentas por pagar y otros pasivos financieros"},{"$f":"'828000 - Nota. Cuentas x pagar'!$D$20","v":"co-svsp-core:CxP_Total_cuentas_comerciales_por_pagar_otras_cuentas_por_pagar_y_otros_pasivos_financieros"},0,"peso",{"$f":"'828000 - Nota. Cuentas x pagar'!$I$20","v":0},0,"http://www.xbrl.org/scheme/companyName",null,{"$f":"Periodos!$C$4","v":"2023-12-31"},{"$f":"'828000 - Nota. Cuentas x pagar'!$E$14","v":"co-svsp-core:CuentasXPagar_Eje"},{"$f":"'828000 - Nota. Cuentas x pagar'!$I$13","v":"co-svsp-core:En_el_exterior_no_corrientes_CxP_Miembro"}]
["/*",null,"--05--"]
["/*",null,{"$f":"'828000 - Nota. Cuentas x pagar'!$E$15","v":"Cuentas comerciales por pagar, otras cuentas por pagar y otros pasivos financieros items"},{"$f":"'828000 - Nota. Cuentas x pagar'!$D$15","v":"co-svsp-core:CxP_Cuentas_comerciales_por_pagar_otras_cuentas_por_pagar_y_otros_pasivos_financieros_items"}]
["",null,{"$f":"'828000 - Nota. Cuentas x pagar'!$E$16","v":"Cuentas comerciales por pagar"},{"$f":"'828000 - Nota. Cuentas x pagar'!$D$16","v":"co-svsp-core:CxP_Cuentas_por_pagar_comerciales"},0,"peso",{"$f":"'828000 - Nota. Cuentas x pagar'!$J$16","v":0},0,"http://www.xbrl.org/scheme/companyName",null,{"$f":"Periodos!$C$4","v":"2023-12-31"},{"$f":"'828000 - Nota. Cuentas x pagar'!$E$14","v":"co-svsp-core:CuentasXPagar_Eje"},{"$f":"'828000 - Nota. Cuentas x pagar'!$J$13","v":"co-svsp-core:Total_Saldo_del_ejercicio_CxP_Miembro"}]
["",null,{"$f":"'828000 - Nota. Cuentas x pagar'!$E$17","v":"Otras cuentas por pagar"},{"$f":"'828000 - Nota. Cuentas x pagar'!$D$17","v":"co-svsp-core:CxP_Otras_cuentas_por_pagar"},0,"peso",{"$f":"'828000 - Nota. Cuentas x pagar'!$J$17","v":0},0,"http://www.xbrl.org/scheme/companyName",null,{"$f":"Periodos!$C$4","v":"2023-12-31"},{"$f":"'828000 - Nota. Cuentas x pagar'!$E$14","v":"co-svsp-core:CuentasXPagar_Eje"},{"$f":"'828000 - Nota. Cuentas x pagar'!$J$13","v":"co-svsp-core:Total_Saldo_del_ejercicio_CxP_Miembro"}]
["",null,{"$f":"'828000 - Nota. Cuentas x pagar'!$E$18","v":"Total cuentas comerciales por pagar y otras cuentas por pagar"},{"$f":"'828000 - Nota. Cuentas x pagar'!$D$18","v":"co-svsp-core:CxP_Total_cuentas_comerciales_por_pagar_y_otras_cuentas_por_pagar"},0,"peso",{"$f":"'828000 - Nota. Cuentas x pagar'!$J$18","v":0},0,"http://www.xbrl.org/scheme/companyName",null,{"$f":"Periodos!$C$4","v":"2023-12-31"},{"$f":"'828000 - Nota. Cuentas x pagar'!$E$14","v":"co-svsp-core:CuentasXPagar_Eje"},{"$f":"'828000 - Nota. Cuentas x pagar'!$J$13","v":"co-svsp-core:Total_Saldo_del_ejercicio_CxP_Miembro"}]
["",null,{"$f":"'828000 - Nota. Cuentas x pagar'!$E$19","v":"Otros Pasivos financieros"},{"$f":"'828000 - Nota. Cuentas x pagar'!$D$19","v":"co-svsp-core:CxP_Otros_Pasivos_financieros"},0,"peso",{"$f":"'828000 - Nota. Cuentas x pagar'!$J$19","v":0},0,"http://www.xbrl.org/scheme/companyName",null,{"$f":"Periodos!$C$4","v":"2023-12-31"},{"$f":"'828000 - Nota. Cuentas x pagar'!$E$14","v":"co-svsp-core:CuentasXPagar_Eje"},{"$f":"'828000 - Nota. Cuentas x pagar'!$J$13","v":"co-svsp-core:Total_Saldo_del_ejercicio_CxP_Miembro"}]
["",null,{"$f":"'828000 - Nota. Cuentas x pagar'!$E$20","v":"Total cuentas comerciales por pagar, otras cuentas por pagar y otros pasivos financieros"},{"$f":"'828000 - Nota. Cuentas x pagar'!$D$20","v":"co-svsp-core:CxP_Total_cuentas_comerciales_por_pagar_otras_cuentas_por_pagar_y_otros_pasivos_financieros"},0,"peso",{"$f":"'828000 - Nota. Cuentas x pagar'!$J$20","v":0},0,"http://www.xbrl.org/scheme/companyName",null,{"$f":"Periodos!$C$4","v":"2023-12-31"},{"$f":"'828000 - Nota. Cuentas x pagar'!$E$14","v":"co-svsp-core:CuentasXPagar_Eje"},{"$f":"'828000 - Nota. Cuentas x pagar'!$J$13","v":"co-svsp-core:Total_Saldo_del_ejercicio_CxP_Miembro"}]
["/*",null,"--06--"]
["/*",null,{"$f":"'828000 - Nota. Cuentas x pagar'!$E$15","v":"Cuentas comerciales por pagar, otras cuentas por pagar y otros pasivos financieros items"},{"$f":"'828000 - Nota. Cuentas x pagar'!$D$15","v":"co-svsp-core:CxP_Cuentas_comerciales_por_pagar_otras_cuentas_por_pagar_y_otros_pasivos_financieros_items"}]
["/*",null,{"$f":"'828000 - Nota. Cuentas x pagar'!$E$16","v":"Cuentas comerciales por pagar"},{"$f":"'828000 - Nota. Cuentas x pagar'!$D$16","v":"co-svsp-core:CxP_Cuentas_por_pagar_comerciales"}]
["/*",null,{"$f":"'828000 - Nota. Cuentas x pagar'!$E$17","v":"Otras cuentas por pagar"},{"$f":"'828000 - Nota. Cuentas x pagar'!$D$17","v":"co-svsp-core:CxP_Otras_cuentas_por_pagar"}]
["",null,{"$f":"'828000 - Nota. Cuentas x pagar'!$E$18","v":"Total cuentas comerciales por pagar y otras cuentas por pagar"},{"$f":"'828000 - Nota. Cuentas x pagar'!$D$18","v":"co-svsp-core:CxP_Total_cuentas_comerciales_por_pagar_y_otras_cuentas_por_pagar"},0,"peso",{"$f":"'828000 - Nota. Cuentas x pagar'!$K$18","v":0},0,"http://www.xbrl.org/scheme/companyName",null,{"$f":"Periodos!$C$4","v":"2023-12-31"},{"$f":"'828000 - Nota. Cuentas x pagar'!$E$14","v":"co-svsp-core:CuentasXPagar_Eje"},{"$f":"'828000 - Nota. Cuentas x pagar'!$K$13","v":"co-svsp-core:Numero_de_obligaciones_vencidas_CxP_Miembro"}]
["/*",null,{"$f":"'828000 - Nota. Cuentas x pagar'!$E$19","v":"Otros Pasivos financieros"},{"$f":"'828000 - Nota. Cuentas x pagar'!$D$19","v":"co-svsp-core:CxP_Otros_Pasivos_financieros"}]
["",null,{"$f":"'828000 - Nota. Cuentas x pagar'!$E$20","v":"Total cuentas comerciales por pagar, otras cuentas por pagar y otros pasivos financieros"},{"$f":"'828000 - Nota. Cuentas x pagar'!$D$20","v":"co-svsp-core:CxP_Total_cuentas_comerciales_por_pagar_otras_cuentas_por_pagar_y_otros_pasivos_financieros"},0,"peso",{"$f":"'828000 - Nota. Cuentas x pagar'!$K$20","v":0},0,"http://www.xbrl.org/scheme/companyName",null,{"$f":"Periodos!$C$4","v":"2023-12-31"},{"$f":"'828000 - Nota. Cuentas x pagar'!$E$14","v":"co-svsp-core:CuentasXPagar_Eje"},{"$f":"'828000 - Nota. Cuentas x pagar'!$K$13","v":"co-svsp-core:Numero_de_obligaciones_vencidas_CxP_Miembro"}]
["/*",null,"--07--"]
["/*",null,{"$f":"'828000 - Nota. Cuentas x pagar'!$E$15","v":"Cuentas comerciales por pagar, otras cuentas por pagar y otros pasivos financieros items"},{"$f":"'828000 - Nota. Cuentas x pagar'!$D$15","v":"co-svsp-core:CxP_Cuentas_comerciales_por_pagar_otras_cuentas_por_pagar_y_otros_pasivos_financieros_items"}]
["/*",null,{"$f":"'828000 - Nota. Cuentas x pagar'!$E$16","v":"Cuentas comerciales por pagar"},{"$f":"'828000 - Nota. Cuentas x pagar'!$D$16","v":"co-svsp-core:CxP_Cuentas_por_pagar_comerciales"}]
["/*",null,{"$f":"'828000 - Nota. Cuentas x pagar'!$E$17","v":"Otras cuentas por pagar"},{"$f":"'828000 - Nota. Cuentas x pagar'!$D$17","v":"co-svsp-core:CxP_Otras_cuentas_por_pagar"}]
["",null,{"$f":"'828000 - Nota. Cuentas x pagar'!$E$18","v":"Total cuentas comerciales por pagar y otras cuentas por pagar"},{"$f":"'828000 - Nota. Cuentas x pagar'!$D$18","v":"co-svsp-core:CxP_Total_cuentas_comerciales_por_pagar_y_otras_cuentas_por_pagar"},0,"peso",{"$f":"'828000 - Nota. Cuentas x pagar'!$L$18","v":0},0,"http://www.xbrl.org/scheme/companyName",null,{"$f":"Periodos!$C$4","v":"2023-12-31"},{"$f":"'828000 - Nota. Cuentas x pagar'!$E$14","v":"co-svsp-core:CuentasXPagar_Eje"},{"$f":"'828000 - Nota. Cuentas x pagar'!$L$13","v":"co-svsp-core:CxP_Vencidas_1_a_90_dias_Miembro"}]
["/*",null,{"$f":"'828000 - Nota. Cuentas x pagar'!$E$19","v":"Otros Pasivos financieros"},{"$f":"'828000 - Nota. Cuentas x pagar'!$D$19","v":"co-svsp-core:CxP_Otros_Pasivos_financieros"}]
["",null,{"$f":"'828000 - Nota. Cuentas x pagar'!$E$20","v":"Total cuentas comerciales por pagar, otras cuentas por pagar y otros pasivos financieros"},{"$f":"'828000 - Nota. Cuentas x pagar'!$D$20","v":"co-svsp-core:CxP_Total_cuentas_comerciales_por_pagar_otras_cuentas_por_pagar_y_otros_pasivos_financieros"},0,"peso",{"$f":"'828000 - Nota. Cuentas x pagar'!$L$20","v":0},0,"http://www.xbrl.org/scheme/companyName",null,{"$f":"Periodos!$C$4","v":"2023-12-31"},{"$f":"'828000 - Nota. Cuentas x pagar'!$E$14","v":"co-svsp-core:CuentasXPagar_Eje"},{"$f":"'828000 - Nota. Cuentas x pagar'!$L$13","v":"co-svsp-core:CxP_Vencidas_1_a_90_dias_Miembro"}]
["/*",null,"--08--"]
["/*",null,{"$f":"'828000 - Nota. Cuentas x pagar'!$E$15","v":"Cuentas comerciales por pagar, otras cuentas por pagar y otros pasivos financieros items"},{"$f":"'828000 - Nota. Cuentas x pagar'!$D$15","v":"co-svsp-core:CxP_Cuentas_comerciales_por_pagar_otras_cuentas_por_pagar_y_otros_pasivos_financieros_items"}]
["/*",null,{"$f":"'828000 - Nota. Cuentas x pagar'!$E$16","v":"Cuentas comerciales por pagar"},{"$f":"'828000 - Nota. Cuentas x pagar'!$D$16","v":"co-svsp-core:CxP_Cuentas_por_pagar_comerciales"}]
["/*",null,{"$f":"'828000 - Nota. Cuentas x pagar'!$E$17","v":"Otras cuentas por pagar"},{"$f":"'828000 - Nota. Cuentas x pagar'!$D$17","v":"co-svsp-core:CxP_Otras_cuentas_por_pagar"}]
["",null,{"$f":"'828000 - Nota. Cuentas x pagar'!$E$18","v":"Total cuentas comerciales por pagar y otras cuentas por pagar"},{"$f":"'828000 - Nota. Cuentas x pagar'!$D$18","v":"co-svsp-core:CxP_Total_cuentas_comerciales_por_pagar_y_otras_cuentas_por_pagar"},0,"peso",{"$f":"'828000 - Nota. Cuentas x pagar'!$M$18","v":0},0,"http://www.xbrl.org/scheme/companyName",null,{"$f":"Periodos!$C$4","v":"2023-12-31"},{"$f":"'828000 - Nota. Cuentas x pagar'!$E$14","v":"co-svsp-core:CuentasXPagar_Eje"},{"$f":"'828000 - Nota. Cuentas x pagar'!$M$13","v":"co-svsp-core:CxP_Vencidas_91_a_180_dias_Miembro"}]
["/*",null,{"$f":"'828000 - Nota. Cuentas x pagar'!$E$19","v":"Otros Pasivos financieros"},{"$f":"'828000 - Nota. Cuentas x pagar'!$D$19","v":"co-svsp-core:CxP_Otros_Pasivos_financieros"}]
["",null,{"$f":"'828000 - Nota. Cuentas x pagar'!$E$20","v":"Total cuentas comerciales por pagar, otras cuentas por pagar y otros pasivos financieros"},{"$f":"'828000 - Nota. Cuentas x pagar'!$D$20","v":"co-svsp-core:CxP_Total_cuentas_comerciales_por_pagar_otras_cuentas_por_pagar_y_otros_pasivos_financieros"},0,"peso",{"$f":"'828000 - Nota. Cuentas x pagar'!$M$20","v":0},0,"http://www.xbrl.org/scheme/companyName",null,{"$f":"Periodos!$C$4","v":"2023-12-31"},{"$f":"'828000 - Nota. Cuentas x pagar'!$E$14","v":"co-svsp-core:CuentasXPagar_Eje"},{"$f":"'828000 - Nota. Cuentas x pagar'!$M$13","v":"co-svsp-core:CxP_Vencidas_91_a_180_dias_Miembro"}]
["/*",null,"--09--"]
["/*",null,{"$f":"'828000 - Nota. Cuentas x pagar'!$E$15","v":"Cuentas comerciales por pagar, otras cuentas por pagar y otros pasivos financieros items"},{"$f":"'828000 - Nota. Cuentas x pagar'!$D$15","v":"co-svsp-core:CxP_Cuentas_comerciales_por_pagar_otras_cuentas_por_pagar_y_otros_pasivos_financieros_items"}]
["/*",null,{"$f":"'828000 - Nota. Cuentas x pagar'!$E$16","v":"Cuentas comerciales por pagar"},{"$f":"'828000 - Nota. Cuentas x pagar'!$D$16","v":"co-svsp-core:CxP_Cuentas_por_pagar_comerciales"}]
["/*",null,{"$f":"'828000 - Nota. Cuentas x pagar'!$E$17","v":"Otras cuentas por pagar"},{"$f":"'828000 - Nota. Cuentas x pagar'!$D$17","v":"co-svsp-core:CxP_Otras_cuentas_por_pagar"}]
[{"$f":"IF(G6944=\"\",\"/*\",\"\")","v":""},null,{"$f":"'828000 - Nota. Cuentas x pagar'!$E$18","v":"Total cuentas comerciales por pagar y otras cuentas por pagar"},{"$f":"'828000 - Nota. Cuentas x pagar'!$D$18","v":"co-svsp-core:CxP_Total_cuentas_comerciales_por_pagar_y_otras_cuentas_por_pagar"},0,"peso",{"$f":"'828000 - Nota. Cuentas x pagar'!$N$18","v":0},0,"http://www.xbrl.org/scheme/companyName",null,{"$f":"Periodos!$C$4","v":"2023-12-31"},{"$f":"'828000 - Nota. Cuentas x pagar'!$E$14","v":"co-svsp-core:CuentasXPagar_Eje"},{"$f":"'828000 - Nota. Cuentas x pagar'!$N$13","v":"co-svsp-core:CxP_Vencidas_181_a_360_dias_Miembro"}]
["/*",null,{"$f":"'828000 - Nota. Cuentas x pagar'!$E$19","v":"Otros Pasivos financieros"},{"$f":"'828000 - Nota. Cuentas x pagar'!$D$19","v":"co-svsp-core:CxP_Otros_Pasivos_financieros"}]
["",null,{"$f":"'828000 - Nota. Cuentas x pagar'!$E$20","v":"Total cuentas comerciales por pagar, otras cuentas por pagar y otros pasivos financieros"},{"$f":"'828000 - Nota. Cuentas x pagar'!$D$20","v":"co-svsp-core:CxP_Total_cuentas_comerciales_por_pagar_otras_cuentas_por_pagar_y_otros_pasivos_financieros"},0,"peso",{"$f":"'828000 - Nota. Cuentas x pagar'!$N$20","v":0},0,"http://www.xbrl.org/scheme/companyName",null,{"$f":"Periodos!$C$4","v":"2023-12-31"},{"$f":"'828000 - Nota. Cuentas x pagar'!$E$14","v":"co-svsp-core:CuentasXPagar_Eje"},{"$f":"'828000 - Nota. Cuentas x pagar'!$N$13","v":"co-svsp-core:CxP_Vencidas_181_a_360_dias_Miembro"}]
["/*",null,"--10--"]
["/*",null,{"$f":"'828000 - Nota. Cuentas x pagar'!$E$15","v":"Cuentas comerciales por pagar, otras cuentas por pagar y otros pasivos financieros items"},{"$f":"'828000 - Nota. Cuentas x pagar'!$D$15","v":"co-svsp-core:CxP_Cuentas_comerciales_por_pagar_otras_cuentas_por_pagar_y_otros_pasivos_financieros_items"}]
["/*",null,{"$f":"'828000 - Nota. Cuentas x pagar'!$E$16","v":"Cuentas comerciales por pagar"},{"$f":"'828000 - Nota. Cuentas x pagar'!$D$16","v":"co-svsp-core:CxP_Cuentas_por_pagar_comerciales"}]
["/*",null,{"$f":"'828000 - Nota. Cuentas x pagar'!$E$17","v":"Otras cuentas por pagar"},{"$f":"'828000 - Nota. Cuentas x pagar'!$D$17","v":"co-svsp-core:CxP_Otras_cuentas_por_pagar"}]
["",null,{"$f":"'828000 - Nota. Cuentas x pagar'!$E$18","v":"Total cuentas comerciales por pagar y otras cuentas por pagar"},{"$f":"'828000 - Nota. Cuentas x pagar'!$D$18","v":"co-svsp-core:CxP_Total_cuentas_comerciales_por_pagar_y_otras_cuentas_por_pagar"},0,"peso",{"$f":"'828000 - Nota. Cuentas x pagar'!$O$18","v":0},0,"http://www.xbrl.org/scheme/companyName",null,{"$f":"Periodos!$C$4","v":"2023-12-31"},{"$f":"'828000 - Nota. Cuentas x pagar'!$E$14","v":"co-svsp-core:CuentasXPagar_Eje"},{"$f":"'828000 - Nota. Cuentas x pagar'!$O$13","v":"co-svsp-core:CxP_Vencidas_mas_de_360_dias_Miembro"}]
["/*",null,{"$f":"'828000 - Nota. Cuentas x pagar'!$E$19","v":"Otros Pasivos financieros"},{"$f":"'828000 - Nota. Cuentas x pagar'!$D$19","v":"co-svsp-core:CxP_Otros_Pasivos_financieros"}]
["",null,{"$f":"'828000 - Nota. Cuentas x pagar'!$E$20","v":"Total cuentas comerciales por pagar, otras cuentas por pagar y otros pasivos financieros"},{"$f":"'828000 - Nota. Cuentas x pagar'!$D$20","v":"co-svsp-core:CxP_Total_cuentas_comerciales_por_pagar_otras_cuentas_por_pagar_y_otros_pasivos_financieros"},0,"peso",{"$f":"'828000 - Nota. Cuentas x pagar'!$O$20","v":0},0,"http://www.xbrl.org/scheme/companyName",null,{"$f":"Periodos!$C$4","v":"2023-12-31"},{"$f":"'828000 - Nota. Cuentas x pagar'!$E$14","v":"co-svsp-core:CuentasXPagar_Eje"},{"$f":"'828000 - Nota. Cuentas x pagar'!$O$13","v":"co-svsp-core:CxP_Vencidas_mas_de_360_dias_Miembro"}]
["/*",null,"--11--"]
["/*",null,{"$f":"'828000 - Nota. Cuentas x pagar'!$E$15","v":"Cuentas comerciales por pagar, otras cuentas por pagar y otros pasivos financieros items"},{"$f":"'828000 - Nota. Cuentas x pagar'!$D$15","v":"co-svsp-core:CxP_Cuentas_comerciales_por_pagar_otras_cuentas_por_pagar_y_otros_pasivos_financieros_items"}]
["",null,{"$f":"'828000 - Nota. Cuentas x pagar'!$E$16","v":"Cuentas comerciales por pagar"},{"$f":"'828000 - Nota. Cuentas x pagar'!$D$16","v":"co-svsp-core:CxP_Cuentas_por_pagar_comerciales"},0,"peso",{"$f":"'828000 - Nota. Cuentas x pagar'!$P$16","v":0},0,"http://www.xbrl.org/scheme/companyName",null,{"$f":"Periodos!$C$4","v":"2023-12-31"},{"$f":"'828000 - Nota. Cuentas x pagar'!$E$14","v":"co-svsp-core:CuentasXPagar_Eje"},{"$f":"'828000 - Nota. Cuentas x pagar'!$P$13","v":"co-svsp-core:Obligaciones_vencidas_CxP_Miembro"}]
["",null,{"$f":"'828000 - Nota. Cuentas x pagar'!$E$17","v":"Otras cuentas por pagar"},{"$f":"'828000 - Nota. Cuentas x pagar'!$D$17","v":"co-svsp-core:CxP_Otras_cuentas_por_pagar"},0,"peso",{"$f":"'828000 - Nota. Cuentas x pagar'!$P$17","v":0},0,"http://www.xbrl.org/scheme/companyName",null,{"$f":"Periodos!$C$4","v":"2023-12-31"},{"$f":"'828000 - Nota. Cuentas x pagar'!$E$14","v":"co-svsp-core:CuentasXPagar_Eje"},{"$f":"'828000 - Nota. Cuentas x pagar'!$P$13","v":"co-svsp-core:Obligaciones_vencidas_CxP_Miembro"}]
["",null,{"$f":"'828000 - Nota. Cuentas x pagar'!$E$18","v":"Total cuentas comerciales por pagar y otras cuentas por pagar"},{"$f":"'828000 - Nota. Cuentas x pagar'!$D$18","v":"co-svsp-core:CxP_Total_cuentas_comerciales_por_pagar_y_otras_cuentas_por_pagar"},0,"peso",{"$f":"'828000 - Nota. Cuentas x pagar'!$P$18","v":0},0,"http://www.xbrl.org/scheme/companyName",null,{"$f":"Periodos!$C$4","v":"2023-12-31"},{"$f":"'828000 - Nota. Cuentas x pagar'!$E$14","v":"co-svsp-core:CuentasXPagar_Eje"},{"$f":"'828000 - Nota. Cuentas x pagar'!$P$13","v":"co-svsp-core:Obligaciones_vencidas_CxP_Miembro"}]
["",null,{"$f":"'828000 - Nota. Cuentas x pagar'!$E$19","v":"Otros Pasivos financieros"},{"$f":"'828000 - Nota. Cuentas x pagar'!$D$19","v":"co-svsp-core:CxP_Otros_Pasivos_financieros"},0,"peso",{"$f":"'828000 - Nota. Cuentas x pagar'!$P$19","v":0},0,"http://www.xbrl.org/scheme/companyName",null,{"$f":"Periodos!$C$4","v":"2023-12-31"},{"$f":"'828000 - Nota. Cuentas x pagar'!$E$14","v":"co-svsp-core:CuentasXPagar_Eje"},{"$f":"'828000 - Nota. Cuentas x pagar'!$P$13","v":"co-svsp-core:Obligaciones_vencidas_CxP_Miembro"}]
["",null,{"$f":"'828000 - Nota. Cuentas x pagar'!$E$20","v":"Total cuentas comerciales por pagar, otras cuentas por pagar y otros pasivos financieros"},{"$f":"'828000 - Nota. Cuentas x pagar'!$D$20","v":"co-svsp-core:CxP_Total_cuentas_comerciales_por_pagar_otras_cuentas_por_pagar_y_otros_pasivos_financieros"},0,"peso",{"$f":"'828000 - Nota. Cuentas x pagar'!$P$20","v":0},0,"http://www.xbrl.org/scheme/companyName",null,{"$f":"Periodos!$C$4","v":"2023-12-31"},{"$f":"'828000 - Nota. Cuentas x pagar'!$E$14","v":"co-svsp-core:CuentasXPagar_Eje"},{"$f":"'828000 - Nota. Cuentas x pagar'!$P$13","v":"co-svsp-core:Obligaciones_vencidas_CxP_Miembro"}]
["/*"]
["/*",null,"828000 - Nota. Cuentas x pagar"]
["/*",null,"--01--"]
["/*",null,{"$f":"'828000 - Nota. Cuentas x pagar'!$E$28","v":"Cuentas comerciales por pagar, otras cuentas por pagar y otros pasivos financieros items"},{"$f":"'828000 - Nota. Cuentas x pagar'!$D$28","v":"co-svsp-core:CxP_Cuentas_comerciales_por_pagar_otras_cuentas_por_pagar_y_otros_pasivos_financieros_items"}]
["/*",null,{"$f":"'828000 - Nota. Cuentas x pagar'!$E$29","v":"Cuentas comerciales por pagar"},{"$f":"'828000 - Nota. Cuentas x pagar'!$D$29","v":"co-svsp-core:CxP_Cuentas_por_pagar_comerciales"}]
["/*",null,{"$f":"'828000 - Nota. Cuentas x pagar'!$E$30","v":"Otras cuentas por pagar"},{"$f":"'828000 - Nota. Cuentas x pagar'!$D$30","v":"co-svsp-core:CxP_Otras_cuentas_por_pagar"}]
["",null,{"$f":"'828000 - Nota. Cuentas x pagar'!$E$31","v":"Total cuentas comerciales por pagar y otras cuentas por pagar"},{"$f":"'828000 - Nota. Cuentas x pagar'!$D$31","v":"co-svsp-core:CxP_Total_cuentas_comerciales_por_pagar_y_otras_cuentas_por_pagar"},0,"peso",{"$f":"'828000 - Nota. Cuentas x pagar'!$F$31","v":0},0,"http://www.xbrl.org/scheme/companyName",null,{"$f":"Periodos!$D$4","v":"2022-12-31"},{"$f":"'828000 - Nota. Cuentas x pagar'!$E$27","v":"co-svsp-core:CuentasXPagar_Eje"},{"$f":"'828000 - Nota. Cuentas x pagar'!$F$26","v":"co-svsp-core:Nacionales_corrientes_CxP_Miembro"}]
["/*",null,{"$f":"'828000 - Nota. Cuentas x pagar'!$E$32","v":"Otros Pasivos financieros"},{"$f":"'828000 - Nota. Cuentas x pagar'!$D$32","v":"co-svsp-core:CxP_Otros_Pasivos_financieros"}]
["",null,{"$f":"'828000 - Nota. Cuentas x pagar'!$E$33","v":"Total cuentas comerciales por pagar, otras cuentas por pagar y otros pasivos financieros"},{"$f":"'828000 - Nota. Cuentas x pagar'!$D$33","v":"co-svsp-core:CxP_Total_cuentas_comerciales_por_pagar_otras_cuentas_por_pagar_y_otros_pasivos_financieros"},0,"peso",{"$f":"'828000 - Nota. Cuentas x pagar'!$F$33","v":0},0,"http://www.xbrl.org/scheme/companyName",null,{"$f":"Periodos!$D$4","v":"2022-12-31"},{"$f":"'828000 - Nota. Cuentas x pagar'!$E$27","v":"co-svsp-core:CuentasXPagar_Eje"},{"$f":"'828000 - Nota. Cuentas x pagar'!$F$26","v":"co-svsp-core:Nacionales_corrientes_CxP_Miembro"}]
["/*",null,"--02--"]
["/*",null,{"$f":"'828000 - Nota. Cuentas x pagar'!$E$28","v":"Cuentas comerciales por pagar, otras cuentas por pagar y otros pasivos financieros items"},{"$f":"'828000 - Nota. Cuentas x pagar'!$D$28","v":"co-svsp-core:CxP_Cuentas_comerciales_por_pagar_otras_cuentas_por_pagar_y_otros_pasivos_financieros_items"}]
["/*",null,{"$f":"'828000 - Nota. Cuentas x pagar'!$E$29","v":"Cuentas comerciales por pagar"},{"$f":"'828000 - Nota. Cuentas x pagar'!$D$29","v":"co-svsp-core:CxP_Cuentas_por_pagar_comerciales"}]
["/*",null,{"$f":"'828000 - Nota. Cuentas x pagar'!$E$30","v":"Otras cuentas por pagar"},{"$f":"'828000 - Nota. Cuentas x pagar'!$D$30","v":"co-svsp-core:CxP_Otras_cuentas_por_pagar"}]
["",null,{"$f":"'828000 - Nota. Cuentas x pagar'!$E$31","v":"Total cuentas comerciales por pagar y otras cuentas por pagar"},{"$f":"'828000 - Nota. Cuentas x pagar'!$D$31","v":"co-svsp-core:CxP_Total_cuentas_comerciales_por_pagar_y_otras_cuentas_por_pagar"},0,"peso",{"$f":"'828000 - Nota. Cuentas x pagar'!$G$31","v":0},0,"http://www.xbrl.org/scheme/companyName",null,{"$f":"Periodos!$D$4","v":"2022-12-31"},{"$f":"'828000 - Nota. Cuentas x pagar'!$E$27","v":"co-svsp-core:CuentasXPagar_Eje"},{"$f":"'828000 - Nota. Cuentas x pagar'!$G$26","v":"co-svsp-core:En_el_exterior_corrientes_CxP_Miembro"}]
["/*",null,{"$f":"'828000 - Nota. Cuentas x pagar'!$E$32","v":"Otros Pasivos financieros"},{"$f":"'828000 - Nota. Cuentas x pagar'!$D$32","v":"co-svsp-core:CxP_Otros_Pasivos_financieros"}]
["",null,{"$f":"'828000 - Nota. Cuentas x pagar'!$E$33","v":"Total cuentas comerciales por pagar, otras cuentas por pagar y otros pasivos financieros"},{"$f":"'828000 - Nota. Cuentas x pagar'!$D$33","v":"co-svsp-core:CxP_Total_cuentas_comerciales_por_pagar_otras_cuentas_por_pagar_y_otros_pasivos_financieros"},0,"peso",{"$f":"'828000 - Nota. Cuentas x pagar'!$G$33","v":0},0,"http://www.xbrl.org/scheme/companyName",null,{"$f":"Periodos!$D$4","v":"2022-12-31"},{"$f":"'828000 - Nota. Cuentas x pagar'!$E$27","v":"co-svsp-core:CuentasXPagar_Eje"},{"$f":"'828000 - Nota. Cuentas x pagar'!$G$26","v":"co-svsp-core:En_el_exterior_corrientes_CxP_Miembro"}]
["/*",null,"--03--"]
["/*",null,{"$f":"'828000 - Nota. Cuentas x pagar'!$E$28","v":"Cuentas comerciales por pagar, otras cuentas por pagar y otros pasivos financieros items"},{"$f":"'828000 - Nota. Cuentas x pagar'!$D$28","v":"co-svsp-core:CxP_Cuentas_comerciales_por_pagar_otras_cuentas_por_pagar_y_otros_pasivos_financieros_items"}]
["/*",null,{"$f":"'828000 - Nota. Cuentas x pagar'!$E$29","v":"Cuentas comerciales por pagar"},{"$f":"'828000 - Nota. Cuentas x pagar'!$D$29","v":"co-svsp-core:CxP_Cuentas_por_pagar_comerciales"}]
["/*",null,{"$f":"'828000 - Nota. Cuentas x pagar'!$E$30","v":"Otras cuentas por pagar"},{"$f":"'828000 - Nota. Cuentas x pagar'!$D$30","v":"co-svsp-core:CxP_Otras_cuentas_por_pagar"}]
["",null,{"$f":"'828000 - Nota. Cuentas x pagar'!$E$31","v":"Total cuentas comerciales por pagar y otras cuentas por pagar"},{"$f":"'828000 - Nota. Cuentas x pagar'!$D$31","v":"co-svsp-core:CxP_Total_cuentas_comerciales_por_pagar_y_otras_cuentas_por_pagar"},0,"peso",{"$f":"'828000 - Nota. Cuentas x pagar'!$H$31","v":0},0,"http://www.xbrl.org/scheme/companyName",null,{"$f":"Periodos!$D$4","v":"2022-12-31"},{"$f":"'828000 - Nota. Cuentas x pagar'!$E$27","v":"co-svsp-core:CuentasXPagar_Eje"},{"$f":"'828000 - Nota. Cuentas x pagar'!$H$26","v":"co-svsp-core:Nacionales_no_corrientes_CxP_Miembro"}]
["/*",null,{"$f":"'828000 - Nota. Cuentas x pagar'!$E$32","v":"Otros Pasivos financieros"},{"$f":"'828000 - Nota. Cuentas x pagar'!$D$32","v":"co-svsp-core:CxP_Otros_Pasivos_financieros"}]
["",null,{"$f":"'828000 - Nota. Cuentas x pagar'!$E$33","v":"Total cuentas comerciales por pagar, otras cuentas por pagar y otros pasivos financieros"},{"$f":"'828000 - Nota. Cuentas x pagar'!$D$33","v":"co-svsp-core:CxP_Total_cuentas_comerciales_por_pagar_otras_cuentas_por_pagar_y_otros_pasivos_financieros"},0,"peso",{"$f":"'828000 - Nota. Cuentas x pagar'!$H$33","v":0},0,"http://www.xbrl.org/scheme/companyName",null,{"$f":"Periodos!$D$4","v":"2022-12-31"},{"$f":"'828000 - Nota. Cuentas x pagar'!$E$27","v":"co-svsp-core:CuentasXPagar_Eje"},{"$f":"'828000 - Nota. Cuentas x pagar'!$H$26","v":"co-svsp-core:Nacionales_no_corrientes_CxP_Miembro"}]
["/*",null,"--04--"]
["/*",null,{"$f":"'828000 - Nota. Cuentas x pagar'!$E$28","v":"Cuentas comerciales por pagar, otras cuentas por pagar y otros pasivos financieros items"},{"$f":"'828000 - Nota. Cuentas x pagar'!$D$28","v":"co-svsp-core:CxP_Cuentas_comerciales_por_pagar_otras_cuentas_por_pagar_y_otros_pasivos_financieros_items"}]
["/*",null,{"$f":"'828000 - Nota. Cuentas x pagar'!$E$29","v":"Cuentas comerciales por pagar"},{"$f":"'828000 - Nota. Cuentas x pagar'!$D$29","v":"co-svsp-core:CxP_Cuentas_por_pagar_comerciales"}]
["/*",null,{"$f":"'828000 - Nota. Cuentas x pagar'!$E$30","v":"Otras cuentas por pagar"},{"$f":"'828000 - Nota. Cuentas x pagar'!$D$30","v":"co-svsp-core:CxP_Otras_cuentas_por_pagar"}]
["",null,{"$f":"'828000 - Nota. Cuentas x pagar'!$E$31","v":"Total cuentas comerciales por pagar y otras cuentas por pagar"},{"$f":"'828000 - Nota. Cuentas x pagar'!$D$31","v":"co-svsp-core:CxP_Total_cuentas_comerciales_por_pagar_y_otras_cuentas_por_pagar"},0,"peso",{"$f":"'828000 - Nota. Cuentas x pagar'!$I$31","v":0},0,"http://www.xbrl.org/scheme/companyName",null,{"$f":"Periodos!$D$4","v":"2022-12-31"},{"$f":"'828000 - Nota. Cuentas x pagar'!$E$27","v":"co-svsp-core:CuentasXPagar_Eje"},{"$f":"'828000 - Nota. Cuentas x pagar'!$I$26","v":"co-svsp-core:En_el_exterior_no_corrientes_CxP_Miembro"}]
["/*",null,{"$f":"'828000 - Nota. Cuentas x pagar'!$E$32","v":"Otros Pasivos financieros"},{"$f":"'828000 - Nota. Cuentas x pagar'!$D$32","v":"co-svsp-core:CxP_Otros_Pasivos_financieros"}]
["",null,{"$f":"'828000 - Nota. Cuentas x pagar'!$E$33","v":"Total cuentas comerciales por pagar, otras cuentas por pagar y otros pasivos financieros"},{"$f":"'828000 - Nota. Cuentas x pagar'!$D$33","v":"co-svsp-core:CxP_Total_cuentas_comerciales_por_pagar_otras_cuentas_por_pagar_y_otros_pasivos_financieros"},0,"peso",{"$f":"'828000 - Nota. Cuentas x pagar'!$I$33","v":0},0,"http://www.xbrl.org/scheme/companyName",null,{"$f":"Periodos!$D$4","v":"2022-12-31"},{"$f":"'828000 - Nota. Cuentas x pagar'!$E$27","v":"co-svsp-core:CuentasXPagar_Eje"},{"$f":"'828000 - Nota. Cuentas x pagar'!$I$26","v":"co-svsp-core:En_el_exterior_no_corrientes_CxP_Miembro"}]
["/*",null,"--05--"]
["/*",null,{"$f":"'828000 - Nota. Cuentas x pagar'!$E$28","v":"Cuentas comerciales por pagar, otras cuentas por pagar y otros pasivos financieros items"},{"$f":"'828000 - Nota. Cuentas x pagar'!$D$28","v":"co-svsp-core:CxP_Cuentas_comerciales_por_pagar_otras_cuentas_por_pagar_y_otros_pasivos_financieros_items"}]
["",null,{"$f":"'828000 - Nota. Cuentas x pagar'!$E$29","v":"Cuentas comerciales por pagar"},{"$f":"'828000 - Nota. Cuentas x pagar'!$D$29","v":"co-svsp-core:CxP_Cuentas_por_pagar_comerciales"},0,"peso",{"$f":"'828000 - Nota. Cuentas x pagar'!$J$29","v":0},0,"http://www.xbrl.org/scheme/companyName",null,{"$f":"Periodos!$D$4","v":"2022-12-31"},{"$f":"'828000 - Nota. Cuentas x pagar'!$E$27","v":"co-svsp-core:CuentasXPagar_Eje"},{"$f":"'828000 - Nota. Cuentas x pagar'!$J$26","v":"co-svsp-core:Total_Saldo_del_ejercicio_CxP_Miembro"}]
["",null,{"$f":"'828000 - Nota. Cuentas x pagar'!$E$30","v":"Otras cuentas por pagar"},{"$f":"'828000 - Nota. Cuentas x pagar'!$D$30","v":"co-svsp-core:CxP_Otras_cuentas_por_pagar"},0,"peso",{"$f":"'828000 - Nota. Cuentas x pagar'!$J$30","v":0},0,"http://www.xbrl.org/scheme/companyName",null,{"$f":"Periodos!$D$4","v":"2022-12-31"},{"$f":"'828000 - Nota. Cuentas x pagar'!$E$27","v":"co-svsp-core:CuentasXPagar_Eje"},{"$f":"'828000 - Nota. Cuentas x pagar'!$J$26","v":"co-svsp-core:Total_Saldo_del_ejercicio_CxP_Miembro"}]
["",null,{"$f":"'828000 - Nota. Cuentas x pagar'!$E$31","v":"Total cuentas comerciales por pagar y otras cuentas por pagar"},{"$f":"'828000 - Nota. Cuentas x pagar'!$D$31","v":"co-svsp-core:CxP_Total_cuentas_comerciales_por_pagar_y_otras_cuentas_por_pagar"},0,"peso",{"$f":"'828000 - Nota. Cuentas x pagar'!$J$31","v":0},0,"http://www.xbrl.org/scheme/companyName",null,{"$f":"Periodos!$D$4","v":"2022-12-31"},{"$f":"'828000 - Nota. Cuentas x pagar'!$E$27","v":"co-svsp-core:CuentasXPagar_Eje"},{"$f":"'828000 - Nota. Cuentas x pagar'!$J$26","v":"co-svsp-core:Total_Saldo_del_ejercicio_CxP_Miembro"}]
["",null,{"$f":"'828000 - Nota. Cuentas x pagar'!$E$32","v":"Otros Pasivos financieros"},{"$f":"'828000 - Nota. Cuentas x pagar'!$D$32","v":"co-svsp-core:CxP_Otros_Pasivos_financieros"},0,"peso",{"$f":"'828000 - Nota. Cuentas x pagar'!$J$32","v":0},0,"http://www.xbrl.org/scheme/companyName",null,{"$f":"Periodos!$D$4","v":"2022-12-31"},{"$f":"'828000 - Nota. Cuentas x pagar'!$E$27","v":"co-svsp-core:CuentasXPagar_Eje"},{"$f":"'828000 - Nota. Cuentas x pagar'!$J$26","v":"co-svsp-core:Total_Saldo_del_ejercicio_CxP_Miembro"}]
["",null,{"$f":"'828000 - Nota. Cuentas x pagar'!$E$33","v":"Total cuentas comerciales por pagar, otras cuentas por pagar y otros pasivos financieros"},{"$f":"'828000 - Nota. Cuentas x pagar'!$D$33","v":"co-svsp-core:CxP_Total_cuentas_comerciales_por_pagar_otras_cuentas_por_pagar_y_otros_pasivos_financieros"},0,"peso",{"$f":"'828000 - Nota. Cuentas x pagar'!$J$33","v":0},0,"http://www.xbrl.org/scheme/companyName",null,{"$f":"Periodos!$D$4","v":"2022-12-31"},{"$f":"'828000 - Nota. Cuentas x pagar'!$E$27","v":"co-svsp-core:CuentasXPagar_Eje"},{"$f":"'828000 - Nota. Cuentas x pagar'!$J$26","v":"co-svsp-core:Total_Saldo_del_ejercicio_CxP_Miembro"}]
["/*",null,"--06--"]
["/*",null,{"$f":"'828000 - Nota. Cuentas x pagar'!$E$28","v":"Cuentas comerciales por pagar, otras cuentas por pagar y otros pasivos financieros items"},{"$f":"'828000 - Nota. Cuentas x pagar'!$D$28","v":"co-svsp-core:CxP_Cuentas_comerciales_por_pagar_otras_cuentas_por_pagar_y_otros_pasivos_financieros_items"}]
["/*",null,{"$f":"'828000 - Nota. Cuentas x pagar'!$E$29","v":"Cuentas comerciales por pagar"},{"$f":"'828000 - Nota. Cuentas x pagar'!$D$29","v":"co-svsp-core:CxP_Cuentas_por_pagar_comerciales"}]
["/*",null,{"$f":"'828000 - Nota. Cuentas x pagar'!$E$30","v":"Otras cuentas por pagar"},{"$f":"'828000 - Nota. Cuentas x pagar'!$D$30","v":"co-svsp-core:CxP_Otras_cuentas_por_pagar"}]
["",null,{"$f":"'828000 - Nota. Cuentas x pagar'!$E$31","v":"Total cuentas comerciales por pagar y otras cuentas por pagar"},{"$f":"'828000 - Nota. Cuentas x pagar'!$D$31","v":"co-svsp-core:CxP_Total_cuentas_comerciales_por_pagar_y_otras_cuentas_por_pagar"},0,"peso",{"$f":"'828000 - Nota. Cuentas x pagar'!$K$31","v":0},0,"http://www.xbrl.org/scheme/companyName",null,{"$f":"Periodos!$D$4","v":"2022-12-31"},{"$f":"'828000 - Nota. Cuentas x pagar'!$E$27","v":"co-svsp-core:CuentasXPagar_Eje"},{"$f":"'828000 - Nota. Cuentas x pagar'!$K$26","v":"co-svsp-core:Numero_de_obligaciones_vencidas_CxP_Miembro"}]
["/*",null,{"$f":"'828000 - Nota. Cuentas x pagar'!$E$32","v":"Otros Pasivos financieros"},{"$f":"'828000 - Nota. Cuentas x pagar'!$D$32","v":"co-svsp-core:CxP_Otros_Pasivos_financieros"}]
["",null,{"$f":"'828000 - Nota. Cuentas x pagar'!$E$33","v":"Total cuentas comerciales por pagar, otras cuentas por pagar y otros pasivos financieros"},{"$f":"'828000 - Nota. Cuentas x pagar'!$D$33","v":"co-svsp-core:CxP_Total_cuentas_comerciales_por_pagar_otras_cuentas_por_pagar_y_otros_pasivos_financieros"},0,"peso",{"$f":"'828000 - Nota. Cuentas x pagar'!$K$33","v":0},0,"http://www.xbrl.org/scheme/companyName",null,{"$f":"Periodos!$D$4","v":"2022-12-31"},{"$f":"'828000 - Nota. Cuentas x pagar'!$E$27","v":"co-svsp-core:CuentasXPagar_Eje"},{"$f":"'828000 - Nota. Cuentas x pagar'!$K$26","v":"co-svsp-core:Numero_de_obligaciones_vencidas_CxP_Miembro"}]
["/*",null,"--07--"]
["/*",null,{"$f":"'828000 - Nota. Cuentas x pagar'!$E$28","v":"Cuentas comerciales por pagar, otras cuentas por pagar y otros pasivos financieros items"},{"$f":"'828000 - Nota. Cuentas x pagar'!$D$28","v":"co-svsp-core:CxP_Cuentas_comerciales_por_pagar_otras_cuentas_por_pagar_y_otros_pasivos_financieros_items"}]
["/*",null,{"$f":"'828000 - Nota. Cuentas x pagar'!$E$29","v":"Cuentas comerciales por pagar"},{"$f":"'828000 - Nota. Cuentas x pagar'!$D$29","v":"co-svsp-core:CxP_Cuentas_por_pagar_comerciales"}]
[{"$f":"IF(G7008=\"\",\"/*\",\"\")","v":"/*"},null,{"$f":"'828000 - Nota. Cuentas x pagar'!$E$30","v":"Otras cuentas por pagar"},{"$f":"'828000 - Nota. Cuentas x pagar'!$D$30","v":"co-svsp-core:CxP_Otras_cuentas_por_pagar"}]
["",null,{"$f":"'828000 - Nota. Cuentas x pagar'!$E$31","v":"Total cuentas comerciales por pagar y otras cuentas por pagar"},{"$f":"'828000 - Nota. Cuentas x pagar'!$D$31","v":"co-svsp-core:CxP_Total_cuentas_comerciales_por_pagar_y_otras_cuentas_por_pagar"},0,"peso",{"$f":"'828000 - Nota. Cuentas x pagar'!$L$31","v":0},0,"http://www.xbrl.org/scheme/companyName",null,{"$f":"Periodos!$D$4","v":"2022-12-31"},{"$f":"'828000 - Nota. Cuentas x pagar'!$E$27","v":"co-svsp-core:CuentasXPagar_Eje"},{"$f":"'828000 - Nota. Cuentas x pagar'!$L$26","v":"co-svsp-core:CxP_Vencidas_1_a_90_dias_Miembro"}]
["/*",null,{"$f":"'828000 - Nota. Cuentas x pagar'!$E$32","v":"Otros Pasivos financieros"},{"$f":"'828000 - Nota. Cuentas x pagar'!$D$32","v":"co-svsp-core:CxP_Otros_Pasivos_financieros"}]
["",null,{"$f":"'828000 - Nota. Cuentas x pagar'!$E$33","v":"Total cuentas comerciales por pagar, otras cuentas por pagar y otros pasivos financieros"},{"$f":"'828000 - Nota. Cuentas x pagar'!$D$33","v":"co-svsp-core:CxP_Total_cuentas_comerciales_por_pagar_otras_cuentas_por_pagar_y_otros_pasivos_financieros"},0,"peso",{"$f":"'828000 - Nota. Cuentas x pagar'!$L$33","v":0},0,"http://www.xbrl.org/scheme/companyName",null,{"$f":"Periodos!$D$4","v":"2022-12-31"},{"$f":"'828000 - Nota. Cuentas x pagar'!$E$27","v":"co-svsp-core:CuentasXPagar_Eje"},{"$f":"'828000 - Nota. Cuentas x pagar'!$L$26","v":"co-svsp-core:CxP_Vencidas_1_a_90_dias_Miembro"}]
["/*",null,"--08--"]
["/*",null,{"$f":"'828000 - Nota. Cuentas x pagar'!$E$28","v":"Cuentas comerciales por pagar, otras cuentas por pagar y otros pasivos financieros items"},{"$f":"'828000 - Nota. Cuentas x pagar'!$D$28","v":"co-svsp-core:CxP_Cuentas_comerciales_por_pagar_otras_cuentas_por_pagar_y_otros_pasivos_financieros_items"}]
["/*",null,{"$f":"'828000 - Nota. Cuentas x pagar'!$E$29","v":"Cuentas comerciales por pagar"},{"$f":"'828000 - Nota. Cuentas x pagar'!$D$29","v":"co-svsp-core:CxP_Cuentas_por_pagar_comerciales"}]
["/*",null,{"$f":"'828000 - Nota. Cuentas x pagar'!$E$30","v":"Otras cuentas por pagar"},{"$f":"'828000 - Nota. Cuentas x pagar'!$D$30","v":"co-svsp-core:CxP_Otras_cuentas_por_pagar"}]
["",null,{"$f":"'828000 - Nota. Cuentas x pagar'!$E$31","v":"Total cuentas comerciales por pagar y otras cuentas por pagar"},{"$f":"'828000 - Nota. Cuentas x pagar'!$D$31","v":"co-svsp-core:CxP_Total_cuentas_comerciales_por_pagar_y_otras_cuentas_por_pagar"},0,"peso",{"$f":"'828000 - Nota. Cuentas x pagar'!$M$31","v":0},0,"http://www.xbrl.org/scheme/companyName",null,{"$f":"Periodos!$D$4","v":"2022-12-31"},{"$f":"'828000 - Nota. Cuentas x pagar'!$E$27","v":"co-svsp-core:CuentasXPagar_Eje"},{"$f":"'828000 - Nota. Cuentas x pagar'!$M$26","v":"co-svsp-core:CxP_Vencidas_91_a_180_dias_Miembro"}]
["/*",null,{"$f":"'828000 - Nota. Cuentas x pagar'!$E$32","v":"Otros Pasivos financieros"},{"$f":"'828000 - Nota. Cuentas x pagar'!$D$32","v":"co-svsp-core:CxP_Otros_Pasivos_financieros"}]
["",null,{"$f":"'828000 - Nota. Cuentas x pagar'!$E$33","v":"Total cuentas comerciales por pagar, otras cuentas por pagar y otros pasivos financieros"},{"$f":"'828000 - Nota. Cuentas x pagar'!$D$33","v":"co-svsp-core:CxP_Total_cuentas_comerciales_por_pagar_otras_cuentas_por_pagar_y_otros_pasivos_financieros"},0,"peso",{"$f":"'828000 - Nota. Cuentas x pagar'!$M$33","v":0},0,"http://www.xbrl.org/scheme/companyName",null,{"$f":"Periodos!$D$4","v":"2022-12-31"},{"$f":"'828000 - Nota. Cuentas x pagar'!$E$27","v":"co-svsp-core:CuentasXPagar_Eje"},{"$f":"'828000 - Nota. Cuentas x pagar'!$M$26","v":"co-svsp-core:CxP_Vencidas_91_a_180_dias_Miembro"}]
["/*",null,"--09--"]
["/*",null,{"$f":"'828000 - Nota. Cuentas x pagar'!$E$28","v":"Cuentas comerciales por pagar, otras cuentas por pagar y otros pasivos financieros items"},{"$f":"'828000 - Nota. Cuentas x pagar'!$D$28","v":"co-svsp-core:CxP_Cuentas_comerciales_por_pagar_otras_cuentas_por_pagar_y_otros_pasivos_financieros_items"}]
["/*",null,{"$f":"'828000 - Nota. Cuentas x pagar'!$E$29","v":"Cuentas comerciales por pagar"},{"$f":"'828000 - Nota. Cuentas x pagar'!$D$29","v":"co-svsp-core:CxP_Cuentas_por_pagar_comerciales"}]
["/*",null,{"$f":"'828000 - Nota. Cuentas x pagar'!$E$30","v":"Otras cuentas por pagar"},{"$f":"'828000 - Nota. Cuentas x pagar'!$D$30","v":"co-svsp-core:CxP_Otras_cuentas_por_pagar"}]
["",null,{"$f":"'828000 - Nota. Cuentas x pagar'!$E$31","v":"Total cuentas comerciales por pagar y otras cuentas por pagar"},{"$f":"'828000 - Nota. Cuentas x pagar'!$D$31","v":"co-svsp-core:CxP_Total_cuentas_comerciales_por_pagar_y_otras_cuentas_por_pagar"},0,"peso",{"$f":"'828000 - Nota. Cuentas x pagar'!$N$31","v":0},0,"http://www.xbrl.org/scheme/companyName",null,{"$f":"Periodos!$D$4","v":"2022-12-31"},{"$f":"'828000 - Nota. Cuentas x pagar'!$E$27","v":"co-svsp-core:CuentasXPagar_Eje"},{"$f":"'828000 - Nota. Cuentas x pagar'!$N$26","v":"co-svsp-core:CxP_Vencidas_181_a_360_dias_Miembro"}]
["/*",null,{"$f":"'828000 - Nota. Cuentas x pagar'!$E$32","v":"Otros Pasivos financieros"},{"$f":"'828000 - Nota. Cuentas x pagar'!$D$32","v":"co-svsp-core:CxP_Otros_Pasivos_financieros"}]
["",null,{"$f":"'828000 - Nota. Cuentas x pagar'!$E$33","v":"Total cuentas comerciales por pagar, otras cuentas por pagar y otros pasivos financieros"},{"$f":"'828000 - Nota. Cuentas x pagar'!$D$33","v":"co-svsp-core:CxP_Total_cuentas_comerciales_por_pagar_otras_cuentas_por_pagar_y_otros_pasivos_financieros"},0,"peso",{"$f":"'828000 - Nota. Cuentas x pagar'!$N$33","v":0},0,"http://www.xbrl.org/scheme/companyName",null,{"$f":"Periodos!$D$4","v":"2022-12-31"},{"$f":"'828000 - Nota. Cuentas x pagar'!$E$27","v":"co-svsp-core:CuentasXPagar_Eje"},{"$f":"'828000 - Nota. Cuentas x pagar'!$N$26","v":"co-svsp-core:CxP_Vencidas_181_a_360_dias_Miembro"}]
["/*",null,"--10--"]
["/*",null,{"$f":"'828000 - Nota. Cuentas x pagar'!$E$28","v":"Cuentas comerciales por pagar, otras cuentas por pagar y otros pasivos financieros items"},{"$f":"'828000 - Nota. Cuentas x pagar'!$D$28","v":"co-svsp-core:CxP_Cuentas_comerciales_por_pagar_otras_cuentas_por_pagar_y_otros_pasivos_financieros_items"}]
["/*",null,{"$f":"'828000 - Nota. Cuentas x pagar'!$E$29","v":"Cuentas comerciales por pagar"},{"$f":"'828000 - Nota. Cuentas x pagar'!$D$29","v":"co-svsp-core:CxP_Cuentas_por_pagar_comerciales"}]
["/*",null,{"$f":"'828000 - Nota. Cuentas x pagar'!$E$30","v":"Otras cuentas por pagar"},{"$f":"'828000 - Nota. Cuentas x pagar'!$D$30","v":"co-svsp-core:CxP_Otras_cuentas_por_pagar"}]
["",null,{"$f":"'828000 - Nota. Cuentas x pagar'!$E$31","v":"Total cuentas comerciales por pagar y otras cuentas por pagar"},{"$f":"'828000 - Nota. Cuentas x pagar'!$D$31","v":"co-svsp-core:CxP_Total_cuentas_comerciales_por_pagar_y_otras_cuentas_por_pagar"},0,"peso",{"$f":"'828000 - Nota. Cuentas x pagar'!$O$31","v":0},0,"http://www.xbrl.org/scheme/companyName",null,{"$f":"Periodos!$D$4","v":"2022-12-31"},{"$f":"'828000 - Nota. Cuentas x pagar'!$E$27","v":"co-svsp-core:CuentasXPagar_Eje"},{"$f":"'828000 - Nota. Cuentas x pagar'!$O$26","v":"co-svsp-core:CxP_Vencidas_mas_de_360_dias_Miembro"}]
["/*",null,{"$f":"'828000 - Nota. Cuentas x pagar'!$E$32","v":"Otros Pasivos financieros"},{"$f":"'828000 - Nota. Cuentas x pagar'!$D$32","v":"co-svsp-core:CxP_Otros_Pasivos_financieros"}]
["",null,{"$f":"'828000 - Nota. Cuentas x pagar'!$E$33","v":"Total cuentas comerciales por pagar, otras cuentas por pagar y otros pasivos financieros"},{"$f":"'828000 - Nota. Cuentas x pagar'!$D$33","v":"co-svsp-core:CxP_Total_cuentas_comerciales_por_pagar_otras_cuentas_por_pagar_y_otros_pasivos_financieros"},0,"peso",{"$f":"'828000 - Nota. Cuentas x pagar'!$O$33","v":0},0,"http://www.xbrl.org/scheme/companyName",null,{"$f":"Periodos!$D$4","v":"2022-12-31"},{"$f":"'828000 - Nota. Cuentas x pagar'!$E$27","v":"co-svsp-core:CuentasXPagar_Eje"},{"$f":"'828000 - Nota. Cuentas x pagar'!$O$26","v":"co-svsp-core:CxP_Vencidas_mas_de_360_dias_Miembro"}]
["/*",null,"--11--"]
["/*",null,{"$f":"'828000 - Nota. Cuentas x pagar'!$E$28","v":"Cuentas comerciales por pagar, otras cuentas por pagar y otros pasivos financieros items"},{"$f":"'828000 - Nota. Cuentas x pagar'!$D$28","v":"co-svsp-core:CxP_Cuentas_comerciales_por_pagar_otras_cuentas_por_pagar_y_otros_pasivos_financieros_items"}]
["",null,{"$f":"'828000 - Nota. Cuentas x pagar'!$E$29","v":"Cuentas comerciales por pagar"},{"$f":"'828000 - Nota. Cuentas x pagar'!$D$29","v":"co-svsp-core:CxP_Cuentas_por_pagar_comerciales"},0,"peso",{"$f":"'828000 - Nota. Cuentas x pagar'!$P$29","v":0},0,"http://www.xbrl.org/scheme/companyName",null,{"$f":"Periodos!$D$4","v":"2022-12-31"},{"$f":"'828000 - Nota. Cuentas x pagar'!$E$27","v":"co-svsp-core:CuentasXPagar_Eje"},{"$f":"'828000 - Nota. Cuentas x pagar'!$P$26","v":"co-svsp-core:Obligaciones_vencidas_CxP_Miembro"}]
["",null,{"$f":"'828000 - Nota. Cuentas x pagar'!$E$30","v":"Otras cuentas por pagar"},{"$f":"'828000 - Nota. Cuentas x pagar'!$D$30","v":"co-svsp-core:CxP_Otras_cuentas_por_pagar"},0,"peso",{"$f":"'828000 - Nota. Cuentas x pagar'!$P$30","v":0},0,"http://www.xbrl.org/scheme/companyName",null,{"$f":"Periodos!$D$4","v":"2022-12-31"},{"$f":"'828000 - Nota. Cuentas x pagar'!$E$27","v":"co-svsp-core:CuentasXPagar_Eje"},{"$f":"'828000 - Nota. Cuentas x pagar'!$P$26","v":"co-svsp-core:Obligaciones_vencidas_CxP_Miembro"}]
["",null,{"$f":"'828000 - Nota. Cuentas x pagar'!$E$31","v":"Total cuentas comerciales por pagar y otras cuentas por pagar"},{"$f":"'828000 - Nota. Cuentas x pagar'!$D$31","v":"co-svsp-core:CxP_Total_cuentas_comerciales_por_pagar_y_otras_cuentas_por_pagar"},0,"peso",{"$f":"'828000 - Nota. Cuentas x pagar'!$P$31","v":0},0,"http://www.xbrl.org/scheme/companyName",null,{"$f":"Periodos!$D$4","v":"2022-12-31"},{"$f":"'828000 - Nota. Cuentas x pagar'!$E$27","v":"co-svsp-core:CuentasXPagar_Eje"},{"$f":"'828000 - Nota. Cuentas x pagar'!$P$26","v":"co-svsp-core:Obligaciones_vencidas_CxP_Miembro"}]
["",null,{"$f":"'828000 - Nota. Cuentas x pagar'!$E$32","v":"Otros Pasivos financieros"},{"$f":"'828000 - Nota. Cuentas x pagar'!$D$32","v":"co-svsp-core:CxP_Otros_Pasivos_financieros"},0,"peso",{"$f":"'828000 - Nota. Cuentas x pagar'!$P$32","v":0},0,"http://www.xbrl.org/scheme/companyName",null,{"$f":"Periodos!$D$4","v":"2022-12-31"},{"$f":"'828000 - Nota. Cuentas x pagar'!$E$27","v":"co-svsp-core:CuentasXPagar_Eje"},{"$f":"'828000 - Nota. Cuentas x pagar'!$P$26","v":"co-svsp-core:Obligaciones_vencidas_CxP_Miembro"}]
["",null,{"$f":"'828000 - Nota. Cuentas x pagar'!$E$33","v":"Total cuentas comerciales por pagar, otras cuentas por pagar y otros pasivos financieros"},{"$f":"'828000 - Nota. Cuentas x pagar'!$D$33","v":"co-svsp-core:CxP_Total_cuentas_comerciales_por_pagar_otras_cuentas_por_pagar_y_otros_pasivos_financieros"},0,"peso",{"$f":"'828000 - Nota. Cuentas x pagar'!$P$33","v":0},0,"http://www.xbrl.org/scheme/companyName",null,{"$f":"Periodos!$D$4","v":"2022-12-31"},{"$f":"'828000 - Nota. Cuentas x pagar'!$E$27","v":"co-svsp-core:CuentasXPagar_Eje"},{"$f":"'828000 - Nota. Cuentas x pagar'!$P$26","v":"co-svsp-core:Obligaciones_vencidas_CxP_Miembro"}]
["/*"]
["/*",null,"210000 - Est. Situa. Financiera"]
["/*",null,"--01--"]
["/*",null,{"$f":"'210000 - Est. Situa. Financiera'!$E$14","v":"Estado de situación financiera [resumen]"},{"$f":"'210000 - Est. Situa. Financiera'!$D$14","v":"ifrs-full:StatementOfFinancialPositionAbstract"}]
["/*",null,{"$f":"'210000 - Est. Situa. Financiera'!$E$15","v":"Activos [resumen]"},{"$f":"'210000 - Est. Situa. Financiera'!$D$15","v":"ifrs-full:AssetsAbstract"}]
["/*",null,{"$f":"'210000 - Est. Situa. Financiera'!$E$16","v":"Activos corrientes [resumen]"},{"$f":"'210000 - Est. Situa. Financiera'!$D$16","v":"ifrs-full:CurrentAssetsAbstract"}]
["/*",null,{"$f":"'210000 - Est. Situa. Financiera'!$E$17","v":"Efectivo y equivalentes al efectivo"},{"$f":"'210000 - Est. Situa. Financiera'!$D$17","v":"ifrs-full:CashAndCashEquivalents"}]
["/*",null,{"$f":"'210000 - Est. Situa. Financiera'!$E$18","v":"Inventarios corrientes"},{"$f":"'210000 - Est. Situa. Financiera'!$D$18","v":"ifrs-full:Inventories"}]
["/*",null,{"$f":"'210000 - Est. Situa. Financiera'!$E$19","v":"Activos por impuestos corrientes, corriente"},{"$f":"'210000 - Est. Situa. Financiera'!$D$19","v":"ifrs-full:CurrentTaxAssetsCurrent"}]
["",null,{"$f":"'210000 - Est. Situa. Financiera'!$E$20","v":"Cuentas comerciales por cobrar y otras cuentas por cobrar corrientes"},{"$f":"'210000 - Est. Situa. Financiera'!$D$20","v":"ifrs-full:TradeAndOtherCurrentReceivables"},0,"peso",{"$f":"'210000 - Est. Situa. Financiera'!$F$20","v":0},0,"http://www.xbrl.org/scheme/companyName",null,{"$f":"Periodos!$C$4","v":"2023-12-31"}]
["/*",null,{"$f":"'210000 - Est. Situa. Financiera'!$E$21","v":"Activos biológicos corrientes"},{"$f":"'210000 - Est. Situa. Financiera'!$D$21","v":"ifrs-full:CurrentBiologicalAssets"}]
["/*",null,{"$f":"'210000 - Est. Situa. Financiera'!$E$22","v":"Otros activos financieros corrientes"},{"$f":"'210000 - Est. Situa. Financiera'!$D$22","v":"ifrs-full:OtherCurrentFinancialAssets"}]
["/*",null,{"$f":"'210000 - Est. Situa. Financiera'!$E$23","v":"Otros activos no financieros corrientes"},{"$f":"'210000 - Est. Situa. Financiera'!$D$23","v":"ifrs-full:OtherCurrentNonfinancialAssets"}]
["/*",null,{"$f":"'210000 - Est. Situa. Financiera'!$E$24","v":"Activos corrientes distintos al efectivo pignorados como garantía colateral para las que el receptor de transferencias tiene derecho por contrato o costumbre a vender o pignorar de nuevo dicha garantía colateral"},{"$f":"'210000 - Est. Situa. Financiera'!$D$24","v":"ifrs-full:CurrentNoncashAssetsPledgedAsCollateralForWhichTransfereeHasRightByContractOrCustomToSellOrRepledgeCollateral"}]
["/*",null,{"$f":"'210000 - Est. Situa. Financiera'!$E$25","v":"Total activos corrientes distintos de los activos no corrientes o grupo de activos para su disposición clasificados como mantenidos para la venta o como mantenidos para distribuir a los propietarios"},{"$f":"'210000 - Est. Situa. Financiera'!$D$25","v":"ifrs-full:CurrentAssetsOtherThanAssetsOrDisposalGroupsClassifiedAsHeldForSaleOrAsHeldForDistributionToOwners"}]
["/*",null,{"$f":"'210000 - Est. Situa. Financiera'!$E$26","v":"Activos no corrientes o grupos de activos para su disposición clasificados como mantenidos para la venta o como mantenidos para distribuir a los propietarios"},{"$f":"'210000 - Est. Situa. Financiera'!$D$26","v":"ifrs-full:NoncurrentAssetsOrDisposalGroupsClassifiedAsHeldForSaleOrAsHeldForDistributionToOwners"}]
["/*",null,{"$f":"'210000 - Est. Situa. Financiera'!$E$27","v":"Activos corrientes totales"},{"$f":"'210000 - Est. Situa. Financiera'!$D$27","v":"ifrs-full:CurrentAssets"}]
["/*",null,{"$f":"'210000 - Est. Situa. Financiera'!$E$28","v":"Activos no corrientes [resumen]"},{"$f":"'210000 - Est. Situa. Financiera'!$D$28","v":"ifrs-full:NoncurrentAssetsAbstract"}]
["/*",null,{"$f":"'210000 - Est. Situa. Financiera'!$E$29","v":"Propiedad de inversión"},{"$f":"'210000 - Est. Situa. Financiera'!$D$29","v":"ifrs-full:InvestmentProperty"}]
["/*",null,{"$f":"'210000 - Est. Situa. Financiera'!$E$30","v":"Propiedades, planta y equipo"},{"$f":"'210000 - Est. Situa. Financiera'!$D$30","v":"ifrs-full:PropertyPlantAndEquipment"}]
["/*",null,{"$f":"'210000 - Est. Situa. Financiera'!$E$31","v":"Plusvalía"},{"$f":"'210000 - Est. Situa. Financiera'!$D$31","v":"ifrs-full:Goodwill"}]
["/*",null,{"$f":"'210000 - Est. Situa. Financiera'!$E$32","v":"Activos intangibles distintos de la plusvalía"},{"$f":"'210000 - Est. Situa. Financiera'!$D$32","v":"ifrs-full:IntangibleAssetsOtherThanGoodwill"}]
["/*",null,{"$f":"'210000 - Est. Situa. Financiera'!$E$33","v":"Inversiones contabilizadas utilizando el método de la participación"},{"$f":"'210000 - Est. Situa. Financiera'!$D$33","v":"ifrs-full:InvestmentAccountedForUsingEquityMethod"}]
["/*",null,{"$f":"'210000 - Est. Situa. Financiera'!$E$34","v":"Inversiones en subsidiarias, negocios conjuntos y asociadas"},{"$f":"'210000 - Est. Situa. Financiera'!$D$34","v":"ifrs-full:InvestmentsInSubsidiariesJointVenturesAndAssociates"}]
["/*",null,{"$f":"'210000 - Est. Situa. Financiera'!$E$35","v":"Activos biológicos no corrientes"},{"$f":"'210000 - Est. Situa. Financiera'!$D$35","v":"ifrs-full:NoncurrentBiologicalAssets"}]
["",null,{"$f":"'210000 - Est. Situa. Financiera'!$E$36","v":"Cuentas comerciales por cobrar y otras cuentas por cobrar no corrientes"},{"$f":"'210000 - Est. Situa. Financiera'!$D$36","v":"ifrs-full:NoncurrentReceivables"},0,"peso",{"$f":"'210000 - Est. Situa. Financiera'!$F$36","v":0},0,"http://www.xbrl.org/scheme/companyName",null,{"$f":"Periodos!$C$4","v":"2023-12-31"}]
["/*",null,{"$f":"'210000 - Est. Situa. Financiera'!$E$37","v":"Inventarios no corrientes"},{"$f":"'210000 - Est. Situa. Financiera'!$D$37","v":"ifrs-full:NoncurrentInventories"}]
["/*",null,{"$f":"'210000 - Est. Situa. Financiera'!$E$38","v":"Activos por impuestos diferidos"},{"$f":"'210000 - Est. Situa. Financiera'!$D$38","v":"ifrs-full:DeferredTaxAssets"}]
["/*",null,{"$f":"'210000 - Est. Situa. Financiera'!$E$39","v":"Activos por impuestos corrientes, no corriente"},{"$f":"'210000 - Est. Situa. Financiera'!$D$39","v":"ifrs-full:CurrentTaxAssetsNoncurrent"}]
["/*",null,{"$f":"'210000 - Est. Situa. Financiera'!$E$40","v":"Otros activos financieros no corrientes"},{"$f":"'210000 - Est. Situa. Financiera'!$D$40","v":"ifrs-full:OtherNoncurrentFinancialAssets"}]
["/*",null,{"$f":"'210000 - Est. Situa. Financiera'!$E$41","v":"Otros activos no financieros no corrientes"},{"$f":"'210000 - Est. Situa. Financiera'!$D$41","v":"ifrs-full:OtherNoncurrentNonfinancialAssets"}]
["/*",null,{"$f":"'210000 - Est. Situa. Financiera'!$E$42","v":"Activos no corrientes distintos al efectivo pignorados como garantía colateral para las que el receptor de transferencias tiene derecho por contrato o costumbre a vender o pignorar de nuevo la garantía colateral"},{"$f":"'210000 - Est. Situa. Financiera'!$D$42","v":"ifrs-full:NoncurrentNoncashAssetsPledgedAsCollateralForWhichTransfereeHasRightByContractOrCustomToSellOrRepledgeCollateral"}]
[{"$f":"IF(G7072=\"\",\"/*\",\"\")","v":"/*"},null,{"$f":"'210000 - Est. Situa. Financiera'!$E$43","v":"Total de activos no corrientes"},{"$f":"'210000 - Est. Situa. Financiera'!$D$43","v":"ifrs-full:NoncurrentAssets"}]
["/*",null,{"$f":"'210000 - Est. Situa. Financiera'!$E$44","v":"Total de activos"},{"$f":"'210000 - Est. Situa. Financiera'!$D$44","v":"ifrs-full:Assets"}]
["/*",null,{"$f":"'210000 - Est. Situa. Financiera'!$E$45","v":"Patrimonio y pasivos [resumen]"},{"$f":"'210000 - Est. Situa. Financiera'!$D$45","v":"ifrs-full:EquityAndLiabilitiesAbstract"}]
["/*",null,{"$f":"'210000 - Est. Situa. Financiera'!$E$46","v":"Pasivos [resumen]"},{"$f":"'210000 - Est. Situa. Financiera'!$D$46","v":"ifrs-full:LiabilitiesAbstract"}]
["/*",null,{"$f":"'210000 - Est. Situa. Financiera'!$E$47","v":"Pasivos corrientes [resumen]"},{"$f":"'210000 - Est. Situa. Financiera'!$D$47","v":"ifrs-full:CurrentLiabilitiesAbstract"}]
["/*",null,{"$f":"'210000 - Est. Situa. Financiera'!$E$48","v":"Disposiciones actuales [resumen]"},{"$f":"'210000 - Est. Situa. Financiera'!$D$48","v":"ifrs-full:CurrentProvisionsAbstract"}]
["/*",null,{"$f":"'210000 - Est. Situa. Financiera'!$E$49","v":"Provisiones corrientes por beneficios a los empleados"},{"$f":"'210000 - Est. Situa. Financiera'!$D$49","v":"ifrs-full:CurrentProvisionsForEmployeeBenefits"}]
["/*",null,{"$f":"'210000 - Est. Situa. Financiera'!$E$50","v":"Otras provisiones corrientes"},{"$f":"'210000 - Est. Situa. Financiera'!$D$50","v":"ifrs-full:OtherShorttermProvisions"}]
["/*",null,{"$f":"'210000 - Est. Situa. Financiera'!$E$51","v":"Total provisiones corrientes"},{"$f":"'210000 - Est. Situa. Financiera'!$D$51","v":"ifrs-full:CurrentProvisions"}]
["",null,{"$f":"'210000 - Est. Situa. Financiera'!$E$52","v":"Cuentas por pagar comerciales y otras cuentas por pagar"},{"$f":"'210000 - Est. Situa. Financiera'!$D$52","v":"ifrs-full:TradeAndOtherCurrentPayables"},0,"peso",{"$f":"'210000 - Est. Situa. Financiera'!$F$52","v":0},0,"http://www.xbrl.org/scheme/companyName",null,{"$f":"Periodos!$C$4","v":"2023-12-31"}]
["/*",null,{"$f":"'210000 - Est. Situa. Financiera'!$E$53","v":"Pasivos por impuestos corrientes, corriente"},{"$f":"'210000 - Est. Situa. Financiera'!$D$53","v":"ifrs-full:CurrentTaxLiabilitiesCurrent"}]
["",null,{"$f":"'210000 - Est. Situa. Financiera'!$E$54","v":"Otros pasivos financieros corrientes"},{"$f":"'210000 - Est. Situa. Financiera'!$D$54","v":"ifrs-full:OtherCurrentFinancialLiabilities"},0,"peso",{"$f":"'210000 - Est. Situa. Financiera'!$F$54","v":0},0,"http://www.xbrl.org/scheme/companyName",null,{"$f":"Periodos!$C$4","v":"2023-12-31"}]
["/*",null,{"$f":"'210000 - Est. Situa. Financiera'!$E$55","v":"Otros pasivos no financieros corrientes"},{"$f":"'210000 - Est. Situa. Financiera'!$D$55","v":"ifrs-full:OtherCurrentNonfinancialLiabilities"}]
["/*",null,{"$f":"'210000 - Est. Situa. Financiera'!$E$56","v":"Total de pasivos corrientes distintos de los pasivos incluidos en grupos de activos para su disposición clasificados como mantenidos para la venta"},{"$f":"'210000 - Est. Situa. Financiera'!$D$56","v":"ifrs-full:CurrentLiabilitiesOtherThanLiabilitiesIncludedInDisposalGroupsClassifiedAsHeldForSale"}]
["/*",null,{"$f":"'210000 - Est. Situa. Financiera'!$E$57","v":"Pasivos incluidos en grupos de activos para su disposición clasificados como mantenidos para la venta"},{"$f":"'210000 - Est. Situa. Financiera'!$D$57","v":"ifrs-full:LiabilitiesIncludedInDisposalGroupsClassifiedAsHeldForSale"}]
["/*",null,{"$f":"'210000 - Est. Situa. Financiera'!$E$58","v":"Pasivos corrientes totales"},{"$f":"'210000 - Est. Situa. Financiera'!$D$58","v":"ifrs-full:CurrentLiabilities"}]
["/*",null,{"$f":"'210000 - Est. Situa. Financiera'!$E$59","v":"Pasivos no corrientes [resumen]"},{"$f":"'210000 - Est. Situa. Financiera'!$D$59","v":"ifrs-full:NoncurrentLiabilitiesAbstract"}]
["/*",null,{"$f":"'210000 - Est. Situa. Financiera'!$E$60","v":"Provisiones no corrientes [resumen]"},{"$f":"'210000 - Est. Situa. Financiera'!$D$60","v":"ifrs-full:NoncurrentProvisionsAbstract"}]
["/*",null,{"$f":"'210000 - Est. Situa. Financiera'!$E$61","v":"Provisiones no corrientes por beneficios a los empleados"},{"$f":"'210000 - Est. Situa. Financiera'!$D$61","v":"ifrs-full:NoncurrentProvisionsForEmployeeBenefits"}]
["/*",null,{"$f":"'210000 - Est. Situa. Financiera'!$E$62","v":"Otras provisiones no corrientes"},{"$f":"'210000 - Est. Situa. Financiera'!$D$62","v":"ifrs-full:OtherLongtermProvisions"}]
["/*",null,{"$f":"'210000 - Est. Situa. Financiera'!$E$63","v":"Total provisiones no corrientes"},{"$f":"'210000 - Est. Situa. Financiera'!$D$63","v":"ifrs-full:NoncurrentProvisions"}]
["",null,{"$f":"'210000 - Est. Situa. Financiera'!$E$64","v":"Cuentas comerciales por pagar y otras cuentas por pagar no corrientes"},{"$f":"'210000 - Est. Situa. Financiera'!$D$64","v":"ifrs-full:NoncurrentPayables"},0,"peso",{"$f":"'210000 - Est. Situa. Financiera'!$F$64","v":0},0,"http://www.xbrl.org/scheme/companyName",null,{"$f":"Periodos!$C$4","v":"2023-12-31"}]
["/*",null,{"$f":"'210000 - Est. Situa. Financiera'!$E$65","v":"Pasivo por impuestos diferidos"},{"$f":"'210000 - Est. Situa. Financiera'!$D$65","v":"ifrs-full:DeferredTaxLiabilities"}]
["/*",null,{"$f":"'210000 - Est. Situa. Financiera'!$E$66","v":"Pasivos por impuestos corrientes, no corriente"},{"$f":"'210000 - Est. Situa. Financiera'!$D$66","v":"ifrs-full:CurrentTaxLiabilitiesNoncurrent"}]
["",null,{"$f":"'210000 - Est. Situa. Financiera'!$E$67","v":"Otros pasivos financieros no corrientes"},{"$f":"'210000 - Est. Situa. Financiera'!$D$67","v":"ifrs-full:OtherNoncurrentFinancialLiabilities"},0,"peso",{"$f":"'210000 - Est. Situa. Financiera'!$F$67","v":0},0,"http://www.xbrl.org/scheme/companyName",null,{"$f":"Periodos!$C$4","v":"2023-12-31"}]
["/*",null,{"$f":"'210000 - Est. Situa. Financiera'!$E$68","v":"Otros pasivos no financieros no corrientes"},{"$f":"'210000 - Est. Situa. Financiera'!$D$68","v":"ifrs-full:OtherNoncurrentNonfinancialLiabilities"}]
["/*",null,{"$f":"'210000 - Est. Situa. Financiera'!$E$69","v":"Total de pasivos no corrientes"},{"$f":"'210000 - Est. Situa. Financiera'!$D$69","v":"ifrs-full:NoncurrentLiabilities"}]
["/*",null,{"$f":"'210000 - Est. Situa. Financiera'!$E$70","v":"Total pasivos"},{"$f":"'210000 - Est. Situa. Financiera'!$D$70","v":"ifrs-full:Liabilities"}]
["/*",null,{"$f":"'210000 - Est. Situa. Financiera'!$E$71","v":"Patrimonio [resumen]"},{"$f":"'210000 - Est. Situa. Financiera'!$D$71","v":"ifrs-full:EquityAbstract"}]
["/*",null,{"$f":"'210000 - Est. Situa. Financiera'!$E$72","v":"Capital emitido: Capital social, Capital suscrito o Aportes sociales"},{"$f":"'210000 - Est. Situa. Financiera'!$D$72","v":"ifrs-full:IssuedCapital"}]
["/*",null,{"$f":"'210000 - Est. Situa. Financiera'!$E$73","v":"Ganancias acumuladas"},{"$f":"'210000 - Est. Situa. Financiera'!$D$73","v":"ifrs-full:RetainedEarnings"}]
["/*",null,{"$f":"'210000 - Est. Situa. Financiera'!$E$74","v":"Prima de emisión"},{"$f":"'210000 - Est. Situa. Financiera'!$D$74","v":"ifrs-full:SharePremium"}]
["/*",null,{"$f":"'210000 - Est. Situa. Financiera'!$E$75","v":"Acciones propias en cartera"},{"$f":"'210000 - Est. Situa. Financiera'!$D$75","v":"ifrs-full:TreasuryShares"}]
["/*",null,{"$f":"'210000 - Est. Situa. Financiera'!$E$76","v":"Inversión suplementaria al capital asignado"},{"$f":"'210000 - Est. Situa. Financiera'!$D$76","v":"co-svsp-core:InversionSuplementariaAlCapitalAsignado"}]
["/*",null,{"$f":"'210000 - Est. Situa. Financiera'!$E$77","v":"Otras participaciones en el patrimonio"},{"$f":"'210000 - Est. Situa. Financiera'!$D$77","v":"ifrs-full:OtherEquityInterest"}]
["/*",null,{"$f":"'210000 - Est. Situa. Financiera'!$E$78","v":"Otras reservas"},{"$f":"'210000 - Est. Situa. Financiera'!$D$78","v":"ifrs-full:OtherReserves"}]
["/*",null,{"$f":"'210000 - Est. Situa. Financiera'!$E$79","v":"Patrimonio total"},{"$f":"'210000 - Est. Situa. Financiera'!$D$79","v":"ifrs-full:Equity"}]
["/*",null,{"$f":"'210000 - Est. Situa. Financiera'!$E$80","v":"Total de patrimonio y pasivos"},{"$f":"'210000 - Est. Situa. Financiera'!$D$80","v":"ifrs-full:EquityAndLiabilities"}]
["/*",null,"--02--"]
["/*",null,{"$f":"'210000 - Est. Situa. Financiera'!$E$14","v":"Estado de situación financiera [resumen]"},{"$f":"'210000 - Est. Situa. Financiera'!$D$14","v":"ifrs-full:StatementOfFinancialPositionAbstract"}]
["/*",null,{"$f":"'210000 - Est. Situa. Financiera'!$E$15","v":"Activos [resumen]"},{"$f":"'210000 - Est. Situa. Financiera'!$D$15","v":"ifrs-full:AssetsAbstract"}]
["/*",null,{"$f":"'210000 - Est. Situa. Financiera'!$E$16","v":"Activos corrientes [resumen]"},{"$f":"'210000 - Est. Situa. Financiera'!$D$16","v":"ifrs-full:CurrentAssetsAbstract"}]
["/*",null,{"$f":"'210000 - Est. Situa. Financiera'!$E$17","v":"Efectivo y equivalentes al efectivo"},{"$f":"'210000 - Est. Situa. Financiera'!$D$17","v":"ifrs-full:CashAndCashEquivalents"}]
["/*",null,{"$f":"'210000 - Est. Situa. Financiera'!$E$18","v":"Inventarios corrientes"},{"$f":"'210000 - Est. Situa. Financiera'!$D$18","v":"ifrs-full:Inventories"}]
["/*",null,{"$f":"'210000 - Est. Situa. Financiera'!$E$19","v":"Activos por impuestos corrientes, corriente"},{"$f":"'210000 - Est. Situa. Financiera'!$D$19","v":"ifrs-full:CurrentTaxAssetsCurrent"}]
["",null,{"$f":"'210000 - Est. Situa. Financiera'!$E$20","v":"Cuentas comerciales por cobrar y otras cuentas por cobrar corrientes"},{"$f":"'210000 - Est. Situa. Financiera'!$D$20","v":"ifrs-full:TradeAndOtherCurrentReceivables"},0,"peso",{"$f":"'210000 - Est. Situa. Financiera'!$G$20","v":0},0,"http://www.xbrl.org/scheme/companyName",null,{"$f":"Periodos!$D$4","v":"2022-12-31"}]
["/*",null,{"$f":"'210000 - Est. Situa. Financiera'!$E$21","v":"Activos biológicos corrientes"},{"$f":"'210000 - Est. Situa. Financiera'!$D$21","v":"ifrs-full:CurrentBiologicalAssets"}]
["/*",null,{"$f":"'210000 - Est. Situa. Financiera'!$E$22","v":"Otros activos financieros corrientes"},{"$f":"'210000 - Est. Situa. Financiera'!$D$22","v":"ifrs-full:OtherCurrentFinancialAssets"}]
["/*",null,{"$f":"'210000 - Est. Situa. Financiera'!$E$23","v":"Otros activos no financieros corrientes"},{"$f":"'210000 - Est. Situa. Financiera'!$D$23","v":"ifrs-full:OtherCurrentNonfinancialAssets"}]
["/*",null,{"$f":"'210000 - Est. Situa. Financiera'!$E$24","v":"Activos corrientes distintos al efectivo pignorados como garantía colateral para las que el receptor de transferencias tiene derecho por contrato o costumbre a vender o pignorar de nuevo dicha garantía colateral"},{"$f":"'210000 - Est. Situa. Financiera'!$D$24","v":"ifrs-full:CurrentNoncashAssetsPledgedAsCollateralForWhichTransfereeHasRightByContractOrCustomToSellOrRepledgeCollateral"}]
["/*",null,{"$f":"'210000 - Est. Situa. Financiera'!$E$25","v":"Total activos corrientes distintos de los activos no corrientes o grupo de activos para su disposición clasificados como mantenidos para la venta o como mantenidos para distribuir a los propietarios"},{"$f":"'210000 - Est. Situa. Financiera'!$D$25","v":"ifrs-full:CurrentAssetsOtherThanAssetsOrDisposalGroupsClassifiedAsHeldForSaleOrAsHeldForDistributionToOwners"}]
["/*",null,{"$f":"'210000 - Est. Situa. Financiera'!$E$26","v":"Activos no corrientes o grupos de activos para su disposición clasificados como mantenidos para la venta o como mantenidos para distribuir a los propietarios"},{"$f":"'210000 - Est. Situa. Financiera'!$D$26","v":"ifrs-full:NoncurrentAssetsOrDisposalGroupsClassifiedAsHeldForSaleOrAsHeldForDistributionToOwners"}]
["/*",null,{"$f":"'210000 - Est. Situa. Financiera'!$E$27","v":"Activos corrientes totales"},{"$f":"'210000 - Est. Situa. Financiera'!$D$27","v":"ifrs-full:CurrentAssets"}]
["/*",null,{"$f":"'210000 - Est. Situa. Financiera'!$E$28","v":"Activos no corrientes [resumen]"},{"$f":"'210000 - Est. Situa. Financiera'!$D$28","v":"ifrs-full:NoncurrentAssetsAbstract"}]
["/*",null,{"$f":"'210000 - Est. Situa. Financiera'!$E$29","v":"Propiedad de inversión"},{"$f":"'210000 - Est. Situa. Financiera'!$D$29","v":"ifrs-full:InvestmentProperty"}]
["/*",null,{"$f":"'210000 - Est. Situa. Financiera'!$E$30","v":"Propiedades, planta y equipo"},{"$f":"'210000 - Est. Situa. Financiera'!$D$30","v":"ifrs-full:PropertyPlantAndEquipment"}]
["/*",null,{"$f":"'210000 - Est. Situa. Financiera'!$E$31","v":"Plusvalía"},{"$f":"'210000 - Est. Situa. Financiera'!$D$31","v":"ifrs-full:Goodwill"}]
["/*",null,{"$f":"'210000 - Est. Situa. Financiera'!$E$32","v":"Activos intangibles distintos de la plusvalía"},{"$f":"'210000 - Est. Situa. Financiera'!$D$32","v":"ifrs-full:IntangibleAssetsOtherThanGoodwill"}]
["/*",null,{"$f":"'210000 - Est. Situa. Financiera'!$E$33","v":"Inversiones contabilizadas utilizando el método de la participación"},{"$f":"'210000 - Est. Situa. Financiera'!$D$33","v":"ifrs-full:InvestmentAccountedForUsingEquityMethod"}]
["/*",null,{"$f":"'210000 - Est. Situa. Financiera'!$E$34","v":"Inversiones en subsidiarias, negocios conjuntos y asociadas"},{"$f":"'210000 - Est. Situa. Financiera'!$D$34","v":"ifrs-full:InvestmentsInSubsidiariesJointVenturesAndAssociates"}]
["/*",null,{"$f":"'210000 - Est. Situa. Financiera'!$E$35","v":"Activos biológicos no corrientes"},{"$f":"'210000 - Est. Situa. Financiera'!$D$35","v":"ifrs-full:NoncurrentBiologicalAssets"}]
["",null,{"$f":"'210000 - Est. Situa. Financiera'!$E$36","v":"Cuentas comerciales por cobrar y otras cuentas por cobrar no corrientes"},{"$f":"'210000 - Est. Situa. Financiera'!$D$36","v":"ifrs-full:NoncurrentReceivables"},0,"peso",{"$f":"'210000 - Est. Situa. Financiera'!$G$36","v":0},0,"http://www.xbrl.org/scheme/companyName",null,{"$f":"Periodos!$D$4","v":"2022-12-31"}]
["/*",null,{"$f":"'210000 - Est. Situa. Financiera'!$E$37","v":"Inventarios no corrientes"},{"$f":"'210000 - Est. Situa. Financiera'!$D$37","v":"ifrs-full:NoncurrentInventories"}]
["/*",null,{"$f":"'210000 - Est. Situa. Financiera'!$E$38","v":"Activos por impuestos diferidos"},{"$f":"'210000 - Est. Situa. Financiera'!$D$38","v":"ifrs-full:DeferredTaxAssets"}]
[{"$f":"IF(G7136=\"\",\"/*\",\"\")","v":"/*"},null,{"$f":"'210000 - Est. Situa. Financiera'!$E$39","v":"Activos por impuestos corrientes, no corriente"},{"$f":"'210000 - Est. Situa. Financiera'!$D$39","v":"ifrs-full:CurrentTaxAssetsNoncurrent"}]
["/*",null,{"$f":"'210000 - Est. Situa. Financiera'!$E$40","v":"Otros activos financieros no corrientes"},{"$f":"'210000 - Est. Situa. Financiera'!$D$40","v":"ifrs-full:OtherNoncurrentFinancialAssets"}]
["/*",null,{"$f":"'210000 - Est. Situa. Financiera'!$E$41","v":"Otros activos no financieros no corrientes"},{"$f":"'210000 - Est. Situa. Financiera'!$D$41","v":"ifrs-full:OtherNoncurrentNonfinancialAssets"}]
["/*",null,{"$f":"'210000 - Est. Situa. Financiera'!$E$42","v":"Activos no corrientes distintos al efectivo pignorados como garantía colateral para las que el receptor de transferencias tiene derecho por contrato o costumbre a vender o pignorar de nuevo la garantía colateral"},{"$f":"'210000 - Est. Situa. Financiera'!$D$42","v":"ifrs-full:NoncurrentNoncashAssetsPledgedAsCollateralForWhichTransfereeHasRightByContractOrCustomToSellOrRepledgeCollateral"}]
["/*",null,{"$f":"'210000 - Est. Situa. Financiera'!$E$43","v":"Total de activos no corrientes"},{"$f":"'210000 - Est. Situa. Financiera'!$D$43","v":"ifrs-full:NoncurrentAssets"}]
["",null,{"$f":"'210000 - Est. Situa. Financiera'!$E$44","v":"Total de activos"},{"$f":"'210000 - Est. Situa. Financiera'!$D$44","v":"ifrs-full:Assets"},0,"peso",{"$f":"'210000 - Est. Situa. Financiera'!$G$44","v":0},0,"http://www.xbrl.org/scheme/companyName",null,{"$f":"Periodos!$D$4","v":"2022-12-31"}]
["/*",null,{"$f":"'210000 - Est. Situa. Financiera'!$E$45","v":"Patrimonio y pasivos [resumen]"},{"$f":"'210000 - Est. Situa. Financiera'!$D$45","v":"ifrs-full:EquityAndLiabilitiesAbstract"}]
["/*",null,{"$f":"'210000 - Est. Situa. Financiera'!$E$46","v":"Pasivos [resumen]"},{"$f":"'210000 - Est. Situa. Financiera'!$D$46","v":"ifrs-full:LiabilitiesAbstract"}]
["/*",null,{"$f":"'210000 - Est. Situa. Financiera'!$E$47","v":"Pasivos corrientes [resumen]"},{"$f":"'210000 - Est. Situa. Financiera'!$D$47","v":"ifrs-full:CurrentLiabilitiesAbstract"}]
["/*",null,{"$f":"'210000 - Est. Situa. Financiera'!$E$48","v":"Disposiciones actuales [resumen]"},{"$f":"'210000 - Est. Situa. Financiera'!$D$48","v":"ifrs-full:CurrentProvisionsAbstract"}]
["/*",null,{"$f":"'210000 - Est. Situa. Financiera'!$E$49","v":"Provisiones corrientes por beneficios a los empleados"},{"$f":"'210000 - Est. Situa. Financiera'!$D$49","v":"ifrs-full:CurrentProvisionsForEmployeeBenefits"}]
["/*",null,{"$f":"'210000 - Est. Situa. Financiera'!$E$50","v":"Otras provisiones corrientes"},{"$f":"'210000 - Est. Situa. Financiera'!$D$50","v":"ifrs-full:OtherShorttermProvisions"}]
["/*",null,{"$f":"'210000 - Est. Situa. Financiera'!$E$51","v":"Total provisiones corrientes"},{"$f":"'210000 - Est. Situa. Financiera'!$D$51","v":"ifrs-full:CurrentProvisions"}]
["",null,{"$f":"'210000 - Est. Situa. Financiera'!$E$52","v":"Cuentas por pagar comerciales y otras cuentas por pagar"},{"$f":"'210000 - Est. Situa. Financiera'!$D$52","v":"ifrs-full:TradeAndOtherCurrentPayables"},0,"peso",{"$f":"'210000 - Est. Situa. Financiera'!$G$52","v":0},0,"http://www.xbrl.org/scheme/companyName",null,{"$f":"Periodos!$D$4","v":"2022-12-31"}]
["/*",null,{"$f":"'210000 - Est. Situa. Financiera'!$E$53","v":"Pasivos por impuestos corrientes, corriente"},{"$f":"'210000 - Est. Situa. Financiera'!$D$53","v":"ifrs-full:CurrentTaxLiabilitiesCurrent"}]
["",null,{"$f":"'210000 - Est. Situa. Financiera'!$E$54","v":"Otros pasivos financieros corrientes"},{"$f":"'210000 - Est. Situa. Financiera'!$D$54","v":"ifrs-full:OtherCurrentFinancialLiabilities"},0,"peso",{"$f":"'210000 - Est. Situa. Financiera'!$G$54","v":0},0,"http://www.xbrl.org/scheme/companyName",null,{"$f":"Periodos!$D$4","v":"2022-12-31"}]
["/*",null,{"$f":"'210000 - Est. Situa. Financiera'!$E$55","v":"Otros pasivos no financieros corrientes"},{"$f":"'210000 - Est. Situa. Financiera'!$D$55","v":"ifrs-full:OtherCurrentNonfinancialLiabilities"}]
["/*",null,{"$f":"'210000 - Est. Situa. Financiera'!$E$56","v":"Total de pasivos corrientes distintos de los pasivos incluidos en grupos de activos para su disposición clasificados como mantenidos para la venta"},{"$f":"'210000 - Est. Situa. Financiera'!$D$56","v":"ifrs-full:CurrentLiabilitiesOtherThanLiabilitiesIncludedInDisposalGroupsClassifiedAsHeldForSale"}]
["/*",null,{"$f":"'210000 - Est. Situa. Financiera'!$E$57","v":"Pasivos incluidos en grupos de activos para su disposición clasificados como mantenidos para la venta"},{"$f":"'210000 - Est. Situa. Financiera'!$D$57","v":"ifrs-full:LiabilitiesIncludedInDisposalGroupsClassifiedAsHeldForSale"}]
["",null,{"$f":"'210000 - Est. Situa. Financiera'!$E$58","v":"Pasivos corrientes totales"},{"$f":"'210000 - Est. Situa. Financiera'!$D$58","v":"ifrs-full:CurrentLiabilities"},0,"peso",{"$f":"'210000 - Est. Situa. Financiera'!$G$58","v":0},0,"http://www.xbrl.org/scheme/companyName",null,{"$f":"Periodos!$D$4","v":"2022-12-31"}]
["/*",null,{"$f":"'210000 - Est. Situa. Financiera'!$E$59","v":"Pasivos no corrientes [resumen]"},{"$f":"'210000 - Est. Situa. Financiera'!$D$59","v":"ifrs-full:NoncurrentLiabilitiesAbstract"}]
["/*",null,{"$f":"'210000 - Est. Situa. Financiera'!$E$60","v":"Provisiones no corrientes [resumen]"},{"$f":"'210000 - Est. Situa. Financiera'!$D$60","v":"ifrs-full:NoncurrentProvisionsAbstract"}]
["/*",null,{"$f":"'210000 - Est. Situa. Financiera'!$E$61","v":"Provisiones no corrientes por beneficios a los empleados"},{"$f":"'210000 - Est. Situa. Financiera'!$D$61","v":"ifrs-full:NoncurrentProvisionsForEmployeeBenefits"}]
["/*",null,{"$f":"'210000 - Est. Situa. Financiera'!$E$62","v":"Otras provisiones no corrientes"},{"$f":"'210000 - Est. Situa. Financiera'!$D$62","v":"ifrs-full:OtherLongtermProvisions"}]
["/*",null,{"$f":"'210000 - Est. Situa. Financiera'!$E$63","v":"Total provisiones no corrientes"},{"$f":"'210000 - Est. Situa. Financiera'!$D$63","v":"ifrs-full:NoncurrentProvisions"}]
["",null,{"$f":"'210000 - Est. Situa. Financiera'!$E$64","v":"Cuentas comerciales por pagar y otras cuentas por pagar no corrientes"},{"$f":"'210000 - Est. Situa. Financiera'!$D$64","v":"ifrs-full:NoncurrentPayables"},0,"peso",{"$f":"'210000 - Est. Situa. Financiera'!$G$64","v":0},0,"http://www.xbrl.org/scheme/companyName",null,{"$f":"Periodos!$D$4","v":"2022-12-31"}]
["/*",null,{"$f":"'210000 - Est. Situa. Financiera'!$E$65","v":"Pasivo por impuestos diferidos"},{"$f":"'210000 - Est. Situa. Financiera'!$D$65","v":"ifrs-full:DeferredTaxLiabilities"}]
["/*",null,{"$f":"'210000 - Est. Situa. Financiera'!$E$66","v":"Pasivos por impuestos corrientes, no corriente"},{"$f":"'210000 - Est. Situa. Financiera'!$D$66","v":"ifrs-full:CurrentTaxLiabilitiesNoncurrent"}]
["",null,{"$f":"'210000 - Est. Situa. Financiera'!$E$67","v":"Otros pasivos financieros no corrientes"},{"$f":"'210000 - Est. Situa. Financiera'!$D$67","v":"ifrs-full:OtherNoncurrentFinancialLiabilities"},0,"peso",{"$f":"'210000 - Est. Situa. Financiera'!$G$67","v":0},0,"http://www.xbrl.org/scheme/companyName",null,{"$f":"Periodos!$D$4","v":"2022-12-31"}]
["/*",null,{"$f":"'210000 - Est. Situa. Financiera'!$E$68","v":"Otros pasivos no financieros no corrientes"},{"$f":"'210000 - Est. Situa. Financiera'!$D$68","v":"ifrs-full:OtherNoncurrentNonfinancialLiabilities"}]
["/*",null,{"$f":"'210000 - Est. Situa. Financiera'!$E$69","v":"Total de pasivos no corrientes"},{"$f":"'210000 - Est. Situa. Financiera'!$D$69","v":"ifrs-full:NoncurrentLiabilities"}]
["",null,{"$f":"'210000 - Est. Situa. Financiera'!$E$70","v":"Total pasivos"},{"$f":"'210000 - Est. Situa. Financiera'!$D$70","v":"ifrs-full:Liabilities"},0,"peso",{"$f":"'210000 - Est. Situa. Financiera'!$G$70","v":0},0,"http://www.xbrl.org/scheme/companyName",null,{"$f":"Periodos!$D$4","v":"2022-12-31"}]
["/*",null,{"$f":"'210000 - Est. Situa. Financiera'!$E$71","v":"Patrimonio [resumen]"},{"$f":"'210000 - Est. Situa. Financiera'!$D$71","v":"ifrs-full:EquityAbstract"}]
["/*",null,{"$f":"'210000 - Est. Situa. Financiera'!$E$72","v":"Capital emitido: Capital social, Capital suscrito o Aportes sociales"},{"$f":"'210000 - Est. Situa. Financiera'!$D$72","v":"ifrs-full:IssuedCapital"}]
["/*",null,{"$f":"'210000 - Est. Situa. Financiera'!$E$73","v":"Ganancias acumuladas"},{"$f":"'210000 - Est. Situa. Financiera'!$D$73","v":"ifrs-full:RetainedEarnings"}]
["/*",null,{"$f":"'210000 - Est. Situa. Financiera'!$E$74","v":"Prima de emisión"},{"$f":"'210000 - Est. Situa. Financiera'!$D$74","v":"ifrs-full:SharePremium"}]
["/*",null,{"$f":"'210000 - Est. Situa. Financiera'!$E$75","v":"Acciones propias en cartera"},{"$f":"'210000 - Est. Situa. Financiera'!$D$75","v":"ifrs-full:TreasuryShares"}]
["/*",null,{"$f":"'210000 - Est. Situa. Financiera'!$E$76","v":"Inversión suplementaria al capital asignado"},{"$f":"'210000 - Est. Situa. Financiera'!$D$76","v":"co-svsp-core:InversionSuplementariaAlCapitalAsignado"}]
["/*",null,{"$f":"'210000 - Est. Situa. Financiera'!$E$77","v":"Otras participaciones en el patrimonio"},{"$f":"'210000 - Est. Situa. Financiera'!$D$77","v":"ifrs-full:OtherEquityInterest"}]
["/*",null,{"$f":"'210000 - Est. Situa. Financiera'!$E$78","v":"Otras reservas"},{"$f":"'210000 - Est. Situa. Financiera'!$D$78","v":"ifrs-full:OtherReserves"}]
["/*",null,{"$f":"'210000 - Est. Situa. Financiera'!$E$79","v":"Patrimonio total"},{"$f":"'210000 - Est. Situa. Financiera'!$D$79","v":"ifrs-full:Equity"}]
["",null,{"$f":"'210000 - Est. Situa. Financiera'!$E$80","v":"Total de patrimonio y pasivos"},{"$f":"'210000 - Est. Situa. Financiera'!$D$80","v":"ifrs-full:EquityAndLiabilities"},0,"peso",{"$f":"'210000 - Est. Situa. Financiera'!$G$80","v":0},0,"http://www.xbrl.org/scheme/companyName",null,{"$f":"Periodos!$D$4","v":"2022-12-31"}]
["/*"]
["/*",null,"310000 - Est. Resultados"]
["/*",null,"--01--"]
["/*",null,{"$f":"'310000 - Est. Resultados'!$E$14","v":"Resultado de periodo [resumen]"},{"$f":"'310000 - Est. Resultados'!$D$14","v":"ifrs-full:IncomeStatementAbstract"}]
["/*",null,{"$f":"'310000 - Est. Resultados'!$E$15","v":"Ganancia (pérdida) [resumen]"},{"$f":"'310000 - Est. Resultados'!$D$15","v":"ifrs-full:ProfitLossAbstract"}]
["/*",null,{"$f":"'310000 - Est. Resultados'!$E$16","v":"Ingresos de actividades ordinarias"},{"$f":"'310000 - Est. Resultados'!$D$16","v":"ifrs-full:Revenue"}]
["/*",null,{"$f":"'310000 - Est. Resultados'!$E$17","v":"Costo de ventas"},{"$f":"'310000 - Est. Resultados'!$D$17","v":"ifrs-full:CostOfSales"}]
["",null,{"$f":"'310000 - Est. Resultados'!$E$18","v":"Ganancia bruta"},{"$f":"'310000 - Est. Resultados'!$D$18","v":"ifrs-full:GrossProfit"},0,"peso",{"$f":"'310000 - Est. Resultados'!$F$18","v":0},0,"http://www.xbrl.org/scheme/companyName",{"$f":"Periodos!$C$3","v":"2023-01-01"},{"$f":"Periodos!$C$4","v":"2023-12-31"}]
["/*",null,{"$f":"'310000 - Est. Resultados'!$E$19","v":"Otros ingresos"},{"$f":"'310000 - Est. Resultados'!$D$19","v":"ifrs-full:OtherIncome"}]
["/*",null,{"$f":"'310000 - Est. Resultados'!$E$20","v":"Costos de distribución"},{"$f":"'310000 - Est. Resultados'!$D$20","v":"ifrs-full:DistributionCosts"}]
["/*",null,{"$f":"'310000 - Est. Resultados'!$E$21","v":"Gastos de administración"},{"$f":"'310000 - Est. Resultados'!$D$21","v":"ifrs-full:AdministrativeExpense"}]
["/*",null,{"$f":"'310000 - Est. Resultados'!$E$22","v":"Otros gastos"},{"$f":"'310000 - Est. Resultados'!$D$22","v":"ifrs-full:OtherExpenseByFunction"}]
["/*",null,{"$f":"'310000 - Est. Resultados'!$E$23","v":"Otras ganancias (pérdidas)"},{"$f":"'310000 - Est. Resultados'!$D$23","v":"ifrs-full:OtherGainsLosses"}]
["",null,{"$f":"'310000 - Est. Resultados'!$E$24","v":"Ganancia (pérdida) por actividades de operación"},{"$f":"'310000 - Est. Resultados'!$D$24","v":"ifrs-full:ProfitLossFromOperatingActivities"},0,"peso",{"$f":"'310000 - Est. Resultados'!$F$24","v":0},0,"http://www.xbrl.org/scheme/companyName",{"$f":"Periodos!$C$3","v":"2023-01-01"},{"$f":"Periodos!$C$4","v":"2023-12-31"}]
["/*",null,{"$f":"'310000 - Est. Resultados'!$E$25","v":"Diferencia entre el importe en libros de dividendos pagaderos e importe en libros de activos distribuidos distintos al efectivo"},{"$f":"'310000 - Est. Resultados'!$D$25","v":"ifrs-full:DifferenceBetweenCarryingAmountOfDividendsPayableAndCarryingAmountOfNoncashAssetsDistributed"}]
["/*",null,{"$f":"'310000 - Est. Resultados'!$E$26","v":"Ganancias (pérdidas) que surgen de la baja en cuentas de activos financieros medidos al costo amortizado"},{"$f":"'310000 - Est. Resultados'!$D$26","v":"ifrs-full:GainLossArisingFromDerecognitionOfFinancialAssetsMeasuredAtAmortisedCost"}]
["/*",null,{"$f":"'310000 - Est. Resultados'!$E$27","v":"Ingresos financieros"},{"$f":"'310000 - Est. Resultados'!$D$27","v":"ifrs-full:FinanceIncome"}]
["/*",null,{"$f":"'310000 - Est. Resultados'!$E$28","v":"Costos financieros"},{"$f":"'310000 - Est. Resultados'!$D$28","v":"ifrs-full:FinanceCosts"}]
["/*",null,{"$f":"'310000 - Est. Resultados'!$E$29","v":"Deterioro de valor de ganancias y reversión de pérdidas por deterioro de valor (pérdidas por deterioro de valor) determinado de acuerdo con la NIIF 9"},{"$f":"'310000 - Est. Resultados'!$D$29","v":"ifrs-full:ImpairmentLossImpairmentGainAndReversalOfImpairmentLossDeterminedInAccordanceWithIFRS9"}]
["/*",null,{"$f":"'310000 - Est. Resultados'!$E$30","v":"Participación en las ganancias (pérdidas) de asociadas y negocios conjuntos que se contabilicen utilizando el método de la participación"},{"$f":"'310000 - Est. Resultados'!$D$30","v":"ifrs-full:ShareOfProfitLossOfAssociatesAndJointVenturesAccountedForUsingEquityMethod"}]
["/*",null,{"$f":"'310000 - Est. Resultados'!$E$31","v":"Otros ingresos (gastos) procedentes de subsidiarias, entidades controladas de forma conjunta y asociadas"},{"$f":"'310000 - Est. Resultados'!$D$31","v":"ifrs-full:OtherIncomeExpenseFromSubsidiariesJointlyControlledEntitiesAndAssociates"}]
["/*",null,{"$f":"'310000 - Est. Resultados'!$E$32","v":"Ganancias (pérdidas) que surgen de diferencias entre el costo amortizado anterior y el valor razonable de activos financieros reclasificados de la categoría de medición costo amortizado a la categoría de medición de valor razonable con cambios en resultados"},{"$f":"'310000 - Est. Resultados'!$D$32","v":"ifrs-full:GainsLossesArisingFromDifferenceBetweenPreviousCarryingAmountAndFairValueOfFinancialAssetsReclassifiedAsMeasuredAtFairValue"}]
[{"$f":"IF(G7200=\"\",\"/*\",\"\")","v":"/*"},null,{"$f":"'310000 - Est. Resultados'!$E$33","v":"Ganancia (pérdida) acumulada anteriormente reconocida en otro resultado integral que surge de la reclasificación de activos financieros de la categoría de medición de valor razonable con cambios en otro resultado integral a la de valor razonable con cambios en resultados"},{"$f":"'310000 - Est. Resultados'!$D$33","v":"ifrs-full:CumulativeGainLossPreviouslyRecognisedInOtherComprehensiveIncomeArisingFromReclassificationOfFinancialAssetsOutOfFairValueThroughOtherComprehensiveIncomeIntoFairValueThroughProfitOrLossMeasurementCategory"}]
["/*",null,{"$f":"'310000 - Est. Resultados'!$E$34","v":"Ganancias (pérdidas) de cobertura por cobertura de un grupo de partidas con posiciones de riesgo compensadoras"},{"$f":"'310000 - Est. Resultados'!$D$34","v":"ifrs-full:HedgingGainsLossesForHedgeOfGroupOfItemsWithOffsettingRiskPositions"}]
["",null,{"$f":"'310000 - Est. Resultados'!$E$35","v":"Ganancia (pérdida), antes de impuestos"},{"$f":"'310000 - Est. Resultados'!$D$35","v":"ifrs-full:ProfitLossBeforeTax"},0,"peso",{"$f":"'310000 - Est. Resultados'!$F$35","v":0},0,"http://www.xbrl.org/scheme/companyName",{"$f":"Periodos!$C$3","v":"2023-01-01"},{"$f":"Periodos!$C$4","v":"2023-12-31"}]
["/*",null,{"$f":"'310000 - Est. Resultados'!$E$36","v":"Ingreso (gasto) por impuestos"},{"$f":"'310000 - Est. Resultados'!$D$36","v":"ifrs-full:IncomeTaxExpenseContinuingOperations"}]
["",null,{"$f":"'310000 - Est. Resultados'!$E$37","v":"Ganancia (pérdida) procedente de operaciones continuadas"},{"$f":"'310000 - Est. Resultados'!$D$37","v":"ifrs-full:ProfitLossFromContinuingOperations"},0,"peso",{"$f":"'310000 - Est. Resultados'!$F$37","v":0},0,"http://www.xbrl.org/scheme/companyName",{"$f":"Periodos!$C$3","v":"2023-01-01"},{"$f":"Periodos!$C$4","v":"2023-12-31"}]
["/*",null,{"$f":"'310000 - Est. Resultados'!$E$38","v":"Ganancia (pérdida) procedente de operaciones discontinuadas"},{"$f":"'310000 - Est. Resultados'!$D$38","v":"ifrs-full:ProfitLossFromDiscontinuedOperations"}]
["",null,{"$f":"'310000 - Est. Resultados'!$E$39","v":"Ganancia (pérdida)"},{"$f":"'310000 - Est. Resultados'!$D$39","v":"ifrs-full:ProfitLoss"},0,"peso",{"$f":"'310000 - Est. Resultados'!$F$39","v":0},0,"http://www.xbrl.org/scheme/companyName",{"$f":"Periodos!$C$3","v":"2023-01-01"},{"$f":"Periodos!$C$4","v":"2023-12-31"}]
["/*",null,{"$f":"'310000 - Est. Resultados'!$E$40","v":"Ganancias por acción [resumen]"},{"$f":"'310000 - Est. Resultados'!$D$40","v":"ifrs-full:EarningsPerShareAbstract"}]
["/*",null,{"$f":"'310000 - Est. Resultados'!$E$41","v":"Ganancia por acción básica [resumen]"},{"$f":"'310000 - Est. Resultados'!$D$41","v":"ifrs-full:BasicEarningsPerShareAbstract"}]
["/*",null,{"$f":"'310000 - Est. Resultados'!$E$42","v":"Ganancia (pérdida) por acción básica en operaciones continuadas"},{"$f":"'310000 - Est. Resultados'!$D$42","v":"ifrs-full:BasicEarningsLossPerShareFromContinuingOperations"}]
["/*",null,{"$f":"'310000 - Est. Resultados'!$E$43","v":"Ganancia (pérdida) por acción básica en operaciones discontinuadas"},{"$f":"'310000 - Est. Resultados'!$D$43","v":"ifrs-full:BasicEarningsLossPerShareFromDiscontinuedOperations"}]
["",null,{"$f":"'310000 - Est. Resultados'!$E$44","v":"Total ganancias (pérdidas) básicas por acción"},{"$f":"'310000 - Est. Resultados'!$D$44","v":"ifrs-full:BasicEarningsLossPerShare"},"INF","pesoXaccion",{"$f":"'310000 - Est. Resultados'!$F$44","v":0},0,"http://www.xbrl.org/scheme/companyName",{"$f":"Periodos!$C$3","v":"2023-01-01"},{"$f":"Periodos!$C$4","v":"2023-12-31"}]
["/*",null,{"$f":"'310000 - Est. Resultados'!$E$45","v":"Ganancias por acción diluidas [resumen]"},{"$f":"'310000 - Est. Resultados'!$D$45","v":"ifrs-full:DilutedEarningsPerShareAbstract"}]
["/*",null,{"$f":"'310000 - Est. Resultados'!$E$46","v":"Ganancias (pérdida) diluida por acción procedente de operaciones continuadas"},{"$f":"'310000 - Est. Resultados'!$D$46","v":"ifrs-full:DilutedEarningsLossPerShareFromContinuingOperations"}]
["/*",null,{"$f":"'310000 - Est. Resultados'!$E$47","v":"Ganancias (pérdida) diluida por acción procedentes de operaciones discontinuadas"},{"$f":"'310000 - Est. Resultados'!$D$47","v":"ifrs-full:DilutedEarningsLossPerShareFromDiscontinuedOperations"}]
["",null,{"$f":"'310000 - Est. Resultados'!$E$48","v":"Total ganancias (pérdidas) por acción diluidas"},{"$f":"'310000 - Est. Resultados'!$D$48","v":"ifrs-full:DilutedEarningsLossPerShare"},"INF","pesoXaccion",{"$f":"'310000 - Est. Resultados'!$F$48","v":0},0,"http://www.xbrl.org/scheme/companyName",{"$f":"Periodos!$C$3","v":"2023-01-01"},{"$f":"Periodos!$C$4","v":"2023-12-31"}]
["/*",null,"--02--"]
["/*",null,{"$f":"'310000 - Est. Resultados'!$E$14","v":"Resultado de periodo [resumen]"},{"$f":"'310000 - Est. Resultados'!$D$14","v":"ifrs-full:IncomeStatementAbstract"}]
["/*",null,{"$f":"'310000 - Est. Resultados'!$E$15","v":"Ganancia (pérdida) [resumen]"},{"$f":"'310000 - Est. Resultados'!$D$15","v":"ifrs-full:ProfitLossAbstract"}]
["/*",null,{"$f":"'310000 - Est. Resultados'!$E$16","v":"Ingresos de actividades ordinarias"},{"$f":"'310000 - Est. Resultados'!$D$16","v":"ifrs-full:Revenue"}]
["/*",null,{"$f":"'310000 - Est. Resultados'!$E$17","v":"Costo de ventas"},{"$f":"'310000 - Est. Resultados'!$D$17","v":"ifrs-full:CostOfSales"}]
["",null,{"$f":"'310000 - Est. Resultados'!$E$18","v":"Ganancia bruta"},{"$f":"'310000 - Est. Resultados'!$D$18","v":"ifrs-full:GrossProfit"},0,"peso",{"$f":"'310000 - Est. Resultados'!$G$18","v":0},0,"http://www.xbrl.org/scheme/companyName",{"$f":"Periodos!$D$3","v":"2022-01-01"},{"$f":"Periodos!$D$4","v":"2022-12-31"}]
["/*",null,{"$f":"'310000 - Est. Resultados'!$E$19","v":"Otros ingresos"},{"$f":"'310000 - Est. Resultados'!$D$19","v":"ifrs-full:OtherIncome"}]
["/*",null,{"$f":"'310000 - Est. Resultados'!$E$20","v":"Costos de distribución"},{"$f":"'310000 - Est. Resultados'!$D$20","v":"ifrs-full:DistributionCosts"}]
["/*",null,{"$f":"'310000 - Est. Resultados'!$E$21","v":"Gastos de administración"},{"$f":"'310000 - Est. Resultados'!$D$21","v":"ifrs-full:AdministrativeExpense"}]
["/*",null,{"$f":"'310000 - Est. Resultados'!$E$22","v":"Otros gastos"},{"$f":"'310000 - Est. Resultados'!$D$22","v":"ifrs-full:OtherExpenseByFunction"}]
["/*",null,{"$f":"'310000 - Est. Resultados'!$E$23","v":"Otras ganancias (pérdidas)"},{"$f":"'310000 - Est. Resultados'!$D$23","v":"ifrs-full:OtherGainsLosses"}]
["",null,{"$f":"'310000 - Est. Resultados'!$E$24","v":"Ganancia (pérdida) por actividades de operación"},{"$f":"'310000 - Est. Resultados'!$D$24","v":"ifrs-full:ProfitLossFromOperatingActivities"},0,"peso",{"$f":"'310000 - Est. Resultados'!$G$24","v":0},0,"http://www.xbrl.org/scheme/companyName",{"$f":"Periodos!$D$3","v":"2022-01-01"},{"$f":"Periodos!$D$4","v":"2022-12-31"}]
["/*",null,{"$f":"'310000 - Est. Resultados'!$E$25","v":"Diferencia entre el importe en libros de dividendos pagaderos e importe en libros de activos distribuidos distintos al efectivo"},{"$f":"'310000 - Est. Resultados'!$D$25","v":"ifrs-full:DifferenceBetweenCarryingAmountOfDividendsPayableAndCarryingAmountOfNoncashAssetsDistributed"}]
["/*",null,{"$f":"'310000 - Est. Resultados'!$E$26","v":"Ganancias (pérdidas) que surgen de la baja en cuentas de activos financieros medidos al costo amortizado"},{"$f":"'310000 - Est. Resultados'!$D$26","v":"ifrs-full:GainLossArisingFromDerecognitionOfFinancialAssetsMeasuredAtAmortisedCost"}]
["/*",null,{"$f":"'310000 - Est. Resultados'!$E$27","v":"Ingresos financieros"},{"$f":"'310000 - Est. Resultados'!$D$27","v":"ifrs-full:FinanceIncome"}]
["/*",null,{"$f":"'310000 - Est. Resultados'!$E$28","v":"Costos financieros"},{"$f":"'310000 - Est. Resultados'!$D$28","v":"ifrs-full:FinanceCosts"}]
["/*",null,{"$f":"'310000 - Est. Resultados'!$E$29","v":"Deterioro de valor de ganancias y reversión de pérdidas por deterioro de valor (pérdidas por deterioro de valor) determinado de acuerdo con la NIIF 9"},{"$f":"'310000 - Est. Resultados'!$D$29","v":"ifrs-full:ImpairmentLossImpairmentGainAndReversalOfImpairmentLossDeterminedInAccordanceWithIFRS9"}]
["/*",null,{"$f":"'310000 - Est. Resultados'!$E$30","v":"Participación en las ganancias (pérdidas) de asociadas y negocios conjuntos que se contabilicen utilizando el método de la participación"},{"$f":"'310000 - Est. Resultados'!$D$30","v":"ifrs-full:ShareOfProfitLossOfAssociatesAndJointVenturesAccountedForUsingEquityMethod"}]
["/*",null,{"$f":"'310000 - Est. Resultados'!$E$31","v":"Otros ingresos (gastos) procedentes de subsidiarias, entidades controladas de forma conjunta y asociadas"},{"$f":"'310000 - Est. Resultados'!$D$31","v":"ifrs-full:OtherIncomeExpenseFromSubsidiariesJointlyControlledEntitiesAndAssociates"}]
["/*",null,{"$f":"'310000 - Est. Resultados'!$E$32","v":"Ganancias (pérdidas) que surgen de diferencias entre el costo amortizado anterior y el valor razonable de activos financieros reclasificados de la categoría de medición costo amortizado a la categoría de medición de valor razonable con cambios en resultados"},{"$f":"'310000 - Est. Resultados'!$D$32","v":"ifrs-full:GainsLossesArisingFromDifferenceBetweenPreviousCarryingAmountAndFairValueOfFinancialAssetsReclassifiedAsMeasuredAtFairValue"}]
["/*",null,{"$f":"'310000 - Est. Resultados'!$E$33","v":"Ganancia (pérdida) acumulada anteriormente reconocida en otro resultado integral que surge de la reclasificación de activos financieros de la categoría de medición de valor razonable con cambios en otro resultado integral a la de valor razonable con cambios en resultados"},{"$f":"'310000 - Est. Resultados'!$D$33","v":"ifrs-full:CumulativeGainLossPreviouslyRecognisedInOtherComprehensiveIncomeArisingFromReclassificationOfFinancialAssetsOutOfFairValueThroughOtherComprehensiveIncomeIntoFairValueThroughProfitOrLossMeasurementCategory"}]
["/*",null,{"$f":"'310000 - Est. Resultados'!$E$34","v":"Ganancias (pérdidas) de cobertura por cobertura de un grupo de partidas con posiciones de riesgo compensadoras"},{"$f":"'310000 - Est. Resultados'!$D$34","v":"ifrs-full:HedgingGainsLossesForHedgeOfGroupOfItemsWithOffsettingRiskPositions"}]
["",null,{"$f":"'310000 - Est. Resultados'!$E$35","v":"Ganancia (pérdida), antes de impuestos"},{"$f":"'310000 - Est. Resultados'!$D$35","v":"ifrs-full:ProfitLossBeforeTax"},0,"peso",{"$f":"'310000 - Est. Resultados'!$G$35","v":0},0,"http://www.xbrl.org/scheme/companyName",{"$f":"Periodos!$D$3","v":"2022-01-01"},{"$f":"Periodos!$D$4","v":"2022-12-31"}]
["/*",null,{"$f":"'310000 - Est. Resultados'!$E$36","v":"Ingreso (gasto) por impuestos"},{"$f":"'310000 - Est. Resultados'!$D$36","v":"ifrs-full:IncomeTaxExpenseContinuingOperations"}]
["",null,{"$f":"'310000 - Est. Resultados'!$E$37","v":"Ganancia (pérdida) procedente de operaciones continuadas"},{"$f":"'310000 - Est. Resultados'!$D$37","v":"ifrs-full:ProfitLossFromContinuingOperations"},0,"peso",{"$f":"'310000 - Est. Resultados'!$G$37","v":0},0,"http://www.xbrl.org/scheme/companyName",{"$f":"Periodos!$D$3","v":"2022-01-01"},{"$f":"Periodos!$D$4","v":"2022-12-31"}]
["/*",null,{"$f":"'310000 - Est. Resultados'!$E$38","v":"Ganancia (pérdida) procedente de operaciones discontinuadas"},{"$f":"'310000 - Est. Resultados'!$D$38","v":"ifrs-full:ProfitLossFromDiscontinuedOperations"}]
["",null,{"$f":"'310000 - Est. Resultados'!$E$39","v":"Ganancia (pérdida)"},{"$f":"'310000 - Est. Resultados'!$D$39","v":"ifrs-full:ProfitLoss"},0,"peso",{"$f":"'310000 - Est. Resultados'!$G$39","v":0},0,"http://www.xbrl.org/scheme/companyName",{"$f":"Periodos!$D$3","v":"2022-01-01"},{"$f":"Periodos!$D$4","v":"2022-12-31"}]
["/*",null,{"$f":"'310000 - Est. Resultados'!$E$40","v":"Ganancias por acción [resumen]"},{"$f":"'310000 - Est. Resultados'!$D$40","v":"ifrs-full:EarningsPerShareAbstract"}]
["/*",null,{"$f":"'310000 - Est. Resultados'!$E$41","v":"Ganancia por acción básica [resumen]"},{"$f":"'310000 - Est. Resultados'!$D$41","v":"ifrs-full:BasicEarningsPerShareAbstract"}]
["/*",null,{"$f":"'310000 - Est. Resultados'!$E$42","v":"Ganancia (pérdida) por acción básica en operaciones continuadas"},{"$f":"'310000 - Est. Resultados'!$D$42","v":"ifrs-full:BasicEarningsLossPerShareFromContinuingOperations"}]
["/*",null,{"$f":"'310000 - Est. Resultados'!$E$43","v":"Ganancia (pérdida) por acción básica en operaciones discontinuadas"},{"$f":"'310000 - Est. Resultados'!$D$43","v":"ifrs-full:BasicEarningsLossPerShareFromDiscontinuedOperations"}]
["",null,{"$f":"'310000 - Est. Resultados'!$E$44","v":"Total ganancias (pérdidas) básicas por acción"},{"$f":"'310000 - Est. Resultados'!$D$44","v":"ifrs-full:BasicEarningsLossPerShare"},"INF","pesoXaccion",{"$f":"'310000 - Est. Resultados'!$G$44","v":0},0,"http://www.xbrl.org/scheme/companyName",{"$f":"Periodos!$D$3","v":"2022-01-01"},{"$f":"Periodos!$D$4","v":"2022-12-31"}]
["/*",null,{"$f":"'310000 - Est. Resultados'!$E$45","v":"Ganancias por acción diluidas [resumen]"},{"$f":"'310000 - Est. Resultados'!$D$45","v":"ifrs-full:DilutedEarningsPerShareAbstract"}]
["/*",null,{"$f":"'310000 - Est. Resultados'!$E$46","v":"Ganancias (pérdida) diluida por acción procedente de operaciones continuadas"},{"$f":"'310000 - Est. Resultados'!$D$46","v":"ifrs-full:DilutedEarningsLossPerShareFromContinuingOperations"}]
["/*",null,{"$f":"'310000 - Est. Resultados'!$E$47","v":"Ganancias (pérdida) diluida por acción procedentes de operaciones discontinuadas"},{"$f":"'310000 - Est. Resultados'!$D$47","v":"ifrs-full:DilutedEarningsLossPerShareFromDiscontinuedOperations"}]
["",null,{"$f":"'310000 - Est. Resultados'!$E$48","v":"Total ganancias (pérdidas) por acción diluidas"},{"$f":"'310000 - Est. Resultados'!$D$48","v":"ifrs-full:DilutedEarningsLossPerShare"},"INF","pesoXaccion",{"$f":"'310000 - Est. Resultados'!$G$48","v":0},0,"http://www.xbrl.org/scheme/companyName",{"$f":"Periodos!$D$3","v":"2022-01-01"},{"$f":"Periodos!$D$4","v":"2022-12-31"}]
["/*"]
["/*",null,"410000 - Est. Resultados ORI"]
["/*",null,"--01--"]
["/*",null,{"$f":"'410000 - Est. Resultados ORI'!$E$14","v":"Estado del resultado integral [resumen]"},{"$f":"'410000 - Est. Resultados ORI'!$D$14","v":"ifrs-full:StatementOfComprehensiveIncomeAbstract"}]
["/*",null,{"$f":"'410000 - Est. Resultados ORI'!$E$15","v":"Ganancia (pérdida)"},{"$f":"'410000 - Est. Resultados ORI'!$D$15","v":"ifrs-full:ProfitLoss"}]
["/*",null,{"$f":"'410000 - Est. Resultados ORI'!$E$16","v":"Otro resultado integral [resumen]"},{"$f":"'410000 - Est. Resultados ORI'!$D$16","v":"ifrs-full:OtherComprehensiveIncomeAbstract"}]
["/*",null,{"$f":"'410000 - Est. Resultados ORI'!$E$17","v":"Componentes de otro resultado integral que no se reclasificarán al resultado del periodo, netos de impuestos [resumen]"},{"$f":"'410000 - Est. Resultados ORI'!$D$17","v":"ifrs-full:ComponentsOfOtherComprehensiveIncomeThatWillNotBeReclassifiedToProfitOrLossNetOfTaxAbstract"}]
["/*",null,{"$f":"'410000 - Est. Resultados ORI'!$E$18","v":"Otro resultado integral, neto de impuestos, ganancias (pérdidas) de inversiones en instrumentos de patrimonio"},{"$f":"'410000 - Est. Resultados ORI'!$D$18","v":"ifrs-full:OtherComprehensiveIncomeNetOfTaxGainsLossesFromInvestmentsInEquityInstruments"}]
["/*",null,{"$f":"'410000 - Est. Resultados ORI'!$E$19","v":"Otro resultado integral, neto de impuestos, ganancias (pérdidas) por revaluación"},{"$f":"'410000 - Est. Resultados ORI'!$D$19","v":"ifrs-full:OtherComprehensiveIncomeNetOfTaxGainsLossesOnRevaluation"}]
["/*",null,{"$f":"'410000 - Est. Resultados ORI'!$E$20","v":"Otro resultado integral, neto de impuestos, ganancias (pérdidas) por nuevas mediciones de planes de beneficios definidos"},{"$f":"'410000 - Est. Resultados ORI'!$D$20","v":"ifrs-full:OtherComprehensiveIncomeNetOfTaxGainsLossesOnRemeasurementsOfDefinedBenefitPlans"}]
["/*",null,{"$f":"'410000 - Est. Resultados ORI'!$E$21","v":"Otro resultado integral, neto de impuestos, cambio en el valor razonable de pasivos financieros atribuible a cambios en el riesgo crediticio del pasivo"},{"$f":"'410000 - Est. Resultados ORI'!$D$21","v":"ifrs-full:OtherComprehensiveIncomeNetOfTaxChangeInFairValueOfFinancialLiabilityAttributableToChangeInCreditRiskOfLiability"}]
["/*",null,{"$f":"'410000 - Est. Resultados ORI'!$E$22","v":"Participación de otro resultado integral de asociadas y negocios conjuntos contabilizados utilizando el método de la participación que no se reclasificará al resultado del periodo, neto de impuestos"},{"$f":"'410000 - Est. Resultados ORI'!$D$22","v":"ifrs-full:ShareOfOtherComprehensiveIncomeOfAssociatesAndJointVenturesAccountedForUsingEquityMethodThatWillNotBeReclassifiedToProfitOrLossNetOfTax"}]
[{"$f":"IF(G7264=\"\",\"/*\",\"\")","v":""},null,{"$f":"'410000 - Est. Resultados ORI'!$E$23","v":"Total otro resultado integral que no se reclasificará al resultado del periodo, neto de impuestos"},{"$f":"'410000 - Est. Resultados ORI'!$D$23","v":"ifrs-full:OtherComprehensiveIncomeThatWillNotBeReclassifiedToProfitOrLossNetOfTax"},0,"peso",{"$f":"'410000 - Est. Resultados ORI'!$F$23","v":0},0,"http://www.xbrl.org/scheme/companyName",{"$f":"Periodos!$C$3","v":"2023-01-01"},{"$f":"Periodos!$C$4","v":"2023-12-31"}]
["/*",null,{"$f":"'410000 - Est. Resultados ORI'!$E$24","v":"Componentes de otro resultado integral que se reclasificarán al resultado del periodo, netos de impuestos [resumen]"},{"$f":"'410000 - Est. Resultados ORI'!$D$24","v":"ifrs-full:ComponentsOfOtherComprehensiveIncomeThatWillBeReclassifiedToProfitOrLossNetOfTaxAbstract"}]
["/*",null,{"$f":"'410000 - Est. Resultados ORI'!$E$25","v":"Diferencias de cambio por conversión [resumen]"},{"$f":"'410000 - Est. Resultados ORI'!$D$25","v":"ifrs-full:ExchangeDifferencesOnTranslationAbstract"}]
["/*",null,{"$f":"'410000 - Est. Resultados ORI'!$E$26","v":"Ganancias (pérdidas) por diferencias de cambio de conversión, netas de impuestos"},{"$f":"'410000 - Est. Resultados ORI'!$D$26","v":"ifrs-full:GainsLossesOnExchangeDifferencesOnTranslationNetOfTax"}]
["/*",null,{"$f":"'410000 - Est. Resultados ORI'!$E$27","v":"Ajustes de reclasificación en diferencias de cambio de conversión, netos de impuestos"},{"$f":"'410000 - Est. Resultados ORI'!$D$27","v":"ifrs-full:ReclassificationAdjustmentsOnExchangeDifferencesOnTranslationNetOfTax"}]
["",null,{"$f":"'410000 - Est. Resultados ORI'!$E$28","v":"Otro resultado integral, neto de impuestos, diferencias de cambio por conversión"},{"$f":"'410000 - Est. Resultados ORI'!$D$28","v":"ifrs-full:OtherComprehensiveIncomeNetOfTaxExchangeDifferencesOnTranslation"},0,"peso",{"$f":"'410000 - Est. Resultados ORI'!$F$28","v":0},0,"http://www.xbrl.org/scheme/companyName",{"$f":"Periodos!$C$3","v":"2023-01-01"},{"$f":"Periodos!$C$4","v":"2023-12-31"}]
["/*",null,{"$f":"'410000 - Est. Resultados ORI'!$E$29","v":"Activos financieros disponibles para la venta [resumen]"},{"$f":"'410000 - Est. Resultados ORI'!$D$29","v":"ifrs-full:AvailableforsaleFinancialAssetsAbstract"}]
["/*",null,{"$f":"'410000 - Est. Resultados ORI'!$E$30","v":"Ganancias (pérdidas) por nuevas mediciones de activos financieros disponibles para la venta, netas de impuestos"},{"$f":"'410000 - Est. Resultados ORI'!$D$30","v":"ifrs-full:GainsLossesOnRemeasuringAvailableforsaleFinancialAssetsNetOfTax"}]
["/*",null,{"$f":"'410000 - Est. Resultados ORI'!$E$31","v":"Ajustes de reclasificación, activos financieros disponibles para la venta, netos de impuestos"},{"$f":"'410000 - Est. Resultados ORI'!$D$31","v":"ifrs-full:ReclassificationAdjustmentsOnAvailableforsaleFinancialAssetsNetOfTax"}]
["",null,{"$f":"'410000 - Est. Resultados ORI'!$E$32","v":"Otro resultado integral, neto de impuestos, activos financieros disponibles para la venta"},{"$f":"'410000 - Est. Resultados ORI'!$D$32","v":"ifrs-full:OtherComprehensiveIncomeNetOfTaxAvailableforsaleFinancialAssets"},0,"peso",{"$f":"'410000 - Est. Resultados ORI'!$F$32","v":0},0,"http://www.xbrl.org/scheme/companyName",{"$f":"Periodos!$C$3","v":"2023-01-01"},{"$f":"Periodos!$C$4","v":"2023-12-31"}]
["/*",null,{"$f":"'410000 - Est. Resultados ORI'!$E$33","v":"Coberturas del flujo de efectivo [resumen]"},{"$f":"'410000 - Est. Resultados ORI'!$D$33","v":"ifrs-full:CashFlowHedgesAbstract"}]
["/*",null,{"$f":"'410000 - Est. Resultados ORI'!$E$34","v":"Ganancias (pérdidas) por coberturas de flujos de efectivo, neto de impuestos"},{"$f":"'410000 - Est. Resultados ORI'!$D$34","v":"ifrs-full:GainsLossesOnCashFlowHedgesNetOfTax"}]
["/*",null,{"$f":"'410000 - Est. Resultados ORI'!$E$35","v":"Ajustes de reclasificación en coberturas de flujos de efectivo, netos de impuestos"},{"$f":"'410000 - Est. Resultados ORI'!$D$35","v":"ifrs-full:ReclassificationAdjustmentsOnCashFlowHedgesNetOfTax"}]
["/*",null,{"$f":"'410000 - Est. Resultados ORI'!$E$36","v":"Importes eliminados del patrimonio e incluidos en el importe en libros de activos (pasivos) no financieros que se hayan adquirido o incurrido mediante una transacción prevista altamente probable cubierta, neto de impuestos"},{"$f":"'410000 - Est. Resultados ORI'!$D$36","v":"ifrs-full:AdjustmentsForAmountsTransferredToInitialCarryingAmountOfHedgedItems"}]
["",null,{"$f":"'410000 - Est. Resultados ORI'!$E$37","v":"Otro resultado integral, neto de impuestos, coberturas del flujo de efectivo"},{"$f":"'410000 - Est. Resultados ORI'!$D$37","v":"ifrs-full:OtherComprehensiveIncomeNetOfTaxCashFlowHedges"},0,"peso",{"$f":"'410000 - Est. Resultados ORI'!$F$37","v":0},0,"http://www.xbrl.org/scheme/companyName",{"$f":"Periodos!$C$3","v":"2023-01-01"},{"$f":"Periodos!$C$4","v":"2023-12-31"}]
["/*",null,{"$f":"'410000 - Est. Resultados ORI'!$E$38","v":"Coberturas de inversiones netas en negocios en el extranjero [resumen]"},{"$f":"'410000 - Est. Resultados ORI'!$D$38","v":"ifrs-full:HedgesOfNetInvestmentsInForeignOperationsAbstract"}]
["/*",null,{"$f":"'410000 - Est. Resultados ORI'!$E$39","v":"Ganancias (pérdidas) por coberturas de inversiones netas en negocios en el extranjero, neto de impuestos"},{"$f":"'410000 - Est. Resultados ORI'!$D$39","v":"ifrs-full:GainsLossesOnHedgesOfNetInvestmentsInForeignOperationsNetOfTax"}]
["/*",null,{"$f":"'410000 - Est. Resultados ORI'!$E$40","v":"Ajustes de reclasificación por coberturas de inversiones netas en negocios en el extranjero, netos de impuestos"},{"$f":"'410000 - Est. Resultados ORI'!$D$40","v":"ifrs-full:ReclassificationAdjustmentsOnHedgesOfNetInvestmentsInForeignOperationsNetOfTax"}]
["",null,{"$f":"'410000 - Est. Resultados ORI'!$E$41","v":"Otro resultado integral, neto de impuestos, coberturas de inversiones netas en negocios en el extranjero"},{"$f":"'410000 - Est. Resultados ORI'!$D$41","v":"ifrs-full:OtherComprehensiveIncomeNetOfTaxHedgesOfNetInvestmentsInForeignOperations"},0,"peso",{"$f":"'410000 - Est. Resultados ORI'!$F$41","v":0},0,"http://www.xbrl.org/scheme/companyName",{"$f":"Periodos!$C$3","v":"2023-01-01"},{"$f":"Periodos!$C$4","v":"2023-12-31"}]
["/*",null,{"$f":"'410000 - Est. Resultados ORI'!$E$42","v":"Cambio en el valor temporal del dinero de opciones [resumen]"},{"$f":"'410000 - Est. Resultados ORI'!$D$42","v":"ifrs-full:ChangeInValueOfTimeValueOfOptionsAbstract"}]
["/*",null,{"$f":"'410000 - Est. Resultados ORI'!$E$43","v":"Ganancia (pérdida) por cambios en el valor temporal del dinero de opciones, neta de impuestos"},{"$f":"'410000 - Est. Resultados ORI'!$D$43","v":"ifrs-full:GainsLossesOnChangeInValueOfTimeValueOfOptionsNetOfTax"}]
["/*",null,{"$f":"'410000 - Est. Resultados ORI'!$E$44","v":"Ajustes de reclasificación por cambios en el valor temporal del dinero de opciones, netos de impuestos"},{"$f":"'410000 - Est. Resultados ORI'!$D$44","v":"ifrs-full:ReclassificationAdjustmentsOnChangeInValueOfTimeValueOfOptionsNetOfTax"}]
["",null,{"$f":"'410000 - Est. Resultados ORI'!$E$45","v":"Otro resultado integral, neto de impuestos, cambios en el valor del valor temporal del dinero de opciones"},{"$f":"'410000 - Est. Resultados ORI'!$D$45","v":"ifrs-full:OtherComprehensiveIncomeNetOfTaxChangeInValueOfTimeValueOfOptions"},0,"peso",{"$f":"'410000 - Est. Resultados ORI'!$F$45","v":0},0,"http://www.xbrl.org/scheme/companyName",{"$f":"Periodos!$C$3","v":"2023-01-01"},{"$f":"Periodos!$C$4","v":"2023-12-31"}]
["/*",null,{"$f":"'410000 - Est. Resultados ORI'!$E$46","v":"Cambios en el valor de los elementos a término de contratos a término [resumen]"},{"$f":"'410000 - Est. Resultados ORI'!$D$46","v":"ifrs-full:ChangeInValueOfForwardElementsOfForwardContractsAbstract"}]
["/*",null,{"$f":"'410000 - Est. Resultados ORI'!$E$47","v":"Ganancia (pérdida) por cambios en el valor de los elementos a término de contratos a término, neta de impuestos"},{"$f":"'410000 - Est. Resultados ORI'!$D$47","v":"ifrs-full:GainsLossesOnChangeInValueOfForwardElementsOfForwardContractsNetOfTax"}]
["/*",null,{"$f":"'410000 - Est. Resultados ORI'!$E$48","v":"Ajustes de reclasificación por cambios en el valor de los elementos a término de contratos a término, netos de impuestos"},{"$f":"'410000 - Est. Resultados ORI'!$D$48","v":"ifrs-full:ReclassificationAdjustmentsOnChangeInValueOfForwardElementsOfForwardContractsNetOfTax"}]
["",null,{"$f":"'410000 - Est. Resultados ORI'!$E$49","v":"Otro resultado integral, neto de impuestos, cambios en el valor de los elementos a término de contratos a término"},{"$f":"'410000 - Est. Resultados ORI'!$D$49","v":"ifrs-full:OtherComprehensiveIncomeNetOfTaxChangeInValueOfForwardElementsOfForwardContracts"},0,"peso",{"$f":"'410000 - Est. Resultados ORI'!$F$49","v":0},0,"http://www.xbrl.org/scheme/companyName",{"$f":"Periodos!$C$3","v":"2023-01-01"},{"$f":"Periodos!$C$4","v":"2023-12-31"}]
["/*",null,{"$f":"'410000 - Est. Resultados ORI'!$E$50","v":"Cambio en el valor de los diferenciales de tasa cambio de moneda extranjera [resumen]"},{"$f":"'410000 - Est. Resultados ORI'!$D$50","v":"ifrs-full:ChangeInValueOfForeignCurrencyBasisSpreadsAbstract"}]
["/*",null,{"$f":"'410000 - Est. Resultados ORI'!$E$51","v":"Ganancia (pérdida) por cambios en el valor de los diferenciales de la tasa de cambio de la moneda extranjera, neta de impuestos"},{"$f":"'410000 - Est. Resultados ORI'!$D$51","v":"ifrs-full:GainsLossesOnChangeInValueOfForeignCurrencyBasisSpreadsNetOfTax"}]
["/*",null,{"$f":"'410000 - Est. Resultados ORI'!$E$52","v":"Ajustes de reclasificación por cambios en el valor de los diferenciales de la tasa de cambio de la moneda extranjera, netos de impuestos"},{"$f":"'410000 - Est. Resultados ORI'!$D$52","v":"ifrs-full:ReclassificationAdjustmentsOnChangeInValueOfForeignCurrencyBasisSpreadsNetOfTax"}]
["",null,{"$f":"'410000 - Est. Resultados ORI'!$E$53","v":"Otro resultado integral, neto de impuestos, cambios en el valor de los diferenciales de tasa de cambio de la moneda extranjera"},{"$f":"'410000 - Est. Resultados ORI'!$D$53","v":"ifrs-full:OtherComprehensiveIncomeNetOfTaxChangeInValueOfForeignCurrencyBasisSpreads"},0,"peso",{"$f":"'410000 - Est. Resultados ORI'!$F$53","v":0},0,"http://www.xbrl.org/scheme/companyName",{"$f":"Periodos!$C$3","v":"2023-01-01"},{"$f":"Periodos!$C$4","v":"2023-12-31"}]
["/*",null,{"$f":"'410000 - Est. Resultados ORI'!$E$54","v":"Participación de otro resultado integral de asociadas y negocios conjuntos contabilizados utilizando el método de la participación que se reclasificará al resultado del periodo, neto de impuestos"},{"$f":"'410000 - Est. Resultados ORI'!$D$54","v":"ifrs-full:ShareOfOtherComprehensiveIncomeOfAssociatesAndJointVenturesAccountedForUsingEquityMethodThatWillBeReclassifiedToProfitOrLossNetOfTax"}]
["",null,{"$f":"'410000 - Est. Resultados ORI'!$E$55","v":"Total otro resultado integral que se reclasificará al resultado del periodo, neto de impuestos"},{"$f":"'410000 - Est. Resultados ORI'!$D$55","v":"ifrs-full:OtherComprehensiveIncomeThatWillBeReclassifiedToProfitOrLossNetOfTax"},0,"peso",{"$f":"'410000 - Est. Resultados ORI'!$F$55","v":0},0,"http://www.xbrl.org/scheme/companyName",{"$f":"Periodos!$C$3","v":"2023-01-01"},{"$f":"Periodos!$C$4","v":"2023-12-31"}]
["",null,{"$f":"'410000 - Est. Resultados ORI'!$E$56","v":"Total otro resultado integral"},{"$f":"'410000 - Est. Resultados ORI'!$D$56","v":"ifrs-full:OtherComprehensiveIncome"},0,"peso",{"$f":"'410000 - Est. Resultados ORI'!$F$56","v":0},0,"http://www.xbrl.org/scheme/companyName",{"$f":"Periodos!$C$3","v":"2023-01-01"},{"$f":"Periodos!$C$4","v":"2023-12-31"}]
["",null,{"$f":"'410000 - Est. Resultados ORI'!$E$57","v":"Resultado integral total"},{"$f":"'410000 - Est. Resultados ORI'!$D$57","v":"ifrs-full:ComprehensiveIncome"},0,"peso",{"$f":"'410000 - Est. Resultados ORI'!$F$57","v":0},0,"http://www.xbrl.org/scheme/companyName",{"$f":"Periodos!$C$3","v":"2023-01-01"},{"$f":"Periodos!$C$4","v":"2023-12-31"}]
["/*",null,"--02--"]
["/*",null,{"$f":"'410000 - Est. Resultados ORI'!$E$14","v":"Estado del resultado integral [resumen]"},{"$f":"'410000 - Est. Resultados ORI'!$D$14","v":"ifrs-full:StatementOfComprehensiveIncomeAbstract"}]
["/*",null,{"$f":"'410000 - Est. Resultados ORI'!$E$15","v":"Ganancia (pérdida)"},{"$f":"'410000 - Est. Resultados ORI'!$D$15","v":"ifrs-full:ProfitLoss"}]
["/*",null,{"$f":"'410000 - Est. Resultados ORI'!$E$16","v":"Otro resultado integral [resumen]"},{"$f":"'410000 - Est. Resultados ORI'!$D$16","v":"ifrs-full:OtherComprehensiveIncomeAbstract"}]
["/*",null,{"$f":"'410000 - Est. Resultados ORI'!$E$17","v":"Componentes de otro resultado integral que no se reclasificarán al resultado del periodo, netos de impuestos [resumen]"},{"$f":"'410000 - Est. Resultados ORI'!$D$17","v":"ifrs-full:ComponentsOfOtherComprehensiveIncomeThatWillNotBeReclassifiedToProfitOrLossNetOfTaxAbstract"}]
["/*",null,{"$f":"'410000 - Est. Resultados ORI'!$E$18","v":"Otro resultado integral, neto de impuestos, ganancias (pérdidas) de inversiones en instrumentos de patrimonio"},{"$f":"'410000 - Est. Resultados ORI'!$D$18","v":"ifrs-full:OtherComprehensiveIncomeNetOfTaxGainsLossesFromInvestmentsInEquityInstruments"}]
["/*",null,{"$f":"'410000 - Est. Resultados ORI'!$E$19","v":"Otro resultado integral, neto de impuestos, ganancias (pérdidas) por revaluación"},{"$f":"'410000 - Est. Resultados ORI'!$D$19","v":"ifrs-full:OtherComprehensiveIncomeNetOfTaxGainsLossesOnRevaluation"}]
["/*",null,{"$f":"'410000 - Est. Resultados ORI'!$E$20","v":"Otro resultado integral, neto de impuestos, ganancias (pérdidas) por nuevas mediciones de planes de beneficios definidos"},{"$f":"'410000 - Est. Resultados ORI'!$D$20","v":"ifrs-full:OtherComprehensiveIncomeNetOfTaxGainsLossesOnRemeasurementsOfDefinedBenefitPlans"}]
["/*",null,{"$f":"'410000 - Est. Resultados ORI'!$E$21","v":"Otro resultado integral, neto de impuestos, cambio en el valor razonable de pasivos financieros atribuible a cambios en el riesgo crediticio del pasivo"},{"$f":"'410000 - Est. Resultados ORI'!$D$21","v":"ifrs-full:OtherComprehensiveIncomeNetOfTaxChangeInFairValueOfFinancialLiabilityAttributableToChangeInCreditRiskOfLiability"}]
["/*",null,{"$f":"'410000 - Est. Resultados ORI'!$E$22","v":"Participación de otro resultado integral de asociadas y negocios conjuntos contabilizados utilizando el método de la participación que no se reclasificará al resultado del periodo, neto de impuestos"},{"$f":"'410000 - Est. Resultados ORI'!$D$22","v":"ifrs-full:ShareOfOtherComprehensiveIncomeOfAssociatesAndJointVenturesAccountedForUsingEquityMethodThatWillNotBeReclassifiedToProfitOrLossNetOfTax"}]
["",null,{"$f":"'410000 - Est. Resultados ORI'!$E$23","v":"Total otro resultado integral que no se reclasificará al resultado del periodo, neto de impuestos"},{"$f":"'410000 - Est. Resultados ORI'!$D$23","v":"ifrs-full:OtherComprehensiveIncomeThatWillNotBeReclassifiedToProfitOrLossNetOfTax"},0,"peso",{"$f":"'410000 - Est. Resultados ORI'!$G$23","v":0},0,"http://www.xbrl.org/scheme/companyName",{"$f":"Periodos!$D$3","v":"2022-01-01"},{"$f":"Periodos!$D$4","v":"2022-12-31"}]
["/*",null,{"$f":"'410000 - Est. Resultados ORI'!$E$24","v":"Componentes de otro resultado integral que se reclasificarán al resultado del periodo, netos de impuestos [resumen]"},{"$f":"'410000 - Est. Resultados ORI'!$D$24","v":"ifrs-full:ComponentsOfOtherComprehensiveIncomeThatWillBeReclassifiedToProfitOrLossNetOfTaxAbstract"}]
["/*",null,{"$f":"'410000 - Est. Resultados ORI'!$E$25","v":"Diferencias de cambio por conversión [resumen]"},{"$f":"'410000 - Est. Resultados ORI'!$D$25","v":"ifrs-full:ExchangeDifferencesOnTranslationAbstract"}]
["/*",null,{"$f":"'410000 - Est. Resultados ORI'!$E$26","v":"Ganancias (pérdidas) por diferencias de cambio de conversión, netas de impuestos"},{"$f":"'410000 - Est. Resultados ORI'!$D$26","v":"ifrs-full:GainsLossesOnExchangeDifferencesOnTranslationNetOfTax"}]
["/*",null,{"$f":"'410000 - Est. Resultados ORI'!$E$27","v":"Ajustes de reclasificación en diferencias de cambio de conversión, netos de impuestos"},{"$f":"'410000 - Est. Resultados ORI'!$D$27","v":"ifrs-full:ReclassificationAdjustmentsOnExchangeDifferencesOnTranslationNetOfTax"}]
["",null,{"$f":"'410000 - Est. Resultados ORI'!$E$28","v":"Otro resultado integral, neto de impuestos, diferencias de cambio por conversión"},{"$f":"'410000 - Est. Resultados ORI'!$D$28","v":"ifrs-full:OtherComprehensiveIncomeNetOfTaxExchangeDifferencesOnTranslation"},0,"peso",{"$f":"'410000 - Est. Resultados ORI'!$G$28","v":0},0,"http://www.xbrl.org/scheme/companyName",{"$f":"Periodos!$D$3","v":"2022-01-01"},{"$f":"Periodos!$D$4","v":"2022-12-31"}]
["/*",null,{"$f":"'410000 - Est. Resultados ORI'!$E$29","v":"Activos financieros disponibles para la venta [resumen]"},{"$f":"'410000 - Est. Resultados ORI'!$D$29","v":"ifrs-full:AvailableforsaleFinancialAssetsAbstract"}]
["/*",null,{"$f":"'410000 - Est. Resultados ORI'!$E$30","v":"Ganancias (pérdidas) por nuevas mediciones de activos financieros disponibles para la venta, netas de impuestos"},{"$f":"'410000 - Est. Resultados ORI'!$D$30","v":"ifrs-full:GainsLossesOnRemeasuringAvailableforsaleFinancialAssetsNetOfTax"}]
["/*",null,{"$f":"'410000 - Est. Resultados ORI'!$E$31","v":"Ajustes de reclasificación, activos financieros disponibles para la venta, netos de impuestos"},{"$f":"'410000 - Est. Resultados ORI'!$D$31","v":"ifrs-full:ReclassificationAdjustmentsOnAvailableforsaleFinancialAssetsNetOfTax"}]
["",null,{"$f":"'410000 - Est. Resultados ORI'!$E$32","v":"Otro resultado integral, neto de impuestos, activos financieros disponibles para la venta"},{"$f":"'410000 - Est. Resultados ORI'!$D$32","v":"ifrs-full:OtherComprehensiveIncomeNetOfTaxAvailableforsaleFinancialAssets"},0,"peso",{"$f":"'410000 - Est. Resultados ORI'!$G$32","v":0},0,"http://www.xbrl.org/scheme/companyName",{"$f":"Periodos!$D$3","v":"2022-01-01"},{"$f":"Periodos!$D$4","v":"2022-12-31"}]
["/*",null,{"$f":"'410000 - Est. Resultados ORI'!$E$33","v":"Coberturas del flujo de efectivo [resumen]"},{"$f":"'410000 - Est. Resultados ORI'!$D$33","v":"ifrs-full:CashFlowHedgesAbstract"}]
["/*",null,{"$f":"'410000 - Est. Resultados ORI'!$E$34","v":"Ganancias (pérdidas) por coberturas de flujos de efectivo, neto de impuestos"},{"$f":"'410000 - Est. Resultados ORI'!$D$34","v":"ifrs-full:GainsLossesOnCashFlowHedgesNetOfTax"}]
["/*",null,{"$f":"'410000 - Est. Resultados ORI'!$E$35","v":"Ajustes de reclasificación en coberturas de flujos de efectivo, netos de impuestos"},{"$f":"'410000 - Est. Resultados ORI'!$D$35","v":"ifrs-full:ReclassificationAdjustmentsOnCashFlowHedgesNetOfTax"}]
["/*",null,{"$f":"'410000 - Est. Resultados ORI'!$E$36","v":"Importes eliminados del patrimonio e incluidos en el importe en libros de activos (pasivos) no financieros que se hayan adquirido o incurrido mediante una transacción prevista altamente probable cubierta, neto de impuestos"},{"$f":"'410000 - Est. Resultados ORI'!$D$36","v":"ifrs-full:AdjustmentsForAmountsTransferredToInitialCarryingAmountOfHedgedItems"}]
["",null,{"$f":"'410000 - Est. Resultados ORI'!$E$37","v":"Otro resultado integral, neto de impuestos, coberturas del flujo de efectivo"},{"$f":"'410000 - Est. Resultados ORI'!$D$37","v":"ifrs-full:OtherComprehensiveIncomeNetOfTaxCashFlowHedges"},0,"peso",{"$f":"'410000 - Est. Resultados ORI'!$G$37","v":0},0,"http://www.xbrl.org/scheme/companyName",{"$f":"Periodos!$D$3","v":"2022-01-01"},{"$f":"Periodos!$D$4","v":"2022-12-31"}]
["/*",null,{"$f":"'410000 - Est. Resultados ORI'!$E$38","v":"Coberturas de inversiones netas en negocios en el extranjero [resumen]"},{"$f":"'410000 - Est. Resultados ORI'!$D$38","v":"ifrs-full:HedgesOfNetInvestmentsInForeignOperationsAbstract"}]
["/*",null,{"$f":"'410000 - Est. Resultados ORI'!$E$39","v":"Ganancias (pérdidas) por coberturas de inversiones netas en negocios en el extranjero, neto de impuestos"},{"$f":"'410000 - Est. Resultados ORI'!$D$39","v":"ifrs-full:GainsLossesOnHedgesOfNetInvestmentsInForeignOperationsNetOfTax"}]
["/*",null,{"$f":"'410000 - Est. Resultados ORI'!$E$40","v":"Ajustes de reclasificación por coberturas de inversiones netas en negocios en el extranjero, netos de impuestos"},{"$f":"'410000 - Est. Resultados ORI'!$D$40","v":"ifrs-full:ReclassificationAdjustmentsOnHedgesOfNetInvestmentsInForeignOperationsNetOfTax"}]
["",null,{"$f":"'410000 - Est. Resultados ORI'!$E$41","v":"Otro resultado integral, neto de impuestos, coberturas de inversiones netas en negocios en el extranjero"},{"$f":"'410000 - Est. Resultados ORI'!$D$41","v":"ifrs-full:OtherComprehensiveIncomeNetOfTaxHedgesOfNetInvestmentsInForeignOperations"},0,"peso",{"$f":"'410000 - Est. Resultados ORI'!$G$41","v":0},0,"http://www.xbrl.org/scheme/companyName",{"$f":"Periodos!$D$3","v":"2022-01-01"},{"$f":"Periodos!$D$4","v":"2022-12-31"}]
[{"$f":"IF(G7328=\"\",\"/*\",\"\")","v":"/*"},null,{"$f":"'410000 - Est. Resultados ORI'!$E$42","v":"Cambio en el valor temporal del dinero de opciones [resumen]"},{"$f":"'410000 - Est. Resultados ORI'!$D$42","v":"ifrs-full:ChangeInValueOfTimeValueOfOptionsAbstract"}]
["/*",null,{"$f":"'410000 - Est. Resultados ORI'!$E$43","v":"Ganancia (pérdida) por cambios en el valor temporal del dinero de opciones, neta de impuestos"},{"$f":"'410000 - Est. Resultados ORI'!$D$43","v":"ifrs-full:GainsLossesOnChangeInValueOfTimeValueOfOptionsNetOfTax"}]
["/*",null,{"$f":"'410000 - Est. Resultados ORI'!$E$44","v":"Ajustes de reclasificación por cambios en el valor temporal del dinero de opciones, netos de impuestos"},{"$f":"'410000 - Est. Resultados ORI'!$D$44","v":"ifrs-full:ReclassificationAdjustmentsOnChangeInValueOfTimeValueOfOptionsNetOfTax"}]
["",null,{"$f":"'410000 - Est. Resultados ORI'!$E$45","v":"Otro resultado integral, neto de impuestos, cambios en el valor del valor temporal del dinero de opciones"},{"$f":"'410000 - Est. Resultados ORI'!$D$45","v":"ifrs-full:OtherComprehensiveIncomeNetOfTaxChangeInValueOfTimeValueOfOptions"},0,"peso",{"$f":"'410000 - Est. Resultados ORI'!$G$45","v":0},0,"http://www.xbrl.org/scheme/companyName",{"$f":"Periodos!$D$3","v":"2022-01-01"},{"$f":"Periodos!$D$4","v":"2022-12-31"}]
["/*",null,{"$f":"'410000 - Est. Resultados ORI'!$E$46","v":"Cambios en el valor de los elementos a término de contratos a término [resumen]"},{"$f":"'410000 - Est. Resultados ORI'!$D$46","v":"ifrs-full:ChangeInValueOfForwardElementsOfForwardContractsAbstract"}]
["/*",null,{"$f":"'410000 - Est. Resultados ORI'!$E$47","v":"Ganancia (pérdida) por cambios en el valor de los elementos a término de contratos a término, neta de impuestos"},{"$f":"'410000 - Est. Resultados ORI'!$D$47","v":"ifrs-full:GainsLossesOnChangeInValueOfForwardElementsOfForwardContractsNetOfTax"}]
["/*",null,{"$f":"'410000 - Est. Resultados ORI'!$E$48","v":"Ajustes de reclasificación por cambios en el valor de los elementos a término de contratos a término, netos de impuestos"},{"$f":"'410000 - Est. Resultados ORI'!$D$48","v":"ifrs-full:ReclassificationAdjustmentsOnChangeInValueOfForwardElementsOfForwardContractsNetOfTax"}]
["",null,{"$f":"'410000 - Est. Resultados ORI'!$E$49","v":"Otro resultado integral, neto de impuestos, cambios en el valor de los elementos a término de contratos a término"},{"$f":"'410000 - Est. Resultados ORI'!$D$49","v":"ifrs-full:OtherComprehensiveIncomeNetOfTaxChangeInValueOfForwardElementsOfForwardContracts"},0,"peso",{"$f":"'410000 - Est. Resultados ORI'!$G$49","v":0},0,"http://www.xbrl.org/scheme/companyName",{"$f":"Periodos!$D$3","v":"2022-01-01"},{"$f":"Periodos!$D$4","v":"2022-12-31"}]
["/*",null,{"$f":"'410000 - Est. Resultados ORI'!$E$50","v":"Cambio en el valor de los diferenciales de tasa cambio de moneda extranjera [resumen]"},{"$f":"'410000 - Est. Resultados ORI'!$D$50","v":"ifrs-full:ChangeInValueOfForeignCurrencyBasisSpreadsAbstract"}]
["/*",null,{"$f":"'410000 - Est. Resultados ORI'!$E$51","v":"Ganancia (pérdida) por cambios en el valor de los diferenciales de la tasa de cambio de la moneda extranjera, neta de impuestos"},{"$f":"'410000 - Est. Resultados ORI'!$D$51","v":"ifrs-full:GainsLossesOnChangeInValueOfForeignCurrencyBasisSpreadsNetOfTax"}]
["/*",null,{"$f":"'410000 - Est. Resultados ORI'!$E$52","v":"Ajustes de reclasificación por cambios en el valor de los diferenciales de la tasa de cambio de la moneda extranjera, netos de impuestos"},{"$f":"'410000 - Est. Resultados ORI'!$D$52","v":"ifrs-full:ReclassificationAdjustmentsOnChangeInValueOfForeignCurrencyBasisSpreadsNetOfTax"}]
["",null,{"$f":"'410000 - Est. Resultados ORI'!$E$53","v":"Otro resultado integral, neto de impuestos, cambios en el valor de los diferenciales de tasa de cambio de la moneda extranjera"},{"$f":"'410000 - Est. Resultados ORI'!$D$53","v":"ifrs-full:OtherComprehensiveIncomeNetOfTaxChangeInValueOfForeignCurrencyBasisSpreads"},0,"peso",{"$f":"'410000 - Est. Resultados ORI'!$G$53","v":0},0,"http://www.xbrl.org/scheme/companyName",{"$f":"Periodos!$D$3","v":"2022-01-01"},{"$f":"Periodos!$D$4","v":"2022-12-31"}]
["/*",null,{"$f":"'410000 - Est. Resultados ORI'!$E$54","v":"Participación de otro resultado integral de asociadas y negocios conjuntos contabilizados utilizando el método de la participación que se reclasificará al resultado del periodo, neto de impuestos"},{"$f":"'410000 - Est. Resultados ORI'!$D$54","v":"ifrs-full:ShareOfOtherComprehensiveIncomeOfAssociatesAndJointVenturesAccountedForUsingEquityMethodThatWillBeReclassifiedToProfitOrLossNetOfTax"}]
["",null,{"$f":"'410000 - Est. Resultados ORI'!$E$55","v":"Total otro resultado integral que se reclasificará al resultado del periodo, neto de impuestos"},{"$f":"'410000 - Est. Resultados ORI'!$D$55","v":"ifrs-full:OtherComprehensiveIncomeThatWillBeReclassifiedToProfitOrLossNetOfTax"},0,"peso",{"$f":"'410000 - Est. Resultados ORI'!$G$55","v":0},0,"http://www.xbrl.org/scheme/companyName",{"$f":"Periodos!$D$3","v":"2022-01-01"},{"$f":"Periodos!$D$4","v":"2022-12-31"}]
["",null,{"$f":"'410000 - Est. Resultados ORI'!$E$56","v":"Total otro resultado integral"},{"$f":"'410000 - Est. Resultados ORI'!$D$56","v":"ifrs-full:OtherComprehensiveIncome"},0,"peso",{"$f":"'410000 - Est. Resultados ORI'!$G$56","v":0},0,"http://www.xbrl.org/scheme/companyName",{"$f":"Periodos!$D$3","v":"2022-01-01"},{"$f":"Periodos!$D$4","v":"2022-12-31"}]
["",null,{"$f":"'410000 - Est. Resultados ORI'!$E$57","v":"Resultado integral total"},{"$f":"'410000 - Est. Resultados ORI'!$D$57","v":"ifrs-full:ComprehensiveIncome"},0,"peso",{"$f":"'410000 - Est. Resultados ORI'!$G$57","v":0},0,"http://www.xbrl.org/scheme/companyName",{"$f":"Periodos!$D$3","v":"2022-01-01"},{"$f":"Periodos!$D$4","v":"2022-12-31"}]
["/*"]
["/*",null,"520000 - Est. Flujos de Efec."]
["/*",null,"--01--"]
["/*",null,{"$f":"'520000 - Est. Flujos de Efec.'!$E$14","v":"Estado de flujos de efectivo [resumen]"},{"$f":"'520000 - Est. Flujos de Efec.'!$D$14","v":"ifrs-full:StatementOfCashFlowsAbstract"}]
["/*",null,{"$f":"'520000 - Est. Flujos de Efec.'!$E$15","v":"Flujos de efectivo procedentes de (utilizados en) actividades de operación [resumen]"},{"$f":"'520000 - Est. Flujos de Efec.'!$D$15","v":"ifrs-full:CashFlowsFromUsedInOperatingActivitiesAbstract"}]
["/*",null,{"$f":"'520000 - Est. Flujos de Efec.'!$E$16","v":"Ganancia (pérdida)"},{"$f":"'520000 - Est. Flujos de Efec.'!$D$16","v":"ifrs-full:ProfitLoss"}]
["/*",null,{"$f":"'520000 - Est. Flujos de Efec.'!$E$17","v":"Ajustes para conciliar la ganancia (pérdida) [resumen]"},{"$f":"'520000 - Est. Flujos de Efec.'!$D$17","v":"ifrs-full:AdjustmentsForReconcileProfitLossAbstract"}]
["/*",null,{"$f":"'520000 - Est. Flujos de Efec.'!$E$18","v":"Ajustes por gasto por impuestos a las ganancias"},{"$f":"'520000 - Est. Flujos de Efec.'!$D$18","v":"ifrs-full:AdjustmentsForIncomeTaxExpense"}]
["/*",null,{"$f":"'520000 - Est. Flujos de Efec.'!$E$19","v":"Ajustes por costos financieros"},{"$f":"'520000 - Est. Flujos de Efec.'!$D$19","v":"ifrs-full:AdjustmentsForFinanceCosts"}]
["/*",null,{"$f":"'520000 - Est. Flujos de Efec.'!$E$20","v":"Ajustes por disminuciones (incrementos) en los inventarios"},{"$f":"'520000 - Est. Flujos de Efec.'!$D$20","v":"ifrs-full:AdjustmentsForDecreaseIncreaseInInventories"}]
["/*",null,{"$f":"'520000 - Est. Flujos de Efec.'!$E$21","v":"Ajustes por la disminución (incremento) de cuentas por cobrar de origen comercial"},{"$f":"'520000 - Est. Flujos de Efec.'!$D$21","v":"ifrs-full:AdjustmentsForDecreaseIncreaseInTradeAccountReceivable"}]
["/*",null,{"$f":"'520000 - Est. Flujos de Efec.'!$E$22","v":"Ajustes por disminuciones (incrementos) en otras cuentas por cobrar derivadas de las actividades de operación"},{"$f":"'520000 - Est. Flujos de Efec.'!$D$22","v":"ifrs-full:AdjustmentsForDecreaseIncreaseInOtherOperatingReceivables"}]
["/*",null,{"$f":"'520000 - Est. Flujos de Efec.'!$E$23","v":"Ajustes por el incremento (disminución) de cuentas por pagar de origen comercial"},{"$f":"'520000 - Est. Flujos de Efec.'!$D$23","v":"ifrs-full:AdjustmentsForIncreaseDecreaseInTradeAccountPayable"}]
["/*",null,{"$f":"'520000 - Est. Flujos de Efec.'!$E$24","v":"Ajustes por incrementos (disminuciones) en otras cuentas por pagar derivadas de las actividades de operación"},{"$f":"'520000 - Est. Flujos de Efec.'!$D$24","v":"ifrs-full:AdjustmentsForIncreaseDecreaseInOtherOperatingPayables"}]
["/*",null,{"$f":"'520000 - Est. Flujos de Efec.'!$E$25","v":"Ajustes por gastos de depreciación y amortización"},{"$f":"'520000 - Est. Flujos de Efec.'!$D$25","v":"ifrs-full:AdjustmentsForDepreciationAndAmortisationExpense"}]
["/*",null,{"$f":"'520000 - Est. Flujos de Efec.'!$E$26","v":"Ajustes por deterioro de valor (reversiones de pérdidas por deterioro de valor) reconocidas en el resultado del periodo"},{"$f":"'520000 - Est. Flujos de Efec.'!$D$26","v":"ifrs-full:AdjustmentsForImpairmentLossReversalOfImpairmentLossRecognisedInProfitOrLoss"}]
["/*",null,{"$f":"'520000 - Est. Flujos de Efec.'!$E$27","v":"Ajustes por provisiones"},{"$f":"'520000 - Est. Flujos de Efec.'!$D$27","v":"ifrs-full:AdjustmentsForProvisions"}]
["/*",null,{"$f":"'520000 - Est. Flujos de Efec.'!$E$28","v":"Ajustes por pérdidas (ganancias) de moneda extranjera no realizadas"},{"$f":"'520000 - Est. Flujos de Efec.'!$D$28","v":"ifrs-full:AdjustmentsForUnrealisedForeignExchangeLossesGains"}]
["/*",null,{"$f":"'520000 - Est. Flujos de Efec.'!$E$29","v":"Ajustes por pagos basados en acciones"},{"$f":"'520000 - Est. Flujos de Efec.'!$D$29","v":"ifrs-full:AdjustmentsForSharebasedPayments"}]
["/*",null,{"$f":"'520000 - Est. Flujos de Efec.'!$E$30","v":"Ajustes por pérdidas (ganancias) del valor razonable"},{"$f":"'520000 - Est. Flujos de Efec.'!$D$30","v":"ifrs-full:AdjustmentsForFairValueGainsLosses"}]
["/*",null,{"$f":"'520000 - Est. Flujos de Efec.'!$E$31","v":"Ajustes por ganancias no distribuidas de asociadas"},{"$f":"'520000 - Est. Flujos de Efec.'!$D$31","v":"ifrs-full:AdjustmentsForUndistributedProfitsOfAssociates"}]
["/*",null,{"$f":"'520000 - Est. Flujos de Efec.'!$E$32","v":"Otros ajustes por partidas distintas al efectivo"},{"$f":"'520000 - Est. Flujos de Efec.'!$D$32","v":"ifrs-full:OtherAdjustmentsForNoncashItems"}]
["/*",null,{"$f":"'520000 - Est. Flujos de Efec.'!$E$33","v":"Ajustes por pérdidas (ganancias) por la disposición de activos no corrientes"},{"$f":"'520000 - Est. Flujos de Efec.'!$D$33","v":"ifrs-full:AdjustmentsForLossesGainsOnDisposalOfNoncurrentAssets"}]
["/*",null,{"$f":"'520000 - Est. Flujos de Efec.'!$E$34","v":"Otros ajustes para los que los efectos sobre el efectivo son flujos de efectivo de inversión o financiación"},{"$f":"'520000 - Est. Flujos de Efec.'!$D$34","v":"ifrs-full:OtherAdjustmentsForWhichCashEffectsAreInvestingOrFinancingCashFlow"}]
["/*",null,{"$f":"'520000 - Est. Flujos de Efec.'!$E$35","v":"Otros ajustes para conciliar la ganancia (pérdida)"},{"$f":"'520000 - Est. Flujos de Efec.'!$D$35","v":"ifrs-full:OtherAdjustmentsToReconcileProfitLoss"}]
["",null,{"$f":"'520000 - Est. Flujos de Efec.'!$E$36","v":"Total ajustes para conciliar la ganancia (pérdida)"},{"$f":"'520000 - Est. Flujos de Efec.'!$D$36","v":"ifrs-full:AdjustmentsForReconcileProfitLoss"},0,"peso",{"$f":"'520000 - Est. Flujos de Efec.'!$F$36","v":0},0,"http://www.xbrl.org/scheme/companyName",{"$f":"Periodos!$C$3","v":"2023-01-01"},{"$f":"Periodos!$C$4","v":"2023-12-31"}]
["",null,{"$f":"'520000 - Est. Flujos de Efec.'!$E$37","v":"Flujos de efectivo netos procedentes (utilizados en) operaciones"},{"$f":"'520000 - Est. Flujos de Efec.'!$D$37","v":"ifrs-full:CashFlowsFromUsedInOperations"},0,"peso",{"$f":"'520000 - Est. Flujos de Efec.'!$F$37","v":0},0,"http://www.xbrl.org/scheme/companyName",{"$f":"Periodos!$C$3","v":"2023-01-01"},{"$f":"Periodos!$C$4","v":"2023-12-31"}]
["/*",null,{"$f":"'520000 - Est. Flujos de Efec.'!$E$38","v":"Dividendos pagados"},{"$f":"'520000 - Est. Flujos de Efec.'!$D$38","v":"ifrs-full:DividendsPaidClassifiedAsOperatingActivities"}]
["/*",null,{"$f":"'520000 - Est. Flujos de Efec.'!$E$39","v":"Dividendos recibidos"},{"$f":"'520000 - Est. Flujos de Efec.'!$D$39","v":"ifrs-full:DividendsReceivedClassifiedAsOperatingActivities"}]
["/*",null,{"$f":"'520000 - Est. Flujos de Efec.'!$E$40","v":"Intereses pagados"},{"$f":"'520000 - Est. Flujos de Efec.'!$D$40","v":"ifrs-full:InterestPaidClassifiedAsOperatingActivities"}]
["/*",null,{"$f":"'520000 - Est. Flujos de Efec.'!$E$41","v":"Intereses recibidos"},{"$f":"'520000 - Est. Flujos de Efec.'!$D$41","v":"ifrs-full:InterestReceivedClassifiedAsOperatingActivities"}]
["/*",null,{"$f":"'520000 - Est. Flujos de Efec.'!$E$42","v":"Impuestos a las ganancias reembolsados (pagados)"},{"$f":"'520000 - Est. Flujos de Efec.'!$D$42","v":"ifrs-full:IncomeTaxesPaidRefundClassifiedAsOperatingActivities"}]
["/*",null,{"$f":"'520000 - Est. Flujos de Efec.'!$E$43","v":"Otras entradas (salidas) de efectivo"},{"$f":"'520000 - Est. Flujos de Efec.'!$D$43","v":"ifrs-full:OtherInflowsOutflowsOfCashClassifiedAsOperatingActivities"}]
["",null,{"$f":"'520000 - Est. Flujos de Efec.'!$E$44","v":"Flujos de efectivo netos procedentes de (utilizados en) actividades de operación"},{"$f":"'520000 - Est. Flujos de Efec.'!$D$44","v":"ifrs-full:CashFlowsFromUsedInOperatingActivities"},0,"peso",{"$f":"'520000 - Est. Flujos de Efec.'!$F$44","v":0},0,"http://www.xbrl.org/scheme/companyName",{"$f":"Periodos!$C$3","v":"2023-01-01"},{"$f":"Periodos!$C$4","v":"2023-12-31"}]
["/*",null,{"$f":"'520000 - Est. Flujos de Efec.'!$E$45","v":"Flujos de efectivo procedentes de (utilizados en) actividades de inversión [resumen]"},{"$f":"'520000 - Est. Flujos de Efec.'!$D$45","v":"ifrs-full:CashFlowsFromUsedInInvestingActivitiesAbstract"}]
["/*",null,{"$f":"'520000 - Est. Flujos de Efec.'!$E$46","v":"Flujos de efectivo procedentes de la pérdida de control de subsidiarias u otros negocios"},{"$f":"'520000 - Est. Flujos de Efec.'!$D$46","v":"ifrs-full:CashFlowsFromLosingControlOfSubsidiariesOrOtherBusinessesClassifiedAsInvestingActivities"}]
["/*",null,{"$f":"'520000 - Est. Flujos de Efec.'!$E$47","v":"Flujos de efectivo utilizados para obtener el control de subsidiarias u otros negocios"},{"$f":"'520000 - Est. Flujos de Efec.'!$D$47","v":"ifrs-full:CashFlowsUsedInObtainingControlOfSubsidiariesOrOtherBusinessesClassifiedAsInvestingActivities"}]
["/*",null,{"$f":"'520000 - Est. Flujos de Efec.'!$E$48","v":"Otros cobros por la venta de patrimonio o instrumentos de deuda de otras entidades"},{"$f":"'520000 - Est. Flujos de Efec.'!$D$48","v":"ifrs-full:OtherCashReceiptsFromSalesOfEquityOrDebtInstrumentsOfOtherEntitiesClassifiedAsInvestingActivities"}]
["/*",null,{"$f":"'520000 - Est. Flujos de Efec.'!$E$49","v":"Otros pagos para adquirir patrimonio o instrumentos de deuda de otras entidades"},{"$f":"'520000 - Est. Flujos de Efec.'!$D$49","v":"ifrs-full:OtherCashPaymentsToAcquireEquityOrDebtInstrumentsOfOtherEntitiesClassifiedAsInvestingActivities"}]
["/*",null,{"$f":"'520000 - Est. Flujos de Efec.'!$E$50","v":"Otros cobros por la venta de participaciones en negocios conjuntos"},{"$f":"'520000 - Est. Flujos de Efec.'!$D$50","v":"ifrs-full:OtherCashReceiptsFromSalesOfInterestsInJointVenturesClassifiedAsInvestingActivities"}]
["/*",null,{"$f":"'520000 - Est. Flujos de Efec.'!$E$51","v":"Otros pagos para adquirir participaciones en negocios conjuntos"},{"$f":"'520000 - Est. Flujos de Efec.'!$D$51","v":"ifrs-full:OtherCashPaymentsToAcquireInterestsInJointVenturesClassifiedAsInvestingActivities"}]
["/*",null,{"$f":"'520000 - Est. Flujos de Efec.'!$E$52","v":"Importes procedentes de la venta de propiedades, planta y equipo"},{"$f":"'520000 - Est. Flujos de Efec.'!$D$52","v":"ifrs-full:ProceedsFromSalesOfPropertyPlantAndEquipmentClassifiedAsInvestingActivities"}]
["/*",null,{"$f":"'520000 - Est. Flujos de Efec.'!$E$53","v":"Compras de propiedades, planta y equipo"},{"$f":"'520000 - Est. Flujos de Efec.'!$D$53","v":"ifrs-full:PurchaseOfPropertyPlantAndEquipmentClassifiedAsInvestingActivities"}]
["/*",null,{"$f":"'520000 - Est. Flujos de Efec.'!$E$54","v":"Importes procedentes de ventas de activos intangibles"},{"$f":"'520000 - Est. Flujos de Efec.'!$D$54","v":"ifrs-full:ProceedsFromSalesOfIntangibleAssetsClassifiedAsInvestingActivities"}]
["/*",null,{"$f":"'520000 - Est. Flujos de Efec.'!$E$55","v":"Compras de activos intangibles"},{"$f":"'520000 - Est. Flujos de Efec.'!$D$55","v":"ifrs-full:PurchaseOfIntangibleAssetsClassifiedAsInvestingActivities"}]
["/*",null,{"$f":"'520000 - Est. Flujos de Efec.'!$E$56","v":"Recursos por ventas de otros activos a largo plazo"},{"$f":"'520000 - Est. Flujos de Efec.'!$D$56","v":"ifrs-full:ProceedsFromOtherLongtermAssetsClassifiedAsInvestingActivities"}]
["/*",null,{"$f":"'520000 - Est. Flujos de Efec.'!$E$57","v":"Compras de otros activos a largo plazo"},{"$f":"'520000 - Est. Flujos de Efec.'!$D$57","v":"ifrs-full:PurchaseOfOtherLongtermAssetsClassifiedAsInvestingActivities"}]
["/*",null,{"$f":"'520000 - Est. Flujos de Efec.'!$E$58","v":"Importes procedentes de subvenciones del gobierno"},{"$f":"'520000 - Est. Flujos de Efec.'!$D$58","v":"ifrs-full:ProceedsFromGovernmentGrantsClassifiedAsInvestingActivities"}]
[{"$f":"IF(G7392=\"\",\"/*\",\"\")","v":"/*"},null,{"$f":"'520000 - Est. Flujos de Efec.'!$E$59","v":"Anticipos de efectivo y préstamos concedidos a terceros"},{"$f":"'520000 - Est. Flujos de Efec.'!$D$59","v":"ifrs-full:CashAdvancesAndLoansMadeToOtherPartiesClassifiedAsInvestingActivities"}]
["/*",null,{"$f":"'520000 - Est. Flujos de Efec.'!$E$60","v":"Cobros procedentes del reembolso de anticipos y préstamos concedidos a terceros"},{"$f":"'520000 - Est. Flujos de Efec.'!$D$60","v":"ifrs-full:CashReceiptsFromRepaymentOfAdvancesAndLoansMadeToOtherPartiesClassifiedAsInvestingActivities"}]
["/*",null,{"$f":"'520000 - Est. Flujos de Efec.'!$E$61","v":"Pagos en efectivo por contratos de futuros, contratos a término, contratos de opciones y contratos de permuta financiera"},{"$f":"'520000 - Est. Flujos de Efec.'!$D$61","v":"ifrs-full:CashPaymentsForFutureContractsForwardContractsOptionContractsAndSwapContractsClassifiedAsInvestingActivities"}]
["/*",null,{"$f":"'520000 - Est. Flujos de Efec.'!$E$62","v":"Cobros en efectivo por contratos de futuros, contratos a término, contratos de opciones y contratos de permuta financiera"},{"$f":"'520000 - Est. Flujos de Efec.'!$D$62","v":"ifrs-full:CashReceiptsFromFutureContractsForwardContractsOptionContractsAndSwapContractsClassifiedAsInvestingActivities"}]
["/*",null,{"$f":"'520000 - Est. Flujos de Efec.'!$E$63","v":"Dividendos recibidos"},{"$f":"'520000 - Est. Flujos de Efec.'!$D$63","v":"ifrs-full:DividendsReceivedClassifiedAsInvestingActivities"}]
["/*",null,{"$f":"'520000 - Est. Flujos de Efec.'!$E$64","v":"Intereses pagados"},{"$f":"'520000 - Est. Flujos de Efec.'!$D$64","v":"ifrs-full:InterestPaidClassifiedAsInvestingActivities"}]
["/*",null,{"$f":"'520000 - Est. Flujos de Efec.'!$E$65","v":"Intereses recibidos"},{"$f":"'520000 - Est. Flujos de Efec.'!$D$65","v":"ifrs-full:InterestReceivedClassifiedAsInvestingActivities"}]
["/*",null,{"$f":"'520000 - Est. Flujos de Efec.'!$E$66","v":"Impuestos a las ganancias reembolsados (pagados)"},{"$f":"'520000 - Est. Flujos de Efec.'!$D$66","v":"ifrs-full:IncomeTaxesPaidRefundClassifiedAsInvestingActivities"}]
["/*",null,{"$f":"'520000 - Est. Flujos de Efec.'!$E$67","v":"Otras entradas (salidas) de efectivo"},{"$f":"'520000 - Est. Flujos de Efec.'!$D$67","v":"ifrs-full:OtherInflowsOutflowsOfCashClassifiedAsInvestingActivities"}]
["",null,{"$f":"'520000 - Est. Flujos de Efec.'!$E$68","v":"Flujos de efectivo netos procedentes de (utilizados en) actividades de inversión"},{"$f":"'520000 - Est. Flujos de Efec.'!$D$68","v":"ifrs-full:CashFlowsFromUsedInInvestingActivities"},0,"peso",{"$f":"'520000 - Est. Flujos de Efec.'!$F$68","v":0},0,"http://www.xbrl.org/scheme/companyName",{"$f":"Periodos!$C$3","v":"2023-01-01"},{"$f":"Periodos!$C$4","v":"2023-12-31"}]
["/*",null,{"$f":"'520000 - Est. Flujos de Efec.'!$E$69","v":"Flujos de efectivo procedentes de (utilizados en) actividades de financiación [resumen]"},{"$f":"'520000 - Est. Flujos de Efec.'!$D$69","v":"ifrs-full:CashFlowsFromUsedInFinancingActivitiesAbstract"}]
["/*",null,{"$f":"'520000 - Est. Flujos de Efec.'!$E$70","v":"Recursos por cambios en las participaciones en la propiedad en subsidiarias que no dan lugar a la pérdida de control"},{"$f":"'520000 - Est. Flujos de Efec.'!$D$70","v":"ifrs-full:ProceedsFromChangesInOwnershipInterestsInSubsidiaries"}]
["/*",null,{"$f":"'520000 - Est. Flujos de Efec.'!$E$71","v":"Pagos por cambios en las participaciones en la propiedad en subsidiarias que no dan lugar a la pérdida de control"},{"$f":"'520000 - Est. Flujos de Efec.'!$D$71","v":"ifrs-full:PaymentsFromChangesInOwnershipInterestsInSubsidiaries"}]
["/*",null,{"$f":"'520000 - Est. Flujos de Efec.'!$E$72","v":"Importes procedentes de la emisión de acciones"},{"$f":"'520000 - Est. Flujos de Efec.'!$D$72","v":"ifrs-full:ProceedsFromIssuingShares"}]
["/*",null,{"$f":"'520000 - Est. Flujos de Efec.'!$E$73","v":"Importes procedentes de la emisión de otros instrumentos de patrimonio"},{"$f":"'520000 - Est. Flujos de Efec.'!$D$73","v":"ifrs-full:ProceedsFromIssuingOtherEquityInstruments"}]
["/*",null,{"$f":"'520000 - Est. Flujos de Efec.'!$E$74","v":"Pagos por adquirir o rescatar las acciones de la entidad"},{"$f":"'520000 - Est. Flujos de Efec.'!$D$74","v":"ifrs-full:PaymentsToAcquireOrRedeemEntitysShares"}]
["/*",null,{"$f":"'520000 - Est. Flujos de Efec.'!$E$75","v":"Pagos por otras participaciones en el patrimonio"},{"$f":"'520000 - Est. Flujos de Efec.'!$D$75","v":"ifrs-full:PaymentsOfOtherEquityInstruments"}]
["/*",null,{"$f":"'520000 - Est. Flujos de Efec.'!$E$76","v":"Importes procedentes de préstamos"},{"$f":"'520000 - Est. Flujos de Efec.'!$D$76","v":"ifrs-full:ProceedsFromBorrowingsClassifiedAsFinancingActivities"}]
["/*",null,{"$f":"'520000 - Est. Flujos de Efec.'!$E$77","v":"Reembolsos de préstamos"},{"$f":"'520000 - Est. Flujos de Efec.'!$D$77","v":"ifrs-full:RepaymentsOfBorrowingsClassifiedAsFinancingActivities"}]
["/*",null,{"$f":"'520000 - Est. Flujos de Efec.'!$E$78","v":"Pagos de pasivos por arrendamiento"},{"$f":"'520000 - Est. Flujos de Efec.'!$D$78","v":"ifrs-full:PaymentsOfLeaseLiabilitiesClassifiedAsFinancingActivities"}]
["/*",null,{"$f":"'520000 - Est. Flujos de Efec.'!$E$79","v":"Importes procedentes de subvenciones del gobierno"},{"$f":"'520000 - Est. Flujos de Efec.'!$D$79","v":"ifrs-full:ProceedsFromGovernmentGrantsClassifiedAsFinancingActivities"}]
["/*",null,{"$f":"'520000 - Est. Flujos de Efec.'!$E$80","v":"Dividendos pagados"},{"$f":"'520000 - Est. Flujos de Efec.'!$D$80","v":"ifrs-full:DividendsPaidClassifiedAsFinancingActivities"}]
["/*",null,{"$f":"'520000 - Est. Flujos de Efec.'!$E$81","v":"Intereses pagados"},{"$f":"'520000 - Est. Flujos de Efec.'!$D$81","v":"ifrs-full:InterestPaidClassifiedAsFinancingActivities"}]
["/*",null,{"$f":"'520000 - Est. Flujos de Efec.'!$E$82","v":"Impuestos a las ganancias reembolsados (pagados)"},{"$f":"'520000 - Est. Flujos de Efec.'!$D$82","v":"ifrs-full:IncomeTaxesPaidRefundClassifiedAsFinancingActivities"}]
["/*",null,{"$f":"'520000 - Est. Flujos de Efec.'!$E$83","v":"Otras entradas (salidas) de efectivo"},{"$f":"'520000 - Est. Flujos de Efec.'!$D$83","v":"ifrs-full:OtherInflowsOutflowsOfCashClassifiedAsFinancingActivities"}]
["",null,{"$f":"'520000 - Est. Flujos de Efec.'!$E$84","v":"Flujos de efectivo netos procedentes de (utilizados en) actividades de financiación"},{"$f":"'520000 - Est. Flujos de Efec.'!$D$84","v":"ifrs-full:CashFlowsFromUsedInFinancingActivities"},0,"peso",{"$f":"'520000 - Est. Flujos de Efec.'!$F$84","v":0},0,"http://www.xbrl.org/scheme/companyName",{"$f":"Periodos!$C$3","v":"2023-01-01"},{"$f":"Periodos!$C$4","v":"2023-12-31"}]
["",null,{"$f":"'520000 - Est. Flujos de Efec.'!$E$85","v":"Incremento (disminución) neto de efectivo y equivalentes al efectivo, antes del efecto de los cambios en la tasa de cambio"},{"$f":"'520000 - Est. Flujos de Efec.'!$D$85","v":"ifrs-full:IncreaseDecreaseInCashAndCashEquivalentsBeforeEffectOfExchangeRateChanges"},0,"peso",{"$f":"'520000 - Est. Flujos de Efec.'!$F$85","v":0},0,"http://www.xbrl.org/scheme/companyName",{"$f":"Periodos!$C$3","v":"2023-01-01"},{"$f":"Periodos!$C$4","v":"2023-12-31"}]
["/*",null,{"$f":"'520000 - Est. Flujos de Efec.'!$E$86","v":"Efectos de la variación en la tasa de cambio sobre el efectivo y equivalentes al efectivo [resumen]"},{"$f":"'520000 - Est. Flujos de Efec.'!$D$86","v":"ifrs-full:EffectOfExchangeRateChangesOnCashAndCashEquivalentsAbstract"}]
["/*",null,{"$f":"'520000 - Est. Flujos de Efec.'!$E$87","v":"Efectos de la variación en la tasa de cambio sobre el efectivo y equivalentes al efectivo"},{"$f":"'520000 - Est. Flujos de Efec.'!$D$87","v":"ifrs-full:EffectOfExchangeRateChangesOnCashAndCashEquivalents"}]
["",null,{"$f":"'520000 - Est. Flujos de Efec.'!$E$88","v":"Incremento (disminución) neto de efectivo y equivalentes al efectivo"},{"$f":"'520000 - Est. Flujos de Efec.'!$D$88","v":"ifrs-full:IncreaseDecreaseInCashAndCashEquivalents"},0,"peso",{"$f":"'520000 - Est. Flujos de Efec.'!$F$88","v":0},0,"http://www.xbrl.org/scheme/companyName",{"$f":"Periodos!$C$3","v":"2023-01-01"},{"$f":"Periodos!$C$4","v":"2023-12-31"}]
["/*",null,{"$f":"'520000 - Est. Flujos de Efec.'!$E$89","v":"Efectivo y equivalentes al efectivo al principio del periodo"},{"$f":"'520000 - Est. Flujos de Efec.'!$D$89","v":"ifrs-full:CashAndCashEquivalents"}]
["/*",null,{"$f":"'520000 - Est. Flujos de Efec.'!$E$90","v":"Efectivo y equivalentes al efectivo al final del periodo"},{"$f":"'520000 - Est. Flujos de Efec.'!$D$90","v":"ifrs-full:CashAndCashEquivalents"}]
["/*",null,"--02--"]
["/*",null,{"$f":"'520000 - Est. Flujos de Efec.'!$E$14","v":"Estado de flujos de efectivo [resumen]"},{"$f":"'520000 - Est. Flujos de Efec.'!$D$14","v":"ifrs-full:StatementOfCashFlowsAbstract"}]
["/*",null,{"$f":"'520000 - Est. Flujos de Efec.'!$E$15","v":"Flujos de efectivo procedentes de (utilizados en) actividades de operación [resumen]"},{"$f":"'520000 - Est. Flujos de Efec.'!$D$15","v":"ifrs-full:CashFlowsFromUsedInOperatingActivitiesAbstract"}]
["/*",null,{"$f":"'520000 - Est. Flujos de Efec.'!$E$16","v":"Ganancia (pérdida)"},{"$f":"'520000 - Est. Flujos de Efec.'!$D$16","v":"ifrs-full:ProfitLoss"}]
["/*",null,{"$f":"'520000 - Est. Flujos de Efec.'!$E$17","v":"Ajustes para conciliar la ganancia (pérdida) [resumen]"},{"$f":"'520000 - Est. Flujos de Efec.'!$D$17","v":"ifrs-full:AdjustmentsForReconcileProfitLossAbstract"}]
["/*",null,{"$f":"'520000 - Est. Flujos de Efec.'!$E$18","v":"Ajustes por gasto por impuestos a las ganancias"},{"$f":"'520000 - Est. Flujos de Efec.'!$D$18","v":"ifrs-full:AdjustmentsForIncomeTaxExpense"}]
["/*",null,{"$f":"'520000 - Est. Flujos de Efec.'!$E$19","v":"Ajustes por costos financieros"},{"$f":"'520000 - Est. Flujos de Efec.'!$D$19","v":"ifrs-full:AdjustmentsForFinanceCosts"}]
["/*",null,{"$f":"'520000 - Est. Flujos de Efec.'!$E$20","v":"Ajustes por disminuciones (incrementos) en los inventarios"},{"$f":"'520000 - Est. Flujos de Efec.'!$D$20","v":"ifrs-full:AdjustmentsForDecreaseIncreaseInInventories"}]
["/*",null,{"$f":"'520000 - Est. Flujos de Efec.'!$E$21","v":"Ajustes por la disminución (incremento) de cuentas por cobrar de origen comercial"},{"$f":"'520000 - Est. Flujos de Efec.'!$D$21","v":"ifrs-full:AdjustmentsForDecreaseIncreaseInTradeAccountReceivable"}]
["/*",null,{"$f":"'520000 - Est. Flujos de Efec.'!$E$22","v":"Ajustes por disminuciones (incrementos) en otras cuentas por cobrar derivadas de las actividades de operación"},{"$f":"'520000 - Est. Flujos de Efec.'!$D$22","v":"ifrs-full:AdjustmentsForDecreaseIncreaseInOtherOperatingReceivables"}]
["/*",null,{"$f":"'520000 - Est. Flujos de Efec.'!$E$23","v":"Ajustes por el incremento (disminución) de cuentas por pagar de origen comercial"},{"$f":"'520000 - Est. Flujos de Efec.'!$D$23","v":"ifrs-full:AdjustmentsForIncreaseDecreaseInTradeAccountPayable"}]
["/*",null,{"$f":"'520000 - Est. Flujos de Efec.'!$E$24","v":"Ajustes por incrementos (disminuciones) en otras cuentas por pagar derivadas de las actividades de operación"},{"$f":"'520000 - Est. Flujos de Efec.'!$D$24","v":"ifrs-full:AdjustmentsForIncreaseDecreaseInOtherOperatingPayables"}]
["/*",null,{"$f":"'520000 - Est. Flujos de Efec.'!$E$25","v":"Ajustes por gastos de depreciación y amortización"},{"$f":"'520000 - Est. Flujos de Efec.'!$D$25","v":"ifrs-full:AdjustmentsForDepreciationAndAmortisationExpense"}]
["/*",null,{"$f":"'520000 - Est. Flujos de Efec.'!$E$26","v":"Ajustes por deterioro de valor (reversiones de pérdidas por deterioro de valor) reconocidas en el resultado del periodo"},{"$f":"'520000 - Est. Flujos de Efec.'!$D$26","v":"ifrs-full:AdjustmentsForImpairmentLossReversalOfImpairmentLossRecognisedInProfitOrLoss"}]
["/*",null,{"$f":"'520000 - Est. Flujos de Efec.'!$E$27","v":"Ajustes por provisiones"},{"$f":"'520000 - Est. Flujos de Efec.'!$D$27","v":"ifrs-full:AdjustmentsForProvisions"}]
["/*",null,{"$f":"'520000 - Est. Flujos de Efec.'!$E$28","v":"Ajustes por pérdidas (ganancias) de moneda extranjera no realizadas"},{"$f":"'520000 - Est. Flujos de Efec.'!$D$28","v":"ifrs-full:AdjustmentsForUnrealisedForeignExchangeLossesGains"}]
["/*",null,{"$f":"'520000 - Est. Flujos de Efec.'!$E$29","v":"Ajustes por pagos basados en acciones"},{"$f":"'520000 - Est. Flujos de Efec.'!$D$29","v":"ifrs-full:AdjustmentsForSharebasedPayments"}]
["/*",null,{"$f":"'520000 - Est. Flujos de Efec.'!$E$30","v":"Ajustes por pérdidas (ganancias) del valor razonable"},{"$f":"'520000 - Est. Flujos de Efec.'!$D$30","v":"ifrs-full:AdjustmentsForFairValueGainsLosses"}]
["/*",null,{"$f":"'520000 - Est. Flujos de Efec.'!$E$31","v":"Ajustes por ganancias no distribuidas de asociadas"},{"$f":"'520000 - Est. Flujos de Efec.'!$D$31","v":"ifrs-full:AdjustmentsForUndistributedProfitsOfAssociates"}]
["/*",null,{"$f":"'520000 - Est. Flujos de Efec.'!$E$32","v":"Otros ajustes por partidas distintas al efectivo"},{"$f":"'520000 - Est. Flujos de Efec.'!$D$32","v":"ifrs-full:OtherAdjustmentsForNoncashItems"}]
["/*",null,{"$f":"'520000 - Est. Flujos de Efec.'!$E$33","v":"Ajustes por pérdidas (ganancias) por la disposición de activos no corrientes"},{"$f":"'520000 - Est. Flujos de Efec.'!$D$33","v":"ifrs-full:AdjustmentsForLossesGainsOnDisposalOfNoncurrentAssets"}]
["/*",null,{"$f":"'520000 - Est. Flujos de Efec.'!$E$34","v":"Otros ajustes para los que los efectos sobre el efectivo son flujos de efectivo de inversión o financiación"},{"$f":"'520000 - Est. Flujos de Efec.'!$D$34","v":"ifrs-full:OtherAdjustmentsForWhichCashEffectsAreInvestingOrFinancingCashFlow"}]
["/*",null,{"$f":"'520000 - Est. Flujos de Efec.'!$E$35","v":"Otros ajustes para conciliar la ganancia (pérdida)"},{"$f":"'520000 - Est. Flujos de Efec.'!$D$35","v":"ifrs-full:OtherAdjustmentsToReconcileProfitLoss"}]
["",null,{"$f":"'520000 - Est. Flujos de Efec.'!$E$36","v":"Total ajustes para conciliar la ganancia (pérdida)"},{"$f":"'520000 - Est. Flujos de Efec.'!$D$36","v":"ifrs-full:AdjustmentsForReconcileProfitLoss"},0,"peso",{"$f":"'520000 - Est. Flujos de Efec.'!$G$36","v":0},0,"http://www.xbrl.org/scheme/companyName",{"$f":"Periodos!$D$3","v":"2022-01-01"},{"$f":"Periodos!$D$4","v":"2022-12-31"}]
["",null,{"$f":"'520000 - Est. Flujos de Efec.'!$E$37","v":"Flujos de efectivo netos procedentes (utilizados en) operaciones"},{"$f":"'520000 - Est. Flujos de Efec.'!$D$37","v":"ifrs-full:CashFlowsFromUsedInOperations"},0,"peso",{"$f":"'520000 - Est. Flujos de Efec.'!$G$37","v":0},0,"http://www.xbrl.org/scheme/companyName",{"$f":"Periodos!$D$3","v":"2022-01-01"},{"$f":"Periodos!$D$4","v":"2022-12-31"}]
["/*",null,{"$f":"'520000 - Est. Flujos de Efec.'!$E$38","v":"Dividendos pagados"},{"$f":"'520000 - Est. Flujos de Efec.'!$D$38","v":"ifrs-full:DividendsPaidClassifiedAsOperatingActivities"}]
["/*",null,{"$f":"'520000 - Est. Flujos de Efec.'!$E$39","v":"Dividendos recibidos"},{"$f":"'520000 - Est. Flujos de Efec.'!$D$39","v":"ifrs-full:DividendsReceivedClassifiedAsOperatingActivities"}]
["/*",null,{"$f":"'520000 - Est. Flujos de Efec.'!$E$40","v":"Intereses pagados"},{"$f":"'520000 - Est. Flujos de Efec.'!$D$40","v":"ifrs-full:InterestPaidClassifiedAsOperatingActivities"}]
["/*",null,{"$f":"'520000 - Est. Flujos de Efec.'!$E$41","v":"Intereses recibidos"},{"$f":"'520000 - Est. Flujos de Efec.'!$D$41","v":"ifrs-full:InterestReceivedClassifiedAsOperatingActivities"}]
["/*",null,{"$f":"'520000 - Est. Flujos de Efec.'!$E$42","v":"Impuestos a las ganancias reembolsados (pagados)"},{"$f":"'520000 - Est. Flujos de Efec.'!$D$42","v":"ifrs-full:IncomeTaxesPaidRefundClassifiedAsOperatingActivities"}]
["/*",null,{"$f":"'520000 - Est. Flujos de Efec.'!$E$43","v":"Otras entradas (salidas) de efectivo"},{"$f":"'520000 - Est. Flujos de Efec.'!$D$43","v":"ifrs-full:OtherInflowsOutflowsOfCashClassifiedAsOperatingActivities"}]
["",null,{"$f":"'520000 - Est. Flujos de Efec.'!$E$44","v":"Flujos de efectivo netos procedentes de (utilizados en) actividades de operación"},{"$f":"'520000 - Est. Flujos de Efec.'!$D$44","v":"ifrs-full:CashFlowsFromUsedInOperatingActivities"},0,"peso",{"$f":"'520000 - Est. Flujos de Efec.'!$G$44","v":0},0,"http://www.xbrl.org/scheme/companyName",{"$f":"Periodos!$D$3","v":"2022-01-01"},{"$f":"Periodos!$D$4","v":"2022-12-31"}]
[{"$f":"IF(G7456=\"\",\"/*\",\"\")","v":"/*"},null,{"$f":"'520000 - Est. Flujos de Efec.'!$E$45","v":"Flujos de efectivo procedentes de (utilizados en) actividades de inversión [resumen]"},{"$f":"'520000 - Est. Flujos de Efec.'!$D$45","v":"ifrs-full:CashFlowsFromUsedInInvestingActivitiesAbstract"}]
["/*",null,{"$f":"'520000 - Est. Flujos de Efec.'!$E$46","v":"Flujos de efectivo procedentes de la pérdida de control de subsidiarias u otros negocios"},{"$f":"'520000 - Est. Flujos de Efec.'!$D$46","v":"ifrs-full:CashFlowsFromLosingControlOfSubsidiariesOrOtherBusinessesClassifiedAsInvestingActivities"}]
["/*",null,{"$f":"'520000 - Est. Flujos de Efec.'!$E$47","v":"Flujos de efectivo utilizados para obtener el control de subsidiarias u otros negocios"},{"$f":"'520000 - Est. Flujos de Efec.'!$D$47","v":"ifrs-full:CashFlowsUsedInObtainingControlOfSubsidiariesOrOtherBusinessesClassifiedAsInvestingActivities"}]
["/*",null,{"$f":"'520000 - Est. Flujos de Efec.'!$E$48","v":"Otros cobros por la venta de patrimonio o instrumentos de deuda de otras entidades"},{"$f":"'520000 - Est. Flujos de Efec.'!$D$48","v":"ifrs-full:OtherCashReceiptsFromSalesOfEquityOrDebtInstrumentsOfOtherEntitiesClassifiedAsInvestingActivities"}]
["/*",null,{"$f":"'520000 - Est. Flujos de Efec.'!$E$49","v":"Otros pagos para adquirir patrimonio o instrumentos de deuda de otras entidades"},{"$f":"'520000 - Est. Flujos de Efec.'!$D$49","v":"ifrs-full:OtherCashPaymentsToAcquireEquityOrDebtInstrumentsOfOtherEntitiesClassifiedAsInvestingActivities"}]
["/*",null,{"$f":"'520000 - Est. Flujos de Efec.'!$E$50","v":"Otros cobros por la venta de participaciones en negocios conjuntos"},{"$f":"'520000 - Est. Flujos de Efec.'!$D$50","v":"ifrs-full:OtherCashReceiptsFromSalesOfInterestsInJointVenturesClassifiedAsInvestingActivities"}]
["/*",null,{"$f":"'520000 - Est. Flujos de Efec.'!$E$51","v":"Otros pagos para adquirir participaciones en negocios conjuntos"},{"$f":"'520000 - Est. Flujos de Efec.'!$D$51","v":"ifrs-full:OtherCashPaymentsToAcquireInterestsInJointVenturesClassifiedAsInvestingActivities"}]
["/*",null,{"$f":"'520000 - Est. Flujos de Efec.'!$E$52","v":"Importes procedentes de la venta de propiedades, planta y equipo"},{"$f":"'520000 - Est. Flujos de Efec.'!$D$52","v":"ifrs-full:ProceedsFromSalesOfPropertyPlantAndEquipmentClassifiedAsInvestingActivities"}]
["/*",null,{"$f":"'520000 - Est. Flujos de Efec.'!$E$53","v":"Compras de propiedades, planta y equipo"},{"$f":"'520000 - Est. Flujos de Efec.'!$D$53","v":"ifrs-full:PurchaseOfPropertyPlantAndEquipmentClassifiedAsInvestingActivities"}]
["/*",null,{"$f":"'520000 - Est. Flujos de Efec.'!$E$54","v":"Importes procedentes de ventas de activos intangibles"},{"$f":"'520000 - Est. Flujos de Efec.'!$D$54","v":"ifrs-full:ProceedsFromSalesOfIntangibleAssetsClassifiedAsInvestingActivities"}]
["/*",null,{"$f":"'520000 - Est. Flujos de Efec.'!$E$55","v":"Compras de activos intangibles"},{"$f":"'520000 - Est. Flujos de Efec.'!$D$55","v":"ifrs-full:PurchaseOfIntangibleAssetsClassifiedAsInvestingActivities"}]
["/*",null,{"$f":"'520000 - Est. Flujos de Efec.'!$E$56","v":"Recursos por ventas de otros activos a largo plazo"},{"$f":"'520000 - Est. Flujos de Efec.'!$D$56","v":"ifrs-full:ProceedsFromOtherLongtermAssetsClassifiedAsInvestingActivities"}]
["/*",null,{"$f":"'520000 - Est. Flujos de Efec.'!$E$57","v":"Compras de otros activos a largo plazo"},{"$f":"'520000 - Est. Flujos de Efec.'!$D$57","v":"ifrs-full:PurchaseOfOtherLongtermAssetsClassifiedAsInvestingActivities"}]
["/*",null,{"$f":"'520000 - Est. Flujos de Efec.'!$E$58","v":"Importes procedentes de subvenciones del gobierno"},{"$f":"'520000 - Est. Flujos de Efec.'!$D$58","v":"ifrs-full:ProceedsFromGovernmentGrantsClassifiedAsInvestingActivities"}]
["/*",null,{"$f":"'520000 - Est. Flujos de Efec.'!$E$59","v":"Anticipos de efectivo y préstamos concedidos a terceros"},{"$f":"'520000 - Est. Flujos de Efec.'!$D$59","v":"ifrs-full:CashAdvancesAndLoansMadeToOtherPartiesClassifiedAsInvestingActivities"}]
["/*",null,{"$f":"'520000 - Est. Flujos de Efec.'!$E$60","v":"Cobros procedentes del reembolso de anticipos y préstamos concedidos a terceros"},{"$f":"'520000 - Est. Flujos de Efec.'!$D$60","v":"ifrs-full:CashReceiptsFromRepaymentOfAdvancesAndLoansMadeToOtherPartiesClassifiedAsInvestingActivities"}]
["/*",null,{"$f":"'520000 - Est. Flujos de Efec.'!$E$61","v":"Pagos en efectivo por contratos de futuros, contratos a término, contratos de opciones y contratos de permuta financiera"},{"$f":"'520000 - Est. Flujos de Efec.'!$D$61","v":"ifrs-full:CashPaymentsForFutureContractsForwardContractsOptionContractsAndSwapContractsClassifiedAsInvestingActivities"}]
["/*",null,{"$f":"'520000 - Est. Flujos de Efec.'!$E$62","v":"Cobros en efectivo por contratos de futuros, contratos a término, contratos de opciones y contratos de permuta financiera"},{"$f":"'520000 - Est. Flujos de Efec.'!$D$62","v":"ifrs-full:CashReceiptsFromFutureContractsForwardContractsOptionContractsAndSwapContractsClassifiedAsInvestingActivities"}]
["/*",null,{"$f":"'520000 - Est. Flujos de Efec.'!$E$63","v":"Dividendos recibidos"},{"$f":"'520000 - Est. Flujos de Efec.'!$D$63","v":"ifrs-full:DividendsReceivedClassifiedAsInvestingActivities"}]
["/*",null,{"$f":"'520000 - Est. Flujos de Efec.'!$E$64","v":"Intereses pagados"},{"$f":"'520000 - Est. Flujos de Efec.'!$D$64","v":"ifrs-full:InterestPaidClassifiedAsInvestingActivities"}]
["/*",null,{"$f":"'520000 - Est. Flujos de Efec.'!$E$65","v":"Intereses recibidos"},{"$f":"'520000 - Est. Flujos de Efec.'!$D$65","v":"ifrs-full:InterestReceivedClassifiedAsInvestingActivities"}]
["/*",null,{"$f":"'520000 - Est. Flujos de Efec.'!$E$66","v":"Impuestos a las ganancias reembolsados (pagados)"},{"$f":"'520000 - Est. Flujos de Efec.'!$D$66","v":"ifrs-full:IncomeTaxesPaidRefundClassifiedAsInvestingActivities"}]
["/*",null,{"$f":"'520000 - Est. Flujos de Efec.'!$E$67","v":"Otras entradas (salidas) de efectivo"},{"$f":"'520000 - Est. Flujos de Efec.'!$D$67","v":"ifrs-full:OtherInflowsOutflowsOfCashClassifiedAsInvestingActivities"}]
["",null,{"$f":"'520000 - Est. Flujos de Efec.'!$E$68","v":"Flujos de efectivo netos procedentes de (utilizados en) actividades de inversión"},{"$f":"'520000 - Est. Flujos de Efec.'!$D$68","v":"ifrs-full:CashFlowsFromUsedInInvestingActivities"},0,"peso",{"$f":"'520000 - Est. Flujos de Efec.'!$G$68","v":0},0,"http://www.xbrl.org/scheme/companyName",{"$f":"Periodos!$D$3","v":"2022-01-01"},{"$f":"Periodos!$D$4","v":"2022-12-31"}]
["/*",null,{"$f":"'520000 - Est. Flujos de Efec.'!$E$69","v":"Flujos de efectivo procedentes de (utilizados en) actividades de financiación [resumen]"},{"$f":"'520000 - Est. Flujos de Efec.'!$D$69","v":"ifrs-full:CashFlowsFromUsedInFinancingActivitiesAbstract"}]
["/*",null,{"$f":"'520000 - Est. Flujos de Efec.'!$E$70","v":"Recursos por cambios en las participaciones en la propiedad en subsidiarias que no dan lugar a la pérdida de control"},{"$f":"'520000 - Est. Flujos de Efec.'!$D$70","v":"ifrs-full:ProceedsFromChangesInOwnershipInterestsInSubsidiaries"}]
["/*",null,{"$f":"'520000 - Est. Flujos de Efec.'!$E$71","v":"Pagos por cambios en las participaciones en la propiedad en subsidiarias que no dan lugar a la pérdida de control"},{"$f":"'520000 - Est. Flujos de Efec.'!$D$71","v":"ifrs-full:PaymentsFromChangesInOwnershipInterestsInSubsidiaries"}]
["/*",null,{"$f":"'520000 - Est. Flujos de Efec.'!$E$72","v":"Importes procedentes de la emisión de acciones"},{"$f":"'520000 - Est. Flujos de Efec.'!$D$72","v":"ifrs-full:ProceedsFromIssuingShares"}]
["/*",null,{"$f":"'520000 - Est. Flujos de Efec.'!$E$73","v":"Importes procedentes de la emisión de otros instrumentos de patrimonio"},{"$f":"'520000 - Est. Flujos de Efec.'!$D$73","v":"ifrs-full:ProceedsFromIssuingOtherEquityInstruments"}]
["/*",null,{"$f":"'520000 - Est. Flujos de Efec.'!$E$74","v":"Pagos por adquirir o rescatar las acciones de la entidad"},{"$f":"'520000 - Est. Flujos de Efec.'!$D$74","v":"ifrs-full:PaymentsToAcquireOrRedeemEntitysShares"}]
["/*",null,{"$f":"'520000 - Est. Flujos de Efec.'!$E$75","v":"Pagos por otras participaciones en el patrimonio"},{"$f":"'520000 - Est. Flujos de Efec.'!$D$75","v":"ifrs-full:PaymentsOfOtherEquityInstruments"}]
["/*",null,{"$f":"'520000 - Est. Flujos de Efec.'!$E$76","v":"Importes procedentes de préstamos"},{"$f":"'520000 - Est. Flujos de Efec.'!$D$76","v":"ifrs-full:ProceedsFromBorrowingsClassifiedAsFinancingActivities"}]
["/*",null,{"$f":"'520000 - Est. Flujos de Efec.'!$E$77","v":"Reembolsos de préstamos"},{"$f":"'520000 - Est. Flujos de Efec.'!$D$77","v":"ifrs-full:RepaymentsOfBorrowingsClassifiedAsFinancingActivities"}]
["/*",null,{"$f":"'520000 - Est. Flujos de Efec.'!$E$78","v":"Pagos de pasivos por arrendamiento"},{"$f":"'520000 - Est. Flujos de Efec.'!$D$78","v":"ifrs-full:PaymentsOfLeaseLiabilitiesClassifiedAsFinancingActivities"}]
["/*",null,{"$f":"'520000 - Est. Flujos de Efec.'!$E$79","v":"Importes procedentes de subvenciones del gobierno"},{"$f":"'520000 - Est. Flujos de Efec.'!$D$79","v":"ifrs-full:ProceedsFromGovernmentGrantsClassifiedAsFinancingActivities"}]
["/*",null,{"$f":"'520000 - Est. Flujos de Efec.'!$E$80","v":"Dividendos pagados"},{"$f":"'520000 - Est. Flujos de Efec.'!$D$80","v":"ifrs-full:DividendsPaidClassifiedAsFinancingActivities"}]
["/*",null,{"$f":"'520000 - Est. Flujos de Efec.'!$E$81","v":"Intereses pagados"},{"$f":"'520000 - Est. Flujos de Efec.'!$D$81","v":"ifrs-full:InterestPaidClassifiedAsFinancingActivities"}]
["/*",null,{"$f":"'520000 - Est. Flujos de Efec.'!$E$82","v":"Impuestos a las ganancias reembolsados (pagados)"},{"$f":"'520000 - Est. Flujos de Efec.'!$D$82","v":"ifrs-full:IncomeTaxesPaidRefundClassifiedAsFinancingActivities"}]
["/*",null,{"$f":"'520000 - Est. Flujos de Efec.'!$E$83","v":"Otras entradas (salidas) de efectivo"},{"$f":"'520000 - Est. Flujos de Efec.'!$D$83","v":"ifrs-full:OtherInflowsOutflowsOfCashClassifiedAsFinancingActivities"}]
["",null,{"$f":"'520000 - Est. Flujos de Efec.'!$E$84","v":"Flujos de efectivo netos procedentes de (utilizados en) actividades de financiación"},{"$f":"'520000 - Est. Flujos de Efec.'!$D$84","v":"ifrs-full:CashFlowsFromUsedInFinancingActivities"},0,"peso",{"$f":"'520000 - Est. Flujos de Efec.'!$G$84","v":0},0,"http://www.xbrl.org/scheme/companyName",{"$f":"Periodos!$D$3","v":"2022-01-01"},{"$f":"Periodos!$D$4","v":"2022-12-31"}]
["",null,{"$f":"'520000 - Est. Flujos de Efec.'!$E$85","v":"Incremento (disminución) neto de efectivo y equivalentes al efectivo, antes del efecto de los cambios en la tasa de cambio"},{"$f":"'520000 - Est. Flujos de Efec.'!$D$85","v":"ifrs-full:IncreaseDecreaseInCashAndCashEquivalentsBeforeEffectOfExchangeRateChanges"},0,"peso",{"$f":"'520000 - Est. Flujos de Efec.'!$G$85","v":0},0,"http://www.xbrl.org/scheme/companyName",{"$f":"Periodos!$D$3","v":"2022-01-01"},{"$f":"Periodos!$D$4","v":"2022-12-31"}]
["/*",null,{"$f":"'520000 - Est. Flujos de Efec.'!$E$86","v":"Efectos de la variación en la tasa de cambio sobre el efectivo y equivalentes al efectivo [resumen]"},{"$f":"'520000 - Est. Flujos de Efec.'!$D$86","v":"ifrs-full:EffectOfExchangeRateChangesOnCashAndCashEquivalentsAbstract"}]
["/*",null,{"$f":"'520000 - Est. Flujos de Efec.'!$E$87","v":"Efectos de la variación en la tasa de cambio sobre el efectivo y equivalentes al efectivo"},{"$f":"'520000 - Est. Flujos de Efec.'!$D$87","v":"ifrs-full:EffectOfExchangeRateChangesOnCashAndCashEquivalents"}]
["",null,{"$f":"'520000 - Est. Flujos de Efec.'!$E$88","v":"Incremento (disminución) neto de efectivo y equivalentes al efectivo"},{"$f":"'520000 - Est. Flujos de Efec.'!$D$88","v":"ifrs-full:IncreaseDecreaseInCashAndCashEquivalents"},0,"peso",{"$f":"'520000 - Est. Flujos de Efec.'!$G$88","v":0},0,"http://www.xbrl.org/scheme/companyName",{"$f":"Periodos!$D$3","v":"2022-01-01"},{"$f":"Periodos!$D$4","v":"2022-12-31"}]
["/*",null,{"$f":"'520000 - Est. Flujos de Efec.'!$E$89","v":"Efectivo y equivalentes al efectivo al principio del periodo"},{"$f":"'520000 - Est. Flujos de Efec.'!$D$89","v":"ifrs-full:CashAndCashEquivalents"}]
["/*",null,{"$f":"'520000 - Est. Flujos de Efec.'!$E$90","v":"Efectivo y equivalentes al efectivo al final del periodo"},{"$f":"'520000 - Est. Flujos de Efec.'!$D$90","v":"ifrs-full:CashAndCashEquivalents"}]
["/*"]
["/*",null,"610000 - Est. Camb. Patrimonio"]
["/*",null,"--01--"]
["/*",null,{"$f":"'610000 - Est. Camb. Patrimonio'!$E$16","v":"Estado de cambios en el patrimonio [resumen]"},{"$f":"'610000 - Est. Camb. Patrimonio'!$D$16","v":"ifrs-full:StatementOfChangesInEquityAbstract"}]
["/*",null,{"$f":"'610000 - Est. Camb. Patrimonio'!$E$17","v":"Estado de cambios en el patrimonio [partidas de los estados financieros]"},{"$f":"'610000 - Est. Camb. Patrimonio'!$D$17","v":"ifrs-full:StatementOfChangesInEquityLineItems"}]
["/*",null,{"$f":"'610000 - Est. Camb. Patrimonio'!$E$18","v":"Patrimonio al comienzo del periodo"},{"$f":"'610000 - Est. Camb. Patrimonio'!$D$18","v":"ifrs-full:Equity"}]
["/*",null,{"$f":"'610000 - Est. Camb. Patrimonio'!$E$19","v":"Cambios en el patrimonio [resumen]"},{"$f":"'610000 - Est. Camb. Patrimonio'!$D$19","v":"ifrs-full:ChangesInEquityAbstract"}]
["/*",null,{"$f":"'610000 - Est. Camb. Patrimonio'!$E$20","v":"Resultado integral [resumen]"},{"$f":"'610000 - Est. Camb. Patrimonio'!$D$20","v":"ifrs-full:ComprehensiveIncomeAbstract"}]
["/*",null,{"$f":"'610000 - Est. Camb. Patrimonio'!$E$21","v":"Ganancia (pérdida)"},{"$f":"'610000 - Est. Camb. Patrimonio'!$D$21","v":"ifrs-full:ProfitLoss"}]
["/*",null,{"$f":"'610000 - Est. Camb. Patrimonio'!$E$22","v":"Otro resultado integral"},{"$f":"'610000 - Est. Camb. Patrimonio'!$D$22","v":"ifrs-full:OtherComprehensiveIncome"}]
["",null,{"$f":"'610000 - Est. Camb. Patrimonio'!$E$23","v":"Resultado integral total"},{"$f":"'610000 - Est. Camb. Patrimonio'!$D$23","v":"ifrs-full:ComprehensiveIncome"},0,"peso",{"$f":"'610000 - Est. Camb. Patrimonio'!$F$23","v":0},0,"http://www.xbrl.org/scheme/companyName",{"$f":"Periodos!$C$3","v":"2023-01-01"},{"$f":"Periodos!$C$4","v":"2023-12-31"},{"$f":"'610000 - Est. Camb. Patrimonio'!$E$15","v":"ifrs-full:ComponentsOfEquityAxis"},{"$f":"'610000 - Est. Camb. Patrimonio'!$F$14","v":"ifrs-full:IssuedCapitalMember"}]
["/*",null,{"$f":"'610000 - Est. Camb. Patrimonio'!$E$24","v":"Emisión de patrimonio"},{"$f":"'610000 - Est. Camb. Patrimonio'!$D$24","v":"ifrs-full:IssueOfEquity"}]
["/*",null,{"$f":"'610000 - Est. Camb. Patrimonio'!$E$25","v":"Dividendos reconocidos como distribuciones a los propietarios"},{"$f":"'610000 - Est. Camb. Patrimonio'!$D$25","v":"ifrs-full:DividendsPaid"}]
["/*",null,{"$f":"'610000 - Est. Camb. Patrimonio'!$E$26","v":"Incrementos por otras aportaciones de los propietarios, patrimonio"},{"$f":"'610000 - Est. Camb. Patrimonio'!$D$26","v":"ifrs-full:IncreaseDecreaseThroughOtherContributionsByOwners"}]
["/*",null,{"$f":"'610000 - Est. Camb. Patrimonio'!$E$27","v":"Disminución por otras distribuciones a los propietarios, patrimonio"},{"$f":"'610000 - Est. Camb. Patrimonio'!$D$27","v":"ifrs-full:IncreaseDecreaseThroughOtherDistributionsToOwners"}]
["/*",null,{"$f":"'610000 - Est. Camb. Patrimonio'!$E$28","v":"Incrementos (disminuciones) por otros cambios, patrimonio"},{"$f":"'610000 - Est. Camb. Patrimonio'!$D$28","v":"ifrs-full:IncreaseDecreaseThroughTransfersAndOtherChangesEquity"}]
["/*",null,{"$f":"'610000 - Est. Camb. Patrimonio'!$E$29","v":"Incrementos (disminuciones) por transacciones con acciones propias, patrimonio"},{"$f":"'610000 - Est. Camb. Patrimonio'!$D$29","v":"ifrs-full:IncreaseDecreaseThroughTreasuryShareTransactions"}]
["/*",null,{"$f":"'610000 - Est. Camb. Patrimonio'!$E$30","v":"Incrementos (disminuciones) por cambios las participaciones en la propiedad de subsidiarias que no dan lugar a pérdida de control, patrimonio"},{"$f":"'610000 - Est. Camb. Patrimonio'!$D$30","v":"ifrs-full:IncreaseDecreaseThroughChangesInOwnershipInterestsInSubsidiariesThatDoNotResultInLossOfControl"}]
[{"$f":"IF(G7520=\"\",\"/*\",\"\")","v":"/*"},null,{"$f":"'610000 - Est. Camb. Patrimonio'!$E$31","v":"Incrementos (disminuciones) por transacciones con pagos basados en acciones, patrimonio"},{"$f":"'610000 - Est. Camb. Patrimonio'!$D$31","v":"ifrs-full:IncreaseDecreaseThroughSharebasedPaymentTransactions"}]
["",null,{"$f":"'610000 - Est. Camb. Patrimonio'!$E$32","v":"Total incremento (disminución) en el patrimonio"},{"$f":"'610000 - Est. Camb. Patrimonio'!$D$32","v":"ifrs-full:ChangesInEquity"},0,"peso",{"$f":"'610000 - Est. Camb. Patrimonio'!$F$32","v":0},0,"http://www.xbrl.org/scheme/companyName",{"$f":"Periodos!$C$3","v":"2023-01-01"},{"$f":"Periodos!$C$4","v":"2023-12-31"},{"$f":"'610000 - Est. Camb. Patrimonio'!$E$15","v":"ifrs-full:ComponentsOfEquityAxis"},{"$f":"'610000 - Est. Camb. Patrimonio'!$F$14","v":"ifrs-full:IssuedCapitalMember"}]
["",null,{"$f":"'610000 - Est. Camb. Patrimonio'!$E$33","v":"Patrimonio al final del periodo"},{"$f":"'610000 - Est. Camb. Patrimonio'!$D$33","v":"ifrs-full:Equity"},0,"peso",{"$f":"'610000 - Est. Camb. Patrimonio'!$F$33","v":0},0,"http://www.xbrl.org/scheme/companyName",null,{"$f":"Periodos!$C$4","v":"2023-12-31"},{"$f":"'610000 - Est. Camb. Patrimonio'!$E$15","v":"ifrs-full:ComponentsOfEquityAxis"},{"$f":"'610000 - Est. Camb. Patrimonio'!$F$14","v":"ifrs-full:IssuedCapitalMember"}]
["/*",null,"--02--"]
["/*",null,{"$f":"'610000 - Est. Camb. Patrimonio'!$E$16","v":"Estado de cambios en el patrimonio [resumen]"},{"$f":"'610000 - Est. Camb. Patrimonio'!$D$16","v":"ifrs-full:StatementOfChangesInEquityAbstract"}]
["/*",null,{"$f":"'610000 - Est. Camb. Patrimonio'!$E$17","v":"Estado de cambios en el patrimonio [partidas de los estados financieros]"},{"$f":"'610000 - Est. Camb. Patrimonio'!$D$17","v":"ifrs-full:StatementOfChangesInEquityLineItems"}]
["/*",null,{"$f":"'610000 - Est. Camb. Patrimonio'!$E$18","v":"Patrimonio al comienzo del periodo"},{"$f":"'610000 - Est. Camb. Patrimonio'!$D$18","v":"ifrs-full:Equity"}]
["/*",null,{"$f":"'610000 - Est. Camb. Patrimonio'!$E$19","v":"Cambios en el patrimonio [resumen]"},{"$f":"'610000 - Est. Camb. Patrimonio'!$D$19","v":"ifrs-full:ChangesInEquityAbstract"}]
["/*",null,{"$f":"'610000 - Est. Camb. Patrimonio'!$E$20","v":"Resultado integral [resumen]"},{"$f":"'610000 - Est. Camb. Patrimonio'!$D$20","v":"ifrs-full:ComprehensiveIncomeAbstract"}]
["/*",null,{"$f":"'610000 - Est. Camb. Patrimonio'!$E$21","v":"Ganancia (pérdida)"},{"$f":"'610000 - Est. Camb. Patrimonio'!$D$21","v":"ifrs-full:ProfitLoss"}]
["/*",null,{"$f":"'610000 - Est. Camb. Patrimonio'!$E$22","v":"Otro resultado integral"},{"$f":"'610000 - Est. Camb. Patrimonio'!$D$22","v":"ifrs-full:OtherComprehensiveIncome"}]
["",null,{"$f":"'610000 - Est. Camb. Patrimonio'!$E$23","v":"Resultado integral total"},{"$f":"'610000 - Est. Camb. Patrimonio'!$D$23","v":"ifrs-full:ComprehensiveIncome"},0,"peso",{"$f":"'610000 - Est. Camb. Patrimonio'!$G$23","v":0},0,"http://www.xbrl.org/scheme/companyName",{"$f":"Periodos!$C$3","v":"2023-01-01"},{"$f":"Periodos!$C$4","v":"2023-12-31"},{"$f":"'610000 - Est. Camb. Patrimonio'!$E$15","v":"ifrs-full:ComponentsOfEquityAxis"},{"$f":"'610000 - Est. Camb. Patrimonio'!$G$14","v":"ifrs-full:SharePremiumMember"}]
["/*",null,{"$f":"'610000 - Est. Camb. Patrimonio'!$E$24","v":"Emisión de patrimonio"},{"$f":"'610000 - Est. Camb. Patrimonio'!$D$24","v":"ifrs-full:IssueOfEquity"}]
["/*",null,{"$f":"'610000 - Est. Camb. Patrimonio'!$E$25","v":"Dividendos reconocidos como distribuciones a los propietarios"},{"$f":"'610000 - Est. Camb. Patrimonio'!$D$25","v":"ifrs-full:DividendsPaid"}]
["/*",null,{"$f":"'610000 - Est. Camb. Patrimonio'!$E$26","v":"Incrementos por otras aportaciones de los propietarios, patrimonio"},{"$f":"'610000 - Est. Camb. Patrimonio'!$D$26","v":"ifrs-full:IncreaseDecreaseThroughOtherContributionsByOwners"}]
["/*",null,{"$f":"'610000 - Est. Camb. Patrimonio'!$E$27","v":"Disminución por otras distribuciones a los propietarios, patrimonio"},{"$f":"'610000 - Est. Camb. Patrimonio'!$D$27","v":"ifrs-full:IncreaseDecreaseThroughOtherDistributionsToOwners"}]
["/*",null,{"$f":"'610000 - Est. Camb. Patrimonio'!$E$28","v":"Incrementos (disminuciones) por otros cambios, patrimonio"},{"$f":"'610000 - Est. Camb. Patrimonio'!$D$28","v":"ifrs-full:IncreaseDecreaseThroughTransfersAndOtherChangesEquity"}]
["/*",null,{"$f":"'610000 - Est. Camb. Patrimonio'!$E$29","v":"Incrementos (disminuciones) por transacciones con acciones propias, patrimonio"},{"$f":"'610000 - Est. Camb. Patrimonio'!$D$29","v":"ifrs-full:IncreaseDecreaseThroughTreasuryShareTransactions"}]
["/*",null,{"$f":"'610000 - Est. Camb. Patrimonio'!$E$30","v":"Incrementos (disminuciones) por cambios las participaciones en la propiedad de subsidiarias que no dan lugar a pérdida de control, patrimonio"},{"$f":"'610000 - Est. Camb. Patrimonio'!$D$30","v":"ifrs-full:IncreaseDecreaseThroughChangesInOwnershipInterestsInSubsidiariesThatDoNotResultInLossOfControl"}]
["/*",null,{"$f":"'610000 - Est. Camb. Patrimonio'!$E$31","v":"Incrementos (disminuciones) por transacciones con pagos basados en acciones, patrimonio"},{"$f":"'610000 - Est. Camb. Patrimonio'!$D$31","v":"ifrs-full:IncreaseDecreaseThroughSharebasedPaymentTransactions"}]
["",null,{"$f":"'610000 - Est. Camb. Patrimonio'!$E$32","v":"Total incremento (disminución) en el patrimonio"},{"$f":"'610000 - Est. Camb. Patrimonio'!$D$32","v":"ifrs-full:ChangesInEquity"},0,"peso",{"$f":"'610000 - Est. Camb. Patrimonio'!$G$32","v":0},0,"http://www.xbrl.org/scheme/companyName",{"$f":"Periodos!$C$3","v":"2023-01-01"},{"$f":"Periodos!$C$4","v":"2023-12-31"},{"$f":"'610000 - Est. Camb. Patrimonio'!$E$15","v":"ifrs-full:ComponentsOfEquityAxis"},{"$f":"'610000 - Est. Camb. Patrimonio'!$G$14","v":"ifrs-full:SharePremiumMember"}]
["",null,{"$f":"'610000 - Est. Camb. Patrimonio'!$E$33","v":"Patrimonio al final del periodo"},{"$f":"'610000 - Est. Camb. Patrimonio'!$D$33","v":"ifrs-full:Equity"},0,"peso",{"$f":"'610000 - Est. Camb. Patrimonio'!$G$33","v":0},0,"http://www.xbrl.org/scheme/companyName",null,{"$f":"Periodos!$C$4","v":"2023-12-31"},{"$f":"'610000 - Est. Camb. Patrimonio'!$E$15","v":"ifrs-full:ComponentsOfEquityAxis"},{"$f":"'610000 - Est. Camb. Patrimonio'!$G$14","v":"ifrs-full:SharePremiumMember"}]
["/*",null,"--03--"]
["/*",null,{"$f":"'610000 - Est. Camb. Patrimonio'!$E$16","v":"Estado de cambios en el patrimonio [resumen]"},{"$f":"'610000 - Est. Camb. Patrimonio'!$D$16","v":"ifrs-full:StatementOfChangesInEquityAbstract"}]
["/*",null,{"$f":"'610000 - Est. Camb. Patrimonio'!$E$17","v":"Estado de cambios en el patrimonio [partidas de los estados financieros]"},{"$f":"'610000 - Est. Camb. Patrimonio'!$D$17","v":"ifrs-full:StatementOfChangesInEquityLineItems"}]
["/*",null,{"$f":"'610000 - Est. Camb. Patrimonio'!$E$18","v":"Patrimonio al comienzo del periodo"},{"$f":"'610000 - Est. Camb. Patrimonio'!$D$18","v":"ifrs-full:Equity"}]
["/*",null,{"$f":"'610000 - Est. Camb. Patrimonio'!$E$19","v":"Cambios en el patrimonio [resumen]"},{"$f":"'610000 - Est. Camb. Patrimonio'!$D$19","v":"ifrs-full:ChangesInEquityAbstract"}]
["/*",null,{"$f":"'610000 - Est. Camb. Patrimonio'!$E$20","v":"Resultado integral [resumen]"},{"$f":"'610000 - Est. Camb. Patrimonio'!$D$20","v":"ifrs-full:ComprehensiveIncomeAbstract"}]
["/*",null,{"$f":"'610000 - Est. Camb. Patrimonio'!$E$21","v":"Ganancia (pérdida)"},{"$f":"'610000 - Est. Camb. Patrimonio'!$D$21","v":"ifrs-full:ProfitLoss"}]
["/*",null,{"$f":"'610000 - Est. Camb. Patrimonio'!$E$22","v":"Otro resultado integral"},{"$f":"'610000 - Est. Camb. Patrimonio'!$D$22","v":"ifrs-full:OtherComprehensiveIncome"}]
["",null,{"$f":"'610000 - Est. Camb. Patrimonio'!$E$23","v":"Resultado integral total"},{"$f":"'610000 - Est. Camb. Patrimonio'!$D$23","v":"ifrs-full:ComprehensiveIncome"},0,"peso",{"$f":"'610000 - Est. Camb. Patrimonio'!$H$23","v":0},0,"http://www.xbrl.org/scheme/companyName",{"$f":"Periodos!$C$3","v":"2023-01-01"},{"$f":"Periodos!$C$4","v":"2023-12-31"},{"$f":"'610000 - Est. Camb. Patrimonio'!$E$15","v":"ifrs-full:ComponentsOfEquityAxis"},{"$f":"'610000 - Est. Camb. Patrimonio'!$H$14","v":"ifrs-full:TreasurySharesMember"}]
["/*",null,{"$f":"'610000 - Est. Camb. Patrimonio'!$E$24","v":"Emisión de patrimonio"},{"$f":"'610000 - Est. Camb. Patrimonio'!$D$24","v":"ifrs-full:IssueOfEquity"}]
["/*",null,{"$f":"'610000 - Est. Camb. Patrimonio'!$E$25","v":"Dividendos reconocidos como distribuciones a los propietarios"},{"$f":"'610000 - Est. Camb. Patrimonio'!$D$25","v":"ifrs-full:DividendsPaid"}]
["/*",null,{"$f":"'610000 - Est. Camb. Patrimonio'!$E$26","v":"Incrementos por otras aportaciones de los propietarios, patrimonio"},{"$f":"'610000 - Est. Camb. Patrimonio'!$D$26","v":"ifrs-full:IncreaseDecreaseThroughOtherContributionsByOwners"}]
["/*",null,{"$f":"'610000 - Est. Camb. Patrimonio'!$E$27","v":"Disminución por otras distribuciones a los propietarios, patrimonio"},{"$f":"'610000 - Est. Camb. Patrimonio'!$D$27","v":"ifrs-full:IncreaseDecreaseThroughOtherDistributionsToOwners"}]
["/*",null,{"$f":"'610000 - Est. Camb. Patrimonio'!$E$28","v":"Incrementos (disminuciones) por otros cambios, patrimonio"},{"$f":"'610000 - Est. Camb. Patrimonio'!$D$28","v":"ifrs-full:IncreaseDecreaseThroughTransfersAndOtherChangesEquity"}]
["/*",null,{"$f":"'610000 - Est. Camb. Patrimonio'!$E$29","v":"Incrementos (disminuciones) por transacciones con acciones propias, patrimonio"},{"$f":"'610000 - Est. Camb. Patrimonio'!$D$29","v":"ifrs-full:IncreaseDecreaseThroughTreasuryShareTransactions"}]
["/*",null,{"$f":"'610000 - Est. Camb. Patrimonio'!$E$30","v":"Incrementos (disminuciones) por cambios las participaciones en la propiedad de subsidiarias que no dan lugar a pérdida de control, patrimonio"},{"$f":"'610000 - Est. Camb. Patrimonio'!$D$30","v":"ifrs-full:IncreaseDecreaseThroughChangesInOwnershipInterestsInSubsidiariesThatDoNotResultInLossOfControl"}]
["/*",null,{"$f":"'610000 - Est. Camb. Patrimonio'!$E$31","v":"Incrementos (disminuciones) por transacciones con pagos basados en acciones, patrimonio"},{"$f":"'610000 - Est. Camb. Patrimonio'!$D$31","v":"ifrs-full:IncreaseDecreaseThroughSharebasedPaymentTransactions"}]
["",null,{"$f":"'610000 - Est. Camb. Patrimonio'!$E$32","v":"Total incremento (disminución) en el patrimonio"},{"$f":"'610000 - Est. Camb. Patrimonio'!$D$32","v":"ifrs-full:ChangesInEquity"},0,"peso",{"$f":"'610000 - Est. Camb. Patrimonio'!$H$32","v":0},0,"http://www.xbrl.org/scheme/companyName",{"$f":"Periodos!$C$3","v":"2023-01-01"},{"$f":"Periodos!$C$4","v":"2023-12-31"},{"$f":"'610000 - Est. Camb. Patrimonio'!$E$15","v":"ifrs-full:ComponentsOfEquityAxis"},{"$f":"'610000 - Est. Camb. Patrimonio'!$H$14","v":"ifrs-full:TreasurySharesMember"}]
["",null,{"$f":"'610000 - Est. Camb. Patrimonio'!$E$33","v":"Patrimonio al final del periodo"},{"$f":"'610000 - Est. Camb. Patrimonio'!$D$33","v":"ifrs-full:Equity"},0,"peso",{"$f":"'610000 - Est. Camb. Patrimonio'!$H$33","v":0},0,"http://www.xbrl.org/scheme/companyName",null,{"$f":"Periodos!$C$4","v":"2023-12-31"},{"$f":"'610000 - Est. Camb. Patrimonio'!$E$15","v":"ifrs-full:ComponentsOfEquityAxis"},{"$f":"'610000 - Est. Camb. Patrimonio'!$H$14","v":"ifrs-full:TreasurySharesMember"}]
["/*",null,"--04--"]
["/*",null,{"$f":"'610000 - Est. Camb. Patrimonio'!$E$16","v":"Estado de cambios en el patrimonio [resumen]"},{"$f":"'610000 - Est. Camb. Patrimonio'!$D$16","v":"ifrs-full:StatementOfChangesInEquityAbstract"}]
["/*",null,{"$f":"'610000 - Est. Camb. Patrimonio'!$E$17","v":"Estado de cambios en el patrimonio [partidas de los estados financieros]"},{"$f":"'610000 - Est. Camb. Patrimonio'!$D$17","v":"ifrs-full:StatementOfChangesInEquityLineItems"}]
["/*",null,{"$f":"'610000 - Est. Camb. Patrimonio'!$E$18","v":"Patrimonio al comienzo del periodo"},{"$f":"'610000 - Est. Camb. Patrimonio'!$D$18","v":"ifrs-full:Equity"}]
["/*",null,{"$f":"'610000 - Est. Camb. Patrimonio'!$E$19","v":"Cambios en el patrimonio [resumen]"},{"$f":"'610000 - Est. Camb. Patrimonio'!$D$19","v":"ifrs-full:ChangesInEquityAbstract"}]
["/*",null,{"$f":"'610000 - Est. Camb. Patrimonio'!$E$20","v":"Resultado integral [resumen]"},{"$f":"'610000 - Est. Camb. Patrimonio'!$D$20","v":"ifrs-full:ComprehensiveIncomeAbstract"}]
["/*",null,{"$f":"'610000 - Est. Camb. Patrimonio'!$E$21","v":"Ganancia (pérdida)"},{"$f":"'610000 - Est. Camb. Patrimonio'!$D$21","v":"ifrs-full:ProfitLoss"}]
["/*",null,{"$f":"'610000 - Est. Camb. Patrimonio'!$E$22","v":"Otro resultado integral"},{"$f":"'610000 - Est. Camb. Patrimonio'!$D$22","v":"ifrs-full:OtherComprehensiveIncome"}]
["",null,{"$f":"'610000 - Est. Camb. Patrimonio'!$E$23","v":"Resultado integral total"},{"$f":"'610000 - Est. Camb. Patrimonio'!$D$23","v":"ifrs-full:ComprehensiveIncome"},0,"peso",{"$f":"'610000 - Est. Camb. Patrimonio'!$I$23","v":0},0,"http://www.xbrl.org/scheme/companyName",{"$f":"Periodos!$C$3","v":"2023-01-01"},{"$f":"Periodos!$C$4","v":"2023-12-31"},{"$f":"'610000 - Est. Camb. Patrimonio'!$E$15","v":"ifrs-full:ComponentsOfEquityAxis"},{"$f":"'610000 - Est. Camb. Patrimonio'!$I$14","v":"ifrs-full:OtherEquityInterestMember"}]
["/*",null,{"$f":"'610000 - Est. Camb. Patrimonio'!$E$24","v":"Emisión de patrimonio"},{"$f":"'610000 - Est. Camb. Patrimonio'!$D$24","v":"ifrs-full:IssueOfEquity"}]
["/*",null,{"$f":"'610000 - Est. Camb. Patrimonio'!$E$25","v":"Dividendos reconocidos como distribuciones a los propietarios"},{"$f":"'610000 - Est. Camb. Patrimonio'!$D$25","v":"ifrs-full:DividendsPaid"}]
["/*",null,{"$f":"'610000 - Est. Camb. Patrimonio'!$E$26","v":"Incrementos por otras aportaciones de los propietarios, patrimonio"},{"$f":"'610000 - Est. Camb. Patrimonio'!$D$26","v":"ifrs-full:IncreaseDecreaseThroughOtherContributionsByOwners"}]
["/*",null,{"$f":"'610000 - Est. Camb. Patrimonio'!$E$27","v":"Disminución por otras distribuciones a los propietarios, patrimonio"},{"$f":"'610000 - Est. Camb. Patrimonio'!$D$27","v":"ifrs-full:IncreaseDecreaseThroughOtherDistributionsToOwners"}]
["/*",null,{"$f":"'610000 - Est. Camb. Patrimonio'!$E$28","v":"Incrementos (disminuciones) por otros cambios, patrimonio"},{"$f":"'610000 - Est. Camb. Patrimonio'!$D$28","v":"ifrs-full:IncreaseDecreaseThroughTransfersAndOtherChangesEquity"}]
["/*",null,{"$f":"'610000 - Est. Camb. Patrimonio'!$E$29","v":"Incrementos (disminuciones) por transacciones con acciones propias, patrimonio"},{"$f":"'610000 - Est. Camb. Patrimonio'!$D$29","v":"ifrs-full:IncreaseDecreaseThroughTreasuryShareTransactions"}]
["/*",null,{"$f":"'610000 - Est. Camb. Patrimonio'!$E$30","v":"Incrementos (disminuciones) por cambios las participaciones en la propiedad de subsidiarias que no dan lugar a pérdida de control, patrimonio"},{"$f":"'610000 - Est. Camb. Patrimonio'!$D$30","v":"ifrs-full:IncreaseDecreaseThroughChangesInOwnershipInterestsInSubsidiariesThatDoNotResultInLossOfControl"}]
["/*",null,{"$f":"'610000 - Est. Camb. Patrimonio'!$E$31","v":"Incrementos (disminuciones) por transacciones con pagos basados en acciones, patrimonio"},{"$f":"'610000 - Est. Camb. Patrimonio'!$D$31","v":"ifrs-full:IncreaseDecreaseThroughSharebasedPaymentTransactions"}]
["",null,{"$f":"'610000 - Est. Camb. Patrimonio'!$E$32","v":"Total incremento (disminución) en el patrimonio"},{"$f":"'610000 - Est. Camb. Patrimonio'!$D$32","v":"ifrs-full:ChangesInEquity"},0,"peso",{"$f":"'610000 - Est. Camb. Patrimonio'!$I$32","v":0},0,"http://www.xbrl.org/scheme/companyName",{"$f":"Periodos!$C$3","v":"2023-01-01"},{"$f":"Periodos!$C$4","v":"2023-12-31"},{"$f":"'610000 - Est. Camb. Patrimonio'!$E$15","v":"ifrs-full:ComponentsOfEquityAxis"},{"$f":"'610000 - Est. Camb. Patrimonio'!$I$14","v":"ifrs-full:OtherEquityInterestMember"}]
["",null,{"$f":"'610000 - Est. Camb. Patrimonio'!$E$33","v":"Patrimonio al final del periodo"},{"$f":"'610000 - Est. Camb. Patrimonio'!$D$33","v":"ifrs-full:Equity"},0,"peso",{"$f":"'610000 - Est. Camb. Patrimonio'!$I$33","v":0},0,"http://www.xbrl.org/scheme/companyName",null,{"$f":"Periodos!$C$4","v":"2023-12-31"},{"$f":"'610000 - Est. Camb. Patrimonio'!$E$15","v":"ifrs-full:ComponentsOfEquityAxis"},{"$f":"'610000 - Est. Camb. Patrimonio'!$I$14","v":"ifrs-full:OtherEquityInterestMember"}]
["/*",null,"--05--"]
["/*",null,{"$f":"'610000 - Est. Camb. Patrimonio'!$E$16","v":"Estado de cambios en el patrimonio [resumen]"},{"$f":"'610000 - Est. Camb. Patrimonio'!$D$16","v":"ifrs-full:StatementOfChangesInEquityAbstract"}]
["/*",null,{"$f":"'610000 - Est. Camb. Patrimonio'!$E$17","v":"Estado de cambios en el patrimonio [partidas de los estados financieros]"},{"$f":"'610000 - Est. Camb. Patrimonio'!$D$17","v":"ifrs-full:StatementOfChangesInEquityLineItems"}]
["/*",null,{"$f":"'610000 - Est. Camb. Patrimonio'!$E$18","v":"Patrimonio al comienzo del periodo"},{"$f":"'610000 - Est. Camb. Patrimonio'!$D$18","v":"ifrs-full:Equity"}]
[{"$f":"IF(G7584=\"\",\"/*\",\"\")","v":"/*"},null,{"$f":"'610000 - Est. Camb. Patrimonio'!$E$19","v":"Cambios en el patrimonio [resumen]"},{"$f":"'610000 - Est. Camb. Patrimonio'!$D$19","v":"ifrs-full:ChangesInEquityAbstract"}]
["/*",null,{"$f":"'610000 - Est. Camb. Patrimonio'!$E$20","v":"Resultado integral [resumen]"},{"$f":"'610000 - Est. Camb. Patrimonio'!$D$20","v":"ifrs-full:ComprehensiveIncomeAbstract"}]
["/*",null,{"$f":"'610000 - Est. Camb. Patrimonio'!$E$21","v":"Ganancia (pérdida)"},{"$f":"'610000 - Est. Camb. Patrimonio'!$D$21","v":"ifrs-full:ProfitLoss"}]
["/*",null,{"$f":"'610000 - Est. Camb. Patrimonio'!$E$22","v":"Otro resultado integral"},{"$f":"'610000 - Est. Camb. Patrimonio'!$D$22","v":"ifrs-full:OtherComprehensiveIncome"}]
["",null,{"$f":"'610000 - Est. Camb. Patrimonio'!$E$23","v":"Resultado integral total"},{"$f":"'610000 - Est. Camb. Patrimonio'!$D$23","v":"ifrs-full:ComprehensiveIncome"},0,"peso",{"$f":"'610000 - Est. Camb. Patrimonio'!$J$23","v":0},0,"http://www.xbrl.org/scheme/companyName",{"$f":"Periodos!$C$3","v":"2023-01-01"},{"$f":"Periodos!$C$4","v":"2023-12-31"},{"$f":"'610000 - Est. Camb. Patrimonio'!$E$15","v":"ifrs-full:ComponentsOfEquityAxis"},{"$f":"'610000 - Est. Camb. Patrimonio'!$J$14","v":"co-svsp-core:ReservaLegalMiembro"}]
["/*",null,{"$f":"'610000 - Est. Camb. Patrimonio'!$E$24","v":"Emisión de patrimonio"},{"$f":"'610000 - Est. Camb. Patrimonio'!$D$24","v":"ifrs-full:IssueOfEquity"}]
["/*",null,{"$f":"'610000 - Est. Camb. Patrimonio'!$E$25","v":"Dividendos reconocidos como distribuciones a los propietarios"},{"$f":"'610000 - Est. Camb. Patrimonio'!$D$25","v":"ifrs-full:DividendsPaid"}]
["/*",null,{"$f":"'610000 - Est. Camb. Patrimonio'!$E$26","v":"Incrementos por otras aportaciones de los propietarios, patrimonio"},{"$f":"'610000 - Est. Camb. Patrimonio'!$D$26","v":"ifrs-full:IncreaseDecreaseThroughOtherContributionsByOwners"}]
["/*",null,{"$f":"'610000 - Est. Camb. Patrimonio'!$E$27","v":"Disminución por otras distribuciones a los propietarios, patrimonio"},{"$f":"'610000 - Est. Camb. Patrimonio'!$D$27","v":"ifrs-full:IncreaseDecreaseThroughOtherDistributionsToOwners"}]
["/*",null,{"$f":"'610000 - Est. Camb. Patrimonio'!$E$28","v":"Incrementos (disminuciones) por otros cambios, patrimonio"},{"$f":"'610000 - Est. Camb. Patrimonio'!$D$28","v":"ifrs-full:IncreaseDecreaseThroughTransfersAndOtherChangesEquity"}]
["/*",null,{"$f":"'610000 - Est. Camb. Patrimonio'!$E$29","v":"Incrementos (disminuciones) por transacciones con acciones propias, patrimonio"},{"$f":"'610000 - Est. Camb. Patrimonio'!$D$29","v":"ifrs-full:IncreaseDecreaseThroughTreasuryShareTransactions"}]
["/*",null,{"$f":"'610000 - Est. Camb. Patrimonio'!$E$30","v":"Incrementos (disminuciones) por cambios las participaciones en la propiedad de subsidiarias que no dan lugar a pérdida de control, patrimonio"},{"$f":"'610000 - Est. Camb. Patrimonio'!$D$30","v":"ifrs-full:IncreaseDecreaseThroughChangesInOwnershipInterestsInSubsidiariesThatDoNotResultInLossOfControl"}]
["/*",null,{"$f":"'610000 - Est. Camb. Patrimonio'!$E$31","v":"Incrementos (disminuciones) por transacciones con pagos basados en acciones, patrimonio"},{"$f":"'610000 - Est. Camb. Patrimonio'!$D$31","v":"ifrs-full:IncreaseDecreaseThroughSharebasedPaymentTransactions"}]
["",null,{"$f":"'610000 - Est. Camb. Patrimonio'!$E$32","v":"Total incremento (disminución) en el patrimonio"},{"$f":"'610000 - Est. Camb. Patrimonio'!$D$32","v":"ifrs-full:ChangesInEquity"},0,"peso",{"$f":"'610000 - Est. Camb. Patrimonio'!$J$32","v":0},0,"http://www.xbrl.org/scheme/companyName",{"$f":"Periodos!$C$3","v":"2023-01-01"},{"$f":"Periodos!$C$4","v":"2023-12-31"},{"$f":"'610000 - Est. Camb. Patrimonio'!$E$15","v":"ifrs-full:ComponentsOfEquityAxis"},{"$f":"'610000 - Est. Camb. Patrimonio'!$J$14","v":"co-svsp-core:ReservaLegalMiembro"}]
["",null,{"$f":"'610000 - Est. Camb. Patrimonio'!$E$33","v":"Patrimonio al final del periodo"},{"$f":"'610000 - Est. Camb. Patrimonio'!$D$33","v":"ifrs-full:Equity"},0,"peso",{"$f":"'610000 - Est. Camb. Patrimonio'!$J$33","v":0},0,"http://www.xbrl.org/scheme/companyName",null,{"$f":"Periodos!$C$4","v":"2023-12-31"},{"$f":"'610000 - Est. Camb. Patrimonio'!$E$15","v":"ifrs-full:ComponentsOfEquityAxis"},{"$f":"'610000 - Est. Camb. Patrimonio'!$J$14","v":"co-svsp-core:ReservaLegalMiembro"}]
["/*",null,"--06--"]
["/*",null,{"$f":"'610000 - Est. Camb. Patrimonio'!$E$16","v":"Estado de cambios en el patrimonio [resumen]"},{"$f":"'610000 - Est. Camb. Patrimonio'!$D$16","v":"ifrs-full:StatementOfChangesInEquityAbstract"}]
["/*",null,{"$f":"'610000 - Est. Camb. Patrimonio'!$E$17","v":"Estado de cambios en el patrimonio [partidas de los estados financieros]"},{"$f":"'610000 - Est. Camb. Patrimonio'!$D$17","v":"ifrs-full:StatementOfChangesInEquityLineItems"}]
["/*",null,{"$f":"'610000 - Est. Camb. Patrimonio'!$E$18","v":"Patrimonio al comienzo del periodo"},{"$f":"'610000 - Est. Camb. Patrimonio'!$D$18","v":"ifrs-full:Equity"}]
["/*",null,{"$f":"'610000 - Est. Camb. Patrimonio'!$E$19","v":"Cambios en el patrimonio [resumen]"},{"$f":"'610000 - Est. Camb. Patrimonio'!$D$19","v":"ifrs-full:ChangesInEquityAbstract"}]
["/*",null,{"$f":"'610000 - Est. Camb. Patrimonio'!$E$20","v":"Resultado integral [resumen]"},{"$f":"'610000 - Est. Camb. Patrimonio'!$D$20","v":"ifrs-full:ComprehensiveIncomeAbstract"}]
["/*",null,{"$f":"'610000 - Est. Camb. Patrimonio'!$E$21","v":"Ganancia (pérdida)"},{"$f":"'610000 - Est. Camb. Patrimonio'!$D$21","v":"ifrs-full:ProfitLoss"}]
["/*",null,{"$f":"'610000 - Est. Camb. Patrimonio'!$E$22","v":"Otro resultado integral"},{"$f":"'610000 - Est. Camb. Patrimonio'!$D$22","v":"ifrs-full:OtherComprehensiveIncome"}]
["",null,{"$f":"'610000 - Est. Camb. Patrimonio'!$E$23","v":"Resultado integral total"},{"$f":"'610000 - Est. Camb. Patrimonio'!$D$23","v":"ifrs-full:ComprehensiveIncome"},0,"peso",{"$f":"'610000 - Est. Camb. Patrimonio'!$K$23","v":0},0,"http://www.xbrl.org/scheme/companyName",{"$f":"Periodos!$C$3","v":"2023-01-01"},{"$f":"Periodos!$C$4","v":"2023-12-31"},{"$f":"'610000 - Est. Camb. Patrimonio'!$E$15","v":"ifrs-full:ComponentsOfEquityAxis"},{"$f":"'610000 - Est. Camb. Patrimonio'!$K$14","v":"co-svsp-core:ReservaEstatutariaMiembro"}]
["/*",null,{"$f":"'610000 - Est. Camb. Patrimonio'!$E$24","v":"Emisión de patrimonio"},{"$f":"'610000 - Est. Camb. Patrimonio'!$D$24","v":"ifrs-full:IssueOfEquity"}]
["/*",null,{"$f":"'610000 - Est. Camb. Patrimonio'!$E$25","v":"Dividendos reconocidos como distribuciones a los propietarios"},{"$f":"'610000 - Est. Camb. Patrimonio'!$D$25","v":"ifrs-full:DividendsPaid"}]
["/*",null,{"$f":"'610000 - Est. Camb. Patrimonio'!$E$26","v":"Incrementos por otras aportaciones de los propietarios, patrimonio"},{"$f":"'610000 - Est. Camb. Patrimonio'!$D$26","v":"ifrs-full:IncreaseDecreaseThroughOtherContributionsByOwners"}]
["/*",null,{"$f":"'610000 - Est. Camb. Patrimonio'!$E$27","v":"Disminución por otras distribuciones a los propietarios, patrimonio"},{"$f":"'610000 - Est. Camb. Patrimonio'!$D$27","v":"ifrs-full:IncreaseDecreaseThroughOtherDistributionsToOwners"}]
["/*",null,{"$f":"'610000 - Est. Camb. Patrimonio'!$E$28","v":"Incrementos (disminuciones) por otros cambios, patrimonio"},{"$f":"'610000 - Est. Camb. Patrimonio'!$D$28","v":"ifrs-full:IncreaseDecreaseThroughTransfersAndOtherChangesEquity"}]
["/*",null,{"$f":"'610000 - Est. Camb. Patrimonio'!$E$29","v":"Incrementos (disminuciones) por transacciones con acciones propias, patrimonio"},{"$f":"'610000 - Est. Camb. Patrimonio'!$D$29","v":"ifrs-full:IncreaseDecreaseThroughTreasuryShareTransactions"}]
["/*",null,{"$f":"'610000 - Est. Camb. Patrimonio'!$E$30","v":"Incrementos (disminuciones) por cambios las participaciones en la propiedad de subsidiarias que no dan lugar a pérdida de control, patrimonio"},{"$f":"'610000 - Est. Camb. Patrimonio'!$D$30","v":"ifrs-full:IncreaseDecreaseThroughChangesInOwnershipInterestsInSubsidiariesThatDoNotResultInLossOfControl"}]
["/*",null,{"$f":"'610000 - Est. Camb. Patrimonio'!$E$31","v":"Incrementos (disminuciones) por transacciones con pagos basados en acciones, patrimonio"},{"$f":"'610000 - Est. Camb. Patrimonio'!$D$31","v":"ifrs-full:IncreaseDecreaseThroughSharebasedPaymentTransactions"}]
["",null,{"$f":"'610000 - Est. Camb. Patrimonio'!$E$32","v":"Total incremento (disminución) en el patrimonio"},{"$f":"'610000 - Est. Camb. Patrimonio'!$D$32","v":"ifrs-full:ChangesInEquity"},0,"peso",{"$f":"'610000 - Est. Camb. Patrimonio'!$K$32","v":0},0,"http://www.xbrl.org/scheme/companyName",{"$f":"Periodos!$C$3","v":"2023-01-01"},{"$f":"Periodos!$C$4","v":"2023-12-31"},{"$f":"'610000 - Est. Camb. Patrimonio'!$E$15","v":"ifrs-full:ComponentsOfEquityAxis"},{"$f":"'610000 - Est. Camb. Patrimonio'!$K$14","v":"co-svsp-core:ReservaEstatutariaMiembro"}]
["",null,{"$f":"'610000 - Est. Camb. Patrimonio'!$E$33","v":"Patrimonio al final del periodo"},{"$f":"'610000 - Est. Camb. Patrimonio'!$D$33","v":"ifrs-full:Equity"},0,"peso",{"$f":"'610000 - Est. Camb. Patrimonio'!$K$33","v":0},0,"http://www.xbrl.org/scheme/companyName",null,{"$f":"Periodos!$C$4","v":"2023-12-31"},{"$f":"'610000 - Est. Camb. Patrimonio'!$E$15","v":"ifrs-full:ComponentsOfEquityAxis"},{"$f":"'610000 - Est. Camb. Patrimonio'!$K$14","v":"co-svsp-core:ReservaEstatutariaMiembro"}]
["/*",null,"--07--"]
["/*",null,{"$f":"'610000 - Est. Camb. Patrimonio'!$E$16","v":"Estado de cambios en el patrimonio [resumen]"},{"$f":"'610000 - Est. Camb. Patrimonio'!$D$16","v":"ifrs-full:StatementOfChangesInEquityAbstract"}]
["/*",null,{"$f":"'610000 - Est. Camb. Patrimonio'!$E$17","v":"Estado de cambios en el patrimonio [partidas de los estados financieros]"},{"$f":"'610000 - Est. Camb. Patrimonio'!$D$17","v":"ifrs-full:StatementOfChangesInEquityLineItems"}]
["/*",null,{"$f":"'610000 - Est. Camb. Patrimonio'!$E$18","v":"Patrimonio al comienzo del periodo"},{"$f":"'610000 - Est. Camb. Patrimonio'!$D$18","v":"ifrs-full:Equity"}]
["/*",null,{"$f":"'610000 - Est. Camb. Patrimonio'!$E$19","v":"Cambios en el patrimonio [resumen]"},{"$f":"'610000 - Est. Camb. Patrimonio'!$D$19","v":"ifrs-full:ChangesInEquityAbstract"}]
["/*",null,{"$f":"'610000 - Est. Camb. Patrimonio'!$E$20","v":"Resultado integral [resumen]"},{"$f":"'610000 - Est. Camb. Patrimonio'!$D$20","v":"ifrs-full:ComprehensiveIncomeAbstract"}]
["/*",null,{"$f":"'610000 - Est. Camb. Patrimonio'!$E$21","v":"Ganancia (pérdida)"},{"$f":"'610000 - Est. Camb. Patrimonio'!$D$21","v":"ifrs-full:ProfitLoss"}]
["/*",null,{"$f":"'610000 - Est. Camb. Patrimonio'!$E$22","v":"Otro resultado integral"},{"$f":"'610000 - Est. Camb. Patrimonio'!$D$22","v":"ifrs-full:OtherComprehensiveIncome"}]
["",null,{"$f":"'610000 - Est. Camb. Patrimonio'!$E$23","v":"Resultado integral total"},{"$f":"'610000 - Est. Camb. Patrimonio'!$D$23","v":"ifrs-full:ComprehensiveIncome"},0,"peso",{"$f":"'610000 - Est. Camb. Patrimonio'!$L$23","v":0},0,"http://www.xbrl.org/scheme/companyName",{"$f":"Periodos!$C$3","v":"2023-01-01"},{"$f":"Periodos!$C$4","v":"2023-12-31"},{"$f":"'610000 - Est. Camb. Patrimonio'!$E$15","v":"ifrs-full:ComponentsOfEquityAxis"},{"$f":"'610000 - Est. Camb. Patrimonio'!$L$14","v":"ifrs-full:RevaluationSurplusMember"}]
["/*",null,{"$f":"'610000 - Est. Camb. Patrimonio'!$E$24","v":"Emisión de patrimonio"},{"$f":"'610000 - Est. Camb. Patrimonio'!$D$24","v":"ifrs-full:IssueOfEquity"}]
["/*",null,{"$f":"'610000 - Est. Camb. Patrimonio'!$E$25","v":"Dividendos reconocidos como distribuciones a los propietarios"},{"$f":"'610000 - Est. Camb. Patrimonio'!$D$25","v":"ifrs-full:DividendsPaid"}]
["/*",null,{"$f":"'610000 - Est. Camb. Patrimonio'!$E$26","v":"Incrementos por otras aportaciones de los propietarios, patrimonio"},{"$f":"'610000 - Est. Camb. Patrimonio'!$D$26","v":"ifrs-full:IncreaseDecreaseThroughOtherContributionsByOwners"}]
["/*",null,{"$f":"'610000 - Est. Camb. Patrimonio'!$E$27","v":"Disminución por otras distribuciones a los propietarios, patrimonio"},{"$f":"'610000 - Est. Camb. Patrimonio'!$D$27","v":"ifrs-full:IncreaseDecreaseThroughOtherDistributionsToOwners"}]
["/*",null,{"$f":"'610000 - Est. Camb. Patrimonio'!$E$28","v":"Incrementos (disminuciones) por otros cambios, patrimonio"},{"$f":"'610000 - Est. Camb. Patrimonio'!$D$28","v":"ifrs-full:IncreaseDecreaseThroughTransfersAndOtherChangesEquity"}]
["/*",null,{"$f":"'610000 - Est. Camb. Patrimonio'!$E$29","v":"Incrementos (disminuciones) por transacciones con acciones propias, patrimonio"},{"$f":"'610000 - Est. Camb. Patrimonio'!$D$29","v":"ifrs-full:IncreaseDecreaseThroughTreasuryShareTransactions"}]
["/*",null,{"$f":"'610000 - Est. Camb. Patrimonio'!$E$30","v":"Incrementos (disminuciones) por cambios las participaciones en la propiedad de subsidiarias que no dan lugar a pérdida de control, patrimonio"},{"$f":"'610000 - Est. Camb. Patrimonio'!$D$30","v":"ifrs-full:IncreaseDecreaseThroughChangesInOwnershipInterestsInSubsidiariesThatDoNotResultInLossOfControl"}]
["/*",null,{"$f":"'610000 - Est. Camb. Patrimonio'!$E$31","v":"Incrementos (disminuciones) por transacciones con pagos basados en acciones, patrimonio"},{"$f":"'610000 - Est. Camb. Patrimonio'!$D$31","v":"ifrs-full:IncreaseDecreaseThroughSharebasedPaymentTransactions"}]
["",null,{"$f":"'610000 - Est. Camb. Patrimonio'!$E$32","v":"Total incremento (disminución) en el patrimonio"},{"$f":"'610000 - Est. Camb. Patrimonio'!$D$32","v":"ifrs-full:ChangesInEquity"},0,"peso",{"$f":"'610000 - Est. Camb. Patrimonio'!$L$32","v":0},0,"http://www.xbrl.org/scheme/companyName",{"$f":"Periodos!$C$3","v":"2023-01-01"},{"$f":"Periodos!$C$4","v":"2023-12-31"},{"$f":"'610000 - Est. Camb. Patrimonio'!$E$15","v":"ifrs-full:ComponentsOfEquityAxis"},{"$f":"'610000 - Est. Camb. Patrimonio'!$L$14","v":"ifrs-full:RevaluationSurplusMember"}]
["",null,{"$f":"'610000 - Est. Camb. Patrimonio'!$E$33","v":"Patrimonio al final del periodo"},{"$f":"'610000 - Est. Camb. Patrimonio'!$D$33","v":"ifrs-full:Equity"},0,"peso",{"$f":"'610000 - Est. Camb. Patrimonio'!$L$33","v":0},0,"http://www.xbrl.org/scheme/companyName",null,{"$f":"Periodos!$C$4","v":"2023-12-31"},{"$f":"'610000 - Est. Camb. Patrimonio'!$E$15","v":"ifrs-full:ComponentsOfEquityAxis"},{"$f":"'610000 - Est. Camb. Patrimonio'!$L$14","v":"ifrs-full:RevaluationSurplusMember"}]
["/*",null,"--08--"]
["/*",null,{"$f":"'610000 - Est. Camb. Patrimonio'!$E$16","v":"Estado de cambios en el patrimonio [resumen]"},{"$f":"'610000 - Est. Camb. Patrimonio'!$D$16","v":"ifrs-full:StatementOfChangesInEquityAbstract"}]
["/*",null,{"$f":"'610000 - Est. Camb. Patrimonio'!$E$17","v":"Estado de cambios en el patrimonio [partidas de los estados financieros]"},{"$f":"'610000 - Est. Camb. Patrimonio'!$D$17","v":"ifrs-full:StatementOfChangesInEquityLineItems"}]
["/*",null,{"$f":"'610000 - Est. Camb. Patrimonio'!$E$18","v":"Patrimonio al comienzo del periodo"},{"$f":"'610000 - Est. Camb. Patrimonio'!$D$18","v":"ifrs-full:Equity"}]
["/*",null,{"$f":"'610000 - Est. Camb. Patrimonio'!$E$19","v":"Cambios en el patrimonio [resumen]"},{"$f":"'610000 - Est. Camb. Patrimonio'!$D$19","v":"ifrs-full:ChangesInEquityAbstract"}]
["/*",null,{"$f":"'610000 - Est. Camb. Patrimonio'!$E$20","v":"Resultado integral [resumen]"},{"$f":"'610000 - Est. Camb. Patrimonio'!$D$20","v":"ifrs-full:ComprehensiveIncomeAbstract"}]
["/*",null,{"$f":"'610000 - Est. Camb. Patrimonio'!$E$21","v":"Ganancia (pérdida)"},{"$f":"'610000 - Est. Camb. Patrimonio'!$D$21","v":"ifrs-full:ProfitLoss"}]
["/*",null,{"$f":"'610000 - Est. Camb. Patrimonio'!$E$22","v":"Otro resultado integral"},{"$f":"'610000 - Est. Camb. Patrimonio'!$D$22","v":"ifrs-full:OtherComprehensiveIncome"}]
["",null,{"$f":"'610000 - Est. Camb. Patrimonio'!$E$23","v":"Resultado integral total"},{"$f":"'610000 - Est. Camb. Patrimonio'!$D$23","v":"ifrs-full:ComprehensiveIncome"},0,"peso",{"$f":"'610000 - Est. Camb. Patrimonio'!$M$23","v":0},0,"http://www.xbrl.org/scheme/companyName",{"$f":"Periodos!$C$3","v":"2023-01-01"},{"$f":"Periodos!$C$4","v":"2023-12-31"},{"$f":"'610000 - Est. Camb. Patrimonio'!$E$15","v":"ifrs-full:ComponentsOfEquityAxis"},{"$f":"'610000 - Est. Camb. Patrimonio'!$M$14","v":"ifrs-full:ReserveOfExchangeDifferencesOnTranslationMember"}]
["/*",null,{"$f":"'610000 - Est. Camb. Patrimonio'!$E$24","v":"Emisión de patrimonio"},{"$f":"'610000 - Est. Camb. Patrimonio'!$D$24","v":"ifrs-full:IssueOfEquity"}]
["/*",null,{"$f":"'610000 - Est. Camb. Patrimonio'!$E$25","v":"Dividendos reconocidos como distribuciones a los propietarios"},{"$f":"'610000 - Est. Camb. Patrimonio'!$D$25","v":"ifrs-full:DividendsPaid"}]
[{"$f":"IF(G7648=\"\",\"/*\",\"\")","v":"/*"},null,{"$f":"'610000 - Est. Camb. Patrimonio'!$E$26","v":"Incrementos por otras aportaciones de los propietarios, patrimonio"},{"$f":"'610000 - Est. Camb. Patrimonio'!$D$26","v":"ifrs-full:IncreaseDecreaseThroughOtherContributionsByOwners"}]
["/*",null,{"$f":"'610000 - Est. Camb. Patrimonio'!$E$27","v":"Disminución por otras distribuciones a los propietarios, patrimonio"},{"$f":"'610000 - Est. Camb. Patrimonio'!$D$27","v":"ifrs-full:IncreaseDecreaseThroughOtherDistributionsToOwners"}]
["/*",null,{"$f":"'610000 - Est. Camb. Patrimonio'!$E$28","v":"Incrementos (disminuciones) por otros cambios, patrimonio"},{"$f":"'610000 - Est. Camb. Patrimonio'!$D$28","v":"ifrs-full:IncreaseDecreaseThroughTransfersAndOtherChangesEquity"}]
["/*",null,{"$f":"'610000 - Est. Camb. Patrimonio'!$E$29","v":"Incrementos (disminuciones) por transacciones con acciones propias, patrimonio"},{"$f":"'610000 - Est. Camb. Patrimonio'!$D$29","v":"ifrs-full:IncreaseDecreaseThroughTreasuryShareTransactions"}]
["/*",null,{"$f":"'610000 - Est. Camb. Patrimonio'!$E$30","v":"Incrementos (disminuciones) por cambios las participaciones en la propiedad de subsidiarias que no dan lugar a pérdida de control, patrimonio"},{"$f":"'610000 - Est. Camb. Patrimonio'!$D$30","v":"ifrs-full:IncreaseDecreaseThroughChangesInOwnershipInterestsInSubsidiariesThatDoNotResultInLossOfControl"}]
["/*",null,{"$f":"'610000 - Est. Camb. Patrimonio'!$E$31","v":"Incrementos (disminuciones) por transacciones con pagos basados en acciones, patrimonio"},{"$f":"'610000 - Est. Camb. Patrimonio'!$D$31","v":"ifrs-full:IncreaseDecreaseThroughSharebasedPaymentTransactions"}]
["",null,{"$f":"'610000 - Est. Camb. Patrimonio'!$E$32","v":"Total incremento (disminución) en el patrimonio"},{"$f":"'610000 - Est. Camb. Patrimonio'!$D$32","v":"ifrs-full:ChangesInEquity"},0,"peso",{"$f":"'610000 - Est. Camb. Patrimonio'!$M$32","v":0},0,"http://www.xbrl.org/scheme/companyName",{"$f":"Periodos!$C$3","v":"2023-01-01"},{"$f":"Periodos!$C$4","v":"2023-12-31"},{"$f":"'610000 - Est. Camb. Patrimonio'!$E$15","v":"ifrs-full:ComponentsOfEquityAxis"},{"$f":"'610000 - Est. Camb. Patrimonio'!$M$14","v":"ifrs-full:ReserveOfExchangeDifferencesOnTranslationMember"}]
["",null,{"$f":"'610000 - Est. Camb. Patrimonio'!$E$33","v":"Patrimonio al final del periodo"},{"$f":"'610000 - Est. Camb. Patrimonio'!$D$33","v":"ifrs-full:Equity"},0,"peso",{"$f":"'610000 - Est. Camb. Patrimonio'!$M$33","v":0},0,"http://www.xbrl.org/scheme/companyName",null,{"$f":"Periodos!$C$4","v":"2023-12-31"},{"$f":"'610000 - Est. Camb. Patrimonio'!$E$15","v":"ifrs-full:ComponentsOfEquityAxis"},{"$f":"'610000 - Est. Camb. Patrimonio'!$M$14","v":"ifrs-full:ReserveOfExchangeDifferencesOnTranslationMember"}]
["/*",null,"--09--"]
["/*",null,{"$f":"'610000 - Est. Camb. Patrimonio'!$E$16","v":"Estado de cambios en el patrimonio [resumen]"},{"$f":"'610000 - Est. Camb. Patrimonio'!$D$16","v":"ifrs-full:StatementOfChangesInEquityAbstract"}]
["/*",null,{"$f":"'610000 - Est. Camb. Patrimonio'!$E$17","v":"Estado de cambios en el patrimonio [partidas de los estados financieros]"},{"$f":"'610000 - Est. Camb. Patrimonio'!$D$17","v":"ifrs-full:StatementOfChangesInEquityLineItems"}]
["/*",null,{"$f":"'610000 - Est. Camb. Patrimonio'!$E$18","v":"Patrimonio al comienzo del periodo"},{"$f":"'610000 - Est. Camb. Patrimonio'!$D$18","v":"ifrs-full:Equity"}]
["/*",null,{"$f":"'610000 - Est. Camb. Patrimonio'!$E$19","v":"Cambios en el patrimonio [resumen]"},{"$f":"'610000 - Est. Camb. Patrimonio'!$D$19","v":"ifrs-full:ChangesInEquityAbstract"}]
["/*",null,{"$f":"'610000 - Est. Camb. Patrimonio'!$E$20","v":"Resultado integral [resumen]"},{"$f":"'610000 - Est. Camb. Patrimonio'!$D$20","v":"ifrs-full:ComprehensiveIncomeAbstract"}]
["/*",null,{"$f":"'610000 - Est. Camb. Patrimonio'!$E$21","v":"Ganancia (pérdida)"},{"$f":"'610000 - Est. Camb. Patrimonio'!$D$21","v":"ifrs-full:ProfitLoss"}]
["/*",null,{"$f":"'610000 - Est. Camb. Patrimonio'!$E$22","v":"Otro resultado integral"},{"$f":"'610000 - Est. Camb. Patrimonio'!$D$22","v":"ifrs-full:OtherComprehensiveIncome"}]
["",null,{"$f":"'610000 - Est. Camb. Patrimonio'!$E$23","v":"Resultado integral total"},{"$f":"'610000 - Est. Camb. Patrimonio'!$D$23","v":"ifrs-full:ComprehensiveIncome"},0,"peso",{"$f":"'610000 - Est. Camb. Patrimonio'!$N$23","v":0},0,"http://www.xbrl.org/scheme/companyName",{"$f":"Periodos!$C$3","v":"2023-01-01"},{"$f":"Periodos!$C$4","v":"2023-12-31"},{"$f":"'610000 - Est. Camb. Patrimonio'!$E$15","v":"ifrs-full:ComponentsOfEquityAxis"},{"$f":"'610000 - Est. Camb. Patrimonio'!$N$14","v":"ifrs-full:ReserveOfCashFlowHedgesMember"}]
["/*",null,{"$f":"'610000 - Est. Camb. Patrimonio'!$E$24","v":"Emisión de patrimonio"},{"$f":"'610000 - Est. Camb. Patrimonio'!$D$24","v":"ifrs-full:IssueOfEquity"}]
["/*",null,{"$f":"'610000 - Est. Camb. Patrimonio'!$E$25","v":"Dividendos reconocidos como distribuciones a los propietarios"},{"$f":"'610000 - Est. Camb. Patrimonio'!$D$25","v":"ifrs-full:DividendsPaid"}]
["/*",null,{"$f":"'610000 - Est. Camb. Patrimonio'!$E$26","v":"Incrementos por otras aportaciones de los propietarios, patrimonio"},{"$f":"'610000 - Est. Camb. Patrimonio'!$D$26","v":"ifrs-full:IncreaseDecreaseThroughOtherContributionsByOwners"}]
["/*",null,{"$f":"'610000 - Est. Camb. Patrimonio'!$E$27","v":"Disminución por otras distribuciones a los propietarios, patrimonio"},{"$f":"'610000 - Est. Camb. Patrimonio'!$D$27","v":"ifrs-full:IncreaseDecreaseThroughOtherDistributionsToOwners"}]
["/*",null,{"$f":"'610000 - Est. Camb. Patrimonio'!$E$28","v":"Incrementos (disminuciones) por otros cambios, patrimonio"},{"$f":"'610000 - Est. Camb. Patrimonio'!$D$28","v":"ifrs-full:IncreaseDecreaseThroughTransfersAndOtherChangesEquity"}]
["/*",null,{"$f":"'610000 - Est. Camb. Patrimonio'!$E$29","v":"Incrementos (disminuciones) por transacciones con acciones propias, patrimonio"},{"$f":"'610000 - Est. Camb. Patrimonio'!$D$29","v":"ifrs-full:IncreaseDecreaseThroughTreasuryShareTransactions"}]
["/*",null,{"$f":"'610000 - Est. Camb. Patrimonio'!$E$30","v":"Incrementos (disminuciones) por cambios las participaciones en la propiedad de subsidiarias que no dan lugar a pérdida de control, patrimonio"},{"$f":"'610000 - Est. Camb. Patrimonio'!$D$30","v":"ifrs-full:IncreaseDecreaseThroughChangesInOwnershipInterestsInSubsidiariesThatDoNotResultInLossOfControl"}]
["/*",null,{"$f":"'610000 - Est. Camb. Patrimonio'!$E$31","v":"Incrementos (disminuciones) por transacciones con pagos basados en acciones, patrimonio"},{"$f":"'610000 - Est. Camb. Patrimonio'!$D$31","v":"ifrs-full:IncreaseDecreaseThroughSharebasedPaymentTransactions"}]
["",null,{"$f":"'610000 - Est. Camb. Patrimonio'!$E$32","v":"Total incremento (disminución) en el patrimonio"},{"$f":"'610000 - Est. Camb. Patrimonio'!$D$32","v":"ifrs-full:ChangesInEquity"},0,"peso",{"$f":"'610000 - Est. Camb. Patrimonio'!$N$32","v":0},0,"http://www.xbrl.org/scheme/companyName",{"$f":"Periodos!$C$3","v":"2023-01-01"},{"$f":"Periodos!$C$4","v":"2023-12-31"},{"$f":"'610000 - Est. Camb. Patrimonio'!$E$15","v":"ifrs-full:ComponentsOfEquityAxis"},{"$f":"'610000 - Est. Camb. Patrimonio'!$N$14","v":"ifrs-full:ReserveOfCashFlowHedgesMember"}]
["",null,{"$f":"'610000 - Est. Camb. Patrimonio'!$E$33","v":"Patrimonio al final del periodo"},{"$f":"'610000 - Est. Camb. Patrimonio'!$D$33","v":"ifrs-full:Equity"},0,"peso",{"$f":"'610000 - Est. Camb. Patrimonio'!$N$33","v":0},0,"http://www.xbrl.org/scheme/companyName",null,{"$f":"Periodos!$C$4","v":"2023-12-31"},{"$f":"'610000 - Est. Camb. Patrimonio'!$E$15","v":"ifrs-full:ComponentsOfEquityAxis"},{"$f":"'610000 - Est. Camb. Patrimonio'!$N$14","v":"ifrs-full:ReserveOfCashFlowHedgesMember"}]
["/*",null,"--10--"]
["/*",null,{"$f":"'610000 - Est. Camb. Patrimonio'!$E$16","v":"Estado de cambios en el patrimonio [resumen]"},{"$f":"'610000 - Est. Camb. Patrimonio'!$D$16","v":"ifrs-full:StatementOfChangesInEquityAbstract"}]
["/*",null,{"$f":"'610000 - Est. Camb. Patrimonio'!$E$17","v":"Estado de cambios en el patrimonio [partidas de los estados financieros]"},{"$f":"'610000 - Est. Camb. Patrimonio'!$D$17","v":"ifrs-full:StatementOfChangesInEquityLineItems"}]
["/*",null,{"$f":"'610000 - Est. Camb. Patrimonio'!$E$18","v":"Patrimonio al comienzo del periodo"},{"$f":"'610000 - Est. Camb. Patrimonio'!$D$18","v":"ifrs-full:Equity"}]
["/*",null,{"$f":"'610000 - Est. Camb. Patrimonio'!$E$19","v":"Cambios en el patrimonio [resumen]"},{"$f":"'610000 - Est. Camb. Patrimonio'!$D$19","v":"ifrs-full:ChangesInEquityAbstract"}]
["/*",null,{"$f":"'610000 - Est. Camb. Patrimonio'!$E$20","v":"Resultado integral [resumen]"},{"$f":"'610000 - Est. Camb. Patrimonio'!$D$20","v":"ifrs-full:ComprehensiveIncomeAbstract"}]
["/*",null,{"$f":"'610000 - Est. Camb. Patrimonio'!$E$21","v":"Ganancia (pérdida)"},{"$f":"'610000 - Est. Camb. Patrimonio'!$D$21","v":"ifrs-full:ProfitLoss"}]
["/*",null,{"$f":"'610000 - Est. Camb. Patrimonio'!$E$22","v":"Otro resultado integral"},{"$f":"'610000 - Est. Camb. Patrimonio'!$D$22","v":"ifrs-full:OtherComprehensiveIncome"}]
["",null,{"$f":"'610000 - Est. Camb. Patrimonio'!$E$23","v":"Resultado integral total"},{"$f":"'610000 - Est. Camb. Patrimonio'!$D$23","v":"ifrs-full:ComprehensiveIncome"},0,"peso",{"$f":"'610000 - Est. Camb. Patrimonio'!$O$23","v":0},0,"http://www.xbrl.org/scheme/companyName",{"$f":"Periodos!$C$3","v":"2023-01-01"},{"$f":"Periodos!$C$4","v":"2023-12-31"},{"$f":"'610000 - Est. Camb. Patrimonio'!$E$15","v":"ifrs-full:ComponentsOfEquityAxis"},{"$f":"'610000 - Est. Camb. Patrimonio'!$O$14","v":"ifrs-full:ReserveOfGainsAndLossesOnHedgingInstrumentsThatHedgeInvestmentsInEquityInstrumentsMember"}]
["/*",null,{"$f":"'610000 - Est. Camb. Patrimonio'!$E$24","v":"Emisión de patrimonio"},{"$f":"'610000 - Est. Camb. Patrimonio'!$D$24","v":"ifrs-full:IssueOfEquity"}]
["/*",null,{"$f":"'610000 - Est. Camb. Patrimonio'!$E$25","v":"Dividendos reconocidos como distribuciones a los propietarios"},{"$f":"'610000 - Est. Camb. Patrimonio'!$D$25","v":"ifrs-full:DividendsPaid"}]
["/*",null,{"$f":"'610000 - Est. Camb. Patrimonio'!$E$26","v":"Incrementos por otras aportaciones de los propietarios, patrimonio"},{"$f":"'610000 - Est. Camb. Patrimonio'!$D$26","v":"ifrs-full:IncreaseDecreaseThroughOtherContributionsByOwners"}]
["/*",null,{"$f":"'610000 - Est. Camb. Patrimonio'!$E$27","v":"Disminución por otras distribuciones a los propietarios, patrimonio"},{"$f":"'610000 - Est. Camb. Patrimonio'!$D$27","v":"ifrs-full:IncreaseDecreaseThroughOtherDistributionsToOwners"}]
["/*",null,{"$f":"'610000 - Est. Camb. Patrimonio'!$E$28","v":"Incrementos (disminuciones) por otros cambios, patrimonio"},{"$f":"'610000 - Est. Camb. Patrimonio'!$D$28","v":"ifrs-full:IncreaseDecreaseThroughTransfersAndOtherChangesEquity"}]
["/*",null,{"$f":"'610000 - Est. Camb. Patrimonio'!$E$29","v":"Incrementos (disminuciones) por transacciones con acciones propias, patrimonio"},{"$f":"'610000 - Est. Camb. Patrimonio'!$D$29","v":"ifrs-full:IncreaseDecreaseThroughTreasuryShareTransactions"}]
["/*",null,{"$f":"'610000 - Est. Camb. Patrimonio'!$E$30","v":"Incrementos (disminuciones) por cambios las participaciones en la propiedad de subsidiarias que no dan lugar a pérdida de control, patrimonio"},{"$f":"'610000 - Est. Camb. Patrimonio'!$D$30","v":"ifrs-full:IncreaseDecreaseThroughChangesInOwnershipInterestsInSubsidiariesThatDoNotResultInLossOfControl"}]
["/*",null,{"$f":"'610000 - Est. Camb. Patrimonio'!$E$31","v":"Incrementos (disminuciones) por transacciones con pagos basados en acciones, patrimonio"},{"$f":"'610000 - Est. Camb. Patrimonio'!$D$31","v":"ifrs-full:IncreaseDecreaseThroughSharebasedPaymentTransactions"}]
["",null,{"$f":"'610000 - Est. Camb. Patrimonio'!$E$32","v":"Total incremento (disminución) en el patrimonio"},{"$f":"'610000 - Est. Camb. Patrimonio'!$D$32","v":"ifrs-full:ChangesInEquity"},0,"peso",{"$f":"'610000 - Est. Camb. Patrimonio'!$O$32","v":0},0,"http://www.xbrl.org/scheme/companyName",{"$f":"Periodos!$C$3","v":"2023-01-01"},{"$f":"Periodos!$C$4","v":"2023-12-31"},{"$f":"'610000 - Est. Camb. Patrimonio'!$E$15","v":"ifrs-full:ComponentsOfEquityAxis"},{"$f":"'610000 - Est. Camb. Patrimonio'!$O$14","v":"ifrs-full:ReserveOfGainsAndLossesOnHedgingInstrumentsThatHedgeInvestmentsInEquityInstrumentsMember"}]
["",null,{"$f":"'610000 - Est. Camb. Patrimonio'!$E$33","v":"Patrimonio al final del periodo"},{"$f":"'610000 - Est. Camb. Patrimonio'!$D$33","v":"ifrs-full:Equity"},0,"peso",{"$f":"'610000 - Est. Camb. Patrimonio'!$O$33","v":0},0,"http://www.xbrl.org/scheme/companyName",null,{"$f":"Periodos!$C$4","v":"2023-12-31"},{"$f":"'610000 - Est. Camb. Patrimonio'!$E$15","v":"ifrs-full:ComponentsOfEquityAxis"},{"$f":"'610000 - Est. Camb. Patrimonio'!$O$14","v":"ifrs-full:ReserveOfGainsAndLossesOnHedgingInstrumentsThatHedgeInvestmentsInEquityInstrumentsMember"}]
["/*",null,"--11--"]
["/*",null,{"$f":"'610000 - Est. Camb. Patrimonio'!$E$16","v":"Estado de cambios en el patrimonio [resumen]"},{"$f":"'610000 - Est. Camb. Patrimonio'!$D$16","v":"ifrs-full:StatementOfChangesInEquityAbstract"}]
["/*",null,{"$f":"'610000 - Est. Camb. Patrimonio'!$E$17","v":"Estado de cambios en el patrimonio [partidas de los estados financieros]"},{"$f":"'610000 - Est. Camb. Patrimonio'!$D$17","v":"ifrs-full:StatementOfChangesInEquityLineItems"}]
["/*",null,{"$f":"'610000 - Est. Camb. Patrimonio'!$E$18","v":"Patrimonio al comienzo del periodo"},{"$f":"'610000 - Est. Camb. Patrimonio'!$D$18","v":"ifrs-full:Equity"}]
["/*",null,{"$f":"'610000 - Est. Camb. Patrimonio'!$E$19","v":"Cambios en el patrimonio [resumen]"},{"$f":"'610000 - Est. Camb. Patrimonio'!$D$19","v":"ifrs-full:ChangesInEquityAbstract"}]
["/*",null,{"$f":"'610000 - Est. Camb. Patrimonio'!$E$20","v":"Resultado integral [resumen]"},{"$f":"'610000 - Est. Camb. Patrimonio'!$D$20","v":"ifrs-full:ComprehensiveIncomeAbstract"}]
["/*",null,{"$f":"'610000 - Est. Camb. Patrimonio'!$E$21","v":"Ganancia (pérdida)"},{"$f":"'610000 - Est. Camb. Patrimonio'!$D$21","v":"ifrs-full:ProfitLoss"}]
["/*",null,{"$f":"'610000 - Est. Camb. Patrimonio'!$E$22","v":"Otro resultado integral"},{"$f":"'610000 - Est. Camb. Patrimonio'!$D$22","v":"ifrs-full:OtherComprehensiveIncome"}]
["",null,{"$f":"'610000 - Est. Camb. Patrimonio'!$E$23","v":"Resultado integral total"},{"$f":"'610000 - Est. Camb. Patrimonio'!$D$23","v":"ifrs-full:ComprehensiveIncome"},0,"peso",{"$f":"'610000 - Est. Camb. Patrimonio'!$P$23","v":0},0,"http://www.xbrl.org/scheme/companyName",{"$f":"Periodos!$C$3","v":"2023-01-01"},{"$f":"Periodos!$C$4","v":"2023-12-31"},{"$f":"'610000 - Est. Camb. Patrimonio'!$E$15","v":"ifrs-full:ComponentsOfEquityAxis"},{"$f":"'610000 - Est. Camb. Patrimonio'!$P$14","v":"ifrs-full:ReserveOfChangeInValueOfTimeValueOfOptionsMember"}]
["/*",null,{"$f":"'610000 - Est. Camb. Patrimonio'!$E$24","v":"Emisión de patrimonio"},{"$f":"'610000 - Est. Camb. Patrimonio'!$D$24","v":"ifrs-full:IssueOfEquity"}]
["/*",null,{"$f":"'610000 - Est. Camb. Patrimonio'!$E$25","v":"Dividendos reconocidos como distribuciones a los propietarios"},{"$f":"'610000 - Est. Camb. Patrimonio'!$D$25","v":"ifrs-full:DividendsPaid"}]
["/*",null,{"$f":"'610000 - Est. Camb. Patrimonio'!$E$26","v":"Incrementos por otras aportaciones de los propietarios, patrimonio"},{"$f":"'610000 - Est. Camb. Patrimonio'!$D$26","v":"ifrs-full:IncreaseDecreaseThroughOtherContributionsByOwners"}]
["/*",null,{"$f":"'610000 - Est. Camb. Patrimonio'!$E$27","v":"Disminución por otras distribuciones a los propietarios, patrimonio"},{"$f":"'610000 - Est. Camb. Patrimonio'!$D$27","v":"ifrs-full:IncreaseDecreaseThroughOtherDistributionsToOwners"}]
["/*",null,{"$f":"'610000 - Est. Camb. Patrimonio'!$E$28","v":"Incrementos (disminuciones) por otros cambios, patrimonio"},{"$f":"'610000 - Est. Camb. Patrimonio'!$D$28","v":"ifrs-full:IncreaseDecreaseThroughTransfersAndOtherChangesEquity"}]
["/*",null,{"$f":"'610000 - Est. Camb. Patrimonio'!$E$29","v":"Incrementos (disminuciones) por transacciones con acciones propias, patrimonio"},{"$f":"'610000 - Est. Camb. Patrimonio'!$D$29","v":"ifrs-full:IncreaseDecreaseThroughTreasuryShareTransactions"}]
["/*",null,{"$f":"'610000 - Est. Camb. Patrimonio'!$E$30","v":"Incrementos (disminuciones) por cambios las participaciones en la propiedad de subsidiarias que no dan lugar a pérdida de control, patrimonio"},{"$f":"'610000 - Est. Camb. Patrimonio'!$D$30","v":"ifrs-full:IncreaseDecreaseThroughChangesInOwnershipInterestsInSubsidiariesThatDoNotResultInLossOfControl"}]
["/*",null,{"$f":"'610000 - Est. Camb. Patrimonio'!$E$31","v":"Incrementos (disminuciones) por transacciones con pagos basados en acciones, patrimonio"},{"$f":"'610000 - Est. Camb. Patrimonio'!$D$31","v":"ifrs-full:IncreaseDecreaseThroughSharebasedPaymentTransactions"}]
["",null,{"$f":"'610000 - Est. Camb. Patrimonio'!$E$32","v":"Total incremento (disminución) en el patrimonio"},{"$f":"'610000 - Est. Camb. Patrimonio'!$D$32","v":"ifrs-full:ChangesInEquity"},0,"peso",{"$f":"'610000 - Est. Camb. Patrimonio'!$P$32","v":0},0,"http://www.xbrl.org/scheme/companyName",{"$f":"Periodos!$C$3","v":"2023-01-01"},{"$f":"Periodos!$C$4","v":"2023-12-31"},{"$f":"'610000 - Est. Camb. Patrimonio'!$E$15","v":"ifrs-full:ComponentsOfEquityAxis"},{"$f":"'610000 - Est. Camb. Patrimonio'!$P$14","v":"ifrs-full:ReserveOfChangeInValueOfTimeValueOfOptionsMember"}]
[{"$f":"IF(G7712=\"\",\"/*\",\"\")","v":""},null,{"$f":"'610000 - Est. Camb. Patrimonio'!$E$33","v":"Patrimonio al final del periodo"},{"$f":"'610000 - Est. Camb. Patrimonio'!$D$33","v":"ifrs-full:Equity"},0,"peso",{"$f":"'610000 - Est. Camb. Patrimonio'!$P$33","v":0},0,"http://www.xbrl.org/scheme/companyName",null,{"$f":"Periodos!$C$4","v":"2023-12-31"},{"$f":"'610000 - Est. Camb. Patrimonio'!$E$15","v":"ifrs-full:ComponentsOfEquityAxis"},{"$f":"'610000 - Est. Camb. Patrimonio'!$P$14","v":"ifrs-full:ReserveOfChangeInValueOfTimeValueOfOptionsMember"}]
["/*",null,"--12--"]
["/*",null,{"$f":"'610000 - Est. Camb. Patrimonio'!$E$16","v":"Estado de cambios en el patrimonio [resumen]"},{"$f":"'610000 - Est. Camb. Patrimonio'!$D$16","v":"ifrs-full:StatementOfChangesInEquityAbstract"}]
["/*",null,{"$f":"'610000 - Est. Camb. Patrimonio'!$E$17","v":"Estado de cambios en el patrimonio [partidas de los estados financieros]"},{"$f":"'610000 - Est. Camb. Patrimonio'!$D$17","v":"ifrs-full:StatementOfChangesInEquityLineItems"}]
["/*",null,{"$f":"'610000 - Est. Camb. Patrimonio'!$E$18","v":"Patrimonio al comienzo del periodo"},{"$f":"'610000 - Est. Camb. Patrimonio'!$D$18","v":"ifrs-full:Equity"}]
["/*",null,{"$f":"'610000 - Est. Camb. Patrimonio'!$E$19","v":"Cambios en el patrimonio [resumen]"},{"$f":"'610000 - Est. Camb. Patrimonio'!$D$19","v":"ifrs-full:ChangesInEquityAbstract"}]
["/*",null,{"$f":"'610000 - Est. Camb. Patrimonio'!$E$20","v":"Resultado integral [resumen]"},{"$f":"'610000 - Est. Camb. Patrimonio'!$D$20","v":"ifrs-full:ComprehensiveIncomeAbstract"}]
["/*",null,{"$f":"'610000 - Est. Camb. Patrimonio'!$E$21","v":"Ganancia (pérdida)"},{"$f":"'610000 - Est. Camb. Patrimonio'!$D$21","v":"ifrs-full:ProfitLoss"}]
["/*",null,{"$f":"'610000 - Est. Camb. Patrimonio'!$E$22","v":"Otro resultado integral"},{"$f":"'610000 - Est. Camb. Patrimonio'!$D$22","v":"ifrs-full:OtherComprehensiveIncome"}]
["",null,{"$f":"'610000 - Est. Camb. Patrimonio'!$E$23","v":"Resultado integral total"},{"$f":"'610000 - Est. Camb. Patrimonio'!$D$23","v":"ifrs-full:ComprehensiveIncome"},0,"peso",{"$f":"'610000 - Est. Camb. Patrimonio'!$Q$23","v":0},0,"http://www.xbrl.org/scheme/companyName",{"$f":"Periodos!$C$3","v":"2023-01-01"},{"$f":"Periodos!$C$4","v":"2023-12-31"},{"$f":"'610000 - Est. Camb. Patrimonio'!$E$15","v":"ifrs-full:ComponentsOfEquityAxis"},{"$f":"'610000 - Est. Camb. Patrimonio'!$Q$14","v":"ifrs-full:ReserveOfChangeInValueOfForwardElementsOfForwardContractsMember"}]
["/*",null,{"$f":"'610000 - Est. Camb. Patrimonio'!$E$24","v":"Emisión de patrimonio"},{"$f":"'610000 - Est. Camb. Patrimonio'!$D$24","v":"ifrs-full:IssueOfEquity"}]
["/*",null,{"$f":"'610000 - Est. Camb. Patrimonio'!$E$25","v":"Dividendos reconocidos como distribuciones a los propietarios"},{"$f":"'610000 - Est. Camb. Patrimonio'!$D$25","v":"ifrs-full:DividendsPaid"}]
["/*",null,{"$f":"'610000 - Est. Camb. Patrimonio'!$E$26","v":"Incrementos por otras aportaciones de los propietarios, patrimonio"},{"$f":"'610000 - Est. Camb. Patrimonio'!$D$26","v":"ifrs-full:IncreaseDecreaseThroughOtherContributionsByOwners"}]
["/*",null,{"$f":"'610000 - Est. Camb. Patrimonio'!$E$27","v":"Disminución por otras distribuciones a los propietarios, patrimonio"},{"$f":"'610000 - Est. Camb. Patrimonio'!$D$27","v":"ifrs-full:IncreaseDecreaseThroughOtherDistributionsToOwners"}]
["/*",null,{"$f":"'610000 - Est. Camb. Patrimonio'!$E$28","v":"Incrementos (disminuciones) por otros cambios, patrimonio"},{"$f":"'610000 - Est. Camb. Patrimonio'!$D$28","v":"ifrs-full:IncreaseDecreaseThroughTransfersAndOtherChangesEquity"}]
["/*",null,{"$f":"'610000 - Est. Camb. Patrimonio'!$E$29","v":"Incrementos (disminuciones) por transacciones con acciones propias, patrimonio"},{"$f":"'610000 - Est. Camb. Patrimonio'!$D$29","v":"ifrs-full:IncreaseDecreaseThroughTreasuryShareTransactions"}]
["/*",null,{"$f":"'610000 - Est. Camb. Patrimonio'!$E$30","v":"Incrementos (disminuciones) por cambios las participaciones en la propiedad de subsidiarias que no dan lugar a pérdida de control, patrimonio"},{"$f":"'610000 - Est. Camb. Patrimonio'!$D$30","v":"ifrs-full:IncreaseDecreaseThroughChangesInOwnershipInterestsInSubsidiariesThatDoNotResultInLossOfControl"}]
["/*",null,{"$f":"'610000 - Est. Camb. Patrimonio'!$E$31","v":"Incrementos (disminuciones) por transacciones con pagos basados en acciones, patrimonio"},{"$f":"'610000 - Est. Camb. Patrimonio'!$D$31","v":"ifrs-full:IncreaseDecreaseThroughSharebasedPaymentTransactions"}]
["",null,{"$f":"'610000 - Est. Camb. Patrimonio'!$E$32","v":"Total incremento (disminución) en el patrimonio"},{"$f":"'610000 - Est. Camb. Patrimonio'!$D$32","v":"ifrs-full:ChangesInEquity"},0,"peso",{"$f":"'610000 - Est. Camb. Patrimonio'!$Q$32","v":0},0,"http://www.xbrl.org/scheme/companyName",{"$f":"Periodos!$C$3","v":"2023-01-01"},{"$f":"Periodos!$C$4","v":"2023-12-31"},{"$f":"'610000 - Est. Camb. Patrimonio'!$E$15","v":"ifrs-full:ComponentsOfEquityAxis"},{"$f":"'610000 - Est. Camb. Patrimonio'!$Q$14","v":"ifrs-full:ReserveOfChangeInValueOfForwardElementsOfForwardContractsMember"}]
["",null,{"$f":"'610000 - Est. Camb. Patrimonio'!$E$33","v":"Patrimonio al final del periodo"},{"$f":"'610000 - Est. Camb. Patrimonio'!$D$33","v":"ifrs-full:Equity"},0,"peso",{"$f":"'610000 - Est. Camb. Patrimonio'!$Q$33","v":0},0,"http://www.xbrl.org/scheme/companyName",null,{"$f":"Periodos!$C$4","v":"2023-12-31"},{"$f":"'610000 - Est. Camb. Patrimonio'!$E$15","v":"ifrs-full:ComponentsOfEquityAxis"},{"$f":"'610000 - Est. Camb. Patrimonio'!$Q$14","v":"ifrs-full:ReserveOfChangeInValueOfForwardElementsOfForwardContractsMember"}]
["/*",null,"--13--"]
["/*",null,{"$f":"'610000 - Est. Camb. Patrimonio'!$E$16","v":"Estado de cambios en el patrimonio [resumen]"},{"$f":"'610000 - Est. Camb. Patrimonio'!$D$16","v":"ifrs-full:StatementOfChangesInEquityAbstract"}]
["/*",null,{"$f":"'610000 - Est. Camb. Patrimonio'!$E$17","v":"Estado de cambios en el patrimonio [partidas de los estados financieros]"},{"$f":"'610000 - Est. Camb. Patrimonio'!$D$17","v":"ifrs-full:StatementOfChangesInEquityLineItems"}]
["/*",null,{"$f":"'610000 - Est. Camb. Patrimonio'!$E$18","v":"Patrimonio al comienzo del periodo"},{"$f":"'610000 - Est. Camb. Patrimonio'!$D$18","v":"ifrs-full:Equity"}]
["/*",null,{"$f":"'610000 - Est. Camb. Patrimonio'!$E$19","v":"Cambios en el patrimonio [resumen]"},{"$f":"'610000 - Est. Camb. Patrimonio'!$D$19","v":"ifrs-full:ChangesInEquityAbstract"}]
["/*",null,{"$f":"'610000 - Est. Camb. Patrimonio'!$E$20","v":"Resultado integral [resumen]"},{"$f":"'610000 - Est. Camb. Patrimonio'!$D$20","v":"ifrs-full:ComprehensiveIncomeAbstract"}]
["/*",null,{"$f":"'610000 - Est. Camb. Patrimonio'!$E$21","v":"Ganancia (pérdida)"},{"$f":"'610000 - Est. Camb. Patrimonio'!$D$21","v":"ifrs-full:ProfitLoss"}]
["/*",null,{"$f":"'610000 - Est. Camb. Patrimonio'!$E$22","v":"Otro resultado integral"},{"$f":"'610000 - Est. Camb. Patrimonio'!$D$22","v":"ifrs-full:OtherComprehensiveIncome"}]
["",null,{"$f":"'610000 - Est. Camb. Patrimonio'!$E$23","v":"Resultado integral total"},{"$f":"'610000 - Est. Camb. Patrimonio'!$D$23","v":"ifrs-full:ComprehensiveIncome"},0,"peso",{"$f":"'610000 - Est. Camb. Patrimonio'!$R$23","v":0},0,"http://www.xbrl.org/scheme/companyName",{"$f":"Periodos!$C$3","v":"2023-01-01"},{"$f":"Periodos!$C$4","v":"2023-12-31"},{"$f":"'610000 - Est. Camb. Patrimonio'!$E$15","v":"ifrs-full:ComponentsOfEquityAxis"},{"$f":"'610000 - Est. Camb. Patrimonio'!$R$14","v":"ifrs-full:ReserveOfGainsAndLossesOnFinancialAssetsMeasuredAtFairValueThroughOtherComprehensiveIncomeMember"}]
["/*",null,{"$f":"'610000 - Est. Camb. Patrimonio'!$E$24","v":"Emisión de patrimonio"},{"$f":"'610000 - Est. Camb. Patrimonio'!$D$24","v":"ifrs-full:IssueOfEquity"}]
["/*",null,{"$f":"'610000 - Est. Camb. Patrimonio'!$E$25","v":"Dividendos reconocidos como distribuciones a los propietarios"},{"$f":"'610000 - Est. Camb. Patrimonio'!$D$25","v":"ifrs-full:DividendsPaid"}]
["/*",null,{"$f":"'610000 - Est. Camb. Patrimonio'!$E$26","v":"Incrementos por otras aportaciones de los propietarios, patrimonio"},{"$f":"'610000 - Est. Camb. Patrimonio'!$D$26","v":"ifrs-full:IncreaseDecreaseThroughOtherContributionsByOwners"}]
["/*",null,{"$f":"'610000 - Est. Camb. Patrimonio'!$E$27","v":"Disminución por otras distribuciones a los propietarios, patrimonio"},{"$f":"'610000 - Est. Camb. Patrimonio'!$D$27","v":"ifrs-full:IncreaseDecreaseThroughOtherDistributionsToOwners"}]
["/*",null,{"$f":"'610000 - Est. Camb. Patrimonio'!$E$28","v":"Incrementos (disminuciones) por otros cambios, patrimonio"},{"$f":"'610000 - Est. Camb. Patrimonio'!$D$28","v":"ifrs-full:IncreaseDecreaseThroughTransfersAndOtherChangesEquity"}]
["/*",null,{"$f":"'610000 - Est. Camb. Patrimonio'!$E$29","v":"Incrementos (disminuciones) por transacciones con acciones propias, patrimonio"},{"$f":"'610000 - Est. Camb. Patrimonio'!$D$29","v":"ifrs-full:IncreaseDecreaseThroughTreasuryShareTransactions"}]
["/*",null,{"$f":"'610000 - Est. Camb. Patrimonio'!$E$30","v":"Incrementos (disminuciones) por cambios las participaciones en la propiedad de subsidiarias que no dan lugar a pérdida de control, patrimonio"},{"$f":"'610000 - Est. Camb. Patrimonio'!$D$30","v":"ifrs-full:IncreaseDecreaseThroughChangesInOwnershipInterestsInSubsidiariesThatDoNotResultInLossOfControl"}]
["/*",null,{"$f":"'610000 - Est. Camb. Patrimonio'!$E$31","v":"Incrementos (disminuciones) por transacciones con pagos basados en acciones, patrimonio"},{"$f":"'610000 - Est. Camb. Patrimonio'!$D$31","v":"ifrs-full:IncreaseDecreaseThroughSharebasedPaymentTransactions"}]
["",null,{"$f":"'610000 - Est. Camb. Patrimonio'!$E$32","v":"Total incremento (disminución) en el patrimonio"},{"$f":"'610000 - Est. Camb. Patrimonio'!$D$32","v":"ifrs-full:ChangesInEquity"},0,"peso",{"$f":"'610000 - Est. Camb. Patrimonio'!$R$32","v":0},0,"http://www.xbrl.org/scheme/companyName",{"$f":"Periodos!$C$3","v":"2023-01-01"},{"$f":"Periodos!$C$4","v":"2023-12-31"},{"$f":"'610000 - Est. Camb. Patrimonio'!$E$15","v":"ifrs-full:ComponentsOfEquityAxis"},{"$f":"'610000 - Est. Camb. Patrimonio'!$R$14","v":"ifrs-full:ReserveOfGainsAndLossesOnFinancialAssetsMeasuredAtFairValueThroughOtherComprehensiveIncomeMember"}]
["",null,{"$f":"'610000 - Est. Camb. Patrimonio'!$E$33","v":"Patrimonio al final del periodo"},{"$f":"'610000 - Est. Camb. Patrimonio'!$D$33","v":"ifrs-full:Equity"},0,"peso",{"$f":"'610000 - Est. Camb. Patrimonio'!$R$33","v":0},0,"http://www.xbrl.org/scheme/companyName",null,{"$f":"Periodos!$C$4","v":"2023-12-31"},{"$f":"'610000 - Est. Camb. Patrimonio'!$E$15","v":"ifrs-full:ComponentsOfEquityAxis"},{"$f":"'610000 - Est. Camb. Patrimonio'!$R$14","v":"ifrs-full:ReserveOfGainsAndLossesOnFinancialAssetsMeasuredAtFairValueThroughOtherComprehensiveIncomeMember"}]
["/*",null,"--14--"]
["/*",null,{"$f":"'610000 - Est. Camb. Patrimonio'!$E$16","v":"Estado de cambios en el patrimonio [resumen]"},{"$f":"'610000 - Est. Camb. Patrimonio'!$D$16","v":"ifrs-full:StatementOfChangesInEquityAbstract"}]
["/*",null,{"$f":"'610000 - Est. Camb. Patrimonio'!$E$17","v":"Estado de cambios en el patrimonio [partidas de los estados financieros]"},{"$f":"'610000 - Est. Camb. Patrimonio'!$D$17","v":"ifrs-full:StatementOfChangesInEquityLineItems"}]
["/*",null,{"$f":"'610000 - Est. Camb. Patrimonio'!$E$18","v":"Patrimonio al comienzo del periodo"},{"$f":"'610000 - Est. Camb. Patrimonio'!$D$18","v":"ifrs-full:Equity"}]
["/*",null,{"$f":"'610000 - Est. Camb. Patrimonio'!$E$19","v":"Cambios en el patrimonio [resumen]"},{"$f":"'610000 - Est. Camb. Patrimonio'!$D$19","v":"ifrs-full:ChangesInEquityAbstract"}]
["/*",null,{"$f":"'610000 - Est. Camb. Patrimonio'!$E$20","v":"Resultado integral [resumen]"},{"$f":"'610000 - Est. Camb. Patrimonio'!$D$20","v":"ifrs-full:ComprehensiveIncomeAbstract"}]
["/*",null,{"$f":"'610000 - Est. Camb. Patrimonio'!$E$21","v":"Ganancia (pérdida)"},{"$f":"'610000 - Est. Camb. Patrimonio'!$D$21","v":"ifrs-full:ProfitLoss"}]
["/*",null,{"$f":"'610000 - Est. Camb. Patrimonio'!$E$22","v":"Otro resultado integral"},{"$f":"'610000 - Est. Camb. Patrimonio'!$D$22","v":"ifrs-full:OtherComprehensiveIncome"}]
["",null,{"$f":"'610000 - Est. Camb. Patrimonio'!$E$23","v":"Resultado integral total"},{"$f":"'610000 - Est. Camb. Patrimonio'!$D$23","v":"ifrs-full:ComprehensiveIncome"},0,"peso",{"$f":"'610000 - Est. Camb. Patrimonio'!$S$23","v":0},0,"http://www.xbrl.org/scheme/companyName",{"$f":"Periodos!$C$3","v":"2023-01-01"},{"$f":"Periodos!$C$4","v":"2023-12-31"},{"$f":"'610000 - Est. Camb. Patrimonio'!$E$15","v":"ifrs-full:ComponentsOfEquityAxis"},{"$f":"'610000 - Est. Camb. Patrimonio'!$S$14","v":"ifrs-full:ReserveOfSharebasedPaymentsMember"}]
["/*",null,{"$f":"'610000 - Est. Camb. Patrimonio'!$E$24","v":"Emisión de patrimonio"},{"$f":"'610000 - Est. Camb. Patrimonio'!$D$24","v":"ifrs-full:IssueOfEquity"}]
["/*",null,{"$f":"'610000 - Est. Camb. Patrimonio'!$E$25","v":"Dividendos reconocidos como distribuciones a los propietarios"},{"$f":"'610000 - Est. Camb. Patrimonio'!$D$25","v":"ifrs-full:DividendsPaid"}]
["/*",null,{"$f":"'610000 - Est. Camb. Patrimonio'!$E$26","v":"Incrementos por otras aportaciones de los propietarios, patrimonio"},{"$f":"'610000 - Est. Camb. Patrimonio'!$D$26","v":"ifrs-full:IncreaseDecreaseThroughOtherContributionsByOwners"}]
["/*",null,{"$f":"'610000 - Est. Camb. Patrimonio'!$E$27","v":"Disminución por otras distribuciones a los propietarios, patrimonio"},{"$f":"'610000 - Est. Camb. Patrimonio'!$D$27","v":"ifrs-full:IncreaseDecreaseThroughOtherDistributionsToOwners"}]
["/*",null,{"$f":"'610000 - Est. Camb. Patrimonio'!$E$28","v":"Incrementos (disminuciones) por otros cambios, patrimonio"},{"$f":"'610000 - Est. Camb. Patrimonio'!$D$28","v":"ifrs-full:IncreaseDecreaseThroughTransfersAndOtherChangesEquity"}]
["/*",null,{"$f":"'610000 - Est. Camb. Patrimonio'!$E$29","v":"Incrementos (disminuciones) por transacciones con acciones propias, patrimonio"},{"$f":"'610000 - Est. Camb. Patrimonio'!$D$29","v":"ifrs-full:IncreaseDecreaseThroughTreasuryShareTransactions"}]
["/*",null,{"$f":"'610000 - Est. Camb. Patrimonio'!$E$30","v":"Incrementos (disminuciones) por cambios las participaciones en la propiedad de subsidiarias que no dan lugar a pérdida de control, patrimonio"},{"$f":"'610000 - Est. Camb. Patrimonio'!$D$30","v":"ifrs-full:IncreaseDecreaseThroughChangesInOwnershipInterestsInSubsidiariesThatDoNotResultInLossOfControl"}]
["/*",null,{"$f":"'610000 - Est. Camb. Patrimonio'!$E$31","v":"Incrementos (disminuciones) por transacciones con pagos basados en acciones, patrimonio"},{"$f":"'610000 - Est. Camb. Patrimonio'!$D$31","v":"ifrs-full:IncreaseDecreaseThroughSharebasedPaymentTransactions"}]
["",null,{"$f":"'610000 - Est. Camb. Patrimonio'!$E$32","v":"Total incremento (disminución) en el patrimonio"},{"$f":"'610000 - Est. Camb. Patrimonio'!$D$32","v":"ifrs-full:ChangesInEquity"},0,"peso",{"$f":"'610000 - Est. Camb. Patrimonio'!$S$32","v":0},0,"http://www.xbrl.org/scheme/companyName",{"$f":"Periodos!$C$3","v":"2023-01-01"},{"$f":"Periodos!$C$4","v":"2023-12-31"},{"$f":"'610000 - Est. Camb. Patrimonio'!$E$15","v":"ifrs-full:ComponentsOfEquityAxis"},{"$f":"'610000 - Est. Camb. Patrimonio'!$S$14","v":"ifrs-full:ReserveOfSharebasedPaymentsMember"}]
["",null,{"$f":"'610000 - Est. Camb. Patrimonio'!$E$33","v":"Patrimonio al final del periodo"},{"$f":"'610000 - Est. Camb. Patrimonio'!$D$33","v":"ifrs-full:Equity"},0,"peso",{"$f":"'610000 - Est. Camb. Patrimonio'!$S$33","v":0},0,"http://www.xbrl.org/scheme/companyName",null,{"$f":"Periodos!$C$4","v":"2023-12-31"},{"$f":"'610000 - Est. Camb. Patrimonio'!$E$15","v":"ifrs-full:ComponentsOfEquityAxis"},{"$f":"'610000 - Est. Camb. Patrimonio'!$S$14","v":"ifrs-full:ReserveOfSharebasedPaymentsMember"}]
["/*",null,"--15--"]
["/*",null,{"$f":"'610000 - Est. Camb. Patrimonio'!$E$16","v":"Estado de cambios en el patrimonio [resumen]"},{"$f":"'610000 - Est. Camb. Patrimonio'!$D$16","v":"ifrs-full:StatementOfChangesInEquityAbstract"}]
["/*",null,{"$f":"'610000 - Est. Camb. Patrimonio'!$E$17","v":"Estado de cambios en el patrimonio [partidas de los estados financieros]"},{"$f":"'610000 - Est. Camb. Patrimonio'!$D$17","v":"ifrs-full:StatementOfChangesInEquityLineItems"}]
["/*",null,{"$f":"'610000 - Est. Camb. Patrimonio'!$E$18","v":"Patrimonio al comienzo del periodo"},{"$f":"'610000 - Est. Camb. Patrimonio'!$D$18","v":"ifrs-full:Equity"}]
["/*",null,{"$f":"'610000 - Est. Camb. Patrimonio'!$E$19","v":"Cambios en el patrimonio [resumen]"},{"$f":"'610000 - Est. Camb. Patrimonio'!$D$19","v":"ifrs-full:ChangesInEquityAbstract"}]
["/*",null,{"$f":"'610000 - Est. Camb. Patrimonio'!$E$20","v":"Resultado integral [resumen]"},{"$f":"'610000 - Est. Camb. Patrimonio'!$D$20","v":"ifrs-full:ComprehensiveIncomeAbstract"}]
[{"$f":"IF(G7776=\"\",\"/*\",\"\")","v":"/*"},null,{"$f":"'610000 - Est. Camb. Patrimonio'!$E$21","v":"Ganancia (pérdida)"},{"$f":"'610000 - Est. Camb. Patrimonio'!$D$21","v":"ifrs-full:ProfitLoss"}]
["/*",null,{"$f":"'610000 - Est. Camb. Patrimonio'!$E$22","v":"Otro resultado integral"},{"$f":"'610000 - Est. Camb. Patrimonio'!$D$22","v":"ifrs-full:OtherComprehensiveIncome"}]
["",null,{"$f":"'610000 - Est. Camb. Patrimonio'!$E$23","v":"Resultado integral total"},{"$f":"'610000 - Est. Camb. Patrimonio'!$D$23","v":"ifrs-full:ComprehensiveIncome"},0,"peso",{"$f":"'610000 - Est. Camb. Patrimonio'!$T$23","v":0},0,"http://www.xbrl.org/scheme/companyName",{"$f":"Periodos!$C$3","v":"2023-01-01"},{"$f":"Periodos!$C$4","v":"2023-12-31"},{"$f":"'610000 - Est. Camb. Patrimonio'!$E$15","v":"ifrs-full:ComponentsOfEquityAxis"},{"$f":"'610000 - Est. Camb. Patrimonio'!$T$14","v":"ifrs-full:ReserveOfChangeInValueOfForeignCurrencyBasisSpreadsMember"}]
["/*",null,{"$f":"'610000 - Est. Camb. Patrimonio'!$E$24","v":"Emisión de patrimonio"},{"$f":"'610000 - Est. Camb. Patrimonio'!$D$24","v":"ifrs-full:IssueOfEquity"}]
["/*",null,{"$f":"'610000 - Est. Camb. Patrimonio'!$E$25","v":"Dividendos reconocidos como distribuciones a los propietarios"},{"$f":"'610000 - Est. Camb. Patrimonio'!$D$25","v":"ifrs-full:DividendsPaid"}]
["/*",null,{"$f":"'610000 - Est. Camb. Patrimonio'!$E$26","v":"Incrementos por otras aportaciones de los propietarios, patrimonio"},{"$f":"'610000 - Est. Camb. Patrimonio'!$D$26","v":"ifrs-full:IncreaseDecreaseThroughOtherContributionsByOwners"}]
["/*",null,{"$f":"'610000 - Est. Camb. Patrimonio'!$E$27","v":"Disminución por otras distribuciones a los propietarios, patrimonio"},{"$f":"'610000 - Est. Camb. Patrimonio'!$D$27","v":"ifrs-full:IncreaseDecreaseThroughOtherDistributionsToOwners"}]
["/*",null,{"$f":"'610000 - Est. Camb. Patrimonio'!$E$28","v":"Incrementos (disminuciones) por otros cambios, patrimonio"},{"$f":"'610000 - Est. Camb. Patrimonio'!$D$28","v":"ifrs-full:IncreaseDecreaseThroughTransfersAndOtherChangesEquity"}]
["/*",null,{"$f":"'610000 - Est. Camb. Patrimonio'!$E$29","v":"Incrementos (disminuciones) por transacciones con acciones propias, patrimonio"},{"$f":"'610000 - Est. Camb. Patrimonio'!$D$29","v":"ifrs-full:IncreaseDecreaseThroughTreasuryShareTransactions"}]
["/*",null,{"$f":"'610000 - Est. Camb. Patrimonio'!$E$30","v":"Incrementos (disminuciones) por cambios las participaciones en la propiedad de subsidiarias que no dan lugar a pérdida de control, patrimonio"},{"$f":"'610000 - Est. Camb. Patrimonio'!$D$30","v":"ifrs-full:IncreaseDecreaseThroughChangesInOwnershipInterestsInSubsidiariesThatDoNotResultInLossOfControl"}]
["/*",null,{"$f":"'610000 - Est. Camb. Patrimonio'!$E$31","v":"Incrementos (disminuciones) por transacciones con pagos basados en acciones, patrimonio"},{"$f":"'610000 - Est. Camb. Patrimonio'!$D$31","v":"ifrs-full:IncreaseDecreaseThroughSharebasedPaymentTransactions"}]
["",null,{"$f":"'610000 - Est. Camb. Patrimonio'!$E$32","v":"Total incremento (disminución) en el patrimonio"},{"$f":"'610000 - Est. Camb. Patrimonio'!$D$32","v":"ifrs-full:ChangesInEquity"},0,"peso",{"$f":"'610000 - Est. Camb. Patrimonio'!$T$32","v":0},0,"http://www.xbrl.org/scheme/companyName",{"$f":"Periodos!$C$3","v":"2023-01-01"},{"$f":"Periodos!$C$4","v":"2023-12-31"},{"$f":"'610000 - Est. Camb. Patrimonio'!$E$15","v":"ifrs-full:ComponentsOfEquityAxis"},{"$f":"'610000 - Est. Camb. Patrimonio'!$T$14","v":"ifrs-full:ReserveOfChangeInValueOfForeignCurrencyBasisSpreadsMember"}]
["",null,{"$f":"'610000 - Est. Camb. Patrimonio'!$E$33","v":"Patrimonio al final del periodo"},{"$f":"'610000 - Est. Camb. Patrimonio'!$D$33","v":"ifrs-full:Equity"},0,"peso",{"$f":"'610000 - Est. Camb. Patrimonio'!$T$33","v":0},0,"http://www.xbrl.org/scheme/companyName",null,{"$f":"Periodos!$C$4","v":"2023-12-31"},{"$f":"'610000 - Est. Camb. Patrimonio'!$E$15","v":"ifrs-full:ComponentsOfEquityAxis"},{"$f":"'610000 - Est. Camb. Patrimonio'!$T$14","v":"ifrs-full:ReserveOfChangeInValueOfForeignCurrencyBasisSpreadsMember"}]
["/*",null,"--16--"]
["/*",null,{"$f":"'610000 - Est. Camb. Patrimonio'!$E$16","v":"Estado de cambios en el patrimonio [resumen]"},{"$f":"'610000 - Est. Camb. Patrimonio'!$D$16","v":"ifrs-full:StatementOfChangesInEquityAbstract"}]
["/*",null,{"$f":"'610000 - Est. Camb. Patrimonio'!$E$17","v":"Estado de cambios en el patrimonio [partidas de los estados financieros]"},{"$f":"'610000 - Est. Camb. Patrimonio'!$D$17","v":"ifrs-full:StatementOfChangesInEquityLineItems"}]
["/*",null,{"$f":"'610000 - Est. Camb. Patrimonio'!$E$18","v":"Patrimonio al comienzo del periodo"},{"$f":"'610000 - Est. Camb. Patrimonio'!$D$18","v":"ifrs-full:Equity"}]
["/*",null,{"$f":"'610000 - Est. Camb. Patrimonio'!$E$19","v":"Cambios en el patrimonio [resumen]"},{"$f":"'610000 - Est. Camb. Patrimonio'!$D$19","v":"ifrs-full:ChangesInEquityAbstract"}]
["/*",null,{"$f":"'610000 - Est. Camb. Patrimonio'!$E$20","v":"Resultado integral [resumen]"},{"$f":"'610000 - Est. Camb. Patrimonio'!$D$20","v":"ifrs-full:ComprehensiveIncomeAbstract"}]
["/*",null,{"$f":"'610000 - Est. Camb. Patrimonio'!$E$21","v":"Ganancia (pérdida)"},{"$f":"'610000 - Est. Camb. Patrimonio'!$D$21","v":"ifrs-full:ProfitLoss"}]
["/*",null,{"$f":"'610000 - Est. Camb. Patrimonio'!$E$22","v":"Otro resultado integral"},{"$f":"'610000 - Est. Camb. Patrimonio'!$D$22","v":"ifrs-full:OtherComprehensiveIncome"}]
["",null,{"$f":"'610000 - Est. Camb. Patrimonio'!$E$23","v":"Resultado integral total"},{"$f":"'610000 - Est. Camb. Patrimonio'!$D$23","v":"ifrs-full:ComprehensiveIncome"},0,"peso",{"$f":"'610000 - Est. Camb. Patrimonio'!$U$23","v":0},0,"http://www.xbrl.org/scheme/companyName",{"$f":"Periodos!$C$3","v":"2023-01-01"},{"$f":"Periodos!$C$4","v":"2023-12-31"},{"$f":"'610000 - Est. Camb. Patrimonio'!$E$15","v":"ifrs-full:ComponentsOfEquityAxis"},{"$f":"'610000 - Est. Camb. Patrimonio'!$U$14","v":"ifrs-full:ReserveOfRemeasurementsOfDefinedBenefitPlansMember"}]
["/*",null,{"$f":"'610000 - Est. Camb. Patrimonio'!$E$24","v":"Emisión de patrimonio"},{"$f":"'610000 - Est. Camb. Patrimonio'!$D$24","v":"ifrs-full:IssueOfEquity"}]
["/*",null,{"$f":"'610000 - Est. Camb. Patrimonio'!$E$25","v":"Dividendos reconocidos como distribuciones a los propietarios"},{"$f":"'610000 - Est. Camb. Patrimonio'!$D$25","v":"ifrs-full:DividendsPaid"}]
["/*",null,{"$f":"'610000 - Est. Camb. Patrimonio'!$E$26","v":"Incrementos por otras aportaciones de los propietarios, patrimonio"},{"$f":"'610000 - Est. Camb. Patrimonio'!$D$26","v":"ifrs-full:IncreaseDecreaseThroughOtherContributionsByOwners"}]
["/*",null,{"$f":"'610000 - Est. Camb. Patrimonio'!$E$27","v":"Disminución por otras distribuciones a los propietarios, patrimonio"},{"$f":"'610000 - Est. Camb. Patrimonio'!$D$27","v":"ifrs-full:IncreaseDecreaseThroughOtherDistributionsToOwners"}]
["/*",null,{"$f":"'610000 - Est. Camb. Patrimonio'!$E$28","v":"Incrementos (disminuciones) por otros cambios, patrimonio"},{"$f":"'610000 - Est. Camb. Patrimonio'!$D$28","v":"ifrs-full:IncreaseDecreaseThroughTransfersAndOtherChangesEquity"}]
["/*",null,{"$f":"'610000 - Est. Camb. Patrimonio'!$E$29","v":"Incrementos (disminuciones) por transacciones con acciones propias, patrimonio"},{"$f":"'610000 - Est. Camb. Patrimonio'!$D$29","v":"ifrs-full:IncreaseDecreaseThroughTreasuryShareTransactions"}]
["/*",null,{"$f":"'610000 - Est. Camb. Patrimonio'!$E$30","v":"Incrementos (disminuciones) por cambios las participaciones en la propiedad de subsidiarias que no dan lugar a pérdida de control, patrimonio"},{"$f":"'610000 - Est. Camb. Patrimonio'!$D$30","v":"ifrs-full:IncreaseDecreaseThroughChangesInOwnershipInterestsInSubsidiariesThatDoNotResultInLossOfControl"}]
["/*",null,{"$f":"'610000 - Est. Camb. Patrimonio'!$E$31","v":"Incrementos (disminuciones) por transacciones con pagos basados en acciones, patrimonio"},{"$f":"'610000 - Est. Camb. Patrimonio'!$D$31","v":"ifrs-full:IncreaseDecreaseThroughSharebasedPaymentTransactions"}]
["",null,{"$f":"'610000 - Est. Camb. Patrimonio'!$E$32","v":"Total incremento (disminución) en el patrimonio"},{"$f":"'610000 - Est. Camb. Patrimonio'!$D$32","v":"ifrs-full:ChangesInEquity"},0,"peso",{"$f":"'610000 - Est. Camb. Patrimonio'!$U$32","v":0},0,"http://www.xbrl.org/scheme/companyName",{"$f":"Periodos!$C$3","v":"2023-01-01"},{"$f":"Periodos!$C$4","v":"2023-12-31"},{"$f":"'610000 - Est. Camb. Patrimonio'!$E$15","v":"ifrs-full:ComponentsOfEquityAxis"},{"$f":"'610000 - Est. Camb. Patrimonio'!$U$14","v":"ifrs-full:ReserveOfRemeasurementsOfDefinedBenefitPlansMember"}]
["",null,{"$f":"'610000 - Est. Camb. Patrimonio'!$E$33","v":"Patrimonio al final del periodo"},{"$f":"'610000 - Est. Camb. Patrimonio'!$D$33","v":"ifrs-full:Equity"},0,"peso",{"$f":"'610000 - Est. Camb. Patrimonio'!$U$33","v":0},0,"http://www.xbrl.org/scheme/companyName",null,{"$f":"Periodos!$C$4","v":"2023-12-31"},{"$f":"'610000 - Est. Camb. Patrimonio'!$E$15","v":"ifrs-full:ComponentsOfEquityAxis"},{"$f":"'610000 - Est. Camb. Patrimonio'!$U$14","v":"ifrs-full:ReserveOfRemeasurementsOfDefinedBenefitPlansMember"}]
["/*",null,"--17--"]
["/*",null,{"$f":"'610000 - Est. Camb. Patrimonio'!$E$16","v":"Estado de cambios en el patrimonio [resumen]"},{"$f":"'610000 - Est. Camb. Patrimonio'!$D$16","v":"ifrs-full:StatementOfChangesInEquityAbstract"}]
["/*",null,{"$f":"'610000 - Est. Camb. Patrimonio'!$E$17","v":"Estado de cambios en el patrimonio [partidas de los estados financieros]"},{"$f":"'610000 - Est. Camb. Patrimonio'!$D$17","v":"ifrs-full:StatementOfChangesInEquityLineItems"}]
["/*",null,{"$f":"'610000 - Est. Camb. Patrimonio'!$E$18","v":"Patrimonio al comienzo del periodo"},{"$f":"'610000 - Est. Camb. Patrimonio'!$D$18","v":"ifrs-full:Equity"}]
["/*",null,{"$f":"'610000 - Est. Camb. Patrimonio'!$E$19","v":"Cambios en el patrimonio [resumen]"},{"$f":"'610000 - Est. Camb. Patrimonio'!$D$19","v":"ifrs-full:ChangesInEquityAbstract"}]
["/*",null,{"$f":"'610000 - Est. Camb. Patrimonio'!$E$20","v":"Resultado integral [resumen]"},{"$f":"'610000 - Est. Camb. Patrimonio'!$D$20","v":"ifrs-full:ComprehensiveIncomeAbstract"}]
["/*",null,{"$f":"'610000 - Est. Camb. Patrimonio'!$E$21","v":"Ganancia (pérdida)"},{"$f":"'610000 - Est. Camb. Patrimonio'!$D$21","v":"ifrs-full:ProfitLoss"}]
["/*",null,{"$f":"'610000 - Est. Camb. Patrimonio'!$E$22","v":"Otro resultado integral"},{"$f":"'610000 - Est. Camb. Patrimonio'!$D$22","v":"ifrs-full:OtherComprehensiveIncome"}]
["",null,{"$f":"'610000 - Est. Camb. Patrimonio'!$E$23","v":"Resultado integral total"},{"$f":"'610000 - Est. Camb. Patrimonio'!$D$23","v":"ifrs-full:ComprehensiveIncome"},0,"peso",{"$f":"'610000 - Est. Camb. Patrimonio'!$V$23","v":0},0,"http://www.xbrl.org/scheme/companyName",{"$f":"Periodos!$C$3","v":"2023-01-01"},{"$f":"Periodos!$C$4","v":"2023-12-31"},{"$f":"'610000 - Est. Camb. Patrimonio'!$E$15","v":"ifrs-full:ComponentsOfEquityAxis"},{"$f":"'610000 - Est. Camb. Patrimonio'!$V$14","v":"ifrs-full:AmountRecognisedInOtherComprehensiveIncomeAndAccumulatedInEquityRelatingToNoncurrentAssetsOrDisposalGroupsHeldForSaleMember"}]
["/*",null,{"$f":"'610000 - Est. Camb. Patrimonio'!$E$24","v":"Emisión de patrimonio"},{"$f":"'610000 - Est. Camb. Patrimonio'!$D$24","v":"ifrs-full:IssueOfEquity"}]
["/*",null,{"$f":"'610000 - Est. Camb. Patrimonio'!$E$25","v":"Dividendos reconocidos como distribuciones a los propietarios"},{"$f":"'610000 - Est. Camb. Patrimonio'!$D$25","v":"ifrs-full:DividendsPaid"}]
["/*",null,{"$f":"'610000 - Est. Camb. Patrimonio'!$E$26","v":"Incrementos por otras aportaciones de los propietarios, patrimonio"},{"$f":"'610000 - Est. Camb. Patrimonio'!$D$26","v":"ifrs-full:IncreaseDecreaseThroughOtherContributionsByOwners"}]
["/*",null,{"$f":"'610000 - Est. Camb. Patrimonio'!$E$27","v":"Disminución por otras distribuciones a los propietarios, patrimonio"},{"$f":"'610000 - Est. Camb. Patrimonio'!$D$27","v":"ifrs-full:IncreaseDecreaseThroughOtherDistributionsToOwners"}]
["/*",null,{"$f":"'610000 - Est. Camb. Patrimonio'!$E$28","v":"Incrementos (disminuciones) por otros cambios, patrimonio"},{"$f":"'610000 - Est. Camb. Patrimonio'!$D$28","v":"ifrs-full:IncreaseDecreaseThroughTransfersAndOtherChangesEquity"}]
["/*",null,{"$f":"'610000 - Est. Camb. Patrimonio'!$E$29","v":"Incrementos (disminuciones) por transacciones con acciones propias, patrimonio"},{"$f":"'610000 - Est. Camb. Patrimonio'!$D$29","v":"ifrs-full:IncreaseDecreaseThroughTreasuryShareTransactions"}]
["/*",null,{"$f":"'610000 - Est. Camb. Patrimonio'!$E$30","v":"Incrementos (disminuciones) por cambios las participaciones en la propiedad de subsidiarias que no dan lugar a pérdida de control, patrimonio"},{"$f":"'610000 - Est. Camb. Patrimonio'!$D$30","v":"ifrs-full:IncreaseDecreaseThroughChangesInOwnershipInterestsInSubsidiariesThatDoNotResultInLossOfControl"}]
["/*",null,{"$f":"'610000 - Est. Camb. Patrimonio'!$E$31","v":"Incrementos (disminuciones) por transacciones con pagos basados en acciones, patrimonio"},{"$f":"'610000 - Est. Camb. Patrimonio'!$D$31","v":"ifrs-full:IncreaseDecreaseThroughSharebasedPaymentTransactions"}]
["",null,{"$f":"'610000 - Est. Camb. Patrimonio'!$E$32","v":"Total incremento (disminución) en el patrimonio"},{"$f":"'610000 - Est. Camb. Patrimonio'!$D$32","v":"ifrs-full:ChangesInEquity"},0,"peso",{"$f":"'610000 - Est. Camb. Patrimonio'!$V$32","v":0},0,"http://www.xbrl.org/scheme/companyName",{"$f":"Periodos!$C$3","v":"2023-01-01"},{"$f":"Periodos!$C$4","v":"2023-12-31"},{"$f":"'610000 - Est. Camb. Patrimonio'!$E$15","v":"ifrs-full:ComponentsOfEquityAxis"},{"$f":"'610000 - Est. Camb. Patrimonio'!$V$14","v":"ifrs-full:AmountRecognisedInOtherComprehensiveIncomeAndAccumulatedInEquityRelatingToNoncurrentAssetsOrDisposalGroupsHeldForSaleMember"}]
["",null,{"$f":"'610000 - Est. Camb. Patrimonio'!$E$33","v":"Patrimonio al final del periodo"},{"$f":"'610000 - Est. Camb. Patrimonio'!$D$33","v":"ifrs-full:Equity"},0,"peso",{"$f":"'610000 - Est. Camb. Patrimonio'!$V$33","v":0},0,"http://www.xbrl.org/scheme/companyName",null,{"$f":"Periodos!$C$4","v":"2023-12-31"},{"$f":"'610000 - Est. Camb. Patrimonio'!$E$15","v":"ifrs-full:ComponentsOfEquityAxis"},{"$f":"'610000 - Est. Camb. Patrimonio'!$V$14","v":"ifrs-full:AmountRecognisedInOtherComprehensiveIncomeAndAccumulatedInEquityRelatingToNoncurrentAssetsOrDisposalGroupsHeldForSaleMember"}]
["/*",null,"--18--"]
["/*",null,{"$f":"'610000 - Est. Camb. Patrimonio'!$E$16","v":"Estado de cambios en el patrimonio [resumen]"},{"$f":"'610000 - Est. Camb. Patrimonio'!$D$16","v":"ifrs-full:StatementOfChangesInEquityAbstract"}]
["/*",null,{"$f":"'610000 - Est. Camb. Patrimonio'!$E$17","v":"Estado de cambios en el patrimonio [partidas de los estados financieros]"},{"$f":"'610000 - Est. Camb. Patrimonio'!$D$17","v":"ifrs-full:StatementOfChangesInEquityLineItems"}]
["/*",null,{"$f":"'610000 - Est. Camb. Patrimonio'!$E$18","v":"Patrimonio al comienzo del periodo"},{"$f":"'610000 - Est. Camb. Patrimonio'!$D$18","v":"ifrs-full:Equity"}]
["/*",null,{"$f":"'610000 - Est. Camb. Patrimonio'!$E$19","v":"Cambios en el patrimonio [resumen]"},{"$f":"'610000 - Est. Camb. Patrimonio'!$D$19","v":"ifrs-full:ChangesInEquityAbstract"}]
["/*",null,{"$f":"'610000 - Est. Camb. Patrimonio'!$E$20","v":"Resultado integral [resumen]"},{"$f":"'610000 - Est. Camb. Patrimonio'!$D$20","v":"ifrs-full:ComprehensiveIncomeAbstract"}]
["/*",null,{"$f":"'610000 - Est. Camb. Patrimonio'!$E$21","v":"Ganancia (pérdida)"},{"$f":"'610000 - Est. Camb. Patrimonio'!$D$21","v":"ifrs-full:ProfitLoss"}]
["/*",null,{"$f":"'610000 - Est. Camb. Patrimonio'!$E$22","v":"Otro resultado integral"},{"$f":"'610000 - Est. Camb. Patrimonio'!$D$22","v":"ifrs-full:OtherComprehensiveIncome"}]
["",null,{"$f":"'610000 - Est. Camb. Patrimonio'!$E$23","v":"Resultado integral total"},{"$f":"'610000 - Est. Camb. Patrimonio'!$D$23","v":"ifrs-full:ComprehensiveIncome"},0,"peso",{"$f":"'610000 - Est. Camb. Patrimonio'!$W$23","v":0},0,"http://www.xbrl.org/scheme/companyName",{"$f":"Periodos!$C$3","v":"2023-01-01"},{"$f":"Periodos!$C$4","v":"2023-12-31"},{"$f":"'610000 - Est. Camb. Patrimonio'!$E$15","v":"ifrs-full:ComponentsOfEquityAxis"},{"$f":"'610000 - Est. Camb. Patrimonio'!$W$14","v":"ifrs-full:ReserveOfGainsAndLossesFromInvestmentsInEquityInstrumentsMember"}]
["/*",null,{"$f":"'610000 - Est. Camb. Patrimonio'!$E$24","v":"Emisión de patrimonio"},{"$f":"'610000 - Est. Camb. Patrimonio'!$D$24","v":"ifrs-full:IssueOfEquity"}]
["/*",null,{"$f":"'610000 - Est. Camb. Patrimonio'!$E$25","v":"Dividendos reconocidos como distribuciones a los propietarios"},{"$f":"'610000 - Est. Camb. Patrimonio'!$D$25","v":"ifrs-full:DividendsPaid"}]
["/*",null,{"$f":"'610000 - Est. Camb. Patrimonio'!$E$26","v":"Incrementos por otras aportaciones de los propietarios, patrimonio"},{"$f":"'610000 - Est. Camb. Patrimonio'!$D$26","v":"ifrs-full:IncreaseDecreaseThroughOtherContributionsByOwners"}]
["/*",null,{"$f":"'610000 - Est. Camb. Patrimonio'!$E$27","v":"Disminución por otras distribuciones a los propietarios, patrimonio"},{"$f":"'610000 - Est. Camb. Patrimonio'!$D$27","v":"ifrs-full:IncreaseDecreaseThroughOtherDistributionsToOwners"}]
[{"$f":"IF(G7840=\"\",\"/*\",\"\")","v":"/*"},null,{"$f":"'610000 - Est. Camb. Patrimonio'!$E$28","v":"Incrementos (disminuciones) por otros cambios, patrimonio"},{"$f":"'610000 - Est. Camb. Patrimonio'!$D$28","v":"ifrs-full:IncreaseDecreaseThroughTransfersAndOtherChangesEquity"}]
["/*",null,{"$f":"'610000 - Est. Camb. Patrimonio'!$E$29","v":"Incrementos (disminuciones) por transacciones con acciones propias, patrimonio"},{"$f":"'610000 - Est. Camb. Patrimonio'!$D$29","v":"ifrs-full:IncreaseDecreaseThroughTreasuryShareTransactions"}]
["/*",null,{"$f":"'610000 - Est. Camb. Patrimonio'!$E$30","v":"Incrementos (disminuciones) por cambios las participaciones en la propiedad de subsidiarias que no dan lugar a pérdida de control, patrimonio"},{"$f":"'610000 - Est. Camb. Patrimonio'!$D$30","v":"ifrs-full:IncreaseDecreaseThroughChangesInOwnershipInterestsInSubsidiariesThatDoNotResultInLossOfControl"}]
["/*",null,{"$f":"'610000 - Est. Camb. Patrimonio'!$E$31","v":"Incrementos (disminuciones) por transacciones con pagos basados en acciones, patrimonio"},{"$f":"'610000 - Est. Camb. Patrimonio'!$D$31","v":"ifrs-full:IncreaseDecreaseThroughSharebasedPaymentTransactions"}]
["",null,{"$f":"'610000 - Est. Camb. Patrimonio'!$E$32","v":"Total incremento (disminución) en el patrimonio"},{"$f":"'610000 - Est. Camb. Patrimonio'!$D$32","v":"ifrs-full:ChangesInEquity"},0,"peso",{"$f":"'610000 - Est. Camb. Patrimonio'!$W$32","v":0},0,"http://www.xbrl.org/scheme/companyName",{"$f":"Periodos!$C$3","v":"2023-01-01"},{"$f":"Periodos!$C$4","v":"2023-12-31"},{"$f":"'610000 - Est. Camb. Patrimonio'!$E$15","v":"ifrs-full:ComponentsOfEquityAxis"},{"$f":"'610000 - Est. Camb. Patrimonio'!$W$14","v":"ifrs-full:ReserveOfGainsAndLossesFromInvestmentsInEquityInstrumentsMember"}]
["",null,{"$f":"'610000 - Est. Camb. Patrimonio'!$E$33","v":"Patrimonio al final del periodo"},{"$f":"'610000 - Est. Camb. Patrimonio'!$D$33","v":"ifrs-full:Equity"},0,"peso",{"$f":"'610000 - Est. Camb. Patrimonio'!$W$33","v":0},0,"http://www.xbrl.org/scheme/companyName",null,{"$f":"Periodos!$C$4","v":"2023-12-31"},{"$f":"'610000 - Est. Camb. Patrimonio'!$E$15","v":"ifrs-full:ComponentsOfEquityAxis"},{"$f":"'610000 - Est. Camb. Patrimonio'!$W$14","v":"ifrs-full:ReserveOfGainsAndLossesFromInvestmentsInEquityInstrumentsMember"}]
["/*",null,"--19--"]
["/*",null,{"$f":"'610000 - Est. Camb. Patrimonio'!$E$16","v":"Estado de cambios en el patrimonio [resumen]"},{"$f":"'610000 - Est. Camb. Patrimonio'!$D$16","v":"ifrs-full:StatementOfChangesInEquityAbstract"}]
["/*",null,{"$f":"'610000 - Est. Camb. Patrimonio'!$E$17","v":"Estado de cambios en el patrimonio [partidas de los estados financieros]"},{"$f":"'610000 - Est. Camb. Patrimonio'!$D$17","v":"ifrs-full:StatementOfChangesInEquityLineItems"}]
["/*",null,{"$f":"'610000 - Est. Camb. Patrimonio'!$E$18","v":"Patrimonio al comienzo del periodo"},{"$f":"'610000 - Est. Camb. Patrimonio'!$D$18","v":"ifrs-full:Equity"}]
["/*",null,{"$f":"'610000 - Est. Camb. Patrimonio'!$E$19","v":"Cambios en el patrimonio [resumen]"},{"$f":"'610000 - Est. Camb. Patrimonio'!$D$19","v":"ifrs-full:ChangesInEquityAbstract"}]
["/*",null,{"$f":"'610000 - Est. Camb. Patrimonio'!$E$20","v":"Resultado integral [resumen]"},{"$f":"'610000 - Est. Camb. Patrimonio'!$D$20","v":"ifrs-full:ComprehensiveIncomeAbstract"}]
["/*",null,{"$f":"'610000 - Est. Camb. Patrimonio'!$E$21","v":"Ganancia (pérdida)"},{"$f":"'610000 - Est. Camb. Patrimonio'!$D$21","v":"ifrs-full:ProfitLoss"}]
["/*",null,{"$f":"'610000 - Est. Camb. Patrimonio'!$E$22","v":"Otro resultado integral"},{"$f":"'610000 - Est. Camb. Patrimonio'!$D$22","v":"ifrs-full:OtherComprehensiveIncome"}]
["",null,{"$f":"'610000 - Est. Camb. Patrimonio'!$E$23","v":"Resultado integral total"},{"$f":"'610000 - Est. Camb. Patrimonio'!$D$23","v":"ifrs-full:ComprehensiveIncome"},0,"peso",{"$f":"'610000 - Est. Camb. Patrimonio'!$X$23","v":0},0,"http://www.xbrl.org/scheme/companyName",{"$f":"Periodos!$C$3","v":"2023-01-01"},{"$f":"Periodos!$C$4","v":"2023-12-31"},{"$f":"'610000 - Est. Camb. Patrimonio'!$E$15","v":"ifrs-full:ComponentsOfEquityAxis"},{"$f":"'610000 - Est. Camb. Patrimonio'!$X$14","v":"ifrs-full:ReserveOfChangeInFairValueOfFinancialLiabilityAttributableToChangeInCreditRiskOfLiabilityMember"}]
["/*",null,{"$f":"'610000 - Est. Camb. Patrimonio'!$E$24","v":"Emisión de patrimonio"},{"$f":"'610000 - Est. Camb. Patrimonio'!$D$24","v":"ifrs-full:IssueOfEquity"}]
["/*",null,{"$f":"'610000 - Est. Camb. Patrimonio'!$E$25","v":"Dividendos reconocidos como distribuciones a los propietarios"},{"$f":"'610000 - Est. Camb. Patrimonio'!$D$25","v":"ifrs-full:DividendsPaid"}]
["/*",null,{"$f":"'610000 - Est. Camb. Patrimonio'!$E$26","v":"Incrementos por otras aportaciones de los propietarios, patrimonio"},{"$f":"'610000 - Est. Camb. Patrimonio'!$D$26","v":"ifrs-full:IncreaseDecreaseThroughOtherContributionsByOwners"}]
["/*",null,{"$f":"'610000 - Est. Camb. Patrimonio'!$E$27","v":"Disminución por otras distribuciones a los propietarios, patrimonio"},{"$f":"'610000 - Est. Camb. Patrimonio'!$D$27","v":"ifrs-full:IncreaseDecreaseThroughOtherDistributionsToOwners"}]
["/*",null,{"$f":"'610000 - Est. Camb. Patrimonio'!$E$28","v":"Incrementos (disminuciones) por otros cambios, patrimonio"},{"$f":"'610000 - Est. Camb. Patrimonio'!$D$28","v":"ifrs-full:IncreaseDecreaseThroughTransfersAndOtherChangesEquity"}]
["/*",null,{"$f":"'610000 - Est. Camb. Patrimonio'!$E$29","v":"Incrementos (disminuciones) por transacciones con acciones propias, patrimonio"},{"$f":"'610000 - Est. Camb. Patrimonio'!$D$29","v":"ifrs-full:IncreaseDecreaseThroughTreasuryShareTransactions"}]
["/*",null,{"$f":"'610000 - Est. Camb. Patrimonio'!$E$30","v":"Incrementos (disminuciones) por cambios las participaciones en la propiedad de subsidiarias que no dan lugar a pérdida de control, patrimonio"},{"$f":"'610000 - Est. Camb. Patrimonio'!$D$30","v":"ifrs-full:IncreaseDecreaseThroughChangesInOwnershipInterestsInSubsidiariesThatDoNotResultInLossOfControl"}]
["/*",null,{"$f":"'610000 - Est. Camb. Patrimonio'!$E$31","v":"Incrementos (disminuciones) por transacciones con pagos basados en acciones, patrimonio"},{"$f":"'610000 - Est. Camb. Patrimonio'!$D$31","v":"ifrs-full:IncreaseDecreaseThroughSharebasedPaymentTransactions"}]
["",null,{"$f":"'610000 - Est. Camb. Patrimonio'!$E$32","v":"Total incremento (disminución) en el patrimonio"},{"$f":"'610000 - Est. Camb. Patrimonio'!$D$32","v":"ifrs-full:ChangesInEquity"},0,"peso",{"$f":"'610000 - Est. Camb. Patrimonio'!$X$32","v":0},0,"http://www.xbrl.org/scheme/companyName",{"$f":"Periodos!$C$3","v":"2023-01-01"},{"$f":"Periodos!$C$4","v":"2023-12-31"},{"$f":"'610000 - Est. Camb. Patrimonio'!$E$15","v":"ifrs-full:ComponentsOfEquityAxis"},{"$f":"'610000 - Est. Camb. Patrimonio'!$X$14","v":"ifrs-full:ReserveOfChangeInFairValueOfFinancialLiabilityAttributableToChangeInCreditRiskOfLiabilityMember"}]
["",null,{"$f":"'610000 - Est. Camb. Patrimonio'!$E$33","v":"Patrimonio al final del periodo"},{"$f":"'610000 - Est. Camb. Patrimonio'!$D$33","v":"ifrs-full:Equity"},0,"peso",{"$f":"'610000 - Est. Camb. Patrimonio'!$X$33","v":0},0,"http://www.xbrl.org/scheme/companyName",null,{"$f":"Periodos!$C$4","v":"2023-12-31"},{"$f":"'610000 - Est. Camb. Patrimonio'!$E$15","v":"ifrs-full:ComponentsOfEquityAxis"},{"$f":"'610000 - Est. Camb. Patrimonio'!$X$14","v":"ifrs-full:ReserveOfChangeInFairValueOfFinancialLiabilityAttributableToChangeInCreditRiskOfLiabilityMember"}]
["/*",null,"--20--"]
["/*",null,{"$f":"'610000 - Est. Camb. Patrimonio'!$E$16","v":"Estado de cambios en el patrimonio [resumen]"},{"$f":"'610000 - Est. Camb. Patrimonio'!$D$16","v":"ifrs-full:StatementOfChangesInEquityAbstract"}]
["/*",null,{"$f":"'610000 - Est. Camb. Patrimonio'!$E$17","v":"Estado de cambios en el patrimonio [partidas de los estados financieros]"},{"$f":"'610000 - Est. Camb. Patrimonio'!$D$17","v":"ifrs-full:StatementOfChangesInEquityLineItems"}]
["/*",null,{"$f":"'610000 - Est. Camb. Patrimonio'!$E$18","v":"Patrimonio al comienzo del periodo"},{"$f":"'610000 - Est. Camb. Patrimonio'!$D$18","v":"ifrs-full:Equity"}]
["/*",null,{"$f":"'610000 - Est. Camb. Patrimonio'!$E$19","v":"Cambios en el patrimonio [resumen]"},{"$f":"'610000 - Est. Camb. Patrimonio'!$D$19","v":"ifrs-full:ChangesInEquityAbstract"}]
["/*",null,{"$f":"'610000 - Est. Camb. Patrimonio'!$E$20","v":"Resultado integral [resumen]"},{"$f":"'610000 - Est. Camb. Patrimonio'!$D$20","v":"ifrs-full:ComprehensiveIncomeAbstract"}]
["",null,{"$f":"'610000 - Est. Camb. Patrimonio'!$E$21","v":"Ganancia (pérdida)"},{"$f":"'610000 - Est. Camb. Patrimonio'!$D$21","v":"ifrs-full:ProfitLoss"},0,"peso",{"$f":"'610000 - Est. Camb. Patrimonio'!$Y$21","v":0},0,"http://www.xbrl.org/scheme/companyName",{"$f":"Periodos!$C$3","v":"2023-01-01"},{"$f":"Periodos!$C$4","v":"2023-12-31"},{"$f":"'610000 - Est. Camb. Patrimonio'!$E$15","v":"ifrs-full:ComponentsOfEquityAxis"},{"$f":"'610000 - Est. Camb. Patrimonio'!$Y$14","v":"ifrs-full:OtherReservesMember"}]
["",null,{"$f":"'610000 - Est. Camb. Patrimonio'!$E$22","v":"Otro resultado integral"},{"$f":"'610000 - Est. Camb. Patrimonio'!$D$22","v":"ifrs-full:OtherComprehensiveIncome"},0,"peso",{"$f":"'610000 - Est. Camb. Patrimonio'!$Y$22","v":0},0,"http://www.xbrl.org/scheme/companyName",{"$f":"Periodos!$C$3","v":"2023-01-01"},{"$f":"Periodos!$C$4","v":"2023-12-31"},{"$f":"'610000 - Est. Camb. Patrimonio'!$E$15","v":"ifrs-full:ComponentsOfEquityAxis"},{"$f":"'610000 - Est. Camb. Patrimonio'!$Y$14","v":"ifrs-full:OtherReservesMember"}]
["",null,{"$f":"'610000 - Est. Camb. Patrimonio'!$E$23","v":"Resultado integral total"},{"$f":"'610000 - Est. Camb. Patrimonio'!$D$23","v":"ifrs-full:ComprehensiveIncome"},0,"peso",{"$f":"'610000 - Est. Camb. Patrimonio'!$Y$23","v":0},0,"http://www.xbrl.org/scheme/companyName",{"$f":"Periodos!$C$3","v":"2023-01-01"},{"$f":"Periodos!$C$4","v":"2023-12-31"},{"$f":"'610000 - Est. Camb. Patrimonio'!$E$15","v":"ifrs-full:ComponentsOfEquityAxis"},{"$f":"'610000 - Est. Camb. Patrimonio'!$Y$14","v":"ifrs-full:OtherReservesMember"}]
["",null,{"$f":"'610000 - Est. Camb. Patrimonio'!$E$24","v":"Emisión de patrimonio"},{"$f":"'610000 - Est. Camb. Patrimonio'!$D$24","v":"ifrs-full:IssueOfEquity"},0,"peso",{"$f":"'610000 - Est. Camb. Patrimonio'!$Y$24","v":0},0,"http://www.xbrl.org/scheme/companyName",{"$f":"Periodos!$C$3","v":"2023-01-01"},{"$f":"Periodos!$C$4","v":"2023-12-31"},{"$f":"'610000 - Est. Camb. Patrimonio'!$E$15","v":"ifrs-full:ComponentsOfEquityAxis"},{"$f":"'610000 - Est. Camb. Patrimonio'!$Y$14","v":"ifrs-full:OtherReservesMember"}]
["",null,{"$f":"'610000 - Est. Camb. Patrimonio'!$E$25","v":"Dividendos reconocidos como distribuciones a los propietarios"},{"$f":"'610000 - Est. Camb. Patrimonio'!$D$25","v":"ifrs-full:DividendsPaid"},0,"peso",{"$f":"'610000 - Est. Camb. Patrimonio'!$Y$25","v":0},0,"http://www.xbrl.org/scheme/companyName",{"$f":"Periodos!$C$3","v":"2023-01-01"},{"$f":"Periodos!$C$4","v":"2023-12-31"},{"$f":"'610000 - Est. Camb. Patrimonio'!$E$15","v":"ifrs-full:ComponentsOfEquityAxis"},{"$f":"'610000 - Est. Camb. Patrimonio'!$Y$14","v":"ifrs-full:OtherReservesMember"}]
["",null,{"$f":"'610000 - Est. Camb. Patrimonio'!$E$26","v":"Incrementos por otras aportaciones de los propietarios, patrimonio"},{"$f":"'610000 - Est. Camb. Patrimonio'!$D$26","v":"ifrs-full:IncreaseDecreaseThroughOtherContributionsByOwners"},0,"peso",{"$f":"'610000 - Est. Camb. Patrimonio'!$Y$26","v":0},0,"http://www.xbrl.org/scheme/companyName",{"$f":"Periodos!$C$3","v":"2023-01-01"},{"$f":"Periodos!$C$4","v":"2023-12-31"},{"$f":"'610000 - Est. Camb. Patrimonio'!$E$15","v":"ifrs-full:ComponentsOfEquityAxis"},{"$f":"'610000 - Est. Camb. Patrimonio'!$Y$14","v":"ifrs-full:OtherReservesMember"}]
["",null,{"$f":"'610000 - Est. Camb. Patrimonio'!$E$27","v":"Disminución por otras distribuciones a los propietarios, patrimonio"},{"$f":"'610000 - Est. Camb. Patrimonio'!$D$27","v":"ifrs-full:IncreaseDecreaseThroughOtherDistributionsToOwners"},0,"peso",{"$f":"'610000 - Est. Camb. Patrimonio'!$Y$27","v":0},0,"http://www.xbrl.org/scheme/companyName",{"$f":"Periodos!$C$3","v":"2023-01-01"},{"$f":"Periodos!$C$4","v":"2023-12-31"},{"$f":"'610000 - Est. Camb. Patrimonio'!$E$15","v":"ifrs-full:ComponentsOfEquityAxis"},{"$f":"'610000 - Est. Camb. Patrimonio'!$Y$14","v":"ifrs-full:OtherReservesMember"}]
["",null,{"$f":"'610000 - Est. Camb. Patrimonio'!$E$28","v":"Incrementos (disminuciones) por otros cambios, patrimonio"},{"$f":"'610000 - Est. Camb. Patrimonio'!$D$28","v":"ifrs-full:IncreaseDecreaseThroughTransfersAndOtherChangesEquity"},0,"peso",{"$f":"'610000 - Est. Camb. Patrimonio'!$Y$28","v":0},0,"http://www.xbrl.org/scheme/companyName",{"$f":"Periodos!$C$3","v":"2023-01-01"},{"$f":"Periodos!$C$4","v":"2023-12-31"},{"$f":"'610000 - Est. Camb. Patrimonio'!$E$15","v":"ifrs-full:ComponentsOfEquityAxis"},{"$f":"'610000 - Est. Camb. Patrimonio'!$Y$14","v":"ifrs-full:OtherReservesMember"}]
["",null,{"$f":"'610000 - Est. Camb. Patrimonio'!$E$29","v":"Incrementos (disminuciones) por transacciones con acciones propias, patrimonio"},{"$f":"'610000 - Est. Camb. Patrimonio'!$D$29","v":"ifrs-full:IncreaseDecreaseThroughTreasuryShareTransactions"},0,"peso",{"$f":"'610000 - Est. Camb. Patrimonio'!$Y$29","v":0},0,"http://www.xbrl.org/scheme/companyName",{"$f":"Periodos!$C$3","v":"2023-01-01"},{"$f":"Periodos!$C$4","v":"2023-12-31"},{"$f":"'610000 - Est. Camb. Patrimonio'!$E$15","v":"ifrs-full:ComponentsOfEquityAxis"},{"$f":"'610000 - Est. Camb. Patrimonio'!$Y$14","v":"ifrs-full:OtherReservesMember"}]
["",null,{"$f":"'610000 - Est. Camb. Patrimonio'!$E$30","v":"Incrementos (disminuciones) por cambios las participaciones en la propiedad de subsidiarias que no dan lugar a pérdida de control, patrimonio"},{"$f":"'610000 - Est. Camb. Patrimonio'!$D$30","v":"ifrs-full:IncreaseDecreaseThroughChangesInOwnershipInterestsInSubsidiariesThatDoNotResultInLossOfControl"},0,"peso",{"$f":"'610000 - Est. Camb. Patrimonio'!$Y$30","v":0},0,"http://www.xbrl.org/scheme/companyName",{"$f":"Periodos!$C$3","v":"2023-01-01"},{"$f":"Periodos!$C$4","v":"2023-12-31"},{"$f":"'610000 - Est. Camb. Patrimonio'!$E$15","v":"ifrs-full:ComponentsOfEquityAxis"},{"$f":"'610000 - Est. Camb. Patrimonio'!$Y$14","v":"ifrs-full:OtherReservesMember"}]
["",null,{"$f":"'610000 - Est. Camb. Patrimonio'!$E$31","v":"Incrementos (disminuciones) por transacciones con pagos basados en acciones, patrimonio"},{"$f":"'610000 - Est. Camb. Patrimonio'!$D$31","v":"ifrs-full:IncreaseDecreaseThroughSharebasedPaymentTransactions"},0,"peso",{"$f":"'610000 - Est. Camb. Patrimonio'!$Y$31","v":0},0,"http://www.xbrl.org/scheme/companyName",{"$f":"Periodos!$C$3","v":"2023-01-01"},{"$f":"Periodos!$C$4","v":"2023-12-31"},{"$f":"'610000 - Est. Camb. Patrimonio'!$E$15","v":"ifrs-full:ComponentsOfEquityAxis"},{"$f":"'610000 - Est. Camb. Patrimonio'!$Y$14","v":"ifrs-full:OtherReservesMember"}]
["",null,{"$f":"'610000 - Est. Camb. Patrimonio'!$E$32","v":"Total incremento (disminución) en el patrimonio"},{"$f":"'610000 - Est. Camb. Patrimonio'!$D$32","v":"ifrs-full:ChangesInEquity"},0,"peso",{"$f":"'610000 - Est. Camb. Patrimonio'!$Y$32","v":0},0,"http://www.xbrl.org/scheme/companyName",{"$f":"Periodos!$C$3","v":"2023-01-01"},{"$f":"Periodos!$C$4","v":"2023-12-31"},{"$f":"'610000 - Est. Camb. Patrimonio'!$E$15","v":"ifrs-full:ComponentsOfEquityAxis"},{"$f":"'610000 - Est. Camb. Patrimonio'!$Y$14","v":"ifrs-full:OtherReservesMember"}]
["",null,{"$f":"'610000 - Est. Camb. Patrimonio'!$E$33","v":"Patrimonio al final del periodo"},{"$f":"'610000 - Est. Camb. Patrimonio'!$D$33","v":"ifrs-full:Equity"},0,"peso",{"$f":"'610000 - Est. Camb. Patrimonio'!$Y$33","v":0},0,"http://www.xbrl.org/scheme/companyName",null,{"$f":"Periodos!$C$4","v":"2023-12-31"},{"$f":"'610000 - Est. Camb. Patrimonio'!$E$15","v":"ifrs-full:ComponentsOfEquityAxis"},{"$f":"'610000 - Est. Camb. Patrimonio'!$Y$14","v":"ifrs-full:OtherReservesMember"}]
["/*",null,"--21--"]
["/*",null,{"$f":"'610000 - Est. Camb. Patrimonio'!$E$16","v":"Estado de cambios en el patrimonio [resumen]"},{"$f":"'610000 - Est. Camb. Patrimonio'!$D$16","v":"ifrs-full:StatementOfChangesInEquityAbstract"}]
["/*",null,{"$f":"'610000 - Est. Camb. Patrimonio'!$E$17","v":"Estado de cambios en el patrimonio [partidas de los estados financieros]"},{"$f":"'610000 - Est. Camb. Patrimonio'!$D$17","v":"ifrs-full:StatementOfChangesInEquityLineItems"}]
["/*",null,{"$f":"'610000 - Est. Camb. Patrimonio'!$E$18","v":"Patrimonio al comienzo del periodo"},{"$f":"'610000 - Est. Camb. Patrimonio'!$D$18","v":"ifrs-full:Equity"}]
["/*",null,{"$f":"'610000 - Est. Camb. Patrimonio'!$E$19","v":"Cambios en el patrimonio [resumen]"},{"$f":"'610000 - Est. Camb. Patrimonio'!$D$19","v":"ifrs-full:ChangesInEquityAbstract"}]
["/*",null,{"$f":"'610000 - Est. Camb. Patrimonio'!$E$20","v":"Resultado integral [resumen]"},{"$f":"'610000 - Est. Camb. Patrimonio'!$D$20","v":"ifrs-full:ComprehensiveIncomeAbstract"}]
["/*",null,{"$f":"'610000 - Est. Camb. Patrimonio'!$E$21","v":"Ganancia (pérdida)"},{"$f":"'610000 - Est. Camb. Patrimonio'!$D$21","v":"ifrs-full:ProfitLoss"}]
["/*",null,{"$f":"'610000 - Est. Camb. Patrimonio'!$E$22","v":"Otro resultado integral"},{"$f":"'610000 - Est. Camb. Patrimonio'!$D$22","v":"ifrs-full:OtherComprehensiveIncome"}]
["",null,{"$f":"'610000 - Est. Camb. Patrimonio'!$E$23","v":"Resultado integral total"},{"$f":"'610000 - Est. Camb. Patrimonio'!$D$23","v":"ifrs-full:ComprehensiveIncome"},0,"peso",{"$f":"'610000 - Est. Camb. Patrimonio'!$Z$23","v":0},0,"http://www.xbrl.org/scheme/companyName",{"$f":"Periodos!$C$3","v":"2023-01-01"},{"$f":"Periodos!$C$4","v":"2023-12-31"},{"$f":"'610000 - Est. Camb. Patrimonio'!$E$15","v":"ifrs-full:ComponentsOfEquityAxis"},{"$f":"'610000 - Est. Camb. Patrimonio'!$Z$14","v":"ifrs-full:RetainedEarningsMember"}]
["/*",null,{"$f":"'610000 - Est. Camb. Patrimonio'!$E$24","v":"Emisión de patrimonio"},{"$f":"'610000 - Est. Camb. Patrimonio'!$D$24","v":"ifrs-full:IssueOfEquity"}]
["/*",null,{"$f":"'610000 - Est. Camb. Patrimonio'!$E$25","v":"Dividendos reconocidos como distribuciones a los propietarios"},{"$f":"'610000 - Est. Camb. Patrimonio'!$D$25","v":"ifrs-full:DividendsPaid"}]
["/*",null,{"$f":"'610000 - Est. Camb. Patrimonio'!$E$26","v":"Incrementos por otras aportaciones de los propietarios, patrimonio"},{"$f":"'610000 - Est. Camb. Patrimonio'!$D$26","v":"ifrs-full:IncreaseDecreaseThroughOtherContributionsByOwners"}]
["/*",null,{"$f":"'610000 - Est. Camb. Patrimonio'!$E$27","v":"Disminución por otras distribuciones a los propietarios, patrimonio"},{"$f":"'610000 - Est. Camb. Patrimonio'!$D$27","v":"ifrs-full:IncreaseDecreaseThroughOtherDistributionsToOwners"}]
["/*",null,{"$f":"'610000 - Est. Camb. Patrimonio'!$E$28","v":"Incrementos (disminuciones) por otros cambios, patrimonio"},{"$f":"'610000 - Est. Camb. Patrimonio'!$D$28","v":"ifrs-full:IncreaseDecreaseThroughTransfersAndOtherChangesEquity"}]
["/*",null,{"$f":"'610000 - Est. Camb. Patrimonio'!$E$29","v":"Incrementos (disminuciones) por transacciones con acciones propias, patrimonio"},{"$f":"'610000 - Est. Camb. Patrimonio'!$D$29","v":"ifrs-full:IncreaseDecreaseThroughTreasuryShareTransactions"}]
["/*",null,{"$f":"'610000 - Est. Camb. Patrimonio'!$E$30","v":"Incrementos (disminuciones) por cambios las participaciones en la propiedad de subsidiarias que no dan lugar a pérdida de control, patrimonio"},{"$f":"'610000 - Est. Camb. Patrimonio'!$D$30","v":"ifrs-full:IncreaseDecreaseThroughChangesInOwnershipInterestsInSubsidiariesThatDoNotResultInLossOfControl"}]
["/*",null,{"$f":"'610000 - Est. Camb. Patrimonio'!$E$31","v":"Incrementos (disminuciones) por transacciones con pagos basados en acciones, patrimonio"},{"$f":"'610000 - Est. Camb. Patrimonio'!$D$31","v":"ifrs-full:IncreaseDecreaseThroughSharebasedPaymentTransactions"}]
["",null,{"$f":"'610000 - Est. Camb. Patrimonio'!$E$32","v":"Total incremento (disminución) en el patrimonio"},{"$f":"'610000 - Est. Camb. Patrimonio'!$D$32","v":"ifrs-full:ChangesInEquity"},0,"peso",{"$f":"'610000 - Est. Camb. Patrimonio'!$Z$32","v":0},0,"http://www.xbrl.org/scheme/companyName",{"$f":"Periodos!$C$3","v":"2023-01-01"},{"$f":"Periodos!$C$4","v":"2023-12-31"},{"$f":"'610000 - Est. Camb. Patrimonio'!$E$15","v":"ifrs-full:ComponentsOfEquityAxis"},{"$f":"'610000 - Est. Camb. Patrimonio'!$Z$14","v":"ifrs-full:RetainedEarningsMember"}]
["",null,{"$f":"'610000 - Est. Camb. Patrimonio'!$E$33","v":"Patrimonio al final del periodo"},{"$f":"'610000 - Est. Camb. Patrimonio'!$D$33","v":"ifrs-full:Equity"},0,"peso",{"$f":"'610000 - Est. Camb. Patrimonio'!$Z$33","v":0},0,"http://www.xbrl.org/scheme/companyName",null,{"$f":"Periodos!$C$4","v":"2023-12-31"},{"$f":"'610000 - Est. Camb. Patrimonio'!$E$15","v":"ifrs-full:ComponentsOfEquityAxis"},{"$f":"'610000 - Est. Camb. Patrimonio'!$Z$14","v":"ifrs-full:RetainedEarningsMember"}]
["/*",null,"--22--"]
[{"$f":"IF(G7904=\"\",\"/*\",\"\")","v":"/*"},null,{"$f":"'610000 - Est. Camb. Patrimonio'!$E$16","v":"Estado de cambios en el patrimonio [resumen]"},{"$f":"'610000 - Est. Camb. Patrimonio'!$D$16","v":"ifrs-full:StatementOfChangesInEquityAbstract"}]
["/*",null,{"$f":"'610000 - Est. Camb. Patrimonio'!$E$17","v":"Estado de cambios en el patrimonio [partidas de los estados financieros]"},{"$f":"'610000 - Est. Camb. Patrimonio'!$D$17","v":"ifrs-full:StatementOfChangesInEquityLineItems"}]
["/*",null,{"$f":"'610000 - Est. Camb. Patrimonio'!$E$18","v":"Patrimonio al comienzo del periodo"},{"$f":"'610000 - Est. Camb. Patrimonio'!$D$18","v":"ifrs-full:Equity"}]
["/*",null,{"$f":"'610000 - Est. Camb. Patrimonio'!$E$19","v":"Cambios en el patrimonio [resumen]"},{"$f":"'610000 - Est. Camb. Patrimonio'!$D$19","v":"ifrs-full:ChangesInEquityAbstract"}]
["/*",null,{"$f":"'610000 - Est. Camb. Patrimonio'!$E$20","v":"Resultado integral [resumen]"},{"$f":"'610000 - Est. Camb. Patrimonio'!$D$20","v":"ifrs-full:ComprehensiveIncomeAbstract"}]
["/*",null,{"$f":"'610000 - Est. Camb. Patrimonio'!$E$21","v":"Ganancia (pérdida)"},{"$f":"'610000 - Est. Camb. Patrimonio'!$D$21","v":"ifrs-full:ProfitLoss"}]
["/*",null,{"$f":"'610000 - Est. Camb. Patrimonio'!$E$22","v":"Otro resultado integral"},{"$f":"'610000 - Est. Camb. Patrimonio'!$D$22","v":"ifrs-full:OtherComprehensiveIncome"}]
["/*",null,{"$f":"'610000 - Est. Camb. Patrimonio'!$E$23","v":"Resultado integral total"},{"$f":"'610000 - Est. Camb. Patrimonio'!$D$23","v":"ifrs-full:ComprehensiveIncome"}]
["",null,{"$f":"'610000 - Est. Camb. Patrimonio'!$E$24","v":"Emisión de patrimonio"},{"$f":"'610000 - Est. Camb. Patrimonio'!$D$24","v":"ifrs-full:IssueOfEquity"},0,"peso",{"$f":"'610000 - Est. Camb. Patrimonio'!$AA$24","v":0},0,"http://www.xbrl.org/scheme/companyName",{"$f":"Periodos!$C$3","v":"2023-01-01"},{"$f":"Periodos!$C$4","v":"2023-12-31"}]
["",null,{"$f":"'610000 - Est. Camb. Patrimonio'!$E$25","v":"Dividendos reconocidos como distribuciones a los propietarios"},{"$f":"'610000 - Est. Camb. Patrimonio'!$D$25","v":"ifrs-full:DividendsPaid"},0,"peso",{"$f":"'610000 - Est. Camb. Patrimonio'!$AA$25","v":0},0,"http://www.xbrl.org/scheme/companyName",{"$f":"Periodos!$C$3","v":"2023-01-01"},{"$f":"Periodos!$C$4","v":"2023-12-31"}]
["",null,{"$f":"'610000 - Est. Camb. Patrimonio'!$E$26","v":"Incrementos por otras aportaciones de los propietarios, patrimonio"},{"$f":"'610000 - Est. Camb. Patrimonio'!$D$26","v":"ifrs-full:IncreaseDecreaseThroughOtherContributionsByOwners"},0,"peso",{"$f":"'610000 - Est. Camb. Patrimonio'!$AA$26","v":0},0,"http://www.xbrl.org/scheme/companyName",{"$f":"Periodos!$C$3","v":"2023-01-01"},{"$f":"Periodos!$C$4","v":"2023-12-31"}]
["",null,{"$f":"'610000 - Est. Camb. Patrimonio'!$E$27","v":"Disminución por otras distribuciones a los propietarios, patrimonio"},{"$f":"'610000 - Est. Camb. Patrimonio'!$D$27","v":"ifrs-full:IncreaseDecreaseThroughOtherDistributionsToOwners"},0,"peso",{"$f":"'610000 - Est. Camb. Patrimonio'!$AA$27","v":0},0,"http://www.xbrl.org/scheme/companyName",{"$f":"Periodos!$C$3","v":"2023-01-01"},{"$f":"Periodos!$C$4","v":"2023-12-31"}]
["",null,{"$f":"'610000 - Est. Camb. Patrimonio'!$E$28","v":"Incrementos (disminuciones) por otros cambios, patrimonio"},{"$f":"'610000 - Est. Camb. Patrimonio'!$D$28","v":"ifrs-full:IncreaseDecreaseThroughTransfersAndOtherChangesEquity"},0,"peso",{"$f":"'610000 - Est. Camb. Patrimonio'!$AA$28","v":0},0,"http://www.xbrl.org/scheme/companyName",{"$f":"Periodos!$C$3","v":"2023-01-01"},{"$f":"Periodos!$C$4","v":"2023-12-31"}]
["",null,{"$f":"'610000 - Est. Camb. Patrimonio'!$E$29","v":"Incrementos (disminuciones) por transacciones con acciones propias, patrimonio"},{"$f":"'610000 - Est. Camb. Patrimonio'!$D$29","v":"ifrs-full:IncreaseDecreaseThroughTreasuryShareTransactions"},0,"peso",{"$f":"'610000 - Est. Camb. Patrimonio'!$AA$29","v":0},0,"http://www.xbrl.org/scheme/companyName",{"$f":"Periodos!$C$3","v":"2023-01-01"},{"$f":"Periodos!$C$4","v":"2023-12-31"}]
["",null,{"$f":"'610000 - Est. Camb. Patrimonio'!$E$30","v":"Incrementos (disminuciones) por cambios las participaciones en la propiedad de subsidiarias que no dan lugar a pérdida de control, patrimonio"},{"$f":"'610000 - Est. Camb. Patrimonio'!$D$30","v":"ifrs-full:IncreaseDecreaseThroughChangesInOwnershipInterestsInSubsidiariesThatDoNotResultInLossOfControl"},0,"peso",{"$f":"'610000 - Est. Camb. Patrimonio'!$AA$30","v":0},0,"http://www.xbrl.org/scheme/companyName",{"$f":"Periodos!$C$3","v":"2023-01-01"},{"$f":"Periodos!$C$4","v":"2023-12-31"}]
["",null,{"$f":"'610000 - Est. Camb. Patrimonio'!$E$31","v":"Incrementos (disminuciones) por transacciones con pagos basados en acciones, patrimonio"},{"$f":"'610000 - Est. Camb. Patrimonio'!$D$31","v":"ifrs-full:IncreaseDecreaseThroughSharebasedPaymentTransactions"},0,"peso",{"$f":"'610000 - Est. Camb. Patrimonio'!$AA$31","v":0},0,"http://www.xbrl.org/scheme/companyName",{"$f":"Periodos!$C$3","v":"2023-01-01"},{"$f":"Periodos!$C$4","v":"2023-12-31"}]
["",null,{"$f":"'610000 - Est. Camb. Patrimonio'!$E$32","v":"Total incremento (disminución) en el patrimonio"},{"$f":"'610000 - Est. Camb. Patrimonio'!$D$32","v":"ifrs-full:ChangesInEquity"},0,"peso",{"$f":"'610000 - Est. Camb. Patrimonio'!$AA$32","v":0},0,"http://www.xbrl.org/scheme/companyName",{"$f":"Periodos!$C$3","v":"2023-01-01"},{"$f":"Periodos!$C$4","v":"2023-12-31"}]
["",null,{"$f":"'610000 - Est. Camb. Patrimonio'!$E$33","v":"Patrimonio al final del periodo"},{"$f":"'610000 - Est. Camb. Patrimonio'!$D$33","v":"ifrs-full:Equity"},0,"peso",{"$f":"'610000 - Est. Camb. Patrimonio'!$AA$33","v":0},0,"http://www.xbrl.org/scheme/companyName",null,{"$f":"Periodos!$C$4","v":"2023-12-31"}]
["/*"]
["/*",null,"610000 - Est. Camb. Patrimonio"]
["/*",null,"--01--"]
["/*",null,{"$f":"'610000 - Est. Camb. Patrimonio'!$E$43","v":"Estado de cambios en el patrimonio [resumen]"},{"$f":"'610000 - Est. Camb. Patrimonio'!$D$43","v":"ifrs-full:StatementOfChangesInEquityAbstract"}]
["/*",null,{"$f":"'610000 - Est. Camb. Patrimonio'!$E$44","v":"Estado de cambios en el patrimonio [partidas de los estados financieros]"},{"$f":"'610000 - Est. Camb. Patrimonio'!$D$44","v":"ifrs-full:StatementOfChangesInEquityLineItems"}]
["/*",null,{"$f":"'610000 - Est. Camb. Patrimonio'!$E$45","v":"Patrimonio al comienzo del periodo"},{"$f":"'610000 - Est. Camb. Patrimonio'!$D$45","v":"ifrs-full:Equity"}]
["/*",null,{"$f":"'610000 - Est. Camb. Patrimonio'!$E$46","v":"Cambios en el patrimonio [resumen]"},{"$f":"'610000 - Est. Camb. Patrimonio'!$D$46","v":"ifrs-full:ChangesInEquityAbstract"}]
["/*",null,{"$f":"'610000 - Est. Camb. Patrimonio'!$E$47","v":"Resultado integral [resumen]"},{"$f":"'610000 - Est. Camb. Patrimonio'!$D$47","v":"ifrs-full:ComprehensiveIncomeAbstract"}]
["/*",null,{"$f":"'610000 - Est. Camb. Patrimonio'!$E$48","v":"Ganancia (pérdida)"},{"$f":"'610000 - Est. Camb. Patrimonio'!$D$48","v":"ifrs-full:ProfitLoss"}]
["/*",null,{"$f":"'610000 - Est. Camb. Patrimonio'!$E$49","v":"Otro resultado integral"},{"$f":"'610000 - Est. Camb. Patrimonio'!$D$49","v":"ifrs-full:OtherComprehensiveIncome"}]
["",null,{"$f":"'610000 - Est. Camb. Patrimonio'!$E$50","v":"Resultado integral total"},{"$f":"'610000 - Est. Camb. Patrimonio'!$D$50","v":"ifrs-full:ComprehensiveIncome"},0,"peso",{"$f":"'610000 - Est. Camb. Patrimonio'!$F$50","v":0},0,"http://www.xbrl.org/scheme/companyName",{"$f":"Periodos!$D$3","v":"2022-01-01"},{"$f":"Periodos!$D$4","v":"2022-12-31"},{"$f":"'610000 - Est. Camb. Patrimonio'!$E$42","v":"ifrs-full:ComponentsOfEquityAxis"},{"$f":"'610000 - Est. Camb. Patrimonio'!$F$41","v":"ifrs-full:IssuedCapitalMember"}]
["/*",null,{"$f":"'610000 - Est. Camb. Patrimonio'!$E$51","v":"Emisión de patrimonio"},{"$f":"'610000 - Est. Camb. Patrimonio'!$D$51","v":"ifrs-full:IssueOfEquity"}]
["/*",null,{"$f":"'610000 - Est. Camb. Patrimonio'!$E$52","v":"Dividendos reconocidos como distribuciones a los propietarios"},{"$f":"'610000 - Est. Camb. Patrimonio'!$D$52","v":"ifrs-full:DividendsPaid"}]
["/*",null,{"$f":"'610000 - Est. Camb. Patrimonio'!$E$53","v":"Incrementos por otras aportaciones de los propietarios, patrimonio"},{"$f":"'610000 - Est. Camb. Patrimonio'!$D$53","v":"ifrs-full:IncreaseDecreaseThroughOtherContributionsByOwners"}]
["/*",null,{"$f":"'610000 - Est. Camb. Patrimonio'!$E$54","v":"Disminución por otras distribuciones a los propietarios, patrimonio"},{"$f":"'610000 - Est. Camb. Patrimonio'!$D$54","v":"ifrs-full:IncreaseDecreaseThroughOtherDistributionsToOwners"}]
["/*",null,{"$f":"'610000 - Est. Camb. Patrimonio'!$E$55","v":"Incrementos (disminuciones) por otros cambios, patrimonio"},{"$f":"'610000 - Est. Camb. Patrimonio'!$D$55","v":"ifrs-full:IncreaseDecreaseThroughTransfersAndOtherChangesEquity"}]
["/*",null,{"$f":"'610000 - Est. Camb. Patrimonio'!$E$56","v":"Incrementos (disminuciones) por transacciones con acciones propias, patrimonio"},{"$f":"'610000 - Est. Camb. Patrimonio'!$D$56","v":"ifrs-full:IncreaseDecreaseThroughTreasuryShareTransactions"}]
["/*",null,{"$f":"'610000 - Est. Camb. Patrimonio'!$E$57","v":"Incrementos (disminuciones) por cambios las participaciones en la propiedad de subsidiarias que no dan lugar a pérdida de control, patrimonio"},{"$f":"'610000 - Est. Camb. Patrimonio'!$D$57","v":"ifrs-full:IncreaseDecreaseThroughChangesInOwnershipInterestsInSubsidiariesThatDoNotResultInLossOfControl"}]
["/*",null,{"$f":"'610000 - Est. Camb. Patrimonio'!$E$58","v":"Incrementos (disminuciones) por transacciones con pagos basados en acciones, patrimonio"},{"$f":"'610000 - Est. Camb. Patrimonio'!$D$58","v":"ifrs-full:IncreaseDecreaseThroughSharebasedPaymentTransactions"}]
["",null,{"$f":"'610000 - Est. Camb. Patrimonio'!$E$59","v":"Total incremento (disminución) en el patrimonio"},{"$f":"'610000 - Est. Camb. Patrimonio'!$D$59","v":"ifrs-full:ChangesInEquity"},0,"peso",{"$f":"'610000 - Est. Camb. Patrimonio'!$F$59","v":0},0,"http://www.xbrl.org/scheme/companyName",{"$f":"Periodos!$D$3","v":"2022-01-01"},{"$f":"Periodos!$D$4","v":"2022-12-31"},{"$f":"'610000 - Est. Camb. Patrimonio'!$E$42","v":"ifrs-full:ComponentsOfEquityAxis"},{"$f":"'610000 - Est. Camb. Patrimonio'!$F$41","v":"ifrs-full:IssuedCapitalMember"}]
["",null,{"$f":"'610000 - Est. Camb. Patrimonio'!$E$60","v":"Patrimonio al final del periodo"},{"$f":"'610000 - Est. Camb. Patrimonio'!$D$60","v":"ifrs-full:Equity"},0,"peso",{"$f":"'610000 - Est. Camb. Patrimonio'!$F$60","v":0},0,"http://www.xbrl.org/scheme/companyName",null,{"$f":"Periodos!$D$4","v":"2022-12-31"},{"$f":"'610000 - Est. Camb. Patrimonio'!$E$42","v":"ifrs-full:ComponentsOfEquityAxis"},{"$f":"'610000 - Est. Camb. Patrimonio'!$F$41","v":"ifrs-full:IssuedCapitalMember"}]
["/*",null,"--02--"]
["/*",null,{"$f":"'610000 - Est. Camb. Patrimonio'!$E$43","v":"Estado de cambios en el patrimonio [resumen]"},{"$f":"'610000 - Est. Camb. Patrimonio'!$D$43","v":"ifrs-full:StatementOfChangesInEquityAbstract"}]
["/*",null,{"$f":"'610000 - Est. Camb. Patrimonio'!$E$44","v":"Estado de cambios en el patrimonio [partidas de los estados financieros]"},{"$f":"'610000 - Est. Camb. Patrimonio'!$D$44","v":"ifrs-full:StatementOfChangesInEquityLineItems"}]
["/*",null,{"$f":"'610000 - Est. Camb. Patrimonio'!$E$45","v":"Patrimonio al comienzo del periodo"},{"$f":"'610000 - Est. Camb. Patrimonio'!$D$45","v":"ifrs-full:Equity"}]
["/*",null,{"$f":"'610000 - Est. Camb. Patrimonio'!$E$46","v":"Cambios en el patrimonio [resumen]"},{"$f":"'610000 - Est. Camb. Patrimonio'!$D$46","v":"ifrs-full:ChangesInEquityAbstract"}]
["/*",null,{"$f":"'610000 - Est. Camb. Patrimonio'!$E$47","v":"Resultado integral [resumen]"},{"$f":"'610000 - Est. Camb. Patrimonio'!$D$47","v":"ifrs-full:ComprehensiveIncomeAbstract"}]
["/*",null,{"$f":"'610000 - Est. Camb. Patrimonio'!$E$48","v":"Ganancia (pérdida)"},{"$f":"'610000 - Est. Camb. Patrimonio'!$D$48","v":"ifrs-full:ProfitLoss"}]
["/*",null,{"$f":"'610000 - Est. Camb. Patrimonio'!$E$49","v":"Otro resultado integral"},{"$f":"'610000 - Est. Camb. Patrimonio'!$D$49","v":"ifrs-full:OtherComprehensiveIncome"}]
["",null,{"$f":"'610000 - Est. Camb. Patrimonio'!$E$50","v":"Resultado integral total"},{"$f":"'610000 - Est. Camb. Patrimonio'!$D$50","v":"ifrs-full:ComprehensiveIncome"},0,"peso",{"$f":"'610000 - Est. Camb. Patrimonio'!$G$50","v":0},0,"http://www.xbrl.org/scheme/companyName",{"$f":"Periodos!$D$3","v":"2022-01-01"},{"$f":"Periodos!$D$4","v":"2022-12-31"},{"$f":"'610000 - Est. Camb. Patrimonio'!$E$42","v":"ifrs-full:ComponentsOfEquityAxis"},{"$f":"'610000 - Est. Camb. Patrimonio'!$G$41","v":"ifrs-full:SharePremiumMember"}]
["/*",null,{"$f":"'610000 - Est. Camb. Patrimonio'!$E$51","v":"Emisión de patrimonio"},{"$f":"'610000 - Est. Camb. Patrimonio'!$D$51","v":"ifrs-full:IssueOfEquity"}]
["/*",null,{"$f":"'610000 - Est. Camb. Patrimonio'!$E$52","v":"Dividendos reconocidos como distribuciones a los propietarios"},{"$f":"'610000 - Est. Camb. Patrimonio'!$D$52","v":"ifrs-full:DividendsPaid"}]
["/*",null,{"$f":"'610000 - Est. Camb. Patrimonio'!$E$53","v":"Incrementos por otras aportaciones de los propietarios, patrimonio"},{"$f":"'610000 - Est. Camb. Patrimonio'!$D$53","v":"ifrs-full:IncreaseDecreaseThroughOtherContributionsByOwners"}]
["/*",null,{"$f":"'610000 - Est. Camb. Patrimonio'!$E$54","v":"Disminución por otras distribuciones a los propietarios, patrimonio"},{"$f":"'610000 - Est. Camb. Patrimonio'!$D$54","v":"ifrs-full:IncreaseDecreaseThroughOtherDistributionsToOwners"}]
["/*",null,{"$f":"'610000 - Est. Camb. Patrimonio'!$E$55","v":"Incrementos (disminuciones) por otros cambios, patrimonio"},{"$f":"'610000 - Est. Camb. Patrimonio'!$D$55","v":"ifrs-full:IncreaseDecreaseThroughTransfersAndOtherChangesEquity"}]
["/*",null,{"$f":"'610000 - Est. Camb. Patrimonio'!$E$56","v":"Incrementos (disminuciones) por transacciones con acciones propias, patrimonio"},{"$f":"'610000 - Est. Camb. Patrimonio'!$D$56","v":"ifrs-full:IncreaseDecreaseThroughTreasuryShareTransactions"}]
["/*",null,{"$f":"'610000 - Est. Camb. Patrimonio'!$E$57","v":"Incrementos (disminuciones) por cambios las participaciones en la propiedad de subsidiarias que no dan lugar a pérdida de control, patrimonio"},{"$f":"'610000 - Est. Camb. Patrimonio'!$D$57","v":"ifrs-full:IncreaseDecreaseThroughChangesInOwnershipInterestsInSubsidiariesThatDoNotResultInLossOfControl"}]
["/*",null,{"$f":"'610000 - Est. Camb. Patrimonio'!$E$58","v":"Incrementos (disminuciones) por transacciones con pagos basados en acciones, patrimonio"},{"$f":"'610000 - Est. Camb. Patrimonio'!$D$58","v":"ifrs-full:IncreaseDecreaseThroughSharebasedPaymentTransactions"}]
["",null,{"$f":"'610000 - Est. Camb. Patrimonio'!$E$59","v":"Total incremento (disminución) en el patrimonio"},{"$f":"'610000 - Est. Camb. Patrimonio'!$D$59","v":"ifrs-full:ChangesInEquity"},0,"peso",{"$f":"'610000 - Est. Camb. Patrimonio'!$G$59","v":0},0,"http://www.xbrl.org/scheme/companyName",{"$f":"Periodos!$D$3","v":"2022-01-01"},{"$f":"Periodos!$D$4","v":"2022-12-31"},{"$f":"'610000 - Est. Camb. Patrimonio'!$E$42","v":"ifrs-full:ComponentsOfEquityAxis"},{"$f":"'610000 - Est. Camb. Patrimonio'!$G$41","v":"ifrs-full:SharePremiumMember"}]
["",null,{"$f":"'610000 - Est. Camb. Patrimonio'!$E$60","v":"Patrimonio al final del periodo"},{"$f":"'610000 - Est. Camb. Patrimonio'!$D$60","v":"ifrs-full:Equity"},0,"peso",{"$f":"'610000 - Est. Camb. Patrimonio'!$G$60","v":0},0,"http://www.xbrl.org/scheme/companyName",null,{"$f":"Periodos!$D$4","v":"2022-12-31"},{"$f":"'610000 - Est. Camb. Patrimonio'!$E$42","v":"ifrs-full:ComponentsOfEquityAxis"},{"$f":"'610000 - Est. Camb. Patrimonio'!$G$41","v":"ifrs-full:SharePremiumMember"}]
["/*",null,"--03--"]
["/*",null,{"$f":"'610000 - Est. Camb. Patrimonio'!$E$43","v":"Estado de cambios en el patrimonio [resumen]"},{"$f":"'610000 - Est. Camb. Patrimonio'!$D$43","v":"ifrs-full:StatementOfChangesInEquityAbstract"}]
["/*",null,{"$f":"'610000 - Est. Camb. Patrimonio'!$E$44","v":"Estado de cambios en el patrimonio [partidas de los estados financieros]"},{"$f":"'610000 - Est. Camb. Patrimonio'!$D$44","v":"ifrs-full:StatementOfChangesInEquityLineItems"}]
["/*",null,{"$f":"'610000 - Est. Camb. Patrimonio'!$E$45","v":"Patrimonio al comienzo del periodo"},{"$f":"'610000 - Est. Camb. Patrimonio'!$D$45","v":"ifrs-full:Equity"}]
["/*",null,{"$f":"'610000 - Est. Camb. Patrimonio'!$E$46","v":"Cambios en el patrimonio [resumen]"},{"$f":"'610000 - Est. Camb. Patrimonio'!$D$46","v":"ifrs-full:ChangesInEquityAbstract"}]
["/*",null,{"$f":"'610000 - Est. Camb. Patrimonio'!$E$47","v":"Resultado integral [resumen]"},{"$f":"'610000 - Est. Camb. Patrimonio'!$D$47","v":"ifrs-full:ComprehensiveIncomeAbstract"}]
[{"$f":"IF(G7968=\"\",\"/*\",\"\")","v":"/*"},null,{"$f":"'610000 - Est. Camb. Patrimonio'!$E$48","v":"Ganancia (pérdida)"},{"$f":"'610000 - Est. Camb. Patrimonio'!$D$48","v":"ifrs-full:ProfitLoss"}]
["/*",null,{"$f":"'610000 - Est. Camb. Patrimonio'!$E$49","v":"Otro resultado integral"},{"$f":"'610000 - Est. Camb. Patrimonio'!$D$49","v":"ifrs-full:OtherComprehensiveIncome"}]
["",null,{"$f":"'610000 - Est. Camb. Patrimonio'!$E$50","v":"Resultado integral total"},{"$f":"'610000 - Est. Camb. Patrimonio'!$D$50","v":"ifrs-full:ComprehensiveIncome"},0,"peso",{"$f":"'610000 - Est. Camb. Patrimonio'!$H$50","v":0},0,"http://www.xbrl.org/scheme/companyName",{"$f":"Periodos!$D$3","v":"2022-01-01"},{"$f":"Periodos!$D$4","v":"2022-12-31"},{"$f":"'610000 - Est. Camb. Patrimonio'!$E$42","v":"ifrs-full:ComponentsOfEquityAxis"},{"$f":"'610000 - Est. Camb. Patrimonio'!$H$41","v":"ifrs-full:TreasurySharesMember"}]
["/*",null,{"$f":"'610000 - Est. Camb. Patrimonio'!$E$51","v":"Emisión de patrimonio"},{"$f":"'610000 - Est. Camb. Patrimonio'!$D$51","v":"ifrs-full:IssueOfEquity"}]
["/*",null,{"$f":"'610000 - Est. Camb. Patrimonio'!$E$52","v":"Dividendos reconocidos como distribuciones a los propietarios"},{"$f":"'610000 - Est. Camb. Patrimonio'!$D$52","v":"ifrs-full:DividendsPaid"}]
["/*",null,{"$f":"'610000 - Est. Camb. Patrimonio'!$E$53","v":"Incrementos por otras aportaciones de los propietarios, patrimonio"},{"$f":"'610000 - Est. Camb. Patrimonio'!$D$53","v":"ifrs-full:IncreaseDecreaseThroughOtherContributionsByOwners"}]
["/*",null,{"$f":"'610000 - Est. Camb. Patrimonio'!$E$54","v":"Disminución por otras distribuciones a los propietarios, patrimonio"},{"$f":"'610000 - Est. Camb. Patrimonio'!$D$54","v":"ifrs-full:IncreaseDecreaseThroughOtherDistributionsToOwners"}]
["/*",null,{"$f":"'610000 - Est. Camb. Patrimonio'!$E$55","v":"Incrementos (disminuciones) por otros cambios, patrimonio"},{"$f":"'610000 - Est. Camb. Patrimonio'!$D$55","v":"ifrs-full:IncreaseDecreaseThroughTransfersAndOtherChangesEquity"}]
["/*",null,{"$f":"'610000 - Est. Camb. Patrimonio'!$E$56","v":"Incrementos (disminuciones) por transacciones con acciones propias, patrimonio"},{"$f":"'610000 - Est. Camb. Patrimonio'!$D$56","v":"ifrs-full:IncreaseDecreaseThroughTreasuryShareTransactions"}]
["/*",null,{"$f":"'610000 - Est. Camb. Patrimonio'!$E$57","v":"Incrementos (disminuciones) por cambios las participaciones en la propiedad de subsidiarias que no dan lugar a pérdida de control, patrimonio"},{"$f":"'610000 - Est. Camb. Patrimonio'!$D$57","v":"ifrs-full:IncreaseDecreaseThroughChangesInOwnershipInterestsInSubsidiariesThatDoNotResultInLossOfControl"}]
["/*",null,{"$f":"'610000 - Est. Camb. Patrimonio'!$E$58","v":"Incrementos (disminuciones) por transacciones con pagos basados en acciones, patrimonio"},{"$f":"'610000 - Est. Camb. Patrimonio'!$D$58","v":"ifrs-full:IncreaseDecreaseThroughSharebasedPaymentTransactions"}]
["",null,{"$f":"'610000 - Est. Camb. Patrimonio'!$E$59","v":"Total incremento (disminución) en el patrimonio"},{"$f":"'610000 - Est. Camb. Patrimonio'!$D$59","v":"ifrs-full:ChangesInEquity"},0,"peso",{"$f":"'610000 - Est. Camb. Patrimonio'!$H$59","v":0},0,"http://www.xbrl.org/scheme/companyName",{"$f":"Periodos!$D$3","v":"2022-01-01"},{"$f":"Periodos!$D$4","v":"2022-12-31"},{"$f":"'610000 - Est. Camb. Patrimonio'!$E$42","v":"ifrs-full:ComponentsOfEquityAxis"},{"$f":"'610000 - Est. Camb. Patrimonio'!$H$41","v":"ifrs-full:TreasurySharesMember"}]
["",null,{"$f":"'610000 - Est. Camb. Patrimonio'!$E$60","v":"Patrimonio al final del periodo"},{"$f":"'610000 - Est. Camb. Patrimonio'!$D$60","v":"ifrs-full:Equity"},0,"peso",{"$f":"'610000 - Est. Camb. Patrimonio'!$H$60","v":0},0,"http://www.xbrl.org/scheme/companyName",null,{"$f":"Periodos!$D$4","v":"2022-12-31"},{"$f":"'610000 - Est. Camb. Patrimonio'!$E$42","v":"ifrs-full:ComponentsOfEquityAxis"},{"$f":"'610000 - Est. Camb. Patrimonio'!$H$41","v":"ifrs-full:TreasurySharesMember"}]
["/*",null,"--04--"]
["/*",null,{"$f":"'610000 - Est. Camb. Patrimonio'!$E$43","v":"Estado de cambios en el patrimonio [resumen]"},{"$f":"'610000 - Est. Camb. Patrimonio'!$D$43","v":"ifrs-full:StatementOfChangesInEquityAbstract"}]
["/*",null,{"$f":"'610000 - Est. Camb. Patrimonio'!$E$44","v":"Estado de cambios en el patrimonio [partidas de los estados financieros]"},{"$f":"'610000 - Est. Camb. Patrimonio'!$D$44","v":"ifrs-full:StatementOfChangesInEquityLineItems"}]
["/*",null,{"$f":"'610000 - Est. Camb. Patrimonio'!$E$45","v":"Patrimonio al comienzo del periodo"},{"$f":"'610000 - Est. Camb. Patrimonio'!$D$45","v":"ifrs-full:Equity"}]
["/*",null,{"$f":"'610000 - Est. Camb. Patrimonio'!$E$46","v":"Cambios en el patrimonio [resumen]"},{"$f":"'610000 - Est. Camb. Patrimonio'!$D$46","v":"ifrs-full:ChangesInEquityAbstract"}]
["/*",null,{"$f":"'610000 - Est. Camb. Patrimonio'!$E$47","v":"Resultado integral [resumen]"},{"$f":"'610000 - Est. Camb. Patrimonio'!$D$47","v":"ifrs-full:ComprehensiveIncomeAbstract"}]
["/*",null,{"$f":"'610000 - Est. Camb. Patrimonio'!$E$48","v":"Ganancia (pérdida)"},{"$f":"'610000 - Est. Camb. Patrimonio'!$D$48","v":"ifrs-full:ProfitLoss"}]
["/*",null,{"$f":"'610000 - Est. Camb. Patrimonio'!$E$49","v":"Otro resultado integral"},{"$f":"'610000 - Est. Camb. Patrimonio'!$D$49","v":"ifrs-full:OtherComprehensiveIncome"}]
["",null,{"$f":"'610000 - Est. Camb. Patrimonio'!$E$50","v":"Resultado integral total"},{"$f":"'610000 - Est. Camb. Patrimonio'!$D$50","v":"ifrs-full:ComprehensiveIncome"},0,"peso",{"$f":"'610000 - Est. Camb. Patrimonio'!$I$50","v":0},0,"http://www.xbrl.org/scheme/companyName",{"$f":"Periodos!$D$3","v":"2022-01-01"},{"$f":"Periodos!$D$4","v":"2022-12-31"},{"$f":"'610000 - Est. Camb. Patrimonio'!$E$42","v":"ifrs-full:ComponentsOfEquityAxis"},{"$f":"'610000 - Est. Camb. Patrimonio'!$I$41","v":"ifrs-full:OtherEquityInterestMember"}]
["/*",null,{"$f":"'610000 - Est. Camb. Patrimonio'!$E$51","v":"Emisión de patrimonio"},{"$f":"'610000 - Est. Camb. Patrimonio'!$D$51","v":"ifrs-full:IssueOfEquity"}]
["/*",null,{"$f":"'610000 - Est. Camb. Patrimonio'!$E$52","v":"Dividendos reconocidos como distribuciones a los propietarios"},{"$f":"'610000 - Est. Camb. Patrimonio'!$D$52","v":"ifrs-full:DividendsPaid"}]
["/*",null,{"$f":"'610000 - Est. Camb. Patrimonio'!$E$53","v":"Incrementos por otras aportaciones de los propietarios, patrimonio"},{"$f":"'610000 - Est. Camb. Patrimonio'!$D$53","v":"ifrs-full:IncreaseDecreaseThroughOtherContributionsByOwners"}]
["/*",null,{"$f":"'610000 - Est. Camb. Patrimonio'!$E$54","v":"Disminución por otras distribuciones a los propietarios, patrimonio"},{"$f":"'610000 - Est. Camb. Patrimonio'!$D$54","v":"ifrs-full:IncreaseDecreaseThroughOtherDistributionsToOwners"}]
["/*",null,{"$f":"'610000 - Est. Camb. Patrimonio'!$E$55","v":"Incrementos (disminuciones) por otros cambios, patrimonio"},{"$f":"'610000 - Est. Camb. Patrimonio'!$D$55","v":"ifrs-full:IncreaseDecreaseThroughTransfersAndOtherChangesEquity"}]
["/*",null,{"$f":"'610000 - Est. Camb. Patrimonio'!$E$56","v":"Incrementos (disminuciones) por transacciones con acciones propias, patrimonio"},{"$f":"'610000 - Est. Camb. Patrimonio'!$D$56","v":"ifrs-full:IncreaseDecreaseThroughTreasuryShareTransactions"}]
["/*",null,{"$f":"'610000 - Est. Camb. Patrimonio'!$E$57","v":"Incrementos (disminuciones) por cambios las participaciones en la propiedad de subsidiarias que no dan lugar a pérdida de control, patrimonio"},{"$f":"'610000 - Est. Camb. Patrimonio'!$D$57","v":"ifrs-full:IncreaseDecreaseThroughChangesInOwnershipInterestsInSubsidiariesThatDoNotResultInLossOfControl"}]
["/*",null,{"$f":"'610000 - Est. Camb. Patrimonio'!$E$58","v":"Incrementos (disminuciones) por transacciones con pagos basados en acciones, patrimonio"},{"$f":"'610000 - Est. Camb. Patrimonio'!$D$58","v":"ifrs-full:IncreaseDecreaseThroughSharebasedPaymentTransactions"}]
["",null,{"$f":"'610000 - Est. Camb. Patrimonio'!$E$59","v":"Total incremento (disminución) en el patrimonio"},{"$f":"'610000 - Est. Camb. Patrimonio'!$D$59","v":"ifrs-full:ChangesInEquity"},0,"peso",{"$f":"'610000 - Est. Camb. Patrimonio'!$I$59","v":0},0,"http://www.xbrl.org/scheme/companyName",{"$f":"Periodos!$D$3","v":"2022-01-01"},{"$f":"Periodos!$D$4","v":"2022-12-31"},{"$f":"'610000 - Est. Camb. Patrimonio'!$E$42","v":"ifrs-full:ComponentsOfEquityAxis"},{"$f":"'610000 - Est. Camb. Patrimonio'!$I$41","v":"ifrs-full:OtherEquityInterestMember"}]
["",null,{"$f":"'610000 - Est. Camb. Patrimonio'!$E$60","v":"Patrimonio al final del periodo"},{"$f":"'610000 - Est. Camb. Patrimonio'!$D$60","v":"ifrs-full:Equity"},0,"peso",{"$f":"'610000 - Est. Camb. Patrimonio'!$I$60","v":0},0,"http://www.xbrl.org/scheme/companyName",null,{"$f":"Periodos!$D$4","v":"2022-12-31"},{"$f":"'610000 - Est. Camb. Patrimonio'!$E$42","v":"ifrs-full:ComponentsOfEquityAxis"},{"$f":"'610000 - Est. Camb. Patrimonio'!$I$41","v":"ifrs-full:OtherEquityInterestMember"}]
["/*",null,"--05--"]
["/*",null,{"$f":"'610000 - Est. Camb. Patrimonio'!$E$43","v":"Estado de cambios en el patrimonio [resumen]"},{"$f":"'610000 - Est. Camb. Patrimonio'!$D$43","v":"ifrs-full:StatementOfChangesInEquityAbstract"}]
["/*",null,{"$f":"'610000 - Est. Camb. Patrimonio'!$E$44","v":"Estado de cambios en el patrimonio [partidas de los estados financieros]"},{"$f":"'610000 - Est. Camb. Patrimonio'!$D$44","v":"ifrs-full:StatementOfChangesInEquityLineItems"}]
["/*",null,{"$f":"'610000 - Est. Camb. Patrimonio'!$E$45","v":"Patrimonio al comienzo del periodo"},{"$f":"'610000 - Est. Camb. Patrimonio'!$D$45","v":"ifrs-full:Equity"}]
["/*",null,{"$f":"'610000 - Est. Camb. Patrimonio'!$E$46","v":"Cambios en el patrimonio [resumen]"},{"$f":"'610000 - Est. Camb. Patrimonio'!$D$46","v":"ifrs-full:ChangesInEquityAbstract"}]
["/*",null,{"$f":"'610000 - Est. Camb. Patrimonio'!$E$47","v":"Resultado integral [resumen]"},{"$f":"'610000 - Est. Camb. Patrimonio'!$D$47","v":"ifrs-full:ComprehensiveIncomeAbstract"}]
["/*",null,{"$f":"'610000 - Est. Camb. Patrimonio'!$E$48","v":"Ganancia (pérdida)"},{"$f":"'610000 - Est. Camb. Patrimonio'!$D$48","v":"ifrs-full:ProfitLoss"}]
["/*",null,{"$f":"'610000 - Est. Camb. Patrimonio'!$E$49","v":"Otro resultado integral"},{"$f":"'610000 - Est. Camb. Patrimonio'!$D$49","v":"ifrs-full:OtherComprehensiveIncome"}]
["",null,{"$f":"'610000 - Est. Camb. Patrimonio'!$E$50","v":"Resultado integral total"},{"$f":"'610000 - Est. Camb. Patrimonio'!$D$50","v":"ifrs-full:ComprehensiveIncome"},0,"peso",{"$f":"'610000 - Est. Camb. Patrimonio'!$J$50","v":0},0,"http://www.xbrl.org/scheme/companyName",{"$f":"Periodos!$D$3","v":"2022-01-01"},{"$f":"Periodos!$D$4","v":"2022-12-31"},{"$f":"'610000 - Est. Camb. Patrimonio'!$E$42","v":"ifrs-full:ComponentsOfEquityAxis"},{"$f":"'610000 - Est. Camb. Patrimonio'!$J$41","v":"co-svsp-core:ReservaLegalMiembro"}]
["/*",null,{"$f":"'610000 - Est. Camb. Patrimonio'!$E$51","v":"Emisión de patrimonio"},{"$f":"'610000 - Est. Camb. Patrimonio'!$D$51","v":"ifrs-full:IssueOfEquity"}]
["/*",null,{"$f":"'610000 - Est. Camb. Patrimonio'!$E$52","v":"Dividendos reconocidos como distribuciones a los propietarios"},{"$f":"'610000 - Est. Camb. Patrimonio'!$D$52","v":"ifrs-full:DividendsPaid"}]
["/*",null,{"$f":"'610000 - Est. Camb. Patrimonio'!$E$53","v":"Incrementos por otras aportaciones de los propietarios, patrimonio"},{"$f":"'610000 - Est. Camb. Patrimonio'!$D$53","v":"ifrs-full:IncreaseDecreaseThroughOtherContributionsByOwners"}]
["/*",null,{"$f":"'610000 - Est. Camb. Patrimonio'!$E$54","v":"Disminución por otras distribuciones a los propietarios, patrimonio"},{"$f":"'610000 - Est. Camb. Patrimonio'!$D$54","v":"ifrs-full:IncreaseDecreaseThroughOtherDistributionsToOwners"}]
["/*",null,{"$f":"'610000 - Est. Camb. Patrimonio'!$E$55","v":"Incrementos (disminuciones) por otros cambios, patrimonio"},{"$f":"'610000 - Est. Camb. Patrimonio'!$D$55","v":"ifrs-full:IncreaseDecreaseThroughTransfersAndOtherChangesEquity"}]
["/*",null,{"$f":"'610000 - Est. Camb. Patrimonio'!$E$56","v":"Incrementos (disminuciones) por transacciones con acciones propias, patrimonio"},{"$f":"'610000 - Est. Camb. Patrimonio'!$D$56","v":"ifrs-full:IncreaseDecreaseThroughTreasuryShareTransactions"}]
["/*",null,{"$f":"'610000 - Est. Camb. Patrimonio'!$E$57","v":"Incrementos (disminuciones) por cambios las participaciones en la propiedad de subsidiarias que no dan lugar a pérdida de control, patrimonio"},{"$f":"'610000 - Est. Camb. Patrimonio'!$D$57","v":"ifrs-full:IncreaseDecreaseThroughChangesInOwnershipInterestsInSubsidiariesThatDoNotResultInLossOfControl"}]
["/*",null,{"$f":"'610000 - Est. Camb. Patrimonio'!$E$58","v":"Incrementos (disminuciones) por transacciones con pagos basados en acciones, patrimonio"},{"$f":"'610000 - Est. Camb. Patrimonio'!$D$58","v":"ifrs-full:IncreaseDecreaseThroughSharebasedPaymentTransactions"}]
["",null,{"$f":"'610000 - Est. Camb. Patrimonio'!$E$59","v":"Total incremento (disminución) en el patrimonio"},{"$f":"'610000 - Est. Camb. Patrimonio'!$D$59","v":"ifrs-full:ChangesInEquity"},0,"peso",{"$f":"'610000 - Est. Camb. Patrimonio'!$J$59","v":0},0,"http://www.xbrl.org/scheme/companyName",{"$f":"Periodos!$D$3","v":"2022-01-01"},{"$f":"Periodos!$D$4","v":"2022-12-31"},{"$f":"'610000 - Est. Camb. Patrimonio'!$E$42","v":"ifrs-full:ComponentsOfEquityAxis"},{"$f":"'610000 - Est. Camb. Patrimonio'!$J$41","v":"co-svsp-core:ReservaLegalMiembro"}]
["",null,{"$f":"'610000 - Est. Camb. Patrimonio'!$E$60","v":"Patrimonio al final del periodo"},{"$f":"'610000 - Est. Camb. Patrimonio'!$D$60","v":"ifrs-full:Equity"},0,"peso",{"$f":"'610000 - Est. Camb. Patrimonio'!$J$60","v":0},0,"http://www.xbrl.org/scheme/companyName",null,{"$f":"Periodos!$D$4","v":"2022-12-31"},{"$f":"'610000 - Est. Camb. Patrimonio'!$E$42","v":"ifrs-full:ComponentsOfEquityAxis"},{"$f":"'610000 - Est. Camb. Patrimonio'!$J$41","v":"co-svsp-core:ReservaLegalMiembro"}]
["/*",null,"--06--"]
["/*",null,{"$f":"'610000 - Est. Camb. Patrimonio'!$E$43","v":"Estado de cambios en el patrimonio [resumen]"},{"$f":"'610000 - Est. Camb. Patrimonio'!$D$43","v":"ifrs-full:StatementOfChangesInEquityAbstract"}]
["/*",null,{"$f":"'610000 - Est. Camb. Patrimonio'!$E$44","v":"Estado de cambios en el patrimonio [partidas de los estados financieros]"},{"$f":"'610000 - Est. Camb. Patrimonio'!$D$44","v":"ifrs-full:StatementOfChangesInEquityLineItems"}]
["/*",null,{"$f":"'610000 - Est. Camb. Patrimonio'!$E$45","v":"Patrimonio al comienzo del periodo"},{"$f":"'610000 - Est. Camb. Patrimonio'!$D$45","v":"ifrs-full:Equity"}]
["/*",null,{"$f":"'610000 - Est. Camb. Patrimonio'!$E$46","v":"Cambios en el patrimonio [resumen]"},{"$f":"'610000 - Est. Camb. Patrimonio'!$D$46","v":"ifrs-full:ChangesInEquityAbstract"}]
["/*",null,{"$f":"'610000 - Est. Camb. Patrimonio'!$E$47","v":"Resultado integral [resumen]"},{"$f":"'610000 - Est. Camb. Patrimonio'!$D$47","v":"ifrs-full:ComprehensiveIncomeAbstract"}]
["/*",null,{"$f":"'610000 - Est. Camb. Patrimonio'!$E$48","v":"Ganancia (pérdida)"},{"$f":"'610000 - Est. Camb. Patrimonio'!$D$48","v":"ifrs-full:ProfitLoss"}]
["/*",null,{"$f":"'610000 - Est. Camb. Patrimonio'!$E$49","v":"Otro resultado integral"},{"$f":"'610000 - Est. Camb. Patrimonio'!$D$49","v":"ifrs-full:OtherComprehensiveIncome"}]
["",null,{"$f":"'610000 - Est. Camb. Patrimonio'!$E$50","v":"Resultado integral total"},{"$f":"'610000 - Est. Camb. Patrimonio'!$D$50","v":"ifrs-full:ComprehensiveIncome"},0,"peso",{"$f":"'610000 - Est. Camb. Patrimonio'!$K$50","v":0},0,"http://www.xbrl.org/scheme/companyName",{"$f":"Periodos!$D$3","v":"2022-01-01"},{"$f":"Periodos!$D$4","v":"2022-12-31"},{"$f":"'610000 - Est. Camb. Patrimonio'!$E$42","v":"ifrs-full:ComponentsOfEquityAxis"},{"$f":"'610000 - Est. Camb. Patrimonio'!$K$41","v":"co-svsp-core:ReservaEstatutariaMiembro"}]
["/*",null,{"$f":"'610000 - Est. Camb. Patrimonio'!$E$51","v":"Emisión de patrimonio"},{"$f":"'610000 - Est. Camb. Patrimonio'!$D$51","v":"ifrs-full:IssueOfEquity"}]
["/*",null,{"$f":"'610000 - Est. Camb. Patrimonio'!$E$52","v":"Dividendos reconocidos como distribuciones a los propietarios"},{"$f":"'610000 - Est. Camb. Patrimonio'!$D$52","v":"ifrs-full:DividendsPaid"}]
["/*",null,{"$f":"'610000 - Est. Camb. Patrimonio'!$E$53","v":"Incrementos por otras aportaciones de los propietarios, patrimonio"},{"$f":"'610000 - Est. Camb. Patrimonio'!$D$53","v":"ifrs-full:IncreaseDecreaseThroughOtherContributionsByOwners"}]
["/*",null,{"$f":"'610000 - Est. Camb. Patrimonio'!$E$54","v":"Disminución por otras distribuciones a los propietarios, patrimonio"},{"$f":"'610000 - Est. Camb. Patrimonio'!$D$54","v":"ifrs-full:IncreaseDecreaseThroughOtherDistributionsToOwners"}]
[{"$f":"IF(G8032=\"\",\"/*\",\"\")","v":"/*"},null,{"$f":"'610000 - Est. Camb. Patrimonio'!$E$55","v":"Incrementos (disminuciones) por otros cambios, patrimonio"},{"$f":"'610000 - Est. Camb. Patrimonio'!$D$55","v":"ifrs-full:IncreaseDecreaseThroughTransfersAndOtherChangesEquity"}]
["/*",null,{"$f":"'610000 - Est. Camb. Patrimonio'!$E$56","v":"Incrementos (disminuciones) por transacciones con acciones propias, patrimonio"},{"$f":"'610000 - Est. Camb. Patrimonio'!$D$56","v":"ifrs-full:IncreaseDecreaseThroughTreasuryShareTransactions"}]
["/*",null,{"$f":"'610000 - Est. Camb. Patrimonio'!$E$57","v":"Incrementos (disminuciones) por cambios las participaciones en la propiedad de subsidiarias que no dan lugar a pérdida de control, patrimonio"},{"$f":"'610000 - Est. Camb. Patrimonio'!$D$57","v":"ifrs-full:IncreaseDecreaseThroughChangesInOwnershipInterestsInSubsidiariesThatDoNotResultInLossOfControl"}]
["/*",null,{"$f":"'610000 - Est. Camb. Patrimonio'!$E$58","v":"Incrementos (disminuciones) por transacciones con pagos basados en acciones, patrimonio"},{"$f":"'610000 - Est. Camb. Patrimonio'!$D$58","v":"ifrs-full:IncreaseDecreaseThroughSharebasedPaymentTransactions"}]
["",null,{"$f":"'610000 - Est. Camb. Patrimonio'!$E$59","v":"Total incremento (disminución) en el patrimonio"},{"$f":"'610000 - Est. Camb. Patrimonio'!$D$59","v":"ifrs-full:ChangesInEquity"},0,"peso",{"$f":"'610000 - Est. Camb. Patrimonio'!$K$59","v":0},0,"http://www.xbrl.org/scheme/companyName",{"$f":"Periodos!$D$3","v":"2022-01-01"},{"$f":"Periodos!$D$4","v":"2022-12-31"},{"$f":"'610000 - Est. Camb. Patrimonio'!$E$42","v":"ifrs-full:ComponentsOfEquityAxis"},{"$f":"'610000 - Est. Camb. Patrimonio'!$K$41","v":"co-svsp-core:ReservaEstatutariaMiembro"}]
["",null,{"$f":"'610000 - Est. Camb. Patrimonio'!$E$60","v":"Patrimonio al final del periodo"},{"$f":"'610000 - Est. Camb. Patrimonio'!$D$60","v":"ifrs-full:Equity"},0,"peso",{"$f":"'610000 - Est. Camb. Patrimonio'!$K$60","v":0},0,"http://www.xbrl.org/scheme/companyName",null,{"$f":"Periodos!$D$4","v":"2022-12-31"},{"$f":"'610000 - Est. Camb. Patrimonio'!$E$42","v":"ifrs-full:ComponentsOfEquityAxis"},{"$f":"'610000 - Est. Camb. Patrimonio'!$K$41","v":"co-svsp-core:ReservaEstatutariaMiembro"}]
["/*",null,"--07--"]
["/*",null,{"$f":"'610000 - Est. Camb. Patrimonio'!$E$43","v":"Estado de cambios en el patrimonio [resumen]"},{"$f":"'610000 - Est. Camb. Patrimonio'!$D$43","v":"ifrs-full:StatementOfChangesInEquityAbstract"}]
["/*",null,{"$f":"'610000 - Est. Camb. Patrimonio'!$E$44","v":"Estado de cambios en el patrimonio [partidas de los estados financieros]"},{"$f":"'610000 - Est. Camb. Patrimonio'!$D$44","v":"ifrs-full:StatementOfChangesInEquityLineItems"}]
["/*",null,{"$f":"'610000 - Est. Camb. Patrimonio'!$E$45","v":"Patrimonio al comienzo del periodo"},{"$f":"'610000 - Est. Camb. Patrimonio'!$D$45","v":"ifrs-full:Equity"}]
["/*",null,{"$f":"'610000 - Est. Camb. Patrimonio'!$E$46","v":"Cambios en el patrimonio [resumen]"},{"$f":"'610000 - Est. Camb. Patrimonio'!$D$46","v":"ifrs-full:ChangesInEquityAbstract"}]
["/*",null,{"$f":"'610000 - Est. Camb. Patrimonio'!$E$47","v":"Resultado integral [resumen]"},{"$f":"'610000 - Est. Camb. Patrimonio'!$D$47","v":"ifrs-full:ComprehensiveIncomeAbstract"}]
["/*",null,{"$f":"'610000 - Est. Camb. Patrimonio'!$E$48","v":"Ganancia (pérdida)"},{"$f":"'610000 - Est. Camb. Patrimonio'!$D$48","v":"ifrs-full:ProfitLoss"}]
["/*",null,{"$f":"'610000 - Est. Camb. Patrimonio'!$E$49","v":"Otro resultado integral"},{"$f":"'610000 - Est. Camb. Patrimonio'!$D$49","v":"ifrs-full:OtherComprehensiveIncome"}]
["",null,{"$f":"'610000 - Est. Camb. Patrimonio'!$E$50","v":"Resultado integral total"},{"$f":"'610000 - Est. Camb. Patrimonio'!$D$50","v":"ifrs-full:ComprehensiveIncome"},0,"peso",{"$f":"'610000 - Est. Camb. Patrimonio'!$L$50","v":0},0,"http://www.xbrl.org/scheme/companyName",{"$f":"Periodos!$D$3","v":"2022-01-01"},{"$f":"Periodos!$D$4","v":"2022-12-31"},{"$f":"'610000 - Est. Camb. Patrimonio'!$E$42","v":"ifrs-full:ComponentsOfEquityAxis"},{"$f":"'610000 - Est. Camb. Patrimonio'!$L$41","v":"ifrs-full:RevaluationSurplusMember"}]
["/*",null,{"$f":"'610000 - Est. Camb. Patrimonio'!$E$51","v":"Emisión de patrimonio"},{"$f":"'610000 - Est. Camb. Patrimonio'!$D$51","v":"ifrs-full:IssueOfEquity"}]
["/*",null,{"$f":"'610000 - Est. Camb. Patrimonio'!$E$52","v":"Dividendos reconocidos como distribuciones a los propietarios"},{"$f":"'610000 - Est. Camb. Patrimonio'!$D$52","v":"ifrs-full:DividendsPaid"}]
["/*",null,{"$f":"'610000 - Est. Camb. Patrimonio'!$E$53","v":"Incrementos por otras aportaciones de los propietarios, patrimonio"},{"$f":"'610000 - Est. Camb. Patrimonio'!$D$53","v":"ifrs-full:IncreaseDecreaseThroughOtherContributionsByOwners"}]
["/*",null,{"$f":"'610000 - Est. Camb. Patrimonio'!$E$54","v":"Disminución por otras distribuciones a los propietarios, patrimonio"},{"$f":"'610000 - Est. Camb. Patrimonio'!$D$54","v":"ifrs-full:IncreaseDecreaseThroughOtherDistributionsToOwners"}]
["/*",null,{"$f":"'610000 - Est. Camb. Patrimonio'!$E$55","v":"Incrementos (disminuciones) por otros cambios, patrimonio"},{"$f":"'610000 - Est. Camb. Patrimonio'!$D$55","v":"ifrs-full:IncreaseDecreaseThroughTransfersAndOtherChangesEquity"}]
["/*",null,{"$f":"'610000 - Est. Camb. Patrimonio'!$E$56","v":"Incrementos (disminuciones) por transacciones con acciones propias, patrimonio"},{"$f":"'610000 - Est. Camb. Patrimonio'!$D$56","v":"ifrs-full:IncreaseDecreaseThroughTreasuryShareTransactions"}]
["/*",null,{"$f":"'610000 - Est. Camb. Patrimonio'!$E$57","v":"Incrementos (disminuciones) por cambios las participaciones en la propiedad de subsidiarias que no dan lugar a pérdida de control, patrimonio"},{"$f":"'610000 - Est. Camb. Patrimonio'!$D$57","v":"ifrs-full:IncreaseDecreaseThroughChangesInOwnershipInterestsInSubsidiariesThatDoNotResultInLossOfControl"}]
["/*",null,{"$f":"'610000 - Est. Camb. Patrimonio'!$E$58","v":"Incrementos (disminuciones) por transacciones con pagos basados en acciones, patrimonio"},{"$f":"'610000 - Est. Camb. Patrimonio'!$D$58","v":"ifrs-full:IncreaseDecreaseThroughSharebasedPaymentTransactions"}]
["",null,{"$f":"'610000 - Est. Camb. Patrimonio'!$E$59","v":"Total incremento (disminución) en el patrimonio"},{"$f":"'610000 - Est. Camb. Patrimonio'!$D$59","v":"ifrs-full:ChangesInEquity"},0,"peso",{"$f":"'610000 - Est. Camb. Patrimonio'!$L$59","v":0},0,"http://www.xbrl.org/scheme/companyName",{"$f":"Periodos!$D$3","v":"2022-01-01"},{"$f":"Periodos!$D$4","v":"2022-12-31"},{"$f":"'610000 - Est. Camb. Patrimonio'!$E$42","v":"ifrs-full:ComponentsOfEquityAxis"},{"$f":"'610000 - Est. Camb. Patrimonio'!$L$41","v":"ifrs-full:RevaluationSurplusMember"}]
["",null,{"$f":"'610000 - Est. Camb. Patrimonio'!$E$60","v":"Patrimonio al final del periodo"},{"$f":"'610000 - Est. Camb. Patrimonio'!$D$60","v":"ifrs-full:Equity"},0,"peso",{"$f":"'610000 - Est. Camb. Patrimonio'!$L$60","v":0},0,"http://www.xbrl.org/scheme/companyName",null,{"$f":"Periodos!$D$4","v":"2022-12-31"},{"$f":"'610000 - Est. Camb. Patrimonio'!$E$42","v":"ifrs-full:ComponentsOfEquityAxis"},{"$f":"'610000 - Est. Camb. Patrimonio'!$L$41","v":"ifrs-full:RevaluationSurplusMember"}]
["/*",null,"--08--"]
["/*",null,{"$f":"'610000 - Est. Camb. Patrimonio'!$E$43","v":"Estado de cambios en el patrimonio [resumen]"},{"$f":"'610000 - Est. Camb. Patrimonio'!$D$43","v":"ifrs-full:StatementOfChangesInEquityAbstract"}]
["/*",null,{"$f":"'610000 - Est. Camb. Patrimonio'!$E$44","v":"Estado de cambios en el patrimonio [partidas de los estados financieros]"},{"$f":"'610000 - Est. Camb. Patrimonio'!$D$44","v":"ifrs-full:StatementOfChangesInEquityLineItems"}]
["/*",null,{"$f":"'610000 - Est. Camb. Patrimonio'!$E$45","v":"Patrimonio al comienzo del periodo"},{"$f":"'610000 - Est. Camb. Patrimonio'!$D$45","v":"ifrs-full:Equity"}]
["/*",null,{"$f":"'610000 - Est. Camb. Patrimonio'!$E$46","v":"Cambios en el patrimonio [resumen]"},{"$f":"'610000 - Est. Camb. Patrimonio'!$D$46","v":"ifrs-full:ChangesInEquityAbstract"}]
["/*",null,{"$f":"'610000 - Est. Camb. Patrimonio'!$E$47","v":"Resultado integral [resumen]"},{"$f":"'610000 - Est. Camb. Patrimonio'!$D$47","v":"ifrs-full:ComprehensiveIncomeAbstract"}]
["/*",null,{"$f":"'610000 - Est. Camb. Patrimonio'!$E$48","v":"Ganancia (pérdida)"},{"$f":"'610000 - Est. Camb. Patrimonio'!$D$48","v":"ifrs-full:ProfitLoss"}]
["/*",null,{"$f":"'610000 - Est. Camb. Patrimonio'!$E$49","v":"Otro resultado integral"},{"$f":"'610000 - Est. Camb. Patrimonio'!$D$49","v":"ifrs-full:OtherComprehensiveIncome"}]
["",null,{"$f":"'610000 - Est. Camb. Patrimonio'!$E$50","v":"Resultado integral total"},{"$f":"'610000 - Est. Camb. Patrimonio'!$D$50","v":"ifrs-full:ComprehensiveIncome"},0,"peso",{"$f":"'610000 - Est. Camb. Patrimonio'!$M$50","v":0},0,"http://www.xbrl.org/scheme/companyName",{"$f":"Periodos!$D$3","v":"2022-01-01"},{"$f":"Periodos!$D$4","v":"2022-12-31"},{"$f":"'610000 - Est. Camb. Patrimonio'!$E$42","v":"ifrs-full:ComponentsOfEquityAxis"},{"$f":"'610000 - Est. Camb. Patrimonio'!$M$41","v":"ifrs-full:ReserveOfExchangeDifferencesOnTranslationMember"}]
["/*",null,{"$f":"'610000 - Est. Camb. Patrimonio'!$E$51","v":"Emisión de patrimonio"},{"$f":"'610000 - Est. Camb. Patrimonio'!$D$51","v":"ifrs-full:IssueOfEquity"}]
["/*",null,{"$f":"'610000 - Est. Camb. Patrimonio'!$E$52","v":"Dividendos reconocidos como distribuciones a los propietarios"},{"$f":"'610000 - Est. Camb. Patrimonio'!$D$52","v":"ifrs-full:DividendsPaid"}]
["/*",null,{"$f":"'610000 - Est. Camb. Patrimonio'!$E$53","v":"Incrementos por otras aportaciones de los propietarios, patrimonio"},{"$f":"'610000 - Est. Camb. Patrimonio'!$D$53","v":"ifrs-full:IncreaseDecreaseThroughOtherContributionsByOwners"}]
["/*",null,{"$f":"'610000 - Est. Camb. Patrimonio'!$E$54","v":"Disminución por otras distribuciones a los propietarios, patrimonio"},{"$f":"'610000 - Est. Camb. Patrimonio'!$D$54","v":"ifrs-full:IncreaseDecreaseThroughOtherDistributionsToOwners"}]
["/*",null,{"$f":"'610000 - Est. Camb. Patrimonio'!$E$55","v":"Incrementos (disminuciones) por otros cambios, patrimonio"},{"$f":"'610000 - Est. Camb. Patrimonio'!$D$55","v":"ifrs-full:IncreaseDecreaseThroughTransfersAndOtherChangesEquity"}]
["/*",null,{"$f":"'610000 - Est. Camb. Patrimonio'!$E$56","v":"Incrementos (disminuciones) por transacciones con acciones propias, patrimonio"},{"$f":"'610000 - Est. Camb. Patrimonio'!$D$56","v":"ifrs-full:IncreaseDecreaseThroughTreasuryShareTransactions"}]
["/*",null,{"$f":"'610000 - Est. Camb. Patrimonio'!$E$57","v":"Incrementos (disminuciones) por cambios las participaciones en la propiedad de subsidiarias que no dan lugar a pérdida de control, patrimonio"},{"$f":"'610000 - Est. Camb. Patrimonio'!$D$57","v":"ifrs-full:IncreaseDecreaseThroughChangesInOwnershipInterestsInSubsidiariesThatDoNotResultInLossOfControl"}]
["/*",null,{"$f":"'610000 - Est. Camb. Patrimonio'!$E$58","v":"Incrementos (disminuciones) por transacciones con pagos basados en acciones, patrimonio"},{"$f":"'610000 - Est. Camb. Patrimonio'!$D$58","v":"ifrs-full:IncreaseDecreaseThroughSharebasedPaymentTransactions"}]
["",null,{"$f":"'610000 - Est. Camb. Patrimonio'!$E$59","v":"Total incremento (disminución) en el patrimonio"},{"$f":"'610000 - Est. Camb. Patrimonio'!$D$59","v":"ifrs-full:ChangesInEquity"},0,"peso",{"$f":"'610000 - Est. Camb. Patrimonio'!$M$59","v":0},0,"http://www.xbrl.org/scheme/companyName",{"$f":"Periodos!$D$3","v":"2022-01-01"},{"$f":"Periodos!$D$4","v":"2022-12-31"},{"$f":"'610000 - Est. Camb. Patrimonio'!$E$42","v":"ifrs-full:ComponentsOfEquityAxis"},{"$f":"'610000 - Est. Camb. Patrimonio'!$M$41","v":"ifrs-full:ReserveOfExchangeDifferencesOnTranslationMember"}]
["",null,{"$f":"'610000 - Est. Camb. Patrimonio'!$E$60","v":"Patrimonio al final del periodo"},{"$f":"'610000 - Est. Camb. Patrimonio'!$D$60","v":"ifrs-full:Equity"},0,"peso",{"$f":"'610000 - Est. Camb. Patrimonio'!$M$60","v":0},0,"http://www.xbrl.org/scheme/companyName",null,{"$f":"Periodos!$D$4","v":"2022-12-31"},{"$f":"'610000 - Est. Camb. Patrimonio'!$E$42","v":"ifrs-full:ComponentsOfEquityAxis"},{"$f":"'610000 - Est. Camb. Patrimonio'!$M$41","v":"ifrs-full:ReserveOfExchangeDifferencesOnTranslationMember"}]
["/*",null,"--09--"]
["/*",null,{"$f":"'610000 - Est. Camb. Patrimonio'!$E$43","v":"Estado de cambios en el patrimonio [resumen]"},{"$f":"'610000 - Est. Camb. Patrimonio'!$D$43","v":"ifrs-full:StatementOfChangesInEquityAbstract"}]
["/*",null,{"$f":"'610000 - Est. Camb. Patrimonio'!$E$44","v":"Estado de cambios en el patrimonio [partidas de los estados financieros]"},{"$f":"'610000 - Est. Camb. Patrimonio'!$D$44","v":"ifrs-full:StatementOfChangesInEquityLineItems"}]
["/*",null,{"$f":"'610000 - Est. Camb. Patrimonio'!$E$45","v":"Patrimonio al comienzo del periodo"},{"$f":"'610000 - Est. Camb. Patrimonio'!$D$45","v":"ifrs-full:Equity"}]
["/*",null,{"$f":"'610000 - Est. Camb. Patrimonio'!$E$46","v":"Cambios en el patrimonio [resumen]"},{"$f":"'610000 - Est. Camb. Patrimonio'!$D$46","v":"ifrs-full:ChangesInEquityAbstract"}]
["/*",null,{"$f":"'610000 - Est. Camb. Patrimonio'!$E$47","v":"Resultado integral [resumen]"},{"$f":"'610000 - Est. Camb. Patrimonio'!$D$47","v":"ifrs-full:ComprehensiveIncomeAbstract"}]
["/*",null,{"$f":"'610000 - Est. Camb. Patrimonio'!$E$48","v":"Ganancia (pérdida)"},{"$f":"'610000 - Est. Camb. Patrimonio'!$D$48","v":"ifrs-full:ProfitLoss"}]
["/*",null,{"$f":"'610000 - Est. Camb. Patrimonio'!$E$49","v":"Otro resultado integral"},{"$f":"'610000 - Est. Camb. Patrimonio'!$D$49","v":"ifrs-full:OtherComprehensiveIncome"}]
["",null,{"$f":"'610000 - Est. Camb. Patrimonio'!$E$50","v":"Resultado integral total"},{"$f":"'610000 - Est. Camb. Patrimonio'!$D$50","v":"ifrs-full:ComprehensiveIncome"},0,"peso",{"$f":"'610000 - Est. Camb. Patrimonio'!$N$50","v":0},0,"http://www.xbrl.org/scheme/companyName",{"$f":"Periodos!$D$3","v":"2022-01-01"},{"$f":"Periodos!$D$4","v":"2022-12-31"},{"$f":"'610000 - Est. Camb. Patrimonio'!$E$42","v":"ifrs-full:ComponentsOfEquityAxis"},{"$f":"'610000 - Est. Camb. Patrimonio'!$N$41","v":"ifrs-full:ReserveOfCashFlowHedgesMember"}]
["/*",null,{"$f":"'610000 - Est. Camb. Patrimonio'!$E$51","v":"Emisión de patrimonio"},{"$f":"'610000 - Est. Camb. Patrimonio'!$D$51","v":"ifrs-full:IssueOfEquity"}]
["/*",null,{"$f":"'610000 - Est. Camb. Patrimonio'!$E$52","v":"Dividendos reconocidos como distribuciones a los propietarios"},{"$f":"'610000 - Est. Camb. Patrimonio'!$D$52","v":"ifrs-full:DividendsPaid"}]
["/*",null,{"$f":"'610000 - Est. Camb. Patrimonio'!$E$53","v":"Incrementos por otras aportaciones de los propietarios, patrimonio"},{"$f":"'610000 - Est. Camb. Patrimonio'!$D$53","v":"ifrs-full:IncreaseDecreaseThroughOtherContributionsByOwners"}]
["/*",null,{"$f":"'610000 - Est. Camb. Patrimonio'!$E$54","v":"Disminución por otras distribuciones a los propietarios, patrimonio"},{"$f":"'610000 - Est. Camb. Patrimonio'!$D$54","v":"ifrs-full:IncreaseDecreaseThroughOtherDistributionsToOwners"}]
["/*",null,{"$f":"'610000 - Est. Camb. Patrimonio'!$E$55","v":"Incrementos (disminuciones) por otros cambios, patrimonio"},{"$f":"'610000 - Est. Camb. Patrimonio'!$D$55","v":"ifrs-full:IncreaseDecreaseThroughTransfersAndOtherChangesEquity"}]
["/*",null,{"$f":"'610000 - Est. Camb. Patrimonio'!$E$56","v":"Incrementos (disminuciones) por transacciones con acciones propias, patrimonio"},{"$f":"'610000 - Est. Camb. Patrimonio'!$D$56","v":"ifrs-full:IncreaseDecreaseThroughTreasuryShareTransactions"}]
["/*",null,{"$f":"'610000 - Est. Camb. Patrimonio'!$E$57","v":"Incrementos (disminuciones) por cambios las participaciones en la propiedad de subsidiarias que no dan lugar a pérdida de control, patrimonio"},{"$f":"'610000 - Est. Camb. Patrimonio'!$D$57","v":"ifrs-full:IncreaseDecreaseThroughChangesInOwnershipInterestsInSubsidiariesThatDoNotResultInLossOfControl"}]
["/*",null,{"$f":"'610000 - Est. Camb. Patrimonio'!$E$58","v":"Incrementos (disminuciones) por transacciones con pagos basados en acciones, patrimonio"},{"$f":"'610000 - Est. Camb. Patrimonio'!$D$58","v":"ifrs-full:IncreaseDecreaseThroughSharebasedPaymentTransactions"}]
["",null,{"$f":"'610000 - Est. Camb. Patrimonio'!$E$59","v":"Total incremento (disminución) en el patrimonio"},{"$f":"'610000 - Est. Camb. Patrimonio'!$D$59","v":"ifrs-full:ChangesInEquity"},0,"peso",{"$f":"'610000 - Est. Camb. Patrimonio'!$N$59","v":0},0,"http://www.xbrl.org/scheme/companyName",{"$f":"Periodos!$D$3","v":"2022-01-01"},{"$f":"Periodos!$D$4","v":"2022-12-31"},{"$f":"'610000 - Est. Camb. Patrimonio'!$E$42","v":"ifrs-full:ComponentsOfEquityAxis"},{"$f":"'610000 - Est. Camb. Patrimonio'!$N$41","v":"ifrs-full:ReserveOfCashFlowHedgesMember"}]
["",null,{"$f":"'610000 - Est. Camb. Patrimonio'!$E$60","v":"Patrimonio al final del periodo"},{"$f":"'610000 - Est. Camb. Patrimonio'!$D$60","v":"ifrs-full:Equity"},0,"peso",{"$f":"'610000 - Est. Camb. Patrimonio'!$N$60","v":0},0,"http://www.xbrl.org/scheme/companyName",null,{"$f":"Periodos!$D$4","v":"2022-12-31"},{"$f":"'610000 - Est. Camb. Patrimonio'!$E$42","v":"ifrs-full:ComponentsOfEquityAxis"},{"$f":"'610000 - Est. Camb. Patrimonio'!$N$41","v":"ifrs-full:ReserveOfCashFlowHedgesMember"}]
["/*",null,"--10--"]
[{"$f":"IF(G8096=\"\",\"/*\",\"\")","v":"/*"},null,{"$f":"'610000 - Est. Camb. Patrimonio'!$E$43","v":"Estado de cambios en el patrimonio [resumen]"},{"$f":"'610000 - Est. Camb. Patrimonio'!$D$43","v":"ifrs-full:StatementOfChangesInEquityAbstract"}]
["/*",null,{"$f":"'610000 - Est. Camb. Patrimonio'!$E$44","v":"Estado de cambios en el patrimonio [partidas de los estados financieros]"},{"$f":"'610000 - Est. Camb. Patrimonio'!$D$44","v":"ifrs-full:StatementOfChangesInEquityLineItems"}]
["/*",null,{"$f":"'610000 - Est. Camb. Patrimonio'!$E$45","v":"Patrimonio al comienzo del periodo"},{"$f":"'610000 - Est. Camb. Patrimonio'!$D$45","v":"ifrs-full:Equity"}]
["/*",null,{"$f":"'610000 - Est. Camb. Patrimonio'!$E$46","v":"Cambios en el patrimonio [resumen]"},{"$f":"'610000 - Est. Camb. Patrimonio'!$D$46","v":"ifrs-full:ChangesInEquityAbstract"}]
["/*",null,{"$f":"'610000 - Est. Camb. Patrimonio'!$E$47","v":"Resultado integral [resumen]"},{"$f":"'610000 - Est. Camb. Patrimonio'!$D$47","v":"ifrs-full:ComprehensiveIncomeAbstract"}]
["/*",null,{"$f":"'610000 - Est. Camb. Patrimonio'!$E$48","v":"Ganancia (pérdida)"},{"$f":"'610000 - Est. Camb. Patrimonio'!$D$48","v":"ifrs-full:ProfitLoss"}]
["/*",null,{"$f":"'610000 - Est. Camb. Patrimonio'!$E$49","v":"Otro resultado integral"},{"$f":"'610000 - Est. Camb. Patrimonio'!$D$49","v":"ifrs-full:OtherComprehensiveIncome"}]
["",null,{"$f":"'610000 - Est. Camb. Patrimonio'!$E$50","v":"Resultado integral total"},{"$f":"'610000 - Est. Camb. Patrimonio'!$D$50","v":"ifrs-full:ComprehensiveIncome"},0,"peso",{"$f":"'610000 - Est. Camb. Patrimonio'!$O$50","v":0},0,"http://www.xbrl.org/scheme/companyName",{"$f":"Periodos!$D$3","v":"2022-01-01"},{"$f":"Periodos!$D$4","v":"2022-12-31"},{"$f":"'610000 - Est. Camb. Patrimonio'!$E$42","v":"ifrs-full:ComponentsOfEquityAxis"},{"$f":"'610000 - Est. Camb. Patrimonio'!$O$41","v":"ifrs-full:ReserveOfGainsAndLossesOnHedgingInstrumentsThatHedgeInvestmentsInEquityInstrumentsMember"}]
["/*",null,{"$f":"'610000 - Est. Camb. Patrimonio'!$E$51","v":"Emisión de patrimonio"},{"$f":"'610000 - Est. Camb. Patrimonio'!$D$51","v":"ifrs-full:IssueOfEquity"}]
["/*",null,{"$f":"'610000 - Est. Camb. Patrimonio'!$E$52","v":"Dividendos reconocidos como distribuciones a los propietarios"},{"$f":"'610000 - Est. Camb. Patrimonio'!$D$52","v":"ifrs-full:DividendsPaid"}]
["/*",null,{"$f":"'610000 - Est. Camb. Patrimonio'!$E$53","v":"Incrementos por otras aportaciones de los propietarios, patrimonio"},{"$f":"'610000 - Est. Camb. Patrimonio'!$D$53","v":"ifrs-full:IncreaseDecreaseThroughOtherContributionsByOwners"}]
["/*",null,{"$f":"'610000 - Est. Camb. Patrimonio'!$E$54","v":"Disminución por otras distribuciones a los propietarios, patrimonio"},{"$f":"'610000 - Est. Camb. Patrimonio'!$D$54","v":"ifrs-full:IncreaseDecreaseThroughOtherDistributionsToOwners"}]
["/*",null,{"$f":"'610000 - Est. Camb. Patrimonio'!$E$55","v":"Incrementos (disminuciones) por otros cambios, patrimonio"},{"$f":"'610000 - Est. Camb. Patrimonio'!$D$55","v":"ifrs-full:IncreaseDecreaseThroughTransfersAndOtherChangesEquity"}]
["/*",null,{"$f":"'610000 - Est. Camb. Patrimonio'!$E$56","v":"Incrementos (disminuciones) por transacciones con acciones propias, patrimonio"},{"$f":"'610000 - Est. Camb. Patrimonio'!$D$56","v":"ifrs-full:IncreaseDecreaseThroughTreasuryShareTransactions"}]
["/*",null,{"$f":"'610000 - Est. Camb. Patrimonio'!$E$57","v":"Incrementos (disminuciones) por cambios las participaciones en la propiedad de subsidiarias que no dan lugar a pérdida de control, patrimonio"},{"$f":"'610000 - Est. Camb. Patrimonio'!$D$57","v":"ifrs-full:IncreaseDecreaseThroughChangesInOwnershipInterestsInSubsidiariesThatDoNotResultInLossOfControl"}]
["/*",null,{"$f":"'610000 - Est. Camb. Patrimonio'!$E$58","v":"Incrementos (disminuciones) por transacciones con pagos basados en acciones, patrimonio"},{"$f":"'610000 - Est. Camb. Patrimonio'!$D$58","v":"ifrs-full:IncreaseDecreaseThroughSharebasedPaymentTransactions"}]
["",null,{"$f":"'610000 - Est. Camb. Patrimonio'!$E$59","v":"Total incremento (disminución) en el patrimonio"},{"$f":"'610000 - Est. Camb. Patrimonio'!$D$59","v":"ifrs-full:ChangesInEquity"},0,"peso",{"$f":"'610000 - Est. Camb. Patrimonio'!$O$59","v":0},0,"http://www.xbrl.org/scheme/companyName",{"$f":"Periodos!$D$3","v":"2022-01-01"},{"$f":"Periodos!$D$4","v":"2022-12-31"},{"$f":"'610000 - Est. Camb. Patrimonio'!$E$42","v":"ifrs-full:ComponentsOfEquityAxis"},{"$f":"'610000 - Est. Camb. Patrimonio'!$O$41","v":"ifrs-full:ReserveOfGainsAndLossesOnHedgingInstrumentsThatHedgeInvestmentsInEquityInstrumentsMember"}]
["",null,{"$f":"'610000 - Est. Camb. Patrimonio'!$E$60","v":"Patrimonio al final del periodo"},{"$f":"'610000 - Est. Camb. Patrimonio'!$D$60","v":"ifrs-full:Equity"},0,"peso",{"$f":"'610000 - Est. Camb. Patrimonio'!$O$60","v":0},0,"http://www.xbrl.org/scheme/companyName",null,{"$f":"Periodos!$D$4","v":"2022-12-31"},{"$f":"'610000 - Est. Camb. Patrimonio'!$E$42","v":"ifrs-full:ComponentsOfEquityAxis"},{"$f":"'610000 - Est. Camb. Patrimonio'!$O$41","v":"ifrs-full:ReserveOfGainsAndLossesOnHedgingInstrumentsThatHedgeInvestmentsInEquityInstrumentsMember"}]
["/*",null,"--11--"]
["/*",null,{"$f":"'610000 - Est. Camb. Patrimonio'!$E$43","v":"Estado de cambios en el patrimonio [resumen]"},{"$f":"'610000 - Est. Camb. Patrimonio'!$D$43","v":"ifrs-full:StatementOfChangesInEquityAbstract"}]
["/*",null,{"$f":"'610000 - Est. Camb. Patrimonio'!$E$44","v":"Estado de cambios en el patrimonio [partidas de los estados financieros]"},{"$f":"'610000 - Est. Camb. Patrimonio'!$D$44","v":"ifrs-full:StatementOfChangesInEquityLineItems"}]
["/*",null,{"$f":"'610000 - Est. Camb. Patrimonio'!$E$45","v":"Patrimonio al comienzo del periodo"},{"$f":"'610000 - Est. Camb. Patrimonio'!$D$45","v":"ifrs-full:Equity"}]
["/*",null,{"$f":"'610000 - Est. Camb. Patrimonio'!$E$46","v":"Cambios en el patrimonio [resumen]"},{"$f":"'610000 - Est. Camb. Patrimonio'!$D$46","v":"ifrs-full:ChangesInEquityAbstract"}]
["/*",null,{"$f":"'610000 - Est. Camb. Patrimonio'!$E$47","v":"Resultado integral [resumen]"},{"$f":"'610000 - Est. Camb. Patrimonio'!$D$47","v":"ifrs-full:ComprehensiveIncomeAbstract"}]
["/*",null,{"$f":"'610000 - Est. Camb. Patrimonio'!$E$48","v":"Ganancia (pérdida)"},{"$f":"'610000 - Est. Camb. Patrimonio'!$D$48","v":"ifrs-full:ProfitLoss"}]
["/*",null,{"$f":"'610000 - Est. Camb. Patrimonio'!$E$49","v":"Otro resultado integral"},{"$f":"'610000 - Est. Camb. Patrimonio'!$D$49","v":"ifrs-full:OtherComprehensiveIncome"}]
["",null,{"$f":"'610000 - Est. Camb. Patrimonio'!$E$50","v":"Resultado integral total"},{"$f":"'610000 - Est. Camb. Patrimonio'!$D$50","v":"ifrs-full:ComprehensiveIncome"},0,"peso",{"$f":"'610000 - Est. Camb. Patrimonio'!$P$50","v":0},0,"http://www.xbrl.org/scheme/companyName",{"$f":"Periodos!$D$3","v":"2022-01-01"},{"$f":"Periodos!$D$4","v":"2022-12-31"},{"$f":"'610000 - Est. Camb. Patrimonio'!$E$42","v":"ifrs-full:ComponentsOfEquityAxis"},{"$f":"'610000 - Est. Camb. Patrimonio'!$P$41","v":"ifrs-full:ReserveOfChangeInValueOfTimeValueOfOptionsMember"}]
["/*",null,{"$f":"'610000 - Est. Camb. Patrimonio'!$E$51","v":"Emisión de patrimonio"},{"$f":"'610000 - Est. Camb. Patrimonio'!$D$51","v":"ifrs-full:IssueOfEquity"}]
["/*",null,{"$f":"'610000 - Est. Camb. Patrimonio'!$E$52","v":"Dividendos reconocidos como distribuciones a los propietarios"},{"$f":"'610000 - Est. Camb. Patrimonio'!$D$52","v":"ifrs-full:DividendsPaid"}]
["/*",null,{"$f":"'610000 - Est. Camb. Patrimonio'!$E$53","v":"Incrementos por otras aportaciones de los propietarios, patrimonio"},{"$f":"'610000 - Est. Camb. Patrimonio'!$D$53","v":"ifrs-full:IncreaseDecreaseThroughOtherContributionsByOwners"}]
["/*",null,{"$f":"'610000 - Est. Camb. Patrimonio'!$E$54","v":"Disminución por otras distribuciones a los propietarios, patrimonio"},{"$f":"'610000 - Est. Camb. Patrimonio'!$D$54","v":"ifrs-full:IncreaseDecreaseThroughOtherDistributionsToOwners"}]
["/*",null,{"$f":"'610000 - Est. Camb. Patrimonio'!$E$55","v":"Incrementos (disminuciones) por otros cambios, patrimonio"},{"$f":"'610000 - Est. Camb. Patrimonio'!$D$55","v":"ifrs-full:IncreaseDecreaseThroughTransfersAndOtherChangesEquity"}]
["/*",null,{"$f":"'610000 - Est. Camb. Patrimonio'!$E$56","v":"Incrementos (disminuciones) por transacciones con acciones propias, patrimonio"},{"$f":"'610000 - Est. Camb. Patrimonio'!$D$56","v":"ifrs-full:IncreaseDecreaseThroughTreasuryShareTransactions"}]
["/*",null,{"$f":"'610000 - Est. Camb. Patrimonio'!$E$57","v":"Incrementos (disminuciones) por cambios las participaciones en la propiedad de subsidiarias que no dan lugar a pérdida de control, patrimonio"},{"$f":"'610000 - Est. Camb. Patrimonio'!$D$57","v":"ifrs-full:IncreaseDecreaseThroughChangesInOwnershipInterestsInSubsidiariesThatDoNotResultInLossOfControl"}]
["/*",null,{"$f":"'610000 - Est. Camb. Patrimonio'!$E$58","v":"Incrementos (disminuciones) por transacciones con pagos basados en acciones, patrimonio"},{"$f":"'610000 - Est. Camb. Patrimonio'!$D$58","v":"ifrs-full:IncreaseDecreaseThroughSharebasedPaymentTransactions"}]
["",null,{"$f":"'610000 - Est. Camb. Patrimonio'!$E$59","v":"Total incremento (disminución) en el patrimonio"},{"$f":"'610000 - Est. Camb. Patrimonio'!$D$59","v":"ifrs-full:ChangesInEquity"},0,"peso",{"$f":"'610000 - Est. Camb. Patrimonio'!$P$59","v":0},0,"http://www.xbrl.org/scheme/companyName",{"$f":"Periodos!$D$3","v":"2022-01-01"},{"$f":"Periodos!$D$4","v":"2022-12-31"},{"$f":"'610000 - Est. Camb. Patrimonio'!$E$42","v":"ifrs-full:ComponentsOfEquityAxis"},{"$f":"'610000 - Est. Camb. Patrimonio'!$P$41","v":"ifrs-full:ReserveOfChangeInValueOfTimeValueOfOptionsMember"}]
["",null,{"$f":"'610000 - Est. Camb. Patrimonio'!$E$60","v":"Patrimonio al final del periodo"},{"$f":"'610000 - Est. Camb. Patrimonio'!$D$60","v":"ifrs-full:Equity"},0,"peso",{"$f":"'610000 - Est. Camb. Patrimonio'!$P$60","v":0},0,"http://www.xbrl.org/scheme/companyName",null,{"$f":"Periodos!$D$4","v":"2022-12-31"},{"$f":"'610000 - Est. Camb. Patrimonio'!$E$42","v":"ifrs-full:ComponentsOfEquityAxis"},{"$f":"'610000 - Est. Camb. Patrimonio'!$P$41","v":"ifrs-full:ReserveOfChangeInValueOfTimeValueOfOptionsMember"}]
["/*",null,"--12--"]
["/*",null,{"$f":"'610000 - Est. Camb. Patrimonio'!$E$43","v":"Estado de cambios en el patrimonio [resumen]"},{"$f":"'610000 - Est. Camb. Patrimonio'!$D$43","v":"ifrs-full:StatementOfChangesInEquityAbstract"}]
["/*",null,{"$f":"'610000 - Est. Camb. Patrimonio'!$E$44","v":"Estado de cambios en el patrimonio [partidas de los estados financieros]"},{"$f":"'610000 - Est. Camb. Patrimonio'!$D$44","v":"ifrs-full:StatementOfChangesInEquityLineItems"}]
["/*",null,{"$f":"'610000 - Est. Camb. Patrimonio'!$E$45","v":"Patrimonio al comienzo del periodo"},{"$f":"'610000 - Est. Camb. Patrimonio'!$D$45","v":"ifrs-full:Equity"}]
["/*",null,{"$f":"'610000 - Est. Camb. Patrimonio'!$E$46","v":"Cambios en el patrimonio [resumen]"},{"$f":"'610000 - Est. Camb. Patrimonio'!$D$46","v":"ifrs-full:ChangesInEquityAbstract"}]
["/*",null,{"$f":"'610000 - Est. Camb. Patrimonio'!$E$47","v":"Resultado integral [resumen]"},{"$f":"'610000 - Est. Camb. Patrimonio'!$D$47","v":"ifrs-full:ComprehensiveIncomeAbstract"}]
["/*",null,{"$f":"'610000 - Est. Camb. Patrimonio'!$E$48","v":"Ganancia (pérdida)"},{"$f":"'610000 - Est. Camb. Patrimonio'!$D$48","v":"ifrs-full:ProfitLoss"}]
["/*",null,{"$f":"'610000 - Est. Camb. Patrimonio'!$E$49","v":"Otro resultado integral"},{"$f":"'610000 - Est. Camb. Patrimonio'!$D$49","v":"ifrs-full:OtherComprehensiveIncome"}]
["",null,{"$f":"'610000 - Est. Camb. Patrimonio'!$E$50","v":"Resultado integral total"},{"$f":"'610000 - Est. Camb. Patrimonio'!$D$50","v":"ifrs-full:ComprehensiveIncome"},0,"peso",{"$f":"'610000 - Est. Camb. Patrimonio'!$Q$50","v":0},0,"http://www.xbrl.org/scheme/companyName",{"$f":"Periodos!$D$3","v":"2022-01-01"},{"$f":"Periodos!$D$4","v":"2022-12-31"},{"$f":"'610000 - Est. Camb. Patrimonio'!$E$42","v":"ifrs-full:ComponentsOfEquityAxis"},{"$f":"'610000 - Est. Camb. Patrimonio'!$Q$41","v":"ifrs-full:ReserveOfChangeInValueOfForwardElementsOfForwardContractsMember"}]
["/*",null,{"$f":"'610000 - Est. Camb. Patrimonio'!$E$51","v":"Emisión de patrimonio"},{"$f":"'610000 - Est. Camb. Patrimonio'!$D$51","v":"ifrs-full:IssueOfEquity"}]
["/*",null,{"$f":"'610000 - Est. Camb. Patrimonio'!$E$52","v":"Dividendos reconocidos como distribuciones a los propietarios"},{"$f":"'610000 - Est. Camb. Patrimonio'!$D$52","v":"ifrs-full:DividendsPaid"}]
["/*",null,{"$f":"'610000 - Est. Camb. Patrimonio'!$E$53","v":"Incrementos por otras aportaciones de los propietarios, patrimonio"},{"$f":"'610000 - Est. Camb. Patrimonio'!$D$53","v":"ifrs-full:IncreaseDecreaseThroughOtherContributionsByOwners"}]
["/*",null,{"$f":"'610000 - Est. Camb. Patrimonio'!$E$54","v":"Disminución por otras distribuciones a los propietarios, patrimonio"},{"$f":"'610000 - Est. Camb. Patrimonio'!$D$54","v":"ifrs-full:IncreaseDecreaseThroughOtherDistributionsToOwners"}]
["/*",null,{"$f":"'610000 - Est. Camb. Patrimonio'!$E$55","v":"Incrementos (disminuciones) por otros cambios, patrimonio"},{"$f":"'610000 - Est. Camb. Patrimonio'!$D$55","v":"ifrs-full:IncreaseDecreaseThroughTransfersAndOtherChangesEquity"}]
["/*",null,{"$f":"'610000 - Est. Camb. Patrimonio'!$E$56","v":"Incrementos (disminuciones) por transacciones con acciones propias, patrimonio"},{"$f":"'610000 - Est. Camb. Patrimonio'!$D$56","v":"ifrs-full:IncreaseDecreaseThroughTreasuryShareTransactions"}]
["/*",null,{"$f":"'610000 - Est. Camb. Patrimonio'!$E$57","v":"Incrementos (disminuciones) por cambios las participaciones en la propiedad de subsidiarias que no dan lugar a pérdida de control, patrimonio"},{"$f":"'610000 - Est. Camb. Patrimonio'!$D$57","v":"ifrs-full:IncreaseDecreaseThroughChangesInOwnershipInterestsInSubsidiariesThatDoNotResultInLossOfControl"}]
["/*",null,{"$f":"'610000 - Est. Camb. Patrimonio'!$E$58","v":"Incrementos (disminuciones) por transacciones con pagos basados en acciones, patrimonio"},{"$f":"'610000 - Est. Camb. Patrimonio'!$D$58","v":"ifrs-full:IncreaseDecreaseThroughSharebasedPaymentTransactions"}]
["",null,{"$f":"'610000 - Est. Camb. Patrimonio'!$E$59","v":"Total incremento (disminución) en el patrimonio"},{"$f":"'610000 - Est. Camb. Patrimonio'!$D$59","v":"ifrs-full:ChangesInEquity"},0,"peso",{"$f":"'610000 - Est. Camb. Patrimonio'!$Q$59","v":0},0,"http://www.xbrl.org/scheme/companyName",{"$f":"Periodos!$D$3","v":"2022-01-01"},{"$f":"Periodos!$D$4","v":"2022-12-31"},{"$f":"'610000 - Est. Camb. Patrimonio'!$E$42","v":"ifrs-full:ComponentsOfEquityAxis"},{"$f":"'610000 - Est. Camb. Patrimonio'!$Q$41","v":"ifrs-full:ReserveOfChangeInValueOfForwardElementsOfForwardContractsMember"}]
["",null,{"$f":"'610000 - Est. Camb. Patrimonio'!$E$60","v":"Patrimonio al final del periodo"},{"$f":"'610000 - Est. Camb. Patrimonio'!$D$60","v":"ifrs-full:Equity"},0,"peso",{"$f":"'610000 - Est. Camb. Patrimonio'!$Q$60","v":0},0,"http://www.xbrl.org/scheme/companyName",null,{"$f":"Periodos!$D$4","v":"2022-12-31"},{"$f":"'610000 - Est. Camb. Patrimonio'!$E$42","v":"ifrs-full:ComponentsOfEquityAxis"},{"$f":"'610000 - Est. Camb. Patrimonio'!$Q$41","v":"ifrs-full:ReserveOfChangeInValueOfForwardElementsOfForwardContractsMember"}]
["/*",null,"--13--"]
["/*",null,{"$f":"'610000 - Est. Camb. Patrimonio'!$E$43","v":"Estado de cambios en el patrimonio [resumen]"},{"$f":"'610000 - Est. Camb. Patrimonio'!$D$43","v":"ifrs-full:StatementOfChangesInEquityAbstract"}]
["/*",null,{"$f":"'610000 - Est. Camb. Patrimonio'!$E$44","v":"Estado de cambios en el patrimonio [partidas de los estados financieros]"},{"$f":"'610000 - Est. Camb. Patrimonio'!$D$44","v":"ifrs-full:StatementOfChangesInEquityLineItems"}]
["/*",null,{"$f":"'610000 - Est. Camb. Patrimonio'!$E$45","v":"Patrimonio al comienzo del periodo"},{"$f":"'610000 - Est. Camb. Patrimonio'!$D$45","v":"ifrs-full:Equity"}]
["/*",null,{"$f":"'610000 - Est. Camb. Patrimonio'!$E$46","v":"Cambios en el patrimonio [resumen]"},{"$f":"'610000 - Est. Camb. Patrimonio'!$D$46","v":"ifrs-full:ChangesInEquityAbstract"}]
["/*",null,{"$f":"'610000 - Est. Camb. Patrimonio'!$E$47","v":"Resultado integral [resumen]"},{"$f":"'610000 - Est. Camb. Patrimonio'!$D$47","v":"ifrs-full:ComprehensiveIncomeAbstract"}]
["/*",null,{"$f":"'610000 - Est. Camb. Patrimonio'!$E$48","v":"Ganancia (pérdida)"},{"$f":"'610000 - Est. Camb. Patrimonio'!$D$48","v":"ifrs-full:ProfitLoss"}]
["/*",null,{"$f":"'610000 - Est. Camb. Patrimonio'!$E$49","v":"Otro resultado integral"},{"$f":"'610000 - Est. Camb. Patrimonio'!$D$49","v":"ifrs-full:OtherComprehensiveIncome"}]
[{"$f":"IF(G8160=\"\",\"/*\",\"\")","v":""},null,{"$f":"'610000 - Est. Camb. Patrimonio'!$E$50","v":"Resultado integral total"},{"$f":"'610000 - Est. Camb. Patrimonio'!$D$50","v":"ifrs-full:ComprehensiveIncome"},0,"peso",{"$f":"'610000 - Est. Camb. Patrimonio'!$R$50","v":0},0,"http://www.xbrl.org/scheme/companyName",{"$f":"Periodos!$D$3","v":"2022-01-01"},{"$f":"Periodos!$D$4","v":"2022-12-31"},{"$f":"'610000 - Est. Camb. Patrimonio'!$E$42","v":"ifrs-full:ComponentsOfEquityAxis"},{"$f":"'610000 - Est. Camb. Patrimonio'!$R$41","v":"ifrs-full:ReserveOfGainsAndLossesOnFinancialAssetsMeasuredAtFairValueThroughOtherComprehensiveIncomeMember"}]
["/*",null,{"$f":"'610000 - Est. Camb. Patrimonio'!$E$51","v":"Emisión de patrimonio"},{"$f":"'610000 - Est. Camb. Patrimonio'!$D$51","v":"ifrs-full:IssueOfEquity"}]
["/*",null,{"$f":"'610000 - Est. Camb. Patrimonio'!$E$52","v":"Dividendos reconocidos como distribuciones a los propietarios"},{"$f":"'610000 - Est. Camb. Patrimonio'!$D$52","v":"ifrs-full:DividendsPaid"}]
["/*",null,{"$f":"'610000 - Est. Camb. Patrimonio'!$E$53","v":"Incrementos por otras aportaciones de los propietarios, patrimonio"},{"$f":"'610000 - Est. Camb. Patrimonio'!$D$53","v":"ifrs-full:IncreaseDecreaseThroughOtherContributionsByOwners"}]
["/*",null,{"$f":"'610000 - Est. Camb. Patrimonio'!$E$54","v":"Disminución por otras distribuciones a los propietarios, patrimonio"},{"$f":"'610000 - Est. Camb. Patrimonio'!$D$54","v":"ifrs-full:IncreaseDecreaseThroughOtherDistributionsToOwners"}]
["/*",null,{"$f":"'610000 - Est. Camb. Patrimonio'!$E$55","v":"Incrementos (disminuciones) por otros cambios, patrimonio"},{"$f":"'610000 - Est. Camb. Patrimonio'!$D$55","v":"ifrs-full:IncreaseDecreaseThroughTransfersAndOtherChangesEquity"}]
["/*",null,{"$f":"'610000 - Est. Camb. Patrimonio'!$E$56","v":"Incrementos (disminuciones) por transacciones con acciones propias, patrimonio"},{"$f":"'610000 - Est. Camb. Patrimonio'!$D$56","v":"ifrs-full:IncreaseDecreaseThroughTreasuryShareTransactions"}]
["/*",null,{"$f":"'610000 - Est. Camb. Patrimonio'!$E$57","v":"Incrementos (disminuciones) por cambios las participaciones en la propiedad de subsidiarias que no dan lugar a pérdida de control, patrimonio"},{"$f":"'610000 - Est. Camb. Patrimonio'!$D$57","v":"ifrs-full:IncreaseDecreaseThroughChangesInOwnershipInterestsInSubsidiariesThatDoNotResultInLossOfControl"}]
["/*",null,{"$f":"'610000 - Est. Camb. Patrimonio'!$E$58","v":"Incrementos (disminuciones) por transacciones con pagos basados en acciones, patrimonio"},{"$f":"'610000 - Est. Camb. Patrimonio'!$D$58","v":"ifrs-full:IncreaseDecreaseThroughSharebasedPaymentTransactions"}]
["",null,{"$f":"'610000 - Est. Camb. Patrimonio'!$E$59","v":"Total incremento (disminución) en el patrimonio"},{"$f":"'610000 - Est. Camb. Patrimonio'!$D$59","v":"ifrs-full:ChangesInEquity"},0,"peso",{"$f":"'610000 - Est. Camb. Patrimonio'!$R$59","v":0},0,"http://www.xbrl.org/scheme/companyName",{"$f":"Periodos!$D$3","v":"2022-01-01"},{"$f":"Periodos!$D$4","v":"2022-12-31"},{"$f":"'610000 - Est. Camb. Patrimonio'!$E$42","v":"ifrs-full:ComponentsOfEquityAxis"},{"$f":"'610000 - Est. Camb. Patrimonio'!$R$41","v":"ifrs-full:ReserveOfGainsAndLossesOnFinancialAssetsMeasuredAtFairValueThroughOtherComprehensiveIncomeMember"}]
["",null,{"$f":"'610000 - Est. Camb. Patrimonio'!$E$60","v":"Patrimonio al final del periodo"},{"$f":"'610000 - Est. Camb. Patrimonio'!$D$60","v":"ifrs-full:Equity"},0,"peso",{"$f":"'610000 - Est. Camb. Patrimonio'!$R$60","v":0},0,"http://www.xbrl.org/scheme/companyName",null,{"$f":"Periodos!$D$4","v":"2022-12-31"},{"$f":"'610000 - Est. Camb. Patrimonio'!$E$42","v":"ifrs-full:ComponentsOfEquityAxis"},{"$f":"'610000 - Est. Camb. Patrimonio'!$R$41","v":"ifrs-full:ReserveOfGainsAndLossesOnFinancialAssetsMeasuredAtFairValueThroughOtherComprehensiveIncomeMember"}]
["/*",null,"--14--"]
["/*",null,{"$f":"'610000 - Est. Camb. Patrimonio'!$E$43","v":"Estado de cambios en el patrimonio [resumen]"},{"$f":"'610000 - Est. Camb. Patrimonio'!$D$43","v":"ifrs-full:StatementOfChangesInEquityAbstract"}]
["/*",null,{"$f":"'610000 - Est. Camb. Patrimonio'!$E$44","v":"Estado de cambios en el patrimonio [partidas de los estados financieros]"},{"$f":"'610000 - Est. Camb. Patrimonio'!$D$44","v":"ifrs-full:StatementOfChangesInEquityLineItems"}]
["/*",null,{"$f":"'610000 - Est. Camb. Patrimonio'!$E$45","v":"Patrimonio al comienzo del periodo"},{"$f":"'610000 - Est. Camb. Patrimonio'!$D$45","v":"ifrs-full:Equity"}]
["/*",null,{"$f":"'610000 - Est. Camb. Patrimonio'!$E$46","v":"Cambios en el patrimonio [resumen]"},{"$f":"'610000 - Est. Camb. Patrimonio'!$D$46","v":"ifrs-full:ChangesInEquityAbstract"}]
["/*",null,{"$f":"'610000 - Est. Camb. Patrimonio'!$E$47","v":"Resultado integral [resumen]"},{"$f":"'610000 - Est. Camb. Patrimonio'!$D$47","v":"ifrs-full:ComprehensiveIncomeAbstract"}]
["/*",null,{"$f":"'610000 - Est. Camb. Patrimonio'!$E$48","v":"Ganancia (pérdida)"},{"$f":"'610000 - Est. Camb. Patrimonio'!$D$48","v":"ifrs-full:ProfitLoss"}]
["/*",null,{"$f":"'610000 - Est. Camb. Patrimonio'!$E$49","v":"Otro resultado integral"},{"$f":"'610000 - Est. Camb. Patrimonio'!$D$49","v":"ifrs-full:OtherComprehensiveIncome"}]
["",null,{"$f":"'610000 - Est. Camb. Patrimonio'!$E$50","v":"Resultado integral total"},{"$f":"'610000 - Est. Camb. Patrimonio'!$D$50","v":"ifrs-full:ComprehensiveIncome"},0,"peso",{"$f":"'610000 - Est. Camb. Patrimonio'!$S$50","v":0},0,"http://www.xbrl.org/scheme/companyName",{"$f":"Periodos!$D$3","v":"2022-01-01"},{"$f":"Periodos!$D$4","v":"2022-12-31"},{"$f":"'610000 - Est. Camb. Patrimonio'!$E$42","v":"ifrs-full:ComponentsOfEquityAxis"},{"$f":"'610000 - Est. Camb. Patrimonio'!$S$41","v":"ifrs-full:ReserveOfSharebasedPaymentsMember"}]
["/*",null,{"$f":"'610000 - Est. Camb. Patrimonio'!$E$51","v":"Emisión de patrimonio"},{"$f":"'610000 - Est. Camb. Patrimonio'!$D$51","v":"ifrs-full:IssueOfEquity"}]
["/*",null,{"$f":"'610000 - Est. Camb. Patrimonio'!$E$52","v":"Dividendos reconocidos como distribuciones a los propietarios"},{"$f":"'610000 - Est. Camb. Patrimonio'!$D$52","v":"ifrs-full:DividendsPaid"}]
["/*",null,{"$f":"'610000 - Est. Camb. Patrimonio'!$E$53","v":"Incrementos por otras aportaciones de los propietarios, patrimonio"},{"$f":"'610000 - Est. Camb. Patrimonio'!$D$53","v":"ifrs-full:IncreaseDecreaseThroughOtherContributionsByOwners"}]
["/*",null,{"$f":"'610000 - Est. Camb. Patrimonio'!$E$54","v":"Disminución por otras distribuciones a los propietarios, patrimonio"},{"$f":"'610000 - Est. Camb. Patrimonio'!$D$54","v":"ifrs-full:IncreaseDecreaseThroughOtherDistributionsToOwners"}]
["/*",null,{"$f":"'610000 - Est. Camb. Patrimonio'!$E$55","v":"Incrementos (disminuciones) por otros cambios, patrimonio"},{"$f":"'610000 - Est. Camb. Patrimonio'!$D$55","v":"ifrs-full:IncreaseDecreaseThroughTransfersAndOtherChangesEquity"}]
["/*",null,{"$f":"'610000 - Est. Camb. Patrimonio'!$E$56","v":"Incrementos (disminuciones) por transacciones con acciones propias, patrimonio"},{"$f":"'610000 - Est. Camb. Patrimonio'!$D$56","v":"ifrs-full:IncreaseDecreaseThroughTreasuryShareTransactions"}]
["/*",null,{"$f":"'610000 - Est. Camb. Patrimonio'!$E$57","v":"Incrementos (disminuciones) por cambios las participaciones en la propiedad de subsidiarias que no dan lugar a pérdida de control, patrimonio"},{"$f":"'610000 - Est. Camb. Patrimonio'!$D$57","v":"ifrs-full:IncreaseDecreaseThroughChangesInOwnershipInterestsInSubsidiariesThatDoNotResultInLossOfControl"}]
["/*",null,{"$f":"'610000 - Est. Camb. Patrimonio'!$E$58","v":"Incrementos (disminuciones) por transacciones con pagos basados en acciones, patrimonio"},{"$f":"'610000 - Est. Camb. Patrimonio'!$D$58","v":"ifrs-full:IncreaseDecreaseThroughSharebasedPaymentTransactions"}]
["",null,{"$f":"'610000 - Est. Camb. Patrimonio'!$E$59","v":"Total incremento (disminución) en el patrimonio"},{"$f":"'610000 - Est. Camb. Patrimonio'!$D$59","v":"ifrs-full:ChangesInEquity"},0,"peso",{"$f":"'610000 - Est. Camb. Patrimonio'!$S$59","v":0},0,"http://www.xbrl.org/scheme/companyName",{"$f":"Periodos!$D$3","v":"2022-01-01"},{"$f":"Periodos!$D$4","v":"2022-12-31"},{"$f":"'610000 - Est. Camb. Patrimonio'!$E$42","v":"ifrs-full:ComponentsOfEquityAxis"},{"$f":"'610000 - Est. Camb. Patrimonio'!$S$41","v":"ifrs-full:ReserveOfSharebasedPaymentsMember"}]
["",null,{"$f":"'610000 - Est. Camb. Patrimonio'!$E$60","v":"Patrimonio al final del periodo"},{"$f":"'610000 - Est. Camb. Patrimonio'!$D$60","v":"ifrs-full:Equity"},0,"peso",{"$f":"'610000 - Est. Camb. Patrimonio'!$S$60","v":0},0,"http://www.xbrl.org/scheme/companyName",null,{"$f":"Periodos!$D$4","v":"2022-12-31"},{"$f":"'610000 - Est. Camb. Patrimonio'!$E$42","v":"ifrs-full:ComponentsOfEquityAxis"},{"$f":"'610000 - Est. Camb. Patrimonio'!$S$41","v":"ifrs-full:ReserveOfSharebasedPaymentsMember"}]
["/*",null,"--15--"]
["/*",null,{"$f":"'610000 - Est. Camb. Patrimonio'!$E$43","v":"Estado de cambios en el patrimonio [resumen]"},{"$f":"'610000 - Est. Camb. Patrimonio'!$D$43","v":"ifrs-full:StatementOfChangesInEquityAbstract"}]
["/*",null,{"$f":"'610000 - Est. Camb. Patrimonio'!$E$44","v":"Estado de cambios en el patrimonio [partidas de los estados financieros]"},{"$f":"'610000 - Est. Camb. Patrimonio'!$D$44","v":"ifrs-full:StatementOfChangesInEquityLineItems"}]
["/*",null,{"$f":"'610000 - Est. Camb. Patrimonio'!$E$45","v":"Patrimonio al comienzo del periodo"},{"$f":"'610000 - Est. Camb. Patrimonio'!$D$45","v":"ifrs-full:Equity"}]
["/*",null,{"$f":"'610000 - Est. Camb. Patrimonio'!$E$46","v":"Cambios en el patrimonio [resumen]"},{"$f":"'610000 - Est. Camb. Patrimonio'!$D$46","v":"ifrs-full:ChangesInEquityAbstract"}]
["/*",null,{"$f":"'610000 - Est. Camb. Patrimonio'!$E$47","v":"Resultado integral [resumen]"},{"$f":"'610000 - Est. Camb. Patrimonio'!$D$47","v":"ifrs-full:ComprehensiveIncomeAbstract"}]
["/*",null,{"$f":"'610000 - Est. Camb. Patrimonio'!$E$48","v":"Ganancia (pérdida)"},{"$f":"'610000 - Est. Camb. Patrimonio'!$D$48","v":"ifrs-full:ProfitLoss"}]
["/*",null,{"$f":"'610000 - Est. Camb. Patrimonio'!$E$49","v":"Otro resultado integral"},{"$f":"'610000 - Est. Camb. Patrimonio'!$D$49","v":"ifrs-full:OtherComprehensiveIncome"}]
["",null,{"$f":"'610000 - Est. Camb. Patrimonio'!$E$50","v":"Resultado integral total"},{"$f":"'610000 - Est. Camb. Patrimonio'!$D$50","v":"ifrs-full:ComprehensiveIncome"},0,"peso",{"$f":"'610000 - Est. Camb. Patrimonio'!$T$50","v":0},0,"http://www.xbrl.org/scheme/companyName",{"$f":"Periodos!$D$3","v":"2022-01-01"},{"$f":"Periodos!$D$4","v":"2022-12-31"},{"$f":"'610000 - Est. Camb. Patrimonio'!$E$42","v":"ifrs-full:ComponentsOfEquityAxis"},{"$f":"'610000 - Est. Camb. Patrimonio'!$T$41","v":"ifrs-full:ReserveOfChangeInValueOfForeignCurrencyBasisSpreadsMember"}]
["/*",null,{"$f":"'610000 - Est. Camb. Patrimonio'!$E$51","v":"Emisión de patrimonio"},{"$f":"'610000 - Est. Camb. Patrimonio'!$D$51","v":"ifrs-full:IssueOfEquity"}]
["/*",null,{"$f":"'610000 - Est. Camb. Patrimonio'!$E$52","v":"Dividendos reconocidos como distribuciones a los propietarios"},{"$f":"'610000 - Est. Camb. Patrimonio'!$D$52","v":"ifrs-full:DividendsPaid"}]
["/*",null,{"$f":"'610000 - Est. Camb. Patrimonio'!$E$53","v":"Incrementos por otras aportaciones de los propietarios, patrimonio"},{"$f":"'610000 - Est. Camb. Patrimonio'!$D$53","v":"ifrs-full:IncreaseDecreaseThroughOtherContributionsByOwners"}]
["/*",null,{"$f":"'610000 - Est. Camb. Patrimonio'!$E$54","v":"Disminución por otras distribuciones a los propietarios, patrimonio"},{"$f":"'610000 - Est. Camb. Patrimonio'!$D$54","v":"ifrs-full:IncreaseDecreaseThroughOtherDistributionsToOwners"}]
["/*",null,{"$f":"'610000 - Est. Camb. Patrimonio'!$E$55","v":"Incrementos (disminuciones) por otros cambios, patrimonio"},{"$f":"'610000 - Est. Camb. Patrimonio'!$D$55","v":"ifrs-full:IncreaseDecreaseThroughTransfersAndOtherChangesEquity"}]
["/*",null,{"$f":"'610000 - Est. Camb. Patrimonio'!$E$56","v":"Incrementos (disminuciones) por transacciones con acciones propias, patrimonio"},{"$f":"'610000 - Est. Camb. Patrimonio'!$D$56","v":"ifrs-full:IncreaseDecreaseThroughTreasuryShareTransactions"}]
["/*",null,{"$f":"'610000 - Est. Camb. Patrimonio'!$E$57","v":"Incrementos (disminuciones) por cambios las participaciones en la propiedad de subsidiarias que no dan lugar a pérdida de control, patrimonio"},{"$f":"'610000 - Est. Camb. Patrimonio'!$D$57","v":"ifrs-full:IncreaseDecreaseThroughChangesInOwnershipInterestsInSubsidiariesThatDoNotResultInLossOfControl"}]
["/*",null,{"$f":"'610000 - Est. Camb. Patrimonio'!$E$58","v":"Incrementos (disminuciones) por transacciones con pagos basados en acciones, patrimonio"},{"$f":"'610000 - Est. Camb. Patrimonio'!$D$58","v":"ifrs-full:IncreaseDecreaseThroughSharebasedPaymentTransactions"}]
["",null,{"$f":"'610000 - Est. Camb. Patrimonio'!$E$59","v":"Total incremento (disminución) en el patrimonio"},{"$f":"'610000 - Est. Camb. Patrimonio'!$D$59","v":"ifrs-full:ChangesInEquity"},0,"peso",{"$f":"'610000 - Est. Camb. Patrimonio'!$T$59","v":0},0,"http://www.xbrl.org/scheme/companyName",{"$f":"Periodos!$D$3","v":"2022-01-01"},{"$f":"Periodos!$D$4","v":"2022-12-31"},{"$f":"'610000 - Est. Camb. Patrimonio'!$E$42","v":"ifrs-full:ComponentsOfEquityAxis"},{"$f":"'610000 - Est. Camb. Patrimonio'!$T$41","v":"ifrs-full:ReserveOfChangeInValueOfForeignCurrencyBasisSpreadsMember"}]
["",null,{"$f":"'610000 - Est. Camb. Patrimonio'!$E$60","v":"Patrimonio al final del periodo"},{"$f":"'610000 - Est. Camb. Patrimonio'!$D$60","v":"ifrs-full:Equity"},0,"peso",{"$f":"'610000 - Est. Camb. Patrimonio'!$T$60","v":0},0,"http://www.xbrl.org/scheme/companyName",null,{"$f":"Periodos!$D$4","v":"2022-12-31"},{"$f":"'610000 - Est. Camb. Patrimonio'!$E$42","v":"ifrs-full:ComponentsOfEquityAxis"},{"$f":"'610000 - Est. Camb. Patrimonio'!$T$41","v":"ifrs-full:ReserveOfChangeInValueOfForeignCurrencyBasisSpreadsMember"}]
["/*",null,"--16--"]
["/*",null,{"$f":"'610000 - Est. Camb. Patrimonio'!$E$43","v":"Estado de cambios en el patrimonio [resumen]"},{"$f":"'610000 - Est. Camb. Patrimonio'!$D$43","v":"ifrs-full:StatementOfChangesInEquityAbstract"}]
["/*",null,{"$f":"'610000 - Est. Camb. Patrimonio'!$E$44","v":"Estado de cambios en el patrimonio [partidas de los estados financieros]"},{"$f":"'610000 - Est. Camb. Patrimonio'!$D$44","v":"ifrs-full:StatementOfChangesInEquityLineItems"}]
["/*",null,{"$f":"'610000 - Est. Camb. Patrimonio'!$E$45","v":"Patrimonio al comienzo del periodo"},{"$f":"'610000 - Est. Camb. Patrimonio'!$D$45","v":"ifrs-full:Equity"}]
["/*",null,{"$f":"'610000 - Est. Camb. Patrimonio'!$E$46","v":"Cambios en el patrimonio [resumen]"},{"$f":"'610000 - Est. Camb. Patrimonio'!$D$46","v":"ifrs-full:ChangesInEquityAbstract"}]
["/*",null,{"$f":"'610000 - Est. Camb. Patrimonio'!$E$47","v":"Resultado integral [resumen]"},{"$f":"'610000 - Est. Camb. Patrimonio'!$D$47","v":"ifrs-full:ComprehensiveIncomeAbstract"}]
["/*",null,{"$f":"'610000 - Est. Camb. Patrimonio'!$E$48","v":"Ganancia (pérdida)"},{"$f":"'610000 - Est. Camb. Patrimonio'!$D$48","v":"ifrs-full:ProfitLoss"}]
["/*",null,{"$f":"'610000 - Est. Camb. Patrimonio'!$E$49","v":"Otro resultado integral"},{"$f":"'610000 - Est. Camb. Patrimonio'!$D$49","v":"ifrs-full:OtherComprehensiveIncome"}]
["",null,{"$f":"'610000 - Est. Camb. Patrimonio'!$E$50","v":"Resultado integral total"},{"$f":"'610000 - Est. Camb. Patrimonio'!$D$50","v":"ifrs-full:ComprehensiveIncome"},0,"peso",{"$f":"'610000 - Est. Camb. Patrimonio'!$U$50","v":0},0,"http://www.xbrl.org/scheme/companyName",{"$f":"Periodos!$D$3","v":"2022-01-01"},{"$f":"Periodos!$D$4","v":"2022-12-31"},{"$f":"'610000 - Est. Camb. Patrimonio'!$E$42","v":"ifrs-full:ComponentsOfEquityAxis"},{"$f":"'610000 - Est. Camb. Patrimonio'!$U$41","v":"ifrs-full:ReserveOfRemeasurementsOfDefinedBenefitPlansMember"}]
["/*",null,{"$f":"'610000 - Est. Camb. Patrimonio'!$E$51","v":"Emisión de patrimonio"},{"$f":"'610000 - Est. Camb. Patrimonio'!$D$51","v":"ifrs-full:IssueOfEquity"}]
["/*",null,{"$f":"'610000 - Est. Camb. Patrimonio'!$E$52","v":"Dividendos reconocidos como distribuciones a los propietarios"},{"$f":"'610000 - Est. Camb. Patrimonio'!$D$52","v":"ifrs-full:DividendsPaid"}]
["/*",null,{"$f":"'610000 - Est. Camb. Patrimonio'!$E$53","v":"Incrementos por otras aportaciones de los propietarios, patrimonio"},{"$f":"'610000 - Est. Camb. Patrimonio'!$D$53","v":"ifrs-full:IncreaseDecreaseThroughOtherContributionsByOwners"}]
["/*",null,{"$f":"'610000 - Est. Camb. Patrimonio'!$E$54","v":"Disminución por otras distribuciones a los propietarios, patrimonio"},{"$f":"'610000 - Est. Camb. Patrimonio'!$D$54","v":"ifrs-full:IncreaseDecreaseThroughOtherDistributionsToOwners"}]
["/*",null,{"$f":"'610000 - Est. Camb. Patrimonio'!$E$55","v":"Incrementos (disminuciones) por otros cambios, patrimonio"},{"$f":"'610000 - Est. Camb. Patrimonio'!$D$55","v":"ifrs-full:IncreaseDecreaseThroughTransfersAndOtherChangesEquity"}]
["/*",null,{"$f":"'610000 - Est. Camb. Patrimonio'!$E$56","v":"Incrementos (disminuciones) por transacciones con acciones propias, patrimonio"},{"$f":"'610000 - Est. Camb. Patrimonio'!$D$56","v":"ifrs-full:IncreaseDecreaseThroughTreasuryShareTransactions"}]
[{"$f":"IF(G8224=\"\",\"/*\",\"\")","v":"/*"},null,{"$f":"'610000 - Est. Camb. Patrimonio'!$E$57","v":"Incrementos (disminuciones) por cambios las participaciones en la propiedad de subsidiarias que no dan lugar a pérdida de control, patrimonio"},{"$f":"'610000 - Est. Camb. Patrimonio'!$D$57","v":"ifrs-full:IncreaseDecreaseThroughChangesInOwnershipInterestsInSubsidiariesThatDoNotResultInLossOfControl"}]
["/*",null,{"$f":"'610000 - Est. Camb. Patrimonio'!$E$58","v":"Incrementos (disminuciones) por transacciones con pagos basados en acciones, patrimonio"},{"$f":"'610000 - Est. Camb. Patrimonio'!$D$58","v":"ifrs-full:IncreaseDecreaseThroughSharebasedPaymentTransactions"}]
["",null,{"$f":"'610000 - Est. Camb. Patrimonio'!$E$59","v":"Total incremento (disminución) en el patrimonio"},{"$f":"'610000 - Est. Camb. Patrimonio'!$D$59","v":"ifrs-full:ChangesInEquity"},0,"peso",{"$f":"'610000 - Est. Camb. Patrimonio'!$U$59","v":0},0,"http://www.xbrl.org/scheme/companyName",{"$f":"Periodos!$D$3","v":"2022-01-01"},{"$f":"Periodos!$D$4","v":"2022-12-31"},{"$f":"'610000 - Est. Camb. Patrimonio'!$E$42","v":"ifrs-full:ComponentsOfEquityAxis"},{"$f":"'610000 - Est. Camb. Patrimonio'!$U$41","v":"ifrs-full:ReserveOfRemeasurementsOfDefinedBenefitPlansMember"}]
["",null,{"$f":"'610000 - Est. Camb. Patrimonio'!$E$60","v":"Patrimonio al final del periodo"},{"$f":"'610000 - Est. Camb. Patrimonio'!$D$60","v":"ifrs-full:Equity"},0,"peso",{"$f":"'610000 - Est. Camb. Patrimonio'!$U$60","v":0},0,"http://www.xbrl.org/scheme/companyName",null,{"$f":"Periodos!$D$4","v":"2022-12-31"},{"$f":"'610000 - Est. Camb. Patrimonio'!$E$42","v":"ifrs-full:ComponentsOfEquityAxis"},{"$f":"'610000 - Est. Camb. Patrimonio'!$U$41","v":"ifrs-full:ReserveOfRemeasurementsOfDefinedBenefitPlansMember"}]
["/*",null,"--17--"]
["/*",null,{"$f":"'610000 - Est. Camb. Patrimonio'!$E$43","v":"Estado de cambios en el patrimonio [resumen]"},{"$f":"'610000 - Est. Camb. Patrimonio'!$D$43","v":"ifrs-full:StatementOfChangesInEquityAbstract"}]
["/*",null,{"$f":"'610000 - Est. Camb. Patrimonio'!$E$44","v":"Estado de cambios en el patrimonio [partidas de los estados financieros]"},{"$f":"'610000 - Est. Camb. Patrimonio'!$D$44","v":"ifrs-full:StatementOfChangesInEquityLineItems"}]
["/*",null,{"$f":"'610000 - Est. Camb. Patrimonio'!$E$45","v":"Patrimonio al comienzo del periodo"},{"$f":"'610000 - Est. Camb. Patrimonio'!$D$45","v":"ifrs-full:Equity"}]
["/*",null,{"$f":"'610000 - Est. Camb. Patrimonio'!$E$46","v":"Cambios en el patrimonio [resumen]"},{"$f":"'610000 - Est. Camb. Patrimonio'!$D$46","v":"ifrs-full:ChangesInEquityAbstract"}]
["/*",null,{"$f":"'610000 - Est. Camb. Patrimonio'!$E$47","v":"Resultado integral [resumen]"},{"$f":"'610000 - Est. Camb. Patrimonio'!$D$47","v":"ifrs-full:ComprehensiveIncomeAbstract"}]
["/*",null,{"$f":"'610000 - Est. Camb. Patrimonio'!$E$48","v":"Ganancia (pérdida)"},{"$f":"'610000 - Est. Camb. Patrimonio'!$D$48","v":"ifrs-full:ProfitLoss"}]
["/*",null,{"$f":"'610000 - Est. Camb. Patrimonio'!$E$49","v":"Otro resultado integral"},{"$f":"'610000 - Est. Camb. Patrimonio'!$D$49","v":"ifrs-full:OtherComprehensiveIncome"}]
["",null,{"$f":"'610000 - Est. Camb. Patrimonio'!$E$50","v":"Resultado integral total"},{"$f":"'610000 - Est. Camb. Patrimonio'!$D$50","v":"ifrs-full:ComprehensiveIncome"},0,"peso",{"$f":"'610000 - Est. Camb. Patrimonio'!$V$50","v":0},0,"http://www.xbrl.org/scheme/companyName",{"$f":"Periodos!$D$3","v":"2022-01-01"},{"$f":"Periodos!$D$4","v":"2022-12-31"},{"$f":"'610000 - Est. Camb. Patrimonio'!$E$42","v":"ifrs-full:ComponentsOfEquityAxis"},{"$f":"'610000 - Est. Camb. Patrimonio'!$V$41","v":"ifrs-full:AmountRecognisedInOtherComprehensiveIncomeAndAccumulatedInEquityRelatingToNoncurrentAssetsOrDisposalGroupsHeldForSaleMember"}]
["/*",null,{"$f":"'610000 - Est. Camb. Patrimonio'!$E$51","v":"Emisión de patrimonio"},{"$f":"'610000 - Est. Camb. Patrimonio'!$D$51","v":"ifrs-full:IssueOfEquity"}]
["/*",null,{"$f":"'610000 - Est. Camb. Patrimonio'!$E$52","v":"Dividendos reconocidos como distribuciones a los propietarios"},{"$f":"'610000 - Est. Camb. Patrimonio'!$D$52","v":"ifrs-full:DividendsPaid"}]
["/*",null,{"$f":"'610000 - Est. Camb. Patrimonio'!$E$53","v":"Incrementos por otras aportaciones de los propietarios, patrimonio"},{"$f":"'610000 - Est. Camb. Patrimonio'!$D$53","v":"ifrs-full:IncreaseDecreaseThroughOtherContributionsByOwners"}]
["/*",null,{"$f":"'610000 - Est. Camb. Patrimonio'!$E$54","v":"Disminución por otras distribuciones a los propietarios, patrimonio"},{"$f":"'610000 - Est. Camb. Patrimonio'!$D$54","v":"ifrs-full:IncreaseDecreaseThroughOtherDistributionsToOwners"}]
["/*",null,{"$f":"'610000 - Est. Camb. Patrimonio'!$E$55","v":"Incrementos (disminuciones) por otros cambios, patrimonio"},{"$f":"'610000 - Est. Camb. Patrimonio'!$D$55","v":"ifrs-full:IncreaseDecreaseThroughTransfersAndOtherChangesEquity"}]
["/*",null,{"$f":"'610000 - Est. Camb. Patrimonio'!$E$56","v":"Incrementos (disminuciones) por transacciones con acciones propias, patrimonio"},{"$f":"'610000 - Est. Camb. Patrimonio'!$D$56","v":"ifrs-full:IncreaseDecreaseThroughTreasuryShareTransactions"}]
["/*",null,{"$f":"'610000 - Est. Camb. Patrimonio'!$E$57","v":"Incrementos (disminuciones) por cambios las participaciones en la propiedad de subsidiarias que no dan lugar a pérdida de control, patrimonio"},{"$f":"'610000 - Est. Camb. Patrimonio'!$D$57","v":"ifrs-full:IncreaseDecreaseThroughChangesInOwnershipInterestsInSubsidiariesThatDoNotResultInLossOfControl"}]
["/*",null,{"$f":"'610000 - Est. Camb. Patrimonio'!$E$58","v":"Incrementos (disminuciones) por transacciones con pagos basados en acciones, patrimonio"},{"$f":"'610000 - Est. Camb. Patrimonio'!$D$58","v":"ifrs-full:IncreaseDecreaseThroughSharebasedPaymentTransactions"}]
["",null,{"$f":"'610000 - Est. Camb. Patrimonio'!$E$59","v":"Total incremento (disminución) en el patrimonio"},{"$f":"'610000 - Est. Camb. Patrimonio'!$D$59","v":"ifrs-full:ChangesInEquity"},0,"peso",{"$f":"'610000 - Est. Camb. Patrimonio'!$V$59","v":0},0,"http://www.xbrl.org/scheme/companyName",{"$f":"Periodos!$D$3","v":"2022-01-01"},{"$f":"Periodos!$D$4","v":"2022-12-31"},{"$f":"'610000 - Est. Camb. Patrimonio'!$E$42","v":"ifrs-full:ComponentsOfEquityAxis"},{"$f":"'610000 - Est. Camb. Patrimonio'!$V$41","v":"ifrs-full:AmountRecognisedInOtherComprehensiveIncomeAndAccumulatedInEquityRelatingToNoncurrentAssetsOrDisposalGroupsHeldForSaleMember"}]
["",null,{"$f":"'610000 - Est. Camb. Patrimonio'!$E$60","v":"Patrimonio al final del periodo"},{"$f":"'610000 - Est. Camb. Patrimonio'!$D$60","v":"ifrs-full:Equity"},0,"peso",{"$f":"'610000 - Est. Camb. Patrimonio'!$V$60","v":0},0,"http://www.xbrl.org/scheme/companyName",null,{"$f":"Periodos!$D$4","v":"2022-12-31"},{"$f":"'610000 - Est. Camb. Patrimonio'!$E$42","v":"ifrs-full:ComponentsOfEquityAxis"},{"$f":"'610000 - Est. Camb. Patrimonio'!$V$41","v":"ifrs-full:AmountRecognisedInOtherComprehensiveIncomeAndAccumulatedInEquityRelatingToNoncurrentAssetsOrDisposalGroupsHeldForSaleMember"}]
["/*",null,"--18--"]
["/*",null,{"$f":"'610000 - Est. Camb. Patrimonio'!$E$43","v":"Estado de cambios en el patrimonio [resumen]"},{"$f":"'610000 - Est. Camb. Patrimonio'!$D$43","v":"ifrs-full:StatementOfChangesInEquityAbstract"}]
["/*",null,{"$f":"'610000 - Est. Camb. Patrimonio'!$E$44","v":"Estado de cambios en el patrimonio [partidas de los estados financieros]"},{"$f":"'610000 - Est. Camb. Patrimonio'!$D$44","v":"ifrs-full:StatementOfChangesInEquityLineItems"}]
["/*",null,{"$f":"'610000 - Est. Camb. Patrimonio'!$E$45","v":"Patrimonio al comienzo del periodo"},{"$f":"'610000 - Est. Camb. Patrimonio'!$D$45","v":"ifrs-full:Equity"}]
["/*",null,{"$f":"'610000 - Est. Camb. Patrimonio'!$E$46","v":"Cambios en el patrimonio [resumen]"},{"$f":"'610000 - Est. Camb. Patrimonio'!$D$46","v":"ifrs-full:ChangesInEquityAbstract"}]
["/*",null,{"$f":"'610000 - Est. Camb. Patrimonio'!$E$47","v":"Resultado integral [resumen]"},{"$f":"'610000 - Est. Camb. Patrimonio'!$D$47","v":"ifrs-full:ComprehensiveIncomeAbstract"}]
["/*",null,{"$f":"'610000 - Est. Camb. Patrimonio'!$E$48","v":"Ganancia (pérdida)"},{"$f":"'610000 - Est. Camb. Patrimonio'!$D$48","v":"ifrs-full:ProfitLoss"}]
["/*",null,{"$f":"'610000 - Est. Camb. Patrimonio'!$E$49","v":"Otro resultado integral"},{"$f":"'610000 - Est. Camb. Patrimonio'!$D$49","v":"ifrs-full:OtherComprehensiveIncome"}]
["",null,{"$f":"'610000 - Est. Camb. Patrimonio'!$E$50","v":"Resultado integral total"},{"$f":"'610000 - Est. Camb. Patrimonio'!$D$50","v":"ifrs-full:ComprehensiveIncome"},0,"peso",{"$f":"'610000 - Est. Camb. Patrimonio'!$W$50","v":0},0,"http://www.xbrl.org/scheme/companyName",{"$f":"Periodos!$D$3","v":"2022-01-01"},{"$f":"Periodos!$D$4","v":"2022-12-31"},{"$f":"'610000 - Est. Camb. Patrimonio'!$E$42","v":"ifrs-full:ComponentsOfEquityAxis"},{"$f":"'610000 - Est. Camb. Patrimonio'!$W$41","v":"ifrs-full:ReserveOfGainsAndLossesFromInvestmentsInEquityInstrumentsMember"}]
["/*",null,{"$f":"'610000 - Est. Camb. Patrimonio'!$E$51","v":"Emisión de patrimonio"},{"$f":"'610000 - Est. Camb. Patrimonio'!$D$51","v":"ifrs-full:IssueOfEquity"}]
["/*",null,{"$f":"'610000 - Est. Camb. Patrimonio'!$E$52","v":"Dividendos reconocidos como distribuciones a los propietarios"},{"$f":"'610000 - Est. Camb. Patrimonio'!$D$52","v":"ifrs-full:DividendsPaid"}]
["/*",null,{"$f":"'610000 - Est. Camb. Patrimonio'!$E$53","v":"Incrementos por otras aportaciones de los propietarios, patrimonio"},{"$f":"'610000 - Est. Camb. Patrimonio'!$D$53","v":"ifrs-full:IncreaseDecreaseThroughOtherContributionsByOwners"}]
["/*",null,{"$f":"'610000 - Est. Camb. Patrimonio'!$E$54","v":"Disminución por otras distribuciones a los propietarios, patrimonio"},{"$f":"'610000 - Est. Camb. Patrimonio'!$D$54","v":"ifrs-full:IncreaseDecreaseThroughOtherDistributionsToOwners"}]
["/*",null,{"$f":"'610000 - Est. Camb. Patrimonio'!$E$55","v":"Incrementos (disminuciones) por otros cambios, patrimonio"},{"$f":"'610000 - Est. Camb. Patrimonio'!$D$55","v":"ifrs-full:IncreaseDecreaseThroughTransfersAndOtherChangesEquity"}]
["/*",null,{"$f":"'610000 - Est. Camb. Patrimonio'!$E$56","v":"Incrementos (disminuciones) por transacciones con acciones propias, patrimonio"},{"$f":"'610000 - Est. Camb. Patrimonio'!$D$56","v":"ifrs-full:IncreaseDecreaseThroughTreasuryShareTransactions"}]
["/*",null,{"$f":"'610000 - Est. Camb. Patrimonio'!$E$57","v":"Incrementos (disminuciones) por cambios las participaciones en la propiedad de subsidiarias que no dan lugar a pérdida de control, patrimonio"},{"$f":"'610000 - Est. Camb. Patrimonio'!$D$57","v":"ifrs-full:IncreaseDecreaseThroughChangesInOwnershipInterestsInSubsidiariesThatDoNotResultInLossOfControl"}]
["/*",null,{"$f":"'610000 - Est. Camb. Patrimonio'!$E$58","v":"Incrementos (disminuciones) por transacciones con pagos basados en acciones, patrimonio"},{"$f":"'610000 - Est. Camb. Patrimonio'!$D$58","v":"ifrs-full:IncreaseDecreaseThroughSharebasedPaymentTransactions"}]
["",null,{"$f":"'610000 - Est. Camb. Patrimonio'!$E$59","v":"Total incremento (disminución) en el patrimonio"},{"$f":"'610000 - Est. Camb. Patrimonio'!$D$59","v":"ifrs-full:ChangesInEquity"},0,"peso",{"$f":"'610000 - Est. Camb. Patrimonio'!$W$59","v":0},0,"http://www.xbrl.org/scheme/companyName",{"$f":"Periodos!$D$3","v":"2022-01-01"},{"$f":"Periodos!$D$4","v":"2022-12-31"},{"$f":"'610000 - Est. Camb. Patrimonio'!$E$42","v":"ifrs-full:ComponentsOfEquityAxis"},{"$f":"'610000 - Est. Camb. Patrimonio'!$W$41","v":"ifrs-full:ReserveOfGainsAndLossesFromInvestmentsInEquityInstrumentsMember"}]
["",null,{"$f":"'610000 - Est. Camb. Patrimonio'!$E$60","v":"Patrimonio al final del periodo"},{"$f":"'610000 - Est. Camb. Patrimonio'!$D$60","v":"ifrs-full:Equity"},0,"peso",{"$f":"'610000 - Est. Camb. Patrimonio'!$W$60","v":0},0,"http://www.xbrl.org/scheme/companyName",null,{"$f":"Periodos!$D$4","v":"2022-12-31"},{"$f":"'610000 - Est. Camb. Patrimonio'!$E$42","v":"ifrs-full:ComponentsOfEquityAxis"},{"$f":"'610000 - Est. Camb. Patrimonio'!$W$41","v":"ifrs-full:ReserveOfGainsAndLossesFromInvestmentsInEquityInstrumentsMember"}]
["/*",null,"--19--"]
["/*",null,{"$f":"'610000 - Est. Camb. Patrimonio'!$E$43","v":"Estado de cambios en el patrimonio [resumen]"},{"$f":"'610000 - Est. Camb. Patrimonio'!$D$43","v":"ifrs-full:StatementOfChangesInEquityAbstract"}]
["/*",null,{"$f":"'610000 - Est. Camb. Patrimonio'!$E$44","v":"Estado de cambios en el patrimonio [partidas de los estados financieros]"},{"$f":"'610000 - Est. Camb. Patrimonio'!$D$44","v":"ifrs-full:StatementOfChangesInEquityLineItems"}]
["/*",null,{"$f":"'610000 - Est. Camb. Patrimonio'!$E$45","v":"Patrimonio al comienzo del periodo"},{"$f":"'610000 - Est. Camb. Patrimonio'!$D$45","v":"ifrs-full:Equity"}]
["/*",null,{"$f":"'610000 - Est. Camb. Patrimonio'!$E$46","v":"Cambios en el patrimonio [resumen]"},{"$f":"'610000 - Est. Camb. Patrimonio'!$D$46","v":"ifrs-full:ChangesInEquityAbstract"}]
["/*",null,{"$f":"'610000 - Est. Camb. Patrimonio'!$E$47","v":"Resultado integral [resumen]"},{"$f":"'610000 - Est. Camb. Patrimonio'!$D$47","v":"ifrs-full:ComprehensiveIncomeAbstract"}]
["/*",null,{"$f":"'610000 - Est. Camb. Patrimonio'!$E$48","v":"Ganancia (pérdida)"},{"$f":"'610000 - Est. Camb. Patrimonio'!$D$48","v":"ifrs-full:ProfitLoss"}]
["/*",null,{"$f":"'610000 - Est. Camb. Patrimonio'!$E$49","v":"Otro resultado integral"},{"$f":"'610000 - Est. Camb. Patrimonio'!$D$49","v":"ifrs-full:OtherComprehensiveIncome"}]
["",null,{"$f":"'610000 - Est. Camb. Patrimonio'!$E$50","v":"Resultado integral total"},{"$f":"'610000 - Est. Camb. Patrimonio'!$D$50","v":"ifrs-full:ComprehensiveIncome"},0,"peso",{"$f":"'610000 - Est. Camb. Patrimonio'!$X$50","v":0},0,"http://www.xbrl.org/scheme/companyName",{"$f":"Periodos!$D$3","v":"2022-01-01"},{"$f":"Periodos!$D$4","v":"2022-12-31"},{"$f":"'610000 - Est. Camb. Patrimonio'!$E$42","v":"ifrs-full:ComponentsOfEquityAxis"},{"$f":"'610000 - Est. Camb. Patrimonio'!$X$41","v":"ifrs-full:ReserveOfChangeInFairValueOfFinancialLiabilityAttributableToChangeInCreditRiskOfLiabilityMember"}]
["/*",null,{"$f":"'610000 - Est. Camb. Patrimonio'!$E$51","v":"Emisión de patrimonio"},{"$f":"'610000 - Est. Camb. Patrimonio'!$D$51","v":"ifrs-full:IssueOfEquity"}]
["/*",null,{"$f":"'610000 - Est. Camb. Patrimonio'!$E$52","v":"Dividendos reconocidos como distribuciones a los propietarios"},{"$f":"'610000 - Est. Camb. Patrimonio'!$D$52","v":"ifrs-full:DividendsPaid"}]
["/*",null,{"$f":"'610000 - Est. Camb. Patrimonio'!$E$53","v":"Incrementos por otras aportaciones de los propietarios, patrimonio"},{"$f":"'610000 - Est. Camb. Patrimonio'!$D$53","v":"ifrs-full:IncreaseDecreaseThroughOtherContributionsByOwners"}]
["/*",null,{"$f":"'610000 - Est. Camb. Patrimonio'!$E$54","v":"Disminución por otras distribuciones a los propietarios, patrimonio"},{"$f":"'610000 - Est. Camb. Patrimonio'!$D$54","v":"ifrs-full:IncreaseDecreaseThroughOtherDistributionsToOwners"}]
["/*",null,{"$f":"'610000 - Est. Camb. Patrimonio'!$E$55","v":"Incrementos (disminuciones) por otros cambios, patrimonio"},{"$f":"'610000 - Est. Camb. Patrimonio'!$D$55","v":"ifrs-full:IncreaseDecreaseThroughTransfersAndOtherChangesEquity"}]
["/*",null,{"$f":"'610000 - Est. Camb. Patrimonio'!$E$56","v":"Incrementos (disminuciones) por transacciones con acciones propias, patrimonio"},{"$f":"'610000 - Est. Camb. Patrimonio'!$D$56","v":"ifrs-full:IncreaseDecreaseThroughTreasuryShareTransactions"}]
["/*",null,{"$f":"'610000 - Est. Camb. Patrimonio'!$E$57","v":"Incrementos (disminuciones) por cambios las participaciones en la propiedad de subsidiarias que no dan lugar a pérdida de control, patrimonio"},{"$f":"'610000 - Est. Camb. Patrimonio'!$D$57","v":"ifrs-full:IncreaseDecreaseThroughChangesInOwnershipInterestsInSubsidiariesThatDoNotResultInLossOfControl"}]
["/*",null,{"$f":"'610000 - Est. Camb. Patrimonio'!$E$58","v":"Incrementos (disminuciones) por transacciones con pagos basados en acciones, patrimonio"},{"$f":"'610000 - Est. Camb. Patrimonio'!$D$58","v":"ifrs-full:IncreaseDecreaseThroughSharebasedPaymentTransactions"}]
["",null,{"$f":"'610000 - Est. Camb. Patrimonio'!$E$59","v":"Total incremento (disminución) en el patrimonio"},{"$f":"'610000 - Est. Camb. Patrimonio'!$D$59","v":"ifrs-full:ChangesInEquity"},0,"peso",{"$f":"'610000 - Est. Camb. Patrimonio'!$X$59","v":0},0,"http://www.xbrl.org/scheme/companyName",{"$f":"Periodos!$D$3","v":"2022-01-01"},{"$f":"Periodos!$D$4","v":"2022-12-31"},{"$f":"'610000 - Est. Camb. Patrimonio'!$E$42","v":"ifrs-full:ComponentsOfEquityAxis"},{"$f":"'610000 - Est. Camb. Patrimonio'!$X$41","v":"ifrs-full:ReserveOfChangeInFairValueOfFinancialLiabilityAttributableToChangeInCreditRiskOfLiabilityMember"}]
["",null,{"$f":"'610000 - Est. Camb. Patrimonio'!$E$60","v":"Patrimonio al final del periodo"},{"$f":"'610000 - Est. Camb. Patrimonio'!$D$60","v":"ifrs-full:Equity"},0,"peso",{"$f":"'610000 - Est. Camb. Patrimonio'!$X$60","v":0},0,"http://www.xbrl.org/scheme/companyName",null,{"$f":"Periodos!$D$4","v":"2022-12-31"},{"$f":"'610000 - Est. Camb. Patrimonio'!$E$42","v":"ifrs-full:ComponentsOfEquityAxis"},{"$f":"'610000 - Est. Camb. Patrimonio'!$X$41","v":"ifrs-full:ReserveOfChangeInFairValueOfFinancialLiabilityAttributableToChangeInCreditRiskOfLiabilityMember"}]
["/*",null,"--20--"]
["/*",null,{"$f":"'610000 - Est. Camb. Patrimonio'!$E$43","v":"Estado de cambios en el patrimonio [resumen]"},{"$f":"'610000 - Est. Camb. Patrimonio'!$D$43","v":"ifrs-full:StatementOfChangesInEquityAbstract"}]
["/*",null,{"$f":"'610000 - Est. Camb. Patrimonio'!$E$44","v":"Estado de cambios en el patrimonio [partidas de los estados financieros]"},{"$f":"'610000 - Est. Camb. Patrimonio'!$D$44","v":"ifrs-full:StatementOfChangesInEquityLineItems"}]
[{"$f":"IF(G8288=\"\",\"/*\",\"\")","v":""},null,{"$f":"'610000 - Est. Camb. Patrimonio'!$E$45","v":"Patrimonio al comienzo del periodo"},{"$f":"'610000 - Est. Camb. Patrimonio'!$D$45","v":"ifrs-full:Equity"},0,"peso",{"$f":"'610000 - Est. Camb. Patrimonio'!$Y$45","v":0},0,"http://www.xbrl.org/scheme/companyName",null,{"$f":"Periodos!$E$4","v":"2021-12-31"},{"$f":"'610000 - Est. Camb. Patrimonio'!$E$42","v":"ifrs-full:ComponentsOfEquityAxis"},{"$f":"'610000 - Est. Camb. Patrimonio'!$Y$41","v":"ifrs-full:OtherReservesMember"}]
["/*",null,{"$f":"'610000 - Est. Camb. Patrimonio'!$E$46","v":"Cambios en el patrimonio [resumen]"},{"$f":"'610000 - Est. Camb. Patrimonio'!$D$46","v":"ifrs-full:ChangesInEquityAbstract"}]
["/*",null,{"$f":"'610000 - Est. Camb. Patrimonio'!$E$47","v":"Resultado integral [resumen]"},{"$f":"'610000 - Est. Camb. Patrimonio'!$D$47","v":"ifrs-full:ComprehensiveIncomeAbstract"}]
["",null,{"$f":"'610000 - Est. Camb. Patrimonio'!$E$48","v":"Ganancia (pérdida)"},{"$f":"'610000 - Est. Camb. Patrimonio'!$D$48","v":"ifrs-full:ProfitLoss"},0,"peso",{"$f":"'610000 - Est. Camb. Patrimonio'!$Y$48","v":0},0,"http://www.xbrl.org/scheme/companyName",{"$f":"Periodos!$D$3","v":"2022-01-01"},{"$f":"Periodos!$D$4","v":"2022-12-31"},{"$f":"'610000 - Est. Camb. Patrimonio'!$E$42","v":"ifrs-full:ComponentsOfEquityAxis"},{"$f":"'610000 - Est. Camb. Patrimonio'!$Y$41","v":"ifrs-full:OtherReservesMember"}]
["",null,{"$f":"'610000 - Est. Camb. Patrimonio'!$E$49","v":"Otro resultado integral"},{"$f":"'610000 - Est. Camb. Patrimonio'!$D$49","v":"ifrs-full:OtherComprehensiveIncome"},0,"peso",{"$f":"'610000 - Est. Camb. Patrimonio'!$Y$49","v":0},0,"http://www.xbrl.org/scheme/companyName",{"$f":"Periodos!$D$3","v":"2022-01-01"},{"$f":"Periodos!$D$4","v":"2022-12-31"},{"$f":"'610000 - Est. Camb. Patrimonio'!$E$42","v":"ifrs-full:ComponentsOfEquityAxis"},{"$f":"'610000 - Est. Camb. Patrimonio'!$Y$41","v":"ifrs-full:OtherReservesMember"}]
["",null,{"$f":"'610000 - Est. Camb. Patrimonio'!$E$50","v":"Resultado integral total"},{"$f":"'610000 - Est. Camb. Patrimonio'!$D$50","v":"ifrs-full:ComprehensiveIncome"},0,"peso",{"$f":"'610000 - Est. Camb. Patrimonio'!$Y$50","v":0},0,"http://www.xbrl.org/scheme/companyName",{"$f":"Periodos!$D$3","v":"2022-01-01"},{"$f":"Periodos!$D$4","v":"2022-12-31"},{"$f":"'610000 - Est. Camb. Patrimonio'!$E$42","v":"ifrs-full:ComponentsOfEquityAxis"},{"$f":"'610000 - Est. Camb. Patrimonio'!$Y$41","v":"ifrs-full:OtherReservesMember"}]
["",null,{"$f":"'610000 - Est. Camb. Patrimonio'!$E$51","v":"Emisión de patrimonio"},{"$f":"'610000 - Est. Camb. Patrimonio'!$D$51","v":"ifrs-full:IssueOfEquity"},0,"peso",{"$f":"'610000 - Est. Camb. Patrimonio'!$Y$51","v":0},0,"http://www.xbrl.org/scheme/companyName",{"$f":"Periodos!$D$3","v":"2022-01-01"},{"$f":"Periodos!$D$4","v":"2022-12-31"},{"$f":"'610000 - Est. Camb. Patrimonio'!$E$42","v":"ifrs-full:ComponentsOfEquityAxis"},{"$f":"'610000 - Est. Camb. Patrimonio'!$Y$41","v":"ifrs-full:OtherReservesMember"}]
["",null,{"$f":"'610000 - Est. Camb. Patrimonio'!$E$52","v":"Dividendos reconocidos como distribuciones a los propietarios"},{"$f":"'610000 - Est. Camb. Patrimonio'!$D$52","v":"ifrs-full:DividendsPaid"},0,"peso",{"$f":"'610000 - Est. Camb. Patrimonio'!$Y$52","v":0},0,"http://www.xbrl.org/scheme/companyName",{"$f":"Periodos!$D$3","v":"2022-01-01"},{"$f":"Periodos!$D$4","v":"2022-12-31"},{"$f":"'610000 - Est. Camb. Patrimonio'!$E$42","v":"ifrs-full:ComponentsOfEquityAxis"},{"$f":"'610000 - Est. Camb. Patrimonio'!$Y$41","v":"ifrs-full:OtherReservesMember"}]
["",null,{"$f":"'610000 - Est. Camb. Patrimonio'!$E$53","v":"Incrementos por otras aportaciones de los propietarios, patrimonio"},{"$f":"'610000 - Est. Camb. Patrimonio'!$D$53","v":"ifrs-full:IncreaseDecreaseThroughOtherContributionsByOwners"},0,"peso",{"$f":"'610000 - Est. Camb. Patrimonio'!$Y$53","v":0},0,"http://www.xbrl.org/scheme/companyName",{"$f":"Periodos!$D$3","v":"2022-01-01"},{"$f":"Periodos!$D$4","v":"2022-12-31"},{"$f":"'610000 - Est. Camb. Patrimonio'!$E$42","v":"ifrs-full:ComponentsOfEquityAxis"},{"$f":"'610000 - Est. Camb. Patrimonio'!$Y$41","v":"ifrs-full:OtherReservesMember"}]
["",null,{"$f":"'610000 - Est. Camb. Patrimonio'!$E$54","v":"Disminución por otras distribuciones a los propietarios, patrimonio"},{"$f":"'610000 - Est. Camb. Patrimonio'!$D$54","v":"ifrs-full:IncreaseDecreaseThroughOtherDistributionsToOwners"},0,"peso",{"$f":"'610000 - Est. Camb. Patrimonio'!$Y$54","v":0},0,"http://www.xbrl.org/scheme/companyName",{"$f":"Periodos!$D$3","v":"2022-01-01"},{"$f":"Periodos!$D$4","v":"2022-12-31"},{"$f":"'610000 - Est. Camb. Patrimonio'!$E$42","v":"ifrs-full:ComponentsOfEquityAxis"},{"$f":"'610000 - Est. Camb. Patrimonio'!$Y$41","v":"ifrs-full:OtherReservesMember"}]
["",null,{"$f":"'610000 - Est. Camb. Patrimonio'!$E$55","v":"Incrementos (disminuciones) por otros cambios, patrimonio"},{"$f":"'610000 - Est. Camb. Patrimonio'!$D$55","v":"ifrs-full:IncreaseDecreaseThroughTransfersAndOtherChangesEquity"},0,"peso",{"$f":"'610000 - Est. Camb. Patrimonio'!$Y$55","v":0},0,"http://www.xbrl.org/scheme/companyName",{"$f":"Periodos!$D$3","v":"2022-01-01"},{"$f":"Periodos!$D$4","v":"2022-12-31"},{"$f":"'610000 - Est. Camb. Patrimonio'!$E$42","v":"ifrs-full:ComponentsOfEquityAxis"},{"$f":"'610000 - Est. Camb. Patrimonio'!$Y$41","v":"ifrs-full:OtherReservesMember"}]
["",null,{"$f":"'610000 - Est. Camb. Patrimonio'!$E$56","v":"Incrementos (disminuciones) por transacciones con acciones propias, patrimonio"},{"$f":"'610000 - Est. Camb. Patrimonio'!$D$56","v":"ifrs-full:IncreaseDecreaseThroughTreasuryShareTransactions"},0,"peso",{"$f":"'610000 - Est. Camb. Patrimonio'!$Y$56","v":0},0,"http://www.xbrl.org/scheme/companyName",{"$f":"Periodos!$D$3","v":"2022-01-01"},{"$f":"Periodos!$D$4","v":"2022-12-31"},{"$f":"'610000 - Est. Camb. Patrimonio'!$E$42","v":"ifrs-full:ComponentsOfEquityAxis"},{"$f":"'610000 - Est. Camb. Patrimonio'!$Y$41","v":"ifrs-full:OtherReservesMember"}]
["",null,{"$f":"'610000 - Est. Camb. Patrimonio'!$E$57","v":"Incrementos (disminuciones) por cambios las participaciones en la propiedad de subsidiarias que no dan lugar a pérdida de control, patrimonio"},{"$f":"'610000 - Est. Camb. Patrimonio'!$D$57","v":"ifrs-full:IncreaseDecreaseThroughChangesInOwnershipInterestsInSubsidiariesThatDoNotResultInLossOfControl"},0,"peso",{"$f":"'610000 - Est. Camb. Patrimonio'!$Y$57","v":0},0,"http://www.xbrl.org/scheme/companyName",{"$f":"Periodos!$D$3","v":"2022-01-01"},{"$f":"Periodos!$D$4","v":"2022-12-31"},{"$f":"'610000 - Est. Camb. Patrimonio'!$E$42","v":"ifrs-full:ComponentsOfEquityAxis"},{"$f":"'610000 - Est. Camb. Patrimonio'!$Y$41","v":"ifrs-full:OtherReservesMember"}]
["",null,{"$f":"'610000 - Est. Camb. Patrimonio'!$E$58","v":"Incrementos (disminuciones) por transacciones con pagos basados en acciones, patrimonio"},{"$f":"'610000 - Est. Camb. Patrimonio'!$D$58","v":"ifrs-full:IncreaseDecreaseThroughSharebasedPaymentTransactions"},0,"peso",{"$f":"'610000 - Est. Camb. Patrimonio'!$Y$58","v":0},0,"http://www.xbrl.org/scheme/companyName",{"$f":"Periodos!$D$3","v":"2022-01-01"},{"$f":"Periodos!$D$4","v":"2022-12-31"},{"$f":"'610000 - Est. Camb. Patrimonio'!$E$42","v":"ifrs-full:ComponentsOfEquityAxis"},{"$f":"'610000 - Est. Camb. Patrimonio'!$Y$41","v":"ifrs-full:OtherReservesMember"}]
["",null,{"$f":"'610000 - Est. Camb. Patrimonio'!$E$59","v":"Total incremento (disminución) en el patrimonio"},{"$f":"'610000 - Est. Camb. Patrimonio'!$D$59","v":"ifrs-full:ChangesInEquity"},0,"peso",{"$f":"'610000 - Est. Camb. Patrimonio'!$Y$59","v":0},0,"http://www.xbrl.org/scheme/companyName",{"$f":"Periodos!$D$3","v":"2022-01-01"},{"$f":"Periodos!$D$4","v":"2022-12-31"},{"$f":"'610000 - Est. Camb. Patrimonio'!$E$42","v":"ifrs-full:ComponentsOfEquityAxis"},{"$f":"'610000 - Est. Camb. Patrimonio'!$Y$41","v":"ifrs-full:OtherReservesMember"}]
["",null,{"$f":"'610000 - Est. Camb. Patrimonio'!$E$60","v":"Patrimonio al final del periodo"},{"$f":"'610000 - Est. Camb. Patrimonio'!$D$60","v":"ifrs-full:Equity"},0,"peso",{"$f":"'610000 - Est. Camb. Patrimonio'!$Y$60","v":0},0,"http://www.xbrl.org/scheme/companyName",null,{"$f":"Periodos!$D$4","v":"2022-12-31"},{"$f":"'610000 - Est. Camb. Patrimonio'!$E$42","v":"ifrs-full:ComponentsOfEquityAxis"},{"$f":"'610000 - Est. Camb. Patrimonio'!$Y$41","v":"ifrs-full:OtherReservesMember"}]
["/*",null,"--21--"]
["/*",null,{"$f":"'610000 - Est. Camb. Patrimonio'!$E$43","v":"Estado de cambios en el patrimonio [resumen]"},{"$f":"'610000 - Est. Camb. Patrimonio'!$D$43","v":"ifrs-full:StatementOfChangesInEquityAbstract"}]
["/*",null,{"$f":"'610000 - Est. Camb. Patrimonio'!$E$44","v":"Estado de cambios en el patrimonio [partidas de los estados financieros]"},{"$f":"'610000 - Est. Camb. Patrimonio'!$D$44","v":"ifrs-full:StatementOfChangesInEquityLineItems"}]
["/*",null,{"$f":"'610000 - Est. Camb. Patrimonio'!$E$45","v":"Patrimonio al comienzo del periodo"},{"$f":"'610000 - Est. Camb. Patrimonio'!$D$45","v":"ifrs-full:Equity"}]
["/*",null,{"$f":"'610000 - Est. Camb. Patrimonio'!$E$46","v":"Cambios en el patrimonio [resumen]"},{"$f":"'610000 - Est. Camb. Patrimonio'!$D$46","v":"ifrs-full:ChangesInEquityAbstract"}]
["/*",null,{"$f":"'610000 - Est. Camb. Patrimonio'!$E$47","v":"Resultado integral [resumen]"},{"$f":"'610000 - Est. Camb. Patrimonio'!$D$47","v":"ifrs-full:ComprehensiveIncomeAbstract"}]
["/*",null,{"$f":"'610000 - Est. Camb. Patrimonio'!$E$48","v":"Ganancia (pérdida)"},{"$f":"'610000 - Est. Camb. Patrimonio'!$D$48","v":"ifrs-full:ProfitLoss"}]
["/*",null,{"$f":"'610000 - Est. Camb. Patrimonio'!$E$49","v":"Otro resultado integral"},{"$f":"'610000 - Est. Camb. Patrimonio'!$D$49","v":"ifrs-full:OtherComprehensiveIncome"}]
["",null,{"$f":"'610000 - Est. Camb. Patrimonio'!$E$50","v":"Resultado integral total"},{"$f":"'610000 - Est. Camb. Patrimonio'!$D$50","v":"ifrs-full:ComprehensiveIncome"},0,"peso",{"$f":"'610000 - Est. Camb. Patrimonio'!$Z$50","v":0},0,"http://www.xbrl.org/scheme/companyName",{"$f":"Periodos!$D$3","v":"2022-01-01"},{"$f":"Periodos!$D$4","v":"2022-12-31"},{"$f":"'610000 - Est. Camb. Patrimonio'!$E$42","v":"ifrs-full:ComponentsOfEquityAxis"},{"$f":"'610000 - Est. Camb. Patrimonio'!$Z$41","v":"ifrs-full:RetainedEarningsMember"}]
["/*",null,{"$f":"'610000 - Est. Camb. Patrimonio'!$E$51","v":"Emisión de patrimonio"},{"$f":"'610000 - Est. Camb. Patrimonio'!$D$51","v":"ifrs-full:IssueOfEquity"}]
["/*",null,{"$f":"'610000 - Est. Camb. Patrimonio'!$E$52","v":"Dividendos reconocidos como distribuciones a los propietarios"},{"$f":"'610000 - Est. Camb. Patrimonio'!$D$52","v":"ifrs-full:DividendsPaid"}]
["/*",null,{"$f":"'610000 - Est. Camb. Patrimonio'!$E$53","v":"Incrementos por otras aportaciones de los propietarios, patrimonio"},{"$f":"'610000 - Est. Camb. Patrimonio'!$D$53","v":"ifrs-full:IncreaseDecreaseThroughOtherContributionsByOwners"}]
["/*",null,{"$f":"'610000 - Est. Camb. Patrimonio'!$E$54","v":"Disminución por otras distribuciones a los propietarios, patrimonio"},{"$f":"'610000 - Est. Camb. Patrimonio'!$D$54","v":"ifrs-full:IncreaseDecreaseThroughOtherDistributionsToOwners"}]
["/*",null,{"$f":"'610000 - Est. Camb. Patrimonio'!$E$55","v":"Incrementos (disminuciones) por otros cambios, patrimonio"},{"$f":"'610000 - Est. Camb. Patrimonio'!$D$55","v":"ifrs-full:IncreaseDecreaseThroughTransfersAndOtherChangesEquity"}]
["/*",null,{"$f":"'610000 - Est. Camb. Patrimonio'!$E$56","v":"Incrementos (disminuciones) por transacciones con acciones propias, patrimonio"},{"$f":"'610000 - Est. Camb. Patrimonio'!$D$56","v":"ifrs-full:IncreaseDecreaseThroughTreasuryShareTransactions"}]
["/*",null,{"$f":"'610000 - Est. Camb. Patrimonio'!$E$57","v":"Incrementos (disminuciones) por cambios las participaciones en la propiedad de subsidiarias que no dan lugar a pérdida de control, patrimonio"},{"$f":"'610000 - Est. Camb. Patrimonio'!$D$57","v":"ifrs-full:IncreaseDecreaseThroughChangesInOwnershipInterestsInSubsidiariesThatDoNotResultInLossOfControl"}]
["/*",null,{"$f":"'610000 - Est. Camb. Patrimonio'!$E$58","v":"Incrementos (disminuciones) por transacciones con pagos basados en acciones, patrimonio"},{"$f":"'610000 - Est. Camb. Patrimonio'!$D$58","v":"ifrs-full:IncreaseDecreaseThroughSharebasedPaymentTransactions"}]
["",null,{"$f":"'610000 - Est. Camb. Patrimonio'!$E$59","v":"Total incremento (disminución) en el patrimonio"},{"$f":"'610000 - Est. Camb. Patrimonio'!$D$59","v":"ifrs-full:ChangesInEquity"},0,"peso",{"$f":"'610000 - Est. Camb. Patrimonio'!$Z$59","v":0},0,"http://www.xbrl.org/scheme/companyName",{"$f":"Periodos!$D$3","v":"2022-01-01"},{"$f":"Periodos!$D$4","v":"2022-12-31"},{"$f":"'610000 - Est. Camb. Patrimonio'!$E$42","v":"ifrs-full:ComponentsOfEquityAxis"},{"$f":"'610000 - Est. Camb. Patrimonio'!$Z$41","v":"ifrs-full:RetainedEarningsMember"}]
["",null,{"$f":"'610000 - Est. Camb. Patrimonio'!$E$60","v":"Patrimonio al final del periodo"},{"$f":"'610000 - Est. Camb. Patrimonio'!$D$60","v":"ifrs-full:Equity"},0,"peso",{"$f":"'610000 - Est. Camb. Patrimonio'!$Z$60","v":0},0,"http://www.xbrl.org/scheme/companyName",null,{"$f":"Periodos!$D$4","v":"2022-12-31"},{"$f":"'610000 - Est. Camb. Patrimonio'!$E$42","v":"ifrs-full:ComponentsOfEquityAxis"},{"$f":"'610000 - Est. Camb. Patrimonio'!$Z$41","v":"ifrs-full:RetainedEarningsMember"}]
["/*",null,"--22--"]
["/*",null,{"$f":"'610000 - Est. Camb. Patrimonio'!$E$43","v":"Estado de cambios en el patrimonio [resumen]"},{"$f":"'610000 - Est. Camb. Patrimonio'!$D$43","v":"ifrs-full:StatementOfChangesInEquityAbstract"}]
["/*",null,{"$f":"'610000 - Est. Camb. Patrimonio'!$E$44","v":"Estado de cambios en el patrimonio [partidas de los estados financieros]"},{"$f":"'610000 - Est. Camb. Patrimonio'!$D$44","v":"ifrs-full:StatementOfChangesInEquityLineItems"}]
["",null,{"$f":"'610000 - Est. Camb. Patrimonio'!$E$45","v":"Patrimonio al comienzo del periodo"},{"$f":"'610000 - Est. Camb. Patrimonio'!$D$45","v":"ifrs-full:Equity"},0,"peso",{"$f":"'610000 - Est. Camb. Patrimonio'!$AA$45","v":0},0,"http://www.xbrl.org/scheme/companyName",null,{"$f":"Periodos!$E$4","v":"2021-12-31"}]
["/*",null,{"$f":"'610000 - Est. Camb. Patrimonio'!$E$46","v":"Cambios en el patrimonio [resumen]"},{"$f":"'610000 - Est. Camb. Patrimonio'!$D$46","v":"ifrs-full:ChangesInEquityAbstract"}]
["/*",null,{"$f":"'610000 - Est. Camb. Patrimonio'!$E$47","v":"Resultado integral [resumen]"},{"$f":"'610000 - Est. Camb. Patrimonio'!$D$47","v":"ifrs-full:ComprehensiveIncomeAbstract"}]
["/*",null,{"$f":"'610000 - Est. Camb. Patrimonio'!$E$48","v":"Ganancia (pérdida)"},{"$f":"'610000 - Est. Camb. Patrimonio'!$D$48","v":"ifrs-full:ProfitLoss"}]
["/*",null,{"$f":"'610000 - Est. Camb. Patrimonio'!$E$49","v":"Otro resultado integral"},{"$f":"'610000 - Est. Camb. Patrimonio'!$D$49","v":"ifrs-full:OtherComprehensiveIncome"}]
["/*",null,{"$f":"'610000 - Est. Camb. Patrimonio'!$E$50","v":"Resultado integral total"},{"$f":"'610000 - Est. Camb. Patrimonio'!$D$50","v":"ifrs-full:ComprehensiveIncome"}]
["",null,{"$f":"'610000 - Est. Camb. Patrimonio'!$E$51","v":"Emisión de patrimonio"},{"$f":"'610000 - Est. Camb. Patrimonio'!$D$51","v":"ifrs-full:IssueOfEquity"},0,"peso",{"$f":"'610000 - Est. Camb. Patrimonio'!$AA$51","v":0},0,"http://www.xbrl.org/scheme/companyName",{"$f":"Periodos!$D$3","v":"2022-01-01"},{"$f":"Periodos!$D$4","v":"2022-12-31"}]
["",null,{"$f":"'610000 - Est. Camb. Patrimonio'!$E$52","v":"Dividendos reconocidos como distribuciones a los propietarios"},{"$f":"'610000 - Est. Camb. Patrimonio'!$D$52","v":"ifrs-full:DividendsPaid"},0,"peso",{"$f":"'610000 - Est. Camb. Patrimonio'!$AA$52","v":0},0,"http://www.xbrl.org/scheme/companyName",{"$f":"Periodos!$D$3","v":"2022-01-01"},{"$f":"Periodos!$D$4","v":"2022-12-31"}]
["",null,{"$f":"'610000 - Est. Camb. Patrimonio'!$E$53","v":"Incrementos por otras aportaciones de los propietarios, patrimonio"},{"$f":"'610000 - Est. Camb. Patrimonio'!$D$53","v":"ifrs-full:IncreaseDecreaseThroughOtherContributionsByOwners"},0,"peso",{"$f":"'610000 - Est. Camb. Patrimonio'!$AA$53","v":0},0,"http://www.xbrl.org/scheme/companyName",{"$f":"Periodos!$D$3","v":"2022-01-01"},{"$f":"Periodos!$D$4","v":"2022-12-31"}]
["",null,{"$f":"'610000 - Est. Camb. Patrimonio'!$E$54","v":"Disminución por otras distribuciones a los propietarios, patrimonio"},{"$f":"'610000 - Est. Camb. Patrimonio'!$D$54","v":"ifrs-full:IncreaseDecreaseThroughOtherDistributionsToOwners"},0,"peso",{"$f":"'610000 - Est. Camb. Patrimonio'!$AA$54","v":0},0,"http://www.xbrl.org/scheme/companyName",{"$f":"Periodos!$D$3","v":"2022-01-01"},{"$f":"Periodos!$D$4","v":"2022-12-31"}]
["",null,{"$f":"'610000 - Est. Camb. Patrimonio'!$E$55","v":"Incrementos (disminuciones) por otros cambios, patrimonio"},{"$f":"'610000 - Est. Camb. Patrimonio'!$D$55","v":"ifrs-full:IncreaseDecreaseThroughTransfersAndOtherChangesEquity"},0,"peso",{"$f":"'610000 - Est. Camb. Patrimonio'!$AA$55","v":0},0,"http://www.xbrl.org/scheme/companyName",{"$f":"Periodos!$D$3","v":"2022-01-01"},{"$f":"Periodos!$D$4","v":"2022-12-31"}]
["",null,{"$f":"'610000 - Est. Camb. Patrimonio'!$E$56","v":"Incrementos (disminuciones) por transacciones con acciones propias, patrimonio"},{"$f":"'610000 - Est. Camb. Patrimonio'!$D$56","v":"ifrs-full:IncreaseDecreaseThroughTreasuryShareTransactions"},0,"peso",{"$f":"'610000 - Est. Camb. Patrimonio'!$AA$56","v":0},0,"http://www.xbrl.org/scheme/companyName",{"$f":"Periodos!$D$3","v":"2022-01-01"},{"$f":"Periodos!$D$4","v":"2022-12-31"}]
["",null,{"$f":"'610000 - Est. Camb. Patrimonio'!$E$57","v":"Incrementos (disminuciones) por cambios las participaciones en la propiedad de subsidiarias que no dan lugar a pérdida de control, patrimonio"},{"$f":"'610000 - Est. Camb. Patrimonio'!$D$57","v":"ifrs-full:IncreaseDecreaseThroughChangesInOwnershipInterestsInSubsidiariesThatDoNotResultInLossOfControl"},0,"peso",{"$f":"'610000 - Est. Camb. Patrimonio'!$AA$57","v":0},0,"http://www.xbrl.org/scheme/companyName",{"$f":"Periodos!$D$3","v":"2022-01-01"},{"$f":"Periodos!$D$4","v":"2022-12-31"}]
["",null,{"$f":"'610000 - Est. Camb. Patrimonio'!$E$58","v":"Incrementos (disminuciones) por transacciones con pagos basados en acciones, patrimonio"},{"$f":"'610000 - Est. Camb. Patrimonio'!$D$58","v":"ifrs-full:IncreaseDecreaseThroughSharebasedPaymentTransactions"},0,"peso",{"$f":"'610000 - Est. Camb. Patrimonio'!$AA$58","v":0},0,"http://www.xbrl.org/scheme/companyName",{"$f":"Periodos!$D$3","v":"2022-01-01"},{"$f":"Periodos!$D$4","v":"2022-12-31"}]
["",null,{"$f":"'610000 - Est. Camb. Patrimonio'!$E$59","v":"Total incremento (disminución) en el patrimonio"},{"$f":"'610000 - Est. Camb. Patrimonio'!$D$59","v":"ifrs-full:ChangesInEquity"},0,"peso",{"$f":"'610000 - Est. Camb. Patrimonio'!$AA$59","v":0},0,"http://www.xbrl.org/scheme/companyName",{"$f":"Periodos!$D$3","v":"2022-01-01"},{"$f":"Periodos!$D$4","v":"2022-12-31"}]
["",null,{"$f":"'610000 - Est. Camb. Patrimonio'!$E$60","v":"Patrimonio al final del periodo"},{"$f":"'610000 - Est. Camb. Patrimonio'!$D$60","v":"ifrs-full:Equity"},0,"peso",{"$f":"'610000 - Est. Camb. Patrimonio'!$AA$60","v":0},0,"http://www.xbrl.org/scheme/companyName",null,{"$f":"Periodos!$D$4","v":"2022-12-31"}]